{"text_format":"2","workbook":"xlsx","n_sheets":12,"sheets":["Page d'acceuil","Structure de l'outil","1 Données d'entrée","2 Questionnaire qualitatif","3 Coût total","4 Recette totale","5 Flux de trésorerie brut","6 Financement","7 Flux de trésorerie net","8 Apercu général","9 Sensibilité et robustesse","10 Subvention d'ADER"],"not_rendered":{"charts":9,"images":1,"macros":0,"external_links":0,"defined_names":39,"comments":4,"pivot_tables":0},"unopened":[],"bounds":{"document_bytes":16777216,"sheet_cells":100000,"run_cost":"one","rows_first":2000,"rows_last":500,"rows_between":2000,"halvings":0,"cell_chars":16384,"cell_head_chars":4096},"cells_cut":0,"cells_raw":0,"read":"whole","date_system":"1900"}

{"sheet":"Page d'acceuil","index":0,"n_rows":21,"n_cols":2,"rows_kept":21,"cut":false,"hidden":false,"merged":[[20,1,25,7],[11,1,11,7],[3,0,3,7],[0,0,0,7],[1,0,1,7],[5,0,5,7]]}
["Projet „Promotion de l’Electrification Rurale par les Energie Renouvelables“ (PERER)"]
["GTZ Madagascar"]
[]
["Outil d’analyse financière des projets hydro-électriques"]
[]
["Version 1 (Janvier 2010)"]
[]
[]
[]
[]
["Contact","Dr. Sören DAVID"]
[null,"Conseiller principal \"Promotion de l'électrification rurale par les énergies renouvelables\""]
[null,"Agence de Développement de l'Electrification Rurale (ADER)"]
[null,"LOT II I 164 Ter - Amboniloha Ivandry - Antananarivo"]
[null,"M: +261 (0)32 054 25 35"]
[null,"@: soeren.david@gtz.de"]
[]
[]
[]
[]
["Description rapide","Cet outil d'analyse financière des projets hydro-éléctrique aide à calculer rapidement des inidcateurs clés de la faisabilité d'un projet. L'analyse automatique est basé sur environ 70 données du projet qui doivent être entrées au tableua 1 (Données d'entrée). Le processus automatisé permet une analyse rapide et la possibilité de créer des simulations différentes avec une variation des données d'entrées dans un temps minimum. "]

{"sheet":"Structure de l'outil","index":1,"n_rows":20,"n_cols":4,"rows_kept":20,"cut":false,"hidden":false,"merged":[[2,0,2,5],[19,0,19,5],[6,3,6,5],[7,3,16,5]]}
["Structure de l'outil"]
[]
["Cet outil Excel aide à analyser la faisabilité financière d'un projet : en entrant certaines données du projet, un processus automatisé calcule des indicateurs de faisabilité, par exemple le coût d'investissement. La structure de l'outil Excel est présentée ci-dessous."]
[]
[]
[]
["N° de la feuille d'Excel","Nom","Mode d'entrée ","Description"]
[1,"Données d'entrée","manuel","Chaque feuille commence avec une brève introduction de son contenu."]
[2,"Questionnaire qualitatif","manuel"]
[3,"Coût total","manuel / automatisé"]
[4,"Recette totale","automatisé"]
[5,"Flux de trésorerie brut ","automatisé"]
[6,"Financement","automatisé"]
[7,"Flux de trésorerie net","automatisé"]
[8,"Aperçu général","automatisé"]
[9,"Sensibilité et robustesse","automatisé"]
[10,"Subvention d'ADER","automatisé"]
[]
[]
["Il est nécessaire d'entrer des données dans les feuilles 1 et 2 pour effectuer l'analyse. Le processus sera automatisé à partir de la feuille 3 dont une partie devra cependant être contrôlée."]

{"sheet":"1 Données d'entrée","index":2,"n_rows":384,"n_cols":23,"rows_kept":384,"cut":false,"hidden":false,"merged":[[302,0,302,2],[315,0,315,1],[312,0,313,1],[314,0,314,1],[311,0,311,1],[309,0,309,1],[310,0,310,1],[379,0,379,2],[361,0,361,2],[350,0,350,2],[354,0,354,2],[2,0,2,3],[3,0,3,3],[4,0,4,3],[186,0,186,1],[37,0,37,3],[10,1,10,4],[28,0,28,1],[169,0,171,4],[182,0,183,3],[26,1,26,4],[134,0,134,4],[40,0,40,4],[89,3,90,3],[121,0,121,4],[146,0,146,4],[218,5,219,5],[219,2,219,4],[138,0,138,1],[180,0,180,22],[185,19,185,22],[186,11,186,12],[186,14,186,15],[197,11,197,14],[196,11,196,16],[334,0,335,1],[324,0,324,2],[337,0,337,1],[246,2,246,3],[129,0,130,0],[125,0,127,3],[129,1,130,2],[217,0,217,5],[209,5,209,6],[214,0,214,5],[209,11,209,12],[197,15,197,16],[28,7,29,9],[308,0,308,2],[196,5,196,8],[28,6,29,6],[33,6,33,7],[218,1,219,1],[186,5,186,6],[218,0,219,0],[332,0,332,1],[336,0,336,1],[197,5,197,8],[333,0,333,1],[246,0,246,1],[296,0,296,2],[245,0,245,3],[291,0,291,2],[254,0,254,3],[331,0,331,1],[17,1,17,4],[18,1,18,4],[19,1,19,4],[9,1,9,4],[14,1,14,4],[16,1,16,4],[7,0,7,4],[8,0,8,4],[11,1,11,4],[12,1,12,4],[13,1,13,4],[15,1,15,4]]}
["Données d'entrée"]
[]
["Pour permettre l'analyse automatisé, il est nécessaire de remplir de manière minutieuse cette feuille. Les commentaires situés à côté des cellules sont une aide qui précise l'information à entrer. Quatre couleurs sont utilisées pour faciliter l'orientation : "]
["1) Les cellules à compléter sont rouges. En plus, une cellule qui reste rouge après avoir rempli peut indiquer une fausse entrée des données. \n2) Les cellules jaunes sont des cellules d'assistance qui pourraient contenir des informations additionnelles.\n3) Quand les cellules sont complétées, elles deviennent vertes.\n4) Les cellules grises sont les cellules à ne pas modifier."]
["4) Après avoir complété la fiche, s'il reste des cellules rouges, cela signifie que des informations nécessaires sont encore manquantes."]
[]
[]
["Aperçu interactif"]
["L'aperçu interactif permet de sauter à la section demandés par cliquer aux titres au-dessous."]
[1,"Donnée d'entrée générales"]
[2,"Données d'entrée pour le calcul des coûts"]
[{"$f":"\"2-1\"","v":"2-1"},"Coût de réinvestissement"]
[{"$f":"\"2-2\"","v":"2-2"},"Coûts d'opération et maintenance"]
[{"$f":"\"2-3\"","v":"2-3"},"Extension du site (augmenter la capacité)"]
[3,"Données d'entrée pour le calcul de recette"]
[{"$f":"\"3-1\"","v":"3-1"},"Les différents tarifs"]
[{"$f":"\"3-2\"","v":"3-2"},"Vente à la JIRAMA"]
[4,"Financement"]
[5,"Taxation"]
[6,"Risque et insécurité"]
[]
[]
[]
[]
["Donnée d'entrée générales"]
[]
["Nom du projet"]
[{"$nulls":6},"Taux d'actualisation",0.12]
["Production d'électricité envisagée ",{"$nulls":5},"Explication si le taux est différent"]
["Capacité installée",0,"kW"]
["Production d'électricité annuelle envisagée",{"$f":"B30*24*30*12","v":0},"kWh / an"]
["Taux d'électricité disponible pour la vente",0,"%",null,null,null,"Durée de vie du projet (années)",20]
["Électricité maximale disponible pour la vente par an",{"$f":"B32*B31","v":0},"kWh / an"]
[{"$nulls":6},"Cours de change"]
[{"$nulls":6},"AR - EUR",{"$f":"1/H36","v":3.4420327268471667E-4}]
[{"$nulls":6},"EUR - AR",2905.26]
[]
["Données d'entrée pour le calcul des coûts"]
[]
[]
["Prix à l'unité, longévité et nombres de pièces nécessaires"]
[]
["1 Travaux préparatoires"]
["Description d'article","Prix à l'unité (AR)","Longévité (années)","Quantité","Coût total"]
["Coût d'ingénierie et de design"]
["L'avant-projet sommaire (APS)",0,{"$f":"$H$32","v":20},1,{"$f":"D46*B46","v":0}]
["Avant projet détaillé (APD)",0,{"$f":"$H$32","v":20},1,{"$f":"D47*B47","v":0}]
["Coût d'ingénierie",0,{"$f":"$H$32","v":20},1,{"$f":"D48*B48","v":0}]
[]
["2 Construction du site"]
["Description d'article","Prix à l'unité (AR)","Longévité (années)","Quantité","Coût total"]
["Occupation du sol "]
["Achat ou fermage (site)",0,0,1,{"$f":"D53*B53","v":0}]
["Génie Civil"]
["Barrage principal",0,0,1,{"$f":"D55*B55","v":0}]
["Barrage de dérivation",0,0,1,0]
["Canal d'amenée",0,0,1,0]
["Chambre de mise en charge",0,0,1,0]
["Station d’épuration : dessableur",0,0,1,0]
["Bâtiment central",0,0,1,0]
["Restitution",0,0,1,0]
["Equipement électromécanique"]
["Turbine, régulateur, alterneur",0,0,1,{"$f":"D63*B63","v":0}]
["Installation électrique (contrôle commande)",0,0,1,{"$f":"D64*B64","v":0}]
["Conduite forcée "]
["Conduite en acier",0,0,1,{"$f":"D66*B66","v":0}]
["Route d'accès "]
["Route d'accès",0,0,1,{"$f":"D68*B68","v":0}]
[]
["Additionnel (construction du site)"]
["Transport (de l'équipement, du matériel)",0,{"$f":"$H$32","v":20},1,{"$f":"D71*B71","v":0}]
["Générateur (sauvegarde)",0,0,1,0]
["-",null,null,1,0]
["-",null,null,1,0]
["-",null,null,1,0]
["-",null,null,1,0]
["-",null,null,1,0]
[]
[]
[]
[]
["3 Construction du réseau de transmission et distribution (T&D)"]
["Description d'article","Prix (AR)","Longévité (années)","Quantité","Coût total"]
["Transport et distribution"]
["Poste élévateur",0,0,0,{"$f":"D85*B85","v":0}]
["Poste abaisseur",0,0,0,{"$f":"D86*B86","v":0}]
["Ligne (Haute tension)",0,0,0,{"$f":"D87*B87","v":0}]
["Ligne (basse tension)",0,0,0,{"$f":"D88*B88","v":0}]
["Branchement"]
["Branchement d'un maison (forfait): câbles, fusible",0,0,"La quantité est égal au nombre de connexions par période comme indiqué plus bas."]
["Branchement d'un maison (tarif): câbles, compteur",0,0]
["Occupation du sol (Sous-stations haute et basse tension, permission de passer pour le réseau)"]
["Achat ou fermage (site)",0,0,1,{"$f":"D93*B93","v":0}]
[]
[]
["Additionnel (construction du réseau de T&D)"]
["Transport (de l'équipement, du matériel)",0,{"$f":"$H$32","v":20},1,{"$f":"D97*B97","v":0}]
["-",null,null,1,0]
["-",null,null,1,0]
["-",null,null,1,0]
["-",null,null,1,0]
["-",null,null,1,0]
["-",null,null,1,0]
["-",null,null,1,0]
["-",null,null,1,0]
["-",null,null,1,0]
[]
["4 Autorisations / Assurances"]
["Description d'article","Prix (AR)","Longévité (années)","Quantité","Coût total"]
["Autorisations (production)",0,0,0,{"$f":"D110*B110","v":0}]
["Assurance",0,0,0,{"$f":"D111*B111","v":0}]
[]
["Autorisations / Assurances additionnelles"]
["-",null,null,null,{"$f":"D114*B114","v":0}]
["-",null,null,null,{"$f":"D115*B115","v":0}]
["-",null,null,null,{"$f":"D116*B116","v":0}]
["-",null,null,null,{"$f":"D117*B117","v":0}]
["-",null,null,null,{"$f":"D118*B118","v":0}]
[]
[]
[]
["Coût de réinvestissement"]
[]
[]
[]
["Le calcul de coût de réinvestissement est fait automatiquement avec les prix d'unité et les longévités des articles. Regardez la feuille \"3 Coût total\" (le tableau: \"Coût de réinvestissement\") pour contrôler les coûts pour chaque réinvestissement nécessaire."]
[]
[]
[]
["Lu et approuvé",false]
[]
[]
[]
[]
["Coûts d'opération et maintenance"]
[]
[]
[]
["Coûts d'opération et de maintenance"]
["Le site",{"$f":"0.02*'3 Coût total'!B36","v":0}]
["Le réseau de transmission et distribution",{"$f":"0.02*'3 Coût total'!B37","v":0}]
[]
[]
[]
[]
[]
["Extension du site (augmenter la capacité)"]
[]
["Extension dans la période"]
[]
["Capacité additionnelle",null,"kW"]
["Production d'électricité annuelle envisagée",{"$f":"B151*24*30*12","v":0},"kWh / an"]
["Taux d'électricité disponible pour la vente",{"$f":"B32","v":0},"%"]
["Électricité additionnelle  maximale disponible pour la vente par an",{"$f":"B153*B152","v":0},"kWh / an"]
[]
["Coût d'investissement d'extension"]
["Description d'article","Prix (AR)","Longévité (années)","Quantité","Coût total"]
["Turbine additionnelle",null,null,1,{"$f":"D158*B158","v":0}]
["Transport",null,20,1,0]
["Autres"]
["-",null,null,null,0]
["-",null,null,null,0]
["-",null,null,null,0]
["-",null,null,null,0]
["Cout total d'extension",null,null,null,{"$f":"SUM(E158:E164)","v":0}]
[]
["Données d'entrée pour le calcul de recette"]
[]
[]
["Il y a des différentes possibilités pour vendre l'électricité. D'une part l'électricité peut être produite pour la consommation directe des ménages ou entreprises. D'autre part il y a la possibilité d'une alimentation du réseau de JIRAMA. Une combinaison est possible aussi. S'il vous plaît choisissez les chemins de vente de l'électricité."]
[]
[]
[]
["Structure de la vente d'électricité"]
[]
["Ménages /Entreprises",true]
[]
["Alimentation réseau (JIRAMA)",true]
[]
[]
[{"$f":"IF(B176=TRUE,\"1) Ménages /Entreprises: Les différents tarifs\",\"1) Ménages /Entreprises: Les différents tarifs - NON ACTIVÉ\")","v":"1) Ménages /Entreprises: Les différents tarifs"}]
[]
["Pour la vente d'électricité trois tarifs différents peuvent être employés seuls ou combinés. Choisissez les tarifs que vous emploierez en cliquant sur les boîtes de contrôle à côté des noms de tarif."]
[]
[]
[{"$nulls":19},"Exemples d'équipements électriques"]
[{"$f":"IF(B176=TRUE,\"A) Forfait (Consommation limitée, Prix fixe)\",\" \")","v":"A) Forfait (Consommation limitée, Prix fixe)"},null,true,"autres tarifs",null,{"$f":"IF(B176=TRUE,\"B) Tarif fixe (consommation illimitée à un prix fixe par kWh)\",\" \")","v":"B) Tarif fixe (consommation illimitée à un prix fixe par kWh)"},null,true,null,"autre tarif",null,{"$f":"IF(B176=TRUE,\"C) Tarif flexible (depandant de la consommation)\",\" \")","v":"C) Tarif flexible (depandant de la consommation)"},null,true,"exemples d'équipements électriques",{"$nulls":4},"Equipements","kW par heure","Equipements","kW par heure"]
[{"$nulls":19},"Réfrigérateur et congélateur (normal)",0.1,"Radio Cassette",0.02]
["Description","Valeur","Unité",null,null,"Description","Valeur","Unité",null,null,null,"Description","Valeur","Unité",{"$nulls":5},"Climatiseur",0.75,"Chaine stéréo",0.12]
[{"$f":"IF($C$187=TRUE,\"Frais de branchement moyen\",\" \")","v":"Frais de branchement moyen"},{"$f":"B90","v":0},{"$f":"IF(C187=TRUE,\"AR\",\" \")","v":"AR"},null,null,{"$f":"IF($H$187=TRUE,\"Frais de branchement moyen\",\" \")","v":"Frais de branchement moyen"},{"$f":"B91","v":0},{"$f":"IF(H187=TRUE,\"AR\",\" \")","v":"AR"},null,null,null,{"$f":"IF(N187=TRUE,\"Frais de branchement moyen\",\" \")","v":"Frais de branchement moyen"},0,{"$f":"IF($N$187=TRUE,\"AR\",\" \")","v":"AR"},{"$nulls":5},"Chauffage électrique",1,"Téléviseur (couleur)",0.1]
[{"$f":"IF($C$187=TRUE,\"Tarif forfait (annuelle)\",\" \")","v":"Tarif forfait (annuelle)"},0,{"$f":"IF(C187=TRUE,\"AR\",\" \")","v":"AR"},null,null,{"$f":"IF(H187=TRUE,\"Taxe d'abonnement par connexion (frais pour louer un compteur inclus)\",\" \")","v":"Taxe d'abonnement par connexion (frais pour louer un compteur inclus)"},0,{"$f":"IF(H187=TRUE,\"AR\",\" \")","v":"AR"},null,null,null,{"$f":"IF(N187=TRUE,\"Taxe d'abonnement par connexion (le frais pour louer un compteur inclu)\",\" \")","v":"Taxe d'abonnement par connexion (le frais pour louer un compteur inclu)"},0,{"$f":"IF($N$187=TRUE,\"AR\",\" \")","v":"AR"},{"$nulls":5},"Ventilateur (portatif)",0.12,"Téléviseur (N&B)",0.06]
[{"$f":"IF($C$187=TRUE,\"Prix par kWh\",\" \")","v":"Prix par kWh"},{"$f":"B191/B193","v":{"$error":"#DIV/0!"}},{"$f":"IF(C187=TRUE,\"AR/kWh\",\" \")","v":"AR/kWh"},null,null,{"$f":"IF(H187=TRUE,\"Tarif d'électricité\",\" \")","v":"Tarif d'électricité"},0,{"$f":"IF(H187=TRUE,\"AR / kWh\",\" \")","v":"AR / kWh"},null,null,null,{"$f":"IF(N187=TRUE,\"Tarif d'électricité\",\" \")","v":"Tarif d'électricité"},{"$f":"IF(N187=TRUE,Q210,0)","v":{"$error":"#DIV/0!"}},{"$f":"IF(N187=TRUE,\"AR / kWh\",\" \")","v":"AR / kWh"},{"$nulls":5},"Lampe fluorescente tube (50W)",0.05,"Pompe à eau",1]
[{"$f":"IF($C$187=TRUE,\"Consommation fixe par connexion (annuelle)\",\" \")","v":"Consommation fixe par connexion (annuelle)"},0,{"$f":"IF(C187=TRUE,\"Kilowatt-heure /a\",\" \")","v":"Kilowatt-heure /a"},null,null,{"$f":"IF(H187=TRUE,\"Consommation moyenne par connexion (annuelle)\",\" \")","v":"Consommation moyenne par connexion (annuelle)"},{"$f":"IF(H187=TRUE,I211*12,0)","v":{"$error":"#DIV/0!"}},{"$f":"IF(H187=TRUE,\"Kilowatt-heure\",\" \")","v":"Kilowatt-heure"},null,null,null,{"$f":"IF(N187=TRUE,\"Consommation moyenne par connexion (annuelle)\", \" \" )","v":"Consommation moyenne par connexion (annuelle)"},{"$f":"IF(N187=TRUE,(O211*12),0)","v":{"$error":"#DIV/0!"}},{"$f":"IF(N187=TRUE,\"Kilowatt-heure\",\" \")","v":"Kilowatt-heure"},{"$nulls":5},"Lampe fluorescente compacte (24W)",2.4E-2,"Répondeur",6.0000000000000001E-3]
[{"$f":"IF($C$187=TRUE,\"Progression annuelle de la consommation (en %)\",\" \")","v":"Progression annuelle de la consommation (en %)"},0,{"$f":"IF($C$187=TRUE,\"%\",\" \")","v":"%"},null,null,{"$f":"IF(H187=TRUE,\"Progression moyenne de la consommation (en % et par ans)\",\" \")","v":"Progression moyenne de la consommation (en % et par ans)"},0,{"$f":"IF(H187=TRUE,\"%\",\" \")","v":"%"},null,null,null,{"$f":"IF(N187=TRUE,\"Progression moyenne de la consommation (en % et par ans)\",\" \")","v":"Progression moyenne de la consommation (en % et par ans)"},0,{"$f":"IF(N187=TRUE,\"%\",\" \")","v":"%"},{"$nulls":5},"Téléphone portable",3.0000000000000001E-3,"Radio",5.0000000000000001E-3]
[]
[]
[{"$nulls":5},{"$f":"IF(H187=TRUE,\"Tableau supplétif pour l'estimation de la consommation moyenne d'électricité\",\" \")","v":"Tableau supplétif pour l'estimation de la consommation moyenne d'électricité"},{"$nulls":5},{"$f":"IF(N187=TRUE,\"Tableau supplétif pour l'estimation de la consommation et du tarif d'électricité\",\" \")","v":"Tableau supplétif pour l'estimation de la consommation et du tarif d'électricité"}]
[{"$nulls":11},{"$f":"IF(N187=TRUE,\"Calcul de la consommation moyenne\", \" \")","v":"Calcul de la consommation moyenne"},null,null,null,{"$f":"IF(N187=TRUE,\"Calcul du tarif moyen\", \" \")","v":"Calcul du tarif moyen"}]
[{"$nulls":5},{"$f":"IF(H187=TRUE,\"Catégorie de consommateur\",\" \")","v":"Catégorie de consommateur"},{"$f":"IF(H187=TRUE,\"Consommation par connexion dans la catégorie (kWh/ mois)\",\"\")","v":"Consommation par connexion dans la catégorie (kWh/ mois)"},{"$f":"IF(H187=TRUE,\"Connexions (total par catégorie)\",\"\")","v":"Connexions (total par catégorie)"},{"$f":"IF(H187=TRUE,\"Consommation totale (kWh) par mois\", \" \")","v":"Consommation totale (kWh) par mois"},null,null,{"$f":"IF(N187=TRUE,\"Catégorie de consommateur\",\" \")","v":"Catégorie de consommateur"},{"$f":"IF(N187=TRUE,\"Consommation par connexion dans la catégorie (kWh/ mois)\",\"\")","v":"Consommation par connexion dans la catégorie (kWh/ mois)"},{"$f":"IF(N187=TRUE,\"Connexions (total par catégorie)\",\"\")","v":"Connexions (total par catégorie)"},{"$f":"IF(N187=TRUE,\"Consommation totale (kWh) par mois\", \" \")","v":"Consommation totale (kWh) par mois"},{"$f":"IF(N187=TRUE,\"Tarif progressif pour les catégories de consommation (AR / kWh)\", \" \")","v":"Tarif progressif pour les catégories de consommation (AR / kWh)"},{"$f":"IF(N187=TRUE,\"Tarif pondéré\", \" \")","v":"Tarif pondéré"}]
[{"$nulls":5},{"$f":"IF($H$187=TRUE,\"1\",\" \")","v":"1"},0,0,{"$f":"H200*G200","v":0},null,null,{"$f":"IF($N$187=TRUE,\"1\", \" \")","v":"1"},0,0,{"$f":"N200*M200","v":0},0,{"$f":"(M200/SUM($M$200:$M$209))*P200","v":{"$error":"#DIV/0!"}}]
[{"$nulls":5},{"$f":"IF($H$187=TRUE,\"2\",\" \")","v":"2"},null,null,0,null,null,{"$f":"IF($N$187=TRUE,\"2\", \" \")","v":"2"},null,null,0,null,{"$error":"#DIV/0!"}]
[{"$nulls":5},{"$f":"IF($H$187=TRUE,\"3\",\" \")","v":"3"},null,null,0,null,null,{"$f":"IF($N$187=TRUE,\"3\", \" \")","v":"3"},null,null,0,null,{"$error":"#DIV/0!"}]
[{"$nulls":5},{"$f":"IF($H$187=TRUE,\"4\",\" \")","v":"4"},null,null,0,null,null,{"$f":"IF($N$187=TRUE,\"4\", \" \")","v":"4"},null,null,0,null,{"$error":"#DIV/0!"}]
[{"$nulls":5},{"$f":"IF($H$187=TRUE,\"5\",\" \")","v":"5"},null,null,0,null,null,{"$f":"IF($N$187=TRUE,\"5\", \" \")","v":"5"},null,null,0,null,{"$error":"#DIV/0!"}]
[{"$nulls":5},6,null,null,0,null,null,6,null,null,0,null,{"$error":"#DIV/0!"}]
[{"$nulls":5},7,null,null,0,null,null,7,null,null,0,null,{"$error":"#DIV/0!"}]
[{"$nulls":5},8,null,null,0,null,null,8,null,null,0,null,{"$error":"#DIV/0!"}]
[{"$nulls":5},9,null,null,0,null,null,9,null,null,0,null,{"$error":"#DIV/0!"}]
[{"$nulls":5},10,null,null,0,null,null,10,null,null,0,null,{"$error":"#DIV/0!"}]
[{"$nulls":5},{"$f":"IF(H187=TRUE,\"Total (connexion et consommation)\",\" \")","v":"Total (connexion et consommation)"},null,{"$f":"SUM(H200:H209)","v":0},{"$f":"SUM(I200:I209)","v":0},null,null,{"$f":"IF(N187=TRUE,\"Total (connexion et consommation)\", \" \")","v":"Total (connexion et consommation)"},null,{"$f":"SUM(N200:N209)","v":0},{"$f":"SUM(O200:O209)","v":0},{"$f":"IF(N187=TRUE,\"Tarif moyen\", \" \")","v":"Tarif moyen"},{"$f":"SUM(Q200:Q209)","v":{"$error":"#DIV/0!"}}]
[{"$nulls":5},{"$f":"IF(H187=TRUE,\"Consommation moyenne par mois (kWh)\",\" \")","v":"Consommation moyenne par mois (kWh)"},null,null,{"$f":"I210/H210","v":{"$error":"#DIV/0!"}},null,null,{"$f":"IF(N187=TRUE,\"Consommation moyenne par mois (kWh)\",\" \")","v":"Consommation moyenne par mois (kWh)"},null,null,{"$f":"O210/N210","v":{"$error":"#DIV/0!"}}]
[]
[]
[]
[{"$f":"IF(B176=TRUE,\"1) Ménages /Entreprises: Les connexions par période\",\"1) Ménages /Entreprises: Les connexions par période - NON ACTIVÉ\")","v":"1) Ménages /Entreprises: Les connexions par période"}]
[]
[]
[{"$f":"IF(B176=TRUE,\"Connexions totales par période\",\" \")","v":"Connexions totales par période"}]
[{"$f":"IF(B176=TRUE,\"Période (t)\",\" \")","v":"Période (t)"},{"$f":"IF(B176=TRUE,\"Connexions de tous les tarifs par période (totales)\",\" \")","v":"Connexions de tous les tarifs par période (totales)"},{"$f":"IF(B176=TRUE, IF(C187=TRUE,\"Connexions au forfait\",\" \"),\" \")","v":"Connexions au forfait"},{"$f":"IF(B176=TRUE,IF(H187=TRUE,\"Connexions au tarif fixe\",\" \"),\" \")","v":"Connexions au tarif fixe"},{"$f":"IF(B176=TRUE,IF(N187=TRUE,\"Connexions au tarif variable\",\" \"),\" \")","v":"Connexions au tarif variable"},{"$f":"IF(B176=TRUE,\"Contrôle: Production maximale - Consommation totale\",\" \")","v":"Contrôle: Production maximale - Consommation totale"}]
[null,null,{"$f":"IF(B176=TRUE,\"Indication des connexions (Voyez le commentaire à la droite)\",\" \")","v":"Indication des connexions (Voyez le commentaire à la droite)"}]
[0,{"$f":"C221+D221+E221","v":0},0,0,0,{"$f":"($B$31*$B$32+IF(A221>$B$149,$B$154))-(C221*$B$193*(1+$B$194)^A221+$G$193*D221*(1+$G$194)^A221+E221*$M$193*(1+$M$194)^A221)","v":{"$error":"#DIV/0!"}}]
[1,{"$f":"C222+D222+E222","v":0},{"$f":"C221","v":0},{"$f":"D221","v":0},{"$f":"E221","v":0},{"$error":"#DIV/0!"}]
[2,0,0,{"$f":"D222","v":0},{"$f":"E222","v":0},{"$error":"#DIV/0!"}]
[3,0,0,0,0,{"$error":"#DIV/0!"}]
[4,0,0,0,0,{"$error":"#DIV/0!"}]
[5,0,0,0,0,{"$error":"#DIV/0!"}]
[6,0,0,0,0,{"$error":"#DIV/0!"}]
[7,0,0,0,0,{"$error":"#DIV/0!"}]
[8,0,0,0,0,{"$error":"#DIV/0!"}]
[9,0,0,0,0,{"$error":"#DIV/0!"}]
[10,0,0,0,0,{"$error":"#DIV/0!"}]
[11,0,0,0,0,{"$error":"#DIV/0!"}]
[12,0,0,0,0,{"$error":"#DIV/0!"}]
[13,0,0,0,0,{"$error":"#DIV/0!"}]
[14,0,0,0,0,{"$error":"#DIV/0!"}]
[15,0,0,0,0,{"$error":"#DIV/0!"}]
[16,0,0,0,0,{"$error":"#DIV/0!"}]
[17,0,0,0,0,{"$error":"#DIV/0!"}]
[18,0,0,0,0,{"$error":"#DIV/0!"}]
[19,0,0,0,0,{"$error":"#DIV/0!"}]
[20,0,0,0,0,{"$error":"#DIV/0!"}]
[]
["Total des connexions installées",{"$f":"B241","v":0},{"$f":"IF(C187=TRUE,C241,0)","v":0},{"$f":"IF(H187=TRUE,D241,0)","v":0},{"$f":"IF(N187=TRUE,E241,0)","v":0}]
[]
[]
["Contrôle: Numéro des connexions"]
["Connexions déclarées au tableau \"Connexions nouvelles par période\"",null,"Connexions déclarées aux tableaux supplétifs des tarifs"]
["Tarif fixe","Tarif flexible","Tarif fixe","Tarif flexible"]
[{"$f":"ROUND(D243,0)","v":0},{"$f":"E243","v":0},{"$f":"IF(H187=TRUE,ROUND(H210,0),0)","v":0},{"$f":"IF(N187=TRUE,N210,0)","v":0}]
[]
[]
[]
[]
[]
[{"$f":"IF(B178=TRUE,\"2) Vente à la JIRAMA\",\"2) Vente à la JIRAMA - NON ACTIVÉ (pour activer voyez la cellule B151)\")","v":"2) Vente à la JIRAMA"}]
[]
[]
[]
[{"$f":"IF(B178=TRUE,\"Tarif d'alimentation\",\" \")","v":"Tarif d'alimentation"},0,{"$f":"IF(B178=TRUE,\"AR/kWh\", \" \")","v":"AR/kWh"}]
[{"$f":"IF(B178=TRUE,\"Vente à la JIRAMA constante envisagée (annuelle)\", \" \")","v":"Vente à la JIRAMA constante envisagée (annuelle)"},0,{"$f":"IF(B178=TRUE,\"kWh/a\", \" \")","v":"kWh/a"}]
[{"$f":"IF(B178=TRUE,\"Alimentation maximale - acceptée par JIRAMA\",\" \")","v":"Alimentation maximale - acceptée par JIRAMA"},0,{"$f":"IF(B178=TRUE,\"kWh/a\", \" \")","v":"kWh/a"}]
[]
[{"$f":"IF(B178=TRUE,\"Période (t)\",\" \")","v":"Période (t)"},{"$f":"IF(B178=TRUE,\"Alimentation en kWh\", \" \")","v":"Alimentation en kWh"},{"$f":"IF(B178=TRUE,\"Électricité maximale, disponible pour l'alimentation (kWh)\", \" \")","v":"Électricité maximale, disponible pour l'alimentation (kWh)"},"Alimentation maximale à ne pas dépasser"]
[0,{"$f":"$B$260","v":0},{"$f":"($B$31*$B$32+IF(A221>$B$149,$B$154))-(IF($C$187=TRUE,C221*$B$193*(1+$B$194)^A264,0)+IF($H$187=TRUE,$G$193*D221*(1+$G$194)^A264,0)+IF($N$187=TRUE,E221*$M$193*(1+$M$194)^A264,0))","v":{"$error":"#DIV/0!"}},{"$f":"B264","v":0}]
[1,0,{"$error":"#DIV/0!"},{"$f":"B265","v":0}]
[2,0,{"$error":"#DIV/0!"},0]
[3,0,{"$error":"#DIV/0!"},0]
[4,0,{"$error":"#DIV/0!"},0]
[5,0,{"$error":"#DIV/0!"},0]
[6,0,{"$error":"#DIV/0!"},0]
[7,0,{"$error":"#DIV/0!"},0]
[8,0,{"$error":"#DIV/0!"},0]
[9,0,{"$error":"#DIV/0!"},0]
[10,0,{"$error":"#DIV/0!"},0]
[11,0,{"$error":"#DIV/0!"},0]
[12,0,{"$error":"#DIV/0!"},0]
[13,0,{"$error":"#DIV/0!"},0]
[14,0,{"$error":"#DIV/0!"},0]
[15,0,{"$error":"#DIV/0!"},0]
[16,0,{"$error":"#DIV/0!"},0]
[17,0,{"$error":"#DIV/0!"},0]
[18,0,{"$error":"#DIV/0!"},0]
[19,0,{"$error":"#DIV/0!"},0]
[20,0,{"$error":"#DIV/0!"},0]
[]
[]
[]
[]
["Financement"]
[]
[]
["1) Capitaux propres"]
[]
["Capitaux propres",0,"AR"]
["Pourcentage des coûts d'investissement",{"$f":"(100/('3 Coût total'!B7-'3 Coût total'!B42))*B294/100","v":{"$error":"#DIV/0!"}},"%"]
[]
["2) Subvention d'ADER"]
[]
["Pourcentage des coûts d'investissement",0,"%"]
["Montant en AR",{"$f":"B299*('3 Coût total'!B7-'3 Coût total'!B42)","v":0},"AR"]
[]
[]
["3) Fonds d'autres donneurs / investisseurs"]
[]
["Forme"]
["Prêt ",0,"AR"]
["Subvention",0,"AR"]
[]
["Condition de prêt d'autres donneurs / investisseurs"]
["Taux d'intérêt ",null,0]
["Durée de remboursement du principal (années)",null,0]
["Période de grâce (années)",null,0]
["Paiement d'intérêt pendant la période de grâce",null,false]
[null,null,{"$f":"IF(C313=TRUE,\"(=OUI)\",\"(=NON)\")","v":"(=NON)"}]
["Durée de prêt (années totales)",null,{"$f":"C312+C311","v":0}]
["Frais de gestion / provision (pourcentage du crédit total)",null,0]
[]
["Modalité de prêt (d'autre donneurs / investisseurs)"]
["Option 1: Amortissement fractionné",0,"% de prêt total"]
["Option 2: Amortissement final",0,"% de prêt total"]
["Option 3: Remboursement vers l'annuité constante",0,"% de prêt total"]
[{"$f":"IF(B306=0,\" \",\"Contrôle: Pourcentage de la division de prêt (Somme des prêts divisés doit être 100%)\")","v":" "},{"$f":"IF(B306=0,\"-\",'1 Données d''entrée'!B320+'1 Données d''entrée'!B319+B321)","v":"-"},{"$f":"IF(B306=0,\" \",\"% de prêt total\")","v":" "}]
[]
[]
["3) Prêt bancaire"]
[]
["Montant en AR",{"$f":"'6 Financement'!B11","v":0},"AR"]
["Pourcentage des coûts d'investissement",{"$f":"'6 Financement'!C11","v":{"$error":"#DIV/0!"}},"%"]
[]
[]
["Condition de prêt bancaire"]
["Taux d'intérêt",null,0]
["Durée de remboursement du principal (années)",null,0]
["Période de grâce (années)",null,0]
["Paiement d'intérêt pendant la période de grâce",null,false]
[null,null,{"$f":"IF(C335=TRUE,\"(=OUI)\",\"(=NON)\")","v":"(=NON)"}]
["Durée de prêt (années totales)",null,{"$f":"C334+C333","v":0}]
["Frais de gestion / provision (pourcentage du crédit total)",null,0]
[]
[]
["Modalité de prêt bancaire"]
["Option 1: Remboursement du principal fractionné",0,"% de prêt total"]
["Option 2: Remboursement du principal final",0,"% de prêt total"]
["Option 3: Remboursement vers l'annuité constante",0,"% de prêt total"]
["Contrôle: Pourcentage de la division de prêt (Somme des prêts divisés doit être 100%)",{"$f":"'1 Données d''entrée'!B343+'1 Données d''entrée'!B342+B344","v":0},"% de prêt total"]
[]
[]
[]
["Taxation"]
[]
["Impôt sur les bénéfices"]
["N°","Nom de la taxe","%"]
[1,"IBS",0.4]
[]
["Impôt sur les chiffres d'affaire"]
["N°","Nom de la taxe","%"]
[2,"ORE",1.2500000000000001E-2]
[]
[]
[]
[]
["Impôt sur la vente d'électricité (sur la facture)"]
["N°","Nom de la taxe","%"]
[1,"TVA",0.2]
[2,"FNE",1.2500000000000001E-2]
[3,"Taxe communale",0.1]
["Total",null,{"$f":"(C364+C366)","v":0.30000000000000004}]
[]
[]
[]
[]
[]
["Risque et insécurité"]
[]
["Taux de recouvrement ",1,"%"]
[]
[]
[]
[]
["Analyse de scénarios"]
["Scénario","Variation de coût","Variation de recette"]
["Le meilleur",0,0]
["Le plus probable",0,0]
["Le pire",0,0]

{"sheet":"2 Questionnaire qualitatif","index":3,"n_rows":73,"n_cols":5,"rows_kept":73,"cut":false,"hidden":false,"merged":[[10,1,10,7],[3,0,3,7],[6,1,6,7],[30,1,30,7],[58,1,58,7],[36,1,39,7],[42,1,42,7],[49,1,49,7],[51,1,54,7],[65,4,65,7],[22,1,22,7],[34,1,34,7],[12,1,15,7],[24,1,27,7],[62,4,62,7],[63,4,63,7],[18,1,18,7],[64,4,64,7],[61,4,61,7],[71,4,71,7],[66,4,66,7],[67,4,67,7],[68,4,68,7],[69,4,69,7],[70,4,70,7]]}
["Questionnaire qualitatif"]
[]
[]
["Dans ce bref questionnaire, vous trouvez des questions qui aident à analyser qualitativement le projet. "]
[]
[]
[1,"Est-ce que vous avez déjà commencé des activités pour réaliser le projet?"]
[]
[null,"Oui",false,"Non"]
[]
[null,"Si oui, décrivez s'il vous plaît à quelle stade du projet vous en êtes et décrivez quelles étapes sont déjà accomplies (par exemple: découverte du terrain ou APD réalisée)? "]
{"$rows_empty":7}
[2,"Est-ce que vous (votre entreprise / institution) avez réalisé d'autres projets?"]
[]
[null,"Oui",false,"Non"]
[]
[null,"Si oui, détaillez:"]
{"$rows_empty":7}
[3,"Suivez-vous une approche définie pour l'électrification rurale?"]
[]
[null,"Oui",false,"Non"]
[]
[null,"Si oui, indiquez s'il vous plaît brièvement les points centraux de votre approche (participation de la population locale, concept durable,…):"]
{"$rows_empty":7}
[4,"Dans le processus de développement et réalisation du projet, comment définissez-vous le degré de la participation de la population locale? "]
[]
[null,"Haut",false]
[null,"Moyen",false]
[null,"Faible",false]
[null,"Aucune",false]
[]
[null,"Si oui, dans quelles mesures (la population participe au projet)?"]
{"$rows_empty":8}
[5,"Qui sont les responsables pour l'implémentation du projet? Indiquez, s'il vous plaît leur expérience dans le secteur hydroélectrique (années, bref descriptif)."]
[]
[]
[null,"N°","Nom","Expérience (années)","Description  d'expérience"]
[null,1,"-"]
[null,2,"-"]
[null,3,"-"]
[null,4,"-"]
[null,5,"-"]
[null,6,"-"]
[null,7,"-"]
[null,8,"-"]
[null,9,"-"]
[null,10,"-"]
[null,null,"Somme",{"$f":"SUM(D63:D72)","v":0}]

{"sheet":"3 Coût total","index":4,"n_rows":232,"n_cols":23,"rows_kept":232,"cut":false,"hidden":false,"merged":[[208,0,208,1],[205,7,205,8],[66,3,66,6],[69,0,69,3],[147,0,147,3],[148,0,149,0],[145,0,145,4],[128,0,128,1],[206,0,206,1],[204,0,204,1],[202,3,202,4],[173,3,173,6],[204,9,204,10],[205,9,205,10],[204,7,204,8],[205,5,205,6],[66,0,67,0],[173,2,174,2],[200,0,200,3],[173,1,174,1],[103,0,103,3],[75,0,75,3],[148,3,148,6],[148,1,149,1],[148,2,149,2],[173,0,174,0],[61,0,61,2],[172,0,172,3],[0,0,0,5],[4,0,4,5],[29,0,29,3],[2,0,2,5],[39,0,39,2],[58,0,58,1],[66,2,67,2],[66,1,67,1]]}
["Coût total "]
[]
["Le coût total est la somme des coûts d'investissement, des coûts de réinvestissement et des coûts d'opération et de maintenance. Au dessous de l'aperçu du coût, la dérivation des trois sortes de coûts calculés dans les tableaux supplétifs ci dessous permet de mieux comprendre l'analyse."]
[]
["Coût total"]
["Période (t)","Coût d'investissement et de branchement","Coût de réinvestissement","Coût d'opération et de maintenance","Coût total par période","Coût total cumulé"]
[0,{"$f":"B35+B36+B37+B38+B42","v":0},0,0,{"$f":"IF('3 Coût total'!A7>'1 Données d''entrée'!$H$32,0,B7+C7+D7)","v":0},{"$f":"E7","v":0}]
[1,{"$f":"C$42","v":0},{"$f":"'3 Coût total'!D$62+IF(A8='1 Données d''entrée'!$B$149,'1 Données d''entrée'!$E$165,0)","v":0},{"$f":"$B$203","v":0},{"$f":"IF('3 Coût total'!A8>'1 Données d''entrée'!$H$32,0,B8+C8+D8)","v":0},{"$f":"F7+E8","v":0}]
[2,{"$f":"D$42","v":0},{"$f":"'3 Coût total'!E$62+IF(A9='1 Données d''entrée'!$B$149,'1 Données d''entrée'!$E$165,0)","v":0},0,{"$f":"IF('3 Coût total'!A9>'1 Données d''entrée'!$H$32,0,B9+C9+D9)","v":0},0]
[3,{"$f":"E$42","v":0},{"$f":"'3 Coût total'!F$62+IF(A10='1 Données d''entrée'!$B$149,'1 Données d''entrée'!$E$165,0)","v":0},0,{"$f":"IF('3 Coût total'!A10>'1 Données d''entrée'!$H$32,0,B10+C10+D10)","v":0},0]
[4,{"$f":"F$42","v":0},{"$f":"'3 Coût total'!G$62+IF(A11='1 Données d''entrée'!$B$149,'1 Données d''entrée'!$E$165,0)","v":0},0,{"$f":"IF('3 Coût total'!A11>'1 Données d''entrée'!$H$32,0,B11+C11+D11)","v":0},0]
[5,{"$f":"G$42","v":0},{"$f":"'3 Coût total'!H$62+IF(A12='1 Données d''entrée'!$B$149,'1 Données d''entrée'!$E$165,0)","v":0},0,{"$f":"IF('3 Coût total'!A12>'1 Données d''entrée'!$H$32,0,B12+C12+D12)","v":0},0]
[6,{"$f":"H$42","v":0},{"$f":"'3 Coût total'!I$62+IF(A13='1 Données d''entrée'!$B$149,'1 Données d''entrée'!$E$165,0)","v":0},0,{"$f":"IF('3 Coût total'!A13>'1 Données d''entrée'!$H$32,0,B13+C13+D13)","v":0},0]
[7,{"$f":"I$42","v":0},{"$f":"'3 Coût total'!J$62+IF(A14='1 Données d''entrée'!$B$149,'1 Données d''entrée'!$E$165,0)","v":0},0,{"$f":"IF('3 Coût total'!A14>'1 Données d''entrée'!$H$32,0,B14+C14+D14)","v":0},0]
[8,{"$f":"J$42","v":0},{"$f":"'3 Coût total'!K$62+IF(A15='1 Données d''entrée'!$B$149,'1 Données d''entrée'!$E$165,0)","v":0},0,{"$f":"IF('3 Coût total'!A15>'1 Données d''entrée'!$H$32,0,B15+C15+D15)","v":0},0]
[9,{"$f":"K$42","v":0},{"$f":"'3 Coût total'!L$62+IF(A16='1 Données d''entrée'!$B$149,'1 Données d''entrée'!$E$165,0)","v":0},0,{"$f":"IF('3 Coût total'!A16>'1 Données d''entrée'!$H$32,0,B16+C16+D16)","v":0},0]
[10,{"$f":"L$42","v":0},{"$f":"'3 Coût total'!M$62+IF(A17='1 Données d''entrée'!$B$149,'1 Données d''entrée'!$E$165,0)","v":0},0,{"$f":"IF('3 Coût total'!A17>'1 Données d''entrée'!$H$32,0,B17+C17+D17)","v":0},0]
[11,{"$f":"M$42","v":0},{"$f":"'3 Coût total'!N$62+IF(A18='1 Données d''entrée'!$B$149,'1 Données d''entrée'!$E$165,0)","v":0},0,{"$f":"IF('3 Coût total'!A18>'1 Données d''entrée'!$H$32,0,B18+C18+D18)","v":0},0]
[12,{"$f":"N$42","v":0},{"$f":"'3 Coût total'!O$62+IF(A19='1 Données d''entrée'!$B$149,'1 Données d''entrée'!$E$165,0)","v":0},{"$f":"$B$203","v":0},{"$f":"IF('3 Coût total'!A19>'1 Données d''entrée'!$H$32,0,B19+C19+D19)","v":0},0]
[13,{"$f":"O$42","v":0},{"$f":"'3 Coût total'!P$62+IF(A20='1 Données d''entrée'!$B$149,'1 Données d''entrée'!$E$165,0)","v":0},0,{"$f":"IF('3 Coût total'!A20>'1 Données d''entrée'!$H$32,0,B20+C20+D20)","v":0},0]
[14,{"$f":"P$42","v":0},{"$f":"'3 Coût total'!Q$62+IF(A21='1 Données d''entrée'!$B$149,'1 Données d''entrée'!$E$165,0)","v":0},0,{"$f":"IF('3 Coût total'!A21>'1 Données d''entrée'!$H$32,0,B21+C21+D21)","v":0},0]
[15,{"$f":"Q$42","v":0},{"$f":"'3 Coût total'!R$62+IF(A22='1 Données d''entrée'!$B$149,'1 Données d''entrée'!$E$165,0)","v":0},0,{"$f":"IF('3 Coût total'!A22>'1 Données d''entrée'!$H$32,0,B22+C22+D22)","v":0},0]
[16,{"$f":"R$42","v":0},{"$f":"'3 Coût total'!S$62+IF(A23='1 Données d''entrée'!$B$149,'1 Données d''entrée'!$E$165,0)","v":0},0,{"$f":"IF('3 Coût total'!A23>'1 Données d''entrée'!$H$32,0,B23+C23+D23)","v":0},0]
[17,{"$f":"S$42","v":0},{"$f":"'3 Coût total'!T$62+IF(A24='1 Données d''entrée'!$B$149,'1 Données d''entrée'!$E$165,0)","v":0},0,{"$f":"IF('3 Coût total'!A24>'1 Données d''entrée'!$H$32,0,B24+C24+D24)","v":0},0]
[18,{"$f":"T$42","v":0},{"$f":"'3 Coût total'!U$62+IF(A25='1 Données d''entrée'!$B$149,'1 Données d''entrée'!$E$165,0)","v":0},0,{"$f":"IF('3 Coût total'!A25>'1 Données d''entrée'!$H$32,0,B25+C25+D25)","v":0},0]
[19,{"$f":"U$42","v":0},{"$f":"'3 Coût total'!V$62+IF(A26='1 Données d''entrée'!$B$149,'1 Données d''entrée'!$E$165,0)","v":0},0,{"$f":"IF('3 Coût total'!A26>'1 Données d''entrée'!$H$32,0,B26+C26+D26)","v":0},0]
[20,{"$f":"V$42","v":0},{"$f":"'3 Coût total'!W$62+IF(A27='1 Données d''entrée'!$B$149,'1 Données d''entrée'!$E$165,0)","v":0},0,{"$f":"IF('3 Coût total'!A27>'1 Données d''entrée'!$H$32,0,B27+C27+D27)","v":0},0]
[]
[]
["Coût d'investissement"]
[]
["Coût total d'investissement initial",{"$f":"B35+B36+B37+B38+B42","v":0}]
[]
["Description","Coût total par terrain d'action"]
["1 Travaux préparatoires",{"$f":"SUM('1 Données d''entrée'!E46:E48)","v":0}]
["2 Construction du site",{"$f":"'1 Données d''entrée'!E53+SUM('1 Données d''entrée'!E55:E61)+'1 Données d''entrée'!E63+'1 Données d''entrée'!E64+'1 Données d''entrée'!E66+'1 Données d''entrée'!E68+SUM('1 Données d''entrée'!E71:E80)","v":0}]
["3 Construction du réseau de T&D",{"$f":"SUM('1 Données d''entrée'!E85:E88)+'1 Données d''entrée'!E93+SUM('1 Données d''entrée'!E97:E106)","v":0}]
["4 Licences / assurances",{"$f":"SUM('1 Données d''entrée'!E110:E111)+SUM('1 Données d''entrée'!E114:E118)","v":0}]
[]
["Coût de branchement par période"]
["Période",0,1,2,3,4,5,6,7,8,9,10,11,12,13,14,15,16,17,18,19,20]
["Coût total de branchement",{"$f":"B44+B43","v":0},0,0,0,0,0,0,0,0,0,0,0,0,0,0,0,0,0,0,0,0]
["Branchement: Connexions forfait",{"$f":"'1 Données d''entrée'!C221*'1 Données d''entrée'!$B$90","v":0},{"$f":"('1 Données d''entrée'!C222-'1 Données d''entrée'!C221)*'1 Données d''entrée'!$B$90","v":0},{"$f":"('1 Données d''entrée'!$C223-'1 Données d''entrée'!$C222)*'1 Données d''entrée'!$B$90","v":0},{"$f":"('1 Données d''entrée'!C224-'1 Données d''entrée'!C223)*'1 Données d''entrée'!$B$90","v":0},{"$f":"('1 Données d''entrée'!C225-'1 Données d''entrée'!C224)*'1 Données d''entrée'!$B$90","v":0},{"$f":"('1 Données d''entrée'!C226-'1 Données d''entrée'!C225)*'1 Données d''entrée'!$B$90","v":0},{"$f":"('1 Données d''entrée'!C227-'1 Données d''entrée'!C226)*'1 Données d''entrée'!$B$90","v":0},{"$f":"('1 Données d''entrée'!C228-'1 Données d''entrée'!C227)*'1 Données d''entrée'!$B$90","v":0},{"$f":"('1 Données d''entrée'!C229-'1 Données d''entrée'!C228)*'1 Données d''entrée'!$B$90","v":0},{"$f":"('1 Données d''entrée'!C230-'1 Données d''entrée'!C229)*'1 Données d''entrée'!$B$90","v":0},{"$f":"('1 Données d''entrée'!C231-'1 Données d''entrée'!C230)*'1 Données d''entrée'!$B$90","v":0},{"$f":"('1 Données d''entrée'!C232-'1 Données d''entrée'!C231)*'1 Données d''entrée'!$B$90","v":0},{"$f":"('1 Données d''entrée'!C233-'1 Données d''entrée'!C232)*'1 Données d''entrée'!$B$90","v":0},{"$f":"('1 Données d''entrée'!C234-'1 Données d''entrée'!C233)*'1 Données d''entrée'!$B$90","v":0},{"$f":"('1 Données d''entrée'!C235-'1 Données d''entrée'!C234)*'1 Données d''entrée'!$B$90","v":0},{"$f":"('1 Données d''entrée'!C236-'1 Données d''entrée'!C235)*'1 Données d''entrée'!$B$90","v":0},{"$f":"('1 Données d''entrée'!C237-'1 Données d''entrée'!C236)*'1 Données d''entrée'!$B$90","v":0},{"$f":"('1 Données d''entrée'!C238-'1 Données d''entrée'!C237)*'1 Données d''entrée'!$B$90","v":0},{"$f":"('1 Données d''entrée'!C239-'1 Données d''entrée'!C238)*'1 Données d''entrée'!$B$90","v":0},{"$f":"('1 Données d''entrée'!C240-'1 Données d''entrée'!C239)*'1 Données d''entrée'!$B$90","v":0},{"$f":"('1 Données d''entrée'!C241-'1 Données d''entrée'!C240)*'1 Données d''entrée'!$B$90","v":0}]
["Branchement: Connexions avec tarif (fixe / flexible)",{"$f":"('1 Données d''entrée'!D221+'1 Données d''entrée'!E221)*'1 Données d''entrée'!$B$91","v":0},{"$f":"(('1 Données d''entrée'!D222-'1 Données d''entrée'!D221)+('1 Données d''entrée'!E222-'1 Données d''entrée'!E221))*'1 Données d''entrée'!$B$91","v":0},{"$f":"(('1 Données d''entrée'!D223-'1 Données d''entrée'!D222)+('1 Données d''entrée'!E223-'1 Données d''entrée'!E222))*'1 Données d''entrée'!$B$91","v":0},{"$f":"(('1 Données d''entrée'!D224-'1 Données d''entrée'!D223)+('1 Données d''entrée'!E224-'1 Données d''entrée'!E223))*'1 Données d''entrée'!$B$91","v":0},{"$f":"(('1 Données d''entrée'!D225-'1 Données d''entrée'!D224)+('1 Données d''entrée'!E225-'1 Données d''entrée'!E224))*'1 Données d''entrée'!$B$91","v":0},{"$f":"(('1 Données d''entrée'!D226-'1 Données d''entrée'!D225)+('1 Données d''entrée'!E226-'1 Données d''entrée'!E225))*'1 Données d''entrée'!$B$91","v":0},{"$f":"(('1 Données d''entrée'!D227-'1 Données d''entrée'!D226)+('1 Données d''entrée'!E227-'1 Données d''entrée'!E226))*'1 Données d''entrée'!$B$91","v":0},{"$f":"(('1 Données d''entrée'!D228-'1 Données d''entrée'!D227)+('1 Données d''entrée'!E228-'1 Données d''entrée'!E227))*'1 Données d''entrée'!$B$91","v":0},{"$f":"(('1 Données d''entrée'!D229-'1 Données d''entrée'!D228)+('1 Données d''entrée'!E229-'1 Données d''entrée'!E228))*'1 Données d''entrée'!$B$91","v":0},{"$f":"(('1 Données d''entrée'!D230-'1 Données d''entrée'!D229)+('1 Données d''entrée'!E230-'1 Données d''entrée'!E229))*'1 Données d''entrée'!$B$91","v":0},{"$f":"(('1 Données d''entrée'!D231-'1 Données d''entrée'!D230)+('1 Données d''entrée'!E231-'1 Données d''entrée'!E230))*'1 Données d''entrée'!$B$91","v":0},{"$f":"(('1 Données d''entrée'!D232-'1 Données d''entrée'!D231)+('1 Données d''entrée'!E232-'1 Données d''entrée'!E231))*'1 Données d''entrée'!$B$91","v":0},{"$f":"(('1 Données d''entrée'!D233-'1 Données d''entrée'!D232)+('1 Données d''entrée'!E233-'1 Données d''entrée'!E232))*'1 Données d''entrée'!$B$91","v":0},{"$f":"(('1 Données d''entrée'!D234-'1 Données d''entrée'!D233)+('1 Données d''entrée'!E234-'1 Données d''entrée'!E233))*'1 Données d''entrée'!$B$91","v":0},{"$f":"(('1 Données d''entrée'!D235-'1 Données d''entrée'!D234)+('1 Données d''entrée'!E235-'1 Données d''entrée'!E234))*'1 Données d''entrée'!$B$91","v":0},{"$f":"(('1 Données d''entrée'!D236-'1 Données d''entrée'!D235)+('1 Données d''entrée'!E236-'1 Données d''entrée'!E235))*'1 Données d''entrée'!$B$91","v":0},{"$f":"(('1 Données d''entrée'!D237-'1 Données d''entrée'!D236)+('1 Données d''entrée'!E237-'1 Données d''entrée'!E236))*'1 Données d''entrée'!$B$91","v":0},{"$f":"(('1 Données d''entrée'!D238-'1 Données d''entrée'!D237)+('1 Données d''entrée'!E238-'1 Données d''entrée'!E237))*'1 Données d''entrée'!$B$91","v":0},{"$f":"(('1 Données d''entrée'!D239-'1 Données d''entrée'!D238)+('1 Données d''entrée'!E239-'1 Données d''entrée'!E238))*'1 Données d''entrée'!$B$91","v":0},{"$f":"(('1 Données d''entrée'!D240-'1 Données d''entrée'!D239)+('1 Données d''entrée'!E240-'1 Données d''entrée'!E239))*'1 Données d''entrée'!$B$91","v":0},{"$f":"(('1 Données d''entrée'!D241-'1 Données d''entrée'!D240)+('1 Données d''entrée'!E241-'1 Données d''entrée'!E240))*'1 Données d''entrée'!$B$91","v":0}]
{"$rows_empty":14}
["Coût de réinvestissement"]
[]
[null,null,"Période",1,2,3,4,5,6,7,8,9,10,11,12,13,14,15,16,17,18,19,20]
["Réinvestissement total par période",null,null,{"$f":"SUM(D72:D74)+SUM(D78:D102)+SUM(D106:D128)+SUM(D130:D138)+SUM(D151:D171)+SUM(D176:D196)","v":0},{"$f":"SUM(E72:E74)+SUM(E78:E102)+SUM(E106:E128)+SUM(E130:E138)+SUM(E151:E171)+SUM(E176:E196)","v":0},0,0,0,0,0,0,0,0,0,0,0,0,0,0,0,0,0,0]
[]
[]
[]
[]
["Terrain d'action et description d'article","Longévité","Réinvestissement (AR)","Réinvestissement (période t)"]
[null,null,null,1,2,3,4,5,6,7,8,9,10,11,12,13,14,15,16,17,18,19,20]
[]
["1 Travaux préparatoires"]
["Coût d'ingénierie et design"]
["L'avant-projet sommaire (APS)",{"$f":"'1 Données d''entrée'!C46","v":20},{"$f":"IF(B72>1,IF(B72<'1 Données d''entrée'!$H$32,'1 Données d''entrée'!E46,0),0)","v":0},{"$f":"IF($B72=D$68,$C72,IF($B72*2=D$68,$C72,IF($B72*3=D$68,$C72,IF($B72*4=D$68,$C72,IF($B72*5=D$68,$C72,IF($B72*6=D$68,$C72,IF($B72*7=D$68,$C72,IF($B72*8=D$68,$C72,\"\"))))))))","v":""},{"$f":"IF($B72=E$68,$C72,IF($B72*2=E$68,$C72,IF($B72*3=E$68,$C72,IF($B72*4=E$68,$C72,IF($B72*5=E$68,$C72,IF($B72*6=E$68,$C72,IF($B72*7=E$68,$C72,IF($B72*8=E$68,$C72,\"\"))))))))","v":""},"","","","","","","","","","","","","","",{"$f":"IF($B72=T$68,$C72,\"\")","v":""},{"$f":"IF($B72=U$68,$C72,IF($B72*2=U$68,$C72,IF($B72*3=U$68,$C72,IF($B72*6=U$68,$C72,IF($B72*9=U$68, $C72,\"\")))))","v":""},{"$f":"IF($B72=V$68,$C72,\"\")","v":""},{"$f":"IF($B72*2=W$68,$C72,IF($B72*4=W$68,$C72,IF($B72*5=W$68,$C72,IF($B72*10=W$68, $C72,\"\"))))","v":""}]
["Avant projet détaillé (APD)",{"$f":"'1 Données d''entrée'!C47","v":20},{"$f":"IF(B73>1,IF(B73<'1 Données d''entrée'!$H$32,'1 Données d''entrée'!E47,0),0)","v":0},"","","","","","","","","","","","","","","","",{"$f":"IF($B73=T$68,$C73,\"\")","v":""},{"$f":"IF($B73=U$68,$C73,IF($B73*2=U$68,$C73,IF($B73*3=U$68,$C73,IF($B73*6=U$68,$C73,IF($B73*9=U$68, $C73,\"\")))))","v":""},{"$f":"IF($B73=V$68,$C73,\"\")","v":""},{"$f":"IF($B73*2=W$68,$C73,IF($B73*4=W$68,$C73,IF($B73*5=W$68,$C73,IF($B73*10=W$68, $C73,\"\"))))","v":""}]
["Autre coût d'ingénier",{"$f":"'1 Données d''entrée'!C48","v":20},{"$f":"IF(B74>1,IF(B74<'1 Données d''entrée'!$H$32,'1 Données d''entrée'!E48,0),0)","v":0},"","","","","","","","","","","","","","","","",{"$f":"IF($B74=T$68,$C74,\"\")","v":""},{"$f":"IF($B74=U$68,$C74,IF($B74*2=U$68,$C74,IF($B74*3=U$68,$C74,IF($B74*6=U$68,$C74,IF($B74*9=U$68, $C74,\"\")))))","v":""},{"$f":"IF($B74=V$68,$C74,\"\")","v":""},{"$f":"IF($B74*2=W$68,$C74,IF($B74*4=W$68,$C74,IF($B74*5=W$68,$C74,IF($B74*10=W$68, $C74,\"\"))))","v":""}]
[]
["2 Construction du site"]
[{"$f":"'1 Données d''entrée'!A52","v":"Occupation du sol "},null,null,{"$f":"IF($B77=D$68,$C77,IF($B77*2=D$68,$C77,IF($B77*3=D$68,$C77,IF($B77*4=D$68,$C77,IF($B77*5=D$68,$C77,IF($B77*6=D$68,$C77,IF($B77*7=D$68,$C77,IF($B77*8=D$68,$C77,\"\"))))))))","v":""},"","","","","","","","","","","","","","","",{"$f":"IF($B77=T$68,$C77,\"\")","v":""},{"$f":"IF($B77=U$68,$C77,IF($B77*2=U$68,$C77,IF($B77*3=U$68,$C77,IF($B77*6=U$68,$C77,IF($B77*9=U$68, $C77,\"\")))))","v":""},{"$f":"IF($B77=V$68,$C77,\"\")","v":""},{"$f":"IF($B77*2=W$68,$C77,IF($B77*4=W$68,$C77,IF($B77*5=W$68,$C77,IF($B77*10=W$68, $C77,\"\"))))","v":""}]
[{"$f":"'1 Données d''entrée'!A53","v":"Achat ou fermage (site)"},{"$f":"'1 Données d''entrée'!C53","v":0},{"$f":"IF(B78>1,IF(B78<'1 Données d''entrée'!$H$32,'1 Données d''entrée'!E53,0),0)","v":0},"","","","","","","","","","","","","","","","","","","",""]
[{"$f":"'1 Données d''entrée'!A54","v":"Génie Civil"},null,null,"","","","","","","","","","","","","","","","","","","",""]
[{"$f":"'1 Données d''entrée'!A55","v":"Barrage principal"},{"$f":"'1 Données d''entrée'!C55","v":0},{"$f":"IF(B80>1,IF(B80<'1 Données d''entrée'!$H$32,'1 Données d''entrée'!E55,0),0)","v":0},"","","","","","","","","","","","","","","","","","","",""]
[{"$f":"'1 Données d''entrée'!A56","v":"Barrage de dérivation"},{"$f":"'1 Données d''entrée'!C56","v":0},{"$f":"IF(B81>1,IF(B81<'1 Données d''entrée'!$H$32,'1 Données d''entrée'!E56,0),0)","v":0},"","","","","","","","","","","","","","","","","","","",""]
[{"$f":"'1 Données d''entrée'!A57","v":"Canal d'amenée"},{"$f":"'1 Données d''entrée'!C57","v":0},{"$f":"IF(B82>1,IF(B82<'1 Données d''entrée'!$H$32,'1 Données d''entrée'!E57,0),0)","v":0},"","","","","","","","","","","","","","","","","","","",""]
[{"$f":"'1 Données d''entrée'!A58","v":"Chambre de mise en charge"},{"$f":"'1 Données d''entrée'!C58","v":0},{"$f":"IF(B83>1,IF(B83<'1 Données d''entrée'!$H$32,'1 Données d''entrée'!E58,0),0)","v":0},"","","","","","","","","","","","","","","","","","","",""]
[{"$f":"'1 Données d''entrée'!A59","v":"Station d’épuration : dessableur"},{"$f":"'1 Données d''entrée'!C59","v":0},{"$f":"IF(B84>1,IF(B84<'1 Données d''entrée'!$H$32,'1 Données d''entrée'!E59,0),0)","v":0},"","","","","","","","","","","","","","","","","","","",""]
[{"$f":"'1 Données d''entrée'!A60","v":"Bâtiment central"},{"$f":"'1 Données d''entrée'!C60","v":0},{"$f":"IF(B85>1,IF(B85<'1 Données d''entrée'!$H$32,'1 Données d''entrée'!E60,0),0)","v":0},"","","","","","","","","","","","","","","","","","","",""]
[{"$f":"'1 Données d''entrée'!A61","v":"Restitution"},null,{"$f":"IF(B86>1,IF(B86<'1 Données d''entrée'!$H$32,'1 Données d''entrée'!E61,0),0)","v":0},"","","","","","","","","","","","","","","","","","","",""]
[{"$f":"'1 Données d''entrée'!A62","v":"Equipement électromécanique"},null,null,{"$f":"IF($B87=D$68,$C87,IF($B87*2=D$68,$C87,IF($B87*3=D$68,$C87,IF($B87*4=D$68,$C87,IF($B87*5=D$68,$C87,IF($B87*6=D$68,$C87,IF($B87*7=D$68,$C87,IF($B87*8=D$68,$C87,\"\"))))))))","v":""},"","","","","","","","","","","","","","","","","","",""]
[{"$f":"'1 Données d''entrée'!A63","v":"Turbine, régulateur, alterneur"},{"$f":"'1 Données d''entrée'!C63","v":0},{"$f":"IF(B88>1,IF(B88<'1 Données d''entrée'!$H$32,'1 Données d''entrée'!E63,0),0)","v":0},"","","","","","","","","","","","","","","","","","","",""]
[{"$f":"'1 Données d''entrée'!A64","v":"Installation électrique (contrôle commande)"},{"$f":"'1 Données d''entrée'!C64","v":0},{"$f":"IF(B89>1,IF(B89<'1 Données d''entrée'!$H$32,'1 Données d''entrée'!E64,0),0)","v":0},"","","","","","","","","","","","","","","","","","","",""]
[{"$f":"'1 Données d''entrée'!A65","v":"Conduite forcée "},null,null,"","","","","","","","","","","","","","","","","","","",""]
[{"$f":"'1 Données d''entrée'!A66","v":"Conduite en acier"},{"$f":"'1 Données d''entrée'!C66","v":0},{"$f":"IF(B91>1,IF(B91<'1 Données d''entrée'!$H$32,'1 Données d''entrée'!E66,0),0)","v":0},"","","","","","","","","","","","","","","","","","","",""]
[{"$f":"'1 Données d''entrée'!A67","v":"Route d'accès "},null,null,"","","","","","","","","","","","","","","","","","","",""]
[{"$f":"'1 Données d''entrée'!A68","v":"Route d'accès"},{"$f":"'1 Données d''entrée'!C68","v":0},{"$f":"IF(B93>1,IF(B93<'1 Données d''entrée'!$H$32,'1 Données d''entrée'!E68,0),0)","v":0},"","","","","","","","","","","","","","","","","","","",""]
[null,null,null,"","","","","","","","","","","","","","","","","","","",""]
[{"$f":"'1 Données d''entrée'!A70","v":"Additionnel (construction du site)"},null,null,"","","","","","","","","","","","","","","","","","","",""]
[{"$f":"'1 Données d''entrée'!A71","v":"Transport (de l'équipement, du matériel)"},{"$f":"'1 Données d''entrée'!C71","v":20},{"$f":"IF(B96>1,IF(B96<'1 Données d''entrée'!$H$32,'1 Données d''entrée'!E71,0),0)","v":0},"","","","","","","","","","","","","","","","","","","",""]
[{"$f":"'1 Données d''entrée'!A72","v":"Générateur (sauvegarde)"},{"$f":"'1 Données d''entrée'!C72","v":0},{"$f":"IF(B97>1,IF(B97<'1 Données d''entrée'!$H$32,'1 Données d''entrée'!E72,0),0)","v":0},{"$f":"IF($B97=D$68,$C97,IF($B97*2=D$68,$C97,IF($B97*3=D$68,$C97,IF($B97*4=D$68,$C97,IF($B97*5=D$68,$C97,IF($B97*6=D$68,$C97,IF($B97*7=D$68,$C97,IF($B97*8=D$68,$C97,\"\"))))))))","v":""},"","","","","","","","","","","","","","","","","","",""]
[{"$f":"'1 Données d''entrée'!A73","v":"-"},{"$f":"'1 Données d''entrée'!C73","v":0},{"$f":"IF(B98>1,IF(B98<'1 Données d''entrée'!$H$32,'1 Données d''entrée'!E73,0),0)","v":0},"","","","","","","","","","","","","","","","","","","",""]
[{"$f":"'1 Données d''entrée'!A74","v":"-"},{"$f":"'1 Données d''entrée'!C74","v":0},{"$f":"IF(B99>1,IF(B99<'1 Données d''entrée'!$H$32,'1 Données d''entrée'!E74,0),0)","v":0},"","","","","","","","","","","","","","","","","","","",""]
[{"$f":"'1 Données d''entrée'!A75","v":"-"},{"$f":"'1 Données d''entrée'!C75","v":0},{"$f":"IF(B100>1,IF(B100<'1 Données d''entrée'!$H$32,'1 Données d''entrée'!E75,0),0)","v":0},"","","","","","","","","","","","","","","","","","","",""]
[{"$f":"'1 Données d''entrée'!A76","v":"-"},{"$f":"'1 Données d''entrée'!C76","v":0},{"$f":"IF(B101>1,IF(B101<'1 Données d''entrée'!$H$32,'1 Données d''entrée'!E76,0),0)","v":0},"","","","","","","","","","","","","","","","","","","",""]
[{"$f":"'1 Données d''entrée'!A77","v":"-"},{"$f":"'1 Données d''entrée'!C77","v":0},{"$f":"IF(B102>1,IF(B102<'1 Données d''entrée'!$H$32,'1 Données d''entrée'!E77,0),0)","v":0},"","","","","","","","","","","","","","","","","","","",""]
[]
["3 Construction du réseau de transmission et distribution"]
[{"$f":"'1 Données d''entrée'!A84","v":"Transport et distribution"}]
[{"$f":"'1 Données d''entrée'!A85","v":"Poste élévateur"},{"$f":"'1 Données d''entrée'!C85","v":0},{"$f":"IF(B106>1,IF(B106<'1 Données d''entrée'!$H$32,'1 Données d''entrée'!E85,0),0)","v":0},{"$f":"IF($B106=D$68,$C106,IF($B106*2=D$68,$C106,IF($B106*3=D$68,$C106,IF($B106*4=D$68,$C106,IF($B106*5=D$68,$C106,IF($B106*6=D$68,$C106,IF($B106*7=D$68,$C106,IF($B106*8=D$68,$C106,\"\"))))))))","v":""},"","","","","","","","","","","","","","","",{"$f":"IF($B106=T$68,$C106,\"\")","v":""},{"$f":"IF($B106=U$68,$C106,IF($B106*2=U$68,$C106,IF($B106*3=U$68,$C106,IF($B106*6=U$68,$C106,IF($B106*9=U$68, $C106,\"\")))))","v":""},{"$f":"IF($B106=V$68,$C106,\"\")","v":""},{"$f":"IF($B106*2=W$68,$C106,IF($B106*4=W$68,$C106,IF($B106*5=W$68,$C106,IF($B106*10=W$68, $C106,\"\"))))","v":""}]
[{"$f":"'1 Données d''entrée'!A86","v":"Poste abaisseur"},{"$f":"'1 Données d''entrée'!C86","v":0},{"$f":"IF(B107>1,IF(B107<'1 Données d''entrée'!$H$32,'1 Données d''entrée'!E86,0),0)","v":0},"","","","","","","","","","","","","","","","","","","",""]
[{"$f":"'1 Données d''entrée'!A87","v":"Ligne (Haute tension)"},{"$f":"'1 Données d''entrée'!C87","v":0},{"$f":"IF(B108>1,IF(B108<'1 Données d''entrée'!$H$32,'1 Données d''entrée'!E87,0),0)","v":0},"","","","","","","","","","","","","","","","","","","",""]
[{"$f":"'1 Données d''entrée'!A88","v":"Ligne (basse tension)"},{"$f":"'1 Données d''entrée'!C88","v":0},{"$f":"IF(B109>1,IF(B109<'1 Données d''entrée'!$H$32,'1 Données d''entrée'!E88,0),0)","v":0},"","","","","","","","","","","","","","","","","","","",""]
[{"$f":"'1 Données d''entrée'!A89","v":"Branchement"},null,null,"","","","","","","","","","","","","","","","","","","",""]
[{"$f":"'1 Données d''entrée'!A90","v":"Branchement d'un maison (forfait): câbles, fusible"},0,"Voir le tableau supplétif au-dessous","","","","","","","","","","","","","","","","","","","",""]
[{"$f":"'1 Données d''entrée'!A91","v":"Branchement d'un maison (tarif): câbles, compteur"},0,"Voir le tableau supplétif au-dessous","","","","","","","","","","","","","","","","","","","",""]
[{"$f":"'1 Données d''entrée'!A92","v":"Occupation du sol (Sous-stations haute et basse tension, permission de passer pour le réseau)"},{"$nulls":4},"","","","","","","","","","","","","","","","","",""]
[{"$f":"'1 Données d''entrée'!A93","v":"Achat ou fermage (site)"},{"$f":"'1 Données d''entrée'!C93","v":0},{"$f":"IF(B114>1,IF(B114<'1 Données d''entrée'!$H$32,'1 Données d''entrée'!E93,0),0)","v":0},"","","","","","","","","","","","","","","","","","","",""]
[null,null,null,"","","","","","","","","","","","","","","","","","","",""]
[null,null,null,{"$f":"IF($B116=D$68,$C116,IF($B116*2=D$68,$C116,IF($B116*3=D$68,$C116,IF($B116*4=D$68,$C116,IF($B116*5=D$68,$C116,IF($B116*6=D$68,$C116,IF($B116*7=D$68,$C116,IF($B116*8=D$68,$C116,\"\"))))))))","v":""},"","",{"$f":"IF($B116=G$68,$C116,IF($B116*2=G$68,$C116,IF($B116*3=G$68,$C116,IF($B116*4=G$68,$C116,IF($B116*5=G$68,$C116,IF($B116*6=G$68,$C116,IF($B116*7=G$68,$C116,IF($B116*8=G$68,$C116,\"\"))))))))","v":""},"","","","","","","","","","","","","","","",""]
[{"$f":"'1 Données d''entrée'!A96","v":"Additionnel (construction du réseau de T&D)"},null,null,{"$f":"IF($B117=D$68,$C117,IF($B117*2=D$68,$C117,IF($B117*3=D$68,$C117,IF($B117*4=D$68,$C117,IF($B117*5=D$68,$C117,IF($B117*6=D$68,$C117,IF($B117*7=D$68,$C117,IF($B117*8=D$68,$C117,\"\"))))))))","v":""},"","","","","","","","","","","","","","","","","","",""]
[{"$f":"'1 Données d''entrée'!A97","v":"Transport (de l'équipement, du matériel)"},{"$f":"'1 Données d''entrée'!C97","v":20},{"$f":"IF(B118>1,IF(B118<'1 Données d''entrée'!$H$32,'1 Données d''entrée'!E97,0),0)","v":0},"","","","","","","","","","","","","","","","","","","",""]
[{"$f":"'1 Données d''entrée'!A98","v":"-"},{"$f":"'1 Données d''entrée'!C98","v":0},{"$f":"IF(B119>1,IF(B119<'1 Données d''entrée'!$H$32,'1 Données d''entrée'!E98,0),0)","v":0},"","","","","","","","","","","","","","","","","","","",""]
[{"$f":"'1 Données d''entrée'!A99","v":"-"},{"$f":"'1 Données d''entrée'!C99","v":0},{"$f":"IF(B120>1,IF(B120<'1 Données d''entrée'!$H$32,'1 Données d''entrée'!E99,0),0)","v":0},"","","","","","","","","","","","","","","","","","","",""]
[{"$f":"'1 Données d''entrée'!A100","v":"-"},{"$f":"'1 Données d''entrée'!C100","v":0},{"$f":"IF(B121>1,IF(B121<'1 Données d''entrée'!$H$32,'1 Données d''entrée'!E100,0),0)","v":0},"","","","","","","","","","","","","","","","","","","",""]
[{"$f":"'1 Données d''entrée'!A101","v":"-"},{"$f":"'1 Données d''entrée'!C101","v":0},{"$f":"IF(B122>1,IF(B122<'1 Données d''entrée'!$H$32,'1 Données d''entrée'!E101,0),0)","v":0}]
[{"$f":"'1 Données d''entrée'!A102","v":"-"},{"$f":"'1 Données d''entrée'!C102","v":0},{"$f":"IF(B123>1,IF(B123<'1 Données d''entrée'!$H$32,'1 Données d''entrée'!E102,0),0)","v":0},{"$f":"IF($B123=D$68,$C123,IF($B123*2=D$68,$C123,IF($B123*3=D$68,$C123,IF($B123*4=D$68,$C123,IF($B123*5=D$68,$C123,IF($B123*6=D$68,$C123,IF($B123*7=D$68,$C123,IF($B123*8=D$68,$C123,\"\"))))))))","v":""},"","","","","","","","","","","","","","","",{"$f":"IF($B123=T$68,$C123,\"\")","v":""},{"$f":"IF($B123=U$68,$C123,IF($B123*2=U$68,$C123,IF($B123*3=U$68,$C123,IF($B123*6=U$68,$C123,IF($B123*9=U$68, $C123,\"\")))))","v":""},{"$f":"IF($B123=V$68,$C123,\"\")","v":""},{"$f":"IF($B123*2=W$68,$C123,IF($B123*4=W$68,$C123,IF($B123*5=W$68,$C123,IF($B123*10=W$68, $C123,\"\"))))","v":""}]
[{"$f":"'1 Données d''entrée'!A103","v":"-"},{"$f":"'1 Données d''entrée'!C103","v":0},{"$f":"IF(B124>1,IF(B124<'1 Données d''entrée'!$H$32,'1 Données d''entrée'!E103,0),0)","v":0},"","","","","","","","","","","","","","","","",{"$f":"IF($B124=T$68,$C124,\"\")","v":""},{"$f":"IF($B124=U$68,$C124,IF($B124*2=U$68,$C124,IF($B124*3=U$68,$C124,IF($B124*6=U$68,$C124,IF($B124*9=U$68, $C124,\"\")))))","v":""},{"$f":"IF($B124=V$68,$C124,\"\")","v":""},{"$f":"IF($B124*2=W$68,$C124,IF($B124*4=W$68,$C124,IF($B124*5=W$68,$C124,IF($B124*10=W$68, $C124,\"\"))))","v":""}]
[{"$f":"'1 Données d''entrée'!A104","v":"-"},{"$f":"'1 Données d''entrée'!C104","v":0},{"$f":"IF(B125>1,IF(B125<'1 Données d''entrée'!$H$32,'1 Données d''entrée'!E104,0),0)","v":0},"","","","","","","","","","","","","","","","",{"$f":"IF($B125=T$68,$C125,\"\")","v":""},{"$f":"IF($B125=U$68,$C125,IF($B125*2=U$68,$C125,IF($B125*3=U$68,$C125,IF($B125*6=U$68,$C125,IF($B125*9=U$68, $C125,\"\")))))","v":""},{"$f":"IF($B125=V$68,$C125,\"\")","v":""},{"$f":"IF($B125*2=W$68,$C125,IF($B125*4=W$68,$C125,IF($B125*5=W$68,$C125,IF($B125*10=W$68, $C125,\"\"))))","v":""}]
[{"$f":"'1 Données d''entrée'!A105","v":"-"},{"$f":"'1 Données d''entrée'!C105","v":0},{"$f":"IF(B126>1,IF(B126<'1 Données d''entrée'!$H$32,'1 Données d''entrée'!E105,0),0)","v":0},"","","","","","","","","","","","","","","","",{"$f":"IF($B126=T$68,$C126,\"\")","v":""},{"$f":"IF($B126=U$68,$C126,IF($B126*2=U$68,$C126,IF($B126*3=U$68,$C126,IF($B126*6=U$68,$C126,IF($B126*9=U$68, $C126,\"\")))))","v":""},{"$f":"IF($B126=V$68,$C126,\"\")","v":""},{"$f":"IF($B126*2=W$68,$C126,IF($B126*4=W$68,$C126,IF($B126*5=W$68,$C126,IF($B126*10=W$68, $C126,\"\"))))","v":""}]
[{"$f":"'1 Données d''entrée'!A106","v":"-"},{"$f":"'1 Données d''entrée'!C106","v":0},{"$f":"IF(B127>1,IF(B127<'1 Données d''entrée'!$H$32,'1 Données d''entrée'!E106,0),0)","v":0},"","","","","","","","","","","","","","","","",{"$f":"IF($B127=T$68,$C127,\"\")","v":""},{"$f":"IF($B127=U$68,$C127,IF($B127*2=U$68,$C127,IF($B127*3=U$68,$C127,IF($B127*6=U$68,$C127,IF($B127*9=U$68, $C127,\"\")))))","v":""},{"$f":"IF($B127=V$68,$C127,\"\")","v":""},{"$f":"IF($B127*2=W$68,$C127,IF($B127*4=W$68,$C127,IF($B127*5=W$68,$C127,IF($B127*10=W$68, $C127,\"\"))))","v":""}]
[]
["Licences / Assurances"]
[{"$f":"'1 Données d''entrée'!A110","v":"Autorisations (production)"},{"$f":"'1 Données d''entrée'!C110","v":0},{"$f":"IF(B130>1,IF(B130<'1 Données d''entrée'!$H$32,'1 Données d''entrée'!E110,0),0)","v":0},{"$f":"IF($B130=D$68,$C130,IF($B130*2=D$68,$C130,IF($B130*3=D$68,$C130,IF($B130*4=D$68,$C130,IF($B130*5=D$68,$C130,IF($B130*6=D$68,$C130,IF($B130*7=D$68,$C130,IF($B130*8=D$68,$C130,\"\"))))))))","v":""},"","","","","","","","","","","","","","","",{"$f":"IF($B130=T$68,$C130,\"\")","v":""},{"$f":"IF($B130=U$68,$C130,IF($B130*2=U$68,$C130,IF($B130*3=U$68,$C130,IF($B130*6=U$68,$C130,IF($B130*9=U$68, $C130,\"\")))))","v":""},{"$f":"IF($B130=V$68,$C130,\"\")","v":""},{"$f":"IF($B130*2=W$68,$C130,IF($B130*4=W$68,$C130,IF($B130*5=W$68,$C130,IF($B130*10=W$68, $C130,\"\"))))","v":""}]
[{"$f":"'1 Données d''entrée'!A111","v":"Assurance"},{"$f":"'1 Données d''entrée'!C111","v":0},{"$f":"IF(B131>1,IF(B131<'1 Données d''entrée'!$H$32,'1 Données d''entrée'!E111,0),0)","v":0},"","","","","","","","","","","","","","","","",{"$f":"IF($B131=T$68,$C131,\"\")","v":""},{"$f":"IF($B131=U$68,$C131,IF($B131*2=U$68,$C131,IF($B131*3=U$68,$C131,IF($B131*6=U$68,$C131,IF($B131*9=U$68, $C131,\"\")))))","v":""},{"$f":"IF($B131=V$68,$C131,\"\")","v":""},{"$f":"IF($B131*2=W$68,$C131,IF($B131*4=W$68,$C131,IF($B131*5=W$68,$C131,IF($B131*10=W$68, $C131,\"\"))))","v":""}]
[null,null,null,"","","","","","","","","","","","","","","","",{"$f":"IF($B132=T$68,$C132,\"\")","v":""},{"$f":"IF($B132=U$68,$C132,IF($B132*2=U$68,$C132,IF($B132*3=U$68,$C132,IF($B132*6=U$68,$C132,IF($B132*9=U$68, $C132,\"\")))))","v":""},{"$f":"IF($B132=V$68,$C132,\"\")","v":""},{"$f":"IF($B132*2=W$68,$C132,IF($B132*4=W$68,$C132,IF($B132*5=W$68,$C132,IF($B132*10=W$68, $C132,\"\"))))","v":""}]
[{"$f":"'1 Données d''entrée'!A113","v":"Autorisations / Assurances additionnelles"}]
[{"$f":"'1 Données d''entrée'!A114","v":"-"},{"$f":"'1 Données d''entrée'!C114","v":0},{"$f":"IF(B134>1,IF(B134<'1 Données d''entrée'!$H$32,'1 Données d''entrée'!E114,0),0)","v":0},{"$f":"IF($B134=D$68,$C134,IF($B134*2=D$68,$C134,IF($B134*3=D$68,$C134,IF($B134*4=D$68,$C134,IF($B134*5=D$68,$C134,IF($B134*6=D$68,$C134,IF($B134*7=D$68,$C134,IF($B134*8=D$68,$C134,\"\"))))))))","v":""},"","","","","","","","","","","","","","","",{"$f":"IF($B134=T$68,$C134,\"\")","v":""},{"$f":"IF($B134=U$68,$C134,IF($B134*2=U$68,$C134,IF($B134*3=U$68,$C134,IF($B134*6=U$68,$C134,IF($B134*9=U$68, $C134,\"\")))))","v":""},{"$f":"IF($B134=V$68,$C134,\"\")","v":""},{"$f":"IF($B134*2=W$68,$C134,IF($B134*4=W$68,$C134,IF($B134*5=W$68,$C134,IF($B134*10=W$68, $C134,\"\"))))","v":""}]
[{"$f":"'1 Données d''entrée'!A115","v":"-"},{"$f":"'1 Données d''entrée'!C115","v":0},{"$f":"IF(B135>1,IF(B135<'1 Données d''entrée'!$H$32,'1 Données d''entrée'!E115,0),0)","v":0},"","","","","","","","","","","","","","","","",{"$f":"IF($B135=T$68,$C135,\"\")","v":""},{"$f":"IF($B135=U$68,$C135,IF($B135*2=U$68,$C135,IF($B135*3=U$68,$C135,IF($B135*6=U$68,$C135,IF($B135*9=U$68, $C135,\"\")))))","v":""},{"$f":"IF($B135=V$68,$C135,\"\")","v":""},{"$f":"IF($B135*2=W$68,$C135,IF($B135*4=W$68,$C135,IF($B135*5=W$68,$C135,IF($B135*10=W$68, $C135,\"\"))))","v":""}]
[{"$f":"'1 Données d''entrée'!A116","v":"-"},{"$f":"'1 Données d''entrée'!C116","v":0},{"$f":"IF(B136>1,IF(B136<'1 Données d''entrée'!$H$32,'1 Données d''entrée'!E116,0),0)","v":0},"","","","","","","","","","","","","","","","",{"$f":"IF($B136=T$68,$C136,\"\")","v":""},{"$f":"IF($B136=U$68,$C136,IF($B136*2=U$68,$C136,IF($B136*3=U$68,$C136,IF($B136*6=U$68,$C136,IF($B136*9=U$68, $C136,\"\")))))","v":""},{"$f":"IF($B136=V$68,$C136,\"\")","v":""},{"$f":"IF($B136*2=W$68,$C136,IF($B136*4=W$68,$C136,IF($B136*5=W$68,$C136,IF($B136*10=W$68, $C136,\"\"))))","v":""}]
[{"$f":"'1 Données d''entrée'!A117","v":"-"},{"$f":"'1 Données d''entrée'!C117","v":0},{"$f":"IF(B137>1,IF(B137<'1 Données d''entrée'!$H$32,'1 Données d''entrée'!E117,0),0)","v":0},"","","","","","","","","","","","","","","","",{"$f":"IF($B137=T$68,$C137,\"\")","v":""},{"$f":"IF($B137=U$68,$C137,IF($B137*2=U$68,$C137,IF($B137*3=U$68,$C137,IF($B137*6=U$68,$C137,IF($B137*9=U$68, $C137,\"\")))))","v":""},{"$f":"IF($B137=V$68,$C137,\"\")","v":""},{"$f":"IF($B137*2=W$68,$C137,IF($B137*4=W$68,$C137,IF($B137*5=W$68,$C137,IF($B137*10=W$68, $C137,\"\"))))","v":""}]
[{"$f":"'1 Données d''entrée'!A118","v":"-"},{"$f":"'1 Données d''entrée'!C118","v":0},{"$f":"IF(B138>1,IF(B138<'1 Données d''entrée'!$H$32,'1 Données d''entrée'!E118,0),0)","v":0},"","","","","","","","","","","","","","","","",{"$f":"IF($B138=T$68,$C138,\"\")","v":""},{"$f":"IF($B138=U$68,$C138,IF($B138*2=U$68,$C138,IF($B138*3=U$68,$C138,IF($B138*6=U$68,$C138,IF($B138*9=U$68, $C138,\"\")))))","v":""},{"$f":"IF($B138=V$68,$C138,\"\")","v":""},{"$f":"IF($B138*2=W$68,$C138,IF($B138*4=W$68,$C138,IF($B138*5=W$68,$C138,IF($B138*10=W$68, $C138,\"\"))))","v":""}]
{"$rows_empty":7}
["Tableau supplétif pour le calcul de coût de réinvestissement de branchement"]
[]
["Branchement d'une maison (forfait): câbles, fusible"]
["Période d'investissement","Investissement = Réinvestissement","Longévité","Période de réinvestissement"]
[null,null,null,1,2,3,4,5,6,7,8,9,10,11,12,13,14,15,16,17,18,19,20]
[0,{"$f":"IF(B$43=0,\"\",IF('1 Données d''entrée'!$C$90>0,IF('1 Données d''entrée'!$C$90<20,B$43,\"\"),\"\"))","v":""},{"$f":"'1 Données d''entrée'!$C$90","v":0},{"$f":"IF($C151+$A151=D$150,$B151,IF(($C151*2+$A151)=D$150,$B151,IF(($C151*3+$A151)=D$150,$B151,IF(($C151*4+$A151)=D$150,$B151,IF(($C151*5+$A151)=D$150,$B151,IF(($C151*6+$A151)=D$150,$B151,IF(($C151*7+$A151)=D$150,$B151,IF(($C151*8+$A151)=D$150,$B151,\"\"))))))))","v":""},"","","","","","","","","","","","","","","",{"$f":"IF($C151+$A151=T$150,$B151,IF(($C151*2+$A151)=T$150,$B151,IF(($C151*3+$A151)=T$150,$B151,IF(($C151*4+$A151)=T$150,$B151,IF(($C151*5+$A151)=T$150,$B151,IF(($C151*6+$A151)=T$150,$B151,IF(($C151*7+$A151)=T$150,$B151,IF(($C151*8+$A151)=T$150,$B151,\"\"))))))))","v":""},{"$f":"IF($C151+$A151=U$150,$B151,IF(($C151*2+$A151)=U$150,$B151,IF(($C151*3+$A151)=U$150,$B151,IF(($C151*6+$A151)=U$150,$B151,IF(($C151*9+$A151)=U$150,$B151,\"\")))))","v":""},{"$f":"IF($C151+$A151=V$150,$B151,IF(($C151*2+$A151)=V$150,$B151,IF(($C151*3+$A151)=V$150,$B151,IF(($C151*4+$A151)=V$150,$B151,IF(($C151*5+$A151)=V$150,$B151,IF(($C151*6+$A151)=V$150,$B151,IF(($C151*7+$A151)=V$150,$B151,IF(($C151*8+$A151)=V$150,$B151,\"\"))))))))","v":""},{"$f":"IF(($C151*2+$A151)=W$150,$B151,IF(($C151*4+$A151)=W$150,$B151,IF(($C151*5+$A151)=W$150,$B151,IF(($C151*10+$A151)=W$150,$B151,\"\"))))","v":""}]
[1,{"$f":"IF(C$43=0,\"\",IF('1 Données d''entrée'!$C$90>0,IF('1 Données d''entrée'!$C$90<20,C$43,\"\"),\"\"))","v":""},{"$f":"'1 Données d''entrée'!$C$90","v":0},"","","","","","","","","","","","","","","","","",{"$f":"IF($C152+$A152=U$150,$B152,IF(($C152*2+$A152)=U$150,$B152,IF(($C152*3+$A152)=U$150,$B152,IF(($C152*6+$A152)=U$150,$B152,IF(($C152*9+$A152)=U$150,$B152,\"\")))))","v":""},{"$f":"IF($C152+$A152=V$150,$B152,IF(($C152*2+$A152)=V$150,$B152,IF(($C152*3+$A152)=V$150,$B152,IF(($C152*5+$A152)=V$150,$B152,IF(($C152*6+$A152)=V$150,$B152,IF(($C152*7+$A152)=V$150,$B152,IF(($C152*8+$A152)=V$150,$B152,IF(($C152*9+$A152)=V$150,$B152,\"\"))))))))","v":""},{"$f":"IF($C152+$A152=W$150,$B152,IF(($C152*3+$A152)=W$150,$B152,IF(($C152*5+$A152)=W$150,$B152,IF(($C152*6+$A152)=W$150,$B152,IF(($C152*7+$A152)=W$150,$B152,IF(($C152*8+$A152)=W$150,$B152,IF(($C152*9+$A152)=W$150,$B152,\"\")))))))","v":""}]
[2,{"$f":"IF(D$43=0,\"\",IF('1 Données d''entrée'!$C$90>0,IF('1 Données d''entrée'!$C$90<20,D$43,\"\"),\"\"))","v":""},{"$f":"'1 Données d''entrée'!$C$90","v":0},"","","","","","","","","","","","","","","","","","","",{"$f":"IF($C153+$A153=W$150,$B153,IF(($C153*3+$A153)=W$150,$B153,IF(($C153*2+$A153)=W$150,$B153,IF(($C153*6+$A153)=W$150,$B153,IF(($C153*7+$A153)=W$150,$B153,IF(($C153*8+$A153)=W$150,$B153,IF(($C153*9+$A153)=W$150,$B153,\"\")))))))","v":""}]
[3,{"$f":"IF(E$43=0,\"\",IF('1 Données d''entrée'!$C$90>0,IF('1 Données d''entrée'!$C$90<20,E$43,\"\"),\"\"))","v":""},{"$f":"'1 Données d''entrée'!$C$90","v":0},"","","","","","","","","","","","","","","","","","","",{"$f":"IF($C154+$A154=W$150,$B154,IF(($C154*3+$A154)=W$150,$B154,IF(($C154*5+$A154)=W$150,$B154,IF(($C154*6+$A154)=W$150,$B154,IF(($C154*7+$A154)=W$150,$B154,IF(($C154*8+$A154)=W$150,$B154,IF(($C154*9+$A154)=W$150,$B154,\"\")))))))","v":""}]
[4,{"$f":"IF(F$43=0,\"\",IF('1 Données d''entrée'!$C$90>0,IF('1 Données d''entrée'!$C$90<20,F$43,\"\"),\"\"))","v":""},{"$f":"'1 Données d''entrée'!$C$90","v":0},"","","","","","","","","","","","","","","","","","","",{"$f":"IF($C155+$A155=W$150,$B155,IF(($C155*4+$A155)=W$150,$B155,IF(($C155*5+$A155)=W$150,$B155,IF(($C155*6+$A155)=W$150,$B155,IF(($C155*7+$A155)=W$150,$B155,IF(($C155*8+$A155)=W$150,$B155,IF(($C155*2+$A155)=W$150,$B155,\"\")))))))","v":""}]
[5,{"$f":"IF(G$43=0,\"\",IF('1 Données d''entrée'!$C$90>0,IF('1 Données d''entrée'!$C$90<20,G$43,\"\"),\"\"))","v":""},{"$f":"'1 Données d''entrée'!$C$90","v":0},"","","","","","","","","","","","","","","","","","","",{"$f":"IF($C156+$A156=W$150,$B156,IF(($C156*3+$A156)=W$150,$B156,IF(($C156*5+$A156)=W$150,$B156,IF(($C156*6+$A156)=W$150,$B156,IF(($C156*7+$A156)=W$150,$B156,IF(($C156*2+$A156)=W$150,$B156,IF(($C156*4+$A156)=W$150,$B156,\"\")))))))","v":""}]
[6,{"$f":"IF(H$43=0,\"\",IF('1 Données d''entrée'!$C$90>0,IF('1 Données d''entrée'!$C$90<20,H$43,\"\"),\"\"))","v":""},{"$f":"'1 Données d''entrée'!$C$90","v":0},"","","","","","","","","","","","","","","","","","","",""]
[7,{"$f":"IF(I$43=0,\"\",IF('1 Données d''entrée'!$C$90>0,IF('1 Données d''entrée'!$C$90<20,I$43,\"\"),\"\"))","v":""},{"$f":"'1 Données d''entrée'!$C$90","v":0},"","","","","","","","","","","","","","","","","","","",""]
[8,{"$f":"IF(J$43=0,\"\",IF('1 Données d''entrée'!$C$90>0,IF('1 Données d''entrée'!$C$90<20,J$43,\"\"),\"\"))","v":""},{"$f":"'1 Données d''entrée'!$C$90","v":0},"","","","","","","","","","","","","","","","","","","",""]
[9,{"$f":"IF(K$43=0,\"\",IF('1 Données d''entrée'!$C$90>0,IF('1 Données d''entrée'!$C$90<20,K$43,\"\"),\"\"))","v":""},{"$f":"'1 Données d''entrée'!$C$90","v":0},"","","","","","","","","","","","","","","","","","","",""]
[10,{"$f":"IF(L$43=0,\"\",IF('1 Données d''entrée'!$C$90>0,IF('1 Données d''entrée'!$C$90<20,L$43,\"\"),\"\"))","v":""},{"$f":"'1 Données d''entrée'!$C$90","v":0},"","","","","","","","","","","","","","","","","","","",""]
[11,{"$f":"IF(M$43=0,\"\",IF('1 Données d''entrée'!$C$90>0,IF('1 Données d''entrée'!$C$90<20,M$43,\"\"),\"\"))","v":""},{"$f":"'1 Données d''entrée'!$C$90","v":0},"","","","","","","","","","","","","","","","","","","",""]
[12,{"$f":"IF(N$43=0,\"\",IF('1 Données d''entrée'!$C$90>0,IF('1 Données d''entrée'!$C$90<20,N$43,\"\"),\"\"))","v":""},{"$f":"'1 Données d''entrée'!$C$90","v":0},"","","","","","","","","","","","","","","","","","","",""]
[13,{"$f":"IF(O$43=0,\"\",IF('1 Données d''entrée'!$C$90>0,IF('1 Données d''entrée'!$C$90<20,O$43,\"\"),\"\"))","v":""},{"$f":"'1 Données d''entrée'!$C$90","v":0},"","","","","","","","","","","","","","","","","","","",""]
[14,{"$f":"IF(P$43=0,\"\",IF('1 Données d''entrée'!$C$90>0,IF('1 Données d''entrée'!$C$90<20,P$43,\"\"),\"\"))","v":""},{"$f":"'1 Données d''entrée'!$C$90","v":0},"","","","","","","","","","","","","","","","","","","",""]
[15,{"$f":"IF(Q$43=0,\"\",IF('1 Données d''entrée'!$C$90>0,IF('1 Données d''entrée'!$C$90<20,Q$43,\"\"),\"\"))","v":""},{"$f":"'1 Données d''entrée'!$C$90","v":0},"","","","","","","","","","","","","","","",{"$f":"IF($C166+$A166=S$150,$B166,IF(($C166*2+$A166)=S$150,$B166,IF(($C166*3+$A166)=S$150,$B166,IF(($C166*4+$A166)=S$150,$B166,IF(($C166*5+$A166)=S$150,$B166,IF(($C166*6+$A166)=S$150,$B166,IF(($C166*7+$A166)=S$150,$B166,IF(($C166*8+$A166)=S$150,$B166,\"\"))))))))","v":""},"","","",""]
[16,{"$f":"IF(R$43=0,\"\",IF('1 Données d''entrée'!$C$90>0,IF('1 Données d''entrée'!$C$90<20,R$43,\"\"),\"\"))","v":""},{"$f":"'1 Données d''entrée'!$C$90","v":0},{"$f":"IF($C167+$A167=D$150,$B167,IF(($C167*2+$A167)=D$150,$B167,IF(($C167*3+$A167)=D$150,$B167,IF(($C167*4+$A167)=D$150,$B167,IF(($C167*5+$A167)=D$150,$B167,IF(($C167*6+$A167)=D$150,$B167,IF(($C167*7+$A167)=D$150,$B167,IF(($C167*8+$A167)=D$150,$B167,\"\"))))))))","v":""},"","","","","","","","","","","","","","","","","","",""]
[17,{"$f":"IF(S$43=0,\"\",IF('1 Données d''entrée'!$C$90>0,IF('1 Données d''entrée'!$C$90<20,S$43,\"\"),\"\"))","v":""},{"$f":"'1 Données d''entrée'!$C$90","v":0},"","","","","","","","","","","","","","","","","","","",""]
[18,{"$f":"IF(T$43=0,\"\",IF('1 Données d''entrée'!$C$90>0,IF('1 Données d''entrée'!$C$90<20,T$43,\"\"),\"\"))","v":""},{"$f":"'1 Données d''entrée'!$C$90","v":0},"","","","","","","","","","","","","","","","","","","",""]
[19,{"$f":"IF(U$43=0,\"\",IF('1 Données d''entrée'!$C$90>0,IF('1 Données d''entrée'!$C$90<20,U$43,\"\"),\"\"))","v":""},{"$f":"'1 Données d''entrée'!$C$90","v":0},"","","","","","","","","","","","","","","","","","","",""]
[20,{"$f":"IF(V$43=0,\"\",IF('1 Données d''entrée'!$C$90>0,IF('1 Données d''entrée'!$C$90<20,V$43,\"\"),\"\"))","v":""},{"$f":"'1 Données d''entrée'!$C$90","v":0},"","","","","","","","","","","","","","","","","","",{"$f":"IF($C171+$A171=V$150,$B171,\"\")","v":""},""]
[]
["Branchement d'une maison (tarif): câbles, compteur"]
["Période d'investissement","Investissement = Réinvestissement","Longévité","Période de réinvestissement"]
[null,null,null,1,2,3,4,5,6,7,8,9,10,11,12,13,14,15,16,17,18,19,20]
[0,{"$f":"IF(B$44=0,\"\",IF('1 Données d''entrée'!$C$91>0,IF('1 Données d''entrée'!$C$91<20,B$44,\"\"),\"\"))","v":""},{"$f":"'1 Données d''entrée'!$C$91","v":0},{"$f":"IF($C176+$A176=D$150,$B176,IF(($C176*2+$A176)=D$150,$B176,IF(($C176*3+$A176)=D$150,$B176,IF(($C176*4+$A176)=D$150,$B176,IF(($C176*5+$A176)=D$150,$B176,IF(($C176*6+$A176)=D$150,$B176,IF(($C176*7+$A176)=D$150,$B176,IF(($C176*8+$A176)=D$150,$B176,\"\"))))))))","v":""},"","","","","","","","","","","","","","","",{"$f":"IF($C176+$A176=T$150,$B176,IF(($C176*2+$A176)=T$150,$B176,IF(($C176*3+$A176)=T$150,$B176,IF(($C176*4+$A176)=T$150,$B176,IF(($C176*5+$A176)=T$150,$B176,IF(($C176*6+$A176)=T$150,$B176,IF(($C176*7+$A176)=T$150,$B176,IF(($C176*8+$A176)=T$150,$B176,\"\"))))))))","v":""},{"$f":"IF($C176+$A176=U$150,$B176,IF(($C176*2+$A176)=U$150,$B176,IF(($C176*3+$A176)=U$150,$B176,IF(($C176*6+$A176)=U$150,$B176,IF(($C176*9+$A176)=U$150,$B176,\"\")))))","v":""},{"$f":"IF($C176+$A176=V$150,$B176,IF(($C176*2+$A176)=V$150,$B176,IF(($C176*3+$A176)=V$150,$B176,IF(($C176*4+$A176)=V$150,$B176,IF(($C176*5+$A176)=V$150,$B176,IF(($C176*6+$A176)=V$150,$B176,IF(($C176*7+$A176)=V$150,$B176,IF(($C176*8+$A176)=V$150,$B176,\"\"))))))))","v":""},{"$f":"IF(($C176*2+$A176)=W$150,$B176,IF(($C176*4+$A176)=W$150,$B176,IF(($C176*5+$A176)=W$150,$B176,IF(($C176*10+$A176)=W$150,$B176,\"\"))))","v":""}]
[1,{"$f":"IF(C$44=0,\"\",IF('1 Données d''entrée'!$C$91>0,IF('1 Données d''entrée'!$C$91<20,C$44,\"\"),\"\"))","v":""},{"$f":"'1 Données d''entrée'!$C$91","v":0},"","","","","","","","","","","","","","","","","",{"$f":"IF($C177+$A177=U$150,$B177,IF(($C177*2+$A177)=U$150,$B177,IF(($C177*3+$A177)=U$150,$B177,IF(($C177*6+$A177)=U$150,$B177,IF(($C177*9+$A177)=U$150,$B177,\"\")))))","v":""},{"$f":"IF($C177+$A177=V$150,$B177,IF(($C177*2+$A177)=V$150,$B177,IF(($C177*3+$A177)=V$150,$B177,IF(($C177*5+$A177)=V$150,$B177,IF(($C177*6+$A177)=V$150,$B177,IF(($C177*7+$A177)=V$150,$B177,IF(($C177*8+$A177)=V$150,$B177,IF(($C177*9+$A177)=V$150,$B177,\"\"))))))))","v":""},{"$f":"IF($C177+$A177=W$150,$B177,IF(($C177*3+$A177)=W$150,$B177,IF(($C177*5+$A177)=W$150,$B177,IF(($C177*6+$A177)=W$150,$B177,IF(($C177*7+$A177)=W$150,$B177,IF(($C177*8+$A177)=W$150,$B177,IF(($C177*9+$A177)=W$150,$B177,\"\")))))))","v":""}]
[2,{"$f":"IF(D$44=0,\"\",IF('1 Données d''entrée'!$C$91>0,IF('1 Données d''entrée'!$C$91<20,D$44,\"\"),\"\"))","v":""},{"$f":"'1 Données d''entrée'!$C$91","v":0},"","","","","","","","","","","","","","","","","","","",{"$f":"IF($C178+$A178=W$150,$B178,IF(($C178*3+$A178)=W$150,$B178,IF(($C178*2+$A178)=W$150,$B178,IF(($C178*6+$A178)=W$150,$B178,IF(($C178*7+$A178)=W$150,$B178,IF(($C178*8+$A178)=W$150,$B178,IF(($C178*9+$A178)=W$150,$B178,\"\")))))))","v":""}]
[3,{"$f":"IF(E$44=0,\"\",IF('1 Données d''entrée'!$C$91>0,IF('1 Données d''entrée'!$C$91<20,E$44,\"\"),\"\"))","v":""},{"$f":"'1 Données d''entrée'!$C$91","v":0},"","","","","","","","","","","","","","","","","","","",{"$f":"IF($C179+$A179=W$150,$B179,IF(($C179*3+$A179)=W$150,$B179,IF(($C179*5+$A179)=W$150,$B179,IF(($C179*6+$A179)=W$150,$B179,IF(($C179*7+$A179)=W$150,$B179,IF(($C179*8+$A179)=W$150,$B179,IF(($C179*9+$A179)=W$150,$B179,\"\")))))))","v":""}]
[4,{"$f":"IF(F$44=0,\"\",IF('1 Données d''entrée'!$C$91>0,IF('1 Données d''entrée'!$C$91<20,F$44,\"\"),\"\"))","v":""},{"$f":"'1 Données d''entrée'!$C$91","v":0},"","","","","","","","","","","","","","","","","","","",{"$f":"IF($C180+$A180=W$150,$B180,IF(($C180*4+$A180)=W$150,$B180,IF(($C180*5+$A180)=W$150,$B180,IF(($C180*6+$A180)=W$150,$B180,IF(($C180*7+$A180)=W$150,$B180,IF(($C180*8+$A180)=W$150,$B180,IF(($C180*2+$A180)=W$150,$B180,\"\")))))))","v":""}]
[5,{"$f":"IF(G$44=0,\"\",IF('1 Données d''entrée'!$C$91>0,IF('1 Données d''entrée'!$C$91<20,G$44,\"\"),\"\"))","v":""},{"$f":"'1 Données d''entrée'!$C$91","v":0},"","","","","","","","","","","","","","","","","","","",{"$f":"IF($C181+$A181=W$150,$B181,IF(($C181*3+$A181)=W$150,$B181,IF(($C181*5+$A181)=W$150,$B181,IF(($C181*6+$A181)=W$150,$B181,IF(($C181*7+$A181)=W$150,$B181,IF(($C181*2+$A181)=W$150,$B181,IF(($C181*4+$A181)=W$150,$B181,\"\")))))))","v":""}]
[6,{"$f":"IF(H$44=0,\"\",IF('1 Données d''entrée'!$C$91>0,IF('1 Données d''entrée'!$C$91<20,H$44,\"\"),\"\"))","v":""},{"$f":"'1 Données d''entrée'!$C$91","v":0},"","","","","","","","","","","","","","","","","","","",""]
[7,{"$f":"IF(I$44=0,\"\",IF('1 Données d''entrée'!$C$91>0,IF('1 Données d''entrée'!$C$91<20,I$44,\"\"),\"\"))","v":""},{"$f":"'1 Données d''entrée'!$C$91","v":0},"","","","","","","","","","","","","","","","","","","",""]
[8,{"$f":"IF(J$44=0,\"\",IF('1 Données d''entrée'!$C$91>0,IF('1 Données d''entrée'!$C$91<20,J$44,\"\"),\"\"))","v":""},{"$f":"'1 Données d''entrée'!$C$91","v":0},"","","","","","","","","","","","","","","","","","","",""]
[9,{"$f":"IF(K$44=0,\"\",IF('1 Données d''entrée'!$C$91>0,IF('1 Données d''entrée'!$C$91<20,K$44,\"\"),\"\"))","v":""},{"$f":"'1 Données d''entrée'!$C$91","v":0},"","","","","","","","","","","","","","","","","","","",""]
[10,{"$f":"IF(L$44=0,\"\",IF('1 Données d''entrée'!$C$91>0,IF('1 Données d''entrée'!$C$91<20,L$44,\"\"),\"\"))","v":""},{"$f":"'1 Données d''entrée'!$C$91","v":0},"","","","","","","","","","","","","","","","","","","",""]
[11,{"$f":"IF(M$44=0,\"\",IF('1 Données d''entrée'!$C$91>0,IF('1 Données d''entrée'!$C$91<20,M$44,\"\"),\"\"))","v":""},{"$f":"'1 Données d''entrée'!$C$91","v":0},"","","","","","","","","","","","","","","","","","","",""]
[12,{"$f":"IF(N$44=0,\"\",IF('1 Données d''entrée'!$C$91>0,IF('1 Données d''entrée'!$C$91<20,N$44,\"\"),\"\"))","v":""},{"$f":"'1 Données d''entrée'!$C$91","v":0},"","","","","","","","","","","","","","","","","","","",""]
[13,{"$f":"IF(O$44=0,\"\",IF('1 Données d''entrée'!$C$91>0,IF('1 Données d''entrée'!$C$91<20,O$44,\"\"),\"\"))","v":""},{"$f":"'1 Données d''entrée'!$C$91","v":0},"","","","","","","","","","","","","","","","","","","",""]
[14,{"$f":"IF(P$44=0,\"\",IF('1 Données d''entrée'!$C$91>0,IF('1 Données d''entrée'!$C$91<20,P$44,\"\"),\"\"))","v":""},{"$f":"'1 Données d''entrée'!$C$91","v":0},"","","","","","","","","","","","","","","","","","","",""]
[15,{"$f":"IF(Q$44=0,\"\",IF('1 Données d''entrée'!$C$91>0,IF('1 Données d''entrée'!$C$91<20,Q$44,\"\"),\"\"))","v":""},{"$f":"'1 Données d''entrée'!$C$91","v":0},"","","","","","","","","","","","","","","",{"$f":"IF($C191+$A191=S$150,$B191,IF(($C191*2+$A191)=S$150,$B191,IF(($C191*3+$A191)=S$150,$B191,IF(($C191*4+$A191)=S$150,$B191,IF(($C191*5+$A191)=S$150,$B191,IF(($C191*6+$A191)=S$150,$B191,IF(($C191*7+$A191)=S$150,$B191,IF(($C191*8+$A191)=S$150,$B191,\"\"))))))))","v":""},"","","",""]
[16,{"$f":"IF(R$44=0,\"\",IF('1 Données d''entrée'!$C$91>0,IF('1 Données d''entrée'!$C$91<20,R$44,\"\"),\"\"))","v":""},{"$f":"'1 Données d''entrée'!$C$91","v":0},{"$f":"IF($C192+$A192=D$150,$B192,IF(($C192*2+$A192)=D$150,$B192,IF(($C192*3+$A192)=D$150,$B192,IF(($C192*4+$A192)=D$150,$B192,IF(($C192*5+$A192)=D$150,$B192,IF(($C192*6+$A192)=D$150,$B192,IF(($C192*7+$A192)=D$150,$B192,IF(($C192*8+$A192)=D$150,$B192,\"\"))))))))","v":""},"","","","","","","","","","","","","","","","","","",""]
[17,{"$f":"IF(S$44=0,\"\",IF('1 Données d''entrée'!$C$91>0,IF('1 Données d''entrée'!$C$91<20,S$44,\"\"),\"\"))","v":""},{"$f":"'1 Données d''entrée'!$C$91","v":0},"","","","","","","","","","","","","","","","","","","",""]
[18,{"$f":"IF(T$44=0,\"\",IF('1 Données d''entrée'!$C$91>0,IF('1 Données d''entrée'!$C$91<20,T$44,\"\"),\"\"))","v":""},{"$f":"'1 Données d''entrée'!$C$91","v":0},"","","","","","","","","","","","","","","","","","","",""]
[19,{"$f":"IF(U$44=0,\"\",IF('1 Données d''entrée'!$C$91>0,IF('1 Données d''entrée'!$C$91<20,U$44,\"\"),\"\"))","v":""},{"$f":"'1 Données d''entrée'!$C$91","v":0},"","","","","","","","","","","","","","","","","","","",""]
[20,{"$f":"IF(V$44=0,\"\",IF('1 Données d''entrée'!$C$91>0,IF('1 Données d''entrée'!$C$91<20,V$44,\"\"),\"\"))","v":""},{"$f":"'1 Données d''entrée'!$C$91","v":0},"","","","","","","","","","","","","","","","","","",{"$f":"IF($C196+$A196=V$150,$B196,\"\")","v":""},""]
[]
[]
[]
[]
["Coût d'opération et de maintenance"]
[]
["Coût total d'O&M ",{"$f":"B206+B208+B210","v":0},null,"Tableau supplétif pour le calcul des coûts annuels"]
[null,null,null,"Article","Prix (si longévité =1)","Article","Prix (si longévité =1)","Article","Prix (si longévité =1)","Article","Prix (si longévité =1)"]
["Construction du site",null,null,"1 Travaux préparatoires",null,"2 Construction du site",null,"3 Construction du réseau de transmission et distribution",null,"4 Licences / Assurances"]
["Coût pour opération et maintenance",{"$f":"'1 Données d''entrée'!B140","v":0},null,"Terrain d'action et description d'article",null,"Terrain d'action et description d'article",null,"Terrain d'action et description d'article",null,"Terrain d'action et description d'article"]
["Construction du réseau de T&D",null,null,"Coût d'ingénierie et design",null,{"$f":"'1 Données d''entrée'!A52","v":"Occupation du sol "},null,{"$f":"'1 Données d''entrée'!A84","v":"Transport et distribution"},null,{"$f":"'1 Données d''entrée'!A110","v":"Autorisations (production)"},{"$f":"IF('1 Données d''entrée'!C110=1,'1 Données d''entrée'!E110,0)","v":0}]
["Coût pour opération et maintenance",{"$f":"'1 Données d''entrée'!B141","v":0},null,{"$f":"'1 Données d''entrée'!A46","v":"L'avant-projet sommaire (APS)"},{"$f":"IF('1 Données d''entrée'!C46=1,'1 Données d''entrée'!E46,0)","v":0},{"$f":"'1 Données d''entrée'!A53","v":"Achat ou fermage (site)"},{"$f":"IF('1 Données d''entrée'!C53=1,'1 Données d''entrée'!E53,0)","v":0},{"$f":"'1 Données d''entrée'!A85","v":"Poste élévateur"},{"$f":"IF('1 Données d''entrée'!C85=1,'1 Données d''entrée'!E85,0)","v":0},{"$f":"'1 Données d''entrée'!A111","v":"Assurance"},{"$f":"IF('1 Données d''entrée'!C111=1,'1 Données d''entrée'!E111,0)","v":0}]
["Article avec une longévité = 1 (coût annuel)",null,null,{"$f":"'1 Données d''entrée'!A47","v":"Avant projet détaillé (APD)"},{"$f":"IF('1 Données d''entrée'!C47=1,'1 Données d''entrée'!E47,0)","v":0},{"$f":"'1 Données d''entrée'!A54","v":"Génie Civil"},null,{"$f":"'1 Données d''entrée'!A86","v":"Poste abaisseur"},{"$f":"IF('1 Données d''entrée'!C86=1,'1 Données d''entrée'!E86,0)","v":0}]
["Coût annuel total",{"$f":"SUM(E206:E210)+SUM(G206:G233)+SUM(I206:I235)+SUM(K206:K215)","v":0},null,{"$f":"'1 Données d''entrée'!A48","v":"Coût d'ingénierie"},{"$f":"IF('1 Données d''entrée'!C48=1,'1 Données d''entrée'!E48,0)","v":0},{"$f":"'1 Données d''entrée'!A55","v":"Barrage principal"},{"$f":"IF('1 Données d''entrée'!C55=1,'1 Données d''entrée'!E55,0)","v":0},{"$f":"'1 Données d''entrée'!A87","v":"Ligne (Haute tension)"},{"$f":"IF('1 Données d''entrée'!C87=1,'1 Données d''entrée'!E87,0)","v":0},{"$f":"'1 Données d''entrée'!A113","v":"Autorisations / Assurances additionnelles"}]
[{"$nulls":5},{"$f":"'1 Données d''entrée'!A56","v":"Barrage de dérivation"},{"$f":"IF('1 Données d''entrée'!C56=1,'1 Données d''entrée'!E56,0)","v":0},{"$f":"'1 Données d''entrée'!A88","v":"Ligne (basse tension)"},{"$f":"IF('1 Données d''entrée'!C88=1,'1 Données d''entrée'!E88,0)","v":0},{"$f":"'1 Données d''entrée'!A114","v":"-"},{"$f":"IF('1 Données d''entrée'!C114=1,'1 Données d''entrée'!E114,0)","v":0}]
[{"$nulls":5},{"$f":"'1 Données d''entrée'!A57","v":"Canal d'amenée"},{"$f":"IF('1 Données d''entrée'!C57=1,'1 Données d''entrée'!E57,0)","v":0},{"$f":"'1 Données d''entrée'!A89","v":"Branchement"},null,{"$f":"'1 Données d''entrée'!A115","v":"-"},{"$f":"IF('1 Données d''entrée'!C115=1,'1 Données d''entrée'!E115,0)","v":0}]
[{"$nulls":5},{"$f":"'1 Données d''entrée'!A58","v":"Chambre de mise en charge"},{"$f":"IF('1 Données d''entrée'!C58=1,'1 Données d''entrée'!E58,0)","v":0},{"$f":"'1 Données d''entrée'!A90","v":"Branchement d'un maison (forfait): câbles, fusible"},0,{"$f":"'1 Données d''entrée'!A116","v":"-"},{"$f":"IF('1 Données d''entrée'!C116=1,'1 Données d''entrée'!E116,0)","v":0}]
[{"$nulls":5},{"$f":"'1 Données d''entrée'!A59","v":"Station d’épuration : dessableur"},{"$f":"IF('1 Données d''entrée'!C59=1,'1 Données d''entrée'!E59,0)","v":0},{"$f":"'1 Données d''entrée'!A91","v":"Branchement d'un maison (tarif): câbles, compteur"},0,{"$f":"'1 Données d''entrée'!A117","v":"-"},{"$f":"IF('1 Données d''entrée'!C117=1,'1 Données d''entrée'!E117,0)","v":0}]
[{"$nulls":5},{"$f":"'1 Données d''entrée'!A60","v":"Bâtiment central"},{"$f":"IF('1 Données d''entrée'!C60=1,'1 Données d''entrée'!E60,0)","v":0},{"$f":"'1 Données d''entrée'!A92","v":"Occupation du sol (Sous-stations haute et basse tension, permission de passer pour le réseau)"},null,{"$f":"'1 Données d''entrée'!A118","v":"-"},{"$f":"IF('1 Données d''entrée'!C118=1,'1 Données d''entrée'!E118,0)","v":0}]
[{"$nulls":5},{"$f":"'1 Données d''entrée'!A61","v":"Restitution"},{"$f":"IF('1 Données d''entrée'!C61=1,'1 Données d''entrée'!E61,0)","v":0},{"$f":"'1 Données d''entrée'!A93","v":"Achat ou fermage (site)"},{"$f":"IF('1 Données d''entrée'!C93=1,'1 Données d''entrée'!E93,0)","v":0}]
[{"$nulls":5},{"$f":"'1 Données d''entrée'!A62","v":"Equipement électromécanique"}]
[{"$nulls":5},{"$f":"'1 Données d''entrée'!A63","v":"Turbine, régulateur, alterneur"},{"$f":"IF('1 Données d''entrée'!C63=1,'1 Données d''entrée'!E63,0)","v":0}]
[{"$nulls":5},{"$f":"'1 Données d''entrée'!A64","v":"Installation électrique (contrôle commande)"},{"$f":"IF('1 Données d''entrée'!C64=1,'1 Données d''entrée'!E64,0)","v":0},{"$f":"'1 Données d''entrée'!A96","v":"Additionnel (construction du réseau de T&D)"}]
[{"$nulls":5},{"$f":"'1 Données d''entrée'!A65","v":"Conduite forcée "},null,{"$f":"'1 Données d''entrée'!A97","v":"Transport (de l'équipement, du matériel)"},{"$f":"IF('1 Données d''entrée'!C97=1,'1 Données d''entrée'!E97,0)","v":0}]
[{"$nulls":5},{"$f":"'1 Données d''entrée'!A66","v":"Conduite en acier"},{"$f":"IF('1 Données d''entrée'!C66=1,'1 Données d''entrée'!E66,0)","v":0},{"$f":"'1 Données d''entrée'!A98","v":"-"},{"$f":"IF('1 Données d''entrée'!C98=1,'1 Données d''entrée'!E98,0)","v":0}]
[{"$nulls":5},{"$f":"'1 Données d''entrée'!A67","v":"Route d'accès "},null,{"$f":"'1 Données d''entrée'!A99","v":"-"},{"$f":"IF('1 Données d''entrée'!C99=1,'1 Données d''entrée'!E99,0)","v":0}]
[{"$nulls":5},{"$f":"'1 Données d''entrée'!A68","v":"Route d'accès"},{"$f":"IF('1 Données d''entrée'!C68=1,'1 Données d''entrée'!E68,0)","v":0},{"$f":"'1 Données d''entrée'!A100","v":"-"},{"$f":"IF('1 Données d''entrée'!C100=1,'1 Données d''entrée'!E100,0)","v":0}]
[{"$nulls":7},{"$f":"'1 Données d''entrée'!A101","v":"-"},{"$f":"IF('1 Données d''entrée'!C101=1,'1 Données d''entrée'!E101,0)","v":0}]
[{"$nulls":5},{"$f":"'1 Données d''entrée'!A70","v":"Additionnel (construction du site)"},null,{"$f":"'1 Données d''entrée'!A102","v":"-"},{"$f":"IF('1 Données d''entrée'!C102=1,'1 Données d''entrée'!E102,0)","v":0}]
[{"$nulls":5},{"$f":"'1 Données d''entrée'!A71","v":"Transport (de l'équipement, du matériel)"},{"$f":"IF('1 Données d''entrée'!C71=1,'1 Données d''entrée'!E71,0)","v":0},{"$f":"'1 Données d''entrée'!A103","v":"-"},{"$f":"IF('1 Données d''entrée'!C103=1,'1 Données d''entrée'!E103,0)","v":0}]
[{"$nulls":5},{"$f":"'1 Données d''entrée'!A72","v":"Générateur (sauvegarde)"},{"$f":"IF('1 Données d''entrée'!C72=1,'1 Données d''entrée'!E72,0)","v":0},{"$f":"'1 Données d''entrée'!A104","v":"-"},{"$f":"IF('1 Données d''entrée'!C104=1,'1 Données d''entrée'!E104,0)","v":0}]
[{"$nulls":5},{"$f":"'1 Données d''entrée'!A73","v":"-"},{"$f":"IF('1 Données d''entrée'!C73=1,'1 Données d''entrée'!E73,0)","v":0},{"$f":"'1 Données d''entrée'!A105","v":"-"},{"$f":"IF('1 Données d''entrée'!C105=1,'1 Données d''entrée'!E105,0)","v":0}]
[{"$nulls":5},{"$f":"'1 Données d''entrée'!A74","v":"-"},{"$f":"IF('1 Données d''entrée'!C74=1,'1 Données d''entrée'!E74,0)","v":0},{"$f":"'1 Données d''entrée'!A106","v":"-"},{"$f":"IF('1 Données d''entrée'!C106=1,'1 Données d''entrée'!E106,0)","v":0}]
[{"$nulls":5},{"$f":"'1 Données d''entrée'!A75","v":"-"},{"$f":"IF('1 Données d''entrée'!C75=1,'1 Données d''entrée'!E75,0)","v":0}]
[{"$nulls":5},{"$f":"'1 Données d''entrée'!A76","v":"-"},{"$f":"IF('1 Données d''entrée'!C76=1,'1 Données d''entrée'!E76,0)","v":0}]
[{"$nulls":5},{"$f":"'1 Données d''entrée'!A77","v":"-"},{"$f":"IF('1 Données d''entrée'!C77=1,'1 Données d''entrée'!E77,0)","v":0}]

{"sheet":"4 Recette totale","index":5,"n_rows":138,"n_cols":13,"rows_kept":138,"cut":false,"hidden":false,"merged":[[115,0,115,5],[90,7,90,12],[2,0,2,5],[4,0,4,3],[62,6,62,7],[32,0,32,4],[62,0,62,4],[90,0,90,3]]}
["Recette totale"]
[]
["La recette totale est la somme des recettes des frais de connexion et des recettes de la vente d'électricité. Au-dessous de l'aperçu de la recette totale, des tableaux supplétifs aident à comprendre le calcul de la recette totale. "]
[]
["Recette totale "]
["Période (t)","Frais de connexion (AR)","Vente d'électricité (AR)","Recette totale (AR)"]
[0,{"$f":"E35","v":0},{"$f":"E65+H65","v":{"$error":"#DIV/0!"}},{"$f":"IF(A7>'1 Données d''entrée'!$H$32,0,((E35+E65)*'1 Données d''entrée'!$B$375+H65))","v":{"$error":"#DIV/0!"}}]
[1,{"$f":"E36","v":0},{"$f":"E66+H66","v":{"$error":"#DIV/0!"}},{"$f":"IF(A8>'1 Données d''entrée'!$H$32,0,((E36+E66)*'1 Données d''entrée'!$B$375+H66))","v":{"$error":"#DIV/0!"}}]
[2,0,{"$error":"#DIV/0!"},{"$f":"IF(A9>'1 Données d''entrée'!$H$32,0,((E37+E67)*'1 Données d''entrée'!$B$375+H67))","v":{"$error":"#DIV/0!"}}]
[3,0,{"$error":"#DIV/0!"},{"$f":"IF(A10>'1 Données d''entrée'!$H$32,0,((E38+E68)*'1 Données d''entrée'!$B$375+H68))","v":{"$error":"#DIV/0!"}}]
[4,0,{"$error":"#DIV/0!"},{"$f":"IF(A11>'1 Données d''entrée'!$H$32,0,((E39+E69)*'1 Données d''entrée'!$B$375+H69))","v":{"$error":"#DIV/0!"}}]
[5,0,{"$error":"#DIV/0!"},{"$f":"IF(A12>'1 Données d''entrée'!$H$32,0,((E40+E70)*'1 Données d''entrée'!$B$375+H70))","v":{"$error":"#DIV/0!"}}]
[6,0,{"$error":"#DIV/0!"},{"$f":"IF(A13>'1 Données d''entrée'!$H$32,0,((E41+E71)*'1 Données d''entrée'!$B$375+H71))","v":{"$error":"#DIV/0!"}}]
[7,0,{"$error":"#DIV/0!"},{"$f":"IF(A14>'1 Données d''entrée'!$H$32,0,((E42+E72)*'1 Données d''entrée'!$B$375+H72))","v":{"$error":"#DIV/0!"}}]
[8,0,{"$error":"#DIV/0!"},{"$f":"IF(A15>'1 Données d''entrée'!$H$32,0,((E43+E73)*'1 Données d''entrée'!$B$375+H73))","v":{"$error":"#DIV/0!"}}]
[9,0,{"$error":"#DIV/0!"},{"$f":"IF(A16>'1 Données d''entrée'!$H$32,0,((E44+E74)*'1 Données d''entrée'!$B$375+H74))","v":{"$error":"#DIV/0!"}}]
[10,0,{"$error":"#DIV/0!"},{"$f":"IF(A17>'1 Données d''entrée'!$H$32,0,((E45+E75)*'1 Données d''entrée'!$B$375+H75))","v":{"$error":"#DIV/0!"}}]
[11,0,{"$error":"#DIV/0!"},{"$f":"IF(A18>'1 Données d''entrée'!$H$32,0,((E46+E76)*'1 Données d''entrée'!$B$375+H76))","v":{"$error":"#DIV/0!"}}]
[12,0,{"$error":"#DIV/0!"},{"$f":"IF(A19>'1 Données d''entrée'!$H$32,0,((E47+E77)*'1 Données d''entrée'!$B$375+H77))","v":{"$error":"#DIV/0!"}}]
[13,0,{"$error":"#DIV/0!"},{"$f":"IF(A20>'1 Données d''entrée'!$H$32,0,((E48+E78)*'1 Données d''entrée'!$B$375+H78))","v":{"$error":"#DIV/0!"}}]
[14,0,{"$error":"#DIV/0!"},{"$f":"IF(A21>'1 Données d''entrée'!$H$32,0,((E49+E79)*'1 Données d''entrée'!$B$375+H79))","v":{"$error":"#DIV/0!"}}]
[15,0,{"$error":"#DIV/0!"},{"$f":"IF(A22>'1 Données d''entrée'!$H$32,0,((E50+E80)*'1 Données d''entrée'!$B$375+H80))","v":{"$error":"#DIV/0!"}}]
[16,0,{"$error":"#DIV/0!"},{"$f":"IF(A23>'1 Données d''entrée'!$H$32,0,((E51+E81)*'1 Données d''entrée'!$B$375+H81))","v":{"$error":"#DIV/0!"}}]
[17,0,{"$error":"#DIV/0!"},{"$f":"IF(A24>'1 Données d''entrée'!$H$32,0,((E52+E82)*'1 Données d''entrée'!$B$375+H82))","v":{"$error":"#DIV/0!"}}]
[18,0,{"$error":"#DIV/0!"},{"$f":"IF(A25>'1 Données d''entrée'!$H$32,0,((E53+E83)*'1 Données d''entrée'!$B$375+H83))","v":{"$error":"#DIV/0!"}}]
[19,0,{"$error":"#DIV/0!"},{"$f":"IF(A26>'1 Données d''entrée'!$H$32,0,((E54+E84)*'1 Données d''entrée'!$B$375+H84))","v":{"$error":"#DIV/0!"}}]
[20,0,{"$error":"#DIV/0!"},{"$f":"IF(A27>'1 Données d''entrée'!$H$32,0,((E55+E85)*'1 Données d''entrée'!$B$375+H85))","v":{"$error":"#DIV/0!"}}]
[]
[]
[]
["Frais de connexion"]
[]
["Recette totale des frais de connexion"]
["Période (t)","Recette des nouvelles connexions  (forfait)","Recette des nouvelles connexions  (tarif fixe)","Recette des nouvelles connexions  (tarif flexible)","Recette totale par période (AR)"]
[0,{"$f":"'1 Données d''entrée'!C221*'1 Données d''entrée'!$B$190","v":0},{"$f":"'1 Données d''entrée'!D221*'1 Données d''entrée'!$G$190","v":0},{"$f":"'1 Données d''entrée'!E221*'1 Données d''entrée'!$M$190","v":0},{"$f":"IF('1 Données d''entrée'!$N$187=TRUE,D35,0)+IF('1 Données d''entrée'!$H$187=TRUE,C35,0)+IF('1 Données d''entrée'!$C$187=TRUE,B35,0)","v":0}]
[1,{"$f":"('1 Données d''entrée'!C222-'1 Données d''entrée'!C221)*'1 Données d''entrée'!$B$190","v":0},{"$f":"('1 Données d''entrée'!D222-'1 Données d''entrée'!D221)*'1 Données d''entrée'!$G$190","v":0},{"$f":"('1 Données d''entrée'!E222-'1 Données d''entrée'!E221)*'1 Données d''entrée'!$M$190","v":0},{"$f":"IF('1 Données d''entrée'!$N$187=TRUE,D36,0)+IF('1 Données d''entrée'!$H$187=TRUE,C36,0)+IF('1 Données d''entrée'!$C$187=TRUE,B36,0)","v":0}]
[2,{"$f":"('1 Données d''entrée'!C223-'1 Données d''entrée'!C222)*'1 Données d''entrée'!$B$190","v":0},{"$f":"('1 Données d''entrée'!D223-'1 Données d''entrée'!D222)*'1 Données d''entrée'!$G$190","v":0},{"$f":"('1 Données d''entrée'!E223-'1 Données d''entrée'!E222)*'1 Données d''entrée'!$M$190","v":0},{"$f":"IF('1 Données d''entrée'!$N$187=TRUE,D37,0)+IF('1 Données d''entrée'!$H$187=TRUE,C37,0)+IF('1 Données d''entrée'!$C$187=TRUE,B37,0)","v":0}]
[3,{"$f":"('1 Données d''entrée'!C224-'1 Données d''entrée'!C223)*'1 Données d''entrée'!$B$190","v":0},{"$f":"('1 Données d''entrée'!D224-'1 Données d''entrée'!D223)*'1 Données d''entrée'!$G$190","v":0},{"$f":"('1 Données d''entrée'!E224-'1 Données d''entrée'!E223)*'1 Données d''entrée'!$M$190","v":0},{"$f":"IF('1 Données d''entrée'!$N$187=TRUE,D38,0)+IF('1 Données d''entrée'!$H$187=TRUE,C38,0)+IF('1 Données d''entrée'!$C$187=TRUE,B38,0)","v":0}]
[4,{"$f":"('1 Données d''entrée'!C225-'1 Données d''entrée'!C224)*'1 Données d''entrée'!$B$190","v":0},{"$f":"('1 Données d''entrée'!D225-'1 Données d''entrée'!D224)*'1 Données d''entrée'!$G$190","v":0},{"$f":"('1 Données d''entrée'!E225-'1 Données d''entrée'!E224)*'1 Données d''entrée'!$M$190","v":0},{"$f":"IF('1 Données d''entrée'!$N$187=TRUE,D39,0)+IF('1 Données d''entrée'!$H$187=TRUE,C39,0)+IF('1 Données d''entrée'!$C$187=TRUE,B39,0)","v":0}]
[5,{"$f":"('1 Données d''entrée'!C226-'1 Données d''entrée'!C225)*'1 Données d''entrée'!$B$190","v":0},{"$f":"('1 Données d''entrée'!D226-'1 Données d''entrée'!D225)*'1 Données d''entrée'!$G$190","v":0},{"$f":"('1 Données d''entrée'!E226-'1 Données d''entrée'!E225)*'1 Données d''entrée'!$M$190","v":0},{"$f":"IF('1 Données d''entrée'!$N$187=TRUE,D40,0)+IF('1 Données d''entrée'!$H$187=TRUE,C40,0)+IF('1 Données d''entrée'!$C$187=TRUE,B40,0)","v":0}]
[6,{"$f":"('1 Données d''entrée'!C227-'1 Données d''entrée'!C226)*'1 Données d''entrée'!$B$190","v":0},{"$f":"('1 Données d''entrée'!D227-'1 Données d''entrée'!D226)*'1 Données d''entrée'!$G$190","v":0},{"$f":"('1 Données d''entrée'!E227-'1 Données d''entrée'!E226)*'1 Données d''entrée'!$M$190","v":0},{"$f":"IF('1 Données d''entrée'!$N$187=TRUE,D41,0)+IF('1 Données d''entrée'!$H$187=TRUE,C41,0)+IF('1 Données d''entrée'!$C$187=TRUE,B41,0)","v":0}]
[7,{"$f":"('1 Données d''entrée'!C228-'1 Données d''entrée'!C227)*'1 Données d''entrée'!$B$190","v":0},{"$f":"('1 Données d''entrée'!D228-'1 Données d''entrée'!D227)*'1 Données d''entrée'!$G$190","v":0},{"$f":"('1 Données d''entrée'!E228-'1 Données d''entrée'!E227)*'1 Données d''entrée'!$M$190","v":0},{"$f":"IF('1 Données d''entrée'!$N$187=TRUE,D42,0)+IF('1 Données d''entrée'!$H$187=TRUE,C42,0)+IF('1 Données d''entrée'!$C$187=TRUE,B42,0)","v":0}]
[8,{"$f":"('1 Données d''entrée'!C229-'1 Données d''entrée'!C228)*'1 Données d''entrée'!$B$190","v":0},{"$f":"('1 Données d''entrée'!D229-'1 Données d''entrée'!D228)*'1 Données d''entrée'!$G$190","v":0},{"$f":"('1 Données d''entrée'!E229-'1 Données d''entrée'!E228)*'1 Données d''entrée'!$M$190","v":0},{"$f":"IF('1 Données d''entrée'!$N$187=TRUE,D43,0)+IF('1 Données d''entrée'!$H$187=TRUE,C43,0)+IF('1 Données d''entrée'!$C$187=TRUE,B43,0)","v":0}]
[9,{"$f":"('1 Données d''entrée'!C230-'1 Données d''entrée'!C229)*'1 Données d''entrée'!$B$190","v":0},{"$f":"('1 Données d''entrée'!D230-'1 Données d''entrée'!D229)*'1 Données d''entrée'!$G$190","v":0},{"$f":"('1 Données d''entrée'!E230-'1 Données d''entrée'!E229)*'1 Données d''entrée'!$M$190","v":0},{"$f":"IF('1 Données d''entrée'!$N$187=TRUE,D44,0)+IF('1 Données d''entrée'!$H$187=TRUE,C44,0)+IF('1 Données d''entrée'!$C$187=TRUE,B44,0)","v":0}]
[10,{"$f":"('1 Données d''entrée'!C231-'1 Données d''entrée'!C230)*'1 Données d''entrée'!$B$190","v":0},{"$f":"('1 Données d''entrée'!D231-'1 Données d''entrée'!D230)*'1 Données d''entrée'!$G$190","v":0},{"$f":"('1 Données d''entrée'!E231-'1 Données d''entrée'!E230)*'1 Données d''entrée'!$M$190","v":0},{"$f":"IF('1 Données d''entrée'!$N$187=TRUE,D45,0)+IF('1 Données d''entrée'!$H$187=TRUE,C45,0)+IF('1 Données d''entrée'!$C$187=TRUE,B45,0)","v":0}]
[11,{"$f":"('1 Données d''entrée'!C232-'1 Données d''entrée'!C231)*'1 Données d''entrée'!$B$190","v":0},{"$f":"('1 Données d''entrée'!D232-'1 Données d''entrée'!D231)*'1 Données d''entrée'!$G$190","v":0},{"$f":"('1 Données d''entrée'!E232-'1 Données d''entrée'!E231)*'1 Données d''entrée'!$M$190","v":0},{"$f":"IF('1 Données d''entrée'!$N$187=TRUE,D46,0)+IF('1 Données d''entrée'!$H$187=TRUE,C46,0)+IF('1 Données d''entrée'!$C$187=TRUE,B46,0)","v":0}]
[12,{"$f":"('1 Données d''entrée'!C233-'1 Données d''entrée'!C232)*'1 Données d''entrée'!$B$190","v":0},{"$f":"('1 Données d''entrée'!D233-'1 Données d''entrée'!D232)*'1 Données d''entrée'!$G$190","v":0},{"$f":"('1 Données d''entrée'!E233-'1 Données d''entrée'!E232)*'1 Données d''entrée'!$M$190","v":0},{"$f":"IF('1 Données d''entrée'!$N$187=TRUE,D47,0)+IF('1 Données d''entrée'!$H$187=TRUE,C47,0)+IF('1 Données d''entrée'!$C$187=TRUE,B47,0)","v":0}]
[13,{"$f":"('1 Données d''entrée'!C234-'1 Données d''entrée'!C233)*'1 Données d''entrée'!$B$190","v":0},{"$f":"('1 Données d''entrée'!D234-'1 Données d''entrée'!D233)*'1 Données d''entrée'!$G$190","v":0},{"$f":"('1 Données d''entrée'!E234-'1 Données d''entrée'!E233)*'1 Données d''entrée'!$M$190","v":0},{"$f":"IF('1 Données d''entrée'!$N$187=TRUE,D48,0)+IF('1 Données d''entrée'!$H$187=TRUE,C48,0)+IF('1 Données d''entrée'!$C$187=TRUE,B48,0)","v":0}]
[14,{"$f":"('1 Données d''entrée'!C235-'1 Données d''entrée'!C234)*'1 Données d''entrée'!$B$190","v":0},{"$f":"('1 Données d''entrée'!D235-'1 Données d''entrée'!D234)*'1 Données d''entrée'!$G$190","v":0},{"$f":"('1 Données d''entrée'!E235-'1 Données d''entrée'!E234)*'1 Données d''entrée'!$M$190","v":0},{"$f":"IF('1 Données d''entrée'!$N$187=TRUE,D49,0)+IF('1 Données d''entrée'!$H$187=TRUE,C49,0)+IF('1 Données d''entrée'!$C$187=TRUE,B49,0)","v":0}]
[15,{"$f":"('1 Données d''entrée'!C236-'1 Données d''entrée'!C235)*'1 Données d''entrée'!$B$190","v":0},{"$f":"('1 Données d''entrée'!D236-'1 Données d''entrée'!D235)*'1 Données d''entrée'!$G$190","v":0},{"$f":"('1 Données d''entrée'!E236-'1 Données d''entrée'!E235)*'1 Données d''entrée'!$M$190","v":0},{"$f":"IF('1 Données d''entrée'!$N$187=TRUE,D50,0)+IF('1 Données d''entrée'!$H$187=TRUE,C50,0)+IF('1 Données d''entrée'!$C$187=TRUE,B50,0)","v":0}]
[16,{"$f":"('1 Données d''entrée'!C237-'1 Données d''entrée'!C236)*'1 Données d''entrée'!$B$190","v":0},{"$f":"('1 Données d''entrée'!D237-'1 Données d''entrée'!D236)*'1 Données d''entrée'!$G$190","v":0},{"$f":"('1 Données d''entrée'!E237-'1 Données d''entrée'!E236)*'1 Données d''entrée'!$M$190","v":0},{"$f":"IF('1 Données d''entrée'!$N$187=TRUE,D51,0)+IF('1 Données d''entrée'!$H$187=TRUE,C51,0)+IF('1 Données d''entrée'!$C$187=TRUE,B51,0)","v":0}]
[17,{"$f":"('1 Données d''entrée'!C238-'1 Données d''entrée'!C237)*'1 Données d''entrée'!$B$190","v":0},{"$f":"('1 Données d''entrée'!D238-'1 Données d''entrée'!D237)*'1 Données d''entrée'!$G$190","v":0},{"$f":"('1 Données d''entrée'!E238-'1 Données d''entrée'!E237)*'1 Données d''entrée'!$M$190","v":0},{"$f":"IF('1 Données d''entrée'!$N$187=TRUE,D52,0)+IF('1 Données d''entrée'!$H$187=TRUE,C52,0)+IF('1 Données d''entrée'!$C$187=TRUE,B52,0)","v":0}]
[18,{"$f":"('1 Données d''entrée'!C239-'1 Données d''entrée'!C238)*'1 Données d''entrée'!$B$190","v":0},{"$f":"('1 Données d''entrée'!D239-'1 Données d''entrée'!D238)*'1 Données d''entrée'!$G$190","v":0},{"$f":"('1 Données d''entrée'!E239-'1 Données d''entrée'!E238)*'1 Données d''entrée'!$M$190","v":0},{"$f":"IF('1 Données d''entrée'!$N$187=TRUE,D53,0)+IF('1 Données d''entrée'!$H$187=TRUE,C53,0)+IF('1 Données d''entrée'!$C$187=TRUE,B53,0)","v":0}]
[19,{"$f":"('1 Données d''entrée'!C240-'1 Données d''entrée'!C239)*'1 Données d''entrée'!$B$190","v":0},{"$f":"('1 Données d''entrée'!D240-'1 Données d''entrée'!D239)*'1 Données d''entrée'!$G$190","v":0},{"$f":"('1 Données d''entrée'!E240-'1 Données d''entrée'!E239)*'1 Données d''entrée'!$M$190","v":0},{"$f":"IF('1 Données d''entrée'!$N$187=TRUE,D54,0)+IF('1 Données d''entrée'!$H$187=TRUE,C54,0)+IF('1 Données d''entrée'!$C$187=TRUE,B54,0)","v":0}]
[20,{"$f":"('1 Données d''entrée'!C241-'1 Données d''entrée'!C240)*'1 Données d''entrée'!$B$190","v":0},{"$f":"('1 Données d''entrée'!D241-'1 Données d''entrée'!D240)*'1 Données d''entrée'!$G$190","v":0},{"$f":"('1 Données d''entrée'!E241-'1 Données d''entrée'!E240)*'1 Données d''entrée'!$M$190","v":0},{"$f":"IF('1 Données d''entrée'!$N$187=TRUE,D55,0)+IF('1 Données d''entrée'!$H$187=TRUE,C55,0)+IF('1 Données d''entrée'!$C$187=TRUE,B55,0)","v":0}]
[]
[]
[]
["Vente d'électricité"]
[]
[]
[]
["Recette totale de la vente d'électricité (Ménages et entreprises)",{"$nulls":5},"Recette totale de la vente d'électricité (Alimentation réseau)"]
["Période (t)","Vente en forfait","Vente en tarif fixe","Vente en tarif flexible","Total de vente directe",null,"Période (t)","Vente à la JIRAMA"]
[0,{"$f":"IF('1 Données d''entrée'!$C$187=TRUE,D93,0)","v":0},{"$f":"IF('1 Données d''entrée'!$H$187=TRUE,M93,0)","v":{"$error":"#DIV/0!"}},{"$f":"IF('1 Données d''entrée'!$N$187=TRUE,F118,0)","v":{"$error":"#DIV/0!"}},{"$f":"D65+C65+B65","v":{"$error":"#DIV/0!"}},null,0,{"$f":"IF('1 Données d''entrée'!$B$178=TRUE,'1 Données d''entrée'!B264*'1 Données d''entrée'!$B$259,0)","v":0}]
[1,{"$f":"IF('1 Données d''entrée'!$C$187=TRUE,D94,0)","v":0},{"$f":"IF('1 Données d''entrée'!$H$187=TRUE,M94,0)","v":{"$error":"#DIV/0!"}},{"$f":"IF('1 Données d''entrée'!$N$187=TRUE,F119,0)","v":{"$error":"#DIV/0!"}},{"$f":"D66+C66+B66","v":{"$error":"#DIV/0!"}},null,1,{"$f":"IF('1 Données d''entrée'!$B$178=TRUE,'1 Données d''entrée'!B265*'1 Données d''entrée'!$B$259,0)","v":0}]
[2,{"$f":"IF('1 Données d''entrée'!$C$187=TRUE,D95,0)","v":0},{"$f":"IF('1 Données d''entrée'!$H$187=TRUE,M95,0)","v":{"$error":"#DIV/0!"}},{"$f":"IF('1 Données d''entrée'!$N$187=TRUE,F120,0)","v":{"$error":"#DIV/0!"}},{"$error":"#DIV/0!"},null,2,{"$f":"IF('1 Données d''entrée'!$B$178=TRUE,'1 Données d''entrée'!B266*'1 Données d''entrée'!$B$259,0)","v":0}]
[3,{"$f":"IF('1 Données d''entrée'!$C$187=TRUE,D96,0)","v":0},{"$f":"IF('1 Données d''entrée'!$H$187=TRUE,M96,0)","v":{"$error":"#DIV/0!"}},{"$f":"IF('1 Données d''entrée'!$N$187=TRUE,F121,0)","v":{"$error":"#DIV/0!"}},{"$error":"#DIV/0!"},null,3,{"$f":"IF('1 Données d''entrée'!$B$178=TRUE,'1 Données d''entrée'!B267*'1 Données d''entrée'!$B$259,0)","v":0}]
[4,{"$f":"IF('1 Données d''entrée'!$C$187=TRUE,D97,0)","v":0},{"$f":"IF('1 Données d''entrée'!$H$187=TRUE,M97,0)","v":{"$error":"#DIV/0!"}},{"$f":"IF('1 Données d''entrée'!$N$187=TRUE,F122,0)","v":{"$error":"#DIV/0!"}},{"$error":"#DIV/0!"},null,4,{"$f":"IF('1 Données d''entrée'!$B$178=TRUE,'1 Données d''entrée'!B268*'1 Données d''entrée'!$B$259,0)","v":0}]
[5,{"$f":"IF('1 Données d''entrée'!$C$187=TRUE,D98,0)","v":0},{"$f":"IF('1 Données d''entrée'!$H$187=TRUE,M98,0)","v":{"$error":"#DIV/0!"}},{"$f":"IF('1 Données d''entrée'!$N$187=TRUE,F123,0)","v":{"$error":"#DIV/0!"}},{"$error":"#DIV/0!"},null,5,{"$f":"IF('1 Données d''entrée'!$B$178=TRUE,'1 Données d''entrée'!B269*'1 Données d''entrée'!$B$259,0)","v":0}]
[6,{"$f":"IF('1 Données d''entrée'!$C$187=TRUE,D99,0)","v":0},{"$f":"IF('1 Données d''entrée'!$H$187=TRUE,M99,0)","v":{"$error":"#DIV/0!"}},{"$f":"IF('1 Données d''entrée'!$N$187=TRUE,F124,0)","v":{"$error":"#DIV/0!"}},{"$error":"#DIV/0!"},null,6,{"$f":"IF('1 Données d''entrée'!$B$178=TRUE,'1 Données d''entrée'!B270*'1 Données d''entrée'!$B$259,0)","v":0}]
[7,{"$f":"IF('1 Données d''entrée'!$C$187=TRUE,D100,0)","v":0},{"$f":"IF('1 Données d''entrée'!$H$187=TRUE,M100,0)","v":{"$error":"#DIV/0!"}},{"$f":"IF('1 Données d''entrée'!$N$187=TRUE,F125,0)","v":{"$error":"#DIV/0!"}},{"$error":"#DIV/0!"},null,7,{"$f":"IF('1 Données d''entrée'!$B$178=TRUE,'1 Données d''entrée'!B271*'1 Données d''entrée'!$B$259,0)","v":0}]
[8,{"$f":"IF('1 Données d''entrée'!$C$187=TRUE,D101,0)","v":0},{"$f":"IF('1 Données d''entrée'!$H$187=TRUE,M101,0)","v":{"$error":"#DIV/0!"}},{"$f":"IF('1 Données d''entrée'!$N$187=TRUE,F126,0)","v":{"$error":"#DIV/0!"}},{"$error":"#DIV/0!"},null,8,{"$f":"IF('1 Données d''entrée'!$B$178=TRUE,'1 Données d''entrée'!B272*'1 Données d''entrée'!$B$259,0)","v":0}]
[9,{"$f":"IF('1 Données d''entrée'!$C$187=TRUE,D102,0)","v":0},{"$f":"IF('1 Données d''entrée'!$H$187=TRUE,M102,0)","v":{"$error":"#DIV/0!"}},{"$f":"IF('1 Données d''entrée'!$N$187=TRUE,F127,0)","v":{"$error":"#DIV/0!"}},{"$error":"#DIV/0!"},null,9,{"$f":"IF('1 Données d''entrée'!$B$178=TRUE,'1 Données d''entrée'!B273*'1 Données d''entrée'!$B$259,0)","v":0}]
[10,{"$f":"IF('1 Données d''entrée'!$C$187=TRUE,D103,0)","v":0},{"$f":"IF('1 Données d''entrée'!$H$187=TRUE,M103,0)","v":{"$error":"#DIV/0!"}},{"$f":"IF('1 Données d''entrée'!$N$187=TRUE,F128,0)","v":{"$error":"#DIV/0!"}},{"$error":"#DIV/0!"},null,10,{"$f":"IF('1 Données d''entrée'!$B$178=TRUE,'1 Données d''entrée'!B274*'1 Données d''entrée'!$B$259,0)","v":0}]
[11,{"$f":"IF('1 Données d''entrée'!$C$187=TRUE,D104,0)","v":0},{"$f":"IF('1 Données d''entrée'!$H$187=TRUE,M104,0)","v":{"$error":"#DIV/0!"}},{"$f":"IF('1 Données d''entrée'!$N$187=TRUE,F129,0)","v":{"$error":"#DIV/0!"}},{"$error":"#DIV/0!"},null,11,{"$f":"IF('1 Données d''entrée'!$B$178=TRUE,'1 Données d''entrée'!B275*'1 Données d''entrée'!$B$259,0)","v":0}]
[12,{"$f":"IF('1 Données d''entrée'!$C$187=TRUE,D105,0)","v":0},{"$f":"IF('1 Données d''entrée'!$H$187=TRUE,M105,0)","v":{"$error":"#DIV/0!"}},{"$f":"IF('1 Données d''entrée'!$N$187=TRUE,F130,0)","v":{"$error":"#DIV/0!"}},{"$error":"#DIV/0!"},null,12,{"$f":"IF('1 Données d''entrée'!$B$178=TRUE,'1 Données d''entrée'!B276*'1 Données d''entrée'!$B$259,0)","v":0}]
[13,{"$f":"IF('1 Données d''entrée'!$C$187=TRUE,D106,0)","v":0},{"$f":"IF('1 Données d''entrée'!$H$187=TRUE,M106,0)","v":{"$error":"#DIV/0!"}},{"$f":"IF('1 Données d''entrée'!$N$187=TRUE,F131,0)","v":{"$error":"#DIV/0!"}},{"$error":"#DIV/0!"},null,13,{"$f":"IF('1 Données d''entrée'!$B$178=TRUE,'1 Données d''entrée'!B277*'1 Données d''entrée'!$B$259,0)","v":0}]
[14,{"$f":"IF('1 Données d''entrée'!$C$187=TRUE,D107,0)","v":0},{"$f":"IF('1 Données d''entrée'!$H$187=TRUE,M107,0)","v":{"$error":"#DIV/0!"}},{"$f":"IF('1 Données d''entrée'!$N$187=TRUE,F132,0)","v":{"$error":"#DIV/0!"}},{"$error":"#DIV/0!"},null,14,{"$f":"IF('1 Données d''entrée'!$B$178=TRUE,'1 Données d''entrée'!B278*'1 Données d''entrée'!$B$259,0)","v":0}]
[15,{"$f":"IF('1 Données d''entrée'!$C$187=TRUE,D108,0)","v":0},{"$f":"IF('1 Données d''entrée'!$H$187=TRUE,M108,0)","v":{"$error":"#DIV/0!"}},{"$f":"IF('1 Données d''entrée'!$N$187=TRUE,F133,0)","v":{"$error":"#DIV/0!"}},{"$error":"#DIV/0!"},null,15,{"$f":"IF('1 Données d''entrée'!$B$178=TRUE,'1 Données d''entrée'!B279*'1 Données d''entrée'!$B$259,0)","v":0}]
[16,{"$f":"IF('1 Données d''entrée'!$C$187=TRUE,D109,0)","v":0},{"$f":"IF('1 Données d''entrée'!$H$187=TRUE,M109,0)","v":{"$error":"#DIV/0!"}},{"$f":"IF('1 Données d''entrée'!$N$187=TRUE,F134,0)","v":{"$error":"#DIV/0!"}},{"$error":"#DIV/0!"},null,16,{"$f":"IF('1 Données d''entrée'!$B$178=TRUE,'1 Données d''entrée'!B280*'1 Données d''entrée'!$B$259,0)","v":0}]
[17,{"$f":"IF('1 Données d''entrée'!$C$187=TRUE,D110,0)","v":0},{"$f":"IF('1 Données d''entrée'!$H$187=TRUE,M110,0)","v":{"$error":"#DIV/0!"}},{"$f":"IF('1 Données d''entrée'!$N$187=TRUE,F135,0)","v":{"$error":"#DIV/0!"}},{"$error":"#DIV/0!"},null,17,{"$f":"IF('1 Données d''entrée'!$B$178=TRUE,'1 Données d''entrée'!B281*'1 Données d''entrée'!$B$259,0)","v":0}]
[18,{"$f":"IF('1 Données d''entrée'!$C$187=TRUE,D111,0)","v":0},{"$f":"IF('1 Données d''entrée'!$H$187=TRUE,M111,0)","v":{"$error":"#DIV/0!"}},{"$f":"IF('1 Données d''entrée'!$N$187=TRUE,F136,0)","v":{"$error":"#DIV/0!"}},{"$error":"#DIV/0!"},null,18,{"$f":"IF('1 Données d''entrée'!$B$178=TRUE,'1 Données d''entrée'!B282*'1 Données d''entrée'!$B$259,0)","v":0}]
[19,{"$f":"IF('1 Données d''entrée'!$C$187=TRUE,D112,0)","v":0},{"$f":"IF('1 Données d''entrée'!$H$187=TRUE,M112,0)","v":{"$error":"#DIV/0!"}},{"$f":"IF('1 Données d''entrée'!$N$187=TRUE,F137,0)","v":{"$error":"#DIV/0!"}},{"$error":"#DIV/0!"},null,19,{"$f":"IF('1 Données d''entrée'!$B$178=TRUE,'1 Données d''entrée'!B283*'1 Données d''entrée'!$B$259,0)","v":0}]
[20,{"$f":"IF('1 Données d''entrée'!$C$187=TRUE,D113,0)","v":0},{"$f":"IF('1 Données d''entrée'!$H$187=TRUE,M113,0)","v":{"$error":"#DIV/0!"}},{"$f":"IF('1 Données d''entrée'!$N$187=TRUE,F138,0)","v":{"$error":"#DIV/0!"}},{"$error":"#DIV/0!"},null,20,{"$f":"IF('1 Données d''entrée'!$B$178=TRUE,'1 Données d''entrée'!B284*'1 Données d''entrée'!$B$259,0)","v":0}]
[]
[]
[]
[]
[]
["Forfait",{"$nulls":6},"Tarif fixe"]
["Période (t)","Total des connexions  (forfait)","Consommation totale (forfait)","Recette total de la vente d'électricité (AR) - forfait",null,null,null,"Période (t)","Total des connexions  (tarif fixe)","Consommation totale (tarif fixe)","Recette de la vente d'électricité (AR) - tarif fixe","Recette de la taxe d'abonnement","Recette totale de la vente d'électricité"]
[0,{"$f":"'1 Données d''entrée'!C221","v":0},{"$f":"'4 Recette totale'!B93*'1 Données d''entrée'!$B$193","v":0},{"$f":"B93*'1 Données d''entrée'!$B$191","v":0},null,null,null,0,{"$f":"'1 Données d''entrée'!D221","v":0},{"$f":"I93*'1 Données d''entrée'!$G$193","v":{"$error":"#DIV/0!"}},{"$f":"J93*'1 Données d''entrée'!$G$192","v":{"$error":"#DIV/0!"}},{"$f":"I93*'1 Données d''entrée'!$G$191","v":0},{"$f":"L93+K93","v":{"$error":"#DIV/0!"}}]
[1,{"$f":"'1 Données d''entrée'!C222","v":0},{"$f":"'4 Recette totale'!B94*'1 Données d''entrée'!$B$193","v":0},{"$f":"B94*'1 Données d''entrée'!$B$191","v":0},null,null,null,1,{"$f":"'1 Données d''entrée'!D222","v":0},{"$f":"I94*'1 Données d''entrée'!$G$193","v":{"$error":"#DIV/0!"}},{"$f":"J94*'1 Données d''entrée'!$G$192","v":{"$error":"#DIV/0!"}},{"$f":"I94*'1 Données d''entrée'!$G$191","v":0},{"$f":"L94+K94","v":{"$error":"#DIV/0!"}}]
[2,{"$f":"'1 Données d''entrée'!C223","v":0},{"$f":"'4 Recette totale'!B95*'1 Données d''entrée'!$B$193","v":0},{"$f":"B95*'1 Données d''entrée'!$B$191","v":0},null,null,null,2,{"$f":"'1 Données d''entrée'!D223","v":0},{"$f":"I95*'1 Données d''entrée'!$G$193","v":{"$error":"#DIV/0!"}},{"$f":"J95*'1 Données d''entrée'!$G$192","v":{"$error":"#DIV/0!"}},{"$f":"I95*'1 Données d''entrée'!$G$191","v":0},{"$error":"#DIV/0!"}]
[3,{"$f":"'1 Données d''entrée'!C224","v":0},{"$f":"'4 Recette totale'!B96*'1 Données d''entrée'!$B$193","v":0},{"$f":"B96*'1 Données d''entrée'!$B$191","v":0},null,null,null,3,{"$f":"'1 Données d''entrée'!D224","v":0},{"$f":"I96*'1 Données d''entrée'!$G$193","v":{"$error":"#DIV/0!"}},{"$f":"J96*'1 Données d''entrée'!$G$192","v":{"$error":"#DIV/0!"}},{"$f":"I96*'1 Données d''entrée'!$G$191","v":0},{"$error":"#DIV/0!"}]
[4,{"$f":"'1 Données d''entrée'!C225","v":0},{"$f":"'4 Recette totale'!B97*'1 Données d''entrée'!$B$193","v":0},{"$f":"B97*'1 Données d''entrée'!$B$191","v":0},null,null,null,4,{"$f":"'1 Données d''entrée'!D225","v":0},{"$f":"I97*'1 Données d''entrée'!$G$193","v":{"$error":"#DIV/0!"}},{"$f":"J97*'1 Données d''entrée'!$G$192","v":{"$error":"#DIV/0!"}},{"$f":"I97*'1 Données d''entrée'!$G$191","v":0},{"$error":"#DIV/0!"}]
[5,{"$f":"'1 Données d''entrée'!C226","v":0},{"$f":"'4 Recette totale'!B98*'1 Données d''entrée'!$B$193","v":0},{"$f":"B98*'1 Données d''entrée'!$B$191","v":0},null,null,null,5,{"$f":"'1 Données d''entrée'!D226","v":0},{"$f":"I98*'1 Données d''entrée'!$G$193","v":{"$error":"#DIV/0!"}},{"$f":"J98*'1 Données d''entrée'!$G$192","v":{"$error":"#DIV/0!"}},{"$f":"I98*'1 Données d''entrée'!$G$191","v":0},{"$error":"#DIV/0!"}]
[6,{"$f":"'1 Données d''entrée'!C227","v":0},{"$f":"'4 Recette totale'!B99*'1 Données d''entrée'!$B$193","v":0},{"$f":"B99*'1 Données d''entrée'!$B$191","v":0},null,null,null,6,{"$f":"'1 Données d''entrée'!D227","v":0},{"$f":"I99*'1 Données d''entrée'!$G$193","v":{"$error":"#DIV/0!"}},{"$f":"J99*'1 Données d''entrée'!$G$192","v":{"$error":"#DIV/0!"}},{"$f":"I99*'1 Données d''entrée'!$G$191","v":0},{"$error":"#DIV/0!"}]
[7,{"$f":"'1 Données d''entrée'!C228","v":0},{"$f":"'4 Recette totale'!B100*'1 Données d''entrée'!$B$193","v":0},{"$f":"B100*'1 Données d''entrée'!$B$191","v":0},null,null,null,7,{"$f":"'1 Données d''entrée'!D228","v":0},{"$f":"I100*'1 Données d''entrée'!$G$193","v":{"$error":"#DIV/0!"}},{"$f":"J100*'1 Données d''entrée'!$G$192","v":{"$error":"#DIV/0!"}},{"$f":"I100*'1 Données d''entrée'!$G$191","v":0},{"$error":"#DIV/0!"}]
[8,{"$f":"'1 Données d''entrée'!C229","v":0},{"$f":"'4 Recette totale'!B101*'1 Données d''entrée'!$B$193","v":0},{"$f":"B101*'1 Données d''entrée'!$B$191","v":0},null,null,null,8,{"$f":"'1 Données d''entrée'!D229","v":0},{"$f":"I101*'1 Données d''entrée'!$G$193","v":{"$error":"#DIV/0!"}},{"$f":"J101*'1 Données d''entrée'!$G$192","v":{"$error":"#DIV/0!"}},{"$f":"I101*'1 Données d''entrée'!$G$191","v":0},{"$error":"#DIV/0!"}]
[9,{"$f":"'1 Données d''entrée'!C230","v":0},{"$f":"'4 Recette totale'!B102*'1 Données d''entrée'!$B$193","v":0},{"$f":"B102*'1 Données d''entrée'!$B$191","v":0},null,null,null,9,{"$f":"'1 Données d''entrée'!D230","v":0},{"$f":"I102*'1 Données d''entrée'!$G$193","v":{"$error":"#DIV/0!"}},{"$f":"J102*'1 Données d''entrée'!$G$192","v":{"$error":"#DIV/0!"}},{"$f":"I102*'1 Données d''entrée'!$G$191","v":0},{"$error":"#DIV/0!"}]
[10,{"$f":"'1 Données d''entrée'!C231","v":0},{"$f":"'4 Recette totale'!B103*'1 Données d''entrée'!$B$193","v":0},{"$f":"B103*'1 Données d''entrée'!$B$191","v":0},null,null,null,10,{"$f":"'1 Données d''entrée'!D231","v":0},{"$f":"I103*'1 Données d''entrée'!$G$193","v":{"$error":"#DIV/0!"}},{"$f":"J103*'1 Données d''entrée'!$G$192","v":{"$error":"#DIV/0!"}},{"$f":"I103*'1 Données d''entrée'!$G$191","v":0},{"$error":"#DIV/0!"}]
[11,{"$f":"'1 Données d''entrée'!C232","v":0},{"$f":"'4 Recette totale'!B104*'1 Données d''entrée'!$B$193","v":0},{"$f":"B104*'1 Données d''entrée'!$B$191","v":0},null,null,null,11,{"$f":"'1 Données d''entrée'!D232","v":0},{"$f":"I104*'1 Données d''entrée'!$G$193","v":{"$error":"#DIV/0!"}},{"$f":"J104*'1 Données d''entrée'!$G$192","v":{"$error":"#DIV/0!"}},{"$f":"I104*'1 Données d''entrée'!$G$191","v":0},{"$error":"#DIV/0!"}]
[12,{"$f":"'1 Données d''entrée'!C233","v":0},{"$f":"'4 Recette totale'!B105*'1 Données d''entrée'!$B$193","v":0},{"$f":"B105*'1 Données d''entrée'!$B$191","v":0},null,null,null,12,{"$f":"'1 Données d''entrée'!D233","v":0},{"$f":"I105*'1 Données d''entrée'!$G$193","v":{"$error":"#DIV/0!"}},{"$f":"J105*'1 Données d''entrée'!$G$192","v":{"$error":"#DIV/0!"}},{"$f":"I105*'1 Données d''entrée'!$G$191","v":0},{"$error":"#DIV/0!"}]
[13,{"$f":"'1 Données d''entrée'!C234","v":0},{"$f":"'4 Recette totale'!B106*'1 Données d''entrée'!$B$193","v":0},{"$f":"B106*'1 Données d''entrée'!$B$191","v":0},null,null,null,13,{"$f":"'1 Données d''entrée'!D234","v":0},{"$f":"I106*'1 Données d''entrée'!$G$193","v":{"$error":"#DIV/0!"}},{"$f":"J106*'1 Données d''entrée'!$G$192","v":{"$error":"#DIV/0!"}},{"$f":"I106*'1 Données d''entrée'!$G$191","v":0},{"$error":"#DIV/0!"}]
[14,{"$f":"'1 Données d''entrée'!C235","v":0},{"$f":"'4 Recette totale'!B107*'1 Données d''entrée'!$B$193","v":0},{"$f":"B107*'1 Données d''entrée'!$B$191","v":0},null,null,null,14,{"$f":"'1 Données d''entrée'!D235","v":0},{"$f":"I107*'1 Données d''entrée'!$G$193","v":{"$error":"#DIV/0!"}},{"$f":"J107*'1 Données d''entrée'!$G$192","v":{"$error":"#DIV/0!"}},{"$f":"I107*'1 Données d''entrée'!$G$191","v":0},{"$error":"#DIV/0!"}]
[15,{"$f":"'1 Données d''entrée'!C236","v":0},{"$f":"'4 Recette totale'!B108*'1 Données d''entrée'!$B$193","v":0},{"$f":"B108*'1 Données d''entrée'!$B$191","v":0},null,null,null,15,{"$f":"'1 Données d''entrée'!D236","v":0},{"$f":"I108*'1 Données d''entrée'!$G$193","v":{"$error":"#DIV/0!"}},{"$f":"J108*'1 Données d''entrée'!$G$192","v":{"$error":"#DIV/0!"}},{"$f":"I108*'1 Données d''entrée'!$G$191","v":0},{"$error":"#DIV/0!"}]
[16,{"$f":"'1 Données d''entrée'!C237","v":0},{"$f":"'4 Recette totale'!B109*'1 Données d''entrée'!$B$193","v":0},{"$f":"B109*'1 Données d''entrée'!$B$191","v":0},null,null,null,16,{"$f":"'1 Données d''entrée'!D237","v":0},{"$f":"I109*'1 Données d''entrée'!$G$193","v":{"$error":"#DIV/0!"}},{"$f":"J109*'1 Données d''entrée'!$G$192","v":{"$error":"#DIV/0!"}},{"$f":"I109*'1 Données d''entrée'!$G$191","v":0},{"$error":"#DIV/0!"}]
[17,{"$f":"'1 Données d''entrée'!C238","v":0},{"$f":"'4 Recette totale'!B110*'1 Données d''entrée'!$B$193","v":0},{"$f":"B110*'1 Données d''entrée'!$B$191","v":0},null,null,null,17,{"$f":"'1 Données d''entrée'!D238","v":0},{"$f":"I110*'1 Données d''entrée'!$G$193","v":{"$error":"#DIV/0!"}},{"$f":"J110*'1 Données d''entrée'!$G$192","v":{"$error":"#DIV/0!"}},{"$f":"I110*'1 Données d''entrée'!$G$191","v":0},{"$error":"#DIV/0!"}]
[18,{"$f":"'1 Données d''entrée'!C239","v":0},{"$f":"'4 Recette totale'!B111*'1 Données d''entrée'!$B$193","v":0},{"$f":"B111*'1 Données d''entrée'!$B$191","v":0},null,null,null,18,{"$f":"'1 Données d''entrée'!D239","v":0},{"$f":"I111*'1 Données d''entrée'!$G$193","v":{"$error":"#DIV/0!"}},{"$f":"J111*'1 Données d''entrée'!$G$192","v":{"$error":"#DIV/0!"}},{"$f":"I111*'1 Données d''entrée'!$G$191","v":0},{"$error":"#DIV/0!"}]
[19,{"$f":"'1 Données d''entrée'!C240","v":0},{"$f":"'4 Recette totale'!B112*'1 Données d''entrée'!$B$193","v":0},{"$f":"B112*'1 Données d''entrée'!$B$191","v":0},null,null,null,19,{"$f":"'1 Données d''entrée'!D240","v":0},{"$f":"I112*'1 Données d''entrée'!$G$193","v":{"$error":"#DIV/0!"}},{"$f":"J112*'1 Données d''entrée'!$G$192","v":{"$error":"#DIV/0!"}},{"$f":"I112*'1 Données d''entrée'!$G$191","v":0},{"$error":"#DIV/0!"}]
[20,{"$f":"'1 Données d''entrée'!C241","v":0},{"$f":"'4 Recette totale'!B113*'1 Données d''entrée'!$B$193","v":0},{"$f":"B113*'1 Données d''entrée'!$B$191","v":0},null,null,null,20,{"$f":"'1 Données d''entrée'!D241","v":0},{"$f":"I113*'1 Données d''entrée'!$G$193","v":{"$error":"#DIV/0!"}},{"$f":"J113*'1 Données d''entrée'!$G$192","v":{"$error":"#DIV/0!"}},{"$f":"I113*'1 Données d''entrée'!$G$191","v":0},{"$error":"#DIV/0!"}]
[]
[]
["Tarif flexible"]
["Période (t)","Total des connexions (tarif flexible)","Consommation totale (tarif flexible)","Recette de la vente d'électricité (AR) - tarif flexible","Recette de la taxe d'abonnement","Recette totale de la vente d'électricité"]
[0,{"$f":"'1 Données d''entrée'!E221","v":0},{"$f":"B118*'1 Données d''entrée'!$M$193*(1+'1 Données d''entrée'!$M$194)^A118","v":{"$error":"#DIV/0!"}},{"$f":"C118*'1 Données d''entrée'!$M$192","v":{"$error":"#DIV/0!"}},{"$f":"B118*'1 Données d''entrée'!$M$191","v":0},{"$f":"E118+D118","v":{"$error":"#DIV/0!"}}]
[1,{"$f":"'1 Données d''entrée'!E222","v":0},{"$f":"B119*'1 Données d''entrée'!$M$193*(1+'1 Données d''entrée'!$M$194)^A119","v":{"$error":"#DIV/0!"}},{"$f":"C119*'1 Données d''entrée'!$M$192","v":{"$error":"#DIV/0!"}},{"$f":"B119*'1 Données d''entrée'!$M$191","v":0},{"$f":"E119+D119","v":{"$error":"#DIV/0!"}}]
[2,{"$f":"'1 Données d''entrée'!E223","v":0},{"$f":"B120*'1 Données d''entrée'!$M$193*(1+'1 Données d''entrée'!$M$194)^A120","v":{"$error":"#DIV/0!"}},{"$f":"C120*'1 Données d''entrée'!$M$192","v":{"$error":"#DIV/0!"}},{"$f":"B120*'1 Données d''entrée'!$M$191","v":0},{"$error":"#DIV/0!"}]
[3,{"$f":"'1 Données d''entrée'!E224","v":0},{"$f":"B121*'1 Données d''entrée'!$M$193*(1+'1 Données d''entrée'!$M$194)^A121","v":{"$error":"#DIV/0!"}},{"$f":"C121*'1 Données d''entrée'!$M$192","v":{"$error":"#DIV/0!"}},{"$f":"B121*'1 Données d''entrée'!$M$191","v":0},{"$error":"#DIV/0!"}]
[4,{"$f":"'1 Données d''entrée'!E225","v":0},{"$f":"B122*'1 Données d''entrée'!$M$193*(1+'1 Données d''entrée'!$M$194)^A122","v":{"$error":"#DIV/0!"}},{"$f":"C122*'1 Données d''entrée'!$M$192","v":{"$error":"#DIV/0!"}},{"$f":"B122*'1 Données d''entrée'!$M$191","v":0},{"$error":"#DIV/0!"}]
[5,{"$f":"'1 Données d''entrée'!E226","v":0},{"$f":"B123*'1 Données d''entrée'!$M$193*(1+'1 Données d''entrée'!$M$194)^A123","v":{"$error":"#DIV/0!"}},{"$f":"C123*'1 Données d''entrée'!$M$192","v":{"$error":"#DIV/0!"}},{"$f":"B123*'1 Données d''entrée'!$M$191","v":0},{"$error":"#DIV/0!"}]
[6,{"$f":"'1 Données d''entrée'!E227","v":0},{"$f":"B124*'1 Données d''entrée'!$M$193*(1+'1 Données d''entrée'!$M$194)^A124","v":{"$error":"#DIV/0!"}},{"$f":"C124*'1 Données d''entrée'!$M$192","v":{"$error":"#DIV/0!"}},{"$f":"B124*'1 Données d''entrée'!$M$191","v":0},{"$error":"#DIV/0!"}]
[7,{"$f":"'1 Données d''entrée'!E228","v":0},{"$f":"B125*'1 Données d''entrée'!$M$193*(1+'1 Données d''entrée'!$M$194)^A125","v":{"$error":"#DIV/0!"}},{"$f":"C125*'1 Données d''entrée'!$M$192","v":{"$error":"#DIV/0!"}},{"$f":"B125*'1 Données d''entrée'!$M$191","v":0},{"$error":"#DIV/0!"}]
[8,{"$f":"'1 Données d''entrée'!E229","v":0},{"$f":"B126*'1 Données d''entrée'!$M$193*(1+'1 Données d''entrée'!$M$194)^A126","v":{"$error":"#DIV/0!"}},{"$f":"C126*'1 Données d''entrée'!$M$192","v":{"$error":"#DIV/0!"}},{"$f":"B126*'1 Données d''entrée'!$M$191","v":0},{"$error":"#DIV/0!"}]
[9,{"$f":"'1 Données d''entrée'!E230","v":0},{"$f":"B127*'1 Données d''entrée'!$M$193*(1+'1 Données d''entrée'!$M$194)^A127","v":{"$error":"#DIV/0!"}},{"$f":"C127*'1 Données d''entrée'!$M$192","v":{"$error":"#DIV/0!"}},{"$f":"B127*'1 Données d''entrée'!$M$191","v":0},{"$error":"#DIV/0!"}]
[10,{"$f":"'1 Données d''entrée'!E231","v":0},{"$f":"B128*'1 Données d''entrée'!$M$193*(1+'1 Données d''entrée'!$M$194)^A128","v":{"$error":"#DIV/0!"}},{"$f":"C128*'1 Données d''entrée'!$M$192","v":{"$error":"#DIV/0!"}},{"$f":"B128*'1 Données d''entrée'!$M$191","v":0},{"$error":"#DIV/0!"}]
[11,{"$f":"'1 Données d''entrée'!E232","v":0},{"$f":"B129*'1 Données d''entrée'!$M$193*(1+'1 Données d''entrée'!$M$194)^A129","v":{"$error":"#DIV/0!"}},{"$f":"C129*'1 Données d''entrée'!$M$192","v":{"$error":"#DIV/0!"}},{"$f":"B129*'1 Données d''entrée'!$M$191","v":0},{"$error":"#DIV/0!"}]
[12,{"$f":"'1 Données d''entrée'!E233","v":0},{"$f":"B130*'1 Données d''entrée'!$M$193*(1+'1 Données d''entrée'!$M$194)^A130","v":{"$error":"#DIV/0!"}},{"$f":"C130*'1 Données d''entrée'!$M$192","v":{"$error":"#DIV/0!"}},{"$f":"B130*'1 Données d''entrée'!$M$191","v":0},{"$error":"#DIV/0!"}]
[13,{"$f":"'1 Données d''entrée'!E234","v":0},{"$f":"B131*'1 Données d''entrée'!$M$193*(1+'1 Données d''entrée'!$M$194)^A131","v":{"$error":"#DIV/0!"}},{"$f":"C131*'1 Données d''entrée'!$M$192","v":{"$error":"#DIV/0!"}},{"$f":"B131*'1 Données d''entrée'!$M$191","v":0},{"$error":"#DIV/0!"}]
[14,{"$f":"'1 Données d''entrée'!E235","v":0},{"$f":"B132*'1 Données d''entrée'!$M$193*(1+'1 Données d''entrée'!$M$194)^A132","v":{"$error":"#DIV/0!"}},{"$f":"C132*'1 Données d''entrée'!$M$192","v":{"$error":"#DIV/0!"}},{"$f":"B132*'1 Données d''entrée'!$M$191","v":0},{"$error":"#DIV/0!"}]
[15,{"$f":"'1 Données d''entrée'!E236","v":0},{"$f":"B133*'1 Données d''entrée'!$M$193*(1+'1 Données d''entrée'!$M$194)^A133","v":{"$error":"#DIV/0!"}},{"$f":"C133*'1 Données d''entrée'!$M$192","v":{"$error":"#DIV/0!"}},{"$f":"B133*'1 Données d''entrée'!$M$191","v":0},{"$error":"#DIV/0!"}]
[16,{"$f":"'1 Données d''entrée'!E237","v":0},{"$f":"B134*'1 Données d''entrée'!$M$193*(1+'1 Données d''entrée'!$M$194)^A134","v":{"$error":"#DIV/0!"}},{"$f":"C134*'1 Données d''entrée'!$M$192","v":{"$error":"#DIV/0!"}},{"$f":"B134*'1 Données d''entrée'!$M$191","v":0},{"$error":"#DIV/0!"}]
[17,{"$f":"'1 Données d''entrée'!E238","v":0},{"$f":"B135*'1 Données d''entrée'!$M$193*(1+'1 Données d''entrée'!$M$194)^A135","v":{"$error":"#DIV/0!"}},{"$f":"C135*'1 Données d''entrée'!$M$192","v":{"$error":"#DIV/0!"}},{"$f":"B135*'1 Données d''entrée'!$M$191","v":0},{"$error":"#DIV/0!"}]
[18,{"$f":"'1 Données d''entrée'!E239","v":0},{"$f":"B136*'1 Données d''entrée'!$M$193*(1+'1 Données d''entrée'!$M$194)^A136","v":{"$error":"#DIV/0!"}},{"$f":"C136*'1 Données d''entrée'!$M$192","v":{"$error":"#DIV/0!"}},{"$f":"B136*'1 Données d''entrée'!$M$191","v":0},{"$error":"#DIV/0!"}]
[19,{"$f":"'1 Données d''entrée'!E240","v":0},{"$f":"B137*'1 Données d''entrée'!$M$193*(1+'1 Données d''entrée'!$M$194)^A137","v":{"$error":"#DIV/0!"}},{"$f":"C137*'1 Données d''entrée'!$M$192","v":{"$error":"#DIV/0!"}},{"$f":"B137*'1 Données d''entrée'!$M$191","v":0},{"$error":"#DIV/0!"}]
[20,{"$f":"'1 Données d''entrée'!E241","v":0},{"$f":"B138*'1 Données d''entrée'!$M$193*(1+'1 Données d''entrée'!$M$194)^A138","v":{"$error":"#DIV/0!"}},{"$f":"C138*'1 Données d''entrée'!$M$192","v":{"$error":"#DIV/0!"}},{"$f":"B138*'1 Données d''entrée'!$M$191","v":0},{"$error":"#DIV/0!"}]

{"sheet":"5 Flux de trésorerie brut","index":6,"n_rows":27,"n_cols":7,"rows_kept":27,"cut":false,"hidden":false,"merged":[[4,0,4,5],[2,0,2,5]]}
["Flux de trésorerie",{"$nulls":5},"Flux de trésorerie"]
[]
["Le flux de trésorerie du projet résulte de la soustraction des coûts totaux par période aux recettes par période. "]
[]
["Flux de trésorerie brut"]
["Période (t)","Coût total","Recette totale","Flux de trésorerie (par période)","Flux de trésorerie cumulé","Période de remboursement"]
[0,{"$f":"'3 Coût total'!E7","v":0},{"$f":"'4 Recette totale'!D7","v":{"$error":"#DIV/0!"}},{"$f":"C7-B7","v":{"$error":"#DIV/0!"}},{"$f":"D7","v":{"$error":"#DIV/0!"}},{"$f":"IF(E7<0,\" \",A7)","v":{"$error":"#DIV/0!"}}]
[1,{"$f":"'3 Coût total'!E8","v":0},{"$f":"'4 Recette totale'!D8","v":{"$error":"#DIV/0!"}},{"$f":"C8-B8","v":{"$error":"#DIV/0!"}},{"$f":"E7+D8","v":{"$error":"#DIV/0!"}},{"$f":"IF(E8<0,\" \",IF(SUM(F$6:F7)>0,\" \",IF($F$7=0,\" \",A8)))","v":{"$error":"#DIV/0!"}}]
[2,{"$f":"'3 Coût total'!E9","v":0},{"$f":"'4 Recette totale'!D9","v":{"$error":"#DIV/0!"}},{"$error":"#DIV/0!"},{"$error":"#DIV/0!"},{"$f":"IF(E9<0,\" \",IF(SUM(F$6:F8)>0,\" \",IF($F$7=0,\" \",A9)))","v":{"$error":"#DIV/0!"}}]
[3,{"$f":"'3 Coût total'!E10","v":0},{"$f":"'4 Recette totale'!D10","v":{"$error":"#DIV/0!"}},{"$error":"#DIV/0!"},{"$error":"#DIV/0!"},{"$f":"IF(E10<0,\" \",IF(SUM(F$6:F9)>0,\" \",IF($F$7=0,\" \",A10)))","v":{"$error":"#DIV/0!"}}]
[4,{"$f":"'3 Coût total'!E11","v":0},{"$f":"'4 Recette totale'!D11","v":{"$error":"#DIV/0!"}},{"$error":"#DIV/0!"},{"$error":"#DIV/0!"},{"$f":"IF(E11<0,\" \",IF(SUM(F$6:F10)>0,\" \",IF($F$7=0,\" \",A11)))","v":{"$error":"#DIV/0!"}}]
[5,{"$f":"'3 Coût total'!E12","v":0},{"$f":"'4 Recette totale'!D12","v":{"$error":"#DIV/0!"}},{"$error":"#DIV/0!"},{"$error":"#DIV/0!"},{"$f":"IF(E12<0,\" \",IF(SUM(F$6:F11)>0,\" \",IF($F$7=0,\" \",A12)))","v":{"$error":"#DIV/0!"}}]
[6,{"$f":"'3 Coût total'!E13","v":0},{"$f":"'4 Recette totale'!D13","v":{"$error":"#DIV/0!"}},{"$error":"#DIV/0!"},{"$error":"#DIV/0!"},{"$f":"IF(E13<0,\" \",IF(SUM(F$6:F12)>0,\" \",IF($F$7=0,\" \",A13)))","v":{"$error":"#DIV/0!"}}]
[7,{"$f":"'3 Coût total'!E14","v":0},{"$f":"'4 Recette totale'!D14","v":{"$error":"#DIV/0!"}},{"$error":"#DIV/0!"},{"$error":"#DIV/0!"},{"$f":"IF(E14<0,\" \",IF(SUM(F$6:F13)>0,\" \",IF($F$7=0,\" \",A14)))","v":{"$error":"#DIV/0!"}}]
[8,{"$f":"'3 Coût total'!E15","v":0},{"$f":"'4 Recette totale'!D15","v":{"$error":"#DIV/0!"}},{"$error":"#DIV/0!"},{"$error":"#DIV/0!"},{"$f":"IF(E15<0,\" \",IF(SUM(F$6:F14)>0,\" \",IF($F$7=0,\" \",A15)))","v":{"$error":"#DIV/0!"}}]
[9,{"$f":"'3 Coût total'!E16","v":0},{"$f":"'4 Recette totale'!D16","v":{"$error":"#DIV/0!"}},{"$error":"#DIV/0!"},{"$error":"#DIV/0!"},{"$f":"IF(E16<0,\" \",IF(SUM(F$6:F15)>0,\" \",IF($F$7=0,\" \",A16)))","v":{"$error":"#DIV/0!"}}]
[10,{"$f":"'3 Coût total'!E17","v":0},{"$f":"'4 Recette totale'!D17","v":{"$error":"#DIV/0!"}},{"$error":"#DIV/0!"},{"$error":"#DIV/0!"},{"$f":"IF(E17<0,\" \",IF(SUM(F$6:F16)>0,\" \",IF($F$7=0,\" \",A17)))","v":{"$error":"#DIV/0!"}}]
[11,{"$f":"'3 Coût total'!E18","v":0},{"$f":"'4 Recette totale'!D18","v":{"$error":"#DIV/0!"}},{"$error":"#DIV/0!"},{"$error":"#DIV/0!"},{"$f":"IF(E18<0,\" \",IF(SUM(F$6:F17)>0,\" \",IF($F$7=0,\" \",A18)))","v":{"$error":"#DIV/0!"}}]
[12,{"$f":"'3 Coût total'!E19","v":0},{"$f":"'4 Recette totale'!D19","v":{"$error":"#DIV/0!"}},{"$error":"#DIV/0!"},{"$error":"#DIV/0!"},{"$f":"IF(E19<0,\" \",IF(SUM(F$6:F18)>0,\" \",IF($F$7=0,\" \",A19)))","v":{"$error":"#DIV/0!"}}]
[13,{"$f":"'3 Coût total'!E20","v":0},{"$f":"'4 Recette totale'!D20","v":{"$error":"#DIV/0!"}},{"$error":"#DIV/0!"},{"$error":"#DIV/0!"},{"$f":"IF(E20<0,\" \",IF(SUM(F$6:F19)>0,\" \",IF($F$7=0,\" \",A20)))","v":{"$error":"#DIV/0!"}}]
[14,{"$f":"'3 Coût total'!E21","v":0},{"$f":"'4 Recette totale'!D21","v":{"$error":"#DIV/0!"}},{"$error":"#DIV/0!"},{"$error":"#DIV/0!"},{"$f":"IF(E21<0,\" \",IF(SUM(F$6:F20)>0,\" \",IF($F$7=0,\" \",A21)))","v":{"$error":"#DIV/0!"}}]
[15,{"$f":"'3 Coût total'!E22","v":0},{"$f":"'4 Recette totale'!D22","v":{"$error":"#DIV/0!"}},{"$error":"#DIV/0!"},{"$error":"#DIV/0!"},{"$f":"IF(E22<0,\" \",IF(SUM(F$6:F21)>0,\" \",IF($F$7=0,\" \",A22)))","v":{"$error":"#DIV/0!"}}]
[16,{"$f":"'3 Coût total'!E23","v":0},{"$f":"'4 Recette totale'!D23","v":{"$error":"#DIV/0!"}},{"$error":"#DIV/0!"},{"$error":"#DIV/0!"},{"$f":"IF(E23<0,\" \",IF(SUM(F$6:F22)>0,\" \",IF($F$7=0,\" \",A23)))","v":{"$error":"#DIV/0!"}}]
[17,{"$f":"'3 Coût total'!E24","v":0},{"$f":"'4 Recette totale'!D24","v":{"$error":"#DIV/0!"}},{"$error":"#DIV/0!"},{"$error":"#DIV/0!"},{"$f":"IF(E24<0,\" \",IF(SUM(F$6:F23)>0,\" \",IF($F$7=0,\" \",A24)))","v":{"$error":"#DIV/0!"}}]
[18,{"$f":"'3 Coût total'!E25","v":0},{"$f":"'4 Recette totale'!D25","v":{"$error":"#DIV/0!"}},{"$error":"#DIV/0!"},{"$error":"#DIV/0!"},{"$f":"IF(E25<0,\" \",IF(SUM(F$6:F24)>0,\" \",IF($F$7=0,\" \",A25)))","v":{"$error":"#DIV/0!"}}]
[19,{"$f":"'3 Coût total'!E26","v":0},{"$f":"'4 Recette totale'!D26","v":{"$error":"#DIV/0!"}},{"$error":"#DIV/0!"},{"$error":"#DIV/0!"},{"$f":"IF(E26<0,\" \",IF(SUM(F$6:F25)>0,\" \",IF($F$7=0,\" \",A26)))","v":{"$error":"#DIV/0!"}}]
[20,{"$f":"'3 Coût total'!E27","v":0},{"$f":"'4 Recette totale'!D27","v":{"$error":"#DIV/0!"}},{"$error":"#DIV/0!"},{"$error":"#DIV/0!"},{"$f":"IF(E27<0,\" \",IF(SUM(F$6:F26)>0,\" \",IF($F$7=0,\" \",A27)))","v":{"$error":"#DIV/0!"}}]

{"sheet":"6 Financement","index":7,"n_rows":259,"n_cols":24,"rows_kept":259,"cut":false,"hidden":false,"merged":[[2,0,2,5],[105,0,115,0],[6,8,6,9],[6,5,6,6],[34,3,34,7],[29,1,29,5],[31,1,31,5],[33,1,33,5],[236,1,237,1],[207,0,208,0],[186,0,186,1],[185,0,185,1],[207,2,208,2],[207,1,208,1],[236,2,237,2],[205,0,205,4],[117,0,127,0],[133,0,143,0],[145,0,155,0],[173,0,183,0],[161,0,171,0],[236,0,237,0]]}
["Financement"]
[]
["La feuille \"financement\" montre les quatre bailleurs de fonds et développe un scénario financier avec ces fonds. Ce scénario présente le solde du compte du projet - par période et cumulé. Sur la base du scenario financier, des indicateurs sont calculés et décrits dans l'aperçu financier. A la fin de la feuille, l'amortissement des valeurs est ajouté. "]
[]
["Données d'entrée"]
[]
["Bailleur de fonds","Investissement total par bailleur de fonds (AR)","Quote-part du coût d'investissement initial",null,null,"Conditions des prêts bancaires",null,null,"Conditions de financement d'autres donneurs / investisseurs"]
["Subvention d'ADER",{"$f":"'3 Coût total'!$B$7*C8","v":0},{"$f":"'1 Données d''entrée'!$B$299","v":0},null,null,"Taux d'intérêt ",{"$f":"'1 Données d''entrée'!C332","v":0},null,"Taux d'intérêt ",{"$f":"'1 Données d''entrée'!C310","v":0}]
["Capitaux propres",{"$f":"'1 Données d''entrée'!$B$294","v":0},{"$f":"'1 Données d''entrée'!$B$294/'3 Coût total'!$B$7","v":{"$error":"#DIV/0!"}},null,null,"Durée de prêt",{"$f":"'1 Données d''entrée'!C337","v":0},null,"Durée de prêt",{"$f":"'1 Données d''entrée'!C315","v":0}]
["Fonds d'autres donneurs / investisseurs",{"$f":"'1 Données d''entrée'!$B$306+'1 Données d''entrée'!$B$307","v":0},{"$f":"B10/'3 Coût total'!$B$7","v":{"$error":"#DIV/0!"}},null,null,"Période de grâce",{"$f":"'1 Données d''entrée'!$C$334","v":0},null,"Période de grâce",{"$f":"'1 Données d''entrée'!$C$312","v":0}]
["Prêt bancaire (effective)",{"$f":"IF(B8+'1 Données d''entrée'!$B$294=0,0,(-1)*'5 Flux de trésorerie brut'!$D$7-(SUM(B8:B10)))","v":0},{"$f":"(1-(C8+C9+C10))","v":{"$error":"#DIV/0!"}},null,null,"Frais (% du prêt)",{"$f":"'1 Données d''entrée'!$C$338","v":0},null,"Frais (% du prêt)",{"$f":"'1 Données d''entrée'!C316","v":0}]
[]
["Prêt bancaire avec des frais de gestion",{"$f":"B11+B11*'1 Données d''entrée'!$C$338","v":0},{"$f":"(1-(C8+C9+C10))+(1-(C8+C9+C10))*'1 Données d''entrée'!$C$338","v":{"$error":"#DIV/0!"}}]
[]
["Aperçu financier"]
[]
[]
["Scénario financier I"]
["Période",0,1,2,3,4,5,6,7,8,9,10,11,12,13,14,15,16,17,18,19,20]
["Solde du compte (par période)",{"$f":"B96","v":{"$error":"#DIV/0!"}},{"$error":"#DIV/0!"},{"$error":"#DIV/0!"},{"$error":"#DIV/0!"},{"$error":"#DIV/0!"},{"$error":"#DIV/0!"},{"$error":"#DIV/0!"},{"$error":"#DIV/0!"},{"$error":"#DIV/0!"},{"$error":"#DIV/0!"},{"$error":"#DIV/0!"},{"$error":"#DIV/0!"},{"$error":"#DIV/0!"},{"$error":"#DIV/0!"},{"$error":"#DIV/0!"},{"$error":"#DIV/0!"},{"$error":"#DIV/0!"},{"$error":"#DIV/0!"},{"$error":"#DIV/0!"},{"$error":"#DIV/0!"},{"$error":"#DIV/0!"}]
["Solde du compte (cumulé)",{"$f":"B97","v":{"$error":"#DIV/0!"}},{"$error":"#DIV/0!"},{"$error":"#DIV/0!"},{"$error":"#DIV/0!"},{"$error":"#DIV/0!"},{"$error":"#DIV/0!"},{"$error":"#DIV/0!"},{"$error":"#DIV/0!"},{"$error":"#DIV/0!"},{"$error":"#DIV/0!"},{"$error":"#DIV/0!"},{"$error":"#DIV/0!"},{"$error":"#DIV/0!"},{"$error":"#DIV/0!"},{"$error":"#DIV/0!"},{"$error":"#DIV/0!"},{"$error":"#DIV/0!"},{"$error":"#DIV/0!"},{"$error":"#DIV/0!"},{"$error":"#DIV/0!"},{"$error":"#DIV/0!"}]
["Scénario financier II - refinancement en cas d'un solde cumulé négatif dans le scénario I"]
["Solde du compte (par période)",0,{"$f":"C186","v":{"$error":"#DIV/0!"}},{"$error":"#DIV/0!"},{"$error":"#DIV/0!"},{"$error":"#DIV/0!"},{"$error":"#DIV/0!"},{"$error":"#DIV/0!"},{"$error":"#DIV/0!"},{"$error":"#DIV/0!"},{"$error":"#DIV/0!"},{"$error":"#DIV/0!"},{"$error":"#DIV/0!"},{"$error":"#DIV/0!"},{"$error":"#DIV/0!"},{"$error":"#DIV/0!"},{"$error":"#DIV/0!"},{"$error":"#DIV/0!"},{"$error":"#DIV/0!"},{"$error":"#DIV/0!"},{"$error":"#DIV/0!"},{"$error":"#DIV/0!"}]
["Solde du compte (cumulé)",0,{"$f":"C187","v":{"$error":"#DIV/0!"}},{"$error":"#DIV/0!"},{"$error":"#DIV/0!"},{"$error":"#DIV/0!"},{"$error":"#DIV/0!"},{"$error":"#DIV/0!"},{"$error":"#DIV/0!"},{"$error":"#DIV/0!"},{"$error":"#DIV/0!"},{"$error":"#DIV/0!"},{"$error":"#DIV/0!"},{"$error":"#DIV/0!"},{"$error":"#DIV/0!"},{"$error":"#DIV/0!"},{"$error":"#DIV/0!"},{"$error":"#DIV/0!"},{"$error":"#DIV/0!"},{"$error":"#DIV/0!"},{"$error":"#DIV/0!"},{"$error":"#DIV/0!"}]
[]
[]
["Indicateurs de financement","Période",1,2,3,4,5,6,7,8,9,10,11,12,13,14,15,16,17,18,19,20]
[null,"Moyenne"]
["Ratio de couverture de la dette (RCD)",{"$f":"SUM(C29:V29)/'1 Données d''entrée'!$H$32","v":0},{"$f":"IF(C39+C40>0,C56/(C39+C40),\"Pas des coûts\")","v":"Pas des coûts"},"Pas des coûts","Pas des coûts","Pas des coûts","Pas des coûts","Pas des coûts","Pas des coûts","Pas des coûts","Pas des coûts","Pas des coûts","Pas des coûts","Pas des coûts","Pas des coûts","Pas des coûts","Pas des coûts","Pas des coûts","Pas des coûts","Pas des coûts","Pas des coûts","Pas des coûts"]
["Explication du calcul","Le RCD montre le rapport entre les revenus par période et les coûts totaux de la dette (remboursements et paiements d'intérêts). La moyenne est calculée à partir des chiffres existants. Ainsi, l'accent du calcul n'est que mis sur les périodes avec des coûts de la dette. La moyenne est donc le minimum RCD."]
["Ratio de couverture des intérêts (RCI)",{"$f":"SUM(C31:V31)/'1 Données d''entrée'!$H$32","v":0},{"$f":"IF(C39>0,(C56+C39)/(C39),\"Pas des intérêts\")","v":"Pas des intérêts"},"Pas des intérêts","Pas des intérêts","Pas des intérêts","Pas des intérêts","Pas des intérêts","Pas des intérêts","Pas des intérêts","Pas des intérêts","Pas des intérêts","Pas des intérêts","Pas des intérêts","Pas des intérêts","Pas des intérêts","Pas des intérêts","Pas des intérêts","Pas des intérêts","Pas des intérêts","Pas des intérêts","Pas des intérêts"]
["Explication du calcul","Le RCI montre le rapport entre les revenus par période et les paiements d'intérêts. La moyenne est calculée à partir des chiffres existants et alors l'accent n'est que mis sur les périodes avec des paiements d'intérêt. La moyenne est donc le minimum RCI."]
["Taux d'endettement",{"$f":"SUM(C33:V33)/'1 Données d''entrée'!$H$32","v":{"$error":"#DIV/0!"}},{"$f":"(C39+C40)/C56","v":{"$error":"#DIV/0!"}},{"$error":"#DIV/0!"},{"$error":"#DIV/0!"},{"$error":"#DIV/0!"},{"$error":"#DIV/0!"},{"$error":"#DIV/0!"},{"$error":"#DIV/0!"},{"$error":"#DIV/0!"},{"$error":"#DIV/0!"},{"$error":"#DIV/0!"},{"$error":"#DIV/0!"},{"$error":"#DIV/0!"},{"$error":"#DIV/0!"},{"$error":"#DIV/0!"},{"$error":"#DIV/0!"},{"$error":"#DIV/0!"},{"$error":"#DIV/0!"},{"$error":"#DIV/0!"},{"$error":"#DIV/0!"},{"$error":"#DIV/0!"}]
["Explication du calcul","Le taux d'endettement désigne le rapport entre les coûts de la dette et les revenus par période, la moyenne est calculée à partir des chiffres existants et représente le maximum du taux d'endettement."]
["Taux d'intérêt effectif du prêt bancaire",{"$f":"(B13)/(B11*'1 Données d''entrée'!C337)","v":{"$error":"#DIV/0!"}},"Explication du calcul","Le taux d'intérêt effectif montre le taux d'intérêt d'un prêt avec l'inclusion des coûts additionnels du prêt. A cause de l'inclusion des coûts additionnels, ce taux est plus élevé que le taux nominal du prêt donné par la banque."]
[]
[]
["Coût du financement","Période",1,2,3,4,5,6,7,8,9,10,11,12,13,14,15,16,17,18,19,20]
["Paiement d'intérêt par période",null,{"$f":"IF($B$62>0,(C65+C66),0)+IF($B$67>0,(C70+C71),0)+IF($B$72>0,C75+C76,0)+IF($B$79>0,(C82+C83),0)+IF($B$84>0,(C87+C88),0)+IF($B$89>0,C92+C93,0)+IF($B$103>0,SUM(C118:C128),0)+IF($B$131>0,SUM(C146:C156),0)+IF($B$159>0,SUM(C174:C184),0)","v":0},{"$f":"IF($B$62>0,(D65+D66),0)+IF($B$67>0,(D70+D71),0)+IF($B$72>0,D75+D76,0)+IF($B$79>0,(D82+D83),0)+IF($B$84>0,(D87+D88),0)+IF($B$89>0,D92+D93,0)+IF($B$103>0,SUM(D118:D128),0)+IF($B$131>0,SUM(D146:D156),0)+IF($B$159>0,SUM(D174:D184),0)","v":0},0,0,0,0,0,0,0,0,0,0,0,0,0,0,0,0,0,0]
["Remboursement du principal par période",null,{"$f":"IF($B$62>0,(C64),0)+IF($B$67>0,(C69),0)+IF($B$72>0,IF(C74>0,C74-C75,0),0)+IF($B$79>0,(C81),0)+IF($B$84>0,(C86),0)+IF($B$89>0,IF(C91>0,C91-C92,0),0)+IF($B$103>0,SUM(C106:C116),0)+IF($B$131>0,SUM(C134:C144),0)+IF($B$159>0,SUM(C162:C172)-SUM(C174:C184),0)","v":0},{"$f":"IF($B$62>0,(D64),0)+IF($B$67>0,(D69),0)+IF($B$72>0,IF(D74>0,D74-D75,0),0)+IF($B$79>0,(D81),0)+IF($B$84>0,(D86),0)+IF($B$89>0,IF(D91>0,D91-D92,0),0)+IF($B$103>0,SUM(D106:D116),0)+IF($B$131>0,SUM(D134:D144),0)+IF($B$159>0,SUM(D162:D172)-SUM(D174:D184),0)","v":0},0,0,0,0,0,0,0,0,0,0,0,0,0,0,0,0,0,0]
[]
[]
["Valeur matérielle d'investissement initial",{"$f":"B195","v":0}]
["Amortissement correspondant à la période découlée"]
["Période",0,1,2,3,4,5,6,7,8,9,10,11,12,13,14,15,16,17,18,19,20]
["Amortissement linéaire (calcul en bas)",{"$f":"B200","v":0},0,0,0,0,0,0,0,0,0,0,0,0,0,0,0,0,0,0,0,0]
[]
[]
[]
["Tableaux de calcul"]
[]
[]
["Scénario financier"]
["Période",0,1,2,3,4,5,6,7,8,9,10,11,12,13,14,15,16,17,18,19,20]
[]
["Flux de trésorerie (brut)",{"$f":"'5 Flux de trésorerie brut'!$D$7","v":{"$error":"#DIV/0!"}},{"$f":"'5 Flux de trésorerie brut'!$D$8","v":{"$error":"#DIV/0!"}},{"$f":"'5 Flux de trésorerie brut'!$D$9","v":{"$error":"#DIV/0!"}},{"$f":"'5 Flux de trésorerie brut'!$D$10","v":{"$error":"#DIV/0!"}},{"$f":"'5 Flux de trésorerie brut'!$D$11","v":{"$error":"#DIV/0!"}},{"$f":"'5 Flux de trésorerie brut'!$D$12","v":{"$error":"#DIV/0!"}},{"$f":"'5 Flux de trésorerie brut'!$D$13","v":{"$error":"#DIV/0!"}},{"$f":"'5 Flux de trésorerie brut'!$D$14","v":{"$error":"#DIV/0!"}},{"$f":"'5 Flux de trésorerie brut'!$D$15","v":{"$error":"#DIV/0!"}},{"$f":"'5 Flux de trésorerie brut'!$D$16","v":{"$error":"#DIV/0!"}},{"$f":"'5 Flux de trésorerie brut'!$D$17","v":{"$error":"#DIV/0!"}},{"$f":"'5 Flux de trésorerie brut'!$D$18","v":{"$error":"#DIV/0!"}},{"$f":"'5 Flux de trésorerie brut'!$D$19","v":{"$error":"#DIV/0!"}},{"$f":"'5 Flux de trésorerie brut'!$D$20","v":{"$error":"#DIV/0!"}},{"$f":"'5 Flux de trésorerie brut'!$D$21","v":{"$error":"#DIV/0!"}},{"$f":"'5 Flux de trésorerie brut'!$D$22","v":{"$error":"#DIV/0!"}},{"$f":"'5 Flux de trésorerie brut'!$D$23","v":{"$error":"#DIV/0!"}},{"$f":"'5 Flux de trésorerie brut'!$D$24","v":{"$error":"#DIV/0!"}},{"$f":"'5 Flux de trésorerie brut'!$D$25","v":{"$error":"#DIV/0!"}},{"$f":"'5 Flux de trésorerie brut'!$D$26","v":{"$error":"#DIV/0!"}},{"$f":"'5 Flux de trésorerie brut'!$D$27","v":{"$error":"#DIV/0!"}}]
[]
["Capitaux propres",{"$f":"'1 Données d''entrée'!$B$294","v":0}]
[]
["Subvention ADER",{"$f":"'3 Coût total'!$B$7*'1 Données d''entrée'!$B$299","v":0}]
[]
["Prêt bancaire - Option 1: Remboursement du principal fractionné",{"$f":"'1 Données d''entrée'!$B$342","v":0},"% de prêt total"]
["Réception et montant restant",{"$f":"$B$13*B62","v":0},{"$f":"B63-C64","v":0},0,0,0,0,0,0,0,0,0,0,0,0,0,0,0,0,0,0,0]
["Remboursement du principal",0,{"$f":"IF(C54<'1 Données d''entrée'!$C$334+1,0,IF(C54<'1 Données d''entrée'!$C$333+'1 Données d''entrée'!$C$334+1,($B$63/'1 Données d''entrée'!$C$333),0))","v":0},{"$f":"IF(D54<'1 Données d''entrée'!$C$334+1,0,IF(D54<'1 Données d''entrée'!$C$333+'1 Données d''entrée'!$C$334+1,($B$63/'1 Données d''entrée'!$C$333),0))","v":0},{"$f":"IF(E54<'1 Données d''entrée'!$C$334+1,0,IF(E54<'1 Données d''entrée'!$C$333+'1 Données d''entrée'!$C$334+1,($B$63/'1 Données d''entrée'!$C$333),0))","v":0},{"$f":"IF(F54<'1 Données d''entrée'!$C$334+1,0,IF(F54<'1 Données d''entrée'!$C$333+'1 Données d''entrée'!$C$334+1,($B$63/'1 Données d''entrée'!$C$333),0))","v":0},{"$f":"IF(G54<'1 Données d''entrée'!$C$334+1,0,IF(G54<'1 Données d''entrée'!$C$333+'1 Données d''entrée'!$C$334+1,($B$63/'1 Données d''entrée'!$C$333),0))","v":0},{"$f":"IF(H54<'1 Données d''entrée'!$C$334+1,0,IF(H54<'1 Données d''entrée'!$C$333+'1 Données d''entrée'!$C$334+1,($B$63/'1 Données d''entrée'!$C$333),0))","v":0},{"$f":"IF(I54<'1 Données d''entrée'!$C$334+1,0,IF(I54<'1 Données d''entrée'!$C$333+'1 Données d''entrée'!$C$334+1,($B$63/'1 Données d''entrée'!$C$333),0))","v":0},{"$f":"IF(J54<'1 Données d''entrée'!$C$334+1,0,IF(J54<'1 Données d''entrée'!$C$333+'1 Données d''entrée'!$C$334+1,($B$63/'1 Données d''entrée'!$C$333),0))","v":0},{"$f":"IF(K54<'1 Données d''entrée'!$C$334+1,0,IF(K54<'1 Données d''entrée'!$C$333+'1 Données d''entrée'!$C$334+1,($B$63/'1 Données d''entrée'!$C$333),0))","v":0},{"$f":"IF(L54<'1 Données d''entrée'!$C$334+1,0,IF(L54<'1 Données d''entrée'!$C$333+'1 Données d''entrée'!$C$334+1,($B$63/'1 Données d''entrée'!$C$333),0))","v":0},{"$f":"IF(M54<'1 Données d''entrée'!$C$334+1,0,IF(M54<'1 Données d''entrée'!$C$333+'1 Données d''entrée'!$C$334+1,($B$63/'1 Données d''entrée'!$C$333),0))","v":0},{"$f":"IF(N54<'1 Données d''entrée'!$C$334+1,0,IF(N54<'1 Données d''entrée'!$C$333+'1 Données d''entrée'!$C$334+1,($B$63/'1 Données d''entrée'!$C$333),0))","v":0},{"$f":"IF(O54<'1 Données d''entrée'!$C$334+1,0,IF(O54<'1 Données d''entrée'!$C$333+'1 Données d''entrée'!$C$334+1,($B$63/'1 Données d''entrée'!$C$333),0))","v":0},{"$f":"IF(P54<'1 Données d''entrée'!$C$334+1,0,IF(P54<'1 Données d''entrée'!$C$333+'1 Données d''entrée'!$C$334+1,($B$63/'1 Données d''entrée'!$C$333),0))","v":0},{"$f":"IF(Q54<'1 Données d''entrée'!$C$334+1,0,IF(Q54<'1 Données d''entrée'!$C$333+'1 Données d''entrée'!$C$334+1,($B$63/'1 Données d''entrée'!$C$333),0))","v":0},{"$f":"IF(R54<'1 Données d''entrée'!$C$334+1,0,IF(R54<'1 Données d''entrée'!$C$333+'1 Données d''entrée'!$C$334+1,($B$63/'1 Données d''entrée'!$C$333),0))","v":0},{"$f":"IF(S54<'1 Données d''entrée'!$C$334+1,0,IF(S54<'1 Données d''entrée'!$C$333+'1 Données d''entrée'!$C$334+1,($B$63/'1 Données d''entrée'!$C$333),0))","v":0},{"$f":"IF(T54<'1 Données d''entrée'!$C$334+1,0,IF(T54<'1 Données d''entrée'!$C$333+'1 Données d''entrée'!$C$334+1,($B$63/'1 Données d''entrée'!$C$333),0))","v":0},{"$f":"IF(U54<'1 Données d''entrée'!$C$334+1,0,IF(U54<'1 Données d''entrée'!$C$333+'1 Données d''entrée'!$C$334+1,($B$63/'1 Données d''entrée'!$C$333),0))","v":0},{"$f":"IF(V54<'1 Données d''entrée'!$C$334+1,0,IF(V54<'1 Données d''entrée'!$C$333+'1 Données d''entrée'!$C$334+1,($B$63/'1 Données d''entrée'!$C$333),0))","v":0}]
["Paiement d'intérêts",0,{"$f":"IF('1 Données d''entrée'!$C$336=\"(=NON)\",IF(C54<'1 Données d''entrée'!$C$334+1,0,B63*'1 Données d''entrée'!$C$332),B63*'1 Données d''entrée'!$C$332)","v":0},{"$f":"IF('1 Données d''entrée'!$C$336=\"(=NON)\",IF(D54<'1 Données d''entrée'!$C$334+1,0,C63*'1 Données d''entrée'!$C$332),C63*'1 Données d''entrée'!$C$332)","v":0},{"$f":"IF('1 Données d''entrée'!$C$336=\"(=NON)\",IF(E54<'1 Données d''entrée'!$C$334+1,0,D63*'1 Données d''entrée'!$C$332),D63*'1 Données d''entrée'!$C$332)","v":0},{"$f":"IF('1 Données d''entrée'!$C$336=\"(=NON)\",IF(F54<'1 Données d''entrée'!$C$334+1,0,E63*'1 Données d''entrée'!$C$332),E63*'1 Données d''entrée'!$C$332)","v":0},{"$f":"IF('1 Données d''entrée'!$C$336=\"(=NON)\",IF(G54<'1 Données d''entrée'!$C$334+1,0,F63*'1 Données d''entrée'!$C$332),F63*'1 Données d''entrée'!$C$332)","v":0},{"$f":"IF('1 Données d''entrée'!$C$336=\"(=NON)\",IF(H54<'1 Données d''entrée'!$C$334+1,0,G63*'1 Données d''entrée'!$C$332),G63*'1 Données d''entrée'!$C$332)","v":0},{"$f":"IF('1 Données d''entrée'!$C$336=\"(=NON)\",IF(I54<'1 Données d''entrée'!$C$334+1,0,H63*'1 Données d''entrée'!$C$332),H63*'1 Données d''entrée'!$C$332)","v":0},{"$f":"IF('1 Données d''entrée'!$C$336=\"(=NON)\",IF(J54<'1 Données d''entrée'!$C$334+1,0,I63*'1 Données d''entrée'!$C$332),I63*'1 Données d''entrée'!$C$332)","v":0},{"$f":"IF('1 Données d''entrée'!$C$336=\"(=NON)\",IF(K54<'1 Données d''entrée'!$C$334+1,0,J63*'1 Données d''entrée'!$C$332),J63*'1 Données d''entrée'!$C$332)","v":0},{"$f":"IF('1 Données d''entrée'!$C$336=\"(=NON)\",IF(L54<'1 Données d''entrée'!$C$334+1,0,K63*'1 Données d''entrée'!$C$332),K63*'1 Données d''entrée'!$C$332)","v":0},{"$f":"IF('1 Données d''entrée'!$C$336=\"(=NON)\",IF(M54<'1 Données d''entrée'!$C$334+1,0,L63*'1 Données d''entrée'!$C$332),L63*'1 Données d''entrée'!$C$332)","v":0},{"$f":"IF('1 Données d''entrée'!$C$336=\"(=NON)\",IF(N54<'1 Données d''entrée'!$C$334+1,0,M63*'1 Données d''entrée'!$C$332),M63*'1 Données d''entrée'!$C$332)","v":0},{"$f":"IF('1 Données d''entrée'!$C$336=\"(=NON)\",IF(O54<'1 Données d''entrée'!$C$334+1,0,N63*'1 Données d''entrée'!$C$332),N63*'1 Données d''entrée'!$C$332)","v":0},{"$f":"IF('1 Données d''entrée'!$C$336=\"(=NON)\",IF(P54<'1 Données d''entrée'!$C$334+1,0,O63*'1 Données d''entrée'!$C$332),O63*'1 Données d''entrée'!$C$332)","v":0},{"$f":"IF('1 Données d''entrée'!$C$336=\"(=NON)\",IF(Q54<'1 Données d''entrée'!$C$334+1,0,P63*'1 Données d''entrée'!$C$332),P63*'1 Données d''entrée'!$C$332)","v":0},{"$f":"IF('1 Données d''entrée'!$C$336=\"(=NON)\",IF(R54<'1 Données d''entrée'!$C$334+1,0,Q63*'1 Données d''entrée'!$C$332),Q63*'1 Données d''entrée'!$C$332)","v":0},{"$f":"IF('1 Données d''entrée'!$C$336=\"(=NON)\",IF(S54<'1 Données d''entrée'!$C$334+1,0,R63*'1 Données d''entrée'!$C$332),R63*'1 Données d''entrée'!$C$332)","v":0},{"$f":"IF('1 Données d''entrée'!$C$336=\"(=NON)\",IF(T54<'1 Données d''entrée'!$C$334+1,0,S63*'1 Données d''entrée'!$C$332),S63*'1 Données d''entrée'!$C$332)","v":0},{"$f":"IF('1 Données d''entrée'!$C$336=\"(=NON)\",IF(U54<'1 Données d''entrée'!$C$334+1,0,T63*'1 Données d''entrée'!$C$332),T63*'1 Données d''entrée'!$C$332)","v":0},{"$f":"IF('1 Données d''entrée'!$C$336=\"(=NON)\",IF(V54<'1 Données d''entrée'!$C$334+1,0,U63*'1 Données d''entrée'!$C$332),U63*'1 Données d''entrée'!$C$332)","v":0}]
["Paiements d'intérêt avec des intérêts composés en cas d'absence des paiements dans la période de grâce",0,0,{"$f":"IF(D54='1 Données d''entrée'!$C$334+1,IF('1 Données d''entrée'!$C$336=\"(=NON)\",($B$63*'1 Données d''entrée'!$C$332)*((('1 Données d''entrée'!$C$332+1)^'1 Données d''entrée'!$C$334-1)/('1 Données d''entrée'!$C$332))*(1+'1 Données d''entrée'!$C$332),0),0)","v":0},{"$f":"IF(E54='1 Données d''entrée'!$C$334+1,IF('1 Données d''entrée'!$C$336=\"(=NON)\",($B$63*'1 Données d''entrée'!$C$332)*((('1 Données d''entrée'!$C$332+1)^'1 Données d''entrée'!$C$334-1)/('1 Données d''entrée'!$C$332))*(1+'1 Données d''entrée'!$C$332),0),0)","v":0},{"$f":"IF(F54='1 Données d''entrée'!$C$334+1,IF('1 Données d''entrée'!$C$336=\"(=NON)\",($B$63*'1 Données d''entrée'!$C$332)*((('1 Données d''entrée'!$C$332+1)^'1 Données d''entrée'!$C$334-1)/('1 Données d''entrée'!$C$332))*(1+'1 Données d''entrée'!$C$332),0),0)","v":0},{"$f":"IF(G54='1 Données d''entrée'!$C$334+1,IF('1 Données d''entrée'!$C$336=\"(=NON)\",($B$63*'1 Données d''entrée'!$C$332)*((('1 Données d''entrée'!$C$332+1)^'1 Données d''entrée'!$C$334-1)/('1 Données d''entrée'!$C$332))*(1+'1 Données d''entrée'!$C$332),0),0)","v":0},{"$f":"IF(H54='1 Données d''entrée'!$C$334+1,IF('1 Données d''entrée'!$C$336=\"(=NON)\",($B$63*'1 Données d''entrée'!$C$332)*((('1 Données d''entrée'!$C$332+1)^'1 Données d''entrée'!$C$334-1)/('1 Données d''entrée'!$C$332))*(1+'1 Données d''entrée'!$C$332),0),0)","v":0},{"$f":"IF(I54='1 Données d''entrée'!$C$334+1,IF('1 Données d''entrée'!$C$336=\"(=NON)\",($B$63*'1 Données d''entrée'!$C$332)*((('1 Données d''entrée'!$C$332+1)^'1 Données d''entrée'!$C$334-1)/('1 Données d''entrée'!$C$332))*(1+'1 Données d''entrée'!$C$332),0),0)","v":0},{"$f":"IF(J54='1 Données d''entrée'!$C$334+1,IF('1 Données d''entrée'!$C$336=\"(=NON)\",($B$63*'1 Données d''entrée'!$C$332)*((('1 Données d''entrée'!$C$332+1)^'1 Données d''entrée'!$C$334-1)/('1 Données d''entrée'!$C$332))*(1+'1 Données d''entrée'!$C$332),0),0)","v":0},{"$f":"IF(K54='1 Données d''entrée'!$C$334+1,IF('1 Données d''entrée'!$C$336=\"(=NON)\",($B$63*'1 Données d''entrée'!$C$332)*((('1 Données d''entrée'!$C$332+1)^'1 Données d''entrée'!$C$334-1)/('1 Données d''entrée'!$C$332))*(1+'1 Données d''entrée'!$C$332),0),0)","v":0},{"$f":"IF(L54='1 Données d''entrée'!$C$334+1,IF('1 Données d''entrée'!$C$336=\"(=NON)\",($B$63*'1 Données d''entrée'!$C$332)*((('1 Données d''entrée'!$C$332+1)^'1 Données d''entrée'!$C$334-1)/('1 Données d''entrée'!$C$332))*(1+'1 Données d''entrée'!$C$332),0),0)","v":0},{"$f":"IF(M54='1 Données d''entrée'!$C$334+1,IF('1 Données d''entrée'!$C$336=\"(=NON)\",($B$63*'1 Données d''entrée'!$C$332)*((('1 Données d''entrée'!$C$332+1)^'1 Données d''entrée'!$C$334-1)/('1 Données d''entrée'!$C$332))*(1+'1 Données d''entrée'!$C$332),0),0)","v":0},{"$f":"IF(N54='1 Données d''entrée'!$C$334+1,IF('1 Données d''entrée'!$C$336=\"(=NON)\",($B$63*'1 Données d''entrée'!$C$332)*((('1 Données d''entrée'!$C$332+1)^'1 Données d''entrée'!$C$334-1)/('1 Données d''entrée'!$C$332))*(1+'1 Données d''entrée'!$C$332),0),0)","v":0},{"$f":"IF(O54='1 Données d''entrée'!$C$334+1,IF('1 Données d''entrée'!$C$336=\"(=NON)\",($B$63*'1 Données d''entrée'!$C$332)*((('1 Données d''entrée'!$C$332+1)^'1 Données d''entrée'!$C$334-1)/('1 Données d''entrée'!$C$332))*(1+'1 Données d''entrée'!$C$332),0),0)","v":0},{"$f":"IF(P54='1 Données d''entrée'!$C$334+1,IF('1 Données d''entrée'!$C$336=\"(=NON)\",($B$63*'1 Données d''entrée'!$C$332)*((('1 Données d''entrée'!$C$332+1)^'1 Données d''entrée'!$C$334-1)/('1 Données d''entrée'!$C$332))*(1+'1 Données d''entrée'!$C$332),0),0)","v":0},{"$f":"IF(Q54='1 Données d''entrée'!$C$334+1,IF('1 Données d''entrée'!$C$336=\"(=NON)\",($B$63*'1 Données d''entrée'!$C$332)*((('1 Données d''entrée'!$C$332+1)^'1 Données d''entrée'!$C$334-1)/('1 Données d''entrée'!$C$332))*(1+'1 Données d''entrée'!$C$332),0),0)","v":0},{"$f":"IF(R54='1 Données d''entrée'!$C$334+1,IF('1 Données d''entrée'!$C$336=\"(=NON)\",($B$63*'1 Données d''entrée'!$C$332)*((('1 Données d''entrée'!$C$332+1)^'1 Données d''entrée'!$C$334-1)/('1 Données d''entrée'!$C$332))*(1+'1 Données d''entrée'!$C$332),0),0)","v":0},{"$f":"IF(S54='1 Données d''entrée'!$C$334+1,IF('1 Données d''entrée'!$C$336=\"(=NON)\",($B$63*'1 Données d''entrée'!$C$332)*((('1 Données d''entrée'!$C$332+1)^'1 Données d''entrée'!$C$334-1)/('1 Données d''entrée'!$C$332))*(1+'1 Données d''entrée'!$C$332),0),0)","v":0},{"$f":"IF(T54='1 Données d''entrée'!$C$334+1,IF('1 Données d''entrée'!$C$336=\"(=NON)\",($B$63*'1 Données d''entrée'!$C$332)*((('1 Données d''entrée'!$C$332+1)^'1 Données d''entrée'!$C$334-1)/('1 Données d''entrée'!$C$332))*(1+'1 Données d''entrée'!$C$332),0),0)","v":0},{"$f":"IF(U54='1 Données d''entrée'!$C$334+1,IF('1 Données d''entrée'!$C$336=\"(=NON)\",($B$63*'1 Données d''entrée'!$C$332)*((('1 Données d''entrée'!$C$332+1)^'1 Données d''entrée'!$C$334-1)/('1 Données d''entrée'!$C$332))*(1+'1 Données d''entrée'!$C$332),0),0)","v":0},{"$f":"IF(V54='1 Données d''entrée'!$C$334+1,IF('1 Données d''entrée'!$C$336=\"(=NON)\",($B$63*'1 Données d''entrée'!$C$332)*((('1 Données d''entrée'!$C$332+1)^'1 Données d''entrée'!$C$334-1)/('1 Données d''entrée'!$C$332))*(1+'1 Données d''entrée'!$C$332),0),0)","v":0}]
["Prêt bancaire - Option 2: Remboursement du principal final",{"$f":"'1 Données d''entrée'!$B$343","v":0},"% de prêt total"]
["Réception et montant restant",{"$f":"$B$13*B67","v":0},{"$f":"B68-C69","v":0},0,0,0,0,0,0,0,0,0,0,0,0,0,0,0,0,0,0,0]
["Remboursement du principal",0,{"$f":"IF('1 Données d''entrée'!$C$333+'1 Données d''entrée'!$C$334=C54,$B$68,0)","v":0},{"$f":"IF('1 Données d''entrée'!$C$333+'1 Données d''entrée'!$C$334=D54,$B$68,0)","v":0},{"$f":"IF('1 Données d''entrée'!$C$333+'1 Données d''entrée'!$C$334=E54,$B$68,0)","v":0},{"$f":"IF('1 Données d''entrée'!$C$333+'1 Données d''entrée'!$C$334=F54,$B$68,0)","v":0},{"$f":"IF('1 Données d''entrée'!$C$333+'1 Données d''entrée'!$C$334=G54,$B$68,0)","v":0},{"$f":"IF('1 Données d''entrée'!$C$333+'1 Données d''entrée'!$C$334=H54,$B$68,0)","v":0},{"$f":"IF('1 Données d''entrée'!$C$333+'1 Données d''entrée'!$C$334=I54,$B$68,0)","v":0},{"$f":"IF('1 Données d''entrée'!$C$333+'1 Données d''entrée'!$C$334=J54,$B$68,0)","v":0},{"$f":"IF('1 Données d''entrée'!$C$333+'1 Données d''entrée'!$C$334=K54,$B$68,0)","v":0},{"$f":"IF('1 Données d''entrée'!$C$333+'1 Données d''entrée'!$C$334=L54,$B$68,0)","v":0},{"$f":"IF('1 Données d''entrée'!$C$333+'1 Données d''entrée'!$C$334=M54,$B$68,0)","v":0},{"$f":"IF('1 Données d''entrée'!$C$333+'1 Données d''entrée'!$C$334=N54,$B$68,0)","v":0},{"$f":"IF('1 Données d''entrée'!$C$333+'1 Données d''entrée'!$C$334=O54,$B$68,0)","v":0},{"$f":"IF('1 Données d''entrée'!$C$333+'1 Données d''entrée'!$C$334=P54,$B$68,0)","v":0},{"$f":"IF('1 Données d''entrée'!$C$333+'1 Données d''entrée'!$C$334=Q54,$B$68,0)","v":0},{"$f":"IF('1 Données d''entrée'!$C$333+'1 Données d''entrée'!$C$334=R54,$B$68,0)","v":0},{"$f":"IF('1 Données d''entrée'!$C$333+'1 Données d''entrée'!$C$334=S54,$B$68,0)","v":0},{"$f":"IF('1 Données d''entrée'!$C$333+'1 Données d''entrée'!$C$334=T54,$B$68,0)","v":0},{"$f":"IF('1 Données d''entrée'!$C$333+'1 Données d''entrée'!$C$334=U54,$B$68,0)","v":0},{"$f":"IF('1 Données d''entrée'!$C$333+'1 Données d''entrée'!$C$334=V54,$B$68,0)","v":0}]
["Paiement d'intérêts",0,{"$f":"IF('1 Données d''entrée'!$C$336=\"(=NON)\",IF(C54<'1 Données d''entrée'!$C$334+1,0,B68*'1 Données d''entrée'!$C$332),B68*'1 Données d''entrée'!$C$332)","v":0},{"$f":"IF('1 Données d''entrée'!$C$336=\"(=NON)\",IF(D54<'1 Données d''entrée'!$C$334+1,0,C68*'1 Données d''entrée'!$C$332),C68*'1 Données d''entrée'!$C$332)","v":0},{"$f":"IF('1 Données d''entrée'!$C$336=\"(=NON)\",IF(E54<'1 Données d''entrée'!$C$334+1,0,D68*'1 Données d''entrée'!$C$332),D68*'1 Données d''entrée'!$C$332)","v":0},{"$f":"IF('1 Données d''entrée'!$C$336=\"(=NON)\",IF(F54<'1 Données d''entrée'!$C$334+1,0,E68*'1 Données d''entrée'!$C$332),E68*'1 Données d''entrée'!$C$332)","v":0},{"$f":"IF('1 Données d''entrée'!$C$336=\"(=NON)\",IF(G54<'1 Données d''entrée'!$C$334+1,0,F68*'1 Données d''entrée'!$C$332),F68*'1 Données d''entrée'!$C$332)","v":0},{"$f":"IF('1 Données d''entrée'!$C$336=\"(=NON)\",IF(H54<'1 Données d''entrée'!$C$334+1,0,G68*'1 Données d''entrée'!$C$332),G68*'1 Données d''entrée'!$C$332)","v":0},{"$f":"IF('1 Données d''entrée'!$C$336=\"(=NON)\",IF(I54<'1 Données d''entrée'!$C$334+1,0,H68*'1 Données d''entrée'!$C$332),H68*'1 Données d''entrée'!$C$332)","v":0},{"$f":"IF('1 Données d''entrée'!$C$336=\"(=NON)\",IF(J54<'1 Données d''entrée'!$C$334+1,0,I68*'1 Données d''entrée'!$C$332),I68*'1 Données d''entrée'!$C$332)","v":0},{"$f":"IF('1 Données d''entrée'!$C$336=\"(=NON)\",IF(K54<'1 Données d''entrée'!$C$334+1,0,J68*'1 Données d''entrée'!$C$332),J68*'1 Données d''entrée'!$C$332)","v":0},{"$f":"IF('1 Données d''entrée'!$C$336=\"(=NON)\",IF(L54<'1 Données d''entrée'!$C$334+1,0,K68*'1 Données d''entrée'!$C$332),K68*'1 Données d''entrée'!$C$332)","v":0},{"$f":"IF('1 Données d''entrée'!$C$336=\"(=NON)\",IF(M54<'1 Données d''entrée'!$C$334+1,0,L68*'1 Données d''entrée'!$C$332),L68*'1 Données d''entrée'!$C$332)","v":0},{"$f":"IF('1 Données d''entrée'!$C$336=\"(=NON)\",IF(N54<'1 Données d''entrée'!$C$334+1,0,M68*'1 Données d''entrée'!$C$332),M68*'1 Données d''entrée'!$C$332)","v":0},{"$f":"IF('1 Données d''entrée'!$C$336=\"(=NON)\",IF(O54<'1 Données d''entrée'!$C$334+1,0,N68*'1 Données d''entrée'!$C$332),N68*'1 Données d''entrée'!$C$332)","v":0},{"$f":"IF('1 Données d''entrée'!$C$336=\"(=NON)\",IF(P54<'1 Données d''entrée'!$C$334+1,0,O68*'1 Données d''entrée'!$C$332),O68*'1 Données d''entrée'!$C$332)","v":0},{"$f":"IF('1 Données d''entrée'!$C$336=\"(=NON)\",IF(Q54<'1 Données d''entrée'!$C$334+1,0,P68*'1 Données d''entrée'!$C$332),P68*'1 Données d''entrée'!$C$332)","v":0},{"$f":"IF('1 Données d''entrée'!$C$336=\"(=NON)\",IF(R54<'1 Données d''entrée'!$C$334+1,0,Q68*'1 Données d''entrée'!$C$332),Q68*'1 Données d''entrée'!$C$332)","v":0},{"$f":"IF('1 Données d''entrée'!$C$336=\"(=NON)\",IF(S54<'1 Données d''entrée'!$C$334+1,0,R68*'1 Données d''entrée'!$C$332),R68*'1 Données d''entrée'!$C$332)","v":0},{"$f":"IF('1 Données d''entrée'!$C$336=\"(=NON)\",IF(T54<'1 Données d''entrée'!$C$334+1,0,S68*'1 Données d''entrée'!$C$332),S68*'1 Données d''entrée'!$C$332)","v":0},{"$f":"IF('1 Données d''entrée'!$C$336=\"(=NON)\",IF(U54<'1 Données d''entrée'!$C$334+1,0,T68*'1 Données d''entrée'!$C$332),T68*'1 Données d''entrée'!$C$332)","v":0},{"$f":"IF('1 Données d''entrée'!$C$336=\"(=NON)\",IF(V54<'1 Données d''entrée'!$C$334+1,0,U68*'1 Données d''entrée'!$C$332),U68*'1 Données d''entrée'!$C$332)","v":0}]
["Paiements d'intérêt avec des intérêts composés en cas d'absence des paiements dans la période de grâce",0,0,{"$f":"IF(D54='1 Données d''entrée'!$C$334+1,IF('1 Données d''entrée'!$C$336=\"(=NON)\",($B$68*'1 Données d''entrée'!$C$332)*((('1 Données d''entrée'!$C$332+1)^'1 Données d''entrée'!$C$334-1)/('1 Données d''entrée'!$C$332))*(1+'1 Données d''entrée'!$C$332),0),0)","v":0},{"$f":"IF(E54='1 Données d''entrée'!$C$334+1,IF('1 Données d''entrée'!$C$336=\"(=NON)\",($B$68*'1 Données d''entrée'!$C$332)*((('1 Données d''entrée'!$C$332+1)^'1 Données d''entrée'!$C$334-1)/('1 Données d''entrée'!$C$332))*(1+'1 Données d''entrée'!$C$332),0),0)","v":0},{"$f":"IF(F54='1 Données d''entrée'!$C$334+1,IF('1 Données d''entrée'!$C$336=\"(=NON)\",($B$68*'1 Données d''entrée'!$C$332)*((('1 Données d''entrée'!$C$332+1)^'1 Données d''entrée'!$C$334-1)/('1 Données d''entrée'!$C$332))*(1+'1 Données d''entrée'!$C$332),0),0)","v":0},{"$f":"IF(G54='1 Données d''entrée'!$C$334+1,IF('1 Données d''entrée'!$C$336=\"(=NON)\",($B$68*'1 Données d''entrée'!$C$332)*((('1 Données d''entrée'!$C$332+1)^'1 Données d''entrée'!$C$334-1)/('1 Données d''entrée'!$C$332))*(1+'1 Données d''entrée'!$C$332),0),0)","v":0},{"$f":"IF(H54='1 Données d''entrée'!$C$334+1,IF('1 Données d''entrée'!$C$336=\"(=NON)\",($B$68*'1 Données d''entrée'!$C$332)*((('1 Données d''entrée'!$C$332+1)^'1 Données d''entrée'!$C$334-1)/('1 Données d''entrée'!$C$332))*(1+'1 Données d''entrée'!$C$332),0),0)","v":0},{"$f":"IF(I54='1 Données d''entrée'!$C$334+1,IF('1 Données d''entrée'!$C$336=\"(=NON)\",($B$68*'1 Données d''entrée'!$C$332)*((('1 Données d''entrée'!$C$332+1)^'1 Données d''entrée'!$C$334-1)/('1 Données d''entrée'!$C$332))*(1+'1 Données d''entrée'!$C$332),0),0)","v":0},{"$f":"IF(J54='1 Données d''entrée'!$C$334+1,IF('1 Données d''entrée'!$C$336=\"(=NON)\",($B$68*'1 Données d''entrée'!$C$332)*((('1 Données d''entrée'!$C$332+1)^'1 Données d''entrée'!$C$334-1)/('1 Données d''entrée'!$C$332))*(1+'1 Données d''entrée'!$C$332),0),0)","v":0},{"$f":"IF(K54='1 Données d''entrée'!$C$334+1,IF('1 Données d''entrée'!$C$336=\"(=NON)\",($B$68*'1 Données d''entrée'!$C$332)*((('1 Données d''entrée'!$C$332+1)^'1 Données d''entrée'!$C$334-1)/('1 Données d''entrée'!$C$332))*(1+'1 Données d''entrée'!$C$332),0),0)","v":0},{"$f":"IF(L54='1 Données d''entrée'!$C$334+1,IF('1 Données d''entrée'!$C$336=\"(=NON)\",($B$68*'1 Données d''entrée'!$C$332)*((('1 Données d''entrée'!$C$332+1)^'1 Données d''entrée'!$C$334-1)/('1 Données d''entrée'!$C$332))*(1+'1 Données d''entrée'!$C$332),0),0)","v":0},{"$f":"IF(M54='1 Données d''entrée'!$C$334+1,IF('1 Données d''entrée'!$C$336=\"(=NON)\",($B$68*'1 Données d''entrée'!$C$332)*((('1 Données d''entrée'!$C$332+1)^'1 Données d''entrée'!$C$334-1)/('1 Données d''entrée'!$C$332))*(1+'1 Données d''entrée'!$C$332),0),0)","v":0},{"$f":"IF(N54='1 Données d''entrée'!$C$334+1,IF('1 Données d''entrée'!$C$336=\"(=NON)\",($B$68*'1 Données d''entrée'!$C$332)*((('1 Données d''entrée'!$C$332+1)^'1 Données d''entrée'!$C$334-1)/('1 Données d''entrée'!$C$332))*(1+'1 Données d''entrée'!$C$332),0),0)","v":0},{"$f":"IF(O54='1 Données d''entrée'!$C$334+1,IF('1 Données d''entrée'!$C$336=\"(=NON)\",($B$68*'1 Données d''entrée'!$C$332)*((('1 Données d''entrée'!$C$332+1)^'1 Données d''entrée'!$C$334-1)/('1 Données d''entrée'!$C$332))*(1+'1 Données d''entrée'!$C$332),0),0)","v":0},{"$f":"IF(P54='1 Données d''entrée'!$C$334+1,IF('1 Données d''entrée'!$C$336=\"(=NON)\",($B$68*'1 Données d''entrée'!$C$332)*((('1 Données d''entrée'!$C$332+1)^'1 Données d''entrée'!$C$334-1)/('1 Données d''entrée'!$C$332))*(1+'1 Données d''entrée'!$C$332),0),0)","v":0},{"$f":"IF(Q54='1 Données d''entrée'!$C$334+1,IF('1 Données d''entrée'!$C$336=\"(=NON)\",($B$68*'1 Données d''entrée'!$C$332)*((('1 Données d''entrée'!$C$332+1)^'1 Données d''entrée'!$C$334-1)/('1 Données d''entrée'!$C$332))*(1+'1 Données d''entrée'!$C$332),0),0)","v":0},{"$f":"IF(R54='1 Données d''entrée'!$C$334+1,IF('1 Données d''entrée'!$C$336=\"(=NON)\",($B$68*'1 Données d''entrée'!$C$332)*((('1 Données d''entrée'!$C$332+1)^'1 Données d''entrée'!$C$334-1)/('1 Données d''entrée'!$C$332))*(1+'1 Données d''entrée'!$C$332),0),0)","v":0},{"$f":"IF(S54='1 Données d''entrée'!$C$334+1,IF('1 Données d''entrée'!$C$336=\"(=NON)\",($B$68*'1 Données d''entrée'!$C$332)*((('1 Données d''entrée'!$C$332+1)^'1 Données d''entrée'!$C$334-1)/('1 Données d''entrée'!$C$332))*(1+'1 Données d''entrée'!$C$332),0),0)","v":0},{"$f":"IF(T54='1 Données d''entrée'!$C$334+1,IF('1 Données d''entrée'!$C$336=\"(=NON)\",($B$68*'1 Données d''entrée'!$C$332)*((('1 Données d''entrée'!$C$332+1)^'1 Données d''entrée'!$C$334-1)/('1 Données d''entrée'!$C$332))*(1+'1 Données d''entrée'!$C$332),0),0)","v":0},{"$f":"IF(U54='1 Données d''entrée'!$C$334+1,IF('1 Données d''entrée'!$C$336=\"(=NON)\",($B$68*'1 Données d''entrée'!$C$332)*((('1 Données d''entrée'!$C$332+1)^'1 Données d''entrée'!$C$334-1)/('1 Données d''entrée'!$C$332))*(1+'1 Données d''entrée'!$C$332),0),0)","v":0},{"$f":"IF(V54='1 Données d''entrée'!$C$334+1,IF('1 Données d''entrée'!$C$336=\"(=NON)\",($B$68*'1 Données d''entrée'!$C$332)*((('1 Données d''entrée'!$C$332+1)^'1 Données d''entrée'!$C$334-1)/('1 Données d''entrée'!$C$332))*(1+'1 Données d''entrée'!$C$332),0),0)","v":0}]
["Prêt bancaire - Option 3: Remboursement vers l'annuité constante",{"$f":"'1 Données d''entrée'!$B$344","v":0},"% de prêt total"]
["Réception ",{"$f":"$B$13*B72","v":0},0,0,0,0,0,0,0,0,0,0,0,0,0,0,0,0,0,0,0,0]
["Remboursement vers l'annuité constante",{"$f":"IF(B54<'1 Données d''entrée'!$C$334+1,0,IF(B54<'1 Données d''entrée'!$C$333+'1 Données d''entrée'!$C$334+1,$B$73*('1 Données d''entrée'!$C$332*(1+'1 Données d''entrée'!$C$332)^'1 Données d''entrée'!$C$333)/((1+'1 Données d''entrée'!$C$332)^'1 Données d''entrée'!$C$333-1),0))","v":0},{"$f":"IF(C54<'1 Données d''entrée'!$C$334+1,0,IF(C54<'1 Données d''entrée'!$C$333+'1 Données d''entrée'!$C$334+1,$B$73*('1 Données d''entrée'!$C$332*(1+'1 Données d''entrée'!$C$332)^'1 Données d''entrée'!$C$333)/((1+'1 Données d''entrée'!$C$332)^'1 Données d''entrée'!$C$333-1),0))","v":0},{"$f":"IF(D54<'1 Données d''entrée'!$C$334+1,0,IF(D54<'1 Données d''entrée'!$C$333+'1 Données d''entrée'!$C$334+1,$B$73*('1 Données d''entrée'!$C$332*(1+'1 Données d''entrée'!$C$332)^'1 Données d''entrée'!$C$333)/((1+'1 Données d''entrée'!$C$332)^'1 Données d''entrée'!$C$333-1),0))","v":0},{"$f":"IF(E54<'1 Données d''entrée'!$C$334+1,0,IF(E54<'1 Données d''entrée'!$C$333+'1 Données d''entrée'!$C$334+1,$B$73*('1 Données d''entrée'!$C$332*(1+'1 Données d''entrée'!$C$332)^'1 Données d''entrée'!$C$333)/((1+'1 Données d''entrée'!$C$332)^'1 Données d''entrée'!$C$333-1),0))","v":0},{"$f":"IF(F54<'1 Données d''entrée'!$C$334+1,0,IF(F54<'1 Données d''entrée'!$C$333+'1 Données d''entrée'!$C$334+1,$B$73*('1 Données d''entrée'!$C$332*(1+'1 Données d''entrée'!$C$332)^'1 Données d''entrée'!$C$333)/((1+'1 Données d''entrée'!$C$332)^'1 Données d''entrée'!$C$333-1),0))","v":0},{"$f":"IF(G54<'1 Données d''entrée'!$C$334+1,0,IF(G54<'1 Données d''entrée'!$C$333+'1 Données d''entrée'!$C$334+1,$B$73*('1 Données d''entrée'!$C$332*(1+'1 Données d''entrée'!$C$332)^'1 Données d''entrée'!$C$333)/((1+'1 Données d''entrée'!$C$332)^'1 Données d''entrée'!$C$333-1),0))","v":0},{"$f":"IF(H54<'1 Données d''entrée'!$C$334+1,0,IF(H54<'1 Données d''entrée'!$C$333+'1 Données d''entrée'!$C$334+1,$B$73*('1 Données d''entrée'!$C$332*(1+'1 Données d''entrée'!$C$332)^'1 Données d''entrée'!$C$333)/((1+'1 Données d''entrée'!$C$332)^'1 Données d''entrée'!$C$333-1),0))","v":0},{"$f":"IF(I54<'1 Données d''entrée'!$C$334+1,0,IF(I54<'1 Données d''entrée'!$C$333+'1 Données d''entrée'!$C$334+1,$B$73*('1 Données d''entrée'!$C$332*(1+'1 Données d''entrée'!$C$332)^'1 Données d''entrée'!$C$333)/((1+'1 Données d''entrée'!$C$332)^'1 Données d''entrée'!$C$333-1),0))","v":0},{"$f":"IF(J54<'1 Données d''entrée'!$C$334+1,0,IF(J54<'1 Données d''entrée'!$C$333+'1 Données d''entrée'!$C$334+1,$B$73*('1 Données d''entrée'!$C$332*(1+'1 Données d''entrée'!$C$332)^'1 Données d''entrée'!$C$333)/((1+'1 Données d''entrée'!$C$332)^'1 Données d''entrée'!$C$333-1),0))","v":0},{"$f":"IF(K54<'1 Données d''entrée'!$C$334+1,0,IF(K54<'1 Données d''entrée'!$C$333+'1 Données d''entrée'!$C$334+1,$B$73*('1 Données d''entrée'!$C$332*(1+'1 Données d''entrée'!$C$332)^'1 Données d''entrée'!$C$333)/((1+'1 Données d''entrée'!$C$332)^'1 Données d''entrée'!$C$333-1),0))","v":0},{"$f":"IF(L54<'1 Données d''entrée'!$C$334+1,0,IF(L54<'1 Données d''entrée'!$C$333+'1 Données d''entrée'!$C$334+1,$B$73*('1 Données d''entrée'!$C$332*(1+'1 Données d''entrée'!$C$332)^'1 Données d''entrée'!$C$333)/((1+'1 Données d''entrée'!$C$332)^'1 Données d''entrée'!$C$333-1),0))","v":0},{"$f":"IF(M54<'1 Données d''entrée'!$C$334+1,0,IF(M54<'1 Données d''entrée'!$C$333+'1 Données d''entrée'!$C$334+1,$B$73*('1 Données d''entrée'!$C$332*(1+'1 Données d''entrée'!$C$332)^'1 Données d''entrée'!$C$333)/((1+'1 Données d''entrée'!$C$332)^'1 Données d''entrée'!$C$333-1),0))","v":0},{"$f":"IF(N54<'1 Données d''entrée'!$C$334+1,0,IF(N54<'1 Données d''entrée'!$C$333+'1 Données d''entrée'!$C$334+1,$B$73*('1 Données d''entrée'!$C$332*(1+'1 Données d''entrée'!$C$332)^'1 Données d''entrée'!$C$333)/((1+'1 Données d''entrée'!$C$332)^'1 Données d''entrée'!$C$333-1),0))","v":0},{"$f":"IF(O54<'1 Données d''entrée'!$C$334+1,0,IF(O54<'1 Données d''entrée'!$C$333+'1 Données d''entrée'!$C$334+1,$B$73*('1 Données d''entrée'!$C$332*(1+'1 Données d''entrée'!$C$332)^'1 Données d''entrée'!$C$333)/((1+'1 Données d''entrée'!$C$332)^'1 Données d''entrée'!$C$333-1),0))","v":0},{"$f":"IF(P54<'1 Données d''entrée'!$C$334+1,0,IF(P54<'1 Données d''entrée'!$C$333+'1 Données d''entrée'!$C$334+1,$B$73*('1 Données d''entrée'!$C$332*(1+'1 Données d''entrée'!$C$332)^'1 Données d''entrée'!$C$333)/((1+'1 Données d''entrée'!$C$332)^'1 Données d''entrée'!$C$333-1),0))","v":0},{"$f":"IF(Q54<'1 Données d''entrée'!$C$334+1,0,IF(Q54<'1 Données d''entrée'!$C$333+'1 Données d''entrée'!$C$334+1,$B$73*('1 Données d''entrée'!$C$332*(1+'1 Données d''entrée'!$C$332)^'1 Données d''entrée'!$C$333)/((1+'1 Données d''entrée'!$C$332)^'1 Données d''entrée'!$C$333-1),0))","v":0},{"$f":"IF(R54<'1 Données d''entrée'!$C$334+1,0,IF(R54<'1 Données d''entrée'!$C$333+'1 Données d''entrée'!$C$334+1,$B$73*('1 Données d''entrée'!$C$332*(1+'1 Données d''entrée'!$C$332)^'1 Données d''entrée'!$C$333)/((1+'1 Données d''entrée'!$C$332)^'1 Données d''entrée'!$C$333-1),0))","v":0},{"$f":"IF(S54<'1 Données d''entrée'!$C$334+1,0,IF(S54<'1 Données d''entrée'!$C$333+'1 Données d''entrée'!$C$334+1,$B$73*('1 Données d''entrée'!$C$332*(1+'1 Données d''entrée'!$C$332)^'1 Données d''entrée'!$C$333)/((1+'1 Données d''entrée'!$C$332)^'1 Données d''entrée'!$C$333-1),0))","v":0},{"$f":"IF(T54<'1 Données d''entrée'!$C$334+1,0,IF(T54<'1 Données d''entrée'!$C$333+'1 Données d''entrée'!$C$334+1,$B$73*('1 Données d''entrée'!$C$332*(1+'1 Données d''entrée'!$C$332)^'1 Données d''entrée'!$C$333)/((1+'1 Données d''entrée'!$C$332)^'1 Données d''entrée'!$C$333-1),0))","v":0},{"$f":"IF(U54<'1 Données d''entrée'!$C$334+1,0,IF(U54<'1 Données d''entrée'!$C$333+'1 Données d''entrée'!$C$334+1,$B$73*('1 Données d''entrée'!$C$332*(1+'1 Données d''entrée'!$C$332)^'1 Données d''entrée'!$C$333)/((1+'1 Données d''entrée'!$C$332)^'1 Données d''entrée'!$C$333-1),0))","v":0},{"$f":"IF(V54<'1 Données d''entrée'!$C$334+1,0,IF(V54<'1 Données d''entrée'!$C$333+'1 Données d''entrée'!$C$334+1,$B$73*('1 Données d''entrée'!$C$332*(1+'1 Données d''entrée'!$C$332)^'1 Données d''entrée'!$C$333)/((1+'1 Données d''entrée'!$C$332)^'1 Données d''entrée'!$C$333-1),0))","v":0}]
["Paiement d'intérêt décroissant inclu dans l'annuité constante",0,{"$f":"IF('1 Données d''entrée'!$C$336=\"(=NON)\",IF(C74>0,$B$73*((('1 Données d''entrée'!$C$332+1)^'1 Données d''entrée'!$C$333)-(1+'1 Données d''entrée'!$C$332)^('6 Financement'!C$54-1-'1 Données d''entrée'!$C$334))/((1+'1 Données d''entrée'!$C$332)^'1 Données d''entrée'!$C$333-1)*'1 Données d''entrée'!$C$332,0),IF(C54<'1 Données d''entrée'!$C$334+1,'1 Données d''entrée'!$C$332*'6 Financement'!$B$73,IF(C74>0,$B$73*((('1 Données d''entrée'!$C$332+1)^'1 Données d''entrée'!$C$333)-(1+'1 Données d''entrée'!$C$332)^('6 Financement'!C$54-1-'1 Données d''entrée'!$C$334))/((1+'1 Données d''entrée'!$C$332)^'1 Données d''entrée'!$C$333-1)*'1 Données d''entrée'!$C$332,0)))","v":0},{"$f":"IF('1 Données d''entrée'!$C$336=\"(=NON)\",IF(D74>0,$B$73*((('1 Données d''entrée'!$C$332+1)^'1 Données d''entrée'!$C$333)-(1+'1 Données d''entrée'!$C$332)^('6 Financement'!D$54-1-'1 Données d''entrée'!$C$334))/((1+'1 Données d''entrée'!$C$332)^'1 Données d''entrée'!$C$333-1)*'1 Données d''entrée'!$C$332,0),IF(D54<'1 Données d''entrée'!$C$334+1,'1 Données d''entrée'!$C$332*'6 Financement'!$B$73,IF(D74>0,$B$73*((('1 Données d''entrée'!$C$332+1)^'1 Données d''entrée'!$C$333)-(1+'1 Données d''entrée'!$C$332)^('6 Financement'!D$54-1-'1 Données d''entrée'!$C$334))/((1+'1 Données d''entrée'!$C$332)^'1 Données d''entrée'!$C$333-1)*'1 Données d''entrée'!$C$332,0)))","v":0},{"$f":"IF('1 Données d''entrée'!$C$336=\"(=NON)\",IF(E74>0,$B$73*((('1 Données d''entrée'!$C$332+1)^'1 Données d''entrée'!$C$333)-(1+'1 Données d''entrée'!$C$332)^('6 Financement'!E$54-1-'1 Données d''entrée'!$C$334))/((1+'1 Données d''entrée'!$C$332)^'1 Données d''entrée'!$C$333-1)*'1 Données d''entrée'!$C$332,0),IF(E54<'1 Données d''entrée'!$C$334+1,'1 Données d''entrée'!$C$332*'6 Financement'!$B$73,IF(E74>0,$B$73*((('1 Données d''entrée'!$C$332+1)^'1 Données d''entrée'!$C$333)-(1+'1 Données d''entrée'!$C$332)^('6 Financement'!E$54-1-'1 Données d''entrée'!$C$334))/((1+'1 Données d''entrée'!$C$332)^'1 Données d''entrée'!$C$333-1)*'1 Données d''entrée'!$C$332,0)))","v":0},{"$f":"IF('1 Données d''entrée'!$C$336=\"(=NON)\",IF(F74>0,$B$73*((('1 Données d''entrée'!$C$332+1)^'1 Données d''entrée'!$C$333)-(1+'1 Données d''entrée'!$C$332)^('6 Financement'!F$54-1-'1 Données d''entrée'!$C$334))/((1+'1 Données d''entrée'!$C$332)^'1 Données d''entrée'!$C$333-1)*'1 Données d''entrée'!$C$332,0),IF(F54<'1 Données d''entrée'!$C$334+1,'1 Données d''entrée'!$C$332*'6 Financement'!$B$73,IF(F74>0,$B$73*((('1 Données d''entrée'!$C$332+1)^'1 Données d''entrée'!$C$333)-(1+'1 Données d''entrée'!$C$332)^('6 Financement'!F$54-1-'1 Données d''entrée'!$C$334))/((1+'1 Données d''entrée'!$C$332)^'1 Données d''entrée'!$C$333-1)*'1 Données d''entrée'!$C$332,0)))","v":0},{"$f":"IF('1 Données d''entrée'!$C$336=\"(=NON)\",IF(G74>0,$B$73*((('1 Données d''entrée'!$C$332+1)^'1 Données d''entrée'!$C$333)-(1+'1 Données d''entrée'!$C$332)^('6 Financement'!G$54-1-'1 Données d''entrée'!$C$334))/((1+'1 Données d''entrée'!$C$332)^'1 Données d''entrée'!$C$333-1)*'1 Données d''entrée'!$C$332,0),IF(G54<'1 Données d''entrée'!$C$334+1,'1 Données d''entrée'!$C$332*'6 Financement'!$B$73,IF(G74>0,$B$73*((('1 Données d''entrée'!$C$332+1)^'1 Données d''entrée'!$C$333)-(1+'1 Données d''entrée'!$C$332)^('6 Financement'!G$54-1-'1 Données d''entrée'!$C$334))/((1+'1 Données d''entrée'!$C$332)^'1 Données d''entrée'!$C$333-1)*'1 Données d''entrée'!$C$332,0)))","v":0},{"$f":"IF('1 Données d''entrée'!$C$336=\"(=NON)\",IF(H74>0,$B$73*((('1 Données d''entrée'!$C$332+1)^'1 Données d''entrée'!$C$333)-(1+'1 Données d''entrée'!$C$332)^('6 Financement'!H$54-1-'1 Données d''entrée'!$C$334))/((1+'1 Données d''entrée'!$C$332)^'1 Données d''entrée'!$C$333-1)*'1 Données d''entrée'!$C$332,0),IF(H54<'1 Données d''entrée'!$C$334+1,'1 Données d''entrée'!$C$332*'6 Financement'!$B$73,IF(H74>0,$B$73*((('1 Données d''entrée'!$C$332+1)^'1 Données d''entrée'!$C$333)-(1+'1 Données d''entrée'!$C$332)^('6 Financement'!H$54-1-'1 Données d''entrée'!$C$334))/((1+'1 Données d''entrée'!$C$332)^'1 Données d''entrée'!$C$333-1)*'1 Données d''entrée'!$C$332,0)))","v":0},{"$f":"IF('1 Données d''entrée'!$C$336=\"(=NON)\",IF(I74>0,$B$73*((('1 Données d''entrée'!$C$332+1)^'1 Données d''entrée'!$C$333)-(1+'1 Données d''entrée'!$C$332)^('6 Financement'!I$54-1-'1 Données d''entrée'!$C$334))/((1+'1 Données d''entrée'!$C$332)^'1 Données d''entrée'!$C$333-1)*'1 Données d''entrée'!$C$332,0),IF(I54<'1 Données d''entrée'!$C$334+1,'1 Données d''entrée'!$C$332*'6 Financement'!$B$73,IF(I74>0,$B$73*((('1 Données d''entrée'!$C$332+1)^'1 Données d''entrée'!$C$333)-(1+'1 Données d''entrée'!$C$332)^('6 Financement'!I$54-1-'1 Données d''entrée'!$C$334))/((1+'1 Données d''entrée'!$C$332)^'1 Données d''entrée'!$C$333-1)*'1 Données d''entrée'!$C$332,0)))","v":0},{"$f":"IF('1 Données d''entrée'!$C$336=\"(=NON)\",IF(J74>0,$B$73*((('1 Données d''entrée'!$C$332+1)^'1 Données d''entrée'!$C$333)-(1+'1 Données d''entrée'!$C$332)^('6 Financement'!J$54-1-'1 Données d''entrée'!$C$334))/((1+'1 Données d''entrée'!$C$332)^'1 Données d''entrée'!$C$333-1)*'1 Données d''entrée'!$C$332,0),IF(J54<'1 Données d''entrée'!$C$334+1,'1 Données d''entrée'!$C$332*'6 Financement'!$B$73,IF(J74>0,$B$73*((('1 Données d''entrée'!$C$332+1)^'1 Données d''entrée'!$C$333)-(1+'1 Données d''entrée'!$C$332)^('6 Financement'!J$54-1-'1 Données d''entrée'!$C$334))/((1+'1 Données d''entrée'!$C$332)^'1 Données d''entrée'!$C$333-1)*'1 Données d''entrée'!$C$332,0)))","v":0},{"$f":"IF('1 Données d''entrée'!$C$336=\"(=NON)\",IF(K74>0,$B$73*((('1 Données d''entrée'!$C$332+1)^'1 Données d''entrée'!$C$333)-(1+'1 Données d''entrée'!$C$332)^('6 Financement'!K$54-1-'1 Données d''entrée'!$C$334))/((1+'1 Données d''entrée'!$C$332)^'1 Données d''entrée'!$C$333-1)*'1 Données d''entrée'!$C$332,0),IF(K54<'1 Données d''entrée'!$C$334+1,'1 Données d''entrée'!$C$332*'6 Financement'!$B$73,IF(K74>0,$B$73*((('1 Données d''entrée'!$C$332+1)^'1 Données d''entrée'!$C$333)-(1+'1 Données d''entrée'!$C$332)^('6 Financement'!K$54-1-'1 Données d''entrée'!$C$334))/((1+'1 Données d''entrée'!$C$332)^'1 Données d''entrée'!$C$333-1)*'1 Données d''entrée'!$C$332,0)))","v":0},{"$f":"IF('1 Données d''entrée'!$C$336=\"(=NON)\",IF(L74>0,$B$73*((('1 Données d''entrée'!$C$332+1)^'1 Données d''entrée'!$C$333)-(1+'1 Données d''entrée'!$C$332)^('6 Financement'!L$54-1-'1 Données d''entrée'!$C$334))/((1+'1 Données d''entrée'!$C$332)^'1 Données d''entrée'!$C$333-1)*'1 Données d''entrée'!$C$332,0),IF(L54<'1 Données d''entrée'!$C$334+1,'1 Données d''entrée'!$C$332*'6 Financement'!$B$73,IF(L74>0,$B$73*((('1 Données d''entrée'!$C$332+1)^'1 Données d''entrée'!$C$333)-(1+'1 Données d''entrée'!$C$332)^('6 Financement'!L$54-1-'1 Données d''entrée'!$C$334))/((1+'1 Données d''entrée'!$C$332)^'1 Données d''entrée'!$C$333-1)*'1 Données d''entrée'!$C$332,0)))","v":0},{"$f":"IF('1 Données d''entrée'!$C$336=\"(=NON)\",IF(M74>0,$B$73*((('1 Données d''entrée'!$C$332+1)^'1 Données d''entrée'!$C$333)-(1+'1 Données d''entrée'!$C$332)^('6 Financement'!M$54-1-'1 Données d''entrée'!$C$334))/((1+'1 Données d''entrée'!$C$332)^'1 Données d''entrée'!$C$333-1)*'1 Données d''entrée'!$C$332,0),IF(M54<'1 Données d''entrée'!$C$334+1,'1 Données d''entrée'!$C$332*'6 Financement'!$B$73,IF(M74>0,$B$73*((('1 Données d''entrée'!$C$332+1)^'1 Données d''entrée'!$C$333)-(1+'1 Données d''entrée'!$C$332)^('6 Financement'!M$54-1-'1 Données d''entrée'!$C$334))/((1+'1 Données d''entrée'!$C$332)^'1 Données d''entrée'!$C$333-1)*'1 Données d''entrée'!$C$332,0)))","v":0},{"$f":"IF('1 Données d''entrée'!$C$336=\"(=NON)\",IF(N74>0,$B$73*((('1 Données d''entrée'!$C$332+1)^'1 Données d''entrée'!$C$333)-(1+'1 Données d''entrée'!$C$332)^('6 Financement'!N$54-1-'1 Données d''entrée'!$C$334))/((1+'1 Données d''entrée'!$C$332)^'1 Données d''entrée'!$C$333-1)*'1 Données d''entrée'!$C$332,0),IF(N54<'1 Données d''entrée'!$C$334+1,'1 Données d''entrée'!$C$332*'6 Financement'!$B$73,IF(N74>0,$B$73*((('1 Données d''entrée'!$C$332+1)^'1 Données d''entrée'!$C$333)-(1+'1 Données d''entrée'!$C$332)^('6 Financement'!N$54-1-'1 Données d''entrée'!$C$334))/((1+'1 Données d''entrée'!$C$332)^'1 Données d''entrée'!$C$333-1)*'1 Données d''entrée'!$C$332,0)))","v":0},{"$f":"IF('1 Données d''entrée'!$C$336=\"(=NON)\",IF(O74>0,$B$73*((('1 Données d''entrée'!$C$332+1)^'1 Données d''entrée'!$C$333)-(1+'1 Données d''entrée'!$C$332)^('6 Financement'!O$54-1-'1 Données d''entrée'!$C$334))/((1+'1 Données d''entrée'!$C$332)^'1 Données d''entrée'!$C$333-1)*'1 Données d''entrée'!$C$332,0),IF(O54<'1 Données d''entrée'!$C$334+1,'1 Données d''entrée'!$C$332*'6 Financement'!$B$73,IF(O74>0,$B$73*((('1 Données d''entrée'!$C$332+1)^'1 Données d''entrée'!$C$333)-(1+'1 Données d''entrée'!$C$332)^('6 Financement'!O$54-1-'1 Données d''entrée'!$C$334))/((1+'1 Données d''entrée'!$C$332)^'1 Données d''entrée'!$C$333-1)*'1 Données d''entrée'!$C$332,0)))","v":0},{"$f":"IF('1 Données d''entrée'!$C$336=\"(=NON)\",IF(P74>0,$B$73*((('1 Données d''entrée'!$C$332+1)^'1 Données d''entrée'!$C$333)-(1+'1 Données d''entrée'!$C$332)^('6 Financement'!P$54-1-'1 Données d''entrée'!$C$334))/((1+'1 Données d''entrée'!$C$332)^'1 Données d''entrée'!$C$333-1)*'1 Données d''entrée'!$C$332,0),IF(P54<'1 Données d''entrée'!$C$334+1,'1 Données d''entrée'!$C$332*'6 Financement'!$B$73,IF(P74>0,$B$73*((('1 Données d''entrée'!$C$332+1)^'1 Données d''entrée'!$C$333)-(1+'1 Données d''entrée'!$C$332)^('6 Financement'!P$54-1-'1 Données d''entrée'!$C$334))/((1+'1 Données d''entrée'!$C$332)^'1 Données d''entrée'!$C$333-1)*'1 Données d''entrée'!$C$332,0)))","v":0},{"$f":"IF('1 Données d''entrée'!$C$336=\"(=NON)\",IF(Q74>0,$B$73*((('1 Données d''entrée'!$C$332+1)^'1 Données d''entrée'!$C$333)-(1+'1 Données d''entrée'!$C$332)^('6 Financement'!Q$54-1-'1 Données d''entrée'!$C$334))/((1+'1 Données d''entrée'!$C$332)^'1 Données d''entrée'!$C$333-1)*'1 Données d''entrée'!$C$332,0),IF(Q54<'1 Données d''entrée'!$C$334+1,'1 Données d''entrée'!$C$332*'6 Financement'!$B$73,IF(Q74>0,$B$73*((('1 Données d''entrée'!$C$332+1)^'1 Données d''entrée'!$C$333)-(1+'1 Données d''entrée'!$C$332)^('6 Financement'!Q$54-1-'1 Données d''entrée'!$C$334))/((1+'1 Données d''entrée'!$C$332)^'1 Données d''entrée'!$C$333-1)*'1 Données d''entrée'!$C$332,0)))","v":0},{"$f":"IF('1 Données d''entrée'!$C$336=\"(=NON)\",IF(R74>0,$B$73*((('1 Données d''entrée'!$C$332+1)^'1 Données d''entrée'!$C$333)-(1+'1 Données d''entrée'!$C$332)^('6 Financement'!R$54-1-'1 Données d''entrée'!$C$334))/((1+'1 Données d''entrée'!$C$332)^'1 Données d''entrée'!$C$333-1)*'1 Données d''entrée'!$C$332,0),IF(R54<'1 Données d''entrée'!$C$334+1,'1 Données d''entrée'!$C$332*'6 Financement'!$B$73,IF(R74>0,$B$73*((('1 Données d''entrée'!$C$332+1)^'1 Données d''entrée'!$C$333)-(1+'1 Données d''entrée'!$C$332)^('6 Financement'!R$54-1-'1 Données d''entrée'!$C$334))/((1+'1 Données d''entrée'!$C$332)^'1 Données d''entrée'!$C$333-1)*'1 Données d''entrée'!$C$332,0)))","v":0},{"$f":"IF('1 Données d''entrée'!$C$336=\"(=NON)\",IF(S74>0,$B$73*((('1 Données d''entrée'!$C$332+1)^'1 Données d''entrée'!$C$333)-(1+'1 Données d''entrée'!$C$332)^('6 Financement'!S$54-1-'1 Données d''entrée'!$C$334))/((1+'1 Données d''entrée'!$C$332)^'1 Données d''entrée'!$C$333-1)*'1 Données d''entrée'!$C$332,0),IF(S54<'1 Données d''entrée'!$C$334+1,'1 Données d''entrée'!$C$332*'6 Financement'!$B$73,IF(S74>0,$B$73*((('1 Données d''entrée'!$C$332+1)^'1 Données d''entrée'!$C$333)-(1+'1 Données d''entrée'!$C$332)^('6 Financement'!S$54-1-'1 Données d''entrée'!$C$334))/((1+'1 Données d''entrée'!$C$332)^'1 Données d''entrée'!$C$333-1)*'1 Données d''entrée'!$C$332,0)))","v":0},{"$f":"IF('1 Données d''entrée'!$C$336=\"(=NON)\",IF(T74>0,$B$73*((('1 Données d''entrée'!$C$332+1)^'1 Données d''entrée'!$C$333)-(1+'1 Données d''entrée'!$C$332)^('6 Financement'!T$54-1-'1 Données d''entrée'!$C$334))/((1+'1 Données d''entrée'!$C$332)^'1 Données d''entrée'!$C$333-1)*'1 Données d''entrée'!$C$332,0),IF(T54<'1 Données d''entrée'!$C$334+1,'1 Données d''entrée'!$C$332*'6 Financement'!$B$73,IF(T74>0,$B$73*((('1 Données d''entrée'!$C$332+1)^'1 Données d''entrée'!$C$333)-(1+'1 Données d''entrée'!$C$332)^('6 Financement'!T$54-1-'1 Données d''entrée'!$C$334))/((1+'1 Données d''entrée'!$C$332)^'1 Données d''entrée'!$C$333-1)*'1 Données d''entrée'!$C$332,0)))","v":0},{"$f":"IF('1 Données d''entrée'!$C$336=\"(=NON)\",IF(U74>0,$B$73*((('1 Données d''entrée'!$C$332+1)^'1 Données d''entrée'!$C$333)-(1+'1 Données d''entrée'!$C$332)^('6 Financement'!U$54-1-'1 Données d''entrée'!$C$334))/((1+'1 Données d''entrée'!$C$332)^'1 Données d''entrée'!$C$333-1)*'1 Données d''entrée'!$C$332,0),IF(U54<'1 Données d''entrée'!$C$334+1,'1 Données d''entrée'!$C$332*'6 Financement'!$B$73,IF(U74>0,$B$73*((('1 Données d''entrée'!$C$332+1)^'1 Données d''entrée'!$C$333)-(1+'1 Données d''entrée'!$C$332)^('6 Financement'!U$54-1-'1 Données d''entrée'!$C$334))/((1+'1 Données d''entrée'!$C$332)^'1 Données d''entrée'!$C$333-1)*'1 Données d''entrée'!$C$332,0)))","v":0},{"$f":"IF('1 Données d''entrée'!$C$336=\"(=NON)\",IF(V74>0,$B$73*((('1 Données d''entrée'!$C$332+1)^'1 Données d''entrée'!$C$333)-(1+'1 Données d''entrée'!$C$332)^('6 Financement'!V$54-1-'1 Données d''entrée'!$C$334))/((1+'1 Données d''entrée'!$C$332)^'1 Données d''entrée'!$C$333-1)*'1 Données d''entrée'!$C$332,0),IF(V54<'1 Données d''entrée'!$C$334+1,'1 Données d''entrée'!$C$332*'6 Financement'!$B$73,IF(V74>0,$B$73*((('1 Données d''entrée'!$C$332+1)^'1 Données d''entrée'!$C$333)-(1+'1 Données d''entrée'!$C$332)^('6 Financement'!V$54-1-'1 Données d''entrée'!$C$334))/((1+'1 Données d''entrée'!$C$332)^'1 Données d''entrée'!$C$333-1)*'1 Données d''entrée'!$C$332,0)))","v":0}]
["Paiements d'intérêt avec des intérêts composés en cas d'absence des paiements dans la période de grâce",0,0,{"$f":"IF(D54='1 Données d''entrée'!$C$334+1,IF('1 Données d''entrée'!$C$336=\"(=NON)\",($B$73*'1 Données d''entrée'!$C$332)*((('1 Données d''entrée'!$C$332+1)^'1 Données d''entrée'!$C$334-1)/('1 Données d''entrée'!$C$332))*(1+'1 Données d''entrée'!$C$332),0),0)","v":0},{"$f":"IF(E54='1 Données d''entrée'!$C$334+1,IF('1 Données d''entrée'!$C$336=\"(=NON)\",($B$73*'1 Données d''entrée'!$C$332)*((('1 Données d''entrée'!$C$332+1)^'1 Données d''entrée'!$C$334-1)/('1 Données d''entrée'!$C$332))*(1+'1 Données d''entrée'!$C$332),0),0)","v":0},{"$f":"IF(F54='1 Données d''entrée'!$C$334+1,IF('1 Données d''entrée'!$C$336=\"(=NON)\",($B$73*'1 Données d''entrée'!$C$332)*((('1 Données d''entrée'!$C$332+1)^'1 Données d''entrée'!$C$334-1)/('1 Données d''entrée'!$C$332))*(1+'1 Données d''entrée'!$C$332),0),0)","v":0},{"$f":"IF(G54='1 Données d''entrée'!$C$334+1,IF('1 Données d''entrée'!$C$336=\"(=NON)\",($B$73*'1 Données d''entrée'!$C$332)*((('1 Données d''entrée'!$C$332+1)^'1 Données d''entrée'!$C$334-1)/('1 Données d''entrée'!$C$332))*(1+'1 Données d''entrée'!$C$332),0),0)","v":0},{"$f":"IF(H54='1 Données d''entrée'!$C$334+1,IF('1 Données d''entrée'!$C$336=\"(=NON)\",($B$73*'1 Données d''entrée'!$C$332)*((('1 Données d''entrée'!$C$332+1)^'1 Données d''entrée'!$C$334-1)/('1 Données d''entrée'!$C$332))*(1+'1 Données d''entrée'!$C$332),0),0)","v":0},{"$f":"IF(I54='1 Données d''entrée'!$C$334+1,IF('1 Données d''entrée'!$C$336=\"(=NON)\",($B$73*'1 Données d''entrée'!$C$332)*((('1 Données d''entrée'!$C$332+1)^'1 Données d''entrée'!$C$334-1)/('1 Données d''entrée'!$C$332))*(1+'1 Données d''entrée'!$C$332),0),0)","v":0},{"$f":"IF(J54='1 Données d''entrée'!$C$334+1,IF('1 Données d''entrée'!$C$336=\"(=NON)\",($B$73*'1 Données d''entrée'!$C$332)*((('1 Données d''entrée'!$C$332+1)^'1 Données d''entrée'!$C$334-1)/('1 Données d''entrée'!$C$332))*(1+'1 Données d''entrée'!$C$332),0),0)","v":0},{"$f":"IF(K54='1 Données d''entrée'!$C$334+1,IF('1 Données d''entrée'!$C$336=\"(=NON)\",($B$73*'1 Données d''entrée'!$C$332)*((('1 Données d''entrée'!$C$332+1)^'1 Données d''entrée'!$C$334-1)/('1 Données d''entrée'!$C$332))*(1+'1 Données d''entrée'!$C$332),0),0)","v":0},{"$f":"IF(L54='1 Données d''entrée'!$C$334+1,IF('1 Données d''entrée'!$C$336=\"(=NON)\",($B$73*'1 Données d''entrée'!$C$332)*((('1 Données d''entrée'!$C$332+1)^'1 Données d''entrée'!$C$334-1)/('1 Données d''entrée'!$C$332))*(1+'1 Données d''entrée'!$C$332),0),0)","v":0},{"$f":"IF(M54='1 Données d''entrée'!$C$334+1,IF('1 Données d''entrée'!$C$336=\"(=NON)\",($B$73*'1 Données d''entrée'!$C$332)*((('1 Données d''entrée'!$C$332+1)^'1 Données d''entrée'!$C$334-1)/('1 Données d''entrée'!$C$332))*(1+'1 Données d''entrée'!$C$332),0),0)","v":0},{"$f":"IF(N54='1 Données d''entrée'!$C$334+1,IF('1 Données d''entrée'!$C$336=\"(=NON)\",($B$73*'1 Données d''entrée'!$C$332)*((('1 Données d''entrée'!$C$332+1)^'1 Données d''entrée'!$C$334-1)/('1 Données d''entrée'!$C$332))*(1+'1 Données d''entrée'!$C$332),0),0)","v":0},{"$f":"IF(O54='1 Données d''entrée'!$C$334+1,IF('1 Données d''entrée'!$C$336=\"(=NON)\",($B$73*'1 Données d''entrée'!$C$332)*((('1 Données d''entrée'!$C$332+1)^'1 Données d''entrée'!$C$334-1)/('1 Données d''entrée'!$C$332))*(1+'1 Données d''entrée'!$C$332),0),0)","v":0},{"$f":"IF(P54='1 Données d''entrée'!$C$334+1,IF('1 Données d''entrée'!$C$336=\"(=NON)\",($B$73*'1 Données d''entrée'!$C$332)*((('1 Données d''entrée'!$C$332+1)^'1 Données d''entrée'!$C$334-1)/('1 Données d''entrée'!$C$332))*(1+'1 Données d''entrée'!$C$332),0),0)","v":0},{"$f":"IF(Q54='1 Données d''entrée'!$C$334+1,IF('1 Données d''entrée'!$C$336=\"(=NON)\",($B$73*'1 Données d''entrée'!$C$332)*((('1 Données d''entrée'!$C$332+1)^'1 Données d''entrée'!$C$334-1)/('1 Données d''entrée'!$C$332))*(1+'1 Données d''entrée'!$C$332),0),0)","v":0},{"$f":"IF(R54='1 Données d''entrée'!$C$334+1,IF('1 Données d''entrée'!$C$336=\"(=NON)\",($B$73*'1 Données d''entrée'!$C$332)*((('1 Données d''entrée'!$C$332+1)^'1 Données d''entrée'!$C$334-1)/('1 Données d''entrée'!$C$332))*(1+'1 Données d''entrée'!$C$332),0),0)","v":0},{"$f":"IF(S54='1 Données d''entrée'!$C$334+1,IF('1 Données d''entrée'!$C$336=\"(=NON)\",($B$73*'1 Données d''entrée'!$C$332)*((('1 Données d''entrée'!$C$332+1)^'1 Données d''entrée'!$C$334-1)/('1 Données d''entrée'!$C$332))*(1+'1 Données d''entrée'!$C$332),0),0)","v":0},{"$f":"IF(T54='1 Données d''entrée'!$C$334+1,IF('1 Données d''entrée'!$C$336=\"(=NON)\",($B$73*'1 Données d''entrée'!$C$332)*((('1 Données d''entrée'!$C$332+1)^'1 Données d''entrée'!$C$334-1)/('1 Données d''entrée'!$C$332))*(1+'1 Données d''entrée'!$C$332),0),0)","v":0},{"$f":"IF(U54='1 Données d''entrée'!$C$334+1,IF('1 Données d''entrée'!$C$336=\"(=NON)\",($B$73*'1 Données d''entrée'!$C$332)*((('1 Données d''entrée'!$C$332+1)^'1 Données d''entrée'!$C$334-1)/('1 Données d''entrée'!$C$332))*(1+'1 Données d''entrée'!$C$332),0),0)","v":0},{"$f":"IF(V54='1 Données d''entrée'!$C$334+1,IF('1 Données d''entrée'!$C$336=\"(=NON)\",($B$73*'1 Données d''entrée'!$C$332)*((('1 Données d''entrée'!$C$332+1)^'1 Données d''entrée'!$C$334-1)/('1 Données d''entrée'!$C$332))*(1+'1 Données d''entrée'!$C$332),0),0)","v":0}]
[]
["Fonds d'autres donneurs / investisseurs - Subvention",{"$f":"'1 Données d''entrée'!$B$307","v":0}]
["Fonds d'autre donneurs / investisseurs - Prêt; Option 1: Remboursement du principal fractionné",{"$f":"'1 Données d''entrée'!$B$319","v":0},"% de prêt total"]
["Réception et montant restant",{"$f":"'1 Données d''entrée'!$B$306*'1 Données d''entrée'!$B$319+'1 Données d''entrée'!$B$306*'1 Données d''entrée'!$C$316","v":0},{"$f":"B80-C81","v":0},{"$f":"C80-D81","v":0},0,0,0,0,0,0,0,0,0,0,0,0,0,0,0,0,0,0]
["Remboursement du principal",0,{"$f":"IF(C54<'1 Données d''entrée'!$C$312+1,0,IF(C54<'1 Données d''entrée'!$C$312+'1 Données d''entrée'!$C$311+1,('6 Financement'!$B$80/'1 Données d''entrée'!$C$311),0))","v":0},{"$f":"IF(D54<'1 Données d''entrée'!$C$312+1,0,IF(D54<'1 Données d''entrée'!$C$312+'1 Données d''entrée'!$C$311+1,('6 Financement'!$B$80/'1 Données d''entrée'!$C$311),0))","v":0},{"$f":"IF(E54<'1 Données d''entrée'!$C$312+1,0,IF(E54<'1 Données d''entrée'!$C$312+'1 Données d''entrée'!$C$311+1,('6 Financement'!$B$80/'1 Données d''entrée'!$C$311),0))","v":0},{"$f":"IF(F54<'1 Données d''entrée'!$C$312+1,0,IF(F54<'1 Données d''entrée'!$C$312+'1 Données d''entrée'!$C$311+1,('6 Financement'!$B$80/'1 Données d''entrée'!$C$311),0))","v":0},{"$f":"IF(G54<'1 Données d''entrée'!$C$312+1,0,IF(G54<'1 Données d''entrée'!$C$312+'1 Données d''entrée'!$C$311+1,('6 Financement'!$B$80/'1 Données d''entrée'!$C$311),0))","v":0},{"$f":"IF(H54<'1 Données d''entrée'!$C$312+1,0,IF(H54<'1 Données d''entrée'!$C$312+'1 Données d''entrée'!$C$311+1,('6 Financement'!$B$80/'1 Données d''entrée'!$C$311),0))","v":0},{"$f":"IF(I54<'1 Données d''entrée'!$C$312+1,0,IF(I54<'1 Données d''entrée'!$C$312+'1 Données d''entrée'!$C$311+1,('6 Financement'!$B$80/'1 Données d''entrée'!$C$311),0))","v":0},{"$f":"IF(J54<'1 Données d''entrée'!$C$312+1,0,IF(J54<'1 Données d''entrée'!$C$312+'1 Données d''entrée'!$C$311+1,('6 Financement'!$B$80/'1 Données d''entrée'!$C$311),0))","v":0},{"$f":"IF(K54<'1 Données d''entrée'!$C$312+1,0,IF(K54<'1 Données d''entrée'!$C$312+'1 Données d''entrée'!$C$311+1,('6 Financement'!$B$80/'1 Données d''entrée'!$C$311),0))","v":0},{"$f":"IF(L54<'1 Données d''entrée'!$C$312+1,0,IF(L54<'1 Données d''entrée'!$C$312+'1 Données d''entrée'!$C$311+1,('6 Financement'!$B$80/'1 Données d''entrée'!$C$311),0))","v":0},{"$f":"IF(M54<'1 Données d''entrée'!$C$312+1,0,IF(M54<'1 Données d''entrée'!$C$312+'1 Données d''entrée'!$C$311+1,('6 Financement'!$B$80/'1 Données d''entrée'!$C$311),0))","v":0},{"$f":"IF(N54<'1 Données d''entrée'!$C$312+1,0,IF(N54<'1 Données d''entrée'!$C$312+'1 Données d''entrée'!$C$311+1,('6 Financement'!$B$80/'1 Données d''entrée'!$C$311),0))","v":0},{"$f":"IF(O54<'1 Données d''entrée'!$C$312+1,0,IF(O54<'1 Données d''entrée'!$C$312+'1 Données d''entrée'!$C$311+1,('6 Financement'!$B$80/'1 Données d''entrée'!$C$311),0))","v":0},{"$f":"IF(P54<'1 Données d''entrée'!$C$312+1,0,IF(P54<'1 Données d''entrée'!$C$312+'1 Données d''entrée'!$C$311+1,('6 Financement'!$B$80/'1 Données d''entrée'!$C$311),0))","v":0},{"$f":"IF(Q54<'1 Données d''entrée'!$C$312+1,0,IF(Q54<'1 Données d''entrée'!$C$312+'1 Données d''entrée'!$C$311+1,('6 Financement'!$B$80/'1 Données d''entrée'!$C$311),0))","v":0},{"$f":"IF(R54<'1 Données d''entrée'!$C$312+1,0,IF(R54<'1 Données d''entrée'!$C$312+'1 Données d''entrée'!$C$311+1,('6 Financement'!$B$80/'1 Données d''entrée'!$C$311),0))","v":0},{"$f":"IF(S54<'1 Données d''entrée'!$C$312+1,0,IF(S54<'1 Données d''entrée'!$C$312+'1 Données d''entrée'!$C$311+1,('6 Financement'!$B$80/'1 Données d''entrée'!$C$311),0))","v":0},{"$f":"IF(T54<'1 Données d''entrée'!$C$312+1,0,IF(T54<'1 Données d''entrée'!$C$312+'1 Données d''entrée'!$C$311+1,('6 Financement'!$B$80/'1 Données d''entrée'!$C$311),0))","v":0},{"$f":"IF(U54<'1 Données d''entrée'!$C$312+1,0,IF(U54<'1 Données d''entrée'!$C$312+'1 Données d''entrée'!$C$311+1,('6 Financement'!$B$80/'1 Données d''entrée'!$C$311),0))","v":0},{"$f":"IF(V54<'1 Données d''entrée'!$C$312+1,0,IF(V54<'1 Données d''entrée'!$C$312+'1 Données d''entrée'!$C$311+1,('6 Financement'!$B$80/'1 Données d''entrée'!$C$311),0))","v":0}]
["Paiement d'intérêts",0,{"$f":"IF('1 Données d''entrée'!$C$314=\"(=NON)\",IF(C54<'1 Données d''entrée'!$C$312+1,0,B80*'1 Données d''entrée'!$C$310),B80*'1 Données d''entrée'!$C$310)","v":0},{"$f":"IF('1 Données d''entrée'!$C$314=\"(=NON)\",IF(D54<'1 Données d''entrée'!$C$312+1,0,C80*'1 Données d''entrée'!$C$310),C80*'1 Données d''entrée'!$C$310)","v":0},{"$f":"IF('1 Données d''entrée'!$C$314=\"(=NON)\",IF(E54<'1 Données d''entrée'!$C$312+1,0,D80*'1 Données d''entrée'!$C$310),D80*'1 Données d''entrée'!$C$310)","v":0},{"$f":"IF('1 Données d''entrée'!$C$314=\"(=NON)\",IF(F54<'1 Données d''entrée'!$C$312+1,0,E80*'1 Données d''entrée'!$C$310),E80*'1 Données d''entrée'!$C$310)","v":0},{"$f":"IF('1 Données d''entrée'!$C$314=\"(=NON)\",IF(G54<'1 Données d''entrée'!$C$312+1,0,F80*'1 Données d''entrée'!$C$310),F80*'1 Données d''entrée'!$C$310)","v":0},{"$f":"IF('1 Données d''entrée'!$C$314=\"(=NON)\",IF(H54<'1 Données d''entrée'!$C$312+1,0,G80*'1 Données d''entrée'!$C$310),G80*'1 Données d''entrée'!$C$310)","v":0},{"$f":"IF('1 Données d''entrée'!$C$314=\"(=NON)\",IF(I54<'1 Données d''entrée'!$C$312+1,0,H80*'1 Données d''entrée'!$C$310),H80*'1 Données d''entrée'!$C$310)","v":0},{"$f":"IF('1 Données d''entrée'!$C$314=\"(=NON)\",IF(J54<'1 Données d''entrée'!$C$312+1,0,I80*'1 Données d''entrée'!$C$310),I80*'1 Données d''entrée'!$C$310)","v":0},{"$f":"IF('1 Données d''entrée'!$C$314=\"(=NON)\",IF(K54<'1 Données d''entrée'!$C$312+1,0,J80*'1 Données d''entrée'!$C$310),J80*'1 Données d''entrée'!$C$310)","v":0},{"$f":"IF('1 Données d''entrée'!$C$314=\"(=NON)\",IF(L54<'1 Données d''entrée'!$C$312+1,0,K80*'1 Données d''entrée'!$C$310),K80*'1 Données d''entrée'!$C$310)","v":0},{"$f":"IF('1 Données d''entrée'!$C$314=\"(=NON)\",IF(M54<'1 Données d''entrée'!$C$312+1,0,L80*'1 Données d''entrée'!$C$310),L80*'1 Données d''entrée'!$C$310)","v":0},{"$f":"IF('1 Données d''entrée'!$C$314=\"(=NON)\",IF(N54<'1 Données d''entrée'!$C$312+1,0,M80*'1 Données d''entrée'!$C$310),M80*'1 Données d''entrée'!$C$310)","v":0},{"$f":"IF('1 Données d''entrée'!$C$314=\"(=NON)\",IF(O54<'1 Données d''entrée'!$C$312+1,0,N80*'1 Données d''entrée'!$C$310),N80*'1 Données d''entrée'!$C$310)","v":0},{"$f":"IF('1 Données d''entrée'!$C$314=\"(=NON)\",IF(P54<'1 Données d''entrée'!$C$312+1,0,O80*'1 Données d''entrée'!$C$310),O80*'1 Données d''entrée'!$C$310)","v":0},{"$f":"IF('1 Données d''entrée'!$C$314=\"(=NON)\",IF(Q54<'1 Données d''entrée'!$C$312+1,0,P80*'1 Données d''entrée'!$C$310),P80*'1 Données d''entrée'!$C$310)","v":0},{"$f":"IF('1 Données d''entrée'!$C$314=\"(=NON)\",IF(R54<'1 Données d''entrée'!$C$312+1,0,Q80*'1 Données d''entrée'!$C$310),Q80*'1 Données d''entrée'!$C$310)","v":0},{"$f":"IF('1 Données d''entrée'!$C$314=\"(=NON)\",IF(S54<'1 Données d''entrée'!$C$312+1,0,R80*'1 Données d''entrée'!$C$310),R80*'1 Données d''entrée'!$C$310)","v":0},{"$f":"IF('1 Données d''entrée'!$C$314=\"(=NON)\",IF(T54<'1 Données d''entrée'!$C$312+1,0,S80*'1 Données d''entrée'!$C$310),S80*'1 Données d''entrée'!$C$310)","v":0},{"$f":"IF('1 Données d''entrée'!$C$314=\"(=NON)\",IF(U54<'1 Données d''entrée'!$C$312+1,0,T80*'1 Données d''entrée'!$C$310),T80*'1 Données d''entrée'!$C$310)","v":0},{"$f":"IF('1 Données d''entrée'!$C$314=\"(=NON)\",IF(V54<'1 Données d''entrée'!$C$312+1,0,U80*'1 Données d''entrée'!$C$310),U80*'1 Données d''entrée'!$C$310)","v":0}]
["Paiements d'intérêt avec des intérêts composés en cas d'absence des paiements dans la période de grâce",0,0,{"$f":"IF(D54='1 Données d''entrée'!$C$312+1,IF('1 Données d''entrée'!$C$314=\"(=NON)\",($B$80*'1 Données d''entrée'!$C$310)*((('1 Données d''entrée'!$C$310+1)^'1 Données d''entrée'!$C$312-1)/('1 Données d''entrée'!$C$310))*(1+'1 Données d''entrée'!$C$310),0),0)","v":0},{"$f":"IF(E54='1 Données d''entrée'!$C$312+1,IF('1 Données d''entrée'!$C$314=\"(=NON)\",($B$80*'1 Données d''entrée'!$C$310)*((('1 Données d''entrée'!$C$310+1)^'1 Données d''entrée'!$C$312-1)/('1 Données d''entrée'!$C$310))*(1+'1 Données d''entrée'!$C$310),0),0)","v":0},{"$f":"IF(F54='1 Données d''entrée'!$C$312+1,IF('1 Données d''entrée'!$C$314=\"(=NON)\",($B$80*'1 Données d''entrée'!$C$310)*((('1 Données d''entrée'!$C$310+1)^'1 Données d''entrée'!$C$312-1)/('1 Données d''entrée'!$C$310))*(1+'1 Données d''entrée'!$C$310),0),0)","v":0},{"$f":"IF(G54='1 Données d''entrée'!$C$312+1,IF('1 Données d''entrée'!$C$314=\"(=NON)\",($B$80*'1 Données d''entrée'!$C$310)*((('1 Données d''entrée'!$C$310+1)^'1 Données d''entrée'!$C$312-1)/('1 Données d''entrée'!$C$310))*(1+'1 Données d''entrée'!$C$310),0),0)","v":0},{"$f":"IF(H54='1 Données d''entrée'!$C$312+1,IF('1 Données d''entrée'!$C$314=\"(=NON)\",($B$80*'1 Données d''entrée'!$C$310)*((('1 Données d''entrée'!$C$310+1)^'1 Données d''entrée'!$C$312-1)/('1 Données d''entrée'!$C$310))*(1+'1 Données d''entrée'!$C$310),0),0)","v":0},{"$f":"IF(I54='1 Données d''entrée'!$C$312+1,IF('1 Données d''entrée'!$C$314=\"(=NON)\",($B$80*'1 Données d''entrée'!$C$310)*((('1 Données d''entrée'!$C$310+1)^'1 Données d''entrée'!$C$312-1)/('1 Données d''entrée'!$C$310))*(1+'1 Données d''entrée'!$C$310),0),0)","v":0},{"$f":"IF(J54='1 Données d''entrée'!$C$312+1,IF('1 Données d''entrée'!$C$314=\"(=NON)\",($B$80*'1 Données d''entrée'!$C$310)*((('1 Données d''entrée'!$C$310+1)^'1 Données d''entrée'!$C$312-1)/('1 Données d''entrée'!$C$310))*(1+'1 Données d''entrée'!$C$310),0),0)","v":0},{"$f":"IF(K54='1 Données d''entrée'!$C$312+1,IF('1 Données d''entrée'!$C$314=\"(=NON)\",($B$80*'1 Données d''entrée'!$C$310)*((('1 Données d''entrée'!$C$310+1)^'1 Données d''entrée'!$C$312-1)/('1 Données d''entrée'!$C$310))*(1+'1 Données d''entrée'!$C$310),0),0)","v":0},{"$f":"IF(L54='1 Données d''entrée'!$C$312+1,IF('1 Données d''entrée'!$C$314=\"(=NON)\",($B$80*'1 Données d''entrée'!$C$310)*((('1 Données d''entrée'!$C$310+1)^'1 Données d''entrée'!$C$312-1)/('1 Données d''entrée'!$C$310))*(1+'1 Données d''entrée'!$C$310),0),0)","v":0},{"$f":"IF(M54='1 Données d''entrée'!$C$312+1,IF('1 Données d''entrée'!$C$314=\"(=NON)\",($B$80*'1 Données d''entrée'!$C$310)*((('1 Données d''entrée'!$C$310+1)^'1 Données d''entrée'!$C$312-1)/('1 Données d''entrée'!$C$310))*(1+'1 Données d''entrée'!$C$310),0),0)","v":0},{"$f":"IF(N54='1 Données d''entrée'!$C$312+1,IF('1 Données d''entrée'!$C$314=\"(=NON)\",($B$80*'1 Données d''entrée'!$C$310)*((('1 Données d''entrée'!$C$310+1)^'1 Données d''entrée'!$C$312-1)/('1 Données d''entrée'!$C$310))*(1+'1 Données d''entrée'!$C$310),0),0)","v":0},{"$f":"IF(O54='1 Données d''entrée'!$C$312+1,IF('1 Données d''entrée'!$C$314=\"(=NON)\",($B$80*'1 Données d''entrée'!$C$310)*((('1 Données d''entrée'!$C$310+1)^'1 Données d''entrée'!$C$312-1)/('1 Données d''entrée'!$C$310))*(1+'1 Données d''entrée'!$C$310),0),0)","v":0},{"$f":"IF(P54='1 Données d''entrée'!$C$312+1,IF('1 Données d''entrée'!$C$314=\"(=NON)\",($B$80*'1 Données d''entrée'!$C$310)*((('1 Données d''entrée'!$C$310+1)^'1 Données d''entrée'!$C$312-1)/('1 Données d''entrée'!$C$310))*(1+'1 Données d''entrée'!$C$310),0),0)","v":0},{"$f":"IF(Q54='1 Données d''entrée'!$C$312+1,IF('1 Données d''entrée'!$C$314=\"(=NON)\",($B$80*'1 Données d''entrée'!$C$310)*((('1 Données d''entrée'!$C$310+1)^'1 Données d''entrée'!$C$312-1)/('1 Données d''entrée'!$C$310))*(1+'1 Données d''entrée'!$C$310),0),0)","v":0},{"$f":"IF(R54='1 Données d''entrée'!$C$312+1,IF('1 Données d''entrée'!$C$314=\"(=NON)\",($B$80*'1 Données d''entrée'!$C$310)*((('1 Données d''entrée'!$C$310+1)^'1 Données d''entrée'!$C$312-1)/('1 Données d''entrée'!$C$310))*(1+'1 Données d''entrée'!$C$310),0),0)","v":0},{"$f":"IF(S54='1 Données d''entrée'!$C$312+1,IF('1 Données d''entrée'!$C$314=\"(=NON)\",($B$80*'1 Données d''entrée'!$C$310)*((('1 Données d''entrée'!$C$310+1)^'1 Données d''entrée'!$C$312-1)/('1 Données d''entrée'!$C$310))*(1+'1 Données d''entrée'!$C$310),0),0)","v":0},{"$f":"IF(T54='1 Données d''entrée'!$C$312+1,IF('1 Données d''entrée'!$C$314=\"(=NON)\",($B$80*'1 Données d''entrée'!$C$310)*((('1 Données d''entrée'!$C$310+1)^'1 Données d''entrée'!$C$312-1)/('1 Données d''entrée'!$C$310))*(1+'1 Données d''entrée'!$C$310),0),0)","v":0},{"$f":"IF(U54='1 Données d''entrée'!$C$312+1,IF('1 Données d''entrée'!$C$314=\"(=NON)\",($B$80*'1 Données d''entrée'!$C$310)*((('1 Données d''entrée'!$C$310+1)^'1 Données d''entrée'!$C$312-1)/('1 Données d''entrée'!$C$310))*(1+'1 Données d''entrée'!$C$310),0),0)","v":0},{"$f":"IF(V54='1 Données d''entrée'!$C$312+1,IF('1 Données d''entrée'!$C$314=\"(=NON)\",($B$80*'1 Données d''entrée'!$C$310)*((('1 Données d''entrée'!$C$310+1)^'1 Données d''entrée'!$C$312-1)/('1 Données d''entrée'!$C$310))*(1+'1 Données d''entrée'!$C$310),0),0)","v":0}]
["Fonds d'autre donneurs / investisseurs - Prêt; Option 2: Remboursement du principal final",{"$f":"'1 Données d''entrée'!$B$320","v":0},"% de prêt total"]
["Réception et montant restant",{"$f":"'1 Données d''entrée'!$B$306*'1 Données d''entrée'!$B$320+'1 Données d''entrée'!$B$306*'1 Données d''entrée'!$C$316","v":0},{"$f":"B85-C86","v":0},{"$f":"C85-D86","v":0},0,0,0,0,0,0,0,0,0,0,0,0,0,0,0,0,0,0]
["Remboursement du principal",0,{"$f":"IF('1 Données d''entrée'!$C$311+'1 Données d''entrée'!$C$312=C54,'6 Financement'!$B$85,0)","v":0},{"$f":"IF('1 Données d''entrée'!$C$311+'1 Données d''entrée'!$C$312=D54,'6 Financement'!$B$85,0)","v":0},{"$f":"IF('1 Données d''entrée'!$C$311+'1 Données d''entrée'!$C$312=E54,'6 Financement'!$B$85,0)","v":0},{"$f":"IF('1 Données d''entrée'!$C$311+'1 Données d''entrée'!$C$312=F54,'6 Financement'!$B$85,0)","v":0},{"$f":"IF('1 Données d''entrée'!$C$311+'1 Données d''entrée'!$C$312=G54,'6 Financement'!$B$85,0)","v":0},{"$f":"IF('1 Données d''entrée'!$C$311+'1 Données d''entrée'!$C$312=H54,'6 Financement'!$B$85,0)","v":0},{"$f":"IF('1 Données d''entrée'!$C$311+'1 Données d''entrée'!$C$312=I54,'6 Financement'!$B$85,0)","v":0},{"$f":"IF('1 Données d''entrée'!$C$311+'1 Données d''entrée'!$C$312=J54,'6 Financement'!$B$85,0)","v":0},{"$f":"IF('1 Données d''entrée'!$C$311+'1 Données d''entrée'!$C$312=K54,'6 Financement'!$B$85,0)","v":0},{"$f":"IF('1 Données d''entrée'!$C$311+'1 Données d''entrée'!$C$312=L54,'6 Financement'!$B$85,0)","v":0},{"$f":"IF('1 Données d''entrée'!$C$311+'1 Données d''entrée'!$C$312=M54,'6 Financement'!$B$85,0)","v":0},{"$f":"IF('1 Données d''entrée'!$C$311+'1 Données d''entrée'!$C$312=N54,'6 Financement'!$B$85,0)","v":0},{"$f":"IF('1 Données d''entrée'!$C$311+'1 Données d''entrée'!$C$312=O54,'6 Financement'!$B$85,0)","v":0},{"$f":"IF('1 Données d''entrée'!$C$311+'1 Données d''entrée'!$C$312=P54,'6 Financement'!$B$85,0)","v":0},{"$f":"IF('1 Données d''entrée'!$C$311+'1 Données d''entrée'!$C$312=Q54,'6 Financement'!$B$85,0)","v":0},{"$f":"IF('1 Données d''entrée'!$C$311+'1 Données d''entrée'!$C$312=R54,'6 Financement'!$B$85,0)","v":0},{"$f":"IF('1 Données d''entrée'!$C$311+'1 Données d''entrée'!$C$312=S54,'6 Financement'!$B$85,0)","v":0},{"$f":"IF('1 Données d''entrée'!$C$311+'1 Données d''entrée'!$C$312=T54,'6 Financement'!$B$85,0)","v":0},{"$f":"IF('1 Données d''entrée'!$C$311+'1 Données d''entrée'!$C$312=U54,'6 Financement'!$B$85,0)","v":0},{"$f":"IF('1 Données d''entrée'!$C$311+'1 Données d''entrée'!$C$312=V54,'6 Financement'!$B$85,0)","v":0}]
["Paiement d'intérêts",0,{"$f":"IF('1 Données d''entrée'!$C$314=\"(=NON)\",IF(C54<'1 Données d''entrée'!$C$312+1,0,B85*'1 Données d''entrée'!$C$310),B85*'1 Données d''entrée'!$C$310)","v":0},{"$f":"IF('1 Données d''entrée'!$C$314=\"(=NON)\",IF(D54<'1 Données d''entrée'!$C$312+1,0,C85*'1 Données d''entrée'!$C$310),C85*'1 Données d''entrée'!$C$310)","v":0},{"$f":"IF('1 Données d''entrée'!$C$314=\"(=NON)\",IF(E54<'1 Données d''entrée'!$C$312+1,0,D85*'1 Données d''entrée'!$C$310),D85*'1 Données d''entrée'!$C$310)","v":0},{"$f":"IF('1 Données d''entrée'!$C$314=\"(=NON)\",IF(F54<'1 Données d''entrée'!$C$312+1,0,E85*'1 Données d''entrée'!$C$310),E85*'1 Données d''entrée'!$C$310)","v":0},{"$f":"IF('1 Données d''entrée'!$C$314=\"(=NON)\",IF(G54<'1 Données d''entrée'!$C$312+1,0,F85*'1 Données d''entrée'!$C$310),F85*'1 Données d''entrée'!$C$310)","v":0},{"$f":"IF('1 Données d''entrée'!$C$314=\"(=NON)\",IF(H54<'1 Données d''entrée'!$C$312+1,0,G85*'1 Données d''entrée'!$C$310),G85*'1 Données d''entrée'!$C$310)","v":0},{"$f":"IF('1 Données d''entrée'!$C$314=\"(=NON)\",IF(I54<'1 Données d''entrée'!$C$312+1,0,H85*'1 Données d''entrée'!$C$310),H85*'1 Données d''entrée'!$C$310)","v":0},{"$f":"IF('1 Données d''entrée'!$C$314=\"(=NON)\",IF(J54<'1 Données d''entrée'!$C$312+1,0,I85*'1 Données d''entrée'!$C$310),I85*'1 Données d''entrée'!$C$310)","v":0},{"$f":"IF('1 Données d''entrée'!$C$314=\"(=NON)\",IF(K54<'1 Données d''entrée'!$C$312+1,0,J85*'1 Données d''entrée'!$C$310),J85*'1 Données d''entrée'!$C$310)","v":0},{"$f":"IF('1 Données d''entrée'!$C$314=\"(=NON)\",IF(L54<'1 Données d''entrée'!$C$312+1,0,K85*'1 Données d''entrée'!$C$310),K85*'1 Données d''entrée'!$C$310)","v":0},{"$f":"IF('1 Données d''entrée'!$C$314=\"(=NON)\",IF(M54<'1 Données d''entrée'!$C$312+1,0,L85*'1 Données d''entrée'!$C$310),L85*'1 Données d''entrée'!$C$310)","v":0},{"$f":"IF('1 Données d''entrée'!$C$314=\"(=NON)\",IF(N54<'1 Données d''entrée'!$C$312+1,0,M85*'1 Données d''entrée'!$C$310),M85*'1 Données d''entrée'!$C$310)","v":0},{"$f":"IF('1 Données d''entrée'!$C$314=\"(=NON)\",IF(O54<'1 Données d''entrée'!$C$312+1,0,N85*'1 Données d''entrée'!$C$310),N85*'1 Données d''entrée'!$C$310)","v":0},{"$f":"IF('1 Données d''entrée'!$C$314=\"(=NON)\",IF(P54<'1 Données d''entrée'!$C$312+1,0,O85*'1 Données d''entrée'!$C$310),O85*'1 Données d''entrée'!$C$310)","v":0},{"$f":"IF('1 Données d''entrée'!$C$314=\"(=NON)\",IF(Q54<'1 Données d''entrée'!$C$312+1,0,P85*'1 Données d''entrée'!$C$310),P85*'1 Données d''entrée'!$C$310)","v":0},{"$f":"IF('1 Données d''entrée'!$C$314=\"(=NON)\",IF(R54<'1 Données d''entrée'!$C$312+1,0,Q85*'1 Données d''entrée'!$C$310),Q85*'1 Données d''entrée'!$C$310)","v":0},{"$f":"IF('1 Données d''entrée'!$C$314=\"(=NON)\",IF(S54<'1 Données d''entrée'!$C$312+1,0,R85*'1 Données d''entrée'!$C$310),R85*'1 Données d''entrée'!$C$310)","v":0},{"$f":"IF('1 Données d''entrée'!$C$314=\"(=NON)\",IF(T54<'1 Données d''entrée'!$C$312+1,0,S85*'1 Données d''entrée'!$C$310),S85*'1 Données d''entrée'!$C$310)","v":0},{"$f":"IF('1 Données d''entrée'!$C$314=\"(=NON)\",IF(U54<'1 Données d''entrée'!$C$312+1,0,T85*'1 Données d''entrée'!$C$310),T85*'1 Données d''entrée'!$C$310)","v":0},{"$f":"IF('1 Données d''entrée'!$C$314=\"(=NON)\",IF(V54<'1 Données d''entrée'!$C$312+1,0,U85*'1 Données d''entrée'!$C$310),U85*'1 Données d''entrée'!$C$310)","v":0}]
["Paiements d'intérêt avec des intérêts composés en cas d'absence des paiements dans la période de grâce",0,0,{"$f":"IF(D54='1 Données d''entrée'!$C$312+1,IF('1 Données d''entrée'!$C$314=\"(=NON)\",($B$85*'1 Données d''entrée'!$C$310)*((('1 Données d''entrée'!$C$310+1)^'1 Données d''entrée'!$C$312-1)/('1 Données d''entrée'!$C$310))*(1+'1 Données d''entrée'!$C$310),0),0)","v":0},{"$f":"IF(E54='1 Données d''entrée'!$C$312+1,IF('1 Données d''entrée'!$C$314=\"(=NON)\",($B$85*'1 Données d''entrée'!$C$310)*((('1 Données d''entrée'!$C$310+1)^'1 Données d''entrée'!$C$312-1)/('1 Données d''entrée'!$C$310))*(1+'1 Données d''entrée'!$C$310),0),0)","v":0},{"$f":"IF(F54='1 Données d''entrée'!$C$312+1,IF('1 Données d''entrée'!$C$314=\"(=NON)\",($B$85*'1 Données d''entrée'!$C$310)*((('1 Données d''entrée'!$C$310+1)^'1 Données d''entrée'!$C$312-1)/('1 Données d''entrée'!$C$310))*(1+'1 Données d''entrée'!$C$310),0),0)","v":0},{"$f":"IF(G54='1 Données d''entrée'!$C$312+1,IF('1 Données d''entrée'!$C$314=\"(=NON)\",($B$85*'1 Données d''entrée'!$C$310)*((('1 Données d''entrée'!$C$310+1)^'1 Données d''entrée'!$C$312-1)/('1 Données d''entrée'!$C$310))*(1+'1 Données d''entrée'!$C$310),0),0)","v":0},{"$f":"IF(H54='1 Données d''entrée'!$C$312+1,IF('1 Données d''entrée'!$C$314=\"(=NON)\",($B$85*'1 Données d''entrée'!$C$310)*((('1 Données d''entrée'!$C$310+1)^'1 Données d''entrée'!$C$312-1)/('1 Données d''entrée'!$C$310))*(1+'1 Données d''entrée'!$C$310),0),0)","v":0},{"$f":"IF(I54='1 Données d''entrée'!$C$312+1,IF('1 Données d''entrée'!$C$314=\"(=NON)\",($B$85*'1 Données d''entrée'!$C$310)*((('1 Données d''entrée'!$C$310+1)^'1 Données d''entrée'!$C$312-1)/('1 Données d''entrée'!$C$310))*(1+'1 Données d''entrée'!$C$310),0),0)","v":0},{"$f":"IF(J54='1 Données d''entrée'!$C$312+1,IF('1 Données d''entrée'!$C$314=\"(=NON)\",($B$85*'1 Données d''entrée'!$C$310)*((('1 Données d''entrée'!$C$310+1)^'1 Données d''entrée'!$C$312-1)/('1 Données d''entrée'!$C$310))*(1+'1 Données d''entrée'!$C$310),0),0)","v":0},{"$f":"IF(K54='1 Données d''entrée'!$C$312+1,IF('1 Données d''entrée'!$C$314=\"(=NON)\",($B$85*'1 Données d''entrée'!$C$310)*((('1 Données d''entrée'!$C$310+1)^'1 Données d''entrée'!$C$312-1)/('1 Données d''entrée'!$C$310))*(1+'1 Données d''entrée'!$C$310),0),0)","v":0},{"$f":"IF(L54='1 Données d''entrée'!$C$312+1,IF('1 Données d''entrée'!$C$314=\"(=NON)\",($B$85*'1 Données d''entrée'!$C$310)*((('1 Données d''entrée'!$C$310+1)^'1 Données d''entrée'!$C$312-1)/('1 Données d''entrée'!$C$310))*(1+'1 Données d''entrée'!$C$310),0),0)","v":0},{"$f":"IF(M54='1 Données d''entrée'!$C$312+1,IF('1 Données d''entrée'!$C$314=\"(=NON)\",($B$85*'1 Données d''entrée'!$C$310)*((('1 Données d''entrée'!$C$310+1)^'1 Données d''entrée'!$C$312-1)/('1 Données d''entrée'!$C$310))*(1+'1 Données d''entrée'!$C$310),0),0)","v":0},{"$f":"IF(N54='1 Données d''entrée'!$C$312+1,IF('1 Données d''entrée'!$C$314=\"(=NON)\",($B$85*'1 Données d''entrée'!$C$310)*((('1 Données d''entrée'!$C$310+1)^'1 Données d''entrée'!$C$312-1)/('1 Données d''entrée'!$C$310))*(1+'1 Données d''entrée'!$C$310),0),0)","v":0},{"$f":"IF(O54='1 Données d''entrée'!$C$312+1,IF('1 Données d''entrée'!$C$314=\"(=NON)\",($B$85*'1 Données d''entrée'!$C$310)*((('1 Données d''entrée'!$C$310+1)^'1 Données d''entrée'!$C$312-1)/('1 Données d''entrée'!$C$310))*(1+'1 Données d''entrée'!$C$310),0),0)","v":0},{"$f":"IF(P54='1 Données d''entrée'!$C$312+1,IF('1 Données d''entrée'!$C$314=\"(=NON)\",($B$85*'1 Données d''entrée'!$C$310)*((('1 Données d''entrée'!$C$310+1)^'1 Données d''entrée'!$C$312-1)/('1 Données d''entrée'!$C$310))*(1+'1 Données d''entrée'!$C$310),0),0)","v":0},{"$f":"IF(Q54='1 Données d''entrée'!$C$312+1,IF('1 Données d''entrée'!$C$314=\"(=NON)\",($B$85*'1 Données d''entrée'!$C$310)*((('1 Données d''entrée'!$C$310+1)^'1 Données d''entrée'!$C$312-1)/('1 Données d''entrée'!$C$310))*(1+'1 Données d''entrée'!$C$310),0),0)","v":0},{"$f":"IF(R54='1 Données d''entrée'!$C$312+1,IF('1 Données d''entrée'!$C$314=\"(=NON)\",($B$85*'1 Données d''entrée'!$C$310)*((('1 Données d''entrée'!$C$310+1)^'1 Données d''entrée'!$C$312-1)/('1 Données d''entrée'!$C$310))*(1+'1 Données d''entrée'!$C$310),0),0)","v":0},{"$f":"IF(S54='1 Données d''entrée'!$C$312+1,IF('1 Données d''entrée'!$C$314=\"(=NON)\",($B$85*'1 Données d''entrée'!$C$310)*((('1 Données d''entrée'!$C$310+1)^'1 Données d''entrée'!$C$312-1)/('1 Données d''entrée'!$C$310))*(1+'1 Données d''entrée'!$C$310),0),0)","v":0},{"$f":"IF(T54='1 Données d''entrée'!$C$312+1,IF('1 Données d''entrée'!$C$314=\"(=NON)\",($B$85*'1 Données d''entrée'!$C$310)*((('1 Données d''entrée'!$C$310+1)^'1 Données d''entrée'!$C$312-1)/('1 Données d''entrée'!$C$310))*(1+'1 Données d''entrée'!$C$310),0),0)","v":0},{"$f":"IF(U54='1 Données d''entrée'!$C$312+1,IF('1 Données d''entrée'!$C$314=\"(=NON)\",($B$85*'1 Données d''entrée'!$C$310)*((('1 Données d''entrée'!$C$310+1)^'1 Données d''entrée'!$C$312-1)/('1 Données d''entrée'!$C$310))*(1+'1 Données d''entrée'!$C$310),0),0)","v":0},{"$f":"IF(V54='1 Données d''entrée'!$C$312+1,IF('1 Données d''entrée'!$C$314=\"(=NON)\",($B$85*'1 Données d''entrée'!$C$310)*((('1 Données d''entrée'!$C$310+1)^'1 Données d''entrée'!$C$312-1)/('1 Données d''entrée'!$C$310))*(1+'1 Données d''entrée'!$C$310),0),0)","v":0}]
["Fonds d'autre donneurs / investisseurs - Prêt; Option 3: Remboursement vers l'annuité constante",{"$f":"'1 Données d''entrée'!$B$321","v":0},"% de prêt total"]
["Réception ",{"$f":"B89*'1 Données d''entrée'!$B$306+'1 Données d''entrée'!$B$306*'1 Données d''entrée'!$C$316","v":0},0,0,0,0,0,0,0,0,0,0,0,0,0,0,0,0,0,0,0,0]
["Remboursement vers l'annuité constante",{"$f":"IF(B54<'1 Données d''entrée'!$C$312+1,0,IF(B54<'1 Données d''entrée'!$C$311+'1 Données d''entrée'!$C$312+1,$B$90*('1 Données d''entrée'!$C$310*(1+'1 Données d''entrée'!$C$310)^'1 Données d''entrée'!$C$311)/((1+'1 Données d''entrée'!$C$310)^'1 Données d''entrée'!$C$311-1),0))","v":0},{"$f":"IF(C54<'1 Données d''entrée'!$C$312+1,0,IF(C54<'1 Données d''entrée'!$C$311+'1 Données d''entrée'!$C$312+1,$B$90*('1 Données d''entrée'!$C$310*(1+'1 Données d''entrée'!$C$310)^'1 Données d''entrée'!$C$311)/((1+'1 Données d''entrée'!$C$310)^'1 Données d''entrée'!$C$311-1),0))","v":0},{"$f":"IF(D54<'1 Données d''entrée'!$C$312+1,0,IF(D54<'1 Données d''entrée'!$C$311+'1 Données d''entrée'!$C$312+1,$B$90*('1 Données d''entrée'!$C$310*(1+'1 Données d''entrée'!$C$310)^'1 Données d''entrée'!$C$311)/((1+'1 Données d''entrée'!$C$310)^'1 Données d''entrée'!$C$311-1),0))","v":0},{"$f":"IF(E54<'1 Données d''entrée'!$C$312+1,0,IF(E54<'1 Données d''entrée'!$C$311+'1 Données d''entrée'!$C$312+1,$B$90*('1 Données d''entrée'!$C$310*(1+'1 Données d''entrée'!$C$310)^'1 Données d''entrée'!$C$311)/((1+'1 Données d''entrée'!$C$310)^'1 Données d''entrée'!$C$311-1),0))","v":0},{"$f":"IF(F54<'1 Données d''entrée'!$C$312+1,0,IF(F54<'1 Données d''entrée'!$C$311+'1 Données d''entrée'!$C$312+1,$B$90*('1 Données d''entrée'!$C$310*(1+'1 Données d''entrée'!$C$310)^'1 Données d''entrée'!$C$311)/((1+'1 Données d''entrée'!$C$310)^'1 Données d''entrée'!$C$311-1),0))","v":0},{"$f":"IF(G54<'1 Données d''entrée'!$C$312+1,0,IF(G54<'1 Données d''entrée'!$C$311+'1 Données d''entrée'!$C$312+1,$B$90*('1 Données d''entrée'!$C$310*(1+'1 Données d''entrée'!$C$310)^'1 Données d''entrée'!$C$311)/((1+'1 Données d''entrée'!$C$310)^'1 Données d''entrée'!$C$311-1),0))","v":0},{"$f":"IF(H54<'1 Données d''entrée'!$C$312+1,0,IF(H54<'1 Données d''entrée'!$C$311+'1 Données d''entrée'!$C$312+1,$B$90*('1 Données d''entrée'!$C$310*(1+'1 Données d''entrée'!$C$310)^'1 Données d''entrée'!$C$311)/((1+'1 Données d''entrée'!$C$310)^'1 Données d''entrée'!$C$311-1),0))","v":0},{"$f":"IF(I54<'1 Données d''entrée'!$C$312+1,0,IF(I54<'1 Données d''entrée'!$C$311+'1 Données d''entrée'!$C$312+1,$B$90*('1 Données d''entrée'!$C$310*(1+'1 Données d''entrée'!$C$310)^'1 Données d''entrée'!$C$311)/((1+'1 Données d''entrée'!$C$310)^'1 Données d''entrée'!$C$311-1),0))","v":0},{"$f":"IF(J54<'1 Données d''entrée'!$C$312+1,0,IF(J54<'1 Données d''entrée'!$C$311+'1 Données d''entrée'!$C$312+1,$B$90*('1 Données d''entrée'!$C$310*(1+'1 Données d''entrée'!$C$310)^'1 Données d''entrée'!$C$311)/((1+'1 Données d''entrée'!$C$310)^'1 Données d''entrée'!$C$311-1),0))","v":0},{"$f":"IF(K54<'1 Données d''entrée'!$C$312+1,0,IF(K54<'1 Données d''entrée'!$C$311+'1 Données d''entrée'!$C$312+1,$B$90*('1 Données d''entrée'!$C$310*(1+'1 Données d''entrée'!$C$310)^'1 Données d''entrée'!$C$311)/((1+'1 Données d''entrée'!$C$310)^'1 Données d''entrée'!$C$311-1),0))","v":0},{"$f":"IF(L54<'1 Données d''entrée'!$C$312+1,0,IF(L54<'1 Données d''entrée'!$C$311+'1 Données d''entrée'!$C$312+1,$B$90*('1 Données d''entrée'!$C$310*(1+'1 Données d''entrée'!$C$310)^'1 Données d''entrée'!$C$311)/((1+'1 Données d''entrée'!$C$310)^'1 Données d''entrée'!$C$311-1),0))","v":0},{"$f":"IF(M54<'1 Données d''entrée'!$C$312+1,0,IF(M54<'1 Données d''entrée'!$C$311+'1 Données d''entrée'!$C$312+1,$B$90*('1 Données d''entrée'!$C$310*(1+'1 Données d''entrée'!$C$310)^'1 Données d''entrée'!$C$311)/((1+'1 Données d''entrée'!$C$310)^'1 Données d''entrée'!$C$311-1),0))","v":0},{"$f":"IF(N54<'1 Données d''entrée'!$C$312+1,0,IF(N54<'1 Données d''entrée'!$C$311+'1 Données d''entrée'!$C$312+1,$B$90*('1 Données d''entrée'!$C$310*(1+'1 Données d''entrée'!$C$310)^'1 Données d''entrée'!$C$311)/((1+'1 Données d''entrée'!$C$310)^'1 Données d''entrée'!$C$311-1),0))","v":0},{"$f":"IF(O54<'1 Données d''entrée'!$C$312+1,0,IF(O54<'1 Données d''entrée'!$C$311+'1 Données d''entrée'!$C$312+1,$B$90*('1 Données d''entrée'!$C$310*(1+'1 Données d''entrée'!$C$310)^'1 Données d''entrée'!$C$311)/((1+'1 Données d''entrée'!$C$310)^'1 Données d''entrée'!$C$311-1),0))","v":0},{"$f":"IF(P54<'1 Données d''entrée'!$C$312+1,0,IF(P54<'1 Données d''entrée'!$C$311+'1 Données d''entrée'!$C$312+1,$B$90*('1 Données d''entrée'!$C$310*(1+'1 Données d''entrée'!$C$310)^'1 Données d''entrée'!$C$311)/((1+'1 Données d''entrée'!$C$310)^'1 Données d''entrée'!$C$311-1),0))","v":0},{"$f":"IF(Q54<'1 Données d''entrée'!$C$312+1,0,IF(Q54<'1 Données d''entrée'!$C$311+'1 Données d''entrée'!$C$312+1,$B$90*('1 Données d''entrée'!$C$310*(1+'1 Données d''entrée'!$C$310)^'1 Données d''entrée'!$C$311)/((1+'1 Données d''entrée'!$C$310)^'1 Données d''entrée'!$C$311-1),0))","v":0},{"$f":"IF(R54<'1 Données d''entrée'!$C$312+1,0,IF(R54<'1 Données d''entrée'!$C$311+'1 Données d''entrée'!$C$312+1,$B$90*('1 Données d''entrée'!$C$310*(1+'1 Données d''entrée'!$C$310)^'1 Données d''entrée'!$C$311)/((1+'1 Données d''entrée'!$C$310)^'1 Données d''entrée'!$C$311-1),0))","v":0},{"$f":"IF(S54<'1 Données d''entrée'!$C$312+1,0,IF(S54<'1 Données d''entrée'!$C$311+'1 Données d''entrée'!$C$312+1,$B$90*('1 Données d''entrée'!$C$310*(1+'1 Données d''entrée'!$C$310)^'1 Données d''entrée'!$C$311)/((1+'1 Données d''entrée'!$C$310)^'1 Données d''entrée'!$C$311-1),0))","v":0},{"$f":"IF(T54<'1 Données d''entrée'!$C$312+1,0,IF(T54<'1 Données d''entrée'!$C$311+'1 Données d''entrée'!$C$312+1,$B$90*('1 Données d''entrée'!$C$310*(1+'1 Données d''entrée'!$C$310)^'1 Données d''entrée'!$C$311)/((1+'1 Données d''entrée'!$C$310)^'1 Données d''entrée'!$C$311-1),0))","v":0},{"$f":"IF(U54<'1 Données d''entrée'!$C$312+1,0,IF(U54<'1 Données d''entrée'!$C$311+'1 Données d''entrée'!$C$312+1,$B$90*('1 Données d''entrée'!$C$310*(1+'1 Données d''entrée'!$C$310)^'1 Données d''entrée'!$C$311)/((1+'1 Données d''entrée'!$C$310)^'1 Données d''entrée'!$C$311-1),0))","v":0},{"$f":"IF(V54<'1 Données d''entrée'!$C$312+1,0,IF(V54<'1 Données d''entrée'!$C$311+'1 Données d''entrée'!$C$312+1,$B$90*('1 Données d''entrée'!$C$310*(1+'1 Données d''entrée'!$C$310)^'1 Données d''entrée'!$C$311)/((1+'1 Données d''entrée'!$C$310)^'1 Données d''entrée'!$C$311-1),0))","v":0}]
["Paiement d'intérêt décroissant inclu dans l'annuité constante",0,{"$f":"IF('1 Données d''entrée'!$C$314=\"(=NON)\",IF(C91>0,$B$90*((('1 Données d''entrée'!$C$310+1)^'1 Données d''entrée'!$C$311)-(1+'1 Données d''entrée'!$C$310)^('6 Financement'!C$54-1-'1 Données d''entrée'!$C$312))/((1+'1 Données d''entrée'!$C$310)^'1 Données d''entrée'!$C$311-1)*'1 Données d''entrée'!$C$310,0),IF(C54<'1 Données d''entrée'!$C$312+1,'1 Données d''entrée'!$C$310*'6 Financement'!$B$90,IF(C91>0,$B$90*((('1 Données d''entrée'!$C$310+1)^'1 Données d''entrée'!$C$311)-(1+'1 Données d''entrée'!$C$310)^('6 Financement'!C$54-1-'1 Données d''entrée'!$C$312))/((1+'1 Données d''entrée'!$C$310)^'1 Données d''entrée'!$C$311-1)*'1 Données d''entrée'!$C$310,0)))","v":0},{"$f":"IF('1 Données d''entrée'!$C$314=\"(=NON)\",IF(D91>0,$B$90*((('1 Données d''entrée'!$C$310+1)^'1 Données d''entrée'!$C$311)-(1+'1 Données d''entrée'!$C$310)^('6 Financement'!D$54-1-'1 Données d''entrée'!$C$312))/((1+'1 Données d''entrée'!$C$310)^'1 Données d''entrée'!$C$311-1)*'1 Données d''entrée'!$C$310,0),IF(D54<'1 Données d''entrée'!$C$312+1,'1 Données d''entrée'!$C$310*'6 Financement'!$B$90,IF(D91>0,$B$90*((('1 Données d''entrée'!$C$310+1)^'1 Données d''entrée'!$C$311)-(1+'1 Données d''entrée'!$C$310)^('6 Financement'!D$54-1-'1 Données d''entrée'!$C$312))/((1+'1 Données d''entrée'!$C$310)^'1 Données d''entrée'!$C$311-1)*'1 Données d''entrée'!$C$310,0)))","v":0},{"$f":"IF('1 Données d''entrée'!$C$314=\"(=NON)\",IF(E91>0,$B$90*((('1 Données d''entrée'!$C$310+1)^'1 Données d''entrée'!$C$311)-(1+'1 Données d''entrée'!$C$310)^('6 Financement'!E$54-1-'1 Données d''entrée'!$C$312))/((1+'1 Données d''entrée'!$C$310)^'1 Données d''entrée'!$C$311-1)*'1 Données d''entrée'!$C$310,0),IF(E54<'1 Données d''entrée'!$C$312+1,'1 Données d''entrée'!$C$310*'6 Financement'!$B$90,IF(E91>0,$B$90*((('1 Données d''entrée'!$C$310+1)^'1 Données d''entrée'!$C$311)-(1+'1 Données d''entrée'!$C$310)^('6 Financement'!E$54-1-'1 Données d''entrée'!$C$312))/((1+'1 Données d''entrée'!$C$310)^'1 Données d''entrée'!$C$311-1)*'1 Données d''entrée'!$C$310,0)))","v":0},{"$f":"IF('1 Données d''entrée'!$C$314=\"(=NON)\",IF(F91>0,$B$90*((('1 Données d''entrée'!$C$310+1)^'1 Données d''entrée'!$C$311)-(1+'1 Données d''entrée'!$C$310)^('6 Financement'!F$54-1-'1 Données d''entrée'!$C$312))/((1+'1 Données d''entrée'!$C$310)^'1 Données d''entrée'!$C$311-1)*'1 Données d''entrée'!$C$310,0),IF(F54<'1 Données d''entrée'!$C$312+1,'1 Données d''entrée'!$C$310*'6 Financement'!$B$90,IF(F91>0,$B$90*((('1 Données d''entrée'!$C$310+1)^'1 Données d''entrée'!$C$311)-(1+'1 Données d''entrée'!$C$310)^('6 Financement'!F$54-1-'1 Données d''entrée'!$C$312))/((1+'1 Données d''entrée'!$C$310)^'1 Données d''entrée'!$C$311-1)*'1 Données d''entrée'!$C$310,0)))","v":0},{"$f":"IF('1 Données d''entrée'!$C$314=\"(=NON)\",IF(G91>0,$B$90*((('1 Données d''entrée'!$C$310+1)^'1 Données d''entrée'!$C$311)-(1+'1 Données d''entrée'!$C$310)^('6 Financement'!G$54-1-'1 Données d''entrée'!$C$312))/((1+'1 Données d''entrée'!$C$310)^'1 Données d''entrée'!$C$311-1)*'1 Données d''entrée'!$C$310,0),IF(G54<'1 Données d''entrée'!$C$312+1,'1 Données d''entrée'!$C$310*'6 Financement'!$B$90,IF(G91>0,$B$90*((('1 Données d''entrée'!$C$310+1)^'1 Données d''entrée'!$C$311)-(1+'1 Données d''entrée'!$C$310)^('6 Financement'!G$54-1-'1 Données d''entrée'!$C$312))/((1+'1 Données d''entrée'!$C$310)^'1 Données d''entrée'!$C$311-1)*'1 Données d''entrée'!$C$310,0)))","v":0},{"$f":"IF('1 Données d''entrée'!$C$314=\"(=NON)\",IF(H91>0,$B$90*((('1 Données d''entrée'!$C$310+1)^'1 Données d''entrée'!$C$311)-(1+'1 Données d''entrée'!$C$310)^('6 Financement'!H$54-1-'1 Données d''entrée'!$C$312))/((1+'1 Données d''entrée'!$C$310)^'1 Données d''entrée'!$C$311-1)*'1 Données d''entrée'!$C$310,0),IF(H54<'1 Données d''entrée'!$C$312+1,'1 Données d''entrée'!$C$310*'6 Financement'!$B$90,IF(H91>0,$B$90*((('1 Données d''entrée'!$C$310+1)^'1 Données d''entrée'!$C$311)-(1+'1 Données d''entrée'!$C$310)^('6 Financement'!H$54-1-'1 Données d''entrée'!$C$312))/((1+'1 Données d''entrée'!$C$310)^'1 Données d''entrée'!$C$311-1)*'1 Données d''entrée'!$C$310,0)))","v":0},{"$f":"IF('1 Données d''entrée'!$C$314=\"(=NON)\",IF(I91>0,$B$90*((('1 Données d''entrée'!$C$310+1)^'1 Données d''entrée'!$C$311)-(1+'1 Données d''entrée'!$C$310)^('6 Financement'!I$54-1-'1 Données d''entrée'!$C$312))/((1+'1 Données d''entrée'!$C$310)^'1 Données d''entrée'!$C$311-1)*'1 Données d''entrée'!$C$310,0),IF(I54<'1 Données d''entrée'!$C$312+1,'1 Données d''entrée'!$C$310*'6 Financement'!$B$90,IF(I91>0,$B$90*((('1 Données d''entrée'!$C$310+1)^'1 Données d''entrée'!$C$311)-(1+'1 Données d''entrée'!$C$310)^('6 Financement'!I$54-1-'1 Données d''entrée'!$C$312))/((1+'1 Données d''entrée'!$C$310)^'1 Données d''entrée'!$C$311-1)*'1 Données d''entrée'!$C$310,0)))","v":0},{"$f":"IF('1 Données d''entrée'!$C$314=\"(=NON)\",IF(J91>0,$B$90*((('1 Données d''entrée'!$C$310+1)^'1 Données d''entrée'!$C$311)-(1+'1 Données d''entrée'!$C$310)^('6 Financement'!J$54-1-'1 Données d''entrée'!$C$312))/((1+'1 Données d''entrée'!$C$310)^'1 Données d''entrée'!$C$311-1)*'1 Données d''entrée'!$C$310,0),IF(J54<'1 Données d''entrée'!$C$312+1,'1 Données d''entrée'!$C$310*'6 Financement'!$B$90,IF(J91>0,$B$90*((('1 Données d''entrée'!$C$310+1)^'1 Données d''entrée'!$C$311)-(1+'1 Données d''entrée'!$C$310)^('6 Financement'!J$54-1-'1 Données d''entrée'!$C$312))/((1+'1 Données d''entrée'!$C$310)^'1 Données d''entrée'!$C$311-1)*'1 Données d''entrée'!$C$310,0)))","v":0},{"$f":"IF('1 Données d''entrée'!$C$314=\"(=NON)\",IF(K91>0,$B$90*((('1 Données d''entrée'!$C$310+1)^'1 Données d''entrée'!$C$311)-(1+'1 Données d''entrée'!$C$310)^('6 Financement'!K$54-1-'1 Données d''entrée'!$C$312))/((1+'1 Données d''entrée'!$C$310)^'1 Données d''entrée'!$C$311-1)*'1 Données d''entrée'!$C$310,0),IF(K54<'1 Données d''entrée'!$C$312+1,'1 Données d''entrée'!$C$310*'6 Financement'!$B$90,IF(K91>0,$B$90*((('1 Données d''entrée'!$C$310+1)^'1 Données d''entrée'!$C$311)-(1+'1 Données d''entrée'!$C$310)^('6 Financement'!K$54-1-'1 Données d''entrée'!$C$312))/((1+'1 Données d''entrée'!$C$310)^'1 Données d''entrée'!$C$311-1)*'1 Données d''entrée'!$C$310,0)))","v":0},{"$f":"IF('1 Données d''entrée'!$C$314=\"(=NON)\",IF(L91>0,$B$90*((('1 Données d''entrée'!$C$310+1)^'1 Données d''entrée'!$C$311)-(1+'1 Données d''entrée'!$C$310)^('6 Financement'!L$54-1-'1 Données d''entrée'!$C$312))/((1+'1 Données d''entrée'!$C$310)^'1 Données d''entrée'!$C$311-1)*'1 Données d''entrée'!$C$310,0),IF(L54<'1 Données d''entrée'!$C$312+1,'1 Données d''entrée'!$C$310*'6 Financement'!$B$90,IF(L91>0,$B$90*((('1 Données d''entrée'!$C$310+1)^'1 Données d''entrée'!$C$311)-(1+'1 Données d''entrée'!$C$310)^('6 Financement'!L$54-1-'1 Données d''entrée'!$C$312))/((1+'1 Données d''entrée'!$C$310)^'1 Données d''entrée'!$C$311-1)*'1 Données d''entrée'!$C$310,0)))","v":0},{"$f":"IF('1 Données d''entrée'!$C$314=\"(=NON)\",IF(M91>0,$B$90*((('1 Données d''entrée'!$C$310+1)^'1 Données d''entrée'!$C$311)-(1+'1 Données d''entrée'!$C$310)^('6 Financement'!M$54-1-'1 Données d''entrée'!$C$312))/((1+'1 Données d''entrée'!$C$310)^'1 Données d''entrée'!$C$311-1)*'1 Données d''entrée'!$C$310,0),IF(M54<'1 Données d''entrée'!$C$312+1,'1 Données d''entrée'!$C$310*'6 Financement'!$B$90,IF(M91>0,$B$90*((('1 Données d''entrée'!$C$310+1)^'1 Données d''entrée'!$C$311)-(1+'1 Données d''entrée'!$C$310)^('6 Financement'!M$54-1-'1 Données d''entrée'!$C$312))/((1+'1 Données d''entrée'!$C$310)^'1 Données d''entrée'!$C$311-1)*'1 Données d''entrée'!$C$310,0)))","v":0},{"$f":"IF('1 Données d''entrée'!$C$314=\"(=NON)\",IF(N91>0,$B$90*((('1 Données d''entrée'!$C$310+1)^'1 Données d''entrée'!$C$311)-(1+'1 Données d''entrée'!$C$310)^('6 Financement'!N$54-1-'1 Données d''entrée'!$C$312))/((1+'1 Données d''entrée'!$C$310)^'1 Données d''entrée'!$C$311-1)*'1 Données d''entrée'!$C$310,0),IF(N54<'1 Données d''entrée'!$C$312+1,'1 Données d''entrée'!$C$310*'6 Financement'!$B$90,IF(N91>0,$B$90*((('1 Données d''entrée'!$C$310+1)^'1 Données d''entrée'!$C$311)-(1+'1 Données d''entrée'!$C$310)^('6 Financement'!N$54-1-'1 Données d''entrée'!$C$312))/((1+'1 Données d''entrée'!$C$310)^'1 Données d''entrée'!$C$311-1)*'1 Données d''entrée'!$C$310,0)))","v":0},{"$f":"IF('1 Données d''entrée'!$C$314=\"(=NON)\",IF(O91>0,$B$90*((('1 Données d''entrée'!$C$310+1)^'1 Données d''entrée'!$C$311)-(1+'1 Données d''entrée'!$C$310)^('6 Financement'!O$54-1-'1 Données d''entrée'!$C$312))/((1+'1 Données d''entrée'!$C$310)^'1 Données d''entrée'!$C$311-1)*'1 Données d''entrée'!$C$310,0),IF(O54<'1 Données d''entrée'!$C$312+1,'1 Données d''entrée'!$C$310*'6 Financement'!$B$90,IF(O91>0,$B$90*((('1 Données d''entrée'!$C$310+1)^'1 Données d''entrée'!$C$311)-(1+'1 Données d''entrée'!$C$310)^('6 Financement'!O$54-1-'1 Données d''entrée'!$C$312))/((1+'1 Données d''entrée'!$C$310)^'1 Données d''entrée'!$C$311-1)*'1 Données d''entrée'!$C$310,0)))","v":0},{"$f":"IF('1 Données d''entrée'!$C$314=\"(=NON)\",IF(P91>0,$B$90*((('1 Données d''entrée'!$C$310+1)^'1 Données d''entrée'!$C$311)-(1+'1 Données d''entrée'!$C$310)^('6 Financement'!P$54-1-'1 Données d''entrée'!$C$312))/((1+'1 Données d''entrée'!$C$310)^'1 Données d''entrée'!$C$311-1)*'1 Données d''entrée'!$C$310,0),IF(P54<'1 Données d''entrée'!$C$312+1,'1 Données d''entrée'!$C$310*'6 Financement'!$B$90,IF(P91>0,$B$90*((('1 Données d''entrée'!$C$310+1)^'1 Données d''entrée'!$C$311)-(1+'1 Données d''entrée'!$C$310)^('6 Financement'!P$54-1-'1 Données d''entrée'!$C$312))/((1+'1 Données d''entrée'!$C$310)^'1 Données d''entrée'!$C$311-1)*'1 Données d''entrée'!$C$310,0)))","v":0},{"$f":"IF('1 Données d''entrée'!$C$314=\"(=NON)\",IF(Q91>0,$B$90*((('1 Données d''entrée'!$C$310+1)^'1 Données d''entrée'!$C$311)-(1+'1 Données d''entrée'!$C$310)^('6 Financement'!Q$54-1-'1 Données d''entrée'!$C$312))/((1+'1 Données d''entrée'!$C$310)^'1 Données d''entrée'!$C$311-1)*'1 Données d''entrée'!$C$310,0),IF(Q54<'1 Données d''entrée'!$C$312+1,'1 Données d''entrée'!$C$310*'6 Financement'!$B$90,IF(Q91>0,$B$90*((('1 Données d''entrée'!$C$310+1)^'1 Données d''entrée'!$C$311)-(1+'1 Données d''entrée'!$C$310)^('6 Financement'!Q$54-1-'1 Données d''entrée'!$C$312))/((1+'1 Données d''entrée'!$C$310)^'1 Données d''entrée'!$C$311-1)*'1 Données d''entrée'!$C$310,0)))","v":0},{"$f":"IF('1 Données d''entrée'!$C$314=\"(=NON)\",IF(R91>0,$B$90*((('1 Données d''entrée'!$C$310+1)^'1 Données d''entrée'!$C$311)-(1+'1 Données d''entrée'!$C$310)^('6 Financement'!R$54-1-'1 Données d''entrée'!$C$312))/((1+'1 Données d''entrée'!$C$310)^'1 Données d''entrée'!$C$311-1)*'1 Données d''entrée'!$C$310,0),IF(R54<'1 Données d''entrée'!$C$312+1,'1 Données d''entrée'!$C$310*'6 Financement'!$B$90,IF(R91>0,$B$90*((('1 Données d''entrée'!$C$310+1)^'1 Données d''entrée'!$C$311)-(1+'1 Données d''entrée'!$C$310)^('6 Financement'!R$54-1-'1 Données d''entrée'!$C$312))/((1+'1 Données d''entrée'!$C$310)^'1 Données d''entrée'!$C$311-1)*'1 Données d''entrée'!$C$310,0)))","v":0},{"$f":"IF('1 Données d''entrée'!$C$314=\"(=NON)\",IF(S91>0,$B$90*((('1 Données d''entrée'!$C$310+1)^'1 Données d''entrée'!$C$311)-(1+'1 Données d''entrée'!$C$310)^('6 Financement'!S$54-1-'1 Données d''entrée'!$C$312))/((1+'1 Données d''entrée'!$C$310)^'1 Données d''entrée'!$C$311-1)*'1 Données d''entrée'!$C$310,0),IF(S54<'1 Données d''entrée'!$C$312+1,'1 Données d''entrée'!$C$310*'6 Financement'!$B$90,IF(S91>0,$B$90*((('1 Données d''entrée'!$C$310+1)^'1 Données d''entrée'!$C$311)-(1+'1 Données d''entrée'!$C$310)^('6 Financement'!S$54-1-'1 Données d''entrée'!$C$312))/((1+'1 Données d''entrée'!$C$310)^'1 Données d''entrée'!$C$311-1)*'1 Données d''entrée'!$C$310,0)))","v":0},{"$f":"IF('1 Données d''entrée'!$C$314=\"(=NON)\",IF(T91>0,$B$90*((('1 Données d''entrée'!$C$310+1)^'1 Données d''entrée'!$C$311)-(1+'1 Données d''entrée'!$C$310)^('6 Financement'!T$54-1-'1 Données d''entrée'!$C$312))/((1+'1 Données d''entrée'!$C$310)^'1 Données d''entrée'!$C$311-1)*'1 Données d''entrée'!$C$310,0),IF(T54<'1 Données d''entrée'!$C$312+1,'1 Données d''entrée'!$C$310*'6 Financement'!$B$90,IF(T91>0,$B$90*((('1 Données d''entrée'!$C$310+1)^'1 Données d''entrée'!$C$311)-(1+'1 Données d''entrée'!$C$310)^('6 Financement'!T$54-1-'1 Données d''entrée'!$C$312))/((1+'1 Données d''entrée'!$C$310)^'1 Données d''entrée'!$C$311-1)*'1 Données d''entrée'!$C$310,0)))","v":0},{"$f":"IF('1 Données d''entrée'!$C$314=\"(=NON)\",IF(U91>0,$B$90*((('1 Données d''entrée'!$C$310+1)^'1 Données d''entrée'!$C$311)-(1+'1 Données d''entrée'!$C$310)^('6 Financement'!U$54-1-'1 Données d''entrée'!$C$312))/((1+'1 Données d''entrée'!$C$310)^'1 Données d''entrée'!$C$311-1)*'1 Données d''entrée'!$C$310,0),IF(U54<'1 Données d''entrée'!$C$312+1,'1 Données d''entrée'!$C$310*'6 Financement'!$B$90,IF(U91>0,$B$90*((('1 Données d''entrée'!$C$310+1)^'1 Données d''entrée'!$C$311)-(1+'1 Données d''entrée'!$C$310)^('6 Financement'!U$54-1-'1 Données d''entrée'!$C$312))/((1+'1 Données d''entrée'!$C$310)^'1 Données d''entrée'!$C$311-1)*'1 Données d''entrée'!$C$310,0)))","v":0},{"$f":"IF('1 Données d''entrée'!$C$314=\"(=NON)\",IF(V91>0,$B$90*((('1 Données d''entrée'!$C$310+1)^'1 Données d''entrée'!$C$311)-(1+'1 Données d''entrée'!$C$310)^('6 Financement'!V$54-1-'1 Données d''entrée'!$C$312))/((1+'1 Données d''entrée'!$C$310)^'1 Données d''entrée'!$C$311-1)*'1 Données d''entrée'!$C$310,0),IF(V54<'1 Données d''entrée'!$C$312+1,'1 Données d''entrée'!$C$310*'6 Financement'!$B$90,IF(V91>0,$B$90*((('1 Données d''entrée'!$C$310+1)^'1 Données d''entrée'!$C$311)-(1+'1 Données d''entrée'!$C$310)^('6 Financement'!V$54-1-'1 Données d''entrée'!$C$312))/((1+'1 Données d''entrée'!$C$310)^'1 Données d''entrée'!$C$311-1)*'1 Données d''entrée'!$C$310,0)))","v":0}]
["Paiements d'intérêt avec des intérêts composés en cas d'absence des paiements dans la période de grâce",0,0,{"$f":"IF(D54='1 Données d''entrée'!$C$312+1,IF('1 Données d''entrée'!$C$314=\"(=NON)\",($B$90*'1 Données d''entrée'!$C$310)*((('1 Données d''entrée'!$C$310+1)^'1 Données d''entrée'!$C$312-1)/('1 Données d''entrée'!$C$310))*(1+'1 Données d''entrée'!$C$310),0),0)","v":0},{"$f":"IF(E54='1 Données d''entrée'!$C$312+1,IF('1 Données d''entrée'!$C$314=\"(=NON)\",($B$90*'1 Données d''entrée'!$C$310)*((('1 Données d''entrée'!$C$310+1)^'1 Données d''entrée'!$C$312-1)/('1 Données d''entrée'!$C$310))*(1+'1 Données d''entrée'!$C$310),0),0)","v":0},{"$f":"IF(F54='1 Données d''entrée'!$C$312+1,IF('1 Données d''entrée'!$C$314=\"(=NON)\",($B$90*'1 Données d''entrée'!$C$310)*((('1 Données d''entrée'!$C$310+1)^'1 Données d''entrée'!$C$312-1)/('1 Données d''entrée'!$C$310))*(1+'1 Données d''entrée'!$C$310),0),0)","v":0},{"$f":"IF(G54='1 Données d''entrée'!$C$312+1,IF('1 Données d''entrée'!$C$314=\"(=NON)\",($B$90*'1 Données d''entrée'!$C$310)*((('1 Données d''entrée'!$C$310+1)^'1 Données d''entrée'!$C$312-1)/('1 Données d''entrée'!$C$310))*(1+'1 Données d''entrée'!$C$310),0),0)","v":0},{"$f":"IF(H54='1 Données d''entrée'!$C$312+1,IF('1 Données d''entrée'!$C$314=\"(=NON)\",($B$90*'1 Données d''entrée'!$C$310)*((('1 Données d''entrée'!$C$310+1)^'1 Données d''entrée'!$C$312-1)/('1 Données d''entrée'!$C$310))*(1+'1 Données d''entrée'!$C$310),0),0)","v":0},{"$f":"IF(I54='1 Données d''entrée'!$C$312+1,IF('1 Données d''entrée'!$C$314=\"(=NON)\",($B$90*'1 Données d''entrée'!$C$310)*((('1 Données d''entrée'!$C$310+1)^'1 Données d''entrée'!$C$312-1)/('1 Données d''entrée'!$C$310))*(1+'1 Données d''entrée'!$C$310),0),0)","v":0},{"$f":"IF(J54='1 Données d''entrée'!$C$312+1,IF('1 Données d''entrée'!$C$314=\"(=NON)\",($B$90*'1 Données d''entrée'!$C$310)*((('1 Données d''entrée'!$C$310+1)^'1 Données d''entrée'!$C$312-1)/('1 Données d''entrée'!$C$310))*(1+'1 Données d''entrée'!$C$310),0),0)","v":0},{"$f":"IF(K54='1 Données d''entrée'!$C$312+1,IF('1 Données d''entrée'!$C$314=\"(=NON)\",($B$90*'1 Données d''entrée'!$C$310)*((('1 Données d''entrée'!$C$310+1)^'1 Données d''entrée'!$C$312-1)/('1 Données d''entrée'!$C$310))*(1+'1 Données d''entrée'!$C$310),0),0)","v":0},{"$f":"IF(L54='1 Données d''entrée'!$C$312+1,IF('1 Données d''entrée'!$C$314=\"(=NON)\",($B$90*'1 Données d''entrée'!$C$310)*((('1 Données d''entrée'!$C$310+1)^'1 Données d''entrée'!$C$312-1)/('1 Données d''entrée'!$C$310))*(1+'1 Données d''entrée'!$C$310),0),0)","v":0},{"$f":"IF(M54='1 Données d''entrée'!$C$312+1,IF('1 Données d''entrée'!$C$314=\"(=NON)\",($B$90*'1 Données d''entrée'!$C$310)*((('1 Données d''entrée'!$C$310+1)^'1 Données d''entrée'!$C$312-1)/('1 Données d''entrée'!$C$310))*(1+'1 Données d''entrée'!$C$310),0),0)","v":0},{"$f":"IF(N54='1 Données d''entrée'!$C$312+1,IF('1 Données d''entrée'!$C$314=\"(=NON)\",($B$90*'1 Données d''entrée'!$C$310)*((('1 Données d''entrée'!$C$310+1)^'1 Données d''entrée'!$C$312-1)/('1 Données d''entrée'!$C$310))*(1+'1 Données d''entrée'!$C$310),0),0)","v":0},{"$f":"IF(O54='1 Données d''entrée'!$C$312+1,IF('1 Données d''entrée'!$C$314=\"(=NON)\",($B$90*'1 Données d''entrée'!$C$310)*((('1 Données d''entrée'!$C$310+1)^'1 Données d''entrée'!$C$312-1)/('1 Données d''entrée'!$C$310))*(1+'1 Données d''entrée'!$C$310),0),0)","v":0},{"$f":"IF(P54='1 Données d''entrée'!$C$312+1,IF('1 Données d''entrée'!$C$314=\"(=NON)\",($B$90*'1 Données d''entrée'!$C$310)*((('1 Données d''entrée'!$C$310+1)^'1 Données d''entrée'!$C$312-1)/('1 Données d''entrée'!$C$310))*(1+'1 Données d''entrée'!$C$310),0),0)","v":0},{"$f":"IF(Q54='1 Données d''entrée'!$C$312+1,IF('1 Données d''entrée'!$C$314=\"(=NON)\",($B$90*'1 Données d''entrée'!$C$310)*((('1 Données d''entrée'!$C$310+1)^'1 Données d''entrée'!$C$312-1)/('1 Données d''entrée'!$C$310))*(1+'1 Données d''entrée'!$C$310),0),0)","v":0},{"$f":"IF(R54='1 Données d''entrée'!$C$312+1,IF('1 Données d''entrée'!$C$314=\"(=NON)\",($B$90*'1 Données d''entrée'!$C$310)*((('1 Données d''entrée'!$C$310+1)^'1 Données d''entrée'!$C$312-1)/('1 Données d''entrée'!$C$310))*(1+'1 Données d''entrée'!$C$310),0),0)","v":0},{"$f":"IF(S54='1 Données d''entrée'!$C$312+1,IF('1 Données d''entrée'!$C$314=\"(=NON)\",($B$90*'1 Données d''entrée'!$C$310)*((('1 Données d''entrée'!$C$310+1)^'1 Données d''entrée'!$C$312-1)/('1 Données d''entrée'!$C$310))*(1+'1 Données d''entrée'!$C$310),0),0)","v":0},{"$f":"IF(T54='1 Données d''entrée'!$C$312+1,IF('1 Données d''entrée'!$C$314=\"(=NON)\",($B$90*'1 Données d''entrée'!$C$310)*((('1 Données d''entrée'!$C$310+1)^'1 Données d''entrée'!$C$312-1)/('1 Données d''entrée'!$C$310))*(1+'1 Données d''entrée'!$C$310),0),0)","v":0},{"$f":"IF(U54='1 Données d''entrée'!$C$312+1,IF('1 Données d''entrée'!$C$314=\"(=NON)\",($B$90*'1 Données d''entrée'!$C$310)*((('1 Données d''entrée'!$C$310+1)^'1 Données d''entrée'!$C$312-1)/('1 Données d''entrée'!$C$310))*(1+'1 Données d''entrée'!$C$310),0),0)","v":0},{"$f":"IF(V54='1 Données d''entrée'!$C$312+1,IF('1 Données d''entrée'!$C$314=\"(=NON)\",($B$90*'1 Données d''entrée'!$C$310)*((('1 Données d''entrée'!$C$310+1)^'1 Données d''entrée'!$C$312-1)/('1 Données d''entrée'!$C$310))*(1+'1 Données d''entrée'!$C$310),0),0)","v":0}]
[]
["Solde du compte intermédiaire"]
["Solde du comte (par période)",{"$f":"B56+B58+B60+IF($B$62>0,(B63-B64-B65-B66),0)+IF($B$67>0,(B68-B69-B70-B71),0)+IF($B$72>0,(B73-B74-IF(B74>0,0,B75)-B76),0)+B78+IF($B$79>0,(B80-B81-B82-B83),0)+IF($B$84>0,(B85-B86-B87-B88),0)+IF($B$89>0,B90-IF(B91>0,0,B92)-B93,0)","v":{"$error":"#DIV/0!"}},{"$f":"C56+C58+C60+IF($B$62>0,(-C64-C65-C66),0)+IF($B$67>0,(-C69-C70-C71),0)+C78+IF($B$72>0,(-C74-IF(C74>0,0,C75)-C76),0)+IF($B$79>0,(-C81-C82-C83),0)+IF($B$84>0,(-C86-C87-C88),0)+IF($B$89>0,(-C91-IF(C91>0,0,C92)-C93),0)","v":{"$error":"#DIV/0!"}},{"$f":"D56+D58+D60+IF($B$62>0,(-D64-D65-D66),0)+IF($B$67>0,(-D69-D70-D71),0)+D78+IF($B$72>0,(-D74-IF(D74>0,0,D75)-D76),0)+IF($B$79>0,(-D81-D82-D83),0)+IF($B$84>0,(-D86-D87-D88),0)+IF($B$89>0,(-D91-IF(D91>0,0,D92)-D93),0)","v":{"$error":"#DIV/0!"}},{"$error":"#DIV/0!"},{"$error":"#DIV/0!"},{"$error":"#DIV/0!"},{"$error":"#DIV/0!"},{"$error":"#DIV/0!"},{"$error":"#DIV/0!"},{"$error":"#DIV/0!"},{"$error":"#DIV/0!"},{"$error":"#DIV/0!"},{"$error":"#DIV/0!"},{"$error":"#DIV/0!"},{"$error":"#DIV/0!"},{"$error":"#DIV/0!"},{"$error":"#DIV/0!"},{"$error":"#DIV/0!"},{"$error":"#DIV/0!"},{"$error":"#DIV/0!"},{"$error":"#DIV/0!"}]
["Solde du compte (cumulé)",{"$f":"B96","v":{"$error":"#DIV/0!"}},{"$f":"B97+C96","v":{"$error":"#DIV/0!"}},{"$error":"#DIV/0!"},{"$error":"#DIV/0!"},{"$error":"#DIV/0!"},{"$error":"#DIV/0!"},{"$error":"#DIV/0!"},{"$error":"#DIV/0!"},{"$error":"#DIV/0!"},{"$error":"#DIV/0!"},{"$error":"#DIV/0!"},{"$error":"#DIV/0!"},{"$error":"#DIV/0!"},{"$error":"#DIV/0!"},{"$error":"#DIV/0!"},{"$error":"#DIV/0!"},{"$error":"#DIV/0!"},{"$error":"#DIV/0!"},{"$error":"#DIV/0!"},{"$error":"#DIV/0!"},{"$error":"#DIV/0!"}]
[]
[]
[]
["Prêt bancaire additionnel"]
[null,"Période",1,2,3,4,5,6,7,8,9,10,11,12,13,14,15,16,17,18,19,20]
["Prêt bancaire additionnel - Option 1: Remboursement du principal fractionné",{"$f":"'1 Données d''entrée'!$B$342","v":0}]
["Prêt(s) nouveau(x)",null,{"$f":"IF(C97<0,C97*(-1)*$B$103+C97*(-1)*$B$103*'1 Données d''entrée'!$C$338,0)","v":{"$error":"#DIV/0!"}},{"$f":"IF(D97<0,D97*(-1)*$B$103+D97*(-1)*$B$103*'1 Données d''entrée'!$C$338,0)","v":{"$error":"#DIV/0!"}},{"$f":"IF(E97<0,E97*(-1)*$B$103+E97*(-1)*$B$103*'1 Données d''entrée'!$C$338,0)","v":{"$error":"#DIV/0!"}},{"$f":"IF(F97<0,F97*(-1)*$B$103+F97*(-1)*$B$103*'1 Données d''entrée'!$C$338,0)","v":{"$error":"#DIV/0!"}},{"$f":"IF(G97<0,G97*(-1)*$B$103+G97*(-1)*$B$103*'1 Données d''entrée'!$C$338,0)","v":{"$error":"#DIV/0!"}},{"$f":"IF(H97<0,H97*(-1)*$B$103+H97*(-1)*$B$103*'1 Données d''entrée'!$C$338,0)","v":{"$error":"#DIV/0!"}},{"$f":"IF(I97<0,I97*(-1)*$B$103+I97*(-1)*$B$103*'1 Données d''entrée'!$C$338,0)","v":{"$error":"#DIV/0!"}},{"$f":"IF(J97<0,J97*(-1)*$B$103+J97*(-1)*$B$103*'1 Données d''entrée'!$C$338,0)","v":{"$error":"#DIV/0!"}},{"$f":"IF(K97<0,K97*(-1)*$B$103+K97*(-1)*$B$103*'1 Données d''entrée'!$C$338,0)","v":{"$error":"#DIV/0!"}},{"$f":"IF(L97<0,L97*(-1)*$B$103+L97*(-1)*$B$103*'1 Données d''entrée'!$C$338,0)","v":{"$error":"#DIV/0!"}},{"$f":"IF(M97<0,M97*(-1)*$B$103+M97*(-1)*$B$103*'1 Données d''entrée'!$C$338,0)","v":{"$error":"#DIV/0!"}},{"$f":"IF(N97<0,N97*(-1)*$B$103+N97*(-1)*$B$103*'1 Données d''entrée'!$C$338,0)","v":{"$error":"#DIV/0!"}},{"$f":"IF(O97<0,O97*(-1)*$B$103+O97*(-1)*$B$103*'1 Données d''entrée'!$C$338,0)","v":{"$error":"#DIV/0!"}},{"$f":"IF(P97<0,P97*(-1)*$B$103+P97*(-1)*$B$103*'1 Données d''entrée'!$C$338,0)","v":{"$error":"#DIV/0!"}},{"$f":"IF(Q97<0,Q97*(-1)*$B$103+Q97*(-1)*$B$103*'1 Données d''entrée'!$C$338,0)","v":{"$error":"#DIV/0!"}},{"$f":"IF(R97<0,R97*(-1)*$B$103+R97*(-1)*$B$103*'1 Données d''entrée'!$C$338,0)","v":{"$error":"#DIV/0!"}},{"$f":"IF(S97<0,S97*(-1)*$B$103+S97*(-1)*$B$103*'1 Données d''entrée'!$C$338,0)","v":{"$error":"#DIV/0!"}},{"$f":"IF(T97<0,T97*(-1)*$B$103+T97*(-1)*$B$103*'1 Données d''entrée'!$C$338,0)","v":{"$error":"#DIV/0!"}},{"$f":"IF(U97<0,U97*(-1)*$B$103+U97*(-1)*$B$103*'1 Données d''entrée'!$C$338,0)","v":{"$error":"#DIV/0!"}},{"$f":"IF(V97<0,V97*(-1)*$B$103+V97*(-1)*$B$103*'1 Données d''entrée'!$C$338,0)","v":{"$error":"#DIV/0!"}}]
[null,"Période de prêt nouveau"]
["Remboursement du principal",0,0,0,0,0,0,0,0,0,0,0,0,0,0,0,0,0,0,0,0,0]
[null,1,{"$f":"IF(C$54<'1 Données d''entrée'!$C$334+1+$B107,0,IF(C$54<'1 Données d''entrée'!$C$333+'1 Données d''entrée'!$C$334+1+$B107,($C$104/'1 Données d''entrée'!$C$333),0))","v":0},{"$f":"IF(D$54<'1 Données d''entrée'!$C$334+1+$B107,0,IF(D$54<'1 Données d''entrée'!$C$333+'1 Données d''entrée'!$C$334+1+$B107,($C$104/'1 Données d''entrée'!$C$333),0))","v":0},{"$f":"IF(E$54<'1 Données d''entrée'!$C$334+1+$B107,0,IF(E$54<'1 Données d''entrée'!$C$333+'1 Données d''entrée'!$C$334+1+$B107,($C$104/'1 Données d''entrée'!$C$333),0))","v":0},{"$f":"IF(F$54<'1 Données d''entrée'!$C$334+1+$B107,0,IF(F$54<'1 Données d''entrée'!$C$333+'1 Données d''entrée'!$C$334+1+$B107,($C$104/'1 Données d''entrée'!$C$333),0))","v":0},{"$f":"IF(G$54<'1 Données d''entrée'!$C$334+1+$B107,0,IF(G$54<'1 Données d''entrée'!$C$333+'1 Données d''entrée'!$C$334+1+$B107,($C$104/'1 Données d''entrée'!$C$333),0))","v":0},{"$f":"IF(H$54<'1 Données d''entrée'!$C$334+1+$B107,0,IF(H$54<'1 Données d''entrée'!$C$333+'1 Données d''entrée'!$C$334+1+$B107,($C$104/'1 Données d''entrée'!$C$333),0))","v":0},{"$f":"IF(I$54<'1 Données d''entrée'!$C$334+1+$B107,0,IF(I$54<'1 Données d''entrée'!$C$333+'1 Données d''entrée'!$C$334+1+$B107,($C$104/'1 Données d''entrée'!$C$333),0))","v":0},{"$f":"IF(J$54<'1 Données d''entrée'!$C$334+1+$B107,0,IF(J$54<'1 Données d''entrée'!$C$333+'1 Données d''entrée'!$C$334+1+$B107,($C$104/'1 Données d''entrée'!$C$333),0))","v":0},{"$f":"IF(K$54<'1 Données d''entrée'!$C$334+1+$B107,0,IF(K$54<'1 Données d''entrée'!$C$333+'1 Données d''entrée'!$C$334+1+$B107,($C$104/'1 Données d''entrée'!$C$333),0))","v":0},{"$f":"IF(L$54<'1 Données d''entrée'!$C$334+1+$B107,0,IF(L$54<'1 Données d''entrée'!$C$333+'1 Données d''entrée'!$C$334+1+$B107,($C$104/'1 Données d''entrée'!$C$333),0))","v":0},{"$f":"IF(M$54<'1 Données d''entrée'!$C$334+1+$B107,0,IF(M$54<'1 Données d''entrée'!$C$333+'1 Données d''entrée'!$C$334+1+$B107,($C$104/'1 Données d''entrée'!$C$333),0))","v":0},{"$f":"IF(N$54<'1 Données d''entrée'!$C$334+1+$B107,0,IF(N$54<'1 Données d''entrée'!$C$333+'1 Données d''entrée'!$C$334+1+$B107,($C$104/'1 Données d''entrée'!$C$333),0))","v":0},{"$f":"IF(O$54<'1 Données d''entrée'!$C$334+1+$B107,0,IF(O$54<'1 Données d''entrée'!$C$333+'1 Données d''entrée'!$C$334+1+$B107,($C$104/'1 Données d''entrée'!$C$333),0))","v":0},{"$f":"IF(P$54<'1 Données d''entrée'!$C$334+1+$B107,0,IF(P$54<'1 Données d''entrée'!$C$333+'1 Données d''entrée'!$C$334+1+$B107,($C$104/'1 Données d''entrée'!$C$333),0))","v":0},{"$f":"IF(Q$54<'1 Données d''entrée'!$C$334+1+$B107,0,IF(Q$54<'1 Données d''entrée'!$C$333+'1 Données d''entrée'!$C$334+1+$B107,($C$104/'1 Données d''entrée'!$C$333),0))","v":0},{"$f":"IF(R$54<'1 Données d''entrée'!$C$334+1+$B107,0,IF(R$54<'1 Données d''entrée'!$C$333+'1 Données d''entrée'!$C$334+1+$B107,($C$104/'1 Données d''entrée'!$C$333),0))","v":0},{"$f":"IF(S$54<'1 Données d''entrée'!$C$334+1+$B107,0,IF(S$54<'1 Données d''entrée'!$C$333+'1 Données d''entrée'!$C$334+1+$B107,($C$104/'1 Données d''entrée'!$C$333),0))","v":0},{"$f":"IF(T$54<'1 Données d''entrée'!$C$334+1+$B107,0,IF(T$54<'1 Données d''entrée'!$C$333+'1 Données d''entrée'!$C$334+1+$B107,($C$104/'1 Données d''entrée'!$C$333),0))","v":0},{"$f":"IF(U$54<'1 Données d''entrée'!$C$334+1+$B107,0,IF(U$54<'1 Données d''entrée'!$C$333+'1 Données d''entrée'!$C$334+1+$B107,($C$104/'1 Données d''entrée'!$C$333),0))","v":0},{"$f":"IF(V$54<'1 Données d''entrée'!$C$334+1+$B107,0,IF(V$54<'1 Données d''entrée'!$C$333+'1 Données d''entrée'!$C$334+1+$B107,($C$104/'1 Données d''entrée'!$C$333),0))","v":0}]
[null,2,{"$f":"IF(C$54<'1 Données d''entrée'!$C$334+1+$B108,0,IF(C$54<'1 Données d''entrée'!$C$333+'1 Données d''entrée'!$C$334+1+$B108,($D$104/'1 Données d''entrée'!$C$333),0))","v":0},{"$f":"IF(D$54<'1 Données d''entrée'!$C$334+1+$B108,0,IF(D$54<'1 Données d''entrée'!$C$333+'1 Données d''entrée'!$C$334+1+$B108,($D$104/'1 Données d''entrée'!$C$333),0))","v":0},{"$f":"IF(E$54<'1 Données d''entrée'!$C$334+1+$B108,0,IF(E$54<'1 Données d''entrée'!$C$333+'1 Données d''entrée'!$C$334+1+$B108,($D$104/'1 Données d''entrée'!$C$333),0))","v":0},{"$f":"IF(F$54<'1 Données d''entrée'!$C$334+1+$B108,0,IF(F$54<'1 Données d''entrée'!$C$333+'1 Données d''entrée'!$C$334+1+$B108,($D$104/'1 Données d''entrée'!$C$333),0))","v":0},{"$f":"IF(G$54<'1 Données d''entrée'!$C$334+1+$B108,0,IF(G$54<'1 Données d''entrée'!$C$333+'1 Données d''entrée'!$C$334+1+$B108,($D$104/'1 Données d''entrée'!$C$333),0))","v":0},{"$f":"IF(H$54<'1 Données d''entrée'!$C$334+1+$B108,0,IF(H$54<'1 Données d''entrée'!$C$333+'1 Données d''entrée'!$C$334+1+$B108,($D$104/'1 Données d''entrée'!$C$333),0))","v":0},{"$f":"IF(I$54<'1 Données d''entrée'!$C$334+1+$B108,0,IF(I$54<'1 Données d''entrée'!$C$333+'1 Données d''entrée'!$C$334+1+$B108,($D$104/'1 Données d''entrée'!$C$333),0))","v":0},{"$f":"IF(J$54<'1 Données d''entrée'!$C$334+1+$B108,0,IF(J$54<'1 Données d''entrée'!$C$333+'1 Données d''entrée'!$C$334+1+$B108,($D$104/'1 Données d''entrée'!$C$333),0))","v":0},{"$f":"IF(K$54<'1 Données d''entrée'!$C$334+1+$B108,0,IF(K$54<'1 Données d''entrée'!$C$333+'1 Données d''entrée'!$C$334+1+$B108,($D$104/'1 Données d''entrée'!$C$333),0))","v":0},{"$f":"IF(L$54<'1 Données d''entrée'!$C$334+1+$B108,0,IF(L$54<'1 Données d''entrée'!$C$333+'1 Données d''entrée'!$C$334+1+$B108,($D$104/'1 Données d''entrée'!$C$333),0))","v":0},{"$f":"IF(M$54<'1 Données d''entrée'!$C$334+1+$B108,0,IF(M$54<'1 Données d''entrée'!$C$333+'1 Données d''entrée'!$C$334+1+$B108,($D$104/'1 Données d''entrée'!$C$333),0))","v":0},{"$f":"IF(N$54<'1 Données d''entrée'!$C$334+1+$B108,0,IF(N$54<'1 Données d''entrée'!$C$333+'1 Données d''entrée'!$C$334+1+$B108,($D$104/'1 Données d''entrée'!$C$333),0))","v":0},{"$f":"IF(O$54<'1 Données d''entrée'!$C$334+1+$B108,0,IF(O$54<'1 Données d''entrée'!$C$333+'1 Données d''entrée'!$C$334+1+$B108,($D$104/'1 Données d''entrée'!$C$333),0))","v":0},{"$f":"IF(P$54<'1 Données d''entrée'!$C$334+1+$B108,0,IF(P$54<'1 Données d''entrée'!$C$333+'1 Données d''entrée'!$C$334+1+$B108,($D$104/'1 Données d''entrée'!$C$333),0))","v":0},{"$f":"IF(Q$54<'1 Données d''entrée'!$C$334+1+$B108,0,IF(Q$54<'1 Données d''entrée'!$C$333+'1 Données d''entrée'!$C$334+1+$B108,($D$104/'1 Données d''entrée'!$C$333),0))","v":0},{"$f":"IF(R$54<'1 Données d''entrée'!$C$334+1+$B108,0,IF(R$54<'1 Données d''entrée'!$C$333+'1 Données d''entrée'!$C$334+1+$B108,($D$104/'1 Données d''entrée'!$C$333),0))","v":0},{"$f":"IF(S$54<'1 Données d''entrée'!$C$334+1+$B108,0,IF(S$54<'1 Données d''entrée'!$C$333+'1 Données d''entrée'!$C$334+1+$B108,($D$104/'1 Données d''entrée'!$C$333),0))","v":0},{"$f":"IF(T$54<'1 Données d''entrée'!$C$334+1+$B108,0,IF(T$54<'1 Données d''entrée'!$C$333+'1 Données d''entrée'!$C$334+1+$B108,($D$104/'1 Données d''entrée'!$C$333),0))","v":0},{"$f":"IF(U$54<'1 Données d''entrée'!$C$334+1+$B108,0,IF(U$54<'1 Données d''entrée'!$C$333+'1 Données d''entrée'!$C$334+1+$B108,($D$104/'1 Données d''entrée'!$C$333),0))","v":0},{"$f":"IF(V$54<'1 Données d''entrée'!$C$334+1+$B108,0,IF(V$54<'1 Données d''entrée'!$C$333+'1 Données d''entrée'!$C$334+1+$B108,($D$104/'1 Données d''entrée'!$C$333),0))","v":0}]
[null,3,{"$f":"IF(C$54<'1 Données d''entrée'!$C$334+1+$B109,0,IF(C$54<'1 Données d''entrée'!$C$333+'1 Données d''entrée'!$C$334+1+$B109,($E$104/'1 Données d''entrée'!$C$333),0))","v":0},{"$f":"IF(D$54<'1 Données d''entrée'!$C$334+1+$B109,0,IF(D$54<'1 Données d''entrée'!$C$333+'1 Données d''entrée'!$C$334+1+$B109,($E$104/'1 Données d''entrée'!$C$333),0))","v":0},{"$f":"IF(E$54<'1 Données d''entrée'!$C$334+1+$B109,0,IF(E$54<'1 Données d''entrée'!$C$333+'1 Données d''entrée'!$C$334+1+$B109,($E$104/'1 Données d''entrée'!$C$333),0))","v":0},{"$f":"IF(F$54<'1 Données d''entrée'!$C$334+1+$B109,0,IF(F$54<'1 Données d''entrée'!$C$333+'1 Données d''entrée'!$C$334+1+$B109,($E$104/'1 Données d''entrée'!$C$333),0))","v":0},{"$f":"IF(G$54<'1 Données d''entrée'!$C$334+1+$B109,0,IF(G$54<'1 Données d''entrée'!$C$333+'1 Données d''entrée'!$C$334+1+$B109,($E$104/'1 Données d''entrée'!$C$333),0))","v":0},{"$f":"IF(H$54<'1 Données d''entrée'!$C$334+1+$B109,0,IF(H$54<'1 Données d''entrée'!$C$333+'1 Données d''entrée'!$C$334+1+$B109,($E$104/'1 Données d''entrée'!$C$333),0))","v":0},{"$f":"IF(I$54<'1 Données d''entrée'!$C$334+1+$B109,0,IF(I$54<'1 Données d''entrée'!$C$333+'1 Données d''entrée'!$C$334+1+$B109,($E$104/'1 Données d''entrée'!$C$333),0))","v":0},{"$f":"IF(J$54<'1 Données d''entrée'!$C$334+1+$B109,0,IF(J$54<'1 Données d''entrée'!$C$333+'1 Données d''entrée'!$C$334+1+$B109,($E$104/'1 Données d''entrée'!$C$333),0))","v":0},{"$f":"IF(K$54<'1 Données d''entrée'!$C$334+1+$B109,0,IF(K$54<'1 Données d''entrée'!$C$333+'1 Données d''entrée'!$C$334+1+$B109,($E$104/'1 Données d''entrée'!$C$333),0))","v":0},{"$f":"IF(L$54<'1 Données d''entrée'!$C$334+1+$B109,0,IF(L$54<'1 Données d''entrée'!$C$333+'1 Données d''entrée'!$C$334+1+$B109,($E$104/'1 Données d''entrée'!$C$333),0))","v":0},{"$f":"IF(M$54<'1 Données d''entrée'!$C$334+1+$B109,0,IF(M$54<'1 Données d''entrée'!$C$333+'1 Données d''entrée'!$C$334+1+$B109,($E$104/'1 Données d''entrée'!$C$333),0))","v":0},{"$f":"IF(N$54<'1 Données d''entrée'!$C$334+1+$B109,0,IF(N$54<'1 Données d''entrée'!$C$333+'1 Données d''entrée'!$C$334+1+$B109,($E$104/'1 Données d''entrée'!$C$333),0))","v":0},{"$f":"IF(O$54<'1 Données d''entrée'!$C$334+1+$B109,0,IF(O$54<'1 Données d''entrée'!$C$333+'1 Données d''entrée'!$C$334+1+$B109,($E$104/'1 Données d''entrée'!$C$333),0))","v":0},{"$f":"IF(P$54<'1 Données d''entrée'!$C$334+1+$B109,0,IF(P$54<'1 Données d''entrée'!$C$333+'1 Données d''entrée'!$C$334+1+$B109,($E$104/'1 Données d''entrée'!$C$333),0))","v":0},{"$f":"IF(Q$54<'1 Données d''entrée'!$C$334+1+$B109,0,IF(Q$54<'1 Données d''entrée'!$C$333+'1 Données d''entrée'!$C$334+1+$B109,($E$104/'1 Données d''entrée'!$C$333),0))","v":0},{"$f":"IF(R$54<'1 Données d''entrée'!$C$334+1+$B109,0,IF(R$54<'1 Données d''entrée'!$C$333+'1 Données d''entrée'!$C$334+1+$B109,($E$104/'1 Données d''entrée'!$C$333),0))","v":0},{"$f":"IF(S$54<'1 Données d''entrée'!$C$334+1+$B109,0,IF(S$54<'1 Données d''entrée'!$C$333+'1 Données d''entrée'!$C$334+1+$B109,($E$104/'1 Données d''entrée'!$C$333),0))","v":0},{"$f":"IF(T$54<'1 Données d''entrée'!$C$334+1+$B109,0,IF(T$54<'1 Données d''entrée'!$C$333+'1 Données d''entrée'!$C$334+1+$B109,($E$104/'1 Données d''entrée'!$C$333),0))","v":0},{"$f":"IF(U$54<'1 Données d''entrée'!$C$334+1+$B109,0,IF(U$54<'1 Données d''entrée'!$C$333+'1 Données d''entrée'!$C$334+1+$B109,($E$104/'1 Données d''entrée'!$C$333),0))","v":0},{"$f":"IF(V$54<'1 Données d''entrée'!$C$334+1+$B109,0,IF(V$54<'1 Données d''entrée'!$C$333+'1 Données d''entrée'!$C$334+1+$B109,($E$104/'1 Données d''entrée'!$C$333),0))","v":0}]
[null,4,{"$f":"IF(C$54<'1 Données d''entrée'!$C$334+1+$B110,0,IF(C$54<'1 Données d''entrée'!$C$333+'1 Données d''entrée'!$C$334+1+$B110,($F$104/'1 Données d''entrée'!$C$333),0))","v":0},{"$f":"IF(D$54<'1 Données d''entrée'!$C$334+1+$B110,0,IF(D$54<'1 Données d''entrée'!$C$333+'1 Données d''entrée'!$C$334+1+$B110,($F$104/'1 Données d''entrée'!$C$333),0))","v":0},{"$f":"IF(E$54<'1 Données d''entrée'!$C$334+1+$B110,0,IF(E$54<'1 Données d''entrée'!$C$333+'1 Données d''entrée'!$C$334+1+$B110,($F$104/'1 Données d''entrée'!$C$333),0))","v":0},{"$f":"IF(F$54<'1 Données d''entrée'!$C$334+1+$B110,0,IF(F$54<'1 Données d''entrée'!$C$333+'1 Données d''entrée'!$C$334+1+$B110,($F$104/'1 Données d''entrée'!$C$333),0))","v":0},{"$f":"IF(G$54<'1 Données d''entrée'!$C$334+1+$B110,0,IF(G$54<'1 Données d''entrée'!$C$333+'1 Données d''entrée'!$C$334+1+$B110,($F$104/'1 Données d''entrée'!$C$333),0))","v":0},{"$f":"IF(H$54<'1 Données d''entrée'!$C$334+1+$B110,0,IF(H$54<'1 Données d''entrée'!$C$333+'1 Données d''entrée'!$C$334+1+$B110,($F$104/'1 Données d''entrée'!$C$333),0))","v":0},{"$f":"IF(I$54<'1 Données d''entrée'!$C$334+1+$B110,0,IF(I$54<'1 Données d''entrée'!$C$333+'1 Données d''entrée'!$C$334+1+$B110,($F$104/'1 Données d''entrée'!$C$333),0))","v":0},{"$f":"IF(J$54<'1 Données d''entrée'!$C$334+1+$B110,0,IF(J$54<'1 Données d''entrée'!$C$333+'1 Données d''entrée'!$C$334+1+$B110,($F$104/'1 Données d''entrée'!$C$333),0))","v":0},{"$f":"IF(K$54<'1 Données d''entrée'!$C$334+1+$B110,0,IF(K$54<'1 Données d''entrée'!$C$333+'1 Données d''entrée'!$C$334+1+$B110,($F$104/'1 Données d''entrée'!$C$333),0))","v":0},{"$f":"IF(L$54<'1 Données d''entrée'!$C$334+1+$B110,0,IF(L$54<'1 Données d''entrée'!$C$333+'1 Données d''entrée'!$C$334+1+$B110,($F$104/'1 Données d''entrée'!$C$333),0))","v":0},{"$f":"IF(M$54<'1 Données d''entrée'!$C$334+1+$B110,0,IF(M$54<'1 Données d''entrée'!$C$333+'1 Données d''entrée'!$C$334+1+$B110,($F$104/'1 Données d''entrée'!$C$333),0))","v":0},{"$f":"IF(N$54<'1 Données d''entrée'!$C$334+1+$B110,0,IF(N$54<'1 Données d''entrée'!$C$333+'1 Données d''entrée'!$C$334+1+$B110,($F$104/'1 Données d''entrée'!$C$333),0))","v":0},{"$f":"IF(O$54<'1 Données d''entrée'!$C$334+1+$B110,0,IF(O$54<'1 Données d''entrée'!$C$333+'1 Données d''entrée'!$C$334+1+$B110,($F$104/'1 Données d''entrée'!$C$333),0))","v":0},{"$f":"IF(P$54<'1 Données d''entrée'!$C$334+1+$B110,0,IF(P$54<'1 Données d''entrée'!$C$333+'1 Données d''entrée'!$C$334+1+$B110,($F$104/'1 Données d''entrée'!$C$333),0))","v":0},{"$f":"IF(Q$54<'1 Données d''entrée'!$C$334+1+$B110,0,IF(Q$54<'1 Données d''entrée'!$C$333+'1 Données d''entrée'!$C$334+1+$B110,($F$104/'1 Données d''entrée'!$C$333),0))","v":0},{"$f":"IF(R$54<'1 Données d''entrée'!$C$334+1+$B110,0,IF(R$54<'1 Données d''entrée'!$C$333+'1 Données d''entrée'!$C$334+1+$B110,($F$104/'1 Données d''entrée'!$C$333),0))","v":0},{"$f":"IF(S$54<'1 Données d''entrée'!$C$334+1+$B110,0,IF(S$54<'1 Données d''entrée'!$C$333+'1 Données d''entrée'!$C$334+1+$B110,($F$104/'1 Données d''entrée'!$C$333),0))","v":0},{"$f":"IF(T$54<'1 Données d''entrée'!$C$334+1+$B110,0,IF(T$54<'1 Données d''entrée'!$C$333+'1 Données d''entrée'!$C$334+1+$B110,($F$104/'1 Données d''entrée'!$C$333),0))","v":0},{"$f":"IF(U$54<'1 Données d''entrée'!$C$334+1+$B110,0,IF(U$54<'1 Données d''entrée'!$C$333+'1 Données d''entrée'!$C$334+1+$B110,($F$104/'1 Données d''entrée'!$C$333),0))","v":0},{"$f":"IF(V$54<'1 Données d''entrée'!$C$334+1+$B110,0,IF(V$54<'1 Données d''entrée'!$C$333+'1 Données d''entrée'!$C$334+1+$B110,($F$104/'1 Données d''entrée'!$C$333),0))","v":0}]
[null,5,{"$f":"IF(C$54<'1 Données d''entrée'!$C$334+1+$B111,0,IF(C$54<'1 Données d''entrée'!$C$333+'1 Données d''entrée'!$C$334+1+$B111,($G$104/'1 Données d''entrée'!$C$333),0))","v":0},{"$f":"IF(D$54<'1 Données d''entrée'!$C$334+1+$B111,0,IF(D$54<'1 Données d''entrée'!$C$333+'1 Données d''entrée'!$C$334+1+$B111,($G$104/'1 Données d''entrée'!$C$333),0))","v":0},{"$f":"IF(E$54<'1 Données d''entrée'!$C$334+1+$B111,0,IF(E$54<'1 Données d''entrée'!$C$333+'1 Données d''entrée'!$C$334+1+$B111,($G$104/'1 Données d''entrée'!$C$333),0))","v":0},{"$f":"IF(F$54<'1 Données d''entrée'!$C$334+1+$B111,0,IF(F$54<'1 Données d''entrée'!$C$333+'1 Données d''entrée'!$C$334+1+$B111,($G$104/'1 Données d''entrée'!$C$333),0))","v":0},{"$f":"IF(G$54<'1 Données d''entrée'!$C$334+1+$B111,0,IF(G$54<'1 Données d''entrée'!$C$333+'1 Données d''entrée'!$C$334+1+$B111,($G$104/'1 Données d''entrée'!$C$333),0))","v":0},{"$f":"IF(H$54<'1 Données d''entrée'!$C$334+1+$B111,0,IF(H$54<'1 Données d''entrée'!$C$333+'1 Données d''entrée'!$C$334+1+$B111,($G$104/'1 Données d''entrée'!$C$333),0))","v":0},{"$f":"IF(I$54<'1 Données d''entrée'!$C$334+1+$B111,0,IF(I$54<'1 Données d''entrée'!$C$333+'1 Données d''entrée'!$C$334+1+$B111,($G$104/'1 Données d''entrée'!$C$333),0))","v":0},{"$f":"IF(J$54<'1 Données d''entrée'!$C$334+1+$B111,0,IF(J$54<'1 Données d''entrée'!$C$333+'1 Données d''entrée'!$C$334+1+$B111,($G$104/'1 Données d''entrée'!$C$333),0))","v":0},{"$f":"IF(K$54<'1 Données d''entrée'!$C$334+1+$B111,0,IF(K$54<'1 Données d''entrée'!$C$333+'1 Données d''entrée'!$C$334+1+$B111,($G$104/'1 Données d''entrée'!$C$333),0))","v":0},{"$f":"IF(L$54<'1 Données d''entrée'!$C$334+1+$B111,0,IF(L$54<'1 Données d''entrée'!$C$333+'1 Données d''entrée'!$C$334+1+$B111,($G$104/'1 Données d''entrée'!$C$333),0))","v":0},{"$f":"IF(M$54<'1 Données d''entrée'!$C$334+1+$B111,0,IF(M$54<'1 Données d''entrée'!$C$333+'1 Données d''entrée'!$C$334+1+$B111,($G$104/'1 Données d''entrée'!$C$333),0))","v":0},{"$f":"IF(N$54<'1 Données d''entrée'!$C$334+1+$B111,0,IF(N$54<'1 Données d''entrée'!$C$333+'1 Données d''entrée'!$C$334+1+$B111,($G$104/'1 Données d''entrée'!$C$333),0))","v":0},{"$f":"IF(O$54<'1 Données d''entrée'!$C$334+1+$B111,0,IF(O$54<'1 Données d''entrée'!$C$333+'1 Données d''entrée'!$C$334+1+$B111,($G$104/'1 Données d''entrée'!$C$333),0))","v":0},{"$f":"IF(P$54<'1 Données d''entrée'!$C$334+1+$B111,0,IF(P$54<'1 Données d''entrée'!$C$333+'1 Données d''entrée'!$C$334+1+$B111,($G$104/'1 Données d''entrée'!$C$333),0))","v":0},{"$f":"IF(Q$54<'1 Données d''entrée'!$C$334+1+$B111,0,IF(Q$54<'1 Données d''entrée'!$C$333+'1 Données d''entrée'!$C$334+1+$B111,($G$104/'1 Données d''entrée'!$C$333),0))","v":0},{"$f":"IF(R$54<'1 Données d''entrée'!$C$334+1+$B111,0,IF(R$54<'1 Données d''entrée'!$C$333+'1 Données d''entrée'!$C$334+1+$B111,($G$104/'1 Données d''entrée'!$C$333),0))","v":0},{"$f":"IF(S$54<'1 Données d''entrée'!$C$334+1+$B111,0,IF(S$54<'1 Données d''entrée'!$C$333+'1 Données d''entrée'!$C$334+1+$B111,($G$104/'1 Données d''entrée'!$C$333),0))","v":0},{"$f":"IF(T$54<'1 Données d''entrée'!$C$334+1+$B111,0,IF(T$54<'1 Données d''entrée'!$C$333+'1 Données d''entrée'!$C$334+1+$B111,($G$104/'1 Données d''entrée'!$C$333),0))","v":0},{"$f":"IF(U$54<'1 Données d''entrée'!$C$334+1+$B111,0,IF(U$54<'1 Données d''entrée'!$C$333+'1 Données d''entrée'!$C$334+1+$B111,($G$104/'1 Données d''entrée'!$C$333),0))","v":0},{"$f":"IF(V$54<'1 Données d''entrée'!$C$334+1+$B111,0,IF(V$54<'1 Données d''entrée'!$C$333+'1 Données d''entrée'!$C$334+1+$B111,($G$104/'1 Données d''entrée'!$C$333),0))","v":0}]
[null,6,{"$f":"IF(C$54<'1 Données d''entrée'!$C$334+1+$B112,0,IF(C$54<'1 Données d''entrée'!$C$333+'1 Données d''entrée'!$C$334+1+$B112,($H$104/'1 Données d''entrée'!$C$333),0))","v":0},{"$f":"IF(D$54<'1 Données d''entrée'!$C$334+1+$B112,0,IF(D$54<'1 Données d''entrée'!$C$333+'1 Données d''entrée'!$C$334+1+$B112,($H$104/'1 Données d''entrée'!$C$333),0))","v":0},{"$f":"IF(E$54<'1 Données d''entrée'!$C$334+1+$B112,0,IF(E$54<'1 Données d''entrée'!$C$333+'1 Données d''entrée'!$C$334+1+$B112,($H$104/'1 Données d''entrée'!$C$333),0))","v":0},{"$f":"IF(F$54<'1 Données d''entrée'!$C$334+1+$B112,0,IF(F$54<'1 Données d''entrée'!$C$333+'1 Données d''entrée'!$C$334+1+$B112,($H$104/'1 Données d''entrée'!$C$333),0))","v":0},{"$f":"IF(G$54<'1 Données d''entrée'!$C$334+1+$B112,0,IF(G$54<'1 Données d''entrée'!$C$333+'1 Données d''entrée'!$C$334+1+$B112,($H$104/'1 Données d''entrée'!$C$333),0))","v":0},{"$f":"IF(H$54<'1 Données d''entrée'!$C$334+1+$B112,0,IF(H$54<'1 Données d''entrée'!$C$333+'1 Données d''entrée'!$C$334+1+$B112,($H$104/'1 Données d''entrée'!$C$333),0))","v":0},{"$f":"IF(I$54<'1 Données d''entrée'!$C$334+1+$B112,0,IF(I$54<'1 Données d''entrée'!$C$333+'1 Données d''entrée'!$C$334+1+$B112,($H$104/'1 Données d''entrée'!$C$333),0))","v":0},{"$f":"IF(J$54<'1 Données d''entrée'!$C$334+1+$B112,0,IF(J$54<'1 Données d''entrée'!$C$333+'1 Données d''entrée'!$C$334+1+$B112,($H$104/'1 Données d''entrée'!$C$333),0))","v":0},{"$f":"IF(K$54<'1 Données d''entrée'!$C$334+1+$B112,0,IF(K$54<'1 Données d''entrée'!$C$333+'1 Données d''entrée'!$C$334+1+$B112,($H$104/'1 Données d''entrée'!$C$333),0))","v":0},{"$f":"IF(L$54<'1 Données d''entrée'!$C$334+1+$B112,0,IF(L$54<'1 Données d''entrée'!$C$333+'1 Données d''entrée'!$C$334+1+$B112,($H$104/'1 Données d''entrée'!$C$333),0))","v":0},{"$f":"IF(M$54<'1 Données d''entrée'!$C$334+1+$B112,0,IF(M$54<'1 Données d''entrée'!$C$333+'1 Données d''entrée'!$C$334+1+$B112,($H$104/'1 Données d''entrée'!$C$333),0))","v":0},{"$f":"IF(N$54<'1 Données d''entrée'!$C$334+1+$B112,0,IF(N$54<'1 Données d''entrée'!$C$333+'1 Données d''entrée'!$C$334+1+$B112,($H$104/'1 Données d''entrée'!$C$333),0))","v":0},{"$f":"IF(O$54<'1 Données d''entrée'!$C$334+1+$B112,0,IF(O$54<'1 Données d''entrée'!$C$333+'1 Données d''entrée'!$C$334+1+$B112,($H$104/'1 Données d''entrée'!$C$333),0))","v":0},{"$f":"IF(P$54<'1 Données d''entrée'!$C$334+1+$B112,0,IF(P$54<'1 Données d''entrée'!$C$333+'1 Données d''entrée'!$C$334+1+$B112,($H$104/'1 Données d''entrée'!$C$333),0))","v":0},{"$f":"IF(Q$54<'1 Données d''entrée'!$C$334+1+$B112,0,IF(Q$54<'1 Données d''entrée'!$C$333+'1 Données d''entrée'!$C$334+1+$B112,($H$104/'1 Données d''entrée'!$C$333),0))","v":0},{"$f":"IF(R$54<'1 Données d''entrée'!$C$334+1+$B112,0,IF(R$54<'1 Données d''entrée'!$C$333+'1 Données d''entrée'!$C$334+1+$B112,($H$104/'1 Données d''entrée'!$C$333),0))","v":0},{"$f":"IF(S$54<'1 Données d''entrée'!$C$334+1+$B112,0,IF(S$54<'1 Données d''entrée'!$C$333+'1 Données d''entrée'!$C$334+1+$B112,($H$104/'1 Données d''entrée'!$C$333),0))","v":0},{"$f":"IF(T$54<'1 Données d''entrée'!$C$334+1+$B112,0,IF(T$54<'1 Données d''entrée'!$C$333+'1 Données d''entrée'!$C$334+1+$B112,($H$104/'1 Données d''entrée'!$C$333),0))","v":0},{"$f":"IF(U$54<'1 Données d''entrée'!$C$334+1+$B112,0,IF(U$54<'1 Données d''entrée'!$C$333+'1 Données d''entrée'!$C$334+1+$B112,($H$104/'1 Données d''entrée'!$C$333),0))","v":0},{"$f":"IF(V$54<'1 Données d''entrée'!$C$334+1+$B112,0,IF(V$54<'1 Données d''entrée'!$C$333+'1 Données d''entrée'!$C$334+1+$B112,($H$104/'1 Données d''entrée'!$C$333),0))","v":0}]
[null,7,{"$f":"IF(C$54<'1 Données d''entrée'!$C$334+1+$B113,0,IF(C$54<'1 Données d''entrée'!$C$333+'1 Données d''entrée'!$C$334+1+$B113,($I$104/'1 Données d''entrée'!$C$333),0))","v":0},{"$f":"IF(D$54<'1 Données d''entrée'!$C$334+1+$B113,0,IF(D$54<'1 Données d''entrée'!$C$333+'1 Données d''entrée'!$C$334+1+$B113,($I$104/'1 Données d''entrée'!$C$333),0))","v":0},{"$f":"IF(E$54<'1 Données d''entrée'!$C$334+1+$B113,0,IF(E$54<'1 Données d''entrée'!$C$333+'1 Données d''entrée'!$C$334+1+$B113,($I$104/'1 Données d''entrée'!$C$333),0))","v":0},{"$f":"IF(F$54<'1 Données d''entrée'!$C$334+1+$B113,0,IF(F$54<'1 Données d''entrée'!$C$333+'1 Données d''entrée'!$C$334+1+$B113,($I$104/'1 Données d''entrée'!$C$333),0))","v":0},{"$f":"IF(G$54<'1 Données d''entrée'!$C$334+1+$B113,0,IF(G$54<'1 Données d''entrée'!$C$333+'1 Données d''entrée'!$C$334+1+$B113,($I$104/'1 Données d''entrée'!$C$333),0))","v":0},{"$f":"IF(H$54<'1 Données d''entrée'!$C$334+1+$B113,0,IF(H$54<'1 Données d''entrée'!$C$333+'1 Données d''entrée'!$C$334+1+$B113,($I$104/'1 Données d''entrée'!$C$333),0))","v":0},{"$f":"IF(I$54<'1 Données d''entrée'!$C$334+1+$B113,0,IF(I$54<'1 Données d''entrée'!$C$333+'1 Données d''entrée'!$C$334+1+$B113,($I$104/'1 Données d''entrée'!$C$333),0))","v":0},{"$f":"IF(J$54<'1 Données d''entrée'!$C$334+1+$B113,0,IF(J$54<'1 Données d''entrée'!$C$333+'1 Données d''entrée'!$C$334+1+$B113,($I$104/'1 Données d''entrée'!$C$333),0))","v":0},{"$f":"IF(K$54<'1 Données d''entrée'!$C$334+1+$B113,0,IF(K$54<'1 Données d''entrée'!$C$333+'1 Données d''entrée'!$C$334+1+$B113,($I$104/'1 Données d''entrée'!$C$333),0))","v":0},{"$f":"IF(L$54<'1 Données d''entrée'!$C$334+1+$B113,0,IF(L$54<'1 Données d''entrée'!$C$333+'1 Données d''entrée'!$C$334+1+$B113,($I$104/'1 Données d''entrée'!$C$333),0))","v":0},{"$f":"IF(M$54<'1 Données d''entrée'!$C$334+1+$B113,0,IF(M$54<'1 Données d''entrée'!$C$333+'1 Données d''entrée'!$C$334+1+$B113,($I$104/'1 Données d''entrée'!$C$333),0))","v":0},{"$f":"IF(N$54<'1 Données d''entrée'!$C$334+1+$B113,0,IF(N$54<'1 Données d''entrée'!$C$333+'1 Données d''entrée'!$C$334+1+$B113,($I$104/'1 Données d''entrée'!$C$333),0))","v":0},{"$f":"IF(O$54<'1 Données d''entrée'!$C$334+1+$B113,0,IF(O$54<'1 Données d''entrée'!$C$333+'1 Données d''entrée'!$C$334+1+$B113,($I$104/'1 Données d''entrée'!$C$333),0))","v":0},{"$f":"IF(P$54<'1 Données d''entrée'!$C$334+1+$B113,0,IF(P$54<'1 Données d''entrée'!$C$333+'1 Données d''entrée'!$C$334+1+$B113,($I$104/'1 Données d''entrée'!$C$333),0))","v":0},{"$f":"IF(Q$54<'1 Données d''entrée'!$C$334+1+$B113,0,IF(Q$54<'1 Données d''entrée'!$C$333+'1 Données d''entrée'!$C$334+1+$B113,($I$104/'1 Données d''entrée'!$C$333),0))","v":0},{"$f":"IF(R$54<'1 Données d''entrée'!$C$334+1+$B113,0,IF(R$54<'1 Données d''entrée'!$C$333+'1 Données d''entrée'!$C$334+1+$B113,($I$104/'1 Données d''entrée'!$C$333),0))","v":0},{"$f":"IF(S$54<'1 Données d''entrée'!$C$334+1+$B113,0,IF(S$54<'1 Données d''entrée'!$C$333+'1 Données d''entrée'!$C$334+1+$B113,($I$104/'1 Données d''entrée'!$C$333),0))","v":0},{"$f":"IF(T$54<'1 Données d''entrée'!$C$334+1+$B113,0,IF(T$54<'1 Données d''entrée'!$C$333+'1 Données d''entrée'!$C$334+1+$B113,($I$104/'1 Données d''entrée'!$C$333),0))","v":0},{"$f":"IF(U$54<'1 Données d''entrée'!$C$334+1+$B113,0,IF(U$54<'1 Données d''entrée'!$C$333+'1 Données d''entrée'!$C$334+1+$B113,($I$104/'1 Données d''entrée'!$C$333),0))","v":0},{"$f":"IF(V$54<'1 Données d''entrée'!$C$334+1+$B113,0,IF(V$54<'1 Données d''entrée'!$C$333+'1 Données d''entrée'!$C$334+1+$B113,($I$104/'1 Données d''entrée'!$C$333),0))","v":0}]
[null,8,{"$f":"IF(C$54<'1 Données d''entrée'!$C$334+1+$B114,0,IF(C$54<'1 Données d''entrée'!$C$333+'1 Données d''entrée'!$C$334+1+$B114,($J$104/'1 Données d''entrée'!$C$333),0))","v":0},{"$f":"IF(D$54<'1 Données d''entrée'!$C$334+1+$B114,0,IF(D$54<'1 Données d''entrée'!$C$333+'1 Données d''entrée'!$C$334+1+$B114,($J$104/'1 Données d''entrée'!$C$333),0))","v":0},{"$f":"IF(E$54<'1 Données d''entrée'!$C$334+1+$B114,0,IF(E$54<'1 Données d''entrée'!$C$333+'1 Données d''entrée'!$C$334+1+$B114,($J$104/'1 Données d''entrée'!$C$333),0))","v":0},{"$f":"IF(F$54<'1 Données d''entrée'!$C$334+1+$B114,0,IF(F$54<'1 Données d''entrée'!$C$333+'1 Données d''entrée'!$C$334+1+$B114,($J$104/'1 Données d''entrée'!$C$333),0))","v":0},{"$f":"IF(G$54<'1 Données d''entrée'!$C$334+1+$B114,0,IF(G$54<'1 Données d''entrée'!$C$333+'1 Données d''entrée'!$C$334+1+$B114,($J$104/'1 Données d''entrée'!$C$333),0))","v":0},{"$f":"IF(H$54<'1 Données d''entrée'!$C$334+1+$B114,0,IF(H$54<'1 Données d''entrée'!$C$333+'1 Données d''entrée'!$C$334+1+$B114,($J$104/'1 Données d''entrée'!$C$333),0))","v":0},{"$f":"IF(I$54<'1 Données d''entrée'!$C$334+1+$B114,0,IF(I$54<'1 Données d''entrée'!$C$333+'1 Données d''entrée'!$C$334+1+$B114,($J$104/'1 Données d''entrée'!$C$333),0))","v":0},{"$f":"IF(J$54<'1 Données d''entrée'!$C$334+1+$B114,0,IF(J$54<'1 Données d''entrée'!$C$333+'1 Données d''entrée'!$C$334+1+$B114,($J$104/'1 Données d''entrée'!$C$333),0))","v":0},{"$f":"IF(K$54<'1 Données d''entrée'!$C$334+1+$B114,0,IF(K$54<'1 Données d''entrée'!$C$333+'1 Données d''entrée'!$C$334+1+$B114,($J$104/'1 Données d''entrée'!$C$333),0))","v":0},{"$f":"IF(L$54<'1 Données d''entrée'!$C$334+1+$B114,0,IF(L$54<'1 Données d''entrée'!$C$333+'1 Données d''entrée'!$C$334+1+$B114,($J$104/'1 Données d''entrée'!$C$333),0))","v":0},{"$f":"IF(M$54<'1 Données d''entrée'!$C$334+1+$B114,0,IF(M$54<'1 Données d''entrée'!$C$333+'1 Données d''entrée'!$C$334+1+$B114,($J$104/'1 Données d''entrée'!$C$333),0))","v":0},{"$f":"IF(N$54<'1 Données d''entrée'!$C$334+1+$B114,0,IF(N$54<'1 Données d''entrée'!$C$333+'1 Données d''entrée'!$C$334+1+$B114,($J$104/'1 Données d''entrée'!$C$333),0))","v":0},{"$f":"IF(O$54<'1 Données d''entrée'!$C$334+1+$B114,0,IF(O$54<'1 Données d''entrée'!$C$333+'1 Données d''entrée'!$C$334+1+$B114,($J$104/'1 Données d''entrée'!$C$333),0))","v":0},{"$f":"IF(P$54<'1 Données d''entrée'!$C$334+1+$B114,0,IF(P$54<'1 Données d''entrée'!$C$333+'1 Données d''entrée'!$C$334+1+$B114,($J$104/'1 Données d''entrée'!$C$333),0))","v":0},{"$f":"IF(Q$54<'1 Données d''entrée'!$C$334+1+$B114,0,IF(Q$54<'1 Données d''entrée'!$C$333+'1 Données d''entrée'!$C$334+1+$B114,($J$104/'1 Données d''entrée'!$C$333),0))","v":0},{"$f":"IF(R$54<'1 Données d''entrée'!$C$334+1+$B114,0,IF(R$54<'1 Données d''entrée'!$C$333+'1 Données d''entrée'!$C$334+1+$B114,($J$104/'1 Données d''entrée'!$C$333),0))","v":0},{"$f":"IF(S$54<'1 Données d''entrée'!$C$334+1+$B114,0,IF(S$54<'1 Données d''entrée'!$C$333+'1 Données d''entrée'!$C$334+1+$B114,($J$104/'1 Données d''entrée'!$C$333),0))","v":0},{"$f":"IF(T$54<'1 Données d''entrée'!$C$334+1+$B114,0,IF(T$54<'1 Données d''entrée'!$C$333+'1 Données d''entrée'!$C$334+1+$B114,($J$104/'1 Données d''entrée'!$C$333),0))","v":0},{"$f":"IF(U$54<'1 Données d''entrée'!$C$334+1+$B114,0,IF(U$54<'1 Données d''entrée'!$C$333+'1 Données d''entrée'!$C$334+1+$B114,($J$104/'1 Données d''entrée'!$C$333),0))","v":0},{"$f":"IF(V$54<'1 Données d''entrée'!$C$334+1+$B114,0,IF(V$54<'1 Données d''entrée'!$C$333+'1 Données d''entrée'!$C$334+1+$B114,($J$104/'1 Données d''entrée'!$C$333),0))","v":0}]
[null,9,{"$f":"IF(C$54<'1 Données d''entrée'!$C$334+1+$B115,0,IF(C$54<'1 Données d''entrée'!$C$333+'1 Données d''entrée'!$C$334+1+$B115,($K$104/'1 Données d''entrée'!$C$333),0))","v":0},{"$f":"IF(D$54<'1 Données d''entrée'!$C$334+1+$B115,0,IF(D$54<'1 Données d''entrée'!$C$333+'1 Données d''entrée'!$C$334+1+$B115,($K$104/'1 Données d''entrée'!$C$333),0))","v":0},{"$f":"IF(E$54<'1 Données d''entrée'!$C$334+1+$B115,0,IF(E$54<'1 Données d''entrée'!$C$333+'1 Données d''entrée'!$C$334+1+$B115,($K$104/'1 Données d''entrée'!$C$333),0))","v":0},{"$f":"IF(F$54<'1 Données d''entrée'!$C$334+1+$B115,0,IF(F$54<'1 Données d''entrée'!$C$333+'1 Données d''entrée'!$C$334+1+$B115,($K$104/'1 Données d''entrée'!$C$333),0))","v":0},{"$f":"IF(G$54<'1 Données d''entrée'!$C$334+1+$B115,0,IF(G$54<'1 Données d''entrée'!$C$333+'1 Données d''entrée'!$C$334+1+$B115,($K$104/'1 Données d''entrée'!$C$333),0))","v":0},{"$f":"IF(H$54<'1 Données d''entrée'!$C$334+1+$B115,0,IF(H$54<'1 Données d''entrée'!$C$333+'1 Données d''entrée'!$C$334+1+$B115,($K$104/'1 Données d''entrée'!$C$333),0))","v":0},{"$f":"IF(I$54<'1 Données d''entrée'!$C$334+1+$B115,0,IF(I$54<'1 Données d''entrée'!$C$333+'1 Données d''entrée'!$C$334+1+$B115,($K$104/'1 Données d''entrée'!$C$333),0))","v":0},{"$f":"IF(J$54<'1 Données d''entrée'!$C$334+1+$B115,0,IF(J$54<'1 Données d''entrée'!$C$333+'1 Données d''entrée'!$C$334+1+$B115,($K$104/'1 Données d''entrée'!$C$333),0))","v":0},{"$f":"IF(K$54<'1 Données d''entrée'!$C$334+1+$B115,0,IF(K$54<'1 Données d''entrée'!$C$333+'1 Données d''entrée'!$C$334+1+$B115,($K$104/'1 Données d''entrée'!$C$333),0))","v":0},{"$f":"IF(L$54<'1 Données d''entrée'!$C$334+1+$B115,0,IF(L$54<'1 Données d''entrée'!$C$333+'1 Données d''entrée'!$C$334+1+$B115,($K$104/'1 Données d''entrée'!$C$333),0))","v":0},{"$f":"IF(M$54<'1 Données d''entrée'!$C$334+1+$B115,0,IF(M$54<'1 Données d''entrée'!$C$333+'1 Données d''entrée'!$C$334+1+$B115,($K$104/'1 Données d''entrée'!$C$333),0))","v":0},{"$f":"IF(N$54<'1 Données d''entrée'!$C$334+1+$B115,0,IF(N$54<'1 Données d''entrée'!$C$333+'1 Données d''entrée'!$C$334+1+$B115,($K$104/'1 Données d''entrée'!$C$333),0))","v":0},{"$f":"IF(O$54<'1 Données d''entrée'!$C$334+1+$B115,0,IF(O$54<'1 Données d''entrée'!$C$333+'1 Données d''entrée'!$C$334+1+$B115,($K$104/'1 Données d''entrée'!$C$333),0))","v":0},{"$f":"IF(P$54<'1 Données d''entrée'!$C$334+1+$B115,0,IF(P$54<'1 Données d''entrée'!$C$333+'1 Données d''entrée'!$C$334+1+$B115,($K$104/'1 Données d''entrée'!$C$333),0))","v":0},{"$f":"IF(Q$54<'1 Données d''entrée'!$C$334+1+$B115,0,IF(Q$54<'1 Données d''entrée'!$C$333+'1 Données d''entrée'!$C$334+1+$B115,($K$104/'1 Données d''entrée'!$C$333),0))","v":0},{"$f":"IF(R$54<'1 Données d''entrée'!$C$334+1+$B115,0,IF(R$54<'1 Données d''entrée'!$C$333+'1 Données d''entrée'!$C$334+1+$B115,($K$104/'1 Données d''entrée'!$C$333),0))","v":0},{"$f":"IF(S$54<'1 Données d''entrée'!$C$334+1+$B115,0,IF(S$54<'1 Données d''entrée'!$C$333+'1 Données d''entrée'!$C$334+1+$B115,($K$104/'1 Données d''entrée'!$C$333),0))","v":0},{"$f":"IF(T$54<'1 Données d''entrée'!$C$334+1+$B115,0,IF(T$54<'1 Données d''entrée'!$C$333+'1 Données d''entrée'!$C$334+1+$B115,($K$104/'1 Données d''entrée'!$C$333),0))","v":0},{"$f":"IF(U$54<'1 Données d''entrée'!$C$334+1+$B115,0,IF(U$54<'1 Données d''entrée'!$C$333+'1 Données d''entrée'!$C$334+1+$B115,($K$104/'1 Données d''entrée'!$C$333),0))","v":0},{"$f":"IF(V$54<'1 Données d''entrée'!$C$334+1+$B115,0,IF(V$54<'1 Données d''entrée'!$C$333+'1 Données d''entrée'!$C$334+1+$B115,($K$104/'1 Données d''entrée'!$C$333),0))","v":0}]
[null,10,{"$f":"IF(C$54<'1 Données d''entrée'!$C$334+1+$B116,0,IF(C$54<'1 Données d''entrée'!$C$333+'1 Données d''entrée'!$C$334+1+$B116,($L$104/'1 Données d''entrée'!$C$333),0))","v":0},{"$f":"IF(D$54<'1 Données d''entrée'!$C$334+1+$B116,0,IF(D$54<'1 Données d''entrée'!$C$333+'1 Données d''entrée'!$C$334+1+$B116,($L$104/'1 Données d''entrée'!$C$333),0))","v":0},{"$f":"IF(E$54<'1 Données d''entrée'!$C$334+1+$B116,0,IF(E$54<'1 Données d''entrée'!$C$333+'1 Données d''entrée'!$C$334+1+$B116,($L$104/'1 Données d''entrée'!$C$333),0))","v":0},{"$f":"IF(F$54<'1 Données d''entrée'!$C$334+1+$B116,0,IF(F$54<'1 Données d''entrée'!$C$333+'1 Données d''entrée'!$C$334+1+$B116,($L$104/'1 Données d''entrée'!$C$333),0))","v":0},{"$f":"IF(G$54<'1 Données d''entrée'!$C$334+1+$B116,0,IF(G$54<'1 Données d''entrée'!$C$333+'1 Données d''entrée'!$C$334+1+$B116,($L$104/'1 Données d''entrée'!$C$333),0))","v":0},{"$f":"IF(H$54<'1 Données d''entrée'!$C$334+1+$B116,0,IF(H$54<'1 Données d''entrée'!$C$333+'1 Données d''entrée'!$C$334+1+$B116,($L$104/'1 Données d''entrée'!$C$333),0))","v":0},{"$f":"IF(I$54<'1 Données d''entrée'!$C$334+1+$B116,0,IF(I$54<'1 Données d''entrée'!$C$333+'1 Données d''entrée'!$C$334+1+$B116,($L$104/'1 Données d''entrée'!$C$333),0))","v":0},{"$f":"IF(J$54<'1 Données d''entrée'!$C$334+1+$B116,0,IF(J$54<'1 Données d''entrée'!$C$333+'1 Données d''entrée'!$C$334+1+$B116,($L$104/'1 Données d''entrée'!$C$333),0))","v":0},{"$f":"IF(K$54<'1 Données d''entrée'!$C$334+1+$B116,0,IF(K$54<'1 Données d''entrée'!$C$333+'1 Données d''entrée'!$C$334+1+$B116,($L$104/'1 Données d''entrée'!$C$333),0))","v":0},{"$f":"IF(L$54<'1 Données d''entrée'!$C$334+1+$B116,0,IF(L$54<'1 Données d''entrée'!$C$333+'1 Données d''entrée'!$C$334+1+$B116,($L$104/'1 Données d''entrée'!$C$333),0))","v":0},{"$f":"IF(M$54<'1 Données d''entrée'!$C$334+1+$B116,0,IF(M$54<'1 Données d''entrée'!$C$333+'1 Données d''entrée'!$C$334+1+$B116,($L$104/'1 Données d''entrée'!$C$333),0))","v":0},{"$f":"IF(N$54<'1 Données d''entrée'!$C$334+1+$B116,0,IF(N$54<'1 Données d''entrée'!$C$333+'1 Données d''entrée'!$C$334+1+$B116,($L$104/'1 Données d''entrée'!$C$333),0))","v":0},{"$f":"IF(O$54<'1 Données d''entrée'!$C$334+1+$B116,0,IF(O$54<'1 Données d''entrée'!$C$333+'1 Données d''entrée'!$C$334+1+$B116,($L$104/'1 Données d''entrée'!$C$333),0))","v":0},{"$f":"IF(P$54<'1 Données d''entrée'!$C$334+1+$B116,0,IF(P$54<'1 Données d''entrée'!$C$333+'1 Données d''entrée'!$C$334+1+$B116,($L$104/'1 Données d''entrée'!$C$333),0))","v":0},{"$f":"IF(Q$54<'1 Données d''entrée'!$C$334+1+$B116,0,IF(Q$54<'1 Données d''entrée'!$C$333+'1 Données d''entrée'!$C$334+1+$B116,($L$104/'1 Données d''entrée'!$C$333),0))","v":0},{"$f":"IF(R$54<'1 Données d''entrée'!$C$334+1+$B116,0,IF(R$54<'1 Données d''entrée'!$C$333+'1 Données d''entrée'!$C$334+1+$B116,($L$104/'1 Données d''entrée'!$C$333),0))","v":0},{"$f":"IF(S$54<'1 Données d''entrée'!$C$334+1+$B116,0,IF(S$54<'1 Données d''entrée'!$C$333+'1 Données d''entrée'!$C$334+1+$B116,($L$104/'1 Données d''entrée'!$C$333),0))","v":0},{"$f":"IF(T$54<'1 Données d''entrée'!$C$334+1+$B116,0,IF(T$54<'1 Données d''entrée'!$C$333+'1 Données d''entrée'!$C$334+1+$B116,($L$104/'1 Données d''entrée'!$C$333),0))","v":0},{"$f":"IF(U$54<'1 Données d''entrée'!$C$334+1+$B116,0,IF(U$54<'1 Données d''entrée'!$C$333+'1 Données d''entrée'!$C$334+1+$B116,($L$104/'1 Données d''entrée'!$C$333),0))","v":0},{"$f":"IF(V$54<'1 Données d''entrée'!$C$334+1+$B116,0,IF(V$54<'1 Données d''entrée'!$C$333+'1 Données d''entrée'!$C$334+1+$B116,($L$104/'1 Données d''entrée'!$C$333),0))","v":0}]
[null,"Période de prêt nouveau"]
["Paiement d'intérêts",0,0,0,0,0,0,0,0,0,0,0,0,0,0,0,0,0,0,0,0,0]
["Paiement d'intêrets",1,0,{"$f":"IF(C$54<1+$B106,0,IF(C$54<'1 Données d''entrée'!$C$334+'1 Données d''entrée'!$C$333+1+$B106,'1 Données d''entrée'!$C$332*($C$104-SUM($C107:C107)),0))","v":0},{"$f":"IF(D$54<1+$B106,0,IF(D$54<'1 Données d''entrée'!$C$334+'1 Données d''entrée'!$C$333+1+$B106,'1 Données d''entrée'!$C$332*($C$104-SUM($C107:D107)),0))","v":0},{"$f":"IF(E$54<1+$B106,0,IF(E$54<'1 Données d''entrée'!$C$334+'1 Données d''entrée'!$C$333+1+$B106,'1 Données d''entrée'!$C$332*($C$104-SUM($C107:E107)),0))","v":0},{"$f":"IF(F$54<1+$B106,0,IF(F$54<'1 Données d''entrée'!$C$334+'1 Données d''entrée'!$C$333+1+$B106,'1 Données d''entrée'!$C$332*($C$104-SUM($C107:F107)),0))","v":0},{"$f":"IF(G$54<1+$B106,0,IF(G$54<'1 Données d''entrée'!$C$334+'1 Données d''entrée'!$C$333+1+$B106,'1 Données d''entrée'!$C$332*($C$104-SUM($C107:G107)),0))","v":0},{"$f":"IF(H$54<1+$B106,0,IF(H$54<'1 Données d''entrée'!$C$334+'1 Données d''entrée'!$C$333+1+$B106,'1 Données d''entrée'!$C$332*($C$104-SUM($C107:H107)),0))","v":0},{"$f":"IF(I$54<1+$B106,0,IF(I$54<'1 Données d''entrée'!$C$334+'1 Données d''entrée'!$C$333+1+$B106,'1 Données d''entrée'!$C$332*($C$104-SUM($C107:I107)),0))","v":0},{"$f":"IF(J$54<1+$B106,0,IF(J$54<'1 Données d''entrée'!$C$334+'1 Données d''entrée'!$C$333+1+$B106,'1 Données d''entrée'!$C$332*($C$104-SUM($C107:J107)),0))","v":0},{"$f":"IF(K$54<1+$B106,0,IF(K$54<'1 Données d''entrée'!$C$334+'1 Données d''entrée'!$C$333+1+$B106,'1 Données d''entrée'!$C$332*($C$104-SUM($C107:K107)),0))","v":0},{"$f":"IF(L$54<1+$B106,0,IF(L$54<'1 Données d''entrée'!$C$334+'1 Données d''entrée'!$C$333+1+$B106,'1 Données d''entrée'!$C$332*($C$104-SUM($C107:L107)),0))","v":0},{"$f":"IF(M$54<1+$B106,0,IF(M$54<'1 Données d''entrée'!$C$334+'1 Données d''entrée'!$C$333+1+$B106,'1 Données d''entrée'!$C$332*($C$104-SUM($C107:M107)),0))","v":0},{"$f":"IF(N$54<1+$B106,0,IF(N$54<'1 Données d''entrée'!$C$334+'1 Données d''entrée'!$C$333+1+$B106,'1 Données d''entrée'!$C$332*($C$104-SUM($C107:N107)),0))","v":0},{"$f":"IF(O$54<1+$B106,0,IF(O$54<'1 Données d''entrée'!$C$334+'1 Données d''entrée'!$C$333+1+$B106,'1 Données d''entrée'!$C$332*($C$104-SUM($C107:O107)),0))","v":0},{"$f":"IF(P$54<1+$B106,0,IF(P$54<'1 Données d''entrée'!$C$334+'1 Données d''entrée'!$C$333+1+$B106,'1 Données d''entrée'!$C$332*($C$104-SUM($C107:P107)),0))","v":0},{"$f":"IF(Q$54<1+$B106,0,IF(Q$54<'1 Données d''entrée'!$C$334+'1 Données d''entrée'!$C$333+1+$B106,'1 Données d''entrée'!$C$332*($C$104-SUM($C107:Q107)),0))","v":0},{"$f":"IF(R$54<1+$B106,0,IF(R$54<'1 Données d''entrée'!$C$334+'1 Données d''entrée'!$C$333+1+$B106,'1 Données d''entrée'!$C$332*($C$104-SUM($C107:R107)),0))","v":0},{"$f":"IF(S$54<1+$B106,0,IF(S$54<'1 Données d''entrée'!$C$334+'1 Données d''entrée'!$C$333+1+$B106,'1 Données d''entrée'!$C$332*($C$104-SUM($C107:S107)),0))","v":0},{"$f":"IF(T$54<1+$B106,0,IF(T$54<'1 Données d''entrée'!$C$334+'1 Données d''entrée'!$C$333+1+$B106,'1 Données d''entrée'!$C$332*($C$104-SUM($C107:T107)),0))","v":0},{"$f":"IF(U$54<1+$B106,0,IF(U$54<'1 Données d''entrée'!$C$334+'1 Données d''entrée'!$C$333+1+$B106,'1 Données d''entrée'!$C$332*($C$104-SUM($C107:U107)),0))","v":0}]
["Paiement d'intêrets",2,0,{"$f":"IF(C$54<1+$B107,0,IF(C$54<'1 Données d''entrée'!$C$334+'1 Données d''entrée'!$C$333+1+$B107,'1 Données d''entrée'!$C$332*($D$104-SUM($C108:C108)),0))","v":0},{"$f":"IF(D$54<1+$B107,0,IF(D$54<'1 Données d''entrée'!$C$334+'1 Données d''entrée'!$C$333+1+$B107,'1 Données d''entrée'!$C$332*($D$104-SUM($C108:D108)),0))","v":0},{"$f":"IF(E$54<1+$B107,0,IF(E$54<'1 Données d''entrée'!$C$334+'1 Données d''entrée'!$C$333+1+$B107,'1 Données d''entrée'!$C$332*($D$104-SUM($C108:E108)),0))","v":0},{"$f":"IF(F$54<1+$B107,0,IF(F$54<'1 Données d''entrée'!$C$334+'1 Données d''entrée'!$C$333+1+$B107,'1 Données d''entrée'!$C$332*($D$104-SUM($C108:F108)),0))","v":0},{"$f":"IF(G$54<1+$B107,0,IF(G$54<'1 Données d''entrée'!$C$334+'1 Données d''entrée'!$C$333+1+$B107,'1 Données d''entrée'!$C$332*($D$104-SUM($C108:G108)),0))","v":0},{"$f":"IF(H$54<1+$B107,0,IF(H$54<'1 Données d''entrée'!$C$334+'1 Données d''entrée'!$C$333+1+$B107,'1 Données d''entrée'!$C$332*($D$104-SUM($C108:H108)),0))","v":0},{"$f":"IF(I$54<1+$B107,0,IF(I$54<'1 Données d''entrée'!$C$334+'1 Données d''entrée'!$C$333+1+$B107,'1 Données d''entrée'!$C$332*($D$104-SUM($C108:I108)),0))","v":0},{"$f":"IF(J$54<1+$B107,0,IF(J$54<'1 Données d''entrée'!$C$334+'1 Données d''entrée'!$C$333+1+$B107,'1 Données d''entrée'!$C$332*($D$104-SUM($C108:J108)),0))","v":0},{"$f":"IF(K$54<1+$B107,0,IF(K$54<'1 Données d''entrée'!$C$334+'1 Données d''entrée'!$C$333+1+$B107,'1 Données d''entrée'!$C$332*($D$104-SUM($C108:K108)),0))","v":0},{"$f":"IF(L$54<1+$B107,0,IF(L$54<'1 Données d''entrée'!$C$334+'1 Données d''entrée'!$C$333+1+$B107,'1 Données d''entrée'!$C$332*($D$104-SUM($C108:L108)),0))","v":0},{"$f":"IF(M$54<1+$B107,0,IF(M$54<'1 Données d''entrée'!$C$334+'1 Données d''entrée'!$C$333+1+$B107,'1 Données d''entrée'!$C$332*($D$104-SUM($C108:M108)),0))","v":0},{"$f":"IF(N$54<1+$B107,0,IF(N$54<'1 Données d''entrée'!$C$334+'1 Données d''entrée'!$C$333+1+$B107,'1 Données d''entrée'!$C$332*($D$104-SUM($C108:N108)),0))","v":0},{"$f":"IF(O$54<1+$B107,0,IF(O$54<'1 Données d''entrée'!$C$334+'1 Données d''entrée'!$C$333+1+$B107,'1 Données d''entrée'!$C$332*($D$104-SUM($C108:O108)),0))","v":0},{"$f":"IF(P$54<1+$B107,0,IF(P$54<'1 Données d''entrée'!$C$334+'1 Données d''entrée'!$C$333+1+$B107,'1 Données d''entrée'!$C$332*($D$104-SUM($C108:P108)),0))","v":0},{"$f":"IF(Q$54<1+$B107,0,IF(Q$54<'1 Données d''entrée'!$C$334+'1 Données d''entrée'!$C$333+1+$B107,'1 Données d''entrée'!$C$332*($D$104-SUM($C108:Q108)),0))","v":0},{"$f":"IF(R$54<1+$B107,0,IF(R$54<'1 Données d''entrée'!$C$334+'1 Données d''entrée'!$C$333+1+$B107,'1 Données d''entrée'!$C$332*($D$104-SUM($C108:R108)),0))","v":0},{"$f":"IF(S$54<1+$B107,0,IF(S$54<'1 Données d''entrée'!$C$334+'1 Données d''entrée'!$C$333+1+$B107,'1 Données d''entrée'!$C$332*($D$104-SUM($C108:S108)),0))","v":0},{"$f":"IF(T$54<1+$B107,0,IF(T$54<'1 Données d''entrée'!$C$334+'1 Données d''entrée'!$C$333+1+$B107,'1 Données d''entrée'!$C$332*($D$104-SUM($C108:T108)),0))","v":0},{"$f":"IF(U$54<1+$B107,0,IF(U$54<'1 Données d''entrée'!$C$334+'1 Données d''entrée'!$C$333+1+$B107,'1 Données d''entrée'!$C$332*($D$104-SUM($C108:U108)),0))","v":0}]
["Paiement d'intêrets",3,0,{"$f":"IF(C$54<1+$B108,0,IF(C$54<'1 Données d''entrée'!$C$334+'1 Données d''entrée'!$C$333+1+$B108,'1 Données d''entrée'!$C$332*($E$104-SUM($C109:C109)),0))","v":0},{"$f":"IF(D$54<1+$B108,0,IF(D$54<'1 Données d''entrée'!$C$334+'1 Données d''entrée'!$C$333+1+$B108,'1 Données d''entrée'!$C$332*($E$104-SUM($C109:D109)),0))","v":0},{"$f":"IF(E$54<1+$B108,0,IF(E$54<'1 Données d''entrée'!$C$334+'1 Données d''entrée'!$C$333+1+$B108,'1 Données d''entrée'!$C$332*($E$104-SUM($C109:E109)),0))","v":0},{"$f":"IF(F$54<1+$B108,0,IF(F$54<'1 Données d''entrée'!$C$334+'1 Données d''entrée'!$C$333+1+$B108,'1 Données d''entrée'!$C$332*($E$104-SUM($C109:F109)),0))","v":0},{"$f":"IF(G$54<1+$B108,0,IF(G$54<'1 Données d''entrée'!$C$334+'1 Données d''entrée'!$C$333+1+$B108,'1 Données d''entrée'!$C$332*($E$104-SUM($C109:G109)),0))","v":0},{"$f":"IF(H$54<1+$B108,0,IF(H$54<'1 Données d''entrée'!$C$334+'1 Données d''entrée'!$C$333+1+$B108,'1 Données d''entrée'!$C$332*($E$104-SUM($C109:H109)),0))","v":0},{"$f":"IF(I$54<1+$B108,0,IF(I$54<'1 Données d''entrée'!$C$334+'1 Données d''entrée'!$C$333+1+$B108,'1 Données d''entrée'!$C$332*($E$104-SUM($C109:I109)),0))","v":0},{"$f":"IF(J$54<1+$B108,0,IF(J$54<'1 Données d''entrée'!$C$334+'1 Données d''entrée'!$C$333+1+$B108,'1 Données d''entrée'!$C$332*($E$104-SUM($C109:J109)),0))","v":0},{"$f":"IF(K$54<1+$B108,0,IF(K$54<'1 Données d''entrée'!$C$334+'1 Données d''entrée'!$C$333+1+$B108,'1 Données d''entrée'!$C$332*($E$104-SUM($C109:K109)),0))","v":0},{"$f":"IF(L$54<1+$B108,0,IF(L$54<'1 Données d''entrée'!$C$334+'1 Données d''entrée'!$C$333+1+$B108,'1 Données d''entrée'!$C$332*($E$104-SUM($C109:L109)),0))","v":0},{"$f":"IF(M$54<1+$B108,0,IF(M$54<'1 Données d''entrée'!$C$334+'1 Données d''entrée'!$C$333+1+$B108,'1 Données d''entrée'!$C$332*($E$104-SUM($C109:M109)),0))","v":0},{"$f":"IF(N$54<1+$B108,0,IF(N$54<'1 Données d''entrée'!$C$334+'1 Données d''entrée'!$C$333+1+$B108,'1 Données d''entrée'!$C$332*($E$104-SUM($C109:N109)),0))","v":0},{"$f":"IF(O$54<1+$B108,0,IF(O$54<'1 Données d''entrée'!$C$334+'1 Données d''entrée'!$C$333+1+$B108,'1 Données d''entrée'!$C$332*($E$104-SUM($C109:O109)),0))","v":0},{"$f":"IF(P$54<1+$B108,0,IF(P$54<'1 Données d''entrée'!$C$334+'1 Données d''entrée'!$C$333+1+$B108,'1 Données d''entrée'!$C$332*($E$104-SUM($C109:P109)),0))","v":0},{"$f":"IF(Q$54<1+$B108,0,IF(Q$54<'1 Données d''entrée'!$C$334+'1 Données d''entrée'!$C$333+1+$B108,'1 Données d''entrée'!$C$332*($E$104-SUM($C109:Q109)),0))","v":0},{"$f":"IF(R$54<1+$B108,0,IF(R$54<'1 Données d''entrée'!$C$334+'1 Données d''entrée'!$C$333+1+$B108,'1 Données d''entrée'!$C$332*($E$104-SUM($C109:R109)),0))","v":0},{"$f":"IF(S$54<1+$B108,0,IF(S$54<'1 Données d''entrée'!$C$334+'1 Données d''entrée'!$C$333+1+$B108,'1 Données d''entrée'!$C$332*($E$104-SUM($C109:S109)),0))","v":0},{"$f":"IF(T$54<1+$B108,0,IF(T$54<'1 Données d''entrée'!$C$334+'1 Données d''entrée'!$C$333+1+$B108,'1 Données d''entrée'!$C$332*($E$104-SUM($C109:T109)),0))","v":0},{"$f":"IF(U$54<1+$B108,0,IF(U$54<'1 Données d''entrée'!$C$334+'1 Données d''entrée'!$C$333+1+$B108,'1 Données d''entrée'!$C$332*($E$104-SUM($C109:U109)),0))","v":0}]
["Paiement d'intêrets",4,0,{"$f":"IF(C$54<1+$B109,0,IF(C$54<'1 Données d''entrée'!$C$334+'1 Données d''entrée'!$C$333+1+$B109,'1 Données d''entrée'!$C$332*($F$104-SUM($C110:C110)),0))","v":0},{"$f":"IF(D$54<1+$B109,0,IF(D$54<'1 Données d''entrée'!$C$334+'1 Données d''entrée'!$C$333+1+$B109,'1 Données d''entrée'!$C$332*($F$104-SUM($C110:D110)),0))","v":0},{"$f":"IF(E$54<1+$B109,0,IF(E$54<'1 Données d''entrée'!$C$334+'1 Données d''entrée'!$C$333+1+$B109,'1 Données d''entrée'!$C$332*($F$104-SUM($C110:E110)),0))","v":0},{"$f":"IF(F$54<1+$B109,0,IF(F$54<'1 Données d''entrée'!$C$334+'1 Données d''entrée'!$C$333+1+$B109,'1 Données d''entrée'!$C$332*($F$104-SUM($C110:F110)),0))","v":0},{"$f":"IF(G$54<1+$B109,0,IF(G$54<'1 Données d''entrée'!$C$334+'1 Données d''entrée'!$C$333+1+$B109,'1 Données d''entrée'!$C$332*($F$104-SUM($C110:G110)),0))","v":0},{"$f":"IF(H$54<1+$B109,0,IF(H$54<'1 Données d''entrée'!$C$334+'1 Données d''entrée'!$C$333+1+$B109,'1 Données d''entrée'!$C$332*($F$104-SUM($C110:H110)),0))","v":0},{"$f":"IF(I$54<1+$B109,0,IF(I$54<'1 Données d''entrée'!$C$334+'1 Données d''entrée'!$C$333+1+$B109,'1 Données d''entrée'!$C$332*($F$104-SUM($C110:I110)),0))","v":0},{"$f":"IF(J$54<1+$B109,0,IF(J$54<'1 Données d''entrée'!$C$334+'1 Données d''entrée'!$C$333+1+$B109,'1 Données d''entrée'!$C$332*($F$104-SUM($C110:J110)),0))","v":0},{"$f":"IF(K$54<1+$B109,0,IF(K$54<'1 Données d''entrée'!$C$334+'1 Données d''entrée'!$C$333+1+$B109,'1 Données d''entrée'!$C$332*($F$104-SUM($C110:K110)),0))","v":0},{"$f":"IF(L$54<1+$B109,0,IF(L$54<'1 Données d''entrée'!$C$334+'1 Données d''entrée'!$C$333+1+$B109,'1 Données d''entrée'!$C$332*($F$104-SUM($C110:L110)),0))","v":0},{"$f":"IF(M$54<1+$B109,0,IF(M$54<'1 Données d''entrée'!$C$334+'1 Données d''entrée'!$C$333+1+$B109,'1 Données d''entrée'!$C$332*($F$104-SUM($C110:M110)),0))","v":0},{"$f":"IF(N$54<1+$B109,0,IF(N$54<'1 Données d''entrée'!$C$334+'1 Données d''entrée'!$C$333+1+$B109,'1 Données d''entrée'!$C$332*($F$104-SUM($C110:N110)),0))","v":0},{"$f":"IF(O$54<1+$B109,0,IF(O$54<'1 Données d''entrée'!$C$334+'1 Données d''entrée'!$C$333+1+$B109,'1 Données d''entrée'!$C$332*($F$104-SUM($C110:O110)),0))","v":0},{"$f":"IF(P$54<1+$B109,0,IF(P$54<'1 Données d''entrée'!$C$334+'1 Données d''entrée'!$C$333+1+$B109,'1 Données d''entrée'!$C$332*($F$104-SUM($C110:P110)),0))","v":0},{"$f":"IF(Q$54<1+$B109,0,IF(Q$54<'1 Données d''entrée'!$C$334+'1 Données d''entrée'!$C$333+1+$B109,'1 Données d''entrée'!$C$332*($F$104-SUM($C110:Q110)),0))","v":0},{"$f":"IF(R$54<1+$B109,0,IF(R$54<'1 Données d''entrée'!$C$334+'1 Données d''entrée'!$C$333+1+$B109,'1 Données d''entrée'!$C$332*($F$104-SUM($C110:R110)),0))","v":0},{"$f":"IF(S$54<1+$B109,0,IF(S$54<'1 Données d''entrée'!$C$334+'1 Données d''entrée'!$C$333+1+$B109,'1 Données d''entrée'!$C$332*($F$104-SUM($C110:S110)),0))","v":0},{"$f":"IF(T$54<1+$B109,0,IF(T$54<'1 Données d''entrée'!$C$334+'1 Données d''entrée'!$C$333+1+$B109,'1 Données d''entrée'!$C$332*($F$104-SUM($C110:T110)),0))","v":0},{"$f":"IF(U$54<1+$B109,0,IF(U$54<'1 Données d''entrée'!$C$334+'1 Données d''entrée'!$C$333+1+$B109,'1 Données d''entrée'!$C$332*($F$104-SUM($C110:U110)),0))","v":0}]
["Paiement d'intêrets",5,0,{"$f":"IF(C$54<1+$B110,0,IF(C$54<'1 Données d''entrée'!$C$334+'1 Données d''entrée'!$C$333+1+$B110,'1 Données d''entrée'!$C$332*($G$104-SUM($C111:C111)),0))","v":0},{"$f":"IF(D$54<1+$B110,0,IF(D$54<'1 Données d''entrée'!$C$334+'1 Données d''entrée'!$C$333+1+$B110,'1 Données d''entrée'!$C$332*($G$104-SUM($C111:D111)),0))","v":0},{"$f":"IF(E$54<1+$B110,0,IF(E$54<'1 Données d''entrée'!$C$334+'1 Données d''entrée'!$C$333+1+$B110,'1 Données d''entrée'!$C$332*($G$104-SUM($C111:E111)),0))","v":0},{"$f":"IF(F$54<1+$B110,0,IF(F$54<'1 Données d''entrée'!$C$334+'1 Données d''entrée'!$C$333+1+$B110,'1 Données d''entrée'!$C$332*($G$104-SUM($C111:F111)),0))","v":0},{"$f":"IF(G$54<1+$B110,0,IF(G$54<'1 Données d''entrée'!$C$334+'1 Données d''entrée'!$C$333+1+$B110,'1 Données d''entrée'!$C$332*($G$104-SUM($C111:G111)),0))","v":0},{"$f":"IF(H$54<1+$B110,0,IF(H$54<'1 Données d''entrée'!$C$334+'1 Données d''entrée'!$C$333+1+$B110,'1 Données d''entrée'!$C$332*($G$104-SUM($C111:H111)),0))","v":0},{"$f":"IF(I$54<1+$B110,0,IF(I$54<'1 Données d''entrée'!$C$334+'1 Données d''entrée'!$C$333+1+$B110,'1 Données d''entrée'!$C$332*($G$104-SUM($C111:I111)),0))","v":0},{"$f":"IF(J$54<1+$B110,0,IF(J$54<'1 Données d''entrée'!$C$334+'1 Données d''entrée'!$C$333+1+$B110,'1 Données d''entrée'!$C$332*($G$104-SUM($C111:J111)),0))","v":0},{"$f":"IF(K$54<1+$B110,0,IF(K$54<'1 Données d''entrée'!$C$334+'1 Données d''entrée'!$C$333+1+$B110,'1 Données d''entrée'!$C$332*($G$104-SUM($C111:K111)),0))","v":0},{"$f":"IF(L$54<1+$B110,0,IF(L$54<'1 Données d''entrée'!$C$334+'1 Données d''entrée'!$C$333+1+$B110,'1 Données d''entrée'!$C$332*($G$104-SUM($C111:L111)),0))","v":0},{"$f":"IF(M$54<1+$B110,0,IF(M$54<'1 Données d''entrée'!$C$334+'1 Données d''entrée'!$C$333+1+$B110,'1 Données d''entrée'!$C$332*($G$104-SUM($C111:M111)),0))","v":0},{"$f":"IF(N$54<1+$B110,0,IF(N$54<'1 Données d''entrée'!$C$334+'1 Données d''entrée'!$C$333+1+$B110,'1 Données d''entrée'!$C$332*($G$104-SUM($C111:N111)),0))","v":0},{"$f":"IF(O$54<1+$B110,0,IF(O$54<'1 Données d''entrée'!$C$334+'1 Données d''entrée'!$C$333+1+$B110,'1 Données d''entrée'!$C$332*($G$104-SUM($C111:O111)),0))","v":0},{"$f":"IF(P$54<1+$B110,0,IF(P$54<'1 Données d''entrée'!$C$334+'1 Données d''entrée'!$C$333+1+$B110,'1 Données d''entrée'!$C$332*($G$104-SUM($C111:P111)),0))","v":0},{"$f":"IF(Q$54<1+$B110,0,IF(Q$54<'1 Données d''entrée'!$C$334+'1 Données d''entrée'!$C$333+1+$B110,'1 Données d''entrée'!$C$332*($G$104-SUM($C111:Q111)),0))","v":0},{"$f":"IF(R$54<1+$B110,0,IF(R$54<'1 Données d''entrée'!$C$334+'1 Données d''entrée'!$C$333+1+$B110,'1 Données d''entrée'!$C$332*($G$104-SUM($C111:R111)),0))","v":0},{"$f":"IF(S$54<1+$B110,0,IF(S$54<'1 Données d''entrée'!$C$334+'1 Données d''entrée'!$C$333+1+$B110,'1 Données d''entrée'!$C$332*($G$104-SUM($C111:S111)),0))","v":0},{"$f":"IF(T$54<1+$B110,0,IF(T$54<'1 Données d''entrée'!$C$334+'1 Données d''entrée'!$C$333+1+$B110,'1 Données d''entrée'!$C$332*($G$104-SUM($C111:T111)),0))","v":0},{"$f":"IF(U$54<1+$B110,0,IF(U$54<'1 Données d''entrée'!$C$334+'1 Données d''entrée'!$C$333+1+$B110,'1 Données d''entrée'!$C$332*($G$104-SUM($C111:U111)),0))","v":0}]
["Paiement d'intêrets",6,0,{"$f":"IF(C$54<1+$B111,0,IF(C$54<'1 Données d''entrée'!$C$334+'1 Données d''entrée'!$C$333+1+$B111,'1 Données d''entrée'!$C$332*($H$104-SUM($C112:C112)),0))","v":0},{"$f":"IF(D$54<1+$B111,0,IF(D$54<'1 Données d''entrée'!$C$334+'1 Données d''entrée'!$C$333+1+$B111,'1 Données d''entrée'!$C$332*($H$104-SUM($C112:D112)),0))","v":0},{"$f":"IF(E$54<1+$B111,0,IF(E$54<'1 Données d''entrée'!$C$334+'1 Données d''entrée'!$C$333+1+$B111,'1 Données d''entrée'!$C$332*($H$104-SUM($C112:E112)),0))","v":0},{"$f":"IF(F$54<1+$B111,0,IF(F$54<'1 Données d''entrée'!$C$334+'1 Données d''entrée'!$C$333+1+$B111,'1 Données d''entrée'!$C$332*($H$104-SUM($C112:F112)),0))","v":0},{"$f":"IF(G$54<1+$B111,0,IF(G$54<'1 Données d''entrée'!$C$334+'1 Données d''entrée'!$C$333+1+$B111,'1 Données d''entrée'!$C$332*($H$104-SUM($C112:G112)),0))","v":0},{"$f":"IF(H$54<1+$B111,0,IF(H$54<'1 Données d''entrée'!$C$334+'1 Données d''entrée'!$C$333+1+$B111,'1 Données d''entrée'!$C$332*($H$104-SUM($C112:H112)),0))","v":0},{"$f":"IF(I$54<1+$B111,0,IF(I$54<'1 Données d''entrée'!$C$334+'1 Données d''entrée'!$C$333+1+$B111,'1 Données d''entrée'!$C$332*($H$104-SUM($C112:I112)),0))","v":0},{"$f":"IF(J$54<1+$B111,0,IF(J$54<'1 Données d''entrée'!$C$334+'1 Données d''entrée'!$C$333+1+$B111,'1 Données d''entrée'!$C$332*($H$104-SUM($C112:J112)),0))","v":0},{"$f":"IF(K$54<1+$B111,0,IF(K$54<'1 Données d''entrée'!$C$334+'1 Données d''entrée'!$C$333+1+$B111,'1 Données d''entrée'!$C$332*($H$104-SUM($C112:K112)),0))","v":0},{"$f":"IF(L$54<1+$B111,0,IF(L$54<'1 Données d''entrée'!$C$334+'1 Données d''entrée'!$C$333+1+$B111,'1 Données d''entrée'!$C$332*($H$104-SUM($C112:L112)),0))","v":0},{"$f":"IF(M$54<1+$B111,0,IF(M$54<'1 Données d''entrée'!$C$334+'1 Données d''entrée'!$C$333+1+$B111,'1 Données d''entrée'!$C$332*($H$104-SUM($C112:M112)),0))","v":0},{"$f":"IF(N$54<1+$B111,0,IF(N$54<'1 Données d''entrée'!$C$334+'1 Données d''entrée'!$C$333+1+$B111,'1 Données d''entrée'!$C$332*($H$104-SUM($C112:N112)),0))","v":0},{"$f":"IF(O$54<1+$B111,0,IF(O$54<'1 Données d''entrée'!$C$334+'1 Données d''entrée'!$C$333+1+$B111,'1 Données d''entrée'!$C$332*($H$104-SUM($C112:O112)),0))","v":0},{"$f":"IF(P$54<1+$B111,0,IF(P$54<'1 Données d''entrée'!$C$334+'1 Données d''entrée'!$C$333+1+$B111,'1 Données d''entrée'!$C$332*($H$104-SUM($C112:P112)),0))","v":0},{"$f":"IF(Q$54<1+$B111,0,IF(Q$54<'1 Données d''entrée'!$C$334+'1 Données d''entrée'!$C$333+1+$B111,'1 Données d''entrée'!$C$332*($H$104-SUM($C112:Q112)),0))","v":0},{"$f":"IF(R$54<1+$B111,0,IF(R$54<'1 Données d''entrée'!$C$334+'1 Données d''entrée'!$C$333+1+$B111,'1 Données d''entrée'!$C$332*($H$104-SUM($C112:R112)),0))","v":0},{"$f":"IF(S$54<1+$B111,0,IF(S$54<'1 Données d''entrée'!$C$334+'1 Données d''entrée'!$C$333+1+$B111,'1 Données d''entrée'!$C$332*($H$104-SUM($C112:S112)),0))","v":0},{"$f":"IF(T$54<1+$B111,0,IF(T$54<'1 Données d''entrée'!$C$334+'1 Données d''entrée'!$C$333+1+$B111,'1 Données d''entrée'!$C$332*($H$104-SUM($C112:T112)),0))","v":0},{"$f":"IF(U$54<1+$B111,0,IF(U$54<'1 Données d''entrée'!$C$334+'1 Données d''entrée'!$C$333+1+$B111,'1 Données d''entrée'!$C$332*($H$104-SUM($C112:U112)),0))","v":0}]
["Paiement d'intêrets",7,0,{"$f":"IF(C$54<1+$B112,0,IF(C$54<'1 Données d''entrée'!$C$334+'1 Données d''entrée'!$C$333+1+$B112,'1 Données d''entrée'!$C$332*($I$104-SUM($C113:C113)),0))","v":0},{"$f":"IF(D$54<1+$B112,0,IF(D$54<'1 Données d''entrée'!$C$334+'1 Données d''entrée'!$C$333+1+$B112,'1 Données d''entrée'!$C$332*($I$104-SUM($C113:D113)),0))","v":0},{"$f":"IF(E$54<1+$B112,0,IF(E$54<'1 Données d''entrée'!$C$334+'1 Données d''entrée'!$C$333+1+$B112,'1 Données d''entrée'!$C$332*($I$104-SUM($C113:E113)),0))","v":0},{"$f":"IF(F$54<1+$B112,0,IF(F$54<'1 Données d''entrée'!$C$334+'1 Données d''entrée'!$C$333+1+$B112,'1 Données d''entrée'!$C$332*($I$104-SUM($C113:F113)),0))","v":0},{"$f":"IF(G$54<1+$B112,0,IF(G$54<'1 Données d''entrée'!$C$334+'1 Données d''entrée'!$C$333+1+$B112,'1 Données d''entrée'!$C$332*($I$104-SUM($C113:G113)),0))","v":0},{"$f":"IF(H$54<1+$B112,0,IF(H$54<'1 Données d''entrée'!$C$334+'1 Données d''entrée'!$C$333+1+$B112,'1 Données d''entrée'!$C$332*($I$104-SUM($C113:H113)),0))","v":0},{"$f":"IF(I$54<1+$B112,0,IF(I$54<'1 Données d''entrée'!$C$334+'1 Données d''entrée'!$C$333+1+$B112,'1 Données d''entrée'!$C$332*($I$104-SUM($C113:I113)),0))","v":0},{"$f":"IF(J$54<1+$B112,0,IF(J$54<'1 Données d''entrée'!$C$334+'1 Données d''entrée'!$C$333+1+$B112,'1 Données d''entrée'!$C$332*($I$104-SUM($C113:J113)),0))","v":0},{"$f":"IF(K$54<1+$B112,0,IF(K$54<'1 Données d''entrée'!$C$334+'1 Données d''entrée'!$C$333+1+$B112,'1 Données d''entrée'!$C$332*($I$104-SUM($C113:K113)),0))","v":0},{"$f":"IF(L$54<1+$B112,0,IF(L$54<'1 Données d''entrée'!$C$334+'1 Données d''entrée'!$C$333+1+$B112,'1 Données d''entrée'!$C$332*($I$104-SUM($C113:L113)),0))","v":0},{"$f":"IF(M$54<1+$B112,0,IF(M$54<'1 Données d''entrée'!$C$334+'1 Données d''entrée'!$C$333+1+$B112,'1 Données d''entrée'!$C$332*($I$104-SUM($C113:M113)),0))","v":0},{"$f":"IF(N$54<1+$B112,0,IF(N$54<'1 Données d''entrée'!$C$334+'1 Données d''entrée'!$C$333+1+$B112,'1 Données d''entrée'!$C$332*($I$104-SUM($C113:N113)),0))","v":0},{"$f":"IF(O$54<1+$B112,0,IF(O$54<'1 Données d''entrée'!$C$334+'1 Données d''entrée'!$C$333+1+$B112,'1 Données d''entrée'!$C$332*($I$104-SUM($C113:O113)),0))","v":0},{"$f":"IF(P$54<1+$B112,0,IF(P$54<'1 Données d''entrée'!$C$334+'1 Données d''entrée'!$C$333+1+$B112,'1 Données d''entrée'!$C$332*($I$104-SUM($C113:P113)),0))","v":0},{"$f":"IF(Q$54<1+$B112,0,IF(Q$54<'1 Données d''entrée'!$C$334+'1 Données d''entrée'!$C$333+1+$B112,'1 Données d''entrée'!$C$332*($I$104-SUM($C113:Q113)),0))","v":0},{"$f":"IF(R$54<1+$B112,0,IF(R$54<'1 Données d''entrée'!$C$334+'1 Données d''entrée'!$C$333+1+$B112,'1 Données d''entrée'!$C$332*($I$104-SUM($C113:R113)),0))","v":0},{"$f":"IF(S$54<1+$B112,0,IF(S$54<'1 Données d''entrée'!$C$334+'1 Données d''entrée'!$C$333+1+$B112,'1 Données d''entrée'!$C$332*($I$104-SUM($C113:S113)),0))","v":0},{"$f":"IF(T$54<1+$B112,0,IF(T$54<'1 Données d''entrée'!$C$334+'1 Données d''entrée'!$C$333+1+$B112,'1 Données d''entrée'!$C$332*($I$104-SUM($C113:T113)),0))","v":0},{"$f":"IF(U$54<1+$B112,0,IF(U$54<'1 Données d''entrée'!$C$334+'1 Données d''entrée'!$C$333+1+$B112,'1 Données d''entrée'!$C$332*($I$104-SUM($C113:U113)),0))","v":0}]
["Paiement d'intêrets",8,0,{"$f":"IF(C$54<1+$B113,0,IF(C$54<'1 Données d''entrée'!$C$334+'1 Données d''entrée'!$C$333+1+$B113,'1 Données d''entrée'!$C$332*($J$104-SUM($C114:C114)),0))","v":0},{"$f":"IF(D$54<1+$B113,0,IF(D$54<'1 Données d''entrée'!$C$334+'1 Données d''entrée'!$C$333+1+$B113,'1 Données d''entrée'!$C$332*($J$104-SUM($C114:D114)),0))","v":0},{"$f":"IF(E$54<1+$B113,0,IF(E$54<'1 Données d''entrée'!$C$334+'1 Données d''entrée'!$C$333+1+$B113,'1 Données d''entrée'!$C$332*($J$104-SUM($C114:E114)),0))","v":0},{"$f":"IF(F$54<1+$B113,0,IF(F$54<'1 Données d''entrée'!$C$334+'1 Données d''entrée'!$C$333+1+$B113,'1 Données d''entrée'!$C$332*($J$104-SUM($C114:F114)),0))","v":0},{"$f":"IF(G$54<1+$B113,0,IF(G$54<'1 Données d''entrée'!$C$334+'1 Données d''entrée'!$C$333+1+$B113,'1 Données d''entrée'!$C$332*($J$104-SUM($C114:G114)),0))","v":0},{"$f":"IF(H$54<1+$B113,0,IF(H$54<'1 Données d''entrée'!$C$334+'1 Données d''entrée'!$C$333+1+$B113,'1 Données d''entrée'!$C$332*($J$104-SUM($C114:H114)),0))","v":0},{"$f":"IF(I$54<1+$B113,0,IF(I$54<'1 Données d''entrée'!$C$334+'1 Données d''entrée'!$C$333+1+$B113,'1 Données d''entrée'!$C$332*($J$104-SUM($C114:I114)),0))","v":0},{"$f":"IF(J$54<1+$B113,0,IF(J$54<'1 Données d''entrée'!$C$334+'1 Données d''entrée'!$C$333+1+$B113,'1 Données d''entrée'!$C$332*($J$104-SUM($C114:J114)),0))","v":0},{"$f":"IF(K$54<1+$B113,0,IF(K$54<'1 Données d''entrée'!$C$334+'1 Données d''entrée'!$C$333+1+$B113,'1 Données d''entrée'!$C$332*($J$104-SUM($C114:K114)),0))","v":0},{"$f":"IF(L$54<1+$B113,0,IF(L$54<'1 Données d''entrée'!$C$334+'1 Données d''entrée'!$C$333+1+$B113,'1 Données d''entrée'!$C$332*($J$104-SUM($C114:L114)),0))","v":0},{"$f":"IF(M$54<1+$B113,0,IF(M$54<'1 Données d''entrée'!$C$334+'1 Données d''entrée'!$C$333+1+$B113,'1 Données d''entrée'!$C$332*($J$104-SUM($C114:M114)),0))","v":0},{"$f":"IF(N$54<1+$B113,0,IF(N$54<'1 Données d''entrée'!$C$334+'1 Données d''entrée'!$C$333+1+$B113,'1 Données d''entrée'!$C$332*($J$104-SUM($C114:N114)),0))","v":0},{"$f":"IF(O$54<1+$B113,0,IF(O$54<'1 Données d''entrée'!$C$334+'1 Données d''entrée'!$C$333+1+$B113,'1 Données d''entrée'!$C$332*($J$104-SUM($C114:O114)),0))","v":0},{"$f":"IF(P$54<1+$B113,0,IF(P$54<'1 Données d''entrée'!$C$334+'1 Données d''entrée'!$C$333+1+$B113,'1 Données d''entrée'!$C$332*($J$104-SUM($C114:P114)),0))","v":0},{"$f":"IF(Q$54<1+$B113,0,IF(Q$54<'1 Données d''entrée'!$C$334+'1 Données d''entrée'!$C$333+1+$B113,'1 Données d''entrée'!$C$332*($J$104-SUM($C114:Q114)),0))","v":0},{"$f":"IF(R$54<1+$B113,0,IF(R$54<'1 Données d''entrée'!$C$334+'1 Données d''entrée'!$C$333+1+$B113,'1 Données d''entrée'!$C$332*($J$104-SUM($C114:R114)),0))","v":0},{"$f":"IF(S$54<1+$B113,0,IF(S$54<'1 Données d''entrée'!$C$334+'1 Données d''entrée'!$C$333+1+$B113,'1 Données d''entrée'!$C$332*($J$104-SUM($C114:S114)),0))","v":0},{"$f":"IF(T$54<1+$B113,0,IF(T$54<'1 Données d''entrée'!$C$334+'1 Données d''entrée'!$C$333+1+$B113,'1 Données d''entrée'!$C$332*($J$104-SUM($C114:T114)),0))","v":0},{"$f":"IF(U$54<1+$B113,0,IF(U$54<'1 Données d''entrée'!$C$334+'1 Données d''entrée'!$C$333+1+$B113,'1 Données d''entrée'!$C$332*($J$104-SUM($C114:U114)),0))","v":0}]
["Paiement d'intêrets",9,0,{"$f":"IF(C$54<1+$B114,0,IF(C$54<'1 Données d''entrée'!$C$334+'1 Données d''entrée'!$C$333+1+$B114,'1 Données d''entrée'!$C$332*($K$104-SUM($C115:C115)),0))","v":0},{"$f":"IF(D$54<1+$B114,0,IF(D$54<'1 Données d''entrée'!$C$334+'1 Données d''entrée'!$C$333+1+$B114,'1 Données d''entrée'!$C$332*($K$104-SUM($C115:D115)),0))","v":0},{"$f":"IF(E$54<1+$B114,0,IF(E$54<'1 Données d''entrée'!$C$334+'1 Données d''entrée'!$C$333+1+$B114,'1 Données d''entrée'!$C$332*($K$104-SUM($C115:E115)),0))","v":0},{"$f":"IF(F$54<1+$B114,0,IF(F$54<'1 Données d''entrée'!$C$334+'1 Données d''entrée'!$C$333+1+$B114,'1 Données d''entrée'!$C$332*($K$104-SUM($C115:F115)),0))","v":0},{"$f":"IF(G$54<1+$B114,0,IF(G$54<'1 Données d''entrée'!$C$334+'1 Données d''entrée'!$C$333+1+$B114,'1 Données d''entrée'!$C$332*($K$104-SUM($C115:G115)),0))","v":0},{"$f":"IF(H$54<1+$B114,0,IF(H$54<'1 Données d''entrée'!$C$334+'1 Données d''entrée'!$C$333+1+$B114,'1 Données d''entrée'!$C$332*($K$104-SUM($C115:H115)),0))","v":0},{"$f":"IF(I$54<1+$B114,0,IF(I$54<'1 Données d''entrée'!$C$334+'1 Données d''entrée'!$C$333+1+$B114,'1 Données d''entrée'!$C$332*($K$104-SUM($C115:I115)),0))","v":0},{"$f":"IF(J$54<1+$B114,0,IF(J$54<'1 Données d''entrée'!$C$334+'1 Données d''entrée'!$C$333+1+$B114,'1 Données d''entrée'!$C$332*($K$104-SUM($C115:J115)),0))","v":0},{"$f":"IF(K$54<1+$B114,0,IF(K$54<'1 Données d''entrée'!$C$334+'1 Données d''entrée'!$C$333+1+$B114,'1 Données d''entrée'!$C$332*($K$104-SUM($C115:K115)),0))","v":0},{"$f":"IF(L$54<1+$B114,0,IF(L$54<'1 Données d''entrée'!$C$334+'1 Données d''entrée'!$C$333+1+$B114,'1 Données d''entrée'!$C$332*($K$104-SUM($C115:L115)),0))","v":0},{"$f":"IF(M$54<1+$B114,0,IF(M$54<'1 Données d''entrée'!$C$334+'1 Données d''entrée'!$C$333+1+$B114,'1 Données d''entrée'!$C$332*($K$104-SUM($C115:M115)),0))","v":0},{"$f":"IF(N$54<1+$B114,0,IF(N$54<'1 Données d''entrée'!$C$334+'1 Données d''entrée'!$C$333+1+$B114,'1 Données d''entrée'!$C$332*($K$104-SUM($C115:N115)),0))","v":0},{"$f":"IF(O$54<1+$B114,0,IF(O$54<'1 Données d''entrée'!$C$334+'1 Données d''entrée'!$C$333+1+$B114,'1 Données d''entrée'!$C$332*($K$104-SUM($C115:O115)),0))","v":0},{"$f":"IF(P$54<1+$B114,0,IF(P$54<'1 Données d''entrée'!$C$334+'1 Données d''entrée'!$C$333+1+$B114,'1 Données d''entrée'!$C$332*($K$104-SUM($C115:P115)),0))","v":0},{"$f":"IF(Q$54<1+$B114,0,IF(Q$54<'1 Données d''entrée'!$C$334+'1 Données d''entrée'!$C$333+1+$B114,'1 Données d''entrée'!$C$332*($K$104-SUM($C115:Q115)),0))","v":0},{"$f":"IF(R$54<1+$B114,0,IF(R$54<'1 Données d''entrée'!$C$334+'1 Données d''entrée'!$C$333+1+$B114,'1 Données d''entrée'!$C$332*($K$104-SUM($C115:R115)),0))","v":0},{"$f":"IF(S$54<1+$B114,0,IF(S$54<'1 Données d''entrée'!$C$334+'1 Données d''entrée'!$C$333+1+$B114,'1 Données d''entrée'!$C$332*($K$104-SUM($C115:S115)),0))","v":0},{"$f":"IF(T$54<1+$B114,0,IF(T$54<'1 Données d''entrée'!$C$334+'1 Données d''entrée'!$C$333+1+$B114,'1 Données d''entrée'!$C$332*($K$104-SUM($C115:T115)),0))","v":0},{"$f":"IF(U$54<1+$B114,0,IF(U$54<'1 Données d''entrée'!$C$334+'1 Données d''entrée'!$C$333+1+$B114,'1 Données d''entrée'!$C$332*($K$104-SUM($C115:U115)),0))","v":0}]
["Paiement d'intêrets",10,0,{"$f":"IF(C$54<1+$B115,0,IF(C$54<'1 Données d''entrée'!$C$334+'1 Données d''entrée'!$C$333+1+$B115,'1 Données d''entrée'!$C$332*($L$104-SUM($C116:C116)),0))","v":0},{"$f":"IF(D$54<1+$B115,0,IF(D$54<'1 Données d''entrée'!$C$334+'1 Données d''entrée'!$C$333+1+$B115,'1 Données d''entrée'!$C$332*($L$104-SUM($C116:D116)),0))","v":0},{"$f":"IF(E$54<1+$B115,0,IF(E$54<'1 Données d''entrée'!$C$334+'1 Données d''entrée'!$C$333+1+$B115,'1 Données d''entrée'!$C$332*($L$104-SUM($C116:E116)),0))","v":0},{"$f":"IF(F$54<1+$B115,0,IF(F$54<'1 Données d''entrée'!$C$334+'1 Données d''entrée'!$C$333+1+$B115,'1 Données d''entrée'!$C$332*($L$104-SUM($C116:F116)),0))","v":0},{"$f":"IF(G$54<1+$B115,0,IF(G$54<'1 Données d''entrée'!$C$334+'1 Données d''entrée'!$C$333+1+$B115,'1 Données d''entrée'!$C$332*($L$104-SUM($C116:G116)),0))","v":0},{"$f":"IF(H$54<1+$B115,0,IF(H$54<'1 Données d''entrée'!$C$334+'1 Données d''entrée'!$C$333+1+$B115,'1 Données d''entrée'!$C$332*($L$104-SUM($C116:H116)),0))","v":0},{"$f":"IF(I$54<1+$B115,0,IF(I$54<'1 Données d''entrée'!$C$334+'1 Données d''entrée'!$C$333+1+$B115,'1 Données d''entrée'!$C$332*($L$104-SUM($C116:I116)),0))","v":0},{"$f":"IF(J$54<1+$B115,0,IF(J$54<'1 Données d''entrée'!$C$334+'1 Données d''entrée'!$C$333+1+$B115,'1 Données d''entrée'!$C$332*($L$104-SUM($C116:J116)),0))","v":0},{"$f":"IF(K$54<1+$B115,0,IF(K$54<'1 Données d''entrée'!$C$334+'1 Données d''entrée'!$C$333+1+$B115,'1 Données d''entrée'!$C$332*($L$104-SUM($C116:K116)),0))","v":0},{"$f":"IF(L$54<1+$B115,0,IF(L$54<'1 Données d''entrée'!$C$334+'1 Données d''entrée'!$C$333+1+$B115,'1 Données d''entrée'!$C$332*($L$104-SUM($C116:L116)),0))","v":0},{"$f":"IF(M$54<1+$B115,0,IF(M$54<'1 Données d''entrée'!$C$334+'1 Données d''entrée'!$C$333+1+$B115,'1 Données d''entrée'!$C$332*($L$104-SUM($C116:M116)),0))","v":0},{"$f":"IF(N$54<1+$B115,0,IF(N$54<'1 Données d''entrée'!$C$334+'1 Données d''entrée'!$C$333+1+$B115,'1 Données d''entrée'!$C$332*($L$104-SUM($C116:N116)),0))","v":0},{"$f":"IF(O$54<1+$B115,0,IF(O$54<'1 Données d''entrée'!$C$334+'1 Données d''entrée'!$C$333+1+$B115,'1 Données d''entrée'!$C$332*($L$104-SUM($C116:O116)),0))","v":0},{"$f":"IF(P$54<1+$B115,0,IF(P$54<'1 Données d''entrée'!$C$334+'1 Données d''entrée'!$C$333+1+$B115,'1 Données d''entrée'!$C$332*($L$104-SUM($C116:P116)),0))","v":0},{"$f":"IF(Q$54<1+$B115,0,IF(Q$54<'1 Données d''entrée'!$C$334+'1 Données d''entrée'!$C$333+1+$B115,'1 Données d''entrée'!$C$332*($L$104-SUM($C116:Q116)),0))","v":0},{"$f":"IF(R$54<1+$B115,0,IF(R$54<'1 Données d''entrée'!$C$334+'1 Données d''entrée'!$C$333+1+$B115,'1 Données d''entrée'!$C$332*($L$104-SUM($C116:R116)),0))","v":0},{"$f":"IF(S$54<1+$B115,0,IF(S$54<'1 Données d''entrée'!$C$334+'1 Données d''entrée'!$C$333+1+$B115,'1 Données d''entrée'!$C$332*($L$104-SUM($C116:S116)),0))","v":0},{"$f":"IF(T$54<1+$B115,0,IF(T$54<'1 Données d''entrée'!$C$334+'1 Données d''entrée'!$C$333+1+$B115,'1 Données d''entrée'!$C$332*($L$104-SUM($C116:T116)),0))","v":0},{"$f":"IF(U$54<1+$B115,0,IF(U$54<'1 Données d''entrée'!$C$334+'1 Données d''entrée'!$C$333+1+$B115,'1 Données d''entrée'!$C$332*($L$104-SUM($C116:U116)),0))","v":0}]
[]
[null,"Période",1,2,3,4,5,6,7,8,9,10,11,12,13,14,15,16,17,18,19,20]
["Prêt bancaire additionnel- Option 2: Remboursement du principal final",{"$f":"'1 Données d''entrée'!$B$343","v":0}]
["Prêt(s) nouveau(x)",null,{"$f":"IF(C97<0,C97*(-1)*$B$131+C97*(-1)*$B$131*'1 Données d''entrée'!$C$338,0)","v":{"$error":"#DIV/0!"}},{"$f":"IF(D97<0,D97*(-1)*$B$131+D97*(-1)*$B$131*'1 Données d''entrée'!$C$338,0)","v":{"$error":"#DIV/0!"}},{"$f":"IF(E97<0,E97*(-1)*$B$131+E97*(-1)*$B$131*'1 Données d''entrée'!$C$338,0)","v":{"$error":"#DIV/0!"}},{"$f":"IF(F97<0,F97*(-1)*$B$131+F97*(-1)*$B$131*'1 Données d''entrée'!$C$338,0)","v":{"$error":"#DIV/0!"}},{"$f":"IF(G97<0,G97*(-1)*$B$131+G97*(-1)*$B$131*'1 Données d''entrée'!$C$338,0)","v":{"$error":"#DIV/0!"}},{"$f":"IF(H97<0,H97*(-1)*$B$131+H97*(-1)*$B$131*'1 Données d''entrée'!$C$338,0)","v":{"$error":"#DIV/0!"}},{"$f":"IF(I97<0,I97*(-1)*$B$131+I97*(-1)*$B$131*'1 Données d''entrée'!$C$338,0)","v":{"$error":"#DIV/0!"}},{"$f":"IF(J97<0,J97*(-1)*$B$131+J97*(-1)*$B$131*'1 Données d''entrée'!$C$338,0)","v":{"$error":"#DIV/0!"}},{"$f":"IF(K97<0,K97*(-1)*$B$131+K97*(-1)*$B$131*'1 Données d''entrée'!$C$338,0)","v":{"$error":"#DIV/0!"}},{"$f":"IF(L97<0,L97*(-1)*$B$131+L97*(-1)*$B$131*'1 Données d''entrée'!$C$338,0)","v":{"$error":"#DIV/0!"}},{"$f":"IF(M97<0,M97*(-1)*$B$131+M97*(-1)*$B$131*'1 Données d''entrée'!$C$338,0)","v":{"$error":"#DIV/0!"}},{"$f":"IF(N97<0,N97*(-1)*$B$131+N97*(-1)*$B$131*'1 Données d''entrée'!$C$338,0)","v":{"$error":"#DIV/0!"}},{"$f":"IF(O97<0,O97*(-1)*$B$131+O97*(-1)*$B$131*'1 Données d''entrée'!$C$338,0)","v":{"$error":"#DIV/0!"}},{"$f":"IF(P97<0,P97*(-1)*$B$131+P97*(-1)*$B$131*'1 Données d''entrée'!$C$338,0)","v":{"$error":"#DIV/0!"}},{"$f":"IF(Q97<0,Q97*(-1)*$B$131+Q97*(-1)*$B$131*'1 Données d''entrée'!$C$338,0)","v":{"$error":"#DIV/0!"}},{"$f":"IF(R97<0,R97*(-1)*$B$131+R97*(-1)*$B$131*'1 Données d''entrée'!$C$338,0)","v":{"$error":"#DIV/0!"}},{"$f":"IF(S97<0,S97*(-1)*$B$131+S97*(-1)*$B$131*'1 Données d''entrée'!$C$338,0)","v":{"$error":"#DIV/0!"}},{"$f":"IF(T97<0,T97*(-1)*$B$131+T97*(-1)*$B$131*'1 Données d''entrée'!$C$338,0)","v":{"$error":"#DIV/0!"}},{"$f":"IF(U97<0,U97*(-1)*$B$131+U97*(-1)*$B$131*'1 Données d''entrée'!$C$338,0)","v":{"$error":"#DIV/0!"}},{"$f":"IF(V97<0,V97*(-1)*$B$131+V97*(-1)*$B$131*'1 Données d''entrée'!$C$338,0)","v":{"$error":"#DIV/0!"}}]
[null,"Période de prêt nouveau"]
["Remboursement du principal",0,0,0,0,0,0,0,0,0,0,0,0,0,0,0,0,0,0,0,0,0]
[null,1,{"$f":"IF(C$130='1 Données d''entrée'!$C$333+'1 Données d''entrée'!$C$334+'6 Financement'!$B135,'6 Financement'!$C$132,0)","v":{"$error":"#DIV/0!"}},{"$f":"IF(D$130='1 Données d''entrée'!$C$333+'1 Données d''entrée'!$C$334+'6 Financement'!$B135,'6 Financement'!$C$132,0)","v":0},{"$f":"IF(E$130='1 Données d''entrée'!$C$333+'1 Données d''entrée'!$C$334+'6 Financement'!$B135,'6 Financement'!$C$132,0)","v":0},{"$f":"IF(F$130='1 Données d''entrée'!$C$333+'1 Données d''entrée'!$C$334+'6 Financement'!$B135,'6 Financement'!$C$132,0)","v":0},{"$f":"IF(G$130='1 Données d''entrée'!$C$333+'1 Données d''entrée'!$C$334+'6 Financement'!$B135,'6 Financement'!$C$132,0)","v":0},{"$f":"IF(H$130='1 Données d''entrée'!$C$333+'1 Données d''entrée'!$C$334+'6 Financement'!$B135,'6 Financement'!$C$132,0)","v":0},{"$f":"IF(I$130='1 Données d''entrée'!$C$333+'1 Données d''entrée'!$C$334+'6 Financement'!$B135,'6 Financement'!$C$132,0)","v":0},{"$f":"IF(J$130='1 Données d''entrée'!$C$333+'1 Données d''entrée'!$C$334+'6 Financement'!$B135,'6 Financement'!$C$132,0)","v":0},{"$f":"IF(K$130='1 Données d''entrée'!$C$333+'1 Données d''entrée'!$C$334+'6 Financement'!$B135,'6 Financement'!$C$132,0)","v":0},{"$f":"IF(L$130='1 Données d''entrée'!$C$333+'1 Données d''entrée'!$C$334+'6 Financement'!$B135,'6 Financement'!$C$132,0)","v":0},{"$f":"IF(M$130='1 Données d''entrée'!$C$333+'1 Données d''entrée'!$C$334+'6 Financement'!$B135,'6 Financement'!$C$132,0)","v":0},{"$f":"IF(N$130='1 Données d''entrée'!$C$333+'1 Données d''entrée'!$C$334+'6 Financement'!$B135,'6 Financement'!$C$132,0)","v":0},{"$f":"IF(O$130='1 Données d''entrée'!$C$333+'1 Données d''entrée'!$C$334+'6 Financement'!$B135,'6 Financement'!$C$132,0)","v":0},{"$f":"IF(P$130='1 Données d''entrée'!$C$333+'1 Données d''entrée'!$C$334+'6 Financement'!$B135,'6 Financement'!$C$132,0)","v":0},{"$f":"IF(Q$130='1 Données d''entrée'!$C$333+'1 Données d''entrée'!$C$334+'6 Financement'!$B135,'6 Financement'!$C$132,0)","v":0},{"$f":"IF(R$130='1 Données d''entrée'!$C$333+'1 Données d''entrée'!$C$334+'6 Financement'!$B135,'6 Financement'!$C$132,0)","v":0},{"$f":"IF(S$130='1 Données d''entrée'!$C$333+'1 Données d''entrée'!$C$334+'6 Financement'!$B135,'6 Financement'!$C$132,0)","v":0},{"$f":"IF(T$130='1 Données d''entrée'!$C$333+'1 Données d''entrée'!$C$334+'6 Financement'!$B135,'6 Financement'!$C$132,0)","v":0},{"$f":"IF(U$130='1 Données d''entrée'!$C$333+'1 Données d''entrée'!$C$334+'6 Financement'!$B135,'6 Financement'!$C$132,0)","v":0},{"$f":"IF(V$130='1 Données d''entrée'!$C$333+'1 Données d''entrée'!$C$334+'6 Financement'!$B135,'6 Financement'!$C$132,0)","v":0}]
[null,2,{"$f":"IF(C$130='1 Données d''entrée'!$C$333+'1 Données d''entrée'!$C$334+'6 Financement'!$B136,'6 Financement'!$D$132,0)","v":0},{"$f":"IF(D$130='1 Données d''entrée'!$C$333+'1 Données d''entrée'!$C$334+'6 Financement'!$B136,'6 Financement'!$D$132,0)","v":{"$error":"#DIV/0!"}},{"$f":"IF(E$130='1 Données d''entrée'!$C$333+'1 Données d''entrée'!$C$334+'6 Financement'!$B136,'6 Financement'!$D$132,0)","v":0},{"$f":"IF(F$130='1 Données d''entrée'!$C$333+'1 Données d''entrée'!$C$334+'6 Financement'!$B136,'6 Financement'!$D$132,0)","v":0},{"$f":"IF(G$130='1 Données d''entrée'!$C$333+'1 Données d''entrée'!$C$334+'6 Financement'!$B136,'6 Financement'!$D$132,0)","v":0},{"$f":"IF(H$130='1 Données d''entrée'!$C$333+'1 Données d''entrée'!$C$334+'6 Financement'!$B136,'6 Financement'!$D$132,0)","v":0},{"$f":"IF(I$130='1 Données d''entrée'!$C$333+'1 Données d''entrée'!$C$334+'6 Financement'!$B136,'6 Financement'!$D$132,0)","v":0},{"$f":"IF(J$130='1 Données d''entrée'!$C$333+'1 Données d''entrée'!$C$334+'6 Financement'!$B136,'6 Financement'!$D$132,0)","v":0},{"$f":"IF(K$130='1 Données d''entrée'!$C$333+'1 Données d''entrée'!$C$334+'6 Financement'!$B136,'6 Financement'!$D$132,0)","v":0},{"$f":"IF(L$130='1 Données d''entrée'!$C$333+'1 Données d''entrée'!$C$334+'6 Financement'!$B136,'6 Financement'!$D$132,0)","v":0},{"$f":"IF(M$130='1 Données d''entrée'!$C$333+'1 Données d''entrée'!$C$334+'6 Financement'!$B136,'6 Financement'!$D$132,0)","v":0},{"$f":"IF(N$130='1 Données d''entrée'!$C$333+'1 Données d''entrée'!$C$334+'6 Financement'!$B136,'6 Financement'!$D$132,0)","v":0},{"$f":"IF(O$130='1 Données d''entrée'!$C$333+'1 Données d''entrée'!$C$334+'6 Financement'!$B136,'6 Financement'!$D$132,0)","v":0},{"$f":"IF(P$130='1 Données d''entrée'!$C$333+'1 Données d''entrée'!$C$334+'6 Financement'!$B136,'6 Financement'!$D$132,0)","v":0},{"$f":"IF(Q$130='1 Données d''entrée'!$C$333+'1 Données d''entrée'!$C$334+'6 Financement'!$B136,'6 Financement'!$D$132,0)","v":0},{"$f":"IF(R$130='1 Données d''entrée'!$C$333+'1 Données d''entrée'!$C$334+'6 Financement'!$B136,'6 Financement'!$D$132,0)","v":0},{"$f":"IF(S$130='1 Données d''entrée'!$C$333+'1 Données d''entrée'!$C$334+'6 Financement'!$B136,'6 Financement'!$D$132,0)","v":0},{"$f":"IF(T$130='1 Données d''entrée'!$C$333+'1 Données d''entrée'!$C$334+'6 Financement'!$B136,'6 Financement'!$D$132,0)","v":0},{"$f":"IF(U$130='1 Données d''entrée'!$C$333+'1 Données d''entrée'!$C$334+'6 Financement'!$B136,'6 Financement'!$D$132,0)","v":0},{"$f":"IF(V$130='1 Données d''entrée'!$C$333+'1 Données d''entrée'!$C$334+'6 Financement'!$B136,'6 Financement'!$D$132,0)","v":0}]
[null,3,{"$f":"IF(C$130='1 Données d''entrée'!$C$333+'1 Données d''entrée'!$C$334+'6 Financement'!$B137,'6 Financement'!$E$132,0)","v":0},{"$f":"IF(D$130='1 Données d''entrée'!$C$333+'1 Données d''entrée'!$C$334+'6 Financement'!$B137,'6 Financement'!$E$132,0)","v":0},{"$f":"IF(E$130='1 Données d''entrée'!$C$333+'1 Données d''entrée'!$C$334+'6 Financement'!$B137,'6 Financement'!$E$132,0)","v":{"$error":"#DIV/0!"}},{"$f":"IF(F$130='1 Données d''entrée'!$C$333+'1 Données d''entrée'!$C$334+'6 Financement'!$B137,'6 Financement'!$E$132,0)","v":0},{"$f":"IF(G$130='1 Données d''entrée'!$C$333+'1 Données d''entrée'!$C$334+'6 Financement'!$B137,'6 Financement'!$E$132,0)","v":0},{"$f":"IF(H$130='1 Données d''entrée'!$C$333+'1 Données d''entrée'!$C$334+'6 Financement'!$B137,'6 Financement'!$E$132,0)","v":0},{"$f":"IF(I$130='1 Données d''entrée'!$C$333+'1 Données d''entrée'!$C$334+'6 Financement'!$B137,'6 Financement'!$E$132,0)","v":0},{"$f":"IF(J$130='1 Données d''entrée'!$C$333+'1 Données d''entrée'!$C$334+'6 Financement'!$B137,'6 Financement'!$E$132,0)","v":0},{"$f":"IF(K$130='1 Données d''entrée'!$C$333+'1 Données d''entrée'!$C$334+'6 Financement'!$B137,'6 Financement'!$E$132,0)","v":0},{"$f":"IF(L$130='1 Données d''entrée'!$C$333+'1 Données d''entrée'!$C$334+'6 Financement'!$B137,'6 Financement'!$E$132,0)","v":0},{"$f":"IF(M$130='1 Données d''entrée'!$C$333+'1 Données d''entrée'!$C$334+'6 Financement'!$B137,'6 Financement'!$E$132,0)","v":0},{"$f":"IF(N$130='1 Données d''entrée'!$C$333+'1 Données d''entrée'!$C$334+'6 Financement'!$B137,'6 Financement'!$E$132,0)","v":0},{"$f":"IF(O$130='1 Données d''entrée'!$C$333+'1 Données d''entrée'!$C$334+'6 Financement'!$B137,'6 Financement'!$E$132,0)","v":0},{"$f":"IF(P$130='1 Données d''entrée'!$C$333+'1 Données d''entrée'!$C$334+'6 Financement'!$B137,'6 Financement'!$E$132,0)","v":0},{"$f":"IF(Q$130='1 Données d''entrée'!$C$333+'1 Données d''entrée'!$C$334+'6 Financement'!$B137,'6 Financement'!$E$132,0)","v":0},{"$f":"IF(R$130='1 Données d''entrée'!$C$333+'1 Données d''entrée'!$C$334+'6 Financement'!$B137,'6 Financement'!$E$132,0)","v":0},{"$f":"IF(S$130='1 Données d''entrée'!$C$333+'1 Données d''entrée'!$C$334+'6 Financement'!$B137,'6 Financement'!$E$132,0)","v":0},{"$f":"IF(T$130='1 Données d''entrée'!$C$333+'1 Données d''entrée'!$C$334+'6 Financement'!$B137,'6 Financement'!$E$132,0)","v":0},{"$f":"IF(U$130='1 Données d''entrée'!$C$333+'1 Données d''entrée'!$C$334+'6 Financement'!$B137,'6 Financement'!$E$132,0)","v":0},{"$f":"IF(V$130='1 Données d''entrée'!$C$333+'1 Données d''entrée'!$C$334+'6 Financement'!$B137,'6 Financement'!$E$132,0)","v":0}]
[null,4,{"$f":"IF(C$130='1 Données d''entrée'!$C$333+'1 Données d''entrée'!$C$334+'6 Financement'!$B138,'6 Financement'!$F$132,0)","v":0},{"$f":"IF(D$130='1 Données d''entrée'!$C$333+'1 Données d''entrée'!$C$334+'6 Financement'!$B138,'6 Financement'!$F$132,0)","v":0},{"$f":"IF(E$130='1 Données d''entrée'!$C$333+'1 Données d''entrée'!$C$334+'6 Financement'!$B138,'6 Financement'!$F$132,0)","v":0},{"$f":"IF(F$130='1 Données d''entrée'!$C$333+'1 Données d''entrée'!$C$334+'6 Financement'!$B138,'6 Financement'!$F$132,0)","v":{"$error":"#DIV/0!"}},{"$f":"IF(G$130='1 Données d''entrée'!$C$333+'1 Données d''entrée'!$C$334+'6 Financement'!$B138,'6 Financement'!$F$132,0)","v":0},{"$f":"IF(H$130='1 Données d''entrée'!$C$333+'1 Données d''entrée'!$C$334+'6 Financement'!$B138,'6 Financement'!$F$132,0)","v":0},{"$f":"IF(I$130='1 Données d''entrée'!$C$333+'1 Données d''entrée'!$C$334+'6 Financement'!$B138,'6 Financement'!$F$132,0)","v":0},{"$f":"IF(J$130='1 Données d''entrée'!$C$333+'1 Données d''entrée'!$C$334+'6 Financement'!$B138,'6 Financement'!$F$132,0)","v":0},{"$f":"IF(K$130='1 Données d''entrée'!$C$333+'1 Données d''entrée'!$C$334+'6 Financement'!$B138,'6 Financement'!$F$132,0)","v":0},{"$f":"IF(L$130='1 Données d''entrée'!$C$333+'1 Données d''entrée'!$C$334+'6 Financement'!$B138,'6 Financement'!$F$132,0)","v":0},{"$f":"IF(M$130='1 Données d''entrée'!$C$333+'1 Données d''entrée'!$C$334+'6 Financement'!$B138,'6 Financement'!$F$132,0)","v":0},{"$f":"IF(N$130='1 Données d''entrée'!$C$333+'1 Données d''entrée'!$C$334+'6 Financement'!$B138,'6 Financement'!$F$132,0)","v":0},{"$f":"IF(O$130='1 Données d''entrée'!$C$333+'1 Données d''entrée'!$C$334+'6 Financement'!$B138,'6 Financement'!$F$132,0)","v":0},{"$f":"IF(P$130='1 Données d''entrée'!$C$333+'1 Données d''entrée'!$C$334+'6 Financement'!$B138,'6 Financement'!$F$132,0)","v":0},{"$f":"IF(Q$130='1 Données d''entrée'!$C$333+'1 Données d''entrée'!$C$334+'6 Financement'!$B138,'6 Financement'!$F$132,0)","v":0},{"$f":"IF(R$130='1 Données d''entrée'!$C$333+'1 Données d''entrée'!$C$334+'6 Financement'!$B138,'6 Financement'!$F$132,0)","v":0},{"$f":"IF(S$130='1 Données d''entrée'!$C$333+'1 Données d''entrée'!$C$334+'6 Financement'!$B138,'6 Financement'!$F$132,0)","v":0},{"$f":"IF(T$130='1 Données d''entrée'!$C$333+'1 Données d''entrée'!$C$334+'6 Financement'!$B138,'6 Financement'!$F$132,0)","v":0},{"$f":"IF(U$130='1 Données d''entrée'!$C$333+'1 Données d''entrée'!$C$334+'6 Financement'!$B138,'6 Financement'!$F$132,0)","v":0},{"$f":"IF(V$130='1 Données d''entrée'!$C$333+'1 Données d''entrée'!$C$334+'6 Financement'!$B138,'6 Financement'!$F$132,0)","v":0}]
[null,5,{"$f":"IF(C$130='1 Données d''entrée'!$C$333+'1 Données d''entrée'!$C$334+'6 Financement'!$B139,'6 Financement'!$G$132,0)","v":0},{"$f":"IF(D$130='1 Données d''entrée'!$C$333+'1 Données d''entrée'!$C$334+'6 Financement'!$B139,'6 Financement'!$G$132,0)","v":0},{"$f":"IF(E$130='1 Données d''entrée'!$C$333+'1 Données d''entrée'!$C$334+'6 Financement'!$B139,'6 Financement'!$G$132,0)","v":0},{"$f":"IF(F$130='1 Données d''entrée'!$C$333+'1 Données d''entrée'!$C$334+'6 Financement'!$B139,'6 Financement'!$G$132,0)","v":0},{"$f":"IF(G$130='1 Données d''entrée'!$C$333+'1 Données d''entrée'!$C$334+'6 Financement'!$B139,'6 Financement'!$G$132,0)","v":{"$error":"#DIV/0!"}},{"$f":"IF(H$130='1 Données d''entrée'!$C$333+'1 Données d''entrée'!$C$334+'6 Financement'!$B139,'6 Financement'!$G$132,0)","v":0},{"$f":"IF(I$130='1 Données d''entrée'!$C$333+'1 Données d''entrée'!$C$334+'6 Financement'!$B139,'6 Financement'!$G$132,0)","v":0},{"$f":"IF(J$130='1 Données d''entrée'!$C$333+'1 Données d''entrée'!$C$334+'6 Financement'!$B139,'6 Financement'!$G$132,0)","v":0},{"$f":"IF(K$130='1 Données d''entrée'!$C$333+'1 Données d''entrée'!$C$334+'6 Financement'!$B139,'6 Financement'!$G$132,0)","v":0},{"$f":"IF(L$130='1 Données d''entrée'!$C$333+'1 Données d''entrée'!$C$334+'6 Financement'!$B139,'6 Financement'!$G$132,0)","v":0},{"$f":"IF(M$130='1 Données d''entrée'!$C$333+'1 Données d''entrée'!$C$334+'6 Financement'!$B139,'6 Financement'!$G$132,0)","v":0},{"$f":"IF(N$130='1 Données d''entrée'!$C$333+'1 Données d''entrée'!$C$334+'6 Financement'!$B139,'6 Financement'!$G$132,0)","v":0},{"$f":"IF(O$130='1 Données d''entrée'!$C$333+'1 Données d''entrée'!$C$334+'6 Financement'!$B139,'6 Financement'!$G$132,0)","v":0},{"$f":"IF(P$130='1 Données d''entrée'!$C$333+'1 Données d''entrée'!$C$334+'6 Financement'!$B139,'6 Financement'!$G$132,0)","v":0},{"$f":"IF(Q$130='1 Données d''entrée'!$C$333+'1 Données d''entrée'!$C$334+'6 Financement'!$B139,'6 Financement'!$G$132,0)","v":0},{"$f":"IF(R$130='1 Données d''entrée'!$C$333+'1 Données d''entrée'!$C$334+'6 Financement'!$B139,'6 Financement'!$G$132,0)","v":0},{"$f":"IF(S$130='1 Données d''entrée'!$C$333+'1 Données d''entrée'!$C$334+'6 Financement'!$B139,'6 Financement'!$G$132,0)","v":0},{"$f":"IF(T$130='1 Données d''entrée'!$C$333+'1 Données d''entrée'!$C$334+'6 Financement'!$B139,'6 Financement'!$G$132,0)","v":0},{"$f":"IF(U$130='1 Données d''entrée'!$C$333+'1 Données d''entrée'!$C$334+'6 Financement'!$B139,'6 Financement'!$G$132,0)","v":0},{"$f":"IF(V$130='1 Données d''entrée'!$C$333+'1 Données d''entrée'!$C$334+'6 Financement'!$B139,'6 Financement'!$G$132,0)","v":0}]
[null,6,{"$f":"IF(C$130='1 Données d''entrée'!$C$333+'1 Données d''entrée'!$C$334+'6 Financement'!$B140,'6 Financement'!$H$132,0)","v":0},{"$f":"IF(D$130='1 Données d''entrée'!$C$333+'1 Données d''entrée'!$C$334+'6 Financement'!$B140,'6 Financement'!$H$132,0)","v":0},{"$f":"IF(E$130='1 Données d''entrée'!$C$333+'1 Données d''entrée'!$C$334+'6 Financement'!$B140,'6 Financement'!$H$132,0)","v":0},{"$f":"IF(F$130='1 Données d''entrée'!$C$333+'1 Données d''entrée'!$C$334+'6 Financement'!$B140,'6 Financement'!$H$132,0)","v":0},{"$f":"IF(G$130='1 Données d''entrée'!$C$333+'1 Données d''entrée'!$C$334+'6 Financement'!$B140,'6 Financement'!$H$132,0)","v":0},{"$f":"IF(H$130='1 Données d''entrée'!$C$333+'1 Données d''entrée'!$C$334+'6 Financement'!$B140,'6 Financement'!$H$132,0)","v":{"$error":"#DIV/0!"}},{"$f":"IF(I$130='1 Données d''entrée'!$C$333+'1 Données d''entrée'!$C$334+'6 Financement'!$B140,'6 Financement'!$H$132,0)","v":0},{"$f":"IF(J$130='1 Données d''entrée'!$C$333+'1 Données d''entrée'!$C$334+'6 Financement'!$B140,'6 Financement'!$H$132,0)","v":0},{"$f":"IF(K$130='1 Données d''entrée'!$C$333+'1 Données d''entrée'!$C$334+'6 Financement'!$B140,'6 Financement'!$H$132,0)","v":0},{"$f":"IF(L$130='1 Données d''entrée'!$C$333+'1 Données d''entrée'!$C$334+'6 Financement'!$B140,'6 Financement'!$H$132,0)","v":0},{"$f":"IF(M$130='1 Données d''entrée'!$C$333+'1 Données d''entrée'!$C$334+'6 Financement'!$B140,'6 Financement'!$H$132,0)","v":0},{"$f":"IF(N$130='1 Données d''entrée'!$C$333+'1 Données d''entrée'!$C$334+'6 Financement'!$B140,'6 Financement'!$H$132,0)","v":0},{"$f":"IF(O$130='1 Données d''entrée'!$C$333+'1 Données d''entrée'!$C$334+'6 Financement'!$B140,'6 Financement'!$H$132,0)","v":0},{"$f":"IF(P$130='1 Données d''entrée'!$C$333+'1 Données d''entrée'!$C$334+'6 Financement'!$B140,'6 Financement'!$H$132,0)","v":0},{"$f":"IF(Q$130='1 Données d''entrée'!$C$333+'1 Données d''entrée'!$C$334+'6 Financement'!$B140,'6 Financement'!$H$132,0)","v":0},{"$f":"IF(R$130='1 Données d''entrée'!$C$333+'1 Données d''entrée'!$C$334+'6 Financement'!$B140,'6 Financement'!$H$132,0)","v":0},{"$f":"IF(S$130='1 Données d''entrée'!$C$333+'1 Données d''entrée'!$C$334+'6 Financement'!$B140,'6 Financement'!$H$132,0)","v":0},{"$f":"IF(T$130='1 Données d''entrée'!$C$333+'1 Données d''entrée'!$C$334+'6 Financement'!$B140,'6 Financement'!$H$132,0)","v":0},{"$f":"IF(U$130='1 Données d''entrée'!$C$333+'1 Données d''entrée'!$C$334+'6 Financement'!$B140,'6 Financement'!$H$132,0)","v":0},{"$f":"IF(V$130='1 Données d''entrée'!$C$333+'1 Données d''entrée'!$C$334+'6 Financement'!$B140,'6 Financement'!$H$132,0)","v":0}]
[null,7,{"$f":"IF(C$130='1 Données d''entrée'!$C$333+'1 Données d''entrée'!$C$334+'6 Financement'!$B141,'6 Financement'!$I$132,0)","v":0},{"$f":"IF(D$130='1 Données d''entrée'!$C$333+'1 Données d''entrée'!$C$334+'6 Financement'!$B141,'6 Financement'!$I$132,0)","v":0},{"$f":"IF(E$130='1 Données d''entrée'!$C$333+'1 Données d''entrée'!$C$334+'6 Financement'!$B141,'6 Financement'!$I$132,0)","v":0},{"$f":"IF(F$130='1 Données d''entrée'!$C$333+'1 Données d''entrée'!$C$334+'6 Financement'!$B141,'6 Financement'!$I$132,0)","v":0},{"$f":"IF(G$130='1 Données d''entrée'!$C$333+'1 Données d''entrée'!$C$334+'6 Financement'!$B141,'6 Financement'!$I$132,0)","v":0},{"$f":"IF(H$130='1 Données d''entrée'!$C$333+'1 Données d''entrée'!$C$334+'6 Financement'!$B141,'6 Financement'!$I$132,0)","v":0},{"$f":"IF(I$130='1 Données d''entrée'!$C$333+'1 Données d''entrée'!$C$334+'6 Financement'!$B141,'6 Financement'!$I$132,0)","v":{"$error":"#DIV/0!"}},{"$f":"IF(J$130='1 Données d''entrée'!$C$333+'1 Données d''entrée'!$C$334+'6 Financement'!$B141,'6 Financement'!$I$132,0)","v":0},{"$f":"IF(K$130='1 Données d''entrée'!$C$333+'1 Données d''entrée'!$C$334+'6 Financement'!$B141,'6 Financement'!$I$132,0)","v":0},{"$f":"IF(L$130='1 Données d''entrée'!$C$333+'1 Données d''entrée'!$C$334+'6 Financement'!$B141,'6 Financement'!$I$132,0)","v":0},{"$f":"IF(M$130='1 Données d''entrée'!$C$333+'1 Données d''entrée'!$C$334+'6 Financement'!$B141,'6 Financement'!$I$132,0)","v":0},{"$f":"IF(N$130='1 Données d''entrée'!$C$333+'1 Données d''entrée'!$C$334+'6 Financement'!$B141,'6 Financement'!$I$132,0)","v":0},{"$f":"IF(O$130='1 Données d''entrée'!$C$333+'1 Données d''entrée'!$C$334+'6 Financement'!$B141,'6 Financement'!$I$132,0)","v":0},{"$f":"IF(P$130='1 Données d''entrée'!$C$333+'1 Données d''entrée'!$C$334+'6 Financement'!$B141,'6 Financement'!$I$132,0)","v":0},{"$f":"IF(Q$130='1 Données d''entrée'!$C$333+'1 Données d''entrée'!$C$334+'6 Financement'!$B141,'6 Financement'!$I$132,0)","v":0},{"$f":"IF(R$130='1 Données d''entrée'!$C$333+'1 Données d''entrée'!$C$334+'6 Financement'!$B141,'6 Financement'!$I$132,0)","v":0},{"$f":"IF(S$130='1 Données d''entrée'!$C$333+'1 Données d''entrée'!$C$334+'6 Financement'!$B141,'6 Financement'!$I$132,0)","v":0},{"$f":"IF(T$130='1 Données d''entrée'!$C$333+'1 Données d''entrée'!$C$334+'6 Financement'!$B141,'6 Financement'!$I$132,0)","v":0},{"$f":"IF(U$130='1 Données d''entrée'!$C$333+'1 Données d''entrée'!$C$334+'6 Financement'!$B141,'6 Financement'!$I$132,0)","v":0},{"$f":"IF(V$130='1 Données d''entrée'!$C$333+'1 Données d''entrée'!$C$334+'6 Financement'!$B141,'6 Financement'!$I$132,0)","v":0}]
[null,8,{"$f":"IF(C$130='1 Données d''entrée'!$C$333+'1 Données d''entrée'!$C$334+'6 Financement'!$B142,'6 Financement'!$J$132,0)","v":0},{"$f":"IF(D$130='1 Données d''entrée'!$C$333+'1 Données d''entrée'!$C$334+'6 Financement'!$B142,'6 Financement'!$J$132,0)","v":0},{"$f":"IF(E$130='1 Données d''entrée'!$C$333+'1 Données d''entrée'!$C$334+'6 Financement'!$B142,'6 Financement'!$J$132,0)","v":0},{"$f":"IF(F$130='1 Données d''entrée'!$C$333+'1 Données d''entrée'!$C$334+'6 Financement'!$B142,'6 Financement'!$J$132,0)","v":0},{"$f":"IF(G$130='1 Données d''entrée'!$C$333+'1 Données d''entrée'!$C$334+'6 Financement'!$B142,'6 Financement'!$J$132,0)","v":0},{"$f":"IF(H$130='1 Données d''entrée'!$C$333+'1 Données d''entrée'!$C$334+'6 Financement'!$B142,'6 Financement'!$J$132,0)","v":0},{"$f":"IF(I$130='1 Données d''entrée'!$C$333+'1 Données d''entrée'!$C$334+'6 Financement'!$B142,'6 Financement'!$J$132,0)","v":0},{"$f":"IF(J$130='1 Données d''entrée'!$C$333+'1 Données d''entrée'!$C$334+'6 Financement'!$B142,'6 Financement'!$J$132,0)","v":{"$error":"#DIV/0!"}},{"$f":"IF(K$130='1 Données d''entrée'!$C$333+'1 Données d''entrée'!$C$334+'6 Financement'!$B142,'6 Financement'!$J$132,0)","v":0},{"$f":"IF(L$130='1 Données d''entrée'!$C$333+'1 Données d''entrée'!$C$334+'6 Financement'!$B142,'6 Financement'!$J$132,0)","v":0},{"$f":"IF(M$130='1 Données d''entrée'!$C$333+'1 Données d''entrée'!$C$334+'6 Financement'!$B142,'6 Financement'!$J$132,0)","v":0},{"$f":"IF(N$130='1 Données d''entrée'!$C$333+'1 Données d''entrée'!$C$334+'6 Financement'!$B142,'6 Financement'!$J$132,0)","v":0},{"$f":"IF(O$130='1 Données d''entrée'!$C$333+'1 Données d''entrée'!$C$334+'6 Financement'!$B142,'6 Financement'!$J$132,0)","v":0},{"$f":"IF(P$130='1 Données d''entrée'!$C$333+'1 Données d''entrée'!$C$334+'6 Financement'!$B142,'6 Financement'!$J$132,0)","v":0},{"$f":"IF(Q$130='1 Données d''entrée'!$C$333+'1 Données d''entrée'!$C$334+'6 Financement'!$B142,'6 Financement'!$J$132,0)","v":0},{"$f":"IF(R$130='1 Données d''entrée'!$C$333+'1 Données d''entrée'!$C$334+'6 Financement'!$B142,'6 Financement'!$J$132,0)","v":0},{"$f":"IF(S$130='1 Données d''entrée'!$C$333+'1 Données d''entrée'!$C$334+'6 Financement'!$B142,'6 Financement'!$J$132,0)","v":0},{"$f":"IF(T$130='1 Données d''entrée'!$C$333+'1 Données d''entrée'!$C$334+'6 Financement'!$B142,'6 Financement'!$J$132,0)","v":0},{"$f":"IF(U$130='1 Données d''entrée'!$C$333+'1 Données d''entrée'!$C$334+'6 Financement'!$B142,'6 Financement'!$J$132,0)","v":0},{"$f":"IF(V$130='1 Données d''entrée'!$C$333+'1 Données d''entrée'!$C$334+'6 Financement'!$B142,'6 Financement'!$J$132,0)","v":0}]
[null,9,{"$f":"IF(C$130='1 Données d''entrée'!$C$333+'1 Données d''entrée'!$C$334+'6 Financement'!$B143,'6 Financement'!$K$132,0)","v":0},{"$f":"IF(D$130='1 Données d''entrée'!$C$333+'1 Données d''entrée'!$C$334+'6 Financement'!$B143,'6 Financement'!$K$132,0)","v":0},{"$f":"IF(E$130='1 Données d''entrée'!$C$333+'1 Données d''entrée'!$C$334+'6 Financement'!$B143,'6 Financement'!$K$132,0)","v":0},{"$f":"IF(F$130='1 Données d''entrée'!$C$333+'1 Données d''entrée'!$C$334+'6 Financement'!$B143,'6 Financement'!$K$132,0)","v":0},{"$f":"IF(G$130='1 Données d''entrée'!$C$333+'1 Données d''entrée'!$C$334+'6 Financement'!$B143,'6 Financement'!$K$132,0)","v":0},{"$f":"IF(H$130='1 Données d''entrée'!$C$333+'1 Données d''entrée'!$C$334+'6 Financement'!$B143,'6 Financement'!$K$132,0)","v":0},{"$f":"IF(I$130='1 Données d''entrée'!$C$333+'1 Données d''entrée'!$C$334+'6 Financement'!$B143,'6 Financement'!$K$132,0)","v":0},{"$f":"IF(J$130='1 Données d''entrée'!$C$333+'1 Données d''entrée'!$C$334+'6 Financement'!$B143,'6 Financement'!$K$132,0)","v":0},{"$f":"IF(K$130='1 Données d''entrée'!$C$333+'1 Données d''entrée'!$C$334+'6 Financement'!$B143,'6 Financement'!$K$132,0)","v":{"$error":"#DIV/0!"}},{"$f":"IF(L$130='1 Données d''entrée'!$C$333+'1 Données d''entrée'!$C$334+'6 Financement'!$B143,'6 Financement'!$K$132,0)","v":0},{"$f":"IF(M$130='1 Données d''entrée'!$C$333+'1 Données d''entrée'!$C$334+'6 Financement'!$B143,'6 Financement'!$K$132,0)","v":0},{"$f":"IF(N$130='1 Données d''entrée'!$C$333+'1 Données d''entrée'!$C$334+'6 Financement'!$B143,'6 Financement'!$K$132,0)","v":0},{"$f":"IF(O$130='1 Données d''entrée'!$C$333+'1 Données d''entrée'!$C$334+'6 Financement'!$B143,'6 Financement'!$K$132,0)","v":0},{"$f":"IF(P$130='1 Données d''entrée'!$C$333+'1 Données d''entrée'!$C$334+'6 Financement'!$B143,'6 Financement'!$K$132,0)","v":0},{"$f":"IF(Q$130='1 Données d''entrée'!$C$333+'1 Données d''entrée'!$C$334+'6 Financement'!$B143,'6 Financement'!$K$132,0)","v":0},{"$f":"IF(R$130='1 Données d''entrée'!$C$333+'1 Données d''entrée'!$C$334+'6 Financement'!$B143,'6 Financement'!$K$132,0)","v":0},{"$f":"IF(S$130='1 Données d''entrée'!$C$333+'1 Données d''entrée'!$C$334+'6 Financement'!$B143,'6 Financement'!$K$132,0)","v":0},{"$f":"IF(T$130='1 Données d''entrée'!$C$333+'1 Données d''entrée'!$C$334+'6 Financement'!$B143,'6 Financement'!$K$132,0)","v":0},{"$f":"IF(U$130='1 Données d''entrée'!$C$333+'1 Données d''entrée'!$C$334+'6 Financement'!$B143,'6 Financement'!$K$132,0)","v":0},{"$f":"IF(V$130='1 Données d''entrée'!$C$333+'1 Données d''entrée'!$C$334+'6 Financement'!$B143,'6 Financement'!$K$132,0)","v":0}]
[null,10,{"$f":"IF(C$130='1 Données d''entrée'!$C$333+'1 Données d''entrée'!$C$334+'6 Financement'!$B144,'6 Financement'!$L$132,0)","v":0},{"$f":"IF(D$130='1 Données d''entrée'!$C$333+'1 Données d''entrée'!$C$334+'6 Financement'!$B144,'6 Financement'!$L$132,0)","v":0},{"$f":"IF(E$130='1 Données d''entrée'!$C$333+'1 Données d''entrée'!$C$334+'6 Financement'!$B144,'6 Financement'!$L$132,0)","v":0},{"$f":"IF(F$130='1 Données d''entrée'!$C$333+'1 Données d''entrée'!$C$334+'6 Financement'!$B144,'6 Financement'!$L$132,0)","v":0},{"$f":"IF(G$130='1 Données d''entrée'!$C$333+'1 Données d''entrée'!$C$334+'6 Financement'!$B144,'6 Financement'!$L$132,0)","v":0},{"$f":"IF(H$130='1 Données d''entrée'!$C$333+'1 Données d''entrée'!$C$334+'6 Financement'!$B144,'6 Financement'!$L$132,0)","v":0},{"$f":"IF(I$130='1 Données d''entrée'!$C$333+'1 Données d''entrée'!$C$334+'6 Financement'!$B144,'6 Financement'!$L$132,0)","v":0},{"$f":"IF(J$130='1 Données d''entrée'!$C$333+'1 Données d''entrée'!$C$334+'6 Financement'!$B144,'6 Financement'!$L$132,0)","v":0},{"$f":"IF(K$130='1 Données d''entrée'!$C$333+'1 Données d''entrée'!$C$334+'6 Financement'!$B144,'6 Financement'!$L$132,0)","v":0},{"$f":"IF(L$130='1 Données d''entrée'!$C$333+'1 Données d''entrée'!$C$334+'6 Financement'!$B144,'6 Financement'!$L$132,0)","v":{"$error":"#DIV/0!"}},{"$f":"IF(M$130='1 Données d''entrée'!$C$333+'1 Données d''entrée'!$C$334+'6 Financement'!$B144,'6 Financement'!$L$132,0)","v":0},{"$f":"IF(N$130='1 Données d''entrée'!$C$333+'1 Données d''entrée'!$C$334+'6 Financement'!$B144,'6 Financement'!$L$132,0)","v":0},{"$f":"IF(O$130='1 Données d''entrée'!$C$333+'1 Données d''entrée'!$C$334+'6 Financement'!$B144,'6 Financement'!$L$132,0)","v":0},{"$f":"IF(P$130='1 Données d''entrée'!$C$333+'1 Données d''entrée'!$C$334+'6 Financement'!$B144,'6 Financement'!$L$132,0)","v":0},{"$f":"IF(Q$130='1 Données d''entrée'!$C$333+'1 Données d''entrée'!$C$334+'6 Financement'!$B144,'6 Financement'!$L$132,0)","v":0},{"$f":"IF(R$130='1 Données d''entrée'!$C$333+'1 Données d''entrée'!$C$334+'6 Financement'!$B144,'6 Financement'!$L$132,0)","v":0},{"$f":"IF(S$130='1 Données d''entrée'!$C$333+'1 Données d''entrée'!$C$334+'6 Financement'!$B144,'6 Financement'!$L$132,0)","v":0},{"$f":"IF(T$130='1 Données d''entrée'!$C$333+'1 Données d''entrée'!$C$334+'6 Financement'!$B144,'6 Financement'!$L$132,0)","v":0},{"$f":"IF(U$130='1 Données d''entrée'!$C$333+'1 Données d''entrée'!$C$334+'6 Financement'!$B144,'6 Financement'!$L$132,0)","v":0},{"$f":"IF(V$130='1 Données d''entrée'!$C$333+'1 Données d''entrée'!$C$334+'6 Financement'!$B144,'6 Financement'!$L$132,0)","v":0}]
[null,"Période de prêt nouveau"]
["Paiement d'intérêts",0,0,0,0,0,0,0,0,0,0,0,0,0,0,0,0,0,0,0,0,0]
["Paiement d'intêrets",1,0,{"$f":"IF(C$54<1+$B134,0,IF(C$54<'1 Données d''entrée'!$C$334+'1 Données d''entrée'!$C$333+1+$B134,'1 Données d''entrée'!$C$332*($C$132-SUM($C135:C135)),0))","v":0},{"$f":"IF(D$54<1+$B134,0,IF(D$54<'1 Données d''entrée'!$C$334+'1 Données d''entrée'!$C$333+1+$B134,'1 Données d''entrée'!$C$332*($C$132-SUM($C135:D135)),0))","v":0},{"$f":"IF(E$54<1+$B134,0,IF(E$54<'1 Données d''entrée'!$C$334+'1 Données d''entrée'!$C$333+1+$B134,'1 Données d''entrée'!$C$332*($C$132-SUM($C135:E135)),0))","v":0},{"$f":"IF(F$54<1+$B134,0,IF(F$54<'1 Données d''entrée'!$C$334+'1 Données d''entrée'!$C$333+1+$B134,'1 Données d''entrée'!$C$332*($C$132-SUM($C135:F135)),0))","v":0},{"$f":"IF(G$54<1+$B134,0,IF(G$54<'1 Données d''entrée'!$C$334+'1 Données d''entrée'!$C$333+1+$B134,'1 Données d''entrée'!$C$332*($C$132-SUM($C135:G135)),0))","v":0},{"$f":"IF(H$54<1+$B134,0,IF(H$54<'1 Données d''entrée'!$C$334+'1 Données d''entrée'!$C$333+1+$B134,'1 Données d''entrée'!$C$332*($C$132-SUM($C135:H135)),0))","v":0},{"$f":"IF(I$54<1+$B134,0,IF(I$54<'1 Données d''entrée'!$C$334+'1 Données d''entrée'!$C$333+1+$B134,'1 Données d''entrée'!$C$332*($C$132-SUM($C135:I135)),0))","v":0},{"$f":"IF(J$54<1+$B134,0,IF(J$54<'1 Données d''entrée'!$C$334+'1 Données d''entrée'!$C$333+1+$B134,'1 Données d''entrée'!$C$332*($C$132-SUM($C135:J135)),0))","v":0},{"$f":"IF(K$54<1+$B134,0,IF(K$54<'1 Données d''entrée'!$C$334+'1 Données d''entrée'!$C$333+1+$B134,'1 Données d''entrée'!$C$332*($C$132-SUM($C135:K135)),0))","v":0},{"$f":"IF(L$54<1+$B134,0,IF(L$54<'1 Données d''entrée'!$C$334+'1 Données d''entrée'!$C$333+1+$B134,'1 Données d''entrée'!$C$332*($C$132-SUM($C135:L135)),0))","v":0},{"$f":"IF(M$54<1+$B134,0,IF(M$54<'1 Données d''entrée'!$C$334+'1 Données d''entrée'!$C$333+1+$B134,'1 Données d''entrée'!$C$332*($C$132-SUM($C135:M135)),0))","v":0},{"$f":"IF(N$54<1+$B134,0,IF(N$54<'1 Données d''entrée'!$C$334+'1 Données d''entrée'!$C$333+1+$B134,'1 Données d''entrée'!$C$332*($C$132-SUM($C135:N135)),0))","v":0},{"$f":"IF(O$54<1+$B134,0,IF(O$54<'1 Données d''entrée'!$C$334+'1 Données d''entrée'!$C$333+1+$B134,'1 Données d''entrée'!$C$332*($C$132-SUM($C135:O135)),0))","v":0},{"$f":"IF(P$54<1+$B134,0,IF(P$54<'1 Données d''entrée'!$C$334+'1 Données d''entrée'!$C$333+1+$B134,'1 Données d''entrée'!$C$332*($C$132-SUM($C135:P135)),0))","v":0},{"$f":"IF(Q$54<1+$B134,0,IF(Q$54<'1 Données d''entrée'!$C$334+'1 Données d''entrée'!$C$333+1+$B134,'1 Données d''entrée'!$C$332*($C$132-SUM($C135:Q135)),0))","v":0},{"$f":"IF(R$54<1+$B134,0,IF(R$54<'1 Données d''entrée'!$C$334+'1 Données d''entrée'!$C$333+1+$B134,'1 Données d''entrée'!$C$332*($C$132-SUM($C135:R135)),0))","v":0},{"$f":"IF(S$54<1+$B134,0,IF(S$54<'1 Données d''entrée'!$C$334+'1 Données d''entrée'!$C$333+1+$B134,'1 Données d''entrée'!$C$332*($C$132-SUM($C135:S135)),0))","v":0},{"$f":"IF(T$54<1+$B134,0,IF(T$54<'1 Données d''entrée'!$C$334+'1 Données d''entrée'!$C$333+1+$B134,'1 Données d''entrée'!$C$332*($C$132-SUM($C135:T135)),0))","v":0},{"$f":"IF(U$54<1+$B134,0,IF(U$54<'1 Données d''entrée'!$C$334+'1 Données d''entrée'!$C$333+1+$B134,'1 Données d''entrée'!$C$332*($C$132-SUM($C135:U135)),0))","v":0}]
["Paiement d'intêrets",2,0,{"$f":"IF(C$54<1+$B135,0,IF(C$54<'1 Données d''entrée'!$C$334+'1 Données d''entrée'!$C$333+1+$B135,'1 Données d''entrée'!$C$332*($D$132-SUM($C136:C136)),0))","v":0},{"$f":"IF(D$54<1+$B135,0,IF(D$54<'1 Données d''entrée'!$C$334+'1 Données d''entrée'!$C$333+1+$B135,'1 Données d''entrée'!$C$332*($D$132-SUM($C136:D136)),0))","v":0},{"$f":"IF(E$54<1+$B135,0,IF(E$54<'1 Données d''entrée'!$C$334+'1 Données d''entrée'!$C$333+1+$B135,'1 Données d''entrée'!$C$332*($D$132-SUM($C136:E136)),0))","v":0},{"$f":"IF(F$54<1+$B135,0,IF(F$54<'1 Données d''entrée'!$C$334+'1 Données d''entrée'!$C$333+1+$B135,'1 Données d''entrée'!$C$332*($D$132-SUM($C136:F136)),0))","v":0},{"$f":"IF(G$54<1+$B135,0,IF(G$54<'1 Données d''entrée'!$C$334+'1 Données d''entrée'!$C$333+1+$B135,'1 Données d''entrée'!$C$332*($D$132-SUM($C136:G136)),0))","v":0},{"$f":"IF(H$54<1+$B135,0,IF(H$54<'1 Données d''entrée'!$C$334+'1 Données d''entrée'!$C$333+1+$B135,'1 Données d''entrée'!$C$332*($D$132-SUM($C136:H136)),0))","v":0},{"$f":"IF(I$54<1+$B135,0,IF(I$54<'1 Données d''entrée'!$C$334+'1 Données d''entrée'!$C$333+1+$B135,'1 Données d''entrée'!$C$332*($D$132-SUM($C136:I136)),0))","v":0},{"$f":"IF(J$54<1+$B135,0,IF(J$54<'1 Données d''entrée'!$C$334+'1 Données d''entrée'!$C$333+1+$B135,'1 Données d''entrée'!$C$332*($D$132-SUM($C136:J136)),0))","v":0},{"$f":"IF(K$54<1+$B135,0,IF(K$54<'1 Données d''entrée'!$C$334+'1 Données d''entrée'!$C$333+1+$B135,'1 Données d''entrée'!$C$332*($D$132-SUM($C136:K136)),0))","v":0},{"$f":"IF(L$54<1+$B135,0,IF(L$54<'1 Données d''entrée'!$C$334+'1 Données d''entrée'!$C$333+1+$B135,'1 Données d''entrée'!$C$332*($D$132-SUM($C136:L136)),0))","v":0},{"$f":"IF(M$54<1+$B135,0,IF(M$54<'1 Données d''entrée'!$C$334+'1 Données d''entrée'!$C$333+1+$B135,'1 Données d''entrée'!$C$332*($D$132-SUM($C136:M136)),0))","v":0},{"$f":"IF(N$54<1+$B135,0,IF(N$54<'1 Données d''entrée'!$C$334+'1 Données d''entrée'!$C$333+1+$B135,'1 Données d''entrée'!$C$332*($D$132-SUM($C136:N136)),0))","v":0},{"$f":"IF(O$54<1+$B135,0,IF(O$54<'1 Données d''entrée'!$C$334+'1 Données d''entrée'!$C$333+1+$B135,'1 Données d''entrée'!$C$332*($D$132-SUM($C136:O136)),0))","v":0},{"$f":"IF(P$54<1+$B135,0,IF(P$54<'1 Données d''entrée'!$C$334+'1 Données d''entrée'!$C$333+1+$B135,'1 Données d''entrée'!$C$332*($D$132-SUM($C136:P136)),0))","v":0},{"$f":"IF(Q$54<1+$B135,0,IF(Q$54<'1 Données d''entrée'!$C$334+'1 Données d''entrée'!$C$333+1+$B135,'1 Données d''entrée'!$C$332*($D$132-SUM($C136:Q136)),0))","v":0},{"$f":"IF(R$54<1+$B135,0,IF(R$54<'1 Données d''entrée'!$C$334+'1 Données d''entrée'!$C$333+1+$B135,'1 Données d''entrée'!$C$332*($D$132-SUM($C136:R136)),0))","v":0},{"$f":"IF(S$54<1+$B135,0,IF(S$54<'1 Données d''entrée'!$C$334+'1 Données d''entrée'!$C$333+1+$B135,'1 Données d''entrée'!$C$332*($D$132-SUM($C136:S136)),0))","v":0},{"$f":"IF(T$54<1+$B135,0,IF(T$54<'1 Données d''entrée'!$C$334+'1 Données d''entrée'!$C$333+1+$B135,'1 Données d''entrée'!$C$332*($D$132-SUM($C136:T136)),0))","v":0},{"$f":"IF(U$54<1+$B135,0,IF(U$54<'1 Données d''entrée'!$C$334+'1 Données d''entrée'!$C$333+1+$B135,'1 Données d''entrée'!$C$332*($D$132-SUM($C136:U136)),0))","v":0}]
["Paiement d'intêrets",3,0,{"$f":"IF(C$54<1+$B136,0,IF(C$54<'1 Données d''entrée'!$C$334+'1 Données d''entrée'!$C$333+1+$B136,'1 Données d''entrée'!$C$332*($E$132-SUM($C137:C137)),0))","v":0},{"$f":"IF(D$54<1+$B136,0,IF(D$54<'1 Données d''entrée'!$C$334+'1 Données d''entrée'!$C$333+1+$B136,'1 Données d''entrée'!$C$332*($E$132-SUM($C137:D137)),0))","v":0},{"$f":"IF(E$54<1+$B136,0,IF(E$54<'1 Données d''entrée'!$C$334+'1 Données d''entrée'!$C$333+1+$B136,'1 Données d''entrée'!$C$332*($E$132-SUM($C137:E137)),0))","v":0},{"$f":"IF(F$54<1+$B136,0,IF(F$54<'1 Données d''entrée'!$C$334+'1 Données d''entrée'!$C$333+1+$B136,'1 Données d''entrée'!$C$332*($E$132-SUM($C137:F137)),0))","v":0},{"$f":"IF(G$54<1+$B136,0,IF(G$54<'1 Données d''entrée'!$C$334+'1 Données d''entrée'!$C$333+1+$B136,'1 Données d''entrée'!$C$332*($E$132-SUM($C137:G137)),0))","v":0},{"$f":"IF(H$54<1+$B136,0,IF(H$54<'1 Données d''entrée'!$C$334+'1 Données d''entrée'!$C$333+1+$B136,'1 Données d''entrée'!$C$332*($E$132-SUM($C137:H137)),0))","v":0},{"$f":"IF(I$54<1+$B136,0,IF(I$54<'1 Données d''entrée'!$C$334+'1 Données d''entrée'!$C$333+1+$B136,'1 Données d''entrée'!$C$332*($E$132-SUM($C137:I137)),0))","v":0},{"$f":"IF(J$54<1+$B136,0,IF(J$54<'1 Données d''entrée'!$C$334+'1 Données d''entrée'!$C$333+1+$B136,'1 Données d''entrée'!$C$332*($E$132-SUM($C137:J137)),0))","v":0},{"$f":"IF(K$54<1+$B136,0,IF(K$54<'1 Données d''entrée'!$C$334+'1 Données d''entrée'!$C$333+1+$B136,'1 Données d''entrée'!$C$332*($E$132-SUM($C137:K137)),0))","v":0},{"$f":"IF(L$54<1+$B136,0,IF(L$54<'1 Données d''entrée'!$C$334+'1 Données d''entrée'!$C$333+1+$B136,'1 Données d''entrée'!$C$332*($E$132-SUM($C137:L137)),0))","v":0},{"$f":"IF(M$54<1+$B136,0,IF(M$54<'1 Données d''entrée'!$C$334+'1 Données d''entrée'!$C$333+1+$B136,'1 Données d''entrée'!$C$332*($E$132-SUM($C137:M137)),0))","v":0},{"$f":"IF(N$54<1+$B136,0,IF(N$54<'1 Données d''entrée'!$C$334+'1 Données d''entrée'!$C$333+1+$B136,'1 Données d''entrée'!$C$332*($E$132-SUM($C137:N137)),0))","v":0},{"$f":"IF(O$54<1+$B136,0,IF(O$54<'1 Données d''entrée'!$C$334+'1 Données d''entrée'!$C$333+1+$B136,'1 Données d''entrée'!$C$332*($E$132-SUM($C137:O137)),0))","v":0},{"$f":"IF(P$54<1+$B136,0,IF(P$54<'1 Données d''entrée'!$C$334+'1 Données d''entrée'!$C$333+1+$B136,'1 Données d''entrée'!$C$332*($E$132-SUM($C137:P137)),0))","v":0},{"$f":"IF(Q$54<1+$B136,0,IF(Q$54<'1 Données d''entrée'!$C$334+'1 Données d''entrée'!$C$333+1+$B136,'1 Données d''entrée'!$C$332*($E$132-SUM($C137:Q137)),0))","v":0},{"$f":"IF(R$54<1+$B136,0,IF(R$54<'1 Données d''entrée'!$C$334+'1 Données d''entrée'!$C$333+1+$B136,'1 Données d''entrée'!$C$332*($E$132-SUM($C137:R137)),0))","v":0},{"$f":"IF(S$54<1+$B136,0,IF(S$54<'1 Données d''entrée'!$C$334+'1 Données d''entrée'!$C$333+1+$B136,'1 Données d''entrée'!$C$332*($E$132-SUM($C137:S137)),0))","v":0},{"$f":"IF(T$54<1+$B136,0,IF(T$54<'1 Données d''entrée'!$C$334+'1 Données d''entrée'!$C$333+1+$B136,'1 Données d''entrée'!$C$332*($E$132-SUM($C137:T137)),0))","v":0},{"$f":"IF(U$54<1+$B136,0,IF(U$54<'1 Données d''entrée'!$C$334+'1 Données d''entrée'!$C$333+1+$B136,'1 Données d''entrée'!$C$332*($E$132-SUM($C137:U137)),0))","v":0}]
["Paiement d'intêrets",4,0,{"$f":"IF(C$54<1+$B137,0,IF(C$54<'1 Données d''entrée'!$C$334+'1 Données d''entrée'!$C$333+1+$B137,'1 Données d''entrée'!$C$332*($F$132-SUM($C138:C138)),0))","v":0},{"$f":"IF(D$54<1+$B137,0,IF(D$54<'1 Données d''entrée'!$C$334+'1 Données d''entrée'!$C$333+1+$B137,'1 Données d''entrée'!$C$332*($F$132-SUM($C138:D138)),0))","v":0},{"$f":"IF(E$54<1+$B137,0,IF(E$54<'1 Données d''entrée'!$C$334+'1 Données d''entrée'!$C$333+1+$B137,'1 Données d''entrée'!$C$332*($F$132-SUM($C138:E138)),0))","v":0},{"$f":"IF(F$54<1+$B137,0,IF(F$54<'1 Données d''entrée'!$C$334+'1 Données d''entrée'!$C$333+1+$B137,'1 Données d''entrée'!$C$332*($F$132-SUM($C138:F138)),0))","v":0},{"$f":"IF(G$54<1+$B137,0,IF(G$54<'1 Données d''entrée'!$C$334+'1 Données d''entrée'!$C$333+1+$B137,'1 Données d''entrée'!$C$332*($F$132-SUM($C138:G138)),0))","v":0},{"$f":"IF(H$54<1+$B137,0,IF(H$54<'1 Données d''entrée'!$C$334+'1 Données d''entrée'!$C$333+1+$B137,'1 Données d''entrée'!$C$332*($F$132-SUM($C138:H138)),0))","v":0},{"$f":"IF(I$54<1+$B137,0,IF(I$54<'1 Données d''entrée'!$C$334+'1 Données d''entrée'!$C$333+1+$B137,'1 Données d''entrée'!$C$332*($F$132-SUM($C138:I138)),0))","v":0},{"$f":"IF(J$54<1+$B137,0,IF(J$54<'1 Données d''entrée'!$C$334+'1 Données d''entrée'!$C$333+1+$B137,'1 Données d''entrée'!$C$332*($F$132-SUM($C138:J138)),0))","v":0},{"$f":"IF(K$54<1+$B137,0,IF(K$54<'1 Données d''entrée'!$C$334+'1 Données d''entrée'!$C$333+1+$B137,'1 Données d''entrée'!$C$332*($F$132-SUM($C138:K138)),0))","v":0},{"$f":"IF(L$54<1+$B137,0,IF(L$54<'1 Données d''entrée'!$C$334+'1 Données d''entrée'!$C$333+1+$B137,'1 Données d''entrée'!$C$332*($F$132-SUM($C138:L138)),0))","v":0},{"$f":"IF(M$54<1+$B137,0,IF(M$54<'1 Données d''entrée'!$C$334+'1 Données d''entrée'!$C$333+1+$B137,'1 Données d''entrée'!$C$332*($F$132-SUM($C138:M138)),0))","v":0},{"$f":"IF(N$54<1+$B137,0,IF(N$54<'1 Données d''entrée'!$C$334+'1 Données d''entrée'!$C$333+1+$B137,'1 Données d''entrée'!$C$332*($F$132-SUM($C138:N138)),0))","v":0},{"$f":"IF(O$54<1+$B137,0,IF(O$54<'1 Données d''entrée'!$C$334+'1 Données d''entrée'!$C$333+1+$B137,'1 Données d''entrée'!$C$332*($F$132-SUM($C138:O138)),0))","v":0},{"$f":"IF(P$54<1+$B137,0,IF(P$54<'1 Données d''entrée'!$C$334+'1 Données d''entrée'!$C$333+1+$B137,'1 Données d''entrée'!$C$332*($F$132-SUM($C138:P138)),0))","v":0},{"$f":"IF(Q$54<1+$B137,0,IF(Q$54<'1 Données d''entrée'!$C$334+'1 Données d''entrée'!$C$333+1+$B137,'1 Données d''entrée'!$C$332*($F$132-SUM($C138:Q138)),0))","v":0},{"$f":"IF(R$54<1+$B137,0,IF(R$54<'1 Données d''entrée'!$C$334+'1 Données d''entrée'!$C$333+1+$B137,'1 Données d''entrée'!$C$332*($F$132-SUM($C138:R138)),0))","v":0},{"$f":"IF(S$54<1+$B137,0,IF(S$54<'1 Données d''entrée'!$C$334+'1 Données d''entrée'!$C$333+1+$B137,'1 Données d''entrée'!$C$332*($F$132-SUM($C138:S138)),0))","v":0},{"$f":"IF(T$54<1+$B137,0,IF(T$54<'1 Données d''entrée'!$C$334+'1 Données d''entrée'!$C$333+1+$B137,'1 Données d''entrée'!$C$332*($F$132-SUM($C138:T138)),0))","v":0},{"$f":"IF(U$54<1+$B137,0,IF(U$54<'1 Données d''entrée'!$C$334+'1 Données d''entrée'!$C$333+1+$B137,'1 Données d''entrée'!$C$332*($F$132-SUM($C138:U138)),0))","v":0}]
["Paiement d'intêrets",5,0,{"$f":"IF(C$54<1+$B138,0,IF(C$54<'1 Données d''entrée'!$C$334+'1 Données d''entrée'!$C$333+1+$B138,'1 Données d''entrée'!$C$332*($G$132-SUM($C139:C139)),0))","v":0},{"$f":"IF(D$54<1+$B138,0,IF(D$54<'1 Données d''entrée'!$C$334+'1 Données d''entrée'!$C$333+1+$B138,'1 Données d''entrée'!$C$332*($G$132-SUM($C139:D139)),0))","v":0},{"$f":"IF(E$54<1+$B138,0,IF(E$54<'1 Données d''entrée'!$C$334+'1 Données d''entrée'!$C$333+1+$B138,'1 Données d''entrée'!$C$332*($G$132-SUM($C139:E139)),0))","v":0},{"$f":"IF(F$54<1+$B138,0,IF(F$54<'1 Données d''entrée'!$C$334+'1 Données d''entrée'!$C$333+1+$B138,'1 Données d''entrée'!$C$332*($G$132-SUM($C139:F139)),0))","v":0},{"$f":"IF(G$54<1+$B138,0,IF(G$54<'1 Données d''entrée'!$C$334+'1 Données d''entrée'!$C$333+1+$B138,'1 Données d''entrée'!$C$332*($G$132-SUM($C139:G139)),0))","v":0},{"$f":"IF(H$54<1+$B138,0,IF(H$54<'1 Données d''entrée'!$C$334+'1 Données d''entrée'!$C$333+1+$B138,'1 Données d''entrée'!$C$332*($G$132-SUM($C139:H139)),0))","v":0},{"$f":"IF(I$54<1+$B138,0,IF(I$54<'1 Données d''entrée'!$C$334+'1 Données d''entrée'!$C$333+1+$B138,'1 Données d''entrée'!$C$332*($G$132-SUM($C139:I139)),0))","v":0},{"$f":"IF(J$54<1+$B138,0,IF(J$54<'1 Données d''entrée'!$C$334+'1 Données d''entrée'!$C$333+1+$B138,'1 Données d''entrée'!$C$332*($G$132-SUM($C139:J139)),0))","v":0},{"$f":"IF(K$54<1+$B138,0,IF(K$54<'1 Données d''entrée'!$C$334+'1 Données d''entrée'!$C$333+1+$B138,'1 Données d''entrée'!$C$332*($G$132-SUM($C139:K139)),0))","v":0},{"$f":"IF(L$54<1+$B138,0,IF(L$54<'1 Données d''entrée'!$C$334+'1 Données d''entrée'!$C$333+1+$B138,'1 Données d''entrée'!$C$332*($G$132-SUM($C139:L139)),0))","v":0},{"$f":"IF(M$54<1+$B138,0,IF(M$54<'1 Données d''entrée'!$C$334+'1 Données d''entrée'!$C$333+1+$B138,'1 Données d''entrée'!$C$332*($G$132-SUM($C139:M139)),0))","v":0},{"$f":"IF(N$54<1+$B138,0,IF(N$54<'1 Données d''entrée'!$C$334+'1 Données d''entrée'!$C$333+1+$B138,'1 Données d''entrée'!$C$332*($G$132-SUM($C139:N139)),0))","v":0},{"$f":"IF(O$54<1+$B138,0,IF(O$54<'1 Données d''entrée'!$C$334+'1 Données d''entrée'!$C$333+1+$B138,'1 Données d''entrée'!$C$332*($G$132-SUM($C139:O139)),0))","v":0},{"$f":"IF(P$54<1+$B138,0,IF(P$54<'1 Données d''entrée'!$C$334+'1 Données d''entrée'!$C$333+1+$B138,'1 Données d''entrée'!$C$332*($G$132-SUM($C139:P139)),0))","v":0},{"$f":"IF(Q$54<1+$B138,0,IF(Q$54<'1 Données d''entrée'!$C$334+'1 Données d''entrée'!$C$333+1+$B138,'1 Données d''entrée'!$C$332*($G$132-SUM($C139:Q139)),0))","v":0},{"$f":"IF(R$54<1+$B138,0,IF(R$54<'1 Données d''entrée'!$C$334+'1 Données d''entrée'!$C$333+1+$B138,'1 Données d''entrée'!$C$332*($G$132-SUM($C139:R139)),0))","v":0},{"$f":"IF(S$54<1+$B138,0,IF(S$54<'1 Données d''entrée'!$C$334+'1 Données d''entrée'!$C$333+1+$B138,'1 Données d''entrée'!$C$332*($G$132-SUM($C139:S139)),0))","v":0},{"$f":"IF(T$54<1+$B138,0,IF(T$54<'1 Données d''entrée'!$C$334+'1 Données d''entrée'!$C$333+1+$B138,'1 Données d''entrée'!$C$332*($G$132-SUM($C139:T139)),0))","v":0},{"$f":"IF(U$54<1+$B138,0,IF(U$54<'1 Données d''entrée'!$C$334+'1 Données d''entrée'!$C$333+1+$B138,'1 Données d''entrée'!$C$332*($G$132-SUM($C139:U139)),0))","v":0}]
["Paiement d'intêrets",6,0,{"$f":"IF(C$54<1+$B139,0,IF(C$54<'1 Données d''entrée'!$C$334+'1 Données d''entrée'!$C$333+1+$B139,'1 Données d''entrée'!$C$332*($H$132-SUM($C140:C140)),0))","v":0},{"$f":"IF(D$54<1+$B139,0,IF(D$54<'1 Données d''entrée'!$C$334+'1 Données d''entrée'!$C$333+1+$B139,'1 Données d''entrée'!$C$332*($H$132-SUM($C140:D140)),0))","v":0},{"$f":"IF(E$54<1+$B139,0,IF(E$54<'1 Données d''entrée'!$C$334+'1 Données d''entrée'!$C$333+1+$B139,'1 Données d''entrée'!$C$332*($H$132-SUM($C140:E140)),0))","v":0},{"$f":"IF(F$54<1+$B139,0,IF(F$54<'1 Données d''entrée'!$C$334+'1 Données d''entrée'!$C$333+1+$B139,'1 Données d''entrée'!$C$332*($H$132-SUM($C140:F140)),0))","v":0},{"$f":"IF(G$54<1+$B139,0,IF(G$54<'1 Données d''entrée'!$C$334+'1 Données d''entrée'!$C$333+1+$B139,'1 Données d''entrée'!$C$332*($H$132-SUM($C140:G140)),0))","v":0},{"$f":"IF(H$54<1+$B139,0,IF(H$54<'1 Données d''entrée'!$C$334+'1 Données d''entrée'!$C$333+1+$B139,'1 Données d''entrée'!$C$332*($H$132-SUM($C140:H140)),0))","v":0},{"$f":"IF(I$54<1+$B139,0,IF(I$54<'1 Données d''entrée'!$C$334+'1 Données d''entrée'!$C$333+1+$B139,'1 Données d''entrée'!$C$332*($H$132-SUM($C140:I140)),0))","v":0},{"$f":"IF(J$54<1+$B139,0,IF(J$54<'1 Données d''entrée'!$C$334+'1 Données d''entrée'!$C$333+1+$B139,'1 Données d''entrée'!$C$332*($H$132-SUM($C140:J140)),0))","v":0},{"$f":"IF(K$54<1+$B139,0,IF(K$54<'1 Données d''entrée'!$C$334+'1 Données d''entrée'!$C$333+1+$B139,'1 Données d''entrée'!$C$332*($H$132-SUM($C140:K140)),0))","v":0},{"$f":"IF(L$54<1+$B139,0,IF(L$54<'1 Données d''entrée'!$C$334+'1 Données d''entrée'!$C$333+1+$B139,'1 Données d''entrée'!$C$332*($H$132-SUM($C140:L140)),0))","v":0},{"$f":"IF(M$54<1+$B139,0,IF(M$54<'1 Données d''entrée'!$C$334+'1 Données d''entrée'!$C$333+1+$B139,'1 Données d''entrée'!$C$332*($H$132-SUM($C140:M140)),0))","v":0},{"$f":"IF(N$54<1+$B139,0,IF(N$54<'1 Données d''entrée'!$C$334+'1 Données d''entrée'!$C$333+1+$B139,'1 Données d''entrée'!$C$332*($H$132-SUM($C140:N140)),0))","v":0},{"$f":"IF(O$54<1+$B139,0,IF(O$54<'1 Données d''entrée'!$C$334+'1 Données d''entrée'!$C$333+1+$B139,'1 Données d''entrée'!$C$332*($H$132-SUM($C140:O140)),0))","v":0},{"$f":"IF(P$54<1+$B139,0,IF(P$54<'1 Données d''entrée'!$C$334+'1 Données d''entrée'!$C$333+1+$B139,'1 Données d''entrée'!$C$332*($H$132-SUM($C140:P140)),0))","v":0},{"$f":"IF(Q$54<1+$B139,0,IF(Q$54<'1 Données d''entrée'!$C$334+'1 Données d''entrée'!$C$333+1+$B139,'1 Données d''entrée'!$C$332*($H$132-SUM($C140:Q140)),0))","v":0},{"$f":"IF(R$54<1+$B139,0,IF(R$54<'1 Données d''entrée'!$C$334+'1 Données d''entrée'!$C$333+1+$B139,'1 Données d''entrée'!$C$332*($H$132-SUM($C140:R140)),0))","v":0},{"$f":"IF(S$54<1+$B139,0,IF(S$54<'1 Données d''entrée'!$C$334+'1 Données d''entrée'!$C$333+1+$B139,'1 Données d''entrée'!$C$332*($H$132-SUM($C140:S140)),0))","v":0},{"$f":"IF(T$54<1+$B139,0,IF(T$54<'1 Données d''entrée'!$C$334+'1 Données d''entrée'!$C$333+1+$B139,'1 Données d''entrée'!$C$332*($H$132-SUM($C140:T140)),0))","v":0},{"$f":"IF(U$54<1+$B139,0,IF(U$54<'1 Données d''entrée'!$C$334+'1 Données d''entrée'!$C$333+1+$B139,'1 Données d''entrée'!$C$332*($H$132-SUM($C140:U140)),0))","v":0}]
["Paiement d'intêrets",7,0,{"$f":"IF(C$54<1+$B140,0,IF(C$54<'1 Données d''entrée'!$C$334+'1 Données d''entrée'!$C$333+1+$B140,'1 Données d''entrée'!$C$332*($I$132-SUM($C141:C141)),0))","v":0},{"$f":"IF(D$54<1+$B140,0,IF(D$54<'1 Données d''entrée'!$C$334+'1 Données d''entrée'!$C$333+1+$B140,'1 Données d''entrée'!$C$332*($I$132-SUM($C141:D141)),0))","v":0},{"$f":"IF(E$54<1+$B140,0,IF(E$54<'1 Données d''entrée'!$C$334+'1 Données d''entrée'!$C$333+1+$B140,'1 Données d''entrée'!$C$332*($I$132-SUM($C141:E141)),0))","v":0},{"$f":"IF(F$54<1+$B140,0,IF(F$54<'1 Données d''entrée'!$C$334+'1 Données d''entrée'!$C$333+1+$B140,'1 Données d''entrée'!$C$332*($I$132-SUM($C141:F141)),0))","v":0},{"$f":"IF(G$54<1+$B140,0,IF(G$54<'1 Données d''entrée'!$C$334+'1 Données d''entrée'!$C$333+1+$B140,'1 Données d''entrée'!$C$332*($I$132-SUM($C141:G141)),0))","v":0},{"$f":"IF(H$54<1+$B140,0,IF(H$54<'1 Données d''entrée'!$C$334+'1 Données d''entrée'!$C$333+1+$B140,'1 Données d''entrée'!$C$332*($I$132-SUM($C141:H141)),0))","v":0},{"$f":"IF(I$54<1+$B140,0,IF(I$54<'1 Données d''entrée'!$C$334+'1 Données d''entrée'!$C$333+1+$B140,'1 Données d''entrée'!$C$332*($I$132-SUM($C141:I141)),0))","v":0},{"$f":"IF(J$54<1+$B140,0,IF(J$54<'1 Données d''entrée'!$C$334+'1 Données d''entrée'!$C$333+1+$B140,'1 Données d''entrée'!$C$332*($I$132-SUM($C141:J141)),0))","v":0},{"$f":"IF(K$54<1+$B140,0,IF(K$54<'1 Données d''entrée'!$C$334+'1 Données d''entrée'!$C$333+1+$B140,'1 Données d''entrée'!$C$332*($I$132-SUM($C141:K141)),0))","v":0},{"$f":"IF(L$54<1+$B140,0,IF(L$54<'1 Données d''entrée'!$C$334+'1 Données d''entrée'!$C$333+1+$B140,'1 Données d''entrée'!$C$332*($I$132-SUM($C141:L141)),0))","v":0},{"$f":"IF(M$54<1+$B140,0,IF(M$54<'1 Données d''entrée'!$C$334+'1 Données d''entrée'!$C$333+1+$B140,'1 Données d''entrée'!$C$332*($I$132-SUM($C141:M141)),0))","v":0},{"$f":"IF(N$54<1+$B140,0,IF(N$54<'1 Données d''entrée'!$C$334+'1 Données d''entrée'!$C$333+1+$B140,'1 Données d''entrée'!$C$332*($I$132-SUM($C141:N141)),0))","v":0},{"$f":"IF(O$54<1+$B140,0,IF(O$54<'1 Données d''entrée'!$C$334+'1 Données d''entrée'!$C$333+1+$B140,'1 Données d''entrée'!$C$332*($I$132-SUM($C141:O141)),0))","v":0},{"$f":"IF(P$54<1+$B140,0,IF(P$54<'1 Données d''entrée'!$C$334+'1 Données d''entrée'!$C$333+1+$B140,'1 Données d''entrée'!$C$332*($I$132-SUM($C141:P141)),0))","v":0},{"$f":"IF(Q$54<1+$B140,0,IF(Q$54<'1 Données d''entrée'!$C$334+'1 Données d''entrée'!$C$333+1+$B140,'1 Données d''entrée'!$C$332*($I$132-SUM($C141:Q141)),0))","v":0},{"$f":"IF(R$54<1+$B140,0,IF(R$54<'1 Données d''entrée'!$C$334+'1 Données d''entrée'!$C$333+1+$B140,'1 Données d''entrée'!$C$332*($I$132-SUM($C141:R141)),0))","v":0},{"$f":"IF(S$54<1+$B140,0,IF(S$54<'1 Données d''entrée'!$C$334+'1 Données d''entrée'!$C$333+1+$B140,'1 Données d''entrée'!$C$332*($I$132-SUM($C141:S141)),0))","v":0},{"$f":"IF(T$54<1+$B140,0,IF(T$54<'1 Données d''entrée'!$C$334+'1 Données d''entrée'!$C$333+1+$B140,'1 Données d''entrée'!$C$332*($I$132-SUM($C141:T141)),0))","v":0},{"$f":"IF(U$54<1+$B140,0,IF(U$54<'1 Données d''entrée'!$C$334+'1 Données d''entrée'!$C$333+1+$B140,'1 Données d''entrée'!$C$332*($I$132-SUM($C141:U141)),0))","v":0}]
["Paiement d'intêrets",8,0,{"$f":"IF(C$54<1+$B141,0,IF(C$54<'1 Données d''entrée'!$C$334+'1 Données d''entrée'!$C$333+1+$B141,'1 Données d''entrée'!$C$332*($J$132-SUM($C142:C142)),0))","v":0},{"$f":"IF(D$54<1+$B141,0,IF(D$54<'1 Données d''entrée'!$C$334+'1 Données d''entrée'!$C$333+1+$B141,'1 Données d''entrée'!$C$332*($J$132-SUM($C142:D142)),0))","v":0},{"$f":"IF(E$54<1+$B141,0,IF(E$54<'1 Données d''entrée'!$C$334+'1 Données d''entrée'!$C$333+1+$B141,'1 Données d''entrée'!$C$332*($J$132-SUM($C142:E142)),0))","v":0},{"$f":"IF(F$54<1+$B141,0,IF(F$54<'1 Données d''entrée'!$C$334+'1 Données d''entrée'!$C$333+1+$B141,'1 Données d''entrée'!$C$332*($J$132-SUM($C142:F142)),0))","v":0},{"$f":"IF(G$54<1+$B141,0,IF(G$54<'1 Données d''entrée'!$C$334+'1 Données d''entrée'!$C$333+1+$B141,'1 Données d''entrée'!$C$332*($J$132-SUM($C142:G142)),0))","v":0},{"$f":"IF(H$54<1+$B141,0,IF(H$54<'1 Données d''entrée'!$C$334+'1 Données d''entrée'!$C$333+1+$B141,'1 Données d''entrée'!$C$332*($J$132-SUM($C142:H142)),0))","v":0},{"$f":"IF(I$54<1+$B141,0,IF(I$54<'1 Données d''entrée'!$C$334+'1 Données d''entrée'!$C$333+1+$B141,'1 Données d''entrée'!$C$332*($J$132-SUM($C142:I142)),0))","v":0},{"$f":"IF(J$54<1+$B141,0,IF(J$54<'1 Données d''entrée'!$C$334+'1 Données d''entrée'!$C$333+1+$B141,'1 Données d''entrée'!$C$332*($J$132-SUM($C142:J142)),0))","v":0},{"$f":"IF(K$54<1+$B141,0,IF(K$54<'1 Données d''entrée'!$C$334+'1 Données d''entrée'!$C$333+1+$B141,'1 Données d''entrée'!$C$332*($J$132-SUM($C142:K142)),0))","v":0},{"$f":"IF(L$54<1+$B141,0,IF(L$54<'1 Données d''entrée'!$C$334+'1 Données d''entrée'!$C$333+1+$B141,'1 Données d''entrée'!$C$332*($J$132-SUM($C142:L142)),0))","v":0},{"$f":"IF(M$54<1+$B141,0,IF(M$54<'1 Données d''entrée'!$C$334+'1 Données d''entrée'!$C$333+1+$B141,'1 Données d''entrée'!$C$332*($J$132-SUM($C142:M142)),0))","v":0},{"$f":"IF(N$54<1+$B141,0,IF(N$54<'1 Données d''entrée'!$C$334+'1 Données d''entrée'!$C$333+1+$B141,'1 Données d''entrée'!$C$332*($J$132-SUM($C142:N142)),0))","v":0},{"$f":"IF(O$54<1+$B141,0,IF(O$54<'1 Données d''entrée'!$C$334+'1 Données d''entrée'!$C$333+1+$B141,'1 Données d''entrée'!$C$332*($J$132-SUM($C142:O142)),0))","v":0},{"$f":"IF(P$54<1+$B141,0,IF(P$54<'1 Données d''entrée'!$C$334+'1 Données d''entrée'!$C$333+1+$B141,'1 Données d''entrée'!$C$332*($J$132-SUM($C142:P142)),0))","v":0},{"$f":"IF(Q$54<1+$B141,0,IF(Q$54<'1 Données d''entrée'!$C$334+'1 Données d''entrée'!$C$333+1+$B141,'1 Données d''entrée'!$C$332*($J$132-SUM($C142:Q142)),0))","v":0},{"$f":"IF(R$54<1+$B141,0,IF(R$54<'1 Données d''entrée'!$C$334+'1 Données d''entrée'!$C$333+1+$B141,'1 Données d''entrée'!$C$332*($J$132-SUM($C142:R142)),0))","v":0},{"$f":"IF(S$54<1+$B141,0,IF(S$54<'1 Données d''entrée'!$C$334+'1 Données d''entrée'!$C$333+1+$B141,'1 Données d''entrée'!$C$332*($J$132-SUM($C142:S142)),0))","v":0},{"$f":"IF(T$54<1+$B141,0,IF(T$54<'1 Données d''entrée'!$C$334+'1 Données d''entrée'!$C$333+1+$B141,'1 Données d''entrée'!$C$332*($J$132-SUM($C142:T142)),0))","v":0},{"$f":"IF(U$54<1+$B141,0,IF(U$54<'1 Données d''entrée'!$C$334+'1 Données d''entrée'!$C$333+1+$B141,'1 Données d''entrée'!$C$332*($J$132-SUM($C142:U142)),0))","v":0}]
["Paiement d'intêrets",9,0,{"$f":"IF(C$54<1+$B142,0,IF(C$54<'1 Données d''entrée'!$C$334+'1 Données d''entrée'!$C$333+1+$B142,'1 Données d''entrée'!$C$332*($K$132-SUM($C143:C143)),0))","v":0},{"$f":"IF(D$54<1+$B142,0,IF(D$54<'1 Données d''entrée'!$C$334+'1 Données d''entrée'!$C$333+1+$B142,'1 Données d''entrée'!$C$332*($K$132-SUM($C143:D143)),0))","v":0},{"$f":"IF(E$54<1+$B142,0,IF(E$54<'1 Données d''entrée'!$C$334+'1 Données d''entrée'!$C$333+1+$B142,'1 Données d''entrée'!$C$332*($K$132-SUM($C143:E143)),0))","v":0},{"$f":"IF(F$54<1+$B142,0,IF(F$54<'1 Données d''entrée'!$C$334+'1 Données d''entrée'!$C$333+1+$B142,'1 Données d''entrée'!$C$332*($K$132-SUM($C143:F143)),0))","v":0},{"$f":"IF(G$54<1+$B142,0,IF(G$54<'1 Données d''entrée'!$C$334+'1 Données d''entrée'!$C$333+1+$B142,'1 Données d''entrée'!$C$332*($K$132-SUM($C143:G143)),0))","v":0},{"$f":"IF(H$54<1+$B142,0,IF(H$54<'1 Données d''entrée'!$C$334+'1 Données d''entrée'!$C$333+1+$B142,'1 Données d''entrée'!$C$332*($K$132-SUM($C143:H143)),0))","v":0},{"$f":"IF(I$54<1+$B142,0,IF(I$54<'1 Données d''entrée'!$C$334+'1 Données d''entrée'!$C$333+1+$B142,'1 Données d''entrée'!$C$332*($K$132-SUM($C143:I143)),0))","v":0},{"$f":"IF(J$54<1+$B142,0,IF(J$54<'1 Données d''entrée'!$C$334+'1 Données d''entrée'!$C$333+1+$B142,'1 Données d''entrée'!$C$332*($K$132-SUM($C143:J143)),0))","v":0},{"$f":"IF(K$54<1+$B142,0,IF(K$54<'1 Données d''entrée'!$C$334+'1 Données d''entrée'!$C$333+1+$B142,'1 Données d''entrée'!$C$332*($K$132-SUM($C143:K143)),0))","v":0},{"$f":"IF(L$54<1+$B142,0,IF(L$54<'1 Données d''entrée'!$C$334+'1 Données d''entrée'!$C$333+1+$B142,'1 Données d''entrée'!$C$332*($K$132-SUM($C143:L143)),0))","v":0},{"$f":"IF(M$54<1+$B142,0,IF(M$54<'1 Données d''entrée'!$C$334+'1 Données d''entrée'!$C$333+1+$B142,'1 Données d''entrée'!$C$332*($K$132-SUM($C143:M143)),0))","v":0},{"$f":"IF(N$54<1+$B142,0,IF(N$54<'1 Données d''entrée'!$C$334+'1 Données d''entrée'!$C$333+1+$B142,'1 Données d''entrée'!$C$332*($K$132-SUM($C143:N143)),0))","v":0},{"$f":"IF(O$54<1+$B142,0,IF(O$54<'1 Données d''entrée'!$C$334+'1 Données d''entrée'!$C$333+1+$B142,'1 Données d''entrée'!$C$332*($K$132-SUM($C143:O143)),0))","v":0},{"$f":"IF(P$54<1+$B142,0,IF(P$54<'1 Données d''entrée'!$C$334+'1 Données d''entrée'!$C$333+1+$B142,'1 Données d''entrée'!$C$332*($K$132-SUM($C143:P143)),0))","v":0},{"$f":"IF(Q$54<1+$B142,0,IF(Q$54<'1 Données d''entrée'!$C$334+'1 Données d''entrée'!$C$333+1+$B142,'1 Données d''entrée'!$C$332*($K$132-SUM($C143:Q143)),0))","v":0},{"$f":"IF(R$54<1+$B142,0,IF(R$54<'1 Données d''entrée'!$C$334+'1 Données d''entrée'!$C$333+1+$B142,'1 Données d''entrée'!$C$332*($K$132-SUM($C143:R143)),0))","v":0},{"$f":"IF(S$54<1+$B142,0,IF(S$54<'1 Données d''entrée'!$C$334+'1 Données d''entrée'!$C$333+1+$B142,'1 Données d''entrée'!$C$332*($K$132-SUM($C143:S143)),0))","v":0},{"$f":"IF(T$54<1+$B142,0,IF(T$54<'1 Données d''entrée'!$C$334+'1 Données d''entrée'!$C$333+1+$B142,'1 Données d''entrée'!$C$332*($K$132-SUM($C143:T143)),0))","v":0},{"$f":"IF(U$54<1+$B142,0,IF(U$54<'1 Données d''entrée'!$C$334+'1 Données d''entrée'!$C$333+1+$B142,'1 Données d''entrée'!$C$332*($K$132-SUM($C143:U143)),0))","v":0}]
["Paiement d'intêrets",10,0,{"$f":"IF(C$54<1+$B143,0,IF(C$54<'1 Données d''entrée'!$C$334+'1 Données d''entrée'!$C$333+1+$B143,'1 Données d''entrée'!$C$332*($L$132-SUM($C144:C144)),0))","v":0},{"$f":"IF(D$54<1+$B143,0,IF(D$54<'1 Données d''entrée'!$C$334+'1 Données d''entrée'!$C$333+1+$B143,'1 Données d''entrée'!$C$332*($L$132-SUM($C144:D144)),0))","v":0},{"$f":"IF(E$54<1+$B143,0,IF(E$54<'1 Données d''entrée'!$C$334+'1 Données d''entrée'!$C$333+1+$B143,'1 Données d''entrée'!$C$332*($L$132-SUM($C144:E144)),0))","v":0},{"$f":"IF(F$54<1+$B143,0,IF(F$54<'1 Données d''entrée'!$C$334+'1 Données d''entrée'!$C$333+1+$B143,'1 Données d''entrée'!$C$332*($L$132-SUM($C144:F144)),0))","v":0},{"$f":"IF(G$54<1+$B143,0,IF(G$54<'1 Données d''entrée'!$C$334+'1 Données d''entrée'!$C$333+1+$B143,'1 Données d''entrée'!$C$332*($L$132-SUM($C144:G144)),0))","v":0},{"$f":"IF(H$54<1+$B143,0,IF(H$54<'1 Données d''entrée'!$C$334+'1 Données d''entrée'!$C$333+1+$B143,'1 Données d''entrée'!$C$332*($L$132-SUM($C144:H144)),0))","v":0},{"$f":"IF(I$54<1+$B143,0,IF(I$54<'1 Données d''entrée'!$C$334+'1 Données d''entrée'!$C$333+1+$B143,'1 Données d''entrée'!$C$332*($L$132-SUM($C144:I144)),0))","v":0},{"$f":"IF(J$54<1+$B143,0,IF(J$54<'1 Données d''entrée'!$C$334+'1 Données d''entrée'!$C$333+1+$B143,'1 Données d''entrée'!$C$332*($L$132-SUM($C144:J144)),0))","v":0},{"$f":"IF(K$54<1+$B143,0,IF(K$54<'1 Données d''entrée'!$C$334+'1 Données d''entrée'!$C$333+1+$B143,'1 Données d''entrée'!$C$332*($L$132-SUM($C144:K144)),0))","v":0},{"$f":"IF(L$54<1+$B143,0,IF(L$54<'1 Données d''entrée'!$C$334+'1 Données d''entrée'!$C$333+1+$B143,'1 Données d''entrée'!$C$332*($L$132-SUM($C144:L144)),0))","v":0},{"$f":"IF(M$54<1+$B143,0,IF(M$54<'1 Données d''entrée'!$C$334+'1 Données d''entrée'!$C$333+1+$B143,'1 Données d''entrée'!$C$332*($L$132-SUM($C144:M144)),0))","v":0},{"$f":"IF(N$54<1+$B143,0,IF(N$54<'1 Données d''entrée'!$C$334+'1 Données d''entrée'!$C$333+1+$B143,'1 Données d''entrée'!$C$332*($L$132-SUM($C144:N144)),0))","v":0},{"$f":"IF(O$54<1+$B143,0,IF(O$54<'1 Données d''entrée'!$C$334+'1 Données d''entrée'!$C$333+1+$B143,'1 Données d''entrée'!$C$332*($L$132-SUM($C144:O144)),0))","v":0},{"$f":"IF(P$54<1+$B143,0,IF(P$54<'1 Données d''entrée'!$C$334+'1 Données d''entrée'!$C$333+1+$B143,'1 Données d''entrée'!$C$332*($L$132-SUM($C144:P144)),0))","v":0},{"$f":"IF(Q$54<1+$B143,0,IF(Q$54<'1 Données d''entrée'!$C$334+'1 Données d''entrée'!$C$333+1+$B143,'1 Données d''entrée'!$C$332*($L$132-SUM($C144:Q144)),0))","v":0},{"$f":"IF(R$54<1+$B143,0,IF(R$54<'1 Données d''entrée'!$C$334+'1 Données d''entrée'!$C$333+1+$B143,'1 Données d''entrée'!$C$332*($L$132-SUM($C144:R144)),0))","v":0},{"$f":"IF(S$54<1+$B143,0,IF(S$54<'1 Données d''entrée'!$C$334+'1 Données d''entrée'!$C$333+1+$B143,'1 Données d''entrée'!$C$332*($L$132-SUM($C144:S144)),0))","v":0},{"$f":"IF(T$54<1+$B143,0,IF(T$54<'1 Données d''entrée'!$C$334+'1 Données d''entrée'!$C$333+1+$B143,'1 Données d''entrée'!$C$332*($L$132-SUM($C144:T144)),0))","v":0},{"$f":"IF(U$54<1+$B143,0,IF(U$54<'1 Données d''entrée'!$C$334+'1 Données d''entrée'!$C$333+1+$B143,'1 Données d''entrée'!$C$332*($L$132-SUM($C144:U144)),0))","v":0}]
[]
[null,"Période",1,2,3,4,5,6,7,8,9,10,11,12,13,14,15,16,17,18,19,20]
["Prêt bancaire - Option 3: Remboursement vers l'annuité constante",{"$f":"'1 Données d''entrée'!$B$344","v":0}]
["Prêt(s) nouveau(x)",null,{"$f":"IF(C97<0,C97*(-1)*$B$159+C97*(-1)*$B$159*'1 Données d''entrée'!$C$338,0)","v":{"$error":"#DIV/0!"}},{"$f":"IF(D97<0,D97*(-1)*$B$159+D97*(-1)*$B$159*'1 Données d''entrée'!$C$338,0)","v":{"$error":"#DIV/0!"}},{"$f":"IF(E97<0,E97*(-1)*$B$159+E97*(-1)*$B$159*'1 Données d''entrée'!$C$338,0)","v":{"$error":"#DIV/0!"}},{"$f":"IF(F97<0,F97*(-1)*$B$159+F97*(-1)*$B$159*'1 Données d''entrée'!$C$338,0)","v":{"$error":"#DIV/0!"}},{"$f":"IF(G97<0,G97*(-1)*$B$159+G97*(-1)*$B$159*'1 Données d''entrée'!$C$338,0)","v":{"$error":"#DIV/0!"}},{"$f":"IF(H97<0,H97*(-1)*$B$159+H97*(-1)*$B$159*'1 Données d''entrée'!$C$338,0)","v":{"$error":"#DIV/0!"}},{"$f":"IF(I97<0,I97*(-1)*$B$159+I97*(-1)*$B$159*'1 Données d''entrée'!$C$338,0)","v":{"$error":"#DIV/0!"}},{"$f":"IF(J97<0,J97*(-1)*$B$159+J97*(-1)*$B$159*'1 Données d''entrée'!$C$338,0)","v":{"$error":"#DIV/0!"}},{"$f":"IF(K97<0,K97*(-1)*$B$159+K97*(-1)*$B$159*'1 Données d''entrée'!$C$338,0)","v":{"$error":"#DIV/0!"}},{"$f":"IF(L97<0,L97*(-1)*$B$159+L97*(-1)*$B$159*'1 Données d''entrée'!$C$338,0)","v":{"$error":"#DIV/0!"}},{"$f":"IF(M97<0,M97*(-1)*$B$159+M97*(-1)*$B$159*'1 Données d''entrée'!$C$338,0)","v":{"$error":"#DIV/0!"}},{"$f":"IF(N97<0,N97*(-1)*$B$159+N97*(-1)*$B$159*'1 Données d''entrée'!$C$338,0)","v":{"$error":"#DIV/0!"}},{"$f":"IF(O97<0,O97*(-1)*$B$159+O97*(-1)*$B$159*'1 Données d''entrée'!$C$338,0)","v":{"$error":"#DIV/0!"}},{"$f":"IF(P97<0,P97*(-1)*$B$159+P97*(-1)*$B$159*'1 Données d''entrée'!$C$338,0)","v":{"$error":"#DIV/0!"}},{"$f":"IF(Q97<0,Q97*(-1)*$B$159+Q97*(-1)*$B$159*'1 Données d''entrée'!$C$338,0)","v":{"$error":"#DIV/0!"}},{"$f":"IF(R97<0,R97*(-1)*$B$159+R97*(-1)*$B$159*'1 Données d''entrée'!$C$338,0)","v":{"$error":"#DIV/0!"}},{"$f":"IF(S97<0,S97*(-1)*$B$159+S97*(-1)*$B$159*'1 Données d''entrée'!$C$338,0)","v":{"$error":"#DIV/0!"}},{"$f":"IF(T97<0,T97*(-1)*$B$159+T97*(-1)*$B$159*'1 Données d''entrée'!$C$338,0)","v":{"$error":"#DIV/0!"}},{"$f":"IF(U97<0,U97*(-1)*$B$159+U97*(-1)*$B$159*'1 Données d''entrée'!$C$338,0)","v":{"$error":"#DIV/0!"}},{"$f":"IF(V97<0,V97*(-1)*$B$159+V97*(-1)*$B$159*'1 Données d''entrée'!$C$338,0)","v":{"$error":"#DIV/0!"}}]
[null,"Période de prêt nouveau"]
["Remboursement vers l'annuité constante",0,0,0,0,0,0,0,0,0,0,0,0,0,0,0,0,0,0,0,0,0]
[null,1,{"$f":"IF(C$54<'1 Données d''entrée'!$C$334+1+$B163,0,IF(C$54<'1 Données d''entrée'!$C$333+'1 Données d''entrée'!$C$334+1+$B163,$C$160*('1 Données d''entrée'!$C$332*(1+'1 Données d''entrée'!$C$332)^'1 Données d''entrée'!$C$333)/((1+'1 Données d''entrée'!$C$332)^'1 Données d''entrée'!$C$333-1),0))","v":0},{"$f":"IF(D54<'1 Données d''entrée'!$C$334+1+$B163,0,IF(D$54<'1 Données d''entrée'!$C$333+'1 Données d''entrée'!$C$334+1+$B163,$C$160*('1 Données d''entrée'!$C$332*(1+'1 Données d''entrée'!$C$332)^'1 Données d''entrée'!$C$333)/((1+'1 Données d''entrée'!$C$332)^'1 Données d''entrée'!$C$333-1),0))","v":0},{"$f":"IF(E54<'1 Données d''entrée'!$C$334+1+$B163,0,IF(E$54<'1 Données d''entrée'!$C$333+'1 Données d''entrée'!$C$334+1+$B163,$C$160*('1 Données d''entrée'!$C$332*(1+'1 Données d''entrée'!$C$332)^'1 Données d''entrée'!$C$333)/((1+'1 Données d''entrée'!$C$332)^'1 Données d''entrée'!$C$333-1),0))","v":0},{"$f":"IF(F54<'1 Données d''entrée'!$C$334+1+$B163,0,IF(F$54<'1 Données d''entrée'!$C$333+'1 Données d''entrée'!$C$334+1+$B163,$C$160*('1 Données d''entrée'!$C$332*(1+'1 Données d''entrée'!$C$332)^'1 Données d''entrée'!$C$333)/((1+'1 Données d''entrée'!$C$332)^'1 Données d''entrée'!$C$333-1),0))","v":0},{"$f":"IF(G54<'1 Données d''entrée'!$C$334+1+$B163,0,IF(G$54<'1 Données d''entrée'!$C$333+'1 Données d''entrée'!$C$334+1+$B163,$C$160*('1 Données d''entrée'!$C$332*(1+'1 Données d''entrée'!$C$332)^'1 Données d''entrée'!$C$333)/((1+'1 Données d''entrée'!$C$332)^'1 Données d''entrée'!$C$333-1),0))","v":0},{"$f":"IF(H54<'1 Données d''entrée'!$C$334+1+$B163,0,IF(H$54<'1 Données d''entrée'!$C$333+'1 Données d''entrée'!$C$334+1+$B163,$C$160*('1 Données d''entrée'!$C$332*(1+'1 Données d''entrée'!$C$332)^'1 Données d''entrée'!$C$333)/((1+'1 Données d''entrée'!$C$332)^'1 Données d''entrée'!$C$333-1),0))","v":0},{"$f":"IF(I54<'1 Données d''entrée'!$C$334+1+$B163,0,IF(I$54<'1 Données d''entrée'!$C$333+'1 Données d''entrée'!$C$334+1+$B163,$C$160*('1 Données d''entrée'!$C$332*(1+'1 Données d''entrée'!$C$332)^'1 Données d''entrée'!$C$333)/((1+'1 Données d''entrée'!$C$332)^'1 Données d''entrée'!$C$333-1),0))","v":0},{"$f":"IF(J54<'1 Données d''entrée'!$C$334+1+$B163,0,IF(J$54<'1 Données d''entrée'!$C$333+'1 Données d''entrée'!$C$334+1+$B163,$C$160*('1 Données d''entrée'!$C$332*(1+'1 Données d''entrée'!$C$332)^'1 Données d''entrée'!$C$333)/((1+'1 Données d''entrée'!$C$332)^'1 Données d''entrée'!$C$333-1),0))","v":0},{"$f":"IF(K54<'1 Données d''entrée'!$C$334+1+$B163,0,IF(K$54<'1 Données d''entrée'!$C$333+'1 Données d''entrée'!$C$334+1+$B163,$C$160*('1 Données d''entrée'!$C$332*(1+'1 Données d''entrée'!$C$332)^'1 Données d''entrée'!$C$333)/((1+'1 Données d''entrée'!$C$332)^'1 Données d''entrée'!$C$333-1),0))","v":0},{"$f":"IF(L54<'1 Données d''entrée'!$C$334+1+$B163,0,IF(L$54<'1 Données d''entrée'!$C$333+'1 Données d''entrée'!$C$334+1+$B163,$C$160*('1 Données d''entrée'!$C$332*(1+'1 Données d''entrée'!$C$332)^'1 Données d''entrée'!$C$333)/((1+'1 Données d''entrée'!$C$332)^'1 Données d''entrée'!$C$333-1),0))","v":0},{"$f":"IF(M54<'1 Données d''entrée'!$C$334+1+$B163,0,IF(M$54<'1 Données d''entrée'!$C$333+'1 Données d''entrée'!$C$334+1+$B163,$C$160*('1 Données d''entrée'!$C$332*(1+'1 Données d''entrée'!$C$332)^'1 Données d''entrée'!$C$333)/((1+'1 Données d''entrée'!$C$332)^'1 Données d''entrée'!$C$333-1),0))","v":0},{"$f":"IF(N54<'1 Données d''entrée'!$C$334+1+$B163,0,IF(N$54<'1 Données d''entrée'!$C$333+'1 Données d''entrée'!$C$334+1+$B163,$C$160*('1 Données d''entrée'!$C$332*(1+'1 Données d''entrée'!$C$332)^'1 Données d''entrée'!$C$333)/((1+'1 Données d''entrée'!$C$332)^'1 Données d''entrée'!$C$333-1),0))","v":0},{"$f":"IF(O54<'1 Données d''entrée'!$C$334+1+$B163,0,IF(O$54<'1 Données d''entrée'!$C$333+'1 Données d''entrée'!$C$334+1+$B163,$C$160*('1 Données d''entrée'!$C$332*(1+'1 Données d''entrée'!$C$332)^'1 Données d''entrée'!$C$333)/((1+'1 Données d''entrée'!$C$332)^'1 Données d''entrée'!$C$333-1),0))","v":0},{"$f":"IF(P54<'1 Données d''entrée'!$C$334+1+$B163,0,IF(P$54<'1 Données d''entrée'!$C$333+'1 Données d''entrée'!$C$334+1+$B163,$C$160*('1 Données d''entrée'!$C$332*(1+'1 Données d''entrée'!$C$332)^'1 Données d''entrée'!$C$333)/((1+'1 Données d''entrée'!$C$332)^'1 Données d''entrée'!$C$333-1),0))","v":0},{"$f":"IF(Q54<'1 Données d''entrée'!$C$334+1+$B163,0,IF(Q$54<'1 Données d''entrée'!$C$333+'1 Données d''entrée'!$C$334+1+$B163,$C$160*('1 Données d''entrée'!$C$332*(1+'1 Données d''entrée'!$C$332)^'1 Données d''entrée'!$C$333)/((1+'1 Données d''entrée'!$C$332)^'1 Données d''entrée'!$C$333-1),0))","v":0},{"$f":"IF(R54<'1 Données d''entrée'!$C$334+1+$B163,0,IF(R$54<'1 Données d''entrée'!$C$333+'1 Données d''entrée'!$C$334+1+$B163,$C$160*('1 Données d''entrée'!$C$332*(1+'1 Données d''entrée'!$C$332)^'1 Données d''entrée'!$C$333)/((1+'1 Données d''entrée'!$C$332)^'1 Données d''entrée'!$C$333-1),0))","v":0},{"$f":"IF(S54<'1 Données d''entrée'!$C$334+1+$B163,0,IF(S$54<'1 Données d''entrée'!$C$333+'1 Données d''entrée'!$C$334+1+$B163,$C$160*('1 Données d''entrée'!$C$332*(1+'1 Données d''entrée'!$C$332)^'1 Données d''entrée'!$C$333)/((1+'1 Données d''entrée'!$C$332)^'1 Données d''entrée'!$C$333-1),0))","v":0},{"$f":"IF(T54<'1 Données d''entrée'!$C$334+1+$B163,0,IF(T$54<'1 Données d''entrée'!$C$333+'1 Données d''entrée'!$C$334+1+$B163,$C$160*('1 Données d''entrée'!$C$332*(1+'1 Données d''entrée'!$C$332)^'1 Données d''entrée'!$C$333)/((1+'1 Données d''entrée'!$C$332)^'1 Données d''entrée'!$C$333-1),0))","v":0},{"$f":"IF(U54<'1 Données d''entrée'!$C$334+1+$B163,0,IF(U$54<'1 Données d''entrée'!$C$333+'1 Données d''entrée'!$C$334+1+$B163,$C$160*('1 Données d''entrée'!$C$332*(1+'1 Données d''entrée'!$C$332)^'1 Données d''entrée'!$C$333)/((1+'1 Données d''entrée'!$C$332)^'1 Données d''entrée'!$C$333-1),0))","v":0},{"$f":"IF(V54<'1 Données d''entrée'!$C$334+1+$B163,0,IF(V$54<'1 Données d''entrée'!$C$333+'1 Données d''entrée'!$C$334+1+$B163,$C$160*('1 Données d''entrée'!$C$332*(1+'1 Données d''entrée'!$C$332)^'1 Données d''entrée'!$C$333)/((1+'1 Données d''entrée'!$C$332)^'1 Données d''entrée'!$C$333-1),0))","v":0}]
[null,2,{"$f":"IF(C$54<'1 Données d''entrée'!$C$334+1+$B164,0,IF(C$54<'1 Données d''entrée'!$C$333+'1 Données d''entrée'!$C$334+1+$B164,$D$160*('1 Données d''entrée'!$C$332*(1+'1 Données d''entrée'!$C$332)^'1 Données d''entrée'!$C$333)/((1+'1 Données d''entrée'!$C$332)^'1 Données d''entrée'!$C$333-1),0))","v":0},{"$f":"IF(D$54<'1 Données d''entrée'!$C$334+1+$B164,0,IF(D$54<'1 Données d''entrée'!$C$333+'1 Données d''entrée'!$C$334+1+$B164,$D$160*('1 Données d''entrée'!$C$332*(1+'1 Données d''entrée'!$C$332)^'1 Données d''entrée'!$C$333)/((1+'1 Données d''entrée'!$C$332)^'1 Données d''entrée'!$C$333-1),0))","v":0},{"$f":"IF(E$54<'1 Données d''entrée'!$C$334+1+$B164,0,IF(E$54<'1 Données d''entrée'!$C$333+'1 Données d''entrée'!$C$334+1+$B164,$D$160*('1 Données d''entrée'!$C$332*(1+'1 Données d''entrée'!$C$332)^'1 Données d''entrée'!$C$333)/((1+'1 Données d''entrée'!$C$332)^'1 Données d''entrée'!$C$333-1),0))","v":0},{"$f":"IF(F$54<'1 Données d''entrée'!$C$334+1+$B164,0,IF(F$54<'1 Données d''entrée'!$C$333+'1 Données d''entrée'!$C$334+1+$B164,$D$160*('1 Données d''entrée'!$C$332*(1+'1 Données d''entrée'!$C$332)^'1 Données d''entrée'!$C$333)/((1+'1 Données d''entrée'!$C$332)^'1 Données d''entrée'!$C$333-1),0))","v":0},{"$f":"IF(G$54<'1 Données d''entrée'!$C$334+1+$B164,0,IF(G$54<'1 Données d''entrée'!$C$333+'1 Données d''entrée'!$C$334+1+$B164,$D$160*('1 Données d''entrée'!$C$332*(1+'1 Données d''entrée'!$C$332)^'1 Données d''entrée'!$C$333)/((1+'1 Données d''entrée'!$C$332)^'1 Données d''entrée'!$C$333-1),0))","v":0},{"$f":"IF(H$54<'1 Données d''entrée'!$C$334+1+$B164,0,IF(H$54<'1 Données d''entrée'!$C$333+'1 Données d''entrée'!$C$334+1+$B164,$D$160*('1 Données d''entrée'!$C$332*(1+'1 Données d''entrée'!$C$332)^'1 Données d''entrée'!$C$333)/((1+'1 Données d''entrée'!$C$332)^'1 Données d''entrée'!$C$333-1),0))","v":0},{"$f":"IF(I$54<'1 Données d''entrée'!$C$334+1+$B164,0,IF(I$54<'1 Données d''entrée'!$C$333+'1 Données d''entrée'!$C$334+1+$B164,$D$160*('1 Données d''entrée'!$C$332*(1+'1 Données d''entrée'!$C$332)^'1 Données d''entrée'!$C$333)/((1+'1 Données d''entrée'!$C$332)^'1 Données d''entrée'!$C$333-1),0))","v":0},{"$f":"IF(J$54<'1 Données d''entrée'!$C$334+1+$B164,0,IF(J$54<'1 Données d''entrée'!$C$333+'1 Données d''entrée'!$C$334+1+$B164,$D$160*('1 Données d''entrée'!$C$332*(1+'1 Données d''entrée'!$C$332)^'1 Données d''entrée'!$C$333)/((1+'1 Données d''entrée'!$C$332)^'1 Données d''entrée'!$C$333-1),0))","v":0},{"$f":"IF(K$54<'1 Données d''entrée'!$C$334+1+$B164,0,IF(K$54<'1 Données d''entrée'!$C$333+'1 Données d''entrée'!$C$334+1+$B164,$D$160*('1 Données d''entrée'!$C$332*(1+'1 Données d''entrée'!$C$332)^'1 Données d''entrée'!$C$333)/((1+'1 Données d''entrée'!$C$332)^'1 Données d''entrée'!$C$333-1),0))","v":0},{"$f":"IF(L$54<'1 Données d''entrée'!$C$334+1+$B164,0,IF(L$54<'1 Données d''entrée'!$C$333+'1 Données d''entrée'!$C$334+1+$B164,$D$160*('1 Données d''entrée'!$C$332*(1+'1 Données d''entrée'!$C$332)^'1 Données d''entrée'!$C$333)/((1+'1 Données d''entrée'!$C$332)^'1 Données d''entrée'!$C$333-1),0))","v":0},{"$f":"IF(M$54<'1 Données d''entrée'!$C$334+1+$B164,0,IF(M$54<'1 Données d''entrée'!$C$333+'1 Données d''entrée'!$C$334+1+$B164,$D$160*('1 Données d''entrée'!$C$332*(1+'1 Données d''entrée'!$C$332)^'1 Données d''entrée'!$C$333)/((1+'1 Données d''entrée'!$C$332)^'1 Données d''entrée'!$C$333-1),0))","v":0},{"$f":"IF(N$54<'1 Données d''entrée'!$C$334+1+$B164,0,IF(N$54<'1 Données d''entrée'!$C$333+'1 Données d''entrée'!$C$334+1+$B164,$D$160*('1 Données d''entrée'!$C$332*(1+'1 Données d''entrée'!$C$332)^'1 Données d''entrée'!$C$333)/((1+'1 Données d''entrée'!$C$332)^'1 Données d''entrée'!$C$333-1),0))","v":0},{"$f":"IF(O$54<'1 Données d''entrée'!$C$334+1+$B164,0,IF(O$54<'1 Données d''entrée'!$C$333+'1 Données d''entrée'!$C$334+1+$B164,$D$160*('1 Données d''entrée'!$C$332*(1+'1 Données d''entrée'!$C$332)^'1 Données d''entrée'!$C$333)/((1+'1 Données d''entrée'!$C$332)^'1 Données d''entrée'!$C$333-1),0))","v":0},{"$f":"IF(P$54<'1 Données d''entrée'!$C$334+1+$B164,0,IF(P$54<'1 Données d''entrée'!$C$333+'1 Données d''entrée'!$C$334+1+$B164,$D$160*('1 Données d''entrée'!$C$332*(1+'1 Données d''entrée'!$C$332)^'1 Données d''entrée'!$C$333)/((1+'1 Données d''entrée'!$C$332)^'1 Données d''entrée'!$C$333-1),0))","v":0},{"$f":"IF(Q$54<'1 Données d''entrée'!$C$334+1+$B164,0,IF(Q$54<'1 Données d''entrée'!$C$333+'1 Données d''entrée'!$C$334+1+$B164,$D$160*('1 Données d''entrée'!$C$332*(1+'1 Données d''entrée'!$C$332)^'1 Données d''entrée'!$C$333)/((1+'1 Données d''entrée'!$C$332)^'1 Données d''entrée'!$C$333-1),0))","v":0},{"$f":"IF(R$54<'1 Données d''entrée'!$C$334+1+$B164,0,IF(R$54<'1 Données d''entrée'!$C$333+'1 Données d''entrée'!$C$334+1+$B164,$D$160*('1 Données d''entrée'!$C$332*(1+'1 Données d''entrée'!$C$332)^'1 Données d''entrée'!$C$333)/((1+'1 Données d''entrée'!$C$332)^'1 Données d''entrée'!$C$333-1),0))","v":0},{"$f":"IF(S$54<'1 Données d''entrée'!$C$334+1+$B164,0,IF(S$54<'1 Données d''entrée'!$C$333+'1 Données d''entrée'!$C$334+1+$B164,$D$160*('1 Données d''entrée'!$C$332*(1+'1 Données d''entrée'!$C$332)^'1 Données d''entrée'!$C$333)/((1+'1 Données d''entrée'!$C$332)^'1 Données d''entrée'!$C$333-1),0))","v":0},{"$f":"IF(T$54<'1 Données d''entrée'!$C$334+1+$B164,0,IF(T$54<'1 Données d''entrée'!$C$333+'1 Données d''entrée'!$C$334+1+$B164,$D$160*('1 Données d''entrée'!$C$332*(1+'1 Données d''entrée'!$C$332)^'1 Données d''entrée'!$C$333)/((1+'1 Données d''entrée'!$C$332)^'1 Données d''entrée'!$C$333-1),0))","v":0},{"$f":"IF(U$54<'1 Données d''entrée'!$C$334+1+$B164,0,IF(U$54<'1 Données d''entrée'!$C$333+'1 Données d''entrée'!$C$334+1+$B164,$D$160*('1 Données d''entrée'!$C$332*(1+'1 Données d''entrée'!$C$332)^'1 Données d''entrée'!$C$333)/((1+'1 Données d''entrée'!$C$332)^'1 Données d''entrée'!$C$333-1),0))","v":0},{"$f":"IF(V$54<'1 Données d''entrée'!$C$334+1+$B164,0,IF(V$54<'1 Données d''entrée'!$C$333+'1 Données d''entrée'!$C$334+1+$B164,$D$160*('1 Données d''entrée'!$C$332*(1+'1 Données d''entrée'!$C$332)^'1 Données d''entrée'!$C$333)/((1+'1 Données d''entrée'!$C$332)^'1 Données d''entrée'!$C$333-1),0))","v":0}]
[null,3,{"$f":"IF(C$54<'1 Données d''entrée'!$C$334+1+$B165,0,IF(C$54<'1 Données d''entrée'!$C$333+'1 Données d''entrée'!$C$334+1+$B165,$E$160*('1 Données d''entrée'!$C$332*(1+'1 Données d''entrée'!$C$332)^'1 Données d''entrée'!$C$333)/((1+'1 Données d''entrée'!$C$332)^'1 Données d''entrée'!$C$333-1),0))","v":0},{"$f":"IF(D$54<'1 Données d''entrée'!$C$334+1+$B165,0,IF(D$54<'1 Données d''entrée'!$C$333+'1 Données d''entrée'!$C$334+1+$B165,$E$160*('1 Données d''entrée'!$C$332*(1+'1 Données d''entrée'!$C$332)^'1 Données d''entrée'!$C$333)/((1+'1 Données d''entrée'!$C$332)^'1 Données d''entrée'!$C$333-1),0))","v":0},{"$f":"IF(E$54<'1 Données d''entrée'!$C$334+1+$B165,0,IF(E$54<'1 Données d''entrée'!$C$333+'1 Données d''entrée'!$C$334+1+$B165,$E$160*('1 Données d''entrée'!$C$332*(1+'1 Données d''entrée'!$C$332)^'1 Données d''entrée'!$C$333)/((1+'1 Données d''entrée'!$C$332)^'1 Données d''entrée'!$C$333-1),0))","v":0},{"$f":"IF(F$54<'1 Données d''entrée'!$C$334+1+$B165,0,IF(F$54<'1 Données d''entrée'!$C$333+'1 Données d''entrée'!$C$334+1+$B165,$E$160*('1 Données d''entrée'!$C$332*(1+'1 Données d''entrée'!$C$332)^'1 Données d''entrée'!$C$333)/((1+'1 Données d''entrée'!$C$332)^'1 Données d''entrée'!$C$333-1),0))","v":0},{"$f":"IF(G$54<'1 Données d''entrée'!$C$334+1+$B165,0,IF(G$54<'1 Données d''entrée'!$C$333+'1 Données d''entrée'!$C$334+1+$B165,$E$160*('1 Données d''entrée'!$C$332*(1+'1 Données d''entrée'!$C$332)^'1 Données d''entrée'!$C$333)/((1+'1 Données d''entrée'!$C$332)^'1 Données d''entrée'!$C$333-1),0))","v":0},{"$f":"IF(H$54<'1 Données d''entrée'!$C$334+1+$B165,0,IF(H$54<'1 Données d''entrée'!$C$333+'1 Données d''entrée'!$C$334+1+$B165,$E$160*('1 Données d''entrée'!$C$332*(1+'1 Données d''entrée'!$C$332)^'1 Données d''entrée'!$C$333)/((1+'1 Données d''entrée'!$C$332)^'1 Données d''entrée'!$C$333-1),0))","v":0},{"$f":"IF(I$54<'1 Données d''entrée'!$C$334+1+$B165,0,IF(I$54<'1 Données d''entrée'!$C$333+'1 Données d''entrée'!$C$334+1+$B165,$E$160*('1 Données d''entrée'!$C$332*(1+'1 Données d''entrée'!$C$332)^'1 Données d''entrée'!$C$333)/((1+'1 Données d''entrée'!$C$332)^'1 Données d''entrée'!$C$333-1),0))","v":0},{"$f":"IF(J$54<'1 Données d''entrée'!$C$334+1+$B165,0,IF(J$54<'1 Données d''entrée'!$C$333+'1 Données d''entrée'!$C$334+1+$B165,$E$160*('1 Données d''entrée'!$C$332*(1+'1 Données d''entrée'!$C$332)^'1 Données d''entrée'!$C$333)/((1+'1 Données d''entrée'!$C$332)^'1 Données d''entrée'!$C$333-1),0))","v":0},{"$f":"IF(K$54<'1 Données d''entrée'!$C$334+1+$B165,0,IF(K$54<'1 Données d''entrée'!$C$333+'1 Données d''entrée'!$C$334+1+$B165,$E$160*('1 Données d''entrée'!$C$332*(1+'1 Données d''entrée'!$C$332)^'1 Données d''entrée'!$C$333)/((1+'1 Données d''entrée'!$C$332)^'1 Données d''entrée'!$C$333-1),0))","v":0},{"$f":"IF(L$54<'1 Données d''entrée'!$C$334+1+$B165,0,IF(L$54<'1 Données d''entrée'!$C$333+'1 Données d''entrée'!$C$334+1+$B165,$E$160*('1 Données d''entrée'!$C$332*(1+'1 Données d''entrée'!$C$332)^'1 Données d''entrée'!$C$333)/((1+'1 Données d''entrée'!$C$332)^'1 Données d''entrée'!$C$333-1),0))","v":0},{"$f":"IF(M$54<'1 Données d''entrée'!$C$334+1+$B165,0,IF(M$54<'1 Données d''entrée'!$C$333+'1 Données d''entrée'!$C$334+1+$B165,$E$160*('1 Données d''entrée'!$C$332*(1+'1 Données d''entrée'!$C$332)^'1 Données d''entrée'!$C$333)/((1+'1 Données d''entrée'!$C$332)^'1 Données d''entrée'!$C$333-1),0))","v":0},{"$f":"IF(N$54<'1 Données d''entrée'!$C$334+1+$B165,0,IF(N$54<'1 Données d''entrée'!$C$333+'1 Données d''entrée'!$C$334+1+$B165,$E$160*('1 Données d''entrée'!$C$332*(1+'1 Données d''entrée'!$C$332)^'1 Données d''entrée'!$C$333)/((1+'1 Données d''entrée'!$C$332)^'1 Données d''entrée'!$C$333-1),0))","v":0},{"$f":"IF(O$54<'1 Données d''entrée'!$C$334+1+$B165,0,IF(O$54<'1 Données d''entrée'!$C$333+'1 Données d''entrée'!$C$334+1+$B165,$E$160*('1 Données d''entrée'!$C$332*(1+'1 Données d''entrée'!$C$332)^'1 Données d''entrée'!$C$333)/((1+'1 Données d''entrée'!$C$332)^'1 Données d''entrée'!$C$333-1),0))","v":0},{"$f":"IF(P$54<'1 Données d''entrée'!$C$334+1+$B165,0,IF(P$54<'1 Données d''entrée'!$C$333+'1 Données d''entrée'!$C$334+1+$B165,$E$160*('1 Données d''entrée'!$C$332*(1+'1 Données d''entrée'!$C$332)^'1 Données d''entrée'!$C$333)/((1+'1 Données d''entrée'!$C$332)^'1 Données d''entrée'!$C$333-1),0))","v":0},{"$f":"IF(Q$54<'1 Données d''entrée'!$C$334+1+$B165,0,IF(Q$54<'1 Données d''entrée'!$C$333+'1 Données d''entrée'!$C$334+1+$B165,$E$160*('1 Données d''entrée'!$C$332*(1+'1 Données d''entrée'!$C$332)^'1 Données d''entrée'!$C$333)/((1+'1 Données d''entrée'!$C$332)^'1 Données d''entrée'!$C$333-1),0))","v":0},{"$f":"IF(R$54<'1 Données d''entrée'!$C$334+1+$B165,0,IF(R$54<'1 Données d''entrée'!$C$333+'1 Données d''entrée'!$C$334+1+$B165,$E$160*('1 Données d''entrée'!$C$332*(1+'1 Données d''entrée'!$C$332)^'1 Données d''entrée'!$C$333)/((1+'1 Données d''entrée'!$C$332)^'1 Données d''entrée'!$C$333-1),0))","v":0},{"$f":"IF(S$54<'1 Données d''entrée'!$C$334+1+$B165,0,IF(S$54<'1 Données d''entrée'!$C$333+'1 Données d''entrée'!$C$334+1+$B165,$E$160*('1 Données d''entrée'!$C$332*(1+'1 Données d''entrée'!$C$332)^'1 Données d''entrée'!$C$333)/((1+'1 Données d''entrée'!$C$332)^'1 Données d''entrée'!$C$333-1),0))","v":0},{"$f":"IF(T$54<'1 Données d''entrée'!$C$334+1+$B165,0,IF(T$54<'1 Données d''entrée'!$C$333+'1 Données d''entrée'!$C$334+1+$B165,$E$160*('1 Données d''entrée'!$C$332*(1+'1 Données d''entrée'!$C$332)^'1 Données d''entrée'!$C$333)/((1+'1 Données d''entrée'!$C$332)^'1 Données d''entrée'!$C$333-1),0))","v":0},{"$f":"IF(U$54<'1 Données d''entrée'!$C$334+1+$B165,0,IF(U$54<'1 Données d''entrée'!$C$333+'1 Données d''entrée'!$C$334+1+$B165,$E$160*('1 Données d''entrée'!$C$332*(1+'1 Données d''entrée'!$C$332)^'1 Données d''entrée'!$C$333)/((1+'1 Données d''entrée'!$C$332)^'1 Données d''entrée'!$C$333-1),0))","v":0},{"$f":"IF(V$54<'1 Données d''entrée'!$C$334+1+$B165,0,IF(V$54<'1 Données d''entrée'!$C$333+'1 Données d''entrée'!$C$334+1+$B165,$E$160*('1 Données d''entrée'!$C$332*(1+'1 Données d''entrée'!$C$332)^'1 Données d''entrée'!$C$333)/((1+'1 Données d''entrée'!$C$332)^'1 Données d''entrée'!$C$333-1),0))","v":0}]
[null,4,{"$f":"IF(C$54<'1 Données d''entrée'!$C$334+1+$B166,0,IF(C$54<'1 Données d''entrée'!$C$333+'1 Données d''entrée'!$C$334+1+$B166,$F$160*('1 Données d''entrée'!$C$332*(1+'1 Données d''entrée'!$C$332)^'1 Données d''entrée'!$C$333)/((1+'1 Données d''entrée'!$C$332)^'1 Données d''entrée'!$C$333-1),0))","v":0},{"$f":"IF(D$54<'1 Données d''entrée'!$C$334+1+$B166,0,IF(D$54<'1 Données d''entrée'!$C$333+'1 Données d''entrée'!$C$334+1+$B166,$F$160*('1 Données d''entrée'!$C$332*(1+'1 Données d''entrée'!$C$332)^'1 Données d''entrée'!$C$333)/((1+'1 Données d''entrée'!$C$332)^'1 Données d''entrée'!$C$333-1),0))","v":0},{"$f":"IF(E$54<'1 Données d''entrée'!$C$334+1+$B166,0,IF(E$54<'1 Données d''entrée'!$C$333+'1 Données d''entrée'!$C$334+1+$B166,$F$160*('1 Données d''entrée'!$C$332*(1+'1 Données d''entrée'!$C$332)^'1 Données d''entrée'!$C$333)/((1+'1 Données d''entrée'!$C$332)^'1 Données d''entrée'!$C$333-1),0))","v":0},{"$f":"IF(F$54<'1 Données d''entrée'!$C$334+1+$B166,0,IF(F$54<'1 Données d''entrée'!$C$333+'1 Données d''entrée'!$C$334+1+$B166,$F$160*('1 Données d''entrée'!$C$332*(1+'1 Données d''entrée'!$C$332)^'1 Données d''entrée'!$C$333)/((1+'1 Données d''entrée'!$C$332)^'1 Données d''entrée'!$C$333-1),0))","v":0},{"$f":"IF(G$54<'1 Données d''entrée'!$C$334+1+$B166,0,IF(G$54<'1 Données d''entrée'!$C$333+'1 Données d''entrée'!$C$334+1+$B166,$F$160*('1 Données d''entrée'!$C$332*(1+'1 Données d''entrée'!$C$332)^'1 Données d''entrée'!$C$333)/((1+'1 Données d''entrée'!$C$332)^'1 Données d''entrée'!$C$333-1),0))","v":0},{"$f":"IF(H$54<'1 Données d''entrée'!$C$334+1+$B166,0,IF(H$54<'1 Données d''entrée'!$C$333+'1 Données d''entrée'!$C$334+1+$B166,$F$160*('1 Données d''entrée'!$C$332*(1+'1 Données d''entrée'!$C$332)^'1 Données d''entrée'!$C$333)/((1+'1 Données d''entrée'!$C$332)^'1 Données d''entrée'!$C$333-1),0))","v":0},{"$f":"IF(I$54<'1 Données d''entrée'!$C$334+1+$B166,0,IF(I$54<'1 Données d''entrée'!$C$333+'1 Données d''entrée'!$C$334+1+$B166,$F$160*('1 Données d''entrée'!$C$332*(1+'1 Données d''entrée'!$C$332)^'1 Données d''entrée'!$C$333)/((1+'1 Données d''entrée'!$C$332)^'1 Données d''entrée'!$C$333-1),0))","v":0},{"$f":"IF(J$54<'1 Données d''entrée'!$C$334+1+$B166,0,IF(J$54<'1 Données d''entrée'!$C$333+'1 Données d''entrée'!$C$334+1+$B166,$F$160*('1 Données d''entrée'!$C$332*(1+'1 Données d''entrée'!$C$332)^'1 Données d''entrée'!$C$333)/((1+'1 Données d''entrée'!$C$332)^'1 Données d''entrée'!$C$333-1),0))","v":0},{"$f":"IF(K$54<'1 Données d''entrée'!$C$334+1+$B166,0,IF(K$54<'1 Données d''entrée'!$C$333+'1 Données d''entrée'!$C$334+1+$B166,$F$160*('1 Données d''entrée'!$C$332*(1+'1 Données d''entrée'!$C$332)^'1 Données d''entrée'!$C$333)/((1+'1 Données d''entrée'!$C$332)^'1 Données d''entrée'!$C$333-1),0))","v":0},{"$f":"IF(L$54<'1 Données d''entrée'!$C$334+1+$B166,0,IF(L$54<'1 Données d''entrée'!$C$333+'1 Données d''entrée'!$C$334+1+$B166,$F$160*('1 Données d''entrée'!$C$332*(1+'1 Données d''entrée'!$C$332)^'1 Données d''entrée'!$C$333)/((1+'1 Données d''entrée'!$C$332)^'1 Données d''entrée'!$C$333-1),0))","v":0},{"$f":"IF(M$54<'1 Données d''entrée'!$C$334+1+$B166,0,IF(M$54<'1 Données d''entrée'!$C$333+'1 Données d''entrée'!$C$334+1+$B166,$F$160*('1 Données d''entrée'!$C$332*(1+'1 Données d''entrée'!$C$332)^'1 Données d''entrée'!$C$333)/((1+'1 Données d''entrée'!$C$332)^'1 Données d''entrée'!$C$333-1),0))","v":0},{"$f":"IF(N$54<'1 Données d''entrée'!$C$334+1+$B166,0,IF(N$54<'1 Données d''entrée'!$C$333+'1 Données d''entrée'!$C$334+1+$B166,$F$160*('1 Données d''entrée'!$C$332*(1+'1 Données d''entrée'!$C$332)^'1 Données d''entrée'!$C$333)/((1+'1 Données d''entrée'!$C$332)^'1 Données d''entrée'!$C$333-1),0))","v":0},{"$f":"IF(O$54<'1 Données d''entrée'!$C$334+1+$B166,0,IF(O$54<'1 Données d''entrée'!$C$333+'1 Données d''entrée'!$C$334+1+$B166,$F$160*('1 Données d''entrée'!$C$332*(1+'1 Données d''entrée'!$C$332)^'1 Données d''entrée'!$C$333)/((1+'1 Données d''entrée'!$C$332)^'1 Données d''entrée'!$C$333-1),0))","v":0},{"$f":"IF(P$54<'1 Données d''entrée'!$C$334+1+$B166,0,IF(P$54<'1 Données d''entrée'!$C$333+'1 Données d''entrée'!$C$334+1+$B166,$F$160*('1 Données d''entrée'!$C$332*(1+'1 Données d''entrée'!$C$332)^'1 Données d''entrée'!$C$333)/((1+'1 Données d''entrée'!$C$332)^'1 Données d''entrée'!$C$333-1),0))","v":0},{"$f":"IF(Q$54<'1 Données d''entrée'!$C$334+1+$B166,0,IF(Q$54<'1 Données d''entrée'!$C$333+'1 Données d''entrée'!$C$334+1+$B166,$F$160*('1 Données d''entrée'!$C$332*(1+'1 Données d''entrée'!$C$332)^'1 Données d''entrée'!$C$333)/((1+'1 Données d''entrée'!$C$332)^'1 Données d''entrée'!$C$333-1),0))","v":0},{"$f":"IF(R$54<'1 Données d''entrée'!$C$334+1+$B166,0,IF(R$54<'1 Données d''entrée'!$C$333+'1 Données d''entrée'!$C$334+1+$B166,$F$160*('1 Données d''entrée'!$C$332*(1+'1 Données d''entrée'!$C$332)^'1 Données d''entrée'!$C$333)/((1+'1 Données d''entrée'!$C$332)^'1 Données d''entrée'!$C$333-1),0))","v":0},{"$f":"IF(S$54<'1 Données d''entrée'!$C$334+1+$B166,0,IF(S$54<'1 Données d''entrée'!$C$333+'1 Données d''entrée'!$C$334+1+$B166,$F$160*('1 Données d''entrée'!$C$332*(1+'1 Données d''entrée'!$C$332)^'1 Données d''entrée'!$C$333)/((1+'1 Données d''entrée'!$C$332)^'1 Données d''entrée'!$C$333-1),0))","v":0},{"$f":"IF(T$54<'1 Données d''entrée'!$C$334+1+$B166,0,IF(T$54<'1 Données d''entrée'!$C$333+'1 Données d''entrée'!$C$334+1+$B166,$F$160*('1 Données d''entrée'!$C$332*(1+'1 Données d''entrée'!$C$332)^'1 Données d''entrée'!$C$333)/((1+'1 Données d''entrée'!$C$332)^'1 Données d''entrée'!$C$333-1),0))","v":0},{"$f":"IF(U$54<'1 Données d''entrée'!$C$334+1+$B166,0,IF(U$54<'1 Données d''entrée'!$C$333+'1 Données d''entrée'!$C$334+1+$B166,$F$160*('1 Données d''entrée'!$C$332*(1+'1 Données d''entrée'!$C$332)^'1 Données d''entrée'!$C$333)/((1+'1 Données d''entrée'!$C$332)^'1 Données d''entrée'!$C$333-1),0))","v":0},{"$f":"IF(V$54<'1 Données d''entrée'!$C$334+1+$B166,0,IF(V$54<'1 Données d''entrée'!$C$333+'1 Données d''entrée'!$C$334+1+$B166,$F$160*('1 Données d''entrée'!$C$332*(1+'1 Données d''entrée'!$C$332)^'1 Données d''entrée'!$C$333)/((1+'1 Données d''entrée'!$C$332)^'1 Données d''entrée'!$C$333-1),0))","v":0}]
[null,5,{"$f":"IF(C$54<'1 Données d''entrée'!$C$334+1+$B167,0,IF(C$54<'1 Données d''entrée'!$C$333+'1 Données d''entrée'!$C$334+1+$B167,$G$160*('1 Données d''entrée'!$C$332*(1+'1 Données d''entrée'!$C$332)^'1 Données d''entrée'!$C$333)/((1+'1 Données d''entrée'!$C$332)^'1 Données d''entrée'!$C$333-1),0))","v":0},{"$f":"IF(D$54<'1 Données d''entrée'!$C$334+1+$B167,0,IF(D$54<'1 Données d''entrée'!$C$333+'1 Données d''entrée'!$C$334+1+$B167,$G$160*('1 Données d''entrée'!$C$332*(1+'1 Données d''entrée'!$C$332)^'1 Données d''entrée'!$C$333)/((1+'1 Données d''entrée'!$C$332)^'1 Données d''entrée'!$C$333-1),0))","v":0},{"$f":"IF(E$54<'1 Données d''entrée'!$C$334+1+$B167,0,IF(E$54<'1 Données d''entrée'!$C$333+'1 Données d''entrée'!$C$334+1+$B167,$G$160*('1 Données d''entrée'!$C$332*(1+'1 Données d''entrée'!$C$332)^'1 Données d''entrée'!$C$333)/((1+'1 Données d''entrée'!$C$332)^'1 Données d''entrée'!$C$333-1),0))","v":0},{"$f":"IF(F$54<'1 Données d''entrée'!$C$334+1+$B167,0,IF(F$54<'1 Données d''entrée'!$C$333+'1 Données d''entrée'!$C$334+1+$B167,$G$160*('1 Données d''entrée'!$C$332*(1+'1 Données d''entrée'!$C$332)^'1 Données d''entrée'!$C$333)/((1+'1 Données d''entrée'!$C$332)^'1 Données d''entrée'!$C$333-1),0))","v":0},{"$f":"IF(G$54<'1 Données d''entrée'!$C$334+1+$B167,0,IF(G$54<'1 Données d''entrée'!$C$333+'1 Données d''entrée'!$C$334+1+$B167,$G$160*('1 Données d''entrée'!$C$332*(1+'1 Données d''entrée'!$C$332)^'1 Données d''entrée'!$C$333)/((1+'1 Données d''entrée'!$C$332)^'1 Données d''entrée'!$C$333-1),0))","v":0},{"$f":"IF(H$54<'1 Données d''entrée'!$C$334+1+$B167,0,IF(H$54<'1 Données d''entrée'!$C$333+'1 Données d''entrée'!$C$334+1+$B167,$G$160*('1 Données d''entrée'!$C$332*(1+'1 Données d''entrée'!$C$332)^'1 Données d''entrée'!$C$333)/((1+'1 Données d''entrée'!$C$332)^'1 Données d''entrée'!$C$333-1),0))","v":0},{"$f":"IF(I$54<'1 Données d''entrée'!$C$334+1+$B167,0,IF(I$54<'1 Données d''entrée'!$C$333+'1 Données d''entrée'!$C$334+1+$B167,$G$160*('1 Données d''entrée'!$C$332*(1+'1 Données d''entrée'!$C$332)^'1 Données d''entrée'!$C$333)/((1+'1 Données d''entrée'!$C$332)^'1 Données d''entrée'!$C$333-1),0))","v":0},{"$f":"IF(J$54<'1 Données d''entrée'!$C$334+1+$B167,0,IF(J$54<'1 Données d''entrée'!$C$333+'1 Données d''entrée'!$C$334+1+$B167,$G$160*('1 Données d''entrée'!$C$332*(1+'1 Données d''entrée'!$C$332)^'1 Données d''entrée'!$C$333)/((1+'1 Données d''entrée'!$C$332)^'1 Données d''entrée'!$C$333-1),0))","v":0},{"$f":"IF(K$54<'1 Données d''entrée'!$C$334+1+$B167,0,IF(K$54<'1 Données d''entrée'!$C$333+'1 Données d''entrée'!$C$334+1+$B167,$G$160*('1 Données d''entrée'!$C$332*(1+'1 Données d''entrée'!$C$332)^'1 Données d''entrée'!$C$333)/((1+'1 Données d''entrée'!$C$332)^'1 Données d''entrée'!$C$333-1),0))","v":0},{"$f":"IF(L$54<'1 Données d''entrée'!$C$334+1+$B167,0,IF(L$54<'1 Données d''entrée'!$C$333+'1 Données d''entrée'!$C$334+1+$B167,$G$160*('1 Données d''entrée'!$C$332*(1+'1 Données d''entrée'!$C$332)^'1 Données d''entrée'!$C$333)/((1+'1 Données d''entrée'!$C$332)^'1 Données d''entrée'!$C$333-1),0))","v":0},{"$f":"IF(M$54<'1 Données d''entrée'!$C$334+1+$B167,0,IF(M$54<'1 Données d''entrée'!$C$333+'1 Données d''entrée'!$C$334+1+$B167,$G$160*('1 Données d''entrée'!$C$332*(1+'1 Données d''entrée'!$C$332)^'1 Données d''entrée'!$C$333)/((1+'1 Données d''entrée'!$C$332)^'1 Données d''entrée'!$C$333-1),0))","v":0},{"$f":"IF(N$54<'1 Données d''entrée'!$C$334+1+$B167,0,IF(N$54<'1 Données d''entrée'!$C$333+'1 Données d''entrée'!$C$334+1+$B167,$G$160*('1 Données d''entrée'!$C$332*(1+'1 Données d''entrée'!$C$332)^'1 Données d''entrée'!$C$333)/((1+'1 Données d''entrée'!$C$332)^'1 Données d''entrée'!$C$333-1),0))","v":0},{"$f":"IF(O$54<'1 Données d''entrée'!$C$334+1+$B167,0,IF(O$54<'1 Données d''entrée'!$C$333+'1 Données d''entrée'!$C$334+1+$B167,$G$160*('1 Données d''entrée'!$C$332*(1+'1 Données d''entrée'!$C$332)^'1 Données d''entrée'!$C$333)/((1+'1 Données d''entrée'!$C$332)^'1 Données d''entrée'!$C$333-1),0))","v":0},{"$f":"IF(P$54<'1 Données d''entrée'!$C$334+1+$B167,0,IF(P$54<'1 Données d''entrée'!$C$333+'1 Données d''entrée'!$C$334+1+$B167,$G$160*('1 Données d''entrée'!$C$332*(1+'1 Données d''entrée'!$C$332)^'1 Données d''entrée'!$C$333)/((1+'1 Données d''entrée'!$C$332)^'1 Données d''entrée'!$C$333-1),0))","v":0},{"$f":"IF(Q$54<'1 Données d''entrée'!$C$334+1+$B167,0,IF(Q$54<'1 Données d''entrée'!$C$333+'1 Données d''entrée'!$C$334+1+$B167,$G$160*('1 Données d''entrée'!$C$332*(1+'1 Données d''entrée'!$C$332)^'1 Données d''entrée'!$C$333)/((1+'1 Données d''entrée'!$C$332)^'1 Données d''entrée'!$C$333-1),0))","v":0},{"$f":"IF(R$54<'1 Données d''entrée'!$C$334+1+$B167,0,IF(R$54<'1 Données d''entrée'!$C$333+'1 Données d''entrée'!$C$334+1+$B167,$G$160*('1 Données d''entrée'!$C$332*(1+'1 Données d''entrée'!$C$332)^'1 Données d''entrée'!$C$333)/((1+'1 Données d''entrée'!$C$332)^'1 Données d''entrée'!$C$333-1),0))","v":0},{"$f":"IF(S$54<'1 Données d''entrée'!$C$334+1+$B167,0,IF(S$54<'1 Données d''entrée'!$C$333+'1 Données d''entrée'!$C$334+1+$B167,$G$160*('1 Données d''entrée'!$C$332*(1+'1 Données d''entrée'!$C$332)^'1 Données d''entrée'!$C$333)/((1+'1 Données d''entrée'!$C$332)^'1 Données d''entrée'!$C$333-1),0))","v":0},{"$f":"IF(T$54<'1 Données d''entrée'!$C$334+1+$B167,0,IF(T$54<'1 Données d''entrée'!$C$333+'1 Données d''entrée'!$C$334+1+$B167,$G$160*('1 Données d''entrée'!$C$332*(1+'1 Données d''entrée'!$C$332)^'1 Données d''entrée'!$C$333)/((1+'1 Données d''entrée'!$C$332)^'1 Données d''entrée'!$C$333-1),0))","v":0},{"$f":"IF(U$54<'1 Données d''entrée'!$C$334+1+$B167,0,IF(U$54<'1 Données d''entrée'!$C$333+'1 Données d''entrée'!$C$334+1+$B167,$G$160*('1 Données d''entrée'!$C$332*(1+'1 Données d''entrée'!$C$332)^'1 Données d''entrée'!$C$333)/((1+'1 Données d''entrée'!$C$332)^'1 Données d''entrée'!$C$333-1),0))","v":0},{"$f":"IF(V$54<'1 Données d''entrée'!$C$334+1+$B167,0,IF(V$54<'1 Données d''entrée'!$C$333+'1 Données d''entrée'!$C$334+1+$B167,$G$160*('1 Données d''entrée'!$C$332*(1+'1 Données d''entrée'!$C$332)^'1 Données d''entrée'!$C$333)/((1+'1 Données d''entrée'!$C$332)^'1 Données d''entrée'!$C$333-1),0))","v":0}]
[null,6,{"$f":"IF(C$54<'1 Données d''entrée'!$C$334+1+$B168,0,IF(C$54<'1 Données d''entrée'!$C$333+'1 Données d''entrée'!$C$334+1+$B168,$H$160*('1 Données d''entrée'!$C$332*(1+'1 Données d''entrée'!$C$332)^'1 Données d''entrée'!$C$333)/((1+'1 Données d''entrée'!$C$332)^'1 Données d''entrée'!$C$333-1),0))","v":0},{"$f":"IF(D$54<'1 Données d''entrée'!$C$334+1+$B168,0,IF(D$54<'1 Données d''entrée'!$C$333+'1 Données d''entrée'!$C$334+1+$B168,$H$160*('1 Données d''entrée'!$C$332*(1+'1 Données d''entrée'!$C$332)^'1 Données d''entrée'!$C$333)/((1+'1 Données d''entrée'!$C$332)^'1 Données d''entrée'!$C$333-1),0))","v":0},{"$f":"IF(E$54<'1 Données d''entrée'!$C$334+1+$B168,0,IF(E$54<'1 Données d''entrée'!$C$333+'1 Données d''entrée'!$C$334+1+$B168,$H$160*('1 Données d''entrée'!$C$332*(1+'1 Données d''entrée'!$C$332)^'1 Données d''entrée'!$C$333)/((1+'1 Données d''entrée'!$C$332)^'1 Données d''entrée'!$C$333-1),0))","v":0},{"$f":"IF(F$54<'1 Données d''entrée'!$C$334+1+$B168,0,IF(F$54<'1 Données d''entrée'!$C$333+'1 Données d''entrée'!$C$334+1+$B168,$H$160*('1 Données d''entrée'!$C$332*(1+'1 Données d''entrée'!$C$332)^'1 Données d''entrée'!$C$333)/((1+'1 Données d''entrée'!$C$332)^'1 Données d''entrée'!$C$333-1),0))","v":0},{"$f":"IF(G$54<'1 Données d''entrée'!$C$334+1+$B168,0,IF(G$54<'1 Données d''entrée'!$C$333+'1 Données d''entrée'!$C$334+1+$B168,$H$160*('1 Données d''entrée'!$C$332*(1+'1 Données d''entrée'!$C$332)^'1 Données d''entrée'!$C$333)/((1+'1 Données d''entrée'!$C$332)^'1 Données d''entrée'!$C$333-1),0))","v":0},{"$f":"IF(H$54<'1 Données d''entrée'!$C$334+1+$B168,0,IF(H$54<'1 Données d''entrée'!$C$333+'1 Données d''entrée'!$C$334+1+$B168,$H$160*('1 Données d''entrée'!$C$332*(1+'1 Données d''entrée'!$C$332)^'1 Données d''entrée'!$C$333)/((1+'1 Données d''entrée'!$C$332)^'1 Données d''entrée'!$C$333-1),0))","v":0},{"$f":"IF(I$54<'1 Données d''entrée'!$C$334+1+$B168,0,IF(I$54<'1 Données d''entrée'!$C$333+'1 Données d''entrée'!$C$334+1+$B168,$H$160*('1 Données d''entrée'!$C$332*(1+'1 Données d''entrée'!$C$332)^'1 Données d''entrée'!$C$333)/((1+'1 Données d''entrée'!$C$332)^'1 Données d''entrée'!$C$333-1),0))","v":0},{"$f":"IF(J$54<'1 Données d''entrée'!$C$334+1+$B168,0,IF(J$54<'1 Données d''entrée'!$C$333+'1 Données d''entrée'!$C$334+1+$B168,$H$160*('1 Données d''entrée'!$C$332*(1+'1 Données d''entrée'!$C$332)^'1 Données d''entrée'!$C$333)/((1+'1 Données d''entrée'!$C$332)^'1 Données d''entrée'!$C$333-1),0))","v":0},{"$f":"IF(K$54<'1 Données d''entrée'!$C$334+1+$B168,0,IF(K$54<'1 Données d''entrée'!$C$333+'1 Données d''entrée'!$C$334+1+$B168,$H$160*('1 Données d''entrée'!$C$332*(1+'1 Données d''entrée'!$C$332)^'1 Données d''entrée'!$C$333)/((1+'1 Données d''entrée'!$C$332)^'1 Données d''entrée'!$C$333-1),0))","v":0},{"$f":"IF(L$54<'1 Données d''entrée'!$C$334+1+$B168,0,IF(L$54<'1 Données d''entrée'!$C$333+'1 Données d''entrée'!$C$334+1+$B168,$H$160*('1 Données d''entrée'!$C$332*(1+'1 Données d''entrée'!$C$332)^'1 Données d''entrée'!$C$333)/((1+'1 Données d''entrée'!$C$332)^'1 Données d''entrée'!$C$333-1),0))","v":0},{"$f":"IF(M$54<'1 Données d''entrée'!$C$334+1+$B168,0,IF(M$54<'1 Données d''entrée'!$C$333+'1 Données d''entrée'!$C$334+1+$B168,$H$160*('1 Données d''entrée'!$C$332*(1+'1 Données d''entrée'!$C$332)^'1 Données d''entrée'!$C$333)/((1+'1 Données d''entrée'!$C$332)^'1 Données d''entrée'!$C$333-1),0))","v":0},{"$f":"IF(N$54<'1 Données d''entrée'!$C$334+1+$B168,0,IF(N$54<'1 Données d''entrée'!$C$333+'1 Données d''entrée'!$C$334+1+$B168,$H$160*('1 Données d''entrée'!$C$332*(1+'1 Données d''entrée'!$C$332)^'1 Données d''entrée'!$C$333)/((1+'1 Données d''entrée'!$C$332)^'1 Données d''entrée'!$C$333-1),0))","v":0},{"$f":"IF(O$54<'1 Données d''entrée'!$C$334+1+$B168,0,IF(O$54<'1 Données d''entrée'!$C$333+'1 Données d''entrée'!$C$334+1+$B168,$H$160*('1 Données d''entrée'!$C$332*(1+'1 Données d''entrée'!$C$332)^'1 Données d''entrée'!$C$333)/((1+'1 Données d''entrée'!$C$332)^'1 Données d''entrée'!$C$333-1),0))","v":0},{"$f":"IF(P$54<'1 Données d''entrée'!$C$334+1+$B168,0,IF(P$54<'1 Données d''entrée'!$C$333+'1 Données d''entrée'!$C$334+1+$B168,$H$160*('1 Données d''entrée'!$C$332*(1+'1 Données d''entrée'!$C$332)^'1 Données d''entrée'!$C$333)/((1+'1 Données d''entrée'!$C$332)^'1 Données d''entrée'!$C$333-1),0))","v":0},{"$f":"IF(Q$54<'1 Données d''entrée'!$C$334+1+$B168,0,IF(Q$54<'1 Données d''entrée'!$C$333+'1 Données d''entrée'!$C$334+1+$B168,$H$160*('1 Données d''entrée'!$C$332*(1+'1 Données d''entrée'!$C$332)^'1 Données d''entrée'!$C$333)/((1+'1 Données d''entrée'!$C$332)^'1 Données d''entrée'!$C$333-1),0))","v":0},{"$f":"IF(R$54<'1 Données d''entrée'!$C$334+1+$B168,0,IF(R$54<'1 Données d''entrée'!$C$333+'1 Données d''entrée'!$C$334+1+$B168,$H$160*('1 Données d''entrée'!$C$332*(1+'1 Données d''entrée'!$C$332)^'1 Données d''entrée'!$C$333)/((1+'1 Données d''entrée'!$C$332)^'1 Données d''entrée'!$C$333-1),0))","v":0},{"$f":"IF(S$54<'1 Données d''entrée'!$C$334+1+$B168,0,IF(S$54<'1 Données d''entrée'!$C$333+'1 Données d''entrée'!$C$334+1+$B168,$H$160*('1 Données d''entrée'!$C$332*(1+'1 Données d''entrée'!$C$332)^'1 Données d''entrée'!$C$333)/((1+'1 Données d''entrée'!$C$332)^'1 Données d''entrée'!$C$333-1),0))","v":0},{"$f":"IF(T$54<'1 Données d''entrée'!$C$334+1+$B168,0,IF(T$54<'1 Données d''entrée'!$C$333+'1 Données d''entrée'!$C$334+1+$B168,$H$160*('1 Données d''entrée'!$C$332*(1+'1 Données d''entrée'!$C$332)^'1 Données d''entrée'!$C$333)/((1+'1 Données d''entrée'!$C$332)^'1 Données d''entrée'!$C$333-1),0))","v":0},{"$f":"IF(U$54<'1 Données d''entrée'!$C$334+1+$B168,0,IF(U$54<'1 Données d''entrée'!$C$333+'1 Données d''entrée'!$C$334+1+$B168,$H$160*('1 Données d''entrée'!$C$332*(1+'1 Données d''entrée'!$C$332)^'1 Données d''entrée'!$C$333)/((1+'1 Données d''entrée'!$C$332)^'1 Données d''entrée'!$C$333-1),0))","v":0},{"$f":"IF(V$54<'1 Données d''entrée'!$C$334+1+$B168,0,IF(V$54<'1 Données d''entrée'!$C$333+'1 Données d''entrée'!$C$334+1+$B168,$H$160*('1 Données d''entrée'!$C$332*(1+'1 Données d''entrée'!$C$332)^'1 Données d''entrée'!$C$333)/((1+'1 Données d''entrée'!$C$332)^'1 Données d''entrée'!$C$333-1),0))","v":0}]
[null,7,{"$f":"IF(C$54<'1 Données d''entrée'!$C$334+1+$B169,0,IF(C$54<'1 Données d''entrée'!$C$333+'1 Données d''entrée'!$C$334+1+$B169,$I$160*('1 Données d''entrée'!$C$332*(1+'1 Données d''entrée'!$C$332)^'1 Données d''entrée'!$C$333)/((1+'1 Données d''entrée'!$C$332)^'1 Données d''entrée'!$C$333-1),0))","v":0},{"$f":"IF(D$54<'1 Données d''entrée'!$C$334+1+$B169,0,IF(D$54<'1 Données d''entrée'!$C$333+'1 Données d''entrée'!$C$334+1+$B169,$I$160*('1 Données d''entrée'!$C$332*(1+'1 Données d''entrée'!$C$332)^'1 Données d''entrée'!$C$333)/((1+'1 Données d''entrée'!$C$332)^'1 Données d''entrée'!$C$333-1),0))","v":0},{"$f":"IF(E$54<'1 Données d''entrée'!$C$334+1+$B169,0,IF(E$54<'1 Données d''entrée'!$C$333+'1 Données d''entrée'!$C$334+1+$B169,$I$160*('1 Données d''entrée'!$C$332*(1+'1 Données d''entrée'!$C$332)^'1 Données d''entrée'!$C$333)/((1+'1 Données d''entrée'!$C$332)^'1 Données d''entrée'!$C$333-1),0))","v":0},{"$f":"IF(F$54<'1 Données d''entrée'!$C$334+1+$B169,0,IF(F$54<'1 Données d''entrée'!$C$333+'1 Données d''entrée'!$C$334+1+$B169,$I$160*('1 Données d''entrée'!$C$332*(1+'1 Données d''entrée'!$C$332)^'1 Données d''entrée'!$C$333)/((1+'1 Données d''entrée'!$C$332)^'1 Données d''entrée'!$C$333-1),0))","v":0},{"$f":"IF(G$54<'1 Données d''entrée'!$C$334+1+$B169,0,IF(G$54<'1 Données d''entrée'!$C$333+'1 Données d''entrée'!$C$334+1+$B169,$I$160*('1 Données d''entrée'!$C$332*(1+'1 Données d''entrée'!$C$332)^'1 Données d''entrée'!$C$333)/((1+'1 Données d''entrée'!$C$332)^'1 Données d''entrée'!$C$333-1),0))","v":0},{"$f":"IF(H$54<'1 Données d''entrée'!$C$334+1+$B169,0,IF(H$54<'1 Données d''entrée'!$C$333+'1 Données d''entrée'!$C$334+1+$B169,$I$160*('1 Données d''entrée'!$C$332*(1+'1 Données d''entrée'!$C$332)^'1 Données d''entrée'!$C$333)/((1+'1 Données d''entrée'!$C$332)^'1 Données d''entrée'!$C$333-1),0))","v":0},{"$f":"IF(I$54<'1 Données d''entrée'!$C$334+1+$B169,0,IF(I$54<'1 Données d''entrée'!$C$333+'1 Données d''entrée'!$C$334+1+$B169,$I$160*('1 Données d''entrée'!$C$332*(1+'1 Données d''entrée'!$C$332)^'1 Données d''entrée'!$C$333)/((1+'1 Données d''entrée'!$C$332)^'1 Données d''entrée'!$C$333-1),0))","v":0},{"$f":"IF(J$54<'1 Données d''entrée'!$C$334+1+$B169,0,IF(J$54<'1 Données d''entrée'!$C$333+'1 Données d''entrée'!$C$334+1+$B169,$I$160*('1 Données d''entrée'!$C$332*(1+'1 Données d''entrée'!$C$332)^'1 Données d''entrée'!$C$333)/((1+'1 Données d''entrée'!$C$332)^'1 Données d''entrée'!$C$333-1),0))","v":0},{"$f":"IF(K$54<'1 Données d''entrée'!$C$334+1+$B169,0,IF(K$54<'1 Données d''entrée'!$C$333+'1 Données d''entrée'!$C$334+1+$B169,$I$160*('1 Données d''entrée'!$C$332*(1+'1 Données d''entrée'!$C$332)^'1 Données d''entrée'!$C$333)/((1+'1 Données d''entrée'!$C$332)^'1 Données d''entrée'!$C$333-1),0))","v":0},{"$f":"IF(L$54<'1 Données d''entrée'!$C$334+1+$B169,0,IF(L$54<'1 Données d''entrée'!$C$333+'1 Données d''entrée'!$C$334+1+$B169,$I$160*('1 Données d''entrée'!$C$332*(1+'1 Données d''entrée'!$C$332)^'1 Données d''entrée'!$C$333)/((1+'1 Données d''entrée'!$C$332)^'1 Données d''entrée'!$C$333-1),0))","v":0},{"$f":"IF(M$54<'1 Données d''entrée'!$C$334+1+$B169,0,IF(M$54<'1 Données d''entrée'!$C$333+'1 Données d''entrée'!$C$334+1+$B169,$I$160*('1 Données d''entrée'!$C$332*(1+'1 Données d''entrée'!$C$332)^'1 Données d''entrée'!$C$333)/((1+'1 Données d''entrée'!$C$332)^'1 Données d''entrée'!$C$333-1),0))","v":0},{"$f":"IF(N$54<'1 Données d''entrée'!$C$334+1+$B169,0,IF(N$54<'1 Données d''entrée'!$C$333+'1 Données d''entrée'!$C$334+1+$B169,$I$160*('1 Données d''entrée'!$C$332*(1+'1 Données d''entrée'!$C$332)^'1 Données d''entrée'!$C$333)/((1+'1 Données d''entrée'!$C$332)^'1 Données d''entrée'!$C$333-1),0))","v":0},{"$f":"IF(O$54<'1 Données d''entrée'!$C$334+1+$B169,0,IF(O$54<'1 Données d''entrée'!$C$333+'1 Données d''entrée'!$C$334+1+$B169,$I$160*('1 Données d''entrée'!$C$332*(1+'1 Données d''entrée'!$C$332)^'1 Données d''entrée'!$C$333)/((1+'1 Données d''entrée'!$C$332)^'1 Données d''entrée'!$C$333-1),0))","v":0},{"$f":"IF(P$54<'1 Données d''entrée'!$C$334+1+$B169,0,IF(P$54<'1 Données d''entrée'!$C$333+'1 Données d''entrée'!$C$334+1+$B169,$I$160*('1 Données d''entrée'!$C$332*(1+'1 Données d''entrée'!$C$332)^'1 Données d''entrée'!$C$333)/((1+'1 Données d''entrée'!$C$332)^'1 Données d''entrée'!$C$333-1),0))","v":0},{"$f":"IF(Q$54<'1 Données d''entrée'!$C$334+1+$B169,0,IF(Q$54<'1 Données d''entrée'!$C$333+'1 Données d''entrée'!$C$334+1+$B169,$I$160*('1 Données d''entrée'!$C$332*(1+'1 Données d''entrée'!$C$332)^'1 Données d''entrée'!$C$333)/((1+'1 Données d''entrée'!$C$332)^'1 Données d''entrée'!$C$333-1),0))","v":0},{"$f":"IF(R$54<'1 Données d''entrée'!$C$334+1+$B169,0,IF(R$54<'1 Données d''entrée'!$C$333+'1 Données d''entrée'!$C$334+1+$B169,$I$160*('1 Données d''entrée'!$C$332*(1+'1 Données d''entrée'!$C$332)^'1 Données d''entrée'!$C$333)/((1+'1 Données d''entrée'!$C$332)^'1 Données d''entrée'!$C$333-1),0))","v":0},{"$f":"IF(S$54<'1 Données d''entrée'!$C$334+1+$B169,0,IF(S$54<'1 Données d''entrée'!$C$333+'1 Données d''entrée'!$C$334+1+$B169,$I$160*('1 Données d''entrée'!$C$332*(1+'1 Données d''entrée'!$C$332)^'1 Données d''entrée'!$C$333)/((1+'1 Données d''entrée'!$C$332)^'1 Données d''entrée'!$C$333-1),0))","v":0},{"$f":"IF(T$54<'1 Données d''entrée'!$C$334+1+$B169,0,IF(T$54<'1 Données d''entrée'!$C$333+'1 Données d''entrée'!$C$334+1+$B169,$I$160*('1 Données d''entrée'!$C$332*(1+'1 Données d''entrée'!$C$332)^'1 Données d''entrée'!$C$333)/((1+'1 Données d''entrée'!$C$332)^'1 Données d''entrée'!$C$333-1),0))","v":0},{"$f":"IF(U$54<'1 Données d''entrée'!$C$334+1+$B169,0,IF(U$54<'1 Données d''entrée'!$C$333+'1 Données d''entrée'!$C$334+1+$B169,$I$160*('1 Données d''entrée'!$C$332*(1+'1 Données d''entrée'!$C$332)^'1 Données d''entrée'!$C$333)/((1+'1 Données d''entrée'!$C$332)^'1 Données d''entrée'!$C$333-1),0))","v":0},{"$f":"IF(V$54<'1 Données d''entrée'!$C$334+1+$B169,0,IF(V$54<'1 Données d''entrée'!$C$333+'1 Données d''entrée'!$C$334+1+$B169,$I$160*('1 Données d''entrée'!$C$332*(1+'1 Données d''entrée'!$C$332)^'1 Données d''entrée'!$C$333)/((1+'1 Données d''entrée'!$C$332)^'1 Données d''entrée'!$C$333-1),0))","v":0}]
[null,8,{"$f":"IF(C$54<'1 Données d''entrée'!$C$334+1+$B170,0,IF(C$54<'1 Données d''entrée'!$C$333+'1 Données d''entrée'!$C$334+1+$B170,$J$160*('1 Données d''entrée'!$C$332*(1+'1 Données d''entrée'!$C$332)^'1 Données d''entrée'!$C$333)/((1+'1 Données d''entrée'!$C$332)^'1 Données d''entrée'!$C$333-1),0))","v":0},{"$f":"IF(D$54<'1 Données d''entrée'!$C$334+1+$B170,0,IF(D$54<'1 Données d''entrée'!$C$333+'1 Données d''entrée'!$C$334+1+$B170,$J$160*('1 Données d''entrée'!$C$332*(1+'1 Données d''entrée'!$C$332)^'1 Données d''entrée'!$C$333)/((1+'1 Données d''entrée'!$C$332)^'1 Données d''entrée'!$C$333-1),0))","v":0},{"$f":"IF(E$54<'1 Données d''entrée'!$C$334+1+$B170,0,IF(E$54<'1 Données d''entrée'!$C$333+'1 Données d''entrée'!$C$334+1+$B170,$J$160*('1 Données d''entrée'!$C$332*(1+'1 Données d''entrée'!$C$332)^'1 Données d''entrée'!$C$333)/((1+'1 Données d''entrée'!$C$332)^'1 Données d''entrée'!$C$333-1),0))","v":0},{"$f":"IF(F$54<'1 Données d''entrée'!$C$334+1+$B170,0,IF(F$54<'1 Données d''entrée'!$C$333+'1 Données d''entrée'!$C$334+1+$B170,$J$160*('1 Données d''entrée'!$C$332*(1+'1 Données d''entrée'!$C$332)^'1 Données d''entrée'!$C$333)/((1+'1 Données d''entrée'!$C$332)^'1 Données d''entrée'!$C$333-1),0))","v":0},{"$f":"IF(G$54<'1 Données d''entrée'!$C$334+1+$B170,0,IF(G$54<'1 Données d''entrée'!$C$333+'1 Données d''entrée'!$C$334+1+$B170,$J$160*('1 Données d''entrée'!$C$332*(1+'1 Données d''entrée'!$C$332)^'1 Données d''entrée'!$C$333)/((1+'1 Données d''entrée'!$C$332)^'1 Données d''entrée'!$C$333-1),0))","v":0},{"$f":"IF(H$54<'1 Données d''entrée'!$C$334+1+$B170,0,IF(H$54<'1 Données d''entrée'!$C$333+'1 Données d''entrée'!$C$334+1+$B170,$J$160*('1 Données d''entrée'!$C$332*(1+'1 Données d''entrée'!$C$332)^'1 Données d''entrée'!$C$333)/((1+'1 Données d''entrée'!$C$332)^'1 Données d''entrée'!$C$333-1),0))","v":0},{"$f":"IF(I$54<'1 Données d''entrée'!$C$334+1+$B170,0,IF(I$54<'1 Données d''entrée'!$C$333+'1 Données d''entrée'!$C$334+1+$B170,$J$160*('1 Données d''entrée'!$C$332*(1+'1 Données d''entrée'!$C$332)^'1 Données d''entrée'!$C$333)/((1+'1 Données d''entrée'!$C$332)^'1 Données d''entrée'!$C$333-1),0))","v":0},{"$f":"IF(J$54<'1 Données d''entrée'!$C$334+1+$B170,0,IF(J$54<'1 Données d''entrée'!$C$333+'1 Données d''entrée'!$C$334+1+$B170,$J$160*('1 Données d''entrée'!$C$332*(1+'1 Données d''entrée'!$C$332)^'1 Données d''entrée'!$C$333)/((1+'1 Données d''entrée'!$C$332)^'1 Données d''entrée'!$C$333-1),0))","v":0},{"$f":"IF(K$54<'1 Données d''entrée'!$C$334+1+$B170,0,IF(K$54<'1 Données d''entrée'!$C$333+'1 Données d''entrée'!$C$334+1+$B170,$J$160*('1 Données d''entrée'!$C$332*(1+'1 Données d''entrée'!$C$332)^'1 Données d''entrée'!$C$333)/((1+'1 Données d''entrée'!$C$332)^'1 Données d''entrée'!$C$333-1),0))","v":0},{"$f":"IF(L$54<'1 Données d''entrée'!$C$334+1+$B170,0,IF(L$54<'1 Données d''entrée'!$C$333+'1 Données d''entrée'!$C$334+1+$B170,$J$160*('1 Données d''entrée'!$C$332*(1+'1 Données d''entrée'!$C$332)^'1 Données d''entrée'!$C$333)/((1+'1 Données d''entrée'!$C$332)^'1 Données d''entrée'!$C$333-1),0))","v":0},{"$f":"IF(M$54<'1 Données d''entrée'!$C$334+1+$B170,0,IF(M$54<'1 Données d''entrée'!$C$333+'1 Données d''entrée'!$C$334+1+$B170,$J$160*('1 Données d''entrée'!$C$332*(1+'1 Données d''entrée'!$C$332)^'1 Données d''entrée'!$C$333)/((1+'1 Données d''entrée'!$C$332)^'1 Données d''entrée'!$C$333-1),0))","v":0},{"$f":"IF(N$54<'1 Données d''entrée'!$C$334+1+$B170,0,IF(N$54<'1 Données d''entrée'!$C$333+'1 Données d''entrée'!$C$334+1+$B170,$J$160*('1 Données d''entrée'!$C$332*(1+'1 Données d''entrée'!$C$332)^'1 Données d''entrée'!$C$333)/((1+'1 Données d''entrée'!$C$332)^'1 Données d''entrée'!$C$333-1),0))","v":0},{"$f":"IF(O$54<'1 Données d''entrée'!$C$334+1+$B170,0,IF(O$54<'1 Données d''entrée'!$C$333+'1 Données d''entrée'!$C$334+1+$B170,$J$160*('1 Données d''entrée'!$C$332*(1+'1 Données d''entrée'!$C$332)^'1 Données d''entrée'!$C$333)/((1+'1 Données d''entrée'!$C$332)^'1 Données d''entrée'!$C$333-1),0))","v":0},{"$f":"IF(P$54<'1 Données d''entrée'!$C$334+1+$B170,0,IF(P$54<'1 Données d''entrée'!$C$333+'1 Données d''entrée'!$C$334+1+$B170,$J$160*('1 Données d''entrée'!$C$332*(1+'1 Données d''entrée'!$C$332)^'1 Données d''entrée'!$C$333)/((1+'1 Données d''entrée'!$C$332)^'1 Données d''entrée'!$C$333-1),0))","v":0},{"$f":"IF(Q$54<'1 Données d''entrée'!$C$334+1+$B170,0,IF(Q$54<'1 Données d''entrée'!$C$333+'1 Données d''entrée'!$C$334+1+$B170,$J$160*('1 Données d''entrée'!$C$332*(1+'1 Données d''entrée'!$C$332)^'1 Données d''entrée'!$C$333)/((1+'1 Données d''entrée'!$C$332)^'1 Données d''entrée'!$C$333-1),0))","v":0},{"$f":"IF(R$54<'1 Données d''entrée'!$C$334+1+$B170,0,IF(R$54<'1 Données d''entrée'!$C$333+'1 Données d''entrée'!$C$334+1+$B170,$J$160*('1 Données d''entrée'!$C$332*(1+'1 Données d''entrée'!$C$332)^'1 Données d''entrée'!$C$333)/((1+'1 Données d''entrée'!$C$332)^'1 Données d''entrée'!$C$333-1),0))","v":0},{"$f":"IF(S$54<'1 Données d''entrée'!$C$334+1+$B170,0,IF(S$54<'1 Données d''entrée'!$C$333+'1 Données d''entrée'!$C$334+1+$B170,$J$160*('1 Données d''entrée'!$C$332*(1+'1 Données d''entrée'!$C$332)^'1 Données d''entrée'!$C$333)/((1+'1 Données d''entrée'!$C$332)^'1 Données d''entrée'!$C$333-1),0))","v":0},{"$f":"IF(T$54<'1 Données d''entrée'!$C$334+1+$B170,0,IF(T$54<'1 Données d''entrée'!$C$333+'1 Données d''entrée'!$C$334+1+$B170,$J$160*('1 Données d''entrée'!$C$332*(1+'1 Données d''entrée'!$C$332)^'1 Données d''entrée'!$C$333)/((1+'1 Données d''entrée'!$C$332)^'1 Données d''entrée'!$C$333-1),0))","v":0},{"$f":"IF(U$54<'1 Données d''entrée'!$C$334+1+$B170,0,IF(U$54<'1 Données d''entrée'!$C$333+'1 Données d''entrée'!$C$334+1+$B170,$J$160*('1 Données d''entrée'!$C$332*(1+'1 Données d''entrée'!$C$332)^'1 Données d''entrée'!$C$333)/((1+'1 Données d''entrée'!$C$332)^'1 Données d''entrée'!$C$333-1),0))","v":0},{"$f":"IF(V$54<'1 Données d''entrée'!$C$334+1+$B170,0,IF(V$54<'1 Données d''entrée'!$C$333+'1 Données d''entrée'!$C$334+1+$B170,$J$160*('1 Données d''entrée'!$C$332*(1+'1 Données d''entrée'!$C$332)^'1 Données d''entrée'!$C$333)/((1+'1 Données d''entrée'!$C$332)^'1 Données d''entrée'!$C$333-1),0))","v":0}]
[null,9,{"$f":"IF(C$54<'1 Données d''entrée'!$C$334+1+$B171,0,IF(C$54<'1 Données d''entrée'!$C$333+'1 Données d''entrée'!$C$334+1+$B171,$K$160*('1 Données d''entrée'!$C$332*(1+'1 Données d''entrée'!$C$332)^'1 Données d''entrée'!$C$333)/((1+'1 Données d''entrée'!$C$332)^'1 Données d''entrée'!$C$333-1),0))","v":0},{"$f":"IF(D$54<'1 Données d''entrée'!$C$334+1+$B171,0,IF(D$54<'1 Données d''entrée'!$C$333+'1 Données d''entrée'!$C$334+1+$B171,$K$160*('1 Données d''entrée'!$C$332*(1+'1 Données d''entrée'!$C$332)^'1 Données d''entrée'!$C$333)/((1+'1 Données d''entrée'!$C$332)^'1 Données d''entrée'!$C$333-1),0))","v":0},{"$f":"IF(E$54<'1 Données d''entrée'!$C$334+1+$B171,0,IF(E$54<'1 Données d''entrée'!$C$333+'1 Données d''entrée'!$C$334+1+$B171,$K$160*('1 Données d''entrée'!$C$332*(1+'1 Données d''entrée'!$C$332)^'1 Données d''entrée'!$C$333)/((1+'1 Données d''entrée'!$C$332)^'1 Données d''entrée'!$C$333-1),0))","v":0},{"$f":"IF(F$54<'1 Données d''entrée'!$C$334+1+$B171,0,IF(F$54<'1 Données d''entrée'!$C$333+'1 Données d''entrée'!$C$334+1+$B171,$K$160*('1 Données d''entrée'!$C$332*(1+'1 Données d''entrée'!$C$332)^'1 Données d''entrée'!$C$333)/((1+'1 Données d''entrée'!$C$332)^'1 Données d''entrée'!$C$333-1),0))","v":0},{"$f":"IF(G$54<'1 Données d''entrée'!$C$334+1+$B171,0,IF(G$54<'1 Données d''entrée'!$C$333+'1 Données d''entrée'!$C$334+1+$B171,$K$160*('1 Données d''entrée'!$C$332*(1+'1 Données d''entrée'!$C$332)^'1 Données d''entrée'!$C$333)/((1+'1 Données d''entrée'!$C$332)^'1 Données d''entrée'!$C$333-1),0))","v":0},{"$f":"IF(H$54<'1 Données d''entrée'!$C$334+1+$B171,0,IF(H$54<'1 Données d''entrée'!$C$333+'1 Données d''entrée'!$C$334+1+$B171,$K$160*('1 Données d''entrée'!$C$332*(1+'1 Données d''entrée'!$C$332)^'1 Données d''entrée'!$C$333)/((1+'1 Données d''entrée'!$C$332)^'1 Données d''entrée'!$C$333-1),0))","v":0},{"$f":"IF(I$54<'1 Données d''entrée'!$C$334+1+$B171,0,IF(I$54<'1 Données d''entrée'!$C$333+'1 Données d''entrée'!$C$334+1+$B171,$K$160*('1 Données d''entrée'!$C$332*(1+'1 Données d''entrée'!$C$332)^'1 Données d''entrée'!$C$333)/((1+'1 Données d''entrée'!$C$332)^'1 Données d''entrée'!$C$333-1),0))","v":0},{"$f":"IF(J$54<'1 Données d''entrée'!$C$334+1+$B171,0,IF(J$54<'1 Données d''entrée'!$C$333+'1 Données d''entrée'!$C$334+1+$B171,$K$160*('1 Données d''entrée'!$C$332*(1+'1 Données d''entrée'!$C$332)^'1 Données d''entrée'!$C$333)/((1+'1 Données d''entrée'!$C$332)^'1 Données d''entrée'!$C$333-1),0))","v":0},{"$f":"IF(K$54<'1 Données d''entrée'!$C$334+1+$B171,0,IF(K$54<'1 Données d''entrée'!$C$333+'1 Données d''entrée'!$C$334+1+$B171,$K$160*('1 Données d''entrée'!$C$332*(1+'1 Données d''entrée'!$C$332)^'1 Données d''entrée'!$C$333)/((1+'1 Données d''entrée'!$C$332)^'1 Données d''entrée'!$C$333-1),0))","v":0},{"$f":"IF(L$54<'1 Données d''entrée'!$C$334+1+$B171,0,IF(L$54<'1 Données d''entrée'!$C$333+'1 Données d''entrée'!$C$334+1+$B171,$K$160*('1 Données d''entrée'!$C$332*(1+'1 Données d''entrée'!$C$332)^'1 Données d''entrée'!$C$333)/((1+'1 Données d''entrée'!$C$332)^'1 Données d''entrée'!$C$333-1),0))","v":0},{"$f":"IF(M$54<'1 Données d''entrée'!$C$334+1+$B171,0,IF(M$54<'1 Données d''entrée'!$C$333+'1 Données d''entrée'!$C$334+1+$B171,$K$160*('1 Données d''entrée'!$C$332*(1+'1 Données d''entrée'!$C$332)^'1 Données d''entrée'!$C$333)/((1+'1 Données d''entrée'!$C$332)^'1 Données d''entrée'!$C$333-1),0))","v":0},{"$f":"IF(N$54<'1 Données d''entrée'!$C$334+1+$B171,0,IF(N$54<'1 Données d''entrée'!$C$333+'1 Données d''entrée'!$C$334+1+$B171,$K$160*('1 Données d''entrée'!$C$332*(1+'1 Données d''entrée'!$C$332)^'1 Données d''entrée'!$C$333)/((1+'1 Données d''entrée'!$C$332)^'1 Données d''entrée'!$C$333-1),0))","v":0},{"$f":"IF(O$54<'1 Données d''entrée'!$C$334+1+$B171,0,IF(O$54<'1 Données d''entrée'!$C$333+'1 Données d''entrée'!$C$334+1+$B171,$K$160*('1 Données d''entrée'!$C$332*(1+'1 Données d''entrée'!$C$332)^'1 Données d''entrée'!$C$333)/((1+'1 Données d''entrée'!$C$332)^'1 Données d''entrée'!$C$333-1),0))","v":0},{"$f":"IF(P$54<'1 Données d''entrée'!$C$334+1+$B171,0,IF(P$54<'1 Données d''entrée'!$C$333+'1 Données d''entrée'!$C$334+1+$B171,$K$160*('1 Données d''entrée'!$C$332*(1+'1 Données d''entrée'!$C$332)^'1 Données d''entrée'!$C$333)/((1+'1 Données d''entrée'!$C$332)^'1 Données d''entrée'!$C$333-1),0))","v":0},{"$f":"IF(Q$54<'1 Données d''entrée'!$C$334+1+$B171,0,IF(Q$54<'1 Données d''entrée'!$C$333+'1 Données d''entrée'!$C$334+1+$B171,$K$160*('1 Données d''entrée'!$C$332*(1+'1 Données d''entrée'!$C$332)^'1 Données d''entrée'!$C$333)/((1+'1 Données d''entrée'!$C$332)^'1 Données d''entrée'!$C$333-1),0))","v":0},{"$f":"IF(R$54<'1 Données d''entrée'!$C$334+1+$B171,0,IF(R$54<'1 Données d''entrée'!$C$333+'1 Données d''entrée'!$C$334+1+$B171,$K$160*('1 Données d''entrée'!$C$332*(1+'1 Données d''entrée'!$C$332)^'1 Données d''entrée'!$C$333)/((1+'1 Données d''entrée'!$C$332)^'1 Données d''entrée'!$C$333-1),0))","v":0},{"$f":"IF(S$54<'1 Données d''entrée'!$C$334+1+$B171,0,IF(S$54<'1 Données d''entrée'!$C$333+'1 Données d''entrée'!$C$334+1+$B171,$K$160*('1 Données d''entrée'!$C$332*(1+'1 Données d''entrée'!$C$332)^'1 Données d''entrée'!$C$333)/((1+'1 Données d''entrée'!$C$332)^'1 Données d''entrée'!$C$333-1),0))","v":0},{"$f":"IF(T$54<'1 Données d''entrée'!$C$334+1+$B171,0,IF(T$54<'1 Données d''entrée'!$C$333+'1 Données d''entrée'!$C$334+1+$B171,$K$160*('1 Données d''entrée'!$C$332*(1+'1 Données d''entrée'!$C$332)^'1 Données d''entrée'!$C$333)/((1+'1 Données d''entrée'!$C$332)^'1 Données d''entrée'!$C$333-1),0))","v":0},{"$f":"IF(U$54<'1 Données d''entrée'!$C$334+1+$B171,0,IF(U$54<'1 Données d''entrée'!$C$333+'1 Données d''entrée'!$C$334+1+$B171,$K$160*('1 Données d''entrée'!$C$332*(1+'1 Données d''entrée'!$C$332)^'1 Données d''entrée'!$C$333)/((1+'1 Données d''entrée'!$C$332)^'1 Données d''entrée'!$C$333-1),0))","v":0},{"$f":"IF(V$54<'1 Données d''entrée'!$C$334+1+$B171,0,IF(V$54<'1 Données d''entrée'!$C$333+'1 Données d''entrée'!$C$334+1+$B171,$K$160*('1 Données d''entrée'!$C$332*(1+'1 Données d''entrée'!$C$332)^'1 Données d''entrée'!$C$333)/((1+'1 Données d''entrée'!$C$332)^'1 Données d''entrée'!$C$333-1),0))","v":0}]
[null,10,{"$f":"IF(C$54<'1 Données d''entrée'!$C$334+1+$B172,0,IF(C$54<'1 Données d''entrée'!$C$333+'1 Données d''entrée'!$C$334+1+$B172,$L$160*('1 Données d''entrée'!$C$332*(1+'1 Données d''entrée'!$C$332)^'1 Données d''entrée'!$C$333)/((1+'1 Données d''entrée'!$C$332)^'1 Données d''entrée'!$C$333-1),0))","v":0},{"$f":"IF(D$54<'1 Données d''entrée'!$C$334+1+$B172,0,IF(D$54<'1 Données d''entrée'!$C$333+'1 Données d''entrée'!$C$334+1+$B172,$L$160*('1 Données d''entrée'!$C$332*(1+'1 Données d''entrée'!$C$332)^'1 Données d''entrée'!$C$333)/((1+'1 Données d''entrée'!$C$332)^'1 Données d''entrée'!$C$333-1),0))","v":0},{"$f":"IF(E$54<'1 Données d''entrée'!$C$334+1+$B172,0,IF(E$54<'1 Données d''entrée'!$C$333+'1 Données d''entrée'!$C$334+1+$B172,$L$160*('1 Données d''entrée'!$C$332*(1+'1 Données d''entrée'!$C$332)^'1 Données d''entrée'!$C$333)/((1+'1 Données d''entrée'!$C$332)^'1 Données d''entrée'!$C$333-1),0))","v":0},{"$f":"IF(F$54<'1 Données d''entrée'!$C$334+1+$B172,0,IF(F$54<'1 Données d''entrée'!$C$333+'1 Données d''entrée'!$C$334+1+$B172,$L$160*('1 Données d''entrée'!$C$332*(1+'1 Données d''entrée'!$C$332)^'1 Données d''entrée'!$C$333)/((1+'1 Données d''entrée'!$C$332)^'1 Données d''entrée'!$C$333-1),0))","v":0},{"$f":"IF(G$54<'1 Données d''entrée'!$C$334+1+$B172,0,IF(G$54<'1 Données d''entrée'!$C$333+'1 Données d''entrée'!$C$334+1+$B172,$L$160*('1 Données d''entrée'!$C$332*(1+'1 Données d''entrée'!$C$332)^'1 Données d''entrée'!$C$333)/((1+'1 Données d''entrée'!$C$332)^'1 Données d''entrée'!$C$333-1),0))","v":0},{"$f":"IF(H$54<'1 Données d''entrée'!$C$334+1+$B172,0,IF(H$54<'1 Données d''entrée'!$C$333+'1 Données d''entrée'!$C$334+1+$B172,$L$160*('1 Données d''entrée'!$C$332*(1+'1 Données d''entrée'!$C$332)^'1 Données d''entrée'!$C$333)/((1+'1 Données d''entrée'!$C$332)^'1 Données d''entrée'!$C$333-1),0))","v":0},{"$f":"IF(I$54<'1 Données d''entrée'!$C$334+1+$B172,0,IF(I$54<'1 Données d''entrée'!$C$333+'1 Données d''entrée'!$C$334+1+$B172,$L$160*('1 Données d''entrée'!$C$332*(1+'1 Données d''entrée'!$C$332)^'1 Données d''entrée'!$C$333)/((1+'1 Données d''entrée'!$C$332)^'1 Données d''entrée'!$C$333-1),0))","v":0},{"$f":"IF(J$54<'1 Données d''entrée'!$C$334+1+$B172,0,IF(J$54<'1 Données d''entrée'!$C$333+'1 Données d''entrée'!$C$334+1+$B172,$L$160*('1 Données d''entrée'!$C$332*(1+'1 Données d''entrée'!$C$332)^'1 Données d''entrée'!$C$333)/((1+'1 Données d''entrée'!$C$332)^'1 Données d''entrée'!$C$333-1),0))","v":0},{"$f":"IF(K$54<'1 Données d''entrée'!$C$334+1+$B172,0,IF(K$54<'1 Données d''entrée'!$C$333+'1 Données d''entrée'!$C$334+1+$B172,$L$160*('1 Données d''entrée'!$C$332*(1+'1 Données d''entrée'!$C$332)^'1 Données d''entrée'!$C$333)/((1+'1 Données d''entrée'!$C$332)^'1 Données d''entrée'!$C$333-1),0))","v":0},{"$f":"IF(L$54<'1 Données d''entrée'!$C$334+1+$B172,0,IF(L$54<'1 Données d''entrée'!$C$333+'1 Données d''entrée'!$C$334+1+$B172,$L$160*('1 Données d''entrée'!$C$332*(1+'1 Données d''entrée'!$C$332)^'1 Données d''entrée'!$C$333)/((1+'1 Données d''entrée'!$C$332)^'1 Données d''entrée'!$C$333-1),0))","v":0},{"$f":"IF(M$54<'1 Données d''entrée'!$C$334+1+$B172,0,IF(M$54<'1 Données d''entrée'!$C$333+'1 Données d''entrée'!$C$334+1+$B172,$L$160*('1 Données d''entrée'!$C$332*(1+'1 Données d''entrée'!$C$332)^'1 Données d''entrée'!$C$333)/((1+'1 Données d''entrée'!$C$332)^'1 Données d''entrée'!$C$333-1),0))","v":0},{"$f":"IF(N$54<'1 Données d''entrée'!$C$334+1+$B172,0,IF(N$54<'1 Données d''entrée'!$C$333+'1 Données d''entrée'!$C$334+1+$B172,$L$160*('1 Données d''entrée'!$C$332*(1+'1 Données d''entrée'!$C$332)^'1 Données d''entrée'!$C$333)/((1+'1 Données d''entrée'!$C$332)^'1 Données d''entrée'!$C$333-1),0))","v":0},{"$f":"IF(O$54<'1 Données d''entrée'!$C$334+1+$B172,0,IF(O$54<'1 Données d''entrée'!$C$333+'1 Données d''entrée'!$C$334+1+$B172,$L$160*('1 Données d''entrée'!$C$332*(1+'1 Données d''entrée'!$C$332)^'1 Données d''entrée'!$C$333)/((1+'1 Données d''entrée'!$C$332)^'1 Données d''entrée'!$C$333-1),0))","v":0},{"$f":"IF(P$54<'1 Données d''entrée'!$C$334+1+$B172,0,IF(P$54<'1 Données d''entrée'!$C$333+'1 Données d''entrée'!$C$334+1+$B172,$L$160*('1 Données d''entrée'!$C$332*(1+'1 Données d''entrée'!$C$332)^'1 Données d''entrée'!$C$333)/((1+'1 Données d''entrée'!$C$332)^'1 Données d''entrée'!$C$333-1),0))","v":0},{"$f":"IF(Q$54<'1 Données d''entrée'!$C$334+1+$B172,0,IF(Q$54<'1 Données d''entrée'!$C$333+'1 Données d''entrée'!$C$334+1+$B172,$L$160*('1 Données d''entrée'!$C$332*(1+'1 Données d''entrée'!$C$332)^'1 Données d''entrée'!$C$333)/((1+'1 Données d''entrée'!$C$332)^'1 Données d''entrée'!$C$333-1),0))","v":0},{"$f":"IF(R$54<'1 Données d''entrée'!$C$334+1+$B172,0,IF(R$54<'1 Données d''entrée'!$C$333+'1 Données d''entrée'!$C$334+1+$B172,$L$160*('1 Données d''entrée'!$C$332*(1+'1 Données d''entrée'!$C$332)^'1 Données d''entrée'!$C$333)/((1+'1 Données d''entrée'!$C$332)^'1 Données d''entrée'!$C$333-1),0))","v":0},{"$f":"IF(S$54<'1 Données d''entrée'!$C$334+1+$B172,0,IF(S$54<'1 Données d''entrée'!$C$333+'1 Données d''entrée'!$C$334+1+$B172,$L$160*('1 Données d''entrée'!$C$332*(1+'1 Données d''entrée'!$C$332)^'1 Données d''entrée'!$C$333)/((1+'1 Données d''entrée'!$C$332)^'1 Données d''entrée'!$C$333-1),0))","v":0},{"$f":"IF(T$54<'1 Données d''entrée'!$C$334+1+$B172,0,IF(T$54<'1 Données d''entrée'!$C$333+'1 Données d''entrée'!$C$334+1+$B172,$L$160*('1 Données d''entrée'!$C$332*(1+'1 Données d''entrée'!$C$332)^'1 Données d''entrée'!$C$333)/((1+'1 Données d''entrée'!$C$332)^'1 Données d''entrée'!$C$333-1),0))","v":0},{"$f":"IF(U$54<'1 Données d''entrée'!$C$334+1+$B172,0,IF(U$54<'1 Données d''entrée'!$C$333+'1 Données d''entrée'!$C$334+1+$B172,$L$160*('1 Données d''entrée'!$C$332*(1+'1 Données d''entrée'!$C$332)^'1 Données d''entrée'!$C$333)/((1+'1 Données d''entrée'!$C$332)^'1 Données d''entrée'!$C$333-1),0))","v":0},{"$f":"IF(V$54<'1 Données d''entrée'!$C$334+1+$B172,0,IF(V$54<'1 Données d''entrée'!$C$333+'1 Données d''entrée'!$C$334+1+$B172,$L$160*('1 Données d''entrée'!$C$332*(1+'1 Données d''entrée'!$C$332)^'1 Données d''entrée'!$C$333)/((1+'1 Données d''entrée'!$C$332)^'1 Données d''entrée'!$C$333-1),0))","v":0}]
[null,"Période de prêt nouveau"]
["Paiement d'intérêt décroissant inclu dans l'annuité constante",0,0,0,0,0,0,0,0,0,0,0,0,0,0,0,0,0,0,0,0,0]
["Paiement d'intêrets",1,0,{"$f":"IF(D163>0,$C$160*((('1 Données d''entrée'!$C$332+1)^'1 Données d''entrée'!$C$333)-(1+'1 Données d''entrée'!$C$332)^('6 Financement'!C$54-1-'1 Données d''entrée'!$C$334-$B174))/((1+'1 Données d''entrée'!$C$332)^'1 Données d''entrée'!$C$333-1)*'1 Données d''entrée'!$C$332,0)","v":0},{"$f":"IF(E163>0,$C$160*((('1 Données d''entrée'!$C$332+1)^'1 Données d''entrée'!$C$333)-(1+'1 Données d''entrée'!$C$332)^('6 Financement'!D$54-1-'1 Données d''entrée'!$C$334))/((1+'1 Données d''entrée'!$C$332)^'1 Données d''entrée'!$C$333-1)*'1 Données d''entrée'!$C$332,0)","v":0},{"$f":"IF(F163>0,$C$160*((('1 Données d''entrée'!$C$332+1)^'1 Données d''entrée'!$C$333)-(1+'1 Données d''entrée'!$C$332)^('6 Financement'!E$54-1-'1 Données d''entrée'!$C$334))/((1+'1 Données d''entrée'!$C$332)^'1 Données d''entrée'!$C$333-1)*'1 Données d''entrée'!$C$332,0)","v":0},{"$f":"IF(G163>0,$C$160*((('1 Données d''entrée'!$C$332+1)^'1 Données d''entrée'!$C$333)-(1+'1 Données d''entrée'!$C$332)^('6 Financement'!F$54-1-'1 Données d''entrée'!$C$334))/((1+'1 Données d''entrée'!$C$332)^'1 Données d''entrée'!$C$333-1)*'1 Données d''entrée'!$C$332,0)","v":0},{"$f":"IF(H163>0,$C$160*((('1 Données d''entrée'!$C$332+1)^'1 Données d''entrée'!$C$333)-(1+'1 Données d''entrée'!$C$332)^('6 Financement'!G$54-1-'1 Données d''entrée'!$C$334))/((1+'1 Données d''entrée'!$C$332)^'1 Données d''entrée'!$C$333-1)*'1 Données d''entrée'!$C$332,0)","v":0},{"$f":"IF(I163>0,$C$160*((('1 Données d''entrée'!$C$332+1)^'1 Données d''entrée'!$C$333)-(1+'1 Données d''entrée'!$C$332)^('6 Financement'!H$54-1-'1 Données d''entrée'!$C$334))/((1+'1 Données d''entrée'!$C$332)^'1 Données d''entrée'!$C$333-1)*'1 Données d''entrée'!$C$332,0)","v":0},{"$f":"IF(J163>0,$C$160*((('1 Données d''entrée'!$C$332+1)^'1 Données d''entrée'!$C$333)-(1+'1 Données d''entrée'!$C$332)^('6 Financement'!I$54-1-'1 Données d''entrée'!$C$334))/((1+'1 Données d''entrée'!$C$332)^'1 Données d''entrée'!$C$333-1)*'1 Données d''entrée'!$C$332,0)","v":0},{"$f":"IF(K163>0,$C$160*((('1 Données d''entrée'!$C$332+1)^'1 Données d''entrée'!$C$333)-(1+'1 Données d''entrée'!$C$332)^('6 Financement'!J$54-1-'1 Données d''entrée'!$C$334))/((1+'1 Données d''entrée'!$C$332)^'1 Données d''entrée'!$C$333-1)*'1 Données d''entrée'!$C$332,0)","v":0},{"$f":"IF(L163>0,$C$160*((('1 Données d''entrée'!$C$332+1)^'1 Données d''entrée'!$C$333)-(1+'1 Données d''entrée'!$C$332)^('6 Financement'!K$54-1-'1 Données d''entrée'!$C$334))/((1+'1 Données d''entrée'!$C$332)^'1 Données d''entrée'!$C$333-1)*'1 Données d''entrée'!$C$332,0)","v":0},{"$f":"IF(M163>0,$C$160*((('1 Données d''entrée'!$C$332+1)^'1 Données d''entrée'!$C$333)-(1+'1 Données d''entrée'!$C$332)^('6 Financement'!L$54-1-'1 Données d''entrée'!$C$334))/((1+'1 Données d''entrée'!$C$332)^'1 Données d''entrée'!$C$333-1)*'1 Données d''entrée'!$C$332,0)","v":0},{"$f":"IF(N163>0,$C$160*((('1 Données d''entrée'!$C$332+1)^'1 Données d''entrée'!$C$333)-(1+'1 Données d''entrée'!$C$332)^('6 Financement'!M$54-1-'1 Données d''entrée'!$C$334))/((1+'1 Données d''entrée'!$C$332)^'1 Données d''entrée'!$C$333-1)*'1 Données d''entrée'!$C$332,0)","v":0},{"$f":"IF(O163>0,$C$160*((('1 Données d''entrée'!$C$332+1)^'1 Données d''entrée'!$C$333)-(1+'1 Données d''entrée'!$C$332)^('6 Financement'!N$54-1-'1 Données d''entrée'!$C$334))/((1+'1 Données d''entrée'!$C$332)^'1 Données d''entrée'!$C$333-1)*'1 Données d''entrée'!$C$332,0)","v":0},{"$f":"IF(P163>0,$C$160*((('1 Données d''entrée'!$C$332+1)^'1 Données d''entrée'!$C$333)-(1+'1 Données d''entrée'!$C$332)^('6 Financement'!O$54-1-'1 Données d''entrée'!$C$334))/((1+'1 Données d''entrée'!$C$332)^'1 Données d''entrée'!$C$333-1)*'1 Données d''entrée'!$C$332,0)","v":0},{"$f":"IF(Q163>0,$C$160*((('1 Données d''entrée'!$C$332+1)^'1 Données d''entrée'!$C$333)-(1+'1 Données d''entrée'!$C$332)^('6 Financement'!P$54-1-'1 Données d''entrée'!$C$334))/((1+'1 Données d''entrée'!$C$332)^'1 Données d''entrée'!$C$333-1)*'1 Données d''entrée'!$C$332,0)","v":0},{"$f":"IF(R163>0,$C$160*((('1 Données d''entrée'!$C$332+1)^'1 Données d''entrée'!$C$333)-(1+'1 Données d''entrée'!$C$332)^('6 Financement'!Q$54-1-'1 Données d''entrée'!$C$334))/((1+'1 Données d''entrée'!$C$332)^'1 Données d''entrée'!$C$333-1)*'1 Données d''entrée'!$C$332,0)","v":0},{"$f":"IF(S163>0,$C$160*((('1 Données d''entrée'!$C$332+1)^'1 Données d''entrée'!$C$333)-(1+'1 Données d''entrée'!$C$332)^('6 Financement'!R$54-1-'1 Données d''entrée'!$C$334))/((1+'1 Données d''entrée'!$C$332)^'1 Données d''entrée'!$C$333-1)*'1 Données d''entrée'!$C$332,0)","v":0},{"$f":"IF(T163>0,$C$160*((('1 Données d''entrée'!$C$332+1)^'1 Données d''entrée'!$C$333)-(1+'1 Données d''entrée'!$C$332)^('6 Financement'!S$54-1-'1 Données d''entrée'!$C$334))/((1+'1 Données d''entrée'!$C$332)^'1 Données d''entrée'!$C$333-1)*'1 Données d''entrée'!$C$332,0)","v":0},{"$f":"IF(U163>0,$C$160*((('1 Données d''entrée'!$C$332+1)^'1 Données d''entrée'!$C$333)-(1+'1 Données d''entrée'!$C$332)^('6 Financement'!T$54-1-'1 Données d''entrée'!$C$334))/((1+'1 Données d''entrée'!$C$332)^'1 Données d''entrée'!$C$333-1)*'1 Données d''entrée'!$C$332,0)","v":0},{"$f":"IF(V163>0,$C$160*((('1 Données d''entrée'!$C$332+1)^'1 Données d''entrée'!$C$333)-(1+'1 Données d''entrée'!$C$332)^('6 Financement'!U$54-1-'1 Données d''entrée'!$C$334))/((1+'1 Données d''entrée'!$C$332)^'1 Données d''entrée'!$C$333-1)*'1 Données d''entrée'!$C$332,0)","v":0}]
["Paiement d'intêrets",2,0,{"$f":"IF(D164>0,$D$160*((('1 Données d''entrée'!$C$332+1)^'1 Données d''entrée'!$C$333)-(1+'1 Données d''entrée'!$C$332)^('6 Financement'!C$54-1-'1 Données d''entrée'!$C$334-$B175))/((1+'1 Données d''entrée'!$C$332)^'1 Données d''entrée'!$C$333-1)*'1 Données d''entrée'!$C$332,0)","v":0},{"$f":"IF(E164>0,$D$160*((('1 Données d''entrée'!$C$332+1)^'1 Données d''entrée'!$C$333)-(1+'1 Données d''entrée'!$C$332)^('6 Financement'!D$54-1-'1 Données d''entrée'!$C$334-$B175))/((1+'1 Données d''entrée'!$C$332)^'1 Données d''entrée'!$C$333-1)*'1 Données d''entrée'!$C$332,0)","v":0},{"$f":"IF(F164>0,$D$160*((('1 Données d''entrée'!$C$332+1)^'1 Données d''entrée'!$C$333)-(1+'1 Données d''entrée'!$C$332)^('6 Financement'!E$54-1-'1 Données d''entrée'!$C$334-$B175))/((1+'1 Données d''entrée'!$C$332)^'1 Données d''entrée'!$C$333-1)*'1 Données d''entrée'!$C$332,0)","v":0},{"$f":"IF(G164>0,$D$160*((('1 Données d''entrée'!$C$332+1)^'1 Données d''entrée'!$C$333)-(1+'1 Données d''entrée'!$C$332)^('6 Financement'!F$54-1-'1 Données d''entrée'!$C$334-$B175))/((1+'1 Données d''entrée'!$C$332)^'1 Données d''entrée'!$C$333-1)*'1 Données d''entrée'!$C$332,0)","v":0},{"$f":"IF(H164>0,$D$160*((('1 Données d''entrée'!$C$332+1)^'1 Données d''entrée'!$C$333)-(1+'1 Données d''entrée'!$C$332)^('6 Financement'!G$54-1-'1 Données d''entrée'!$C$334-$B175))/((1+'1 Données d''entrée'!$C$332)^'1 Données d''entrée'!$C$333-1)*'1 Données d''entrée'!$C$332,0)","v":0},{"$f":"IF(I164>0,$D$160*((('1 Données d''entrée'!$C$332+1)^'1 Données d''entrée'!$C$333)-(1+'1 Données d''entrée'!$C$332)^('6 Financement'!H$54-1-'1 Données d''entrée'!$C$334-$B175))/((1+'1 Données d''entrée'!$C$332)^'1 Données d''entrée'!$C$333-1)*'1 Données d''entrée'!$C$332,0)","v":0},{"$f":"IF(J164>0,$D$160*((('1 Données d''entrée'!$C$332+1)^'1 Données d''entrée'!$C$333)-(1+'1 Données d''entrée'!$C$332)^('6 Financement'!I$54-1-'1 Données d''entrée'!$C$334-$B175))/((1+'1 Données d''entrée'!$C$332)^'1 Données d''entrée'!$C$333-1)*'1 Données d''entrée'!$C$332,0)","v":0},{"$f":"IF(K164>0,$D$160*((('1 Données d''entrée'!$C$332+1)^'1 Données d''entrée'!$C$333)-(1+'1 Données d''entrée'!$C$332)^('6 Financement'!J$54-1-'1 Données d''entrée'!$C$334-$B175))/((1+'1 Données d''entrée'!$C$332)^'1 Données d''entrée'!$C$333-1)*'1 Données d''entrée'!$C$332,0)","v":0},{"$f":"IF(L164>0,$D$160*((('1 Données d''entrée'!$C$332+1)^'1 Données d''entrée'!$C$333)-(1+'1 Données d''entrée'!$C$332)^('6 Financement'!K$54-1-'1 Données d''entrée'!$C$334-$B175))/((1+'1 Données d''entrée'!$C$332)^'1 Données d''entrée'!$C$333-1)*'1 Données d''entrée'!$C$332,0)","v":0},{"$f":"IF(M164>0,$D$160*((('1 Données d''entrée'!$C$332+1)^'1 Données d''entrée'!$C$333)-(1+'1 Données d''entrée'!$C$332)^('6 Financement'!L$54-1-'1 Données d''entrée'!$C$334-$B175))/((1+'1 Données d''entrée'!$C$332)^'1 Données d''entrée'!$C$333-1)*'1 Données d''entrée'!$C$332,0)","v":0},{"$f":"IF(N164>0,$D$160*((('1 Données d''entrée'!$C$332+1)^'1 Données d''entrée'!$C$333)-(1+'1 Données d''entrée'!$C$332)^('6 Financement'!M$54-1-'1 Données d''entrée'!$C$334-$B175))/((1+'1 Données d''entrée'!$C$332)^'1 Données d''entrée'!$C$333-1)*'1 Données d''entrée'!$C$332,0)","v":0},{"$f":"IF(O164>0,$D$160*((('1 Données d''entrée'!$C$332+1)^'1 Données d''entrée'!$C$333)-(1+'1 Données d''entrée'!$C$332)^('6 Financement'!N$54-1-'1 Données d''entrée'!$C$334-$B175))/((1+'1 Données d''entrée'!$C$332)^'1 Données d''entrée'!$C$333-1)*'1 Données d''entrée'!$C$332,0)","v":0},{"$f":"IF(P164>0,$D$160*((('1 Données d''entrée'!$C$332+1)^'1 Données d''entrée'!$C$333)-(1+'1 Données d''entrée'!$C$332)^('6 Financement'!O$54-1-'1 Données d''entrée'!$C$334-$B175))/((1+'1 Données d''entrée'!$C$332)^'1 Données d''entrée'!$C$333-1)*'1 Données d''entrée'!$C$332,0)","v":0},{"$f":"IF(Q164>0,$D$160*((('1 Données d''entrée'!$C$332+1)^'1 Données d''entrée'!$C$333)-(1+'1 Données d''entrée'!$C$332)^('6 Financement'!P$54-1-'1 Données d''entrée'!$C$334-$B175))/((1+'1 Données d''entrée'!$C$332)^'1 Données d''entrée'!$C$333-1)*'1 Données d''entrée'!$C$332,0)","v":0},{"$f":"IF(R164>0,$D$160*((('1 Données d''entrée'!$C$332+1)^'1 Données d''entrée'!$C$333)-(1+'1 Données d''entrée'!$C$332)^('6 Financement'!Q$54-1-'1 Données d''entrée'!$C$334-$B175))/((1+'1 Données d''entrée'!$C$332)^'1 Données d''entrée'!$C$333-1)*'1 Données d''entrée'!$C$332,0)","v":0},{"$f":"IF(S164>0,$D$160*((('1 Données d''entrée'!$C$332+1)^'1 Données d''entrée'!$C$333)-(1+'1 Données d''entrée'!$C$332)^('6 Financement'!R$54-1-'1 Données d''entrée'!$C$334-$B175))/((1+'1 Données d''entrée'!$C$332)^'1 Données d''entrée'!$C$333-1)*'1 Données d''entrée'!$C$332,0)","v":0},{"$f":"IF(T164>0,$D$160*((('1 Données d''entrée'!$C$332+1)^'1 Données d''entrée'!$C$333)-(1+'1 Données d''entrée'!$C$332)^('6 Financement'!S$54-1-'1 Données d''entrée'!$C$334-$B175))/((1+'1 Données d''entrée'!$C$332)^'1 Données d''entrée'!$C$333-1)*'1 Données d''entrée'!$C$332,0)","v":0},{"$f":"IF(U164>0,$D$160*((('1 Données d''entrée'!$C$332+1)^'1 Données d''entrée'!$C$333)-(1+'1 Données d''entrée'!$C$332)^('6 Financement'!T$54-1-'1 Données d''entrée'!$C$334-$B175))/((1+'1 Données d''entrée'!$C$332)^'1 Données d''entrée'!$C$333-1)*'1 Données d''entrée'!$C$332,0)","v":0},{"$f":"IF(V164>0,$D$160*((('1 Données d''entrée'!$C$332+1)^'1 Données d''entrée'!$C$333)-(1+'1 Données d''entrée'!$C$332)^('6 Financement'!U$54-1-'1 Données d''entrée'!$C$334-$B175))/((1+'1 Données d''entrée'!$C$332)^'1 Données d''entrée'!$C$333-1)*'1 Données d''entrée'!$C$332,0)","v":0}]
["Paiement d'intêrets",3,0,{"$f":"IF(D165>0,$E$160*((('1 Données d''entrée'!$C$332+1)^'1 Données d''entrée'!$C$333)-(1+'1 Données d''entrée'!$C$332)^('6 Financement'!C$54-1-'1 Données d''entrée'!$C$334-$B176))/((1+'1 Données d''entrée'!$C$332)^'1 Données d''entrée'!$C$333-1)*'1 Données d''entrée'!$C$332,0)","v":0},{"$f":"IF(E165>0,$E$160*((('1 Données d''entrée'!$C$332+1)^'1 Données d''entrée'!$C$333)-(1+'1 Données d''entrée'!$C$332)^('6 Financement'!D$54-1-'1 Données d''entrée'!$C$334-$B176))/((1+'1 Données d''entrée'!$C$332)^'1 Données d''entrée'!$C$333-1)*'1 Données d''entrée'!$C$332,0)","v":0},{"$f":"IF(F165>0,$E$160*((('1 Données d''entrée'!$C$332+1)^'1 Données d''entrée'!$C$333)-(1+'1 Données d''entrée'!$C$332)^('6 Financement'!E$54-1-'1 Données d''entrée'!$C$334-$B176))/((1+'1 Données d''entrée'!$C$332)^'1 Données d''entrée'!$C$333-1)*'1 Données d''entrée'!$C$332,0)","v":0},{"$f":"IF(G165>0,$E$160*((('1 Données d''entrée'!$C$332+1)^'1 Données d''entrée'!$C$333)-(1+'1 Données d''entrée'!$C$332)^('6 Financement'!F$54-1-'1 Données d''entrée'!$C$334-$B176))/((1+'1 Données d''entrée'!$C$332)^'1 Données d''entrée'!$C$333-1)*'1 Données d''entrée'!$C$332,0)","v":0},{"$f":"IF(H165>0,$E$160*((('1 Données d''entrée'!$C$332+1)^'1 Données d''entrée'!$C$333)-(1+'1 Données d''entrée'!$C$332)^('6 Financement'!G$54-1-'1 Données d''entrée'!$C$334-$B176))/((1+'1 Données d''entrée'!$C$332)^'1 Données d''entrée'!$C$333-1)*'1 Données d''entrée'!$C$332,0)","v":0},{"$f":"IF(I165>0,$E$160*((('1 Données d''entrée'!$C$332+1)^'1 Données d''entrée'!$C$333)-(1+'1 Données d''entrée'!$C$332)^('6 Financement'!H$54-1-'1 Données d''entrée'!$C$334-$B176))/((1+'1 Données d''entrée'!$C$332)^'1 Données d''entrée'!$C$333-1)*'1 Données d''entrée'!$C$332,0)","v":0},{"$f":"IF(J165>0,$E$160*((('1 Données d''entrée'!$C$332+1)^'1 Données d''entrée'!$C$333)-(1+'1 Données d''entrée'!$C$332)^('6 Financement'!I$54-1-'1 Données d''entrée'!$C$334-$B176))/((1+'1 Données d''entrée'!$C$332)^'1 Données d''entrée'!$C$333-1)*'1 Données d''entrée'!$C$332,0)","v":0},{"$f":"IF(K165>0,$E$160*((('1 Données d''entrée'!$C$332+1)^'1 Données d''entrée'!$C$333)-(1+'1 Données d''entrée'!$C$332)^('6 Financement'!J$54-1-'1 Données d''entrée'!$C$334-$B176))/((1+'1 Données d''entrée'!$C$332)^'1 Données d''entrée'!$C$333-1)*'1 Données d''entrée'!$C$332,0)","v":0},{"$f":"IF(L165>0,$E$160*((('1 Données d''entrée'!$C$332+1)^'1 Données d''entrée'!$C$333)-(1+'1 Données d''entrée'!$C$332)^('6 Financement'!K$54-1-'1 Données d''entrée'!$C$334-$B176))/((1+'1 Données d''entrée'!$C$332)^'1 Données d''entrée'!$C$333-1)*'1 Données d''entrée'!$C$332,0)","v":0},{"$f":"IF(M165>0,$E$160*((('1 Données d''entrée'!$C$332+1)^'1 Données d''entrée'!$C$333)-(1+'1 Données d''entrée'!$C$332)^('6 Financement'!L$54-1-'1 Données d''entrée'!$C$334-$B176))/((1+'1 Données d''entrée'!$C$332)^'1 Données d''entrée'!$C$333-1)*'1 Données d''entrée'!$C$332,0)","v":0},{"$f":"IF(N165>0,$E$160*((('1 Données d''entrée'!$C$332+1)^'1 Données d''entrée'!$C$333)-(1+'1 Données d''entrée'!$C$332)^('6 Financement'!M$54-1-'1 Données d''entrée'!$C$334-$B176))/((1+'1 Données d''entrée'!$C$332)^'1 Données d''entrée'!$C$333-1)*'1 Données d''entrée'!$C$332,0)","v":0},{"$f":"IF(O165>0,$E$160*((('1 Données d''entrée'!$C$332+1)^'1 Données d''entrée'!$C$333)-(1+'1 Données d''entrée'!$C$332)^('6 Financement'!N$54-1-'1 Données d''entrée'!$C$334-$B176))/((1+'1 Données d''entrée'!$C$332)^'1 Données d''entrée'!$C$333-1)*'1 Données d''entrée'!$C$332,0)","v":0},{"$f":"IF(P165>0,$E$160*((('1 Données d''entrée'!$C$332+1)^'1 Données d''entrée'!$C$333)-(1+'1 Données d''entrée'!$C$332)^('6 Financement'!O$54-1-'1 Données d''entrée'!$C$334-$B176))/((1+'1 Données d''entrée'!$C$332)^'1 Données d''entrée'!$C$333-1)*'1 Données d''entrée'!$C$332,0)","v":0},{"$f":"IF(Q165>0,$E$160*((('1 Données d''entrée'!$C$332+1)^'1 Données d''entrée'!$C$333)-(1+'1 Données d''entrée'!$C$332)^('6 Financement'!P$54-1-'1 Données d''entrée'!$C$334-$B176))/((1+'1 Données d''entrée'!$C$332)^'1 Données d''entrée'!$C$333-1)*'1 Données d''entrée'!$C$332,0)","v":0},{"$f":"IF(R165>0,$E$160*((('1 Données d''entrée'!$C$332+1)^'1 Données d''entrée'!$C$333)-(1+'1 Données d''entrée'!$C$332)^('6 Financement'!Q$54-1-'1 Données d''entrée'!$C$334-$B176))/((1+'1 Données d''entrée'!$C$332)^'1 Données d''entrée'!$C$333-1)*'1 Données d''entrée'!$C$332,0)","v":0},{"$f":"IF(S165>0,$E$160*((('1 Données d''entrée'!$C$332+1)^'1 Données d''entrée'!$C$333)-(1+'1 Données d''entrée'!$C$332)^('6 Financement'!R$54-1-'1 Données d''entrée'!$C$334-$B176))/((1+'1 Données d''entrée'!$C$332)^'1 Données d''entrée'!$C$333-1)*'1 Données d''entrée'!$C$332,0)","v":0},{"$f":"IF(T165>0,$E$160*((('1 Données d''entrée'!$C$332+1)^'1 Données d''entrée'!$C$333)-(1+'1 Données d''entrée'!$C$332)^('6 Financement'!S$54-1-'1 Données d''entrée'!$C$334-$B176))/((1+'1 Données d''entrée'!$C$332)^'1 Données d''entrée'!$C$333-1)*'1 Données d''entrée'!$C$332,0)","v":0},{"$f":"IF(U165>0,$E$160*((('1 Données d''entrée'!$C$332+1)^'1 Données d''entrée'!$C$333)-(1+'1 Données d''entrée'!$C$332)^('6 Financement'!T$54-1-'1 Données d''entrée'!$C$334-$B176))/((1+'1 Données d''entrée'!$C$332)^'1 Données d''entrée'!$C$333-1)*'1 Données d''entrée'!$C$332,0)","v":0},{"$f":"IF(V165>0,$E$160*((('1 Données d''entrée'!$C$332+1)^'1 Données d''entrée'!$C$333)-(1+'1 Données d''entrée'!$C$332)^('6 Financement'!U$54-1-'1 Données d''entrée'!$C$334-$B176))/((1+'1 Données d''entrée'!$C$332)^'1 Données d''entrée'!$C$333-1)*'1 Données d''entrée'!$C$332,0)","v":0}]
["Paiement d'intêrets",4,0,{"$f":"IF(D166>0,$F$160*((('1 Données d''entrée'!$C$332+1)^'1 Données d''entrée'!$C$333)-(1+'1 Données d''entrée'!$C$332)^('6 Financement'!C$54-1-'1 Données d''entrée'!$C$334-$B177))/((1+'1 Données d''entrée'!$C$332)^'1 Données d''entrée'!$C$333-1)*'1 Données d''entrée'!$C$332,0)","v":0},{"$f":"IF(E166>0,$F$160*((('1 Données d''entrée'!$C$332+1)^'1 Données d''entrée'!$C$333)-(1+'1 Données d''entrée'!$C$332)^('6 Financement'!D$54-1-'1 Données d''entrée'!$C$334-$B177))/((1+'1 Données d''entrée'!$C$332)^'1 Données d''entrée'!$C$333-1)*'1 Données d''entrée'!$C$332,0)","v":0},{"$f":"IF(F166>0,$F$160*((('1 Données d''entrée'!$C$332+1)^'1 Données d''entrée'!$C$333)-(1+'1 Données d''entrée'!$C$332)^('6 Financement'!E$54-1-'1 Données d''entrée'!$C$334-$B177))/((1+'1 Données d''entrée'!$C$332)^'1 Données d''entrée'!$C$333-1)*'1 Données d''entrée'!$C$332,0)","v":0},{"$f":"IF(G166>0,$F$160*((('1 Données d''entrée'!$C$332+1)^'1 Données d''entrée'!$C$333)-(1+'1 Données d''entrée'!$C$332)^('6 Financement'!F$54-1-'1 Données d''entrée'!$C$334-$B177))/((1+'1 Données d''entrée'!$C$332)^'1 Données d''entrée'!$C$333-1)*'1 Données d''entrée'!$C$332,0)","v":0},{"$f":"IF(H166>0,$F$160*((('1 Données d''entrée'!$C$332+1)^'1 Données d''entrée'!$C$333)-(1+'1 Données d''entrée'!$C$332)^('6 Financement'!G$54-1-'1 Données d''entrée'!$C$334-$B177))/((1+'1 Données d''entrée'!$C$332)^'1 Données d''entrée'!$C$333-1)*'1 Données d''entrée'!$C$332,0)","v":0},{"$f":"IF(I166>0,$F$160*((('1 Données d''entrée'!$C$332+1)^'1 Données d''entrée'!$C$333)-(1+'1 Données d''entrée'!$C$332)^('6 Financement'!H$54-1-'1 Données d''entrée'!$C$334-$B177))/((1+'1 Données d''entrée'!$C$332)^'1 Données d''entrée'!$C$333-1)*'1 Données d''entrée'!$C$332,0)","v":0},{"$f":"IF(J166>0,$F$160*((('1 Données d''entrée'!$C$332+1)^'1 Données d''entrée'!$C$333)-(1+'1 Données d''entrée'!$C$332)^('6 Financement'!I$54-1-'1 Données d''entrée'!$C$334-$B177))/((1+'1 Données d''entrée'!$C$332)^'1 Données d''entrée'!$C$333-1)*'1 Données d''entrée'!$C$332,0)","v":0},{"$f":"IF(K166>0,$F$160*((('1 Données d''entrée'!$C$332+1)^'1 Données d''entrée'!$C$333)-(1+'1 Données d''entrée'!$C$332)^('6 Financement'!J$54-1-'1 Données d''entrée'!$C$334-$B177))/((1+'1 Données d''entrée'!$C$332)^'1 Données d''entrée'!$C$333-1)*'1 Données d''entrée'!$C$332,0)","v":0},{"$f":"IF(L166>0,$F$160*((('1 Données d''entrée'!$C$332+1)^'1 Données d''entrée'!$C$333)-(1+'1 Données d''entrée'!$C$332)^('6 Financement'!K$54-1-'1 Données d''entrée'!$C$334-$B177))/((1+'1 Données d''entrée'!$C$332)^'1 Données d''entrée'!$C$333-1)*'1 Données d''entrée'!$C$332,0)","v":0},{"$f":"IF(M166>0,$F$160*((('1 Données d''entrée'!$C$332+1)^'1 Données d''entrée'!$C$333)-(1+'1 Données d''entrée'!$C$332)^('6 Financement'!L$54-1-'1 Données d''entrée'!$C$334-$B177))/((1+'1 Données d''entrée'!$C$332)^'1 Données d''entrée'!$C$333-1)*'1 Données d''entrée'!$C$332,0)","v":0},{"$f":"IF(N166>0,$F$160*((('1 Données d''entrée'!$C$332+1)^'1 Données d''entrée'!$C$333)-(1+'1 Données d''entrée'!$C$332)^('6 Financement'!M$54-1-'1 Données d''entrée'!$C$334-$B177))/((1+'1 Données d''entrée'!$C$332)^'1 Données d''entrée'!$C$333-1)*'1 Données d''entrée'!$C$332,0)","v":0},{"$f":"IF(O166>0,$F$160*((('1 Données d''entrée'!$C$332+1)^'1 Données d''entrée'!$C$333)-(1+'1 Données d''entrée'!$C$332)^('6 Financement'!N$54-1-'1 Données d''entrée'!$C$334-$B177))/((1+'1 Données d''entrée'!$C$332)^'1 Données d''entrée'!$C$333-1)*'1 Données d''entrée'!$C$332,0)","v":0},{"$f":"IF(P166>0,$F$160*((('1 Données d''entrée'!$C$332+1)^'1 Données d''entrée'!$C$333)-(1+'1 Données d''entrée'!$C$332)^('6 Financement'!O$54-1-'1 Données d''entrée'!$C$334-$B177))/((1+'1 Données d''entrée'!$C$332)^'1 Données d''entrée'!$C$333-1)*'1 Données d''entrée'!$C$332,0)","v":0},{"$f":"IF(Q166>0,$F$160*((('1 Données d''entrée'!$C$332+1)^'1 Données d''entrée'!$C$333)-(1+'1 Données d''entrée'!$C$332)^('6 Financement'!P$54-1-'1 Données d''entrée'!$C$334-$B177))/((1+'1 Données d''entrée'!$C$332)^'1 Données d''entrée'!$C$333-1)*'1 Données d''entrée'!$C$332,0)","v":0},{"$f":"IF(R166>0,$F$160*((('1 Données d''entrée'!$C$332+1)^'1 Données d''entrée'!$C$333)-(1+'1 Données d''entrée'!$C$332)^('6 Financement'!Q$54-1-'1 Données d''entrée'!$C$334-$B177))/((1+'1 Données d''entrée'!$C$332)^'1 Données d''entrée'!$C$333-1)*'1 Données d''entrée'!$C$332,0)","v":0},{"$f":"IF(S166>0,$F$160*((('1 Données d''entrée'!$C$332+1)^'1 Données d''entrée'!$C$333)-(1+'1 Données d''entrée'!$C$332)^('6 Financement'!R$54-1-'1 Données d''entrée'!$C$334-$B177))/((1+'1 Données d''entrée'!$C$332)^'1 Données d''entrée'!$C$333-1)*'1 Données d''entrée'!$C$332,0)","v":0},{"$f":"IF(T166>0,$F$160*((('1 Données d''entrée'!$C$332+1)^'1 Données d''entrée'!$C$333)-(1+'1 Données d''entrée'!$C$332)^('6 Financement'!S$54-1-'1 Données d''entrée'!$C$334-$B177))/((1+'1 Données d''entrée'!$C$332)^'1 Données d''entrée'!$C$333-1)*'1 Données d''entrée'!$C$332,0)","v":0},{"$f":"IF(U166>0,$F$160*((('1 Données d''entrée'!$C$332+1)^'1 Données d''entrée'!$C$333)-(1+'1 Données d''entrée'!$C$332)^('6 Financement'!T$54-1-'1 Données d''entrée'!$C$334-$B177))/((1+'1 Données d''entrée'!$C$332)^'1 Données d''entrée'!$C$333-1)*'1 Données d''entrée'!$C$332,0)","v":0},{"$f":"IF(V166>0,$F$160*((('1 Données d''entrée'!$C$332+1)^'1 Données d''entrée'!$C$333)-(1+'1 Données d''entrée'!$C$332)^('6 Financement'!U$54-1-'1 Données d''entrée'!$C$334-$B177))/((1+'1 Données d''entrée'!$C$332)^'1 Données d''entrée'!$C$333-1)*'1 Données d''entrée'!$C$332,0)","v":0}]
["Paiement d'intêrets",5,0,{"$f":"IF(D167>0,$G$160*((('1 Données d''entrée'!$C$332+1)^'1 Données d''entrée'!$C$333)-(1+'1 Données d''entrée'!$C$332)^('6 Financement'!C$54-1-'1 Données d''entrée'!$C$334-$B178))/((1+'1 Données d''entrée'!$C$332)^'1 Données d''entrée'!$C$333-1)*'1 Données d''entrée'!$C$332,0)","v":0},{"$f":"IF(E167>0,$G$160*((('1 Données d''entrée'!$C$332+1)^'1 Données d''entrée'!$C$333)-(1+'1 Données d''entrée'!$C$332)^('6 Financement'!D$54-1-'1 Données d''entrée'!$C$334-$B178))/((1+'1 Données d''entrée'!$C$332)^'1 Données d''entrée'!$C$333-1)*'1 Données d''entrée'!$C$332,0)","v":0},{"$f":"IF(F167>0,$G$160*((('1 Données d''entrée'!$C$332+1)^'1 Données d''entrée'!$C$333)-(1+'1 Données d''entrée'!$C$332)^('6 Financement'!E$54-1-'1 Données d''entrée'!$C$334-$B178))/((1+'1 Données d''entrée'!$C$332)^'1 Données d''entrée'!$C$333-1)*'1 Données d''entrée'!$C$332,0)","v":0},{"$f":"IF(G167>0,$G$160*((('1 Données d''entrée'!$C$332+1)^'1 Données d''entrée'!$C$333)-(1+'1 Données d''entrée'!$C$332)^('6 Financement'!F$54-1-'1 Données d''entrée'!$C$334-$B178))/((1+'1 Données d''entrée'!$C$332)^'1 Données d''entrée'!$C$333-1)*'1 Données d''entrée'!$C$332,0)","v":0},{"$f":"IF(H167>0,$G$160*((('1 Données d''entrée'!$C$332+1)^'1 Données d''entrée'!$C$333)-(1+'1 Données d''entrée'!$C$332)^('6 Financement'!G$54-1-'1 Données d''entrée'!$C$334-$B178))/((1+'1 Données d''entrée'!$C$332)^'1 Données d''entrée'!$C$333-1)*'1 Données d''entrée'!$C$332,0)","v":0},{"$f":"IF(I167>0,$G$160*((('1 Données d''entrée'!$C$332+1)^'1 Données d''entrée'!$C$333)-(1+'1 Données d''entrée'!$C$332)^('6 Financement'!H$54-1-'1 Données d''entrée'!$C$334-$B178))/((1+'1 Données d''entrée'!$C$332)^'1 Données d''entrée'!$C$333-1)*'1 Données d''entrée'!$C$332,0)","v":0},{"$f":"IF(J167>0,$G$160*((('1 Données d''entrée'!$C$332+1)^'1 Données d''entrée'!$C$333)-(1+'1 Données d''entrée'!$C$332)^('6 Financement'!I$54-1-'1 Données d''entrée'!$C$334-$B178))/((1+'1 Données d''entrée'!$C$332)^'1 Données d''entrée'!$C$333-1)*'1 Données d''entrée'!$C$332,0)","v":0},{"$f":"IF(K167>0,$G$160*((('1 Données d''entrée'!$C$332+1)^'1 Données d''entrée'!$C$333)-(1+'1 Données d''entrée'!$C$332)^('6 Financement'!J$54-1-'1 Données d''entrée'!$C$334-$B178))/((1+'1 Données d''entrée'!$C$332)^'1 Données d''entrée'!$C$333-1)*'1 Données d''entrée'!$C$332,0)","v":0},{"$f":"IF(L167>0,$G$160*((('1 Données d''entrée'!$C$332+1)^'1 Données d''entrée'!$C$333)-(1+'1 Données d''entrée'!$C$332)^('6 Financement'!K$54-1-'1 Données d''entrée'!$C$334-$B178))/((1+'1 Données d''entrée'!$C$332)^'1 Données d''entrée'!$C$333-1)*'1 Données d''entrée'!$C$332,0)","v":0},{"$f":"IF(M167>0,$G$160*((('1 Données d''entrée'!$C$332+1)^'1 Données d''entrée'!$C$333)-(1+'1 Données d''entrée'!$C$332)^('6 Financement'!L$54-1-'1 Données d''entrée'!$C$334-$B178))/((1+'1 Données d''entrée'!$C$332)^'1 Données d''entrée'!$C$333-1)*'1 Données d''entrée'!$C$332,0)","v":0},{"$f":"IF(N167>0,$G$160*((('1 Données d''entrée'!$C$332+1)^'1 Données d''entrée'!$C$333)-(1+'1 Données d''entrée'!$C$332)^('6 Financement'!M$54-1-'1 Données d''entrée'!$C$334-$B178))/((1+'1 Données d''entrée'!$C$332)^'1 Données d''entrée'!$C$333-1)*'1 Données d''entrée'!$C$332,0)","v":0},{"$f":"IF(O167>0,$G$160*((('1 Données d''entrée'!$C$332+1)^'1 Données d''entrée'!$C$333)-(1+'1 Données d''entrée'!$C$332)^('6 Financement'!N$54-1-'1 Données d''entrée'!$C$334-$B178))/((1+'1 Données d''entrée'!$C$332)^'1 Données d''entrée'!$C$333-1)*'1 Données d''entrée'!$C$332,0)","v":0},{"$f":"IF(P167>0,$G$160*((('1 Données d''entrée'!$C$332+1)^'1 Données d''entrée'!$C$333)-(1+'1 Données d''entrée'!$C$332)^('6 Financement'!O$54-1-'1 Données d''entrée'!$C$334-$B178))/((1+'1 Données d''entrée'!$C$332)^'1 Données d''entrée'!$C$333-1)*'1 Données d''entrée'!$C$332,0)","v":0},{"$f":"IF(Q167>0,$G$160*((('1 Données d''entrée'!$C$332+1)^'1 Données d''entrée'!$C$333)-(1+'1 Données d''entrée'!$C$332)^('6 Financement'!P$54-1-'1 Données d''entrée'!$C$334-$B178))/((1+'1 Données d''entrée'!$C$332)^'1 Données d''entrée'!$C$333-1)*'1 Données d''entrée'!$C$332,0)","v":0},{"$f":"IF(R167>0,$G$160*((('1 Données d''entrée'!$C$332+1)^'1 Données d''entrée'!$C$333)-(1+'1 Données d''entrée'!$C$332)^('6 Financement'!Q$54-1-'1 Données d''entrée'!$C$334-$B178))/((1+'1 Données d''entrée'!$C$332)^'1 Données d''entrée'!$C$333-1)*'1 Données d''entrée'!$C$332,0)","v":0},{"$f":"IF(S167>0,$G$160*((('1 Données d''entrée'!$C$332+1)^'1 Données d''entrée'!$C$333)-(1+'1 Données d''entrée'!$C$332)^('6 Financement'!R$54-1-'1 Données d''entrée'!$C$334-$B178))/((1+'1 Données d''entrée'!$C$332)^'1 Données d''entrée'!$C$333-1)*'1 Données d''entrée'!$C$332,0)","v":0},{"$f":"IF(T167>0,$G$160*((('1 Données d''entrée'!$C$332+1)^'1 Données d''entrée'!$C$333)-(1+'1 Données d''entrée'!$C$332)^('6 Financement'!S$54-1-'1 Données d''entrée'!$C$334-$B178))/((1+'1 Données d''entrée'!$C$332)^'1 Données d''entrée'!$C$333-1)*'1 Données d''entrée'!$C$332,0)","v":0},{"$f":"IF(U167>0,$G$160*((('1 Données d''entrée'!$C$332+1)^'1 Données d''entrée'!$C$333)-(1+'1 Données d''entrée'!$C$332)^('6 Financement'!T$54-1-'1 Données d''entrée'!$C$334-$B178))/((1+'1 Données d''entrée'!$C$332)^'1 Données d''entrée'!$C$333-1)*'1 Données d''entrée'!$C$332,0)","v":0},{"$f":"IF(V167>0,$G$160*((('1 Données d''entrée'!$C$332+1)^'1 Données d''entrée'!$C$333)-(1+'1 Données d''entrée'!$C$332)^('6 Financement'!U$54-1-'1 Données d''entrée'!$C$334-$B178))/((1+'1 Données d''entrée'!$C$332)^'1 Données d''entrée'!$C$333-1)*'1 Données d''entrée'!$C$332,0)","v":0}]
["Paiement d'intêrets",6,0,{"$f":"IF(D168>0,$H$160*((('1 Données d''entrée'!$C$332+1)^'1 Données d''entrée'!$C$333)-(1+'1 Données d''entrée'!$C$332)^('6 Financement'!C$54-1-'1 Données d''entrée'!$C$334-$B179))/((1+'1 Données d''entrée'!$C$332)^'1 Données d''entrée'!$C$333-1)*'1 Données d''entrée'!$C$332,0)","v":0},{"$f":"IF(E168>0,$H$160*((('1 Données d''entrée'!$C$332+1)^'1 Données d''entrée'!$C$333)-(1+'1 Données d''entrée'!$C$332)^('6 Financement'!D$54-1-'1 Données d''entrée'!$C$334-$B179))/((1+'1 Données d''entrée'!$C$332)^'1 Données d''entrée'!$C$333-1)*'1 Données d''entrée'!$C$332,0)","v":0},{"$f":"IF(F168>0,$H$160*((('1 Données d''entrée'!$C$332+1)^'1 Données d''entrée'!$C$333)-(1+'1 Données d''entrée'!$C$332)^('6 Financement'!E$54-1-'1 Données d''entrée'!$C$334-$B179))/((1+'1 Données d''entrée'!$C$332)^'1 Données d''entrée'!$C$333-1)*'1 Données d''entrée'!$C$332,0)","v":0},{"$f":"IF(G168>0,$H$160*((('1 Données d''entrée'!$C$332+1)^'1 Données d''entrée'!$C$333)-(1+'1 Données d''entrée'!$C$332)^('6 Financement'!F$54-1-'1 Données d''entrée'!$C$334-$B179))/((1+'1 Données d''entrée'!$C$332)^'1 Données d''entrée'!$C$333-1)*'1 Données d''entrée'!$C$332,0)","v":0},{"$f":"IF(H168>0,$H$160*((('1 Données d''entrée'!$C$332+1)^'1 Données d''entrée'!$C$333)-(1+'1 Données d''entrée'!$C$332)^('6 Financement'!G$54-1-'1 Données d''entrée'!$C$334-$B179))/((1+'1 Données d''entrée'!$C$332)^'1 Données d''entrée'!$C$333-1)*'1 Données d''entrée'!$C$332,0)","v":0},{"$f":"IF(I168>0,$H$160*((('1 Données d''entrée'!$C$332+1)^'1 Données d''entrée'!$C$333)-(1+'1 Données d''entrée'!$C$332)^('6 Financement'!H$54-1-'1 Données d''entrée'!$C$334-$B179))/((1+'1 Données d''entrée'!$C$332)^'1 Données d''entrée'!$C$333-1)*'1 Données d''entrée'!$C$332,0)","v":0},{"$f":"IF(J168>0,$H$160*((('1 Données d''entrée'!$C$332+1)^'1 Données d''entrée'!$C$333)-(1+'1 Données d''entrée'!$C$332)^('6 Financement'!I$54-1-'1 Données d''entrée'!$C$334-$B179))/((1+'1 Données d''entrée'!$C$332)^'1 Données d''entrée'!$C$333-1)*'1 Données d''entrée'!$C$332,0)","v":0},{"$f":"IF(K168>0,$H$160*((('1 Données d''entrée'!$C$332+1)^'1 Données d''entrée'!$C$333)-(1+'1 Données d''entrée'!$C$332)^('6 Financement'!J$54-1-'1 Données d''entrée'!$C$334-$B179))/((1+'1 Données d''entrée'!$C$332)^'1 Données d''entrée'!$C$333-1)*'1 Données d''entrée'!$C$332,0)","v":0},{"$f":"IF(L168>0,$H$160*((('1 Données d''entrée'!$C$332+1)^'1 Données d''entrée'!$C$333)-(1+'1 Données d''entrée'!$C$332)^('6 Financement'!K$54-1-'1 Données d''entrée'!$C$334-$B179))/((1+'1 Données d''entrée'!$C$332)^'1 Données d''entrée'!$C$333-1)*'1 Données d''entrée'!$C$332,0)","v":0},{"$f":"IF(M168>0,$H$160*((('1 Données d''entrée'!$C$332+1)^'1 Données d''entrée'!$C$333)-(1+'1 Données d''entrée'!$C$332)^('6 Financement'!L$54-1-'1 Données d''entrée'!$C$334-$B179))/((1+'1 Données d''entrée'!$C$332)^'1 Données d''entrée'!$C$333-1)*'1 Données d''entrée'!$C$332,0)","v":0},{"$f":"IF(N168>0,$H$160*((('1 Données d''entrée'!$C$332+1)^'1 Données d''entrée'!$C$333)-(1+'1 Données d''entrée'!$C$332)^('6 Financement'!M$54-1-'1 Données d''entrée'!$C$334-$B179))/((1+'1 Données d''entrée'!$C$332)^'1 Données d''entrée'!$C$333-1)*'1 Données d''entrée'!$C$332,0)","v":0},{"$f":"IF(O168>0,$H$160*((('1 Données d''entrée'!$C$332+1)^'1 Données d''entrée'!$C$333)-(1+'1 Données d''entrée'!$C$332)^('6 Financement'!N$54-1-'1 Données d''entrée'!$C$334-$B179))/((1+'1 Données d''entrée'!$C$332)^'1 Données d''entrée'!$C$333-1)*'1 Données d''entrée'!$C$332,0)","v":0},{"$f":"IF(P168>0,$H$160*((('1 Données d''entrée'!$C$332+1)^'1 Données d''entrée'!$C$333)-(1+'1 Données d''entrée'!$C$332)^('6 Financement'!O$54-1-'1 Données d''entrée'!$C$334-$B179))/((1+'1 Données d''entrée'!$C$332)^'1 Données d''entrée'!$C$333-1)*'1 Données d''entrée'!$C$332,0)","v":0},{"$f":"IF(Q168>0,$H$160*((('1 Données d''entrée'!$C$332+1)^'1 Données d''entrée'!$C$333)-(1+'1 Données d''entrée'!$C$332)^('6 Financement'!P$54-1-'1 Données d''entrée'!$C$334-$B179))/((1+'1 Données d''entrée'!$C$332)^'1 Données d''entrée'!$C$333-1)*'1 Données d''entrée'!$C$332,0)","v":0},{"$f":"IF(R168>0,$H$160*((('1 Données d''entrée'!$C$332+1)^'1 Données d''entrée'!$C$333)-(1+'1 Données d''entrée'!$C$332)^('6 Financement'!Q$54-1-'1 Données d''entrée'!$C$334-$B179))/((1+'1 Données d''entrée'!$C$332)^'1 Données d''entrée'!$C$333-1)*'1 Données d''entrée'!$C$332,0)","v":0},{"$f":"IF(S168>0,$H$160*((('1 Données d''entrée'!$C$332+1)^'1 Données d''entrée'!$C$333)-(1+'1 Données d''entrée'!$C$332)^('6 Financement'!R$54-1-'1 Données d''entrée'!$C$334-$B179))/((1+'1 Données d''entrée'!$C$332)^'1 Données d''entrée'!$C$333-1)*'1 Données d''entrée'!$C$332,0)","v":0},{"$f":"IF(T168>0,$H$160*((('1 Données d''entrée'!$C$332+1)^'1 Données d''entrée'!$C$333)-(1+'1 Données d''entrée'!$C$332)^('6 Financement'!S$54-1-'1 Données d''entrée'!$C$334-$B179))/((1+'1 Données d''entrée'!$C$332)^'1 Données d''entrée'!$C$333-1)*'1 Données d''entrée'!$C$332,0)","v":0},{"$f":"IF(U168>0,$H$160*((('1 Données d''entrée'!$C$332+1)^'1 Données d''entrée'!$C$333)-(1+'1 Données d''entrée'!$C$332)^('6 Financement'!T$54-1-'1 Données d''entrée'!$C$334-$B179))/((1+'1 Données d''entrée'!$C$332)^'1 Données d''entrée'!$C$333-1)*'1 Données d''entrée'!$C$332,0)","v":0},{"$f":"IF(V168>0,$H$160*((('1 Données d''entrée'!$C$332+1)^'1 Données d''entrée'!$C$333)-(1+'1 Données d''entrée'!$C$332)^('6 Financement'!U$54-1-'1 Données d''entrée'!$C$334-$B179))/((1+'1 Données d''entrée'!$C$332)^'1 Données d''entrée'!$C$333-1)*'1 Données d''entrée'!$C$332,0)","v":0}]
["Paiement d'intêrets",7,0,{"$f":"IF(D169>0,$I$160*((('1 Données d''entrée'!$C$332+1)^'1 Données d''entrée'!$C$333)-(1+'1 Données d''entrée'!$C$332)^('6 Financement'!C$54-1-'1 Données d''entrée'!$C$334-$B180))/((1+'1 Données d''entrée'!$C$332)^'1 Données d''entrée'!$C$333-1)*'1 Données d''entrée'!$C$332,0)","v":0},{"$f":"IF(E169>0,$I$160*((('1 Données d''entrée'!$C$332+1)^'1 Données d''entrée'!$C$333)-(1+'1 Données d''entrée'!$C$332)^('6 Financement'!D$54-1-'1 Données d''entrée'!$C$334-$B180))/((1+'1 Données d''entrée'!$C$332)^'1 Données d''entrée'!$C$333-1)*'1 Données d''entrée'!$C$332,0)","v":0},{"$f":"IF(F169>0,$I$160*((('1 Données d''entrée'!$C$332+1)^'1 Données d''entrée'!$C$333)-(1+'1 Données d''entrée'!$C$332)^('6 Financement'!E$54-1-'1 Données d''entrée'!$C$334-$B180))/((1+'1 Données d''entrée'!$C$332)^'1 Données d''entrée'!$C$333-1)*'1 Données d''entrée'!$C$332,0)","v":0},{"$f":"IF(G169>0,$I$160*((('1 Données d''entrée'!$C$332+1)^'1 Données d''entrée'!$C$333)-(1+'1 Données d''entrée'!$C$332)^('6 Financement'!F$54-1-'1 Données d''entrée'!$C$334-$B180))/((1+'1 Données d''entrée'!$C$332)^'1 Données d''entrée'!$C$333-1)*'1 Données d''entrée'!$C$332,0)","v":0},{"$f":"IF(H169>0,$I$160*((('1 Données d''entrée'!$C$332+1)^'1 Données d''entrée'!$C$333)-(1+'1 Données d''entrée'!$C$332)^('6 Financement'!G$54-1-'1 Données d''entrée'!$C$334-$B180))/((1+'1 Données d''entrée'!$C$332)^'1 Données d''entrée'!$C$333-1)*'1 Données d''entrée'!$C$332,0)","v":0},{"$f":"IF(I169>0,$I$160*((('1 Données d''entrée'!$C$332+1)^'1 Données d''entrée'!$C$333)-(1+'1 Données d''entrée'!$C$332)^('6 Financement'!H$54-1-'1 Données d''entrée'!$C$334-$B180))/((1+'1 Données d''entrée'!$C$332)^'1 Données d''entrée'!$C$333-1)*'1 Données d''entrée'!$C$332,0)","v":0},{"$f":"IF(J169>0,$I$160*((('1 Données d''entrée'!$C$332+1)^'1 Données d''entrée'!$C$333)-(1+'1 Données d''entrée'!$C$332)^('6 Financement'!I$54-1-'1 Données d''entrée'!$C$334-$B180))/((1+'1 Données d''entrée'!$C$332)^'1 Données d''entrée'!$C$333-1)*'1 Données d''entrée'!$C$332,0)","v":0},{"$f":"IF(K169>0,$I$160*((('1 Données d''entrée'!$C$332+1)^'1 Données d''entrée'!$C$333)-(1+'1 Données d''entrée'!$C$332)^('6 Financement'!J$54-1-'1 Données d''entrée'!$C$334-$B180))/((1+'1 Données d''entrée'!$C$332)^'1 Données d''entrée'!$C$333-1)*'1 Données d''entrée'!$C$332,0)","v":0},{"$f":"IF(L169>0,$I$160*((('1 Données d''entrée'!$C$332+1)^'1 Données d''entrée'!$C$333)-(1+'1 Données d''entrée'!$C$332)^('6 Financement'!K$54-1-'1 Données d''entrée'!$C$334-$B180))/((1+'1 Données d''entrée'!$C$332)^'1 Données d''entrée'!$C$333-1)*'1 Données d''entrée'!$C$332,0)","v":0},{"$f":"IF(M169>0,$I$160*((('1 Données d''entrée'!$C$332+1)^'1 Données d''entrée'!$C$333)-(1+'1 Données d''entrée'!$C$332)^('6 Financement'!L$54-1-'1 Données d''entrée'!$C$334-$B180))/((1+'1 Données d''entrée'!$C$332)^'1 Données d''entrée'!$C$333-1)*'1 Données d''entrée'!$C$332,0)","v":0},{"$f":"IF(N169>0,$I$160*((('1 Données d''entrée'!$C$332+1)^'1 Données d''entrée'!$C$333)-(1+'1 Données d''entrée'!$C$332)^('6 Financement'!M$54-1-'1 Données d''entrée'!$C$334-$B180))/((1+'1 Données d''entrée'!$C$332)^'1 Données d''entrée'!$C$333-1)*'1 Données d''entrée'!$C$332,0)","v":0},{"$f":"IF(O169>0,$I$160*((('1 Données d''entrée'!$C$332+1)^'1 Données d''entrée'!$C$333)-(1+'1 Données d''entrée'!$C$332)^('6 Financement'!N$54-1-'1 Données d''entrée'!$C$334-$B180))/((1+'1 Données d''entrée'!$C$332)^'1 Données d''entrée'!$C$333-1)*'1 Données d''entrée'!$C$332,0)","v":0},{"$f":"IF(P169>0,$I$160*((('1 Données d''entrée'!$C$332+1)^'1 Données d''entrée'!$C$333)-(1+'1 Données d''entrée'!$C$332)^('6 Financement'!O$54-1-'1 Données d''entrée'!$C$334-$B180))/((1+'1 Données d''entrée'!$C$332)^'1 Données d''entrée'!$C$333-1)*'1 Données d''entrée'!$C$332,0)","v":0},{"$f":"IF(Q169>0,$I$160*((('1 Données d''entrée'!$C$332+1)^'1 Données d''entrée'!$C$333)-(1+'1 Données d''entrée'!$C$332)^('6 Financement'!P$54-1-'1 Données d''entrée'!$C$334-$B180))/((1+'1 Données d''entrée'!$C$332)^'1 Données d''entrée'!$C$333-1)*'1 Données d''entrée'!$C$332,0)","v":0},{"$f":"IF(R169>0,$I$160*((('1 Données d''entrée'!$C$332+1)^'1 Données d''entrée'!$C$333)-(1+'1 Données d''entrée'!$C$332)^('6 Financement'!Q$54-1-'1 Données d''entrée'!$C$334-$B180))/((1+'1 Données d''entrée'!$C$332)^'1 Données d''entrée'!$C$333-1)*'1 Données d''entrée'!$C$332,0)","v":0},{"$f":"IF(S169>0,$I$160*((('1 Données d''entrée'!$C$332+1)^'1 Données d''entrée'!$C$333)-(1+'1 Données d''entrée'!$C$332)^('6 Financement'!R$54-1-'1 Données d''entrée'!$C$334-$B180))/((1+'1 Données d''entrée'!$C$332)^'1 Données d''entrée'!$C$333-1)*'1 Données d''entrée'!$C$332,0)","v":0},{"$f":"IF(T169>0,$I$160*((('1 Données d''entrée'!$C$332+1)^'1 Données d''entrée'!$C$333)-(1+'1 Données d''entrée'!$C$332)^('6 Financement'!S$54-1-'1 Données d''entrée'!$C$334-$B180))/((1+'1 Données d''entrée'!$C$332)^'1 Données d''entrée'!$C$333-1)*'1 Données d''entrée'!$C$332,0)","v":0},{"$f":"IF(U169>0,$I$160*((('1 Données d''entrée'!$C$332+1)^'1 Données d''entrée'!$C$333)-(1+'1 Données d''entrée'!$C$332)^('6 Financement'!T$54-1-'1 Données d''entrée'!$C$334-$B180))/((1+'1 Données d''entrée'!$C$332)^'1 Données d''entrée'!$C$333-1)*'1 Données d''entrée'!$C$332,0)","v":0},{"$f":"IF(V169>0,$I$160*((('1 Données d''entrée'!$C$332+1)^'1 Données d''entrée'!$C$333)-(1+'1 Données d''entrée'!$C$332)^('6 Financement'!U$54-1-'1 Données d''entrée'!$C$334-$B180))/((1+'1 Données d''entrée'!$C$332)^'1 Données d''entrée'!$C$333-1)*'1 Données d''entrée'!$C$332,0)","v":0}]
["Paiement d'intêrets",8,0,{"$f":"IF(D170>0,$J$160*((('1 Données d''entrée'!$C$332+1)^'1 Données d''entrée'!$C$333)-(1+'1 Données d''entrée'!$C$332)^('6 Financement'!C$54-1-'1 Données d''entrée'!$C$334-$B181))/((1+'1 Données d''entrée'!$C$332)^'1 Données d''entrée'!$C$333-1)*'1 Données d''entrée'!$C$332,0)","v":0},{"$f":"IF(E170>0,$J$160*((('1 Données d''entrée'!$C$332+1)^'1 Données d''entrée'!$C$333)-(1+'1 Données d''entrée'!$C$332)^('6 Financement'!D$54-1-'1 Données d''entrée'!$C$334-$B181))/((1+'1 Données d''entrée'!$C$332)^'1 Données d''entrée'!$C$333-1)*'1 Données d''entrée'!$C$332,0)","v":0},{"$f":"IF(F170>0,$J$160*((('1 Données d''entrée'!$C$332+1)^'1 Données d''entrée'!$C$333)-(1+'1 Données d''entrée'!$C$332)^('6 Financement'!E$54-1-'1 Données d''entrée'!$C$334-$B181))/((1+'1 Données d''entrée'!$C$332)^'1 Données d''entrée'!$C$333-1)*'1 Données d''entrée'!$C$332,0)","v":0},{"$f":"IF(G170>0,$J$160*((('1 Données d''entrée'!$C$332+1)^'1 Données d''entrée'!$C$333)-(1+'1 Données d''entrée'!$C$332)^('6 Financement'!F$54-1-'1 Données d''entrée'!$C$334-$B181))/((1+'1 Données d''entrée'!$C$332)^'1 Données d''entrée'!$C$333-1)*'1 Données d''entrée'!$C$332,0)","v":0},{"$f":"IF(H170>0,$J$160*((('1 Données d''entrée'!$C$332+1)^'1 Données d''entrée'!$C$333)-(1+'1 Données d''entrée'!$C$332)^('6 Financement'!G$54-1-'1 Données d''entrée'!$C$334-$B181))/((1+'1 Données d''entrée'!$C$332)^'1 Données d''entrée'!$C$333-1)*'1 Données d''entrée'!$C$332,0)","v":0},{"$f":"IF(I170>0,$J$160*((('1 Données d''entrée'!$C$332+1)^'1 Données d''entrée'!$C$333)-(1+'1 Données d''entrée'!$C$332)^('6 Financement'!H$54-1-'1 Données d''entrée'!$C$334-$B181))/((1+'1 Données d''entrée'!$C$332)^'1 Données d''entrée'!$C$333-1)*'1 Données d''entrée'!$C$332,0)","v":0},{"$f":"IF(J170>0,$J$160*((('1 Données d''entrée'!$C$332+1)^'1 Données d''entrée'!$C$333)-(1+'1 Données d''entrée'!$C$332)^('6 Financement'!I$54-1-'1 Données d''entrée'!$C$334-$B181))/((1+'1 Données d''entrée'!$C$332)^'1 Données d''entrée'!$C$333-1)*'1 Données d''entrée'!$C$332,0)","v":0},{"$f":"IF(K170>0,$J$160*((('1 Données d''entrée'!$C$332+1)^'1 Données d''entrée'!$C$333)-(1+'1 Données d''entrée'!$C$332)^('6 Financement'!J$54-1-'1 Données d''entrée'!$C$334-$B181))/((1+'1 Données d''entrée'!$C$332)^'1 Données d''entrée'!$C$333-1)*'1 Données d''entrée'!$C$332,0)","v":0},{"$f":"IF(L170>0,$J$160*((('1 Données d''entrée'!$C$332+1)^'1 Données d''entrée'!$C$333)-(1+'1 Données d''entrée'!$C$332)^('6 Financement'!K$54-1-'1 Données d''entrée'!$C$334-$B181))/((1+'1 Données d''entrée'!$C$332)^'1 Données d''entrée'!$C$333-1)*'1 Données d''entrée'!$C$332,0)","v":0},{"$f":"IF(M170>0,$J$160*((('1 Données d''entrée'!$C$332+1)^'1 Données d''entrée'!$C$333)-(1+'1 Données d''entrée'!$C$332)^('6 Financement'!L$54-1-'1 Données d''entrée'!$C$334-$B181))/((1+'1 Données d''entrée'!$C$332)^'1 Données d''entrée'!$C$333-1)*'1 Données d''entrée'!$C$332,0)","v":0},{"$f":"IF(N170>0,$J$160*((('1 Données d''entrée'!$C$332+1)^'1 Données d''entrée'!$C$333)-(1+'1 Données d''entrée'!$C$332)^('6 Financement'!M$54-1-'1 Données d''entrée'!$C$334-$B181))/((1+'1 Données d''entrée'!$C$332)^'1 Données d''entrée'!$C$333-1)*'1 Données d''entrée'!$C$332,0)","v":0},{"$f":"IF(O170>0,$J$160*((('1 Données d''entrée'!$C$332+1)^'1 Données d''entrée'!$C$333)-(1+'1 Données d''entrée'!$C$332)^('6 Financement'!N$54-1-'1 Données d''entrée'!$C$334-$B181))/((1+'1 Données d''entrée'!$C$332)^'1 Données d''entrée'!$C$333-1)*'1 Données d''entrée'!$C$332,0)","v":0},{"$f":"IF(P170>0,$J$160*((('1 Données d''entrée'!$C$332+1)^'1 Données d''entrée'!$C$333)-(1+'1 Données d''entrée'!$C$332)^('6 Financement'!O$54-1-'1 Données d''entrée'!$C$334-$B181))/((1+'1 Données d''entrée'!$C$332)^'1 Données d''entrée'!$C$333-1)*'1 Données d''entrée'!$C$332,0)","v":0},{"$f":"IF(Q170>0,$J$160*((('1 Données d''entrée'!$C$332+1)^'1 Données d''entrée'!$C$333)-(1+'1 Données d''entrée'!$C$332)^('6 Financement'!P$54-1-'1 Données d''entrée'!$C$334-$B181))/((1+'1 Données d''entrée'!$C$332)^'1 Données d''entrée'!$C$333-1)*'1 Données d''entrée'!$C$332,0)","v":0},{"$f":"IF(R170>0,$J$160*((('1 Données d''entrée'!$C$332+1)^'1 Données d''entrée'!$C$333)-(1+'1 Données d''entrée'!$C$332)^('6 Financement'!Q$54-1-'1 Données d''entrée'!$C$334-$B181))/((1+'1 Données d''entrée'!$C$332)^'1 Données d''entrée'!$C$333-1)*'1 Données d''entrée'!$C$332,0)","v":0},{"$f":"IF(S170>0,$J$160*((('1 Données d''entrée'!$C$332+1)^'1 Données d''entrée'!$C$333)-(1+'1 Données d''entrée'!$C$332)^('6 Financement'!R$54-1-'1 Données d''entrée'!$C$334-$B181))/((1+'1 Données d''entrée'!$C$332)^'1 Données d''entrée'!$C$333-1)*'1 Données d''entrée'!$C$332,0)","v":0},{"$f":"IF(T170>0,$J$160*((('1 Données d''entrée'!$C$332+1)^'1 Données d''entrée'!$C$333)-(1+'1 Données d''entrée'!$C$332)^('6 Financement'!S$54-1-'1 Données d''entrée'!$C$334-$B181))/((1+'1 Données d''entrée'!$C$332)^'1 Données d''entrée'!$C$333-1)*'1 Données d''entrée'!$C$332,0)","v":0},{"$f":"IF(U170>0,$J$160*((('1 Données d''entrée'!$C$332+1)^'1 Données d''entrée'!$C$333)-(1+'1 Données d''entrée'!$C$332)^('6 Financement'!T$54-1-'1 Données d''entrée'!$C$334-$B181))/((1+'1 Données d''entrée'!$C$332)^'1 Données d''entrée'!$C$333-1)*'1 Données d''entrée'!$C$332,0)","v":0},{"$f":"IF(V170>0,$J$160*((('1 Données d''entrée'!$C$332+1)^'1 Données d''entrée'!$C$333)-(1+'1 Données d''entrée'!$C$332)^('6 Financement'!U$54-1-'1 Données d''entrée'!$C$334-$B181))/((1+'1 Données d''entrée'!$C$332)^'1 Données d''entrée'!$C$333-1)*'1 Données d''entrée'!$C$332,0)","v":0}]
["Paiement d'intêrets",9,0,{"$f":"IF(D171>0,$K$160*((('1 Données d''entrée'!$C$332+1)^'1 Données d''entrée'!$C$333)-(1+'1 Données d''entrée'!$C$332)^('6 Financement'!C$54-1-'1 Données d''entrée'!$C$334-$B182))/((1+'1 Données d''entrée'!$C$332)^'1 Données d''entrée'!$C$333-1)*'1 Données d''entrée'!$C$332,0)","v":0},{"$f":"IF(E171>0,$K$160*((('1 Données d''entrée'!$C$332+1)^'1 Données d''entrée'!$C$333)-(1+'1 Données d''entrée'!$C$332)^('6 Financement'!D$54-1-'1 Données d''entrée'!$C$334-$B182))/((1+'1 Données d''entrée'!$C$332)^'1 Données d''entrée'!$C$333-1)*'1 Données d''entrée'!$C$332,0)","v":0},{"$f":"IF(F171>0,$K$160*((('1 Données d''entrée'!$C$332+1)^'1 Données d''entrée'!$C$333)-(1+'1 Données d''entrée'!$C$332)^('6 Financement'!E$54-1-'1 Données d''entrée'!$C$334-$B182))/((1+'1 Données d''entrée'!$C$332)^'1 Données d''entrée'!$C$333-1)*'1 Données d''entrée'!$C$332,0)","v":0},{"$f":"IF(G171>0,$K$160*((('1 Données d''entrée'!$C$332+1)^'1 Données d''entrée'!$C$333)-(1+'1 Données d''entrée'!$C$332)^('6 Financement'!F$54-1-'1 Données d''entrée'!$C$334-$B182))/((1+'1 Données d''entrée'!$C$332)^'1 Données d''entrée'!$C$333-1)*'1 Données d''entrée'!$C$332,0)","v":0},{"$f":"IF(H171>0,$K$160*((('1 Données d''entrée'!$C$332+1)^'1 Données d''entrée'!$C$333)-(1+'1 Données d''entrée'!$C$332)^('6 Financement'!G$54-1-'1 Données d''entrée'!$C$334-$B182))/((1+'1 Données d''entrée'!$C$332)^'1 Données d''entrée'!$C$333-1)*'1 Données d''entrée'!$C$332,0)","v":0},{"$f":"IF(I171>0,$K$160*((('1 Données d''entrée'!$C$332+1)^'1 Données d''entrée'!$C$333)-(1+'1 Données d''entrée'!$C$332)^('6 Financement'!H$54-1-'1 Données d''entrée'!$C$334-$B182))/((1+'1 Données d''entrée'!$C$332)^'1 Données d''entrée'!$C$333-1)*'1 Données d''entrée'!$C$332,0)","v":0},{"$f":"IF(J171>0,$K$160*((('1 Données d''entrée'!$C$332+1)^'1 Données d''entrée'!$C$333)-(1+'1 Données d''entrée'!$C$332)^('6 Financement'!I$54-1-'1 Données d''entrée'!$C$334-$B182))/((1+'1 Données d''entrée'!$C$332)^'1 Données d''entrée'!$C$333-1)*'1 Données d''entrée'!$C$332,0)","v":0},{"$f":"IF(K171>0,$K$160*((('1 Données d''entrée'!$C$332+1)^'1 Données d''entrée'!$C$333)-(1+'1 Données d''entrée'!$C$332)^('6 Financement'!J$54-1-'1 Données d''entrée'!$C$334-$B182))/((1+'1 Données d''entrée'!$C$332)^'1 Données d''entrée'!$C$333-1)*'1 Données d''entrée'!$C$332,0)","v":0},{"$f":"IF(L171>0,$K$160*((('1 Données d''entrée'!$C$332+1)^'1 Données d''entrée'!$C$333)-(1+'1 Données d''entrée'!$C$332)^('6 Financement'!K$54-1-'1 Données d''entrée'!$C$334-$B182))/((1+'1 Données d''entrée'!$C$332)^'1 Données d''entrée'!$C$333-1)*'1 Données d''entrée'!$C$332,0)","v":0},{"$f":"IF(M171>0,$K$160*((('1 Données d''entrée'!$C$332+1)^'1 Données d''entrée'!$C$333)-(1+'1 Données d''entrée'!$C$332)^('6 Financement'!L$54-1-'1 Données d''entrée'!$C$334-$B182))/((1+'1 Données d''entrée'!$C$332)^'1 Données d''entrée'!$C$333-1)*'1 Données d''entrée'!$C$332,0)","v":0},{"$f":"IF(N171>0,$K$160*((('1 Données d''entrée'!$C$332+1)^'1 Données d''entrée'!$C$333)-(1+'1 Données d''entrée'!$C$332)^('6 Financement'!M$54-1-'1 Données d''entrée'!$C$334-$B182))/((1+'1 Données d''entrée'!$C$332)^'1 Données d''entrée'!$C$333-1)*'1 Données d''entrée'!$C$332,0)","v":0},{"$f":"IF(O171>0,$K$160*((('1 Données d''entrée'!$C$332+1)^'1 Données d''entrée'!$C$333)-(1+'1 Données d''entrée'!$C$332)^('6 Financement'!N$54-1-'1 Données d''entrée'!$C$334-$B182))/((1+'1 Données d''entrée'!$C$332)^'1 Données d''entrée'!$C$333-1)*'1 Données d''entrée'!$C$332,0)","v":0},{"$f":"IF(P171>0,$K$160*((('1 Données d''entrée'!$C$332+1)^'1 Données d''entrée'!$C$333)-(1+'1 Données d''entrée'!$C$332)^('6 Financement'!O$54-1-'1 Données d''entrée'!$C$334-$B182))/((1+'1 Données d''entrée'!$C$332)^'1 Données d''entrée'!$C$333-1)*'1 Données d''entrée'!$C$332,0)","v":0},{"$f":"IF(Q171>0,$K$160*((('1 Données d''entrée'!$C$332+1)^'1 Données d''entrée'!$C$333)-(1+'1 Données d''entrée'!$C$332)^('6 Financement'!P$54-1-'1 Données d''entrée'!$C$334-$B182))/((1+'1 Données d''entrée'!$C$332)^'1 Données d''entrée'!$C$333-1)*'1 Données d''entrée'!$C$332,0)","v":0},{"$f":"IF(R171>0,$K$160*((('1 Données d''entrée'!$C$332+1)^'1 Données d''entrée'!$C$333)-(1+'1 Données d''entrée'!$C$332)^('6 Financement'!Q$54-1-'1 Données d''entrée'!$C$334-$B182))/((1+'1 Données d''entrée'!$C$332)^'1 Données d''entrée'!$C$333-1)*'1 Données d''entrée'!$C$332,0)","v":0},{"$f":"IF(S171>0,$K$160*((('1 Données d''entrée'!$C$332+1)^'1 Données d''entrée'!$C$333)-(1+'1 Données d''entrée'!$C$332)^('6 Financement'!R$54-1-'1 Données d''entrée'!$C$334-$B182))/((1+'1 Données d''entrée'!$C$332)^'1 Données d''entrée'!$C$333-1)*'1 Données d''entrée'!$C$332,0)","v":0},{"$f":"IF(T171>0,$K$160*((('1 Données d''entrée'!$C$332+1)^'1 Données d''entrée'!$C$333)-(1+'1 Données d''entrée'!$C$332)^('6 Financement'!S$54-1-'1 Données d''entrée'!$C$334-$B182))/((1+'1 Données d''entrée'!$C$332)^'1 Données d''entrée'!$C$333-1)*'1 Données d''entrée'!$C$332,0)","v":0},{"$f":"IF(U171>0,$K$160*((('1 Données d''entrée'!$C$332+1)^'1 Données d''entrée'!$C$333)-(1+'1 Données d''entrée'!$C$332)^('6 Financement'!T$54-1-'1 Données d''entrée'!$C$334-$B182))/((1+'1 Données d''entrée'!$C$332)^'1 Données d''entrée'!$C$333-1)*'1 Données d''entrée'!$C$332,0)","v":0},{"$f":"IF(V171>0,$K$160*((('1 Données d''entrée'!$C$332+1)^'1 Données d''entrée'!$C$333)-(1+'1 Données d''entrée'!$C$332)^('6 Financement'!U$54-1-'1 Données d''entrée'!$C$334-$B182))/((1+'1 Données d''entrée'!$C$332)^'1 Données d''entrée'!$C$333-1)*'1 Données d''entrée'!$C$332,0)","v":0}]
["Paiement d'intêrets",10,0,{"$f":"IF(D172>0,$L$160*((('1 Données d''entrée'!$C$332+1)^'1 Données d''entrée'!$C$333)-(1+'1 Données d''entrée'!$C$332)^('6 Financement'!C$54-1-'1 Données d''entrée'!$C$334-$B183))/((1+'1 Données d''entrée'!$C$332)^'1 Données d''entrée'!$C$333-1)*'1 Données d''entrée'!$C$332,0)","v":0},{"$f":"IF(E172>0,$L$160*((('1 Données d''entrée'!$C$332+1)^'1 Données d''entrée'!$C$333)-(1+'1 Données d''entrée'!$C$332)^('6 Financement'!D$54-1-'1 Données d''entrée'!$C$334-$B183))/((1+'1 Données d''entrée'!$C$332)^'1 Données d''entrée'!$C$333-1)*'1 Données d''entrée'!$C$332,0)","v":0},{"$f":"IF(F172>0,$L$160*((('1 Données d''entrée'!$C$332+1)^'1 Données d''entrée'!$C$333)-(1+'1 Données d''entrée'!$C$332)^('6 Financement'!E$54-1-'1 Données d''entrée'!$C$334-$B183))/((1+'1 Données d''entrée'!$C$332)^'1 Données d''entrée'!$C$333-1)*'1 Données d''entrée'!$C$332,0)","v":0},{"$f":"IF(G172>0,$L$160*((('1 Données d''entrée'!$C$332+1)^'1 Données d''entrée'!$C$333)-(1+'1 Données d''entrée'!$C$332)^('6 Financement'!F$54-1-'1 Données d''entrée'!$C$334-$B183))/((1+'1 Données d''entrée'!$C$332)^'1 Données d''entrée'!$C$333-1)*'1 Données d''entrée'!$C$332,0)","v":0},{"$f":"IF(H172>0,$L$160*((('1 Données d''entrée'!$C$332+1)^'1 Données d''entrée'!$C$333)-(1+'1 Données d''entrée'!$C$332)^('6 Financement'!G$54-1-'1 Données d''entrée'!$C$334-$B183))/((1+'1 Données d''entrée'!$C$332)^'1 Données d''entrée'!$C$333-1)*'1 Données d''entrée'!$C$332,0)","v":0},{"$f":"IF(I172>0,$L$160*((('1 Données d''entrée'!$C$332+1)^'1 Données d''entrée'!$C$333)-(1+'1 Données d''entrée'!$C$332)^('6 Financement'!H$54-1-'1 Données d''entrée'!$C$334-$B183))/((1+'1 Données d''entrée'!$C$332)^'1 Données d''entrée'!$C$333-1)*'1 Données d''entrée'!$C$332,0)","v":0},{"$f":"IF(J172>0,$L$160*((('1 Données d''entrée'!$C$332+1)^'1 Données d''entrée'!$C$333)-(1+'1 Données d''entrée'!$C$332)^('6 Financement'!I$54-1-'1 Données d''entrée'!$C$334-$B183))/((1+'1 Données d''entrée'!$C$332)^'1 Données d''entrée'!$C$333-1)*'1 Données d''entrée'!$C$332,0)","v":0},{"$f":"IF(K172>0,$L$160*((('1 Données d''entrée'!$C$332+1)^'1 Données d''entrée'!$C$333)-(1+'1 Données d''entrée'!$C$332)^('6 Financement'!J$54-1-'1 Données d''entrée'!$C$334-$B183))/((1+'1 Données d''entrée'!$C$332)^'1 Données d''entrée'!$C$333-1)*'1 Données d''entrée'!$C$332,0)","v":0},{"$f":"IF(L172>0,$L$160*((('1 Données d''entrée'!$C$332+1)^'1 Données d''entrée'!$C$333)-(1+'1 Données d''entrée'!$C$332)^('6 Financement'!K$54-1-'1 Données d''entrée'!$C$334-$B183))/((1+'1 Données d''entrée'!$C$332)^'1 Données d''entrée'!$C$333-1)*'1 Données d''entrée'!$C$332,0)","v":0},{"$f":"IF(M172>0,$L$160*((('1 Données d''entrée'!$C$332+1)^'1 Données d''entrée'!$C$333)-(1+'1 Données d''entrée'!$C$332)^('6 Financement'!L$54-1-'1 Données d''entrée'!$C$334-$B183))/((1+'1 Données d''entrée'!$C$332)^'1 Données d''entrée'!$C$333-1)*'1 Données d''entrée'!$C$332,0)","v":0},{"$f":"IF(N172>0,$L$160*((('1 Données d''entrée'!$C$332+1)^'1 Données d''entrée'!$C$333)-(1+'1 Données d''entrée'!$C$332)^('6 Financement'!M$54-1-'1 Données d''entrée'!$C$334-$B183))/((1+'1 Données d''entrée'!$C$332)^'1 Données d''entrée'!$C$333-1)*'1 Données d''entrée'!$C$332,0)","v":0},{"$f":"IF(O172>0,$L$160*((('1 Données d''entrée'!$C$332+1)^'1 Données d''entrée'!$C$333)-(1+'1 Données d''entrée'!$C$332)^('6 Financement'!N$54-1-'1 Données d''entrée'!$C$334-$B183))/((1+'1 Données d''entrée'!$C$332)^'1 Données d''entrée'!$C$333-1)*'1 Données d''entrée'!$C$332,0)","v":0},{"$f":"IF(P172>0,$L$160*((('1 Données d''entrée'!$C$332+1)^'1 Données d''entrée'!$C$333)-(1+'1 Données d''entrée'!$C$332)^('6 Financement'!O$54-1-'1 Données d''entrée'!$C$334-$B183))/((1+'1 Données d''entrée'!$C$332)^'1 Données d''entrée'!$C$333-1)*'1 Données d''entrée'!$C$332,0)","v":0},{"$f":"IF(Q172>0,$L$160*((('1 Données d''entrée'!$C$332+1)^'1 Données d''entrée'!$C$333)-(1+'1 Données d''entrée'!$C$332)^('6 Financement'!P$54-1-'1 Données d''entrée'!$C$334-$B183))/((1+'1 Données d''entrée'!$C$332)^'1 Données d''entrée'!$C$333-1)*'1 Données d''entrée'!$C$332,0)","v":0},{"$f":"IF(R172>0,$L$160*((('1 Données d''entrée'!$C$332+1)^'1 Données d''entrée'!$C$333)-(1+'1 Données d''entrée'!$C$332)^('6 Financement'!Q$54-1-'1 Données d''entrée'!$C$334-$B183))/((1+'1 Données d''entrée'!$C$332)^'1 Données d''entrée'!$C$333-1)*'1 Données d''entrée'!$C$332,0)","v":0},{"$f":"IF(S172>0,$L$160*((('1 Données d''entrée'!$C$332+1)^'1 Données d''entrée'!$C$333)-(1+'1 Données d''entrée'!$C$332)^('6 Financement'!R$54-1-'1 Données d''entrée'!$C$334-$B183))/((1+'1 Données d''entrée'!$C$332)^'1 Données d''entrée'!$C$333-1)*'1 Données d''entrée'!$C$332,0)","v":0},{"$f":"IF(T172>0,$L$160*((('1 Données d''entrée'!$C$332+1)^'1 Données d''entrée'!$C$333)-(1+'1 Données d''entrée'!$C$332)^('6 Financement'!S$54-1-'1 Données d''entrée'!$C$334-$B183))/((1+'1 Données d''entrée'!$C$332)^'1 Données d''entrée'!$C$333-1)*'1 Données d''entrée'!$C$332,0)","v":0},{"$f":"IF(U172>0,$L$160*((('1 Données d''entrée'!$C$332+1)^'1 Données d''entrée'!$C$333)-(1+'1 Données d''entrée'!$C$332)^('6 Financement'!T$54-1-'1 Données d''entrée'!$C$334-$B183))/((1+'1 Données d''entrée'!$C$332)^'1 Données d''entrée'!$C$333-1)*'1 Données d''entrée'!$C$332,0)","v":0},{"$f":"IF(V172>0,$L$160*((('1 Données d''entrée'!$C$332+1)^'1 Données d''entrée'!$C$333)-(1+'1 Données d''entrée'!$C$332)^('6 Financement'!U$54-1-'1 Données d''entrée'!$C$334-$B183))/((1+'1 Données d''entrée'!$C$332)^'1 Données d''entrée'!$C$333-1)*'1 Données d''entrée'!$C$332,0)","v":0}]
[]
["Solde du comte (par période)",null,{"$f":"C96+IF($B$103>0,C104-SUM(C106:C116)-SUM(C118:C128),0)+IF($B$131>0,C132-SUM(C134:C144)-SUM(C146:C156),0)+IF($B$159>0,C160-SUM(C162:C172),0)","v":{"$error":"#DIV/0!"}},{"$f":"D96+IF($B$103>0,D104-SUM(D106:D116)-SUM(D118:D128),0)+IF($B$131>0,D132-SUM(D134:D144)-SUM(D146:D156),0)+IF($B$159>0,D160-SUM(D162:D172),0)","v":{"$error":"#DIV/0!"}},{"$error":"#DIV/0!"},{"$error":"#DIV/0!"},{"$error":"#DIV/0!"},{"$error":"#DIV/0!"},{"$error":"#DIV/0!"},{"$error":"#DIV/0!"},{"$error":"#DIV/0!"},{"$error":"#DIV/0!"},{"$error":"#DIV/0!"},{"$error":"#DIV/0!"},{"$error":"#DIV/0!"},{"$error":"#DIV/0!"},{"$error":"#DIV/0!"},{"$error":"#DIV/0!"},{"$error":"#DIV/0!"},{"$error":"#DIV/0!"},{"$error":"#DIV/0!"},{"$error":"#DIV/0!"}]
["Solde du compte (cumulé)",null,{"$f":"C186+B97","v":{"$error":"#DIV/0!"}},{"$f":"C187+D186","v":{"$error":"#DIV/0!"}},{"$f":"D187+E186","v":{"$error":"#DIV/0!"}},{"$error":"#DIV/0!"},{"$error":"#DIV/0!"},{"$error":"#DIV/0!"},{"$error":"#DIV/0!"},{"$error":"#DIV/0!"},{"$error":"#DIV/0!"},{"$error":"#DIV/0!"},{"$error":"#DIV/0!"},{"$error":"#DIV/0!"},{"$error":"#DIV/0!"},{"$error":"#DIV/0!"},{"$error":"#DIV/0!"},{"$error":"#DIV/0!"},{"$error":"#DIV/0!"},{"$error":"#DIV/0!"},{"$error":"#DIV/0!"},{"$error":"#DIV/0!"}]
[]
[]
[]
[]
["Amortissement linéaire"]
[]
[]
["Valeur matérielle d'investissement initial",{"$f":"SUM(D239:D259)+SUM(D211:D233)","v":0}]
[]
[]
["Amortissement correspondant à la période découlée"]
["Période",0,1,2,3,4,5,6,7,8,9,10,11,12,13,14,15,16,17,18,19,20]
["Amortissement linéaire",{"$f":"SUM(D239:D259)+SUM(D211:D233)","v":0},{"$f":"SUM(E239:E259)+SUM(E211:E233)","v":0},0,0,0,0,0,0,0,0,0,0,0,0,0,0,0,0,0,0,0]
[]
[]
[]
[]
[]
["Amortissement simple"]
["1 Le site"]
["Terrain d'action et description d'article","Coût total","Longévité (années)","Période"]
[null,null,null,0,1,2,3,4,5,6,7,8,9,10,11,12,13,14,15,16,17,18,19,20]
[{"$f":"'1 Données d''entrée'!A52","v":"Occupation du sol "}]
[{"$f":"'1 Données d''entrée'!A53","v":"Achat ou fermage (site)"},{"$f":"'1 Données d''entrée'!E53","v":0},{"$f":"'1 Données d''entrée'!C53","v":0},{"$f":"IF($C211>D$209,$B211-$B211/$C211*D$209,0)","v":0},{"$f":"IF($C$211>E209,$B$211-$B$211/$C$211*E209,0)","v":0},0,0,0,0,0,0,0,0,0,0,0,0,0,0,0,0,0,0,0]
[{"$f":"'1 Données d''entrée'!A54","v":"Génie Civil"}]
[{"$f":"'1 Données d''entrée'!A55","v":"Barrage principal"},{"$f":"'1 Données d''entrée'!E55","v":0},{"$f":"'1 Données d''entrée'!C55","v":0},{"$f":"IF($C213>D$209,$B213-$B213/$C213*D$209,0)","v":0},0,0,0,0,0,0,0,0,0,{"$f":"IF($C213>N$209,$B213-$B213/$C213*N$209,0)","v":0},0,0,0,0,0,0,0,0,0,0]
[{"$f":"'1 Données d''entrée'!A56","v":"Barrage de dérivation"},{"$f":"'1 Données d''entrée'!E56","v":0},{"$f":"'1 Données d''entrée'!C56","v":0},0,0,0,0,0,0,0,0,0,0,0,0,0,0,0,0,0,0,0,0,0]
[{"$f":"'1 Données d''entrée'!A57","v":"Canal d'amenée"},{"$f":"'1 Données d''entrée'!E57","v":0},{"$f":"'1 Données d''entrée'!C57","v":0},0,0,0,0,0,0,0,0,0,0,0,0,0,0,0,0,0,0,0,0,0]
[{"$f":"'1 Données d''entrée'!A58","v":"Chambre de mise en charge"},{"$f":"'1 Données d''entrée'!E58","v":0},{"$f":"'1 Données d''entrée'!C58","v":0},0,0,0,0,0,0,0,0,0,0,0,0,0,0,0,0,0,0,0,0,0]
[{"$f":"'1 Données d''entrée'!A59","v":"Station d’épuration : dessableur"},{"$f":"'1 Données d''entrée'!E59","v":0},{"$f":"'1 Données d''entrée'!C59","v":0},0,0,0,0,0,0,0,0,0,0,0,0,0,0,0,0,0,0,0,0,0]
[{"$f":"'1 Données d''entrée'!A60","v":"Bâtiment central"},{"$f":"'1 Données d''entrée'!E60","v":0},{"$f":"'1 Données d''entrée'!C60","v":0},0,0,0,0,0,0,0,0,0,0,0,0,0,0,0,0,0,0,0,0,0]
[{"$f":"'1 Données d''entrée'!A61","v":"Restitution"},{"$f":"'1 Données d''entrée'!E61","v":0},{"$f":"'1 Données d''entrée'!C61","v":0},0,0,0,0,0,0,0,0,0,0,0,0,0,0,0,0,0,0,0,0,0]
[{"$f":"'1 Données d''entrée'!A62","v":"Equipement électromécanique"}]
[{"$f":"'1 Données d''entrée'!A63","v":"Turbine, régulateur, alterneur"},{"$f":"'1 Données d''entrée'!E63","v":0},{"$f":"'1 Données d''entrée'!C63","v":0},0,0,0,0,0,0,0,0,0,0,0,0,0,0,0,0,0,0,0,0,0]
[{"$f":"'1 Données d''entrée'!A64","v":"Installation électrique (contrôle commande)"},{"$f":"'1 Données d''entrée'!E64","v":0},{"$f":"'1 Données d''entrée'!C64","v":0},0,0,0,0,0,0,0,0,0,0,0,0,0,0,0,0,0,0,0,0,0]
[{"$f":"'1 Données d''entrée'!A65","v":"Conduite forcée "}]
[{"$f":"'1 Données d''entrée'!A66","v":"Conduite en acier"},{"$f":"'1 Données d''entrée'!E66","v":0},{"$f":"'1 Données d''entrée'!C66","v":0},0,0,0,0,0,0,0,0,0,0,0,0,0,0,0,0,0,0,0,0,0]
[{"$f":"'1 Données d''entrée'!A67","v":"Route d'accès "}]
[{"$f":"'1 Données d''entrée'!A68","v":"Route d'accès"},{"$f":"'1 Données d''entrée'!E68","v":0},{"$f":"'1 Données d''entrée'!C68","v":0},{"$f":"IF($C226>D$209,$B226-$B226/$C226*D$209,0)","v":0},0,0,0,0,0,0,0,0,0,0,0,0,0,0,0,0,0,0,0,0]
[{"$f":"'1 Données d''entrée'!A70","v":"Additionnel (construction du site)"}]
[{"$f":"'1 Données d''entrée'!A71","v":"Transport (de l'équipement, du matériel)"},{"$f":"'1 Données d''entrée'!E71","v":0},{"$f":"'1 Données d''entrée'!C71","v":20},{"$f":"IF($C228>D$209,$B228-$B228/$C228*D$209,0)","v":0},0,0,0,0,0,0,0,0,0,{"$f":"IF($C228>N$209,$B228-$B228/$C228*N$209,0)","v":0},0,0,0,0,0,0,0,0,0,0]
[{"$f":"'1 Données d''entrée'!A72","v":"Générateur (sauvegarde)"},{"$f":"'1 Données d''entrée'!E72","v":0},{"$f":"'1 Données d''entrée'!C72","v":0},0,0,0,0,0,0,0,0,0,0,0,0,0,0,0,0,0,0,0,0,0]
[{"$f":"'1 Données d''entrée'!A73","v":"-"},{"$f":"'1 Données d''entrée'!E73","v":0},{"$f":"'1 Données d''entrée'!C73","v":0},0,0,0,0,0,0,0,0,0,0,0,0,0,0,0,0,0,0,0,0,0]
[{"$f":"'1 Données d''entrée'!A74","v":"-"},{"$f":"'1 Données d''entrée'!E74","v":0},{"$f":"'1 Données d''entrée'!C74","v":0},0,0,0,0,0,0,0,0,0,0,0,0,0,0,0,0,0,0,0,0,0]
[{"$f":"'1 Données d''entrée'!A75","v":"-"},{"$f":"'1 Données d''entrée'!E75","v":0},{"$f":"'1 Données d''entrée'!C75","v":0},0,0,0,0,0,0,0,0,0,0,0,0,0,0,0,0,0,0,0,0,0]
[{"$f":"'1 Données d''entrée'!A76","v":"-"},{"$f":"'1 Données d''entrée'!E76","v":0},{"$f":"'1 Données d''entrée'!C76","v":0},{"$f":"IF($C233>D$209,$B233-$B233/$C233*D$209,0)","v":0},{"$f":"IF($C233>E$209,$B233-$B233/$C233*E$209,0)","v":0},{"$f":"IF($C233>F$209,$B233-$B233/$C233*F$209,0)","v":0},0,0,0,0,0,0,0,0,0,0,0,0,0,0,0,0,0,0]
[{"$f":"'1 Données d''entrée'!A77","v":"-"},{"$f":"'1 Données d''entrée'!E77","v":0},{"$f":"'1 Données d''entrée'!C77","v":0},{"$f":"IF($C234>D$209,$B234-$B234/$C234*D$209,0)","v":0},{"$f":"IF($C234>E$209,$B234-$B234/$C234*E$209,0)","v":0},0,0,0,0,0,0,0,0,0,0,0,0,0,0,0,0,0,0,0]
[]
["2 Le réseau de transmission et distribution"]
["Terrain d'action et description d'article","Coût total","Longévité (années)","Période"]
[null,null,null,0,1,2,3,4,5,6,7,8,9,10,11,12,13,14,15,16,17,18,19,20]
[{"$f":"'1 Données d''entrée'!A84","v":"Transport et distribution"}]
[{"$f":"'1 Données d''entrée'!A85","v":"Poste élévateur"},{"$f":"'1 Données d''entrée'!E85","v":0},{"$f":"'1 Données d''entrée'!C85","v":0},{"$f":"IF($C240>D$209,$B240-$B240/$C240*D$209,0)","v":0},0,0,0,0,0,0,0,0,0,{"$f":"IF($C240>N$209,$B240-$B240/$C240*N$209,0)","v":0},0,0,0,0,0,0,0,0,0,0]
[{"$f":"'1 Données d''entrée'!A86","v":"Poste abaisseur"},{"$f":"'1 Données d''entrée'!E86","v":0},{"$f":"'1 Données d''entrée'!C86","v":0},0,0,0,0,0,0,0,0,0,0,0,0,0,0,0,0,0,0,0,0,0]
[{"$f":"'1 Données d''entrée'!A87","v":"Ligne (Haute tension)"},{"$f":"'1 Données d''entrée'!E87","v":0},{"$f":"'1 Données d''entrée'!C87","v":0},0,0,0,0,0,0,0,0,0,0,0,0,0,0,0,0,0,0,0,0,0]
[{"$f":"'1 Données d''entrée'!A88","v":"Ligne (basse tension)"},{"$f":"'1 Données d''entrée'!E88","v":0},{"$f":"'1 Données d''entrée'!C88","v":0},0,0,0,0,0,0,0,0,0,0,0,0,0,0,0,0,0,0,0,0,0]
[{"$f":"'1 Données d''entrée'!A89","v":"Branchement"}]
[{"$f":"'1 Données d''entrée'!A90","v":"Branchement d'un maison (forfait): câbles, fusible"},{"$f":"'1 Données d''entrée'!E90","v":0},{"$f":"'1 Données d''entrée'!C90","v":0},0,0,0,0,0,0,0,0,0,0,0,0,0,0,0,0,0,0,0,0,0]
[{"$f":"'1 Données d''entrée'!A91","v":"Branchement d'un maison (tarif): câbles, compteur"},{"$f":"'1 Données d''entrée'!E91","v":0},{"$f":"'1 Données d''entrée'!C91","v":0},0,0,0,0,0,0,0,0,0,0,0,0,0,0,0,0,0,0,0,0,0]
[{"$f":"'1 Données d''entrée'!A92","v":"Occupation du sol (Sous-stations haute et basse tension, permission de passer pour le réseau)"}]
[{"$f":"'1 Données d''entrée'!A93","v":"Achat ou fermage (site)"},{"$f":"'1 Données d''entrée'!E93","v":0},{"$f":"'1 Données d''entrée'!C93","v":0},0,0,0,0,0,0,0,0,0,0,0,0,0,0,0,0,0,0,0,0,0]
[{"$f":"'1 Données d''entrée'!A96","v":"Additionnel (construction du réseau de T&D)"}]
[{"$f":"'1 Données d''entrée'!A97","v":"Transport (de l'équipement, du matériel)"},{"$f":"'1 Données d''entrée'!E97","v":0},{"$f":"'1 Données d''entrée'!C97","v":20},{"$f":"IF($C250>D$209,$B250-$B250/$C250*D$209,0)","v":0},{"$f":"IF($C250>E$209,$B250-$B250/$C250*E$209,0)","v":0},0,0,0,0,0,0,0,0,0,0,0,0,0,0,0,0,0,0,0]
[{"$f":"'1 Données d''entrée'!A98","v":"-"},{"$f":"'1 Données d''entrée'!E98","v":0},{"$f":"'1 Données d''entrée'!C98","v":0},{"$f":"IF($C251>D$209,$B251-$B251/$C251*D$209,0)","v":0},{"$f":"IF($C251>E$209,$B251-$B251/$C251*E$209,0)","v":0},0,0,0,0,0,0,0,0,0,{"$f":"IF($C251>O$209,$B251-$B251/$C251*O$209,0)","v":0},0,0,0,0,0,0,0,0,0]
[{"$f":"'1 Données d''entrée'!A99","v":"-"},{"$f":"'1 Données d''entrée'!E99","v":0},{"$f":"'1 Données d''entrée'!C99","v":0},{"$f":"IF($C252>D$209,$B252-$B252/$C252*D$209,0)","v":0},0,0,0,0,0,0,0,0,0,0,0,0,0,0,0,0,0,0,0,0]
[{"$f":"'1 Données d''entrée'!A100","v":"-"},{"$f":"'1 Données d''entrée'!E100","v":0},{"$f":"'1 Données d''entrée'!C100","v":0}]
[{"$f":"'1 Données d''entrée'!A101","v":"-"},{"$f":"'1 Données d''entrée'!E101","v":0},{"$f":"'1 Données d''entrée'!C101","v":0},{"$f":"IF($C254>D$209,$B254-$B254/$C254*D$209,0)","v":0},0,0,0,0,0,0,0,0,0,{"$f":"IF($C254>N$209,$B254-$B254/$C254*N$209,0)","v":0},0,0,0,0,0,0,0,0,0,0]
[{"$f":"'1 Données d''entrée'!A102","v":"-"},{"$f":"'1 Données d''entrée'!E102","v":0},{"$f":"'1 Données d''entrée'!C102","v":0},0,0,0,0,0,0,0,0,0,0,0,0,0,0,0,0,0,0,0,0,0]
[{"$f":"'1 Données d''entrée'!A103","v":"-"},{"$f":"'1 Données d''entrée'!E103","v":0},{"$f":"'1 Données d''entrée'!C103","v":0},0,0,0,0,0,0,0,0,0,0,0,0,0,0,0,0,0,0,0,0,0]
[{"$f":"'1 Données d''entrée'!A104","v":"-"},{"$f":"'1 Données d''entrée'!E104","v":0},{"$f":"'1 Données d''entrée'!C104","v":0},0,0,0,0,0,0,0,0,0,0,0,0,0,0,0,0,0,0,0,0,0]
[{"$f":"'1 Données d''entrée'!A105","v":"-"},{"$f":"'1 Données d''entrée'!E105","v":0},{"$f":"'1 Données d''entrée'!C105","v":0},0,0,0,0,0,0,0,0,0,0,0,0,0,0,0,0,0,0,0,0,0]
[{"$f":"'1 Données d''entrée'!A106","v":"-"},{"$f":"'1 Données d''entrée'!E106","v":0},{"$f":"'1 Données d''entrée'!C106","v":0},0,0,0,0,0,0,0,0,0,0,0,0,0,0,0,0,0,0,0,0,0]

{"sheet":"7 Flux de trésorerie net","index":8,"n_rows":27,"n_cols":8,"rows_kept":27,"cut":false,"hidden":false,"merged":[[2,0,2,5],[4,0,4,7]]}
["Flux de trésorerie net "]
[]
["Le flux de trésorerie net incorpore la taxation des profits du projet et les paiements d'intérêts et d'amortissement. Il est calculé sur la base du flux de trésorerie brut."]
[]
["Flux de trésorerie net"]
["Période (t)","Flux de trésorerie brut","Coût de financement ","Subventions","Flux de trésorerie intermédiaires (avec coût fin. et subventions)","Flux de trésorerie net (par période); taxe contenue","Flux de trésorerie cumulé, taxe contenue","Période de remboursement"]
[0,{"$f":"'5 Flux de trésorerie brut'!D7","v":{"$error":"#DIV/0!"}},0,{"$f":"'6 Financement'!B8+'6 Financement'!B78","v":0},{"$f":"B7+D7+C7","v":{"$error":"#DIV/0!"}},{"$f":"IF(E7>0,(E7-E7*'1 Données d''entrée'!$C$353-IF('5 Flux de trésorerie brut'!D7>0,'1 Données d''entrée'!$C$357*'5 Flux de trésorerie brut'!D7,0)),E7)","v":{"$error":"#DIV/0!"}},{"$f":"F7","v":{"$error":"#DIV/0!"}},{"$f":"IF(G7<0,\" \",A7)","v":{"$error":"#DIV/0!"}}]
[1,{"$f":"'5 Flux de trésorerie brut'!D8","v":{"$error":"#DIV/0!"}},{"$f":"-('6 Financement'!C$39+'6 Financement'!C$40)","v":0},0,{"$f":"B8+D8+C8","v":{"$error":"#DIV/0!"}},{"$f":"IF(E8>0,(E8-E8*'1 Données d''entrée'!$C$353-IF('5 Flux de trésorerie brut'!D8>0,'1 Données d''entrée'!$C$357*'5 Flux de trésorerie brut'!D8,0)),E8)","v":{"$error":"#DIV/0!"}},{"$f":"G7+F8","v":{"$error":"#DIV/0!"}},{"$f":"IF(G8<0,\" \",IF(SUM(H$7:H7)>0,\" \",IF($H$7=0,\" \",A8)))","v":{"$error":"#DIV/0!"}}]
[2,{"$f":"'5 Flux de trésorerie brut'!D9","v":{"$error":"#DIV/0!"}},{"$f":"-('6 Financement'!D$39+'6 Financement'!D$40)","v":0},0,{"$error":"#DIV/0!"},{"$f":"IF(E9>0,(E9-E9*'1 Données d''entrée'!$C$353-IF('5 Flux de trésorerie brut'!D9>0,'1 Données d''entrée'!$C$357*'5 Flux de trésorerie brut'!D9,0)),E9)","v":{"$error":"#DIV/0!"}},{"$error":"#DIV/0!"},{"$f":"IF(G9<0,\" \",IF(SUM(H$7:H8)>0,\" \",IF($H$7=0,\" \",A9)))","v":{"$error":"#DIV/0!"}}]
[3,{"$f":"'5 Flux de trésorerie brut'!D10","v":{"$error":"#DIV/0!"}},{"$f":"-('6 Financement'!E$39+'6 Financement'!E$40)","v":0},0,{"$error":"#DIV/0!"},{"$f":"IF(E10>0,(E10-E10*'1 Données d''entrée'!$C$353-IF('5 Flux de trésorerie brut'!D10>0,'1 Données d''entrée'!$C$357*'5 Flux de trésorerie brut'!D10,0)),E10)","v":{"$error":"#DIV/0!"}},{"$error":"#DIV/0!"},{"$f":"IF(G10<0,\" \",IF(SUM(H$7:H9)>0,\" \",IF($H$7=0,\" \",A10)))","v":{"$error":"#DIV/0!"}}]
[4,{"$f":"'5 Flux de trésorerie brut'!D11","v":{"$error":"#DIV/0!"}},{"$f":"-('6 Financement'!F$39+'6 Financement'!F$40)","v":0},0,{"$error":"#DIV/0!"},{"$f":"IF(E11>0,(E11-E11*'1 Données d''entrée'!$C$353-IF('5 Flux de trésorerie brut'!D11>0,'1 Données d''entrée'!$C$357*'5 Flux de trésorerie brut'!D11,0)),E11)","v":{"$error":"#DIV/0!"}},{"$error":"#DIV/0!"},{"$f":"IF(G11<0,\" \",IF(SUM(H$7:H10)>0,\" \",IF($H$7=0,\" \",A11)))","v":{"$error":"#DIV/0!"}}]
[5,{"$f":"'5 Flux de trésorerie brut'!D12","v":{"$error":"#DIV/0!"}},{"$f":"-('6 Financement'!G$39+'6 Financement'!G$40)","v":0},0,{"$error":"#DIV/0!"},{"$f":"IF(E12>0,(E12-E12*'1 Données d''entrée'!$C$353-IF('5 Flux de trésorerie brut'!D12>0,'1 Données d''entrée'!$C$357*'5 Flux de trésorerie brut'!D12,0)),E12)","v":{"$error":"#DIV/0!"}},{"$error":"#DIV/0!"},{"$f":"IF(G12<0,\" \",IF(SUM(H$7:H11)>0,\" \",IF($H$7=0,\" \",A12)))","v":{"$error":"#DIV/0!"}}]
[6,{"$f":"'5 Flux de trésorerie brut'!D13","v":{"$error":"#DIV/0!"}},{"$f":"-('6 Financement'!H$39+'6 Financement'!H$40)","v":0},0,{"$error":"#DIV/0!"},{"$f":"IF(E13>0,(E13-E13*'1 Données d''entrée'!$C$353-IF('5 Flux de trésorerie brut'!D13>0,'1 Données d''entrée'!$C$357*'5 Flux de trésorerie brut'!D13,0)),E13)","v":{"$error":"#DIV/0!"}},{"$error":"#DIV/0!"},{"$f":"IF(G13<0,\" \",IF(SUM(H$7:H12)>0,\" \",IF($H$7=0,\" \",A13)))","v":{"$error":"#DIV/0!"}}]
[7,{"$f":"'5 Flux de trésorerie brut'!D14","v":{"$error":"#DIV/0!"}},{"$f":"-('6 Financement'!I$39+'6 Financement'!I$40)","v":0},0,{"$error":"#DIV/0!"},{"$f":"IF(E14>0,(E14-E14*'1 Données d''entrée'!$C$353-IF('5 Flux de trésorerie brut'!D14>0,'1 Données d''entrée'!$C$357*'5 Flux de trésorerie brut'!D14,0)),E14)","v":{"$error":"#DIV/0!"}},{"$error":"#DIV/0!"},{"$f":"IF(G14<0,\" \",IF(SUM(H$7:H13)>0,\" \",IF($H$7=0,\" \",A14)))","v":{"$error":"#DIV/0!"}}]
[8,{"$f":"'5 Flux de trésorerie brut'!D15","v":{"$error":"#DIV/0!"}},{"$f":"-('6 Financement'!J$39+'6 Financement'!J$40)","v":0},0,{"$error":"#DIV/0!"},{"$f":"IF(E15>0,(E15-E15*'1 Données d''entrée'!$C$353-IF('5 Flux de trésorerie brut'!D15>0,'1 Données d''entrée'!$C$357*'5 Flux de trésorerie brut'!D15,0)),E15)","v":{"$error":"#DIV/0!"}},{"$error":"#DIV/0!"},{"$f":"IF(G15<0,\" \",IF(SUM(H$7:H14)>0,\" \",IF($H$7=0,\" \",A15)))","v":{"$error":"#DIV/0!"}}]
[9,{"$f":"'5 Flux de trésorerie brut'!D16","v":{"$error":"#DIV/0!"}},{"$f":"-('6 Financement'!K$39+'6 Financement'!K$40)","v":0},0,{"$error":"#DIV/0!"},{"$f":"IF(E16>0,(E16-E16*'1 Données d''entrée'!$C$353-IF('5 Flux de trésorerie brut'!D16>0,'1 Données d''entrée'!$C$357*'5 Flux de trésorerie brut'!D16,0)),E16)","v":{"$error":"#DIV/0!"}},{"$error":"#DIV/0!"},{"$f":"IF(G16<0,\" \",IF(SUM(H$7:H15)>0,\" \",IF($H$7=0,\" \",A16)))","v":{"$error":"#DIV/0!"}}]
[10,{"$f":"'5 Flux de trésorerie brut'!D17","v":{"$error":"#DIV/0!"}},{"$f":"-('6 Financement'!L$39+'6 Financement'!L$40)","v":0},0,{"$error":"#DIV/0!"},{"$f":"IF(E17>0,(E17-E17*'1 Données d''entrée'!$C$353-IF('5 Flux de trésorerie brut'!D17>0,'1 Données d''entrée'!$C$357*'5 Flux de trésorerie brut'!D17,0)),E17)","v":{"$error":"#DIV/0!"}},{"$error":"#DIV/0!"},{"$f":"IF(G17<0,\" \",IF(SUM(H$7:H16)>0,\" \",IF($H$7=0,\" \",A17)))","v":{"$error":"#DIV/0!"}}]
[11,{"$f":"'5 Flux de trésorerie brut'!D18","v":{"$error":"#DIV/0!"}},{"$f":"-('6 Financement'!M$39+'6 Financement'!M$40)","v":0},0,{"$error":"#DIV/0!"},{"$f":"IF(E18>0,(E18-E18*'1 Données d''entrée'!$C$353-IF('5 Flux de trésorerie brut'!D18>0,'1 Données d''entrée'!$C$357*'5 Flux de trésorerie brut'!D18,0)),E18)","v":{"$error":"#DIV/0!"}},{"$error":"#DIV/0!"},{"$f":"IF(G18<0,\" \",IF(SUM(H$7:H17)>0,\" \",IF($H$7=0,\" \",A18)))","v":{"$error":"#DIV/0!"}}]
[12,{"$f":"'5 Flux de trésorerie brut'!D19","v":{"$error":"#DIV/0!"}},{"$f":"-('6 Financement'!N$39+'6 Financement'!N$40)","v":0},0,{"$error":"#DIV/0!"},{"$f":"IF(E19>0,(E19-E19*'1 Données d''entrée'!$C$353-IF('5 Flux de trésorerie brut'!D19>0,'1 Données d''entrée'!$C$357*'5 Flux de trésorerie brut'!D19,0)),E19)","v":{"$error":"#DIV/0!"}},{"$error":"#DIV/0!"},{"$f":"IF(G19<0,\" \",IF(SUM(H$7:H18)>0,\" \",IF($H$7=0,\" \",A19)))","v":{"$error":"#DIV/0!"}}]
[13,{"$f":"'5 Flux de trésorerie brut'!D20","v":{"$error":"#DIV/0!"}},{"$f":"-('6 Financement'!O$39+'6 Financement'!O$40)","v":0},0,{"$error":"#DIV/0!"},{"$f":"IF(E20>0,(E20-E20*'1 Données d''entrée'!$C$353-IF('5 Flux de trésorerie brut'!D20>0,'1 Données d''entrée'!$C$357*'5 Flux de trésorerie brut'!D20,0)),E20)","v":{"$error":"#DIV/0!"}},{"$error":"#DIV/0!"},{"$f":"IF(G20<0,\" \",IF(SUM(H$7:H19)>0,\" \",IF($H$7=0,\" \",A20)))","v":{"$error":"#DIV/0!"}}]
[14,{"$f":"'5 Flux de trésorerie brut'!D21","v":{"$error":"#DIV/0!"}},{"$f":"-('6 Financement'!P$39+'6 Financement'!P$40)","v":0},0,{"$error":"#DIV/0!"},{"$f":"IF(E21>0,(E21-E21*'1 Données d''entrée'!$C$353-IF('5 Flux de trésorerie brut'!D21>0,'1 Données d''entrée'!$C$357*'5 Flux de trésorerie brut'!D21,0)),E21)","v":{"$error":"#DIV/0!"}},{"$error":"#DIV/0!"},{"$f":"IF(G21<0,\" \",IF(SUM(H$7:H20)>0,\" \",IF($H$7=0,\" \",A21)))","v":{"$error":"#DIV/0!"}}]
[15,{"$f":"'5 Flux de trésorerie brut'!D22","v":{"$error":"#DIV/0!"}},{"$f":"-('6 Financement'!Q$39+'6 Financement'!Q$40)","v":0},0,{"$error":"#DIV/0!"},{"$f":"IF(E22>0,(E22-E22*'1 Données d''entrée'!$C$353-IF('5 Flux de trésorerie brut'!D22>0,'1 Données d''entrée'!$C$357*'5 Flux de trésorerie brut'!D22,0)),E22)","v":{"$error":"#DIV/0!"}},{"$error":"#DIV/0!"},{"$f":"IF(G22<0,\" \",IF(SUM(H$7:H21)>0,\" \",IF($H$7=0,\" \",A22)))","v":{"$error":"#DIV/0!"}}]
[16,{"$f":"'5 Flux de trésorerie brut'!D23","v":{"$error":"#DIV/0!"}},{"$f":"-('6 Financement'!R$39+'6 Financement'!R$40)","v":0},0,{"$error":"#DIV/0!"},{"$f":"IF(E23>0,(E23-E23*'1 Données d''entrée'!$C$353-IF('5 Flux de trésorerie brut'!D23>0,'1 Données d''entrée'!$C$357*'5 Flux de trésorerie brut'!D23,0)),E23)","v":{"$error":"#DIV/0!"}},{"$error":"#DIV/0!"},{"$f":"IF(G23<0,\" \",IF(SUM(H$7:H22)>0,\" \",IF($H$7=0,\" \",A23)))","v":{"$error":"#DIV/0!"}}]
[17,{"$f":"'5 Flux de trésorerie brut'!D24","v":{"$error":"#DIV/0!"}},{"$f":"-('6 Financement'!S$39+'6 Financement'!S$40)","v":0},0,{"$error":"#DIV/0!"},{"$f":"IF(E24>0,(E24-E24*'1 Données d''entrée'!$C$353-IF('5 Flux de trésorerie brut'!D24>0,'1 Données d''entrée'!$C$357*'5 Flux de trésorerie brut'!D24,0)),E24)","v":{"$error":"#DIV/0!"}},{"$error":"#DIV/0!"},{"$f":"IF(G24<0,\" \",IF(SUM(H$7:H23)>0,\" \",IF($H$7=0,\" \",A24)))","v":{"$error":"#DIV/0!"}}]
[18,{"$f":"'5 Flux de trésorerie brut'!D25","v":{"$error":"#DIV/0!"}},{"$f":"-('6 Financement'!T$39+'6 Financement'!T$40)","v":0},0,{"$error":"#DIV/0!"},{"$f":"IF(E25>0,(E25-E25*'1 Données d''entrée'!$C$353-IF('5 Flux de trésorerie brut'!D25>0,'1 Données d''entrée'!$C$357*'5 Flux de trésorerie brut'!D25,0)),E25)","v":{"$error":"#DIV/0!"}},{"$error":"#DIV/0!"},{"$f":"IF(G25<0,\" \",IF(SUM(H$7:H24)>0,\" \",IF($H$7=0,\" \",A25)))","v":{"$error":"#DIV/0!"}}]
[19,{"$f":"'5 Flux de trésorerie brut'!D26","v":{"$error":"#DIV/0!"}},{"$f":"-('6 Financement'!U$39+'6 Financement'!U$40)","v":0},0,{"$error":"#DIV/0!"},{"$f":"IF(E26>0,(E26-E26*'1 Données d''entrée'!$C$353-IF('5 Flux de trésorerie brut'!D26>0,'1 Données d''entrée'!$C$357*'5 Flux de trésorerie brut'!D26,0)),E26)","v":{"$error":"#DIV/0!"}},{"$error":"#DIV/0!"},{"$f":"IF(G26<0,\" \",IF(SUM(H$7:H25)>0,\" \",IF($H$7=0,\" \",A26)))","v":{"$error":"#DIV/0!"}}]
[20,{"$f":"'5 Flux de trésorerie brut'!D27","v":{"$error":"#DIV/0!"}},{"$f":"-('6 Financement'!V$39+'6 Financement'!V$40)","v":0},0,{"$error":"#DIV/0!"},{"$f":"IF(E27>0,(E27-E27*'1 Données d''entrée'!$C$353-IF('5 Flux de trésorerie brut'!D27>0,'1 Données d''entrée'!$C$357*'5 Flux de trésorerie brut'!D27,0)),E27)","v":{"$error":"#DIV/0!"}},{"$error":"#DIV/0!"},{"$f":"IF(G27<0,\" \",IF(SUM(H$7:H26)>0,\" \",IF($H$7=0,\" \",A27)))","v":{"$error":"#DIV/0!"}}]

{"sheet":"8 Apercu général","index":9,"n_rows":147,"n_cols":7,"rows_kept":147,"cut":false,"hidden":false,"merged":[[131,0,132,0],[135,0,136,0],[134,0,134,6],[91,4,91,6],[104,4,104,6],[104,0,104,2],[143,0,144,0],[145,0,146,0],[142,0,142,6],[105,0,105,2],[137,0,138,0],[124,0,124,6],[126,1,126,6],[111,0,111,2],[105,4,109,6],[108,0,108,1],[107,0,107,1],[126,0,127,0],[112,4,115,6],[111,4,111,6],[106,0,106,1],[60,0,61,0],[62,0,63,0],[67,0,68,0],[58,0,59,0],[71,0,71,1],[95,4,95,6],[93,4,93,6],[89,0,89,1],[92,4,92,6],[94,4,94,6],[24,4,24,6],[24,0,24,2],[31,0,31,2],[32,1,32,2],[25,4,26,6],[90,4,90,6],[47,4,47,6],[44,0,44,1],[45,4,46,6],[80,0,80,1],[5,1,6,3],[5,0,6,0],[13,0,13,1],[8,0,8,2],[34,0,35,0],[33,1,33,2],[34,1,35,2],[50,0,50,2],[54,0,55,0],[51,0,52,0],[52,4,52,6],[55,4,57,6],[54,4,54,6],[66,0,66,2],[56,0,57,0],[89,4,89,6],[60,4,61,6],[62,4,63,6],[66,4,66,6],[86,4,86,6],[80,4,80,6],[67,4,68,6],[72,4,72,6],[71,4,71,6],[8,4,8,6],[81,4,85,6],[58,4,59,6],[48,4,48,6],[51,4,51,6],[31,4,31,6],[27,4,29,6],[44,4,44,6],[32,4,35,6]]}
["Aperçu général",null,null,null,"Aperçu général"]
[]
[]
["Information générale"]
[]
["Nom du projet",{"$f":"'1 Données d''entrée'!$B$27","v":0}]
[]
[]
["Production et capacité (initiale)",null,null,null,"Production et capacité (avec l'extension potentielle)"]
["Capacité initiale",{"$f":"'1 Données d''entrée'!B31","v":0},"kWh / a",null,"Capacité totale",{"$f":"'1 Données d''entrée'!B31+'1 Données d''entrée'!B152","v":0},"kWh / a"]
["Production d'électricité pour la vente initiale",{"$f":"'1 Données d''entrée'!B33","v":0},"kWh / a",null,"Production d'électricité pour la vente ",{"$f":"'1 Données d''entrée'!B154+'1 Données d''entrée'!B33","v":0},"kWh / a"]
["Capacité installée",{"$f":"'1 Données d''entrée'!B30","v":0},"kW",null,"Capacité installée totale",{"$f":"'1 Données d''entrée'!B30+'1 Données d''entrée'!B151","v":0},"kW"]
[]
["Structure des ventes"]
["Nombre de connexions après 20 ans",{"$f":"'1 Données d''entrée'!B243","v":0}]
["Alimentation réseau",{"$f":"IF('1 Données d''entrée'!B178=TRUE,\"Oui\",\"Non\")","v":"Oui"}]
[]
[]
[]
[]
[]
["Critère dynamique d'investissement"]
[]
[]
["Critères d'investissement",null,null,null,"Définitions des critère d'investissement"]
["Description","brut (sans taxation et coût de financement)","net (avec subventions, taxation et coût de financement)",null,"La valeur actuelle nette (VAN) est le total des valeurs actuelles du flux de trésorerie réalisé dans des périodes différentes. La VAN est un critère d'investissement: Si la VAN est positive, le projet est économiquement viable. Au contraire, si la VAN est négative, le projet doit être refusé."]
["Valeur actuelle nette (AR)",{"$f":"NPV('1 Données d''entrée'!H28,'5 Flux de trésorerie brut'!D8:D27)+'5 Flux de trésorerie brut'!D7","v":{"$error":"#DIV/0!"}},{"$f":"NPV('1 Données d''entrée'!H28,'7 Flux de trésorerie net'!F8:F27)+'7 Flux de trésorerie net'!F7","v":{"$error":"#DIV/0!"}}]
["Valeur actuelle nette (EUR)",{"$f":"B27*'1 Données d''entrée'!$H$35","v":{"$error":"#DIV/0!"}},{"$f":"C27*'1 Données d''entrée'!$H$35","v":{"$error":"#DIV/0!"}},null,"Le taux de rentabilité interne (TRI) est le ratio mesurant la rentabilité d'un projet. De plus le TRI est un outil de décision à l'investissement. Un projet d'investissement ne sera généralement retenu que si son TRI prévisible est supérieur au taux d'actualisation choisi."]
["Taux de rentabilité interne",{"$f":"IRR('5 Flux de trésorerie brut'!D7:D27)","v":{"$error":"#VALUE!"}},{"$f":"IRR('7 Flux de trésorerie net'!F7:F27)","v":{"$error":"#VALUE!"}}]
["Période de remboursement",{"$f":"SUM('5 Flux de trésorerie brut'!F7:F27)","v":{"$error":"#DIV/0!"}},{"$f":"SUM('7 Flux de trésorerie net'!H7:H27)","v":{"$error":"#DIV/0!"}}]
[]
["Donnée d'entre pour les critères: Taux d'actualisation",null,null,null,"Définition du taux d'actualisation"]
["Taux d'actualisation choisi",{"$f":"'1 Données d''entrée'!H28","v":0.12},null,null,"Le taux d'actualisation est une variable clé de l'analyse financière parce qu'elle est utilisée pour calculer une valeur unique des coûts et recettes réalisés à des dates différentes: La valeur actuelle nette. Par ailleurs le taux d'actualisation est la valeur de référence pour le taux de rentabilité interne, parce que le taux d'actualisation représente le meilleur taux de rentabilité par rapport aux autres opportunités. En général pour Madagascar, un taux d'actualisation de 12% est proposé. Si un autre taux est choisi, une explication est donnée au tableau ci contre."]
["Différent du taux proposé?",{"$f":"IF(B33=12%,\"Non\",\"Oui\")","v":"Non"}]
["Explication de la différence du taux",{"$f":"'1 Données d''entrée'!H29","v":0}]
[]
[]
[]
[]
[]
[]
["Autres critères de faisabilité / d'investissement"]
[]
[]
["Coût total et coût initial d'investissement",null,null,null,"Définition du coût total"]
["Coût total (AR) (Période 0-20)",{"$f":"'3 Coût total'!F27","v":0},null,null,"Le coût total est la somme de toutes les dépenses réalisées pendant le développement et la réalisation du projet analysé. "]
["Coût total (EUR) (Période 0-20)",{"$f":"B46*'1 Données d''entrée'!H35","v":0}]
["Coût initial d'investissement (AR)",{"$f":"'3 Coût total'!B7","v":0},null,null,"Définition du coût initial d'investissement"]
["Coût initial d'investissement (EUR)",{"$f":"B48*'1 Données d''entrée'!H35","v":0},null,null,"Le coût initial d'investissement est la somme de toutes les dépenses nécessaires pour commencer la production et la vente d'électricité. Il est la base du calcul de la subvention d'ADER."]
[]
["Ratios"]
["Ratio bénéfice-coût ","brut","net",null,"Définition du ratio bénéfice-coût"]
[null,{"$f":"SUM('5 Flux de trésorerie brut'!C7:C27/'5 Flux de trésorerie brut'!B7:B27)/('1 Données d''entrée'!$H$32+1)","v":{"$error":"#DIV/0!"}},{"$f":"SUM(('5 Flux de trésorerie brut'!C7:C27+'7 Flux de trésorerie net'!D7:D27)/('5 Flux de trésorerie brut'!B7:B27+(-1)*'7 Flux de trésorerie net'!C7:C27))/('1 Données d''entrée'!$H$32+1)","v":{"$error":"#DIV/0!"}},null,"Le ratio bénéfice-coût est un indicateur de rentabilité du projet. Si le ratio est supérieur à un, le projet réalise un profit."]
[]
["Coût d'investissement / capacité installée",{"$f":"B48/B12","v":{"$error":"#DIV/0!"}},"AR / kW",null,"Définitions des ratios"]
[null,{"$f":"B55*'1 Données d''entrée'!$H$35","v":{"$error":"#DIV/0!"}},"EUR / kW",null,"Les rapports entre le coût d'investissement et la capacité installée et entre le coût d'investissement et la production annuelle pour la vente désignent respectivement le coût par kW installé et le coût par kWh vendue par an."]
["Coût d'investissement / production annuelle vendue",{"$f":"B46/((SUM('4 Recette totale'!C93:C113)+SUM('4 Recette totale'!J93:J113)+SUM('4 Recette totale'!C118:C138)+SUM('1 Données d''entrée'!B264:B284))/('1 Données d''entrée'!$H$32+1))","v":{"$error":"#DIV/0!"}},"AR / kWh / a"]
[null,{"$f":"B57*'1 Données d''entrée'!$H$35","v":{"$error":"#DIV/0!"}},"EUR / kWh / a"]
["Coût total (Période 0-20)/ connexion",{"$f":"B46/B15","v":{"$error":"#DIV/0!"}},"AR",null,"Le coût total par connexion est un indicateur qui démontre le coût total moyen pour l'installation et maintenance d'une connexion. Le ratio est calculé par une division de coût total par des connexions installées."]
[null,{"$f":"B59*'1 Données d''entrée'!$H$35","v":{"$error":"#DIV/0!"}},"EUR"]
["Coût fixe / connexion par ans",{"$f":"(B46/('1 Données d''entrée'!$H$32+1))/B15","v":{"$error":"#DIV/0!"}},"AR / a",null,"Le coût fixe par connexion démontre le coût qui sont fixe pour chaque connexion par ans, alors le tarif doit excéder ces coût fixe par connexion pour que le projet réalise un profit."]
[null,{"$f":"B61*'1 Données d''entrée'!$H$35","v":{"$error":"#DIV/0!"}},"EUR / a"]
["Recette moyenne/ connexion par ans",{"$f":"SUM('5 Flux de trésorerie brut'!C7:C27)/('1 Données d''entrée'!$H$32+1)/B15","v":{"$error":"#DIV/0!"}},"AR / a",null,"Le ratio recette moyenne par connexion démontre la recette moyenne qui est réalisée par connexion par ans. "]
[null,{"$f":"B63*'1 Données d''entrée'!$H$35","v":{"$error":"#DIV/0!"}},"EUR / a"]
[]
[]
["Tarif minimum pour la couverture financière",null,null,null,"Définition du tarif minimum"]
["Tarif minimum  ",{"$f":"(B46/21)/((SUM('4 Recette totale'!C93:C113)+SUM('4 Recette totale'!J93:J113)+SUM('4 Recette totale'!C118:C138)+SUM('1 Données d''entrée'!B264:B284))/('1 Données d''entrée'!$H$32+1))","v":{"$error":"#DIV/0!"}},"AR / kWh",null,"Le tarif minimum est calculé par le ratio des coûts moyens par ans vers la production annuelle vendue moyenne par ans. L'indicateur démontre le tarif qui doit être demander pour une kilowatt heure pour que le projet réalise un profit."]
[null,{"$f":"B68*'1 Données d''entrée'!$H$35","v":{"$error":"#DIV/0!"}},"EUR/ kWh"]
[]
[]
["Questionnaire qualitatif",null,null,null,"Le questionnaire qualitatif"]
["Réponses avec information additionnelle (max. 5)",{"$f":"IF('2 Questionnaire qualitatif'!C9=TRUE,1,0)+IF('2 Questionnaire qualitatif'!C21=TRUE,1,0)+IF('2 Questionnaire qualitatif'!C33=TRUE,1,0)+IF('2 Questionnaire qualitatif'!D73>0,1,0)+IF('2 Questionnaire qualitatif'!C45=TRUE,1,0)+IF('2 Questionnaire qualitatif'!C46=TRUE,1,0)+IF('2 Questionnaire qualitatif'!C47=TRUE,1,0)","v":0},null,null,"Le questionnaire qualitatif démontre des informations additionnelles du projet et notamment de l'expérience des responsables du projet."]
[]
[]
[]
[]
["Critères financiers"]
[]
[]
["Structure du financement",null,null,null,"Définitions"]
["Bailleurs de fonds","% du financement total",null,null,"La structure du financement désigne la répartition du financement des différents  bailleurs de fonds."]
["Subvention d'ADER",{"$f":"'6 Financement'!C8","v":0}]
["Capitaux propres",{"$f":"'6 Financement'!C9","v":{"$error":"#DIV/0!"}}]
["Fonds d'autre donneurs / investisseurs",{"$f":"'6 Financement'!C10","v":{"$error":"#DIV/0!"}}]
["Prêt bancaire",{"$f":"'6 Financement'!C13","v":{"$error":"#DIV/0!"}}]
["Subventions (ADER) / connexion",{"$f":"'6 Financement'!B8/'8 Apercu général'!B15","v":{"$error":"#DIV/0!"}},"AR",null,"Le rapport du montant des subventions au total des connexions est un indicateur pour la comparaison des projets - si le projet inclut l'alimentation réseau, l'indicateur n'est pas applicable. "]
[]
[]
["Aperçu du financement ",null,null,null,"Définitions des indicateur financiers"]
["Taux des capitaux propres",{"$f":"'6 Financement'!B9/(SUM('6 Financement'!B8:B11))","v":{"$error":"#DIV/0!"}},null,null,"Le taux de capitaux propres se calcule ainsi: Capitaux propres / Capitaux totaux."]
["Rentabilité du capitaux propres (moyen)",{"$f":"SUM('7 Flux de trésorerie net'!F7:F27)/('1 Données d''entrée'!$H$32+1)/'1 Données d''entrée'!B294","v":{"$error":"#DIV/0!"}},null,null,"La rentabilité du capitaux propres est un indicateur pour le promoteur du projet qui lui démontre le taux de rentabilité de son capital investi."]
["Taux d'endettement (moyen)",{"$f":"'6 Financement'!$B$33","v":{"$error":"#DIV/0!"}},null,null,"Le taux d'endettement est le rapport entre les coûts de la dette et les revenus par période. La moyenne se calcule à partir des chiffres existants et représente le maximum du taux d'endettement. Il décrit la capacité de l'entreprise à régler ses dettes à long terme."]
["Ratio de couverture des intérêts",{"$f":"'6 Financement'!$B$31","v":0},null,null,"Le ratio de couverture des intérêts ou le ratio intérêts-bénéfices se calcule ainsi : (bénéfice net + intérêts et frais bancaires) / (intérêts et frais bancaires). La moyenne est calculée à partir des chiffres existants et représente le minimum RCI. Plus ce ratio est élevé, plus l'entreprise est capable de s'acquitter de ses frais d'intérêts. "]
["Ratio de couverture de la dette (RCD)",{"$f":"'6 Financement'!$B$29","v":0},null,null,"Le ratio de couverture de la dette (RCD) se calcule ainsi: le rapport entre les revenus par période et les coûts totaux de la dette (remboursements et paiements d'intérêts); la moyenne est calculée à partir des chiffres existants et représente le minimum RCD. Un RCD inférieur à 1 correspond à une perte opérative due à la structure de la dette proposée. Un RCD égal à 1 correspond au seuil de rentabilité et un RCD supérieur à 1 à une faisabilité du projet."]
["Taux d'intérêt effectif du prêt",{"$f":"'6 Financement'!B35","v":{"$error":"#DIV/0!"}},null,null,"Le taux d'intérêt effectif montre le taux d'intérêt d'un prêt avec l'inclusion des coûts additionnels du prêt. A cause de l'inclusion des coûts additionnels, ce taux est plus élevé que le taux nominal du prêt donné par la banque."]
[]
[]
[]
[]
[]
["Analyse de sensibilité"]
[]
[]
["Variation d'un seul paramètre",null,null,null,"Définition de la variation d'un seul paramètre"]
["Variation d'une seule variable: Tournant de - à +",null,null,null,"La variation d'un seul paramètre permet d'observer le changement du résultat final à cause d'un seul changement d'une variable choisie - toutes les autres variables sont maintenues constantes. "]
["Variation de coût",null,{"$f":"IF(SUM('9 Sensibilité et robustesse'!D30:D40)>0,SUM('9 Sensibilité et robustesse'!D30:D40),\"Robustesse total\")","v":{"$error":"#DIV/0!"}}]
["Variation de recette",null,{"$f":"IF(SUM('9 Sensibilité et robustesse'!D44:D54)>0,SUM('9 Sensibilité et robustesse'!D44:D54),\"Robustesse total\")","v":{"$error":"#DIV/0!"}}]
["Taux de recouvrement",null,{"$f":"SUM('9 Sensibilité et robustesse'!D58:D68)","v":{"$error":"#DIV/0!"}}]
[]
[]
["Analyse de scénarios (taux d'actualisation constant)",null,null,null,"Définition de l'analyse des scénarios"]
["Scénario","Valeur actuelle nette","Taux de rentabilité interne",null,"Une analyse de scénarios intégrer le risque d'un changement des variables clés avec la création de trois scénarios pour analyser la robustesse du projet. Le meilleur cas indique la meilleur développement possible pour les variables choisis. Le cas le plus probable et le pire cas analyse le projet pareillement. "]
["Le meilleure",{"$f":"NPV('1 Données d''entrée'!$H$28,'5 Flux de trésorerie brut'!$C$8:$C$27*'1 Données d''entrée'!$C$382-'5 Flux de trésorerie brut'!$B$8:$B$27*'1 Données d''entrée'!$B$382)+'5 Flux de trésorerie brut'!$C$7*'1 Données d''entrée'!$C$382-'5 Flux de trésorerie brut'!$B$7*'1 Données d''entrée'!$B$382","v":{"$error":"#DIV/0!"}},{"$f":"'9 Sensibilité et robustesse'!$C$86","v":{"$error":"#VALUE!"}}]
["Le plus probable",{"$f":"NPV('1 Données d''entrée'!$H$28,'5 Flux de trésorerie brut'!$C$8:$C$27*'1 Données d''entrée'!$C$383-'5 Flux de trésorerie brut'!$B$8:$B$27*'1 Données d''entrée'!$B$383)+'5 Flux de trésorerie brut'!$C$7*'1 Données d''entrée'!$C$383-'5 Flux de trésorerie brut'!$B$7*'1 Données d''entrée'!$B$383","v":{"$error":"#DIV/0!"}},{"$f":"'9 Sensibilité et robustesse'!$F$86","v":{"$error":"#VALUE!"}}]
["Le pire",{"$f":"NPV('1 Données d''entrée'!$H$28,'5 Flux de trésorerie brut'!$C$8:$C$27*'1 Données d''entrée'!$C$384-'5 Flux de trésorerie brut'!$B$8:$B$27*'1 Données d''entrée'!$B$384)+'5 Flux de trésorerie brut'!$C$7*'1 Données d''entrée'!$C$384-'5 Flux de trésorerie brut'!$B$7*'1 Données d''entrée'!$B$384","v":{"$error":"#DIV/0!"}},{"$f":"'9 Sensibilité et robustesse'!$I$86","v":{"$error":"#VALUE!"}}]
[]
[]
[]
[]
[]
["Facture d'électricité"]
[]
[]
["Facture d'électricité d'un ménage"]
[]
["Coûts différents de la fourniture d'électricité (par ans)","Tarifs différents"]
[null,"Forfait",null,"Tarif fixe (ménage moyen)",null,"Tarif flexible  (ménage moyen)"]
["Coût de l'abonnement ",{"$f":"'1 Données d''entrée'!B191","v":0},"AR",{"$f":"'1 Données d''entrée'!G191","v":0},"AR",{"$f":"'1 Données d''entrée'!M191","v":0},"AR"]
["Coût de la consommation (moyenne)",{"$f":"'1 Données d''entrée'!B192*'1 Données d''entrée'!B193","v":{"$error":"#DIV/0!"}},"AR",{"$f":"'1 Données d''entrée'!G193*'1 Données d''entrée'!G192","v":{"$error":"#DIV/0!"}},"AR",{"$f":"'1 Données d''entrée'!M193*'1 Données d''entrée'!M192","v":{"$error":"#DIV/0!"}},"AR"]
["Taxes",{"$f":"IF('1 Données d''entrée'!$B$193>960,'1 Données d''entrée'!$C$364*('8 Apercu général'!B130+'8 Apercu général'!B129),0)+IF('1 Données d''entrée'!$B$193>240,'1 Données d''entrée'!$C$365*('8 Apercu général'!B129+'8 Apercu général'!B130),0)+(B130+B129)*'1 Données d''entrée'!$C$366","v":{"$error":"#DIV/0!"}},"AR",{"$f":"IF('1 Données d''entrée'!$G$193>960,'1 Données d''entrée'!$C$364*('8 Apercu général'!D130+'8 Apercu général'!D129),0)+IF('1 Données d''entrée'!$G$193>240,'1 Données d''entrée'!$C$365*('8 Apercu général'!D129+'8 Apercu général'!D130),0)+(D130+D129)*'1 Données d''entrée'!$C$366","v":{"$error":"#DIV/0!"}},"AR",{"$f":"IF('1 Données d''entrée'!$M$193>960,'1 Données d''entrée'!$C$364*('8 Apercu général'!F130+'8 Apercu général'!F129),0)+IF('1 Données d''entrée'!$M$193>240,'1 Données d''entrée'!$C$365*('8 Apercu général'!F129+'8 Apercu général'!F130),0)+(F130+F129)*'1 Données d''entrée'!$C$366","v":{"$error":"#DIV/0!"}},"AR"]
["Frais unique de l'installation de la connexion",{"$f":"'1 Données d''entrée'!B190","v":0},"AR",{"$f":"'1 Données d''entrée'!G190","v":0},"AR",{"$f":"'1 Données d''entrée'!M190","v":0},"AR"]
[null,{"$f":"B132*'1 Données d''entrée'!$H$35","v":0},"EUR",{"$f":"D132*'1 Données d''entrée'!$H$35","v":0},"EUR",{"$f":"F132*'1 Données d''entrée'!$H$35","v":0},"EUR"]
[]
["La facture mensuelle"]
["Montant total à régler (les mois du 1ière ans - avec frais d'installation)",{"$f":"(B132/12+B138)","v":{"$error":"#DIV/0!"}},"AR",{"$f":"D132/12+D138","v":{"$error":"#DIV/0!"}},"AR",{"$f":"F132/12+F138","v":{"$error":"#DIV/0!"}},"AR"]
[null,{"$f":"B136*'1 Données d''entrée'!$H$35","v":{"$error":"#DIV/0!"}},"EUR",{"$f":"D136*'1 Données d''entrée'!$H$35","v":{"$error":"#DIV/0!"}},"EUR",{"$f":"F136*'1 Données d''entrée'!$H$35","v":{"$error":"#DIV/0!"}},"EUR"]
["Montant total à régler par mois (sans frais d'installation)",{"$f":"(B129+B130+B131)/12","v":{"$error":"#DIV/0!"}},"AR",{"$f":"(D129+D130+D131)/12","v":{"$error":"#DIV/0!"}},"AR",{"$f":"(F129+F130+F131)/12","v":{"$error":"#DIV/0!"}},"AR"]
[null,{"$f":"B138*'1 Données d''entrée'!$H$35","v":{"$error":"#DIV/0!"}},"EUR",{"$f":"D138*'1 Données d''entrée'!$H$35","v":{"$error":"#DIV/0!"}},"EUR",{"$f":"F138*'1 Données d''entrée'!$H$35","v":{"$error":"#DIV/0!"}},"EUR"]
[]
["Consommation moyenne (par mois et par ménage)",{"$f":"'1 Données d''entrée'!B193/12","v":0},"kWh",{"$f":"'1 Données d''entrée'!G193/12","v":{"$error":"#DIV/0!"}},"kWh",{"$f":"'1 Données d''entrée'!M193/12","v":{"$error":"#DIV/0!"}},"kWh"]
[]
["Coût moyen par kWh"]
["Coût moyen par ménage (avec frais d'installation)",{"$f":"B136/B141","v":{"$error":"#DIV/0!"}},"AR / kWh",{"$f":"D136/D141","v":{"$error":"#DIV/0!"}},"AR / kWh",{"$f":"F136/F141","v":{"$error":"#DIV/0!"}},"AR / kWh"]
[null,{"$f":"B144*'1 Données d''entrée'!$H$35","v":{"$error":"#DIV/0!"}},"EUR / kWh",{"$f":"D144*'1 Données d''entrée'!$H$35","v":{"$error":"#DIV/0!"}},"EUR / kWh",{"$f":"F144*'1 Données d''entrée'!$H$35","v":{"$error":"#DIV/0!"}},"EUR / kWh"]
["Coût moyen par ménage (sans frais d'installation)",{"$f":"B138/B141","v":{"$error":"#DIV/0!"}},"AR / kWh",{"$f":"D138/D141","v":{"$error":"#DIV/0!"}},"AR / kWh",{"$f":"F138/F141","v":{"$error":"#DIV/0!"}},"AR / kWh"]
[null,{"$f":"B146*'1 Données d''entrée'!$H$35","v":{"$error":"#DIV/0!"}},"EUR / kWh",{"$f":"D146*'1 Données d''entrée'!$H$35","v":{"$error":"#DIV/0!"}},"EUR / kWh",{"$f":"F146*'1 Données d''entrée'!$H$35","v":{"$error":"#DIV/0!"}},"EUR / kWh"]

{"sheet":"9 Sensibilité et robustesse","index":10,"n_rows":142,"n_cols":9,"rows_kept":142,"cut":false,"hidden":false,"merged":[[130,6,132,7],[8,0,8,1],[2,0,2,7],[6,0,6,7],[76,0,76,7],[55,0,55,3],[41,0,41,3],[27,0,27,3],[126,0,127,5]]}
["Analyse de sensibilité"]
[]
["Cette feuille présente deux analyses de la sensibilité: l'analyse de la robustesse du projet aux changements isolés des paramètres clés et l'analyse de la robustesse du projet aux changements des plusieurs paramètres clés en même temps."]
[]
["Variation d'un seul paramètre"]
[]
["L'analyse permet d'observer le changement du résultat final à la variation d'un seul paramètre choisi (tous les autres paramètres sont constants). Les tableaux ci-dessous démontrent respectivement le changement des résultats finaux (valeur actuelle nette et taux de rentabilité interne du flux de trésorerie brut) en fonction de la variation de chaque paramètre."]
[]
["Taux d'actualisation"]
["Taux d'actualisation","Valeur actuelle nette (brut)"]
[0,{"$f":"NPV(A11,'5 Flux de trésorerie brut'!$D$8:$D$27)+'5 Flux de trésorerie brut'!$D$7","v":{"$error":"#DIV/0!"}}]
[0.02,{"$f":"NPV(A12,'5 Flux de trésorerie brut'!$D$8:$D$27)+'5 Flux de trésorerie brut'!$D$7","v":{"$error":"#DIV/0!"}}]
[0.04,{"$f":"NPV(A13,'5 Flux de trésorerie brut'!$D$8:$D$27)+'5 Flux de trésorerie brut'!$D$7","v":{"$error":"#DIV/0!"}}]
[0.06,{"$f":"NPV(A14,'5 Flux de trésorerie brut'!$D$8:$D$27)+'5 Flux de trésorerie brut'!$D$7","v":{"$error":"#DIV/0!"}}]
[0.08,{"$f":"NPV(A15,'5 Flux de trésorerie brut'!$D$8:$D$27)+'5 Flux de trésorerie brut'!$D$7","v":{"$error":"#DIV/0!"}}]
[0.1,{"$f":"NPV(A16,'5 Flux de trésorerie brut'!$D$8:$D$27)+'5 Flux de trésorerie brut'!$D$7","v":{"$error":"#DIV/0!"}}]
[0.12,{"$f":"NPV(A17,'5 Flux de trésorerie brut'!$D$8:$D$27)+'5 Flux de trésorerie brut'!$D$7","v":{"$error":"#DIV/0!"}}]
[0.14000000000000001,{"$f":"NPV(A18,'5 Flux de trésorerie brut'!$D$8:$D$27)+'5 Flux de trésorerie brut'!$D$7","v":{"$error":"#DIV/0!"}}]
[0.16,{"$f":"NPV(A19,'5 Flux de trésorerie brut'!$D$8:$D$27)+'5 Flux de trésorerie brut'!$D$7","v":{"$error":"#DIV/0!"}}]
[0.18,{"$f":"NPV(A20,'5 Flux de trésorerie brut'!$D$8:$D$27)+'5 Flux de trésorerie brut'!$D$7","v":{"$error":"#DIV/0!"}}]
[0.2,{"$f":"NPV(A21,'5 Flux de trésorerie brut'!$D$8:$D$27)+'5 Flux de trésorerie brut'!$D$7","v":{"$error":"#DIV/0!"}}]
[0.22,{"$f":"NPV(A22,'5 Flux de trésorerie brut'!$D$8:$D$27)+'5 Flux de trésorerie brut'!$D$7","v":{"$error":"#DIV/0!"}}]
[0.24,{"$f":"NPV(A23,'5 Flux de trésorerie brut'!$D$8:$D$27)+'5 Flux de trésorerie brut'!$D$7","v":{"$error":"#DIV/0!"}}]
[0.26,{"$f":"NPV(A24,'5 Flux de trésorerie brut'!$D$8:$D$27)+'5 Flux de trésorerie brut'!$D$7","v":{"$error":"#DIV/0!"}}]
[0.28000000000000003,{"$f":"NPV(A25,'5 Flux de trésorerie brut'!$D$8:$D$27)+'5 Flux de trésorerie brut'!$D$7","v":{"$error":"#DIV/0!"}}]
[0.3,{"$f":"NPV(A26,'5 Flux de trésorerie brut'!$D$8:$D$27)+'5 Flux de trésorerie brut'!$D$7","v":{"$error":"#DIV/0!"}}]
[]
["Variation du coût total"]
["Variation du coût","Valeur actuelle nette (brut)","Taux de rentabilité interne","Tournant de + à -"]
[0.5,{"$f":"NPV('1 Données d''entrée'!$H$28,'5 Flux de trésorerie brut'!$C$8:$C$27-'5 Flux de trésorerie brut'!$B$8:$B$27*'9 Sensibilité et robustesse'!A30)+'5 Flux de trésorerie brut'!$C$7-'5 Flux de trésorerie brut'!$B$7*A30","v":{"$error":"#DIV/0!"}},{"$f":"IRR('5 Flux de trésorerie brut'!$C$7:$C$27-'5 Flux de trésorerie brut'!$B$7:$B$27*'9 Sensibilité et robustesse'!A30)","v":{"$error":"#VALUE!"}},{"$f":"IF(B30>0,\" \",A30)","v":{"$error":"#DIV/0!"}}]
[0.6,{"$f":"NPV('1 Données d''entrée'!$H$28,'5 Flux de trésorerie brut'!$C$8:$C$27-'5 Flux de trésorerie brut'!$B$8:$B$27*'9 Sensibilité et robustesse'!A31)+'5 Flux de trésorerie brut'!$C$7-'5 Flux de trésorerie brut'!$B$7*A31","v":{"$error":"#DIV/0!"}},{"$f":"IRR('5 Flux de trésorerie brut'!$C$7:$C$27-'5 Flux de trésorerie brut'!$B$7:$B$27*'9 Sensibilité et robustesse'!A31)","v":{"$error":"#VALUE!"}},{"$f":"IF(SUM($D$30:D30)>0,\" \",IF(B31>0,\" \",A31))","v":{"$error":"#DIV/0!"}}]
[0.7,{"$f":"NPV('1 Données d''entrée'!$H$28,'5 Flux de trésorerie brut'!$C$8:$C$27-'5 Flux de trésorerie brut'!$B$8:$B$27*'9 Sensibilité et robustesse'!A32)+'5 Flux de trésorerie brut'!$C$7-'5 Flux de trésorerie brut'!$B$7*A32","v":{"$error":"#DIV/0!"}},{"$f":"IRR('5 Flux de trésorerie brut'!$C$7:$C$27-'5 Flux de trésorerie brut'!$B$7:$B$27*'9 Sensibilité et robustesse'!A32)","v":{"$error":"#VALUE!"}},{"$f":"IF(SUM($D$30:D31)>0,\" \",IF(B32>0,\" \",A32))","v":{"$error":"#DIV/0!"}}]
[0.8,{"$f":"NPV('1 Données d''entrée'!$H$28,'5 Flux de trésorerie brut'!$C$8:$C$27-'5 Flux de trésorerie brut'!$B$8:$B$27*'9 Sensibilité et robustesse'!A33)+'5 Flux de trésorerie brut'!$C$7-'5 Flux de trésorerie brut'!$B$7*A33","v":{"$error":"#DIV/0!"}},{"$f":"IRR('5 Flux de trésorerie brut'!$C$7:$C$27-'5 Flux de trésorerie brut'!$B$7:$B$27*'9 Sensibilité et robustesse'!A33)","v":{"$error":"#VALUE!"}},{"$f":"IF(SUM($D$30:D32)>0,\" \",IF(B33>0,\" \",A33))","v":{"$error":"#DIV/0!"}}]
[0.9,{"$f":"NPV('1 Données d''entrée'!$H$28,'5 Flux de trésorerie brut'!$C$8:$C$27-'5 Flux de trésorerie brut'!$B$8:$B$27*'9 Sensibilité et robustesse'!A34)+'5 Flux de trésorerie brut'!$C$7-'5 Flux de trésorerie brut'!$B$7*A34","v":{"$error":"#DIV/0!"}},{"$f":"IRR('5 Flux de trésorerie brut'!$C$7:$C$27-'5 Flux de trésorerie brut'!$B$7:$B$27*'9 Sensibilité et robustesse'!A34)","v":{"$error":"#VALUE!"}},{"$f":"IF(SUM($D$30:D33)>0,\" \",IF(B34>0,\" \",A34))","v":{"$error":"#DIV/0!"}}]
[1,{"$f":"NPV('1 Données d''entrée'!$H$28,'5 Flux de trésorerie brut'!$C$8:$C$27-'5 Flux de trésorerie brut'!$B$8:$B$27*'9 Sensibilité et robustesse'!A35)+'5 Flux de trésorerie brut'!$C$7-'5 Flux de trésorerie brut'!$B$7*A35","v":{"$error":"#DIV/0!"}},{"$f":"IRR('5 Flux de trésorerie brut'!$C$7:$C$27-'5 Flux de trésorerie brut'!$B$7:$B$27*'9 Sensibilité et robustesse'!A35)","v":{"$error":"#VALUE!"}},{"$f":"IF(SUM($D$30:D34)>0,\" \",IF(B35>0,\" \",A35))","v":{"$error":"#DIV/0!"}}]
[1.1000000000000001,{"$f":"NPV('1 Données d''entrée'!$H$28,'5 Flux de trésorerie brut'!$C$8:$C$27-'5 Flux de trésorerie brut'!$B$8:$B$27*'9 Sensibilité et robustesse'!A36)+'5 Flux de trésorerie brut'!$C$7-'5 Flux de trésorerie brut'!$B$7*A36","v":{"$error":"#DIV/0!"}},{"$f":"IRR('5 Flux de trésorerie brut'!$C$7:$C$27-'5 Flux de trésorerie brut'!$B$7:$B$27*'9 Sensibilité et robustesse'!A36)","v":{"$error":"#VALUE!"}},{"$f":"IF(SUM($D$30:D35)>0,\" \",IF(B36>0,\" \",A36))","v":{"$error":"#DIV/0!"}}]
[1.2,{"$f":"NPV('1 Données d''entrée'!$H$28,'5 Flux de trésorerie brut'!$C$8:$C$27-'5 Flux de trésorerie brut'!$B$8:$B$27*'9 Sensibilité et robustesse'!A37)+'5 Flux de trésorerie brut'!$C$7-'5 Flux de trésorerie brut'!$B$7*A37","v":{"$error":"#DIV/0!"}},{"$f":"IRR('5 Flux de trésorerie brut'!$C$7:$C$27-'5 Flux de trésorerie brut'!$B$7:$B$27*'9 Sensibilité et robustesse'!A37)","v":{"$error":"#VALUE!"}},{"$f":"IF(SUM($D$30:D36)>0,\" \",IF(B37>0,\" \",A37))","v":{"$error":"#DIV/0!"}}]
[1.3,{"$f":"NPV('1 Données d''entrée'!$H$28,'5 Flux de trésorerie brut'!$C$8:$C$27-'5 Flux de trésorerie brut'!$B$8:$B$27*'9 Sensibilité et robustesse'!A38)+'5 Flux de trésorerie brut'!$C$7-'5 Flux de trésorerie brut'!$B$7*A38","v":{"$error":"#DIV/0!"}},{"$f":"IRR('5 Flux de trésorerie brut'!$C$7:$C$27-'5 Flux de trésorerie brut'!$B$7:$B$27*'9 Sensibilité et robustesse'!A38)","v":{"$error":"#VALUE!"}},{"$f":"IF(SUM($D$30:D37)>0,\" \",IF(B38>0,\" \",A38))","v":{"$error":"#DIV/0!"}}]
[1.4,{"$f":"NPV('1 Données d''entrée'!$H$28,'5 Flux de trésorerie brut'!$C$8:$C$27-'5 Flux de trésorerie brut'!$B$8:$B$27*'9 Sensibilité et robustesse'!A39)+'5 Flux de trésorerie brut'!$C$7-'5 Flux de trésorerie brut'!$B$7*A39","v":{"$error":"#DIV/0!"}},{"$f":"IRR('5 Flux de trésorerie brut'!$C$7:$C$27-'5 Flux de trésorerie brut'!$B$7:$B$27*'9 Sensibilité et robustesse'!A39)","v":{"$error":"#VALUE!"}},{"$f":"IF(SUM($D$30:D38)>0,\" \",IF(B39>0,\" \",A39))","v":{"$error":"#DIV/0!"}}]
[1.5,{"$f":"NPV('1 Données d''entrée'!$H$28,'5 Flux de trésorerie brut'!$C$8:$C$27-'5 Flux de trésorerie brut'!$B$8:$B$27*'9 Sensibilité et robustesse'!A40)+'5 Flux de trésorerie brut'!$C$7-'5 Flux de trésorerie brut'!$B$7*A40","v":{"$error":"#DIV/0!"}},{"$f":"IRR('5 Flux de trésorerie brut'!$C$7:$C$27-'5 Flux de trésorerie brut'!$B$7:$B$27*'9 Sensibilité et robustesse'!A40)","v":{"$error":"#VALUE!"}},{"$f":"IF(SUM($D$30:D39)>0,\" \",IF(B40>0,\" \",A40))","v":{"$error":"#DIV/0!"}}]
[]
["Variation de la recette totale"]
["Variation de la recette","Valeur actuelle nette (brut)","Taux de rentabilité interne","Tournant de + à -"]
[1.5,{"$f":"NPV('1 Données d''entrée'!$H$28,'5 Flux de trésorerie brut'!$C$8:$C$27*'9 Sensibilité et robustesse'!A44-'5 Flux de trésorerie brut'!$B$8:$B$27)+'5 Flux de trésorerie brut'!$C$7*A44-'5 Flux de trésorerie brut'!$B$7","v":{"$error":"#DIV/0!"}},{"$f":"IRR('5 Flux de trésorerie brut'!$C$7:$C$27*'9 Sensibilité et robustesse'!A44-'5 Flux de trésorerie brut'!$B$7:$B$27)","v":{"$error":"#VALUE!"}},{"$f":"IF(B44>0,\" \",A44)","v":{"$error":"#DIV/0!"}}]
[1.4,{"$f":"NPV('1 Données d''entrée'!$H$28,'5 Flux de trésorerie brut'!$C$8:$C$27*'9 Sensibilité et robustesse'!A45-'5 Flux de trésorerie brut'!$B$8:$B$27)+'5 Flux de trésorerie brut'!$C$7*A45-'5 Flux de trésorerie brut'!$B$7","v":{"$error":"#DIV/0!"}},{"$f":"IRR('5 Flux de trésorerie brut'!$C$7:$C$27*'9 Sensibilité et robustesse'!A45-'5 Flux de trésorerie brut'!$B$7:$B$27)","v":{"$error":"#VALUE!"}},{"$f":"IF(SUM($D$44:D44)>0,\" \",IF(B45>0,\" \",A45))","v":{"$error":"#DIV/0!"}}]
[1.3,{"$f":"NPV('1 Données d''entrée'!$H$28,'5 Flux de trésorerie brut'!$C$8:$C$27*'9 Sensibilité et robustesse'!A46-'5 Flux de trésorerie brut'!$B$8:$B$27)+'5 Flux de trésorerie brut'!$C$7*A46-'5 Flux de trésorerie brut'!$B$7","v":{"$error":"#DIV/0!"}},{"$f":"IRR('5 Flux de trésorerie brut'!$C$7:$C$27*'9 Sensibilité et robustesse'!A46-'5 Flux de trésorerie brut'!$B$7:$B$27)","v":{"$error":"#VALUE!"}},{"$f":"IF(SUM($D$44:D45)>0,\" \",IF(B46>0,\" \",A46))","v":{"$error":"#DIV/0!"}}]
[1.2,{"$f":"NPV('1 Données d''entrée'!$H$28,'5 Flux de trésorerie brut'!$C$8:$C$27*'9 Sensibilité et robustesse'!A47-'5 Flux de trésorerie brut'!$B$8:$B$27)+'5 Flux de trésorerie brut'!$C$7*A47-'5 Flux de trésorerie brut'!$B$7","v":{"$error":"#DIV/0!"}},{"$f":"IRR('5 Flux de trésorerie brut'!$C$7:$C$27*'9 Sensibilité et robustesse'!A47-'5 Flux de trésorerie brut'!$B$7:$B$27)","v":{"$error":"#VALUE!"}},{"$f":"IF(SUM($D$44:D46)>0,\" \",IF(B47>0,\" \",A47))","v":{"$error":"#DIV/0!"}}]
[1.1000000000000001,{"$f":"NPV('1 Données d''entrée'!$H$28,'5 Flux de trésorerie brut'!$C$8:$C$27*'9 Sensibilité et robustesse'!A48-'5 Flux de trésorerie brut'!$B$8:$B$27)+'5 Flux de trésorerie brut'!$C$7*A48-'5 Flux de trésorerie brut'!$B$7","v":{"$error":"#DIV/0!"}},{"$f":"IRR('5 Flux de trésorerie brut'!$C$7:$C$27*'9 Sensibilité et robustesse'!A48-'5 Flux de trésorerie brut'!$B$7:$B$27)","v":{"$error":"#VALUE!"}},{"$f":"IF(SUM($D$44:D47)>0,\" \",IF(B48>0,\" \",A48))","v":{"$error":"#DIV/0!"}}]
[1,{"$f":"NPV('1 Données d''entrée'!$H$28,'5 Flux de trésorerie brut'!$C$8:$C$27*'9 Sensibilité et robustesse'!A49-'5 Flux de trésorerie brut'!$B$8:$B$27)+'5 Flux de trésorerie brut'!$C$7*A49-'5 Flux de trésorerie brut'!$B$7","v":{"$error":"#DIV/0!"}},{"$f":"IRR('5 Flux de trésorerie brut'!$C$7:$C$27*'9 Sensibilité et robustesse'!A49-'5 Flux de trésorerie brut'!$B$7:$B$27)","v":{"$error":"#VALUE!"}},{"$f":"IF(SUM($D$44:D48)>0,\" \",IF(B49>0,\" \",A49))","v":{"$error":"#DIV/0!"}}]
[0.9,{"$f":"NPV('1 Données d''entrée'!$H$28,'5 Flux de trésorerie brut'!$C$8:$C$27*'9 Sensibilité et robustesse'!A50-'5 Flux de trésorerie brut'!$B$8:$B$27)+'5 Flux de trésorerie brut'!$C$7*A50-'5 Flux de trésorerie brut'!$B$7","v":{"$error":"#DIV/0!"}},{"$f":"IRR('5 Flux de trésorerie brut'!$C$7:$C$27*'9 Sensibilité et robustesse'!A50-'5 Flux de trésorerie brut'!$B$7:$B$27)","v":{"$error":"#VALUE!"}},{"$f":"IF(SUM($D$44:D49)>0,\" \",IF(B50>0,\" \",A50))","v":{"$error":"#DIV/0!"}}]
[0.8,{"$f":"NPV('1 Données d''entrée'!$H$28,'5 Flux de trésorerie brut'!$C$8:$C$27*'9 Sensibilité et robustesse'!A51-'5 Flux de trésorerie brut'!$B$8:$B$27)+'5 Flux de trésorerie brut'!$C$7*A51-'5 Flux de trésorerie brut'!$B$7","v":{"$error":"#DIV/0!"}},{"$f":"IRR('5 Flux de trésorerie brut'!$C$7:$C$27*'9 Sensibilité et robustesse'!A51-'5 Flux de trésorerie brut'!$B$7:$B$27)","v":{"$error":"#VALUE!"}},{"$f":"IF(SUM($D$44:D50)>0,\" \",IF(B51>0,\" \",A51))","v":{"$error":"#DIV/0!"}}]
[0.7,{"$f":"NPV('1 Données d''entrée'!$H$28,'5 Flux de trésorerie brut'!$C$8:$C$27*'9 Sensibilité et robustesse'!A52-'5 Flux de trésorerie brut'!$B$8:$B$27)+'5 Flux de trésorerie brut'!$C$7*A52-'5 Flux de trésorerie brut'!$B$7","v":{"$error":"#DIV/0!"}},{"$f":"IRR('5 Flux de trésorerie brut'!$C$7:$C$27*'9 Sensibilité et robustesse'!A52-'5 Flux de trésorerie brut'!$B$7:$B$27)","v":{"$error":"#VALUE!"}},{"$f":"IF(SUM($D$44:D51)>0,\" \",IF(B52>0,\" \",A52))","v":{"$error":"#DIV/0!"}}]
[0.6,{"$f":"NPV('1 Données d''entrée'!$H$28,'5 Flux de trésorerie brut'!$C$8:$C$27*'9 Sensibilité et robustesse'!A53-'5 Flux de trésorerie brut'!$B$8:$B$27)+'5 Flux de trésorerie brut'!$C$7*A53-'5 Flux de trésorerie brut'!$B$7","v":{"$error":"#DIV/0!"}},{"$f":"IRR('5 Flux de trésorerie brut'!$C$7:$C$27*'9 Sensibilité et robustesse'!A53-'5 Flux de trésorerie brut'!$B$7:$B$27)","v":{"$error":"#VALUE!"}},{"$f":"IF(SUM($D$44:D52)>0,\" \",IF(B53>0,\" \",A53))","v":{"$error":"#DIV/0!"}}]
[0.5,{"$f":"NPV('1 Données d''entrée'!$H$28,'5 Flux de trésorerie brut'!$C$8:$C$27*'9 Sensibilité et robustesse'!A54-'5 Flux de trésorerie brut'!$B$8:$B$27)+'5 Flux de trésorerie brut'!$C$7*A54-'5 Flux de trésorerie brut'!$B$7","v":{"$error":"#DIV/0!"}},{"$f":"IRR('5 Flux de trésorerie brut'!$C$7:$C$27*'9 Sensibilité et robustesse'!A54-'5 Flux de trésorerie brut'!$B$7:$B$27)","v":{"$error":"#VALUE!"}},{"$f":"IF(SUM($D$44:D53)>0,\" \",IF(B54>0,\" \",A54))","v":{"$error":"#DIV/0!"}}]
[]
["Variation du taux de recouvrement de l'électricité vendue"]
["Variation du taux de recouvrement","Valeur actuelle nette (brut)","Taux de rentabilité interne","Tournant de + à -"]
[1,{"$f":"(NPV('1 Données d''entrée'!$H$28,(('4 Recette totale'!$E$66:$E$85+'4 Recette totale'!$E$36:$E$55)*'9 Sensibilité et robustesse'!A58+('4 Recette totale'!$H$66:$H$85))-('5 Flux de trésorerie brut'!$B$8:$B$27))+((('4 Recette totale'!$E$65+'4 Recette totale'!$E$35)*'9 Sensibilité et robustesse'!A58+('4 Recette totale'!$H$65))-('5 Flux de trésorerie brut'!$B$7)))","v":{"$error":"#DIV/0!"}},{"$f":"(IRR((('4 Recette totale'!$E$65:$E$85+'4 Recette totale'!$E$35:$E$55)*'9 Sensibilité et robustesse'!A58+('4 Recette totale'!$H$65:$H$85))-('5 Flux de trésorerie brut'!$B$7:$B$27)))","v":{"$error":"#VALUE!"}},{"$f":"IF(B58>0,\" \",A58)","v":{"$error":"#DIV/0!"}}]
[0.9,{"$f":"(NPV('1 Données d''entrée'!$H$28,(('4 Recette totale'!$E$66:$E$85+'4 Recette totale'!$E$36:$E$55)*'9 Sensibilité et robustesse'!A59+('4 Recette totale'!$H$66:$H$85))-('5 Flux de trésorerie brut'!$B$8:$B$27))+((('4 Recette totale'!$E$65+'4 Recette totale'!$E$35)*'9 Sensibilité et robustesse'!A59+('4 Recette totale'!$H$65))-('5 Flux de trésorerie brut'!$B$7)))","v":{"$error":"#DIV/0!"}},{"$f":"(IRR((('4 Recette totale'!$E$65:$E$85+'4 Recette totale'!$E$35:$E$55)*'9 Sensibilité et robustesse'!A59+('4 Recette totale'!$H$65:$H$85))-('5 Flux de trésorerie brut'!$B$7:$B$27)))","v":{"$error":"#VALUE!"}},{"$f":"IF(SUM($D$58:D58)>0,\" \",IF(B59>0,\" \",A59))","v":{"$error":"#DIV/0!"}}]
[0.8,{"$f":"(NPV('1 Données d''entrée'!$H$28,(('4 Recette totale'!$E$66:$E$85+'4 Recette totale'!$E$36:$E$55)*'9 Sensibilité et robustesse'!A60+('4 Recette totale'!$H$66:$H$85))-('5 Flux de trésorerie brut'!$B$8:$B$27))+((('4 Recette totale'!$E$65+'4 Recette totale'!$E$35)*'9 Sensibilité et robustesse'!A60+('4 Recette totale'!$H$65))-('5 Flux de trésorerie brut'!$B$7)))","v":{"$error":"#DIV/0!"}},{"$f":"(IRR((('4 Recette totale'!$E$65:$E$85+'4 Recette totale'!$E$35:$E$55)*'9 Sensibilité et robustesse'!A60+('4 Recette totale'!$H$65:$H$85))-('5 Flux de trésorerie brut'!$B$7:$B$27)))","v":{"$error":"#VALUE!"}},{"$f":"IF(SUM($D$58:D59)>0,\" \",IF(B60>0,\" \",A60))","v":{"$error":"#DIV/0!"}}]
[0.7,{"$f":"(NPV('1 Données d''entrée'!$H$28,(('4 Recette totale'!$E$66:$E$85+'4 Recette totale'!$E$36:$E$55)*'9 Sensibilité et robustesse'!A61+('4 Recette totale'!$H$66:$H$85))-('5 Flux de trésorerie brut'!$B$8:$B$27))+((('4 Recette totale'!$E$65+'4 Recette totale'!$E$35)*'9 Sensibilité et robustesse'!A61+('4 Recette totale'!$H$65))-('5 Flux de trésorerie brut'!$B$7)))","v":{"$error":"#DIV/0!"}},{"$f":"(IRR((('4 Recette totale'!$E$65:$E$85+'4 Recette totale'!$E$35:$E$55)*'9 Sensibilité et robustesse'!A61+('4 Recette totale'!$H$65:$H$85))-('5 Flux de trésorerie brut'!$B$7:$B$27)))","v":{"$error":"#VALUE!"}},{"$f":"IF(SUM($D$58:D60)>0,\" \",IF(B61>0,\" \",A61))","v":{"$error":"#DIV/0!"}}]
[0.6,{"$f":"(NPV('1 Données d''entrée'!$H$28,(('4 Recette totale'!$E$66:$E$85+'4 Recette totale'!$E$36:$E$55)*'9 Sensibilité et robustesse'!A62+('4 Recette totale'!$H$66:$H$85))-('5 Flux de trésorerie brut'!$B$8:$B$27))+((('4 Recette totale'!$E$65+'4 Recette totale'!$E$35)*'9 Sensibilité et robustesse'!A62+('4 Recette totale'!$H$65))-('5 Flux de trésorerie brut'!$B$7)))","v":{"$error":"#DIV/0!"}},{"$f":"(IRR((('4 Recette totale'!$E$65:$E$85+'4 Recette totale'!$E$35:$E$55)*'9 Sensibilité et robustesse'!A62+('4 Recette totale'!$H$65:$H$85))-('5 Flux de trésorerie brut'!$B$7:$B$27)))","v":{"$error":"#VALUE!"}},{"$f":"IF(SUM($D$58:D61)>0,\" \",IF(B62>0,\" \",A62))","v":{"$error":"#DIV/0!"}}]
[0.5,{"$f":"(NPV('1 Données d''entrée'!$H$28,(('4 Recette totale'!$E$66:$E$85+'4 Recette totale'!$E$36:$E$55)*'9 Sensibilité et robustesse'!A63+('4 Recette totale'!$H$66:$H$85))-('5 Flux de trésorerie brut'!$B$8:$B$27))+((('4 Recette totale'!$E$65+'4 Recette totale'!$E$35)*'9 Sensibilité et robustesse'!A63+('4 Recette totale'!$H$65))-('5 Flux de trésorerie brut'!$B$7)))","v":{"$error":"#DIV/0!"}},{"$f":"(IRR((('4 Recette totale'!$E$65:$E$85+'4 Recette totale'!$E$35:$E$55)*'9 Sensibilité et robustesse'!A63+('4 Recette totale'!$H$65:$H$85))-('5 Flux de trésorerie brut'!$B$7:$B$27)))","v":{"$error":"#VALUE!"}},{"$f":"IF(SUM($D$58:D62)>0,\" \",IF(B63>0,\" \",A63))","v":{"$error":"#DIV/0!"}}]
[0.4,{"$f":"(NPV('1 Données d''entrée'!$H$28,(('4 Recette totale'!$E$66:$E$85+'4 Recette totale'!$E$36:$E$55)*'9 Sensibilité et robustesse'!A64+('4 Recette totale'!$H$66:$H$85))-('5 Flux de trésorerie brut'!$B$8:$B$27))+((('4 Recette totale'!$E$65+'4 Recette totale'!$E$35)*'9 Sensibilité et robustesse'!A64+('4 Recette totale'!$H$65))-('5 Flux de trésorerie brut'!$B$7)))","v":{"$error":"#DIV/0!"}},{"$f":"(IRR((('4 Recette totale'!$E$65:$E$85+'4 Recette totale'!$E$35:$E$55)*'9 Sensibilité et robustesse'!A64+('4 Recette totale'!$H$65:$H$85))-('5 Flux de trésorerie brut'!$B$7:$B$27)))","v":{"$error":"#VALUE!"}},{"$f":"IF(SUM($D$58:D63)>0,\" \",IF(B64>0,\" \",A64))","v":{"$error":"#DIV/0!"}}]
[0.3,{"$f":"(NPV('1 Données d''entrée'!$H$28,(('4 Recette totale'!$E$66:$E$85+'4 Recette totale'!$E$36:$E$55)*'9 Sensibilité et robustesse'!A65+('4 Recette totale'!$H$66:$H$85))-('5 Flux de trésorerie brut'!$B$8:$B$27))+((('4 Recette totale'!$E$65+'4 Recette totale'!$E$35)*'9 Sensibilité et robustesse'!A65+('4 Recette totale'!$H$65))-('5 Flux de trésorerie brut'!$B$7)))","v":{"$error":"#DIV/0!"}},{"$f":"(IRR((('4 Recette totale'!$E$65:$E$85+'4 Recette totale'!$E$35:$E$55)*'9 Sensibilité et robustesse'!A65+('4 Recette totale'!$H$65:$H$85))-('5 Flux de trésorerie brut'!$B$7:$B$27)))","v":{"$error":"#VALUE!"}},{"$f":"IF(SUM($D$58:D64)>0,\" \",IF(B65>0,\" \",A65))","v":{"$error":"#DIV/0!"}}]
[0.2,{"$f":"(NPV('1 Données d''entrée'!$H$28,(('4 Recette totale'!$E$66:$E$85+'4 Recette totale'!$E$36:$E$55)*'9 Sensibilité et robustesse'!A66+('4 Recette totale'!$H$66:$H$85))-('5 Flux de trésorerie brut'!$B$8:$B$27))+((('4 Recette totale'!$E$65+'4 Recette totale'!$E$35)*'9 Sensibilité et robustesse'!A66+('4 Recette totale'!$H$65))-('5 Flux de trésorerie brut'!$B$7)))","v":{"$error":"#DIV/0!"}},{"$f":"(IRR((('4 Recette totale'!$E$65:$E$85+'4 Recette totale'!$E$35:$E$55)*'9 Sensibilité et robustesse'!A66+('4 Recette totale'!$H$65:$H$85))-('5 Flux de trésorerie brut'!$B$7:$B$27)))","v":{"$error":"#VALUE!"}},{"$f":"IF(SUM($D$58:D65)>0,\" \",IF(B66>0,\" \",A66))","v":{"$error":"#DIV/0!"}}]
[0.1,{"$f":"(NPV('1 Données d''entrée'!$H$28,(('4 Recette totale'!$E$66:$E$85+'4 Recette totale'!$E$36:$E$55)*'9 Sensibilité et robustesse'!A67+('4 Recette totale'!$H$66:$H$85))-('5 Flux de trésorerie brut'!$B$8:$B$27))+((('4 Recette totale'!$E$65+'4 Recette totale'!$E$35)*'9 Sensibilité et robustesse'!A67+('4 Recette totale'!$H$65))-('5 Flux de trésorerie brut'!$B$7)))","v":{"$error":"#DIV/0!"}},{"$f":"(IRR((('4 Recette totale'!$E$65:$E$85+'4 Recette totale'!$E$35:$E$55)*'9 Sensibilité et robustesse'!A67+('4 Recette totale'!$H$65:$H$85))-('5 Flux de trésorerie brut'!$B$7:$B$27)))","v":{"$error":"#VALUE!"}},{"$f":"IF(SUM($D$58:D66)>0,\" \",IF(B67>0,\" \",A67))","v":{"$error":"#DIV/0!"}}]
[1E-8,{"$f":"(NPV('1 Données d''entrée'!$H$28,(('4 Recette totale'!$E$66:$E$85+'4 Recette totale'!$E$36:$E$55)*'9 Sensibilité et robustesse'!A68+('4 Recette totale'!$H$66:$H$85))-('5 Flux de trésorerie brut'!$B$8:$B$27))+((('4 Recette totale'!$E$65+'4 Recette totale'!$E$35)*'9 Sensibilité et robustesse'!A68+('4 Recette totale'!$H$65))-('5 Flux de trésorerie brut'!$B$7)))","v":{"$error":"#DIV/0!"}},{"$f":"(IRR((('4 Recette totale'!$E$65:$E$85+'4 Recette totale'!$E$35:$E$55)*'9 Sensibilité et robustesse'!A68+('4 Recette totale'!$H$65:$H$85))-('5 Flux de trésorerie brut'!$B$7:$B$27)))","v":{"$error":"#VALUE!"}},{"$f":"IF(SUM($D$58:D67)>0,\" \",IF(B68>0,\" \",A68))","v":{"$error":"#DIV/0!"}}]
[]
[]
[]
[]
[]
[]
["Analyse de scénarios (variation de tous paramètres)"]
[]
["Une analyse de scénarios intègre le risque d'un changement des paramètres clés pour analyser la robustesse du projet. Le meilleur scénario correspond à la meilleure évolution possible (mais l'évolution doit être réaliste) des variables (coût et recette du projet). Le scénario le plus probable et le pire scénario analyse le projet pareillement. "]
[]
["Scénario","Variation de coût","Variation de recette"]
["Le meilleur",{"$f":"'1 Données d''entrée'!B382","v":0},{"$f":"'1 Données d''entrée'!C382","v":0}]
["Le plus probable",{"$f":"'1 Données d''entrée'!B383","v":0},{"$f":"'1 Données d''entrée'!C383","v":0}]
["Le pire",{"$f":"'1 Données d''entrée'!B384","v":0},{"$f":"'1 Données d''entrée'!C384","v":0}]
[]
["Le meilleur scénario",null,null,"Le plus probable scénario",null,null,"Le pire scénario"]
["Taux d'actualisation","Valeur actuelle nette (brut)","Taux de rentabilité interne","Taux d'actualisation","Valeur actuelle nette (brut)","Taux de rentabilité interne","Taux d'actualisation","Valeur actuelle nette (brut)","Taux de rentabilité interne"]
[0,{"$f":"NPV(A86,'5 Flux de trésorerie brut'!$C$8:$C$27*'1 Données d''entrée'!$C$382-'5 Flux de trésorerie brut'!$B$8:$B$27*'1 Données d''entrée'!$B$382)+'5 Flux de trésorerie brut'!$C$7*'1 Données d''entrée'!$C$382-'5 Flux de trésorerie brut'!$B$7*'1 Données d''entrée'!$B$382","v":{"$error":"#DIV/0!"}},{"$f":"IRR('5 Flux de trésorerie brut'!$C$7:$C$27*'1 Données d''entrée'!C382-'5 Flux de trésorerie brut'!$B$7:$B$27*'1 Données d''entrée'!B382)","v":{"$error":"#VALUE!"}},0,{"$f":"NPV(D86,'5 Flux de trésorerie brut'!$C$8:$C$27*'1 Données d''entrée'!$C$383-'5 Flux de trésorerie brut'!$B$8:$B$27*'1 Données d''entrée'!$B$383)+'5 Flux de trésorerie brut'!$C$7*'1 Données d''entrée'!$C$383-'5 Flux de trésorerie brut'!$B$7*'1 Données d''entrée'!$B$383","v":{"$error":"#DIV/0!"}},{"$f":"IRR('5 Flux de trésorerie brut'!$C$7:$C$27*'1 Données d''entrée'!C383-'5 Flux de trésorerie brut'!$B$7:$B$27*'1 Données d''entrée'!B383)","v":{"$error":"#VALUE!"}},0,{"$f":"NPV(G86,'5 Flux de trésorerie brut'!$C$8:$C$27*'1 Données d''entrée'!$C$384-'5 Flux de trésorerie brut'!$B$8:$B$27*'1 Données d''entrée'!$B$384)+'5 Flux de trésorerie brut'!$C$7*'1 Données d''entrée'!$C$384-'5 Flux de trésorerie brut'!$B$7*'1 Données d''entrée'!$B$384","v":{"$error":"#DIV/0!"}},{"$f":"IRR('5 Flux de trésorerie brut'!$C$7:$C$27*'1 Données d''entrée'!C384-'5 Flux de trésorerie brut'!$B$7:$B$27*'1 Données d''entrée'!B384)","v":{"$error":"#VALUE!"}}]
[0.02,{"$f":"NPV(A87,'5 Flux de trésorerie brut'!$C$8:$C$27*'1 Données d''entrée'!$C$382-'5 Flux de trésorerie brut'!$B$8:$B$27*'1 Données d''entrée'!$B$382)+'5 Flux de trésorerie brut'!$C$7*'1 Données d''entrée'!$C$382-'5 Flux de trésorerie brut'!$B$7*'1 Données d''entrée'!$B$382","v":{"$error":"#DIV/0!"}},null,0.02,{"$f":"NPV(D87,'5 Flux de trésorerie brut'!$C$8:$C$27*'1 Données d''entrée'!$C$383-'5 Flux de trésorerie brut'!$B$8:$B$27*'1 Données d''entrée'!$B$383)+'5 Flux de trésorerie brut'!$C$7*'1 Données d''entrée'!$C$383-'5 Flux de trésorerie brut'!$B$7*'1 Données d''entrée'!$B$383","v":{"$error":"#DIV/0!"}},null,0.02,{"$f":"NPV(G87,'5 Flux de trésorerie brut'!$C$8:$C$27*'1 Données d''entrée'!$C$384-'5 Flux de trésorerie brut'!$B$8:$B$27*'1 Données d''entrée'!$B$384)+'5 Flux de trésorerie brut'!$C$7*'1 Données d''entrée'!$C$384-'5 Flux de trésorerie brut'!$B$7*'1 Données d''entrée'!$B$384","v":{"$error":"#DIV/0!"}}]
[0.04,{"$f":"NPV(A88,'5 Flux de trésorerie brut'!$C$8:$C$27*'1 Données d''entrée'!$C$382-'5 Flux de trésorerie brut'!$B$8:$B$27*'1 Données d''entrée'!$B$382)+'5 Flux de trésorerie brut'!$C$7*'1 Données d''entrée'!$C$382-'5 Flux de trésorerie brut'!$B$7*'1 Données d''entrée'!$B$382","v":{"$error":"#DIV/0!"}},null,0.04,{"$f":"NPV(D88,'5 Flux de trésorerie brut'!$C$8:$C$27*'1 Données d''entrée'!$C$383-'5 Flux de trésorerie brut'!$B$8:$B$27*'1 Données d''entrée'!$B$383)+'5 Flux de trésorerie brut'!$C$7*'1 Données d''entrée'!$C$383-'5 Flux de trésorerie brut'!$B$7*'1 Données d''entrée'!$B$383","v":{"$error":"#DIV/0!"}},null,0.04,{"$f":"NPV(G88,'5 Flux de trésorerie brut'!$C$8:$C$27*'1 Données d''entrée'!$C$384-'5 Flux de trésorerie brut'!$B$8:$B$27*'1 Données d''entrée'!$B$384)+'5 Flux de trésorerie brut'!$C$7*'1 Données d''entrée'!$C$384-'5 Flux de trésorerie brut'!$B$7*'1 Données d''entrée'!$B$384","v":{"$error":"#DIV/0!"}}]
[0.06,{"$f":"NPV(A89,'5 Flux de trésorerie brut'!$C$8:$C$27*'1 Données d''entrée'!$C$382-'5 Flux de trésorerie brut'!$B$8:$B$27*'1 Données d''entrée'!$B$382)+'5 Flux de trésorerie brut'!$C$7*'1 Données d''entrée'!$C$382-'5 Flux de trésorerie brut'!$B$7*'1 Données d''entrée'!$B$382","v":{"$error":"#DIV/0!"}},null,0.06,{"$f":"NPV(D89,'5 Flux de trésorerie brut'!$C$8:$C$27*'1 Données d''entrée'!$C$383-'5 Flux de trésorerie brut'!$B$8:$B$27*'1 Données d''entrée'!$B$383)+'5 Flux de trésorerie brut'!$C$7*'1 Données d''entrée'!$C$383-'5 Flux de trésorerie brut'!$B$7*'1 Données d''entrée'!$B$383","v":{"$error":"#DIV/0!"}},null,0.06,{"$f":"NPV(G89,'5 Flux de trésorerie brut'!$C$8:$C$27*'1 Données d''entrée'!$C$384-'5 Flux de trésorerie brut'!$B$8:$B$27*'1 Données d''entrée'!$B$384)+'5 Flux de trésorerie brut'!$C$7*'1 Données d''entrée'!$C$384-'5 Flux de trésorerie brut'!$B$7*'1 Données d''entrée'!$B$384","v":{"$error":"#DIV/0!"}}]
[0.08,{"$f":"NPV(A90,'5 Flux de trésorerie brut'!$C$8:$C$27*'1 Données d''entrée'!$C$382-'5 Flux de trésorerie brut'!$B$8:$B$27*'1 Données d''entrée'!$B$382)+'5 Flux de trésorerie brut'!$C$7*'1 Données d''entrée'!$C$382-'5 Flux de trésorerie brut'!$B$7*'1 Données d''entrée'!$B$382","v":{"$error":"#DIV/0!"}},null,0.08,{"$f":"NPV(D90,'5 Flux de trésorerie brut'!$C$8:$C$27*'1 Données d''entrée'!$C$383-'5 Flux de trésorerie brut'!$B$8:$B$27*'1 Données d''entrée'!$B$383)+'5 Flux de trésorerie brut'!$C$7*'1 Données d''entrée'!$C$383-'5 Flux de trésorerie brut'!$B$7*'1 Données d''entrée'!$B$383","v":{"$error":"#DIV/0!"}},null,0.08,{"$f":"NPV(G90,'5 Flux de trésorerie brut'!$C$8:$C$27*'1 Données d''entrée'!$C$384-'5 Flux de trésorerie brut'!$B$8:$B$27*'1 Données d''entrée'!$B$384)+'5 Flux de trésorerie brut'!$C$7*'1 Données d''entrée'!$C$384-'5 Flux de trésorerie brut'!$B$7*'1 Données d''entrée'!$B$384","v":{"$error":"#DIV/0!"}}]
[0.1,{"$f":"NPV(A91,'5 Flux de trésorerie brut'!$C$8:$C$27*'1 Données d''entrée'!$C$382-'5 Flux de trésorerie brut'!$B$8:$B$27*'1 Données d''entrée'!$B$382)+'5 Flux de trésorerie brut'!$C$7*'1 Données d''entrée'!$C$382-'5 Flux de trésorerie brut'!$B$7*'1 Données d''entrée'!$B$382","v":{"$error":"#DIV/0!"}},null,0.1,{"$f":"NPV(D91,'5 Flux de trésorerie brut'!$C$8:$C$27*'1 Données d''entrée'!$C$383-'5 Flux de trésorerie brut'!$B$8:$B$27*'1 Données d''entrée'!$B$383)+'5 Flux de trésorerie brut'!$C$7*'1 Données d''entrée'!$C$383-'5 Flux de trésorerie brut'!$B$7*'1 Données d''entrée'!$B$383","v":{"$error":"#DIV/0!"}},null,0.1,{"$f":"NPV(G91,'5 Flux de trésorerie brut'!$C$8:$C$27*'1 Données d''entrée'!$C$384-'5 Flux de trésorerie brut'!$B$8:$B$27*'1 Données d''entrée'!$B$384)+'5 Flux de trésorerie brut'!$C$7*'1 Données d''entrée'!$C$384-'5 Flux de trésorerie brut'!$B$7*'1 Données d''entrée'!$B$384","v":{"$error":"#DIV/0!"}}]
[0.12,{"$f":"NPV(A92,'5 Flux de trésorerie brut'!$C$8:$C$27*'1 Données d''entrée'!$C$382-'5 Flux de trésorerie brut'!$B$8:$B$27*'1 Données d''entrée'!$B$382)+'5 Flux de trésorerie brut'!$C$7*'1 Données d''entrée'!$C$382-'5 Flux de trésorerie brut'!$B$7*'1 Données d''entrée'!$B$382","v":{"$error":"#DIV/0!"}},null,0.12,{"$f":"NPV(D92,'5 Flux de trésorerie brut'!$C$8:$C$27*'1 Données d''entrée'!$C$383-'5 Flux de trésorerie brut'!$B$8:$B$27*'1 Données d''entrée'!$B$383)+'5 Flux de trésorerie brut'!$C$7*'1 Données d''entrée'!$C$383-'5 Flux de trésorerie brut'!$B$7*'1 Données d''entrée'!$B$383","v":{"$error":"#DIV/0!"}},null,0.12,{"$f":"NPV(G92,'5 Flux de trésorerie brut'!$C$8:$C$27*'1 Données d''entrée'!$C$384-'5 Flux de trésorerie brut'!$B$8:$B$27*'1 Données d''entrée'!$B$384)+'5 Flux de trésorerie brut'!$C$7*'1 Données d''entrée'!$C$384-'5 Flux de trésorerie brut'!$B$7*'1 Données d''entrée'!$B$384","v":{"$error":"#DIV/0!"}}]
[0.14000000000000001,{"$f":"NPV(A93,'5 Flux de trésorerie brut'!$C$8:$C$27*'1 Données d''entrée'!$C$382-'5 Flux de trésorerie brut'!$B$8:$B$27*'1 Données d''entrée'!$B$382)+'5 Flux de trésorerie brut'!$C$7*'1 Données d''entrée'!$C$382-'5 Flux de trésorerie brut'!$B$7*'1 Données d''entrée'!$B$382","v":{"$error":"#DIV/0!"}},null,0.14000000000000001,{"$f":"NPV(D93,'5 Flux de trésorerie brut'!$C$8:$C$27*'1 Données d''entrée'!$C$383-'5 Flux de trésorerie brut'!$B$8:$B$27*'1 Données d''entrée'!$B$383)+'5 Flux de trésorerie brut'!$C$7*'1 Données d''entrée'!$C$383-'5 Flux de trésorerie brut'!$B$7*'1 Données d''entrée'!$B$383","v":{"$error":"#DIV/0!"}},null,0.14000000000000001,{"$f":"NPV(G93,'5 Flux de trésorerie brut'!$C$8:$C$27*'1 Données d''entrée'!$C$384-'5 Flux de trésorerie brut'!$B$8:$B$27*'1 Données d''entrée'!$B$384)+'5 Flux de trésorerie brut'!$C$7*'1 Données d''entrée'!$C$384-'5 Flux de trésorerie brut'!$B$7*'1 Données d''entrée'!$B$384","v":{"$error":"#DIV/0!"}}]
[0.16,{"$f":"NPV(A94,'5 Flux de trésorerie brut'!$C$8:$C$27*'1 Données d''entrée'!$C$382-'5 Flux de trésorerie brut'!$B$8:$B$27*'1 Données d''entrée'!$B$382)+'5 Flux de trésorerie brut'!$C$7*'1 Données d''entrée'!$C$382-'5 Flux de trésorerie brut'!$B$7*'1 Données d''entrée'!$B$382","v":{"$error":"#DIV/0!"}},null,0.16,{"$f":"NPV(D94,'5 Flux de trésorerie brut'!$C$8:$C$27*'1 Données d''entrée'!$C$383-'5 Flux de trésorerie brut'!$B$8:$B$27*'1 Données d''entrée'!$B$383)+'5 Flux de trésorerie brut'!$C$7*'1 Données d''entrée'!$C$383-'5 Flux de trésorerie brut'!$B$7*'1 Données d''entrée'!$B$383","v":{"$error":"#DIV/0!"}},null,0.16,{"$f":"NPV(G94,'5 Flux de trésorerie brut'!$C$8:$C$27*'1 Données d''entrée'!$C$384-'5 Flux de trésorerie brut'!$B$8:$B$27*'1 Données d''entrée'!$B$384)+'5 Flux de trésorerie brut'!$C$7*'1 Données d''entrée'!$C$384-'5 Flux de trésorerie brut'!$B$7*'1 Données d''entrée'!$B$384","v":{"$error":"#DIV/0!"}}]
[0.18,{"$f":"NPV(A95,'5 Flux de trésorerie brut'!$C$8:$C$27*'1 Données d''entrée'!$C$382-'5 Flux de trésorerie brut'!$B$8:$B$27*'1 Données d''entrée'!$B$382)+'5 Flux de trésorerie brut'!$C$7*'1 Données d''entrée'!$C$382-'5 Flux de trésorerie brut'!$B$7*'1 Données d''entrée'!$B$382","v":{"$error":"#DIV/0!"}},null,0.18,{"$f":"NPV(D95,'5 Flux de trésorerie brut'!$C$8:$C$27*'1 Données d''entrée'!$C$383-'5 Flux de trésorerie brut'!$B$8:$B$27*'1 Données d''entrée'!$B$383)+'5 Flux de trésorerie brut'!$C$7*'1 Données d''entrée'!$C$383-'5 Flux de trésorerie brut'!$B$7*'1 Données d''entrée'!$B$383","v":{"$error":"#DIV/0!"}},null,0.18,{"$f":"NPV(G95,'5 Flux de trésorerie brut'!$C$8:$C$27*'1 Données d''entrée'!$C$384-'5 Flux de trésorerie brut'!$B$8:$B$27*'1 Données d''entrée'!$B$384)+'5 Flux de trésorerie brut'!$C$7*'1 Données d''entrée'!$C$384-'5 Flux de trésorerie brut'!$B$7*'1 Données d''entrée'!$B$384","v":{"$error":"#DIV/0!"}}]
[0.2,{"$f":"NPV(A96,'5 Flux de trésorerie brut'!$C$8:$C$27*'1 Données d''entrée'!$C$382-'5 Flux de trésorerie brut'!$B$8:$B$27*'1 Données d''entrée'!$B$382)+'5 Flux de trésorerie brut'!$C$7*'1 Données d''entrée'!$C$382-'5 Flux de trésorerie brut'!$B$7*'1 Données d''entrée'!$B$382","v":{"$error":"#DIV/0!"}},null,0.2,{"$f":"NPV(D96,'5 Flux de trésorerie brut'!$C$8:$C$27*'1 Données d''entrée'!$C$383-'5 Flux de trésorerie brut'!$B$8:$B$27*'1 Données d''entrée'!$B$383)+'5 Flux de trésorerie brut'!$C$7*'1 Données d''entrée'!$C$383-'5 Flux de trésorerie brut'!$B$7*'1 Données d''entrée'!$B$383","v":{"$error":"#DIV/0!"}},null,0.2,{"$f":"NPV(G96,'5 Flux de trésorerie brut'!$C$8:$C$27*'1 Données d''entrée'!$C$384-'5 Flux de trésorerie brut'!$B$8:$B$27*'1 Données d''entrée'!$B$384)+'5 Flux de trésorerie brut'!$C$7*'1 Données d''entrée'!$C$384-'5 Flux de trésorerie brut'!$B$7*'1 Données d''entrée'!$B$384","v":{"$error":"#DIV/0!"}}]
[0.22,{"$f":"NPV(A97,'5 Flux de trésorerie brut'!$C$8:$C$27*'1 Données d''entrée'!$C$382-'5 Flux de trésorerie brut'!$B$8:$B$27*'1 Données d''entrée'!$B$382)+'5 Flux de trésorerie brut'!$C$7*'1 Données d''entrée'!$C$382-'5 Flux de trésorerie brut'!$B$7*'1 Données d''entrée'!$B$382","v":{"$error":"#DIV/0!"}},null,0.22,{"$f":"NPV(D97,'5 Flux de trésorerie brut'!$C$8:$C$27*'1 Données d''entrée'!$C$383-'5 Flux de trésorerie brut'!$B$8:$B$27*'1 Données d''entrée'!$B$383)+'5 Flux de trésorerie brut'!$C$7*'1 Données d''entrée'!$C$383-'5 Flux de trésorerie brut'!$B$7*'1 Données d''entrée'!$B$383","v":{"$error":"#DIV/0!"}},null,0.22,{"$f":"NPV(G97,'5 Flux de trésorerie brut'!$C$8:$C$27*'1 Données d''entrée'!$C$384-'5 Flux de trésorerie brut'!$B$8:$B$27*'1 Données d''entrée'!$B$384)+'5 Flux de trésorerie brut'!$C$7*'1 Données d''entrée'!$C$384-'5 Flux de trésorerie brut'!$B$7*'1 Données d''entrée'!$B$384","v":{"$error":"#DIV/0!"}}]
[0.24,{"$f":"NPV(A98,'5 Flux de trésorerie brut'!$C$8:$C$27*'1 Données d''entrée'!$C$382-'5 Flux de trésorerie brut'!$B$8:$B$27*'1 Données d''entrée'!$B$382)+'5 Flux de trésorerie brut'!$C$7*'1 Données d''entrée'!$C$382-'5 Flux de trésorerie brut'!$B$7*'1 Données d''entrée'!$B$382","v":{"$error":"#DIV/0!"}},null,0.24,{"$f":"NPV(D98,'5 Flux de trésorerie brut'!$C$8:$C$27*'1 Données d''entrée'!$C$383-'5 Flux de trésorerie brut'!$B$8:$B$27*'1 Données d''entrée'!$B$383)+'5 Flux de trésorerie brut'!$C$7*'1 Données d''entrée'!$C$383-'5 Flux de trésorerie brut'!$B$7*'1 Données d''entrée'!$B$383","v":{"$error":"#DIV/0!"}},null,0.24,{"$f":"NPV(G98,'5 Flux de trésorerie brut'!$C$8:$C$27*'1 Données d''entrée'!$C$384-'5 Flux de trésorerie brut'!$B$8:$B$27*'1 Données d''entrée'!$B$384)+'5 Flux de trésorerie brut'!$C$7*'1 Données d''entrée'!$C$384-'5 Flux de trésorerie brut'!$B$7*'1 Données d''entrée'!$B$384","v":{"$error":"#DIV/0!"}}]
[0.26,{"$f":"NPV(A99,'5 Flux de trésorerie brut'!$C$8:$C$27*'1 Données d''entrée'!$C$382-'5 Flux de trésorerie brut'!$B$8:$B$27*'1 Données d''entrée'!$B$382)+'5 Flux de trésorerie brut'!$C$7*'1 Données d''entrée'!$C$382-'5 Flux de trésorerie brut'!$B$7*'1 Données d''entrée'!$B$382","v":{"$error":"#DIV/0!"}},null,0.26,{"$f":"NPV(D99,'5 Flux de trésorerie brut'!$C$8:$C$27*'1 Données d''entrée'!$C$383-'5 Flux de trésorerie brut'!$B$8:$B$27*'1 Données d''entrée'!$B$383)+'5 Flux de trésorerie brut'!$C$7*'1 Données d''entrée'!$C$383-'5 Flux de trésorerie brut'!$B$7*'1 Données d''entrée'!$B$383","v":{"$error":"#DIV/0!"}},null,0.26,{"$f":"NPV(G99,'5 Flux de trésorerie brut'!$C$8:$C$27*'1 Données d''entrée'!$C$384-'5 Flux de trésorerie brut'!$B$8:$B$27*'1 Données d''entrée'!$B$384)+'5 Flux de trésorerie brut'!$C$7*'1 Données d''entrée'!$C$384-'5 Flux de trésorerie brut'!$B$7*'1 Données d''entrée'!$B$384","v":{"$error":"#DIV/0!"}}]
[0.28000000000000003,{"$f":"NPV(A100,'5 Flux de trésorerie brut'!$C$8:$C$27*'1 Données d''entrée'!$C$382-'5 Flux de trésorerie brut'!$B$8:$B$27*'1 Données d''entrée'!$B$382)+'5 Flux de trésorerie brut'!$C$7*'1 Données d''entrée'!$C$382-'5 Flux de trésorerie brut'!$B$7*'1 Données d''entrée'!$B$382","v":{"$error":"#DIV/0!"}},null,0.28000000000000003,{"$f":"NPV(D100,'5 Flux de trésorerie brut'!$C$8:$C$27*'1 Données d''entrée'!$C$383-'5 Flux de trésorerie brut'!$B$8:$B$27*'1 Données d''entrée'!$B$383)+'5 Flux de trésorerie brut'!$C$7*'1 Données d''entrée'!$C$383-'5 Flux de trésorerie brut'!$B$7*'1 Données d''entrée'!$B$383","v":{"$error":"#DIV/0!"}},null,0.28000000000000003,{"$f":"NPV(G100,'5 Flux de trésorerie brut'!$C$8:$C$27*'1 Données d''entrée'!$C$384-'5 Flux de trésorerie brut'!$B$8:$B$27*'1 Données d''entrée'!$B$384)+'5 Flux de trésorerie brut'!$C$7*'1 Données d''entrée'!$C$384-'5 Flux de trésorerie brut'!$B$7*'1 Données d''entrée'!$B$384","v":{"$error":"#DIV/0!"}}]
[0.3,{"$f":"NPV(A101,'5 Flux de trésorerie brut'!$C$8:$C$27*'1 Données d''entrée'!$C$382-'5 Flux de trésorerie brut'!$B$8:$B$27*'1 Données d''entrée'!$B$382)+'5 Flux de trésorerie brut'!$C$7*'1 Données d''entrée'!$C$382-'5 Flux de trésorerie brut'!$B$7*'1 Données d''entrée'!$B$382","v":{"$error":"#DIV/0!"}},null,0.3,{"$f":"NPV(D101,'5 Flux de trésorerie brut'!$C$8:$C$27*'1 Données d''entrée'!$C$383-'5 Flux de trésorerie brut'!$B$8:$B$27*'1 Données d''entrée'!$B$383)+'5 Flux de trésorerie brut'!$C$7*'1 Données d''entrée'!$C$383-'5 Flux de trésorerie brut'!$B$7*'1 Données d''entrée'!$B$383","v":{"$error":"#DIV/0!"}},null,0.3,{"$f":"NPV(G101,'5 Flux de trésorerie brut'!$C$8:$C$27*'1 Données d''entrée'!$C$384-'5 Flux de trésorerie brut'!$B$8:$B$27*'1 Données d''entrée'!$B$384)+'5 Flux de trésorerie brut'!$C$7*'1 Données d''entrée'!$C$384-'5 Flux de trésorerie brut'!$B$7*'1 Données d''entrée'!$B$384","v":{"$error":"#DIV/0!"}}]
{"$rows_empty":22}
["Analyse de risque d'une évolution du prix de l'électricité moins élevée que l'inflation"]
[]
[]
["Cette analyse démontre le risque d'une inflation. Toute l'analyse ignore les effets d'une taux d'inflation à cause d'une condition préalable qui définit que les prix pour l'électricité sont adaptés avec le même taux que le taux d'inflation. Le tableau au-dessous montre les changements de la VAN du projet dans le cas d'une inconsistance entre l'inflation et l'adaptations du prix. "]
[]
[]
["Adaptations du prix ",0,0.05,0.1,0.15,0.2]
["Inflation","VAN","VAN","VAN","VAN","VAN","VAN = Valeur actuelle nette (Flux de trésorerie brut)"]
[0.05,{"$f":"NPV('1 Données d''entrée'!$H$28,('5 Flux de trésorerie brut'!$C$8:$C$27*(1+'9 Sensibilité et robustesse'!B$130)^'5 Flux de trésorerie brut'!$A$8:$A$27-('5 Flux de trésorerie brut'!$B$8:$B$27)*(1+'9 Sensibilité et robustesse'!$A132)^'5 Flux de trésorerie brut'!$A$8:$A$27))+'5 Flux de trésorerie brut'!$D$7","v":{"$error":"#DIV/0!"}},{"$f":"NPV('1 Données d''entrée'!$H$28,('5 Flux de trésorerie brut'!$C$8:$C$27*(1+'9 Sensibilité et robustesse'!C$130)^'5 Flux de trésorerie brut'!$A$8:$A$27-('5 Flux de trésorerie brut'!$B$8:$B$27)*(1+'9 Sensibilité et robustesse'!$A132)^'5 Flux de trésorerie brut'!$A$8:$A$27))+'5 Flux de trésorerie brut'!$D$7","v":{"$error":"#DIV/0!"}},{"$f":"NPV('1 Données d''entrée'!$H$28,('5 Flux de trésorerie brut'!$C$8:$C$27*(1+'9 Sensibilité et robustesse'!D$130)^'5 Flux de trésorerie brut'!$A$8:$A$27-('5 Flux de trésorerie brut'!$B$8:$B$27)*(1+'9 Sensibilité et robustesse'!$A132)^'5 Flux de trésorerie brut'!$A$8:$A$27))+'5 Flux de trésorerie brut'!$D$7","v":{"$error":"#DIV/0!"}},{"$f":"NPV('1 Données d''entrée'!$H$28,('5 Flux de trésorerie brut'!$C$8:$C$27*(1+'9 Sensibilité et robustesse'!E$130)^'5 Flux de trésorerie brut'!$A$8:$A$27-('5 Flux de trésorerie brut'!$B$8:$B$27)*(1+'9 Sensibilité et robustesse'!$A132)^'5 Flux de trésorerie brut'!$A$8:$A$27))+'5 Flux de trésorerie brut'!$D$7","v":{"$error":"#DIV/0!"}},{"$f":"NPV('1 Données d''entrée'!$H$28,('5 Flux de trésorerie brut'!$C$8:$C$27*(1+'9 Sensibilité et robustesse'!F$130)^'5 Flux de trésorerie brut'!$A$8:$A$27-('5 Flux de trésorerie brut'!$B$8:$B$27)*(1+'9 Sensibilité et robustesse'!$A132)^'5 Flux de trésorerie brut'!$A$8:$A$27))+'5 Flux de trésorerie brut'!$D$7","v":{"$error":"#DIV/0!"}}]
[7.0000000000000007E-2,{"$f":"NPV('1 Données d''entrée'!$H$28,('5 Flux de trésorerie brut'!$C$8:$C$27*(1+'9 Sensibilité et robustesse'!B$130)^'5 Flux de trésorerie brut'!$A$8:$A$27-('5 Flux de trésorerie brut'!$B$8:$B$27)*(1+'9 Sensibilité et robustesse'!$A133)^'5 Flux de trésorerie brut'!$A$8:$A$27))+'5 Flux de trésorerie brut'!$D$7","v":{"$error":"#DIV/0!"}},{"$f":"NPV('1 Données d''entrée'!$H$28,('5 Flux de trésorerie brut'!$C$8:$C$27*(1+'9 Sensibilité et robustesse'!C$130)^'5 Flux de trésorerie brut'!$A$8:$A$27-('5 Flux de trésorerie brut'!$B$8:$B$27)*(1+'9 Sensibilité et robustesse'!$A133)^'5 Flux de trésorerie brut'!$A$8:$A$27))+'5 Flux de trésorerie brut'!$D$7","v":{"$error":"#DIV/0!"}},{"$f":"NPV('1 Données d''entrée'!$H$28,('5 Flux de trésorerie brut'!$C$8:$C$27*(1+'9 Sensibilité et robustesse'!D$130)^'5 Flux de trésorerie brut'!$A$8:$A$27-('5 Flux de trésorerie brut'!$B$8:$B$27)*(1+'9 Sensibilité et robustesse'!$A133)^'5 Flux de trésorerie brut'!$A$8:$A$27))+'5 Flux de trésorerie brut'!$D$7","v":{"$error":"#DIV/0!"}},{"$f":"NPV('1 Données d''entrée'!$H$28,('5 Flux de trésorerie brut'!$C$8:$C$27*(1+'9 Sensibilité et robustesse'!E$130)^'5 Flux de trésorerie brut'!$A$8:$A$27-('5 Flux de trésorerie brut'!$B$8:$B$27)*(1+'9 Sensibilité et robustesse'!$A133)^'5 Flux de trésorerie brut'!$A$8:$A$27))+'5 Flux de trésorerie brut'!$D$7","v":{"$error":"#DIV/0!"}},{"$f":"NPV('1 Données d''entrée'!$H$28,('5 Flux de trésorerie brut'!$C$8:$C$27*(1+'9 Sensibilité et robustesse'!F$130)^'5 Flux de trésorerie brut'!$A$8:$A$27-('5 Flux de trésorerie brut'!$B$8:$B$27)*(1+'9 Sensibilité et robustesse'!$A133)^'5 Flux de trésorerie brut'!$A$8:$A$27))+'5 Flux de trésorerie brut'!$D$7","v":{"$error":"#DIV/0!"}}]
[0.09,{"$f":"NPV('1 Données d''entrée'!$H$28,('5 Flux de trésorerie brut'!$C$8:$C$27*(1+'9 Sensibilité et robustesse'!B$130)^'5 Flux de trésorerie brut'!$A$8:$A$27-('5 Flux de trésorerie brut'!$B$8:$B$27)*(1+'9 Sensibilité et robustesse'!$A134)^'5 Flux de trésorerie brut'!$A$8:$A$27))+'5 Flux de trésorerie brut'!$D$7","v":{"$error":"#DIV/0!"}},{"$f":"NPV('1 Données d''entrée'!$H$28,('5 Flux de trésorerie brut'!$C$8:$C$27*(1+'9 Sensibilité et robustesse'!C$130)^'5 Flux de trésorerie brut'!$A$8:$A$27-('5 Flux de trésorerie brut'!$B$8:$B$27)*(1+'9 Sensibilité et robustesse'!$A134)^'5 Flux de trésorerie brut'!$A$8:$A$27))+'5 Flux de trésorerie brut'!$D$7","v":{"$error":"#DIV/0!"}},{"$f":"NPV('1 Données d''entrée'!$H$28,('5 Flux de trésorerie brut'!$C$8:$C$27*(1+'9 Sensibilité et robustesse'!D$130)^'5 Flux de trésorerie brut'!$A$8:$A$27-('5 Flux de trésorerie brut'!$B$8:$B$27)*(1+'9 Sensibilité et robustesse'!$A134)^'5 Flux de trésorerie brut'!$A$8:$A$27))+'5 Flux de trésorerie brut'!$D$7","v":{"$error":"#DIV/0!"}},{"$f":"NPV('1 Données d''entrée'!$H$28,('5 Flux de trésorerie brut'!$C$8:$C$27*(1+'9 Sensibilité et robustesse'!E$130)^'5 Flux de trésorerie brut'!$A$8:$A$27-('5 Flux de trésorerie brut'!$B$8:$B$27)*(1+'9 Sensibilité et robustesse'!$A134)^'5 Flux de trésorerie brut'!$A$8:$A$27))+'5 Flux de trésorerie brut'!$D$7","v":{"$error":"#DIV/0!"}},{"$f":"NPV('1 Données d''entrée'!$H$28,('5 Flux de trésorerie brut'!$C$8:$C$27*(1+'9 Sensibilité et robustesse'!F$130)^'5 Flux de trésorerie brut'!$A$8:$A$27-('5 Flux de trésorerie brut'!$B$8:$B$27)*(1+'9 Sensibilité et robustesse'!$A134)^'5 Flux de trésorerie brut'!$A$8:$A$27))+'5 Flux de trésorerie brut'!$D$7","v":{"$error":"#DIV/0!"}}]
[0.11,{"$f":"NPV('1 Données d''entrée'!$H$28,('5 Flux de trésorerie brut'!$C$8:$C$27*(1+'9 Sensibilité et robustesse'!B$130)^'5 Flux de trésorerie brut'!$A$8:$A$27-('5 Flux de trésorerie brut'!$B$8:$B$27)*(1+'9 Sensibilité et robustesse'!$A135)^'5 Flux de trésorerie brut'!$A$8:$A$27))+'5 Flux de trésorerie brut'!$D$7","v":{"$error":"#DIV/0!"}},{"$f":"NPV('1 Données d''entrée'!$H$28,('5 Flux de trésorerie brut'!$C$8:$C$27*(1+'9 Sensibilité et robustesse'!C$130)^'5 Flux de trésorerie brut'!$A$8:$A$27-('5 Flux de trésorerie brut'!$B$8:$B$27)*(1+'9 Sensibilité et robustesse'!$A135)^'5 Flux de trésorerie brut'!$A$8:$A$27))+'5 Flux de trésorerie brut'!$D$7","v":{"$error":"#DIV/0!"}},{"$f":"NPV('1 Données d''entrée'!$H$28,('5 Flux de trésorerie brut'!$C$8:$C$27*(1+'9 Sensibilité et robustesse'!D$130)^'5 Flux de trésorerie brut'!$A$8:$A$27-('5 Flux de trésorerie brut'!$B$8:$B$27)*(1+'9 Sensibilité et robustesse'!$A135)^'5 Flux de trésorerie brut'!$A$8:$A$27))+'5 Flux de trésorerie brut'!$D$7","v":{"$error":"#DIV/0!"}},{"$f":"NPV('1 Données d''entrée'!$H$28,('5 Flux de trésorerie brut'!$C$8:$C$27*(1+'9 Sensibilité et robustesse'!E$130)^'5 Flux de trésorerie brut'!$A$8:$A$27-('5 Flux de trésorerie brut'!$B$8:$B$27)*(1+'9 Sensibilité et robustesse'!$A135)^'5 Flux de trésorerie brut'!$A$8:$A$27))+'5 Flux de trésorerie brut'!$D$7","v":{"$error":"#DIV/0!"}},{"$f":"NPV('1 Données d''entrée'!$H$28,('5 Flux de trésorerie brut'!$C$8:$C$27*(1+'9 Sensibilité et robustesse'!F$130)^'5 Flux de trésorerie brut'!$A$8:$A$27-('5 Flux de trésorerie brut'!$B$8:$B$27)*(1+'9 Sensibilité et robustesse'!$A135)^'5 Flux de trésorerie brut'!$A$8:$A$27))+'5 Flux de trésorerie brut'!$D$7","v":{"$error":"#DIV/0!"}}]
[0.13,{"$f":"NPV('1 Données d''entrée'!$H$28,('5 Flux de trésorerie brut'!$C$8:$C$27*(1+'9 Sensibilité et robustesse'!B$130)^'5 Flux de trésorerie brut'!$A$8:$A$27-('5 Flux de trésorerie brut'!$B$8:$B$27)*(1+'9 Sensibilité et robustesse'!$A136)^'5 Flux de trésorerie brut'!$A$8:$A$27))+'5 Flux de trésorerie brut'!$D$7","v":{"$error":"#DIV/0!"}},{"$f":"NPV('1 Données d''entrée'!$H$28,('5 Flux de trésorerie brut'!$C$8:$C$27*(1+'9 Sensibilité et robustesse'!C$130)^'5 Flux de trésorerie brut'!$A$8:$A$27-('5 Flux de trésorerie brut'!$B$8:$B$27)*(1+'9 Sensibilité et robustesse'!$A136)^'5 Flux de trésorerie brut'!$A$8:$A$27))+'5 Flux de trésorerie brut'!$D$7","v":{"$error":"#DIV/0!"}},{"$f":"NPV('1 Données d''entrée'!$H$28,('5 Flux de trésorerie brut'!$C$8:$C$27*(1+'9 Sensibilité et robustesse'!D$130)^'5 Flux de trésorerie brut'!$A$8:$A$27-('5 Flux de trésorerie brut'!$B$8:$B$27)*(1+'9 Sensibilité et robustesse'!$A136)^'5 Flux de trésorerie brut'!$A$8:$A$27))+'5 Flux de trésorerie brut'!$D$7","v":{"$error":"#DIV/0!"}},{"$f":"NPV('1 Données d''entrée'!$H$28,('5 Flux de trésorerie brut'!$C$8:$C$27*(1+'9 Sensibilité et robustesse'!E$130)^'5 Flux de trésorerie brut'!$A$8:$A$27-('5 Flux de trésorerie brut'!$B$8:$B$27)*(1+'9 Sensibilité et robustesse'!$A136)^'5 Flux de trésorerie brut'!$A$8:$A$27))+'5 Flux de trésorerie brut'!$D$7","v":{"$error":"#DIV/0!"}},{"$f":"NPV('1 Données d''entrée'!$H$28,('5 Flux de trésorerie brut'!$C$8:$C$27*(1+'9 Sensibilité et robustesse'!F$130)^'5 Flux de trésorerie brut'!$A$8:$A$27-('5 Flux de trésorerie brut'!$B$8:$B$27)*(1+'9 Sensibilité et robustesse'!$A136)^'5 Flux de trésorerie brut'!$A$8:$A$27))+'5 Flux de trésorerie brut'!$D$7","v":{"$error":"#DIV/0!"}}]
[0.15,{"$f":"NPV('1 Données d''entrée'!$H$28,('5 Flux de trésorerie brut'!$C$8:$C$27*(1+'9 Sensibilité et robustesse'!B$130)^'5 Flux de trésorerie brut'!$A$8:$A$27-('5 Flux de trésorerie brut'!$B$8:$B$27)*(1+'9 Sensibilité et robustesse'!$A137)^'5 Flux de trésorerie brut'!$A$8:$A$27))+'5 Flux de trésorerie brut'!$D$7","v":{"$error":"#DIV/0!"}},{"$f":"NPV('1 Données d''entrée'!$H$28,('5 Flux de trésorerie brut'!$C$8:$C$27*(1+'9 Sensibilité et robustesse'!C$130)^'5 Flux de trésorerie brut'!$A$8:$A$27-('5 Flux de trésorerie brut'!$B$8:$B$27)*(1+'9 Sensibilité et robustesse'!$A137)^'5 Flux de trésorerie brut'!$A$8:$A$27))+'5 Flux de trésorerie brut'!$D$7","v":{"$error":"#DIV/0!"}},{"$f":"NPV('1 Données d''entrée'!$H$28,('5 Flux de trésorerie brut'!$C$8:$C$27*(1+'9 Sensibilité et robustesse'!D$130)^'5 Flux de trésorerie brut'!$A$8:$A$27-('5 Flux de trésorerie brut'!$B$8:$B$27)*(1+'9 Sensibilité et robustesse'!$A137)^'5 Flux de trésorerie brut'!$A$8:$A$27))+'5 Flux de trésorerie brut'!$D$7","v":{"$error":"#DIV/0!"}},{"$f":"NPV('1 Données d''entrée'!$H$28,('5 Flux de trésorerie brut'!$C$8:$C$27*(1+'9 Sensibilité et robustesse'!E$130)^'5 Flux de trésorerie brut'!$A$8:$A$27-('5 Flux de trésorerie brut'!$B$8:$B$27)*(1+'9 Sensibilité et robustesse'!$A137)^'5 Flux de trésorerie brut'!$A$8:$A$27))+'5 Flux de trésorerie brut'!$D$7","v":{"$error":"#DIV/0!"}},{"$f":"NPV('1 Données d''entrée'!$H$28,('5 Flux de trésorerie brut'!$C$8:$C$27*(1+'9 Sensibilité et robustesse'!F$130)^'5 Flux de trésorerie brut'!$A$8:$A$27-('5 Flux de trésorerie brut'!$B$8:$B$27)*(1+'9 Sensibilité et robustesse'!$A137)^'5 Flux de trésorerie brut'!$A$8:$A$27))+'5 Flux de trésorerie brut'!$D$7","v":{"$error":"#DIV/0!"}}]
[0.17,{"$f":"NPV('1 Données d''entrée'!$H$28,('5 Flux de trésorerie brut'!$C$8:$C$27*(1+'9 Sensibilité et robustesse'!B$130)^'5 Flux de trésorerie brut'!$A$8:$A$27-('5 Flux de trésorerie brut'!$B$8:$B$27)*(1+'9 Sensibilité et robustesse'!$A138)^'5 Flux de trésorerie brut'!$A$8:$A$27))+'5 Flux de trésorerie brut'!$D$7","v":{"$error":"#DIV/0!"}},{"$f":"NPV('1 Données d''entrée'!$H$28,('5 Flux de trésorerie brut'!$C$8:$C$27*(1+'9 Sensibilité et robustesse'!C$130)^'5 Flux de trésorerie brut'!$A$8:$A$27-('5 Flux de trésorerie brut'!$B$8:$B$27)*(1+'9 Sensibilité et robustesse'!$A138)^'5 Flux de trésorerie brut'!$A$8:$A$27))+'5 Flux de trésorerie brut'!$D$7","v":{"$error":"#DIV/0!"}},{"$f":"NPV('1 Données d''entrée'!$H$28,('5 Flux de trésorerie brut'!$C$8:$C$27*(1+'9 Sensibilité et robustesse'!D$130)^'5 Flux de trésorerie brut'!$A$8:$A$27-('5 Flux de trésorerie brut'!$B$8:$B$27)*(1+'9 Sensibilité et robustesse'!$A138)^'5 Flux de trésorerie brut'!$A$8:$A$27))+'5 Flux de trésorerie brut'!$D$7","v":{"$error":"#DIV/0!"}},{"$f":"NPV('1 Données d''entrée'!$H$28,('5 Flux de trésorerie brut'!$C$8:$C$27*(1+'9 Sensibilité et robustesse'!E$130)^'5 Flux de trésorerie brut'!$A$8:$A$27-('5 Flux de trésorerie brut'!$B$8:$B$27)*(1+'9 Sensibilité et robustesse'!$A138)^'5 Flux de trésorerie brut'!$A$8:$A$27))+'5 Flux de trésorerie brut'!$D$7","v":{"$error":"#DIV/0!"}},{"$f":"NPV('1 Données d''entrée'!$H$28,('5 Flux de trésorerie brut'!$C$8:$C$27*(1+'9 Sensibilité et robustesse'!F$130)^'5 Flux de trésorerie brut'!$A$8:$A$27-('5 Flux de trésorerie brut'!$B$8:$B$27)*(1+'9 Sensibilité et robustesse'!$A138)^'5 Flux de trésorerie brut'!$A$8:$A$27))+'5 Flux de trésorerie brut'!$D$7","v":{"$error":"#DIV/0!"}}]
[0.19,{"$f":"NPV('1 Données d''entrée'!$H$28,('5 Flux de trésorerie brut'!$C$8:$C$27*(1+'9 Sensibilité et robustesse'!B$130)^'5 Flux de trésorerie brut'!$A$8:$A$27-('5 Flux de trésorerie brut'!$B$8:$B$27)*(1+'9 Sensibilité et robustesse'!$A139)^'5 Flux de trésorerie brut'!$A$8:$A$27))+'5 Flux de trésorerie brut'!$D$7","v":{"$error":"#DIV/0!"}},{"$f":"NPV('1 Données d''entrée'!$H$28,('5 Flux de trésorerie brut'!$C$8:$C$27*(1+'9 Sensibilité et robustesse'!C$130)^'5 Flux de trésorerie brut'!$A$8:$A$27-('5 Flux de trésorerie brut'!$B$8:$B$27)*(1+'9 Sensibilité et robustesse'!$A139)^'5 Flux de trésorerie brut'!$A$8:$A$27))+'5 Flux de trésorerie brut'!$D$7","v":{"$error":"#DIV/0!"}},{"$f":"NPV('1 Données d''entrée'!$H$28,('5 Flux de trésorerie brut'!$C$8:$C$27*(1+'9 Sensibilité et robustesse'!D$130)^'5 Flux de trésorerie brut'!$A$8:$A$27-('5 Flux de trésorerie brut'!$B$8:$B$27)*(1+'9 Sensibilité et robustesse'!$A139)^'5 Flux de trésorerie brut'!$A$8:$A$27))+'5 Flux de trésorerie brut'!$D$7","v":{"$error":"#DIV/0!"}},{"$f":"NPV('1 Données d''entrée'!$H$28,('5 Flux de trésorerie brut'!$C$8:$C$27*(1+'9 Sensibilité et robustesse'!E$130)^'5 Flux de trésorerie brut'!$A$8:$A$27-('5 Flux de trésorerie brut'!$B$8:$B$27)*(1+'9 Sensibilité et robustesse'!$A139)^'5 Flux de trésorerie brut'!$A$8:$A$27))+'5 Flux de trésorerie brut'!$D$7","v":{"$error":"#DIV/0!"}},{"$f":"NPV('1 Données d''entrée'!$H$28,('5 Flux de trésorerie brut'!$C$8:$C$27*(1+'9 Sensibilité et robustesse'!F$130)^'5 Flux de trésorerie brut'!$A$8:$A$27-('5 Flux de trésorerie brut'!$B$8:$B$27)*(1+'9 Sensibilité et robustesse'!$A139)^'5 Flux de trésorerie brut'!$A$8:$A$27))+'5 Flux de trésorerie brut'!$D$7","v":{"$error":"#DIV/0!"}}]
[0.21,{"$f":"NPV('1 Données d''entrée'!$H$28,('5 Flux de trésorerie brut'!$C$8:$C$27*(1+'9 Sensibilité et robustesse'!B$130)^'5 Flux de trésorerie brut'!$A$8:$A$27-('5 Flux de trésorerie brut'!$B$8:$B$27)*(1+'9 Sensibilité et robustesse'!$A140)^'5 Flux de trésorerie brut'!$A$8:$A$27))+'5 Flux de trésorerie brut'!$D$7","v":{"$error":"#DIV/0!"}},{"$f":"NPV('1 Données d''entrée'!$H$28,('5 Flux de trésorerie brut'!$C$8:$C$27*(1+'9 Sensibilité et robustesse'!C$130)^'5 Flux de trésorerie brut'!$A$8:$A$27-('5 Flux de trésorerie brut'!$B$8:$B$27)*(1+'9 Sensibilité et robustesse'!$A140)^'5 Flux de trésorerie brut'!$A$8:$A$27))+'5 Flux de trésorerie brut'!$D$7","v":{"$error":"#DIV/0!"}},{"$f":"NPV('1 Données d''entrée'!$H$28,('5 Flux de trésorerie brut'!$C$8:$C$27*(1+'9 Sensibilité et robustesse'!D$130)^'5 Flux de trésorerie brut'!$A$8:$A$27-('5 Flux de trésorerie brut'!$B$8:$B$27)*(1+'9 Sensibilité et robustesse'!$A140)^'5 Flux de trésorerie brut'!$A$8:$A$27))+'5 Flux de trésorerie brut'!$D$7","v":{"$error":"#DIV/0!"}},{"$f":"NPV('1 Données d''entrée'!$H$28,('5 Flux de trésorerie brut'!$C$8:$C$27*(1+'9 Sensibilité et robustesse'!E$130)^'5 Flux de trésorerie brut'!$A$8:$A$27-('5 Flux de trésorerie brut'!$B$8:$B$27)*(1+'9 Sensibilité et robustesse'!$A140)^'5 Flux de trésorerie brut'!$A$8:$A$27))+'5 Flux de trésorerie brut'!$D$7","v":{"$error":"#DIV/0!"}},{"$f":"NPV('1 Données d''entrée'!$H$28,('5 Flux de trésorerie brut'!$C$8:$C$27*(1+'9 Sensibilité et robustesse'!F$130)^'5 Flux de trésorerie brut'!$A$8:$A$27-('5 Flux de trésorerie brut'!$B$8:$B$27)*(1+'9 Sensibilité et robustesse'!$A140)^'5 Flux de trésorerie brut'!$A$8:$A$27))+'5 Flux de trésorerie brut'!$D$7","v":{"$error":"#DIV/0!"}}]
[0.23,{"$f":"NPV('1 Données d''entrée'!$H$28,('5 Flux de trésorerie brut'!$C$8:$C$27*(1+'9 Sensibilité et robustesse'!B$130)^'5 Flux de trésorerie brut'!$A$8:$A$27-('5 Flux de trésorerie brut'!$B$8:$B$27)*(1+'9 Sensibilité et robustesse'!$A141)^'5 Flux de trésorerie brut'!$A$8:$A$27))+'5 Flux de trésorerie brut'!$D$7","v":{"$error":"#DIV/0!"}},{"$f":"NPV('1 Données d''entrée'!$H$28,('5 Flux de trésorerie brut'!$C$8:$C$27*(1+'9 Sensibilité et robustesse'!C$130)^'5 Flux de trésorerie brut'!$A$8:$A$27-('5 Flux de trésorerie brut'!$B$8:$B$27)*(1+'9 Sensibilité et robustesse'!$A141)^'5 Flux de trésorerie brut'!$A$8:$A$27))+'5 Flux de trésorerie brut'!$D$7","v":{"$error":"#DIV/0!"}},{"$f":"NPV('1 Données d''entrée'!$H$28,('5 Flux de trésorerie brut'!$C$8:$C$27*(1+'9 Sensibilité et robustesse'!D$130)^'5 Flux de trésorerie brut'!$A$8:$A$27-('5 Flux de trésorerie brut'!$B$8:$B$27)*(1+'9 Sensibilité et robustesse'!$A141)^'5 Flux de trésorerie brut'!$A$8:$A$27))+'5 Flux de trésorerie brut'!$D$7","v":{"$error":"#DIV/0!"}},{"$f":"NPV('1 Données d''entrée'!$H$28,('5 Flux de trésorerie brut'!$C$8:$C$27*(1+'9 Sensibilité et robustesse'!E$130)^'5 Flux de trésorerie brut'!$A$8:$A$27-('5 Flux de trésorerie brut'!$B$8:$B$27)*(1+'9 Sensibilité et robustesse'!$A141)^'5 Flux de trésorerie brut'!$A$8:$A$27))+'5 Flux de trésorerie brut'!$D$7","v":{"$error":"#DIV/0!"}},{"$f":"NPV('1 Données d''entrée'!$H$28,('5 Flux de trésorerie brut'!$C$8:$C$27*(1+'9 Sensibilité et robustesse'!F$130)^'5 Flux de trésorerie brut'!$A$8:$A$27-('5 Flux de trésorerie brut'!$B$8:$B$27)*(1+'9 Sensibilité et robustesse'!$A141)^'5 Flux de trésorerie brut'!$A$8:$A$27))+'5 Flux de trésorerie brut'!$D$7","v":{"$error":"#DIV/0!"}}]
[0.25,{"$f":"NPV('1 Données d''entrée'!$H$28,('5 Flux de trésorerie brut'!$C$8:$C$27*(1+'9 Sensibilité et robustesse'!B$130)^'5 Flux de trésorerie brut'!$A$8:$A$27-('5 Flux de trésorerie brut'!$B$8:$B$27)*(1+'9 Sensibilité et robustesse'!$A142)^'5 Flux de trésorerie brut'!$A$8:$A$27))+'5 Flux de trésorerie brut'!$D$7","v":{"$error":"#DIV/0!"}},{"$f":"NPV('1 Données d''entrée'!$H$28,('5 Flux de trésorerie brut'!$C$8:$C$27*(1+'9 Sensibilité et robustesse'!C$130)^'5 Flux de trésorerie brut'!$A$8:$A$27-('5 Flux de trésorerie brut'!$B$8:$B$27)*(1+'9 Sensibilité et robustesse'!$A142)^'5 Flux de trésorerie brut'!$A$8:$A$27))+'5 Flux de trésorerie brut'!$D$7","v":{"$error":"#DIV/0!"}},{"$f":"NPV('1 Données d''entrée'!$H$28,('5 Flux de trésorerie brut'!$C$8:$C$27*(1+'9 Sensibilité et robustesse'!D$130)^'5 Flux de trésorerie brut'!$A$8:$A$27-('5 Flux de trésorerie brut'!$B$8:$B$27)*(1+'9 Sensibilité et robustesse'!$A142)^'5 Flux de trésorerie brut'!$A$8:$A$27))+'5 Flux de trésorerie brut'!$D$7","v":{"$error":"#DIV/0!"}},{"$f":"NPV('1 Données d''entrée'!$H$28,('5 Flux de trésorerie brut'!$C$8:$C$27*(1+'9 Sensibilité et robustesse'!E$130)^'5 Flux de trésorerie brut'!$A$8:$A$27-('5 Flux de trésorerie brut'!$B$8:$B$27)*(1+'9 Sensibilité et robustesse'!$A142)^'5 Flux de trésorerie brut'!$A$8:$A$27))+'5 Flux de trésorerie brut'!$D$7","v":{"$error":"#DIV/0!"}},{"$f":"NPV('1 Données d''entrée'!$H$28,('5 Flux de trésorerie brut'!$C$8:$C$27*(1+'9 Sensibilité et robustesse'!F$130)^'5 Flux de trésorerie brut'!$A$8:$A$27-('5 Flux de trésorerie brut'!$B$8:$B$27)*(1+'9 Sensibilité et robustesse'!$A142)^'5 Flux de trésorerie brut'!$A$8:$A$27))+'5 Flux de trésorerie brut'!$D$7","v":{"$error":"#DIV/0!"}}]

{"sheet":"10 Subvention d'ADER","index":11,"n_rows":2096,"n_cols":24,"rows_kept":2096,"cut":false,"hidden":false,"merged":[[2008,0,2018,0],[8,4,8,6],[2020,0,2030,0],[2069,0,2069,7],[2036,0,2046,0],[2048,0,2058,0],[2060,0,2060,1],[2061,0,2061,1],[1833,0,1843,0],[1849,0,1859,0],[1474,0,1484,0],[1861,0,1871,0],[1821,0,1831,0],[1694,0,1694,7],[1793,0,1803,0],[1805,0,1815,0],[1617,0,1627,0],[1661,0,1671,0],[1633,0,1643,0],[1992,0,2002,0],[1873,0,1873,1],[1874,0,1874,1],[1882,0,1882,7],[1980,0,1990,0],[1312,0,1312,1],[1320,0,1320,7],[1686,0,1686,1],[1685,0,1685,1],[1673,0,1683,0],[1645,0,1655,0],[1499,0,1499,1],[1486,0,1496,0],[1498,0,1498,1],[1418,0,1428,0],[1430,0,1440,0],[1446,0,1456,0],[1458,0,1468,0],[1507,0,1507,7],[1605,0,1615,0],[1299,0,1309,0],[1311,0,1311,1],[1271,0,1281,0],[1231,0,1241,0],[1243,0,1253,0],[1259,0,1269,0],[1287,0,1297,0],[1071,0,1081,0],[1099,0,1109,0],[1111,0,1121,0],[1123,0,1123,1],[1124,0,1124,1],[1132,0,1132,7],[1083,0,1093,0],[884,0,894,0],[896,0,906,0],[912,0,922,0],[1055,0,1065,0],[1043,0,1053,0],[936,0,936,1],[937,0,937,1],[945,0,945,7],[924,0,934,0],[868,0,878,0],[724,0,734,0],[350,0,360,0],[362,0,372,0],[374,0,374,1],[375,0,375,1],[383,0,383,7],[736,0,746,0],[748,0,748,1],[481,0,491,0],[493,0,503,0],[509,0,519,0],[521,0,531,0],[562,0,562,1],[570,0,570,7],[856,0,866,0],[696,0,706,0],[708,0,718,0],[561,0,561,1],[749,0,749,1],[668,0,678,0],[680,0,690,0],[757,0,757,7],[2,0,2,4],[8,0,8,2],[537,0,547,0],[549,0,559,0],[4,0,4,1],[118,0,128,0],[134,0,144,0],[146,0,156,0],[162,0,172,0],[306,0,316,0],[322,0,332,0],[334,0,344,0],[106,0,116,0],[174,0,184,0],[186,0,186,1],[187,0,187,1],[195,0,195,7],[294,0,304,0]]}
["Subvention d'ADER",{"$nulls":22},"Subvention d'ADER"]
[]
["Cette feuille démontre l'effet de la subvention d'ADER au projet. La sensibilité du projet en fonction du montant de la subvention d'ADER est analysée. L'effet est calculé sur la base du flux du trésorerie brut et net et il est présenté dans deux aperçu (brut et net). Pour le calcul de l'effet sur le flux de trésorerie net, des scénarios nouveaux étaient créés qui sont présentés dans les tableaux supplétifs au-dessous."]
[]
["Quote-part du coût d'investissement initial (Données d'entrée, B268)"]
["Subvention d'ADER",{"$f":"'1 Données d''entrée'!$B$299","v":0}]
[]
[]
["Analyse de sensibilité du flux de trésorerie BRUT: Subvention d'ADER",null,null,null,"Analyse de sensibilité du flux de trésorerie NET: Subvention d'ADER"]
["Quote-part du coût d'investissement initial comme subvention d'ADER","Valeur actuelle nette (brut)","Taux de rentabilité interne",null,"Quote-part du coût d'investissement initial comme subvention d'ADER","Valeur actuelle nette (net)","Taux de rentabilité interne"]
[0,{"$f":"NPV('1 Données d''entrée'!$H$28,'5 Flux de trésorerie brut'!$D$8:$D$27)+('5 Flux de trésorerie brut'!$D$7+('10 Subvention d''ADER'!A11)*('3 Coût total'!$B$7-'3 Coût total'!$B$42))","v":{"$error":"#DIV/0!"}},{"$f":"IRR(('5 Flux de trésorerie brut'!$D$7:$D$27+('10 Subvention d''ADER'!A11*'3 Coût total'!$B$7:$B$27)))","v":{"$error":"#VALUE!"}},null,0,{"$f":"D221","v":{"$error":"#DIV/0!"}},{"$f":"D222","v":{"$error":"#VALUE!"}}]
[0.1,{"$f":"NPV('1 Données d''entrée'!$H$28,'5 Flux de trésorerie brut'!$D$8:$D$27)+('5 Flux de trésorerie brut'!$D$7+('10 Subvention d''ADER'!A12)*('3 Coût total'!$B$7-'3 Coût total'!$B$42))","v":{"$error":"#DIV/0!"}},{"$f":"IRR(('5 Flux de trésorerie brut'!$D$7:$D$27+('10 Subvention d''ADER'!A12*'3 Coût total'!$B$7:$B$27)))","v":{"$error":"#VALUE!"}},null,0.1,{"$f":"D409","v":{"$error":"#DIV/0!"}},{"$f":"D410","v":{"$error":"#VALUE!"}}]
[0.2,{"$f":"NPV('1 Données d''entrée'!$H$28,'5 Flux de trésorerie brut'!$D$8:$D$27)+('5 Flux de trésorerie brut'!$D$7+('10 Subvention d''ADER'!A13)*('3 Coût total'!$B$7-'3 Coût total'!$B$42))","v":{"$error":"#DIV/0!"}},{"$f":"IRR(('5 Flux de trésorerie brut'!$D$7:$D$27+('10 Subvention d''ADER'!A13*'3 Coût total'!$B$7:$B$27)))","v":{"$error":"#VALUE!"}},null,0.2,{"$f":"D596","v":{"$error":"#DIV/0!"}},{"$f":"D597","v":{"$error":"#VALUE!"}}]
[0.3,{"$f":"NPV('1 Données d''entrée'!$H$28,'5 Flux de trésorerie brut'!$D$8:$D$27)+('5 Flux de trésorerie brut'!$D$7+('10 Subvention d''ADER'!A14)*('3 Coût total'!$B$7-'3 Coût total'!$B$42))","v":{"$error":"#DIV/0!"}},{"$f":"IRR(('5 Flux de trésorerie brut'!$D$7:$D$27+('10 Subvention d''ADER'!A14*'3 Coût total'!$B$7:$B$27)))","v":{"$error":"#VALUE!"}},null,0.3,{"$f":"D783","v":{"$error":"#DIV/0!"}},{"$f":"D784","v":{"$error":"#VALUE!"}}]
[0.4,{"$f":"NPV('1 Données d''entrée'!$H$28,'5 Flux de trésorerie brut'!$D$8:$D$27)+('5 Flux de trésorerie brut'!$D$7+('10 Subvention d''ADER'!A15)*('3 Coût total'!$B$7-'3 Coût total'!$B$42))","v":{"$error":"#DIV/0!"}},{"$f":"IRR(('5 Flux de trésorerie brut'!$D$7:$D$27+('10 Subvention d''ADER'!A15*'3 Coût total'!$B$7:$B$27)))","v":{"$error":"#VALUE!"}},null,0.4,{"$f":"D971","v":{"$error":"#DIV/0!"}},{"$f":"D972","v":{"$error":"#VALUE!"}}]
[0.5,{"$f":"NPV('1 Données d''entrée'!$H$28,'5 Flux de trésorerie brut'!$D$8:$D$27)+('5 Flux de trésorerie brut'!$D$7+('10 Subvention d''ADER'!A16)*('3 Coût total'!$B$7-'3 Coût total'!$B$42))","v":{"$error":"#DIV/0!"}},{"$f":"IRR(('5 Flux de trésorerie brut'!$D$7:$D$27+('10 Subvention d''ADER'!A16*'3 Coût total'!$B$7:$B$27)))","v":{"$error":"#VALUE!"}},null,0.5,{"$f":"D1158","v":{"$error":"#DIV/0!"}},{"$f":"D1159","v":{"$error":"#VALUE!"}}]
[0.6,{"$f":"NPV('1 Données d''entrée'!$H$28,'5 Flux de trésorerie brut'!$D$8:$D$27)+('5 Flux de trésorerie brut'!$D$7+('10 Subvention d''ADER'!A17)*('3 Coût total'!$B$7-'3 Coût total'!$B$42))","v":{"$error":"#DIV/0!"}},{"$f":"IRR(('5 Flux de trésorerie brut'!$D$7:$D$27+('10 Subvention d''ADER'!A17*'3 Coût total'!$B$7:$B$27)))","v":{"$error":"#VALUE!"}},null,0.6,{"$f":"D1346","v":{"$error":"#DIV/0!"}},{"$f":"D1347","v":{"$error":"#VALUE!"}}]
[0.7,{"$f":"NPV('1 Données d''entrée'!$H$28,'5 Flux de trésorerie brut'!$D$8:$D$27)+('5 Flux de trésorerie brut'!$D$7+('10 Subvention d''ADER'!A18)*('3 Coût total'!$B$7-'3 Coût total'!$B$42))","v":{"$error":"#DIV/0!"}},{"$f":"IRR(('5 Flux de trésorerie brut'!$D$7:$D$27+('10 Subvention d''ADER'!A18*'3 Coût total'!$B$7:$B$27)))","v":{"$error":"#VALUE!"}},null,0.7,{"$f":"D1533","v":{"$error":"#DIV/0!"}},{"$f":"D1534","v":{"$error":"#VALUE!"}}]
[0.8,{"$f":"NPV('1 Données d''entrée'!$H$28,'5 Flux de trésorerie brut'!$D$8:$D$27)+('5 Flux de trésorerie brut'!$D$7+('10 Subvention d''ADER'!A19)*('3 Coût total'!$B$7-'3 Coût total'!$B$42))","v":{"$error":"#DIV/0!"}},{"$f":"IRR(('5 Flux de trésorerie brut'!$D$7:$D$27+('10 Subvention d''ADER'!A19*'3 Coût total'!$B$7:$B$27)))","v":{"$error":"#VALUE!"}},null,0.8,{"$f":"D1720","v":{"$error":"#DIV/0!"}},{"$f":"D1721","v":{"$error":"#VALUE!"}}]
[0.9,{"$f":"NPV('1 Données d''entrée'!$H$28,'5 Flux de trésorerie brut'!$D$8:$D$27)+('5 Flux de trésorerie brut'!$D$7+('10 Subvention d''ADER'!A20)*('3 Coût total'!$B$7-'3 Coût total'!$B$42))","v":{"$error":"#DIV/0!"}},{"$f":"IRR(('5 Flux de trésorerie brut'!$D$7:$D$27+('10 Subvention d''ADER'!A20*'3 Coût total'!$B$7:$B$27)))","v":{"$error":"#VALUE!"}},null,0.9,{"$f":"D1908","v":{"$error":"#DIV/0!"}},{"$f":"D1909","v":{"$error":"#VALUE!"}}]
[1,{"$f":"NPV('1 Données d''entrée'!$H$28,'5 Flux de trésorerie brut'!$D$8:$D$27)+('5 Flux de trésorerie brut'!$D$7+('10 Subvention d''ADER'!A21)*('3 Coût total'!$B$7-'3 Coût total'!$B$42))","v":{"$error":"#DIV/0!"}},{"$f":"IRR(('5 Flux de trésorerie brut'!$D$7:$D$27+('10 Subvention d''ADER'!A21*'3 Coût total'!$B$7:$B$27)))","v":{"$error":"#VALUE!"}},null,1,{"$f":"D2095","v":{"$error":"#DIV/0!"}},"-"]
{"$rows_empty":19}
["Tableau de calcul avec un taux de subvention de",null,null,0]
[]
["Bailleur de fonds","Investissement total par bailleur de fonds (AR)","Quote-part du coût d'investissement initial"]
["Subvention d'ADER",{"$f":"('3 Coût total'!$B$7-'3 Coût total'!$B$42)*C44","v":0},{"$f":"D41","v":0}]
["Capitaux propres",{"$f":"'1 Données d''entrée'!$B$294","v":0},{"$f":"'1 Données d''entrée'!$B$294/'3 Coût total'!$B$7","v":{"$error":"#DIV/0!"}}]
["Fonds d'autres donneurs / investisseurs",{"$f":"'1 Données d''entrée'!$B$306+'1 Données d''entrée'!$B$307","v":0},{"$f":"B46/'3 Coût total'!$B$7","v":{"$error":"#DIV/0!"}}]
["Prêt bancaire (effective)",{"$f":"IF(B44+'1 Données d''entrée'!$B$294=0,0,(-1)*'5 Flux de trésorerie brut'!$D$7-(SUM(B44:B46)))","v":0},{"$f":"(1-(C44+C45+C46))","v":{"$error":"#DIV/0!"}}]
[]
["Prêt bancaire avec des frais de gestion",{"$f":"B47+B47*'1 Données d''entrée'!$C$338","v":0},{"$f":"(1-(C44+C45+C46))+(1-(C44+C45+C46))*'1 Données d''entrée'!$C$338","v":{"$error":"#DIV/0!"}}]
[]
["Tableaux de calcul"]
[]
[]
["Scénario financier"]
["Période",0,1,2,3,4,5,6,7,8,9,10,11,12,13,14,15,16,17,18,19,20]
[]
["Flux de trésorerie (brut)",{"$f":"'5 Flux de trésorerie brut'!$D$7","v":{"$error":"#DIV/0!"}},{"$f":"'5 Flux de trésorerie brut'!$D$8","v":{"$error":"#DIV/0!"}},{"$f":"'5 Flux de trésorerie brut'!$D$9","v":{"$error":"#DIV/0!"}},{"$f":"'5 Flux de trésorerie brut'!$D$10","v":{"$error":"#DIV/0!"}},{"$f":"'5 Flux de trésorerie brut'!$D$11","v":{"$error":"#DIV/0!"}},{"$f":"'5 Flux de trésorerie brut'!$D$12","v":{"$error":"#DIV/0!"}},{"$f":"'5 Flux de trésorerie brut'!$D$13","v":{"$error":"#DIV/0!"}},{"$f":"'5 Flux de trésorerie brut'!$D$14","v":{"$error":"#DIV/0!"}},{"$f":"'5 Flux de trésorerie brut'!$D$15","v":{"$error":"#DIV/0!"}},{"$f":"'5 Flux de trésorerie brut'!$D$16","v":{"$error":"#DIV/0!"}},{"$f":"'5 Flux de trésorerie brut'!$D$17","v":{"$error":"#DIV/0!"}},{"$f":"'5 Flux de trésorerie brut'!$D$18","v":{"$error":"#DIV/0!"}},{"$f":"'5 Flux de trésorerie brut'!$D$19","v":{"$error":"#DIV/0!"}},{"$f":"'5 Flux de trésorerie brut'!$D$20","v":{"$error":"#DIV/0!"}},{"$f":"'5 Flux de trésorerie brut'!$D$21","v":{"$error":"#DIV/0!"}},{"$f":"'5 Flux de trésorerie brut'!$D$22","v":{"$error":"#DIV/0!"}},{"$f":"'5 Flux de trésorerie brut'!$D$23","v":{"$error":"#DIV/0!"}},{"$f":"'5 Flux de trésorerie brut'!$D$24","v":{"$error":"#DIV/0!"}},{"$f":"'5 Flux de trésorerie brut'!$D$25","v":{"$error":"#DIV/0!"}},{"$f":"'5 Flux de trésorerie brut'!$D$26","v":{"$error":"#DIV/0!"}},{"$f":"'5 Flux de trésorerie brut'!$D$27","v":{"$error":"#DIV/0!"}}]
[]
["Capitaux propres",{"$f":"'1 Données d''entrée'!$B$294","v":0}]
[]
["Subvention ADER",{"$f":"'3 Coût total'!$B$7*C44","v":0}]
[]
["Prêt bancaire - Option 1: Remboursement du principal fractionné",{"$f":"'1 Données d''entrée'!$B$342","v":0},"% de prêt total"]
["Réception et montant restant",{"$f":"B49*B63","v":0},{"$f":"B64-C65","v":0},0,0,0,0,0,0,0,0,0,0,0,0,0,0,0,0,0,0,0]
["Remboursement du principal",0,{"$f":"IF(C55<'1 Données d''entrée'!$C$334+1,0,IF(C55<'1 Données d''entrée'!$C$333+'1 Données d''entrée'!$C$334+1,($B64/'1 Données d''entrée'!$C$333),0))","v":0},{"$f":"IF(D55<'1 Données d''entrée'!$C$334+1,0,IF(D55<'1 Données d''entrée'!$C$333+'1 Données d''entrée'!$C$334+1,($B64/'1 Données d''entrée'!$C$333),0))","v":0},{"$f":"IF(E55<'1 Données d''entrée'!$C$334+1,0,IF(E55<'1 Données d''entrée'!$C$333+'1 Données d''entrée'!$C$334+1,($B64/'1 Données d''entrée'!$C$333),0))","v":0},{"$f":"IF(F55<'1 Données d''entrée'!$C$334+1,0,IF(F55<'1 Données d''entrée'!$C$333+'1 Données d''entrée'!$C$334+1,($B64/'1 Données d''entrée'!$C$333),0))","v":0},{"$f":"IF(G55<'1 Données d''entrée'!$C$334+1,0,IF(G55<'1 Données d''entrée'!$C$333+'1 Données d''entrée'!$C$334+1,($B64/'1 Données d''entrée'!$C$333),0))","v":0},{"$f":"IF(H55<'1 Données d''entrée'!$C$334+1,0,IF(H55<'1 Données d''entrée'!$C$333+'1 Données d''entrée'!$C$334+1,($B64/'1 Données d''entrée'!$C$333),0))","v":0},{"$f":"IF(I55<'1 Données d''entrée'!$C$334+1,0,IF(I55<'1 Données d''entrée'!$C$333+'1 Données d''entrée'!$C$334+1,($B64/'1 Données d''entrée'!$C$333),0))","v":0},{"$f":"IF(J55<'1 Données d''entrée'!$C$334+1,0,IF(J55<'1 Données d''entrée'!$C$333+'1 Données d''entrée'!$C$334+1,($B64/'1 Données d''entrée'!$C$333),0))","v":0},{"$f":"IF(K55<'1 Données d''entrée'!$C$334+1,0,IF(K55<'1 Données d''entrée'!$C$333+'1 Données d''entrée'!$C$334+1,($B64/'1 Données d''entrée'!$C$333),0))","v":0},{"$f":"IF(L55<'1 Données d''entrée'!$C$334+1,0,IF(L55<'1 Données d''entrée'!$C$333+'1 Données d''entrée'!$C$334+1,($B64/'1 Données d''entrée'!$C$333),0))","v":0},{"$f":"IF(M55<'1 Données d''entrée'!$C$334+1,0,IF(M55<'1 Données d''entrée'!$C$333+'1 Données d''entrée'!$C$334+1,($B64/'1 Données d''entrée'!$C$333),0))","v":0},{"$f":"IF(N55<'1 Données d''entrée'!$C$334+1,0,IF(N55<'1 Données d''entrée'!$C$333+'1 Données d''entrée'!$C$334+1,($B64/'1 Données d''entrée'!$C$333),0))","v":0},{"$f":"IF(O55<'1 Données d''entrée'!$C$334+1,0,IF(O55<'1 Données d''entrée'!$C$333+'1 Données d''entrée'!$C$334+1,($B64/'1 Données d''entrée'!$C$333),0))","v":0},{"$f":"IF(P55<'1 Données d''entrée'!$C$334+1,0,IF(P55<'1 Données d''entrée'!$C$333+'1 Données d''entrée'!$C$334+1,($B64/'1 Données d''entrée'!$C$333),0))","v":0},{"$f":"IF(Q55<'1 Données d''entrée'!$C$334+1,0,IF(Q55<'1 Données d''entrée'!$C$333+'1 Données d''entrée'!$C$334+1,($B64/'1 Données d''entrée'!$C$333),0))","v":0},{"$f":"IF(R55<'1 Données d''entrée'!$C$334+1,0,IF(R55<'1 Données d''entrée'!$C$333+'1 Données d''entrée'!$C$334+1,($B64/'1 Données d''entrée'!$C$333),0))","v":0},{"$f":"IF(S55<'1 Données d''entrée'!$C$334+1,0,IF(S55<'1 Données d''entrée'!$C$333+'1 Données d''entrée'!$C$334+1,($B64/'1 Données d''entrée'!$C$333),0))","v":0},{"$f":"IF(T55<'1 Données d''entrée'!$C$334+1,0,IF(T55<'1 Données d''entrée'!$C$333+'1 Données d''entrée'!$C$334+1,($B64/'1 Données d''entrée'!$C$333),0))","v":0},{"$f":"IF(U55<'1 Données d''entrée'!$C$334+1,0,IF(U55<'1 Données d''entrée'!$C$333+'1 Données d''entrée'!$C$334+1,($B64/'1 Données d''entrée'!$C$333),0))","v":0},{"$f":"IF(V55<'1 Données d''entrée'!$C$334+1,0,IF(V55<'1 Données d''entrée'!$C$333+'1 Données d''entrée'!$C$334+1,($B64/'1 Données d''entrée'!$C$333),0))","v":0}]
["Paiement d'intérêts",0,{"$f":"IF('1 Données d''entrée'!$C$336=\"(=NON)\",IF(C55<'1 Données d''entrée'!$C$334+1,0,B64*'1 Données d''entrée'!$C$332),B64*'1 Données d''entrée'!$C$332)","v":0},{"$f":"IF('1 Données d''entrée'!$C$336=\"(=NON)\",IF(D55<'1 Données d''entrée'!$C$334+1,0,C64*'1 Données d''entrée'!$C$332),C64*'1 Données d''entrée'!$C$332)","v":0},{"$f":"IF('1 Données d''entrée'!$C$336=\"(=NON)\",IF(E55<'1 Données d''entrée'!$C$334+1,0,D64*'1 Données d''entrée'!$C$332),D64*'1 Données d''entrée'!$C$332)","v":0},{"$f":"IF('1 Données d''entrée'!$C$336=\"(=NON)\",IF(F55<'1 Données d''entrée'!$C$334+1,0,E64*'1 Données d''entrée'!$C$332),E64*'1 Données d''entrée'!$C$332)","v":0},{"$f":"IF('1 Données d''entrée'!$C$336=\"(=NON)\",IF(G55<'1 Données d''entrée'!$C$334+1,0,F64*'1 Données d''entrée'!$C$332),F64*'1 Données d''entrée'!$C$332)","v":0},{"$f":"IF('1 Données d''entrée'!$C$336=\"(=NON)\",IF(H55<'1 Données d''entrée'!$C$334+1,0,G64*'1 Données d''entrée'!$C$332),G64*'1 Données d''entrée'!$C$332)","v":0},{"$f":"IF('1 Données d''entrée'!$C$336=\"(=NON)\",IF(I55<'1 Données d''entrée'!$C$334+1,0,H64*'1 Données d''entrée'!$C$332),H64*'1 Données d''entrée'!$C$332)","v":0},{"$f":"IF('1 Données d''entrée'!$C$336=\"(=NON)\",IF(J55<'1 Données d''entrée'!$C$334+1,0,I64*'1 Données d''entrée'!$C$332),I64*'1 Données d''entrée'!$C$332)","v":0},{"$f":"IF('1 Données d''entrée'!$C$336=\"(=NON)\",IF(K55<'1 Données d''entrée'!$C$334+1,0,J64*'1 Données d''entrée'!$C$332),J64*'1 Données d''entrée'!$C$332)","v":0},{"$f":"IF('1 Données d''entrée'!$C$336=\"(=NON)\",IF(L55<'1 Données d''entrée'!$C$334+1,0,K64*'1 Données d''entrée'!$C$332),K64*'1 Données d''entrée'!$C$332)","v":0},{"$f":"IF('1 Données d''entrée'!$C$336=\"(=NON)\",IF(M55<'1 Données d''entrée'!$C$334+1,0,L64*'1 Données d''entrée'!$C$332),L64*'1 Données d''entrée'!$C$332)","v":0},{"$f":"IF('1 Données d''entrée'!$C$336=\"(=NON)\",IF(N55<'1 Données d''entrée'!$C$334+1,0,M64*'1 Données d''entrée'!$C$332),M64*'1 Données d''entrée'!$C$332)","v":0},{"$f":"IF('1 Données d''entrée'!$C$336=\"(=NON)\",IF(O55<'1 Données d''entrée'!$C$334+1,0,N64*'1 Données d''entrée'!$C$332),N64*'1 Données d''entrée'!$C$332)","v":0},{"$f":"IF('1 Données d''entrée'!$C$336=\"(=NON)\",IF(P55<'1 Données d''entrée'!$C$334+1,0,O64*'1 Données d''entrée'!$C$332),O64*'1 Données d''entrée'!$C$332)","v":0},{"$f":"IF('1 Données d''entrée'!$C$336=\"(=NON)\",IF(Q55<'1 Données d''entrée'!$C$334+1,0,P64*'1 Données d''entrée'!$C$332),P64*'1 Données d''entrée'!$C$332)","v":0},{"$f":"IF('1 Données d''entrée'!$C$336=\"(=NON)\",IF(R55<'1 Données d''entrée'!$C$334+1,0,Q64*'1 Données d''entrée'!$C$332),Q64*'1 Données d''entrée'!$C$332)","v":0},{"$f":"IF('1 Données d''entrée'!$C$336=\"(=NON)\",IF(S55<'1 Données d''entrée'!$C$334+1,0,R64*'1 Données d''entrée'!$C$332),R64*'1 Données d''entrée'!$C$332)","v":0},{"$f":"IF('1 Données d''entrée'!$C$336=\"(=NON)\",IF(T55<'1 Données d''entrée'!$C$334+1,0,S64*'1 Données d''entrée'!$C$332),S64*'1 Données d''entrée'!$C$332)","v":0},{"$f":"IF('1 Données d''entrée'!$C$336=\"(=NON)\",IF(U55<'1 Données d''entrée'!$C$334+1,0,T64*'1 Données d''entrée'!$C$332),T64*'1 Données d''entrée'!$C$332)","v":0},{"$f":"IF('1 Données d''entrée'!$C$336=\"(=NON)\",IF(V55<'1 Données d''entrée'!$C$334+1,0,U64*'1 Données d''entrée'!$C$332),U64*'1 Données d''entrée'!$C$332)","v":0}]
["Paiements d'intérêt avec des intérêts composés en cas d'absence des paiements dans la période de grâce",0,0,{"$f":"IF(D55='1 Données d''entrée'!$C$334+1,IF('1 Données d''entrée'!$C$336=\"(=NON)\",($B64*'1 Données d''entrée'!$C$332)*((('1 Données d''entrée'!$C$332+1)^'1 Données d''entrée'!$C$334-1)/('1 Données d''entrée'!$C$332))*(1+'1 Données d''entrée'!$C$332),0),0)","v":0},{"$f":"IF(E55='1 Données d''entrée'!$C$334+1,IF('1 Données d''entrée'!$C$336=\"(=NON)\",($B64*'1 Données d''entrée'!$C$332)*((('1 Données d''entrée'!$C$332+1)^'1 Données d''entrée'!$C$334-1)/('1 Données d''entrée'!$C$332))*(1+'1 Données d''entrée'!$C$332),0),0)","v":0},{"$f":"IF(F55='1 Données d''entrée'!$C$334+1,IF('1 Données d''entrée'!$C$336=\"(=NON)\",($B64*'1 Données d''entrée'!$C$332)*((('1 Données d''entrée'!$C$332+1)^'1 Données d''entrée'!$C$334-1)/('1 Données d''entrée'!$C$332))*(1+'1 Données d''entrée'!$C$332),0),0)","v":0},{"$f":"IF(G55='1 Données d''entrée'!$C$334+1,IF('1 Données d''entrée'!$C$336=\"(=NON)\",($B64*'1 Données d''entrée'!$C$332)*((('1 Données d''entrée'!$C$332+1)^'1 Données d''entrée'!$C$334-1)/('1 Données d''entrée'!$C$332))*(1+'1 Données d''entrée'!$C$332),0),0)","v":0},{"$f":"IF(H55='1 Données d''entrée'!$C$334+1,IF('1 Données d''entrée'!$C$336=\"(=NON)\",($B64*'1 Données d''entrée'!$C$332)*((('1 Données d''entrée'!$C$332+1)^'1 Données d''entrée'!$C$334-1)/('1 Données d''entrée'!$C$332))*(1+'1 Données d''entrée'!$C$332),0),0)","v":0},{"$f":"IF(I55='1 Données d''entrée'!$C$334+1,IF('1 Données d''entrée'!$C$336=\"(=NON)\",($B64*'1 Données d''entrée'!$C$332)*((('1 Données d''entrée'!$C$332+1)^'1 Données d''entrée'!$C$334-1)/('1 Données d''entrée'!$C$332))*(1+'1 Données d''entrée'!$C$332),0),0)","v":0},{"$f":"IF(J55='1 Données d''entrée'!$C$334+1,IF('1 Données d''entrée'!$C$336=\"(=NON)\",($B64*'1 Données d''entrée'!$C$332)*((('1 Données d''entrée'!$C$332+1)^'1 Données d''entrée'!$C$334-1)/('1 Données d''entrée'!$C$332))*(1+'1 Données d''entrée'!$C$332),0),0)","v":0},{"$f":"IF(K55='1 Données d''entrée'!$C$334+1,IF('1 Données d''entrée'!$C$336=\"(=NON)\",($B64*'1 Données d''entrée'!$C$332)*((('1 Données d''entrée'!$C$332+1)^'1 Données d''entrée'!$C$334-1)/('1 Données d''entrée'!$C$332))*(1+'1 Données d''entrée'!$C$332),0),0)","v":0},{"$f":"IF(L55='1 Données d''entrée'!$C$334+1,IF('1 Données d''entrée'!$C$336=\"(=NON)\",($B64*'1 Données d''entrée'!$C$332)*((('1 Données d''entrée'!$C$332+1)^'1 Données d''entrée'!$C$334-1)/('1 Données d''entrée'!$C$332))*(1+'1 Données d''entrée'!$C$332),0),0)","v":0},{"$f":"IF(M55='1 Données d''entrée'!$C$334+1,IF('1 Données d''entrée'!$C$336=\"(=NON)\",($B64*'1 Données d''entrée'!$C$332)*((('1 Données d''entrée'!$C$332+1)^'1 Données d''entrée'!$C$334-1)/('1 Données d''entrée'!$C$332))*(1+'1 Données d''entrée'!$C$332),0),0)","v":0},{"$f":"IF(N55='1 Données d''entrée'!$C$334+1,IF('1 Données d''entrée'!$C$336=\"(=NON)\",($B64*'1 Données d''entrée'!$C$332)*((('1 Données d''entrée'!$C$332+1)^'1 Données d''entrée'!$C$334-1)/('1 Données d''entrée'!$C$332))*(1+'1 Données d''entrée'!$C$332),0),0)","v":0},{"$f":"IF(O55='1 Données d''entrée'!$C$334+1,IF('1 Données d''entrée'!$C$336=\"(=NON)\",($B64*'1 Données d''entrée'!$C$332)*((('1 Données d''entrée'!$C$332+1)^'1 Données d''entrée'!$C$334-1)/('1 Données d''entrée'!$C$332))*(1+'1 Données d''entrée'!$C$332),0),0)","v":0},{"$f":"IF(P55='1 Données d''entrée'!$C$334+1,IF('1 Données d''entrée'!$C$336=\"(=NON)\",($B64*'1 Données d''entrée'!$C$332)*((('1 Données d''entrée'!$C$332+1)^'1 Données d''entrée'!$C$334-1)/('1 Données d''entrée'!$C$332))*(1+'1 Données d''entrée'!$C$332),0),0)","v":0},{"$f":"IF(Q55='1 Données d''entrée'!$C$334+1,IF('1 Données d''entrée'!$C$336=\"(=NON)\",($B64*'1 Données d''entrée'!$C$332)*((('1 Données d''entrée'!$C$332+1)^'1 Données d''entrée'!$C$334-1)/('1 Données d''entrée'!$C$332))*(1+'1 Données d''entrée'!$C$332),0),0)","v":0},{"$f":"IF(R55='1 Données d''entrée'!$C$334+1,IF('1 Données d''entrée'!$C$336=\"(=NON)\",($B64*'1 Données d''entrée'!$C$332)*((('1 Données d''entrée'!$C$332+1)^'1 Données d''entrée'!$C$334-1)/('1 Données d''entrée'!$C$332))*(1+'1 Données d''entrée'!$C$332),0),0)","v":0},{"$f":"IF(S55='1 Données d''entrée'!$C$334+1,IF('1 Données d''entrée'!$C$336=\"(=NON)\",($B64*'1 Données d''entrée'!$C$332)*((('1 Données d''entrée'!$C$332+1)^'1 Données d''entrée'!$C$334-1)/('1 Données d''entrée'!$C$332))*(1+'1 Données d''entrée'!$C$332),0),0)","v":0},{"$f":"IF(T55='1 Données d''entrée'!$C$334+1,IF('1 Données d''entrée'!$C$336=\"(=NON)\",($B64*'1 Données d''entrée'!$C$332)*((('1 Données d''entrée'!$C$332+1)^'1 Données d''entrée'!$C$334-1)/('1 Données d''entrée'!$C$332))*(1+'1 Données d''entrée'!$C$332),0),0)","v":0},{"$f":"IF(U55='1 Données d''entrée'!$C$334+1,IF('1 Données d''entrée'!$C$336=\"(=NON)\",($B64*'1 Données d''entrée'!$C$332)*((('1 Données d''entrée'!$C$332+1)^'1 Données d''entrée'!$C$334-1)/('1 Données d''entrée'!$C$332))*(1+'1 Données d''entrée'!$C$332),0),0)","v":0},{"$f":"IF(V55='1 Données d''entrée'!$C$334+1,IF('1 Données d''entrée'!$C$336=\"(=NON)\",($B64*'1 Données d''entrée'!$C$332)*((('1 Données d''entrée'!$C$332+1)^'1 Données d''entrée'!$C$334-1)/('1 Données d''entrée'!$C$332))*(1+'1 Données d''entrée'!$C$332),0),0)","v":0}]
["Prêt bancaire - Option 2: Remboursement du principal final",{"$f":"'1 Données d''entrée'!$B$343","v":0},"% de prêt total"]
["Réception et montant restant",{"$f":"B49*B68","v":0},{"$f":"B69-C70","v":0},0,0,0,0,0,0,0,0,0,0,0,0,0,0,0,0,0,0,0]
["Remboursement du principal",0,{"$f":"IF('1 Données d''entrée'!$C$333+'1 Données d''entrée'!$C$334=C55,$B69,0)","v":0},{"$f":"IF('1 Données d''entrée'!$C$333+'1 Données d''entrée'!$C$334=D55,$B69,0)","v":0},{"$f":"IF('1 Données d''entrée'!$C$333+'1 Données d''entrée'!$C$334=E55,$B69,0)","v":0},{"$f":"IF('1 Données d''entrée'!$C$333+'1 Données d''entrée'!$C$334=F55,$B69,0)","v":0},{"$f":"IF('1 Données d''entrée'!$C$333+'1 Données d''entrée'!$C$334=G55,$B69,0)","v":0},{"$f":"IF('1 Données d''entrée'!$C$333+'1 Données d''entrée'!$C$334=H55,$B69,0)","v":0},{"$f":"IF('1 Données d''entrée'!$C$333+'1 Données d''entrée'!$C$334=I55,$B69,0)","v":0},{"$f":"IF('1 Données d''entrée'!$C$333+'1 Données d''entrée'!$C$334=J55,$B69,0)","v":0},{"$f":"IF('1 Données d''entrée'!$C$333+'1 Données d''entrée'!$C$334=K55,$B69,0)","v":0},{"$f":"IF('1 Données d''entrée'!$C$333+'1 Données d''entrée'!$C$334=L55,$B69,0)","v":0},{"$f":"IF('1 Données d''entrée'!$C$333+'1 Données d''entrée'!$C$334=M55,$B69,0)","v":0},{"$f":"IF('1 Données d''entrée'!$C$333+'1 Données d''entrée'!$C$334=N55,$B69,0)","v":0},{"$f":"IF('1 Données d''entrée'!$C$333+'1 Données d''entrée'!$C$334=O55,$B69,0)","v":0},{"$f":"IF('1 Données d''entrée'!$C$333+'1 Données d''entrée'!$C$334=P55,$B69,0)","v":0},{"$f":"IF('1 Données d''entrée'!$C$333+'1 Données d''entrée'!$C$334=Q55,$B69,0)","v":0},{"$f":"IF('1 Données d''entrée'!$C$333+'1 Données d''entrée'!$C$334=R55,$B69,0)","v":0},{"$f":"IF('1 Données d''entrée'!$C$333+'1 Données d''entrée'!$C$334=S55,$B69,0)","v":0},{"$f":"IF('1 Données d''entrée'!$C$333+'1 Données d''entrée'!$C$334=T55,$B69,0)","v":0},{"$f":"IF('1 Données d''entrée'!$C$333+'1 Données d''entrée'!$C$334=U55,$B69,0)","v":0},{"$f":"IF('1 Données d''entrée'!$C$333+'1 Données d''entrée'!$C$334=V55,$B69,0)","v":0}]
["Paiement d'intérêts",0,{"$f":"IF('1 Données d''entrée'!$C$336=\"(=NON)\",IF(C55<'1 Données d''entrée'!$C$334+1,0,B69*'1 Données d''entrée'!$C$332),B69*'1 Données d''entrée'!$C$332)","v":0},{"$f":"IF('1 Données d''entrée'!$C$336=\"(=NON)\",IF(D55<'1 Données d''entrée'!$C$334+1,0,C69*'1 Données d''entrée'!$C$332),C69*'1 Données d''entrée'!$C$332)","v":0},{"$f":"IF('1 Données d''entrée'!$C$336=\"(=NON)\",IF(E55<'1 Données d''entrée'!$C$334+1,0,D69*'1 Données d''entrée'!$C$332),D69*'1 Données d''entrée'!$C$332)","v":0},{"$f":"IF('1 Données d''entrée'!$C$336=\"(=NON)\",IF(F55<'1 Données d''entrée'!$C$334+1,0,E69*'1 Données d''entrée'!$C$332),E69*'1 Données d''entrée'!$C$332)","v":0},{"$f":"IF('1 Données d''entrée'!$C$336=\"(=NON)\",IF(G55<'1 Données d''entrée'!$C$334+1,0,F69*'1 Données d''entrée'!$C$332),F69*'1 Données d''entrée'!$C$332)","v":0},{"$f":"IF('1 Données d''entrée'!$C$336=\"(=NON)\",IF(H55<'1 Données d''entrée'!$C$334+1,0,G69*'1 Données d''entrée'!$C$332),G69*'1 Données d''entrée'!$C$332)","v":0},{"$f":"IF('1 Données d''entrée'!$C$336=\"(=NON)\",IF(I55<'1 Données d''entrée'!$C$334+1,0,H69*'1 Données d''entrée'!$C$332),H69*'1 Données d''entrée'!$C$332)","v":0},{"$f":"IF('1 Données d''entrée'!$C$336=\"(=NON)\",IF(J55<'1 Données d''entrée'!$C$334+1,0,I69*'1 Données d''entrée'!$C$332),I69*'1 Données d''entrée'!$C$332)","v":0},{"$f":"IF('1 Données d''entrée'!$C$336=\"(=NON)\",IF(K55<'1 Données d''entrée'!$C$334+1,0,J69*'1 Données d''entrée'!$C$332),J69*'1 Données d''entrée'!$C$332)","v":0},{"$f":"IF('1 Données d''entrée'!$C$336=\"(=NON)\",IF(L55<'1 Données d''entrée'!$C$334+1,0,K69*'1 Données d''entrée'!$C$332),K69*'1 Données d''entrée'!$C$332)","v":0},{"$f":"IF('1 Données d''entrée'!$C$336=\"(=NON)\",IF(M55<'1 Données d''entrée'!$C$334+1,0,L69*'1 Données d''entrée'!$C$332),L69*'1 Données d''entrée'!$C$332)","v":0},{"$f":"IF('1 Données d''entrée'!$C$336=\"(=NON)\",IF(N55<'1 Données d''entrée'!$C$334+1,0,M69*'1 Données d''entrée'!$C$332),M69*'1 Données d''entrée'!$C$332)","v":0},{"$f":"IF('1 Données d''entrée'!$C$336=\"(=NON)\",IF(O55<'1 Données d''entrée'!$C$334+1,0,N69*'1 Données d''entrée'!$C$332),N69*'1 Données d''entrée'!$C$332)","v":0},{"$f":"IF('1 Données d''entrée'!$C$336=\"(=NON)\",IF(P55<'1 Données d''entrée'!$C$334+1,0,O69*'1 Données d''entrée'!$C$332),O69*'1 Données d''entrée'!$C$332)","v":0},{"$f":"IF('1 Données d''entrée'!$C$336=\"(=NON)\",IF(Q55<'1 Données d''entrée'!$C$334+1,0,P69*'1 Données d''entrée'!$C$332),P69*'1 Données d''entrée'!$C$332)","v":0},{"$f":"IF('1 Données d''entrée'!$C$336=\"(=NON)\",IF(R55<'1 Données d''entrée'!$C$334+1,0,Q69*'1 Données d''entrée'!$C$332),Q69*'1 Données d''entrée'!$C$332)","v":0},{"$f":"IF('1 Données d''entrée'!$C$336=\"(=NON)\",IF(S55<'1 Données d''entrée'!$C$334+1,0,R69*'1 Données d''entrée'!$C$332),R69*'1 Données d''entrée'!$C$332)","v":0},{"$f":"IF('1 Données d''entrée'!$C$336=\"(=NON)\",IF(T55<'1 Données d''entrée'!$C$334+1,0,S69*'1 Données d''entrée'!$C$332),S69*'1 Données d''entrée'!$C$332)","v":0},{"$f":"IF('1 Données d''entrée'!$C$336=\"(=NON)\",IF(U55<'1 Données d''entrée'!$C$334+1,0,T69*'1 Données d''entrée'!$C$332),T69*'1 Données d''entrée'!$C$332)","v":0},{"$f":"IF('1 Données d''entrée'!$C$336=\"(=NON)\",IF(V55<'1 Données d''entrée'!$C$334+1,0,U69*'1 Données d''entrée'!$C$332),U69*'1 Données d''entrée'!$C$332)","v":0}]
["Paiements d'intérêt avec des intérêts composés en cas d'absence des paiements dans la période de grâce",0,0,{"$f":"IF(D55='1 Données d''entrée'!$C$334+1,IF('1 Données d''entrée'!$C$336=\"(=NON)\",($B69*'1 Données d''entrée'!$C$332)*((('1 Données d''entrée'!$C$332+1)^'1 Données d''entrée'!$C$334-1)/('1 Données d''entrée'!$C$332))*(1+'1 Données d''entrée'!$C$332),0),0)","v":0},{"$f":"IF(E55='1 Données d''entrée'!$C$334+1,IF('1 Données d''entrée'!$C$336=\"(=NON)\",($B69*'1 Données d''entrée'!$C$332)*((('1 Données d''entrée'!$C$332+1)^'1 Données d''entrée'!$C$334-1)/('1 Données d''entrée'!$C$332))*(1+'1 Données d''entrée'!$C$332),0),0)","v":0},{"$f":"IF(F55='1 Données d''entrée'!$C$334+1,IF('1 Données d''entrée'!$C$336=\"(=NON)\",($B69*'1 Données d''entrée'!$C$332)*((('1 Données d''entrée'!$C$332+1)^'1 Données d''entrée'!$C$334-1)/('1 Données d''entrée'!$C$332))*(1+'1 Données d''entrée'!$C$332),0),0)","v":0},{"$f":"IF(G55='1 Données d''entrée'!$C$334+1,IF('1 Données d''entrée'!$C$336=\"(=NON)\",($B69*'1 Données d''entrée'!$C$332)*((('1 Données d''entrée'!$C$332+1)^'1 Données d''entrée'!$C$334-1)/('1 Données d''entrée'!$C$332))*(1+'1 Données d''entrée'!$C$332),0),0)","v":0},{"$f":"IF(H55='1 Données d''entrée'!$C$334+1,IF('1 Données d''entrée'!$C$336=\"(=NON)\",($B69*'1 Données d''entrée'!$C$332)*((('1 Données d''entrée'!$C$332+1)^'1 Données d''entrée'!$C$334-1)/('1 Données d''entrée'!$C$332))*(1+'1 Données d''entrée'!$C$332),0),0)","v":0},{"$f":"IF(I55='1 Données d''entrée'!$C$334+1,IF('1 Données d''entrée'!$C$336=\"(=NON)\",($B69*'1 Données d''entrée'!$C$332)*((('1 Données d''entrée'!$C$332+1)^'1 Données d''entrée'!$C$334-1)/('1 Données d''entrée'!$C$332))*(1+'1 Données d''entrée'!$C$332),0),0)","v":0},{"$f":"IF(J55='1 Données d''entrée'!$C$334+1,IF('1 Données d''entrée'!$C$336=\"(=NON)\",($B69*'1 Données d''entrée'!$C$332)*((('1 Données d''entrée'!$C$332+1)^'1 Données d''entrée'!$C$334-1)/('1 Données d''entrée'!$C$332))*(1+'1 Données d''entrée'!$C$332),0),0)","v":0},{"$f":"IF(K55='1 Données d''entrée'!$C$334+1,IF('1 Données d''entrée'!$C$336=\"(=NON)\",($B69*'1 Données d''entrée'!$C$332)*((('1 Données d''entrée'!$C$332+1)^'1 Données d''entrée'!$C$334-1)/('1 Données d''entrée'!$C$332))*(1+'1 Données d''entrée'!$C$332),0),0)","v":0},{"$f":"IF(L55='1 Données d''entrée'!$C$334+1,IF('1 Données d''entrée'!$C$336=\"(=NON)\",($B69*'1 Données d''entrée'!$C$332)*((('1 Données d''entrée'!$C$332+1)^'1 Données d''entrée'!$C$334-1)/('1 Données d''entrée'!$C$332))*(1+'1 Données d''entrée'!$C$332),0),0)","v":0},{"$f":"IF(M55='1 Données d''entrée'!$C$334+1,IF('1 Données d''entrée'!$C$336=\"(=NON)\",($B69*'1 Données d''entrée'!$C$332)*((('1 Données d''entrée'!$C$332+1)^'1 Données d''entrée'!$C$334-1)/('1 Données d''entrée'!$C$332))*(1+'1 Données d''entrée'!$C$332),0),0)","v":0},{"$f":"IF(N55='1 Données d''entrée'!$C$334+1,IF('1 Données d''entrée'!$C$336=\"(=NON)\",($B69*'1 Données d''entrée'!$C$332)*((('1 Données d''entrée'!$C$332+1)^'1 Données d''entrée'!$C$334-1)/('1 Données d''entrée'!$C$332))*(1+'1 Données d''entrée'!$C$332),0),0)","v":0},{"$f":"IF(O55='1 Données d''entrée'!$C$334+1,IF('1 Données d''entrée'!$C$336=\"(=NON)\",($B69*'1 Données d''entrée'!$C$332)*((('1 Données d''entrée'!$C$332+1)^'1 Données d''entrée'!$C$334-1)/('1 Données d''entrée'!$C$332))*(1+'1 Données d''entrée'!$C$332),0),0)","v":0},{"$f":"IF(P55='1 Données d''entrée'!$C$334+1,IF('1 Données d''entrée'!$C$336=\"(=NON)\",($B69*'1 Données d''entrée'!$C$332)*((('1 Données d''entrée'!$C$332+1)^'1 Données d''entrée'!$C$334-1)/('1 Données d''entrée'!$C$332))*(1+'1 Données d''entrée'!$C$332),0),0)","v":0},{"$f":"IF(Q55='1 Données d''entrée'!$C$334+1,IF('1 Données d''entrée'!$C$336=\"(=NON)\",($B69*'1 Données d''entrée'!$C$332)*((('1 Données d''entrée'!$C$332+1)^'1 Données d''entrée'!$C$334-1)/('1 Données d''entrée'!$C$332))*(1+'1 Données d''entrée'!$C$332),0),0)","v":0},{"$f":"IF(R55='1 Données d''entrée'!$C$334+1,IF('1 Données d''entrée'!$C$336=\"(=NON)\",($B69*'1 Données d''entrée'!$C$332)*((('1 Données d''entrée'!$C$332+1)^'1 Données d''entrée'!$C$334-1)/('1 Données d''entrée'!$C$332))*(1+'1 Données d''entrée'!$C$332),0),0)","v":0},{"$f":"IF(S55='1 Données d''entrée'!$C$334+1,IF('1 Données d''entrée'!$C$336=\"(=NON)\",($B69*'1 Données d''entrée'!$C$332)*((('1 Données d''entrée'!$C$332+1)^'1 Données d''entrée'!$C$334-1)/('1 Données d''entrée'!$C$332))*(1+'1 Données d''entrée'!$C$332),0),0)","v":0},{"$f":"IF(T55='1 Données d''entrée'!$C$334+1,IF('1 Données d''entrée'!$C$336=\"(=NON)\",($B69*'1 Données d''entrée'!$C$332)*((('1 Données d''entrée'!$C$332+1)^'1 Données d''entrée'!$C$334-1)/('1 Données d''entrée'!$C$332))*(1+'1 Données d''entrée'!$C$332),0),0)","v":0},{"$f":"IF(U55='1 Données d''entrée'!$C$334+1,IF('1 Données d''entrée'!$C$336=\"(=NON)\",($B69*'1 Données d''entrée'!$C$332)*((('1 Données d''entrée'!$C$332+1)^'1 Données d''entrée'!$C$334-1)/('1 Données d''entrée'!$C$332))*(1+'1 Données d''entrée'!$C$332),0),0)","v":0},{"$f":"IF(V55='1 Données d''entrée'!$C$334+1,IF('1 Données d''entrée'!$C$336=\"(=NON)\",($B69*'1 Données d''entrée'!$C$332)*((('1 Données d''entrée'!$C$332+1)^'1 Données d''entrée'!$C$334-1)/('1 Données d''entrée'!$C$332))*(1+'1 Données d''entrée'!$C$332),0),0)","v":0}]
["Prêt bancaire - Option 3: Remboursement vers l'annuité constante",{"$f":"'1 Données d''entrée'!$B$344","v":0},"% de prêt total"]
["Réception ",{"$f":"B49*B73","v":0},0,0,0,0,0,0,0,0,0,0,0,0,0,0,0,0,0,0,0,0]
["Remboursement vers l'annuité constante",{"$f":"IF(B55<'1 Données d''entrée'!$C$334+1,0,IF(B55<'1 Données d''entrée'!$C$333+'1 Données d''entrée'!$C$334+1,$B74*('1 Données d''entrée'!$C$332*(1+'1 Données d''entrée'!$C$332)^'1 Données d''entrée'!$C$333)/((1+'1 Données d''entrée'!$C$332)^'1 Données d''entrée'!$C$333-1),0))","v":0},{"$f":"IF(C55<'1 Données d''entrée'!$C$334+1,0,IF(C55<'1 Données d''entrée'!$C$333+'1 Données d''entrée'!$C$334+1,$B74*('1 Données d''entrée'!$C$332*(1+'1 Données d''entrée'!$C$332)^'1 Données d''entrée'!$C$333)/((1+'1 Données d''entrée'!$C$332)^'1 Données d''entrée'!$C$333-1),0))","v":0},{"$f":"IF(D55<'1 Données d''entrée'!$C$334+1,0,IF(D55<'1 Données d''entrée'!$C$333+'1 Données d''entrée'!$C$334+1,$B74*('1 Données d''entrée'!$C$332*(1+'1 Données d''entrée'!$C$332)^'1 Données d''entrée'!$C$333)/((1+'1 Données d''entrée'!$C$332)^'1 Données d''entrée'!$C$333-1),0))","v":0},{"$f":"IF(E55<'1 Données d''entrée'!$C$334+1,0,IF(E55<'1 Données d''entrée'!$C$333+'1 Données d''entrée'!$C$334+1,$B74*('1 Données d''entrée'!$C$332*(1+'1 Données d''entrée'!$C$332)^'1 Données d''entrée'!$C$333)/((1+'1 Données d''entrée'!$C$332)^'1 Données d''entrée'!$C$333-1),0))","v":0},{"$f":"IF(F55<'1 Données d''entrée'!$C$334+1,0,IF(F55<'1 Données d''entrée'!$C$333+'1 Données d''entrée'!$C$334+1,$B74*('1 Données d''entrée'!$C$332*(1+'1 Données d''entrée'!$C$332)^'1 Données d''entrée'!$C$333)/((1+'1 Données d''entrée'!$C$332)^'1 Données d''entrée'!$C$333-1),0))","v":0},{"$f":"IF(G55<'1 Données d''entrée'!$C$334+1,0,IF(G55<'1 Données d''entrée'!$C$333+'1 Données d''entrée'!$C$334+1,$B74*('1 Données d''entrée'!$C$332*(1+'1 Données d''entrée'!$C$332)^'1 Données d''entrée'!$C$333)/((1+'1 Données d''entrée'!$C$332)^'1 Données d''entrée'!$C$333-1),0))","v":0},{"$f":"IF(H55<'1 Données d''entrée'!$C$334+1,0,IF(H55<'1 Données d''entrée'!$C$333+'1 Données d''entrée'!$C$334+1,$B74*('1 Données d''entrée'!$C$332*(1+'1 Données d''entrée'!$C$332)^'1 Données d''entrée'!$C$333)/((1+'1 Données d''entrée'!$C$332)^'1 Données d''entrée'!$C$333-1),0))","v":0},{"$f":"IF(I55<'1 Données d''entrée'!$C$334+1,0,IF(I55<'1 Données d''entrée'!$C$333+'1 Données d''entrée'!$C$334+1,$B74*('1 Données d''entrée'!$C$332*(1+'1 Données d''entrée'!$C$332)^'1 Données d''entrée'!$C$333)/((1+'1 Données d''entrée'!$C$332)^'1 Données d''entrée'!$C$333-1),0))","v":0},{"$f":"IF(J55<'1 Données d''entrée'!$C$334+1,0,IF(J55<'1 Données d''entrée'!$C$333+'1 Données d''entrée'!$C$334+1,$B74*('1 Données d''entrée'!$C$332*(1+'1 Données d''entrée'!$C$332)^'1 Données d''entrée'!$C$333)/((1+'1 Données d''entrée'!$C$332)^'1 Données d''entrée'!$C$333-1),0))","v":0},{"$f":"IF(K55<'1 Données d''entrée'!$C$334+1,0,IF(K55<'1 Données d''entrée'!$C$333+'1 Données d''entrée'!$C$334+1,$B74*('1 Données d''entrée'!$C$332*(1+'1 Données d''entrée'!$C$332)^'1 Données d''entrée'!$C$333)/((1+'1 Données d''entrée'!$C$332)^'1 Données d''entrée'!$C$333-1),0))","v":0},{"$f":"IF(L55<'1 Données d''entrée'!$C$334+1,0,IF(L55<'1 Données d''entrée'!$C$333+'1 Données d''entrée'!$C$334+1,$B74*('1 Données d''entrée'!$C$332*(1+'1 Données d''entrée'!$C$332)^'1 Données d''entrée'!$C$333)/((1+'1 Données d''entrée'!$C$332)^'1 Données d''entrée'!$C$333-1),0))","v":0},{"$f":"IF(M55<'1 Données d''entrée'!$C$334+1,0,IF(M55<'1 Données d''entrée'!$C$333+'1 Données d''entrée'!$C$334+1,$B74*('1 Données d''entrée'!$C$332*(1+'1 Données d''entrée'!$C$332)^'1 Données d''entrée'!$C$333)/((1+'1 Données d''entrée'!$C$332)^'1 Données d''entrée'!$C$333-1),0))","v":0},{"$f":"IF(N55<'1 Données d''entrée'!$C$334+1,0,IF(N55<'1 Données d''entrée'!$C$333+'1 Données d''entrée'!$C$334+1,$B74*('1 Données d''entrée'!$C$332*(1+'1 Données d''entrée'!$C$332)^'1 Données d''entrée'!$C$333)/((1+'1 Données d''entrée'!$C$332)^'1 Données d''entrée'!$C$333-1),0))","v":0},{"$f":"IF(O55<'1 Données d''entrée'!$C$334+1,0,IF(O55<'1 Données d''entrée'!$C$333+'1 Données d''entrée'!$C$334+1,$B74*('1 Données d''entrée'!$C$332*(1+'1 Données d''entrée'!$C$332)^'1 Données d''entrée'!$C$333)/((1+'1 Données d''entrée'!$C$332)^'1 Données d''entrée'!$C$333-1),0))","v":0},{"$f":"IF(P55<'1 Données d''entrée'!$C$334+1,0,IF(P55<'1 Données d''entrée'!$C$333+'1 Données d''entrée'!$C$334+1,$B74*('1 Données d''entrée'!$C$332*(1+'1 Données d''entrée'!$C$332)^'1 Données d''entrée'!$C$333)/((1+'1 Données d''entrée'!$C$332)^'1 Données d''entrée'!$C$333-1),0))","v":0},{"$f":"IF(Q55<'1 Données d''entrée'!$C$334+1,0,IF(Q55<'1 Données d''entrée'!$C$333+'1 Données d''entrée'!$C$334+1,$B74*('1 Données d''entrée'!$C$332*(1+'1 Données d''entrée'!$C$332)^'1 Données d''entrée'!$C$333)/((1+'1 Données d''entrée'!$C$332)^'1 Données d''entrée'!$C$333-1),0))","v":0},{"$f":"IF(R55<'1 Données d''entrée'!$C$334+1,0,IF(R55<'1 Données d''entrée'!$C$333+'1 Données d''entrée'!$C$334+1,$B74*('1 Données d''entrée'!$C$332*(1+'1 Données d''entrée'!$C$332)^'1 Données d''entrée'!$C$333)/((1+'1 Données d''entrée'!$C$332)^'1 Données d''entrée'!$C$333-1),0))","v":0},{"$f":"IF(S55<'1 Données d''entrée'!$C$334+1,0,IF(S55<'1 Données d''entrée'!$C$333+'1 Données d''entrée'!$C$334+1,$B74*('1 Données d''entrée'!$C$332*(1+'1 Données d''entrée'!$C$332)^'1 Données d''entrée'!$C$333)/((1+'1 Données d''entrée'!$C$332)^'1 Données d''entrée'!$C$333-1),0))","v":0},{"$f":"IF(T55<'1 Données d''entrée'!$C$334+1,0,IF(T55<'1 Données d''entrée'!$C$333+'1 Données d''entrée'!$C$334+1,$B74*('1 Données d''entrée'!$C$332*(1+'1 Données d''entrée'!$C$332)^'1 Données d''entrée'!$C$333)/((1+'1 Données d''entrée'!$C$332)^'1 Données d''entrée'!$C$333-1),0))","v":0},{"$f":"IF(U55<'1 Données d''entrée'!$C$334+1,0,IF(U55<'1 Données d''entrée'!$C$333+'1 Données d''entrée'!$C$334+1,$B74*('1 Données d''entrée'!$C$332*(1+'1 Données d''entrée'!$C$332)^'1 Données d''entrée'!$C$333)/((1+'1 Données d''entrée'!$C$332)^'1 Données d''entrée'!$C$333-1),0))","v":0},{"$f":"IF(V55<'1 Données d''entrée'!$C$334+1,0,IF(V55<'1 Données d''entrée'!$C$333+'1 Données d''entrée'!$C$334+1,$B74*('1 Données d''entrée'!$C$332*(1+'1 Données d''entrée'!$C$332)^'1 Données d''entrée'!$C$333)/((1+'1 Données d''entrée'!$C$332)^'1 Données d''entrée'!$C$333-1),0))","v":0}]
["Paiement d'intérêt décroissant inclu dans l'annuité constante",0,{"$f":"IF('1 Données d''entrée'!$C$336=\"(=NON)\",IF(C75>0,$B74*((('1 Données d''entrée'!$C$332+1)^'1 Données d''entrée'!$C$333)-(1+'1 Données d''entrée'!$C$332)^('6 Financement'!C$54-1-'1 Données d''entrée'!$C$334))/((1+'1 Données d''entrée'!$C$332)^'1 Données d''entrée'!$C$333-1)*'1 Données d''entrée'!$C$332,0),IF(C55<'1 Données d''entrée'!$C$334+1,'1 Données d''entrée'!$C$332*'6 Financement'!$B74,IF(C75>0,$B$73*((('1 Données d''entrée'!$C$332+1)^'1 Données d''entrée'!$C$333)-(1+'1 Données d''entrée'!$C$332)^('6 Financement'!C$54-1-'1 Données d''entrée'!$C$334))/((1+'1 Données d''entrée'!$C$332)^'1 Données d''entrée'!$C$333-1)*'1 Données d''entrée'!$C$332,0)))","v":0},{"$f":"IF('1 Données d''entrée'!$C$336=\"(=NON)\",IF(D75>0,$B74*((('1 Données d''entrée'!$C$332+1)^'1 Données d''entrée'!$C$333)-(1+'1 Données d''entrée'!$C$332)^('6 Financement'!D$54-1-'1 Données d''entrée'!$C$334))/((1+'1 Données d''entrée'!$C$332)^'1 Données d''entrée'!$C$333-1)*'1 Données d''entrée'!$C$332,0),IF(D55<'1 Données d''entrée'!$C$334+1,'1 Données d''entrée'!$C$332*'6 Financement'!$B74,IF(D75>0,$B$73*((('1 Données d''entrée'!$C$332+1)^'1 Données d''entrée'!$C$333)-(1+'1 Données d''entrée'!$C$332)^('6 Financement'!D$54-1-'1 Données d''entrée'!$C$334))/((1+'1 Données d''entrée'!$C$332)^'1 Données d''entrée'!$C$333-1)*'1 Données d''entrée'!$C$332,0)))","v":0},{"$f":"IF('1 Données d''entrée'!$C$336=\"(=NON)\",IF(E75>0,$B74*((('1 Données d''entrée'!$C$332+1)^'1 Données d''entrée'!$C$333)-(1+'1 Données d''entrée'!$C$332)^('6 Financement'!E$54-1-'1 Données d''entrée'!$C$334))/((1+'1 Données d''entrée'!$C$332)^'1 Données d''entrée'!$C$333-1)*'1 Données d''entrée'!$C$332,0),IF(E55<'1 Données d''entrée'!$C$334+1,'1 Données d''entrée'!$C$332*'6 Financement'!$B74,IF(E75>0,$B$73*((('1 Données d''entrée'!$C$332+1)^'1 Données d''entrée'!$C$333)-(1+'1 Données d''entrée'!$C$332)^('6 Financement'!E$54-1-'1 Données d''entrée'!$C$334))/((1+'1 Données d''entrée'!$C$332)^'1 Données d''entrée'!$C$333-1)*'1 Données d''entrée'!$C$332,0)))","v":0},{"$f":"IF('1 Données d''entrée'!$C$336=\"(=NON)\",IF(F75>0,$B74*((('1 Données d''entrée'!$C$332+1)^'1 Données d''entrée'!$C$333)-(1+'1 Données d''entrée'!$C$332)^('6 Financement'!F$54-1-'1 Données d''entrée'!$C$334))/((1+'1 Données d''entrée'!$C$332)^'1 Données d''entrée'!$C$333-1)*'1 Données d''entrée'!$C$332,0),IF(F55<'1 Données d''entrée'!$C$334+1,'1 Données d''entrée'!$C$332*'6 Financement'!$B74,IF(F75>0,$B$73*((('1 Données d''entrée'!$C$332+1)^'1 Données d''entrée'!$C$333)-(1+'1 Données d''entrée'!$C$332)^('6 Financement'!F$54-1-'1 Données d''entrée'!$C$334))/((1+'1 Données d''entrée'!$C$332)^'1 Données d''entrée'!$C$333-1)*'1 Données d''entrée'!$C$332,0)))","v":0},{"$f":"IF('1 Données d''entrée'!$C$336=\"(=NON)\",IF(G75>0,$B74*((('1 Données d''entrée'!$C$332+1)^'1 Données d''entrée'!$C$333)-(1+'1 Données d''entrée'!$C$332)^('6 Financement'!G$54-1-'1 Données d''entrée'!$C$334))/((1+'1 Données d''entrée'!$C$332)^'1 Données d''entrée'!$C$333-1)*'1 Données d''entrée'!$C$332,0),IF(G55<'1 Données d''entrée'!$C$334+1,'1 Données d''entrée'!$C$332*'6 Financement'!$B74,IF(G75>0,$B$73*((('1 Données d''entrée'!$C$332+1)^'1 Données d''entrée'!$C$333)-(1+'1 Données d''entrée'!$C$332)^('6 Financement'!G$54-1-'1 Données d''entrée'!$C$334))/((1+'1 Données d''entrée'!$C$332)^'1 Données d''entrée'!$C$333-1)*'1 Données d''entrée'!$C$332,0)))","v":0},{"$f":"IF('1 Données d''entrée'!$C$336=\"(=NON)\",IF(H75>0,$B74*((('1 Données d''entrée'!$C$332+1)^'1 Données d''entrée'!$C$333)-(1+'1 Données d''entrée'!$C$332)^('6 Financement'!H$54-1-'1 Données d''entrée'!$C$334))/((1+'1 Données d''entrée'!$C$332)^'1 Données d''entrée'!$C$333-1)*'1 Données d''entrée'!$C$332,0),IF(H55<'1 Données d''entrée'!$C$334+1,'1 Données d''entrée'!$C$332*'6 Financement'!$B74,IF(H75>0,$B$73*((('1 Données d''entrée'!$C$332+1)^'1 Données d''entrée'!$C$333)-(1+'1 Données d''entrée'!$C$332)^('6 Financement'!H$54-1-'1 Données d''entrée'!$C$334))/((1+'1 Données d''entrée'!$C$332)^'1 Données d''entrée'!$C$333-1)*'1 Données d''entrée'!$C$332,0)))","v":0},{"$f":"IF('1 Données d''entrée'!$C$336=\"(=NON)\",IF(I75>0,$B74*((('1 Données d''entrée'!$C$332+1)^'1 Données d''entrée'!$C$333)-(1+'1 Données d''entrée'!$C$332)^('6 Financement'!I$54-1-'1 Données d''entrée'!$C$334))/((1+'1 Données d''entrée'!$C$332)^'1 Données d''entrée'!$C$333-1)*'1 Données d''entrée'!$C$332,0),IF(I55<'1 Données d''entrée'!$C$334+1,'1 Données d''entrée'!$C$332*'6 Financement'!$B74,IF(I75>0,$B$73*((('1 Données d''entrée'!$C$332+1)^'1 Données d''entrée'!$C$333)-(1+'1 Données d''entrée'!$C$332)^('6 Financement'!I$54-1-'1 Données d''entrée'!$C$334))/((1+'1 Données d''entrée'!$C$332)^'1 Données d''entrée'!$C$333-1)*'1 Données d''entrée'!$C$332,0)))","v":0},{"$f":"IF('1 Données d''entrée'!$C$336=\"(=NON)\",IF(J75>0,$B74*((('1 Données d''entrée'!$C$332+1)^'1 Données d''entrée'!$C$333)-(1+'1 Données d''entrée'!$C$332)^('6 Financement'!J$54-1-'1 Données d''entrée'!$C$334))/((1+'1 Données d''entrée'!$C$332)^'1 Données d''entrée'!$C$333-1)*'1 Données d''entrée'!$C$332,0),IF(J55<'1 Données d''entrée'!$C$334+1,'1 Données d''entrée'!$C$332*'6 Financement'!$B74,IF(J75>0,$B$73*((('1 Données d''entrée'!$C$332+1)^'1 Données d''entrée'!$C$333)-(1+'1 Données d''entrée'!$C$332)^('6 Financement'!J$54-1-'1 Données d''entrée'!$C$334))/((1+'1 Données d''entrée'!$C$332)^'1 Données d''entrée'!$C$333-1)*'1 Données d''entrée'!$C$332,0)))","v":0},{"$f":"IF('1 Données d''entrée'!$C$336=\"(=NON)\",IF(K75>0,$B74*((('1 Données d''entrée'!$C$332+1)^'1 Données d''entrée'!$C$333)-(1+'1 Données d''entrée'!$C$332)^('6 Financement'!K$54-1-'1 Données d''entrée'!$C$334))/((1+'1 Données d''entrée'!$C$332)^'1 Données d''entrée'!$C$333-1)*'1 Données d''entrée'!$C$332,0),IF(K55<'1 Données d''entrée'!$C$334+1,'1 Données d''entrée'!$C$332*'6 Financement'!$B74,IF(K75>0,$B$73*((('1 Données d''entrée'!$C$332+1)^'1 Données d''entrée'!$C$333)-(1+'1 Données d''entrée'!$C$332)^('6 Financement'!K$54-1-'1 Données d''entrée'!$C$334))/((1+'1 Données d''entrée'!$C$332)^'1 Données d''entrée'!$C$333-1)*'1 Données d''entrée'!$C$332,0)))","v":0},{"$f":"IF('1 Données d''entrée'!$C$336=\"(=NON)\",IF(L75>0,$B74*((('1 Données d''entrée'!$C$332+1)^'1 Données d''entrée'!$C$333)-(1+'1 Données d''entrée'!$C$332)^('6 Financement'!L$54-1-'1 Données d''entrée'!$C$334))/((1+'1 Données d''entrée'!$C$332)^'1 Données d''entrée'!$C$333-1)*'1 Données d''entrée'!$C$332,0),IF(L55<'1 Données d''entrée'!$C$334+1,'1 Données d''entrée'!$C$332*'6 Financement'!$B74,IF(L75>0,$B$73*((('1 Données d''entrée'!$C$332+1)^'1 Données d''entrée'!$C$333)-(1+'1 Données d''entrée'!$C$332)^('6 Financement'!L$54-1-'1 Données d''entrée'!$C$334))/((1+'1 Données d''entrée'!$C$332)^'1 Données d''entrée'!$C$333-1)*'1 Données d''entrée'!$C$332,0)))","v":0},{"$f":"IF('1 Données d''entrée'!$C$336=\"(=NON)\",IF(M75>0,$B74*((('1 Données d''entrée'!$C$332+1)^'1 Données d''entrée'!$C$333)-(1+'1 Données d''entrée'!$C$332)^('6 Financement'!M$54-1-'1 Données d''entrée'!$C$334))/((1+'1 Données d''entrée'!$C$332)^'1 Données d''entrée'!$C$333-1)*'1 Données d''entrée'!$C$332,0),IF(M55<'1 Données d''entrée'!$C$334+1,'1 Données d''entrée'!$C$332*'6 Financement'!$B74,IF(M75>0,$B$73*((('1 Données d''entrée'!$C$332+1)^'1 Données d''entrée'!$C$333)-(1+'1 Données d''entrée'!$C$332)^('6 Financement'!M$54-1-'1 Données d''entrée'!$C$334))/((1+'1 Données d''entrée'!$C$332)^'1 Données d''entrée'!$C$333-1)*'1 Données d''entrée'!$C$332,0)))","v":0},{"$f":"IF('1 Données d''entrée'!$C$336=\"(=NON)\",IF(N75>0,$B74*((('1 Données d''entrée'!$C$332+1)^'1 Données d''entrée'!$C$333)-(1+'1 Données d''entrée'!$C$332)^('6 Financement'!N$54-1-'1 Données d''entrée'!$C$334))/((1+'1 Données d''entrée'!$C$332)^'1 Données d''entrée'!$C$333-1)*'1 Données d''entrée'!$C$332,0),IF(N55<'1 Données d''entrée'!$C$334+1,'1 Données d''entrée'!$C$332*'6 Financement'!$B74,IF(N75>0,$B$73*((('1 Données d''entrée'!$C$332+1)^'1 Données d''entrée'!$C$333)-(1+'1 Données d''entrée'!$C$332)^('6 Financement'!N$54-1-'1 Données d''entrée'!$C$334))/((1+'1 Données d''entrée'!$C$332)^'1 Données d''entrée'!$C$333-1)*'1 Données d''entrée'!$C$332,0)))","v":0},{"$f":"IF('1 Données d''entrée'!$C$336=\"(=NON)\",IF(O75>0,$B74*((('1 Données d''entrée'!$C$332+1)^'1 Données d''entrée'!$C$333)-(1+'1 Données d''entrée'!$C$332)^('6 Financement'!O$54-1-'1 Données d''entrée'!$C$334))/((1+'1 Données d''entrée'!$C$332)^'1 Données d''entrée'!$C$333-1)*'1 Données d''entrée'!$C$332,0),IF(O55<'1 Données d''entrée'!$C$334+1,'1 Données d''entrée'!$C$332*'6 Financement'!$B74,IF(O75>0,$B$73*((('1 Données d''entrée'!$C$332+1)^'1 Données d''entrée'!$C$333)-(1+'1 Données d''entrée'!$C$332)^('6 Financement'!O$54-1-'1 Données d''entrée'!$C$334))/((1+'1 Données d''entrée'!$C$332)^'1 Données d''entrée'!$C$333-1)*'1 Données d''entrée'!$C$332,0)))","v":0},{"$f":"IF('1 Données d''entrée'!$C$336=\"(=NON)\",IF(P75>0,$B74*((('1 Données d''entrée'!$C$332+1)^'1 Données d''entrée'!$C$333)-(1+'1 Données d''entrée'!$C$332)^('6 Financement'!P$54-1-'1 Données d''entrée'!$C$334))/((1+'1 Données d''entrée'!$C$332)^'1 Données d''entrée'!$C$333-1)*'1 Données d''entrée'!$C$332,0),IF(P55<'1 Données d''entrée'!$C$334+1,'1 Données d''entrée'!$C$332*'6 Financement'!$B74,IF(P75>0,$B$73*((('1 Données d''entrée'!$C$332+1)^'1 Données d''entrée'!$C$333)-(1+'1 Données d''entrée'!$C$332)^('6 Financement'!P$54-1-'1 Données d''entrée'!$C$334))/((1+'1 Données d''entrée'!$C$332)^'1 Données d''entrée'!$C$333-1)*'1 Données d''entrée'!$C$332,0)))","v":0},{"$f":"IF('1 Données d''entrée'!$C$336=\"(=NON)\",IF(Q75>0,$B74*((('1 Données d''entrée'!$C$332+1)^'1 Données d''entrée'!$C$333)-(1+'1 Données d''entrée'!$C$332)^('6 Financement'!Q$54-1-'1 Données d''entrée'!$C$334))/((1+'1 Données d''entrée'!$C$332)^'1 Données d''entrée'!$C$333-1)*'1 Données d''entrée'!$C$332,0),IF(Q55<'1 Données d''entrée'!$C$334+1,'1 Données d''entrée'!$C$332*'6 Financement'!$B74,IF(Q75>0,$B$73*((('1 Données d''entrée'!$C$332+1)^'1 Données d''entrée'!$C$333)-(1+'1 Données d''entrée'!$C$332)^('6 Financement'!Q$54-1-'1 Données d''entrée'!$C$334))/((1+'1 Données d''entrée'!$C$332)^'1 Données d''entrée'!$C$333-1)*'1 Données d''entrée'!$C$332,0)))","v":0},{"$f":"IF('1 Données d''entrée'!$C$336=\"(=NON)\",IF(R75>0,$B74*((('1 Données d''entrée'!$C$332+1)^'1 Données d''entrée'!$C$333)-(1+'1 Données d''entrée'!$C$332)^('6 Financement'!R$54-1-'1 Données d''entrée'!$C$334))/((1+'1 Données d''entrée'!$C$332)^'1 Données d''entrée'!$C$333-1)*'1 Données d''entrée'!$C$332,0),IF(R55<'1 Données d''entrée'!$C$334+1,'1 Données d''entrée'!$C$332*'6 Financement'!$B74,IF(R75>0,$B$73*((('1 Données d''entrée'!$C$332+1)^'1 Données d''entrée'!$C$333)-(1+'1 Données d''entrée'!$C$332)^('6 Financement'!R$54-1-'1 Données d''entrée'!$C$334))/((1+'1 Données d''entrée'!$C$332)^'1 Données d''entrée'!$C$333-1)*'1 Données d''entrée'!$C$332,0)))","v":0},{"$f":"IF('1 Données d''entrée'!$C$336=\"(=NON)\",IF(S75>0,$B74*((('1 Données d''entrée'!$C$332+1)^'1 Données d''entrée'!$C$333)-(1+'1 Données d''entrée'!$C$332)^('6 Financement'!S$54-1-'1 Données d''entrée'!$C$334))/((1+'1 Données d''entrée'!$C$332)^'1 Données d''entrée'!$C$333-1)*'1 Données d''entrée'!$C$332,0),IF(S55<'1 Données d''entrée'!$C$334+1,'1 Données d''entrée'!$C$332*'6 Financement'!$B74,IF(S75>0,$B$73*((('1 Données d''entrée'!$C$332+1)^'1 Données d''entrée'!$C$333)-(1+'1 Données d''entrée'!$C$332)^('6 Financement'!S$54-1-'1 Données d''entrée'!$C$334))/((1+'1 Données d''entrée'!$C$332)^'1 Données d''entrée'!$C$333-1)*'1 Données d''entrée'!$C$332,0)))","v":0},{"$f":"IF('1 Données d''entrée'!$C$336=\"(=NON)\",IF(T75>0,$B74*((('1 Données d''entrée'!$C$332+1)^'1 Données d''entrée'!$C$333)-(1+'1 Données d''entrée'!$C$332)^('6 Financement'!T$54-1-'1 Données d''entrée'!$C$334))/((1+'1 Données d''entrée'!$C$332)^'1 Données d''entrée'!$C$333-1)*'1 Données d''entrée'!$C$332,0),IF(T55<'1 Données d''entrée'!$C$334+1,'1 Données d''entrée'!$C$332*'6 Financement'!$B74,IF(T75>0,$B$73*((('1 Données d''entrée'!$C$332+1)^'1 Données d''entrée'!$C$333)-(1+'1 Données d''entrée'!$C$332)^('6 Financement'!T$54-1-'1 Données d''entrée'!$C$334))/((1+'1 Données d''entrée'!$C$332)^'1 Données d''entrée'!$C$333-1)*'1 Données d''entrée'!$C$332,0)))","v":0},{"$f":"IF('1 Données d''entrée'!$C$336=\"(=NON)\",IF(U75>0,$B74*((('1 Données d''entrée'!$C$332+1)^'1 Données d''entrée'!$C$333)-(1+'1 Données d''entrée'!$C$332)^('6 Financement'!U$54-1-'1 Données d''entrée'!$C$334))/((1+'1 Données d''entrée'!$C$332)^'1 Données d''entrée'!$C$333-1)*'1 Données d''entrée'!$C$332,0),IF(U55<'1 Données d''entrée'!$C$334+1,'1 Données d''entrée'!$C$332*'6 Financement'!$B74,IF(U75>0,$B$73*((('1 Données d''entrée'!$C$332+1)^'1 Données d''entrée'!$C$333)-(1+'1 Données d''entrée'!$C$332)^('6 Financement'!U$54-1-'1 Données d''entrée'!$C$334))/((1+'1 Données d''entrée'!$C$332)^'1 Données d''entrée'!$C$333-1)*'1 Données d''entrée'!$C$332,0)))","v":0},{"$f":"IF('1 Données d''entrée'!$C$336=\"(=NON)\",IF(V75>0,$B74*((('1 Données d''entrée'!$C$332+1)^'1 Données d''entrée'!$C$333)-(1+'1 Données d''entrée'!$C$332)^('6 Financement'!V$54-1-'1 Données d''entrée'!$C$334))/((1+'1 Données d''entrée'!$C$332)^'1 Données d''entrée'!$C$333-1)*'1 Données d''entrée'!$C$332,0),IF(V55<'1 Données d''entrée'!$C$334+1,'1 Données d''entrée'!$C$332*'6 Financement'!$B74,IF(V75>0,$B$73*((('1 Données d''entrée'!$C$332+1)^'1 Données d''entrée'!$C$333)-(1+'1 Données d''entrée'!$C$332)^('6 Financement'!V$54-1-'1 Données d''entrée'!$C$334))/((1+'1 Données d''entrée'!$C$332)^'1 Données d''entrée'!$C$333-1)*'1 Données d''entrée'!$C$332,0)))","v":0}]
["Paiements d'intérêt avec des intérêts composés en cas d'absence des paiements dans la période de grâce",0,0,{"$f":"IF(D55='1 Données d''entrée'!$C$334+1,IF('1 Données d''entrée'!$C$336=\"(=NON)\",($B74*'1 Données d''entrée'!$C$332)*((('1 Données d''entrée'!$C$332+1)^'1 Données d''entrée'!$C$334-1)/('1 Données d''entrée'!$C$332))*(1+'1 Données d''entrée'!$C$332),0),0)","v":0},{"$f":"IF(E55='1 Données d''entrée'!$C$334+1,IF('1 Données d''entrée'!$C$336=\"(=NON)\",($B74*'1 Données d''entrée'!$C$332)*((('1 Données d''entrée'!$C$332+1)^'1 Données d''entrée'!$C$334-1)/('1 Données d''entrée'!$C$332))*(1+'1 Données d''entrée'!$C$332),0),0)","v":0},{"$f":"IF(F55='1 Données d''entrée'!$C$334+1,IF('1 Données d''entrée'!$C$336=\"(=NON)\",($B74*'1 Données d''entrée'!$C$332)*((('1 Données d''entrée'!$C$332+1)^'1 Données d''entrée'!$C$334-1)/('1 Données d''entrée'!$C$332))*(1+'1 Données d''entrée'!$C$332),0),0)","v":0},{"$f":"IF(G55='1 Données d''entrée'!$C$334+1,IF('1 Données d''entrée'!$C$336=\"(=NON)\",($B74*'1 Données d''entrée'!$C$332)*((('1 Données d''entrée'!$C$332+1)^'1 Données d''entrée'!$C$334-1)/('1 Données d''entrée'!$C$332))*(1+'1 Données d''entrée'!$C$332),0),0)","v":0},{"$f":"IF(H55='1 Données d''entrée'!$C$334+1,IF('1 Données d''entrée'!$C$336=\"(=NON)\",($B74*'1 Données d''entrée'!$C$332)*((('1 Données d''entrée'!$C$332+1)^'1 Données d''entrée'!$C$334-1)/('1 Données d''entrée'!$C$332))*(1+'1 Données d''entrée'!$C$332),0),0)","v":0},{"$f":"IF(I55='1 Données d''entrée'!$C$334+1,IF('1 Données d''entrée'!$C$336=\"(=NON)\",($B74*'1 Données d''entrée'!$C$332)*((('1 Données d''entrée'!$C$332+1)^'1 Données d''entrée'!$C$334-1)/('1 Données d''entrée'!$C$332))*(1+'1 Données d''entrée'!$C$332),0),0)","v":0},{"$f":"IF(J55='1 Données d''entrée'!$C$334+1,IF('1 Données d''entrée'!$C$336=\"(=NON)\",($B74*'1 Données d''entrée'!$C$332)*((('1 Données d''entrée'!$C$332+1)^'1 Données d''entrée'!$C$334-1)/('1 Données d''entrée'!$C$332))*(1+'1 Données d''entrée'!$C$332),0),0)","v":0},{"$f":"IF(K55='1 Données d''entrée'!$C$334+1,IF('1 Données d''entrée'!$C$336=\"(=NON)\",($B74*'1 Données d''entrée'!$C$332)*((('1 Données d''entrée'!$C$332+1)^'1 Données d''entrée'!$C$334-1)/('1 Données d''entrée'!$C$332))*(1+'1 Données d''entrée'!$C$332),0),0)","v":0},{"$f":"IF(L55='1 Données d''entrée'!$C$334+1,IF('1 Données d''entrée'!$C$336=\"(=NON)\",($B74*'1 Données d''entrée'!$C$332)*((('1 Données d''entrée'!$C$332+1)^'1 Données d''entrée'!$C$334-1)/('1 Données d''entrée'!$C$332))*(1+'1 Données d''entrée'!$C$332),0),0)","v":0},{"$f":"IF(M55='1 Données d''entrée'!$C$334+1,IF('1 Données d''entrée'!$C$336=\"(=NON)\",($B74*'1 Données d''entrée'!$C$332)*((('1 Données d''entrée'!$C$332+1)^'1 Données d''entrée'!$C$334-1)/('1 Données d''entrée'!$C$332))*(1+'1 Données d''entrée'!$C$332),0),0)","v":0},{"$f":"IF(N55='1 Données d''entrée'!$C$334+1,IF('1 Données d''entrée'!$C$336=\"(=NON)\",($B74*'1 Données d''entrée'!$C$332)*((('1 Données d''entrée'!$C$332+1)^'1 Données d''entrée'!$C$334-1)/('1 Données d''entrée'!$C$332))*(1+'1 Données d''entrée'!$C$332),0),0)","v":0},{"$f":"IF(O55='1 Données d''entrée'!$C$334+1,IF('1 Données d''entrée'!$C$336=\"(=NON)\",($B74*'1 Données d''entrée'!$C$332)*((('1 Données d''entrée'!$C$332+1)^'1 Données d''entrée'!$C$334-1)/('1 Données d''entrée'!$C$332))*(1+'1 Données d''entrée'!$C$332),0),0)","v":0},{"$f":"IF(P55='1 Données d''entrée'!$C$334+1,IF('1 Données d''entrée'!$C$336=\"(=NON)\",($B74*'1 Données d''entrée'!$C$332)*((('1 Données d''entrée'!$C$332+1)^'1 Données d''entrée'!$C$334-1)/('1 Données d''entrée'!$C$332))*(1+'1 Données d''entrée'!$C$332),0),0)","v":0},{"$f":"IF(Q55='1 Données d''entrée'!$C$334+1,IF('1 Données d''entrée'!$C$336=\"(=NON)\",($B74*'1 Données d''entrée'!$C$332)*((('1 Données d''entrée'!$C$332+1)^'1 Données d''entrée'!$C$334-1)/('1 Données d''entrée'!$C$332))*(1+'1 Données d''entrée'!$C$332),0),0)","v":0},{"$f":"IF(R55='1 Données d''entrée'!$C$334+1,IF('1 Données d''entrée'!$C$336=\"(=NON)\",($B74*'1 Données d''entrée'!$C$332)*((('1 Données d''entrée'!$C$332+1)^'1 Données d''entrée'!$C$334-1)/('1 Données d''entrée'!$C$332))*(1+'1 Données d''entrée'!$C$332),0),0)","v":0},{"$f":"IF(S55='1 Données d''entrée'!$C$334+1,IF('1 Données d''entrée'!$C$336=\"(=NON)\",($B74*'1 Données d''entrée'!$C$332)*((('1 Données d''entrée'!$C$332+1)^'1 Données d''entrée'!$C$334-1)/('1 Données d''entrée'!$C$332))*(1+'1 Données d''entrée'!$C$332),0),0)","v":0},{"$f":"IF(T55='1 Données d''entrée'!$C$334+1,IF('1 Données d''entrée'!$C$336=\"(=NON)\",($B74*'1 Données d''entrée'!$C$332)*((('1 Données d''entrée'!$C$332+1)^'1 Données d''entrée'!$C$334-1)/('1 Données d''entrée'!$C$332))*(1+'1 Données d''entrée'!$C$332),0),0)","v":0},{"$f":"IF(U55='1 Données d''entrée'!$C$334+1,IF('1 Données d''entrée'!$C$336=\"(=NON)\",($B74*'1 Données d''entrée'!$C$332)*((('1 Données d''entrée'!$C$332+1)^'1 Données d''entrée'!$C$334-1)/('1 Données d''entrée'!$C$332))*(1+'1 Données d''entrée'!$C$332),0),0)","v":0},{"$f":"IF(V55='1 Données d''entrée'!$C$334+1,IF('1 Données d''entrée'!$C$336=\"(=NON)\",($B74*'1 Données d''entrée'!$C$332)*((('1 Données d''entrée'!$C$332+1)^'1 Données d''entrée'!$C$334-1)/('1 Données d''entrée'!$C$332))*(1+'1 Données d''entrée'!$C$332),0),0)","v":0}]
[]
["Fonds d'autres donneurs / investisseurs - Subvention",{"$f":"'1 Données d''entrée'!$B$307","v":0}]
["Fonds d'autre donneurs / investisseurs - Prêt; Option 1: Remboursement du principal fractionné",{"$f":"'1 Données d''entrée'!$B$319","v":0},"% de prêt total"]
["Réception et montant restant",{"$f":"'1 Données d''entrée'!$B$306*'1 Données d''entrée'!$B$319+'1 Données d''entrée'!$B$306*'1 Données d''entrée'!$C$316","v":0},{"$f":"B81-C82","v":0},{"$f":"C81-D82","v":0},0,0,0,0,0,0,0,0,0,0,0,0,0,0,0,0,0,0]
["Remboursement du principal",0,{"$f":"IF(C55<'1 Données d''entrée'!$C$312+1,0,IF(C55<'1 Données d''entrée'!$C$312+'1 Données d''entrée'!$C$311+1,($B81/'1 Données d''entrée'!$C$311),0))","v":0},{"$f":"IF(D55<'1 Données d''entrée'!$C$312+1,0,IF(D55<'1 Données d''entrée'!$C$312+'1 Données d''entrée'!$C$311+1,($B81/'1 Données d''entrée'!$C$311),0))","v":0},{"$f":"IF(E55<'1 Données d''entrée'!$C$312+1,0,IF(E55<'1 Données d''entrée'!$C$312+'1 Données d''entrée'!$C$311+1,($B81/'1 Données d''entrée'!$C$311),0))","v":0},{"$f":"IF(F55<'1 Données d''entrée'!$C$312+1,0,IF(F55<'1 Données d''entrée'!$C$312+'1 Données d''entrée'!$C$311+1,($B81/'1 Données d''entrée'!$C$311),0))","v":0},{"$f":"IF(G55<'1 Données d''entrée'!$C$312+1,0,IF(G55<'1 Données d''entrée'!$C$312+'1 Données d''entrée'!$C$311+1,($B81/'1 Données d''entrée'!$C$311),0))","v":0},{"$f":"IF(H55<'1 Données d''entrée'!$C$312+1,0,IF(H55<'1 Données d''entrée'!$C$312+'1 Données d''entrée'!$C$311+1,($B81/'1 Données d''entrée'!$C$311),0))","v":0},{"$f":"IF(I55<'1 Données d''entrée'!$C$312+1,0,IF(I55<'1 Données d''entrée'!$C$312+'1 Données d''entrée'!$C$311+1,($B81/'1 Données d''entrée'!$C$311),0))","v":0},{"$f":"IF(J55<'1 Données d''entrée'!$C$312+1,0,IF(J55<'1 Données d''entrée'!$C$312+'1 Données d''entrée'!$C$311+1,($B81/'1 Données d''entrée'!$C$311),0))","v":0},{"$f":"IF(K55<'1 Données d''entrée'!$C$312+1,0,IF(K55<'1 Données d''entrée'!$C$312+'1 Données d''entrée'!$C$311+1,($B81/'1 Données d''entrée'!$C$311),0))","v":0},{"$f":"IF(L55<'1 Données d''entrée'!$C$312+1,0,IF(L55<'1 Données d''entrée'!$C$312+'1 Données d''entrée'!$C$311+1,($B81/'1 Données d''entrée'!$C$311),0))","v":0},{"$f":"IF(M55<'1 Données d''entrée'!$C$312+1,0,IF(M55<'1 Données d''entrée'!$C$312+'1 Données d''entrée'!$C$311+1,($B81/'1 Données d''entrée'!$C$311),0))","v":0},{"$f":"IF(N55<'1 Données d''entrée'!$C$312+1,0,IF(N55<'1 Données d''entrée'!$C$312+'1 Données d''entrée'!$C$311+1,($B81/'1 Données d''entrée'!$C$311),0))","v":0},{"$f":"IF(O55<'1 Données d''entrée'!$C$312+1,0,IF(O55<'1 Données d''entrée'!$C$312+'1 Données d''entrée'!$C$311+1,($B81/'1 Données d''entrée'!$C$311),0))","v":0},{"$f":"IF(P55<'1 Données d''entrée'!$C$312+1,0,IF(P55<'1 Données d''entrée'!$C$312+'1 Données d''entrée'!$C$311+1,($B81/'1 Données d''entrée'!$C$311),0))","v":0},{"$f":"IF(Q55<'1 Données d''entrée'!$C$312+1,0,IF(Q55<'1 Données d''entrée'!$C$312+'1 Données d''entrée'!$C$311+1,($B81/'1 Données d''entrée'!$C$311),0))","v":0},{"$f":"IF(R55<'1 Données d''entrée'!$C$312+1,0,IF(R55<'1 Données d''entrée'!$C$312+'1 Données d''entrée'!$C$311+1,($B81/'1 Données d''entrée'!$C$311),0))","v":0},{"$f":"IF(S55<'1 Données d''entrée'!$C$312+1,0,IF(S55<'1 Données d''entrée'!$C$312+'1 Données d''entrée'!$C$311+1,($B81/'1 Données d''entrée'!$C$311),0))","v":0},{"$f":"IF(T55<'1 Données d''entrée'!$C$312+1,0,IF(T55<'1 Données d''entrée'!$C$312+'1 Données d''entrée'!$C$311+1,($B81/'1 Données d''entrée'!$C$311),0))","v":0},{"$f":"IF(U55<'1 Données d''entrée'!$C$312+1,0,IF(U55<'1 Données d''entrée'!$C$312+'1 Données d''entrée'!$C$311+1,($B81/'1 Données d''entrée'!$C$311),0))","v":0},{"$f":"IF(V55<'1 Données d''entrée'!$C$312+1,0,IF(V55<'1 Données d''entrée'!$C$312+'1 Données d''entrée'!$C$311+1,($B81/'1 Données d''entrée'!$C$311),0))","v":0}]
["Paiement d'intérêts",0,{"$f":"IF('1 Données d''entrée'!$C$314=\"(=NON)\",IF(C55<'1 Données d''entrée'!$C$312+1,0,B81*'1 Données d''entrée'!$C$310),B81*'1 Données d''entrée'!$C$310)","v":0},{"$f":"IF('1 Données d''entrée'!$C$314=\"(=NON)\",IF(D55<'1 Données d''entrée'!$C$312+1,0,C81*'1 Données d''entrée'!$C$310),C81*'1 Données d''entrée'!$C$310)","v":0},{"$f":"IF('1 Données d''entrée'!$C$314=\"(=NON)\",IF(E55<'1 Données d''entrée'!$C$312+1,0,D81*'1 Données d''entrée'!$C$310),D81*'1 Données d''entrée'!$C$310)","v":0},{"$f":"IF('1 Données d''entrée'!$C$314=\"(=NON)\",IF(F55<'1 Données d''entrée'!$C$312+1,0,E81*'1 Données d''entrée'!$C$310),E81*'1 Données d''entrée'!$C$310)","v":0},{"$f":"IF('1 Données d''entrée'!$C$314=\"(=NON)\",IF(G55<'1 Données d''entrée'!$C$312+1,0,F81*'1 Données d''entrée'!$C$310),F81*'1 Données d''entrée'!$C$310)","v":0},{"$f":"IF('1 Données d''entrée'!$C$314=\"(=NON)\",IF(H55<'1 Données d''entrée'!$C$312+1,0,G81*'1 Données d''entrée'!$C$310),G81*'1 Données d''entrée'!$C$310)","v":0},{"$f":"IF('1 Données d''entrée'!$C$314=\"(=NON)\",IF(I55<'1 Données d''entrée'!$C$312+1,0,H81*'1 Données d''entrée'!$C$310),H81*'1 Données d''entrée'!$C$310)","v":0},{"$f":"IF('1 Données d''entrée'!$C$314=\"(=NON)\",IF(J55<'1 Données d''entrée'!$C$312+1,0,I81*'1 Données d''entrée'!$C$310),I81*'1 Données d''entrée'!$C$310)","v":0},{"$f":"IF('1 Données d''entrée'!$C$314=\"(=NON)\",IF(K55<'1 Données d''entrée'!$C$312+1,0,J81*'1 Données d''entrée'!$C$310),J81*'1 Données d''entrée'!$C$310)","v":0},{"$f":"IF('1 Données d''entrée'!$C$314=\"(=NON)\",IF(L55<'1 Données d''entrée'!$C$312+1,0,K81*'1 Données d''entrée'!$C$310),K81*'1 Données d''entrée'!$C$310)","v":0},{"$f":"IF('1 Données d''entrée'!$C$314=\"(=NON)\",IF(M55<'1 Données d''entrée'!$C$312+1,0,L81*'1 Données d''entrée'!$C$310),L81*'1 Données d''entrée'!$C$310)","v":0},{"$f":"IF('1 Données d''entrée'!$C$314=\"(=NON)\",IF(N55<'1 Données d''entrée'!$C$312+1,0,M81*'1 Données d''entrée'!$C$310),M81*'1 Données d''entrée'!$C$310)","v":0},{"$f":"IF('1 Données d''entrée'!$C$314=\"(=NON)\",IF(O55<'1 Données d''entrée'!$C$312+1,0,N81*'1 Données d''entrée'!$C$310),N81*'1 Données d''entrée'!$C$310)","v":0},{"$f":"IF('1 Données d''entrée'!$C$314=\"(=NON)\",IF(P55<'1 Données d''entrée'!$C$312+1,0,O81*'1 Données d''entrée'!$C$310),O81*'1 Données d''entrée'!$C$310)","v":0},{"$f":"IF('1 Données d''entrée'!$C$314=\"(=NON)\",IF(Q55<'1 Données d''entrée'!$C$312+1,0,P81*'1 Données d''entrée'!$C$310),P81*'1 Données d''entrée'!$C$310)","v":0},{"$f":"IF('1 Données d''entrée'!$C$314=\"(=NON)\",IF(R55<'1 Données d''entrée'!$C$312+1,0,Q81*'1 Données d''entrée'!$C$310),Q81*'1 Données d''entrée'!$C$310)","v":0},{"$f":"IF('1 Données d''entrée'!$C$314=\"(=NON)\",IF(S55<'1 Données d''entrée'!$C$312+1,0,R81*'1 Données d''entrée'!$C$310),R81*'1 Données d''entrée'!$C$310)","v":0},{"$f":"IF('1 Données d''entrée'!$C$314=\"(=NON)\",IF(T55<'1 Données d''entrée'!$C$312+1,0,S81*'1 Données d''entrée'!$C$310),S81*'1 Données d''entrée'!$C$310)","v":0},{"$f":"IF('1 Données d''entrée'!$C$314=\"(=NON)\",IF(U55<'1 Données d''entrée'!$C$312+1,0,T81*'1 Données d''entrée'!$C$310),T81*'1 Données d''entrée'!$C$310)","v":0},{"$f":"IF('1 Données d''entrée'!$C$314=\"(=NON)\",IF(V55<'1 Données d''entrée'!$C$312+1,0,U81*'1 Données d''entrée'!$C$310),U81*'1 Données d''entrée'!$C$310)","v":0}]
["Paiements d'intérêt avec des intérêts composés en cas d'absence des paiements dans la période de grâce",0,0,{"$f":"IF(D55='1 Données d''entrée'!$C$312+1,IF('1 Données d''entrée'!$C$314=\"(=NON)\",($B81*'1 Données d''entrée'!$C$310)*((('1 Données d''entrée'!$C$310+1)^'1 Données d''entrée'!$C$312-1)/('1 Données d''entrée'!$C$310))*(1+'1 Données d''entrée'!$C$310),0),0)","v":0},{"$f":"IF(E55='1 Données d''entrée'!$C$312+1,IF('1 Données d''entrée'!$C$314=\"(=NON)\",($B81*'1 Données d''entrée'!$C$310)*((('1 Données d''entrée'!$C$310+1)^'1 Données d''entrée'!$C$312-1)/('1 Données d''entrée'!$C$310))*(1+'1 Données d''entrée'!$C$310),0),0)","v":0},{"$f":"IF(F55='1 Données d''entrée'!$C$312+1,IF('1 Données d''entrée'!$C$314=\"(=NON)\",($B81*'1 Données d''entrée'!$C$310)*((('1 Données d''entrée'!$C$310+1)^'1 Données d''entrée'!$C$312-1)/('1 Données d''entrée'!$C$310))*(1+'1 Données d''entrée'!$C$310),0),0)","v":0},{"$f":"IF(G55='1 Données d''entrée'!$C$312+1,IF('1 Données d''entrée'!$C$314=\"(=NON)\",($B81*'1 Données d''entrée'!$C$310)*((('1 Données d''entrée'!$C$310+1)^'1 Données d''entrée'!$C$312-1)/('1 Données d''entrée'!$C$310))*(1+'1 Données d''entrée'!$C$310),0),0)","v":0},{"$f":"IF(H55='1 Données d''entrée'!$C$312+1,IF('1 Données d''entrée'!$C$314=\"(=NON)\",($B81*'1 Données d''entrée'!$C$310)*((('1 Données d''entrée'!$C$310+1)^'1 Données d''entrée'!$C$312-1)/('1 Données d''entrée'!$C$310))*(1+'1 Données d''entrée'!$C$310),0),0)","v":0},{"$f":"IF(I55='1 Données d''entrée'!$C$312+1,IF('1 Données d''entrée'!$C$314=\"(=NON)\",($B81*'1 Données d''entrée'!$C$310)*((('1 Données d''entrée'!$C$310+1)^'1 Données d''entrée'!$C$312-1)/('1 Données d''entrée'!$C$310))*(1+'1 Données d''entrée'!$C$310),0),0)","v":0},{"$f":"IF(J55='1 Données d''entrée'!$C$312+1,IF('1 Données d''entrée'!$C$314=\"(=NON)\",($B81*'1 Données d''entrée'!$C$310)*((('1 Données d''entrée'!$C$310+1)^'1 Données d''entrée'!$C$312-1)/('1 Données d''entrée'!$C$310))*(1+'1 Données d''entrée'!$C$310),0),0)","v":0},{"$f":"IF(K55='1 Données d''entrée'!$C$312+1,IF('1 Données d''entrée'!$C$314=\"(=NON)\",($B81*'1 Données d''entrée'!$C$310)*((('1 Données d''entrée'!$C$310+1)^'1 Données d''entrée'!$C$312-1)/('1 Données d''entrée'!$C$310))*(1+'1 Données d''entrée'!$C$310),0),0)","v":0},{"$f":"IF(L55='1 Données d''entrée'!$C$312+1,IF('1 Données d''entrée'!$C$314=\"(=NON)\",($B81*'1 Données d''entrée'!$C$310)*((('1 Données d''entrée'!$C$310+1)^'1 Données d''entrée'!$C$312-1)/('1 Données d''entrée'!$C$310))*(1+'1 Données d''entrée'!$C$310),0),0)","v":0},{"$f":"IF(M55='1 Données d''entrée'!$C$312+1,IF('1 Données d''entrée'!$C$314=\"(=NON)\",($B81*'1 Données d''entrée'!$C$310)*((('1 Données d''entrée'!$C$310+1)^'1 Données d''entrée'!$C$312-1)/('1 Données d''entrée'!$C$310))*(1+'1 Données d''entrée'!$C$310),0),0)","v":0},{"$f":"IF(N55='1 Données d''entrée'!$C$312+1,IF('1 Données d''entrée'!$C$314=\"(=NON)\",($B81*'1 Données d''entrée'!$C$310)*((('1 Données d''entrée'!$C$310+1)^'1 Données d''entrée'!$C$312-1)/('1 Données d''entrée'!$C$310))*(1+'1 Données d''entrée'!$C$310),0),0)","v":0},{"$f":"IF(O55='1 Données d''entrée'!$C$312+1,IF('1 Données d''entrée'!$C$314=\"(=NON)\",($B81*'1 Données d''entrée'!$C$310)*((('1 Données d''entrée'!$C$310+1)^'1 Données d''entrée'!$C$312-1)/('1 Données d''entrée'!$C$310))*(1+'1 Données d''entrée'!$C$310),0),0)","v":0},{"$f":"IF(P55='1 Données d''entrée'!$C$312+1,IF('1 Données d''entrée'!$C$314=\"(=NON)\",($B81*'1 Données d''entrée'!$C$310)*((('1 Données d''entrée'!$C$310+1)^'1 Données d''entrée'!$C$312-1)/('1 Données d''entrée'!$C$310))*(1+'1 Données d''entrée'!$C$310),0),0)","v":0},{"$f":"IF(Q55='1 Données d''entrée'!$C$312+1,IF('1 Données d''entrée'!$C$314=\"(=NON)\",($B81*'1 Données d''entrée'!$C$310)*((('1 Données d''entrée'!$C$310+1)^'1 Données d''entrée'!$C$312-1)/('1 Données d''entrée'!$C$310))*(1+'1 Données d''entrée'!$C$310),0),0)","v":0},{"$f":"IF(R55='1 Données d''entrée'!$C$312+1,IF('1 Données d''entrée'!$C$314=\"(=NON)\",($B81*'1 Données d''entrée'!$C$310)*((('1 Données d''entrée'!$C$310+1)^'1 Données d''entrée'!$C$312-1)/('1 Données d''entrée'!$C$310))*(1+'1 Données d''entrée'!$C$310),0),0)","v":0},{"$f":"IF(S55='1 Données d''entrée'!$C$312+1,IF('1 Données d''entrée'!$C$314=\"(=NON)\",($B81*'1 Données d''entrée'!$C$310)*((('1 Données d''entrée'!$C$310+1)^'1 Données d''entrée'!$C$312-1)/('1 Données d''entrée'!$C$310))*(1+'1 Données d''entrée'!$C$310),0),0)","v":0},{"$f":"IF(T55='1 Données d''entrée'!$C$312+1,IF('1 Données d''entrée'!$C$314=\"(=NON)\",($B81*'1 Données d''entrée'!$C$310)*((('1 Données d''entrée'!$C$310+1)^'1 Données d''entrée'!$C$312-1)/('1 Données d''entrée'!$C$310))*(1+'1 Données d''entrée'!$C$310),0),0)","v":0},{"$f":"IF(U55='1 Données d''entrée'!$C$312+1,IF('1 Données d''entrée'!$C$314=\"(=NON)\",($B81*'1 Données d''entrée'!$C$310)*((('1 Données d''entrée'!$C$310+1)^'1 Données d''entrée'!$C$312-1)/('1 Données d''entrée'!$C$310))*(1+'1 Données d''entrée'!$C$310),0),0)","v":0},{"$f":"IF(V55='1 Données d''entrée'!$C$312+1,IF('1 Données d''entrée'!$C$314=\"(=NON)\",($B81*'1 Données d''entrée'!$C$310)*((('1 Données d''entrée'!$C$310+1)^'1 Données d''entrée'!$C$312-1)/('1 Données d''entrée'!$C$310))*(1+'1 Données d''entrée'!$C$310),0),0)","v":0}]
["Fonds d'autre donneurs / investisseurs - Prêt; Option 2: Remboursement du principal final",{"$f":"'1 Données d''entrée'!$B$320","v":0},"% de prêt total"]
["Réception et montant restant",{"$f":"'1 Données d''entrée'!$B$306*'1 Données d''entrée'!$B$320+'1 Données d''entrée'!$B$306*'1 Données d''entrée'!$C$316","v":0},{"$f":"B86-C87","v":0},{"$f":"C86-D87","v":0},0,0,0,0,0,0,0,0,0,0,0,0,0,0,0,0,0,0]
["Remboursement du principal",0,{"$f":"IF('1 Données d''entrée'!$C$311+'1 Données d''entrée'!$C$312=C55,'6 Financement'!$B$85,0)","v":0},{"$f":"IF('1 Données d''entrée'!$C$311+'1 Données d''entrée'!$C$312=D55,'6 Financement'!$B$85,0)","v":0},{"$f":"IF('1 Données d''entrée'!$C$311+'1 Données d''entrée'!$C$312=E55,'6 Financement'!$B$85,0)","v":0},{"$f":"IF('1 Données d''entrée'!$C$311+'1 Données d''entrée'!$C$312=F55,'6 Financement'!$B$85,0)","v":0},{"$f":"IF('1 Données d''entrée'!$C$311+'1 Données d''entrée'!$C$312=G55,'6 Financement'!$B$85,0)","v":0},{"$f":"IF('1 Données d''entrée'!$C$311+'1 Données d''entrée'!$C$312=H55,'6 Financement'!$B$85,0)","v":0},{"$f":"IF('1 Données d''entrée'!$C$311+'1 Données d''entrée'!$C$312=I55,'6 Financement'!$B$85,0)","v":0},{"$f":"IF('1 Données d''entrée'!$C$311+'1 Données d''entrée'!$C$312=J55,'6 Financement'!$B$85,0)","v":0},{"$f":"IF('1 Données d''entrée'!$C$311+'1 Données d''entrée'!$C$312=K55,'6 Financement'!$B$85,0)","v":0},{"$f":"IF('1 Données d''entrée'!$C$311+'1 Données d''entrée'!$C$312=L55,'6 Financement'!$B$85,0)","v":0},{"$f":"IF('1 Données d''entrée'!$C$311+'1 Données d''entrée'!$C$312=M55,'6 Financement'!$B$85,0)","v":0},{"$f":"IF('1 Données d''entrée'!$C$311+'1 Données d''entrée'!$C$312=N55,'6 Financement'!$B$85,0)","v":0},{"$f":"IF('1 Données d''entrée'!$C$311+'1 Données d''entrée'!$C$312=O55,'6 Financement'!$B$85,0)","v":0},{"$f":"IF('1 Données d''entrée'!$C$311+'1 Données d''entrée'!$C$312=P55,'6 Financement'!$B$85,0)","v":0},{"$f":"IF('1 Données d''entrée'!$C$311+'1 Données d''entrée'!$C$312=Q55,'6 Financement'!$B$85,0)","v":0},{"$f":"IF('1 Données d''entrée'!$C$311+'1 Données d''entrée'!$C$312=R55,'6 Financement'!$B$85,0)","v":0},{"$f":"IF('1 Données d''entrée'!$C$311+'1 Données d''entrée'!$C$312=S55,'6 Financement'!$B$85,0)","v":0},{"$f":"IF('1 Données d''entrée'!$C$311+'1 Données d''entrée'!$C$312=T55,'6 Financement'!$B$85,0)","v":0},{"$f":"IF('1 Données d''entrée'!$C$311+'1 Données d''entrée'!$C$312=U55,'6 Financement'!$B$85,0)","v":0},{"$f":"IF('1 Données d''entrée'!$C$311+'1 Données d''entrée'!$C$312=V55,'6 Financement'!$B$85,0)","v":0}]
["Paiement d'intérêts",0,{"$f":"IF('1 Données d''entrée'!$C$314=\"(=NON)\",IF(C55<'1 Données d''entrée'!$C$312+1,0,B86*'1 Données d''entrée'!$C$310),B86*'1 Données d''entrée'!$C$310)","v":0},{"$f":"IF('1 Données d''entrée'!$C$314=\"(=NON)\",IF(D55<'1 Données d''entrée'!$C$312+1,0,C86*'1 Données d''entrée'!$C$310),C86*'1 Données d''entrée'!$C$310)","v":0},{"$f":"IF('1 Données d''entrée'!$C$314=\"(=NON)\",IF(E55<'1 Données d''entrée'!$C$312+1,0,D86*'1 Données d''entrée'!$C$310),D86*'1 Données d''entrée'!$C$310)","v":0},{"$f":"IF('1 Données d''entrée'!$C$314=\"(=NON)\",IF(F55<'1 Données d''entrée'!$C$312+1,0,E86*'1 Données d''entrée'!$C$310),E86*'1 Données d''entrée'!$C$310)","v":0},{"$f":"IF('1 Données d''entrée'!$C$314=\"(=NON)\",IF(G55<'1 Données d''entrée'!$C$312+1,0,F86*'1 Données d''entrée'!$C$310),F86*'1 Données d''entrée'!$C$310)","v":0},{"$f":"IF('1 Données d''entrée'!$C$314=\"(=NON)\",IF(H55<'1 Données d''entrée'!$C$312+1,0,G86*'1 Données d''entrée'!$C$310),G86*'1 Données d''entrée'!$C$310)","v":0},{"$f":"IF('1 Données d''entrée'!$C$314=\"(=NON)\",IF(I55<'1 Données d''entrée'!$C$312+1,0,H86*'1 Données d''entrée'!$C$310),H86*'1 Données d''entrée'!$C$310)","v":0},{"$f":"IF('1 Données d''entrée'!$C$314=\"(=NON)\",IF(J55<'1 Données d''entrée'!$C$312+1,0,I86*'1 Données d''entrée'!$C$310),I86*'1 Données d''entrée'!$C$310)","v":0},{"$f":"IF('1 Données d''entrée'!$C$314=\"(=NON)\",IF(K55<'1 Données d''entrée'!$C$312+1,0,J86*'1 Données d''entrée'!$C$310),J86*'1 Données d''entrée'!$C$310)","v":0},{"$f":"IF('1 Données d''entrée'!$C$314=\"(=NON)\",IF(L55<'1 Données d''entrée'!$C$312+1,0,K86*'1 Données d''entrée'!$C$310),K86*'1 Données d''entrée'!$C$310)","v":0},{"$f":"IF('1 Données d''entrée'!$C$314=\"(=NON)\",IF(M55<'1 Données d''entrée'!$C$312+1,0,L86*'1 Données d''entrée'!$C$310),L86*'1 Données d''entrée'!$C$310)","v":0},{"$f":"IF('1 Données d''entrée'!$C$314=\"(=NON)\",IF(N55<'1 Données d''entrée'!$C$312+1,0,M86*'1 Données d''entrée'!$C$310),M86*'1 Données d''entrée'!$C$310)","v":0},{"$f":"IF('1 Données d''entrée'!$C$314=\"(=NON)\",IF(O55<'1 Données d''entrée'!$C$312+1,0,N86*'1 Données d''entrée'!$C$310),N86*'1 Données d''entrée'!$C$310)","v":0},{"$f":"IF('1 Données d''entrée'!$C$314=\"(=NON)\",IF(P55<'1 Données d''entrée'!$C$312+1,0,O86*'1 Données d''entrée'!$C$310),O86*'1 Données d''entrée'!$C$310)","v":0},{"$f":"IF('1 Données d''entrée'!$C$314=\"(=NON)\",IF(Q55<'1 Données d''entrée'!$C$312+1,0,P86*'1 Données d''entrée'!$C$310),P86*'1 Données d''entrée'!$C$310)","v":0},{"$f":"IF('1 Données d''entrée'!$C$314=\"(=NON)\",IF(R55<'1 Données d''entrée'!$C$312+1,0,Q86*'1 Données d''entrée'!$C$310),Q86*'1 Données d''entrée'!$C$310)","v":0},{"$f":"IF('1 Données d''entrée'!$C$314=\"(=NON)\",IF(S55<'1 Données d''entrée'!$C$312+1,0,R86*'1 Données d''entrée'!$C$310),R86*'1 Données d''entrée'!$C$310)","v":0},{"$f":"IF('1 Données d''entrée'!$C$314=\"(=NON)\",IF(T55<'1 Données d''entrée'!$C$312+1,0,S86*'1 Données d''entrée'!$C$310),S86*'1 Données d''entrée'!$C$310)","v":0},{"$f":"IF('1 Données d''entrée'!$C$314=\"(=NON)\",IF(U55<'1 Données d''entrée'!$C$312+1,0,T86*'1 Données d''entrée'!$C$310),T86*'1 Données d''entrée'!$C$310)","v":0},{"$f":"IF('1 Données d''entrée'!$C$314=\"(=NON)\",IF(V55<'1 Données d''entrée'!$C$312+1,0,U86*'1 Données d''entrée'!$C$310),U86*'1 Données d''entrée'!$C$310)","v":0}]
["Paiements d'intérêt avec des intérêts composés en cas d'absence des paiements dans la période de grâce",0,0,{"$f":"IF(D55='1 Données d''entrée'!$C$312+1,IF('1 Données d''entrée'!$C$314=\"(=NON)\",($B86*'1 Données d''entrée'!$C$310)*((('1 Données d''entrée'!$C$310+1)^'1 Données d''entrée'!$C$312-1)/('1 Données d''entrée'!$C$310))*(1+'1 Données d''entrée'!$C$310),0),0)","v":0},{"$f":"IF(E55='1 Données d''entrée'!$C$312+1,IF('1 Données d''entrée'!$C$314=\"(=NON)\",($B86*'1 Données d''entrée'!$C$310)*((('1 Données d''entrée'!$C$310+1)^'1 Données d''entrée'!$C$312-1)/('1 Données d''entrée'!$C$310))*(1+'1 Données d''entrée'!$C$310),0),0)","v":0},{"$f":"IF(F55='1 Données d''entrée'!$C$312+1,IF('1 Données d''entrée'!$C$314=\"(=NON)\",($B86*'1 Données d''entrée'!$C$310)*((('1 Données d''entrée'!$C$310+1)^'1 Données d''entrée'!$C$312-1)/('1 Données d''entrée'!$C$310))*(1+'1 Données d''entrée'!$C$310),0),0)","v":0},{"$f":"IF(G55='1 Données d''entrée'!$C$312+1,IF('1 Données d''entrée'!$C$314=\"(=NON)\",($B86*'1 Données d''entrée'!$C$310)*((('1 Données d''entrée'!$C$310+1)^'1 Données d''entrée'!$C$312-1)/('1 Données d''entrée'!$C$310))*(1+'1 Données d''entrée'!$C$310),0),0)","v":0},{"$f":"IF(H55='1 Données d''entrée'!$C$312+1,IF('1 Données d''entrée'!$C$314=\"(=NON)\",($B86*'1 Données d''entrée'!$C$310)*((('1 Données d''entrée'!$C$310+1)^'1 Données d''entrée'!$C$312-1)/('1 Données d''entrée'!$C$310))*(1+'1 Données d''entrée'!$C$310),0),0)","v":0},{"$f":"IF(I55='1 Données d''entrée'!$C$312+1,IF('1 Données d''entrée'!$C$314=\"(=NON)\",($B86*'1 Données d''entrée'!$C$310)*((('1 Données d''entrée'!$C$310+1)^'1 Données d''entrée'!$C$312-1)/('1 Données d''entrée'!$C$310))*(1+'1 Données d''entrée'!$C$310),0),0)","v":0},{"$f":"IF(J55='1 Données d''entrée'!$C$312+1,IF('1 Données d''entrée'!$C$314=\"(=NON)\",($B86*'1 Données d''entrée'!$C$310)*((('1 Données d''entrée'!$C$310+1)^'1 Données d''entrée'!$C$312-1)/('1 Données d''entrée'!$C$310))*(1+'1 Données d''entrée'!$C$310),0),0)","v":0},{"$f":"IF(K55='1 Données d''entrée'!$C$312+1,IF('1 Données d''entrée'!$C$314=\"(=NON)\",($B86*'1 Données d''entrée'!$C$310)*((('1 Données d''entrée'!$C$310+1)^'1 Données d''entrée'!$C$312-1)/('1 Données d''entrée'!$C$310))*(1+'1 Données d''entrée'!$C$310),0),0)","v":0},{"$f":"IF(L55='1 Données d''entrée'!$C$312+1,IF('1 Données d''entrée'!$C$314=\"(=NON)\",($B86*'1 Données d''entrée'!$C$310)*((('1 Données d''entrée'!$C$310+1)^'1 Données d''entrée'!$C$312-1)/('1 Données d''entrée'!$C$310))*(1+'1 Données d''entrée'!$C$310),0),0)","v":0},{"$f":"IF(M55='1 Données d''entrée'!$C$312+1,IF('1 Données d''entrée'!$C$314=\"(=NON)\",($B86*'1 Données d''entrée'!$C$310)*((('1 Données d''entrée'!$C$310+1)^'1 Données d''entrée'!$C$312-1)/('1 Données d''entrée'!$C$310))*(1+'1 Données d''entrée'!$C$310),0),0)","v":0},{"$f":"IF(N55='1 Données d''entrée'!$C$312+1,IF('1 Données d''entrée'!$C$314=\"(=NON)\",($B86*'1 Données d''entrée'!$C$310)*((('1 Données d''entrée'!$C$310+1)^'1 Données d''entrée'!$C$312-1)/('1 Données d''entrée'!$C$310))*(1+'1 Données d''entrée'!$C$310),0),0)","v":0},{"$f":"IF(O55='1 Données d''entrée'!$C$312+1,IF('1 Données d''entrée'!$C$314=\"(=NON)\",($B86*'1 Données d''entrée'!$C$310)*((('1 Données d''entrée'!$C$310+1)^'1 Données d''entrée'!$C$312-1)/('1 Données d''entrée'!$C$310))*(1+'1 Données d''entrée'!$C$310),0),0)","v":0},{"$f":"IF(P55='1 Données d''entrée'!$C$312+1,IF('1 Données d''entrée'!$C$314=\"(=NON)\",($B86*'1 Données d''entrée'!$C$310)*((('1 Données d''entrée'!$C$310+1)^'1 Données d''entrée'!$C$312-1)/('1 Données d''entrée'!$C$310))*(1+'1 Données d''entrée'!$C$310),0),0)","v":0},{"$f":"IF(Q55='1 Données d''entrée'!$C$312+1,IF('1 Données d''entrée'!$C$314=\"(=NON)\",($B86*'1 Données d''entrée'!$C$310)*((('1 Données d''entrée'!$C$310+1)^'1 Données d''entrée'!$C$312-1)/('1 Données d''entrée'!$C$310))*(1+'1 Données d''entrée'!$C$310),0),0)","v":0},{"$f":"IF(R55='1 Données d''entrée'!$C$312+1,IF('1 Données d''entrée'!$C$314=\"(=NON)\",($B86*'1 Données d''entrée'!$C$310)*((('1 Données d''entrée'!$C$310+1)^'1 Données d''entrée'!$C$312-1)/('1 Données d''entrée'!$C$310))*(1+'1 Données d''entrée'!$C$310),0),0)","v":0},{"$f":"IF(S55='1 Données d''entrée'!$C$312+1,IF('1 Données d''entrée'!$C$314=\"(=NON)\",($B86*'1 Données d''entrée'!$C$310)*((('1 Données d''entrée'!$C$310+1)^'1 Données d''entrée'!$C$312-1)/('1 Données d''entrée'!$C$310))*(1+'1 Données d''entrée'!$C$310),0),0)","v":0},{"$f":"IF(T55='1 Données d''entrée'!$C$312+1,IF('1 Données d''entrée'!$C$314=\"(=NON)\",($B86*'1 Données d''entrée'!$C$310)*((('1 Données d''entrée'!$C$310+1)^'1 Données d''entrée'!$C$312-1)/('1 Données d''entrée'!$C$310))*(1+'1 Données d''entrée'!$C$310),0),0)","v":0},{"$f":"IF(U55='1 Données d''entrée'!$C$312+1,IF('1 Données d''entrée'!$C$314=\"(=NON)\",($B86*'1 Données d''entrée'!$C$310)*((('1 Données d''entrée'!$C$310+1)^'1 Données d''entrée'!$C$312-1)/('1 Données d''entrée'!$C$310))*(1+'1 Données d''entrée'!$C$310),0),0)","v":0},{"$f":"IF(V55='1 Données d''entrée'!$C$312+1,IF('1 Données d''entrée'!$C$314=\"(=NON)\",($B86*'1 Données d''entrée'!$C$310)*((('1 Données d''entrée'!$C$310+1)^'1 Données d''entrée'!$C$312-1)/('1 Données d''entrée'!$C$310))*(1+'1 Données d''entrée'!$C$310),0),0)","v":0}]
["Fonds d'autre donneurs / investisseurs - Prêt; Option 3: Remboursement vers l'annuité constante",{"$f":"'1 Données d''entrée'!$B$321","v":0},"% de prêt total"]
["Réception ",{"$f":"B90*'1 Données d''entrée'!$B$306+'1 Données d''entrée'!$B$306*'1 Données d''entrée'!$C$316","v":0},0,0,0,0,0,0,0,0,0,0,0,0,0,0,0,0,0,0,0,0]
["Remboursement vers l'annuité constante",{"$f":"IF(B55<'1 Données d''entrée'!$C$312+1,0,IF(B55<'1 Données d''entrée'!$C$311+'1 Données d''entrée'!$C$312+1,$B91*('1 Données d''entrée'!$C$310*(1+'1 Données d''entrée'!$C$310)^'1 Données d''entrée'!$C$311)/((1+'1 Données d''entrée'!$C$310)^'1 Données d''entrée'!$C$311-1),0))","v":0},{"$f":"IF(C55<'1 Données d''entrée'!$C$312+1,0,IF(C55<'1 Données d''entrée'!$C$311+'1 Données d''entrée'!$C$312+1,$B91*('1 Données d''entrée'!$C$310*(1+'1 Données d''entrée'!$C$310)^'1 Données d''entrée'!$C$311)/((1+'1 Données d''entrée'!$C$310)^'1 Données d''entrée'!$C$311-1),0))","v":0},{"$f":"IF(D55<'1 Données d''entrée'!$C$312+1,0,IF(D55<'1 Données d''entrée'!$C$311+'1 Données d''entrée'!$C$312+1,$B91*('1 Données d''entrée'!$C$310*(1+'1 Données d''entrée'!$C$310)^'1 Données d''entrée'!$C$311)/((1+'1 Données d''entrée'!$C$310)^'1 Données d''entrée'!$C$311-1),0))","v":0},{"$f":"IF(E55<'1 Données d''entrée'!$C$312+1,0,IF(E55<'1 Données d''entrée'!$C$311+'1 Données d''entrée'!$C$312+1,$B91*('1 Données d''entrée'!$C$310*(1+'1 Données d''entrée'!$C$310)^'1 Données d''entrée'!$C$311)/((1+'1 Données d''entrée'!$C$310)^'1 Données d''entrée'!$C$311-1),0))","v":0},{"$f":"IF(F55<'1 Données d''entrée'!$C$312+1,0,IF(F55<'1 Données d''entrée'!$C$311+'1 Données d''entrée'!$C$312+1,$B91*('1 Données d''entrée'!$C$310*(1+'1 Données d''entrée'!$C$310)^'1 Données d''entrée'!$C$311)/((1+'1 Données d''entrée'!$C$310)^'1 Données d''entrée'!$C$311-1),0))","v":0},{"$f":"IF(G55<'1 Données d''entrée'!$C$312+1,0,IF(G55<'1 Données d''entrée'!$C$311+'1 Données d''entrée'!$C$312+1,$B91*('1 Données d''entrée'!$C$310*(1+'1 Données d''entrée'!$C$310)^'1 Données d''entrée'!$C$311)/((1+'1 Données d''entrée'!$C$310)^'1 Données d''entrée'!$C$311-1),0))","v":0},{"$f":"IF(H55<'1 Données d''entrée'!$C$312+1,0,IF(H55<'1 Données d''entrée'!$C$311+'1 Données d''entrée'!$C$312+1,$B91*('1 Données d''entrée'!$C$310*(1+'1 Données d''entrée'!$C$310)^'1 Données d''entrée'!$C$311)/((1+'1 Données d''entrée'!$C$310)^'1 Données d''entrée'!$C$311-1),0))","v":0},{"$f":"IF(I55<'1 Données d''entrée'!$C$312+1,0,IF(I55<'1 Données d''entrée'!$C$311+'1 Données d''entrée'!$C$312+1,$B91*('1 Données d''entrée'!$C$310*(1+'1 Données d''entrée'!$C$310)^'1 Données d''entrée'!$C$311)/((1+'1 Données d''entrée'!$C$310)^'1 Données d''entrée'!$C$311-1),0))","v":0},{"$f":"IF(J55<'1 Données d''entrée'!$C$312+1,0,IF(J55<'1 Données d''entrée'!$C$311+'1 Données d''entrée'!$C$312+1,$B91*('1 Données d''entrée'!$C$310*(1+'1 Données d''entrée'!$C$310)^'1 Données d''entrée'!$C$311)/((1+'1 Données d''entrée'!$C$310)^'1 Données d''entrée'!$C$311-1),0))","v":0},{"$f":"IF(K55<'1 Données d''entrée'!$C$312+1,0,IF(K55<'1 Données d''entrée'!$C$311+'1 Données d''entrée'!$C$312+1,$B91*('1 Données d''entrée'!$C$310*(1+'1 Données d''entrée'!$C$310)^'1 Données d''entrée'!$C$311)/((1+'1 Données d''entrée'!$C$310)^'1 Données d''entrée'!$C$311-1),0))","v":0},{"$f":"IF(L55<'1 Données d''entrée'!$C$312+1,0,IF(L55<'1 Données d''entrée'!$C$311+'1 Données d''entrée'!$C$312+1,$B91*('1 Données d''entrée'!$C$310*(1+'1 Données d''entrée'!$C$310)^'1 Données d''entrée'!$C$311)/((1+'1 Données d''entrée'!$C$310)^'1 Données d''entrée'!$C$311-1),0))","v":0},{"$f":"IF(M55<'1 Données d''entrée'!$C$312+1,0,IF(M55<'1 Données d''entrée'!$C$311+'1 Données d''entrée'!$C$312+1,$B91*('1 Données d''entrée'!$C$310*(1+'1 Données d''entrée'!$C$310)^'1 Données d''entrée'!$C$311)/((1+'1 Données d''entrée'!$C$310)^'1 Données d''entrée'!$C$311-1),0))","v":0},{"$f":"IF(N55<'1 Données d''entrée'!$C$312+1,0,IF(N55<'1 Données d''entrée'!$C$311+'1 Données d''entrée'!$C$312+1,$B91*('1 Données d''entrée'!$C$310*(1+'1 Données d''entrée'!$C$310)^'1 Données d''entrée'!$C$311)/((1+'1 Données d''entrée'!$C$310)^'1 Données d''entrée'!$C$311-1),0))","v":0},{"$f":"IF(O55<'1 Données d''entrée'!$C$312+1,0,IF(O55<'1 Données d''entrée'!$C$311+'1 Données d''entrée'!$C$312+1,$B91*('1 Données d''entrée'!$C$310*(1+'1 Données d''entrée'!$C$310)^'1 Données d''entrée'!$C$311)/((1+'1 Données d''entrée'!$C$310)^'1 Données d''entrée'!$C$311-1),0))","v":0},{"$f":"IF(P55<'1 Données d''entrée'!$C$312+1,0,IF(P55<'1 Données d''entrée'!$C$311+'1 Données d''entrée'!$C$312+1,$B91*('1 Données d''entrée'!$C$310*(1+'1 Données d''entrée'!$C$310)^'1 Données d''entrée'!$C$311)/((1+'1 Données d''entrée'!$C$310)^'1 Données d''entrée'!$C$311-1),0))","v":0},{"$f":"IF(Q55<'1 Données d''entrée'!$C$312+1,0,IF(Q55<'1 Données d''entrée'!$C$311+'1 Données d''entrée'!$C$312+1,$B91*('1 Données d''entrée'!$C$310*(1+'1 Données d''entrée'!$C$310)^'1 Données d''entrée'!$C$311)/((1+'1 Données d''entrée'!$C$310)^'1 Données d''entrée'!$C$311-1),0))","v":0},{"$f":"IF(R55<'1 Données d''entrée'!$C$312+1,0,IF(R55<'1 Données d''entrée'!$C$311+'1 Données d''entrée'!$C$312+1,$B91*('1 Données d''entrée'!$C$310*(1+'1 Données d''entrée'!$C$310)^'1 Données d''entrée'!$C$311)/((1+'1 Données d''entrée'!$C$310)^'1 Données d''entrée'!$C$311-1),0))","v":0},{"$f":"IF(S55<'1 Données d''entrée'!$C$312+1,0,IF(S55<'1 Données d''entrée'!$C$311+'1 Données d''entrée'!$C$312+1,$B91*('1 Données d''entrée'!$C$310*(1+'1 Données d''entrée'!$C$310)^'1 Données d''entrée'!$C$311)/((1+'1 Données d''entrée'!$C$310)^'1 Données d''entrée'!$C$311-1),0))","v":0},{"$f":"IF(T55<'1 Données d''entrée'!$C$312+1,0,IF(T55<'1 Données d''entrée'!$C$311+'1 Données d''entrée'!$C$312+1,$B91*('1 Données d''entrée'!$C$310*(1+'1 Données d''entrée'!$C$310)^'1 Données d''entrée'!$C$311)/((1+'1 Données d''entrée'!$C$310)^'1 Données d''entrée'!$C$311-1),0))","v":0},{"$f":"IF(U55<'1 Données d''entrée'!$C$312+1,0,IF(U55<'1 Données d''entrée'!$C$311+'1 Données d''entrée'!$C$312+1,$B91*('1 Données d''entrée'!$C$310*(1+'1 Données d''entrée'!$C$310)^'1 Données d''entrée'!$C$311)/((1+'1 Données d''entrée'!$C$310)^'1 Données d''entrée'!$C$311-1),0))","v":0},{"$f":"IF(V55<'1 Données d''entrée'!$C$312+1,0,IF(V55<'1 Données d''entrée'!$C$311+'1 Données d''entrée'!$C$312+1,$B91*('1 Données d''entrée'!$C$310*(1+'1 Données d''entrée'!$C$310)^'1 Données d''entrée'!$C$311)/((1+'1 Données d''entrée'!$C$310)^'1 Données d''entrée'!$C$311-1),0))","v":0}]
["Paiement d'intérêt décroissant inclu dans l'annuité constante",0,{"$f":"IF('1 Données d''entrée'!$C$314=\"(=NON)\",IF(C92>0,$B91*((('1 Données d''entrée'!$C$310+1)^'1 Données d''entrée'!$C$311)-(1+'1 Données d''entrée'!$C$310)^('6 Financement'!C$54-1-'1 Données d''entrée'!$C$312))/((1+'1 Données d''entrée'!$C$310)^'1 Données d''entrée'!$C$311-1)*'1 Données d''entrée'!$C$310,0),IF(C55<'1 Données d''entrée'!$C$312+1,'1 Données d''entrée'!$C$310*'6 Financement'!$B91,IF(C92>0,$B$90*((('1 Données d''entrée'!$C$310+1)^'1 Données d''entrée'!$C$311)-(1+'1 Données d''entrée'!$C$310)^('6 Financement'!C$54-1-'1 Données d''entrée'!$C$312))/((1+'1 Données d''entrée'!$C$310)^'1 Données d''entrée'!$C$311-1)*'1 Données d''entrée'!$C$310,0)))","v":0},{"$f":"IF('1 Données d''entrée'!$C$314=\"(=NON)\",IF(D92>0,$B91*((('1 Données d''entrée'!$C$310+1)^'1 Données d''entrée'!$C$311)-(1+'1 Données d''entrée'!$C$310)^('6 Financement'!D$54-1-'1 Données d''entrée'!$C$312))/((1+'1 Données d''entrée'!$C$310)^'1 Données d''entrée'!$C$311-1)*'1 Données d''entrée'!$C$310,0),IF(D55<'1 Données d''entrée'!$C$312+1,'1 Données d''entrée'!$C$310*'6 Financement'!$B91,IF(D92>0,$B$90*((('1 Données d''entrée'!$C$310+1)^'1 Données d''entrée'!$C$311)-(1+'1 Données d''entrée'!$C$310)^('6 Financement'!D$54-1-'1 Données d''entrée'!$C$312))/((1+'1 Données d''entrée'!$C$310)^'1 Données d''entrée'!$C$311-1)*'1 Données d''entrée'!$C$310,0)))","v":0},{"$f":"IF('1 Données d''entrée'!$C$314=\"(=NON)\",IF(E92>0,$B91*((('1 Données d''entrée'!$C$310+1)^'1 Données d''entrée'!$C$311)-(1+'1 Données d''entrée'!$C$310)^('6 Financement'!E$54-1-'1 Données d''entrée'!$C$312))/((1+'1 Données d''entrée'!$C$310)^'1 Données d''entrée'!$C$311-1)*'1 Données d''entrée'!$C$310,0),IF(E55<'1 Données d''entrée'!$C$312+1,'1 Données d''entrée'!$C$310*'6 Financement'!$B91,IF(E92>0,$B$90*((('1 Données d''entrée'!$C$310+1)^'1 Données d''entrée'!$C$311)-(1+'1 Données d''entrée'!$C$310)^('6 Financement'!E$54-1-'1 Données d''entrée'!$C$312))/((1+'1 Données d''entrée'!$C$310)^'1 Données d''entrée'!$C$311-1)*'1 Données d''entrée'!$C$310,0)))","v":0},{"$f":"IF('1 Données d''entrée'!$C$314=\"(=NON)\",IF(F92>0,$B91*((('1 Données d''entrée'!$C$310+1)^'1 Données d''entrée'!$C$311)-(1+'1 Données d''entrée'!$C$310)^('6 Financement'!F$54-1-'1 Données d''entrée'!$C$312))/((1+'1 Données d''entrée'!$C$310)^'1 Données d''entrée'!$C$311-1)*'1 Données d''entrée'!$C$310,0),IF(F55<'1 Données d''entrée'!$C$312+1,'1 Données d''entrée'!$C$310*'6 Financement'!$B91,IF(F92>0,$B$90*((('1 Données d''entrée'!$C$310+1)^'1 Données d''entrée'!$C$311)-(1+'1 Données d''entrée'!$C$310)^('6 Financement'!F$54-1-'1 Données d''entrée'!$C$312))/((1+'1 Données d''entrée'!$C$310)^'1 Données d''entrée'!$C$311-1)*'1 Données d''entrée'!$C$310,0)))","v":0},{"$f":"IF('1 Données d''entrée'!$C$314=\"(=NON)\",IF(G92>0,$B91*((('1 Données d''entrée'!$C$310+1)^'1 Données d''entrée'!$C$311)-(1+'1 Données d''entrée'!$C$310)^('6 Financement'!G$54-1-'1 Données d''entrée'!$C$312))/((1+'1 Données d''entrée'!$C$310)^'1 Données d''entrée'!$C$311-1)*'1 Données d''entrée'!$C$310,0),IF(G55<'1 Données d''entrée'!$C$312+1,'1 Données d''entrée'!$C$310*'6 Financement'!$B91,IF(G92>0,$B$90*((('1 Données d''entrée'!$C$310+1)^'1 Données d''entrée'!$C$311)-(1+'1 Données d''entrée'!$C$310)^('6 Financement'!G$54-1-'1 Données d''entrée'!$C$312))/((1+'1 Données d''entrée'!$C$310)^'1 Données d''entrée'!$C$311-1)*'1 Données d''entrée'!$C$310,0)))","v":0},{"$f":"IF('1 Données d''entrée'!$C$314=\"(=NON)\",IF(H92>0,$B91*((('1 Données d''entrée'!$C$310+1)^'1 Données d''entrée'!$C$311)-(1+'1 Données d''entrée'!$C$310)^('6 Financement'!H$54-1-'1 Données d''entrée'!$C$312))/((1+'1 Données d''entrée'!$C$310)^'1 Données d''entrée'!$C$311-1)*'1 Données d''entrée'!$C$310,0),IF(H55<'1 Données d''entrée'!$C$312+1,'1 Données d''entrée'!$C$310*'6 Financement'!$B91,IF(H92>0,$B$90*((('1 Données d''entrée'!$C$310+1)^'1 Données d''entrée'!$C$311)-(1+'1 Données d''entrée'!$C$310)^('6 Financement'!H$54-1-'1 Données d''entrée'!$C$312))/((1+'1 Données d''entrée'!$C$310)^'1 Données d''entrée'!$C$311-1)*'1 Données d''entrée'!$C$310,0)))","v":0},{"$f":"IF('1 Données d''entrée'!$C$314=\"(=NON)\",IF(I92>0,$B91*((('1 Données d''entrée'!$C$310+1)^'1 Données d''entrée'!$C$311)-(1+'1 Données d''entrée'!$C$310)^('6 Financement'!I$54-1-'1 Données d''entrée'!$C$312))/((1+'1 Données d''entrée'!$C$310)^'1 Données d''entrée'!$C$311-1)*'1 Données d''entrée'!$C$310,0),IF(I55<'1 Données d''entrée'!$C$312+1,'1 Données d''entrée'!$C$310*'6 Financement'!$B91,IF(I92>0,$B$90*((('1 Données d''entrée'!$C$310+1)^'1 Données d''entrée'!$C$311)-(1+'1 Données d''entrée'!$C$310)^('6 Financement'!I$54-1-'1 Données d''entrée'!$C$312))/((1+'1 Données d''entrée'!$C$310)^'1 Données d''entrée'!$C$311-1)*'1 Données d''entrée'!$C$310,0)))","v":0},{"$f":"IF('1 Données d''entrée'!$C$314=\"(=NON)\",IF(J92>0,$B91*((('1 Données d''entrée'!$C$310+1)^'1 Données d''entrée'!$C$311)-(1+'1 Données d''entrée'!$C$310)^('6 Financement'!J$54-1-'1 Données d''entrée'!$C$312))/((1+'1 Données d''entrée'!$C$310)^'1 Données d''entrée'!$C$311-1)*'1 Données d''entrée'!$C$310,0),IF(J55<'1 Données d''entrée'!$C$312+1,'1 Données d''entrée'!$C$310*'6 Financement'!$B91,IF(J92>0,$B$90*((('1 Données d''entrée'!$C$310+1)^'1 Données d''entrée'!$C$311)-(1+'1 Données d''entrée'!$C$310)^('6 Financement'!J$54-1-'1 Données d''entrée'!$C$312))/((1+'1 Données d''entrée'!$C$310)^'1 Données d''entrée'!$C$311-1)*'1 Données d''entrée'!$C$310,0)))","v":0},{"$f":"IF('1 Données d''entrée'!$C$314=\"(=NON)\",IF(K92>0,$B91*((('1 Données d''entrée'!$C$310+1)^'1 Données d''entrée'!$C$311)-(1+'1 Données d''entrée'!$C$310)^('6 Financement'!K$54-1-'1 Données d''entrée'!$C$312))/((1+'1 Données d''entrée'!$C$310)^'1 Données d''entrée'!$C$311-1)*'1 Données d''entrée'!$C$310,0),IF(K55<'1 Données d''entrée'!$C$312+1,'1 Données d''entrée'!$C$310*'6 Financement'!$B91,IF(K92>0,$B$90*((('1 Données d''entrée'!$C$310+1)^'1 Données d''entrée'!$C$311)-(1+'1 Données d''entrée'!$C$310)^('6 Financement'!K$54-1-'1 Données d''entrée'!$C$312))/((1+'1 Données d''entrée'!$C$310)^'1 Données d''entrée'!$C$311-1)*'1 Données d''entrée'!$C$310,0)))","v":0},{"$f":"IF('1 Données d''entrée'!$C$314=\"(=NON)\",IF(L92>0,$B91*((('1 Données d''entrée'!$C$310+1)^'1 Données d''entrée'!$C$311)-(1+'1 Données d''entrée'!$C$310)^('6 Financement'!L$54-1-'1 Données d''entrée'!$C$312))/((1+'1 Données d''entrée'!$C$310)^'1 Données d''entrée'!$C$311-1)*'1 Données d''entrée'!$C$310,0),IF(L55<'1 Données d''entrée'!$C$312+1,'1 Données d''entrée'!$C$310*'6 Financement'!$B91,IF(L92>0,$B$90*((('1 Données d''entrée'!$C$310+1)^'1 Données d''entrée'!$C$311)-(1+'1 Données d''entrée'!$C$310)^('6 Financement'!L$54-1-'1 Données d''entrée'!$C$312))/((1+'1 Données d''entrée'!$C$310)^'1 Données d''entrée'!$C$311-1)*'1 Données d''entrée'!$C$310,0)))","v":0},{"$f":"IF('1 Données d''entrée'!$C$314=\"(=NON)\",IF(M92>0,$B91*((('1 Données d''entrée'!$C$310+1)^'1 Données d''entrée'!$C$311)-(1+'1 Données d''entrée'!$C$310)^('6 Financement'!M$54-1-'1 Données d''entrée'!$C$312))/((1+'1 Données d''entrée'!$C$310)^'1 Données d''entrée'!$C$311-1)*'1 Données d''entrée'!$C$310,0),IF(M55<'1 Données d''entrée'!$C$312+1,'1 Données d''entrée'!$C$310*'6 Financement'!$B91,IF(M92>0,$B$90*((('1 Données d''entrée'!$C$310+1)^'1 Données d''entrée'!$C$311)-(1+'1 Données d''entrée'!$C$310)^('6 Financement'!M$54-1-'1 Données d''entrée'!$C$312))/((1+'1 Données d''entrée'!$C$310)^'1 Données d''entrée'!$C$311-1)*'1 Données d''entrée'!$C$310,0)))","v":0},{"$f":"IF('1 Données d''entrée'!$C$314=\"(=NON)\",IF(N92>0,$B91*((('1 Données d''entrée'!$C$310+1)^'1 Données d''entrée'!$C$311)-(1+'1 Données d''entrée'!$C$310)^('6 Financement'!N$54-1-'1 Données d''entrée'!$C$312))/((1+'1 Données d''entrée'!$C$310)^'1 Données d''entrée'!$C$311-1)*'1 Données d''entrée'!$C$310,0),IF(N55<'1 Données d''entrée'!$C$312+1,'1 Données d''entrée'!$C$310*'6 Financement'!$B91,IF(N92>0,$B$90*((('1 Données d''entrée'!$C$310+1)^'1 Données d''entrée'!$C$311)-(1+'1 Données d''entrée'!$C$310)^('6 Financement'!N$54-1-'1 Données d''entrée'!$C$312))/((1+'1 Données d''entrée'!$C$310)^'1 Données d''entrée'!$C$311-1)*'1 Données d''entrée'!$C$310,0)))","v":0},{"$f":"IF('1 Données d''entrée'!$C$314=\"(=NON)\",IF(O92>0,$B91*((('1 Données d''entrée'!$C$310+1)^'1 Données d''entrée'!$C$311)-(1+'1 Données d''entrée'!$C$310)^('6 Financement'!O$54-1-'1 Données d''entrée'!$C$312))/((1+'1 Données d''entrée'!$C$310)^'1 Données d''entrée'!$C$311-1)*'1 Données d''entrée'!$C$310,0),IF(O55<'1 Données d''entrée'!$C$312+1,'1 Données d''entrée'!$C$310*'6 Financement'!$B91,IF(O92>0,$B$90*((('1 Données d''entrée'!$C$310+1)^'1 Données d''entrée'!$C$311)-(1+'1 Données d''entrée'!$C$310)^('6 Financement'!O$54-1-'1 Données d''entrée'!$C$312))/((1+'1 Données d''entrée'!$C$310)^'1 Données d''entrée'!$C$311-1)*'1 Données d''entrée'!$C$310,0)))","v":0},{"$f":"IF('1 Données d''entrée'!$C$314=\"(=NON)\",IF(P92>0,$B91*((('1 Données d''entrée'!$C$310+1)^'1 Données d''entrée'!$C$311)-(1+'1 Données d''entrée'!$C$310)^('6 Financement'!P$54-1-'1 Données d''entrée'!$C$312))/((1+'1 Données d''entrée'!$C$310)^'1 Données d''entrée'!$C$311-1)*'1 Données d''entrée'!$C$310,0),IF(P55<'1 Données d''entrée'!$C$312+1,'1 Données d''entrée'!$C$310*'6 Financement'!$B91,IF(P92>0,$B$90*((('1 Données d''entrée'!$C$310+1)^'1 Données d''entrée'!$C$311)-(1+'1 Données d''entrée'!$C$310)^('6 Financement'!P$54-1-'1 Données d''entrée'!$C$312))/((1+'1 Données d''entrée'!$C$310)^'1 Données d''entrée'!$C$311-1)*'1 Données d''entrée'!$C$310,0)))","v":0},{"$f":"IF('1 Données d''entrée'!$C$314=\"(=NON)\",IF(Q92>0,$B91*((('1 Données d''entrée'!$C$310+1)^'1 Données d''entrée'!$C$311)-(1+'1 Données d''entrée'!$C$310)^('6 Financement'!Q$54-1-'1 Données d''entrée'!$C$312))/((1+'1 Données d''entrée'!$C$310)^'1 Données d''entrée'!$C$311-1)*'1 Données d''entrée'!$C$310,0),IF(Q55<'1 Données d''entrée'!$C$312+1,'1 Données d''entrée'!$C$310*'6 Financement'!$B91,IF(Q92>0,$B$90*((('1 Données d''entrée'!$C$310+1)^'1 Données d''entrée'!$C$311)-(1+'1 Données d''entrée'!$C$310)^('6 Financement'!Q$54-1-'1 Données d''entrée'!$C$312))/((1+'1 Données d''entrée'!$C$310)^'1 Données d''entrée'!$C$311-1)*'1 Données d''entrée'!$C$310,0)))","v":0},{"$f":"IF('1 Données d''entrée'!$C$314=\"(=NON)\",IF(R92>0,$B91*((('1 Données d''entrée'!$C$310+1)^'1 Données d''entrée'!$C$311)-(1+'1 Données d''entrée'!$C$310)^('6 Financement'!R$54-1-'1 Données d''entrée'!$C$312))/((1+'1 Données d''entrée'!$C$310)^'1 Données d''entrée'!$C$311-1)*'1 Données d''entrée'!$C$310,0),IF(R55<'1 Données d''entrée'!$C$312+1,'1 Données d''entrée'!$C$310*'6 Financement'!$B91,IF(R92>0,$B$90*((('1 Données d''entrée'!$C$310+1)^'1 Données d''entrée'!$C$311)-(1+'1 Données d''entrée'!$C$310)^('6 Financement'!R$54-1-'1 Données d''entrée'!$C$312))/((1+'1 Données d''entrée'!$C$310)^'1 Données d''entrée'!$C$311-1)*'1 Données d''entrée'!$C$310,0)))","v":0},{"$f":"IF('1 Données d''entrée'!$C$314=\"(=NON)\",IF(S92>0,$B91*((('1 Données d''entrée'!$C$310+1)^'1 Données d''entrée'!$C$311)-(1+'1 Données d''entrée'!$C$310)^('6 Financement'!S$54-1-'1 Données d''entrée'!$C$312))/((1+'1 Données d''entrée'!$C$310)^'1 Données d''entrée'!$C$311-1)*'1 Données d''entrée'!$C$310,0),IF(S55<'1 Données d''entrée'!$C$312+1,'1 Données d''entrée'!$C$310*'6 Financement'!$B91,IF(S92>0,$B$90*((('1 Données d''entrée'!$C$310+1)^'1 Données d''entrée'!$C$311)-(1+'1 Données d''entrée'!$C$310)^('6 Financement'!S$54-1-'1 Données d''entrée'!$C$312))/((1+'1 Données d''entrée'!$C$310)^'1 Données d''entrée'!$C$311-1)*'1 Données d''entrée'!$C$310,0)))","v":0},{"$f":"IF('1 Données d''entrée'!$C$314=\"(=NON)\",IF(T92>0,$B91*((('1 Données d''entrée'!$C$310+1)^'1 Données d''entrée'!$C$311)-(1+'1 Données d''entrée'!$C$310)^('6 Financement'!T$54-1-'1 Données d''entrée'!$C$312))/((1+'1 Données d''entrée'!$C$310)^'1 Données d''entrée'!$C$311-1)*'1 Données d''entrée'!$C$310,0),IF(T55<'1 Données d''entrée'!$C$312+1,'1 Données d''entrée'!$C$310*'6 Financement'!$B91,IF(T92>0,$B$90*((('1 Données d''entrée'!$C$310+1)^'1 Données d''entrée'!$C$311)-(1+'1 Données d''entrée'!$C$310)^('6 Financement'!T$54-1-'1 Données d''entrée'!$C$312))/((1+'1 Données d''entrée'!$C$310)^'1 Données d''entrée'!$C$311-1)*'1 Données d''entrée'!$C$310,0)))","v":0},{"$f":"IF('1 Données d''entrée'!$C$314=\"(=NON)\",IF(U92>0,$B91*((('1 Données d''entrée'!$C$310+1)^'1 Données d''entrée'!$C$311)-(1+'1 Données d''entrée'!$C$310)^('6 Financement'!U$54-1-'1 Données d''entrée'!$C$312))/((1+'1 Données d''entrée'!$C$310)^'1 Données d''entrée'!$C$311-1)*'1 Données d''entrée'!$C$310,0),IF(U55<'1 Données d''entrée'!$C$312+1,'1 Données d''entrée'!$C$310*'6 Financement'!$B91,IF(U92>0,$B$90*((('1 Données d''entrée'!$C$310+1)^'1 Données d''entrée'!$C$311)-(1+'1 Données d''entrée'!$C$310)^('6 Financement'!U$54-1-'1 Données d''entrée'!$C$312))/((1+'1 Données d''entrée'!$C$310)^'1 Données d''entrée'!$C$311-1)*'1 Données d''entrée'!$C$310,0)))","v":0},{"$f":"IF('1 Données d''entrée'!$C$314=\"(=NON)\",IF(V92>0,$B91*((('1 Données d''entrée'!$C$310+1)^'1 Données d''entrée'!$C$311)-(1+'1 Données d''entrée'!$C$310)^('6 Financement'!V$54-1-'1 Données d''entrée'!$C$312))/((1+'1 Données d''entrée'!$C$310)^'1 Données d''entrée'!$C$311-1)*'1 Données d''entrée'!$C$310,0),IF(V55<'1 Données d''entrée'!$C$312+1,'1 Données d''entrée'!$C$310*'6 Financement'!$B91,IF(V92>0,$B$90*((('1 Données d''entrée'!$C$310+1)^'1 Données d''entrée'!$C$311)-(1+'1 Données d''entrée'!$C$310)^('6 Financement'!V$54-1-'1 Données d''entrée'!$C$312))/((1+'1 Données d''entrée'!$C$310)^'1 Données d''entrée'!$C$311-1)*'1 Données d''entrée'!$C$310,0)))","v":0}]
["Paiements d'intérêt avec des intérêts composés en cas d'absence des paiements dans la période de grâce",0,0,{"$f":"IF(D55='1 Données d''entrée'!$C$312+1,IF('1 Données d''entrée'!$C$314=\"(=NON)\",($B91*'1 Données d''entrée'!$C$310)*((('1 Données d''entrée'!$C$310+1)^'1 Données d''entrée'!$C$312-1)/('1 Données d''entrée'!$C$310))*(1+'1 Données d''entrée'!$C$310),0),0)","v":0},{"$f":"IF(E55='1 Données d''entrée'!$C$312+1,IF('1 Données d''entrée'!$C$314=\"(=NON)\",($B91*'1 Données d''entrée'!$C$310)*((('1 Données d''entrée'!$C$310+1)^'1 Données d''entrée'!$C$312-1)/('1 Données d''entrée'!$C$310))*(1+'1 Données d''entrée'!$C$310),0),0)","v":0},{"$f":"IF(F55='1 Données d''entrée'!$C$312+1,IF('1 Données d''entrée'!$C$314=\"(=NON)\",($B91*'1 Données d''entrée'!$C$310)*((('1 Données d''entrée'!$C$310+1)^'1 Données d''entrée'!$C$312-1)/('1 Données d''entrée'!$C$310))*(1+'1 Données d''entrée'!$C$310),0),0)","v":0},{"$f":"IF(G55='1 Données d''entrée'!$C$312+1,IF('1 Données d''entrée'!$C$314=\"(=NON)\",($B91*'1 Données d''entrée'!$C$310)*((('1 Données d''entrée'!$C$310+1)^'1 Données d''entrée'!$C$312-1)/('1 Données d''entrée'!$C$310))*(1+'1 Données d''entrée'!$C$310),0),0)","v":0},{"$f":"IF(H55='1 Données d''entrée'!$C$312+1,IF('1 Données d''entrée'!$C$314=\"(=NON)\",($B91*'1 Données d''entrée'!$C$310)*((('1 Données d''entrée'!$C$310+1)^'1 Données d''entrée'!$C$312-1)/('1 Données d''entrée'!$C$310))*(1+'1 Données d''entrée'!$C$310),0),0)","v":0},{"$f":"IF(I55='1 Données d''entrée'!$C$312+1,IF('1 Données d''entrée'!$C$314=\"(=NON)\",($B91*'1 Données d''entrée'!$C$310)*((('1 Données d''entrée'!$C$310+1)^'1 Données d''entrée'!$C$312-1)/('1 Données d''entrée'!$C$310))*(1+'1 Données d''entrée'!$C$310),0),0)","v":0},{"$f":"IF(J55='1 Données d''entrée'!$C$312+1,IF('1 Données d''entrée'!$C$314=\"(=NON)\",($B91*'1 Données d''entrée'!$C$310)*((('1 Données d''entrée'!$C$310+1)^'1 Données d''entrée'!$C$312-1)/('1 Données d''entrée'!$C$310))*(1+'1 Données d''entrée'!$C$310),0),0)","v":0},{"$f":"IF(K55='1 Données d''entrée'!$C$312+1,IF('1 Données d''entrée'!$C$314=\"(=NON)\",($B91*'1 Données d''entrée'!$C$310)*((('1 Données d''entrée'!$C$310+1)^'1 Données d''entrée'!$C$312-1)/('1 Données d''entrée'!$C$310))*(1+'1 Données d''entrée'!$C$310),0),0)","v":0},{"$f":"IF(L55='1 Données d''entrée'!$C$312+1,IF('1 Données d''entrée'!$C$314=\"(=NON)\",($B91*'1 Données d''entrée'!$C$310)*((('1 Données d''entrée'!$C$310+1)^'1 Données d''entrée'!$C$312-1)/('1 Données d''entrée'!$C$310))*(1+'1 Données d''entrée'!$C$310),0),0)","v":0},{"$f":"IF(M55='1 Données d''entrée'!$C$312+1,IF('1 Données d''entrée'!$C$314=\"(=NON)\",($B91*'1 Données d''entrée'!$C$310)*((('1 Données d''entrée'!$C$310+1)^'1 Données d''entrée'!$C$312-1)/('1 Données d''entrée'!$C$310))*(1+'1 Données d''entrée'!$C$310),0),0)","v":0},{"$f":"IF(N55='1 Données d''entrée'!$C$312+1,IF('1 Données d''entrée'!$C$314=\"(=NON)\",($B91*'1 Données d''entrée'!$C$310)*((('1 Données d''entrée'!$C$310+1)^'1 Données d''entrée'!$C$312-1)/('1 Données d''entrée'!$C$310))*(1+'1 Données d''entrée'!$C$310),0),0)","v":0},{"$f":"IF(O55='1 Données d''entrée'!$C$312+1,IF('1 Données d''entrée'!$C$314=\"(=NON)\",($B91*'1 Données d''entrée'!$C$310)*((('1 Données d''entrée'!$C$310+1)^'1 Données d''entrée'!$C$312-1)/('1 Données d''entrée'!$C$310))*(1+'1 Données d''entrée'!$C$310),0),0)","v":0},{"$f":"IF(P55='1 Données d''entrée'!$C$312+1,IF('1 Données d''entrée'!$C$314=\"(=NON)\",($B91*'1 Données d''entrée'!$C$310)*((('1 Données d''entrée'!$C$310+1)^'1 Données d''entrée'!$C$312-1)/('1 Données d''entrée'!$C$310))*(1+'1 Données d''entrée'!$C$310),0),0)","v":0},{"$f":"IF(Q55='1 Données d''entrée'!$C$312+1,IF('1 Données d''entrée'!$C$314=\"(=NON)\",($B91*'1 Données d''entrée'!$C$310)*((('1 Données d''entrée'!$C$310+1)^'1 Données d''entrée'!$C$312-1)/('1 Données d''entrée'!$C$310))*(1+'1 Données d''entrée'!$C$310),0),0)","v":0},{"$f":"IF(R55='1 Données d''entrée'!$C$312+1,IF('1 Données d''entrée'!$C$314=\"(=NON)\",($B91*'1 Données d''entrée'!$C$310)*((('1 Données d''entrée'!$C$310+1)^'1 Données d''entrée'!$C$312-1)/('1 Données d''entrée'!$C$310))*(1+'1 Données d''entrée'!$C$310),0),0)","v":0},{"$f":"IF(S55='1 Données d''entrée'!$C$312+1,IF('1 Données d''entrée'!$C$314=\"(=NON)\",($B91*'1 Données d''entrée'!$C$310)*((('1 Données d''entrée'!$C$310+1)^'1 Données d''entrée'!$C$312-1)/('1 Données d''entrée'!$C$310))*(1+'1 Données d''entrée'!$C$310),0),0)","v":0},{"$f":"IF(T55='1 Données d''entrée'!$C$312+1,IF('1 Données d''entrée'!$C$314=\"(=NON)\",($B91*'1 Données d''entrée'!$C$310)*((('1 Données d''entrée'!$C$310+1)^'1 Données d''entrée'!$C$312-1)/('1 Données d''entrée'!$C$310))*(1+'1 Données d''entrée'!$C$310),0),0)","v":0},{"$f":"IF(U55='1 Données d''entrée'!$C$312+1,IF('1 Données d''entrée'!$C$314=\"(=NON)\",($B91*'1 Données d''entrée'!$C$310)*((('1 Données d''entrée'!$C$310+1)^'1 Données d''entrée'!$C$312-1)/('1 Données d''entrée'!$C$310))*(1+'1 Données d''entrée'!$C$310),0),0)","v":0},{"$f":"IF(V55='1 Données d''entrée'!$C$312+1,IF('1 Données d''entrée'!$C$314=\"(=NON)\",($B91*'1 Données d''entrée'!$C$310)*((('1 Données d''entrée'!$C$310+1)^'1 Données d''entrée'!$C$312-1)/('1 Données d''entrée'!$C$310))*(1+'1 Données d''entrée'!$C$310),0),0)","v":0}]
[]
["Solde du compte intermédiaire"]
["Solde du comte (par période)",{"$f":"B57+B59+B61+IF($B63>0,(B64-B65-B66-B67),0)+IF($B68>0,(B69-B70-B71-B72),0)+IF($B73>0,(B74-B75-IF(B75>0,0,B76)-B77),0)+B79+IF($B80>0,(B81-B82-B83-B84),0)+IF($B85>0,(B86-B87-B88-B89),0)+IF($B90>0,B91-IF(B92>0,0,B93)-B94,0)","v":{"$error":"#DIV/0!"}},{"$f":"C57+C59+C61+IF($B63>0,(-C65-C66-C67),0)+IF($B68>0,(-C70-C71-C72),0)+C79+IF($B73>0,(-C75-IF(C75>0,0,C76)-C77),0)+IF($B80>0,(-C82-C83-C84),0)+IF($B85>0,(-C87-C88-C89),0)+IF($B90>0,(-C92-IF(C92>0,0,C93)-C94),0)","v":{"$error":"#DIV/0!"}},{"$f":"D57+D59+D61+IF($B63>0,(-D65-D66-D67),0)+IF($B68>0,(-D70-D71-D72),0)+D79+IF($B73>0,(-D75-IF(D75>0,0,D76)-D77),0)+IF($B80>0,(-D82-D83-D84),0)+IF($B85>0,(-D87-D88-D89),0)+IF($B90>0,(-D92-IF(D92>0,0,D93)-D94),0)","v":{"$error":"#DIV/0!"}},{"$error":"#DIV/0!"},{"$error":"#DIV/0!"},{"$error":"#DIV/0!"},{"$error":"#DIV/0!"},{"$error":"#DIV/0!"},{"$error":"#DIV/0!"},{"$error":"#DIV/0!"},{"$error":"#DIV/0!"},{"$error":"#DIV/0!"},{"$error":"#DIV/0!"},{"$error":"#DIV/0!"},{"$error":"#DIV/0!"},{"$error":"#DIV/0!"},{"$error":"#DIV/0!"},{"$error":"#DIV/0!"},{"$error":"#DIV/0!"},{"$error":"#DIV/0!"},{"$error":"#DIV/0!"}]
["Solde du compte (cumulé)",{"$f":"B97","v":{"$error":"#DIV/0!"}},{"$f":"B98+C97","v":{"$error":"#DIV/0!"}},{"$error":"#DIV/0!"},{"$error":"#DIV/0!"},{"$error":"#DIV/0!"},{"$error":"#DIV/0!"},{"$error":"#DIV/0!"},{"$error":"#DIV/0!"},{"$error":"#DIV/0!"},{"$error":"#DIV/0!"},{"$error":"#DIV/0!"},{"$error":"#DIV/0!"},{"$error":"#DIV/0!"},{"$error":"#DIV/0!"},{"$error":"#DIV/0!"},{"$error":"#DIV/0!"},{"$error":"#DIV/0!"},{"$error":"#DIV/0!"},{"$error":"#DIV/0!"},{"$error":"#DIV/0!"},{"$error":"#DIV/0!"}]
[]
[]
[]
["Prêt bancaire additionnel"]
[null,"Période",1,2,3,4,5,6,7,8,9,10,11,12,13,14,15,16,17,18,19,20]
["Prêt bancaire additionnel - Option 1: Remboursement du principal fractionné",{"$f":"'1 Données d''entrée'!$B$342","v":0}]
["Prêt(s) nouveau(x)",null,{"$f":"IF(C98<0,C98*(-1)*$B104+C98*(-1)*$B104*'1 Données d''entrée'!$C$338,0)","v":{"$error":"#DIV/0!"}},{"$f":"IF(D98<0,D98*(-1)*$B104+D98*(-1)*$B104*'1 Données d''entrée'!$C$338,0)","v":{"$error":"#DIV/0!"}},{"$f":"IF(E98<0,E98*(-1)*$B104+E98*(-1)*$B104*'1 Données d''entrée'!$C$338,0)","v":{"$error":"#DIV/0!"}},{"$f":"IF(F98<0,F98*(-1)*$B104+F98*(-1)*$B104*'1 Données d''entrée'!$C$338,0)","v":{"$error":"#DIV/0!"}},{"$f":"IF(G98<0,G98*(-1)*$B104+G98*(-1)*$B104*'1 Données d''entrée'!$C$338,0)","v":{"$error":"#DIV/0!"}},{"$f":"IF(H98<0,H98*(-1)*$B104+H98*(-1)*$B104*'1 Données d''entrée'!$C$338,0)","v":{"$error":"#DIV/0!"}},{"$f":"IF(I98<0,I98*(-1)*$B104+I98*(-1)*$B104*'1 Données d''entrée'!$C$338,0)","v":{"$error":"#DIV/0!"}},{"$f":"IF(J98<0,J98*(-1)*$B104+J98*(-1)*$B104*'1 Données d''entrée'!$C$338,0)","v":{"$error":"#DIV/0!"}},{"$f":"IF(K98<0,K98*(-1)*$B104+K98*(-1)*$B104*'1 Données d''entrée'!$C$338,0)","v":{"$error":"#DIV/0!"}},{"$f":"IF(L98<0,L98*(-1)*$B104+L98*(-1)*$B104*'1 Données d''entrée'!$C$338,0)","v":{"$error":"#DIV/0!"}},{"$f":"IF(M98<0,M98*(-1)*$B104+M98*(-1)*$B104*'1 Données d''entrée'!$C$338,0)","v":{"$error":"#DIV/0!"}},{"$f":"IF(N98<0,N98*(-1)*$B104+N98*(-1)*$B104*'1 Données d''entrée'!$C$338,0)","v":{"$error":"#DIV/0!"}},{"$f":"IF(O98<0,O98*(-1)*$B104+O98*(-1)*$B104*'1 Données d''entrée'!$C$338,0)","v":{"$error":"#DIV/0!"}},{"$f":"IF(P98<0,P98*(-1)*$B104+P98*(-1)*$B104*'1 Données d''entrée'!$C$338,0)","v":{"$error":"#DIV/0!"}},{"$f":"IF(Q98<0,Q98*(-1)*$B104+Q98*(-1)*$B104*'1 Données d''entrée'!$C$338,0)","v":{"$error":"#DIV/0!"}},{"$f":"IF(R98<0,R98*(-1)*$B104+R98*(-1)*$B104*'1 Données d''entrée'!$C$338,0)","v":{"$error":"#DIV/0!"}},{"$f":"IF(S98<0,S98*(-1)*$B104+S98*(-1)*$B104*'1 Données d''entrée'!$C$338,0)","v":{"$error":"#DIV/0!"}},{"$f":"IF(T98<0,T98*(-1)*$B104+T98*(-1)*$B104*'1 Données d''entrée'!$C$338,0)","v":{"$error":"#DIV/0!"}},{"$f":"IF(U98<0,U98*(-1)*$B104+U98*(-1)*$B104*'1 Données d''entrée'!$C$338,0)","v":{"$error":"#DIV/0!"}},{"$f":"IF(V98<0,V98*(-1)*$B104+V98*(-1)*$B104*'1 Données d''entrée'!$C$338,0)","v":{"$error":"#DIV/0!"}}]
[null,"Période de prêt nouveau"]
["Remboursement du principal",0,0,0,0,0,0,0,0,0,0,0,0,0,0,0,0,0,0,0,0,0]
[null,1,{"$f":"IF(C55<'1 Données d''entrée'!$C$334+1+$B108,0,IF(C55<'1 Données d''entrée'!$C$333+'1 Données d''entrée'!$C$334+1+$B108,($C105/'1 Données d''entrée'!$C$333),0))","v":0},{"$f":"IF(D55<'1 Données d''entrée'!$C$334+1+$B108,0,IF(D55<'1 Données d''entrée'!$C$333+'1 Données d''entrée'!$C$334+1+$B108,($C105/'1 Données d''entrée'!$C$333),0))","v":0},{"$f":"IF(E55<'1 Données d''entrée'!$C$334+1+$B108,0,IF(E55<'1 Données d''entrée'!$C$333+'1 Données d''entrée'!$C$334+1+$B108,($C105/'1 Données d''entrée'!$C$333),0))","v":0},{"$f":"IF(F55<'1 Données d''entrée'!$C$334+1+$B108,0,IF(F55<'1 Données d''entrée'!$C$333+'1 Données d''entrée'!$C$334+1+$B108,($C105/'1 Données d''entrée'!$C$333),0))","v":0},{"$f":"IF(G55<'1 Données d''entrée'!$C$334+1+$B108,0,IF(G55<'1 Données d''entrée'!$C$333+'1 Données d''entrée'!$C$334+1+$B108,($C105/'1 Données d''entrée'!$C$333),0))","v":0},{"$f":"IF(H55<'1 Données d''entrée'!$C$334+1+$B108,0,IF(H55<'1 Données d''entrée'!$C$333+'1 Données d''entrée'!$C$334+1+$B108,($C105/'1 Données d''entrée'!$C$333),0))","v":0},{"$f":"IF(I55<'1 Données d''entrée'!$C$334+1+$B108,0,IF(I55<'1 Données d''entrée'!$C$333+'1 Données d''entrée'!$C$334+1+$B108,($C105/'1 Données d''entrée'!$C$333),0))","v":0},{"$f":"IF(J55<'1 Données d''entrée'!$C$334+1+$B108,0,IF(J55<'1 Données d''entrée'!$C$333+'1 Données d''entrée'!$C$334+1+$B108,($C105/'1 Données d''entrée'!$C$333),0))","v":0},{"$f":"IF(K55<'1 Données d''entrée'!$C$334+1+$B108,0,IF(K55<'1 Données d''entrée'!$C$333+'1 Données d''entrée'!$C$334+1+$B108,($C105/'1 Données d''entrée'!$C$333),0))","v":0},{"$f":"IF(L55<'1 Données d''entrée'!$C$334+1+$B108,0,IF(L55<'1 Données d''entrée'!$C$333+'1 Données d''entrée'!$C$334+1+$B108,($C105/'1 Données d''entrée'!$C$333),0))","v":0},{"$f":"IF(M55<'1 Données d''entrée'!$C$334+1+$B108,0,IF(M55<'1 Données d''entrée'!$C$333+'1 Données d''entrée'!$C$334+1+$B108,($C105/'1 Données d''entrée'!$C$333),0))","v":0},{"$f":"IF(N55<'1 Données d''entrée'!$C$334+1+$B108,0,IF(N55<'1 Données d''entrée'!$C$333+'1 Données d''entrée'!$C$334+1+$B108,($C105/'1 Données d''entrée'!$C$333),0))","v":0},{"$f":"IF(O55<'1 Données d''entrée'!$C$334+1+$B108,0,IF(O55<'1 Données d''entrée'!$C$333+'1 Données d''entrée'!$C$334+1+$B108,($C105/'1 Données d''entrée'!$C$333),0))","v":0},{"$f":"IF(P55<'1 Données d''entrée'!$C$334+1+$B108,0,IF(P55<'1 Données d''entrée'!$C$333+'1 Données d''entrée'!$C$334+1+$B108,($C105/'1 Données d''entrée'!$C$333),0))","v":0},{"$f":"IF(Q55<'1 Données d''entrée'!$C$334+1+$B108,0,IF(Q55<'1 Données d''entrée'!$C$333+'1 Données d''entrée'!$C$334+1+$B108,($C105/'1 Données d''entrée'!$C$333),0))","v":0},{"$f":"IF(R55<'1 Données d''entrée'!$C$334+1+$B108,0,IF(R55<'1 Données d''entrée'!$C$333+'1 Données d''entrée'!$C$334+1+$B108,($C105/'1 Données d''entrée'!$C$333),0))","v":0},{"$f":"IF(S55<'1 Données d''entrée'!$C$334+1+$B108,0,IF(S55<'1 Données d''entrée'!$C$333+'1 Données d''entrée'!$C$334+1+$B108,($C105/'1 Données d''entrée'!$C$333),0))","v":0},{"$f":"IF(T55<'1 Données d''entrée'!$C$334+1+$B108,0,IF(T55<'1 Données d''entrée'!$C$333+'1 Données d''entrée'!$C$334+1+$B108,($C105/'1 Données d''entrée'!$C$333),0))","v":0},{"$f":"IF(U55<'1 Données d''entrée'!$C$334+1+$B108,0,IF(U55<'1 Données d''entrée'!$C$333+'1 Données d''entrée'!$C$334+1+$B108,($C105/'1 Données d''entrée'!$C$333),0))","v":0},{"$f":"IF(V55<'1 Données d''entrée'!$C$334+1+$B108,0,IF(V55<'1 Données d''entrée'!$C$333+'1 Données d''entrée'!$C$334+1+$B108,($C105/'1 Données d''entrée'!$C$333),0))","v":0}]
[null,2,{"$f":"IF(C55<'1 Données d''entrée'!$C$334+1+$B109,0,IF(C55<'1 Données d''entrée'!$C$333+'1 Données d''entrée'!$C$334+1+$B109,($D105/'1 Données d''entrée'!$C$333),0))","v":0},{"$f":"IF(D55<'1 Données d''entrée'!$C$334+1+$B109,0,IF(D55<'1 Données d''entrée'!$C$333+'1 Données d''entrée'!$C$334+1+$B109,($D105/'1 Données d''entrée'!$C$333),0))","v":0},{"$f":"IF(E55<'1 Données d''entrée'!$C$334+1+$B109,0,IF(E55<'1 Données d''entrée'!$C$333+'1 Données d''entrée'!$C$334+1+$B109,($D105/'1 Données d''entrée'!$C$333),0))","v":0},{"$f":"IF(F55<'1 Données d''entrée'!$C$334+1+$B109,0,IF(F55<'1 Données d''entrée'!$C$333+'1 Données d''entrée'!$C$334+1+$B109,($D105/'1 Données d''entrée'!$C$333),0))","v":0},{"$f":"IF(G55<'1 Données d''entrée'!$C$334+1+$B109,0,IF(G55<'1 Données d''entrée'!$C$333+'1 Données d''entrée'!$C$334+1+$B109,($D105/'1 Données d''entrée'!$C$333),0))","v":0},{"$f":"IF(H55<'1 Données d''entrée'!$C$334+1+$B109,0,IF(H55<'1 Données d''entrée'!$C$333+'1 Données d''entrée'!$C$334+1+$B109,($D105/'1 Données d''entrée'!$C$333),0))","v":0},{"$f":"IF(I55<'1 Données d''entrée'!$C$334+1+$B109,0,IF(I55<'1 Données d''entrée'!$C$333+'1 Données d''entrée'!$C$334+1+$B109,($D105/'1 Données d''entrée'!$C$333),0))","v":0},{"$f":"IF(J55<'1 Données d''entrée'!$C$334+1+$B109,0,IF(J55<'1 Données d''entrée'!$C$333+'1 Données d''entrée'!$C$334+1+$B109,($D105/'1 Données d''entrée'!$C$333),0))","v":0},{"$f":"IF(K55<'1 Données d''entrée'!$C$334+1+$B109,0,IF(K55<'1 Données d''entrée'!$C$333+'1 Données d''entrée'!$C$334+1+$B109,($D105/'1 Données d''entrée'!$C$333),0))","v":0},{"$f":"IF(L55<'1 Données d''entrée'!$C$334+1+$B109,0,IF(L55<'1 Données d''entrée'!$C$333+'1 Données d''entrée'!$C$334+1+$B109,($D105/'1 Données d''entrée'!$C$333),0))","v":0},{"$f":"IF(M55<'1 Données d''entrée'!$C$334+1+$B109,0,IF(M55<'1 Données d''entrée'!$C$333+'1 Données d''entrée'!$C$334+1+$B109,($D105/'1 Données d''entrée'!$C$333),0))","v":0},{"$f":"IF(N55<'1 Données d''entrée'!$C$334+1+$B109,0,IF(N55<'1 Données d''entrée'!$C$333+'1 Données d''entrée'!$C$334+1+$B109,($D105/'1 Données d''entrée'!$C$333),0))","v":0},{"$f":"IF(O55<'1 Données d''entrée'!$C$334+1+$B109,0,IF(O55<'1 Données d''entrée'!$C$333+'1 Données d''entrée'!$C$334+1+$B109,($D105/'1 Données d''entrée'!$C$333),0))","v":0},{"$f":"IF(P55<'1 Données d''entrée'!$C$334+1+$B109,0,IF(P55<'1 Données d''entrée'!$C$333+'1 Données d''entrée'!$C$334+1+$B109,($D105/'1 Données d''entrée'!$C$333),0))","v":0},{"$f":"IF(Q55<'1 Données d''entrée'!$C$334+1+$B109,0,IF(Q55<'1 Données d''entrée'!$C$333+'1 Données d''entrée'!$C$334+1+$B109,($D105/'1 Données d''entrée'!$C$333),0))","v":0},{"$f":"IF(R55<'1 Données d''entrée'!$C$334+1+$B109,0,IF(R55<'1 Données d''entrée'!$C$333+'1 Données d''entrée'!$C$334+1+$B109,($D105/'1 Données d''entrée'!$C$333),0))","v":0},{"$f":"IF(S55<'1 Données d''entrée'!$C$334+1+$B109,0,IF(S55<'1 Données d''entrée'!$C$333+'1 Données d''entrée'!$C$334+1+$B109,($D105/'1 Données d''entrée'!$C$333),0))","v":0},{"$f":"IF(T55<'1 Données d''entrée'!$C$334+1+$B109,0,IF(T55<'1 Données d''entrée'!$C$333+'1 Données d''entrée'!$C$334+1+$B109,($D105/'1 Données d''entrée'!$C$333),0))","v":0},{"$f":"IF(U55<'1 Données d''entrée'!$C$334+1+$B109,0,IF(U55<'1 Données d''entrée'!$C$333+'1 Données d''entrée'!$C$334+1+$B109,($D105/'1 Données d''entrée'!$C$333),0))","v":0},{"$f":"IF(V55<'1 Données d''entrée'!$C$334+1+$B109,0,IF(V55<'1 Données d''entrée'!$C$333+'1 Données d''entrée'!$C$334+1+$B109,($D105/'1 Données d''entrée'!$C$333),0))","v":0}]
[null,3,{"$f":"IF(C55<'1 Données d''entrée'!$C$334+1+$B110,0,IF(C55<'1 Données d''entrée'!$C$333+'1 Données d''entrée'!$C$334+1+$B110,($E105/'1 Données d''entrée'!$C$333),0))","v":0},{"$f":"IF(D55<'1 Données d''entrée'!$C$334+1+$B110,0,IF(D55<'1 Données d''entrée'!$C$333+'1 Données d''entrée'!$C$334+1+$B110,($E105/'1 Données d''entrée'!$C$333),0))","v":0},{"$f":"IF(E55<'1 Données d''entrée'!$C$334+1+$B110,0,IF(E55<'1 Données d''entrée'!$C$333+'1 Données d''entrée'!$C$334+1+$B110,($E105/'1 Données d''entrée'!$C$333),0))","v":0},{"$f":"IF(F55<'1 Données d''entrée'!$C$334+1+$B110,0,IF(F55<'1 Données d''entrée'!$C$333+'1 Données d''entrée'!$C$334+1+$B110,($E105/'1 Données d''entrée'!$C$333),0))","v":0},{"$f":"IF(G55<'1 Données d''entrée'!$C$334+1+$B110,0,IF(G55<'1 Données d''entrée'!$C$333+'1 Données d''entrée'!$C$334+1+$B110,($E105/'1 Données d''entrée'!$C$333),0))","v":0},{"$f":"IF(H55<'1 Données d''entrée'!$C$334+1+$B110,0,IF(H55<'1 Données d''entrée'!$C$333+'1 Données d''entrée'!$C$334+1+$B110,($E105/'1 Données d''entrée'!$C$333),0))","v":0},{"$f":"IF(I55<'1 Données d''entrée'!$C$334+1+$B110,0,IF(I55<'1 Données d''entrée'!$C$333+'1 Données d''entrée'!$C$334+1+$B110,($E105/'1 Données d''entrée'!$C$333),0))","v":0},{"$f":"IF(J55<'1 Données d''entrée'!$C$334+1+$B110,0,IF(J55<'1 Données d''entrée'!$C$333+'1 Données d''entrée'!$C$334+1+$B110,($E105/'1 Données d''entrée'!$C$333),0))","v":0},{"$f":"IF(K55<'1 Données d''entrée'!$C$334+1+$B110,0,IF(K55<'1 Données d''entrée'!$C$333+'1 Données d''entrée'!$C$334+1+$B110,($E105/'1 Données d''entrée'!$C$333),0))","v":0},{"$f":"IF(L55<'1 Données d''entrée'!$C$334+1+$B110,0,IF(L55<'1 Données d''entrée'!$C$333+'1 Données d''entrée'!$C$334+1+$B110,($E105/'1 Données d''entrée'!$C$333),0))","v":0},{"$f":"IF(M55<'1 Données d''entrée'!$C$334+1+$B110,0,IF(M55<'1 Données d''entrée'!$C$333+'1 Données d''entrée'!$C$334+1+$B110,($E105/'1 Données d''entrée'!$C$333),0))","v":0},{"$f":"IF(N55<'1 Données d''entrée'!$C$334+1+$B110,0,IF(N55<'1 Données d''entrée'!$C$333+'1 Données d''entrée'!$C$334+1+$B110,($E105/'1 Données d''entrée'!$C$333),0))","v":0},{"$f":"IF(O55<'1 Données d''entrée'!$C$334+1+$B110,0,IF(O55<'1 Données d''entrée'!$C$333+'1 Données d''entrée'!$C$334+1+$B110,($E105/'1 Données d''entrée'!$C$333),0))","v":0},{"$f":"IF(P55<'1 Données d''entrée'!$C$334+1+$B110,0,IF(P55<'1 Données d''entrée'!$C$333+'1 Données d''entrée'!$C$334+1+$B110,($E105/'1 Données d''entrée'!$C$333),0))","v":0},{"$f":"IF(Q55<'1 Données d''entrée'!$C$334+1+$B110,0,IF(Q55<'1 Données d''entrée'!$C$333+'1 Données d''entrée'!$C$334+1+$B110,($E105/'1 Données d''entrée'!$C$333),0))","v":0},{"$f":"IF(R55<'1 Données d''entrée'!$C$334+1+$B110,0,IF(R55<'1 Données d''entrée'!$C$333+'1 Données d''entrée'!$C$334+1+$B110,($E105/'1 Données d''entrée'!$C$333),0))","v":0},{"$f":"IF(S55<'1 Données d''entrée'!$C$334+1+$B110,0,IF(S55<'1 Données d''entrée'!$C$333+'1 Données d''entrée'!$C$334+1+$B110,($E105/'1 Données d''entrée'!$C$333),0))","v":0},{"$f":"IF(T55<'1 Données d''entrée'!$C$334+1+$B110,0,IF(T55<'1 Données d''entrée'!$C$333+'1 Données d''entrée'!$C$334+1+$B110,($E105/'1 Données d''entrée'!$C$333),0))","v":0},{"$f":"IF(U55<'1 Données d''entrée'!$C$334+1+$B110,0,IF(U55<'1 Données d''entrée'!$C$333+'1 Données d''entrée'!$C$334+1+$B110,($E105/'1 Données d''entrée'!$C$333),0))","v":0},{"$f":"IF(V55<'1 Données d''entrée'!$C$334+1+$B110,0,IF(V55<'1 Données d''entrée'!$C$333+'1 Données d''entrée'!$C$334+1+$B110,($E105/'1 Données d''entrée'!$C$333),0))","v":0}]
[null,4,{"$f":"IF(C55<'1 Données d''entrée'!$C$334+1+$B111,0,IF(C55<'1 Données d''entrée'!$C$333+'1 Données d''entrée'!$C$334+1+$B111,($F105/'1 Données d''entrée'!$C$333),0))","v":0},{"$f":"IF(D55<'1 Données d''entrée'!$C$334+1+$B111,0,IF(D55<'1 Données d''entrée'!$C$333+'1 Données d''entrée'!$C$334+1+$B111,($F105/'1 Données d''entrée'!$C$333),0))","v":0},{"$f":"IF(E55<'1 Données d''entrée'!$C$334+1+$B111,0,IF(E55<'1 Données d''entrée'!$C$333+'1 Données d''entrée'!$C$334+1+$B111,($F105/'1 Données d''entrée'!$C$333),0))","v":0},{"$f":"IF(F55<'1 Données d''entrée'!$C$334+1+$B111,0,IF(F55<'1 Données d''entrée'!$C$333+'1 Données d''entrée'!$C$334+1+$B111,($F105/'1 Données d''entrée'!$C$333),0))","v":0},{"$f":"IF(G55<'1 Données d''entrée'!$C$334+1+$B111,0,IF(G55<'1 Données d''entrée'!$C$333+'1 Données d''entrée'!$C$334+1+$B111,($F105/'1 Données d''entrée'!$C$333),0))","v":0},{"$f":"IF(H55<'1 Données d''entrée'!$C$334+1+$B111,0,IF(H55<'1 Données d''entrée'!$C$333+'1 Données d''entrée'!$C$334+1+$B111,($F105/'1 Données d''entrée'!$C$333),0))","v":0},{"$f":"IF(I55<'1 Données d''entrée'!$C$334+1+$B111,0,IF(I55<'1 Données d''entrée'!$C$333+'1 Données d''entrée'!$C$334+1+$B111,($F105/'1 Données d''entrée'!$C$333),0))","v":0},{"$f":"IF(J55<'1 Données d''entrée'!$C$334+1+$B111,0,IF(J55<'1 Données d''entrée'!$C$333+'1 Données d''entrée'!$C$334+1+$B111,($F105/'1 Données d''entrée'!$C$333),0))","v":0},{"$f":"IF(K55<'1 Données d''entrée'!$C$334+1+$B111,0,IF(K55<'1 Données d''entrée'!$C$333+'1 Données d''entrée'!$C$334+1+$B111,($F105/'1 Données d''entrée'!$C$333),0))","v":0},{"$f":"IF(L55<'1 Données d''entrée'!$C$334+1+$B111,0,IF(L55<'1 Données d''entrée'!$C$333+'1 Données d''entrée'!$C$334+1+$B111,($F105/'1 Données d''entrée'!$C$333),0))","v":0},{"$f":"IF(M55<'1 Données d''entrée'!$C$334+1+$B111,0,IF(M55<'1 Données d''entrée'!$C$333+'1 Données d''entrée'!$C$334+1+$B111,($F105/'1 Données d''entrée'!$C$333),0))","v":0},{"$f":"IF(N55<'1 Données d''entrée'!$C$334+1+$B111,0,IF(N55<'1 Données d''entrée'!$C$333+'1 Données d''entrée'!$C$334+1+$B111,($F105/'1 Données d''entrée'!$C$333),0))","v":0},{"$f":"IF(O55<'1 Données d''entrée'!$C$334+1+$B111,0,IF(O55<'1 Données d''entrée'!$C$333+'1 Données d''entrée'!$C$334+1+$B111,($F105/'1 Données d''entrée'!$C$333),0))","v":0},{"$f":"IF(P55<'1 Données d''entrée'!$C$334+1+$B111,0,IF(P55<'1 Données d''entrée'!$C$333+'1 Données d''entrée'!$C$334+1+$B111,($F105/'1 Données d''entrée'!$C$333),0))","v":0},{"$f":"IF(Q55<'1 Données d''entrée'!$C$334+1+$B111,0,IF(Q55<'1 Données d''entrée'!$C$333+'1 Données d''entrée'!$C$334+1+$B111,($F105/'1 Données d''entrée'!$C$333),0))","v":0},{"$f":"IF(R55<'1 Données d''entrée'!$C$334+1+$B111,0,IF(R55<'1 Données d''entrée'!$C$333+'1 Données d''entrée'!$C$334+1+$B111,($F105/'1 Données d''entrée'!$C$333),0))","v":0},{"$f":"IF(S55<'1 Données d''entrée'!$C$334+1+$B111,0,IF(S55<'1 Données d''entrée'!$C$333+'1 Données d''entrée'!$C$334+1+$B111,($F105/'1 Données d''entrée'!$C$333),0))","v":0},{"$f":"IF(T55<'1 Données d''entrée'!$C$334+1+$B111,0,IF(T55<'1 Données d''entrée'!$C$333+'1 Données d''entrée'!$C$334+1+$B111,($F105/'1 Données d''entrée'!$C$333),0))","v":0},{"$f":"IF(U55<'1 Données d''entrée'!$C$334+1+$B111,0,IF(U55<'1 Données d''entrée'!$C$333+'1 Données d''entrée'!$C$334+1+$B111,($F105/'1 Données d''entrée'!$C$333),0))","v":0},{"$f":"IF(V55<'1 Données d''entrée'!$C$334+1+$B111,0,IF(V55<'1 Données d''entrée'!$C$333+'1 Données d''entrée'!$C$334+1+$B111,($F105/'1 Données d''entrée'!$C$333),0))","v":0}]
[null,5,{"$f":"IF(C55<'1 Données d''entrée'!$C$334+1+$B112,0,IF(C55<'1 Données d''entrée'!$C$333+'1 Données d''entrée'!$C$334+1+$B112,($G105/'1 Données d''entrée'!$C$333),0))","v":0},{"$f":"IF(D55<'1 Données d''entrée'!$C$334+1+$B112,0,IF(D55<'1 Données d''entrée'!$C$333+'1 Données d''entrée'!$C$334+1+$B112,($G105/'1 Données d''entrée'!$C$333),0))","v":0},{"$f":"IF(E55<'1 Données d''entrée'!$C$334+1+$B112,0,IF(E55<'1 Données d''entrée'!$C$333+'1 Données d''entrée'!$C$334+1+$B112,($G105/'1 Données d''entrée'!$C$333),0))","v":0},{"$f":"IF(F55<'1 Données d''entrée'!$C$334+1+$B112,0,IF(F55<'1 Données d''entrée'!$C$333+'1 Données d''entrée'!$C$334+1+$B112,($G105/'1 Données d''entrée'!$C$333),0))","v":0},{"$f":"IF(G55<'1 Données d''entrée'!$C$334+1+$B112,0,IF(G55<'1 Données d''entrée'!$C$333+'1 Données d''entrée'!$C$334+1+$B112,($G105/'1 Données d''entrée'!$C$333),0))","v":0},{"$f":"IF(H55<'1 Données d''entrée'!$C$334+1+$B112,0,IF(H55<'1 Données d''entrée'!$C$333+'1 Données d''entrée'!$C$334+1+$B112,($G105/'1 Données d''entrée'!$C$333),0))","v":0},{"$f":"IF(I55<'1 Données d''entrée'!$C$334+1+$B112,0,IF(I55<'1 Données d''entrée'!$C$333+'1 Données d''entrée'!$C$334+1+$B112,($G105/'1 Données d''entrée'!$C$333),0))","v":0},{"$f":"IF(J55<'1 Données d''entrée'!$C$334+1+$B112,0,IF(J55<'1 Données d''entrée'!$C$333+'1 Données d''entrée'!$C$334+1+$B112,($G105/'1 Données d''entrée'!$C$333),0))","v":0},{"$f":"IF(K55<'1 Données d''entrée'!$C$334+1+$B112,0,IF(K55<'1 Données d''entrée'!$C$333+'1 Données d''entrée'!$C$334+1+$B112,($G105/'1 Données d''entrée'!$C$333),0))","v":0},{"$f":"IF(L55<'1 Données d''entrée'!$C$334+1+$B112,0,IF(L55<'1 Données d''entrée'!$C$333+'1 Données d''entrée'!$C$334+1+$B112,($G105/'1 Données d''entrée'!$C$333),0))","v":0},{"$f":"IF(M55<'1 Données d''entrée'!$C$334+1+$B112,0,IF(M55<'1 Données d''entrée'!$C$333+'1 Données d''entrée'!$C$334+1+$B112,($G105/'1 Données d''entrée'!$C$333),0))","v":0},{"$f":"IF(N55<'1 Données d''entrée'!$C$334+1+$B112,0,IF(N55<'1 Données d''entrée'!$C$333+'1 Données d''entrée'!$C$334+1+$B112,($G105/'1 Données d''entrée'!$C$333),0))","v":0},{"$f":"IF(O55<'1 Données d''entrée'!$C$334+1+$B112,0,IF(O55<'1 Données d''entrée'!$C$333+'1 Données d''entrée'!$C$334+1+$B112,($G105/'1 Données d''entrée'!$C$333),0))","v":0},{"$f":"IF(P55<'1 Données d''entrée'!$C$334+1+$B112,0,IF(P55<'1 Données d''entrée'!$C$333+'1 Données d''entrée'!$C$334+1+$B112,($G105/'1 Données d''entrée'!$C$333),0))","v":0},{"$f":"IF(Q55<'1 Données d''entrée'!$C$334+1+$B112,0,IF(Q55<'1 Données d''entrée'!$C$333+'1 Données d''entrée'!$C$334+1+$B112,($G105/'1 Données d''entrée'!$C$333),0))","v":0},{"$f":"IF(R55<'1 Données d''entrée'!$C$334+1+$B112,0,IF(R55<'1 Données d''entrée'!$C$333+'1 Données d''entrée'!$C$334+1+$B112,($G105/'1 Données d''entrée'!$C$333),0))","v":0},{"$f":"IF(S55<'1 Données d''entrée'!$C$334+1+$B112,0,IF(S55<'1 Données d''entrée'!$C$333+'1 Données d''entrée'!$C$334+1+$B112,($G105/'1 Données d''entrée'!$C$333),0))","v":0},{"$f":"IF(T55<'1 Données d''entrée'!$C$334+1+$B112,0,IF(T55<'1 Données d''entrée'!$C$333+'1 Données d''entrée'!$C$334+1+$B112,($G105/'1 Données d''entrée'!$C$333),0))","v":0},{"$f":"IF(U55<'1 Données d''entrée'!$C$334+1+$B112,0,IF(U55<'1 Données d''entrée'!$C$333+'1 Données d''entrée'!$C$334+1+$B112,($G105/'1 Données d''entrée'!$C$333),0))","v":0},{"$f":"IF(V55<'1 Données d''entrée'!$C$334+1+$B112,0,IF(V55<'1 Données d''entrée'!$C$333+'1 Données d''entrée'!$C$334+1+$B112,($G105/'1 Données d''entrée'!$C$333),0))","v":0}]
[null,6,{"$f":"IF(C55<'1 Données d''entrée'!$C$334+1+$B113,0,IF(C55<'1 Données d''entrée'!$C$333+'1 Données d''entrée'!$C$334+1+$B113,($H105/'1 Données d''entrée'!$C$333),0))","v":0},{"$f":"IF(D55<'1 Données d''entrée'!$C$334+1+$B113,0,IF(D55<'1 Données d''entrée'!$C$333+'1 Données d''entrée'!$C$334+1+$B113,($H105/'1 Données d''entrée'!$C$333),0))","v":0},{"$f":"IF(E55<'1 Données d''entrée'!$C$334+1+$B113,0,IF(E55<'1 Données d''entrée'!$C$333+'1 Données d''entrée'!$C$334+1+$B113,($H105/'1 Données d''entrée'!$C$333),0))","v":0},{"$f":"IF(F55<'1 Données d''entrée'!$C$334+1+$B113,0,IF(F55<'1 Données d''entrée'!$C$333+'1 Données d''entrée'!$C$334+1+$B113,($H105/'1 Données d''entrée'!$C$333),0))","v":0},{"$f":"IF(G55<'1 Données d''entrée'!$C$334+1+$B113,0,IF(G55<'1 Données d''entrée'!$C$333+'1 Données d''entrée'!$C$334+1+$B113,($H105/'1 Données d''entrée'!$C$333),0))","v":0},{"$f":"IF(H55<'1 Données d''entrée'!$C$334+1+$B113,0,IF(H55<'1 Données d''entrée'!$C$333+'1 Données d''entrée'!$C$334+1+$B113,($H105/'1 Données d''entrée'!$C$333),0))","v":0},{"$f":"IF(I55<'1 Données d''entrée'!$C$334+1+$B113,0,IF(I55<'1 Données d''entrée'!$C$333+'1 Données d''entrée'!$C$334+1+$B113,($H105/'1 Données d''entrée'!$C$333),0))","v":0},{"$f":"IF(J55<'1 Données d''entrée'!$C$334+1+$B113,0,IF(J55<'1 Données d''entrée'!$C$333+'1 Données d''entrée'!$C$334+1+$B113,($H105/'1 Données d''entrée'!$C$333),0))","v":0},{"$f":"IF(K55<'1 Données d''entrée'!$C$334+1+$B113,0,IF(K55<'1 Données d''entrée'!$C$333+'1 Données d''entrée'!$C$334+1+$B113,($H105/'1 Données d''entrée'!$C$333),0))","v":0},{"$f":"IF(L55<'1 Données d''entrée'!$C$334+1+$B113,0,IF(L55<'1 Données d''entrée'!$C$333+'1 Données d''entrée'!$C$334+1+$B113,($H105/'1 Données d''entrée'!$C$333),0))","v":0},{"$f":"IF(M55<'1 Données d''entrée'!$C$334+1+$B113,0,IF(M55<'1 Données d''entrée'!$C$333+'1 Données d''entrée'!$C$334+1+$B113,($H105/'1 Données d''entrée'!$C$333),0))","v":0},{"$f":"IF(N55<'1 Données d''entrée'!$C$334+1+$B113,0,IF(N55<'1 Données d''entrée'!$C$333+'1 Données d''entrée'!$C$334+1+$B113,($H105/'1 Données d''entrée'!$C$333),0))","v":0},{"$f":"IF(O55<'1 Données d''entrée'!$C$334+1+$B113,0,IF(O55<'1 Données d''entrée'!$C$333+'1 Données d''entrée'!$C$334+1+$B113,($H105/'1 Données d''entrée'!$C$333),0))","v":0},{"$f":"IF(P55<'1 Données d''entrée'!$C$334+1+$B113,0,IF(P55<'1 Données d''entrée'!$C$333+'1 Données d''entrée'!$C$334+1+$B113,($H105/'1 Données d''entrée'!$C$333),0))","v":0},{"$f":"IF(Q55<'1 Données d''entrée'!$C$334+1+$B113,0,IF(Q55<'1 Données d''entrée'!$C$333+'1 Données d''entrée'!$C$334+1+$B113,($H105/'1 Données d''entrée'!$C$333),0))","v":0},{"$f":"IF(R55<'1 Données d''entrée'!$C$334+1+$B113,0,IF(R55<'1 Données d''entrée'!$C$333+'1 Données d''entrée'!$C$334+1+$B113,($H105/'1 Données d''entrée'!$C$333),0))","v":0},{"$f":"IF(S55<'1 Données d''entrée'!$C$334+1+$B113,0,IF(S55<'1 Données d''entrée'!$C$333+'1 Données d''entrée'!$C$334+1+$B113,($H105/'1 Données d''entrée'!$C$333),0))","v":0},{"$f":"IF(T55<'1 Données d''entrée'!$C$334+1+$B113,0,IF(T55<'1 Données d''entrée'!$C$333+'1 Données d''entrée'!$C$334+1+$B113,($H105/'1 Données d''entrée'!$C$333),0))","v":0},{"$f":"IF(U55<'1 Données d''entrée'!$C$334+1+$B113,0,IF(U55<'1 Données d''entrée'!$C$333+'1 Données d''entrée'!$C$334+1+$B113,($H105/'1 Données d''entrée'!$C$333),0))","v":0},{"$f":"IF(V55<'1 Données d''entrée'!$C$334+1+$B113,0,IF(V55<'1 Données d''entrée'!$C$333+'1 Données d''entrée'!$C$334+1+$B113,($H105/'1 Données d''entrée'!$C$333),0))","v":0}]
[null,7,{"$f":"IF(C55<'1 Données d''entrée'!$C$334+1+$B114,0,IF(C55<'1 Données d''entrée'!$C$333+'1 Données d''entrée'!$C$334+1+$B114,($I105/'1 Données d''entrée'!$C$333),0))","v":0},{"$f":"IF(D55<'1 Données d''entrée'!$C$334+1+$B114,0,IF(D55<'1 Données d''entrée'!$C$333+'1 Données d''entrée'!$C$334+1+$B114,($I105/'1 Données d''entrée'!$C$333),0))","v":0},{"$f":"IF(E55<'1 Données d''entrée'!$C$334+1+$B114,0,IF(E55<'1 Données d''entrée'!$C$333+'1 Données d''entrée'!$C$334+1+$B114,($I105/'1 Données d''entrée'!$C$333),0))","v":0},{"$f":"IF(F55<'1 Données d''entrée'!$C$334+1+$B114,0,IF(F55<'1 Données d''entrée'!$C$333+'1 Données d''entrée'!$C$334+1+$B114,($I105/'1 Données d''entrée'!$C$333),0))","v":0},{"$f":"IF(G55<'1 Données d''entrée'!$C$334+1+$B114,0,IF(G55<'1 Données d''entrée'!$C$333+'1 Données d''entrée'!$C$334+1+$B114,($I105/'1 Données d''entrée'!$C$333),0))","v":0},{"$f":"IF(H55<'1 Données d''entrée'!$C$334+1+$B114,0,IF(H55<'1 Données d''entrée'!$C$333+'1 Données d''entrée'!$C$334+1+$B114,($I105/'1 Données d''entrée'!$C$333),0))","v":0},{"$f":"IF(I55<'1 Données d''entrée'!$C$334+1+$B114,0,IF(I55<'1 Données d''entrée'!$C$333+'1 Données d''entrée'!$C$334+1+$B114,($I105/'1 Données d''entrée'!$C$333),0))","v":0},{"$f":"IF(J55<'1 Données d''entrée'!$C$334+1+$B114,0,IF(J55<'1 Données d''entrée'!$C$333+'1 Données d''entrée'!$C$334+1+$B114,($I105/'1 Données d''entrée'!$C$333),0))","v":0},{"$f":"IF(K55<'1 Données d''entrée'!$C$334+1+$B114,0,IF(K55<'1 Données d''entrée'!$C$333+'1 Données d''entrée'!$C$334+1+$B114,($I105/'1 Données d''entrée'!$C$333),0))","v":0},{"$f":"IF(L55<'1 Données d''entrée'!$C$334+1+$B114,0,IF(L55<'1 Données d''entrée'!$C$333+'1 Données d''entrée'!$C$334+1+$B114,($I105/'1 Données d''entrée'!$C$333),0))","v":0},{"$f":"IF(M55<'1 Données d''entrée'!$C$334+1+$B114,0,IF(M55<'1 Données d''entrée'!$C$333+'1 Données d''entrée'!$C$334+1+$B114,($I105/'1 Données d''entrée'!$C$333),0))","v":0},{"$f":"IF(N55<'1 Données d''entrée'!$C$334+1+$B114,0,IF(N55<'1 Données d''entrée'!$C$333+'1 Données d''entrée'!$C$334+1+$B114,($I105/'1 Données d''entrée'!$C$333),0))","v":0},{"$f":"IF(O55<'1 Données d''entrée'!$C$334+1+$B114,0,IF(O55<'1 Données d''entrée'!$C$333+'1 Données d''entrée'!$C$334+1+$B114,($I105/'1 Données d''entrée'!$C$333),0))","v":0},{"$f":"IF(P55<'1 Données d''entrée'!$C$334+1+$B114,0,IF(P55<'1 Données d''entrée'!$C$333+'1 Données d''entrée'!$C$334+1+$B114,($I105/'1 Données d''entrée'!$C$333),0))","v":0},{"$f":"IF(Q55<'1 Données d''entrée'!$C$334+1+$B114,0,IF(Q55<'1 Données d''entrée'!$C$333+'1 Données d''entrée'!$C$334+1+$B114,($I105/'1 Données d''entrée'!$C$333),0))","v":0},{"$f":"IF(R55<'1 Données d''entrée'!$C$334+1+$B114,0,IF(R55<'1 Données d''entrée'!$C$333+'1 Données d''entrée'!$C$334+1+$B114,($I105/'1 Données d''entrée'!$C$333),0))","v":0},{"$f":"IF(S55<'1 Données d''entrée'!$C$334+1+$B114,0,IF(S55<'1 Données d''entrée'!$C$333+'1 Données d''entrée'!$C$334+1+$B114,($I105/'1 Données d''entrée'!$C$333),0))","v":0},{"$f":"IF(T55<'1 Données d''entrée'!$C$334+1+$B114,0,IF(T55<'1 Données d''entrée'!$C$333+'1 Données d''entrée'!$C$334+1+$B114,($I105/'1 Données d''entrée'!$C$333),0))","v":0},{"$f":"IF(U55<'1 Données d''entrée'!$C$334+1+$B114,0,IF(U55<'1 Données d''entrée'!$C$333+'1 Données d''entrée'!$C$334+1+$B114,($I105/'1 Données d''entrée'!$C$333),0))","v":0},{"$f":"IF(V55<'1 Données d''entrée'!$C$334+1+$B114,0,IF(V55<'1 Données d''entrée'!$C$333+'1 Données d''entrée'!$C$334+1+$B114,($I105/'1 Données d''entrée'!$C$333),0))","v":0}]
[null,8,{"$f":"IF(C55<'1 Données d''entrée'!$C$334+1+$B115,0,IF(C55<'1 Données d''entrée'!$C$333+'1 Données d''entrée'!$C$334+1+$B115,($J105/'1 Données d''entrée'!$C$333),0))","v":0},{"$f":"IF(D55<'1 Données d''entrée'!$C$334+1+$B115,0,IF(D55<'1 Données d''entrée'!$C$333+'1 Données d''entrée'!$C$334+1+$B115,($J105/'1 Données d''entrée'!$C$333),0))","v":0},{"$f":"IF(E55<'1 Données d''entrée'!$C$334+1+$B115,0,IF(E55<'1 Données d''entrée'!$C$333+'1 Données d''entrée'!$C$334+1+$B115,($J105/'1 Données d''entrée'!$C$333),0))","v":0},{"$f":"IF(F55<'1 Données d''entrée'!$C$334+1+$B115,0,IF(F55<'1 Données d''entrée'!$C$333+'1 Données d''entrée'!$C$334+1+$B115,($J105/'1 Données d''entrée'!$C$333),0))","v":0},{"$f":"IF(G55<'1 Données d''entrée'!$C$334+1+$B115,0,IF(G55<'1 Données d''entrée'!$C$333+'1 Données d''entrée'!$C$334+1+$B115,($J105/'1 Données d''entrée'!$C$333),0))","v":0},{"$f":"IF(H55<'1 Données d''entrée'!$C$334+1+$B115,0,IF(H55<'1 Données d''entrée'!$C$333+'1 Données d''entrée'!$C$334+1+$B115,($J105/'1 Données d''entrée'!$C$333),0))","v":0},{"$f":"IF(I55<'1 Données d''entrée'!$C$334+1+$B115,0,IF(I55<'1 Données d''entrée'!$C$333+'1 Données d''entrée'!$C$334+1+$B115,($J105/'1 Données d''entrée'!$C$333),0))","v":0},{"$f":"IF(J55<'1 Données d''entrée'!$C$334+1+$B115,0,IF(J55<'1 Données d''entrée'!$C$333+'1 Données d''entrée'!$C$334+1+$B115,($J105/'1 Données d''entrée'!$C$333),0))","v":0},{"$f":"IF(K55<'1 Données d''entrée'!$C$334+1+$B115,0,IF(K55<'1 Données d''entrée'!$C$333+'1 Données d''entrée'!$C$334+1+$B115,($J105/'1 Données d''entrée'!$C$333),0))","v":0},{"$f":"IF(L55<'1 Données d''entrée'!$C$334+1+$B115,0,IF(L55<'1 Données d''entrée'!$C$333+'1 Données d''entrée'!$C$334+1+$B115,($J105/'1 Données d''entrée'!$C$333),0))","v":0},{"$f":"IF(M55<'1 Données d''entrée'!$C$334+1+$B115,0,IF(M55<'1 Données d''entrée'!$C$333+'1 Données d''entrée'!$C$334+1+$B115,($J105/'1 Données d''entrée'!$C$333),0))","v":0},{"$f":"IF(N55<'1 Données d''entrée'!$C$334+1+$B115,0,IF(N55<'1 Données d''entrée'!$C$333+'1 Données d''entrée'!$C$334+1+$B115,($J105/'1 Données d''entrée'!$C$333),0))","v":0},{"$f":"IF(O55<'1 Données d''entrée'!$C$334+1+$B115,0,IF(O55<'1 Données d''entrée'!$C$333+'1 Données d''entrée'!$C$334+1+$B115,($J105/'1 Données d''entrée'!$C$333),0))","v":0},{"$f":"IF(P55<'1 Données d''entrée'!$C$334+1+$B115,0,IF(P55<'1 Données d''entrée'!$C$333+'1 Données d''entrée'!$C$334+1+$B115,($J105/'1 Données d''entrée'!$C$333),0))","v":0},{"$f":"IF(Q55<'1 Données d''entrée'!$C$334+1+$B115,0,IF(Q55<'1 Données d''entrée'!$C$333+'1 Données d''entrée'!$C$334+1+$B115,($J105/'1 Données d''entrée'!$C$333),0))","v":0},{"$f":"IF(R55<'1 Données d''entrée'!$C$334+1+$B115,0,IF(R55<'1 Données d''entrée'!$C$333+'1 Données d''entrée'!$C$334+1+$B115,($J105/'1 Données d''entrée'!$C$333),0))","v":0},{"$f":"IF(S55<'1 Données d''entrée'!$C$334+1+$B115,0,IF(S55<'1 Données d''entrée'!$C$333+'1 Données d''entrée'!$C$334+1+$B115,($J105/'1 Données d''entrée'!$C$333),0))","v":0},{"$f":"IF(T55<'1 Données d''entrée'!$C$334+1+$B115,0,IF(T55<'1 Données d''entrée'!$C$333+'1 Données d''entrée'!$C$334+1+$B115,($J105/'1 Données d''entrée'!$C$333),0))","v":0},{"$f":"IF(U55<'1 Données d''entrée'!$C$334+1+$B115,0,IF(U55<'1 Données d''entrée'!$C$333+'1 Données d''entrée'!$C$334+1+$B115,($J105/'1 Données d''entrée'!$C$333),0))","v":0},{"$f":"IF(V55<'1 Données d''entrée'!$C$334+1+$B115,0,IF(V55<'1 Données d''entrée'!$C$333+'1 Données d''entrée'!$C$334+1+$B115,($J105/'1 Données d''entrée'!$C$333),0))","v":0}]
[null,9,{"$f":"IF(C55<'1 Données d''entrée'!$C$334+1+$B116,0,IF(C55<'1 Données d''entrée'!$C$333+'1 Données d''entrée'!$C$334+1+$B116,($K105/'1 Données d''entrée'!$C$333),0))","v":0},{"$f":"IF(D55<'1 Données d''entrée'!$C$334+1+$B116,0,IF(D55<'1 Données d''entrée'!$C$333+'1 Données d''entrée'!$C$334+1+$B116,($K105/'1 Données d''entrée'!$C$333),0))","v":0},{"$f":"IF(E55<'1 Données d''entrée'!$C$334+1+$B116,0,IF(E55<'1 Données d''entrée'!$C$333+'1 Données d''entrée'!$C$334+1+$B116,($K105/'1 Données d''entrée'!$C$333),0))","v":0},{"$f":"IF(F55<'1 Données d''entrée'!$C$334+1+$B116,0,IF(F55<'1 Données d''entrée'!$C$333+'1 Données d''entrée'!$C$334+1+$B116,($K105/'1 Données d''entrée'!$C$333),0))","v":0},{"$f":"IF(G55<'1 Données d''entrée'!$C$334+1+$B116,0,IF(G55<'1 Données d''entrée'!$C$333+'1 Données d''entrée'!$C$334+1+$B116,($K105/'1 Données d''entrée'!$C$333),0))","v":0},{"$f":"IF(H55<'1 Données d''entrée'!$C$334+1+$B116,0,IF(H55<'1 Données d''entrée'!$C$333+'1 Données d''entrée'!$C$334+1+$B116,($K105/'1 Données d''entrée'!$C$333),0))","v":0},{"$f":"IF(I55<'1 Données d''entrée'!$C$334+1+$B116,0,IF(I55<'1 Données d''entrée'!$C$333+'1 Données d''entrée'!$C$334+1+$B116,($K105/'1 Données d''entrée'!$C$333),0))","v":0},{"$f":"IF(J55<'1 Données d''entrée'!$C$334+1+$B116,0,IF(J55<'1 Données d''entrée'!$C$333+'1 Données d''entrée'!$C$334+1+$B116,($K105/'1 Données d''entrée'!$C$333),0))","v":0},{"$f":"IF(K55<'1 Données d''entrée'!$C$334+1+$B116,0,IF(K55<'1 Données d''entrée'!$C$333+'1 Données d''entrée'!$C$334+1+$B116,($K105/'1 Données d''entrée'!$C$333),0))","v":0},{"$f":"IF(L55<'1 Données d''entrée'!$C$334+1+$B116,0,IF(L55<'1 Données d''entrée'!$C$333+'1 Données d''entrée'!$C$334+1+$B116,($K105/'1 Données d''entrée'!$C$333),0))","v":0},{"$f":"IF(M55<'1 Données d''entrée'!$C$334+1+$B116,0,IF(M55<'1 Données d''entrée'!$C$333+'1 Données d''entrée'!$C$334+1+$B116,($K105/'1 Données d''entrée'!$C$333),0))","v":0},{"$f":"IF(N55<'1 Données d''entrée'!$C$334+1+$B116,0,IF(N55<'1 Données d''entrée'!$C$333+'1 Données d''entrée'!$C$334+1+$B116,($K105/'1 Données d''entrée'!$C$333),0))","v":0},{"$f":"IF(O55<'1 Données d''entrée'!$C$334+1+$B116,0,IF(O55<'1 Données d''entrée'!$C$333+'1 Données d''entrée'!$C$334+1+$B116,($K105/'1 Données d''entrée'!$C$333),0))","v":0},{"$f":"IF(P55<'1 Données d''entrée'!$C$334+1+$B116,0,IF(P55<'1 Données d''entrée'!$C$333+'1 Données d''entrée'!$C$334+1+$B116,($K105/'1 Données d''entrée'!$C$333),0))","v":0},{"$f":"IF(Q55<'1 Données d''entrée'!$C$334+1+$B116,0,IF(Q55<'1 Données d''entrée'!$C$333+'1 Données d''entrée'!$C$334+1+$B116,($K105/'1 Données d''entrée'!$C$333),0))","v":0},{"$f":"IF(R55<'1 Données d''entrée'!$C$334+1+$B116,0,IF(R55<'1 Données d''entrée'!$C$333+'1 Données d''entrée'!$C$334+1+$B116,($K105/'1 Données d''entrée'!$C$333),0))","v":0},{"$f":"IF(S55<'1 Données d''entrée'!$C$334+1+$B116,0,IF(S55<'1 Données d''entrée'!$C$333+'1 Données d''entrée'!$C$334+1+$B116,($K105/'1 Données d''entrée'!$C$333),0))","v":0},{"$f":"IF(T55<'1 Données d''entrée'!$C$334+1+$B116,0,IF(T55<'1 Données d''entrée'!$C$333+'1 Données d''entrée'!$C$334+1+$B116,($K105/'1 Données d''entrée'!$C$333),0))","v":0},{"$f":"IF(U55<'1 Données d''entrée'!$C$334+1+$B116,0,IF(U55<'1 Données d''entrée'!$C$333+'1 Données d''entrée'!$C$334+1+$B116,($K105/'1 Données d''entrée'!$C$333),0))","v":0},{"$f":"IF(V55<'1 Données d''entrée'!$C$334+1+$B116,0,IF(V55<'1 Données d''entrée'!$C$333+'1 Données d''entrée'!$C$334+1+$B116,($K105/'1 Données d''entrée'!$C$333),0))","v":0}]
[null,10,{"$f":"IF(C55<'1 Données d''entrée'!$C$334+1+$B117,0,IF(C55<'1 Données d''entrée'!$C$333+'1 Données d''entrée'!$C$334+1+$B117,($L105/'1 Données d''entrée'!$C$333),0))","v":0},{"$f":"IF(D55<'1 Données d''entrée'!$C$334+1+$B117,0,IF(D55<'1 Données d''entrée'!$C$333+'1 Données d''entrée'!$C$334+1+$B117,($L105/'1 Données d''entrée'!$C$333),0))","v":0},{"$f":"IF(E55<'1 Données d''entrée'!$C$334+1+$B117,0,IF(E55<'1 Données d''entrée'!$C$333+'1 Données d''entrée'!$C$334+1+$B117,($L105/'1 Données d''entrée'!$C$333),0))","v":0},{"$f":"IF(F55<'1 Données d''entrée'!$C$334+1+$B117,0,IF(F55<'1 Données d''entrée'!$C$333+'1 Données d''entrée'!$C$334+1+$B117,($L105/'1 Données d''entrée'!$C$333),0))","v":0},{"$f":"IF(G55<'1 Données d''entrée'!$C$334+1+$B117,0,IF(G55<'1 Données d''entrée'!$C$333+'1 Données d''entrée'!$C$334+1+$B117,($L105/'1 Données d''entrée'!$C$333),0))","v":0},{"$f":"IF(H55<'1 Données d''entrée'!$C$334+1+$B117,0,IF(H55<'1 Données d''entrée'!$C$333+'1 Données d''entrée'!$C$334+1+$B117,($L105/'1 Données d''entrée'!$C$333),0))","v":0},{"$f":"IF(I55<'1 Données d''entrée'!$C$334+1+$B117,0,IF(I55<'1 Données d''entrée'!$C$333+'1 Données d''entrée'!$C$334+1+$B117,($L105/'1 Données d''entrée'!$C$333),0))","v":0},{"$f":"IF(J55<'1 Données d''entrée'!$C$334+1+$B117,0,IF(J55<'1 Données d''entrée'!$C$333+'1 Données d''entrée'!$C$334+1+$B117,($L105/'1 Données d''entrée'!$C$333),0))","v":0},{"$f":"IF(K55<'1 Données d''entrée'!$C$334+1+$B117,0,IF(K55<'1 Données d''entrée'!$C$333+'1 Données d''entrée'!$C$334+1+$B117,($L105/'1 Données d''entrée'!$C$333),0))","v":0},{"$f":"IF(L55<'1 Données d''entrée'!$C$334+1+$B117,0,IF(L55<'1 Données d''entrée'!$C$333+'1 Données d''entrée'!$C$334+1+$B117,($L105/'1 Données d''entrée'!$C$333),0))","v":0},{"$f":"IF(M55<'1 Données d''entrée'!$C$334+1+$B117,0,IF(M55<'1 Données d''entrée'!$C$333+'1 Données d''entrée'!$C$334+1+$B117,($L105/'1 Données d''entrée'!$C$333),0))","v":0},{"$f":"IF(N55<'1 Données d''entrée'!$C$334+1+$B117,0,IF(N55<'1 Données d''entrée'!$C$333+'1 Données d''entrée'!$C$334+1+$B117,($L105/'1 Données d''entrée'!$C$333),0))","v":0},{"$f":"IF(O55<'1 Données d''entrée'!$C$334+1+$B117,0,IF(O55<'1 Données d''entrée'!$C$333+'1 Données d''entrée'!$C$334+1+$B117,($L105/'1 Données d''entrée'!$C$333),0))","v":0},{"$f":"IF(P55<'1 Données d''entrée'!$C$334+1+$B117,0,IF(P55<'1 Données d''entrée'!$C$333+'1 Données d''entrée'!$C$334+1+$B117,($L105/'1 Données d''entrée'!$C$333),0))","v":0},{"$f":"IF(Q55<'1 Données d''entrée'!$C$334+1+$B117,0,IF(Q55<'1 Données d''entrée'!$C$333+'1 Données d''entrée'!$C$334+1+$B117,($L105/'1 Données d''entrée'!$C$333),0))","v":0},{"$f":"IF(R55<'1 Données d''entrée'!$C$334+1+$B117,0,IF(R55<'1 Données d''entrée'!$C$333+'1 Données d''entrée'!$C$334+1+$B117,($L105/'1 Données d''entrée'!$C$333),0))","v":0},{"$f":"IF(S55<'1 Données d''entrée'!$C$334+1+$B117,0,IF(S55<'1 Données d''entrée'!$C$333+'1 Données d''entrée'!$C$334+1+$B117,($L105/'1 Données d''entrée'!$C$333),0))","v":0},{"$f":"IF(T55<'1 Données d''entrée'!$C$334+1+$B117,0,IF(T55<'1 Données d''entrée'!$C$333+'1 Données d''entrée'!$C$334+1+$B117,($L105/'1 Données d''entrée'!$C$333),0))","v":0},{"$f":"IF(U55<'1 Données d''entrée'!$C$334+1+$B117,0,IF(U55<'1 Données d''entrée'!$C$333+'1 Données d''entrée'!$C$334+1+$B117,($L105/'1 Données d''entrée'!$C$333),0))","v":0},{"$f":"IF(V55<'1 Données d''entrée'!$C$334+1+$B117,0,IF(V55<'1 Données d''entrée'!$C$333+'1 Données d''entrée'!$C$334+1+$B117,($L105/'1 Données d''entrée'!$C$333),0))","v":0}]
[null,"Période de prêt nouveau"]
["Paiement d'intérêts",0,0,0,0,0,0,0,0,0,0,0,0,0,0,0,0,0,0,0,0,0]
["Paiement d'intêrets",1,0,{"$f":"IF(C55<1+$B107,0,IF(C55<'1 Données d''entrée'!$C$334+'1 Données d''entrée'!$C$333+1+$B107,'1 Données d''entrée'!$C$332*($C105-SUM($C108:C108)),0))","v":0},{"$f":"IF(D55<1+$B107,0,IF(D55<'1 Données d''entrée'!$C$334+'1 Données d''entrée'!$C$333+1+$B107,'1 Données d''entrée'!$C$332*($C105-SUM($C108:D108)),0))","v":0},{"$f":"IF(E55<1+$B107,0,IF(E55<'1 Données d''entrée'!$C$334+'1 Données d''entrée'!$C$333+1+$B107,'1 Données d''entrée'!$C$332*($C105-SUM($C108:E108)),0))","v":0},{"$f":"IF(F55<1+$B107,0,IF(F55<'1 Données d''entrée'!$C$334+'1 Données d''entrée'!$C$333+1+$B107,'1 Données d''entrée'!$C$332*($C105-SUM($C108:F108)),0))","v":0},{"$f":"IF(G55<1+$B107,0,IF(G55<'1 Données d''entrée'!$C$334+'1 Données d''entrée'!$C$333+1+$B107,'1 Données d''entrée'!$C$332*($C105-SUM($C108:G108)),0))","v":0},{"$f":"IF(H55<1+$B107,0,IF(H55<'1 Données d''entrée'!$C$334+'1 Données d''entrée'!$C$333+1+$B107,'1 Données d''entrée'!$C$332*($C105-SUM($C108:H108)),0))","v":0},{"$f":"IF(I55<1+$B107,0,IF(I55<'1 Données d''entrée'!$C$334+'1 Données d''entrée'!$C$333+1+$B107,'1 Données d''entrée'!$C$332*($C105-SUM($C108:I108)),0))","v":0},{"$f":"IF(J55<1+$B107,0,IF(J55<'1 Données d''entrée'!$C$334+'1 Données d''entrée'!$C$333+1+$B107,'1 Données d''entrée'!$C$332*($C105-SUM($C108:J108)),0))","v":0},{"$f":"IF(K55<1+$B107,0,IF(K55<'1 Données d''entrée'!$C$334+'1 Données d''entrée'!$C$333+1+$B107,'1 Données d''entrée'!$C$332*($C105-SUM($C108:K108)),0))","v":0},{"$f":"IF(L55<1+$B107,0,IF(L55<'1 Données d''entrée'!$C$334+'1 Données d''entrée'!$C$333+1+$B107,'1 Données d''entrée'!$C$332*($C105-SUM($C108:L108)),0))","v":0},{"$f":"IF(M55<1+$B107,0,IF(M55<'1 Données d''entrée'!$C$334+'1 Données d''entrée'!$C$333+1+$B107,'1 Données d''entrée'!$C$332*($C105-SUM($C108:M108)),0))","v":0},{"$f":"IF(N55<1+$B107,0,IF(N55<'1 Données d''entrée'!$C$334+'1 Données d''entrée'!$C$333+1+$B107,'1 Données d''entrée'!$C$332*($C105-SUM($C108:N108)),0))","v":0},{"$f":"IF(O55<1+$B107,0,IF(O55<'1 Données d''entrée'!$C$334+'1 Données d''entrée'!$C$333+1+$B107,'1 Données d''entrée'!$C$332*($C105-SUM($C108:O108)),0))","v":0},{"$f":"IF(P55<1+$B107,0,IF(P55<'1 Données d''entrée'!$C$334+'1 Données d''entrée'!$C$333+1+$B107,'1 Données d''entrée'!$C$332*($C105-SUM($C108:P108)),0))","v":0},{"$f":"IF(Q55<1+$B107,0,IF(Q55<'1 Données d''entrée'!$C$334+'1 Données d''entrée'!$C$333+1+$B107,'1 Données d''entrée'!$C$332*($C105-SUM($C108:Q108)),0))","v":0},{"$f":"IF(R55<1+$B107,0,IF(R55<'1 Données d''entrée'!$C$334+'1 Données d''entrée'!$C$333+1+$B107,'1 Données d''entrée'!$C$332*($C105-SUM($C108:R108)),0))","v":0},{"$f":"IF(S55<1+$B107,0,IF(S55<'1 Données d''entrée'!$C$334+'1 Données d''entrée'!$C$333+1+$B107,'1 Données d''entrée'!$C$332*($C105-SUM($C108:S108)),0))","v":0},{"$f":"IF(T55<1+$B107,0,IF(T55<'1 Données d''entrée'!$C$334+'1 Données d''entrée'!$C$333+1+$B107,'1 Données d''entrée'!$C$332*($C105-SUM($C108:T108)),0))","v":0},{"$f":"IF(U55<1+$B107,0,IF(U55<'1 Données d''entrée'!$C$334+'1 Données d''entrée'!$C$333+1+$B107,'1 Données d''entrée'!$C$332*($C105-SUM($C108:U108)),0))","v":0}]
["Paiement d'intêrets",2,0,{"$f":"IF(C55<1+$B108,0,IF(C55<'1 Données d''entrée'!$C$334+'1 Données d''entrée'!$C$333+1+$B108,'1 Données d''entrée'!$C$332*($D105-SUM($C109:C109)),0))","v":0},{"$f":"IF(D55<1+$B108,0,IF(D55<'1 Données d''entrée'!$C$334+'1 Données d''entrée'!$C$333+1+$B108,'1 Données d''entrée'!$C$332*($D105-SUM($C109:D109)),0))","v":0},{"$f":"IF(E55<1+$B108,0,IF(E55<'1 Données d''entrée'!$C$334+'1 Données d''entrée'!$C$333+1+$B108,'1 Données d''entrée'!$C$332*($D105-SUM($C109:E109)),0))","v":0},{"$f":"IF(F55<1+$B108,0,IF(F55<'1 Données d''entrée'!$C$334+'1 Données d''entrée'!$C$333+1+$B108,'1 Données d''entrée'!$C$332*($D105-SUM($C109:F109)),0))","v":0},{"$f":"IF(G55<1+$B108,0,IF(G55<'1 Données d''entrée'!$C$334+'1 Données d''entrée'!$C$333+1+$B108,'1 Données d''entrée'!$C$332*($D105-SUM($C109:G109)),0))","v":0},{"$f":"IF(H55<1+$B108,0,IF(H55<'1 Données d''entrée'!$C$334+'1 Données d''entrée'!$C$333+1+$B108,'1 Données d''entrée'!$C$332*($D105-SUM($C109:H109)),0))","v":0},{"$f":"IF(I55<1+$B108,0,IF(I55<'1 Données d''entrée'!$C$334+'1 Données d''entrée'!$C$333+1+$B108,'1 Données d''entrée'!$C$332*($D105-SUM($C109:I109)),0))","v":0},{"$f":"IF(J55<1+$B108,0,IF(J55<'1 Données d''entrée'!$C$334+'1 Données d''entrée'!$C$333+1+$B108,'1 Données d''entrée'!$C$332*($D105-SUM($C109:J109)),0))","v":0},{"$f":"IF(K55<1+$B108,0,IF(K55<'1 Données d''entrée'!$C$334+'1 Données d''entrée'!$C$333+1+$B108,'1 Données d''entrée'!$C$332*($D105-SUM($C109:K109)),0))","v":0},{"$f":"IF(L55<1+$B108,0,IF(L55<'1 Données d''entrée'!$C$334+'1 Données d''entrée'!$C$333+1+$B108,'1 Données d''entrée'!$C$332*($D105-SUM($C109:L109)),0))","v":0},{"$f":"IF(M55<1+$B108,0,IF(M55<'1 Données d''entrée'!$C$334+'1 Données d''entrée'!$C$333+1+$B108,'1 Données d''entrée'!$C$332*($D105-SUM($C109:M109)),0))","v":0},{"$f":"IF(N55<1+$B108,0,IF(N55<'1 Données d''entrée'!$C$334+'1 Données d''entrée'!$C$333+1+$B108,'1 Données d''entrée'!$C$332*($D105-SUM($C109:N109)),0))","v":0},{"$f":"IF(O55<1+$B108,0,IF(O55<'1 Données d''entrée'!$C$334+'1 Données d''entrée'!$C$333+1+$B108,'1 Données d''entrée'!$C$332*($D105-SUM($C109:O109)),0))","v":0},{"$f":"IF(P55<1+$B108,0,IF(P55<'1 Données d''entrée'!$C$334+'1 Données d''entrée'!$C$333+1+$B108,'1 Données d''entrée'!$C$332*($D105-SUM($C109:P109)),0))","v":0},{"$f":"IF(Q55<1+$B108,0,IF(Q55<'1 Données d''entrée'!$C$334+'1 Données d''entrée'!$C$333+1+$B108,'1 Données d''entrée'!$C$332*($D105-SUM($C109:Q109)),0))","v":0},{"$f":"IF(R55<1+$B108,0,IF(R55<'1 Données d''entrée'!$C$334+'1 Données d''entrée'!$C$333+1+$B108,'1 Données d''entrée'!$C$332*($D105-SUM($C109:R109)),0))","v":0},{"$f":"IF(S55<1+$B108,0,IF(S55<'1 Données d''entrée'!$C$334+'1 Données d''entrée'!$C$333+1+$B108,'1 Données d''entrée'!$C$332*($D105-SUM($C109:S109)),0))","v":0},{"$f":"IF(T55<1+$B108,0,IF(T55<'1 Données d''entrée'!$C$334+'1 Données d''entrée'!$C$333+1+$B108,'1 Données d''entrée'!$C$332*($D105-SUM($C109:T109)),0))","v":0},{"$f":"IF(U55<1+$B108,0,IF(U55<'1 Données d''entrée'!$C$334+'1 Données d''entrée'!$C$333+1+$B108,'1 Données d''entrée'!$C$332*($D105-SUM($C109:U109)),0))","v":0}]
["Paiement d'intêrets",3,0,{"$f":"IF(C55<1+$B109,0,IF(C55<'1 Données d''entrée'!$C$334+'1 Données d''entrée'!$C$333+1+$B109,'1 Données d''entrée'!$C$332*($E105-SUM($C110:C110)),0))","v":0},{"$f":"IF(D55<1+$B109,0,IF(D55<'1 Données d''entrée'!$C$334+'1 Données d''entrée'!$C$333+1+$B109,'1 Données d''entrée'!$C$332*($E105-SUM($C110:D110)),0))","v":0},{"$f":"IF(E55<1+$B109,0,IF(E55<'1 Données d''entrée'!$C$334+'1 Données d''entrée'!$C$333+1+$B109,'1 Données d''entrée'!$C$332*($E105-SUM($C110:E110)),0))","v":0},{"$f":"IF(F55<1+$B109,0,IF(F55<'1 Données d''entrée'!$C$334+'1 Données d''entrée'!$C$333+1+$B109,'1 Données d''entrée'!$C$332*($E105-SUM($C110:F110)),0))","v":0},{"$f":"IF(G55<1+$B109,0,IF(G55<'1 Données d''entrée'!$C$334+'1 Données d''entrée'!$C$333+1+$B109,'1 Données d''entrée'!$C$332*($E105-SUM($C110:G110)),0))","v":0},{"$f":"IF(H55<1+$B109,0,IF(H55<'1 Données d''entrée'!$C$334+'1 Données d''entrée'!$C$333+1+$B109,'1 Données d''entrée'!$C$332*($E105-SUM($C110:H110)),0))","v":0},{"$f":"IF(I55<1+$B109,0,IF(I55<'1 Données d''entrée'!$C$334+'1 Données d''entrée'!$C$333+1+$B109,'1 Données d''entrée'!$C$332*($E105-SUM($C110:I110)),0))","v":0},{"$f":"IF(J55<1+$B109,0,IF(J55<'1 Données d''entrée'!$C$334+'1 Données d''entrée'!$C$333+1+$B109,'1 Données d''entrée'!$C$332*($E105-SUM($C110:J110)),0))","v":0},{"$f":"IF(K55<1+$B109,0,IF(K55<'1 Données d''entrée'!$C$334+'1 Données d''entrée'!$C$333+1+$B109,'1 Données d''entrée'!$C$332*($E105-SUM($C110:K110)),0))","v":0},{"$f":"IF(L55<1+$B109,0,IF(L55<'1 Données d''entrée'!$C$334+'1 Données d''entrée'!$C$333+1+$B109,'1 Données d''entrée'!$C$332*($E105-SUM($C110:L110)),0))","v":0},{"$f":"IF(M55<1+$B109,0,IF(M55<'1 Données d''entrée'!$C$334+'1 Données d''entrée'!$C$333+1+$B109,'1 Données d''entrée'!$C$332*($E105-SUM($C110:M110)),0))","v":0},{"$f":"IF(N55<1+$B109,0,IF(N55<'1 Données d''entrée'!$C$334+'1 Données d''entrée'!$C$333+1+$B109,'1 Données d''entrée'!$C$332*($E105-SUM($C110:N110)),0))","v":0},{"$f":"IF(O55<1+$B109,0,IF(O55<'1 Données d''entrée'!$C$334+'1 Données d''entrée'!$C$333+1+$B109,'1 Données d''entrée'!$C$332*($E105-SUM($C110:O110)),0))","v":0},{"$f":"IF(P55<1+$B109,0,IF(P55<'1 Données d''entrée'!$C$334+'1 Données d''entrée'!$C$333+1+$B109,'1 Données d''entrée'!$C$332*($E105-SUM($C110:P110)),0))","v":0},{"$f":"IF(Q55<1+$B109,0,IF(Q55<'1 Données d''entrée'!$C$334+'1 Données d''entrée'!$C$333+1+$B109,'1 Données d''entrée'!$C$332*($E105-SUM($C110:Q110)),0))","v":0},{"$f":"IF(R55<1+$B109,0,IF(R55<'1 Données d''entrée'!$C$334+'1 Données d''entrée'!$C$333+1+$B109,'1 Données d''entrée'!$C$332*($E105-SUM($C110:R110)),0))","v":0},{"$f":"IF(S55<1+$B109,0,IF(S55<'1 Données d''entrée'!$C$334+'1 Données d''entrée'!$C$333+1+$B109,'1 Données d''entrée'!$C$332*($E105-SUM($C110:S110)),0))","v":0},{"$f":"IF(T55<1+$B109,0,IF(T55<'1 Données d''entrée'!$C$334+'1 Données d''entrée'!$C$333+1+$B109,'1 Données d''entrée'!$C$332*($E105-SUM($C110:T110)),0))","v":0},{"$f":"IF(U55<1+$B109,0,IF(U55<'1 Données d''entrée'!$C$334+'1 Données d''entrée'!$C$333+1+$B109,'1 Données d''entrée'!$C$332*($E105-SUM($C110:U110)),0))","v":0}]
["Paiement d'intêrets",4,0,{"$f":"IF(C55<1+$B110,0,IF(C55<'1 Données d''entrée'!$C$334+'1 Données d''entrée'!$C$333+1+$B110,'1 Données d''entrée'!$C$332*($F105-SUM($C111:C111)),0))","v":0},{"$f":"IF(D55<1+$B110,0,IF(D55<'1 Données d''entrée'!$C$334+'1 Données d''entrée'!$C$333+1+$B110,'1 Données d''entrée'!$C$332*($F105-SUM($C111:D111)),0))","v":0},{"$f":"IF(E55<1+$B110,0,IF(E55<'1 Données d''entrée'!$C$334+'1 Données d''entrée'!$C$333+1+$B110,'1 Données d''entrée'!$C$332*($F105-SUM($C111:E111)),0))","v":0},{"$f":"IF(F55<1+$B110,0,IF(F55<'1 Données d''entrée'!$C$334+'1 Données d''entrée'!$C$333+1+$B110,'1 Données d''entrée'!$C$332*($F105-SUM($C111:F111)),0))","v":0},{"$f":"IF(G55<1+$B110,0,IF(G55<'1 Données d''entrée'!$C$334+'1 Données d''entrée'!$C$333+1+$B110,'1 Données d''entrée'!$C$332*($F105-SUM($C111:G111)),0))","v":0},{"$f":"IF(H55<1+$B110,0,IF(H55<'1 Données d''entrée'!$C$334+'1 Données d''entrée'!$C$333+1+$B110,'1 Données d''entrée'!$C$332*($F105-SUM($C111:H111)),0))","v":0},{"$f":"IF(I55<1+$B110,0,IF(I55<'1 Données d''entrée'!$C$334+'1 Données d''entrée'!$C$333+1+$B110,'1 Données d''entrée'!$C$332*($F105-SUM($C111:I111)),0))","v":0},{"$f":"IF(J55<1+$B110,0,IF(J55<'1 Données d''entrée'!$C$334+'1 Données d''entrée'!$C$333+1+$B110,'1 Données d''entrée'!$C$332*($F105-SUM($C111:J111)),0))","v":0},{"$f":"IF(K55<1+$B110,0,IF(K55<'1 Données d''entrée'!$C$334+'1 Données d''entrée'!$C$333+1+$B110,'1 Données d''entrée'!$C$332*($F105-SUM($C111:K111)),0))","v":0},{"$f":"IF(L55<1+$B110,0,IF(L55<'1 Données d''entrée'!$C$334+'1 Données d''entrée'!$C$333+1+$B110,'1 Données d''entrée'!$C$332*($F105-SUM($C111:L111)),0))","v":0},{"$f":"IF(M55<1+$B110,0,IF(M55<'1 Données d''entrée'!$C$334+'1 Données d''entrée'!$C$333+1+$B110,'1 Données d''entrée'!$C$332*($F105-SUM($C111:M111)),0))","v":0},{"$f":"IF(N55<1+$B110,0,IF(N55<'1 Données d''entrée'!$C$334+'1 Données d''entrée'!$C$333+1+$B110,'1 Données d''entrée'!$C$332*($F105-SUM($C111:N111)),0))","v":0},{"$f":"IF(O55<1+$B110,0,IF(O55<'1 Données d''entrée'!$C$334+'1 Données d''entrée'!$C$333+1+$B110,'1 Données d''entrée'!$C$332*($F105-SUM($C111:O111)),0))","v":0},{"$f":"IF(P55<1+$B110,0,IF(P55<'1 Données d''entrée'!$C$334+'1 Données d''entrée'!$C$333+1+$B110,'1 Données d''entrée'!$C$332*($F105-SUM($C111:P111)),0))","v":0},{"$f":"IF(Q55<1+$B110,0,IF(Q55<'1 Données d''entrée'!$C$334+'1 Données d''entrée'!$C$333+1+$B110,'1 Données d''entrée'!$C$332*($F105-SUM($C111:Q111)),0))","v":0},{"$f":"IF(R55<1+$B110,0,IF(R55<'1 Données d''entrée'!$C$334+'1 Données d''entrée'!$C$333+1+$B110,'1 Données d''entrée'!$C$332*($F105-SUM($C111:R111)),0))","v":0},{"$f":"IF(S55<1+$B110,0,IF(S55<'1 Données d''entrée'!$C$334+'1 Données d''entrée'!$C$333+1+$B110,'1 Données d''entrée'!$C$332*($F105-SUM($C111:S111)),0))","v":0},{"$f":"IF(T55<1+$B110,0,IF(T55<'1 Données d''entrée'!$C$334+'1 Données d''entrée'!$C$333+1+$B110,'1 Données d''entrée'!$C$332*($F105-SUM($C111:T111)),0))","v":0},{"$f":"IF(U55<1+$B110,0,IF(U55<'1 Données d''entrée'!$C$334+'1 Données d''entrée'!$C$333+1+$B110,'1 Données d''entrée'!$C$332*($F105-SUM($C111:U111)),0))","v":0}]
["Paiement d'intêrets",5,0,{"$f":"IF(C55<1+$B111,0,IF(C55<'1 Données d''entrée'!$C$334+'1 Données d''entrée'!$C$333+1+$B111,'1 Données d''entrée'!$C$332*($G105-SUM($C112:C112)),0))","v":0},{"$f":"IF(D55<1+$B111,0,IF(D55<'1 Données d''entrée'!$C$334+'1 Données d''entrée'!$C$333+1+$B111,'1 Données d''entrée'!$C$332*($G105-SUM($C112:D112)),0))","v":0},{"$f":"IF(E55<1+$B111,0,IF(E55<'1 Données d''entrée'!$C$334+'1 Données d''entrée'!$C$333+1+$B111,'1 Données d''entrée'!$C$332*($G105-SUM($C112:E112)),0))","v":0},{"$f":"IF(F55<1+$B111,0,IF(F55<'1 Données d''entrée'!$C$334+'1 Données d''entrée'!$C$333+1+$B111,'1 Données d''entrée'!$C$332*($G105-SUM($C112:F112)),0))","v":0},{"$f":"IF(G55<1+$B111,0,IF(G55<'1 Données d''entrée'!$C$334+'1 Données d''entrée'!$C$333+1+$B111,'1 Données d''entrée'!$C$332*($G105-SUM($C112:G112)),0))","v":0},{"$f":"IF(H55<1+$B111,0,IF(H55<'1 Données d''entrée'!$C$334+'1 Données d''entrée'!$C$333+1+$B111,'1 Données d''entrée'!$C$332*($G105-SUM($C112:H112)),0))","v":0},{"$f":"IF(I55<1+$B111,0,IF(I55<'1 Données d''entrée'!$C$334+'1 Données d''entrée'!$C$333+1+$B111,'1 Données d''entrée'!$C$332*($G105-SUM($C112:I112)),0))","v":0},{"$f":"IF(J55<1+$B111,0,IF(J55<'1 Données d''entrée'!$C$334+'1 Données d''entrée'!$C$333+1+$B111,'1 Données d''entrée'!$C$332*($G105-SUM($C112:J112)),0))","v":0},{"$f":"IF(K55<1+$B111,0,IF(K55<'1 Données d''entrée'!$C$334+'1 Données d''entrée'!$C$333+1+$B111,'1 Données d''entrée'!$C$332*($G105-SUM($C112:K112)),0))","v":0},{"$f":"IF(L55<1+$B111,0,IF(L55<'1 Données d''entrée'!$C$334+'1 Données d''entrée'!$C$333+1+$B111,'1 Données d''entrée'!$C$332*($G105-SUM($C112:L112)),0))","v":0},{"$f":"IF(M55<1+$B111,0,IF(M55<'1 Données d''entrée'!$C$334+'1 Données d''entrée'!$C$333+1+$B111,'1 Données d''entrée'!$C$332*($G105-SUM($C112:M112)),0))","v":0},{"$f":"IF(N55<1+$B111,0,IF(N55<'1 Données d''entrée'!$C$334+'1 Données d''entrée'!$C$333+1+$B111,'1 Données d''entrée'!$C$332*($G105-SUM($C112:N112)),0))","v":0},{"$f":"IF(O55<1+$B111,0,IF(O55<'1 Données d''entrée'!$C$334+'1 Données d''entrée'!$C$333+1+$B111,'1 Données d''entrée'!$C$332*($G105-SUM($C112:O112)),0))","v":0},{"$f":"IF(P55<1+$B111,0,IF(P55<'1 Données d''entrée'!$C$334+'1 Données d''entrée'!$C$333+1+$B111,'1 Données d''entrée'!$C$332*($G105-SUM($C112:P112)),0))","v":0},{"$f":"IF(Q55<1+$B111,0,IF(Q55<'1 Données d''entrée'!$C$334+'1 Données d''entrée'!$C$333+1+$B111,'1 Données d''entrée'!$C$332*($G105-SUM($C112:Q112)),0))","v":0},{"$f":"IF(R55<1+$B111,0,IF(R55<'1 Données d''entrée'!$C$334+'1 Données d''entrée'!$C$333+1+$B111,'1 Données d''entrée'!$C$332*($G105-SUM($C112:R112)),0))","v":0},{"$f":"IF(S55<1+$B111,0,IF(S55<'1 Données d''entrée'!$C$334+'1 Données d''entrée'!$C$333+1+$B111,'1 Données d''entrée'!$C$332*($G105-SUM($C112:S112)),0))","v":0},{"$f":"IF(T55<1+$B111,0,IF(T55<'1 Données d''entrée'!$C$334+'1 Données d''entrée'!$C$333+1+$B111,'1 Données d''entrée'!$C$332*($G105-SUM($C112:T112)),0))","v":0},{"$f":"IF(U55<1+$B111,0,IF(U55<'1 Données d''entrée'!$C$334+'1 Données d''entrée'!$C$333+1+$B111,'1 Données d''entrée'!$C$332*($G105-SUM($C112:U112)),0))","v":0}]
["Paiement d'intêrets",6,0,{"$f":"IF(C55<1+$B112,0,IF(C55<'1 Données d''entrée'!$C$334+'1 Données d''entrée'!$C$333+1+$B112,'1 Données d''entrée'!$C$332*($H105-SUM($C113:C113)),0))","v":0},{"$f":"IF(D55<1+$B112,0,IF(D55<'1 Données d''entrée'!$C$334+'1 Données d''entrée'!$C$333+1+$B112,'1 Données d''entrée'!$C$332*($H105-SUM($C113:D113)),0))","v":0},{"$f":"IF(E55<1+$B112,0,IF(E55<'1 Données d''entrée'!$C$334+'1 Données d''entrée'!$C$333+1+$B112,'1 Données d''entrée'!$C$332*($H105-SUM($C113:E113)),0))","v":0},{"$f":"IF(F55<1+$B112,0,IF(F55<'1 Données d''entrée'!$C$334+'1 Données d''entrée'!$C$333+1+$B112,'1 Données d''entrée'!$C$332*($H105-SUM($C113:F113)),0))","v":0},{"$f":"IF(G55<1+$B112,0,IF(G55<'1 Données d''entrée'!$C$334+'1 Données d''entrée'!$C$333+1+$B112,'1 Données d''entrée'!$C$332*($H105-SUM($C113:G113)),0))","v":0},{"$f":"IF(H55<1+$B112,0,IF(H55<'1 Données d''entrée'!$C$334+'1 Données d''entrée'!$C$333+1+$B112,'1 Données d''entrée'!$C$332*($H105-SUM($C113:H113)),0))","v":0},{"$f":"IF(I55<1+$B112,0,IF(I55<'1 Données d''entrée'!$C$334+'1 Données d''entrée'!$C$333+1+$B112,'1 Données d''entrée'!$C$332*($H105-SUM($C113:I113)),0))","v":0},{"$f":"IF(J55<1+$B112,0,IF(J55<'1 Données d''entrée'!$C$334+'1 Données d''entrée'!$C$333+1+$B112,'1 Données d''entrée'!$C$332*($H105-SUM($C113:J113)),0))","v":0},{"$f":"IF(K55<1+$B112,0,IF(K55<'1 Données d''entrée'!$C$334+'1 Données d''entrée'!$C$333+1+$B112,'1 Données d''entrée'!$C$332*($H105-SUM($C113:K113)),0))","v":0},{"$f":"IF(L55<1+$B112,0,IF(L55<'1 Données d''entrée'!$C$334+'1 Données d''entrée'!$C$333+1+$B112,'1 Données d''entrée'!$C$332*($H105-SUM($C113:L113)),0))","v":0},{"$f":"IF(M55<1+$B112,0,IF(M55<'1 Données d''entrée'!$C$334+'1 Données d''entrée'!$C$333+1+$B112,'1 Données d''entrée'!$C$332*($H105-SUM($C113:M113)),0))","v":0},{"$f":"IF(N55<1+$B112,0,IF(N55<'1 Données d''entrée'!$C$334+'1 Données d''entrée'!$C$333+1+$B112,'1 Données d''entrée'!$C$332*($H105-SUM($C113:N113)),0))","v":0},{"$f":"IF(O55<1+$B112,0,IF(O55<'1 Données d''entrée'!$C$334+'1 Données d''entrée'!$C$333+1+$B112,'1 Données d''entrée'!$C$332*($H105-SUM($C113:O113)),0))","v":0},{"$f":"IF(P55<1+$B112,0,IF(P55<'1 Données d''entrée'!$C$334+'1 Données d''entrée'!$C$333+1+$B112,'1 Données d''entrée'!$C$332*($H105-SUM($C113:P113)),0))","v":0},{"$f":"IF(Q55<1+$B112,0,IF(Q55<'1 Données d''entrée'!$C$334+'1 Données d''entrée'!$C$333+1+$B112,'1 Données d''entrée'!$C$332*($H105-SUM($C113:Q113)),0))","v":0},{"$f":"IF(R55<1+$B112,0,IF(R55<'1 Données d''entrée'!$C$334+'1 Données d''entrée'!$C$333+1+$B112,'1 Données d''entrée'!$C$332*($H105-SUM($C113:R113)),0))","v":0},{"$f":"IF(S55<1+$B112,0,IF(S55<'1 Données d''entrée'!$C$334+'1 Données d''entrée'!$C$333+1+$B112,'1 Données d''entrée'!$C$332*($H105-SUM($C113:S113)),0))","v":0},{"$f":"IF(T55<1+$B112,0,IF(T55<'1 Données d''entrée'!$C$334+'1 Données d''entrée'!$C$333+1+$B112,'1 Données d''entrée'!$C$332*($H105-SUM($C113:T113)),0))","v":0},{"$f":"IF(U55<1+$B112,0,IF(U55<'1 Données d''entrée'!$C$334+'1 Données d''entrée'!$C$333+1+$B112,'1 Données d''entrée'!$C$332*($H105-SUM($C113:U113)),0))","v":0}]
["Paiement d'intêrets",7,0,{"$f":"IF(C55<1+$B113,0,IF(C55<'1 Données d''entrée'!$C$334+'1 Données d''entrée'!$C$333+1+$B113,'1 Données d''entrée'!$C$332*($I105-SUM($C114:C114)),0))","v":0},{"$f":"IF(D55<1+$B113,0,IF(D55<'1 Données d''entrée'!$C$334+'1 Données d''entrée'!$C$333+1+$B113,'1 Données d''entrée'!$C$332*($I105-SUM($C114:D114)),0))","v":0},{"$f":"IF(E55<1+$B113,0,IF(E55<'1 Données d''entrée'!$C$334+'1 Données d''entrée'!$C$333+1+$B113,'1 Données d''entrée'!$C$332*($I105-SUM($C114:E114)),0))","v":0},{"$f":"IF(F55<1+$B113,0,IF(F55<'1 Données d''entrée'!$C$334+'1 Données d''entrée'!$C$333+1+$B113,'1 Données d''entrée'!$C$332*($I105-SUM($C114:F114)),0))","v":0},{"$f":"IF(G55<1+$B113,0,IF(G55<'1 Données d''entrée'!$C$334+'1 Données d''entrée'!$C$333+1+$B113,'1 Données d''entrée'!$C$332*($I105-SUM($C114:G114)),0))","v":0},{"$f":"IF(H55<1+$B113,0,IF(H55<'1 Données d''entrée'!$C$334+'1 Données d''entrée'!$C$333+1+$B113,'1 Données d''entrée'!$C$332*($I105-SUM($C114:H114)),0))","v":0},{"$f":"IF(I55<1+$B113,0,IF(I55<'1 Données d''entrée'!$C$334+'1 Données d''entrée'!$C$333+1+$B113,'1 Données d''entrée'!$C$332*($I105-SUM($C114:I114)),0))","v":0},{"$f":"IF(J55<1+$B113,0,IF(J55<'1 Données d''entrée'!$C$334+'1 Données d''entrée'!$C$333+1+$B113,'1 Données d''entrée'!$C$332*($I105-SUM($C114:J114)),0))","v":0},{"$f":"IF(K55<1+$B113,0,IF(K55<'1 Données d''entrée'!$C$334+'1 Données d''entrée'!$C$333+1+$B113,'1 Données d''entrée'!$C$332*($I105-SUM($C114:K114)),0))","v":0},{"$f":"IF(L55<1+$B113,0,IF(L55<'1 Données d''entrée'!$C$334+'1 Données d''entrée'!$C$333+1+$B113,'1 Données d''entrée'!$C$332*($I105-SUM($C114:L114)),0))","v":0},{"$f":"IF(M55<1+$B113,0,IF(M55<'1 Données d''entrée'!$C$334+'1 Données d''entrée'!$C$333+1+$B113,'1 Données d''entrée'!$C$332*($I105-SUM($C114:M114)),0))","v":0},{"$f":"IF(N55<1+$B113,0,IF(N55<'1 Données d''entrée'!$C$334+'1 Données d''entrée'!$C$333+1+$B113,'1 Données d''entrée'!$C$332*($I105-SUM($C114:N114)),0))","v":0},{"$f":"IF(O55<1+$B113,0,IF(O55<'1 Données d''entrée'!$C$334+'1 Données d''entrée'!$C$333+1+$B113,'1 Données d''entrée'!$C$332*($I105-SUM($C114:O114)),0))","v":0},{"$f":"IF(P55<1+$B113,0,IF(P55<'1 Données d''entrée'!$C$334+'1 Données d''entrée'!$C$333+1+$B113,'1 Données d''entrée'!$C$332*($I105-SUM($C114:P114)),0))","v":0},{"$f":"IF(Q55<1+$B113,0,IF(Q55<'1 Données d''entrée'!$C$334+'1 Données d''entrée'!$C$333+1+$B113,'1 Données d''entrée'!$C$332*($I105-SUM($C114:Q114)),0))","v":0},{"$f":"IF(R55<1+$B113,0,IF(R55<'1 Données d''entrée'!$C$334+'1 Données d''entrée'!$C$333+1+$B113,'1 Données d''entrée'!$C$332*($I105-SUM($C114:R114)),0))","v":0},{"$f":"IF(S55<1+$B113,0,IF(S55<'1 Données d''entrée'!$C$334+'1 Données d''entrée'!$C$333+1+$B113,'1 Données d''entrée'!$C$332*($I105-SUM($C114:S114)),0))","v":0},{"$f":"IF(T55<1+$B113,0,IF(T55<'1 Données d''entrée'!$C$334+'1 Données d''entrée'!$C$333+1+$B113,'1 Données d''entrée'!$C$332*($I105-SUM($C114:T114)),0))","v":0},{"$f":"IF(U55<1+$B113,0,IF(U55<'1 Données d''entrée'!$C$334+'1 Données d''entrée'!$C$333+1+$B113,'1 Données d''entrée'!$C$332*($I105-SUM($C114:U114)),0))","v":0}]
["Paiement d'intêrets",8,0,{"$f":"IF(C55<1+$B114,0,IF(C55<'1 Données d''entrée'!$C$334+'1 Données d''entrée'!$C$333+1+$B114,'1 Données d''entrée'!$C$332*($J105-SUM($C115:C115)),0))","v":0},{"$f":"IF(D55<1+$B114,0,IF(D55<'1 Données d''entrée'!$C$334+'1 Données d''entrée'!$C$333+1+$B114,'1 Données d''entrée'!$C$332*($J105-SUM($C115:D115)),0))","v":0},{"$f":"IF(E55<1+$B114,0,IF(E55<'1 Données d''entrée'!$C$334+'1 Données d''entrée'!$C$333+1+$B114,'1 Données d''entrée'!$C$332*($J105-SUM($C115:E115)),0))","v":0},{"$f":"IF(F55<1+$B114,0,IF(F55<'1 Données d''entrée'!$C$334+'1 Données d''entrée'!$C$333+1+$B114,'1 Données d''entrée'!$C$332*($J105-SUM($C115:F115)),0))","v":0},{"$f":"IF(G55<1+$B114,0,IF(G55<'1 Données d''entrée'!$C$334+'1 Données d''entrée'!$C$333+1+$B114,'1 Données d''entrée'!$C$332*($J105-SUM($C115:G115)),0))","v":0},{"$f":"IF(H55<1+$B114,0,IF(H55<'1 Données d''entrée'!$C$334+'1 Données d''entrée'!$C$333+1+$B114,'1 Données d''entrée'!$C$332*($J105-SUM($C115:H115)),0))","v":0},{"$f":"IF(I55<1+$B114,0,IF(I55<'1 Données d''entrée'!$C$334+'1 Données d''entrée'!$C$333+1+$B114,'1 Données d''entrée'!$C$332*($J105-SUM($C115:I115)),0))","v":0},{"$f":"IF(J55<1+$B114,0,IF(J55<'1 Données d''entrée'!$C$334+'1 Données d''entrée'!$C$333+1+$B114,'1 Données d''entrée'!$C$332*($J105-SUM($C115:J115)),0))","v":0},{"$f":"IF(K55<1+$B114,0,IF(K55<'1 Données d''entrée'!$C$334+'1 Données d''entrée'!$C$333+1+$B114,'1 Données d''entrée'!$C$332*($J105-SUM($C115:K115)),0))","v":0},{"$f":"IF(L55<1+$B114,0,IF(L55<'1 Données d''entrée'!$C$334+'1 Données d''entrée'!$C$333+1+$B114,'1 Données d''entrée'!$C$332*($J105-SUM($C115:L115)),0))","v":0},{"$f":"IF(M55<1+$B114,0,IF(M55<'1 Données d''entrée'!$C$334+'1 Données d''entrée'!$C$333+1+$B114,'1 Données d''entrée'!$C$332*($J105-SUM($C115:M115)),0))","v":0},{"$f":"IF(N55<1+$B114,0,IF(N55<'1 Données d''entrée'!$C$334+'1 Données d''entrée'!$C$333+1+$B114,'1 Données d''entrée'!$C$332*($J105-SUM($C115:N115)),0))","v":0},{"$f":"IF(O55<1+$B114,0,IF(O55<'1 Données d''entrée'!$C$334+'1 Données d''entrée'!$C$333+1+$B114,'1 Données d''entrée'!$C$332*($J105-SUM($C115:O115)),0))","v":0},{"$f":"IF(P55<1+$B114,0,IF(P55<'1 Données d''entrée'!$C$334+'1 Données d''entrée'!$C$333+1+$B114,'1 Données d''entrée'!$C$332*($J105-SUM($C115:P115)),0))","v":0},{"$f":"IF(Q55<1+$B114,0,IF(Q55<'1 Données d''entrée'!$C$334+'1 Données d''entrée'!$C$333+1+$B114,'1 Données d''entrée'!$C$332*($J105-SUM($C115:Q115)),0))","v":0},{"$f":"IF(R55<1+$B114,0,IF(R55<'1 Données d''entrée'!$C$334+'1 Données d''entrée'!$C$333+1+$B114,'1 Données d''entrée'!$C$332*($J105-SUM($C115:R115)),0))","v":0},{"$f":"IF(S55<1+$B114,0,IF(S55<'1 Données d''entrée'!$C$334+'1 Données d''entrée'!$C$333+1+$B114,'1 Données d''entrée'!$C$332*($J105-SUM($C115:S115)),0))","v":0},{"$f":"IF(T55<1+$B114,0,IF(T55<'1 Données d''entrée'!$C$334+'1 Données d''entrée'!$C$333+1+$B114,'1 Données d''entrée'!$C$332*($J105-SUM($C115:T115)),0))","v":0},{"$f":"IF(U55<1+$B114,0,IF(U55<'1 Données d''entrée'!$C$334+'1 Données d''entrée'!$C$333+1+$B114,'1 Données d''entrée'!$C$332*($J105-SUM($C115:U115)),0))","v":0}]
["Paiement d'intêrets",9,0,{"$f":"IF(C55<1+$B115,0,IF(C55<'1 Données d''entrée'!$C$334+'1 Données d''entrée'!$C$333+1+$B115,'1 Données d''entrée'!$C$332*($K105-SUM($C116:C116)),0))","v":0},{"$f":"IF(D55<1+$B115,0,IF(D55<'1 Données d''entrée'!$C$334+'1 Données d''entrée'!$C$333+1+$B115,'1 Données d''entrée'!$C$332*($K105-SUM($C116:D116)),0))","v":0},{"$f":"IF(E55<1+$B115,0,IF(E55<'1 Données d''entrée'!$C$334+'1 Données d''entrée'!$C$333+1+$B115,'1 Données d''entrée'!$C$332*($K105-SUM($C116:E116)),0))","v":0},{"$f":"IF(F55<1+$B115,0,IF(F55<'1 Données d''entrée'!$C$334+'1 Données d''entrée'!$C$333+1+$B115,'1 Données d''entrée'!$C$332*($K105-SUM($C116:F116)),0))","v":0},{"$f":"IF(G55<1+$B115,0,IF(G55<'1 Données d''entrée'!$C$334+'1 Données d''entrée'!$C$333+1+$B115,'1 Données d''entrée'!$C$332*($K105-SUM($C116:G116)),0))","v":0},{"$f":"IF(H55<1+$B115,0,IF(H55<'1 Données d''entrée'!$C$334+'1 Données d''entrée'!$C$333+1+$B115,'1 Données d''entrée'!$C$332*($K105-SUM($C116:H116)),0))","v":0},{"$f":"IF(I55<1+$B115,0,IF(I55<'1 Données d''entrée'!$C$334+'1 Données d''entrée'!$C$333+1+$B115,'1 Données d''entrée'!$C$332*($K105-SUM($C116:I116)),0))","v":0},{"$f":"IF(J55<1+$B115,0,IF(J55<'1 Données d''entrée'!$C$334+'1 Données d''entrée'!$C$333+1+$B115,'1 Données d''entrée'!$C$332*($K105-SUM($C116:J116)),0))","v":0},{"$f":"IF(K55<1+$B115,0,IF(K55<'1 Données d''entrée'!$C$334+'1 Données d''entrée'!$C$333+1+$B115,'1 Données d''entrée'!$C$332*($K105-SUM($C116:K116)),0))","v":0},{"$f":"IF(L55<1+$B115,0,IF(L55<'1 Données d''entrée'!$C$334+'1 Données d''entrée'!$C$333+1+$B115,'1 Données d''entrée'!$C$332*($K105-SUM($C116:L116)),0))","v":0},{"$f":"IF(M55<1+$B115,0,IF(M55<'1 Données d''entrée'!$C$334+'1 Données d''entrée'!$C$333+1+$B115,'1 Données d''entrée'!$C$332*($K105-SUM($C116:M116)),0))","v":0},{"$f":"IF(N55<1+$B115,0,IF(N55<'1 Données d''entrée'!$C$334+'1 Données d''entrée'!$C$333+1+$B115,'1 Données d''entrée'!$C$332*($K105-SUM($C116:N116)),0))","v":0},{"$f":"IF(O55<1+$B115,0,IF(O55<'1 Données d''entrée'!$C$334+'1 Données d''entrée'!$C$333+1+$B115,'1 Données d''entrée'!$C$332*($K105-SUM($C116:O116)),0))","v":0},{"$f":"IF(P55<1+$B115,0,IF(P55<'1 Données d''entrée'!$C$334+'1 Données d''entrée'!$C$333+1+$B115,'1 Données d''entrée'!$C$332*($K105-SUM($C116:P116)),0))","v":0},{"$f":"IF(Q55<1+$B115,0,IF(Q55<'1 Données d''entrée'!$C$334+'1 Données d''entrée'!$C$333+1+$B115,'1 Données d''entrée'!$C$332*($K105-SUM($C116:Q116)),0))","v":0},{"$f":"IF(R55<1+$B115,0,IF(R55<'1 Données d''entrée'!$C$334+'1 Données d''entrée'!$C$333+1+$B115,'1 Données d''entrée'!$C$332*($K105-SUM($C116:R116)),0))","v":0},{"$f":"IF(S55<1+$B115,0,IF(S55<'1 Données d''entrée'!$C$334+'1 Données d''entrée'!$C$333+1+$B115,'1 Données d''entrée'!$C$332*($K105-SUM($C116:S116)),0))","v":0},{"$f":"IF(T55<1+$B115,0,IF(T55<'1 Données d''entrée'!$C$334+'1 Données d''entrée'!$C$333+1+$B115,'1 Données d''entrée'!$C$332*($K105-SUM($C116:T116)),0))","v":0},{"$f":"IF(U55<1+$B115,0,IF(U55<'1 Données d''entrée'!$C$334+'1 Données d''entrée'!$C$333+1+$B115,'1 Données d''entrée'!$C$332*($K105-SUM($C116:U116)),0))","v":0}]
["Paiement d'intêrets",10,0,{"$f":"IF(C55<1+$B116,0,IF(C55<'1 Données d''entrée'!$C$334+'1 Données d''entrée'!$C$333+1+$B116,'1 Données d''entrée'!$C$332*($L105-SUM($C117:C117)),0))","v":0},{"$f":"IF(D55<1+$B116,0,IF(D55<'1 Données d''entrée'!$C$334+'1 Données d''entrée'!$C$333+1+$B116,'1 Données d''entrée'!$C$332*($L105-SUM($C117:D117)),0))","v":0},{"$f":"IF(E55<1+$B116,0,IF(E55<'1 Données d''entrée'!$C$334+'1 Données d''entrée'!$C$333+1+$B116,'1 Données d''entrée'!$C$332*($L105-SUM($C117:E117)),0))","v":0},{"$f":"IF(F55<1+$B116,0,IF(F55<'1 Données d''entrée'!$C$334+'1 Données d''entrée'!$C$333+1+$B116,'1 Données d''entrée'!$C$332*($L105-SUM($C117:F117)),0))","v":0},{"$f":"IF(G55<1+$B116,0,IF(G55<'1 Données d''entrée'!$C$334+'1 Données d''entrée'!$C$333+1+$B116,'1 Données d''entrée'!$C$332*($L105-SUM($C117:G117)),0))","v":0},{"$f":"IF(H55<1+$B116,0,IF(H55<'1 Données d''entrée'!$C$334+'1 Données d''entrée'!$C$333+1+$B116,'1 Données d''entrée'!$C$332*($L105-SUM($C117:H117)),0))","v":0},{"$f":"IF(I55<1+$B116,0,IF(I55<'1 Données d''entrée'!$C$334+'1 Données d''entrée'!$C$333+1+$B116,'1 Données d''entrée'!$C$332*($L105-SUM($C117:I117)),0))","v":0},{"$f":"IF(J55<1+$B116,0,IF(J55<'1 Données d''entrée'!$C$334+'1 Données d''entrée'!$C$333+1+$B116,'1 Données d''entrée'!$C$332*($L105-SUM($C117:J117)),0))","v":0},{"$f":"IF(K55<1+$B116,0,IF(K55<'1 Données d''entrée'!$C$334+'1 Données d''entrée'!$C$333+1+$B116,'1 Données d''entrée'!$C$332*($L105-SUM($C117:K117)),0))","v":0},{"$f":"IF(L55<1+$B116,0,IF(L55<'1 Données d''entrée'!$C$334+'1 Données d''entrée'!$C$333+1+$B116,'1 Données d''entrée'!$C$332*($L105-SUM($C117:L117)),0))","v":0},{"$f":"IF(M55<1+$B116,0,IF(M55<'1 Données d''entrée'!$C$334+'1 Données d''entrée'!$C$333+1+$B116,'1 Données d''entrée'!$C$332*($L105-SUM($C117:M117)),0))","v":0},{"$f":"IF(N55<1+$B116,0,IF(N55<'1 Données d''entrée'!$C$334+'1 Données d''entrée'!$C$333+1+$B116,'1 Données d''entrée'!$C$332*($L105-SUM($C117:N117)),0))","v":0},{"$f":"IF(O55<1+$B116,0,IF(O55<'1 Données d''entrée'!$C$334+'1 Données d''entrée'!$C$333+1+$B116,'1 Données d''entrée'!$C$332*($L105-SUM($C117:O117)),0))","v":0},{"$f":"IF(P55<1+$B116,0,IF(P55<'1 Données d''entrée'!$C$334+'1 Données d''entrée'!$C$333+1+$B116,'1 Données d''entrée'!$C$332*($L105-SUM($C117:P117)),0))","v":0},{"$f":"IF(Q55<1+$B116,0,IF(Q55<'1 Données d''entrée'!$C$334+'1 Données d''entrée'!$C$333+1+$B116,'1 Données d''entrée'!$C$332*($L105-SUM($C117:Q117)),0))","v":0},{"$f":"IF(R55<1+$B116,0,IF(R55<'1 Données d''entrée'!$C$334+'1 Données d''entrée'!$C$333+1+$B116,'1 Données d''entrée'!$C$332*($L105-SUM($C117:R117)),0))","v":0},{"$f":"IF(S55<1+$B116,0,IF(S55<'1 Données d''entrée'!$C$334+'1 Données d''entrée'!$C$333+1+$B116,'1 Données d''entrée'!$C$332*($L105-SUM($C117:S117)),0))","v":0},{"$f":"IF(T55<1+$B116,0,IF(T55<'1 Données d''entrée'!$C$334+'1 Données d''entrée'!$C$333+1+$B116,'1 Données d''entrée'!$C$332*($L105-SUM($C117:T117)),0))","v":0},{"$f":"IF(U55<1+$B116,0,IF(U55<'1 Données d''entrée'!$C$334+'1 Données d''entrée'!$C$333+1+$B116,'1 Données d''entrée'!$C$332*($L105-SUM($C117:U117)),0))","v":0}]
[]
[null,"Période",1,2,3,4,5,6,7,8,9,10,11,12,13,14,15,16,17,18,19,20]
["Prêt bancaire additionnel- Option 2: Remboursement du principal final",{"$f":"'1 Données d''entrée'!$B$343","v":0}]
["Prêt(s) nouveau(x)",null,{"$f":"IF(C98<0,C98*(-1)*$B132+C98*(-1)*$B132*'1 Données d''entrée'!$C$338,0)","v":{"$error":"#DIV/0!"}},{"$f":"IF(D98<0,D98*(-1)*$B132+D98*(-1)*$B132*'1 Données d''entrée'!$C$338,0)","v":{"$error":"#DIV/0!"}},{"$f":"IF(E98<0,E98*(-1)*$B132+E98*(-1)*$B132*'1 Données d''entrée'!$C$338,0)","v":{"$error":"#DIV/0!"}},{"$f":"IF(F98<0,F98*(-1)*$B132+F98*(-1)*$B132*'1 Données d''entrée'!$C$338,0)","v":{"$error":"#DIV/0!"}},{"$f":"IF(G98<0,G98*(-1)*$B132+G98*(-1)*$B132*'1 Données d''entrée'!$C$338,0)","v":{"$error":"#DIV/0!"}},{"$f":"IF(H98<0,H98*(-1)*$B132+H98*(-1)*$B132*'1 Données d''entrée'!$C$338,0)","v":{"$error":"#DIV/0!"}},{"$f":"IF(I98<0,I98*(-1)*$B132+I98*(-1)*$B132*'1 Données d''entrée'!$C$338,0)","v":{"$error":"#DIV/0!"}},{"$f":"IF(J98<0,J98*(-1)*$B132+J98*(-1)*$B132*'1 Données d''entrée'!$C$338,0)","v":{"$error":"#DIV/0!"}},{"$f":"IF(K98<0,K98*(-1)*$B132+K98*(-1)*$B132*'1 Données d''entrée'!$C$338,0)","v":{"$error":"#DIV/0!"}},{"$f":"IF(L98<0,L98*(-1)*$B132+L98*(-1)*$B132*'1 Données d''entrée'!$C$338,0)","v":{"$error":"#DIV/0!"}},{"$f":"IF(M98<0,M98*(-1)*$B132+M98*(-1)*$B132*'1 Données d''entrée'!$C$338,0)","v":{"$error":"#DIV/0!"}},{"$f":"IF(N98<0,N98*(-1)*$B132+N98*(-1)*$B132*'1 Données d''entrée'!$C$338,0)","v":{"$error":"#DIV/0!"}},{"$f":"IF(O98<0,O98*(-1)*$B132+O98*(-1)*$B132*'1 Données d''entrée'!$C$338,0)","v":{"$error":"#DIV/0!"}},{"$f":"IF(P98<0,P98*(-1)*$B132+P98*(-1)*$B132*'1 Données d''entrée'!$C$338,0)","v":{"$error":"#DIV/0!"}},{"$f":"IF(Q98<0,Q98*(-1)*$B132+Q98*(-1)*$B132*'1 Données d''entrée'!$C$338,0)","v":{"$error":"#DIV/0!"}},{"$f":"IF(R98<0,R98*(-1)*$B132+R98*(-1)*$B132*'1 Données d''entrée'!$C$338,0)","v":{"$error":"#DIV/0!"}},{"$f":"IF(S98<0,S98*(-1)*$B132+S98*(-1)*$B132*'1 Données d''entrée'!$C$338,0)","v":{"$error":"#DIV/0!"}},{"$f":"IF(T98<0,T98*(-1)*$B132+T98*(-1)*$B132*'1 Données d''entrée'!$C$338,0)","v":{"$error":"#DIV/0!"}},{"$f":"IF(U98<0,U98*(-1)*$B132+U98*(-1)*$B132*'1 Données d''entrée'!$C$338,0)","v":{"$error":"#DIV/0!"}},{"$f":"IF(V98<0,V98*(-1)*$B132+V98*(-1)*$B132*'1 Données d''entrée'!$C$338,0)","v":{"$error":"#DIV/0!"}}]
[null,"Période de prêt nouveau"]
["Remboursement du principal",0,0,0,0,0,0,0,0,0,0,0,0,0,0,0,0,0,0,0,0,0]
[null,1,{"$f":"IF(C131='1 Données d''entrée'!$C$333+'1 Données d''entrée'!$C$334+$B136,$C133,0)","v":{"$error":"#DIV/0!"}},{"$f":"IF(D131='1 Données d''entrée'!$C$333+'1 Données d''entrée'!$C$334+$B136,$C133,0)","v":0},{"$f":"IF(E131='1 Données d''entrée'!$C$333+'1 Données d''entrée'!$C$334+$B136,$C133,0)","v":0},{"$f":"IF(F131='1 Données d''entrée'!$C$333+'1 Données d''entrée'!$C$334+$B136,$C133,0)","v":0},{"$f":"IF(G131='1 Données d''entrée'!$C$333+'1 Données d''entrée'!$C$334+$B136,$C133,0)","v":0},{"$f":"IF(H131='1 Données d''entrée'!$C$333+'1 Données d''entrée'!$C$334+$B136,$C133,0)","v":0},{"$f":"IF(I131='1 Données d''entrée'!$C$333+'1 Données d''entrée'!$C$334+$B136,$C133,0)","v":0},{"$f":"IF(J131='1 Données d''entrée'!$C$333+'1 Données d''entrée'!$C$334+$B136,$C133,0)","v":0},{"$f":"IF(K131='1 Données d''entrée'!$C$333+'1 Données d''entrée'!$C$334+$B136,$C133,0)","v":0},{"$f":"IF(L131='1 Données d''entrée'!$C$333+'1 Données d''entrée'!$C$334+$B136,$C133,0)","v":0},{"$f":"IF(M131='1 Données d''entrée'!$C$333+'1 Données d''entrée'!$C$334+$B136,$C133,0)","v":0},{"$f":"IF(N131='1 Données d''entrée'!$C$333+'1 Données d''entrée'!$C$334+$B136,$C133,0)","v":0},{"$f":"IF(O131='1 Données d''entrée'!$C$333+'1 Données d''entrée'!$C$334+$B136,$C133,0)","v":0},{"$f":"IF(P131='1 Données d''entrée'!$C$333+'1 Données d''entrée'!$C$334+$B136,$C133,0)","v":0},{"$f":"IF(Q131='1 Données d''entrée'!$C$333+'1 Données d''entrée'!$C$334+$B136,$C133,0)","v":0},{"$f":"IF(R131='1 Données d''entrée'!$C$333+'1 Données d''entrée'!$C$334+$B136,$C133,0)","v":0},{"$f":"IF(S131='1 Données d''entrée'!$C$333+'1 Données d''entrée'!$C$334+$B136,$C133,0)","v":0},{"$f":"IF(T131='1 Données d''entrée'!$C$333+'1 Données d''entrée'!$C$334+$B136,$C133,0)","v":0},{"$f":"IF(U131='1 Données d''entrée'!$C$333+'1 Données d''entrée'!$C$334+$B136,$C133,0)","v":0},{"$f":"IF(V131='1 Données d''entrée'!$C$333+'1 Données d''entrée'!$C$334+$B136,$C133,0)","v":0}]
[null,2,{"$f":"IF(C131='1 Données d''entrée'!$C$333+'1 Données d''entrée'!$C$334+$B137,$D133,0)","v":0},{"$f":"IF(D131='1 Données d''entrée'!$C$333+'1 Données d''entrée'!$C$334+$B137,$D133,0)","v":{"$error":"#DIV/0!"}},{"$f":"IF(E131='1 Données d''entrée'!$C$333+'1 Données d''entrée'!$C$334+$B137,$D133,0)","v":0},{"$f":"IF(F131='1 Données d''entrée'!$C$333+'1 Données d''entrée'!$C$334+$B137,$D133,0)","v":0},{"$f":"IF(G131='1 Données d''entrée'!$C$333+'1 Données d''entrée'!$C$334+$B137,$D133,0)","v":0},{"$f":"IF(H131='1 Données d''entrée'!$C$333+'1 Données d''entrée'!$C$334+$B137,$D133,0)","v":0},{"$f":"IF(I131='1 Données d''entrée'!$C$333+'1 Données d''entrée'!$C$334+$B137,$D133,0)","v":0},{"$f":"IF(J131='1 Données d''entrée'!$C$333+'1 Données d''entrée'!$C$334+$B137,$D133,0)","v":0},{"$f":"IF(K131='1 Données d''entrée'!$C$333+'1 Données d''entrée'!$C$334+$B137,$D133,0)","v":0},{"$f":"IF(L131='1 Données d''entrée'!$C$333+'1 Données d''entrée'!$C$334+$B137,$D133,0)","v":0},{"$f":"IF(M131='1 Données d''entrée'!$C$333+'1 Données d''entrée'!$C$334+$B137,$D133,0)","v":0},{"$f":"IF(N131='1 Données d''entrée'!$C$333+'1 Données d''entrée'!$C$334+$B137,$D133,0)","v":0},{"$f":"IF(O131='1 Données d''entrée'!$C$333+'1 Données d''entrée'!$C$334+$B137,$D133,0)","v":0},{"$f":"IF(P131='1 Données d''entrée'!$C$333+'1 Données d''entrée'!$C$334+$B137,$D133,0)","v":0},{"$f":"IF(Q131='1 Données d''entrée'!$C$333+'1 Données d''entrée'!$C$334+$B137,$D133,0)","v":0},{"$f":"IF(R131='1 Données d''entrée'!$C$333+'1 Données d''entrée'!$C$334+$B137,$D133,0)","v":0},{"$f":"IF(S131='1 Données d''entrée'!$C$333+'1 Données d''entrée'!$C$334+$B137,$D133,0)","v":0},{"$f":"IF(T131='1 Données d''entrée'!$C$333+'1 Données d''entrée'!$C$334+$B137,$D133,0)","v":0},{"$f":"IF(U131='1 Données d''entrée'!$C$333+'1 Données d''entrée'!$C$334+$B137,$D133,0)","v":0},{"$f":"IF(V131='1 Données d''entrée'!$C$333+'1 Données d''entrée'!$C$334+$B137,$D133,0)","v":0}]
[null,3,{"$f":"IF(C131='1 Données d''entrée'!$C$333+'1 Données d''entrée'!$C$334+$B138,$E133,0)","v":0},{"$f":"IF(D131='1 Données d''entrée'!$C$333+'1 Données d''entrée'!$C$334+$B138,$E133,0)","v":0},{"$f":"IF(E131='1 Données d''entrée'!$C$333+'1 Données d''entrée'!$C$334+$B138,$E133,0)","v":{"$error":"#DIV/0!"}},{"$f":"IF(F131='1 Données d''entrée'!$C$333+'1 Données d''entrée'!$C$334+$B138,$E133,0)","v":0},{"$f":"IF(G131='1 Données d''entrée'!$C$333+'1 Données d''entrée'!$C$334+$B138,$E133,0)","v":0},{"$f":"IF(H131='1 Données d''entrée'!$C$333+'1 Données d''entrée'!$C$334+$B138,$E133,0)","v":0},{"$f":"IF(I131='1 Données d''entrée'!$C$333+'1 Données d''entrée'!$C$334+$B138,$E133,0)","v":0},{"$f":"IF(J131='1 Données d''entrée'!$C$333+'1 Données d''entrée'!$C$334+$B138,$E133,0)","v":0},{"$f":"IF(K131='1 Données d''entrée'!$C$333+'1 Données d''entrée'!$C$334+$B138,$E133,0)","v":0},{"$f":"IF(L131='1 Données d''entrée'!$C$333+'1 Données d''entrée'!$C$334+$B138,$E133,0)","v":0},{"$f":"IF(M131='1 Données d''entrée'!$C$333+'1 Données d''entrée'!$C$334+$B138,$E133,0)","v":0},{"$f":"IF(N131='1 Données d''entrée'!$C$333+'1 Données d''entrée'!$C$334+$B138,$E133,0)","v":0},{"$f":"IF(O131='1 Données d''entrée'!$C$333+'1 Données d''entrée'!$C$334+$B138,$E133,0)","v":0},{"$f":"IF(P131='1 Données d''entrée'!$C$333+'1 Données d''entrée'!$C$334+$B138,$E133,0)","v":0},{"$f":"IF(Q131='1 Données d''entrée'!$C$333+'1 Données d''entrée'!$C$334+$B138,$E133,0)","v":0},{"$f":"IF(R131='1 Données d''entrée'!$C$333+'1 Données d''entrée'!$C$334+$B138,$E133,0)","v":0},{"$f":"IF(S131='1 Données d''entrée'!$C$333+'1 Données d''entrée'!$C$334+$B138,$E133,0)","v":0},{"$f":"IF(T131='1 Données d''entrée'!$C$333+'1 Données d''entrée'!$C$334+$B138,$E133,0)","v":0},{"$f":"IF(U131='1 Données d''entrée'!$C$333+'1 Données d''entrée'!$C$334+$B138,$E133,0)","v":0},{"$f":"IF(V131='1 Données d''entrée'!$C$333+'1 Données d''entrée'!$C$334+$B138,$E133,0)","v":0}]
[null,4,{"$f":"IF(C131='1 Données d''entrée'!$C$333+'1 Données d''entrée'!$C$334+$B139,$F133,0)","v":0},{"$f":"IF(D131='1 Données d''entrée'!$C$333+'1 Données d''entrée'!$C$334+$B139,$F133,0)","v":0},{"$f":"IF(E131='1 Données d''entrée'!$C$333+'1 Données d''entrée'!$C$334+$B139,$F133,0)","v":0},{"$f":"IF(F131='1 Données d''entrée'!$C$333+'1 Données d''entrée'!$C$334+$B139,$F133,0)","v":{"$error":"#DIV/0!"}},{"$f":"IF(G131='1 Données d''entrée'!$C$333+'1 Données d''entrée'!$C$334+$B139,$F133,0)","v":0},{"$f":"IF(H131='1 Données d''entrée'!$C$333+'1 Données d''entrée'!$C$334+$B139,$F133,0)","v":0},{"$f":"IF(I131='1 Données d''entrée'!$C$333+'1 Données d''entrée'!$C$334+$B139,$F133,0)","v":0},{"$f":"IF(J131='1 Données d''entrée'!$C$333+'1 Données d''entrée'!$C$334+$B139,$F133,0)","v":0},{"$f":"IF(K131='1 Données d''entrée'!$C$333+'1 Données d''entrée'!$C$334+$B139,$F133,0)","v":0},{"$f":"IF(L131='1 Données d''entrée'!$C$333+'1 Données d''entrée'!$C$334+$B139,$F133,0)","v":0},{"$f":"IF(M131='1 Données d''entrée'!$C$333+'1 Données d''entrée'!$C$334+$B139,$F133,0)","v":0},{"$f":"IF(N131='1 Données d''entrée'!$C$333+'1 Données d''entrée'!$C$334+$B139,$F133,0)","v":0},{"$f":"IF(O131='1 Données d''entrée'!$C$333+'1 Données d''entrée'!$C$334+$B139,$F133,0)","v":0},{"$f":"IF(P131='1 Données d''entrée'!$C$333+'1 Données d''entrée'!$C$334+$B139,$F133,0)","v":0},{"$f":"IF(Q131='1 Données d''entrée'!$C$333+'1 Données d''entrée'!$C$334+$B139,$F133,0)","v":0},{"$f":"IF(R131='1 Données d''entrée'!$C$333+'1 Données d''entrée'!$C$334+$B139,$F133,0)","v":0},{"$f":"IF(S131='1 Données d''entrée'!$C$333+'1 Données d''entrée'!$C$334+$B139,$F133,0)","v":0},{"$f":"IF(T131='1 Données d''entrée'!$C$333+'1 Données d''entrée'!$C$334+$B139,$F133,0)","v":0},{"$f":"IF(U131='1 Données d''entrée'!$C$333+'1 Données d''entrée'!$C$334+$B139,$F133,0)","v":0},{"$f":"IF(V131='1 Données d''entrée'!$C$333+'1 Données d''entrée'!$C$334+$B139,$F133,0)","v":0}]
[null,5,{"$f":"IF(C131='1 Données d''entrée'!$C$333+'1 Données d''entrée'!$C$334+$B140,$G133,0)","v":0},{"$f":"IF(D131='1 Données d''entrée'!$C$333+'1 Données d''entrée'!$C$334+$B140,$G133,0)","v":0},{"$f":"IF(E131='1 Données d''entrée'!$C$333+'1 Données d''entrée'!$C$334+$B140,$G133,0)","v":0},{"$f":"IF(F131='1 Données d''entrée'!$C$333+'1 Données d''entrée'!$C$334+$B140,$G133,0)","v":0},{"$f":"IF(G131='1 Données d''entrée'!$C$333+'1 Données d''entrée'!$C$334+$B140,$G133,0)","v":{"$error":"#DIV/0!"}},{"$f":"IF(H131='1 Données d''entrée'!$C$333+'1 Données d''entrée'!$C$334+$B140,$G133,0)","v":0},{"$f":"IF(I131='1 Données d''entrée'!$C$333+'1 Données d''entrée'!$C$334+$B140,$G133,0)","v":0},{"$f":"IF(J131='1 Données d''entrée'!$C$333+'1 Données d''entrée'!$C$334+$B140,$G133,0)","v":0},{"$f":"IF(K131='1 Données d''entrée'!$C$333+'1 Données d''entrée'!$C$334+$B140,$G133,0)","v":0},{"$f":"IF(L131='1 Données d''entrée'!$C$333+'1 Données d''entrée'!$C$334+$B140,$G133,0)","v":0},{"$f":"IF(M131='1 Données d''entrée'!$C$333+'1 Données d''entrée'!$C$334+$B140,$G133,0)","v":0},{"$f":"IF(N131='1 Données d''entrée'!$C$333+'1 Données d''entrée'!$C$334+$B140,$G133,0)","v":0},{"$f":"IF(O131='1 Données d''entrée'!$C$333+'1 Données d''entrée'!$C$334+$B140,$G133,0)","v":0},{"$f":"IF(P131='1 Données d''entrée'!$C$333+'1 Données d''entrée'!$C$334+$B140,$G133,0)","v":0},{"$f":"IF(Q131='1 Données d''entrée'!$C$333+'1 Données d''entrée'!$C$334+$B140,$G133,0)","v":0},{"$f":"IF(R131='1 Données d''entrée'!$C$333+'1 Données d''entrée'!$C$334+$B140,$G133,0)","v":0},{"$f":"IF(S131='1 Données d''entrée'!$C$333+'1 Données d''entrée'!$C$334+$B140,$G133,0)","v":0},{"$f":"IF(T131='1 Données d''entrée'!$C$333+'1 Données d''entrée'!$C$334+$B140,$G133,0)","v":0},{"$f":"IF(U131='1 Données d''entrée'!$C$333+'1 Données d''entrée'!$C$334+$B140,$G133,0)","v":0},{"$f":"IF(V131='1 Données d''entrée'!$C$333+'1 Données d''entrée'!$C$334+$B140,$G133,0)","v":0}]
[null,6,{"$f":"IF(C131='1 Données d''entrée'!$C$333+'1 Données d''entrée'!$C$334+$B141,$H133,0)","v":0},{"$f":"IF(D131='1 Données d''entrée'!$C$333+'1 Données d''entrée'!$C$334+$B141,$H133,0)","v":0},{"$f":"IF(E131='1 Données d''entrée'!$C$333+'1 Données d''entrée'!$C$334+$B141,$H133,0)","v":0},{"$f":"IF(F131='1 Données d''entrée'!$C$333+'1 Données d''entrée'!$C$334+$B141,$H133,0)","v":0},{"$f":"IF(G131='1 Données d''entrée'!$C$333+'1 Données d''entrée'!$C$334+$B141,$H133,0)","v":0},{"$f":"IF(H131='1 Données d''entrée'!$C$333+'1 Données d''entrée'!$C$334+$B141,$H133,0)","v":{"$error":"#DIV/0!"}},{"$f":"IF(I131='1 Données d''entrée'!$C$333+'1 Données d''entrée'!$C$334+$B141,$H133,0)","v":0},{"$f":"IF(J131='1 Données d''entrée'!$C$333+'1 Données d''entrée'!$C$334+$B141,$H133,0)","v":0},{"$f":"IF(K131='1 Données d''entrée'!$C$333+'1 Données d''entrée'!$C$334+$B141,$H133,0)","v":0},{"$f":"IF(L131='1 Données d''entrée'!$C$333+'1 Données d''entrée'!$C$334+$B141,$H133,0)","v":0},{"$f":"IF(M131='1 Données d''entrée'!$C$333+'1 Données d''entrée'!$C$334+$B141,$H133,0)","v":0},{"$f":"IF(N131='1 Données d''entrée'!$C$333+'1 Données d''entrée'!$C$334+$B141,$H133,0)","v":0},{"$f":"IF(O131='1 Données d''entrée'!$C$333+'1 Données d''entrée'!$C$334+$B141,$H133,0)","v":0},{"$f":"IF(P131='1 Données d''entrée'!$C$333+'1 Données d''entrée'!$C$334+$B141,$H133,0)","v":0},{"$f":"IF(Q131='1 Données d''entrée'!$C$333+'1 Données d''entrée'!$C$334+$B141,$H133,0)","v":0},{"$f":"IF(R131='1 Données d''entrée'!$C$333+'1 Données d''entrée'!$C$334+$B141,$H133,0)","v":0},{"$f":"IF(S131='1 Données d''entrée'!$C$333+'1 Données d''entrée'!$C$334+$B141,$H133,0)","v":0},{"$f":"IF(T131='1 Données d''entrée'!$C$333+'1 Données d''entrée'!$C$334+$B141,$H133,0)","v":0},{"$f":"IF(U131='1 Données d''entrée'!$C$333+'1 Données d''entrée'!$C$334+$B141,$H133,0)","v":0},{"$f":"IF(V131='1 Données d''entrée'!$C$333+'1 Données d''entrée'!$C$334+$B141,$H133,0)","v":0}]
[null,7,{"$f":"IF(C131='1 Données d''entrée'!$C$333+'1 Données d''entrée'!$C$334+$B142,$I133,0)","v":0},{"$f":"IF(D131='1 Données d''entrée'!$C$333+'1 Données d''entrée'!$C$334+$B142,$I133,0)","v":0},{"$f":"IF(E131='1 Données d''entrée'!$C$333+'1 Données d''entrée'!$C$334+$B142,$I133,0)","v":0},{"$f":"IF(F131='1 Données d''entrée'!$C$333+'1 Données d''entrée'!$C$334+$B142,$I133,0)","v":0},{"$f":"IF(G131='1 Données d''entrée'!$C$333+'1 Données d''entrée'!$C$334+$B142,$I133,0)","v":0},{"$f":"IF(H131='1 Données d''entrée'!$C$333+'1 Données d''entrée'!$C$334+$B142,$I133,0)","v":0},{"$f":"IF(I131='1 Données d''entrée'!$C$333+'1 Données d''entrée'!$C$334+$B142,$I133,0)","v":{"$error":"#DIV/0!"}},{"$f":"IF(J131='1 Données d''entrée'!$C$333+'1 Données d''entrée'!$C$334+$B142,$I133,0)","v":0},{"$f":"IF(K131='1 Données d''entrée'!$C$333+'1 Données d''entrée'!$C$334+$B142,$I133,0)","v":0},{"$f":"IF(L131='1 Données d''entrée'!$C$333+'1 Données d''entrée'!$C$334+$B142,$I133,0)","v":0},{"$f":"IF(M131='1 Données d''entrée'!$C$333+'1 Données d''entrée'!$C$334+$B142,$I133,0)","v":0},{"$f":"IF(N131='1 Données d''entrée'!$C$333+'1 Données d''entrée'!$C$334+$B142,$I133,0)","v":0},{"$f":"IF(O131='1 Données d''entrée'!$C$333+'1 Données d''entrée'!$C$334+$B142,$I133,0)","v":0},{"$f":"IF(P131='1 Données d''entrée'!$C$333+'1 Données d''entrée'!$C$334+$B142,$I133,0)","v":0},{"$f":"IF(Q131='1 Données d''entrée'!$C$333+'1 Données d''entrée'!$C$334+$B142,$I133,0)","v":0},{"$f":"IF(R131='1 Données d''entrée'!$C$333+'1 Données d''entrée'!$C$334+$B142,$I133,0)","v":0},{"$f":"IF(S131='1 Données d''entrée'!$C$333+'1 Données d''entrée'!$C$334+$B142,$I133,0)","v":0},{"$f":"IF(T131='1 Données d''entrée'!$C$333+'1 Données d''entrée'!$C$334+$B142,$I133,0)","v":0},{"$f":"IF(U131='1 Données d''entrée'!$C$333+'1 Données d''entrée'!$C$334+$B142,$I133,0)","v":0},{"$f":"IF(V131='1 Données d''entrée'!$C$333+'1 Données d''entrée'!$C$334+$B142,$I133,0)","v":0}]
[null,8,{"$f":"IF(C131='1 Données d''entrée'!$C$333+'1 Données d''entrée'!$C$334+$B143,$J133,0)","v":0},{"$f":"IF(D131='1 Données d''entrée'!$C$333+'1 Données d''entrée'!$C$334+$B143,$J133,0)","v":0},{"$f":"IF(E131='1 Données d''entrée'!$C$333+'1 Données d''entrée'!$C$334+$B143,$J133,0)","v":0},{"$f":"IF(F131='1 Données d''entrée'!$C$333+'1 Données d''entrée'!$C$334+$B143,$J133,0)","v":0},{"$f":"IF(G131='1 Données d''entrée'!$C$333+'1 Données d''entrée'!$C$334+$B143,$J133,0)","v":0},{"$f":"IF(H131='1 Données d''entrée'!$C$333+'1 Données d''entrée'!$C$334+$B143,$J133,0)","v":0},{"$f":"IF(I131='1 Données d''entrée'!$C$333+'1 Données d''entrée'!$C$334+$B143,$J133,0)","v":0},{"$f":"IF(J131='1 Données d''entrée'!$C$333+'1 Données d''entrée'!$C$334+$B143,$J133,0)","v":{"$error":"#DIV/0!"}},{"$f":"IF(K131='1 Données d''entrée'!$C$333+'1 Données d''entrée'!$C$334+$B143,$J133,0)","v":0},{"$f":"IF(L131='1 Données d''entrée'!$C$333+'1 Données d''entrée'!$C$334+$B143,$J133,0)","v":0},{"$f":"IF(M131='1 Données d''entrée'!$C$333+'1 Données d''entrée'!$C$334+$B143,$J133,0)","v":0},{"$f":"IF(N131='1 Données d''entrée'!$C$333+'1 Données d''entrée'!$C$334+$B143,$J133,0)","v":0},{"$f":"IF(O131='1 Données d''entrée'!$C$333+'1 Données d''entrée'!$C$334+$B143,$J133,0)","v":0},{"$f":"IF(P131='1 Données d''entrée'!$C$333+'1 Données d''entrée'!$C$334+$B143,$J133,0)","v":0},{"$f":"IF(Q131='1 Données d''entrée'!$C$333+'1 Données d''entrée'!$C$334+$B143,$J133,0)","v":0},{"$f":"IF(R131='1 Données d''entrée'!$C$333+'1 Données d''entrée'!$C$334+$B143,$J133,0)","v":0},{"$f":"IF(S131='1 Données d''entrée'!$C$333+'1 Données d''entrée'!$C$334+$B143,$J133,0)","v":0},{"$f":"IF(T131='1 Données d''entrée'!$C$333+'1 Données d''entrée'!$C$334+$B143,$J133,0)","v":0},{"$f":"IF(U131='1 Données d''entrée'!$C$333+'1 Données d''entrée'!$C$334+$B143,$J133,0)","v":0},{"$f":"IF(V131='1 Données d''entrée'!$C$333+'1 Données d''entrée'!$C$334+$B143,$J133,0)","v":0}]
[null,9,{"$f":"IF(C131='1 Données d''entrée'!$C$333+'1 Données d''entrée'!$C$334+$B144,$K133,0)","v":0},{"$f":"IF(D131='1 Données d''entrée'!$C$333+'1 Données d''entrée'!$C$334+$B144,$K133,0)","v":0},{"$f":"IF(E131='1 Données d''entrée'!$C$333+'1 Données d''entrée'!$C$334+$B144,$K133,0)","v":0},{"$f":"IF(F131='1 Données d''entrée'!$C$333+'1 Données d''entrée'!$C$334+$B144,$K133,0)","v":0},{"$f":"IF(G131='1 Données d''entrée'!$C$333+'1 Données d''entrée'!$C$334+$B144,$K133,0)","v":0},{"$f":"IF(H131='1 Données d''entrée'!$C$333+'1 Données d''entrée'!$C$334+$B144,$K133,0)","v":0},{"$f":"IF(I131='1 Données d''entrée'!$C$333+'1 Données d''entrée'!$C$334+$B144,$K133,0)","v":0},{"$f":"IF(J131='1 Données d''entrée'!$C$333+'1 Données d''entrée'!$C$334+$B144,$K133,0)","v":0},{"$f":"IF(K131='1 Données d''entrée'!$C$333+'1 Données d''entrée'!$C$334+$B144,$K133,0)","v":{"$error":"#DIV/0!"}},{"$f":"IF(L131='1 Données d''entrée'!$C$333+'1 Données d''entrée'!$C$334+$B144,$K133,0)","v":0},{"$f":"IF(M131='1 Données d''entrée'!$C$333+'1 Données d''entrée'!$C$334+$B144,$K133,0)","v":0},{"$f":"IF(N131='1 Données d''entrée'!$C$333+'1 Données d''entrée'!$C$334+$B144,$K133,0)","v":0},{"$f":"IF(O131='1 Données d''entrée'!$C$333+'1 Données d''entrée'!$C$334+$B144,$K133,0)","v":0},{"$f":"IF(P131='1 Données d''entrée'!$C$333+'1 Données d''entrée'!$C$334+$B144,$K133,0)","v":0},{"$f":"IF(Q131='1 Données d''entrée'!$C$333+'1 Données d''entrée'!$C$334+$B144,$K133,0)","v":0},{"$f":"IF(R131='1 Données d''entrée'!$C$333+'1 Données d''entrée'!$C$334+$B144,$K133,0)","v":0},{"$f":"IF(S131='1 Données d''entrée'!$C$333+'1 Données d''entrée'!$C$334+$B144,$K133,0)","v":0},{"$f":"IF(T131='1 Données d''entrée'!$C$333+'1 Données d''entrée'!$C$334+$B144,$K133,0)","v":0},{"$f":"IF(U131='1 Données d''entrée'!$C$333+'1 Données d''entrée'!$C$334+$B144,$K133,0)","v":0},{"$f":"IF(V131='1 Données d''entrée'!$C$333+'1 Données d''entrée'!$C$334+$B144,$K133,0)","v":0}]
[null,10,{"$f":"IF(C131='1 Données d''entrée'!$C$333+'1 Données d''entrée'!$C$334+$B145,$L133,0)","v":0},{"$f":"IF(D131='1 Données d''entrée'!$C$333+'1 Données d''entrée'!$C$334+$B145,$L133,0)","v":0},{"$f":"IF(E131='1 Données d''entrée'!$C$333+'1 Données d''entrée'!$C$334+$B145,$L133,0)","v":0},{"$f":"IF(F131='1 Données d''entrée'!$C$333+'1 Données d''entrée'!$C$334+$B145,$L133,0)","v":0},{"$f":"IF(G131='1 Données d''entrée'!$C$333+'1 Données d''entrée'!$C$334+$B145,$L133,0)","v":0},{"$f":"IF(H131='1 Données d''entrée'!$C$333+'1 Données d''entrée'!$C$334+$B145,$L133,0)","v":0},{"$f":"IF(I131='1 Données d''entrée'!$C$333+'1 Données d''entrée'!$C$334+$B145,$L133,0)","v":0},{"$f":"IF(J131='1 Données d''entrée'!$C$333+'1 Données d''entrée'!$C$334+$B145,$L133,0)","v":0},{"$f":"IF(K131='1 Données d''entrée'!$C$333+'1 Données d''entrée'!$C$334+$B145,$L133,0)","v":0},{"$f":"IF(L131='1 Données d''entrée'!$C$333+'1 Données d''entrée'!$C$334+$B145,$L133,0)","v":{"$error":"#DIV/0!"}},{"$f":"IF(M131='1 Données d''entrée'!$C$333+'1 Données d''entrée'!$C$334+$B145,$L133,0)","v":0},{"$f":"IF(N131='1 Données d''entrée'!$C$333+'1 Données d''entrée'!$C$334+$B145,$L133,0)","v":0},{"$f":"IF(O131='1 Données d''entrée'!$C$333+'1 Données d''entrée'!$C$334+$B145,$L133,0)","v":0},{"$f":"IF(P131='1 Données d''entrée'!$C$333+'1 Données d''entrée'!$C$334+$B145,$L133,0)","v":0},{"$f":"IF(Q131='1 Données d''entrée'!$C$333+'1 Données d''entrée'!$C$334+$B145,$L133,0)","v":0},{"$f":"IF(R131='1 Données d''entrée'!$C$333+'1 Données d''entrée'!$C$334+$B145,$L133,0)","v":0},{"$f":"IF(S131='1 Données d''entrée'!$C$333+'1 Données d''entrée'!$C$334+$B145,$L133,0)","v":0},{"$f":"IF(T131='1 Données d''entrée'!$C$333+'1 Données d''entrée'!$C$334+$B145,$L133,0)","v":0},{"$f":"IF(U131='1 Données d''entrée'!$C$333+'1 Données d''entrée'!$C$334+$B145,$L133,0)","v":0},{"$f":"IF(V131='1 Données d''entrée'!$C$333+'1 Données d''entrée'!$C$334+$B145,$L133,0)","v":0}]
[null,"Période de prêt nouveau"]
["Paiement d'intérêts",0,0,0,0,0,0,0,0,0,0,0,0,0,0,0,0,0,0,0,0,0]
["Paiement d'intêrets",1,0,{"$f":"IF(C55<1+$B135,0,IF(C55<'1 Données d''entrée'!$C$334+'1 Données d''entrée'!$C$333+1+$B135,'1 Données d''entrée'!$C$332*($C133-SUM($C136:C136)),0))","v":0},{"$f":"IF(D55<1+$B135,0,IF(D55<'1 Données d''entrée'!$C$334+'1 Données d''entrée'!$C$333+1+$B135,'1 Données d''entrée'!$C$332*($C133-SUM($C136:D136)),0))","v":0},{"$f":"IF(E55<1+$B135,0,IF(E55<'1 Données d''entrée'!$C$334+'1 Données d''entrée'!$C$333+1+$B135,'1 Données d''entrée'!$C$332*($C133-SUM($C136:E136)),0))","v":0},{"$f":"IF(F55<1+$B135,0,IF(F55<'1 Données d''entrée'!$C$334+'1 Données d''entrée'!$C$333+1+$B135,'1 Données d''entrée'!$C$332*($C133-SUM($C136:F136)),0))","v":0},{"$f":"IF(G55<1+$B135,0,IF(G55<'1 Données d''entrée'!$C$334+'1 Données d''entrée'!$C$333+1+$B135,'1 Données d''entrée'!$C$332*($C133-SUM($C136:G136)),0))","v":0},{"$f":"IF(H55<1+$B135,0,IF(H55<'1 Données d''entrée'!$C$334+'1 Données d''entrée'!$C$333+1+$B135,'1 Données d''entrée'!$C$332*($C133-SUM($C136:H136)),0))","v":0},{"$f":"IF(I55<1+$B135,0,IF(I55<'1 Données d''entrée'!$C$334+'1 Données d''entrée'!$C$333+1+$B135,'1 Données d''entrée'!$C$332*($C133-SUM($C136:I136)),0))","v":0},{"$f":"IF(J55<1+$B135,0,IF(J55<'1 Données d''entrée'!$C$334+'1 Données d''entrée'!$C$333+1+$B135,'1 Données d''entrée'!$C$332*($C133-SUM($C136:J136)),0))","v":0},{"$f":"IF(K55<1+$B135,0,IF(K55<'1 Données d''entrée'!$C$334+'1 Données d''entrée'!$C$333+1+$B135,'1 Données d''entrée'!$C$332*($C133-SUM($C136:K136)),0))","v":0},{"$f":"IF(L55<1+$B135,0,IF(L55<'1 Données d''entrée'!$C$334+'1 Données d''entrée'!$C$333+1+$B135,'1 Données d''entrée'!$C$332*($C133-SUM($C136:L136)),0))","v":0},{"$f":"IF(M55<1+$B135,0,IF(M55<'1 Données d''entrée'!$C$334+'1 Données d''entrée'!$C$333+1+$B135,'1 Données d''entrée'!$C$332*($C133-SUM($C136:M136)),0))","v":0},{"$f":"IF(N55<1+$B135,0,IF(N55<'1 Données d''entrée'!$C$334+'1 Données d''entrée'!$C$333+1+$B135,'1 Données d''entrée'!$C$332*($C133-SUM($C136:N136)),0))","v":0},{"$f":"IF(O55<1+$B135,0,IF(O55<'1 Données d''entrée'!$C$334+'1 Données d''entrée'!$C$333+1+$B135,'1 Données d''entrée'!$C$332*($C133-SUM($C136:O136)),0))","v":0},{"$f":"IF(P55<1+$B135,0,IF(P55<'1 Données d''entrée'!$C$334+'1 Données d''entrée'!$C$333+1+$B135,'1 Données d''entrée'!$C$332*($C133-SUM($C136:P136)),0))","v":0},{"$f":"IF(Q55<1+$B135,0,IF(Q55<'1 Données d''entrée'!$C$334+'1 Données d''entrée'!$C$333+1+$B135,'1 Données d''entrée'!$C$332*($C133-SUM($C136:Q136)),0))","v":0},{"$f":"IF(R55<1+$B135,0,IF(R55<'1 Données d''entrée'!$C$334+'1 Données d''entrée'!$C$333+1+$B135,'1 Données d''entrée'!$C$332*($C133-SUM($C136:R136)),0))","v":0},{"$f":"IF(S55<1+$B135,0,IF(S55<'1 Données d''entrée'!$C$334+'1 Données d''entrée'!$C$333+1+$B135,'1 Données d''entrée'!$C$332*($C133-SUM($C136:S136)),0))","v":0},{"$f":"IF(T55<1+$B135,0,IF(T55<'1 Données d''entrée'!$C$334+'1 Données d''entrée'!$C$333+1+$B135,'1 Données d''entrée'!$C$332*($C133-SUM($C136:T136)),0))","v":0},{"$f":"IF(U55<1+$B135,0,IF(U55<'1 Données d''entrée'!$C$334+'1 Données d''entrée'!$C$333+1+$B135,'1 Données d''entrée'!$C$332*($C133-SUM($C136:U136)),0))","v":0}]
["Paiement d'intêrets",2,0,{"$f":"IF(C55<1+$B136,0,IF(C55<'1 Données d''entrée'!$C$334+'1 Données d''entrée'!$C$333+1+$B136,'1 Données d''entrée'!$C$332*($D133-SUM($C137:C137)),0))","v":0},{"$f":"IF(D55<1+$B136,0,IF(D55<'1 Données d''entrée'!$C$334+'1 Données d''entrée'!$C$333+1+$B136,'1 Données d''entrée'!$C$332*($D133-SUM($C137:D137)),0))","v":0},{"$f":"IF(E55<1+$B136,0,IF(E55<'1 Données d''entrée'!$C$334+'1 Données d''entrée'!$C$333+1+$B136,'1 Données d''entrée'!$C$332*($D133-SUM($C137:E137)),0))","v":0},{"$f":"IF(F55<1+$B136,0,IF(F55<'1 Données d''entrée'!$C$334+'1 Données d''entrée'!$C$333+1+$B136,'1 Données d''entrée'!$C$332*($D133-SUM($C137:F137)),0))","v":0},{"$f":"IF(G55<1+$B136,0,IF(G55<'1 Données d''entrée'!$C$334+'1 Données d''entrée'!$C$333+1+$B136,'1 Données d''entrée'!$C$332*($D133-SUM($C137:G137)),0))","v":0},{"$f":"IF(H55<1+$B136,0,IF(H55<'1 Données d''entrée'!$C$334+'1 Données d''entrée'!$C$333+1+$B136,'1 Données d''entrée'!$C$332*($D133-SUM($C137:H137)),0))","v":0},{"$f":"IF(I55<1+$B136,0,IF(I55<'1 Données d''entrée'!$C$334+'1 Données d''entrée'!$C$333+1+$B136,'1 Données d''entrée'!$C$332*($D133-SUM($C137:I137)),0))","v":0},{"$f":"IF(J55<1+$B136,0,IF(J55<'1 Données d''entrée'!$C$334+'1 Données d''entrée'!$C$333+1+$B136,'1 Données d''entrée'!$C$332*($D133-SUM($C137:J137)),0))","v":0},{"$f":"IF(K55<1+$B136,0,IF(K55<'1 Données d''entrée'!$C$334+'1 Données d''entrée'!$C$333+1+$B136,'1 Données d''entrée'!$C$332*($D133-SUM($C137:K137)),0))","v":0},{"$f":"IF(L55<1+$B136,0,IF(L55<'1 Données d''entrée'!$C$334+'1 Données d''entrée'!$C$333+1+$B136,'1 Données d''entrée'!$C$332*($D133-SUM($C137:L137)),0))","v":0},{"$f":"IF(M55<1+$B136,0,IF(M55<'1 Données d''entrée'!$C$334+'1 Données d''entrée'!$C$333+1+$B136,'1 Données d''entrée'!$C$332*($D133-SUM($C137:M137)),0))","v":0},{"$f":"IF(N55<1+$B136,0,IF(N55<'1 Données d''entrée'!$C$334+'1 Données d''entrée'!$C$333+1+$B136,'1 Données d''entrée'!$C$332*($D133-SUM($C137:N137)),0))","v":0},{"$f":"IF(O55<1+$B136,0,IF(O55<'1 Données d''entrée'!$C$334+'1 Données d''entrée'!$C$333+1+$B136,'1 Données d''entrée'!$C$332*($D133-SUM($C137:O137)),0))","v":0},{"$f":"IF(P55<1+$B136,0,IF(P55<'1 Données d''entrée'!$C$334+'1 Données d''entrée'!$C$333+1+$B136,'1 Données d''entrée'!$C$332*($D133-SUM($C137:P137)),0))","v":0},{"$f":"IF(Q55<1+$B136,0,IF(Q55<'1 Données d''entrée'!$C$334+'1 Données d''entrée'!$C$333+1+$B136,'1 Données d''entrée'!$C$332*($D133-SUM($C137:Q137)),0))","v":0},{"$f":"IF(R55<1+$B136,0,IF(R55<'1 Données d''entrée'!$C$334+'1 Données d''entrée'!$C$333+1+$B136,'1 Données d''entrée'!$C$332*($D133-SUM($C137:R137)),0))","v":0},{"$f":"IF(S55<1+$B136,0,IF(S55<'1 Données d''entrée'!$C$334+'1 Données d''entrée'!$C$333+1+$B136,'1 Données d''entrée'!$C$332*($D133-SUM($C137:S137)),0))","v":0},{"$f":"IF(T55<1+$B136,0,IF(T55<'1 Données d''entrée'!$C$334+'1 Données d''entrée'!$C$333+1+$B136,'1 Données d''entrée'!$C$332*($D133-SUM($C137:T137)),0))","v":0},{"$f":"IF(U55<1+$B136,0,IF(U55<'1 Données d''entrée'!$C$334+'1 Données d''entrée'!$C$333+1+$B136,'1 Données d''entrée'!$C$332*($D133-SUM($C137:U137)),0))","v":0}]
["Paiement d'intêrets",3,0,{"$f":"IF(C55<1+$B137,0,IF(C55<'1 Données d''entrée'!$C$334+'1 Données d''entrée'!$C$333+1+$B137,'1 Données d''entrée'!$C$332*($E133-SUM($C138:C138)),0))","v":0},{"$f":"IF(D55<1+$B137,0,IF(D55<'1 Données d''entrée'!$C$334+'1 Données d''entrée'!$C$333+1+$B137,'1 Données d''entrée'!$C$332*($E133-SUM($C138:D138)),0))","v":0},{"$f":"IF(E55<1+$B137,0,IF(E55<'1 Données d''entrée'!$C$334+'1 Données d''entrée'!$C$333+1+$B137,'1 Données d''entrée'!$C$332*($E133-SUM($C138:E138)),0))","v":0},{"$f":"IF(F55<1+$B137,0,IF(F55<'1 Données d''entrée'!$C$334+'1 Données d''entrée'!$C$333+1+$B137,'1 Données d''entrée'!$C$332*($E133-SUM($C138:F138)),0))","v":0},{"$f":"IF(G55<1+$B137,0,IF(G55<'1 Données d''entrée'!$C$334+'1 Données d''entrée'!$C$333+1+$B137,'1 Données d''entrée'!$C$332*($E133-SUM($C138:G138)),0))","v":0},{"$f":"IF(H55<1+$B137,0,IF(H55<'1 Données d''entrée'!$C$334+'1 Données d''entrée'!$C$333+1+$B137,'1 Données d''entrée'!$C$332*($E133-SUM($C138:H138)),0))","v":0},{"$f":"IF(I55<1+$B137,0,IF(I55<'1 Données d''entrée'!$C$334+'1 Données d''entrée'!$C$333+1+$B137,'1 Données d''entrée'!$C$332*($E133-SUM($C138:I138)),0))","v":0},{"$f":"IF(J55<1+$B137,0,IF(J55<'1 Données d''entrée'!$C$334+'1 Données d''entrée'!$C$333+1+$B137,'1 Données d''entrée'!$C$332*($E133-SUM($C138:J138)),0))","v":0},{"$f":"IF(K55<1+$B137,0,IF(K55<'1 Données d''entrée'!$C$334+'1 Données d''entrée'!$C$333+1+$B137,'1 Données d''entrée'!$C$332*($E133-SUM($C138:K138)),0))","v":0},{"$f":"IF(L55<1+$B137,0,IF(L55<'1 Données d''entrée'!$C$334+'1 Données d''entrée'!$C$333+1+$B137,'1 Données d''entrée'!$C$332*($E133-SUM($C138:L138)),0))","v":0},{"$f":"IF(M55<1+$B137,0,IF(M55<'1 Données d''entrée'!$C$334+'1 Données d''entrée'!$C$333+1+$B137,'1 Données d''entrée'!$C$332*($E133-SUM($C138:M138)),0))","v":0},{"$f":"IF(N55<1+$B137,0,IF(N55<'1 Données d''entrée'!$C$334+'1 Données d''entrée'!$C$333+1+$B137,'1 Données d''entrée'!$C$332*($E133-SUM($C138:N138)),0))","v":0},{"$f":"IF(O55<1+$B137,0,IF(O55<'1 Données d''entrée'!$C$334+'1 Données d''entrée'!$C$333+1+$B137,'1 Données d''entrée'!$C$332*($E133-SUM($C138:O138)),0))","v":0},{"$f":"IF(P55<1+$B137,0,IF(P55<'1 Données d''entrée'!$C$334+'1 Données d''entrée'!$C$333+1+$B137,'1 Données d''entrée'!$C$332*($E133-SUM($C138:P138)),0))","v":0},{"$f":"IF(Q55<1+$B137,0,IF(Q55<'1 Données d''entrée'!$C$334+'1 Données d''entrée'!$C$333+1+$B137,'1 Données d''entrée'!$C$332*($E133-SUM($C138:Q138)),0))","v":0},{"$f":"IF(R55<1+$B137,0,IF(R55<'1 Données d''entrée'!$C$334+'1 Données d''entrée'!$C$333+1+$B137,'1 Données d''entrée'!$C$332*($E133-SUM($C138:R138)),0))","v":0},{"$f":"IF(S55<1+$B137,0,IF(S55<'1 Données d''entrée'!$C$334+'1 Données d''entrée'!$C$333+1+$B137,'1 Données d''entrée'!$C$332*($E133-SUM($C138:S138)),0))","v":0},{"$f":"IF(T55<1+$B137,0,IF(T55<'1 Données d''entrée'!$C$334+'1 Données d''entrée'!$C$333+1+$B137,'1 Données d''entrée'!$C$332*($E133-SUM($C138:T138)),0))","v":0},{"$f":"IF(U55<1+$B137,0,IF(U55<'1 Données d''entrée'!$C$334+'1 Données d''entrée'!$C$333+1+$B137,'1 Données d''entrée'!$C$332*($E133-SUM($C138:U138)),0))","v":0}]
["Paiement d'intêrets",4,0,{"$f":"IF(C55<1+$B138,0,IF(C55<'1 Données d''entrée'!$C$334+'1 Données d''entrée'!$C$333+1+$B138,'1 Données d''entrée'!$C$332*($F133-SUM($C139:C139)),0))","v":0},{"$f":"IF(D55<1+$B138,0,IF(D55<'1 Données d''entrée'!$C$334+'1 Données d''entrée'!$C$333+1+$B138,'1 Données d''entrée'!$C$332*($F133-SUM($C139:D139)),0))","v":0},{"$f":"IF(E55<1+$B138,0,IF(E55<'1 Données d''entrée'!$C$334+'1 Données d''entrée'!$C$333+1+$B138,'1 Données d''entrée'!$C$332*($F133-SUM($C139:E139)),0))","v":0},{"$f":"IF(F55<1+$B138,0,IF(F55<'1 Données d''entrée'!$C$334+'1 Données d''entrée'!$C$333+1+$B138,'1 Données d''entrée'!$C$332*($F133-SUM($C139:F139)),0))","v":0},{"$f":"IF(G55<1+$B138,0,IF(G55<'1 Données d''entrée'!$C$334+'1 Données d''entrée'!$C$333+1+$B138,'1 Données d''entrée'!$C$332*($F133-SUM($C139:G139)),0))","v":0},{"$f":"IF(H55<1+$B138,0,IF(H55<'1 Données d''entrée'!$C$334+'1 Données d''entrée'!$C$333+1+$B138,'1 Données d''entrée'!$C$332*($F133-SUM($C139:H139)),0))","v":0},{"$f":"IF(I55<1+$B138,0,IF(I55<'1 Données d''entrée'!$C$334+'1 Données d''entrée'!$C$333+1+$B138,'1 Données d''entrée'!$C$332*($F133-SUM($C139:I139)),0))","v":0},{"$f":"IF(J55<1+$B138,0,IF(J55<'1 Données d''entrée'!$C$334+'1 Données d''entrée'!$C$333+1+$B138,'1 Données d''entrée'!$C$332*($F133-SUM($C139:J139)),0))","v":0},{"$f":"IF(K55<1+$B138,0,IF(K55<'1 Données d''entrée'!$C$334+'1 Données d''entrée'!$C$333+1+$B138,'1 Données d''entrée'!$C$332*($F133-SUM($C139:K139)),0))","v":0},{"$f":"IF(L55<1+$B138,0,IF(L55<'1 Données d''entrée'!$C$334+'1 Données d''entrée'!$C$333+1+$B138,'1 Données d''entrée'!$C$332*($F133-SUM($C139:L139)),0))","v":0},{"$f":"IF(M55<1+$B138,0,IF(M55<'1 Données d''entrée'!$C$334+'1 Données d''entrée'!$C$333+1+$B138,'1 Données d''entrée'!$C$332*($F133-SUM($C139:M139)),0))","v":0},{"$f":"IF(N55<1+$B138,0,IF(N55<'1 Données d''entrée'!$C$334+'1 Données d''entrée'!$C$333+1+$B138,'1 Données d''entrée'!$C$332*($F133-SUM($C139:N139)),0))","v":0},{"$f":"IF(O55<1+$B138,0,IF(O55<'1 Données d''entrée'!$C$334+'1 Données d''entrée'!$C$333+1+$B138,'1 Données d''entrée'!$C$332*($F133-SUM($C139:O139)),0))","v":0},{"$f":"IF(P55<1+$B138,0,IF(P55<'1 Données d''entrée'!$C$334+'1 Données d''entrée'!$C$333+1+$B138,'1 Données d''entrée'!$C$332*($F133-SUM($C139:P139)),0))","v":0},{"$f":"IF(Q55<1+$B138,0,IF(Q55<'1 Données d''entrée'!$C$334+'1 Données d''entrée'!$C$333+1+$B138,'1 Données d''entrée'!$C$332*($F133-SUM($C139:Q139)),0))","v":0},{"$f":"IF(R55<1+$B138,0,IF(R55<'1 Données d''entrée'!$C$334+'1 Données d''entrée'!$C$333+1+$B138,'1 Données d''entrée'!$C$332*($F133-SUM($C139:R139)),0))","v":0},{"$f":"IF(S55<1+$B138,0,IF(S55<'1 Données d''entrée'!$C$334+'1 Données d''entrée'!$C$333+1+$B138,'1 Données d''entrée'!$C$332*($F133-SUM($C139:S139)),0))","v":0},{"$f":"IF(T55<1+$B138,0,IF(T55<'1 Données d''entrée'!$C$334+'1 Données d''entrée'!$C$333+1+$B138,'1 Données d''entrée'!$C$332*($F133-SUM($C139:T139)),0))","v":0},{"$f":"IF(U55<1+$B138,0,IF(U55<'1 Données d''entrée'!$C$334+'1 Données d''entrée'!$C$333+1+$B138,'1 Données d''entrée'!$C$332*($F133-SUM($C139:U139)),0))","v":0}]
["Paiement d'intêrets",5,0,{"$f":"IF(C55<1+$B139,0,IF(C55<'1 Données d''entrée'!$C$334+'1 Données d''entrée'!$C$333+1+$B139,'1 Données d''entrée'!$C$332*($G133-SUM($C140:C140)),0))","v":0},{"$f":"IF(D55<1+$B139,0,IF(D55<'1 Données d''entrée'!$C$334+'1 Données d''entrée'!$C$333+1+$B139,'1 Données d''entrée'!$C$332*($G133-SUM($C140:D140)),0))","v":0},{"$f":"IF(E55<1+$B139,0,IF(E55<'1 Données d''entrée'!$C$334+'1 Données d''entrée'!$C$333+1+$B139,'1 Données d''entrée'!$C$332*($G133-SUM($C140:E140)),0))","v":0},{"$f":"IF(F55<1+$B139,0,IF(F55<'1 Données d''entrée'!$C$334+'1 Données d''entrée'!$C$333+1+$B139,'1 Données d''entrée'!$C$332*($G133-SUM($C140:F140)),0))","v":0},{"$f":"IF(G55<1+$B139,0,IF(G55<'1 Données d''entrée'!$C$334+'1 Données d''entrée'!$C$333+1+$B139,'1 Données d''entrée'!$C$332*($G133-SUM($C140:G140)),0))","v":0},{"$f":"IF(H55<1+$B139,0,IF(H55<'1 Données d''entrée'!$C$334+'1 Données d''entrée'!$C$333+1+$B139,'1 Données d''entrée'!$C$332*($G133-SUM($C140:H140)),0))","v":0},{"$f":"IF(I55<1+$B139,0,IF(I55<'1 Données d''entrée'!$C$334+'1 Données d''entrée'!$C$333+1+$B139,'1 Données d''entrée'!$C$332*($G133-SUM($C140:I140)),0))","v":0},{"$f":"IF(J55<1+$B139,0,IF(J55<'1 Données d''entrée'!$C$334+'1 Données d''entrée'!$C$333+1+$B139,'1 Données d''entrée'!$C$332*($G133-SUM($C140:J140)),0))","v":0},{"$f":"IF(K55<1+$B139,0,IF(K55<'1 Données d''entrée'!$C$334+'1 Données d''entrée'!$C$333+1+$B139,'1 Données d''entrée'!$C$332*($G133-SUM($C140:K140)),0))","v":0},{"$f":"IF(L55<1+$B139,0,IF(L55<'1 Données d''entrée'!$C$334+'1 Données d''entrée'!$C$333+1+$B139,'1 Données d''entrée'!$C$332*($G133-SUM($C140:L140)),0))","v":0},{"$f":"IF(M55<1+$B139,0,IF(M55<'1 Données d''entrée'!$C$334+'1 Données d''entrée'!$C$333+1+$B139,'1 Données d''entrée'!$C$332*($G133-SUM($C140:M140)),0))","v":0},{"$f":"IF(N55<1+$B139,0,IF(N55<'1 Données d''entrée'!$C$334+'1 Données d''entrée'!$C$333+1+$B139,'1 Données d''entrée'!$C$332*($G133-SUM($C140:N140)),0))","v":0},{"$f":"IF(O55<1+$B139,0,IF(O55<'1 Données d''entrée'!$C$334+'1 Données d''entrée'!$C$333+1+$B139,'1 Données d''entrée'!$C$332*($G133-SUM($C140:O140)),0))","v":0},{"$f":"IF(P55<1+$B139,0,IF(P55<'1 Données d''entrée'!$C$334+'1 Données d''entrée'!$C$333+1+$B139,'1 Données d''entrée'!$C$332*($G133-SUM($C140:P140)),0))","v":0},{"$f":"IF(Q55<1+$B139,0,IF(Q55<'1 Données d''entrée'!$C$334+'1 Données d''entrée'!$C$333+1+$B139,'1 Données d''entrée'!$C$332*($G133-SUM($C140:Q140)),0))","v":0},{"$f":"IF(R55<1+$B139,0,IF(R55<'1 Données d''entrée'!$C$334+'1 Données d''entrée'!$C$333+1+$B139,'1 Données d''entrée'!$C$332*($G133-SUM($C140:R140)),0))","v":0},{"$f":"IF(S55<1+$B139,0,IF(S55<'1 Données d''entrée'!$C$334+'1 Données d''entrée'!$C$333+1+$B139,'1 Données d''entrée'!$C$332*($G133-SUM($C140:S140)),0))","v":0},{"$f":"IF(T55<1+$B139,0,IF(T55<'1 Données d''entrée'!$C$334+'1 Données d''entrée'!$C$333+1+$B139,'1 Données d''entrée'!$C$332*($G133-SUM($C140:T140)),0))","v":0},{"$f":"IF(U55<1+$B139,0,IF(U55<'1 Données d''entrée'!$C$334+'1 Données d''entrée'!$C$333+1+$B139,'1 Données d''entrée'!$C$332*($G133-SUM($C140:U140)),0))","v":0}]
["Paiement d'intêrets",6,0,{"$f":"IF(C55<1+$B140,0,IF(C55<'1 Données d''entrée'!$C$334+'1 Données d''entrée'!$C$333+1+$B140,'1 Données d''entrée'!$C$332*($H133-SUM($C141:C141)),0))","v":0},{"$f":"IF(D55<1+$B140,0,IF(D55<'1 Données d''entrée'!$C$334+'1 Données d''entrée'!$C$333+1+$B140,'1 Données d''entrée'!$C$332*($H133-SUM($C141:D141)),0))","v":0},{"$f":"IF(E55<1+$B140,0,IF(E55<'1 Données d''entrée'!$C$334+'1 Données d''entrée'!$C$333+1+$B140,'1 Données d''entrée'!$C$332*($H133-SUM($C141:E141)),0))","v":0},{"$f":"IF(F55<1+$B140,0,IF(F55<'1 Données d''entrée'!$C$334+'1 Données d''entrée'!$C$333+1+$B140,'1 Données d''entrée'!$C$332*($H133-SUM($C141:F141)),0))","v":0},{"$f":"IF(G55<1+$B140,0,IF(G55<'1 Données d''entrée'!$C$334+'1 Données d''entrée'!$C$333+1+$B140,'1 Données d''entrée'!$C$332*($H133-SUM($C141:G141)),0))","v":0},{"$f":"IF(H55<1+$B140,0,IF(H55<'1 Données d''entrée'!$C$334+'1 Données d''entrée'!$C$333+1+$B140,'1 Données d''entrée'!$C$332*($H133-SUM($C141:H141)),0))","v":0},{"$f":"IF(I55<1+$B140,0,IF(I55<'1 Données d''entrée'!$C$334+'1 Données d''entrée'!$C$333+1+$B140,'1 Données d''entrée'!$C$332*($H133-SUM($C141:I141)),0))","v":0},{"$f":"IF(J55<1+$B140,0,IF(J55<'1 Données d''entrée'!$C$334+'1 Données d''entrée'!$C$333+1+$B140,'1 Données d''entrée'!$C$332*($H133-SUM($C141:J141)),0))","v":0},{"$f":"IF(K55<1+$B140,0,IF(K55<'1 Données d''entrée'!$C$334+'1 Données d''entrée'!$C$333+1+$B140,'1 Données d''entrée'!$C$332*($H133-SUM($C141:K141)),0))","v":0},{"$f":"IF(L55<1+$B140,0,IF(L55<'1 Données d''entrée'!$C$334+'1 Données d''entrée'!$C$333+1+$B140,'1 Données d''entrée'!$C$332*($H133-SUM($C141:L141)),0))","v":0},{"$f":"IF(M55<1+$B140,0,IF(M55<'1 Données d''entrée'!$C$334+'1 Données d''entrée'!$C$333+1+$B140,'1 Données d''entrée'!$C$332*($H133-SUM($C141:M141)),0))","v":0},{"$f":"IF(N55<1+$B140,0,IF(N55<'1 Données d''entrée'!$C$334+'1 Données d''entrée'!$C$333+1+$B140,'1 Données d''entrée'!$C$332*($H133-SUM($C141:N141)),0))","v":0},{"$f":"IF(O55<1+$B140,0,IF(O55<'1 Données d''entrée'!$C$334+'1 Données d''entrée'!$C$333+1+$B140,'1 Données d''entrée'!$C$332*($H133-SUM($C141:O141)),0))","v":0},{"$f":"IF(P55<1+$B140,0,IF(P55<'1 Données d''entrée'!$C$334+'1 Données d''entrée'!$C$333+1+$B140,'1 Données d''entrée'!$C$332*($H133-SUM($C141:P141)),0))","v":0},{"$f":"IF(Q55<1+$B140,0,IF(Q55<'1 Données d''entrée'!$C$334+'1 Données d''entrée'!$C$333+1+$B140,'1 Données d''entrée'!$C$332*($H133-SUM($C141:Q141)),0))","v":0},{"$f":"IF(R55<1+$B140,0,IF(R55<'1 Données d''entrée'!$C$334+'1 Données d''entrée'!$C$333+1+$B140,'1 Données d''entrée'!$C$332*($H133-SUM($C141:R141)),0))","v":0},{"$f":"IF(S55<1+$B140,0,IF(S55<'1 Données d''entrée'!$C$334+'1 Données d''entrée'!$C$333+1+$B140,'1 Données d''entrée'!$C$332*($H133-SUM($C141:S141)),0))","v":0},{"$f":"IF(T55<1+$B140,0,IF(T55<'1 Données d''entrée'!$C$334+'1 Données d''entrée'!$C$333+1+$B140,'1 Données d''entrée'!$C$332*($H133-SUM($C141:T141)),0))","v":0},{"$f":"IF(U55<1+$B140,0,IF(U55<'1 Données d''entrée'!$C$334+'1 Données d''entrée'!$C$333+1+$B140,'1 Données d''entrée'!$C$332*($H133-SUM($C141:U141)),0))","v":0}]
["Paiement d'intêrets",7,0,{"$f":"IF(C55<1+$B141,0,IF(C55<'1 Données d''entrée'!$C$334+'1 Données d''entrée'!$C$333+1+$B141,'1 Données d''entrée'!$C$332*($I133-SUM($C142:C142)),0))","v":0},{"$f":"IF(D55<1+$B141,0,IF(D55<'1 Données d''entrée'!$C$334+'1 Données d''entrée'!$C$333+1+$B141,'1 Données d''entrée'!$C$332*($I133-SUM($C142:D142)),0))","v":0},{"$f":"IF(E55<1+$B141,0,IF(E55<'1 Données d''entrée'!$C$334+'1 Données d''entrée'!$C$333+1+$B141,'1 Données d''entrée'!$C$332*($I133-SUM($C142:E142)),0))","v":0},{"$f":"IF(F55<1+$B141,0,IF(F55<'1 Données d''entrée'!$C$334+'1 Données d''entrée'!$C$333+1+$B141,'1 Données d''entrée'!$C$332*($I133-SUM($C142:F142)),0))","v":0},{"$f":"IF(G55<1+$B141,0,IF(G55<'1 Données d''entrée'!$C$334+'1 Données d''entrée'!$C$333+1+$B141,'1 Données d''entrée'!$C$332*($I133-SUM($C142:G142)),0))","v":0},{"$f":"IF(H55<1+$B141,0,IF(H55<'1 Données d''entrée'!$C$334+'1 Données d''entrée'!$C$333+1+$B141,'1 Données d''entrée'!$C$332*($I133-SUM($C142:H142)),0))","v":0},{"$f":"IF(I55<1+$B141,0,IF(I55<'1 Données d''entrée'!$C$334+'1 Données d''entrée'!$C$333+1+$B141,'1 Données d''entrée'!$C$332*($I133-SUM($C142:I142)),0))","v":0},{"$f":"IF(J55<1+$B141,0,IF(J55<'1 Données d''entrée'!$C$334+'1 Données d''entrée'!$C$333+1+$B141,'1 Données d''entrée'!$C$332*($I133-SUM($C142:J142)),0))","v":0},{"$f":"IF(K55<1+$B141,0,IF(K55<'1 Données d''entrée'!$C$334+'1 Données d''entrée'!$C$333+1+$B141,'1 Données d''entrée'!$C$332*($I133-SUM($C142:K142)),0))","v":0},{"$f":"IF(L55<1+$B141,0,IF(L55<'1 Données d''entrée'!$C$334+'1 Données d''entrée'!$C$333+1+$B141,'1 Données d''entrée'!$C$332*($I133-SUM($C142:L142)),0))","v":0},{"$f":"IF(M55<1+$B141,0,IF(M55<'1 Données d''entrée'!$C$334+'1 Données d''entrée'!$C$333+1+$B141,'1 Données d''entrée'!$C$332*($I133-SUM($C142:M142)),0))","v":0},{"$f":"IF(N55<1+$B141,0,IF(N55<'1 Données d''entrée'!$C$334+'1 Données d''entrée'!$C$333+1+$B141,'1 Données d''entrée'!$C$332*($I133-SUM($C142:N142)),0))","v":0},{"$f":"IF(O55<1+$B141,0,IF(O55<'1 Données d''entrée'!$C$334+'1 Données d''entrée'!$C$333+1+$B141,'1 Données d''entrée'!$C$332*($I133-SUM($C142:O142)),0))","v":0},{"$f":"IF(P55<1+$B141,0,IF(P55<'1 Données d''entrée'!$C$334+'1 Données d''entrée'!$C$333+1+$B141,'1 Données d''entrée'!$C$332*($I133-SUM($C142:P142)),0))","v":0},{"$f":"IF(Q55<1+$B141,0,IF(Q55<'1 Données d''entrée'!$C$334+'1 Données d''entrée'!$C$333+1+$B141,'1 Données d''entrée'!$C$332*($I133-SUM($C142:Q142)),0))","v":0},{"$f":"IF(R55<1+$B141,0,IF(R55<'1 Données d''entrée'!$C$334+'1 Données d''entrée'!$C$333+1+$B141,'1 Données d''entrée'!$C$332*($I133-SUM($C142:R142)),0))","v":0},{"$f":"IF(S55<1+$B141,0,IF(S55<'1 Données d''entrée'!$C$334+'1 Données d''entrée'!$C$333+1+$B141,'1 Données d''entrée'!$C$332*($I133-SUM($C142:S142)),0))","v":0},{"$f":"IF(T55<1+$B141,0,IF(T55<'1 Données d''entrée'!$C$334+'1 Données d''entrée'!$C$333+1+$B141,'1 Données d''entrée'!$C$332*($I133-SUM($C142:T142)),0))","v":0},{"$f":"IF(U55<1+$B141,0,IF(U55<'1 Données d''entrée'!$C$334+'1 Données d''entrée'!$C$333+1+$B141,'1 Données d''entrée'!$C$332*($I133-SUM($C142:U142)),0))","v":0}]
["Paiement d'intêrets",8,0,{"$f":"IF(C55<1+$B142,0,IF(C55<'1 Données d''entrée'!$C$334+'1 Données d''entrée'!$C$333+1+$B142,'1 Données d''entrée'!$C$332*($J133-SUM($C143:C143)),0))","v":0},{"$f":"IF(D55<1+$B142,0,IF(D55<'1 Données d''entrée'!$C$334+'1 Données d''entrée'!$C$333+1+$B142,'1 Données d''entrée'!$C$332*($J133-SUM($C143:D143)),0))","v":0},{"$f":"IF(E55<1+$B142,0,IF(E55<'1 Données d''entrée'!$C$334+'1 Données d''entrée'!$C$333+1+$B142,'1 Données d''entrée'!$C$332*($J133-SUM($C143:E143)),0))","v":0},{"$f":"IF(F55<1+$B142,0,IF(F55<'1 Données d''entrée'!$C$334+'1 Données d''entrée'!$C$333+1+$B142,'1 Données d''entrée'!$C$332*($J133-SUM($C143:F143)),0))","v":0},{"$f":"IF(G55<1+$B142,0,IF(G55<'1 Données d''entrée'!$C$334+'1 Données d''entrée'!$C$333+1+$B142,'1 Données d''entrée'!$C$332*($J133-SUM($C143:G143)),0))","v":0},{"$f":"IF(H55<1+$B142,0,IF(H55<'1 Données d''entrée'!$C$334+'1 Données d''entrée'!$C$333+1+$B142,'1 Données d''entrée'!$C$332*($J133-SUM($C143:H143)),0))","v":0},{"$f":"IF(I55<1+$B142,0,IF(I55<'1 Données d''entrée'!$C$334+'1 Données d''entrée'!$C$333+1+$B142,'1 Données d''entrée'!$C$332*($J133-SUM($C143:I143)),0))","v":0},{"$f":"IF(J55<1+$B142,0,IF(J55<'1 Données d''entrée'!$C$334+'1 Données d''entrée'!$C$333+1+$B142,'1 Données d''entrée'!$C$332*($J133-SUM($C143:J143)),0))","v":0},{"$f":"IF(K55<1+$B142,0,IF(K55<'1 Données d''entrée'!$C$334+'1 Données d''entrée'!$C$333+1+$B142,'1 Données d''entrée'!$C$332*($J133-SUM($C143:K143)),0))","v":0},{"$f":"IF(L55<1+$B142,0,IF(L55<'1 Données d''entrée'!$C$334+'1 Données d''entrée'!$C$333+1+$B142,'1 Données d''entrée'!$C$332*($J133-SUM($C143:L143)),0))","v":0},{"$f":"IF(M55<1+$B142,0,IF(M55<'1 Données d''entrée'!$C$334+'1 Données d''entrée'!$C$333+1+$B142,'1 Données d''entrée'!$C$332*($J133-SUM($C143:M143)),0))","v":0},{"$f":"IF(N55<1+$B142,0,IF(N55<'1 Données d''entrée'!$C$334+'1 Données d''entrée'!$C$333+1+$B142,'1 Données d''entrée'!$C$332*($J133-SUM($C143:N143)),0))","v":0},{"$f":"IF(O55<1+$B142,0,IF(O55<'1 Données d''entrée'!$C$334+'1 Données d''entrée'!$C$333+1+$B142,'1 Données d''entrée'!$C$332*($J133-SUM($C143:O143)),0))","v":0},{"$f":"IF(P55<1+$B142,0,IF(P55<'1 Données d''entrée'!$C$334+'1 Données d''entrée'!$C$333+1+$B142,'1 Données d''entrée'!$C$332*($J133-SUM($C143:P143)),0))","v":0},{"$f":"IF(Q55<1+$B142,0,IF(Q55<'1 Données d''entrée'!$C$334+'1 Données d''entrée'!$C$333+1+$B142,'1 Données d''entrée'!$C$332*($J133-SUM($C143:Q143)),0))","v":0},{"$f":"IF(R55<1+$B142,0,IF(R55<'1 Données d''entrée'!$C$334+'1 Données d''entrée'!$C$333+1+$B142,'1 Données d''entrée'!$C$332*($J133-SUM($C143:R143)),0))","v":0},{"$f":"IF(S55<1+$B142,0,IF(S55<'1 Données d''entrée'!$C$334+'1 Données d''entrée'!$C$333+1+$B142,'1 Données d''entrée'!$C$332*($J133-SUM($C143:S143)),0))","v":0},{"$f":"IF(T55<1+$B142,0,IF(T55<'1 Données d''entrée'!$C$334+'1 Données d''entrée'!$C$333+1+$B142,'1 Données d''entrée'!$C$332*($J133-SUM($C143:T143)),0))","v":0},{"$f":"IF(U55<1+$B142,0,IF(U55<'1 Données d''entrée'!$C$334+'1 Données d''entrée'!$C$333+1+$B142,'1 Données d''entrée'!$C$332*($J133-SUM($C143:U143)),0))","v":0}]
["Paiement d'intêrets",9,0,{"$f":"IF(C55<1+$B143,0,IF(C55<'1 Données d''entrée'!$C$334+'1 Données d''entrée'!$C$333+1+$B143,'1 Données d''entrée'!$C$332*($K133-SUM($C144:C144)),0))","v":0},{"$f":"IF(D55<1+$B143,0,IF(D55<'1 Données d''entrée'!$C$334+'1 Données d''entrée'!$C$333+1+$B143,'1 Données d''entrée'!$C$332*($K133-SUM($C144:D144)),0))","v":0},{"$f":"IF(E55<1+$B143,0,IF(E55<'1 Données d''entrée'!$C$334+'1 Données d''entrée'!$C$333+1+$B143,'1 Données d''entrée'!$C$332*($K133-SUM($C144:E144)),0))","v":0},{"$f":"IF(F55<1+$B143,0,IF(F55<'1 Données d''entrée'!$C$334+'1 Données d''entrée'!$C$333+1+$B143,'1 Données d''entrée'!$C$332*($K133-SUM($C144:F144)),0))","v":0},{"$f":"IF(G55<1+$B143,0,IF(G55<'1 Données d''entrée'!$C$334+'1 Données d''entrée'!$C$333+1+$B143,'1 Données d''entrée'!$C$332*($K133-SUM($C144:G144)),0))","v":0},{"$f":"IF(H55<1+$B143,0,IF(H55<'1 Données d''entrée'!$C$334+'1 Données d''entrée'!$C$333+1+$B143,'1 Données d''entrée'!$C$332*($K133-SUM($C144:H144)),0))","v":0},{"$f":"IF(I55<1+$B143,0,IF(I55<'1 Données d''entrée'!$C$334+'1 Données d''entrée'!$C$333+1+$B143,'1 Données d''entrée'!$C$332*($K133-SUM($C144:I144)),0))","v":0},{"$f":"IF(J55<1+$B143,0,IF(J55<'1 Données d''entrée'!$C$334+'1 Données d''entrée'!$C$333+1+$B143,'1 Données d''entrée'!$C$332*($K133-SUM($C144:J144)),0))","v":0},{"$f":"IF(K55<1+$B143,0,IF(K55<'1 Données d''entrée'!$C$334+'1 Données d''entrée'!$C$333+1+$B143,'1 Données d''entrée'!$C$332*($K133-SUM($C144:K144)),0))","v":0},{"$f":"IF(L55<1+$B143,0,IF(L55<'1 Données d''entrée'!$C$334+'1 Données d''entrée'!$C$333+1+$B143,'1 Données d''entrée'!$C$332*($K133-SUM($C144:L144)),0))","v":0},{"$f":"IF(M55<1+$B143,0,IF(M55<'1 Données d''entrée'!$C$334+'1 Données d''entrée'!$C$333+1+$B143,'1 Données d''entrée'!$C$332*($K133-SUM($C144:M144)),0))","v":0},{"$f":"IF(N55<1+$B143,0,IF(N55<'1 Données d''entrée'!$C$334+'1 Données d''entrée'!$C$333+1+$B143,'1 Données d''entrée'!$C$332*($K133-SUM($C144:N144)),0))","v":0},{"$f":"IF(O55<1+$B143,0,IF(O55<'1 Données d''entrée'!$C$334+'1 Données d''entrée'!$C$333+1+$B143,'1 Données d''entrée'!$C$332*($K133-SUM($C144:O144)),0))","v":0},{"$f":"IF(P55<1+$B143,0,IF(P55<'1 Données d''entrée'!$C$334+'1 Données d''entrée'!$C$333+1+$B143,'1 Données d''entrée'!$C$332*($K133-SUM($C144:P144)),0))","v":0},{"$f":"IF(Q55<1+$B143,0,IF(Q55<'1 Données d''entrée'!$C$334+'1 Données d''entrée'!$C$333+1+$B143,'1 Données d''entrée'!$C$332*($K133-SUM($C144:Q144)),0))","v":0},{"$f":"IF(R55<1+$B143,0,IF(R55<'1 Données d''entrée'!$C$334+'1 Données d''entrée'!$C$333+1+$B143,'1 Données d''entrée'!$C$332*($K133-SUM($C144:R144)),0))","v":0},{"$f":"IF(S55<1+$B143,0,IF(S55<'1 Données d''entrée'!$C$334+'1 Données d''entrée'!$C$333+1+$B143,'1 Données d''entrée'!$C$332*($K133-SUM($C144:S144)),0))","v":0},{"$f":"IF(T55<1+$B143,0,IF(T55<'1 Données d''entrée'!$C$334+'1 Données d''entrée'!$C$333+1+$B143,'1 Données d''entrée'!$C$332*($K133-SUM($C144:T144)),0))","v":0},{"$f":"IF(U55<1+$B143,0,IF(U55<'1 Données d''entrée'!$C$334+'1 Données d''entrée'!$C$333+1+$B143,'1 Données d''entrée'!$C$332*($K133-SUM($C144:U144)),0))","v":0}]
["Paiement d'intêrets",10,0,{"$f":"IF(C55<1+$B144,0,IF(C55<'1 Données d''entrée'!$C$334+'1 Données d''entrée'!$C$333+1+$B144,'1 Données d''entrée'!$C$332*($L133-SUM($C145:C145)),0))","v":0},{"$f":"IF(D55<1+$B144,0,IF(D55<'1 Données d''entrée'!$C$334+'1 Données d''entrée'!$C$333+1+$B144,'1 Données d''entrée'!$C$332*($L133-SUM($C145:D145)),0))","v":0},{"$f":"IF(E55<1+$B144,0,IF(E55<'1 Données d''entrée'!$C$334+'1 Données d''entrée'!$C$333+1+$B144,'1 Données d''entrée'!$C$332*($L133-SUM($C145:E145)),0))","v":0},{"$f":"IF(F55<1+$B144,0,IF(F55<'1 Données d''entrée'!$C$334+'1 Données d''entrée'!$C$333+1+$B144,'1 Données d''entrée'!$C$332*($L133-SUM($C145:F145)),0))","v":0},{"$f":"IF(G55<1+$B144,0,IF(G55<'1 Données d''entrée'!$C$334+'1 Données d''entrée'!$C$333+1+$B144,'1 Données d''entrée'!$C$332*($L133-SUM($C145:G145)),0))","v":0},{"$f":"IF(H55<1+$B144,0,IF(H55<'1 Données d''entrée'!$C$334+'1 Données d''entrée'!$C$333+1+$B144,'1 Données d''entrée'!$C$332*($L133-SUM($C145:H145)),0))","v":0},{"$f":"IF(I55<1+$B144,0,IF(I55<'1 Données d''entrée'!$C$334+'1 Données d''entrée'!$C$333+1+$B144,'1 Données d''entrée'!$C$332*($L133-SUM($C145:I145)),0))","v":0},{"$f":"IF(J55<1+$B144,0,IF(J55<'1 Données d''entrée'!$C$334+'1 Données d''entrée'!$C$333+1+$B144,'1 Données d''entrée'!$C$332*($L133-SUM($C145:J145)),0))","v":0},{"$f":"IF(K55<1+$B144,0,IF(K55<'1 Données d''entrée'!$C$334+'1 Données d''entrée'!$C$333+1+$B144,'1 Données d''entrée'!$C$332*($L133-SUM($C145:K145)),0))","v":0},{"$f":"IF(L55<1+$B144,0,IF(L55<'1 Données d''entrée'!$C$334+'1 Données d''entrée'!$C$333+1+$B144,'1 Données d''entrée'!$C$332*($L133-SUM($C145:L145)),0))","v":0},{"$f":"IF(M55<1+$B144,0,IF(M55<'1 Données d''entrée'!$C$334+'1 Données d''entrée'!$C$333+1+$B144,'1 Données d''entrée'!$C$332*($L133-SUM($C145:M145)),0))","v":0},{"$f":"IF(N55<1+$B144,0,IF(N55<'1 Données d''entrée'!$C$334+'1 Données d''entrée'!$C$333+1+$B144,'1 Données d''entrée'!$C$332*($L133-SUM($C145:N145)),0))","v":0},{"$f":"IF(O55<1+$B144,0,IF(O55<'1 Données d''entrée'!$C$334+'1 Données d''entrée'!$C$333+1+$B144,'1 Données d''entrée'!$C$332*($L133-SUM($C145:O145)),0))","v":0},{"$f":"IF(P55<1+$B144,0,IF(P55<'1 Données d''entrée'!$C$334+'1 Données d''entrée'!$C$333+1+$B144,'1 Données d''entrée'!$C$332*($L133-SUM($C145:P145)),0))","v":0},{"$f":"IF(Q55<1+$B144,0,IF(Q55<'1 Données d''entrée'!$C$334+'1 Données d''entrée'!$C$333+1+$B144,'1 Données d''entrée'!$C$332*($L133-SUM($C145:Q145)),0))","v":0},{"$f":"IF(R55<1+$B144,0,IF(R55<'1 Données d''entrée'!$C$334+'1 Données d''entrée'!$C$333+1+$B144,'1 Données d''entrée'!$C$332*($L133-SUM($C145:R145)),0))","v":0},{"$f":"IF(S55<1+$B144,0,IF(S55<'1 Données d''entrée'!$C$334+'1 Données d''entrée'!$C$333+1+$B144,'1 Données d''entrée'!$C$332*($L133-SUM($C145:S145)),0))","v":0},{"$f":"IF(T55<1+$B144,0,IF(T55<'1 Données d''entrée'!$C$334+'1 Données d''entrée'!$C$333+1+$B144,'1 Données d''entrée'!$C$332*($L133-SUM($C145:T145)),0))","v":0},{"$f":"IF(U55<1+$B144,0,IF(U55<'1 Données d''entrée'!$C$334+'1 Données d''entrée'!$C$333+1+$B144,'1 Données d''entrée'!$C$332*($L133-SUM($C145:U145)),0))","v":0}]
[]
[null,"Période",1,2,3,4,5,6,7,8,9,10,11,12,13,14,15,16,17,18,19,20]
["Prêt bancaire - Option 3: Remboursement vers l'annuité constante",{"$f":"'1 Données d''entrée'!$B$344","v":0}]
["Prêt(s) nouveau(x)",null,{"$f":"IF(C98<0,C98*(-1)*$B160+C98*(-1)*$B160*'1 Données d''entrée'!$C$338,0)","v":{"$error":"#DIV/0!"}},{"$f":"IF(D98<0,D98*(-1)*$B160+D98*(-1)*$B160*'1 Données d''entrée'!$C$338,0)","v":{"$error":"#DIV/0!"}},{"$f":"IF(E98<0,E98*(-1)*$B160+E98*(-1)*$B160*'1 Données d''entrée'!$C$338,0)","v":{"$error":"#DIV/0!"}},{"$f":"IF(F98<0,F98*(-1)*$B160+F98*(-1)*$B160*'1 Données d''entrée'!$C$338,0)","v":{"$error":"#DIV/0!"}},{"$f":"IF(G98<0,G98*(-1)*$B160+G98*(-1)*$B160*'1 Données d''entrée'!$C$338,0)","v":{"$error":"#DIV/0!"}},{"$f":"IF(H98<0,H98*(-1)*$B160+H98*(-1)*$B160*'1 Données d''entrée'!$C$338,0)","v":{"$error":"#DIV/0!"}},{"$f":"IF(I98<0,I98*(-1)*$B160+I98*(-1)*$B160*'1 Données d''entrée'!$C$338,0)","v":{"$error":"#DIV/0!"}},{"$f":"IF(J98<0,J98*(-1)*$B160+J98*(-1)*$B160*'1 Données d''entrée'!$C$338,0)","v":{"$error":"#DIV/0!"}},{"$f":"IF(K98<0,K98*(-1)*$B160+K98*(-1)*$B160*'1 Données d''entrée'!$C$338,0)","v":{"$error":"#DIV/0!"}},{"$f":"IF(L98<0,L98*(-1)*$B160+L98*(-1)*$B160*'1 Données d''entrée'!$C$338,0)","v":{"$error":"#DIV/0!"}},{"$f":"IF(M98<0,M98*(-1)*$B160+M98*(-1)*$B160*'1 Données d''entrée'!$C$338,0)","v":{"$error":"#DIV/0!"}},{"$f":"IF(N98<0,N98*(-1)*$B160+N98*(-1)*$B160*'1 Données d''entrée'!$C$338,0)","v":{"$error":"#DIV/0!"}},{"$f":"IF(O98<0,O98*(-1)*$B160+O98*(-1)*$B160*'1 Données d''entrée'!$C$338,0)","v":{"$error":"#DIV/0!"}},{"$f":"IF(P98<0,P98*(-1)*$B160+P98*(-1)*$B160*'1 Données d''entrée'!$C$338,0)","v":{"$error":"#DIV/0!"}},{"$f":"IF(Q98<0,Q98*(-1)*$B160+Q98*(-1)*$B160*'1 Données d''entrée'!$C$338,0)","v":{"$error":"#DIV/0!"}},{"$f":"IF(R98<0,R98*(-1)*$B160+R98*(-1)*$B160*'1 Données d''entrée'!$C$338,0)","v":{"$error":"#DIV/0!"}},{"$f":"IF(S98<0,S98*(-1)*$B160+S98*(-1)*$B160*'1 Données d''entrée'!$C$338,0)","v":{"$error":"#DIV/0!"}},{"$f":"IF(T98<0,T98*(-1)*$B160+T98*(-1)*$B160*'1 Données d''entrée'!$C$338,0)","v":{"$error":"#DIV/0!"}},{"$f":"IF(U98<0,U98*(-1)*$B160+U98*(-1)*$B160*'1 Données d''entrée'!$C$338,0)","v":{"$error":"#DIV/0!"}},{"$f":"IF(V98<0,V98*(-1)*$B160+V98*(-1)*$B160*'1 Données d''entrée'!$C$338,0)","v":{"$error":"#DIV/0!"}}]
[null,"Période de prêt nouveau"]
["Remboursement vers l'annuité constante",0,0,0,0,0,0,0,0,0,0,0,0,0,0,0,0,0,0,0,0,0]
[null,1,{"$f":"IF(C$54<'1 Données d''entrée'!$C$334+1+$B164,0,IF(C$54<'1 Données d''entrée'!$C$333+'1 Données d''entrée'!$C$334+1+$B164,$C$160*('1 Données d''entrée'!$C$332*(1+'1 Données d''entrée'!$C$332)^'1 Données d''entrée'!$C$333)/((1+'1 Données d''entrée'!$C$332)^'1 Données d''entrée'!$C$333-1),0))","v":0},{"$f":"IF(D55<'1 Données d''entrée'!$C$334+1+$B164,0,IF(D55<'1 Données d''entrée'!$C$333+'1 Données d''entrée'!$C$334+1+$B164,$C161*('1 Données d''entrée'!$C$332*(1+'1 Données d''entrée'!$C$332)^'1 Données d''entrée'!$C$333)/((1+'1 Données d''entrée'!$C$332)^'1 Données d''entrée'!$C$333-1),0))","v":0},{"$f":"IF(E55<'1 Données d''entrée'!$C$334+1+$B164,0,IF(E55<'1 Données d''entrée'!$C$333+'1 Données d''entrée'!$C$334+1+$B164,$C161*('1 Données d''entrée'!$C$332*(1+'1 Données d''entrée'!$C$332)^'1 Données d''entrée'!$C$333)/((1+'1 Données d''entrée'!$C$332)^'1 Données d''entrée'!$C$333-1),0))","v":0},{"$f":"IF(F55<'1 Données d''entrée'!$C$334+1+$B164,0,IF(F55<'1 Données d''entrée'!$C$333+'1 Données d''entrée'!$C$334+1+$B164,$C161*('1 Données d''entrée'!$C$332*(1+'1 Données d''entrée'!$C$332)^'1 Données d''entrée'!$C$333)/((1+'1 Données d''entrée'!$C$332)^'1 Données d''entrée'!$C$333-1),0))","v":0},{"$f":"IF(G55<'1 Données d''entrée'!$C$334+1+$B164,0,IF(G55<'1 Données d''entrée'!$C$333+'1 Données d''entrée'!$C$334+1+$B164,$C161*('1 Données d''entrée'!$C$332*(1+'1 Données d''entrée'!$C$332)^'1 Données d''entrée'!$C$333)/((1+'1 Données d''entrée'!$C$332)^'1 Données d''entrée'!$C$333-1),0))","v":0},{"$f":"IF(H55<'1 Données d''entrée'!$C$334+1+$B164,0,IF(H55<'1 Données d''entrée'!$C$333+'1 Données d''entrée'!$C$334+1+$B164,$C161*('1 Données d''entrée'!$C$332*(1+'1 Données d''entrée'!$C$332)^'1 Données d''entrée'!$C$333)/((1+'1 Données d''entrée'!$C$332)^'1 Données d''entrée'!$C$333-1),0))","v":0},{"$f":"IF(I55<'1 Données d''entrée'!$C$334+1+$B164,0,IF(I55<'1 Données d''entrée'!$C$333+'1 Données d''entrée'!$C$334+1+$B164,$C161*('1 Données d''entrée'!$C$332*(1+'1 Données d''entrée'!$C$332)^'1 Données d''entrée'!$C$333)/((1+'1 Données d''entrée'!$C$332)^'1 Données d''entrée'!$C$333-1),0))","v":0},{"$f":"IF(J55<'1 Données d''entrée'!$C$334+1+$B164,0,IF(J55<'1 Données d''entrée'!$C$333+'1 Données d''entrée'!$C$334+1+$B164,$C161*('1 Données d''entrée'!$C$332*(1+'1 Données d''entrée'!$C$332)^'1 Données d''entrée'!$C$333)/((1+'1 Données d''entrée'!$C$332)^'1 Données d''entrée'!$C$333-1),0))","v":0},{"$f":"IF(K55<'1 Données d''entrée'!$C$334+1+$B164,0,IF(K55<'1 Données d''entrée'!$C$333+'1 Données d''entrée'!$C$334+1+$B164,$C161*('1 Données d''entrée'!$C$332*(1+'1 Données d''entrée'!$C$332)^'1 Données d''entrée'!$C$333)/((1+'1 Données d''entrée'!$C$332)^'1 Données d''entrée'!$C$333-1),0))","v":0},{"$f":"IF(L55<'1 Données d''entrée'!$C$334+1+$B164,0,IF(L55<'1 Données d''entrée'!$C$333+'1 Données d''entrée'!$C$334+1+$B164,$C161*('1 Données d''entrée'!$C$332*(1+'1 Données d''entrée'!$C$332)^'1 Données d''entrée'!$C$333)/((1+'1 Données d''entrée'!$C$332)^'1 Données d''entrée'!$C$333-1),0))","v":0},{"$f":"IF(M55<'1 Données d''entrée'!$C$334+1+$B164,0,IF(M55<'1 Données d''entrée'!$C$333+'1 Données d''entrée'!$C$334+1+$B164,$C161*('1 Données d''entrée'!$C$332*(1+'1 Données d''entrée'!$C$332)^'1 Données d''entrée'!$C$333)/((1+'1 Données d''entrée'!$C$332)^'1 Données d''entrée'!$C$333-1),0))","v":0},{"$f":"IF(N55<'1 Données d''entrée'!$C$334+1+$B164,0,IF(N55<'1 Données d''entrée'!$C$333+'1 Données d''entrée'!$C$334+1+$B164,$C161*('1 Données d''entrée'!$C$332*(1+'1 Données d''entrée'!$C$332)^'1 Données d''entrée'!$C$333)/((1+'1 Données d''entrée'!$C$332)^'1 Données d''entrée'!$C$333-1),0))","v":0},{"$f":"IF(O55<'1 Données d''entrée'!$C$334+1+$B164,0,IF(O55<'1 Données d''entrée'!$C$333+'1 Données d''entrée'!$C$334+1+$B164,$C161*('1 Données d''entrée'!$C$332*(1+'1 Données d''entrée'!$C$332)^'1 Données d''entrée'!$C$333)/((1+'1 Données d''entrée'!$C$332)^'1 Données d''entrée'!$C$333-1),0))","v":0},{"$f":"IF(P55<'1 Données d''entrée'!$C$334+1+$B164,0,IF(P55<'1 Données d''entrée'!$C$333+'1 Données d''entrée'!$C$334+1+$B164,$C161*('1 Données d''entrée'!$C$332*(1+'1 Données d''entrée'!$C$332)^'1 Données d''entrée'!$C$333)/((1+'1 Données d''entrée'!$C$332)^'1 Données d''entrée'!$C$333-1),0))","v":0},{"$f":"IF(Q55<'1 Données d''entrée'!$C$334+1+$B164,0,IF(Q55<'1 Données d''entrée'!$C$333+'1 Données d''entrée'!$C$334+1+$B164,$C161*('1 Données d''entrée'!$C$332*(1+'1 Données d''entrée'!$C$332)^'1 Données d''entrée'!$C$333)/((1+'1 Données d''entrée'!$C$332)^'1 Données d''entrée'!$C$333-1),0))","v":0},{"$f":"IF(R55<'1 Données d''entrée'!$C$334+1+$B164,0,IF(R55<'1 Données d''entrée'!$C$333+'1 Données d''entrée'!$C$334+1+$B164,$C161*('1 Données d''entrée'!$C$332*(1+'1 Données d''entrée'!$C$332)^'1 Données d''entrée'!$C$333)/((1+'1 Données d''entrée'!$C$332)^'1 Données d''entrée'!$C$333-1),0))","v":0},{"$f":"IF(S55<'1 Données d''entrée'!$C$334+1+$B164,0,IF(S55<'1 Données d''entrée'!$C$333+'1 Données d''entrée'!$C$334+1+$B164,$C161*('1 Données d''entrée'!$C$332*(1+'1 Données d''entrée'!$C$332)^'1 Données d''entrée'!$C$333)/((1+'1 Données d''entrée'!$C$332)^'1 Données d''entrée'!$C$333-1),0))","v":0},{"$f":"IF(T55<'1 Données d''entrée'!$C$334+1+$B164,0,IF(T55<'1 Données d''entrée'!$C$333+'1 Données d''entrée'!$C$334+1+$B164,$C161*('1 Données d''entrée'!$C$332*(1+'1 Données d''entrée'!$C$332)^'1 Données d''entrée'!$C$333)/((1+'1 Données d''entrée'!$C$332)^'1 Données d''entrée'!$C$333-1),0))","v":0},{"$f":"IF(U55<'1 Données d''entrée'!$C$334+1+$B164,0,IF(U55<'1 Données d''entrée'!$C$333+'1 Données d''entrée'!$C$334+1+$B164,$C161*('1 Données d''entrée'!$C$332*(1+'1 Données d''entrée'!$C$332)^'1 Données d''entrée'!$C$333)/((1+'1 Données d''entrée'!$C$332)^'1 Données d''entrée'!$C$333-1),0))","v":0},{"$f":"IF(V55<'1 Données d''entrée'!$C$334+1+$B164,0,IF(V55<'1 Données d''entrée'!$C$333+'1 Données d''entrée'!$C$334+1+$B164,$C161*('1 Données d''entrée'!$C$332*(1+'1 Données d''entrée'!$C$332)^'1 Données d''entrée'!$C$333)/((1+'1 Données d''entrée'!$C$332)^'1 Données d''entrée'!$C$333-1),0))","v":0}]
[null,2,{"$f":"IF(C$54<'1 Données d''entrée'!$C$334+1+$B165,0,IF(C$54<'1 Données d''entrée'!$C$333+'1 Données d''entrée'!$C$334+1+$B165,$D$160*('1 Données d''entrée'!$C$332*(1+'1 Données d''entrée'!$C$332)^'1 Données d''entrée'!$C$333)/((1+'1 Données d''entrée'!$C$332)^'1 Données d''entrée'!$C$333-1),0))","v":0},{"$f":"IF(D55<'1 Données d''entrée'!$C$334+1+$B165,0,IF(D55<'1 Données d''entrée'!$C$333+'1 Données d''entrée'!$C$334+1+$B165,$D161*('1 Données d''entrée'!$C$332*(1+'1 Données d''entrée'!$C$332)^'1 Données d''entrée'!$C$333)/((1+'1 Données d''entrée'!$C$332)^'1 Données d''entrée'!$C$333-1),0))","v":0},{"$f":"IF(E55<'1 Données d''entrée'!$C$334+1+$B165,0,IF(E55<'1 Données d''entrée'!$C$333+'1 Données d''entrée'!$C$334+1+$B165,$D161*('1 Données d''entrée'!$C$332*(1+'1 Données d''entrée'!$C$332)^'1 Données d''entrée'!$C$333)/((1+'1 Données d''entrée'!$C$332)^'1 Données d''entrée'!$C$333-1),0))","v":0},{"$f":"IF(F55<'1 Données d''entrée'!$C$334+1+$B165,0,IF(F55<'1 Données d''entrée'!$C$333+'1 Données d''entrée'!$C$334+1+$B165,$D161*('1 Données d''entrée'!$C$332*(1+'1 Données d''entrée'!$C$332)^'1 Données d''entrée'!$C$333)/((1+'1 Données d''entrée'!$C$332)^'1 Données d''entrée'!$C$333-1),0))","v":0},{"$f":"IF(G55<'1 Données d''entrée'!$C$334+1+$B165,0,IF(G55<'1 Données d''entrée'!$C$333+'1 Données d''entrée'!$C$334+1+$B165,$D161*('1 Données d''entrée'!$C$332*(1+'1 Données d''entrée'!$C$332)^'1 Données d''entrée'!$C$333)/((1+'1 Données d''entrée'!$C$332)^'1 Données d''entrée'!$C$333-1),0))","v":0},{"$f":"IF(H55<'1 Données d''entrée'!$C$334+1+$B165,0,IF(H55<'1 Données d''entrée'!$C$333+'1 Données d''entrée'!$C$334+1+$B165,$D161*('1 Données d''entrée'!$C$332*(1+'1 Données d''entrée'!$C$332)^'1 Données d''entrée'!$C$333)/((1+'1 Données d''entrée'!$C$332)^'1 Données d''entrée'!$C$333-1),0))","v":0},{"$f":"IF(I55<'1 Données d''entrée'!$C$334+1+$B165,0,IF(I55<'1 Données d''entrée'!$C$333+'1 Données d''entrée'!$C$334+1+$B165,$D161*('1 Données d''entrée'!$C$332*(1+'1 Données d''entrée'!$C$332)^'1 Données d''entrée'!$C$333)/((1+'1 Données d''entrée'!$C$332)^'1 Données d''entrée'!$C$333-1),0))","v":0},{"$f":"IF(J55<'1 Données d''entrée'!$C$334+1+$B165,0,IF(J55<'1 Données d''entrée'!$C$333+'1 Données d''entrée'!$C$334+1+$B165,$D161*('1 Données d''entrée'!$C$332*(1+'1 Données d''entrée'!$C$332)^'1 Données d''entrée'!$C$333)/((1+'1 Données d''entrée'!$C$332)^'1 Données d''entrée'!$C$333-1),0))","v":0},{"$f":"IF(K55<'1 Données d''entrée'!$C$334+1+$B165,0,IF(K55<'1 Données d''entrée'!$C$333+'1 Données d''entrée'!$C$334+1+$B165,$D161*('1 Données d''entrée'!$C$332*(1+'1 Données d''entrée'!$C$332)^'1 Données d''entrée'!$C$333)/((1+'1 Données d''entrée'!$C$332)^'1 Données d''entrée'!$C$333-1),0))","v":0},{"$f":"IF(L55<'1 Données d''entrée'!$C$334+1+$B165,0,IF(L55<'1 Données d''entrée'!$C$333+'1 Données d''entrée'!$C$334+1+$B165,$D161*('1 Données d''entrée'!$C$332*(1+'1 Données d''entrée'!$C$332)^'1 Données d''entrée'!$C$333)/((1+'1 Données d''entrée'!$C$332)^'1 Données d''entrée'!$C$333-1),0))","v":0},{"$f":"IF(M55<'1 Données d''entrée'!$C$334+1+$B165,0,IF(M55<'1 Données d''entrée'!$C$333+'1 Données d''entrée'!$C$334+1+$B165,$D161*('1 Données d''entrée'!$C$332*(1+'1 Données d''entrée'!$C$332)^'1 Données d''entrée'!$C$333)/((1+'1 Données d''entrée'!$C$332)^'1 Données d''entrée'!$C$333-1),0))","v":0},{"$f":"IF(N55<'1 Données d''entrée'!$C$334+1+$B165,0,IF(N55<'1 Données d''entrée'!$C$333+'1 Données d''entrée'!$C$334+1+$B165,$D161*('1 Données d''entrée'!$C$332*(1+'1 Données d''entrée'!$C$332)^'1 Données d''entrée'!$C$333)/((1+'1 Données d''entrée'!$C$332)^'1 Données d''entrée'!$C$333-1),0))","v":0},{"$f":"IF(O55<'1 Données d''entrée'!$C$334+1+$B165,0,IF(O55<'1 Données d''entrée'!$C$333+'1 Données d''entrée'!$C$334+1+$B165,$D161*('1 Données d''entrée'!$C$332*(1+'1 Données d''entrée'!$C$332)^'1 Données d''entrée'!$C$333)/((1+'1 Données d''entrée'!$C$332)^'1 Données d''entrée'!$C$333-1),0))","v":0},{"$f":"IF(P55<'1 Données d''entrée'!$C$334+1+$B165,0,IF(P55<'1 Données d''entrée'!$C$333+'1 Données d''entrée'!$C$334+1+$B165,$D161*('1 Données d''entrée'!$C$332*(1+'1 Données d''entrée'!$C$332)^'1 Données d''entrée'!$C$333)/((1+'1 Données d''entrée'!$C$332)^'1 Données d''entrée'!$C$333-1),0))","v":0},{"$f":"IF(Q55<'1 Données d''entrée'!$C$334+1+$B165,0,IF(Q55<'1 Données d''entrée'!$C$333+'1 Données d''entrée'!$C$334+1+$B165,$D161*('1 Données d''entrée'!$C$332*(1+'1 Données d''entrée'!$C$332)^'1 Données d''entrée'!$C$333)/((1+'1 Données d''entrée'!$C$332)^'1 Données d''entrée'!$C$333-1),0))","v":0},{"$f":"IF(R55<'1 Données d''entrée'!$C$334+1+$B165,0,IF(R55<'1 Données d''entrée'!$C$333+'1 Données d''entrée'!$C$334+1+$B165,$D161*('1 Données d''entrée'!$C$332*(1+'1 Données d''entrée'!$C$332)^'1 Données d''entrée'!$C$333)/((1+'1 Données d''entrée'!$C$332)^'1 Données d''entrée'!$C$333-1),0))","v":0},{"$f":"IF(S55<'1 Données d''entrée'!$C$334+1+$B165,0,IF(S55<'1 Données d''entrée'!$C$333+'1 Données d''entrée'!$C$334+1+$B165,$D161*('1 Données d''entrée'!$C$332*(1+'1 Données d''entrée'!$C$332)^'1 Données d''entrée'!$C$333)/((1+'1 Données d''entrée'!$C$332)^'1 Données d''entrée'!$C$333-1),0))","v":0},{"$f":"IF(T55<'1 Données d''entrée'!$C$334+1+$B165,0,IF(T55<'1 Données d''entrée'!$C$333+'1 Données d''entrée'!$C$334+1+$B165,$D161*('1 Données d''entrée'!$C$332*(1+'1 Données d''entrée'!$C$332)^'1 Données d''entrée'!$C$333)/((1+'1 Données d''entrée'!$C$332)^'1 Données d''entrée'!$C$333-1),0))","v":0},{"$f":"IF(U55<'1 Données d''entrée'!$C$334+1+$B165,0,IF(U55<'1 Données d''entrée'!$C$333+'1 Données d''entrée'!$C$334+1+$B165,$D161*('1 Données d''entrée'!$C$332*(1+'1 Données d''entrée'!$C$332)^'1 Données d''entrée'!$C$333)/((1+'1 Données d''entrée'!$C$332)^'1 Données d''entrée'!$C$333-1),0))","v":0},{"$f":"IF(V55<'1 Données d''entrée'!$C$334+1+$B165,0,IF(V55<'1 Données d''entrée'!$C$333+'1 Données d''entrée'!$C$334+1+$B165,$D161*('1 Données d''entrée'!$C$332*(1+'1 Données d''entrée'!$C$332)^'1 Données d''entrée'!$C$333)/((1+'1 Données d''entrée'!$C$332)^'1 Données d''entrée'!$C$333-1),0))","v":0}]
[null,3,{"$f":"IF(C$54<'1 Données d''entrée'!$C$334+1+$B166,0,IF(C$54<'1 Données d''entrée'!$C$333+'1 Données d''entrée'!$C$334+1+$B166,$E$160*('1 Données d''entrée'!$C$332*(1+'1 Données d''entrée'!$C$332)^'1 Données d''entrée'!$C$333)/((1+'1 Données d''entrée'!$C$332)^'1 Données d''entrée'!$C$333-1),0))","v":0},{"$f":"IF(D55<'1 Données d''entrée'!$C$334+1+$B166,0,IF(D55<'1 Données d''entrée'!$C$333+'1 Données d''entrée'!$C$334+1+$B166,$E161*('1 Données d''entrée'!$C$332*(1+'1 Données d''entrée'!$C$332)^'1 Données d''entrée'!$C$333)/((1+'1 Données d''entrée'!$C$332)^'1 Données d''entrée'!$C$333-1),0))","v":0},{"$f":"IF(E55<'1 Données d''entrée'!$C$334+1+$B166,0,IF(E55<'1 Données d''entrée'!$C$333+'1 Données d''entrée'!$C$334+1+$B166,$E161*('1 Données d''entrée'!$C$332*(1+'1 Données d''entrée'!$C$332)^'1 Données d''entrée'!$C$333)/((1+'1 Données d''entrée'!$C$332)^'1 Données d''entrée'!$C$333-1),0))","v":0},{"$f":"IF(F55<'1 Données d''entrée'!$C$334+1+$B166,0,IF(F55<'1 Données d''entrée'!$C$333+'1 Données d''entrée'!$C$334+1+$B166,$E161*('1 Données d''entrée'!$C$332*(1+'1 Données d''entrée'!$C$332)^'1 Données d''entrée'!$C$333)/((1+'1 Données d''entrée'!$C$332)^'1 Données d''entrée'!$C$333-1),0))","v":0},{"$f":"IF(G55<'1 Données d''entrée'!$C$334+1+$B166,0,IF(G55<'1 Données d''entrée'!$C$333+'1 Données d''entrée'!$C$334+1+$B166,$E161*('1 Données d''entrée'!$C$332*(1+'1 Données d''entrée'!$C$332)^'1 Données d''entrée'!$C$333)/((1+'1 Données d''entrée'!$C$332)^'1 Données d''entrée'!$C$333-1),0))","v":0},{"$f":"IF(H55<'1 Données d''entrée'!$C$334+1+$B166,0,IF(H55<'1 Données d''entrée'!$C$333+'1 Données d''entrée'!$C$334+1+$B166,$E161*('1 Données d''entrée'!$C$332*(1+'1 Données d''entrée'!$C$332)^'1 Données d''entrée'!$C$333)/((1+'1 Données d''entrée'!$C$332)^'1 Données d''entrée'!$C$333-1),0))","v":0},{"$f":"IF(I55<'1 Données d''entrée'!$C$334+1+$B166,0,IF(I55<'1 Données d''entrée'!$C$333+'1 Données d''entrée'!$C$334+1+$B166,$E161*('1 Données d''entrée'!$C$332*(1+'1 Données d''entrée'!$C$332)^'1 Données d''entrée'!$C$333)/((1+'1 Données d''entrée'!$C$332)^'1 Données d''entrée'!$C$333-1),0))","v":0},{"$f":"IF(J55<'1 Données d''entrée'!$C$334+1+$B166,0,IF(J55<'1 Données d''entrée'!$C$333+'1 Données d''entrée'!$C$334+1+$B166,$E161*('1 Données d''entrée'!$C$332*(1+'1 Données d''entrée'!$C$332)^'1 Données d''entrée'!$C$333)/((1+'1 Données d''entrée'!$C$332)^'1 Données d''entrée'!$C$333-1),0))","v":0},{"$f":"IF(K55<'1 Données d''entrée'!$C$334+1+$B166,0,IF(K55<'1 Données d''entrée'!$C$333+'1 Données d''entrée'!$C$334+1+$B166,$E161*('1 Données d''entrée'!$C$332*(1+'1 Données d''entrée'!$C$332)^'1 Données d''entrée'!$C$333)/((1+'1 Données d''entrée'!$C$332)^'1 Données d''entrée'!$C$333-1),0))","v":0},{"$f":"IF(L55<'1 Données d''entrée'!$C$334+1+$B166,0,IF(L55<'1 Données d''entrée'!$C$333+'1 Données d''entrée'!$C$334+1+$B166,$E161*('1 Données d''entrée'!$C$332*(1+'1 Données d''entrée'!$C$332)^'1 Données d''entrée'!$C$333)/((1+'1 Données d''entrée'!$C$332)^'1 Données d''entrée'!$C$333-1),0))","v":0},{"$f":"IF(M55<'1 Données d''entrée'!$C$334+1+$B166,0,IF(M55<'1 Données d''entrée'!$C$333+'1 Données d''entrée'!$C$334+1+$B166,$E161*('1 Données d''entrée'!$C$332*(1+'1 Données d''entrée'!$C$332)^'1 Données d''entrée'!$C$333)/((1+'1 Données d''entrée'!$C$332)^'1 Données d''entrée'!$C$333-1),0))","v":0},{"$f":"IF(N55<'1 Données d''entrée'!$C$334+1+$B166,0,IF(N55<'1 Données d''entrée'!$C$333+'1 Données d''entrée'!$C$334+1+$B166,$E161*('1 Données d''entrée'!$C$332*(1+'1 Données d''entrée'!$C$332)^'1 Données d''entrée'!$C$333)/((1+'1 Données d''entrée'!$C$332)^'1 Données d''entrée'!$C$333-1),0))","v":0},{"$f":"IF(O55<'1 Données d''entrée'!$C$334+1+$B166,0,IF(O55<'1 Données d''entrée'!$C$333+'1 Données d''entrée'!$C$334+1+$B166,$E161*('1 Données d''entrée'!$C$332*(1+'1 Données d''entrée'!$C$332)^'1 Données d''entrée'!$C$333)/((1+'1 Données d''entrée'!$C$332)^'1 Données d''entrée'!$C$333-1),0))","v":0},{"$f":"IF(P55<'1 Données d''entrée'!$C$334+1+$B166,0,IF(P55<'1 Données d''entrée'!$C$333+'1 Données d''entrée'!$C$334+1+$B166,$E161*('1 Données d''entrée'!$C$332*(1+'1 Données d''entrée'!$C$332)^'1 Données d''entrée'!$C$333)/((1+'1 Données d''entrée'!$C$332)^'1 Données d''entrée'!$C$333-1),0))","v":0},{"$f":"IF(Q55<'1 Données d''entrée'!$C$334+1+$B166,0,IF(Q55<'1 Données d''entrée'!$C$333+'1 Données d''entrée'!$C$334+1+$B166,$E161*('1 Données d''entrée'!$C$332*(1+'1 Données d''entrée'!$C$332)^'1 Données d''entrée'!$C$333)/((1+'1 Données d''entrée'!$C$332)^'1 Données d''entrée'!$C$333-1),0))","v":0},{"$f":"IF(R55<'1 Données d''entrée'!$C$334+1+$B166,0,IF(R55<'1 Données d''entrée'!$C$333+'1 Données d''entrée'!$C$334+1+$B166,$E161*('1 Données d''entrée'!$C$332*(1+'1 Données d''entrée'!$C$332)^'1 Données d''entrée'!$C$333)/((1+'1 Données d''entrée'!$C$332)^'1 Données d''entrée'!$C$333-1),0))","v":0},{"$f":"IF(S55<'1 Données d''entrée'!$C$334+1+$B166,0,IF(S55<'1 Données d''entrée'!$C$333+'1 Données d''entrée'!$C$334+1+$B166,$E161*('1 Données d''entrée'!$C$332*(1+'1 Données d''entrée'!$C$332)^'1 Données d''entrée'!$C$333)/((1+'1 Données d''entrée'!$C$332)^'1 Données d''entrée'!$C$333-1),0))","v":0},{"$f":"IF(T55<'1 Données d''entrée'!$C$334+1+$B166,0,IF(T55<'1 Données d''entrée'!$C$333+'1 Données d''entrée'!$C$334+1+$B166,$E161*('1 Données d''entrée'!$C$332*(1+'1 Données d''entrée'!$C$332)^'1 Données d''entrée'!$C$333)/((1+'1 Données d''entrée'!$C$332)^'1 Données d''entrée'!$C$333-1),0))","v":0},{"$f":"IF(U55<'1 Données d''entrée'!$C$334+1+$B166,0,IF(U55<'1 Données d''entrée'!$C$333+'1 Données d''entrée'!$C$334+1+$B166,$E161*('1 Données d''entrée'!$C$332*(1+'1 Données d''entrée'!$C$332)^'1 Données d''entrée'!$C$333)/((1+'1 Données d''entrée'!$C$332)^'1 Données d''entrée'!$C$333-1),0))","v":0},{"$f":"IF(V55<'1 Données d''entrée'!$C$334+1+$B166,0,IF(V55<'1 Données d''entrée'!$C$333+'1 Données d''entrée'!$C$334+1+$B166,$E161*('1 Données d''entrée'!$C$332*(1+'1 Données d''entrée'!$C$332)^'1 Données d''entrée'!$C$333)/((1+'1 Données d''entrée'!$C$332)^'1 Données d''entrée'!$C$333-1),0))","v":0}]
[null,4,{"$f":"IF(C$54<'1 Données d''entrée'!$C$334+1+$B167,0,IF(C$54<'1 Données d''entrée'!$C$333+'1 Données d''entrée'!$C$334+1+$B167,$F$160*('1 Données d''entrée'!$C$332*(1+'1 Données d''entrée'!$C$332)^'1 Données d''entrée'!$C$333)/((1+'1 Données d''entrée'!$C$332)^'1 Données d''entrée'!$C$333-1),0))","v":0},{"$f":"IF(D55<'1 Données d''entrée'!$C$334+1+$B167,0,IF(D55<'1 Données d''entrée'!$C$333+'1 Données d''entrée'!$C$334+1+$B167,$F161*('1 Données d''entrée'!$C$332*(1+'1 Données d''entrée'!$C$332)^'1 Données d''entrée'!$C$333)/((1+'1 Données d''entrée'!$C$332)^'1 Données d''entrée'!$C$333-1),0))","v":0},{"$f":"IF(E55<'1 Données d''entrée'!$C$334+1+$B167,0,IF(E55<'1 Données d''entrée'!$C$333+'1 Données d''entrée'!$C$334+1+$B167,$F161*('1 Données d''entrée'!$C$332*(1+'1 Données d''entrée'!$C$332)^'1 Données d''entrée'!$C$333)/((1+'1 Données d''entrée'!$C$332)^'1 Données d''entrée'!$C$333-1),0))","v":0},{"$f":"IF(F55<'1 Données d''entrée'!$C$334+1+$B167,0,IF(F55<'1 Données d''entrée'!$C$333+'1 Données d''entrée'!$C$334+1+$B167,$F161*('1 Données d''entrée'!$C$332*(1+'1 Données d''entrée'!$C$332)^'1 Données d''entrée'!$C$333)/((1+'1 Données d''entrée'!$C$332)^'1 Données d''entrée'!$C$333-1),0))","v":0},{"$f":"IF(G55<'1 Données d''entrée'!$C$334+1+$B167,0,IF(G55<'1 Données d''entrée'!$C$333+'1 Données d''entrée'!$C$334+1+$B167,$F161*('1 Données d''entrée'!$C$332*(1+'1 Données d''entrée'!$C$332)^'1 Données d''entrée'!$C$333)/((1+'1 Données d''entrée'!$C$332)^'1 Données d''entrée'!$C$333-1),0))","v":0},{"$f":"IF(H55<'1 Données d''entrée'!$C$334+1+$B167,0,IF(H55<'1 Données d''entrée'!$C$333+'1 Données d''entrée'!$C$334+1+$B167,$F161*('1 Données d''entrée'!$C$332*(1+'1 Données d''entrée'!$C$332)^'1 Données d''entrée'!$C$333)/((1+'1 Données d''entrée'!$C$332)^'1 Données d''entrée'!$C$333-1),0))","v":0},{"$f":"IF(I55<'1 Données d''entrée'!$C$334+1+$B167,0,IF(I55<'1 Données d''entrée'!$C$333+'1 Données d''entrée'!$C$334+1+$B167,$F161*('1 Données d''entrée'!$C$332*(1+'1 Données d''entrée'!$C$332)^'1 Données d''entrée'!$C$333)/((1+'1 Données d''entrée'!$C$332)^'1 Données d''entrée'!$C$333-1),0))","v":0},{"$f":"IF(J55<'1 Données d''entrée'!$C$334+1+$B167,0,IF(J55<'1 Données d''entrée'!$C$333+'1 Données d''entrée'!$C$334+1+$B167,$F161*('1 Données d''entrée'!$C$332*(1+'1 Données d''entrée'!$C$332)^'1 Données d''entrée'!$C$333)/((1+'1 Données d''entrée'!$C$332)^'1 Données d''entrée'!$C$333-1),0))","v":0},{"$f":"IF(K55<'1 Données d''entrée'!$C$334+1+$B167,0,IF(K55<'1 Données d''entrée'!$C$333+'1 Données d''entrée'!$C$334+1+$B167,$F161*('1 Données d''entrée'!$C$332*(1+'1 Données d''entrée'!$C$332)^'1 Données d''entrée'!$C$333)/((1+'1 Données d''entrée'!$C$332)^'1 Données d''entrée'!$C$333-1),0))","v":0},{"$f":"IF(L55<'1 Données d''entrée'!$C$334+1+$B167,0,IF(L55<'1 Données d''entrée'!$C$333+'1 Données d''entrée'!$C$334+1+$B167,$F161*('1 Données d''entrée'!$C$332*(1+'1 Données d''entrée'!$C$332)^'1 Données d''entrée'!$C$333)/((1+'1 Données d''entrée'!$C$332)^'1 Données d''entrée'!$C$333-1),0))","v":0},{"$f":"IF(M55<'1 Données d''entrée'!$C$334+1+$B167,0,IF(M55<'1 Données d''entrée'!$C$333+'1 Données d''entrée'!$C$334+1+$B167,$F161*('1 Données d''entrée'!$C$332*(1+'1 Données d''entrée'!$C$332)^'1 Données d''entrée'!$C$333)/((1+'1 Données d''entrée'!$C$332)^'1 Données d''entrée'!$C$333-1),0))","v":0},{"$f":"IF(N55<'1 Données d''entrée'!$C$334+1+$B167,0,IF(N55<'1 Données d''entrée'!$C$333+'1 Données d''entrée'!$C$334+1+$B167,$F161*('1 Données d''entrée'!$C$332*(1+'1 Données d''entrée'!$C$332)^'1 Données d''entrée'!$C$333)/((1+'1 Données d''entrée'!$C$332)^'1 Données d''entrée'!$C$333-1),0))","v":0},{"$f":"IF(O55<'1 Données d''entrée'!$C$334+1+$B167,0,IF(O55<'1 Données d''entrée'!$C$333+'1 Données d''entrée'!$C$334+1+$B167,$F161*('1 Données d''entrée'!$C$332*(1+'1 Données d''entrée'!$C$332)^'1 Données d''entrée'!$C$333)/((1+'1 Données d''entrée'!$C$332)^'1 Données d''entrée'!$C$333-1),0))","v":0},{"$f":"IF(P55<'1 Données d''entrée'!$C$334+1+$B167,0,IF(P55<'1 Données d''entrée'!$C$333+'1 Données d''entrée'!$C$334+1+$B167,$F161*('1 Données d''entrée'!$C$332*(1+'1 Données d''entrée'!$C$332)^'1 Données d''entrée'!$C$333)/((1+'1 Données d''entrée'!$C$332)^'1 Données d''entrée'!$C$333-1),0))","v":0},{"$f":"IF(Q55<'1 Données d''entrée'!$C$334+1+$B167,0,IF(Q55<'1 Données d''entrée'!$C$333+'1 Données d''entrée'!$C$334+1+$B167,$F161*('1 Données d''entrée'!$C$332*(1+'1 Données d''entrée'!$C$332)^'1 Données d''entrée'!$C$333)/((1+'1 Données d''entrée'!$C$332)^'1 Données d''entrée'!$C$333-1),0))","v":0},{"$f":"IF(R55<'1 Données d''entrée'!$C$334+1+$B167,0,IF(R55<'1 Données d''entrée'!$C$333+'1 Données d''entrée'!$C$334+1+$B167,$F161*('1 Données d''entrée'!$C$332*(1+'1 Données d''entrée'!$C$332)^'1 Données d''entrée'!$C$333)/((1+'1 Données d''entrée'!$C$332)^'1 Données d''entrée'!$C$333-1),0))","v":0},{"$f":"IF(S55<'1 Données d''entrée'!$C$334+1+$B167,0,IF(S55<'1 Données d''entrée'!$C$333+'1 Données d''entrée'!$C$334+1+$B167,$F161*('1 Données d''entrée'!$C$332*(1+'1 Données d''entrée'!$C$332)^'1 Données d''entrée'!$C$333)/((1+'1 Données d''entrée'!$C$332)^'1 Données d''entrée'!$C$333-1),0))","v":0},{"$f":"IF(T55<'1 Données d''entrée'!$C$334+1+$B167,0,IF(T55<'1 Données d''entrée'!$C$333+'1 Données d''entrée'!$C$334+1+$B167,$F161*('1 Données d''entrée'!$C$332*(1+'1 Données d''entrée'!$C$332)^'1 Données d''entrée'!$C$333)/((1+'1 Données d''entrée'!$C$332)^'1 Données d''entrée'!$C$333-1),0))","v":0},{"$f":"IF(U55<'1 Données d''entrée'!$C$334+1+$B167,0,IF(U55<'1 Données d''entrée'!$C$333+'1 Données d''entrée'!$C$334+1+$B167,$F161*('1 Données d''entrée'!$C$332*(1+'1 Données d''entrée'!$C$332)^'1 Données d''entrée'!$C$333)/((1+'1 Données d''entrée'!$C$332)^'1 Données d''entrée'!$C$333-1),0))","v":0},{"$f":"IF(V55<'1 Données d''entrée'!$C$334+1+$B167,0,IF(V55<'1 Données d''entrée'!$C$333+'1 Données d''entrée'!$C$334+1+$B167,$F161*('1 Données d''entrée'!$C$332*(1+'1 Données d''entrée'!$C$332)^'1 Données d''entrée'!$C$333)/((1+'1 Données d''entrée'!$C$332)^'1 Données d''entrée'!$C$333-1),0))","v":0}]
[null,5,{"$f":"IF(C$54<'1 Données d''entrée'!$C$334+1+$B168,0,IF(C$54<'1 Données d''entrée'!$C$333+'1 Données d''entrée'!$C$334+1+$B168,$G$160*('1 Données d''entrée'!$C$332*(1+'1 Données d''entrée'!$C$332)^'1 Données d''entrée'!$C$333)/((1+'1 Données d''entrée'!$C$332)^'1 Données d''entrée'!$C$333-1),0))","v":0},{"$f":"IF(D55<'1 Données d''entrée'!$C$334+1+$B168,0,IF(D55<'1 Données d''entrée'!$C$333+'1 Données d''entrée'!$C$334+1+$B168,$G161*('1 Données d''entrée'!$C$332*(1+'1 Données d''entrée'!$C$332)^'1 Données d''entrée'!$C$333)/((1+'1 Données d''entrée'!$C$332)^'1 Données d''entrée'!$C$333-1),0))","v":0},{"$f":"IF(E55<'1 Données d''entrée'!$C$334+1+$B168,0,IF(E55<'1 Données d''entrée'!$C$333+'1 Données d''entrée'!$C$334+1+$B168,$G161*('1 Données d''entrée'!$C$332*(1+'1 Données d''entrée'!$C$332)^'1 Données d''entrée'!$C$333)/((1+'1 Données d''entrée'!$C$332)^'1 Données d''entrée'!$C$333-1),0))","v":0},{"$f":"IF(F55<'1 Données d''entrée'!$C$334+1+$B168,0,IF(F55<'1 Données d''entrée'!$C$333+'1 Données d''entrée'!$C$334+1+$B168,$G161*('1 Données d''entrée'!$C$332*(1+'1 Données d''entrée'!$C$332)^'1 Données d''entrée'!$C$333)/((1+'1 Données d''entrée'!$C$332)^'1 Données d''entrée'!$C$333-1),0))","v":0},{"$f":"IF(G55<'1 Données d''entrée'!$C$334+1+$B168,0,IF(G55<'1 Données d''entrée'!$C$333+'1 Données d''entrée'!$C$334+1+$B168,$G161*('1 Données d''entrée'!$C$332*(1+'1 Données d''entrée'!$C$332)^'1 Données d''entrée'!$C$333)/((1+'1 Données d''entrée'!$C$332)^'1 Données d''entrée'!$C$333-1),0))","v":0},{"$f":"IF(H55<'1 Données d''entrée'!$C$334+1+$B168,0,IF(H55<'1 Données d''entrée'!$C$333+'1 Données d''entrée'!$C$334+1+$B168,$G161*('1 Données d''entrée'!$C$332*(1+'1 Données d''entrée'!$C$332)^'1 Données d''entrée'!$C$333)/((1+'1 Données d''entrée'!$C$332)^'1 Données d''entrée'!$C$333-1),0))","v":0},{"$f":"IF(I55<'1 Données d''entrée'!$C$334+1+$B168,0,IF(I55<'1 Données d''entrée'!$C$333+'1 Données d''entrée'!$C$334+1+$B168,$G161*('1 Données d''entrée'!$C$332*(1+'1 Données d''entrée'!$C$332)^'1 Données d''entrée'!$C$333)/((1+'1 Données d''entrée'!$C$332)^'1 Données d''entrée'!$C$333-1),0))","v":0},{"$f":"IF(J55<'1 Données d''entrée'!$C$334+1+$B168,0,IF(J55<'1 Données d''entrée'!$C$333+'1 Données d''entrée'!$C$334+1+$B168,$G161*('1 Données d''entrée'!$C$332*(1+'1 Données d''entrée'!$C$332)^'1 Données d''entrée'!$C$333)/((1+'1 Données d''entrée'!$C$332)^'1 Données d''entrée'!$C$333-1),0))","v":0},{"$f":"IF(K55<'1 Données d''entrée'!$C$334+1+$B168,0,IF(K55<'1 Données d''entrée'!$C$333+'1 Données d''entrée'!$C$334+1+$B168,$G161*('1 Données d''entrée'!$C$332*(1+'1 Données d''entrée'!$C$332)^'1 Données d''entrée'!$C$333)/((1+'1 Données d''entrée'!$C$332)^'1 Données d''entrée'!$C$333-1),0))","v":0},{"$f":"IF(L55<'1 Données d''entrée'!$C$334+1+$B168,0,IF(L55<'1 Données d''entrée'!$C$333+'1 Données d''entrée'!$C$334+1+$B168,$G161*('1 Données d''entrée'!$C$332*(1+'1 Données d''entrée'!$C$332)^'1 Données d''entrée'!$C$333)/((1+'1 Données d''entrée'!$C$332)^'1 Données d''entrée'!$C$333-1),0))","v":0},{"$f":"IF(M55<'1 Données d''entrée'!$C$334+1+$B168,0,IF(M55<'1 Données d''entrée'!$C$333+'1 Données d''entrée'!$C$334+1+$B168,$G161*('1 Données d''entrée'!$C$332*(1+'1 Données d''entrée'!$C$332)^'1 Données d''entrée'!$C$333)/((1+'1 Données d''entrée'!$C$332)^'1 Données d''entrée'!$C$333-1),0))","v":0},{"$f":"IF(N55<'1 Données d''entrée'!$C$334+1+$B168,0,IF(N55<'1 Données d''entrée'!$C$333+'1 Données d''entrée'!$C$334+1+$B168,$G161*('1 Données d''entrée'!$C$332*(1+'1 Données d''entrée'!$C$332)^'1 Données d''entrée'!$C$333)/((1+'1 Données d''entrée'!$C$332)^'1 Données d''entrée'!$C$333-1),0))","v":0},{"$f":"IF(O55<'1 Données d''entrée'!$C$334+1+$B168,0,IF(O55<'1 Données d''entrée'!$C$333+'1 Données d''entrée'!$C$334+1+$B168,$G161*('1 Données d''entrée'!$C$332*(1+'1 Données d''entrée'!$C$332)^'1 Données d''entrée'!$C$333)/((1+'1 Données d''entrée'!$C$332)^'1 Données d''entrée'!$C$333-1),0))","v":0},{"$f":"IF(P55<'1 Données d''entrée'!$C$334+1+$B168,0,IF(P55<'1 Données d''entrée'!$C$333+'1 Données d''entrée'!$C$334+1+$B168,$G161*('1 Données d''entrée'!$C$332*(1+'1 Données d''entrée'!$C$332)^'1 Données d''entrée'!$C$333)/((1+'1 Données d''entrée'!$C$332)^'1 Données d''entrée'!$C$333-1),0))","v":0},{"$f":"IF(Q55<'1 Données d''entrée'!$C$334+1+$B168,0,IF(Q55<'1 Données d''entrée'!$C$333+'1 Données d''entrée'!$C$334+1+$B168,$G161*('1 Données d''entrée'!$C$332*(1+'1 Données d''entrée'!$C$332)^'1 Données d''entrée'!$C$333)/((1+'1 Données d''entrée'!$C$332)^'1 Données d''entrée'!$C$333-1),0))","v":0},{"$f":"IF(R55<'1 Données d''entrée'!$C$334+1+$B168,0,IF(R55<'1 Données d''entrée'!$C$333+'1 Données d''entrée'!$C$334+1+$B168,$G161*('1 Données d''entrée'!$C$332*(1+'1 Données d''entrée'!$C$332)^'1 Données d''entrée'!$C$333)/((1+'1 Données d''entrée'!$C$332)^'1 Données d''entrée'!$C$333-1),0))","v":0},{"$f":"IF(S55<'1 Données d''entrée'!$C$334+1+$B168,0,IF(S55<'1 Données d''entrée'!$C$333+'1 Données d''entrée'!$C$334+1+$B168,$G161*('1 Données d''entrée'!$C$332*(1+'1 Données d''entrée'!$C$332)^'1 Données d''entrée'!$C$333)/((1+'1 Données d''entrée'!$C$332)^'1 Données d''entrée'!$C$333-1),0))","v":0},{"$f":"IF(T55<'1 Données d''entrée'!$C$334+1+$B168,0,IF(T55<'1 Données d''entrée'!$C$333+'1 Données d''entrée'!$C$334+1+$B168,$G161*('1 Données d''entrée'!$C$332*(1+'1 Données d''entrée'!$C$332)^'1 Données d''entrée'!$C$333)/((1+'1 Données d''entrée'!$C$332)^'1 Données d''entrée'!$C$333-1),0))","v":0},{"$f":"IF(U55<'1 Données d''entrée'!$C$334+1+$B168,0,IF(U55<'1 Données d''entrée'!$C$333+'1 Données d''entrée'!$C$334+1+$B168,$G161*('1 Données d''entrée'!$C$332*(1+'1 Données d''entrée'!$C$332)^'1 Données d''entrée'!$C$333)/((1+'1 Données d''entrée'!$C$332)^'1 Données d''entrée'!$C$333-1),0))","v":0},{"$f":"IF(V55<'1 Données d''entrée'!$C$334+1+$B168,0,IF(V55<'1 Données d''entrée'!$C$333+'1 Données d''entrée'!$C$334+1+$B168,$G161*('1 Données d''entrée'!$C$332*(1+'1 Données d''entrée'!$C$332)^'1 Données d''entrée'!$C$333)/((1+'1 Données d''entrée'!$C$332)^'1 Données d''entrée'!$C$333-1),0))","v":0}]
[null,6,{"$f":"IF(C$54<'1 Données d''entrée'!$C$334+1+$B169,0,IF(C$54<'1 Données d''entrée'!$C$333+'1 Données d''entrée'!$C$334+1+$B169,$H$160*('1 Données d''entrée'!$C$332*(1+'1 Données d''entrée'!$C$332)^'1 Données d''entrée'!$C$333)/((1+'1 Données d''entrée'!$C$332)^'1 Données d''entrée'!$C$333-1),0))","v":0},{"$f":"IF(D55<'1 Données d''entrée'!$C$334+1+$B169,0,IF(D55<'1 Données d''entrée'!$C$333+'1 Données d''entrée'!$C$334+1+$B169,$H161*('1 Données d''entrée'!$C$332*(1+'1 Données d''entrée'!$C$332)^'1 Données d''entrée'!$C$333)/((1+'1 Données d''entrée'!$C$332)^'1 Données d''entrée'!$C$333-1),0))","v":0},{"$f":"IF(E55<'1 Données d''entrée'!$C$334+1+$B169,0,IF(E55<'1 Données d''entrée'!$C$333+'1 Données d''entrée'!$C$334+1+$B169,$H161*('1 Données d''entrée'!$C$332*(1+'1 Données d''entrée'!$C$332)^'1 Données d''entrée'!$C$333)/((1+'1 Données d''entrée'!$C$332)^'1 Données d''entrée'!$C$333-1),0))","v":0},{"$f":"IF(F55<'1 Données d''entrée'!$C$334+1+$B169,0,IF(F55<'1 Données d''entrée'!$C$333+'1 Données d''entrée'!$C$334+1+$B169,$H161*('1 Données d''entrée'!$C$332*(1+'1 Données d''entrée'!$C$332)^'1 Données d''entrée'!$C$333)/((1+'1 Données d''entrée'!$C$332)^'1 Données d''entrée'!$C$333-1),0))","v":0},{"$f":"IF(G55<'1 Données d''entrée'!$C$334+1+$B169,0,IF(G55<'1 Données d''entrée'!$C$333+'1 Données d''entrée'!$C$334+1+$B169,$H161*('1 Données d''entrée'!$C$332*(1+'1 Données d''entrée'!$C$332)^'1 Données d''entrée'!$C$333)/((1+'1 Données d''entrée'!$C$332)^'1 Données d''entrée'!$C$333-1),0))","v":0},{"$f":"IF(H55<'1 Données d''entrée'!$C$334+1+$B169,0,IF(H55<'1 Données d''entrée'!$C$333+'1 Données d''entrée'!$C$334+1+$B169,$H161*('1 Données d''entrée'!$C$332*(1+'1 Données d''entrée'!$C$332)^'1 Données d''entrée'!$C$333)/((1+'1 Données d''entrée'!$C$332)^'1 Données d''entrée'!$C$333-1),0))","v":0},{"$f":"IF(I55<'1 Données d''entrée'!$C$334+1+$B169,0,IF(I55<'1 Données d''entrée'!$C$333+'1 Données d''entrée'!$C$334+1+$B169,$H161*('1 Données d''entrée'!$C$332*(1+'1 Données d''entrée'!$C$332)^'1 Données d''entrée'!$C$333)/((1+'1 Données d''entrée'!$C$332)^'1 Données d''entrée'!$C$333-1),0))","v":0},{"$f":"IF(J55<'1 Données d''entrée'!$C$334+1+$B169,0,IF(J55<'1 Données d''entrée'!$C$333+'1 Données d''entrée'!$C$334+1+$B169,$H161*('1 Données d''entrée'!$C$332*(1+'1 Données d''entrée'!$C$332)^'1 Données d''entrée'!$C$333)/((1+'1 Données d''entrée'!$C$332)^'1 Données d''entrée'!$C$333-1),0))","v":0},{"$f":"IF(K55<'1 Données d''entrée'!$C$334+1+$B169,0,IF(K55<'1 Données d''entrée'!$C$333+'1 Données d''entrée'!$C$334+1+$B169,$H161*('1 Données d''entrée'!$C$332*(1+'1 Données d''entrée'!$C$332)^'1 Données d''entrée'!$C$333)/((1+'1 Données d''entrée'!$C$332)^'1 Données d''entrée'!$C$333-1),0))","v":0},{"$f":"IF(L55<'1 Données d''entrée'!$C$334+1+$B169,0,IF(L55<'1 Données d''entrée'!$C$333+'1 Données d''entrée'!$C$334+1+$B169,$H161*('1 Données d''entrée'!$C$332*(1+'1 Données d''entrée'!$C$332)^'1 Données d''entrée'!$C$333)/((1+'1 Données d''entrée'!$C$332)^'1 Données d''entrée'!$C$333-1),0))","v":0},{"$f":"IF(M55<'1 Données d''entrée'!$C$334+1+$B169,0,IF(M55<'1 Données d''entrée'!$C$333+'1 Données d''entrée'!$C$334+1+$B169,$H161*('1 Données d''entrée'!$C$332*(1+'1 Données d''entrée'!$C$332)^'1 Données d''entrée'!$C$333)/((1+'1 Données d''entrée'!$C$332)^'1 Données d''entrée'!$C$333-1),0))","v":0},{"$f":"IF(N55<'1 Données d''entrée'!$C$334+1+$B169,0,IF(N55<'1 Données d''entrée'!$C$333+'1 Données d''entrée'!$C$334+1+$B169,$H161*('1 Données d''entrée'!$C$332*(1+'1 Données d''entrée'!$C$332)^'1 Données d''entrée'!$C$333)/((1+'1 Données d''entrée'!$C$332)^'1 Données d''entrée'!$C$333-1),0))","v":0},{"$f":"IF(O55<'1 Données d''entrée'!$C$334+1+$B169,0,IF(O55<'1 Données d''entrée'!$C$333+'1 Données d''entrée'!$C$334+1+$B169,$H161*('1 Données d''entrée'!$C$332*(1+'1 Données d''entrée'!$C$332)^'1 Données d''entrée'!$C$333)/((1+'1 Données d''entrée'!$C$332)^'1 Données d''entrée'!$C$333-1),0))","v":0},{"$f":"IF(P55<'1 Données d''entrée'!$C$334+1+$B169,0,IF(P55<'1 Données d''entrée'!$C$333+'1 Données d''entrée'!$C$334+1+$B169,$H161*('1 Données d''entrée'!$C$332*(1+'1 Données d''entrée'!$C$332)^'1 Données d''entrée'!$C$333)/((1+'1 Données d''entrée'!$C$332)^'1 Données d''entrée'!$C$333-1),0))","v":0},{"$f":"IF(Q55<'1 Données d''entrée'!$C$334+1+$B169,0,IF(Q55<'1 Données d''entrée'!$C$333+'1 Données d''entrée'!$C$334+1+$B169,$H161*('1 Données d''entrée'!$C$332*(1+'1 Données d''entrée'!$C$332)^'1 Données d''entrée'!$C$333)/((1+'1 Données d''entrée'!$C$332)^'1 Données d''entrée'!$C$333-1),0))","v":0},{"$f":"IF(R55<'1 Données d''entrée'!$C$334+1+$B169,0,IF(R55<'1 Données d''entrée'!$C$333+'1 Données d''entrée'!$C$334+1+$B169,$H161*('1 Données d''entrée'!$C$332*(1+'1 Données d''entrée'!$C$332)^'1 Données d''entrée'!$C$333)/((1+'1 Données d''entrée'!$C$332)^'1 Données d''entrée'!$C$333-1),0))","v":0},{"$f":"IF(S55<'1 Données d''entrée'!$C$334+1+$B169,0,IF(S55<'1 Données d''entrée'!$C$333+'1 Données d''entrée'!$C$334+1+$B169,$H161*('1 Données d''entrée'!$C$332*(1+'1 Données d''entrée'!$C$332)^'1 Données d''entrée'!$C$333)/((1+'1 Données d''entrée'!$C$332)^'1 Données d''entrée'!$C$333-1),0))","v":0},{"$f":"IF(T55<'1 Données d''entrée'!$C$334+1+$B169,0,IF(T55<'1 Données d''entrée'!$C$333+'1 Données d''entrée'!$C$334+1+$B169,$H161*('1 Données d''entrée'!$C$332*(1+'1 Données d''entrée'!$C$332)^'1 Données d''entrée'!$C$333)/((1+'1 Données d''entrée'!$C$332)^'1 Données d''entrée'!$C$333-1),0))","v":0},{"$f":"IF(U55<'1 Données d''entrée'!$C$334+1+$B169,0,IF(U55<'1 Données d''entrée'!$C$333+'1 Données d''entrée'!$C$334+1+$B169,$H161*('1 Données d''entrée'!$C$332*(1+'1 Données d''entrée'!$C$332)^'1 Données d''entrée'!$C$333)/((1+'1 Données d''entrée'!$C$332)^'1 Données d''entrée'!$C$333-1),0))","v":0},{"$f":"IF(V55<'1 Données d''entrée'!$C$334+1+$B169,0,IF(V55<'1 Données d''entrée'!$C$333+'1 Données d''entrée'!$C$334+1+$B169,$H161*('1 Données d''entrée'!$C$332*(1+'1 Données d''entrée'!$C$332)^'1 Données d''entrée'!$C$333)/((1+'1 Données d''entrée'!$C$332)^'1 Données d''entrée'!$C$333-1),0))","v":0}]
[null,7,{"$f":"IF(C$54<'1 Données d''entrée'!$C$334+1+$B170,0,IF(C$54<'1 Données d''entrée'!$C$333+'1 Données d''entrée'!$C$334+1+$B170,$I$160*('1 Données d''entrée'!$C$332*(1+'1 Données d''entrée'!$C$332)^'1 Données d''entrée'!$C$333)/((1+'1 Données d''entrée'!$C$332)^'1 Données d''entrée'!$C$333-1),0))","v":0},{"$f":"IF(D55<'1 Données d''entrée'!$C$334+1+$B170,0,IF(D55<'1 Données d''entrée'!$C$333+'1 Données d''entrée'!$C$334+1+$B170,$I161*('1 Données d''entrée'!$C$332*(1+'1 Données d''entrée'!$C$332)^'1 Données d''entrée'!$C$333)/((1+'1 Données d''entrée'!$C$332)^'1 Données d''entrée'!$C$333-1),0))","v":0},{"$f":"IF(E55<'1 Données d''entrée'!$C$334+1+$B170,0,IF(E55<'1 Données d''entrée'!$C$333+'1 Données d''entrée'!$C$334+1+$B170,$I161*('1 Données d''entrée'!$C$332*(1+'1 Données d''entrée'!$C$332)^'1 Données d''entrée'!$C$333)/((1+'1 Données d''entrée'!$C$332)^'1 Données d''entrée'!$C$333-1),0))","v":0},{"$f":"IF(F55<'1 Données d''entrée'!$C$334+1+$B170,0,IF(F55<'1 Données d''entrée'!$C$333+'1 Données d''entrée'!$C$334+1+$B170,$I161*('1 Données d''entrée'!$C$332*(1+'1 Données d''entrée'!$C$332)^'1 Données d''entrée'!$C$333)/((1+'1 Données d''entrée'!$C$332)^'1 Données d''entrée'!$C$333-1),0))","v":0},{"$f":"IF(G55<'1 Données d''entrée'!$C$334+1+$B170,0,IF(G55<'1 Données d''entrée'!$C$333+'1 Données d''entrée'!$C$334+1+$B170,$I161*('1 Données d''entrée'!$C$332*(1+'1 Données d''entrée'!$C$332)^'1 Données d''entrée'!$C$333)/((1+'1 Données d''entrée'!$C$332)^'1 Données d''entrée'!$C$333-1),0))","v":0},{"$f":"IF(H55<'1 Données d''entrée'!$C$334+1+$B170,0,IF(H55<'1 Données d''entrée'!$C$333+'1 Données d''entrée'!$C$334+1+$B170,$I161*('1 Données d''entrée'!$C$332*(1+'1 Données d''entrée'!$C$332)^'1 Données d''entrée'!$C$333)/((1+'1 Données d''entrée'!$C$332)^'1 Données d''entrée'!$C$333-1),0))","v":0},{"$f":"IF(I55<'1 Données d''entrée'!$C$334+1+$B170,0,IF(I55<'1 Données d''entrée'!$C$333+'1 Données d''entrée'!$C$334+1+$B170,$I161*('1 Données d''entrée'!$C$332*(1+'1 Données d''entrée'!$C$332)^'1 Données d''entrée'!$C$333)/((1+'1 Données d''entrée'!$C$332)^'1 Données d''entrée'!$C$333-1),0))","v":0},{"$f":"IF(J55<'1 Données d''entrée'!$C$334+1+$B170,0,IF(J55<'1 Données d''entrée'!$C$333+'1 Données d''entrée'!$C$334+1+$B170,$I161*('1 Données d''entrée'!$C$332*(1+'1 Données d''entrée'!$C$332)^'1 Données d''entrée'!$C$333)/((1+'1 Données d''entrée'!$C$332)^'1 Données d''entrée'!$C$333-1),0))","v":0},{"$f":"IF(K55<'1 Données d''entrée'!$C$334+1+$B170,0,IF(K55<'1 Données d''entrée'!$C$333+'1 Données d''entrée'!$C$334+1+$B170,$I161*('1 Données d''entrée'!$C$332*(1+'1 Données d''entrée'!$C$332)^'1 Données d''entrée'!$C$333)/((1+'1 Données d''entrée'!$C$332)^'1 Données d''entrée'!$C$333-1),0))","v":0},{"$f":"IF(L55<'1 Données d''entrée'!$C$334+1+$B170,0,IF(L55<'1 Données d''entrée'!$C$333+'1 Données d''entrée'!$C$334+1+$B170,$I161*('1 Données d''entrée'!$C$332*(1+'1 Données d''entrée'!$C$332)^'1 Données d''entrée'!$C$333)/((1+'1 Données d''entrée'!$C$332)^'1 Données d''entrée'!$C$333-1),0))","v":0},{"$f":"IF(M55<'1 Données d''entrée'!$C$334+1+$B170,0,IF(M55<'1 Données d''entrée'!$C$333+'1 Données d''entrée'!$C$334+1+$B170,$I161*('1 Données d''entrée'!$C$332*(1+'1 Données d''entrée'!$C$332)^'1 Données d''entrée'!$C$333)/((1+'1 Données d''entrée'!$C$332)^'1 Données d''entrée'!$C$333-1),0))","v":0},{"$f":"IF(N55<'1 Données d''entrée'!$C$334+1+$B170,0,IF(N55<'1 Données d''entrée'!$C$333+'1 Données d''entrée'!$C$334+1+$B170,$I161*('1 Données d''entrée'!$C$332*(1+'1 Données d''entrée'!$C$332)^'1 Données d''entrée'!$C$333)/((1+'1 Données d''entrée'!$C$332)^'1 Données d''entrée'!$C$333-1),0))","v":0},{"$f":"IF(O55<'1 Données d''entrée'!$C$334+1+$B170,0,IF(O55<'1 Données d''entrée'!$C$333+'1 Données d''entrée'!$C$334+1+$B170,$I161*('1 Données d''entrée'!$C$332*(1+'1 Données d''entrée'!$C$332)^'1 Données d''entrée'!$C$333)/((1+'1 Données d''entrée'!$C$332)^'1 Données d''entrée'!$C$333-1),0))","v":0},{"$f":"IF(P55<'1 Données d''entrée'!$C$334+1+$B170,0,IF(P55<'1 Données d''entrée'!$C$333+'1 Données d''entrée'!$C$334+1+$B170,$I161*('1 Données d''entrée'!$C$332*(1+'1 Données d''entrée'!$C$332)^'1 Données d''entrée'!$C$333)/((1+'1 Données d''entrée'!$C$332)^'1 Données d''entrée'!$C$333-1),0))","v":0},{"$f":"IF(Q55<'1 Données d''entrée'!$C$334+1+$B170,0,IF(Q55<'1 Données d''entrée'!$C$333+'1 Données d''entrée'!$C$334+1+$B170,$I161*('1 Données d''entrée'!$C$332*(1+'1 Données d''entrée'!$C$332)^'1 Données d''entrée'!$C$333)/((1+'1 Données d''entrée'!$C$332)^'1 Données d''entrée'!$C$333-1),0))","v":0},{"$f":"IF(R55<'1 Données d''entrée'!$C$334+1+$B170,0,IF(R55<'1 Données d''entrée'!$C$333+'1 Données d''entrée'!$C$334+1+$B170,$I161*('1 Données d''entrée'!$C$332*(1+'1 Données d''entrée'!$C$332)^'1 Données d''entrée'!$C$333)/((1+'1 Données d''entrée'!$C$332)^'1 Données d''entrée'!$C$333-1),0))","v":0},{"$f":"IF(S55<'1 Données d''entrée'!$C$334+1+$B170,0,IF(S55<'1 Données d''entrée'!$C$333+'1 Données d''entrée'!$C$334+1+$B170,$I161*('1 Données d''entrée'!$C$332*(1+'1 Données d''entrée'!$C$332)^'1 Données d''entrée'!$C$333)/((1+'1 Données d''entrée'!$C$332)^'1 Données d''entrée'!$C$333-1),0))","v":0},{"$f":"IF(T55<'1 Données d''entrée'!$C$334+1+$B170,0,IF(T55<'1 Données d''entrée'!$C$333+'1 Données d''entrée'!$C$334+1+$B170,$I161*('1 Données d''entrée'!$C$332*(1+'1 Données d''entrée'!$C$332)^'1 Données d''entrée'!$C$333)/((1+'1 Données d''entrée'!$C$332)^'1 Données d''entrée'!$C$333-1),0))","v":0},{"$f":"IF(U55<'1 Données d''entrée'!$C$334+1+$B170,0,IF(U55<'1 Données d''entrée'!$C$333+'1 Données d''entrée'!$C$334+1+$B170,$I161*('1 Données d''entrée'!$C$332*(1+'1 Données d''entrée'!$C$332)^'1 Données d''entrée'!$C$333)/((1+'1 Données d''entrée'!$C$332)^'1 Données d''entrée'!$C$333-1),0))","v":0},{"$f":"IF(V55<'1 Données d''entrée'!$C$334+1+$B170,0,IF(V55<'1 Données d''entrée'!$C$333+'1 Données d''entrée'!$C$334+1+$B170,$I161*('1 Données d''entrée'!$C$332*(1+'1 Données d''entrée'!$C$332)^'1 Données d''entrée'!$C$333)/((1+'1 Données d''entrée'!$C$332)^'1 Données d''entrée'!$C$333-1),0))","v":0}]
[null,8,{"$f":"IF(C$54<'1 Données d''entrée'!$C$334+1+$B171,0,IF(C$54<'1 Données d''entrée'!$C$333+'1 Données d''entrée'!$C$334+1+$B171,$J$160*('1 Données d''entrée'!$C$332*(1+'1 Données d''entrée'!$C$332)^'1 Données d''entrée'!$C$333)/((1+'1 Données d''entrée'!$C$332)^'1 Données d''entrée'!$C$333-1),0))","v":0},{"$f":"IF(D55<'1 Données d''entrée'!$C$334+1+$B171,0,IF(D55<'1 Données d''entrée'!$C$333+'1 Données d''entrée'!$C$334+1+$B171,$J161*('1 Données d''entrée'!$C$332*(1+'1 Données d''entrée'!$C$332)^'1 Données d''entrée'!$C$333)/((1+'1 Données d''entrée'!$C$332)^'1 Données d''entrée'!$C$333-1),0))","v":0},{"$f":"IF(E55<'1 Données d''entrée'!$C$334+1+$B171,0,IF(E55<'1 Données d''entrée'!$C$333+'1 Données d''entrée'!$C$334+1+$B171,$J161*('1 Données d''entrée'!$C$332*(1+'1 Données d''entrée'!$C$332)^'1 Données d''entrée'!$C$333)/((1+'1 Données d''entrée'!$C$332)^'1 Données d''entrée'!$C$333-1),0))","v":0},{"$f":"IF(F55<'1 Données d''entrée'!$C$334+1+$B171,0,IF(F55<'1 Données d''entrée'!$C$333+'1 Données d''entrée'!$C$334+1+$B171,$J161*('1 Données d''entrée'!$C$332*(1+'1 Données d''entrée'!$C$332)^'1 Données d''entrée'!$C$333)/((1+'1 Données d''entrée'!$C$332)^'1 Données d''entrée'!$C$333-1),0))","v":0},{"$f":"IF(G55<'1 Données d''entrée'!$C$334+1+$B171,0,IF(G55<'1 Données d''entrée'!$C$333+'1 Données d''entrée'!$C$334+1+$B171,$J161*('1 Données d''entrée'!$C$332*(1+'1 Données d''entrée'!$C$332)^'1 Données d''entrée'!$C$333)/((1+'1 Données d''entrée'!$C$332)^'1 Données d''entrée'!$C$333-1),0))","v":0},{"$f":"IF(H55<'1 Données d''entrée'!$C$334+1+$B171,0,IF(H55<'1 Données d''entrée'!$C$333+'1 Données d''entrée'!$C$334+1+$B171,$J161*('1 Données d''entrée'!$C$332*(1+'1 Données d''entrée'!$C$332)^'1 Données d''entrée'!$C$333)/((1+'1 Données d''entrée'!$C$332)^'1 Données d''entrée'!$C$333-1),0))","v":0},{"$f":"IF(I55<'1 Données d''entrée'!$C$334+1+$B171,0,IF(I55<'1 Données d''entrée'!$C$333+'1 Données d''entrée'!$C$334+1+$B171,$J161*('1 Données d''entrée'!$C$332*(1+'1 Données d''entrée'!$C$332)^'1 Données d''entrée'!$C$333)/((1+'1 Données d''entrée'!$C$332)^'1 Données d''entrée'!$C$333-1),0))","v":0},{"$f":"IF(J55<'1 Données d''entrée'!$C$334+1+$B171,0,IF(J55<'1 Données d''entrée'!$C$333+'1 Données d''entrée'!$C$334+1+$B171,$J161*('1 Données d''entrée'!$C$332*(1+'1 Données d''entrée'!$C$332)^'1 Données d''entrée'!$C$333)/((1+'1 Données d''entrée'!$C$332)^'1 Données d''entrée'!$C$333-1),0))","v":0},{"$f":"IF(K55<'1 Données d''entrée'!$C$334+1+$B171,0,IF(K55<'1 Données d''entrée'!$C$333+'1 Données d''entrée'!$C$334+1+$B171,$J161*('1 Données d''entrée'!$C$332*(1+'1 Données d''entrée'!$C$332)^'1 Données d''entrée'!$C$333)/((1+'1 Données d''entrée'!$C$332)^'1 Données d''entrée'!$C$333-1),0))","v":0},{"$f":"IF(L55<'1 Données d''entrée'!$C$334+1+$B171,0,IF(L55<'1 Données d''entrée'!$C$333+'1 Données d''entrée'!$C$334+1+$B171,$J161*('1 Données d''entrée'!$C$332*(1+'1 Données d''entrée'!$C$332)^'1 Données d''entrée'!$C$333)/((1+'1 Données d''entrée'!$C$332)^'1 Données d''entrée'!$C$333-1),0))","v":0},{"$f":"IF(M55<'1 Données d''entrée'!$C$334+1+$B171,0,IF(M55<'1 Données d''entrée'!$C$333+'1 Données d''entrée'!$C$334+1+$B171,$J161*('1 Données d''entrée'!$C$332*(1+'1 Données d''entrée'!$C$332)^'1 Données d''entrée'!$C$333)/((1+'1 Données d''entrée'!$C$332)^'1 Données d''entrée'!$C$333-1),0))","v":0},{"$f":"IF(N55<'1 Données d''entrée'!$C$334+1+$B171,0,IF(N55<'1 Données d''entrée'!$C$333+'1 Données d''entrée'!$C$334+1+$B171,$J161*('1 Données d''entrée'!$C$332*(1+'1 Données d''entrée'!$C$332)^'1 Données d''entrée'!$C$333)/((1+'1 Données d''entrée'!$C$332)^'1 Données d''entrée'!$C$333-1),0))","v":0},{"$f":"IF(O55<'1 Données d''entrée'!$C$334+1+$B171,0,IF(O55<'1 Données d''entrée'!$C$333+'1 Données d''entrée'!$C$334+1+$B171,$J161*('1 Données d''entrée'!$C$332*(1+'1 Données d''entrée'!$C$332)^'1 Données d''entrée'!$C$333)/((1+'1 Données d''entrée'!$C$332)^'1 Données d''entrée'!$C$333-1),0))","v":0},{"$f":"IF(P55<'1 Données d''entrée'!$C$334+1+$B171,0,IF(P55<'1 Données d''entrée'!$C$333+'1 Données d''entrée'!$C$334+1+$B171,$J161*('1 Données d''entrée'!$C$332*(1+'1 Données d''entrée'!$C$332)^'1 Données d''entrée'!$C$333)/((1+'1 Données d''entrée'!$C$332)^'1 Données d''entrée'!$C$333-1),0))","v":0},{"$f":"IF(Q55<'1 Données d''entrée'!$C$334+1+$B171,0,IF(Q55<'1 Données d''entrée'!$C$333+'1 Données d''entrée'!$C$334+1+$B171,$J161*('1 Données d''entrée'!$C$332*(1+'1 Données d''entrée'!$C$332)^'1 Données d''entrée'!$C$333)/((1+'1 Données d''entrée'!$C$332)^'1 Données d''entrée'!$C$333-1),0))","v":0},{"$f":"IF(R55<'1 Données d''entrée'!$C$334+1+$B171,0,IF(R55<'1 Données d''entrée'!$C$333+'1 Données d''entrée'!$C$334+1+$B171,$J161*('1 Données d''entrée'!$C$332*(1+'1 Données d''entrée'!$C$332)^'1 Données d''entrée'!$C$333)/((1+'1 Données d''entrée'!$C$332)^'1 Données d''entrée'!$C$333-1),0))","v":0},{"$f":"IF(S55<'1 Données d''entrée'!$C$334+1+$B171,0,IF(S55<'1 Données d''entrée'!$C$333+'1 Données d''entrée'!$C$334+1+$B171,$J161*('1 Données d''entrée'!$C$332*(1+'1 Données d''entrée'!$C$332)^'1 Données d''entrée'!$C$333)/((1+'1 Données d''entrée'!$C$332)^'1 Données d''entrée'!$C$333-1),0))","v":0},{"$f":"IF(T55<'1 Données d''entrée'!$C$334+1+$B171,0,IF(T55<'1 Données d''entrée'!$C$333+'1 Données d''entrée'!$C$334+1+$B171,$J161*('1 Données d''entrée'!$C$332*(1+'1 Données d''entrée'!$C$332)^'1 Données d''entrée'!$C$333)/((1+'1 Données d''entrée'!$C$332)^'1 Données d''entrée'!$C$333-1),0))","v":0},{"$f":"IF(U55<'1 Données d''entrée'!$C$334+1+$B171,0,IF(U55<'1 Données d''entrée'!$C$333+'1 Données d''entrée'!$C$334+1+$B171,$J161*('1 Données d''entrée'!$C$332*(1+'1 Données d''entrée'!$C$332)^'1 Données d''entrée'!$C$333)/((1+'1 Données d''entrée'!$C$332)^'1 Données d''entrée'!$C$333-1),0))","v":0},{"$f":"IF(V55<'1 Données d''entrée'!$C$334+1+$B171,0,IF(V55<'1 Données d''entrée'!$C$333+'1 Données d''entrée'!$C$334+1+$B171,$J161*('1 Données d''entrée'!$C$332*(1+'1 Données d''entrée'!$C$332)^'1 Données d''entrée'!$C$333)/((1+'1 Données d''entrée'!$C$332)^'1 Données d''entrée'!$C$333-1),0))","v":0}]
[null,9,{"$f":"IF(C$54<'1 Données d''entrée'!$C$334+1+$B172,0,IF(C$54<'1 Données d''entrée'!$C$333+'1 Données d''entrée'!$C$334+1+$B172,$K$160*('1 Données d''entrée'!$C$332*(1+'1 Données d''entrée'!$C$332)^'1 Données d''entrée'!$C$333)/((1+'1 Données d''entrée'!$C$332)^'1 Données d''entrée'!$C$333-1),0))","v":0},{"$f":"IF(D55<'1 Données d''entrée'!$C$334+1+$B172,0,IF(D55<'1 Données d''entrée'!$C$333+'1 Données d''entrée'!$C$334+1+$B172,$K161*('1 Données d''entrée'!$C$332*(1+'1 Données d''entrée'!$C$332)^'1 Données d''entrée'!$C$333)/((1+'1 Données d''entrée'!$C$332)^'1 Données d''entrée'!$C$333-1),0))","v":0},{"$f":"IF(E55<'1 Données d''entrée'!$C$334+1+$B172,0,IF(E55<'1 Données d''entrée'!$C$333+'1 Données d''entrée'!$C$334+1+$B172,$K161*('1 Données d''entrée'!$C$332*(1+'1 Données d''entrée'!$C$332)^'1 Données d''entrée'!$C$333)/((1+'1 Données d''entrée'!$C$332)^'1 Données d''entrée'!$C$333-1),0))","v":0},{"$f":"IF(F55<'1 Données d''entrée'!$C$334+1+$B172,0,IF(F55<'1 Données d''entrée'!$C$333+'1 Données d''entrée'!$C$334+1+$B172,$K161*('1 Données d''entrée'!$C$332*(1+'1 Données d''entrée'!$C$332)^'1 Données d''entrée'!$C$333)/((1+'1 Données d''entrée'!$C$332)^'1 Données d''entrée'!$C$333-1),0))","v":0},{"$f":"IF(G55<'1 Données d''entrée'!$C$334+1+$B172,0,IF(G55<'1 Données d''entrée'!$C$333+'1 Données d''entrée'!$C$334+1+$B172,$K161*('1 Données d''entrée'!$C$332*(1+'1 Données d''entrée'!$C$332)^'1 Données d''entrée'!$C$333)/((1+'1 Données d''entrée'!$C$332)^'1 Données d''entrée'!$C$333-1),0))","v":0},{"$f":"IF(H55<'1 Données d''entrée'!$C$334+1+$B172,0,IF(H55<'1 Données d''entrée'!$C$333+'1 Données d''entrée'!$C$334+1+$B172,$K161*('1 Données d''entrée'!$C$332*(1+'1 Données d''entrée'!$C$332)^'1 Données d''entrée'!$C$333)/((1+'1 Données d''entrée'!$C$332)^'1 Données d''entrée'!$C$333-1),0))","v":0},{"$f":"IF(I55<'1 Données d''entrée'!$C$334+1+$B172,0,IF(I55<'1 Données d''entrée'!$C$333+'1 Données d''entrée'!$C$334+1+$B172,$K161*('1 Données d''entrée'!$C$332*(1+'1 Données d''entrée'!$C$332)^'1 Données d''entrée'!$C$333)/((1+'1 Données d''entrée'!$C$332)^'1 Données d''entrée'!$C$333-1),0))","v":0},{"$f":"IF(J55<'1 Données d''entrée'!$C$334+1+$B172,0,IF(J55<'1 Données d''entrée'!$C$333+'1 Données d''entrée'!$C$334+1+$B172,$K161*('1 Données d''entrée'!$C$332*(1+'1 Données d''entrée'!$C$332)^'1 Données d''entrée'!$C$333)/((1+'1 Données d''entrée'!$C$332)^'1 Données d''entrée'!$C$333-1),0))","v":0},{"$f":"IF(K55<'1 Données d''entrée'!$C$334+1+$B172,0,IF(K55<'1 Données d''entrée'!$C$333+'1 Données d''entrée'!$C$334+1+$B172,$K161*('1 Données d''entrée'!$C$332*(1+'1 Données d''entrée'!$C$332)^'1 Données d''entrée'!$C$333)/((1+'1 Données d''entrée'!$C$332)^'1 Données d''entrée'!$C$333-1),0))","v":0},{"$f":"IF(L55<'1 Données d''entrée'!$C$334+1+$B172,0,IF(L55<'1 Données d''entrée'!$C$333+'1 Données d''entrée'!$C$334+1+$B172,$K161*('1 Données d''entrée'!$C$332*(1+'1 Données d''entrée'!$C$332)^'1 Données d''entrée'!$C$333)/((1+'1 Données d''entrée'!$C$332)^'1 Données d''entrée'!$C$333-1),0))","v":0},{"$f":"IF(M55<'1 Données d''entrée'!$C$334+1+$B172,0,IF(M55<'1 Données d''entrée'!$C$333+'1 Données d''entrée'!$C$334+1+$B172,$K161*('1 Données d''entrée'!$C$332*(1+'1 Données d''entrée'!$C$332)^'1 Données d''entrée'!$C$333)/((1+'1 Données d''entrée'!$C$332)^'1 Données d''entrée'!$C$333-1),0))","v":0},{"$f":"IF(N55<'1 Données d''entrée'!$C$334+1+$B172,0,IF(N55<'1 Données d''entrée'!$C$333+'1 Données d''entrée'!$C$334+1+$B172,$K161*('1 Données d''entrée'!$C$332*(1+'1 Données d''entrée'!$C$332)^'1 Données d''entrée'!$C$333)/((1+'1 Données d''entrée'!$C$332)^'1 Données d''entrée'!$C$333-1),0))","v":0},{"$f":"IF(O55<'1 Données d''entrée'!$C$334+1+$B172,0,IF(O55<'1 Données d''entrée'!$C$333+'1 Données d''entrée'!$C$334+1+$B172,$K161*('1 Données d''entrée'!$C$332*(1+'1 Données d''entrée'!$C$332)^'1 Données d''entrée'!$C$333)/((1+'1 Données d''entrée'!$C$332)^'1 Données d''entrée'!$C$333-1),0))","v":0},{"$f":"IF(P55<'1 Données d''entrée'!$C$334+1+$B172,0,IF(P55<'1 Données d''entrée'!$C$333+'1 Données d''entrée'!$C$334+1+$B172,$K161*('1 Données d''entrée'!$C$332*(1+'1 Données d''entrée'!$C$332)^'1 Données d''entrée'!$C$333)/((1+'1 Données d''entrée'!$C$332)^'1 Données d''entrée'!$C$333-1),0))","v":0},{"$f":"IF(Q55<'1 Données d''entrée'!$C$334+1+$B172,0,IF(Q55<'1 Données d''entrée'!$C$333+'1 Données d''entrée'!$C$334+1+$B172,$K161*('1 Données d''entrée'!$C$332*(1+'1 Données d''entrée'!$C$332)^'1 Données d''entrée'!$C$333)/((1+'1 Données d''entrée'!$C$332)^'1 Données d''entrée'!$C$333-1),0))","v":0},{"$f":"IF(R55<'1 Données d''entrée'!$C$334+1+$B172,0,IF(R55<'1 Données d''entrée'!$C$333+'1 Données d''entrée'!$C$334+1+$B172,$K161*('1 Données d''entrée'!$C$332*(1+'1 Données d''entrée'!$C$332)^'1 Données d''entrée'!$C$333)/((1+'1 Données d''entrée'!$C$332)^'1 Données d''entrée'!$C$333-1),0))","v":0},{"$f":"IF(S55<'1 Données d''entrée'!$C$334+1+$B172,0,IF(S55<'1 Données d''entrée'!$C$333+'1 Données d''entrée'!$C$334+1+$B172,$K161*('1 Données d''entrée'!$C$332*(1+'1 Données d''entrée'!$C$332)^'1 Données d''entrée'!$C$333)/((1+'1 Données d''entrée'!$C$332)^'1 Données d''entrée'!$C$333-1),0))","v":0},{"$f":"IF(T55<'1 Données d''entrée'!$C$334+1+$B172,0,IF(T55<'1 Données d''entrée'!$C$333+'1 Données d''entrée'!$C$334+1+$B172,$K161*('1 Données d''entrée'!$C$332*(1+'1 Données d''entrée'!$C$332)^'1 Données d''entrée'!$C$333)/((1+'1 Données d''entrée'!$C$332)^'1 Données d''entrée'!$C$333-1),0))","v":0},{"$f":"IF(U55<'1 Données d''entrée'!$C$334+1+$B172,0,IF(U55<'1 Données d''entrée'!$C$333+'1 Données d''entrée'!$C$334+1+$B172,$K161*('1 Données d''entrée'!$C$332*(1+'1 Données d''entrée'!$C$332)^'1 Données d''entrée'!$C$333)/((1+'1 Données d''entrée'!$C$332)^'1 Données d''entrée'!$C$333-1),0))","v":0},{"$f":"IF(V55<'1 Données d''entrée'!$C$334+1+$B172,0,IF(V55<'1 Données d''entrée'!$C$333+'1 Données d''entrée'!$C$334+1+$B172,$K161*('1 Données d''entrée'!$C$332*(1+'1 Données d''entrée'!$C$332)^'1 Données d''entrée'!$C$333)/((1+'1 Données d''entrée'!$C$332)^'1 Données d''entrée'!$C$333-1),0))","v":0}]
[null,10,{"$f":"IF(C$54<'1 Données d''entrée'!$C$334+1+$B173,0,IF(C$54<'1 Données d''entrée'!$C$333+'1 Données d''entrée'!$C$334+1+$B173,$L$160*('1 Données d''entrée'!$C$332*(1+'1 Données d''entrée'!$C$332)^'1 Données d''entrée'!$C$333)/((1+'1 Données d''entrée'!$C$332)^'1 Données d''entrée'!$C$333-1),0))","v":0},{"$f":"IF(D55<'1 Données d''entrée'!$C$334+1+$B173,0,IF(D55<'1 Données d''entrée'!$C$333+'1 Données d''entrée'!$C$334+1+$B173,$L161*('1 Données d''entrée'!$C$332*(1+'1 Données d''entrée'!$C$332)^'1 Données d''entrée'!$C$333)/((1+'1 Données d''entrée'!$C$332)^'1 Données d''entrée'!$C$333-1),0))","v":0},{"$f":"IF(E55<'1 Données d''entrée'!$C$334+1+$B173,0,IF(E55<'1 Données d''entrée'!$C$333+'1 Données d''entrée'!$C$334+1+$B173,$L161*('1 Données d''entrée'!$C$332*(1+'1 Données d''entrée'!$C$332)^'1 Données d''entrée'!$C$333)/((1+'1 Données d''entrée'!$C$332)^'1 Données d''entrée'!$C$333-1),0))","v":0},{"$f":"IF(F55<'1 Données d''entrée'!$C$334+1+$B173,0,IF(F55<'1 Données d''entrée'!$C$333+'1 Données d''entrée'!$C$334+1+$B173,$L161*('1 Données d''entrée'!$C$332*(1+'1 Données d''entrée'!$C$332)^'1 Données d''entrée'!$C$333)/((1+'1 Données d''entrée'!$C$332)^'1 Données d''entrée'!$C$333-1),0))","v":0},{"$f":"IF(G55<'1 Données d''entrée'!$C$334+1+$B173,0,IF(G55<'1 Données d''entrée'!$C$333+'1 Données d''entrée'!$C$334+1+$B173,$L161*('1 Données d''entrée'!$C$332*(1+'1 Données d''entrée'!$C$332)^'1 Données d''entrée'!$C$333)/((1+'1 Données d''entrée'!$C$332)^'1 Données d''entrée'!$C$333-1),0))","v":0},{"$f":"IF(H55<'1 Données d''entrée'!$C$334+1+$B173,0,IF(H55<'1 Données d''entrée'!$C$333+'1 Données d''entrée'!$C$334+1+$B173,$L161*('1 Données d''entrée'!$C$332*(1+'1 Données d''entrée'!$C$332)^'1 Données d''entrée'!$C$333)/((1+'1 Données d''entrée'!$C$332)^'1 Données d''entrée'!$C$333-1),0))","v":0},{"$f":"IF(I55<'1 Données d''entrée'!$C$334+1+$B173,0,IF(I55<'1 Données d''entrée'!$C$333+'1 Données d''entrée'!$C$334+1+$B173,$L161*('1 Données d''entrée'!$C$332*(1+'1 Données d''entrée'!$C$332)^'1 Données d''entrée'!$C$333)/((1+'1 Données d''entrée'!$C$332)^'1 Données d''entrée'!$C$333-1),0))","v":0},{"$f":"IF(J55<'1 Données d''entrée'!$C$334+1+$B173,0,IF(J55<'1 Données d''entrée'!$C$333+'1 Données d''entrée'!$C$334+1+$B173,$L161*('1 Données d''entrée'!$C$332*(1+'1 Données d''entrée'!$C$332)^'1 Données d''entrée'!$C$333)/((1+'1 Données d''entrée'!$C$332)^'1 Données d''entrée'!$C$333-1),0))","v":0},{"$f":"IF(K55<'1 Données d''entrée'!$C$334+1+$B173,0,IF(K55<'1 Données d''entrée'!$C$333+'1 Données d''entrée'!$C$334+1+$B173,$L161*('1 Données d''entrée'!$C$332*(1+'1 Données d''entrée'!$C$332)^'1 Données d''entrée'!$C$333)/((1+'1 Données d''entrée'!$C$332)^'1 Données d''entrée'!$C$333-1),0))","v":0},{"$f":"IF(L55<'1 Données d''entrée'!$C$334+1+$B173,0,IF(L55<'1 Données d''entrée'!$C$333+'1 Données d''entrée'!$C$334+1+$B173,$L161*('1 Données d''entrée'!$C$332*(1+'1 Données d''entrée'!$C$332)^'1 Données d''entrée'!$C$333)/((1+'1 Données d''entrée'!$C$332)^'1 Données d''entrée'!$C$333-1),0))","v":0},{"$f":"IF(M55<'1 Données d''entrée'!$C$334+1+$B173,0,IF(M55<'1 Données d''entrée'!$C$333+'1 Données d''entrée'!$C$334+1+$B173,$L161*('1 Données d''entrée'!$C$332*(1+'1 Données d''entrée'!$C$332)^'1 Données d''entrée'!$C$333)/((1+'1 Données d''entrée'!$C$332)^'1 Données d''entrée'!$C$333-1),0))","v":0},{"$f":"IF(N55<'1 Données d''entrée'!$C$334+1+$B173,0,IF(N55<'1 Données d''entrée'!$C$333+'1 Données d''entrée'!$C$334+1+$B173,$L161*('1 Données d''entrée'!$C$332*(1+'1 Données d''entrée'!$C$332)^'1 Données d''entrée'!$C$333)/((1+'1 Données d''entrée'!$C$332)^'1 Données d''entrée'!$C$333-1),0))","v":0},{"$f":"IF(O55<'1 Données d''entrée'!$C$334+1+$B173,0,IF(O55<'1 Données d''entrée'!$C$333+'1 Données d''entrée'!$C$334+1+$B173,$L161*('1 Données d''entrée'!$C$332*(1+'1 Données d''entrée'!$C$332)^'1 Données d''entrée'!$C$333)/((1+'1 Données d''entrée'!$C$332)^'1 Données d''entrée'!$C$333-1),0))","v":0},{"$f":"IF(P55<'1 Données d''entrée'!$C$334+1+$B173,0,IF(P55<'1 Données d''entrée'!$C$333+'1 Données d''entrée'!$C$334+1+$B173,$L161*('1 Données d''entrée'!$C$332*(1+'1 Données d''entrée'!$C$332)^'1 Données d''entrée'!$C$333)/((1+'1 Données d''entrée'!$C$332)^'1 Données d''entrée'!$C$333-1),0))","v":0},{"$f":"IF(Q55<'1 Données d''entrée'!$C$334+1+$B173,0,IF(Q55<'1 Données d''entrée'!$C$333+'1 Données d''entrée'!$C$334+1+$B173,$L161*('1 Données d''entrée'!$C$332*(1+'1 Données d''entrée'!$C$332)^'1 Données d''entrée'!$C$333)/((1+'1 Données d''entrée'!$C$332)^'1 Données d''entrée'!$C$333-1),0))","v":0},{"$f":"IF(R55<'1 Données d''entrée'!$C$334+1+$B173,0,IF(R55<'1 Données d''entrée'!$C$333+'1 Données d''entrée'!$C$334+1+$B173,$L161*('1 Données d''entrée'!$C$332*(1+'1 Données d''entrée'!$C$332)^'1 Données d''entrée'!$C$333)/((1+'1 Données d''entrée'!$C$332)^'1 Données d''entrée'!$C$333-1),0))","v":0},{"$f":"IF(S55<'1 Données d''entrée'!$C$334+1+$B173,0,IF(S55<'1 Données d''entrée'!$C$333+'1 Données d''entrée'!$C$334+1+$B173,$L161*('1 Données d''entrée'!$C$332*(1+'1 Données d''entrée'!$C$332)^'1 Données d''entrée'!$C$333)/((1+'1 Données d''entrée'!$C$332)^'1 Données d''entrée'!$C$333-1),0))","v":0},{"$f":"IF(T55<'1 Données d''entrée'!$C$334+1+$B173,0,IF(T55<'1 Données d''entrée'!$C$333+'1 Données d''entrée'!$C$334+1+$B173,$L161*('1 Données d''entrée'!$C$332*(1+'1 Données d''entrée'!$C$332)^'1 Données d''entrée'!$C$333)/((1+'1 Données d''entrée'!$C$332)^'1 Données d''entrée'!$C$333-1),0))","v":0},{"$f":"IF(U55<'1 Données d''entrée'!$C$334+1+$B173,0,IF(U55<'1 Données d''entrée'!$C$333+'1 Données d''entrée'!$C$334+1+$B173,$L161*('1 Données d''entrée'!$C$332*(1+'1 Données d''entrée'!$C$332)^'1 Données d''entrée'!$C$333)/((1+'1 Données d''entrée'!$C$332)^'1 Données d''entrée'!$C$333-1),0))","v":0},{"$f":"IF(V55<'1 Données d''entrée'!$C$334+1+$B173,0,IF(V55<'1 Données d''entrée'!$C$333+'1 Données d''entrée'!$C$334+1+$B173,$L161*('1 Données d''entrée'!$C$332*(1+'1 Données d''entrée'!$C$332)^'1 Données d''entrée'!$C$333)/((1+'1 Données d''entrée'!$C$332)^'1 Données d''entrée'!$C$333-1),0))","v":0}]
[null,"Période de prêt nouveau"]
["Paiement d'intérêt décroissant inclu dans l'annuité constante",0,0,0,0,0,0,0,0,0,0,0,0,0,0,0,0,0,0,0,0,0]
["Paiement d'intêrets",1,0,{"$f":"IF(D164>0,$C161*((('1 Données d''entrée'!$C$332+1)^'1 Données d''entrée'!$C$333)-(1+'1 Données d''entrée'!$C$332)^('6 Financement'!C$54-1-'1 Données d''entrée'!$C$334-$B175))/((1+'1 Données d''entrée'!$C$332)^'1 Données d''entrée'!$C$333-1)*'1 Données d''entrée'!$C$332,0)","v":0},{"$f":"IF(E164>0,$C161*((('1 Données d''entrée'!$C$332+1)^'1 Données d''entrée'!$C$333)-(1+'1 Données d''entrée'!$C$332)^('6 Financement'!D$54-1-'1 Données d''entrée'!$C$334-$B175))/((1+'1 Données d''entrée'!$C$332)^'1 Données d''entrée'!$C$333-1)*'1 Données d''entrée'!$C$332,0)","v":0},{"$f":"IF(F164>0,$C161*((('1 Données d''entrée'!$C$332+1)^'1 Données d''entrée'!$C$333)-(1+'1 Données d''entrée'!$C$332)^('6 Financement'!E$54-1-'1 Données d''entrée'!$C$334-$B175))/((1+'1 Données d''entrée'!$C$332)^'1 Données d''entrée'!$C$333-1)*'1 Données d''entrée'!$C$332,0)","v":0},{"$f":"IF(G164>0,$C161*((('1 Données d''entrée'!$C$332+1)^'1 Données d''entrée'!$C$333)-(1+'1 Données d''entrée'!$C$332)^('6 Financement'!F$54-1-'1 Données d''entrée'!$C$334-$B175))/((1+'1 Données d''entrée'!$C$332)^'1 Données d''entrée'!$C$333-1)*'1 Données d''entrée'!$C$332,0)","v":0},{"$f":"IF(H164>0,$C161*((('1 Données d''entrée'!$C$332+1)^'1 Données d''entrée'!$C$333)-(1+'1 Données d''entrée'!$C$332)^('6 Financement'!G$54-1-'1 Données d''entrée'!$C$334-$B175))/((1+'1 Données d''entrée'!$C$332)^'1 Données d''entrée'!$C$333-1)*'1 Données d''entrée'!$C$332,0)","v":0},{"$f":"IF(I164>0,$C161*((('1 Données d''entrée'!$C$332+1)^'1 Données d''entrée'!$C$333)-(1+'1 Données d''entrée'!$C$332)^('6 Financement'!H$54-1-'1 Données d''entrée'!$C$334-$B175))/((1+'1 Données d''entrée'!$C$332)^'1 Données d''entrée'!$C$333-1)*'1 Données d''entrée'!$C$332,0)","v":0},{"$f":"IF(J164>0,$C161*((('1 Données d''entrée'!$C$332+1)^'1 Données d''entrée'!$C$333)-(1+'1 Données d''entrée'!$C$332)^('6 Financement'!I$54-1-'1 Données d''entrée'!$C$334-$B175))/((1+'1 Données d''entrée'!$C$332)^'1 Données d''entrée'!$C$333-1)*'1 Données d''entrée'!$C$332,0)","v":0},{"$f":"IF(K164>0,$C161*((('1 Données d''entrée'!$C$332+1)^'1 Données d''entrée'!$C$333)-(1+'1 Données d''entrée'!$C$332)^('6 Financement'!J$54-1-'1 Données d''entrée'!$C$334-$B175))/((1+'1 Données d''entrée'!$C$332)^'1 Données d''entrée'!$C$333-1)*'1 Données d''entrée'!$C$332,0)","v":0},{"$f":"IF(L164>0,$C161*((('1 Données d''entrée'!$C$332+1)^'1 Données d''entrée'!$C$333)-(1+'1 Données d''entrée'!$C$332)^('6 Financement'!K$54-1-'1 Données d''entrée'!$C$334-$B175))/((1+'1 Données d''entrée'!$C$332)^'1 Données d''entrée'!$C$333-1)*'1 Données d''entrée'!$C$332,0)","v":0},{"$f":"IF(M164>0,$C161*((('1 Données d''entrée'!$C$332+1)^'1 Données d''entrée'!$C$333)-(1+'1 Données d''entrée'!$C$332)^('6 Financement'!L$54-1-'1 Données d''entrée'!$C$334-$B175))/((1+'1 Données d''entrée'!$C$332)^'1 Données d''entrée'!$C$333-1)*'1 Données d''entrée'!$C$332,0)","v":0},{"$f":"IF(N164>0,$C161*((('1 Données d''entrée'!$C$332+1)^'1 Données d''entrée'!$C$333)-(1+'1 Données d''entrée'!$C$332)^('6 Financement'!M$54-1-'1 Données d''entrée'!$C$334-$B175))/((1+'1 Données d''entrée'!$C$332)^'1 Données d''entrée'!$C$333-1)*'1 Données d''entrée'!$C$332,0)","v":0},{"$f":"IF(O164>0,$C161*((('1 Données d''entrée'!$C$332+1)^'1 Données d''entrée'!$C$333)-(1+'1 Données d''entrée'!$C$332)^('6 Financement'!N$54-1-'1 Données d''entrée'!$C$334-$B175))/((1+'1 Données d''entrée'!$C$332)^'1 Données d''entrée'!$C$333-1)*'1 Données d''entrée'!$C$332,0)","v":0},{"$f":"IF(P164>0,$C161*((('1 Données d''entrée'!$C$332+1)^'1 Données d''entrée'!$C$333)-(1+'1 Données d''entrée'!$C$332)^('6 Financement'!O$54-1-'1 Données d''entrée'!$C$334-$B175))/((1+'1 Données d''entrée'!$C$332)^'1 Données d''entrée'!$C$333-1)*'1 Données d''entrée'!$C$332,0)","v":0},{"$f":"IF(Q164>0,$C161*((('1 Données d''entrée'!$C$332+1)^'1 Données d''entrée'!$C$333)-(1+'1 Données d''entrée'!$C$332)^('6 Financement'!P$54-1-'1 Données d''entrée'!$C$334-$B175))/((1+'1 Données d''entrée'!$C$332)^'1 Données d''entrée'!$C$333-1)*'1 Données d''entrée'!$C$332,0)","v":0},{"$f":"IF(R164>0,$C161*((('1 Données d''entrée'!$C$332+1)^'1 Données d''entrée'!$C$333)-(1+'1 Données d''entrée'!$C$332)^('6 Financement'!Q$54-1-'1 Données d''entrée'!$C$334-$B175))/((1+'1 Données d''entrée'!$C$332)^'1 Données d''entrée'!$C$333-1)*'1 Données d''entrée'!$C$332,0)","v":0},{"$f":"IF(S164>0,$C161*((('1 Données d''entrée'!$C$332+1)^'1 Données d''entrée'!$C$333)-(1+'1 Données d''entrée'!$C$332)^('6 Financement'!R$54-1-'1 Données d''entrée'!$C$334-$B175))/((1+'1 Données d''entrée'!$C$332)^'1 Données d''entrée'!$C$333-1)*'1 Données d''entrée'!$C$332,0)","v":0},{"$f":"IF(T164>0,$C161*((('1 Données d''entrée'!$C$332+1)^'1 Données d''entrée'!$C$333)-(1+'1 Données d''entrée'!$C$332)^('6 Financement'!S$54-1-'1 Données d''entrée'!$C$334-$B175))/((1+'1 Données d''entrée'!$C$332)^'1 Données d''entrée'!$C$333-1)*'1 Données d''entrée'!$C$332,0)","v":0},{"$f":"IF(U164>0,$C161*((('1 Données d''entrée'!$C$332+1)^'1 Données d''entrée'!$C$333)-(1+'1 Données d''entrée'!$C$332)^('6 Financement'!T$54-1-'1 Données d''entrée'!$C$334-$B175))/((1+'1 Données d''entrée'!$C$332)^'1 Données d''entrée'!$C$333-1)*'1 Données d''entrée'!$C$332,0)","v":0},{"$f":"IF(V164>0,$C161*((('1 Données d''entrée'!$C$332+1)^'1 Données d''entrée'!$C$333)-(1+'1 Données d''entrée'!$C$332)^('6 Financement'!U$54-1-'1 Données d''entrée'!$C$334-$B175))/((1+'1 Données d''entrée'!$C$332)^'1 Données d''entrée'!$C$333-1)*'1 Données d''entrée'!$C$332,0)","v":0}]
["Paiement d'intêrets",2,0,{"$f":"IF(D165>0,$D161*((('1 Données d''entrée'!$C$332+1)^'1 Données d''entrée'!$C$333)-(1+'1 Données d''entrée'!$C$332)^('6 Financement'!C$54-1-'1 Données d''entrée'!$C$334-$B176))/((1+'1 Données d''entrée'!$C$332)^'1 Données d''entrée'!$C$333-1)*'1 Données d''entrée'!$C$332,0)","v":0},{"$f":"IF(E165>0,$D161*((('1 Données d''entrée'!$C$332+1)^'1 Données d''entrée'!$C$333)-(1+'1 Données d''entrée'!$C$332)^('6 Financement'!D$54-1-'1 Données d''entrée'!$C$334-$B176))/((1+'1 Données d''entrée'!$C$332)^'1 Données d''entrée'!$C$333-1)*'1 Données d''entrée'!$C$332,0)","v":0},{"$f":"IF(F165>0,$D161*((('1 Données d''entrée'!$C$332+1)^'1 Données d''entrée'!$C$333)-(1+'1 Données d''entrée'!$C$332)^('6 Financement'!E$54-1-'1 Données d''entrée'!$C$334-$B176))/((1+'1 Données d''entrée'!$C$332)^'1 Données d''entrée'!$C$333-1)*'1 Données d''entrée'!$C$332,0)","v":0},{"$f":"IF(G165>0,$D161*((('1 Données d''entrée'!$C$332+1)^'1 Données d''entrée'!$C$333)-(1+'1 Données d''entrée'!$C$332)^('6 Financement'!F$54-1-'1 Données d''entrée'!$C$334-$B176))/((1+'1 Données d''entrée'!$C$332)^'1 Données d''entrée'!$C$333-1)*'1 Données d''entrée'!$C$332,0)","v":0},{"$f":"IF(H165>0,$D161*((('1 Données d''entrée'!$C$332+1)^'1 Données d''entrée'!$C$333)-(1+'1 Données d''entrée'!$C$332)^('6 Financement'!G$54-1-'1 Données d''entrée'!$C$334-$B176))/((1+'1 Données d''entrée'!$C$332)^'1 Données d''entrée'!$C$333-1)*'1 Données d''entrée'!$C$332,0)","v":0},{"$f":"IF(I165>0,$D161*((('1 Données d''entrée'!$C$332+1)^'1 Données d''entrée'!$C$333)-(1+'1 Données d''entrée'!$C$332)^('6 Financement'!H$54-1-'1 Données d''entrée'!$C$334-$B176))/((1+'1 Données d''entrée'!$C$332)^'1 Données d''entrée'!$C$333-1)*'1 Données d''entrée'!$C$332,0)","v":0},{"$f":"IF(J165>0,$D161*((('1 Données d''entrée'!$C$332+1)^'1 Données d''entrée'!$C$333)-(1+'1 Données d''entrée'!$C$332)^('6 Financement'!I$54-1-'1 Données d''entrée'!$C$334-$B176))/((1+'1 Données d''entrée'!$C$332)^'1 Données d''entrée'!$C$333-1)*'1 Données d''entrée'!$C$332,0)","v":0},{"$f":"IF(K165>0,$D161*((('1 Données d''entrée'!$C$332+1)^'1 Données d''entrée'!$C$333)-(1+'1 Données d''entrée'!$C$332)^('6 Financement'!J$54-1-'1 Données d''entrée'!$C$334-$B176))/((1+'1 Données d''entrée'!$C$332)^'1 Données d''entrée'!$C$333-1)*'1 Données d''entrée'!$C$332,0)","v":0},{"$f":"IF(L165>0,$D161*((('1 Données d''entrée'!$C$332+1)^'1 Données d''entrée'!$C$333)-(1+'1 Données d''entrée'!$C$332)^('6 Financement'!K$54-1-'1 Données d''entrée'!$C$334-$B176))/((1+'1 Données d''entrée'!$C$332)^'1 Données d''entrée'!$C$333-1)*'1 Données d''entrée'!$C$332,0)","v":0},{"$f":"IF(M165>0,$D161*((('1 Données d''entrée'!$C$332+1)^'1 Données d''entrée'!$C$333)-(1+'1 Données d''entrée'!$C$332)^('6 Financement'!L$54-1-'1 Données d''entrée'!$C$334-$B176))/((1+'1 Données d''entrée'!$C$332)^'1 Données d''entrée'!$C$333-1)*'1 Données d''entrée'!$C$332,0)","v":0},{"$f":"IF(N165>0,$D161*((('1 Données d''entrée'!$C$332+1)^'1 Données d''entrée'!$C$333)-(1+'1 Données d''entrée'!$C$332)^('6 Financement'!M$54-1-'1 Données d''entrée'!$C$334-$B176))/((1+'1 Données d''entrée'!$C$332)^'1 Données d''entrée'!$C$333-1)*'1 Données d''entrée'!$C$332,0)","v":0},{"$f":"IF(O165>0,$D161*((('1 Données d''entrée'!$C$332+1)^'1 Données d''entrée'!$C$333)-(1+'1 Données d''entrée'!$C$332)^('6 Financement'!N$54-1-'1 Données d''entrée'!$C$334-$B176))/((1+'1 Données d''entrée'!$C$332)^'1 Données d''entrée'!$C$333-1)*'1 Données d''entrée'!$C$332,0)","v":0},{"$f":"IF(P165>0,$D161*((('1 Données d''entrée'!$C$332+1)^'1 Données d''entrée'!$C$333)-(1+'1 Données d''entrée'!$C$332)^('6 Financement'!O$54-1-'1 Données d''entrée'!$C$334-$B176))/((1+'1 Données d''entrée'!$C$332)^'1 Données d''entrée'!$C$333-1)*'1 Données d''entrée'!$C$332,0)","v":0},{"$f":"IF(Q165>0,$D161*((('1 Données d''entrée'!$C$332+1)^'1 Données d''entrée'!$C$333)-(1+'1 Données d''entrée'!$C$332)^('6 Financement'!P$54-1-'1 Données d''entrée'!$C$334-$B176))/((1+'1 Données d''entrée'!$C$332)^'1 Données d''entrée'!$C$333-1)*'1 Données d''entrée'!$C$332,0)","v":0},{"$f":"IF(R165>0,$D161*((('1 Données d''entrée'!$C$332+1)^'1 Données d''entrée'!$C$333)-(1+'1 Données d''entrée'!$C$332)^('6 Financement'!Q$54-1-'1 Données d''entrée'!$C$334-$B176))/((1+'1 Données d''entrée'!$C$332)^'1 Données d''entrée'!$C$333-1)*'1 Données d''entrée'!$C$332,0)","v":0},{"$f":"IF(S165>0,$D161*((('1 Données d''entrée'!$C$332+1)^'1 Données d''entrée'!$C$333)-(1+'1 Données d''entrée'!$C$332)^('6 Financement'!R$54-1-'1 Données d''entrée'!$C$334-$B176))/((1+'1 Données d''entrée'!$C$332)^'1 Données d''entrée'!$C$333-1)*'1 Données d''entrée'!$C$332,0)","v":0},{"$f":"IF(T165>0,$D161*((('1 Données d''entrée'!$C$332+1)^'1 Données d''entrée'!$C$333)-(1+'1 Données d''entrée'!$C$332)^('6 Financement'!S$54-1-'1 Données d''entrée'!$C$334-$B176))/((1+'1 Données d''entrée'!$C$332)^'1 Données d''entrée'!$C$333-1)*'1 Données d''entrée'!$C$332,0)","v":0},{"$f":"IF(U165>0,$D161*((('1 Données d''entrée'!$C$332+1)^'1 Données d''entrée'!$C$333)-(1+'1 Données d''entrée'!$C$332)^('6 Financement'!T$54-1-'1 Données d''entrée'!$C$334-$B176))/((1+'1 Données d''entrée'!$C$332)^'1 Données d''entrée'!$C$333-1)*'1 Données d''entrée'!$C$332,0)","v":0},{"$f":"IF(V165>0,$D161*((('1 Données d''entrée'!$C$332+1)^'1 Données d''entrée'!$C$333)-(1+'1 Données d''entrée'!$C$332)^('6 Financement'!U$54-1-'1 Données d''entrée'!$C$334-$B176))/((1+'1 Données d''entrée'!$C$332)^'1 Données d''entrée'!$C$333-1)*'1 Données d''entrée'!$C$332,0)","v":0}]
["Paiement d'intêrets",3,0,{"$f":"IF(D166>0,$E161*((('1 Données d''entrée'!$C$332+1)^'1 Données d''entrée'!$C$333)-(1+'1 Données d''entrée'!$C$332)^('6 Financement'!C$54-1-'1 Données d''entrée'!$C$334-$B177))/((1+'1 Données d''entrée'!$C$332)^'1 Données d''entrée'!$C$333-1)*'1 Données d''entrée'!$C$332,0)","v":0},{"$f":"IF(E166>0,$E161*((('1 Données d''entrée'!$C$332+1)^'1 Données d''entrée'!$C$333)-(1+'1 Données d''entrée'!$C$332)^('6 Financement'!D$54-1-'1 Données d''entrée'!$C$334-$B177))/((1+'1 Données d''entrée'!$C$332)^'1 Données d''entrée'!$C$333-1)*'1 Données d''entrée'!$C$332,0)","v":0},{"$f":"IF(F166>0,$E161*((('1 Données d''entrée'!$C$332+1)^'1 Données d''entrée'!$C$333)-(1+'1 Données d''entrée'!$C$332)^('6 Financement'!E$54-1-'1 Données d''entrée'!$C$334-$B177))/((1+'1 Données d''entrée'!$C$332)^'1 Données d''entrée'!$C$333-1)*'1 Données d''entrée'!$C$332,0)","v":0},{"$f":"IF(G166>0,$E161*((('1 Données d''entrée'!$C$332+1)^'1 Données d''entrée'!$C$333)-(1+'1 Données d''entrée'!$C$332)^('6 Financement'!F$54-1-'1 Données d''entrée'!$C$334-$B177))/((1+'1 Données d''entrée'!$C$332)^'1 Données d''entrée'!$C$333-1)*'1 Données d''entrée'!$C$332,0)","v":0},{"$f":"IF(H166>0,$E161*((('1 Données d''entrée'!$C$332+1)^'1 Données d''entrée'!$C$333)-(1+'1 Données d''entrée'!$C$332)^('6 Financement'!G$54-1-'1 Données d''entrée'!$C$334-$B177))/((1+'1 Données d''entrée'!$C$332)^'1 Données d''entrée'!$C$333-1)*'1 Données d''entrée'!$C$332,0)","v":0},{"$f":"IF(I166>0,$E161*((('1 Données d''entrée'!$C$332+1)^'1 Données d''entrée'!$C$333)-(1+'1 Données d''entrée'!$C$332)^('6 Financement'!H$54-1-'1 Données d''entrée'!$C$334-$B177))/((1+'1 Données d''entrée'!$C$332)^'1 Données d''entrée'!$C$333-1)*'1 Données d''entrée'!$C$332,0)","v":0},{"$f":"IF(J166>0,$E161*((('1 Données d''entrée'!$C$332+1)^'1 Données d''entrée'!$C$333)-(1+'1 Données d''entrée'!$C$332)^('6 Financement'!I$54-1-'1 Données d''entrée'!$C$334-$B177))/((1+'1 Données d''entrée'!$C$332)^'1 Données d''entrée'!$C$333-1)*'1 Données d''entrée'!$C$332,0)","v":0},{"$f":"IF(K166>0,$E161*((('1 Données d''entrée'!$C$332+1)^'1 Données d''entrée'!$C$333)-(1+'1 Données d''entrée'!$C$332)^('6 Financement'!J$54-1-'1 Données d''entrée'!$C$334-$B177))/((1+'1 Données d''entrée'!$C$332)^'1 Données d''entrée'!$C$333-1)*'1 Données d''entrée'!$C$332,0)","v":0},{"$f":"IF(L166>0,$E161*((('1 Données d''entrée'!$C$332+1)^'1 Données d''entrée'!$C$333)-(1+'1 Données d''entrée'!$C$332)^('6 Financement'!K$54-1-'1 Données d''entrée'!$C$334-$B177))/((1+'1 Données d''entrée'!$C$332)^'1 Données d''entrée'!$C$333-1)*'1 Données d''entrée'!$C$332,0)","v":0},{"$f":"IF(M166>0,$E161*((('1 Données d''entrée'!$C$332+1)^'1 Données d''entrée'!$C$333)-(1+'1 Données d''entrée'!$C$332)^('6 Financement'!L$54-1-'1 Données d''entrée'!$C$334-$B177))/((1+'1 Données d''entrée'!$C$332)^'1 Données d''entrée'!$C$333-1)*'1 Données d''entrée'!$C$332,0)","v":0},{"$f":"IF(N166>0,$E161*((('1 Données d''entrée'!$C$332+1)^'1 Données d''entrée'!$C$333)-(1+'1 Données d''entrée'!$C$332)^('6 Financement'!M$54-1-'1 Données d''entrée'!$C$334-$B177))/((1+'1 Données d''entrée'!$C$332)^'1 Données d''entrée'!$C$333-1)*'1 Données d''entrée'!$C$332,0)","v":0},{"$f":"IF(O166>0,$E161*((('1 Données d''entrée'!$C$332+1)^'1 Données d''entrée'!$C$333)-(1+'1 Données d''entrée'!$C$332)^('6 Financement'!N$54-1-'1 Données d''entrée'!$C$334-$B177))/((1+'1 Données d''entrée'!$C$332)^'1 Données d''entrée'!$C$333-1)*'1 Données d''entrée'!$C$332,0)","v":0},{"$f":"IF(P166>0,$E161*((('1 Données d''entrée'!$C$332+1)^'1 Données d''entrée'!$C$333)-(1+'1 Données d''entrée'!$C$332)^('6 Financement'!O$54-1-'1 Données d''entrée'!$C$334-$B177))/((1+'1 Données d''entrée'!$C$332)^'1 Données d''entrée'!$C$333-1)*'1 Données d''entrée'!$C$332,0)","v":0},{"$f":"IF(Q166>0,$E161*((('1 Données d''entrée'!$C$332+1)^'1 Données d''entrée'!$C$333)-(1+'1 Données d''entrée'!$C$332)^('6 Financement'!P$54-1-'1 Données d''entrée'!$C$334-$B177))/((1+'1 Données d''entrée'!$C$332)^'1 Données d''entrée'!$C$333-1)*'1 Données d''entrée'!$C$332,0)","v":0},{"$f":"IF(R166>0,$E161*((('1 Données d''entrée'!$C$332+1)^'1 Données d''entrée'!$C$333)-(1+'1 Données d''entrée'!$C$332)^('6 Financement'!Q$54-1-'1 Données d''entrée'!$C$334-$B177))/((1+'1 Données d''entrée'!$C$332)^'1 Données d''entrée'!$C$333-1)*'1 Données d''entrée'!$C$332,0)","v":0},{"$f":"IF(S166>0,$E161*((('1 Données d''entrée'!$C$332+1)^'1 Données d''entrée'!$C$333)-(1+'1 Données d''entrée'!$C$332)^('6 Financement'!R$54-1-'1 Données d''entrée'!$C$334-$B177))/((1+'1 Données d''entrée'!$C$332)^'1 Données d''entrée'!$C$333-1)*'1 Données d''entrée'!$C$332,0)","v":0},{"$f":"IF(T166>0,$E161*((('1 Données d''entrée'!$C$332+1)^'1 Données d''entrée'!$C$333)-(1+'1 Données d''entrée'!$C$332)^('6 Financement'!S$54-1-'1 Données d''entrée'!$C$334-$B177))/((1+'1 Données d''entrée'!$C$332)^'1 Données d''entrée'!$C$333-1)*'1 Données d''entrée'!$C$332,0)","v":0},{"$f":"IF(U166>0,$E161*((('1 Données d''entrée'!$C$332+1)^'1 Données d''entrée'!$C$333)-(1+'1 Données d''entrée'!$C$332)^('6 Financement'!T$54-1-'1 Données d''entrée'!$C$334-$B177))/((1+'1 Données d''entrée'!$C$332)^'1 Données d''entrée'!$C$333-1)*'1 Données d''entrée'!$C$332,0)","v":0},{"$f":"IF(V166>0,$E161*((('1 Données d''entrée'!$C$332+1)^'1 Données d''entrée'!$C$333)-(1+'1 Données d''entrée'!$C$332)^('6 Financement'!U$54-1-'1 Données d''entrée'!$C$334-$B177))/((1+'1 Données d''entrée'!$C$332)^'1 Données d''entrée'!$C$333-1)*'1 Données d''entrée'!$C$332,0)","v":0}]
["Paiement d'intêrets",4,0,{"$f":"IF(D167>0,$F161*((('1 Données d''entrée'!$C$332+1)^'1 Données d''entrée'!$C$333)-(1+'1 Données d''entrée'!$C$332)^('6 Financement'!C$54-1-'1 Données d''entrée'!$C$334-$B178))/((1+'1 Données d''entrée'!$C$332)^'1 Données d''entrée'!$C$333-1)*'1 Données d''entrée'!$C$332,0)","v":0},{"$f":"IF(E167>0,$F161*((('1 Données d''entrée'!$C$332+1)^'1 Données d''entrée'!$C$333)-(1+'1 Données d''entrée'!$C$332)^('6 Financement'!D$54-1-'1 Données d''entrée'!$C$334-$B178))/((1+'1 Données d''entrée'!$C$332)^'1 Données d''entrée'!$C$333-1)*'1 Données d''entrée'!$C$332,0)","v":0},{"$f":"IF(F167>0,$F161*((('1 Données d''entrée'!$C$332+1)^'1 Données d''entrée'!$C$333)-(1+'1 Données d''entrée'!$C$332)^('6 Financement'!E$54-1-'1 Données d''entrée'!$C$334-$B178))/((1+'1 Données d''entrée'!$C$332)^'1 Données d''entrée'!$C$333-1)*'1 Données d''entrée'!$C$332,0)","v":0},{"$f":"IF(G167>0,$F161*((('1 Données d''entrée'!$C$332+1)^'1 Données d''entrée'!$C$333)-(1+'1 Données d''entrée'!$C$332)^('6 Financement'!F$54-1-'1 Données d''entrée'!$C$334-$B178))/((1+'1 Données d''entrée'!$C$332)^'1 Données d''entrée'!$C$333-1)*'1 Données d''entrée'!$C$332,0)","v":0},{"$f":"IF(H167>0,$F161*((('1 Données d''entrée'!$C$332+1)^'1 Données d''entrée'!$C$333)-(1+'1 Données d''entrée'!$C$332)^('6 Financement'!G$54-1-'1 Données d''entrée'!$C$334-$B178))/((1+'1 Données d''entrée'!$C$332)^'1 Données d''entrée'!$C$333-1)*'1 Données d''entrée'!$C$332,0)","v":0},{"$f":"IF(I167>0,$F161*((('1 Données d''entrée'!$C$332+1)^'1 Données d''entrée'!$C$333)-(1+'1 Données d''entrée'!$C$332)^('6 Financement'!H$54-1-'1 Données d''entrée'!$C$334-$B178))/((1+'1 Données d''entrée'!$C$332)^'1 Données d''entrée'!$C$333-1)*'1 Données d''entrée'!$C$332,0)","v":0},{"$f":"IF(J167>0,$F161*((('1 Données d''entrée'!$C$332+1)^'1 Données d''entrée'!$C$333)-(1+'1 Données d''entrée'!$C$332)^('6 Financement'!I$54-1-'1 Données d''entrée'!$C$334-$B178))/((1+'1 Données d''entrée'!$C$332)^'1 Données d''entrée'!$C$333-1)*'1 Données d''entrée'!$C$332,0)","v":0},{"$f":"IF(K167>0,$F161*((('1 Données d''entrée'!$C$332+1)^'1 Données d''entrée'!$C$333)-(1+'1 Données d''entrée'!$C$332)^('6 Financement'!J$54-1-'1 Données d''entrée'!$C$334-$B178))/((1+'1 Données d''entrée'!$C$332)^'1 Données d''entrée'!$C$333-1)*'1 Données d''entrée'!$C$332,0)","v":0},{"$f":"IF(L167>0,$F161*((('1 Données d''entrée'!$C$332+1)^'1 Données d''entrée'!$C$333)-(1+'1 Données d''entrée'!$C$332)^('6 Financement'!K$54-1-'1 Données d''entrée'!$C$334-$B178))/((1+'1 Données d''entrée'!$C$332)^'1 Données d''entrée'!$C$333-1)*'1 Données d''entrée'!$C$332,0)","v":0},{"$f":"IF(M167>0,$F161*((('1 Données d''entrée'!$C$332+1)^'1 Données d''entrée'!$C$333)-(1+'1 Données d''entrée'!$C$332)^('6 Financement'!L$54-1-'1 Données d''entrée'!$C$334-$B178))/((1+'1 Données d''entrée'!$C$332)^'1 Données d''entrée'!$C$333-1)*'1 Données d''entrée'!$C$332,0)","v":0},{"$f":"IF(N167>0,$F161*((('1 Données d''entrée'!$C$332+1)^'1 Données d''entrée'!$C$333)-(1+'1 Données d''entrée'!$C$332)^('6 Financement'!M$54-1-'1 Données d''entrée'!$C$334-$B178))/((1+'1 Données d''entrée'!$C$332)^'1 Données d''entrée'!$C$333-1)*'1 Données d''entrée'!$C$332,0)","v":0},{"$f":"IF(O167>0,$F161*((('1 Données d''entrée'!$C$332+1)^'1 Données d''entrée'!$C$333)-(1+'1 Données d''entrée'!$C$332)^('6 Financement'!N$54-1-'1 Données d''entrée'!$C$334-$B178))/((1+'1 Données d''entrée'!$C$332)^'1 Données d''entrée'!$C$333-1)*'1 Données d''entrée'!$C$332,0)","v":0},{"$f":"IF(P167>0,$F161*((('1 Données d''entrée'!$C$332+1)^'1 Données d''entrée'!$C$333)-(1+'1 Données d''entrée'!$C$332)^('6 Financement'!O$54-1-'1 Données d''entrée'!$C$334-$B178))/((1+'1 Données d''entrée'!$C$332)^'1 Données d''entrée'!$C$333-1)*'1 Données d''entrée'!$C$332,0)","v":0},{"$f":"IF(Q167>0,$F161*((('1 Données d''entrée'!$C$332+1)^'1 Données d''entrée'!$C$333)-(1+'1 Données d''entrée'!$C$332)^('6 Financement'!P$54-1-'1 Données d''entrée'!$C$334-$B178))/((1+'1 Données d''entrée'!$C$332)^'1 Données d''entrée'!$C$333-1)*'1 Données d''entrée'!$C$332,0)","v":0},{"$f":"IF(R167>0,$F161*((('1 Données d''entrée'!$C$332+1)^'1 Données d''entrée'!$C$333)-(1+'1 Données d''entrée'!$C$332)^('6 Financement'!Q$54-1-'1 Données d''entrée'!$C$334-$B178))/((1+'1 Données d''entrée'!$C$332)^'1 Données d''entrée'!$C$333-1)*'1 Données d''entrée'!$C$332,0)","v":0},{"$f":"IF(S167>0,$F161*((('1 Données d''entrée'!$C$332+1)^'1 Données d''entrée'!$C$333)-(1+'1 Données d''entrée'!$C$332)^('6 Financement'!R$54-1-'1 Données d''entrée'!$C$334-$B178))/((1+'1 Données d''entrée'!$C$332)^'1 Données d''entrée'!$C$333-1)*'1 Données d''entrée'!$C$332,0)","v":0},{"$f":"IF(T167>0,$F161*((('1 Données d''entrée'!$C$332+1)^'1 Données d''entrée'!$C$333)-(1+'1 Données d''entrée'!$C$332)^('6 Financement'!S$54-1-'1 Données d''entrée'!$C$334-$B178))/((1+'1 Données d''entrée'!$C$332)^'1 Données d''entrée'!$C$333-1)*'1 Données d''entrée'!$C$332,0)","v":0},{"$f":"IF(U167>0,$F161*((('1 Données d''entrée'!$C$332+1)^'1 Données d''entrée'!$C$333)-(1+'1 Données d''entrée'!$C$332)^('6 Financement'!T$54-1-'1 Données d''entrée'!$C$334-$B178))/((1+'1 Données d''entrée'!$C$332)^'1 Données d''entrée'!$C$333-1)*'1 Données d''entrée'!$C$332,0)","v":0},{"$f":"IF(V167>0,$F161*((('1 Données d''entrée'!$C$332+1)^'1 Données d''entrée'!$C$333)-(1+'1 Données d''entrée'!$C$332)^('6 Financement'!U$54-1-'1 Données d''entrée'!$C$334-$B178))/((1+'1 Données d''entrée'!$C$332)^'1 Données d''entrée'!$C$333-1)*'1 Données d''entrée'!$C$332,0)","v":0}]
["Paiement d'intêrets",5,0,{"$f":"IF(D168>0,$G161*((('1 Données d''entrée'!$C$332+1)^'1 Données d''entrée'!$C$333)-(1+'1 Données d''entrée'!$C$332)^('6 Financement'!C$54-1-'1 Données d''entrée'!$C$334-$B179))/((1+'1 Données d''entrée'!$C$332)^'1 Données d''entrée'!$C$333-1)*'1 Données d''entrée'!$C$332,0)","v":0},{"$f":"IF(E168>0,$G161*((('1 Données d''entrée'!$C$332+1)^'1 Données d''entrée'!$C$333)-(1+'1 Données d''entrée'!$C$332)^('6 Financement'!D$54-1-'1 Données d''entrée'!$C$334-$B179))/((1+'1 Données d''entrée'!$C$332)^'1 Données d''entrée'!$C$333-1)*'1 Données d''entrée'!$C$332,0)","v":0},{"$f":"IF(F168>0,$G161*((('1 Données d''entrée'!$C$332+1)^'1 Données d''entrée'!$C$333)-(1+'1 Données d''entrée'!$C$332)^('6 Financement'!E$54-1-'1 Données d''entrée'!$C$334-$B179))/((1+'1 Données d''entrée'!$C$332)^'1 Données d''entrée'!$C$333-1)*'1 Données d''entrée'!$C$332,0)","v":0},{"$f":"IF(G168>0,$G161*((('1 Données d''entrée'!$C$332+1)^'1 Données d''entrée'!$C$333)-(1+'1 Données d''entrée'!$C$332)^('6 Financement'!F$54-1-'1 Données d''entrée'!$C$334-$B179))/((1+'1 Données d''entrée'!$C$332)^'1 Données d''entrée'!$C$333-1)*'1 Données d''entrée'!$C$332,0)","v":0},{"$f":"IF(H168>0,$G161*((('1 Données d''entrée'!$C$332+1)^'1 Données d''entrée'!$C$333)-(1+'1 Données d''entrée'!$C$332)^('6 Financement'!G$54-1-'1 Données d''entrée'!$C$334-$B179))/((1+'1 Données d''entrée'!$C$332)^'1 Données d''entrée'!$C$333-1)*'1 Données d''entrée'!$C$332,0)","v":0},{"$f":"IF(I168>0,$G161*((('1 Données d''entrée'!$C$332+1)^'1 Données d''entrée'!$C$333)-(1+'1 Données d''entrée'!$C$332)^('6 Financement'!H$54-1-'1 Données d''entrée'!$C$334-$B179))/((1+'1 Données d''entrée'!$C$332)^'1 Données d''entrée'!$C$333-1)*'1 Données d''entrée'!$C$332,0)","v":0},{"$f":"IF(J168>0,$G161*((('1 Données d''entrée'!$C$332+1)^'1 Données d''entrée'!$C$333)-(1+'1 Données d''entrée'!$C$332)^('6 Financement'!I$54-1-'1 Données d''entrée'!$C$334-$B179))/((1+'1 Données d''entrée'!$C$332)^'1 Données d''entrée'!$C$333-1)*'1 Données d''entrée'!$C$332,0)","v":0},{"$f":"IF(K168>0,$G161*((('1 Données d''entrée'!$C$332+1)^'1 Données d''entrée'!$C$333)-(1+'1 Données d''entrée'!$C$332)^('6 Financement'!J$54-1-'1 Données d''entrée'!$C$334-$B179))/((1+'1 Données d''entrée'!$C$332)^'1 Données d''entrée'!$C$333-1)*'1 Données d''entrée'!$C$332,0)","v":0},{"$f":"IF(L168>0,$G161*((('1 Données d''entrée'!$C$332+1)^'1 Données d''entrée'!$C$333)-(1+'1 Données d''entrée'!$C$332)^('6 Financement'!K$54-1-'1 Données d''entrée'!$C$334-$B179))/((1+'1 Données d''entrée'!$C$332)^'1 Données d''entrée'!$C$333-1)*'1 Données d''entrée'!$C$332,0)","v":0},{"$f":"IF(M168>0,$G161*((('1 Données d''entrée'!$C$332+1)^'1 Données d''entrée'!$C$333)-(1+'1 Données d''entrée'!$C$332)^('6 Financement'!L$54-1-'1 Données d''entrée'!$C$334-$B179))/((1+'1 Données d''entrée'!$C$332)^'1 Données d''entrée'!$C$333-1)*'1 Données d''entrée'!$C$332,0)","v":0},{"$f":"IF(N168>0,$G161*((('1 Données d''entrée'!$C$332+1)^'1 Données d''entrée'!$C$333)-(1+'1 Données d''entrée'!$C$332)^('6 Financement'!M$54-1-'1 Données d''entrée'!$C$334-$B179))/((1+'1 Données d''entrée'!$C$332)^'1 Données d''entrée'!$C$333-1)*'1 Données d''entrée'!$C$332,0)","v":0},{"$f":"IF(O168>0,$G161*((('1 Données d''entrée'!$C$332+1)^'1 Données d''entrée'!$C$333)-(1+'1 Données d''entrée'!$C$332)^('6 Financement'!N$54-1-'1 Données d''entrée'!$C$334-$B179))/((1+'1 Données d''entrée'!$C$332)^'1 Données d''entrée'!$C$333-1)*'1 Données d''entrée'!$C$332,0)","v":0},{"$f":"IF(P168>0,$G161*((('1 Données d''entrée'!$C$332+1)^'1 Données d''entrée'!$C$333)-(1+'1 Données d''entrée'!$C$332)^('6 Financement'!O$54-1-'1 Données d''entrée'!$C$334-$B179))/((1+'1 Données d''entrée'!$C$332)^'1 Données d''entrée'!$C$333-1)*'1 Données d''entrée'!$C$332,0)","v":0},{"$f":"IF(Q168>0,$G161*((('1 Données d''entrée'!$C$332+1)^'1 Données d''entrée'!$C$333)-(1+'1 Données d''entrée'!$C$332)^('6 Financement'!P$54-1-'1 Données d''entrée'!$C$334-$B179))/((1+'1 Données d''entrée'!$C$332)^'1 Données d''entrée'!$C$333-1)*'1 Données d''entrée'!$C$332,0)","v":0},{"$f":"IF(R168>0,$G161*((('1 Données d''entrée'!$C$332+1)^'1 Données d''entrée'!$C$333)-(1+'1 Données d''entrée'!$C$332)^('6 Financement'!Q$54-1-'1 Données d''entrée'!$C$334-$B179))/((1+'1 Données d''entrée'!$C$332)^'1 Données d''entrée'!$C$333-1)*'1 Données d''entrée'!$C$332,0)","v":0},{"$f":"IF(S168>0,$G161*((('1 Données d''entrée'!$C$332+1)^'1 Données d''entrée'!$C$333)-(1+'1 Données d''entrée'!$C$332)^('6 Financement'!R$54-1-'1 Données d''entrée'!$C$334-$B179))/((1+'1 Données d''entrée'!$C$332)^'1 Données d''entrée'!$C$333-1)*'1 Données d''entrée'!$C$332,0)","v":0},{"$f":"IF(T168>0,$G161*((('1 Données d''entrée'!$C$332+1)^'1 Données d''entrée'!$C$333)-(1+'1 Données d''entrée'!$C$332)^('6 Financement'!S$54-1-'1 Données d''entrée'!$C$334-$B179))/((1+'1 Données d''entrée'!$C$332)^'1 Données d''entrée'!$C$333-1)*'1 Données d''entrée'!$C$332,0)","v":0},{"$f":"IF(U168>0,$G161*((('1 Données d''entrée'!$C$332+1)^'1 Données d''entrée'!$C$333)-(1+'1 Données d''entrée'!$C$332)^('6 Financement'!T$54-1-'1 Données d''entrée'!$C$334-$B179))/((1+'1 Données d''entrée'!$C$332)^'1 Données d''entrée'!$C$333-1)*'1 Données d''entrée'!$C$332,0)","v":0},{"$f":"IF(V168>0,$G161*((('1 Données d''entrée'!$C$332+1)^'1 Données d''entrée'!$C$333)-(1+'1 Données d''entrée'!$C$332)^('6 Financement'!U$54-1-'1 Données d''entrée'!$C$334-$B179))/((1+'1 Données d''entrée'!$C$332)^'1 Données d''entrée'!$C$333-1)*'1 Données d''entrée'!$C$332,0)","v":0}]
["Paiement d'intêrets",6,0,{"$f":"IF(D169>0,$H161*((('1 Données d''entrée'!$C$332+1)^'1 Données d''entrée'!$C$333)-(1+'1 Données d''entrée'!$C$332)^('6 Financement'!C$54-1-'1 Données d''entrée'!$C$334-$B180))/((1+'1 Données d''entrée'!$C$332)^'1 Données d''entrée'!$C$333-1)*'1 Données d''entrée'!$C$332,0)","v":0},{"$f":"IF(E169>0,$H161*((('1 Données d''entrée'!$C$332+1)^'1 Données d''entrée'!$C$333)-(1+'1 Données d''entrée'!$C$332)^('6 Financement'!D$54-1-'1 Données d''entrée'!$C$334-$B180))/((1+'1 Données d''entrée'!$C$332)^'1 Données d''entrée'!$C$333-1)*'1 Données d''entrée'!$C$332,0)","v":0},{"$f":"IF(F169>0,$H161*((('1 Données d''entrée'!$C$332+1)^'1 Données d''entrée'!$C$333)-(1+'1 Données d''entrée'!$C$332)^('6 Financement'!E$54-1-'1 Données d''entrée'!$C$334-$B180))/((1+'1 Données d''entrée'!$C$332)^'1 Données d''entrée'!$C$333-1)*'1 Données d''entrée'!$C$332,0)","v":0},{"$f":"IF(G169>0,$H161*((('1 Données d''entrée'!$C$332+1)^'1 Données d''entrée'!$C$333)-(1+'1 Données d''entrée'!$C$332)^('6 Financement'!F$54-1-'1 Données d''entrée'!$C$334-$B180))/((1+'1 Données d''entrée'!$C$332)^'1 Données d''entrée'!$C$333-1)*'1 Données d''entrée'!$C$332,0)","v":0},{"$f":"IF(H169>0,$H161*((('1 Données d''entrée'!$C$332+1)^'1 Données d''entrée'!$C$333)-(1+'1 Données d''entrée'!$C$332)^('6 Financement'!G$54-1-'1 Données d''entrée'!$C$334-$B180))/((1+'1 Données d''entrée'!$C$332)^'1 Données d''entrée'!$C$333-1)*'1 Données d''entrée'!$C$332,0)","v":0},{"$f":"IF(I169>0,$H161*((('1 Données d''entrée'!$C$332+1)^'1 Données d''entrée'!$C$333)-(1+'1 Données d''entrée'!$C$332)^('6 Financement'!H$54-1-'1 Données d''entrée'!$C$334-$B180))/((1+'1 Données d''entrée'!$C$332)^'1 Données d''entrée'!$C$333-1)*'1 Données d''entrée'!$C$332,0)","v":0},{"$f":"IF(J169>0,$H161*((('1 Données d''entrée'!$C$332+1)^'1 Données d''entrée'!$C$333)-(1+'1 Données d''entrée'!$C$332)^('6 Financement'!I$54-1-'1 Données d''entrée'!$C$334-$B180))/((1+'1 Données d''entrée'!$C$332)^'1 Données d''entrée'!$C$333-1)*'1 Données d''entrée'!$C$332,0)","v":0},{"$f":"IF(K169>0,$H161*((('1 Données d''entrée'!$C$332+1)^'1 Données d''entrée'!$C$333)-(1+'1 Données d''entrée'!$C$332)^('6 Financement'!J$54-1-'1 Données d''entrée'!$C$334-$B180))/((1+'1 Données d''entrée'!$C$332)^'1 Données d''entrée'!$C$333-1)*'1 Données d''entrée'!$C$332,0)","v":0},{"$f":"IF(L169>0,$H161*((('1 Données d''entrée'!$C$332+1)^'1 Données d''entrée'!$C$333)-(1+'1 Données d''entrée'!$C$332)^('6 Financement'!K$54-1-'1 Données d''entrée'!$C$334-$B180))/((1+'1 Données d''entrée'!$C$332)^'1 Données d''entrée'!$C$333-1)*'1 Données d''entrée'!$C$332,0)","v":0},{"$f":"IF(M169>0,$H161*((('1 Données d''entrée'!$C$332+1)^'1 Données d''entrée'!$C$333)-(1+'1 Données d''entrée'!$C$332)^('6 Financement'!L$54-1-'1 Données d''entrée'!$C$334-$B180))/((1+'1 Données d''entrée'!$C$332)^'1 Données d''entrée'!$C$333-1)*'1 Données d''entrée'!$C$332,0)","v":0},{"$f":"IF(N169>0,$H161*((('1 Données d''entrée'!$C$332+1)^'1 Données d''entrée'!$C$333)-(1+'1 Données d''entrée'!$C$332)^('6 Financement'!M$54-1-'1 Données d''entrée'!$C$334-$B180))/((1+'1 Données d''entrée'!$C$332)^'1 Données d''entrée'!$C$333-1)*'1 Données d''entrée'!$C$332,0)","v":0},{"$f":"IF(O169>0,$H161*((('1 Données d''entrée'!$C$332+1)^'1 Données d''entrée'!$C$333)-(1+'1 Données d''entrée'!$C$332)^('6 Financement'!N$54-1-'1 Données d''entrée'!$C$334-$B180))/((1+'1 Données d''entrée'!$C$332)^'1 Données d''entrée'!$C$333-1)*'1 Données d''entrée'!$C$332,0)","v":0},{"$f":"IF(P169>0,$H161*((('1 Données d''entrée'!$C$332+1)^'1 Données d''entrée'!$C$333)-(1+'1 Données d''entrée'!$C$332)^('6 Financement'!O$54-1-'1 Données d''entrée'!$C$334-$B180))/((1+'1 Données d''entrée'!$C$332)^'1 Données d''entrée'!$C$333-1)*'1 Données d''entrée'!$C$332,0)","v":0},{"$f":"IF(Q169>0,$H161*((('1 Données d''entrée'!$C$332+1)^'1 Données d''entrée'!$C$333)-(1+'1 Données d''entrée'!$C$332)^('6 Financement'!P$54-1-'1 Données d''entrée'!$C$334-$B180))/((1+'1 Données d''entrée'!$C$332)^'1 Données d''entrée'!$C$333-1)*'1 Données d''entrée'!$C$332,0)","v":0},{"$f":"IF(R169>0,$H161*((('1 Données d''entrée'!$C$332+1)^'1 Données d''entrée'!$C$333)-(1+'1 Données d''entrée'!$C$332)^('6 Financement'!Q$54-1-'1 Données d''entrée'!$C$334-$B180))/((1+'1 Données d''entrée'!$C$332)^'1 Données d''entrée'!$C$333-1)*'1 Données d''entrée'!$C$332,0)","v":0},{"$f":"IF(S169>0,$H161*((('1 Données d''entrée'!$C$332+1)^'1 Données d''entrée'!$C$333)-(1+'1 Données d''entrée'!$C$332)^('6 Financement'!R$54-1-'1 Données d''entrée'!$C$334-$B180))/((1+'1 Données d''entrée'!$C$332)^'1 Données d''entrée'!$C$333-1)*'1 Données d''entrée'!$C$332,0)","v":0},{"$f":"IF(T169>0,$H161*((('1 Données d''entrée'!$C$332+1)^'1 Données d''entrée'!$C$333)-(1+'1 Données d''entrée'!$C$332)^('6 Financement'!S$54-1-'1 Données d''entrée'!$C$334-$B180))/((1+'1 Données d''entrée'!$C$332)^'1 Données d''entrée'!$C$333-1)*'1 Données d''entrée'!$C$332,0)","v":0},{"$f":"IF(U169>0,$H161*((('1 Données d''entrée'!$C$332+1)^'1 Données d''entrée'!$C$333)-(1+'1 Données d''entrée'!$C$332)^('6 Financement'!T$54-1-'1 Données d''entrée'!$C$334-$B180))/((1+'1 Données d''entrée'!$C$332)^'1 Données d''entrée'!$C$333-1)*'1 Données d''entrée'!$C$332,0)","v":0},{"$f":"IF(V169>0,$H161*((('1 Données d''entrée'!$C$332+1)^'1 Données d''entrée'!$C$333)-(1+'1 Données d''entrée'!$C$332)^('6 Financement'!U$54-1-'1 Données d''entrée'!$C$334-$B180))/((1+'1 Données d''entrée'!$C$332)^'1 Données d''entrée'!$C$333-1)*'1 Données d''entrée'!$C$332,0)","v":0}]
["Paiement d'intêrets",7,0,{"$f":"IF(D170>0,$I161*((('1 Données d''entrée'!$C$332+1)^'1 Données d''entrée'!$C$333)-(1+'1 Données d''entrée'!$C$332)^('6 Financement'!C$54-1-'1 Données d''entrée'!$C$334-$B181))/((1+'1 Données d''entrée'!$C$332)^'1 Données d''entrée'!$C$333-1)*'1 Données d''entrée'!$C$332,0)","v":0},{"$f":"IF(E170>0,$I161*((('1 Données d''entrée'!$C$332+1)^'1 Données d''entrée'!$C$333)-(1+'1 Données d''entrée'!$C$332)^('6 Financement'!D$54-1-'1 Données d''entrée'!$C$334-$B181))/((1+'1 Données d''entrée'!$C$332)^'1 Données d''entrée'!$C$333-1)*'1 Données d''entrée'!$C$332,0)","v":0},{"$f":"IF(F170>0,$I161*((('1 Données d''entrée'!$C$332+1)^'1 Données d''entrée'!$C$333)-(1+'1 Données d''entrée'!$C$332)^('6 Financement'!E$54-1-'1 Données d''entrée'!$C$334-$B181))/((1+'1 Données d''entrée'!$C$332)^'1 Données d''entrée'!$C$333-1)*'1 Données d''entrée'!$C$332,0)","v":0},{"$f":"IF(G170>0,$I161*((('1 Données d''entrée'!$C$332+1)^'1 Données d''entrée'!$C$333)-(1+'1 Données d''entrée'!$C$332)^('6 Financement'!F$54-1-'1 Données d''entrée'!$C$334-$B181))/((1+'1 Données d''entrée'!$C$332)^'1 Données d''entrée'!$C$333-1)*'1 Données d''entrée'!$C$332,0)","v":0},{"$f":"IF(H170>0,$I161*((('1 Données d''entrée'!$C$332+1)^'1 Données d''entrée'!$C$333)-(1+'1 Données d''entrée'!$C$332)^('6 Financement'!G$54-1-'1 Données d''entrée'!$C$334-$B181))/((1+'1 Données d''entrée'!$C$332)^'1 Données d''entrée'!$C$333-1)*'1 Données d''entrée'!$C$332,0)","v":0},{"$f":"IF(I170>0,$I161*((('1 Données d''entrée'!$C$332+1)^'1 Données d''entrée'!$C$333)-(1+'1 Données d''entrée'!$C$332)^('6 Financement'!H$54-1-'1 Données d''entrée'!$C$334-$B181))/((1+'1 Données d''entrée'!$C$332)^'1 Données d''entrée'!$C$333-1)*'1 Données d''entrée'!$C$332,0)","v":0},{"$f":"IF(J170>0,$I161*((('1 Données d''entrée'!$C$332+1)^'1 Données d''entrée'!$C$333)-(1+'1 Données d''entrée'!$C$332)^('6 Financement'!I$54-1-'1 Données d''entrée'!$C$334-$B181))/((1+'1 Données d''entrée'!$C$332)^'1 Données d''entrée'!$C$333-1)*'1 Données d''entrée'!$C$332,0)","v":0},{"$f":"IF(K170>0,$I161*((('1 Données d''entrée'!$C$332+1)^'1 Données d''entrée'!$C$333)-(1+'1 Données d''entrée'!$C$332)^('6 Financement'!J$54-1-'1 Données d''entrée'!$C$334-$B181))/((1+'1 Données d''entrée'!$C$332)^'1 Données d''entrée'!$C$333-1)*'1 Données d''entrée'!$C$332,0)","v":0},{"$f":"IF(L170>0,$I161*((('1 Données d''entrée'!$C$332+1)^'1 Données d''entrée'!$C$333)-(1+'1 Données d''entrée'!$C$332)^('6 Financement'!K$54-1-'1 Données d''entrée'!$C$334-$B181))/((1+'1 Données d''entrée'!$C$332)^'1 Données d''entrée'!$C$333-1)*'1 Données d''entrée'!$C$332,0)","v":0},{"$f":"IF(M170>0,$I161*((('1 Données d''entrée'!$C$332+1)^'1 Données d''entrée'!$C$333)-(1+'1 Données d''entrée'!$C$332)^('6 Financement'!L$54-1-'1 Données d''entrée'!$C$334-$B181))/((1+'1 Données d''entrée'!$C$332)^'1 Données d''entrée'!$C$333-1)*'1 Données d''entrée'!$C$332,0)","v":0},{"$f":"IF(N170>0,$I161*((('1 Données d''entrée'!$C$332+1)^'1 Données d''entrée'!$C$333)-(1+'1 Données d''entrée'!$C$332)^('6 Financement'!M$54-1-'1 Données d''entrée'!$C$334-$B181))/((1+'1 Données d''entrée'!$C$332)^'1 Données d''entrée'!$C$333-1)*'1 Données d''entrée'!$C$332,0)","v":0},{"$f":"IF(O170>0,$I161*((('1 Données d''entrée'!$C$332+1)^'1 Données d''entrée'!$C$333)-(1+'1 Données d''entrée'!$C$332)^('6 Financement'!N$54-1-'1 Données d''entrée'!$C$334-$B181))/((1+'1 Données d''entrée'!$C$332)^'1 Données d''entrée'!$C$333-1)*'1 Données d''entrée'!$C$332,0)","v":0},{"$f":"IF(P170>0,$I161*((('1 Données d''entrée'!$C$332+1)^'1 Données d''entrée'!$C$333)-(1+'1 Données d''entrée'!$C$332)^('6 Financement'!O$54-1-'1 Données d''entrée'!$C$334-$B181))/((1+'1 Données d''entrée'!$C$332)^'1 Données d''entrée'!$C$333-1)*'1 Données d''entrée'!$C$332,0)","v":0},{"$f":"IF(Q170>0,$I161*((('1 Données d''entrée'!$C$332+1)^'1 Données d''entrée'!$C$333)-(1+'1 Données d''entrée'!$C$332)^('6 Financement'!P$54-1-'1 Données d''entrée'!$C$334-$B181))/((1+'1 Données d''entrée'!$C$332)^'1 Données d''entrée'!$C$333-1)*'1 Données d''entrée'!$C$332,0)","v":0},{"$f":"IF(R170>0,$I161*((('1 Données d''entrée'!$C$332+1)^'1 Données d''entrée'!$C$333)-(1+'1 Données d''entrée'!$C$332)^('6 Financement'!Q$54-1-'1 Données d''entrée'!$C$334-$B181))/((1+'1 Données d''entrée'!$C$332)^'1 Données d''entrée'!$C$333-1)*'1 Données d''entrée'!$C$332,0)","v":0},{"$f":"IF(S170>0,$I161*((('1 Données d''entrée'!$C$332+1)^'1 Données d''entrée'!$C$333)-(1+'1 Données d''entrée'!$C$332)^('6 Financement'!R$54-1-'1 Données d''entrée'!$C$334-$B181))/((1+'1 Données d''entrée'!$C$332)^'1 Données d''entrée'!$C$333-1)*'1 Données d''entrée'!$C$332,0)","v":0},{"$f":"IF(T170>0,$I161*((('1 Données d''entrée'!$C$332+1)^'1 Données d''entrée'!$C$333)-(1+'1 Données d''entrée'!$C$332)^('6 Financement'!S$54-1-'1 Données d''entrée'!$C$334-$B181))/((1+'1 Données d''entrée'!$C$332)^'1 Données d''entrée'!$C$333-1)*'1 Données d''entrée'!$C$332,0)","v":0},{"$f":"IF(U170>0,$I161*((('1 Données d''entrée'!$C$332+1)^'1 Données d''entrée'!$C$333)-(1+'1 Données d''entrée'!$C$332)^('6 Financement'!T$54-1-'1 Données d''entrée'!$C$334-$B181))/((1+'1 Données d''entrée'!$C$332)^'1 Données d''entrée'!$C$333-1)*'1 Données d''entrée'!$C$332,0)","v":0},{"$f":"IF(V170>0,$I161*((('1 Données d''entrée'!$C$332+1)^'1 Données d''entrée'!$C$333)-(1+'1 Données d''entrée'!$C$332)^('6 Financement'!U$54-1-'1 Données d''entrée'!$C$334-$B181))/((1+'1 Données d''entrée'!$C$332)^'1 Données d''entrée'!$C$333-1)*'1 Données d''entrée'!$C$332,0)","v":0}]
["Paiement d'intêrets",8,0,{"$f":"IF(D171>0,$J161*((('1 Données d''entrée'!$C$332+1)^'1 Données d''entrée'!$C$333)-(1+'1 Données d''entrée'!$C$332)^('6 Financement'!C$54-1-'1 Données d''entrée'!$C$334-$B182))/((1+'1 Données d''entrée'!$C$332)^'1 Données d''entrée'!$C$333-1)*'1 Données d''entrée'!$C$332,0)","v":0},{"$f":"IF(E171>0,$J161*((('1 Données d''entrée'!$C$332+1)^'1 Données d''entrée'!$C$333)-(1+'1 Données d''entrée'!$C$332)^('6 Financement'!D$54-1-'1 Données d''entrée'!$C$334-$B182))/((1+'1 Données d''entrée'!$C$332)^'1 Données d''entrée'!$C$333-1)*'1 Données d''entrée'!$C$332,0)","v":0},{"$f":"IF(F171>0,$J161*((('1 Données d''entrée'!$C$332+1)^'1 Données d''entrée'!$C$333)-(1+'1 Données d''entrée'!$C$332)^('6 Financement'!E$54-1-'1 Données d''entrée'!$C$334-$B182))/((1+'1 Données d''entrée'!$C$332)^'1 Données d''entrée'!$C$333-1)*'1 Données d''entrée'!$C$332,0)","v":0},{"$f":"IF(G171>0,$J161*((('1 Données d''entrée'!$C$332+1)^'1 Données d''entrée'!$C$333)-(1+'1 Données d''entrée'!$C$332)^('6 Financement'!F$54-1-'1 Données d''entrée'!$C$334-$B182))/((1+'1 Données d''entrée'!$C$332)^'1 Données d''entrée'!$C$333-1)*'1 Données d''entrée'!$C$332,0)","v":0},{"$f":"IF(H171>0,$J161*((('1 Données d''entrée'!$C$332+1)^'1 Données d''entrée'!$C$333)-(1+'1 Données d''entrée'!$C$332)^('6 Financement'!G$54-1-'1 Données d''entrée'!$C$334-$B182))/((1+'1 Données d''entrée'!$C$332)^'1 Données d''entrée'!$C$333-1)*'1 Données d''entrée'!$C$332,0)","v":0},{"$f":"IF(I171>0,$J161*((('1 Données d''entrée'!$C$332+1)^'1 Données d''entrée'!$C$333)-(1+'1 Données d''entrée'!$C$332)^('6 Financement'!H$54-1-'1 Données d''entrée'!$C$334-$B182))/((1+'1 Données d''entrée'!$C$332)^'1 Données d''entrée'!$C$333-1)*'1 Données d''entrée'!$C$332,0)","v":0},{"$f":"IF(J171>0,$J161*((('1 Données d''entrée'!$C$332+1)^'1 Données d''entrée'!$C$333)-(1+'1 Données d''entrée'!$C$332)^('6 Financement'!I$54-1-'1 Données d''entrée'!$C$334-$B182))/((1+'1 Données d''entrée'!$C$332)^'1 Données d''entrée'!$C$333-1)*'1 Données d''entrée'!$C$332,0)","v":0},{"$f":"IF(K171>0,$J161*((('1 Données d''entrée'!$C$332+1)^'1 Données d''entrée'!$C$333)-(1+'1 Données d''entrée'!$C$332)^('6 Financement'!J$54-1-'1 Données d''entrée'!$C$334-$B182))/((1+'1 Données d''entrée'!$C$332)^'1 Données d''entrée'!$C$333-1)*'1 Données d''entrée'!$C$332,0)","v":0},{"$f":"IF(L171>0,$J161*((('1 Données d''entrée'!$C$332+1)^'1 Données d''entrée'!$C$333)-(1+'1 Données d''entrée'!$C$332)^('6 Financement'!K$54-1-'1 Données d''entrée'!$C$334-$B182))/((1+'1 Données d''entrée'!$C$332)^'1 Données d''entrée'!$C$333-1)*'1 Données d''entrée'!$C$332,0)","v":0},{"$f":"IF(M171>0,$J161*((('1 Données d''entrée'!$C$332+1)^'1 Données d''entrée'!$C$333)-(1+'1 Données d''entrée'!$C$332)^('6 Financement'!L$54-1-'1 Données d''entrée'!$C$334-$B182))/((1+'1 Données d''entrée'!$C$332)^'1 Données d''entrée'!$C$333-1)*'1 Données d''entrée'!$C$332,0)","v":0},{"$f":"IF(N171>0,$J161*((('1 Données d''entrée'!$C$332+1)^'1 Données d''entrée'!$C$333)-(1+'1 Données d''entrée'!$C$332)^('6 Financement'!M$54-1-'1 Données d''entrée'!$C$334-$B182))/((1+'1 Données d''entrée'!$C$332)^'1 Données d''entrée'!$C$333-1)*'1 Données d''entrée'!$C$332,0)","v":0},{"$f":"IF(O171>0,$J161*((('1 Données d''entrée'!$C$332+1)^'1 Données d''entrée'!$C$333)-(1+'1 Données d''entrée'!$C$332)^('6 Financement'!N$54-1-'1 Données d''entrée'!$C$334-$B182))/((1+'1 Données d''entrée'!$C$332)^'1 Données d''entrée'!$C$333-1)*'1 Données d''entrée'!$C$332,0)","v":0},{"$f":"IF(P171>0,$J161*((('1 Données d''entrée'!$C$332+1)^'1 Données d''entrée'!$C$333)-(1+'1 Données d''entrée'!$C$332)^('6 Financement'!O$54-1-'1 Données d''entrée'!$C$334-$B182))/((1+'1 Données d''entrée'!$C$332)^'1 Données d''entrée'!$C$333-1)*'1 Données d''entrée'!$C$332,0)","v":0},{"$f":"IF(Q171>0,$J161*((('1 Données d''entrée'!$C$332+1)^'1 Données d''entrée'!$C$333)-(1+'1 Données d''entrée'!$C$332)^('6 Financement'!P$54-1-'1 Données d''entrée'!$C$334-$B182))/((1+'1 Données d''entrée'!$C$332)^'1 Données d''entrée'!$C$333-1)*'1 Données d''entrée'!$C$332,0)","v":0},{"$f":"IF(R171>0,$J161*((('1 Données d''entrée'!$C$332+1)^'1 Données d''entrée'!$C$333)-(1+'1 Données d''entrée'!$C$332)^('6 Financement'!Q$54-1-'1 Données d''entrée'!$C$334-$B182))/((1+'1 Données d''entrée'!$C$332)^'1 Données d''entrée'!$C$333-1)*'1 Données d''entrée'!$C$332,0)","v":0},{"$f":"IF(S171>0,$J161*((('1 Données d''entrée'!$C$332+1)^'1 Données d''entrée'!$C$333)-(1+'1 Données d''entrée'!$C$332)^('6 Financement'!R$54-1-'1 Données d''entrée'!$C$334-$B182))/((1+'1 Données d''entrée'!$C$332)^'1 Données d''entrée'!$C$333-1)*'1 Données d''entrée'!$C$332,0)","v":0},{"$f":"IF(T171>0,$J161*((('1 Données d''entrée'!$C$332+1)^'1 Données d''entrée'!$C$333)-(1+'1 Données d''entrée'!$C$332)^('6 Financement'!S$54-1-'1 Données d''entrée'!$C$334-$B182))/((1+'1 Données d''entrée'!$C$332)^'1 Données d''entrée'!$C$333-1)*'1 Données d''entrée'!$C$332,0)","v":0},{"$f":"IF(U171>0,$J161*((('1 Données d''entrée'!$C$332+1)^'1 Données d''entrée'!$C$333)-(1+'1 Données d''entrée'!$C$332)^('6 Financement'!T$54-1-'1 Données d''entrée'!$C$334-$B182))/((1+'1 Données d''entrée'!$C$332)^'1 Données d''entrée'!$C$333-1)*'1 Données d''entrée'!$C$332,0)","v":0},{"$f":"IF(V171>0,$J161*((('1 Données d''entrée'!$C$332+1)^'1 Données d''entrée'!$C$333)-(1+'1 Données d''entrée'!$C$332)^('6 Financement'!U$54-1-'1 Données d''entrée'!$C$334-$B182))/((1+'1 Données d''entrée'!$C$332)^'1 Données d''entrée'!$C$333-1)*'1 Données d''entrée'!$C$332,0)","v":0}]
["Paiement d'intêrets",9,0,{"$f":"IF(D172>0,$K161*((('1 Données d''entrée'!$C$332+1)^'1 Données d''entrée'!$C$333)-(1+'1 Données d''entrée'!$C$332)^('6 Financement'!C$54-1-'1 Données d''entrée'!$C$334-$B183))/((1+'1 Données d''entrée'!$C$332)^'1 Données d''entrée'!$C$333-1)*'1 Données d''entrée'!$C$332,0)","v":0},{"$f":"IF(E172>0,$K161*((('1 Données d''entrée'!$C$332+1)^'1 Données d''entrée'!$C$333)-(1+'1 Données d''entrée'!$C$332)^('6 Financement'!D$54-1-'1 Données d''entrée'!$C$334-$B183))/((1+'1 Données d''entrée'!$C$332)^'1 Données d''entrée'!$C$333-1)*'1 Données d''entrée'!$C$332,0)","v":0},{"$f":"IF(F172>0,$K161*((('1 Données d''entrée'!$C$332+1)^'1 Données d''entrée'!$C$333)-(1+'1 Données d''entrée'!$C$332)^('6 Financement'!E$54-1-'1 Données d''entrée'!$C$334-$B183))/((1+'1 Données d''entrée'!$C$332)^'1 Données d''entrée'!$C$333-1)*'1 Données d''entrée'!$C$332,0)","v":0},{"$f":"IF(G172>0,$K161*((('1 Données d''entrée'!$C$332+1)^'1 Données d''entrée'!$C$333)-(1+'1 Données d''entrée'!$C$332)^('6 Financement'!F$54-1-'1 Données d''entrée'!$C$334-$B183))/((1+'1 Données d''entrée'!$C$332)^'1 Données d''entrée'!$C$333-1)*'1 Données d''entrée'!$C$332,0)","v":0},{"$f":"IF(H172>0,$K161*((('1 Données d''entrée'!$C$332+1)^'1 Données d''entrée'!$C$333)-(1+'1 Données d''entrée'!$C$332)^('6 Financement'!G$54-1-'1 Données d''entrée'!$C$334-$B183))/((1+'1 Données d''entrée'!$C$332)^'1 Données d''entrée'!$C$333-1)*'1 Données d''entrée'!$C$332,0)","v":0},{"$f":"IF(I172>0,$K161*((('1 Données d''entrée'!$C$332+1)^'1 Données d''entrée'!$C$333)-(1+'1 Données d''entrée'!$C$332)^('6 Financement'!H$54-1-'1 Données d''entrée'!$C$334-$B183))/((1+'1 Données d''entrée'!$C$332)^'1 Données d''entrée'!$C$333-1)*'1 Données d''entrée'!$C$332,0)","v":0},{"$f":"IF(J172>0,$K161*((('1 Données d''entrée'!$C$332+1)^'1 Données d''entrée'!$C$333)-(1+'1 Données d''entrée'!$C$332)^('6 Financement'!I$54-1-'1 Données d''entrée'!$C$334-$B183))/((1+'1 Données d''entrée'!$C$332)^'1 Données d''entrée'!$C$333-1)*'1 Données d''entrée'!$C$332,0)","v":0},{"$f":"IF(K172>0,$K161*((('1 Données d''entrée'!$C$332+1)^'1 Données d''entrée'!$C$333)-(1+'1 Données d''entrée'!$C$332)^('6 Financement'!J$54-1-'1 Données d''entrée'!$C$334-$B183))/((1+'1 Données d''entrée'!$C$332)^'1 Données d''entrée'!$C$333-1)*'1 Données d''entrée'!$C$332,0)","v":0},{"$f":"IF(L172>0,$K161*((('1 Données d''entrée'!$C$332+1)^'1 Données d''entrée'!$C$333)-(1+'1 Données d''entrée'!$C$332)^('6 Financement'!K$54-1-'1 Données d''entrée'!$C$334-$B183))/((1+'1 Données d''entrée'!$C$332)^'1 Données d''entrée'!$C$333-1)*'1 Données d''entrée'!$C$332,0)","v":0},{"$f":"IF(M172>0,$K161*((('1 Données d''entrée'!$C$332+1)^'1 Données d''entrée'!$C$333)-(1+'1 Données d''entrée'!$C$332)^('6 Financement'!L$54-1-'1 Données d''entrée'!$C$334-$B183))/((1+'1 Données d''entrée'!$C$332)^'1 Données d''entrée'!$C$333-1)*'1 Données d''entrée'!$C$332,0)","v":0},{"$f":"IF(N172>0,$K161*((('1 Données d''entrée'!$C$332+1)^'1 Données d''entrée'!$C$333)-(1+'1 Données d''entrée'!$C$332)^('6 Financement'!M$54-1-'1 Données d''entrée'!$C$334-$B183))/((1+'1 Données d''entrée'!$C$332)^'1 Données d''entrée'!$C$333-1)*'1 Données d''entrée'!$C$332,0)","v":0},{"$f":"IF(O172>0,$K161*((('1 Données d''entrée'!$C$332+1)^'1 Données d''entrée'!$C$333)-(1+'1 Données d''entrée'!$C$332)^('6 Financement'!N$54-1-'1 Données d''entrée'!$C$334-$B183))/((1+'1 Données d''entrée'!$C$332)^'1 Données d''entrée'!$C$333-1)*'1 Données d''entrée'!$C$332,0)","v":0},{"$f":"IF(P172>0,$K161*((('1 Données d''entrée'!$C$332+1)^'1 Données d''entrée'!$C$333)-(1+'1 Données d''entrée'!$C$332)^('6 Financement'!O$54-1-'1 Données d''entrée'!$C$334-$B183))/((1+'1 Données d''entrée'!$C$332)^'1 Données d''entrée'!$C$333-1)*'1 Données d''entrée'!$C$332,0)","v":0},{"$f":"IF(Q172>0,$K161*((('1 Données d''entrée'!$C$332+1)^'1 Données d''entrée'!$C$333)-(1+'1 Données d''entrée'!$C$332)^('6 Financement'!P$54-1-'1 Données d''entrée'!$C$334-$B183))/((1+'1 Données d''entrée'!$C$332)^'1 Données d''entrée'!$C$333-1)*'1 Données d''entrée'!$C$332,0)","v":0},{"$f":"IF(R172>0,$K161*((('1 Données d''entrée'!$C$332+1)^'1 Données d''entrée'!$C$333)-(1+'1 Données d''entrée'!$C$332)^('6 Financement'!Q$54-1-'1 Données d''entrée'!$C$334-$B183))/((1+'1 Données d''entrée'!$C$332)^'1 Données d''entrée'!$C$333-1)*'1 Données d''entrée'!$C$332,0)","v":0},{"$f":"IF(S172>0,$K161*((('1 Données d''entrée'!$C$332+1)^'1 Données d''entrée'!$C$333)-(1+'1 Données d''entrée'!$C$332)^('6 Financement'!R$54-1-'1 Données d''entrée'!$C$334-$B183))/((1+'1 Données d''entrée'!$C$332)^'1 Données d''entrée'!$C$333-1)*'1 Données d''entrée'!$C$332,0)","v":0},{"$f":"IF(T172>0,$K161*((('1 Données d''entrée'!$C$332+1)^'1 Données d''entrée'!$C$333)-(1+'1 Données d''entrée'!$C$332)^('6 Financement'!S$54-1-'1 Données d''entrée'!$C$334-$B183))/((1+'1 Données d''entrée'!$C$332)^'1 Données d''entrée'!$C$333-1)*'1 Données d''entrée'!$C$332,0)","v":0},{"$f":"IF(U172>0,$K161*((('1 Données d''entrée'!$C$332+1)^'1 Données d''entrée'!$C$333)-(1+'1 Données d''entrée'!$C$332)^('6 Financement'!T$54-1-'1 Données d''entrée'!$C$334-$B183))/((1+'1 Données d''entrée'!$C$332)^'1 Données d''entrée'!$C$333-1)*'1 Données d''entrée'!$C$332,0)","v":0},{"$f":"IF(V172>0,$K161*((('1 Données d''entrée'!$C$332+1)^'1 Données d''entrée'!$C$333)-(1+'1 Données d''entrée'!$C$332)^('6 Financement'!U$54-1-'1 Données d''entrée'!$C$334-$B183))/((1+'1 Données d''entrée'!$C$332)^'1 Données d''entrée'!$C$333-1)*'1 Données d''entrée'!$C$332,0)","v":0}]
["Paiement d'intêrets",10,0,{"$f":"IF(D173>0,$L161*((('1 Données d''entrée'!$C$332+1)^'1 Données d''entrée'!$C$333)-(1+'1 Données d''entrée'!$C$332)^('6 Financement'!C$54-1-'1 Données d''entrée'!$C$334-$B184))/((1+'1 Données d''entrée'!$C$332)^'1 Données d''entrée'!$C$333-1)*'1 Données d''entrée'!$C$332,0)","v":0},{"$f":"IF(E173>0,$L161*((('1 Données d''entrée'!$C$332+1)^'1 Données d''entrée'!$C$333)-(1+'1 Données d''entrée'!$C$332)^('6 Financement'!D$54-1-'1 Données d''entrée'!$C$334-$B184))/((1+'1 Données d''entrée'!$C$332)^'1 Données d''entrée'!$C$333-1)*'1 Données d''entrée'!$C$332,0)","v":0},{"$f":"IF(F173>0,$L161*((('1 Données d''entrée'!$C$332+1)^'1 Données d''entrée'!$C$333)-(1+'1 Données d''entrée'!$C$332)^('6 Financement'!E$54-1-'1 Données d''entrée'!$C$334-$B184))/((1+'1 Données d''entrée'!$C$332)^'1 Données d''entrée'!$C$333-1)*'1 Données d''entrée'!$C$332,0)","v":0},{"$f":"IF(G173>0,$L161*((('1 Données d''entrée'!$C$332+1)^'1 Données d''entrée'!$C$333)-(1+'1 Données d''entrée'!$C$332)^('6 Financement'!F$54-1-'1 Données d''entrée'!$C$334-$B184))/((1+'1 Données d''entrée'!$C$332)^'1 Données d''entrée'!$C$333-1)*'1 Données d''entrée'!$C$332,0)","v":0},{"$f":"IF(H173>0,$L161*((('1 Données d''entrée'!$C$332+1)^'1 Données d''entrée'!$C$333)-(1+'1 Données d''entrée'!$C$332)^('6 Financement'!G$54-1-'1 Données d''entrée'!$C$334-$B184))/((1+'1 Données d''entrée'!$C$332)^'1 Données d''entrée'!$C$333-1)*'1 Données d''entrée'!$C$332,0)","v":0},{"$f":"IF(I173>0,$L161*((('1 Données d''entrée'!$C$332+1)^'1 Données d''entrée'!$C$333)-(1+'1 Données d''entrée'!$C$332)^('6 Financement'!H$54-1-'1 Données d''entrée'!$C$334-$B184))/((1+'1 Données d''entrée'!$C$332)^'1 Données d''entrée'!$C$333-1)*'1 Données d''entrée'!$C$332,0)","v":0},{"$f":"IF(J173>0,$L161*((('1 Données d''entrée'!$C$332+1)^'1 Données d''entrée'!$C$333)-(1+'1 Données d''entrée'!$C$332)^('6 Financement'!I$54-1-'1 Données d''entrée'!$C$334-$B184))/((1+'1 Données d''entrée'!$C$332)^'1 Données d''entrée'!$C$333-1)*'1 Données d''entrée'!$C$332,0)","v":0},{"$f":"IF(K173>0,$L161*((('1 Données d''entrée'!$C$332+1)^'1 Données d''entrée'!$C$333)-(1+'1 Données d''entrée'!$C$332)^('6 Financement'!J$54-1-'1 Données d''entrée'!$C$334-$B184))/((1+'1 Données d''entrée'!$C$332)^'1 Données d''entrée'!$C$333-1)*'1 Données d''entrée'!$C$332,0)","v":0},{"$f":"IF(L173>0,$L161*((('1 Données d''entrée'!$C$332+1)^'1 Données d''entrée'!$C$333)-(1+'1 Données d''entrée'!$C$332)^('6 Financement'!K$54-1-'1 Données d''entrée'!$C$334-$B184))/((1+'1 Données d''entrée'!$C$332)^'1 Données d''entrée'!$C$333-1)*'1 Données d''entrée'!$C$332,0)","v":0},{"$f":"IF(M173>0,$L161*((('1 Données d''entrée'!$C$332+1)^'1 Données d''entrée'!$C$333)-(1+'1 Données d''entrée'!$C$332)^('6 Financement'!L$54-1-'1 Données d''entrée'!$C$334-$B184))/((1+'1 Données d''entrée'!$C$332)^'1 Données d''entrée'!$C$333-1)*'1 Données d''entrée'!$C$332,0)","v":0},{"$f":"IF(N173>0,$L161*((('1 Données d''entrée'!$C$332+1)^'1 Données d''entrée'!$C$333)-(1+'1 Données d''entrée'!$C$332)^('6 Financement'!M$54-1-'1 Données d''entrée'!$C$334-$B184))/((1+'1 Données d''entrée'!$C$332)^'1 Données d''entrée'!$C$333-1)*'1 Données d''entrée'!$C$332,0)","v":0},{"$f":"IF(O173>0,$L161*((('1 Données d''entrée'!$C$332+1)^'1 Données d''entrée'!$C$333)-(1+'1 Données d''entrée'!$C$332)^('6 Financement'!N$54-1-'1 Données d''entrée'!$C$334-$B184))/((1+'1 Données d''entrée'!$C$332)^'1 Données d''entrée'!$C$333-1)*'1 Données d''entrée'!$C$332,0)","v":0},{"$f":"IF(P173>0,$L161*((('1 Données d''entrée'!$C$332+1)^'1 Données d''entrée'!$C$333)-(1+'1 Données d''entrée'!$C$332)^('6 Financement'!O$54-1-'1 Données d''entrée'!$C$334-$B184))/((1+'1 Données d''entrée'!$C$332)^'1 Données d''entrée'!$C$333-1)*'1 Données d''entrée'!$C$332,0)","v":0},{"$f":"IF(Q173>0,$L161*((('1 Données d''entrée'!$C$332+1)^'1 Données d''entrée'!$C$333)-(1+'1 Données d''entrée'!$C$332)^('6 Financement'!P$54-1-'1 Données d''entrée'!$C$334-$B184))/((1+'1 Données d''entrée'!$C$332)^'1 Données d''entrée'!$C$333-1)*'1 Données d''entrée'!$C$332,0)","v":0},{"$f":"IF(R173>0,$L161*((('1 Données d''entrée'!$C$332+1)^'1 Données d''entrée'!$C$333)-(1+'1 Données d''entrée'!$C$332)^('6 Financement'!Q$54-1-'1 Données d''entrée'!$C$334-$B184))/((1+'1 Données d''entrée'!$C$332)^'1 Données d''entrée'!$C$333-1)*'1 Données d''entrée'!$C$332,0)","v":0},{"$f":"IF(S173>0,$L161*((('1 Données d''entrée'!$C$332+1)^'1 Données d''entrée'!$C$333)-(1+'1 Données d''entrée'!$C$332)^('6 Financement'!R$54-1-'1 Données d''entrée'!$C$334-$B184))/((1+'1 Données d''entrée'!$C$332)^'1 Données d''entrée'!$C$333-1)*'1 Données d''entrée'!$C$332,0)","v":0},{"$f":"IF(T173>0,$L161*((('1 Données d''entrée'!$C$332+1)^'1 Données d''entrée'!$C$333)-(1+'1 Données d''entrée'!$C$332)^('6 Financement'!S$54-1-'1 Données d''entrée'!$C$334-$B184))/((1+'1 Données d''entrée'!$C$332)^'1 Données d''entrée'!$C$333-1)*'1 Données d''entrée'!$C$332,0)","v":0},{"$f":"IF(U173>0,$L161*((('1 Données d''entrée'!$C$332+1)^'1 Données d''entrée'!$C$333)-(1+'1 Données d''entrée'!$C$332)^('6 Financement'!T$54-1-'1 Données d''entrée'!$C$334-$B184))/((1+'1 Données d''entrée'!$C$332)^'1 Données d''entrée'!$C$333-1)*'1 Données d''entrée'!$C$332,0)","v":0},{"$f":"IF(V173>0,$L161*((('1 Données d''entrée'!$C$332+1)^'1 Données d''entrée'!$C$333)-(1+'1 Données d''entrée'!$C$332)^('6 Financement'!U$54-1-'1 Données d''entrée'!$C$334-$B184))/((1+'1 Données d''entrée'!$C$332)^'1 Données d''entrée'!$C$333-1)*'1 Données d''entrée'!$C$332,0)","v":0}]
[]
["Solde du comte (par période)",null,{"$f":"C97+IF($B$103>0,C105-SUM(C107:C117)-SUM(C119:C129),0)+IF($B$131>0,C133-SUM(C135:C145)-SUM(C147:C157),0)+IF($B$159>0,C161-SUM(C163:C173),0)","v":{"$error":"#DIV/0!"}},{"$f":"D97+IF($B$103>0,D105-SUM(D107:D117)-SUM(D119:D129),0)+IF($B$131>0,D133-SUM(D135:D145)-SUM(D147:D157),0)+IF($B$159>0,D161-SUM(D163:D173),0)","v":{"$error":"#DIV/0!"}},{"$error":"#DIV/0!"},{"$error":"#DIV/0!"},{"$error":"#DIV/0!"},{"$error":"#DIV/0!"},{"$error":"#DIV/0!"},{"$error":"#DIV/0!"},{"$error":"#DIV/0!"},{"$error":"#DIV/0!"},{"$error":"#DIV/0!"},{"$error":"#DIV/0!"},{"$error":"#DIV/0!"},{"$error":"#DIV/0!"},{"$error":"#DIV/0!"},{"$error":"#DIV/0!"},{"$error":"#DIV/0!"},{"$error":"#DIV/0!"},{"$error":"#DIV/0!"},{"$error":"#DIV/0!"}]
["Solde du compte (cumulé)",null,{"$f":"C187+B98","v":{"$error":"#DIV/0!"}},{"$f":"C188+D187","v":{"$error":"#DIV/0!"}},{"$f":"D188+E187","v":{"$error":"#DIV/0!"}},{"$error":"#DIV/0!"},{"$error":"#DIV/0!"},{"$error":"#DIV/0!"},{"$error":"#DIV/0!"},{"$error":"#DIV/0!"},{"$error":"#DIV/0!"},{"$error":"#DIV/0!"},{"$error":"#DIV/0!"},{"$error":"#DIV/0!"},{"$error":"#DIV/0!"},{"$error":"#DIV/0!"},{"$error":"#DIV/0!"},{"$error":"#DIV/0!"},{"$error":"#DIV/0!"},{"$error":"#DIV/0!"},{"$error":"#DIV/0!"},{"$error":"#DIV/0!"}]
[]
[]
["Coût du financement","Période",1,2,3,4,5,6,7,8,9,10,11,12,13,14,15,16,17,18,19,20]
["Paiement d'intérêt par période",null,{"$f":"IF($B63>0,(C66+C67),0)+IF($B68>0,(C71+C72),0)+IF($B73>0,C76+C77,0)+IF($B80>0,(C83+C84),0)+IF($B85>0,(C88+C89),0)+IF($B90>0,C93+C94,0)+IF($B102>0,SUM(C119:C129),0)+IF($B132>0,SUM(C147:C157),0)+IF($B160>0,SUM(C175:C185),0)","v":0},{"$f":"IF($B63>0,(D66+D67),0)+IF($B68>0,(D71+D72),0)+IF($B73>0,D76+D77,0)+IF($B80>0,(D83+D84),0)+IF($B85>0,(D88+D89),0)+IF($B90>0,D93+D94,0)+IF($B102>0,SUM(D119:D129),0)+IF($B132>0,SUM(D147:D157),0)+IF($B160>0,SUM(D175:D185),0)","v":0},0,0,0,0,0,0,0,0,0,0,0,0,0,0,0,0,0,0]
["Remboursement du principal par période",null,{"$f":"IF($B63>0,(C65),0)+IF($B68>0,(C70),0)+IF($B73>0,IF(C75>0,C75-C76,0),0)+IF($B80>0,(C82),0)+IF($B85>0,(C87),0)+IF($B90>0,IF(C92>0,C92-C93,0),0)+IF($B104>0,SUM(C107:C117),0)+IF($B132>0,SUM(C135:C145),0)+IF($B160>0,SUM(C163:C173)-SUM(C175:C185),0)","v":0},{"$f":"IF($B63>0,(D65),0)+IF($B68>0,(D70),0)+IF($B73>0,IF(D75>0,D75-D76,0),0)+IF($B80>0,(D82),0)+IF($B85>0,(D87),0)+IF($B90>0,IF(D92>0,D92-D93,0),0)+IF($B104>0,SUM(D107:D117),0)+IF($B132>0,SUM(D135:D145),0)+IF($B160>0,SUM(D163:D173)-SUM(D175:D185),0)","v":0},0,0,0,0,0,0,0,0,0,0,0,0,0,0,0,0,0,0]
[]
[]
["Flux de trésorerie net       "]
["Période (t)","Flux de trésorerie       brut","Coût de financement ","Subventions","Flux de trésorerie       intermédiaires (avec coût fin. et Subventions)","Flux de trésorerie      , taxe contenue","Flux de trésorerie       cumulé, taxe contenue","Période de remboursement"]
[0,{"$f":"'5 Flux de trésorerie brut'!$D$7","v":{"$error":"#DIV/0!"}},0,{"$f":"B61+B79","v":0},{"$f":"D198-C198+B198","v":{"$error":"#DIV/0!"}},{"$f":"IF(E198>0,(E198-E198*'1 Données d''entrée'!$C$353-IF('5 Flux de trésorerie brut'!$D$7>0,'1 Données d''entrée'!$C$357*'5 Flux de trésorerie brut'!$D$7,0)),E198)","v":{"$error":"#DIV/0!"}},{"$f":"F198","v":{"$error":"#DIV/0!"}},{"$f":"IF(G198<0,\" \",A198)","v":{"$error":"#DIV/0!"}}]
[1,{"$f":"'5 Flux de trésorerie brut'!$D$8","v":{"$error":"#DIV/0!"}},{"$f":"C192+C193","v":0},0,{"$f":"D199-C199+B199","v":{"$error":"#DIV/0!"}},{"$f":"IF(E199>0,(E199-E199*'1 Données d''entrée'!$C$353-IF('5 Flux de trésorerie brut'!$D$8>0,'1 Données d''entrée'!$C$357*'5 Flux de trésorerie brut'!$D$8,0)),E199)","v":{"$error":"#DIV/0!"}},{"$f":"G198+F199","v":{"$error":"#DIV/0!"}},{"$f":"IF(G199<0,\" \",IF(SUM(H198:H198)>0,\" \",IF(H198=0,\" \",A199)))","v":{"$error":"#DIV/0!"}}]
[2,{"$f":"'5 Flux de trésorerie brut'!$D$9","v":{"$error":"#DIV/0!"}},{"$f":"D192+D193","v":0},0,{"$error":"#DIV/0!"},{"$f":"IF(E200>0,(E200-E200*'1 Données d''entrée'!$C$353-IF('5 Flux de trésorerie brut'!$D$9>0,'1 Données d''entrée'!$C$357*'5 Flux de trésorerie brut'!$D$9,0)),E200)","v":{"$error":"#DIV/0!"}},{"$error":"#DIV/0!"},{"$f":"IF(G200<0,\" \",IF(SUM(H198:H199)>0,\" \",IF(H198=0,\" \",A200)))","v":{"$error":"#DIV/0!"}}]
[3,{"$f":"'5 Flux de trésorerie brut'!$D$10","v":{"$error":"#DIV/0!"}},{"$f":"E192+E193","v":0},0,{"$error":"#DIV/0!"},{"$f":"IF(E201>0,(E201-E201*'1 Données d''entrée'!$C$353-IF('5 Flux de trésorerie brut'!$D$10>0,'1 Données d''entrée'!$C$357*'5 Flux de trésorerie brut'!$D$10,0)),E201)","v":{"$error":"#DIV/0!"}},{"$error":"#DIV/0!"},{"$f":"IF(G201<0,\" \",IF(SUM(H198:H200)>0,\" \",IF(H198=0,\" \",A201)))","v":{"$error":"#DIV/0!"}}]
[4,{"$f":"'5 Flux de trésorerie brut'!$D$11","v":{"$error":"#DIV/0!"}},{"$f":"F192+F193","v":0},0,{"$error":"#DIV/0!"},{"$f":"IF(E202>0,(E202-E202*'1 Données d''entrée'!$C$353-IF('5 Flux de trésorerie brut'!$D$11>0,'1 Données d''entrée'!$C$357*'5 Flux de trésorerie brut'!$D$11,0)),E202)","v":{"$error":"#DIV/0!"}},{"$error":"#DIV/0!"},{"$f":"IF(G202<0,\" \",IF(SUM(H198:H201)>0,\" \",IF(H198=0,\" \",A202)))","v":{"$error":"#DIV/0!"}}]
[5,{"$f":"'5 Flux de trésorerie brut'!$D$12","v":{"$error":"#DIV/0!"}},{"$f":"G192+G193","v":0},0,{"$error":"#DIV/0!"},{"$f":"IF(E203>0,(E203-E203*'1 Données d''entrée'!$C$353-IF('5 Flux de trésorerie brut'!$D$12>0,'1 Données d''entrée'!$C$357*'5 Flux de trésorerie brut'!$D$12,0)),E203)","v":{"$error":"#DIV/0!"}},{"$error":"#DIV/0!"},{"$f":"IF(G203<0,\" \",IF(SUM(H198:H202)>0,\" \",IF(H198=0,\" \",A203)))","v":{"$error":"#DIV/0!"}}]
[6,{"$f":"'5 Flux de trésorerie brut'!$D$13","v":{"$error":"#DIV/0!"}},{"$f":"H192+H193","v":0},0,{"$error":"#DIV/0!"},{"$f":"IF(E204>0,(E204-E204*'1 Données d''entrée'!$C$353-IF('5 Flux de trésorerie brut'!$D$13>0,'1 Données d''entrée'!$C$357*'5 Flux de trésorerie brut'!$D$13,0)),E204)","v":{"$error":"#DIV/0!"}},{"$error":"#DIV/0!"},{"$f":"IF(G204<0,\" \",IF(SUM(H198:H203)>0,\" \",IF(H198=0,\" \",A204)))","v":{"$error":"#DIV/0!"}}]
[7,{"$f":"'5 Flux de trésorerie brut'!$D$14","v":{"$error":"#DIV/0!"}},{"$f":"I192+I193","v":0},0,{"$error":"#DIV/0!"},{"$f":"IF(E205>0,(E205-E205*'1 Données d''entrée'!$C$353-IF('5 Flux de trésorerie brut'!$D$14>0,'1 Données d''entrée'!$C$357*'5 Flux de trésorerie brut'!$D$14,0)),E205)","v":{"$error":"#DIV/0!"}},{"$error":"#DIV/0!"},{"$f":"IF(G205<0,\" \",IF(SUM(H198:H204)>0,\" \",IF(H198=0,\" \",A205)))","v":{"$error":"#DIV/0!"}}]
[8,{"$f":"'5 Flux de trésorerie brut'!$D$15","v":{"$error":"#DIV/0!"}},{"$f":"J192+J193","v":0},0,{"$error":"#DIV/0!"},{"$f":"IF(E206>0,(E206-E206*'1 Données d''entrée'!$C$353-IF('5 Flux de trésorerie brut'!$D$15>0,'1 Données d''entrée'!$C$357*'5 Flux de trésorerie brut'!$D$15,0)),E206)","v":{"$error":"#DIV/0!"}},{"$error":"#DIV/0!"},{"$f":"IF(G206<0,\" \",IF(SUM(H198:H205)>0,\" \",IF(H198=0,\" \",A206)))","v":{"$error":"#DIV/0!"}}]
[9,{"$f":"'5 Flux de trésorerie brut'!$D$16","v":{"$error":"#DIV/0!"}},{"$f":"K192+K193","v":0},0,{"$error":"#DIV/0!"},{"$f":"IF(E207>0,(E207-E207*'1 Données d''entrée'!$C$353-IF('5 Flux de trésorerie brut'!$D$16>0,'1 Données d''entrée'!$C$357*'5 Flux de trésorerie brut'!$D$16,0)),E207)","v":{"$error":"#DIV/0!"}},{"$error":"#DIV/0!"},{"$f":"IF(G207<0,\" \",IF(SUM(H198:H206)>0,\" \",IF(H198=0,\" \",A207)))","v":{"$error":"#DIV/0!"}}]
[10,{"$f":"'5 Flux de trésorerie brut'!$D$17","v":{"$error":"#DIV/0!"}},{"$f":"L192+L193","v":0},0,{"$error":"#DIV/0!"},{"$f":"IF(E208>0,(E208-E208*'1 Données d''entrée'!$C$353-IF('5 Flux de trésorerie brut'!$D$17>0,'1 Données d''entrée'!$C$357*'5 Flux de trésorerie brut'!$D$17,0)),E208)","v":{"$error":"#DIV/0!"}},{"$error":"#DIV/0!"},{"$f":"IF(G208<0,\" \",IF(SUM(H198:H207)>0,\" \",IF(H198=0,\" \",A208)))","v":{"$error":"#DIV/0!"}}]
[11,{"$f":"'5 Flux de trésorerie brut'!$D$18","v":{"$error":"#DIV/0!"}},{"$f":"M192+M193","v":0},0,{"$error":"#DIV/0!"},{"$f":"IF(E209>0,(E209-E209*'1 Données d''entrée'!$C$353-IF('5 Flux de trésorerie brut'!$D$18>0,'1 Données d''entrée'!$C$357*'5 Flux de trésorerie brut'!$D$18,0)),E209)","v":{"$error":"#DIV/0!"}},{"$error":"#DIV/0!"},{"$f":"IF(G209<0,\" \",IF(SUM(H198:H208)>0,\" \",IF(H198=0,\" \",A209)))","v":{"$error":"#DIV/0!"}}]
[12,{"$f":"'5 Flux de trésorerie brut'!$D$19","v":{"$error":"#DIV/0!"}},{"$f":"N192+N193","v":0},0,{"$error":"#DIV/0!"},{"$f":"IF(E210>0,(E210-E210*'1 Données d''entrée'!$C$353-IF('5 Flux de trésorerie brut'!$D$19>0,'1 Données d''entrée'!$C$357*'5 Flux de trésorerie brut'!$D$19,0)),E210)","v":{"$error":"#DIV/0!"}},{"$error":"#DIV/0!"},{"$f":"IF(G210<0,\" \",IF(SUM(H198:H209)>0,\" \",IF(H198=0,\" \",A210)))","v":{"$error":"#DIV/0!"}}]
[13,{"$f":"'5 Flux de trésorerie brut'!$D$20","v":{"$error":"#DIV/0!"}},{"$f":"O192+O193","v":0},0,{"$error":"#DIV/0!"},{"$f":"IF(E211>0,(E211-E211*'1 Données d''entrée'!$C$353-IF('5 Flux de trésorerie brut'!$D$20>0,'1 Données d''entrée'!$C$357*'5 Flux de trésorerie brut'!$D$20,0)),E211)","v":{"$error":"#DIV/0!"}},{"$error":"#DIV/0!"},{"$f":"IF(G211<0,\" \",IF(SUM(H198:H210)>0,\" \",IF(H198=0,\" \",A211)))","v":{"$error":"#DIV/0!"}}]
[14,{"$f":"'5 Flux de trésorerie brut'!$D$21","v":{"$error":"#DIV/0!"}},{"$f":"P192+P193","v":0},0,{"$error":"#DIV/0!"},{"$f":"IF(E212>0,(E212-E212*'1 Données d''entrée'!$C$353-IF('5 Flux de trésorerie brut'!$D$21>0,'1 Données d''entrée'!$C$357*'5 Flux de trésorerie brut'!$D$21,0)),E212)","v":{"$error":"#DIV/0!"}},{"$error":"#DIV/0!"},{"$f":"IF(G212<0,\" \",IF(SUM(H198:H211)>0,\" \",IF(H198=0,\" \",A212)))","v":{"$error":"#DIV/0!"}}]
[15,{"$f":"'5 Flux de trésorerie brut'!$D$22","v":{"$error":"#DIV/0!"}},{"$f":"Q192+Q193","v":0},0,{"$error":"#DIV/0!"},{"$f":"IF(E213>0,(E213-E213*'1 Données d''entrée'!$C$353-IF('5 Flux de trésorerie brut'!$D$22>0,'1 Données d''entrée'!$C$357*'5 Flux de trésorerie brut'!$D$22,0)),E213)","v":{"$error":"#DIV/0!"}},{"$error":"#DIV/0!"},{"$f":"IF(G213<0,\" \",IF(SUM(H198:H212)>0,\" \",IF(H198=0,\" \",A213)))","v":{"$error":"#DIV/0!"}}]
[16,{"$f":"'5 Flux de trésorerie brut'!$D$23","v":{"$error":"#DIV/0!"}},{"$f":"R192+R193","v":0},0,{"$error":"#DIV/0!"},{"$f":"IF(E214>0,(E214-E214*'1 Données d''entrée'!$C$353-IF('5 Flux de trésorerie brut'!$D$23>0,'1 Données d''entrée'!$C$357*'5 Flux de trésorerie brut'!$D$23,0)),E214)","v":{"$error":"#DIV/0!"}},{"$error":"#DIV/0!"},{"$f":"IF(G214<0,\" \",IF(SUM(H198:H213)>0,\" \",IF(H198=0,\" \",A214)))","v":{"$error":"#DIV/0!"}}]
[17,{"$f":"'5 Flux de trésorerie brut'!$D$24","v":{"$error":"#DIV/0!"}},{"$f":"S192+S193","v":0},0,{"$error":"#DIV/0!"},{"$f":"IF(E215>0,(E215-E215*'1 Données d''entrée'!$C$353-IF('5 Flux de trésorerie brut'!$D$24>0,'1 Données d''entrée'!$C$357*'5 Flux de trésorerie brut'!$D$24,0)),E215)","v":{"$error":"#DIV/0!"}},{"$error":"#DIV/0!"},{"$f":"IF(G215<0,\" \",IF(SUM(H198:H214)>0,\" \",IF(H198=0,\" \",A215)))","v":{"$error":"#DIV/0!"}}]
[18,{"$f":"'5 Flux de trésorerie brut'!$D$25","v":{"$error":"#DIV/0!"}},{"$f":"T192+T193","v":0},0,{"$error":"#DIV/0!"},{"$f":"IF(E216>0,(E216-E216*'1 Données d''entrée'!$C$353-IF('5 Flux de trésorerie brut'!$D$25>0,'1 Données d''entrée'!$C$357*'5 Flux de trésorerie brut'!$D$25,0)),E216)","v":{"$error":"#DIV/0!"}},{"$error":"#DIV/0!"},{"$f":"IF(G216<0,\" \",IF(SUM(H198:H215)>0,\" \",IF(H198=0,\" \",A216)))","v":{"$error":"#DIV/0!"}}]
[19,{"$f":"'5 Flux de trésorerie brut'!$D$26","v":{"$error":"#DIV/0!"}},{"$f":"U192+U193","v":0},0,{"$error":"#DIV/0!"},{"$f":"IF(E217>0,(E217-E217*'1 Données d''entrée'!$C$353-IF('5 Flux de trésorerie brut'!$D$26>0,'1 Données d''entrée'!$C$357*'5 Flux de trésorerie brut'!$D$26,0)),E217)","v":{"$error":"#DIV/0!"}},{"$error":"#DIV/0!"},{"$f":"IF(G217<0,\" \",IF(SUM(H198:H216)>0,\" \",IF(H198=0,\" \",A217)))","v":{"$error":"#DIV/0!"}}]
[20,{"$f":"'5 Flux de trésorerie brut'!$D$27","v":{"$error":"#DIV/0!"}},{"$f":"V192+V193","v":0},0,{"$error":"#DIV/0!"},{"$f":"IF(E218>0,(E218-E218*'1 Données d''entrée'!$C$353-IF('5 Flux de trésorerie brut'!$D$27>0,'1 Données d''entrée'!$C$357*'5 Flux de trésorerie brut'!$D$27,0)),E218)","v":{"$error":"#DIV/0!"}},{"$error":"#DIV/0!"},{"$f":"IF(G218<0,\" \",IF(SUM(H198:H217)>0,\" \",IF(H198=0,\" \",A218)))","v":{"$error":"#DIV/0!"}}]
[]
[]
[null,null,"Valeur actuelle nette",{"$f":"NPV('1 Données d''entrée'!$H$28,'10 Subvention d''ADER'!F199:F218)+'10 Subvention d''ADER'!F198","v":{"$error":"#DIV/0!"}}]
[null,null,"Taux de rentabilité interne",{"$f":"IRR(F198:F218)","v":{"$error":"#VALUE!"}}]
[]
[]
[]
[]
[]
[]
["Tableau de calcul avec un taux de subvention de",null,null,0.1]
[]
["Bailleur de fonds","Investissement total par bailleur de fonds (AR)","Quote-part du coût d'investissement initial"]
["Subvention d'ADER",{"$f":"('3 Coût total'!$B$7-'3 Coût total'!$B$42)*C232","v":0},{"$f":"D229","v":0.1}]
["Capitaux propres",{"$f":"'1 Données d''entrée'!$B$294","v":0},{"$f":"'1 Données d''entrée'!$B$294/'3 Coût total'!$B$7","v":{"$error":"#DIV/0!"}}]
["Fonds d'autres donneurs / investisseurs",{"$f":"'1 Données d''entrée'!$B$306+'1 Données d''entrée'!$B$307","v":0},{"$f":"B234/'3 Coût total'!$B$7","v":{"$error":"#DIV/0!"}}]
["Prêt bancaire (effective)",{"$f":"IF(B232+'1 Données d''entrée'!$B$294=0,0,(-1)*'5 Flux de trésorerie brut'!$D$7-(SUM(B232:B234)))","v":0},{"$f":"(1-(C232+C233+C234))","v":{"$error":"#DIV/0!"}}]
[]
["Prêt bancaire avec des frais de gestion",{"$f":"B235+B235*'1 Données d''entrée'!$C$338","v":0},{"$f":"(1-(C232+C233+C234))+(1-(C232+C233+C234))*'1 Données d''entrée'!$C$338","v":{"$error":"#DIV/0!"}}]
[]
["Tableaux de calcul"]
[]
[]
["Scénario financier"]
["Période",0,1,2,3,4,5,6,7,8,9,10,11,12,13,14,15,16,17,18,19,20]
[]
["Flux de trésorerie (brut)",{"$f":"'5 Flux de trésorerie brut'!$D$7","v":{"$error":"#DIV/0!"}},{"$f":"'5 Flux de trésorerie brut'!$D$8","v":{"$error":"#DIV/0!"}},{"$f":"'5 Flux de trésorerie brut'!$D$9","v":{"$error":"#DIV/0!"}},{"$f":"'5 Flux de trésorerie brut'!$D$10","v":{"$error":"#DIV/0!"}},{"$f":"'5 Flux de trésorerie brut'!$D$11","v":{"$error":"#DIV/0!"}},{"$f":"'5 Flux de trésorerie brut'!$D$12","v":{"$error":"#DIV/0!"}},{"$f":"'5 Flux de trésorerie brut'!$D$13","v":{"$error":"#DIV/0!"}},{"$f":"'5 Flux de trésorerie brut'!$D$14","v":{"$error":"#DIV/0!"}},{"$f":"'5 Flux de trésorerie brut'!$D$15","v":{"$error":"#DIV/0!"}},{"$f":"'5 Flux de trésorerie brut'!$D$16","v":{"$error":"#DIV/0!"}},{"$f":"'5 Flux de trésorerie brut'!$D$17","v":{"$error":"#DIV/0!"}},{"$f":"'5 Flux de trésorerie brut'!$D$18","v":{"$error":"#DIV/0!"}},{"$f":"'5 Flux de trésorerie brut'!$D$19","v":{"$error":"#DIV/0!"}},{"$f":"'5 Flux de trésorerie brut'!$D$20","v":{"$error":"#DIV/0!"}},{"$f":"'5 Flux de trésorerie brut'!$D$21","v":{"$error":"#DIV/0!"}},{"$f":"'5 Flux de trésorerie brut'!$D$22","v":{"$error":"#DIV/0!"}},{"$f":"'5 Flux de trésorerie brut'!$D$23","v":{"$error":"#DIV/0!"}},{"$f":"'5 Flux de trésorerie brut'!$D$24","v":{"$error":"#DIV/0!"}},{"$f":"'5 Flux de trésorerie brut'!$D$25","v":{"$error":"#DIV/0!"}},{"$f":"'5 Flux de trésorerie brut'!$D$26","v":{"$error":"#DIV/0!"}},{"$f":"'5 Flux de trésorerie brut'!$D$27","v":{"$error":"#DIV/0!"}}]
[]
["Capitaux propres",{"$f":"'1 Données d''entrée'!$B$294","v":0}]
[]
["Subvention ADER",{"$f":"'3 Coût total'!$B$7*C232","v":0}]
[]
["Prêt bancaire - Option 1: Remboursement du principal fractionné",{"$f":"'1 Données d''entrée'!$B$342","v":0},"% de prêt total"]
["Réception et montant restant",{"$f":"B237*B251","v":0},{"$f":"B252-C253","v":0},0,0,0,0,0,0,0,0,0,0,0,0,0,0,0,0,0,0,0]
["Remboursement du principal",0,{"$f":"IF(C243<'1 Données d''entrée'!$C$334+1,0,IF(C243<'1 Données d''entrée'!$C$333+'1 Données d''entrée'!$C$334+1,($B252/'1 Données d''entrée'!$C$333),0))","v":0},{"$f":"IF(D243<'1 Données d''entrée'!$C$334+1,0,IF(D243<'1 Données d''entrée'!$C$333+'1 Données d''entrée'!$C$334+1,($B252/'1 Données d''entrée'!$C$333),0))","v":0},{"$f":"IF(E243<'1 Données d''entrée'!$C$334+1,0,IF(E243<'1 Données d''entrée'!$C$333+'1 Données d''entrée'!$C$334+1,($B252/'1 Données d''entrée'!$C$333),0))","v":0},{"$f":"IF(F243<'1 Données d''entrée'!$C$334+1,0,IF(F243<'1 Données d''entrée'!$C$333+'1 Données d''entrée'!$C$334+1,($B252/'1 Données d''entrée'!$C$333),0))","v":0},{"$f":"IF(G243<'1 Données d''entrée'!$C$334+1,0,IF(G243<'1 Données d''entrée'!$C$333+'1 Données d''entrée'!$C$334+1,($B252/'1 Données d''entrée'!$C$333),0))","v":0},{"$f":"IF(H243<'1 Données d''entrée'!$C$334+1,0,IF(H243<'1 Données d''entrée'!$C$333+'1 Données d''entrée'!$C$334+1,($B252/'1 Données d''entrée'!$C$333),0))","v":0},{"$f":"IF(I243<'1 Données d''entrée'!$C$334+1,0,IF(I243<'1 Données d''entrée'!$C$333+'1 Données d''entrée'!$C$334+1,($B252/'1 Données d''entrée'!$C$333),0))","v":0},{"$f":"IF(J243<'1 Données d''entrée'!$C$334+1,0,IF(J243<'1 Données d''entrée'!$C$333+'1 Données d''entrée'!$C$334+1,($B252/'1 Données d''entrée'!$C$333),0))","v":0},{"$f":"IF(K243<'1 Données d''entrée'!$C$334+1,0,IF(K243<'1 Données d''entrée'!$C$333+'1 Données d''entrée'!$C$334+1,($B252/'1 Données d''entrée'!$C$333),0))","v":0},{"$f":"IF(L243<'1 Données d''entrée'!$C$334+1,0,IF(L243<'1 Données d''entrée'!$C$333+'1 Données d''entrée'!$C$334+1,($B252/'1 Données d''entrée'!$C$333),0))","v":0},{"$f":"IF(M243<'1 Données d''entrée'!$C$334+1,0,IF(M243<'1 Données d''entrée'!$C$333+'1 Données d''entrée'!$C$334+1,($B252/'1 Données d''entrée'!$C$333),0))","v":0},{"$f":"IF(N243<'1 Données d''entrée'!$C$334+1,0,IF(N243<'1 Données d''entrée'!$C$333+'1 Données d''entrée'!$C$334+1,($B252/'1 Données d''entrée'!$C$333),0))","v":0},{"$f":"IF(O243<'1 Données d''entrée'!$C$334+1,0,IF(O243<'1 Données d''entrée'!$C$333+'1 Données d''entrée'!$C$334+1,($B252/'1 Données d''entrée'!$C$333),0))","v":0},{"$f":"IF(P243<'1 Données d''entrée'!$C$334+1,0,IF(P243<'1 Données d''entrée'!$C$333+'1 Données d''entrée'!$C$334+1,($B252/'1 Données d''entrée'!$C$333),0))","v":0},{"$f":"IF(Q243<'1 Données d''entrée'!$C$334+1,0,IF(Q243<'1 Données d''entrée'!$C$333+'1 Données d''entrée'!$C$334+1,($B252/'1 Données d''entrée'!$C$333),0))","v":0},{"$f":"IF(R243<'1 Données d''entrée'!$C$334+1,0,IF(R243<'1 Données d''entrée'!$C$333+'1 Données d''entrée'!$C$334+1,($B252/'1 Données d''entrée'!$C$333),0))","v":0},{"$f":"IF(S243<'1 Données d''entrée'!$C$334+1,0,IF(S243<'1 Données d''entrée'!$C$333+'1 Données d''entrée'!$C$334+1,($B252/'1 Données d''entrée'!$C$333),0))","v":0},{"$f":"IF(T243<'1 Données d''entrée'!$C$334+1,0,IF(T243<'1 Données d''entrée'!$C$333+'1 Données d''entrée'!$C$334+1,($B252/'1 Données d''entrée'!$C$333),0))","v":0},{"$f":"IF(U243<'1 Données d''entrée'!$C$334+1,0,IF(U243<'1 Données d''entrée'!$C$333+'1 Données d''entrée'!$C$334+1,($B252/'1 Données d''entrée'!$C$333),0))","v":0},{"$f":"IF(V243<'1 Données d''entrée'!$C$334+1,0,IF(V243<'1 Données d''entrée'!$C$333+'1 Données d''entrée'!$C$334+1,($B252/'1 Données d''entrée'!$C$333),0))","v":0}]
["Paiement d'intérêts",0,{"$f":"IF('1 Données d''entrée'!$C$336=\"(=NON)\",IF(C243<'1 Données d''entrée'!$C$334+1,0,B252*'1 Données d''entrée'!$C$332),B252*'1 Données d''entrée'!$C$332)","v":0},{"$f":"IF('1 Données d''entrée'!$C$336=\"(=NON)\",IF(D243<'1 Données d''entrée'!$C$334+1,0,C252*'1 Données d''entrée'!$C$332),C252*'1 Données d''entrée'!$C$332)","v":0},{"$f":"IF('1 Données d''entrée'!$C$336=\"(=NON)\",IF(E243<'1 Données d''entrée'!$C$334+1,0,D252*'1 Données d''entrée'!$C$332),D252*'1 Données d''entrée'!$C$332)","v":0},{"$f":"IF('1 Données d''entrée'!$C$336=\"(=NON)\",IF(F243<'1 Données d''entrée'!$C$334+1,0,E252*'1 Données d''entrée'!$C$332),E252*'1 Données d''entrée'!$C$332)","v":0},{"$f":"IF('1 Données d''entrée'!$C$336=\"(=NON)\",IF(G243<'1 Données d''entrée'!$C$334+1,0,F252*'1 Données d''entrée'!$C$332),F252*'1 Données d''entrée'!$C$332)","v":0},{"$f":"IF('1 Données d''entrée'!$C$336=\"(=NON)\",IF(H243<'1 Données d''entrée'!$C$334+1,0,G252*'1 Données d''entrée'!$C$332),G252*'1 Données d''entrée'!$C$332)","v":0},{"$f":"IF('1 Données d''entrée'!$C$336=\"(=NON)\",IF(I243<'1 Données d''entrée'!$C$334+1,0,H252*'1 Données d''entrée'!$C$332),H252*'1 Données d''entrée'!$C$332)","v":0},{"$f":"IF('1 Données d''entrée'!$C$336=\"(=NON)\",IF(J243<'1 Données d''entrée'!$C$334+1,0,I252*'1 Données d''entrée'!$C$332),I252*'1 Données d''entrée'!$C$332)","v":0},{"$f":"IF('1 Données d''entrée'!$C$336=\"(=NON)\",IF(K243<'1 Données d''entrée'!$C$334+1,0,J252*'1 Données d''entrée'!$C$332),J252*'1 Données d''entrée'!$C$332)","v":0},{"$f":"IF('1 Données d''entrée'!$C$336=\"(=NON)\",IF(L243<'1 Données d''entrée'!$C$334+1,0,K252*'1 Données d''entrée'!$C$332),K252*'1 Données d''entrée'!$C$332)","v":0},{"$f":"IF('1 Données d''entrée'!$C$336=\"(=NON)\",IF(M243<'1 Données d''entrée'!$C$334+1,0,L252*'1 Données d''entrée'!$C$332),L252*'1 Données d''entrée'!$C$332)","v":0},{"$f":"IF('1 Données d''entrée'!$C$336=\"(=NON)\",IF(N243<'1 Données d''entrée'!$C$334+1,0,M252*'1 Données d''entrée'!$C$332),M252*'1 Données d''entrée'!$C$332)","v":0},{"$f":"IF('1 Données d''entrée'!$C$336=\"(=NON)\",IF(O243<'1 Données d''entrée'!$C$334+1,0,N252*'1 Données d''entrée'!$C$332),N252*'1 Données d''entrée'!$C$332)","v":0},{"$f":"IF('1 Données d''entrée'!$C$336=\"(=NON)\",IF(P243<'1 Données d''entrée'!$C$334+1,0,O252*'1 Données d''entrée'!$C$332),O252*'1 Données d''entrée'!$C$332)","v":0},{"$f":"IF('1 Données d''entrée'!$C$336=\"(=NON)\",IF(Q243<'1 Données d''entrée'!$C$334+1,0,P252*'1 Données d''entrée'!$C$332),P252*'1 Données d''entrée'!$C$332)","v":0},{"$f":"IF('1 Données d''entrée'!$C$336=\"(=NON)\",IF(R243<'1 Données d''entrée'!$C$334+1,0,Q252*'1 Données d''entrée'!$C$332),Q252*'1 Données d''entrée'!$C$332)","v":0},{"$f":"IF('1 Données d''entrée'!$C$336=\"(=NON)\",IF(S243<'1 Données d''entrée'!$C$334+1,0,R252*'1 Données d''entrée'!$C$332),R252*'1 Données d''entrée'!$C$332)","v":0},{"$f":"IF('1 Données d''entrée'!$C$336=\"(=NON)\",IF(T243<'1 Données d''entrée'!$C$334+1,0,S252*'1 Données d''entrée'!$C$332),S252*'1 Données d''entrée'!$C$332)","v":0},{"$f":"IF('1 Données d''entrée'!$C$336=\"(=NON)\",IF(U243<'1 Données d''entrée'!$C$334+1,0,T252*'1 Données d''entrée'!$C$332),T252*'1 Données d''entrée'!$C$332)","v":0},{"$f":"IF('1 Données d''entrée'!$C$336=\"(=NON)\",IF(V243<'1 Données d''entrée'!$C$334+1,0,U252*'1 Données d''entrée'!$C$332),U252*'1 Données d''entrée'!$C$332)","v":0}]
["Paiements d'intérêt avec des intérêts composés en cas d'absence des paiements dans la période de grâce",0,0,{"$f":"IF(D243='1 Données d''entrée'!$C$334+1,IF('1 Données d''entrée'!$C$336=\"(=NON)\",($B252*'1 Données d''entrée'!$C$332)*((('1 Données d''entrée'!$C$332+1)^'1 Données d''entrée'!$C$334-1)/('1 Données d''entrée'!$C$332))*(1+'1 Données d''entrée'!$C$332),0),0)","v":0},{"$f":"IF(E243='1 Données d''entrée'!$C$334+1,IF('1 Données d''entrée'!$C$336=\"(=NON)\",($B252*'1 Données d''entrée'!$C$332)*((('1 Données d''entrée'!$C$332+1)^'1 Données d''entrée'!$C$334-1)/('1 Données d''entrée'!$C$332))*(1+'1 Données d''entrée'!$C$332),0),0)","v":0},{"$f":"IF(F243='1 Données d''entrée'!$C$334+1,IF('1 Données d''entrée'!$C$336=\"(=NON)\",($B252*'1 Données d''entrée'!$C$332)*((('1 Données d''entrée'!$C$332+1)^'1 Données d''entrée'!$C$334-1)/('1 Données d''entrée'!$C$332))*(1+'1 Données d''entrée'!$C$332),0),0)","v":0},{"$f":"IF(G243='1 Données d''entrée'!$C$334+1,IF('1 Données d''entrée'!$C$336=\"(=NON)\",($B252*'1 Données d''entrée'!$C$332)*((('1 Données d''entrée'!$C$332+1)^'1 Données d''entrée'!$C$334-1)/('1 Données d''entrée'!$C$332))*(1+'1 Données d''entrée'!$C$332),0),0)","v":0},{"$f":"IF(H243='1 Données d''entrée'!$C$334+1,IF('1 Données d''entrée'!$C$336=\"(=NON)\",($B252*'1 Données d''entrée'!$C$332)*((('1 Données d''entrée'!$C$332+1)^'1 Données d''entrée'!$C$334-1)/('1 Données d''entrée'!$C$332))*(1+'1 Données d''entrée'!$C$332),0),0)","v":0},{"$f":"IF(I243='1 Données d''entrée'!$C$334+1,IF('1 Données d''entrée'!$C$336=\"(=NON)\",($B252*'1 Données d''entrée'!$C$332)*((('1 Données d''entrée'!$C$332+1)^'1 Données d''entrée'!$C$334-1)/('1 Données d''entrée'!$C$332))*(1+'1 Données d''entrée'!$C$332),0),0)","v":0},{"$f":"IF(J243='1 Données d''entrée'!$C$334+1,IF('1 Données d''entrée'!$C$336=\"(=NON)\",($B252*'1 Données d''entrée'!$C$332)*((('1 Données d''entrée'!$C$332+1)^'1 Données d''entrée'!$C$334-1)/('1 Données d''entrée'!$C$332))*(1+'1 Données d''entrée'!$C$332),0),0)","v":0},{"$f":"IF(K243='1 Données d''entrée'!$C$334+1,IF('1 Données d''entrée'!$C$336=\"(=NON)\",($B252*'1 Données d''entrée'!$C$332)*((('1 Données d''entrée'!$C$332+1)^'1 Données d''entrée'!$C$334-1)/('1 Données d''entrée'!$C$332))*(1+'1 Données d''entrée'!$C$332),0),0)","v":0},{"$f":"IF(L243='1 Données d''entrée'!$C$334+1,IF('1 Données d''entrée'!$C$336=\"(=NON)\",($B252*'1 Données d''entrée'!$C$332)*((('1 Données d''entrée'!$C$332+1)^'1 Données d''entrée'!$C$334-1)/('1 Données d''entrée'!$C$332))*(1+'1 Données d''entrée'!$C$332),0),0)","v":0},{"$f":"IF(M243='1 Données d''entrée'!$C$334+1,IF('1 Données d''entrée'!$C$336=\"(=NON)\",($B252*'1 Données d''entrée'!$C$332)*((('1 Données d''entrée'!$C$332+1)^'1 Données d''entrée'!$C$334-1)/('1 Données d''entrée'!$C$332))*(1+'1 Données d''entrée'!$C$332),0),0)","v":0},{"$f":"IF(N243='1 Données d''entrée'!$C$334+1,IF('1 Données d''entrée'!$C$336=\"(=NON)\",($B252*'1 Données d''entrée'!$C$332)*((('1 Données d''entrée'!$C$332+1)^'1 Données d''entrée'!$C$334-1)/('1 Données d''entrée'!$C$332))*(1+'1 Données d''entrée'!$C$332),0),0)","v":0},{"$f":"IF(O243='1 Données d''entrée'!$C$334+1,IF('1 Données d''entrée'!$C$336=\"(=NON)\",($B252*'1 Données d''entrée'!$C$332)*((('1 Données d''entrée'!$C$332+1)^'1 Données d''entrée'!$C$334-1)/('1 Données d''entrée'!$C$332))*(1+'1 Données d''entrée'!$C$332),0),0)","v":0},{"$f":"IF(P243='1 Données d''entrée'!$C$334+1,IF('1 Données d''entrée'!$C$336=\"(=NON)\",($B252*'1 Données d''entrée'!$C$332)*((('1 Données d''entrée'!$C$332+1)^'1 Données d''entrée'!$C$334-1)/('1 Données d''entrée'!$C$332))*(1+'1 Données d''entrée'!$C$332),0),0)","v":0},{"$f":"IF(Q243='1 Données d''entrée'!$C$334+1,IF('1 Données d''entrée'!$C$336=\"(=NON)\",($B252*'1 Données d''entrée'!$C$332)*((('1 Données d''entrée'!$C$332+1)^'1 Données d''entrée'!$C$334-1)/('1 Données d''entrée'!$C$332))*(1+'1 Données d''entrée'!$C$332),0),0)","v":0},{"$f":"IF(R243='1 Données d''entrée'!$C$334+1,IF('1 Données d''entrée'!$C$336=\"(=NON)\",($B252*'1 Données d''entrée'!$C$332)*((('1 Données d''entrée'!$C$332+1)^'1 Données d''entrée'!$C$334-1)/('1 Données d''entrée'!$C$332))*(1+'1 Données d''entrée'!$C$332),0),0)","v":0},{"$f":"IF(S243='1 Données d''entrée'!$C$334+1,IF('1 Données d''entrée'!$C$336=\"(=NON)\",($B252*'1 Données d''entrée'!$C$332)*((('1 Données d''entrée'!$C$332+1)^'1 Données d''entrée'!$C$334-1)/('1 Données d''entrée'!$C$332))*(1+'1 Données d''entrée'!$C$332),0),0)","v":0},{"$f":"IF(T243='1 Données d''entrée'!$C$334+1,IF('1 Données d''entrée'!$C$336=\"(=NON)\",($B252*'1 Données d''entrée'!$C$332)*((('1 Données d''entrée'!$C$332+1)^'1 Données d''entrée'!$C$334-1)/('1 Données d''entrée'!$C$332))*(1+'1 Données d''entrée'!$C$332),0),0)","v":0},{"$f":"IF(U243='1 Données d''entrée'!$C$334+1,IF('1 Données d''entrée'!$C$336=\"(=NON)\",($B252*'1 Données d''entrée'!$C$332)*((('1 Données d''entrée'!$C$332+1)^'1 Données d''entrée'!$C$334-1)/('1 Données d''entrée'!$C$332))*(1+'1 Données d''entrée'!$C$332),0),0)","v":0},{"$f":"IF(V243='1 Données d''entrée'!$C$334+1,IF('1 Données d''entrée'!$C$336=\"(=NON)\",($B252*'1 Données d''entrée'!$C$332)*((('1 Données d''entrée'!$C$332+1)^'1 Données d''entrée'!$C$334-1)/('1 Données d''entrée'!$C$332))*(1+'1 Données d''entrée'!$C$332),0),0)","v":0}]
["Prêt bancaire - Option 2: Remboursement du principal final",{"$f":"'1 Données d''entrée'!$B$343","v":0},"% de prêt total"]
["Réception et montant restant",{"$f":"B237*B256","v":0},{"$f":"B257-C258","v":0},0,0,0,0,0,0,0,0,0,0,0,0,0,0,0,0,0,0,0]
["Remboursement du principal",0,{"$f":"IF('1 Données d''entrée'!$C$333+'1 Données d''entrée'!$C$334=C243,$B257,0)","v":0},{"$f":"IF('1 Données d''entrée'!$C$333+'1 Données d''entrée'!$C$334=D243,$B257,0)","v":0},{"$f":"IF('1 Données d''entrée'!$C$333+'1 Données d''entrée'!$C$334=E243,$B257,0)","v":0},{"$f":"IF('1 Données d''entrée'!$C$333+'1 Données d''entrée'!$C$334=F243,$B257,0)","v":0},{"$f":"IF('1 Données d''entrée'!$C$333+'1 Données d''entrée'!$C$334=G243,$B257,0)","v":0},{"$f":"IF('1 Données d''entrée'!$C$333+'1 Données d''entrée'!$C$334=H243,$B257,0)","v":0},{"$f":"IF('1 Données d''entrée'!$C$333+'1 Données d''entrée'!$C$334=I243,$B257,0)","v":0},{"$f":"IF('1 Données d''entrée'!$C$333+'1 Données d''entrée'!$C$334=J243,$B257,0)","v":0},{"$f":"IF('1 Données d''entrée'!$C$333+'1 Données d''entrée'!$C$334=K243,$B257,0)","v":0},{"$f":"IF('1 Données d''entrée'!$C$333+'1 Données d''entrée'!$C$334=L243,$B257,0)","v":0},{"$f":"IF('1 Données d''entrée'!$C$333+'1 Données d''entrée'!$C$334=M243,$B257,0)","v":0},{"$f":"IF('1 Données d''entrée'!$C$333+'1 Données d''entrée'!$C$334=N243,$B257,0)","v":0},{"$f":"IF('1 Données d''entrée'!$C$333+'1 Données d''entrée'!$C$334=O243,$B257,0)","v":0},{"$f":"IF('1 Données d''entrée'!$C$333+'1 Données d''entrée'!$C$334=P243,$B257,0)","v":0},{"$f":"IF('1 Données d''entrée'!$C$333+'1 Données d''entrée'!$C$334=Q243,$B257,0)","v":0},{"$f":"IF('1 Données d''entrée'!$C$333+'1 Données d''entrée'!$C$334=R243,$B257,0)","v":0},{"$f":"IF('1 Données d''entrée'!$C$333+'1 Données d''entrée'!$C$334=S243,$B257,0)","v":0},{"$f":"IF('1 Données d''entrée'!$C$333+'1 Données d''entrée'!$C$334=T243,$B257,0)","v":0},{"$f":"IF('1 Données d''entrée'!$C$333+'1 Données d''entrée'!$C$334=U243,$B257,0)","v":0},{"$f":"IF('1 Données d''entrée'!$C$333+'1 Données d''entrée'!$C$334=V243,$B257,0)","v":0}]
["Paiement d'intérêts",0,{"$f":"IF('1 Données d''entrée'!$C$336=\"(=NON)\",IF(C243<'1 Données d''entrée'!$C$334+1,0,B257*'1 Données d''entrée'!$C$332),B257*'1 Données d''entrée'!$C$332)","v":0},{"$f":"IF('1 Données d''entrée'!$C$336=\"(=NON)\",IF(D243<'1 Données d''entrée'!$C$334+1,0,C257*'1 Données d''entrée'!$C$332),C257*'1 Données d''entrée'!$C$332)","v":0},{"$f":"IF('1 Données d''entrée'!$C$336=\"(=NON)\",IF(E243<'1 Données d''entrée'!$C$334+1,0,D257*'1 Données d''entrée'!$C$332),D257*'1 Données d''entrée'!$C$332)","v":0},{"$f":"IF('1 Données d''entrée'!$C$336=\"(=NON)\",IF(F243<'1 Données d''entrée'!$C$334+1,0,E257*'1 Données d''entrée'!$C$332),E257*'1 Données d''entrée'!$C$332)","v":0},{"$f":"IF('1 Données d''entrée'!$C$336=\"(=NON)\",IF(G243<'1 Données d''entrée'!$C$334+1,0,F257*'1 Données d''entrée'!$C$332),F257*'1 Données d''entrée'!$C$332)","v":0},{"$f":"IF('1 Données d''entrée'!$C$336=\"(=NON)\",IF(H243<'1 Données d''entrée'!$C$334+1,0,G257*'1 Données d''entrée'!$C$332),G257*'1 Données d''entrée'!$C$332)","v":0},{"$f":"IF('1 Données d''entrée'!$C$336=\"(=NON)\",IF(I243<'1 Données d''entrée'!$C$334+1,0,H257*'1 Données d''entrée'!$C$332),H257*'1 Données d''entrée'!$C$332)","v":0},{"$f":"IF('1 Données d''entrée'!$C$336=\"(=NON)\",IF(J243<'1 Données d''entrée'!$C$334+1,0,I257*'1 Données d''entrée'!$C$332),I257*'1 Données d''entrée'!$C$332)","v":0},{"$f":"IF('1 Données d''entrée'!$C$336=\"(=NON)\",IF(K243<'1 Données d''entrée'!$C$334+1,0,J257*'1 Données d''entrée'!$C$332),J257*'1 Données d''entrée'!$C$332)","v":0},{"$f":"IF('1 Données d''entrée'!$C$336=\"(=NON)\",IF(L243<'1 Données d''entrée'!$C$334+1,0,K257*'1 Données d''entrée'!$C$332),K257*'1 Données d''entrée'!$C$332)","v":0},{"$f":"IF('1 Données d''entrée'!$C$336=\"(=NON)\",IF(M243<'1 Données d''entrée'!$C$334+1,0,L257*'1 Données d''entrée'!$C$332),L257*'1 Données d''entrée'!$C$332)","v":0},{"$f":"IF('1 Données d''entrée'!$C$336=\"(=NON)\",IF(N243<'1 Données d''entrée'!$C$334+1,0,M257*'1 Données d''entrée'!$C$332),M257*'1 Données d''entrée'!$C$332)","v":0},{"$f":"IF('1 Données d''entrée'!$C$336=\"(=NON)\",IF(O243<'1 Données d''entrée'!$C$334+1,0,N257*'1 Données d''entrée'!$C$332),N257*'1 Données d''entrée'!$C$332)","v":0},{"$f":"IF('1 Données d''entrée'!$C$336=\"(=NON)\",IF(P243<'1 Données d''entrée'!$C$334+1,0,O257*'1 Données d''entrée'!$C$332),O257*'1 Données d''entrée'!$C$332)","v":0},{"$f":"IF('1 Données d''entrée'!$C$336=\"(=NON)\",IF(Q243<'1 Données d''entrée'!$C$334+1,0,P257*'1 Données d''entrée'!$C$332),P257*'1 Données d''entrée'!$C$332)","v":0},{"$f":"IF('1 Données d''entrée'!$C$336=\"(=NON)\",IF(R243<'1 Données d''entrée'!$C$334+1,0,Q257*'1 Données d''entrée'!$C$332),Q257*'1 Données d''entrée'!$C$332)","v":0},{"$f":"IF('1 Données d''entrée'!$C$336=\"(=NON)\",IF(S243<'1 Données d''entrée'!$C$334+1,0,R257*'1 Données d''entrée'!$C$332),R257*'1 Données d''entrée'!$C$332)","v":0},{"$f":"IF('1 Données d''entrée'!$C$336=\"(=NON)\",IF(T243<'1 Données d''entrée'!$C$334+1,0,S257*'1 Données d''entrée'!$C$332),S257*'1 Données d''entrée'!$C$332)","v":0},{"$f":"IF('1 Données d''entrée'!$C$336=\"(=NON)\",IF(U243<'1 Données d''entrée'!$C$334+1,0,T257*'1 Données d''entrée'!$C$332),T257*'1 Données d''entrée'!$C$332)","v":0},{"$f":"IF('1 Données d''entrée'!$C$336=\"(=NON)\",IF(V243<'1 Données d''entrée'!$C$334+1,0,U257*'1 Données d''entrée'!$C$332),U257*'1 Données d''entrée'!$C$332)","v":0}]
["Paiements d'intérêt avec des intérêts composés en cas d'absence des paiements dans la période de grâce",0,0,{"$f":"IF(D243='1 Données d''entrée'!$C$334+1,IF('1 Données d''entrée'!$C$336=\"(=NON)\",($B257*'1 Données d''entrée'!$C$332)*((('1 Données d''entrée'!$C$332+1)^'1 Données d''entrée'!$C$334-1)/('1 Données d''entrée'!$C$332))*(1+'1 Données d''entrée'!$C$332),0),0)","v":0},{"$f":"IF(E243='1 Données d''entrée'!$C$334+1,IF('1 Données d''entrée'!$C$336=\"(=NON)\",($B257*'1 Données d''entrée'!$C$332)*((('1 Données d''entrée'!$C$332+1)^'1 Données d''entrée'!$C$334-1)/('1 Données d''entrée'!$C$332))*(1+'1 Données d''entrée'!$C$332),0),0)","v":0},{"$f":"IF(F243='1 Données d''entrée'!$C$334+1,IF('1 Données d''entrée'!$C$336=\"(=NON)\",($B257*'1 Données d''entrée'!$C$332)*((('1 Données d''entrée'!$C$332+1)^'1 Données d''entrée'!$C$334-1)/('1 Données d''entrée'!$C$332))*(1+'1 Données d''entrée'!$C$332),0),0)","v":0},{"$f":"IF(G243='1 Données d''entrée'!$C$334+1,IF('1 Données d''entrée'!$C$336=\"(=NON)\",($B257*'1 Données d''entrée'!$C$332)*((('1 Données d''entrée'!$C$332+1)^'1 Données d''entrée'!$C$334-1)/('1 Données d''entrée'!$C$332))*(1+'1 Données d''entrée'!$C$332),0),0)","v":0},{"$f":"IF(H243='1 Données d''entrée'!$C$334+1,IF('1 Données d''entrée'!$C$336=\"(=NON)\",($B257*'1 Données d''entrée'!$C$332)*((('1 Données d''entrée'!$C$332+1)^'1 Données d''entrée'!$C$334-1)/('1 Données d''entrée'!$C$332))*(1+'1 Données d''entrée'!$C$332),0),0)","v":0},{"$f":"IF(I243='1 Données d''entrée'!$C$334+1,IF('1 Données d''entrée'!$C$336=\"(=NON)\",($B257*'1 Données d''entrée'!$C$332)*((('1 Données d''entrée'!$C$332+1)^'1 Données d''entrée'!$C$334-1)/('1 Données d''entrée'!$C$332))*(1+'1 Données d''entrée'!$C$332),0),0)","v":0},{"$f":"IF(J243='1 Données d''entrée'!$C$334+1,IF('1 Données d''entrée'!$C$336=\"(=NON)\",($B257*'1 Données d''entrée'!$C$332)*((('1 Données d''entrée'!$C$332+1)^'1 Données d''entrée'!$C$334-1)/('1 Données d''entrée'!$C$332))*(1+'1 Données d''entrée'!$C$332),0),0)","v":0},{"$f":"IF(K243='1 Données d''entrée'!$C$334+1,IF('1 Données d''entrée'!$C$336=\"(=NON)\",($B257*'1 Données d''entrée'!$C$332)*((('1 Données d''entrée'!$C$332+1)^'1 Données d''entrée'!$C$334-1)/('1 Données d''entrée'!$C$332))*(1+'1 Données d''entrée'!$C$332),0),0)","v":0},{"$f":"IF(L243='1 Données d''entrée'!$C$334+1,IF('1 Données d''entrée'!$C$336=\"(=NON)\",($B257*'1 Données d''entrée'!$C$332)*((('1 Données d''entrée'!$C$332+1)^'1 Données d''entrée'!$C$334-1)/('1 Données d''entrée'!$C$332))*(1+'1 Données d''entrée'!$C$332),0),0)","v":0},{"$f":"IF(M243='1 Données d''entrée'!$C$334+1,IF('1 Données d''entrée'!$C$336=\"(=NON)\",($B257*'1 Données d''entrée'!$C$332)*((('1 Données d''entrée'!$C$332+1)^'1 Données d''entrée'!$C$334-1)/('1 Données d''entrée'!$C$332))*(1+'1 Données d''entrée'!$C$332),0),0)","v":0},{"$f":"IF(N243='1 Données d''entrée'!$C$334+1,IF('1 Données d''entrée'!$C$336=\"(=NON)\",($B257*'1 Données d''entrée'!$C$332)*((('1 Données d''entrée'!$C$332+1)^'1 Données d''entrée'!$C$334-1)/('1 Données d''entrée'!$C$332))*(1+'1 Données d''entrée'!$C$332),0),0)","v":0},{"$f":"IF(O243='1 Données d''entrée'!$C$334+1,IF('1 Données d''entrée'!$C$336=\"(=NON)\",($B257*'1 Données d''entrée'!$C$332)*((('1 Données d''entrée'!$C$332+1)^'1 Données d''entrée'!$C$334-1)/('1 Données d''entrée'!$C$332))*(1+'1 Données d''entrée'!$C$332),0),0)","v":0},{"$f":"IF(P243='1 Données d''entrée'!$C$334+1,IF('1 Données d''entrée'!$C$336=\"(=NON)\",($B257*'1 Données d''entrée'!$C$332)*((('1 Données d''entrée'!$C$332+1)^'1 Données d''entrée'!$C$334-1)/('1 Données d''entrée'!$C$332))*(1+'1 Données d''entrée'!$C$332),0),0)","v":0},{"$f":"IF(Q243='1 Données d''entrée'!$C$334+1,IF('1 Données d''entrée'!$C$336=\"(=NON)\",($B257*'1 Données d''entrée'!$C$332)*((('1 Données d''entrée'!$C$332+1)^'1 Données d''entrée'!$C$334-1)/('1 Données d''entrée'!$C$332))*(1+'1 Données d''entrée'!$C$332),0),0)","v":0},{"$f":"IF(R243='1 Données d''entrée'!$C$334+1,IF('1 Données d''entrée'!$C$336=\"(=NON)\",($B257*'1 Données d''entrée'!$C$332)*((('1 Données d''entrée'!$C$332+1)^'1 Données d''entrée'!$C$334-1)/('1 Données d''entrée'!$C$332))*(1+'1 Données d''entrée'!$C$332),0),0)","v":0},{"$f":"IF(S243='1 Données d''entrée'!$C$334+1,IF('1 Données d''entrée'!$C$336=\"(=NON)\",($B257*'1 Données d''entrée'!$C$332)*((('1 Données d''entrée'!$C$332+1)^'1 Données d''entrée'!$C$334-1)/('1 Données d''entrée'!$C$332))*(1+'1 Données d''entrée'!$C$332),0),0)","v":0},{"$f":"IF(T243='1 Données d''entrée'!$C$334+1,IF('1 Données d''entrée'!$C$336=\"(=NON)\",($B257*'1 Données d''entrée'!$C$332)*((('1 Données d''entrée'!$C$332+1)^'1 Données d''entrée'!$C$334-1)/('1 Données d''entrée'!$C$332))*(1+'1 Données d''entrée'!$C$332),0),0)","v":0},{"$f":"IF(U243='1 Données d''entrée'!$C$334+1,IF('1 Données d''entrée'!$C$336=\"(=NON)\",($B257*'1 Données d''entrée'!$C$332)*((('1 Données d''entrée'!$C$332+1)^'1 Données d''entrée'!$C$334-1)/('1 Données d''entrée'!$C$332))*(1+'1 Données d''entrée'!$C$332),0),0)","v":0},{"$f":"IF(V243='1 Données d''entrée'!$C$334+1,IF('1 Données d''entrée'!$C$336=\"(=NON)\",($B257*'1 Données d''entrée'!$C$332)*((('1 Données d''entrée'!$C$332+1)^'1 Données d''entrée'!$C$334-1)/('1 Données d''entrée'!$C$332))*(1+'1 Données d''entrée'!$C$332),0),0)","v":0}]
["Prêt bancaire - Option 3: Remboursement vers l'annuité constante",{"$f":"'1 Données d''entrée'!$B$344","v":0},"% de prêt total"]
["Réception ",{"$f":"B237*B261","v":0},0,0,0,0,0,0,0,0,0,0,0,0,0,0,0,0,0,0,0,0]
["Remboursement vers l'annuité constante",{"$f":"IF(B243<'1 Données d''entrée'!$C$334+1,0,IF(B243<'1 Données d''entrée'!$C$333+'1 Données d''entrée'!$C$334+1,$B262*('1 Données d''entrée'!$C$332*(1+'1 Données d''entrée'!$C$332)^'1 Données d''entrée'!$C$333)/((1+'1 Données d''entrée'!$C$332)^'1 Données d''entrée'!$C$333-1),0))","v":0},{"$f":"IF(C243<'1 Données d''entrée'!$C$334+1,0,IF(C243<'1 Données d''entrée'!$C$333+'1 Données d''entrée'!$C$334+1,$B262*('1 Données d''entrée'!$C$332*(1+'1 Données d''entrée'!$C$332)^'1 Données d''entrée'!$C$333)/((1+'1 Données d''entrée'!$C$332)^'1 Données d''entrée'!$C$333-1),0))","v":0},{"$f":"IF(D243<'1 Données d''entrée'!$C$334+1,0,IF(D243<'1 Données d''entrée'!$C$333+'1 Données d''entrée'!$C$334+1,$B262*('1 Données d''entrée'!$C$332*(1+'1 Données d''entrée'!$C$332)^'1 Données d''entrée'!$C$333)/((1+'1 Données d''entrée'!$C$332)^'1 Données d''entrée'!$C$333-1),0))","v":0},{"$f":"IF(E243<'1 Données d''entrée'!$C$334+1,0,IF(E243<'1 Données d''entrée'!$C$333+'1 Données d''entrée'!$C$334+1,$B262*('1 Données d''entrée'!$C$332*(1+'1 Données d''entrée'!$C$332)^'1 Données d''entrée'!$C$333)/((1+'1 Données d''entrée'!$C$332)^'1 Données d''entrée'!$C$333-1),0))","v":0},{"$f":"IF(F243<'1 Données d''entrée'!$C$334+1,0,IF(F243<'1 Données d''entrée'!$C$333+'1 Données d''entrée'!$C$334+1,$B262*('1 Données d''entrée'!$C$332*(1+'1 Données d''entrée'!$C$332)^'1 Données d''entrée'!$C$333)/((1+'1 Données d''entrée'!$C$332)^'1 Données d''entrée'!$C$333-1),0))","v":0},{"$f":"IF(G243<'1 Données d''entrée'!$C$334+1,0,IF(G243<'1 Données d''entrée'!$C$333+'1 Données d''entrée'!$C$334+1,$B262*('1 Données d''entrée'!$C$332*(1+'1 Données d''entrée'!$C$332)^'1 Données d''entrée'!$C$333)/((1+'1 Données d''entrée'!$C$332)^'1 Données d''entrée'!$C$333-1),0))","v":0},{"$f":"IF(H243<'1 Données d''entrée'!$C$334+1,0,IF(H243<'1 Données d''entrée'!$C$333+'1 Données d''entrée'!$C$334+1,$B262*('1 Données d''entrée'!$C$332*(1+'1 Données d''entrée'!$C$332)^'1 Données d''entrée'!$C$333)/((1+'1 Données d''entrée'!$C$332)^'1 Données d''entrée'!$C$333-1),0))","v":0},{"$f":"IF(I243<'1 Données d''entrée'!$C$334+1,0,IF(I243<'1 Données d''entrée'!$C$333+'1 Données d''entrée'!$C$334+1,$B262*('1 Données d''entrée'!$C$332*(1+'1 Données d''entrée'!$C$332)^'1 Données d''entrée'!$C$333)/((1+'1 Données d''entrée'!$C$332)^'1 Données d''entrée'!$C$333-1),0))","v":0},{"$f":"IF(J243<'1 Données d''entrée'!$C$334+1,0,IF(J243<'1 Données d''entrée'!$C$333+'1 Données d''entrée'!$C$334+1,$B262*('1 Données d''entrée'!$C$332*(1+'1 Données d''entrée'!$C$332)^'1 Données d''entrée'!$C$333)/((1+'1 Données d''entrée'!$C$332)^'1 Données d''entrée'!$C$333-1),0))","v":0},{"$f":"IF(K243<'1 Données d''entrée'!$C$334+1,0,IF(K243<'1 Données d''entrée'!$C$333+'1 Données d''entrée'!$C$334+1,$B262*('1 Données d''entrée'!$C$332*(1+'1 Données d''entrée'!$C$332)^'1 Données d''entrée'!$C$333)/((1+'1 Données d''entrée'!$C$332)^'1 Données d''entrée'!$C$333-1),0))","v":0},{"$f":"IF(L243<'1 Données d''entrée'!$C$334+1,0,IF(L243<'1 Données d''entrée'!$C$333+'1 Données d''entrée'!$C$334+1,$B262*('1 Données d''entrée'!$C$332*(1+'1 Données d''entrée'!$C$332)^'1 Données d''entrée'!$C$333)/((1+'1 Données d''entrée'!$C$332)^'1 Données d''entrée'!$C$333-1),0))","v":0},{"$f":"IF(M243<'1 Données d''entrée'!$C$334+1,0,IF(M243<'1 Données d''entrée'!$C$333+'1 Données d''entrée'!$C$334+1,$B262*('1 Données d''entrée'!$C$332*(1+'1 Données d''entrée'!$C$332)^'1 Données d''entrée'!$C$333)/((1+'1 Données d''entrée'!$C$332)^'1 Données d''entrée'!$C$333-1),0))","v":0},{"$f":"IF(N243<'1 Données d''entrée'!$C$334+1,0,IF(N243<'1 Données d''entrée'!$C$333+'1 Données d''entrée'!$C$334+1,$B262*('1 Données d''entrée'!$C$332*(1+'1 Données d''entrée'!$C$332)^'1 Données d''entrée'!$C$333)/((1+'1 Données d''entrée'!$C$332)^'1 Données d''entrée'!$C$333-1),0))","v":0},{"$f":"IF(O243<'1 Données d''entrée'!$C$334+1,0,IF(O243<'1 Données d''entrée'!$C$333+'1 Données d''entrée'!$C$334+1,$B262*('1 Données d''entrée'!$C$332*(1+'1 Données d''entrée'!$C$332)^'1 Données d''entrée'!$C$333)/((1+'1 Données d''entrée'!$C$332)^'1 Données d''entrée'!$C$333-1),0))","v":0},{"$f":"IF(P243<'1 Données d''entrée'!$C$334+1,0,IF(P243<'1 Données d''entrée'!$C$333+'1 Données d''entrée'!$C$334+1,$B262*('1 Données d''entrée'!$C$332*(1+'1 Données d''entrée'!$C$332)^'1 Données d''entrée'!$C$333)/((1+'1 Données d''entrée'!$C$332)^'1 Données d''entrée'!$C$333-1),0))","v":0},{"$f":"IF(Q243<'1 Données d''entrée'!$C$334+1,0,IF(Q243<'1 Données d''entrée'!$C$333+'1 Données d''entrée'!$C$334+1,$B262*('1 Données d''entrée'!$C$332*(1+'1 Données d''entrée'!$C$332)^'1 Données d''entrée'!$C$333)/((1+'1 Données d''entrée'!$C$332)^'1 Données d''entrée'!$C$333-1),0))","v":0},{"$f":"IF(R243<'1 Données d''entrée'!$C$334+1,0,IF(R243<'1 Données d''entrée'!$C$333+'1 Données d''entrée'!$C$334+1,$B262*('1 Données d''entrée'!$C$332*(1+'1 Données d''entrée'!$C$332)^'1 Données d''entrée'!$C$333)/((1+'1 Données d''entrée'!$C$332)^'1 Données d''entrée'!$C$333-1),0))","v":0},{"$f":"IF(S243<'1 Données d''entrée'!$C$334+1,0,IF(S243<'1 Données d''entrée'!$C$333+'1 Données d''entrée'!$C$334+1,$B262*('1 Données d''entrée'!$C$332*(1+'1 Données d''entrée'!$C$332)^'1 Données d''entrée'!$C$333)/((1+'1 Données d''entrée'!$C$332)^'1 Données d''entrée'!$C$333-1),0))","v":0},{"$f":"IF(T243<'1 Données d''entrée'!$C$334+1,0,IF(T243<'1 Données d''entrée'!$C$333+'1 Données d''entrée'!$C$334+1,$B262*('1 Données d''entrée'!$C$332*(1+'1 Données d''entrée'!$C$332)^'1 Données d''entrée'!$C$333)/((1+'1 Données d''entrée'!$C$332)^'1 Données d''entrée'!$C$333-1),0))","v":0},{"$f":"IF(U243<'1 Données d''entrée'!$C$334+1,0,IF(U243<'1 Données d''entrée'!$C$333+'1 Données d''entrée'!$C$334+1,$B262*('1 Données d''entrée'!$C$332*(1+'1 Données d''entrée'!$C$332)^'1 Données d''entrée'!$C$333)/((1+'1 Données d''entrée'!$C$332)^'1 Données d''entrée'!$C$333-1),0))","v":0},{"$f":"IF(V243<'1 Données d''entrée'!$C$334+1,0,IF(V243<'1 Données d''entrée'!$C$333+'1 Données d''entrée'!$C$334+1,$B262*('1 Données d''entrée'!$C$332*(1+'1 Données d''entrée'!$C$332)^'1 Données d''entrée'!$C$333)/((1+'1 Données d''entrée'!$C$332)^'1 Données d''entrée'!$C$333-1),0))","v":0}]
["Paiement d'intérêt décroissant inclu dans l'annuité constante",0,{"$f":"IF('1 Données d''entrée'!$C$336=\"(=NON)\",IF(C263>0,$B262*((('1 Données d''entrée'!$C$332+1)^'1 Données d''entrée'!$C$333)-(1+'1 Données d''entrée'!$C$332)^('6 Financement'!C$54-1-'1 Données d''entrée'!$C$334))/((1+'1 Données d''entrée'!$C$332)^'1 Données d''entrée'!$C$333-1)*'1 Données d''entrée'!$C$332,0),IF(C243<'1 Données d''entrée'!$C$334+1,'1 Données d''entrée'!$C$332*'6 Financement'!$B262,IF(C263>0,$B$73*((('1 Données d''entrée'!$C$332+1)^'1 Données d''entrée'!$C$333)-(1+'1 Données d''entrée'!$C$332)^('6 Financement'!C$54-1-'1 Données d''entrée'!$C$334))/((1+'1 Données d''entrée'!$C$332)^'1 Données d''entrée'!$C$333-1)*'1 Données d''entrée'!$C$332,0)))","v":0},{"$f":"IF('1 Données d''entrée'!$C$336=\"(=NON)\",IF(D263>0,$B262*((('1 Données d''entrée'!$C$332+1)^'1 Données d''entrée'!$C$333)-(1+'1 Données d''entrée'!$C$332)^('6 Financement'!D$54-1-'1 Données d''entrée'!$C$334))/((1+'1 Données d''entrée'!$C$332)^'1 Données d''entrée'!$C$333-1)*'1 Données d''entrée'!$C$332,0),IF(D243<'1 Données d''entrée'!$C$334+1,'1 Données d''entrée'!$C$332*'6 Financement'!$B262,IF(D263>0,$B$73*((('1 Données d''entrée'!$C$332+1)^'1 Données d''entrée'!$C$333)-(1+'1 Données d''entrée'!$C$332)^('6 Financement'!D$54-1-'1 Données d''entrée'!$C$334))/((1+'1 Données d''entrée'!$C$332)^'1 Données d''entrée'!$C$333-1)*'1 Données d''entrée'!$C$332,0)))","v":0},{"$f":"IF('1 Données d''entrée'!$C$336=\"(=NON)\",IF(E263>0,$B262*((('1 Données d''entrée'!$C$332+1)^'1 Données d''entrée'!$C$333)-(1+'1 Données d''entrée'!$C$332)^('6 Financement'!E$54-1-'1 Données d''entrée'!$C$334))/((1+'1 Données d''entrée'!$C$332)^'1 Données d''entrée'!$C$333-1)*'1 Données d''entrée'!$C$332,0),IF(E243<'1 Données d''entrée'!$C$334+1,'1 Données d''entrée'!$C$332*'6 Financement'!$B262,IF(E263>0,$B$73*((('1 Données d''entrée'!$C$332+1)^'1 Données d''entrée'!$C$333)-(1+'1 Données d''entrée'!$C$332)^('6 Financement'!E$54-1-'1 Données d''entrée'!$C$334))/((1+'1 Données d''entrée'!$C$332)^'1 Données d''entrée'!$C$333-1)*'1 Données d''entrée'!$C$332,0)))","v":0},{"$f":"IF('1 Données d''entrée'!$C$336=\"(=NON)\",IF(F263>0,$B262*((('1 Données d''entrée'!$C$332+1)^'1 Données d''entrée'!$C$333)-(1+'1 Données d''entrée'!$C$332)^('6 Financement'!F$54-1-'1 Données d''entrée'!$C$334))/((1+'1 Données d''entrée'!$C$332)^'1 Données d''entrée'!$C$333-1)*'1 Données d''entrée'!$C$332,0),IF(F243<'1 Données d''entrée'!$C$334+1,'1 Données d''entrée'!$C$332*'6 Financement'!$B262,IF(F263>0,$B$73*((('1 Données d''entrée'!$C$332+1)^'1 Données d''entrée'!$C$333)-(1+'1 Données d''entrée'!$C$332)^('6 Financement'!F$54-1-'1 Données d''entrée'!$C$334))/((1+'1 Données d''entrée'!$C$332)^'1 Données d''entrée'!$C$333-1)*'1 Données d''entrée'!$C$332,0)))","v":0},{"$f":"IF('1 Données d''entrée'!$C$336=\"(=NON)\",IF(G263>0,$B262*((('1 Données d''entrée'!$C$332+1)^'1 Données d''entrée'!$C$333)-(1+'1 Données d''entrée'!$C$332)^('6 Financement'!G$54-1-'1 Données d''entrée'!$C$334))/((1+'1 Données d''entrée'!$C$332)^'1 Données d''entrée'!$C$333-1)*'1 Données d''entrée'!$C$332,0),IF(G243<'1 Données d''entrée'!$C$334+1,'1 Données d''entrée'!$C$332*'6 Financement'!$B262,IF(G263>0,$B$73*((('1 Données d''entrée'!$C$332+1)^'1 Données d''entrée'!$C$333)-(1+'1 Données d''entrée'!$C$332)^('6 Financement'!G$54-1-'1 Données d''entrée'!$C$334))/((1+'1 Données d''entrée'!$C$332)^'1 Données d''entrée'!$C$333-1)*'1 Données d''entrée'!$C$332,0)))","v":0},{"$f":"IF('1 Données d''entrée'!$C$336=\"(=NON)\",IF(H263>0,$B262*((('1 Données d''entrée'!$C$332+1)^'1 Données d''entrée'!$C$333)-(1+'1 Données d''entrée'!$C$332)^('6 Financement'!H$54-1-'1 Données d''entrée'!$C$334))/((1+'1 Données d''entrée'!$C$332)^'1 Données d''entrée'!$C$333-1)*'1 Données d''entrée'!$C$332,0),IF(H243<'1 Données d''entrée'!$C$334+1,'1 Données d''entrée'!$C$332*'6 Financement'!$B262,IF(H263>0,$B$73*((('1 Données d''entrée'!$C$332+1)^'1 Données d''entrée'!$C$333)-(1+'1 Données d''entrée'!$C$332)^('6 Financement'!H$54-1-'1 Données d''entrée'!$C$334))/((1+'1 Données d''entrée'!$C$332)^'1 Données d''entrée'!$C$333-1)*'1 Données d''entrée'!$C$332,0)))","v":0},{"$f":"IF('1 Données d''entrée'!$C$336=\"(=NON)\",IF(I263>0,$B262*((('1 Données d''entrée'!$C$332+1)^'1 Données d''entrée'!$C$333)-(1+'1 Données d''entrée'!$C$332)^('6 Financement'!I$54-1-'1 Données d''entrée'!$C$334))/((1+'1 Données d''entrée'!$C$332)^'1 Données d''entrée'!$C$333-1)*'1 Données d''entrée'!$C$332,0),IF(I243<'1 Données d''entrée'!$C$334+1,'1 Données d''entrée'!$C$332*'6 Financement'!$B262,IF(I263>0,$B$73*((('1 Données d''entrée'!$C$332+1)^'1 Données d''entrée'!$C$333)-(1+'1 Données d''entrée'!$C$332)^('6 Financement'!I$54-1-'1 Données d''entrée'!$C$334))/((1+'1 Données d''entrée'!$C$332)^'1 Données d''entrée'!$C$333-1)*'1 Données d''entrée'!$C$332,0)))","v":0},{"$f":"IF('1 Données d''entrée'!$C$336=\"(=NON)\",IF(J263>0,$B262*((('1 Données d''entrée'!$C$332+1)^'1 Données d''entrée'!$C$333)-(1+'1 Données d''entrée'!$C$332)^('6 Financement'!J$54-1-'1 Données d''entrée'!$C$334))/((1+'1 Données d''entrée'!$C$332)^'1 Données d''entrée'!$C$333-1)*'1 Données d''entrée'!$C$332,0),IF(J243<'1 Données d''entrée'!$C$334+1,'1 Données d''entrée'!$C$332*'6 Financement'!$B262,IF(J263>0,$B$73*((('1 Données d''entrée'!$C$332+1)^'1 Données d''entrée'!$C$333)-(1+'1 Données d''entrée'!$C$332)^('6 Financement'!J$54-1-'1 Données d''entrée'!$C$334))/((1+'1 Données d''entrée'!$C$332)^'1 Données d''entrée'!$C$333-1)*'1 Données d''entrée'!$C$332,0)))","v":0},{"$f":"IF('1 Données d''entrée'!$C$336=\"(=NON)\",IF(K263>0,$B262*((('1 Données d''entrée'!$C$332+1)^'1 Données d''entrée'!$C$333)-(1+'1 Données d''entrée'!$C$332)^('6 Financement'!K$54-1-'1 Données d''entrée'!$C$334))/((1+'1 Données d''entrée'!$C$332)^'1 Données d''entrée'!$C$333-1)*'1 Données d''entrée'!$C$332,0),IF(K243<'1 Données d''entrée'!$C$334+1,'1 Données d''entrée'!$C$332*'6 Financement'!$B262,IF(K263>0,$B$73*((('1 Données d''entrée'!$C$332+1)^'1 Données d''entrée'!$C$333)-(1+'1 Données d''entrée'!$C$332)^('6 Financement'!K$54-1-'1 Données d''entrée'!$C$334))/((1+'1 Données d''entrée'!$C$332)^'1 Données d''entrée'!$C$333-1)*'1 Données d''entrée'!$C$332,0)))","v":0},{"$f":"IF('1 Données d''entrée'!$C$336=\"(=NON)\",IF(L263>0,$B262*((('1 Données d''entrée'!$C$332+1)^'1 Données d''entrée'!$C$333)-(1+'1 Données d''entrée'!$C$332)^('6 Financement'!L$54-1-'1 Données d''entrée'!$C$334))/((1+'1 Données d''entrée'!$C$332)^'1 Données d''entrée'!$C$333-1)*'1 Données d''entrée'!$C$332,0),IF(L243<'1 Données d''entrée'!$C$334+1,'1 Données d''entrée'!$C$332*'6 Financement'!$B262,IF(L263>0,$B$73*((('1 Données d''entrée'!$C$332+1)^'1 Données d''entrée'!$C$333)-(1+'1 Données d''entrée'!$C$332)^('6 Financement'!L$54-1-'1 Données d''entrée'!$C$334))/((1+'1 Données d''entrée'!$C$332)^'1 Données d''entrée'!$C$333-1)*'1 Données d''entrée'!$C$332,0)))","v":0},{"$f":"IF('1 Données d''entrée'!$C$336=\"(=NON)\",IF(M263>0,$B262*((('1 Données d''entrée'!$C$332+1)^'1 Données d''entrée'!$C$333)-(1+'1 Données d''entrée'!$C$332)^('6 Financement'!M$54-1-'1 Données d''entrée'!$C$334))/((1+'1 Données d''entrée'!$C$332)^'1 Données d''entrée'!$C$333-1)*'1 Données d''entrée'!$C$332,0),IF(M243<'1 Données d''entrée'!$C$334+1,'1 Données d''entrée'!$C$332*'6 Financement'!$B262,IF(M263>0,$B$73*((('1 Données d''entrée'!$C$332+1)^'1 Données d''entrée'!$C$333)-(1+'1 Données d''entrée'!$C$332)^('6 Financement'!M$54-1-'1 Données d''entrée'!$C$334))/((1+'1 Données d''entrée'!$C$332)^'1 Données d''entrée'!$C$333-1)*'1 Données d''entrée'!$C$332,0)))","v":0},{"$f":"IF('1 Données d''entrée'!$C$336=\"(=NON)\",IF(N263>0,$B262*((('1 Données d''entrée'!$C$332+1)^'1 Données d''entrée'!$C$333)-(1+'1 Données d''entrée'!$C$332)^('6 Financement'!N$54-1-'1 Données d''entrée'!$C$334))/((1+'1 Données d''entrée'!$C$332)^'1 Données d''entrée'!$C$333-1)*'1 Données d''entrée'!$C$332,0),IF(N243<'1 Données d''entrée'!$C$334+1,'1 Données d''entrée'!$C$332*'6 Financement'!$B262,IF(N263>0,$B$73*((('1 Données d''entrée'!$C$332+1)^'1 Données d''entrée'!$C$333)-(1+'1 Données d''entrée'!$C$332)^('6 Financement'!N$54-1-'1 Données d''entrée'!$C$334))/((1+'1 Données d''entrée'!$C$332)^'1 Données d''entrée'!$C$333-1)*'1 Données d''entrée'!$C$332,0)))","v":0},{"$f":"IF('1 Données d''entrée'!$C$336=\"(=NON)\",IF(O263>0,$B262*((('1 Données d''entrée'!$C$332+1)^'1 Données d''entrée'!$C$333)-(1+'1 Données d''entrée'!$C$332)^('6 Financement'!O$54-1-'1 Données d''entrée'!$C$334))/((1+'1 Données d''entrée'!$C$332)^'1 Données d''entrée'!$C$333-1)*'1 Données d''entrée'!$C$332,0),IF(O243<'1 Données d''entrée'!$C$334+1,'1 Données d''entrée'!$C$332*'6 Financement'!$B262,IF(O263>0,$B$73*((('1 Données d''entrée'!$C$332+1)^'1 Données d''entrée'!$C$333)-(1+'1 Données d''entrée'!$C$332)^('6 Financement'!O$54-1-'1 Données d''entrée'!$C$334))/((1+'1 Données d''entrée'!$C$332)^'1 Données d''entrée'!$C$333-1)*'1 Données d''entrée'!$C$332,0)))","v":0},{"$f":"IF('1 Données d''entrée'!$C$336=\"(=NON)\",IF(P263>0,$B262*((('1 Données d''entrée'!$C$332+1)^'1 Données d''entrée'!$C$333)-(1+'1 Données d''entrée'!$C$332)^('6 Financement'!P$54-1-'1 Données d''entrée'!$C$334))/((1+'1 Données d''entrée'!$C$332)^'1 Données d''entrée'!$C$333-1)*'1 Données d''entrée'!$C$332,0),IF(P243<'1 Données d''entrée'!$C$334+1,'1 Données d''entrée'!$C$332*'6 Financement'!$B262,IF(P263>0,$B$73*((('1 Données d''entrée'!$C$332+1)^'1 Données d''entrée'!$C$333)-(1+'1 Données d''entrée'!$C$332)^('6 Financement'!P$54-1-'1 Données d''entrée'!$C$334))/((1+'1 Données d''entrée'!$C$332)^'1 Données d''entrée'!$C$333-1)*'1 Données d''entrée'!$C$332,0)))","v":0},{"$f":"IF('1 Données d''entrée'!$C$336=\"(=NON)\",IF(Q263>0,$B262*((('1 Données d''entrée'!$C$332+1)^'1 Données d''entrée'!$C$333)-(1+'1 Données d''entrée'!$C$332)^('6 Financement'!Q$54-1-'1 Données d''entrée'!$C$334))/((1+'1 Données d''entrée'!$C$332)^'1 Données d''entrée'!$C$333-1)*'1 Données d''entrée'!$C$332,0),IF(Q243<'1 Données d''entrée'!$C$334+1,'1 Données d''entrée'!$C$332*'6 Financement'!$B262,IF(Q263>0,$B$73*((('1 Données d''entrée'!$C$332+1)^'1 Données d''entrée'!$C$333)-(1+'1 Données d''entrée'!$C$332)^('6 Financement'!Q$54-1-'1 Données d''entrée'!$C$334))/((1+'1 Données d''entrée'!$C$332)^'1 Données d''entrée'!$C$333-1)*'1 Données d''entrée'!$C$332,0)))","v":0},{"$f":"IF('1 Données d''entrée'!$C$336=\"(=NON)\",IF(R263>0,$B262*((('1 Données d''entrée'!$C$332+1)^'1 Données d''entrée'!$C$333)-(1+'1 Données d''entrée'!$C$332)^('6 Financement'!R$54-1-'1 Données d''entrée'!$C$334))/((1+'1 Données d''entrée'!$C$332)^'1 Données d''entrée'!$C$333-1)*'1 Données d''entrée'!$C$332,0),IF(R243<'1 Données d''entrée'!$C$334+1,'1 Données d''entrée'!$C$332*'6 Financement'!$B262,IF(R263>0,$B$73*((('1 Données d''entrée'!$C$332+1)^'1 Données d''entrée'!$C$333)-(1+'1 Données d''entrée'!$C$332)^('6 Financement'!R$54-1-'1 Données d''entrée'!$C$334))/((1+'1 Données d''entrée'!$C$332)^'1 Données d''entrée'!$C$333-1)*'1 Données d''entrée'!$C$332,0)))","v":0},{"$f":"IF('1 Données d''entrée'!$C$336=\"(=NON)\",IF(S263>0,$B262*((('1 Données d''entrée'!$C$332+1)^'1 Données d''entrée'!$C$333)-(1+'1 Données d''entrée'!$C$332)^('6 Financement'!S$54-1-'1 Données d''entrée'!$C$334))/((1+'1 Données d''entrée'!$C$332)^'1 Données d''entrée'!$C$333-1)*'1 Données d''entrée'!$C$332,0),IF(S243<'1 Données d''entrée'!$C$334+1,'1 Données d''entrée'!$C$332*'6 Financement'!$B262,IF(S263>0,$B$73*((('1 Données d''entrée'!$C$332+1)^'1 Données d''entrée'!$C$333)-(1+'1 Données d''entrée'!$C$332)^('6 Financement'!S$54-1-'1 Données d''entrée'!$C$334))/((1+'1 Données d''entrée'!$C$332)^'1 Données d''entrée'!$C$333-1)*'1 Données d''entrée'!$C$332,0)))","v":0},{"$f":"IF('1 Données d''entrée'!$C$336=\"(=NON)\",IF(T263>0,$B262*((('1 Données d''entrée'!$C$332+1)^'1 Données d''entrée'!$C$333)-(1+'1 Données d''entrée'!$C$332)^('6 Financement'!T$54-1-'1 Données d''entrée'!$C$334))/((1+'1 Données d''entrée'!$C$332)^'1 Données d''entrée'!$C$333-1)*'1 Données d''entrée'!$C$332,0),IF(T243<'1 Données d''entrée'!$C$334+1,'1 Données d''entrée'!$C$332*'6 Financement'!$B262,IF(T263>0,$B$73*((('1 Données d''entrée'!$C$332+1)^'1 Données d''entrée'!$C$333)-(1+'1 Données d''entrée'!$C$332)^('6 Financement'!T$54-1-'1 Données d''entrée'!$C$334))/((1+'1 Données d''entrée'!$C$332)^'1 Données d''entrée'!$C$333-1)*'1 Données d''entrée'!$C$332,0)))","v":0},{"$f":"IF('1 Données d''entrée'!$C$336=\"(=NON)\",IF(U263>0,$B262*((('1 Données d''entrée'!$C$332+1)^'1 Données d''entrée'!$C$333)-(1+'1 Données d''entrée'!$C$332)^('6 Financement'!U$54-1-'1 Données d''entrée'!$C$334))/((1+'1 Données d''entrée'!$C$332)^'1 Données d''entrée'!$C$333-1)*'1 Données d''entrée'!$C$332,0),IF(U243<'1 Données d''entrée'!$C$334+1,'1 Données d''entrée'!$C$332*'6 Financement'!$B262,IF(U263>0,$B$73*((('1 Données d''entrée'!$C$332+1)^'1 Données d''entrée'!$C$333)-(1+'1 Données d''entrée'!$C$332)^('6 Financement'!U$54-1-'1 Données d''entrée'!$C$334))/((1+'1 Données d''entrée'!$C$332)^'1 Données d''entrée'!$C$333-1)*'1 Données d''entrée'!$C$332,0)))","v":0},{"$f":"IF('1 Données d''entrée'!$C$336=\"(=NON)\",IF(V263>0,$B262*((('1 Données d''entrée'!$C$332+1)^'1 Données d''entrée'!$C$333)-(1+'1 Données d''entrée'!$C$332)^('6 Financement'!V$54-1-'1 Données d''entrée'!$C$334))/((1+'1 Données d''entrée'!$C$332)^'1 Données d''entrée'!$C$333-1)*'1 Données d''entrée'!$C$332,0),IF(V243<'1 Données d''entrée'!$C$334+1,'1 Données d''entrée'!$C$332*'6 Financement'!$B262,IF(V263>0,$B$73*((('1 Données d''entrée'!$C$332+1)^'1 Données d''entrée'!$C$333)-(1+'1 Données d''entrée'!$C$332)^('6 Financement'!V$54-1-'1 Données d''entrée'!$C$334))/((1+'1 Données d''entrée'!$C$332)^'1 Données d''entrée'!$C$333-1)*'1 Données d''entrée'!$C$332,0)))","v":0}]
["Paiements d'intérêt avec des intérêts composés en cas d'absence des paiements dans la période de grâce",0,0,{"$f":"IF(D243='1 Données d''entrée'!$C$334+1,IF('1 Données d''entrée'!$C$336=\"(=NON)\",($B262*'1 Données d''entrée'!$C$332)*((('1 Données d''entrée'!$C$332+1)^'1 Données d''entrée'!$C$334-1)/('1 Données d''entrée'!$C$332))*(1+'1 Données d''entrée'!$C$332),0),0)","v":0},{"$f":"IF(E243='1 Données d''entrée'!$C$334+1,IF('1 Données d''entrée'!$C$336=\"(=NON)\",($B262*'1 Données d''entrée'!$C$332)*((('1 Données d''entrée'!$C$332+1)^'1 Données d''entrée'!$C$334-1)/('1 Données d''entrée'!$C$332))*(1+'1 Données d''entrée'!$C$332),0),0)","v":0},{"$f":"IF(F243='1 Données d''entrée'!$C$334+1,IF('1 Données d''entrée'!$C$336=\"(=NON)\",($B262*'1 Données d''entrée'!$C$332)*((('1 Données d''entrée'!$C$332+1)^'1 Données d''entrée'!$C$334-1)/('1 Données d''entrée'!$C$332))*(1+'1 Données d''entrée'!$C$332),0),0)","v":0},{"$f":"IF(G243='1 Données d''entrée'!$C$334+1,IF('1 Données d''entrée'!$C$336=\"(=NON)\",($B262*'1 Données d''entrée'!$C$332)*((('1 Données d''entrée'!$C$332+1)^'1 Données d''entrée'!$C$334-1)/('1 Données d''entrée'!$C$332))*(1+'1 Données d''entrée'!$C$332),0),0)","v":0},{"$f":"IF(H243='1 Données d''entrée'!$C$334+1,IF('1 Données d''entrée'!$C$336=\"(=NON)\",($B262*'1 Données d''entrée'!$C$332)*((('1 Données d''entrée'!$C$332+1)^'1 Données d''entrée'!$C$334-1)/('1 Données d''entrée'!$C$332))*(1+'1 Données d''entrée'!$C$332),0),0)","v":0},{"$f":"IF(I243='1 Données d''entrée'!$C$334+1,IF('1 Données d''entrée'!$C$336=\"(=NON)\",($B262*'1 Données d''entrée'!$C$332)*((('1 Données d''entrée'!$C$332+1)^'1 Données d''entrée'!$C$334-1)/('1 Données d''entrée'!$C$332))*(1+'1 Données d''entrée'!$C$332),0),0)","v":0},{"$f":"IF(J243='1 Données d''entrée'!$C$334+1,IF('1 Données d''entrée'!$C$336=\"(=NON)\",($B262*'1 Données d''entrée'!$C$332)*((('1 Données d''entrée'!$C$332+1)^'1 Données d''entrée'!$C$334-1)/('1 Données d''entrée'!$C$332))*(1+'1 Données d''entrée'!$C$332),0),0)","v":0},{"$f":"IF(K243='1 Données d''entrée'!$C$334+1,IF('1 Données d''entrée'!$C$336=\"(=NON)\",($B262*'1 Données d''entrée'!$C$332)*((('1 Données d''entrée'!$C$332+1)^'1 Données d''entrée'!$C$334-1)/('1 Données d''entrée'!$C$332))*(1+'1 Données d''entrée'!$C$332),0),0)","v":0},{"$f":"IF(L243='1 Données d''entrée'!$C$334+1,IF('1 Données d''entrée'!$C$336=\"(=NON)\",($B262*'1 Données d''entrée'!$C$332)*((('1 Données d''entrée'!$C$332+1)^'1 Données d''entrée'!$C$334-1)/('1 Données d''entrée'!$C$332))*(1+'1 Données d''entrée'!$C$332),0),0)","v":0},{"$f":"IF(M243='1 Données d''entrée'!$C$334+1,IF('1 Données d''entrée'!$C$336=\"(=NON)\",($B262*'1 Données d''entrée'!$C$332)*((('1 Données d''entrée'!$C$332+1)^'1 Données d''entrée'!$C$334-1)/('1 Données d''entrée'!$C$332))*(1+'1 Données d''entrée'!$C$332),0),0)","v":0},{"$f":"IF(N243='1 Données d''entrée'!$C$334+1,IF('1 Données d''entrée'!$C$336=\"(=NON)\",($B262*'1 Données d''entrée'!$C$332)*((('1 Données d''entrée'!$C$332+1)^'1 Données d''entrée'!$C$334-1)/('1 Données d''entrée'!$C$332))*(1+'1 Données d''entrée'!$C$332),0),0)","v":0},{"$f":"IF(O243='1 Données d''entrée'!$C$334+1,IF('1 Données d''entrée'!$C$336=\"(=NON)\",($B262*'1 Données d''entrée'!$C$332)*((('1 Données d''entrée'!$C$332+1)^'1 Données d''entrée'!$C$334-1)/('1 Données d''entrée'!$C$332))*(1+'1 Données d''entrée'!$C$332),0),0)","v":0},{"$f":"IF(P243='1 Données d''entrée'!$C$334+1,IF('1 Données d''entrée'!$C$336=\"(=NON)\",($B262*'1 Données d''entrée'!$C$332)*((('1 Données d''entrée'!$C$332+1)^'1 Données d''entrée'!$C$334-1)/('1 Données d''entrée'!$C$332))*(1+'1 Données d''entrée'!$C$332),0),0)","v":0},{"$f":"IF(Q243='1 Données d''entrée'!$C$334+1,IF('1 Données d''entrée'!$C$336=\"(=NON)\",($B262*'1 Données d''entrée'!$C$332)*((('1 Données d''entrée'!$C$332+1)^'1 Données d''entrée'!$C$334-1)/('1 Données d''entrée'!$C$332))*(1+'1 Données d''entrée'!$C$332),0),0)","v":0},{"$f":"IF(R243='1 Données d''entrée'!$C$334+1,IF('1 Données d''entrée'!$C$336=\"(=NON)\",($B262*'1 Données d''entrée'!$C$332)*((('1 Données d''entrée'!$C$332+1)^'1 Données d''entrée'!$C$334-1)/('1 Données d''entrée'!$C$332))*(1+'1 Données d''entrée'!$C$332),0),0)","v":0},{"$f":"IF(S243='1 Données d''entrée'!$C$334+1,IF('1 Données d''entrée'!$C$336=\"(=NON)\",($B262*'1 Données d''entrée'!$C$332)*((('1 Données d''entrée'!$C$332+1)^'1 Données d''entrée'!$C$334-1)/('1 Données d''entrée'!$C$332))*(1+'1 Données d''entrée'!$C$332),0),0)","v":0},{"$f":"IF(T243='1 Données d''entrée'!$C$334+1,IF('1 Données d''entrée'!$C$336=\"(=NON)\",($B262*'1 Données d''entrée'!$C$332)*((('1 Données d''entrée'!$C$332+1)^'1 Données d''entrée'!$C$334-1)/('1 Données d''entrée'!$C$332))*(1+'1 Données d''entrée'!$C$332),0),0)","v":0},{"$f":"IF(U243='1 Données d''entrée'!$C$334+1,IF('1 Données d''entrée'!$C$336=\"(=NON)\",($B262*'1 Données d''entrée'!$C$332)*((('1 Données d''entrée'!$C$332+1)^'1 Données d''entrée'!$C$334-1)/('1 Données d''entrée'!$C$332))*(1+'1 Données d''entrée'!$C$332),0),0)","v":0},{"$f":"IF(V243='1 Données d''entrée'!$C$334+1,IF('1 Données d''entrée'!$C$336=\"(=NON)\",($B262*'1 Données d''entrée'!$C$332)*((('1 Données d''entrée'!$C$332+1)^'1 Données d''entrée'!$C$334-1)/('1 Données d''entrée'!$C$332))*(1+'1 Données d''entrée'!$C$332),0),0)","v":0}]
[]
["Fonds d'autres donneurs / investisseurs - Subvention",{"$f":"'1 Données d''entrée'!$B$307","v":0}]
["Fonds d'autre donneurs / investisseurs - Prêt; Option 1: Remboursement du principal fractionné",{"$f":"'1 Données d''entrée'!$B$319","v":0},"% de prêt total"]
["Réception et montant restant",{"$f":"'1 Données d''entrée'!$B$306*'1 Données d''entrée'!$B$319+'1 Données d''entrée'!$B$306*'1 Données d''entrée'!$C$316","v":0},{"$f":"B269-C270","v":0},{"$f":"C269-D270","v":0},0,0,0,0,0,0,0,0,0,0,0,0,0,0,0,0,0,0]
["Remboursement du principal",0,{"$f":"IF(C243<'1 Données d''entrée'!$C$312+1,0,IF(C243<'1 Données d''entrée'!$C$312+'1 Données d''entrée'!$C$311+1,($B269/'1 Données d''entrée'!$C$311),0))","v":0},{"$f":"IF(D243<'1 Données d''entrée'!$C$312+1,0,IF(D243<'1 Données d''entrée'!$C$312+'1 Données d''entrée'!$C$311+1,($B269/'1 Données d''entrée'!$C$311),0))","v":0},{"$f":"IF(E243<'1 Données d''entrée'!$C$312+1,0,IF(E243<'1 Données d''entrée'!$C$312+'1 Données d''entrée'!$C$311+1,($B269/'1 Données d''entrée'!$C$311),0))","v":0},{"$f":"IF(F243<'1 Données d''entrée'!$C$312+1,0,IF(F243<'1 Données d''entrée'!$C$312+'1 Données d''entrée'!$C$311+1,($B269/'1 Données d''entrée'!$C$311),0))","v":0},{"$f":"IF(G243<'1 Données d''entrée'!$C$312+1,0,IF(G243<'1 Données d''entrée'!$C$312+'1 Données d''entrée'!$C$311+1,($B269/'1 Données d''entrée'!$C$311),0))","v":0},{"$f":"IF(H243<'1 Données d''entrée'!$C$312+1,0,IF(H243<'1 Données d''entrée'!$C$312+'1 Données d''entrée'!$C$311+1,($B269/'1 Données d''entrée'!$C$311),0))","v":0},{"$f":"IF(I243<'1 Données d''entrée'!$C$312+1,0,IF(I243<'1 Données d''entrée'!$C$312+'1 Données d''entrée'!$C$311+1,($B269/'1 Données d''entrée'!$C$311),0))","v":0},{"$f":"IF(J243<'1 Données d''entrée'!$C$312+1,0,IF(J243<'1 Données d''entrée'!$C$312+'1 Données d''entrée'!$C$311+1,($B269/'1 Données d''entrée'!$C$311),0))","v":0},{"$f":"IF(K243<'1 Données d''entrée'!$C$312+1,0,IF(K243<'1 Données d''entrée'!$C$312+'1 Données d''entrée'!$C$311+1,($B269/'1 Données d''entrée'!$C$311),0))","v":0},{"$f":"IF(L243<'1 Données d''entrée'!$C$312+1,0,IF(L243<'1 Données d''entrée'!$C$312+'1 Données d''entrée'!$C$311+1,($B269/'1 Données d''entrée'!$C$311),0))","v":0},{"$f":"IF(M243<'1 Données d''entrée'!$C$312+1,0,IF(M243<'1 Données d''entrée'!$C$312+'1 Données d''entrée'!$C$311+1,($B269/'1 Données d''entrée'!$C$311),0))","v":0},{"$f":"IF(N243<'1 Données d''entrée'!$C$312+1,0,IF(N243<'1 Données d''entrée'!$C$312+'1 Données d''entrée'!$C$311+1,($B269/'1 Données d''entrée'!$C$311),0))","v":0},{"$f":"IF(O243<'1 Données d''entrée'!$C$312+1,0,IF(O243<'1 Données d''entrée'!$C$312+'1 Données d''entrée'!$C$311+1,($B269/'1 Données d''entrée'!$C$311),0))","v":0},{"$f":"IF(P243<'1 Données d''entrée'!$C$312+1,0,IF(P243<'1 Données d''entrée'!$C$312+'1 Données d''entrée'!$C$311+1,($B269/'1 Données d''entrée'!$C$311),0))","v":0},{"$f":"IF(Q243<'1 Données d''entrée'!$C$312+1,0,IF(Q243<'1 Données d''entrée'!$C$312+'1 Données d''entrée'!$C$311+1,($B269/'1 Données d''entrée'!$C$311),0))","v":0},{"$f":"IF(R243<'1 Données d''entrée'!$C$312+1,0,IF(R243<'1 Données d''entrée'!$C$312+'1 Données d''entrée'!$C$311+1,($B269/'1 Données d''entrée'!$C$311),0))","v":0},{"$f":"IF(S243<'1 Données d''entrée'!$C$312+1,0,IF(S243<'1 Données d''entrée'!$C$312+'1 Données d''entrée'!$C$311+1,($B269/'1 Données d''entrée'!$C$311),0))","v":0},{"$f":"IF(T243<'1 Données d''entrée'!$C$312+1,0,IF(T243<'1 Données d''entrée'!$C$312+'1 Données d''entrée'!$C$311+1,($B269/'1 Données d''entrée'!$C$311),0))","v":0},{"$f":"IF(U243<'1 Données d''entrée'!$C$312+1,0,IF(U243<'1 Données d''entrée'!$C$312+'1 Données d''entrée'!$C$311+1,($B269/'1 Données d''entrée'!$C$311),0))","v":0},{"$f":"IF(V243<'1 Données d''entrée'!$C$312+1,0,IF(V243<'1 Données d''entrée'!$C$312+'1 Données d''entrée'!$C$311+1,($B269/'1 Données d''entrée'!$C$311),0))","v":0}]
["Paiement d'intérêts",0,{"$f":"IF('1 Données d''entrée'!$C$314=\"(=NON)\",IF(C243<'1 Données d''entrée'!$C$312+1,0,B269*'1 Données d''entrée'!$C$310),B269*'1 Données d''entrée'!$C$310)","v":0},{"$f":"IF('1 Données d''entrée'!$C$314=\"(=NON)\",IF(D243<'1 Données d''entrée'!$C$312+1,0,C269*'1 Données d''entrée'!$C$310),C269*'1 Données d''entrée'!$C$310)","v":0},{"$f":"IF('1 Données d''entrée'!$C$314=\"(=NON)\",IF(E243<'1 Données d''entrée'!$C$312+1,0,D269*'1 Données d''entrée'!$C$310),D269*'1 Données d''entrée'!$C$310)","v":0},{"$f":"IF('1 Données d''entrée'!$C$314=\"(=NON)\",IF(F243<'1 Données d''entrée'!$C$312+1,0,E269*'1 Données d''entrée'!$C$310),E269*'1 Données d''entrée'!$C$310)","v":0},{"$f":"IF('1 Données d''entrée'!$C$314=\"(=NON)\",IF(G243<'1 Données d''entrée'!$C$312+1,0,F269*'1 Données d''entrée'!$C$310),F269*'1 Données d''entrée'!$C$310)","v":0},{"$f":"IF('1 Données d''entrée'!$C$314=\"(=NON)\",IF(H243<'1 Données d''entrée'!$C$312+1,0,G269*'1 Données d''entrée'!$C$310),G269*'1 Données d''entrée'!$C$310)","v":0},{"$f":"IF('1 Données d''entrée'!$C$314=\"(=NON)\",IF(I243<'1 Données d''entrée'!$C$312+1,0,H269*'1 Données d''entrée'!$C$310),H269*'1 Données d''entrée'!$C$310)","v":0},{"$f":"IF('1 Données d''entrée'!$C$314=\"(=NON)\",IF(J243<'1 Données d''entrée'!$C$312+1,0,I269*'1 Données d''entrée'!$C$310),I269*'1 Données d''entrée'!$C$310)","v":0},{"$f":"IF('1 Données d''entrée'!$C$314=\"(=NON)\",IF(K243<'1 Données d''entrée'!$C$312+1,0,J269*'1 Données d''entrée'!$C$310),J269*'1 Données d''entrée'!$C$310)","v":0},{"$f":"IF('1 Données d''entrée'!$C$314=\"(=NON)\",IF(L243<'1 Données d''entrée'!$C$312+1,0,K269*'1 Données d''entrée'!$C$310),K269*'1 Données d''entrée'!$C$310)","v":0},{"$f":"IF('1 Données d''entrée'!$C$314=\"(=NON)\",IF(M243<'1 Données d''entrée'!$C$312+1,0,L269*'1 Données d''entrée'!$C$310),L269*'1 Données d''entrée'!$C$310)","v":0},{"$f":"IF('1 Données d''entrée'!$C$314=\"(=NON)\",IF(N243<'1 Données d''entrée'!$C$312+1,0,M269*'1 Données d''entrée'!$C$310),M269*'1 Données d''entrée'!$C$310)","v":0},{"$f":"IF('1 Données d''entrée'!$C$314=\"(=NON)\",IF(O243<'1 Données d''entrée'!$C$312+1,0,N269*'1 Données d''entrée'!$C$310),N269*'1 Données d''entrée'!$C$310)","v":0},{"$f":"IF('1 Données d''entrée'!$C$314=\"(=NON)\",IF(P243<'1 Données d''entrée'!$C$312+1,0,O269*'1 Données d''entrée'!$C$310),O269*'1 Données d''entrée'!$C$310)","v":0},{"$f":"IF('1 Données d''entrée'!$C$314=\"(=NON)\",IF(Q243<'1 Données d''entrée'!$C$312+1,0,P269*'1 Données d''entrée'!$C$310),P269*'1 Données d''entrée'!$C$310)","v":0},{"$f":"IF('1 Données d''entrée'!$C$314=\"(=NON)\",IF(R243<'1 Données d''entrée'!$C$312+1,0,Q269*'1 Données d''entrée'!$C$310),Q269*'1 Données d''entrée'!$C$310)","v":0},{"$f":"IF('1 Données d''entrée'!$C$314=\"(=NON)\",IF(S243<'1 Données d''entrée'!$C$312+1,0,R269*'1 Données d''entrée'!$C$310),R269*'1 Données d''entrée'!$C$310)","v":0},{"$f":"IF('1 Données d''entrée'!$C$314=\"(=NON)\",IF(T243<'1 Données d''entrée'!$C$312+1,0,S269*'1 Données d''entrée'!$C$310),S269*'1 Données d''entrée'!$C$310)","v":0},{"$f":"IF('1 Données d''entrée'!$C$314=\"(=NON)\",IF(U243<'1 Données d''entrée'!$C$312+1,0,T269*'1 Données d''entrée'!$C$310),T269*'1 Données d''entrée'!$C$310)","v":0},{"$f":"IF('1 Données d''entrée'!$C$314=\"(=NON)\",IF(V243<'1 Données d''entrée'!$C$312+1,0,U269*'1 Données d''entrée'!$C$310),U269*'1 Données d''entrée'!$C$310)","v":0}]
["Paiements d'intérêt avec des intérêts composés en cas d'absence des paiements dans la période de grâce",0,0,{"$f":"IF(D243='1 Données d''entrée'!$C$312+1,IF('1 Données d''entrée'!$C$314=\"(=NON)\",($B269*'1 Données d''entrée'!$C$310)*((('1 Données d''entrée'!$C$310+1)^'1 Données d''entrée'!$C$312-1)/('1 Données d''entrée'!$C$310))*(1+'1 Données d''entrée'!$C$310),0),0)","v":0},{"$f":"IF(E243='1 Données d''entrée'!$C$312+1,IF('1 Données d''entrée'!$C$314=\"(=NON)\",($B269*'1 Données d''entrée'!$C$310)*((('1 Données d''entrée'!$C$310+1)^'1 Données d''entrée'!$C$312-1)/('1 Données d''entrée'!$C$310))*(1+'1 Données d''entrée'!$C$310),0),0)","v":0},{"$f":"IF(F243='1 Données d''entrée'!$C$312+1,IF('1 Données d''entrée'!$C$314=\"(=NON)\",($B269*'1 Données d''entrée'!$C$310)*((('1 Données d''entrée'!$C$310+1)^'1 Données d''entrée'!$C$312-1)/('1 Données d''entrée'!$C$310))*(1+'1 Données d''entrée'!$C$310),0),0)","v":0},{"$f":"IF(G243='1 Données d''entrée'!$C$312+1,IF('1 Données d''entrée'!$C$314=\"(=NON)\",($B269*'1 Données d''entrée'!$C$310)*((('1 Données d''entrée'!$C$310+1)^'1 Données d''entrée'!$C$312-1)/('1 Données d''entrée'!$C$310))*(1+'1 Données d''entrée'!$C$310),0),0)","v":0},{"$f":"IF(H243='1 Données d''entrée'!$C$312+1,IF('1 Données d''entrée'!$C$314=\"(=NON)\",($B269*'1 Données d''entrée'!$C$310)*((('1 Données d''entrée'!$C$310+1)^'1 Données d''entrée'!$C$312-1)/('1 Données d''entrée'!$C$310))*(1+'1 Données d''entrée'!$C$310),0),0)","v":0},{"$f":"IF(I243='1 Données d''entrée'!$C$312+1,IF('1 Données d''entrée'!$C$314=\"(=NON)\",($B269*'1 Données d''entrée'!$C$310)*((('1 Données d''entrée'!$C$310+1)^'1 Données d''entrée'!$C$312-1)/('1 Données d''entrée'!$C$310))*(1+'1 Données d''entrée'!$C$310),0),0)","v":0},{"$f":"IF(J243='1 Données d''entrée'!$C$312+1,IF('1 Données d''entrée'!$C$314=\"(=NON)\",($B269*'1 Données d''entrée'!$C$310)*((('1 Données d''entrée'!$C$310+1)^'1 Données d''entrée'!$C$312-1)/('1 Données d''entrée'!$C$310))*(1+'1 Données d''entrée'!$C$310),0),0)","v":0},{"$f":"IF(K243='1 Données d''entrée'!$C$312+1,IF('1 Données d''entrée'!$C$314=\"(=NON)\",($B269*'1 Données d''entrée'!$C$310)*((('1 Données d''entrée'!$C$310+1)^'1 Données d''entrée'!$C$312-1)/('1 Données d''entrée'!$C$310))*(1+'1 Données d''entrée'!$C$310),0),0)","v":0},{"$f":"IF(L243='1 Données d''entrée'!$C$312+1,IF('1 Données d''entrée'!$C$314=\"(=NON)\",($B269*'1 Données d''entrée'!$C$310)*((('1 Données d''entrée'!$C$310+1)^'1 Données d''entrée'!$C$312-1)/('1 Données d''entrée'!$C$310))*(1+'1 Données d''entrée'!$C$310),0),0)","v":0},{"$f":"IF(M243='1 Données d''entrée'!$C$312+1,IF('1 Données d''entrée'!$C$314=\"(=NON)\",($B269*'1 Données d''entrée'!$C$310)*((('1 Données d''entrée'!$C$310+1)^'1 Données d''entrée'!$C$312-1)/('1 Données d''entrée'!$C$310))*(1+'1 Données d''entrée'!$C$310),0),0)","v":0},{"$f":"IF(N243='1 Données d''entrée'!$C$312+1,IF('1 Données d''entrée'!$C$314=\"(=NON)\",($B269*'1 Données d''entrée'!$C$310)*((('1 Données d''entrée'!$C$310+1)^'1 Données d''entrée'!$C$312-1)/('1 Données d''entrée'!$C$310))*(1+'1 Données d''entrée'!$C$310),0),0)","v":0},{"$f":"IF(O243='1 Données d''entrée'!$C$312+1,IF('1 Données d''entrée'!$C$314=\"(=NON)\",($B269*'1 Données d''entrée'!$C$310)*((('1 Données d''entrée'!$C$310+1)^'1 Données d''entrée'!$C$312-1)/('1 Données d''entrée'!$C$310))*(1+'1 Données d''entrée'!$C$310),0),0)","v":0},{"$f":"IF(P243='1 Données d''entrée'!$C$312+1,IF('1 Données d''entrée'!$C$314=\"(=NON)\",($B269*'1 Données d''entrée'!$C$310)*((('1 Données d''entrée'!$C$310+1)^'1 Données d''entrée'!$C$312-1)/('1 Données d''entrée'!$C$310))*(1+'1 Données d''entrée'!$C$310),0),0)","v":0},{"$f":"IF(Q243='1 Données d''entrée'!$C$312+1,IF('1 Données d''entrée'!$C$314=\"(=NON)\",($B269*'1 Données d''entrée'!$C$310)*((('1 Données d''entrée'!$C$310+1)^'1 Données d''entrée'!$C$312-1)/('1 Données d''entrée'!$C$310))*(1+'1 Données d''entrée'!$C$310),0),0)","v":0},{"$f":"IF(R243='1 Données d''entrée'!$C$312+1,IF('1 Données d''entrée'!$C$314=\"(=NON)\",($B269*'1 Données d''entrée'!$C$310)*((('1 Données d''entrée'!$C$310+1)^'1 Données d''entrée'!$C$312-1)/('1 Données d''entrée'!$C$310))*(1+'1 Données d''entrée'!$C$310),0),0)","v":0},{"$f":"IF(S243='1 Données d''entrée'!$C$312+1,IF('1 Données d''entrée'!$C$314=\"(=NON)\",($B269*'1 Données d''entrée'!$C$310)*((('1 Données d''entrée'!$C$310+1)^'1 Données d''entrée'!$C$312-1)/('1 Données d''entrée'!$C$310))*(1+'1 Données d''entrée'!$C$310),0),0)","v":0},{"$f":"IF(T243='1 Données d''entrée'!$C$312+1,IF('1 Données d''entrée'!$C$314=\"(=NON)\",($B269*'1 Données d''entrée'!$C$310)*((('1 Données d''entrée'!$C$310+1)^'1 Données d''entrée'!$C$312-1)/('1 Données d''entrée'!$C$310))*(1+'1 Données d''entrée'!$C$310),0),0)","v":0},{"$f":"IF(U243='1 Données d''entrée'!$C$312+1,IF('1 Données d''entrée'!$C$314=\"(=NON)\",($B269*'1 Données d''entrée'!$C$310)*((('1 Données d''entrée'!$C$310+1)^'1 Données d''entrée'!$C$312-1)/('1 Données d''entrée'!$C$310))*(1+'1 Données d''entrée'!$C$310),0),0)","v":0},{"$f":"IF(V243='1 Données d''entrée'!$C$312+1,IF('1 Données d''entrée'!$C$314=\"(=NON)\",($B269*'1 Données d''entrée'!$C$310)*((('1 Données d''entrée'!$C$310+1)^'1 Données d''entrée'!$C$312-1)/('1 Données d''entrée'!$C$310))*(1+'1 Données d''entrée'!$C$310),0),0)","v":0}]
["Fonds d'autre donneurs / investisseurs - Prêt; Option 2: Remboursement du principal final",{"$f":"'1 Données d''entrée'!$B$320","v":0},"% de prêt total"]
["Réception et montant restant",{"$f":"'1 Données d''entrée'!$B$306*'1 Données d''entrée'!$B$320+'1 Données d''entrée'!$B$306*'1 Données d''entrée'!$C$316","v":0},{"$f":"B274-C275","v":0},{"$f":"C274-D275","v":0},0,0,0,0,0,0,0,0,0,0,0,0,0,0,0,0,0,0]
["Remboursement du principal",0,{"$f":"IF('1 Données d''entrée'!$C$311+'1 Données d''entrée'!$C$312=C243,'6 Financement'!$B$85,0)","v":0},{"$f":"IF('1 Données d''entrée'!$C$311+'1 Données d''entrée'!$C$312=D243,'6 Financement'!$B$85,0)","v":0},{"$f":"IF('1 Données d''entrée'!$C$311+'1 Données d''entrée'!$C$312=E243,'6 Financement'!$B$85,0)","v":0},{"$f":"IF('1 Données d''entrée'!$C$311+'1 Données d''entrée'!$C$312=F243,'6 Financement'!$B$85,0)","v":0},{"$f":"IF('1 Données d''entrée'!$C$311+'1 Données d''entrée'!$C$312=G243,'6 Financement'!$B$85,0)","v":0},{"$f":"IF('1 Données d''entrée'!$C$311+'1 Données d''entrée'!$C$312=H243,'6 Financement'!$B$85,0)","v":0},{"$f":"IF('1 Données d''entrée'!$C$311+'1 Données d''entrée'!$C$312=I243,'6 Financement'!$B$85,0)","v":0},{"$f":"IF('1 Données d''entrée'!$C$311+'1 Données d''entrée'!$C$312=J243,'6 Financement'!$B$85,0)","v":0},{"$f":"IF('1 Données d''entrée'!$C$311+'1 Données d''entrée'!$C$312=K243,'6 Financement'!$B$85,0)","v":0},{"$f":"IF('1 Données d''entrée'!$C$311+'1 Données d''entrée'!$C$312=L243,'6 Financement'!$B$85,0)","v":0},{"$f":"IF('1 Données d''entrée'!$C$311+'1 Données d''entrée'!$C$312=M243,'6 Financement'!$B$85,0)","v":0},{"$f":"IF('1 Données d''entrée'!$C$311+'1 Données d''entrée'!$C$312=N243,'6 Financement'!$B$85,0)","v":0},{"$f":"IF('1 Données d''entrée'!$C$311+'1 Données d''entrée'!$C$312=O243,'6 Financement'!$B$85,0)","v":0},{"$f":"IF('1 Données d''entrée'!$C$311+'1 Données d''entrée'!$C$312=P243,'6 Financement'!$B$85,0)","v":0},{"$f":"IF('1 Données d''entrée'!$C$311+'1 Données d''entrée'!$C$312=Q243,'6 Financement'!$B$85,0)","v":0},{"$f":"IF('1 Données d''entrée'!$C$311+'1 Données d''entrée'!$C$312=R243,'6 Financement'!$B$85,0)","v":0},{"$f":"IF('1 Données d''entrée'!$C$311+'1 Données d''entrée'!$C$312=S243,'6 Financement'!$B$85,0)","v":0},{"$f":"IF('1 Données d''entrée'!$C$311+'1 Données d''entrée'!$C$312=T243,'6 Financement'!$B$85,0)","v":0},{"$f":"IF('1 Données d''entrée'!$C$311+'1 Données d''entrée'!$C$312=U243,'6 Financement'!$B$85,0)","v":0},{"$f":"IF('1 Données d''entrée'!$C$311+'1 Données d''entrée'!$C$312=V243,'6 Financement'!$B$85,0)","v":0}]
["Paiement d'intérêts",0,{"$f":"IF('1 Données d''entrée'!$C$314=\"(=NON)\",IF(C243<'1 Données d''entrée'!$C$312+1,0,B274*'1 Données d''entrée'!$C$310),B274*'1 Données d''entrée'!$C$310)","v":0},{"$f":"IF('1 Données d''entrée'!$C$314=\"(=NON)\",IF(D243<'1 Données d''entrée'!$C$312+1,0,C274*'1 Données d''entrée'!$C$310),C274*'1 Données d''entrée'!$C$310)","v":0},{"$f":"IF('1 Données d''entrée'!$C$314=\"(=NON)\",IF(E243<'1 Données d''entrée'!$C$312+1,0,D274*'1 Données d''entrée'!$C$310),D274*'1 Données d''entrée'!$C$310)","v":0},{"$f":"IF('1 Données d''entrée'!$C$314=\"(=NON)\",IF(F243<'1 Données d''entrée'!$C$312+1,0,E274*'1 Données d''entrée'!$C$310),E274*'1 Données d''entrée'!$C$310)","v":0},{"$f":"IF('1 Données d''entrée'!$C$314=\"(=NON)\",IF(G243<'1 Données d''entrée'!$C$312+1,0,F274*'1 Données d''entrée'!$C$310),F274*'1 Données d''entrée'!$C$310)","v":0},{"$f":"IF('1 Données d''entrée'!$C$314=\"(=NON)\",IF(H243<'1 Données d''entrée'!$C$312+1,0,G274*'1 Données d''entrée'!$C$310),G274*'1 Données d''entrée'!$C$310)","v":0},{"$f":"IF('1 Données d''entrée'!$C$314=\"(=NON)\",IF(I243<'1 Données d''entrée'!$C$312+1,0,H274*'1 Données d''entrée'!$C$310),H274*'1 Données d''entrée'!$C$310)","v":0},{"$f":"IF('1 Données d''entrée'!$C$314=\"(=NON)\",IF(J243<'1 Données d''entrée'!$C$312+1,0,I274*'1 Données d''entrée'!$C$310),I274*'1 Données d''entrée'!$C$310)","v":0},{"$f":"IF('1 Données d''entrée'!$C$314=\"(=NON)\",IF(K243<'1 Données d''entrée'!$C$312+1,0,J274*'1 Données d''entrée'!$C$310),J274*'1 Données d''entrée'!$C$310)","v":0},{"$f":"IF('1 Données d''entrée'!$C$314=\"(=NON)\",IF(L243<'1 Données d''entrée'!$C$312+1,0,K274*'1 Données d''entrée'!$C$310),K274*'1 Données d''entrée'!$C$310)","v":0},{"$f":"IF('1 Données d''entrée'!$C$314=\"(=NON)\",IF(M243<'1 Données d''entrée'!$C$312+1,0,L274*'1 Données d''entrée'!$C$310),L274*'1 Données d''entrée'!$C$310)","v":0},{"$f":"IF('1 Données d''entrée'!$C$314=\"(=NON)\",IF(N243<'1 Données d''entrée'!$C$312+1,0,M274*'1 Données d''entrée'!$C$310),M274*'1 Données d''entrée'!$C$310)","v":0},{"$f":"IF('1 Données d''entrée'!$C$314=\"(=NON)\",IF(O243<'1 Données d''entrée'!$C$312+1,0,N274*'1 Données d''entrée'!$C$310),N274*'1 Données d''entrée'!$C$310)","v":0},{"$f":"IF('1 Données d''entrée'!$C$314=\"(=NON)\",IF(P243<'1 Données d''entrée'!$C$312+1,0,O274*'1 Données d''entrée'!$C$310),O274*'1 Données d''entrée'!$C$310)","v":0},{"$f":"IF('1 Données d''entrée'!$C$314=\"(=NON)\",IF(Q243<'1 Données d''entrée'!$C$312+1,0,P274*'1 Données d''entrée'!$C$310),P274*'1 Données d''entrée'!$C$310)","v":0},{"$f":"IF('1 Données d''entrée'!$C$314=\"(=NON)\",IF(R243<'1 Données d''entrée'!$C$312+1,0,Q274*'1 Données d''entrée'!$C$310),Q274*'1 Données d''entrée'!$C$310)","v":0},{"$f":"IF('1 Données d''entrée'!$C$314=\"(=NON)\",IF(S243<'1 Données d''entrée'!$C$312+1,0,R274*'1 Données d''entrée'!$C$310),R274*'1 Données d''entrée'!$C$310)","v":0},{"$f":"IF('1 Données d''entrée'!$C$314=\"(=NON)\",IF(T243<'1 Données d''entrée'!$C$312+1,0,S274*'1 Données d''entrée'!$C$310),S274*'1 Données d''entrée'!$C$310)","v":0},{"$f":"IF('1 Données d''entrée'!$C$314=\"(=NON)\",IF(U243<'1 Données d''entrée'!$C$312+1,0,T274*'1 Données d''entrée'!$C$310),T274*'1 Données d''entrée'!$C$310)","v":0},{"$f":"IF('1 Données d''entrée'!$C$314=\"(=NON)\",IF(V243<'1 Données d''entrée'!$C$312+1,0,U274*'1 Données d''entrée'!$C$310),U274*'1 Données d''entrée'!$C$310)","v":0}]
["Paiements d'intérêt avec des intérêts composés en cas d'absence des paiements dans la période de grâce",0,0,{"$f":"IF(D243='1 Données d''entrée'!$C$312+1,IF('1 Données d''entrée'!$C$314=\"(=NON)\",($B274*'1 Données d''entrée'!$C$310)*((('1 Données d''entrée'!$C$310+1)^'1 Données d''entrée'!$C$312-1)/('1 Données d''entrée'!$C$310))*(1+'1 Données d''entrée'!$C$310),0),0)","v":0},{"$f":"IF(E243='1 Données d''entrée'!$C$312+1,IF('1 Données d''entrée'!$C$314=\"(=NON)\",($B274*'1 Données d''entrée'!$C$310)*((('1 Données d''entrée'!$C$310+1)^'1 Données d''entrée'!$C$312-1)/('1 Données d''entrée'!$C$310))*(1+'1 Données d''entrée'!$C$310),0),0)","v":0},{"$f":"IF(F243='1 Données d''entrée'!$C$312+1,IF('1 Données d''entrée'!$C$314=\"(=NON)\",($B274*'1 Données d''entrée'!$C$310)*((('1 Données d''entrée'!$C$310+1)^'1 Données d''entrée'!$C$312-1)/('1 Données d''entrée'!$C$310))*(1+'1 Données d''entrée'!$C$310),0),0)","v":0},{"$f":"IF(G243='1 Données d''entrée'!$C$312+1,IF('1 Données d''entrée'!$C$314=\"(=NON)\",($B274*'1 Données d''entrée'!$C$310)*((('1 Données d''entrée'!$C$310+1)^'1 Données d''entrée'!$C$312-1)/('1 Données d''entrée'!$C$310))*(1+'1 Données d''entrée'!$C$310),0),0)","v":0},{"$f":"IF(H243='1 Données d''entrée'!$C$312+1,IF('1 Données d''entrée'!$C$314=\"(=NON)\",($B274*'1 Données d''entrée'!$C$310)*((('1 Données d''entrée'!$C$310+1)^'1 Données d''entrée'!$C$312-1)/('1 Données d''entrée'!$C$310))*(1+'1 Données d''entrée'!$C$310),0),0)","v":0},{"$f":"IF(I243='1 Données d''entrée'!$C$312+1,IF('1 Données d''entrée'!$C$314=\"(=NON)\",($B274*'1 Données d''entrée'!$C$310)*((('1 Données d''entrée'!$C$310+1)^'1 Données d''entrée'!$C$312-1)/('1 Données d''entrée'!$C$310))*(1+'1 Données d''entrée'!$C$310),0),0)","v":0},{"$f":"IF(J243='1 Données d''entrée'!$C$312+1,IF('1 Données d''entrée'!$C$314=\"(=NON)\",($B274*'1 Données d''entrée'!$C$310)*((('1 Données d''entrée'!$C$310+1)^'1 Données d''entrée'!$C$312-1)/('1 Données d''entrée'!$C$310))*(1+'1 Données d''entrée'!$C$310),0),0)","v":0},{"$f":"IF(K243='1 Données d''entrée'!$C$312+1,IF('1 Données d''entrée'!$C$314=\"(=NON)\",($B274*'1 Données d''entrée'!$C$310)*((('1 Données d''entrée'!$C$310+1)^'1 Données d''entrée'!$C$312-1)/('1 Données d''entrée'!$C$310))*(1+'1 Données d''entrée'!$C$310),0),0)","v":0},{"$f":"IF(L243='1 Données d''entrée'!$C$312+1,IF('1 Données d''entrée'!$C$314=\"(=NON)\",($B274*'1 Données d''entrée'!$C$310)*((('1 Données d''entrée'!$C$310+1)^'1 Données d''entrée'!$C$312-1)/('1 Données d''entrée'!$C$310))*(1+'1 Données d''entrée'!$C$310),0),0)","v":0},{"$f":"IF(M243='1 Données d''entrée'!$C$312+1,IF('1 Données d''entrée'!$C$314=\"(=NON)\",($B274*'1 Données d''entrée'!$C$310)*((('1 Données d''entrée'!$C$310+1)^'1 Données d''entrée'!$C$312-1)/('1 Données d''entrée'!$C$310))*(1+'1 Données d''entrée'!$C$310),0),0)","v":0},{"$f":"IF(N243='1 Données d''entrée'!$C$312+1,IF('1 Données d''entrée'!$C$314=\"(=NON)\",($B274*'1 Données d''entrée'!$C$310)*((('1 Données d''entrée'!$C$310+1)^'1 Données d''entrée'!$C$312-1)/('1 Données d''entrée'!$C$310))*(1+'1 Données d''entrée'!$C$310),0),0)","v":0},{"$f":"IF(O243='1 Données d''entrée'!$C$312+1,IF('1 Données d''entrée'!$C$314=\"(=NON)\",($B274*'1 Données d''entrée'!$C$310)*((('1 Données d''entrée'!$C$310+1)^'1 Données d''entrée'!$C$312-1)/('1 Données d''entrée'!$C$310))*(1+'1 Données d''entrée'!$C$310),0),0)","v":0},{"$f":"IF(P243='1 Données d''entrée'!$C$312+1,IF('1 Données d''entrée'!$C$314=\"(=NON)\",($B274*'1 Données d''entrée'!$C$310)*((('1 Données d''entrée'!$C$310+1)^'1 Données d''entrée'!$C$312-1)/('1 Données d''entrée'!$C$310))*(1+'1 Données d''entrée'!$C$310),0),0)","v":0},{"$f":"IF(Q243='1 Données d''entrée'!$C$312+1,IF('1 Données d''entrée'!$C$314=\"(=NON)\",($B274*'1 Données d''entrée'!$C$310)*((('1 Données d''entrée'!$C$310+1)^'1 Données d''entrée'!$C$312-1)/('1 Données d''entrée'!$C$310))*(1+'1 Données d''entrée'!$C$310),0),0)","v":0},{"$f":"IF(R243='1 Données d''entrée'!$C$312+1,IF('1 Données d''entrée'!$C$314=\"(=NON)\",($B274*'1 Données d''entrée'!$C$310)*((('1 Données d''entrée'!$C$310+1)^'1 Données d''entrée'!$C$312-1)/('1 Données d''entrée'!$C$310))*(1+'1 Données d''entrée'!$C$310),0),0)","v":0},{"$f":"IF(S243='1 Données d''entrée'!$C$312+1,IF('1 Données d''entrée'!$C$314=\"(=NON)\",($B274*'1 Données d''entrée'!$C$310)*((('1 Données d''entrée'!$C$310+1)^'1 Données d''entrée'!$C$312-1)/('1 Données d''entrée'!$C$310))*(1+'1 Données d''entrée'!$C$310),0),0)","v":0},{"$f":"IF(T243='1 Données d''entrée'!$C$312+1,IF('1 Données d''entrée'!$C$314=\"(=NON)\",($B274*'1 Données d''entrée'!$C$310)*((('1 Données d''entrée'!$C$310+1)^'1 Données d''entrée'!$C$312-1)/('1 Données d''entrée'!$C$310))*(1+'1 Données d''entrée'!$C$310),0),0)","v":0},{"$f":"IF(U243='1 Données d''entrée'!$C$312+1,IF('1 Données d''entrée'!$C$314=\"(=NON)\",($B274*'1 Données d''entrée'!$C$310)*((('1 Données d''entrée'!$C$310+1)^'1 Données d''entrée'!$C$312-1)/('1 Données d''entrée'!$C$310))*(1+'1 Données d''entrée'!$C$310),0),0)","v":0},{"$f":"IF(V243='1 Données d''entrée'!$C$312+1,IF('1 Données d''entrée'!$C$314=\"(=NON)\",($B274*'1 Données d''entrée'!$C$310)*((('1 Données d''entrée'!$C$310+1)^'1 Données d''entrée'!$C$312-1)/('1 Données d''entrée'!$C$310))*(1+'1 Données d''entrée'!$C$310),0),0)","v":0}]
["Fonds d'autre donneurs / investisseurs - Prêt; Option 3: Remboursement vers l'annuité constante",{"$f":"'1 Données d''entrée'!$B$321","v":0},"% de prêt total"]
["Réception ",{"$f":"B278*'1 Données d''entrée'!$B$306+'1 Données d''entrée'!$B$306*'1 Données d''entrée'!$C$316","v":0},0,0,0,0,0,0,0,0,0,0,0,0,0,0,0,0,0,0,0,0]
["Remboursement vers l'annuité constante",{"$f":"IF(B243<'1 Données d''entrée'!$C$312+1,0,IF(B243<'1 Données d''entrée'!$C$311+'1 Données d''entrée'!$C$312+1,$B279*('1 Données d''entrée'!$C$310*(1+'1 Données d''entrée'!$C$310)^'1 Données d''entrée'!$C$311)/((1+'1 Données d''entrée'!$C$310)^'1 Données d''entrée'!$C$311-1),0))","v":0},{"$f":"IF(C243<'1 Données d''entrée'!$C$312+1,0,IF(C243<'1 Données d''entrée'!$C$311+'1 Données d''entrée'!$C$312+1,$B279*('1 Données d''entrée'!$C$310*(1+'1 Données d''entrée'!$C$310)^'1 Données d''entrée'!$C$311)/((1+'1 Données d''entrée'!$C$310)^'1 Données d''entrée'!$C$311-1),0))","v":0},{"$f":"IF(D243<'1 Données d''entrée'!$C$312+1,0,IF(D243<'1 Données d''entrée'!$C$311+'1 Données d''entrée'!$C$312+1,$B279*('1 Données d''entrée'!$C$310*(1+'1 Données d''entrée'!$C$310)^'1 Données d''entrée'!$C$311)/((1+'1 Données d''entrée'!$C$310)^'1 Données d''entrée'!$C$311-1),0))","v":0},{"$f":"IF(E243<'1 Données d''entrée'!$C$312+1,0,IF(E243<'1 Données d''entrée'!$C$311+'1 Données d''entrée'!$C$312+1,$B279*('1 Données d''entrée'!$C$310*(1+'1 Données d''entrée'!$C$310)^'1 Données d''entrée'!$C$311)/((1+'1 Données d''entrée'!$C$310)^'1 Données d''entrée'!$C$311-1),0))","v":0},{"$f":"IF(F243<'1 Données d''entrée'!$C$312+1,0,IF(F243<'1 Données d''entrée'!$C$311+'1 Données d''entrée'!$C$312+1,$B279*('1 Données d''entrée'!$C$310*(1+'1 Données d''entrée'!$C$310)^'1 Données d''entrée'!$C$311)/((1+'1 Données d''entrée'!$C$310)^'1 Données d''entrée'!$C$311-1),0))","v":0},{"$f":"IF(G243<'1 Données d''entrée'!$C$312+1,0,IF(G243<'1 Données d''entrée'!$C$311+'1 Données d''entrée'!$C$312+1,$B279*('1 Données d''entrée'!$C$310*(1+'1 Données d''entrée'!$C$310)^'1 Données d''entrée'!$C$311)/((1+'1 Données d''entrée'!$C$310)^'1 Données d''entrée'!$C$311-1),0))","v":0},{"$f":"IF(H243<'1 Données d''entrée'!$C$312+1,0,IF(H243<'1 Données d''entrée'!$C$311+'1 Données d''entrée'!$C$312+1,$B279*('1 Données d''entrée'!$C$310*(1+'1 Données d''entrée'!$C$310)^'1 Données d''entrée'!$C$311)/((1+'1 Données d''entrée'!$C$310)^'1 Données d''entrée'!$C$311-1),0))","v":0},{"$f":"IF(I243<'1 Données d''entrée'!$C$312+1,0,IF(I243<'1 Données d''entrée'!$C$311+'1 Données d''entrée'!$C$312+1,$B279*('1 Données d''entrée'!$C$310*(1+'1 Données d''entrée'!$C$310)^'1 Données d''entrée'!$C$311)/((1+'1 Données d''entrée'!$C$310)^'1 Données d''entrée'!$C$311-1),0))","v":0},{"$f":"IF(J243<'1 Données d''entrée'!$C$312+1,0,IF(J243<'1 Données d''entrée'!$C$311+'1 Données d''entrée'!$C$312+1,$B279*('1 Données d''entrée'!$C$310*(1+'1 Données d''entrée'!$C$310)^'1 Données d''entrée'!$C$311)/((1+'1 Données d''entrée'!$C$310)^'1 Données d''entrée'!$C$311-1),0))","v":0},{"$f":"IF(K243<'1 Données d''entrée'!$C$312+1,0,IF(K243<'1 Données d''entrée'!$C$311+'1 Données d''entrée'!$C$312+1,$B279*('1 Données d''entrée'!$C$310*(1+'1 Données d''entrée'!$C$310)^'1 Données d''entrée'!$C$311)/((1+'1 Données d''entrée'!$C$310)^'1 Données d''entrée'!$C$311-1),0))","v":0},{"$f":"IF(L243<'1 Données d''entrée'!$C$312+1,0,IF(L243<'1 Données d''entrée'!$C$311+'1 Données d''entrée'!$C$312+1,$B279*('1 Données d''entrée'!$C$310*(1+'1 Données d''entrée'!$C$310)^'1 Données d''entrée'!$C$311)/((1+'1 Données d''entrée'!$C$310)^'1 Données d''entrée'!$C$311-1),0))","v":0},{"$f":"IF(M243<'1 Données d''entrée'!$C$312+1,0,IF(M243<'1 Données d''entrée'!$C$311+'1 Données d''entrée'!$C$312+1,$B279*('1 Données d''entrée'!$C$310*(1+'1 Données d''entrée'!$C$310)^'1 Données d''entrée'!$C$311)/((1+'1 Données d''entrée'!$C$310)^'1 Données d''entrée'!$C$311-1),0))","v":0},{"$f":"IF(N243<'1 Données d''entrée'!$C$312+1,0,IF(N243<'1 Données d''entrée'!$C$311+'1 Données d''entrée'!$C$312+1,$B279*('1 Données d''entrée'!$C$310*(1+'1 Données d''entrée'!$C$310)^'1 Données d''entrée'!$C$311)/((1+'1 Données d''entrée'!$C$310)^'1 Données d''entrée'!$C$311-1),0))","v":0},{"$f":"IF(O243<'1 Données d''entrée'!$C$312+1,0,IF(O243<'1 Données d''entrée'!$C$311+'1 Données d''entrée'!$C$312+1,$B279*('1 Données d''entrée'!$C$310*(1+'1 Données d''entrée'!$C$310)^'1 Données d''entrée'!$C$311)/((1+'1 Données d''entrée'!$C$310)^'1 Données d''entrée'!$C$311-1),0))","v":0},{"$f":"IF(P243<'1 Données d''entrée'!$C$312+1,0,IF(P243<'1 Données d''entrée'!$C$311+'1 Données d''entrée'!$C$312+1,$B279*('1 Données d''entrée'!$C$310*(1+'1 Données d''entrée'!$C$310)^'1 Données d''entrée'!$C$311)/((1+'1 Données d''entrée'!$C$310)^'1 Données d''entrée'!$C$311-1),0))","v":0},{"$f":"IF(Q243<'1 Données d''entrée'!$C$312+1,0,IF(Q243<'1 Données d''entrée'!$C$311+'1 Données d''entrée'!$C$312+1,$B279*('1 Données d''entrée'!$C$310*(1+'1 Données d''entrée'!$C$310)^'1 Données d''entrée'!$C$311)/((1+'1 Données d''entrée'!$C$310)^'1 Données d''entrée'!$C$311-1),0))","v":0},{"$f":"IF(R243<'1 Données d''entrée'!$C$312+1,0,IF(R243<'1 Données d''entrée'!$C$311+'1 Données d''entrée'!$C$312+1,$B279*('1 Données d''entrée'!$C$310*(1+'1 Données d''entrée'!$C$310)^'1 Données d''entrée'!$C$311)/((1+'1 Données d''entrée'!$C$310)^'1 Données d''entrée'!$C$311-1),0))","v":0},{"$f":"IF(S243<'1 Données d''entrée'!$C$312+1,0,IF(S243<'1 Données d''entrée'!$C$311+'1 Données d''entrée'!$C$312+1,$B279*('1 Données d''entrée'!$C$310*(1+'1 Données d''entrée'!$C$310)^'1 Données d''entrée'!$C$311)/((1+'1 Données d''entrée'!$C$310)^'1 Données d''entrée'!$C$311-1),0))","v":0},{"$f":"IF(T243<'1 Données d''entrée'!$C$312+1,0,IF(T243<'1 Données d''entrée'!$C$311+'1 Données d''entrée'!$C$312+1,$B279*('1 Données d''entrée'!$C$310*(1+'1 Données d''entrée'!$C$310)^'1 Données d''entrée'!$C$311)/((1+'1 Données d''entrée'!$C$310)^'1 Données d''entrée'!$C$311-1),0))","v":0},{"$f":"IF(U243<'1 Données d''entrée'!$C$312+1,0,IF(U243<'1 Données d''entrée'!$C$311+'1 Données d''entrée'!$C$312+1,$B279*('1 Données d''entrée'!$C$310*(1+'1 Données d''entrée'!$C$310)^'1 Données d''entrée'!$C$311)/((1+'1 Données d''entrée'!$C$310)^'1 Données d''entrée'!$C$311-1),0))","v":0},{"$f":"IF(V243<'1 Données d''entrée'!$C$312+1,0,IF(V243<'1 Données d''entrée'!$C$311+'1 Données d''entrée'!$C$312+1,$B279*('1 Données d''entrée'!$C$310*(1+'1 Données d''entrée'!$C$310)^'1 Données d''entrée'!$C$311)/((1+'1 Données d''entrée'!$C$310)^'1 Données d''entrée'!$C$311-1),0))","v":0}]
["Paiement d'intérêt décroissant inclu dans l'annuité constante",0,{"$f":"IF('1 Données d''entrée'!$C$314=\"(=NON)\",IF(C280>0,$B279*((('1 Données d''entrée'!$C$310+1)^'1 Données d''entrée'!$C$311)-(1+'1 Données d''entrée'!$C$310)^('6 Financement'!C$54-1-'1 Données d''entrée'!$C$312))/((1+'1 Données d''entrée'!$C$310)^'1 Données d''entrée'!$C$311-1)*'1 Données d''entrée'!$C$310,0),IF(C243<'1 Données d''entrée'!$C$312+1,'1 Données d''entrée'!$C$310*'6 Financement'!$B279,IF(C280>0,$B$90*((('1 Données d''entrée'!$C$310+1)^'1 Données d''entrée'!$C$311)-(1+'1 Données d''entrée'!$C$310)^('6 Financement'!C$54-1-'1 Données d''entrée'!$C$312))/((1+'1 Données d''entrée'!$C$310)^'1 Données d''entrée'!$C$311-1)*'1 Données d''entrée'!$C$310,0)))","v":0},{"$f":"IF('1 Données d''entrée'!$C$314=\"(=NON)\",IF(D280>0,$B279*((('1 Données d''entrée'!$C$310+1)^'1 Données d''entrée'!$C$311)-(1+'1 Données d''entrée'!$C$310)^('6 Financement'!D$54-1-'1 Données d''entrée'!$C$312))/((1+'1 Données d''entrée'!$C$310)^'1 Données d''entrée'!$C$311-1)*'1 Données d''entrée'!$C$310,0),IF(D243<'1 Données d''entrée'!$C$312+1,'1 Données d''entrée'!$C$310*'6 Financement'!$B279,IF(D280>0,$B$90*((('1 Données d''entrée'!$C$310+1)^'1 Données d''entrée'!$C$311)-(1+'1 Données d''entrée'!$C$310)^('6 Financement'!D$54-1-'1 Données d''entrée'!$C$312))/((1+'1 Données d''entrée'!$C$310)^'1 Données d''entrée'!$C$311-1)*'1 Données d''entrée'!$C$310,0)))","v":0},{"$f":"IF('1 Données d''entrée'!$C$314=\"(=NON)\",IF(E280>0,$B279*((('1 Données d''entrée'!$C$310+1)^'1 Données d''entrée'!$C$311)-(1+'1 Données d''entrée'!$C$310)^('6 Financement'!E$54-1-'1 Données d''entrée'!$C$312))/((1+'1 Données d''entrée'!$C$310)^'1 Données d''entrée'!$C$311-1)*'1 Données d''entrée'!$C$310,0),IF(E243<'1 Données d''entrée'!$C$312+1,'1 Données d''entrée'!$C$310*'6 Financement'!$B279,IF(E280>0,$B$90*((('1 Données d''entrée'!$C$310+1)^'1 Données d''entrée'!$C$311)-(1+'1 Données d''entrée'!$C$310)^('6 Financement'!E$54-1-'1 Données d''entrée'!$C$312))/((1+'1 Données d''entrée'!$C$310)^'1 Données d''entrée'!$C$311-1)*'1 Données d''entrée'!$C$310,0)))","v":0},{"$f":"IF('1 Données d''entrée'!$C$314=\"(=NON)\",IF(F280>0,$B279*((('1 Données d''entrée'!$C$310+1)^'1 Données d''entrée'!$C$311)-(1+'1 Données d''entrée'!$C$310)^('6 Financement'!F$54-1-'1 Données d''entrée'!$C$312))/((1+'1 Données d''entrée'!$C$310)^'1 Données d''entrée'!$C$311-1)*'1 Données d''entrée'!$C$310,0),IF(F243<'1 Données d''entrée'!$C$312+1,'1 Données d''entrée'!$C$310*'6 Financement'!$B279,IF(F280>0,$B$90*((('1 Données d''entrée'!$C$310+1)^'1 Données d''entrée'!$C$311)-(1+'1 Données d''entrée'!$C$310)^('6 Financement'!F$54-1-'1 Données d''entrée'!$C$312))/((1+'1 Données d''entrée'!$C$310)^'1 Données d''entrée'!$C$311-1)*'1 Données d''entrée'!$C$310,0)))","v":0},{"$f":"IF('1 Données d''entrée'!$C$314=\"(=NON)\",IF(G280>0,$B279*((('1 Données d''entrée'!$C$310+1)^'1 Données d''entrée'!$C$311)-(1+'1 Données d''entrée'!$C$310)^('6 Financement'!G$54-1-'1 Données d''entrée'!$C$312))/((1+'1 Données d''entrée'!$C$310)^'1 Données d''entrée'!$C$311-1)*'1 Données d''entrée'!$C$310,0),IF(G243<'1 Données d''entrée'!$C$312+1,'1 Données d''entrée'!$C$310*'6 Financement'!$B279,IF(G280>0,$B$90*((('1 Données d''entrée'!$C$310+1)^'1 Données d''entrée'!$C$311)-(1+'1 Données d''entrée'!$C$310)^('6 Financement'!G$54-1-'1 Données d''entrée'!$C$312))/((1+'1 Données d''entrée'!$C$310)^'1 Données d''entrée'!$C$311-1)*'1 Données d''entrée'!$C$310,0)))","v":0},{"$f":"IF('1 Données d''entrée'!$C$314=\"(=NON)\",IF(H280>0,$B279*((('1 Données d''entrée'!$C$310+1)^'1 Données d''entrée'!$C$311)-(1+'1 Données d''entrée'!$C$310)^('6 Financement'!H$54-1-'1 Données d''entrée'!$C$312))/((1+'1 Données d''entrée'!$C$310)^'1 Données d''entrée'!$C$311-1)*'1 Données d''entrée'!$C$310,0),IF(H243<'1 Données d''entrée'!$C$312+1,'1 Données d''entrée'!$C$310*'6 Financement'!$B279,IF(H280>0,$B$90*((('1 Données d''entrée'!$C$310+1)^'1 Données d''entrée'!$C$311)-(1+'1 Données d''entrée'!$C$310)^('6 Financement'!H$54-1-'1 Données d''entrée'!$C$312))/((1+'1 Données d''entrée'!$C$310)^'1 Données d''entrée'!$C$311-1)*'1 Données d''entrée'!$C$310,0)))","v":0},{"$f":"IF('1 Données d''entrée'!$C$314=\"(=NON)\",IF(I280>0,$B279*((('1 Données d''entrée'!$C$310+1)^'1 Données d''entrée'!$C$311)-(1+'1 Données d''entrée'!$C$310)^('6 Financement'!I$54-1-'1 Données d''entrée'!$C$312))/((1+'1 Données d''entrée'!$C$310)^'1 Données d''entrée'!$C$311-1)*'1 Données d''entrée'!$C$310,0),IF(I243<'1 Données d''entrée'!$C$312+1,'1 Données d''entrée'!$C$310*'6 Financement'!$B279,IF(I280>0,$B$90*((('1 Données d''entrée'!$C$310+1)^'1 Données d''entrée'!$C$311)-(1+'1 Données d''entrée'!$C$310)^('6 Financement'!I$54-1-'1 Données d''entrée'!$C$312))/((1+'1 Données d''entrée'!$C$310)^'1 Données d''entrée'!$C$311-1)*'1 Données d''entrée'!$C$310,0)))","v":0},{"$f":"IF('1 Données d''entrée'!$C$314=\"(=NON)\",IF(J280>0,$B279*((('1 Données d''entrée'!$C$310+1)^'1 Données d''entrée'!$C$311)-(1+'1 Données d''entrée'!$C$310)^('6 Financement'!J$54-1-'1 Données d''entrée'!$C$312))/((1+'1 Données d''entrée'!$C$310)^'1 Données d''entrée'!$C$311-1)*'1 Données d''entrée'!$C$310,0),IF(J243<'1 Données d''entrée'!$C$312+1,'1 Données d''entrée'!$C$310*'6 Financement'!$B279,IF(J280>0,$B$90*((('1 Données d''entrée'!$C$310+1)^'1 Données d''entrée'!$C$311)-(1+'1 Données d''entrée'!$C$310)^('6 Financement'!J$54-1-'1 Données d''entrée'!$C$312))/((1+'1 Données d''entrée'!$C$310)^'1 Données d''entrée'!$C$311-1)*'1 Données d''entrée'!$C$310,0)))","v":0},{"$f":"IF('1 Données d''entrée'!$C$314=\"(=NON)\",IF(K280>0,$B279*((('1 Données d''entrée'!$C$310+1)^'1 Données d''entrée'!$C$311)-(1+'1 Données d''entrée'!$C$310)^('6 Financement'!K$54-1-'1 Données d''entrée'!$C$312))/((1+'1 Données d''entrée'!$C$310)^'1 Données d''entrée'!$C$311-1)*'1 Données d''entrée'!$C$310,0),IF(K243<'1 Données d''entrée'!$C$312+1,'1 Données d''entrée'!$C$310*'6 Financement'!$B279,IF(K280>0,$B$90*((('1 Données d''entrée'!$C$310+1)^'1 Données d''entrée'!$C$311)-(1+'1 Données d''entrée'!$C$310)^('6 Financement'!K$54-1-'1 Données d''entrée'!$C$312))/((1+'1 Données d''entrée'!$C$310)^'1 Données d''entrée'!$C$311-1)*'1 Données d''entrée'!$C$310,0)))","v":0},{"$f":"IF('1 Données d''entrée'!$C$314=\"(=NON)\",IF(L280>0,$B279*((('1 Données d''entrée'!$C$310+1)^'1 Données d''entrée'!$C$311)-(1+'1 Données d''entrée'!$C$310)^('6 Financement'!L$54-1-'1 Données d''entrée'!$C$312))/((1+'1 Données d''entrée'!$C$310)^'1 Données d''entrée'!$C$311-1)*'1 Données d''entrée'!$C$310,0),IF(L243<'1 Données d''entrée'!$C$312+1,'1 Données d''entrée'!$C$310*'6 Financement'!$B279,IF(L280>0,$B$90*((('1 Données d''entrée'!$C$310+1)^'1 Données d''entrée'!$C$311)-(1+'1 Données d''entrée'!$C$310)^('6 Financement'!L$54-1-'1 Données d''entrée'!$C$312))/((1+'1 Données d''entrée'!$C$310)^'1 Données d''entrée'!$C$311-1)*'1 Données d''entrée'!$C$310,0)))","v":0},{"$f":"IF('1 Données d''entrée'!$C$314=\"(=NON)\",IF(M280>0,$B279*((('1 Données d''entrée'!$C$310+1)^'1 Données d''entrée'!$C$311)-(1+'1 Données d''entrée'!$C$310)^('6 Financement'!M$54-1-'1 Données d''entrée'!$C$312))/((1+'1 Données d''entrée'!$C$310)^'1 Données d''entrée'!$C$311-1)*'1 Données d''entrée'!$C$310,0),IF(M243<'1 Données d''entrée'!$C$312+1,'1 Données d''entrée'!$C$310*'6 Financement'!$B279,IF(M280>0,$B$90*((('1 Données d''entrée'!$C$310+1)^'1 Données d''entrée'!$C$311)-(1+'1 Données d''entrée'!$C$310)^('6 Financement'!M$54-1-'1 Données d''entrée'!$C$312))/((1+'1 Données d''entrée'!$C$310)^'1 Données d''entrée'!$C$311-1)*'1 Données d''entrée'!$C$310,0)))","v":0},{"$f":"IF('1 Données d''entrée'!$C$314=\"(=NON)\",IF(N280>0,$B279*((('1 Données d''entrée'!$C$310+1)^'1 Données d''entrée'!$C$311)-(1+'1 Données d''entrée'!$C$310)^('6 Financement'!N$54-1-'1 Données d''entrée'!$C$312))/((1+'1 Données d''entrée'!$C$310)^'1 Données d''entrée'!$C$311-1)*'1 Données d''entrée'!$C$310,0),IF(N243<'1 Données d''entrée'!$C$312+1,'1 Données d''entrée'!$C$310*'6 Financement'!$B279,IF(N280>0,$B$90*((('1 Données d''entrée'!$C$310+1)^'1 Données d''entrée'!$C$311)-(1+'1 Données d''entrée'!$C$310)^('6 Financement'!N$54-1-'1 Données d''entrée'!$C$312))/((1+'1 Données d''entrée'!$C$310)^'1 Données d''entrée'!$C$311-1)*'1 Données d''entrée'!$C$310,0)))","v":0},{"$f":"IF('1 Données d''entrée'!$C$314=\"(=NON)\",IF(O280>0,$B279*((('1 Données d''entrée'!$C$310+1)^'1 Données d''entrée'!$C$311)-(1+'1 Données d''entrée'!$C$310)^('6 Financement'!O$54-1-'1 Données d''entrée'!$C$312))/((1+'1 Données d''entrée'!$C$310)^'1 Données d''entrée'!$C$311-1)*'1 Données d''entrée'!$C$310,0),IF(O243<'1 Données d''entrée'!$C$312+1,'1 Données d''entrée'!$C$310*'6 Financement'!$B279,IF(O280>0,$B$90*((('1 Données d''entrée'!$C$310+1)^'1 Données d''entrée'!$C$311)-(1+'1 Données d''entrée'!$C$310)^('6 Financement'!O$54-1-'1 Données d''entrée'!$C$312))/((1+'1 Données d''entrée'!$C$310)^'1 Données d''entrée'!$C$311-1)*'1 Données d''entrée'!$C$310,0)))","v":0},{"$f":"IF('1 Données d''entrée'!$C$314=\"(=NON)\",IF(P280>0,$B279*((('1 Données d''entrée'!$C$310+1)^'1 Données d''entrée'!$C$311)-(1+'1 Données d''entrée'!$C$310)^('6 Financement'!P$54-1-'1 Données d''entrée'!$C$312))/((1+'1 Données d''entrée'!$C$310)^'1 Données d''entrée'!$C$311-1)*'1 Données d''entrée'!$C$310,0),IF(P243<'1 Données d''entrée'!$C$312+1,'1 Données d''entrée'!$C$310*'6 Financement'!$B279,IF(P280>0,$B$90*((('1 Données d''entrée'!$C$310+1)^'1 Données d''entrée'!$C$311)-(1+'1 Données d''entrée'!$C$310)^('6 Financement'!P$54-1-'1 Données d''entrée'!$C$312))/((1+'1 Données d''entrée'!$C$310)^'1 Données d''entrée'!$C$311-1)*'1 Données d''entrée'!$C$310,0)))","v":0},{"$f":"IF('1 Données d''entrée'!$C$314=\"(=NON)\",IF(Q280>0,$B279*((('1 Données d''entrée'!$C$310+1)^'1 Données d''entrée'!$C$311)-(1+'1 Données d''entrée'!$C$310)^('6 Financement'!Q$54-1-'1 Données d''entrée'!$C$312))/((1+'1 Données d''entrée'!$C$310)^'1 Données d''entrée'!$C$311-1)*'1 Données d''entrée'!$C$310,0),IF(Q243<'1 Données d''entrée'!$C$312+1,'1 Données d''entrée'!$C$310*'6 Financement'!$B279,IF(Q280>0,$B$90*((('1 Données d''entrée'!$C$310+1)^'1 Données d''entrée'!$C$311)-(1+'1 Données d''entrée'!$C$310)^('6 Financement'!Q$54-1-'1 Données d''entrée'!$C$312))/((1+'1 Données d''entrée'!$C$310)^'1 Données d''entrée'!$C$311-1)*'1 Données d''entrée'!$C$310,0)))","v":0},{"$f":"IF('1 Données d''entrée'!$C$314=\"(=NON)\",IF(R280>0,$B279*((('1 Données d''entrée'!$C$310+1)^'1 Données d''entrée'!$C$311)-(1+'1 Données d''entrée'!$C$310)^('6 Financement'!R$54-1-'1 Données d''entrée'!$C$312))/((1+'1 Données d''entrée'!$C$310)^'1 Données d''entrée'!$C$311-1)*'1 Données d''entrée'!$C$310,0),IF(R243<'1 Données d''entrée'!$C$312+1,'1 Données d''entrée'!$C$310*'6 Financement'!$B279,IF(R280>0,$B$90*((('1 Données d''entrée'!$C$310+1)^'1 Données d''entrée'!$C$311)-(1+'1 Données d''entrée'!$C$310)^('6 Financement'!R$54-1-'1 Données d''entrée'!$C$312))/((1+'1 Données d''entrée'!$C$310)^'1 Données d''entrée'!$C$311-1)*'1 Données d''entrée'!$C$310,0)))","v":0},{"$f":"IF('1 Données d''entrée'!$C$314=\"(=NON)\",IF(S280>0,$B279*((('1 Données d''entrée'!$C$310+1)^'1 Données d''entrée'!$C$311)-(1+'1 Données d''entrée'!$C$310)^('6 Financement'!S$54-1-'1 Données d''entrée'!$C$312))/((1+'1 Données d''entrée'!$C$310)^'1 Données d''entrée'!$C$311-1)*'1 Données d''entrée'!$C$310,0),IF(S243<'1 Données d''entrée'!$C$312+1,'1 Données d''entrée'!$C$310*'6 Financement'!$B279,IF(S280>0,$B$90*((('1 Données d''entrée'!$C$310+1)^'1 Données d''entrée'!$C$311)-(1+'1 Données d''entrée'!$C$310)^('6 Financement'!S$54-1-'1 Données d''entrée'!$C$312))/((1+'1 Données d''entrée'!$C$310)^'1 Données d''entrée'!$C$311-1)*'1 Données d''entrée'!$C$310,0)))","v":0},{"$f":"IF('1 Données d''entrée'!$C$314=\"(=NON)\",IF(T280>0,$B279*((('1 Données d''entrée'!$C$310+1)^'1 Données d''entrée'!$C$311)-(1+'1 Données d''entrée'!$C$310)^('6 Financement'!T$54-1-'1 Données d''entrée'!$C$312))/((1+'1 Données d''entrée'!$C$310)^'1 Données d''entrée'!$C$311-1)*'1 Données d''entrée'!$C$310,0),IF(T243<'1 Données d''entrée'!$C$312+1,'1 Données d''entrée'!$C$310*'6 Financement'!$B279,IF(T280>0,$B$90*((('1 Données d''entrée'!$C$310+1)^'1 Données d''entrée'!$C$311)-(1+'1 Données d''entrée'!$C$310)^('6 Financement'!T$54-1-'1 Données d''entrée'!$C$312))/((1+'1 Données d''entrée'!$C$310)^'1 Données d''entrée'!$C$311-1)*'1 Données d''entrée'!$C$310,0)))","v":0},{"$f":"IF('1 Données d''entrée'!$C$314=\"(=NON)\",IF(U280>0,$B279*((('1 Données d''entrée'!$C$310+1)^'1 Données d''entrée'!$C$311)-(1+'1 Données d''entrée'!$C$310)^('6 Financement'!U$54-1-'1 Données d''entrée'!$C$312))/((1+'1 Données d''entrée'!$C$310)^'1 Données d''entrée'!$C$311-1)*'1 Données d''entrée'!$C$310,0),IF(U243<'1 Données d''entrée'!$C$312+1,'1 Données d''entrée'!$C$310*'6 Financement'!$B279,IF(U280>0,$B$90*((('1 Données d''entrée'!$C$310+1)^'1 Données d''entrée'!$C$311)-(1+'1 Données d''entrée'!$C$310)^('6 Financement'!U$54-1-'1 Données d''entrée'!$C$312))/((1+'1 Données d''entrée'!$C$310)^'1 Données d''entrée'!$C$311-1)*'1 Données d''entrée'!$C$310,0)))","v":0},{"$f":"IF('1 Données d''entrée'!$C$314=\"(=NON)\",IF(V280>0,$B279*((('1 Données d''entrée'!$C$310+1)^'1 Données d''entrée'!$C$311)-(1+'1 Données d''entrée'!$C$310)^('6 Financement'!V$54-1-'1 Données d''entrée'!$C$312))/((1+'1 Données d''entrée'!$C$310)^'1 Données d''entrée'!$C$311-1)*'1 Données d''entrée'!$C$310,0),IF(V243<'1 Données d''entrée'!$C$312+1,'1 Données d''entrée'!$C$310*'6 Financement'!$B279,IF(V280>0,$B$90*((('1 Données d''entrée'!$C$310+1)^'1 Données d''entrée'!$C$311)-(1+'1 Données d''entrée'!$C$310)^('6 Financement'!V$54-1-'1 Données d''entrée'!$C$312))/((1+'1 Données d''entrée'!$C$310)^'1 Données d''entrée'!$C$311-1)*'1 Données d''entrée'!$C$310,0)))","v":0}]
["Paiements d'intérêt avec des intérêts composés en cas d'absence des paiements dans la période de grâce",0,0,{"$f":"IF(D243='1 Données d''entrée'!$C$312+1,IF('1 Données d''entrée'!$C$314=\"(=NON)\",($B279*'1 Données d''entrée'!$C$310)*((('1 Données d''entrée'!$C$310+1)^'1 Données d''entrée'!$C$312-1)/('1 Données d''entrée'!$C$310))*(1+'1 Données d''entrée'!$C$310),0),0)","v":0},{"$f":"IF(E243='1 Données d''entrée'!$C$312+1,IF('1 Données d''entrée'!$C$314=\"(=NON)\",($B279*'1 Données d''entrée'!$C$310)*((('1 Données d''entrée'!$C$310+1)^'1 Données d''entrée'!$C$312-1)/('1 Données d''entrée'!$C$310))*(1+'1 Données d''entrée'!$C$310),0),0)","v":0},{"$f":"IF(F243='1 Données d''entrée'!$C$312+1,IF('1 Données d''entrée'!$C$314=\"(=NON)\",($B279*'1 Données d''entrée'!$C$310)*((('1 Données d''entrée'!$C$310+1)^'1 Données d''entrée'!$C$312-1)/('1 Données d''entrée'!$C$310))*(1+'1 Données d''entrée'!$C$310),0),0)","v":0},{"$f":"IF(G243='1 Données d''entrée'!$C$312+1,IF('1 Données d''entrée'!$C$314=\"(=NON)\",($B279*'1 Données d''entrée'!$C$310)*((('1 Données d''entrée'!$C$310+1)^'1 Données d''entrée'!$C$312-1)/('1 Données d''entrée'!$C$310))*(1+'1 Données d''entrée'!$C$310),0),0)","v":0},{"$f":"IF(H243='1 Données d''entrée'!$C$312+1,IF('1 Données d''entrée'!$C$314=\"(=NON)\",($B279*'1 Données d''entrée'!$C$310)*((('1 Données d''entrée'!$C$310+1)^'1 Données d''entrée'!$C$312-1)/('1 Données d''entrée'!$C$310))*(1+'1 Données d''entrée'!$C$310),0),0)","v":0},{"$f":"IF(I243='1 Données d''entrée'!$C$312+1,IF('1 Données d''entrée'!$C$314=\"(=NON)\",($B279*'1 Données d''entrée'!$C$310)*((('1 Données d''entrée'!$C$310+1)^'1 Données d''entrée'!$C$312-1)/('1 Données d''entrée'!$C$310))*(1+'1 Données d''entrée'!$C$310),0),0)","v":0},{"$f":"IF(J243='1 Données d''entrée'!$C$312+1,IF('1 Données d''entrée'!$C$314=\"(=NON)\",($B279*'1 Données d''entrée'!$C$310)*((('1 Données d''entrée'!$C$310+1)^'1 Données d''entrée'!$C$312-1)/('1 Données d''entrée'!$C$310))*(1+'1 Données d''entrée'!$C$310),0),0)","v":0},{"$f":"IF(K243='1 Données d''entrée'!$C$312+1,IF('1 Données d''entrée'!$C$314=\"(=NON)\",($B279*'1 Données d''entrée'!$C$310)*((('1 Données d''entrée'!$C$310+1)^'1 Données d''entrée'!$C$312-1)/('1 Données d''entrée'!$C$310))*(1+'1 Données d''entrée'!$C$310),0),0)","v":0},{"$f":"IF(L243='1 Données d''entrée'!$C$312+1,IF('1 Données d''entrée'!$C$314=\"(=NON)\",($B279*'1 Données d''entrée'!$C$310)*((('1 Données d''entrée'!$C$310+1)^'1 Données d''entrée'!$C$312-1)/('1 Données d''entrée'!$C$310))*(1+'1 Données d''entrée'!$C$310),0),0)","v":0},{"$f":"IF(M243='1 Données d''entrée'!$C$312+1,IF('1 Données d''entrée'!$C$314=\"(=NON)\",($B279*'1 Données d''entrée'!$C$310)*((('1 Données d''entrée'!$C$310+1)^'1 Données d''entrée'!$C$312-1)/('1 Données d''entrée'!$C$310))*(1+'1 Données d''entrée'!$C$310),0),0)","v":0},{"$f":"IF(N243='1 Données d''entrée'!$C$312+1,IF('1 Données d''entrée'!$C$314=\"(=NON)\",($B279*'1 Données d''entrée'!$C$310)*((('1 Données d''entrée'!$C$310+1)^'1 Données d''entrée'!$C$312-1)/('1 Données d''entrée'!$C$310))*(1+'1 Données d''entrée'!$C$310),0),0)","v":0},{"$f":"IF(O243='1 Données d''entrée'!$C$312+1,IF('1 Données d''entrée'!$C$314=\"(=NON)\",($B279*'1 Données d''entrée'!$C$310)*((('1 Données d''entrée'!$C$310+1)^'1 Données d''entrée'!$C$312-1)/('1 Données d''entrée'!$C$310))*(1+'1 Données d''entrée'!$C$310),0),0)","v":0},{"$f":"IF(P243='1 Données d''entrée'!$C$312+1,IF('1 Données d''entrée'!$C$314=\"(=NON)\",($B279*'1 Données d''entrée'!$C$310)*((('1 Données d''entrée'!$C$310+1)^'1 Données d''entrée'!$C$312-1)/('1 Données d''entrée'!$C$310))*(1+'1 Données d''entrée'!$C$310),0),0)","v":0},{"$f":"IF(Q243='1 Données d''entrée'!$C$312+1,IF('1 Données d''entrée'!$C$314=\"(=NON)\",($B279*'1 Données d''entrée'!$C$310)*((('1 Données d''entrée'!$C$310+1)^'1 Données d''entrée'!$C$312-1)/('1 Données d''entrée'!$C$310))*(1+'1 Données d''entrée'!$C$310),0),0)","v":0},{"$f":"IF(R243='1 Données d''entrée'!$C$312+1,IF('1 Données d''entrée'!$C$314=\"(=NON)\",($B279*'1 Données d''entrée'!$C$310)*((('1 Données d''entrée'!$C$310+1)^'1 Données d''entrée'!$C$312-1)/('1 Données d''entrée'!$C$310))*(1+'1 Données d''entrée'!$C$310),0),0)","v":0},{"$f":"IF(S243='1 Données d''entrée'!$C$312+1,IF('1 Données d''entrée'!$C$314=\"(=NON)\",($B279*'1 Données d''entrée'!$C$310)*((('1 Données d''entrée'!$C$310+1)^'1 Données d''entrée'!$C$312-1)/('1 Données d''entrée'!$C$310))*(1+'1 Données d''entrée'!$C$310),0),0)","v":0},{"$f":"IF(T243='1 Données d''entrée'!$C$312+1,IF('1 Données d''entrée'!$C$314=\"(=NON)\",($B279*'1 Données d''entrée'!$C$310)*((('1 Données d''entrée'!$C$310+1)^'1 Données d''entrée'!$C$312-1)/('1 Données d''entrée'!$C$310))*(1+'1 Données d''entrée'!$C$310),0),0)","v":0},{"$f":"IF(U243='1 Données d''entrée'!$C$312+1,IF('1 Données d''entrée'!$C$314=\"(=NON)\",($B279*'1 Données d''entrée'!$C$310)*((('1 Données d''entrée'!$C$310+1)^'1 Données d''entrée'!$C$312-1)/('1 Données d''entrée'!$C$310))*(1+'1 Données d''entrée'!$C$310),0),0)","v":0},{"$f":"IF(V243='1 Données d''entrée'!$C$312+1,IF('1 Données d''entrée'!$C$314=\"(=NON)\",($B279*'1 Données d''entrée'!$C$310)*((('1 Données d''entrée'!$C$310+1)^'1 Données d''entrée'!$C$312-1)/('1 Données d''entrée'!$C$310))*(1+'1 Données d''entrée'!$C$310),0),0)","v":0}]
[]
["Solde du compte intermédiaire"]
["Solde du comte (par période)",{"$f":"B245+B247+B249+IF($B251>0,(B252-B253-B254-B255),0)+IF($B256>0,(B257-B258-B259-B260),0)+IF($B261>0,(B262-B263-IF(B263>0,0,B264)-B265),0)+B267+IF($B268>0,(B269-B270-B271-B272),0)+IF($B273>0,(B274-B275-B276-B277),0)+IF($B278>0,B279-IF(B280>0,0,B281)-B282,0)","v":{"$error":"#DIV/0!"}},{"$f":"C245+C247+C249+IF($B251>0,(-C253-C254-C255),0)+IF($B256>0,(-C258-C259-C260),0)+C267+IF($B261>0,(-C263-IF(C263>0,0,C264)-C265),0)+IF($B268>0,(-C270-C271-C272),0)+IF($B273>0,(-C275-C276-C277),0)+IF($B278>0,(-C280-IF(C280>0,0,C281)-C282),0)","v":{"$error":"#DIV/0!"}},{"$f":"D245+D247+D249+IF($B251>0,(-D253-D254-D255),0)+IF($B256>0,(-D258-D259-D260),0)+D267+IF($B261>0,(-D263-IF(D263>0,0,D264)-D265),0)+IF($B268>0,(-D270-D271-D272),0)+IF($B273>0,(-D275-D276-D277),0)+IF($B278>0,(-D280-IF(D280>0,0,D281)-D282),0)","v":{"$error":"#DIV/0!"}},{"$error":"#DIV/0!"},{"$error":"#DIV/0!"},{"$error":"#DIV/0!"},{"$error":"#DIV/0!"},{"$error":"#DIV/0!"},{"$error":"#DIV/0!"},{"$error":"#DIV/0!"},{"$error":"#DIV/0!"},{"$error":"#DIV/0!"},{"$error":"#DIV/0!"},{"$error":"#DIV/0!"},{"$error":"#DIV/0!"},{"$error":"#DIV/0!"},{"$error":"#DIV/0!"},{"$error":"#DIV/0!"},{"$error":"#DIV/0!"},{"$error":"#DIV/0!"},{"$error":"#DIV/0!"}]
["Solde du compte (cumulé)",{"$f":"B285","v":{"$error":"#DIV/0!"}},{"$f":"B286+C285","v":{"$error":"#DIV/0!"}},{"$error":"#DIV/0!"},{"$error":"#DIV/0!"},{"$error":"#DIV/0!"},{"$error":"#DIV/0!"},{"$error":"#DIV/0!"},{"$error":"#DIV/0!"},{"$error":"#DIV/0!"},{"$error":"#DIV/0!"},{"$error":"#DIV/0!"},{"$error":"#DIV/0!"},{"$error":"#DIV/0!"},{"$error":"#DIV/0!"},{"$error":"#DIV/0!"},{"$error":"#DIV/0!"},{"$error":"#DIV/0!"},{"$error":"#DIV/0!"},{"$error":"#DIV/0!"},{"$error":"#DIV/0!"},{"$error":"#DIV/0!"}]
[]
[]
[]
["Prêt bancaire additionnel"]
[null,"Période",1,2,3,4,5,6,7,8,9,10,11,12,13,14,15,16,17,18,19,20]
["Prêt bancaire additionnel - Option 1: Remboursement du principal fractionné",{"$f":"'1 Données d''entrée'!$B$342","v":0}]
["Prêt(s) nouveau(x)",null,{"$f":"IF(C286<0,C286*(-1)*$B292+C286*(-1)*$B292*'1 Données d''entrée'!$C$338,0)","v":{"$error":"#DIV/0!"}},{"$f":"IF(D286<0,D286*(-1)*$B292+D286*(-1)*$B292*'1 Données d''entrée'!$C$338,0)","v":{"$error":"#DIV/0!"}},{"$f":"IF(E286<0,E286*(-1)*$B292+E286*(-1)*$B292*'1 Données d''entrée'!$C$338,0)","v":{"$error":"#DIV/0!"}},{"$f":"IF(F286<0,F286*(-1)*$B292+F286*(-1)*$B292*'1 Données d''entrée'!$C$338,0)","v":{"$error":"#DIV/0!"}},{"$f":"IF(G286<0,G286*(-1)*$B292+G286*(-1)*$B292*'1 Données d''entrée'!$C$338,0)","v":{"$error":"#DIV/0!"}},{"$f":"IF(H286<0,H286*(-1)*$B292+H286*(-1)*$B292*'1 Données d''entrée'!$C$338,0)","v":{"$error":"#DIV/0!"}},{"$f":"IF(I286<0,I286*(-1)*$B292+I286*(-1)*$B292*'1 Données d''entrée'!$C$338,0)","v":{"$error":"#DIV/0!"}},{"$f":"IF(J286<0,J286*(-1)*$B292+J286*(-1)*$B292*'1 Données d''entrée'!$C$338,0)","v":{"$error":"#DIV/0!"}},{"$f":"IF(K286<0,K286*(-1)*$B292+K286*(-1)*$B292*'1 Données d''entrée'!$C$338,0)","v":{"$error":"#DIV/0!"}},{"$f":"IF(L286<0,L286*(-1)*$B292+L286*(-1)*$B292*'1 Données d''entrée'!$C$338,0)","v":{"$error":"#DIV/0!"}},{"$f":"IF(M286<0,M286*(-1)*$B292+M286*(-1)*$B292*'1 Données d''entrée'!$C$338,0)","v":{"$error":"#DIV/0!"}},{"$f":"IF(N286<0,N286*(-1)*$B292+N286*(-1)*$B292*'1 Données d''entrée'!$C$338,0)","v":{"$error":"#DIV/0!"}},{"$f":"IF(O286<0,O286*(-1)*$B292+O286*(-1)*$B292*'1 Données d''entrée'!$C$338,0)","v":{"$error":"#DIV/0!"}},{"$f":"IF(P286<0,P286*(-1)*$B292+P286*(-1)*$B292*'1 Données d''entrée'!$C$338,0)","v":{"$error":"#DIV/0!"}},{"$f":"IF(Q286<0,Q286*(-1)*$B292+Q286*(-1)*$B292*'1 Données d''entrée'!$C$338,0)","v":{"$error":"#DIV/0!"}},{"$f":"IF(R286<0,R286*(-1)*$B292+R286*(-1)*$B292*'1 Données d''entrée'!$C$338,0)","v":{"$error":"#DIV/0!"}},{"$f":"IF(S286<0,S286*(-1)*$B292+S286*(-1)*$B292*'1 Données d''entrée'!$C$338,0)","v":{"$error":"#DIV/0!"}},{"$f":"IF(T286<0,T286*(-1)*$B292+T286*(-1)*$B292*'1 Données d''entrée'!$C$338,0)","v":{"$error":"#DIV/0!"}},{"$f":"IF(U286<0,U286*(-1)*$B292+U286*(-1)*$B292*'1 Données d''entrée'!$C$338,0)","v":{"$error":"#DIV/0!"}},{"$f":"IF(V286<0,V286*(-1)*$B292+V286*(-1)*$B292*'1 Données d''entrée'!$C$338,0)","v":{"$error":"#DIV/0!"}}]
[null,"Période de prêt nouveau"]
["Remboursement du principal",0,0,0,0,0,0,0,0,0,0,0,0,0,0,0,0,0,0,0,0,0]
[null,1,{"$f":"IF(C243<'1 Données d''entrée'!$C$334+1+$B296,0,IF(C243<'1 Données d''entrée'!$C$333+'1 Données d''entrée'!$C$334+1+$B296,($C293/'1 Données d''entrée'!$C$333),0))","v":0},{"$f":"IF(D243<'1 Données d''entrée'!$C$334+1+$B296,0,IF(D243<'1 Données d''entrée'!$C$333+'1 Données d''entrée'!$C$334+1+$B296,($C293/'1 Données d''entrée'!$C$333),0))","v":0},{"$f":"IF(E243<'1 Données d''entrée'!$C$334+1+$B296,0,IF(E243<'1 Données d''entrée'!$C$333+'1 Données d''entrée'!$C$334+1+$B296,($C293/'1 Données d''entrée'!$C$333),0))","v":0},{"$f":"IF(F243<'1 Données d''entrée'!$C$334+1+$B296,0,IF(F243<'1 Données d''entrée'!$C$333+'1 Données d''entrée'!$C$334+1+$B296,($C293/'1 Données d''entrée'!$C$333),0))","v":0},{"$f":"IF(G243<'1 Données d''entrée'!$C$334+1+$B296,0,IF(G243<'1 Données d''entrée'!$C$333+'1 Données d''entrée'!$C$334+1+$B296,($C293/'1 Données d''entrée'!$C$333),0))","v":0},{"$f":"IF(H243<'1 Données d''entrée'!$C$334+1+$B296,0,IF(H243<'1 Données d''entrée'!$C$333+'1 Données d''entrée'!$C$334+1+$B296,($C293/'1 Données d''entrée'!$C$333),0))","v":0},{"$f":"IF(I243<'1 Données d''entrée'!$C$334+1+$B296,0,IF(I243<'1 Données d''entrée'!$C$333+'1 Données d''entrée'!$C$334+1+$B296,($C293/'1 Données d''entrée'!$C$333),0))","v":0},{"$f":"IF(J243<'1 Données d''entrée'!$C$334+1+$B296,0,IF(J243<'1 Données d''entrée'!$C$333+'1 Données d''entrée'!$C$334+1+$B296,($C293/'1 Données d''entrée'!$C$333),0))","v":0},{"$f":"IF(K243<'1 Données d''entrée'!$C$334+1+$B296,0,IF(K243<'1 Données d''entrée'!$C$333+'1 Données d''entrée'!$C$334+1+$B296,($C293/'1 Données d''entrée'!$C$333),0))","v":0},{"$f":"IF(L243<'1 Données d''entrée'!$C$334+1+$B296,0,IF(L243<'1 Données d''entrée'!$C$333+'1 Données d''entrée'!$C$334+1+$B296,($C293/'1 Données d''entrée'!$C$333),0))","v":0},{"$f":"IF(M243<'1 Données d''entrée'!$C$334+1+$B296,0,IF(M243<'1 Données d''entrée'!$C$333+'1 Données d''entrée'!$C$334+1+$B296,($C293/'1 Données d''entrée'!$C$333),0))","v":0},{"$f":"IF(N243<'1 Données d''entrée'!$C$334+1+$B296,0,IF(N243<'1 Données d''entrée'!$C$333+'1 Données d''entrée'!$C$334+1+$B296,($C293/'1 Données d''entrée'!$C$333),0))","v":0},{"$f":"IF(O243<'1 Données d''entrée'!$C$334+1+$B296,0,IF(O243<'1 Données d''entrée'!$C$333+'1 Données d''entrée'!$C$334+1+$B296,($C293/'1 Données d''entrée'!$C$333),0))","v":0},{"$f":"IF(P243<'1 Données d''entrée'!$C$334+1+$B296,0,IF(P243<'1 Données d''entrée'!$C$333+'1 Données d''entrée'!$C$334+1+$B296,($C293/'1 Données d''entrée'!$C$333),0))","v":0},{"$f":"IF(Q243<'1 Données d''entrée'!$C$334+1+$B296,0,IF(Q243<'1 Données d''entrée'!$C$333+'1 Données d''entrée'!$C$334+1+$B296,($C293/'1 Données d''entrée'!$C$333),0))","v":0},{"$f":"IF(R243<'1 Données d''entrée'!$C$334+1+$B296,0,IF(R243<'1 Données d''entrée'!$C$333+'1 Données d''entrée'!$C$334+1+$B296,($C293/'1 Données d''entrée'!$C$333),0))","v":0},{"$f":"IF(S243<'1 Données d''entrée'!$C$334+1+$B296,0,IF(S243<'1 Données d''entrée'!$C$333+'1 Données d''entrée'!$C$334+1+$B296,($C293/'1 Données d''entrée'!$C$333),0))","v":0},{"$f":"IF(T243<'1 Données d''entrée'!$C$334+1+$B296,0,IF(T243<'1 Données d''entrée'!$C$333+'1 Données d''entrée'!$C$334+1+$B296,($C293/'1 Données d''entrée'!$C$333),0))","v":0},{"$f":"IF(U243<'1 Données d''entrée'!$C$334+1+$B296,0,IF(U243<'1 Données d''entrée'!$C$333+'1 Données d''entrée'!$C$334+1+$B296,($C293/'1 Données d''entrée'!$C$333),0))","v":0},{"$f":"IF(V243<'1 Données d''entrée'!$C$334+1+$B296,0,IF(V243<'1 Données d''entrée'!$C$333+'1 Données d''entrée'!$C$334+1+$B296,($C293/'1 Données d''entrée'!$C$333),0))","v":0}]
[null,2,{"$f":"IF(C243<'1 Données d''entrée'!$C$334+1+$B297,0,IF(C243<'1 Données d''entrée'!$C$333+'1 Données d''entrée'!$C$334+1+$B297,($D293/'1 Données d''entrée'!$C$333),0))","v":0},{"$f":"IF(D243<'1 Données d''entrée'!$C$334+1+$B297,0,IF(D243<'1 Données d''entrée'!$C$333+'1 Données d''entrée'!$C$334+1+$B297,($D293/'1 Données d''entrée'!$C$333),0))","v":0},{"$f":"IF(E243<'1 Données d''entrée'!$C$334+1+$B297,0,IF(E243<'1 Données d''entrée'!$C$333+'1 Données d''entrée'!$C$334+1+$B297,($D293/'1 Données d''entrée'!$C$333),0))","v":0},{"$f":"IF(F243<'1 Données d''entrée'!$C$334+1+$B297,0,IF(F243<'1 Données d''entrée'!$C$333+'1 Données d''entrée'!$C$334+1+$B297,($D293/'1 Données d''entrée'!$C$333),0))","v":0},{"$f":"IF(G243<'1 Données d''entrée'!$C$334+1+$B297,0,IF(G243<'1 Données d''entrée'!$C$333+'1 Données d''entrée'!$C$334+1+$B297,($D293/'1 Données d''entrée'!$C$333),0))","v":0},{"$f":"IF(H243<'1 Données d''entrée'!$C$334+1+$B297,0,IF(H243<'1 Données d''entrée'!$C$333+'1 Données d''entrée'!$C$334+1+$B297,($D293/'1 Données d''entrée'!$C$333),0))","v":0},{"$f":"IF(I243<'1 Données d''entrée'!$C$334+1+$B297,0,IF(I243<'1 Données d''entrée'!$C$333+'1 Données d''entrée'!$C$334+1+$B297,($D293/'1 Données d''entrée'!$C$333),0))","v":0},{"$f":"IF(J243<'1 Données d''entrée'!$C$334+1+$B297,0,IF(J243<'1 Données d''entrée'!$C$333+'1 Données d''entrée'!$C$334+1+$B297,($D293/'1 Données d''entrée'!$C$333),0))","v":0},{"$f":"IF(K243<'1 Données d''entrée'!$C$334+1+$B297,0,IF(K243<'1 Données d''entrée'!$C$333+'1 Données d''entrée'!$C$334+1+$B297,($D293/'1 Données d''entrée'!$C$333),0))","v":0},{"$f":"IF(L243<'1 Données d''entrée'!$C$334+1+$B297,0,IF(L243<'1 Données d''entrée'!$C$333+'1 Données d''entrée'!$C$334+1+$B297,($D293/'1 Données d''entrée'!$C$333),0))","v":0},{"$f":"IF(M243<'1 Données d''entrée'!$C$334+1+$B297,0,IF(M243<'1 Données d''entrée'!$C$333+'1 Données d''entrée'!$C$334+1+$B297,($D293/'1 Données d''entrée'!$C$333),0))","v":0},{"$f":"IF(N243<'1 Données d''entrée'!$C$334+1+$B297,0,IF(N243<'1 Données d''entrée'!$C$333+'1 Données d''entrée'!$C$334+1+$B297,($D293/'1 Données d''entrée'!$C$333),0))","v":0},{"$f":"IF(O243<'1 Données d''entrée'!$C$334+1+$B297,0,IF(O243<'1 Données d''entrée'!$C$333+'1 Données d''entrée'!$C$334+1+$B297,($D293/'1 Données d''entrée'!$C$333),0))","v":0},{"$f":"IF(P243<'1 Données d''entrée'!$C$334+1+$B297,0,IF(P243<'1 Données d''entrée'!$C$333+'1 Données d''entrée'!$C$334+1+$B297,($D293/'1 Données d''entrée'!$C$333),0))","v":0},{"$f":"IF(Q243<'1 Données d''entrée'!$C$334+1+$B297,0,IF(Q243<'1 Données d''entrée'!$C$333+'1 Données d''entrée'!$C$334+1+$B297,($D293/'1 Données d''entrée'!$C$333),0))","v":0},{"$f":"IF(R243<'1 Données d''entrée'!$C$334+1+$B297,0,IF(R243<'1 Données d''entrée'!$C$333+'1 Données d''entrée'!$C$334+1+$B297,($D293/'1 Données d''entrée'!$C$333),0))","v":0},{"$f":"IF(S243<'1 Données d''entrée'!$C$334+1+$B297,0,IF(S243<'1 Données d''entrée'!$C$333+'1 Données d''entrée'!$C$334+1+$B297,($D293/'1 Données d''entrée'!$C$333),0))","v":0},{"$f":"IF(T243<'1 Données d''entrée'!$C$334+1+$B297,0,IF(T243<'1 Données d''entrée'!$C$333+'1 Données d''entrée'!$C$334+1+$B297,($D293/'1 Données d''entrée'!$C$333),0))","v":0},{"$f":"IF(U243<'1 Données d''entrée'!$C$334+1+$B297,0,IF(U243<'1 Données d''entrée'!$C$333+'1 Données d''entrée'!$C$334+1+$B297,($D293/'1 Données d''entrée'!$C$333),0))","v":0},{"$f":"IF(V243<'1 Données d''entrée'!$C$334+1+$B297,0,IF(V243<'1 Données d''entrée'!$C$333+'1 Données d''entrée'!$C$334+1+$B297,($D293/'1 Données d''entrée'!$C$333),0))","v":0}]
[null,3,{"$f":"IF(C243<'1 Données d''entrée'!$C$334+1+$B298,0,IF(C243<'1 Données d''entrée'!$C$333+'1 Données d''entrée'!$C$334+1+$B298,($E293/'1 Données d''entrée'!$C$333),0))","v":0},{"$f":"IF(D243<'1 Données d''entrée'!$C$334+1+$B298,0,IF(D243<'1 Données d''entrée'!$C$333+'1 Données d''entrée'!$C$334+1+$B298,($E293/'1 Données d''entrée'!$C$333),0))","v":0},{"$f":"IF(E243<'1 Données d''entrée'!$C$334+1+$B298,0,IF(E243<'1 Données d''entrée'!$C$333+'1 Données d''entrée'!$C$334+1+$B298,($E293/'1 Données d''entrée'!$C$333),0))","v":0},{"$f":"IF(F243<'1 Données d''entrée'!$C$334+1+$B298,0,IF(F243<'1 Données d''entrée'!$C$333+'1 Données d''entrée'!$C$334+1+$B298,($E293/'1 Données d''entrée'!$C$333),0))","v":0},{"$f":"IF(G243<'1 Données d''entrée'!$C$334+1+$B298,0,IF(G243<'1 Données d''entrée'!$C$333+'1 Données d''entrée'!$C$334+1+$B298,($E293/'1 Données d''entrée'!$C$333),0))","v":0},{"$f":"IF(H243<'1 Données d''entrée'!$C$334+1+$B298,0,IF(H243<'1 Données d''entrée'!$C$333+'1 Données d''entrée'!$C$334+1+$B298,($E293/'1 Données d''entrée'!$C$333),0))","v":0},{"$f":"IF(I243<'1 Données d''entrée'!$C$334+1+$B298,0,IF(I243<'1 Données d''entrée'!$C$333+'1 Données d''entrée'!$C$334+1+$B298,($E293/'1 Données d''entrée'!$C$333),0))","v":0},{"$f":"IF(J243<'1 Données d''entrée'!$C$334+1+$B298,0,IF(J243<'1 Données d''entrée'!$C$333+'1 Données d''entrée'!$C$334+1+$B298,($E293/'1 Données d''entrée'!$C$333),0))","v":0},{"$f":"IF(K243<'1 Données d''entrée'!$C$334+1+$B298,0,IF(K243<'1 Données d''entrée'!$C$333+'1 Données d''entrée'!$C$334+1+$B298,($E293/'1 Données d''entrée'!$C$333),0))","v":0},{"$f":"IF(L243<'1 Données d''entrée'!$C$334+1+$B298,0,IF(L243<'1 Données d''entrée'!$C$333+'1 Données d''entrée'!$C$334+1+$B298,($E293/'1 Données d''entrée'!$C$333),0))","v":0},{"$f":"IF(M243<'1 Données d''entrée'!$C$334+1+$B298,0,IF(M243<'1 Données d''entrée'!$C$333+'1 Données d''entrée'!$C$334+1+$B298,($E293/'1 Données d''entrée'!$C$333),0))","v":0},{"$f":"IF(N243<'1 Données d''entrée'!$C$334+1+$B298,0,IF(N243<'1 Données d''entrée'!$C$333+'1 Données d''entrée'!$C$334+1+$B298,($E293/'1 Données d''entrée'!$C$333),0))","v":0},{"$f":"IF(O243<'1 Données d''entrée'!$C$334+1+$B298,0,IF(O243<'1 Données d''entrée'!$C$333+'1 Données d''entrée'!$C$334+1+$B298,($E293/'1 Données d''entrée'!$C$333),0))","v":0},{"$f":"IF(P243<'1 Données d''entrée'!$C$334+1+$B298,0,IF(P243<'1 Données d''entrée'!$C$333+'1 Données d''entrée'!$C$334+1+$B298,($E293/'1 Données d''entrée'!$C$333),0))","v":0},{"$f":"IF(Q243<'1 Données d''entrée'!$C$334+1+$B298,0,IF(Q243<'1 Données d''entrée'!$C$333+'1 Données d''entrée'!$C$334+1+$B298,($E293/'1 Données d''entrée'!$C$333),0))","v":0},{"$f":"IF(R243<'1 Données d''entrée'!$C$334+1+$B298,0,IF(R243<'1 Données d''entrée'!$C$333+'1 Données d''entrée'!$C$334+1+$B298,($E293/'1 Données d''entrée'!$C$333),0))","v":0},{"$f":"IF(S243<'1 Données d''entrée'!$C$334+1+$B298,0,IF(S243<'1 Données d''entrée'!$C$333+'1 Données d''entrée'!$C$334+1+$B298,($E293/'1 Données d''entrée'!$C$333),0))","v":0},{"$f":"IF(T243<'1 Données d''entrée'!$C$334+1+$B298,0,IF(T243<'1 Données d''entrée'!$C$333+'1 Données d''entrée'!$C$334+1+$B298,($E293/'1 Données d''entrée'!$C$333),0))","v":0},{"$f":"IF(U243<'1 Données d''entrée'!$C$334+1+$B298,0,IF(U243<'1 Données d''entrée'!$C$333+'1 Données d''entrée'!$C$334+1+$B298,($E293/'1 Données d''entrée'!$C$333),0))","v":0},{"$f":"IF(V243<'1 Données d''entrée'!$C$334+1+$B298,0,IF(V243<'1 Données d''entrée'!$C$333+'1 Données d''entrée'!$C$334+1+$B298,($E293/'1 Données d''entrée'!$C$333),0))","v":0}]
[null,4,{"$f":"IF(C243<'1 Données d''entrée'!$C$334+1+$B299,0,IF(C243<'1 Données d''entrée'!$C$333+'1 Données d''entrée'!$C$334+1+$B299,($F293/'1 Données d''entrée'!$C$333),0))","v":0},{"$f":"IF(D243<'1 Données d''entrée'!$C$334+1+$B299,0,IF(D243<'1 Données d''entrée'!$C$333+'1 Données d''entrée'!$C$334+1+$B299,($F293/'1 Données d''entrée'!$C$333),0))","v":0},{"$f":"IF(E243<'1 Données d''entrée'!$C$334+1+$B299,0,IF(E243<'1 Données d''entrée'!$C$333+'1 Données d''entrée'!$C$334+1+$B299,($F293/'1 Données d''entrée'!$C$333),0))","v":0},{"$f":"IF(F243<'1 Données d''entrée'!$C$334+1+$B299,0,IF(F243<'1 Données d''entrée'!$C$333+'1 Données d''entrée'!$C$334+1+$B299,($F293/'1 Données d''entrée'!$C$333),0))","v":0},{"$f":"IF(G243<'1 Données d''entrée'!$C$334+1+$B299,0,IF(G243<'1 Données d''entrée'!$C$333+'1 Données d''entrée'!$C$334+1+$B299,($F293/'1 Données d''entrée'!$C$333),0))","v":0},{"$f":"IF(H243<'1 Données d''entrée'!$C$334+1+$B299,0,IF(H243<'1 Données d''entrée'!$C$333+'1 Données d''entrée'!$C$334+1+$B299,($F293/'1 Données d''entrée'!$C$333),0))","v":0},{"$f":"IF(I243<'1 Données d''entrée'!$C$334+1+$B299,0,IF(I243<'1 Données d''entrée'!$C$333+'1 Données d''entrée'!$C$334+1+$B299,($F293/'1 Données d''entrée'!$C$333),0))","v":0},{"$f":"IF(J243<'1 Données d''entrée'!$C$334+1+$B299,0,IF(J243<'1 Données d''entrée'!$C$333+'1 Données d''entrée'!$C$334+1+$B299,($F293/'1 Données d''entrée'!$C$333),0))","v":0},{"$f":"IF(K243<'1 Données d''entrée'!$C$334+1+$B299,0,IF(K243<'1 Données d''entrée'!$C$333+'1 Données d''entrée'!$C$334+1+$B299,($F293/'1 Données d''entrée'!$C$333),0))","v":0},{"$f":"IF(L243<'1 Données d''entrée'!$C$334+1+$B299,0,IF(L243<'1 Données d''entrée'!$C$333+'1 Données d''entrée'!$C$334+1+$B299,($F293/'1 Données d''entrée'!$C$333),0))","v":0},{"$f":"IF(M243<'1 Données d''entrée'!$C$334+1+$B299,0,IF(M243<'1 Données d''entrée'!$C$333+'1 Données d''entrée'!$C$334+1+$B299,($F293/'1 Données d''entrée'!$C$333),0))","v":0},{"$f":"IF(N243<'1 Données d''entrée'!$C$334+1+$B299,0,IF(N243<'1 Données d''entrée'!$C$333+'1 Données d''entrée'!$C$334+1+$B299,($F293/'1 Données d''entrée'!$C$333),0))","v":0},{"$f":"IF(O243<'1 Données d''entrée'!$C$334+1+$B299,0,IF(O243<'1 Données d''entrée'!$C$333+'1 Données d''entrée'!$C$334+1+$B299,($F293/'1 Données d''entrée'!$C$333),0))","v":0},{"$f":"IF(P243<'1 Données d''entrée'!$C$334+1+$B299,0,IF(P243<'1 Données d''entrée'!$C$333+'1 Données d''entrée'!$C$334+1+$B299,($F293/'1 Données d''entrée'!$C$333),0))","v":0},{"$f":"IF(Q243<'1 Données d''entrée'!$C$334+1+$B299,0,IF(Q243<'1 Données d''entrée'!$C$333+'1 Données d''entrée'!$C$334+1+$B299,($F293/'1 Données d''entrée'!$C$333),0))","v":0},{"$f":"IF(R243<'1 Données d''entrée'!$C$334+1+$B299,0,IF(R243<'1 Données d''entrée'!$C$333+'1 Données d''entrée'!$C$334+1+$B299,($F293/'1 Données d''entrée'!$C$333),0))","v":0},{"$f":"IF(S243<'1 Données d''entrée'!$C$334+1+$B299,0,IF(S243<'1 Données d''entrée'!$C$333+'1 Données d''entrée'!$C$334+1+$B299,($F293/'1 Données d''entrée'!$C$333),0))","v":0},{"$f":"IF(T243<'1 Données d''entrée'!$C$334+1+$B299,0,IF(T243<'1 Données d''entrée'!$C$333+'1 Données d''entrée'!$C$334+1+$B299,($F293/'1 Données d''entrée'!$C$333),0))","v":0},{"$f":"IF(U243<'1 Données d''entrée'!$C$334+1+$B299,0,IF(U243<'1 Données d''entrée'!$C$333+'1 Données d''entrée'!$C$334+1+$B299,($F293/'1 Données d''entrée'!$C$333),0))","v":0},{"$f":"IF(V243<'1 Données d''entrée'!$C$334+1+$B299,0,IF(V243<'1 Données d''entrée'!$C$333+'1 Données d''entrée'!$C$334+1+$B299,($F293/'1 Données d''entrée'!$C$333),0))","v":0}]
[null,5,{"$f":"IF(C243<'1 Données d''entrée'!$C$334+1+$B300,0,IF(C243<'1 Données d''entrée'!$C$333+'1 Données d''entrée'!$C$334+1+$B300,($G293/'1 Données d''entrée'!$C$333),0))","v":0},{"$f":"IF(D243<'1 Données d''entrée'!$C$334+1+$B300,0,IF(D243<'1 Données d''entrée'!$C$333+'1 Données d''entrée'!$C$334+1+$B300,($G293/'1 Données d''entrée'!$C$333),0))","v":0},{"$f":"IF(E243<'1 Données d''entrée'!$C$334+1+$B300,0,IF(E243<'1 Données d''entrée'!$C$333+'1 Données d''entrée'!$C$334+1+$B300,($G293/'1 Données d''entrée'!$C$333),0))","v":0},{"$f":"IF(F243<'1 Données d''entrée'!$C$334+1+$B300,0,IF(F243<'1 Données d''entrée'!$C$333+'1 Données d''entrée'!$C$334+1+$B300,($G293/'1 Données d''entrée'!$C$333),0))","v":0},{"$f":"IF(G243<'1 Données d''entrée'!$C$334+1+$B300,0,IF(G243<'1 Données d''entrée'!$C$333+'1 Données d''entrée'!$C$334+1+$B300,($G293/'1 Données d''entrée'!$C$333),0))","v":0},{"$f":"IF(H243<'1 Données d''entrée'!$C$334+1+$B300,0,IF(H243<'1 Données d''entrée'!$C$333+'1 Données d''entrée'!$C$334+1+$B300,($G293/'1 Données d''entrée'!$C$333),0))","v":0},{"$f":"IF(I243<'1 Données d''entrée'!$C$334+1+$B300,0,IF(I243<'1 Données d''entrée'!$C$333+'1 Données d''entrée'!$C$334+1+$B300,($G293/'1 Données d''entrée'!$C$333),0))","v":0},{"$f":"IF(J243<'1 Données d''entrée'!$C$334+1+$B300,0,IF(J243<'1 Données d''entrée'!$C$333+'1 Données d''entrée'!$C$334+1+$B300,($G293/'1 Données d''entrée'!$C$333),0))","v":0},{"$f":"IF(K243<'1 Données d''entrée'!$C$334+1+$B300,0,IF(K243<'1 Données d''entrée'!$C$333+'1 Données d''entrée'!$C$334+1+$B300,($G293/'1 Données d''entrée'!$C$333),0))","v":0},{"$f":"IF(L243<'1 Données d''entrée'!$C$334+1+$B300,0,IF(L243<'1 Données d''entrée'!$C$333+'1 Données d''entrée'!$C$334+1+$B300,($G293/'1 Données d''entrée'!$C$333),0))","v":0},{"$f":"IF(M243<'1 Données d''entrée'!$C$334+1+$B300,0,IF(M243<'1 Données d''entrée'!$C$333+'1 Données d''entrée'!$C$334+1+$B300,($G293/'1 Données d''entrée'!$C$333),0))","v":0},{"$f":"IF(N243<'1 Données d''entrée'!$C$334+1+$B300,0,IF(N243<'1 Données d''entrée'!$C$333+'1 Données d''entrée'!$C$334+1+$B300,($G293/'1 Données d''entrée'!$C$333),0))","v":0},{"$f":"IF(O243<'1 Données d''entrée'!$C$334+1+$B300,0,IF(O243<'1 Données d''entrée'!$C$333+'1 Données d''entrée'!$C$334+1+$B300,($G293/'1 Données d''entrée'!$C$333),0))","v":0},{"$f":"IF(P243<'1 Données d''entrée'!$C$334+1+$B300,0,IF(P243<'1 Données d''entrée'!$C$333+'1 Données d''entrée'!$C$334+1+$B300,($G293/'1 Données d''entrée'!$C$333),0))","v":0},{"$f":"IF(Q243<'1 Données d''entrée'!$C$334+1+$B300,0,IF(Q243<'1 Données d''entrée'!$C$333+'1 Données d''entrée'!$C$334+1+$B300,($G293/'1 Données d''entrée'!$C$333),0))","v":0},{"$f":"IF(R243<'1 Données d''entrée'!$C$334+1+$B300,0,IF(R243<'1 Données d''entrée'!$C$333+'1 Données d''entrée'!$C$334+1+$B300,($G293/'1 Données d''entrée'!$C$333),0))","v":0},{"$f":"IF(S243<'1 Données d''entrée'!$C$334+1+$B300,0,IF(S243<'1 Données d''entrée'!$C$333+'1 Données d''entrée'!$C$334+1+$B300,($G293/'1 Données d''entrée'!$C$333),0))","v":0},{"$f":"IF(T243<'1 Données d''entrée'!$C$334+1+$B300,0,IF(T243<'1 Données d''entrée'!$C$333+'1 Données d''entrée'!$C$334+1+$B300,($G293/'1 Données d''entrée'!$C$333),0))","v":0},{"$f":"IF(U243<'1 Données d''entrée'!$C$334+1+$B300,0,IF(U243<'1 Données d''entrée'!$C$333+'1 Données d''entrée'!$C$334+1+$B300,($G293/'1 Données d''entrée'!$C$333),0))","v":0},{"$f":"IF(V243<'1 Données d''entrée'!$C$334+1+$B300,0,IF(V243<'1 Données d''entrée'!$C$333+'1 Données d''entrée'!$C$334+1+$B300,($G293/'1 Données d''entrée'!$C$333),0))","v":0}]
[null,6,{"$f":"IF(C243<'1 Données d''entrée'!$C$334+1+$B301,0,IF(C243<'1 Données d''entrée'!$C$333+'1 Données d''entrée'!$C$334+1+$B301,($H293/'1 Données d''entrée'!$C$333),0))","v":0},{"$f":"IF(D243<'1 Données d''entrée'!$C$334+1+$B301,0,IF(D243<'1 Données d''entrée'!$C$333+'1 Données d''entrée'!$C$334+1+$B301,($H293/'1 Données d''entrée'!$C$333),0))","v":0},{"$f":"IF(E243<'1 Données d''entrée'!$C$334+1+$B301,0,IF(E243<'1 Données d''entrée'!$C$333+'1 Données d''entrée'!$C$334+1+$B301,($H293/'1 Données d''entrée'!$C$333),0))","v":0},{"$f":"IF(F243<'1 Données d''entrée'!$C$334+1+$B301,0,IF(F243<'1 Données d''entrée'!$C$333+'1 Données d''entrée'!$C$334+1+$B301,($H293/'1 Données d''entrée'!$C$333),0))","v":0},{"$f":"IF(G243<'1 Données d''entrée'!$C$334+1+$B301,0,IF(G243<'1 Données d''entrée'!$C$333+'1 Données d''entrée'!$C$334+1+$B301,($H293/'1 Données d''entrée'!$C$333),0))","v":0},{"$f":"IF(H243<'1 Données d''entrée'!$C$334+1+$B301,0,IF(H243<'1 Données d''entrée'!$C$333+'1 Données d''entrée'!$C$334+1+$B301,($H293/'1 Données d''entrée'!$C$333),0))","v":0},{"$f":"IF(I243<'1 Données d''entrée'!$C$334+1+$B301,0,IF(I243<'1 Données d''entrée'!$C$333+'1 Données d''entrée'!$C$334+1+$B301,($H293/'1 Données d''entrée'!$C$333),0))","v":0},{"$f":"IF(J243<'1 Données d''entrée'!$C$334+1+$B301,0,IF(J243<'1 Données d''entrée'!$C$333+'1 Données d''entrée'!$C$334+1+$B301,($H293/'1 Données d''entrée'!$C$333),0))","v":0},{"$f":"IF(K243<'1 Données d''entrée'!$C$334+1+$B301,0,IF(K243<'1 Données d''entrée'!$C$333+'1 Données d''entrée'!$C$334+1+$B301,($H293/'1 Données d''entrée'!$C$333),0))","v":0},{"$f":"IF(L243<'1 Données d''entrée'!$C$334+1+$B301,0,IF(L243<'1 Données d''entrée'!$C$333+'1 Données d''entrée'!$C$334+1+$B301,($H293/'1 Données d''entrée'!$C$333),0))","v":0},{"$f":"IF(M243<'1 Données d''entrée'!$C$334+1+$B301,0,IF(M243<'1 Données d''entrée'!$C$333+'1 Données d''entrée'!$C$334+1+$B301,($H293/'1 Données d''entrée'!$C$333),0))","v":0},{"$f":"IF(N243<'1 Données d''entrée'!$C$334+1+$B301,0,IF(N243<'1 Données d''entrée'!$C$333+'1 Données d''entrée'!$C$334+1+$B301,($H293/'1 Données d''entrée'!$C$333),0))","v":0},{"$f":"IF(O243<'1 Données d''entrée'!$C$334+1+$B301,0,IF(O243<'1 Données d''entrée'!$C$333+'1 Données d''entrée'!$C$334+1+$B301,($H293/'1 Données d''entrée'!$C$333),0))","v":0},{"$f":"IF(P243<'1 Données d''entrée'!$C$334+1+$B301,0,IF(P243<'1 Données d''entrée'!$C$333+'1 Données d''entrée'!$C$334+1+$B301,($H293/'1 Données d''entrée'!$C$333),0))","v":0},{"$f":"IF(Q243<'1 Données d''entrée'!$C$334+1+$B301,0,IF(Q243<'1 Données d''entrée'!$C$333+'1 Données d''entrée'!$C$334+1+$B301,($H293/'1 Données d''entrée'!$C$333),0))","v":0},{"$f":"IF(R243<'1 Données d''entrée'!$C$334+1+$B301,0,IF(R243<'1 Données d''entrée'!$C$333+'1 Données d''entrée'!$C$334+1+$B301,($H293/'1 Données d''entrée'!$C$333),0))","v":0},{"$f":"IF(S243<'1 Données d''entrée'!$C$334+1+$B301,0,IF(S243<'1 Données d''entrée'!$C$333+'1 Données d''entrée'!$C$334+1+$B301,($H293/'1 Données d''entrée'!$C$333),0))","v":0},{"$f":"IF(T243<'1 Données d''entrée'!$C$334+1+$B301,0,IF(T243<'1 Données d''entrée'!$C$333+'1 Données d''entrée'!$C$334+1+$B301,($H293/'1 Données d''entrée'!$C$333),0))","v":0},{"$f":"IF(U243<'1 Données d''entrée'!$C$334+1+$B301,0,IF(U243<'1 Données d''entrée'!$C$333+'1 Données d''entrée'!$C$334+1+$B301,($H293/'1 Données d''entrée'!$C$333),0))","v":0},{"$f":"IF(V243<'1 Données d''entrée'!$C$334+1+$B301,0,IF(V243<'1 Données d''entrée'!$C$333+'1 Données d''entrée'!$C$334+1+$B301,($H293/'1 Données d''entrée'!$C$333),0))","v":0}]
[null,7,{"$f":"IF(C243<'1 Données d''entrée'!$C$334+1+$B302,0,IF(C243<'1 Données d''entrée'!$C$333+'1 Données d''entrée'!$C$334+1+$B302,($I293/'1 Données d''entrée'!$C$333),0))","v":0},{"$f":"IF(D243<'1 Données d''entrée'!$C$334+1+$B302,0,IF(D243<'1 Données d''entrée'!$C$333+'1 Données d''entrée'!$C$334+1+$B302,($I293/'1 Données d''entrée'!$C$333),0))","v":0},{"$f":"IF(E243<'1 Données d''entrée'!$C$334+1+$B302,0,IF(E243<'1 Données d''entrée'!$C$333+'1 Données d''entrée'!$C$334+1+$B302,($I293/'1 Données d''entrée'!$C$333),0))","v":0},{"$f":"IF(F243<'1 Données d''entrée'!$C$334+1+$B302,0,IF(F243<'1 Données d''entrée'!$C$333+'1 Données d''entrée'!$C$334+1+$B302,($I293/'1 Données d''entrée'!$C$333),0))","v":0},{"$f":"IF(G243<'1 Données d''entrée'!$C$334+1+$B302,0,IF(G243<'1 Données d''entrée'!$C$333+'1 Données d''entrée'!$C$334+1+$B302,($I293/'1 Données d''entrée'!$C$333),0))","v":0},{"$f":"IF(H243<'1 Données d''entrée'!$C$334+1+$B302,0,IF(H243<'1 Données d''entrée'!$C$333+'1 Données d''entrée'!$C$334+1+$B302,($I293/'1 Données d''entrée'!$C$333),0))","v":0},{"$f":"IF(I243<'1 Données d''entrée'!$C$334+1+$B302,0,IF(I243<'1 Données d''entrée'!$C$333+'1 Données d''entrée'!$C$334+1+$B302,($I293/'1 Données d''entrée'!$C$333),0))","v":0},{"$f":"IF(J243<'1 Données d''entrée'!$C$334+1+$B302,0,IF(J243<'1 Données d''entrée'!$C$333+'1 Données d''entrée'!$C$334+1+$B302,($I293/'1 Données d''entrée'!$C$333),0))","v":0},{"$f":"IF(K243<'1 Données d''entrée'!$C$334+1+$B302,0,IF(K243<'1 Données d''entrée'!$C$333+'1 Données d''entrée'!$C$334+1+$B302,($I293/'1 Données d''entrée'!$C$333),0))","v":0},{"$f":"IF(L243<'1 Données d''entrée'!$C$334+1+$B302,0,IF(L243<'1 Données d''entrée'!$C$333+'1 Données d''entrée'!$C$334+1+$B302,($I293/'1 Données d''entrée'!$C$333),0))","v":0},{"$f":"IF(M243<'1 Données d''entrée'!$C$334+1+$B302,0,IF(M243<'1 Données d''entrée'!$C$333+'1 Données d''entrée'!$C$334+1+$B302,($I293/'1 Données d''entrée'!$C$333),0))","v":0},{"$f":"IF(N243<'1 Données d''entrée'!$C$334+1+$B302,0,IF(N243<'1 Données d''entrée'!$C$333+'1 Données d''entrée'!$C$334+1+$B302,($I293/'1 Données d''entrée'!$C$333),0))","v":0},{"$f":"IF(O243<'1 Données d''entrée'!$C$334+1+$B302,0,IF(O243<'1 Données d''entrée'!$C$333+'1 Données d''entrée'!$C$334+1+$B302,($I293/'1 Données d''entrée'!$C$333),0))","v":0},{"$f":"IF(P243<'1 Données d''entrée'!$C$334+1+$B302,0,IF(P243<'1 Données d''entrée'!$C$333+'1 Données d''entrée'!$C$334+1+$B302,($I293/'1 Données d''entrée'!$C$333),0))","v":0},{"$f":"IF(Q243<'1 Données d''entrée'!$C$334+1+$B302,0,IF(Q243<'1 Données d''entrée'!$C$333+'1 Données d''entrée'!$C$334+1+$B302,($I293/'1 Données d''entrée'!$C$333),0))","v":0},{"$f":"IF(R243<'1 Données d''entrée'!$C$334+1+$B302,0,IF(R243<'1 Données d''entrée'!$C$333+'1 Données d''entrée'!$C$334+1+$B302,($I293/'1 Données d''entrée'!$C$333),0))","v":0},{"$f":"IF(S243<'1 Données d''entrée'!$C$334+1+$B302,0,IF(S243<'1 Données d''entrée'!$C$333+'1 Données d''entrée'!$C$334+1+$B302,($I293/'1 Données d''entrée'!$C$333),0))","v":0},{"$f":"IF(T243<'1 Données d''entrée'!$C$334+1+$B302,0,IF(T243<'1 Données d''entrée'!$C$333+'1 Données d''entrée'!$C$334+1+$B302,($I293/'1 Données d''entrée'!$C$333),0))","v":0},{"$f":"IF(U243<'1 Données d''entrée'!$C$334+1+$B302,0,IF(U243<'1 Données d''entrée'!$C$333+'1 Données d''entrée'!$C$334+1+$B302,($I293/'1 Données d''entrée'!$C$333),0))","v":0},{"$f":"IF(V243<'1 Données d''entrée'!$C$334+1+$B302,0,IF(V243<'1 Données d''entrée'!$C$333+'1 Données d''entrée'!$C$334+1+$B302,($I293/'1 Données d''entrée'!$C$333),0))","v":0}]
[null,8,{"$f":"IF(C243<'1 Données d''entrée'!$C$334+1+$B303,0,IF(C243<'1 Données d''entrée'!$C$333+'1 Données d''entrée'!$C$334+1+$B303,($J293/'1 Données d''entrée'!$C$333),0))","v":0},{"$f":"IF(D243<'1 Données d''entrée'!$C$334+1+$B303,0,IF(D243<'1 Données d''entrée'!$C$333+'1 Données d''entrée'!$C$334+1+$B303,($J293/'1 Données d''entrée'!$C$333),0))","v":0},{"$f":"IF(E243<'1 Données d''entrée'!$C$334+1+$B303,0,IF(E243<'1 Données d''entrée'!$C$333+'1 Données d''entrée'!$C$334+1+$B303,($J293/'1 Données d''entrée'!$C$333),0))","v":0},{"$f":"IF(F243<'1 Données d''entrée'!$C$334+1+$B303,0,IF(F243<'1 Données d''entrée'!$C$333+'1 Données d''entrée'!$C$334+1+$B303,($J293/'1 Données d''entrée'!$C$333),0))","v":0},{"$f":"IF(G243<'1 Données d''entrée'!$C$334+1+$B303,0,IF(G243<'1 Données d''entrée'!$C$333+'1 Données d''entrée'!$C$334+1+$B303,($J293/'1 Données d''entrée'!$C$333),0))","v":0},{"$f":"IF(H243<'1 Données d''entrée'!$C$334+1+$B303,0,IF(H243<'1 Données d''entrée'!$C$333+'1 Données d''entrée'!$C$334+1+$B303,($J293/'1 Données d''entrée'!$C$333),0))","v":0},{"$f":"IF(I243<'1 Données d''entrée'!$C$334+1+$B303,0,IF(I243<'1 Données d''entrée'!$C$333+'1 Données d''entrée'!$C$334+1+$B303,($J293/'1 Données d''entrée'!$C$333),0))","v":0},{"$f":"IF(J243<'1 Données d''entrée'!$C$334+1+$B303,0,IF(J243<'1 Données d''entrée'!$C$333+'1 Données d''entrée'!$C$334+1+$B303,($J293/'1 Données d''entrée'!$C$333),0))","v":0},{"$f":"IF(K243<'1 Données d''entrée'!$C$334+1+$B303,0,IF(K243<'1 Données d''entrée'!$C$333+'1 Données d''entrée'!$C$334+1+$B303,($J293/'1 Données d''entrée'!$C$333),0))","v":0},{"$f":"IF(L243<'1 Données d''entrée'!$C$334+1+$B303,0,IF(L243<'1 Données d''entrée'!$C$333+'1 Données d''entrée'!$C$334+1+$B303,($J293/'1 Données d''entrée'!$C$333),0))","v":0},{"$f":"IF(M243<'1 Données d''entrée'!$C$334+1+$B303,0,IF(M243<'1 Données d''entrée'!$C$333+'1 Données d''entrée'!$C$334+1+$B303,($J293/'1 Données d''entrée'!$C$333),0))","v":0},{"$f":"IF(N243<'1 Données d''entrée'!$C$334+1+$B303,0,IF(N243<'1 Données d''entrée'!$C$333+'1 Données d''entrée'!$C$334+1+$B303,($J293/'1 Données d''entrée'!$C$333),0))","v":0},{"$f":"IF(O243<'1 Données d''entrée'!$C$334+1+$B303,0,IF(O243<'1 Données d''entrée'!$C$333+'1 Données d''entrée'!$C$334+1+$B303,($J293/'1 Données d''entrée'!$C$333),0))","v":0},{"$f":"IF(P243<'1 Données d''entrée'!$C$334+1+$B303,0,IF(P243<'1 Données d''entrée'!$C$333+'1 Données d''entrée'!$C$334+1+$B303,($J293/'1 Données d''entrée'!$C$333),0))","v":0},{"$f":"IF(Q243<'1 Données d''entrée'!$C$334+1+$B303,0,IF(Q243<'1 Données d''entrée'!$C$333+'1 Données d''entrée'!$C$334+1+$B303,($J293/'1 Données d''entrée'!$C$333),0))","v":0},{"$f":"IF(R243<'1 Données d''entrée'!$C$334+1+$B303,0,IF(R243<'1 Données d''entrée'!$C$333+'1 Données d''entrée'!$C$334+1+$B303,($J293/'1 Données d''entrée'!$C$333),0))","v":0},{"$f":"IF(S243<'1 Données d''entrée'!$C$334+1+$B303,0,IF(S243<'1 Données d''entrée'!$C$333+'1 Données d''entrée'!$C$334+1+$B303,($J293/'1 Données d''entrée'!$C$333),0))","v":0},{"$f":"IF(T243<'1 Données d''entrée'!$C$334+1+$B303,0,IF(T243<'1 Données d''entrée'!$C$333+'1 Données d''entrée'!$C$334+1+$B303,($J293/'1 Données d''entrée'!$C$333),0))","v":0},{"$f":"IF(U243<'1 Données d''entrée'!$C$334+1+$B303,0,IF(U243<'1 Données d''entrée'!$C$333+'1 Données d''entrée'!$C$334+1+$B303,($J293/'1 Données d''entrée'!$C$333),0))","v":0},{"$f":"IF(V243<'1 Données d''entrée'!$C$334+1+$B303,0,IF(V243<'1 Données d''entrée'!$C$333+'1 Données d''entrée'!$C$334+1+$B303,($J293/'1 Données d''entrée'!$C$333),0))","v":0}]
[null,9,{"$f":"IF(C243<'1 Données d''entrée'!$C$334+1+$B304,0,IF(C243<'1 Données d''entrée'!$C$333+'1 Données d''entrée'!$C$334+1+$B304,($K293/'1 Données d''entrée'!$C$333),0))","v":0},{"$f":"IF(D243<'1 Données d''entrée'!$C$334+1+$B304,0,IF(D243<'1 Données d''entrée'!$C$333+'1 Données d''entrée'!$C$334+1+$B304,($K293/'1 Données d''entrée'!$C$333),0))","v":0},{"$f":"IF(E243<'1 Données d''entrée'!$C$334+1+$B304,0,IF(E243<'1 Données d''entrée'!$C$333+'1 Données d''entrée'!$C$334+1+$B304,($K293/'1 Données d''entrée'!$C$333),0))","v":0},{"$f":"IF(F243<'1 Données d''entrée'!$C$334+1+$B304,0,IF(F243<'1 Données d''entrée'!$C$333+'1 Données d''entrée'!$C$334+1+$B304,($K293/'1 Données d''entrée'!$C$333),0))","v":0},{"$f":"IF(G243<'1 Données d''entrée'!$C$334+1+$B304,0,IF(G243<'1 Données d''entrée'!$C$333+'1 Données d''entrée'!$C$334+1+$B304,($K293/'1 Données d''entrée'!$C$333),0))","v":0},{"$f":"IF(H243<'1 Données d''entrée'!$C$334+1+$B304,0,IF(H243<'1 Données d''entrée'!$C$333+'1 Données d''entrée'!$C$334+1+$B304,($K293/'1 Données d''entrée'!$C$333),0))","v":0},{"$f":"IF(I243<'1 Données d''entrée'!$C$334+1+$B304,0,IF(I243<'1 Données d''entrée'!$C$333+'1 Données d''entrée'!$C$334+1+$B304,($K293/'1 Données d''entrée'!$C$333),0))","v":0},{"$f":"IF(J243<'1 Données d''entrée'!$C$334+1+$B304,0,IF(J243<'1 Données d''entrée'!$C$333+'1 Données d''entrée'!$C$334+1+$B304,($K293/'1 Données d''entrée'!$C$333),0))","v":0},{"$f":"IF(K243<'1 Données d''entrée'!$C$334+1+$B304,0,IF(K243<'1 Données d''entrée'!$C$333+'1 Données d''entrée'!$C$334+1+$B304,($K293/'1 Données d''entrée'!$C$333),0))","v":0},{"$f":"IF(L243<'1 Données d''entrée'!$C$334+1+$B304,0,IF(L243<'1 Données d''entrée'!$C$333+'1 Données d''entrée'!$C$334+1+$B304,($K293/'1 Données d''entrée'!$C$333),0))","v":0},{"$f":"IF(M243<'1 Données d''entrée'!$C$334+1+$B304,0,IF(M243<'1 Données d''entrée'!$C$333+'1 Données d''entrée'!$C$334+1+$B304,($K293/'1 Données d''entrée'!$C$333),0))","v":0},{"$f":"IF(N243<'1 Données d''entrée'!$C$334+1+$B304,0,IF(N243<'1 Données d''entrée'!$C$333+'1 Données d''entrée'!$C$334+1+$B304,($K293/'1 Données d''entrée'!$C$333),0))","v":0},{"$f":"IF(O243<'1 Données d''entrée'!$C$334+1+$B304,0,IF(O243<'1 Données d''entrée'!$C$333+'1 Données d''entrée'!$C$334+1+$B304,($K293/'1 Données d''entrée'!$C$333),0))","v":0},{"$f":"IF(P243<'1 Données d''entrée'!$C$334+1+$B304,0,IF(P243<'1 Données d''entrée'!$C$333+'1 Données d''entrée'!$C$334+1+$B304,($K293/'1 Données d''entrée'!$C$333),0))","v":0},{"$f":"IF(Q243<'1 Données d''entrée'!$C$334+1+$B304,0,IF(Q243<'1 Données d''entrée'!$C$333+'1 Données d''entrée'!$C$334+1+$B304,($K293/'1 Données d''entrée'!$C$333),0))","v":0},{"$f":"IF(R243<'1 Données d''entrée'!$C$334+1+$B304,0,IF(R243<'1 Données d''entrée'!$C$333+'1 Données d''entrée'!$C$334+1+$B304,($K293/'1 Données d''entrée'!$C$333),0))","v":0},{"$f":"IF(S243<'1 Données d''entrée'!$C$334+1+$B304,0,IF(S243<'1 Données d''entrée'!$C$333+'1 Données d''entrée'!$C$334+1+$B304,($K293/'1 Données d''entrée'!$C$333),0))","v":0},{"$f":"IF(T243<'1 Données d''entrée'!$C$334+1+$B304,0,IF(T243<'1 Données d''entrée'!$C$333+'1 Données d''entrée'!$C$334+1+$B304,($K293/'1 Données d''entrée'!$C$333),0))","v":0},{"$f":"IF(U243<'1 Données d''entrée'!$C$334+1+$B304,0,IF(U243<'1 Données d''entrée'!$C$333+'1 Données d''entrée'!$C$334+1+$B304,($K293/'1 Données d''entrée'!$C$333),0))","v":0},{"$f":"IF(V243<'1 Données d''entrée'!$C$334+1+$B304,0,IF(V243<'1 Données d''entrée'!$C$333+'1 Données d''entrée'!$C$334+1+$B304,($K293/'1 Données d''entrée'!$C$333),0))","v":0}]
[null,10,{"$f":"IF(C243<'1 Données d''entrée'!$C$334+1+$B305,0,IF(C243<'1 Données d''entrée'!$C$333+'1 Données d''entrée'!$C$334+1+$B305,($L293/'1 Données d''entrée'!$C$333),0))","v":0},{"$f":"IF(D243<'1 Données d''entrée'!$C$334+1+$B305,0,IF(D243<'1 Données d''entrée'!$C$333+'1 Données d''entrée'!$C$334+1+$B305,($L293/'1 Données d''entrée'!$C$333),0))","v":0},{"$f":"IF(E243<'1 Données d''entrée'!$C$334+1+$B305,0,IF(E243<'1 Données d''entrée'!$C$333+'1 Données d''entrée'!$C$334+1+$B305,($L293/'1 Données d''entrée'!$C$333),0))","v":0},{"$f":"IF(F243<'1 Données d''entrée'!$C$334+1+$B305,0,IF(F243<'1 Données d''entrée'!$C$333+'1 Données d''entrée'!$C$334+1+$B305,($L293/'1 Données d''entrée'!$C$333),0))","v":0},{"$f":"IF(G243<'1 Données d''entrée'!$C$334+1+$B305,0,IF(G243<'1 Données d''entrée'!$C$333+'1 Données d''entrée'!$C$334+1+$B305,($L293/'1 Données d''entrée'!$C$333),0))","v":0},{"$f":"IF(H243<'1 Données d''entrée'!$C$334+1+$B305,0,IF(H243<'1 Données d''entrée'!$C$333+'1 Données d''entrée'!$C$334+1+$B305,($L293/'1 Données d''entrée'!$C$333),0))","v":0},{"$f":"IF(I243<'1 Données d''entrée'!$C$334+1+$B305,0,IF(I243<'1 Données d''entrée'!$C$333+'1 Données d''entrée'!$C$334+1+$B305,($L293/'1 Données d''entrée'!$C$333),0))","v":0},{"$f":"IF(J243<'1 Données d''entrée'!$C$334+1+$B305,0,IF(J243<'1 Données d''entrée'!$C$333+'1 Données d''entrée'!$C$334+1+$B305,($L293/'1 Données d''entrée'!$C$333),0))","v":0},{"$f":"IF(K243<'1 Données d''entrée'!$C$334+1+$B305,0,IF(K243<'1 Données d''entrée'!$C$333+'1 Données d''entrée'!$C$334+1+$B305,($L293/'1 Données d''entrée'!$C$333),0))","v":0},{"$f":"IF(L243<'1 Données d''entrée'!$C$334+1+$B305,0,IF(L243<'1 Données d''entrée'!$C$333+'1 Données d''entrée'!$C$334+1+$B305,($L293/'1 Données d''entrée'!$C$333),0))","v":0},{"$f":"IF(M243<'1 Données d''entrée'!$C$334+1+$B305,0,IF(M243<'1 Données d''entrée'!$C$333+'1 Données d''entrée'!$C$334+1+$B305,($L293/'1 Données d''entrée'!$C$333),0))","v":0},{"$f":"IF(N243<'1 Données d''entrée'!$C$334+1+$B305,0,IF(N243<'1 Données d''entrée'!$C$333+'1 Données d''entrée'!$C$334+1+$B305,($L293/'1 Données d''entrée'!$C$333),0))","v":0},{"$f":"IF(O243<'1 Données d''entrée'!$C$334+1+$B305,0,IF(O243<'1 Données d''entrée'!$C$333+'1 Données d''entrée'!$C$334+1+$B305,($L293/'1 Données d''entrée'!$C$333),0))","v":0},{"$f":"IF(P243<'1 Données d''entrée'!$C$334+1+$B305,0,IF(P243<'1 Données d''entrée'!$C$333+'1 Données d''entrée'!$C$334+1+$B305,($L293/'1 Données d''entrée'!$C$333),0))","v":0},{"$f":"IF(Q243<'1 Données d''entrée'!$C$334+1+$B305,0,IF(Q243<'1 Données d''entrée'!$C$333+'1 Données d''entrée'!$C$334+1+$B305,($L293/'1 Données d''entrée'!$C$333),0))","v":0},{"$f":"IF(R243<'1 Données d''entrée'!$C$334+1+$B305,0,IF(R243<'1 Données d''entrée'!$C$333+'1 Données d''entrée'!$C$334+1+$B305,($L293/'1 Données d''entrée'!$C$333),0))","v":0},{"$f":"IF(S243<'1 Données d''entrée'!$C$334+1+$B305,0,IF(S243<'1 Données d''entrée'!$C$333+'1 Données d''entrée'!$C$334+1+$B305,($L293/'1 Données d''entrée'!$C$333),0))","v":0},{"$f":"IF(T243<'1 Données d''entrée'!$C$334+1+$B305,0,IF(T243<'1 Données d''entrée'!$C$333+'1 Données d''entrée'!$C$334+1+$B305,($L293/'1 Données d''entrée'!$C$333),0))","v":0},{"$f":"IF(U243<'1 Données d''entrée'!$C$334+1+$B305,0,IF(U243<'1 Données d''entrée'!$C$333+'1 Données d''entrée'!$C$334+1+$B305,($L293/'1 Données d''entrée'!$C$333),0))","v":0},{"$f":"IF(V243<'1 Données d''entrée'!$C$334+1+$B305,0,IF(V243<'1 Données d''entrée'!$C$333+'1 Données d''entrée'!$C$334+1+$B305,($L293/'1 Données d''entrée'!$C$333),0))","v":0}]
[null,"Période de prêt nouveau"]
["Paiement d'intérêts",0,0,0,0,0,0,0,0,0,0,0,0,0,0,0,0,0,0,0,0,0]
["Paiement d'intêrets",1,0,{"$f":"IF(C243<1+$B295,0,IF(C243<'1 Données d''entrée'!$C$334+'1 Données d''entrée'!$C$333+1+$B295,'1 Données d''entrée'!$C$332*($C293-SUM($C296:C296)),0))","v":0},{"$f":"IF(D243<1+$B295,0,IF(D243<'1 Données d''entrée'!$C$334+'1 Données d''entrée'!$C$333+1+$B295,'1 Données d''entrée'!$C$332*($C293-SUM($C296:D296)),0))","v":0},{"$f":"IF(E243<1+$B295,0,IF(E243<'1 Données d''entrée'!$C$334+'1 Données d''entrée'!$C$333+1+$B295,'1 Données d''entrée'!$C$332*($C293-SUM($C296:E296)),0))","v":0},{"$f":"IF(F243<1+$B295,0,IF(F243<'1 Données d''entrée'!$C$334+'1 Données d''entrée'!$C$333+1+$B295,'1 Données d''entrée'!$C$332*($C293-SUM($C296:F296)),0))","v":0},{"$f":"IF(G243<1+$B295,0,IF(G243<'1 Données d''entrée'!$C$334+'1 Données d''entrée'!$C$333+1+$B295,'1 Données d''entrée'!$C$332*($C293-SUM($C296:G296)),0))","v":0},{"$f":"IF(H243<1+$B295,0,IF(H243<'1 Données d''entrée'!$C$334+'1 Données d''entrée'!$C$333+1+$B295,'1 Données d''entrée'!$C$332*($C293-SUM($C296:H296)),0))","v":0},{"$f":"IF(I243<1+$B295,0,IF(I243<'1 Données d''entrée'!$C$334+'1 Données d''entrée'!$C$333+1+$B295,'1 Données d''entrée'!$C$332*($C293-SUM($C296:I296)),0))","v":0},{"$f":"IF(J243<1+$B295,0,IF(J243<'1 Données d''entrée'!$C$334+'1 Données d''entrée'!$C$333+1+$B295,'1 Données d''entrée'!$C$332*($C293-SUM($C296:J296)),0))","v":0},{"$f":"IF(K243<1+$B295,0,IF(K243<'1 Données d''entrée'!$C$334+'1 Données d''entrée'!$C$333+1+$B295,'1 Données d''entrée'!$C$332*($C293-SUM($C296:K296)),0))","v":0},{"$f":"IF(L243<1+$B295,0,IF(L243<'1 Données d''entrée'!$C$334+'1 Données d''entrée'!$C$333+1+$B295,'1 Données d''entrée'!$C$332*($C293-SUM($C296:L296)),0))","v":0},{"$f":"IF(M243<1+$B295,0,IF(M243<'1 Données d''entrée'!$C$334+'1 Données d''entrée'!$C$333+1+$B295,'1 Données d''entrée'!$C$332*($C293-SUM($C296:M296)),0))","v":0},{"$f":"IF(N243<1+$B295,0,IF(N243<'1 Données d''entrée'!$C$334+'1 Données d''entrée'!$C$333+1+$B295,'1 Données d''entrée'!$C$332*($C293-SUM($C296:N296)),0))","v":0},{"$f":"IF(O243<1+$B295,0,IF(O243<'1 Données d''entrée'!$C$334+'1 Données d''entrée'!$C$333+1+$B295,'1 Données d''entrée'!$C$332*($C293-SUM($C296:O296)),0))","v":0},{"$f":"IF(P243<1+$B295,0,IF(P243<'1 Données d''entrée'!$C$334+'1 Données d''entrée'!$C$333+1+$B295,'1 Données d''entrée'!$C$332*($C293-SUM($C296:P296)),0))","v":0},{"$f":"IF(Q243<1+$B295,0,IF(Q243<'1 Données d''entrée'!$C$334+'1 Données d''entrée'!$C$333+1+$B295,'1 Données d''entrée'!$C$332*($C293-SUM($C296:Q296)),0))","v":0},{"$f":"IF(R243<1+$B295,0,IF(R243<'1 Données d''entrée'!$C$334+'1 Données d''entrée'!$C$333+1+$B295,'1 Données d''entrée'!$C$332*($C293-SUM($C296:R296)),0))","v":0},{"$f":"IF(S243<1+$B295,0,IF(S243<'1 Données d''entrée'!$C$334+'1 Données d''entrée'!$C$333+1+$B295,'1 Données d''entrée'!$C$332*($C293-SUM($C296:S296)),0))","v":0},{"$f":"IF(T243<1+$B295,0,IF(T243<'1 Données d''entrée'!$C$334+'1 Données d''entrée'!$C$333+1+$B295,'1 Données d''entrée'!$C$332*($C293-SUM($C296:T296)),0))","v":0},{"$f":"IF(U243<1+$B295,0,IF(U243<'1 Données d''entrée'!$C$334+'1 Données d''entrée'!$C$333+1+$B295,'1 Données d''entrée'!$C$332*($C293-SUM($C296:U296)),0))","v":0}]
["Paiement d'intêrets",2,0,{"$f":"IF(C243<1+$B296,0,IF(C243<'1 Données d''entrée'!$C$334+'1 Données d''entrée'!$C$333+1+$B296,'1 Données d''entrée'!$C$332*($D293-SUM($C297:C297)),0))","v":0},{"$f":"IF(D243<1+$B296,0,IF(D243<'1 Données d''entrée'!$C$334+'1 Données d''entrée'!$C$333+1+$B296,'1 Données d''entrée'!$C$332*($D293-SUM($C297:D297)),0))","v":0},{"$f":"IF(E243<1+$B296,0,IF(E243<'1 Données d''entrée'!$C$334+'1 Données d''entrée'!$C$333+1+$B296,'1 Données d''entrée'!$C$332*($D293-SUM($C297:E297)),0))","v":0},{"$f":"IF(F243<1+$B296,0,IF(F243<'1 Données d''entrée'!$C$334+'1 Données d''entrée'!$C$333+1+$B296,'1 Données d''entrée'!$C$332*($D293-SUM($C297:F297)),0))","v":0},{"$f":"IF(G243<1+$B296,0,IF(G243<'1 Données d''entrée'!$C$334+'1 Données d''entrée'!$C$333+1+$B296,'1 Données d''entrée'!$C$332*($D293-SUM($C297:G297)),0))","v":0},{"$f":"IF(H243<1+$B296,0,IF(H243<'1 Données d''entrée'!$C$334+'1 Données d''entrée'!$C$333+1+$B296,'1 Données d''entrée'!$C$332*($D293-SUM($C297:H297)),0))","v":0},{"$f":"IF(I243<1+$B296,0,IF(I243<'1 Données d''entrée'!$C$334+'1 Données d''entrée'!$C$333+1+$B296,'1 Données d''entrée'!$C$332*($D293-SUM($C297:I297)),0))","v":0},{"$f":"IF(J243<1+$B296,0,IF(J243<'1 Données d''entrée'!$C$334+'1 Données d''entrée'!$C$333+1+$B296,'1 Données d''entrée'!$C$332*($D293-SUM($C297:J297)),0))","v":0},{"$f":"IF(K243<1+$B296,0,IF(K243<'1 Données d''entrée'!$C$334+'1 Données d''entrée'!$C$333+1+$B296,'1 Données d''entrée'!$C$332*($D293-SUM($C297:K297)),0))","v":0},{"$f":"IF(L243<1+$B296,0,IF(L243<'1 Données d''entrée'!$C$334+'1 Données d''entrée'!$C$333+1+$B296,'1 Données d''entrée'!$C$332*($D293-SUM($C297:L297)),0))","v":0},{"$f":"IF(M243<1+$B296,0,IF(M243<'1 Données d''entrée'!$C$334+'1 Données d''entrée'!$C$333+1+$B296,'1 Données d''entrée'!$C$332*($D293-SUM($C297:M297)),0))","v":0},{"$f":"IF(N243<1+$B296,0,IF(N243<'1 Données d''entrée'!$C$334+'1 Données d''entrée'!$C$333+1+$B296,'1 Données d''entrée'!$C$332*($D293-SUM($C297:N297)),0))","v":0},{"$f":"IF(O243<1+$B296,0,IF(O243<'1 Données d''entrée'!$C$334+'1 Données d''entrée'!$C$333+1+$B296,'1 Données d''entrée'!$C$332*($D293-SUM($C297:O297)),0))","v":0},{"$f":"IF(P243<1+$B296,0,IF(P243<'1 Données d''entrée'!$C$334+'1 Données d''entrée'!$C$333+1+$B296,'1 Données d''entrée'!$C$332*($D293-SUM($C297:P297)),0))","v":0},{"$f":"IF(Q243<1+$B296,0,IF(Q243<'1 Données d''entrée'!$C$334+'1 Données d''entrée'!$C$333+1+$B296,'1 Données d''entrée'!$C$332*($D293-SUM($C297:Q297)),0))","v":0},{"$f":"IF(R243<1+$B296,0,IF(R243<'1 Données d''entrée'!$C$334+'1 Données d''entrée'!$C$333+1+$B296,'1 Données d''entrée'!$C$332*($D293-SUM($C297:R297)),0))","v":0},{"$f":"IF(S243<1+$B296,0,IF(S243<'1 Données d''entrée'!$C$334+'1 Données d''entrée'!$C$333+1+$B296,'1 Données d''entrée'!$C$332*($D293-SUM($C297:S297)),0))","v":0},{"$f":"IF(T243<1+$B296,0,IF(T243<'1 Données d''entrée'!$C$334+'1 Données d''entrée'!$C$333+1+$B296,'1 Données d''entrée'!$C$332*($D293-SUM($C297:T297)),0))","v":0},{"$f":"IF(U243<1+$B296,0,IF(U243<'1 Données d''entrée'!$C$334+'1 Données d''entrée'!$C$333+1+$B296,'1 Données d''entrée'!$C$332*($D293-SUM($C297:U297)),0))","v":0}]
["Paiement d'intêrets",3,0,{"$f":"IF(C243<1+$B297,0,IF(C243<'1 Données d''entrée'!$C$334+'1 Données d''entrée'!$C$333+1+$B297,'1 Données d''entrée'!$C$332*($E293-SUM($C298:C298)),0))","v":0},{"$f":"IF(D243<1+$B297,0,IF(D243<'1 Données d''entrée'!$C$334+'1 Données d''entrée'!$C$333+1+$B297,'1 Données d''entrée'!$C$332*($E293-SUM($C298:D298)),0))","v":0},{"$f":"IF(E243<1+$B297,0,IF(E243<'1 Données d''entrée'!$C$334+'1 Données d''entrée'!$C$333+1+$B297,'1 Données d''entrée'!$C$332*($E293-SUM($C298:E298)),0))","v":0},{"$f":"IF(F243<1+$B297,0,IF(F243<'1 Données d''entrée'!$C$334+'1 Données d''entrée'!$C$333+1+$B297,'1 Données d''entrée'!$C$332*($E293-SUM($C298:F298)),0))","v":0},{"$f":"IF(G243<1+$B297,0,IF(G243<'1 Données d''entrée'!$C$334+'1 Données d''entrée'!$C$333+1+$B297,'1 Données d''entrée'!$C$332*($E293-SUM($C298:G298)),0))","v":0},{"$f":"IF(H243<1+$B297,0,IF(H243<'1 Données d''entrée'!$C$334+'1 Données d''entrée'!$C$333+1+$B297,'1 Données d''entrée'!$C$332*($E293-SUM($C298:H298)),0))","v":0},{"$f":"IF(I243<1+$B297,0,IF(I243<'1 Données d''entrée'!$C$334+'1 Données d''entrée'!$C$333+1+$B297,'1 Données d''entrée'!$C$332*($E293-SUM($C298:I298)),0))","v":0},{"$f":"IF(J243<1+$B297,0,IF(J243<'1 Données d''entrée'!$C$334+'1 Données d''entrée'!$C$333+1+$B297,'1 Données d''entrée'!$C$332*($E293-SUM($C298:J298)),0))","v":0},{"$f":"IF(K243<1+$B297,0,IF(K243<'1 Données d''entrée'!$C$334+'1 Données d''entrée'!$C$333+1+$B297,'1 Données d''entrée'!$C$332*($E293-SUM($C298:K298)),0))","v":0},{"$f":"IF(L243<1+$B297,0,IF(L243<'1 Données d''entrée'!$C$334+'1 Données d''entrée'!$C$333+1+$B297,'1 Données d''entrée'!$C$332*($E293-SUM($C298:L298)),0))","v":0},{"$f":"IF(M243<1+$B297,0,IF(M243<'1 Données d''entrée'!$C$334+'1 Données d''entrée'!$C$333+1+$B297,'1 Données d''entrée'!$C$332*($E293-SUM($C298:M298)),0))","v":0},{"$f":"IF(N243<1+$B297,0,IF(N243<'1 Données d''entrée'!$C$334+'1 Données d''entrée'!$C$333+1+$B297,'1 Données d''entrée'!$C$332*($E293-SUM($C298:N298)),0))","v":0},{"$f":"IF(O243<1+$B297,0,IF(O243<'1 Données d''entrée'!$C$334+'1 Données d''entrée'!$C$333+1+$B297,'1 Données d''entrée'!$C$332*($E293-SUM($C298:O298)),0))","v":0},{"$f":"IF(P243<1+$B297,0,IF(P243<'1 Données d''entrée'!$C$334+'1 Données d''entrée'!$C$333+1+$B297,'1 Données d''entrée'!$C$332*($E293-SUM($C298:P298)),0))","v":0},{"$f":"IF(Q243<1+$B297,0,IF(Q243<'1 Données d''entrée'!$C$334+'1 Données d''entrée'!$C$333+1+$B297,'1 Données d''entrée'!$C$332*($E293-SUM($C298:Q298)),0))","v":0},{"$f":"IF(R243<1+$B297,0,IF(R243<'1 Données d''entrée'!$C$334+'1 Données d''entrée'!$C$333+1+$B297,'1 Données d''entrée'!$C$332*($E293-SUM($C298:R298)),0))","v":0},{"$f":"IF(S243<1+$B297,0,IF(S243<'1 Données d''entrée'!$C$334+'1 Données d''entrée'!$C$333+1+$B297,'1 Données d''entrée'!$C$332*($E293-SUM($C298:S298)),0))","v":0},{"$f":"IF(T243<1+$B297,0,IF(T243<'1 Données d''entrée'!$C$334+'1 Données d''entrée'!$C$333+1+$B297,'1 Données d''entrée'!$C$332*($E293-SUM($C298:T298)),0))","v":0},{"$f":"IF(U243<1+$B297,0,IF(U243<'1 Données d''entrée'!$C$334+'1 Données d''entrée'!$C$333+1+$B297,'1 Données d''entrée'!$C$332*($E293-SUM($C298:U298)),0))","v":0}]
["Paiement d'intêrets",4,0,{"$f":"IF(C243<1+$B298,0,IF(C243<'1 Données d''entrée'!$C$334+'1 Données d''entrée'!$C$333+1+$B298,'1 Données d''entrée'!$C$332*($F293-SUM($C299:C299)),0))","v":0},{"$f":"IF(D243<1+$B298,0,IF(D243<'1 Données d''entrée'!$C$334+'1 Données d''entrée'!$C$333+1+$B298,'1 Données d''entrée'!$C$332*($F293-SUM($C299:D299)),0))","v":0},{"$f":"IF(E243<1+$B298,0,IF(E243<'1 Données d''entrée'!$C$334+'1 Données d''entrée'!$C$333+1+$B298,'1 Données d''entrée'!$C$332*($F293-SUM($C299:E299)),0))","v":0},{"$f":"IF(F243<1+$B298,0,IF(F243<'1 Données d''entrée'!$C$334+'1 Données d''entrée'!$C$333+1+$B298,'1 Données d''entrée'!$C$332*($F293-SUM($C299:F299)),0))","v":0},{"$f":"IF(G243<1+$B298,0,IF(G243<'1 Données d''entrée'!$C$334+'1 Données d''entrée'!$C$333+1+$B298,'1 Données d''entrée'!$C$332*($F293-SUM($C299:G299)),0))","v":0},{"$f":"IF(H243<1+$B298,0,IF(H243<'1 Données d''entrée'!$C$334+'1 Données d''entrée'!$C$333+1+$B298,'1 Données d''entrée'!$C$332*($F293-SUM($C299:H299)),0))","v":0},{"$f":"IF(I243<1+$B298,0,IF(I243<'1 Données d''entrée'!$C$334+'1 Données d''entrée'!$C$333+1+$B298,'1 Données d''entrée'!$C$332*($F293-SUM($C299:I299)),0))","v":0},{"$f":"IF(J243<1+$B298,0,IF(J243<'1 Données d''entrée'!$C$334+'1 Données d''entrée'!$C$333+1+$B298,'1 Données d''entrée'!$C$332*($F293-SUM($C299:J299)),0))","v":0},{"$f":"IF(K243<1+$B298,0,IF(K243<'1 Données d''entrée'!$C$334+'1 Données d''entrée'!$C$333+1+$B298,'1 Données d''entrée'!$C$332*($F293-SUM($C299:K299)),0))","v":0},{"$f":"IF(L243<1+$B298,0,IF(L243<'1 Données d''entrée'!$C$334+'1 Données d''entrée'!$C$333+1+$B298,'1 Données d''entrée'!$C$332*($F293-SUM($C299:L299)),0))","v":0},{"$f":"IF(M243<1+$B298,0,IF(M243<'1 Données d''entrée'!$C$334+'1 Données d''entrée'!$C$333+1+$B298,'1 Données d''entrée'!$C$332*($F293-SUM($C299:M299)),0))","v":0},{"$f":"IF(N243<1+$B298,0,IF(N243<'1 Données d''entrée'!$C$334+'1 Données d''entrée'!$C$333+1+$B298,'1 Données d''entrée'!$C$332*($F293-SUM($C299:N299)),0))","v":0},{"$f":"IF(O243<1+$B298,0,IF(O243<'1 Données d''entrée'!$C$334+'1 Données d''entrée'!$C$333+1+$B298,'1 Données d''entrée'!$C$332*($F293-SUM($C299:O299)),0))","v":0},{"$f":"IF(P243<1+$B298,0,IF(P243<'1 Données d''entrée'!$C$334+'1 Données d''entrée'!$C$333+1+$B298,'1 Données d''entrée'!$C$332*($F293-SUM($C299:P299)),0))","v":0},{"$f":"IF(Q243<1+$B298,0,IF(Q243<'1 Données d''entrée'!$C$334+'1 Données d''entrée'!$C$333+1+$B298,'1 Données d''entrée'!$C$332*($F293-SUM($C299:Q299)),0))","v":0},{"$f":"IF(R243<1+$B298,0,IF(R243<'1 Données d''entrée'!$C$334+'1 Données d''entrée'!$C$333+1+$B298,'1 Données d''entrée'!$C$332*($F293-SUM($C299:R299)),0))","v":0},{"$f":"IF(S243<1+$B298,0,IF(S243<'1 Données d''entrée'!$C$334+'1 Données d''entrée'!$C$333+1+$B298,'1 Données d''entrée'!$C$332*($F293-SUM($C299:S299)),0))","v":0},{"$f":"IF(T243<1+$B298,0,IF(T243<'1 Données d''entrée'!$C$334+'1 Données d''entrée'!$C$333+1+$B298,'1 Données d''entrée'!$C$332*($F293-SUM($C299:T299)),0))","v":0},{"$f":"IF(U243<1+$B298,0,IF(U243<'1 Données d''entrée'!$C$334+'1 Données d''entrée'!$C$333+1+$B298,'1 Données d''entrée'!$C$332*($F293-SUM($C299:U299)),0))","v":0}]
["Paiement d'intêrets",5,0,{"$f":"IF(C243<1+$B299,0,IF(C243<'1 Données d''entrée'!$C$334+'1 Données d''entrée'!$C$333+1+$B299,'1 Données d''entrée'!$C$332*($G293-SUM($C300:C300)),0))","v":0},{"$f":"IF(D243<1+$B299,0,IF(D243<'1 Données d''entrée'!$C$334+'1 Données d''entrée'!$C$333+1+$B299,'1 Données d''entrée'!$C$332*($G293-SUM($C300:D300)),0))","v":0},{"$f":"IF(E243<1+$B299,0,IF(E243<'1 Données d''entrée'!$C$334+'1 Données d''entrée'!$C$333+1+$B299,'1 Données d''entrée'!$C$332*($G293-SUM($C300:E300)),0))","v":0},{"$f":"IF(F243<1+$B299,0,IF(F243<'1 Données d''entrée'!$C$334+'1 Données d''entrée'!$C$333+1+$B299,'1 Données d''entrée'!$C$332*($G293-SUM($C300:F300)),0))","v":0},{"$f":"IF(G243<1+$B299,0,IF(G243<'1 Données d''entrée'!$C$334+'1 Données d''entrée'!$C$333+1+$B299,'1 Données d''entrée'!$C$332*($G293-SUM($C300:G300)),0))","v":0},{"$f":"IF(H243<1+$B299,0,IF(H243<'1 Données d''entrée'!$C$334+'1 Données d''entrée'!$C$333+1+$B299,'1 Données d''entrée'!$C$332*($G293-SUM($C300:H300)),0))","v":0},{"$f":"IF(I243<1+$B299,0,IF(I243<'1 Données d''entrée'!$C$334+'1 Données d''entrée'!$C$333+1+$B299,'1 Données d''entrée'!$C$332*($G293-SUM($C300:I300)),0))","v":0},{"$f":"IF(J243<1+$B299,0,IF(J243<'1 Données d''entrée'!$C$334+'1 Données d''entrée'!$C$333+1+$B299,'1 Données d''entrée'!$C$332*($G293-SUM($C300:J300)),0))","v":0},{"$f":"IF(K243<1+$B299,0,IF(K243<'1 Données d''entrée'!$C$334+'1 Données d''entrée'!$C$333+1+$B299,'1 Données d''entrée'!$C$332*($G293-SUM($C300:K300)),0))","v":0},{"$f":"IF(L243<1+$B299,0,IF(L243<'1 Données d''entrée'!$C$334+'1 Données d''entrée'!$C$333+1+$B299,'1 Données d''entrée'!$C$332*($G293-SUM($C300:L300)),0))","v":0},{"$f":"IF(M243<1+$B299,0,IF(M243<'1 Données d''entrée'!$C$334+'1 Données d''entrée'!$C$333+1+$B299,'1 Données d''entrée'!$C$332*($G293-SUM($C300:M300)),0))","v":0},{"$f":"IF(N243<1+$B299,0,IF(N243<'1 Données d''entrée'!$C$334+'1 Données d''entrée'!$C$333+1+$B299,'1 Données d''entrée'!$C$332*($G293-SUM($C300:N300)),0))","v":0},{"$f":"IF(O243<1+$B299,0,IF(O243<'1 Données d''entrée'!$C$334+'1 Données d''entrée'!$C$333+1+$B299,'1 Données d''entrée'!$C$332*($G293-SUM($C300:O300)),0))","v":0},{"$f":"IF(P243<1+$B299,0,IF(P243<'1 Données d''entrée'!$C$334+'1 Données d''entrée'!$C$333+1+$B299,'1 Données d''entrée'!$C$332*($G293-SUM($C300:P300)),0))","v":0},{"$f":"IF(Q243<1+$B299,0,IF(Q243<'1 Données d''entrée'!$C$334+'1 Données d''entrée'!$C$333+1+$B299,'1 Données d''entrée'!$C$332*($G293-SUM($C300:Q300)),0))","v":0},{"$f":"IF(R243<1+$B299,0,IF(R243<'1 Données d''entrée'!$C$334+'1 Données d''entrée'!$C$333+1+$B299,'1 Données d''entrée'!$C$332*($G293-SUM($C300:R300)),0))","v":0},{"$f":"IF(S243<1+$B299,0,IF(S243<'1 Données d''entrée'!$C$334+'1 Données d''entrée'!$C$333+1+$B299,'1 Données d''entrée'!$C$332*($G293-SUM($C300:S300)),0))","v":0},{"$f":"IF(T243<1+$B299,0,IF(T243<'1 Données d''entrée'!$C$334+'1 Données d''entrée'!$C$333+1+$B299,'1 Données d''entrée'!$C$332*($G293-SUM($C300:T300)),0))","v":0},{"$f":"IF(U243<1+$B299,0,IF(U243<'1 Données d''entrée'!$C$334+'1 Données d''entrée'!$C$333+1+$B299,'1 Données d''entrée'!$C$332*($G293-SUM($C300:U300)),0))","v":0}]
["Paiement d'intêrets",6,0,{"$f":"IF(C243<1+$B300,0,IF(C243<'1 Données d''entrée'!$C$334+'1 Données d''entrée'!$C$333+1+$B300,'1 Données d''entrée'!$C$332*($H293-SUM($C301:C301)),0))","v":0},{"$f":"IF(D243<1+$B300,0,IF(D243<'1 Données d''entrée'!$C$334+'1 Données d''entrée'!$C$333+1+$B300,'1 Données d''entrée'!$C$332*($H293-SUM($C301:D301)),0))","v":0},{"$f":"IF(E243<1+$B300,0,IF(E243<'1 Données d''entrée'!$C$334+'1 Données d''entrée'!$C$333+1+$B300,'1 Données d''entrée'!$C$332*($H293-SUM($C301:E301)),0))","v":0},{"$f":"IF(F243<1+$B300,0,IF(F243<'1 Données d''entrée'!$C$334+'1 Données d''entrée'!$C$333+1+$B300,'1 Données d''entrée'!$C$332*($H293-SUM($C301:F301)),0))","v":0},{"$f":"IF(G243<1+$B300,0,IF(G243<'1 Données d''entrée'!$C$334+'1 Données d''entrée'!$C$333+1+$B300,'1 Données d''entrée'!$C$332*($H293-SUM($C301:G301)),0))","v":0},{"$f":"IF(H243<1+$B300,0,IF(H243<'1 Données d''entrée'!$C$334+'1 Données d''entrée'!$C$333+1+$B300,'1 Données d''entrée'!$C$332*($H293-SUM($C301:H301)),0))","v":0},{"$f":"IF(I243<1+$B300,0,IF(I243<'1 Données d''entrée'!$C$334+'1 Données d''entrée'!$C$333+1+$B300,'1 Données d''entrée'!$C$332*($H293-SUM($C301:I301)),0))","v":0},{"$f":"IF(J243<1+$B300,0,IF(J243<'1 Données d''entrée'!$C$334+'1 Données d''entrée'!$C$333+1+$B300,'1 Données d''entrée'!$C$332*($H293-SUM($C301:J301)),0))","v":0},{"$f":"IF(K243<1+$B300,0,IF(K243<'1 Données d''entrée'!$C$334+'1 Données d''entrée'!$C$333+1+$B300,'1 Données d''entrée'!$C$332*($H293-SUM($C301:K301)),0))","v":0},{"$f":"IF(L243<1+$B300,0,IF(L243<'1 Données d''entrée'!$C$334+'1 Données d''entrée'!$C$333+1+$B300,'1 Données d''entrée'!$C$332*($H293-SUM($C301:L301)),0))","v":0},{"$f":"IF(M243<1+$B300,0,IF(M243<'1 Données d''entrée'!$C$334+'1 Données d''entrée'!$C$333+1+$B300,'1 Données d''entrée'!$C$332*($H293-SUM($C301:M301)),0))","v":0},{"$f":"IF(N243<1+$B300,0,IF(N243<'1 Données d''entrée'!$C$334+'1 Données d''entrée'!$C$333+1+$B300,'1 Données d''entrée'!$C$332*($H293-SUM($C301:N301)),0))","v":0},{"$f":"IF(O243<1+$B300,0,IF(O243<'1 Données d''entrée'!$C$334+'1 Données d''entrée'!$C$333+1+$B300,'1 Données d''entrée'!$C$332*($H293-SUM($C301:O301)),0))","v":0},{"$f":"IF(P243<1+$B300,0,IF(P243<'1 Données d''entrée'!$C$334+'1 Données d''entrée'!$C$333+1+$B300,'1 Données d''entrée'!$C$332*($H293-SUM($C301:P301)),0))","v":0},{"$f":"IF(Q243<1+$B300,0,IF(Q243<'1 Données d''entrée'!$C$334+'1 Données d''entrée'!$C$333+1+$B300,'1 Données d''entrée'!$C$332*($H293-SUM($C301:Q301)),0))","v":0},{"$f":"IF(R243<1+$B300,0,IF(R243<'1 Données d''entrée'!$C$334+'1 Données d''entrée'!$C$333+1+$B300,'1 Données d''entrée'!$C$332*($H293-SUM($C301:R301)),0))","v":0},{"$f":"IF(S243<1+$B300,0,IF(S243<'1 Données d''entrée'!$C$334+'1 Données d''entrée'!$C$333+1+$B300,'1 Données d''entrée'!$C$332*($H293-SUM($C301:S301)),0))","v":0},{"$f":"IF(T243<1+$B300,0,IF(T243<'1 Données d''entrée'!$C$334+'1 Données d''entrée'!$C$333+1+$B300,'1 Données d''entrée'!$C$332*($H293-SUM($C301:T301)),0))","v":0},{"$f":"IF(U243<1+$B300,0,IF(U243<'1 Données d''entrée'!$C$334+'1 Données d''entrée'!$C$333+1+$B300,'1 Données d''entrée'!$C$332*($H293-SUM($C301:U301)),0))","v":0}]
["Paiement d'intêrets",7,0,{"$f":"IF(C243<1+$B301,0,IF(C243<'1 Données d''entrée'!$C$334+'1 Données d''entrée'!$C$333+1+$B301,'1 Données d''entrée'!$C$332*($I293-SUM($C302:C302)),0))","v":0},{"$f":"IF(D243<1+$B301,0,IF(D243<'1 Données d''entrée'!$C$334+'1 Données d''entrée'!$C$333+1+$B301,'1 Données d''entrée'!$C$332*($I293-SUM($C302:D302)),0))","v":0},{"$f":"IF(E243<1+$B301,0,IF(E243<'1 Données d''entrée'!$C$334+'1 Données d''entrée'!$C$333+1+$B301,'1 Données d''entrée'!$C$332*($I293-SUM($C302:E302)),0))","v":0},{"$f":"IF(F243<1+$B301,0,IF(F243<'1 Données d''entrée'!$C$334+'1 Données d''entrée'!$C$333+1+$B301,'1 Données d''entrée'!$C$332*($I293-SUM($C302:F302)),0))","v":0},{"$f":"IF(G243<1+$B301,0,IF(G243<'1 Données d''entrée'!$C$334+'1 Données d''entrée'!$C$333+1+$B301,'1 Données d''entrée'!$C$332*($I293-SUM($C302:G302)),0))","v":0},{"$f":"IF(H243<1+$B301,0,IF(H243<'1 Données d''entrée'!$C$334+'1 Données d''entrée'!$C$333+1+$B301,'1 Données d''entrée'!$C$332*($I293-SUM($C302:H302)),0))","v":0},{"$f":"IF(I243<1+$B301,0,IF(I243<'1 Données d''entrée'!$C$334+'1 Données d''entrée'!$C$333+1+$B301,'1 Données d''entrée'!$C$332*($I293-SUM($C302:I302)),0))","v":0},{"$f":"IF(J243<1+$B301,0,IF(J243<'1 Données d''entrée'!$C$334+'1 Données d''entrée'!$C$333+1+$B301,'1 Données d''entrée'!$C$332*($I293-SUM($C302:J302)),0))","v":0},{"$f":"IF(K243<1+$B301,0,IF(K243<'1 Données d''entrée'!$C$334+'1 Données d''entrée'!$C$333+1+$B301,'1 Données d''entrée'!$C$332*($I293-SUM($C302:K302)),0))","v":0},{"$f":"IF(L243<1+$B301,0,IF(L243<'1 Données d''entrée'!$C$334+'1 Données d''entrée'!$C$333+1+$B301,'1 Données d''entrée'!$C$332*($I293-SUM($C302:L302)),0))","v":0},{"$f":"IF(M243<1+$B301,0,IF(M243<'1 Données d''entrée'!$C$334+'1 Données d''entrée'!$C$333+1+$B301,'1 Données d''entrée'!$C$332*($I293-SUM($C302:M302)),0))","v":0},{"$f":"IF(N243<1+$B301,0,IF(N243<'1 Données d''entrée'!$C$334+'1 Données d''entrée'!$C$333+1+$B301,'1 Données d''entrée'!$C$332*($I293-SUM($C302:N302)),0))","v":0},{"$f":"IF(O243<1+$B301,0,IF(O243<'1 Données d''entrée'!$C$334+'1 Données d''entrée'!$C$333+1+$B301,'1 Données d''entrée'!$C$332*($I293-SUM($C302:O302)),0))","v":0},{"$f":"IF(P243<1+$B301,0,IF(P243<'1 Données d''entrée'!$C$334+'1 Données d''entrée'!$C$333+1+$B301,'1 Données d''entrée'!$C$332*($I293-SUM($C302:P302)),0))","v":0},{"$f":"IF(Q243<1+$B301,0,IF(Q243<'1 Données d''entrée'!$C$334+'1 Données d''entrée'!$C$333+1+$B301,'1 Données d''entrée'!$C$332*($I293-SUM($C302:Q302)),0))","v":0},{"$f":"IF(R243<1+$B301,0,IF(R243<'1 Données d''entrée'!$C$334+'1 Données d''entrée'!$C$333+1+$B301,'1 Données d''entrée'!$C$332*($I293-SUM($C302:R302)),0))","v":0},{"$f":"IF(S243<1+$B301,0,IF(S243<'1 Données d''entrée'!$C$334+'1 Données d''entrée'!$C$333+1+$B301,'1 Données d''entrée'!$C$332*($I293-SUM($C302:S302)),0))","v":0},{"$f":"IF(T243<1+$B301,0,IF(T243<'1 Données d''entrée'!$C$334+'1 Données d''entrée'!$C$333+1+$B301,'1 Données d''entrée'!$C$332*($I293-SUM($C302:T302)),0))","v":0},{"$f":"IF(U243<1+$B301,0,IF(U243<'1 Données d''entrée'!$C$334+'1 Données d''entrée'!$C$333+1+$B301,'1 Données d''entrée'!$C$332*($I293-SUM($C302:U302)),0))","v":0}]
["Paiement d'intêrets",8,0,{"$f":"IF(C243<1+$B302,0,IF(C243<'1 Données d''entrée'!$C$334+'1 Données d''entrée'!$C$333+1+$B302,'1 Données d''entrée'!$C$332*($J293-SUM($C303:C303)),0))","v":0},{"$f":"IF(D243<1+$B302,0,IF(D243<'1 Données d''entrée'!$C$334+'1 Données d''entrée'!$C$333+1+$B302,'1 Données d''entrée'!$C$332*($J293-SUM($C303:D303)),0))","v":0},{"$f":"IF(E243<1+$B302,0,IF(E243<'1 Données d''entrée'!$C$334+'1 Données d''entrée'!$C$333+1+$B302,'1 Données d''entrée'!$C$332*($J293-SUM($C303:E303)),0))","v":0},{"$f":"IF(F243<1+$B302,0,IF(F243<'1 Données d''entrée'!$C$334+'1 Données d''entrée'!$C$333+1+$B302,'1 Données d''entrée'!$C$332*($J293-SUM($C303:F303)),0))","v":0},{"$f":"IF(G243<1+$B302,0,IF(G243<'1 Données d''entrée'!$C$334+'1 Données d''entrée'!$C$333+1+$B302,'1 Données d''entrée'!$C$332*($J293-SUM($C303:G303)),0))","v":0},{"$f":"IF(H243<1+$B302,0,IF(H243<'1 Données d''entrée'!$C$334+'1 Données d''entrée'!$C$333+1+$B302,'1 Données d''entrée'!$C$332*($J293-SUM($C303:H303)),0))","v":0},{"$f":"IF(I243<1+$B302,0,IF(I243<'1 Données d''entrée'!$C$334+'1 Données d''entrée'!$C$333+1+$B302,'1 Données d''entrée'!$C$332*($J293-SUM($C303:I303)),0))","v":0},{"$f":"IF(J243<1+$B302,0,IF(J243<'1 Données d''entrée'!$C$334+'1 Données d''entrée'!$C$333+1+$B302,'1 Données d''entrée'!$C$332*($J293-SUM($C303:J303)),0))","v":0},{"$f":"IF(K243<1+$B302,0,IF(K243<'1 Données d''entrée'!$C$334+'1 Données d''entrée'!$C$333+1+$B302,'1 Données d''entrée'!$C$332*($J293-SUM($C303:K303)),0))","v":0},{"$f":"IF(L243<1+$B302,0,IF(L243<'1 Données d''entrée'!$C$334+'1 Données d''entrée'!$C$333+1+$B302,'1 Données d''entrée'!$C$332*($J293-SUM($C303:L303)),0))","v":0},{"$f":"IF(M243<1+$B302,0,IF(M243<'1 Données d''entrée'!$C$334+'1 Données d''entrée'!$C$333+1+$B302,'1 Données d''entrée'!$C$332*($J293-SUM($C303:M303)),0))","v":0},{"$f":"IF(N243<1+$B302,0,IF(N243<'1 Données d''entrée'!$C$334+'1 Données d''entrée'!$C$333+1+$B302,'1 Données d''entrée'!$C$332*($J293-SUM($C303:N303)),0))","v":0},{"$f":"IF(O243<1+$B302,0,IF(O243<'1 Données d''entrée'!$C$334+'1 Données d''entrée'!$C$333+1+$B302,'1 Données d''entrée'!$C$332*($J293-SUM($C303:O303)),0))","v":0},{"$f":"IF(P243<1+$B302,0,IF(P243<'1 Données d''entrée'!$C$334+'1 Données d''entrée'!$C$333+1+$B302,'1 Données d''entrée'!$C$332*($J293-SUM($C303:P303)),0))","v":0},{"$f":"IF(Q243<1+$B302,0,IF(Q243<'1 Données d''entrée'!$C$334+'1 Données d''entrée'!$C$333+1+$B302,'1 Données d''entrée'!$C$332*($J293-SUM($C303:Q303)),0))","v":0},{"$f":"IF(R243<1+$B302,0,IF(R243<'1 Données d''entrée'!$C$334+'1 Données d''entrée'!$C$333+1+$B302,'1 Données d''entrée'!$C$332*($J293-SUM($C303:R303)),0))","v":0},{"$f":"IF(S243<1+$B302,0,IF(S243<'1 Données d''entrée'!$C$334+'1 Données d''entrée'!$C$333+1+$B302,'1 Données d''entrée'!$C$332*($J293-SUM($C303:S303)),0))","v":0},{"$f":"IF(T243<1+$B302,0,IF(T243<'1 Données d''entrée'!$C$334+'1 Données d''entrée'!$C$333+1+$B302,'1 Données d''entrée'!$C$332*($J293-SUM($C303:T303)),0))","v":0},{"$f":"IF(U243<1+$B302,0,IF(U243<'1 Données d''entrée'!$C$334+'1 Données d''entrée'!$C$333+1+$B302,'1 Données d''entrée'!$C$332*($J293-SUM($C303:U303)),0))","v":0}]
["Paiement d'intêrets",9,0,{"$f":"IF(C243<1+$B303,0,IF(C243<'1 Données d''entrée'!$C$334+'1 Données d''entrée'!$C$333+1+$B303,'1 Données d''entrée'!$C$332*($K293-SUM($C304:C304)),0))","v":0},{"$f":"IF(D243<1+$B303,0,IF(D243<'1 Données d''entrée'!$C$334+'1 Données d''entrée'!$C$333+1+$B303,'1 Données d''entrée'!$C$332*($K293-SUM($C304:D304)),0))","v":0},{"$f":"IF(E243<1+$B303,0,IF(E243<'1 Données d''entrée'!$C$334+'1 Données d''entrée'!$C$333+1+$B303,'1 Données d''entrée'!$C$332*($K293-SUM($C304:E304)),0))","v":0},{"$f":"IF(F243<1+$B303,0,IF(F243<'1 Données d''entrée'!$C$334+'1 Données d''entrée'!$C$333+1+$B303,'1 Données d''entrée'!$C$332*($K293-SUM($C304:F304)),0))","v":0},{"$f":"IF(G243<1+$B303,0,IF(G243<'1 Données d''entrée'!$C$334+'1 Données d''entrée'!$C$333+1+$B303,'1 Données d''entrée'!$C$332*($K293-SUM($C304:G304)),0))","v":0},{"$f":"IF(H243<1+$B303,0,IF(H243<'1 Données d''entrée'!$C$334+'1 Données d''entrée'!$C$333+1+$B303,'1 Données d''entrée'!$C$332*($K293-SUM($C304:H304)),0))","v":0},{"$f":"IF(I243<1+$B303,0,IF(I243<'1 Données d''entrée'!$C$334+'1 Données d''entrée'!$C$333+1+$B303,'1 Données d''entrée'!$C$332*($K293-SUM($C304:I304)),0))","v":0},{"$f":"IF(J243<1+$B303,0,IF(J243<'1 Données d''entrée'!$C$334+'1 Données d''entrée'!$C$333+1+$B303,'1 Données d''entrée'!$C$332*($K293-SUM($C304:J304)),0))","v":0},{"$f":"IF(K243<1+$B303,0,IF(K243<'1 Données d''entrée'!$C$334+'1 Données d''entrée'!$C$333+1+$B303,'1 Données d''entrée'!$C$332*($K293-SUM($C304:K304)),0))","v":0},{"$f":"IF(L243<1+$B303,0,IF(L243<'1 Données d''entrée'!$C$334+'1 Données d''entrée'!$C$333+1+$B303,'1 Données d''entrée'!$C$332*($K293-SUM($C304:L304)),0))","v":0},{"$f":"IF(M243<1+$B303,0,IF(M243<'1 Données d''entrée'!$C$334+'1 Données d''entrée'!$C$333+1+$B303,'1 Données d''entrée'!$C$332*($K293-SUM($C304:M304)),0))","v":0},{"$f":"IF(N243<1+$B303,0,IF(N243<'1 Données d''entrée'!$C$334+'1 Données d''entrée'!$C$333+1+$B303,'1 Données d''entrée'!$C$332*($K293-SUM($C304:N304)),0))","v":0},{"$f":"IF(O243<1+$B303,0,IF(O243<'1 Données d''entrée'!$C$334+'1 Données d''entrée'!$C$333+1+$B303,'1 Données d''entrée'!$C$332*($K293-SUM($C304:O304)),0))","v":0},{"$f":"IF(P243<1+$B303,0,IF(P243<'1 Données d''entrée'!$C$334+'1 Données d''entrée'!$C$333+1+$B303,'1 Données d''entrée'!$C$332*($K293-SUM($C304:P304)),0))","v":0},{"$f":"IF(Q243<1+$B303,0,IF(Q243<'1 Données d''entrée'!$C$334+'1 Données d''entrée'!$C$333+1+$B303,'1 Données d''entrée'!$C$332*($K293-SUM($C304:Q304)),0))","v":0},{"$f":"IF(R243<1+$B303,0,IF(R243<'1 Données d''entrée'!$C$334+'1 Données d''entrée'!$C$333+1+$B303,'1 Données d''entrée'!$C$332*($K293-SUM($C304:R304)),0))","v":0},{"$f":"IF(S243<1+$B303,0,IF(S243<'1 Données d''entrée'!$C$334+'1 Données d''entrée'!$C$333+1+$B303,'1 Données d''entrée'!$C$332*($K293-SUM($C304:S304)),0))","v":0},{"$f":"IF(T243<1+$B303,0,IF(T243<'1 Données d''entrée'!$C$334+'1 Données d''entrée'!$C$333+1+$B303,'1 Données d''entrée'!$C$332*($K293-SUM($C304:T304)),0))","v":0},{"$f":"IF(U243<1+$B303,0,IF(U243<'1 Données d''entrée'!$C$334+'1 Données d''entrée'!$C$333+1+$B303,'1 Données d''entrée'!$C$332*($K293-SUM($C304:U304)),0))","v":0}]
["Paiement d'intêrets",10,0,{"$f":"IF(C243<1+$B304,0,IF(C243<'1 Données d''entrée'!$C$334+'1 Données d''entrée'!$C$333+1+$B304,'1 Données d''entrée'!$C$332*($L293-SUM($C305:C305)),0))","v":0},{"$f":"IF(D243<1+$B304,0,IF(D243<'1 Données d''entrée'!$C$334+'1 Données d''entrée'!$C$333+1+$B304,'1 Données d''entrée'!$C$332*($L293-SUM($C305:D305)),0))","v":0},{"$f":"IF(E243<1+$B304,0,IF(E243<'1 Données d''entrée'!$C$334+'1 Données d''entrée'!$C$333+1+$B304,'1 Données d''entrée'!$C$332*($L293-SUM($C305:E305)),0))","v":0},{"$f":"IF(F243<1+$B304,0,IF(F243<'1 Données d''entrée'!$C$334+'1 Données d''entrée'!$C$333+1+$B304,'1 Données d''entrée'!$C$332*($L293-SUM($C305:F305)),0))","v":0},{"$f":"IF(G243<1+$B304,0,IF(G243<'1 Données d''entrée'!$C$334+'1 Données d''entrée'!$C$333+1+$B304,'1 Données d''entrée'!$C$332*($L293-SUM($C305:G305)),0))","v":0},{"$f":"IF(H243<1+$B304,0,IF(H243<'1 Données d''entrée'!$C$334+'1 Données d''entrée'!$C$333+1+$B304,'1 Données d''entrée'!$C$332*($L293-SUM($C305:H305)),0))","v":0},{"$f":"IF(I243<1+$B304,0,IF(I243<'1 Données d''entrée'!$C$334+'1 Données d''entrée'!$C$333+1+$B304,'1 Données d''entrée'!$C$332*($L293-SUM($C305:I305)),0))","v":0},{"$f":"IF(J243<1+$B304,0,IF(J243<'1 Données d''entrée'!$C$334+'1 Données d''entrée'!$C$333+1+$B304,'1 Données d''entrée'!$C$332*($L293-SUM($C305:J305)),0))","v":0},{"$f":"IF(K243<1+$B304,0,IF(K243<'1 Données d''entrée'!$C$334+'1 Données d''entrée'!$C$333+1+$B304,'1 Données d''entrée'!$C$332*($L293-SUM($C305:K305)),0))","v":0},{"$f":"IF(L243<1+$B304,0,IF(L243<'1 Données d''entrée'!$C$334+'1 Données d''entrée'!$C$333+1+$B304,'1 Données d''entrée'!$C$332*($L293-SUM($C305:L305)),0))","v":0},{"$f":"IF(M243<1+$B304,0,IF(M243<'1 Données d''entrée'!$C$334+'1 Données d''entrée'!$C$333+1+$B304,'1 Données d''entrée'!$C$332*($L293-SUM($C305:M305)),0))","v":0},{"$f":"IF(N243<1+$B304,0,IF(N243<'1 Données d''entrée'!$C$334+'1 Données d''entrée'!$C$333+1+$B304,'1 Données d''entrée'!$C$332*($L293-SUM($C305:N305)),0))","v":0},{"$f":"IF(O243<1+$B304,0,IF(O243<'1 Données d''entrée'!$C$334+'1 Données d''entrée'!$C$333+1+$B304,'1 Données d''entrée'!$C$332*($L293-SUM($C305:O305)),0))","v":0},{"$f":"IF(P243<1+$B304,0,IF(P243<'1 Données d''entrée'!$C$334+'1 Données d''entrée'!$C$333+1+$B304,'1 Données d''entrée'!$C$332*($L293-SUM($C305:P305)),0))","v":0},{"$f":"IF(Q243<1+$B304,0,IF(Q243<'1 Données d''entrée'!$C$334+'1 Données d''entrée'!$C$333+1+$B304,'1 Données d''entrée'!$C$332*($L293-SUM($C305:Q305)),0))","v":0},{"$f":"IF(R243<1+$B304,0,IF(R243<'1 Données d''entrée'!$C$334+'1 Données d''entrée'!$C$333+1+$B304,'1 Données d''entrée'!$C$332*($L293-SUM($C305:R305)),0))","v":0},{"$f":"IF(S243<1+$B304,0,IF(S243<'1 Données d''entrée'!$C$334+'1 Données d''entrée'!$C$333+1+$B304,'1 Données d''entrée'!$C$332*($L293-SUM($C305:S305)),0))","v":0},{"$f":"IF(T243<1+$B304,0,IF(T243<'1 Données d''entrée'!$C$334+'1 Données d''entrée'!$C$333+1+$B304,'1 Données d''entrée'!$C$332*($L293-SUM($C305:T305)),0))","v":0},{"$f":"IF(U243<1+$B304,0,IF(U243<'1 Données d''entrée'!$C$334+'1 Données d''entrée'!$C$333+1+$B304,'1 Données d''entrée'!$C$332*($L293-SUM($C305:U305)),0))","v":0}]
[]
[null,"Période",1,2,3,4,5,6,7,8,9,10,11,12,13,14,15,16,17,18,19,20]
["Prêt bancaire additionnel- Option 2: Remboursement du principal final",{"$f":"'1 Données d''entrée'!$B$343","v":0}]
["Prêt(s) nouveau(x)",null,{"$f":"IF(C286<0,C286*(-1)*$B320+C286*(-1)*$B320*'1 Données d''entrée'!$C$338,0)","v":{"$error":"#DIV/0!"}},{"$f":"IF(D286<0,D286*(-1)*$B320+D286*(-1)*$B320*'1 Données d''entrée'!$C$338,0)","v":{"$error":"#DIV/0!"}},{"$f":"IF(E286<0,E286*(-1)*$B320+E286*(-1)*$B320*'1 Données d''entrée'!$C$338,0)","v":{"$error":"#DIV/0!"}},{"$f":"IF(F286<0,F286*(-1)*$B320+F286*(-1)*$B320*'1 Données d''entrée'!$C$338,0)","v":{"$error":"#DIV/0!"}},{"$f":"IF(G286<0,G286*(-1)*$B320+G286*(-1)*$B320*'1 Données d''entrée'!$C$338,0)","v":{"$error":"#DIV/0!"}},{"$f":"IF(H286<0,H286*(-1)*$B320+H286*(-1)*$B320*'1 Données d''entrée'!$C$338,0)","v":{"$error":"#DIV/0!"}},{"$f":"IF(I286<0,I286*(-1)*$B320+I286*(-1)*$B320*'1 Données d''entrée'!$C$338,0)","v":{"$error":"#DIV/0!"}},{"$f":"IF(J286<0,J286*(-1)*$B320+J286*(-1)*$B320*'1 Données d''entrée'!$C$338,0)","v":{"$error":"#DIV/0!"}},{"$f":"IF(K286<0,K286*(-1)*$B320+K286*(-1)*$B320*'1 Données d''entrée'!$C$338,0)","v":{"$error":"#DIV/0!"}},{"$f":"IF(L286<0,L286*(-1)*$B320+L286*(-1)*$B320*'1 Données d''entrée'!$C$338,0)","v":{"$error":"#DIV/0!"}},{"$f":"IF(M286<0,M286*(-1)*$B320+M286*(-1)*$B320*'1 Données d''entrée'!$C$338,0)","v":{"$error":"#DIV/0!"}},{"$f":"IF(N286<0,N286*(-1)*$B320+N286*(-1)*$B320*'1 Données d''entrée'!$C$338,0)","v":{"$error":"#DIV/0!"}},{"$f":"IF(O286<0,O286*(-1)*$B320+O286*(-1)*$B320*'1 Données d''entrée'!$C$338,0)","v":{"$error":"#DIV/0!"}},{"$f":"IF(P286<0,P286*(-1)*$B320+P286*(-1)*$B320*'1 Données d''entrée'!$C$338,0)","v":{"$error":"#DIV/0!"}},{"$f":"IF(Q286<0,Q286*(-1)*$B320+Q286*(-1)*$B320*'1 Données d''entrée'!$C$338,0)","v":{"$error":"#DIV/0!"}},{"$f":"IF(R286<0,R286*(-1)*$B320+R286*(-1)*$B320*'1 Données d''entrée'!$C$338,0)","v":{"$error":"#DIV/0!"}},{"$f":"IF(S286<0,S286*(-1)*$B320+S286*(-1)*$B320*'1 Données d''entrée'!$C$338,0)","v":{"$error":"#DIV/0!"}},{"$f":"IF(T286<0,T286*(-1)*$B320+T286*(-1)*$B320*'1 Données d''entrée'!$C$338,0)","v":{"$error":"#DIV/0!"}},{"$f":"IF(U286<0,U286*(-1)*$B320+U286*(-1)*$B320*'1 Données d''entrée'!$C$338,0)","v":{"$error":"#DIV/0!"}},{"$f":"IF(V286<0,V286*(-1)*$B320+V286*(-1)*$B320*'1 Données d''entrée'!$C$338,0)","v":{"$error":"#DIV/0!"}}]
[null,"Période de prêt nouveau"]
["Remboursement du principal",0,0,0,0,0,0,0,0,0,0,0,0,0,0,0,0,0,0,0,0,0]
[null,1,{"$f":"IF(C319='1 Données d''entrée'!$C$333+'1 Données d''entrée'!$C$334+$B324,$C321,0)","v":{"$error":"#DIV/0!"}},{"$f":"IF(D319='1 Données d''entrée'!$C$333+'1 Données d''entrée'!$C$334+$B324,$C321,0)","v":0},{"$f":"IF(E319='1 Données d''entrée'!$C$333+'1 Données d''entrée'!$C$334+$B324,$C321,0)","v":0},{"$f":"IF(F319='1 Données d''entrée'!$C$333+'1 Données d''entrée'!$C$334+$B324,$C321,0)","v":0},{"$f":"IF(G319='1 Données d''entrée'!$C$333+'1 Données d''entrée'!$C$334+$B324,$C321,0)","v":0},{"$f":"IF(H319='1 Données d''entrée'!$C$333+'1 Données d''entrée'!$C$334+$B324,$C321,0)","v":0},{"$f":"IF(I319='1 Données d''entrée'!$C$333+'1 Données d''entrée'!$C$334+$B324,$C321,0)","v":0},{"$f":"IF(J319='1 Données d''entrée'!$C$333+'1 Données d''entrée'!$C$334+$B324,$C321,0)","v":0},{"$f":"IF(K319='1 Données d''entrée'!$C$333+'1 Données d''entrée'!$C$334+$B324,$C321,0)","v":0},{"$f":"IF(L319='1 Données d''entrée'!$C$333+'1 Données d''entrée'!$C$334+$B324,$C321,0)","v":0},{"$f":"IF(M319='1 Données d''entrée'!$C$333+'1 Données d''entrée'!$C$334+$B324,$C321,0)","v":0},{"$f":"IF(N319='1 Données d''entrée'!$C$333+'1 Données d''entrée'!$C$334+$B324,$C321,0)","v":0},{"$f":"IF(O319='1 Données d''entrée'!$C$333+'1 Données d''entrée'!$C$334+$B324,$C321,0)","v":0},{"$f":"IF(P319='1 Données d''entrée'!$C$333+'1 Données d''entrée'!$C$334+$B324,$C321,0)","v":0},{"$f":"IF(Q319='1 Données d''entrée'!$C$333+'1 Données d''entrée'!$C$334+$B324,$C321,0)","v":0},{"$f":"IF(R319='1 Données d''entrée'!$C$333+'1 Données d''entrée'!$C$334+$B324,$C321,0)","v":0},{"$f":"IF(S319='1 Données d''entrée'!$C$333+'1 Données d''entrée'!$C$334+$B324,$C321,0)","v":0},{"$f":"IF(T319='1 Données d''entrée'!$C$333+'1 Données d''entrée'!$C$334+$B324,$C321,0)","v":0},{"$f":"IF(U319='1 Données d''entrée'!$C$333+'1 Données d''entrée'!$C$334+$B324,$C321,0)","v":0},{"$f":"IF(V319='1 Données d''entrée'!$C$333+'1 Données d''entrée'!$C$334+$B324,$C321,0)","v":0}]
[null,2,{"$f":"IF(C319='1 Données d''entrée'!$C$333+'1 Données d''entrée'!$C$334+$B325,$D321,0)","v":0},{"$f":"IF(D319='1 Données d''entrée'!$C$333+'1 Données d''entrée'!$C$334+$B325,$D321,0)","v":{"$error":"#DIV/0!"}},{"$f":"IF(E319='1 Données d''entrée'!$C$333+'1 Données d''entrée'!$C$334+$B325,$D321,0)","v":0},{"$f":"IF(F319='1 Données d''entrée'!$C$333+'1 Données d''entrée'!$C$334+$B325,$D321,0)","v":0},{"$f":"IF(G319='1 Données d''entrée'!$C$333+'1 Données d''entrée'!$C$334+$B325,$D321,0)","v":0},{"$f":"IF(H319='1 Données d''entrée'!$C$333+'1 Données d''entrée'!$C$334+$B325,$D321,0)","v":0},{"$f":"IF(I319='1 Données d''entrée'!$C$333+'1 Données d''entrée'!$C$334+$B325,$D321,0)","v":0},{"$f":"IF(J319='1 Données d''entrée'!$C$333+'1 Données d''entrée'!$C$334+$B325,$D321,0)","v":0},{"$f":"IF(K319='1 Données d''entrée'!$C$333+'1 Données d''entrée'!$C$334+$B325,$D321,0)","v":0},{"$f":"IF(L319='1 Données d''entrée'!$C$333+'1 Données d''entrée'!$C$334+$B325,$D321,0)","v":0},{"$f":"IF(M319='1 Données d''entrée'!$C$333+'1 Données d''entrée'!$C$334+$B325,$D321,0)","v":0},{"$f":"IF(N319='1 Données d''entrée'!$C$333+'1 Données d''entrée'!$C$334+$B325,$D321,0)","v":0},{"$f":"IF(O319='1 Données d''entrée'!$C$333+'1 Données d''entrée'!$C$334+$B325,$D321,0)","v":0},{"$f":"IF(P319='1 Données d''entrée'!$C$333+'1 Données d''entrée'!$C$334+$B325,$D321,0)","v":0},{"$f":"IF(Q319='1 Données d''entrée'!$C$333+'1 Données d''entrée'!$C$334+$B325,$D321,0)","v":0},{"$f":"IF(R319='1 Données d''entrée'!$C$333+'1 Données d''entrée'!$C$334+$B325,$D321,0)","v":0},{"$f":"IF(S319='1 Données d''entrée'!$C$333+'1 Données d''entrée'!$C$334+$B325,$D321,0)","v":0},{"$f":"IF(T319='1 Données d''entrée'!$C$333+'1 Données d''entrée'!$C$334+$B325,$D321,0)","v":0},{"$f":"IF(U319='1 Données d''entrée'!$C$333+'1 Données d''entrée'!$C$334+$B325,$D321,0)","v":0},{"$f":"IF(V319='1 Données d''entrée'!$C$333+'1 Données d''entrée'!$C$334+$B325,$D321,0)","v":0}]
[null,3,{"$f":"IF(C319='1 Données d''entrée'!$C$333+'1 Données d''entrée'!$C$334+$B326,$E321,0)","v":0},{"$f":"IF(D319='1 Données d''entrée'!$C$333+'1 Données d''entrée'!$C$334+$B326,$E321,0)","v":0},{"$f":"IF(E319='1 Données d''entrée'!$C$333+'1 Données d''entrée'!$C$334+$B326,$E321,0)","v":{"$error":"#DIV/0!"}},{"$f":"IF(F319='1 Données d''entrée'!$C$333+'1 Données d''entrée'!$C$334+$B326,$E321,0)","v":0},{"$f":"IF(G319='1 Données d''entrée'!$C$333+'1 Données d''entrée'!$C$334+$B326,$E321,0)","v":0},{"$f":"IF(H319='1 Données d''entrée'!$C$333+'1 Données d''entrée'!$C$334+$B326,$E321,0)","v":0},{"$f":"IF(I319='1 Données d''entrée'!$C$333+'1 Données d''entrée'!$C$334+$B326,$E321,0)","v":0},{"$f":"IF(J319='1 Données d''entrée'!$C$333+'1 Données d''entrée'!$C$334+$B326,$E321,0)","v":0},{"$f":"IF(K319='1 Données d''entrée'!$C$333+'1 Données d''entrée'!$C$334+$B326,$E321,0)","v":0},{"$f":"IF(L319='1 Données d''entrée'!$C$333+'1 Données d''entrée'!$C$334+$B326,$E321,0)","v":0},{"$f":"IF(M319='1 Données d''entrée'!$C$333+'1 Données d''entrée'!$C$334+$B326,$E321,0)","v":0},{"$f":"IF(N319='1 Données d''entrée'!$C$333+'1 Données d''entrée'!$C$334+$B326,$E321,0)","v":0},{"$f":"IF(O319='1 Données d''entrée'!$C$333+'1 Données d''entrée'!$C$334+$B326,$E321,0)","v":0},{"$f":"IF(P319='1 Données d''entrée'!$C$333+'1 Données d''entrée'!$C$334+$B326,$E321,0)","v":0},{"$f":"IF(Q319='1 Données d''entrée'!$C$333+'1 Données d''entrée'!$C$334+$B326,$E321,0)","v":0},{"$f":"IF(R319='1 Données d''entrée'!$C$333+'1 Données d''entrée'!$C$334+$B326,$E321,0)","v":0},{"$f":"IF(S319='1 Données d''entrée'!$C$333+'1 Données d''entrée'!$C$334+$B326,$E321,0)","v":0},{"$f":"IF(T319='1 Données d''entrée'!$C$333+'1 Données d''entrée'!$C$334+$B326,$E321,0)","v":0},{"$f":"IF(U319='1 Données d''entrée'!$C$333+'1 Données d''entrée'!$C$334+$B326,$E321,0)","v":0},{"$f":"IF(V319='1 Données d''entrée'!$C$333+'1 Données d''entrée'!$C$334+$B326,$E321,0)","v":0}]
[null,4,{"$f":"IF(C319='1 Données d''entrée'!$C$333+'1 Données d''entrée'!$C$334+$B327,$F321,0)","v":0},{"$f":"IF(D319='1 Données d''entrée'!$C$333+'1 Données d''entrée'!$C$334+$B327,$F321,0)","v":0},{"$f":"IF(E319='1 Données d''entrée'!$C$333+'1 Données d''entrée'!$C$334+$B327,$F321,0)","v":0},{"$f":"IF(F319='1 Données d''entrée'!$C$333+'1 Données d''entrée'!$C$334+$B327,$F321,0)","v":{"$error":"#DIV/0!"}},{"$f":"IF(G319='1 Données d''entrée'!$C$333+'1 Données d''entrée'!$C$334+$B327,$F321,0)","v":0},{"$f":"IF(H319='1 Données d''entrée'!$C$333+'1 Données d''entrée'!$C$334+$B327,$F321,0)","v":0},{"$f":"IF(I319='1 Données d''entrée'!$C$333+'1 Données d''entrée'!$C$334+$B327,$F321,0)","v":0},{"$f":"IF(J319='1 Données d''entrée'!$C$333+'1 Données d''entrée'!$C$334+$B327,$F321,0)","v":0},{"$f":"IF(K319='1 Données d''entrée'!$C$333+'1 Données d''entrée'!$C$334+$B327,$F321,0)","v":0},{"$f":"IF(L319='1 Données d''entrée'!$C$333+'1 Données d''entrée'!$C$334+$B327,$F321,0)","v":0},{"$f":"IF(M319='1 Données d''entrée'!$C$333+'1 Données d''entrée'!$C$334+$B327,$F321,0)","v":0},{"$f":"IF(N319='1 Données d''entrée'!$C$333+'1 Données d''entrée'!$C$334+$B327,$F321,0)","v":0},{"$f":"IF(O319='1 Données d''entrée'!$C$333+'1 Données d''entrée'!$C$334+$B327,$F321,0)","v":0},{"$f":"IF(P319='1 Données d''entrée'!$C$333+'1 Données d''entrée'!$C$334+$B327,$F321,0)","v":0},{"$f":"IF(Q319='1 Données d''entrée'!$C$333+'1 Données d''entrée'!$C$334+$B327,$F321,0)","v":0},{"$f":"IF(R319='1 Données d''entrée'!$C$333+'1 Données d''entrée'!$C$334+$B327,$F321,0)","v":0},{"$f":"IF(S319='1 Données d''entrée'!$C$333+'1 Données d''entrée'!$C$334+$B327,$F321,0)","v":0},{"$f":"IF(T319='1 Données d''entrée'!$C$333+'1 Données d''entrée'!$C$334+$B327,$F321,0)","v":0},{"$f":"IF(U319='1 Données d''entrée'!$C$333+'1 Données d''entrée'!$C$334+$B327,$F321,0)","v":0},{"$f":"IF(V319='1 Données d''entrée'!$C$333+'1 Données d''entrée'!$C$334+$B327,$F321,0)","v":0}]
[null,5,{"$f":"IF(C319='1 Données d''entrée'!$C$333+'1 Données d''entrée'!$C$334+$B328,$G321,0)","v":0},{"$f":"IF(D319='1 Données d''entrée'!$C$333+'1 Données d''entrée'!$C$334+$B328,$G321,0)","v":0},{"$f":"IF(E319='1 Données d''entrée'!$C$333+'1 Données d''entrée'!$C$334+$B328,$G321,0)","v":0},{"$f":"IF(F319='1 Données d''entrée'!$C$333+'1 Données d''entrée'!$C$334+$B328,$G321,0)","v":0},{"$f":"IF(G319='1 Données d''entrée'!$C$333+'1 Données d''entrée'!$C$334+$B328,$G321,0)","v":{"$error":"#DIV/0!"}},{"$f":"IF(H319='1 Données d''entrée'!$C$333+'1 Données d''entrée'!$C$334+$B328,$G321,0)","v":0},{"$f":"IF(I319='1 Données d''entrée'!$C$333+'1 Données d''entrée'!$C$334+$B328,$G321,0)","v":0},{"$f":"IF(J319='1 Données d''entrée'!$C$333+'1 Données d''entrée'!$C$334+$B328,$G321,0)","v":0},{"$f":"IF(K319='1 Données d''entrée'!$C$333+'1 Données d''entrée'!$C$334+$B328,$G321,0)","v":0},{"$f":"IF(L319='1 Données d''entrée'!$C$333+'1 Données d''entrée'!$C$334+$B328,$G321,0)","v":0},{"$f":"IF(M319='1 Données d''entrée'!$C$333+'1 Données d''entrée'!$C$334+$B328,$G321,0)","v":0},{"$f":"IF(N319='1 Données d''entrée'!$C$333+'1 Données d''entrée'!$C$334+$B328,$G321,0)","v":0},{"$f":"IF(O319='1 Données d''entrée'!$C$333+'1 Données d''entrée'!$C$334+$B328,$G321,0)","v":0},{"$f":"IF(P319='1 Données d''entrée'!$C$333+'1 Données d''entrée'!$C$334+$B328,$G321,0)","v":0},{"$f":"IF(Q319='1 Données d''entrée'!$C$333+'1 Données d''entrée'!$C$334+$B328,$G321,0)","v":0},{"$f":"IF(R319='1 Données d''entrée'!$C$333+'1 Données d''entrée'!$C$334+$B328,$G321,0)","v":0},{"$f":"IF(S319='1 Données d''entrée'!$C$333+'1 Données d''entrée'!$C$334+$B328,$G321,0)","v":0},{"$f":"IF(T319='1 Données d''entrée'!$C$333+'1 Données d''entrée'!$C$334+$B328,$G321,0)","v":0},{"$f":"IF(U319='1 Données d''entrée'!$C$333+'1 Données d''entrée'!$C$334+$B328,$G321,0)","v":0},{"$f":"IF(V319='1 Données d''entrée'!$C$333+'1 Données d''entrée'!$C$334+$B328,$G321,0)","v":0}]
[null,6,{"$f":"IF(C319='1 Données d''entrée'!$C$333+'1 Données d''entrée'!$C$334+$B329,$H321,0)","v":0},{"$f":"IF(D319='1 Données d''entrée'!$C$333+'1 Données d''entrée'!$C$334+$B329,$H321,0)","v":0},{"$f":"IF(E319='1 Données d''entrée'!$C$333+'1 Données d''entrée'!$C$334+$B329,$H321,0)","v":0},{"$f":"IF(F319='1 Données d''entrée'!$C$333+'1 Données d''entrée'!$C$334+$B329,$H321,0)","v":0},{"$f":"IF(G319='1 Données d''entrée'!$C$333+'1 Données d''entrée'!$C$334+$B329,$H321,0)","v":0},{"$f":"IF(H319='1 Données d''entrée'!$C$333+'1 Données d''entrée'!$C$334+$B329,$H321,0)","v":{"$error":"#DIV/0!"}},{"$f":"IF(I319='1 Données d''entrée'!$C$333+'1 Données d''entrée'!$C$334+$B329,$H321,0)","v":0},{"$f":"IF(J319='1 Données d''entrée'!$C$333+'1 Données d''entrée'!$C$334+$B329,$H321,0)","v":0},{"$f":"IF(K319='1 Données d''entrée'!$C$333+'1 Données d''entrée'!$C$334+$B329,$H321,0)","v":0},{"$f":"IF(L319='1 Données d''entrée'!$C$333+'1 Données d''entrée'!$C$334+$B329,$H321,0)","v":0},{"$f":"IF(M319='1 Données d''entrée'!$C$333+'1 Données d''entrée'!$C$334+$B329,$H321,0)","v":0},{"$f":"IF(N319='1 Données d''entrée'!$C$333+'1 Données d''entrée'!$C$334+$B329,$H321,0)","v":0},{"$f":"IF(O319='1 Données d''entrée'!$C$333+'1 Données d''entrée'!$C$334+$B329,$H321,0)","v":0},{"$f":"IF(P319='1 Données d''entrée'!$C$333+'1 Données d''entrée'!$C$334+$B329,$H321,0)","v":0},{"$f":"IF(Q319='1 Données d''entrée'!$C$333+'1 Données d''entrée'!$C$334+$B329,$H321,0)","v":0},{"$f":"IF(R319='1 Données d''entrée'!$C$333+'1 Données d''entrée'!$C$334+$B329,$H321,0)","v":0},{"$f":"IF(S319='1 Données d''entrée'!$C$333+'1 Données d''entrée'!$C$334+$B329,$H321,0)","v":0},{"$f":"IF(T319='1 Données d''entrée'!$C$333+'1 Données d''entrée'!$C$334+$B329,$H321,0)","v":0},{"$f":"IF(U319='1 Données d''entrée'!$C$333+'1 Données d''entrée'!$C$334+$B329,$H321,0)","v":0},{"$f":"IF(V319='1 Données d''entrée'!$C$333+'1 Données d''entrée'!$C$334+$B329,$H321,0)","v":0}]
[null,7,{"$f":"IF(C319='1 Données d''entrée'!$C$333+'1 Données d''entrée'!$C$334+$B330,$I321,0)","v":0},{"$f":"IF(D319='1 Données d''entrée'!$C$333+'1 Données d''entrée'!$C$334+$B330,$I321,0)","v":0},{"$f":"IF(E319='1 Données d''entrée'!$C$333+'1 Données d''entrée'!$C$334+$B330,$I321,0)","v":0},{"$f":"IF(F319='1 Données d''entrée'!$C$333+'1 Données d''entrée'!$C$334+$B330,$I321,0)","v":0},{"$f":"IF(G319='1 Données d''entrée'!$C$333+'1 Données d''entrée'!$C$334+$B330,$I321,0)","v":0},{"$f":"IF(H319='1 Données d''entrée'!$C$333+'1 Données d''entrée'!$C$334+$B330,$I321,0)","v":0},{"$f":"IF(I319='1 Données d''entrée'!$C$333+'1 Données d''entrée'!$C$334+$B330,$I321,0)","v":{"$error":"#DIV/0!"}},{"$f":"IF(J319='1 Données d''entrée'!$C$333+'1 Données d''entrée'!$C$334+$B330,$I321,0)","v":0},{"$f":"IF(K319='1 Données d''entrée'!$C$333+'1 Données d''entrée'!$C$334+$B330,$I321,0)","v":0},{"$f":"IF(L319='1 Données d''entrée'!$C$333+'1 Données d''entrée'!$C$334+$B330,$I321,0)","v":0},{"$f":"IF(M319='1 Données d''entrée'!$C$333+'1 Données d''entrée'!$C$334+$B330,$I321,0)","v":0},{"$f":"IF(N319='1 Données d''entrée'!$C$333+'1 Données d''entrée'!$C$334+$B330,$I321,0)","v":0},{"$f":"IF(O319='1 Données d''entrée'!$C$333+'1 Données d''entrée'!$C$334+$B330,$I321,0)","v":0},{"$f":"IF(P319='1 Données d''entrée'!$C$333+'1 Données d''entrée'!$C$334+$B330,$I321,0)","v":0},{"$f":"IF(Q319='1 Données d''entrée'!$C$333+'1 Données d''entrée'!$C$334+$B330,$I321,0)","v":0},{"$f":"IF(R319='1 Données d''entrée'!$C$333+'1 Données d''entrée'!$C$334+$B330,$I321,0)","v":0},{"$f":"IF(S319='1 Données d''entrée'!$C$333+'1 Données d''entrée'!$C$334+$B330,$I321,0)","v":0},{"$f":"IF(T319='1 Données d''entrée'!$C$333+'1 Données d''entrée'!$C$334+$B330,$I321,0)","v":0},{"$f":"IF(U319='1 Données d''entrée'!$C$333+'1 Données d''entrée'!$C$334+$B330,$I321,0)","v":0},{"$f":"IF(V319='1 Données d''entrée'!$C$333+'1 Données d''entrée'!$C$334+$B330,$I321,0)","v":0}]
[null,8,{"$f":"IF(C319='1 Données d''entrée'!$C$333+'1 Données d''entrée'!$C$334+$B331,$J321,0)","v":0},{"$f":"IF(D319='1 Données d''entrée'!$C$333+'1 Données d''entrée'!$C$334+$B331,$J321,0)","v":0},{"$f":"IF(E319='1 Données d''entrée'!$C$333+'1 Données d''entrée'!$C$334+$B331,$J321,0)","v":0},{"$f":"IF(F319='1 Données d''entrée'!$C$333+'1 Données d''entrée'!$C$334+$B331,$J321,0)","v":0},{"$f":"IF(G319='1 Données d''entrée'!$C$333+'1 Données d''entrée'!$C$334+$B331,$J321,0)","v":0},{"$f":"IF(H319='1 Données d''entrée'!$C$333+'1 Données d''entrée'!$C$334+$B331,$J321,0)","v":0},{"$f":"IF(I319='1 Données d''entrée'!$C$333+'1 Données d''entrée'!$C$334+$B331,$J321,0)","v":0},{"$f":"IF(J319='1 Données d''entrée'!$C$333+'1 Données d''entrée'!$C$334+$B331,$J321,0)","v":{"$error":"#DIV/0!"}},{"$f":"IF(K319='1 Données d''entrée'!$C$333+'1 Données d''entrée'!$C$334+$B331,$J321,0)","v":0},{"$f":"IF(L319='1 Données d''entrée'!$C$333+'1 Données d''entrée'!$C$334+$B331,$J321,0)","v":0},{"$f":"IF(M319='1 Données d''entrée'!$C$333+'1 Données d''entrée'!$C$334+$B331,$J321,0)","v":0},{"$f":"IF(N319='1 Données d''entrée'!$C$333+'1 Données d''entrée'!$C$334+$B331,$J321,0)","v":0},{"$f":"IF(O319='1 Données d''entrée'!$C$333+'1 Données d''entrée'!$C$334+$B331,$J321,0)","v":0},{"$f":"IF(P319='1 Données d''entrée'!$C$333+'1 Données d''entrée'!$C$334+$B331,$J321,0)","v":0},{"$f":"IF(Q319='1 Données d''entrée'!$C$333+'1 Données d''entrée'!$C$334+$B331,$J321,0)","v":0},{"$f":"IF(R319='1 Données d''entrée'!$C$333+'1 Données d''entrée'!$C$334+$B331,$J321,0)","v":0},{"$f":"IF(S319='1 Données d''entrée'!$C$333+'1 Données d''entrée'!$C$334+$B331,$J321,0)","v":0},{"$f":"IF(T319='1 Données d''entrée'!$C$333+'1 Données d''entrée'!$C$334+$B331,$J321,0)","v":0},{"$f":"IF(U319='1 Données d''entrée'!$C$333+'1 Données d''entrée'!$C$334+$B331,$J321,0)","v":0},{"$f":"IF(V319='1 Données d''entrée'!$C$333+'1 Données d''entrée'!$C$334+$B331,$J321,0)","v":0}]
[null,9,{"$f":"IF(C319='1 Données d''entrée'!$C$333+'1 Données d''entrée'!$C$334+$B332,$K321,0)","v":0},{"$f":"IF(D319='1 Données d''entrée'!$C$333+'1 Données d''entrée'!$C$334+$B332,$K321,0)","v":0},{"$f":"IF(E319='1 Données d''entrée'!$C$333+'1 Données d''entrée'!$C$334+$B332,$K321,0)","v":0},{"$f":"IF(F319='1 Données d''entrée'!$C$333+'1 Données d''entrée'!$C$334+$B332,$K321,0)","v":0},{"$f":"IF(G319='1 Données d''entrée'!$C$333+'1 Données d''entrée'!$C$334+$B332,$K321,0)","v":0},{"$f":"IF(H319='1 Données d''entrée'!$C$333+'1 Données d''entrée'!$C$334+$B332,$K321,0)","v":0},{"$f":"IF(I319='1 Données d''entrée'!$C$333+'1 Données d''entrée'!$C$334+$B332,$K321,0)","v":0},{"$f":"IF(J319='1 Données d''entrée'!$C$333+'1 Données d''entrée'!$C$334+$B332,$K321,0)","v":0},{"$f":"IF(K319='1 Données d''entrée'!$C$333+'1 Données d''entrée'!$C$334+$B332,$K321,0)","v":{"$error":"#DIV/0!"}},{"$f":"IF(L319='1 Données d''entrée'!$C$333+'1 Données d''entrée'!$C$334+$B332,$K321,0)","v":0},{"$f":"IF(M319='1 Données d''entrée'!$C$333+'1 Données d''entrée'!$C$334+$B332,$K321,0)","v":0},{"$f":"IF(N319='1 Données d''entrée'!$C$333+'1 Données d''entrée'!$C$334+$B332,$K321,0)","v":0},{"$f":"IF(O319='1 Données d''entrée'!$C$333+'1 Données d''entrée'!$C$334+$B332,$K321,0)","v":0},{"$f":"IF(P319='1 Données d''entrée'!$C$333+'1 Données d''entrée'!$C$334+$B332,$K321,0)","v":0},{"$f":"IF(Q319='1 Données d''entrée'!$C$333+'1 Données d''entrée'!$C$334+$B332,$K321,0)","v":0},{"$f":"IF(R319='1 Données d''entrée'!$C$333+'1 Données d''entrée'!$C$334+$B332,$K321,0)","v":0},{"$f":"IF(S319='1 Données d''entrée'!$C$333+'1 Données d''entrée'!$C$334+$B332,$K321,0)","v":0},{"$f":"IF(T319='1 Données d''entrée'!$C$333+'1 Données d''entrée'!$C$334+$B332,$K321,0)","v":0},{"$f":"IF(U319='1 Données d''entrée'!$C$333+'1 Données d''entrée'!$C$334+$B332,$K321,0)","v":0},{"$f":"IF(V319='1 Données d''entrée'!$C$333+'1 Données d''entrée'!$C$334+$B332,$K321,0)","v":0}]
[null,10,{"$f":"IF(C319='1 Données d''entrée'!$C$333+'1 Données d''entrée'!$C$334+$B333,$L321,0)","v":0},{"$f":"IF(D319='1 Données d''entrée'!$C$333+'1 Données d''entrée'!$C$334+$B333,$L321,0)","v":0},{"$f":"IF(E319='1 Données d''entrée'!$C$333+'1 Données d''entrée'!$C$334+$B333,$L321,0)","v":0},{"$f":"IF(F319='1 Données d''entrée'!$C$333+'1 Données d''entrée'!$C$334+$B333,$L321,0)","v":0},{"$f":"IF(G319='1 Données d''entrée'!$C$333+'1 Données d''entrée'!$C$334+$B333,$L321,0)","v":0},{"$f":"IF(H319='1 Données d''entrée'!$C$333+'1 Données d''entrée'!$C$334+$B333,$L321,0)","v":0},{"$f":"IF(I319='1 Données d''entrée'!$C$333+'1 Données d''entrée'!$C$334+$B333,$L321,0)","v":0},{"$f":"IF(J319='1 Données d''entrée'!$C$333+'1 Données d''entrée'!$C$334+$B333,$L321,0)","v":0},{"$f":"IF(K319='1 Données d''entrée'!$C$333+'1 Données d''entrée'!$C$334+$B333,$L321,0)","v":0},{"$f":"IF(L319='1 Données d''entrée'!$C$333+'1 Données d''entrée'!$C$334+$B333,$L321,0)","v":{"$error":"#DIV/0!"}},{"$f":"IF(M319='1 Données d''entrée'!$C$333+'1 Données d''entrée'!$C$334+$B333,$L321,0)","v":0},{"$f":"IF(N319='1 Données d''entrée'!$C$333+'1 Données d''entrée'!$C$334+$B333,$L321,0)","v":0},{"$f":"IF(O319='1 Données d''entrée'!$C$333+'1 Données d''entrée'!$C$334+$B333,$L321,0)","v":0},{"$f":"IF(P319='1 Données d''entrée'!$C$333+'1 Données d''entrée'!$C$334+$B333,$L321,0)","v":0},{"$f":"IF(Q319='1 Données d''entrée'!$C$333+'1 Données d''entrée'!$C$334+$B333,$L321,0)","v":0},{"$f":"IF(R319='1 Données d''entrée'!$C$333+'1 Données d''entrée'!$C$334+$B333,$L321,0)","v":0},{"$f":"IF(S319='1 Données d''entrée'!$C$333+'1 Données d''entrée'!$C$334+$B333,$L321,0)","v":0},{"$f":"IF(T319='1 Données d''entrée'!$C$333+'1 Données d''entrée'!$C$334+$B333,$L321,0)","v":0},{"$f":"IF(U319='1 Données d''entrée'!$C$333+'1 Données d''entrée'!$C$334+$B333,$L321,0)","v":0},{"$f":"IF(V319='1 Données d''entrée'!$C$333+'1 Données d''entrée'!$C$334+$B333,$L321,0)","v":0}]
[null,"Période de prêt nouveau"]
["Paiement d'intérêts",0,0,0,0,0,0,0,0,0,0,0,0,0,0,0,0,0,0,0,0,0]
["Paiement d'intêrets",1,0,{"$f":"IF(C243<1+$B323,0,IF(C243<'1 Données d''entrée'!$C$334+'1 Données d''entrée'!$C$333+1+$B323,'1 Données d''entrée'!$C$332*($C321-SUM($C324:C324)),0))","v":0},{"$f":"IF(D243<1+$B323,0,IF(D243<'1 Données d''entrée'!$C$334+'1 Données d''entrée'!$C$333+1+$B323,'1 Données d''entrée'!$C$332*($C321-SUM($C324:D324)),0))","v":0},{"$f":"IF(E243<1+$B323,0,IF(E243<'1 Données d''entrée'!$C$334+'1 Données d''entrée'!$C$333+1+$B323,'1 Données d''entrée'!$C$332*($C321-SUM($C324:E324)),0))","v":0},{"$f":"IF(F243<1+$B323,0,IF(F243<'1 Données d''entrée'!$C$334+'1 Données d''entrée'!$C$333+1+$B323,'1 Données d''entrée'!$C$332*($C321-SUM($C324:F324)),0))","v":0},{"$f":"IF(G243<1+$B323,0,IF(G243<'1 Données d''entrée'!$C$334+'1 Données d''entrée'!$C$333+1+$B323,'1 Données d''entrée'!$C$332*($C321-SUM($C324:G324)),0))","v":0},{"$f":"IF(H243<1+$B323,0,IF(H243<'1 Données d''entrée'!$C$334+'1 Données d''entrée'!$C$333+1+$B323,'1 Données d''entrée'!$C$332*($C321-SUM($C324:H324)),0))","v":0},{"$f":"IF(I243<1+$B323,0,IF(I243<'1 Données d''entrée'!$C$334+'1 Données d''entrée'!$C$333+1+$B323,'1 Données d''entrée'!$C$332*($C321-SUM($C324:I324)),0))","v":0},{"$f":"IF(J243<1+$B323,0,IF(J243<'1 Données d''entrée'!$C$334+'1 Données d''entrée'!$C$333+1+$B323,'1 Données d''entrée'!$C$332*($C321-SUM($C324:J324)),0))","v":0},{"$f":"IF(K243<1+$B323,0,IF(K243<'1 Données d''entrée'!$C$334+'1 Données d''entrée'!$C$333+1+$B323,'1 Données d''entrée'!$C$332*($C321-SUM($C324:K324)),0))","v":0},{"$f":"IF(L243<1+$B323,0,IF(L243<'1 Données d''entrée'!$C$334+'1 Données d''entrée'!$C$333+1+$B323,'1 Données d''entrée'!$C$332*($C321-SUM($C324:L324)),0))","v":0},{"$f":"IF(M243<1+$B323,0,IF(M243<'1 Données d''entrée'!$C$334+'1 Données d''entrée'!$C$333+1+$B323,'1 Données d''entrée'!$C$332*($C321-SUM($C324:M324)),0))","v":0},{"$f":"IF(N243<1+$B323,0,IF(N243<'1 Données d''entrée'!$C$334+'1 Données d''entrée'!$C$333+1+$B323,'1 Données d''entrée'!$C$332*($C321-SUM($C324:N324)),0))","v":0},{"$f":"IF(O243<1+$B323,0,IF(O243<'1 Données d''entrée'!$C$334+'1 Données d''entrée'!$C$333+1+$B323,'1 Données d''entrée'!$C$332*($C321-SUM($C324:O324)),0))","v":0},{"$f":"IF(P243<1+$B323,0,IF(P243<'1 Données d''entrée'!$C$334+'1 Données d''entrée'!$C$333+1+$B323,'1 Données d''entrée'!$C$332*($C321-SUM($C324:P324)),0))","v":0},{"$f":"IF(Q243<1+$B323,0,IF(Q243<'1 Données d''entrée'!$C$334+'1 Données d''entrée'!$C$333+1+$B323,'1 Données d''entrée'!$C$332*($C321-SUM($C324:Q324)),0))","v":0},{"$f":"IF(R243<1+$B323,0,IF(R243<'1 Données d''entrée'!$C$334+'1 Données d''entrée'!$C$333+1+$B323,'1 Données d''entrée'!$C$332*($C321-SUM($C324:R324)),0))","v":0},{"$f":"IF(S243<1+$B323,0,IF(S243<'1 Données d''entrée'!$C$334+'1 Données d''entrée'!$C$333+1+$B323,'1 Données d''entrée'!$C$332*($C321-SUM($C324:S324)),0))","v":0},{"$f":"IF(T243<1+$B323,0,IF(T243<'1 Données d''entrée'!$C$334+'1 Données d''entrée'!$C$333+1+$B323,'1 Données d''entrée'!$C$332*($C321-SUM($C324:T324)),0))","v":0},{"$f":"IF(U243<1+$B323,0,IF(U243<'1 Données d''entrée'!$C$334+'1 Données d''entrée'!$C$333+1+$B323,'1 Données d''entrée'!$C$332*($C321-SUM($C324:U324)),0))","v":0}]
["Paiement d'intêrets",2,0,{"$f":"IF(C243<1+$B324,0,IF(C243<'1 Données d''entrée'!$C$334+'1 Données d''entrée'!$C$333+1+$B324,'1 Données d''entrée'!$C$332*($D321-SUM($C325:C325)),0))","v":0},{"$f":"IF(D243<1+$B324,0,IF(D243<'1 Données d''entrée'!$C$334+'1 Données d''entrée'!$C$333+1+$B324,'1 Données d''entrée'!$C$332*($D321-SUM($C325:D325)),0))","v":0},{"$f":"IF(E243<1+$B324,0,IF(E243<'1 Données d''entrée'!$C$334+'1 Données d''entrée'!$C$333+1+$B324,'1 Données d''entrée'!$C$332*($D321-SUM($C325:E325)),0))","v":0},{"$f":"IF(F243<1+$B324,0,IF(F243<'1 Données d''entrée'!$C$334+'1 Données d''entrée'!$C$333+1+$B324,'1 Données d''entrée'!$C$332*($D321-SUM($C325:F325)),0))","v":0},{"$f":"IF(G243<1+$B324,0,IF(G243<'1 Données d''entrée'!$C$334+'1 Données d''entrée'!$C$333+1+$B324,'1 Données d''entrée'!$C$332*($D321-SUM($C325:G325)),0))","v":0},{"$f":"IF(H243<1+$B324,0,IF(H243<'1 Données d''entrée'!$C$334+'1 Données d''entrée'!$C$333+1+$B324,'1 Données d''entrée'!$C$332*($D321-SUM($C325:H325)),0))","v":0},{"$f":"IF(I243<1+$B324,0,IF(I243<'1 Données d''entrée'!$C$334+'1 Données d''entrée'!$C$333+1+$B324,'1 Données d''entrée'!$C$332*($D321-SUM($C325:I325)),0))","v":0},{"$f":"IF(J243<1+$B324,0,IF(J243<'1 Données d''entrée'!$C$334+'1 Données d''entrée'!$C$333+1+$B324,'1 Données d''entrée'!$C$332*($D321-SUM($C325:J325)),0))","v":0},{"$f":"IF(K243<1+$B324,0,IF(K243<'1 Données d''entrée'!$C$334+'1 Données d''entrée'!$C$333+1+$B324,'1 Données d''entrée'!$C$332*($D321-SUM($C325:K325)),0))","v":0},{"$f":"IF(L243<1+$B324,0,IF(L243<'1 Données d''entrée'!$C$334+'1 Données d''entrée'!$C$333+1+$B324,'1 Données d''entrée'!$C$332*($D321-SUM($C325:L325)),0))","v":0},{"$f":"IF(M243<1+$B324,0,IF(M243<'1 Données d''entrée'!$C$334+'1 Données d''entrée'!$C$333+1+$B324,'1 Données d''entrée'!$C$332*($D321-SUM($C325:M325)),0))","v":0},{"$f":"IF(N243<1+$B324,0,IF(N243<'1 Données d''entrée'!$C$334+'1 Données d''entrée'!$C$333+1+$B324,'1 Données d''entrée'!$C$332*($D321-SUM($C325:N325)),0))","v":0},{"$f":"IF(O243<1+$B324,0,IF(O243<'1 Données d''entrée'!$C$334+'1 Données d''entrée'!$C$333+1+$B324,'1 Données d''entrée'!$C$332*($D321-SUM($C325:O325)),0))","v":0},{"$f":"IF(P243<1+$B324,0,IF(P243<'1 Données d''entrée'!$C$334+'1 Données d''entrée'!$C$333+1+$B324,'1 Données d''entrée'!$C$332*($D321-SUM($C325:P325)),0))","v":0},{"$f":"IF(Q243<1+$B324,0,IF(Q243<'1 Données d''entrée'!$C$334+'1 Données d''entrée'!$C$333+1+$B324,'1 Données d''entrée'!$C$332*($D321-SUM($C325:Q325)),0))","v":0},{"$f":"IF(R243<1+$B324,0,IF(R243<'1 Données d''entrée'!$C$334+'1 Données d''entrée'!$C$333+1+$B324,'1 Données d''entrée'!$C$332*($D321-SUM($C325:R325)),0))","v":0},{"$f":"IF(S243<1+$B324,0,IF(S243<'1 Données d''entrée'!$C$334+'1 Données d''entrée'!$C$333+1+$B324,'1 Données d''entrée'!$C$332*($D321-SUM($C325:S325)),0))","v":0},{"$f":"IF(T243<1+$B324,0,IF(T243<'1 Données d''entrée'!$C$334+'1 Données d''entrée'!$C$333+1+$B324,'1 Données d''entrée'!$C$332*($D321-SUM($C325:T325)),0))","v":0},{"$f":"IF(U243<1+$B324,0,IF(U243<'1 Données d''entrée'!$C$334+'1 Données d''entrée'!$C$333+1+$B324,'1 Données d''entrée'!$C$332*($D321-SUM($C325:U325)),0))","v":0}]
["Paiement d'intêrets",3,0,{"$f":"IF(C243<1+$B325,0,IF(C243<'1 Données d''entrée'!$C$334+'1 Données d''entrée'!$C$333+1+$B325,'1 Données d''entrée'!$C$332*($E321-SUM($C326:C326)),0))","v":0},{"$f":"IF(D243<1+$B325,0,IF(D243<'1 Données d''entrée'!$C$334+'1 Données d''entrée'!$C$333+1+$B325,'1 Données d''entrée'!$C$332*($E321-SUM($C326:D326)),0))","v":0},{"$f":"IF(E243<1+$B325,0,IF(E243<'1 Données d''entrée'!$C$334+'1 Données d''entrée'!$C$333+1+$B325,'1 Données d''entrée'!$C$332*($E321-SUM($C326:E326)),0))","v":0},{"$f":"IF(F243<1+$B325,0,IF(F243<'1 Données d''entrée'!$C$334+'1 Données d''entrée'!$C$333+1+$B325,'1 Données d''entrée'!$C$332*($E321-SUM($C326:F326)),0))","v":0},{"$f":"IF(G243<1+$B325,0,IF(G243<'1 Données d''entrée'!$C$334+'1 Données d''entrée'!$C$333+1+$B325,'1 Données d''entrée'!$C$332*($E321-SUM($C326:G326)),0))","v":0},{"$f":"IF(H243<1+$B325,0,IF(H243<'1 Données d''entrée'!$C$334+'1 Données d''entrée'!$C$333+1+$B325,'1 Données d''entrée'!$C$332*($E321-SUM($C326:H326)),0))","v":0},{"$f":"IF(I243<1+$B325,0,IF(I243<'1 Données d''entrée'!$C$334+'1 Données d''entrée'!$C$333+1+$B325,'1 Données d''entrée'!$C$332*($E321-SUM($C326:I326)),0))","v":0},{"$f":"IF(J243<1+$B325,0,IF(J243<'1 Données d''entrée'!$C$334+'1 Données d''entrée'!$C$333+1+$B325,'1 Données d''entrée'!$C$332*($E321-SUM($C326:J326)),0))","v":0},{"$f":"IF(K243<1+$B325,0,IF(K243<'1 Données d''entrée'!$C$334+'1 Données d''entrée'!$C$333+1+$B325,'1 Données d''entrée'!$C$332*($E321-SUM($C326:K326)),0))","v":0},{"$f":"IF(L243<1+$B325,0,IF(L243<'1 Données d''entrée'!$C$334+'1 Données d''entrée'!$C$333+1+$B325,'1 Données d''entrée'!$C$332*($E321-SUM($C326:L326)),0))","v":0},{"$f":"IF(M243<1+$B325,0,IF(M243<'1 Données d''entrée'!$C$334+'1 Données d''entrée'!$C$333+1+$B325,'1 Données d''entrée'!$C$332*($E321-SUM($C326:M326)),0))","v":0},{"$f":"IF(N243<1+$B325,0,IF(N243<'1 Données d''entrée'!$C$334+'1 Données d''entrée'!$C$333+1+$B325,'1 Données d''entrée'!$C$332*($E321-SUM($C326:N326)),0))","v":0},{"$f":"IF(O243<1+$B325,0,IF(O243<'1 Données d''entrée'!$C$334+'1 Données d''entrée'!$C$333+1+$B325,'1 Données d''entrée'!$C$332*($E321-SUM($C326:O326)),0))","v":0},{"$f":"IF(P243<1+$B325,0,IF(P243<'1 Données d''entrée'!$C$334+'1 Données d''entrée'!$C$333+1+$B325,'1 Données d''entrée'!$C$332*($E321-SUM($C326:P326)),0))","v":0},{"$f":"IF(Q243<1+$B325,0,IF(Q243<'1 Données d''entrée'!$C$334+'1 Données d''entrée'!$C$333+1+$B325,'1 Données d''entrée'!$C$332*($E321-SUM($C326:Q326)),0))","v":0},{"$f":"IF(R243<1+$B325,0,IF(R243<'1 Données d''entrée'!$C$334+'1 Données d''entrée'!$C$333+1+$B325,'1 Données d''entrée'!$C$332*($E321-SUM($C326:R326)),0))","v":0},{"$f":"IF(S243<1+$B325,0,IF(S243<'1 Données d''entrée'!$C$334+'1 Données d''entrée'!$C$333+1+$B325,'1 Données d''entrée'!$C$332*($E321-SUM($C326:S326)),0))","v":0},{"$f":"IF(T243<1+$B325,0,IF(T243<'1 Données d''entrée'!$C$334+'1 Données d''entrée'!$C$333+1+$B325,'1 Données d''entrée'!$C$332*($E321-SUM($C326:T326)),0))","v":0},{"$f":"IF(U243<1+$B325,0,IF(U243<'1 Données d''entrée'!$C$334+'1 Données d''entrée'!$C$333+1+$B325,'1 Données d''entrée'!$C$332*($E321-SUM($C326:U326)),0))","v":0}]
["Paiement d'intêrets",4,0,{"$f":"IF(C243<1+$B326,0,IF(C243<'1 Données d''entrée'!$C$334+'1 Données d''entrée'!$C$333+1+$B326,'1 Données d''entrée'!$C$332*($F321-SUM($C327:C327)),0))","v":0},{"$f":"IF(D243<1+$B326,0,IF(D243<'1 Données d''entrée'!$C$334+'1 Données d''entrée'!$C$333+1+$B326,'1 Données d''entrée'!$C$332*($F321-SUM($C327:D327)),0))","v":0},{"$f":"IF(E243<1+$B326,0,IF(E243<'1 Données d''entrée'!$C$334+'1 Données d''entrée'!$C$333+1+$B326,'1 Données d''entrée'!$C$332*($F321-SUM($C327:E327)),0))","v":0},{"$f":"IF(F243<1+$B326,0,IF(F243<'1 Données d''entrée'!$C$334+'1 Données d''entrée'!$C$333+1+$B326,'1 Données d''entrée'!$C$332*($F321-SUM($C327:F327)),0))","v":0},{"$f":"IF(G243<1+$B326,0,IF(G243<'1 Données d''entrée'!$C$334+'1 Données d''entrée'!$C$333+1+$B326,'1 Données d''entrée'!$C$332*($F321-SUM($C327:G327)),0))","v":0},{"$f":"IF(H243<1+$B326,0,IF(H243<'1 Données d''entrée'!$C$334+'1 Données d''entrée'!$C$333+1+$B326,'1 Données d''entrée'!$C$332*($F321-SUM($C327:H327)),0))","v":0},{"$f":"IF(I243<1+$B326,0,IF(I243<'1 Données d''entrée'!$C$334+'1 Données d''entrée'!$C$333+1+$B326,'1 Données d''entrée'!$C$332*($F321-SUM($C327:I327)),0))","v":0},{"$f":"IF(J243<1+$B326,0,IF(J243<'1 Données d''entrée'!$C$334+'1 Données d''entrée'!$C$333+1+$B326,'1 Données d''entrée'!$C$332*($F321-SUM($C327:J327)),0))","v":0},{"$f":"IF(K243<1+$B326,0,IF(K243<'1 Données d''entrée'!$C$334+'1 Données d''entrée'!$C$333+1+$B326,'1 Données d''entrée'!$C$332*($F321-SUM($C327:K327)),0))","v":0},{"$f":"IF(L243<1+$B326,0,IF(L243<'1 Données d''entrée'!$C$334+'1 Données d''entrée'!$C$333+1+$B326,'1 Données d''entrée'!$C$332*($F321-SUM($C327:L327)),0))","v":0},{"$f":"IF(M243<1+$B326,0,IF(M243<'1 Données d''entrée'!$C$334+'1 Données d''entrée'!$C$333+1+$B326,'1 Données d''entrée'!$C$332*($F321-SUM($C327:M327)),0))","v":0},{"$f":"IF(N243<1+$B326,0,IF(N243<'1 Données d''entrée'!$C$334+'1 Données d''entrée'!$C$333+1+$B326,'1 Données d''entrée'!$C$332*($F321-SUM($C327:N327)),0))","v":0},{"$f":"IF(O243<1+$B326,0,IF(O243<'1 Données d''entrée'!$C$334+'1 Données d''entrée'!$C$333+1+$B326,'1 Données d''entrée'!$C$332*($F321-SUM($C327:O327)),0))","v":0},{"$f":"IF(P243<1+$B326,0,IF(P243<'1 Données d''entrée'!$C$334+'1 Données d''entrée'!$C$333+1+$B326,'1 Données d''entrée'!$C$332*($F321-SUM($C327:P327)),0))","v":0},{"$f":"IF(Q243<1+$B326,0,IF(Q243<'1 Données d''entrée'!$C$334+'1 Données d''entrée'!$C$333+1+$B326,'1 Données d''entrée'!$C$332*($F321-SUM($C327:Q327)),0))","v":0},{"$f":"IF(R243<1+$B326,0,IF(R243<'1 Données d''entrée'!$C$334+'1 Données d''entrée'!$C$333+1+$B326,'1 Données d''entrée'!$C$332*($F321-SUM($C327:R327)),0))","v":0},{"$f":"IF(S243<1+$B326,0,IF(S243<'1 Données d''entrée'!$C$334+'1 Données d''entrée'!$C$333+1+$B326,'1 Données d''entrée'!$C$332*($F321-SUM($C327:S327)),0))","v":0},{"$f":"IF(T243<1+$B326,0,IF(T243<'1 Données d''entrée'!$C$334+'1 Données d''entrée'!$C$333+1+$B326,'1 Données d''entrée'!$C$332*($F321-SUM($C327:T327)),0))","v":0},{"$f":"IF(U243<1+$B326,0,IF(U243<'1 Données d''entrée'!$C$334+'1 Données d''entrée'!$C$333+1+$B326,'1 Données d''entrée'!$C$332*($F321-SUM($C327:U327)),0))","v":0}]
["Paiement d'intêrets",5,0,{"$f":"IF(C243<1+$B327,0,IF(C243<'1 Données d''entrée'!$C$334+'1 Données d''entrée'!$C$333+1+$B327,'1 Données d''entrée'!$C$332*($G321-SUM($C328:C328)),0))","v":0},{"$f":"IF(D243<1+$B327,0,IF(D243<'1 Données d''entrée'!$C$334+'1 Données d''entrée'!$C$333+1+$B327,'1 Données d''entrée'!$C$332*($G321-SUM($C328:D328)),0))","v":0},{"$f":"IF(E243<1+$B327,0,IF(E243<'1 Données d''entrée'!$C$334+'1 Données d''entrée'!$C$333+1+$B327,'1 Données d''entrée'!$C$332*($G321-SUM($C328:E328)),0))","v":0},{"$f":"IF(F243<1+$B327,0,IF(F243<'1 Données d''entrée'!$C$334+'1 Données d''entrée'!$C$333+1+$B327,'1 Données d''entrée'!$C$332*($G321-SUM($C328:F328)),0))","v":0},{"$f":"IF(G243<1+$B327,0,IF(G243<'1 Données d''entrée'!$C$334+'1 Données d''entrée'!$C$333+1+$B327,'1 Données d''entrée'!$C$332*($G321-SUM($C328:G328)),0))","v":0},{"$f":"IF(H243<1+$B327,0,IF(H243<'1 Données d''entrée'!$C$334+'1 Données d''entrée'!$C$333+1+$B327,'1 Données d''entrée'!$C$332*($G321-SUM($C328:H328)),0))","v":0},{"$f":"IF(I243<1+$B327,0,IF(I243<'1 Données d''entrée'!$C$334+'1 Données d''entrée'!$C$333+1+$B327,'1 Données d''entrée'!$C$332*($G321-SUM($C328:I328)),0))","v":0},{"$f":"IF(J243<1+$B327,0,IF(J243<'1 Données d''entrée'!$C$334+'1 Données d''entrée'!$C$333+1+$B327,'1 Données d''entrée'!$C$332*($G321-SUM($C328:J328)),0))","v":0},{"$f":"IF(K243<1+$B327,0,IF(K243<'1 Données d''entrée'!$C$334+'1 Données d''entrée'!$C$333+1+$B327,'1 Données d''entrée'!$C$332*($G321-SUM($C328:K328)),0))","v":0},{"$f":"IF(L243<1+$B327,0,IF(L243<'1 Données d''entrée'!$C$334+'1 Données d''entrée'!$C$333+1+$B327,'1 Données d''entrée'!$C$332*($G321-SUM($C328:L328)),0))","v":0},{"$f":"IF(M243<1+$B327,0,IF(M243<'1 Données d''entrée'!$C$334+'1 Données d''entrée'!$C$333+1+$B327,'1 Données d''entrée'!$C$332*($G321-SUM($C328:M328)),0))","v":0},{"$f":"IF(N243<1+$B327,0,IF(N243<'1 Données d''entrée'!$C$334+'1 Données d''entrée'!$C$333+1+$B327,'1 Données d''entrée'!$C$332*($G321-SUM($C328:N328)),0))","v":0},{"$f":"IF(O243<1+$B327,0,IF(O243<'1 Données d''entrée'!$C$334+'1 Données d''entrée'!$C$333+1+$B327,'1 Données d''entrée'!$C$332*($G321-SUM($C328:O328)),0))","v":0},{"$f":"IF(P243<1+$B327,0,IF(P243<'1 Données d''entrée'!$C$334+'1 Données d''entrée'!$C$333+1+$B327,'1 Données d''entrée'!$C$332*($G321-SUM($C328:P328)),0))","v":0},{"$f":"IF(Q243<1+$B327,0,IF(Q243<'1 Données d''entrée'!$C$334+'1 Données d''entrée'!$C$333+1+$B327,'1 Données d''entrée'!$C$332*($G321-SUM($C328:Q328)),0))","v":0},{"$f":"IF(R243<1+$B327,0,IF(R243<'1 Données d''entrée'!$C$334+'1 Données d''entrée'!$C$333+1+$B327,'1 Données d''entrée'!$C$332*($G321-SUM($C328:R328)),0))","v":0},{"$f":"IF(S243<1+$B327,0,IF(S243<'1 Données d''entrée'!$C$334+'1 Données d''entrée'!$C$333+1+$B327,'1 Données d''entrée'!$C$332*($G321-SUM($C328:S328)),0))","v":0},{"$f":"IF(T243<1+$B327,0,IF(T243<'1 Données d''entrée'!$C$334+'1 Données d''entrée'!$C$333+1+$B327,'1 Données d''entrée'!$C$332*($G321-SUM($C328:T328)),0))","v":0},{"$f":"IF(U243<1+$B327,0,IF(U243<'1 Données d''entrée'!$C$334+'1 Données d''entrée'!$C$333+1+$B327,'1 Données d''entrée'!$C$332*($G321-SUM($C328:U328)),0))","v":0}]
["Paiement d'intêrets",6,0,{"$f":"IF(C243<1+$B328,0,IF(C243<'1 Données d''entrée'!$C$334+'1 Données d''entrée'!$C$333+1+$B328,'1 Données d''entrée'!$C$332*($H321-SUM($C329:C329)),0))","v":0},{"$f":"IF(D243<1+$B328,0,IF(D243<'1 Données d''entrée'!$C$334+'1 Données d''entrée'!$C$333+1+$B328,'1 Données d''entrée'!$C$332*($H321-SUM($C329:D329)),0))","v":0},{"$f":"IF(E243<1+$B328,0,IF(E243<'1 Données d''entrée'!$C$334+'1 Données d''entrée'!$C$333+1+$B328,'1 Données d''entrée'!$C$332*($H321-SUM($C329:E329)),0))","v":0},{"$f":"IF(F243<1+$B328,0,IF(F243<'1 Données d''entrée'!$C$334+'1 Données d''entrée'!$C$333+1+$B328,'1 Données d''entrée'!$C$332*($H321-SUM($C329:F329)),0))","v":0},{"$f":"IF(G243<1+$B328,0,IF(G243<'1 Données d''entrée'!$C$334+'1 Données d''entrée'!$C$333+1+$B328,'1 Données d''entrée'!$C$332*($H321-SUM($C329:G329)),0))","v":0},{"$f":"IF(H243<1+$B328,0,IF(H243<'1 Données d''entrée'!$C$334+'1 Données d''entrée'!$C$333+1+$B328,'1 Données d''entrée'!$C$332*($H321-SUM($C329:H329)),0))","v":0},{"$f":"IF(I243<1+$B328,0,IF(I243<'1 Données d''entrée'!$C$334+'1 Données d''entrée'!$C$333+1+$B328,'1 Données d''entrée'!$C$332*($H321-SUM($C329:I329)),0))","v":0},{"$f":"IF(J243<1+$B328,0,IF(J243<'1 Données d''entrée'!$C$334+'1 Données d''entrée'!$C$333+1+$B328,'1 Données d''entrée'!$C$332*($H321-SUM($C329:J329)),0))","v":0},{"$f":"IF(K243<1+$B328,0,IF(K243<'1 Données d''entrée'!$C$334+'1 Données d''entrée'!$C$333+1+$B328,'1 Données d''entrée'!$C$332*($H321-SUM($C329:K329)),0))","v":0},{"$f":"IF(L243<1+$B328,0,IF(L243<'1 Données d''entrée'!$C$334+'1 Données d''entrée'!$C$333+1+$B328,'1 Données d''entrée'!$C$332*($H321-SUM($C329:L329)),0))","v":0},{"$f":"IF(M243<1+$B328,0,IF(M243<'1 Données d''entrée'!$C$334+'1 Données d''entrée'!$C$333+1+$B328,'1 Données d''entrée'!$C$332*($H321-SUM($C329:M329)),0))","v":0},{"$f":"IF(N243<1+$B328,0,IF(N243<'1 Données d''entrée'!$C$334+'1 Données d''entrée'!$C$333+1+$B328,'1 Données d''entrée'!$C$332*($H321-SUM($C329:N329)),0))","v":0},{"$f":"IF(O243<1+$B328,0,IF(O243<'1 Données d''entrée'!$C$334+'1 Données d''entrée'!$C$333+1+$B328,'1 Données d''entrée'!$C$332*($H321-SUM($C329:O329)),0))","v":0},{"$f":"IF(P243<1+$B328,0,IF(P243<'1 Données d''entrée'!$C$334+'1 Données d''entrée'!$C$333+1+$B328,'1 Données d''entrée'!$C$332*($H321-SUM($C329:P329)),0))","v":0},{"$f":"IF(Q243<1+$B328,0,IF(Q243<'1 Données d''entrée'!$C$334+'1 Données d''entrée'!$C$333+1+$B328,'1 Données d''entrée'!$C$332*($H321-SUM($C329:Q329)),0))","v":0},{"$f":"IF(R243<1+$B328,0,IF(R243<'1 Données d''entrée'!$C$334+'1 Données d''entrée'!$C$333+1+$B328,'1 Données d''entrée'!$C$332*($H321-SUM($C329:R329)),0))","v":0},{"$f":"IF(S243<1+$B328,0,IF(S243<'1 Données d''entrée'!$C$334+'1 Données d''entrée'!$C$333+1+$B328,'1 Données d''entrée'!$C$332*($H321-SUM($C329:S329)),0))","v":0},{"$f":"IF(T243<1+$B328,0,IF(T243<'1 Données d''entrée'!$C$334+'1 Données d''entrée'!$C$333+1+$B328,'1 Données d''entrée'!$C$332*($H321-SUM($C329:T329)),0))","v":0},{"$f":"IF(U243<1+$B328,0,IF(U243<'1 Données d''entrée'!$C$334+'1 Données d''entrée'!$C$333+1+$B328,'1 Données d''entrée'!$C$332*($H321-SUM($C329:U329)),0))","v":0}]
["Paiement d'intêrets",7,0,{"$f":"IF(C243<1+$B329,0,IF(C243<'1 Données d''entrée'!$C$334+'1 Données d''entrée'!$C$333+1+$B329,'1 Données d''entrée'!$C$332*($I321-SUM($C330:C330)),0))","v":0},{"$f":"IF(D243<1+$B329,0,IF(D243<'1 Données d''entrée'!$C$334+'1 Données d''entrée'!$C$333+1+$B329,'1 Données d''entrée'!$C$332*($I321-SUM($C330:D330)),0))","v":0},{"$f":"IF(E243<1+$B329,0,IF(E243<'1 Données d''entrée'!$C$334+'1 Données d''entrée'!$C$333+1+$B329,'1 Données d''entrée'!$C$332*($I321-SUM($C330:E330)),0))","v":0},{"$f":"IF(F243<1+$B329,0,IF(F243<'1 Données d''entrée'!$C$334+'1 Données d''entrée'!$C$333+1+$B329,'1 Données d''entrée'!$C$332*($I321-SUM($C330:F330)),0))","v":0},{"$f":"IF(G243<1+$B329,0,IF(G243<'1 Données d''entrée'!$C$334+'1 Données d''entrée'!$C$333+1+$B329,'1 Données d''entrée'!$C$332*($I321-SUM($C330:G330)),0))","v":0},{"$f":"IF(H243<1+$B329,0,IF(H243<'1 Données d''entrée'!$C$334+'1 Données d''entrée'!$C$333+1+$B329,'1 Données d''entrée'!$C$332*($I321-SUM($C330:H330)),0))","v":0},{"$f":"IF(I243<1+$B329,0,IF(I243<'1 Données d''entrée'!$C$334+'1 Données d''entrée'!$C$333+1+$B329,'1 Données d''entrée'!$C$332*($I321-SUM($C330:I330)),0))","v":0},{"$f":"IF(J243<1+$B329,0,IF(J243<'1 Données d''entrée'!$C$334+'1 Données d''entrée'!$C$333+1+$B329,'1 Données d''entrée'!$C$332*($I321-SUM($C330:J330)),0))","v":0},{"$f":"IF(K243<1+$B329,0,IF(K243<'1 Données d''entrée'!$C$334+'1 Données d''entrée'!$C$333+1+$B329,'1 Données d''entrée'!$C$332*($I321-SUM($C330:K330)),0))","v":0},{"$f":"IF(L243<1+$B329,0,IF(L243<'1 Données d''entrée'!$C$334+'1 Données d''entrée'!$C$333+1+$B329,'1 Données d''entrée'!$C$332*($I321-SUM($C330:L330)),0))","v":0},{"$f":"IF(M243<1+$B329,0,IF(M243<'1 Données d''entrée'!$C$334+'1 Données d''entrée'!$C$333+1+$B329,'1 Données d''entrée'!$C$332*($I321-SUM($C330:M330)),0))","v":0},{"$f":"IF(N243<1+$B329,0,IF(N243<'1 Données d''entrée'!$C$334+'1 Données d''entrée'!$C$333+1+$B329,'1 Données d''entrée'!$C$332*($I321-SUM($C330:N330)),0))","v":0},{"$f":"IF(O243<1+$B329,0,IF(O243<'1 Données d''entrée'!$C$334+'1 Données d''entrée'!$C$333+1+$B329,'1 Données d''entrée'!$C$332*($I321-SUM($C330:O330)),0))","v":0},{"$f":"IF(P243<1+$B329,0,IF(P243<'1 Données d''entrée'!$C$334+'1 Données d''entrée'!$C$333+1+$B329,'1 Données d''entrée'!$C$332*($I321-SUM($C330:P330)),0))","v":0},{"$f":"IF(Q243<1+$B329,0,IF(Q243<'1 Données d''entrée'!$C$334+'1 Données d''entrée'!$C$333+1+$B329,'1 Données d''entrée'!$C$332*($I321-SUM($C330:Q330)),0))","v":0},{"$f":"IF(R243<1+$B329,0,IF(R243<'1 Données d''entrée'!$C$334+'1 Données d''entrée'!$C$333+1+$B329,'1 Données d''entrée'!$C$332*($I321-SUM($C330:R330)),0))","v":0},{"$f":"IF(S243<1+$B329,0,IF(S243<'1 Données d''entrée'!$C$334+'1 Données d''entrée'!$C$333+1+$B329,'1 Données d''entrée'!$C$332*($I321-SUM($C330:S330)),0))","v":0},{"$f":"IF(T243<1+$B329,0,IF(T243<'1 Données d''entrée'!$C$334+'1 Données d''entrée'!$C$333+1+$B329,'1 Données d''entrée'!$C$332*($I321-SUM($C330:T330)),0))","v":0},{"$f":"IF(U243<1+$B329,0,IF(U243<'1 Données d''entrée'!$C$334+'1 Données d''entrée'!$C$333+1+$B329,'1 Données d''entrée'!$C$332*($I321-SUM($C330:U330)),0))","v":0}]
["Paiement d'intêrets",8,0,{"$f":"IF(C243<1+$B330,0,IF(C243<'1 Données d''entrée'!$C$334+'1 Données d''entrée'!$C$333+1+$B330,'1 Données d''entrée'!$C$332*($J321-SUM($C331:C331)),0))","v":0},{"$f":"IF(D243<1+$B330,0,IF(D243<'1 Données d''entrée'!$C$334+'1 Données d''entrée'!$C$333+1+$B330,'1 Données d''entrée'!$C$332*($J321-SUM($C331:D331)),0))","v":0},{"$f":"IF(E243<1+$B330,0,IF(E243<'1 Données d''entrée'!$C$334+'1 Données d''entrée'!$C$333+1+$B330,'1 Données d''entrée'!$C$332*($J321-SUM($C331:E331)),0))","v":0},{"$f":"IF(F243<1+$B330,0,IF(F243<'1 Données d''entrée'!$C$334+'1 Données d''entrée'!$C$333+1+$B330,'1 Données d''entrée'!$C$332*($J321-SUM($C331:F331)),0))","v":0},{"$f":"IF(G243<1+$B330,0,IF(G243<'1 Données d''entrée'!$C$334+'1 Données d''entrée'!$C$333+1+$B330,'1 Données d''entrée'!$C$332*($J321-SUM($C331:G331)),0))","v":0},{"$f":"IF(H243<1+$B330,0,IF(H243<'1 Données d''entrée'!$C$334+'1 Données d''entrée'!$C$333+1+$B330,'1 Données d''entrée'!$C$332*($J321-SUM($C331:H331)),0))","v":0},{"$f":"IF(I243<1+$B330,0,IF(I243<'1 Données d''entrée'!$C$334+'1 Données d''entrée'!$C$333+1+$B330,'1 Données d''entrée'!$C$332*($J321-SUM($C331:I331)),0))","v":0},{"$f":"IF(J243<1+$B330,0,IF(J243<'1 Données d''entrée'!$C$334+'1 Données d''entrée'!$C$333+1+$B330,'1 Données d''entrée'!$C$332*($J321-SUM($C331:J331)),0))","v":0},{"$f":"IF(K243<1+$B330,0,IF(K243<'1 Données d''entrée'!$C$334+'1 Données d''entrée'!$C$333+1+$B330,'1 Données d''entrée'!$C$332*($J321-SUM($C331:K331)),0))","v":0},{"$f":"IF(L243<1+$B330,0,IF(L243<'1 Données d''entrée'!$C$334+'1 Données d''entrée'!$C$333+1+$B330,'1 Données d''entrée'!$C$332*($J321-SUM($C331:L331)),0))","v":0},{"$f":"IF(M243<1+$B330,0,IF(M243<'1 Données d''entrée'!$C$334+'1 Données d''entrée'!$C$333+1+$B330,'1 Données d''entrée'!$C$332*($J321-SUM($C331:M331)),0))","v":0},{"$f":"IF(N243<1+$B330,0,IF(N243<'1 Données d''entrée'!$C$334+'1 Données d''entrée'!$C$333+1+$B330,'1 Données d''entrée'!$C$332*($J321-SUM($C331:N331)),0))","v":0},{"$f":"IF(O243<1+$B330,0,IF(O243<'1 Données d''entrée'!$C$334+'1 Données d''entrée'!$C$333+1+$B330,'1 Données d''entrée'!$C$332*($J321-SUM($C331:O331)),0))","v":0},{"$f":"IF(P243<1+$B330,0,IF(P243<'1 Données d''entrée'!$C$334+'1 Données d''entrée'!$C$333+1+$B330,'1 Données d''entrée'!$C$332*($J321-SUM($C331:P331)),0))","v":0},{"$f":"IF(Q243<1+$B330,0,IF(Q243<'1 Données d''entrée'!$C$334+'1 Données d''entrée'!$C$333+1+$B330,'1 Données d''entrée'!$C$332*($J321-SUM($C331:Q331)),0))","v":0},{"$f":"IF(R243<1+$B330,0,IF(R243<'1 Données d''entrée'!$C$334+'1 Données d''entrée'!$C$333+1+$B330,'1 Données d''entrée'!$C$332*($J321-SUM($C331:R331)),0))","v":0},{"$f":"IF(S243<1+$B330,0,IF(S243<'1 Données d''entrée'!$C$334+'1 Données d''entrée'!$C$333+1+$B330,'1 Données d''entrée'!$C$332*($J321-SUM($C331:S331)),0))","v":0},{"$f":"IF(T243<1+$B330,0,IF(T243<'1 Données d''entrée'!$C$334+'1 Données d''entrée'!$C$333+1+$B330,'1 Données d''entrée'!$C$332*($J321-SUM($C331:T331)),0))","v":0},{"$f":"IF(U243<1+$B330,0,IF(U243<'1 Données d''entrée'!$C$334+'1 Données d''entrée'!$C$333+1+$B330,'1 Données d''entrée'!$C$332*($J321-SUM($C331:U331)),0))","v":0}]
["Paiement d'intêrets",9,0,{"$f":"IF(C243<1+$B331,0,IF(C243<'1 Données d''entrée'!$C$334+'1 Données d''entrée'!$C$333+1+$B331,'1 Données d''entrée'!$C$332*($K321-SUM($C332:C332)),0))","v":0},{"$f":"IF(D243<1+$B331,0,IF(D243<'1 Données d''entrée'!$C$334+'1 Données d''entrée'!$C$333+1+$B331,'1 Données d''entrée'!$C$332*($K321-SUM($C332:D332)),0))","v":0},{"$f":"IF(E243<1+$B331,0,IF(E243<'1 Données d''entrée'!$C$334+'1 Données d''entrée'!$C$333+1+$B331,'1 Données d''entrée'!$C$332*($K321-SUM($C332:E332)),0))","v":0},{"$f":"IF(F243<1+$B331,0,IF(F243<'1 Données d''entrée'!$C$334+'1 Données d''entrée'!$C$333+1+$B331,'1 Données d''entrée'!$C$332*($K321-SUM($C332:F332)),0))","v":0},{"$f":"IF(G243<1+$B331,0,IF(G243<'1 Données d''entrée'!$C$334+'1 Données d''entrée'!$C$333+1+$B331,'1 Données d''entrée'!$C$332*($K321-SUM($C332:G332)),0))","v":0},{"$f":"IF(H243<1+$B331,0,IF(H243<'1 Données d''entrée'!$C$334+'1 Données d''entrée'!$C$333+1+$B331,'1 Données d''entrée'!$C$332*($K321-SUM($C332:H332)),0))","v":0},{"$f":"IF(I243<1+$B331,0,IF(I243<'1 Données d''entrée'!$C$334+'1 Données d''entrée'!$C$333+1+$B331,'1 Données d''entrée'!$C$332*($K321-SUM($C332:I332)),0))","v":0},{"$f":"IF(J243<1+$B331,0,IF(J243<'1 Données d''entrée'!$C$334+'1 Données d''entrée'!$C$333+1+$B331,'1 Données d''entrée'!$C$332*($K321-SUM($C332:J332)),0))","v":0},{"$f":"IF(K243<1+$B331,0,IF(K243<'1 Données d''entrée'!$C$334+'1 Données d''entrée'!$C$333+1+$B331,'1 Données d''entrée'!$C$332*($K321-SUM($C332:K332)),0))","v":0},{"$f":"IF(L243<1+$B331,0,IF(L243<'1 Données d''entrée'!$C$334+'1 Données d''entrée'!$C$333+1+$B331,'1 Données d''entrée'!$C$332*($K321-SUM($C332:L332)),0))","v":0},{"$f":"IF(M243<1+$B331,0,IF(M243<'1 Données d''entrée'!$C$334+'1 Données d''entrée'!$C$333+1+$B331,'1 Données d''entrée'!$C$332*($K321-SUM($C332:M332)),0))","v":0},{"$f":"IF(N243<1+$B331,0,IF(N243<'1 Données d''entrée'!$C$334+'1 Données d''entrée'!$C$333+1+$B331,'1 Données d''entrée'!$C$332*($K321-SUM($C332:N332)),0))","v":0},{"$f":"IF(O243<1+$B331,0,IF(O243<'1 Données d''entrée'!$C$334+'1 Données d''entrée'!$C$333+1+$B331,'1 Données d''entrée'!$C$332*($K321-SUM($C332:O332)),0))","v":0},{"$f":"IF(P243<1+$B331,0,IF(P243<'1 Données d''entrée'!$C$334+'1 Données d''entrée'!$C$333+1+$B331,'1 Données d''entrée'!$C$332*($K321-SUM($C332:P332)),0))","v":0},{"$f":"IF(Q243<1+$B331,0,IF(Q243<'1 Données d''entrée'!$C$334+'1 Données d''entrée'!$C$333+1+$B331,'1 Données d''entrée'!$C$332*($K321-SUM($C332:Q332)),0))","v":0},{"$f":"IF(R243<1+$B331,0,IF(R243<'1 Données d''entrée'!$C$334+'1 Données d''entrée'!$C$333+1+$B331,'1 Données d''entrée'!$C$332*($K321-SUM($C332:R332)),0))","v":0},{"$f":"IF(S243<1+$B331,0,IF(S243<'1 Données d''entrée'!$C$334+'1 Données d''entrée'!$C$333+1+$B331,'1 Données d''entrée'!$C$332*($K321-SUM($C332:S332)),0))","v":0},{"$f":"IF(T243<1+$B331,0,IF(T243<'1 Données d''entrée'!$C$334+'1 Données d''entrée'!$C$333+1+$B331,'1 Données d''entrée'!$C$332*($K321-SUM($C332:T332)),0))","v":0},{"$f":"IF(U243<1+$B331,0,IF(U243<'1 Données d''entrée'!$C$334+'1 Données d''entrée'!$C$333+1+$B331,'1 Données d''entrée'!$C$332*($K321-SUM($C332:U332)),0))","v":0}]
["Paiement d'intêrets",10,0,{"$f":"IF(C243<1+$B332,0,IF(C243<'1 Données d''entrée'!$C$334+'1 Données d''entrée'!$C$333+1+$B332,'1 Données d''entrée'!$C$332*($L321-SUM($C333:C333)),0))","v":0},{"$f":"IF(D243<1+$B332,0,IF(D243<'1 Données d''entrée'!$C$334+'1 Données d''entrée'!$C$333+1+$B332,'1 Données d''entrée'!$C$332*($L321-SUM($C333:D333)),0))","v":0},{"$f":"IF(E243<1+$B332,0,IF(E243<'1 Données d''entrée'!$C$334+'1 Données d''entrée'!$C$333+1+$B332,'1 Données d''entrée'!$C$332*($L321-SUM($C333:E333)),0))","v":0},{"$f":"IF(F243<1+$B332,0,IF(F243<'1 Données d''entrée'!$C$334+'1 Données d''entrée'!$C$333+1+$B332,'1 Données d''entrée'!$C$332*($L321-SUM($C333:F333)),0))","v":0},{"$f":"IF(G243<1+$B332,0,IF(G243<'1 Données d''entrée'!$C$334+'1 Données d''entrée'!$C$333+1+$B332,'1 Données d''entrée'!$C$332*($L321-SUM($C333:G333)),0))","v":0},{"$f":"IF(H243<1+$B332,0,IF(H243<'1 Données d''entrée'!$C$334+'1 Données d''entrée'!$C$333+1+$B332,'1 Données d''entrée'!$C$332*($L321-SUM($C333:H333)),0))","v":0},{"$f":"IF(I243<1+$B332,0,IF(I243<'1 Données d''entrée'!$C$334+'1 Données d''entrée'!$C$333+1+$B332,'1 Données d''entrée'!$C$332*($L321-SUM($C333:I333)),0))","v":0},{"$f":"IF(J243<1+$B332,0,IF(J243<'1 Données d''entrée'!$C$334+'1 Données d''entrée'!$C$333+1+$B332,'1 Données d''entrée'!$C$332*($L321-SUM($C333:J333)),0))","v":0},{"$f":"IF(K243<1+$B332,0,IF(K243<'1 Données d''entrée'!$C$334+'1 Données d''entrée'!$C$333+1+$B332,'1 Données d''entrée'!$C$332*($L321-SUM($C333:K333)),0))","v":0},{"$f":"IF(L243<1+$B332,0,IF(L243<'1 Données d''entrée'!$C$334+'1 Données d''entrée'!$C$333+1+$B332,'1 Données d''entrée'!$C$332*($L321-SUM($C333:L333)),0))","v":0},{"$f":"IF(M243<1+$B332,0,IF(M243<'1 Données d''entrée'!$C$334+'1 Données d''entrée'!$C$333+1+$B332,'1 Données d''entrée'!$C$332*($L321-SUM($C333:M333)),0))","v":0},{"$f":"IF(N243<1+$B332,0,IF(N243<'1 Données d''entrée'!$C$334+'1 Données d''entrée'!$C$333+1+$B332,'1 Données d''entrée'!$C$332*($L321-SUM($C333:N333)),0))","v":0},{"$f":"IF(O243<1+$B332,0,IF(O243<'1 Données d''entrée'!$C$334+'1 Données d''entrée'!$C$333+1+$B332,'1 Données d''entrée'!$C$332*($L321-SUM($C333:O333)),0))","v":0},{"$f":"IF(P243<1+$B332,0,IF(P243<'1 Données d''entrée'!$C$334+'1 Données d''entrée'!$C$333+1+$B332,'1 Données d''entrée'!$C$332*($L321-SUM($C333:P333)),0))","v":0},{"$f":"IF(Q243<1+$B332,0,IF(Q243<'1 Données d''entrée'!$C$334+'1 Données d''entrée'!$C$333+1+$B332,'1 Données d''entrée'!$C$332*($L321-SUM($C333:Q333)),0))","v":0},{"$f":"IF(R243<1+$B332,0,IF(R243<'1 Données d''entrée'!$C$334+'1 Données d''entrée'!$C$333+1+$B332,'1 Données d''entrée'!$C$332*($L321-SUM($C333:R333)),0))","v":0},{"$f":"IF(S243<1+$B332,0,IF(S243<'1 Données d''entrée'!$C$334+'1 Données d''entrée'!$C$333+1+$B332,'1 Données d''entrée'!$C$332*($L321-SUM($C333:S333)),0))","v":0},{"$f":"IF(T243<1+$B332,0,IF(T243<'1 Données d''entrée'!$C$334+'1 Données d''entrée'!$C$333+1+$B332,'1 Données d''entrée'!$C$332*($L321-SUM($C333:T333)),0))","v":0},{"$f":"IF(U243<1+$B332,0,IF(U243<'1 Données d''entrée'!$C$334+'1 Données d''entrée'!$C$333+1+$B332,'1 Données d''entrée'!$C$332*($L321-SUM($C333:U333)),0))","v":0}]
[]
[null,"Période",1,2,3,4,5,6,7,8,9,10,11,12,13,14,15,16,17,18,19,20]
["Prêt bancaire - Option 3: Remboursement vers l'annuité constante",{"$f":"'1 Données d''entrée'!$B$344","v":0}]
["Prêt(s) nouveau(x)",null,{"$f":"IF(C286<0,C286*(-1)*$B348+C286*(-1)*$B348*'1 Données d''entrée'!$C$338,0)","v":{"$error":"#DIV/0!"}},{"$f":"IF(D286<0,D286*(-1)*$B348+D286*(-1)*$B348*'1 Données d''entrée'!$C$338,0)","v":{"$error":"#DIV/0!"}},{"$f":"IF(E286<0,E286*(-1)*$B348+E286*(-1)*$B348*'1 Données d''entrée'!$C$338,0)","v":{"$error":"#DIV/0!"}},{"$f":"IF(F286<0,F286*(-1)*$B348+F286*(-1)*$B348*'1 Données d''entrée'!$C$338,0)","v":{"$error":"#DIV/0!"}},{"$f":"IF(G286<0,G286*(-1)*$B348+G286*(-1)*$B348*'1 Données d''entrée'!$C$338,0)","v":{"$error":"#DIV/0!"}},{"$f":"IF(H286<0,H286*(-1)*$B348+H286*(-1)*$B348*'1 Données d''entrée'!$C$338,0)","v":{"$error":"#DIV/0!"}},{"$f":"IF(I286<0,I286*(-1)*$B348+I286*(-1)*$B348*'1 Données d''entrée'!$C$338,0)","v":{"$error":"#DIV/0!"}},{"$f":"IF(J286<0,J286*(-1)*$B348+J286*(-1)*$B348*'1 Données d''entrée'!$C$338,0)","v":{"$error":"#DIV/0!"}},{"$f":"IF(K286<0,K286*(-1)*$B348+K286*(-1)*$B348*'1 Données d''entrée'!$C$338,0)","v":{"$error":"#DIV/0!"}},{"$f":"IF(L286<0,L286*(-1)*$B348+L286*(-1)*$B348*'1 Données d''entrée'!$C$338,0)","v":{"$error":"#DIV/0!"}},{"$f":"IF(M286<0,M286*(-1)*$B348+M286*(-1)*$B348*'1 Données d''entrée'!$C$338,0)","v":{"$error":"#DIV/0!"}},{"$f":"IF(N286<0,N286*(-1)*$B348+N286*(-1)*$B348*'1 Données d''entrée'!$C$338,0)","v":{"$error":"#DIV/0!"}},{"$f":"IF(O286<0,O286*(-1)*$B348+O286*(-1)*$B348*'1 Données d''entrée'!$C$338,0)","v":{"$error":"#DIV/0!"}},{"$f":"IF(P286<0,P286*(-1)*$B348+P286*(-1)*$B348*'1 Données d''entrée'!$C$338,0)","v":{"$error":"#DIV/0!"}},{"$f":"IF(Q286<0,Q286*(-1)*$B348+Q286*(-1)*$B348*'1 Données d''entrée'!$C$338,0)","v":{"$error":"#DIV/0!"}},{"$f":"IF(R286<0,R286*(-1)*$B348+R286*(-1)*$B348*'1 Données d''entrée'!$C$338,0)","v":{"$error":"#DIV/0!"}},{"$f":"IF(S286<0,S286*(-1)*$B348+S286*(-1)*$B348*'1 Données d''entrée'!$C$338,0)","v":{"$error":"#DIV/0!"}},{"$f":"IF(T286<0,T286*(-1)*$B348+T286*(-1)*$B348*'1 Données d''entrée'!$C$338,0)","v":{"$error":"#DIV/0!"}},{"$f":"IF(U286<0,U286*(-1)*$B348+U286*(-1)*$B348*'1 Données d''entrée'!$C$338,0)","v":{"$error":"#DIV/0!"}},{"$f":"IF(V286<0,V286*(-1)*$B348+V286*(-1)*$B348*'1 Données d''entrée'!$C$338,0)","v":{"$error":"#DIV/0!"}}]
[null,"Période de prêt nouveau"]
["Remboursement vers l'annuité constante",0,0,0,0,0,0,0,0,0,0,0,0,0,0,0,0,0,0,0,0,0]
[null,1,{"$f":"IF(C$54<'1 Données d''entrée'!$C$334+1+$B352,0,IF(C$54<'1 Données d''entrée'!$C$333+'1 Données d''entrée'!$C$334+1+$B352,$C$160*('1 Données d''entrée'!$C$332*(1+'1 Données d''entrée'!$C$332)^'1 Données d''entrée'!$C$333)/((1+'1 Données d''entrée'!$C$332)^'1 Données d''entrée'!$C$333-1),0))","v":0},{"$f":"IF(D243<'1 Données d''entrée'!$C$334+1+$B352,0,IF(D243<'1 Données d''entrée'!$C$333+'1 Données d''entrée'!$C$334+1+$B352,$C349*('1 Données d''entrée'!$C$332*(1+'1 Données d''entrée'!$C$332)^'1 Données d''entrée'!$C$333)/((1+'1 Données d''entrée'!$C$332)^'1 Données d''entrée'!$C$333-1),0))","v":0},{"$f":"IF(E243<'1 Données d''entrée'!$C$334+1+$B352,0,IF(E243<'1 Données d''entrée'!$C$333+'1 Données d''entrée'!$C$334+1+$B352,$C349*('1 Données d''entrée'!$C$332*(1+'1 Données d''entrée'!$C$332)^'1 Données d''entrée'!$C$333)/((1+'1 Données d''entrée'!$C$332)^'1 Données d''entrée'!$C$333-1),0))","v":0},{"$f":"IF(F243<'1 Données d''entrée'!$C$334+1+$B352,0,IF(F243<'1 Données d''entrée'!$C$333+'1 Données d''entrée'!$C$334+1+$B352,$C349*('1 Données d''entrée'!$C$332*(1+'1 Données d''entrée'!$C$332)^'1 Données d''entrée'!$C$333)/((1+'1 Données d''entrée'!$C$332)^'1 Données d''entrée'!$C$333-1),0))","v":0},{"$f":"IF(G243<'1 Données d''entrée'!$C$334+1+$B352,0,IF(G243<'1 Données d''entrée'!$C$333+'1 Données d''entrée'!$C$334+1+$B352,$C349*('1 Données d''entrée'!$C$332*(1+'1 Données d''entrée'!$C$332)^'1 Données d''entrée'!$C$333)/((1+'1 Données d''entrée'!$C$332)^'1 Données d''entrée'!$C$333-1),0))","v":0},{"$f":"IF(H243<'1 Données d''entrée'!$C$334+1+$B352,0,IF(H243<'1 Données d''entrée'!$C$333+'1 Données d''entrée'!$C$334+1+$B352,$C349*('1 Données d''entrée'!$C$332*(1+'1 Données d''entrée'!$C$332)^'1 Données d''entrée'!$C$333)/((1+'1 Données d''entrée'!$C$332)^'1 Données d''entrée'!$C$333-1),0))","v":0},{"$f":"IF(I243<'1 Données d''entrée'!$C$334+1+$B352,0,IF(I243<'1 Données d''entrée'!$C$333+'1 Données d''entrée'!$C$334+1+$B352,$C349*('1 Données d''entrée'!$C$332*(1+'1 Données d''entrée'!$C$332)^'1 Données d''entrée'!$C$333)/((1+'1 Données d''entrée'!$C$332)^'1 Données d''entrée'!$C$333-1),0))","v":0},{"$f":"IF(J243<'1 Données d''entrée'!$C$334+1+$B352,0,IF(J243<'1 Données d''entrée'!$C$333+'1 Données d''entrée'!$C$334+1+$B352,$C349*('1 Données d''entrée'!$C$332*(1+'1 Données d''entrée'!$C$332)^'1 Données d''entrée'!$C$333)/((1+'1 Données d''entrée'!$C$332)^'1 Données d''entrée'!$C$333-1),0))","v":0},{"$f":"IF(K243<'1 Données d''entrée'!$C$334+1+$B352,0,IF(K243<'1 Données d''entrée'!$C$333+'1 Données d''entrée'!$C$334+1+$B352,$C349*('1 Données d''entrée'!$C$332*(1+'1 Données d''entrée'!$C$332)^'1 Données d''entrée'!$C$333)/((1+'1 Données d''entrée'!$C$332)^'1 Données d''entrée'!$C$333-1),0))","v":0},{"$f":"IF(L243<'1 Données d''entrée'!$C$334+1+$B352,0,IF(L243<'1 Données d''entrée'!$C$333+'1 Données d''entrée'!$C$334+1+$B352,$C349*('1 Données d''entrée'!$C$332*(1+'1 Données d''entrée'!$C$332)^'1 Données d''entrée'!$C$333)/((1+'1 Données d''entrée'!$C$332)^'1 Données d''entrée'!$C$333-1),0))","v":0},{"$f":"IF(M243<'1 Données d''entrée'!$C$334+1+$B352,0,IF(M243<'1 Données d''entrée'!$C$333+'1 Données d''entrée'!$C$334+1+$B352,$C349*('1 Données d''entrée'!$C$332*(1+'1 Données d''entrée'!$C$332)^'1 Données d''entrée'!$C$333)/((1+'1 Données d''entrée'!$C$332)^'1 Données d''entrée'!$C$333-1),0))","v":0},{"$f":"IF(N243<'1 Données d''entrée'!$C$334+1+$B352,0,IF(N243<'1 Données d''entrée'!$C$333+'1 Données d''entrée'!$C$334+1+$B352,$C349*('1 Données d''entrée'!$C$332*(1+'1 Données d''entrée'!$C$332)^'1 Données d''entrée'!$C$333)/((1+'1 Données d''entrée'!$C$332)^'1 Données d''entrée'!$C$333-1),0))","v":0},{"$f":"IF(O243<'1 Données d''entrée'!$C$334+1+$B352,0,IF(O243<'1 Données d''entrée'!$C$333+'1 Données d''entrée'!$C$334+1+$B352,$C349*('1 Données d''entrée'!$C$332*(1+'1 Données d''entrée'!$C$332)^'1 Données d''entrée'!$C$333)/((1+'1 Données d''entrée'!$C$332)^'1 Données d''entrée'!$C$333-1),0))","v":0},{"$f":"IF(P243<'1 Données d''entrée'!$C$334+1+$B352,0,IF(P243<'1 Données d''entrée'!$C$333+'1 Données d''entrée'!$C$334+1+$B352,$C349*('1 Données d''entrée'!$C$332*(1+'1 Données d''entrée'!$C$332)^'1 Données d''entrée'!$C$333)/((1+'1 Données d''entrée'!$C$332)^'1 Données d''entrée'!$C$333-1),0))","v":0},{"$f":"IF(Q243<'1 Données d''entrée'!$C$334+1+$B352,0,IF(Q243<'1 Données d''entrée'!$C$333+'1 Données d''entrée'!$C$334+1+$B352,$C349*('1 Données d''entrée'!$C$332*(1+'1 Données d''entrée'!$C$332)^'1 Données d''entrée'!$C$333)/((1+'1 Données d''entrée'!$C$332)^'1 Données d''entrée'!$C$333-1),0))","v":0},{"$f":"IF(R243<'1 Données d''entrée'!$C$334+1+$B352,0,IF(R243<'1 Données d''entrée'!$C$333+'1 Données d''entrée'!$C$334+1+$B352,$C349*('1 Données d''entrée'!$C$332*(1+'1 Données d''entrée'!$C$332)^'1 Données d''entrée'!$C$333)/((1+'1 Données d''entrée'!$C$332)^'1 Données d''entrée'!$C$333-1),0))","v":0},{"$f":"IF(S243<'1 Données d''entrée'!$C$334+1+$B352,0,IF(S243<'1 Données d''entrée'!$C$333+'1 Données d''entrée'!$C$334+1+$B352,$C349*('1 Données d''entrée'!$C$332*(1+'1 Données d''entrée'!$C$332)^'1 Données d''entrée'!$C$333)/((1+'1 Données d''entrée'!$C$332)^'1 Données d''entrée'!$C$333-1),0))","v":0},{"$f":"IF(T243<'1 Données d''entrée'!$C$334+1+$B352,0,IF(T243<'1 Données d''entrée'!$C$333+'1 Données d''entrée'!$C$334+1+$B352,$C349*('1 Données d''entrée'!$C$332*(1+'1 Données d''entrée'!$C$332)^'1 Données d''entrée'!$C$333)/((1+'1 Données d''entrée'!$C$332)^'1 Données d''entrée'!$C$333-1),0))","v":0},{"$f":"IF(U243<'1 Données d''entrée'!$C$334+1+$B352,0,IF(U243<'1 Données d''entrée'!$C$333+'1 Données d''entrée'!$C$334+1+$B352,$C349*('1 Données d''entrée'!$C$332*(1+'1 Données d''entrée'!$C$332)^'1 Données d''entrée'!$C$333)/((1+'1 Données d''entrée'!$C$332)^'1 Données d''entrée'!$C$333-1),0))","v":0},{"$f":"IF(V243<'1 Données d''entrée'!$C$334+1+$B352,0,IF(V243<'1 Données d''entrée'!$C$333+'1 Données d''entrée'!$C$334+1+$B352,$C349*('1 Données d''entrée'!$C$332*(1+'1 Données d''entrée'!$C$332)^'1 Données d''entrée'!$C$333)/((1+'1 Données d''entrée'!$C$332)^'1 Données d''entrée'!$C$333-1),0))","v":0}]
[null,2,{"$f":"IF(C$54<'1 Données d''entrée'!$C$334+1+$B353,0,IF(C$54<'1 Données d''entrée'!$C$333+'1 Données d''entrée'!$C$334+1+$B353,$D$160*('1 Données d''entrée'!$C$332*(1+'1 Données d''entrée'!$C$332)^'1 Données d''entrée'!$C$333)/((1+'1 Données d''entrée'!$C$332)^'1 Données d''entrée'!$C$333-1),0))","v":0},{"$f":"IF(D243<'1 Données d''entrée'!$C$334+1+$B353,0,IF(D243<'1 Données d''entrée'!$C$333+'1 Données d''entrée'!$C$334+1+$B353,$D349*('1 Données d''entrée'!$C$332*(1+'1 Données d''entrée'!$C$332)^'1 Données d''entrée'!$C$333)/((1+'1 Données d''entrée'!$C$332)^'1 Données d''entrée'!$C$333-1),0))","v":0},{"$f":"IF(E243<'1 Données d''entrée'!$C$334+1+$B353,0,IF(E243<'1 Données d''entrée'!$C$333+'1 Données d''entrée'!$C$334+1+$B353,$D349*('1 Données d''entrée'!$C$332*(1+'1 Données d''entrée'!$C$332)^'1 Données d''entrée'!$C$333)/((1+'1 Données d''entrée'!$C$332)^'1 Données d''entrée'!$C$333-1),0))","v":0},{"$f":"IF(F243<'1 Données d''entrée'!$C$334+1+$B353,0,IF(F243<'1 Données d''entrée'!$C$333+'1 Données d''entrée'!$C$334+1+$B353,$D349*('1 Données d''entrée'!$C$332*(1+'1 Données d''entrée'!$C$332)^'1 Données d''entrée'!$C$333)/((1+'1 Données d''entrée'!$C$332)^'1 Données d''entrée'!$C$333-1),0))","v":0},{"$f":"IF(G243<'1 Données d''entrée'!$C$334+1+$B353,0,IF(G243<'1 Données d''entrée'!$C$333+'1 Données d''entrée'!$C$334+1+$B353,$D349*('1 Données d''entrée'!$C$332*(1+'1 Données d''entrée'!$C$332)^'1 Données d''entrée'!$C$333)/((1+'1 Données d''entrée'!$C$332)^'1 Données d''entrée'!$C$333-1),0))","v":0},{"$f":"IF(H243<'1 Données d''entrée'!$C$334+1+$B353,0,IF(H243<'1 Données d''entrée'!$C$333+'1 Données d''entrée'!$C$334+1+$B353,$D349*('1 Données d''entrée'!$C$332*(1+'1 Données d''entrée'!$C$332)^'1 Données d''entrée'!$C$333)/((1+'1 Données d''entrée'!$C$332)^'1 Données d''entrée'!$C$333-1),0))","v":0},{"$f":"IF(I243<'1 Données d''entrée'!$C$334+1+$B353,0,IF(I243<'1 Données d''entrée'!$C$333+'1 Données d''entrée'!$C$334+1+$B353,$D349*('1 Données d''entrée'!$C$332*(1+'1 Données d''entrée'!$C$332)^'1 Données d''entrée'!$C$333)/((1+'1 Données d''entrée'!$C$332)^'1 Données d''entrée'!$C$333-1),0))","v":0},{"$f":"IF(J243<'1 Données d''entrée'!$C$334+1+$B353,0,IF(J243<'1 Données d''entrée'!$C$333+'1 Données d''entrée'!$C$334+1+$B353,$D349*('1 Données d''entrée'!$C$332*(1+'1 Données d''entrée'!$C$332)^'1 Données d''entrée'!$C$333)/((1+'1 Données d''entrée'!$C$332)^'1 Données d''entrée'!$C$333-1),0))","v":0},{"$f":"IF(K243<'1 Données d''entrée'!$C$334+1+$B353,0,IF(K243<'1 Données d''entrée'!$C$333+'1 Données d''entrée'!$C$334+1+$B353,$D349*('1 Données d''entrée'!$C$332*(1+'1 Données d''entrée'!$C$332)^'1 Données d''entrée'!$C$333)/((1+'1 Données d''entrée'!$C$332)^'1 Données d''entrée'!$C$333-1),0))","v":0},{"$f":"IF(L243<'1 Données d''entrée'!$C$334+1+$B353,0,IF(L243<'1 Données d''entrée'!$C$333+'1 Données d''entrée'!$C$334+1+$B353,$D349*('1 Données d''entrée'!$C$332*(1+'1 Données d''entrée'!$C$332)^'1 Données d''entrée'!$C$333)/((1+'1 Données d''entrée'!$C$332)^'1 Données d''entrée'!$C$333-1),0))","v":0},{"$f":"IF(M243<'1 Données d''entrée'!$C$334+1+$B353,0,IF(M243<'1 Données d''entrée'!$C$333+'1 Données d''entrée'!$C$334+1+$B353,$D349*('1 Données d''entrée'!$C$332*(1+'1 Données d''entrée'!$C$332)^'1 Données d''entrée'!$C$333)/((1+'1 Données d''entrée'!$C$332)^'1 Données d''entrée'!$C$333-1),0))","v":0},{"$f":"IF(N243<'1 Données d''entrée'!$C$334+1+$B353,0,IF(N243<'1 Données d''entrée'!$C$333+'1 Données d''entrée'!$C$334+1+$B353,$D349*('1 Données d''entrée'!$C$332*(1+'1 Données d''entrée'!$C$332)^'1 Données d''entrée'!$C$333)/((1+'1 Données d''entrée'!$C$332)^'1 Données d''entrée'!$C$333-1),0))","v":0},{"$f":"IF(O243<'1 Données d''entrée'!$C$334+1+$B353,0,IF(O243<'1 Données d''entrée'!$C$333+'1 Données d''entrée'!$C$334+1+$B353,$D349*('1 Données d''entrée'!$C$332*(1+'1 Données d''entrée'!$C$332)^'1 Données d''entrée'!$C$333)/((1+'1 Données d''entrée'!$C$332)^'1 Données d''entrée'!$C$333-1),0))","v":0},{"$f":"IF(P243<'1 Données d''entrée'!$C$334+1+$B353,0,IF(P243<'1 Données d''entrée'!$C$333+'1 Données d''entrée'!$C$334+1+$B353,$D349*('1 Données d''entrée'!$C$332*(1+'1 Données d''entrée'!$C$332)^'1 Données d''entrée'!$C$333)/((1+'1 Données d''entrée'!$C$332)^'1 Données d''entrée'!$C$333-1),0))","v":0},{"$f":"IF(Q243<'1 Données d''entrée'!$C$334+1+$B353,0,IF(Q243<'1 Données d''entrée'!$C$333+'1 Données d''entrée'!$C$334+1+$B353,$D349*('1 Données d''entrée'!$C$332*(1+'1 Données d''entrée'!$C$332)^'1 Données d''entrée'!$C$333)/((1+'1 Données d''entrée'!$C$332)^'1 Données d''entrée'!$C$333-1),0))","v":0},{"$f":"IF(R243<'1 Données d''entrée'!$C$334+1+$B353,0,IF(R243<'1 Données d''entrée'!$C$333+'1 Données d''entrée'!$C$334+1+$B353,$D349*('1 Données d''entrée'!$C$332*(1+'1 Données d''entrée'!$C$332)^'1 Données d''entrée'!$C$333)/((1+'1 Données d''entrée'!$C$332)^'1 Données d''entrée'!$C$333-1),0))","v":0},{"$f":"IF(S243<'1 Données d''entrée'!$C$334+1+$B353,0,IF(S243<'1 Données d''entrée'!$C$333+'1 Données d''entrée'!$C$334+1+$B353,$D349*('1 Données d''entrée'!$C$332*(1+'1 Données d''entrée'!$C$332)^'1 Données d''entrée'!$C$333)/((1+'1 Données d''entrée'!$C$332)^'1 Données d''entrée'!$C$333-1),0))","v":0},{"$f":"IF(T243<'1 Données d''entrée'!$C$334+1+$B353,0,IF(T243<'1 Données d''entrée'!$C$333+'1 Données d''entrée'!$C$334+1+$B353,$D349*('1 Données d''entrée'!$C$332*(1+'1 Données d''entrée'!$C$332)^'1 Données d''entrée'!$C$333)/((1+'1 Données d''entrée'!$C$332)^'1 Données d''entrée'!$C$333-1),0))","v":0},{"$f":"IF(U243<'1 Données d''entrée'!$C$334+1+$B353,0,IF(U243<'1 Données d''entrée'!$C$333+'1 Données d''entrée'!$C$334+1+$B353,$D349*('1 Données d''entrée'!$C$332*(1+'1 Données d''entrée'!$C$332)^'1 Données d''entrée'!$C$333)/((1+'1 Données d''entrée'!$C$332)^'1 Données d''entrée'!$C$333-1),0))","v":0},{"$f":"IF(V243<'1 Données d''entrée'!$C$334+1+$B353,0,IF(V243<'1 Données d''entrée'!$C$333+'1 Données d''entrée'!$C$334+1+$B353,$D349*('1 Données d''entrée'!$C$332*(1+'1 Données d''entrée'!$C$332)^'1 Données d''entrée'!$C$333)/((1+'1 Données d''entrée'!$C$332)^'1 Données d''entrée'!$C$333-1),0))","v":0}]
[null,3,{"$f":"IF(C$54<'1 Données d''entrée'!$C$334+1+$B354,0,IF(C$54<'1 Données d''entrée'!$C$333+'1 Données d''entrée'!$C$334+1+$B354,$E$160*('1 Données d''entrée'!$C$332*(1+'1 Données d''entrée'!$C$332)^'1 Données d''entrée'!$C$333)/((1+'1 Données d''entrée'!$C$332)^'1 Données d''entrée'!$C$333-1),0))","v":0},{"$f":"IF(D243<'1 Données d''entrée'!$C$334+1+$B354,0,IF(D243<'1 Données d''entrée'!$C$333+'1 Données d''entrée'!$C$334+1+$B354,$E349*('1 Données d''entrée'!$C$332*(1+'1 Données d''entrée'!$C$332)^'1 Données d''entrée'!$C$333)/((1+'1 Données d''entrée'!$C$332)^'1 Données d''entrée'!$C$333-1),0))","v":0},{"$f":"IF(E243<'1 Données d''entrée'!$C$334+1+$B354,0,IF(E243<'1 Données d''entrée'!$C$333+'1 Données d''entrée'!$C$334+1+$B354,$E349*('1 Données d''entrée'!$C$332*(1+'1 Données d''entrée'!$C$332)^'1 Données d''entrée'!$C$333)/((1+'1 Données d''entrée'!$C$332)^'1 Données d''entrée'!$C$333-1),0))","v":0},{"$f":"IF(F243<'1 Données d''entrée'!$C$334+1+$B354,0,IF(F243<'1 Données d''entrée'!$C$333+'1 Données d''entrée'!$C$334+1+$B354,$E349*('1 Données d''entrée'!$C$332*(1+'1 Données d''entrée'!$C$332)^'1 Données d''entrée'!$C$333)/((1+'1 Données d''entrée'!$C$332)^'1 Données d''entrée'!$C$333-1),0))","v":0},{"$f":"IF(G243<'1 Données d''entrée'!$C$334+1+$B354,0,IF(G243<'1 Données d''entrée'!$C$333+'1 Données d''entrée'!$C$334+1+$B354,$E349*('1 Données d''entrée'!$C$332*(1+'1 Données d''entrée'!$C$332)^'1 Données d''entrée'!$C$333)/((1+'1 Données d''entrée'!$C$332)^'1 Données d''entrée'!$C$333-1),0))","v":0},{"$f":"IF(H243<'1 Données d''entrée'!$C$334+1+$B354,0,IF(H243<'1 Données d''entrée'!$C$333+'1 Données d''entrée'!$C$334+1+$B354,$E349*('1 Données d''entrée'!$C$332*(1+'1 Données d''entrée'!$C$332)^'1 Données d''entrée'!$C$333)/((1+'1 Données d''entrée'!$C$332)^'1 Données d''entrée'!$C$333-1),0))","v":0},{"$f":"IF(I243<'1 Données d''entrée'!$C$334+1+$B354,0,IF(I243<'1 Données d''entrée'!$C$333+'1 Données d''entrée'!$C$334+1+$B354,$E349*('1 Données d''entrée'!$C$332*(1+'1 Données d''entrée'!$C$332)^'1 Données d''entrée'!$C$333)/((1+'1 Données d''entrée'!$C$332)^'1 Données d''entrée'!$C$333-1),0))","v":0},{"$f":"IF(J243<'1 Données d''entrée'!$C$334+1+$B354,0,IF(J243<'1 Données d''entrée'!$C$333+'1 Données d''entrée'!$C$334+1+$B354,$E349*('1 Données d''entrée'!$C$332*(1+'1 Données d''entrée'!$C$332)^'1 Données d''entrée'!$C$333)/((1+'1 Données d''entrée'!$C$332)^'1 Données d''entrée'!$C$333-1),0))","v":0},{"$f":"IF(K243<'1 Données d''entrée'!$C$334+1+$B354,0,IF(K243<'1 Données d''entrée'!$C$333+'1 Données d''entrée'!$C$334+1+$B354,$E349*('1 Données d''entrée'!$C$332*(1+'1 Données d''entrée'!$C$332)^'1 Données d''entrée'!$C$333)/((1+'1 Données d''entrée'!$C$332)^'1 Données d''entrée'!$C$333-1),0))","v":0},{"$f":"IF(L243<'1 Données d''entrée'!$C$334+1+$B354,0,IF(L243<'1 Données d''entrée'!$C$333+'1 Données d''entrée'!$C$334+1+$B354,$E349*('1 Données d''entrée'!$C$332*(1+'1 Données d''entrée'!$C$332)^'1 Données d''entrée'!$C$333)/((1+'1 Données d''entrée'!$C$332)^'1 Données d''entrée'!$C$333-1),0))","v":0},{"$f":"IF(M243<'1 Données d''entrée'!$C$334+1+$B354,0,IF(M243<'1 Données d''entrée'!$C$333+'1 Données d''entrée'!$C$334+1+$B354,$E349*('1 Données d''entrée'!$C$332*(1+'1 Données d''entrée'!$C$332)^'1 Données d''entrée'!$C$333)/((1+'1 Données d''entrée'!$C$332)^'1 Données d''entrée'!$C$333-1),0))","v":0},{"$f":"IF(N243<'1 Données d''entrée'!$C$334+1+$B354,0,IF(N243<'1 Données d''entrée'!$C$333+'1 Données d''entrée'!$C$334+1+$B354,$E349*('1 Données d''entrée'!$C$332*(1+'1 Données d''entrée'!$C$332)^'1 Données d''entrée'!$C$333)/((1+'1 Données d''entrée'!$C$332)^'1 Données d''entrée'!$C$333-1),0))","v":0},{"$f":"IF(O243<'1 Données d''entrée'!$C$334+1+$B354,0,IF(O243<'1 Données d''entrée'!$C$333+'1 Données d''entrée'!$C$334+1+$B354,$E349*('1 Données d''entrée'!$C$332*(1+'1 Données d''entrée'!$C$332)^'1 Données d''entrée'!$C$333)/((1+'1 Données d''entrée'!$C$332)^'1 Données d''entrée'!$C$333-1),0))","v":0},{"$f":"IF(P243<'1 Données d''entrée'!$C$334+1+$B354,0,IF(P243<'1 Données d''entrée'!$C$333+'1 Données d''entrée'!$C$334+1+$B354,$E349*('1 Données d''entrée'!$C$332*(1+'1 Données d''entrée'!$C$332)^'1 Données d''entrée'!$C$333)/((1+'1 Données d''entrée'!$C$332)^'1 Données d''entrée'!$C$333-1),0))","v":0},{"$f":"IF(Q243<'1 Données d''entrée'!$C$334+1+$B354,0,IF(Q243<'1 Données d''entrée'!$C$333+'1 Données d''entrée'!$C$334+1+$B354,$E349*('1 Données d''entrée'!$C$332*(1+'1 Données d''entrée'!$C$332)^'1 Données d''entrée'!$C$333)/((1+'1 Données d''entrée'!$C$332)^'1 Données d''entrée'!$C$333-1),0))","v":0},{"$f":"IF(R243<'1 Données d''entrée'!$C$334+1+$B354,0,IF(R243<'1 Données d''entrée'!$C$333+'1 Données d''entrée'!$C$334+1+$B354,$E349*('1 Données d''entrée'!$C$332*(1+'1 Données d''entrée'!$C$332)^'1 Données d''entrée'!$C$333)/((1+'1 Données d''entrée'!$C$332)^'1 Données d''entrée'!$C$333-1),0))","v":0},{"$f":"IF(S243<'1 Données d''entrée'!$C$334+1+$B354,0,IF(S243<'1 Données d''entrée'!$C$333+'1 Données d''entrée'!$C$334+1+$B354,$E349*('1 Données d''entrée'!$C$332*(1+'1 Données d''entrée'!$C$332)^'1 Données d''entrée'!$C$333)/((1+'1 Données d''entrée'!$C$332)^'1 Données d''entrée'!$C$333-1),0))","v":0},{"$f":"IF(T243<'1 Données d''entrée'!$C$334+1+$B354,0,IF(T243<'1 Données d''entrée'!$C$333+'1 Données d''entrée'!$C$334+1+$B354,$E349*('1 Données d''entrée'!$C$332*(1+'1 Données d''entrée'!$C$332)^'1 Données d''entrée'!$C$333)/((1+'1 Données d''entrée'!$C$332)^'1 Données d''entrée'!$C$333-1),0))","v":0},{"$f":"IF(U243<'1 Données d''entrée'!$C$334+1+$B354,0,IF(U243<'1 Données d''entrée'!$C$333+'1 Données d''entrée'!$C$334+1+$B354,$E349*('1 Données d''entrée'!$C$332*(1+'1 Données d''entrée'!$C$332)^'1 Données d''entrée'!$C$333)/((1+'1 Données d''entrée'!$C$332)^'1 Données d''entrée'!$C$333-1),0))","v":0},{"$f":"IF(V243<'1 Données d''entrée'!$C$334+1+$B354,0,IF(V243<'1 Données d''entrée'!$C$333+'1 Données d''entrée'!$C$334+1+$B354,$E349*('1 Données d''entrée'!$C$332*(1+'1 Données d''entrée'!$C$332)^'1 Données d''entrée'!$C$333)/((1+'1 Données d''entrée'!$C$332)^'1 Données d''entrée'!$C$333-1),0))","v":0}]
[null,4,{"$f":"IF(C$54<'1 Données d''entrée'!$C$334+1+$B355,0,IF(C$54<'1 Données d''entrée'!$C$333+'1 Données d''entrée'!$C$334+1+$B355,$F$160*('1 Données d''entrée'!$C$332*(1+'1 Données d''entrée'!$C$332)^'1 Données d''entrée'!$C$333)/((1+'1 Données d''entrée'!$C$332)^'1 Données d''entrée'!$C$333-1),0))","v":0},{"$f":"IF(D243<'1 Données d''entrée'!$C$334+1+$B355,0,IF(D243<'1 Données d''entrée'!$C$333+'1 Données d''entrée'!$C$334+1+$B355,$F349*('1 Données d''entrée'!$C$332*(1+'1 Données d''entrée'!$C$332)^'1 Données d''entrée'!$C$333)/((1+'1 Données d''entrée'!$C$332)^'1 Données d''entrée'!$C$333-1),0))","v":0},{"$f":"IF(E243<'1 Données d''entrée'!$C$334+1+$B355,0,IF(E243<'1 Données d''entrée'!$C$333+'1 Données d''entrée'!$C$334+1+$B355,$F349*('1 Données d''entrée'!$C$332*(1+'1 Données d''entrée'!$C$332)^'1 Données d''entrée'!$C$333)/((1+'1 Données d''entrée'!$C$332)^'1 Données d''entrée'!$C$333-1),0))","v":0},{"$f":"IF(F243<'1 Données d''entrée'!$C$334+1+$B355,0,IF(F243<'1 Données d''entrée'!$C$333+'1 Données d''entrée'!$C$334+1+$B355,$F349*('1 Données d''entrée'!$C$332*(1+'1 Données d''entrée'!$C$332)^'1 Données d''entrée'!$C$333)/((1+'1 Données d''entrée'!$C$332)^'1 Données d''entrée'!$C$333-1),0))","v":0},{"$f":"IF(G243<'1 Données d''entrée'!$C$334+1+$B355,0,IF(G243<'1 Données d''entrée'!$C$333+'1 Données d''entrée'!$C$334+1+$B355,$F349*('1 Données d''entrée'!$C$332*(1+'1 Données d''entrée'!$C$332)^'1 Données d''entrée'!$C$333)/((1+'1 Données d''entrée'!$C$332)^'1 Données d''entrée'!$C$333-1),0))","v":0},{"$f":"IF(H243<'1 Données d''entrée'!$C$334+1+$B355,0,IF(H243<'1 Données d''entrée'!$C$333+'1 Données d''entrée'!$C$334+1+$B355,$F349*('1 Données d''entrée'!$C$332*(1+'1 Données d''entrée'!$C$332)^'1 Données d''entrée'!$C$333)/((1+'1 Données d''entrée'!$C$332)^'1 Données d''entrée'!$C$333-1),0))","v":0},{"$f":"IF(I243<'1 Données d''entrée'!$C$334+1+$B355,0,IF(I243<'1 Données d''entrée'!$C$333+'1 Données d''entrée'!$C$334+1+$B355,$F349*('1 Données d''entrée'!$C$332*(1+'1 Données d''entrée'!$C$332)^'1 Données d''entrée'!$C$333)/((1+'1 Données d''entrée'!$C$332)^'1 Données d''entrée'!$C$333-1),0))","v":0},{"$f":"IF(J243<'1 Données d''entrée'!$C$334+1+$B355,0,IF(J243<'1 Données d''entrée'!$C$333+'1 Données d''entrée'!$C$334+1+$B355,$F349*('1 Données d''entrée'!$C$332*(1+'1 Données d''entrée'!$C$332)^'1 Données d''entrée'!$C$333)/((1+'1 Données d''entrée'!$C$332)^'1 Données d''entrée'!$C$333-1),0))","v":0},{"$f":"IF(K243<'1 Données d''entrée'!$C$334+1+$B355,0,IF(K243<'1 Données d''entrée'!$C$333+'1 Données d''entrée'!$C$334+1+$B355,$F349*('1 Données d''entrée'!$C$332*(1+'1 Données d''entrée'!$C$332)^'1 Données d''entrée'!$C$333)/((1+'1 Données d''entrée'!$C$332)^'1 Données d''entrée'!$C$333-1),0))","v":0},{"$f":"IF(L243<'1 Données d''entrée'!$C$334+1+$B355,0,IF(L243<'1 Données d''entrée'!$C$333+'1 Données d''entrée'!$C$334+1+$B355,$F349*('1 Données d''entrée'!$C$332*(1+'1 Données d''entrée'!$C$332)^'1 Données d''entrée'!$C$333)/((1+'1 Données d''entrée'!$C$332)^'1 Données d''entrée'!$C$333-1),0))","v":0},{"$f":"IF(M243<'1 Données d''entrée'!$C$334+1+$B355,0,IF(M243<'1 Données d''entrée'!$C$333+'1 Données d''entrée'!$C$334+1+$B355,$F349*('1 Données d''entrée'!$C$332*(1+'1 Données d''entrée'!$C$332)^'1 Données d''entrée'!$C$333)/((1+'1 Données d''entrée'!$C$332)^'1 Données d''entrée'!$C$333-1),0))","v":0},{"$f":"IF(N243<'1 Données d''entrée'!$C$334+1+$B355,0,IF(N243<'1 Données d''entrée'!$C$333+'1 Données d''entrée'!$C$334+1+$B355,$F349*('1 Données d''entrée'!$C$332*(1+'1 Données d''entrée'!$C$332)^'1 Données d''entrée'!$C$333)/((1+'1 Données d''entrée'!$C$332)^'1 Données d''entrée'!$C$333-1),0))","v":0},{"$f":"IF(O243<'1 Données d''entrée'!$C$334+1+$B355,0,IF(O243<'1 Données d''entrée'!$C$333+'1 Données d''entrée'!$C$334+1+$B355,$F349*('1 Données d''entrée'!$C$332*(1+'1 Données d''entrée'!$C$332)^'1 Données d''entrée'!$C$333)/((1+'1 Données d''entrée'!$C$332)^'1 Données d''entrée'!$C$333-1),0))","v":0},{"$f":"IF(P243<'1 Données d''entrée'!$C$334+1+$B355,0,IF(P243<'1 Données d''entrée'!$C$333+'1 Données d''entrée'!$C$334+1+$B355,$F349*('1 Données d''entrée'!$C$332*(1+'1 Données d''entrée'!$C$332)^'1 Données d''entrée'!$C$333)/((1+'1 Données d''entrée'!$C$332)^'1 Données d''entrée'!$C$333-1),0))","v":0},{"$f":"IF(Q243<'1 Données d''entrée'!$C$334+1+$B355,0,IF(Q243<'1 Données d''entrée'!$C$333+'1 Données d''entrée'!$C$334+1+$B355,$F349*('1 Données d''entrée'!$C$332*(1+'1 Données d''entrée'!$C$332)^'1 Données d''entrée'!$C$333)/((1+'1 Données d''entrée'!$C$332)^'1 Données d''entrée'!$C$333-1),0))","v":0},{"$f":"IF(R243<'1 Données d''entrée'!$C$334+1+$B355,0,IF(R243<'1 Données d''entrée'!$C$333+'1 Données d''entrée'!$C$334+1+$B355,$F349*('1 Données d''entrée'!$C$332*(1+'1 Données d''entrée'!$C$332)^'1 Données d''entrée'!$C$333)/((1+'1 Données d''entrée'!$C$332)^'1 Données d''entrée'!$C$333-1),0))","v":0},{"$f":"IF(S243<'1 Données d''entrée'!$C$334+1+$B355,0,IF(S243<'1 Données d''entrée'!$C$333+'1 Données d''entrée'!$C$334+1+$B355,$F349*('1 Données d''entrée'!$C$332*(1+'1 Données d''entrée'!$C$332)^'1 Données d''entrée'!$C$333)/((1+'1 Données d''entrée'!$C$332)^'1 Données d''entrée'!$C$333-1),0))","v":0},{"$f":"IF(T243<'1 Données d''entrée'!$C$334+1+$B355,0,IF(T243<'1 Données d''entrée'!$C$333+'1 Données d''entrée'!$C$334+1+$B355,$F349*('1 Données d''entrée'!$C$332*(1+'1 Données d''entrée'!$C$332)^'1 Données d''entrée'!$C$333)/((1+'1 Données d''entrée'!$C$332)^'1 Données d''entrée'!$C$333-1),0))","v":0},{"$f":"IF(U243<'1 Données d''entrée'!$C$334+1+$B355,0,IF(U243<'1 Données d''entrée'!$C$333+'1 Données d''entrée'!$C$334+1+$B355,$F349*('1 Données d''entrée'!$C$332*(1+'1 Données d''entrée'!$C$332)^'1 Données d''entrée'!$C$333)/((1+'1 Données d''entrée'!$C$332)^'1 Données d''entrée'!$C$333-1),0))","v":0},{"$f":"IF(V243<'1 Données d''entrée'!$C$334+1+$B355,0,IF(V243<'1 Données d''entrée'!$C$333+'1 Données d''entrée'!$C$334+1+$B355,$F349*('1 Données d''entrée'!$C$332*(1+'1 Données d''entrée'!$C$332)^'1 Données d''entrée'!$C$333)/((1+'1 Données d''entrée'!$C$332)^'1 Données d''entrée'!$C$333-1),0))","v":0}]
[null,5,{"$f":"IF(C$54<'1 Données d''entrée'!$C$334+1+$B356,0,IF(C$54<'1 Données d''entrée'!$C$333+'1 Données d''entrée'!$C$334+1+$B356,$G$160*('1 Données d''entrée'!$C$332*(1+'1 Données d''entrée'!$C$332)^'1 Données d''entrée'!$C$333)/((1+'1 Données d''entrée'!$C$332)^'1 Données d''entrée'!$C$333-1),0))","v":0},{"$f":"IF(D243<'1 Données d''entrée'!$C$334+1+$B356,0,IF(D243<'1 Données d''entrée'!$C$333+'1 Données d''entrée'!$C$334+1+$B356,$G349*('1 Données d''entrée'!$C$332*(1+'1 Données d''entrée'!$C$332)^'1 Données d''entrée'!$C$333)/((1+'1 Données d''entrée'!$C$332)^'1 Données d''entrée'!$C$333-1),0))","v":0},{"$f":"IF(E243<'1 Données d''entrée'!$C$334+1+$B356,0,IF(E243<'1 Données d''entrée'!$C$333+'1 Données d''entrée'!$C$334+1+$B356,$G349*('1 Données d''entrée'!$C$332*(1+'1 Données d''entrée'!$C$332)^'1 Données d''entrée'!$C$333)/((1+'1 Données d''entrée'!$C$332)^'1 Données d''entrée'!$C$333-1),0))","v":0},{"$f":"IF(F243<'1 Données d''entrée'!$C$334+1+$B356,0,IF(F243<'1 Données d''entrée'!$C$333+'1 Données d''entrée'!$C$334+1+$B356,$G349*('1 Données d''entrée'!$C$332*(1+'1 Données d''entrée'!$C$332)^'1 Données d''entrée'!$C$333)/((1+'1 Données d''entrée'!$C$332)^'1 Données d''entrée'!$C$333-1),0))","v":0},{"$f":"IF(G243<'1 Données d''entrée'!$C$334+1+$B356,0,IF(G243<'1 Données d''entrée'!$C$333+'1 Données d''entrée'!$C$334+1+$B356,$G349*('1 Données d''entrée'!$C$332*(1+'1 Données d''entrée'!$C$332)^'1 Données d''entrée'!$C$333)/((1+'1 Données d''entrée'!$C$332)^'1 Données d''entrée'!$C$333-1),0))","v":0},{"$f":"IF(H243<'1 Données d''entrée'!$C$334+1+$B356,0,IF(H243<'1 Données d''entrée'!$C$333+'1 Données d''entrée'!$C$334+1+$B356,$G349*('1 Données d''entrée'!$C$332*(1+'1 Données d''entrée'!$C$332)^'1 Données d''entrée'!$C$333)/((1+'1 Données d''entrée'!$C$332)^'1 Données d''entrée'!$C$333-1),0))","v":0},{"$f":"IF(I243<'1 Données d''entrée'!$C$334+1+$B356,0,IF(I243<'1 Données d''entrée'!$C$333+'1 Données d''entrée'!$C$334+1+$B356,$G349*('1 Données d''entrée'!$C$332*(1+'1 Données d''entrée'!$C$332)^'1 Données d''entrée'!$C$333)/((1+'1 Données d''entrée'!$C$332)^'1 Données d''entrée'!$C$333-1),0))","v":0},{"$f":"IF(J243<'1 Données d''entrée'!$C$334+1+$B356,0,IF(J243<'1 Données d''entrée'!$C$333+'1 Données d''entrée'!$C$334+1+$B356,$G349*('1 Données d''entrée'!$C$332*(1+'1 Données d''entrée'!$C$332)^'1 Données d''entrée'!$C$333)/((1+'1 Données d''entrée'!$C$332)^'1 Données d''entrée'!$C$333-1),0))","v":0},{"$f":"IF(K243<'1 Données d''entrée'!$C$334+1+$B356,0,IF(K243<'1 Données d''entrée'!$C$333+'1 Données d''entrée'!$C$334+1+$B356,$G349*('1 Données d''entrée'!$C$332*(1+'1 Données d''entrée'!$C$332)^'1 Données d''entrée'!$C$333)/((1+'1 Données d''entrée'!$C$332)^'1 Données d''entrée'!$C$333-1),0))","v":0},{"$f":"IF(L243<'1 Données d''entrée'!$C$334+1+$B356,0,IF(L243<'1 Données d''entrée'!$C$333+'1 Données d''entrée'!$C$334+1+$B356,$G349*('1 Données d''entrée'!$C$332*(1+'1 Données d''entrée'!$C$332)^'1 Données d''entrée'!$C$333)/((1+'1 Données d''entrée'!$C$332)^'1 Données d''entrée'!$C$333-1),0))","v":0},{"$f":"IF(M243<'1 Données d''entrée'!$C$334+1+$B356,0,IF(M243<'1 Données d''entrée'!$C$333+'1 Données d''entrée'!$C$334+1+$B356,$G349*('1 Données d''entrée'!$C$332*(1+'1 Données d''entrée'!$C$332)^'1 Données d''entrée'!$C$333)/((1+'1 Données d''entrée'!$C$332)^'1 Données d''entrée'!$C$333-1),0))","v":0},{"$f":"IF(N243<'1 Données d''entrée'!$C$334+1+$B356,0,IF(N243<'1 Données d''entrée'!$C$333+'1 Données d''entrée'!$C$334+1+$B356,$G349*('1 Données d''entrée'!$C$332*(1+'1 Données d''entrée'!$C$332)^'1 Données d''entrée'!$C$333)/((1+'1 Données d''entrée'!$C$332)^'1 Données d''entrée'!$C$333-1),0))","v":0},{"$f":"IF(O243<'1 Données d''entrée'!$C$334+1+$B356,0,IF(O243<'1 Données d''entrée'!$C$333+'1 Données d''entrée'!$C$334+1+$B356,$G349*('1 Données d''entrée'!$C$332*(1+'1 Données d''entrée'!$C$332)^'1 Données d''entrée'!$C$333)/((1+'1 Données d''entrée'!$C$332)^'1 Données d''entrée'!$C$333-1),0))","v":0},{"$f":"IF(P243<'1 Données d''entrée'!$C$334+1+$B356,0,IF(P243<'1 Données d''entrée'!$C$333+'1 Données d''entrée'!$C$334+1+$B356,$G349*('1 Données d''entrée'!$C$332*(1+'1 Données d''entrée'!$C$332)^'1 Données d''entrée'!$C$333)/((1+'1 Données d''entrée'!$C$332)^'1 Données d''entrée'!$C$333-1),0))","v":0},{"$f":"IF(Q243<'1 Données d''entrée'!$C$334+1+$B356,0,IF(Q243<'1 Données d''entrée'!$C$333+'1 Données d''entrée'!$C$334+1+$B356,$G349*('1 Données d''entrée'!$C$332*(1+'1 Données d''entrée'!$C$332)^'1 Données d''entrée'!$C$333)/((1+'1 Données d''entrée'!$C$332)^'1 Données d''entrée'!$C$333-1),0))","v":0},{"$f":"IF(R243<'1 Données d''entrée'!$C$334+1+$B356,0,IF(R243<'1 Données d''entrée'!$C$333+'1 Données d''entrée'!$C$334+1+$B356,$G349*('1 Données d''entrée'!$C$332*(1+'1 Données d''entrée'!$C$332)^'1 Données d''entrée'!$C$333)/((1+'1 Données d''entrée'!$C$332)^'1 Données d''entrée'!$C$333-1),0))","v":0},{"$f":"IF(S243<'1 Données d''entrée'!$C$334+1+$B356,0,IF(S243<'1 Données d''entrée'!$C$333+'1 Données d''entrée'!$C$334+1+$B356,$G349*('1 Données d''entrée'!$C$332*(1+'1 Données d''entrée'!$C$332)^'1 Données d''entrée'!$C$333)/((1+'1 Données d''entrée'!$C$332)^'1 Données d''entrée'!$C$333-1),0))","v":0},{"$f":"IF(T243<'1 Données d''entrée'!$C$334+1+$B356,0,IF(T243<'1 Données d''entrée'!$C$333+'1 Données d''entrée'!$C$334+1+$B356,$G349*('1 Données d''entrée'!$C$332*(1+'1 Données d''entrée'!$C$332)^'1 Données d''entrée'!$C$333)/((1+'1 Données d''entrée'!$C$332)^'1 Données d''entrée'!$C$333-1),0))","v":0},{"$f":"IF(U243<'1 Données d''entrée'!$C$334+1+$B356,0,IF(U243<'1 Données d''entrée'!$C$333+'1 Données d''entrée'!$C$334+1+$B356,$G349*('1 Données d''entrée'!$C$332*(1+'1 Données d''entrée'!$C$332)^'1 Données d''entrée'!$C$333)/((1+'1 Données d''entrée'!$C$332)^'1 Données d''entrée'!$C$333-1),0))","v":0},{"$f":"IF(V243<'1 Données d''entrée'!$C$334+1+$B356,0,IF(V243<'1 Données d''entrée'!$C$333+'1 Données d''entrée'!$C$334+1+$B356,$G349*('1 Données d''entrée'!$C$332*(1+'1 Données d''entrée'!$C$332)^'1 Données d''entrée'!$C$333)/((1+'1 Données d''entrée'!$C$332)^'1 Données d''entrée'!$C$333-1),0))","v":0}]
[null,6,{"$f":"IF(C$54<'1 Données d''entrée'!$C$334+1+$B357,0,IF(C$54<'1 Données d''entrée'!$C$333+'1 Données d''entrée'!$C$334+1+$B357,$H$160*('1 Données d''entrée'!$C$332*(1+'1 Données d''entrée'!$C$332)^'1 Données d''entrée'!$C$333)/((1+'1 Données d''entrée'!$C$332)^'1 Données d''entrée'!$C$333-1),0))","v":0},{"$f":"IF(D243<'1 Données d''entrée'!$C$334+1+$B357,0,IF(D243<'1 Données d''entrée'!$C$333+'1 Données d''entrée'!$C$334+1+$B357,$H349*('1 Données d''entrée'!$C$332*(1+'1 Données d''entrée'!$C$332)^'1 Données d''entrée'!$C$333)/((1+'1 Données d''entrée'!$C$332)^'1 Données d''entrée'!$C$333-1),0))","v":0},{"$f":"IF(E243<'1 Données d''entrée'!$C$334+1+$B357,0,IF(E243<'1 Données d''entrée'!$C$333+'1 Données d''entrée'!$C$334+1+$B357,$H349*('1 Données d''entrée'!$C$332*(1+'1 Données d''entrée'!$C$332)^'1 Données d''entrée'!$C$333)/((1+'1 Données d''entrée'!$C$332)^'1 Données d''entrée'!$C$333-1),0))","v":0},{"$f":"IF(F243<'1 Données d''entrée'!$C$334+1+$B357,0,IF(F243<'1 Données d''entrée'!$C$333+'1 Données d''entrée'!$C$334+1+$B357,$H349*('1 Données d''entrée'!$C$332*(1+'1 Données d''entrée'!$C$332)^'1 Données d''entrée'!$C$333)/((1+'1 Données d''entrée'!$C$332)^'1 Données d''entrée'!$C$333-1),0))","v":0},{"$f":"IF(G243<'1 Données d''entrée'!$C$334+1+$B357,0,IF(G243<'1 Données d''entrée'!$C$333+'1 Données d''entrée'!$C$334+1+$B357,$H349*('1 Données d''entrée'!$C$332*(1+'1 Données d''entrée'!$C$332)^'1 Données d''entrée'!$C$333)/((1+'1 Données d''entrée'!$C$332)^'1 Données d''entrée'!$C$333-1),0))","v":0},{"$f":"IF(H243<'1 Données d''entrée'!$C$334+1+$B357,0,IF(H243<'1 Données d''entrée'!$C$333+'1 Données d''entrée'!$C$334+1+$B357,$H349*('1 Données d''entrée'!$C$332*(1+'1 Données d''entrée'!$C$332)^'1 Données d''entrée'!$C$333)/((1+'1 Données d''entrée'!$C$332)^'1 Données d''entrée'!$C$333-1),0))","v":0},{"$f":"IF(I243<'1 Données d''entrée'!$C$334+1+$B357,0,IF(I243<'1 Données d''entrée'!$C$333+'1 Données d''entrée'!$C$334+1+$B357,$H349*('1 Données d''entrée'!$C$332*(1+'1 Données d''entrée'!$C$332)^'1 Données d''entrée'!$C$333)/((1+'1 Données d''entrée'!$C$332)^'1 Données d''entrée'!$C$333-1),0))","v":0},{"$f":"IF(J243<'1 Données d''entrée'!$C$334+1+$B357,0,IF(J243<'1 Données d''entrée'!$C$333+'1 Données d''entrée'!$C$334+1+$B357,$H349*('1 Données d''entrée'!$C$332*(1+'1 Données d''entrée'!$C$332)^'1 Données d''entrée'!$C$333)/((1+'1 Données d''entrée'!$C$332)^'1 Données d''entrée'!$C$333-1),0))","v":0},{"$f":"IF(K243<'1 Données d''entrée'!$C$334+1+$B357,0,IF(K243<'1 Données d''entrée'!$C$333+'1 Données d''entrée'!$C$334+1+$B357,$H349*('1 Données d''entrée'!$C$332*(1+'1 Données d''entrée'!$C$332)^'1 Données d''entrée'!$C$333)/((1+'1 Données d''entrée'!$C$332)^'1 Données d''entrée'!$C$333-1),0))","v":0},{"$f":"IF(L243<'1 Données d''entrée'!$C$334+1+$B357,0,IF(L243<'1 Données d''entrée'!$C$333+'1 Données d''entrée'!$C$334+1+$B357,$H349*('1 Données d''entrée'!$C$332*(1+'1 Données d''entrée'!$C$332)^'1 Données d''entrée'!$C$333)/((1+'1 Données d''entrée'!$C$332)^'1 Données d''entrée'!$C$333-1),0))","v":0},{"$f":"IF(M243<'1 Données d''entrée'!$C$334+1+$B357,0,IF(M243<'1 Données d''entrée'!$C$333+'1 Données d''entrée'!$C$334+1+$B357,$H349*('1 Données d''entrée'!$C$332*(1+'1 Données d''entrée'!$C$332)^'1 Données d''entrée'!$C$333)/((1+'1 Données d''entrée'!$C$332)^'1 Données d''entrée'!$C$333-1),0))","v":0},{"$f":"IF(N243<'1 Données d''entrée'!$C$334+1+$B357,0,IF(N243<'1 Données d''entrée'!$C$333+'1 Données d''entrée'!$C$334+1+$B357,$H349*('1 Données d''entrée'!$C$332*(1+'1 Données d''entrée'!$C$332)^'1 Données d''entrée'!$C$333)/((1+'1 Données d''entrée'!$C$332)^'1 Données d''entrée'!$C$333-1),0))","v":0},{"$f":"IF(O243<'1 Données d''entrée'!$C$334+1+$B357,0,IF(O243<'1 Données d''entrée'!$C$333+'1 Données d''entrée'!$C$334+1+$B357,$H349*('1 Données d''entrée'!$C$332*(1+'1 Données d''entrée'!$C$332)^'1 Données d''entrée'!$C$333)/((1+'1 Données d''entrée'!$C$332)^'1 Données d''entrée'!$C$333-1),0))","v":0},{"$f":"IF(P243<'1 Données d''entrée'!$C$334+1+$B357,0,IF(P243<'1 Données d''entrée'!$C$333+'1 Données d''entrée'!$C$334+1+$B357,$H349*('1 Données d''entrée'!$C$332*(1+'1 Données d''entrée'!$C$332)^'1 Données d''entrée'!$C$333)/((1+'1 Données d''entrée'!$C$332)^'1 Données d''entrée'!$C$333-1),0))","v":0},{"$f":"IF(Q243<'1 Données d''entrée'!$C$334+1+$B357,0,IF(Q243<'1 Données d''entrée'!$C$333+'1 Données d''entrée'!$C$334+1+$B357,$H349*('1 Données d''entrée'!$C$332*(1+'1 Données d''entrée'!$C$332)^'1 Données d''entrée'!$C$333)/((1+'1 Données d''entrée'!$C$332)^'1 Données d''entrée'!$C$333-1),0))","v":0},{"$f":"IF(R243<'1 Données d''entrée'!$C$334+1+$B357,0,IF(R243<'1 Données d''entrée'!$C$333+'1 Données d''entrée'!$C$334+1+$B357,$H349*('1 Données d''entrée'!$C$332*(1+'1 Données d''entrée'!$C$332)^'1 Données d''entrée'!$C$333)/((1+'1 Données d''entrée'!$C$332)^'1 Données d''entrée'!$C$333-1),0))","v":0},{"$f":"IF(S243<'1 Données d''entrée'!$C$334+1+$B357,0,IF(S243<'1 Données d''entrée'!$C$333+'1 Données d''entrée'!$C$334+1+$B357,$H349*('1 Données d''entrée'!$C$332*(1+'1 Données d''entrée'!$C$332)^'1 Données d''entrée'!$C$333)/((1+'1 Données d''entrée'!$C$332)^'1 Données d''entrée'!$C$333-1),0))","v":0},{"$f":"IF(T243<'1 Données d''entrée'!$C$334+1+$B357,0,IF(T243<'1 Données d''entrée'!$C$333+'1 Données d''entrée'!$C$334+1+$B357,$H349*('1 Données d''entrée'!$C$332*(1+'1 Données d''entrée'!$C$332)^'1 Données d''entrée'!$C$333)/((1+'1 Données d''entrée'!$C$332)^'1 Données d''entrée'!$C$333-1),0))","v":0},{"$f":"IF(U243<'1 Données d''entrée'!$C$334+1+$B357,0,IF(U243<'1 Données d''entrée'!$C$333+'1 Données d''entrée'!$C$334+1+$B357,$H349*('1 Données d''entrée'!$C$332*(1+'1 Données d''entrée'!$C$332)^'1 Données d''entrée'!$C$333)/((1+'1 Données d''entrée'!$C$332)^'1 Données d''entrée'!$C$333-1),0))","v":0},{"$f":"IF(V243<'1 Données d''entrée'!$C$334+1+$B357,0,IF(V243<'1 Données d''entrée'!$C$333+'1 Données d''entrée'!$C$334+1+$B357,$H349*('1 Données d''entrée'!$C$332*(1+'1 Données d''entrée'!$C$332)^'1 Données d''entrée'!$C$333)/((1+'1 Données d''entrée'!$C$332)^'1 Données d''entrée'!$C$333-1),0))","v":0}]
[null,7,{"$f":"IF(C$54<'1 Données d''entrée'!$C$334+1+$B358,0,IF(C$54<'1 Données d''entrée'!$C$333+'1 Données d''entrée'!$C$334+1+$B358,$I$160*('1 Données d''entrée'!$C$332*(1+'1 Données d''entrée'!$C$332)^'1 Données d''entrée'!$C$333)/((1+'1 Données d''entrée'!$C$332)^'1 Données d''entrée'!$C$333-1),0))","v":0},{"$f":"IF(D243<'1 Données d''entrée'!$C$334+1+$B358,0,IF(D243<'1 Données d''entrée'!$C$333+'1 Données d''entrée'!$C$334+1+$B358,$I349*('1 Données d''entrée'!$C$332*(1+'1 Données d''entrée'!$C$332)^'1 Données d''entrée'!$C$333)/((1+'1 Données d''entrée'!$C$332)^'1 Données d''entrée'!$C$333-1),0))","v":0},{"$f":"IF(E243<'1 Données d''entrée'!$C$334+1+$B358,0,IF(E243<'1 Données d''entrée'!$C$333+'1 Données d''entrée'!$C$334+1+$B358,$I349*('1 Données d''entrée'!$C$332*(1+'1 Données d''entrée'!$C$332)^'1 Données d''entrée'!$C$333)/((1+'1 Données d''entrée'!$C$332)^'1 Données d''entrée'!$C$333-1),0))","v":0},{"$f":"IF(F243<'1 Données d''entrée'!$C$334+1+$B358,0,IF(F243<'1 Données d''entrée'!$C$333+'1 Données d''entrée'!$C$334+1+$B358,$I349*('1 Données d''entrée'!$C$332*(1+'1 Données d''entrée'!$C$332)^'1 Données d''entrée'!$C$333)/((1+'1 Données d''entrée'!$C$332)^'1 Données d''entrée'!$C$333-1),0))","v":0},{"$f":"IF(G243<'1 Données d''entrée'!$C$334+1+$B358,0,IF(G243<'1 Données d''entrée'!$C$333+'1 Données d''entrée'!$C$334+1+$B358,$I349*('1 Données d''entrée'!$C$332*(1+'1 Données d''entrée'!$C$332)^'1 Données d''entrée'!$C$333)/((1+'1 Données d''entrée'!$C$332)^'1 Données d''entrée'!$C$333-1),0))","v":0},{"$f":"IF(H243<'1 Données d''entrée'!$C$334+1+$B358,0,IF(H243<'1 Données d''entrée'!$C$333+'1 Données d''entrée'!$C$334+1+$B358,$I349*('1 Données d''entrée'!$C$332*(1+'1 Données d''entrée'!$C$332)^'1 Données d''entrée'!$C$333)/((1+'1 Données d''entrée'!$C$332)^'1 Données d''entrée'!$C$333-1),0))","v":0},{"$f":"IF(I243<'1 Données d''entrée'!$C$334+1+$B358,0,IF(I243<'1 Données d''entrée'!$C$333+'1 Données d''entrée'!$C$334+1+$B358,$I349*('1 Données d''entrée'!$C$332*(1+'1 Données d''entrée'!$C$332)^'1 Données d''entrée'!$C$333)/((1+'1 Données d''entrée'!$C$332)^'1 Données d''entrée'!$C$333-1),0))","v":0},{"$f":"IF(J243<'1 Données d''entrée'!$C$334+1+$B358,0,IF(J243<'1 Données d''entrée'!$C$333+'1 Données d''entrée'!$C$334+1+$B358,$I349*('1 Données d''entrée'!$C$332*(1+'1 Données d''entrée'!$C$332)^'1 Données d''entrée'!$C$333)/((1+'1 Données d''entrée'!$C$332)^'1 Données d''entrée'!$C$333-1),0))","v":0},{"$f":"IF(K243<'1 Données d''entrée'!$C$334+1+$B358,0,IF(K243<'1 Données d''entrée'!$C$333+'1 Données d''entrée'!$C$334+1+$B358,$I349*('1 Données d''entrée'!$C$332*(1+'1 Données d''entrée'!$C$332)^'1 Données d''entrée'!$C$333)/((1+'1 Données d''entrée'!$C$332)^'1 Données d''entrée'!$C$333-1),0))","v":0},{"$f":"IF(L243<'1 Données d''entrée'!$C$334+1+$B358,0,IF(L243<'1 Données d''entrée'!$C$333+'1 Données d''entrée'!$C$334+1+$B358,$I349*('1 Données d''entrée'!$C$332*(1+'1 Données d''entrée'!$C$332)^'1 Données d''entrée'!$C$333)/((1+'1 Données d''entrée'!$C$332)^'1 Données d''entrée'!$C$333-1),0))","v":0},{"$f":"IF(M243<'1 Données d''entrée'!$C$334+1+$B358,0,IF(M243<'1 Données d''entrée'!$C$333+'1 Données d''entrée'!$C$334+1+$B358,$I349*('1 Données d''entrée'!$C$332*(1+'1 Données d''entrée'!$C$332)^'1 Données d''entrée'!$C$333)/((1+'1 Données d''entrée'!$C$332)^'1 Données d''entrée'!$C$333-1),0))","v":0},{"$f":"IF(N243<'1 Données d''entrée'!$C$334+1+$B358,0,IF(N243<'1 Données d''entrée'!$C$333+'1 Données d''entrée'!$C$334+1+$B358,$I349*('1 Données d''entrée'!$C$332*(1+'1 Données d''entrée'!$C$332)^'1 Données d''entrée'!$C$333)/((1+'1 Données d''entrée'!$C$332)^'1 Données d''entrée'!$C$333-1),0))","v":0},{"$f":"IF(O243<'1 Données d''entrée'!$C$334+1+$B358,0,IF(O243<'1 Données d''entrée'!$C$333+'1 Données d''entrée'!$C$334+1+$B358,$I349*('1 Données d''entrée'!$C$332*(1+'1 Données d''entrée'!$C$332)^'1 Données d''entrée'!$C$333)/((1+'1 Données d''entrée'!$C$332)^'1 Données d''entrée'!$C$333-1),0))","v":0},{"$f":"IF(P243<'1 Données d''entrée'!$C$334+1+$B358,0,IF(P243<'1 Données d''entrée'!$C$333+'1 Données d''entrée'!$C$334+1+$B358,$I349*('1 Données d''entrée'!$C$332*(1+'1 Données d''entrée'!$C$332)^'1 Données d''entrée'!$C$333)/((1+'1 Données d''entrée'!$C$332)^'1 Données d''entrée'!$C$333-1),0))","v":0},{"$f":"IF(Q243<'1 Données d''entrée'!$C$334+1+$B358,0,IF(Q243<'1 Données d''entrée'!$C$333+'1 Données d''entrée'!$C$334+1+$B358,$I349*('1 Données d''entrée'!$C$332*(1+'1 Données d''entrée'!$C$332)^'1 Données d''entrée'!$C$333)/((1+'1 Données d''entrée'!$C$332)^'1 Données d''entrée'!$C$333-1),0))","v":0},{"$f":"IF(R243<'1 Données d''entrée'!$C$334+1+$B358,0,IF(R243<'1 Données d''entrée'!$C$333+'1 Données d''entrée'!$C$334+1+$B358,$I349*('1 Données d''entrée'!$C$332*(1+'1 Données d''entrée'!$C$332)^'1 Données d''entrée'!$C$333)/((1+'1 Données d''entrée'!$C$332)^'1 Données d''entrée'!$C$333-1),0))","v":0},{"$f":"IF(S243<'1 Données d''entrée'!$C$334+1+$B358,0,IF(S243<'1 Données d''entrée'!$C$333+'1 Données d''entrée'!$C$334+1+$B358,$I349*('1 Données d''entrée'!$C$332*(1+'1 Données d''entrée'!$C$332)^'1 Données d''entrée'!$C$333)/((1+'1 Données d''entrée'!$C$332)^'1 Données d''entrée'!$C$333-1),0))","v":0},{"$f":"IF(T243<'1 Données d''entrée'!$C$334+1+$B358,0,IF(T243<'1 Données d''entrée'!$C$333+'1 Données d''entrée'!$C$334+1+$B358,$I349*('1 Données d''entrée'!$C$332*(1+'1 Données d''entrée'!$C$332)^'1 Données d''entrée'!$C$333)/((1+'1 Données d''entrée'!$C$332)^'1 Données d''entrée'!$C$333-1),0))","v":0},{"$f":"IF(U243<'1 Données d''entrée'!$C$334+1+$B358,0,IF(U243<'1 Données d''entrée'!$C$333+'1 Données d''entrée'!$C$334+1+$B358,$I349*('1 Données d''entrée'!$C$332*(1+'1 Données d''entrée'!$C$332)^'1 Données d''entrée'!$C$333)/((1+'1 Données d''entrée'!$C$332)^'1 Données d''entrée'!$C$333-1),0))","v":0},{"$f":"IF(V243<'1 Données d''entrée'!$C$334+1+$B358,0,IF(V243<'1 Données d''entrée'!$C$333+'1 Données d''entrée'!$C$334+1+$B358,$I349*('1 Données d''entrée'!$C$332*(1+'1 Données d''entrée'!$C$332)^'1 Données d''entrée'!$C$333)/((1+'1 Données d''entrée'!$C$332)^'1 Données d''entrée'!$C$333-1),0))","v":0}]
[null,8,{"$f":"IF(C$54<'1 Données d''entrée'!$C$334+1+$B359,0,IF(C$54<'1 Données d''entrée'!$C$333+'1 Données d''entrée'!$C$334+1+$B359,$J$160*('1 Données d''entrée'!$C$332*(1+'1 Données d''entrée'!$C$332)^'1 Données d''entrée'!$C$333)/((1+'1 Données d''entrée'!$C$332)^'1 Données d''entrée'!$C$333-1),0))","v":0},{"$f":"IF(D243<'1 Données d''entrée'!$C$334+1+$B359,0,IF(D243<'1 Données d''entrée'!$C$333+'1 Données d''entrée'!$C$334+1+$B359,$J349*('1 Données d''entrée'!$C$332*(1+'1 Données d''entrée'!$C$332)^'1 Données d''entrée'!$C$333)/((1+'1 Données d''entrée'!$C$332)^'1 Données d''entrée'!$C$333-1),0))","v":0},{"$f":"IF(E243<'1 Données d''entrée'!$C$334+1+$B359,0,IF(E243<'1 Données d''entrée'!$C$333+'1 Données d''entrée'!$C$334+1+$B359,$J349*('1 Données d''entrée'!$C$332*(1+'1 Données d''entrée'!$C$332)^'1 Données d''entrée'!$C$333)/((1+'1 Données d''entrée'!$C$332)^'1 Données d''entrée'!$C$333-1),0))","v":0},{"$f":"IF(F243<'1 Données d''entrée'!$C$334+1+$B359,0,IF(F243<'1 Données d''entrée'!$C$333+'1 Données d''entrée'!$C$334+1+$B359,$J349*('1 Données d''entrée'!$C$332*(1+'1 Données d''entrée'!$C$332)^'1 Données d''entrée'!$C$333)/((1+'1 Données d''entrée'!$C$332)^'1 Données d''entrée'!$C$333-1),0))","v":0},{"$f":"IF(G243<'1 Données d''entrée'!$C$334+1+$B359,0,IF(G243<'1 Données d''entrée'!$C$333+'1 Données d''entrée'!$C$334+1+$B359,$J349*('1 Données d''entrée'!$C$332*(1+'1 Données d''entrée'!$C$332)^'1 Données d''entrée'!$C$333)/((1+'1 Données d''entrée'!$C$332)^'1 Données d''entrée'!$C$333-1),0))","v":0},{"$f":"IF(H243<'1 Données d''entrée'!$C$334+1+$B359,0,IF(H243<'1 Données d''entrée'!$C$333+'1 Données d''entrée'!$C$334+1+$B359,$J349*('1 Données d''entrée'!$C$332*(1+'1 Données d''entrée'!$C$332)^'1 Données d''entrée'!$C$333)/((1+'1 Données d''entrée'!$C$332)^'1 Données d''entrée'!$C$333-1),0))","v":0},{"$f":"IF(I243<'1 Données d''entrée'!$C$334+1+$B359,0,IF(I243<'1 Données d''entrée'!$C$333+'1 Données d''entrée'!$C$334+1+$B359,$J349*('1 Données d''entrée'!$C$332*(1+'1 Données d''entrée'!$C$332)^'1 Données d''entrée'!$C$333)/((1+'1 Données d''entrée'!$C$332)^'1 Données d''entrée'!$C$333-1),0))","v":0},{"$f":"IF(J243<'1 Données d''entrée'!$C$334+1+$B359,0,IF(J243<'1 Données d''entrée'!$C$333+'1 Données d''entrée'!$C$334+1+$B359,$J349*('1 Données d''entrée'!$C$332*(1+'1 Données d''entrée'!$C$332)^'1 Données d''entrée'!$C$333)/((1+'1 Données d''entrée'!$C$332)^'1 Données d''entrée'!$C$333-1),0))","v":0},{"$f":"IF(K243<'1 Données d''entrée'!$C$334+1+$B359,0,IF(K243<'1 Données d''entrée'!$C$333+'1 Données d''entrée'!$C$334+1+$B359,$J349*('1 Données d''entrée'!$C$332*(1+'1 Données d''entrée'!$C$332)^'1 Données d''entrée'!$C$333)/((1+'1 Données d''entrée'!$C$332)^'1 Données d''entrée'!$C$333-1),0))","v":0},{"$f":"IF(L243<'1 Données d''entrée'!$C$334+1+$B359,0,IF(L243<'1 Données d''entrée'!$C$333+'1 Données d''entrée'!$C$334+1+$B359,$J349*('1 Données d''entrée'!$C$332*(1+'1 Données d''entrée'!$C$332)^'1 Données d''entrée'!$C$333)/((1+'1 Données d''entrée'!$C$332)^'1 Données d''entrée'!$C$333-1),0))","v":0},{"$f":"IF(M243<'1 Données d''entrée'!$C$334+1+$B359,0,IF(M243<'1 Données d''entrée'!$C$333+'1 Données d''entrée'!$C$334+1+$B359,$J349*('1 Données d''entrée'!$C$332*(1+'1 Données d''entrée'!$C$332)^'1 Données d''entrée'!$C$333)/((1+'1 Données d''entrée'!$C$332)^'1 Données d''entrée'!$C$333-1),0))","v":0},{"$f":"IF(N243<'1 Données d''entrée'!$C$334+1+$B359,0,IF(N243<'1 Données d''entrée'!$C$333+'1 Données d''entrée'!$C$334+1+$B359,$J349*('1 Données d''entrée'!$C$332*(1+'1 Données d''entrée'!$C$332)^'1 Données d''entrée'!$C$333)/((1+'1 Données d''entrée'!$C$332)^'1 Données d''entrée'!$C$333-1),0))","v":0},{"$f":"IF(O243<'1 Données d''entrée'!$C$334+1+$B359,0,IF(O243<'1 Données d''entrée'!$C$333+'1 Données d''entrée'!$C$334+1+$B359,$J349*('1 Données d''entrée'!$C$332*(1+'1 Données d''entrée'!$C$332)^'1 Données d''entrée'!$C$333)/((1+'1 Données d''entrée'!$C$332)^'1 Données d''entrée'!$C$333-1),0))","v":0},{"$f":"IF(P243<'1 Données d''entrée'!$C$334+1+$B359,0,IF(P243<'1 Données d''entrée'!$C$333+'1 Données d''entrée'!$C$334+1+$B359,$J349*('1 Données d''entrée'!$C$332*(1+'1 Données d''entrée'!$C$332)^'1 Données d''entrée'!$C$333)/((1+'1 Données d''entrée'!$C$332)^'1 Données d''entrée'!$C$333-1),0))","v":0},{"$f":"IF(Q243<'1 Données d''entrée'!$C$334+1+$B359,0,IF(Q243<'1 Données d''entrée'!$C$333+'1 Données d''entrée'!$C$334+1+$B359,$J349*('1 Données d''entrée'!$C$332*(1+'1 Données d''entrée'!$C$332)^'1 Données d''entrée'!$C$333)/((1+'1 Données d''entrée'!$C$332)^'1 Données d''entrée'!$C$333-1),0))","v":0},{"$f":"IF(R243<'1 Données d''entrée'!$C$334+1+$B359,0,IF(R243<'1 Données d''entrée'!$C$333+'1 Données d''entrée'!$C$334+1+$B359,$J349*('1 Données d''entrée'!$C$332*(1+'1 Données d''entrée'!$C$332)^'1 Données d''entrée'!$C$333)/((1+'1 Données d''entrée'!$C$332)^'1 Données d''entrée'!$C$333-1),0))","v":0},{"$f":"IF(S243<'1 Données d''entrée'!$C$334+1+$B359,0,IF(S243<'1 Données d''entrée'!$C$333+'1 Données d''entrée'!$C$334+1+$B359,$J349*('1 Données d''entrée'!$C$332*(1+'1 Données d''entrée'!$C$332)^'1 Données d''entrée'!$C$333)/((1+'1 Données d''entrée'!$C$332)^'1 Données d''entrée'!$C$333-1),0))","v":0},{"$f":"IF(T243<'1 Données d''entrée'!$C$334+1+$B359,0,IF(T243<'1 Données d''entrée'!$C$333+'1 Données d''entrée'!$C$334+1+$B359,$J349*('1 Données d''entrée'!$C$332*(1+'1 Données d''entrée'!$C$332)^'1 Données d''entrée'!$C$333)/((1+'1 Données d''entrée'!$C$332)^'1 Données d''entrée'!$C$333-1),0))","v":0},{"$f":"IF(U243<'1 Données d''entrée'!$C$334+1+$B359,0,IF(U243<'1 Données d''entrée'!$C$333+'1 Données d''entrée'!$C$334+1+$B359,$J349*('1 Données d''entrée'!$C$332*(1+'1 Données d''entrée'!$C$332)^'1 Données d''entrée'!$C$333)/((1+'1 Données d''entrée'!$C$332)^'1 Données d''entrée'!$C$333-1),0))","v":0},{"$f":"IF(V243<'1 Données d''entrée'!$C$334+1+$B359,0,IF(V243<'1 Données d''entrée'!$C$333+'1 Données d''entrée'!$C$334+1+$B359,$J349*('1 Données d''entrée'!$C$332*(1+'1 Données d''entrée'!$C$332)^'1 Données d''entrée'!$C$333)/((1+'1 Données d''entrée'!$C$332)^'1 Données d''entrée'!$C$333-1),0))","v":0}]
[null,9,{"$f":"IF(C$54<'1 Données d''entrée'!$C$334+1+$B360,0,IF(C$54<'1 Données d''entrée'!$C$333+'1 Données d''entrée'!$C$334+1+$B360,$K$160*('1 Données d''entrée'!$C$332*(1+'1 Données d''entrée'!$C$332)^'1 Données d''entrée'!$C$333)/((1+'1 Données d''entrée'!$C$332)^'1 Données d''entrée'!$C$333-1),0))","v":0},{"$f":"IF(D243<'1 Données d''entrée'!$C$334+1+$B360,0,IF(D243<'1 Données d''entrée'!$C$333+'1 Données d''entrée'!$C$334+1+$B360,$K349*('1 Données d''entrée'!$C$332*(1+'1 Données d''entrée'!$C$332)^'1 Données d''entrée'!$C$333)/((1+'1 Données d''entrée'!$C$332)^'1 Données d''entrée'!$C$333-1),0))","v":0},{"$f":"IF(E243<'1 Données d''entrée'!$C$334+1+$B360,0,IF(E243<'1 Données d''entrée'!$C$333+'1 Données d''entrée'!$C$334+1+$B360,$K349*('1 Données d''entrée'!$C$332*(1+'1 Données d''entrée'!$C$332)^'1 Données d''entrée'!$C$333)/((1+'1 Données d''entrée'!$C$332)^'1 Données d''entrée'!$C$333-1),0))","v":0},{"$f":"IF(F243<'1 Données d''entrée'!$C$334+1+$B360,0,IF(F243<'1 Données d''entrée'!$C$333+'1 Données d''entrée'!$C$334+1+$B360,$K349*('1 Données d''entrée'!$C$332*(1+'1 Données d''entrée'!$C$332)^'1 Données d''entrée'!$C$333)/((1+'1 Données d''entrée'!$C$332)^'1 Données d''entrée'!$C$333-1),0))","v":0},{"$f":"IF(G243<'1 Données d''entrée'!$C$334+1+$B360,0,IF(G243<'1 Données d''entrée'!$C$333+'1 Données d''entrée'!$C$334+1+$B360,$K349*('1 Données d''entrée'!$C$332*(1+'1 Données d''entrée'!$C$332)^'1 Données d''entrée'!$C$333)/((1+'1 Données d''entrée'!$C$332)^'1 Données d''entrée'!$C$333-1),0))","v":0},{"$f":"IF(H243<'1 Données d''entrée'!$C$334+1+$B360,0,IF(H243<'1 Données d''entrée'!$C$333+'1 Données d''entrée'!$C$334+1+$B360,$K349*('1 Données d''entrée'!$C$332*(1+'1 Données d''entrée'!$C$332)^'1 Données d''entrée'!$C$333)/((1+'1 Données d''entrée'!$C$332)^'1 Données d''entrée'!$C$333-1),0))","v":0},{"$f":"IF(I243<'1 Données d''entrée'!$C$334+1+$B360,0,IF(I243<'1 Données d''entrée'!$C$333+'1 Données d''entrée'!$C$334+1+$B360,$K349*('1 Données d''entrée'!$C$332*(1+'1 Données d''entrée'!$C$332)^'1 Données d''entrée'!$C$333)/((1+'1 Données d''entrée'!$C$332)^'1 Données d''entrée'!$C$333-1),0))","v":0},{"$f":"IF(J243<'1 Données d''entrée'!$C$334+1+$B360,0,IF(J243<'1 Données d''entrée'!$C$333+'1 Données d''entrée'!$C$334+1+$B360,$K349*('1 Données d''entrée'!$C$332*(1+'1 Données d''entrée'!$C$332)^'1 Données d''entrée'!$C$333)/((1+'1 Données d''entrée'!$C$332)^'1 Données d''entrée'!$C$333-1),0))","v":0},{"$f":"IF(K243<'1 Données d''entrée'!$C$334+1+$B360,0,IF(K243<'1 Données d''entrée'!$C$333+'1 Données d''entrée'!$C$334+1+$B360,$K349*('1 Données d''entrée'!$C$332*(1+'1 Données d''entrée'!$C$332)^'1 Données d''entrée'!$C$333)/((1+'1 Données d''entrée'!$C$332)^'1 Données d''entrée'!$C$333-1),0))","v":0},{"$f":"IF(L243<'1 Données d''entrée'!$C$334+1+$B360,0,IF(L243<'1 Données d''entrée'!$C$333+'1 Données d''entrée'!$C$334+1+$B360,$K349*('1 Données d''entrée'!$C$332*(1+'1 Données d''entrée'!$C$332)^'1 Données d''entrée'!$C$333)/((1+'1 Données d''entrée'!$C$332)^'1 Données d''entrée'!$C$333-1),0))","v":0},{"$f":"IF(M243<'1 Données d''entrée'!$C$334+1+$B360,0,IF(M243<'1 Données d''entrée'!$C$333+'1 Données d''entrée'!$C$334+1+$B360,$K349*('1 Données d''entrée'!$C$332*(1+'1 Données d''entrée'!$C$332)^'1 Données d''entrée'!$C$333)/((1+'1 Données d''entrée'!$C$332)^'1 Données d''entrée'!$C$333-1),0))","v":0},{"$f":"IF(N243<'1 Données d''entrée'!$C$334+1+$B360,0,IF(N243<'1 Données d''entrée'!$C$333+'1 Données d''entrée'!$C$334+1+$B360,$K349*('1 Données d''entrée'!$C$332*(1+'1 Données d''entrée'!$C$332)^'1 Données d''entrée'!$C$333)/((1+'1 Données d''entrée'!$C$332)^'1 Données d''entrée'!$C$333-1),0))","v":0},{"$f":"IF(O243<'1 Données d''entrée'!$C$334+1+$B360,0,IF(O243<'1 Données d''entrée'!$C$333+'1 Données d''entrée'!$C$334+1+$B360,$K349*('1 Données d''entrée'!$C$332*(1+'1 Données d''entrée'!$C$332)^'1 Données d''entrée'!$C$333)/((1+'1 Données d''entrée'!$C$332)^'1 Données d''entrée'!$C$333-1),0))","v":0},{"$f":"IF(P243<'1 Données d''entrée'!$C$334+1+$B360,0,IF(P243<'1 Données d''entrée'!$C$333+'1 Données d''entrée'!$C$334+1+$B360,$K349*('1 Données d''entrée'!$C$332*(1+'1 Données d''entrée'!$C$332)^'1 Données d''entrée'!$C$333)/((1+'1 Données d''entrée'!$C$332)^'1 Données d''entrée'!$C$333-1),0))","v":0},{"$f":"IF(Q243<'1 Données d''entrée'!$C$334+1+$B360,0,IF(Q243<'1 Données d''entrée'!$C$333+'1 Données d''entrée'!$C$334+1+$B360,$K349*('1 Données d''entrée'!$C$332*(1+'1 Données d''entrée'!$C$332)^'1 Données d''entrée'!$C$333)/((1+'1 Données d''entrée'!$C$332)^'1 Données d''entrée'!$C$333-1),0))","v":0},{"$f":"IF(R243<'1 Données d''entrée'!$C$334+1+$B360,0,IF(R243<'1 Données d''entrée'!$C$333+'1 Données d''entrée'!$C$334+1+$B360,$K349*('1 Données d''entrée'!$C$332*(1+'1 Données d''entrée'!$C$332)^'1 Données d''entrée'!$C$333)/((1+'1 Données d''entrée'!$C$332)^'1 Données d''entrée'!$C$333-1),0))","v":0},{"$f":"IF(S243<'1 Données d''entrée'!$C$334+1+$B360,0,IF(S243<'1 Données d''entrée'!$C$333+'1 Données d''entrée'!$C$334+1+$B360,$K349*('1 Données d''entrée'!$C$332*(1+'1 Données d''entrée'!$C$332)^'1 Données d''entrée'!$C$333)/((1+'1 Données d''entrée'!$C$332)^'1 Données d''entrée'!$C$333-1),0))","v":0},{"$f":"IF(T243<'1 Données d''entrée'!$C$334+1+$B360,0,IF(T243<'1 Données d''entrée'!$C$333+'1 Données d''entrée'!$C$334+1+$B360,$K349*('1 Données d''entrée'!$C$332*(1+'1 Données d''entrée'!$C$332)^'1 Données d''entrée'!$C$333)/((1+'1 Données d''entrée'!$C$332)^'1 Données d''entrée'!$C$333-1),0))","v":0},{"$f":"IF(U243<'1 Données d''entrée'!$C$334+1+$B360,0,IF(U243<'1 Données d''entrée'!$C$333+'1 Données d''entrée'!$C$334+1+$B360,$K349*('1 Données d''entrée'!$C$332*(1+'1 Données d''entrée'!$C$332)^'1 Données d''entrée'!$C$333)/((1+'1 Données d''entrée'!$C$332)^'1 Données d''entrée'!$C$333-1),0))","v":0},{"$f":"IF(V243<'1 Données d''entrée'!$C$334+1+$B360,0,IF(V243<'1 Données d''entrée'!$C$333+'1 Données d''entrée'!$C$334+1+$B360,$K349*('1 Données d''entrée'!$C$332*(1+'1 Données d''entrée'!$C$332)^'1 Données d''entrée'!$C$333)/((1+'1 Données d''entrée'!$C$332)^'1 Données d''entrée'!$C$333-1),0))","v":0}]
[null,10,{"$f":"IF(C$54<'1 Données d''entrée'!$C$334+1+$B361,0,IF(C$54<'1 Données d''entrée'!$C$333+'1 Données d''entrée'!$C$334+1+$B361,$L$160*('1 Données d''entrée'!$C$332*(1+'1 Données d''entrée'!$C$332)^'1 Données d''entrée'!$C$333)/((1+'1 Données d''entrée'!$C$332)^'1 Données d''entrée'!$C$333-1),0))","v":0},{"$f":"IF(D243<'1 Données d''entrée'!$C$334+1+$B361,0,IF(D243<'1 Données d''entrée'!$C$333+'1 Données d''entrée'!$C$334+1+$B361,$L349*('1 Données d''entrée'!$C$332*(1+'1 Données d''entrée'!$C$332)^'1 Données d''entrée'!$C$333)/((1+'1 Données d''entrée'!$C$332)^'1 Données d''entrée'!$C$333-1),0))","v":0},{"$f":"IF(E243<'1 Données d''entrée'!$C$334+1+$B361,0,IF(E243<'1 Données d''entrée'!$C$333+'1 Données d''entrée'!$C$334+1+$B361,$L349*('1 Données d''entrée'!$C$332*(1+'1 Données d''entrée'!$C$332)^'1 Données d''entrée'!$C$333)/((1+'1 Données d''entrée'!$C$332)^'1 Données d''entrée'!$C$333-1),0))","v":0},{"$f":"IF(F243<'1 Données d''entrée'!$C$334+1+$B361,0,IF(F243<'1 Données d''entrée'!$C$333+'1 Données d''entrée'!$C$334+1+$B361,$L349*('1 Données d''entrée'!$C$332*(1+'1 Données d''entrée'!$C$332)^'1 Données d''entrée'!$C$333)/((1+'1 Données d''entrée'!$C$332)^'1 Données d''entrée'!$C$333-1),0))","v":0},{"$f":"IF(G243<'1 Données d''entrée'!$C$334+1+$B361,0,IF(G243<'1 Données d''entrée'!$C$333+'1 Données d''entrée'!$C$334+1+$B361,$L349*('1 Données d''entrée'!$C$332*(1+'1 Données d''entrée'!$C$332)^'1 Données d''entrée'!$C$333)/((1+'1 Données d''entrée'!$C$332)^'1 Données d''entrée'!$C$333-1),0))","v":0},{"$f":"IF(H243<'1 Données d''entrée'!$C$334+1+$B361,0,IF(H243<'1 Données d''entrée'!$C$333+'1 Données d''entrée'!$C$334+1+$B361,$L349*('1 Données d''entrée'!$C$332*(1+'1 Données d''entrée'!$C$332)^'1 Données d''entrée'!$C$333)/((1+'1 Données d''entrée'!$C$332)^'1 Données d''entrée'!$C$333-1),0))","v":0},{"$f":"IF(I243<'1 Données d''entrée'!$C$334+1+$B361,0,IF(I243<'1 Données d''entrée'!$C$333+'1 Données d''entrée'!$C$334+1+$B361,$L349*('1 Données d''entrée'!$C$332*(1+'1 Données d''entrée'!$C$332)^'1 Données d''entrée'!$C$333)/((1+'1 Données d''entrée'!$C$332)^'1 Données d''entrée'!$C$333-1),0))","v":0},{"$f":"IF(J243<'1 Données d''entrée'!$C$334+1+$B361,0,IF(J243<'1 Données d''entrée'!$C$333+'1 Données d''entrée'!$C$334+1+$B361,$L349*('1 Données d''entrée'!$C$332*(1+'1 Données d''entrée'!$C$332)^'1 Données d''entrée'!$C$333)/((1+'1 Données d''entrée'!$C$332)^'1 Données d''entrée'!$C$333-1),0))","v":0},{"$f":"IF(K243<'1 Données d''entrée'!$C$334+1+$B361,0,IF(K243<'1 Données d''entrée'!$C$333+'1 Données d''entrée'!$C$334+1+$B361,$L349*('1 Données d''entrée'!$C$332*(1+'1 Données d''entrée'!$C$332)^'1 Données d''entrée'!$C$333)/((1+'1 Données d''entrée'!$C$332)^'1 Données d''entrée'!$C$333-1),0))","v":0},{"$f":"IF(L243<'1 Données d''entrée'!$C$334+1+$B361,0,IF(L243<'1 Données d''entrée'!$C$333+'1 Données d''entrée'!$C$334+1+$B361,$L349*('1 Données d''entrée'!$C$332*(1+'1 Données d''entrée'!$C$332)^'1 Données d''entrée'!$C$333)/((1+'1 Données d''entrée'!$C$332)^'1 Données d''entrée'!$C$333-1),0))","v":0},{"$f":"IF(M243<'1 Données d''entrée'!$C$334+1+$B361,0,IF(M243<'1 Données d''entrée'!$C$333+'1 Données d''entrée'!$C$334+1+$B361,$L349*('1 Données d''entrée'!$C$332*(1+'1 Données d''entrée'!$C$332)^'1 Données d''entrée'!$C$333)/((1+'1 Données d''entrée'!$C$332)^'1 Données d''entrée'!$C$333-1),0))","v":0},{"$f":"IF(N243<'1 Données d''entrée'!$C$334+1+$B361,0,IF(N243<'1 Données d''entrée'!$C$333+'1 Données d''entrée'!$C$334+1+$B361,$L349*('1 Données d''entrée'!$C$332*(1+'1 Données d''entrée'!$C$332)^'1 Données d''entrée'!$C$333)/((1+'1 Données d''entrée'!$C$332)^'1 Données d''entrée'!$C$333-1),0))","v":0},{"$f":"IF(O243<'1 Données d''entrée'!$C$334+1+$B361,0,IF(O243<'1 Données d''entrée'!$C$333+'1 Données d''entrée'!$C$334+1+$B361,$L349*('1 Données d''entrée'!$C$332*(1+'1 Données d''entrée'!$C$332)^'1 Données d''entrée'!$C$333)/((1+'1 Données d''entrée'!$C$332)^'1 Données d''entrée'!$C$333-1),0))","v":0},{"$f":"IF(P243<'1 Données d''entrée'!$C$334+1+$B361,0,IF(P243<'1 Données d''entrée'!$C$333+'1 Données d''entrée'!$C$334+1+$B361,$L349*('1 Données d''entrée'!$C$332*(1+'1 Données d''entrée'!$C$332)^'1 Données d''entrée'!$C$333)/((1+'1 Données d''entrée'!$C$332)^'1 Données d''entrée'!$C$333-1),0))","v":0},{"$f":"IF(Q243<'1 Données d''entrée'!$C$334+1+$B361,0,IF(Q243<'1 Données d''entrée'!$C$333+'1 Données d''entrée'!$C$334+1+$B361,$L349*('1 Données d''entrée'!$C$332*(1+'1 Données d''entrée'!$C$332)^'1 Données d''entrée'!$C$333)/((1+'1 Données d''entrée'!$C$332)^'1 Données d''entrée'!$C$333-1),0))","v":0},{"$f":"IF(R243<'1 Données d''entrée'!$C$334+1+$B361,0,IF(R243<'1 Données d''entrée'!$C$333+'1 Données d''entrée'!$C$334+1+$B361,$L349*('1 Données d''entrée'!$C$332*(1+'1 Données d''entrée'!$C$332)^'1 Données d''entrée'!$C$333)/((1+'1 Données d''entrée'!$C$332)^'1 Données d''entrée'!$C$333-1),0))","v":0},{"$f":"IF(S243<'1 Données d''entrée'!$C$334+1+$B361,0,IF(S243<'1 Données d''entrée'!$C$333+'1 Données d''entrée'!$C$334+1+$B361,$L349*('1 Données d''entrée'!$C$332*(1+'1 Données d''entrée'!$C$332)^'1 Données d''entrée'!$C$333)/((1+'1 Données d''entrée'!$C$332)^'1 Données d''entrée'!$C$333-1),0))","v":0},{"$f":"IF(T243<'1 Données d''entrée'!$C$334+1+$B361,0,IF(T243<'1 Données d''entrée'!$C$333+'1 Données d''entrée'!$C$334+1+$B361,$L349*('1 Données d''entrée'!$C$332*(1+'1 Données d''entrée'!$C$332)^'1 Données d''entrée'!$C$333)/((1+'1 Données d''entrée'!$C$332)^'1 Données d''entrée'!$C$333-1),0))","v":0},{"$f":"IF(U243<'1 Données d''entrée'!$C$334+1+$B361,0,IF(U243<'1 Données d''entrée'!$C$333+'1 Données d''entrée'!$C$334+1+$B361,$L349*('1 Données d''entrée'!$C$332*(1+'1 Données d''entrée'!$C$332)^'1 Données d''entrée'!$C$333)/((1+'1 Données d''entrée'!$C$332)^'1 Données d''entrée'!$C$333-1),0))","v":0},{"$f":"IF(V243<'1 Données d''entrée'!$C$334+1+$B361,0,IF(V243<'1 Données d''entrée'!$C$333+'1 Données d''entrée'!$C$334+1+$B361,$L349*('1 Données d''entrée'!$C$332*(1+'1 Données d''entrée'!$C$332)^'1 Données d''entrée'!$C$333)/((1+'1 Données d''entrée'!$C$332)^'1 Données d''entrée'!$C$333-1),0))","v":0}]
[null,"Période de prêt nouveau"]
["Paiement d'intérêt décroissant inclu dans l'annuité constante",0,0,0,0,0,0,0,0,0,0,0,0,0,0,0,0,0,0,0,0,0]
["Paiement d'intêrets",1,0,{"$f":"IF(D352>0,$C349*((('1 Données d''entrée'!$C$332+1)^'1 Données d''entrée'!$C$333)-(1+'1 Données d''entrée'!$C$332)^('6 Financement'!C$54-1-'1 Données d''entrée'!$C$334-$B363))/((1+'1 Données d''entrée'!$C$332)^'1 Données d''entrée'!$C$333-1)*'1 Données d''entrée'!$C$332,0)","v":0},{"$f":"IF(E352>0,$C349*((('1 Données d''entrée'!$C$332+1)^'1 Données d''entrée'!$C$333)-(1+'1 Données d''entrée'!$C$332)^('6 Financement'!D$54-1-'1 Données d''entrée'!$C$334-$B363))/((1+'1 Données d''entrée'!$C$332)^'1 Données d''entrée'!$C$333-1)*'1 Données d''entrée'!$C$332,0)","v":0},{"$f":"IF(F352>0,$C349*((('1 Données d''entrée'!$C$332+1)^'1 Données d''entrée'!$C$333)-(1+'1 Données d''entrée'!$C$332)^('6 Financement'!E$54-1-'1 Données d''entrée'!$C$334-$B363))/((1+'1 Données d''entrée'!$C$332)^'1 Données d''entrée'!$C$333-1)*'1 Données d''entrée'!$C$332,0)","v":0},{"$f":"IF(G352>0,$C349*((('1 Données d''entrée'!$C$332+1)^'1 Données d''entrée'!$C$333)-(1+'1 Données d''entrée'!$C$332)^('6 Financement'!F$54-1-'1 Données d''entrée'!$C$334-$B363))/((1+'1 Données d''entrée'!$C$332)^'1 Données d''entrée'!$C$333-1)*'1 Données d''entrée'!$C$332,0)","v":0},{"$f":"IF(H352>0,$C349*((('1 Données d''entrée'!$C$332+1)^'1 Données d''entrée'!$C$333)-(1+'1 Données d''entrée'!$C$332)^('6 Financement'!G$54-1-'1 Données d''entrée'!$C$334-$B363))/((1+'1 Données d''entrée'!$C$332)^'1 Données d''entrée'!$C$333-1)*'1 Données d''entrée'!$C$332,0)","v":0},{"$f":"IF(I352>0,$C349*((('1 Données d''entrée'!$C$332+1)^'1 Données d''entrée'!$C$333)-(1+'1 Données d''entrée'!$C$332)^('6 Financement'!H$54-1-'1 Données d''entrée'!$C$334-$B363))/((1+'1 Données d''entrée'!$C$332)^'1 Données d''entrée'!$C$333-1)*'1 Données d''entrée'!$C$332,0)","v":0},{"$f":"IF(J352>0,$C349*((('1 Données d''entrée'!$C$332+1)^'1 Données d''entrée'!$C$333)-(1+'1 Données d''entrée'!$C$332)^('6 Financement'!I$54-1-'1 Données d''entrée'!$C$334-$B363))/((1+'1 Données d''entrée'!$C$332)^'1 Données d''entrée'!$C$333-1)*'1 Données d''entrée'!$C$332,0)","v":0},{"$f":"IF(K352>0,$C349*((('1 Données d''entrée'!$C$332+1)^'1 Données d''entrée'!$C$333)-(1+'1 Données d''entrée'!$C$332)^('6 Financement'!J$54-1-'1 Données d''entrée'!$C$334-$B363))/((1+'1 Données d''entrée'!$C$332)^'1 Données d''entrée'!$C$333-1)*'1 Données d''entrée'!$C$332,0)","v":0},{"$f":"IF(L352>0,$C349*((('1 Données d''entrée'!$C$332+1)^'1 Données d''entrée'!$C$333)-(1+'1 Données d''entrée'!$C$332)^('6 Financement'!K$54-1-'1 Données d''entrée'!$C$334-$B363))/((1+'1 Données d''entrée'!$C$332)^'1 Données d''entrée'!$C$333-1)*'1 Données d''entrée'!$C$332,0)","v":0},{"$f":"IF(M352>0,$C349*((('1 Données d''entrée'!$C$332+1)^'1 Données d''entrée'!$C$333)-(1+'1 Données d''entrée'!$C$332)^('6 Financement'!L$54-1-'1 Données d''entrée'!$C$334-$B363))/((1+'1 Données d''entrée'!$C$332)^'1 Données d''entrée'!$C$333-1)*'1 Données d''entrée'!$C$332,0)","v":0},{"$f":"IF(N352>0,$C349*((('1 Données d''entrée'!$C$332+1)^'1 Données d''entrée'!$C$333)-(1+'1 Données d''entrée'!$C$332)^('6 Financement'!M$54-1-'1 Données d''entrée'!$C$334-$B363))/((1+'1 Données d''entrée'!$C$332)^'1 Données d''entrée'!$C$333-1)*'1 Données d''entrée'!$C$332,0)","v":0},{"$f":"IF(O352>0,$C349*((('1 Données d''entrée'!$C$332+1)^'1 Données d''entrée'!$C$333)-(1+'1 Données d''entrée'!$C$332)^('6 Financement'!N$54-1-'1 Données d''entrée'!$C$334-$B363))/((1+'1 Données d''entrée'!$C$332)^'1 Données d''entrée'!$C$333-1)*'1 Données d''entrée'!$C$332,0)","v":0},{"$f":"IF(P352>0,$C349*((('1 Données d''entrée'!$C$332+1)^'1 Données d''entrée'!$C$333)-(1+'1 Données d''entrée'!$C$332)^('6 Financement'!O$54-1-'1 Données d''entrée'!$C$334-$B363))/((1+'1 Données d''entrée'!$C$332)^'1 Données d''entrée'!$C$333-1)*'1 Données d''entrée'!$C$332,0)","v":0},{"$f":"IF(Q352>0,$C349*((('1 Données d''entrée'!$C$332+1)^'1 Données d''entrée'!$C$333)-(1+'1 Données d''entrée'!$C$332)^('6 Financement'!P$54-1-'1 Données d''entrée'!$C$334-$B363))/((1+'1 Données d''entrée'!$C$332)^'1 Données d''entrée'!$C$333-1)*'1 Données d''entrée'!$C$332,0)","v":0},{"$f":"IF(R352>0,$C349*((('1 Données d''entrée'!$C$332+1)^'1 Données d''entrée'!$C$333)-(1+'1 Données d''entrée'!$C$332)^('6 Financement'!Q$54-1-'1 Données d''entrée'!$C$334-$B363))/((1+'1 Données d''entrée'!$C$332)^'1 Données d''entrée'!$C$333-1)*'1 Données d''entrée'!$C$332,0)","v":0},{"$f":"IF(S352>0,$C349*((('1 Données d''entrée'!$C$332+1)^'1 Données d''entrée'!$C$333)-(1+'1 Données d''entrée'!$C$332)^('6 Financement'!R$54-1-'1 Données d''entrée'!$C$334-$B363))/((1+'1 Données d''entrée'!$C$332)^'1 Données d''entrée'!$C$333-1)*'1 Données d''entrée'!$C$332,0)","v":0},{"$f":"IF(T352>0,$C349*((('1 Données d''entrée'!$C$332+1)^'1 Données d''entrée'!$C$333)-(1+'1 Données d''entrée'!$C$332)^('6 Financement'!S$54-1-'1 Données d''entrée'!$C$334-$B363))/((1+'1 Données d''entrée'!$C$332)^'1 Données d''entrée'!$C$333-1)*'1 Données d''entrée'!$C$332,0)","v":0},{"$f":"IF(U352>0,$C349*((('1 Données d''entrée'!$C$332+1)^'1 Données d''entrée'!$C$333)-(1+'1 Données d''entrée'!$C$332)^('6 Financement'!T$54-1-'1 Données d''entrée'!$C$334-$B363))/((1+'1 Données d''entrée'!$C$332)^'1 Données d''entrée'!$C$333-1)*'1 Données d''entrée'!$C$332,0)","v":0},{"$f":"IF(V352>0,$C349*((('1 Données d''entrée'!$C$332+1)^'1 Données d''entrée'!$C$333)-(1+'1 Données d''entrée'!$C$332)^('6 Financement'!U$54-1-'1 Données d''entrée'!$C$334-$B363))/((1+'1 Données d''entrée'!$C$332)^'1 Données d''entrée'!$C$333-1)*'1 Données d''entrée'!$C$332,0)","v":0}]
["Paiement d'intêrets",2,0,{"$f":"IF(D353>0,$D349*((('1 Données d''entrée'!$C$332+1)^'1 Données d''entrée'!$C$333)-(1+'1 Données d''entrée'!$C$332)^('6 Financement'!C$54-1-'1 Données d''entrée'!$C$334-$B364))/((1+'1 Données d''entrée'!$C$332)^'1 Données d''entrée'!$C$333-1)*'1 Données d''entrée'!$C$332,0)","v":0},{"$f":"IF(E353>0,$D349*((('1 Données d''entrée'!$C$332+1)^'1 Données d''entrée'!$C$333)-(1+'1 Données d''entrée'!$C$332)^('6 Financement'!D$54-1-'1 Données d''entrée'!$C$334-$B364))/((1+'1 Données d''entrée'!$C$332)^'1 Données d''entrée'!$C$333-1)*'1 Données d''entrée'!$C$332,0)","v":0},{"$f":"IF(F353>0,$D349*((('1 Données d''entrée'!$C$332+1)^'1 Données d''entrée'!$C$333)-(1+'1 Données d''entrée'!$C$332)^('6 Financement'!E$54-1-'1 Données d''entrée'!$C$334-$B364))/((1+'1 Données d''entrée'!$C$332)^'1 Données d''entrée'!$C$333-1)*'1 Données d''entrée'!$C$332,0)","v":0},{"$f":"IF(G353>0,$D349*((('1 Données d''entrée'!$C$332+1)^'1 Données d''entrée'!$C$333)-(1+'1 Données d''entrée'!$C$332)^('6 Financement'!F$54-1-'1 Données d''entrée'!$C$334-$B364))/((1+'1 Données d''entrée'!$C$332)^'1 Données d''entrée'!$C$333-1)*'1 Données d''entrée'!$C$332,0)","v":0},{"$f":"IF(H353>0,$D349*((('1 Données d''entrée'!$C$332+1)^'1 Données d''entrée'!$C$333)-(1+'1 Données d''entrée'!$C$332)^('6 Financement'!G$54-1-'1 Données d''entrée'!$C$334-$B364))/((1+'1 Données d''entrée'!$C$332)^'1 Données d''entrée'!$C$333-1)*'1 Données d''entrée'!$C$332,0)","v":0},{"$f":"IF(I353>0,$D349*((('1 Données d''entrée'!$C$332+1)^'1 Données d''entrée'!$C$333)-(1+'1 Données d''entrée'!$C$332)^('6 Financement'!H$54-1-'1 Données d''entrée'!$C$334-$B364))/((1+'1 Données d''entrée'!$C$332)^'1 Données d''entrée'!$C$333-1)*'1 Données d''entrée'!$C$332,0)","v":0},{"$f":"IF(J353>0,$D349*((('1 Données d''entrée'!$C$332+1)^'1 Données d''entrée'!$C$333)-(1+'1 Données d''entrée'!$C$332)^('6 Financement'!I$54-1-'1 Données d''entrée'!$C$334-$B364))/((1+'1 Données d''entrée'!$C$332)^'1 Données d''entrée'!$C$333-1)*'1 Données d''entrée'!$C$332,0)","v":0},{"$f":"IF(K353>0,$D349*((('1 Données d''entrée'!$C$332+1)^'1 Données d''entrée'!$C$333)-(1+'1 Données d''entrée'!$C$332)^('6 Financement'!J$54-1-'1 Données d''entrée'!$C$334-$B364))/((1+'1 Données d''entrée'!$C$332)^'1 Données d''entrée'!$C$333-1)*'1 Données d''entrée'!$C$332,0)","v":0},{"$f":"IF(L353>0,$D349*((('1 Données d''entrée'!$C$332+1)^'1 Données d''entrée'!$C$333)-(1+'1 Données d''entrée'!$C$332)^('6 Financement'!K$54-1-'1 Données d''entrée'!$C$334-$B364))/((1+'1 Données d''entrée'!$C$332)^'1 Données d''entrée'!$C$333-1)*'1 Données d''entrée'!$C$332,0)","v":0},{"$f":"IF(M353>0,$D349*((('1 Données d''entrée'!$C$332+1)^'1 Données d''entrée'!$C$333)-(1+'1 Données d''entrée'!$C$332)^('6 Financement'!L$54-1-'1 Données d''entrée'!$C$334-$B364))/((1+'1 Données d''entrée'!$C$332)^'1 Données d''entrée'!$C$333-1)*'1 Données d''entrée'!$C$332,0)","v":0},{"$f":"IF(N353>0,$D349*((('1 Données d''entrée'!$C$332+1)^'1 Données d''entrée'!$C$333)-(1+'1 Données d''entrée'!$C$332)^('6 Financement'!M$54-1-'1 Données d''entrée'!$C$334-$B364))/((1+'1 Données d''entrée'!$C$332)^'1 Données d''entrée'!$C$333-1)*'1 Données d''entrée'!$C$332,0)","v":0},{"$f":"IF(O353>0,$D349*((('1 Données d''entrée'!$C$332+1)^'1 Données d''entrée'!$C$333)-(1+'1 Données d''entrée'!$C$332)^('6 Financement'!N$54-1-'1 Données d''entrée'!$C$334-$B364))/((1+'1 Données d''entrée'!$C$332)^'1 Données d''entrée'!$C$333-1)*'1 Données d''entrée'!$C$332,0)","v":0},{"$f":"IF(P353>0,$D349*((('1 Données d''entrée'!$C$332+1)^'1 Données d''entrée'!$C$333)-(1+'1 Données d''entrée'!$C$332)^('6 Financement'!O$54-1-'1 Données d''entrée'!$C$334-$B364))/((1+'1 Données d''entrée'!$C$332)^'1 Données d''entrée'!$C$333-1)*'1 Données d''entrée'!$C$332,0)","v":0},{"$f":"IF(Q353>0,$D349*((('1 Données d''entrée'!$C$332+1)^'1 Données d''entrée'!$C$333)-(1+'1 Données d''entrée'!$C$332)^('6 Financement'!P$54-1-'1 Données d''entrée'!$C$334-$B364))/((1+'1 Données d''entrée'!$C$332)^'1 Données d''entrée'!$C$333-1)*'1 Données d''entrée'!$C$332,0)","v":0},{"$f":"IF(R353>0,$D349*((('1 Données d''entrée'!$C$332+1)^'1 Données d''entrée'!$C$333)-(1+'1 Données d''entrée'!$C$332)^('6 Financement'!Q$54-1-'1 Données d''entrée'!$C$334-$B364))/((1+'1 Données d''entrée'!$C$332)^'1 Données d''entrée'!$C$333-1)*'1 Données d''entrée'!$C$332,0)","v":0},{"$f":"IF(S353>0,$D349*((('1 Données d''entrée'!$C$332+1)^'1 Données d''entrée'!$C$333)-(1+'1 Données d''entrée'!$C$332)^('6 Financement'!R$54-1-'1 Données d''entrée'!$C$334-$B364))/((1+'1 Données d''entrée'!$C$332)^'1 Données d''entrée'!$C$333-1)*'1 Données d''entrée'!$C$332,0)","v":0},{"$f":"IF(T353>0,$D349*((('1 Données d''entrée'!$C$332+1)^'1 Données d''entrée'!$C$333)-(1+'1 Données d''entrée'!$C$332)^('6 Financement'!S$54-1-'1 Données d''entrée'!$C$334-$B364))/((1+'1 Données d''entrée'!$C$332)^'1 Données d''entrée'!$C$333-1)*'1 Données d''entrée'!$C$332,0)","v":0},{"$f":"IF(U353>0,$D349*((('1 Données d''entrée'!$C$332+1)^'1 Données d''entrée'!$C$333)-(1+'1 Données d''entrée'!$C$332)^('6 Financement'!T$54-1-'1 Données d''entrée'!$C$334-$B364))/((1+'1 Données d''entrée'!$C$332)^'1 Données d''entrée'!$C$333-1)*'1 Données d''entrée'!$C$332,0)","v":0},{"$f":"IF(V353>0,$D349*((('1 Données d''entrée'!$C$332+1)^'1 Données d''entrée'!$C$333)-(1+'1 Données d''entrée'!$C$332)^('6 Financement'!U$54-1-'1 Données d''entrée'!$C$334-$B364))/((1+'1 Données d''entrée'!$C$332)^'1 Données d''entrée'!$C$333-1)*'1 Données d''entrée'!$C$332,0)","v":0}]
["Paiement d'intêrets",3,0,{"$f":"IF(D354>0,$E349*((('1 Données d''entrée'!$C$332+1)^'1 Données d''entrée'!$C$333)-(1+'1 Données d''entrée'!$C$332)^('6 Financement'!C$54-1-'1 Données d''entrée'!$C$334-$B365))/((1+'1 Données d''entrée'!$C$332)^'1 Données d''entrée'!$C$333-1)*'1 Données d''entrée'!$C$332,0)","v":0},{"$f":"IF(E354>0,$E349*((('1 Données d''entrée'!$C$332+1)^'1 Données d''entrée'!$C$333)-(1+'1 Données d''entrée'!$C$332)^('6 Financement'!D$54-1-'1 Données d''entrée'!$C$334-$B365))/((1+'1 Données d''entrée'!$C$332)^'1 Données d''entrée'!$C$333-1)*'1 Données d''entrée'!$C$332,0)","v":0},{"$f":"IF(F354>0,$E349*((('1 Données d''entrée'!$C$332+1)^'1 Données d''entrée'!$C$333)-(1+'1 Données d''entrée'!$C$332)^('6 Financement'!E$54-1-'1 Données d''entrée'!$C$334-$B365))/((1+'1 Données d''entrée'!$C$332)^'1 Données d''entrée'!$C$333-1)*'1 Données d''entrée'!$C$332,0)","v":0},{"$f":"IF(G354>0,$E349*((('1 Données d''entrée'!$C$332+1)^'1 Données d''entrée'!$C$333)-(1+'1 Données d''entrée'!$C$332)^('6 Financement'!F$54-1-'1 Données d''entrée'!$C$334-$B365))/((1+'1 Données d''entrée'!$C$332)^'1 Données d''entrée'!$C$333-1)*'1 Données d''entrée'!$C$332,0)","v":0},{"$f":"IF(H354>0,$E349*((('1 Données d''entrée'!$C$332+1)^'1 Données d''entrée'!$C$333)-(1+'1 Données d''entrée'!$C$332)^('6 Financement'!G$54-1-'1 Données d''entrée'!$C$334-$B365))/((1+'1 Données d''entrée'!$C$332)^'1 Données d''entrée'!$C$333-1)*'1 Données d''entrée'!$C$332,0)","v":0},{"$f":"IF(I354>0,$E349*((('1 Données d''entrée'!$C$332+1)^'1 Données d''entrée'!$C$333)-(1+'1 Données d''entrée'!$C$332)^('6 Financement'!H$54-1-'1 Données d''entrée'!$C$334-$B365))/((1+'1 Données d''entrée'!$C$332)^'1 Données d''entrée'!$C$333-1)*'1 Données d''entrée'!$C$332,0)","v":0},{"$f":"IF(J354>0,$E349*((('1 Données d''entrée'!$C$332+1)^'1 Données d''entrée'!$C$333)-(1+'1 Données d''entrée'!$C$332)^('6 Financement'!I$54-1-'1 Données d''entrée'!$C$334-$B365))/((1+'1 Données d''entrée'!$C$332)^'1 Données d''entrée'!$C$333-1)*'1 Données d''entrée'!$C$332,0)","v":0},{"$f":"IF(K354>0,$E349*((('1 Données d''entrée'!$C$332+1)^'1 Données d''entrée'!$C$333)-(1+'1 Données d''entrée'!$C$332)^('6 Financement'!J$54-1-'1 Données d''entrée'!$C$334-$B365))/((1+'1 Données d''entrée'!$C$332)^'1 Données d''entrée'!$C$333-1)*'1 Données d''entrée'!$C$332,0)","v":0},{"$f":"IF(L354>0,$E349*((('1 Données d''entrée'!$C$332+1)^'1 Données d''entrée'!$C$333)-(1+'1 Données d''entrée'!$C$332)^('6 Financement'!K$54-1-'1 Données d''entrée'!$C$334-$B365))/((1+'1 Données d''entrée'!$C$332)^'1 Données d''entrée'!$C$333-1)*'1 Données d''entrée'!$C$332,0)","v":0},{"$f":"IF(M354>0,$E349*((('1 Données d''entrée'!$C$332+1)^'1 Données d''entrée'!$C$333)-(1+'1 Données d''entrée'!$C$332)^('6 Financement'!L$54-1-'1 Données d''entrée'!$C$334-$B365))/((1+'1 Données d''entrée'!$C$332)^'1 Données d''entrée'!$C$333-1)*'1 Données d''entrée'!$C$332,0)","v":0},{"$f":"IF(N354>0,$E349*((('1 Données d''entrée'!$C$332+1)^'1 Données d''entrée'!$C$333)-(1+'1 Données d''entrée'!$C$332)^('6 Financement'!M$54-1-'1 Données d''entrée'!$C$334-$B365))/((1+'1 Données d''entrée'!$C$332)^'1 Données d''entrée'!$C$333-1)*'1 Données d''entrée'!$C$332,0)","v":0},{"$f":"IF(O354>0,$E349*((('1 Données d''entrée'!$C$332+1)^'1 Données d''entrée'!$C$333)-(1+'1 Données d''entrée'!$C$332)^('6 Financement'!N$54-1-'1 Données d''entrée'!$C$334-$B365))/((1+'1 Données d''entrée'!$C$332)^'1 Données d''entrée'!$C$333-1)*'1 Données d''entrée'!$C$332,0)","v":0},{"$f":"IF(P354>0,$E349*((('1 Données d''entrée'!$C$332+1)^'1 Données d''entrée'!$C$333)-(1+'1 Données d''entrée'!$C$332)^('6 Financement'!O$54-1-'1 Données d''entrée'!$C$334-$B365))/((1+'1 Données d''entrée'!$C$332)^'1 Données d''entrée'!$C$333-1)*'1 Données d''entrée'!$C$332,0)","v":0},{"$f":"IF(Q354>0,$E349*((('1 Données d''entrée'!$C$332+1)^'1 Données d''entrée'!$C$333)-(1+'1 Données d''entrée'!$C$332)^('6 Financement'!P$54-1-'1 Données d''entrée'!$C$334-$B365))/((1+'1 Données d''entrée'!$C$332)^'1 Données d''entrée'!$C$333-1)*'1 Données d''entrée'!$C$332,0)","v":0},{"$f":"IF(R354>0,$E349*((('1 Données d''entrée'!$C$332+1)^'1 Données d''entrée'!$C$333)-(1+'1 Données d''entrée'!$C$332)^('6 Financement'!Q$54-1-'1 Données d''entrée'!$C$334-$B365))/((1+'1 Données d''entrée'!$C$332)^'1 Données d''entrée'!$C$333-1)*'1 Données d''entrée'!$C$332,0)","v":0},{"$f":"IF(S354>0,$E349*((('1 Données d''entrée'!$C$332+1)^'1 Données d''entrée'!$C$333)-(1+'1 Données d''entrée'!$C$332)^('6 Financement'!R$54-1-'1 Données d''entrée'!$C$334-$B365))/((1+'1 Données d''entrée'!$C$332)^'1 Données d''entrée'!$C$333-1)*'1 Données d''entrée'!$C$332,0)","v":0},{"$f":"IF(T354>0,$E349*((('1 Données d''entrée'!$C$332+1)^'1 Données d''entrée'!$C$333)-(1+'1 Données d''entrée'!$C$332)^('6 Financement'!S$54-1-'1 Données d''entrée'!$C$334-$B365))/((1+'1 Données d''entrée'!$C$332)^'1 Données d''entrée'!$C$333-1)*'1 Données d''entrée'!$C$332,0)","v":0},{"$f":"IF(U354>0,$E349*((('1 Données d''entrée'!$C$332+1)^'1 Données d''entrée'!$C$333)-(1+'1 Données d''entrée'!$C$332)^('6 Financement'!T$54-1-'1 Données d''entrée'!$C$334-$B365))/((1+'1 Données d''entrée'!$C$332)^'1 Données d''entrée'!$C$333-1)*'1 Données d''entrée'!$C$332,0)","v":0},{"$f":"IF(V354>0,$E349*((('1 Données d''entrée'!$C$332+1)^'1 Données d''entrée'!$C$333)-(1+'1 Données d''entrée'!$C$332)^('6 Financement'!U$54-1-'1 Données d''entrée'!$C$334-$B365))/((1+'1 Données d''entrée'!$C$332)^'1 Données d''entrée'!$C$333-1)*'1 Données d''entrée'!$C$332,0)","v":0}]
["Paiement d'intêrets",4,0,{"$f":"IF(D355>0,$F349*((('1 Données d''entrée'!$C$332+1)^'1 Données d''entrée'!$C$333)-(1+'1 Données d''entrée'!$C$332)^('6 Financement'!C$54-1-'1 Données d''entrée'!$C$334-$B366))/((1+'1 Données d''entrée'!$C$332)^'1 Données d''entrée'!$C$333-1)*'1 Données d''entrée'!$C$332,0)","v":0},{"$f":"IF(E355>0,$F349*((('1 Données d''entrée'!$C$332+1)^'1 Données d''entrée'!$C$333)-(1+'1 Données d''entrée'!$C$332)^('6 Financement'!D$54-1-'1 Données d''entrée'!$C$334-$B366))/((1+'1 Données d''entrée'!$C$332)^'1 Données d''entrée'!$C$333-1)*'1 Données d''entrée'!$C$332,0)","v":0},{"$f":"IF(F355>0,$F349*((('1 Données d''entrée'!$C$332+1)^'1 Données d''entrée'!$C$333)-(1+'1 Données d''entrée'!$C$332)^('6 Financement'!E$54-1-'1 Données d''entrée'!$C$334-$B366))/((1+'1 Données d''entrée'!$C$332)^'1 Données d''entrée'!$C$333-1)*'1 Données d''entrée'!$C$332,0)","v":0},{"$f":"IF(G355>0,$F349*((('1 Données d''entrée'!$C$332+1)^'1 Données d''entrée'!$C$333)-(1+'1 Données d''entrée'!$C$332)^('6 Financement'!F$54-1-'1 Données d''entrée'!$C$334-$B366))/((1+'1 Données d''entrée'!$C$332)^'1 Données d''entrée'!$C$333-1)*'1 Données d''entrée'!$C$332,0)","v":0},{"$f":"IF(H355>0,$F349*((('1 Données d''entrée'!$C$332+1)^'1 Données d''entrée'!$C$333)-(1+'1 Données d''entrée'!$C$332)^('6 Financement'!G$54-1-'1 Données d''entrée'!$C$334-$B366))/((1+'1 Données d''entrée'!$C$332)^'1 Données d''entrée'!$C$333-1)*'1 Données d''entrée'!$C$332,0)","v":0},{"$f":"IF(I355>0,$F349*((('1 Données d''entrée'!$C$332+1)^'1 Données d''entrée'!$C$333)-(1+'1 Données d''entrée'!$C$332)^('6 Financement'!H$54-1-'1 Données d''entrée'!$C$334-$B366))/((1+'1 Données d''entrée'!$C$332)^'1 Données d''entrée'!$C$333-1)*'1 Données d''entrée'!$C$332,0)","v":0},{"$f":"IF(J355>0,$F349*((('1 Données d''entrée'!$C$332+1)^'1 Données d''entrée'!$C$333)-(1+'1 Données d''entrée'!$C$332)^('6 Financement'!I$54-1-'1 Données d''entrée'!$C$334-$B366))/((1+'1 Données d''entrée'!$C$332)^'1 Données d''entrée'!$C$333-1)*'1 Données d''entrée'!$C$332,0)","v":0},{"$f":"IF(K355>0,$F349*((('1 Données d''entrée'!$C$332+1)^'1 Données d''entrée'!$C$333)-(1+'1 Données d''entrée'!$C$332)^('6 Financement'!J$54-1-'1 Données d''entrée'!$C$334-$B366))/((1+'1 Données d''entrée'!$C$332)^'1 Données d''entrée'!$C$333-1)*'1 Données d''entrée'!$C$332,0)","v":0},{"$f":"IF(L355>0,$F349*((('1 Données d''entrée'!$C$332+1)^'1 Données d''entrée'!$C$333)-(1+'1 Données d''entrée'!$C$332)^('6 Financement'!K$54-1-'1 Données d''entrée'!$C$334-$B366))/((1+'1 Données d''entrée'!$C$332)^'1 Données d''entrée'!$C$333-1)*'1 Données d''entrée'!$C$332,0)","v":0},{"$f":"IF(M355>0,$F349*((('1 Données d''entrée'!$C$332+1)^'1 Données d''entrée'!$C$333)-(1+'1 Données d''entrée'!$C$332)^('6 Financement'!L$54-1-'1 Données d''entrée'!$C$334-$B366))/((1+'1 Données d''entrée'!$C$332)^'1 Données d''entrée'!$C$333-1)*'1 Données d''entrée'!$C$332,0)","v":0},{"$f":"IF(N355>0,$F349*((('1 Données d''entrée'!$C$332+1)^'1 Données d''entrée'!$C$333)-(1+'1 Données d''entrée'!$C$332)^('6 Financement'!M$54-1-'1 Données d''entrée'!$C$334-$B366))/((1+'1 Données d''entrée'!$C$332)^'1 Données d''entrée'!$C$333-1)*'1 Données d''entrée'!$C$332,0)","v":0},{"$f":"IF(O355>0,$F349*((('1 Données d''entrée'!$C$332+1)^'1 Données d''entrée'!$C$333)-(1+'1 Données d''entrée'!$C$332)^('6 Financement'!N$54-1-'1 Données d''entrée'!$C$334-$B366))/((1+'1 Données d''entrée'!$C$332)^'1 Données d''entrée'!$C$333-1)*'1 Données d''entrée'!$C$332,0)","v":0},{"$f":"IF(P355>0,$F349*((('1 Données d''entrée'!$C$332+1)^'1 Données d''entrée'!$C$333)-(1+'1 Données d''entrée'!$C$332)^('6 Financement'!O$54-1-'1 Données d''entrée'!$C$334-$B366))/((1+'1 Données d''entrée'!$C$332)^'1 Données d''entrée'!$C$333-1)*'1 Données d''entrée'!$C$332,0)","v":0},{"$f":"IF(Q355>0,$F349*((('1 Données d''entrée'!$C$332+1)^'1 Données d''entrée'!$C$333)-(1+'1 Données d''entrée'!$C$332)^('6 Financement'!P$54-1-'1 Données d''entrée'!$C$334-$B366))/((1+'1 Données d''entrée'!$C$332)^'1 Données d''entrée'!$C$333-1)*'1 Données d''entrée'!$C$332,0)","v":0},{"$f":"IF(R355>0,$F349*((('1 Données d''entrée'!$C$332+1)^'1 Données d''entrée'!$C$333)-(1+'1 Données d''entrée'!$C$332)^('6 Financement'!Q$54-1-'1 Données d''entrée'!$C$334-$B366))/((1+'1 Données d''entrée'!$C$332)^'1 Données d''entrée'!$C$333-1)*'1 Données d''entrée'!$C$332,0)","v":0},{"$f":"IF(S355>0,$F349*((('1 Données d''entrée'!$C$332+1)^'1 Données d''entrée'!$C$333)-(1+'1 Données d''entrée'!$C$332)^('6 Financement'!R$54-1-'1 Données d''entrée'!$C$334-$B366))/((1+'1 Données d''entrée'!$C$332)^'1 Données d''entrée'!$C$333-1)*'1 Données d''entrée'!$C$332,0)","v":0},{"$f":"IF(T355>0,$F349*((('1 Données d''entrée'!$C$332+1)^'1 Données d''entrée'!$C$333)-(1+'1 Données d''entrée'!$C$332)^('6 Financement'!S$54-1-'1 Données d''entrée'!$C$334-$B366))/((1+'1 Données d''entrée'!$C$332)^'1 Données d''entrée'!$C$333-1)*'1 Données d''entrée'!$C$332,0)","v":0},{"$f":"IF(U355>0,$F349*((('1 Données d''entrée'!$C$332+1)^'1 Données d''entrée'!$C$333)-(1+'1 Données d''entrée'!$C$332)^('6 Financement'!T$54-1-'1 Données d''entrée'!$C$334-$B366))/((1+'1 Données d''entrée'!$C$332)^'1 Données d''entrée'!$C$333-1)*'1 Données d''entrée'!$C$332,0)","v":0},{"$f":"IF(V355>0,$F349*((('1 Données d''entrée'!$C$332+1)^'1 Données d''entrée'!$C$333)-(1+'1 Données d''entrée'!$C$332)^('6 Financement'!U$54-1-'1 Données d''entrée'!$C$334-$B366))/((1+'1 Données d''entrée'!$C$332)^'1 Données d''entrée'!$C$333-1)*'1 Données d''entrée'!$C$332,0)","v":0}]
["Paiement d'intêrets",5,0,{"$f":"IF(D356>0,$G349*((('1 Données d''entrée'!$C$332+1)^'1 Données d''entrée'!$C$333)-(1+'1 Données d''entrée'!$C$332)^('6 Financement'!C$54-1-'1 Données d''entrée'!$C$334-$B367))/((1+'1 Données d''entrée'!$C$332)^'1 Données d''entrée'!$C$333-1)*'1 Données d''entrée'!$C$332,0)","v":0},{"$f":"IF(E356>0,$G349*((('1 Données d''entrée'!$C$332+1)^'1 Données d''entrée'!$C$333)-(1+'1 Données d''entrée'!$C$332)^('6 Financement'!D$54-1-'1 Données d''entrée'!$C$334-$B367))/((1+'1 Données d''entrée'!$C$332)^'1 Données d''entrée'!$C$333-1)*'1 Données d''entrée'!$C$332,0)","v":0},{"$f":"IF(F356>0,$G349*((('1 Données d''entrée'!$C$332+1)^'1 Données d''entrée'!$C$333)-(1+'1 Données d''entrée'!$C$332)^('6 Financement'!E$54-1-'1 Données d''entrée'!$C$334-$B367))/((1+'1 Données d''entrée'!$C$332)^'1 Données d''entrée'!$C$333-1)*'1 Données d''entrée'!$C$332,0)","v":0},{"$f":"IF(G356>0,$G349*((('1 Données d''entrée'!$C$332+1)^'1 Données d''entrée'!$C$333)-(1+'1 Données d''entrée'!$C$332)^('6 Financement'!F$54-1-'1 Données d''entrée'!$C$334-$B367))/((1+'1 Données d''entrée'!$C$332)^'1 Données d''entrée'!$C$333-1)*'1 Données d''entrée'!$C$332,0)","v":0},{"$f":"IF(H356>0,$G349*((('1 Données d''entrée'!$C$332+1)^'1 Données d''entrée'!$C$333)-(1+'1 Données d''entrée'!$C$332)^('6 Financement'!G$54-1-'1 Données d''entrée'!$C$334-$B367))/((1+'1 Données d''entrée'!$C$332)^'1 Données d''entrée'!$C$333-1)*'1 Données d''entrée'!$C$332,0)","v":0},{"$f":"IF(I356>0,$G349*((('1 Données d''entrée'!$C$332+1)^'1 Données d''entrée'!$C$333)-(1+'1 Données d''entrée'!$C$332)^('6 Financement'!H$54-1-'1 Données d''entrée'!$C$334-$B367))/((1+'1 Données d''entrée'!$C$332)^'1 Données d''entrée'!$C$333-1)*'1 Données d''entrée'!$C$332,0)","v":0},{"$f":"IF(J356>0,$G349*((('1 Données d''entrée'!$C$332+1)^'1 Données d''entrée'!$C$333)-(1+'1 Données d''entrée'!$C$332)^('6 Financement'!I$54-1-'1 Données d''entrée'!$C$334-$B367))/((1+'1 Données d''entrée'!$C$332)^'1 Données d''entrée'!$C$333-1)*'1 Données d''entrée'!$C$332,0)","v":0},{"$f":"IF(K356>0,$G349*((('1 Données d''entrée'!$C$332+1)^'1 Données d''entrée'!$C$333)-(1+'1 Données d''entrée'!$C$332)^('6 Financement'!J$54-1-'1 Données d''entrée'!$C$334-$B367))/((1+'1 Données d''entrée'!$C$332)^'1 Données d''entrée'!$C$333-1)*'1 Données d''entrée'!$C$332,0)","v":0},{"$f":"IF(L356>0,$G349*((('1 Données d''entrée'!$C$332+1)^'1 Données d''entrée'!$C$333)-(1+'1 Données d''entrée'!$C$332)^('6 Financement'!K$54-1-'1 Données d''entrée'!$C$334-$B367))/((1+'1 Données d''entrée'!$C$332)^'1 Données d''entrée'!$C$333-1)*'1 Données d''entrée'!$C$332,0)","v":0},{"$f":"IF(M356>0,$G349*((('1 Données d''entrée'!$C$332+1)^'1 Données d''entrée'!$C$333)-(1+'1 Données d''entrée'!$C$332)^('6 Financement'!L$54-1-'1 Données d''entrée'!$C$334-$B367))/((1+'1 Données d''entrée'!$C$332)^'1 Données d''entrée'!$C$333-1)*'1 Données d''entrée'!$C$332,0)","v":0},{"$f":"IF(N356>0,$G349*((('1 Données d''entrée'!$C$332+1)^'1 Données d''entrée'!$C$333)-(1+'1 Données d''entrée'!$C$332)^('6 Financement'!M$54-1-'1 Données d''entrée'!$C$334-$B367))/((1+'1 Données d''entrée'!$C$332)^'1 Données d''entrée'!$C$333-1)*'1 Données d''entrée'!$C$332,0)","v":0},{"$f":"IF(O356>0,$G349*((('1 Données d''entrée'!$C$332+1)^'1 Données d''entrée'!$C$333)-(1+'1 Données d''entrée'!$C$332)^('6 Financement'!N$54-1-'1 Données d''entrée'!$C$334-$B367))/((1+'1 Données d''entrée'!$C$332)^'1 Données d''entrée'!$C$333-1)*'1 Données d''entrée'!$C$332,0)","v":0},{"$f":"IF(P356>0,$G349*((('1 Données d''entrée'!$C$332+1)^'1 Données d''entrée'!$C$333)-(1+'1 Données d''entrée'!$C$332)^('6 Financement'!O$54-1-'1 Données d''entrée'!$C$334-$B367))/((1+'1 Données d''entrée'!$C$332)^'1 Données d''entrée'!$C$333-1)*'1 Données d''entrée'!$C$332,0)","v":0},{"$f":"IF(Q356>0,$G349*((('1 Données d''entrée'!$C$332+1)^'1 Données d''entrée'!$C$333)-(1+'1 Données d''entrée'!$C$332)^('6 Financement'!P$54-1-'1 Données d''entrée'!$C$334-$B367))/((1+'1 Données d''entrée'!$C$332)^'1 Données d''entrée'!$C$333-1)*'1 Données d''entrée'!$C$332,0)","v":0},{"$f":"IF(R356>0,$G349*((('1 Données d''entrée'!$C$332+1)^'1 Données d''entrée'!$C$333)-(1+'1 Données d''entrée'!$C$332)^('6 Financement'!Q$54-1-'1 Données d''entrée'!$C$334-$B367))/((1+'1 Données d''entrée'!$C$332)^'1 Données d''entrée'!$C$333-1)*'1 Données d''entrée'!$C$332,0)","v":0},{"$f":"IF(S356>0,$G349*((('1 Données d''entrée'!$C$332+1)^'1 Données d''entrée'!$C$333)-(1+'1 Données d''entrée'!$C$332)^('6 Financement'!R$54-1-'1 Données d''entrée'!$C$334-$B367))/((1+'1 Données d''entrée'!$C$332)^'1 Données d''entrée'!$C$333-1)*'1 Données d''entrée'!$C$332,0)","v":0},{"$f":"IF(T356>0,$G349*((('1 Données d''entrée'!$C$332+1)^'1 Données d''entrée'!$C$333)-(1+'1 Données d''entrée'!$C$332)^('6 Financement'!S$54-1-'1 Données d''entrée'!$C$334-$B367))/((1+'1 Données d''entrée'!$C$332)^'1 Données d''entrée'!$C$333-1)*'1 Données d''entrée'!$C$332,0)","v":0},{"$f":"IF(U356>0,$G349*((('1 Données d''entrée'!$C$332+1)^'1 Données d''entrée'!$C$333)-(1+'1 Données d''entrée'!$C$332)^('6 Financement'!T$54-1-'1 Données d''entrée'!$C$334-$B367))/((1+'1 Données d''entrée'!$C$332)^'1 Données d''entrée'!$C$333-1)*'1 Données d''entrée'!$C$332,0)","v":0},{"$f":"IF(V356>0,$G349*((('1 Données d''entrée'!$C$332+1)^'1 Données d''entrée'!$C$333)-(1+'1 Données d''entrée'!$C$332)^('6 Financement'!U$54-1-'1 Données d''entrée'!$C$334-$B367))/((1+'1 Données d''entrée'!$C$332)^'1 Données d''entrée'!$C$333-1)*'1 Données d''entrée'!$C$332,0)","v":0}]
["Paiement d'intêrets",6,0,{"$f":"IF(D357>0,$H349*((('1 Données d''entrée'!$C$332+1)^'1 Données d''entrée'!$C$333)-(1+'1 Données d''entrée'!$C$332)^('6 Financement'!C$54-1-'1 Données d''entrée'!$C$334-$B368))/((1+'1 Données d''entrée'!$C$332)^'1 Données d''entrée'!$C$333-1)*'1 Données d''entrée'!$C$332,0)","v":0},{"$f":"IF(E357>0,$H349*((('1 Données d''entrée'!$C$332+1)^'1 Données d''entrée'!$C$333)-(1+'1 Données d''entrée'!$C$332)^('6 Financement'!D$54-1-'1 Données d''entrée'!$C$334-$B368))/((1+'1 Données d''entrée'!$C$332)^'1 Données d''entrée'!$C$333-1)*'1 Données d''entrée'!$C$332,0)","v":0},{"$f":"IF(F357>0,$H349*((('1 Données d''entrée'!$C$332+1)^'1 Données d''entrée'!$C$333)-(1+'1 Données d''entrée'!$C$332)^('6 Financement'!E$54-1-'1 Données d''entrée'!$C$334-$B368))/((1+'1 Données d''entrée'!$C$332)^'1 Données d''entrée'!$C$333-1)*'1 Données d''entrée'!$C$332,0)","v":0},{"$f":"IF(G357>0,$H349*((('1 Données d''entrée'!$C$332+1)^'1 Données d''entrée'!$C$333)-(1+'1 Données d''entrée'!$C$332)^('6 Financement'!F$54-1-'1 Données d''entrée'!$C$334-$B368))/((1+'1 Données d''entrée'!$C$332)^'1 Données d''entrée'!$C$333-1)*'1 Données d''entrée'!$C$332,0)","v":0},{"$f":"IF(H357>0,$H349*((('1 Données d''entrée'!$C$332+1)^'1 Données d''entrée'!$C$333)-(1+'1 Données d''entrée'!$C$332)^('6 Financement'!G$54-1-'1 Données d''entrée'!$C$334-$B368))/((1+'1 Données d''entrée'!$C$332)^'1 Données d''entrée'!$C$333-1)*'1 Données d''entrée'!$C$332,0)","v":0},{"$f":"IF(I357>0,$H349*((('1 Données d''entrée'!$C$332+1)^'1 Données d''entrée'!$C$333)-(1+'1 Données d''entrée'!$C$332)^('6 Financement'!H$54-1-'1 Données d''entrée'!$C$334-$B368))/((1+'1 Données d''entrée'!$C$332)^'1 Données d''entrée'!$C$333-1)*'1 Données d''entrée'!$C$332,0)","v":0},{"$f":"IF(J357>0,$H349*((('1 Données d''entrée'!$C$332+1)^'1 Données d''entrée'!$C$333)-(1+'1 Données d''entrée'!$C$332)^('6 Financement'!I$54-1-'1 Données d''entrée'!$C$334-$B368))/((1+'1 Données d''entrée'!$C$332)^'1 Données d''entrée'!$C$333-1)*'1 Données d''entrée'!$C$332,0)","v":0},{"$f":"IF(K357>0,$H349*((('1 Données d''entrée'!$C$332+1)^'1 Données d''entrée'!$C$333)-(1+'1 Données d''entrée'!$C$332)^('6 Financement'!J$54-1-'1 Données d''entrée'!$C$334-$B368))/((1+'1 Données d''entrée'!$C$332)^'1 Données d''entrée'!$C$333-1)*'1 Données d''entrée'!$C$332,0)","v":0},{"$f":"IF(L357>0,$H349*((('1 Données d''entrée'!$C$332+1)^'1 Données d''entrée'!$C$333)-(1+'1 Données d''entrée'!$C$332)^('6 Financement'!K$54-1-'1 Données d''entrée'!$C$334-$B368))/((1+'1 Données d''entrée'!$C$332)^'1 Données d''entrée'!$C$333-1)*'1 Données d''entrée'!$C$332,0)","v":0},{"$f":"IF(M357>0,$H349*((('1 Données d''entrée'!$C$332+1)^'1 Données d''entrée'!$C$333)-(1+'1 Données d''entrée'!$C$332)^('6 Financement'!L$54-1-'1 Données d''entrée'!$C$334-$B368))/((1+'1 Données d''entrée'!$C$332)^'1 Données d''entrée'!$C$333-1)*'1 Données d''entrée'!$C$332,0)","v":0},{"$f":"IF(N357>0,$H349*((('1 Données d''entrée'!$C$332+1)^'1 Données d''entrée'!$C$333)-(1+'1 Données d''entrée'!$C$332)^('6 Financement'!M$54-1-'1 Données d''entrée'!$C$334-$B368))/((1+'1 Données d''entrée'!$C$332)^'1 Données d''entrée'!$C$333-1)*'1 Données d''entrée'!$C$332,0)","v":0},{"$f":"IF(O357>0,$H349*((('1 Données d''entrée'!$C$332+1)^'1 Données d''entrée'!$C$333)-(1+'1 Données d''entrée'!$C$332)^('6 Financement'!N$54-1-'1 Données d''entrée'!$C$334-$B368))/((1+'1 Données d''entrée'!$C$332)^'1 Données d''entrée'!$C$333-1)*'1 Données d''entrée'!$C$332,0)","v":0},{"$f":"IF(P357>0,$H349*((('1 Données d''entrée'!$C$332+1)^'1 Données d''entrée'!$C$333)-(1+'1 Données d''entrée'!$C$332)^('6 Financement'!O$54-1-'1 Données d''entrée'!$C$334-$B368))/((1+'1 Données d''entrée'!$C$332)^'1 Données d''entrée'!$C$333-1)*'1 Données d''entrée'!$C$332,0)","v":0},{"$f":"IF(Q357>0,$H349*((('1 Données d''entrée'!$C$332+1)^'1 Données d''entrée'!$C$333)-(1+'1 Données d''entrée'!$C$332)^('6 Financement'!P$54-1-'1 Données d''entrée'!$C$334-$B368))/((1+'1 Données d''entrée'!$C$332)^'1 Données d''entrée'!$C$333-1)*'1 Données d''entrée'!$C$332,0)","v":0},{"$f":"IF(R357>0,$H349*((('1 Données d''entrée'!$C$332+1)^'1 Données d''entrée'!$C$333)-(1+'1 Données d''entrée'!$C$332)^('6 Financement'!Q$54-1-'1 Données d''entrée'!$C$334-$B368))/((1+'1 Données d''entrée'!$C$332)^'1 Données d''entrée'!$C$333-1)*'1 Données d''entrée'!$C$332,0)","v":0},{"$f":"IF(S357>0,$H349*((('1 Données d''entrée'!$C$332+1)^'1 Données d''entrée'!$C$333)-(1+'1 Données d''entrée'!$C$332)^('6 Financement'!R$54-1-'1 Données d''entrée'!$C$334-$B368))/((1+'1 Données d''entrée'!$C$332)^'1 Données d''entrée'!$C$333-1)*'1 Données d''entrée'!$C$332,0)","v":0},{"$f":"IF(T357>0,$H349*((('1 Données d''entrée'!$C$332+1)^'1 Données d''entrée'!$C$333)-(1+'1 Données d''entrée'!$C$332)^('6 Financement'!S$54-1-'1 Données d''entrée'!$C$334-$B368))/((1+'1 Données d''entrée'!$C$332)^'1 Données d''entrée'!$C$333-1)*'1 Données d''entrée'!$C$332,0)","v":0},{"$f":"IF(U357>0,$H349*((('1 Données d''entrée'!$C$332+1)^'1 Données d''entrée'!$C$333)-(1+'1 Données d''entrée'!$C$332)^('6 Financement'!T$54-1-'1 Données d''entrée'!$C$334-$B368))/((1+'1 Données d''entrée'!$C$332)^'1 Données d''entrée'!$C$333-1)*'1 Données d''entrée'!$C$332,0)","v":0},{"$f":"IF(V357>0,$H349*((('1 Données d''entrée'!$C$332+1)^'1 Données d''entrée'!$C$333)-(1+'1 Données d''entrée'!$C$332)^('6 Financement'!U$54-1-'1 Données d''entrée'!$C$334-$B368))/((1+'1 Données d''entrée'!$C$332)^'1 Données d''entrée'!$C$333-1)*'1 Données d''entrée'!$C$332,0)","v":0}]
["Paiement d'intêrets",7,0,{"$f":"IF(D358>0,$I349*((('1 Données d''entrée'!$C$332+1)^'1 Données d''entrée'!$C$333)-(1+'1 Données d''entrée'!$C$332)^('6 Financement'!C$54-1-'1 Données d''entrée'!$C$334-$B369))/((1+'1 Données d''entrée'!$C$332)^'1 Données d''entrée'!$C$333-1)*'1 Données d''entrée'!$C$332,0)","v":0},{"$f":"IF(E358>0,$I349*((('1 Données d''entrée'!$C$332+1)^'1 Données d''entrée'!$C$333)-(1+'1 Données d''entrée'!$C$332)^('6 Financement'!D$54-1-'1 Données d''entrée'!$C$334-$B369))/((1+'1 Données d''entrée'!$C$332)^'1 Données d''entrée'!$C$333-1)*'1 Données d''entrée'!$C$332,0)","v":0},{"$f":"IF(F358>0,$I349*((('1 Données d''entrée'!$C$332+1)^'1 Données d''entrée'!$C$333)-(1+'1 Données d''entrée'!$C$332)^('6 Financement'!E$54-1-'1 Données d''entrée'!$C$334-$B369))/((1+'1 Données d''entrée'!$C$332)^'1 Données d''entrée'!$C$333-1)*'1 Données d''entrée'!$C$332,0)","v":0},{"$f":"IF(G358>0,$I349*((('1 Données d''entrée'!$C$332+1)^'1 Données d''entrée'!$C$333)-(1+'1 Données d''entrée'!$C$332)^('6 Financement'!F$54-1-'1 Données d''entrée'!$C$334-$B369))/((1+'1 Données d''entrée'!$C$332)^'1 Données d''entrée'!$C$333-1)*'1 Données d''entrée'!$C$332,0)","v":0},{"$f":"IF(H358>0,$I349*((('1 Données d''entrée'!$C$332+1)^'1 Données d''entrée'!$C$333)-(1+'1 Données d''entrée'!$C$332)^('6 Financement'!G$54-1-'1 Données d''entrée'!$C$334-$B369))/((1+'1 Données d''entrée'!$C$332)^'1 Données d''entrée'!$C$333-1)*'1 Données d''entrée'!$C$332,0)","v":0},{"$f":"IF(I358>0,$I349*((('1 Données d''entrée'!$C$332+1)^'1 Données d''entrée'!$C$333)-(1+'1 Données d''entrée'!$C$332)^('6 Financement'!H$54-1-'1 Données d''entrée'!$C$334-$B369))/((1+'1 Données d''entrée'!$C$332)^'1 Données d''entrée'!$C$333-1)*'1 Données d''entrée'!$C$332,0)","v":0},{"$f":"IF(J358>0,$I349*((('1 Données d''entrée'!$C$332+1)^'1 Données d''entrée'!$C$333)-(1+'1 Données d''entrée'!$C$332)^('6 Financement'!I$54-1-'1 Données d''entrée'!$C$334-$B369))/((1+'1 Données d''entrée'!$C$332)^'1 Données d''entrée'!$C$333-1)*'1 Données d''entrée'!$C$332,0)","v":0},{"$f":"IF(K358>0,$I349*((('1 Données d''entrée'!$C$332+1)^'1 Données d''entrée'!$C$333)-(1+'1 Données d''entrée'!$C$332)^('6 Financement'!J$54-1-'1 Données d''entrée'!$C$334-$B369))/((1+'1 Données d''entrée'!$C$332)^'1 Données d''entrée'!$C$333-1)*'1 Données d''entrée'!$C$332,0)","v":0},{"$f":"IF(L358>0,$I349*((('1 Données d''entrée'!$C$332+1)^'1 Données d''entrée'!$C$333)-(1+'1 Données d''entrée'!$C$332)^('6 Financement'!K$54-1-'1 Données d''entrée'!$C$334-$B369))/((1+'1 Données d''entrée'!$C$332)^'1 Données d''entrée'!$C$333-1)*'1 Données d''entrée'!$C$332,0)","v":0},{"$f":"IF(M358>0,$I349*((('1 Données d''entrée'!$C$332+1)^'1 Données d''entrée'!$C$333)-(1+'1 Données d''entrée'!$C$332)^('6 Financement'!L$54-1-'1 Données d''entrée'!$C$334-$B369))/((1+'1 Données d''entrée'!$C$332)^'1 Données d''entrée'!$C$333-1)*'1 Données d''entrée'!$C$332,0)","v":0},{"$f":"IF(N358>0,$I349*((('1 Données d''entrée'!$C$332+1)^'1 Données d''entrée'!$C$333)-(1+'1 Données d''entrée'!$C$332)^('6 Financement'!M$54-1-'1 Données d''entrée'!$C$334-$B369))/((1+'1 Données d''entrée'!$C$332)^'1 Données d''entrée'!$C$333-1)*'1 Données d''entrée'!$C$332,0)","v":0},{"$f":"IF(O358>0,$I349*((('1 Données d''entrée'!$C$332+1)^'1 Données d''entrée'!$C$333)-(1+'1 Données d''entrée'!$C$332)^('6 Financement'!N$54-1-'1 Données d''entrée'!$C$334-$B369))/((1+'1 Données d''entrée'!$C$332)^'1 Données d''entrée'!$C$333-1)*'1 Données d''entrée'!$C$332,0)","v":0},{"$f":"IF(P358>0,$I349*((('1 Données d''entrée'!$C$332+1)^'1 Données d''entrée'!$C$333)-(1+'1 Données d''entrée'!$C$332)^('6 Financement'!O$54-1-'1 Données d''entrée'!$C$334-$B369))/((1+'1 Données d''entrée'!$C$332)^'1 Données d''entrée'!$C$333-1)*'1 Données d''entrée'!$C$332,0)","v":0},{"$f":"IF(Q358>0,$I349*((('1 Données d''entrée'!$C$332+1)^'1 Données d''entrée'!$C$333)-(1+'1 Données d''entrée'!$C$332)^('6 Financement'!P$54-1-'1 Données d''entrée'!$C$334-$B369))/((1+'1 Données d''entrée'!$C$332)^'1 Données d''entrée'!$C$333-1)*'1 Données d''entrée'!$C$332,0)","v":0},{"$f":"IF(R358>0,$I349*((('1 Données d''entrée'!$C$332+1)^'1 Données d''entrée'!$C$333)-(1+'1 Données d''entrée'!$C$332)^('6 Financement'!Q$54-1-'1 Données d''entrée'!$C$334-$B369))/((1+'1 Données d''entrée'!$C$332)^'1 Données d''entrée'!$C$333-1)*'1 Données d''entrée'!$C$332,0)","v":0},{"$f":"IF(S358>0,$I349*((('1 Données d''entrée'!$C$332+1)^'1 Données d''entrée'!$C$333)-(1+'1 Données d''entrée'!$C$332)^('6 Financement'!R$54-1-'1 Données d''entrée'!$C$334-$B369))/((1+'1 Données d''entrée'!$C$332)^'1 Données d''entrée'!$C$333-1)*'1 Données d''entrée'!$C$332,0)","v":0},{"$f":"IF(T358>0,$I349*((('1 Données d''entrée'!$C$332+1)^'1 Données d''entrée'!$C$333)-(1+'1 Données d''entrée'!$C$332)^('6 Financement'!S$54-1-'1 Données d''entrée'!$C$334-$B369))/((1+'1 Données d''entrée'!$C$332)^'1 Données d''entrée'!$C$333-1)*'1 Données d''entrée'!$C$332,0)","v":0},{"$f":"IF(U358>0,$I349*((('1 Données d''entrée'!$C$332+1)^'1 Données d''entrée'!$C$333)-(1+'1 Données d''entrée'!$C$332)^('6 Financement'!T$54-1-'1 Données d''entrée'!$C$334-$B369))/((1+'1 Données d''entrée'!$C$332)^'1 Données d''entrée'!$C$333-1)*'1 Données d''entrée'!$C$332,0)","v":0},{"$f":"IF(V358>0,$I349*((('1 Données d''entrée'!$C$332+1)^'1 Données d''entrée'!$C$333)-(1+'1 Données d''entrée'!$C$332)^('6 Financement'!U$54-1-'1 Données d''entrée'!$C$334-$B369))/((1+'1 Données d''entrée'!$C$332)^'1 Données d''entrée'!$C$333-1)*'1 Données d''entrée'!$C$332,0)","v":0}]
["Paiement d'intêrets",8,0,{"$f":"IF(D359>0,$J349*((('1 Données d''entrée'!$C$332+1)^'1 Données d''entrée'!$C$333)-(1+'1 Données d''entrée'!$C$332)^('6 Financement'!C$54-1-'1 Données d''entrée'!$C$334-$B370))/((1+'1 Données d''entrée'!$C$332)^'1 Données d''entrée'!$C$333-1)*'1 Données d''entrée'!$C$332,0)","v":0},{"$f":"IF(E359>0,$J349*((('1 Données d''entrée'!$C$332+1)^'1 Données d''entrée'!$C$333)-(1+'1 Données d''entrée'!$C$332)^('6 Financement'!D$54-1-'1 Données d''entrée'!$C$334-$B370))/((1+'1 Données d''entrée'!$C$332)^'1 Données d''entrée'!$C$333-1)*'1 Données d''entrée'!$C$332,0)","v":0},{"$f":"IF(F359>0,$J349*((('1 Données d''entrée'!$C$332+1)^'1 Données d''entrée'!$C$333)-(1+'1 Données d''entrée'!$C$332)^('6 Financement'!E$54-1-'1 Données d''entrée'!$C$334-$B370))/((1+'1 Données d''entrée'!$C$332)^'1 Données d''entrée'!$C$333-1)*'1 Données d''entrée'!$C$332,0)","v":0},{"$f":"IF(G359>0,$J349*((('1 Données d''entrée'!$C$332+1)^'1 Données d''entrée'!$C$333)-(1+'1 Données d''entrée'!$C$332)^('6 Financement'!F$54-1-'1 Données d''entrée'!$C$334-$B370))/((1+'1 Données d''entrée'!$C$332)^'1 Données d''entrée'!$C$333-1)*'1 Données d''entrée'!$C$332,0)","v":0},{"$f":"IF(H359>0,$J349*((('1 Données d''entrée'!$C$332+1)^'1 Données d''entrée'!$C$333)-(1+'1 Données d''entrée'!$C$332)^('6 Financement'!G$54-1-'1 Données d''entrée'!$C$334-$B370))/((1+'1 Données d''entrée'!$C$332)^'1 Données d''entrée'!$C$333-1)*'1 Données d''entrée'!$C$332,0)","v":0},{"$f":"IF(I359>0,$J349*((('1 Données d''entrée'!$C$332+1)^'1 Données d''entrée'!$C$333)-(1+'1 Données d''entrée'!$C$332)^('6 Financement'!H$54-1-'1 Données d''entrée'!$C$334-$B370))/((1+'1 Données d''entrée'!$C$332)^'1 Données d''entrée'!$C$333-1)*'1 Données d''entrée'!$C$332,0)","v":0},{"$f":"IF(J359>0,$J349*((('1 Données d''entrée'!$C$332+1)^'1 Données d''entrée'!$C$333)-(1+'1 Données d''entrée'!$C$332)^('6 Financement'!I$54-1-'1 Données d''entrée'!$C$334-$B370))/((1+'1 Données d''entrée'!$C$332)^'1 Données d''entrée'!$C$333-1)*'1 Données d''entrée'!$C$332,0)","v":0},{"$f":"IF(K359>0,$J349*((('1 Données d''entrée'!$C$332+1)^'1 Données d''entrée'!$C$333)-(1+'1 Données d''entrée'!$C$332)^('6 Financement'!J$54-1-'1 Données d''entrée'!$C$334-$B370))/((1+'1 Données d''entrée'!$C$332)^'1 Données d''entrée'!$C$333-1)*'1 Données d''entrée'!$C$332,0)","v":0},{"$f":"IF(L359>0,$J349*((('1 Données d''entrée'!$C$332+1)^'1 Données d''entrée'!$C$333)-(1+'1 Données d''entrée'!$C$332)^('6 Financement'!K$54-1-'1 Données d''entrée'!$C$334-$B370))/((1+'1 Données d''entrée'!$C$332)^'1 Données d''entrée'!$C$333-1)*'1 Données d''entrée'!$C$332,0)","v":0},{"$f":"IF(M359>0,$J349*((('1 Données d''entrée'!$C$332+1)^'1 Données d''entrée'!$C$333)-(1+'1 Données d''entrée'!$C$332)^('6 Financement'!L$54-1-'1 Données d''entrée'!$C$334-$B370))/((1+'1 Données d''entrée'!$C$332)^'1 Données d''entrée'!$C$333-1)*'1 Données d''entrée'!$C$332,0)","v":0},{"$f":"IF(N359>0,$J349*((('1 Données d''entrée'!$C$332+1)^'1 Données d''entrée'!$C$333)-(1+'1 Données d''entrée'!$C$332)^('6 Financement'!M$54-1-'1 Données d''entrée'!$C$334-$B370))/((1+'1 Données d''entrée'!$C$332)^'1 Données d''entrée'!$C$333-1)*'1 Données d''entrée'!$C$332,0)","v":0},{"$f":"IF(O359>0,$J349*((('1 Données d''entrée'!$C$332+1)^'1 Données d''entrée'!$C$333)-(1+'1 Données d''entrée'!$C$332)^('6 Financement'!N$54-1-'1 Données d''entrée'!$C$334-$B370))/((1+'1 Données d''entrée'!$C$332)^'1 Données d''entrée'!$C$333-1)*'1 Données d''entrée'!$C$332,0)","v":0},{"$f":"IF(P359>0,$J349*((('1 Données d''entrée'!$C$332+1)^'1 Données d''entrée'!$C$333)-(1+'1 Données d''entrée'!$C$332)^('6 Financement'!O$54-1-'1 Données d''entrée'!$C$334-$B370))/((1+'1 Données d''entrée'!$C$332)^'1 Données d''entrée'!$C$333-1)*'1 Données d''entrée'!$C$332,0)","v":0},{"$f":"IF(Q359>0,$J349*((('1 Données d''entrée'!$C$332+1)^'1 Données d''entrée'!$C$333)-(1+'1 Données d''entrée'!$C$332)^('6 Financement'!P$54-1-'1 Données d''entrée'!$C$334-$B370))/((1+'1 Données d''entrée'!$C$332)^'1 Données d''entrée'!$C$333-1)*'1 Données d''entrée'!$C$332,0)","v":0},{"$f":"IF(R359>0,$J349*((('1 Données d''entrée'!$C$332+1)^'1 Données d''entrée'!$C$333)-(1+'1 Données d''entrée'!$C$332)^('6 Financement'!Q$54-1-'1 Données d''entrée'!$C$334-$B370))/((1+'1 Données d''entrée'!$C$332)^'1 Données d''entrée'!$C$333-1)*'1 Données d''entrée'!$C$332,0)","v":0},{"$f":"IF(S359>0,$J349*((('1 Données d''entrée'!$C$332+1)^'1 Données d''entrée'!$C$333)-(1+'1 Données d''entrée'!$C$332)^('6 Financement'!R$54-1-'1 Données d''entrée'!$C$334-$B370))/((1+'1 Données d''entrée'!$C$332)^'1 Données d''entrée'!$C$333-1)*'1 Données d''entrée'!$C$332,0)","v":0},{"$f":"IF(T359>0,$J349*((('1 Données d''entrée'!$C$332+1)^'1 Données d''entrée'!$C$333)-(1+'1 Données d''entrée'!$C$332)^('6 Financement'!S$54-1-'1 Données d''entrée'!$C$334-$B370))/((1+'1 Données d''entrée'!$C$332)^'1 Données d''entrée'!$C$333-1)*'1 Données d''entrée'!$C$332,0)","v":0},{"$f":"IF(U359>0,$J349*((('1 Données d''entrée'!$C$332+1)^'1 Données d''entrée'!$C$333)-(1+'1 Données d''entrée'!$C$332)^('6 Financement'!T$54-1-'1 Données d''entrée'!$C$334-$B370))/((1+'1 Données d''entrée'!$C$332)^'1 Données d''entrée'!$C$333-1)*'1 Données d''entrée'!$C$332,0)","v":0},{"$f":"IF(V359>0,$J349*((('1 Données d''entrée'!$C$332+1)^'1 Données d''entrée'!$C$333)-(1+'1 Données d''entrée'!$C$332)^('6 Financement'!U$54-1-'1 Données d''entrée'!$C$334-$B370))/((1+'1 Données d''entrée'!$C$332)^'1 Données d''entrée'!$C$333-1)*'1 Données d''entrée'!$C$332,0)","v":0}]
["Paiement d'intêrets",9,0,{"$f":"IF(D360>0,$K349*((('1 Données d''entrée'!$C$332+1)^'1 Données d''entrée'!$C$333)-(1+'1 Données d''entrée'!$C$332)^('6 Financement'!C$54-1-'1 Données d''entrée'!$C$334-$B371))/((1+'1 Données d''entrée'!$C$332)^'1 Données d''entrée'!$C$333-1)*'1 Données d''entrée'!$C$332,0)","v":0},{"$f":"IF(E360>0,$K349*((('1 Données d''entrée'!$C$332+1)^'1 Données d''entrée'!$C$333)-(1+'1 Données d''entrée'!$C$332)^('6 Financement'!D$54-1-'1 Données d''entrée'!$C$334-$B371))/((1+'1 Données d''entrée'!$C$332)^'1 Données d''entrée'!$C$333-1)*'1 Données d''entrée'!$C$332,0)","v":0},{"$f":"IF(F360>0,$K349*((('1 Données d''entrée'!$C$332+1)^'1 Données d''entrée'!$C$333)-(1+'1 Données d''entrée'!$C$332)^('6 Financement'!E$54-1-'1 Données d''entrée'!$C$334-$B371))/((1+'1 Données d''entrée'!$C$332)^'1 Données d''entrée'!$C$333-1)*'1 Données d''entrée'!$C$332,0)","v":0},{"$f":"IF(G360>0,$K349*((('1 Données d''entrée'!$C$332+1)^'1 Données d''entrée'!$C$333)-(1+'1 Données d''entrée'!$C$332)^('6 Financement'!F$54-1-'1 Données d''entrée'!$C$334-$B371))/((1+'1 Données d''entrée'!$C$332)^'1 Données d''entrée'!$C$333-1)*'1 Données d''entrée'!$C$332,0)","v":0},{"$f":"IF(H360>0,$K349*((('1 Données d''entrée'!$C$332+1)^'1 Données d''entrée'!$C$333)-(1+'1 Données d''entrée'!$C$332)^('6 Financement'!G$54-1-'1 Données d''entrée'!$C$334-$B371))/((1+'1 Données d''entrée'!$C$332)^'1 Données d''entrée'!$C$333-1)*'1 Données d''entrée'!$C$332,0)","v":0},{"$f":"IF(I360>0,$K349*((('1 Données d''entrée'!$C$332+1)^'1 Données d''entrée'!$C$333)-(1+'1 Données d''entrée'!$C$332)^('6 Financement'!H$54-1-'1 Données d''entrée'!$C$334-$B371))/((1+'1 Données d''entrée'!$C$332)^'1 Données d''entrée'!$C$333-1)*'1 Données d''entrée'!$C$332,0)","v":0},{"$f":"IF(J360>0,$K349*((('1 Données d''entrée'!$C$332+1)^'1 Données d''entrée'!$C$333)-(1+'1 Données d''entrée'!$C$332)^('6 Financement'!I$54-1-'1 Données d''entrée'!$C$334-$B371))/((1+'1 Données d''entrée'!$C$332)^'1 Données d''entrée'!$C$333-1)*'1 Données d''entrée'!$C$332,0)","v":0},{"$f":"IF(K360>0,$K349*((('1 Données d''entrée'!$C$332+1)^'1 Données d''entrée'!$C$333)-(1+'1 Données d''entrée'!$C$332)^('6 Financement'!J$54-1-'1 Données d''entrée'!$C$334-$B371))/((1+'1 Données d''entrée'!$C$332)^'1 Données d''entrée'!$C$333-1)*'1 Données d''entrée'!$C$332,0)","v":0},{"$f":"IF(L360>0,$K349*((('1 Données d''entrée'!$C$332+1)^'1 Données d''entrée'!$C$333)-(1+'1 Données d''entrée'!$C$332)^('6 Financement'!K$54-1-'1 Données d''entrée'!$C$334-$B371))/((1+'1 Données d''entrée'!$C$332)^'1 Données d''entrée'!$C$333-1)*'1 Données d''entrée'!$C$332,0)","v":0},{"$f":"IF(M360>0,$K349*((('1 Données d''entrée'!$C$332+1)^'1 Données d''entrée'!$C$333)-(1+'1 Données d''entrée'!$C$332)^('6 Financement'!L$54-1-'1 Données d''entrée'!$C$334-$B371))/((1+'1 Données d''entrée'!$C$332)^'1 Données d''entrée'!$C$333-1)*'1 Données d''entrée'!$C$332,0)","v":0},{"$f":"IF(N360>0,$K349*((('1 Données d''entrée'!$C$332+1)^'1 Données d''entrée'!$C$333)-(1+'1 Données d''entrée'!$C$332)^('6 Financement'!M$54-1-'1 Données d''entrée'!$C$334-$B371))/((1+'1 Données d''entrée'!$C$332)^'1 Données d''entrée'!$C$333-1)*'1 Données d''entrée'!$C$332,0)","v":0},{"$f":"IF(O360>0,$K349*((('1 Données d''entrée'!$C$332+1)^'1 Données d''entrée'!$C$333)-(1+'1 Données d''entrée'!$C$332)^('6 Financement'!N$54-1-'1 Données d''entrée'!$C$334-$B371))/((1+'1 Données d''entrée'!$C$332)^'1 Données d''entrée'!$C$333-1)*'1 Données d''entrée'!$C$332,0)","v":0},{"$f":"IF(P360>0,$K349*((('1 Données d''entrée'!$C$332+1)^'1 Données d''entrée'!$C$333)-(1+'1 Données d''entrée'!$C$332)^('6 Financement'!O$54-1-'1 Données d''entrée'!$C$334-$B371))/((1+'1 Données d''entrée'!$C$332)^'1 Données d''entrée'!$C$333-1)*'1 Données d''entrée'!$C$332,0)","v":0},{"$f":"IF(Q360>0,$K349*((('1 Données d''entrée'!$C$332+1)^'1 Données d''entrée'!$C$333)-(1+'1 Données d''entrée'!$C$332)^('6 Financement'!P$54-1-'1 Données d''entrée'!$C$334-$B371))/((1+'1 Données d''entrée'!$C$332)^'1 Données d''entrée'!$C$333-1)*'1 Données d''entrée'!$C$332,0)","v":0},{"$f":"IF(R360>0,$K349*((('1 Données d''entrée'!$C$332+1)^'1 Données d''entrée'!$C$333)-(1+'1 Données d''entrée'!$C$332)^('6 Financement'!Q$54-1-'1 Données d''entrée'!$C$334-$B371))/((1+'1 Données d''entrée'!$C$332)^'1 Données d''entrée'!$C$333-1)*'1 Données d''entrée'!$C$332,0)","v":0},{"$f":"IF(S360>0,$K349*((('1 Données d''entrée'!$C$332+1)^'1 Données d''entrée'!$C$333)-(1+'1 Données d''entrée'!$C$332)^('6 Financement'!R$54-1-'1 Données d''entrée'!$C$334-$B371))/((1+'1 Données d''entrée'!$C$332)^'1 Données d''entrée'!$C$333-1)*'1 Données d''entrée'!$C$332,0)","v":0},{"$f":"IF(T360>0,$K349*((('1 Données d''entrée'!$C$332+1)^'1 Données d''entrée'!$C$333)-(1+'1 Données d''entrée'!$C$332)^('6 Financement'!S$54-1-'1 Données d''entrée'!$C$334-$B371))/((1+'1 Données d''entrée'!$C$332)^'1 Données d''entrée'!$C$333-1)*'1 Données d''entrée'!$C$332,0)","v":0},{"$f":"IF(U360>0,$K349*((('1 Données d''entrée'!$C$332+1)^'1 Données d''entrée'!$C$333)-(1+'1 Données d''entrée'!$C$332)^('6 Financement'!T$54-1-'1 Données d''entrée'!$C$334-$B371))/((1+'1 Données d''entrée'!$C$332)^'1 Données d''entrée'!$C$333-1)*'1 Données d''entrée'!$C$332,0)","v":0},{"$f":"IF(V360>0,$K349*((('1 Données d''entrée'!$C$332+1)^'1 Données d''entrée'!$C$333)-(1+'1 Données d''entrée'!$C$332)^('6 Financement'!U$54-1-'1 Données d''entrée'!$C$334-$B371))/((1+'1 Données d''entrée'!$C$332)^'1 Données d''entrée'!$C$333-1)*'1 Données d''entrée'!$C$332,0)","v":0}]
["Paiement d'intêrets",10,0,{"$f":"IF(D361>0,$L349*((('1 Données d''entrée'!$C$332+1)^'1 Données d''entrée'!$C$333)-(1+'1 Données d''entrée'!$C$332)^('6 Financement'!C$54-1-'1 Données d''entrée'!$C$334-$B372))/((1+'1 Données d''entrée'!$C$332)^'1 Données d''entrée'!$C$333-1)*'1 Données d''entrée'!$C$332,0)","v":0},{"$f":"IF(E361>0,$L349*((('1 Données d''entrée'!$C$332+1)^'1 Données d''entrée'!$C$333)-(1+'1 Données d''entrée'!$C$332)^('6 Financement'!D$54-1-'1 Données d''entrée'!$C$334-$B372))/((1+'1 Données d''entrée'!$C$332)^'1 Données d''entrée'!$C$333-1)*'1 Données d''entrée'!$C$332,0)","v":0},{"$f":"IF(F361>0,$L349*((('1 Données d''entrée'!$C$332+1)^'1 Données d''entrée'!$C$333)-(1+'1 Données d''entrée'!$C$332)^('6 Financement'!E$54-1-'1 Données d''entrée'!$C$334-$B372))/((1+'1 Données d''entrée'!$C$332)^'1 Données d''entrée'!$C$333-1)*'1 Données d''entrée'!$C$332,0)","v":0},{"$f":"IF(G361>0,$L349*((('1 Données d''entrée'!$C$332+1)^'1 Données d''entrée'!$C$333)-(1+'1 Données d''entrée'!$C$332)^('6 Financement'!F$54-1-'1 Données d''entrée'!$C$334-$B372))/((1+'1 Données d''entrée'!$C$332)^'1 Données d''entrée'!$C$333-1)*'1 Données d''entrée'!$C$332,0)","v":0},{"$f":"IF(H361>0,$L349*((('1 Données d''entrée'!$C$332+1)^'1 Données d''entrée'!$C$333)-(1+'1 Données d''entrée'!$C$332)^('6 Financement'!G$54-1-'1 Données d''entrée'!$C$334-$B372))/((1+'1 Données d''entrée'!$C$332)^'1 Données d''entrée'!$C$333-1)*'1 Données d''entrée'!$C$332,0)","v":0},{"$f":"IF(I361>0,$L349*((('1 Données d''entrée'!$C$332+1)^'1 Données d''entrée'!$C$333)-(1+'1 Données d''entrée'!$C$332)^('6 Financement'!H$54-1-'1 Données d''entrée'!$C$334-$B372))/((1+'1 Données d''entrée'!$C$332)^'1 Données d''entrée'!$C$333-1)*'1 Données d''entrée'!$C$332,0)","v":0},{"$f":"IF(J361>0,$L349*((('1 Données d''entrée'!$C$332+1)^'1 Données d''entrée'!$C$333)-(1+'1 Données d''entrée'!$C$332)^('6 Financement'!I$54-1-'1 Données d''entrée'!$C$334-$B372))/((1+'1 Données d''entrée'!$C$332)^'1 Données d''entrée'!$C$333-1)*'1 Données d''entrée'!$C$332,0)","v":0},{"$f":"IF(K361>0,$L349*((('1 Données d''entrée'!$C$332+1)^'1 Données d''entrée'!$C$333)-(1+'1 Données d''entrée'!$C$332)^('6 Financement'!J$54-1-'1 Données d''entrée'!$C$334-$B372))/((1+'1 Données d''entrée'!$C$332)^'1 Données d''entrée'!$C$333-1)*'1 Données d''entrée'!$C$332,0)","v":0},{"$f":"IF(L361>0,$L349*((('1 Données d''entrée'!$C$332+1)^'1 Données d''entrée'!$C$333)-(1+'1 Données d''entrée'!$C$332)^('6 Financement'!K$54-1-'1 Données d''entrée'!$C$334-$B372))/((1+'1 Données d''entrée'!$C$332)^'1 Données d''entrée'!$C$333-1)*'1 Données d''entrée'!$C$332,0)","v":0},{"$f":"IF(M361>0,$L349*((('1 Données d''entrée'!$C$332+1)^'1 Données d''entrée'!$C$333)-(1+'1 Données d''entrée'!$C$332)^('6 Financement'!L$54-1-'1 Données d''entrée'!$C$334-$B372))/((1+'1 Données d''entrée'!$C$332)^'1 Données d''entrée'!$C$333-1)*'1 Données d''entrée'!$C$332,0)","v":0},{"$f":"IF(N361>0,$L349*((('1 Données d''entrée'!$C$332+1)^'1 Données d''entrée'!$C$333)-(1+'1 Données d''entrée'!$C$332)^('6 Financement'!M$54-1-'1 Données d''entrée'!$C$334-$B372))/((1+'1 Données d''entrée'!$C$332)^'1 Données d''entrée'!$C$333-1)*'1 Données d''entrée'!$C$332,0)","v":0},{"$f":"IF(O361>0,$L349*((('1 Données d''entrée'!$C$332+1)^'1 Données d''entrée'!$C$333)-(1+'1 Données d''entrée'!$C$332)^('6 Financement'!N$54-1-'1 Données d''entrée'!$C$334-$B372))/((1+'1 Données d''entrée'!$C$332)^'1 Données d''entrée'!$C$333-1)*'1 Données d''entrée'!$C$332,0)","v":0},{"$f":"IF(P361>0,$L349*((('1 Données d''entrée'!$C$332+1)^'1 Données d''entrée'!$C$333)-(1+'1 Données d''entrée'!$C$332)^('6 Financement'!O$54-1-'1 Données d''entrée'!$C$334-$B372))/((1+'1 Données d''entrée'!$C$332)^'1 Données d''entrée'!$C$333-1)*'1 Données d''entrée'!$C$332,0)","v":0},{"$f":"IF(Q361>0,$L349*((('1 Données d''entrée'!$C$332+1)^'1 Données d''entrée'!$C$333)-(1+'1 Données d''entrée'!$C$332)^('6 Financement'!P$54-1-'1 Données d''entrée'!$C$334-$B372))/((1+'1 Données d''entrée'!$C$332)^'1 Données d''entrée'!$C$333-1)*'1 Données d''entrée'!$C$332,0)","v":0},{"$f":"IF(R361>0,$L349*((('1 Données d''entrée'!$C$332+1)^'1 Données d''entrée'!$C$333)-(1+'1 Données d''entrée'!$C$332)^('6 Financement'!Q$54-1-'1 Données d''entrée'!$C$334-$B372))/((1+'1 Données d''entrée'!$C$332)^'1 Données d''entrée'!$C$333-1)*'1 Données d''entrée'!$C$332,0)","v":0},{"$f":"IF(S361>0,$L349*((('1 Données d''entrée'!$C$332+1)^'1 Données d''entrée'!$C$333)-(1+'1 Données d''entrée'!$C$332)^('6 Financement'!R$54-1-'1 Données d''entrée'!$C$334-$B372))/((1+'1 Données d''entrée'!$C$332)^'1 Données d''entrée'!$C$333-1)*'1 Données d''entrée'!$C$332,0)","v":0},{"$f":"IF(T361>0,$L349*((('1 Données d''entrée'!$C$332+1)^'1 Données d''entrée'!$C$333)-(1+'1 Données d''entrée'!$C$332)^('6 Financement'!S$54-1-'1 Données d''entrée'!$C$334-$B372))/((1+'1 Données d''entrée'!$C$332)^'1 Données d''entrée'!$C$333-1)*'1 Données d''entrée'!$C$332,0)","v":0},{"$f":"IF(U361>0,$L349*((('1 Données d''entrée'!$C$332+1)^'1 Données d''entrée'!$C$333)-(1+'1 Données d''entrée'!$C$332)^('6 Financement'!T$54-1-'1 Données d''entrée'!$C$334-$B372))/((1+'1 Données d''entrée'!$C$332)^'1 Données d''entrée'!$C$333-1)*'1 Données d''entrée'!$C$332,0)","v":0},{"$f":"IF(V361>0,$L349*((('1 Données d''entrée'!$C$332+1)^'1 Données d''entrée'!$C$333)-(1+'1 Données d''entrée'!$C$332)^('6 Financement'!U$54-1-'1 Données d''entrée'!$C$334-$B372))/((1+'1 Données d''entrée'!$C$332)^'1 Données d''entrée'!$C$333-1)*'1 Données d''entrée'!$C$332,0)","v":0}]
[]
["Solde du comte (par période)",null,{"$f":"C285+IF($B$103>0,C293-SUM(C295:C305)-SUM(C307:C317),0)+IF($B$131>0,C321-SUM(C323:C333)-SUM(C335:C345),0)+IF($B$159>0,C349-SUM(C351:C361),0)","v":{"$error":"#DIV/0!"}},{"$f":"D285+IF($B$103>0,D293-SUM(D295:D305)-SUM(D307:D317),0)+IF($B$131>0,D321-SUM(D323:D333)-SUM(D335:D345),0)+IF($B$159>0,D349-SUM(D351:D361),0)","v":{"$error":"#DIV/0!"}},{"$error":"#DIV/0!"},{"$error":"#DIV/0!"},{"$error":"#DIV/0!"},{"$error":"#DIV/0!"},{"$error":"#DIV/0!"},{"$error":"#DIV/0!"},{"$error":"#DIV/0!"},{"$error":"#DIV/0!"},{"$error":"#DIV/0!"},{"$error":"#DIV/0!"},{"$error":"#DIV/0!"},{"$error":"#DIV/0!"},{"$error":"#DIV/0!"},{"$error":"#DIV/0!"},{"$error":"#DIV/0!"},{"$error":"#DIV/0!"},{"$error":"#DIV/0!"},{"$error":"#DIV/0!"}]
["Solde du compte (cumulé)",null,{"$f":"C375+B286","v":{"$error":"#DIV/0!"}},{"$f":"C376+D375","v":{"$error":"#DIV/0!"}},{"$error":"#DIV/0!"},{"$error":"#DIV/0!"},{"$error":"#DIV/0!"},{"$error":"#DIV/0!"},{"$error":"#DIV/0!"},{"$error":"#DIV/0!"},{"$error":"#DIV/0!"},{"$error":"#DIV/0!"},{"$error":"#DIV/0!"},{"$error":"#DIV/0!"},{"$error":"#DIV/0!"},{"$error":"#DIV/0!"},{"$error":"#DIV/0!"},{"$error":"#DIV/0!"},{"$error":"#DIV/0!"},{"$error":"#DIV/0!"},{"$error":"#DIV/0!"},{"$error":"#DIV/0!"}]
[]
[]
["Coût du financement","Période",1,2,3,4,5,6,7,8,9,10,11,12,13,14,15,16,17,18,19,20]
["Paiement d'intérêt par période",null,{"$f":"IF($B251>0,(C254+C255),0)+IF($B256>0,(C259+C260),0)+IF($B261>0,C264+C265,0)+IF($B268>0,(C271+C272),0)+IF($B273>0,(C276+C277),0)+IF($B278>0,C281+C282,0)+IF($B290>0,SUM(C307:C317),0)+IF($B320>0,SUM(C335:C345),0)+IF($B348>0,SUM(C363:C373),0)","v":0},{"$f":"IF($B251>0,(D254+D255),0)+IF($B256>0,(D259+D260),0)+IF($B261>0,D264+D265,0)+IF($B268>0,(D271+D272),0)+IF($B273>0,(D276+D277),0)+IF($B278>0,D281+D282,0)+IF($B290>0,SUM(D307:D317),0)+IF($B320>0,SUM(D335:D345),0)+IF($B348>0,SUM(D363:D373),0)","v":0},0,0,0,0,0,0,0,0,0,0,0,0,0,0,0,0,0,0]
["Remboursement du principal par période",null,{"$f":"IF($B251>0,(C253),0)+IF($B256>0,(C258),0)+IF($B261>0,IF(C263>0,C263-C264,0),0)+IF($B268>0,(C270),0)+IF($B273>0,(C275),0)+IF($B278>0,IF(C280>0,C280-C281,0),0)+IF($B292>0,SUM(C295:C305),0)+IF($B320>0,SUM(C323:C333),0)+IF($B348>0,SUM(C351:C361)-SUM(C363:C373),0)","v":0},{"$f":"IF($B251>0,(D253),0)+IF($B256>0,(D258),0)+IF($B261>0,IF(D263>0,D263-D264,0),0)+IF($B268>0,(D270),0)+IF($B273>0,(D275),0)+IF($B278>0,IF(D280>0,D280-D281,0),0)+IF($B292>0,SUM(D295:D305),0)+IF($B320>0,SUM(D323:D333),0)+IF($B348>0,SUM(D351:D361)-SUM(D363:D373),0)","v":0},0,0,0,0,0,0,0,0,0,0,0,0,0,0,0,0,0,0]
[]
[]
["Flux de trésorerie net       "]
["Période (t)","Flux de trésorerie       brut","Coût de financement ","Subventions","Flux de trésorerie       intermédiaires (avec coût fin. et Subventions)","Flux de trésorerie      , taxe contenue","Flux de trésorerie       cumulé, taxe contenue","Période de remboursement"]
[0,{"$f":"'5 Flux de trésorerie brut'!$D$7","v":{"$error":"#DIV/0!"}},0,{"$f":"B249+B267","v":0},{"$f":"D386-C386+B386","v":{"$error":"#DIV/0!"}},{"$f":"IF(E386>0,(E386-E386*'1 Données d''entrée'!$C$353-IF('5 Flux de trésorerie brut'!$D$7>0,'1 Données d''entrée'!$C$357*'5 Flux de trésorerie brut'!$D$7,0)),E386)","v":{"$error":"#DIV/0!"}},{"$f":"F386","v":{"$error":"#DIV/0!"}},{"$f":"IF(G386<0,\" \",A386)","v":{"$error":"#DIV/0!"}}]
[1,{"$f":"'5 Flux de trésorerie brut'!$D$8","v":{"$error":"#DIV/0!"}},{"$f":"C380+C381","v":0},0,{"$f":"D387-C387+B387","v":{"$error":"#DIV/0!"}},{"$f":"IF(E387>0,(E387-E387*'1 Données d''entrée'!$C$353-IF('5 Flux de trésorerie brut'!$D$8>0,'1 Données d''entrée'!$C$357*'5 Flux de trésorerie brut'!$D$8,0)),E387)","v":{"$error":"#DIV/0!"}},{"$f":"G386+F387","v":{"$error":"#DIV/0!"}},{"$f":"IF(G387<0,\" \",IF(SUM(H386:H386)>0,\" \",IF(H386=0,\" \",A387)))","v":{"$error":"#DIV/0!"}}]
[2,{"$f":"'5 Flux de trésorerie brut'!$D$9","v":{"$error":"#DIV/0!"}},{"$f":"D380+D381","v":0},0,{"$error":"#DIV/0!"},{"$f":"IF(E388>0,(E388-E388*'1 Données d''entrée'!$C$353-IF('5 Flux de trésorerie brut'!$D$9>0,'1 Données d''entrée'!$C$357*'5 Flux de trésorerie brut'!$D$9,0)),E388)","v":{"$error":"#DIV/0!"}},{"$error":"#DIV/0!"},{"$f":"IF(G388<0,\" \",IF(SUM(H386:H387)>0,\" \",IF(H386=0,\" \",A388)))","v":{"$error":"#DIV/0!"}}]
[3,{"$f":"'5 Flux de trésorerie brut'!$D$10","v":{"$error":"#DIV/0!"}},{"$f":"E380+E381","v":0},0,{"$error":"#DIV/0!"},{"$f":"IF(E389>0,(E389-E389*'1 Données d''entrée'!$C$353-IF('5 Flux de trésorerie brut'!$D$10>0,'1 Données d''entrée'!$C$357*'5 Flux de trésorerie brut'!$D$10,0)),E389)","v":{"$error":"#DIV/0!"}},{"$error":"#DIV/0!"},{"$f":"IF(G389<0,\" \",IF(SUM(H386:H388)>0,\" \",IF(H386=0,\" \",A389)))","v":{"$error":"#DIV/0!"}}]
[4,{"$f":"'5 Flux de trésorerie brut'!$D$11","v":{"$error":"#DIV/0!"}},{"$f":"F380+F381","v":0},0,{"$error":"#DIV/0!"},{"$f":"IF(E390>0,(E390-E390*'1 Données d''entrée'!$C$353-IF('5 Flux de trésorerie brut'!$D$11>0,'1 Données d''entrée'!$C$357*'5 Flux de trésorerie brut'!$D$11,0)),E390)","v":{"$error":"#DIV/0!"}},{"$error":"#DIV/0!"},{"$f":"IF(G390<0,\" \",IF(SUM(H386:H389)>0,\" \",IF(H386=0,\" \",A390)))","v":{"$error":"#DIV/0!"}}]
[5,{"$f":"'5 Flux de trésorerie brut'!$D$12","v":{"$error":"#DIV/0!"}},{"$f":"G380+G381","v":0},0,{"$error":"#DIV/0!"},{"$f":"IF(E391>0,(E391-E391*'1 Données d''entrée'!$C$353-IF('5 Flux de trésorerie brut'!$D$12>0,'1 Données d''entrée'!$C$357*'5 Flux de trésorerie brut'!$D$12,0)),E391)","v":{"$error":"#DIV/0!"}},{"$error":"#DIV/0!"},{"$f":"IF(G391<0,\" \",IF(SUM(H386:H390)>0,\" \",IF(H386=0,\" \",A391)))","v":{"$error":"#DIV/0!"}}]
[6,{"$f":"'5 Flux de trésorerie brut'!$D$13","v":{"$error":"#DIV/0!"}},{"$f":"H380+H381","v":0},0,{"$error":"#DIV/0!"},{"$f":"IF(E392>0,(E392-E392*'1 Données d''entrée'!$C$353-IF('5 Flux de trésorerie brut'!$D$13>0,'1 Données d''entrée'!$C$357*'5 Flux de trésorerie brut'!$D$13,0)),E392)","v":{"$error":"#DIV/0!"}},{"$error":"#DIV/0!"},{"$f":"IF(G392<0,\" \",IF(SUM(H386:H391)>0,\" \",IF(H386=0,\" \",A392)))","v":{"$error":"#DIV/0!"}}]
[7,{"$f":"'5 Flux de trésorerie brut'!$D$14","v":{"$error":"#DIV/0!"}},{"$f":"I380+I381","v":0},0,{"$error":"#DIV/0!"},{"$f":"IF(E393>0,(E393-E393*'1 Données d''entrée'!$C$353-IF('5 Flux de trésorerie brut'!$D$14>0,'1 Données d''entrée'!$C$357*'5 Flux de trésorerie brut'!$D$14,0)),E393)","v":{"$error":"#DIV/0!"}},{"$error":"#DIV/0!"},{"$f":"IF(G393<0,\" \",IF(SUM(H386:H392)>0,\" \",IF(H386=0,\" \",A393)))","v":{"$error":"#DIV/0!"}}]
[8,{"$f":"'5 Flux de trésorerie brut'!$D$15","v":{"$error":"#DIV/0!"}},{"$f":"J380+J381","v":0},0,{"$error":"#DIV/0!"},{"$f":"IF(E394>0,(E394-E394*'1 Données d''entrée'!$C$353-IF('5 Flux de trésorerie brut'!$D$15>0,'1 Données d''entrée'!$C$357*'5 Flux de trésorerie brut'!$D$15,0)),E394)","v":{"$error":"#DIV/0!"}},{"$error":"#DIV/0!"},{"$f":"IF(G394<0,\" \",IF(SUM(H386:H393)>0,\" \",IF(H386=0,\" \",A394)))","v":{"$error":"#DIV/0!"}}]
[9,{"$f":"'5 Flux de trésorerie brut'!$D$16","v":{"$error":"#DIV/0!"}},{"$f":"K380+K381","v":0},0,{"$error":"#DIV/0!"},{"$f":"IF(E395>0,(E395-E395*'1 Données d''entrée'!$C$353-IF('5 Flux de trésorerie brut'!$D$16>0,'1 Données d''entrée'!$C$357*'5 Flux de trésorerie brut'!$D$16,0)),E395)","v":{"$error":"#DIV/0!"}},{"$error":"#DIV/0!"},{"$f":"IF(G395<0,\" \",IF(SUM(H386:H394)>0,\" \",IF(H386=0,\" \",A395)))","v":{"$error":"#DIV/0!"}}]
[10,{"$f":"'5 Flux de trésorerie brut'!$D$17","v":{"$error":"#DIV/0!"}},{"$f":"L380+L381","v":0},0,{"$error":"#DIV/0!"},{"$f":"IF(E396>0,(E396-E396*'1 Données d''entrée'!$C$353-IF('5 Flux de trésorerie brut'!$D$17>0,'1 Données d''entrée'!$C$357*'5 Flux de trésorerie brut'!$D$17,0)),E396)","v":{"$error":"#DIV/0!"}},{"$error":"#DIV/0!"},{"$f":"IF(G396<0,\" \",IF(SUM(H386:H395)>0,\" \",IF(H386=0,\" \",A396)))","v":{"$error":"#DIV/0!"}}]
[11,{"$f":"'5 Flux de trésorerie brut'!$D$18","v":{"$error":"#DIV/0!"}},{"$f":"M380+M381","v":0},0,{"$error":"#DIV/0!"},{"$f":"IF(E397>0,(E397-E397*'1 Données d''entrée'!$C$353-IF('5 Flux de trésorerie brut'!$D$18>0,'1 Données d''entrée'!$C$357*'5 Flux de trésorerie brut'!$D$18,0)),E397)","v":{"$error":"#DIV/0!"}},{"$error":"#DIV/0!"},{"$f":"IF(G397<0,\" \",IF(SUM(H386:H396)>0,\" \",IF(H386=0,\" \",A397)))","v":{"$error":"#DIV/0!"}}]
[12,{"$f":"'5 Flux de trésorerie brut'!$D$19","v":{"$error":"#DIV/0!"}},{"$f":"N380+N381","v":0},0,{"$error":"#DIV/0!"},{"$f":"IF(E398>0,(E398-E398*'1 Données d''entrée'!$C$353-IF('5 Flux de trésorerie brut'!$D$19>0,'1 Données d''entrée'!$C$357*'5 Flux de trésorerie brut'!$D$19,0)),E398)","v":{"$error":"#DIV/0!"}},{"$error":"#DIV/0!"},{"$f":"IF(G398<0,\" \",IF(SUM(H386:H397)>0,\" \",IF(H386=0,\" \",A398)))","v":{"$error":"#DIV/0!"}}]
[13,{"$f":"'5 Flux de trésorerie brut'!$D$20","v":{"$error":"#DIV/0!"}},{"$f":"O380+O381","v":0},0,{"$error":"#DIV/0!"},{"$f":"IF(E399>0,(E399-E399*'1 Données d''entrée'!$C$353-IF('5 Flux de trésorerie brut'!$D$20>0,'1 Données d''entrée'!$C$357*'5 Flux de trésorerie brut'!$D$20,0)),E399)","v":{"$error":"#DIV/0!"}},{"$error":"#DIV/0!"},{"$f":"IF(G399<0,\" \",IF(SUM(H386:H398)>0,\" \",IF(H386=0,\" \",A399)))","v":{"$error":"#DIV/0!"}}]
[14,{"$f":"'5 Flux de trésorerie brut'!$D$21","v":{"$error":"#DIV/0!"}},{"$f":"P380+P381","v":0},0,{"$error":"#DIV/0!"},{"$f":"IF(E400>0,(E400-E400*'1 Données d''entrée'!$C$353-IF('5 Flux de trésorerie brut'!$D$21>0,'1 Données d''entrée'!$C$357*'5 Flux de trésorerie brut'!$D$21,0)),E400)","v":{"$error":"#DIV/0!"}},{"$error":"#DIV/0!"},{"$f":"IF(G400<0,\" \",IF(SUM(H386:H399)>0,\" \",IF(H386=0,\" \",A400)))","v":{"$error":"#DIV/0!"}}]
[15,{"$f":"'5 Flux de trésorerie brut'!$D$22","v":{"$error":"#DIV/0!"}},{"$f":"Q380+Q381","v":0},0,{"$error":"#DIV/0!"},{"$f":"IF(E401>0,(E401-E401*'1 Données d''entrée'!$C$353-IF('5 Flux de trésorerie brut'!$D$22>0,'1 Données d''entrée'!$C$357*'5 Flux de trésorerie brut'!$D$22,0)),E401)","v":{"$error":"#DIV/0!"}},{"$error":"#DIV/0!"},{"$f":"IF(G401<0,\" \",IF(SUM(H386:H400)>0,\" \",IF(H386=0,\" \",A401)))","v":{"$error":"#DIV/0!"}}]
[16,{"$f":"'5 Flux de trésorerie brut'!$D$23","v":{"$error":"#DIV/0!"}},{"$f":"R380+R381","v":0},0,{"$error":"#DIV/0!"},{"$f":"IF(E402>0,(E402-E402*'1 Données d''entrée'!$C$353-IF('5 Flux de trésorerie brut'!$D$23>0,'1 Données d''entrée'!$C$357*'5 Flux de trésorerie brut'!$D$23,0)),E402)","v":{"$error":"#DIV/0!"}},{"$error":"#DIV/0!"},{"$f":"IF(G402<0,\" \",IF(SUM(H386:H401)>0,\" \",IF(H386=0,\" \",A402)))","v":{"$error":"#DIV/0!"}}]
[17,{"$f":"'5 Flux de trésorerie brut'!$D$24","v":{"$error":"#DIV/0!"}},{"$f":"S380+S381","v":0},0,{"$error":"#DIV/0!"},{"$f":"IF(E403>0,(E403-E403*'1 Données d''entrée'!$C$353-IF('5 Flux de trésorerie brut'!$D$24>0,'1 Données d''entrée'!$C$357*'5 Flux de trésorerie brut'!$D$24,0)),E403)","v":{"$error":"#DIV/0!"}},{"$error":"#DIV/0!"},{"$f":"IF(G403<0,\" \",IF(SUM(H386:H402)>0,\" \",IF(H386=0,\" \",A403)))","v":{"$error":"#DIV/0!"}}]
[18,{"$f":"'5 Flux de trésorerie brut'!$D$25","v":{"$error":"#DIV/0!"}},{"$f":"T380+T381","v":0},0,{"$error":"#DIV/0!"},{"$f":"IF(E404>0,(E404-E404*'1 Données d''entrée'!$C$353-IF('5 Flux de trésorerie brut'!$D$25>0,'1 Données d''entrée'!$C$357*'5 Flux de trésorerie brut'!$D$25,0)),E404)","v":{"$error":"#DIV/0!"}},{"$error":"#DIV/0!"},{"$f":"IF(G404<0,\" \",IF(SUM(H386:H403)>0,\" \",IF(H386=0,\" \",A404)))","v":{"$error":"#DIV/0!"}}]
[19,{"$f":"'5 Flux de trésorerie brut'!$D$26","v":{"$error":"#DIV/0!"}},{"$f":"U380+U381","v":0},0,{"$error":"#DIV/0!"},{"$f":"IF(E405>0,(E405-E405*'1 Données d''entrée'!$C$353-IF('5 Flux de trésorerie brut'!$D$26>0,'1 Données d''entrée'!$C$357*'5 Flux de trésorerie brut'!$D$26,0)),E405)","v":{"$error":"#DIV/0!"}},{"$error":"#DIV/0!"},{"$f":"IF(G405<0,\" \",IF(SUM(H386:H404)>0,\" \",IF(H386=0,\" \",A405)))","v":{"$error":"#DIV/0!"}}]
[20,{"$f":"'5 Flux de trésorerie brut'!$D$27","v":{"$error":"#DIV/0!"}},{"$f":"V380+V381","v":0},0,{"$error":"#DIV/0!"},{"$f":"IF(E406>0,(E406-E406*'1 Données d''entrée'!$C$353-IF('5 Flux de trésorerie brut'!$D$27>0,'1 Données d''entrée'!$C$357*'5 Flux de trésorerie brut'!$D$27,0)),E406)","v":{"$error":"#DIV/0!"}},{"$error":"#DIV/0!"},{"$f":"IF(G406<0,\" \",IF(SUM(H386:H405)>0,\" \",IF(H386=0,\" \",A406)))","v":{"$error":"#DIV/0!"}}]
[]
[]
[null,null,"Valeur actuelle nette",{"$f":"NPV('1 Données d''entrée'!$H$28,'10 Subvention d''ADER'!F387:F406)+'10 Subvention d''ADER'!F386","v":{"$error":"#DIV/0!"}}]
[null,null,"Taux de rentabilité interne",{"$f":"IRR(F386:F406)","v":{"$error":"#VALUE!"}}]
[]
[]
[]
[]
[]
["Tableau de calcul avec un taux de subvention de",null,null,0.2]
[]
["Bailleur de fonds","Investissement total par bailleur de fonds (AR)","Quote-part du coût d'investissement initial"]
["Subvention d'ADER",{"$f":"('3 Coût total'!$B$7-'3 Coût total'!$B$42)*C419","v":0},{"$f":"D416","v":0.2}]
["Capitaux propres",{"$f":"'1 Données d''entrée'!$B$294","v":0},{"$f":"'1 Données d''entrée'!$B$294/'3 Coût total'!$B$7","v":{"$error":"#DIV/0!"}}]
["Fonds d'autres donneurs / investisseurs",{"$f":"'1 Données d''entrée'!$B$306+'1 Données d''entrée'!$B$307","v":0},{"$f":"B421/'3 Coût total'!$B$7","v":{"$error":"#DIV/0!"}}]
["Prêt bancaire (effective)",{"$f":"IF(B419+'1 Données d''entrée'!$B$294=0,0,(-1)*'5 Flux de trésorerie brut'!$D$7-(SUM(B419:B421)))","v":0},{"$f":"(1-(C419+C420+C421))","v":{"$error":"#DIV/0!"}}]
[]
["Prêt bancaire avec des frais de gestion",{"$f":"B422+B422*'1 Données d''entrée'!$C$338","v":0},{"$f":"(1-(C419+C420+C421))+(1-(C419+C420+C421))*'1 Données d''entrée'!$C$338","v":{"$error":"#DIV/0!"}}]
[]
["Tableaux de calcul"]
[]
[]
["Scénario financier"]
["Période",0,1,2,3,4,5,6,7,8,9,10,11,12,13,14,15,16,17,18,19,20]
[]
["Flux de trésorerie (brut)",{"$f":"'5 Flux de trésorerie brut'!$D$7","v":{"$error":"#DIV/0!"}},{"$f":"'5 Flux de trésorerie brut'!$D$8","v":{"$error":"#DIV/0!"}},{"$f":"'5 Flux de trésorerie brut'!$D$9","v":{"$error":"#DIV/0!"}},{"$f":"'5 Flux de trésorerie brut'!$D$10","v":{"$error":"#DIV/0!"}},{"$f":"'5 Flux de trésorerie brut'!$D$11","v":{"$error":"#DIV/0!"}},{"$f":"'5 Flux de trésorerie brut'!$D$12","v":{"$error":"#DIV/0!"}},{"$f":"'5 Flux de trésorerie brut'!$D$13","v":{"$error":"#DIV/0!"}},{"$f":"'5 Flux de trésorerie brut'!$D$14","v":{"$error":"#DIV/0!"}},{"$f":"'5 Flux de trésorerie brut'!$D$15","v":{"$error":"#DIV/0!"}},{"$f":"'5 Flux de trésorerie brut'!$D$16","v":{"$error":"#DIV/0!"}},{"$f":"'5 Flux de trésorerie brut'!$D$17","v":{"$error":"#DIV/0!"}},{"$f":"'5 Flux de trésorerie brut'!$D$18","v":{"$error":"#DIV/0!"}},{"$f":"'5 Flux de trésorerie brut'!$D$19","v":{"$error":"#DIV/0!"}},{"$f":"'5 Flux de trésorerie brut'!$D$20","v":{"$error":"#DIV/0!"}},{"$f":"'5 Flux de trésorerie brut'!$D$21","v":{"$error":"#DIV/0!"}},{"$f":"'5 Flux de trésorerie brut'!$D$22","v":{"$error":"#DIV/0!"}},{"$f":"'5 Flux de trésorerie brut'!$D$23","v":{"$error":"#DIV/0!"}},{"$f":"'5 Flux de trésorerie brut'!$D$24","v":{"$error":"#DIV/0!"}},{"$f":"'5 Flux de trésorerie brut'!$D$25","v":{"$error":"#DIV/0!"}},{"$f":"'5 Flux de trésorerie brut'!$D$26","v":{"$error":"#DIV/0!"}},{"$f":"'5 Flux de trésorerie brut'!$D$27","v":{"$error":"#DIV/0!"}}]
[]
["Capitaux propres",{"$f":"'1 Données d''entrée'!$B$294","v":0}]
[]
["Subvention ADER",{"$f":"'3 Coût total'!$B$7*C419","v":0}]
[]
["Prêt bancaire - Option 1: Remboursement du principal fractionné",{"$f":"'1 Données d''entrée'!$B$342","v":0},"% de prêt total"]
["Réception et montant restant",{"$f":"B424*B438","v":0},{"$f":"B439-C440","v":0},0,0,0,0,0,0,0,0,0,0,0,0,0,0,0,0,0,0,0]
["Remboursement du principal",0,{"$f":"IF(C430<'1 Données d''entrée'!$C$334+1,0,IF(C430<'1 Données d''entrée'!$C$333+'1 Données d''entrée'!$C$334+1,($B439/'1 Données d''entrée'!$C$333),0))","v":0},{"$f":"IF(D430<'1 Données d''entrée'!$C$334+1,0,IF(D430<'1 Données d''entrée'!$C$333+'1 Données d''entrée'!$C$334+1,($B439/'1 Données d''entrée'!$C$333),0))","v":0},{"$f":"IF(E430<'1 Données d''entrée'!$C$334+1,0,IF(E430<'1 Données d''entrée'!$C$333+'1 Données d''entrée'!$C$334+1,($B439/'1 Données d''entrée'!$C$333),0))","v":0},{"$f":"IF(F430<'1 Données d''entrée'!$C$334+1,0,IF(F430<'1 Données d''entrée'!$C$333+'1 Données d''entrée'!$C$334+1,($B439/'1 Données d''entrée'!$C$333),0))","v":0},{"$f":"IF(G430<'1 Données d''entrée'!$C$334+1,0,IF(G430<'1 Données d''entrée'!$C$333+'1 Données d''entrée'!$C$334+1,($B439/'1 Données d''entrée'!$C$333),0))","v":0},{"$f":"IF(H430<'1 Données d''entrée'!$C$334+1,0,IF(H430<'1 Données d''entrée'!$C$333+'1 Données d''entrée'!$C$334+1,($B439/'1 Données d''entrée'!$C$333),0))","v":0},{"$f":"IF(I430<'1 Données d''entrée'!$C$334+1,0,IF(I430<'1 Données d''entrée'!$C$333+'1 Données d''entrée'!$C$334+1,($B439/'1 Données d''entrée'!$C$333),0))","v":0},{"$f":"IF(J430<'1 Données d''entrée'!$C$334+1,0,IF(J430<'1 Données d''entrée'!$C$333+'1 Données d''entrée'!$C$334+1,($B439/'1 Données d''entrée'!$C$333),0))","v":0},{"$f":"IF(K430<'1 Données d''entrée'!$C$334+1,0,IF(K430<'1 Données d''entrée'!$C$333+'1 Données d''entrée'!$C$334+1,($B439/'1 Données d''entrée'!$C$333),0))","v":0},{"$f":"IF(L430<'1 Données d''entrée'!$C$334+1,0,IF(L430<'1 Données d''entrée'!$C$333+'1 Données d''entrée'!$C$334+1,($B439/'1 Données d''entrée'!$C$333),0))","v":0},{"$f":"IF(M430<'1 Données d''entrée'!$C$334+1,0,IF(M430<'1 Données d''entrée'!$C$333+'1 Données d''entrée'!$C$334+1,($B439/'1 Données d''entrée'!$C$333),0))","v":0},{"$f":"IF(N430<'1 Données d''entrée'!$C$334+1,0,IF(N430<'1 Données d''entrée'!$C$333+'1 Données d''entrée'!$C$334+1,($B439/'1 Données d''entrée'!$C$333),0))","v":0},{"$f":"IF(O430<'1 Données d''entrée'!$C$334+1,0,IF(O430<'1 Données d''entrée'!$C$333+'1 Données d''entrée'!$C$334+1,($B439/'1 Données d''entrée'!$C$333),0))","v":0},{"$f":"IF(P430<'1 Données d''entrée'!$C$334+1,0,IF(P430<'1 Données d''entrée'!$C$333+'1 Données d''entrée'!$C$334+1,($B439/'1 Données d''entrée'!$C$333),0))","v":0},{"$f":"IF(Q430<'1 Données d''entrée'!$C$334+1,0,IF(Q430<'1 Données d''entrée'!$C$333+'1 Données d''entrée'!$C$334+1,($B439/'1 Données d''entrée'!$C$333),0))","v":0},{"$f":"IF(R430<'1 Données d''entrée'!$C$334+1,0,IF(R430<'1 Données d''entrée'!$C$333+'1 Données d''entrée'!$C$334+1,($B439/'1 Données d''entrée'!$C$333),0))","v":0},{"$f":"IF(S430<'1 Données d''entrée'!$C$334+1,0,IF(S430<'1 Données d''entrée'!$C$333+'1 Données d''entrée'!$C$334+1,($B439/'1 Données d''entrée'!$C$333),0))","v":0},{"$f":"IF(T430<'1 Données d''entrée'!$C$334+1,0,IF(T430<'1 Données d''entrée'!$C$333+'1 Données d''entrée'!$C$334+1,($B439/'1 Données d''entrée'!$C$333),0))","v":0},{"$f":"IF(U430<'1 Données d''entrée'!$C$334+1,0,IF(U430<'1 Données d''entrée'!$C$333+'1 Données d''entrée'!$C$334+1,($B439/'1 Données d''entrée'!$C$333),0))","v":0},{"$f":"IF(V430<'1 Données d''entrée'!$C$334+1,0,IF(V430<'1 Données d''entrée'!$C$333+'1 Données d''entrée'!$C$334+1,($B439/'1 Données d''entrée'!$C$333),0))","v":0}]
["Paiement d'intérêts",0,{"$f":"IF('1 Données d''entrée'!$C$336=\"(=NON)\",IF(C430<'1 Données d''entrée'!$C$334+1,0,B439*'1 Données d''entrée'!$C$332),B439*'1 Données d''entrée'!$C$332)","v":0},{"$f":"IF('1 Données d''entrée'!$C$336=\"(=NON)\",IF(D430<'1 Données d''entrée'!$C$334+1,0,C439*'1 Données d''entrée'!$C$332),C439*'1 Données d''entrée'!$C$332)","v":0},{"$f":"IF('1 Données d''entrée'!$C$336=\"(=NON)\",IF(E430<'1 Données d''entrée'!$C$334+1,0,D439*'1 Données d''entrée'!$C$332),D439*'1 Données d''entrée'!$C$332)","v":0},{"$f":"IF('1 Données d''entrée'!$C$336=\"(=NON)\",IF(F430<'1 Données d''entrée'!$C$334+1,0,E439*'1 Données d''entrée'!$C$332),E439*'1 Données d''entrée'!$C$332)","v":0},{"$f":"IF('1 Données d''entrée'!$C$336=\"(=NON)\",IF(G430<'1 Données d''entrée'!$C$334+1,0,F439*'1 Données d''entrée'!$C$332),F439*'1 Données d''entrée'!$C$332)","v":0},{"$f":"IF('1 Données d''entrée'!$C$336=\"(=NON)\",IF(H430<'1 Données d''entrée'!$C$334+1,0,G439*'1 Données d''entrée'!$C$332),G439*'1 Données d''entrée'!$C$332)","v":0},{"$f":"IF('1 Données d''entrée'!$C$336=\"(=NON)\",IF(I430<'1 Données d''entrée'!$C$334+1,0,H439*'1 Données d''entrée'!$C$332),H439*'1 Données d''entrée'!$C$332)","v":0},{"$f":"IF('1 Données d''entrée'!$C$336=\"(=NON)\",IF(J430<'1 Données d''entrée'!$C$334+1,0,I439*'1 Données d''entrée'!$C$332),I439*'1 Données d''entrée'!$C$332)","v":0},{"$f":"IF('1 Données d''entrée'!$C$336=\"(=NON)\",IF(K430<'1 Données d''entrée'!$C$334+1,0,J439*'1 Données d''entrée'!$C$332),J439*'1 Données d''entrée'!$C$332)","v":0},{"$f":"IF('1 Données d''entrée'!$C$336=\"(=NON)\",IF(L430<'1 Données d''entrée'!$C$334+1,0,K439*'1 Données d''entrée'!$C$332),K439*'1 Données d''entrée'!$C$332)","v":0},{"$f":"IF('1 Données d''entrée'!$C$336=\"(=NON)\",IF(M430<'1 Données d''entrée'!$C$334+1,0,L439*'1 Données d''entrée'!$C$332),L439*'1 Données d''entrée'!$C$332)","v":0},{"$f":"IF('1 Données d''entrée'!$C$336=\"(=NON)\",IF(N430<'1 Données d''entrée'!$C$334+1,0,M439*'1 Données d''entrée'!$C$332),M439*'1 Données d''entrée'!$C$332)","v":0},{"$f":"IF('1 Données d''entrée'!$C$336=\"(=NON)\",IF(O430<'1 Données d''entrée'!$C$334+1,0,N439*'1 Données d''entrée'!$C$332),N439*'1 Données d''entrée'!$C$332)","v":0},{"$f":"IF('1 Données d''entrée'!$C$336=\"(=NON)\",IF(P430<'1 Données d''entrée'!$C$334+1,0,O439*'1 Données d''entrée'!$C$332),O439*'1 Données d''entrée'!$C$332)","v":0},{"$f":"IF('1 Données d''entrée'!$C$336=\"(=NON)\",IF(Q430<'1 Données d''entrée'!$C$334+1,0,P439*'1 Données d''entrée'!$C$332),P439*'1 Données d''entrée'!$C$332)","v":0},{"$f":"IF('1 Données d''entrée'!$C$336=\"(=NON)\",IF(R430<'1 Données d''entrée'!$C$334+1,0,Q439*'1 Données d''entrée'!$C$332),Q439*'1 Données d''entrée'!$C$332)","v":0},{"$f":"IF('1 Données d''entrée'!$C$336=\"(=NON)\",IF(S430<'1 Données d''entrée'!$C$334+1,0,R439*'1 Données d''entrée'!$C$332),R439*'1 Données d''entrée'!$C$332)","v":0},{"$f":"IF('1 Données d''entrée'!$C$336=\"(=NON)\",IF(T430<'1 Données d''entrée'!$C$334+1,0,S439*'1 Données d''entrée'!$C$332),S439*'1 Données d''entrée'!$C$332)","v":0},{"$f":"IF('1 Données d''entrée'!$C$336=\"(=NON)\",IF(U430<'1 Données d''entrée'!$C$334+1,0,T439*'1 Données d''entrée'!$C$332),T439*'1 Données d''entrée'!$C$332)","v":0},{"$f":"IF('1 Données d''entrée'!$C$336=\"(=NON)\",IF(V430<'1 Données d''entrée'!$C$334+1,0,U439*'1 Données d''entrée'!$C$332),U439*'1 Données d''entrée'!$C$332)","v":0}]
["Paiements d'intérêt avec des intérêts composés en cas d'absence des paiements dans la période de grâce",0,0,{"$f":"IF(D430='1 Données d''entrée'!$C$334+1,IF('1 Données d''entrée'!$C$336=\"(=NON)\",($B439*'1 Données d''entrée'!$C$332)*((('1 Données d''entrée'!$C$332+1)^'1 Données d''entrée'!$C$334-1)/('1 Données d''entrée'!$C$332))*(1+'1 Données d''entrée'!$C$332),0),0)","v":0},{"$f":"IF(E430='1 Données d''entrée'!$C$334+1,IF('1 Données d''entrée'!$C$336=\"(=NON)\",($B439*'1 Données d''entrée'!$C$332)*((('1 Données d''entrée'!$C$332+1)^'1 Données d''entrée'!$C$334-1)/('1 Données d''entrée'!$C$332))*(1+'1 Données d''entrée'!$C$332),0),0)","v":0},{"$f":"IF(F430='1 Données d''entrée'!$C$334+1,IF('1 Données d''entrée'!$C$336=\"(=NON)\",($B439*'1 Données d''entrée'!$C$332)*((('1 Données d''entrée'!$C$332+1)^'1 Données d''entrée'!$C$334-1)/('1 Données d''entrée'!$C$332))*(1+'1 Données d''entrée'!$C$332),0),0)","v":0},{"$f":"IF(G430='1 Données d''entrée'!$C$334+1,IF('1 Données d''entrée'!$C$336=\"(=NON)\",($B439*'1 Données d''entrée'!$C$332)*((('1 Données d''entrée'!$C$332+1)^'1 Données d''entrée'!$C$334-1)/('1 Données d''entrée'!$C$332))*(1+'1 Données d''entrée'!$C$332),0),0)","v":0},{"$f":"IF(H430='1 Données d''entrée'!$C$334+1,IF('1 Données d''entrée'!$C$336=\"(=NON)\",($B439*'1 Données d''entrée'!$C$332)*((('1 Données d''entrée'!$C$332+1)^'1 Données d''entrée'!$C$334-1)/('1 Données d''entrée'!$C$332))*(1+'1 Données d''entrée'!$C$332),0),0)","v":0},{"$f":"IF(I430='1 Données d''entrée'!$C$334+1,IF('1 Données d''entrée'!$C$336=\"(=NON)\",($B439*'1 Données d''entrée'!$C$332)*((('1 Données d''entrée'!$C$332+1)^'1 Données d''entrée'!$C$334-1)/('1 Données d''entrée'!$C$332))*(1+'1 Données d''entrée'!$C$332),0),0)","v":0},{"$f":"IF(J430='1 Données d''entrée'!$C$334+1,IF('1 Données d''entrée'!$C$336=\"(=NON)\",($B439*'1 Données d''entrée'!$C$332)*((('1 Données d''entrée'!$C$332+1)^'1 Données d''entrée'!$C$334-1)/('1 Données d''entrée'!$C$332))*(1+'1 Données d''entrée'!$C$332),0),0)","v":0},{"$f":"IF(K430='1 Données d''entrée'!$C$334+1,IF('1 Données d''entrée'!$C$336=\"(=NON)\",($B439*'1 Données d''entrée'!$C$332)*((('1 Données d''entrée'!$C$332+1)^'1 Données d''entrée'!$C$334-1)/('1 Données d''entrée'!$C$332))*(1+'1 Données d''entrée'!$C$332),0),0)","v":0},{"$f":"IF(L430='1 Données d''entrée'!$C$334+1,IF('1 Données d''entrée'!$C$336=\"(=NON)\",($B439*'1 Données d''entrée'!$C$332)*((('1 Données d''entrée'!$C$332+1)^'1 Données d''entrée'!$C$334-1)/('1 Données d''entrée'!$C$332))*(1+'1 Données d''entrée'!$C$332),0),0)","v":0},{"$f":"IF(M430='1 Données d''entrée'!$C$334+1,IF('1 Données d''entrée'!$C$336=\"(=NON)\",($B439*'1 Données d''entrée'!$C$332)*((('1 Données d''entrée'!$C$332+1)^'1 Données d''entrée'!$C$334-1)/('1 Données d''entrée'!$C$332))*(1+'1 Données d''entrée'!$C$332),0),0)","v":0},{"$f":"IF(N430='1 Données d''entrée'!$C$334+1,IF('1 Données d''entrée'!$C$336=\"(=NON)\",($B439*'1 Données d''entrée'!$C$332)*((('1 Données d''entrée'!$C$332+1)^'1 Données d''entrée'!$C$334-1)/('1 Données d''entrée'!$C$332))*(1+'1 Données d''entrée'!$C$332),0),0)","v":0},{"$f":"IF(O430='1 Données d''entrée'!$C$334+1,IF('1 Données d''entrée'!$C$336=\"(=NON)\",($B439*'1 Données d''entrée'!$C$332)*((('1 Données d''entrée'!$C$332+1)^'1 Données d''entrée'!$C$334-1)/('1 Données d''entrée'!$C$332))*(1+'1 Données d''entrée'!$C$332),0),0)","v":0},{"$f":"IF(P430='1 Données d''entrée'!$C$334+1,IF('1 Données d''entrée'!$C$336=\"(=NON)\",($B439*'1 Données d''entrée'!$C$332)*((('1 Données d''entrée'!$C$332+1)^'1 Données d''entrée'!$C$334-1)/('1 Données d''entrée'!$C$332))*(1+'1 Données d''entrée'!$C$332),0),0)","v":0},{"$f":"IF(Q430='1 Données d''entrée'!$C$334+1,IF('1 Données d''entrée'!$C$336=\"(=NON)\",($B439*'1 Données d''entrée'!$C$332)*((('1 Données d''entrée'!$C$332+1)^'1 Données d''entrée'!$C$334-1)/('1 Données d''entrée'!$C$332))*(1+'1 Données d''entrée'!$C$332),0),0)","v":0},{"$f":"IF(R430='1 Données d''entrée'!$C$334+1,IF('1 Données d''entrée'!$C$336=\"(=NON)\",($B439*'1 Données d''entrée'!$C$332)*((('1 Données d''entrée'!$C$332+1)^'1 Données d''entrée'!$C$334-1)/('1 Données d''entrée'!$C$332))*(1+'1 Données d''entrée'!$C$332),0),0)","v":0},{"$f":"IF(S430='1 Données d''entrée'!$C$334+1,IF('1 Données d''entrée'!$C$336=\"(=NON)\",($B439*'1 Données d''entrée'!$C$332)*((('1 Données d''entrée'!$C$332+1)^'1 Données d''entrée'!$C$334-1)/('1 Données d''entrée'!$C$332))*(1+'1 Données d''entrée'!$C$332),0),0)","v":0},{"$f":"IF(T430='1 Données d''entrée'!$C$334+1,IF('1 Données d''entrée'!$C$336=\"(=NON)\",($B439*'1 Données d''entrée'!$C$332)*((('1 Données d''entrée'!$C$332+1)^'1 Données d''entrée'!$C$334-1)/('1 Données d''entrée'!$C$332))*(1+'1 Données d''entrée'!$C$332),0),0)","v":0},{"$f":"IF(U430='1 Données d''entrée'!$C$334+1,IF('1 Données d''entrée'!$C$336=\"(=NON)\",($B439*'1 Données d''entrée'!$C$332)*((('1 Données d''entrée'!$C$332+1)^'1 Données d''entrée'!$C$334-1)/('1 Données d''entrée'!$C$332))*(1+'1 Données d''entrée'!$C$332),0),0)","v":0},{"$f":"IF(V430='1 Données d''entrée'!$C$334+1,IF('1 Données d''entrée'!$C$336=\"(=NON)\",($B439*'1 Données d''entrée'!$C$332)*((('1 Données d''entrée'!$C$332+1)^'1 Données d''entrée'!$C$334-1)/('1 Données d''entrée'!$C$332))*(1+'1 Données d''entrée'!$C$332),0),0)","v":0}]
["Prêt bancaire - Option 2: Remboursement du principal final",{"$f":"'1 Données d''entrée'!$B$343","v":0},"% de prêt total"]
["Réception et montant restant",{"$f":"B424*B443","v":0},{"$f":"B444-C445","v":0},0,0,0,0,0,0,0,0,0,0,0,0,0,0,0,0,0,0,0]
["Remboursement du principal",0,{"$f":"IF('1 Données d''entrée'!$C$333+'1 Données d''entrée'!$C$334=C430,$B444,0)","v":0},{"$f":"IF('1 Données d''entrée'!$C$333+'1 Données d''entrée'!$C$334=D430,$B444,0)","v":0},{"$f":"IF('1 Données d''entrée'!$C$333+'1 Données d''entrée'!$C$334=E430,$B444,0)","v":0},{"$f":"IF('1 Données d''entrée'!$C$333+'1 Données d''entrée'!$C$334=F430,$B444,0)","v":0},{"$f":"IF('1 Données d''entrée'!$C$333+'1 Données d''entrée'!$C$334=G430,$B444,0)","v":0},{"$f":"IF('1 Données d''entrée'!$C$333+'1 Données d''entrée'!$C$334=H430,$B444,0)","v":0},{"$f":"IF('1 Données d''entrée'!$C$333+'1 Données d''entrée'!$C$334=I430,$B444,0)","v":0},{"$f":"IF('1 Données d''entrée'!$C$333+'1 Données d''entrée'!$C$334=J430,$B444,0)","v":0},{"$f":"IF('1 Données d''entrée'!$C$333+'1 Données d''entrée'!$C$334=K430,$B444,0)","v":0},{"$f":"IF('1 Données d''entrée'!$C$333+'1 Données d''entrée'!$C$334=L430,$B444,0)","v":0},{"$f":"IF('1 Données d''entrée'!$C$333+'1 Données d''entrée'!$C$334=M430,$B444,0)","v":0},{"$f":"IF('1 Données d''entrée'!$C$333+'1 Données d''entrée'!$C$334=N430,$B444,0)","v":0},{"$f":"IF('1 Données d''entrée'!$C$333+'1 Données d''entrée'!$C$334=O430,$B444,0)","v":0},{"$f":"IF('1 Données d''entrée'!$C$333+'1 Données d''entrée'!$C$334=P430,$B444,0)","v":0},{"$f":"IF('1 Données d''entrée'!$C$333+'1 Données d''entrée'!$C$334=Q430,$B444,0)","v":0},{"$f":"IF('1 Données d''entrée'!$C$333+'1 Données d''entrée'!$C$334=R430,$B444,0)","v":0},{"$f":"IF('1 Données d''entrée'!$C$333+'1 Données d''entrée'!$C$334=S430,$B444,0)","v":0},{"$f":"IF('1 Données d''entrée'!$C$333+'1 Données d''entrée'!$C$334=T430,$B444,0)","v":0},{"$f":"IF('1 Données d''entrée'!$C$333+'1 Données d''entrée'!$C$334=U430,$B444,0)","v":0},{"$f":"IF('1 Données d''entrée'!$C$333+'1 Données d''entrée'!$C$334=V430,$B444,0)","v":0}]
["Paiement d'intérêts",0,{"$f":"IF('1 Données d''entrée'!$C$336=\"(=NON)\",IF(C430<'1 Données d''entrée'!$C$334+1,0,B444*'1 Données d''entrée'!$C$332),B444*'1 Données d''entrée'!$C$332)","v":0},{"$f":"IF('1 Données d''entrée'!$C$336=\"(=NON)\",IF(D430<'1 Données d''entrée'!$C$334+1,0,C444*'1 Données d''entrée'!$C$332),C444*'1 Données d''entrée'!$C$332)","v":0},{"$f":"IF('1 Données d''entrée'!$C$336=\"(=NON)\",IF(E430<'1 Données d''entrée'!$C$334+1,0,D444*'1 Données d''entrée'!$C$332),D444*'1 Données d''entrée'!$C$332)","v":0},{"$f":"IF('1 Données d''entrée'!$C$336=\"(=NON)\",IF(F430<'1 Données d''entrée'!$C$334+1,0,E444*'1 Données d''entrée'!$C$332),E444*'1 Données d''entrée'!$C$332)","v":0},{"$f":"IF('1 Données d''entrée'!$C$336=\"(=NON)\",IF(G430<'1 Données d''entrée'!$C$334+1,0,F444*'1 Données d''entrée'!$C$332),F444*'1 Données d''entrée'!$C$332)","v":0},{"$f":"IF('1 Données d''entrée'!$C$336=\"(=NON)\",IF(H430<'1 Données d''entrée'!$C$334+1,0,G444*'1 Données d''entrée'!$C$332),G444*'1 Données d''entrée'!$C$332)","v":0},{"$f":"IF('1 Données d''entrée'!$C$336=\"(=NON)\",IF(I430<'1 Données d''entrée'!$C$334+1,0,H444*'1 Données d''entrée'!$C$332),H444*'1 Données d''entrée'!$C$332)","v":0},{"$f":"IF('1 Données d''entrée'!$C$336=\"(=NON)\",IF(J430<'1 Données d''entrée'!$C$334+1,0,I444*'1 Données d''entrée'!$C$332),I444*'1 Données d''entrée'!$C$332)","v":0},{"$f":"IF('1 Données d''entrée'!$C$336=\"(=NON)\",IF(K430<'1 Données d''entrée'!$C$334+1,0,J444*'1 Données d''entrée'!$C$332),J444*'1 Données d''entrée'!$C$332)","v":0},{"$f":"IF('1 Données d''entrée'!$C$336=\"(=NON)\",IF(L430<'1 Données d''entrée'!$C$334+1,0,K444*'1 Données d''entrée'!$C$332),K444*'1 Données d''entrée'!$C$332)","v":0},{"$f":"IF('1 Données d''entrée'!$C$336=\"(=NON)\",IF(M430<'1 Données d''entrée'!$C$334+1,0,L444*'1 Données d''entrée'!$C$332),L444*'1 Données d''entrée'!$C$332)","v":0},{"$f":"IF('1 Données d''entrée'!$C$336=\"(=NON)\",IF(N430<'1 Données d''entrée'!$C$334+1,0,M444*'1 Données d''entrée'!$C$332),M444*'1 Données d''entrée'!$C$332)","v":0},{"$f":"IF('1 Données d''entrée'!$C$336=\"(=NON)\",IF(O430<'1 Données d''entrée'!$C$334+1,0,N444*'1 Données d''entrée'!$C$332),N444*'1 Données d''entrée'!$C$332)","v":0},{"$f":"IF('1 Données d''entrée'!$C$336=\"(=NON)\",IF(P430<'1 Données d''entrée'!$C$334+1,0,O444*'1 Données d''entrée'!$C$332),O444*'1 Données d''entrée'!$C$332)","v":0},{"$f":"IF('1 Données d''entrée'!$C$336=\"(=NON)\",IF(Q430<'1 Données d''entrée'!$C$334+1,0,P444*'1 Données d''entrée'!$C$332),P444*'1 Données d''entrée'!$C$332)","v":0},{"$f":"IF('1 Données d''entrée'!$C$336=\"(=NON)\",IF(R430<'1 Données d''entrée'!$C$334+1,0,Q444*'1 Données d''entrée'!$C$332),Q444*'1 Données d''entrée'!$C$332)","v":0},{"$f":"IF('1 Données d''entrée'!$C$336=\"(=NON)\",IF(S430<'1 Données d''entrée'!$C$334+1,0,R444*'1 Données d''entrée'!$C$332),R444*'1 Données d''entrée'!$C$332)","v":0},{"$f":"IF('1 Données d''entrée'!$C$336=\"(=NON)\",IF(T430<'1 Données d''entrée'!$C$334+1,0,S444*'1 Données d''entrée'!$C$332),S444*'1 Données d''entrée'!$C$332)","v":0},{"$f":"IF('1 Données d''entrée'!$C$336=\"(=NON)\",IF(U430<'1 Données d''entrée'!$C$334+1,0,T444*'1 Données d''entrée'!$C$332),T444*'1 Données d''entrée'!$C$332)","v":0},{"$f":"IF('1 Données d''entrée'!$C$336=\"(=NON)\",IF(V430<'1 Données d''entrée'!$C$334+1,0,U444*'1 Données d''entrée'!$C$332),U444*'1 Données d''entrée'!$C$332)","v":0}]
["Paiements d'intérêt avec des intérêts composés en cas d'absence des paiements dans la période de grâce",0,0,{"$f":"IF(D430='1 Données d''entrée'!$C$334+1,IF('1 Données d''entrée'!$C$336=\"(=NON)\",($B444*'1 Données d''entrée'!$C$332)*((('1 Données d''entrée'!$C$332+1)^'1 Données d''entrée'!$C$334-1)/('1 Données d''entrée'!$C$332))*(1+'1 Données d''entrée'!$C$332),0),0)","v":0},{"$f":"IF(E430='1 Données d''entrée'!$C$334+1,IF('1 Données d''entrée'!$C$336=\"(=NON)\",($B444*'1 Données d''entrée'!$C$332)*((('1 Données d''entrée'!$C$332+1)^'1 Données d''entrée'!$C$334-1)/('1 Données d''entrée'!$C$332))*(1+'1 Données d''entrée'!$C$332),0),0)","v":0},{"$f":"IF(F430='1 Données d''entrée'!$C$334+1,IF('1 Données d''entrée'!$C$336=\"(=NON)\",($B444*'1 Données d''entrée'!$C$332)*((('1 Données d''entrée'!$C$332+1)^'1 Données d''entrée'!$C$334-1)/('1 Données d''entrée'!$C$332))*(1+'1 Données d''entrée'!$C$332),0),0)","v":0},{"$f":"IF(G430='1 Données d''entrée'!$C$334+1,IF('1 Données d''entrée'!$C$336=\"(=NON)\",($B444*'1 Données d''entrée'!$C$332)*((('1 Données d''entrée'!$C$332+1)^'1 Données d''entrée'!$C$334-1)/('1 Données d''entrée'!$C$332))*(1+'1 Données d''entrée'!$C$332),0),0)","v":0},{"$f":"IF(H430='1 Données d''entrée'!$C$334+1,IF('1 Données d''entrée'!$C$336=\"(=NON)\",($B444*'1 Données d''entrée'!$C$332)*((('1 Données d''entrée'!$C$332+1)^'1 Données d''entrée'!$C$334-1)/('1 Données d''entrée'!$C$332))*(1+'1 Données d''entrée'!$C$332),0),0)","v":0},{"$f":"IF(I430='1 Données d''entrée'!$C$334+1,IF('1 Données d''entrée'!$C$336=\"(=NON)\",($B444*'1 Données d''entrée'!$C$332)*((('1 Données d''entrée'!$C$332+1)^'1 Données d''entrée'!$C$334-1)/('1 Données d''entrée'!$C$332))*(1+'1 Données d''entrée'!$C$332),0),0)","v":0},{"$f":"IF(J430='1 Données d''entrée'!$C$334+1,IF('1 Données d''entrée'!$C$336=\"(=NON)\",($B444*'1 Données d''entrée'!$C$332)*((('1 Données d''entrée'!$C$332+1)^'1 Données d''entrée'!$C$334-1)/('1 Données d''entrée'!$C$332))*(1+'1 Données d''entrée'!$C$332),0),0)","v":0},{"$f":"IF(K430='1 Données d''entrée'!$C$334+1,IF('1 Données d''entrée'!$C$336=\"(=NON)\",($B444*'1 Données d''entrée'!$C$332)*((('1 Données d''entrée'!$C$332+1)^'1 Données d''entrée'!$C$334-1)/('1 Données d''entrée'!$C$332))*(1+'1 Données d''entrée'!$C$332),0),0)","v":0},{"$f":"IF(L430='1 Données d''entrée'!$C$334+1,IF('1 Données d''entrée'!$C$336=\"(=NON)\",($B444*'1 Données d''entrée'!$C$332)*((('1 Données d''entrée'!$C$332+1)^'1 Données d''entrée'!$C$334-1)/('1 Données d''entrée'!$C$332))*(1+'1 Données d''entrée'!$C$332),0),0)","v":0},{"$f":"IF(M430='1 Données d''entrée'!$C$334+1,IF('1 Données d''entrée'!$C$336=\"(=NON)\",($B444*'1 Données d''entrée'!$C$332)*((('1 Données d''entrée'!$C$332+1)^'1 Données d''entrée'!$C$334-1)/('1 Données d''entrée'!$C$332))*(1+'1 Données d''entrée'!$C$332),0),0)","v":0},{"$f":"IF(N430='1 Données d''entrée'!$C$334+1,IF('1 Données d''entrée'!$C$336=\"(=NON)\",($B444*'1 Données d''entrée'!$C$332)*((('1 Données d''entrée'!$C$332+1)^'1 Données d''entrée'!$C$334-1)/('1 Données d''entrée'!$C$332))*(1+'1 Données d''entrée'!$C$332),0),0)","v":0},{"$f":"IF(O430='1 Données d''entrée'!$C$334+1,IF('1 Données d''entrée'!$C$336=\"(=NON)\",($B444*'1 Données d''entrée'!$C$332)*((('1 Données d''entrée'!$C$332+1)^'1 Données d''entrée'!$C$334-1)/('1 Données d''entrée'!$C$332))*(1+'1 Données d''entrée'!$C$332),0),0)","v":0},{"$f":"IF(P430='1 Données d''entrée'!$C$334+1,IF('1 Données d''entrée'!$C$336=\"(=NON)\",($B444*'1 Données d''entrée'!$C$332)*((('1 Données d''entrée'!$C$332+1)^'1 Données d''entrée'!$C$334-1)/('1 Données d''entrée'!$C$332))*(1+'1 Données d''entrée'!$C$332),0),0)","v":0},{"$f":"IF(Q430='1 Données d''entrée'!$C$334+1,IF('1 Données d''entrée'!$C$336=\"(=NON)\",($B444*'1 Données d''entrée'!$C$332)*((('1 Données d''entrée'!$C$332+1)^'1 Données d''entrée'!$C$334-1)/('1 Données d''entrée'!$C$332))*(1+'1 Données d''entrée'!$C$332),0),0)","v":0},{"$f":"IF(R430='1 Données d''entrée'!$C$334+1,IF('1 Données d''entrée'!$C$336=\"(=NON)\",($B444*'1 Données d''entrée'!$C$332)*((('1 Données d''entrée'!$C$332+1)^'1 Données d''entrée'!$C$334-1)/('1 Données d''entrée'!$C$332))*(1+'1 Données d''entrée'!$C$332),0),0)","v":0},{"$f":"IF(S430='1 Données d''entrée'!$C$334+1,IF('1 Données d''entrée'!$C$336=\"(=NON)\",($B444*'1 Données d''entrée'!$C$332)*((('1 Données d''entrée'!$C$332+1)^'1 Données d''entrée'!$C$334-1)/('1 Données d''entrée'!$C$332))*(1+'1 Données d''entrée'!$C$332),0),0)","v":0},{"$f":"IF(T430='1 Données d''entrée'!$C$334+1,IF('1 Données d''entrée'!$C$336=\"(=NON)\",($B444*'1 Données d''entrée'!$C$332)*((('1 Données d''entrée'!$C$332+1)^'1 Données d''entrée'!$C$334-1)/('1 Données d''entrée'!$C$332))*(1+'1 Données d''entrée'!$C$332),0),0)","v":0},{"$f":"IF(U430='1 Données d''entrée'!$C$334+1,IF('1 Données d''entrée'!$C$336=\"(=NON)\",($B444*'1 Données d''entrée'!$C$332)*((('1 Données d''entrée'!$C$332+1)^'1 Données d''entrée'!$C$334-1)/('1 Données d''entrée'!$C$332))*(1+'1 Données d''entrée'!$C$332),0),0)","v":0},{"$f":"IF(V430='1 Données d''entrée'!$C$334+1,IF('1 Données d''entrée'!$C$336=\"(=NON)\",($B444*'1 Données d''entrée'!$C$332)*((('1 Données d''entrée'!$C$332+1)^'1 Données d''entrée'!$C$334-1)/('1 Données d''entrée'!$C$332))*(1+'1 Données d''entrée'!$C$332),0),0)","v":0}]
["Prêt bancaire - Option 3: Remboursement vers l'annuité constante",{"$f":"'1 Données d''entrée'!$B$344","v":0},"% de prêt total"]
["Réception ",{"$f":"B424*B448","v":0},0,0,0,0,0,0,0,0,0,0,0,0,0,0,0,0,0,0,0,0]
["Remboursement vers l'annuité constante",{"$f":"IF(B430<'1 Données d''entrée'!$C$334+1,0,IF(B430<'1 Données d''entrée'!$C$333+'1 Données d''entrée'!$C$334+1,$B449*('1 Données d''entrée'!$C$332*(1+'1 Données d''entrée'!$C$332)^'1 Données d''entrée'!$C$333)/((1+'1 Données d''entrée'!$C$332)^'1 Données d''entrée'!$C$333-1),0))","v":0},{"$f":"IF(C430<'1 Données d''entrée'!$C$334+1,0,IF(C430<'1 Données d''entrée'!$C$333+'1 Données d''entrée'!$C$334+1,$B449*('1 Données d''entrée'!$C$332*(1+'1 Données d''entrée'!$C$332)^'1 Données d''entrée'!$C$333)/((1+'1 Données d''entrée'!$C$332)^'1 Données d''entrée'!$C$333-1),0))","v":0},{"$f":"IF(D430<'1 Données d''entrée'!$C$334+1,0,IF(D430<'1 Données d''entrée'!$C$333+'1 Données d''entrée'!$C$334+1,$B449*('1 Données d''entrée'!$C$332*(1+'1 Données d''entrée'!$C$332)^'1 Données d''entrée'!$C$333)/((1+'1 Données d''entrée'!$C$332)^'1 Données d''entrée'!$C$333-1),0))","v":0},{"$f":"IF(E430<'1 Données d''entrée'!$C$334+1,0,IF(E430<'1 Données d''entrée'!$C$333+'1 Données d''entrée'!$C$334+1,$B449*('1 Données d''entrée'!$C$332*(1+'1 Données d''entrée'!$C$332)^'1 Données d''entrée'!$C$333)/((1+'1 Données d''entrée'!$C$332)^'1 Données d''entrée'!$C$333-1),0))","v":0},{"$f":"IF(F430<'1 Données d''entrée'!$C$334+1,0,IF(F430<'1 Données d''entrée'!$C$333+'1 Données d''entrée'!$C$334+1,$B449*('1 Données d''entrée'!$C$332*(1+'1 Données d''entrée'!$C$332)^'1 Données d''entrée'!$C$333)/((1+'1 Données d''entrée'!$C$332)^'1 Données d''entrée'!$C$333-1),0))","v":0},{"$f":"IF(G430<'1 Données d''entrée'!$C$334+1,0,IF(G430<'1 Données d''entrée'!$C$333+'1 Données d''entrée'!$C$334+1,$B449*('1 Données d''entrée'!$C$332*(1+'1 Données d''entrée'!$C$332)^'1 Données d''entrée'!$C$333)/((1+'1 Données d''entrée'!$C$332)^'1 Données d''entrée'!$C$333-1),0))","v":0},{"$f":"IF(H430<'1 Données d''entrée'!$C$334+1,0,IF(H430<'1 Données d''entrée'!$C$333+'1 Données d''entrée'!$C$334+1,$B449*('1 Données d''entrée'!$C$332*(1+'1 Données d''entrée'!$C$332)^'1 Données d''entrée'!$C$333)/((1+'1 Données d''entrée'!$C$332)^'1 Données d''entrée'!$C$333-1),0))","v":0},{"$f":"IF(I430<'1 Données d''entrée'!$C$334+1,0,IF(I430<'1 Données d''entrée'!$C$333+'1 Données d''entrée'!$C$334+1,$B449*('1 Données d''entrée'!$C$332*(1+'1 Données d''entrée'!$C$332)^'1 Données d''entrée'!$C$333)/((1+'1 Données d''entrée'!$C$332)^'1 Données d''entrée'!$C$333-1),0))","v":0},{"$f":"IF(J430<'1 Données d''entrée'!$C$334+1,0,IF(J430<'1 Données d''entrée'!$C$333+'1 Données d''entrée'!$C$334+1,$B449*('1 Données d''entrée'!$C$332*(1+'1 Données d''entrée'!$C$332)^'1 Données d''entrée'!$C$333)/((1+'1 Données d''entrée'!$C$332)^'1 Données d''entrée'!$C$333-1),0))","v":0},{"$f":"IF(K430<'1 Données d''entrée'!$C$334+1,0,IF(K430<'1 Données d''entrée'!$C$333+'1 Données d''entrée'!$C$334+1,$B449*('1 Données d''entrée'!$C$332*(1+'1 Données d''entrée'!$C$332)^'1 Données d''entrée'!$C$333)/((1+'1 Données d''entrée'!$C$332)^'1 Données d''entrée'!$C$333-1),0))","v":0},{"$f":"IF(L430<'1 Données d''entrée'!$C$334+1,0,IF(L430<'1 Données d''entrée'!$C$333+'1 Données d''entrée'!$C$334+1,$B449*('1 Données d''entrée'!$C$332*(1+'1 Données d''entrée'!$C$332)^'1 Données d''entrée'!$C$333)/((1+'1 Données d''entrée'!$C$332)^'1 Données d''entrée'!$C$333-1),0))","v":0},{"$f":"IF(M430<'1 Données d''entrée'!$C$334+1,0,IF(M430<'1 Données d''entrée'!$C$333+'1 Données d''entrée'!$C$334+1,$B449*('1 Données d''entrée'!$C$332*(1+'1 Données d''entrée'!$C$332)^'1 Données d''entrée'!$C$333)/((1+'1 Données d''entrée'!$C$332)^'1 Données d''entrée'!$C$333-1),0))","v":0},{"$f":"IF(N430<'1 Données d''entrée'!$C$334+1,0,IF(N430<'1 Données d''entrée'!$C$333+'1 Données d''entrée'!$C$334+1,$B449*('1 Données d''entrée'!$C$332*(1+'1 Données d''entrée'!$C$332)^'1 Données d''entrée'!$C$333)/((1+'1 Données d''entrée'!$C$332)^'1 Données d''entrée'!$C$333-1),0))","v":0},{"$f":"IF(O430<'1 Données d''entrée'!$C$334+1,0,IF(O430<'1 Données d''entrée'!$C$333+'1 Données d''entrée'!$C$334+1,$B449*('1 Données d''entrée'!$C$332*(1+'1 Données d''entrée'!$C$332)^'1 Données d''entrée'!$C$333)/((1+'1 Données d''entrée'!$C$332)^'1 Données d''entrée'!$C$333-1),0))","v":0},{"$f":"IF(P430<'1 Données d''entrée'!$C$334+1,0,IF(P430<'1 Données d''entrée'!$C$333+'1 Données d''entrée'!$C$334+1,$B449*('1 Données d''entrée'!$C$332*(1+'1 Données d''entrée'!$C$332)^'1 Données d''entrée'!$C$333)/((1+'1 Données d''entrée'!$C$332)^'1 Données d''entrée'!$C$333-1),0))","v":0},{"$f":"IF(Q430<'1 Données d''entrée'!$C$334+1,0,IF(Q430<'1 Données d''entrée'!$C$333+'1 Données d''entrée'!$C$334+1,$B449*('1 Données d''entrée'!$C$332*(1+'1 Données d''entrée'!$C$332)^'1 Données d''entrée'!$C$333)/((1+'1 Données d''entrée'!$C$332)^'1 Données d''entrée'!$C$333-1),0))","v":0},{"$f":"IF(R430<'1 Données d''entrée'!$C$334+1,0,IF(R430<'1 Données d''entrée'!$C$333+'1 Données d''entrée'!$C$334+1,$B449*('1 Données d''entrée'!$C$332*(1+'1 Données d''entrée'!$C$332)^'1 Données d''entrée'!$C$333)/((1+'1 Données d''entrée'!$C$332)^'1 Données d''entrée'!$C$333-1),0))","v":0},{"$f":"IF(S430<'1 Données d''entrée'!$C$334+1,0,IF(S430<'1 Données d''entrée'!$C$333+'1 Données d''entrée'!$C$334+1,$B449*('1 Données d''entrée'!$C$332*(1+'1 Données d''entrée'!$C$332)^'1 Données d''entrée'!$C$333)/((1+'1 Données d''entrée'!$C$332)^'1 Données d''entrée'!$C$333-1),0))","v":0},{"$f":"IF(T430<'1 Données d''entrée'!$C$334+1,0,IF(T430<'1 Données d''entrée'!$C$333+'1 Données d''entrée'!$C$334+1,$B449*('1 Données d''entrée'!$C$332*(1+'1 Données d''entrée'!$C$332)^'1 Données d''entrée'!$C$333)/((1+'1 Données d''entrée'!$C$332)^'1 Données d''entrée'!$C$333-1),0))","v":0},{"$f":"IF(U430<'1 Données d''entrée'!$C$334+1,0,IF(U430<'1 Données d''entrée'!$C$333+'1 Données d''entrée'!$C$334+1,$B449*('1 Données d''entrée'!$C$332*(1+'1 Données d''entrée'!$C$332)^'1 Données d''entrée'!$C$333)/((1+'1 Données d''entrée'!$C$332)^'1 Données d''entrée'!$C$333-1),0))","v":0},{"$f":"IF(V430<'1 Données d''entrée'!$C$334+1,0,IF(V430<'1 Données d''entrée'!$C$333+'1 Données d''entrée'!$C$334+1,$B449*('1 Données d''entrée'!$C$332*(1+'1 Données d''entrée'!$C$332)^'1 Données d''entrée'!$C$333)/((1+'1 Données d''entrée'!$C$332)^'1 Données d''entrée'!$C$333-1),0))","v":0}]
["Paiement d'intérêt décroissant inclu dans l'annuité constante",0,{"$f":"IF('1 Données d''entrée'!$C$336=\"(=NON)\",IF(C450>0,$B449*((('1 Données d''entrée'!$C$332+1)^'1 Données d''entrée'!$C$333)-(1+'1 Données d''entrée'!$C$332)^('6 Financement'!C$54-1-'1 Données d''entrée'!$C$334))/((1+'1 Données d''entrée'!$C$332)^'1 Données d''entrée'!$C$333-1)*'1 Données d''entrée'!$C$332,0),IF(C430<'1 Données d''entrée'!$C$334+1,'1 Données d''entrée'!$C$332*'6 Financement'!$B449,IF(C450>0,$B$73*((('1 Données d''entrée'!$C$332+1)^'1 Données d''entrée'!$C$333)-(1+'1 Données d''entrée'!$C$332)^('6 Financement'!C$54-1-'1 Données d''entrée'!$C$334))/((1+'1 Données d''entrée'!$C$332)^'1 Données d''entrée'!$C$333-1)*'1 Données d''entrée'!$C$332,0)))","v":0},{"$f":"IF('1 Données d''entrée'!$C$336=\"(=NON)\",IF(D450>0,$B449*((('1 Données d''entrée'!$C$332+1)^'1 Données d''entrée'!$C$333)-(1+'1 Données d''entrée'!$C$332)^('6 Financement'!D$54-1-'1 Données d''entrée'!$C$334))/((1+'1 Données d''entrée'!$C$332)^'1 Données d''entrée'!$C$333-1)*'1 Données d''entrée'!$C$332,0),IF(D430<'1 Données d''entrée'!$C$334+1,'1 Données d''entrée'!$C$332*'6 Financement'!$B449,IF(D450>0,$B$73*((('1 Données d''entrée'!$C$332+1)^'1 Données d''entrée'!$C$333)-(1+'1 Données d''entrée'!$C$332)^('6 Financement'!D$54-1-'1 Données d''entrée'!$C$334))/((1+'1 Données d''entrée'!$C$332)^'1 Données d''entrée'!$C$333-1)*'1 Données d''entrée'!$C$332,0)))","v":0},{"$f":"IF('1 Données d''entrée'!$C$336=\"(=NON)\",IF(E450>0,$B449*((('1 Données d''entrée'!$C$332+1)^'1 Données d''entrée'!$C$333)-(1+'1 Données d''entrée'!$C$332)^('6 Financement'!E$54-1-'1 Données d''entrée'!$C$334))/((1+'1 Données d''entrée'!$C$332)^'1 Données d''entrée'!$C$333-1)*'1 Données d''entrée'!$C$332,0),IF(E430<'1 Données d''entrée'!$C$334+1,'1 Données d''entrée'!$C$332*'6 Financement'!$B449,IF(E450>0,$B$73*((('1 Données d''entrée'!$C$332+1)^'1 Données d''entrée'!$C$333)-(1+'1 Données d''entrée'!$C$332)^('6 Financement'!E$54-1-'1 Données d''entrée'!$C$334))/((1+'1 Données d''entrée'!$C$332)^'1 Données d''entrée'!$C$333-1)*'1 Données d''entrée'!$C$332,0)))","v":0},{"$f":"IF('1 Données d''entrée'!$C$336=\"(=NON)\",IF(F450>0,$B449*((('1 Données d''entrée'!$C$332+1)^'1 Données d''entrée'!$C$333)-(1+'1 Données d''entrée'!$C$332)^('6 Financement'!F$54-1-'1 Données d''entrée'!$C$334))/((1+'1 Données d''entrée'!$C$332)^'1 Données d''entrée'!$C$333-1)*'1 Données d''entrée'!$C$332,0),IF(F430<'1 Données d''entrée'!$C$334+1,'1 Données d''entrée'!$C$332*'6 Financement'!$B449,IF(F450>0,$B$73*((('1 Données d''entrée'!$C$332+1)^'1 Données d''entrée'!$C$333)-(1+'1 Données d''entrée'!$C$332)^('6 Financement'!F$54-1-'1 Données d''entrée'!$C$334))/((1+'1 Données d''entrée'!$C$332)^'1 Données d''entrée'!$C$333-1)*'1 Données d''entrée'!$C$332,0)))","v":0},{"$f":"IF('1 Données d''entrée'!$C$336=\"(=NON)\",IF(G450>0,$B449*((('1 Données d''entrée'!$C$332+1)^'1 Données d''entrée'!$C$333)-(1+'1 Données d''entrée'!$C$332)^('6 Financement'!G$54-1-'1 Données d''entrée'!$C$334))/((1+'1 Données d''entrée'!$C$332)^'1 Données d''entrée'!$C$333-1)*'1 Données d''entrée'!$C$332,0),IF(G430<'1 Données d''entrée'!$C$334+1,'1 Données d''entrée'!$C$332*'6 Financement'!$B449,IF(G450>0,$B$73*((('1 Données d''entrée'!$C$332+1)^'1 Données d''entrée'!$C$333)-(1+'1 Données d''entrée'!$C$332)^('6 Financement'!G$54-1-'1 Données d''entrée'!$C$334))/((1+'1 Données d''entrée'!$C$332)^'1 Données d''entrée'!$C$333-1)*'1 Données d''entrée'!$C$332,0)))","v":0},{"$f":"IF('1 Données d''entrée'!$C$336=\"(=NON)\",IF(H450>0,$B449*((('1 Données d''entrée'!$C$332+1)^'1 Données d''entrée'!$C$333)-(1+'1 Données d''entrée'!$C$332)^('6 Financement'!H$54-1-'1 Données d''entrée'!$C$334))/((1+'1 Données d''entrée'!$C$332)^'1 Données d''entrée'!$C$333-1)*'1 Données d''entrée'!$C$332,0),IF(H430<'1 Données d''entrée'!$C$334+1,'1 Données d''entrée'!$C$332*'6 Financement'!$B449,IF(H450>0,$B$73*((('1 Données d''entrée'!$C$332+1)^'1 Données d''entrée'!$C$333)-(1+'1 Données d''entrée'!$C$332)^('6 Financement'!H$54-1-'1 Données d''entrée'!$C$334))/((1+'1 Données d''entrée'!$C$332)^'1 Données d''entrée'!$C$333-1)*'1 Données d''entrée'!$C$332,0)))","v":0},{"$f":"IF('1 Données d''entrée'!$C$336=\"(=NON)\",IF(I450>0,$B449*((('1 Données d''entrée'!$C$332+1)^'1 Données d''entrée'!$C$333)-(1+'1 Données d''entrée'!$C$332)^('6 Financement'!I$54-1-'1 Données d''entrée'!$C$334))/((1+'1 Données d''entrée'!$C$332)^'1 Données d''entrée'!$C$333-1)*'1 Données d''entrée'!$C$332,0),IF(I430<'1 Données d''entrée'!$C$334+1,'1 Données d''entrée'!$C$332*'6 Financement'!$B449,IF(I450>0,$B$73*((('1 Données d''entrée'!$C$332+1)^'1 Données d''entrée'!$C$333)-(1+'1 Données d''entrée'!$C$332)^('6 Financement'!I$54-1-'1 Données d''entrée'!$C$334))/((1+'1 Données d''entrée'!$C$332)^'1 Données d''entrée'!$C$333-1)*'1 Données d''entrée'!$C$332,0)))","v":0},{"$f":"IF('1 Données d''entrée'!$C$336=\"(=NON)\",IF(J450>0,$B449*((('1 Données d''entrée'!$C$332+1)^'1 Données d''entrée'!$C$333)-(1+'1 Données d''entrée'!$C$332)^('6 Financement'!J$54-1-'1 Données d''entrée'!$C$334))/((1+'1 Données d''entrée'!$C$332)^'1 Données d''entrée'!$C$333-1)*'1 Données d''entrée'!$C$332,0),IF(J430<'1 Données d''entrée'!$C$334+1,'1 Données d''entrée'!$C$332*'6 Financement'!$B449,IF(J450>0,$B$73*((('1 Données d''entrée'!$C$332+1)^'1 Données d''entrée'!$C$333)-(1+'1 Données d''entrée'!$C$332)^('6 Financement'!J$54-1-'1 Données d''entrée'!$C$334))/((1+'1 Données d''entrée'!$C$332)^'1 Données d''entrée'!$C$333-1)*'1 Données d''entrée'!$C$332,0)))","v":0},{"$f":"IF('1 Données d''entrée'!$C$336=\"(=NON)\",IF(K450>0,$B449*((('1 Données d''entrée'!$C$332+1)^'1 Données d''entrée'!$C$333)-(1+'1 Données d''entrée'!$C$332)^('6 Financement'!K$54-1-'1 Données d''entrée'!$C$334))/((1+'1 Données d''entrée'!$C$332)^'1 Données d''entrée'!$C$333-1)*'1 Données d''entrée'!$C$332,0),IF(K430<'1 Données d''entrée'!$C$334+1,'1 Données d''entrée'!$C$332*'6 Financement'!$B449,IF(K450>0,$B$73*((('1 Données d''entrée'!$C$332+1)^'1 Données d''entrée'!$C$333)-(1+'1 Données d''entrée'!$C$332)^('6 Financement'!K$54-1-'1 Données d''entrée'!$C$334))/((1+'1 Données d''entrée'!$C$332)^'1 Données d''entrée'!$C$333-1)*'1 Données d''entrée'!$C$332,0)))","v":0},{"$f":"IF('1 Données d''entrée'!$C$336=\"(=NON)\",IF(L450>0,$B449*((('1 Données d''entrée'!$C$332+1)^'1 Données d''entrée'!$C$333)-(1+'1 Données d''entrée'!$C$332)^('6 Financement'!L$54-1-'1 Données d''entrée'!$C$334))/((1+'1 Données d''entrée'!$C$332)^'1 Données d''entrée'!$C$333-1)*'1 Données d''entrée'!$C$332,0),IF(L430<'1 Données d''entrée'!$C$334+1,'1 Données d''entrée'!$C$332*'6 Financement'!$B449,IF(L450>0,$B$73*((('1 Données d''entrée'!$C$332+1)^'1 Données d''entrée'!$C$333)-(1+'1 Données d''entrée'!$C$332)^('6 Financement'!L$54-1-'1 Données d''entrée'!$C$334))/((1+'1 Données d''entrée'!$C$332)^'1 Données d''entrée'!$C$333-1)*'1 Données d''entrée'!$C$332,0)))","v":0},{"$f":"IF('1 Données d''entrée'!$C$336=\"(=NON)\",IF(M450>0,$B449*((('1 Données d''entrée'!$C$332+1)^'1 Données d''entrée'!$C$333)-(1+'1 Données d''entrée'!$C$332)^('6 Financement'!M$54-1-'1 Données d''entrée'!$C$334))/((1+'1 Données d''entrée'!$C$332)^'1 Données d''entrée'!$C$333-1)*'1 Données d''entrée'!$C$332,0),IF(M430<'1 Données d''entrée'!$C$334+1,'1 Données d''entrée'!$C$332*'6 Financement'!$B449,IF(M450>0,$B$73*((('1 Données d''entrée'!$C$332+1)^'1 Données d''entrée'!$C$333)-(1+'1 Données d''entrée'!$C$332)^('6 Financement'!M$54-1-'1 Données d''entrée'!$C$334))/((1+'1 Données d''entrée'!$C$332)^'1 Données d''entrée'!$C$333-1)*'1 Données d''entrée'!$C$332,0)))","v":0},{"$f":"IF('1 Données d''entrée'!$C$336=\"(=NON)\",IF(N450>0,$B449*((('1 Données d''entrée'!$C$332+1)^'1 Données d''entrée'!$C$333)-(1+'1 Données d''entrée'!$C$332)^('6 Financement'!N$54-1-'1 Données d''entrée'!$C$334))/((1+'1 Données d''entrée'!$C$332)^'1 Données d''entrée'!$C$333-1)*'1 Données d''entrée'!$C$332,0),IF(N430<'1 Données d''entrée'!$C$334+1,'1 Données d''entrée'!$C$332*'6 Financement'!$B449,IF(N450>0,$B$73*((('1 Données d''entrée'!$C$332+1)^'1 Données d''entrée'!$C$333)-(1+'1 Données d''entrée'!$C$332)^('6 Financement'!N$54-1-'1 Données d''entrée'!$C$334))/((1+'1 Données d''entrée'!$C$332)^'1 Données d''entrée'!$C$333-1)*'1 Données d''entrée'!$C$332,0)))","v":0},{"$f":"IF('1 Données d''entrée'!$C$336=\"(=NON)\",IF(O450>0,$B449*((('1 Données d''entrée'!$C$332+1)^'1 Données d''entrée'!$C$333)-(1+'1 Données d''entrée'!$C$332)^('6 Financement'!O$54-1-'1 Données d''entrée'!$C$334))/((1+'1 Données d''entrée'!$C$332)^'1 Données d''entrée'!$C$333-1)*'1 Données d''entrée'!$C$332,0),IF(O430<'1 Données d''entrée'!$C$334+1,'1 Données d''entrée'!$C$332*'6 Financement'!$B449,IF(O450>0,$B$73*((('1 Données d''entrée'!$C$332+1)^'1 Données d''entrée'!$C$333)-(1+'1 Données d''entrée'!$C$332)^('6 Financement'!O$54-1-'1 Données d''entrée'!$C$334))/((1+'1 Données d''entrée'!$C$332)^'1 Données d''entrée'!$C$333-1)*'1 Données d''entrée'!$C$332,0)))","v":0},{"$f":"IF('1 Données d''entrée'!$C$336=\"(=NON)\",IF(P450>0,$B449*((('1 Données d''entrée'!$C$332+1)^'1 Données d''entrée'!$C$333)-(1+'1 Données d''entrée'!$C$332)^('6 Financement'!P$54-1-'1 Données d''entrée'!$C$334))/((1+'1 Données d''entrée'!$C$332)^'1 Données d''entrée'!$C$333-1)*'1 Données d''entrée'!$C$332,0),IF(P430<'1 Données d''entrée'!$C$334+1,'1 Données d''entrée'!$C$332*'6 Financement'!$B449,IF(P450>0,$B$73*((('1 Données d''entrée'!$C$332+1)^'1 Données d''entrée'!$C$333)-(1+'1 Données d''entrée'!$C$332)^('6 Financement'!P$54-1-'1 Données d''entrée'!$C$334))/((1+'1 Données d''entrée'!$C$332)^'1 Données d''entrée'!$C$333-1)*'1 Données d''entrée'!$C$332,0)))","v":0},{"$f":"IF('1 Données d''entrée'!$C$336=\"(=NON)\",IF(Q450>0,$B449*((('1 Données d''entrée'!$C$332+1)^'1 Données d''entrée'!$C$333)-(1+'1 Données d''entrée'!$C$332)^('6 Financement'!Q$54-1-'1 Données d''entrée'!$C$334))/((1+'1 Données d''entrée'!$C$332)^'1 Données d''entrée'!$C$333-1)*'1 Données d''entrée'!$C$332,0),IF(Q430<'1 Données d''entrée'!$C$334+1,'1 Données d''entrée'!$C$332*'6 Financement'!$B449,IF(Q450>0,$B$73*((('1 Données d''entrée'!$C$332+1)^'1 Données d''entrée'!$C$333)-(1+'1 Données d''entrée'!$C$332)^('6 Financement'!Q$54-1-'1 Données d''entrée'!$C$334))/((1+'1 Données d''entrée'!$C$332)^'1 Données d''entrée'!$C$333-1)*'1 Données d''entrée'!$C$332,0)))","v":0},{"$f":"IF('1 Données d''entrée'!$C$336=\"(=NON)\",IF(R450>0,$B449*((('1 Données d''entrée'!$C$332+1)^'1 Données d''entrée'!$C$333)-(1+'1 Données d''entrée'!$C$332)^('6 Financement'!R$54-1-'1 Données d''entrée'!$C$334))/((1+'1 Données d''entrée'!$C$332)^'1 Données d''entrée'!$C$333-1)*'1 Données d''entrée'!$C$332,0),IF(R430<'1 Données d''entrée'!$C$334+1,'1 Données d''entrée'!$C$332*'6 Financement'!$B449,IF(R450>0,$B$73*((('1 Données d''entrée'!$C$332+1)^'1 Données d''entrée'!$C$333)-(1+'1 Données d''entrée'!$C$332)^('6 Financement'!R$54-1-'1 Données d''entrée'!$C$334))/((1+'1 Données d''entrée'!$C$332)^'1 Données d''entrée'!$C$333-1)*'1 Données d''entrée'!$C$332,0)))","v":0},{"$f":"IF('1 Données d''entrée'!$C$336=\"(=NON)\",IF(S450>0,$B449*((('1 Données d''entrée'!$C$332+1)^'1 Données d''entrée'!$C$333)-(1+'1 Données d''entrée'!$C$332)^('6 Financement'!S$54-1-'1 Données d''entrée'!$C$334))/((1+'1 Données d''entrée'!$C$332)^'1 Données d''entrée'!$C$333-1)*'1 Données d''entrée'!$C$332,0),IF(S430<'1 Données d''entrée'!$C$334+1,'1 Données d''entrée'!$C$332*'6 Financement'!$B449,IF(S450>0,$B$73*((('1 Données d''entrée'!$C$332+1)^'1 Données d''entrée'!$C$333)-(1+'1 Données d''entrée'!$C$332)^('6 Financement'!S$54-1-'1 Données d''entrée'!$C$334))/((1+'1 Données d''entrée'!$C$332)^'1 Données d''entrée'!$C$333-1)*'1 Données d''entrée'!$C$332,0)))","v":0},{"$f":"IF('1 Données d''entrée'!$C$336=\"(=NON)\",IF(T450>0,$B449*((('1 Données d''entrée'!$C$332+1)^'1 Données d''entrée'!$C$333)-(1+'1 Données d''entrée'!$C$332)^('6 Financement'!T$54-1-'1 Données d''entrée'!$C$334))/((1+'1 Données d''entrée'!$C$332)^'1 Données d''entrée'!$C$333-1)*'1 Données d''entrée'!$C$332,0),IF(T430<'1 Données d''entrée'!$C$334+1,'1 Données d''entrée'!$C$332*'6 Financement'!$B449,IF(T450>0,$B$73*((('1 Données d''entrée'!$C$332+1)^'1 Données d''entrée'!$C$333)-(1+'1 Données d''entrée'!$C$332)^('6 Financement'!T$54-1-'1 Données d''entrée'!$C$334))/((1+'1 Données d''entrée'!$C$332)^'1 Données d''entrée'!$C$333-1)*'1 Données d''entrée'!$C$332,0)))","v":0},{"$f":"IF('1 Données d''entrée'!$C$336=\"(=NON)\",IF(U450>0,$B449*((('1 Données d''entrée'!$C$332+1)^'1 Données d''entrée'!$C$333)-(1+'1 Données d''entrée'!$C$332)^('6 Financement'!U$54-1-'1 Données d''entrée'!$C$334))/((1+'1 Données d''entrée'!$C$332)^'1 Données d''entrée'!$C$333-1)*'1 Données d''entrée'!$C$332,0),IF(U430<'1 Données d''entrée'!$C$334+1,'1 Données d''entrée'!$C$332*'6 Financement'!$B449,IF(U450>0,$B$73*((('1 Données d''entrée'!$C$332+1)^'1 Données d''entrée'!$C$333)-(1+'1 Données d''entrée'!$C$332)^('6 Financement'!U$54-1-'1 Données d''entrée'!$C$334))/((1+'1 Données d''entrée'!$C$332)^'1 Données d''entrée'!$C$333-1)*'1 Données d''entrée'!$C$332,0)))","v":0},{"$f":"IF('1 Données d''entrée'!$C$336=\"(=NON)\",IF(V450>0,$B449*((('1 Données d''entrée'!$C$332+1)^'1 Données d''entrée'!$C$333)-(1+'1 Données d''entrée'!$C$332)^('6 Financement'!V$54-1-'1 Données d''entrée'!$C$334))/((1+'1 Données d''entrée'!$C$332)^'1 Données d''entrée'!$C$333-1)*'1 Données d''entrée'!$C$332,0),IF(V430<'1 Données d''entrée'!$C$334+1,'1 Données d''entrée'!$C$332*'6 Financement'!$B449,IF(V450>0,$B$73*((('1 Données d''entrée'!$C$332+1)^'1 Données d''entrée'!$C$333)-(1+'1 Données d''entrée'!$C$332)^('6 Financement'!V$54-1-'1 Données d''entrée'!$C$334))/((1+'1 Données d''entrée'!$C$332)^'1 Données d''entrée'!$C$333-1)*'1 Données d''entrée'!$C$332,0)))","v":0}]
["Paiements d'intérêt avec des intérêts composés en cas d'absence des paiements dans la période de grâce",0,0,{"$f":"IF(D430='1 Données d''entrée'!$C$334+1,IF('1 Données d''entrée'!$C$336=\"(=NON)\",($B449*'1 Données d''entrée'!$C$332)*((('1 Données d''entrée'!$C$332+1)^'1 Données d''entrée'!$C$334-1)/('1 Données d''entrée'!$C$332))*(1+'1 Données d''entrée'!$C$332),0),0)","v":0},{"$f":"IF(E430='1 Données d''entrée'!$C$334+1,IF('1 Données d''entrée'!$C$336=\"(=NON)\",($B449*'1 Données d''entrée'!$C$332)*((('1 Données d''entrée'!$C$332+1)^'1 Données d''entrée'!$C$334-1)/('1 Données d''entrée'!$C$332))*(1+'1 Données d''entrée'!$C$332),0),0)","v":0},{"$f":"IF(F430='1 Données d''entrée'!$C$334+1,IF('1 Données d''entrée'!$C$336=\"(=NON)\",($B449*'1 Données d''entrée'!$C$332)*((('1 Données d''entrée'!$C$332+1)^'1 Données d''entrée'!$C$334-1)/('1 Données d''entrée'!$C$332))*(1+'1 Données d''entrée'!$C$332),0),0)","v":0},{"$f":"IF(G430='1 Données d''entrée'!$C$334+1,IF('1 Données d''entrée'!$C$336=\"(=NON)\",($B449*'1 Données d''entrée'!$C$332)*((('1 Données d''entrée'!$C$332+1)^'1 Données d''entrée'!$C$334-1)/('1 Données d''entrée'!$C$332))*(1+'1 Données d''entrée'!$C$332),0),0)","v":0},{"$f":"IF(H430='1 Données d''entrée'!$C$334+1,IF('1 Données d''entrée'!$C$336=\"(=NON)\",($B449*'1 Données d''entrée'!$C$332)*((('1 Données d''entrée'!$C$332+1)^'1 Données d''entrée'!$C$334-1)/('1 Données d''entrée'!$C$332))*(1+'1 Données d''entrée'!$C$332),0),0)","v":0},{"$f":"IF(I430='1 Données d''entrée'!$C$334+1,IF('1 Données d''entrée'!$C$336=\"(=NON)\",($B449*'1 Données d''entrée'!$C$332)*((('1 Données d''entrée'!$C$332+1)^'1 Données d''entrée'!$C$334-1)/('1 Données d''entrée'!$C$332))*(1+'1 Données d''entrée'!$C$332),0),0)","v":0},{"$f":"IF(J430='1 Données d''entrée'!$C$334+1,IF('1 Données d''entrée'!$C$336=\"(=NON)\",($B449*'1 Données d''entrée'!$C$332)*((('1 Données d''entrée'!$C$332+1)^'1 Données d''entrée'!$C$334-1)/('1 Données d''entrée'!$C$332))*(1+'1 Données d''entrée'!$C$332),0),0)","v":0},{"$f":"IF(K430='1 Données d''entrée'!$C$334+1,IF('1 Données d''entrée'!$C$336=\"(=NON)\",($B449*'1 Données d''entrée'!$C$332)*((('1 Données d''entrée'!$C$332+1)^'1 Données d''entrée'!$C$334-1)/('1 Données d''entrée'!$C$332))*(1+'1 Données d''entrée'!$C$332),0),0)","v":0},{"$f":"IF(L430='1 Données d''entrée'!$C$334+1,IF('1 Données d''entrée'!$C$336=\"(=NON)\",($B449*'1 Données d''entrée'!$C$332)*((('1 Données d''entrée'!$C$332+1)^'1 Données d''entrée'!$C$334-1)/('1 Données d''entrée'!$C$332))*(1+'1 Données d''entrée'!$C$332),0),0)","v":0},{"$f":"IF(M430='1 Données d''entrée'!$C$334+1,IF('1 Données d''entrée'!$C$336=\"(=NON)\",($B449*'1 Données d''entrée'!$C$332)*((('1 Données d''entrée'!$C$332+1)^'1 Données d''entrée'!$C$334-1)/('1 Données d''entrée'!$C$332))*(1+'1 Données d''entrée'!$C$332),0),0)","v":0},{"$f":"IF(N430='1 Données d''entrée'!$C$334+1,IF('1 Données d''entrée'!$C$336=\"(=NON)\",($B449*'1 Données d''entrée'!$C$332)*((('1 Données d''entrée'!$C$332+1)^'1 Données d''entrée'!$C$334-1)/('1 Données d''entrée'!$C$332))*(1+'1 Données d''entrée'!$C$332),0),0)","v":0},{"$f":"IF(O430='1 Données d''entrée'!$C$334+1,IF('1 Données d''entrée'!$C$336=\"(=NON)\",($B449*'1 Données d''entrée'!$C$332)*((('1 Données d''entrée'!$C$332+1)^'1 Données d''entrée'!$C$334-1)/('1 Données d''entrée'!$C$332))*(1+'1 Données d''entrée'!$C$332),0),0)","v":0},{"$f":"IF(P430='1 Données d''entrée'!$C$334+1,IF('1 Données d''entrée'!$C$336=\"(=NON)\",($B449*'1 Données d''entrée'!$C$332)*((('1 Données d''entrée'!$C$332+1)^'1 Données d''entrée'!$C$334-1)/('1 Données d''entrée'!$C$332))*(1+'1 Données d''entrée'!$C$332),0),0)","v":0},{"$f":"IF(Q430='1 Données d''entrée'!$C$334+1,IF('1 Données d''entrée'!$C$336=\"(=NON)\",($B449*'1 Données d''entrée'!$C$332)*((('1 Données d''entrée'!$C$332+1)^'1 Données d''entrée'!$C$334-1)/('1 Données d''entrée'!$C$332))*(1+'1 Données d''entrée'!$C$332),0),0)","v":0},{"$f":"IF(R430='1 Données d''entrée'!$C$334+1,IF('1 Données d''entrée'!$C$336=\"(=NON)\",($B449*'1 Données d''entrée'!$C$332)*((('1 Données d''entrée'!$C$332+1)^'1 Données d''entrée'!$C$334-1)/('1 Données d''entrée'!$C$332))*(1+'1 Données d''entrée'!$C$332),0),0)","v":0},{"$f":"IF(S430='1 Données d''entrée'!$C$334+1,IF('1 Données d''entrée'!$C$336=\"(=NON)\",($B449*'1 Données d''entrée'!$C$332)*((('1 Données d''entrée'!$C$332+1)^'1 Données d''entrée'!$C$334-1)/('1 Données d''entrée'!$C$332))*(1+'1 Données d''entrée'!$C$332),0),0)","v":0},{"$f":"IF(T430='1 Données d''entrée'!$C$334+1,IF('1 Données d''entrée'!$C$336=\"(=NON)\",($B449*'1 Données d''entrée'!$C$332)*((('1 Données d''entrée'!$C$332+1)^'1 Données d''entrée'!$C$334-1)/('1 Données d''entrée'!$C$332))*(1+'1 Données d''entrée'!$C$332),0),0)","v":0},{"$f":"IF(U430='1 Données d''entrée'!$C$334+1,IF('1 Données d''entrée'!$C$336=\"(=NON)\",($B449*'1 Données d''entrée'!$C$332)*((('1 Données d''entrée'!$C$332+1)^'1 Données d''entrée'!$C$334-1)/('1 Données d''entrée'!$C$332))*(1+'1 Données d''entrée'!$C$332),0),0)","v":0},{"$f":"IF(V430='1 Données d''entrée'!$C$334+1,IF('1 Données d''entrée'!$C$336=\"(=NON)\",($B449*'1 Données d''entrée'!$C$332)*((('1 Données d''entrée'!$C$332+1)^'1 Données d''entrée'!$C$334-1)/('1 Données d''entrée'!$C$332))*(1+'1 Données d''entrée'!$C$332),0),0)","v":0}]
[]
["Fonds d'autres donneurs / investisseurs - Subvention",{"$f":"'1 Données d''entrée'!$B$307","v":0}]
["Fonds d'autre donneurs / investisseurs - Prêt; Option 1: Remboursement du principal fractionné",{"$f":"'1 Données d''entrée'!$B$319","v":0},"% de prêt total"]
["Réception et montant restant",{"$f":"'1 Données d''entrée'!$B$306*'1 Données d''entrée'!$B$319+'1 Données d''entrée'!$B$306*'1 Données d''entrée'!$C$316","v":0},{"$f":"B456-C457","v":0},{"$f":"C456-D457","v":0},0,0,0,0,0,0,0,0,0,0,0,0,0,0,0,0,0,0]
["Remboursement du principal",0,{"$f":"IF(C430<'1 Données d''entrée'!$C$312+1,0,IF(C430<'1 Données d''entrée'!$C$312+'1 Données d''entrée'!$C$311+1,($B456/'1 Données d''entrée'!$C$311),0))","v":0},{"$f":"IF(D430<'1 Données d''entrée'!$C$312+1,0,IF(D430<'1 Données d''entrée'!$C$312+'1 Données d''entrée'!$C$311+1,($B456/'1 Données d''entrée'!$C$311),0))","v":0},{"$f":"IF(E430<'1 Données d''entrée'!$C$312+1,0,IF(E430<'1 Données d''entrée'!$C$312+'1 Données d''entrée'!$C$311+1,($B456/'1 Données d''entrée'!$C$311),0))","v":0},{"$f":"IF(F430<'1 Données d''entrée'!$C$312+1,0,IF(F430<'1 Données d''entrée'!$C$312+'1 Données d''entrée'!$C$311+1,($B456/'1 Données d''entrée'!$C$311),0))","v":0},{"$f":"IF(G430<'1 Données d''entrée'!$C$312+1,0,IF(G430<'1 Données d''entrée'!$C$312+'1 Données d''entrée'!$C$311+1,($B456/'1 Données d''entrée'!$C$311),0))","v":0},{"$f":"IF(H430<'1 Données d''entrée'!$C$312+1,0,IF(H430<'1 Données d''entrée'!$C$312+'1 Données d''entrée'!$C$311+1,($B456/'1 Données d''entrée'!$C$311),0))","v":0},{"$f":"IF(I430<'1 Données d''entrée'!$C$312+1,0,IF(I430<'1 Données d''entrée'!$C$312+'1 Données d''entrée'!$C$311+1,($B456/'1 Données d''entrée'!$C$311),0))","v":0},{"$f":"IF(J430<'1 Données d''entrée'!$C$312+1,0,IF(J430<'1 Données d''entrée'!$C$312+'1 Données d''entrée'!$C$311+1,($B456/'1 Données d''entrée'!$C$311),0))","v":0},{"$f":"IF(K430<'1 Données d''entrée'!$C$312+1,0,IF(K430<'1 Données d''entrée'!$C$312+'1 Données d''entrée'!$C$311+1,($B456/'1 Données d''entrée'!$C$311),0))","v":0},{"$f":"IF(L430<'1 Données d''entrée'!$C$312+1,0,IF(L430<'1 Données d''entrée'!$C$312+'1 Données d''entrée'!$C$311+1,($B456/'1 Données d''entrée'!$C$311),0))","v":0},{"$f":"IF(M430<'1 Données d''entrée'!$C$312+1,0,IF(M430<'1 Données d''entrée'!$C$312+'1 Données d''entrée'!$C$311+1,($B456/'1 Données d''entrée'!$C$311),0))","v":0},{"$f":"IF(N430<'1 Données d''entrée'!$C$312+1,0,IF(N430<'1 Données d''entrée'!$C$312+'1 Données d''entrée'!$C$311+1,($B456/'1 Données d''entrée'!$C$311),0))","v":0},{"$f":"IF(O430<'1 Données d''entrée'!$C$312+1,0,IF(O430<'1 Données d''entrée'!$C$312+'1 Données d''entrée'!$C$311+1,($B456/'1 Données d''entrée'!$C$311),0))","v":0},{"$f":"IF(P430<'1 Données d''entrée'!$C$312+1,0,IF(P430<'1 Données d''entrée'!$C$312+'1 Données d''entrée'!$C$311+1,($B456/'1 Données d''entrée'!$C$311),0))","v":0},{"$f":"IF(Q430<'1 Données d''entrée'!$C$312+1,0,IF(Q430<'1 Données d''entrée'!$C$312+'1 Données d''entrée'!$C$311+1,($B456/'1 Données d''entrée'!$C$311),0))","v":0},{"$f":"IF(R430<'1 Données d''entrée'!$C$312+1,0,IF(R430<'1 Données d''entrée'!$C$312+'1 Données d''entrée'!$C$311+1,($B456/'1 Données d''entrée'!$C$311),0))","v":0},{"$f":"IF(S430<'1 Données d''entrée'!$C$312+1,0,IF(S430<'1 Données d''entrée'!$C$312+'1 Données d''entrée'!$C$311+1,($B456/'1 Données d''entrée'!$C$311),0))","v":0},{"$f":"IF(T430<'1 Données d''entrée'!$C$312+1,0,IF(T430<'1 Données d''entrée'!$C$312+'1 Données d''entrée'!$C$311+1,($B456/'1 Données d''entrée'!$C$311),0))","v":0},{"$f":"IF(U430<'1 Données d''entrée'!$C$312+1,0,IF(U430<'1 Données d''entrée'!$C$312+'1 Données d''entrée'!$C$311+1,($B456/'1 Données d''entrée'!$C$311),0))","v":0},{"$f":"IF(V430<'1 Données d''entrée'!$C$312+1,0,IF(V430<'1 Données d''entrée'!$C$312+'1 Données d''entrée'!$C$311+1,($B456/'1 Données d''entrée'!$C$311),0))","v":0}]
["Paiement d'intérêts",0,{"$f":"IF('1 Données d''entrée'!$C$314=\"(=NON)\",IF(C430<'1 Données d''entrée'!$C$312+1,0,B456*'1 Données d''entrée'!$C$310),B456*'1 Données d''entrée'!$C$310)","v":0},{"$f":"IF('1 Données d''entrée'!$C$314=\"(=NON)\",IF(D430<'1 Données d''entrée'!$C$312+1,0,C456*'1 Données d''entrée'!$C$310),C456*'1 Données d''entrée'!$C$310)","v":0},{"$f":"IF('1 Données d''entrée'!$C$314=\"(=NON)\",IF(E430<'1 Données d''entrée'!$C$312+1,0,D456*'1 Données d''entrée'!$C$310),D456*'1 Données d''entrée'!$C$310)","v":0},{"$f":"IF('1 Données d''entrée'!$C$314=\"(=NON)\",IF(F430<'1 Données d''entrée'!$C$312+1,0,E456*'1 Données d''entrée'!$C$310),E456*'1 Données d''entrée'!$C$310)","v":0},{"$f":"IF('1 Données d''entrée'!$C$314=\"(=NON)\",IF(G430<'1 Données d''entrée'!$C$312+1,0,F456*'1 Données d''entrée'!$C$310),F456*'1 Données d''entrée'!$C$310)","v":0},{"$f":"IF('1 Données d''entrée'!$C$314=\"(=NON)\",IF(H430<'1 Données d''entrée'!$C$312+1,0,G456*'1 Données d''entrée'!$C$310),G456*'1 Données d''entrée'!$C$310)","v":0},{"$f":"IF('1 Données d''entrée'!$C$314=\"(=NON)\",IF(I430<'1 Données d''entrée'!$C$312+1,0,H456*'1 Données d''entrée'!$C$310),H456*'1 Données d''entrée'!$C$310)","v":0},{"$f":"IF('1 Données d''entrée'!$C$314=\"(=NON)\",IF(J430<'1 Données d''entrée'!$C$312+1,0,I456*'1 Données d''entrée'!$C$310),I456*'1 Données d''entrée'!$C$310)","v":0},{"$f":"IF('1 Données d''entrée'!$C$314=\"(=NON)\",IF(K430<'1 Données d''entrée'!$C$312+1,0,J456*'1 Données d''entrée'!$C$310),J456*'1 Données d''entrée'!$C$310)","v":0},{"$f":"IF('1 Données d''entrée'!$C$314=\"(=NON)\",IF(L430<'1 Données d''entrée'!$C$312+1,0,K456*'1 Données d''entrée'!$C$310),K456*'1 Données d''entrée'!$C$310)","v":0},{"$f":"IF('1 Données d''entrée'!$C$314=\"(=NON)\",IF(M430<'1 Données d''entrée'!$C$312+1,0,L456*'1 Données d''entrée'!$C$310),L456*'1 Données d''entrée'!$C$310)","v":0},{"$f":"IF('1 Données d''entrée'!$C$314=\"(=NON)\",IF(N430<'1 Données d''entrée'!$C$312+1,0,M456*'1 Données d''entrée'!$C$310),M456*'1 Données d''entrée'!$C$310)","v":0},{"$f":"IF('1 Données d''entrée'!$C$314=\"(=NON)\",IF(O430<'1 Données d''entrée'!$C$312+1,0,N456*'1 Données d''entrée'!$C$310),N456*'1 Données d''entrée'!$C$310)","v":0},{"$f":"IF('1 Données d''entrée'!$C$314=\"(=NON)\",IF(P430<'1 Données d''entrée'!$C$312+1,0,O456*'1 Données d''entrée'!$C$310),O456*'1 Données d''entrée'!$C$310)","v":0},{"$f":"IF('1 Données d''entrée'!$C$314=\"(=NON)\",IF(Q430<'1 Données d''entrée'!$C$312+1,0,P456*'1 Données d''entrée'!$C$310),P456*'1 Données d''entrée'!$C$310)","v":0},{"$f":"IF('1 Données d''entrée'!$C$314=\"(=NON)\",IF(R430<'1 Données d''entrée'!$C$312+1,0,Q456*'1 Données d''entrée'!$C$310),Q456*'1 Données d''entrée'!$C$310)","v":0},{"$f":"IF('1 Données d''entrée'!$C$314=\"(=NON)\",IF(S430<'1 Données d''entrée'!$C$312+1,0,R456*'1 Données d''entrée'!$C$310),R456*'1 Données d''entrée'!$C$310)","v":0},{"$f":"IF('1 Données d''entrée'!$C$314=\"(=NON)\",IF(T430<'1 Données d''entrée'!$C$312+1,0,S456*'1 Données d''entrée'!$C$310),S456*'1 Données d''entrée'!$C$310)","v":0},{"$f":"IF('1 Données d''entrée'!$C$314=\"(=NON)\",IF(U430<'1 Données d''entrée'!$C$312+1,0,T456*'1 Données d''entrée'!$C$310),T456*'1 Données d''entrée'!$C$310)","v":0},{"$f":"IF('1 Données d''entrée'!$C$314=\"(=NON)\",IF(V430<'1 Données d''entrée'!$C$312+1,0,U456*'1 Données d''entrée'!$C$310),U456*'1 Données d''entrée'!$C$310)","v":0}]
["Paiements d'intérêt avec des intérêts composés en cas d'absence des paiements dans la période de grâce",0,0,{"$f":"IF(D430='1 Données d''entrée'!$C$312+1,IF('1 Données d''entrée'!$C$314=\"(=NON)\",($B456*'1 Données d''entrée'!$C$310)*((('1 Données d''entrée'!$C$310+1)^'1 Données d''entrée'!$C$312-1)/('1 Données d''entrée'!$C$310))*(1+'1 Données d''entrée'!$C$310),0),0)","v":0},{"$f":"IF(E430='1 Données d''entrée'!$C$312+1,IF('1 Données d''entrée'!$C$314=\"(=NON)\",($B456*'1 Données d''entrée'!$C$310)*((('1 Données d''entrée'!$C$310+1)^'1 Données d''entrée'!$C$312-1)/('1 Données d''entrée'!$C$310))*(1+'1 Données d''entrée'!$C$310),0),0)","v":0},{"$f":"IF(F430='1 Données d''entrée'!$C$312+1,IF('1 Données d''entrée'!$C$314=\"(=NON)\",($B456*'1 Données d''entrée'!$C$310)*((('1 Données d''entrée'!$C$310+1)^'1 Données d''entrée'!$C$312-1)/('1 Données d''entrée'!$C$310))*(1+'1 Données d''entrée'!$C$310),0),0)","v":0},{"$f":"IF(G430='1 Données d''entrée'!$C$312+1,IF('1 Données d''entrée'!$C$314=\"(=NON)\",($B456*'1 Données d''entrée'!$C$310)*((('1 Données d''entrée'!$C$310+1)^'1 Données d''entrée'!$C$312-1)/('1 Données d''entrée'!$C$310))*(1+'1 Données d''entrée'!$C$310),0),0)","v":0},{"$f":"IF(H430='1 Données d''entrée'!$C$312+1,IF('1 Données d''entrée'!$C$314=\"(=NON)\",($B456*'1 Données d''entrée'!$C$310)*((('1 Données d''entrée'!$C$310+1)^'1 Données d''entrée'!$C$312-1)/('1 Données d''entrée'!$C$310))*(1+'1 Données d''entrée'!$C$310),0),0)","v":0},{"$f":"IF(I430='1 Données d''entrée'!$C$312+1,IF('1 Données d''entrée'!$C$314=\"(=NON)\",($B456*'1 Données d''entrée'!$C$310)*((('1 Données d''entrée'!$C$310+1)^'1 Données d''entrée'!$C$312-1)/('1 Données d''entrée'!$C$310))*(1+'1 Données d''entrée'!$C$310),0),0)","v":0},{"$f":"IF(J430='1 Données d''entrée'!$C$312+1,IF('1 Données d''entrée'!$C$314=\"(=NON)\",($B456*'1 Données d''entrée'!$C$310)*((('1 Données d''entrée'!$C$310+1)^'1 Données d''entrée'!$C$312-1)/('1 Données d''entrée'!$C$310))*(1+'1 Données d''entrée'!$C$310),0),0)","v":0},{"$f":"IF(K430='1 Données d''entrée'!$C$312+1,IF('1 Données d''entrée'!$C$314=\"(=NON)\",($B456*'1 Données d''entrée'!$C$310)*((('1 Données d''entrée'!$C$310+1)^'1 Données d''entrée'!$C$312-1)/('1 Données d''entrée'!$C$310))*(1+'1 Données d''entrée'!$C$310),0),0)","v":0},{"$f":"IF(L430='1 Données d''entrée'!$C$312+1,IF('1 Données d''entrée'!$C$314=\"(=NON)\",($B456*'1 Données d''entrée'!$C$310)*((('1 Données d''entrée'!$C$310+1)^'1 Données d''entrée'!$C$312-1)/('1 Données d''entrée'!$C$310))*(1+'1 Données d''entrée'!$C$310),0),0)","v":0},{"$f":"IF(M430='1 Données d''entrée'!$C$312+1,IF('1 Données d''entrée'!$C$314=\"(=NON)\",($B456*'1 Données d''entrée'!$C$310)*((('1 Données d''entrée'!$C$310+1)^'1 Données d''entrée'!$C$312-1)/('1 Données d''entrée'!$C$310))*(1+'1 Données d''entrée'!$C$310),0),0)","v":0},{"$f":"IF(N430='1 Données d''entrée'!$C$312+1,IF('1 Données d''entrée'!$C$314=\"(=NON)\",($B456*'1 Données d''entrée'!$C$310)*((('1 Données d''entrée'!$C$310+1)^'1 Données d''entrée'!$C$312-1)/('1 Données d''entrée'!$C$310))*(1+'1 Données d''entrée'!$C$310),0),0)","v":0},{"$f":"IF(O430='1 Données d''entrée'!$C$312+1,IF('1 Données d''entrée'!$C$314=\"(=NON)\",($B456*'1 Données d''entrée'!$C$310)*((('1 Données d''entrée'!$C$310+1)^'1 Données d''entrée'!$C$312-1)/('1 Données d''entrée'!$C$310))*(1+'1 Données d''entrée'!$C$310),0),0)","v":0},{"$f":"IF(P430='1 Données d''entrée'!$C$312+1,IF('1 Données d''entrée'!$C$314=\"(=NON)\",($B456*'1 Données d''entrée'!$C$310)*((('1 Données d''entrée'!$C$310+1)^'1 Données d''entrée'!$C$312-1)/('1 Données d''entrée'!$C$310))*(1+'1 Données d''entrée'!$C$310),0),0)","v":0},{"$f":"IF(Q430='1 Données d''entrée'!$C$312+1,IF('1 Données d''entrée'!$C$314=\"(=NON)\",($B456*'1 Données d''entrée'!$C$310)*((('1 Données d''entrée'!$C$310+1)^'1 Données d''entrée'!$C$312-1)/('1 Données d''entrée'!$C$310))*(1+'1 Données d''entrée'!$C$310),0),0)","v":0},{"$f":"IF(R430='1 Données d''entrée'!$C$312+1,IF('1 Données d''entrée'!$C$314=\"(=NON)\",($B456*'1 Données d''entrée'!$C$310)*((('1 Données d''entrée'!$C$310+1)^'1 Données d''entrée'!$C$312-1)/('1 Données d''entrée'!$C$310))*(1+'1 Données d''entrée'!$C$310),0),0)","v":0},{"$f":"IF(S430='1 Données d''entrée'!$C$312+1,IF('1 Données d''entrée'!$C$314=\"(=NON)\",($B456*'1 Données d''entrée'!$C$310)*((('1 Données d''entrée'!$C$310+1)^'1 Données d''entrée'!$C$312-1)/('1 Données d''entrée'!$C$310))*(1+'1 Données d''entrée'!$C$310),0),0)","v":0},{"$f":"IF(T430='1 Données d''entrée'!$C$312+1,IF('1 Données d''entrée'!$C$314=\"(=NON)\",($B456*'1 Données d''entrée'!$C$310)*((('1 Données d''entrée'!$C$310+1)^'1 Données d''entrée'!$C$312-1)/('1 Données d''entrée'!$C$310))*(1+'1 Données d''entrée'!$C$310),0),0)","v":0},{"$f":"IF(U430='1 Données d''entrée'!$C$312+1,IF('1 Données d''entrée'!$C$314=\"(=NON)\",($B456*'1 Données d''entrée'!$C$310)*((('1 Données d''entrée'!$C$310+1)^'1 Données d''entrée'!$C$312-1)/('1 Données d''entrée'!$C$310))*(1+'1 Données d''entrée'!$C$310),0),0)","v":0},{"$f":"IF(V430='1 Données d''entrée'!$C$312+1,IF('1 Données d''entrée'!$C$314=\"(=NON)\",($B456*'1 Données d''entrée'!$C$310)*((('1 Données d''entrée'!$C$310+1)^'1 Données d''entrée'!$C$312-1)/('1 Données d''entrée'!$C$310))*(1+'1 Données d''entrée'!$C$310),0),0)","v":0}]
["Fonds d'autre donneurs / investisseurs - Prêt; Option 2: Remboursement du principal final",{"$f":"'1 Données d''entrée'!$B$320","v":0},"% de prêt total"]
["Réception et montant restant",{"$f":"'1 Données d''entrée'!$B$306*'1 Données d''entrée'!$B$320+'1 Données d''entrée'!$B$306*'1 Données d''entrée'!$C$316","v":0},{"$f":"B461-C462","v":0},{"$f":"C461-D462","v":0},0,0,0,0,0,0,0,0,0,0,0,0,0,0,0,0,0,0]
["Remboursement du principal",0,{"$f":"IF('1 Données d''entrée'!$C$311+'1 Données d''entrée'!$C$312=C430,'6 Financement'!$B$85,0)","v":0},{"$f":"IF('1 Données d''entrée'!$C$311+'1 Données d''entrée'!$C$312=D430,'6 Financement'!$B$85,0)","v":0},{"$f":"IF('1 Données d''entrée'!$C$311+'1 Données d''entrée'!$C$312=E430,'6 Financement'!$B$85,0)","v":0},{"$f":"IF('1 Données d''entrée'!$C$311+'1 Données d''entrée'!$C$312=F430,'6 Financement'!$B$85,0)","v":0},{"$f":"IF('1 Données d''entrée'!$C$311+'1 Données d''entrée'!$C$312=G430,'6 Financement'!$B$85,0)","v":0},{"$f":"IF('1 Données d''entrée'!$C$311+'1 Données d''entrée'!$C$312=H430,'6 Financement'!$B$85,0)","v":0},{"$f":"IF('1 Données d''entrée'!$C$311+'1 Données d''entrée'!$C$312=I430,'6 Financement'!$B$85,0)","v":0},{"$f":"IF('1 Données d''entrée'!$C$311+'1 Données d''entrée'!$C$312=J430,'6 Financement'!$B$85,0)","v":0},{"$f":"IF('1 Données d''entrée'!$C$311+'1 Données d''entrée'!$C$312=K430,'6 Financement'!$B$85,0)","v":0},{"$f":"IF('1 Données d''entrée'!$C$311+'1 Données d''entrée'!$C$312=L430,'6 Financement'!$B$85,0)","v":0},{"$f":"IF('1 Données d''entrée'!$C$311+'1 Données d''entrée'!$C$312=M430,'6 Financement'!$B$85,0)","v":0},{"$f":"IF('1 Données d''entrée'!$C$311+'1 Données d''entrée'!$C$312=N430,'6 Financement'!$B$85,0)","v":0},{"$f":"IF('1 Données d''entrée'!$C$311+'1 Données d''entrée'!$C$312=O430,'6 Financement'!$B$85,0)","v":0},{"$f":"IF('1 Données d''entrée'!$C$311+'1 Données d''entrée'!$C$312=P430,'6 Financement'!$B$85,0)","v":0},{"$f":"IF('1 Données d''entrée'!$C$311+'1 Données d''entrée'!$C$312=Q430,'6 Financement'!$B$85,0)","v":0},{"$f":"IF('1 Données d''entrée'!$C$311+'1 Données d''entrée'!$C$312=R430,'6 Financement'!$B$85,0)","v":0},{"$f":"IF('1 Données d''entrée'!$C$311+'1 Données d''entrée'!$C$312=S430,'6 Financement'!$B$85,0)","v":0},{"$f":"IF('1 Données d''entrée'!$C$311+'1 Données d''entrée'!$C$312=T430,'6 Financement'!$B$85,0)","v":0},{"$f":"IF('1 Données d''entrée'!$C$311+'1 Données d''entrée'!$C$312=U430,'6 Financement'!$B$85,0)","v":0},{"$f":"IF('1 Données d''entrée'!$C$311+'1 Données d''entrée'!$C$312=V430,'6 Financement'!$B$85,0)","v":0}]
["Paiement d'intérêts",0,{"$f":"IF('1 Données d''entrée'!$C$314=\"(=NON)\",IF(C430<'1 Données d''entrée'!$C$312+1,0,B461*'1 Données d''entrée'!$C$310),B461*'1 Données d''entrée'!$C$310)","v":0},{"$f":"IF('1 Données d''entrée'!$C$314=\"(=NON)\",IF(D430<'1 Données d''entrée'!$C$312+1,0,C461*'1 Données d''entrée'!$C$310),C461*'1 Données d''entrée'!$C$310)","v":0},{"$f":"IF('1 Données d''entrée'!$C$314=\"(=NON)\",IF(E430<'1 Données d''entrée'!$C$312+1,0,D461*'1 Données d''entrée'!$C$310),D461*'1 Données d''entrée'!$C$310)","v":0},{"$f":"IF('1 Données d''entrée'!$C$314=\"(=NON)\",IF(F430<'1 Données d''entrée'!$C$312+1,0,E461*'1 Données d''entrée'!$C$310),E461*'1 Données d''entrée'!$C$310)","v":0},{"$f":"IF('1 Données d''entrée'!$C$314=\"(=NON)\",IF(G430<'1 Données d''entrée'!$C$312+1,0,F461*'1 Données d''entrée'!$C$310),F461*'1 Données d''entrée'!$C$310)","v":0},{"$f":"IF('1 Données d''entrée'!$C$314=\"(=NON)\",IF(H430<'1 Données d''entrée'!$C$312+1,0,G461*'1 Données d''entrée'!$C$310),G461*'1 Données d''entrée'!$C$310)","v":0},{"$f":"IF('1 Données d''entrée'!$C$314=\"(=NON)\",IF(I430<'1 Données d''entrée'!$C$312+1,0,H461*'1 Données d''entrée'!$C$310),H461*'1 Données d''entrée'!$C$310)","v":0},{"$f":"IF('1 Données d''entrée'!$C$314=\"(=NON)\",IF(J430<'1 Données d''entrée'!$C$312+1,0,I461*'1 Données d''entrée'!$C$310),I461*'1 Données d''entrée'!$C$310)","v":0},{"$f":"IF('1 Données d''entrée'!$C$314=\"(=NON)\",IF(K430<'1 Données d''entrée'!$C$312+1,0,J461*'1 Données d''entrée'!$C$310),J461*'1 Données d''entrée'!$C$310)","v":0},{"$f":"IF('1 Données d''entrée'!$C$314=\"(=NON)\",IF(L430<'1 Données d''entrée'!$C$312+1,0,K461*'1 Données d''entrée'!$C$310),K461*'1 Données d''entrée'!$C$310)","v":0},{"$f":"IF('1 Données d''entrée'!$C$314=\"(=NON)\",IF(M430<'1 Données d''entrée'!$C$312+1,0,L461*'1 Données d''entrée'!$C$310),L461*'1 Données d''entrée'!$C$310)","v":0},{"$f":"IF('1 Données d''entrée'!$C$314=\"(=NON)\",IF(N430<'1 Données d''entrée'!$C$312+1,0,M461*'1 Données d''entrée'!$C$310),M461*'1 Données d''entrée'!$C$310)","v":0},{"$f":"IF('1 Données d''entrée'!$C$314=\"(=NON)\",IF(O430<'1 Données d''entrée'!$C$312+1,0,N461*'1 Données d''entrée'!$C$310),N461*'1 Données d''entrée'!$C$310)","v":0},{"$f":"IF('1 Données d''entrée'!$C$314=\"(=NON)\",IF(P430<'1 Données d''entrée'!$C$312+1,0,O461*'1 Données d''entrée'!$C$310),O461*'1 Données d''entrée'!$C$310)","v":0},{"$f":"IF('1 Données d''entrée'!$C$314=\"(=NON)\",IF(Q430<'1 Données d''entrée'!$C$312+1,0,P461*'1 Données d''entrée'!$C$310),P461*'1 Données d''entrée'!$C$310)","v":0},{"$f":"IF('1 Données d''entrée'!$C$314=\"(=NON)\",IF(R430<'1 Données d''entrée'!$C$312+1,0,Q461*'1 Données d''entrée'!$C$310),Q461*'1 Données d''entrée'!$C$310)","v":0},{"$f":"IF('1 Données d''entrée'!$C$314=\"(=NON)\",IF(S430<'1 Données d''entrée'!$C$312+1,0,R461*'1 Données d''entrée'!$C$310),R461*'1 Données d''entrée'!$C$310)","v":0},{"$f":"IF('1 Données d''entrée'!$C$314=\"(=NON)\",IF(T430<'1 Données d''entrée'!$C$312+1,0,S461*'1 Données d''entrée'!$C$310),S461*'1 Données d''entrée'!$C$310)","v":0},{"$f":"IF('1 Données d''entrée'!$C$314=\"(=NON)\",IF(U430<'1 Données d''entrée'!$C$312+1,0,T461*'1 Données d''entrée'!$C$310),T461*'1 Données d''entrée'!$C$310)","v":0},{"$f":"IF('1 Données d''entrée'!$C$314=\"(=NON)\",IF(V430<'1 Données d''entrée'!$C$312+1,0,U461*'1 Données d''entrée'!$C$310),U461*'1 Données d''entrée'!$C$310)","v":0}]
["Paiements d'intérêt avec des intérêts composés en cas d'absence des paiements dans la période de grâce",0,0,{"$f":"IF(D430='1 Données d''entrée'!$C$312+1,IF('1 Données d''entrée'!$C$314=\"(=NON)\",($B461*'1 Données d''entrée'!$C$310)*((('1 Données d''entrée'!$C$310+1)^'1 Données d''entrée'!$C$312-1)/('1 Données d''entrée'!$C$310))*(1+'1 Données d''entrée'!$C$310),0),0)","v":0},{"$f":"IF(E430='1 Données d''entrée'!$C$312+1,IF('1 Données d''entrée'!$C$314=\"(=NON)\",($B461*'1 Données d''entrée'!$C$310)*((('1 Données d''entrée'!$C$310+1)^'1 Données d''entrée'!$C$312-1)/('1 Données d''entrée'!$C$310))*(1+'1 Données d''entrée'!$C$310),0),0)","v":0},{"$f":"IF(F430='1 Données d''entrée'!$C$312+1,IF('1 Données d''entrée'!$C$314=\"(=NON)\",($B461*'1 Données d''entrée'!$C$310)*((('1 Données d''entrée'!$C$310+1)^'1 Données d''entrée'!$C$312-1)/('1 Données d''entrée'!$C$310))*(1+'1 Données d''entrée'!$C$310),0),0)","v":0},{"$f":"IF(G430='1 Données d''entrée'!$C$312+1,IF('1 Données d''entrée'!$C$314=\"(=NON)\",($B461*'1 Données d''entrée'!$C$310)*((('1 Données d''entrée'!$C$310+1)^'1 Données d''entrée'!$C$312-1)/('1 Données d''entrée'!$C$310))*(1+'1 Données d''entrée'!$C$310),0),0)","v":0},{"$f":"IF(H430='1 Données d''entrée'!$C$312+1,IF('1 Données d''entrée'!$C$314=\"(=NON)\",($B461*'1 Données d''entrée'!$C$310)*((('1 Données d''entrée'!$C$310+1)^'1 Données d''entrée'!$C$312-1)/('1 Données d''entrée'!$C$310))*(1+'1 Données d''entrée'!$C$310),0),0)","v":0},{"$f":"IF(I430='1 Données d''entrée'!$C$312+1,IF('1 Données d''entrée'!$C$314=\"(=NON)\",($B461*'1 Données d''entrée'!$C$310)*((('1 Données d''entrée'!$C$310+1)^'1 Données d''entrée'!$C$312-1)/('1 Données d''entrée'!$C$310))*(1+'1 Données d''entrée'!$C$310),0),0)","v":0},{"$f":"IF(J430='1 Données d''entrée'!$C$312+1,IF('1 Données d''entrée'!$C$314=\"(=NON)\",($B461*'1 Données d''entrée'!$C$310)*((('1 Données d''entrée'!$C$310+1)^'1 Données d''entrée'!$C$312-1)/('1 Données d''entrée'!$C$310))*(1+'1 Données d''entrée'!$C$310),0),0)","v":0},{"$f":"IF(K430='1 Données d''entrée'!$C$312+1,IF('1 Données d''entrée'!$C$314=\"(=NON)\",($B461*'1 Données d''entrée'!$C$310)*((('1 Données d''entrée'!$C$310+1)^'1 Données d''entrée'!$C$312-1)/('1 Données d''entrée'!$C$310))*(1+'1 Données d''entrée'!$C$310),0),0)","v":0},{"$f":"IF(L430='1 Données d''entrée'!$C$312+1,IF('1 Données d''entrée'!$C$314=\"(=NON)\",($B461*'1 Données d''entrée'!$C$310)*((('1 Données d''entrée'!$C$310+1)^'1 Données d''entrée'!$C$312-1)/('1 Données d''entrée'!$C$310))*(1+'1 Données d''entrée'!$C$310),0),0)","v":0},{"$f":"IF(M430='1 Données d''entrée'!$C$312+1,IF('1 Données d''entrée'!$C$314=\"(=NON)\",($B461*'1 Données d''entrée'!$C$310)*((('1 Données d''entrée'!$C$310+1)^'1 Données d''entrée'!$C$312-1)/('1 Données d''entrée'!$C$310))*(1+'1 Données d''entrée'!$C$310),0),0)","v":0},{"$f":"IF(N430='1 Données d''entrée'!$C$312+1,IF('1 Données d''entrée'!$C$314=\"(=NON)\",($B461*'1 Données d''entrée'!$C$310)*((('1 Données d''entrée'!$C$310+1)^'1 Données d''entrée'!$C$312-1)/('1 Données d''entrée'!$C$310))*(1+'1 Données d''entrée'!$C$310),0),0)","v":0},{"$f":"IF(O430='1 Données d''entrée'!$C$312+1,IF('1 Données d''entrée'!$C$314=\"(=NON)\",($B461*'1 Données d''entrée'!$C$310)*((('1 Données d''entrée'!$C$310+1)^'1 Données d''entrée'!$C$312-1)/('1 Données d''entrée'!$C$310))*(1+'1 Données d''entrée'!$C$310),0),0)","v":0},{"$f":"IF(P430='1 Données d''entrée'!$C$312+1,IF('1 Données d''entrée'!$C$314=\"(=NON)\",($B461*'1 Données d''entrée'!$C$310)*((('1 Données d''entrée'!$C$310+1)^'1 Données d''entrée'!$C$312-1)/('1 Données d''entrée'!$C$310))*(1+'1 Données d''entrée'!$C$310),0),0)","v":0},{"$f":"IF(Q430='1 Données d''entrée'!$C$312+1,IF('1 Données d''entrée'!$C$314=\"(=NON)\",($B461*'1 Données d''entrée'!$C$310)*((('1 Données d''entrée'!$C$310+1)^'1 Données d''entrée'!$C$312-1)/('1 Données d''entrée'!$C$310))*(1+'1 Données d''entrée'!$C$310),0),0)","v":0},{"$f":"IF(R430='1 Données d''entrée'!$C$312+1,IF('1 Données d''entrée'!$C$314=\"(=NON)\",($B461*'1 Données d''entrée'!$C$310)*((('1 Données d''entrée'!$C$310+1)^'1 Données d''entrée'!$C$312-1)/('1 Données d''entrée'!$C$310))*(1+'1 Données d''entrée'!$C$310),0),0)","v":0},{"$f":"IF(S430='1 Données d''entrée'!$C$312+1,IF('1 Données d''entrée'!$C$314=\"(=NON)\",($B461*'1 Données d''entrée'!$C$310)*((('1 Données d''entrée'!$C$310+1)^'1 Données d''entrée'!$C$312-1)/('1 Données d''entrée'!$C$310))*(1+'1 Données d''entrée'!$C$310),0),0)","v":0},{"$f":"IF(T430='1 Données d''entrée'!$C$312+1,IF('1 Données d''entrée'!$C$314=\"(=NON)\",($B461*'1 Données d''entrée'!$C$310)*((('1 Données d''entrée'!$C$310+1)^'1 Données d''entrée'!$C$312-1)/('1 Données d''entrée'!$C$310))*(1+'1 Données d''entrée'!$C$310),0),0)","v":0},{"$f":"IF(U430='1 Données d''entrée'!$C$312+1,IF('1 Données d''entrée'!$C$314=\"(=NON)\",($B461*'1 Données d''entrée'!$C$310)*((('1 Données d''entrée'!$C$310+1)^'1 Données d''entrée'!$C$312-1)/('1 Données d''entrée'!$C$310))*(1+'1 Données d''entrée'!$C$310),0),0)","v":0},{"$f":"IF(V430='1 Données d''entrée'!$C$312+1,IF('1 Données d''entrée'!$C$314=\"(=NON)\",($B461*'1 Données d''entrée'!$C$310)*((('1 Données d''entrée'!$C$310+1)^'1 Données d''entrée'!$C$312-1)/('1 Données d''entrée'!$C$310))*(1+'1 Données d''entrée'!$C$310),0),0)","v":0}]
["Fonds d'autre donneurs / investisseurs - Prêt; Option 3: Remboursement vers l'annuité constante",{"$f":"'1 Données d''entrée'!$B$321","v":0},"% de prêt total"]
["Réception ",{"$f":"B465*'1 Données d''entrée'!$B$306+'1 Données d''entrée'!$B$306*'1 Données d''entrée'!$C$316","v":0},0,0,0,0,0,0,0,0,0,0,0,0,0,0,0,0,0,0,0,0]
["Remboursement vers l'annuité constante",{"$f":"IF(B430<'1 Données d''entrée'!$C$312+1,0,IF(B430<'1 Données d''entrée'!$C$311+'1 Données d''entrée'!$C$312+1,$B466*('1 Données d''entrée'!$C$310*(1+'1 Données d''entrée'!$C$310)^'1 Données d''entrée'!$C$311)/((1+'1 Données d''entrée'!$C$310)^'1 Données d''entrée'!$C$311-1),0))","v":0},{"$f":"IF(C430<'1 Données d''entrée'!$C$312+1,0,IF(C430<'1 Données d''entrée'!$C$311+'1 Données d''entrée'!$C$312+1,$B466*('1 Données d''entrée'!$C$310*(1+'1 Données d''entrée'!$C$310)^'1 Données d''entrée'!$C$311)/((1+'1 Données d''entrée'!$C$310)^'1 Données d''entrée'!$C$311-1),0))","v":0},{"$f":"IF(D430<'1 Données d''entrée'!$C$312+1,0,IF(D430<'1 Données d''entrée'!$C$311+'1 Données d''entrée'!$C$312+1,$B466*('1 Données d''entrée'!$C$310*(1+'1 Données d''entrée'!$C$310)^'1 Données d''entrée'!$C$311)/((1+'1 Données d''entrée'!$C$310)^'1 Données d''entrée'!$C$311-1),0))","v":0},{"$f":"IF(E430<'1 Données d''entrée'!$C$312+1,0,IF(E430<'1 Données d''entrée'!$C$311+'1 Données d''entrée'!$C$312+1,$B466*('1 Données d''entrée'!$C$310*(1+'1 Données d''entrée'!$C$310)^'1 Données d''entrée'!$C$311)/((1+'1 Données d''entrée'!$C$310)^'1 Données d''entrée'!$C$311-1),0))","v":0},{"$f":"IF(F430<'1 Données d''entrée'!$C$312+1,0,IF(F430<'1 Données d''entrée'!$C$311+'1 Données d''entrée'!$C$312+1,$B466*('1 Données d''entrée'!$C$310*(1+'1 Données d''entrée'!$C$310)^'1 Données d''entrée'!$C$311)/((1+'1 Données d''entrée'!$C$310)^'1 Données d''entrée'!$C$311-1),0))","v":0},{"$f":"IF(G430<'1 Données d''entrée'!$C$312+1,0,IF(G430<'1 Données d''entrée'!$C$311+'1 Données d''entrée'!$C$312+1,$B466*('1 Données d''entrée'!$C$310*(1+'1 Données d''entrée'!$C$310)^'1 Données d''entrée'!$C$311)/((1+'1 Données d''entrée'!$C$310)^'1 Données d''entrée'!$C$311-1),0))","v":0},{"$f":"IF(H430<'1 Données d''entrée'!$C$312+1,0,IF(H430<'1 Données d''entrée'!$C$311+'1 Données d''entrée'!$C$312+1,$B466*('1 Données d''entrée'!$C$310*(1+'1 Données d''entrée'!$C$310)^'1 Données d''entrée'!$C$311)/((1+'1 Données d''entrée'!$C$310)^'1 Données d''entrée'!$C$311-1),0))","v":0},{"$f":"IF(I430<'1 Données d''entrée'!$C$312+1,0,IF(I430<'1 Données d''entrée'!$C$311+'1 Données d''entrée'!$C$312+1,$B466*('1 Données d''entrée'!$C$310*(1+'1 Données d''entrée'!$C$310)^'1 Données d''entrée'!$C$311)/((1+'1 Données d''entrée'!$C$310)^'1 Données d''entrée'!$C$311-1),0))","v":0},{"$f":"IF(J430<'1 Données d''entrée'!$C$312+1,0,IF(J430<'1 Données d''entrée'!$C$311+'1 Données d''entrée'!$C$312+1,$B466*('1 Données d''entrée'!$C$310*(1+'1 Données d''entrée'!$C$310)^'1 Données d''entrée'!$C$311)/((1+'1 Données d''entrée'!$C$310)^'1 Données d''entrée'!$C$311-1),0))","v":0},{"$f":"IF(K430<'1 Données d''entrée'!$C$312+1,0,IF(K430<'1 Données d''entrée'!$C$311+'1 Données d''entrée'!$C$312+1,$B466*('1 Données d''entrée'!$C$310*(1+'1 Données d''entrée'!$C$310)^'1 Données d''entrée'!$C$311)/((1+'1 Données d''entrée'!$C$310)^'1 Données d''entrée'!$C$311-1),0))","v":0},{"$f":"IF(L430<'1 Données d''entrée'!$C$312+1,0,IF(L430<'1 Données d''entrée'!$C$311+'1 Données d''entrée'!$C$312+1,$B466*('1 Données d''entrée'!$C$310*(1+'1 Données d''entrée'!$C$310)^'1 Données d''entrée'!$C$311)/((1+'1 Données d''entrée'!$C$310)^'1 Données d''entrée'!$C$311-1),0))","v":0},{"$f":"IF(M430<'1 Données d''entrée'!$C$312+1,0,IF(M430<'1 Données d''entrée'!$C$311+'1 Données d''entrée'!$C$312+1,$B466*('1 Données d''entrée'!$C$310*(1+'1 Données d''entrée'!$C$310)^'1 Données d''entrée'!$C$311)/((1+'1 Données d''entrée'!$C$310)^'1 Données d''entrée'!$C$311-1),0))","v":0},{"$f":"IF(N430<'1 Données d''entrée'!$C$312+1,0,IF(N430<'1 Données d''entrée'!$C$311+'1 Données d''entrée'!$C$312+1,$B466*('1 Données d''entrée'!$C$310*(1+'1 Données d''entrée'!$C$310)^'1 Données d''entrée'!$C$311)/((1+'1 Données d''entrée'!$C$310)^'1 Données d''entrée'!$C$311-1),0))","v":0},{"$f":"IF(O430<'1 Données d''entrée'!$C$312+1,0,IF(O430<'1 Données d''entrée'!$C$311+'1 Données d''entrée'!$C$312+1,$B466*('1 Données d''entrée'!$C$310*(1+'1 Données d''entrée'!$C$310)^'1 Données d''entrée'!$C$311)/((1+'1 Données d''entrée'!$C$310)^'1 Données d''entrée'!$C$311-1),0))","v":0},{"$f":"IF(P430<'1 Données d''entrée'!$C$312+1,0,IF(P430<'1 Données d''entrée'!$C$311+'1 Données d''entrée'!$C$312+1,$B466*('1 Données d''entrée'!$C$310*(1+'1 Données d''entrée'!$C$310)^'1 Données d''entrée'!$C$311)/((1+'1 Données d''entrée'!$C$310)^'1 Données d''entrée'!$C$311-1),0))","v":0},{"$f":"IF(Q430<'1 Données d''entrée'!$C$312+1,0,IF(Q430<'1 Données d''entrée'!$C$311+'1 Données d''entrée'!$C$312+1,$B466*('1 Données d''entrée'!$C$310*(1+'1 Données d''entrée'!$C$310)^'1 Données d''entrée'!$C$311)/((1+'1 Données d''entrée'!$C$310)^'1 Données d''entrée'!$C$311-1),0))","v":0},{"$f":"IF(R430<'1 Données d''entrée'!$C$312+1,0,IF(R430<'1 Données d''entrée'!$C$311+'1 Données d''entrée'!$C$312+1,$B466*('1 Données d''entrée'!$C$310*(1+'1 Données d''entrée'!$C$310)^'1 Données d''entrée'!$C$311)/((1+'1 Données d''entrée'!$C$310)^'1 Données d''entrée'!$C$311-1),0))","v":0},{"$f":"IF(S430<'1 Données d''entrée'!$C$312+1,0,IF(S430<'1 Données d''entrée'!$C$311+'1 Données d''entrée'!$C$312+1,$B466*('1 Données d''entrée'!$C$310*(1+'1 Données d''entrée'!$C$310)^'1 Données d''entrée'!$C$311)/((1+'1 Données d''entrée'!$C$310)^'1 Données d''entrée'!$C$311-1),0))","v":0},{"$f":"IF(T430<'1 Données d''entrée'!$C$312+1,0,IF(T430<'1 Données d''entrée'!$C$311+'1 Données d''entrée'!$C$312+1,$B466*('1 Données d''entrée'!$C$310*(1+'1 Données d''entrée'!$C$310)^'1 Données d''entrée'!$C$311)/((1+'1 Données d''entrée'!$C$310)^'1 Données d''entrée'!$C$311-1),0))","v":0},{"$f":"IF(U430<'1 Données d''entrée'!$C$312+1,0,IF(U430<'1 Données d''entrée'!$C$311+'1 Données d''entrée'!$C$312+1,$B466*('1 Données d''entrée'!$C$310*(1+'1 Données d''entrée'!$C$310)^'1 Données d''entrée'!$C$311)/((1+'1 Données d''entrée'!$C$310)^'1 Données d''entrée'!$C$311-1),0))","v":0},{"$f":"IF(V430<'1 Données d''entrée'!$C$312+1,0,IF(V430<'1 Données d''entrée'!$C$311+'1 Données d''entrée'!$C$312+1,$B466*('1 Données d''entrée'!$C$310*(1+'1 Données d''entrée'!$C$310)^'1 Données d''entrée'!$C$311)/((1+'1 Données d''entrée'!$C$310)^'1 Données d''entrée'!$C$311-1),0))","v":0}]
["Paiement d'intérêt décroissant inclu dans l'annuité constante",0,{"$f":"IF('1 Données d''entrée'!$C$314=\"(=NON)\",IF(C467>0,$B466*((('1 Données d''entrée'!$C$310+1)^'1 Données d''entrée'!$C$311)-(1+'1 Données d''entrée'!$C$310)^('6 Financement'!C$54-1-'1 Données d''entrée'!$C$312))/((1+'1 Données d''entrée'!$C$310)^'1 Données d''entrée'!$C$311-1)*'1 Données d''entrée'!$C$310,0),IF(C430<'1 Données d''entrée'!$C$312+1,'1 Données d''entrée'!$C$310*'6 Financement'!$B466,IF(C467>0,$B$90*((('1 Données d''entrée'!$C$310+1)^'1 Données d''entrée'!$C$311)-(1+'1 Données d''entrée'!$C$310)^('6 Financement'!C$54-1-'1 Données d''entrée'!$C$312))/((1+'1 Données d''entrée'!$C$310)^'1 Données d''entrée'!$C$311-1)*'1 Données d''entrée'!$C$310,0)))","v":0},{"$f":"IF('1 Données d''entrée'!$C$314=\"(=NON)\",IF(D467>0,$B466*((('1 Données d''entrée'!$C$310+1)^'1 Données d''entrée'!$C$311)-(1+'1 Données d''entrée'!$C$310)^('6 Financement'!D$54-1-'1 Données d''entrée'!$C$312))/((1+'1 Données d''entrée'!$C$310)^'1 Données d''entrée'!$C$311-1)*'1 Données d''entrée'!$C$310,0),IF(D430<'1 Données d''entrée'!$C$312+1,'1 Données d''entrée'!$C$310*'6 Financement'!$B466,IF(D467>0,$B$90*((('1 Données d''entrée'!$C$310+1)^'1 Données d''entrée'!$C$311)-(1+'1 Données d''entrée'!$C$310)^('6 Financement'!D$54-1-'1 Données d''entrée'!$C$312))/((1+'1 Données d''entrée'!$C$310)^'1 Données d''entrée'!$C$311-1)*'1 Données d''entrée'!$C$310,0)))","v":0},{"$f":"IF('1 Données d''entrée'!$C$314=\"(=NON)\",IF(E467>0,$B466*((('1 Données d''entrée'!$C$310+1)^'1 Données d''entrée'!$C$311)-(1+'1 Données d''entrée'!$C$310)^('6 Financement'!E$54-1-'1 Données d''entrée'!$C$312))/((1+'1 Données d''entrée'!$C$310)^'1 Données d''entrée'!$C$311-1)*'1 Données d''entrée'!$C$310,0),IF(E430<'1 Données d''entrée'!$C$312+1,'1 Données d''entrée'!$C$310*'6 Financement'!$B466,IF(E467>0,$B$90*((('1 Données d''entrée'!$C$310+1)^'1 Données d''entrée'!$C$311)-(1+'1 Données d''entrée'!$C$310)^('6 Financement'!E$54-1-'1 Données d''entrée'!$C$312))/((1+'1 Données d''entrée'!$C$310)^'1 Données d''entrée'!$C$311-1)*'1 Données d''entrée'!$C$310,0)))","v":0},{"$f":"IF('1 Données d''entrée'!$C$314=\"(=NON)\",IF(F467>0,$B466*((('1 Données d''entrée'!$C$310+1)^'1 Données d''entrée'!$C$311)-(1+'1 Données d''entrée'!$C$310)^('6 Financement'!F$54-1-'1 Données d''entrée'!$C$312))/((1+'1 Données d''entrée'!$C$310)^'1 Données d''entrée'!$C$311-1)*'1 Données d''entrée'!$C$310,0),IF(F430<'1 Données d''entrée'!$C$312+1,'1 Données d''entrée'!$C$310*'6 Financement'!$B466,IF(F467>0,$B$90*((('1 Données d''entrée'!$C$310+1)^'1 Données d''entrée'!$C$311)-(1+'1 Données d''entrée'!$C$310)^('6 Financement'!F$54-1-'1 Données d''entrée'!$C$312))/((1+'1 Données d''entrée'!$C$310)^'1 Données d''entrée'!$C$311-1)*'1 Données d''entrée'!$C$310,0)))","v":0},{"$f":"IF('1 Données d''entrée'!$C$314=\"(=NON)\",IF(G467>0,$B466*((('1 Données d''entrée'!$C$310+1)^'1 Données d''entrée'!$C$311)-(1+'1 Données d''entrée'!$C$310)^('6 Financement'!G$54-1-'1 Données d''entrée'!$C$312))/((1+'1 Données d''entrée'!$C$310)^'1 Données d''entrée'!$C$311-1)*'1 Données d''entrée'!$C$310,0),IF(G430<'1 Données d''entrée'!$C$312+1,'1 Données d''entrée'!$C$310*'6 Financement'!$B466,IF(G467>0,$B$90*((('1 Données d''entrée'!$C$310+1)^'1 Données d''entrée'!$C$311)-(1+'1 Données d''entrée'!$C$310)^('6 Financement'!G$54-1-'1 Données d''entrée'!$C$312))/((1+'1 Données d''entrée'!$C$310)^'1 Données d''entrée'!$C$311-1)*'1 Données d''entrée'!$C$310,0)))","v":0},{"$f":"IF('1 Données d''entrée'!$C$314=\"(=NON)\",IF(H467>0,$B466*((('1 Données d''entrée'!$C$310+1)^'1 Données d''entrée'!$C$311)-(1+'1 Données d''entrée'!$C$310)^('6 Financement'!H$54-1-'1 Données d''entrée'!$C$312))/((1+'1 Données d''entrée'!$C$310)^'1 Données d''entrée'!$C$311-1)*'1 Données d''entrée'!$C$310,0),IF(H430<'1 Données d''entrée'!$C$312+1,'1 Données d''entrée'!$C$310*'6 Financement'!$B466,IF(H467>0,$B$90*((('1 Données d''entrée'!$C$310+1)^'1 Données d''entrée'!$C$311)-(1+'1 Données d''entrée'!$C$310)^('6 Financement'!H$54-1-'1 Données d''entrée'!$C$312))/((1+'1 Données d''entrée'!$C$310)^'1 Données d''entrée'!$C$311-1)*'1 Données d''entrée'!$C$310,0)))","v":0},{"$f":"IF('1 Données d''entrée'!$C$314=\"(=NON)\",IF(I467>0,$B466*((('1 Données d''entrée'!$C$310+1)^'1 Données d''entrée'!$C$311)-(1+'1 Données d''entrée'!$C$310)^('6 Financement'!I$54-1-'1 Données d''entrée'!$C$312))/((1+'1 Données d''entrée'!$C$310)^'1 Données d''entrée'!$C$311-1)*'1 Données d''entrée'!$C$310,0),IF(I430<'1 Données d''entrée'!$C$312+1,'1 Données d''entrée'!$C$310*'6 Financement'!$B466,IF(I467>0,$B$90*((('1 Données d''entrée'!$C$310+1)^'1 Données d''entrée'!$C$311)-(1+'1 Données d''entrée'!$C$310)^('6 Financement'!I$54-1-'1 Données d''entrée'!$C$312))/((1+'1 Données d''entrée'!$C$310)^'1 Données d''entrée'!$C$311-1)*'1 Données d''entrée'!$C$310,0)))","v":0},{"$f":"IF('1 Données d''entrée'!$C$314=\"(=NON)\",IF(J467>0,$B466*((('1 Données d''entrée'!$C$310+1)^'1 Données d''entrée'!$C$311)-(1+'1 Données d''entrée'!$C$310)^('6 Financement'!J$54-1-'1 Données d''entrée'!$C$312))/((1+'1 Données d''entrée'!$C$310)^'1 Données d''entrée'!$C$311-1)*'1 Données d''entrée'!$C$310,0),IF(J430<'1 Données d''entrée'!$C$312+1,'1 Données d''entrée'!$C$310*'6 Financement'!$B466,IF(J467>0,$B$90*((('1 Données d''entrée'!$C$310+1)^'1 Données d''entrée'!$C$311)-(1+'1 Données d''entrée'!$C$310)^('6 Financement'!J$54-1-'1 Données d''entrée'!$C$312))/((1+'1 Données d''entrée'!$C$310)^'1 Données d''entrée'!$C$311-1)*'1 Données d''entrée'!$C$310,0)))","v":0},{"$f":"IF('1 Données d''entrée'!$C$314=\"(=NON)\",IF(K467>0,$B466*((('1 Données d''entrée'!$C$310+1)^'1 Données d''entrée'!$C$311)-(1+'1 Données d''entrée'!$C$310)^('6 Financement'!K$54-1-'1 Données d''entrée'!$C$312))/((1+'1 Données d''entrée'!$C$310)^'1 Données d''entrée'!$C$311-1)*'1 Données d''entrée'!$C$310,0),IF(K430<'1 Données d''entrée'!$C$312+1,'1 Données d''entrée'!$C$310*'6 Financement'!$B466,IF(K467>0,$B$90*((('1 Données d''entrée'!$C$310+1)^'1 Données d''entrée'!$C$311)-(1+'1 Données d''entrée'!$C$310)^('6 Financement'!K$54-1-'1 Données d''entrée'!$C$312))/((1+'1 Données d''entrée'!$C$310)^'1 Données d''entrée'!$C$311-1)*'1 Données d''entrée'!$C$310,0)))","v":0},{"$f":"IF('1 Données d''entrée'!$C$314=\"(=NON)\",IF(L467>0,$B466*((('1 Données d''entrée'!$C$310+1)^'1 Données d''entrée'!$C$311)-(1+'1 Données d''entrée'!$C$310)^('6 Financement'!L$54-1-'1 Données d''entrée'!$C$312))/((1+'1 Données d''entrée'!$C$310)^'1 Données d''entrée'!$C$311-1)*'1 Données d''entrée'!$C$310,0),IF(L430<'1 Données d''entrée'!$C$312+1,'1 Données d''entrée'!$C$310*'6 Financement'!$B466,IF(L467>0,$B$90*((('1 Données d''entrée'!$C$310+1)^'1 Données d''entrée'!$C$311)-(1+'1 Données d''entrée'!$C$310)^('6 Financement'!L$54-1-'1 Données d''entrée'!$C$312))/((1+'1 Données d''entrée'!$C$310)^'1 Données d''entrée'!$C$311-1)*'1 Données d''entrée'!$C$310,0)))","v":0},{"$f":"IF('1 Données d''entrée'!$C$314=\"(=NON)\",IF(M467>0,$B466*((('1 Données d''entrée'!$C$310+1)^'1 Données d''entrée'!$C$311)-(1+'1 Données d''entrée'!$C$310)^('6 Financement'!M$54-1-'1 Données d''entrée'!$C$312))/((1+'1 Données d''entrée'!$C$310)^'1 Données d''entrée'!$C$311-1)*'1 Données d''entrée'!$C$310,0),IF(M430<'1 Données d''entrée'!$C$312+1,'1 Données d''entrée'!$C$310*'6 Financement'!$B466,IF(M467>0,$B$90*((('1 Données d''entrée'!$C$310+1)^'1 Données d''entrée'!$C$311)-(1+'1 Données d''entrée'!$C$310)^('6 Financement'!M$54-1-'1 Données d''entrée'!$C$312))/((1+'1 Données d''entrée'!$C$310)^'1 Données d''entrée'!$C$311-1)*'1 Données d''entrée'!$C$310,0)))","v":0},{"$f":"IF('1 Données d''entrée'!$C$314=\"(=NON)\",IF(N467>0,$B466*((('1 Données d''entrée'!$C$310+1)^'1 Données d''entrée'!$C$311)-(1+'1 Données d''entrée'!$C$310)^('6 Financement'!N$54-1-'1 Données d''entrée'!$C$312))/((1+'1 Données d''entrée'!$C$310)^'1 Données d''entrée'!$C$311-1)*'1 Données d''entrée'!$C$310,0),IF(N430<'1 Données d''entrée'!$C$312+1,'1 Données d''entrée'!$C$310*'6 Financement'!$B466,IF(N467>0,$B$90*((('1 Données d''entrée'!$C$310+1)^'1 Données d''entrée'!$C$311)-(1+'1 Données d''entrée'!$C$310)^('6 Financement'!N$54-1-'1 Données d''entrée'!$C$312))/((1+'1 Données d''entrée'!$C$310)^'1 Données d''entrée'!$C$311-1)*'1 Données d''entrée'!$C$310,0)))","v":0},{"$f":"IF('1 Données d''entrée'!$C$314=\"(=NON)\",IF(O467>0,$B466*((('1 Données d''entrée'!$C$310+1)^'1 Données d''entrée'!$C$311)-(1+'1 Données d''entrée'!$C$310)^('6 Financement'!O$54-1-'1 Données d''entrée'!$C$312))/((1+'1 Données d''entrée'!$C$310)^'1 Données d''entrée'!$C$311-1)*'1 Données d''entrée'!$C$310,0),IF(O430<'1 Données d''entrée'!$C$312+1,'1 Données d''entrée'!$C$310*'6 Financement'!$B466,IF(O467>0,$B$90*((('1 Données d''entrée'!$C$310+1)^'1 Données d''entrée'!$C$311)-(1+'1 Données d''entrée'!$C$310)^('6 Financement'!O$54-1-'1 Données d''entrée'!$C$312))/((1+'1 Données d''entrée'!$C$310)^'1 Données d''entrée'!$C$311-1)*'1 Données d''entrée'!$C$310,0)))","v":0},{"$f":"IF('1 Données d''entrée'!$C$314=\"(=NON)\",IF(P467>0,$B466*((('1 Données d''entrée'!$C$310+1)^'1 Données d''entrée'!$C$311)-(1+'1 Données d''entrée'!$C$310)^('6 Financement'!P$54-1-'1 Données d''entrée'!$C$312))/((1+'1 Données d''entrée'!$C$310)^'1 Données d''entrée'!$C$311-1)*'1 Données d''entrée'!$C$310,0),IF(P430<'1 Données d''entrée'!$C$312+1,'1 Données d''entrée'!$C$310*'6 Financement'!$B466,IF(P467>0,$B$90*((('1 Données d''entrée'!$C$310+1)^'1 Données d''entrée'!$C$311)-(1+'1 Données d''entrée'!$C$310)^('6 Financement'!P$54-1-'1 Données d''entrée'!$C$312))/((1+'1 Données d''entrée'!$C$310)^'1 Données d''entrée'!$C$311-1)*'1 Données d''entrée'!$C$310,0)))","v":0},{"$f":"IF('1 Données d''entrée'!$C$314=\"(=NON)\",IF(Q467>0,$B466*((('1 Données d''entrée'!$C$310+1)^'1 Données d''entrée'!$C$311)-(1+'1 Données d''entrée'!$C$310)^('6 Financement'!Q$54-1-'1 Données d''entrée'!$C$312))/((1+'1 Données d''entrée'!$C$310)^'1 Données d''entrée'!$C$311-1)*'1 Données d''entrée'!$C$310,0),IF(Q430<'1 Données d''entrée'!$C$312+1,'1 Données d''entrée'!$C$310*'6 Financement'!$B466,IF(Q467>0,$B$90*((('1 Données d''entrée'!$C$310+1)^'1 Données d''entrée'!$C$311)-(1+'1 Données d''entrée'!$C$310)^('6 Financement'!Q$54-1-'1 Données d''entrée'!$C$312))/((1+'1 Données d''entrée'!$C$310)^'1 Données d''entrée'!$C$311-1)*'1 Données d''entrée'!$C$310,0)))","v":0},{"$f":"IF('1 Données d''entrée'!$C$314=\"(=NON)\",IF(R467>0,$B466*((('1 Données d''entrée'!$C$310+1)^'1 Données d''entrée'!$C$311)-(1+'1 Données d''entrée'!$C$310)^('6 Financement'!R$54-1-'1 Données d''entrée'!$C$312))/((1+'1 Données d''entrée'!$C$310)^'1 Données d''entrée'!$C$311-1)*'1 Données d''entrée'!$C$310,0),IF(R430<'1 Données d''entrée'!$C$312+1,'1 Données d''entrée'!$C$310*'6 Financement'!$B466,IF(R467>0,$B$90*((('1 Données d''entrée'!$C$310+1)^'1 Données d''entrée'!$C$311)-(1+'1 Données d''entrée'!$C$310)^('6 Financement'!R$54-1-'1 Données d''entrée'!$C$312))/((1+'1 Données d''entrée'!$C$310)^'1 Données d''entrée'!$C$311-1)*'1 Données d''entrée'!$C$310,0)))","v":0},{"$f":"IF('1 Données d''entrée'!$C$314=\"(=NON)\",IF(S467>0,$B466*((('1 Données d''entrée'!$C$310+1)^'1 Données d''entrée'!$C$311)-(1+'1 Données d''entrée'!$C$310)^('6 Financement'!S$54-1-'1 Données d''entrée'!$C$312))/((1+'1 Données d''entrée'!$C$310)^'1 Données d''entrée'!$C$311-1)*'1 Données d''entrée'!$C$310,0),IF(S430<'1 Données d''entrée'!$C$312+1,'1 Données d''entrée'!$C$310*'6 Financement'!$B466,IF(S467>0,$B$90*((('1 Données d''entrée'!$C$310+1)^'1 Données d''entrée'!$C$311)-(1+'1 Données d''entrée'!$C$310)^('6 Financement'!S$54-1-'1 Données d''entrée'!$C$312))/((1+'1 Données d''entrée'!$C$310)^'1 Données d''entrée'!$C$311-1)*'1 Données d''entrée'!$C$310,0)))","v":0},{"$f":"IF('1 Données d''entrée'!$C$314=\"(=NON)\",IF(T467>0,$B466*((('1 Données d''entrée'!$C$310+1)^'1 Données d''entrée'!$C$311)-(1+'1 Données d''entrée'!$C$310)^('6 Financement'!T$54-1-'1 Données d''entrée'!$C$312))/((1+'1 Données d''entrée'!$C$310)^'1 Données d''entrée'!$C$311-1)*'1 Données d''entrée'!$C$310,0),IF(T430<'1 Données d''entrée'!$C$312+1,'1 Données d''entrée'!$C$310*'6 Financement'!$B466,IF(T467>0,$B$90*((('1 Données d''entrée'!$C$310+1)^'1 Données d''entrée'!$C$311)-(1+'1 Données d''entrée'!$C$310)^('6 Financement'!T$54-1-'1 Données d''entrée'!$C$312))/((1+'1 Données d''entrée'!$C$310)^'1 Données d''entrée'!$C$311-1)*'1 Données d''entrée'!$C$310,0)))","v":0},{"$f":"IF('1 Données d''entrée'!$C$314=\"(=NON)\",IF(U467>0,$B466*((('1 Données d''entrée'!$C$310+1)^'1 Données d''entrée'!$C$311)-(1+'1 Données d''entrée'!$C$310)^('6 Financement'!U$54-1-'1 Données d''entrée'!$C$312))/((1+'1 Données d''entrée'!$C$310)^'1 Données d''entrée'!$C$311-1)*'1 Données d''entrée'!$C$310,0),IF(U430<'1 Données d''entrée'!$C$312+1,'1 Données d''entrée'!$C$310*'6 Financement'!$B466,IF(U467>0,$B$90*((('1 Données d''entrée'!$C$310+1)^'1 Données d''entrée'!$C$311)-(1+'1 Données d''entrée'!$C$310)^('6 Financement'!U$54-1-'1 Données d''entrée'!$C$312))/((1+'1 Données d''entrée'!$C$310)^'1 Données d''entrée'!$C$311-1)*'1 Données d''entrée'!$C$310,0)))","v":0},{"$f":"IF('1 Données d''entrée'!$C$314=\"(=NON)\",IF(V467>0,$B466*((('1 Données d''entrée'!$C$310+1)^'1 Données d''entrée'!$C$311)-(1+'1 Données d''entrée'!$C$310)^('6 Financement'!V$54-1-'1 Données d''entrée'!$C$312))/((1+'1 Données d''entrée'!$C$310)^'1 Données d''entrée'!$C$311-1)*'1 Données d''entrée'!$C$310,0),IF(V430<'1 Données d''entrée'!$C$312+1,'1 Données d''entrée'!$C$310*'6 Financement'!$B466,IF(V467>0,$B$90*((('1 Données d''entrée'!$C$310+1)^'1 Données d''entrée'!$C$311)-(1+'1 Données d''entrée'!$C$310)^('6 Financement'!V$54-1-'1 Données d''entrée'!$C$312))/((1+'1 Données d''entrée'!$C$310)^'1 Données d''entrée'!$C$311-1)*'1 Données d''entrée'!$C$310,0)))","v":0}]
["Paiements d'intérêt avec des intérêts composés en cas d'absence des paiements dans la période de grâce",0,0,{"$f":"IF(D430='1 Données d''entrée'!$C$312+1,IF('1 Données d''entrée'!$C$314=\"(=NON)\",($B466*'1 Données d''entrée'!$C$310)*((('1 Données d''entrée'!$C$310+1)^'1 Données d''entrée'!$C$312-1)/('1 Données d''entrée'!$C$310))*(1+'1 Données d''entrée'!$C$310),0),0)","v":0},{"$f":"IF(E430='1 Données d''entrée'!$C$312+1,IF('1 Données d''entrée'!$C$314=\"(=NON)\",($B466*'1 Données d''entrée'!$C$310)*((('1 Données d''entrée'!$C$310+1)^'1 Données d''entrée'!$C$312-1)/('1 Données d''entrée'!$C$310))*(1+'1 Données d''entrée'!$C$310),0),0)","v":0},{"$f":"IF(F430='1 Données d''entrée'!$C$312+1,IF('1 Données d''entrée'!$C$314=\"(=NON)\",($B466*'1 Données d''entrée'!$C$310)*((('1 Données d''entrée'!$C$310+1)^'1 Données d''entrée'!$C$312-1)/('1 Données d''entrée'!$C$310))*(1+'1 Données d''entrée'!$C$310),0),0)","v":0},{"$f":"IF(G430='1 Données d''entrée'!$C$312+1,IF('1 Données d''entrée'!$C$314=\"(=NON)\",($B466*'1 Données d''entrée'!$C$310)*((('1 Données d''entrée'!$C$310+1)^'1 Données d''entrée'!$C$312-1)/('1 Données d''entrée'!$C$310))*(1+'1 Données d''entrée'!$C$310),0),0)","v":0},{"$f":"IF(H430='1 Données d''entrée'!$C$312+1,IF('1 Données d''entrée'!$C$314=\"(=NON)\",($B466*'1 Données d''entrée'!$C$310)*((('1 Données d''entrée'!$C$310+1)^'1 Données d''entrée'!$C$312-1)/('1 Données d''entrée'!$C$310))*(1+'1 Données d''entrée'!$C$310),0),0)","v":0},{"$f":"IF(I430='1 Données d''entrée'!$C$312+1,IF('1 Données d''entrée'!$C$314=\"(=NON)\",($B466*'1 Données d''entrée'!$C$310)*((('1 Données d''entrée'!$C$310+1)^'1 Données d''entrée'!$C$312-1)/('1 Données d''entrée'!$C$310))*(1+'1 Données d''entrée'!$C$310),0),0)","v":0},{"$f":"IF(J430='1 Données d''entrée'!$C$312+1,IF('1 Données d''entrée'!$C$314=\"(=NON)\",($B466*'1 Données d''entrée'!$C$310)*((('1 Données d''entrée'!$C$310+1)^'1 Données d''entrée'!$C$312-1)/('1 Données d''entrée'!$C$310))*(1+'1 Données d''entrée'!$C$310),0),0)","v":0},{"$f":"IF(K430='1 Données d''entrée'!$C$312+1,IF('1 Données d''entrée'!$C$314=\"(=NON)\",($B466*'1 Données d''entrée'!$C$310)*((('1 Données d''entrée'!$C$310+1)^'1 Données d''entrée'!$C$312-1)/('1 Données d''entrée'!$C$310))*(1+'1 Données d''entrée'!$C$310),0),0)","v":0},{"$f":"IF(L430='1 Données d''entrée'!$C$312+1,IF('1 Données d''entrée'!$C$314=\"(=NON)\",($B466*'1 Données d''entrée'!$C$310)*((('1 Données d''entrée'!$C$310+1)^'1 Données d''entrée'!$C$312-1)/('1 Données d''entrée'!$C$310))*(1+'1 Données d''entrée'!$C$310),0),0)","v":0},{"$f":"IF(M430='1 Données d''entrée'!$C$312+1,IF('1 Données d''entrée'!$C$314=\"(=NON)\",($B466*'1 Données d''entrée'!$C$310)*((('1 Données d''entrée'!$C$310+1)^'1 Données d''entrée'!$C$312-1)/('1 Données d''entrée'!$C$310))*(1+'1 Données d''entrée'!$C$310),0),0)","v":0},{"$f":"IF(N430='1 Données d''entrée'!$C$312+1,IF('1 Données d''entrée'!$C$314=\"(=NON)\",($B466*'1 Données d''entrée'!$C$310)*((('1 Données d''entrée'!$C$310+1)^'1 Données d''entrée'!$C$312-1)/('1 Données d''entrée'!$C$310))*(1+'1 Données d''entrée'!$C$310),0),0)","v":0},{"$f":"IF(O430='1 Données d''entrée'!$C$312+1,IF('1 Données d''entrée'!$C$314=\"(=NON)\",($B466*'1 Données d''entrée'!$C$310)*((('1 Données d''entrée'!$C$310+1)^'1 Données d''entrée'!$C$312-1)/('1 Données d''entrée'!$C$310))*(1+'1 Données d''entrée'!$C$310),0),0)","v":0},{"$f":"IF(P430='1 Données d''entrée'!$C$312+1,IF('1 Données d''entrée'!$C$314=\"(=NON)\",($B466*'1 Données d''entrée'!$C$310)*((('1 Données d''entrée'!$C$310+1)^'1 Données d''entrée'!$C$312-1)/('1 Données d''entrée'!$C$310))*(1+'1 Données d''entrée'!$C$310),0),0)","v":0},{"$f":"IF(Q430='1 Données d''entrée'!$C$312+1,IF('1 Données d''entrée'!$C$314=\"(=NON)\",($B466*'1 Données d''entrée'!$C$310)*((('1 Données d''entrée'!$C$310+1)^'1 Données d''entrée'!$C$312-1)/('1 Données d''entrée'!$C$310))*(1+'1 Données d''entrée'!$C$310),0),0)","v":0},{"$f":"IF(R430='1 Données d''entrée'!$C$312+1,IF('1 Données d''entrée'!$C$314=\"(=NON)\",($B466*'1 Données d''entrée'!$C$310)*((('1 Données d''entrée'!$C$310+1)^'1 Données d''entrée'!$C$312-1)/('1 Données d''entrée'!$C$310))*(1+'1 Données d''entrée'!$C$310),0),0)","v":0},{"$f":"IF(S430='1 Données d''entrée'!$C$312+1,IF('1 Données d''entrée'!$C$314=\"(=NON)\",($B466*'1 Données d''entrée'!$C$310)*((('1 Données d''entrée'!$C$310+1)^'1 Données d''entrée'!$C$312-1)/('1 Données d''entrée'!$C$310))*(1+'1 Données d''entrée'!$C$310),0),0)","v":0},{"$f":"IF(T430='1 Données d''entrée'!$C$312+1,IF('1 Données d''entrée'!$C$314=\"(=NON)\",($B466*'1 Données d''entrée'!$C$310)*((('1 Données d''entrée'!$C$310+1)^'1 Données d''entrée'!$C$312-1)/('1 Données d''entrée'!$C$310))*(1+'1 Données d''entrée'!$C$310),0),0)","v":0},{"$f":"IF(U430='1 Données d''entrée'!$C$312+1,IF('1 Données d''entrée'!$C$314=\"(=NON)\",($B466*'1 Données d''entrée'!$C$310)*((('1 Données d''entrée'!$C$310+1)^'1 Données d''entrée'!$C$312-1)/('1 Données d''entrée'!$C$310))*(1+'1 Données d''entrée'!$C$310),0),0)","v":0},{"$f":"IF(V430='1 Données d''entrée'!$C$312+1,IF('1 Données d''entrée'!$C$314=\"(=NON)\",($B466*'1 Données d''entrée'!$C$310)*((('1 Données d''entrée'!$C$310+1)^'1 Données d''entrée'!$C$312-1)/('1 Données d''entrée'!$C$310))*(1+'1 Données d''entrée'!$C$310),0),0)","v":0}]
[]
["Solde du compte intermédiaire"]
["Solde du comte (par période)",{"$f":"B432+B434+B436+IF($B438>0,(B439-B440-B441-B442),0)+IF($B443>0,(B444-B445-B446-B447),0)+IF($B448>0,(B449-B450-IF(B450>0,0,B451)-B452),0)+B454+IF($B455>0,(B456-B457-B458-B459),0)+IF($B460>0,(B461-B462-B463-B464),0)+IF($B465>0,B466-IF(B467>0,0,B468)-B469,0)","v":{"$error":"#DIV/0!"}},{"$f":"C432+C434+C436+IF($B438>0,(-C440-C441-C442),0)+IF($B443>0,(-C445-C446-C447),0)+C454+IF($B448>0,(-C450-IF(C450>0,0,C451)-C452),0)+IF($B455>0,(-C457-C458-C459),0)+IF($B460>0,(-C462-C463-C464),0)+IF($B465>0,(-C467-IF(C467>0,0,C468)-C469),0)","v":{"$error":"#DIV/0!"}},{"$f":"D432+D434+D436+IF($B438>0,(-D440-D441-D442),0)+IF($B443>0,(-D445-D446-D447),0)+D454+IF($B448>0,(-D450-IF(D450>0,0,D451)-D452),0)+IF($B455>0,(-D457-D458-D459),0)+IF($B460>0,(-D462-D463-D464),0)+IF($B465>0,(-D467-IF(D467>0,0,D468)-D469),0)","v":{"$error":"#DIV/0!"}},{"$error":"#DIV/0!"},{"$error":"#DIV/0!"},{"$error":"#DIV/0!"},{"$error":"#DIV/0!"},{"$error":"#DIV/0!"},{"$error":"#DIV/0!"},{"$error":"#DIV/0!"},{"$error":"#DIV/0!"},{"$error":"#DIV/0!"},{"$error":"#DIV/0!"},{"$error":"#DIV/0!"},{"$error":"#DIV/0!"},{"$error":"#DIV/0!"},{"$error":"#DIV/0!"},{"$error":"#DIV/0!"},{"$error":"#DIV/0!"},{"$error":"#DIV/0!"},{"$error":"#DIV/0!"}]
["Solde du compte (cumulé)",{"$f":"B472","v":{"$error":"#DIV/0!"}},{"$f":"B473+C472","v":{"$error":"#DIV/0!"}},{"$error":"#DIV/0!"},{"$error":"#DIV/0!"},{"$error":"#DIV/0!"},{"$error":"#DIV/0!"},{"$error":"#DIV/0!"},{"$error":"#DIV/0!"},{"$error":"#DIV/0!"},{"$error":"#DIV/0!"},{"$error":"#DIV/0!"},{"$error":"#DIV/0!"},{"$error":"#DIV/0!"},{"$error":"#DIV/0!"},{"$error":"#DIV/0!"},{"$error":"#DIV/0!"},{"$error":"#DIV/0!"},{"$error":"#DIV/0!"},{"$error":"#DIV/0!"},{"$error":"#DIV/0!"},{"$error":"#DIV/0!"}]
[]
[]
[]
["Prêt bancaire additionnel"]
[null,"Période",1,2,3,4,5,6,7,8,9,10,11,12,13,14,15,16,17,18,19,20]
["Prêt bancaire additionnel - Option 1: Remboursement du principal fractionné",{"$f":"'1 Données d''entrée'!$B$342","v":0}]
["Prêt(s) nouveau(x)",null,{"$f":"IF(C473<0,C473*(-1)*$B479+C473*(-1)*$B479*'1 Données d''entrée'!$C$338,0)","v":{"$error":"#DIV/0!"}},{"$f":"IF(D473<0,D473*(-1)*$B479+D473*(-1)*$B479*'1 Données d''entrée'!$C$338,0)","v":{"$error":"#DIV/0!"}},{"$f":"IF(E473<0,E473*(-1)*$B479+E473*(-1)*$B479*'1 Données d''entrée'!$C$338,0)","v":{"$error":"#DIV/0!"}},{"$f":"IF(F473<0,F473*(-1)*$B479+F473*(-1)*$B479*'1 Données d''entrée'!$C$338,0)","v":{"$error":"#DIV/0!"}},{"$f":"IF(G473<0,G473*(-1)*$B479+G473*(-1)*$B479*'1 Données d''entrée'!$C$338,0)","v":{"$error":"#DIV/0!"}},{"$f":"IF(H473<0,H473*(-1)*$B479+H473*(-1)*$B479*'1 Données d''entrée'!$C$338,0)","v":{"$error":"#DIV/0!"}},{"$f":"IF(I473<0,I473*(-1)*$B479+I473*(-1)*$B479*'1 Données d''entrée'!$C$338,0)","v":{"$error":"#DIV/0!"}},{"$f":"IF(J473<0,J473*(-1)*$B479+J473*(-1)*$B479*'1 Données d''entrée'!$C$338,0)","v":{"$error":"#DIV/0!"}},{"$f":"IF(K473<0,K473*(-1)*$B479+K473*(-1)*$B479*'1 Données d''entrée'!$C$338,0)","v":{"$error":"#DIV/0!"}},{"$f":"IF(L473<0,L473*(-1)*$B479+L473*(-1)*$B479*'1 Données d''entrée'!$C$338,0)","v":{"$error":"#DIV/0!"}},{"$f":"IF(M473<0,M473*(-1)*$B479+M473*(-1)*$B479*'1 Données d''entrée'!$C$338,0)","v":{"$error":"#DIV/0!"}},{"$f":"IF(N473<0,N473*(-1)*$B479+N473*(-1)*$B479*'1 Données d''entrée'!$C$338,0)","v":{"$error":"#DIV/0!"}},{"$f":"IF(O473<0,O473*(-1)*$B479+O473*(-1)*$B479*'1 Données d''entrée'!$C$338,0)","v":{"$error":"#DIV/0!"}},{"$f":"IF(P473<0,P473*(-1)*$B479+P473*(-1)*$B479*'1 Données d''entrée'!$C$338,0)","v":{"$error":"#DIV/0!"}},{"$f":"IF(Q473<0,Q473*(-1)*$B479+Q473*(-1)*$B479*'1 Données d''entrée'!$C$338,0)","v":{"$error":"#DIV/0!"}},{"$f":"IF(R473<0,R473*(-1)*$B479+R473*(-1)*$B479*'1 Données d''entrée'!$C$338,0)","v":{"$error":"#DIV/0!"}},{"$f":"IF(S473<0,S473*(-1)*$B479+S473*(-1)*$B479*'1 Données d''entrée'!$C$338,0)","v":{"$error":"#DIV/0!"}},{"$f":"IF(T473<0,T473*(-1)*$B479+T473*(-1)*$B479*'1 Données d''entrée'!$C$338,0)","v":{"$error":"#DIV/0!"}},{"$f":"IF(U473<0,U473*(-1)*$B479+U473*(-1)*$B479*'1 Données d''entrée'!$C$338,0)","v":{"$error":"#DIV/0!"}},{"$f":"IF(V473<0,V473*(-1)*$B479+V473*(-1)*$B479*'1 Données d''entrée'!$C$338,0)","v":{"$error":"#DIV/0!"}}]
[null,"Période de prêt nouveau"]
["Remboursement du principal",0,0,0,0,0,0,0,0,0,0,0,0,0,0,0,0,0,0,0,0,0]
[null,1,{"$f":"IF(C430<'1 Données d''entrée'!$C$334+1+$B483,0,IF(C430<'1 Données d''entrée'!$C$333+'1 Données d''entrée'!$C$334+1+$B483,($C480/'1 Données d''entrée'!$C$333),0))","v":0},{"$f":"IF(D430<'1 Données d''entrée'!$C$334+1+$B483,0,IF(D430<'1 Données d''entrée'!$C$333+'1 Données d''entrée'!$C$334+1+$B483,($C480/'1 Données d''entrée'!$C$333),0))","v":0},{"$f":"IF(E430<'1 Données d''entrée'!$C$334+1+$B483,0,IF(E430<'1 Données d''entrée'!$C$333+'1 Données d''entrée'!$C$334+1+$B483,($C480/'1 Données d''entrée'!$C$333),0))","v":0},{"$f":"IF(F430<'1 Données d''entrée'!$C$334+1+$B483,0,IF(F430<'1 Données d''entrée'!$C$333+'1 Données d''entrée'!$C$334+1+$B483,($C480/'1 Données d''entrée'!$C$333),0))","v":0},{"$f":"IF(G430<'1 Données d''entrée'!$C$334+1+$B483,0,IF(G430<'1 Données d''entrée'!$C$333+'1 Données d''entrée'!$C$334+1+$B483,($C480/'1 Données d''entrée'!$C$333),0))","v":0},{"$f":"IF(H430<'1 Données d''entrée'!$C$334+1+$B483,0,IF(H430<'1 Données d''entrée'!$C$333+'1 Données d''entrée'!$C$334+1+$B483,($C480/'1 Données d''entrée'!$C$333),0))","v":0},{"$f":"IF(I430<'1 Données d''entrée'!$C$334+1+$B483,0,IF(I430<'1 Données d''entrée'!$C$333+'1 Données d''entrée'!$C$334+1+$B483,($C480/'1 Données d''entrée'!$C$333),0))","v":0},{"$f":"IF(J430<'1 Données d''entrée'!$C$334+1+$B483,0,IF(J430<'1 Données d''entrée'!$C$333+'1 Données d''entrée'!$C$334+1+$B483,($C480/'1 Données d''entrée'!$C$333),0))","v":0},{"$f":"IF(K430<'1 Données d''entrée'!$C$334+1+$B483,0,IF(K430<'1 Données d''entrée'!$C$333+'1 Données d''entrée'!$C$334+1+$B483,($C480/'1 Données d''entrée'!$C$333),0))","v":0},{"$f":"IF(L430<'1 Données d''entrée'!$C$334+1+$B483,0,IF(L430<'1 Données d''entrée'!$C$333+'1 Données d''entrée'!$C$334+1+$B483,($C480/'1 Données d''entrée'!$C$333),0))","v":0},{"$f":"IF(M430<'1 Données d''entrée'!$C$334+1+$B483,0,IF(M430<'1 Données d''entrée'!$C$333+'1 Données d''entrée'!$C$334+1+$B483,($C480/'1 Données d''entrée'!$C$333),0))","v":0},{"$f":"IF(N430<'1 Données d''entrée'!$C$334+1+$B483,0,IF(N430<'1 Données d''entrée'!$C$333+'1 Données d''entrée'!$C$334+1+$B483,($C480/'1 Données d''entrée'!$C$333),0))","v":0},{"$f":"IF(O430<'1 Données d''entrée'!$C$334+1+$B483,0,IF(O430<'1 Données d''entrée'!$C$333+'1 Données d''entrée'!$C$334+1+$B483,($C480/'1 Données d''entrée'!$C$333),0))","v":0},{"$f":"IF(P430<'1 Données d''entrée'!$C$334+1+$B483,0,IF(P430<'1 Données d''entrée'!$C$333+'1 Données d''entrée'!$C$334+1+$B483,($C480/'1 Données d''entrée'!$C$333),0))","v":0},{"$f":"IF(Q430<'1 Données d''entrée'!$C$334+1+$B483,0,IF(Q430<'1 Données d''entrée'!$C$333+'1 Données d''entrée'!$C$334+1+$B483,($C480/'1 Données d''entrée'!$C$333),0))","v":0},{"$f":"IF(R430<'1 Données d''entrée'!$C$334+1+$B483,0,IF(R430<'1 Données d''entrée'!$C$333+'1 Données d''entrée'!$C$334+1+$B483,($C480/'1 Données d''entrée'!$C$333),0))","v":0},{"$f":"IF(S430<'1 Données d''entrée'!$C$334+1+$B483,0,IF(S430<'1 Données d''entrée'!$C$333+'1 Données d''entrée'!$C$334+1+$B483,($C480/'1 Données d''entrée'!$C$333),0))","v":0},{"$f":"IF(T430<'1 Données d''entrée'!$C$334+1+$B483,0,IF(T430<'1 Données d''entrée'!$C$333+'1 Données d''entrée'!$C$334+1+$B483,($C480/'1 Données d''entrée'!$C$333),0))","v":0},{"$f":"IF(U430<'1 Données d''entrée'!$C$334+1+$B483,0,IF(U430<'1 Données d''entrée'!$C$333+'1 Données d''entrée'!$C$334+1+$B483,($C480/'1 Données d''entrée'!$C$333),0))","v":0},{"$f":"IF(V430<'1 Données d''entrée'!$C$334+1+$B483,0,IF(V430<'1 Données d''entrée'!$C$333+'1 Données d''entrée'!$C$334+1+$B483,($C480/'1 Données d''entrée'!$C$333),0))","v":0}]
[null,2,{"$f":"IF(C430<'1 Données d''entrée'!$C$334+1+$B484,0,IF(C430<'1 Données d''entrée'!$C$333+'1 Données d''entrée'!$C$334+1+$B484,($D480/'1 Données d''entrée'!$C$333),0))","v":0},{"$f":"IF(D430<'1 Données d''entrée'!$C$334+1+$B484,0,IF(D430<'1 Données d''entrée'!$C$333+'1 Données d''entrée'!$C$334+1+$B484,($D480/'1 Données d''entrée'!$C$333),0))","v":0},{"$f":"IF(E430<'1 Données d''entrée'!$C$334+1+$B484,0,IF(E430<'1 Données d''entrée'!$C$333+'1 Données d''entrée'!$C$334+1+$B484,($D480/'1 Données d''entrée'!$C$333),0))","v":0},{"$f":"IF(F430<'1 Données d''entrée'!$C$334+1+$B484,0,IF(F430<'1 Données d''entrée'!$C$333+'1 Données d''entrée'!$C$334+1+$B484,($D480/'1 Données d''entrée'!$C$333),0))","v":0},{"$f":"IF(G430<'1 Données d''entrée'!$C$334+1+$B484,0,IF(G430<'1 Données d''entrée'!$C$333+'1 Données d''entrée'!$C$334+1+$B484,($D480/'1 Données d''entrée'!$C$333),0))","v":0},{"$f":"IF(H430<'1 Données d''entrée'!$C$334+1+$B484,0,IF(H430<'1 Données d''entrée'!$C$333+'1 Données d''entrée'!$C$334+1+$B484,($D480/'1 Données d''entrée'!$C$333),0))","v":0},{"$f":"IF(I430<'1 Données d''entrée'!$C$334+1+$B484,0,IF(I430<'1 Données d''entrée'!$C$333+'1 Données d''entrée'!$C$334+1+$B484,($D480/'1 Données d''entrée'!$C$333),0))","v":0},{"$f":"IF(J430<'1 Données d''entrée'!$C$334+1+$B484,0,IF(J430<'1 Données d''entrée'!$C$333+'1 Données d''entrée'!$C$334+1+$B484,($D480/'1 Données d''entrée'!$C$333),0))","v":0},{"$f":"IF(K430<'1 Données d''entrée'!$C$334+1+$B484,0,IF(K430<'1 Données d''entrée'!$C$333+'1 Données d''entrée'!$C$334+1+$B484,($D480/'1 Données d''entrée'!$C$333),0))","v":0},{"$f":"IF(L430<'1 Données d''entrée'!$C$334+1+$B484,0,IF(L430<'1 Données d''entrée'!$C$333+'1 Données d''entrée'!$C$334+1+$B484,($D480/'1 Données d''entrée'!$C$333),0))","v":0},{"$f":"IF(M430<'1 Données d''entrée'!$C$334+1+$B484,0,IF(M430<'1 Données d''entrée'!$C$333+'1 Données d''entrée'!$C$334+1+$B484,($D480/'1 Données d''entrée'!$C$333),0))","v":0},{"$f":"IF(N430<'1 Données d''entrée'!$C$334+1+$B484,0,IF(N430<'1 Données d''entrée'!$C$333+'1 Données d''entrée'!$C$334+1+$B484,($D480/'1 Données d''entrée'!$C$333),0))","v":0},{"$f":"IF(O430<'1 Données d''entrée'!$C$334+1+$B484,0,IF(O430<'1 Données d''entrée'!$C$333+'1 Données d''entrée'!$C$334+1+$B484,($D480/'1 Données d''entrée'!$C$333),0))","v":0},{"$f":"IF(P430<'1 Données d''entrée'!$C$334+1+$B484,0,IF(P430<'1 Données d''entrée'!$C$333+'1 Données d''entrée'!$C$334+1+$B484,($D480/'1 Données d''entrée'!$C$333),0))","v":0},{"$f":"IF(Q430<'1 Données d''entrée'!$C$334+1+$B484,0,IF(Q430<'1 Données d''entrée'!$C$333+'1 Données d''entrée'!$C$334+1+$B484,($D480/'1 Données d''entrée'!$C$333),0))","v":0},{"$f":"IF(R430<'1 Données d''entrée'!$C$334+1+$B484,0,IF(R430<'1 Données d''entrée'!$C$333+'1 Données d''entrée'!$C$334+1+$B484,($D480/'1 Données d''entrée'!$C$333),0))","v":0},{"$f":"IF(S430<'1 Données d''entrée'!$C$334+1+$B484,0,IF(S430<'1 Données d''entrée'!$C$333+'1 Données d''entrée'!$C$334+1+$B484,($D480/'1 Données d''entrée'!$C$333),0))","v":0},{"$f":"IF(T430<'1 Données d''entrée'!$C$334+1+$B484,0,IF(T430<'1 Données d''entrée'!$C$333+'1 Données d''entrée'!$C$334+1+$B484,($D480/'1 Données d''entrée'!$C$333),0))","v":0},{"$f":"IF(U430<'1 Données d''entrée'!$C$334+1+$B484,0,IF(U430<'1 Données d''entrée'!$C$333+'1 Données d''entrée'!$C$334+1+$B484,($D480/'1 Données d''entrée'!$C$333),0))","v":0},{"$f":"IF(V430<'1 Données d''entrée'!$C$334+1+$B484,0,IF(V430<'1 Données d''entrée'!$C$333+'1 Données d''entrée'!$C$334+1+$B484,($D480/'1 Données d''entrée'!$C$333),0))","v":0}]
[null,3,{"$f":"IF(C430<'1 Données d''entrée'!$C$334+1+$B485,0,IF(C430<'1 Données d''entrée'!$C$333+'1 Données d''entrée'!$C$334+1+$B485,($E480/'1 Données d''entrée'!$C$333),0))","v":0},{"$f":"IF(D430<'1 Données d''entrée'!$C$334+1+$B485,0,IF(D430<'1 Données d''entrée'!$C$333+'1 Données d''entrée'!$C$334+1+$B485,($E480/'1 Données d''entrée'!$C$333),0))","v":0},{"$f":"IF(E430<'1 Données d''entrée'!$C$334+1+$B485,0,IF(E430<'1 Données d''entrée'!$C$333+'1 Données d''entrée'!$C$334+1+$B485,($E480/'1 Données d''entrée'!$C$333),0))","v":0},{"$f":"IF(F430<'1 Données d''entrée'!$C$334+1+$B485,0,IF(F430<'1 Données d''entrée'!$C$333+'1 Données d''entrée'!$C$334+1+$B485,($E480/'1 Données d''entrée'!$C$333),0))","v":0},{"$f":"IF(G430<'1 Données d''entrée'!$C$334+1+$B485,0,IF(G430<'1 Données d''entrée'!$C$333+'1 Données d''entrée'!$C$334+1+$B485,($E480/'1 Données d''entrée'!$C$333),0))","v":0},{"$f":"IF(H430<'1 Données d''entrée'!$C$334+1+$B485,0,IF(H430<'1 Données d''entrée'!$C$333+'1 Données d''entrée'!$C$334+1+$B485,($E480/'1 Données d''entrée'!$C$333),0))","v":0},{"$f":"IF(I430<'1 Données d''entrée'!$C$334+1+$B485,0,IF(I430<'1 Données d''entrée'!$C$333+'1 Données d''entrée'!$C$334+1+$B485,($E480/'1 Données d''entrée'!$C$333),0))","v":0},{"$f":"IF(J430<'1 Données d''entrée'!$C$334+1+$B485,0,IF(J430<'1 Données d''entrée'!$C$333+'1 Données d''entrée'!$C$334+1+$B485,($E480/'1 Données d''entrée'!$C$333),0))","v":0},{"$f":"IF(K430<'1 Données d''entrée'!$C$334+1+$B485,0,IF(K430<'1 Données d''entrée'!$C$333+'1 Données d''entrée'!$C$334+1+$B485,($E480/'1 Données d''entrée'!$C$333),0))","v":0},{"$f":"IF(L430<'1 Données d''entrée'!$C$334+1+$B485,0,IF(L430<'1 Données d''entrée'!$C$333+'1 Données d''entrée'!$C$334+1+$B485,($E480/'1 Données d''entrée'!$C$333),0))","v":0},{"$f":"IF(M430<'1 Données d''entrée'!$C$334+1+$B485,0,IF(M430<'1 Données d''entrée'!$C$333+'1 Données d''entrée'!$C$334+1+$B485,($E480/'1 Données d''entrée'!$C$333),0))","v":0},{"$f":"IF(N430<'1 Données d''entrée'!$C$334+1+$B485,0,IF(N430<'1 Données d''entrée'!$C$333+'1 Données d''entrée'!$C$334+1+$B485,($E480/'1 Données d''entrée'!$C$333),0))","v":0},{"$f":"IF(O430<'1 Données d''entrée'!$C$334+1+$B485,0,IF(O430<'1 Données d''entrée'!$C$333+'1 Données d''entrée'!$C$334+1+$B485,($E480/'1 Données d''entrée'!$C$333),0))","v":0},{"$f":"IF(P430<'1 Données d''entrée'!$C$334+1+$B485,0,IF(P430<'1 Données d''entrée'!$C$333+'1 Données d''entrée'!$C$334+1+$B485,($E480/'1 Données d''entrée'!$C$333),0))","v":0},{"$f":"IF(Q430<'1 Données d''entrée'!$C$334+1+$B485,0,IF(Q430<'1 Données d''entrée'!$C$333+'1 Données d''entrée'!$C$334+1+$B485,($E480/'1 Données d''entrée'!$C$333),0))","v":0},{"$f":"IF(R430<'1 Données d''entrée'!$C$334+1+$B485,0,IF(R430<'1 Données d''entrée'!$C$333+'1 Données d''entrée'!$C$334+1+$B485,($E480/'1 Données d''entrée'!$C$333),0))","v":0},{"$f":"IF(S430<'1 Données d''entrée'!$C$334+1+$B485,0,IF(S430<'1 Données d''entrée'!$C$333+'1 Données d''entrée'!$C$334+1+$B485,($E480/'1 Données d''entrée'!$C$333),0))","v":0},{"$f":"IF(T430<'1 Données d''entrée'!$C$334+1+$B485,0,IF(T430<'1 Données d''entrée'!$C$333+'1 Données d''entrée'!$C$334+1+$B485,($E480/'1 Données d''entrée'!$C$333),0))","v":0},{"$f":"IF(U430<'1 Données d''entrée'!$C$334+1+$B485,0,IF(U430<'1 Données d''entrée'!$C$333+'1 Données d''entrée'!$C$334+1+$B485,($E480/'1 Données d''entrée'!$C$333),0))","v":0},{"$f":"IF(V430<'1 Données d''entrée'!$C$334+1+$B485,0,IF(V430<'1 Données d''entrée'!$C$333+'1 Données d''entrée'!$C$334+1+$B485,($E480/'1 Données d''entrée'!$C$333),0))","v":0}]
[null,4,{"$f":"IF(C430<'1 Données d''entrée'!$C$334+1+$B486,0,IF(C430<'1 Données d''entrée'!$C$333+'1 Données d''entrée'!$C$334+1+$B486,($F480/'1 Données d''entrée'!$C$333),0))","v":0},{"$f":"IF(D430<'1 Données d''entrée'!$C$334+1+$B486,0,IF(D430<'1 Données d''entrée'!$C$333+'1 Données d''entrée'!$C$334+1+$B486,($F480/'1 Données d''entrée'!$C$333),0))","v":0},{"$f":"IF(E430<'1 Données d''entrée'!$C$334+1+$B486,0,IF(E430<'1 Données d''entrée'!$C$333+'1 Données d''entrée'!$C$334+1+$B486,($F480/'1 Données d''entrée'!$C$333),0))","v":0},{"$f":"IF(F430<'1 Données d''entrée'!$C$334+1+$B486,0,IF(F430<'1 Données d''entrée'!$C$333+'1 Données d''entrée'!$C$334+1+$B486,($F480/'1 Données d''entrée'!$C$333),0))","v":0},{"$f":"IF(G430<'1 Données d''entrée'!$C$334+1+$B486,0,IF(G430<'1 Données d''entrée'!$C$333+'1 Données d''entrée'!$C$334+1+$B486,($F480/'1 Données d''entrée'!$C$333),0))","v":0},{"$f":"IF(H430<'1 Données d''entrée'!$C$334+1+$B486,0,IF(H430<'1 Données d''entrée'!$C$333+'1 Données d''entrée'!$C$334+1+$B486,($F480/'1 Données d''entrée'!$C$333),0))","v":0},{"$f":"IF(I430<'1 Données d''entrée'!$C$334+1+$B486,0,IF(I430<'1 Données d''entrée'!$C$333+'1 Données d''entrée'!$C$334+1+$B486,($F480/'1 Données d''entrée'!$C$333),0))","v":0},{"$f":"IF(J430<'1 Données d''entrée'!$C$334+1+$B486,0,IF(J430<'1 Données d''entrée'!$C$333+'1 Données d''entrée'!$C$334+1+$B486,($F480/'1 Données d''entrée'!$C$333),0))","v":0},{"$f":"IF(K430<'1 Données d''entrée'!$C$334+1+$B486,0,IF(K430<'1 Données d''entrée'!$C$333+'1 Données d''entrée'!$C$334+1+$B486,($F480/'1 Données d''entrée'!$C$333),0))","v":0},{"$f":"IF(L430<'1 Données d''entrée'!$C$334+1+$B486,0,IF(L430<'1 Données d''entrée'!$C$333+'1 Données d''entrée'!$C$334+1+$B486,($F480/'1 Données d''entrée'!$C$333),0))","v":0},{"$f":"IF(M430<'1 Données d''entrée'!$C$334+1+$B486,0,IF(M430<'1 Données d''entrée'!$C$333+'1 Données d''entrée'!$C$334+1+$B486,($F480/'1 Données d''entrée'!$C$333),0))","v":0},{"$f":"IF(N430<'1 Données d''entrée'!$C$334+1+$B486,0,IF(N430<'1 Données d''entrée'!$C$333+'1 Données d''entrée'!$C$334+1+$B486,($F480/'1 Données d''entrée'!$C$333),0))","v":0},{"$f":"IF(O430<'1 Données d''entrée'!$C$334+1+$B486,0,IF(O430<'1 Données d''entrée'!$C$333+'1 Données d''entrée'!$C$334+1+$B486,($F480/'1 Données d''entrée'!$C$333),0))","v":0},{"$f":"IF(P430<'1 Données d''entrée'!$C$334+1+$B486,0,IF(P430<'1 Données d''entrée'!$C$333+'1 Données d''entrée'!$C$334+1+$B486,($F480/'1 Données d''entrée'!$C$333),0))","v":0},{"$f":"IF(Q430<'1 Données d''entrée'!$C$334+1+$B486,0,IF(Q430<'1 Données d''entrée'!$C$333+'1 Données d''entrée'!$C$334+1+$B486,($F480/'1 Données d''entrée'!$C$333),0))","v":0},{"$f":"IF(R430<'1 Données d''entrée'!$C$334+1+$B486,0,IF(R430<'1 Données d''entrée'!$C$333+'1 Données d''entrée'!$C$334+1+$B486,($F480/'1 Données d''entrée'!$C$333),0))","v":0},{"$f":"IF(S430<'1 Données d''entrée'!$C$334+1+$B486,0,IF(S430<'1 Données d''entrée'!$C$333+'1 Données d''entrée'!$C$334+1+$B486,($F480/'1 Données d''entrée'!$C$333),0))","v":0},{"$f":"IF(T430<'1 Données d''entrée'!$C$334+1+$B486,0,IF(T430<'1 Données d''entrée'!$C$333+'1 Données d''entrée'!$C$334+1+$B486,($F480/'1 Données d''entrée'!$C$333),0))","v":0},{"$f":"IF(U430<'1 Données d''entrée'!$C$334+1+$B486,0,IF(U430<'1 Données d''entrée'!$C$333+'1 Données d''entrée'!$C$334+1+$B486,($F480/'1 Données d''entrée'!$C$333),0))","v":0},{"$f":"IF(V430<'1 Données d''entrée'!$C$334+1+$B486,0,IF(V430<'1 Données d''entrée'!$C$333+'1 Données d''entrée'!$C$334+1+$B486,($F480/'1 Données d''entrée'!$C$333),0))","v":0}]
[null,5,{"$f":"IF(C430<'1 Données d''entrée'!$C$334+1+$B487,0,IF(C430<'1 Données d''entrée'!$C$333+'1 Données d''entrée'!$C$334+1+$B487,($G480/'1 Données d''entrée'!$C$333),0))","v":0},{"$f":"IF(D430<'1 Données d''entrée'!$C$334+1+$B487,0,IF(D430<'1 Données d''entrée'!$C$333+'1 Données d''entrée'!$C$334+1+$B487,($G480/'1 Données d''entrée'!$C$333),0))","v":0},{"$f":"IF(E430<'1 Données d''entrée'!$C$334+1+$B487,0,IF(E430<'1 Données d''entrée'!$C$333+'1 Données d''entrée'!$C$334+1+$B487,($G480/'1 Données d''entrée'!$C$333),0))","v":0},{"$f":"IF(F430<'1 Données d''entrée'!$C$334+1+$B487,0,IF(F430<'1 Données d''entrée'!$C$333+'1 Données d''entrée'!$C$334+1+$B487,($G480/'1 Données d''entrée'!$C$333),0))","v":0},{"$f":"IF(G430<'1 Données d''entrée'!$C$334+1+$B487,0,IF(G430<'1 Données d''entrée'!$C$333+'1 Données d''entrée'!$C$334+1+$B487,($G480/'1 Données d''entrée'!$C$333),0))","v":0},{"$f":"IF(H430<'1 Données d''entrée'!$C$334+1+$B487,0,IF(H430<'1 Données d''entrée'!$C$333+'1 Données d''entrée'!$C$334+1+$B487,($G480/'1 Données d''entrée'!$C$333),0))","v":0},{"$f":"IF(I430<'1 Données d''entrée'!$C$334+1+$B487,0,IF(I430<'1 Données d''entrée'!$C$333+'1 Données d''entrée'!$C$334+1+$B487,($G480/'1 Données d''entrée'!$C$333),0))","v":0},{"$f":"IF(J430<'1 Données d''entrée'!$C$334+1+$B487,0,IF(J430<'1 Données d''entrée'!$C$333+'1 Données d''entrée'!$C$334+1+$B487,($G480/'1 Données d''entrée'!$C$333),0))","v":0},{"$f":"IF(K430<'1 Données d''entrée'!$C$334+1+$B487,0,IF(K430<'1 Données d''entrée'!$C$333+'1 Données d''entrée'!$C$334+1+$B487,($G480/'1 Données d''entrée'!$C$333),0))","v":0},{"$f":"IF(L430<'1 Données d''entrée'!$C$334+1+$B487,0,IF(L430<'1 Données d''entrée'!$C$333+'1 Données d''entrée'!$C$334+1+$B487,($G480/'1 Données d''entrée'!$C$333),0))","v":0},{"$f":"IF(M430<'1 Données d''entrée'!$C$334+1+$B487,0,IF(M430<'1 Données d''entrée'!$C$333+'1 Données d''entrée'!$C$334+1+$B487,($G480/'1 Données d''entrée'!$C$333),0))","v":0},{"$f":"IF(N430<'1 Données d''entrée'!$C$334+1+$B487,0,IF(N430<'1 Données d''entrée'!$C$333+'1 Données d''entrée'!$C$334+1+$B487,($G480/'1 Données d''entrée'!$C$333),0))","v":0},{"$f":"IF(O430<'1 Données d''entrée'!$C$334+1+$B487,0,IF(O430<'1 Données d''entrée'!$C$333+'1 Données d''entrée'!$C$334+1+$B487,($G480/'1 Données d''entrée'!$C$333),0))","v":0},{"$f":"IF(P430<'1 Données d''entrée'!$C$334+1+$B487,0,IF(P430<'1 Données d''entrée'!$C$333+'1 Données d''entrée'!$C$334+1+$B487,($G480/'1 Données d''entrée'!$C$333),0))","v":0},{"$f":"IF(Q430<'1 Données d''entrée'!$C$334+1+$B487,0,IF(Q430<'1 Données d''entrée'!$C$333+'1 Données d''entrée'!$C$334+1+$B487,($G480/'1 Données d''entrée'!$C$333),0))","v":0},{"$f":"IF(R430<'1 Données d''entrée'!$C$334+1+$B487,0,IF(R430<'1 Données d''entrée'!$C$333+'1 Données d''entrée'!$C$334+1+$B487,($G480/'1 Données d''entrée'!$C$333),0))","v":0},{"$f":"IF(S430<'1 Données d''entrée'!$C$334+1+$B487,0,IF(S430<'1 Données d''entrée'!$C$333+'1 Données d''entrée'!$C$334+1+$B487,($G480/'1 Données d''entrée'!$C$333),0))","v":0},{"$f":"IF(T430<'1 Données d''entrée'!$C$334+1+$B487,0,IF(T430<'1 Données d''entrée'!$C$333+'1 Données d''entrée'!$C$334+1+$B487,($G480/'1 Données d''entrée'!$C$333),0))","v":0},{"$f":"IF(U430<'1 Données d''entrée'!$C$334+1+$B487,0,IF(U430<'1 Données d''entrée'!$C$333+'1 Données d''entrée'!$C$334+1+$B487,($G480/'1 Données d''entrée'!$C$333),0))","v":0},{"$f":"IF(V430<'1 Données d''entrée'!$C$334+1+$B487,0,IF(V430<'1 Données d''entrée'!$C$333+'1 Données d''entrée'!$C$334+1+$B487,($G480/'1 Données d''entrée'!$C$333),0))","v":0}]
[null,6,{"$f":"IF(C430<'1 Données d''entrée'!$C$334+1+$B488,0,IF(C430<'1 Données d''entrée'!$C$333+'1 Données d''entrée'!$C$334+1+$B488,($H480/'1 Données d''entrée'!$C$333),0))","v":0},{"$f":"IF(D430<'1 Données d''entrée'!$C$334+1+$B488,0,IF(D430<'1 Données d''entrée'!$C$333+'1 Données d''entrée'!$C$334+1+$B488,($H480/'1 Données d''entrée'!$C$333),0))","v":0},{"$f":"IF(E430<'1 Données d''entrée'!$C$334+1+$B488,0,IF(E430<'1 Données d''entrée'!$C$333+'1 Données d''entrée'!$C$334+1+$B488,($H480/'1 Données d''entrée'!$C$333),0))","v":0},{"$f":"IF(F430<'1 Données d''entrée'!$C$334+1+$B488,0,IF(F430<'1 Données d''entrée'!$C$333+'1 Données d''entrée'!$C$334+1+$B488,($H480/'1 Données d''entrée'!$C$333),0))","v":0},{"$f":"IF(G430<'1 Données d''entrée'!$C$334+1+$B488,0,IF(G430<'1 Données d''entrée'!$C$333+'1 Données d''entrée'!$C$334+1+$B488,($H480/'1 Données d''entrée'!$C$333),0))","v":0},{"$f":"IF(H430<'1 Données d''entrée'!$C$334+1+$B488,0,IF(H430<'1 Données d''entrée'!$C$333+'1 Données d''entrée'!$C$334+1+$B488,($H480/'1 Données d''entrée'!$C$333),0))","v":0},{"$f":"IF(I430<'1 Données d''entrée'!$C$334+1+$B488,0,IF(I430<'1 Données d''entrée'!$C$333+'1 Données d''entrée'!$C$334+1+$B488,($H480/'1 Données d''entrée'!$C$333),0))","v":0},{"$f":"IF(J430<'1 Données d''entrée'!$C$334+1+$B488,0,IF(J430<'1 Données d''entrée'!$C$333+'1 Données d''entrée'!$C$334+1+$B488,($H480/'1 Données d''entrée'!$C$333),0))","v":0},{"$f":"IF(K430<'1 Données d''entrée'!$C$334+1+$B488,0,IF(K430<'1 Données d''entrée'!$C$333+'1 Données d''entrée'!$C$334+1+$B488,($H480/'1 Données d''entrée'!$C$333),0))","v":0},{"$f":"IF(L430<'1 Données d''entrée'!$C$334+1+$B488,0,IF(L430<'1 Données d''entrée'!$C$333+'1 Données d''entrée'!$C$334+1+$B488,($H480/'1 Données d''entrée'!$C$333),0))","v":0},{"$f":"IF(M430<'1 Données d''entrée'!$C$334+1+$B488,0,IF(M430<'1 Données d''entrée'!$C$333+'1 Données d''entrée'!$C$334+1+$B488,($H480/'1 Données d''entrée'!$C$333),0))","v":0},{"$f":"IF(N430<'1 Données d''entrée'!$C$334+1+$B488,0,IF(N430<'1 Données d''entrée'!$C$333+'1 Données d''entrée'!$C$334+1+$B488,($H480/'1 Données d''entrée'!$C$333),0))","v":0},{"$f":"IF(O430<'1 Données d''entrée'!$C$334+1+$B488,0,IF(O430<'1 Données d''entrée'!$C$333+'1 Données d''entrée'!$C$334+1+$B488,($H480/'1 Données d''entrée'!$C$333),0))","v":0},{"$f":"IF(P430<'1 Données d''entrée'!$C$334+1+$B488,0,IF(P430<'1 Données d''entrée'!$C$333+'1 Données d''entrée'!$C$334+1+$B488,($H480/'1 Données d''entrée'!$C$333),0))","v":0},{"$f":"IF(Q430<'1 Données d''entrée'!$C$334+1+$B488,0,IF(Q430<'1 Données d''entrée'!$C$333+'1 Données d''entrée'!$C$334+1+$B488,($H480/'1 Données d''entrée'!$C$333),0))","v":0},{"$f":"IF(R430<'1 Données d''entrée'!$C$334+1+$B488,0,IF(R430<'1 Données d''entrée'!$C$333+'1 Données d''entrée'!$C$334+1+$B488,($H480/'1 Données d''entrée'!$C$333),0))","v":0},{"$f":"IF(S430<'1 Données d''entrée'!$C$334+1+$B488,0,IF(S430<'1 Données d''entrée'!$C$333+'1 Données d''entrée'!$C$334+1+$B488,($H480/'1 Données d''entrée'!$C$333),0))","v":0},{"$f":"IF(T430<'1 Données d''entrée'!$C$334+1+$B488,0,IF(T430<'1 Données d''entrée'!$C$333+'1 Données d''entrée'!$C$334+1+$B488,($H480/'1 Données d''entrée'!$C$333),0))","v":0},{"$f":"IF(U430<'1 Données d''entrée'!$C$334+1+$B488,0,IF(U430<'1 Données d''entrée'!$C$333+'1 Données d''entrée'!$C$334+1+$B488,($H480/'1 Données d''entrée'!$C$333),0))","v":0},{"$f":"IF(V430<'1 Données d''entrée'!$C$334+1+$B488,0,IF(V430<'1 Données d''entrée'!$C$333+'1 Données d''entrée'!$C$334+1+$B488,($H480/'1 Données d''entrée'!$C$333),0))","v":0}]
[null,7,{"$f":"IF(C430<'1 Données d''entrée'!$C$334+1+$B489,0,IF(C430<'1 Données d''entrée'!$C$333+'1 Données d''entrée'!$C$334+1+$B489,($I480/'1 Données d''entrée'!$C$333),0))","v":0},{"$f":"IF(D430<'1 Données d''entrée'!$C$334+1+$B489,0,IF(D430<'1 Données d''entrée'!$C$333+'1 Données d''entrée'!$C$334+1+$B489,($I480/'1 Données d''entrée'!$C$333),0))","v":0},{"$f":"IF(E430<'1 Données d''entrée'!$C$334+1+$B489,0,IF(E430<'1 Données d''entrée'!$C$333+'1 Données d''entrée'!$C$334+1+$B489,($I480/'1 Données d''entrée'!$C$333),0))","v":0},{"$f":"IF(F430<'1 Données d''entrée'!$C$334+1+$B489,0,IF(F430<'1 Données d''entrée'!$C$333+'1 Données d''entrée'!$C$334+1+$B489,($I480/'1 Données d''entrée'!$C$333),0))","v":0},{"$f":"IF(G430<'1 Données d''entrée'!$C$334+1+$B489,0,IF(G430<'1 Données d''entrée'!$C$333+'1 Données d''entrée'!$C$334+1+$B489,($I480/'1 Données d''entrée'!$C$333),0))","v":0},{"$f":"IF(H430<'1 Données d''entrée'!$C$334+1+$B489,0,IF(H430<'1 Données d''entrée'!$C$333+'1 Données d''entrée'!$C$334+1+$B489,($I480/'1 Données d''entrée'!$C$333),0))","v":0},{"$f":"IF(I430<'1 Données d''entrée'!$C$334+1+$B489,0,IF(I430<'1 Données d''entrée'!$C$333+'1 Données d''entrée'!$C$334+1+$B489,($I480/'1 Données d''entrée'!$C$333),0))","v":0},{"$f":"IF(J430<'1 Données d''entrée'!$C$334+1+$B489,0,IF(J430<'1 Données d''entrée'!$C$333+'1 Données d''entrée'!$C$334+1+$B489,($I480/'1 Données d''entrée'!$C$333),0))","v":0},{"$f":"IF(K430<'1 Données d''entrée'!$C$334+1+$B489,0,IF(K430<'1 Données d''entrée'!$C$333+'1 Données d''entrée'!$C$334+1+$B489,($I480/'1 Données d''entrée'!$C$333),0))","v":0},{"$f":"IF(L430<'1 Données d''entrée'!$C$334+1+$B489,0,IF(L430<'1 Données d''entrée'!$C$333+'1 Données d''entrée'!$C$334+1+$B489,($I480/'1 Données d''entrée'!$C$333),0))","v":0},{"$f":"IF(M430<'1 Données d''entrée'!$C$334+1+$B489,0,IF(M430<'1 Données d''entrée'!$C$333+'1 Données d''entrée'!$C$334+1+$B489,($I480/'1 Données d''entrée'!$C$333),0))","v":0},{"$f":"IF(N430<'1 Données d''entrée'!$C$334+1+$B489,0,IF(N430<'1 Données d''entrée'!$C$333+'1 Données d''entrée'!$C$334+1+$B489,($I480/'1 Données d''entrée'!$C$333),0))","v":0},{"$f":"IF(O430<'1 Données d''entrée'!$C$334+1+$B489,0,IF(O430<'1 Données d''entrée'!$C$333+'1 Données d''entrée'!$C$334+1+$B489,($I480/'1 Données d''entrée'!$C$333),0))","v":0},{"$f":"IF(P430<'1 Données d''entrée'!$C$334+1+$B489,0,IF(P430<'1 Données d''entrée'!$C$333+'1 Données d''entrée'!$C$334+1+$B489,($I480/'1 Données d''entrée'!$C$333),0))","v":0},{"$f":"IF(Q430<'1 Données d''entrée'!$C$334+1+$B489,0,IF(Q430<'1 Données d''entrée'!$C$333+'1 Données d''entrée'!$C$334+1+$B489,($I480/'1 Données d''entrée'!$C$333),0))","v":0},{"$f":"IF(R430<'1 Données d''entrée'!$C$334+1+$B489,0,IF(R430<'1 Données d''entrée'!$C$333+'1 Données d''entrée'!$C$334+1+$B489,($I480/'1 Données d''entrée'!$C$333),0))","v":0},{"$f":"IF(S430<'1 Données d''entrée'!$C$334+1+$B489,0,IF(S430<'1 Données d''entrée'!$C$333+'1 Données d''entrée'!$C$334+1+$B489,($I480/'1 Données d''entrée'!$C$333),0))","v":0},{"$f":"IF(T430<'1 Données d''entrée'!$C$334+1+$B489,0,IF(T430<'1 Données d''entrée'!$C$333+'1 Données d''entrée'!$C$334+1+$B489,($I480/'1 Données d''entrée'!$C$333),0))","v":0},{"$f":"IF(U430<'1 Données d''entrée'!$C$334+1+$B489,0,IF(U430<'1 Données d''entrée'!$C$333+'1 Données d''entrée'!$C$334+1+$B489,($I480/'1 Données d''entrée'!$C$333),0))","v":0},{"$f":"IF(V430<'1 Données d''entrée'!$C$334+1+$B489,0,IF(V430<'1 Données d''entrée'!$C$333+'1 Données d''entrée'!$C$334+1+$B489,($I480/'1 Données d''entrée'!$C$333),0))","v":0}]
[null,8,{"$f":"IF(C430<'1 Données d''entrée'!$C$334+1+$B490,0,IF(C430<'1 Données d''entrée'!$C$333+'1 Données d''entrée'!$C$334+1+$B490,($J480/'1 Données d''entrée'!$C$333),0))","v":0},{"$f":"IF(D430<'1 Données d''entrée'!$C$334+1+$B490,0,IF(D430<'1 Données d''entrée'!$C$333+'1 Données d''entrée'!$C$334+1+$B490,($J480/'1 Données d''entrée'!$C$333),0))","v":0},{"$f":"IF(E430<'1 Données d''entrée'!$C$334+1+$B490,0,IF(E430<'1 Données d''entrée'!$C$333+'1 Données d''entrée'!$C$334+1+$B490,($J480/'1 Données d''entrée'!$C$333),0))","v":0},{"$f":"IF(F430<'1 Données d''entrée'!$C$334+1+$B490,0,IF(F430<'1 Données d''entrée'!$C$333+'1 Données d''entrée'!$C$334+1+$B490,($J480/'1 Données d''entrée'!$C$333),0))","v":0},{"$f":"IF(G430<'1 Données d''entrée'!$C$334+1+$B490,0,IF(G430<'1 Données d''entrée'!$C$333+'1 Données d''entrée'!$C$334+1+$B490,($J480/'1 Données d''entrée'!$C$333),0))","v":0},{"$f":"IF(H430<'1 Données d''entrée'!$C$334+1+$B490,0,IF(H430<'1 Données d''entrée'!$C$333+'1 Données d''entrée'!$C$334+1+$B490,($J480/'1 Données d''entrée'!$C$333),0))","v":0},{"$f":"IF(I430<'1 Données d''entrée'!$C$334+1+$B490,0,IF(I430<'1 Données d''entrée'!$C$333+'1 Données d''entrée'!$C$334+1+$B490,($J480/'1 Données d''entrée'!$C$333),0))","v":0},{"$f":"IF(J430<'1 Données d''entrée'!$C$334+1+$B490,0,IF(J430<'1 Données d''entrée'!$C$333+'1 Données d''entrée'!$C$334+1+$B490,($J480/'1 Données d''entrée'!$C$333),0))","v":0},{"$f":"IF(K430<'1 Données d''entrée'!$C$334+1+$B490,0,IF(K430<'1 Données d''entrée'!$C$333+'1 Données d''entrée'!$C$334+1+$B490,($J480/'1 Données d''entrée'!$C$333),0))","v":0},{"$f":"IF(L430<'1 Données d''entrée'!$C$334+1+$B490,0,IF(L430<'1 Données d''entrée'!$C$333+'1 Données d''entrée'!$C$334+1+$B490,($J480/'1 Données d''entrée'!$C$333),0))","v":0},{"$f":"IF(M430<'1 Données d''entrée'!$C$334+1+$B490,0,IF(M430<'1 Données d''entrée'!$C$333+'1 Données d''entrée'!$C$334+1+$B490,($J480/'1 Données d''entrée'!$C$333),0))","v":0},{"$f":"IF(N430<'1 Données d''entrée'!$C$334+1+$B490,0,IF(N430<'1 Données d''entrée'!$C$333+'1 Données d''entrée'!$C$334+1+$B490,($J480/'1 Données d''entrée'!$C$333),0))","v":0},{"$f":"IF(O430<'1 Données d''entrée'!$C$334+1+$B490,0,IF(O430<'1 Données d''entrée'!$C$333+'1 Données d''entrée'!$C$334+1+$B490,($J480/'1 Données d''entrée'!$C$333),0))","v":0},{"$f":"IF(P430<'1 Données d''entrée'!$C$334+1+$B490,0,IF(P430<'1 Données d''entrée'!$C$333+'1 Données d''entrée'!$C$334+1+$B490,($J480/'1 Données d''entrée'!$C$333),0))","v":0},{"$f":"IF(Q430<'1 Données d''entrée'!$C$334+1+$B490,0,IF(Q430<'1 Données d''entrée'!$C$333+'1 Données d''entrée'!$C$334+1+$B490,($J480/'1 Données d''entrée'!$C$333),0))","v":0},{"$f":"IF(R430<'1 Données d''entrée'!$C$334+1+$B490,0,IF(R430<'1 Données d''entrée'!$C$333+'1 Données d''entrée'!$C$334+1+$B490,($J480/'1 Données d''entrée'!$C$333),0))","v":0},{"$f":"IF(S430<'1 Données d''entrée'!$C$334+1+$B490,0,IF(S430<'1 Données d''entrée'!$C$333+'1 Données d''entrée'!$C$334+1+$B490,($J480/'1 Données d''entrée'!$C$333),0))","v":0},{"$f":"IF(T430<'1 Données d''entrée'!$C$334+1+$B490,0,IF(T430<'1 Données d''entrée'!$C$333+'1 Données d''entrée'!$C$334+1+$B490,($J480/'1 Données d''entrée'!$C$333),0))","v":0},{"$f":"IF(U430<'1 Données d''entrée'!$C$334+1+$B490,0,IF(U430<'1 Données d''entrée'!$C$333+'1 Données d''entrée'!$C$334+1+$B490,($J480/'1 Données d''entrée'!$C$333),0))","v":0},{"$f":"IF(V430<'1 Données d''entrée'!$C$334+1+$B490,0,IF(V430<'1 Données d''entrée'!$C$333+'1 Données d''entrée'!$C$334+1+$B490,($J480/'1 Données d''entrée'!$C$333),0))","v":0}]
[null,9,{"$f":"IF(C430<'1 Données d''entrée'!$C$334+1+$B491,0,IF(C430<'1 Données d''entrée'!$C$333+'1 Données d''entrée'!$C$334+1+$B491,($K480/'1 Données d''entrée'!$C$333),0))","v":0},{"$f":"IF(D430<'1 Données d''entrée'!$C$334+1+$B491,0,IF(D430<'1 Données d''entrée'!$C$333+'1 Données d''entrée'!$C$334+1+$B491,($K480/'1 Données d''entrée'!$C$333),0))","v":0},{"$f":"IF(E430<'1 Données d''entrée'!$C$334+1+$B491,0,IF(E430<'1 Données d''entrée'!$C$333+'1 Données d''entrée'!$C$334+1+$B491,($K480/'1 Données d''entrée'!$C$333),0))","v":0},{"$f":"IF(F430<'1 Données d''entrée'!$C$334+1+$B491,0,IF(F430<'1 Données d''entrée'!$C$333+'1 Données d''entrée'!$C$334+1+$B491,($K480/'1 Données d''entrée'!$C$333),0))","v":0},{"$f":"IF(G430<'1 Données d''entrée'!$C$334+1+$B491,0,IF(G430<'1 Données d''entrée'!$C$333+'1 Données d''entrée'!$C$334+1+$B491,($K480/'1 Données d''entrée'!$C$333),0))","v":0},{"$f":"IF(H430<'1 Données d''entrée'!$C$334+1+$B491,0,IF(H430<'1 Données d''entrée'!$C$333+'1 Données d''entrée'!$C$334+1+$B491,($K480/'1 Données d''entrée'!$C$333),0))","v":0},{"$f":"IF(I430<'1 Données d''entrée'!$C$334+1+$B491,0,IF(I430<'1 Données d''entrée'!$C$333+'1 Données d''entrée'!$C$334+1+$B491,($K480/'1 Données d''entrée'!$C$333),0))","v":0},{"$f":"IF(J430<'1 Données d''entrée'!$C$334+1+$B491,0,IF(J430<'1 Données d''entrée'!$C$333+'1 Données d''entrée'!$C$334+1+$B491,($K480/'1 Données d''entrée'!$C$333),0))","v":0},{"$f":"IF(K430<'1 Données d''entrée'!$C$334+1+$B491,0,IF(K430<'1 Données d''entrée'!$C$333+'1 Données d''entrée'!$C$334+1+$B491,($K480/'1 Données d''entrée'!$C$333),0))","v":0},{"$f":"IF(L430<'1 Données d''entrée'!$C$334+1+$B491,0,IF(L430<'1 Données d''entrée'!$C$333+'1 Données d''entrée'!$C$334+1+$B491,($K480/'1 Données d''entrée'!$C$333),0))","v":0},{"$f":"IF(M430<'1 Données d''entrée'!$C$334+1+$B491,0,IF(M430<'1 Données d''entrée'!$C$333+'1 Données d''entrée'!$C$334+1+$B491,($K480/'1 Données d''entrée'!$C$333),0))","v":0},{"$f":"IF(N430<'1 Données d''entrée'!$C$334+1+$B491,0,IF(N430<'1 Données d''entrée'!$C$333+'1 Données d''entrée'!$C$334+1+$B491,($K480/'1 Données d''entrée'!$C$333),0))","v":0},{"$f":"IF(O430<'1 Données d''entrée'!$C$334+1+$B491,0,IF(O430<'1 Données d''entrée'!$C$333+'1 Données d''entrée'!$C$334+1+$B491,($K480/'1 Données d''entrée'!$C$333),0))","v":0},{"$f":"IF(P430<'1 Données d''entrée'!$C$334+1+$B491,0,IF(P430<'1 Données d''entrée'!$C$333+'1 Données d''entrée'!$C$334+1+$B491,($K480/'1 Données d''entrée'!$C$333),0))","v":0},{"$f":"IF(Q430<'1 Données d''entrée'!$C$334+1+$B491,0,IF(Q430<'1 Données d''entrée'!$C$333+'1 Données d''entrée'!$C$334+1+$B491,($K480/'1 Données d''entrée'!$C$333),0))","v":0},{"$f":"IF(R430<'1 Données d''entrée'!$C$334+1+$B491,0,IF(R430<'1 Données d''entrée'!$C$333+'1 Données d''entrée'!$C$334+1+$B491,($K480/'1 Données d''entrée'!$C$333),0))","v":0},{"$f":"IF(S430<'1 Données d''entrée'!$C$334+1+$B491,0,IF(S430<'1 Données d''entrée'!$C$333+'1 Données d''entrée'!$C$334+1+$B491,($K480/'1 Données d''entrée'!$C$333),0))","v":0},{"$f":"IF(T430<'1 Données d''entrée'!$C$334+1+$B491,0,IF(T430<'1 Données d''entrée'!$C$333+'1 Données d''entrée'!$C$334+1+$B491,($K480/'1 Données d''entrée'!$C$333),0))","v":0},{"$f":"IF(U430<'1 Données d''entrée'!$C$334+1+$B491,0,IF(U430<'1 Données d''entrée'!$C$333+'1 Données d''entrée'!$C$334+1+$B491,($K480/'1 Données d''entrée'!$C$333),0))","v":0},{"$f":"IF(V430<'1 Données d''entrée'!$C$334+1+$B491,0,IF(V430<'1 Données d''entrée'!$C$333+'1 Données d''entrée'!$C$334+1+$B491,($K480/'1 Données d''entrée'!$C$333),0))","v":0}]
[null,10,{"$f":"IF(C430<'1 Données d''entrée'!$C$334+1+$B492,0,IF(C430<'1 Données d''entrée'!$C$333+'1 Données d''entrée'!$C$334+1+$B492,($L480/'1 Données d''entrée'!$C$333),0))","v":0},{"$f":"IF(D430<'1 Données d''entrée'!$C$334+1+$B492,0,IF(D430<'1 Données d''entrée'!$C$333+'1 Données d''entrée'!$C$334+1+$B492,($L480/'1 Données d''entrée'!$C$333),0))","v":0},{"$f":"IF(E430<'1 Données d''entrée'!$C$334+1+$B492,0,IF(E430<'1 Données d''entrée'!$C$333+'1 Données d''entrée'!$C$334+1+$B492,($L480/'1 Données d''entrée'!$C$333),0))","v":0},{"$f":"IF(F430<'1 Données d''entrée'!$C$334+1+$B492,0,IF(F430<'1 Données d''entrée'!$C$333+'1 Données d''entrée'!$C$334+1+$B492,($L480/'1 Données d''entrée'!$C$333),0))","v":0},{"$f":"IF(G430<'1 Données d''entrée'!$C$334+1+$B492,0,IF(G430<'1 Données d''entrée'!$C$333+'1 Données d''entrée'!$C$334+1+$B492,($L480/'1 Données d''entrée'!$C$333),0))","v":0},{"$f":"IF(H430<'1 Données d''entrée'!$C$334+1+$B492,0,IF(H430<'1 Données d''entrée'!$C$333+'1 Données d''entrée'!$C$334+1+$B492,($L480/'1 Données d''entrée'!$C$333),0))","v":0},{"$f":"IF(I430<'1 Données d''entrée'!$C$334+1+$B492,0,IF(I430<'1 Données d''entrée'!$C$333+'1 Données d''entrée'!$C$334+1+$B492,($L480/'1 Données d''entrée'!$C$333),0))","v":0},{"$f":"IF(J430<'1 Données d''entrée'!$C$334+1+$B492,0,IF(J430<'1 Données d''entrée'!$C$333+'1 Données d''entrée'!$C$334+1+$B492,($L480/'1 Données d''entrée'!$C$333),0))","v":0},{"$f":"IF(K430<'1 Données d''entrée'!$C$334+1+$B492,0,IF(K430<'1 Données d''entrée'!$C$333+'1 Données d''entrée'!$C$334+1+$B492,($L480/'1 Données d''entrée'!$C$333),0))","v":0},{"$f":"IF(L430<'1 Données d''entrée'!$C$334+1+$B492,0,IF(L430<'1 Données d''entrée'!$C$333+'1 Données d''entrée'!$C$334+1+$B492,($L480/'1 Données d''entrée'!$C$333),0))","v":0},{"$f":"IF(M430<'1 Données d''entrée'!$C$334+1+$B492,0,IF(M430<'1 Données d''entrée'!$C$333+'1 Données d''entrée'!$C$334+1+$B492,($L480/'1 Données d''entrée'!$C$333),0))","v":0},{"$f":"IF(N430<'1 Données d''entrée'!$C$334+1+$B492,0,IF(N430<'1 Données d''entrée'!$C$333+'1 Données d''entrée'!$C$334+1+$B492,($L480/'1 Données d''entrée'!$C$333),0))","v":0},{"$f":"IF(O430<'1 Données d''entrée'!$C$334+1+$B492,0,IF(O430<'1 Données d''entrée'!$C$333+'1 Données d''entrée'!$C$334+1+$B492,($L480/'1 Données d''entrée'!$C$333),0))","v":0},{"$f":"IF(P430<'1 Données d''entrée'!$C$334+1+$B492,0,IF(P430<'1 Données d''entrée'!$C$333+'1 Données d''entrée'!$C$334+1+$B492,($L480/'1 Données d''entrée'!$C$333),0))","v":0},{"$f":"IF(Q430<'1 Données d''entrée'!$C$334+1+$B492,0,IF(Q430<'1 Données d''entrée'!$C$333+'1 Données d''entrée'!$C$334+1+$B492,($L480/'1 Données d''entrée'!$C$333),0))","v":0},{"$f":"IF(R430<'1 Données d''entrée'!$C$334+1+$B492,0,IF(R430<'1 Données d''entrée'!$C$333+'1 Données d''entrée'!$C$334+1+$B492,($L480/'1 Données d''entrée'!$C$333),0))","v":0},{"$f":"IF(S430<'1 Données d''entrée'!$C$334+1+$B492,0,IF(S430<'1 Données d''entrée'!$C$333+'1 Données d''entrée'!$C$334+1+$B492,($L480/'1 Données d''entrée'!$C$333),0))","v":0},{"$f":"IF(T430<'1 Données d''entrée'!$C$334+1+$B492,0,IF(T430<'1 Données d''entrée'!$C$333+'1 Données d''entrée'!$C$334+1+$B492,($L480/'1 Données d''entrée'!$C$333),0))","v":0},{"$f":"IF(U430<'1 Données d''entrée'!$C$334+1+$B492,0,IF(U430<'1 Données d''entrée'!$C$333+'1 Données d''entrée'!$C$334+1+$B492,($L480/'1 Données d''entrée'!$C$333),0))","v":0},{"$f":"IF(V430<'1 Données d''entrée'!$C$334+1+$B492,0,IF(V430<'1 Données d''entrée'!$C$333+'1 Données d''entrée'!$C$334+1+$B492,($L480/'1 Données d''entrée'!$C$333),0))","v":0}]
[null,"Période de prêt nouveau"]
["Paiement d'intérêts",0,0,0,0,0,0,0,0,0,0,0,0,0,0,0,0,0,0,0,0,0]
["Paiement d'intêrets",1,0,{"$f":"IF(C430<1+$B482,0,IF(C430<'1 Données d''entrée'!$C$334+'1 Données d''entrée'!$C$333+1+$B482,'1 Données d''entrée'!$C$332*($C480-SUM($C483:C483)),0))","v":0},{"$f":"IF(D430<1+$B482,0,IF(D430<'1 Données d''entrée'!$C$334+'1 Données d''entrée'!$C$333+1+$B482,'1 Données d''entrée'!$C$332*($C480-SUM($C483:D483)),0))","v":0},{"$f":"IF(E430<1+$B482,0,IF(E430<'1 Données d''entrée'!$C$334+'1 Données d''entrée'!$C$333+1+$B482,'1 Données d''entrée'!$C$332*($C480-SUM($C483:E483)),0))","v":0},{"$f":"IF(F430<1+$B482,0,IF(F430<'1 Données d''entrée'!$C$334+'1 Données d''entrée'!$C$333+1+$B482,'1 Données d''entrée'!$C$332*($C480-SUM($C483:F483)),0))","v":0},{"$f":"IF(G430<1+$B482,0,IF(G430<'1 Données d''entrée'!$C$334+'1 Données d''entrée'!$C$333+1+$B482,'1 Données d''entrée'!$C$332*($C480-SUM($C483:G483)),0))","v":0},{"$f":"IF(H430<1+$B482,0,IF(H430<'1 Données d''entrée'!$C$334+'1 Données d''entrée'!$C$333+1+$B482,'1 Données d''entrée'!$C$332*($C480-SUM($C483:H483)),0))","v":0},{"$f":"IF(I430<1+$B482,0,IF(I430<'1 Données d''entrée'!$C$334+'1 Données d''entrée'!$C$333+1+$B482,'1 Données d''entrée'!$C$332*($C480-SUM($C483:I483)),0))","v":0},{"$f":"IF(J430<1+$B482,0,IF(J430<'1 Données d''entrée'!$C$334+'1 Données d''entrée'!$C$333+1+$B482,'1 Données d''entrée'!$C$332*($C480-SUM($C483:J483)),0))","v":0},{"$f":"IF(K430<1+$B482,0,IF(K430<'1 Données d''entrée'!$C$334+'1 Données d''entrée'!$C$333+1+$B482,'1 Données d''entrée'!$C$332*($C480-SUM($C483:K483)),0))","v":0},{"$f":"IF(L430<1+$B482,0,IF(L430<'1 Données d''entrée'!$C$334+'1 Données d''entrée'!$C$333+1+$B482,'1 Données d''entrée'!$C$332*($C480-SUM($C483:L483)),0))","v":0},{"$f":"IF(M430<1+$B482,0,IF(M430<'1 Données d''entrée'!$C$334+'1 Données d''entrée'!$C$333+1+$B482,'1 Données d''entrée'!$C$332*($C480-SUM($C483:M483)),0))","v":0},{"$f":"IF(N430<1+$B482,0,IF(N430<'1 Données d''entrée'!$C$334+'1 Données d''entrée'!$C$333+1+$B482,'1 Données d''entrée'!$C$332*($C480-SUM($C483:N483)),0))","v":0},{"$f":"IF(O430<1+$B482,0,IF(O430<'1 Données d''entrée'!$C$334+'1 Données d''entrée'!$C$333+1+$B482,'1 Données d''entrée'!$C$332*($C480-SUM($C483:O483)),0))","v":0},{"$f":"IF(P430<1+$B482,0,IF(P430<'1 Données d''entrée'!$C$334+'1 Données d''entrée'!$C$333+1+$B482,'1 Données d''entrée'!$C$332*($C480-SUM($C483:P483)),0))","v":0},{"$f":"IF(Q430<1+$B482,0,IF(Q430<'1 Données d''entrée'!$C$334+'1 Données d''entrée'!$C$333+1+$B482,'1 Données d''entrée'!$C$332*($C480-SUM($C483:Q483)),0))","v":0},{"$f":"IF(R430<1+$B482,0,IF(R430<'1 Données d''entrée'!$C$334+'1 Données d''entrée'!$C$333+1+$B482,'1 Données d''entrée'!$C$332*($C480-SUM($C483:R483)),0))","v":0},{"$f":"IF(S430<1+$B482,0,IF(S430<'1 Données d''entrée'!$C$334+'1 Données d''entrée'!$C$333+1+$B482,'1 Données d''entrée'!$C$332*($C480-SUM($C483:S483)),0))","v":0},{"$f":"IF(T430<1+$B482,0,IF(T430<'1 Données d''entrée'!$C$334+'1 Données d''entrée'!$C$333+1+$B482,'1 Données d''entrée'!$C$332*($C480-SUM($C483:T483)),0))","v":0},{"$f":"IF(U430<1+$B482,0,IF(U430<'1 Données d''entrée'!$C$334+'1 Données d''entrée'!$C$333+1+$B482,'1 Données d''entrée'!$C$332*($C480-SUM($C483:U483)),0))","v":0}]
["Paiement d'intêrets",2,0,{"$f":"IF(C430<1+$B483,0,IF(C430<'1 Données d''entrée'!$C$334+'1 Données d''entrée'!$C$333+1+$B483,'1 Données d''entrée'!$C$332*($D480-SUM($C484:C484)),0))","v":0},{"$f":"IF(D430<1+$B483,0,IF(D430<'1 Données d''entrée'!$C$334+'1 Données d''entrée'!$C$333+1+$B483,'1 Données d''entrée'!$C$332*($D480-SUM($C484:D484)),0))","v":0},{"$f":"IF(E430<1+$B483,0,IF(E430<'1 Données d''entrée'!$C$334+'1 Données d''entrée'!$C$333+1+$B483,'1 Données d''entrée'!$C$332*($D480-SUM($C484:E484)),0))","v":0},{"$f":"IF(F430<1+$B483,0,IF(F430<'1 Données d''entrée'!$C$334+'1 Données d''entrée'!$C$333+1+$B483,'1 Données d''entrée'!$C$332*($D480-SUM($C484:F484)),0))","v":0},{"$f":"IF(G430<1+$B483,0,IF(G430<'1 Données d''entrée'!$C$334+'1 Données d''entrée'!$C$333+1+$B483,'1 Données d''entrée'!$C$332*($D480-SUM($C484:G484)),0))","v":0},{"$f":"IF(H430<1+$B483,0,IF(H430<'1 Données d''entrée'!$C$334+'1 Données d''entrée'!$C$333+1+$B483,'1 Données d''entrée'!$C$332*($D480-SUM($C484:H484)),0))","v":0},{"$f":"IF(I430<1+$B483,0,IF(I430<'1 Données d''entrée'!$C$334+'1 Données d''entrée'!$C$333+1+$B483,'1 Données d''entrée'!$C$332*($D480-SUM($C484:I484)),0))","v":0},{"$f":"IF(J430<1+$B483,0,IF(J430<'1 Données d''entrée'!$C$334+'1 Données d''entrée'!$C$333+1+$B483,'1 Données d''entrée'!$C$332*($D480-SUM($C484:J484)),0))","v":0},{"$f":"IF(K430<1+$B483,0,IF(K430<'1 Données d''entrée'!$C$334+'1 Données d''entrée'!$C$333+1+$B483,'1 Données d''entrée'!$C$332*($D480-SUM($C484:K484)),0))","v":0},{"$f":"IF(L430<1+$B483,0,IF(L430<'1 Données d''entrée'!$C$334+'1 Données d''entrée'!$C$333+1+$B483,'1 Données d''entrée'!$C$332*($D480-SUM($C484:L484)),0))","v":0},{"$f":"IF(M430<1+$B483,0,IF(M430<'1 Données d''entrée'!$C$334+'1 Données d''entrée'!$C$333+1+$B483,'1 Données d''entrée'!$C$332*($D480-SUM($C484:M484)),0))","v":0},{"$f":"IF(N430<1+$B483,0,IF(N430<'1 Données d''entrée'!$C$334+'1 Données d''entrée'!$C$333+1+$B483,'1 Données d''entrée'!$C$332*($D480-SUM($C484:N484)),0))","v":0},{"$f":"IF(O430<1+$B483,0,IF(O430<'1 Données d''entrée'!$C$334+'1 Données d''entrée'!$C$333+1+$B483,'1 Données d''entrée'!$C$332*($D480-SUM($C484:O484)),0))","v":0},{"$f":"IF(P430<1+$B483,0,IF(P430<'1 Données d''entrée'!$C$334+'1 Données d''entrée'!$C$333+1+$B483,'1 Données d''entrée'!$C$332*($D480-SUM($C484:P484)),0))","v":0},{"$f":"IF(Q430<1+$B483,0,IF(Q430<'1 Données d''entrée'!$C$334+'1 Données d''entrée'!$C$333+1+$B483,'1 Données d''entrée'!$C$332*($D480-SUM($C484:Q484)),0))","v":0},{"$f":"IF(R430<1+$B483,0,IF(R430<'1 Données d''entrée'!$C$334+'1 Données d''entrée'!$C$333+1+$B483,'1 Données d''entrée'!$C$332*($D480-SUM($C484:R484)),0))","v":0},{"$f":"IF(S430<1+$B483,0,IF(S430<'1 Données d''entrée'!$C$334+'1 Données d''entrée'!$C$333+1+$B483,'1 Données d''entrée'!$C$332*($D480-SUM($C484:S484)),0))","v":0},{"$f":"IF(T430<1+$B483,0,IF(T430<'1 Données d''entrée'!$C$334+'1 Données d''entrée'!$C$333+1+$B483,'1 Données d''entrée'!$C$332*($D480-SUM($C484:T484)),0))","v":0},{"$f":"IF(U430<1+$B483,0,IF(U430<'1 Données d''entrée'!$C$334+'1 Données d''entrée'!$C$333+1+$B483,'1 Données d''entrée'!$C$332*($D480-SUM($C484:U484)),0))","v":0}]
["Paiement d'intêrets",3,0,{"$f":"IF(C430<1+$B484,0,IF(C430<'1 Données d''entrée'!$C$334+'1 Données d''entrée'!$C$333+1+$B484,'1 Données d''entrée'!$C$332*($E480-SUM($C485:C485)),0))","v":0},{"$f":"IF(D430<1+$B484,0,IF(D430<'1 Données d''entrée'!$C$334+'1 Données d''entrée'!$C$333+1+$B484,'1 Données d''entrée'!$C$332*($E480-SUM($C485:D485)),0))","v":0},{"$f":"IF(E430<1+$B484,0,IF(E430<'1 Données d''entrée'!$C$334+'1 Données d''entrée'!$C$333+1+$B484,'1 Données d''entrée'!$C$332*($E480-SUM($C485:E485)),0))","v":0},{"$f":"IF(F430<1+$B484,0,IF(F430<'1 Données d''entrée'!$C$334+'1 Données d''entrée'!$C$333+1+$B484,'1 Données d''entrée'!$C$332*($E480-SUM($C485:F485)),0))","v":0},{"$f":"IF(G430<1+$B484,0,IF(G430<'1 Données d''entrée'!$C$334+'1 Données d''entrée'!$C$333+1+$B484,'1 Données d''entrée'!$C$332*($E480-SUM($C485:G485)),0))","v":0},{"$f":"IF(H430<1+$B484,0,IF(H430<'1 Données d''entrée'!$C$334+'1 Données d''entrée'!$C$333+1+$B484,'1 Données d''entrée'!$C$332*($E480-SUM($C485:H485)),0))","v":0},{"$f":"IF(I430<1+$B484,0,IF(I430<'1 Données d''entrée'!$C$334+'1 Données d''entrée'!$C$333+1+$B484,'1 Données d''entrée'!$C$332*($E480-SUM($C485:I485)),0))","v":0},{"$f":"IF(J430<1+$B484,0,IF(J430<'1 Données d''entrée'!$C$334+'1 Données d''entrée'!$C$333+1+$B484,'1 Données d''entrée'!$C$332*($E480-SUM($C485:J485)),0))","v":0},{"$f":"IF(K430<1+$B484,0,IF(K430<'1 Données d''entrée'!$C$334+'1 Données d''entrée'!$C$333+1+$B484,'1 Données d''entrée'!$C$332*($E480-SUM($C485:K485)),0))","v":0},{"$f":"IF(L430<1+$B484,0,IF(L430<'1 Données d''entrée'!$C$334+'1 Données d''entrée'!$C$333+1+$B484,'1 Données d''entrée'!$C$332*($E480-SUM($C485:L485)),0))","v":0},{"$f":"IF(M430<1+$B484,0,IF(M430<'1 Données d''entrée'!$C$334+'1 Données d''entrée'!$C$333+1+$B484,'1 Données d''entrée'!$C$332*($E480-SUM($C485:M485)),0))","v":0},{"$f":"IF(N430<1+$B484,0,IF(N430<'1 Données d''entrée'!$C$334+'1 Données d''entrée'!$C$333+1+$B484,'1 Données d''entrée'!$C$332*($E480-SUM($C485:N485)),0))","v":0},{"$f":"IF(O430<1+$B484,0,IF(O430<'1 Données d''entrée'!$C$334+'1 Données d''entrée'!$C$333+1+$B484,'1 Données d''entrée'!$C$332*($E480-SUM($C485:O485)),0))","v":0},{"$f":"IF(P430<1+$B484,0,IF(P430<'1 Données d''entrée'!$C$334+'1 Données d''entrée'!$C$333+1+$B484,'1 Données d''entrée'!$C$332*($E480-SUM($C485:P485)),0))","v":0},{"$f":"IF(Q430<1+$B484,0,IF(Q430<'1 Données d''entrée'!$C$334+'1 Données d''entrée'!$C$333+1+$B484,'1 Données d''entrée'!$C$332*($E480-SUM($C485:Q485)),0))","v":0},{"$f":"IF(R430<1+$B484,0,IF(R430<'1 Données d''entrée'!$C$334+'1 Données d''entrée'!$C$333+1+$B484,'1 Données d''entrée'!$C$332*($E480-SUM($C485:R485)),0))","v":0},{"$f":"IF(S430<1+$B484,0,IF(S430<'1 Données d''entrée'!$C$334+'1 Données d''entrée'!$C$333+1+$B484,'1 Données d''entrée'!$C$332*($E480-SUM($C485:S485)),0))","v":0},{"$f":"IF(T430<1+$B484,0,IF(T430<'1 Données d''entrée'!$C$334+'1 Données d''entrée'!$C$333+1+$B484,'1 Données d''entrée'!$C$332*($E480-SUM($C485:T485)),0))","v":0},{"$f":"IF(U430<1+$B484,0,IF(U430<'1 Données d''entrée'!$C$334+'1 Données d''entrée'!$C$333+1+$B484,'1 Données d''entrée'!$C$332*($E480-SUM($C485:U485)),0))","v":0}]
["Paiement d'intêrets",4,0,{"$f":"IF(C430<1+$B485,0,IF(C430<'1 Données d''entrée'!$C$334+'1 Données d''entrée'!$C$333+1+$B485,'1 Données d''entrée'!$C$332*($F480-SUM($C486:C486)),0))","v":0},{"$f":"IF(D430<1+$B485,0,IF(D430<'1 Données d''entrée'!$C$334+'1 Données d''entrée'!$C$333+1+$B485,'1 Données d''entrée'!$C$332*($F480-SUM($C486:D486)),0))","v":0},{"$f":"IF(E430<1+$B485,0,IF(E430<'1 Données d''entrée'!$C$334+'1 Données d''entrée'!$C$333+1+$B485,'1 Données d''entrée'!$C$332*($F480-SUM($C486:E486)),0))","v":0},{"$f":"IF(F430<1+$B485,0,IF(F430<'1 Données d''entrée'!$C$334+'1 Données d''entrée'!$C$333+1+$B485,'1 Données d''entrée'!$C$332*($F480-SUM($C486:F486)),0))","v":0},{"$f":"IF(G430<1+$B485,0,IF(G430<'1 Données d''entrée'!$C$334+'1 Données d''entrée'!$C$333+1+$B485,'1 Données d''entrée'!$C$332*($F480-SUM($C486:G486)),0))","v":0},{"$f":"IF(H430<1+$B485,0,IF(H430<'1 Données d''entrée'!$C$334+'1 Données d''entrée'!$C$333+1+$B485,'1 Données d''entrée'!$C$332*($F480-SUM($C486:H486)),0))","v":0},{"$f":"IF(I430<1+$B485,0,IF(I430<'1 Données d''entrée'!$C$334+'1 Données d''entrée'!$C$333+1+$B485,'1 Données d''entrée'!$C$332*($F480-SUM($C486:I486)),0))","v":0},{"$f":"IF(J430<1+$B485,0,IF(J430<'1 Données d''entrée'!$C$334+'1 Données d''entrée'!$C$333+1+$B485,'1 Données d''entrée'!$C$332*($F480-SUM($C486:J486)),0))","v":0},{"$f":"IF(K430<1+$B485,0,IF(K430<'1 Données d''entrée'!$C$334+'1 Données d''entrée'!$C$333+1+$B485,'1 Données d''entrée'!$C$332*($F480-SUM($C486:K486)),0))","v":0},{"$f":"IF(L430<1+$B485,0,IF(L430<'1 Données d''entrée'!$C$334+'1 Données d''entrée'!$C$333+1+$B485,'1 Données d''entrée'!$C$332*($F480-SUM($C486:L486)),0))","v":0},{"$f":"IF(M430<1+$B485,0,IF(M430<'1 Données d''entrée'!$C$334+'1 Données d''entrée'!$C$333+1+$B485,'1 Données d''entrée'!$C$332*($F480-SUM($C486:M486)),0))","v":0},{"$f":"IF(N430<1+$B485,0,IF(N430<'1 Données d''entrée'!$C$334+'1 Données d''entrée'!$C$333+1+$B485,'1 Données d''entrée'!$C$332*($F480-SUM($C486:N486)),0))","v":0},{"$f":"IF(O430<1+$B485,0,IF(O430<'1 Données d''entrée'!$C$334+'1 Données d''entrée'!$C$333+1+$B485,'1 Données d''entrée'!$C$332*($F480-SUM($C486:O486)),0))","v":0},{"$f":"IF(P430<1+$B485,0,IF(P430<'1 Données d''entrée'!$C$334+'1 Données d''entrée'!$C$333+1+$B485,'1 Données d''entrée'!$C$332*($F480-SUM($C486:P486)),0))","v":0},{"$f":"IF(Q430<1+$B485,0,IF(Q430<'1 Données d''entrée'!$C$334+'1 Données d''entrée'!$C$333+1+$B485,'1 Données d''entrée'!$C$332*($F480-SUM($C486:Q486)),0))","v":0},{"$f":"IF(R430<1+$B485,0,IF(R430<'1 Données d''entrée'!$C$334+'1 Données d''entrée'!$C$333+1+$B485,'1 Données d''entrée'!$C$332*($F480-SUM($C486:R486)),0))","v":0},{"$f":"IF(S430<1+$B485,0,IF(S430<'1 Données d''entrée'!$C$334+'1 Données d''entrée'!$C$333+1+$B485,'1 Données d''entrée'!$C$332*($F480-SUM($C486:S486)),0))","v":0},{"$f":"IF(T430<1+$B485,0,IF(T430<'1 Données d''entrée'!$C$334+'1 Données d''entrée'!$C$333+1+$B485,'1 Données d''entrée'!$C$332*($F480-SUM($C486:T486)),0))","v":0},{"$f":"IF(U430<1+$B485,0,IF(U430<'1 Données d''entrée'!$C$334+'1 Données d''entrée'!$C$333+1+$B485,'1 Données d''entrée'!$C$332*($F480-SUM($C486:U486)),0))","v":0}]
["Paiement d'intêrets",5,0,{"$f":"IF(C430<1+$B486,0,IF(C430<'1 Données d''entrée'!$C$334+'1 Données d''entrée'!$C$333+1+$B486,'1 Données d''entrée'!$C$332*($G480-SUM($C487:C487)),0))","v":0},{"$f":"IF(D430<1+$B486,0,IF(D430<'1 Données d''entrée'!$C$334+'1 Données d''entrée'!$C$333+1+$B486,'1 Données d''entrée'!$C$332*($G480-SUM($C487:D487)),0))","v":0},{"$f":"IF(E430<1+$B486,0,IF(E430<'1 Données d''entrée'!$C$334+'1 Données d''entrée'!$C$333+1+$B486,'1 Données d''entrée'!$C$332*($G480-SUM($C487:E487)),0))","v":0},{"$f":"IF(F430<1+$B486,0,IF(F430<'1 Données d''entrée'!$C$334+'1 Données d''entrée'!$C$333+1+$B486,'1 Données d''entrée'!$C$332*($G480-SUM($C487:F487)),0))","v":0},{"$f":"IF(G430<1+$B486,0,IF(G430<'1 Données d''entrée'!$C$334+'1 Données d''entrée'!$C$333+1+$B486,'1 Données d''entrée'!$C$332*($G480-SUM($C487:G487)),0))","v":0},{"$f":"IF(H430<1+$B486,0,IF(H430<'1 Données d''entrée'!$C$334+'1 Données d''entrée'!$C$333+1+$B486,'1 Données d''entrée'!$C$332*($G480-SUM($C487:H487)),0))","v":0},{"$f":"IF(I430<1+$B486,0,IF(I430<'1 Données d''entrée'!$C$334+'1 Données d''entrée'!$C$333+1+$B486,'1 Données d''entrée'!$C$332*($G480-SUM($C487:I487)),0))","v":0},{"$f":"IF(J430<1+$B486,0,IF(J430<'1 Données d''entrée'!$C$334+'1 Données d''entrée'!$C$333+1+$B486,'1 Données d''entrée'!$C$332*($G480-SUM($C487:J487)),0))","v":0},{"$f":"IF(K430<1+$B486,0,IF(K430<'1 Données d''entrée'!$C$334+'1 Données d''entrée'!$C$333+1+$B486,'1 Données d''entrée'!$C$332*($G480-SUM($C487:K487)),0))","v":0},{"$f":"IF(L430<1+$B486,0,IF(L430<'1 Données d''entrée'!$C$334+'1 Données d''entrée'!$C$333+1+$B486,'1 Données d''entrée'!$C$332*($G480-SUM($C487:L487)),0))","v":0},{"$f":"IF(M430<1+$B486,0,IF(M430<'1 Données d''entrée'!$C$334+'1 Données d''entrée'!$C$333+1+$B486,'1 Données d''entrée'!$C$332*($G480-SUM($C487:M487)),0))","v":0},{"$f":"IF(N430<1+$B486,0,IF(N430<'1 Données d''entrée'!$C$334+'1 Données d''entrée'!$C$333+1+$B486,'1 Données d''entrée'!$C$332*($G480-SUM($C487:N487)),0))","v":0},{"$f":"IF(O430<1+$B486,0,IF(O430<'1 Données d''entrée'!$C$334+'1 Données d''entrée'!$C$333+1+$B486,'1 Données d''entrée'!$C$332*($G480-SUM($C487:O487)),0))","v":0},{"$f":"IF(P430<1+$B486,0,IF(P430<'1 Données d''entrée'!$C$334+'1 Données d''entrée'!$C$333+1+$B486,'1 Données d''entrée'!$C$332*($G480-SUM($C487:P487)),0))","v":0},{"$f":"IF(Q430<1+$B486,0,IF(Q430<'1 Données d''entrée'!$C$334+'1 Données d''entrée'!$C$333+1+$B486,'1 Données d''entrée'!$C$332*($G480-SUM($C487:Q487)),0))","v":0},{"$f":"IF(R430<1+$B486,0,IF(R430<'1 Données d''entrée'!$C$334+'1 Données d''entrée'!$C$333+1+$B486,'1 Données d''entrée'!$C$332*($G480-SUM($C487:R487)),0))","v":0},{"$f":"IF(S430<1+$B486,0,IF(S430<'1 Données d''entrée'!$C$334+'1 Données d''entrée'!$C$333+1+$B486,'1 Données d''entrée'!$C$332*($G480-SUM($C487:S487)),0))","v":0},{"$f":"IF(T430<1+$B486,0,IF(T430<'1 Données d''entrée'!$C$334+'1 Données d''entrée'!$C$333+1+$B486,'1 Données d''entrée'!$C$332*($G480-SUM($C487:T487)),0))","v":0},{"$f":"IF(U430<1+$B486,0,IF(U430<'1 Données d''entrée'!$C$334+'1 Données d''entrée'!$C$333+1+$B486,'1 Données d''entrée'!$C$332*($G480-SUM($C487:U487)),0))","v":0}]
["Paiement d'intêrets",6,0,{"$f":"IF(C430<1+$B487,0,IF(C430<'1 Données d''entrée'!$C$334+'1 Données d''entrée'!$C$333+1+$B487,'1 Données d''entrée'!$C$332*($H480-SUM($C488:C488)),0))","v":0},{"$f":"IF(D430<1+$B487,0,IF(D430<'1 Données d''entrée'!$C$334+'1 Données d''entrée'!$C$333+1+$B487,'1 Données d''entrée'!$C$332*($H480-SUM($C488:D488)),0))","v":0},{"$f":"IF(E430<1+$B487,0,IF(E430<'1 Données d''entrée'!$C$334+'1 Données d''entrée'!$C$333+1+$B487,'1 Données d''entrée'!$C$332*($H480-SUM($C488:E488)),0))","v":0},{"$f":"IF(F430<1+$B487,0,IF(F430<'1 Données d''entrée'!$C$334+'1 Données d''entrée'!$C$333+1+$B487,'1 Données d''entrée'!$C$332*($H480-SUM($C488:F488)),0))","v":0},{"$f":"IF(G430<1+$B487,0,IF(G430<'1 Données d''entrée'!$C$334+'1 Données d''entrée'!$C$333+1+$B487,'1 Données d''entrée'!$C$332*($H480-SUM($C488:G488)),0))","v":0},{"$f":"IF(H430<1+$B487,0,IF(H430<'1 Données d''entrée'!$C$334+'1 Données d''entrée'!$C$333+1+$B487,'1 Données d''entrée'!$C$332*($H480-SUM($C488:H488)),0))","v":0},{"$f":"IF(I430<1+$B487,0,IF(I430<'1 Données d''entrée'!$C$334+'1 Données d''entrée'!$C$333+1+$B487,'1 Données d''entrée'!$C$332*($H480-SUM($C488:I488)),0))","v":0},{"$f":"IF(J430<1+$B487,0,IF(J430<'1 Données d''entrée'!$C$334+'1 Données d''entrée'!$C$333+1+$B487,'1 Données d''entrée'!$C$332*($H480-SUM($C488:J488)),0))","v":0},{"$f":"IF(K430<1+$B487,0,IF(K430<'1 Données d''entrée'!$C$334+'1 Données d''entrée'!$C$333+1+$B487,'1 Données d''entrée'!$C$332*($H480-SUM($C488:K488)),0))","v":0},{"$f":"IF(L430<1+$B487,0,IF(L430<'1 Données d''entrée'!$C$334+'1 Données d''entrée'!$C$333+1+$B487,'1 Données d''entrée'!$C$332*($H480-SUM($C488:L488)),0))","v":0},{"$f":"IF(M430<1+$B487,0,IF(M430<'1 Données d''entrée'!$C$334+'1 Données d''entrée'!$C$333+1+$B487,'1 Données d''entrée'!$C$332*($H480-SUM($C488:M488)),0))","v":0},{"$f":"IF(N430<1+$B487,0,IF(N430<'1 Données d''entrée'!$C$334+'1 Données d''entrée'!$C$333+1+$B487,'1 Données d''entrée'!$C$332*($H480-SUM($C488:N488)),0))","v":0},{"$f":"IF(O430<1+$B487,0,IF(O430<'1 Données d''entrée'!$C$334+'1 Données d''entrée'!$C$333+1+$B487,'1 Données d''entrée'!$C$332*($H480-SUM($C488:O488)),0))","v":0},{"$f":"IF(P430<1+$B487,0,IF(P430<'1 Données d''entrée'!$C$334+'1 Données d''entrée'!$C$333+1+$B487,'1 Données d''entrée'!$C$332*($H480-SUM($C488:P488)),0))","v":0},{"$f":"IF(Q430<1+$B487,0,IF(Q430<'1 Données d''entrée'!$C$334+'1 Données d''entrée'!$C$333+1+$B487,'1 Données d''entrée'!$C$332*($H480-SUM($C488:Q488)),0))","v":0},{"$f":"IF(R430<1+$B487,0,IF(R430<'1 Données d''entrée'!$C$334+'1 Données d''entrée'!$C$333+1+$B487,'1 Données d''entrée'!$C$332*($H480-SUM($C488:R488)),0))","v":0},{"$f":"IF(S430<1+$B487,0,IF(S430<'1 Données d''entrée'!$C$334+'1 Données d''entrée'!$C$333+1+$B487,'1 Données d''entrée'!$C$332*($H480-SUM($C488:S488)),0))","v":0},{"$f":"IF(T430<1+$B487,0,IF(T430<'1 Données d''entrée'!$C$334+'1 Données d''entrée'!$C$333+1+$B487,'1 Données d''entrée'!$C$332*($H480-SUM($C488:T488)),0))","v":0},{"$f":"IF(U430<1+$B487,0,IF(U430<'1 Données d''entrée'!$C$334+'1 Données d''entrée'!$C$333+1+$B487,'1 Données d''entrée'!$C$332*($H480-SUM($C488:U488)),0))","v":0}]
["Paiement d'intêrets",7,0,{"$f":"IF(C430<1+$B488,0,IF(C430<'1 Données d''entrée'!$C$334+'1 Données d''entrée'!$C$333+1+$B488,'1 Données d''entrée'!$C$332*($I480-SUM($C489:C489)),0))","v":0},{"$f":"IF(D430<1+$B488,0,IF(D430<'1 Données d''entrée'!$C$334+'1 Données d''entrée'!$C$333+1+$B488,'1 Données d''entrée'!$C$332*($I480-SUM($C489:D489)),0))","v":0},{"$f":"IF(E430<1+$B488,0,IF(E430<'1 Données d''entrée'!$C$334+'1 Données d''entrée'!$C$333+1+$B488,'1 Données d''entrée'!$C$332*($I480-SUM($C489:E489)),0))","v":0},{"$f":"IF(F430<1+$B488,0,IF(F430<'1 Données d''entrée'!$C$334+'1 Données d''entrée'!$C$333+1+$B488,'1 Données d''entrée'!$C$332*($I480-SUM($C489:F489)),0))","v":0},{"$f":"IF(G430<1+$B488,0,IF(G430<'1 Données d''entrée'!$C$334+'1 Données d''entrée'!$C$333+1+$B488,'1 Données d''entrée'!$C$332*($I480-SUM($C489:G489)),0))","v":0},{"$f":"IF(H430<1+$B488,0,IF(H430<'1 Données d''entrée'!$C$334+'1 Données d''entrée'!$C$333+1+$B488,'1 Données d''entrée'!$C$332*($I480-SUM($C489:H489)),0))","v":0},{"$f":"IF(I430<1+$B488,0,IF(I430<'1 Données d''entrée'!$C$334+'1 Données d''entrée'!$C$333+1+$B488,'1 Données d''entrée'!$C$332*($I480-SUM($C489:I489)),0))","v":0},{"$f":"IF(J430<1+$B488,0,IF(J430<'1 Données d''entrée'!$C$334+'1 Données d''entrée'!$C$333+1+$B488,'1 Données d''entrée'!$C$332*($I480-SUM($C489:J489)),0))","v":0},{"$f":"IF(K430<1+$B488,0,IF(K430<'1 Données d''entrée'!$C$334+'1 Données d''entrée'!$C$333+1+$B488,'1 Données d''entrée'!$C$332*($I480-SUM($C489:K489)),0))","v":0},{"$f":"IF(L430<1+$B488,0,IF(L430<'1 Données d''entrée'!$C$334+'1 Données d''entrée'!$C$333+1+$B488,'1 Données d''entrée'!$C$332*($I480-SUM($C489:L489)),0))","v":0},{"$f":"IF(M430<1+$B488,0,IF(M430<'1 Données d''entrée'!$C$334+'1 Données d''entrée'!$C$333+1+$B488,'1 Données d''entrée'!$C$332*($I480-SUM($C489:M489)),0))","v":0},{"$f":"IF(N430<1+$B488,0,IF(N430<'1 Données d''entrée'!$C$334+'1 Données d''entrée'!$C$333+1+$B488,'1 Données d''entrée'!$C$332*($I480-SUM($C489:N489)),0))","v":0},{"$f":"IF(O430<1+$B488,0,IF(O430<'1 Données d''entrée'!$C$334+'1 Données d''entrée'!$C$333+1+$B488,'1 Données d''entrée'!$C$332*($I480-SUM($C489:O489)),0))","v":0},{"$f":"IF(P430<1+$B488,0,IF(P430<'1 Données d''entrée'!$C$334+'1 Données d''entrée'!$C$333+1+$B488,'1 Données d''entrée'!$C$332*($I480-SUM($C489:P489)),0))","v":0},{"$f":"IF(Q430<1+$B488,0,IF(Q430<'1 Données d''entrée'!$C$334+'1 Données d''entrée'!$C$333+1+$B488,'1 Données d''entrée'!$C$332*($I480-SUM($C489:Q489)),0))","v":0},{"$f":"IF(R430<1+$B488,0,IF(R430<'1 Données d''entrée'!$C$334+'1 Données d''entrée'!$C$333+1+$B488,'1 Données d''entrée'!$C$332*($I480-SUM($C489:R489)),0))","v":0},{"$f":"IF(S430<1+$B488,0,IF(S430<'1 Données d''entrée'!$C$334+'1 Données d''entrée'!$C$333+1+$B488,'1 Données d''entrée'!$C$332*($I480-SUM($C489:S489)),0))","v":0},{"$f":"IF(T430<1+$B488,0,IF(T430<'1 Données d''entrée'!$C$334+'1 Données d''entrée'!$C$333+1+$B488,'1 Données d''entrée'!$C$332*($I480-SUM($C489:T489)),0))","v":0},{"$f":"IF(U430<1+$B488,0,IF(U430<'1 Données d''entrée'!$C$334+'1 Données d''entrée'!$C$333+1+$B488,'1 Données d''entrée'!$C$332*($I480-SUM($C489:U489)),0))","v":0}]
["Paiement d'intêrets",8,0,{"$f":"IF(C430<1+$B489,0,IF(C430<'1 Données d''entrée'!$C$334+'1 Données d''entrée'!$C$333+1+$B489,'1 Données d''entrée'!$C$332*($J480-SUM($C490:C490)),0))","v":0},{"$f":"IF(D430<1+$B489,0,IF(D430<'1 Données d''entrée'!$C$334+'1 Données d''entrée'!$C$333+1+$B489,'1 Données d''entrée'!$C$332*($J480-SUM($C490:D490)),0))","v":0},{"$f":"IF(E430<1+$B489,0,IF(E430<'1 Données d''entrée'!$C$334+'1 Données d''entrée'!$C$333+1+$B489,'1 Données d''entrée'!$C$332*($J480-SUM($C490:E490)),0))","v":0},{"$f":"IF(F430<1+$B489,0,IF(F430<'1 Données d''entrée'!$C$334+'1 Données d''entrée'!$C$333+1+$B489,'1 Données d''entrée'!$C$332*($J480-SUM($C490:F490)),0))","v":0},{"$f":"IF(G430<1+$B489,0,IF(G430<'1 Données d''entrée'!$C$334+'1 Données d''entrée'!$C$333+1+$B489,'1 Données d''entrée'!$C$332*($J480-SUM($C490:G490)),0))","v":0},{"$f":"IF(H430<1+$B489,0,IF(H430<'1 Données d''entrée'!$C$334+'1 Données d''entrée'!$C$333+1+$B489,'1 Données d''entrée'!$C$332*($J480-SUM($C490:H490)),0))","v":0},{"$f":"IF(I430<1+$B489,0,IF(I430<'1 Données d''entrée'!$C$334+'1 Données d''entrée'!$C$333+1+$B489,'1 Données d''entrée'!$C$332*($J480-SUM($C490:I490)),0))","v":0},{"$f":"IF(J430<1+$B489,0,IF(J430<'1 Données d''entrée'!$C$334+'1 Données d''entrée'!$C$333+1+$B489,'1 Données d''entrée'!$C$332*($J480-SUM($C490:J490)),0))","v":0},{"$f":"IF(K430<1+$B489,0,IF(K430<'1 Données d''entrée'!$C$334+'1 Données d''entrée'!$C$333+1+$B489,'1 Données d''entrée'!$C$332*($J480-SUM($C490:K490)),0))","v":0},{"$f":"IF(L430<1+$B489,0,IF(L430<'1 Données d''entrée'!$C$334+'1 Données d''entrée'!$C$333+1+$B489,'1 Données d''entrée'!$C$332*($J480-SUM($C490:L490)),0))","v":0},{"$f":"IF(M430<1+$B489,0,IF(M430<'1 Données d''entrée'!$C$334+'1 Données d''entrée'!$C$333+1+$B489,'1 Données d''entrée'!$C$332*($J480-SUM($C490:M490)),0))","v":0},{"$f":"IF(N430<1+$B489,0,IF(N430<'1 Données d''entrée'!$C$334+'1 Données d''entrée'!$C$333+1+$B489,'1 Données d''entrée'!$C$332*($J480-SUM($C490:N490)),0))","v":0},{"$f":"IF(O430<1+$B489,0,IF(O430<'1 Données d''entrée'!$C$334+'1 Données d''entrée'!$C$333+1+$B489,'1 Données d''entrée'!$C$332*($J480-SUM($C490:O490)),0))","v":0},{"$f":"IF(P430<1+$B489,0,IF(P430<'1 Données d''entrée'!$C$334+'1 Données d''entrée'!$C$333+1+$B489,'1 Données d''entrée'!$C$332*($J480-SUM($C490:P490)),0))","v":0},{"$f":"IF(Q430<1+$B489,0,IF(Q430<'1 Données d''entrée'!$C$334+'1 Données d''entrée'!$C$333+1+$B489,'1 Données d''entrée'!$C$332*($J480-SUM($C490:Q490)),0))","v":0},{"$f":"IF(R430<1+$B489,0,IF(R430<'1 Données d''entrée'!$C$334+'1 Données d''entrée'!$C$333+1+$B489,'1 Données d''entrée'!$C$332*($J480-SUM($C490:R490)),0))","v":0},{"$f":"IF(S430<1+$B489,0,IF(S430<'1 Données d''entrée'!$C$334+'1 Données d''entrée'!$C$333+1+$B489,'1 Données d''entrée'!$C$332*($J480-SUM($C490:S490)),0))","v":0},{"$f":"IF(T430<1+$B489,0,IF(T430<'1 Données d''entrée'!$C$334+'1 Données d''entrée'!$C$333+1+$B489,'1 Données d''entrée'!$C$332*($J480-SUM($C490:T490)),0))","v":0},{"$f":"IF(U430<1+$B489,0,IF(U430<'1 Données d''entrée'!$C$334+'1 Données d''entrée'!$C$333+1+$B489,'1 Données d''entrée'!$C$332*($J480-SUM($C490:U490)),0))","v":0}]
["Paiement d'intêrets",9,0,{"$f":"IF(C430<1+$B490,0,IF(C430<'1 Données d''entrée'!$C$334+'1 Données d''entrée'!$C$333+1+$B490,'1 Données d''entrée'!$C$332*($K480-SUM($C491:C491)),0))","v":0},{"$f":"IF(D430<1+$B490,0,IF(D430<'1 Données d''entrée'!$C$334+'1 Données d''entrée'!$C$333+1+$B490,'1 Données d''entrée'!$C$332*($K480-SUM($C491:D491)),0))","v":0},{"$f":"IF(E430<1+$B490,0,IF(E430<'1 Données d''entrée'!$C$334+'1 Données d''entrée'!$C$333+1+$B490,'1 Données d''entrée'!$C$332*($K480-SUM($C491:E491)),0))","v":0},{"$f":"IF(F430<1+$B490,0,IF(F430<'1 Données d''entrée'!$C$334+'1 Données d''entrée'!$C$333+1+$B490,'1 Données d''entrée'!$C$332*($K480-SUM($C491:F491)),0))","v":0},{"$f":"IF(G430<1+$B490,0,IF(G430<'1 Données d''entrée'!$C$334+'1 Données d''entrée'!$C$333+1+$B490,'1 Données d''entrée'!$C$332*($K480-SUM($C491:G491)),0))","v":0},{"$f":"IF(H430<1+$B490,0,IF(H430<'1 Données d''entrée'!$C$334+'1 Données d''entrée'!$C$333+1+$B490,'1 Données d''entrée'!$C$332*($K480-SUM($C491:H491)),0))","v":0},{"$f":"IF(I430<1+$B490,0,IF(I430<'1 Données d''entrée'!$C$334+'1 Données d''entrée'!$C$333+1+$B490,'1 Données d''entrée'!$C$332*($K480-SUM($C491:I491)),0))","v":0},{"$f":"IF(J430<1+$B490,0,IF(J430<'1 Données d''entrée'!$C$334+'1 Données d''entrée'!$C$333+1+$B490,'1 Données d''entrée'!$C$332*($K480-SUM($C491:J491)),0))","v":0},{"$f":"IF(K430<1+$B490,0,IF(K430<'1 Données d''entrée'!$C$334+'1 Données d''entrée'!$C$333+1+$B490,'1 Données d''entrée'!$C$332*($K480-SUM($C491:K491)),0))","v":0},{"$f":"IF(L430<1+$B490,0,IF(L430<'1 Données d''entrée'!$C$334+'1 Données d''entrée'!$C$333+1+$B490,'1 Données d''entrée'!$C$332*($K480-SUM($C491:L491)),0))","v":0},{"$f":"IF(M430<1+$B490,0,IF(M430<'1 Données d''entrée'!$C$334+'1 Données d''entrée'!$C$333+1+$B490,'1 Données d''entrée'!$C$332*($K480-SUM($C491:M491)),0))","v":0},{"$f":"IF(N430<1+$B490,0,IF(N430<'1 Données d''entrée'!$C$334+'1 Données d''entrée'!$C$333+1+$B490,'1 Données d''entrée'!$C$332*($K480-SUM($C491:N491)),0))","v":0},{"$f":"IF(O430<1+$B490,0,IF(O430<'1 Données d''entrée'!$C$334+'1 Données d''entrée'!$C$333+1+$B490,'1 Données d''entrée'!$C$332*($K480-SUM($C491:O491)),0))","v":0},{"$f":"IF(P430<1+$B490,0,IF(P430<'1 Données d''entrée'!$C$334+'1 Données d''entrée'!$C$333+1+$B490,'1 Données d''entrée'!$C$332*($K480-SUM($C491:P491)),0))","v":0},{"$f":"IF(Q430<1+$B490,0,IF(Q430<'1 Données d''entrée'!$C$334+'1 Données d''entrée'!$C$333+1+$B490,'1 Données d''entrée'!$C$332*($K480-SUM($C491:Q491)),0))","v":0},{"$f":"IF(R430<1+$B490,0,IF(R430<'1 Données d''entrée'!$C$334+'1 Données d''entrée'!$C$333+1+$B490,'1 Données d''entrée'!$C$332*($K480-SUM($C491:R491)),0))","v":0},{"$f":"IF(S430<1+$B490,0,IF(S430<'1 Données d''entrée'!$C$334+'1 Données d''entrée'!$C$333+1+$B490,'1 Données d''entrée'!$C$332*($K480-SUM($C491:S491)),0))","v":0},{"$f":"IF(T430<1+$B490,0,IF(T430<'1 Données d''entrée'!$C$334+'1 Données d''entrée'!$C$333+1+$B490,'1 Données d''entrée'!$C$332*($K480-SUM($C491:T491)),0))","v":0},{"$f":"IF(U430<1+$B490,0,IF(U430<'1 Données d''entrée'!$C$334+'1 Données d''entrée'!$C$333+1+$B490,'1 Données d''entrée'!$C$332*($K480-SUM($C491:U491)),0))","v":0}]
["Paiement d'intêrets",10,0,{"$f":"IF(C430<1+$B491,0,IF(C430<'1 Données d''entrée'!$C$334+'1 Données d''entrée'!$C$333+1+$B491,'1 Données d''entrée'!$C$332*($L480-SUM($C492:C492)),0))","v":0},{"$f":"IF(D430<1+$B491,0,IF(D430<'1 Données d''entrée'!$C$334+'1 Données d''entrée'!$C$333+1+$B491,'1 Données d''entrée'!$C$332*($L480-SUM($C492:D492)),0))","v":0},{"$f":"IF(E430<1+$B491,0,IF(E430<'1 Données d''entrée'!$C$334+'1 Données d''entrée'!$C$333+1+$B491,'1 Données d''entrée'!$C$332*($L480-SUM($C492:E492)),0))","v":0},{"$f":"IF(F430<1+$B491,0,IF(F430<'1 Données d''entrée'!$C$334+'1 Données d''entrée'!$C$333+1+$B491,'1 Données d''entrée'!$C$332*($L480-SUM($C492:F492)),0))","v":0},{"$f":"IF(G430<1+$B491,0,IF(G430<'1 Données d''entrée'!$C$334+'1 Données d''entrée'!$C$333+1+$B491,'1 Données d''entrée'!$C$332*($L480-SUM($C492:G492)),0))","v":0},{"$f":"IF(H430<1+$B491,0,IF(H430<'1 Données d''entrée'!$C$334+'1 Données d''entrée'!$C$333+1+$B491,'1 Données d''entrée'!$C$332*($L480-SUM($C492:H492)),0))","v":0},{"$f":"IF(I430<1+$B491,0,IF(I430<'1 Données d''entrée'!$C$334+'1 Données d''entrée'!$C$333+1+$B491,'1 Données d''entrée'!$C$332*($L480-SUM($C492:I492)),0))","v":0},{"$f":"IF(J430<1+$B491,0,IF(J430<'1 Données d''entrée'!$C$334+'1 Données d''entrée'!$C$333+1+$B491,'1 Données d''entrée'!$C$332*($L480-SUM($C492:J492)),0))","v":0},{"$f":"IF(K430<1+$B491,0,IF(K430<'1 Données d''entrée'!$C$334+'1 Données d''entrée'!$C$333+1+$B491,'1 Données d''entrée'!$C$332*($L480-SUM($C492:K492)),0))","v":0},{"$f":"IF(L430<1+$B491,0,IF(L430<'1 Données d''entrée'!$C$334+'1 Données d''entrée'!$C$333+1+$B491,'1 Données d''entrée'!$C$332*($L480-SUM($C492:L492)),0))","v":0},{"$f":"IF(M430<1+$B491,0,IF(M430<'1 Données d''entrée'!$C$334+'1 Données d''entrée'!$C$333+1+$B491,'1 Données d''entrée'!$C$332*($L480-SUM($C492:M492)),0))","v":0},{"$f":"IF(N430<1+$B491,0,IF(N430<'1 Données d''entrée'!$C$334+'1 Données d''entrée'!$C$333+1+$B491,'1 Données d''entrée'!$C$332*($L480-SUM($C492:N492)),0))","v":0},{"$f":"IF(O430<1+$B491,0,IF(O430<'1 Données d''entrée'!$C$334+'1 Données d''entrée'!$C$333+1+$B491,'1 Données d''entrée'!$C$332*($L480-SUM($C492:O492)),0))","v":0},{"$f":"IF(P430<1+$B491,0,IF(P430<'1 Données d''entrée'!$C$334+'1 Données d''entrée'!$C$333+1+$B491,'1 Données d''entrée'!$C$332*($L480-SUM($C492:P492)),0))","v":0},{"$f":"IF(Q430<1+$B491,0,IF(Q430<'1 Données d''entrée'!$C$334+'1 Données d''entrée'!$C$333+1+$B491,'1 Données d''entrée'!$C$332*($L480-SUM($C492:Q492)),0))","v":0},{"$f":"IF(R430<1+$B491,0,IF(R430<'1 Données d''entrée'!$C$334+'1 Données d''entrée'!$C$333+1+$B491,'1 Données d''entrée'!$C$332*($L480-SUM($C492:R492)),0))","v":0},{"$f":"IF(S430<1+$B491,0,IF(S430<'1 Données d''entrée'!$C$334+'1 Données d''entrée'!$C$333+1+$B491,'1 Données d''entrée'!$C$332*($L480-SUM($C492:S492)),0))","v":0},{"$f":"IF(T430<1+$B491,0,IF(T430<'1 Données d''entrée'!$C$334+'1 Données d''entrée'!$C$333+1+$B491,'1 Données d''entrée'!$C$332*($L480-SUM($C492:T492)),0))","v":0},{"$f":"IF(U430<1+$B491,0,IF(U430<'1 Données d''entrée'!$C$334+'1 Données d''entrée'!$C$333+1+$B491,'1 Données d''entrée'!$C$332*($L480-SUM($C492:U492)),0))","v":0}]
[]
[null,"Période",1,2,3,4,5,6,7,8,9,10,11,12,13,14,15,16,17,18,19,20]
["Prêt bancaire additionnel- Option 2: Remboursement du principal final",{"$f":"'1 Données d''entrée'!$B$343","v":0}]
["Prêt(s) nouveau(x)",null,{"$f":"IF(C473<0,C473*(-1)*$B507+C473*(-1)*$B507*'1 Données d''entrée'!$C$338,0)","v":{"$error":"#DIV/0!"}},{"$f":"IF(D473<0,D473*(-1)*$B507+D473*(-1)*$B507*'1 Données d''entrée'!$C$338,0)","v":{"$error":"#DIV/0!"}},{"$f":"IF(E473<0,E473*(-1)*$B507+E473*(-1)*$B507*'1 Données d''entrée'!$C$338,0)","v":{"$error":"#DIV/0!"}},{"$f":"IF(F473<0,F473*(-1)*$B507+F473*(-1)*$B507*'1 Données d''entrée'!$C$338,0)","v":{"$error":"#DIV/0!"}},{"$f":"IF(G473<0,G473*(-1)*$B507+G473*(-1)*$B507*'1 Données d''entrée'!$C$338,0)","v":{"$error":"#DIV/0!"}},{"$f":"IF(H473<0,H473*(-1)*$B507+H473*(-1)*$B507*'1 Données d''entrée'!$C$338,0)","v":{"$error":"#DIV/0!"}},{"$f":"IF(I473<0,I473*(-1)*$B507+I473*(-1)*$B507*'1 Données d''entrée'!$C$338,0)","v":{"$error":"#DIV/0!"}},{"$f":"IF(J473<0,J473*(-1)*$B507+J473*(-1)*$B507*'1 Données d''entrée'!$C$338,0)","v":{"$error":"#DIV/0!"}},{"$f":"IF(K473<0,K473*(-1)*$B507+K473*(-1)*$B507*'1 Données d''entrée'!$C$338,0)","v":{"$error":"#DIV/0!"}},{"$f":"IF(L473<0,L473*(-1)*$B507+L473*(-1)*$B507*'1 Données d''entrée'!$C$338,0)","v":{"$error":"#DIV/0!"}},{"$f":"IF(M473<0,M473*(-1)*$B507+M473*(-1)*$B507*'1 Données d''entrée'!$C$338,0)","v":{"$error":"#DIV/0!"}},{"$f":"IF(N473<0,N473*(-1)*$B507+N473*(-1)*$B507*'1 Données d''entrée'!$C$338,0)","v":{"$error":"#DIV/0!"}},{"$f":"IF(O473<0,O473*(-1)*$B507+O473*(-1)*$B507*'1 Données d''entrée'!$C$338,0)","v":{"$error":"#DIV/0!"}},{"$f":"IF(P473<0,P473*(-1)*$B507+P473*(-1)*$B507*'1 Données d''entrée'!$C$338,0)","v":{"$error":"#DIV/0!"}},{"$f":"IF(Q473<0,Q473*(-1)*$B507+Q473*(-1)*$B507*'1 Données d''entrée'!$C$338,0)","v":{"$error":"#DIV/0!"}},{"$f":"IF(R473<0,R473*(-1)*$B507+R473*(-1)*$B507*'1 Données d''entrée'!$C$338,0)","v":{"$error":"#DIV/0!"}},{"$f":"IF(S473<0,S473*(-1)*$B507+S473*(-1)*$B507*'1 Données d''entrée'!$C$338,0)","v":{"$error":"#DIV/0!"}},{"$f":"IF(T473<0,T473*(-1)*$B507+T473*(-1)*$B507*'1 Données d''entrée'!$C$338,0)","v":{"$error":"#DIV/0!"}},{"$f":"IF(U473<0,U473*(-1)*$B507+U473*(-1)*$B507*'1 Données d''entrée'!$C$338,0)","v":{"$error":"#DIV/0!"}},{"$f":"IF(V473<0,V473*(-1)*$B507+V473*(-1)*$B507*'1 Données d''entrée'!$C$338,0)","v":{"$error":"#DIV/0!"}}]
[null,"Période de prêt nouveau"]
["Remboursement du principal",0,0,0,0,0,0,0,0,0,0,0,0,0,0,0,0,0,0,0,0,0]
[null,1,{"$f":"IF(C506='1 Données d''entrée'!$C$333+'1 Données d''entrée'!$C$334+$B511,$C508,0)","v":{"$error":"#DIV/0!"}},{"$f":"IF(D506='1 Données d''entrée'!$C$333+'1 Données d''entrée'!$C$334+$B511,$C508,0)","v":0},{"$f":"IF(E506='1 Données d''entrée'!$C$333+'1 Données d''entrée'!$C$334+$B511,$C508,0)","v":0},{"$f":"IF(F506='1 Données d''entrée'!$C$333+'1 Données d''entrée'!$C$334+$B511,$C508,0)","v":0},{"$f":"IF(G506='1 Données d''entrée'!$C$333+'1 Données d''entrée'!$C$334+$B511,$C508,0)","v":0},{"$f":"IF(H506='1 Données d''entrée'!$C$333+'1 Données d''entrée'!$C$334+$B511,$C508,0)","v":0},{"$f":"IF(I506='1 Données d''entrée'!$C$333+'1 Données d''entrée'!$C$334+$B511,$C508,0)","v":0},{"$f":"IF(J506='1 Données d''entrée'!$C$333+'1 Données d''entrée'!$C$334+$B511,$C508,0)","v":0},{"$f":"IF(K506='1 Données d''entrée'!$C$333+'1 Données d''entrée'!$C$334+$B511,$C508,0)","v":0},{"$f":"IF(L506='1 Données d''entrée'!$C$333+'1 Données d''entrée'!$C$334+$B511,$C508,0)","v":0},{"$f":"IF(M506='1 Données d''entrée'!$C$333+'1 Données d''entrée'!$C$334+$B511,$C508,0)","v":0},{"$f":"IF(N506='1 Données d''entrée'!$C$333+'1 Données d''entrée'!$C$334+$B511,$C508,0)","v":0},{"$f":"IF(O506='1 Données d''entrée'!$C$333+'1 Données d''entrée'!$C$334+$B511,$C508,0)","v":0},{"$f":"IF(P506='1 Données d''entrée'!$C$333+'1 Données d''entrée'!$C$334+$B511,$C508,0)","v":0},{"$f":"IF(Q506='1 Données d''entrée'!$C$333+'1 Données d''entrée'!$C$334+$B511,$C508,0)","v":0},{"$f":"IF(R506='1 Données d''entrée'!$C$333+'1 Données d''entrée'!$C$334+$B511,$C508,0)","v":0},{"$f":"IF(S506='1 Données d''entrée'!$C$333+'1 Données d''entrée'!$C$334+$B511,$C508,0)","v":0},{"$f":"IF(T506='1 Données d''entrée'!$C$333+'1 Données d''entrée'!$C$334+$B511,$C508,0)","v":0},{"$f":"IF(U506='1 Données d''entrée'!$C$333+'1 Données d''entrée'!$C$334+$B511,$C508,0)","v":0},{"$f":"IF(V506='1 Données d''entrée'!$C$333+'1 Données d''entrée'!$C$334+$B511,$C508,0)","v":0}]
[null,2,{"$f":"IF(C506='1 Données d''entrée'!$C$333+'1 Données d''entrée'!$C$334+$B512,$D508,0)","v":0},{"$f":"IF(D506='1 Données d''entrée'!$C$333+'1 Données d''entrée'!$C$334+$B512,$D508,0)","v":{"$error":"#DIV/0!"}},{"$f":"IF(E506='1 Données d''entrée'!$C$333+'1 Données d''entrée'!$C$334+$B512,$D508,0)","v":0},{"$f":"IF(F506='1 Données d''entrée'!$C$333+'1 Données d''entrée'!$C$334+$B512,$D508,0)","v":0},{"$f":"IF(G506='1 Données d''entrée'!$C$333+'1 Données d''entrée'!$C$334+$B512,$D508,0)","v":0},{"$f":"IF(H506='1 Données d''entrée'!$C$333+'1 Données d''entrée'!$C$334+$B512,$D508,0)","v":0},{"$f":"IF(I506='1 Données d''entrée'!$C$333+'1 Données d''entrée'!$C$334+$B512,$D508,0)","v":0},{"$f":"IF(J506='1 Données d''entrée'!$C$333+'1 Données d''entrée'!$C$334+$B512,$D508,0)","v":0},{"$f":"IF(K506='1 Données d''entrée'!$C$333+'1 Données d''entrée'!$C$334+$B512,$D508,0)","v":0},{"$f":"IF(L506='1 Données d''entrée'!$C$333+'1 Données d''entrée'!$C$334+$B512,$D508,0)","v":0},{"$f":"IF(M506='1 Données d''entrée'!$C$333+'1 Données d''entrée'!$C$334+$B512,$D508,0)","v":0},{"$f":"IF(N506='1 Données d''entrée'!$C$333+'1 Données d''entrée'!$C$334+$B512,$D508,0)","v":0},{"$f":"IF(O506='1 Données d''entrée'!$C$333+'1 Données d''entrée'!$C$334+$B512,$D508,0)","v":0},{"$f":"IF(P506='1 Données d''entrée'!$C$333+'1 Données d''entrée'!$C$334+$B512,$D508,0)","v":0},{"$f":"IF(Q506='1 Données d''entrée'!$C$333+'1 Données d''entrée'!$C$334+$B512,$D508,0)","v":0},{"$f":"IF(R506='1 Données d''entrée'!$C$333+'1 Données d''entrée'!$C$334+$B512,$D508,0)","v":0},{"$f":"IF(S506='1 Données d''entrée'!$C$333+'1 Données d''entrée'!$C$334+$B512,$D508,0)","v":0},{"$f":"IF(T506='1 Données d''entrée'!$C$333+'1 Données d''entrée'!$C$334+$B512,$D508,0)","v":0},{"$f":"IF(U506='1 Données d''entrée'!$C$333+'1 Données d''entrée'!$C$334+$B512,$D508,0)","v":0},{"$f":"IF(V506='1 Données d''entrée'!$C$333+'1 Données d''entrée'!$C$334+$B512,$D508,0)","v":0}]
[null,3,{"$f":"IF(C506='1 Données d''entrée'!$C$333+'1 Données d''entrée'!$C$334+$B513,$E508,0)","v":0},{"$f":"IF(D506='1 Données d''entrée'!$C$333+'1 Données d''entrée'!$C$334+$B513,$E508,0)","v":0},{"$f":"IF(E506='1 Données d''entrée'!$C$333+'1 Données d''entrée'!$C$334+$B513,$E508,0)","v":{"$error":"#DIV/0!"}},{"$f":"IF(F506='1 Données d''entrée'!$C$333+'1 Données d''entrée'!$C$334+$B513,$E508,0)","v":0},{"$f":"IF(G506='1 Données d''entrée'!$C$333+'1 Données d''entrée'!$C$334+$B513,$E508,0)","v":0},{"$f":"IF(H506='1 Données d''entrée'!$C$333+'1 Données d''entrée'!$C$334+$B513,$E508,0)","v":0},{"$f":"IF(I506='1 Données d''entrée'!$C$333+'1 Données d''entrée'!$C$334+$B513,$E508,0)","v":0},{"$f":"IF(J506='1 Données d''entrée'!$C$333+'1 Données d''entrée'!$C$334+$B513,$E508,0)","v":0},{"$f":"IF(K506='1 Données d''entrée'!$C$333+'1 Données d''entrée'!$C$334+$B513,$E508,0)","v":0},{"$f":"IF(L506='1 Données d''entrée'!$C$333+'1 Données d''entrée'!$C$334+$B513,$E508,0)","v":0},{"$f":"IF(M506='1 Données d''entrée'!$C$333+'1 Données d''entrée'!$C$334+$B513,$E508,0)","v":0},{"$f":"IF(N506='1 Données d''entrée'!$C$333+'1 Données d''entrée'!$C$334+$B513,$E508,0)","v":0},{"$f":"IF(O506='1 Données d''entrée'!$C$333+'1 Données d''entrée'!$C$334+$B513,$E508,0)","v":0},{"$f":"IF(P506='1 Données d''entrée'!$C$333+'1 Données d''entrée'!$C$334+$B513,$E508,0)","v":0},{"$f":"IF(Q506='1 Données d''entrée'!$C$333+'1 Données d''entrée'!$C$334+$B513,$E508,0)","v":0},{"$f":"IF(R506='1 Données d''entrée'!$C$333+'1 Données d''entrée'!$C$334+$B513,$E508,0)","v":0},{"$f":"IF(S506='1 Données d''entrée'!$C$333+'1 Données d''entrée'!$C$334+$B513,$E508,0)","v":0},{"$f":"IF(T506='1 Données d''entrée'!$C$333+'1 Données d''entrée'!$C$334+$B513,$E508,0)","v":0},{"$f":"IF(U506='1 Données d''entrée'!$C$333+'1 Données d''entrée'!$C$334+$B513,$E508,0)","v":0},{"$f":"IF(V506='1 Données d''entrée'!$C$333+'1 Données d''entrée'!$C$334+$B513,$E508,0)","v":0}]
[null,4,{"$f":"IF(C506='1 Données d''entrée'!$C$333+'1 Données d''entrée'!$C$334+$B514,$F508,0)","v":0},{"$f":"IF(D506='1 Données d''entrée'!$C$333+'1 Données d''entrée'!$C$334+$B514,$F508,0)","v":0},{"$f":"IF(E506='1 Données d''entrée'!$C$333+'1 Données d''entrée'!$C$334+$B514,$F508,0)","v":0},{"$f":"IF(F506='1 Données d''entrée'!$C$333+'1 Données d''entrée'!$C$334+$B514,$F508,0)","v":{"$error":"#DIV/0!"}},{"$f":"IF(G506='1 Données d''entrée'!$C$333+'1 Données d''entrée'!$C$334+$B514,$F508,0)","v":0},{"$f":"IF(H506='1 Données d''entrée'!$C$333+'1 Données d''entrée'!$C$334+$B514,$F508,0)","v":0},{"$f":"IF(I506='1 Données d''entrée'!$C$333+'1 Données d''entrée'!$C$334+$B514,$F508,0)","v":0},{"$f":"IF(J506='1 Données d''entrée'!$C$333+'1 Données d''entrée'!$C$334+$B514,$F508,0)","v":0},{"$f":"IF(K506='1 Données d''entrée'!$C$333+'1 Données d''entrée'!$C$334+$B514,$F508,0)","v":0},{"$f":"IF(L506='1 Données d''entrée'!$C$333+'1 Données d''entrée'!$C$334+$B514,$F508,0)","v":0},{"$f":"IF(M506='1 Données d''entrée'!$C$333+'1 Données d''entrée'!$C$334+$B514,$F508,0)","v":0},{"$f":"IF(N506='1 Données d''entrée'!$C$333+'1 Données d''entrée'!$C$334+$B514,$F508,0)","v":0},{"$f":"IF(O506='1 Données d''entrée'!$C$333+'1 Données d''entrée'!$C$334+$B514,$F508,0)","v":0},{"$f":"IF(P506='1 Données d''entrée'!$C$333+'1 Données d''entrée'!$C$334+$B514,$F508,0)","v":0},{"$f":"IF(Q506='1 Données d''entrée'!$C$333+'1 Données d''entrée'!$C$334+$B514,$F508,0)","v":0},{"$f":"IF(R506='1 Données d''entrée'!$C$333+'1 Données d''entrée'!$C$334+$B514,$F508,0)","v":0},{"$f":"IF(S506='1 Données d''entrée'!$C$333+'1 Données d''entrée'!$C$334+$B514,$F508,0)","v":0},{"$f":"IF(T506='1 Données d''entrée'!$C$333+'1 Données d''entrée'!$C$334+$B514,$F508,0)","v":0},{"$f":"IF(U506='1 Données d''entrée'!$C$333+'1 Données d''entrée'!$C$334+$B514,$F508,0)","v":0},{"$f":"IF(V506='1 Données d''entrée'!$C$333+'1 Données d''entrée'!$C$334+$B514,$F508,0)","v":0}]
[null,5,{"$f":"IF(C506='1 Données d''entrée'!$C$333+'1 Données d''entrée'!$C$334+$B515,$G508,0)","v":0},{"$f":"IF(D506='1 Données d''entrée'!$C$333+'1 Données d''entrée'!$C$334+$B515,$G508,0)","v":0},{"$f":"IF(E506='1 Données d''entrée'!$C$333+'1 Données d''entrée'!$C$334+$B515,$G508,0)","v":0},{"$f":"IF(F506='1 Données d''entrée'!$C$333+'1 Données d''entrée'!$C$334+$B515,$G508,0)","v":0},{"$f":"IF(G506='1 Données d''entrée'!$C$333+'1 Données d''entrée'!$C$334+$B515,$G508,0)","v":{"$error":"#DIV/0!"}},{"$f":"IF(H506='1 Données d''entrée'!$C$333+'1 Données d''entrée'!$C$334+$B515,$G508,0)","v":0},{"$f":"IF(I506='1 Données d''entrée'!$C$333+'1 Données d''entrée'!$C$334+$B515,$G508,0)","v":0},{"$f":"IF(J506='1 Données d''entrée'!$C$333+'1 Données d''entrée'!$C$334+$B515,$G508,0)","v":0},{"$f":"IF(K506='1 Données d''entrée'!$C$333+'1 Données d''entrée'!$C$334+$B515,$G508,0)","v":0},{"$f":"IF(L506='1 Données d''entrée'!$C$333+'1 Données d''entrée'!$C$334+$B515,$G508,0)","v":0},{"$f":"IF(M506='1 Données d''entrée'!$C$333+'1 Données d''entrée'!$C$334+$B515,$G508,0)","v":0},{"$f":"IF(N506='1 Données d''entrée'!$C$333+'1 Données d''entrée'!$C$334+$B515,$G508,0)","v":0},{"$f":"IF(O506='1 Données d''entrée'!$C$333+'1 Données d''entrée'!$C$334+$B515,$G508,0)","v":0},{"$f":"IF(P506='1 Données d''entrée'!$C$333+'1 Données d''entrée'!$C$334+$B515,$G508,0)","v":0},{"$f":"IF(Q506='1 Données d''entrée'!$C$333+'1 Données d''entrée'!$C$334+$B515,$G508,0)","v":0},{"$f":"IF(R506='1 Données d''entrée'!$C$333+'1 Données d''entrée'!$C$334+$B515,$G508,0)","v":0},{"$f":"IF(S506='1 Données d''entrée'!$C$333+'1 Données d''entrée'!$C$334+$B515,$G508,0)","v":0},{"$f":"IF(T506='1 Données d''entrée'!$C$333+'1 Données d''entrée'!$C$334+$B515,$G508,0)","v":0},{"$f":"IF(U506='1 Données d''entrée'!$C$333+'1 Données d''entrée'!$C$334+$B515,$G508,0)","v":0},{"$f":"IF(V506='1 Données d''entrée'!$C$333+'1 Données d''entrée'!$C$334+$B515,$G508,0)","v":0}]
[null,6,{"$f":"IF(C506='1 Données d''entrée'!$C$333+'1 Données d''entrée'!$C$334+$B516,$H508,0)","v":0},{"$f":"IF(D506='1 Données d''entrée'!$C$333+'1 Données d''entrée'!$C$334+$B516,$H508,0)","v":0},{"$f":"IF(E506='1 Données d''entrée'!$C$333+'1 Données d''entrée'!$C$334+$B516,$H508,0)","v":0},{"$f":"IF(F506='1 Données d''entrée'!$C$333+'1 Données d''entrée'!$C$334+$B516,$H508,0)","v":0},{"$f":"IF(G506='1 Données d''entrée'!$C$333+'1 Données d''entrée'!$C$334+$B516,$H508,0)","v":0},{"$f":"IF(H506='1 Données d''entrée'!$C$333+'1 Données d''entrée'!$C$334+$B516,$H508,0)","v":{"$error":"#DIV/0!"}},{"$f":"IF(I506='1 Données d''entrée'!$C$333+'1 Données d''entrée'!$C$334+$B516,$H508,0)","v":0},{"$f":"IF(J506='1 Données d''entrée'!$C$333+'1 Données d''entrée'!$C$334+$B516,$H508,0)","v":0},{"$f":"IF(K506='1 Données d''entrée'!$C$333+'1 Données d''entrée'!$C$334+$B516,$H508,0)","v":0},{"$f":"IF(L506='1 Données d''entrée'!$C$333+'1 Données d''entrée'!$C$334+$B516,$H508,0)","v":0},{"$f":"IF(M506='1 Données d''entrée'!$C$333+'1 Données d''entrée'!$C$334+$B516,$H508,0)","v":0},{"$f":"IF(N506='1 Données d''entrée'!$C$333+'1 Données d''entrée'!$C$334+$B516,$H508,0)","v":0},{"$f":"IF(O506='1 Données d''entrée'!$C$333+'1 Données d''entrée'!$C$334+$B516,$H508,0)","v":0},{"$f":"IF(P506='1 Données d''entrée'!$C$333+'1 Données d''entrée'!$C$334+$B516,$H508,0)","v":0},{"$f":"IF(Q506='1 Données d''entrée'!$C$333+'1 Données d''entrée'!$C$334+$B516,$H508,0)","v":0},{"$f":"IF(R506='1 Données d''entrée'!$C$333+'1 Données d''entrée'!$C$334+$B516,$H508,0)","v":0},{"$f":"IF(S506='1 Données d''entrée'!$C$333+'1 Données d''entrée'!$C$334+$B516,$H508,0)","v":0},{"$f":"IF(T506='1 Données d''entrée'!$C$333+'1 Données d''entrée'!$C$334+$B516,$H508,0)","v":0},{"$f":"IF(U506='1 Données d''entrée'!$C$333+'1 Données d''entrée'!$C$334+$B516,$H508,0)","v":0},{"$f":"IF(V506='1 Données d''entrée'!$C$333+'1 Données d''entrée'!$C$334+$B516,$H508,0)","v":0}]
[null,7,{"$f":"IF(C506='1 Données d''entrée'!$C$333+'1 Données d''entrée'!$C$334+$B517,$I508,0)","v":0},{"$f":"IF(D506='1 Données d''entrée'!$C$333+'1 Données d''entrée'!$C$334+$B517,$I508,0)","v":0},{"$f":"IF(E506='1 Données d''entrée'!$C$333+'1 Données d''entrée'!$C$334+$B517,$I508,0)","v":0},{"$f":"IF(F506='1 Données d''entrée'!$C$333+'1 Données d''entrée'!$C$334+$B517,$I508,0)","v":0},{"$f":"IF(G506='1 Données d''entrée'!$C$333+'1 Données d''entrée'!$C$334+$B517,$I508,0)","v":0},{"$f":"IF(H506='1 Données d''entrée'!$C$333+'1 Données d''entrée'!$C$334+$B517,$I508,0)","v":0},{"$f":"IF(I506='1 Données d''entrée'!$C$333+'1 Données d''entrée'!$C$334+$B517,$I508,0)","v":{"$error":"#DIV/0!"}},{"$f":"IF(J506='1 Données d''entrée'!$C$333+'1 Données d''entrée'!$C$334+$B517,$I508,0)","v":0},{"$f":"IF(K506='1 Données d''entrée'!$C$333+'1 Données d''entrée'!$C$334+$B517,$I508,0)","v":0},{"$f":"IF(L506='1 Données d''entrée'!$C$333+'1 Données d''entrée'!$C$334+$B517,$I508,0)","v":0},{"$f":"IF(M506='1 Données d''entrée'!$C$333+'1 Données d''entrée'!$C$334+$B517,$I508,0)","v":0},{"$f":"IF(N506='1 Données d''entrée'!$C$333+'1 Données d''entrée'!$C$334+$B517,$I508,0)","v":0},{"$f":"IF(O506='1 Données d''entrée'!$C$333+'1 Données d''entrée'!$C$334+$B517,$I508,0)","v":0},{"$f":"IF(P506='1 Données d''entrée'!$C$333+'1 Données d''entrée'!$C$334+$B517,$I508,0)","v":0},{"$f":"IF(Q506='1 Données d''entrée'!$C$333+'1 Données d''entrée'!$C$334+$B517,$I508,0)","v":0},{"$f":"IF(R506='1 Données d''entrée'!$C$333+'1 Données d''entrée'!$C$334+$B517,$I508,0)","v":0},{"$f":"IF(S506='1 Données d''entrée'!$C$333+'1 Données d''entrée'!$C$334+$B517,$I508,0)","v":0},{"$f":"IF(T506='1 Données d''entrée'!$C$333+'1 Données d''entrée'!$C$334+$B517,$I508,0)","v":0},{"$f":"IF(U506='1 Données d''entrée'!$C$333+'1 Données d''entrée'!$C$334+$B517,$I508,0)","v":0},{"$f":"IF(V506='1 Données d''entrée'!$C$333+'1 Données d''entrée'!$C$334+$B517,$I508,0)","v":0}]
[null,8,{"$f":"IF(C506='1 Données d''entrée'!$C$333+'1 Données d''entrée'!$C$334+$B518,$J508,0)","v":0},{"$f":"IF(D506='1 Données d''entrée'!$C$333+'1 Données d''entrée'!$C$334+$B518,$J508,0)","v":0},{"$f":"IF(E506='1 Données d''entrée'!$C$333+'1 Données d''entrée'!$C$334+$B518,$J508,0)","v":0},{"$f":"IF(F506='1 Données d''entrée'!$C$333+'1 Données d''entrée'!$C$334+$B518,$J508,0)","v":0},{"$f":"IF(G506='1 Données d''entrée'!$C$333+'1 Données d''entrée'!$C$334+$B518,$J508,0)","v":0},{"$f":"IF(H506='1 Données d''entrée'!$C$333+'1 Données d''entrée'!$C$334+$B518,$J508,0)","v":0},{"$f":"IF(I506='1 Données d''entrée'!$C$333+'1 Données d''entrée'!$C$334+$B518,$J508,0)","v":0},{"$f":"IF(J506='1 Données d''entrée'!$C$333+'1 Données d''entrée'!$C$334+$B518,$J508,0)","v":{"$error":"#DIV/0!"}},{"$f":"IF(K506='1 Données d''entrée'!$C$333+'1 Données d''entrée'!$C$334+$B518,$J508,0)","v":0},{"$f":"IF(L506='1 Données d''entrée'!$C$333+'1 Données d''entrée'!$C$334+$B518,$J508,0)","v":0},{"$f":"IF(M506='1 Données d''entrée'!$C$333+'1 Données d''entrée'!$C$334+$B518,$J508,0)","v":0},{"$f":"IF(N506='1 Données d''entrée'!$C$333+'1 Données d''entrée'!$C$334+$B518,$J508,0)","v":0},{"$f":"IF(O506='1 Données d''entrée'!$C$333+'1 Données d''entrée'!$C$334+$B518,$J508,0)","v":0},{"$f":"IF(P506='1 Données d''entrée'!$C$333+'1 Données d''entrée'!$C$334+$B518,$J508,0)","v":0},{"$f":"IF(Q506='1 Données d''entrée'!$C$333+'1 Données d''entrée'!$C$334+$B518,$J508,0)","v":0},{"$f":"IF(R506='1 Données d''entrée'!$C$333+'1 Données d''entrée'!$C$334+$B518,$J508,0)","v":0},{"$f":"IF(S506='1 Données d''entrée'!$C$333+'1 Données d''entrée'!$C$334+$B518,$J508,0)","v":0},{"$f":"IF(T506='1 Données d''entrée'!$C$333+'1 Données d''entrée'!$C$334+$B518,$J508,0)","v":0},{"$f":"IF(U506='1 Données d''entrée'!$C$333+'1 Données d''entrée'!$C$334+$B518,$J508,0)","v":0},{"$f":"IF(V506='1 Données d''entrée'!$C$333+'1 Données d''entrée'!$C$334+$B518,$J508,0)","v":0}]
[null,9,{"$f":"IF(C506='1 Données d''entrée'!$C$333+'1 Données d''entrée'!$C$334+$B519,$K508,0)","v":0},{"$f":"IF(D506='1 Données d''entrée'!$C$333+'1 Données d''entrée'!$C$334+$B519,$K508,0)","v":0},{"$f":"IF(E506='1 Données d''entrée'!$C$333+'1 Données d''entrée'!$C$334+$B519,$K508,0)","v":0},{"$f":"IF(F506='1 Données d''entrée'!$C$333+'1 Données d''entrée'!$C$334+$B519,$K508,0)","v":0},{"$f":"IF(G506='1 Données d''entrée'!$C$333+'1 Données d''entrée'!$C$334+$B519,$K508,0)","v":0},{"$f":"IF(H506='1 Données d''entrée'!$C$333+'1 Données d''entrée'!$C$334+$B519,$K508,0)","v":0},{"$f":"IF(I506='1 Données d''entrée'!$C$333+'1 Données d''entrée'!$C$334+$B519,$K508,0)","v":0},{"$f":"IF(J506='1 Données d''entrée'!$C$333+'1 Données d''entrée'!$C$334+$B519,$K508,0)","v":0},{"$f":"IF(K506='1 Données d''entrée'!$C$333+'1 Données d''entrée'!$C$334+$B519,$K508,0)","v":{"$error":"#DIV/0!"}},{"$f":"IF(L506='1 Données d''entrée'!$C$333+'1 Données d''entrée'!$C$334+$B519,$K508,0)","v":0},{"$f":"IF(M506='1 Données d''entrée'!$C$333+'1 Données d''entrée'!$C$334+$B519,$K508,0)","v":0},{"$f":"IF(N506='1 Données d''entrée'!$C$333+'1 Données d''entrée'!$C$334+$B519,$K508,0)","v":0},{"$f":"IF(O506='1 Données d''entrée'!$C$333+'1 Données d''entrée'!$C$334+$B519,$K508,0)","v":0},{"$f":"IF(P506='1 Données d''entrée'!$C$333+'1 Données d''entrée'!$C$334+$B519,$K508,0)","v":0},{"$f":"IF(Q506='1 Données d''entrée'!$C$333+'1 Données d''entrée'!$C$334+$B519,$K508,0)","v":0},{"$f":"IF(R506='1 Données d''entrée'!$C$333+'1 Données d''entrée'!$C$334+$B519,$K508,0)","v":0},{"$f":"IF(S506='1 Données d''entrée'!$C$333+'1 Données d''entrée'!$C$334+$B519,$K508,0)","v":0},{"$f":"IF(T506='1 Données d''entrée'!$C$333+'1 Données d''entrée'!$C$334+$B519,$K508,0)","v":0},{"$f":"IF(U506='1 Données d''entrée'!$C$333+'1 Données d''entrée'!$C$334+$B519,$K508,0)","v":0},{"$f":"IF(V506='1 Données d''entrée'!$C$333+'1 Données d''entrée'!$C$334+$B519,$K508,0)","v":0}]
[null,10,{"$f":"IF(C506='1 Données d''entrée'!$C$333+'1 Données d''entrée'!$C$334+$B520,$L508,0)","v":0},{"$f":"IF(D506='1 Données d''entrée'!$C$333+'1 Données d''entrée'!$C$334+$B520,$L508,0)","v":0},{"$f":"IF(E506='1 Données d''entrée'!$C$333+'1 Données d''entrée'!$C$334+$B520,$L508,0)","v":0},{"$f":"IF(F506='1 Données d''entrée'!$C$333+'1 Données d''entrée'!$C$334+$B520,$L508,0)","v":0},{"$f":"IF(G506='1 Données d''entrée'!$C$333+'1 Données d''entrée'!$C$334+$B520,$L508,0)","v":0},{"$f":"IF(H506='1 Données d''entrée'!$C$333+'1 Données d''entrée'!$C$334+$B520,$L508,0)","v":0},{"$f":"IF(I506='1 Données d''entrée'!$C$333+'1 Données d''entrée'!$C$334+$B520,$L508,0)","v":0},{"$f":"IF(J506='1 Données d''entrée'!$C$333+'1 Données d''entrée'!$C$334+$B520,$L508,0)","v":0},{"$f":"IF(K506='1 Données d''entrée'!$C$333+'1 Données d''entrée'!$C$334+$B520,$L508,0)","v":0},{"$f":"IF(L506='1 Données d''entrée'!$C$333+'1 Données d''entrée'!$C$334+$B520,$L508,0)","v":{"$error":"#DIV/0!"}},{"$f":"IF(M506='1 Données d''entrée'!$C$333+'1 Données d''entrée'!$C$334+$B520,$L508,0)","v":0},{"$f":"IF(N506='1 Données d''entrée'!$C$333+'1 Données d''entrée'!$C$334+$B520,$L508,0)","v":0},{"$f":"IF(O506='1 Données d''entrée'!$C$333+'1 Données d''entrée'!$C$334+$B520,$L508,0)","v":0},{"$f":"IF(P506='1 Données d''entrée'!$C$333+'1 Données d''entrée'!$C$334+$B520,$L508,0)","v":0},{"$f":"IF(Q506='1 Données d''entrée'!$C$333+'1 Données d''entrée'!$C$334+$B520,$L508,0)","v":0},{"$f":"IF(R506='1 Données d''entrée'!$C$333+'1 Données d''entrée'!$C$334+$B520,$L508,0)","v":0},{"$f":"IF(S506='1 Données d''entrée'!$C$333+'1 Données d''entrée'!$C$334+$B520,$L508,0)","v":0},{"$f":"IF(T506='1 Données d''entrée'!$C$333+'1 Données d''entrée'!$C$334+$B520,$L508,0)","v":0},{"$f":"IF(U506='1 Données d''entrée'!$C$333+'1 Données d''entrée'!$C$334+$B520,$L508,0)","v":0},{"$f":"IF(V506='1 Données d''entrée'!$C$333+'1 Données d''entrée'!$C$334+$B520,$L508,0)","v":0}]
[null,"Période de prêt nouveau"]
["Paiement d'intérêts",0,0,0,0,0,0,0,0,0,0,0,0,0,0,0,0,0,0,0,0,0]
["Paiement d'intêrets",1,0,{"$f":"IF(C430<1+$B510,0,IF(C430<'1 Données d''entrée'!$C$334+'1 Données d''entrée'!$C$333+1+$B510,'1 Données d''entrée'!$C$332*($C508-SUM($C511:C511)),0))","v":0},{"$f":"IF(D430<1+$B510,0,IF(D430<'1 Données d''entrée'!$C$334+'1 Données d''entrée'!$C$333+1+$B510,'1 Données d''entrée'!$C$332*($C508-SUM($C511:D511)),0))","v":0},{"$f":"IF(E430<1+$B510,0,IF(E430<'1 Données d''entrée'!$C$334+'1 Données d''entrée'!$C$333+1+$B510,'1 Données d''entrée'!$C$332*($C508-SUM($C511:E511)),0))","v":0},{"$f":"IF(F430<1+$B510,0,IF(F430<'1 Données d''entrée'!$C$334+'1 Données d''entrée'!$C$333+1+$B510,'1 Données d''entrée'!$C$332*($C508-SUM($C511:F511)),0))","v":0},{"$f":"IF(G430<1+$B510,0,IF(G430<'1 Données d''entrée'!$C$334+'1 Données d''entrée'!$C$333+1+$B510,'1 Données d''entrée'!$C$332*($C508-SUM($C511:G511)),0))","v":0},{"$f":"IF(H430<1+$B510,0,IF(H430<'1 Données d''entrée'!$C$334+'1 Données d''entrée'!$C$333+1+$B510,'1 Données d''entrée'!$C$332*($C508-SUM($C511:H511)),0))","v":0},{"$f":"IF(I430<1+$B510,0,IF(I430<'1 Données d''entrée'!$C$334+'1 Données d''entrée'!$C$333+1+$B510,'1 Données d''entrée'!$C$332*($C508-SUM($C511:I511)),0))","v":0},{"$f":"IF(J430<1+$B510,0,IF(J430<'1 Données d''entrée'!$C$334+'1 Données d''entrée'!$C$333+1+$B510,'1 Données d''entrée'!$C$332*($C508-SUM($C511:J511)),0))","v":0},{"$f":"IF(K430<1+$B510,0,IF(K430<'1 Données d''entrée'!$C$334+'1 Données d''entrée'!$C$333+1+$B510,'1 Données d''entrée'!$C$332*($C508-SUM($C511:K511)),0))","v":0},{"$f":"IF(L430<1+$B510,0,IF(L430<'1 Données d''entrée'!$C$334+'1 Données d''entrée'!$C$333+1+$B510,'1 Données d''entrée'!$C$332*($C508-SUM($C511:L511)),0))","v":0},{"$f":"IF(M430<1+$B510,0,IF(M430<'1 Données d''entrée'!$C$334+'1 Données d''entrée'!$C$333+1+$B510,'1 Données d''entrée'!$C$332*($C508-SUM($C511:M511)),0))","v":0},{"$f":"IF(N430<1+$B510,0,IF(N430<'1 Données d''entrée'!$C$334+'1 Données d''entrée'!$C$333+1+$B510,'1 Données d''entrée'!$C$332*($C508-SUM($C511:N511)),0))","v":0},{"$f":"IF(O430<1+$B510,0,IF(O430<'1 Données d''entrée'!$C$334+'1 Données d''entrée'!$C$333+1+$B510,'1 Données d''entrée'!$C$332*($C508-SUM($C511:O511)),0))","v":0},{"$f":"IF(P430<1+$B510,0,IF(P430<'1 Données d''entrée'!$C$334+'1 Données d''entrée'!$C$333+1+$B510,'1 Données d''entrée'!$C$332*($C508-SUM($C511:P511)),0))","v":0},{"$f":"IF(Q430<1+$B510,0,IF(Q430<'1 Données d''entrée'!$C$334+'1 Données d''entrée'!$C$333+1+$B510,'1 Données d''entrée'!$C$332*($C508-SUM($C511:Q511)),0))","v":0},{"$f":"IF(R430<1+$B510,0,IF(R430<'1 Données d''entrée'!$C$334+'1 Données d''entrée'!$C$333+1+$B510,'1 Données d''entrée'!$C$332*($C508-SUM($C511:R511)),0))","v":0},{"$f":"IF(S430<1+$B510,0,IF(S430<'1 Données d''entrée'!$C$334+'1 Données d''entrée'!$C$333+1+$B510,'1 Données d''entrée'!$C$332*($C508-SUM($C511:S511)),0))","v":0},{"$f":"IF(T430<1+$B510,0,IF(T430<'1 Données d''entrée'!$C$334+'1 Données d''entrée'!$C$333+1+$B510,'1 Données d''entrée'!$C$332*($C508-SUM($C511:T511)),0))","v":0},{"$f":"IF(U430<1+$B510,0,IF(U430<'1 Données d''entrée'!$C$334+'1 Données d''entrée'!$C$333+1+$B510,'1 Données d''entrée'!$C$332*($C508-SUM($C511:U511)),0))","v":0}]
["Paiement d'intêrets",2,0,{"$f":"IF(C430<1+$B511,0,IF(C430<'1 Données d''entrée'!$C$334+'1 Données d''entrée'!$C$333+1+$B511,'1 Données d''entrée'!$C$332*($D508-SUM($C512:C512)),0))","v":0},{"$f":"IF(D430<1+$B511,0,IF(D430<'1 Données d''entrée'!$C$334+'1 Données d''entrée'!$C$333+1+$B511,'1 Données d''entrée'!$C$332*($D508-SUM($C512:D512)),0))","v":0},{"$f":"IF(E430<1+$B511,0,IF(E430<'1 Données d''entrée'!$C$334+'1 Données d''entrée'!$C$333+1+$B511,'1 Données d''entrée'!$C$332*($D508-SUM($C512:E512)),0))","v":0},{"$f":"IF(F430<1+$B511,0,IF(F430<'1 Données d''entrée'!$C$334+'1 Données d''entrée'!$C$333+1+$B511,'1 Données d''entrée'!$C$332*($D508-SUM($C512:F512)),0))","v":0},{"$f":"IF(G430<1+$B511,0,IF(G430<'1 Données d''entrée'!$C$334+'1 Données d''entrée'!$C$333+1+$B511,'1 Données d''entrée'!$C$332*($D508-SUM($C512:G512)),0))","v":0},{"$f":"IF(H430<1+$B511,0,IF(H430<'1 Données d''entrée'!$C$334+'1 Données d''entrée'!$C$333+1+$B511,'1 Données d''entrée'!$C$332*($D508-SUM($C512:H512)),0))","v":0},{"$f":"IF(I430<1+$B511,0,IF(I430<'1 Données d''entrée'!$C$334+'1 Données d''entrée'!$C$333+1+$B511,'1 Données d''entrée'!$C$332*($D508-SUM($C512:I512)),0))","v":0},{"$f":"IF(J430<1+$B511,0,IF(J430<'1 Données d''entrée'!$C$334+'1 Données d''entrée'!$C$333+1+$B511,'1 Données d''entrée'!$C$332*($D508-SUM($C512:J512)),0))","v":0},{"$f":"IF(K430<1+$B511,0,IF(K430<'1 Données d''entrée'!$C$334+'1 Données d''entrée'!$C$333+1+$B511,'1 Données d''entrée'!$C$332*($D508-SUM($C512:K512)),0))","v":0},{"$f":"IF(L430<1+$B511,0,IF(L430<'1 Données d''entrée'!$C$334+'1 Données d''entrée'!$C$333+1+$B511,'1 Données d''entrée'!$C$332*($D508-SUM($C512:L512)),0))","v":0},{"$f":"IF(M430<1+$B511,0,IF(M430<'1 Données d''entrée'!$C$334+'1 Données d''entrée'!$C$333+1+$B511,'1 Données d''entrée'!$C$332*($D508-SUM($C512:M512)),0))","v":0},{"$f":"IF(N430<1+$B511,0,IF(N430<'1 Données d''entrée'!$C$334+'1 Données d''entrée'!$C$333+1+$B511,'1 Données d''entrée'!$C$332*($D508-SUM($C512:N512)),0))","v":0},{"$f":"IF(O430<1+$B511,0,IF(O430<'1 Données d''entrée'!$C$334+'1 Données d''entrée'!$C$333+1+$B511,'1 Données d''entrée'!$C$332*($D508-SUM($C512:O512)),0))","v":0},{"$f":"IF(P430<1+$B511,0,IF(P430<'1 Données d''entrée'!$C$334+'1 Données d''entrée'!$C$333+1+$B511,'1 Données d''entrée'!$C$332*($D508-SUM($C512:P512)),0))","v":0},{"$f":"IF(Q430<1+$B511,0,IF(Q430<'1 Données d''entrée'!$C$334+'1 Données d''entrée'!$C$333+1+$B511,'1 Données d''entrée'!$C$332*($D508-SUM($C512:Q512)),0))","v":0},{"$f":"IF(R430<1+$B511,0,IF(R430<'1 Données d''entrée'!$C$334+'1 Données d''entrée'!$C$333+1+$B511,'1 Données d''entrée'!$C$332*($D508-SUM($C512:R512)),0))","v":0},{"$f":"IF(S430<1+$B511,0,IF(S430<'1 Données d''entrée'!$C$334+'1 Données d''entrée'!$C$333+1+$B511,'1 Données d''entrée'!$C$332*($D508-SUM($C512:S512)),0))","v":0},{"$f":"IF(T430<1+$B511,0,IF(T430<'1 Données d''entrée'!$C$334+'1 Données d''entrée'!$C$333+1+$B511,'1 Données d''entrée'!$C$332*($D508-SUM($C512:T512)),0))","v":0},{"$f":"IF(U430<1+$B511,0,IF(U430<'1 Données d''entrée'!$C$334+'1 Données d''entrée'!$C$333+1+$B511,'1 Données d''entrée'!$C$332*($D508-SUM($C512:U512)),0))","v":0}]
["Paiement d'intêrets",3,0,{"$f":"IF(C430<1+$B512,0,IF(C430<'1 Données d''entrée'!$C$334+'1 Données d''entrée'!$C$333+1+$B512,'1 Données d''entrée'!$C$332*($E508-SUM($C513:C513)),0))","v":0},{"$f":"IF(D430<1+$B512,0,IF(D430<'1 Données d''entrée'!$C$334+'1 Données d''entrée'!$C$333+1+$B512,'1 Données d''entrée'!$C$332*($E508-SUM($C513:D513)),0))","v":0},{"$f":"IF(E430<1+$B512,0,IF(E430<'1 Données d''entrée'!$C$334+'1 Données d''entrée'!$C$333+1+$B512,'1 Données d''entrée'!$C$332*($E508-SUM($C513:E513)),0))","v":0},{"$f":"IF(F430<1+$B512,0,IF(F430<'1 Données d''entrée'!$C$334+'1 Données d''entrée'!$C$333+1+$B512,'1 Données d''entrée'!$C$332*($E508-SUM($C513:F513)),0))","v":0},{"$f":"IF(G430<1+$B512,0,IF(G430<'1 Données d''entrée'!$C$334+'1 Données d''entrée'!$C$333+1+$B512,'1 Données d''entrée'!$C$332*($E508-SUM($C513:G513)),0))","v":0},{"$f":"IF(H430<1+$B512,0,IF(H430<'1 Données d''entrée'!$C$334+'1 Données d''entrée'!$C$333+1+$B512,'1 Données d''entrée'!$C$332*($E508-SUM($C513:H513)),0))","v":0},{"$f":"IF(I430<1+$B512,0,IF(I430<'1 Données d''entrée'!$C$334+'1 Données d''entrée'!$C$333+1+$B512,'1 Données d''entrée'!$C$332*($E508-SUM($C513:I513)),0))","v":0},{"$f":"IF(J430<1+$B512,0,IF(J430<'1 Données d''entrée'!$C$334+'1 Données d''entrée'!$C$333+1+$B512,'1 Données d''entrée'!$C$332*($E508-SUM($C513:J513)),0))","v":0},{"$f":"IF(K430<1+$B512,0,IF(K430<'1 Données d''entrée'!$C$334+'1 Données d''entrée'!$C$333+1+$B512,'1 Données d''entrée'!$C$332*($E508-SUM($C513:K513)),0))","v":0},{"$f":"IF(L430<1+$B512,0,IF(L430<'1 Données d''entrée'!$C$334+'1 Données d''entrée'!$C$333+1+$B512,'1 Données d''entrée'!$C$332*($E508-SUM($C513:L513)),0))","v":0},{"$f":"IF(M430<1+$B512,0,IF(M430<'1 Données d''entrée'!$C$334+'1 Données d''entrée'!$C$333+1+$B512,'1 Données d''entrée'!$C$332*($E508-SUM($C513:M513)),0))","v":0},{"$f":"IF(N430<1+$B512,0,IF(N430<'1 Données d''entrée'!$C$334+'1 Données d''entrée'!$C$333+1+$B512,'1 Données d''entrée'!$C$332*($E508-SUM($C513:N513)),0))","v":0},{"$f":"IF(O430<1+$B512,0,IF(O430<'1 Données d''entrée'!$C$334+'1 Données d''entrée'!$C$333+1+$B512,'1 Données d''entrée'!$C$332*($E508-SUM($C513:O513)),0))","v":0},{"$f":"IF(P430<1+$B512,0,IF(P430<'1 Données d''entrée'!$C$334+'1 Données d''entrée'!$C$333+1+$B512,'1 Données d''entrée'!$C$332*($E508-SUM($C513:P513)),0))","v":0},{"$f":"IF(Q430<1+$B512,0,IF(Q430<'1 Données d''entrée'!$C$334+'1 Données d''entrée'!$C$333+1+$B512,'1 Données d''entrée'!$C$332*($E508-SUM($C513:Q513)),0))","v":0},{"$f":"IF(R430<1+$B512,0,IF(R430<'1 Données d''entrée'!$C$334+'1 Données d''entrée'!$C$333+1+$B512,'1 Données d''entrée'!$C$332*($E508-SUM($C513:R513)),0))","v":0},{"$f":"IF(S430<1+$B512,0,IF(S430<'1 Données d''entrée'!$C$334+'1 Données d''entrée'!$C$333+1+$B512,'1 Données d''entrée'!$C$332*($E508-SUM($C513:S513)),0))","v":0},{"$f":"IF(T430<1+$B512,0,IF(T430<'1 Données d''entrée'!$C$334+'1 Données d''entrée'!$C$333+1+$B512,'1 Données d''entrée'!$C$332*($E508-SUM($C513:T513)),0))","v":0},{"$f":"IF(U430<1+$B512,0,IF(U430<'1 Données d''entrée'!$C$334+'1 Données d''entrée'!$C$333+1+$B512,'1 Données d''entrée'!$C$332*($E508-SUM($C513:U513)),0))","v":0}]
["Paiement d'intêrets",4,0,{"$f":"IF(C430<1+$B513,0,IF(C430<'1 Données d''entrée'!$C$334+'1 Données d''entrée'!$C$333+1+$B513,'1 Données d''entrée'!$C$332*($F508-SUM($C514:C514)),0))","v":0},{"$f":"IF(D430<1+$B513,0,IF(D430<'1 Données d''entrée'!$C$334+'1 Données d''entrée'!$C$333+1+$B513,'1 Données d''entrée'!$C$332*($F508-SUM($C514:D514)),0))","v":0},{"$f":"IF(E430<1+$B513,0,IF(E430<'1 Données d''entrée'!$C$334+'1 Données d''entrée'!$C$333+1+$B513,'1 Données d''entrée'!$C$332*($F508-SUM($C514:E514)),0))","v":0},{"$f":"IF(F430<1+$B513,0,IF(F430<'1 Données d''entrée'!$C$334+'1 Données d''entrée'!$C$333+1+$B513,'1 Données d''entrée'!$C$332*($F508-SUM($C514:F514)),0))","v":0},{"$f":"IF(G430<1+$B513,0,IF(G430<'1 Données d''entrée'!$C$334+'1 Données d''entrée'!$C$333+1+$B513,'1 Données d''entrée'!$C$332*($F508-SUM($C514:G514)),0))","v":0},{"$f":"IF(H430<1+$B513,0,IF(H430<'1 Données d''entrée'!$C$334+'1 Données d''entrée'!$C$333+1+$B513,'1 Données d''entrée'!$C$332*($F508-SUM($C514:H514)),0))","v":0},{"$f":"IF(I430<1+$B513,0,IF(I430<'1 Données d''entrée'!$C$334+'1 Données d''entrée'!$C$333+1+$B513,'1 Données d''entrée'!$C$332*($F508-SUM($C514:I514)),0))","v":0},{"$f":"IF(J430<1+$B513,0,IF(J430<'1 Données d''entrée'!$C$334+'1 Données d''entrée'!$C$333+1+$B513,'1 Données d''entrée'!$C$332*($F508-SUM($C514:J514)),0))","v":0},{"$f":"IF(K430<1+$B513,0,IF(K430<'1 Données d''entrée'!$C$334+'1 Données d''entrée'!$C$333+1+$B513,'1 Données d''entrée'!$C$332*($F508-SUM($C514:K514)),0))","v":0},{"$f":"IF(L430<1+$B513,0,IF(L430<'1 Données d''entrée'!$C$334+'1 Données d''entrée'!$C$333+1+$B513,'1 Données d''entrée'!$C$332*($F508-SUM($C514:L514)),0))","v":0},{"$f":"IF(M430<1+$B513,0,IF(M430<'1 Données d''entrée'!$C$334+'1 Données d''entrée'!$C$333+1+$B513,'1 Données d''entrée'!$C$332*($F508-SUM($C514:M514)),0))","v":0},{"$f":"IF(N430<1+$B513,0,IF(N430<'1 Données d''entrée'!$C$334+'1 Données d''entrée'!$C$333+1+$B513,'1 Données d''entrée'!$C$332*($F508-SUM($C514:N514)),0))","v":0},{"$f":"IF(O430<1+$B513,0,IF(O430<'1 Données d''entrée'!$C$334+'1 Données d''entrée'!$C$333+1+$B513,'1 Données d''entrée'!$C$332*($F508-SUM($C514:O514)),0))","v":0},{"$f":"IF(P430<1+$B513,0,IF(P430<'1 Données d''entrée'!$C$334+'1 Données d''entrée'!$C$333+1+$B513,'1 Données d''entrée'!$C$332*($F508-SUM($C514:P514)),0))","v":0},{"$f":"IF(Q430<1+$B513,0,IF(Q430<'1 Données d''entrée'!$C$334+'1 Données d''entrée'!$C$333+1+$B513,'1 Données d''entrée'!$C$332*($F508-SUM($C514:Q514)),0))","v":0},{"$f":"IF(R430<1+$B513,0,IF(R430<'1 Données d''entrée'!$C$334+'1 Données d''entrée'!$C$333+1+$B513,'1 Données d''entrée'!$C$332*($F508-SUM($C514:R514)),0))","v":0},{"$f":"IF(S430<1+$B513,0,IF(S430<'1 Données d''entrée'!$C$334+'1 Données d''entrée'!$C$333+1+$B513,'1 Données d''entrée'!$C$332*($F508-SUM($C514:S514)),0))","v":0},{"$f":"IF(T430<1+$B513,0,IF(T430<'1 Données d''entrée'!$C$334+'1 Données d''entrée'!$C$333+1+$B513,'1 Données d''entrée'!$C$332*($F508-SUM($C514:T514)),0))","v":0},{"$f":"IF(U430<1+$B513,0,IF(U430<'1 Données d''entrée'!$C$334+'1 Données d''entrée'!$C$333+1+$B513,'1 Données d''entrée'!$C$332*($F508-SUM($C514:U514)),0))","v":0}]
["Paiement d'intêrets",5,0,{"$f":"IF(C430<1+$B514,0,IF(C430<'1 Données d''entrée'!$C$334+'1 Données d''entrée'!$C$333+1+$B514,'1 Données d''entrée'!$C$332*($G508-SUM($C515:C515)),0))","v":0},{"$f":"IF(D430<1+$B514,0,IF(D430<'1 Données d''entrée'!$C$334+'1 Données d''entrée'!$C$333+1+$B514,'1 Données d''entrée'!$C$332*($G508-SUM($C515:D515)),0))","v":0},{"$f":"IF(E430<1+$B514,0,IF(E430<'1 Données d''entrée'!$C$334+'1 Données d''entrée'!$C$333+1+$B514,'1 Données d''entrée'!$C$332*($G508-SUM($C515:E515)),0))","v":0},{"$f":"IF(F430<1+$B514,0,IF(F430<'1 Données d''entrée'!$C$334+'1 Données d''entrée'!$C$333+1+$B514,'1 Données d''entrée'!$C$332*($G508-SUM($C515:F515)),0))","v":0},{"$f":"IF(G430<1+$B514,0,IF(G430<'1 Données d''entrée'!$C$334+'1 Données d''entrée'!$C$333+1+$B514,'1 Données d''entrée'!$C$332*($G508-SUM($C515:G515)),0))","v":0},{"$f":"IF(H430<1+$B514,0,IF(H430<'1 Données d''entrée'!$C$334+'1 Données d''entrée'!$C$333+1+$B514,'1 Données d''entrée'!$C$332*($G508-SUM($C515:H515)),0))","v":0},{"$f":"IF(I430<1+$B514,0,IF(I430<'1 Données d''entrée'!$C$334+'1 Données d''entrée'!$C$333+1+$B514,'1 Données d''entrée'!$C$332*($G508-SUM($C515:I515)),0))","v":0},{"$f":"IF(J430<1+$B514,0,IF(J430<'1 Données d''entrée'!$C$334+'1 Données d''entrée'!$C$333+1+$B514,'1 Données d''entrée'!$C$332*($G508-SUM($C515:J515)),0))","v":0},{"$f":"IF(K430<1+$B514,0,IF(K430<'1 Données d''entrée'!$C$334+'1 Données d''entrée'!$C$333+1+$B514,'1 Données d''entrée'!$C$332*($G508-SUM($C515:K515)),0))","v":0},{"$f":"IF(L430<1+$B514,0,IF(L430<'1 Données d''entrée'!$C$334+'1 Données d''entrée'!$C$333+1+$B514,'1 Données d''entrée'!$C$332*($G508-SUM($C515:L515)),0))","v":0},{"$f":"IF(M430<1+$B514,0,IF(M430<'1 Données d''entrée'!$C$334+'1 Données d''entrée'!$C$333+1+$B514,'1 Données d''entrée'!$C$332*($G508-SUM($C515:M515)),0))","v":0},{"$f":"IF(N430<1+$B514,0,IF(N430<'1 Données d''entrée'!$C$334+'1 Données d''entrée'!$C$333+1+$B514,'1 Données d''entrée'!$C$332*($G508-SUM($C515:N515)),0))","v":0},{"$f":"IF(O430<1+$B514,0,IF(O430<'1 Données d''entrée'!$C$334+'1 Données d''entrée'!$C$333+1+$B514,'1 Données d''entrée'!$C$332*($G508-SUM($C515:O515)),0))","v":0},{"$f":"IF(P430<1+$B514,0,IF(P430<'1 Données d''entrée'!$C$334+'1 Données d''entrée'!$C$333+1+$B514,'1 Données d''entrée'!$C$332*($G508-SUM($C515:P515)),0))","v":0},{"$f":"IF(Q430<1+$B514,0,IF(Q430<'1 Données d''entrée'!$C$334+'1 Données d''entrée'!$C$333+1+$B514,'1 Données d''entrée'!$C$332*($G508-SUM($C515:Q515)),0))","v":0},{"$f":"IF(R430<1+$B514,0,IF(R430<'1 Données d''entrée'!$C$334+'1 Données d''entrée'!$C$333+1+$B514,'1 Données d''entrée'!$C$332*($G508-SUM($C515:R515)),0))","v":0},{"$f":"IF(S430<1+$B514,0,IF(S430<'1 Données d''entrée'!$C$334+'1 Données d''entrée'!$C$333+1+$B514,'1 Données d''entrée'!$C$332*($G508-SUM($C515:S515)),0))","v":0},{"$f":"IF(T430<1+$B514,0,IF(T430<'1 Données d''entrée'!$C$334+'1 Données d''entrée'!$C$333+1+$B514,'1 Données d''entrée'!$C$332*($G508-SUM($C515:T515)),0))","v":0},{"$f":"IF(U430<1+$B514,0,IF(U430<'1 Données d''entrée'!$C$334+'1 Données d''entrée'!$C$333+1+$B514,'1 Données d''entrée'!$C$332*($G508-SUM($C515:U515)),0))","v":0}]
["Paiement d'intêrets",6,0,{"$f":"IF(C430<1+$B515,0,IF(C430<'1 Données d''entrée'!$C$334+'1 Données d''entrée'!$C$333+1+$B515,'1 Données d''entrée'!$C$332*($H508-SUM($C516:C516)),0))","v":0},{"$f":"IF(D430<1+$B515,0,IF(D430<'1 Données d''entrée'!$C$334+'1 Données d''entrée'!$C$333+1+$B515,'1 Données d''entrée'!$C$332*($H508-SUM($C516:D516)),0))","v":0},{"$f":"IF(E430<1+$B515,0,IF(E430<'1 Données d''entrée'!$C$334+'1 Données d''entrée'!$C$333+1+$B515,'1 Données d''entrée'!$C$332*($H508-SUM($C516:E516)),0))","v":0},{"$f":"IF(F430<1+$B515,0,IF(F430<'1 Données d''entrée'!$C$334+'1 Données d''entrée'!$C$333+1+$B515,'1 Données d''entrée'!$C$332*($H508-SUM($C516:F516)),0))","v":0},{"$f":"IF(G430<1+$B515,0,IF(G430<'1 Données d''entrée'!$C$334+'1 Données d''entrée'!$C$333+1+$B515,'1 Données d''entrée'!$C$332*($H508-SUM($C516:G516)),0))","v":0},{"$f":"IF(H430<1+$B515,0,IF(H430<'1 Données d''entrée'!$C$334+'1 Données d''entrée'!$C$333+1+$B515,'1 Données d''entrée'!$C$332*($H508-SUM($C516:H516)),0))","v":0},{"$f":"IF(I430<1+$B515,0,IF(I430<'1 Données d''entrée'!$C$334+'1 Données d''entrée'!$C$333+1+$B515,'1 Données d''entrée'!$C$332*($H508-SUM($C516:I516)),0))","v":0},{"$f":"IF(J430<1+$B515,0,IF(J430<'1 Données d''entrée'!$C$334+'1 Données d''entrée'!$C$333+1+$B515,'1 Données d''entrée'!$C$332*($H508-SUM($C516:J516)),0))","v":0},{"$f":"IF(K430<1+$B515,0,IF(K430<'1 Données d''entrée'!$C$334+'1 Données d''entrée'!$C$333+1+$B515,'1 Données d''entrée'!$C$332*($H508-SUM($C516:K516)),0))","v":0},{"$f":"IF(L430<1+$B515,0,IF(L430<'1 Données d''entrée'!$C$334+'1 Données d''entrée'!$C$333+1+$B515,'1 Données d''entrée'!$C$332*($H508-SUM($C516:L516)),0))","v":0},{"$f":"IF(M430<1+$B515,0,IF(M430<'1 Données d''entrée'!$C$334+'1 Données d''entrée'!$C$333+1+$B515,'1 Données d''entrée'!$C$332*($H508-SUM($C516:M516)),0))","v":0},{"$f":"IF(N430<1+$B515,0,IF(N430<'1 Données d''entrée'!$C$334+'1 Données d''entrée'!$C$333+1+$B515,'1 Données d''entrée'!$C$332*($H508-SUM($C516:N516)),0))","v":0},{"$f":"IF(O430<1+$B515,0,IF(O430<'1 Données d''entrée'!$C$334+'1 Données d''entrée'!$C$333+1+$B515,'1 Données d''entrée'!$C$332*($H508-SUM($C516:O516)),0))","v":0},{"$f":"IF(P430<1+$B515,0,IF(P430<'1 Données d''entrée'!$C$334+'1 Données d''entrée'!$C$333+1+$B515,'1 Données d''entrée'!$C$332*($H508-SUM($C516:P516)),0))","v":0},{"$f":"IF(Q430<1+$B515,0,IF(Q430<'1 Données d''entrée'!$C$334+'1 Données d''entrée'!$C$333+1+$B515,'1 Données d''entrée'!$C$332*($H508-SUM($C516:Q516)),0))","v":0},{"$f":"IF(R430<1+$B515,0,IF(R430<'1 Données d''entrée'!$C$334+'1 Données d''entrée'!$C$333+1+$B515,'1 Données d''entrée'!$C$332*($H508-SUM($C516:R516)),0))","v":0},{"$f":"IF(S430<1+$B515,0,IF(S430<'1 Données d''entrée'!$C$334+'1 Données d''entrée'!$C$333+1+$B515,'1 Données d''entrée'!$C$332*($H508-SUM($C516:S516)),0))","v":0},{"$f":"IF(T430<1+$B515,0,IF(T430<'1 Données d''entrée'!$C$334+'1 Données d''entrée'!$C$333+1+$B515,'1 Données d''entrée'!$C$332*($H508-SUM($C516:T516)),0))","v":0},{"$f":"IF(U430<1+$B515,0,IF(U430<'1 Données d''entrée'!$C$334+'1 Données d''entrée'!$C$333+1+$B515,'1 Données d''entrée'!$C$332*($H508-SUM($C516:U516)),0))","v":0}]
["Paiement d'intêrets",7,0,{"$f":"IF(C430<1+$B516,0,IF(C430<'1 Données d''entrée'!$C$334+'1 Données d''entrée'!$C$333+1+$B516,'1 Données d''entrée'!$C$332*($I508-SUM($C517:C517)),0))","v":0},{"$f":"IF(D430<1+$B516,0,IF(D430<'1 Données d''entrée'!$C$334+'1 Données d''entrée'!$C$333+1+$B516,'1 Données d''entrée'!$C$332*($I508-SUM($C517:D517)),0))","v":0},{"$f":"IF(E430<1+$B516,0,IF(E430<'1 Données d''entrée'!$C$334+'1 Données d''entrée'!$C$333+1+$B516,'1 Données d''entrée'!$C$332*($I508-SUM($C517:E517)),0))","v":0},{"$f":"IF(F430<1+$B516,0,IF(F430<'1 Données d''entrée'!$C$334+'1 Données d''entrée'!$C$333+1+$B516,'1 Données d''entrée'!$C$332*($I508-SUM($C517:F517)),0))","v":0},{"$f":"IF(G430<1+$B516,0,IF(G430<'1 Données d''entrée'!$C$334+'1 Données d''entrée'!$C$333+1+$B516,'1 Données d''entrée'!$C$332*($I508-SUM($C517:G517)),0))","v":0},{"$f":"IF(H430<1+$B516,0,IF(H430<'1 Données d''entrée'!$C$334+'1 Données d''entrée'!$C$333+1+$B516,'1 Données d''entrée'!$C$332*($I508-SUM($C517:H517)),0))","v":0},{"$f":"IF(I430<1+$B516,0,IF(I430<'1 Données d''entrée'!$C$334+'1 Données d''entrée'!$C$333+1+$B516,'1 Données d''entrée'!$C$332*($I508-SUM($C517:I517)),0))","v":0},{"$f":"IF(J430<1+$B516,0,IF(J430<'1 Données d''entrée'!$C$334+'1 Données d''entrée'!$C$333+1+$B516,'1 Données d''entrée'!$C$332*($I508-SUM($C517:J517)),0))","v":0},{"$f":"IF(K430<1+$B516,0,IF(K430<'1 Données d''entrée'!$C$334+'1 Données d''entrée'!$C$333+1+$B516,'1 Données d''entrée'!$C$332*($I508-SUM($C517:K517)),0))","v":0},{"$f":"IF(L430<1+$B516,0,IF(L430<'1 Données d''entrée'!$C$334+'1 Données d''entrée'!$C$333+1+$B516,'1 Données d''entrée'!$C$332*($I508-SUM($C517:L517)),0))","v":0},{"$f":"IF(M430<1+$B516,0,IF(M430<'1 Données d''entrée'!$C$334+'1 Données d''entrée'!$C$333+1+$B516,'1 Données d''entrée'!$C$332*($I508-SUM($C517:M517)),0))","v":0},{"$f":"IF(N430<1+$B516,0,IF(N430<'1 Données d''entrée'!$C$334+'1 Données d''entrée'!$C$333+1+$B516,'1 Données d''entrée'!$C$332*($I508-SUM($C517:N517)),0))","v":0},{"$f":"IF(O430<1+$B516,0,IF(O430<'1 Données d''entrée'!$C$334+'1 Données d''entrée'!$C$333+1+$B516,'1 Données d''entrée'!$C$332*($I508-SUM($C517:O517)),0))","v":0},{"$f":"IF(P430<1+$B516,0,IF(P430<'1 Données d''entrée'!$C$334+'1 Données d''entrée'!$C$333+1+$B516,'1 Données d''entrée'!$C$332*($I508-SUM($C517:P517)),0))","v":0},{"$f":"IF(Q430<1+$B516,0,IF(Q430<'1 Données d''entrée'!$C$334+'1 Données d''entrée'!$C$333+1+$B516,'1 Données d''entrée'!$C$332*($I508-SUM($C517:Q517)),0))","v":0},{"$f":"IF(R430<1+$B516,0,IF(R430<'1 Données d''entrée'!$C$334+'1 Données d''entrée'!$C$333+1+$B516,'1 Données d''entrée'!$C$332*($I508-SUM($C517:R517)),0))","v":0},{"$f":"IF(S430<1+$B516,0,IF(S430<'1 Données d''entrée'!$C$334+'1 Données d''entrée'!$C$333+1+$B516,'1 Données d''entrée'!$C$332*($I508-SUM($C517:S517)),0))","v":0},{"$f":"IF(T430<1+$B516,0,IF(T430<'1 Données d''entrée'!$C$334+'1 Données d''entrée'!$C$333+1+$B516,'1 Données d''entrée'!$C$332*($I508-SUM($C517:T517)),0))","v":0},{"$f":"IF(U430<1+$B516,0,IF(U430<'1 Données d''entrée'!$C$334+'1 Données d''entrée'!$C$333+1+$B516,'1 Données d''entrée'!$C$332*($I508-SUM($C517:U517)),0))","v":0}]
["Paiement d'intêrets",8,0,{"$f":"IF(C430<1+$B517,0,IF(C430<'1 Données d''entrée'!$C$334+'1 Données d''entrée'!$C$333+1+$B517,'1 Données d''entrée'!$C$332*($J508-SUM($C518:C518)),0))","v":0},{"$f":"IF(D430<1+$B517,0,IF(D430<'1 Données d''entrée'!$C$334+'1 Données d''entrée'!$C$333+1+$B517,'1 Données d''entrée'!$C$332*($J508-SUM($C518:D518)),0))","v":0},{"$f":"IF(E430<1+$B517,0,IF(E430<'1 Données d''entrée'!$C$334+'1 Données d''entrée'!$C$333+1+$B517,'1 Données d''entrée'!$C$332*($J508-SUM($C518:E518)),0))","v":0},{"$f":"IF(F430<1+$B517,0,IF(F430<'1 Données d''entrée'!$C$334+'1 Données d''entrée'!$C$333+1+$B517,'1 Données d''entrée'!$C$332*($J508-SUM($C518:F518)),0))","v":0},{"$f":"IF(G430<1+$B517,0,IF(G430<'1 Données d''entrée'!$C$334+'1 Données d''entrée'!$C$333+1+$B517,'1 Données d''entrée'!$C$332*($J508-SUM($C518:G518)),0))","v":0},{"$f":"IF(H430<1+$B517,0,IF(H430<'1 Données d''entrée'!$C$334+'1 Données d''entrée'!$C$333+1+$B517,'1 Données d''entrée'!$C$332*($J508-SUM($C518:H518)),0))","v":0},{"$f":"IF(I430<1+$B517,0,IF(I430<'1 Données d''entrée'!$C$334+'1 Données d''entrée'!$C$333+1+$B517,'1 Données d''entrée'!$C$332*($J508-SUM($C518:I518)),0))","v":0},{"$f":"IF(J430<1+$B517,0,IF(J430<'1 Données d''entrée'!$C$334+'1 Données d''entrée'!$C$333+1+$B517,'1 Données d''entrée'!$C$332*($J508-SUM($C518:J518)),0))","v":0},{"$f":"IF(K430<1+$B517,0,IF(K430<'1 Données d''entrée'!$C$334+'1 Données d''entrée'!$C$333+1+$B517,'1 Données d''entrée'!$C$332*($J508-SUM($C518:K518)),0))","v":0},{"$f":"IF(L430<1+$B517,0,IF(L430<'1 Données d''entrée'!$C$334+'1 Données d''entrée'!$C$333+1+$B517,'1 Données d''entrée'!$C$332*($J508-SUM($C518:L518)),0))","v":0},{"$f":"IF(M430<1+$B517,0,IF(M430<'1 Données d''entrée'!$C$334+'1 Données d''entrée'!$C$333+1+$B517,'1 Données d''entrée'!$C$332*($J508-SUM($C518:M518)),0))","v":0},{"$f":"IF(N430<1+$B517,0,IF(N430<'1 Données d''entrée'!$C$334+'1 Données d''entrée'!$C$333+1+$B517,'1 Données d''entrée'!$C$332*($J508-SUM($C518:N518)),0))","v":0},{"$f":"IF(O430<1+$B517,0,IF(O430<'1 Données d''entrée'!$C$334+'1 Données d''entrée'!$C$333+1+$B517,'1 Données d''entrée'!$C$332*($J508-SUM($C518:O518)),0))","v":0},{"$f":"IF(P430<1+$B517,0,IF(P430<'1 Données d''entrée'!$C$334+'1 Données d''entrée'!$C$333+1+$B517,'1 Données d''entrée'!$C$332*($J508-SUM($C518:P518)),0))","v":0},{"$f":"IF(Q430<1+$B517,0,IF(Q430<'1 Données d''entrée'!$C$334+'1 Données d''entrée'!$C$333+1+$B517,'1 Données d''entrée'!$C$332*($J508-SUM($C518:Q518)),0))","v":0},{"$f":"IF(R430<1+$B517,0,IF(R430<'1 Données d''entrée'!$C$334+'1 Données d''entrée'!$C$333+1+$B517,'1 Données d''entrée'!$C$332*($J508-SUM($C518:R518)),0))","v":0},{"$f":"IF(S430<1+$B517,0,IF(S430<'1 Données d''entrée'!$C$334+'1 Données d''entrée'!$C$333+1+$B517,'1 Données d''entrée'!$C$332*($J508-SUM($C518:S518)),0))","v":0},{"$f":"IF(T430<1+$B517,0,IF(T430<'1 Données d''entrée'!$C$334+'1 Données d''entrée'!$C$333+1+$B517,'1 Données d''entrée'!$C$332*($J508-SUM($C518:T518)),0))","v":0},{"$f":"IF(U430<1+$B517,0,IF(U430<'1 Données d''entrée'!$C$334+'1 Données d''entrée'!$C$333+1+$B517,'1 Données d''entrée'!$C$332*($J508-SUM($C518:U518)),0))","v":0}]
["Paiement d'intêrets",9,0,{"$f":"IF(C430<1+$B518,0,IF(C430<'1 Données d''entrée'!$C$334+'1 Données d''entrée'!$C$333+1+$B518,'1 Données d''entrée'!$C$332*($K508-SUM($C519:C519)),0))","v":0},{"$f":"IF(D430<1+$B518,0,IF(D430<'1 Données d''entrée'!$C$334+'1 Données d''entrée'!$C$333+1+$B518,'1 Données d''entrée'!$C$332*($K508-SUM($C519:D519)),0))","v":0},{"$f":"IF(E430<1+$B518,0,IF(E430<'1 Données d''entrée'!$C$334+'1 Données d''entrée'!$C$333+1+$B518,'1 Données d''entrée'!$C$332*($K508-SUM($C519:E519)),0))","v":0},{"$f":"IF(F430<1+$B518,0,IF(F430<'1 Données d''entrée'!$C$334+'1 Données d''entrée'!$C$333+1+$B518,'1 Données d''entrée'!$C$332*($K508-SUM($C519:F519)),0))","v":0},{"$f":"IF(G430<1+$B518,0,IF(G430<'1 Données d''entrée'!$C$334+'1 Données d''entrée'!$C$333+1+$B518,'1 Données d''entrée'!$C$332*($K508-SUM($C519:G519)),0))","v":0},{"$f":"IF(H430<1+$B518,0,IF(H430<'1 Données d''entrée'!$C$334+'1 Données d''entrée'!$C$333+1+$B518,'1 Données d''entrée'!$C$332*($K508-SUM($C519:H519)),0))","v":0},{"$f":"IF(I430<1+$B518,0,IF(I430<'1 Données d''entrée'!$C$334+'1 Données d''entrée'!$C$333+1+$B518,'1 Données d''entrée'!$C$332*($K508-SUM($C519:I519)),0))","v":0},{"$f":"IF(J430<1+$B518,0,IF(J430<'1 Données d''entrée'!$C$334+'1 Données d''entrée'!$C$333+1+$B518,'1 Données d''entrée'!$C$332*($K508-SUM($C519:J519)),0))","v":0},{"$f":"IF(K430<1+$B518,0,IF(K430<'1 Données d''entrée'!$C$334+'1 Données d''entrée'!$C$333+1+$B518,'1 Données d''entrée'!$C$332*($K508-SUM($C519:K519)),0))","v":0},{"$f":"IF(L430<1+$B518,0,IF(L430<'1 Données d''entrée'!$C$334+'1 Données d''entrée'!$C$333+1+$B518,'1 Données d''entrée'!$C$332*($K508-SUM($C519:L519)),0))","v":0},{"$f":"IF(M430<1+$B518,0,IF(M430<'1 Données d''entrée'!$C$334+'1 Données d''entrée'!$C$333+1+$B518,'1 Données d''entrée'!$C$332*($K508-SUM($C519:M519)),0))","v":0},{"$f":"IF(N430<1+$B518,0,IF(N430<'1 Données d''entrée'!$C$334+'1 Données d''entrée'!$C$333+1+$B518,'1 Données d''entrée'!$C$332*($K508-SUM($C519:N519)),0))","v":0},{"$f":"IF(O430<1+$B518,0,IF(O430<'1 Données d''entrée'!$C$334+'1 Données d''entrée'!$C$333+1+$B518,'1 Données d''entrée'!$C$332*($K508-SUM($C519:O519)),0))","v":0},{"$f":"IF(P430<1+$B518,0,IF(P430<'1 Données d''entrée'!$C$334+'1 Données d''entrée'!$C$333+1+$B518,'1 Données d''entrée'!$C$332*($K508-SUM($C519:P519)),0))","v":0},{"$f":"IF(Q430<1+$B518,0,IF(Q430<'1 Données d''entrée'!$C$334+'1 Données d''entrée'!$C$333+1+$B518,'1 Données d''entrée'!$C$332*($K508-SUM($C519:Q519)),0))","v":0},{"$f":"IF(R430<1+$B518,0,IF(R430<'1 Données d''entrée'!$C$334+'1 Données d''entrée'!$C$333+1+$B518,'1 Données d''entrée'!$C$332*($K508-SUM($C519:R519)),0))","v":0},{"$f":"IF(S430<1+$B518,0,IF(S430<'1 Données d''entrée'!$C$334+'1 Données d''entrée'!$C$333+1+$B518,'1 Données d''entrée'!$C$332*($K508-SUM($C519:S519)),0))","v":0},{"$f":"IF(T430<1+$B518,0,IF(T430<'1 Données d''entrée'!$C$334+'1 Données d''entrée'!$C$333+1+$B518,'1 Données d''entrée'!$C$332*($K508-SUM($C519:T519)),0))","v":0},{"$f":"IF(U430<1+$B518,0,IF(U430<'1 Données d''entrée'!$C$334+'1 Données d''entrée'!$C$333+1+$B518,'1 Données d''entrée'!$C$332*($K508-SUM($C519:U519)),0))","v":0}]
["Paiement d'intêrets",10,0,{"$f":"IF(C430<1+$B519,0,IF(C430<'1 Données d''entrée'!$C$334+'1 Données d''entrée'!$C$333+1+$B519,'1 Données d''entrée'!$C$332*($L508-SUM($C520:C520)),0))","v":0},{"$f":"IF(D430<1+$B519,0,IF(D430<'1 Données d''entrée'!$C$334+'1 Données d''entrée'!$C$333+1+$B519,'1 Données d''entrée'!$C$332*($L508-SUM($C520:D520)),0))","v":0},{"$f":"IF(E430<1+$B519,0,IF(E430<'1 Données d''entrée'!$C$334+'1 Données d''entrée'!$C$333+1+$B519,'1 Données d''entrée'!$C$332*($L508-SUM($C520:E520)),0))","v":0},{"$f":"IF(F430<1+$B519,0,IF(F430<'1 Données d''entrée'!$C$334+'1 Données d''entrée'!$C$333+1+$B519,'1 Données d''entrée'!$C$332*($L508-SUM($C520:F520)),0))","v":0},{"$f":"IF(G430<1+$B519,0,IF(G430<'1 Données d''entrée'!$C$334+'1 Données d''entrée'!$C$333+1+$B519,'1 Données d''entrée'!$C$332*($L508-SUM($C520:G520)),0))","v":0},{"$f":"IF(H430<1+$B519,0,IF(H430<'1 Données d''entrée'!$C$334+'1 Données d''entrée'!$C$333+1+$B519,'1 Données d''entrée'!$C$332*($L508-SUM($C520:H520)),0))","v":0},{"$f":"IF(I430<1+$B519,0,IF(I430<'1 Données d''entrée'!$C$334+'1 Données d''entrée'!$C$333+1+$B519,'1 Données d''entrée'!$C$332*($L508-SUM($C520:I520)),0))","v":0},{"$f":"IF(J430<1+$B519,0,IF(J430<'1 Données d''entrée'!$C$334+'1 Données d''entrée'!$C$333+1+$B519,'1 Données d''entrée'!$C$332*($L508-SUM($C520:J520)),0))","v":0},{"$f":"IF(K430<1+$B519,0,IF(K430<'1 Données d''entrée'!$C$334+'1 Données d''entrée'!$C$333+1+$B519,'1 Données d''entrée'!$C$332*($L508-SUM($C520:K520)),0))","v":0},{"$f":"IF(L430<1+$B519,0,IF(L430<'1 Données d''entrée'!$C$334+'1 Données d''entrée'!$C$333+1+$B519,'1 Données d''entrée'!$C$332*($L508-SUM($C520:L520)),0))","v":0},{"$f":"IF(M430<1+$B519,0,IF(M430<'1 Données d''entrée'!$C$334+'1 Données d''entrée'!$C$333+1+$B519,'1 Données d''entrée'!$C$332*($L508-SUM($C520:M520)),0))","v":0},{"$f":"IF(N430<1+$B519,0,IF(N430<'1 Données d''entrée'!$C$334+'1 Données d''entrée'!$C$333+1+$B519,'1 Données d''entrée'!$C$332*($L508-SUM($C520:N520)),0))","v":0},{"$f":"IF(O430<1+$B519,0,IF(O430<'1 Données d''entrée'!$C$334+'1 Données d''entrée'!$C$333+1+$B519,'1 Données d''entrée'!$C$332*($L508-SUM($C520:O520)),0))","v":0},{"$f":"IF(P430<1+$B519,0,IF(P430<'1 Données d''entrée'!$C$334+'1 Données d''entrée'!$C$333+1+$B519,'1 Données d''entrée'!$C$332*($L508-SUM($C520:P520)),0))","v":0},{"$f":"IF(Q430<1+$B519,0,IF(Q430<'1 Données d''entrée'!$C$334+'1 Données d''entrée'!$C$333+1+$B519,'1 Données d''entrée'!$C$332*($L508-SUM($C520:Q520)),0))","v":0},{"$f":"IF(R430<1+$B519,0,IF(R430<'1 Données d''entrée'!$C$334+'1 Données d''entrée'!$C$333+1+$B519,'1 Données d''entrée'!$C$332*($L508-SUM($C520:R520)),0))","v":0},{"$f":"IF(S430<1+$B519,0,IF(S430<'1 Données d''entrée'!$C$334+'1 Données d''entrée'!$C$333+1+$B519,'1 Données d''entrée'!$C$332*($L508-SUM($C520:S520)),0))","v":0},{"$f":"IF(T430<1+$B519,0,IF(T430<'1 Données d''entrée'!$C$334+'1 Données d''entrée'!$C$333+1+$B519,'1 Données d''entrée'!$C$332*($L508-SUM($C520:T520)),0))","v":0},{"$f":"IF(U430<1+$B519,0,IF(U430<'1 Données d''entrée'!$C$334+'1 Données d''entrée'!$C$333+1+$B519,'1 Données d''entrée'!$C$332*($L508-SUM($C520:U520)),0))","v":0}]
[]
[null,"Période",1,2,3,4,5,6,7,8,9,10,11,12,13,14,15,16,17,18,19,20]
["Prêt bancaire - Option 3: Remboursement vers l'annuité constante",{"$f":"'1 Données d''entrée'!$B$344","v":0}]
["Prêt(s) nouveau(x)",null,{"$f":"IF(C473<0,C473*(-1)*$B535+C473*(-1)*$B535*'1 Données d''entrée'!$C$338,0)","v":{"$error":"#DIV/0!"}},{"$f":"IF(D473<0,D473*(-1)*$B535+D473*(-1)*$B535*'1 Données d''entrée'!$C$338,0)","v":{"$error":"#DIV/0!"}},{"$f":"IF(E473<0,E473*(-1)*$B535+E473*(-1)*$B535*'1 Données d''entrée'!$C$338,0)","v":{"$error":"#DIV/0!"}},{"$f":"IF(F473<0,F473*(-1)*$B535+F473*(-1)*$B535*'1 Données d''entrée'!$C$338,0)","v":{"$error":"#DIV/0!"}},{"$f":"IF(G473<0,G473*(-1)*$B535+G473*(-1)*$B535*'1 Données d''entrée'!$C$338,0)","v":{"$error":"#DIV/0!"}},{"$f":"IF(H473<0,H473*(-1)*$B535+H473*(-1)*$B535*'1 Données d''entrée'!$C$338,0)","v":{"$error":"#DIV/0!"}},{"$f":"IF(I473<0,I473*(-1)*$B535+I473*(-1)*$B535*'1 Données d''entrée'!$C$338,0)","v":{"$error":"#DIV/0!"}},{"$f":"IF(J473<0,J473*(-1)*$B535+J473*(-1)*$B535*'1 Données d''entrée'!$C$338,0)","v":{"$error":"#DIV/0!"}},{"$f":"IF(K473<0,K473*(-1)*$B535+K473*(-1)*$B535*'1 Données d''entrée'!$C$338,0)","v":{"$error":"#DIV/0!"}},{"$f":"IF(L473<0,L473*(-1)*$B535+L473*(-1)*$B535*'1 Données d''entrée'!$C$338,0)","v":{"$error":"#DIV/0!"}},{"$f":"IF(M473<0,M473*(-1)*$B535+M473*(-1)*$B535*'1 Données d''entrée'!$C$338,0)","v":{"$error":"#DIV/0!"}},{"$f":"IF(N473<0,N473*(-1)*$B535+N473*(-1)*$B535*'1 Données d''entrée'!$C$338,0)","v":{"$error":"#DIV/0!"}},{"$f":"IF(O473<0,O473*(-1)*$B535+O473*(-1)*$B535*'1 Données d''entrée'!$C$338,0)","v":{"$error":"#DIV/0!"}},{"$f":"IF(P473<0,P473*(-1)*$B535+P473*(-1)*$B535*'1 Données d''entrée'!$C$338,0)","v":{"$error":"#DIV/0!"}},{"$f":"IF(Q473<0,Q473*(-1)*$B535+Q473*(-1)*$B535*'1 Données d''entrée'!$C$338,0)","v":{"$error":"#DIV/0!"}},{"$f":"IF(R473<0,R473*(-1)*$B535+R473*(-1)*$B535*'1 Données d''entrée'!$C$338,0)","v":{"$error":"#DIV/0!"}},{"$f":"IF(S473<0,S473*(-1)*$B535+S473*(-1)*$B535*'1 Données d''entrée'!$C$338,0)","v":{"$error":"#DIV/0!"}},{"$f":"IF(T473<0,T473*(-1)*$B535+T473*(-1)*$B535*'1 Données d''entrée'!$C$338,0)","v":{"$error":"#DIV/0!"}},{"$f":"IF(U473<0,U473*(-1)*$B535+U473*(-1)*$B535*'1 Données d''entrée'!$C$338,0)","v":{"$error":"#DIV/0!"}},{"$f":"IF(V473<0,V473*(-1)*$B535+V473*(-1)*$B535*'1 Données d''entrée'!$C$338,0)","v":{"$error":"#DIV/0!"}}]
[null,"Période de prêt nouveau"]
["Remboursement vers l'annuité constante",0,0,0,0,0,0,0,0,0,0,0,0,0,0,0,0,0,0,0,0,0]
[null,1,{"$f":"IF(C$54<'1 Données d''entrée'!$C$334+1+$B539,0,IF(C$54<'1 Données d''entrée'!$C$333+'1 Données d''entrée'!$C$334+1+$B539,$C$160*('1 Données d''entrée'!$C$332*(1+'1 Données d''entrée'!$C$332)^'1 Données d''entrée'!$C$333)/((1+'1 Données d''entrée'!$C$332)^'1 Données d''entrée'!$C$333-1),0))","v":0},{"$f":"IF(D430<'1 Données d''entrée'!$C$334+1+$B539,0,IF(D430<'1 Données d''entrée'!$C$333+'1 Données d''entrée'!$C$334+1+$B539,$C536*('1 Données d''entrée'!$C$332*(1+'1 Données d''entrée'!$C$332)^'1 Données d''entrée'!$C$333)/((1+'1 Données d''entrée'!$C$332)^'1 Données d''entrée'!$C$333-1),0))","v":0},{"$f":"IF(E430<'1 Données d''entrée'!$C$334+1+$B539,0,IF(E430<'1 Données d''entrée'!$C$333+'1 Données d''entrée'!$C$334+1+$B539,$C536*('1 Données d''entrée'!$C$332*(1+'1 Données d''entrée'!$C$332)^'1 Données d''entrée'!$C$333)/((1+'1 Données d''entrée'!$C$332)^'1 Données d''entrée'!$C$333-1),0))","v":0},{"$f":"IF(F430<'1 Données d''entrée'!$C$334+1+$B539,0,IF(F430<'1 Données d''entrée'!$C$333+'1 Données d''entrée'!$C$334+1+$B539,$C536*('1 Données d''entrée'!$C$332*(1+'1 Données d''entrée'!$C$332)^'1 Données d''entrée'!$C$333)/((1+'1 Données d''entrée'!$C$332)^'1 Données d''entrée'!$C$333-1),0))","v":0},{"$f":"IF(G430<'1 Données d''entrée'!$C$334+1+$B539,0,IF(G430<'1 Données d''entrée'!$C$333+'1 Données d''entrée'!$C$334+1+$B539,$C536*('1 Données d''entrée'!$C$332*(1+'1 Données d''entrée'!$C$332)^'1 Données d''entrée'!$C$333)/((1+'1 Données d''entrée'!$C$332)^'1 Données d''entrée'!$C$333-1),0))","v":0},{"$f":"IF(H430<'1 Données d''entrée'!$C$334+1+$B539,0,IF(H430<'1 Données d''entrée'!$C$333+'1 Données d''entrée'!$C$334+1+$B539,$C536*('1 Données d''entrée'!$C$332*(1+'1 Données d''entrée'!$C$332)^'1 Données d''entrée'!$C$333)/((1+'1 Données d''entrée'!$C$332)^'1 Données d''entrée'!$C$333-1),0))","v":0},{"$f":"IF(I430<'1 Données d''entrée'!$C$334+1+$B539,0,IF(I430<'1 Données d''entrée'!$C$333+'1 Données d''entrée'!$C$334+1+$B539,$C536*('1 Données d''entrée'!$C$332*(1+'1 Données d''entrée'!$C$332)^'1 Données d''entrée'!$C$333)/((1+'1 Données d''entrée'!$C$332)^'1 Données d''entrée'!$C$333-1),0))","v":0},{"$f":"IF(J430<'1 Données d''entrée'!$C$334+1+$B539,0,IF(J430<'1 Données d''entrée'!$C$333+'1 Données d''entrée'!$C$334+1+$B539,$C536*('1 Données d''entrée'!$C$332*(1+'1 Données d''entrée'!$C$332)^'1 Données d''entrée'!$C$333)/((1+'1 Données d''entrée'!$C$332)^'1 Données d''entrée'!$C$333-1),0))","v":0},{"$f":"IF(K430<'1 Données d''entrée'!$C$334+1+$B539,0,IF(K430<'1 Données d''entrée'!$C$333+'1 Données d''entrée'!$C$334+1+$B539,$C536*('1 Données d''entrée'!$C$332*(1+'1 Données d''entrée'!$C$332)^'1 Données d''entrée'!$C$333)/((1+'1 Données d''entrée'!$C$332)^'1 Données d''entrée'!$C$333-1),0))","v":0},{"$f":"IF(L430<'1 Données d''entrée'!$C$334+1+$B539,0,IF(L430<'1 Données d''entrée'!$C$333+'1 Données d''entrée'!$C$334+1+$B539,$C536*('1 Données d''entrée'!$C$332*(1+'1 Données d''entrée'!$C$332)^'1 Données d''entrée'!$C$333)/((1+'1 Données d''entrée'!$C$332)^'1 Données d''entrée'!$C$333-1),0))","v":0},{"$f":"IF(M430<'1 Données d''entrée'!$C$334+1+$B539,0,IF(M430<'1 Données d''entrée'!$C$333+'1 Données d''entrée'!$C$334+1+$B539,$C536*('1 Données d''entrée'!$C$332*(1+'1 Données d''entrée'!$C$332)^'1 Données d''entrée'!$C$333)/((1+'1 Données d''entrée'!$C$332)^'1 Données d''entrée'!$C$333-1),0))","v":0},{"$f":"IF(N430<'1 Données d''entrée'!$C$334+1+$B539,0,IF(N430<'1 Données d''entrée'!$C$333+'1 Données d''entrée'!$C$334+1+$B539,$C536*('1 Données d''entrée'!$C$332*(1+'1 Données d''entrée'!$C$332)^'1 Données d''entrée'!$C$333)/((1+'1 Données d''entrée'!$C$332)^'1 Données d''entrée'!$C$333-1),0))","v":0},{"$f":"IF(O430<'1 Données d''entrée'!$C$334+1+$B539,0,IF(O430<'1 Données d''entrée'!$C$333+'1 Données d''entrée'!$C$334+1+$B539,$C536*('1 Données d''entrée'!$C$332*(1+'1 Données d''entrée'!$C$332)^'1 Données d''entrée'!$C$333)/((1+'1 Données d''entrée'!$C$332)^'1 Données d''entrée'!$C$333-1),0))","v":0},{"$f":"IF(P430<'1 Données d''entrée'!$C$334+1+$B539,0,IF(P430<'1 Données d''entrée'!$C$333+'1 Données d''entrée'!$C$334+1+$B539,$C536*('1 Données d''entrée'!$C$332*(1+'1 Données d''entrée'!$C$332)^'1 Données d''entrée'!$C$333)/((1+'1 Données d''entrée'!$C$332)^'1 Données d''entrée'!$C$333-1),0))","v":0},{"$f":"IF(Q430<'1 Données d''entrée'!$C$334+1+$B539,0,IF(Q430<'1 Données d''entrée'!$C$333+'1 Données d''entrée'!$C$334+1+$B539,$C536*('1 Données d''entrée'!$C$332*(1+'1 Données d''entrée'!$C$332)^'1 Données d''entrée'!$C$333)/((1+'1 Données d''entrée'!$C$332)^'1 Données d''entrée'!$C$333-1),0))","v":0},{"$f":"IF(R430<'1 Données d''entrée'!$C$334+1+$B539,0,IF(R430<'1 Données d''entrée'!$C$333+'1 Données d''entrée'!$C$334+1+$B539,$C536*('1 Données d''entrée'!$C$332*(1+'1 Données d''entrée'!$C$332)^'1 Données d''entrée'!$C$333)/((1+'1 Données d''entrée'!$C$332)^'1 Données d''entrée'!$C$333-1),0))","v":0},{"$f":"IF(S430<'1 Données d''entrée'!$C$334+1+$B539,0,IF(S430<'1 Données d''entrée'!$C$333+'1 Données d''entrée'!$C$334+1+$B539,$C536*('1 Données d''entrée'!$C$332*(1+'1 Données d''entrée'!$C$332)^'1 Données d''entrée'!$C$333)/((1+'1 Données d''entrée'!$C$332)^'1 Données d''entrée'!$C$333-1),0))","v":0},{"$f":"IF(T430<'1 Données d''entrée'!$C$334+1+$B539,0,IF(T430<'1 Données d''entrée'!$C$333+'1 Données d''entrée'!$C$334+1+$B539,$C536*('1 Données d''entrée'!$C$332*(1+'1 Données d''entrée'!$C$332)^'1 Données d''entrée'!$C$333)/((1+'1 Données d''entrée'!$C$332)^'1 Données d''entrée'!$C$333-1),0))","v":0},{"$f":"IF(U430<'1 Données d''entrée'!$C$334+1+$B539,0,IF(U430<'1 Données d''entrée'!$C$333+'1 Données d''entrée'!$C$334+1+$B539,$C536*('1 Données d''entrée'!$C$332*(1+'1 Données d''entrée'!$C$332)^'1 Données d''entrée'!$C$333)/((1+'1 Données d''entrée'!$C$332)^'1 Données d''entrée'!$C$333-1),0))","v":0},{"$f":"IF(V430<'1 Données d''entrée'!$C$334+1+$B539,0,IF(V430<'1 Données d''entrée'!$C$333+'1 Données d''entrée'!$C$334+1+$B539,$C536*('1 Données d''entrée'!$C$332*(1+'1 Données d''entrée'!$C$332)^'1 Données d''entrée'!$C$333)/((1+'1 Données d''entrée'!$C$332)^'1 Données d''entrée'!$C$333-1),0))","v":0}]
[null,2,{"$f":"IF(C$54<'1 Données d''entrée'!$C$334+1+$B540,0,IF(C$54<'1 Données d''entrée'!$C$333+'1 Données d''entrée'!$C$334+1+$B540,$D$160*('1 Données d''entrée'!$C$332*(1+'1 Données d''entrée'!$C$332)^'1 Données d''entrée'!$C$333)/((1+'1 Données d''entrée'!$C$332)^'1 Données d''entrée'!$C$333-1),0))","v":0},{"$f":"IF(D430<'1 Données d''entrée'!$C$334+1+$B540,0,IF(D430<'1 Données d''entrée'!$C$333+'1 Données d''entrée'!$C$334+1+$B540,$D536*('1 Données d''entrée'!$C$332*(1+'1 Données d''entrée'!$C$332)^'1 Données d''entrée'!$C$333)/((1+'1 Données d''entrée'!$C$332)^'1 Données d''entrée'!$C$333-1),0))","v":0},{"$f":"IF(E430<'1 Données d''entrée'!$C$334+1+$B540,0,IF(E430<'1 Données d''entrée'!$C$333+'1 Données d''entrée'!$C$334+1+$B540,$D536*('1 Données d''entrée'!$C$332*(1+'1 Données d''entrée'!$C$332)^'1 Données d''entrée'!$C$333)/((1+'1 Données d''entrée'!$C$332)^'1 Données d''entrée'!$C$333-1),0))","v":0},{"$f":"IF(F430<'1 Données d''entrée'!$C$334+1+$B540,0,IF(F430<'1 Données d''entrée'!$C$333+'1 Données d''entrée'!$C$334+1+$B540,$D536*('1 Données d''entrée'!$C$332*(1+'1 Données d''entrée'!$C$332)^'1 Données d''entrée'!$C$333)/((1+'1 Données d''entrée'!$C$332)^'1 Données d''entrée'!$C$333-1),0))","v":0},{"$f":"IF(G430<'1 Données d''entrée'!$C$334+1+$B540,0,IF(G430<'1 Données d''entrée'!$C$333+'1 Données d''entrée'!$C$334+1+$B540,$D536*('1 Données d''entrée'!$C$332*(1+'1 Données d''entrée'!$C$332)^'1 Données d''entrée'!$C$333)/((1+'1 Données d''entrée'!$C$332)^'1 Données d''entrée'!$C$333-1),0))","v":0},{"$f":"IF(H430<'1 Données d''entrée'!$C$334+1+$B540,0,IF(H430<'1 Données d''entrée'!$C$333+'1 Données d''entrée'!$C$334+1+$B540,$D536*('1 Données d''entrée'!$C$332*(1+'1 Données d''entrée'!$C$332)^'1 Données d''entrée'!$C$333)/((1+'1 Données d''entrée'!$C$332)^'1 Données d''entrée'!$C$333-1),0))","v":0},{"$f":"IF(I430<'1 Données d''entrée'!$C$334+1+$B540,0,IF(I430<'1 Données d''entrée'!$C$333+'1 Données d''entrée'!$C$334+1+$B540,$D536*('1 Données d''entrée'!$C$332*(1+'1 Données d''entrée'!$C$332)^'1 Données d''entrée'!$C$333)/((1+'1 Données d''entrée'!$C$332)^'1 Données d''entrée'!$C$333-1),0))","v":0},{"$f":"IF(J430<'1 Données d''entrée'!$C$334+1+$B540,0,IF(J430<'1 Données d''entrée'!$C$333+'1 Données d''entrée'!$C$334+1+$B540,$D536*('1 Données d''entrée'!$C$332*(1+'1 Données d''entrée'!$C$332)^'1 Données d''entrée'!$C$333)/((1+'1 Données d''entrée'!$C$332)^'1 Données d''entrée'!$C$333-1),0))","v":0},{"$f":"IF(K430<'1 Données d''entrée'!$C$334+1+$B540,0,IF(K430<'1 Données d''entrée'!$C$333+'1 Données d''entrée'!$C$334+1+$B540,$D536*('1 Données d''entrée'!$C$332*(1+'1 Données d''entrée'!$C$332)^'1 Données d''entrée'!$C$333)/((1+'1 Données d''entrée'!$C$332)^'1 Données d''entrée'!$C$333-1),0))","v":0},{"$f":"IF(L430<'1 Données d''entrée'!$C$334+1+$B540,0,IF(L430<'1 Données d''entrée'!$C$333+'1 Données d''entrée'!$C$334+1+$B540,$D536*('1 Données d''entrée'!$C$332*(1+'1 Données d''entrée'!$C$332)^'1 Données d''entrée'!$C$333)/((1+'1 Données d''entrée'!$C$332)^'1 Données d''entrée'!$C$333-1),0))","v":0},{"$f":"IF(M430<'1 Données d''entrée'!$C$334+1+$B540,0,IF(M430<'1 Données d''entrée'!$C$333+'1 Données d''entrée'!$C$334+1+$B540,$D536*('1 Données d''entrée'!$C$332*(1+'1 Données d''entrée'!$C$332)^'1 Données d''entrée'!$C$333)/((1+'1 Données d''entrée'!$C$332)^'1 Données d''entrée'!$C$333-1),0))","v":0},{"$f":"IF(N430<'1 Données d''entrée'!$C$334+1+$B540,0,IF(N430<'1 Données d''entrée'!$C$333+'1 Données d''entrée'!$C$334+1+$B540,$D536*('1 Données d''entrée'!$C$332*(1+'1 Données d''entrée'!$C$332)^'1 Données d''entrée'!$C$333)/((1+'1 Données d''entrée'!$C$332)^'1 Données d''entrée'!$C$333-1),0))","v":0},{"$f":"IF(O430<'1 Données d''entrée'!$C$334+1+$B540,0,IF(O430<'1 Données d''entrée'!$C$333+'1 Données d''entrée'!$C$334+1+$B540,$D536*('1 Données d''entrée'!$C$332*(1+'1 Données d''entrée'!$C$332)^'1 Données d''entrée'!$C$333)/((1+'1 Données d''entrée'!$C$332)^'1 Données d''entrée'!$C$333-1),0))","v":0},{"$f":"IF(P430<'1 Données d''entrée'!$C$334+1+$B540,0,IF(P430<'1 Données d''entrée'!$C$333+'1 Données d''entrée'!$C$334+1+$B540,$D536*('1 Données d''entrée'!$C$332*(1+'1 Données d''entrée'!$C$332)^'1 Données d''entrée'!$C$333)/((1+'1 Données d''entrée'!$C$332)^'1 Données d''entrée'!$C$333-1),0))","v":0},{"$f":"IF(Q430<'1 Données d''entrée'!$C$334+1+$B540,0,IF(Q430<'1 Données d''entrée'!$C$333+'1 Données d''entrée'!$C$334+1+$B540,$D536*('1 Données d''entrée'!$C$332*(1+'1 Données d''entrée'!$C$332)^'1 Données d''entrée'!$C$333)/((1+'1 Données d''entrée'!$C$332)^'1 Données d''entrée'!$C$333-1),0))","v":0},{"$f":"IF(R430<'1 Données d''entrée'!$C$334+1+$B540,0,IF(R430<'1 Données d''entrée'!$C$333+'1 Données d''entrée'!$C$334+1+$B540,$D536*('1 Données d''entrée'!$C$332*(1+'1 Données d''entrée'!$C$332)^'1 Données d''entrée'!$C$333)/((1+'1 Données d''entrée'!$C$332)^'1 Données d''entrée'!$C$333-1),0))","v":0},{"$f":"IF(S430<'1 Données d''entrée'!$C$334+1+$B540,0,IF(S430<'1 Données d''entrée'!$C$333+'1 Données d''entrée'!$C$334+1+$B540,$D536*('1 Données d''entrée'!$C$332*(1+'1 Données d''entrée'!$C$332)^'1 Données d''entrée'!$C$333)/((1+'1 Données d''entrée'!$C$332)^'1 Données d''entrée'!$C$333-1),0))","v":0},{"$f":"IF(T430<'1 Données d''entrée'!$C$334+1+$B540,0,IF(T430<'1 Données d''entrée'!$C$333+'1 Données d''entrée'!$C$334+1+$B540,$D536*('1 Données d''entrée'!$C$332*(1+'1 Données d''entrée'!$C$332)^'1 Données d''entrée'!$C$333)/((1+'1 Données d''entrée'!$C$332)^'1 Données d''entrée'!$C$333-1),0))","v":0},{"$f":"IF(U430<'1 Données d''entrée'!$C$334+1+$B540,0,IF(U430<'1 Données d''entrée'!$C$333+'1 Données d''entrée'!$C$334+1+$B540,$D536*('1 Données d''entrée'!$C$332*(1+'1 Données d''entrée'!$C$332)^'1 Données d''entrée'!$C$333)/((1+'1 Données d''entrée'!$C$332)^'1 Données d''entrée'!$C$333-1),0))","v":0},{"$f":"IF(V430<'1 Données d''entrée'!$C$334+1+$B540,0,IF(V430<'1 Données d''entrée'!$C$333+'1 Données d''entrée'!$C$334+1+$B540,$D536*('1 Données d''entrée'!$C$332*(1+'1 Données d''entrée'!$C$332)^'1 Données d''entrée'!$C$333)/((1+'1 Données d''entrée'!$C$332)^'1 Données d''entrée'!$C$333-1),0))","v":0}]
[null,3,{"$f":"IF(C$54<'1 Données d''entrée'!$C$334+1+$B541,0,IF(C$54<'1 Données d''entrée'!$C$333+'1 Données d''entrée'!$C$334+1+$B541,$E$160*('1 Données d''entrée'!$C$332*(1+'1 Données d''entrée'!$C$332)^'1 Données d''entrée'!$C$333)/((1+'1 Données d''entrée'!$C$332)^'1 Données d''entrée'!$C$333-1),0))","v":0},{"$f":"IF(D430<'1 Données d''entrée'!$C$334+1+$B541,0,IF(D430<'1 Données d''entrée'!$C$333+'1 Données d''entrée'!$C$334+1+$B541,$E536*('1 Données d''entrée'!$C$332*(1+'1 Données d''entrée'!$C$332)^'1 Données d''entrée'!$C$333)/((1+'1 Données d''entrée'!$C$332)^'1 Données d''entrée'!$C$333-1),0))","v":0},{"$f":"IF(E430<'1 Données d''entrée'!$C$334+1+$B541,0,IF(E430<'1 Données d''entrée'!$C$333+'1 Données d''entrée'!$C$334+1+$B541,$E536*('1 Données d''entrée'!$C$332*(1+'1 Données d''entrée'!$C$332)^'1 Données d''entrée'!$C$333)/((1+'1 Données d''entrée'!$C$332)^'1 Données d''entrée'!$C$333-1),0))","v":0},{"$f":"IF(F430<'1 Données d''entrée'!$C$334+1+$B541,0,IF(F430<'1 Données d''entrée'!$C$333+'1 Données d''entrée'!$C$334+1+$B541,$E536*('1 Données d''entrée'!$C$332*(1+'1 Données d''entrée'!$C$332)^'1 Données d''entrée'!$C$333)/((1+'1 Données d''entrée'!$C$332)^'1 Données d''entrée'!$C$333-1),0))","v":0},{"$f":"IF(G430<'1 Données d''entrée'!$C$334+1+$B541,0,IF(G430<'1 Données d''entrée'!$C$333+'1 Données d''entrée'!$C$334+1+$B541,$E536*('1 Données d''entrée'!$C$332*(1+'1 Données d''entrée'!$C$332)^'1 Données d''entrée'!$C$333)/((1+'1 Données d''entrée'!$C$332)^'1 Données d''entrée'!$C$333-1),0))","v":0},{"$f":"IF(H430<'1 Données d''entrée'!$C$334+1+$B541,0,IF(H430<'1 Données d''entrée'!$C$333+'1 Données d''entrée'!$C$334+1+$B541,$E536*('1 Données d''entrée'!$C$332*(1+'1 Données d''entrée'!$C$332)^'1 Données d''entrée'!$C$333)/((1+'1 Données d''entrée'!$C$332)^'1 Données d''entrée'!$C$333-1),0))","v":0},{"$f":"IF(I430<'1 Données d''entrée'!$C$334+1+$B541,0,IF(I430<'1 Données d''entrée'!$C$333+'1 Données d''entrée'!$C$334+1+$B541,$E536*('1 Données d''entrée'!$C$332*(1+'1 Données d''entrée'!$C$332)^'1 Données d''entrée'!$C$333)/((1+'1 Données d''entrée'!$C$332)^'1 Données d''entrée'!$C$333-1),0))","v":0},{"$f":"IF(J430<'1 Données d''entrée'!$C$334+1+$B541,0,IF(J430<'1 Données d''entrée'!$C$333+'1 Données d''entrée'!$C$334+1+$B541,$E536*('1 Données d''entrée'!$C$332*(1+'1 Données d''entrée'!$C$332)^'1 Données d''entrée'!$C$333)/((1+'1 Données d''entrée'!$C$332)^'1 Données d''entrée'!$C$333-1),0))","v":0},{"$f":"IF(K430<'1 Données d''entrée'!$C$334+1+$B541,0,IF(K430<'1 Données d''entrée'!$C$333+'1 Données d''entrée'!$C$334+1+$B541,$E536*('1 Données d''entrée'!$C$332*(1+'1 Données d''entrée'!$C$332)^'1 Données d''entrée'!$C$333)/((1+'1 Données d''entrée'!$C$332)^'1 Données d''entrée'!$C$333-1),0))","v":0},{"$f":"IF(L430<'1 Données d''entrée'!$C$334+1+$B541,0,IF(L430<'1 Données d''entrée'!$C$333+'1 Données d''entrée'!$C$334+1+$B541,$E536*('1 Données d''entrée'!$C$332*(1+'1 Données d''entrée'!$C$332)^'1 Données d''entrée'!$C$333)/((1+'1 Données d''entrée'!$C$332)^'1 Données d''entrée'!$C$333-1),0))","v":0},{"$f":"IF(M430<'1 Données d''entrée'!$C$334+1+$B541,0,IF(M430<'1 Données d''entrée'!$C$333+'1 Données d''entrée'!$C$334+1+$B541,$E536*('1 Données d''entrée'!$C$332*(1+'1 Données d''entrée'!$C$332)^'1 Données d''entrée'!$C$333)/((1+'1 Données d''entrée'!$C$332)^'1 Données d''entrée'!$C$333-1),0))","v":0},{"$f":"IF(N430<'1 Données d''entrée'!$C$334+1+$B541,0,IF(N430<'1 Données d''entrée'!$C$333+'1 Données d''entrée'!$C$334+1+$B541,$E536*('1 Données d''entrée'!$C$332*(1+'1 Données d''entrée'!$C$332)^'1 Données d''entrée'!$C$333)/((1+'1 Données d''entrée'!$C$332)^'1 Données d''entrée'!$C$333-1),0))","v":0},{"$f":"IF(O430<'1 Données d''entrée'!$C$334+1+$B541,0,IF(O430<'1 Données d''entrée'!$C$333+'1 Données d''entrée'!$C$334+1+$B541,$E536*('1 Données d''entrée'!$C$332*(1+'1 Données d''entrée'!$C$332)^'1 Données d''entrée'!$C$333)/((1+'1 Données d''entrée'!$C$332)^'1 Données d''entrée'!$C$333-1),0))","v":0},{"$f":"IF(P430<'1 Données d''entrée'!$C$334+1+$B541,0,IF(P430<'1 Données d''entrée'!$C$333+'1 Données d''entrée'!$C$334+1+$B541,$E536*('1 Données d''entrée'!$C$332*(1+'1 Données d''entrée'!$C$332)^'1 Données d''entrée'!$C$333)/((1+'1 Données d''entrée'!$C$332)^'1 Données d''entrée'!$C$333-1),0))","v":0},{"$f":"IF(Q430<'1 Données d''entrée'!$C$334+1+$B541,0,IF(Q430<'1 Données d''entrée'!$C$333+'1 Données d''entrée'!$C$334+1+$B541,$E536*('1 Données d''entrée'!$C$332*(1+'1 Données d''entrée'!$C$332)^'1 Données d''entrée'!$C$333)/((1+'1 Données d''entrée'!$C$332)^'1 Données d''entrée'!$C$333-1),0))","v":0},{"$f":"IF(R430<'1 Données d''entrée'!$C$334+1+$B541,0,IF(R430<'1 Données d''entrée'!$C$333+'1 Données d''entrée'!$C$334+1+$B541,$E536*('1 Données d''entrée'!$C$332*(1+'1 Données d''entrée'!$C$332)^'1 Données d''entrée'!$C$333)/((1+'1 Données d''entrée'!$C$332)^'1 Données d''entrée'!$C$333-1),0))","v":0},{"$f":"IF(S430<'1 Données d''entrée'!$C$334+1+$B541,0,IF(S430<'1 Données d''entrée'!$C$333+'1 Données d''entrée'!$C$334+1+$B541,$E536*('1 Données d''entrée'!$C$332*(1+'1 Données d''entrée'!$C$332)^'1 Données d''entrée'!$C$333)/((1+'1 Données d''entrée'!$C$332)^'1 Données d''entrée'!$C$333-1),0))","v":0},{"$f":"IF(T430<'1 Données d''entrée'!$C$334+1+$B541,0,IF(T430<'1 Données d''entrée'!$C$333+'1 Données d''entrée'!$C$334+1+$B541,$E536*('1 Données d''entrée'!$C$332*(1+'1 Données d''entrée'!$C$332)^'1 Données d''entrée'!$C$333)/((1+'1 Données d''entrée'!$C$332)^'1 Données d''entrée'!$C$333-1),0))","v":0},{"$f":"IF(U430<'1 Données d''entrée'!$C$334+1+$B541,0,IF(U430<'1 Données d''entrée'!$C$333+'1 Données d''entrée'!$C$334+1+$B541,$E536*('1 Données d''entrée'!$C$332*(1+'1 Données d''entrée'!$C$332)^'1 Données d''entrée'!$C$333)/((1+'1 Données d''entrée'!$C$332)^'1 Données d''entrée'!$C$333-1),0))","v":0},{"$f":"IF(V430<'1 Données d''entrée'!$C$334+1+$B541,0,IF(V430<'1 Données d''entrée'!$C$333+'1 Données d''entrée'!$C$334+1+$B541,$E536*('1 Données d''entrée'!$C$332*(1+'1 Données d''entrée'!$C$332)^'1 Données d''entrée'!$C$333)/((1+'1 Données d''entrée'!$C$332)^'1 Données d''entrée'!$C$333-1),0))","v":0}]
[null,4,{"$f":"IF(C$54<'1 Données d''entrée'!$C$334+1+$B542,0,IF(C$54<'1 Données d''entrée'!$C$333+'1 Données d''entrée'!$C$334+1+$B542,$F$160*('1 Données d''entrée'!$C$332*(1+'1 Données d''entrée'!$C$332)^'1 Données d''entrée'!$C$333)/((1+'1 Données d''entrée'!$C$332)^'1 Données d''entrée'!$C$333-1),0))","v":0},{"$f":"IF(D430<'1 Données d''entrée'!$C$334+1+$B542,0,IF(D430<'1 Données d''entrée'!$C$333+'1 Données d''entrée'!$C$334+1+$B542,$F536*('1 Données d''entrée'!$C$332*(1+'1 Données d''entrée'!$C$332)^'1 Données d''entrée'!$C$333)/((1+'1 Données d''entrée'!$C$332)^'1 Données d''entrée'!$C$333-1),0))","v":0},{"$f":"IF(E430<'1 Données d''entrée'!$C$334+1+$B542,0,IF(E430<'1 Données d''entrée'!$C$333+'1 Données d''entrée'!$C$334+1+$B542,$F536*('1 Données d''entrée'!$C$332*(1+'1 Données d''entrée'!$C$332)^'1 Données d''entrée'!$C$333)/((1+'1 Données d''entrée'!$C$332)^'1 Données d''entrée'!$C$333-1),0))","v":0},{"$f":"IF(F430<'1 Données d''entrée'!$C$334+1+$B542,0,IF(F430<'1 Données d''entrée'!$C$333+'1 Données d''entrée'!$C$334+1+$B542,$F536*('1 Données d''entrée'!$C$332*(1+'1 Données d''entrée'!$C$332)^'1 Données d''entrée'!$C$333)/((1+'1 Données d''entrée'!$C$332)^'1 Données d''entrée'!$C$333-1),0))","v":0},{"$f":"IF(G430<'1 Données d''entrée'!$C$334+1+$B542,0,IF(G430<'1 Données d''entrée'!$C$333+'1 Données d''entrée'!$C$334+1+$B542,$F536*('1 Données d''entrée'!$C$332*(1+'1 Données d''entrée'!$C$332)^'1 Données d''entrée'!$C$333)/((1+'1 Données d''entrée'!$C$332)^'1 Données d''entrée'!$C$333-1),0))","v":0},{"$f":"IF(H430<'1 Données d''entrée'!$C$334+1+$B542,0,IF(H430<'1 Données d''entrée'!$C$333+'1 Données d''entrée'!$C$334+1+$B542,$F536*('1 Données d''entrée'!$C$332*(1+'1 Données d''entrée'!$C$332)^'1 Données d''entrée'!$C$333)/((1+'1 Données d''entrée'!$C$332)^'1 Données d''entrée'!$C$333-1),0))","v":0},{"$f":"IF(I430<'1 Données d''entrée'!$C$334+1+$B542,0,IF(I430<'1 Données d''entrée'!$C$333+'1 Données d''entrée'!$C$334+1+$B542,$F536*('1 Données d''entrée'!$C$332*(1+'1 Données d''entrée'!$C$332)^'1 Données d''entrée'!$C$333)/((1+'1 Données d''entrée'!$C$332)^'1 Données d''entrée'!$C$333-1),0))","v":0},{"$f":"IF(J430<'1 Données d''entrée'!$C$334+1+$B542,0,IF(J430<'1 Données d''entrée'!$C$333+'1 Données d''entrée'!$C$334+1+$B542,$F536*('1 Données d''entrée'!$C$332*(1+'1 Données d''entrée'!$C$332)^'1 Données d''entrée'!$C$333)/((1+'1 Données d''entrée'!$C$332)^'1 Données d''entrée'!$C$333-1),0))","v":0},{"$f":"IF(K430<'1 Données d''entrée'!$C$334+1+$B542,0,IF(K430<'1 Données d''entrée'!$C$333+'1 Données d''entrée'!$C$334+1+$B542,$F536*('1 Données d''entrée'!$C$332*(1+'1 Données d''entrée'!$C$332)^'1 Données d''entrée'!$C$333)/((1+'1 Données d''entrée'!$C$332)^'1 Données d''entrée'!$C$333-1),0))","v":0},{"$f":"IF(L430<'1 Données d''entrée'!$C$334+1+$B542,0,IF(L430<'1 Données d''entrée'!$C$333+'1 Données d''entrée'!$C$334+1+$B542,$F536*('1 Données d''entrée'!$C$332*(1+'1 Données d''entrée'!$C$332)^'1 Données d''entrée'!$C$333)/((1+'1 Données d''entrée'!$C$332)^'1 Données d''entrée'!$C$333-1),0))","v":0},{"$f":"IF(M430<'1 Données d''entrée'!$C$334+1+$B542,0,IF(M430<'1 Données d''entrée'!$C$333+'1 Données d''entrée'!$C$334+1+$B542,$F536*('1 Données d''entrée'!$C$332*(1+'1 Données d''entrée'!$C$332)^'1 Données d''entrée'!$C$333)/((1+'1 Données d''entrée'!$C$332)^'1 Données d''entrée'!$C$333-1),0))","v":0},{"$f":"IF(N430<'1 Données d''entrée'!$C$334+1+$B542,0,IF(N430<'1 Données d''entrée'!$C$333+'1 Données d''entrée'!$C$334+1+$B542,$F536*('1 Données d''entrée'!$C$332*(1+'1 Données d''entrée'!$C$332)^'1 Données d''entrée'!$C$333)/((1+'1 Données d''entrée'!$C$332)^'1 Données d''entrée'!$C$333-1),0))","v":0},{"$f":"IF(O430<'1 Données d''entrée'!$C$334+1+$B542,0,IF(O430<'1 Données d''entrée'!$C$333+'1 Données d''entrée'!$C$334+1+$B542,$F536*('1 Données d''entrée'!$C$332*(1+'1 Données d''entrée'!$C$332)^'1 Données d''entrée'!$C$333)/((1+'1 Données d''entrée'!$C$332)^'1 Données d''entrée'!$C$333-1),0))","v":0},{"$f":"IF(P430<'1 Données d''entrée'!$C$334+1+$B542,0,IF(P430<'1 Données d''entrée'!$C$333+'1 Données d''entrée'!$C$334+1+$B542,$F536*('1 Données d''entrée'!$C$332*(1+'1 Données d''entrée'!$C$332)^'1 Données d''entrée'!$C$333)/((1+'1 Données d''entrée'!$C$332)^'1 Données d''entrée'!$C$333-1),0))","v":0},{"$f":"IF(Q430<'1 Données d''entrée'!$C$334+1+$B542,0,IF(Q430<'1 Données d''entrée'!$C$333+'1 Données d''entrée'!$C$334+1+$B542,$F536*('1 Données d''entrée'!$C$332*(1+'1 Données d''entrée'!$C$332)^'1 Données d''entrée'!$C$333)/((1+'1 Données d''entrée'!$C$332)^'1 Données d''entrée'!$C$333-1),0))","v":0},{"$f":"IF(R430<'1 Données d''entrée'!$C$334+1+$B542,0,IF(R430<'1 Données d''entrée'!$C$333+'1 Données d''entrée'!$C$334+1+$B542,$F536*('1 Données d''entrée'!$C$332*(1+'1 Données d''entrée'!$C$332)^'1 Données d''entrée'!$C$333)/((1+'1 Données d''entrée'!$C$332)^'1 Données d''entrée'!$C$333-1),0))","v":0},{"$f":"IF(S430<'1 Données d''entrée'!$C$334+1+$B542,0,IF(S430<'1 Données d''entrée'!$C$333+'1 Données d''entrée'!$C$334+1+$B542,$F536*('1 Données d''entrée'!$C$332*(1+'1 Données d''entrée'!$C$332)^'1 Données d''entrée'!$C$333)/((1+'1 Données d''entrée'!$C$332)^'1 Données d''entrée'!$C$333-1),0))","v":0},{"$f":"IF(T430<'1 Données d''entrée'!$C$334+1+$B542,0,IF(T430<'1 Données d''entrée'!$C$333+'1 Données d''entrée'!$C$334+1+$B542,$F536*('1 Données d''entrée'!$C$332*(1+'1 Données d''entrée'!$C$332)^'1 Données d''entrée'!$C$333)/((1+'1 Données d''entrée'!$C$332)^'1 Données d''entrée'!$C$333-1),0))","v":0},{"$f":"IF(U430<'1 Données d''entrée'!$C$334+1+$B542,0,IF(U430<'1 Données d''entrée'!$C$333+'1 Données d''entrée'!$C$334+1+$B542,$F536*('1 Données d''entrée'!$C$332*(1+'1 Données d''entrée'!$C$332)^'1 Données d''entrée'!$C$333)/((1+'1 Données d''entrée'!$C$332)^'1 Données d''entrée'!$C$333-1),0))","v":0},{"$f":"IF(V430<'1 Données d''entrée'!$C$334+1+$B542,0,IF(V430<'1 Données d''entrée'!$C$333+'1 Données d''entrée'!$C$334+1+$B542,$F536*('1 Données d''entrée'!$C$332*(1+'1 Données d''entrée'!$C$332)^'1 Données d''entrée'!$C$333)/((1+'1 Données d''entrée'!$C$332)^'1 Données d''entrée'!$C$333-1),0))","v":0}]
[null,5,{"$f":"IF(C$54<'1 Données d''entrée'!$C$334+1+$B543,0,IF(C$54<'1 Données d''entrée'!$C$333+'1 Données d''entrée'!$C$334+1+$B543,$G$160*('1 Données d''entrée'!$C$332*(1+'1 Données d''entrée'!$C$332)^'1 Données d''entrée'!$C$333)/((1+'1 Données d''entrée'!$C$332)^'1 Données d''entrée'!$C$333-1),0))","v":0},{"$f":"IF(D430<'1 Données d''entrée'!$C$334+1+$B543,0,IF(D430<'1 Données d''entrée'!$C$333+'1 Données d''entrée'!$C$334+1+$B543,$G536*('1 Données d''entrée'!$C$332*(1+'1 Données d''entrée'!$C$332)^'1 Données d''entrée'!$C$333)/((1+'1 Données d''entrée'!$C$332)^'1 Données d''entrée'!$C$333-1),0))","v":0},{"$f":"IF(E430<'1 Données d''entrée'!$C$334+1+$B543,0,IF(E430<'1 Données d''entrée'!$C$333+'1 Données d''entrée'!$C$334+1+$B543,$G536*('1 Données d''entrée'!$C$332*(1+'1 Données d''entrée'!$C$332)^'1 Données d''entrée'!$C$333)/((1+'1 Données d''entrée'!$C$332)^'1 Données d''entrée'!$C$333-1),0))","v":0},{"$f":"IF(F430<'1 Données d''entrée'!$C$334+1+$B543,0,IF(F430<'1 Données d''entrée'!$C$333+'1 Données d''entrée'!$C$334+1+$B543,$G536*('1 Données d''entrée'!$C$332*(1+'1 Données d''entrée'!$C$332)^'1 Données d''entrée'!$C$333)/((1+'1 Données d''entrée'!$C$332)^'1 Données d''entrée'!$C$333-1),0))","v":0},{"$f":"IF(G430<'1 Données d''entrée'!$C$334+1+$B543,0,IF(G430<'1 Données d''entrée'!$C$333+'1 Données d''entrée'!$C$334+1+$B543,$G536*('1 Données d''entrée'!$C$332*(1+'1 Données d''entrée'!$C$332)^'1 Données d''entrée'!$C$333)/((1+'1 Données d''entrée'!$C$332)^'1 Données d''entrée'!$C$333-1),0))","v":0},{"$f":"IF(H430<'1 Données d''entrée'!$C$334+1+$B543,0,IF(H430<'1 Données d''entrée'!$C$333+'1 Données d''entrée'!$C$334+1+$B543,$G536*('1 Données d''entrée'!$C$332*(1+'1 Données d''entrée'!$C$332)^'1 Données d''entrée'!$C$333)/((1+'1 Données d''entrée'!$C$332)^'1 Données d''entrée'!$C$333-1),0))","v":0},{"$f":"IF(I430<'1 Données d''entrée'!$C$334+1+$B543,0,IF(I430<'1 Données d''entrée'!$C$333+'1 Données d''entrée'!$C$334+1+$B543,$G536*('1 Données d''entrée'!$C$332*(1+'1 Données d''entrée'!$C$332)^'1 Données d''entrée'!$C$333)/((1+'1 Données d''entrée'!$C$332)^'1 Données d''entrée'!$C$333-1),0))","v":0},{"$f":"IF(J430<'1 Données d''entrée'!$C$334+1+$B543,0,IF(J430<'1 Données d''entrée'!$C$333+'1 Données d''entrée'!$C$334+1+$B543,$G536*('1 Données d''entrée'!$C$332*(1+'1 Données d''entrée'!$C$332)^'1 Données d''entrée'!$C$333)/((1+'1 Données d''entrée'!$C$332)^'1 Données d''entrée'!$C$333-1),0))","v":0},{"$f":"IF(K430<'1 Données d''entrée'!$C$334+1+$B543,0,IF(K430<'1 Données d''entrée'!$C$333+'1 Données d''entrée'!$C$334+1+$B543,$G536*('1 Données d''entrée'!$C$332*(1+'1 Données d''entrée'!$C$332)^'1 Données d''entrée'!$C$333)/((1+'1 Données d''entrée'!$C$332)^'1 Données d''entrée'!$C$333-1),0))","v":0},{"$f":"IF(L430<'1 Données d''entrée'!$C$334+1+$B543,0,IF(L430<'1 Données d''entrée'!$C$333+'1 Données d''entrée'!$C$334+1+$B543,$G536*('1 Données d''entrée'!$C$332*(1+'1 Données d''entrée'!$C$332)^'1 Données d''entrée'!$C$333)/((1+'1 Données d''entrée'!$C$332)^'1 Données d''entrée'!$C$333-1),0))","v":0},{"$f":"IF(M430<'1 Données d''entrée'!$C$334+1+$B543,0,IF(M430<'1 Données d''entrée'!$C$333+'1 Données d''entrée'!$C$334+1+$B543,$G536*('1 Données d''entrée'!$C$332*(1+'1 Données d''entrée'!$C$332)^'1 Données d''entrée'!$C$333)/((1+'1 Données d''entrée'!$C$332)^'1 Données d''entrée'!$C$333-1),0))","v":0},{"$f":"IF(N430<'1 Données d''entrée'!$C$334+1+$B543,0,IF(N430<'1 Données d''entrée'!$C$333+'1 Données d''entrée'!$C$334+1+$B543,$G536*('1 Données d''entrée'!$C$332*(1+'1 Données d''entrée'!$C$332)^'1 Données d''entrée'!$C$333)/((1+'1 Données d''entrée'!$C$332)^'1 Données d''entrée'!$C$333-1),0))","v":0},{"$f":"IF(O430<'1 Données d''entrée'!$C$334+1+$B543,0,IF(O430<'1 Données d''entrée'!$C$333+'1 Données d''entrée'!$C$334+1+$B543,$G536*('1 Données d''entrée'!$C$332*(1+'1 Données d''entrée'!$C$332)^'1 Données d''entrée'!$C$333)/((1+'1 Données d''entrée'!$C$332)^'1 Données d''entrée'!$C$333-1),0))","v":0},{"$f":"IF(P430<'1 Données d''entrée'!$C$334+1+$B543,0,IF(P430<'1 Données d''entrée'!$C$333+'1 Données d''entrée'!$C$334+1+$B543,$G536*('1 Données d''entrée'!$C$332*(1+'1 Données d''entrée'!$C$332)^'1 Données d''entrée'!$C$333)/((1+'1 Données d''entrée'!$C$332)^'1 Données d''entrée'!$C$333-1),0))","v":0},{"$f":"IF(Q430<'1 Données d''entrée'!$C$334+1+$B543,0,IF(Q430<'1 Données d''entrée'!$C$333+'1 Données d''entrée'!$C$334+1+$B543,$G536*('1 Données d''entrée'!$C$332*(1+'1 Données d''entrée'!$C$332)^'1 Données d''entrée'!$C$333)/((1+'1 Données d''entrée'!$C$332)^'1 Données d''entrée'!$C$333-1),0))","v":0},{"$f":"IF(R430<'1 Données d''entrée'!$C$334+1+$B543,0,IF(R430<'1 Données d''entrée'!$C$333+'1 Données d''entrée'!$C$334+1+$B543,$G536*('1 Données d''entrée'!$C$332*(1+'1 Données d''entrée'!$C$332)^'1 Données d''entrée'!$C$333)/((1+'1 Données d''entrée'!$C$332)^'1 Données d''entrée'!$C$333-1),0))","v":0},{"$f":"IF(S430<'1 Données d''entrée'!$C$334+1+$B543,0,IF(S430<'1 Données d''entrée'!$C$333+'1 Données d''entrée'!$C$334+1+$B543,$G536*('1 Données d''entrée'!$C$332*(1+'1 Données d''entrée'!$C$332)^'1 Données d''entrée'!$C$333)/((1+'1 Données d''entrée'!$C$332)^'1 Données d''entrée'!$C$333-1),0))","v":0},{"$f":"IF(T430<'1 Données d''entrée'!$C$334+1+$B543,0,IF(T430<'1 Données d''entrée'!$C$333+'1 Données d''entrée'!$C$334+1+$B543,$G536*('1 Données d''entrée'!$C$332*(1+'1 Données d''entrée'!$C$332)^'1 Données d''entrée'!$C$333)/((1+'1 Données d''entrée'!$C$332)^'1 Données d''entrée'!$C$333-1),0))","v":0},{"$f":"IF(U430<'1 Données d''entrée'!$C$334+1+$B543,0,IF(U430<'1 Données d''entrée'!$C$333+'1 Données d''entrée'!$C$334+1+$B543,$G536*('1 Données d''entrée'!$C$332*(1+'1 Données d''entrée'!$C$332)^'1 Données d''entrée'!$C$333)/((1+'1 Données d''entrée'!$C$332)^'1 Données d''entrée'!$C$333-1),0))","v":0},{"$f":"IF(V430<'1 Données d''entrée'!$C$334+1+$B543,0,IF(V430<'1 Données d''entrée'!$C$333+'1 Données d''entrée'!$C$334+1+$B543,$G536*('1 Données d''entrée'!$C$332*(1+'1 Données d''entrée'!$C$332)^'1 Données d''entrée'!$C$333)/((1+'1 Données d''entrée'!$C$332)^'1 Données d''entrée'!$C$333-1),0))","v":0}]
[null,6,{"$f":"IF(C$54<'1 Données d''entrée'!$C$334+1+$B544,0,IF(C$54<'1 Données d''entrée'!$C$333+'1 Données d''entrée'!$C$334+1+$B544,$H$160*('1 Données d''entrée'!$C$332*(1+'1 Données d''entrée'!$C$332)^'1 Données d''entrée'!$C$333)/((1+'1 Données d''entrée'!$C$332)^'1 Données d''entrée'!$C$333-1),0))","v":0},{"$f":"IF(D430<'1 Données d''entrée'!$C$334+1+$B544,0,IF(D430<'1 Données d''entrée'!$C$333+'1 Données d''entrée'!$C$334+1+$B544,$H536*('1 Données d''entrée'!$C$332*(1+'1 Données d''entrée'!$C$332)^'1 Données d''entrée'!$C$333)/((1+'1 Données d''entrée'!$C$332)^'1 Données d''entrée'!$C$333-1),0))","v":0},{"$f":"IF(E430<'1 Données d''entrée'!$C$334+1+$B544,0,IF(E430<'1 Données d''entrée'!$C$333+'1 Données d''entrée'!$C$334+1+$B544,$H536*('1 Données d''entrée'!$C$332*(1+'1 Données d''entrée'!$C$332)^'1 Données d''entrée'!$C$333)/((1+'1 Données d''entrée'!$C$332)^'1 Données d''entrée'!$C$333-1),0))","v":0},{"$f":"IF(F430<'1 Données d''entrée'!$C$334+1+$B544,0,IF(F430<'1 Données d''entrée'!$C$333+'1 Données d''entrée'!$C$334+1+$B544,$H536*('1 Données d''entrée'!$C$332*(1+'1 Données d''entrée'!$C$332)^'1 Données d''entrée'!$C$333)/((1+'1 Données d''entrée'!$C$332)^'1 Données d''entrée'!$C$333-1),0))","v":0},{"$f":"IF(G430<'1 Données d''entrée'!$C$334+1+$B544,0,IF(G430<'1 Données d''entrée'!$C$333+'1 Données d''entrée'!$C$334+1+$B544,$H536*('1 Données d''entrée'!$C$332*(1+'1 Données d''entrée'!$C$332)^'1 Données d''entrée'!$C$333)/((1+'1 Données d''entrée'!$C$332)^'1 Données d''entrée'!$C$333-1),0))","v":0},{"$f":"IF(H430<'1 Données d''entrée'!$C$334+1+$B544,0,IF(H430<'1 Données d''entrée'!$C$333+'1 Données d''entrée'!$C$334+1+$B544,$H536*('1 Données d''entrée'!$C$332*(1+'1 Données d''entrée'!$C$332)^'1 Données d''entrée'!$C$333)/((1+'1 Données d''entrée'!$C$332)^'1 Données d''entrée'!$C$333-1),0))","v":0},{"$f":"IF(I430<'1 Données d''entrée'!$C$334+1+$B544,0,IF(I430<'1 Données d''entrée'!$C$333+'1 Données d''entrée'!$C$334+1+$B544,$H536*('1 Données d''entrée'!$C$332*(1+'1 Données d''entrée'!$C$332)^'1 Données d''entrée'!$C$333)/((1+'1 Données d''entrée'!$C$332)^'1 Données d''entrée'!$C$333-1),0))","v":0},{"$f":"IF(J430<'1 Données d''entrée'!$C$334+1+$B544,0,IF(J430<'1 Données d''entrée'!$C$333+'1 Données d''entrée'!$C$334+1+$B544,$H536*('1 Données d''entrée'!$C$332*(1+'1 Données d''entrée'!$C$332)^'1 Données d''entrée'!$C$333)/((1+'1 Données d''entrée'!$C$332)^'1 Données d''entrée'!$C$333-1),0))","v":0},{"$f":"IF(K430<'1 Données d''entrée'!$C$334+1+$B544,0,IF(K430<'1 Données d''entrée'!$C$333+'1 Données d''entrée'!$C$334+1+$B544,$H536*('1 Données d''entrée'!$C$332*(1+'1 Données d''entrée'!$C$332)^'1 Données d''entrée'!$C$333)/((1+'1 Données d''entrée'!$C$332)^'1 Données d''entrée'!$C$333-1),0))","v":0},{"$f":"IF(L430<'1 Données d''entrée'!$C$334+1+$B544,0,IF(L430<'1 Données d''entrée'!$C$333+'1 Données d''entrée'!$C$334+1+$B544,$H536*('1 Données d''entrée'!$C$332*(1+'1 Données d''entrée'!$C$332)^'1 Données d''entrée'!$C$333)/((1+'1 Données d''entrée'!$C$332)^'1 Données d''entrée'!$C$333-1),0))","v":0},{"$f":"IF(M430<'1 Données d''entrée'!$C$334+1+$B544,0,IF(M430<'1 Données d''entrée'!$C$333+'1 Données d''entrée'!$C$334+1+$B544,$H536*('1 Données d''entrée'!$C$332*(1+'1 Données d''entrée'!$C$332)^'1 Données d''entrée'!$C$333)/((1+'1 Données d''entrée'!$C$332)^'1 Données d''entrée'!$C$333-1),0))","v":0},{"$f":"IF(N430<'1 Données d''entrée'!$C$334+1+$B544,0,IF(N430<'1 Données d''entrée'!$C$333+'1 Données d''entrée'!$C$334+1+$B544,$H536*('1 Données d''entrée'!$C$332*(1+'1 Données d''entrée'!$C$332)^'1 Données d''entrée'!$C$333)/((1+'1 Données d''entrée'!$C$332)^'1 Données d''entrée'!$C$333-1),0))","v":0},{"$f":"IF(O430<'1 Données d''entrée'!$C$334+1+$B544,0,IF(O430<'1 Données d''entrée'!$C$333+'1 Données d''entrée'!$C$334+1+$B544,$H536*('1 Données d''entrée'!$C$332*(1+'1 Données d''entrée'!$C$332)^'1 Données d''entrée'!$C$333)/((1+'1 Données d''entrée'!$C$332)^'1 Données d''entrée'!$C$333-1),0))","v":0},{"$f":"IF(P430<'1 Données d''entrée'!$C$334+1+$B544,0,IF(P430<'1 Données d''entrée'!$C$333+'1 Données d''entrée'!$C$334+1+$B544,$H536*('1 Données d''entrée'!$C$332*(1+'1 Données d''entrée'!$C$332)^'1 Données d''entrée'!$C$333)/((1+'1 Données d''entrée'!$C$332)^'1 Données d''entrée'!$C$333-1),0))","v":0},{"$f":"IF(Q430<'1 Données d''entrée'!$C$334+1+$B544,0,IF(Q430<'1 Données d''entrée'!$C$333+'1 Données d''entrée'!$C$334+1+$B544,$H536*('1 Données d''entrée'!$C$332*(1+'1 Données d''entrée'!$C$332)^'1 Données d''entrée'!$C$333)/((1+'1 Données d''entrée'!$C$332)^'1 Données d''entrée'!$C$333-1),0))","v":0},{"$f":"IF(R430<'1 Données d''entrée'!$C$334+1+$B544,0,IF(R430<'1 Données d''entrée'!$C$333+'1 Données d''entrée'!$C$334+1+$B544,$H536*('1 Données d''entrée'!$C$332*(1+'1 Données d''entrée'!$C$332)^'1 Données d''entrée'!$C$333)/((1+'1 Données d''entrée'!$C$332)^'1 Données d''entrée'!$C$333-1),0))","v":0},{"$f":"IF(S430<'1 Données d''entrée'!$C$334+1+$B544,0,IF(S430<'1 Données d''entrée'!$C$333+'1 Données d''entrée'!$C$334+1+$B544,$H536*('1 Données d''entrée'!$C$332*(1+'1 Données d''entrée'!$C$332)^'1 Données d''entrée'!$C$333)/((1+'1 Données d''entrée'!$C$332)^'1 Données d''entrée'!$C$333-1),0))","v":0},{"$f":"IF(T430<'1 Données d''entrée'!$C$334+1+$B544,0,IF(T430<'1 Données d''entrée'!$C$333+'1 Données d''entrée'!$C$334+1+$B544,$H536*('1 Données d''entrée'!$C$332*(1+'1 Données d''entrée'!$C$332)^'1 Données d''entrée'!$C$333)/((1+'1 Données d''entrée'!$C$332)^'1 Données d''entrée'!$C$333-1),0))","v":0},{"$f":"IF(U430<'1 Données d''entrée'!$C$334+1+$B544,0,IF(U430<'1 Données d''entrée'!$C$333+'1 Données d''entrée'!$C$334+1+$B544,$H536*('1 Données d''entrée'!$C$332*(1+'1 Données d''entrée'!$C$332)^'1 Données d''entrée'!$C$333)/((1+'1 Données d''entrée'!$C$332)^'1 Données d''entrée'!$C$333-1),0))","v":0},{"$f":"IF(V430<'1 Données d''entrée'!$C$334+1+$B544,0,IF(V430<'1 Données d''entrée'!$C$333+'1 Données d''entrée'!$C$334+1+$B544,$H536*('1 Données d''entrée'!$C$332*(1+'1 Données d''entrée'!$C$332)^'1 Données d''entrée'!$C$333)/((1+'1 Données d''entrée'!$C$332)^'1 Données d''entrée'!$C$333-1),0))","v":0}]
[null,7,{"$f":"IF(C$54<'1 Données d''entrée'!$C$334+1+$B545,0,IF(C$54<'1 Données d''entrée'!$C$333+'1 Données d''entrée'!$C$334+1+$B545,$I$160*('1 Données d''entrée'!$C$332*(1+'1 Données d''entrée'!$C$332)^'1 Données d''entrée'!$C$333)/((1+'1 Données d''entrée'!$C$332)^'1 Données d''entrée'!$C$333-1),0))","v":0},{"$f":"IF(D430<'1 Données d''entrée'!$C$334+1+$B545,0,IF(D430<'1 Données d''entrée'!$C$333+'1 Données d''entrée'!$C$334+1+$B545,$I536*('1 Données d''entrée'!$C$332*(1+'1 Données d''entrée'!$C$332)^'1 Données d''entrée'!$C$333)/((1+'1 Données d''entrée'!$C$332)^'1 Données d''entrée'!$C$333-1),0))","v":0},{"$f":"IF(E430<'1 Données d''entrée'!$C$334+1+$B545,0,IF(E430<'1 Données d''entrée'!$C$333+'1 Données d''entrée'!$C$334+1+$B545,$I536*('1 Données d''entrée'!$C$332*(1+'1 Données d''entrée'!$C$332)^'1 Données d''entrée'!$C$333)/((1+'1 Données d''entrée'!$C$332)^'1 Données d''entrée'!$C$333-1),0))","v":0},{"$f":"IF(F430<'1 Données d''entrée'!$C$334+1+$B545,0,IF(F430<'1 Données d''entrée'!$C$333+'1 Données d''entrée'!$C$334+1+$B545,$I536*('1 Données d''entrée'!$C$332*(1+'1 Données d''entrée'!$C$332)^'1 Données d''entrée'!$C$333)/((1+'1 Données d''entrée'!$C$332)^'1 Données d''entrée'!$C$333-1),0))","v":0},{"$f":"IF(G430<'1 Données d''entrée'!$C$334+1+$B545,0,IF(G430<'1 Données d''entrée'!$C$333+'1 Données d''entrée'!$C$334+1+$B545,$I536*('1 Données d''entrée'!$C$332*(1+'1 Données d''entrée'!$C$332)^'1 Données d''entrée'!$C$333)/((1+'1 Données d''entrée'!$C$332)^'1 Données d''entrée'!$C$333-1),0))","v":0},{"$f":"IF(H430<'1 Données d''entrée'!$C$334+1+$B545,0,IF(H430<'1 Données d''entrée'!$C$333+'1 Données d''entrée'!$C$334+1+$B545,$I536*('1 Données d''entrée'!$C$332*(1+'1 Données d''entrée'!$C$332)^'1 Données d''entrée'!$C$333)/((1+'1 Données d''entrée'!$C$332)^'1 Données d''entrée'!$C$333-1),0))","v":0},{"$f":"IF(I430<'1 Données d''entrée'!$C$334+1+$B545,0,IF(I430<'1 Données d''entrée'!$C$333+'1 Données d''entrée'!$C$334+1+$B545,$I536*('1 Données d''entrée'!$C$332*(1+'1 Données d''entrée'!$C$332)^'1 Données d''entrée'!$C$333)/((1+'1 Données d''entrée'!$C$332)^'1 Données d''entrée'!$C$333-1),0))","v":0},{"$f":"IF(J430<'1 Données d''entrée'!$C$334+1+$B545,0,IF(J430<'1 Données d''entrée'!$C$333+'1 Données d''entrée'!$C$334+1+$B545,$I536*('1 Données d''entrée'!$C$332*(1+'1 Données d''entrée'!$C$332)^'1 Données d''entrée'!$C$333)/((1+'1 Données d''entrée'!$C$332)^'1 Données d''entrée'!$C$333-1),0))","v":0},{"$f":"IF(K430<'1 Données d''entrée'!$C$334+1+$B545,0,IF(K430<'1 Données d''entrée'!$C$333+'1 Données d''entrée'!$C$334+1+$B545,$I536*('1 Données d''entrée'!$C$332*(1+'1 Données d''entrée'!$C$332)^'1 Données d''entrée'!$C$333)/((1+'1 Données d''entrée'!$C$332)^'1 Données d''entrée'!$C$333-1),0))","v":0},{"$f":"IF(L430<'1 Données d''entrée'!$C$334+1+$B545,0,IF(L430<'1 Données d''entrée'!$C$333+'1 Données d''entrée'!$C$334+1+$B545,$I536*('1 Données d''entrée'!$C$332*(1+'1 Données d''entrée'!$C$332)^'1 Données d''entrée'!$C$333)/((1+'1 Données d''entrée'!$C$332)^'1 Données d''entrée'!$C$333-1),0))","v":0},{"$f":"IF(M430<'1 Données d''entrée'!$C$334+1+$B545,0,IF(M430<'1 Données d''entrée'!$C$333+'1 Données d''entrée'!$C$334+1+$B545,$I536*('1 Données d''entrée'!$C$332*(1+'1 Données d''entrée'!$C$332)^'1 Données d''entrée'!$C$333)/((1+'1 Données d''entrée'!$C$332)^'1 Données d''entrée'!$C$333-1),0))","v":0},{"$f":"IF(N430<'1 Données d''entrée'!$C$334+1+$B545,0,IF(N430<'1 Données d''entrée'!$C$333+'1 Données d''entrée'!$C$334+1+$B545,$I536*('1 Données d''entrée'!$C$332*(1+'1 Données d''entrée'!$C$332)^'1 Données d''entrée'!$C$333)/((1+'1 Données d''entrée'!$C$332)^'1 Données d''entrée'!$C$333-1),0))","v":0},{"$f":"IF(O430<'1 Données d''entrée'!$C$334+1+$B545,0,IF(O430<'1 Données d''entrée'!$C$333+'1 Données d''entrée'!$C$334+1+$B545,$I536*('1 Données d''entrée'!$C$332*(1+'1 Données d''entrée'!$C$332)^'1 Données d''entrée'!$C$333)/((1+'1 Données d''entrée'!$C$332)^'1 Données d''entrée'!$C$333-1),0))","v":0},{"$f":"IF(P430<'1 Données d''entrée'!$C$334+1+$B545,0,IF(P430<'1 Données d''entrée'!$C$333+'1 Données d''entrée'!$C$334+1+$B545,$I536*('1 Données d''entrée'!$C$332*(1+'1 Données d''entrée'!$C$332)^'1 Données d''entrée'!$C$333)/((1+'1 Données d''entrée'!$C$332)^'1 Données d''entrée'!$C$333-1),0))","v":0},{"$f":"IF(Q430<'1 Données d''entrée'!$C$334+1+$B545,0,IF(Q430<'1 Données d''entrée'!$C$333+'1 Données d''entrée'!$C$334+1+$B545,$I536*('1 Données d''entrée'!$C$332*(1+'1 Données d''entrée'!$C$332)^'1 Données d''entrée'!$C$333)/((1+'1 Données d''entrée'!$C$332)^'1 Données d''entrée'!$C$333-1),0))","v":0},{"$f":"IF(R430<'1 Données d''entrée'!$C$334+1+$B545,0,IF(R430<'1 Données d''entrée'!$C$333+'1 Données d''entrée'!$C$334+1+$B545,$I536*('1 Données d''entrée'!$C$332*(1+'1 Données d''entrée'!$C$332)^'1 Données d''entrée'!$C$333)/((1+'1 Données d''entrée'!$C$332)^'1 Données d''entrée'!$C$333-1),0))","v":0},{"$f":"IF(S430<'1 Données d''entrée'!$C$334+1+$B545,0,IF(S430<'1 Données d''entrée'!$C$333+'1 Données d''entrée'!$C$334+1+$B545,$I536*('1 Données d''entrée'!$C$332*(1+'1 Données d''entrée'!$C$332)^'1 Données d''entrée'!$C$333)/((1+'1 Données d''entrée'!$C$332)^'1 Données d''entrée'!$C$333-1),0))","v":0},{"$f":"IF(T430<'1 Données d''entrée'!$C$334+1+$B545,0,IF(T430<'1 Données d''entrée'!$C$333+'1 Données d''entrée'!$C$334+1+$B545,$I536*('1 Données d''entrée'!$C$332*(1+'1 Données d''entrée'!$C$332)^'1 Données d''entrée'!$C$333)/((1+'1 Données d''entrée'!$C$332)^'1 Données d''entrée'!$C$333-1),0))","v":0},{"$f":"IF(U430<'1 Données d''entrée'!$C$334+1+$B545,0,IF(U430<'1 Données d''entrée'!$C$333+'1 Données d''entrée'!$C$334+1+$B545,$I536*('1 Données d''entrée'!$C$332*(1+'1 Données d''entrée'!$C$332)^'1 Données d''entrée'!$C$333)/((1+'1 Données d''entrée'!$C$332)^'1 Données d''entrée'!$C$333-1),0))","v":0},{"$f":"IF(V430<'1 Données d''entrée'!$C$334+1+$B545,0,IF(V430<'1 Données d''entrée'!$C$333+'1 Données d''entrée'!$C$334+1+$B545,$I536*('1 Données d''entrée'!$C$332*(1+'1 Données d''entrée'!$C$332)^'1 Données d''entrée'!$C$333)/((1+'1 Données d''entrée'!$C$332)^'1 Données d''entrée'!$C$333-1),0))","v":0}]
[null,8,{"$f":"IF(C$54<'1 Données d''entrée'!$C$334+1+$B546,0,IF(C$54<'1 Données d''entrée'!$C$333+'1 Données d''entrée'!$C$334+1+$B546,$J$160*('1 Données d''entrée'!$C$332*(1+'1 Données d''entrée'!$C$332)^'1 Données d''entrée'!$C$333)/((1+'1 Données d''entrée'!$C$332)^'1 Données d''entrée'!$C$333-1),0))","v":0},{"$f":"IF(D430<'1 Données d''entrée'!$C$334+1+$B546,0,IF(D430<'1 Données d''entrée'!$C$333+'1 Données d''entrée'!$C$334+1+$B546,$J536*('1 Données d''entrée'!$C$332*(1+'1 Données d''entrée'!$C$332)^'1 Données d''entrée'!$C$333)/((1+'1 Données d''entrée'!$C$332)^'1 Données d''entrée'!$C$333-1),0))","v":0},{"$f":"IF(E430<'1 Données d''entrée'!$C$334+1+$B546,0,IF(E430<'1 Données d''entrée'!$C$333+'1 Données d''entrée'!$C$334+1+$B546,$J536*('1 Données d''entrée'!$C$332*(1+'1 Données d''entrée'!$C$332)^'1 Données d''entrée'!$C$333)/((1+'1 Données d''entrée'!$C$332)^'1 Données d''entrée'!$C$333-1),0))","v":0},{"$f":"IF(F430<'1 Données d''entrée'!$C$334+1+$B546,0,IF(F430<'1 Données d''entrée'!$C$333+'1 Données d''entrée'!$C$334+1+$B546,$J536*('1 Données d''entrée'!$C$332*(1+'1 Données d''entrée'!$C$332)^'1 Données d''entrée'!$C$333)/((1+'1 Données d''entrée'!$C$332)^'1 Données d''entrée'!$C$333-1),0))","v":0},{"$f":"IF(G430<'1 Données d''entrée'!$C$334+1+$B546,0,IF(G430<'1 Données d''entrée'!$C$333+'1 Données d''entrée'!$C$334+1+$B546,$J536*('1 Données d''entrée'!$C$332*(1+'1 Données d''entrée'!$C$332)^'1 Données d''entrée'!$C$333)/((1+'1 Données d''entrée'!$C$332)^'1 Données d''entrée'!$C$333-1),0))","v":0},{"$f":"IF(H430<'1 Données d''entrée'!$C$334+1+$B546,0,IF(H430<'1 Données d''entrée'!$C$333+'1 Données d''entrée'!$C$334+1+$B546,$J536*('1 Données d''entrée'!$C$332*(1+'1 Données d''entrée'!$C$332)^'1 Données d''entrée'!$C$333)/((1+'1 Données d''entrée'!$C$332)^'1 Données d''entrée'!$C$333-1),0))","v":0},{"$f":"IF(I430<'1 Données d''entrée'!$C$334+1+$B546,0,IF(I430<'1 Données d''entrée'!$C$333+'1 Données d''entrée'!$C$334+1+$B546,$J536*('1 Données d''entrée'!$C$332*(1+'1 Données d''entrée'!$C$332)^'1 Données d''entrée'!$C$333)/((1+'1 Données d''entrée'!$C$332)^'1 Données d''entrée'!$C$333-1),0))","v":0},{"$f":"IF(J430<'1 Données d''entrée'!$C$334+1+$B546,0,IF(J430<'1 Données d''entrée'!$C$333+'1 Données d''entrée'!$C$334+1+$B546,$J536*('1 Données d''entrée'!$C$332*(1+'1 Données d''entrée'!$C$332)^'1 Données d''entrée'!$C$333)/((1+'1 Données d''entrée'!$C$332)^'1 Données d''entrée'!$C$333-1),0))","v":0},{"$f":"IF(K430<'1 Données d''entrée'!$C$334+1+$B546,0,IF(K430<'1 Données d''entrée'!$C$333+'1 Données d''entrée'!$C$334+1+$B546,$J536*('1 Données d''entrée'!$C$332*(1+'1 Données d''entrée'!$C$332)^'1 Données d''entrée'!$C$333)/((1+'1 Données d''entrée'!$C$332)^'1 Données d''entrée'!$C$333-1),0))","v":0},{"$f":"IF(L430<'1 Données d''entrée'!$C$334+1+$B546,0,IF(L430<'1 Données d''entrée'!$C$333+'1 Données d''entrée'!$C$334+1+$B546,$J536*('1 Données d''entrée'!$C$332*(1+'1 Données d''entrée'!$C$332)^'1 Données d''entrée'!$C$333)/((1+'1 Données d''entrée'!$C$332)^'1 Données d''entrée'!$C$333-1),0))","v":0},{"$f":"IF(M430<'1 Données d''entrée'!$C$334+1+$B546,0,IF(M430<'1 Données d''entrée'!$C$333+'1 Données d''entrée'!$C$334+1+$B546,$J536*('1 Données d''entrée'!$C$332*(1+'1 Données d''entrée'!$C$332)^'1 Données d''entrée'!$C$333)/((1+'1 Données d''entrée'!$C$332)^'1 Données d''entrée'!$C$333-1),0))","v":0},{"$f":"IF(N430<'1 Données d''entrée'!$C$334+1+$B546,0,IF(N430<'1 Données d''entrée'!$C$333+'1 Données d''entrée'!$C$334+1+$B546,$J536*('1 Données d''entrée'!$C$332*(1+'1 Données d''entrée'!$C$332)^'1 Données d''entrée'!$C$333)/((1+'1 Données d''entrée'!$C$332)^'1 Données d''entrée'!$C$333-1),0))","v":0},{"$f":"IF(O430<'1 Données d''entrée'!$C$334+1+$B546,0,IF(O430<'1 Données d''entrée'!$C$333+'1 Données d''entrée'!$C$334+1+$B546,$J536*('1 Données d''entrée'!$C$332*(1+'1 Données d''entrée'!$C$332)^'1 Données d''entrée'!$C$333)/((1+'1 Données d''entrée'!$C$332)^'1 Données d''entrée'!$C$333-1),0))","v":0},{"$f":"IF(P430<'1 Données d''entrée'!$C$334+1+$B546,0,IF(P430<'1 Données d''entrée'!$C$333+'1 Données d''entrée'!$C$334+1+$B546,$J536*('1 Données d''entrée'!$C$332*(1+'1 Données d''entrée'!$C$332)^'1 Données d''entrée'!$C$333)/((1+'1 Données d''entrée'!$C$332)^'1 Données d''entrée'!$C$333-1),0))","v":0},{"$f":"IF(Q430<'1 Données d''entrée'!$C$334+1+$B546,0,IF(Q430<'1 Données d''entrée'!$C$333+'1 Données d''entrée'!$C$334+1+$B546,$J536*('1 Données d''entrée'!$C$332*(1+'1 Données d''entrée'!$C$332)^'1 Données d''entrée'!$C$333)/((1+'1 Données d''entrée'!$C$332)^'1 Données d''entrée'!$C$333-1),0))","v":0},{"$f":"IF(R430<'1 Données d''entrée'!$C$334+1+$B546,0,IF(R430<'1 Données d''entrée'!$C$333+'1 Données d''entrée'!$C$334+1+$B546,$J536*('1 Données d''entrée'!$C$332*(1+'1 Données d''entrée'!$C$332)^'1 Données d''entrée'!$C$333)/((1+'1 Données d''entrée'!$C$332)^'1 Données d''entrée'!$C$333-1),0))","v":0},{"$f":"IF(S430<'1 Données d''entrée'!$C$334+1+$B546,0,IF(S430<'1 Données d''entrée'!$C$333+'1 Données d''entrée'!$C$334+1+$B546,$J536*('1 Données d''entrée'!$C$332*(1+'1 Données d''entrée'!$C$332)^'1 Données d''entrée'!$C$333)/((1+'1 Données d''entrée'!$C$332)^'1 Données d''entrée'!$C$333-1),0))","v":0},{"$f":"IF(T430<'1 Données d''entrée'!$C$334+1+$B546,0,IF(T430<'1 Données d''entrée'!$C$333+'1 Données d''entrée'!$C$334+1+$B546,$J536*('1 Données d''entrée'!$C$332*(1+'1 Données d''entrée'!$C$332)^'1 Données d''entrée'!$C$333)/((1+'1 Données d''entrée'!$C$332)^'1 Données d''entrée'!$C$333-1),0))","v":0},{"$f":"IF(U430<'1 Données d''entrée'!$C$334+1+$B546,0,IF(U430<'1 Données d''entrée'!$C$333+'1 Données d''entrée'!$C$334+1+$B546,$J536*('1 Données d''entrée'!$C$332*(1+'1 Données d''entrée'!$C$332)^'1 Données d''entrée'!$C$333)/((1+'1 Données d''entrée'!$C$332)^'1 Données d''entrée'!$C$333-1),0))","v":0},{"$f":"IF(V430<'1 Données d''entrée'!$C$334+1+$B546,0,IF(V430<'1 Données d''entrée'!$C$333+'1 Données d''entrée'!$C$334+1+$B546,$J536*('1 Données d''entrée'!$C$332*(1+'1 Données d''entrée'!$C$332)^'1 Données d''entrée'!$C$333)/((1+'1 Données d''entrée'!$C$332)^'1 Données d''entrée'!$C$333-1),0))","v":0}]
[null,9,{"$f":"IF(C$54<'1 Données d''entrée'!$C$334+1+$B547,0,IF(C$54<'1 Données d''entrée'!$C$333+'1 Données d''entrée'!$C$334+1+$B547,$K$160*('1 Données d''entrée'!$C$332*(1+'1 Données d''entrée'!$C$332)^'1 Données d''entrée'!$C$333)/((1+'1 Données d''entrée'!$C$332)^'1 Données d''entrée'!$C$333-1),0))","v":0},{"$f":"IF(D430<'1 Données d''entrée'!$C$334+1+$B547,0,IF(D430<'1 Données d''entrée'!$C$333+'1 Données d''entrée'!$C$334+1+$B547,$K536*('1 Données d''entrée'!$C$332*(1+'1 Données d''entrée'!$C$332)^'1 Données d''entrée'!$C$333)/((1+'1 Données d''entrée'!$C$332)^'1 Données d''entrée'!$C$333-1),0))","v":0},{"$f":"IF(E430<'1 Données d''entrée'!$C$334+1+$B547,0,IF(E430<'1 Données d''entrée'!$C$333+'1 Données d''entrée'!$C$334+1+$B547,$K536*('1 Données d''entrée'!$C$332*(1+'1 Données d''entrée'!$C$332)^'1 Données d''entrée'!$C$333)/((1+'1 Données d''entrée'!$C$332)^'1 Données d''entrée'!$C$333-1),0))","v":0},{"$f":"IF(F430<'1 Données d''entrée'!$C$334+1+$B547,0,IF(F430<'1 Données d''entrée'!$C$333+'1 Données d''entrée'!$C$334+1+$B547,$K536*('1 Données d''entrée'!$C$332*(1+'1 Données d''entrée'!$C$332)^'1 Données d''entrée'!$C$333)/((1+'1 Données d''entrée'!$C$332)^'1 Données d''entrée'!$C$333-1),0))","v":0},{"$f":"IF(G430<'1 Données d''entrée'!$C$334+1+$B547,0,IF(G430<'1 Données d''entrée'!$C$333+'1 Données d''entrée'!$C$334+1+$B547,$K536*('1 Données d''entrée'!$C$332*(1+'1 Données d''entrée'!$C$332)^'1 Données d''entrée'!$C$333)/((1+'1 Données d''entrée'!$C$332)^'1 Données d''entrée'!$C$333-1),0))","v":0},{"$f":"IF(H430<'1 Données d''entrée'!$C$334+1+$B547,0,IF(H430<'1 Données d''entrée'!$C$333+'1 Données d''entrée'!$C$334+1+$B547,$K536*('1 Données d''entrée'!$C$332*(1+'1 Données d''entrée'!$C$332)^'1 Données d''entrée'!$C$333)/((1+'1 Données d''entrée'!$C$332)^'1 Données d''entrée'!$C$333-1),0))","v":0},{"$f":"IF(I430<'1 Données d''entrée'!$C$334+1+$B547,0,IF(I430<'1 Données d''entrée'!$C$333+'1 Données d''entrée'!$C$334+1+$B547,$K536*('1 Données d''entrée'!$C$332*(1+'1 Données d''entrée'!$C$332)^'1 Données d''entrée'!$C$333)/((1+'1 Données d''entrée'!$C$332)^'1 Données d''entrée'!$C$333-1),0))","v":0},{"$f":"IF(J430<'1 Données d''entrée'!$C$334+1+$B547,0,IF(J430<'1 Données d''entrée'!$C$333+'1 Données d''entrée'!$C$334+1+$B547,$K536*('1 Données d''entrée'!$C$332*(1+'1 Données d''entrée'!$C$332)^'1 Données d''entrée'!$C$333)/((1+'1 Données d''entrée'!$C$332)^'1 Données d''entrée'!$C$333-1),0))","v":0},{"$f":"IF(K430<'1 Données d''entrée'!$C$334+1+$B547,0,IF(K430<'1 Données d''entrée'!$C$333+'1 Données d''entrée'!$C$334+1+$B547,$K536*('1 Données d''entrée'!$C$332*(1+'1 Données d''entrée'!$C$332)^'1 Données d''entrée'!$C$333)/((1+'1 Données d''entrée'!$C$332)^'1 Données d''entrée'!$C$333-1),0))","v":0},{"$f":"IF(L430<'1 Données d''entrée'!$C$334+1+$B547,0,IF(L430<'1 Données d''entrée'!$C$333+'1 Données d''entrée'!$C$334+1+$B547,$K536*('1 Données d''entrée'!$C$332*(1+'1 Données d''entrée'!$C$332)^'1 Données d''entrée'!$C$333)/((1+'1 Données d''entrée'!$C$332)^'1 Données d''entrée'!$C$333-1),0))","v":0},{"$f":"IF(M430<'1 Données d''entrée'!$C$334+1+$B547,0,IF(M430<'1 Données d''entrée'!$C$333+'1 Données d''entrée'!$C$334+1+$B547,$K536*('1 Données d''entrée'!$C$332*(1+'1 Données d''entrée'!$C$332)^'1 Données d''entrée'!$C$333)/((1+'1 Données d''entrée'!$C$332)^'1 Données d''entrée'!$C$333-1),0))","v":0},{"$f":"IF(N430<'1 Données d''entrée'!$C$334+1+$B547,0,IF(N430<'1 Données d''entrée'!$C$333+'1 Données d''entrée'!$C$334+1+$B547,$K536*('1 Données d''entrée'!$C$332*(1+'1 Données d''entrée'!$C$332)^'1 Données d''entrée'!$C$333)/((1+'1 Données d''entrée'!$C$332)^'1 Données d''entrée'!$C$333-1),0))","v":0},{"$f":"IF(O430<'1 Données d''entrée'!$C$334+1+$B547,0,IF(O430<'1 Données d''entrée'!$C$333+'1 Données d''entrée'!$C$334+1+$B547,$K536*('1 Données d''entrée'!$C$332*(1+'1 Données d''entrée'!$C$332)^'1 Données d''entrée'!$C$333)/((1+'1 Données d''entrée'!$C$332)^'1 Données d''entrée'!$C$333-1),0))","v":0},{"$f":"IF(P430<'1 Données d''entrée'!$C$334+1+$B547,0,IF(P430<'1 Données d''entrée'!$C$333+'1 Données d''entrée'!$C$334+1+$B547,$K536*('1 Données d''entrée'!$C$332*(1+'1 Données d''entrée'!$C$332)^'1 Données d''entrée'!$C$333)/((1+'1 Données d''entrée'!$C$332)^'1 Données d''entrée'!$C$333-1),0))","v":0},{"$f":"IF(Q430<'1 Données d''entrée'!$C$334+1+$B547,0,IF(Q430<'1 Données d''entrée'!$C$333+'1 Données d''entrée'!$C$334+1+$B547,$K536*('1 Données d''entrée'!$C$332*(1+'1 Données d''entrée'!$C$332)^'1 Données d''entrée'!$C$333)/((1+'1 Données d''entrée'!$C$332)^'1 Données d''entrée'!$C$333-1),0))","v":0},{"$f":"IF(R430<'1 Données d''entrée'!$C$334+1+$B547,0,IF(R430<'1 Données d''entrée'!$C$333+'1 Données d''entrée'!$C$334+1+$B547,$K536*('1 Données d''entrée'!$C$332*(1+'1 Données d''entrée'!$C$332)^'1 Données d''entrée'!$C$333)/((1+'1 Données d''entrée'!$C$332)^'1 Données d''entrée'!$C$333-1),0))","v":0},{"$f":"IF(S430<'1 Données d''entrée'!$C$334+1+$B547,0,IF(S430<'1 Données d''entrée'!$C$333+'1 Données d''entrée'!$C$334+1+$B547,$K536*('1 Données d''entrée'!$C$332*(1+'1 Données d''entrée'!$C$332)^'1 Données d''entrée'!$C$333)/((1+'1 Données d''entrée'!$C$332)^'1 Données d''entrée'!$C$333-1),0))","v":0},{"$f":"IF(T430<'1 Données d''entrée'!$C$334+1+$B547,0,IF(T430<'1 Données d''entrée'!$C$333+'1 Données d''entrée'!$C$334+1+$B547,$K536*('1 Données d''entrée'!$C$332*(1+'1 Données d''entrée'!$C$332)^'1 Données d''entrée'!$C$333)/((1+'1 Données d''entrée'!$C$332)^'1 Données d''entrée'!$C$333-1),0))","v":0},{"$f":"IF(U430<'1 Données d''entrée'!$C$334+1+$B547,0,IF(U430<'1 Données d''entrée'!$C$333+'1 Données d''entrée'!$C$334+1+$B547,$K536*('1 Données d''entrée'!$C$332*(1+'1 Données d''entrée'!$C$332)^'1 Données d''entrée'!$C$333)/((1+'1 Données d''entrée'!$C$332)^'1 Données d''entrée'!$C$333-1),0))","v":0},{"$f":"IF(V430<'1 Données d''entrée'!$C$334+1+$B547,0,IF(V430<'1 Données d''entrée'!$C$333+'1 Données d''entrée'!$C$334+1+$B547,$K536*('1 Données d''entrée'!$C$332*(1+'1 Données d''entrée'!$C$332)^'1 Données d''entrée'!$C$333)/((1+'1 Données d''entrée'!$C$332)^'1 Données d''entrée'!$C$333-1),0))","v":0}]
[null,10,{"$f":"IF(C$54<'1 Données d''entrée'!$C$334+1+$B548,0,IF(C$54<'1 Données d''entrée'!$C$333+'1 Données d''entrée'!$C$334+1+$B548,$L$160*('1 Données d''entrée'!$C$332*(1+'1 Données d''entrée'!$C$332)^'1 Données d''entrée'!$C$333)/((1+'1 Données d''entrée'!$C$332)^'1 Données d''entrée'!$C$333-1),0))","v":0},{"$f":"IF(D430<'1 Données d''entrée'!$C$334+1+$B548,0,IF(D430<'1 Données d''entrée'!$C$333+'1 Données d''entrée'!$C$334+1+$B548,$L536*('1 Données d''entrée'!$C$332*(1+'1 Données d''entrée'!$C$332)^'1 Données d''entrée'!$C$333)/((1+'1 Données d''entrée'!$C$332)^'1 Données d''entrée'!$C$333-1),0))","v":0},{"$f":"IF(E430<'1 Données d''entrée'!$C$334+1+$B548,0,IF(E430<'1 Données d''entrée'!$C$333+'1 Données d''entrée'!$C$334+1+$B548,$L536*('1 Données d''entrée'!$C$332*(1+'1 Données d''entrée'!$C$332)^'1 Données d''entrée'!$C$333)/((1+'1 Données d''entrée'!$C$332)^'1 Données d''entrée'!$C$333-1),0))","v":0},{"$f":"IF(F430<'1 Données d''entrée'!$C$334+1+$B548,0,IF(F430<'1 Données d''entrée'!$C$333+'1 Données d''entrée'!$C$334+1+$B548,$L536*('1 Données d''entrée'!$C$332*(1+'1 Données d''entrée'!$C$332)^'1 Données d''entrée'!$C$333)/((1+'1 Données d''entrée'!$C$332)^'1 Données d''entrée'!$C$333-1),0))","v":0},{"$f":"IF(G430<'1 Données d''entrée'!$C$334+1+$B548,0,IF(G430<'1 Données d''entrée'!$C$333+'1 Données d''entrée'!$C$334+1+$B548,$L536*('1 Données d''entrée'!$C$332*(1+'1 Données d''entrée'!$C$332)^'1 Données d''entrée'!$C$333)/((1+'1 Données d''entrée'!$C$332)^'1 Données d''entrée'!$C$333-1),0))","v":0},{"$f":"IF(H430<'1 Données d''entrée'!$C$334+1+$B548,0,IF(H430<'1 Données d''entrée'!$C$333+'1 Données d''entrée'!$C$334+1+$B548,$L536*('1 Données d''entrée'!$C$332*(1+'1 Données d''entrée'!$C$332)^'1 Données d''entrée'!$C$333)/((1+'1 Données d''entrée'!$C$332)^'1 Données d''entrée'!$C$333-1),0))","v":0},{"$f":"IF(I430<'1 Données d''entrée'!$C$334+1+$B548,0,IF(I430<'1 Données d''entrée'!$C$333+'1 Données d''entrée'!$C$334+1+$B548,$L536*('1 Données d''entrée'!$C$332*(1+'1 Données d''entrée'!$C$332)^'1 Données d''entrée'!$C$333)/((1+'1 Données d''entrée'!$C$332)^'1 Données d''entrée'!$C$333-1),0))","v":0},{"$f":"IF(J430<'1 Données d''entrée'!$C$334+1+$B548,0,IF(J430<'1 Données d''entrée'!$C$333+'1 Données d''entrée'!$C$334+1+$B548,$L536*('1 Données d''entrée'!$C$332*(1+'1 Données d''entrée'!$C$332)^'1 Données d''entrée'!$C$333)/((1+'1 Données d''entrée'!$C$332)^'1 Données d''entrée'!$C$333-1),0))","v":0},{"$f":"IF(K430<'1 Données d''entrée'!$C$334+1+$B548,0,IF(K430<'1 Données d''entrée'!$C$333+'1 Données d''entrée'!$C$334+1+$B548,$L536*('1 Données d''entrée'!$C$332*(1+'1 Données d''entrée'!$C$332)^'1 Données d''entrée'!$C$333)/((1+'1 Données d''entrée'!$C$332)^'1 Données d''entrée'!$C$333-1),0))","v":0},{"$f":"IF(L430<'1 Données d''entrée'!$C$334+1+$B548,0,IF(L430<'1 Données d''entrée'!$C$333+'1 Données d''entrée'!$C$334+1+$B548,$L536*('1 Données d''entrée'!$C$332*(1+'1 Données d''entrée'!$C$332)^'1 Données d''entrée'!$C$333)/((1+'1 Données d''entrée'!$C$332)^'1 Données d''entrée'!$C$333-1),0))","v":0},{"$f":"IF(M430<'1 Données d''entrée'!$C$334+1+$B548,0,IF(M430<'1 Données d''entrée'!$C$333+'1 Données d''entrée'!$C$334+1+$B548,$L536*('1 Données d''entrée'!$C$332*(1+'1 Données d''entrée'!$C$332)^'1 Données d''entrée'!$C$333)/((1+'1 Données d''entrée'!$C$332)^'1 Données d''entrée'!$C$333-1),0))","v":0},{"$f":"IF(N430<'1 Données d''entrée'!$C$334+1+$B548,0,IF(N430<'1 Données d''entrée'!$C$333+'1 Données d''entrée'!$C$334+1+$B548,$L536*('1 Données d''entrée'!$C$332*(1+'1 Données d''entrée'!$C$332)^'1 Données d''entrée'!$C$333)/((1+'1 Données d''entrée'!$C$332)^'1 Données d''entrée'!$C$333-1),0))","v":0},{"$f":"IF(O430<'1 Données d''entrée'!$C$334+1+$B548,0,IF(O430<'1 Données d''entrée'!$C$333+'1 Données d''entrée'!$C$334+1+$B548,$L536*('1 Données d''entrée'!$C$332*(1+'1 Données d''entrée'!$C$332)^'1 Données d''entrée'!$C$333)/((1+'1 Données d''entrée'!$C$332)^'1 Données d''entrée'!$C$333-1),0))","v":0},{"$f":"IF(P430<'1 Données d''entrée'!$C$334+1+$B548,0,IF(P430<'1 Données d''entrée'!$C$333+'1 Données d''entrée'!$C$334+1+$B548,$L536*('1 Données d''entrée'!$C$332*(1+'1 Données d''entrée'!$C$332)^'1 Données d''entrée'!$C$333)/((1+'1 Données d''entrée'!$C$332)^'1 Données d''entrée'!$C$333-1),0))","v":0},{"$f":"IF(Q430<'1 Données d''entrée'!$C$334+1+$B548,0,IF(Q430<'1 Données d''entrée'!$C$333+'1 Données d''entrée'!$C$334+1+$B548,$L536*('1 Données d''entrée'!$C$332*(1+'1 Données d''entrée'!$C$332)^'1 Données d''entrée'!$C$333)/((1+'1 Données d''entrée'!$C$332)^'1 Données d''entrée'!$C$333-1),0))","v":0},{"$f":"IF(R430<'1 Données d''entrée'!$C$334+1+$B548,0,IF(R430<'1 Données d''entrée'!$C$333+'1 Données d''entrée'!$C$334+1+$B548,$L536*('1 Données d''entrée'!$C$332*(1+'1 Données d''entrée'!$C$332)^'1 Données d''entrée'!$C$333)/((1+'1 Données d''entrée'!$C$332)^'1 Données d''entrée'!$C$333-1),0))","v":0},{"$f":"IF(S430<'1 Données d''entrée'!$C$334+1+$B548,0,IF(S430<'1 Données d''entrée'!$C$333+'1 Données d''entrée'!$C$334+1+$B548,$L536*('1 Données d''entrée'!$C$332*(1+'1 Données d''entrée'!$C$332)^'1 Données d''entrée'!$C$333)/((1+'1 Données d''entrée'!$C$332)^'1 Données d''entrée'!$C$333-1),0))","v":0},{"$f":"IF(T430<'1 Données d''entrée'!$C$334+1+$B548,0,IF(T430<'1 Données d''entrée'!$C$333+'1 Données d''entrée'!$C$334+1+$B548,$L536*('1 Données d''entrée'!$C$332*(1+'1 Données d''entrée'!$C$332)^'1 Données d''entrée'!$C$333)/((1+'1 Données d''entrée'!$C$332)^'1 Données d''entrée'!$C$333-1),0))","v":0},{"$f":"IF(U430<'1 Données d''entrée'!$C$334+1+$B548,0,IF(U430<'1 Données d''entrée'!$C$333+'1 Données d''entrée'!$C$334+1+$B548,$L536*('1 Données d''entrée'!$C$332*(1+'1 Données d''entrée'!$C$332)^'1 Données d''entrée'!$C$333)/((1+'1 Données d''entrée'!$C$332)^'1 Données d''entrée'!$C$333-1),0))","v":0},{"$f":"IF(V430<'1 Données d''entrée'!$C$334+1+$B548,0,IF(V430<'1 Données d''entrée'!$C$333+'1 Données d''entrée'!$C$334+1+$B548,$L536*('1 Données d''entrée'!$C$332*(1+'1 Données d''entrée'!$C$332)^'1 Données d''entrée'!$C$333)/((1+'1 Données d''entrée'!$C$332)^'1 Données d''entrée'!$C$333-1),0))","v":0}]
[null,"Période de prêt nouveau"]
["Paiement d'intérêt décroissant inclu dans l'annuité constante",0,0,0,0,0,0,0,0,0,0,0,0,0,0,0,0,0,0,0,0,0]
["Paiement d'intêrets",1,0,{"$f":"IF(D539>0,$C536*((('1 Données d''entrée'!$C$332+1)^'1 Données d''entrée'!$C$333)-(1+'1 Données d''entrée'!$C$332)^('6 Financement'!C$54-1-'1 Données d''entrée'!$C$334-$B550))/((1+'1 Données d''entrée'!$C$332)^'1 Données d''entrée'!$C$333-1)*'1 Données d''entrée'!$C$332,0)","v":0},{"$f":"IF(E539>0,$C536*((('1 Données d''entrée'!$C$332+1)^'1 Données d''entrée'!$C$333)-(1+'1 Données d''entrée'!$C$332)^('6 Financement'!D$54-1-'1 Données d''entrée'!$C$334-$B550))/((1+'1 Données d''entrée'!$C$332)^'1 Données d''entrée'!$C$333-1)*'1 Données d''entrée'!$C$332,0)","v":0},{"$f":"IF(F539>0,$C536*((('1 Données d''entrée'!$C$332+1)^'1 Données d''entrée'!$C$333)-(1+'1 Données d''entrée'!$C$332)^('6 Financement'!E$54-1-'1 Données d''entrée'!$C$334-$B550))/((1+'1 Données d''entrée'!$C$332)^'1 Données d''entrée'!$C$333-1)*'1 Données d''entrée'!$C$332,0)","v":0},{"$f":"IF(G539>0,$C536*((('1 Données d''entrée'!$C$332+1)^'1 Données d''entrée'!$C$333)-(1+'1 Données d''entrée'!$C$332)^('6 Financement'!F$54-1-'1 Données d''entrée'!$C$334-$B550))/((1+'1 Données d''entrée'!$C$332)^'1 Données d''entrée'!$C$333-1)*'1 Données d''entrée'!$C$332,0)","v":0},{"$f":"IF(H539>0,$C536*((('1 Données d''entrée'!$C$332+1)^'1 Données d''entrée'!$C$333)-(1+'1 Données d''entrée'!$C$332)^('6 Financement'!G$54-1-'1 Données d''entrée'!$C$334-$B550))/((1+'1 Données d''entrée'!$C$332)^'1 Données d''entrée'!$C$333-1)*'1 Données d''entrée'!$C$332,0)","v":0},{"$f":"IF(I539>0,$C536*((('1 Données d''entrée'!$C$332+1)^'1 Données d''entrée'!$C$333)-(1+'1 Données d''entrée'!$C$332)^('6 Financement'!H$54-1-'1 Données d''entrée'!$C$334-$B550))/((1+'1 Données d''entrée'!$C$332)^'1 Données d''entrée'!$C$333-1)*'1 Données d''entrée'!$C$332,0)","v":0},{"$f":"IF(J539>0,$C536*((('1 Données d''entrée'!$C$332+1)^'1 Données d''entrée'!$C$333)-(1+'1 Données d''entrée'!$C$332)^('6 Financement'!I$54-1-'1 Données d''entrée'!$C$334-$B550))/((1+'1 Données d''entrée'!$C$332)^'1 Données d''entrée'!$C$333-1)*'1 Données d''entrée'!$C$332,0)","v":0},{"$f":"IF(K539>0,$C536*((('1 Données d''entrée'!$C$332+1)^'1 Données d''entrée'!$C$333)-(1+'1 Données d''entrée'!$C$332)^('6 Financement'!J$54-1-'1 Données d''entrée'!$C$334-$B550))/((1+'1 Données d''entrée'!$C$332)^'1 Données d''entrée'!$C$333-1)*'1 Données d''entrée'!$C$332,0)","v":0},{"$f":"IF(L539>0,$C536*((('1 Données d''entrée'!$C$332+1)^'1 Données d''entrée'!$C$333)-(1+'1 Données d''entrée'!$C$332)^('6 Financement'!K$54-1-'1 Données d''entrée'!$C$334-$B550))/((1+'1 Données d''entrée'!$C$332)^'1 Données d''entrée'!$C$333-1)*'1 Données d''entrée'!$C$332,0)","v":0},{"$f":"IF(M539>0,$C536*((('1 Données d''entrée'!$C$332+1)^'1 Données d''entrée'!$C$333)-(1+'1 Données d''entrée'!$C$332)^('6 Financement'!L$54-1-'1 Données d''entrée'!$C$334-$B550))/((1+'1 Données d''entrée'!$C$332)^'1 Données d''entrée'!$C$333-1)*'1 Données d''entrée'!$C$332,0)","v":0},{"$f":"IF(N539>0,$C536*((('1 Données d''entrée'!$C$332+1)^'1 Données d''entrée'!$C$333)-(1+'1 Données d''entrée'!$C$332)^('6 Financement'!M$54-1-'1 Données d''entrée'!$C$334-$B550))/((1+'1 Données d''entrée'!$C$332)^'1 Données d''entrée'!$C$333-1)*'1 Données d''entrée'!$C$332,0)","v":0},{"$f":"IF(O539>0,$C536*((('1 Données d''entrée'!$C$332+1)^'1 Données d''entrée'!$C$333)-(1+'1 Données d''entrée'!$C$332)^('6 Financement'!N$54-1-'1 Données d''entrée'!$C$334-$B550))/((1+'1 Données d''entrée'!$C$332)^'1 Données d''entrée'!$C$333-1)*'1 Données d''entrée'!$C$332,0)","v":0},{"$f":"IF(P539>0,$C536*((('1 Données d''entrée'!$C$332+1)^'1 Données d''entrée'!$C$333)-(1+'1 Données d''entrée'!$C$332)^('6 Financement'!O$54-1-'1 Données d''entrée'!$C$334-$B550))/((1+'1 Données d''entrée'!$C$332)^'1 Données d''entrée'!$C$333-1)*'1 Données d''entrée'!$C$332,0)","v":0},{"$f":"IF(Q539>0,$C536*((('1 Données d''entrée'!$C$332+1)^'1 Données d''entrée'!$C$333)-(1+'1 Données d''entrée'!$C$332)^('6 Financement'!P$54-1-'1 Données d''entrée'!$C$334-$B550))/((1+'1 Données d''entrée'!$C$332)^'1 Données d''entrée'!$C$333-1)*'1 Données d''entrée'!$C$332,0)","v":0},{"$f":"IF(R539>0,$C536*((('1 Données d''entrée'!$C$332+1)^'1 Données d''entrée'!$C$333)-(1+'1 Données d''entrée'!$C$332)^('6 Financement'!Q$54-1-'1 Données d''entrée'!$C$334-$B550))/((1+'1 Données d''entrée'!$C$332)^'1 Données d''entrée'!$C$333-1)*'1 Données d''entrée'!$C$332,0)","v":0},{"$f":"IF(S539>0,$C536*((('1 Données d''entrée'!$C$332+1)^'1 Données d''entrée'!$C$333)-(1+'1 Données d''entrée'!$C$332)^('6 Financement'!R$54-1-'1 Données d''entrée'!$C$334-$B550))/((1+'1 Données d''entrée'!$C$332)^'1 Données d''entrée'!$C$333-1)*'1 Données d''entrée'!$C$332,0)","v":0},{"$f":"IF(T539>0,$C536*((('1 Données d''entrée'!$C$332+1)^'1 Données d''entrée'!$C$333)-(1+'1 Données d''entrée'!$C$332)^('6 Financement'!S$54-1-'1 Données d''entrée'!$C$334-$B550))/((1+'1 Données d''entrée'!$C$332)^'1 Données d''entrée'!$C$333-1)*'1 Données d''entrée'!$C$332,0)","v":0},{"$f":"IF(U539>0,$C536*((('1 Données d''entrée'!$C$332+1)^'1 Données d''entrée'!$C$333)-(1+'1 Données d''entrée'!$C$332)^('6 Financement'!T$54-1-'1 Données d''entrée'!$C$334-$B550))/((1+'1 Données d''entrée'!$C$332)^'1 Données d''entrée'!$C$333-1)*'1 Données d''entrée'!$C$332,0)","v":0},{"$f":"IF(V539>0,$C536*((('1 Données d''entrée'!$C$332+1)^'1 Données d''entrée'!$C$333)-(1+'1 Données d''entrée'!$C$332)^('6 Financement'!U$54-1-'1 Données d''entrée'!$C$334-$B550))/((1+'1 Données d''entrée'!$C$332)^'1 Données d''entrée'!$C$333-1)*'1 Données d''entrée'!$C$332,0)","v":0}]
["Paiement d'intêrets",2,0,{"$f":"IF(D540>0,$D536*((('1 Données d''entrée'!$C$332+1)^'1 Données d''entrée'!$C$333)-(1+'1 Données d''entrée'!$C$332)^('6 Financement'!C$54-1-'1 Données d''entrée'!$C$334-$B551))/((1+'1 Données d''entrée'!$C$332)^'1 Données d''entrée'!$C$333-1)*'1 Données d''entrée'!$C$332,0)","v":0},{"$f":"IF(E540>0,$D536*((('1 Données d''entrée'!$C$332+1)^'1 Données d''entrée'!$C$333)-(1+'1 Données d''entrée'!$C$332)^('6 Financement'!D$54-1-'1 Données d''entrée'!$C$334-$B551))/((1+'1 Données d''entrée'!$C$332)^'1 Données d''entrée'!$C$333-1)*'1 Données d''entrée'!$C$332,0)","v":0},{"$f":"IF(F540>0,$D536*((('1 Données d''entrée'!$C$332+1)^'1 Données d''entrée'!$C$333)-(1+'1 Données d''entrée'!$C$332)^('6 Financement'!E$54-1-'1 Données d''entrée'!$C$334-$B551))/((1+'1 Données d''entrée'!$C$332)^'1 Données d''entrée'!$C$333-1)*'1 Données d''entrée'!$C$332,0)","v":0},{"$f":"IF(G540>0,$D536*((('1 Données d''entrée'!$C$332+1)^'1 Données d''entrée'!$C$333)-(1+'1 Données d''entrée'!$C$332)^('6 Financement'!F$54-1-'1 Données d''entrée'!$C$334-$B551))/((1+'1 Données d''entrée'!$C$332)^'1 Données d''entrée'!$C$333-1)*'1 Données d''entrée'!$C$332,0)","v":0},{"$f":"IF(H540>0,$D536*((('1 Données d''entrée'!$C$332+1)^'1 Données d''entrée'!$C$333)-(1+'1 Données d''entrée'!$C$332)^('6 Financement'!G$54-1-'1 Données d''entrée'!$C$334-$B551))/((1+'1 Données d''entrée'!$C$332)^'1 Données d''entrée'!$C$333-1)*'1 Données d''entrée'!$C$332,0)","v":0},{"$f":"IF(I540>0,$D536*((('1 Données d''entrée'!$C$332+1)^'1 Données d''entrée'!$C$333)-(1+'1 Données d''entrée'!$C$332)^('6 Financement'!H$54-1-'1 Données d''entrée'!$C$334-$B551))/((1+'1 Données d''entrée'!$C$332)^'1 Données d''entrée'!$C$333-1)*'1 Données d''entrée'!$C$332,0)","v":0},{"$f":"IF(J540>0,$D536*((('1 Données d''entrée'!$C$332+1)^'1 Données d''entrée'!$C$333)-(1+'1 Données d''entrée'!$C$332)^('6 Financement'!I$54-1-'1 Données d''entrée'!$C$334-$B551))/((1+'1 Données d''entrée'!$C$332)^'1 Données d''entrée'!$C$333-1)*'1 Données d''entrée'!$C$332,0)","v":0},{"$f":"IF(K540>0,$D536*((('1 Données d''entrée'!$C$332+1)^'1 Données d''entrée'!$C$333)-(1+'1 Données d''entrée'!$C$332)^('6 Financement'!J$54-1-'1 Données d''entrée'!$C$334-$B551))/((1+'1 Données d''entrée'!$C$332)^'1 Données d''entrée'!$C$333-1)*'1 Données d''entrée'!$C$332,0)","v":0},{"$f":"IF(L540>0,$D536*((('1 Données d''entrée'!$C$332+1)^'1 Données d''entrée'!$C$333)-(1+'1 Données d''entrée'!$C$332)^('6 Financement'!K$54-1-'1 Données d''entrée'!$C$334-$B551))/((1+'1 Données d''entrée'!$C$332)^'1 Données d''entrée'!$C$333-1)*'1 Données d''entrée'!$C$332,0)","v":0},{"$f":"IF(M540>0,$D536*((('1 Données d''entrée'!$C$332+1)^'1 Données d''entrée'!$C$333)-(1+'1 Données d''entrée'!$C$332)^('6 Financement'!L$54-1-'1 Données d''entrée'!$C$334-$B551))/((1+'1 Données d''entrée'!$C$332)^'1 Données d''entrée'!$C$333-1)*'1 Données d''entrée'!$C$332,0)","v":0},{"$f":"IF(N540>0,$D536*((('1 Données d''entrée'!$C$332+1)^'1 Données d''entrée'!$C$333)-(1+'1 Données d''entrée'!$C$332)^('6 Financement'!M$54-1-'1 Données d''entrée'!$C$334-$B551))/((1+'1 Données d''entrée'!$C$332)^'1 Données d''entrée'!$C$333-1)*'1 Données d''entrée'!$C$332,0)","v":0},{"$f":"IF(O540>0,$D536*((('1 Données d''entrée'!$C$332+1)^'1 Données d''entrée'!$C$333)-(1+'1 Données d''entrée'!$C$332)^('6 Financement'!N$54-1-'1 Données d''entrée'!$C$334-$B551))/((1+'1 Données d''entrée'!$C$332)^'1 Données d''entrée'!$C$333-1)*'1 Données d''entrée'!$C$332,0)","v":0},{"$f":"IF(P540>0,$D536*((('1 Données d''entrée'!$C$332+1)^'1 Données d''entrée'!$C$333)-(1+'1 Données d''entrée'!$C$332)^('6 Financement'!O$54-1-'1 Données d''entrée'!$C$334-$B551))/((1+'1 Données d''entrée'!$C$332)^'1 Données d''entrée'!$C$333-1)*'1 Données d''entrée'!$C$332,0)","v":0},{"$f":"IF(Q540>0,$D536*((('1 Données d''entrée'!$C$332+1)^'1 Données d''entrée'!$C$333)-(1+'1 Données d''entrée'!$C$332)^('6 Financement'!P$54-1-'1 Données d''entrée'!$C$334-$B551))/((1+'1 Données d''entrée'!$C$332)^'1 Données d''entrée'!$C$333-1)*'1 Données d''entrée'!$C$332,0)","v":0},{"$f":"IF(R540>0,$D536*((('1 Données d''entrée'!$C$332+1)^'1 Données d''entrée'!$C$333)-(1+'1 Données d''entrée'!$C$332)^('6 Financement'!Q$54-1-'1 Données d''entrée'!$C$334-$B551))/((1+'1 Données d''entrée'!$C$332)^'1 Données d''entrée'!$C$333-1)*'1 Données d''entrée'!$C$332,0)","v":0},{"$f":"IF(S540>0,$D536*((('1 Données d''entrée'!$C$332+1)^'1 Données d''entrée'!$C$333)-(1+'1 Données d''entrée'!$C$332)^('6 Financement'!R$54-1-'1 Données d''entrée'!$C$334-$B551))/((1+'1 Données d''entrée'!$C$332)^'1 Données d''entrée'!$C$333-1)*'1 Données d''entrée'!$C$332,0)","v":0},{"$f":"IF(T540>0,$D536*((('1 Données d''entrée'!$C$332+1)^'1 Données d''entrée'!$C$333)-(1+'1 Données d''entrée'!$C$332)^('6 Financement'!S$54-1-'1 Données d''entrée'!$C$334-$B551))/((1+'1 Données d''entrée'!$C$332)^'1 Données d''entrée'!$C$333-1)*'1 Données d''entrée'!$C$332,0)","v":0},{"$f":"IF(U540>0,$D536*((('1 Données d''entrée'!$C$332+1)^'1 Données d''entrée'!$C$333)-(1+'1 Données d''entrée'!$C$332)^('6 Financement'!T$54-1-'1 Données d''entrée'!$C$334-$B551))/((1+'1 Données d''entrée'!$C$332)^'1 Données d''entrée'!$C$333-1)*'1 Données d''entrée'!$C$332,0)","v":0},{"$f":"IF(V540>0,$D536*((('1 Données d''entrée'!$C$332+1)^'1 Données d''entrée'!$C$333)-(1+'1 Données d''entrée'!$C$332)^('6 Financement'!U$54-1-'1 Données d''entrée'!$C$334-$B551))/((1+'1 Données d''entrée'!$C$332)^'1 Données d''entrée'!$C$333-1)*'1 Données d''entrée'!$C$332,0)","v":0}]
["Paiement d'intêrets",3,0,{"$f":"IF(D541>0,$E536*((('1 Données d''entrée'!$C$332+1)^'1 Données d''entrée'!$C$333)-(1+'1 Données d''entrée'!$C$332)^('6 Financement'!C$54-1-'1 Données d''entrée'!$C$334-$B552))/((1+'1 Données d''entrée'!$C$332)^'1 Données d''entrée'!$C$333-1)*'1 Données d''entrée'!$C$332,0)","v":0},{"$f":"IF(E541>0,$E536*((('1 Données d''entrée'!$C$332+1)^'1 Données d''entrée'!$C$333)-(1+'1 Données d''entrée'!$C$332)^('6 Financement'!D$54-1-'1 Données d''entrée'!$C$334-$B552))/((1+'1 Données d''entrée'!$C$332)^'1 Données d''entrée'!$C$333-1)*'1 Données d''entrée'!$C$332,0)","v":0},{"$f":"IF(F541>0,$E536*((('1 Données d''entrée'!$C$332+1)^'1 Données d''entrée'!$C$333)-(1+'1 Données d''entrée'!$C$332)^('6 Financement'!E$54-1-'1 Données d''entrée'!$C$334-$B552))/((1+'1 Données d''entrée'!$C$332)^'1 Données d''entrée'!$C$333-1)*'1 Données d''entrée'!$C$332,0)","v":0},{"$f":"IF(G541>0,$E536*((('1 Données d''entrée'!$C$332+1)^'1 Données d''entrée'!$C$333)-(1+'1 Données d''entrée'!$C$332)^('6 Financement'!F$54-1-'1 Données d''entrée'!$C$334-$B552))/((1+'1 Données d''entrée'!$C$332)^'1 Données d''entrée'!$C$333-1)*'1 Données d''entrée'!$C$332,0)","v":0},{"$f":"IF(H541>0,$E536*((('1 Données d''entrée'!$C$332+1)^'1 Données d''entrée'!$C$333)-(1+'1 Données d''entrée'!$C$332)^('6 Financement'!G$54-1-'1 Données d''entrée'!$C$334-$B552))/((1+'1 Données d''entrée'!$C$332)^'1 Données d''entrée'!$C$333-1)*'1 Données d''entrée'!$C$332,0)","v":0},{"$f":"IF(I541>0,$E536*((('1 Données d''entrée'!$C$332+1)^'1 Données d''entrée'!$C$333)-(1+'1 Données d''entrée'!$C$332)^('6 Financement'!H$54-1-'1 Données d''entrée'!$C$334-$B552))/((1+'1 Données d''entrée'!$C$332)^'1 Données d''entrée'!$C$333-1)*'1 Données d''entrée'!$C$332,0)","v":0},{"$f":"IF(J541>0,$E536*((('1 Données d''entrée'!$C$332+1)^'1 Données d''entrée'!$C$333)-(1+'1 Données d''entrée'!$C$332)^('6 Financement'!I$54-1-'1 Données d''entrée'!$C$334-$B552))/((1+'1 Données d''entrée'!$C$332)^'1 Données d''entrée'!$C$333-1)*'1 Données d''entrée'!$C$332,0)","v":0},{"$f":"IF(K541>0,$E536*((('1 Données d''entrée'!$C$332+1)^'1 Données d''entrée'!$C$333)-(1+'1 Données d''entrée'!$C$332)^('6 Financement'!J$54-1-'1 Données d''entrée'!$C$334-$B552))/((1+'1 Données d''entrée'!$C$332)^'1 Données d''entrée'!$C$333-1)*'1 Données d''entrée'!$C$332,0)","v":0},{"$f":"IF(L541>0,$E536*((('1 Données d''entrée'!$C$332+1)^'1 Données d''entrée'!$C$333)-(1+'1 Données d''entrée'!$C$332)^('6 Financement'!K$54-1-'1 Données d''entrée'!$C$334-$B552))/((1+'1 Données d''entrée'!$C$332)^'1 Données d''entrée'!$C$333-1)*'1 Données d''entrée'!$C$332,0)","v":0},{"$f":"IF(M541>0,$E536*((('1 Données d''entrée'!$C$332+1)^'1 Données d''entrée'!$C$333)-(1+'1 Données d''entrée'!$C$332)^('6 Financement'!L$54-1-'1 Données d''entrée'!$C$334-$B552))/((1+'1 Données d''entrée'!$C$332)^'1 Données d''entrée'!$C$333-1)*'1 Données d''entrée'!$C$332,0)","v":0},{"$f":"IF(N541>0,$E536*((('1 Données d''entrée'!$C$332+1)^'1 Données d''entrée'!$C$333)-(1+'1 Données d''entrée'!$C$332)^('6 Financement'!M$54-1-'1 Données d''entrée'!$C$334-$B552))/((1+'1 Données d''entrée'!$C$332)^'1 Données d''entrée'!$C$333-1)*'1 Données d''entrée'!$C$332,0)","v":0},{"$f":"IF(O541>0,$E536*((('1 Données d''entrée'!$C$332+1)^'1 Données d''entrée'!$C$333)-(1+'1 Données d''entrée'!$C$332)^('6 Financement'!N$54-1-'1 Données d''entrée'!$C$334-$B552))/((1+'1 Données d''entrée'!$C$332)^'1 Données d''entrée'!$C$333-1)*'1 Données d''entrée'!$C$332,0)","v":0},{"$f":"IF(P541>0,$E536*((('1 Données d''entrée'!$C$332+1)^'1 Données d''entrée'!$C$333)-(1+'1 Données d''entrée'!$C$332)^('6 Financement'!O$54-1-'1 Données d''entrée'!$C$334-$B552))/((1+'1 Données d''entrée'!$C$332)^'1 Données d''entrée'!$C$333-1)*'1 Données d''entrée'!$C$332,0)","v":0},{"$f":"IF(Q541>0,$E536*((('1 Données d''entrée'!$C$332+1)^'1 Données d''entrée'!$C$333)-(1+'1 Données d''entrée'!$C$332)^('6 Financement'!P$54-1-'1 Données d''entrée'!$C$334-$B552))/((1+'1 Données d''entrée'!$C$332)^'1 Données d''entrée'!$C$333-1)*'1 Données d''entrée'!$C$332,0)","v":0},{"$f":"IF(R541>0,$E536*((('1 Données d''entrée'!$C$332+1)^'1 Données d''entrée'!$C$333)-(1+'1 Données d''entrée'!$C$332)^('6 Financement'!Q$54-1-'1 Données d''entrée'!$C$334-$B552))/((1+'1 Données d''entrée'!$C$332)^'1 Données d''entrée'!$C$333-1)*'1 Données d''entrée'!$C$332,0)","v":0},{"$f":"IF(S541>0,$E536*((('1 Données d''entrée'!$C$332+1)^'1 Données d''entrée'!$C$333)-(1+'1 Données d''entrée'!$C$332)^('6 Financement'!R$54-1-'1 Données d''entrée'!$C$334-$B552))/((1+'1 Données d''entrée'!$C$332)^'1 Données d''entrée'!$C$333-1)*'1 Données d''entrée'!$C$332,0)","v":0},{"$f":"IF(T541>0,$E536*((('1 Données d''entrée'!$C$332+1)^'1 Données d''entrée'!$C$333)-(1+'1 Données d''entrée'!$C$332)^('6 Financement'!S$54-1-'1 Données d''entrée'!$C$334-$B552))/((1+'1 Données d''entrée'!$C$332)^'1 Données d''entrée'!$C$333-1)*'1 Données d''entrée'!$C$332,0)","v":0},{"$f":"IF(U541>0,$E536*((('1 Données d''entrée'!$C$332+1)^'1 Données d''entrée'!$C$333)-(1+'1 Données d''entrée'!$C$332)^('6 Financement'!T$54-1-'1 Données d''entrée'!$C$334-$B552))/((1+'1 Données d''entrée'!$C$332)^'1 Données d''entrée'!$C$333-1)*'1 Données d''entrée'!$C$332,0)","v":0},{"$f":"IF(V541>0,$E536*((('1 Données d''entrée'!$C$332+1)^'1 Données d''entrée'!$C$333)-(1+'1 Données d''entrée'!$C$332)^('6 Financement'!U$54-1-'1 Données d''entrée'!$C$334-$B552))/((1+'1 Données d''entrée'!$C$332)^'1 Données d''entrée'!$C$333-1)*'1 Données d''entrée'!$C$332,0)","v":0}]
["Paiement d'intêrets",4,0,{"$f":"IF(D542>0,$F536*((('1 Données d''entrée'!$C$332+1)^'1 Données d''entrée'!$C$333)-(1+'1 Données d''entrée'!$C$332)^('6 Financement'!C$54-1-'1 Données d''entrée'!$C$334-$B553))/((1+'1 Données d''entrée'!$C$332)^'1 Données d''entrée'!$C$333-1)*'1 Données d''entrée'!$C$332,0)","v":0},{"$f":"IF(E542>0,$F536*((('1 Données d''entrée'!$C$332+1)^'1 Données d''entrée'!$C$333)-(1+'1 Données d''entrée'!$C$332)^('6 Financement'!D$54-1-'1 Données d''entrée'!$C$334-$B553))/((1+'1 Données d''entrée'!$C$332)^'1 Données d''entrée'!$C$333-1)*'1 Données d''entrée'!$C$332,0)","v":0},{"$f":"IF(F542>0,$F536*((('1 Données d''entrée'!$C$332+1)^'1 Données d''entrée'!$C$333)-(1+'1 Données d''entrée'!$C$332)^('6 Financement'!E$54-1-'1 Données d''entrée'!$C$334-$B553))/((1+'1 Données d''entrée'!$C$332)^'1 Données d''entrée'!$C$333-1)*'1 Données d''entrée'!$C$332,0)","v":0},{"$f":"IF(G542>0,$F536*((('1 Données d''entrée'!$C$332+1)^'1 Données d''entrée'!$C$333)-(1+'1 Données d''entrée'!$C$332)^('6 Financement'!F$54-1-'1 Données d''entrée'!$C$334-$B553))/((1+'1 Données d''entrée'!$C$332)^'1 Données d''entrée'!$C$333-1)*'1 Données d''entrée'!$C$332,0)","v":0},{"$f":"IF(H542>0,$F536*((('1 Données d''entrée'!$C$332+1)^'1 Données d''entrée'!$C$333)-(1+'1 Données d''entrée'!$C$332)^('6 Financement'!G$54-1-'1 Données d''entrée'!$C$334-$B553))/((1+'1 Données d''entrée'!$C$332)^'1 Données d''entrée'!$C$333-1)*'1 Données d''entrée'!$C$332,0)","v":0},{"$f":"IF(I542>0,$F536*((('1 Données d''entrée'!$C$332+1)^'1 Données d''entrée'!$C$333)-(1+'1 Données d''entrée'!$C$332)^('6 Financement'!H$54-1-'1 Données d''entrée'!$C$334-$B553))/((1+'1 Données d''entrée'!$C$332)^'1 Données d''entrée'!$C$333-1)*'1 Données d''entrée'!$C$332,0)","v":0},{"$f":"IF(J542>0,$F536*((('1 Données d''entrée'!$C$332+1)^'1 Données d''entrée'!$C$333)-(1+'1 Données d''entrée'!$C$332)^('6 Financement'!I$54-1-'1 Données d''entrée'!$C$334-$B553))/((1+'1 Données d''entrée'!$C$332)^'1 Données d''entrée'!$C$333-1)*'1 Données d''entrée'!$C$332,0)","v":0},{"$f":"IF(K542>0,$F536*((('1 Données d''entrée'!$C$332+1)^'1 Données d''entrée'!$C$333)-(1+'1 Données d''entrée'!$C$332)^('6 Financement'!J$54-1-'1 Données d''entrée'!$C$334-$B553))/((1+'1 Données d''entrée'!$C$332)^'1 Données d''entrée'!$C$333-1)*'1 Données d''entrée'!$C$332,0)","v":0},{"$f":"IF(L542>0,$F536*((('1 Données d''entrée'!$C$332+1)^'1 Données d''entrée'!$C$333)-(1+'1 Données d''entrée'!$C$332)^('6 Financement'!K$54-1-'1 Données d''entrée'!$C$334-$B553))/((1+'1 Données d''entrée'!$C$332)^'1 Données d''entrée'!$C$333-1)*'1 Données d''entrée'!$C$332,0)","v":0},{"$f":"IF(M542>0,$F536*((('1 Données d''entrée'!$C$332+1)^'1 Données d''entrée'!$C$333)-(1+'1 Données d''entrée'!$C$332)^('6 Financement'!L$54-1-'1 Données d''entrée'!$C$334-$B553))/((1+'1 Données d''entrée'!$C$332)^'1 Données d''entrée'!$C$333-1)*'1 Données d''entrée'!$C$332,0)","v":0},{"$f":"IF(N542>0,$F536*((('1 Données d''entrée'!$C$332+1)^'1 Données d''entrée'!$C$333)-(1+'1 Données d''entrée'!$C$332)^('6 Financement'!M$54-1-'1 Données d''entrée'!$C$334-$B553))/((1+'1 Données d''entrée'!$C$332)^'1 Données d''entrée'!$C$333-1)*'1 Données d''entrée'!$C$332,0)","v":0},{"$f":"IF(O542>0,$F536*((('1 Données d''entrée'!$C$332+1)^'1 Données d''entrée'!$C$333)-(1+'1 Données d''entrée'!$C$332)^('6 Financement'!N$54-1-'1 Données d''entrée'!$C$334-$B553))/((1+'1 Données d''entrée'!$C$332)^'1 Données d''entrée'!$C$333-1)*'1 Données d''entrée'!$C$332,0)","v":0},{"$f":"IF(P542>0,$F536*((('1 Données d''entrée'!$C$332+1)^'1 Données d''entrée'!$C$333)-(1+'1 Données d''entrée'!$C$332)^('6 Financement'!O$54-1-'1 Données d''entrée'!$C$334-$B553))/((1+'1 Données d''entrée'!$C$332)^'1 Données d''entrée'!$C$333-1)*'1 Données d''entrée'!$C$332,0)","v":0},{"$f":"IF(Q542>0,$F536*((('1 Données d''entrée'!$C$332+1)^'1 Données d''entrée'!$C$333)-(1+'1 Données d''entrée'!$C$332)^('6 Financement'!P$54-1-'1 Données d''entrée'!$C$334-$B553))/((1+'1 Données d''entrée'!$C$332)^'1 Données d''entrée'!$C$333-1)*'1 Données d''entrée'!$C$332,0)","v":0},{"$f":"IF(R542>0,$F536*((('1 Données d''entrée'!$C$332+1)^'1 Données d''entrée'!$C$333)-(1+'1 Données d''entrée'!$C$332)^('6 Financement'!Q$54-1-'1 Données d''entrée'!$C$334-$B553))/((1+'1 Données d''entrée'!$C$332)^'1 Données d''entrée'!$C$333-1)*'1 Données d''entrée'!$C$332,0)","v":0},{"$f":"IF(S542>0,$F536*((('1 Données d''entrée'!$C$332+1)^'1 Données d''entrée'!$C$333)-(1+'1 Données d''entrée'!$C$332)^('6 Financement'!R$54-1-'1 Données d''entrée'!$C$334-$B553))/((1+'1 Données d''entrée'!$C$332)^'1 Données d''entrée'!$C$333-1)*'1 Données d''entrée'!$C$332,0)","v":0},{"$f":"IF(T542>0,$F536*((('1 Données d''entrée'!$C$332+1)^'1 Données d''entrée'!$C$333)-(1+'1 Données d''entrée'!$C$332)^('6 Financement'!S$54-1-'1 Données d''entrée'!$C$334-$B553))/((1+'1 Données d''entrée'!$C$332)^'1 Données d''entrée'!$C$333-1)*'1 Données d''entrée'!$C$332,0)","v":0},{"$f":"IF(U542>0,$F536*((('1 Données d''entrée'!$C$332+1)^'1 Données d''entrée'!$C$333)-(1+'1 Données d''entrée'!$C$332)^('6 Financement'!T$54-1-'1 Données d''entrée'!$C$334-$B553))/((1+'1 Données d''entrée'!$C$332)^'1 Données d''entrée'!$C$333-1)*'1 Données d''entrée'!$C$332,0)","v":0},{"$f":"IF(V542>0,$F536*((('1 Données d''entrée'!$C$332+1)^'1 Données d''entrée'!$C$333)-(1+'1 Données d''entrée'!$C$332)^('6 Financement'!U$54-1-'1 Données d''entrée'!$C$334-$B553))/((1+'1 Données d''entrée'!$C$332)^'1 Données d''entrée'!$C$333-1)*'1 Données d''entrée'!$C$332,0)","v":0}]
["Paiement d'intêrets",5,0,{"$f":"IF(D543>0,$G536*((('1 Données d''entrée'!$C$332+1)^'1 Données d''entrée'!$C$333)-(1+'1 Données d''entrée'!$C$332)^('6 Financement'!C$54-1-'1 Données d''entrée'!$C$334-$B554))/((1+'1 Données d''entrée'!$C$332)^'1 Données d''entrée'!$C$333-1)*'1 Données d''entrée'!$C$332,0)","v":0},{"$f":"IF(E543>0,$G536*((('1 Données d''entrée'!$C$332+1)^'1 Données d''entrée'!$C$333)-(1+'1 Données d''entrée'!$C$332)^('6 Financement'!D$54-1-'1 Données d''entrée'!$C$334-$B554))/((1+'1 Données d''entrée'!$C$332)^'1 Données d''entrée'!$C$333-1)*'1 Données d''entrée'!$C$332,0)","v":0},{"$f":"IF(F543>0,$G536*((('1 Données d''entrée'!$C$332+1)^'1 Données d''entrée'!$C$333)-(1+'1 Données d''entrée'!$C$332)^('6 Financement'!E$54-1-'1 Données d''entrée'!$C$334-$B554))/((1+'1 Données d''entrée'!$C$332)^'1 Données d''entrée'!$C$333-1)*'1 Données d''entrée'!$C$332,0)","v":0},{"$f":"IF(G543>0,$G536*((('1 Données d''entrée'!$C$332+1)^'1 Données d''entrée'!$C$333)-(1+'1 Données d''entrée'!$C$332)^('6 Financement'!F$54-1-'1 Données d''entrée'!$C$334-$B554))/((1+'1 Données d''entrée'!$C$332)^'1 Données d''entrée'!$C$333-1)*'1 Données d''entrée'!$C$332,0)","v":0},{"$f":"IF(H543>0,$G536*((('1 Données d''entrée'!$C$332+1)^'1 Données d''entrée'!$C$333)-(1+'1 Données d''entrée'!$C$332)^('6 Financement'!G$54-1-'1 Données d''entrée'!$C$334-$B554))/((1+'1 Données d''entrée'!$C$332)^'1 Données d''entrée'!$C$333-1)*'1 Données d''entrée'!$C$332,0)","v":0},{"$f":"IF(I543>0,$G536*((('1 Données d''entrée'!$C$332+1)^'1 Données d''entrée'!$C$333)-(1+'1 Données d''entrée'!$C$332)^('6 Financement'!H$54-1-'1 Données d''entrée'!$C$334-$B554))/((1+'1 Données d''entrée'!$C$332)^'1 Données d''entrée'!$C$333-1)*'1 Données d''entrée'!$C$332,0)","v":0},{"$f":"IF(J543>0,$G536*((('1 Données d''entrée'!$C$332+1)^'1 Données d''entrée'!$C$333)-(1+'1 Données d''entrée'!$C$332)^('6 Financement'!I$54-1-'1 Données d''entrée'!$C$334-$B554))/((1+'1 Données d''entrée'!$C$332)^'1 Données d''entrée'!$C$333-1)*'1 Données d''entrée'!$C$332,0)","v":0},{"$f":"IF(K543>0,$G536*((('1 Données d''entrée'!$C$332+1)^'1 Données d''entrée'!$C$333)-(1+'1 Données d''entrée'!$C$332)^('6 Financement'!J$54-1-'1 Données d''entrée'!$C$334-$B554))/((1+'1 Données d''entrée'!$C$332)^'1 Données d''entrée'!$C$333-1)*'1 Données d''entrée'!$C$332,0)","v":0},{"$f":"IF(L543>0,$G536*((('1 Données d''entrée'!$C$332+1)^'1 Données d''entrée'!$C$333)-(1+'1 Données d''entrée'!$C$332)^('6 Financement'!K$54-1-'1 Données d''entrée'!$C$334-$B554))/((1+'1 Données d''entrée'!$C$332)^'1 Données d''entrée'!$C$333-1)*'1 Données d''entrée'!$C$332,0)","v":0},{"$f":"IF(M543>0,$G536*((('1 Données d''entrée'!$C$332+1)^'1 Données d''entrée'!$C$333)-(1+'1 Données d''entrée'!$C$332)^('6 Financement'!L$54-1-'1 Données d''entrée'!$C$334-$B554))/((1+'1 Données d''entrée'!$C$332)^'1 Données d''entrée'!$C$333-1)*'1 Données d''entrée'!$C$332,0)","v":0},{"$f":"IF(N543>0,$G536*((('1 Données d''entrée'!$C$332+1)^'1 Données d''entrée'!$C$333)-(1+'1 Données d''entrée'!$C$332)^('6 Financement'!M$54-1-'1 Données d''entrée'!$C$334-$B554))/((1+'1 Données d''entrée'!$C$332)^'1 Données d''entrée'!$C$333-1)*'1 Données d''entrée'!$C$332,0)","v":0},{"$f":"IF(O543>0,$G536*((('1 Données d''entrée'!$C$332+1)^'1 Données d''entrée'!$C$333)-(1+'1 Données d''entrée'!$C$332)^('6 Financement'!N$54-1-'1 Données d''entrée'!$C$334-$B554))/((1+'1 Données d''entrée'!$C$332)^'1 Données d''entrée'!$C$333-1)*'1 Données d''entrée'!$C$332,0)","v":0},{"$f":"IF(P543>0,$G536*((('1 Données d''entrée'!$C$332+1)^'1 Données d''entrée'!$C$333)-(1+'1 Données d''entrée'!$C$332)^('6 Financement'!O$54-1-'1 Données d''entrée'!$C$334-$B554))/((1+'1 Données d''entrée'!$C$332)^'1 Données d''entrée'!$C$333-1)*'1 Données d''entrée'!$C$332,0)","v":0},{"$f":"IF(Q543>0,$G536*((('1 Données d''entrée'!$C$332+1)^'1 Données d''entrée'!$C$333)-(1+'1 Données d''entrée'!$C$332)^('6 Financement'!P$54-1-'1 Données d''entrée'!$C$334-$B554))/((1+'1 Données d''entrée'!$C$332)^'1 Données d''entrée'!$C$333-1)*'1 Données d''entrée'!$C$332,0)","v":0},{"$f":"IF(R543>0,$G536*((('1 Données d''entrée'!$C$332+1)^'1 Données d''entrée'!$C$333)-(1+'1 Données d''entrée'!$C$332)^('6 Financement'!Q$54-1-'1 Données d''entrée'!$C$334-$B554))/((1+'1 Données d''entrée'!$C$332)^'1 Données d''entrée'!$C$333-1)*'1 Données d''entrée'!$C$332,0)","v":0},{"$f":"IF(S543>0,$G536*((('1 Données d''entrée'!$C$332+1)^'1 Données d''entrée'!$C$333)-(1+'1 Données d''entrée'!$C$332)^('6 Financement'!R$54-1-'1 Données d''entrée'!$C$334-$B554))/((1+'1 Données d''entrée'!$C$332)^'1 Données d''entrée'!$C$333-1)*'1 Données d''entrée'!$C$332,0)","v":0},{"$f":"IF(T543>0,$G536*((('1 Données d''entrée'!$C$332+1)^'1 Données d''entrée'!$C$333)-(1+'1 Données d''entrée'!$C$332)^('6 Financement'!S$54-1-'1 Données d''entrée'!$C$334-$B554))/((1+'1 Données d''entrée'!$C$332)^'1 Données d''entrée'!$C$333-1)*'1 Données d''entrée'!$C$332,0)","v":0},{"$f":"IF(U543>0,$G536*((('1 Données d''entrée'!$C$332+1)^'1 Données d''entrée'!$C$333)-(1+'1 Données d''entrée'!$C$332)^('6 Financement'!T$54-1-'1 Données d''entrée'!$C$334-$B554))/((1+'1 Données d''entrée'!$C$332)^'1 Données d''entrée'!$C$333-1)*'1 Données d''entrée'!$C$332,0)","v":0},{"$f":"IF(V543>0,$G536*((('1 Données d''entrée'!$C$332+1)^'1 Données d''entrée'!$C$333)-(1+'1 Données d''entrée'!$C$332)^('6 Financement'!U$54-1-'1 Données d''entrée'!$C$334-$B554))/((1+'1 Données d''entrée'!$C$332)^'1 Données d''entrée'!$C$333-1)*'1 Données d''entrée'!$C$332,0)","v":0}]
["Paiement d'intêrets",6,0,{"$f":"IF(D544>0,$H536*((('1 Données d''entrée'!$C$332+1)^'1 Données d''entrée'!$C$333)-(1+'1 Données d''entrée'!$C$332)^('6 Financement'!C$54-1-'1 Données d''entrée'!$C$334-$B555))/((1+'1 Données d''entrée'!$C$332)^'1 Données d''entrée'!$C$333-1)*'1 Données d''entrée'!$C$332,0)","v":0},{"$f":"IF(E544>0,$H536*((('1 Données d''entrée'!$C$332+1)^'1 Données d''entrée'!$C$333)-(1+'1 Données d''entrée'!$C$332)^('6 Financement'!D$54-1-'1 Données d''entrée'!$C$334-$B555))/((1+'1 Données d''entrée'!$C$332)^'1 Données d''entrée'!$C$333-1)*'1 Données d''entrée'!$C$332,0)","v":0},{"$f":"IF(F544>0,$H536*((('1 Données d''entrée'!$C$332+1)^'1 Données d''entrée'!$C$333)-(1+'1 Données d''entrée'!$C$332)^('6 Financement'!E$54-1-'1 Données d''entrée'!$C$334-$B555))/((1+'1 Données d''entrée'!$C$332)^'1 Données d''entrée'!$C$333-1)*'1 Données d''entrée'!$C$332,0)","v":0},{"$f":"IF(G544>0,$H536*((('1 Données d''entrée'!$C$332+1)^'1 Données d''entrée'!$C$333)-(1+'1 Données d''entrée'!$C$332)^('6 Financement'!F$54-1-'1 Données d''entrée'!$C$334-$B555))/((1+'1 Données d''entrée'!$C$332)^'1 Données d''entrée'!$C$333-1)*'1 Données d''entrée'!$C$332,0)","v":0},{"$f":"IF(H544>0,$H536*((('1 Données d''entrée'!$C$332+1)^'1 Données d''entrée'!$C$333)-(1+'1 Données d''entrée'!$C$332)^('6 Financement'!G$54-1-'1 Données d''entrée'!$C$334-$B555))/((1+'1 Données d''entrée'!$C$332)^'1 Données d''entrée'!$C$333-1)*'1 Données d''entrée'!$C$332,0)","v":0},{"$f":"IF(I544>0,$H536*((('1 Données d''entrée'!$C$332+1)^'1 Données d''entrée'!$C$333)-(1+'1 Données d''entrée'!$C$332)^('6 Financement'!H$54-1-'1 Données d''entrée'!$C$334-$B555))/((1+'1 Données d''entrée'!$C$332)^'1 Données d''entrée'!$C$333-1)*'1 Données d''entrée'!$C$332,0)","v":0},{"$f":"IF(J544>0,$H536*((('1 Données d''entrée'!$C$332+1)^'1 Données d''entrée'!$C$333)-(1+'1 Données d''entrée'!$C$332)^('6 Financement'!I$54-1-'1 Données d''entrée'!$C$334-$B555))/((1+'1 Données d''entrée'!$C$332)^'1 Données d''entrée'!$C$333-1)*'1 Données d''entrée'!$C$332,0)","v":0},{"$f":"IF(K544>0,$H536*((('1 Données d''entrée'!$C$332+1)^'1 Données d''entrée'!$C$333)-(1+'1 Données d''entrée'!$C$332)^('6 Financement'!J$54-1-'1 Données d''entrée'!$C$334-$B555))/((1+'1 Données d''entrée'!$C$332)^'1 Données d''entrée'!$C$333-1)*'1 Données d''entrée'!$C$332,0)","v":0},{"$f":"IF(L544>0,$H536*((('1 Données d''entrée'!$C$332+1)^'1 Données d''entrée'!$C$333)-(1+'1 Données d''entrée'!$C$332)^('6 Financement'!K$54-1-'1 Données d''entrée'!$C$334-$B555))/((1+'1 Données d''entrée'!$C$332)^'1 Données d''entrée'!$C$333-1)*'1 Données d''entrée'!$C$332,0)","v":0},{"$f":"IF(M544>0,$H536*((('1 Données d''entrée'!$C$332+1)^'1 Données d''entrée'!$C$333)-(1+'1 Données d''entrée'!$C$332)^('6 Financement'!L$54-1-'1 Données d''entrée'!$C$334-$B555))/((1+'1 Données d''entrée'!$C$332)^'1 Données d''entrée'!$C$333-1)*'1 Données d''entrée'!$C$332,0)","v":0},{"$f":"IF(N544>0,$H536*((('1 Données d''entrée'!$C$332+1)^'1 Données d''entrée'!$C$333)-(1+'1 Données d''entrée'!$C$332)^('6 Financement'!M$54-1-'1 Données d''entrée'!$C$334-$B555))/((1+'1 Données d''entrée'!$C$332)^'1 Données d''entrée'!$C$333-1)*'1 Données d''entrée'!$C$332,0)","v":0},{"$f":"IF(O544>0,$H536*((('1 Données d''entrée'!$C$332+1)^'1 Données d''entrée'!$C$333)-(1+'1 Données d''entrée'!$C$332)^('6 Financement'!N$54-1-'1 Données d''entrée'!$C$334-$B555))/((1+'1 Données d''entrée'!$C$332)^'1 Données d''entrée'!$C$333-1)*'1 Données d''entrée'!$C$332,0)","v":0},{"$f":"IF(P544>0,$H536*((('1 Données d''entrée'!$C$332+1)^'1 Données d''entrée'!$C$333)-(1+'1 Données d''entrée'!$C$332)^('6 Financement'!O$54-1-'1 Données d''entrée'!$C$334-$B555))/((1+'1 Données d''entrée'!$C$332)^'1 Données d''entrée'!$C$333-1)*'1 Données d''entrée'!$C$332,0)","v":0},{"$f":"IF(Q544>0,$H536*((('1 Données d''entrée'!$C$332+1)^'1 Données d''entrée'!$C$333)-(1+'1 Données d''entrée'!$C$332)^('6 Financement'!P$54-1-'1 Données d''entrée'!$C$334-$B555))/((1+'1 Données d''entrée'!$C$332)^'1 Données d''entrée'!$C$333-1)*'1 Données d''entrée'!$C$332,0)","v":0},{"$f":"IF(R544>0,$H536*((('1 Données d''entrée'!$C$332+1)^'1 Données d''entrée'!$C$333)-(1+'1 Données d''entrée'!$C$332)^('6 Financement'!Q$54-1-'1 Données d''entrée'!$C$334-$B555))/((1+'1 Données d''entrée'!$C$332)^'1 Données d''entrée'!$C$333-1)*'1 Données d''entrée'!$C$332,0)","v":0},{"$f":"IF(S544>0,$H536*((('1 Données d''entrée'!$C$332+1)^'1 Données d''entrée'!$C$333)-(1+'1 Données d''entrée'!$C$332)^('6 Financement'!R$54-1-'1 Données d''entrée'!$C$334-$B555))/((1+'1 Données d''entrée'!$C$332)^'1 Données d''entrée'!$C$333-1)*'1 Données d''entrée'!$C$332,0)","v":0},{"$f":"IF(T544>0,$H536*((('1 Données d''entrée'!$C$332+1)^'1 Données d''entrée'!$C$333)-(1+'1 Données d''entrée'!$C$332)^('6 Financement'!S$54-1-'1 Données d''entrée'!$C$334-$B555))/((1+'1 Données d''entrée'!$C$332)^'1 Données d''entrée'!$C$333-1)*'1 Données d''entrée'!$C$332,0)","v":0},{"$f":"IF(U544>0,$H536*((('1 Données d''entrée'!$C$332+1)^'1 Données d''entrée'!$C$333)-(1+'1 Données d''entrée'!$C$332)^('6 Financement'!T$54-1-'1 Données d''entrée'!$C$334-$B555))/((1+'1 Données d''entrée'!$C$332)^'1 Données d''entrée'!$C$333-1)*'1 Données d''entrée'!$C$332,0)","v":0},{"$f":"IF(V544>0,$H536*((('1 Données d''entrée'!$C$332+1)^'1 Données d''entrée'!$C$333)-(1+'1 Données d''entrée'!$C$332)^('6 Financement'!U$54-1-'1 Données d''entrée'!$C$334-$B555))/((1+'1 Données d''entrée'!$C$332)^'1 Données d''entrée'!$C$333-1)*'1 Données d''entrée'!$C$332,0)","v":0}]
["Paiement d'intêrets",7,0,{"$f":"IF(D545>0,$I536*((('1 Données d''entrée'!$C$332+1)^'1 Données d''entrée'!$C$333)-(1+'1 Données d''entrée'!$C$332)^('6 Financement'!C$54-1-'1 Données d''entrée'!$C$334-$B556))/((1+'1 Données d''entrée'!$C$332)^'1 Données d''entrée'!$C$333-1)*'1 Données d''entrée'!$C$332,0)","v":0},{"$f":"IF(E545>0,$I536*((('1 Données d''entrée'!$C$332+1)^'1 Données d''entrée'!$C$333)-(1+'1 Données d''entrée'!$C$332)^('6 Financement'!D$54-1-'1 Données d''entrée'!$C$334-$B556))/((1+'1 Données d''entrée'!$C$332)^'1 Données d''entrée'!$C$333-1)*'1 Données d''entrée'!$C$332,0)","v":0},{"$f":"IF(F545>0,$I536*((('1 Données d''entrée'!$C$332+1)^'1 Données d''entrée'!$C$333)-(1+'1 Données d''entrée'!$C$332)^('6 Financement'!E$54-1-'1 Données d''entrée'!$C$334-$B556))/((1+'1 Données d''entrée'!$C$332)^'1 Données d''entrée'!$C$333-1)*'1 Données d''entrée'!$C$332,0)","v":0},{"$f":"IF(G545>0,$I536*((('1 Données d''entrée'!$C$332+1)^'1 Données d''entrée'!$C$333)-(1+'1 Données d''entrée'!$C$332)^('6 Financement'!F$54-1-'1 Données d''entrée'!$C$334-$B556))/((1+'1 Données d''entrée'!$C$332)^'1 Données d''entrée'!$C$333-1)*'1 Données d''entrée'!$C$332,0)","v":0},{"$f":"IF(H545>0,$I536*((('1 Données d''entrée'!$C$332+1)^'1 Données d''entrée'!$C$333)-(1+'1 Données d''entrée'!$C$332)^('6 Financement'!G$54-1-'1 Données d''entrée'!$C$334-$B556))/((1+'1 Données d''entrée'!$C$332)^'1 Données d''entrée'!$C$333-1)*'1 Données d''entrée'!$C$332,0)","v":0},{"$f":"IF(I545>0,$I536*((('1 Données d''entrée'!$C$332+1)^'1 Données d''entrée'!$C$333)-(1+'1 Données d''entrée'!$C$332)^('6 Financement'!H$54-1-'1 Données d''entrée'!$C$334-$B556))/((1+'1 Données d''entrée'!$C$332)^'1 Données d''entrée'!$C$333-1)*'1 Données d''entrée'!$C$332,0)","v":0},{"$f":"IF(J545>0,$I536*((('1 Données d''entrée'!$C$332+1)^'1 Données d''entrée'!$C$333)-(1+'1 Données d''entrée'!$C$332)^('6 Financement'!I$54-1-'1 Données d''entrée'!$C$334-$B556))/((1+'1 Données d''entrée'!$C$332)^'1 Données d''entrée'!$C$333-1)*'1 Données d''entrée'!$C$332,0)","v":0},{"$f":"IF(K545>0,$I536*((('1 Données d''entrée'!$C$332+1)^'1 Données d''entrée'!$C$333)-(1+'1 Données d''entrée'!$C$332)^('6 Financement'!J$54-1-'1 Données d''entrée'!$C$334-$B556))/((1+'1 Données d''entrée'!$C$332)^'1 Données d''entrée'!$C$333-1)*'1 Données d''entrée'!$C$332,0)","v":0},{"$f":"IF(L545>0,$I536*((('1 Données d''entrée'!$C$332+1)^'1 Données d''entrée'!$C$333)-(1+'1 Données d''entrée'!$C$332)^('6 Financement'!K$54-1-'1 Données d''entrée'!$C$334-$B556))/((1+'1 Données d''entrée'!$C$332)^'1 Données d''entrée'!$C$333-1)*'1 Données d''entrée'!$C$332,0)","v":0},{"$f":"IF(M545>0,$I536*((('1 Données d''entrée'!$C$332+1)^'1 Données d''entrée'!$C$333)-(1+'1 Données d''entrée'!$C$332)^('6 Financement'!L$54-1-'1 Données d''entrée'!$C$334-$B556))/((1+'1 Données d''entrée'!$C$332)^'1 Données d''entrée'!$C$333-1)*'1 Données d''entrée'!$C$332,0)","v":0},{"$f":"IF(N545>0,$I536*((('1 Données d''entrée'!$C$332+1)^'1 Données d''entrée'!$C$333)-(1+'1 Données d''entrée'!$C$332)^('6 Financement'!M$54-1-'1 Données d''entrée'!$C$334-$B556))/((1+'1 Données d''entrée'!$C$332)^'1 Données d''entrée'!$C$333-1)*'1 Données d''entrée'!$C$332,0)","v":0},{"$f":"IF(O545>0,$I536*((('1 Données d''entrée'!$C$332+1)^'1 Données d''entrée'!$C$333)-(1+'1 Données d''entrée'!$C$332)^('6 Financement'!N$54-1-'1 Données d''entrée'!$C$334-$B556))/((1+'1 Données d''entrée'!$C$332)^'1 Données d''entrée'!$C$333-1)*'1 Données d''entrée'!$C$332,0)","v":0},{"$f":"IF(P545>0,$I536*((('1 Données d''entrée'!$C$332+1)^'1 Données d''entrée'!$C$333)-(1+'1 Données d''entrée'!$C$332)^('6 Financement'!O$54-1-'1 Données d''entrée'!$C$334-$B556))/((1+'1 Données d''entrée'!$C$332)^'1 Données d''entrée'!$C$333-1)*'1 Données d''entrée'!$C$332,0)","v":0},{"$f":"IF(Q545>0,$I536*((('1 Données d''entrée'!$C$332+1)^'1 Données d''entrée'!$C$333)-(1+'1 Données d''entrée'!$C$332)^('6 Financement'!P$54-1-'1 Données d''entrée'!$C$334-$B556))/((1+'1 Données d''entrée'!$C$332)^'1 Données d''entrée'!$C$333-1)*'1 Données d''entrée'!$C$332,0)","v":0},{"$f":"IF(R545>0,$I536*((('1 Données d''entrée'!$C$332+1)^'1 Données d''entrée'!$C$333)-(1+'1 Données d''entrée'!$C$332)^('6 Financement'!Q$54-1-'1 Données d''entrée'!$C$334-$B556))/((1+'1 Données d''entrée'!$C$332)^'1 Données d''entrée'!$C$333-1)*'1 Données d''entrée'!$C$332,0)","v":0},{"$f":"IF(S545>0,$I536*((('1 Données d''entrée'!$C$332+1)^'1 Données d''entrée'!$C$333)-(1+'1 Données d''entrée'!$C$332)^('6 Financement'!R$54-1-'1 Données d''entrée'!$C$334-$B556))/((1+'1 Données d''entrée'!$C$332)^'1 Données d''entrée'!$C$333-1)*'1 Données d''entrée'!$C$332,0)","v":0},{"$f":"IF(T545>0,$I536*((('1 Données d''entrée'!$C$332+1)^'1 Données d''entrée'!$C$333)-(1+'1 Données d''entrée'!$C$332)^('6 Financement'!S$54-1-'1 Données d''entrée'!$C$334-$B556))/((1+'1 Données d''entrée'!$C$332)^'1 Données d''entrée'!$C$333-1)*'1 Données d''entrée'!$C$332,0)","v":0},{"$f":"IF(U545>0,$I536*((('1 Données d''entrée'!$C$332+1)^'1 Données d''entrée'!$C$333)-(1+'1 Données d''entrée'!$C$332)^('6 Financement'!T$54-1-'1 Données d''entrée'!$C$334-$B556))/((1+'1 Données d''entrée'!$C$332)^'1 Données d''entrée'!$C$333-1)*'1 Données d''entrée'!$C$332,0)","v":0},{"$f":"IF(V545>0,$I536*((('1 Données d''entrée'!$C$332+1)^'1 Données d''entrée'!$C$333)-(1+'1 Données d''entrée'!$C$332)^('6 Financement'!U$54-1-'1 Données d''entrée'!$C$334-$B556))/((1+'1 Données d''entrée'!$C$332)^'1 Données d''entrée'!$C$333-1)*'1 Données d''entrée'!$C$332,0)","v":0}]
["Paiement d'intêrets",8,0,{"$f":"IF(D546>0,$J536*((('1 Données d''entrée'!$C$332+1)^'1 Données d''entrée'!$C$333)-(1+'1 Données d''entrée'!$C$332)^('6 Financement'!C$54-1-'1 Données d''entrée'!$C$334-$B557))/((1+'1 Données d''entrée'!$C$332)^'1 Données d''entrée'!$C$333-1)*'1 Données d''entrée'!$C$332,0)","v":0},{"$f":"IF(E546>0,$J536*((('1 Données d''entrée'!$C$332+1)^'1 Données d''entrée'!$C$333)-(1+'1 Données d''entrée'!$C$332)^('6 Financement'!D$54-1-'1 Données d''entrée'!$C$334-$B557))/((1+'1 Données d''entrée'!$C$332)^'1 Données d''entrée'!$C$333-1)*'1 Données d''entrée'!$C$332,0)","v":0},{"$f":"IF(F546>0,$J536*((('1 Données d''entrée'!$C$332+1)^'1 Données d''entrée'!$C$333)-(1+'1 Données d''entrée'!$C$332)^('6 Financement'!E$54-1-'1 Données d''entrée'!$C$334-$B557))/((1+'1 Données d''entrée'!$C$332)^'1 Données d''entrée'!$C$333-1)*'1 Données d''entrée'!$C$332,0)","v":0},{"$f":"IF(G546>0,$J536*((('1 Données d''entrée'!$C$332+1)^'1 Données d''entrée'!$C$333)-(1+'1 Données d''entrée'!$C$332)^('6 Financement'!F$54-1-'1 Données d''entrée'!$C$334-$B557))/((1+'1 Données d''entrée'!$C$332)^'1 Données d''entrée'!$C$333-1)*'1 Données d''entrée'!$C$332,0)","v":0},{"$f":"IF(H546>0,$J536*((('1 Données d''entrée'!$C$332+1)^'1 Données d''entrée'!$C$333)-(1+'1 Données d''entrée'!$C$332)^('6 Financement'!G$54-1-'1 Données d''entrée'!$C$334-$B557))/((1+'1 Données d''entrée'!$C$332)^'1 Données d''entrée'!$C$333-1)*'1 Données d''entrée'!$C$332,0)","v":0},{"$f":"IF(I546>0,$J536*((('1 Données d''entrée'!$C$332+1)^'1 Données d''entrée'!$C$333)-(1+'1 Données d''entrée'!$C$332)^('6 Financement'!H$54-1-'1 Données d''entrée'!$C$334-$B557))/((1+'1 Données d''entrée'!$C$332)^'1 Données d''entrée'!$C$333-1)*'1 Données d''entrée'!$C$332,0)","v":0},{"$f":"IF(J546>0,$J536*((('1 Données d''entrée'!$C$332+1)^'1 Données d''entrée'!$C$333)-(1+'1 Données d''entrée'!$C$332)^('6 Financement'!I$54-1-'1 Données d''entrée'!$C$334-$B557))/((1+'1 Données d''entrée'!$C$332)^'1 Données d''entrée'!$C$333-1)*'1 Données d''entrée'!$C$332,0)","v":0},{"$f":"IF(K546>0,$J536*((('1 Données d''entrée'!$C$332+1)^'1 Données d''entrée'!$C$333)-(1+'1 Données d''entrée'!$C$332)^('6 Financement'!J$54-1-'1 Données d''entrée'!$C$334-$B557))/((1+'1 Données d''entrée'!$C$332)^'1 Données d''entrée'!$C$333-1)*'1 Données d''entrée'!$C$332,0)","v":0},{"$f":"IF(L546>0,$J536*((('1 Données d''entrée'!$C$332+1)^'1 Données d''entrée'!$C$333)-(1+'1 Données d''entrée'!$C$332)^('6 Financement'!K$54-1-'1 Données d''entrée'!$C$334-$B557))/((1+'1 Données d''entrée'!$C$332)^'1 Données d''entrée'!$C$333-1)*'1 Données d''entrée'!$C$332,0)","v":0},{"$f":"IF(M546>0,$J536*((('1 Données d''entrée'!$C$332+1)^'1 Données d''entrée'!$C$333)-(1+'1 Données d''entrée'!$C$332)^('6 Financement'!L$54-1-'1 Données d''entrée'!$C$334-$B557))/((1+'1 Données d''entrée'!$C$332)^'1 Données d''entrée'!$C$333-1)*'1 Données d''entrée'!$C$332,0)","v":0},{"$f":"IF(N546>0,$J536*((('1 Données d''entrée'!$C$332+1)^'1 Données d''entrée'!$C$333)-(1+'1 Données d''entrée'!$C$332)^('6 Financement'!M$54-1-'1 Données d''entrée'!$C$334-$B557))/((1+'1 Données d''entrée'!$C$332)^'1 Données d''entrée'!$C$333-1)*'1 Données d''entrée'!$C$332,0)","v":0},{"$f":"IF(O546>0,$J536*((('1 Données d''entrée'!$C$332+1)^'1 Données d''entrée'!$C$333)-(1+'1 Données d''entrée'!$C$332)^('6 Financement'!N$54-1-'1 Données d''entrée'!$C$334-$B557))/((1+'1 Données d''entrée'!$C$332)^'1 Données d''entrée'!$C$333-1)*'1 Données d''entrée'!$C$332,0)","v":0},{"$f":"IF(P546>0,$J536*((('1 Données d''entrée'!$C$332+1)^'1 Données d''entrée'!$C$333)-(1+'1 Données d''entrée'!$C$332)^('6 Financement'!O$54-1-'1 Données d''entrée'!$C$334-$B557))/((1+'1 Données d''entrée'!$C$332)^'1 Données d''entrée'!$C$333-1)*'1 Données d''entrée'!$C$332,0)","v":0},{"$f":"IF(Q546>0,$J536*((('1 Données d''entrée'!$C$332+1)^'1 Données d''entrée'!$C$333)-(1+'1 Données d''entrée'!$C$332)^('6 Financement'!P$54-1-'1 Données d''entrée'!$C$334-$B557))/((1+'1 Données d''entrée'!$C$332)^'1 Données d''entrée'!$C$333-1)*'1 Données d''entrée'!$C$332,0)","v":0},{"$f":"IF(R546>0,$J536*((('1 Données d''entrée'!$C$332+1)^'1 Données d''entrée'!$C$333)-(1+'1 Données d''entrée'!$C$332)^('6 Financement'!Q$54-1-'1 Données d''entrée'!$C$334-$B557))/((1+'1 Données d''entrée'!$C$332)^'1 Données d''entrée'!$C$333-1)*'1 Données d''entrée'!$C$332,0)","v":0},{"$f":"IF(S546>0,$J536*((('1 Données d''entrée'!$C$332+1)^'1 Données d''entrée'!$C$333)-(1+'1 Données d''entrée'!$C$332)^('6 Financement'!R$54-1-'1 Données d''entrée'!$C$334-$B557))/((1+'1 Données d''entrée'!$C$332)^'1 Données d''entrée'!$C$333-1)*'1 Données d''entrée'!$C$332,0)","v":0},{"$f":"IF(T546>0,$J536*((('1 Données d''entrée'!$C$332+1)^'1 Données d''entrée'!$C$333)-(1+'1 Données d''entrée'!$C$332)^('6 Financement'!S$54-1-'1 Données d''entrée'!$C$334-$B557))/((1+'1 Données d''entrée'!$C$332)^'1 Données d''entrée'!$C$333-1)*'1 Données d''entrée'!$C$332,0)","v":0},{"$f":"IF(U546>0,$J536*((('1 Données d''entrée'!$C$332+1)^'1 Données d''entrée'!$C$333)-(1+'1 Données d''entrée'!$C$332)^('6 Financement'!T$54-1-'1 Données d''entrée'!$C$334-$B557))/((1+'1 Données d''entrée'!$C$332)^'1 Données d''entrée'!$C$333-1)*'1 Données d''entrée'!$C$332,0)","v":0},{"$f":"IF(V546>0,$J536*((('1 Données d''entrée'!$C$332+1)^'1 Données d''entrée'!$C$333)-(1+'1 Données d''entrée'!$C$332)^('6 Financement'!U$54-1-'1 Données d''entrée'!$C$334-$B557))/((1+'1 Données d''entrée'!$C$332)^'1 Données d''entrée'!$C$333-1)*'1 Données d''entrée'!$C$332,0)","v":0}]
["Paiement d'intêrets",9,0,{"$f":"IF(D547>0,$K536*((('1 Données d''entrée'!$C$332+1)^'1 Données d''entrée'!$C$333)-(1+'1 Données d''entrée'!$C$332)^('6 Financement'!C$54-1-'1 Données d''entrée'!$C$334-$B558))/((1+'1 Données d''entrée'!$C$332)^'1 Données d''entrée'!$C$333-1)*'1 Données d''entrée'!$C$332,0)","v":0},{"$f":"IF(E547>0,$K536*((('1 Données d''entrée'!$C$332+1)^'1 Données d''entrée'!$C$333)-(1+'1 Données d''entrée'!$C$332)^('6 Financement'!D$54-1-'1 Données d''entrée'!$C$334-$B558))/((1+'1 Données d''entrée'!$C$332)^'1 Données d''entrée'!$C$333-1)*'1 Données d''entrée'!$C$332,0)","v":0},{"$f":"IF(F547>0,$K536*((('1 Données d''entrée'!$C$332+1)^'1 Données d''entrée'!$C$333)-(1+'1 Données d''entrée'!$C$332)^('6 Financement'!E$54-1-'1 Données d''entrée'!$C$334-$B558))/((1+'1 Données d''entrée'!$C$332)^'1 Données d''entrée'!$C$333-1)*'1 Données d''entrée'!$C$332,0)","v":0},{"$f":"IF(G547>0,$K536*((('1 Données d''entrée'!$C$332+1)^'1 Données d''entrée'!$C$333)-(1+'1 Données d''entrée'!$C$332)^('6 Financement'!F$54-1-'1 Données d''entrée'!$C$334-$B558))/((1+'1 Données d''entrée'!$C$332)^'1 Données d''entrée'!$C$333-1)*'1 Données d''entrée'!$C$332,0)","v":0},{"$f":"IF(H547>0,$K536*((('1 Données d''entrée'!$C$332+1)^'1 Données d''entrée'!$C$333)-(1+'1 Données d''entrée'!$C$332)^('6 Financement'!G$54-1-'1 Données d''entrée'!$C$334-$B558))/((1+'1 Données d''entrée'!$C$332)^'1 Données d''entrée'!$C$333-1)*'1 Données d''entrée'!$C$332,0)","v":0},{"$f":"IF(I547>0,$K536*((('1 Données d''entrée'!$C$332+1)^'1 Données d''entrée'!$C$333)-(1+'1 Données d''entrée'!$C$332)^('6 Financement'!H$54-1-'1 Données d''entrée'!$C$334-$B558))/((1+'1 Données d''entrée'!$C$332)^'1 Données d''entrée'!$C$333-1)*'1 Données d''entrée'!$C$332,0)","v":0},{"$f":"IF(J547>0,$K536*((('1 Données d''entrée'!$C$332+1)^'1 Données d''entrée'!$C$333)-(1+'1 Données d''entrée'!$C$332)^('6 Financement'!I$54-1-'1 Données d''entrée'!$C$334-$B558))/((1+'1 Données d''entrée'!$C$332)^'1 Données d''entrée'!$C$333-1)*'1 Données d''entrée'!$C$332,0)","v":0},{"$f":"IF(K547>0,$K536*((('1 Données d''entrée'!$C$332+1)^'1 Données d''entrée'!$C$333)-(1+'1 Données d''entrée'!$C$332)^('6 Financement'!J$54-1-'1 Données d''entrée'!$C$334-$B558))/((1+'1 Données d''entrée'!$C$332)^'1 Données d''entrée'!$C$333-1)*'1 Données d''entrée'!$C$332,0)","v":0},{"$f":"IF(L547>0,$K536*((('1 Données d''entrée'!$C$332+1)^'1 Données d''entrée'!$C$333)-(1+'1 Données d''entrée'!$C$332)^('6 Financement'!K$54-1-'1 Données d''entrée'!$C$334-$B558))/((1+'1 Données d''entrée'!$C$332)^'1 Données d''entrée'!$C$333-1)*'1 Données d''entrée'!$C$332,0)","v":0},{"$f":"IF(M547>0,$K536*((('1 Données d''entrée'!$C$332+1)^'1 Données d''entrée'!$C$333)-(1+'1 Données d''entrée'!$C$332)^('6 Financement'!L$54-1-'1 Données d''entrée'!$C$334-$B558))/((1+'1 Données d''entrée'!$C$332)^'1 Données d''entrée'!$C$333-1)*'1 Données d''entrée'!$C$332,0)","v":0},{"$f":"IF(N547>0,$K536*((('1 Données d''entrée'!$C$332+1)^'1 Données d''entrée'!$C$333)-(1+'1 Données d''entrée'!$C$332)^('6 Financement'!M$54-1-'1 Données d''entrée'!$C$334-$B558))/((1+'1 Données d''entrée'!$C$332)^'1 Données d''entrée'!$C$333-1)*'1 Données d''entrée'!$C$332,0)","v":0},{"$f":"IF(O547>0,$K536*((('1 Données d''entrée'!$C$332+1)^'1 Données d''entrée'!$C$333)-(1+'1 Données d''entrée'!$C$332)^('6 Financement'!N$54-1-'1 Données d''entrée'!$C$334-$B558))/((1+'1 Données d''entrée'!$C$332)^'1 Données d''entrée'!$C$333-1)*'1 Données d''entrée'!$C$332,0)","v":0},{"$f":"IF(P547>0,$K536*((('1 Données d''entrée'!$C$332+1)^'1 Données d''entrée'!$C$333)-(1+'1 Données d''entrée'!$C$332)^('6 Financement'!O$54-1-'1 Données d''entrée'!$C$334-$B558))/((1+'1 Données d''entrée'!$C$332)^'1 Données d''entrée'!$C$333-1)*'1 Données d''entrée'!$C$332,0)","v":0},{"$f":"IF(Q547>0,$K536*((('1 Données d''entrée'!$C$332+1)^'1 Données d''entrée'!$C$333)-(1+'1 Données d''entrée'!$C$332)^('6 Financement'!P$54-1-'1 Données d''entrée'!$C$334-$B558))/((1+'1 Données d''entrée'!$C$332)^'1 Données d''entrée'!$C$333-1)*'1 Données d''entrée'!$C$332,0)","v":0},{"$f":"IF(R547>0,$K536*((('1 Données d''entrée'!$C$332+1)^'1 Données d''entrée'!$C$333)-(1+'1 Données d''entrée'!$C$332)^('6 Financement'!Q$54-1-'1 Données d''entrée'!$C$334-$B558))/((1+'1 Données d''entrée'!$C$332)^'1 Données d''entrée'!$C$333-1)*'1 Données d''entrée'!$C$332,0)","v":0},{"$f":"IF(S547>0,$K536*((('1 Données d''entrée'!$C$332+1)^'1 Données d''entrée'!$C$333)-(1+'1 Données d''entrée'!$C$332)^('6 Financement'!R$54-1-'1 Données d''entrée'!$C$334-$B558))/((1+'1 Données d''entrée'!$C$332)^'1 Données d''entrée'!$C$333-1)*'1 Données d''entrée'!$C$332,0)","v":0},{"$f":"IF(T547>0,$K536*((('1 Données d''entrée'!$C$332+1)^'1 Données d''entrée'!$C$333)-(1+'1 Données d''entrée'!$C$332)^('6 Financement'!S$54-1-'1 Données d''entrée'!$C$334-$B558))/((1+'1 Données d''entrée'!$C$332)^'1 Données d''entrée'!$C$333-1)*'1 Données d''entrée'!$C$332,0)","v":0},{"$f":"IF(U547>0,$K536*((('1 Données d''entrée'!$C$332+1)^'1 Données d''entrée'!$C$333)-(1+'1 Données d''entrée'!$C$332)^('6 Financement'!T$54-1-'1 Données d''entrée'!$C$334-$B558))/((1+'1 Données d''entrée'!$C$332)^'1 Données d''entrée'!$C$333-1)*'1 Données d''entrée'!$C$332,0)","v":0},{"$f":"IF(V547>0,$K536*((('1 Données d''entrée'!$C$332+1)^'1 Données d''entrée'!$C$333)-(1+'1 Données d''entrée'!$C$332)^('6 Financement'!U$54-1-'1 Données d''entrée'!$C$334-$B558))/((1+'1 Données d''entrée'!$C$332)^'1 Données d''entrée'!$C$333-1)*'1 Données d''entrée'!$C$332,0)","v":0}]
["Paiement d'intêrets",10,0,{"$f":"IF(D548>0,$L536*((('1 Données d''entrée'!$C$332+1)^'1 Données d''entrée'!$C$333)-(1+'1 Données d''entrée'!$C$332)^('6 Financement'!C$54-1-'1 Données d''entrée'!$C$334-$B559))/((1+'1 Données d''entrée'!$C$332)^'1 Données d''entrée'!$C$333-1)*'1 Données d''entrée'!$C$332,0)","v":0},{"$f":"IF(E548>0,$L536*((('1 Données d''entrée'!$C$332+1)^'1 Données d''entrée'!$C$333)-(1+'1 Données d''entrée'!$C$332)^('6 Financement'!D$54-1-'1 Données d''entrée'!$C$334-$B559))/((1+'1 Données d''entrée'!$C$332)^'1 Données d''entrée'!$C$333-1)*'1 Données d''entrée'!$C$332,0)","v":0},{"$f":"IF(F548>0,$L536*((('1 Données d''entrée'!$C$332+1)^'1 Données d''entrée'!$C$333)-(1+'1 Données d''entrée'!$C$332)^('6 Financement'!E$54-1-'1 Données d''entrée'!$C$334-$B559))/((1+'1 Données d''entrée'!$C$332)^'1 Données d''entrée'!$C$333-1)*'1 Données d''entrée'!$C$332,0)","v":0},{"$f":"IF(G548>0,$L536*((('1 Données d''entrée'!$C$332+1)^'1 Données d''entrée'!$C$333)-(1+'1 Données d''entrée'!$C$332)^('6 Financement'!F$54-1-'1 Données d''entrée'!$C$334-$B559))/((1+'1 Données d''entrée'!$C$332)^'1 Données d''entrée'!$C$333-1)*'1 Données d''entrée'!$C$332,0)","v":0},{"$f":"IF(H548>0,$L536*((('1 Données d''entrée'!$C$332+1)^'1 Données d''entrée'!$C$333)-(1+'1 Données d''entrée'!$C$332)^('6 Financement'!G$54-1-'1 Données d''entrée'!$C$334-$B559))/((1+'1 Données d''entrée'!$C$332)^'1 Données d''entrée'!$C$333-1)*'1 Données d''entrée'!$C$332,0)","v":0},{"$f":"IF(I548>0,$L536*((('1 Données d''entrée'!$C$332+1)^'1 Données d''entrée'!$C$333)-(1+'1 Données d''entrée'!$C$332)^('6 Financement'!H$54-1-'1 Données d''entrée'!$C$334-$B559))/((1+'1 Données d''entrée'!$C$332)^'1 Données d''entrée'!$C$333-1)*'1 Données d''entrée'!$C$332,0)","v":0},{"$f":"IF(J548>0,$L536*((('1 Données d''entrée'!$C$332+1)^'1 Données d''entrée'!$C$333)-(1+'1 Données d''entrée'!$C$332)^('6 Financement'!I$54-1-'1 Données d''entrée'!$C$334-$B559))/((1+'1 Données d''entrée'!$C$332)^'1 Données d''entrée'!$C$333-1)*'1 Données d''entrée'!$C$332,0)","v":0},{"$f":"IF(K548>0,$L536*((('1 Données d''entrée'!$C$332+1)^'1 Données d''entrée'!$C$333)-(1+'1 Données d''entrée'!$C$332)^('6 Financement'!J$54-1-'1 Données d''entrée'!$C$334-$B559))/((1+'1 Données d''entrée'!$C$332)^'1 Données d''entrée'!$C$333-1)*'1 Données d''entrée'!$C$332,0)","v":0},{"$f":"IF(L548>0,$L536*((('1 Données d''entrée'!$C$332+1)^'1 Données d''entrée'!$C$333)-(1+'1 Données d''entrée'!$C$332)^('6 Financement'!K$54-1-'1 Données d''entrée'!$C$334-$B559))/((1+'1 Données d''entrée'!$C$332)^'1 Données d''entrée'!$C$333-1)*'1 Données d''entrée'!$C$332,0)","v":0},{"$f":"IF(M548>0,$L536*((('1 Données d''entrée'!$C$332+1)^'1 Données d''entrée'!$C$333)-(1+'1 Données d''entrée'!$C$332)^('6 Financement'!L$54-1-'1 Données d''entrée'!$C$334-$B559))/((1+'1 Données d''entrée'!$C$332)^'1 Données d''entrée'!$C$333-1)*'1 Données d''entrée'!$C$332,0)","v":0},{"$f":"IF(N548>0,$L536*((('1 Données d''entrée'!$C$332+1)^'1 Données d''entrée'!$C$333)-(1+'1 Données d''entrée'!$C$332)^('6 Financement'!M$54-1-'1 Données d''entrée'!$C$334-$B559))/((1+'1 Données d''entrée'!$C$332)^'1 Données d''entrée'!$C$333-1)*'1 Données d''entrée'!$C$332,0)","v":0},{"$f":"IF(O548>0,$L536*((('1 Données d''entrée'!$C$332+1)^'1 Données d''entrée'!$C$333)-(1+'1 Données d''entrée'!$C$332)^('6 Financement'!N$54-1-'1 Données d''entrée'!$C$334-$B559))/((1+'1 Données d''entrée'!$C$332)^'1 Données d''entrée'!$C$333-1)*'1 Données d''entrée'!$C$332,0)","v":0},{"$f":"IF(P548>0,$L536*((('1 Données d''entrée'!$C$332+1)^'1 Données d''entrée'!$C$333)-(1+'1 Données d''entrée'!$C$332)^('6 Financement'!O$54-1-'1 Données d''entrée'!$C$334-$B559))/((1+'1 Données d''entrée'!$C$332)^'1 Données d''entrée'!$C$333-1)*'1 Données d''entrée'!$C$332,0)","v":0},{"$f":"IF(Q548>0,$L536*((('1 Données d''entrée'!$C$332+1)^'1 Données d''entrée'!$C$333)-(1+'1 Données d''entrée'!$C$332)^('6 Financement'!P$54-1-'1 Données d''entrée'!$C$334-$B559))/((1+'1 Données d''entrée'!$C$332)^'1 Données d''entrée'!$C$333-1)*'1 Données d''entrée'!$C$332,0)","v":0},{"$f":"IF(R548>0,$L536*((('1 Données d''entrée'!$C$332+1)^'1 Données d''entrée'!$C$333)-(1+'1 Données d''entrée'!$C$332)^('6 Financement'!Q$54-1-'1 Données d''entrée'!$C$334-$B559))/((1+'1 Données d''entrée'!$C$332)^'1 Données d''entrée'!$C$333-1)*'1 Données d''entrée'!$C$332,0)","v":0},{"$f":"IF(S548>0,$L536*((('1 Données d''entrée'!$C$332+1)^'1 Données d''entrée'!$C$333)-(1+'1 Données d''entrée'!$C$332)^('6 Financement'!R$54-1-'1 Données d''entrée'!$C$334-$B559))/((1+'1 Données d''entrée'!$C$332)^'1 Données d''entrée'!$C$333-1)*'1 Données d''entrée'!$C$332,0)","v":0},{"$f":"IF(T548>0,$L536*((('1 Données d''entrée'!$C$332+1)^'1 Données d''entrée'!$C$333)-(1+'1 Données d''entrée'!$C$332)^('6 Financement'!S$54-1-'1 Données d''entrée'!$C$334-$B559))/((1+'1 Données d''entrée'!$C$332)^'1 Données d''entrée'!$C$333-1)*'1 Données d''entrée'!$C$332,0)","v":0},{"$f":"IF(U548>0,$L536*((('1 Données d''entrée'!$C$332+1)^'1 Données d''entrée'!$C$333)-(1+'1 Données d''entrée'!$C$332)^('6 Financement'!T$54-1-'1 Données d''entrée'!$C$334-$B559))/((1+'1 Données d''entrée'!$C$332)^'1 Données d''entrée'!$C$333-1)*'1 Données d''entrée'!$C$332,0)","v":0},{"$f":"IF(V548>0,$L536*((('1 Données d''entrée'!$C$332+1)^'1 Données d''entrée'!$C$333)-(1+'1 Données d''entrée'!$C$332)^('6 Financement'!U$54-1-'1 Données d''entrée'!$C$334-$B559))/((1+'1 Données d''entrée'!$C$332)^'1 Données d''entrée'!$C$333-1)*'1 Données d''entrée'!$C$332,0)","v":0}]
[]
["Solde du comte (par période)",null,{"$f":"C472+IF($B$103>0,C480-SUM(C482:C492)-SUM(C494:C504),0)+IF($B$131>0,C508-SUM(C510:C520)-SUM(C522:C532),0)+IF($B$159>0,C536-SUM(C538:C548),0)","v":{"$error":"#DIV/0!"}},{"$f":"D472+IF($B$103>0,D480-SUM(D482:D492)-SUM(D494:D504),0)+IF($B$131>0,D508-SUM(D510:D520)-SUM(D522:D532),0)+IF($B$159>0,D536-SUM(D538:D548),0)","v":{"$error":"#DIV/0!"}},{"$error":"#DIV/0!"},{"$error":"#DIV/0!"},{"$error":"#DIV/0!"},{"$error":"#DIV/0!"},{"$error":"#DIV/0!"},{"$error":"#DIV/0!"},{"$error":"#DIV/0!"},{"$error":"#DIV/0!"},{"$error":"#DIV/0!"},{"$error":"#DIV/0!"},{"$error":"#DIV/0!"},{"$error":"#DIV/0!"},{"$error":"#DIV/0!"},{"$error":"#DIV/0!"},{"$error":"#DIV/0!"},{"$error":"#DIV/0!"},{"$error":"#DIV/0!"},{"$error":"#DIV/0!"}]
["Solde du compte (cumulé)",null,{"$f":"C562+B473","v":{"$error":"#DIV/0!"}},{"$f":"C563+D562","v":{"$error":"#DIV/0!"}},{"$error":"#DIV/0!"},{"$error":"#DIV/0!"},{"$error":"#DIV/0!"},{"$error":"#DIV/0!"},{"$error":"#DIV/0!"},{"$error":"#DIV/0!"},{"$error":"#DIV/0!"},{"$error":"#DIV/0!"},{"$error":"#DIV/0!"},{"$error":"#DIV/0!"},{"$error":"#DIV/0!"},{"$error":"#DIV/0!"},{"$error":"#DIV/0!"},{"$error":"#DIV/0!"},{"$error":"#DIV/0!"},{"$error":"#DIV/0!"},{"$error":"#DIV/0!"},{"$error":"#DIV/0!"}]
[]
[]
["Coût du financement","Période",1,2,3,4,5,6,7,8,9,10,11,12,13,14,15,16,17,18,19,20]
["Paiement d'intérêt par période",null,{"$f":"IF($B438>0,(C441+C442),0)+IF($B443>0,(C446+C447),0)+IF($B448>0,C451+C452,0)+IF($B455>0,(C458+C459),0)+IF($B460>0,(C463+C464),0)+IF($B465>0,C468+C469,0)+IF($B477>0,SUM(C494:C504),0)+IF($B507>0,SUM(C522:C532),0)+IF($B535>0,SUM(C550:C560),0)","v":0},{"$f":"IF($B438>0,(D441+D442),0)+IF($B443>0,(D446+D447),0)+IF($B448>0,D451+D452,0)+IF($B455>0,(D458+D459),0)+IF($B460>0,(D463+D464),0)+IF($B465>0,D468+D469,0)+IF($B477>0,SUM(D494:D504),0)+IF($B507>0,SUM(D522:D532),0)+IF($B535>0,SUM(D550:D560),0)","v":0},0,0,0,0,0,0,0,0,0,0,0,0,0,0,0,0,0,0]
["Remboursement du principal par période",null,{"$f":"IF($B438>0,(C440),0)+IF($B443>0,(C445),0)+IF($B448>0,IF(C450>0,C450-C451,0),0)+IF($B455>0,(C457),0)+IF($B460>0,(C462),0)+IF($B465>0,IF(C467>0,C467-C468,0),0)+IF($B479>0,SUM(C482:C492),0)+IF($B507>0,SUM(C510:C520),0)+IF($B535>0,SUM(C538:C548)-SUM(C550:C560),0)","v":0},{"$f":"IF($B438>0,(D440),0)+IF($B443>0,(D445),0)+IF($B448>0,IF(D450>0,D450-D451,0),0)+IF($B455>0,(D457),0)+IF($B460>0,(D462),0)+IF($B465>0,IF(D467>0,D467-D468,0),0)+IF($B479>0,SUM(D482:D492),0)+IF($B507>0,SUM(D510:D520),0)+IF($B535>0,SUM(D538:D548)-SUM(D550:D560),0)","v":0},0,0,0,0,0,0,0,0,0,0,0,0,0,0,0,0,0,0]
[]
[]
["Flux de trésorerie net       "]
["Période (t)","Flux de trésorerie       brut","Coût de financement ","Subventions","Flux de trésorerie       intermédiaires (avec coût fin. et Subventions)","Flux de trésorerie      , taxe contenue","Flux de trésorerie       cumulé, taxe contenue","Période de remboursement"]
[0,{"$f":"'5 Flux de trésorerie brut'!$D$7","v":{"$error":"#DIV/0!"}},0,{"$f":"B436+B454","v":0},{"$f":"D573-C573+B573","v":{"$error":"#DIV/0!"}},{"$f":"IF(E573>0,(E573-E573*'1 Données d''entrée'!$C$353-IF('5 Flux de trésorerie brut'!$D$7>0,'1 Données d''entrée'!$C$357*'5 Flux de trésorerie brut'!$D$7,0)),E573)","v":{"$error":"#DIV/0!"}},{"$f":"F573","v":{"$error":"#DIV/0!"}},{"$f":"IF(G573<0,\" \",A573)","v":{"$error":"#DIV/0!"}}]
[1,{"$f":"'5 Flux de trésorerie brut'!$D$8","v":{"$error":"#DIV/0!"}},{"$f":"C567+C568","v":0},0,{"$f":"D574-C574+B574","v":{"$error":"#DIV/0!"}},{"$f":"IF(E574>0,(E574-E574*'1 Données d''entrée'!$C$353-IF('5 Flux de trésorerie brut'!$D$8>0,'1 Données d''entrée'!$C$357*'5 Flux de trésorerie brut'!$D$8,0)),E574)","v":{"$error":"#DIV/0!"}},{"$f":"G573+F574","v":{"$error":"#DIV/0!"}},{"$f":"IF(G574<0,\" \",IF(SUM(H573:H573)>0,\" \",IF(H573=0,\" \",A574)))","v":{"$error":"#DIV/0!"}}]
[2,{"$f":"'5 Flux de trésorerie brut'!$D$9","v":{"$error":"#DIV/0!"}},{"$f":"D567+D568","v":0},0,{"$error":"#DIV/0!"},{"$f":"IF(E575>0,(E575-E575*'1 Données d''entrée'!$C$353-IF('5 Flux de trésorerie brut'!$D$9>0,'1 Données d''entrée'!$C$357*'5 Flux de trésorerie brut'!$D$9,0)),E575)","v":{"$error":"#DIV/0!"}},{"$error":"#DIV/0!"},{"$f":"IF(G575<0,\" \",IF(SUM(H573:H574)>0,\" \",IF(H573=0,\" \",A575)))","v":{"$error":"#DIV/0!"}}]
[3,{"$f":"'5 Flux de trésorerie brut'!$D$10","v":{"$error":"#DIV/0!"}},{"$f":"E567+E568","v":0},0,{"$error":"#DIV/0!"},{"$f":"IF(E576>0,(E576-E576*'1 Données d''entrée'!$C$353-IF('5 Flux de trésorerie brut'!$D$10>0,'1 Données d''entrée'!$C$357*'5 Flux de trésorerie brut'!$D$10,0)),E576)","v":{"$error":"#DIV/0!"}},{"$error":"#DIV/0!"},{"$f":"IF(G576<0,\" \",IF(SUM(H573:H575)>0,\" \",IF(H573=0,\" \",A576)))","v":{"$error":"#DIV/0!"}}]
[4,{"$f":"'5 Flux de trésorerie brut'!$D$11","v":{"$error":"#DIV/0!"}},{"$f":"F567+F568","v":0},0,{"$error":"#DIV/0!"},{"$f":"IF(E577>0,(E577-E577*'1 Données d''entrée'!$C$353-IF('5 Flux de trésorerie brut'!$D$11>0,'1 Données d''entrée'!$C$357*'5 Flux de trésorerie brut'!$D$11,0)),E577)","v":{"$error":"#DIV/0!"}},{"$error":"#DIV/0!"},{"$f":"IF(G577<0,\" \",IF(SUM(H573:H576)>0,\" \",IF(H573=0,\" \",A577)))","v":{"$error":"#DIV/0!"}}]
[5,{"$f":"'5 Flux de trésorerie brut'!$D$12","v":{"$error":"#DIV/0!"}},{"$f":"G567+G568","v":0},0,{"$error":"#DIV/0!"},{"$f":"IF(E578>0,(E578-E578*'1 Données d''entrée'!$C$353-IF('5 Flux de trésorerie brut'!$D$12>0,'1 Données d''entrée'!$C$357*'5 Flux de trésorerie brut'!$D$12,0)),E578)","v":{"$error":"#DIV/0!"}},{"$error":"#DIV/0!"},{"$f":"IF(G578<0,\" \",IF(SUM(H573:H577)>0,\" \",IF(H573=0,\" \",A578)))","v":{"$error":"#DIV/0!"}}]
[6,{"$f":"'5 Flux de trésorerie brut'!$D$13","v":{"$error":"#DIV/0!"}},{"$f":"H567+H568","v":0},0,{"$error":"#DIV/0!"},{"$f":"IF(E579>0,(E579-E579*'1 Données d''entrée'!$C$353-IF('5 Flux de trésorerie brut'!$D$13>0,'1 Données d''entrée'!$C$357*'5 Flux de trésorerie brut'!$D$13,0)),E579)","v":{"$error":"#DIV/0!"}},{"$error":"#DIV/0!"},{"$f":"IF(G579<0,\" \",IF(SUM(H573:H578)>0,\" \",IF(H573=0,\" \",A579)))","v":{"$error":"#DIV/0!"}}]
[7,{"$f":"'5 Flux de trésorerie brut'!$D$14","v":{"$error":"#DIV/0!"}},{"$f":"I567+I568","v":0},0,{"$error":"#DIV/0!"},{"$f":"IF(E580>0,(E580-E580*'1 Données d''entrée'!$C$353-IF('5 Flux de trésorerie brut'!$D$14>0,'1 Données d''entrée'!$C$357*'5 Flux de trésorerie brut'!$D$14,0)),E580)","v":{"$error":"#DIV/0!"}},{"$error":"#DIV/0!"},{"$f":"IF(G580<0,\" \",IF(SUM(H573:H579)>0,\" \",IF(H573=0,\" \",A580)))","v":{"$error":"#DIV/0!"}}]
[8,{"$f":"'5 Flux de trésorerie brut'!$D$15","v":{"$error":"#DIV/0!"}},{"$f":"J567+J568","v":0},0,{"$error":"#DIV/0!"},{"$f":"IF(E581>0,(E581-E581*'1 Données d''entrée'!$C$353-IF('5 Flux de trésorerie brut'!$D$15>0,'1 Données d''entrée'!$C$357*'5 Flux de trésorerie brut'!$D$15,0)),E581)","v":{"$error":"#DIV/0!"}},{"$error":"#DIV/0!"},{"$f":"IF(G581<0,\" \",IF(SUM(H573:H580)>0,\" \",IF(H573=0,\" \",A581)))","v":{"$error":"#DIV/0!"}}]
[9,{"$f":"'5 Flux de trésorerie brut'!$D$16","v":{"$error":"#DIV/0!"}},{"$f":"K567+K568","v":0},0,{"$error":"#DIV/0!"},{"$f":"IF(E582>0,(E582-E582*'1 Données d''entrée'!$C$353-IF('5 Flux de trésorerie brut'!$D$16>0,'1 Données d''entrée'!$C$357*'5 Flux de trésorerie brut'!$D$16,0)),E582)","v":{"$error":"#DIV/0!"}},{"$error":"#DIV/0!"},{"$f":"IF(G582<0,\" \",IF(SUM(H573:H581)>0,\" \",IF(H573=0,\" \",A582)))","v":{"$error":"#DIV/0!"}}]
[10,{"$f":"'5 Flux de trésorerie brut'!$D$17","v":{"$error":"#DIV/0!"}},{"$f":"L567+L568","v":0},0,{"$error":"#DIV/0!"},{"$f":"IF(E583>0,(E583-E583*'1 Données d''entrée'!$C$353-IF('5 Flux de trésorerie brut'!$D$17>0,'1 Données d''entrée'!$C$357*'5 Flux de trésorerie brut'!$D$17,0)),E583)","v":{"$error":"#DIV/0!"}},{"$error":"#DIV/0!"},{"$f":"IF(G583<0,\" \",IF(SUM(H573:H582)>0,\" \",IF(H573=0,\" \",A583)))","v":{"$error":"#DIV/0!"}}]
[11,{"$f":"'5 Flux de trésorerie brut'!$D$18","v":{"$error":"#DIV/0!"}},{"$f":"M567+M568","v":0},0,{"$error":"#DIV/0!"},{"$f":"IF(E584>0,(E584-E584*'1 Données d''entrée'!$C$353-IF('5 Flux de trésorerie brut'!$D$18>0,'1 Données d''entrée'!$C$357*'5 Flux de trésorerie brut'!$D$18,0)),E584)","v":{"$error":"#DIV/0!"}},{"$error":"#DIV/0!"},{"$f":"IF(G584<0,\" \",IF(SUM(H573:H583)>0,\" \",IF(H573=0,\" \",A584)))","v":{"$error":"#DIV/0!"}}]
[12,{"$f":"'5 Flux de trésorerie brut'!$D$19","v":{"$error":"#DIV/0!"}},{"$f":"N567+N568","v":0},0,{"$error":"#DIV/0!"},{"$f":"IF(E585>0,(E585-E585*'1 Données d''entrée'!$C$353-IF('5 Flux de trésorerie brut'!$D$19>0,'1 Données d''entrée'!$C$357*'5 Flux de trésorerie brut'!$D$19,0)),E585)","v":{"$error":"#DIV/0!"}},{"$error":"#DIV/0!"},{"$f":"IF(G585<0,\" \",IF(SUM(H573:H584)>0,\" \",IF(H573=0,\" \",A585)))","v":{"$error":"#DIV/0!"}}]
[13,{"$f":"'5 Flux de trésorerie brut'!$D$20","v":{"$error":"#DIV/0!"}},{"$f":"O567+O568","v":0},0,{"$error":"#DIV/0!"},{"$f":"IF(E586>0,(E586-E586*'1 Données d''entrée'!$C$353-IF('5 Flux de trésorerie brut'!$D$20>0,'1 Données d''entrée'!$C$357*'5 Flux de trésorerie brut'!$D$20,0)),E586)","v":{"$error":"#DIV/0!"}},{"$error":"#DIV/0!"},{"$f":"IF(G586<0,\" \",IF(SUM(H573:H585)>0,\" \",IF(H573=0,\" \",A586)))","v":{"$error":"#DIV/0!"}}]
[14,{"$f":"'5 Flux de trésorerie brut'!$D$21","v":{"$error":"#DIV/0!"}},{"$f":"P567+P568","v":0},0,{"$error":"#DIV/0!"},{"$f":"IF(E587>0,(E587-E587*'1 Données d''entrée'!$C$353-IF('5 Flux de trésorerie brut'!$D$21>0,'1 Données d''entrée'!$C$357*'5 Flux de trésorerie brut'!$D$21,0)),E587)","v":{"$error":"#DIV/0!"}},{"$error":"#DIV/0!"},{"$f":"IF(G587<0,\" \",IF(SUM(H573:H586)>0,\" \",IF(H573=0,\" \",A587)))","v":{"$error":"#DIV/0!"}}]
[15,{"$f":"'5 Flux de trésorerie brut'!$D$22","v":{"$error":"#DIV/0!"}},{"$f":"Q567+Q568","v":0},0,{"$error":"#DIV/0!"},{"$f":"IF(E588>0,(E588-E588*'1 Données d''entrée'!$C$353-IF('5 Flux de trésorerie brut'!$D$22>0,'1 Données d''entrée'!$C$357*'5 Flux de trésorerie brut'!$D$22,0)),E588)","v":{"$error":"#DIV/0!"}},{"$error":"#DIV/0!"},{"$f":"IF(G588<0,\" \",IF(SUM(H573:H587)>0,\" \",IF(H573=0,\" \",A588)))","v":{"$error":"#DIV/0!"}}]
[16,{"$f":"'5 Flux de trésorerie brut'!$D$23","v":{"$error":"#DIV/0!"}},{"$f":"R567+R568","v":0},0,{"$error":"#DIV/0!"},{"$f":"IF(E589>0,(E589-E589*'1 Données d''entrée'!$C$353-IF('5 Flux de trésorerie brut'!$D$23>0,'1 Données d''entrée'!$C$357*'5 Flux de trésorerie brut'!$D$23,0)),E589)","v":{"$error":"#DIV/0!"}},{"$error":"#DIV/0!"},{"$f":"IF(G589<0,\" \",IF(SUM(H573:H588)>0,\" \",IF(H573=0,\" \",A589)))","v":{"$error":"#DIV/0!"}}]
[17,{"$f":"'5 Flux de trésorerie brut'!$D$24","v":{"$error":"#DIV/0!"}},{"$f":"S567+S568","v":0},0,{"$error":"#DIV/0!"},{"$f":"IF(E590>0,(E590-E590*'1 Données d''entrée'!$C$353-IF('5 Flux de trésorerie brut'!$D$24>0,'1 Données d''entrée'!$C$357*'5 Flux de trésorerie brut'!$D$24,0)),E590)","v":{"$error":"#DIV/0!"}},{"$error":"#DIV/0!"},{"$f":"IF(G590<0,\" \",IF(SUM(H573:H589)>0,\" \",IF(H573=0,\" \",A590)))","v":{"$error":"#DIV/0!"}}]
[18,{"$f":"'5 Flux de trésorerie brut'!$D$25","v":{"$error":"#DIV/0!"}},{"$f":"T567+T568","v":0},0,{"$error":"#DIV/0!"},{"$f":"IF(E591>0,(E591-E591*'1 Données d''entrée'!$C$353-IF('5 Flux de trésorerie brut'!$D$25>0,'1 Données d''entrée'!$C$357*'5 Flux de trésorerie brut'!$D$25,0)),E591)","v":{"$error":"#DIV/0!"}},{"$error":"#DIV/0!"},{"$f":"IF(G591<0,\" \",IF(SUM(H573:H590)>0,\" \",IF(H573=0,\" \",A591)))","v":{"$error":"#DIV/0!"}}]
[19,{"$f":"'5 Flux de trésorerie brut'!$D$26","v":{"$error":"#DIV/0!"}},{"$f":"U567+U568","v":0},0,{"$error":"#DIV/0!"},{"$f":"IF(E592>0,(E592-E592*'1 Données d''entrée'!$C$353-IF('5 Flux de trésorerie brut'!$D$26>0,'1 Données d''entrée'!$C$357*'5 Flux de trésorerie brut'!$D$26,0)),E592)","v":{"$error":"#DIV/0!"}},{"$error":"#DIV/0!"},{"$f":"IF(G592<0,\" \",IF(SUM(H573:H591)>0,\" \",IF(H573=0,\" \",A592)))","v":{"$error":"#DIV/0!"}}]
[20,{"$f":"'5 Flux de trésorerie brut'!$D$27","v":{"$error":"#DIV/0!"}},{"$f":"V567+V568","v":0},0,{"$error":"#DIV/0!"},{"$f":"IF(E593>0,(E593-E593*'1 Données d''entrée'!$C$353-IF('5 Flux de trésorerie brut'!$D$27>0,'1 Données d''entrée'!$C$357*'5 Flux de trésorerie brut'!$D$27,0)),E593)","v":{"$error":"#DIV/0!"}},{"$error":"#DIV/0!"},{"$f":"IF(G593<0,\" \",IF(SUM(H573:H592)>0,\" \",IF(H573=0,\" \",A593)))","v":{"$error":"#DIV/0!"}}]
[]
[]
[null,null,"Valeur actuelle nette",{"$f":"NPV('1 Données d''entrée'!$H$28,'10 Subvention d''ADER'!F574:F593)+'10 Subvention d''ADER'!F573","v":{"$error":"#DIV/0!"}}]
[null,null,"Taux de rentabilité interne",{"$f":"IRR(F573:F593)","v":{"$error":"#VALUE!"}}]
[]
[]
[]
[]
[]
["Tableau de calcul avec un taux de subvention de",null,null,0.3]
[]
["Bailleur de fonds","Investissement total par bailleur de fonds (AR)","Quote-part du coût d'investissement initial"]
["Subvention d'ADER",{"$f":"('3 Coût total'!$B$7-'3 Coût total'!$B$42)*C606","v":0},{"$f":"D603","v":0.3}]
["Capitaux propres",{"$f":"'1 Données d''entrée'!$B$294","v":0},{"$f":"'1 Données d''entrée'!$B$294/'3 Coût total'!$B$7","v":{"$error":"#DIV/0!"}}]
["Fonds d'autres donneurs / investisseurs",{"$f":"'1 Données d''entrée'!$B$306+'1 Données d''entrée'!$B$307","v":0},{"$f":"B608/'3 Coût total'!$B$7","v":{"$error":"#DIV/0!"}}]
["Prêt bancaire (effective)",{"$f":"IF(B606+'1 Données d''entrée'!$B$294=0,0,(-1)*'5 Flux de trésorerie brut'!$D$7-(SUM(B606:B608)))","v":0},{"$f":"(1-(C606+C607+C608))","v":{"$error":"#DIV/0!"}}]
[]
["Prêt bancaire avec des frais de gestion",{"$f":"B609+B609*'1 Données d''entrée'!$C$338","v":0},{"$f":"(1-(C606+C607+C608))+(1-(C606+C607+C608))*'1 Données d''entrée'!$C$338","v":{"$error":"#DIV/0!"}}]
[]
["Tableaux de calcul"]
[]
[]
["Scénario financier"]
["Période",0,1,2,3,4,5,6,7,8,9,10,11,12,13,14,15,16,17,18,19,20]
[]
["Flux de trésorerie (brut)",{"$f":"'5 Flux de trésorerie brut'!$D$7","v":{"$error":"#DIV/0!"}},{"$f":"'5 Flux de trésorerie brut'!$D$8","v":{"$error":"#DIV/0!"}},{"$f":"'5 Flux de trésorerie brut'!$D$9","v":{"$error":"#DIV/0!"}},{"$f":"'5 Flux de trésorerie brut'!$D$10","v":{"$error":"#DIV/0!"}},{"$f":"'5 Flux de trésorerie brut'!$D$11","v":{"$error":"#DIV/0!"}},{"$f":"'5 Flux de trésorerie brut'!$D$12","v":{"$error":"#DIV/0!"}},{"$f":"'5 Flux de trésorerie brut'!$D$13","v":{"$error":"#DIV/0!"}},{"$f":"'5 Flux de trésorerie brut'!$D$14","v":{"$error":"#DIV/0!"}},{"$f":"'5 Flux de trésorerie brut'!$D$15","v":{"$error":"#DIV/0!"}},{"$f":"'5 Flux de trésorerie brut'!$D$16","v":{"$error":"#DIV/0!"}},{"$f":"'5 Flux de trésorerie brut'!$D$17","v":{"$error":"#DIV/0!"}},{"$f":"'5 Flux de trésorerie brut'!$D$18","v":{"$error":"#DIV/0!"}},{"$f":"'5 Flux de trésorerie brut'!$D$19","v":{"$error":"#DIV/0!"}},{"$f":"'5 Flux de trésorerie brut'!$D$20","v":{"$error":"#DIV/0!"}},{"$f":"'5 Flux de trésorerie brut'!$D$21","v":{"$error":"#DIV/0!"}},{"$f":"'5 Flux de trésorerie brut'!$D$22","v":{"$error":"#DIV/0!"}},{"$f":"'5 Flux de trésorerie brut'!$D$23","v":{"$error":"#DIV/0!"}},{"$f":"'5 Flux de trésorerie brut'!$D$24","v":{"$error":"#DIV/0!"}},{"$f":"'5 Flux de trésorerie brut'!$D$25","v":{"$error":"#DIV/0!"}},{"$f":"'5 Flux de trésorerie brut'!$D$26","v":{"$error":"#DIV/0!"}},{"$f":"'5 Flux de trésorerie brut'!$D$27","v":{"$error":"#DIV/0!"}}]
[]
["Capitaux propres",{"$f":"'1 Données d''entrée'!$B$294","v":0}]
[]
["Subvention ADER",{"$f":"'3 Coût total'!$B$7*C606","v":0}]
[]
["Prêt bancaire - Option 1: Remboursement du principal fractionné",{"$f":"'1 Données d''entrée'!$B$342","v":0},"% de prêt total"]
["Réception et montant restant",{"$f":"B611*B625","v":0},{"$f":"B626-C627","v":0},0,0,0,0,0,0,0,0,0,0,0,0,0,0,0,0,0,0,0]
["Remboursement du principal",0,{"$f":"IF(C617<'1 Données d''entrée'!$C$334+1,0,IF(C617<'1 Données d''entrée'!$C$333+'1 Données d''entrée'!$C$334+1,($B626/'1 Données d''entrée'!$C$333),0))","v":0},{"$f":"IF(D617<'1 Données d''entrée'!$C$334+1,0,IF(D617<'1 Données d''entrée'!$C$333+'1 Données d''entrée'!$C$334+1,($B626/'1 Données d''entrée'!$C$333),0))","v":0},{"$f":"IF(E617<'1 Données d''entrée'!$C$334+1,0,IF(E617<'1 Données d''entrée'!$C$333+'1 Données d''entrée'!$C$334+1,($B626/'1 Données d''entrée'!$C$333),0))","v":0},{"$f":"IF(F617<'1 Données d''entrée'!$C$334+1,0,IF(F617<'1 Données d''entrée'!$C$333+'1 Données d''entrée'!$C$334+1,($B626/'1 Données d''entrée'!$C$333),0))","v":0},{"$f":"IF(G617<'1 Données d''entrée'!$C$334+1,0,IF(G617<'1 Données d''entrée'!$C$333+'1 Données d''entrée'!$C$334+1,($B626/'1 Données d''entrée'!$C$333),0))","v":0},{"$f":"IF(H617<'1 Données d''entrée'!$C$334+1,0,IF(H617<'1 Données d''entrée'!$C$333+'1 Données d''entrée'!$C$334+1,($B626/'1 Données d''entrée'!$C$333),0))","v":0},{"$f":"IF(I617<'1 Données d''entrée'!$C$334+1,0,IF(I617<'1 Données d''entrée'!$C$333+'1 Données d''entrée'!$C$334+1,($B626/'1 Données d''entrée'!$C$333),0))","v":0},{"$f":"IF(J617<'1 Données d''entrée'!$C$334+1,0,IF(J617<'1 Données d''entrée'!$C$333+'1 Données d''entrée'!$C$334+1,($B626/'1 Données d''entrée'!$C$333),0))","v":0},{"$f":"IF(K617<'1 Données d''entrée'!$C$334+1,0,IF(K617<'1 Données d''entrée'!$C$333+'1 Données d''entrée'!$C$334+1,($B626/'1 Données d''entrée'!$C$333),0))","v":0},{"$f":"IF(L617<'1 Données d''entrée'!$C$334+1,0,IF(L617<'1 Données d''entrée'!$C$333+'1 Données d''entrée'!$C$334+1,($B626/'1 Données d''entrée'!$C$333),0))","v":0},{"$f":"IF(M617<'1 Données d''entrée'!$C$334+1,0,IF(M617<'1 Données d''entrée'!$C$333+'1 Données d''entrée'!$C$334+1,($B626/'1 Données d''entrée'!$C$333),0))","v":0},{"$f":"IF(N617<'1 Données d''entrée'!$C$334+1,0,IF(N617<'1 Données d''entrée'!$C$333+'1 Données d''entrée'!$C$334+1,($B626/'1 Données d''entrée'!$C$333),0))","v":0},{"$f":"IF(O617<'1 Données d''entrée'!$C$334+1,0,IF(O617<'1 Données d''entrée'!$C$333+'1 Données d''entrée'!$C$334+1,($B626/'1 Données d''entrée'!$C$333),0))","v":0},{"$f":"IF(P617<'1 Données d''entrée'!$C$334+1,0,IF(P617<'1 Données d''entrée'!$C$333+'1 Données d''entrée'!$C$334+1,($B626/'1 Données d''entrée'!$C$333),0))","v":0},{"$f":"IF(Q617<'1 Données d''entrée'!$C$334+1,0,IF(Q617<'1 Données d''entrée'!$C$333+'1 Données d''entrée'!$C$334+1,($B626/'1 Données d''entrée'!$C$333),0))","v":0},{"$f":"IF(R617<'1 Données d''entrée'!$C$334+1,0,IF(R617<'1 Données d''entrée'!$C$333+'1 Données d''entrée'!$C$334+1,($B626/'1 Données d''entrée'!$C$333),0))","v":0},{"$f":"IF(S617<'1 Données d''entrée'!$C$334+1,0,IF(S617<'1 Données d''entrée'!$C$333+'1 Données d''entrée'!$C$334+1,($B626/'1 Données d''entrée'!$C$333),0))","v":0},{"$f":"IF(T617<'1 Données d''entrée'!$C$334+1,0,IF(T617<'1 Données d''entrée'!$C$333+'1 Données d''entrée'!$C$334+1,($B626/'1 Données d''entrée'!$C$333),0))","v":0},{"$f":"IF(U617<'1 Données d''entrée'!$C$334+1,0,IF(U617<'1 Données d''entrée'!$C$333+'1 Données d''entrée'!$C$334+1,($B626/'1 Données d''entrée'!$C$333),0))","v":0},{"$f":"IF(V617<'1 Données d''entrée'!$C$334+1,0,IF(V617<'1 Données d''entrée'!$C$333+'1 Données d''entrée'!$C$334+1,($B626/'1 Données d''entrée'!$C$333),0))","v":0}]
["Paiement d'intérêts",0,{"$f":"IF('1 Données d''entrée'!$C$336=\"(=NON)\",IF(C617<'1 Données d''entrée'!$C$334+1,0,B626*'1 Données d''entrée'!$C$332),B626*'1 Données d''entrée'!$C$332)","v":0},{"$f":"IF('1 Données d''entrée'!$C$336=\"(=NON)\",IF(D617<'1 Données d''entrée'!$C$334+1,0,C626*'1 Données d''entrée'!$C$332),C626*'1 Données d''entrée'!$C$332)","v":0},{"$f":"IF('1 Données d''entrée'!$C$336=\"(=NON)\",IF(E617<'1 Données d''entrée'!$C$334+1,0,D626*'1 Données d''entrée'!$C$332),D626*'1 Données d''entrée'!$C$332)","v":0},{"$f":"IF('1 Données d''entrée'!$C$336=\"(=NON)\",IF(F617<'1 Données d''entrée'!$C$334+1,0,E626*'1 Données d''entrée'!$C$332),E626*'1 Données d''entrée'!$C$332)","v":0},{"$f":"IF('1 Données d''entrée'!$C$336=\"(=NON)\",IF(G617<'1 Données d''entrée'!$C$334+1,0,F626*'1 Données d''entrée'!$C$332),F626*'1 Données d''entrée'!$C$332)","v":0},{"$f":"IF('1 Données d''entrée'!$C$336=\"(=NON)\",IF(H617<'1 Données d''entrée'!$C$334+1,0,G626*'1 Données d''entrée'!$C$332),G626*'1 Données d''entrée'!$C$332)","v":0},{"$f":"IF('1 Données d''entrée'!$C$336=\"(=NON)\",IF(I617<'1 Données d''entrée'!$C$334+1,0,H626*'1 Données d''entrée'!$C$332),H626*'1 Données d''entrée'!$C$332)","v":0},{"$f":"IF('1 Données d''entrée'!$C$336=\"(=NON)\",IF(J617<'1 Données d''entrée'!$C$334+1,0,I626*'1 Données d''entrée'!$C$332),I626*'1 Données d''entrée'!$C$332)","v":0},{"$f":"IF('1 Données d''entrée'!$C$336=\"(=NON)\",IF(K617<'1 Données d''entrée'!$C$334+1,0,J626*'1 Données d''entrée'!$C$332),J626*'1 Données d''entrée'!$C$332)","v":0},{"$f":"IF('1 Données d''entrée'!$C$336=\"(=NON)\",IF(L617<'1 Données d''entrée'!$C$334+1,0,K626*'1 Données d''entrée'!$C$332),K626*'1 Données d''entrée'!$C$332)","v":0},{"$f":"IF('1 Données d''entrée'!$C$336=\"(=NON)\",IF(M617<'1 Données d''entrée'!$C$334+1,0,L626*'1 Données d''entrée'!$C$332),L626*'1 Données d''entrée'!$C$332)","v":0},{"$f":"IF('1 Données d''entrée'!$C$336=\"(=NON)\",IF(N617<'1 Données d''entrée'!$C$334+1,0,M626*'1 Données d''entrée'!$C$332),M626*'1 Données d''entrée'!$C$332)","v":0},{"$f":"IF('1 Données d''entrée'!$C$336=\"(=NON)\",IF(O617<'1 Données d''entrée'!$C$334+1,0,N626*'1 Données d''entrée'!$C$332),N626*'1 Données d''entrée'!$C$332)","v":0},{"$f":"IF('1 Données d''entrée'!$C$336=\"(=NON)\",IF(P617<'1 Données d''entrée'!$C$334+1,0,O626*'1 Données d''entrée'!$C$332),O626*'1 Données d''entrée'!$C$332)","v":0},{"$f":"IF('1 Données d''entrée'!$C$336=\"(=NON)\",IF(Q617<'1 Données d''entrée'!$C$334+1,0,P626*'1 Données d''entrée'!$C$332),P626*'1 Données d''entrée'!$C$332)","v":0},{"$f":"IF('1 Données d''entrée'!$C$336=\"(=NON)\",IF(R617<'1 Données d''entrée'!$C$334+1,0,Q626*'1 Données d''entrée'!$C$332),Q626*'1 Données d''entrée'!$C$332)","v":0},{"$f":"IF('1 Données d''entrée'!$C$336=\"(=NON)\",IF(S617<'1 Données d''entrée'!$C$334+1,0,R626*'1 Données d''entrée'!$C$332),R626*'1 Données d''entrée'!$C$332)","v":0},{"$f":"IF('1 Données d''entrée'!$C$336=\"(=NON)\",IF(T617<'1 Données d''entrée'!$C$334+1,0,S626*'1 Données d''entrée'!$C$332),S626*'1 Données d''entrée'!$C$332)","v":0},{"$f":"IF('1 Données d''entrée'!$C$336=\"(=NON)\",IF(U617<'1 Données d''entrée'!$C$334+1,0,T626*'1 Données d''entrée'!$C$332),T626*'1 Données d''entrée'!$C$332)","v":0},{"$f":"IF('1 Données d''entrée'!$C$336=\"(=NON)\",IF(V617<'1 Données d''entrée'!$C$334+1,0,U626*'1 Données d''entrée'!$C$332),U626*'1 Données d''entrée'!$C$332)","v":0}]
["Paiements d'intérêt avec des intérêts composés en cas d'absence des paiements dans la période de grâce",0,0,{"$f":"IF(D617='1 Données d''entrée'!$C$334+1,IF('1 Données d''entrée'!$C$336=\"(=NON)\",($B626*'1 Données d''entrée'!$C$332)*((('1 Données d''entrée'!$C$332+1)^'1 Données d''entrée'!$C$334-1)/('1 Données d''entrée'!$C$332))*(1+'1 Données d''entrée'!$C$332),0),0)","v":0},{"$f":"IF(E617='1 Données d''entrée'!$C$334+1,IF('1 Données d''entrée'!$C$336=\"(=NON)\",($B626*'1 Données d''entrée'!$C$332)*((('1 Données d''entrée'!$C$332+1)^'1 Données d''entrée'!$C$334-1)/('1 Données d''entrée'!$C$332))*(1+'1 Données d''entrée'!$C$332),0),0)","v":0},{"$f":"IF(F617='1 Données d''entrée'!$C$334+1,IF('1 Données d''entrée'!$C$336=\"(=NON)\",($B626*'1 Données d''entrée'!$C$332)*((('1 Données d''entrée'!$C$332+1)^'1 Données d''entrée'!$C$334-1)/('1 Données d''entrée'!$C$332))*(1+'1 Données d''entrée'!$C$332),0),0)","v":0},{"$f":"IF(G617='1 Données d''entrée'!$C$334+1,IF('1 Données d''entrée'!$C$336=\"(=NON)\",($B626*'1 Données d''entrée'!$C$332)*((('1 Données d''entrée'!$C$332+1)^'1 Données d''entrée'!$C$334-1)/('1 Données d''entrée'!$C$332))*(1+'1 Données d''entrée'!$C$332),0),0)","v":0},{"$f":"IF(H617='1 Données d''entrée'!$C$334+1,IF('1 Données d''entrée'!$C$336=\"(=NON)\",($B626*'1 Données d''entrée'!$C$332)*((('1 Données d''entrée'!$C$332+1)^'1 Données d''entrée'!$C$334-1)/('1 Données d''entrée'!$C$332))*(1+'1 Données d''entrée'!$C$332),0),0)","v":0},{"$f":"IF(I617='1 Données d''entrée'!$C$334+1,IF('1 Données d''entrée'!$C$336=\"(=NON)\",($B626*'1 Données d''entrée'!$C$332)*((('1 Données d''entrée'!$C$332+1)^'1 Données d''entrée'!$C$334-1)/('1 Données d''entrée'!$C$332))*(1+'1 Données d''entrée'!$C$332),0),0)","v":0},{"$f":"IF(J617='1 Données d''entrée'!$C$334+1,IF('1 Données d''entrée'!$C$336=\"(=NON)\",($B626*'1 Données d''entrée'!$C$332)*((('1 Données d''entrée'!$C$332+1)^'1 Données d''entrée'!$C$334-1)/('1 Données d''entrée'!$C$332))*(1+'1 Données d''entrée'!$C$332),0),0)","v":0},{"$f":"IF(K617='1 Données d''entrée'!$C$334+1,IF('1 Données d''entrée'!$C$336=\"(=NON)\",($B626*'1 Données d''entrée'!$C$332)*((('1 Données d''entrée'!$C$332+1)^'1 Données d''entrée'!$C$334-1)/('1 Données d''entrée'!$C$332))*(1+'1 Données d''entrée'!$C$332),0),0)","v":0},{"$f":"IF(L617='1 Données d''entrée'!$C$334+1,IF('1 Données d''entrée'!$C$336=\"(=NON)\",($B626*'1 Données d''entrée'!$C$332)*((('1 Données d''entrée'!$C$332+1)^'1 Données d''entrée'!$C$334-1)/('1 Données d''entrée'!$C$332))*(1+'1 Données d''entrée'!$C$332),0),0)","v":0},{"$f":"IF(M617='1 Données d''entrée'!$C$334+1,IF('1 Données d''entrée'!$C$336=\"(=NON)\",($B626*'1 Données d''entrée'!$C$332)*((('1 Données d''entrée'!$C$332+1)^'1 Données d''entrée'!$C$334-1)/('1 Données d''entrée'!$C$332))*(1+'1 Données d''entrée'!$C$332),0),0)","v":0},{"$f":"IF(N617='1 Données d''entrée'!$C$334+1,IF('1 Données d''entrée'!$C$336=\"(=NON)\",($B626*'1 Données d''entrée'!$C$332)*((('1 Données d''entrée'!$C$332+1)^'1 Données d''entrée'!$C$334-1)/('1 Données d''entrée'!$C$332))*(1+'1 Données d''entrée'!$C$332),0),0)","v":0},{"$f":"IF(O617='1 Données d''entrée'!$C$334+1,IF('1 Données d''entrée'!$C$336=\"(=NON)\",($B626*'1 Données d''entrée'!$C$332)*((('1 Données d''entrée'!$C$332+1)^'1 Données d''entrée'!$C$334-1)/('1 Données d''entrée'!$C$332))*(1+'1 Données d''entrée'!$C$332),0),0)","v":0},{"$f":"IF(P617='1 Données d''entrée'!$C$334+1,IF('1 Données d''entrée'!$C$336=\"(=NON)\",($B626*'1 Données d''entrée'!$C$332)*((('1 Données d''entrée'!$C$332+1)^'1 Données d''entrée'!$C$334-1)/('1 Données d''entrée'!$C$332))*(1+'1 Données d''entrée'!$C$332),0),0)","v":0},{"$f":"IF(Q617='1 Données d''entrée'!$C$334+1,IF('1 Données d''entrée'!$C$336=\"(=NON)\",($B626*'1 Données d''entrée'!$C$332)*((('1 Données d''entrée'!$C$332+1)^'1 Données d''entrée'!$C$334-1)/('1 Données d''entrée'!$C$332))*(1+'1 Données d''entrée'!$C$332),0),0)","v":0},{"$f":"IF(R617='1 Données d''entrée'!$C$334+1,IF('1 Données d''entrée'!$C$336=\"(=NON)\",($B626*'1 Données d''entrée'!$C$332)*((('1 Données d''entrée'!$C$332+1)^'1 Données d''entrée'!$C$334-1)/('1 Données d''entrée'!$C$332))*(1+'1 Données d''entrée'!$C$332),0),0)","v":0},{"$f":"IF(S617='1 Données d''entrée'!$C$334+1,IF('1 Données d''entrée'!$C$336=\"(=NON)\",($B626*'1 Données d''entrée'!$C$332)*((('1 Données d''entrée'!$C$332+1)^'1 Données d''entrée'!$C$334-1)/('1 Données d''entrée'!$C$332))*(1+'1 Données d''entrée'!$C$332),0),0)","v":0},{"$f":"IF(T617='1 Données d''entrée'!$C$334+1,IF('1 Données d''entrée'!$C$336=\"(=NON)\",($B626*'1 Données d''entrée'!$C$332)*((('1 Données d''entrée'!$C$332+1)^'1 Données d''entrée'!$C$334-1)/('1 Données d''entrée'!$C$332))*(1+'1 Données d''entrée'!$C$332),0),0)","v":0},{"$f":"IF(U617='1 Données d''entrée'!$C$334+1,IF('1 Données d''entrée'!$C$336=\"(=NON)\",($B626*'1 Données d''entrée'!$C$332)*((('1 Données d''entrée'!$C$332+1)^'1 Données d''entrée'!$C$334-1)/('1 Données d''entrée'!$C$332))*(1+'1 Données d''entrée'!$C$332),0),0)","v":0},{"$f":"IF(V617='1 Données d''entrée'!$C$334+1,IF('1 Données d''entrée'!$C$336=\"(=NON)\",($B626*'1 Données d''entrée'!$C$332)*((('1 Données d''entrée'!$C$332+1)^'1 Données d''entrée'!$C$334-1)/('1 Données d''entrée'!$C$332))*(1+'1 Données d''entrée'!$C$332),0),0)","v":0}]
["Prêt bancaire - Option 2: Remboursement du principal final",{"$f":"'1 Données d''entrée'!$B$343","v":0},"% de prêt total"]
["Réception et montant restant",{"$f":"B611*B630","v":0},{"$f":"B631-C632","v":0},0,0,0,0,0,0,0,0,0,0,0,0,0,0,0,0,0,0,0]
["Remboursement du principal",0,{"$f":"IF('1 Données d''entrée'!$C$333+'1 Données d''entrée'!$C$334=C617,$B631,0)","v":0},{"$f":"IF('1 Données d''entrée'!$C$333+'1 Données d''entrée'!$C$334=D617,$B631,0)","v":0},{"$f":"IF('1 Données d''entrée'!$C$333+'1 Données d''entrée'!$C$334=E617,$B631,0)","v":0},{"$f":"IF('1 Données d''entrée'!$C$333+'1 Données d''entrée'!$C$334=F617,$B631,0)","v":0},{"$f":"IF('1 Données d''entrée'!$C$333+'1 Données d''entrée'!$C$334=G617,$B631,0)","v":0},{"$f":"IF('1 Données d''entrée'!$C$333+'1 Données d''entrée'!$C$334=H617,$B631,0)","v":0},{"$f":"IF('1 Données d''entrée'!$C$333+'1 Données d''entrée'!$C$334=I617,$B631,0)","v":0},{"$f":"IF('1 Données d''entrée'!$C$333+'1 Données d''entrée'!$C$334=J617,$B631,0)","v":0},{"$f":"IF('1 Données d''entrée'!$C$333+'1 Données d''entrée'!$C$334=K617,$B631,0)","v":0},{"$f":"IF('1 Données d''entrée'!$C$333+'1 Données d''entrée'!$C$334=L617,$B631,0)","v":0},{"$f":"IF('1 Données d''entrée'!$C$333+'1 Données d''entrée'!$C$334=M617,$B631,0)","v":0},{"$f":"IF('1 Données d''entrée'!$C$333+'1 Données d''entrée'!$C$334=N617,$B631,0)","v":0},{"$f":"IF('1 Données d''entrée'!$C$333+'1 Données d''entrée'!$C$334=O617,$B631,0)","v":0},{"$f":"IF('1 Données d''entrée'!$C$333+'1 Données d''entrée'!$C$334=P617,$B631,0)","v":0},{"$f":"IF('1 Données d''entrée'!$C$333+'1 Données d''entrée'!$C$334=Q617,$B631,0)","v":0},{"$f":"IF('1 Données d''entrée'!$C$333+'1 Données d''entrée'!$C$334=R617,$B631,0)","v":0},{"$f":"IF('1 Données d''entrée'!$C$333+'1 Données d''entrée'!$C$334=S617,$B631,0)","v":0},{"$f":"IF('1 Données d''entrée'!$C$333+'1 Données d''entrée'!$C$334=T617,$B631,0)","v":0},{"$f":"IF('1 Données d''entrée'!$C$333+'1 Données d''entrée'!$C$334=U617,$B631,0)","v":0},{"$f":"IF('1 Données d''entrée'!$C$333+'1 Données d''entrée'!$C$334=V617,$B631,0)","v":0}]
["Paiement d'intérêts",0,{"$f":"IF('1 Données d''entrée'!$C$336=\"(=NON)\",IF(C617<'1 Données d''entrée'!$C$334+1,0,B631*'1 Données d''entrée'!$C$332),B631*'1 Données d''entrée'!$C$332)","v":0},{"$f":"IF('1 Données d''entrée'!$C$336=\"(=NON)\",IF(D617<'1 Données d''entrée'!$C$334+1,0,C631*'1 Données d''entrée'!$C$332),C631*'1 Données d''entrée'!$C$332)","v":0},{"$f":"IF('1 Données d''entrée'!$C$336=\"(=NON)\",IF(E617<'1 Données d''entrée'!$C$334+1,0,D631*'1 Données d''entrée'!$C$332),D631*'1 Données d''entrée'!$C$332)","v":0},{"$f":"IF('1 Données d''entrée'!$C$336=\"(=NON)\",IF(F617<'1 Données d''entrée'!$C$334+1,0,E631*'1 Données d''entrée'!$C$332),E631*'1 Données d''entrée'!$C$332)","v":0},{"$f":"IF('1 Données d''entrée'!$C$336=\"(=NON)\",IF(G617<'1 Données d''entrée'!$C$334+1,0,F631*'1 Données d''entrée'!$C$332),F631*'1 Données d''entrée'!$C$332)","v":0},{"$f":"IF('1 Données d''entrée'!$C$336=\"(=NON)\",IF(H617<'1 Données d''entrée'!$C$334+1,0,G631*'1 Données d''entrée'!$C$332),G631*'1 Données d''entrée'!$C$332)","v":0},{"$f":"IF('1 Données d''entrée'!$C$336=\"(=NON)\",IF(I617<'1 Données d''entrée'!$C$334+1,0,H631*'1 Données d''entrée'!$C$332),H631*'1 Données d''entrée'!$C$332)","v":0},{"$f":"IF('1 Données d''entrée'!$C$336=\"(=NON)\",IF(J617<'1 Données d''entrée'!$C$334+1,0,I631*'1 Données d''entrée'!$C$332),I631*'1 Données d''entrée'!$C$332)","v":0},{"$f":"IF('1 Données d''entrée'!$C$336=\"(=NON)\",IF(K617<'1 Données d''entrée'!$C$334+1,0,J631*'1 Données d''entrée'!$C$332),J631*'1 Données d''entrée'!$C$332)","v":0},{"$f":"IF('1 Données d''entrée'!$C$336=\"(=NON)\",IF(L617<'1 Données d''entrée'!$C$334+1,0,K631*'1 Données d''entrée'!$C$332),K631*'1 Données d''entrée'!$C$332)","v":0},{"$f":"IF('1 Données d''entrée'!$C$336=\"(=NON)\",IF(M617<'1 Données d''entrée'!$C$334+1,0,L631*'1 Données d''entrée'!$C$332),L631*'1 Données d''entrée'!$C$332)","v":0},{"$f":"IF('1 Données d''entrée'!$C$336=\"(=NON)\",IF(N617<'1 Données d''entrée'!$C$334+1,0,M631*'1 Données d''entrée'!$C$332),M631*'1 Données d''entrée'!$C$332)","v":0},{"$f":"IF('1 Données d''entrée'!$C$336=\"(=NON)\",IF(O617<'1 Données d''entrée'!$C$334+1,0,N631*'1 Données d''entrée'!$C$332),N631*'1 Données d''entrée'!$C$332)","v":0},{"$f":"IF('1 Données d''entrée'!$C$336=\"(=NON)\",IF(P617<'1 Données d''entrée'!$C$334+1,0,O631*'1 Données d''entrée'!$C$332),O631*'1 Données d''entrée'!$C$332)","v":0},{"$f":"IF('1 Données d''entrée'!$C$336=\"(=NON)\",IF(Q617<'1 Données d''entrée'!$C$334+1,0,P631*'1 Données d''entrée'!$C$332),P631*'1 Données d''entrée'!$C$332)","v":0},{"$f":"IF('1 Données d''entrée'!$C$336=\"(=NON)\",IF(R617<'1 Données d''entrée'!$C$334+1,0,Q631*'1 Données d''entrée'!$C$332),Q631*'1 Données d''entrée'!$C$332)","v":0},{"$f":"IF('1 Données d''entrée'!$C$336=\"(=NON)\",IF(S617<'1 Données d''entrée'!$C$334+1,0,R631*'1 Données d''entrée'!$C$332),R631*'1 Données d''entrée'!$C$332)","v":0},{"$f":"IF('1 Données d''entrée'!$C$336=\"(=NON)\",IF(T617<'1 Données d''entrée'!$C$334+1,0,S631*'1 Données d''entrée'!$C$332),S631*'1 Données d''entrée'!$C$332)","v":0},{"$f":"IF('1 Données d''entrée'!$C$336=\"(=NON)\",IF(U617<'1 Données d''entrée'!$C$334+1,0,T631*'1 Données d''entrée'!$C$332),T631*'1 Données d''entrée'!$C$332)","v":0},{"$f":"IF('1 Données d''entrée'!$C$336=\"(=NON)\",IF(V617<'1 Données d''entrée'!$C$334+1,0,U631*'1 Données d''entrée'!$C$332),U631*'1 Données d''entrée'!$C$332)","v":0}]
["Paiements d'intérêt avec des intérêts composés en cas d'absence des paiements dans la période de grâce",0,0,{"$f":"IF(D617='1 Données d''entrée'!$C$334+1,IF('1 Données d''entrée'!$C$336=\"(=NON)\",($B631*'1 Données d''entrée'!$C$332)*((('1 Données d''entrée'!$C$332+1)^'1 Données d''entrée'!$C$334-1)/('1 Données d''entrée'!$C$332))*(1+'1 Données d''entrée'!$C$332),0),0)","v":0},{"$f":"IF(E617='1 Données d''entrée'!$C$334+1,IF('1 Données d''entrée'!$C$336=\"(=NON)\",($B631*'1 Données d''entrée'!$C$332)*((('1 Données d''entrée'!$C$332+1)^'1 Données d''entrée'!$C$334-1)/('1 Données d''entrée'!$C$332))*(1+'1 Données d''entrée'!$C$332),0),0)","v":0},{"$f":"IF(F617='1 Données d''entrée'!$C$334+1,IF('1 Données d''entrée'!$C$336=\"(=NON)\",($B631*'1 Données d''entrée'!$C$332)*((('1 Données d''entrée'!$C$332+1)^'1 Données d''entrée'!$C$334-1)/('1 Données d''entrée'!$C$332))*(1+'1 Données d''entrée'!$C$332),0),0)","v":0},{"$f":"IF(G617='1 Données d''entrée'!$C$334+1,IF('1 Données d''entrée'!$C$336=\"(=NON)\",($B631*'1 Données d''entrée'!$C$332)*((('1 Données d''entrée'!$C$332+1)^'1 Données d''entrée'!$C$334-1)/('1 Données d''entrée'!$C$332))*(1+'1 Données d''entrée'!$C$332),0),0)","v":0},{"$f":"IF(H617='1 Données d''entrée'!$C$334+1,IF('1 Données d''entrée'!$C$336=\"(=NON)\",($B631*'1 Données d''entrée'!$C$332)*((('1 Données d''entrée'!$C$332+1)^'1 Données d''entrée'!$C$334-1)/('1 Données d''entrée'!$C$332))*(1+'1 Données d''entrée'!$C$332),0),0)","v":0},{"$f":"IF(I617='1 Données d''entrée'!$C$334+1,IF('1 Données d''entrée'!$C$336=\"(=NON)\",($B631*'1 Données d''entrée'!$C$332)*((('1 Données d''entrée'!$C$332+1)^'1 Données d''entrée'!$C$334-1)/('1 Données d''entrée'!$C$332))*(1+'1 Données d''entrée'!$C$332),0),0)","v":0},{"$f":"IF(J617='1 Données d''entrée'!$C$334+1,IF('1 Données d''entrée'!$C$336=\"(=NON)\",($B631*'1 Données d''entrée'!$C$332)*((('1 Données d''entrée'!$C$332+1)^'1 Données d''entrée'!$C$334-1)/('1 Données d''entrée'!$C$332))*(1+'1 Données d''entrée'!$C$332),0),0)","v":0},{"$f":"IF(K617='1 Données d''entrée'!$C$334+1,IF('1 Données d''entrée'!$C$336=\"(=NON)\",($B631*'1 Données d''entrée'!$C$332)*((('1 Données d''entrée'!$C$332+1)^'1 Données d''entrée'!$C$334-1)/('1 Données d''entrée'!$C$332))*(1+'1 Données d''entrée'!$C$332),0),0)","v":0},{"$f":"IF(L617='1 Données d''entrée'!$C$334+1,IF('1 Données d''entrée'!$C$336=\"(=NON)\",($B631*'1 Données d''entrée'!$C$332)*((('1 Données d''entrée'!$C$332+1)^'1 Données d''entrée'!$C$334-1)/('1 Données d''entrée'!$C$332))*(1+'1 Données d''entrée'!$C$332),0),0)","v":0},{"$f":"IF(M617='1 Données d''entrée'!$C$334+1,IF('1 Données d''entrée'!$C$336=\"(=NON)\",($B631*'1 Données d''entrée'!$C$332)*((('1 Données d''entrée'!$C$332+1)^'1 Données d''entrée'!$C$334-1)/('1 Données d''entrée'!$C$332))*(1+'1 Données d''entrée'!$C$332),0),0)","v":0},{"$f":"IF(N617='1 Données d''entrée'!$C$334+1,IF('1 Données d''entrée'!$C$336=\"(=NON)\",($B631*'1 Données d''entrée'!$C$332)*((('1 Données d''entrée'!$C$332+1)^'1 Données d''entrée'!$C$334-1)/('1 Données d''entrée'!$C$332))*(1+'1 Données d''entrée'!$C$332),0),0)","v":0},{"$f":"IF(O617='1 Données d''entrée'!$C$334+1,IF('1 Données d''entrée'!$C$336=\"(=NON)\",($B631*'1 Données d''entrée'!$C$332)*((('1 Données d''entrée'!$C$332+1)^'1 Données d''entrée'!$C$334-1)/('1 Données d''entrée'!$C$332))*(1+'1 Données d''entrée'!$C$332),0),0)","v":0},{"$f":"IF(P617='1 Données d''entrée'!$C$334+1,IF('1 Données d''entrée'!$C$336=\"(=NON)\",($B631*'1 Données d''entrée'!$C$332)*((('1 Données d''entrée'!$C$332+1)^'1 Données d''entrée'!$C$334-1)/('1 Données d''entrée'!$C$332))*(1+'1 Données d''entrée'!$C$332),0),0)","v":0},{"$f":"IF(Q617='1 Données d''entrée'!$C$334+1,IF('1 Données d''entrée'!$C$336=\"(=NON)\",($B631*'1 Données d''entrée'!$C$332)*((('1 Données d''entrée'!$C$332+1)^'1 Données d''entrée'!$C$334-1)/('1 Données d''entrée'!$C$332))*(1+'1 Données d''entrée'!$C$332),0),0)","v":0},{"$f":"IF(R617='1 Données d''entrée'!$C$334+1,IF('1 Données d''entrée'!$C$336=\"(=NON)\",($B631*'1 Données d''entrée'!$C$332)*((('1 Données d''entrée'!$C$332+1)^'1 Données d''entrée'!$C$334-1)/('1 Données d''entrée'!$C$332))*(1+'1 Données d''entrée'!$C$332),0),0)","v":0},{"$f":"IF(S617='1 Données d''entrée'!$C$334+1,IF('1 Données d''entrée'!$C$336=\"(=NON)\",($B631*'1 Données d''entrée'!$C$332)*((('1 Données d''entrée'!$C$332+1)^'1 Données d''entrée'!$C$334-1)/('1 Données d''entrée'!$C$332))*(1+'1 Données d''entrée'!$C$332),0),0)","v":0},{"$f":"IF(T617='1 Données d''entrée'!$C$334+1,IF('1 Données d''entrée'!$C$336=\"(=NON)\",($B631*'1 Données d''entrée'!$C$332)*((('1 Données d''entrée'!$C$332+1)^'1 Données d''entrée'!$C$334-1)/('1 Données d''entrée'!$C$332))*(1+'1 Données d''entrée'!$C$332),0),0)","v":0},{"$f":"IF(U617='1 Données d''entrée'!$C$334+1,IF('1 Données d''entrée'!$C$336=\"(=NON)\",($B631*'1 Données d''entrée'!$C$332)*((('1 Données d''entrée'!$C$332+1)^'1 Données d''entrée'!$C$334-1)/('1 Données d''entrée'!$C$332))*(1+'1 Données d''entrée'!$C$332),0),0)","v":0},{"$f":"IF(V617='1 Données d''entrée'!$C$334+1,IF('1 Données d''entrée'!$C$336=\"(=NON)\",($B631*'1 Données d''entrée'!$C$332)*((('1 Données d''entrée'!$C$332+1)^'1 Données d''entrée'!$C$334-1)/('1 Données d''entrée'!$C$332))*(1+'1 Données d''entrée'!$C$332),0),0)","v":0}]
["Prêt bancaire - Option 3: Remboursement vers l'annuité constante",{"$f":"'1 Données d''entrée'!$B$344","v":0},"% de prêt total"]
["Réception ",{"$f":"B611*B635","v":0},0,0,0,0,0,0,0,0,0,0,0,0,0,0,0,0,0,0,0,0]
["Remboursement vers l'annuité constante",{"$f":"IF(B617<'1 Données d''entrée'!$C$334+1,0,IF(B617<'1 Données d''entrée'!$C$333+'1 Données d''entrée'!$C$334+1,$B636*('1 Données d''entrée'!$C$332*(1+'1 Données d''entrée'!$C$332)^'1 Données d''entrée'!$C$333)/((1+'1 Données d''entrée'!$C$332)^'1 Données d''entrée'!$C$333-1),0))","v":0},{"$f":"IF(C617<'1 Données d''entrée'!$C$334+1,0,IF(C617<'1 Données d''entrée'!$C$333+'1 Données d''entrée'!$C$334+1,$B636*('1 Données d''entrée'!$C$332*(1+'1 Données d''entrée'!$C$332)^'1 Données d''entrée'!$C$333)/((1+'1 Données d''entrée'!$C$332)^'1 Données d''entrée'!$C$333-1),0))","v":0},{"$f":"IF(D617<'1 Données d''entrée'!$C$334+1,0,IF(D617<'1 Données d''entrée'!$C$333+'1 Données d''entrée'!$C$334+1,$B636*('1 Données d''entrée'!$C$332*(1+'1 Données d''entrée'!$C$332)^'1 Données d''entrée'!$C$333)/((1+'1 Données d''entrée'!$C$332)^'1 Données d''entrée'!$C$333-1),0))","v":0},{"$f":"IF(E617<'1 Données d''entrée'!$C$334+1,0,IF(E617<'1 Données d''entrée'!$C$333+'1 Données d''entrée'!$C$334+1,$B636*('1 Données d''entrée'!$C$332*(1+'1 Données d''entrée'!$C$332)^'1 Données d''entrée'!$C$333)/((1+'1 Données d''entrée'!$C$332)^'1 Données d''entrée'!$C$333-1),0))","v":0},{"$f":"IF(F617<'1 Données d''entrée'!$C$334+1,0,IF(F617<'1 Données d''entrée'!$C$333+'1 Données d''entrée'!$C$334+1,$B636*('1 Données d''entrée'!$C$332*(1+'1 Données d''entrée'!$C$332)^'1 Données d''entrée'!$C$333)/((1+'1 Données d''entrée'!$C$332)^'1 Données d''entrée'!$C$333-1),0))","v":0},{"$f":"IF(G617<'1 Données d''entrée'!$C$334+1,0,IF(G617<'1 Données d''entrée'!$C$333+'1 Données d''entrée'!$C$334+1,$B636*('1 Données d''entrée'!$C$332*(1+'1 Données d''entrée'!$C$332)^'1 Données d''entrée'!$C$333)/((1+'1 Données d''entrée'!$C$332)^'1 Données d''entrée'!$C$333-1),0))","v":0},{"$f":"IF(H617<'1 Données d''entrée'!$C$334+1,0,IF(H617<'1 Données d''entrée'!$C$333+'1 Données d''entrée'!$C$334+1,$B636*('1 Données d''entrée'!$C$332*(1+'1 Données d''entrée'!$C$332)^'1 Données d''entrée'!$C$333)/((1+'1 Données d''entrée'!$C$332)^'1 Données d''entrée'!$C$333-1),0))","v":0},{"$f":"IF(I617<'1 Données d''entrée'!$C$334+1,0,IF(I617<'1 Données d''entrée'!$C$333+'1 Données d''entrée'!$C$334+1,$B636*('1 Données d''entrée'!$C$332*(1+'1 Données d''entrée'!$C$332)^'1 Données d''entrée'!$C$333)/((1+'1 Données d''entrée'!$C$332)^'1 Données d''entrée'!$C$333-1),0))","v":0},{"$f":"IF(J617<'1 Données d''entrée'!$C$334+1,0,IF(J617<'1 Données d''entrée'!$C$333+'1 Données d''entrée'!$C$334+1,$B636*('1 Données d''entrée'!$C$332*(1+'1 Données d''entrée'!$C$332)^'1 Données d''entrée'!$C$333)/((1+'1 Données d''entrée'!$C$332)^'1 Données d''entrée'!$C$333-1),0))","v":0},{"$f":"IF(K617<'1 Données d''entrée'!$C$334+1,0,IF(K617<'1 Données d''entrée'!$C$333+'1 Données d''entrée'!$C$334+1,$B636*('1 Données d''entrée'!$C$332*(1+'1 Données d''entrée'!$C$332)^'1 Données d''entrée'!$C$333)/((1+'1 Données d''entrée'!$C$332)^'1 Données d''entrée'!$C$333-1),0))","v":0},{"$f":"IF(L617<'1 Données d''entrée'!$C$334+1,0,IF(L617<'1 Données d''entrée'!$C$333+'1 Données d''entrée'!$C$334+1,$B636*('1 Données d''entrée'!$C$332*(1+'1 Données d''entrée'!$C$332)^'1 Données d''entrée'!$C$333)/((1+'1 Données d''entrée'!$C$332)^'1 Données d''entrée'!$C$333-1),0))","v":0},{"$f":"IF(M617<'1 Données d''entrée'!$C$334+1,0,IF(M617<'1 Données d''entrée'!$C$333+'1 Données d''entrée'!$C$334+1,$B636*('1 Données d''entrée'!$C$332*(1+'1 Données d''entrée'!$C$332)^'1 Données d''entrée'!$C$333)/((1+'1 Données d''entrée'!$C$332)^'1 Données d''entrée'!$C$333-1),0))","v":0},{"$f":"IF(N617<'1 Données d''entrée'!$C$334+1,0,IF(N617<'1 Données d''entrée'!$C$333+'1 Données d''entrée'!$C$334+1,$B636*('1 Données d''entrée'!$C$332*(1+'1 Données d''entrée'!$C$332)^'1 Données d''entrée'!$C$333)/((1+'1 Données d''entrée'!$C$332)^'1 Données d''entrée'!$C$333-1),0))","v":0},{"$f":"IF(O617<'1 Données d''entrée'!$C$334+1,0,IF(O617<'1 Données d''entrée'!$C$333+'1 Données d''entrée'!$C$334+1,$B636*('1 Données d''entrée'!$C$332*(1+'1 Données d''entrée'!$C$332)^'1 Données d''entrée'!$C$333)/((1+'1 Données d''entrée'!$C$332)^'1 Données d''entrée'!$C$333-1),0))","v":0},{"$f":"IF(P617<'1 Données d''entrée'!$C$334+1,0,IF(P617<'1 Données d''entrée'!$C$333+'1 Données d''entrée'!$C$334+1,$B636*('1 Données d''entrée'!$C$332*(1+'1 Données d''entrée'!$C$332)^'1 Données d''entrée'!$C$333)/((1+'1 Données d''entrée'!$C$332)^'1 Données d''entrée'!$C$333-1),0))","v":0},{"$f":"IF(Q617<'1 Données d''entrée'!$C$334+1,0,IF(Q617<'1 Données d''entrée'!$C$333+'1 Données d''entrée'!$C$334+1,$B636*('1 Données d''entrée'!$C$332*(1+'1 Données d''entrée'!$C$332)^'1 Données d''entrée'!$C$333)/((1+'1 Données d''entrée'!$C$332)^'1 Données d''entrée'!$C$333-1),0))","v":0},{"$f":"IF(R617<'1 Données d''entrée'!$C$334+1,0,IF(R617<'1 Données d''entrée'!$C$333+'1 Données d''entrée'!$C$334+1,$B636*('1 Données d''entrée'!$C$332*(1+'1 Données d''entrée'!$C$332)^'1 Données d''entrée'!$C$333)/((1+'1 Données d''entrée'!$C$332)^'1 Données d''entrée'!$C$333-1),0))","v":0},{"$f":"IF(S617<'1 Données d''entrée'!$C$334+1,0,IF(S617<'1 Données d''entrée'!$C$333+'1 Données d''entrée'!$C$334+1,$B636*('1 Données d''entrée'!$C$332*(1+'1 Données d''entrée'!$C$332)^'1 Données d''entrée'!$C$333)/((1+'1 Données d''entrée'!$C$332)^'1 Données d''entrée'!$C$333-1),0))","v":0},{"$f":"IF(T617<'1 Données d''entrée'!$C$334+1,0,IF(T617<'1 Données d''entrée'!$C$333+'1 Données d''entrée'!$C$334+1,$B636*('1 Données d''entrée'!$C$332*(1+'1 Données d''entrée'!$C$332)^'1 Données d''entrée'!$C$333)/((1+'1 Données d''entrée'!$C$332)^'1 Données d''entrée'!$C$333-1),0))","v":0},{"$f":"IF(U617<'1 Données d''entrée'!$C$334+1,0,IF(U617<'1 Données d''entrée'!$C$333+'1 Données d''entrée'!$C$334+1,$B636*('1 Données d''entrée'!$C$332*(1+'1 Données d''entrée'!$C$332)^'1 Données d''entrée'!$C$333)/((1+'1 Données d''entrée'!$C$332)^'1 Données d''entrée'!$C$333-1),0))","v":0},{"$f":"IF(V617<'1 Données d''entrée'!$C$334+1,0,IF(V617<'1 Données d''entrée'!$C$333+'1 Données d''entrée'!$C$334+1,$B636*('1 Données d''entrée'!$C$332*(1+'1 Données d''entrée'!$C$332)^'1 Données d''entrée'!$C$333)/((1+'1 Données d''entrée'!$C$332)^'1 Données d''entrée'!$C$333-1),0))","v":0}]
["Paiement d'intérêt décroissant inclu dans l'annuité constante",0,{"$f":"IF('1 Données d''entrée'!$C$336=\"(=NON)\",IF(C637>0,$B636*((('1 Données d''entrée'!$C$332+1)^'1 Données d''entrée'!$C$333)-(1+'1 Données d''entrée'!$C$332)^('6 Financement'!C$54-1-'1 Données d''entrée'!$C$334))/((1+'1 Données d''entrée'!$C$332)^'1 Données d''entrée'!$C$333-1)*'1 Données d''entrée'!$C$332,0),IF(C617<'1 Données d''entrée'!$C$334+1,'1 Données d''entrée'!$C$332*'6 Financement'!$B636,IF(C637>0,$B$73*((('1 Données d''entrée'!$C$332+1)^'1 Données d''entrée'!$C$333)-(1+'1 Données d''entrée'!$C$332)^('6 Financement'!C$54-1-'1 Données d''entrée'!$C$334))/((1+'1 Données d''entrée'!$C$332)^'1 Données d''entrée'!$C$333-1)*'1 Données d''entrée'!$C$332,0)))","v":0},{"$f":"IF('1 Données d''entrée'!$C$336=\"(=NON)\",IF(D637>0,$B636*((('1 Données d''entrée'!$C$332+1)^'1 Données d''entrée'!$C$333)-(1+'1 Données d''entrée'!$C$332)^('6 Financement'!D$54-1-'1 Données d''entrée'!$C$334))/((1+'1 Données d''entrée'!$C$332)^'1 Données d''entrée'!$C$333-1)*'1 Données d''entrée'!$C$332,0),IF(D617<'1 Données d''entrée'!$C$334+1,'1 Données d''entrée'!$C$332*'6 Financement'!$B636,IF(D637>0,$B$73*((('1 Données d''entrée'!$C$332+1)^'1 Données d''entrée'!$C$333)-(1+'1 Données d''entrée'!$C$332)^('6 Financement'!D$54-1-'1 Données d''entrée'!$C$334))/((1+'1 Données d''entrée'!$C$332)^'1 Données d''entrée'!$C$333-1)*'1 Données d''entrée'!$C$332,0)))","v":0},{"$f":"IF('1 Données d''entrée'!$C$336=\"(=NON)\",IF(E637>0,$B636*((('1 Données d''entrée'!$C$332+1)^'1 Données d''entrée'!$C$333)-(1+'1 Données d''entrée'!$C$332)^('6 Financement'!E$54-1-'1 Données d''entrée'!$C$334))/((1+'1 Données d''entrée'!$C$332)^'1 Données d''entrée'!$C$333-1)*'1 Données d''entrée'!$C$332,0),IF(E617<'1 Données d''entrée'!$C$334+1,'1 Données d''entrée'!$C$332*'6 Financement'!$B636,IF(E637>0,$B$73*((('1 Données d''entrée'!$C$332+1)^'1 Données d''entrée'!$C$333)-(1+'1 Données d''entrée'!$C$332)^('6 Financement'!E$54-1-'1 Données d''entrée'!$C$334))/((1+'1 Données d''entrée'!$C$332)^'1 Données d''entrée'!$C$333-1)*'1 Données d''entrée'!$C$332,0)))","v":0},{"$f":"IF('1 Données d''entrée'!$C$336=\"(=NON)\",IF(F637>0,$B636*((('1 Données d''entrée'!$C$332+1)^'1 Données d''entrée'!$C$333)-(1+'1 Données d''entrée'!$C$332)^('6 Financement'!F$54-1-'1 Données d''entrée'!$C$334))/((1+'1 Données d''entrée'!$C$332)^'1 Données d''entrée'!$C$333-1)*'1 Données d''entrée'!$C$332,0),IF(F617<'1 Données d''entrée'!$C$334+1,'1 Données d''entrée'!$C$332*'6 Financement'!$B636,IF(F637>0,$B$73*((('1 Données d''entrée'!$C$332+1)^'1 Données d''entrée'!$C$333)-(1+'1 Données d''entrée'!$C$332)^('6 Financement'!F$54-1-'1 Données d''entrée'!$C$334))/((1+'1 Données d''entrée'!$C$332)^'1 Données d''entrée'!$C$333-1)*'1 Données d''entrée'!$C$332,0)))","v":0},{"$f":"IF('1 Données d''entrée'!$C$336=\"(=NON)\",IF(G637>0,$B636*((('1 Données d''entrée'!$C$332+1)^'1 Données d''entrée'!$C$333)-(1+'1 Données d''entrée'!$C$332)^('6 Financement'!G$54-1-'1 Données d''entrée'!$C$334))/((1+'1 Données d''entrée'!$C$332)^'1 Données d''entrée'!$C$333-1)*'1 Données d''entrée'!$C$332,0),IF(G617<'1 Données d''entrée'!$C$334+1,'1 Données d''entrée'!$C$332*'6 Financement'!$B636,IF(G637>0,$B$73*((('1 Données d''entrée'!$C$332+1)^'1 Données d''entrée'!$C$333)-(1+'1 Données d''entrée'!$C$332)^('6 Financement'!G$54-1-'1 Données d''entrée'!$C$334))/((1+'1 Données d''entrée'!$C$332)^'1 Données d''entrée'!$C$333-1)*'1 Données d''entrée'!$C$332,0)))","v":0},{"$f":"IF('1 Données d''entrée'!$C$336=\"(=NON)\",IF(H637>0,$B636*((('1 Données d''entrée'!$C$332+1)^'1 Données d''entrée'!$C$333)-(1+'1 Données d''entrée'!$C$332)^('6 Financement'!H$54-1-'1 Données d''entrée'!$C$334))/((1+'1 Données d''entrée'!$C$332)^'1 Données d''entrée'!$C$333-1)*'1 Données d''entrée'!$C$332,0),IF(H617<'1 Données d''entrée'!$C$334+1,'1 Données d''entrée'!$C$332*'6 Financement'!$B636,IF(H637>0,$B$73*((('1 Données d''entrée'!$C$332+1)^'1 Données d''entrée'!$C$333)-(1+'1 Données d''entrée'!$C$332)^('6 Financement'!H$54-1-'1 Données d''entrée'!$C$334))/((1+'1 Données d''entrée'!$C$332)^'1 Données d''entrée'!$C$333-1)*'1 Données d''entrée'!$C$332,0)))","v":0},{"$f":"IF('1 Données d''entrée'!$C$336=\"(=NON)\",IF(I637>0,$B636*((('1 Données d''entrée'!$C$332+1)^'1 Données d''entrée'!$C$333)-(1+'1 Données d''entrée'!$C$332)^('6 Financement'!I$54-1-'1 Données d''entrée'!$C$334))/((1+'1 Données d''entrée'!$C$332)^'1 Données d''entrée'!$C$333-1)*'1 Données d''entrée'!$C$332,0),IF(I617<'1 Données d''entrée'!$C$334+1,'1 Données d''entrée'!$C$332*'6 Financement'!$B636,IF(I637>0,$B$73*((('1 Données d''entrée'!$C$332+1)^'1 Données d''entrée'!$C$333)-(1+'1 Données d''entrée'!$C$332)^('6 Financement'!I$54-1-'1 Données d''entrée'!$C$334))/((1+'1 Données d''entrée'!$C$332)^'1 Données d''entrée'!$C$333-1)*'1 Données d''entrée'!$C$332,0)))","v":0},{"$f":"IF('1 Données d''entrée'!$C$336=\"(=NON)\",IF(J637>0,$B636*((('1 Données d''entrée'!$C$332+1)^'1 Données d''entrée'!$C$333)-(1+'1 Données d''entrée'!$C$332)^('6 Financement'!J$54-1-'1 Données d''entrée'!$C$334))/((1+'1 Données d''entrée'!$C$332)^'1 Données d''entrée'!$C$333-1)*'1 Données d''entrée'!$C$332,0),IF(J617<'1 Données d''entrée'!$C$334+1,'1 Données d''entrée'!$C$332*'6 Financement'!$B636,IF(J637>0,$B$73*((('1 Données d''entrée'!$C$332+1)^'1 Données d''entrée'!$C$333)-(1+'1 Données d''entrée'!$C$332)^('6 Financement'!J$54-1-'1 Données d''entrée'!$C$334))/((1+'1 Données d''entrée'!$C$332)^'1 Données d''entrée'!$C$333-1)*'1 Données d''entrée'!$C$332,0)))","v":0},{"$f":"IF('1 Données d''entrée'!$C$336=\"(=NON)\",IF(K637>0,$B636*((('1 Données d''entrée'!$C$332+1)^'1 Données d''entrée'!$C$333)-(1+'1 Données d''entrée'!$C$332)^('6 Financement'!K$54-1-'1 Données d''entrée'!$C$334))/((1+'1 Données d''entrée'!$C$332)^'1 Données d''entrée'!$C$333-1)*'1 Données d''entrée'!$C$332,0),IF(K617<'1 Données d''entrée'!$C$334+1,'1 Données d''entrée'!$C$332*'6 Financement'!$B636,IF(K637>0,$B$73*((('1 Données d''entrée'!$C$332+1)^'1 Données d''entrée'!$C$333)-(1+'1 Données d''entrée'!$C$332)^('6 Financement'!K$54-1-'1 Données d''entrée'!$C$334))/((1+'1 Données d''entrée'!$C$332)^'1 Données d''entrée'!$C$333-1)*'1 Données d''entrée'!$C$332,0)))","v":0},{"$f":"IF('1 Données d''entrée'!$C$336=\"(=NON)\",IF(L637>0,$B636*((('1 Données d''entrée'!$C$332+1)^'1 Données d''entrée'!$C$333)-(1+'1 Données d''entrée'!$C$332)^('6 Financement'!L$54-1-'1 Données d''entrée'!$C$334))/((1+'1 Données d''entrée'!$C$332)^'1 Données d''entrée'!$C$333-1)*'1 Données d''entrée'!$C$332,0),IF(L617<'1 Données d''entrée'!$C$334+1,'1 Données d''entrée'!$C$332*'6 Financement'!$B636,IF(L637>0,$B$73*((('1 Données d''entrée'!$C$332+1)^'1 Données d''entrée'!$C$333)-(1+'1 Données d''entrée'!$C$332)^('6 Financement'!L$54-1-'1 Données d''entrée'!$C$334))/((1+'1 Données d''entrée'!$C$332)^'1 Données d''entrée'!$C$333-1)*'1 Données d''entrée'!$C$332,0)))","v":0},{"$f":"IF('1 Données d''entrée'!$C$336=\"(=NON)\",IF(M637>0,$B636*((('1 Données d''entrée'!$C$332+1)^'1 Données d''entrée'!$C$333)-(1+'1 Données d''entrée'!$C$332)^('6 Financement'!M$54-1-'1 Données d''entrée'!$C$334))/((1+'1 Données d''entrée'!$C$332)^'1 Données d''entrée'!$C$333-1)*'1 Données d''entrée'!$C$332,0),IF(M617<'1 Données d''entrée'!$C$334+1,'1 Données d''entrée'!$C$332*'6 Financement'!$B636,IF(M637>0,$B$73*((('1 Données d''entrée'!$C$332+1)^'1 Données d''entrée'!$C$333)-(1+'1 Données d''entrée'!$C$332)^('6 Financement'!M$54-1-'1 Données d''entrée'!$C$334))/((1+'1 Données d''entrée'!$C$332)^'1 Données d''entrée'!$C$333-1)*'1 Données d''entrée'!$C$332,0)))","v":0},{"$f":"IF('1 Données d''entrée'!$C$336=\"(=NON)\",IF(N637>0,$B636*((('1 Données d''entrée'!$C$332+1)^'1 Données d''entrée'!$C$333)-(1+'1 Données d''entrée'!$C$332)^('6 Financement'!N$54-1-'1 Données d''entrée'!$C$334))/((1+'1 Données d''entrée'!$C$332)^'1 Données d''entrée'!$C$333-1)*'1 Données d''entrée'!$C$332,0),IF(N617<'1 Données d''entrée'!$C$334+1,'1 Données d''entrée'!$C$332*'6 Financement'!$B636,IF(N637>0,$B$73*((('1 Données d''entrée'!$C$332+1)^'1 Données d''entrée'!$C$333)-(1+'1 Données d''entrée'!$C$332)^('6 Financement'!N$54-1-'1 Données d''entrée'!$C$334))/((1+'1 Données d''entrée'!$C$332)^'1 Données d''entrée'!$C$333-1)*'1 Données d''entrée'!$C$332,0)))","v":0},{"$f":"IF('1 Données d''entrée'!$C$336=\"(=NON)\",IF(O637>0,$B636*((('1 Données d''entrée'!$C$332+1)^'1 Données d''entrée'!$C$333)-(1+'1 Données d''entrée'!$C$332)^('6 Financement'!O$54-1-'1 Données d''entrée'!$C$334))/((1+'1 Données d''entrée'!$C$332)^'1 Données d''entrée'!$C$333-1)*'1 Données d''entrée'!$C$332,0),IF(O617<'1 Données d''entrée'!$C$334+1,'1 Données d''entrée'!$C$332*'6 Financement'!$B636,IF(O637>0,$B$73*((('1 Données d''entrée'!$C$332+1)^'1 Données d''entrée'!$C$333)-(1+'1 Données d''entrée'!$C$332)^('6 Financement'!O$54-1-'1 Données d''entrée'!$C$334))/((1+'1 Données d''entrée'!$C$332)^'1 Données d''entrée'!$C$333-1)*'1 Données d''entrée'!$C$332,0)))","v":0},{"$f":"IF('1 Données d''entrée'!$C$336=\"(=NON)\",IF(P637>0,$B636*((('1 Données d''entrée'!$C$332+1)^'1 Données d''entrée'!$C$333)-(1+'1 Données d''entrée'!$C$332)^('6 Financement'!P$54-1-'1 Données d''entrée'!$C$334))/((1+'1 Données d''entrée'!$C$332)^'1 Données d''entrée'!$C$333-1)*'1 Données d''entrée'!$C$332,0),IF(P617<'1 Données d''entrée'!$C$334+1,'1 Données d''entrée'!$C$332*'6 Financement'!$B636,IF(P637>0,$B$73*((('1 Données d''entrée'!$C$332+1)^'1 Données d''entrée'!$C$333)-(1+'1 Données d''entrée'!$C$332)^('6 Financement'!P$54-1-'1 Données d''entrée'!$C$334))/((1+'1 Données d''entrée'!$C$332)^'1 Données d''entrée'!$C$333-1)*'1 Données d''entrée'!$C$332,0)))","v":0},{"$f":"IF('1 Données d''entrée'!$C$336=\"(=NON)\",IF(Q637>0,$B636*((('1 Données d''entrée'!$C$332+1)^'1 Données d''entrée'!$C$333)-(1+'1 Données d''entrée'!$C$332)^('6 Financement'!Q$54-1-'1 Données d''entrée'!$C$334))/((1+'1 Données d''entrée'!$C$332)^'1 Données d''entrée'!$C$333-1)*'1 Données d''entrée'!$C$332,0),IF(Q617<'1 Données d''entrée'!$C$334+1,'1 Données d''entrée'!$C$332*'6 Financement'!$B636,IF(Q637>0,$B$73*((('1 Données d''entrée'!$C$332+1)^'1 Données d''entrée'!$C$333)-(1+'1 Données d''entrée'!$C$332)^('6 Financement'!Q$54-1-'1 Données d''entrée'!$C$334))/((1+'1 Données d''entrée'!$C$332)^'1 Données d''entrée'!$C$333-1)*'1 Données d''entrée'!$C$332,0)))","v":0},{"$f":"IF('1 Données d''entrée'!$C$336=\"(=NON)\",IF(R637>0,$B636*((('1 Données d''entrée'!$C$332+1)^'1 Données d''entrée'!$C$333)-(1+'1 Données d''entrée'!$C$332)^('6 Financement'!R$54-1-'1 Données d''entrée'!$C$334))/((1+'1 Données d''entrée'!$C$332)^'1 Données d''entrée'!$C$333-1)*'1 Données d''entrée'!$C$332,0),IF(R617<'1 Données d''entrée'!$C$334+1,'1 Données d''entrée'!$C$332*'6 Financement'!$B636,IF(R637>0,$B$73*((('1 Données d''entrée'!$C$332+1)^'1 Données d''entrée'!$C$333)-(1+'1 Données d''entrée'!$C$332)^('6 Financement'!R$54-1-'1 Données d''entrée'!$C$334))/((1+'1 Données d''entrée'!$C$332)^'1 Données d''entrée'!$C$333-1)*'1 Données d''entrée'!$C$332,0)))","v":0},{"$f":"IF('1 Données d''entrée'!$C$336=\"(=NON)\",IF(S637>0,$B636*((('1 Données d''entrée'!$C$332+1)^'1 Données d''entrée'!$C$333)-(1+'1 Données d''entrée'!$C$332)^('6 Financement'!S$54-1-'1 Données d''entrée'!$C$334))/((1+'1 Données d''entrée'!$C$332)^'1 Données d''entrée'!$C$333-1)*'1 Données d''entrée'!$C$332,0),IF(S617<'1 Données d''entrée'!$C$334+1,'1 Données d''entrée'!$C$332*'6 Financement'!$B636,IF(S637>0,$B$73*((('1 Données d''entrée'!$C$332+1)^'1 Données d''entrée'!$C$333)-(1+'1 Données d''entrée'!$C$332)^('6 Financement'!S$54-1-'1 Données d''entrée'!$C$334))/((1+'1 Données d''entrée'!$C$332)^'1 Données d''entrée'!$C$333-1)*'1 Données d''entrée'!$C$332,0)))","v":0},{"$f":"IF('1 Données d''entrée'!$C$336=\"(=NON)\",IF(T637>0,$B636*((('1 Données d''entrée'!$C$332+1)^'1 Données d''entrée'!$C$333)-(1+'1 Données d''entrée'!$C$332)^('6 Financement'!T$54-1-'1 Données d''entrée'!$C$334))/((1+'1 Données d''entrée'!$C$332)^'1 Données d''entrée'!$C$333-1)*'1 Données d''entrée'!$C$332,0),IF(T617<'1 Données d''entrée'!$C$334+1,'1 Données d''entrée'!$C$332*'6 Financement'!$B636,IF(T637>0,$B$73*((('1 Données d''entrée'!$C$332+1)^'1 Données d''entrée'!$C$333)-(1+'1 Données d''entrée'!$C$332)^('6 Financement'!T$54-1-'1 Données d''entrée'!$C$334))/((1+'1 Données d''entrée'!$C$332)^'1 Données d''entrée'!$C$333-1)*'1 Données d''entrée'!$C$332,0)))","v":0},{"$f":"IF('1 Données d''entrée'!$C$336=\"(=NON)\",IF(U637>0,$B636*((('1 Données d''entrée'!$C$332+1)^'1 Données d''entrée'!$C$333)-(1+'1 Données d''entrée'!$C$332)^('6 Financement'!U$54-1-'1 Données d''entrée'!$C$334))/((1+'1 Données d''entrée'!$C$332)^'1 Données d''entrée'!$C$333-1)*'1 Données d''entrée'!$C$332,0),IF(U617<'1 Données d''entrée'!$C$334+1,'1 Données d''entrée'!$C$332*'6 Financement'!$B636,IF(U637>0,$B$73*((('1 Données d''entrée'!$C$332+1)^'1 Données d''entrée'!$C$333)-(1+'1 Données d''entrée'!$C$332)^('6 Financement'!U$54-1-'1 Données d''entrée'!$C$334))/((1+'1 Données d''entrée'!$C$332)^'1 Données d''entrée'!$C$333-1)*'1 Données d''entrée'!$C$332,0)))","v":0},{"$f":"IF('1 Données d''entrée'!$C$336=\"(=NON)\",IF(V637>0,$B636*((('1 Données d''entrée'!$C$332+1)^'1 Données d''entrée'!$C$333)-(1+'1 Données d''entrée'!$C$332)^('6 Financement'!V$54-1-'1 Données d''entrée'!$C$334))/((1+'1 Données d''entrée'!$C$332)^'1 Données d''entrée'!$C$333-1)*'1 Données d''entrée'!$C$332,0),IF(V617<'1 Données d''entrée'!$C$334+1,'1 Données d''entrée'!$C$332*'6 Financement'!$B636,IF(V637>0,$B$73*((('1 Données d''entrée'!$C$332+1)^'1 Données d''entrée'!$C$333)-(1+'1 Données d''entrée'!$C$332)^('6 Financement'!V$54-1-'1 Données d''entrée'!$C$334))/((1+'1 Données d''entrée'!$C$332)^'1 Données d''entrée'!$C$333-1)*'1 Données d''entrée'!$C$332,0)))","v":0}]
["Paiements d'intérêt avec des intérêts composés en cas d'absence des paiements dans la période de grâce",0,0,{"$f":"IF(D617='1 Données d''entrée'!$C$334+1,IF('1 Données d''entrée'!$C$336=\"(=NON)\",($B636*'1 Données d''entrée'!$C$332)*((('1 Données d''entrée'!$C$332+1)^'1 Données d''entrée'!$C$334-1)/('1 Données d''entrée'!$C$332))*(1+'1 Données d''entrée'!$C$332),0),0)","v":0},{"$f":"IF(E617='1 Données d''entrée'!$C$334+1,IF('1 Données d''entrée'!$C$336=\"(=NON)\",($B636*'1 Données d''entrée'!$C$332)*((('1 Données d''entrée'!$C$332+1)^'1 Données d''entrée'!$C$334-1)/('1 Données d''entrée'!$C$332))*(1+'1 Données d''entrée'!$C$332),0),0)","v":0},{"$f":"IF(F617='1 Données d''entrée'!$C$334+1,IF('1 Données d''entrée'!$C$336=\"(=NON)\",($B636*'1 Données d''entrée'!$C$332)*((('1 Données d''entrée'!$C$332+1)^'1 Données d''entrée'!$C$334-1)/('1 Données d''entrée'!$C$332))*(1+'1 Données d''entrée'!$C$332),0),0)","v":0},{"$f":"IF(G617='1 Données d''entrée'!$C$334+1,IF('1 Données d''entrée'!$C$336=\"(=NON)\",($B636*'1 Données d''entrée'!$C$332)*((('1 Données d''entrée'!$C$332+1)^'1 Données d''entrée'!$C$334-1)/('1 Données d''entrée'!$C$332))*(1+'1 Données d''entrée'!$C$332),0),0)","v":0},{"$f":"IF(H617='1 Données d''entrée'!$C$334+1,IF('1 Données d''entrée'!$C$336=\"(=NON)\",($B636*'1 Données d''entrée'!$C$332)*((('1 Données d''entrée'!$C$332+1)^'1 Données d''entrée'!$C$334-1)/('1 Données d''entrée'!$C$332))*(1+'1 Données d''entrée'!$C$332),0),0)","v":0},{"$f":"IF(I617='1 Données d''entrée'!$C$334+1,IF('1 Données d''entrée'!$C$336=\"(=NON)\",($B636*'1 Données d''entrée'!$C$332)*((('1 Données d''entrée'!$C$332+1)^'1 Données d''entrée'!$C$334-1)/('1 Données d''entrée'!$C$332))*(1+'1 Données d''entrée'!$C$332),0),0)","v":0},{"$f":"IF(J617='1 Données d''entrée'!$C$334+1,IF('1 Données d''entrée'!$C$336=\"(=NON)\",($B636*'1 Données d''entrée'!$C$332)*((('1 Données d''entrée'!$C$332+1)^'1 Données d''entrée'!$C$334-1)/('1 Données d''entrée'!$C$332))*(1+'1 Données d''entrée'!$C$332),0),0)","v":0},{"$f":"IF(K617='1 Données d''entrée'!$C$334+1,IF('1 Données d''entrée'!$C$336=\"(=NON)\",($B636*'1 Données d''entrée'!$C$332)*((('1 Données d''entrée'!$C$332+1)^'1 Données d''entrée'!$C$334-1)/('1 Données d''entrée'!$C$332))*(1+'1 Données d''entrée'!$C$332),0),0)","v":0},{"$f":"IF(L617='1 Données d''entrée'!$C$334+1,IF('1 Données d''entrée'!$C$336=\"(=NON)\",($B636*'1 Données d''entrée'!$C$332)*((('1 Données d''entrée'!$C$332+1)^'1 Données d''entrée'!$C$334-1)/('1 Données d''entrée'!$C$332))*(1+'1 Données d''entrée'!$C$332),0),0)","v":0},{"$f":"IF(M617='1 Données d''entrée'!$C$334+1,IF('1 Données d''entrée'!$C$336=\"(=NON)\",($B636*'1 Données d''entrée'!$C$332)*((('1 Données d''entrée'!$C$332+1)^'1 Données d''entrée'!$C$334-1)/('1 Données d''entrée'!$C$332))*(1+'1 Données d''entrée'!$C$332),0),0)","v":0},{"$f":"IF(N617='1 Données d''entrée'!$C$334+1,IF('1 Données d''entrée'!$C$336=\"(=NON)\",($B636*'1 Données d''entrée'!$C$332)*((('1 Données d''entrée'!$C$332+1)^'1 Données d''entrée'!$C$334-1)/('1 Données d''entrée'!$C$332))*(1+'1 Données d''entrée'!$C$332),0),0)","v":0},{"$f":"IF(O617='1 Données d''entrée'!$C$334+1,IF('1 Données d''entrée'!$C$336=\"(=NON)\",($B636*'1 Données d''entrée'!$C$332)*((('1 Données d''entrée'!$C$332+1)^'1 Données d''entrée'!$C$334-1)/('1 Données d''entrée'!$C$332))*(1+'1 Données d''entrée'!$C$332),0),0)","v":0},{"$f":"IF(P617='1 Données d''entrée'!$C$334+1,IF('1 Données d''entrée'!$C$336=\"(=NON)\",($B636*'1 Données d''entrée'!$C$332)*((('1 Données d''entrée'!$C$332+1)^'1 Données d''entrée'!$C$334-1)/('1 Données d''entrée'!$C$332))*(1+'1 Données d''entrée'!$C$332),0),0)","v":0},{"$f":"IF(Q617='1 Données d''entrée'!$C$334+1,IF('1 Données d''entrée'!$C$336=\"(=NON)\",($B636*'1 Données d''entrée'!$C$332)*((('1 Données d''entrée'!$C$332+1)^'1 Données d''entrée'!$C$334-1)/('1 Données d''entrée'!$C$332))*(1+'1 Données d''entrée'!$C$332),0),0)","v":0},{"$f":"IF(R617='1 Données d''entrée'!$C$334+1,IF('1 Données d''entrée'!$C$336=\"(=NON)\",($B636*'1 Données d''entrée'!$C$332)*((('1 Données d''entrée'!$C$332+1)^'1 Données d''entrée'!$C$334-1)/('1 Données d''entrée'!$C$332))*(1+'1 Données d''entrée'!$C$332),0),0)","v":0},{"$f":"IF(S617='1 Données d''entrée'!$C$334+1,IF('1 Données d''entrée'!$C$336=\"(=NON)\",($B636*'1 Données d''entrée'!$C$332)*((('1 Données d''entrée'!$C$332+1)^'1 Données d''entrée'!$C$334-1)/('1 Données d''entrée'!$C$332))*(1+'1 Données d''entrée'!$C$332),0),0)","v":0},{"$f":"IF(T617='1 Données d''entrée'!$C$334+1,IF('1 Données d''entrée'!$C$336=\"(=NON)\",($B636*'1 Données d''entrée'!$C$332)*((('1 Données d''entrée'!$C$332+1)^'1 Données d''entrée'!$C$334-1)/('1 Données d''entrée'!$C$332))*(1+'1 Données d''entrée'!$C$332),0),0)","v":0},{"$f":"IF(U617='1 Données d''entrée'!$C$334+1,IF('1 Données d''entrée'!$C$336=\"(=NON)\",($B636*'1 Données d''entrée'!$C$332)*((('1 Données d''entrée'!$C$332+1)^'1 Données d''entrée'!$C$334-1)/('1 Données d''entrée'!$C$332))*(1+'1 Données d''entrée'!$C$332),0),0)","v":0},{"$f":"IF(V617='1 Données d''entrée'!$C$334+1,IF('1 Données d''entrée'!$C$336=\"(=NON)\",($B636*'1 Données d''entrée'!$C$332)*((('1 Données d''entrée'!$C$332+1)^'1 Données d''entrée'!$C$334-1)/('1 Données d''entrée'!$C$332))*(1+'1 Données d''entrée'!$C$332),0),0)","v":0}]
[]
["Fonds d'autres donneurs / investisseurs - Subvention",{"$f":"'1 Données d''entrée'!$B$307","v":0}]
["Fonds d'autre donneurs / investisseurs - Prêt; Option 1: Remboursement du principal fractionné",{"$f":"'1 Données d''entrée'!$B$319","v":0},"% de prêt total"]
["Réception et montant restant",{"$f":"'1 Données d''entrée'!$B$306*'1 Données d''entrée'!$B$319+'1 Données d''entrée'!$B$306*'1 Données d''entrée'!$C$316","v":0},{"$f":"B643-C644","v":0},{"$f":"C643-D644","v":0},0,0,0,0,0,0,0,0,0,0,0,0,0,0,0,0,0,0]
["Remboursement du principal",0,{"$f":"IF(C617<'1 Données d''entrée'!$C$312+1,0,IF(C617<'1 Données d''entrée'!$C$312+'1 Données d''entrée'!$C$311+1,($B643/'1 Données d''entrée'!$C$311),0))","v":0},{"$f":"IF(D617<'1 Données d''entrée'!$C$312+1,0,IF(D617<'1 Données d''entrée'!$C$312+'1 Données d''entrée'!$C$311+1,($B643/'1 Données d''entrée'!$C$311),0))","v":0},{"$f":"IF(E617<'1 Données d''entrée'!$C$312+1,0,IF(E617<'1 Données d''entrée'!$C$312+'1 Données d''entrée'!$C$311+1,($B643/'1 Données d''entrée'!$C$311),0))","v":0},{"$f":"IF(F617<'1 Données d''entrée'!$C$312+1,0,IF(F617<'1 Données d''entrée'!$C$312+'1 Données d''entrée'!$C$311+1,($B643/'1 Données d''entrée'!$C$311),0))","v":0},{"$f":"IF(G617<'1 Données d''entrée'!$C$312+1,0,IF(G617<'1 Données d''entrée'!$C$312+'1 Données d''entrée'!$C$311+1,($B643/'1 Données d''entrée'!$C$311),0))","v":0},{"$f":"IF(H617<'1 Données d''entrée'!$C$312+1,0,IF(H617<'1 Données d''entrée'!$C$312+'1 Données d''entrée'!$C$311+1,($B643/'1 Données d''entrée'!$C$311),0))","v":0},{"$f":"IF(I617<'1 Données d''entrée'!$C$312+1,0,IF(I617<'1 Données d''entrée'!$C$312+'1 Données d''entrée'!$C$311+1,($B643/'1 Données d''entrée'!$C$311),0))","v":0},{"$f":"IF(J617<'1 Données d''entrée'!$C$312+1,0,IF(J617<'1 Données d''entrée'!$C$312+'1 Données d''entrée'!$C$311+1,($B643/'1 Données d''entrée'!$C$311),0))","v":0},{"$f":"IF(K617<'1 Données d''entrée'!$C$312+1,0,IF(K617<'1 Données d''entrée'!$C$312+'1 Données d''entrée'!$C$311+1,($B643/'1 Données d''entrée'!$C$311),0))","v":0},{"$f":"IF(L617<'1 Données d''entrée'!$C$312+1,0,IF(L617<'1 Données d''entrée'!$C$312+'1 Données d''entrée'!$C$311+1,($B643/'1 Données d''entrée'!$C$311),0))","v":0},{"$f":"IF(M617<'1 Données d''entrée'!$C$312+1,0,IF(M617<'1 Données d''entrée'!$C$312+'1 Données d''entrée'!$C$311+1,($B643/'1 Données d''entrée'!$C$311),0))","v":0},{"$f":"IF(N617<'1 Données d''entrée'!$C$312+1,0,IF(N617<'1 Données d''entrée'!$C$312+'1 Données d''entrée'!$C$311+1,($B643/'1 Données d''entrée'!$C$311),0))","v":0},{"$f":"IF(O617<'1 Données d''entrée'!$C$312+1,0,IF(O617<'1 Données d''entrée'!$C$312+'1 Données d''entrée'!$C$311+1,($B643/'1 Données d''entrée'!$C$311),0))","v":0},{"$f":"IF(P617<'1 Données d''entrée'!$C$312+1,0,IF(P617<'1 Données d''entrée'!$C$312+'1 Données d''entrée'!$C$311+1,($B643/'1 Données d''entrée'!$C$311),0))","v":0},{"$f":"IF(Q617<'1 Données d''entrée'!$C$312+1,0,IF(Q617<'1 Données d''entrée'!$C$312+'1 Données d''entrée'!$C$311+1,($B643/'1 Données d''entrée'!$C$311),0))","v":0},{"$f":"IF(R617<'1 Données d''entrée'!$C$312+1,0,IF(R617<'1 Données d''entrée'!$C$312+'1 Données d''entrée'!$C$311+1,($B643/'1 Données d''entrée'!$C$311),0))","v":0},{"$f":"IF(S617<'1 Données d''entrée'!$C$312+1,0,IF(S617<'1 Données d''entrée'!$C$312+'1 Données d''entrée'!$C$311+1,($B643/'1 Données d''entrée'!$C$311),0))","v":0},{"$f":"IF(T617<'1 Données d''entrée'!$C$312+1,0,IF(T617<'1 Données d''entrée'!$C$312+'1 Données d''entrée'!$C$311+1,($B643/'1 Données d''entrée'!$C$311),0))","v":0},{"$f":"IF(U617<'1 Données d''entrée'!$C$312+1,0,IF(U617<'1 Données d''entrée'!$C$312+'1 Données d''entrée'!$C$311+1,($B643/'1 Données d''entrée'!$C$311),0))","v":0},{"$f":"IF(V617<'1 Données d''entrée'!$C$312+1,0,IF(V617<'1 Données d''entrée'!$C$312+'1 Données d''entrée'!$C$311+1,($B643/'1 Données d''entrée'!$C$311),0))","v":0}]
["Paiement d'intérêts",0,{"$f":"IF('1 Données d''entrée'!$C$314=\"(=NON)\",IF(C617<'1 Données d''entrée'!$C$312+1,0,B643*'1 Données d''entrée'!$C$310),B643*'1 Données d''entrée'!$C$310)","v":0},{"$f":"IF('1 Données d''entrée'!$C$314=\"(=NON)\",IF(D617<'1 Données d''entrée'!$C$312+1,0,C643*'1 Données d''entrée'!$C$310),C643*'1 Données d''entrée'!$C$310)","v":0},{"$f":"IF('1 Données d''entrée'!$C$314=\"(=NON)\",IF(E617<'1 Données d''entrée'!$C$312+1,0,D643*'1 Données d''entrée'!$C$310),D643*'1 Données d''entrée'!$C$310)","v":0},{"$f":"IF('1 Données d''entrée'!$C$314=\"(=NON)\",IF(F617<'1 Données d''entrée'!$C$312+1,0,E643*'1 Données d''entrée'!$C$310),E643*'1 Données d''entrée'!$C$310)","v":0},{"$f":"IF('1 Données d''entrée'!$C$314=\"(=NON)\",IF(G617<'1 Données d''entrée'!$C$312+1,0,F643*'1 Données d''entrée'!$C$310),F643*'1 Données d''entrée'!$C$310)","v":0},{"$f":"IF('1 Données d''entrée'!$C$314=\"(=NON)\",IF(H617<'1 Données d''entrée'!$C$312+1,0,G643*'1 Données d''entrée'!$C$310),G643*'1 Données d''entrée'!$C$310)","v":0},{"$f":"IF('1 Données d''entrée'!$C$314=\"(=NON)\",IF(I617<'1 Données d''entrée'!$C$312+1,0,H643*'1 Données d''entrée'!$C$310),H643*'1 Données d''entrée'!$C$310)","v":0},{"$f":"IF('1 Données d''entrée'!$C$314=\"(=NON)\",IF(J617<'1 Données d''entrée'!$C$312+1,0,I643*'1 Données d''entrée'!$C$310),I643*'1 Données d''entrée'!$C$310)","v":0},{"$f":"IF('1 Données d''entrée'!$C$314=\"(=NON)\",IF(K617<'1 Données d''entrée'!$C$312+1,0,J643*'1 Données d''entrée'!$C$310),J643*'1 Données d''entrée'!$C$310)","v":0},{"$f":"IF('1 Données d''entrée'!$C$314=\"(=NON)\",IF(L617<'1 Données d''entrée'!$C$312+1,0,K643*'1 Données d''entrée'!$C$310),K643*'1 Données d''entrée'!$C$310)","v":0},{"$f":"IF('1 Données d''entrée'!$C$314=\"(=NON)\",IF(M617<'1 Données d''entrée'!$C$312+1,0,L643*'1 Données d''entrée'!$C$310),L643*'1 Données d''entrée'!$C$310)","v":0},{"$f":"IF('1 Données d''entrée'!$C$314=\"(=NON)\",IF(N617<'1 Données d''entrée'!$C$312+1,0,M643*'1 Données d''entrée'!$C$310),M643*'1 Données d''entrée'!$C$310)","v":0},{"$f":"IF('1 Données d''entrée'!$C$314=\"(=NON)\",IF(O617<'1 Données d''entrée'!$C$312+1,0,N643*'1 Données d''entrée'!$C$310),N643*'1 Données d''entrée'!$C$310)","v":0},{"$f":"IF('1 Données d''entrée'!$C$314=\"(=NON)\",IF(P617<'1 Données d''entrée'!$C$312+1,0,O643*'1 Données d''entrée'!$C$310),O643*'1 Données d''entrée'!$C$310)","v":0},{"$f":"IF('1 Données d''entrée'!$C$314=\"(=NON)\",IF(Q617<'1 Données d''entrée'!$C$312+1,0,P643*'1 Données d''entrée'!$C$310),P643*'1 Données d''entrée'!$C$310)","v":0},{"$f":"IF('1 Données d''entrée'!$C$314=\"(=NON)\",IF(R617<'1 Données d''entrée'!$C$312+1,0,Q643*'1 Données d''entrée'!$C$310),Q643*'1 Données d''entrée'!$C$310)","v":0},{"$f":"IF('1 Données d''entrée'!$C$314=\"(=NON)\",IF(S617<'1 Données d''entrée'!$C$312+1,0,R643*'1 Données d''entrée'!$C$310),R643*'1 Données d''entrée'!$C$310)","v":0},{"$f":"IF('1 Données d''entrée'!$C$314=\"(=NON)\",IF(T617<'1 Données d''entrée'!$C$312+1,0,S643*'1 Données d''entrée'!$C$310),S643*'1 Données d''entrée'!$C$310)","v":0},{"$f":"IF('1 Données d''entrée'!$C$314=\"(=NON)\",IF(U617<'1 Données d''entrée'!$C$312+1,0,T643*'1 Données d''entrée'!$C$310),T643*'1 Données d''entrée'!$C$310)","v":0},{"$f":"IF('1 Données d''entrée'!$C$314=\"(=NON)\",IF(V617<'1 Données d''entrée'!$C$312+1,0,U643*'1 Données d''entrée'!$C$310),U643*'1 Données d''entrée'!$C$310)","v":0}]
["Paiements d'intérêt avec des intérêts composés en cas d'absence des paiements dans la période de grâce",0,0,{"$f":"IF(D617='1 Données d''entrée'!$C$312+1,IF('1 Données d''entrée'!$C$314=\"(=NON)\",($B643*'1 Données d''entrée'!$C$310)*((('1 Données d''entrée'!$C$310+1)^'1 Données d''entrée'!$C$312-1)/('1 Données d''entrée'!$C$310))*(1+'1 Données d''entrée'!$C$310),0),0)","v":0},{"$f":"IF(E617='1 Données d''entrée'!$C$312+1,IF('1 Données d''entrée'!$C$314=\"(=NON)\",($B643*'1 Données d''entrée'!$C$310)*((('1 Données d''entrée'!$C$310+1)^'1 Données d''entrée'!$C$312-1)/('1 Données d''entrée'!$C$310))*(1+'1 Données d''entrée'!$C$310),0),0)","v":0},{"$f":"IF(F617='1 Données d''entrée'!$C$312+1,IF('1 Données d''entrée'!$C$314=\"(=NON)\",($B643*'1 Données d''entrée'!$C$310)*((('1 Données d''entrée'!$C$310+1)^'1 Données d''entrée'!$C$312-1)/('1 Données d''entrée'!$C$310))*(1+'1 Données d''entrée'!$C$310),0),0)","v":0},{"$f":"IF(G617='1 Données d''entrée'!$C$312+1,IF('1 Données d''entrée'!$C$314=\"(=NON)\",($B643*'1 Données d''entrée'!$C$310)*((('1 Données d''entrée'!$C$310+1)^'1 Données d''entrée'!$C$312-1)/('1 Données d''entrée'!$C$310))*(1+'1 Données d''entrée'!$C$310),0),0)","v":0},{"$f":"IF(H617='1 Données d''entrée'!$C$312+1,IF('1 Données d''entrée'!$C$314=\"(=NON)\",($B643*'1 Données d''entrée'!$C$310)*((('1 Données d''entrée'!$C$310+1)^'1 Données d''entrée'!$C$312-1)/('1 Données d''entrée'!$C$310))*(1+'1 Données d''entrée'!$C$310),0),0)","v":0},{"$f":"IF(I617='1 Données d''entrée'!$C$312+1,IF('1 Données d''entrée'!$C$314=\"(=NON)\",($B643*'1 Données d''entrée'!$C$310)*((('1 Données d''entrée'!$C$310+1)^'1 Données d''entrée'!$C$312-1)/('1 Données d''entrée'!$C$310))*(1+'1 Données d''entrée'!$C$310),0),0)","v":0},{"$f":"IF(J617='1 Données d''entrée'!$C$312+1,IF('1 Données d''entrée'!$C$314=\"(=NON)\",($B643*'1 Données d''entrée'!$C$310)*((('1 Données d''entrée'!$C$310+1)^'1 Données d''entrée'!$C$312-1)/('1 Données d''entrée'!$C$310))*(1+'1 Données d''entrée'!$C$310),0),0)","v":0},{"$f":"IF(K617='1 Données d''entrée'!$C$312+1,IF('1 Données d''entrée'!$C$314=\"(=NON)\",($B643*'1 Données d''entrée'!$C$310)*((('1 Données d''entrée'!$C$310+1)^'1 Données d''entrée'!$C$312-1)/('1 Données d''entrée'!$C$310))*(1+'1 Données d''entrée'!$C$310),0),0)","v":0},{"$f":"IF(L617='1 Données d''entrée'!$C$312+1,IF('1 Données d''entrée'!$C$314=\"(=NON)\",($B643*'1 Données d''entrée'!$C$310)*((('1 Données d''entrée'!$C$310+1)^'1 Données d''entrée'!$C$312-1)/('1 Données d''entrée'!$C$310))*(1+'1 Données d''entrée'!$C$310),0),0)","v":0},{"$f":"IF(M617='1 Données d''entrée'!$C$312+1,IF('1 Données d''entrée'!$C$314=\"(=NON)\",($B643*'1 Données d''entrée'!$C$310)*((('1 Données d''entrée'!$C$310+1)^'1 Données d''entrée'!$C$312-1)/('1 Données d''entrée'!$C$310))*(1+'1 Données d''entrée'!$C$310),0),0)","v":0},{"$f":"IF(N617='1 Données d''entrée'!$C$312+1,IF('1 Données d''entrée'!$C$314=\"(=NON)\",($B643*'1 Données d''entrée'!$C$310)*((('1 Données d''entrée'!$C$310+1)^'1 Données d''entrée'!$C$312-1)/('1 Données d''entrée'!$C$310))*(1+'1 Données d''entrée'!$C$310),0),0)","v":0},{"$f":"IF(O617='1 Données d''entrée'!$C$312+1,IF('1 Données d''entrée'!$C$314=\"(=NON)\",($B643*'1 Données d''entrée'!$C$310)*((('1 Données d''entrée'!$C$310+1)^'1 Données d''entrée'!$C$312-1)/('1 Données d''entrée'!$C$310))*(1+'1 Données d''entrée'!$C$310),0),0)","v":0},{"$f":"IF(P617='1 Données d''entrée'!$C$312+1,IF('1 Données d''entrée'!$C$314=\"(=NON)\",($B643*'1 Données d''entrée'!$C$310)*((('1 Données d''entrée'!$C$310+1)^'1 Données d''entrée'!$C$312-1)/('1 Données d''entrée'!$C$310))*(1+'1 Données d''entrée'!$C$310),0),0)","v":0},{"$f":"IF(Q617='1 Données d''entrée'!$C$312+1,IF('1 Données d''entrée'!$C$314=\"(=NON)\",($B643*'1 Données d''entrée'!$C$310)*((('1 Données d''entrée'!$C$310+1)^'1 Données d''entrée'!$C$312-1)/('1 Données d''entrée'!$C$310))*(1+'1 Données d''entrée'!$C$310),0),0)","v":0},{"$f":"IF(R617='1 Données d''entrée'!$C$312+1,IF('1 Données d''entrée'!$C$314=\"(=NON)\",($B643*'1 Données d''entrée'!$C$310)*((('1 Données d''entrée'!$C$310+1)^'1 Données d''entrée'!$C$312-1)/('1 Données d''entrée'!$C$310))*(1+'1 Données d''entrée'!$C$310),0),0)","v":0},{"$f":"IF(S617='1 Données d''entrée'!$C$312+1,IF('1 Données d''entrée'!$C$314=\"(=NON)\",($B643*'1 Données d''entrée'!$C$310)*((('1 Données d''entrée'!$C$310+1)^'1 Données d''entrée'!$C$312-1)/('1 Données d''entrée'!$C$310))*(1+'1 Données d''entrée'!$C$310),0),0)","v":0},{"$f":"IF(T617='1 Données d''entrée'!$C$312+1,IF('1 Données d''entrée'!$C$314=\"(=NON)\",($B643*'1 Données d''entrée'!$C$310)*((('1 Données d''entrée'!$C$310+1)^'1 Données d''entrée'!$C$312-1)/('1 Données d''entrée'!$C$310))*(1+'1 Données d''entrée'!$C$310),0),0)","v":0},{"$f":"IF(U617='1 Données d''entrée'!$C$312+1,IF('1 Données d''entrée'!$C$314=\"(=NON)\",($B643*'1 Données d''entrée'!$C$310)*((('1 Données d''entrée'!$C$310+1)^'1 Données d''entrée'!$C$312-1)/('1 Données d''entrée'!$C$310))*(1+'1 Données d''entrée'!$C$310),0),0)","v":0},{"$f":"IF(V617='1 Données d''entrée'!$C$312+1,IF('1 Données d''entrée'!$C$314=\"(=NON)\",($B643*'1 Données d''entrée'!$C$310)*((('1 Données d''entrée'!$C$310+1)^'1 Données d''entrée'!$C$312-1)/('1 Données d''entrée'!$C$310))*(1+'1 Données d''entrée'!$C$310),0),0)","v":0}]
["Fonds d'autre donneurs / investisseurs - Prêt; Option 2: Remboursement du principal final",{"$f":"'1 Données d''entrée'!$B$320","v":0},"% de prêt total"]
["Réception et montant restant",{"$f":"'1 Données d''entrée'!$B$306*'1 Données d''entrée'!$B$320+'1 Données d''entrée'!$B$306*'1 Données d''entrée'!$C$316","v":0},{"$f":"B648-C649","v":0},{"$f":"C648-D649","v":0},0,0,0,0,0,0,0,0,0,0,0,0,0,0,0,0,0,0]
["Remboursement du principal",0,{"$f":"IF('1 Données d''entrée'!$C$311+'1 Données d''entrée'!$C$312=C617,'6 Financement'!$B$85,0)","v":0},{"$f":"IF('1 Données d''entrée'!$C$311+'1 Données d''entrée'!$C$312=D617,'6 Financement'!$B$85,0)","v":0},{"$f":"IF('1 Données d''entrée'!$C$311+'1 Données d''entrée'!$C$312=E617,'6 Financement'!$B$85,0)","v":0},{"$f":"IF('1 Données d''entrée'!$C$311+'1 Données d''entrée'!$C$312=F617,'6 Financement'!$B$85,0)","v":0},{"$f":"IF('1 Données d''entrée'!$C$311+'1 Données d''entrée'!$C$312=G617,'6 Financement'!$B$85,0)","v":0},{"$f":"IF('1 Données d''entrée'!$C$311+'1 Données d''entrée'!$C$312=H617,'6 Financement'!$B$85,0)","v":0},{"$f":"IF('1 Données d''entrée'!$C$311+'1 Données d''entrée'!$C$312=I617,'6 Financement'!$B$85,0)","v":0},{"$f":"IF('1 Données d''entrée'!$C$311+'1 Données d''entrée'!$C$312=J617,'6 Financement'!$B$85,0)","v":0},{"$f":"IF('1 Données d''entrée'!$C$311+'1 Données d''entrée'!$C$312=K617,'6 Financement'!$B$85,0)","v":0},{"$f":"IF('1 Données d''entrée'!$C$311+'1 Données d''entrée'!$C$312=L617,'6 Financement'!$B$85,0)","v":0},{"$f":"IF('1 Données d''entrée'!$C$311+'1 Données d''entrée'!$C$312=M617,'6 Financement'!$B$85,0)","v":0},{"$f":"IF('1 Données d''entrée'!$C$311+'1 Données d''entrée'!$C$312=N617,'6 Financement'!$B$85,0)","v":0},{"$f":"IF('1 Données d''entrée'!$C$311+'1 Données d''entrée'!$C$312=O617,'6 Financement'!$B$85,0)","v":0},{"$f":"IF('1 Données d''entrée'!$C$311+'1 Données d''entrée'!$C$312=P617,'6 Financement'!$B$85,0)","v":0},{"$f":"IF('1 Données d''entrée'!$C$311+'1 Données d''entrée'!$C$312=Q617,'6 Financement'!$B$85,0)","v":0},{"$f":"IF('1 Données d''entrée'!$C$311+'1 Données d''entrée'!$C$312=R617,'6 Financement'!$B$85,0)","v":0},{"$f":"IF('1 Données d''entrée'!$C$311+'1 Données d''entrée'!$C$312=S617,'6 Financement'!$B$85,0)","v":0},{"$f":"IF('1 Données d''entrée'!$C$311+'1 Données d''entrée'!$C$312=T617,'6 Financement'!$B$85,0)","v":0},{"$f":"IF('1 Données d''entrée'!$C$311+'1 Données d''entrée'!$C$312=U617,'6 Financement'!$B$85,0)","v":0},{"$f":"IF('1 Données d''entrée'!$C$311+'1 Données d''entrée'!$C$312=V617,'6 Financement'!$B$85,0)","v":0}]
["Paiement d'intérêts",0,{"$f":"IF('1 Données d''entrée'!$C$314=\"(=NON)\",IF(C617<'1 Données d''entrée'!$C$312+1,0,B648*'1 Données d''entrée'!$C$310),B648*'1 Données d''entrée'!$C$310)","v":0},{"$f":"IF('1 Données d''entrée'!$C$314=\"(=NON)\",IF(D617<'1 Données d''entrée'!$C$312+1,0,C648*'1 Données d''entrée'!$C$310),C648*'1 Données d''entrée'!$C$310)","v":0},{"$f":"IF('1 Données d''entrée'!$C$314=\"(=NON)\",IF(E617<'1 Données d''entrée'!$C$312+1,0,D648*'1 Données d''entrée'!$C$310),D648*'1 Données d''entrée'!$C$310)","v":0},{"$f":"IF('1 Données d''entrée'!$C$314=\"(=NON)\",IF(F617<'1 Données d''entrée'!$C$312+1,0,E648*'1 Données d''entrée'!$C$310),E648*'1 Données d''entrée'!$C$310)","v":0},{"$f":"IF('1 Données d''entrée'!$C$314=\"(=NON)\",IF(G617<'1 Données d''entrée'!$C$312+1,0,F648*'1 Données d''entrée'!$C$310),F648*'1 Données d''entrée'!$C$310)","v":0},{"$f":"IF('1 Données d''entrée'!$C$314=\"(=NON)\",IF(H617<'1 Données d''entrée'!$C$312+1,0,G648*'1 Données d''entrée'!$C$310),G648*'1 Données d''entrée'!$C$310)","v":0},{"$f":"IF('1 Données d''entrée'!$C$314=\"(=NON)\",IF(I617<'1 Données d''entrée'!$C$312+1,0,H648*'1 Données d''entrée'!$C$310),H648*'1 Données d''entrée'!$C$310)","v":0},{"$f":"IF('1 Données d''entrée'!$C$314=\"(=NON)\",IF(J617<'1 Données d''entrée'!$C$312+1,0,I648*'1 Données d''entrée'!$C$310),I648*'1 Données d''entrée'!$C$310)","v":0},{"$f":"IF('1 Données d''entrée'!$C$314=\"(=NON)\",IF(K617<'1 Données d''entrée'!$C$312+1,0,J648*'1 Données d''entrée'!$C$310),J648*'1 Données d''entrée'!$C$310)","v":0},{"$f":"IF('1 Données d''entrée'!$C$314=\"(=NON)\",IF(L617<'1 Données d''entrée'!$C$312+1,0,K648*'1 Données d''entrée'!$C$310),K648*'1 Données d''entrée'!$C$310)","v":0},{"$f":"IF('1 Données d''entrée'!$C$314=\"(=NON)\",IF(M617<'1 Données d''entrée'!$C$312+1,0,L648*'1 Données d''entrée'!$C$310),L648*'1 Données d''entrée'!$C$310)","v":0},{"$f":"IF('1 Données d''entrée'!$C$314=\"(=NON)\",IF(N617<'1 Données d''entrée'!$C$312+1,0,M648*'1 Données d''entrée'!$C$310),M648*'1 Données d''entrée'!$C$310)","v":0},{"$f":"IF('1 Données d''entrée'!$C$314=\"(=NON)\",IF(O617<'1 Données d''entrée'!$C$312+1,0,N648*'1 Données d''entrée'!$C$310),N648*'1 Données d''entrée'!$C$310)","v":0},{"$f":"IF('1 Données d''entrée'!$C$314=\"(=NON)\",IF(P617<'1 Données d''entrée'!$C$312+1,0,O648*'1 Données d''entrée'!$C$310),O648*'1 Données d''entrée'!$C$310)","v":0},{"$f":"IF('1 Données d''entrée'!$C$314=\"(=NON)\",IF(Q617<'1 Données d''entrée'!$C$312+1,0,P648*'1 Données d''entrée'!$C$310),P648*'1 Données d''entrée'!$C$310)","v":0},{"$f":"IF('1 Données d''entrée'!$C$314=\"(=NON)\",IF(R617<'1 Données d''entrée'!$C$312+1,0,Q648*'1 Données d''entrée'!$C$310),Q648*'1 Données d''entrée'!$C$310)","v":0},{"$f":"IF('1 Données d''entrée'!$C$314=\"(=NON)\",IF(S617<'1 Données d''entrée'!$C$312+1,0,R648*'1 Données d''entrée'!$C$310),R648*'1 Données d''entrée'!$C$310)","v":0},{"$f":"IF('1 Données d''entrée'!$C$314=\"(=NON)\",IF(T617<'1 Données d''entrée'!$C$312+1,0,S648*'1 Données d''entrée'!$C$310),S648*'1 Données d''entrée'!$C$310)","v":0},{"$f":"IF('1 Données d''entrée'!$C$314=\"(=NON)\",IF(U617<'1 Données d''entrée'!$C$312+1,0,T648*'1 Données d''entrée'!$C$310),T648*'1 Données d''entrée'!$C$310)","v":0},{"$f":"IF('1 Données d''entrée'!$C$314=\"(=NON)\",IF(V617<'1 Données d''entrée'!$C$312+1,0,U648*'1 Données d''entrée'!$C$310),U648*'1 Données d''entrée'!$C$310)","v":0}]
["Paiements d'intérêt avec des intérêts composés en cas d'absence des paiements dans la période de grâce",0,0,{"$f":"IF(D617='1 Données d''entrée'!$C$312+1,IF('1 Données d''entrée'!$C$314=\"(=NON)\",($B648*'1 Données d''entrée'!$C$310)*((('1 Données d''entrée'!$C$310+1)^'1 Données d''entrée'!$C$312-1)/('1 Données d''entrée'!$C$310))*(1+'1 Données d''entrée'!$C$310),0),0)","v":0},{"$f":"IF(E617='1 Données d''entrée'!$C$312+1,IF('1 Données d''entrée'!$C$314=\"(=NON)\",($B648*'1 Données d''entrée'!$C$310)*((('1 Données d''entrée'!$C$310+1)^'1 Données d''entrée'!$C$312-1)/('1 Données d''entrée'!$C$310))*(1+'1 Données d''entrée'!$C$310),0),0)","v":0},{"$f":"IF(F617='1 Données d''entrée'!$C$312+1,IF('1 Données d''entrée'!$C$314=\"(=NON)\",($B648*'1 Données d''entrée'!$C$310)*((('1 Données d''entrée'!$C$310+1)^'1 Données d''entrée'!$C$312-1)/('1 Données d''entrée'!$C$310))*(1+'1 Données d''entrée'!$C$310),0),0)","v":0},{"$f":"IF(G617='1 Données d''entrée'!$C$312+1,IF('1 Données d''entrée'!$C$314=\"(=NON)\",($B648*'1 Données d''entrée'!$C$310)*((('1 Données d''entrée'!$C$310+1)^'1 Données d''entrée'!$C$312-1)/('1 Données d''entrée'!$C$310))*(1+'1 Données d''entrée'!$C$310),0),0)","v":0},{"$f":"IF(H617='1 Données d''entrée'!$C$312+1,IF('1 Données d''entrée'!$C$314=\"(=NON)\",($B648*'1 Données d''entrée'!$C$310)*((('1 Données d''entrée'!$C$310+1)^'1 Données d''entrée'!$C$312-1)/('1 Données d''entrée'!$C$310))*(1+'1 Données d''entrée'!$C$310),0),0)","v":0},{"$f":"IF(I617='1 Données d''entrée'!$C$312+1,IF('1 Données d''entrée'!$C$314=\"(=NON)\",($B648*'1 Données d''entrée'!$C$310)*((('1 Données d''entrée'!$C$310+1)^'1 Données d''entrée'!$C$312-1)/('1 Données d''entrée'!$C$310))*(1+'1 Données d''entrée'!$C$310),0),0)","v":0},{"$f":"IF(J617='1 Données d''entrée'!$C$312+1,IF('1 Données d''entrée'!$C$314=\"(=NON)\",($B648*'1 Données d''entrée'!$C$310)*((('1 Données d''entrée'!$C$310+1)^'1 Données d''entrée'!$C$312-1)/('1 Données d''entrée'!$C$310))*(1+'1 Données d''entrée'!$C$310),0),0)","v":0},{"$f":"IF(K617='1 Données d''entrée'!$C$312+1,IF('1 Données d''entrée'!$C$314=\"(=NON)\",($B648*'1 Données d''entrée'!$C$310)*((('1 Données d''entrée'!$C$310+1)^'1 Données d''entrée'!$C$312-1)/('1 Données d''entrée'!$C$310))*(1+'1 Données d''entrée'!$C$310),0),0)","v":0},{"$f":"IF(L617='1 Données d''entrée'!$C$312+1,IF('1 Données d''entrée'!$C$314=\"(=NON)\",($B648*'1 Données d''entrée'!$C$310)*((('1 Données d''entrée'!$C$310+1)^'1 Données d''entrée'!$C$312-1)/('1 Données d''entrée'!$C$310))*(1+'1 Données d''entrée'!$C$310),0),0)","v":0},{"$f":"IF(M617='1 Données d''entrée'!$C$312+1,IF('1 Données d''entrée'!$C$314=\"(=NON)\",($B648*'1 Données d''entrée'!$C$310)*((('1 Données d''entrée'!$C$310+1)^'1 Données d''entrée'!$C$312-1)/('1 Données d''entrée'!$C$310))*(1+'1 Données d''entrée'!$C$310),0),0)","v":0},{"$f":"IF(N617='1 Données d''entrée'!$C$312+1,IF('1 Données d''entrée'!$C$314=\"(=NON)\",($B648*'1 Données d''entrée'!$C$310)*((('1 Données d''entrée'!$C$310+1)^'1 Données d''entrée'!$C$312-1)/('1 Données d''entrée'!$C$310))*(1+'1 Données d''entrée'!$C$310),0),0)","v":0},{"$f":"IF(O617='1 Données d''entrée'!$C$312+1,IF('1 Données d''entrée'!$C$314=\"(=NON)\",($B648*'1 Données d''entrée'!$C$310)*((('1 Données d''entrée'!$C$310+1)^'1 Données d''entrée'!$C$312-1)/('1 Données d''entrée'!$C$310))*(1+'1 Données d''entrée'!$C$310),0),0)","v":0},{"$f":"IF(P617='1 Données d''entrée'!$C$312+1,IF('1 Données d''entrée'!$C$314=\"(=NON)\",($B648*'1 Données d''entrée'!$C$310)*((('1 Données d''entrée'!$C$310+1)^'1 Données d''entrée'!$C$312-1)/('1 Données d''entrée'!$C$310))*(1+'1 Données d''entrée'!$C$310),0),0)","v":0},{"$f":"IF(Q617='1 Données d''entrée'!$C$312+1,IF('1 Données d''entrée'!$C$314=\"(=NON)\",($B648*'1 Données d''entrée'!$C$310)*((('1 Données d''entrée'!$C$310+1)^'1 Données d''entrée'!$C$312-1)/('1 Données d''entrée'!$C$310))*(1+'1 Données d''entrée'!$C$310),0),0)","v":0},{"$f":"IF(R617='1 Données d''entrée'!$C$312+1,IF('1 Données d''entrée'!$C$314=\"(=NON)\",($B648*'1 Données d''entrée'!$C$310)*((('1 Données d''entrée'!$C$310+1)^'1 Données d''entrée'!$C$312-1)/('1 Données d''entrée'!$C$310))*(1+'1 Données d''entrée'!$C$310),0),0)","v":0},{"$f":"IF(S617='1 Données d''entrée'!$C$312+1,IF('1 Données d''entrée'!$C$314=\"(=NON)\",($B648*'1 Données d''entrée'!$C$310)*((('1 Données d''entrée'!$C$310+1)^'1 Données d''entrée'!$C$312-1)/('1 Données d''entrée'!$C$310))*(1+'1 Données d''entrée'!$C$310),0),0)","v":0},{"$f":"IF(T617='1 Données d''entrée'!$C$312+1,IF('1 Données d''entrée'!$C$314=\"(=NON)\",($B648*'1 Données d''entrée'!$C$310)*((('1 Données d''entrée'!$C$310+1)^'1 Données d''entrée'!$C$312-1)/('1 Données d''entrée'!$C$310))*(1+'1 Données d''entrée'!$C$310),0),0)","v":0},{"$f":"IF(U617='1 Données d''entrée'!$C$312+1,IF('1 Données d''entrée'!$C$314=\"(=NON)\",($B648*'1 Données d''entrée'!$C$310)*((('1 Données d''entrée'!$C$310+1)^'1 Données d''entrée'!$C$312-1)/('1 Données d''entrée'!$C$310))*(1+'1 Données d''entrée'!$C$310),0),0)","v":0},{"$f":"IF(V617='1 Données d''entrée'!$C$312+1,IF('1 Données d''entrée'!$C$314=\"(=NON)\",($B648*'1 Données d''entrée'!$C$310)*((('1 Données d''entrée'!$C$310+1)^'1 Données d''entrée'!$C$312-1)/('1 Données d''entrée'!$C$310))*(1+'1 Données d''entrée'!$C$310),0),0)","v":0}]
["Fonds d'autre donneurs / investisseurs - Prêt; Option 3: Remboursement vers l'annuité constante",{"$f":"'1 Données d''entrée'!$B$321","v":0},"% de prêt total"]
["Réception ",{"$f":"B652*'1 Données d''entrée'!$B$306+'1 Données d''entrée'!$B$306*'1 Données d''entrée'!$C$316","v":0},0,0,0,0,0,0,0,0,0,0,0,0,0,0,0,0,0,0,0,0]
["Remboursement vers l'annuité constante",{"$f":"IF(B617<'1 Données d''entrée'!$C$312+1,0,IF(B617<'1 Données d''entrée'!$C$311+'1 Données d''entrée'!$C$312+1,$B653*('1 Données d''entrée'!$C$310*(1+'1 Données d''entrée'!$C$310)^'1 Données d''entrée'!$C$311)/((1+'1 Données d''entrée'!$C$310)^'1 Données d''entrée'!$C$311-1),0))","v":0},{"$f":"IF(C617<'1 Données d''entrée'!$C$312+1,0,IF(C617<'1 Données d''entrée'!$C$311+'1 Données d''entrée'!$C$312+1,$B653*('1 Données d''entrée'!$C$310*(1+'1 Données d''entrée'!$C$310)^'1 Données d''entrée'!$C$311)/((1+'1 Données d''entrée'!$C$310)^'1 Données d''entrée'!$C$311-1),0))","v":0},{"$f":"IF(D617<'1 Données d''entrée'!$C$312+1,0,IF(D617<'1 Données d''entrée'!$C$311+'1 Données d''entrée'!$C$312+1,$B653*('1 Données d''entrée'!$C$310*(1+'1 Données d''entrée'!$C$310)^'1 Données d''entrée'!$C$311)/((1+'1 Données d''entrée'!$C$310)^'1 Données d''entrée'!$C$311-1),0))","v":0},{"$f":"IF(E617<'1 Données d''entrée'!$C$312+1,0,IF(E617<'1 Données d''entrée'!$C$311+'1 Données d''entrée'!$C$312+1,$B653*('1 Données d''entrée'!$C$310*(1+'1 Données d''entrée'!$C$310)^'1 Données d''entrée'!$C$311)/((1+'1 Données d''entrée'!$C$310)^'1 Données d''entrée'!$C$311-1),0))","v":0},{"$f":"IF(F617<'1 Données d''entrée'!$C$312+1,0,IF(F617<'1 Données d''entrée'!$C$311+'1 Données d''entrée'!$C$312+1,$B653*('1 Données d''entrée'!$C$310*(1+'1 Données d''entrée'!$C$310)^'1 Données d''entrée'!$C$311)/((1+'1 Données d''entrée'!$C$310)^'1 Données d''entrée'!$C$311-1),0))","v":0},{"$f":"IF(G617<'1 Données d''entrée'!$C$312+1,0,IF(G617<'1 Données d''entrée'!$C$311+'1 Données d''entrée'!$C$312+1,$B653*('1 Données d''entrée'!$C$310*(1+'1 Données d''entrée'!$C$310)^'1 Données d''entrée'!$C$311)/((1+'1 Données d''entrée'!$C$310)^'1 Données d''entrée'!$C$311-1),0))","v":0},{"$f":"IF(H617<'1 Données d''entrée'!$C$312+1,0,IF(H617<'1 Données d''entrée'!$C$311+'1 Données d''entrée'!$C$312+1,$B653*('1 Données d''entrée'!$C$310*(1+'1 Données d''entrée'!$C$310)^'1 Données d''entrée'!$C$311)/((1+'1 Données d''entrée'!$C$310)^'1 Données d''entrée'!$C$311-1),0))","v":0},{"$f":"IF(I617<'1 Données d''entrée'!$C$312+1,0,IF(I617<'1 Données d''entrée'!$C$311+'1 Données d''entrée'!$C$312+1,$B653*('1 Données d''entrée'!$C$310*(1+'1 Données d''entrée'!$C$310)^'1 Données d''entrée'!$C$311)/((1+'1 Données d''entrée'!$C$310)^'1 Données d''entrée'!$C$311-1),0))","v":0},{"$f":"IF(J617<'1 Données d''entrée'!$C$312+1,0,IF(J617<'1 Données d''entrée'!$C$311+'1 Données d''entrée'!$C$312+1,$B653*('1 Données d''entrée'!$C$310*(1+'1 Données d''entrée'!$C$310)^'1 Données d''entrée'!$C$311)/((1+'1 Données d''entrée'!$C$310)^'1 Données d''entrée'!$C$311-1),0))","v":0},{"$f":"IF(K617<'1 Données d''entrée'!$C$312+1,0,IF(K617<'1 Données d''entrée'!$C$311+'1 Données d''entrée'!$C$312+1,$B653*('1 Données d''entrée'!$C$310*(1+'1 Données d''entrée'!$C$310)^'1 Données d''entrée'!$C$311)/((1+'1 Données d''entrée'!$C$310)^'1 Données d''entrée'!$C$311-1),0))","v":0},{"$f":"IF(L617<'1 Données d''entrée'!$C$312+1,0,IF(L617<'1 Données d''entrée'!$C$311+'1 Données d''entrée'!$C$312+1,$B653*('1 Données d''entrée'!$C$310*(1+'1 Données d''entrée'!$C$310)^'1 Données d''entrée'!$C$311)/((1+'1 Données d''entrée'!$C$310)^'1 Données d''entrée'!$C$311-1),0))","v":0},{"$f":"IF(M617<'1 Données d''entrée'!$C$312+1,0,IF(M617<'1 Données d''entrée'!$C$311+'1 Données d''entrée'!$C$312+1,$B653*('1 Données d''entrée'!$C$310*(1+'1 Données d''entrée'!$C$310)^'1 Données d''entrée'!$C$311)/((1+'1 Données d''entrée'!$C$310)^'1 Données d''entrée'!$C$311-1),0))","v":0},{"$f":"IF(N617<'1 Données d''entrée'!$C$312+1,0,IF(N617<'1 Données d''entrée'!$C$311+'1 Données d''entrée'!$C$312+1,$B653*('1 Données d''entrée'!$C$310*(1+'1 Données d''entrée'!$C$310)^'1 Données d''entrée'!$C$311)/((1+'1 Données d''entrée'!$C$310)^'1 Données d''entrée'!$C$311-1),0))","v":0},{"$f":"IF(O617<'1 Données d''entrée'!$C$312+1,0,IF(O617<'1 Données d''entrée'!$C$311+'1 Données d''entrée'!$C$312+1,$B653*('1 Données d''entrée'!$C$310*(1+'1 Données d''entrée'!$C$310)^'1 Données d''entrée'!$C$311)/((1+'1 Données d''entrée'!$C$310)^'1 Données d''entrée'!$C$311-1),0))","v":0},{"$f":"IF(P617<'1 Données d''entrée'!$C$312+1,0,IF(P617<'1 Données d''entrée'!$C$311+'1 Données d''entrée'!$C$312+1,$B653*('1 Données d''entrée'!$C$310*(1+'1 Données d''entrée'!$C$310)^'1 Données d''entrée'!$C$311)/((1+'1 Données d''entrée'!$C$310)^'1 Données d''entrée'!$C$311-1),0))","v":0},{"$f":"IF(Q617<'1 Données d''entrée'!$C$312+1,0,IF(Q617<'1 Données d''entrée'!$C$311+'1 Données d''entrée'!$C$312+1,$B653*('1 Données d''entrée'!$C$310*(1+'1 Données d''entrée'!$C$310)^'1 Données d''entrée'!$C$311)/((1+'1 Données d''entrée'!$C$310)^'1 Données d''entrée'!$C$311-1),0))","v":0},{"$f":"IF(R617<'1 Données d''entrée'!$C$312+1,0,IF(R617<'1 Données d''entrée'!$C$311+'1 Données d''entrée'!$C$312+1,$B653*('1 Données d''entrée'!$C$310*(1+'1 Données d''entrée'!$C$310)^'1 Données d''entrée'!$C$311)/((1+'1 Données d''entrée'!$C$310)^'1 Données d''entrée'!$C$311-1),0))","v":0},{"$f":"IF(S617<'1 Données d''entrée'!$C$312+1,0,IF(S617<'1 Données d''entrée'!$C$311+'1 Données d''entrée'!$C$312+1,$B653*('1 Données d''entrée'!$C$310*(1+'1 Données d''entrée'!$C$310)^'1 Données d''entrée'!$C$311)/((1+'1 Données d''entrée'!$C$310)^'1 Données d''entrée'!$C$311-1),0))","v":0},{"$f":"IF(T617<'1 Données d''entrée'!$C$312+1,0,IF(T617<'1 Données d''entrée'!$C$311+'1 Données d''entrée'!$C$312+1,$B653*('1 Données d''entrée'!$C$310*(1+'1 Données d''entrée'!$C$310)^'1 Données d''entrée'!$C$311)/((1+'1 Données d''entrée'!$C$310)^'1 Données d''entrée'!$C$311-1),0))","v":0},{"$f":"IF(U617<'1 Données d''entrée'!$C$312+1,0,IF(U617<'1 Données d''entrée'!$C$311+'1 Données d''entrée'!$C$312+1,$B653*('1 Données d''entrée'!$C$310*(1+'1 Données d''entrée'!$C$310)^'1 Données d''entrée'!$C$311)/((1+'1 Données d''entrée'!$C$310)^'1 Données d''entrée'!$C$311-1),0))","v":0},{"$f":"IF(V617<'1 Données d''entrée'!$C$312+1,0,IF(V617<'1 Données d''entrée'!$C$311+'1 Données d''entrée'!$C$312+1,$B653*('1 Données d''entrée'!$C$310*(1+'1 Données d''entrée'!$C$310)^'1 Données d''entrée'!$C$311)/((1+'1 Données d''entrée'!$C$310)^'1 Données d''entrée'!$C$311-1),0))","v":0}]
["Paiement d'intérêt décroissant inclu dans l'annuité constante",0,{"$f":"IF('1 Données d''entrée'!$C$314=\"(=NON)\",IF(C654>0,$B653*((('1 Données d''entrée'!$C$310+1)^'1 Données d''entrée'!$C$311)-(1+'1 Données d''entrée'!$C$310)^('6 Financement'!C$54-1-'1 Données d''entrée'!$C$312))/((1+'1 Données d''entrée'!$C$310)^'1 Données d''entrée'!$C$311-1)*'1 Données d''entrée'!$C$310,0),IF(C617<'1 Données d''entrée'!$C$312+1,'1 Données d''entrée'!$C$310*'6 Financement'!$B653,IF(C654>0,$B$90*((('1 Données d''entrée'!$C$310+1)^'1 Données d''entrée'!$C$311)-(1+'1 Données d''entrée'!$C$310)^('6 Financement'!C$54-1-'1 Données d''entrée'!$C$312))/((1+'1 Données d''entrée'!$C$310)^'1 Données d''entrée'!$C$311-1)*'1 Données d''entrée'!$C$310,0)))","v":0},{"$f":"IF('1 Données d''entrée'!$C$314=\"(=NON)\",IF(D654>0,$B653*((('1 Données d''entrée'!$C$310+1)^'1 Données d''entrée'!$C$311)-(1+'1 Données d''entrée'!$C$310)^('6 Financement'!D$54-1-'1 Données d''entrée'!$C$312))/((1+'1 Données d''entrée'!$C$310)^'1 Données d''entrée'!$C$311-1)*'1 Données d''entrée'!$C$310,0),IF(D617<'1 Données d''entrée'!$C$312+1,'1 Données d''entrée'!$C$310*'6 Financement'!$B653,IF(D654>0,$B$90*((('1 Données d''entrée'!$C$310+1)^'1 Données d''entrée'!$C$311)-(1+'1 Données d''entrée'!$C$310)^('6 Financement'!D$54-1-'1 Données d''entrée'!$C$312))/((1+'1 Données d''entrée'!$C$310)^'1 Données d''entrée'!$C$311-1)*'1 Données d''entrée'!$C$310,0)))","v":0},{"$f":"IF('1 Données d''entrée'!$C$314=\"(=NON)\",IF(E654>0,$B653*((('1 Données d''entrée'!$C$310+1)^'1 Données d''entrée'!$C$311)-(1+'1 Données d''entrée'!$C$310)^('6 Financement'!E$54-1-'1 Données d''entrée'!$C$312))/((1+'1 Données d''entrée'!$C$310)^'1 Données d''entrée'!$C$311-1)*'1 Données d''entrée'!$C$310,0),IF(E617<'1 Données d''entrée'!$C$312+1,'1 Données d''entrée'!$C$310*'6 Financement'!$B653,IF(E654>0,$B$90*((('1 Données d''entrée'!$C$310+1)^'1 Données d''entrée'!$C$311)-(1+'1 Données d''entrée'!$C$310)^('6 Financement'!E$54-1-'1 Données d''entrée'!$C$312))/((1+'1 Données d''entrée'!$C$310)^'1 Données d''entrée'!$C$311-1)*'1 Données d''entrée'!$C$310,0)))","v":0},{"$f":"IF('1 Données d''entrée'!$C$314=\"(=NON)\",IF(F654>0,$B653*((('1 Données d''entrée'!$C$310+1)^'1 Données d''entrée'!$C$311)-(1+'1 Données d''entrée'!$C$310)^('6 Financement'!F$54-1-'1 Données d''entrée'!$C$312))/((1+'1 Données d''entrée'!$C$310)^'1 Données d''entrée'!$C$311-1)*'1 Données d''entrée'!$C$310,0),IF(F617<'1 Données d''entrée'!$C$312+1,'1 Données d''entrée'!$C$310*'6 Financement'!$B653,IF(F654>0,$B$90*((('1 Données d''entrée'!$C$310+1)^'1 Données d''entrée'!$C$311)-(1+'1 Données d''entrée'!$C$310)^('6 Financement'!F$54-1-'1 Données d''entrée'!$C$312))/((1+'1 Données d''entrée'!$C$310)^'1 Données d''entrée'!$C$311-1)*'1 Données d''entrée'!$C$310,0)))","v":0},{"$f":"IF('1 Données d''entrée'!$C$314=\"(=NON)\",IF(G654>0,$B653*((('1 Données d''entrée'!$C$310+1)^'1 Données d''entrée'!$C$311)-(1+'1 Données d''entrée'!$C$310)^('6 Financement'!G$54-1-'1 Données d''entrée'!$C$312))/((1+'1 Données d''entrée'!$C$310)^'1 Données d''entrée'!$C$311-1)*'1 Données d''entrée'!$C$310,0),IF(G617<'1 Données d''entrée'!$C$312+1,'1 Données d''entrée'!$C$310*'6 Financement'!$B653,IF(G654>0,$B$90*((('1 Données d''entrée'!$C$310+1)^'1 Données d''entrée'!$C$311)-(1+'1 Données d''entrée'!$C$310)^('6 Financement'!G$54-1-'1 Données d''entrée'!$C$312))/((1+'1 Données d''entrée'!$C$310)^'1 Données d''entrée'!$C$311-1)*'1 Données d''entrée'!$C$310,0)))","v":0},{"$f":"IF('1 Données d''entrée'!$C$314=\"(=NON)\",IF(H654>0,$B653*((('1 Données d''entrée'!$C$310+1)^'1 Données d''entrée'!$C$311)-(1+'1 Données d''entrée'!$C$310)^('6 Financement'!H$54-1-'1 Données d''entrée'!$C$312))/((1+'1 Données d''entrée'!$C$310)^'1 Données d''entrée'!$C$311-1)*'1 Données d''entrée'!$C$310,0),IF(H617<'1 Données d''entrée'!$C$312+1,'1 Données d''entrée'!$C$310*'6 Financement'!$B653,IF(H654>0,$B$90*((('1 Données d''entrée'!$C$310+1)^'1 Données d''entrée'!$C$311)-(1+'1 Données d''entrée'!$C$310)^('6 Financement'!H$54-1-'1 Données d''entrée'!$C$312))/((1+'1 Données d''entrée'!$C$310)^'1 Données d''entrée'!$C$311-1)*'1 Données d''entrée'!$C$310,0)))","v":0},{"$f":"IF('1 Données d''entrée'!$C$314=\"(=NON)\",IF(I654>0,$B653*((('1 Données d''entrée'!$C$310+1)^'1 Données d''entrée'!$C$311)-(1+'1 Données d''entrée'!$C$310)^('6 Financement'!I$54-1-'1 Données d''entrée'!$C$312))/((1+'1 Données d''entrée'!$C$310)^'1 Données d''entrée'!$C$311-1)*'1 Données d''entrée'!$C$310,0),IF(I617<'1 Données d''entrée'!$C$312+1,'1 Données d''entrée'!$C$310*'6 Financement'!$B653,IF(I654>0,$B$90*((('1 Données d''entrée'!$C$310+1)^'1 Données d''entrée'!$C$311)-(1+'1 Données d''entrée'!$C$310)^('6 Financement'!I$54-1-'1 Données d''entrée'!$C$312))/((1+'1 Données d''entrée'!$C$310)^'1 Données d''entrée'!$C$311-1)*'1 Données d''entrée'!$C$310,0)))","v":0},{"$f":"IF('1 Données d''entrée'!$C$314=\"(=NON)\",IF(J654>0,$B653*((('1 Données d''entrée'!$C$310+1)^'1 Données d''entrée'!$C$311)-(1+'1 Données d''entrée'!$C$310)^('6 Financement'!J$54-1-'1 Données d''entrée'!$C$312))/((1+'1 Données d''entrée'!$C$310)^'1 Données d''entrée'!$C$311-1)*'1 Données d''entrée'!$C$310,0),IF(J617<'1 Données d''entrée'!$C$312+1,'1 Données d''entrée'!$C$310*'6 Financement'!$B653,IF(J654>0,$B$90*((('1 Données d''entrée'!$C$310+1)^'1 Données d''entrée'!$C$311)-(1+'1 Données d''entrée'!$C$310)^('6 Financement'!J$54-1-'1 Données d''entrée'!$C$312))/((1+'1 Données d''entrée'!$C$310)^'1 Données d''entrée'!$C$311-1)*'1 Données d''entrée'!$C$310,0)))","v":0},{"$f":"IF('1 Données d''entrée'!$C$314=\"(=NON)\",IF(K654>0,$B653*((('1 Données d''entrée'!$C$310+1)^'1 Données d''entrée'!$C$311)-(1+'1 Données d''entrée'!$C$310)^('6 Financement'!K$54-1-'1 Données d''entrée'!$C$312))/((1+'1 Données d''entrée'!$C$310)^'1 Données d''entrée'!$C$311-1)*'1 Données d''entrée'!$C$310,0),IF(K617<'1 Données d''entrée'!$C$312+1,'1 Données d''entrée'!$C$310*'6 Financement'!$B653,IF(K654>0,$B$90*((('1 Données d''entrée'!$C$310+1)^'1 Données d''entrée'!$C$311)-(1+'1 Données d''entrée'!$C$310)^('6 Financement'!K$54-1-'1 Données d''entrée'!$C$312))/((1+'1 Données d''entrée'!$C$310)^'1 Données d''entrée'!$C$311-1)*'1 Données d''entrée'!$C$310,0)))","v":0},{"$f":"IF('1 Données d''entrée'!$C$314=\"(=NON)\",IF(L654>0,$B653*((('1 Données d''entrée'!$C$310+1)^'1 Données d''entrée'!$C$311)-(1+'1 Données d''entrée'!$C$310)^('6 Financement'!L$54-1-'1 Données d''entrée'!$C$312))/((1+'1 Données d''entrée'!$C$310)^'1 Données d''entrée'!$C$311-1)*'1 Données d''entrée'!$C$310,0),IF(L617<'1 Données d''entrée'!$C$312+1,'1 Données d''entrée'!$C$310*'6 Financement'!$B653,IF(L654>0,$B$90*((('1 Données d''entrée'!$C$310+1)^'1 Données d''entrée'!$C$311)-(1+'1 Données d''entrée'!$C$310)^('6 Financement'!L$54-1-'1 Données d''entrée'!$C$312))/((1+'1 Données d''entrée'!$C$310)^'1 Données d''entrée'!$C$311-1)*'1 Données d''entrée'!$C$310,0)))","v":0},{"$f":"IF('1 Données d''entrée'!$C$314=\"(=NON)\",IF(M654>0,$B653*((('1 Données d''entrée'!$C$310+1)^'1 Données d''entrée'!$C$311)-(1+'1 Données d''entrée'!$C$310)^('6 Financement'!M$54-1-'1 Données d''entrée'!$C$312))/((1+'1 Données d''entrée'!$C$310)^'1 Données d''entrée'!$C$311-1)*'1 Données d''entrée'!$C$310,0),IF(M617<'1 Données d''entrée'!$C$312+1,'1 Données d''entrée'!$C$310*'6 Financement'!$B653,IF(M654>0,$B$90*((('1 Données d''entrée'!$C$310+1)^'1 Données d''entrée'!$C$311)-(1+'1 Données d''entrée'!$C$310)^('6 Financement'!M$54-1-'1 Données d''entrée'!$C$312))/((1+'1 Données d''entrée'!$C$310)^'1 Données d''entrée'!$C$311-1)*'1 Données d''entrée'!$C$310,0)))","v":0},{"$f":"IF('1 Données d''entrée'!$C$314=\"(=NON)\",IF(N654>0,$B653*((('1 Données d''entrée'!$C$310+1)^'1 Données d''entrée'!$C$311)-(1+'1 Données d''entrée'!$C$310)^('6 Financement'!N$54-1-'1 Données d''entrée'!$C$312))/((1+'1 Données d''entrée'!$C$310)^'1 Données d''entrée'!$C$311-1)*'1 Données d''entrée'!$C$310,0),IF(N617<'1 Données d''entrée'!$C$312+1,'1 Données d''entrée'!$C$310*'6 Financement'!$B653,IF(N654>0,$B$90*((('1 Données d''entrée'!$C$310+1)^'1 Données d''entrée'!$C$311)-(1+'1 Données d''entrée'!$C$310)^('6 Financement'!N$54-1-'1 Données d''entrée'!$C$312))/((1+'1 Données d''entrée'!$C$310)^'1 Données d''entrée'!$C$311-1)*'1 Données d''entrée'!$C$310,0)))","v":0},{"$f":"IF('1 Données d''entrée'!$C$314=\"(=NON)\",IF(O654>0,$B653*((('1 Données d''entrée'!$C$310+1)^'1 Données d''entrée'!$C$311)-(1+'1 Données d''entrée'!$C$310)^('6 Financement'!O$54-1-'1 Données d''entrée'!$C$312))/((1+'1 Données d''entrée'!$C$310)^'1 Données d''entrée'!$C$311-1)*'1 Données d''entrée'!$C$310,0),IF(O617<'1 Données d''entrée'!$C$312+1,'1 Données d''entrée'!$C$310*'6 Financement'!$B653,IF(O654>0,$B$90*((('1 Données d''entrée'!$C$310+1)^'1 Données d''entrée'!$C$311)-(1+'1 Données d''entrée'!$C$310)^('6 Financement'!O$54-1-'1 Données d''entrée'!$C$312))/((1+'1 Données d''entrée'!$C$310)^'1 Données d''entrée'!$C$311-1)*'1 Données d''entrée'!$C$310,0)))","v":0},{"$f":"IF('1 Données d''entrée'!$C$314=\"(=NON)\",IF(P654>0,$B653*((('1 Données d''entrée'!$C$310+1)^'1 Données d''entrée'!$C$311)-(1+'1 Données d''entrée'!$C$310)^('6 Financement'!P$54-1-'1 Données d''entrée'!$C$312))/((1+'1 Données d''entrée'!$C$310)^'1 Données d''entrée'!$C$311-1)*'1 Données d''entrée'!$C$310,0),IF(P617<'1 Données d''entrée'!$C$312+1,'1 Données d''entrée'!$C$310*'6 Financement'!$B653,IF(P654>0,$B$90*((('1 Données d''entrée'!$C$310+1)^'1 Données d''entrée'!$C$311)-(1+'1 Données d''entrée'!$C$310)^('6 Financement'!P$54-1-'1 Données d''entrée'!$C$312))/((1+'1 Données d''entrée'!$C$310)^'1 Données d''entrée'!$C$311-1)*'1 Données d''entrée'!$C$310,0)))","v":0},{"$f":"IF('1 Données d''entrée'!$C$314=\"(=NON)\",IF(Q654>0,$B653*((('1 Données d''entrée'!$C$310+1)^'1 Données d''entrée'!$C$311)-(1+'1 Données d''entrée'!$C$310)^('6 Financement'!Q$54-1-'1 Données d''entrée'!$C$312))/((1+'1 Données d''entrée'!$C$310)^'1 Données d''entrée'!$C$311-1)*'1 Données d''entrée'!$C$310,0),IF(Q617<'1 Données d''entrée'!$C$312+1,'1 Données d''entrée'!$C$310*'6 Financement'!$B653,IF(Q654>0,$B$90*((('1 Données d''entrée'!$C$310+1)^'1 Données d''entrée'!$C$311)-(1+'1 Données d''entrée'!$C$310)^('6 Financement'!Q$54-1-'1 Données d''entrée'!$C$312))/((1+'1 Données d''entrée'!$C$310)^'1 Données d''entrée'!$C$311-1)*'1 Données d''entrée'!$C$310,0)))","v":0},{"$f":"IF('1 Données d''entrée'!$C$314=\"(=NON)\",IF(R654>0,$B653*((('1 Données d''entrée'!$C$310+1)^'1 Données d''entrée'!$C$311)-(1+'1 Données d''entrée'!$C$310)^('6 Financement'!R$54-1-'1 Données d''entrée'!$C$312))/((1+'1 Données d''entrée'!$C$310)^'1 Données d''entrée'!$C$311-1)*'1 Données d''entrée'!$C$310,0),IF(R617<'1 Données d''entrée'!$C$312+1,'1 Données d''entrée'!$C$310*'6 Financement'!$B653,IF(R654>0,$B$90*((('1 Données d''entrée'!$C$310+1)^'1 Données d''entrée'!$C$311)-(1+'1 Données d''entrée'!$C$310)^('6 Financement'!R$54-1-'1 Données d''entrée'!$C$312))/((1+'1 Données d''entrée'!$C$310)^'1 Données d''entrée'!$C$311-1)*'1 Données d''entrée'!$C$310,0)))","v":0},{"$f":"IF('1 Données d''entrée'!$C$314=\"(=NON)\",IF(S654>0,$B653*((('1 Données d''entrée'!$C$310+1)^'1 Données d''entrée'!$C$311)-(1+'1 Données d''entrée'!$C$310)^('6 Financement'!S$54-1-'1 Données d''entrée'!$C$312))/((1+'1 Données d''entrée'!$C$310)^'1 Données d''entrée'!$C$311-1)*'1 Données d''entrée'!$C$310,0),IF(S617<'1 Données d''entrée'!$C$312+1,'1 Données d''entrée'!$C$310*'6 Financement'!$B653,IF(S654>0,$B$90*((('1 Données d''entrée'!$C$310+1)^'1 Données d''entrée'!$C$311)-(1+'1 Données d''entrée'!$C$310)^('6 Financement'!S$54-1-'1 Données d''entrée'!$C$312))/((1+'1 Données d''entrée'!$C$310)^'1 Données d''entrée'!$C$311-1)*'1 Données d''entrée'!$C$310,0)))","v":0},{"$f":"IF('1 Données d''entrée'!$C$314=\"(=NON)\",IF(T654>0,$B653*((('1 Données d''entrée'!$C$310+1)^'1 Données d''entrée'!$C$311)-(1+'1 Données d''entrée'!$C$310)^('6 Financement'!T$54-1-'1 Données d''entrée'!$C$312))/((1+'1 Données d''entrée'!$C$310)^'1 Données d''entrée'!$C$311-1)*'1 Données d''entrée'!$C$310,0),IF(T617<'1 Données d''entrée'!$C$312+1,'1 Données d''entrée'!$C$310*'6 Financement'!$B653,IF(T654>0,$B$90*((('1 Données d''entrée'!$C$310+1)^'1 Données d''entrée'!$C$311)-(1+'1 Données d''entrée'!$C$310)^('6 Financement'!T$54-1-'1 Données d''entrée'!$C$312))/((1+'1 Données d''entrée'!$C$310)^'1 Données d''entrée'!$C$311-1)*'1 Données d''entrée'!$C$310,0)))","v":0},{"$f":"IF('1 Données d''entrée'!$C$314=\"(=NON)\",IF(U654>0,$B653*((('1 Données d''entrée'!$C$310+1)^'1 Données d''entrée'!$C$311)-(1+'1 Données d''entrée'!$C$310)^('6 Financement'!U$54-1-'1 Données d''entrée'!$C$312))/((1+'1 Données d''entrée'!$C$310)^'1 Données d''entrée'!$C$311-1)*'1 Données d''entrée'!$C$310,0),IF(U617<'1 Données d''entrée'!$C$312+1,'1 Données d''entrée'!$C$310*'6 Financement'!$B653,IF(U654>0,$B$90*((('1 Données d''entrée'!$C$310+1)^'1 Données d''entrée'!$C$311)-(1+'1 Données d''entrée'!$C$310)^('6 Financement'!U$54-1-'1 Données d''entrée'!$C$312))/((1+'1 Données d''entrée'!$C$310)^'1 Données d''entrée'!$C$311-1)*'1 Données d''entrée'!$C$310,0)))","v":0},{"$f":"IF('1 Données d''entrée'!$C$314=\"(=NON)\",IF(V654>0,$B653*((('1 Données d''entrée'!$C$310+1)^'1 Données d''entrée'!$C$311)-(1+'1 Données d''entrée'!$C$310)^('6 Financement'!V$54-1-'1 Données d''entrée'!$C$312))/((1+'1 Données d''entrée'!$C$310)^'1 Données d''entrée'!$C$311-1)*'1 Données d''entrée'!$C$310,0),IF(V617<'1 Données d''entrée'!$C$312+1,'1 Données d''entrée'!$C$310*'6 Financement'!$B653,IF(V654>0,$B$90*((('1 Données d''entrée'!$C$310+1)^'1 Données d''entrée'!$C$311)-(1+'1 Données d''entrée'!$C$310)^('6 Financement'!V$54-1-'1 Données d''entrée'!$C$312))/((1+'1 Données d''entrée'!$C$310)^'1 Données d''entrée'!$C$311-1)*'1 Données d''entrée'!$C$310,0)))","v":0}]
["Paiements d'intérêt avec des intérêts composés en cas d'absence des paiements dans la période de grâce",0,0,{"$f":"IF(D617='1 Données d''entrée'!$C$312+1,IF('1 Données d''entrée'!$C$314=\"(=NON)\",($B653*'1 Données d''entrée'!$C$310)*((('1 Données d''entrée'!$C$310+1)^'1 Données d''entrée'!$C$312-1)/('1 Données d''entrée'!$C$310))*(1+'1 Données d''entrée'!$C$310),0),0)","v":0},{"$f":"IF(E617='1 Données d''entrée'!$C$312+1,IF('1 Données d''entrée'!$C$314=\"(=NON)\",($B653*'1 Données d''entrée'!$C$310)*((('1 Données d''entrée'!$C$310+1)^'1 Données d''entrée'!$C$312-1)/('1 Données d''entrée'!$C$310))*(1+'1 Données d''entrée'!$C$310),0),0)","v":0},{"$f":"IF(F617='1 Données d''entrée'!$C$312+1,IF('1 Données d''entrée'!$C$314=\"(=NON)\",($B653*'1 Données d''entrée'!$C$310)*((('1 Données d''entrée'!$C$310+1)^'1 Données d''entrée'!$C$312-1)/('1 Données d''entrée'!$C$310))*(1+'1 Données d''entrée'!$C$310),0),0)","v":0},{"$f":"IF(G617='1 Données d''entrée'!$C$312+1,IF('1 Données d''entrée'!$C$314=\"(=NON)\",($B653*'1 Données d''entrée'!$C$310)*((('1 Données d''entrée'!$C$310+1)^'1 Données d''entrée'!$C$312-1)/('1 Données d''entrée'!$C$310))*(1+'1 Données d''entrée'!$C$310),0),0)","v":0},{"$f":"IF(H617='1 Données d''entrée'!$C$312+1,IF('1 Données d''entrée'!$C$314=\"(=NON)\",($B653*'1 Données d''entrée'!$C$310)*((('1 Données d''entrée'!$C$310+1)^'1 Données d''entrée'!$C$312-1)/('1 Données d''entrée'!$C$310))*(1+'1 Données d''entrée'!$C$310),0),0)","v":0},{"$f":"IF(I617='1 Données d''entrée'!$C$312+1,IF('1 Données d''entrée'!$C$314=\"(=NON)\",($B653*'1 Données d''entrée'!$C$310)*((('1 Données d''entrée'!$C$310+1)^'1 Données d''entrée'!$C$312-1)/('1 Données d''entrée'!$C$310))*(1+'1 Données d''entrée'!$C$310),0),0)","v":0},{"$f":"IF(J617='1 Données d''entrée'!$C$312+1,IF('1 Données d''entrée'!$C$314=\"(=NON)\",($B653*'1 Données d''entrée'!$C$310)*((('1 Données d''entrée'!$C$310+1)^'1 Données d''entrée'!$C$312-1)/('1 Données d''entrée'!$C$310))*(1+'1 Données d''entrée'!$C$310),0),0)","v":0},{"$f":"IF(K617='1 Données d''entrée'!$C$312+1,IF('1 Données d''entrée'!$C$314=\"(=NON)\",($B653*'1 Données d''entrée'!$C$310)*((('1 Données d''entrée'!$C$310+1)^'1 Données d''entrée'!$C$312-1)/('1 Données d''entrée'!$C$310))*(1+'1 Données d''entrée'!$C$310),0),0)","v":0},{"$f":"IF(L617='1 Données d''entrée'!$C$312+1,IF('1 Données d''entrée'!$C$314=\"(=NON)\",($B653*'1 Données d''entrée'!$C$310)*((('1 Données d''entrée'!$C$310+1)^'1 Données d''entrée'!$C$312-1)/('1 Données d''entrée'!$C$310))*(1+'1 Données d''entrée'!$C$310),0),0)","v":0},{"$f":"IF(M617='1 Données d''entrée'!$C$312+1,IF('1 Données d''entrée'!$C$314=\"(=NON)\",($B653*'1 Données d''entrée'!$C$310)*((('1 Données d''entrée'!$C$310+1)^'1 Données d''entrée'!$C$312-1)/('1 Données d''entrée'!$C$310))*(1+'1 Données d''entrée'!$C$310),0),0)","v":0},{"$f":"IF(N617='1 Données d''entrée'!$C$312+1,IF('1 Données d''entrée'!$C$314=\"(=NON)\",($B653*'1 Données d''entrée'!$C$310)*((('1 Données d''entrée'!$C$310+1)^'1 Données d''entrée'!$C$312-1)/('1 Données d''entrée'!$C$310))*(1+'1 Données d''entrée'!$C$310),0),0)","v":0},{"$f":"IF(O617='1 Données d''entrée'!$C$312+1,IF('1 Données d''entrée'!$C$314=\"(=NON)\",($B653*'1 Données d''entrée'!$C$310)*((('1 Données d''entrée'!$C$310+1)^'1 Données d''entrée'!$C$312-1)/('1 Données d''entrée'!$C$310))*(1+'1 Données d''entrée'!$C$310),0),0)","v":0},{"$f":"IF(P617='1 Données d''entrée'!$C$312+1,IF('1 Données d''entrée'!$C$314=\"(=NON)\",($B653*'1 Données d''entrée'!$C$310)*((('1 Données d''entrée'!$C$310+1)^'1 Données d''entrée'!$C$312-1)/('1 Données d''entrée'!$C$310))*(1+'1 Données d''entrée'!$C$310),0),0)","v":0},{"$f":"IF(Q617='1 Données d''entrée'!$C$312+1,IF('1 Données d''entrée'!$C$314=\"(=NON)\",($B653*'1 Données d''entrée'!$C$310)*((('1 Données d''entrée'!$C$310+1)^'1 Données d''entrée'!$C$312-1)/('1 Données d''entrée'!$C$310))*(1+'1 Données d''entrée'!$C$310),0),0)","v":0},{"$f":"IF(R617='1 Données d''entrée'!$C$312+1,IF('1 Données d''entrée'!$C$314=\"(=NON)\",($B653*'1 Données d''entrée'!$C$310)*((('1 Données d''entrée'!$C$310+1)^'1 Données d''entrée'!$C$312-1)/('1 Données d''entrée'!$C$310))*(1+'1 Données d''entrée'!$C$310),0),0)","v":0},{"$f":"IF(S617='1 Données d''entrée'!$C$312+1,IF('1 Données d''entrée'!$C$314=\"(=NON)\",($B653*'1 Données d''entrée'!$C$310)*((('1 Données d''entrée'!$C$310+1)^'1 Données d''entrée'!$C$312-1)/('1 Données d''entrée'!$C$310))*(1+'1 Données d''entrée'!$C$310),0),0)","v":0},{"$f":"IF(T617='1 Données d''entrée'!$C$312+1,IF('1 Données d''entrée'!$C$314=\"(=NON)\",($B653*'1 Données d''entrée'!$C$310)*((('1 Données d''entrée'!$C$310+1)^'1 Données d''entrée'!$C$312-1)/('1 Données d''entrée'!$C$310))*(1+'1 Données d''entrée'!$C$310),0),0)","v":0},{"$f":"IF(U617='1 Données d''entrée'!$C$312+1,IF('1 Données d''entrée'!$C$314=\"(=NON)\",($B653*'1 Données d''entrée'!$C$310)*((('1 Données d''entrée'!$C$310+1)^'1 Données d''entrée'!$C$312-1)/('1 Données d''entrée'!$C$310))*(1+'1 Données d''entrée'!$C$310),0),0)","v":0},{"$f":"IF(V617='1 Données d''entrée'!$C$312+1,IF('1 Données d''entrée'!$C$314=\"(=NON)\",($B653*'1 Données d''entrée'!$C$310)*((('1 Données d''entrée'!$C$310+1)^'1 Données d''entrée'!$C$312-1)/('1 Données d''entrée'!$C$310))*(1+'1 Données d''entrée'!$C$310),0),0)","v":0}]
[]
["Solde du compte intermédiaire"]
["Solde du comte (par période)",{"$f":"B619+B621+B623+IF($B625>0,(B626-B627-B628-B629),0)+IF($B630>0,(B631-B632-B633-B634),0)+IF($B635>0,(B636-B637-IF(B637>0,0,B638)-B639),0)+B641+IF($B642>0,(B643-B644-B645-B646),0)+IF($B647>0,(B648-B649-B650-B651),0)+IF($B652>0,B653-IF(B654>0,0,B655)-B656,0)","v":{"$error":"#DIV/0!"}},{"$f":"C619+C621+C623+IF($B625>0,(-C627-C628-C629),0)+IF($B630>0,(-C632-C633-C634),0)+C641+IF($B635>0,(-C637-IF(C637>0,0,C638)-C639),0)+IF($B642>0,(-C644-C645-C646),0)+IF($B647>0,(-C649-C650-C651),0)+IF($B652>0,(-C654-IF(C654>0,0,C655)-C656),0)","v":{"$error":"#DIV/0!"}},{"$f":"D619+D621+D623+IF($B625>0,(-D627-D628-D629),0)+IF($B630>0,(-D632-D633-D634),0)+D641+IF($B635>0,(-D637-IF(D637>0,0,D638)-D639),0)+IF($B642>0,(-D644-D645-D646),0)+IF($B647>0,(-D649-D650-D651),0)+IF($B652>0,(-D654-IF(D654>0,0,D655)-D656),0)","v":{"$error":"#DIV/0!"}},{"$error":"#DIV/0!"},{"$error":"#DIV/0!"},{"$error":"#DIV/0!"},{"$error":"#DIV/0!"},{"$error":"#DIV/0!"},{"$error":"#DIV/0!"},{"$error":"#DIV/0!"},{"$error":"#DIV/0!"},{"$error":"#DIV/0!"},{"$error":"#DIV/0!"},{"$error":"#DIV/0!"},{"$error":"#DIV/0!"},{"$error":"#DIV/0!"},{"$error":"#DIV/0!"},{"$error":"#DIV/0!"},{"$error":"#DIV/0!"},{"$error":"#DIV/0!"},{"$error":"#DIV/0!"}]
["Solde du compte (cumulé)",{"$f":"B659","v":{"$error":"#DIV/0!"}},{"$f":"B660+C659","v":{"$error":"#DIV/0!"}},{"$error":"#DIV/0!"},{"$error":"#DIV/0!"},{"$error":"#DIV/0!"},{"$error":"#DIV/0!"},{"$error":"#DIV/0!"},{"$error":"#DIV/0!"},{"$error":"#DIV/0!"},{"$error":"#DIV/0!"},{"$error":"#DIV/0!"},{"$error":"#DIV/0!"},{"$error":"#DIV/0!"},{"$error":"#DIV/0!"},{"$error":"#DIV/0!"},{"$error":"#DIV/0!"},{"$error":"#DIV/0!"},{"$error":"#DIV/0!"},{"$error":"#DIV/0!"},{"$error":"#DIV/0!"},{"$error":"#DIV/0!"}]
[]
[]
[]
["Prêt bancaire additionnel"]
[null,"Période",1,2,3,4,5,6,7,8,9,10,11,12,13,14,15,16,17,18,19,20]
["Prêt bancaire additionnel - Option 1: Remboursement du principal fractionné",{"$f":"'1 Données d''entrée'!$B$342","v":0}]
["Prêt(s) nouveau(x)",null,{"$f":"IF(C660<0,C660*(-1)*$B666+C660*(-1)*$B666*'1 Données d''entrée'!$C$338,0)","v":{"$error":"#DIV/0!"}},{"$f":"IF(D660<0,D660*(-1)*$B666+D660*(-1)*$B666*'1 Données d''entrée'!$C$338,0)","v":{"$error":"#DIV/0!"}},{"$f":"IF(E660<0,E660*(-1)*$B666+E660*(-1)*$B666*'1 Données d''entrée'!$C$338,0)","v":{"$error":"#DIV/0!"}},{"$f":"IF(F660<0,F660*(-1)*$B666+F660*(-1)*$B666*'1 Données d''entrée'!$C$338,0)","v":{"$error":"#DIV/0!"}},{"$f":"IF(G660<0,G660*(-1)*$B666+G660*(-1)*$B666*'1 Données d''entrée'!$C$338,0)","v":{"$error":"#DIV/0!"}},{"$f":"IF(H660<0,H660*(-1)*$B666+H660*(-1)*$B666*'1 Données d''entrée'!$C$338,0)","v":{"$error":"#DIV/0!"}},{"$f":"IF(I660<0,I660*(-1)*$B666+I660*(-1)*$B666*'1 Données d''entrée'!$C$338,0)","v":{"$error":"#DIV/0!"}},{"$f":"IF(J660<0,J660*(-1)*$B666+J660*(-1)*$B666*'1 Données d''entrée'!$C$338,0)","v":{"$error":"#DIV/0!"}},{"$f":"IF(K660<0,K660*(-1)*$B666+K660*(-1)*$B666*'1 Données d''entrée'!$C$338,0)","v":{"$error":"#DIV/0!"}},{"$f":"IF(L660<0,L660*(-1)*$B666+L660*(-1)*$B666*'1 Données d''entrée'!$C$338,0)","v":{"$error":"#DIV/0!"}},{"$f":"IF(M660<0,M660*(-1)*$B666+M660*(-1)*$B666*'1 Données d''entrée'!$C$338,0)","v":{"$error":"#DIV/0!"}},{"$f":"IF(N660<0,N660*(-1)*$B666+N660*(-1)*$B666*'1 Données d''entrée'!$C$338,0)","v":{"$error":"#DIV/0!"}},{"$f":"IF(O660<0,O660*(-1)*$B666+O660*(-1)*$B666*'1 Données d''entrée'!$C$338,0)","v":{"$error":"#DIV/0!"}},{"$f":"IF(P660<0,P660*(-1)*$B666+P660*(-1)*$B666*'1 Données d''entrée'!$C$338,0)","v":{"$error":"#DIV/0!"}},{"$f":"IF(Q660<0,Q660*(-1)*$B666+Q660*(-1)*$B666*'1 Données d''entrée'!$C$338,0)","v":{"$error":"#DIV/0!"}},{"$f":"IF(R660<0,R660*(-1)*$B666+R660*(-1)*$B666*'1 Données d''entrée'!$C$338,0)","v":{"$error":"#DIV/0!"}},{"$f":"IF(S660<0,S660*(-1)*$B666+S660*(-1)*$B666*'1 Données d''entrée'!$C$338,0)","v":{"$error":"#DIV/0!"}},{"$f":"IF(T660<0,T660*(-1)*$B666+T660*(-1)*$B666*'1 Données d''entrée'!$C$338,0)","v":{"$error":"#DIV/0!"}},{"$f":"IF(U660<0,U660*(-1)*$B666+U660*(-1)*$B666*'1 Données d''entrée'!$C$338,0)","v":{"$error":"#DIV/0!"}},{"$f":"IF(V660<0,V660*(-1)*$B666+V660*(-1)*$B666*'1 Données d''entrée'!$C$338,0)","v":{"$error":"#DIV/0!"}}]
[null,"Période de prêt nouveau"]
["Remboursement du principal",0,0,0,0,0,0,0,0,0,0,0,0,0,0,0,0,0,0,0,0,0]
[null,1,{"$f":"IF(C617<'1 Données d''entrée'!$C$334+1+$B670,0,IF(C617<'1 Données d''entrée'!$C$333+'1 Données d''entrée'!$C$334+1+$B670,($C667/'1 Données d''entrée'!$C$333),0))","v":0},{"$f":"IF(D617<'1 Données d''entrée'!$C$334+1+$B670,0,IF(D617<'1 Données d''entrée'!$C$333+'1 Données d''entrée'!$C$334+1+$B670,($C667/'1 Données d''entrée'!$C$333),0))","v":0},{"$f":"IF(E617<'1 Données d''entrée'!$C$334+1+$B670,0,IF(E617<'1 Données d''entrée'!$C$333+'1 Données d''entrée'!$C$334+1+$B670,($C667/'1 Données d''entrée'!$C$333),0))","v":0},{"$f":"IF(F617<'1 Données d''entrée'!$C$334+1+$B670,0,IF(F617<'1 Données d''entrée'!$C$333+'1 Données d''entrée'!$C$334+1+$B670,($C667/'1 Données d''entrée'!$C$333),0))","v":0},{"$f":"IF(G617<'1 Données d''entrée'!$C$334+1+$B670,0,IF(G617<'1 Données d''entrée'!$C$333+'1 Données d''entrée'!$C$334+1+$B670,($C667/'1 Données d''entrée'!$C$333),0))","v":0},{"$f":"IF(H617<'1 Données d''entrée'!$C$334+1+$B670,0,IF(H617<'1 Données d''entrée'!$C$333+'1 Données d''entrée'!$C$334+1+$B670,($C667/'1 Données d''entrée'!$C$333),0))","v":0},{"$f":"IF(I617<'1 Données d''entrée'!$C$334+1+$B670,0,IF(I617<'1 Données d''entrée'!$C$333+'1 Données d''entrée'!$C$334+1+$B670,($C667/'1 Données d''entrée'!$C$333),0))","v":0},{"$f":"IF(J617<'1 Données d''entrée'!$C$334+1+$B670,0,IF(J617<'1 Données d''entrée'!$C$333+'1 Données d''entrée'!$C$334+1+$B670,($C667/'1 Données d''entrée'!$C$333),0))","v":0},{"$f":"IF(K617<'1 Données d''entrée'!$C$334+1+$B670,0,IF(K617<'1 Données d''entrée'!$C$333+'1 Données d''entrée'!$C$334+1+$B670,($C667/'1 Données d''entrée'!$C$333),0))","v":0},{"$f":"IF(L617<'1 Données d''entrée'!$C$334+1+$B670,0,IF(L617<'1 Données d''entrée'!$C$333+'1 Données d''entrée'!$C$334+1+$B670,($C667/'1 Données d''entrée'!$C$333),0))","v":0},{"$f":"IF(M617<'1 Données d''entrée'!$C$334+1+$B670,0,IF(M617<'1 Données d''entrée'!$C$333+'1 Données d''entrée'!$C$334+1+$B670,($C667/'1 Données d''entrée'!$C$333),0))","v":0},{"$f":"IF(N617<'1 Données d''entrée'!$C$334+1+$B670,0,IF(N617<'1 Données d''entrée'!$C$333+'1 Données d''entrée'!$C$334+1+$B670,($C667/'1 Données d''entrée'!$C$333),0))","v":0},{"$f":"IF(O617<'1 Données d''entrée'!$C$334+1+$B670,0,IF(O617<'1 Données d''entrée'!$C$333+'1 Données d''entrée'!$C$334+1+$B670,($C667/'1 Données d''entrée'!$C$333),0))","v":0},{"$f":"IF(P617<'1 Données d''entrée'!$C$334+1+$B670,0,IF(P617<'1 Données d''entrée'!$C$333+'1 Données d''entrée'!$C$334+1+$B670,($C667/'1 Données d''entrée'!$C$333),0))","v":0},{"$f":"IF(Q617<'1 Données d''entrée'!$C$334+1+$B670,0,IF(Q617<'1 Données d''entrée'!$C$333+'1 Données d''entrée'!$C$334+1+$B670,($C667/'1 Données d''entrée'!$C$333),0))","v":0},{"$f":"IF(R617<'1 Données d''entrée'!$C$334+1+$B670,0,IF(R617<'1 Données d''entrée'!$C$333+'1 Données d''entrée'!$C$334+1+$B670,($C667/'1 Données d''entrée'!$C$333),0))","v":0},{"$f":"IF(S617<'1 Données d''entrée'!$C$334+1+$B670,0,IF(S617<'1 Données d''entrée'!$C$333+'1 Données d''entrée'!$C$334+1+$B670,($C667/'1 Données d''entrée'!$C$333),0))","v":0},{"$f":"IF(T617<'1 Données d''entrée'!$C$334+1+$B670,0,IF(T617<'1 Données d''entrée'!$C$333+'1 Données d''entrée'!$C$334+1+$B670,($C667/'1 Données d''entrée'!$C$333),0))","v":0},{"$f":"IF(U617<'1 Données d''entrée'!$C$334+1+$B670,0,IF(U617<'1 Données d''entrée'!$C$333+'1 Données d''entrée'!$C$334+1+$B670,($C667/'1 Données d''entrée'!$C$333),0))","v":0},{"$f":"IF(V617<'1 Données d''entrée'!$C$334+1+$B670,0,IF(V617<'1 Données d''entrée'!$C$333+'1 Données d''entrée'!$C$334+1+$B670,($C667/'1 Données d''entrée'!$C$333),0))","v":0}]
[null,2,{"$f":"IF(C617<'1 Données d''entrée'!$C$334+1+$B671,0,IF(C617<'1 Données d''entrée'!$C$333+'1 Données d''entrée'!$C$334+1+$B671,($D667/'1 Données d''entrée'!$C$333),0))","v":0},{"$f":"IF(D617<'1 Données d''entrée'!$C$334+1+$B671,0,IF(D617<'1 Données d''entrée'!$C$333+'1 Données d''entrée'!$C$334+1+$B671,($D667/'1 Données d''entrée'!$C$333),0))","v":0},{"$f":"IF(E617<'1 Données d''entrée'!$C$334+1+$B671,0,IF(E617<'1 Données d''entrée'!$C$333+'1 Données d''entrée'!$C$334+1+$B671,($D667/'1 Données d''entrée'!$C$333),0))","v":0},{"$f":"IF(F617<'1 Données d''entrée'!$C$334+1+$B671,0,IF(F617<'1 Données d''entrée'!$C$333+'1 Données d''entrée'!$C$334+1+$B671,($D667/'1 Données d''entrée'!$C$333),0))","v":0},{"$f":"IF(G617<'1 Données d''entrée'!$C$334+1+$B671,0,IF(G617<'1 Données d''entrée'!$C$333+'1 Données d''entrée'!$C$334+1+$B671,($D667/'1 Données d''entrée'!$C$333),0))","v":0},{"$f":"IF(H617<'1 Données d''entrée'!$C$334+1+$B671,0,IF(H617<'1 Données d''entrée'!$C$333+'1 Données d''entrée'!$C$334+1+$B671,($D667/'1 Données d''entrée'!$C$333),0))","v":0},{"$f":"IF(I617<'1 Données d''entrée'!$C$334+1+$B671,0,IF(I617<'1 Données d''entrée'!$C$333+'1 Données d''entrée'!$C$334+1+$B671,($D667/'1 Données d''entrée'!$C$333),0))","v":0},{"$f":"IF(J617<'1 Données d''entrée'!$C$334+1+$B671,0,IF(J617<'1 Données d''entrée'!$C$333+'1 Données d''entrée'!$C$334+1+$B671,($D667/'1 Données d''entrée'!$C$333),0))","v":0},{"$f":"IF(K617<'1 Données d''entrée'!$C$334+1+$B671,0,IF(K617<'1 Données d''entrée'!$C$333+'1 Données d''entrée'!$C$334+1+$B671,($D667/'1 Données d''entrée'!$C$333),0))","v":0},{"$f":"IF(L617<'1 Données d''entrée'!$C$334+1+$B671,0,IF(L617<'1 Données d''entrée'!$C$333+'1 Données d''entrée'!$C$334+1+$B671,($D667/'1 Données d''entrée'!$C$333),0))","v":0},{"$f":"IF(M617<'1 Données d''entrée'!$C$334+1+$B671,0,IF(M617<'1 Données d''entrée'!$C$333+'1 Données d''entrée'!$C$334+1+$B671,($D667/'1 Données d''entrée'!$C$333),0))","v":0},{"$f":"IF(N617<'1 Données d''entrée'!$C$334+1+$B671,0,IF(N617<'1 Données d''entrée'!$C$333+'1 Données d''entrée'!$C$334+1+$B671,($D667/'1 Données d''entrée'!$C$333),0))","v":0},{"$f":"IF(O617<'1 Données d''entrée'!$C$334+1+$B671,0,IF(O617<'1 Données d''entrée'!$C$333+'1 Données d''entrée'!$C$334+1+$B671,($D667/'1 Données d''entrée'!$C$333),0))","v":0},{"$f":"IF(P617<'1 Données d''entrée'!$C$334+1+$B671,0,IF(P617<'1 Données d''entrée'!$C$333+'1 Données d''entrée'!$C$334+1+$B671,($D667/'1 Données d''entrée'!$C$333),0))","v":0},{"$f":"IF(Q617<'1 Données d''entrée'!$C$334+1+$B671,0,IF(Q617<'1 Données d''entrée'!$C$333+'1 Données d''entrée'!$C$334+1+$B671,($D667/'1 Données d''entrée'!$C$333),0))","v":0},{"$f":"IF(R617<'1 Données d''entrée'!$C$334+1+$B671,0,IF(R617<'1 Données d''entrée'!$C$333+'1 Données d''entrée'!$C$334+1+$B671,($D667/'1 Données d''entrée'!$C$333),0))","v":0},{"$f":"IF(S617<'1 Données d''entrée'!$C$334+1+$B671,0,IF(S617<'1 Données d''entrée'!$C$333+'1 Données d''entrée'!$C$334+1+$B671,($D667/'1 Données d''entrée'!$C$333),0))","v":0},{"$f":"IF(T617<'1 Données d''entrée'!$C$334+1+$B671,0,IF(T617<'1 Données d''entrée'!$C$333+'1 Données d''entrée'!$C$334+1+$B671,($D667/'1 Données d''entrée'!$C$333),0))","v":0},{"$f":"IF(U617<'1 Données d''entrée'!$C$334+1+$B671,0,IF(U617<'1 Données d''entrée'!$C$333+'1 Données d''entrée'!$C$334+1+$B671,($D667/'1 Données d''entrée'!$C$333),0))","v":0},{"$f":"IF(V617<'1 Données d''entrée'!$C$334+1+$B671,0,IF(V617<'1 Données d''entrée'!$C$333+'1 Données d''entrée'!$C$334+1+$B671,($D667/'1 Données d''entrée'!$C$333),0))","v":0}]
[null,3,{"$f":"IF(C617<'1 Données d''entrée'!$C$334+1+$B672,0,IF(C617<'1 Données d''entrée'!$C$333+'1 Données d''entrée'!$C$334+1+$B672,($E667/'1 Données d''entrée'!$C$333),0))","v":0},{"$f":"IF(D617<'1 Données d''entrée'!$C$334+1+$B672,0,IF(D617<'1 Données d''entrée'!$C$333+'1 Données d''entrée'!$C$334+1+$B672,($E667/'1 Données d''entrée'!$C$333),0))","v":0},{"$f":"IF(E617<'1 Données d''entrée'!$C$334+1+$B672,0,IF(E617<'1 Données d''entrée'!$C$333+'1 Données d''entrée'!$C$334+1+$B672,($E667/'1 Données d''entrée'!$C$333),0))","v":0},{"$f":"IF(F617<'1 Données d''entrée'!$C$334+1+$B672,0,IF(F617<'1 Données d''entrée'!$C$333+'1 Données d''entrée'!$C$334+1+$B672,($E667/'1 Données d''entrée'!$C$333),0))","v":0},{"$f":"IF(G617<'1 Données d''entrée'!$C$334+1+$B672,0,IF(G617<'1 Données d''entrée'!$C$333+'1 Données d''entrée'!$C$334+1+$B672,($E667/'1 Données d''entrée'!$C$333),0))","v":0},{"$f":"IF(H617<'1 Données d''entrée'!$C$334+1+$B672,0,IF(H617<'1 Données d''entrée'!$C$333+'1 Données d''entrée'!$C$334+1+$B672,($E667/'1 Données d''entrée'!$C$333),0))","v":0},{"$f":"IF(I617<'1 Données d''entrée'!$C$334+1+$B672,0,IF(I617<'1 Données d''entrée'!$C$333+'1 Données d''entrée'!$C$334+1+$B672,($E667/'1 Données d''entrée'!$C$333),0))","v":0},{"$f":"IF(J617<'1 Données d''entrée'!$C$334+1+$B672,0,IF(J617<'1 Données d''entrée'!$C$333+'1 Données d''entrée'!$C$334+1+$B672,($E667/'1 Données d''entrée'!$C$333),0))","v":0},{"$f":"IF(K617<'1 Données d''entrée'!$C$334+1+$B672,0,IF(K617<'1 Données d''entrée'!$C$333+'1 Données d''entrée'!$C$334+1+$B672,($E667/'1 Données d''entrée'!$C$333),0))","v":0},{"$f":"IF(L617<'1 Données d''entrée'!$C$334+1+$B672,0,IF(L617<'1 Données d''entrée'!$C$333+'1 Données d''entrée'!$C$334+1+$B672,($E667/'1 Données d''entrée'!$C$333),0))","v":0},{"$f":"IF(M617<'1 Données d''entrée'!$C$334+1+$B672,0,IF(M617<'1 Données d''entrée'!$C$333+'1 Données d''entrée'!$C$334+1+$B672,($E667/'1 Données d''entrée'!$C$333),0))","v":0},{"$f":"IF(N617<'1 Données d''entrée'!$C$334+1+$B672,0,IF(N617<'1 Données d''entrée'!$C$333+'1 Données d''entrée'!$C$334+1+$B672,($E667/'1 Données d''entrée'!$C$333),0))","v":0},{"$f":"IF(O617<'1 Données d''entrée'!$C$334+1+$B672,0,IF(O617<'1 Données d''entrée'!$C$333+'1 Données d''entrée'!$C$334+1+$B672,($E667/'1 Données d''entrée'!$C$333),0))","v":0},{"$f":"IF(P617<'1 Données d''entrée'!$C$334+1+$B672,0,IF(P617<'1 Données d''entrée'!$C$333+'1 Données d''entrée'!$C$334+1+$B672,($E667/'1 Données d''entrée'!$C$333),0))","v":0},{"$f":"IF(Q617<'1 Données d''entrée'!$C$334+1+$B672,0,IF(Q617<'1 Données d''entrée'!$C$333+'1 Données d''entrée'!$C$334+1+$B672,($E667/'1 Données d''entrée'!$C$333),0))","v":0},{"$f":"IF(R617<'1 Données d''entrée'!$C$334+1+$B672,0,IF(R617<'1 Données d''entrée'!$C$333+'1 Données d''entrée'!$C$334+1+$B672,($E667/'1 Données d''entrée'!$C$333),0))","v":0},{"$f":"IF(S617<'1 Données d''entrée'!$C$334+1+$B672,0,IF(S617<'1 Données d''entrée'!$C$333+'1 Données d''entrée'!$C$334+1+$B672,($E667/'1 Données d''entrée'!$C$333),0))","v":0},{"$f":"IF(T617<'1 Données d''entrée'!$C$334+1+$B672,0,IF(T617<'1 Données d''entrée'!$C$333+'1 Données d''entrée'!$C$334+1+$B672,($E667/'1 Données d''entrée'!$C$333),0))","v":0},{"$f":"IF(U617<'1 Données d''entrée'!$C$334+1+$B672,0,IF(U617<'1 Données d''entrée'!$C$333+'1 Données d''entrée'!$C$334+1+$B672,($E667/'1 Données d''entrée'!$C$333),0))","v":0},{"$f":"IF(V617<'1 Données d''entrée'!$C$334+1+$B672,0,IF(V617<'1 Données d''entrée'!$C$333+'1 Données d''entrée'!$C$334+1+$B672,($E667/'1 Données d''entrée'!$C$333),0))","v":0}]
[null,4,{"$f":"IF(C617<'1 Données d''entrée'!$C$334+1+$B673,0,IF(C617<'1 Données d''entrée'!$C$333+'1 Données d''entrée'!$C$334+1+$B673,($F667/'1 Données d''entrée'!$C$333),0))","v":0},{"$f":"IF(D617<'1 Données d''entrée'!$C$334+1+$B673,0,IF(D617<'1 Données d''entrée'!$C$333+'1 Données d''entrée'!$C$334+1+$B673,($F667/'1 Données d''entrée'!$C$333),0))","v":0},{"$f":"IF(E617<'1 Données d''entrée'!$C$334+1+$B673,0,IF(E617<'1 Données d''entrée'!$C$333+'1 Données d''entrée'!$C$334+1+$B673,($F667/'1 Données d''entrée'!$C$333),0))","v":0},{"$f":"IF(F617<'1 Données d''entrée'!$C$334+1+$B673,0,IF(F617<'1 Données d''entrée'!$C$333+'1 Données d''entrée'!$C$334+1+$B673,($F667/'1 Données d''entrée'!$C$333),0))","v":0},{"$f":"IF(G617<'1 Données d''entrée'!$C$334+1+$B673,0,IF(G617<'1 Données d''entrée'!$C$333+'1 Données d''entrée'!$C$334+1+$B673,($F667/'1 Données d''entrée'!$C$333),0))","v":0},{"$f":"IF(H617<'1 Données d''entrée'!$C$334+1+$B673,0,IF(H617<'1 Données d''entrée'!$C$333+'1 Données d''entrée'!$C$334+1+$B673,($F667/'1 Données d''entrée'!$C$333),0))","v":0},{"$f":"IF(I617<'1 Données d''entrée'!$C$334+1+$B673,0,IF(I617<'1 Données d''entrée'!$C$333+'1 Données d''entrée'!$C$334+1+$B673,($F667/'1 Données d''entrée'!$C$333),0))","v":0},{"$f":"IF(J617<'1 Données d''entrée'!$C$334+1+$B673,0,IF(J617<'1 Données d''entrée'!$C$333+'1 Données d''entrée'!$C$334+1+$B673,($F667/'1 Données d''entrée'!$C$333),0))","v":0},{"$f":"IF(K617<'1 Données d''entrée'!$C$334+1+$B673,0,IF(K617<'1 Données d''entrée'!$C$333+'1 Données d''entrée'!$C$334+1+$B673,($F667/'1 Données d''entrée'!$C$333),0))","v":0},{"$f":"IF(L617<'1 Données d''entrée'!$C$334+1+$B673,0,IF(L617<'1 Données d''entrée'!$C$333+'1 Données d''entrée'!$C$334+1+$B673,($F667/'1 Données d''entrée'!$C$333),0))","v":0},{"$f":"IF(M617<'1 Données d''entrée'!$C$334+1+$B673,0,IF(M617<'1 Données d''entrée'!$C$333+'1 Données d''entrée'!$C$334+1+$B673,($F667/'1 Données d''entrée'!$C$333),0))","v":0},{"$f":"IF(N617<'1 Données d''entrée'!$C$334+1+$B673,0,IF(N617<'1 Données d''entrée'!$C$333+'1 Données d''entrée'!$C$334+1+$B673,($F667/'1 Données d''entrée'!$C$333),0))","v":0},{"$f":"IF(O617<'1 Données d''entrée'!$C$334+1+$B673,0,IF(O617<'1 Données d''entrée'!$C$333+'1 Données d''entrée'!$C$334+1+$B673,($F667/'1 Données d''entrée'!$C$333),0))","v":0},{"$f":"IF(P617<'1 Données d''entrée'!$C$334+1+$B673,0,IF(P617<'1 Données d''entrée'!$C$333+'1 Données d''entrée'!$C$334+1+$B673,($F667/'1 Données d''entrée'!$C$333),0))","v":0},{"$f":"IF(Q617<'1 Données d''entrée'!$C$334+1+$B673,0,IF(Q617<'1 Données d''entrée'!$C$333+'1 Données d''entrée'!$C$334+1+$B673,($F667/'1 Données d''entrée'!$C$333),0))","v":0},{"$f":"IF(R617<'1 Données d''entrée'!$C$334+1+$B673,0,IF(R617<'1 Données d''entrée'!$C$333+'1 Données d''entrée'!$C$334+1+$B673,($F667/'1 Données d''entrée'!$C$333),0))","v":0},{"$f":"IF(S617<'1 Données d''entrée'!$C$334+1+$B673,0,IF(S617<'1 Données d''entrée'!$C$333+'1 Données d''entrée'!$C$334+1+$B673,($F667/'1 Données d''entrée'!$C$333),0))","v":0},{"$f":"IF(T617<'1 Données d''entrée'!$C$334+1+$B673,0,IF(T617<'1 Données d''entrée'!$C$333+'1 Données d''entrée'!$C$334+1+$B673,($F667/'1 Données d''entrée'!$C$333),0))","v":0},{"$f":"IF(U617<'1 Données d''entrée'!$C$334+1+$B673,0,IF(U617<'1 Données d''entrée'!$C$333+'1 Données d''entrée'!$C$334+1+$B673,($F667/'1 Données d''entrée'!$C$333),0))","v":0},{"$f":"IF(V617<'1 Données d''entrée'!$C$334+1+$B673,0,IF(V617<'1 Données d''entrée'!$C$333+'1 Données d''entrée'!$C$334+1+$B673,($F667/'1 Données d''entrée'!$C$333),0))","v":0}]
[null,5,{"$f":"IF(C617<'1 Données d''entrée'!$C$334+1+$B674,0,IF(C617<'1 Données d''entrée'!$C$333+'1 Données d''entrée'!$C$334+1+$B674,($G667/'1 Données d''entrée'!$C$333),0))","v":0},{"$f":"IF(D617<'1 Données d''entrée'!$C$334+1+$B674,0,IF(D617<'1 Données d''entrée'!$C$333+'1 Données d''entrée'!$C$334+1+$B674,($G667/'1 Données d''entrée'!$C$333),0))","v":0},{"$f":"IF(E617<'1 Données d''entrée'!$C$334+1+$B674,0,IF(E617<'1 Données d''entrée'!$C$333+'1 Données d''entrée'!$C$334+1+$B674,($G667/'1 Données d''entrée'!$C$333),0))","v":0},{"$f":"IF(F617<'1 Données d''entrée'!$C$334+1+$B674,0,IF(F617<'1 Données d''entrée'!$C$333+'1 Données d''entrée'!$C$334+1+$B674,($G667/'1 Données d''entrée'!$C$333),0))","v":0},{"$f":"IF(G617<'1 Données d''entrée'!$C$334+1+$B674,0,IF(G617<'1 Données d''entrée'!$C$333+'1 Données d''entrée'!$C$334+1+$B674,($G667/'1 Données d''entrée'!$C$333),0))","v":0},{"$f":"IF(H617<'1 Données d''entrée'!$C$334+1+$B674,0,IF(H617<'1 Données d''entrée'!$C$333+'1 Données d''entrée'!$C$334+1+$B674,($G667/'1 Données d''entrée'!$C$333),0))","v":0},{"$f":"IF(I617<'1 Données d''entrée'!$C$334+1+$B674,0,IF(I617<'1 Données d''entrée'!$C$333+'1 Données d''entrée'!$C$334+1+$B674,($G667/'1 Données d''entrée'!$C$333),0))","v":0},{"$f":"IF(J617<'1 Données d''entrée'!$C$334+1+$B674,0,IF(J617<'1 Données d''entrée'!$C$333+'1 Données d''entrée'!$C$334+1+$B674,($G667/'1 Données d''entrée'!$C$333),0))","v":0},{"$f":"IF(K617<'1 Données d''entrée'!$C$334+1+$B674,0,IF(K617<'1 Données d''entrée'!$C$333+'1 Données d''entrée'!$C$334+1+$B674,($G667/'1 Données d''entrée'!$C$333),0))","v":0},{"$f":"IF(L617<'1 Données d''entrée'!$C$334+1+$B674,0,IF(L617<'1 Données d''entrée'!$C$333+'1 Données d''entrée'!$C$334+1+$B674,($G667/'1 Données d''entrée'!$C$333),0))","v":0},{"$f":"IF(M617<'1 Données d''entrée'!$C$334+1+$B674,0,IF(M617<'1 Données d''entrée'!$C$333+'1 Données d''entrée'!$C$334+1+$B674,($G667/'1 Données d''entrée'!$C$333),0))","v":0},{"$f":"IF(N617<'1 Données d''entrée'!$C$334+1+$B674,0,IF(N617<'1 Données d''entrée'!$C$333+'1 Données d''entrée'!$C$334+1+$B674,($G667/'1 Données d''entrée'!$C$333),0))","v":0},{"$f":"IF(O617<'1 Données d''entrée'!$C$334+1+$B674,0,IF(O617<'1 Données d''entrée'!$C$333+'1 Données d''entrée'!$C$334+1+$B674,($G667/'1 Données d''entrée'!$C$333),0))","v":0},{"$f":"IF(P617<'1 Données d''entrée'!$C$334+1+$B674,0,IF(P617<'1 Données d''entrée'!$C$333+'1 Données d''entrée'!$C$334+1+$B674,($G667/'1 Données d''entrée'!$C$333),0))","v":0},{"$f":"IF(Q617<'1 Données d''entrée'!$C$334+1+$B674,0,IF(Q617<'1 Données d''entrée'!$C$333+'1 Données d''entrée'!$C$334+1+$B674,($G667/'1 Données d''entrée'!$C$333),0))","v":0},{"$f":"IF(R617<'1 Données d''entrée'!$C$334+1+$B674,0,IF(R617<'1 Données d''entrée'!$C$333+'1 Données d''entrée'!$C$334+1+$B674,($G667/'1 Données d''entrée'!$C$333),0))","v":0},{"$f":"IF(S617<'1 Données d''entrée'!$C$334+1+$B674,0,IF(S617<'1 Données d''entrée'!$C$333+'1 Données d''entrée'!$C$334+1+$B674,($G667/'1 Données d''entrée'!$C$333),0))","v":0},{"$f":"IF(T617<'1 Données d''entrée'!$C$334+1+$B674,0,IF(T617<'1 Données d''entrée'!$C$333+'1 Données d''entrée'!$C$334+1+$B674,($G667/'1 Données d''entrée'!$C$333),0))","v":0},{"$f":"IF(U617<'1 Données d''entrée'!$C$334+1+$B674,0,IF(U617<'1 Données d''entrée'!$C$333+'1 Données d''entrée'!$C$334+1+$B674,($G667/'1 Données d''entrée'!$C$333),0))","v":0},{"$f":"IF(V617<'1 Données d''entrée'!$C$334+1+$B674,0,IF(V617<'1 Données d''entrée'!$C$333+'1 Données d''entrée'!$C$334+1+$B674,($G667/'1 Données d''entrée'!$C$333),0))","v":0}]
[null,6,{"$f":"IF(C617<'1 Données d''entrée'!$C$334+1+$B675,0,IF(C617<'1 Données d''entrée'!$C$333+'1 Données d''entrée'!$C$334+1+$B675,($H667/'1 Données d''entrée'!$C$333),0))","v":0},{"$f":"IF(D617<'1 Données d''entrée'!$C$334+1+$B675,0,IF(D617<'1 Données d''entrée'!$C$333+'1 Données d''entrée'!$C$334+1+$B675,($H667/'1 Données d''entrée'!$C$333),0))","v":0},{"$f":"IF(E617<'1 Données d''entrée'!$C$334+1+$B675,0,IF(E617<'1 Données d''entrée'!$C$333+'1 Données d''entrée'!$C$334+1+$B675,($H667/'1 Données d''entrée'!$C$333),0))","v":0},{"$f":"IF(F617<'1 Données d''entrée'!$C$334+1+$B675,0,IF(F617<'1 Données d''entrée'!$C$333+'1 Données d''entrée'!$C$334+1+$B675,($H667/'1 Données d''entrée'!$C$333),0))","v":0},{"$f":"IF(G617<'1 Données d''entrée'!$C$334+1+$B675,0,IF(G617<'1 Données d''entrée'!$C$333+'1 Données d''entrée'!$C$334+1+$B675,($H667/'1 Données d''entrée'!$C$333),0))","v":0},{"$f":"IF(H617<'1 Données d''entrée'!$C$334+1+$B675,0,IF(H617<'1 Données d''entrée'!$C$333+'1 Données d''entrée'!$C$334+1+$B675,($H667/'1 Données d''entrée'!$C$333),0))","v":0},{"$f":"IF(I617<'1 Données d''entrée'!$C$334+1+$B675,0,IF(I617<'1 Données d''entrée'!$C$333+'1 Données d''entrée'!$C$334+1+$B675,($H667/'1 Données d''entrée'!$C$333),0))","v":0},{"$f":"IF(J617<'1 Données d''entrée'!$C$334+1+$B675,0,IF(J617<'1 Données d''entrée'!$C$333+'1 Données d''entrée'!$C$334+1+$B675,($H667/'1 Données d''entrée'!$C$333),0))","v":0},{"$f":"IF(K617<'1 Données d''entrée'!$C$334+1+$B675,0,IF(K617<'1 Données d''entrée'!$C$333+'1 Données d''entrée'!$C$334+1+$B675,($H667/'1 Données d''entrée'!$C$333),0))","v":0},{"$f":"IF(L617<'1 Données d''entrée'!$C$334+1+$B675,0,IF(L617<'1 Données d''entrée'!$C$333+'1 Données d''entrée'!$C$334+1+$B675,($H667/'1 Données d''entrée'!$C$333),0))","v":0},{"$f":"IF(M617<'1 Données d''entrée'!$C$334+1+$B675,0,IF(M617<'1 Données d''entrée'!$C$333+'1 Données d''entrée'!$C$334+1+$B675,($H667/'1 Données d''entrée'!$C$333),0))","v":0},{"$f":"IF(N617<'1 Données d''entrée'!$C$334+1+$B675,0,IF(N617<'1 Données d''entrée'!$C$333+'1 Données d''entrée'!$C$334+1+$B675,($H667/'1 Données d''entrée'!$C$333),0))","v":0},{"$f":"IF(O617<'1 Données d''entrée'!$C$334+1+$B675,0,IF(O617<'1 Données d''entrée'!$C$333+'1 Données d''entrée'!$C$334+1+$B675,($H667/'1 Données d''entrée'!$C$333),0))","v":0},{"$f":"IF(P617<'1 Données d''entrée'!$C$334+1+$B675,0,IF(P617<'1 Données d''entrée'!$C$333+'1 Données d''entrée'!$C$334+1+$B675,($H667/'1 Données d''entrée'!$C$333),0))","v":0},{"$f":"IF(Q617<'1 Données d''entrée'!$C$334+1+$B675,0,IF(Q617<'1 Données d''entrée'!$C$333+'1 Données d''entrée'!$C$334+1+$B675,($H667/'1 Données d''entrée'!$C$333),0))","v":0},{"$f":"IF(R617<'1 Données d''entrée'!$C$334+1+$B675,0,IF(R617<'1 Données d''entrée'!$C$333+'1 Données d''entrée'!$C$334+1+$B675,($H667/'1 Données d''entrée'!$C$333),0))","v":0},{"$f":"IF(S617<'1 Données d''entrée'!$C$334+1+$B675,0,IF(S617<'1 Données d''entrée'!$C$333+'1 Données d''entrée'!$C$334+1+$B675,($H667/'1 Données d''entrée'!$C$333),0))","v":0},{"$f":"IF(T617<'1 Données d''entrée'!$C$334+1+$B675,0,IF(T617<'1 Données d''entrée'!$C$333+'1 Données d''entrée'!$C$334+1+$B675,($H667/'1 Données d''entrée'!$C$333),0))","v":0},{"$f":"IF(U617<'1 Données d''entrée'!$C$334+1+$B675,0,IF(U617<'1 Données d''entrée'!$C$333+'1 Données d''entrée'!$C$334+1+$B675,($H667/'1 Données d''entrée'!$C$333),0))","v":0},{"$f":"IF(V617<'1 Données d''entrée'!$C$334+1+$B675,0,IF(V617<'1 Données d''entrée'!$C$333+'1 Données d''entrée'!$C$334+1+$B675,($H667/'1 Données d''entrée'!$C$333),0))","v":0}]
[null,7,{"$f":"IF(C617<'1 Données d''entrée'!$C$334+1+$B676,0,IF(C617<'1 Données d''entrée'!$C$333+'1 Données d''entrée'!$C$334+1+$B676,($I667/'1 Données d''entrée'!$C$333),0))","v":0},{"$f":"IF(D617<'1 Données d''entrée'!$C$334+1+$B676,0,IF(D617<'1 Données d''entrée'!$C$333+'1 Données d''entrée'!$C$334+1+$B676,($I667/'1 Données d''entrée'!$C$333),0))","v":0},{"$f":"IF(E617<'1 Données d''entrée'!$C$334+1+$B676,0,IF(E617<'1 Données d''entrée'!$C$333+'1 Données d''entrée'!$C$334+1+$B676,($I667/'1 Données d''entrée'!$C$333),0))","v":0},{"$f":"IF(F617<'1 Données d''entrée'!$C$334+1+$B676,0,IF(F617<'1 Données d''entrée'!$C$333+'1 Données d''entrée'!$C$334+1+$B676,($I667/'1 Données d''entrée'!$C$333),0))","v":0},{"$f":"IF(G617<'1 Données d''entrée'!$C$334+1+$B676,0,IF(G617<'1 Données d''entrée'!$C$333+'1 Données d''entrée'!$C$334+1+$B676,($I667/'1 Données d''entrée'!$C$333),0))","v":0},{"$f":"IF(H617<'1 Données d''entrée'!$C$334+1+$B676,0,IF(H617<'1 Données d''entrée'!$C$333+'1 Données d''entrée'!$C$334+1+$B676,($I667/'1 Données d''entrée'!$C$333),0))","v":0},{"$f":"IF(I617<'1 Données d''entrée'!$C$334+1+$B676,0,IF(I617<'1 Données d''entrée'!$C$333+'1 Données d''entrée'!$C$334+1+$B676,($I667/'1 Données d''entrée'!$C$333),0))","v":0},{"$f":"IF(J617<'1 Données d''entrée'!$C$334+1+$B676,0,IF(J617<'1 Données d''entrée'!$C$333+'1 Données d''entrée'!$C$334+1+$B676,($I667/'1 Données d''entrée'!$C$333),0))","v":0},{"$f":"IF(K617<'1 Données d''entrée'!$C$334+1+$B676,0,IF(K617<'1 Données d''entrée'!$C$333+'1 Données d''entrée'!$C$334+1+$B676,($I667/'1 Données d''entrée'!$C$333),0))","v":0},{"$f":"IF(L617<'1 Données d''entrée'!$C$334+1+$B676,0,IF(L617<'1 Données d''entrée'!$C$333+'1 Données d''entrée'!$C$334+1+$B676,($I667/'1 Données d''entrée'!$C$333),0))","v":0},{"$f":"IF(M617<'1 Données d''entrée'!$C$334+1+$B676,0,IF(M617<'1 Données d''entrée'!$C$333+'1 Données d''entrée'!$C$334+1+$B676,($I667/'1 Données d''entrée'!$C$333),0))","v":0},{"$f":"IF(N617<'1 Données d''entrée'!$C$334+1+$B676,0,IF(N617<'1 Données d''entrée'!$C$333+'1 Données d''entrée'!$C$334+1+$B676,($I667/'1 Données d''entrée'!$C$333),0))","v":0},{"$f":"IF(O617<'1 Données d''entrée'!$C$334+1+$B676,0,IF(O617<'1 Données d''entrée'!$C$333+'1 Données d''entrée'!$C$334+1+$B676,($I667/'1 Données d''entrée'!$C$333),0))","v":0},{"$f":"IF(P617<'1 Données d''entrée'!$C$334+1+$B676,0,IF(P617<'1 Données d''entrée'!$C$333+'1 Données d''entrée'!$C$334+1+$B676,($I667/'1 Données d''entrée'!$C$333),0))","v":0},{"$f":"IF(Q617<'1 Données d''entrée'!$C$334+1+$B676,0,IF(Q617<'1 Données d''entrée'!$C$333+'1 Données d''entrée'!$C$334+1+$B676,($I667/'1 Données d''entrée'!$C$333),0))","v":0},{"$f":"IF(R617<'1 Données d''entrée'!$C$334+1+$B676,0,IF(R617<'1 Données d''entrée'!$C$333+'1 Données d''entrée'!$C$334+1+$B676,($I667/'1 Données d''entrée'!$C$333),0))","v":0},{"$f":"IF(S617<'1 Données d''entrée'!$C$334+1+$B676,0,IF(S617<'1 Données d''entrée'!$C$333+'1 Données d''entrée'!$C$334+1+$B676,($I667/'1 Données d''entrée'!$C$333),0))","v":0},{"$f":"IF(T617<'1 Données d''entrée'!$C$334+1+$B676,0,IF(T617<'1 Données d''entrée'!$C$333+'1 Données d''entrée'!$C$334+1+$B676,($I667/'1 Données d''entrée'!$C$333),0))","v":0},{"$f":"IF(U617<'1 Données d''entrée'!$C$334+1+$B676,0,IF(U617<'1 Données d''entrée'!$C$333+'1 Données d''entrée'!$C$334+1+$B676,($I667/'1 Données d''entrée'!$C$333),0))","v":0},{"$f":"IF(V617<'1 Données d''entrée'!$C$334+1+$B676,0,IF(V617<'1 Données d''entrée'!$C$333+'1 Données d''entrée'!$C$334+1+$B676,($I667/'1 Données d''entrée'!$C$333),0))","v":0}]
[null,8,{"$f":"IF(C617<'1 Données d''entrée'!$C$334+1+$B677,0,IF(C617<'1 Données d''entrée'!$C$333+'1 Données d''entrée'!$C$334+1+$B677,($J667/'1 Données d''entrée'!$C$333),0))","v":0},{"$f":"IF(D617<'1 Données d''entrée'!$C$334+1+$B677,0,IF(D617<'1 Données d''entrée'!$C$333+'1 Données d''entrée'!$C$334+1+$B677,($J667/'1 Données d''entrée'!$C$333),0))","v":0},{"$f":"IF(E617<'1 Données d''entrée'!$C$334+1+$B677,0,IF(E617<'1 Données d''entrée'!$C$333+'1 Données d''entrée'!$C$334+1+$B677,($J667/'1 Données d''entrée'!$C$333),0))","v":0},{"$f":"IF(F617<'1 Données d''entrée'!$C$334+1+$B677,0,IF(F617<'1 Données d''entrée'!$C$333+'1 Données d''entrée'!$C$334+1+$B677,($J667/'1 Données d''entrée'!$C$333),0))","v":0},{"$f":"IF(G617<'1 Données d''entrée'!$C$334+1+$B677,0,IF(G617<'1 Données d''entrée'!$C$333+'1 Données d''entrée'!$C$334+1+$B677,($J667/'1 Données d''entrée'!$C$333),0))","v":0},{"$f":"IF(H617<'1 Données d''entrée'!$C$334+1+$B677,0,IF(H617<'1 Données d''entrée'!$C$333+'1 Données d''entrée'!$C$334+1+$B677,($J667/'1 Données d''entrée'!$C$333),0))","v":0},{"$f":"IF(I617<'1 Données d''entrée'!$C$334+1+$B677,0,IF(I617<'1 Données d''entrée'!$C$333+'1 Données d''entrée'!$C$334+1+$B677,($J667/'1 Données d''entrée'!$C$333),0))","v":0},{"$f":"IF(J617<'1 Données d''entrée'!$C$334+1+$B677,0,IF(J617<'1 Données d''entrée'!$C$333+'1 Données d''entrée'!$C$334+1+$B677,($J667/'1 Données d''entrée'!$C$333),0))","v":0},{"$f":"IF(K617<'1 Données d''entrée'!$C$334+1+$B677,0,IF(K617<'1 Données d''entrée'!$C$333+'1 Données d''entrée'!$C$334+1+$B677,($J667/'1 Données d''entrée'!$C$333),0))","v":0},{"$f":"IF(L617<'1 Données d''entrée'!$C$334+1+$B677,0,IF(L617<'1 Données d''entrée'!$C$333+'1 Données d''entrée'!$C$334+1+$B677,($J667/'1 Données d''entrée'!$C$333),0))","v":0},{"$f":"IF(M617<'1 Données d''entrée'!$C$334+1+$B677,0,IF(M617<'1 Données d''entrée'!$C$333+'1 Données d''entrée'!$C$334+1+$B677,($J667/'1 Données d''entrée'!$C$333),0))","v":0},{"$f":"IF(N617<'1 Données d''entrée'!$C$334+1+$B677,0,IF(N617<'1 Données d''entrée'!$C$333+'1 Données d''entrée'!$C$334+1+$B677,($J667/'1 Données d''entrée'!$C$333),0))","v":0},{"$f":"IF(O617<'1 Données d''entrée'!$C$334+1+$B677,0,IF(O617<'1 Données d''entrée'!$C$333+'1 Données d''entrée'!$C$334+1+$B677,($J667/'1 Données d''entrée'!$C$333),0))","v":0},{"$f":"IF(P617<'1 Données d''entrée'!$C$334+1+$B677,0,IF(P617<'1 Données d''entrée'!$C$333+'1 Données d''entrée'!$C$334+1+$B677,($J667/'1 Données d''entrée'!$C$333),0))","v":0},{"$f":"IF(Q617<'1 Données d''entrée'!$C$334+1+$B677,0,IF(Q617<'1 Données d''entrée'!$C$333+'1 Données d''entrée'!$C$334+1+$B677,($J667/'1 Données d''entrée'!$C$333),0))","v":0},{"$f":"IF(R617<'1 Données d''entrée'!$C$334+1+$B677,0,IF(R617<'1 Données d''entrée'!$C$333+'1 Données d''entrée'!$C$334+1+$B677,($J667/'1 Données d''entrée'!$C$333),0))","v":0},{"$f":"IF(S617<'1 Données d''entrée'!$C$334+1+$B677,0,IF(S617<'1 Données d''entrée'!$C$333+'1 Données d''entrée'!$C$334+1+$B677,($J667/'1 Données d''entrée'!$C$333),0))","v":0},{"$f":"IF(T617<'1 Données d''entrée'!$C$334+1+$B677,0,IF(T617<'1 Données d''entrée'!$C$333+'1 Données d''entrée'!$C$334+1+$B677,($J667/'1 Données d''entrée'!$C$333),0))","v":0},{"$f":"IF(U617<'1 Données d''entrée'!$C$334+1+$B677,0,IF(U617<'1 Données d''entrée'!$C$333+'1 Données d''entrée'!$C$334+1+$B677,($J667/'1 Données d''entrée'!$C$333),0))","v":0},{"$f":"IF(V617<'1 Données d''entrée'!$C$334+1+$B677,0,IF(V617<'1 Données d''entrée'!$C$333+'1 Données d''entrée'!$C$334+1+$B677,($J667/'1 Données d''entrée'!$C$333),0))","v":0}]
[null,9,{"$f":"IF(C617<'1 Données d''entrée'!$C$334+1+$B678,0,IF(C617<'1 Données d''entrée'!$C$333+'1 Données d''entrée'!$C$334+1+$B678,($K667/'1 Données d''entrée'!$C$333),0))","v":0},{"$f":"IF(D617<'1 Données d''entrée'!$C$334+1+$B678,0,IF(D617<'1 Données d''entrée'!$C$333+'1 Données d''entrée'!$C$334+1+$B678,($K667/'1 Données d''entrée'!$C$333),0))","v":0},{"$f":"IF(E617<'1 Données d''entrée'!$C$334+1+$B678,0,IF(E617<'1 Données d''entrée'!$C$333+'1 Données d''entrée'!$C$334+1+$B678,($K667/'1 Données d''entrée'!$C$333),0))","v":0},{"$f":"IF(F617<'1 Données d''entrée'!$C$334+1+$B678,0,IF(F617<'1 Données d''entrée'!$C$333+'1 Données d''entrée'!$C$334+1+$B678,($K667/'1 Données d''entrée'!$C$333),0))","v":0},{"$f":"IF(G617<'1 Données d''entrée'!$C$334+1+$B678,0,IF(G617<'1 Données d''entrée'!$C$333+'1 Données d''entrée'!$C$334+1+$B678,($K667/'1 Données d''entrée'!$C$333),0))","v":0},{"$f":"IF(H617<'1 Données d''entrée'!$C$334+1+$B678,0,IF(H617<'1 Données d''entrée'!$C$333+'1 Données d''entrée'!$C$334+1+$B678,($K667/'1 Données d''entrée'!$C$333),0))","v":0},{"$f":"IF(I617<'1 Données d''entrée'!$C$334+1+$B678,0,IF(I617<'1 Données d''entrée'!$C$333+'1 Données d''entrée'!$C$334+1+$B678,($K667/'1 Données d''entrée'!$C$333),0))","v":0},{"$f":"IF(J617<'1 Données d''entrée'!$C$334+1+$B678,0,IF(J617<'1 Données d''entrée'!$C$333+'1 Données d''entrée'!$C$334+1+$B678,($K667/'1 Données d''entrée'!$C$333),0))","v":0},{"$f":"IF(K617<'1 Données d''entrée'!$C$334+1+$B678,0,IF(K617<'1 Données d''entrée'!$C$333+'1 Données d''entrée'!$C$334+1+$B678,($K667/'1 Données d''entrée'!$C$333),0))","v":0},{"$f":"IF(L617<'1 Données d''entrée'!$C$334+1+$B678,0,IF(L617<'1 Données d''entrée'!$C$333+'1 Données d''entrée'!$C$334+1+$B678,($K667/'1 Données d''entrée'!$C$333),0))","v":0},{"$f":"IF(M617<'1 Données d''entrée'!$C$334+1+$B678,0,IF(M617<'1 Données d''entrée'!$C$333+'1 Données d''entrée'!$C$334+1+$B678,($K667/'1 Données d''entrée'!$C$333),0))","v":0},{"$f":"IF(N617<'1 Données d''entrée'!$C$334+1+$B678,0,IF(N617<'1 Données d''entrée'!$C$333+'1 Données d''entrée'!$C$334+1+$B678,($K667/'1 Données d''entrée'!$C$333),0))","v":0},{"$f":"IF(O617<'1 Données d''entrée'!$C$334+1+$B678,0,IF(O617<'1 Données d''entrée'!$C$333+'1 Données d''entrée'!$C$334+1+$B678,($K667/'1 Données d''entrée'!$C$333),0))","v":0},{"$f":"IF(P617<'1 Données d''entrée'!$C$334+1+$B678,0,IF(P617<'1 Données d''entrée'!$C$333+'1 Données d''entrée'!$C$334+1+$B678,($K667/'1 Données d''entrée'!$C$333),0))","v":0},{"$f":"IF(Q617<'1 Données d''entrée'!$C$334+1+$B678,0,IF(Q617<'1 Données d''entrée'!$C$333+'1 Données d''entrée'!$C$334+1+$B678,($K667/'1 Données d''entrée'!$C$333),0))","v":0},{"$f":"IF(R617<'1 Données d''entrée'!$C$334+1+$B678,0,IF(R617<'1 Données d''entrée'!$C$333+'1 Données d''entrée'!$C$334+1+$B678,($K667/'1 Données d''entrée'!$C$333),0))","v":0},{"$f":"IF(S617<'1 Données d''entrée'!$C$334+1+$B678,0,IF(S617<'1 Données d''entrée'!$C$333+'1 Données d''entrée'!$C$334+1+$B678,($K667/'1 Données d''entrée'!$C$333),0))","v":0},{"$f":"IF(T617<'1 Données d''entrée'!$C$334+1+$B678,0,IF(T617<'1 Données d''entrée'!$C$333+'1 Données d''entrée'!$C$334+1+$B678,($K667/'1 Données d''entrée'!$C$333),0))","v":0},{"$f":"IF(U617<'1 Données d''entrée'!$C$334+1+$B678,0,IF(U617<'1 Données d''entrée'!$C$333+'1 Données d''entrée'!$C$334+1+$B678,($K667/'1 Données d''entrée'!$C$333),0))","v":0},{"$f":"IF(V617<'1 Données d''entrée'!$C$334+1+$B678,0,IF(V617<'1 Données d''entrée'!$C$333+'1 Données d''entrée'!$C$334+1+$B678,($K667/'1 Données d''entrée'!$C$333),0))","v":0}]
[null,10,{"$f":"IF(C617<'1 Données d''entrée'!$C$334+1+$B679,0,IF(C617<'1 Données d''entrée'!$C$333+'1 Données d''entrée'!$C$334+1+$B679,($L667/'1 Données d''entrée'!$C$333),0))","v":0},{"$f":"IF(D617<'1 Données d''entrée'!$C$334+1+$B679,0,IF(D617<'1 Données d''entrée'!$C$333+'1 Données d''entrée'!$C$334+1+$B679,($L667/'1 Données d''entrée'!$C$333),0))","v":0},{"$f":"IF(E617<'1 Données d''entrée'!$C$334+1+$B679,0,IF(E617<'1 Données d''entrée'!$C$333+'1 Données d''entrée'!$C$334+1+$B679,($L667/'1 Données d''entrée'!$C$333),0))","v":0},{"$f":"IF(F617<'1 Données d''entrée'!$C$334+1+$B679,0,IF(F617<'1 Données d''entrée'!$C$333+'1 Données d''entrée'!$C$334+1+$B679,($L667/'1 Données d''entrée'!$C$333),0))","v":0},{"$f":"IF(G617<'1 Données d''entrée'!$C$334+1+$B679,0,IF(G617<'1 Données d''entrée'!$C$333+'1 Données d''entrée'!$C$334+1+$B679,($L667/'1 Données d''entrée'!$C$333),0))","v":0},{"$f":"IF(H617<'1 Données d''entrée'!$C$334+1+$B679,0,IF(H617<'1 Données d''entrée'!$C$333+'1 Données d''entrée'!$C$334+1+$B679,($L667/'1 Données d''entrée'!$C$333),0))","v":0},{"$f":"IF(I617<'1 Données d''entrée'!$C$334+1+$B679,0,IF(I617<'1 Données d''entrée'!$C$333+'1 Données d''entrée'!$C$334+1+$B679,($L667/'1 Données d''entrée'!$C$333),0))","v":0},{"$f":"IF(J617<'1 Données d''entrée'!$C$334+1+$B679,0,IF(J617<'1 Données d''entrée'!$C$333+'1 Données d''entrée'!$C$334+1+$B679,($L667/'1 Données d''entrée'!$C$333),0))","v":0},{"$f":"IF(K617<'1 Données d''entrée'!$C$334+1+$B679,0,IF(K617<'1 Données d''entrée'!$C$333+'1 Données d''entrée'!$C$334+1+$B679,($L667/'1 Données d''entrée'!$C$333),0))","v":0},{"$f":"IF(L617<'1 Données d''entrée'!$C$334+1+$B679,0,IF(L617<'1 Données d''entrée'!$C$333+'1 Données d''entrée'!$C$334+1+$B679,($L667/'1 Données d''entrée'!$C$333),0))","v":0},{"$f":"IF(M617<'1 Données d''entrée'!$C$334+1+$B679,0,IF(M617<'1 Données d''entrée'!$C$333+'1 Données d''entrée'!$C$334+1+$B679,($L667/'1 Données d''entrée'!$C$333),0))","v":0},{"$f":"IF(N617<'1 Données d''entrée'!$C$334+1+$B679,0,IF(N617<'1 Données d''entrée'!$C$333+'1 Données d''entrée'!$C$334+1+$B679,($L667/'1 Données d''entrée'!$C$333),0))","v":0},{"$f":"IF(O617<'1 Données d''entrée'!$C$334+1+$B679,0,IF(O617<'1 Données d''entrée'!$C$333+'1 Données d''entrée'!$C$334+1+$B679,($L667/'1 Données d''entrée'!$C$333),0))","v":0},{"$f":"IF(P617<'1 Données d''entrée'!$C$334+1+$B679,0,IF(P617<'1 Données d''entrée'!$C$333+'1 Données d''entrée'!$C$334+1+$B679,($L667/'1 Données d''entrée'!$C$333),0))","v":0},{"$f":"IF(Q617<'1 Données d''entrée'!$C$334+1+$B679,0,IF(Q617<'1 Données d''entrée'!$C$333+'1 Données d''entrée'!$C$334+1+$B679,($L667/'1 Données d''entrée'!$C$333),0))","v":0},{"$f":"IF(R617<'1 Données d''entrée'!$C$334+1+$B679,0,IF(R617<'1 Données d''entrée'!$C$333+'1 Données d''entrée'!$C$334+1+$B679,($L667/'1 Données d''entrée'!$C$333),0))","v":0},{"$f":"IF(S617<'1 Données d''entrée'!$C$334+1+$B679,0,IF(S617<'1 Données d''entrée'!$C$333+'1 Données d''entrée'!$C$334+1+$B679,($L667/'1 Données d''entrée'!$C$333),0))","v":0},{"$f":"IF(T617<'1 Données d''entrée'!$C$334+1+$B679,0,IF(T617<'1 Données d''entrée'!$C$333+'1 Données d''entrée'!$C$334+1+$B679,($L667/'1 Données d''entrée'!$C$333),0))","v":0},{"$f":"IF(U617<'1 Données d''entrée'!$C$334+1+$B679,0,IF(U617<'1 Données d''entrée'!$C$333+'1 Données d''entrée'!$C$334+1+$B679,($L667/'1 Données d''entrée'!$C$333),0))","v":0},{"$f":"IF(V617<'1 Données d''entrée'!$C$334+1+$B679,0,IF(V617<'1 Données d''entrée'!$C$333+'1 Données d''entrée'!$C$334+1+$B679,($L667/'1 Données d''entrée'!$C$333),0))","v":0}]
[null,"Période de prêt nouveau"]
["Paiement d'intérêts",0,0,0,0,0,0,0,0,0,0,0,0,0,0,0,0,0,0,0,0,0]
["Paiement d'intêrets",1,0,{"$f":"IF(C617<1+$B669,0,IF(C617<'1 Données d''entrée'!$C$334+'1 Données d''entrée'!$C$333+1+$B669,'1 Données d''entrée'!$C$332*($C667-SUM($C670:C670)),0))","v":0},{"$f":"IF(D617<1+$B669,0,IF(D617<'1 Données d''entrée'!$C$334+'1 Données d''entrée'!$C$333+1+$B669,'1 Données d''entrée'!$C$332*($C667-SUM($C670:D670)),0))","v":0},{"$f":"IF(E617<1+$B669,0,IF(E617<'1 Données d''entrée'!$C$334+'1 Données d''entrée'!$C$333+1+$B669,'1 Données d''entrée'!$C$332*($C667-SUM($C670:E670)),0))","v":0},{"$f":"IF(F617<1+$B669,0,IF(F617<'1 Données d''entrée'!$C$334+'1 Données d''entrée'!$C$333+1+$B669,'1 Données d''entrée'!$C$332*($C667-SUM($C670:F670)),0))","v":0},{"$f":"IF(G617<1+$B669,0,IF(G617<'1 Données d''entrée'!$C$334+'1 Données d''entrée'!$C$333+1+$B669,'1 Données d''entrée'!$C$332*($C667-SUM($C670:G670)),0))","v":0},{"$f":"IF(H617<1+$B669,0,IF(H617<'1 Données d''entrée'!$C$334+'1 Données d''entrée'!$C$333+1+$B669,'1 Données d''entrée'!$C$332*($C667-SUM($C670:H670)),0))","v":0},{"$f":"IF(I617<1+$B669,0,IF(I617<'1 Données d''entrée'!$C$334+'1 Données d''entrée'!$C$333+1+$B669,'1 Données d''entrée'!$C$332*($C667-SUM($C670:I670)),0))","v":0},{"$f":"IF(J617<1+$B669,0,IF(J617<'1 Données d''entrée'!$C$334+'1 Données d''entrée'!$C$333+1+$B669,'1 Données d''entrée'!$C$332*($C667-SUM($C670:J670)),0))","v":0},{"$f":"IF(K617<1+$B669,0,IF(K617<'1 Données d''entrée'!$C$334+'1 Données d''entrée'!$C$333+1+$B669,'1 Données d''entrée'!$C$332*($C667-SUM($C670:K670)),0))","v":0},{"$f":"IF(L617<1+$B669,0,IF(L617<'1 Données d''entrée'!$C$334+'1 Données d''entrée'!$C$333+1+$B669,'1 Données d''entrée'!$C$332*($C667-SUM($C670:L670)),0))","v":0},{"$f":"IF(M617<1+$B669,0,IF(M617<'1 Données d''entrée'!$C$334+'1 Données d''entrée'!$C$333+1+$B669,'1 Données d''entrée'!$C$332*($C667-SUM($C670:M670)),0))","v":0},{"$f":"IF(N617<1+$B669,0,IF(N617<'1 Données d''entrée'!$C$334+'1 Données d''entrée'!$C$333+1+$B669,'1 Données d''entrée'!$C$332*($C667-SUM($C670:N670)),0))","v":0},{"$f":"IF(O617<1+$B669,0,IF(O617<'1 Données d''entrée'!$C$334+'1 Données d''entrée'!$C$333+1+$B669,'1 Données d''entrée'!$C$332*($C667-SUM($C670:O670)),0))","v":0},{"$f":"IF(P617<1+$B669,0,IF(P617<'1 Données d''entrée'!$C$334+'1 Données d''entrée'!$C$333+1+$B669,'1 Données d''entrée'!$C$332*($C667-SUM($C670:P670)),0))","v":0},{"$f":"IF(Q617<1+$B669,0,IF(Q617<'1 Données d''entrée'!$C$334+'1 Données d''entrée'!$C$333+1+$B669,'1 Données d''entrée'!$C$332*($C667-SUM($C670:Q670)),0))","v":0},{"$f":"IF(R617<1+$B669,0,IF(R617<'1 Données d''entrée'!$C$334+'1 Données d''entrée'!$C$333+1+$B669,'1 Données d''entrée'!$C$332*($C667-SUM($C670:R670)),0))","v":0},{"$f":"IF(S617<1+$B669,0,IF(S617<'1 Données d''entrée'!$C$334+'1 Données d''entrée'!$C$333+1+$B669,'1 Données d''entrée'!$C$332*($C667-SUM($C670:S670)),0))","v":0},{"$f":"IF(T617<1+$B669,0,IF(T617<'1 Données d''entrée'!$C$334+'1 Données d''entrée'!$C$333+1+$B669,'1 Données d''entrée'!$C$332*($C667-SUM($C670:T670)),0))","v":0},{"$f":"IF(U617<1+$B669,0,IF(U617<'1 Données d''entrée'!$C$334+'1 Données d''entrée'!$C$333+1+$B669,'1 Données d''entrée'!$C$332*($C667-SUM($C670:U670)),0))","v":0}]
["Paiement d'intêrets",2,0,{"$f":"IF(C617<1+$B670,0,IF(C617<'1 Données d''entrée'!$C$334+'1 Données d''entrée'!$C$333+1+$B670,'1 Données d''entrée'!$C$332*($D667-SUM($C671:C671)),0))","v":0},{"$f":"IF(D617<1+$B670,0,IF(D617<'1 Données d''entrée'!$C$334+'1 Données d''entrée'!$C$333+1+$B670,'1 Données d''entrée'!$C$332*($D667-SUM($C671:D671)),0))","v":0},{"$f":"IF(E617<1+$B670,0,IF(E617<'1 Données d''entrée'!$C$334+'1 Données d''entrée'!$C$333+1+$B670,'1 Données d''entrée'!$C$332*($D667-SUM($C671:E671)),0))","v":0},{"$f":"IF(F617<1+$B670,0,IF(F617<'1 Données d''entrée'!$C$334+'1 Données d''entrée'!$C$333+1+$B670,'1 Données d''entrée'!$C$332*($D667-SUM($C671:F671)),0))","v":0},{"$f":"IF(G617<1+$B670,0,IF(G617<'1 Données d''entrée'!$C$334+'1 Données d''entrée'!$C$333+1+$B670,'1 Données d''entrée'!$C$332*($D667-SUM($C671:G671)),0))","v":0},{"$f":"IF(H617<1+$B670,0,IF(H617<'1 Données d''entrée'!$C$334+'1 Données d''entrée'!$C$333+1+$B670,'1 Données d''entrée'!$C$332*($D667-SUM($C671:H671)),0))","v":0},{"$f":"IF(I617<1+$B670,0,IF(I617<'1 Données d''entrée'!$C$334+'1 Données d''entrée'!$C$333+1+$B670,'1 Données d''entrée'!$C$332*($D667-SUM($C671:I671)),0))","v":0},{"$f":"IF(J617<1+$B670,0,IF(J617<'1 Données d''entrée'!$C$334+'1 Données d''entrée'!$C$333+1+$B670,'1 Données d''entrée'!$C$332*($D667-SUM($C671:J671)),0))","v":0},{"$f":"IF(K617<1+$B670,0,IF(K617<'1 Données d''entrée'!$C$334+'1 Données d''entrée'!$C$333+1+$B670,'1 Données d''entrée'!$C$332*($D667-SUM($C671:K671)),0))","v":0},{"$f":"IF(L617<1+$B670,0,IF(L617<'1 Données d''entrée'!$C$334+'1 Données d''entrée'!$C$333+1+$B670,'1 Données d''entrée'!$C$332*($D667-SUM($C671:L671)),0))","v":0},{"$f":"IF(M617<1+$B670,0,IF(M617<'1 Données d''entrée'!$C$334+'1 Données d''entrée'!$C$333+1+$B670,'1 Données d''entrée'!$C$332*($D667-SUM($C671:M671)),0))","v":0},{"$f":"IF(N617<1+$B670,0,IF(N617<'1 Données d''entrée'!$C$334+'1 Données d''entrée'!$C$333+1+$B670,'1 Données d''entrée'!$C$332*($D667-SUM($C671:N671)),0))","v":0},{"$f":"IF(O617<1+$B670,0,IF(O617<'1 Données d''entrée'!$C$334+'1 Données d''entrée'!$C$333+1+$B670,'1 Données d''entrée'!$C$332*($D667-SUM($C671:O671)),0))","v":0},{"$f":"IF(P617<1+$B670,0,IF(P617<'1 Données d''entrée'!$C$334+'1 Données d''entrée'!$C$333+1+$B670,'1 Données d''entrée'!$C$332*($D667-SUM($C671:P671)),0))","v":0},{"$f":"IF(Q617<1+$B670,0,IF(Q617<'1 Données d''entrée'!$C$334+'1 Données d''entrée'!$C$333+1+$B670,'1 Données d''entrée'!$C$332*($D667-SUM($C671:Q671)),0))","v":0},{"$f":"IF(R617<1+$B670,0,IF(R617<'1 Données d''entrée'!$C$334+'1 Données d''entrée'!$C$333+1+$B670,'1 Données d''entrée'!$C$332*($D667-SUM($C671:R671)),0))","v":0},{"$f":"IF(S617<1+$B670,0,IF(S617<'1 Données d''entrée'!$C$334+'1 Données d''entrée'!$C$333+1+$B670,'1 Données d''entrée'!$C$332*($D667-SUM($C671:S671)),0))","v":0},{"$f":"IF(T617<1+$B670,0,IF(T617<'1 Données d''entrée'!$C$334+'1 Données d''entrée'!$C$333+1+$B670,'1 Données d''entrée'!$C$332*($D667-SUM($C671:T671)),0))","v":0},{"$f":"IF(U617<1+$B670,0,IF(U617<'1 Données d''entrée'!$C$334+'1 Données d''entrée'!$C$333+1+$B670,'1 Données d''entrée'!$C$332*($D667-SUM($C671:U671)),0))","v":0}]
["Paiement d'intêrets",3,0,{"$f":"IF(C617<1+$B671,0,IF(C617<'1 Données d''entrée'!$C$334+'1 Données d''entrée'!$C$333+1+$B671,'1 Données d''entrée'!$C$332*($E667-SUM($C672:C672)),0))","v":0},{"$f":"IF(D617<1+$B671,0,IF(D617<'1 Données d''entrée'!$C$334+'1 Données d''entrée'!$C$333+1+$B671,'1 Données d''entrée'!$C$332*($E667-SUM($C672:D672)),0))","v":0},{"$f":"IF(E617<1+$B671,0,IF(E617<'1 Données d''entrée'!$C$334+'1 Données d''entrée'!$C$333+1+$B671,'1 Données d''entrée'!$C$332*($E667-SUM($C672:E672)),0))","v":0},{"$f":"IF(F617<1+$B671,0,IF(F617<'1 Données d''entrée'!$C$334+'1 Données d''entrée'!$C$333+1+$B671,'1 Données d''entrée'!$C$332*($E667-SUM($C672:F672)),0))","v":0},{"$f":"IF(G617<1+$B671,0,IF(G617<'1 Données d''entrée'!$C$334+'1 Données d''entrée'!$C$333+1+$B671,'1 Données d''entrée'!$C$332*($E667-SUM($C672:G672)),0))","v":0},{"$f":"IF(H617<1+$B671,0,IF(H617<'1 Données d''entrée'!$C$334+'1 Données d''entrée'!$C$333+1+$B671,'1 Données d''entrée'!$C$332*($E667-SUM($C672:H672)),0))","v":0},{"$f":"IF(I617<1+$B671,0,IF(I617<'1 Données d''entrée'!$C$334+'1 Données d''entrée'!$C$333+1+$B671,'1 Données d''entrée'!$C$332*($E667-SUM($C672:I672)),0))","v":0},{"$f":"IF(J617<1+$B671,0,IF(J617<'1 Données d''entrée'!$C$334+'1 Données d''entrée'!$C$333+1+$B671,'1 Données d''entrée'!$C$332*($E667-SUM($C672:J672)),0))","v":0},{"$f":"IF(K617<1+$B671,0,IF(K617<'1 Données d''entrée'!$C$334+'1 Données d''entrée'!$C$333+1+$B671,'1 Données d''entrée'!$C$332*($E667-SUM($C672:K672)),0))","v":0},{"$f":"IF(L617<1+$B671,0,IF(L617<'1 Données d''entrée'!$C$334+'1 Données d''entrée'!$C$333+1+$B671,'1 Données d''entrée'!$C$332*($E667-SUM($C672:L672)),0))","v":0},{"$f":"IF(M617<1+$B671,0,IF(M617<'1 Données d''entrée'!$C$334+'1 Données d''entrée'!$C$333+1+$B671,'1 Données d''entrée'!$C$332*($E667-SUM($C672:M672)),0))","v":0},{"$f":"IF(N617<1+$B671,0,IF(N617<'1 Données d''entrée'!$C$334+'1 Données d''entrée'!$C$333+1+$B671,'1 Données d''entrée'!$C$332*($E667-SUM($C672:N672)),0))","v":0},{"$f":"IF(O617<1+$B671,0,IF(O617<'1 Données d''entrée'!$C$334+'1 Données d''entrée'!$C$333+1+$B671,'1 Données d''entrée'!$C$332*($E667-SUM($C672:O672)),0))","v":0},{"$f":"IF(P617<1+$B671,0,IF(P617<'1 Données d''entrée'!$C$334+'1 Données d''entrée'!$C$333+1+$B671,'1 Données d''entrée'!$C$332*($E667-SUM($C672:P672)),0))","v":0},{"$f":"IF(Q617<1+$B671,0,IF(Q617<'1 Données d''entrée'!$C$334+'1 Données d''entrée'!$C$333+1+$B671,'1 Données d''entrée'!$C$332*($E667-SUM($C672:Q672)),0))","v":0},{"$f":"IF(R617<1+$B671,0,IF(R617<'1 Données d''entrée'!$C$334+'1 Données d''entrée'!$C$333+1+$B671,'1 Données d''entrée'!$C$332*($E667-SUM($C672:R672)),0))","v":0},{"$f":"IF(S617<1+$B671,0,IF(S617<'1 Données d''entrée'!$C$334+'1 Données d''entrée'!$C$333+1+$B671,'1 Données d''entrée'!$C$332*($E667-SUM($C672:S672)),0))","v":0},{"$f":"IF(T617<1+$B671,0,IF(T617<'1 Données d''entrée'!$C$334+'1 Données d''entrée'!$C$333+1+$B671,'1 Données d''entrée'!$C$332*($E667-SUM($C672:T672)),0))","v":0},{"$f":"IF(U617<1+$B671,0,IF(U617<'1 Données d''entrée'!$C$334+'1 Données d''entrée'!$C$333+1+$B671,'1 Données d''entrée'!$C$332*($E667-SUM($C672:U672)),0))","v":0}]
["Paiement d'intêrets",4,0,{"$f":"IF(C617<1+$B672,0,IF(C617<'1 Données d''entrée'!$C$334+'1 Données d''entrée'!$C$333+1+$B672,'1 Données d''entrée'!$C$332*($F667-SUM($C673:C673)),0))","v":0},{"$f":"IF(D617<1+$B672,0,IF(D617<'1 Données d''entrée'!$C$334+'1 Données d''entrée'!$C$333+1+$B672,'1 Données d''entrée'!$C$332*($F667-SUM($C673:D673)),0))","v":0},{"$f":"IF(E617<1+$B672,0,IF(E617<'1 Données d''entrée'!$C$334+'1 Données d''entrée'!$C$333+1+$B672,'1 Données d''entrée'!$C$332*($F667-SUM($C673:E673)),0))","v":0},{"$f":"IF(F617<1+$B672,0,IF(F617<'1 Données d''entrée'!$C$334+'1 Données d''entrée'!$C$333+1+$B672,'1 Données d''entrée'!$C$332*($F667-SUM($C673:F673)),0))","v":0},{"$f":"IF(G617<1+$B672,0,IF(G617<'1 Données d''entrée'!$C$334+'1 Données d''entrée'!$C$333+1+$B672,'1 Données d''entrée'!$C$332*($F667-SUM($C673:G673)),0))","v":0},{"$f":"IF(H617<1+$B672,0,IF(H617<'1 Données d''entrée'!$C$334+'1 Données d''entrée'!$C$333+1+$B672,'1 Données d''entrée'!$C$332*($F667-SUM($C673:H673)),0))","v":0},{"$f":"IF(I617<1+$B672,0,IF(I617<'1 Données d''entrée'!$C$334+'1 Données d''entrée'!$C$333+1+$B672,'1 Données d''entrée'!$C$332*($F667-SUM($C673:I673)),0))","v":0},{"$f":"IF(J617<1+$B672,0,IF(J617<'1 Données d''entrée'!$C$334+'1 Données d''entrée'!$C$333+1+$B672,'1 Données d''entrée'!$C$332*($F667-SUM($C673:J673)),0))","v":0},{"$f":"IF(K617<1+$B672,0,IF(K617<'1 Données d''entrée'!$C$334+'1 Données d''entrée'!$C$333+1+$B672,'1 Données d''entrée'!$C$332*($F667-SUM($C673:K673)),0))","v":0},{"$f":"IF(L617<1+$B672,0,IF(L617<'1 Données d''entrée'!$C$334+'1 Données d''entrée'!$C$333+1+$B672,'1 Données d''entrée'!$C$332*($F667-SUM($C673:L673)),0))","v":0},{"$f":"IF(M617<1+$B672,0,IF(M617<'1 Données d''entrée'!$C$334+'1 Données d''entrée'!$C$333+1+$B672,'1 Données d''entrée'!$C$332*($F667-SUM($C673:M673)),0))","v":0},{"$f":"IF(N617<1+$B672,0,IF(N617<'1 Données d''entrée'!$C$334+'1 Données d''entrée'!$C$333+1+$B672,'1 Données d''entrée'!$C$332*($F667-SUM($C673:N673)),0))","v":0},{"$f":"IF(O617<1+$B672,0,IF(O617<'1 Données d''entrée'!$C$334+'1 Données d''entrée'!$C$333+1+$B672,'1 Données d''entrée'!$C$332*($F667-SUM($C673:O673)),0))","v":0},{"$f":"IF(P617<1+$B672,0,IF(P617<'1 Données d''entrée'!$C$334+'1 Données d''entrée'!$C$333+1+$B672,'1 Données d''entrée'!$C$332*($F667-SUM($C673:P673)),0))","v":0},{"$f":"IF(Q617<1+$B672,0,IF(Q617<'1 Données d''entrée'!$C$334+'1 Données d''entrée'!$C$333+1+$B672,'1 Données d''entrée'!$C$332*($F667-SUM($C673:Q673)),0))","v":0},{"$f":"IF(R617<1+$B672,0,IF(R617<'1 Données d''entrée'!$C$334+'1 Données d''entrée'!$C$333+1+$B672,'1 Données d''entrée'!$C$332*($F667-SUM($C673:R673)),0))","v":0},{"$f":"IF(S617<1+$B672,0,IF(S617<'1 Données d''entrée'!$C$334+'1 Données d''entrée'!$C$333+1+$B672,'1 Données d''entrée'!$C$332*($F667-SUM($C673:S673)),0))","v":0},{"$f":"IF(T617<1+$B672,0,IF(T617<'1 Données d''entrée'!$C$334+'1 Données d''entrée'!$C$333+1+$B672,'1 Données d''entrée'!$C$332*($F667-SUM($C673:T673)),0))","v":0},{"$f":"IF(U617<1+$B672,0,IF(U617<'1 Données d''entrée'!$C$334+'1 Données d''entrée'!$C$333+1+$B672,'1 Données d''entrée'!$C$332*($F667-SUM($C673:U673)),0))","v":0}]
["Paiement d'intêrets",5,0,{"$f":"IF(C617<1+$B673,0,IF(C617<'1 Données d''entrée'!$C$334+'1 Données d''entrée'!$C$333+1+$B673,'1 Données d''entrée'!$C$332*($G667-SUM($C674:C674)),0))","v":0},{"$f":"IF(D617<1+$B673,0,IF(D617<'1 Données d''entrée'!$C$334+'1 Données d''entrée'!$C$333+1+$B673,'1 Données d''entrée'!$C$332*($G667-SUM($C674:D674)),0))","v":0},{"$f":"IF(E617<1+$B673,0,IF(E617<'1 Données d''entrée'!$C$334+'1 Données d''entrée'!$C$333+1+$B673,'1 Données d''entrée'!$C$332*($G667-SUM($C674:E674)),0))","v":0},{"$f":"IF(F617<1+$B673,0,IF(F617<'1 Données d''entrée'!$C$334+'1 Données d''entrée'!$C$333+1+$B673,'1 Données d''entrée'!$C$332*($G667-SUM($C674:F674)),0))","v":0},{"$f":"IF(G617<1+$B673,0,IF(G617<'1 Données d''entrée'!$C$334+'1 Données d''entrée'!$C$333+1+$B673,'1 Données d''entrée'!$C$332*($G667-SUM($C674:G674)),0))","v":0},{"$f":"IF(H617<1+$B673,0,IF(H617<'1 Données d''entrée'!$C$334+'1 Données d''entrée'!$C$333+1+$B673,'1 Données d''entrée'!$C$332*($G667-SUM($C674:H674)),0))","v":0},{"$f":"IF(I617<1+$B673,0,IF(I617<'1 Données d''entrée'!$C$334+'1 Données d''entrée'!$C$333+1+$B673,'1 Données d''entrée'!$C$332*($G667-SUM($C674:I674)),0))","v":0},{"$f":"IF(J617<1+$B673,0,IF(J617<'1 Données d''entrée'!$C$334+'1 Données d''entrée'!$C$333+1+$B673,'1 Données d''entrée'!$C$332*($G667-SUM($C674:J674)),0))","v":0},{"$f":"IF(K617<1+$B673,0,IF(K617<'1 Données d''entrée'!$C$334+'1 Données d''entrée'!$C$333+1+$B673,'1 Données d''entrée'!$C$332*($G667-SUM($C674:K674)),0))","v":0},{"$f":"IF(L617<1+$B673,0,IF(L617<'1 Données d''entrée'!$C$334+'1 Données d''entrée'!$C$333+1+$B673,'1 Données d''entrée'!$C$332*($G667-SUM($C674:L674)),0))","v":0},{"$f":"IF(M617<1+$B673,0,IF(M617<'1 Données d''entrée'!$C$334+'1 Données d''entrée'!$C$333+1+$B673,'1 Données d''entrée'!$C$332*($G667-SUM($C674:M674)),0))","v":0},{"$f":"IF(N617<1+$B673,0,IF(N617<'1 Données d''entrée'!$C$334+'1 Données d''entrée'!$C$333+1+$B673,'1 Données d''entrée'!$C$332*($G667-SUM($C674:N674)),0))","v":0},{"$f":"IF(O617<1+$B673,0,IF(O617<'1 Données d''entrée'!$C$334+'1 Données d''entrée'!$C$333+1+$B673,'1 Données d''entrée'!$C$332*($G667-SUM($C674:O674)),0))","v":0},{"$f":"IF(P617<1+$B673,0,IF(P617<'1 Données d''entrée'!$C$334+'1 Données d''entrée'!$C$333+1+$B673,'1 Données d''entrée'!$C$332*($G667-SUM($C674:P674)),0))","v":0},{"$f":"IF(Q617<1+$B673,0,IF(Q617<'1 Données d''entrée'!$C$334+'1 Données d''entrée'!$C$333+1+$B673,'1 Données d''entrée'!$C$332*($G667-SUM($C674:Q674)),0))","v":0},{"$f":"IF(R617<1+$B673,0,IF(R617<'1 Données d''entrée'!$C$334+'1 Données d''entrée'!$C$333+1+$B673,'1 Données d''entrée'!$C$332*($G667-SUM($C674:R674)),0))","v":0},{"$f":"IF(S617<1+$B673,0,IF(S617<'1 Données d''entrée'!$C$334+'1 Données d''entrée'!$C$333+1+$B673,'1 Données d''entrée'!$C$332*($G667-SUM($C674:S674)),0))","v":0},{"$f":"IF(T617<1+$B673,0,IF(T617<'1 Données d''entrée'!$C$334+'1 Données d''entrée'!$C$333+1+$B673,'1 Données d''entrée'!$C$332*($G667-SUM($C674:T674)),0))","v":0},{"$f":"IF(U617<1+$B673,0,IF(U617<'1 Données d''entrée'!$C$334+'1 Données d''entrée'!$C$333+1+$B673,'1 Données d''entrée'!$C$332*($G667-SUM($C674:U674)),0))","v":0}]
["Paiement d'intêrets",6,0,{"$f":"IF(C617<1+$B674,0,IF(C617<'1 Données d''entrée'!$C$334+'1 Données d''entrée'!$C$333+1+$B674,'1 Données d''entrée'!$C$332*($H667-SUM($C675:C675)),0))","v":0},{"$f":"IF(D617<1+$B674,0,IF(D617<'1 Données d''entrée'!$C$334+'1 Données d''entrée'!$C$333+1+$B674,'1 Données d''entrée'!$C$332*($H667-SUM($C675:D675)),0))","v":0},{"$f":"IF(E617<1+$B674,0,IF(E617<'1 Données d''entrée'!$C$334+'1 Données d''entrée'!$C$333+1+$B674,'1 Données d''entrée'!$C$332*($H667-SUM($C675:E675)),0))","v":0},{"$f":"IF(F617<1+$B674,0,IF(F617<'1 Données d''entrée'!$C$334+'1 Données d''entrée'!$C$333+1+$B674,'1 Données d''entrée'!$C$332*($H667-SUM($C675:F675)),0))","v":0},{"$f":"IF(G617<1+$B674,0,IF(G617<'1 Données d''entrée'!$C$334+'1 Données d''entrée'!$C$333+1+$B674,'1 Données d''entrée'!$C$332*($H667-SUM($C675:G675)),0))","v":0},{"$f":"IF(H617<1+$B674,0,IF(H617<'1 Données d''entrée'!$C$334+'1 Données d''entrée'!$C$333+1+$B674,'1 Données d''entrée'!$C$332*($H667-SUM($C675:H675)),0))","v":0},{"$f":"IF(I617<1+$B674,0,IF(I617<'1 Données d''entrée'!$C$334+'1 Données d''entrée'!$C$333+1+$B674,'1 Données d''entrée'!$C$332*($H667-SUM($C675:I675)),0))","v":0},{"$f":"IF(J617<1+$B674,0,IF(J617<'1 Données d''entrée'!$C$334+'1 Données d''entrée'!$C$333+1+$B674,'1 Données d''entrée'!$C$332*($H667-SUM($C675:J675)),0))","v":0},{"$f":"IF(K617<1+$B674,0,IF(K617<'1 Données d''entrée'!$C$334+'1 Données d''entrée'!$C$333+1+$B674,'1 Données d''entrée'!$C$332*($H667-SUM($C675:K675)),0))","v":0},{"$f":"IF(L617<1+$B674,0,IF(L617<'1 Données d''entrée'!$C$334+'1 Données d''entrée'!$C$333+1+$B674,'1 Données d''entrée'!$C$332*($H667-SUM($C675:L675)),0))","v":0},{"$f":"IF(M617<1+$B674,0,IF(M617<'1 Données d''entrée'!$C$334+'1 Données d''entrée'!$C$333+1+$B674,'1 Données d''entrée'!$C$332*($H667-SUM($C675:M675)),0))","v":0},{"$f":"IF(N617<1+$B674,0,IF(N617<'1 Données d''entrée'!$C$334+'1 Données d''entrée'!$C$333+1+$B674,'1 Données d''entrée'!$C$332*($H667-SUM($C675:N675)),0))","v":0},{"$f":"IF(O617<1+$B674,0,IF(O617<'1 Données d''entrée'!$C$334+'1 Données d''entrée'!$C$333+1+$B674,'1 Données d''entrée'!$C$332*($H667-SUM($C675:O675)),0))","v":0},{"$f":"IF(P617<1+$B674,0,IF(P617<'1 Données d''entrée'!$C$334+'1 Données d''entrée'!$C$333+1+$B674,'1 Données d''entrée'!$C$332*($H667-SUM($C675:P675)),0))","v":0},{"$f":"IF(Q617<1+$B674,0,IF(Q617<'1 Données d''entrée'!$C$334+'1 Données d''entrée'!$C$333+1+$B674,'1 Données d''entrée'!$C$332*($H667-SUM($C675:Q675)),0))","v":0},{"$f":"IF(R617<1+$B674,0,IF(R617<'1 Données d''entrée'!$C$334+'1 Données d''entrée'!$C$333+1+$B674,'1 Données d''entrée'!$C$332*($H667-SUM($C675:R675)),0))","v":0},{"$f":"IF(S617<1+$B674,0,IF(S617<'1 Données d''entrée'!$C$334+'1 Données d''entrée'!$C$333+1+$B674,'1 Données d''entrée'!$C$332*($H667-SUM($C675:S675)),0))","v":0},{"$f":"IF(T617<1+$B674,0,IF(T617<'1 Données d''entrée'!$C$334+'1 Données d''entrée'!$C$333+1+$B674,'1 Données d''entrée'!$C$332*($H667-SUM($C675:T675)),0))","v":0},{"$f":"IF(U617<1+$B674,0,IF(U617<'1 Données d''entrée'!$C$334+'1 Données d''entrée'!$C$333+1+$B674,'1 Données d''entrée'!$C$332*($H667-SUM($C675:U675)),0))","v":0}]
["Paiement d'intêrets",7,0,{"$f":"IF(C617<1+$B675,0,IF(C617<'1 Données d''entrée'!$C$334+'1 Données d''entrée'!$C$333+1+$B675,'1 Données d''entrée'!$C$332*($I667-SUM($C676:C676)),0))","v":0},{"$f":"IF(D617<1+$B675,0,IF(D617<'1 Données d''entrée'!$C$334+'1 Données d''entrée'!$C$333+1+$B675,'1 Données d''entrée'!$C$332*($I667-SUM($C676:D676)),0))","v":0},{"$f":"IF(E617<1+$B675,0,IF(E617<'1 Données d''entrée'!$C$334+'1 Données d''entrée'!$C$333+1+$B675,'1 Données d''entrée'!$C$332*($I667-SUM($C676:E676)),0))","v":0},{"$f":"IF(F617<1+$B675,0,IF(F617<'1 Données d''entrée'!$C$334+'1 Données d''entrée'!$C$333+1+$B675,'1 Données d''entrée'!$C$332*($I667-SUM($C676:F676)),0))","v":0},{"$f":"IF(G617<1+$B675,0,IF(G617<'1 Données d''entrée'!$C$334+'1 Données d''entrée'!$C$333+1+$B675,'1 Données d''entrée'!$C$332*($I667-SUM($C676:G676)),0))","v":0},{"$f":"IF(H617<1+$B675,0,IF(H617<'1 Données d''entrée'!$C$334+'1 Données d''entrée'!$C$333+1+$B675,'1 Données d''entrée'!$C$332*($I667-SUM($C676:H676)),0))","v":0},{"$f":"IF(I617<1+$B675,0,IF(I617<'1 Données d''entrée'!$C$334+'1 Données d''entrée'!$C$333+1+$B675,'1 Données d''entrée'!$C$332*($I667-SUM($C676:I676)),0))","v":0},{"$f":"IF(J617<1+$B675,0,IF(J617<'1 Données d''entrée'!$C$334+'1 Données d''entrée'!$C$333+1+$B675,'1 Données d''entrée'!$C$332*($I667-SUM($C676:J676)),0))","v":0},{"$f":"IF(K617<1+$B675,0,IF(K617<'1 Données d''entrée'!$C$334+'1 Données d''entrée'!$C$333+1+$B675,'1 Données d''entrée'!$C$332*($I667-SUM($C676:K676)),0))","v":0},{"$f":"IF(L617<1+$B675,0,IF(L617<'1 Données d''entrée'!$C$334+'1 Données d''entrée'!$C$333+1+$B675,'1 Données d''entrée'!$C$332*($I667-SUM($C676:L676)),0))","v":0},{"$f":"IF(M617<1+$B675,0,IF(M617<'1 Données d''entrée'!$C$334+'1 Données d''entrée'!$C$333+1+$B675,'1 Données d''entrée'!$C$332*($I667-SUM($C676:M676)),0))","v":0},{"$f":"IF(N617<1+$B675,0,IF(N617<'1 Données d''entrée'!$C$334+'1 Données d''entrée'!$C$333+1+$B675,'1 Données d''entrée'!$C$332*($I667-SUM($C676:N676)),0))","v":0},{"$f":"IF(O617<1+$B675,0,IF(O617<'1 Données d''entrée'!$C$334+'1 Données d''entrée'!$C$333+1+$B675,'1 Données d''entrée'!$C$332*($I667-SUM($C676:O676)),0))","v":0},{"$f":"IF(P617<1+$B675,0,IF(P617<'1 Données d''entrée'!$C$334+'1 Données d''entrée'!$C$333+1+$B675,'1 Données d''entrée'!$C$332*($I667-SUM($C676:P676)),0))","v":0},{"$f":"IF(Q617<1+$B675,0,IF(Q617<'1 Données d''entrée'!$C$334+'1 Données d''entrée'!$C$333+1+$B675,'1 Données d''entrée'!$C$332*($I667-SUM($C676:Q676)),0))","v":0},{"$f":"IF(R617<1+$B675,0,IF(R617<'1 Données d''entrée'!$C$334+'1 Données d''entrée'!$C$333+1+$B675,'1 Données d''entrée'!$C$332*($I667-SUM($C676:R676)),0))","v":0},{"$f":"IF(S617<1+$B675,0,IF(S617<'1 Données d''entrée'!$C$334+'1 Données d''entrée'!$C$333+1+$B675,'1 Données d''entrée'!$C$332*($I667-SUM($C676:S676)),0))","v":0},{"$f":"IF(T617<1+$B675,0,IF(T617<'1 Données d''entrée'!$C$334+'1 Données d''entrée'!$C$333+1+$B675,'1 Données d''entrée'!$C$332*($I667-SUM($C676:T676)),0))","v":0},{"$f":"IF(U617<1+$B675,0,IF(U617<'1 Données d''entrée'!$C$334+'1 Données d''entrée'!$C$333+1+$B675,'1 Données d''entrée'!$C$332*($I667-SUM($C676:U676)),0))","v":0}]
["Paiement d'intêrets",8,0,{"$f":"IF(C617<1+$B676,0,IF(C617<'1 Données d''entrée'!$C$334+'1 Données d''entrée'!$C$333+1+$B676,'1 Données d''entrée'!$C$332*($J667-SUM($C677:C677)),0))","v":0},{"$f":"IF(D617<1+$B676,0,IF(D617<'1 Données d''entrée'!$C$334+'1 Données d''entrée'!$C$333+1+$B676,'1 Données d''entrée'!$C$332*($J667-SUM($C677:D677)),0))","v":0},{"$f":"IF(E617<1+$B676,0,IF(E617<'1 Données d''entrée'!$C$334+'1 Données d''entrée'!$C$333+1+$B676,'1 Données d''entrée'!$C$332*($J667-SUM($C677:E677)),0))","v":0},{"$f":"IF(F617<1+$B676,0,IF(F617<'1 Données d''entrée'!$C$334+'1 Données d''entrée'!$C$333+1+$B676,'1 Données d''entrée'!$C$332*($J667-SUM($C677:F677)),0))","v":0},{"$f":"IF(G617<1+$B676,0,IF(G617<'1 Données d''entrée'!$C$334+'1 Données d''entrée'!$C$333+1+$B676,'1 Données d''entrée'!$C$332*($J667-SUM($C677:G677)),0))","v":0},{"$f":"IF(H617<1+$B676,0,IF(H617<'1 Données d''entrée'!$C$334+'1 Données d''entrée'!$C$333+1+$B676,'1 Données d''entrée'!$C$332*($J667-SUM($C677:H677)),0))","v":0},{"$f":"IF(I617<1+$B676,0,IF(I617<'1 Données d''entrée'!$C$334+'1 Données d''entrée'!$C$333+1+$B676,'1 Données d''entrée'!$C$332*($J667-SUM($C677:I677)),0))","v":0},{"$f":"IF(J617<1+$B676,0,IF(J617<'1 Données d''entrée'!$C$334+'1 Données d''entrée'!$C$333+1+$B676,'1 Données d''entrée'!$C$332*($J667-SUM($C677:J677)),0))","v":0},{"$f":"IF(K617<1+$B676,0,IF(K617<'1 Données d''entrée'!$C$334+'1 Données d''entrée'!$C$333+1+$B676,'1 Données d''entrée'!$C$332*($J667-SUM($C677:K677)),0))","v":0},{"$f":"IF(L617<1+$B676,0,IF(L617<'1 Données d''entrée'!$C$334+'1 Données d''entrée'!$C$333+1+$B676,'1 Données d''entrée'!$C$332*($J667-SUM($C677:L677)),0))","v":0},{"$f":"IF(M617<1+$B676,0,IF(M617<'1 Données d''entrée'!$C$334+'1 Données d''entrée'!$C$333+1+$B676,'1 Données d''entrée'!$C$332*($J667-SUM($C677:M677)),0))","v":0},{"$f":"IF(N617<1+$B676,0,IF(N617<'1 Données d''entrée'!$C$334+'1 Données d''entrée'!$C$333+1+$B676,'1 Données d''entrée'!$C$332*($J667-SUM($C677:N677)),0))","v":0},{"$f":"IF(O617<1+$B676,0,IF(O617<'1 Données d''entrée'!$C$334+'1 Données d''entrée'!$C$333+1+$B676,'1 Données d''entrée'!$C$332*($J667-SUM($C677:O677)),0))","v":0},{"$f":"IF(P617<1+$B676,0,IF(P617<'1 Données d''entrée'!$C$334+'1 Données d''entrée'!$C$333+1+$B676,'1 Données d''entrée'!$C$332*($J667-SUM($C677:P677)),0))","v":0},{"$f":"IF(Q617<1+$B676,0,IF(Q617<'1 Données d''entrée'!$C$334+'1 Données d''entrée'!$C$333+1+$B676,'1 Données d''entrée'!$C$332*($J667-SUM($C677:Q677)),0))","v":0},{"$f":"IF(R617<1+$B676,0,IF(R617<'1 Données d''entrée'!$C$334+'1 Données d''entrée'!$C$333+1+$B676,'1 Données d''entrée'!$C$332*($J667-SUM($C677:R677)),0))","v":0},{"$f":"IF(S617<1+$B676,0,IF(S617<'1 Données d''entrée'!$C$334+'1 Données d''entrée'!$C$333+1+$B676,'1 Données d''entrée'!$C$332*($J667-SUM($C677:S677)),0))","v":0},{"$f":"IF(T617<1+$B676,0,IF(T617<'1 Données d''entrée'!$C$334+'1 Données d''entrée'!$C$333+1+$B676,'1 Données d''entrée'!$C$332*($J667-SUM($C677:T677)),0))","v":0},{"$f":"IF(U617<1+$B676,0,IF(U617<'1 Données d''entrée'!$C$334+'1 Données d''entrée'!$C$333+1+$B676,'1 Données d''entrée'!$C$332*($J667-SUM($C677:U677)),0))","v":0}]
["Paiement d'intêrets",9,0,{"$f":"IF(C617<1+$B677,0,IF(C617<'1 Données d''entrée'!$C$334+'1 Données d''entrée'!$C$333+1+$B677,'1 Données d''entrée'!$C$332*($K667-SUM($C678:C678)),0))","v":0},{"$f":"IF(D617<1+$B677,0,IF(D617<'1 Données d''entrée'!$C$334+'1 Données d''entrée'!$C$333+1+$B677,'1 Données d''entrée'!$C$332*($K667-SUM($C678:D678)),0))","v":0},{"$f":"IF(E617<1+$B677,0,IF(E617<'1 Données d''entrée'!$C$334+'1 Données d''entrée'!$C$333+1+$B677,'1 Données d''entrée'!$C$332*($K667-SUM($C678:E678)),0))","v":0},{"$f":"IF(F617<1+$B677,0,IF(F617<'1 Données d''entrée'!$C$334+'1 Données d''entrée'!$C$333+1+$B677,'1 Données d''entrée'!$C$332*($K667-SUM($C678:F678)),0))","v":0},{"$f":"IF(G617<1+$B677,0,IF(G617<'1 Données d''entrée'!$C$334+'1 Données d''entrée'!$C$333+1+$B677,'1 Données d''entrée'!$C$332*($K667-SUM($C678:G678)),0))","v":0},{"$f":"IF(H617<1+$B677,0,IF(H617<'1 Données d''entrée'!$C$334+'1 Données d''entrée'!$C$333+1+$B677,'1 Données d''entrée'!$C$332*($K667-SUM($C678:H678)),0))","v":0},{"$f":"IF(I617<1+$B677,0,IF(I617<'1 Données d''entrée'!$C$334+'1 Données d''entrée'!$C$333+1+$B677,'1 Données d''entrée'!$C$332*($K667-SUM($C678:I678)),0))","v":0},{"$f":"IF(J617<1+$B677,0,IF(J617<'1 Données d''entrée'!$C$334+'1 Données d''entrée'!$C$333+1+$B677,'1 Données d''entrée'!$C$332*($K667-SUM($C678:J678)),0))","v":0},{"$f":"IF(K617<1+$B677,0,IF(K617<'1 Données d''entrée'!$C$334+'1 Données d''entrée'!$C$333+1+$B677,'1 Données d''entrée'!$C$332*($K667-SUM($C678:K678)),0))","v":0},{"$f":"IF(L617<1+$B677,0,IF(L617<'1 Données d''entrée'!$C$334+'1 Données d''entrée'!$C$333+1+$B677,'1 Données d''entrée'!$C$332*($K667-SUM($C678:L678)),0))","v":0},{"$f":"IF(M617<1+$B677,0,IF(M617<'1 Données d''entrée'!$C$334+'1 Données d''entrée'!$C$333+1+$B677,'1 Données d''entrée'!$C$332*($K667-SUM($C678:M678)),0))","v":0},{"$f":"IF(N617<1+$B677,0,IF(N617<'1 Données d''entrée'!$C$334+'1 Données d''entrée'!$C$333+1+$B677,'1 Données d''entrée'!$C$332*($K667-SUM($C678:N678)),0))","v":0},{"$f":"IF(O617<1+$B677,0,IF(O617<'1 Données d''entrée'!$C$334+'1 Données d''entrée'!$C$333+1+$B677,'1 Données d''entrée'!$C$332*($K667-SUM($C678:O678)),0))","v":0},{"$f":"IF(P617<1+$B677,0,IF(P617<'1 Données d''entrée'!$C$334+'1 Données d''entrée'!$C$333+1+$B677,'1 Données d''entrée'!$C$332*($K667-SUM($C678:P678)),0))","v":0},{"$f":"IF(Q617<1+$B677,0,IF(Q617<'1 Données d''entrée'!$C$334+'1 Données d''entrée'!$C$333+1+$B677,'1 Données d''entrée'!$C$332*($K667-SUM($C678:Q678)),0))","v":0},{"$f":"IF(R617<1+$B677,0,IF(R617<'1 Données d''entrée'!$C$334+'1 Données d''entrée'!$C$333+1+$B677,'1 Données d''entrée'!$C$332*($K667-SUM($C678:R678)),0))","v":0},{"$f":"IF(S617<1+$B677,0,IF(S617<'1 Données d''entrée'!$C$334+'1 Données d''entrée'!$C$333+1+$B677,'1 Données d''entrée'!$C$332*($K667-SUM($C678:S678)),0))","v":0},{"$f":"IF(T617<1+$B677,0,IF(T617<'1 Données d''entrée'!$C$334+'1 Données d''entrée'!$C$333+1+$B677,'1 Données d''entrée'!$C$332*($K667-SUM($C678:T678)),0))","v":0},{"$f":"IF(U617<1+$B677,0,IF(U617<'1 Données d''entrée'!$C$334+'1 Données d''entrée'!$C$333+1+$B677,'1 Données d''entrée'!$C$332*($K667-SUM($C678:U678)),0))","v":0}]
["Paiement d'intêrets",10,0,{"$f":"IF(C617<1+$B678,0,IF(C617<'1 Données d''entrée'!$C$334+'1 Données d''entrée'!$C$333+1+$B678,'1 Données d''entrée'!$C$332*($L667-SUM($C679:C679)),0))","v":0},{"$f":"IF(D617<1+$B678,0,IF(D617<'1 Données d''entrée'!$C$334+'1 Données d''entrée'!$C$333+1+$B678,'1 Données d''entrée'!$C$332*($L667-SUM($C679:D679)),0))","v":0},{"$f":"IF(E617<1+$B678,0,IF(E617<'1 Données d''entrée'!$C$334+'1 Données d''entrée'!$C$333+1+$B678,'1 Données d''entrée'!$C$332*($L667-SUM($C679:E679)),0))","v":0},{"$f":"IF(F617<1+$B678,0,IF(F617<'1 Données d''entrée'!$C$334+'1 Données d''entrée'!$C$333+1+$B678,'1 Données d''entrée'!$C$332*($L667-SUM($C679:F679)),0))","v":0},{"$f":"IF(G617<1+$B678,0,IF(G617<'1 Données d''entrée'!$C$334+'1 Données d''entrée'!$C$333+1+$B678,'1 Données d''entrée'!$C$332*($L667-SUM($C679:G679)),0))","v":0},{"$f":"IF(H617<1+$B678,0,IF(H617<'1 Données d''entrée'!$C$334+'1 Données d''entrée'!$C$333+1+$B678,'1 Données d''entrée'!$C$332*($L667-SUM($C679:H679)),0))","v":0},{"$f":"IF(I617<1+$B678,0,IF(I617<'1 Données d''entrée'!$C$334+'1 Données d''entrée'!$C$333+1+$B678,'1 Données d''entrée'!$C$332*($L667-SUM($C679:I679)),0))","v":0},{"$f":"IF(J617<1+$B678,0,IF(J617<'1 Données d''entrée'!$C$334+'1 Données d''entrée'!$C$333+1+$B678,'1 Données d''entrée'!$C$332*($L667-SUM($C679:J679)),0))","v":0},{"$f":"IF(K617<1+$B678,0,IF(K617<'1 Données d''entrée'!$C$334+'1 Données d''entrée'!$C$333+1+$B678,'1 Données d''entrée'!$C$332*($L667-SUM($C679:K679)),0))","v":0},{"$f":"IF(L617<1+$B678,0,IF(L617<'1 Données d''entrée'!$C$334+'1 Données d''entrée'!$C$333+1+$B678,'1 Données d''entrée'!$C$332*($L667-SUM($C679:L679)),0))","v":0},{"$f":"IF(M617<1+$B678,0,IF(M617<'1 Données d''entrée'!$C$334+'1 Données d''entrée'!$C$333+1+$B678,'1 Données d''entrée'!$C$332*($L667-SUM($C679:M679)),0))","v":0},{"$f":"IF(N617<1+$B678,0,IF(N617<'1 Données d''entrée'!$C$334+'1 Données d''entrée'!$C$333+1+$B678,'1 Données d''entrée'!$C$332*($L667-SUM($C679:N679)),0))","v":0},{"$f":"IF(O617<1+$B678,0,IF(O617<'1 Données d''entrée'!$C$334+'1 Données d''entrée'!$C$333+1+$B678,'1 Données d''entrée'!$C$332*($L667-SUM($C679:O679)),0))","v":0},{"$f":"IF(P617<1+$B678,0,IF(P617<'1 Données d''entrée'!$C$334+'1 Données d''entrée'!$C$333+1+$B678,'1 Données d''entrée'!$C$332*($L667-SUM($C679:P679)),0))","v":0},{"$f":"IF(Q617<1+$B678,0,IF(Q617<'1 Données d''entrée'!$C$334+'1 Données d''entrée'!$C$333+1+$B678,'1 Données d''entrée'!$C$332*($L667-SUM($C679:Q679)),0))","v":0},{"$f":"IF(R617<1+$B678,0,IF(R617<'1 Données d''entrée'!$C$334+'1 Données d''entrée'!$C$333+1+$B678,'1 Données d''entrée'!$C$332*($L667-SUM($C679:R679)),0))","v":0},{"$f":"IF(S617<1+$B678,0,IF(S617<'1 Données d''entrée'!$C$334+'1 Données d''entrée'!$C$333+1+$B678,'1 Données d''entrée'!$C$332*($L667-SUM($C679:S679)),0))","v":0},{"$f":"IF(T617<1+$B678,0,IF(T617<'1 Données d''entrée'!$C$334+'1 Données d''entrée'!$C$333+1+$B678,'1 Données d''entrée'!$C$332*($L667-SUM($C679:T679)),0))","v":0},{"$f":"IF(U617<1+$B678,0,IF(U617<'1 Données d''entrée'!$C$334+'1 Données d''entrée'!$C$333+1+$B678,'1 Données d''entrée'!$C$332*($L667-SUM($C679:U679)),0))","v":0}]
[]
[null,"Période",1,2,3,4,5,6,7,8,9,10,11,12,13,14,15,16,17,18,19,20]
["Prêt bancaire additionnel- Option 2: Remboursement du principal final",{"$f":"'1 Données d''entrée'!$B$343","v":0}]
["Prêt(s) nouveau(x)",null,{"$f":"IF(C660<0,C660*(-1)*$B694+C660*(-1)*$B694*'1 Données d''entrée'!$C$338,0)","v":{"$error":"#DIV/0!"}},{"$f":"IF(D660<0,D660*(-1)*$B694+D660*(-1)*$B694*'1 Données d''entrée'!$C$338,0)","v":{"$error":"#DIV/0!"}},{"$f":"IF(E660<0,E660*(-1)*$B694+E660*(-1)*$B694*'1 Données d''entrée'!$C$338,0)","v":{"$error":"#DIV/0!"}},{"$f":"IF(F660<0,F660*(-1)*$B694+F660*(-1)*$B694*'1 Données d''entrée'!$C$338,0)","v":{"$error":"#DIV/0!"}},{"$f":"IF(G660<0,G660*(-1)*$B694+G660*(-1)*$B694*'1 Données d''entrée'!$C$338,0)","v":{"$error":"#DIV/0!"}},{"$f":"IF(H660<0,H660*(-1)*$B694+H660*(-1)*$B694*'1 Données d''entrée'!$C$338,0)","v":{"$error":"#DIV/0!"}},{"$f":"IF(I660<0,I660*(-1)*$B694+I660*(-1)*$B694*'1 Données d''entrée'!$C$338,0)","v":{"$error":"#DIV/0!"}},{"$f":"IF(J660<0,J660*(-1)*$B694+J660*(-1)*$B694*'1 Données d''entrée'!$C$338,0)","v":{"$error":"#DIV/0!"}},{"$f":"IF(K660<0,K660*(-1)*$B694+K660*(-1)*$B694*'1 Données d''entrée'!$C$338,0)","v":{"$error":"#DIV/0!"}},{"$f":"IF(L660<0,L660*(-1)*$B694+L660*(-1)*$B694*'1 Données d''entrée'!$C$338,0)","v":{"$error":"#DIV/0!"}},{"$f":"IF(M660<0,M660*(-1)*$B694+M660*(-1)*$B694*'1 Données d''entrée'!$C$338,0)","v":{"$error":"#DIV/0!"}},{"$f":"IF(N660<0,N660*(-1)*$B694+N660*(-1)*$B694*'1 Données d''entrée'!$C$338,0)","v":{"$error":"#DIV/0!"}},{"$f":"IF(O660<0,O660*(-1)*$B694+O660*(-1)*$B694*'1 Données d''entrée'!$C$338,0)","v":{"$error":"#DIV/0!"}},{"$f":"IF(P660<0,P660*(-1)*$B694+P660*(-1)*$B694*'1 Données d''entrée'!$C$338,0)","v":{"$error":"#DIV/0!"}},{"$f":"IF(Q660<0,Q660*(-1)*$B694+Q660*(-1)*$B694*'1 Données d''entrée'!$C$338,0)","v":{"$error":"#DIV/0!"}},{"$f":"IF(R660<0,R660*(-1)*$B694+R660*(-1)*$B694*'1 Données d''entrée'!$C$338,0)","v":{"$error":"#DIV/0!"}},{"$f":"IF(S660<0,S660*(-1)*$B694+S660*(-1)*$B694*'1 Données d''entrée'!$C$338,0)","v":{"$error":"#DIV/0!"}},{"$f":"IF(T660<0,T660*(-1)*$B694+T660*(-1)*$B694*'1 Données d''entrée'!$C$338,0)","v":{"$error":"#DIV/0!"}},{"$f":"IF(U660<0,U660*(-1)*$B694+U660*(-1)*$B694*'1 Données d''entrée'!$C$338,0)","v":{"$error":"#DIV/0!"}},{"$f":"IF(V660<0,V660*(-1)*$B694+V660*(-1)*$B694*'1 Données d''entrée'!$C$338,0)","v":{"$error":"#DIV/0!"}}]
[null,"Période de prêt nouveau"]
["Remboursement du principal",0,0,0,0,0,0,0,0,0,0,0,0,0,0,0,0,0,0,0,0,0]
[null,1,{"$f":"IF(C693='1 Données d''entrée'!$C$333+'1 Données d''entrée'!$C$334+$B698,$C695,0)","v":{"$error":"#DIV/0!"}},{"$f":"IF(D693='1 Données d''entrée'!$C$333+'1 Données d''entrée'!$C$334+$B698,$C695,0)","v":0},{"$f":"IF(E693='1 Données d''entrée'!$C$333+'1 Données d''entrée'!$C$334+$B698,$C695,0)","v":0},{"$f":"IF(F693='1 Données d''entrée'!$C$333+'1 Données d''entrée'!$C$334+$B698,$C695,0)","v":0},{"$f":"IF(G693='1 Données d''entrée'!$C$333+'1 Données d''entrée'!$C$334+$B698,$C695,0)","v":0},{"$f":"IF(H693='1 Données d''entrée'!$C$333+'1 Données d''entrée'!$C$334+$B698,$C695,0)","v":0},{"$f":"IF(I693='1 Données d''entrée'!$C$333+'1 Données d''entrée'!$C$334+$B698,$C695,0)","v":0},{"$f":"IF(J693='1 Données d''entrée'!$C$333+'1 Données d''entrée'!$C$334+$B698,$C695,0)","v":0},{"$f":"IF(K693='1 Données d''entrée'!$C$333+'1 Données d''entrée'!$C$334+$B698,$C695,0)","v":0},{"$f":"IF(L693='1 Données d''entrée'!$C$333+'1 Données d''entrée'!$C$334+$B698,$C695,0)","v":0},{"$f":"IF(M693='1 Données d''entrée'!$C$333+'1 Données d''entrée'!$C$334+$B698,$C695,0)","v":0},{"$f":"IF(N693='1 Données d''entrée'!$C$333+'1 Données d''entrée'!$C$334+$B698,$C695,0)","v":0},{"$f":"IF(O693='1 Données d''entrée'!$C$333+'1 Données d''entrée'!$C$334+$B698,$C695,0)","v":0},{"$f":"IF(P693='1 Données d''entrée'!$C$333+'1 Données d''entrée'!$C$334+$B698,$C695,0)","v":0},{"$f":"IF(Q693='1 Données d''entrée'!$C$333+'1 Données d''entrée'!$C$334+$B698,$C695,0)","v":0},{"$f":"IF(R693='1 Données d''entrée'!$C$333+'1 Données d''entrée'!$C$334+$B698,$C695,0)","v":0},{"$f":"IF(S693='1 Données d''entrée'!$C$333+'1 Données d''entrée'!$C$334+$B698,$C695,0)","v":0},{"$f":"IF(T693='1 Données d''entrée'!$C$333+'1 Données d''entrée'!$C$334+$B698,$C695,0)","v":0},{"$f":"IF(U693='1 Données d''entrée'!$C$333+'1 Données d''entrée'!$C$334+$B698,$C695,0)","v":0},{"$f":"IF(V693='1 Données d''entrée'!$C$333+'1 Données d''entrée'!$C$334+$B698,$C695,0)","v":0}]
[null,2,{"$f":"IF(C693='1 Données d''entrée'!$C$333+'1 Données d''entrée'!$C$334+$B699,$D695,0)","v":0},{"$f":"IF(D693='1 Données d''entrée'!$C$333+'1 Données d''entrée'!$C$334+$B699,$D695,0)","v":{"$error":"#DIV/0!"}},{"$f":"IF(E693='1 Données d''entrée'!$C$333+'1 Données d''entrée'!$C$334+$B699,$D695,0)","v":0},{"$f":"IF(F693='1 Données d''entrée'!$C$333+'1 Données d''entrée'!$C$334+$B699,$D695,0)","v":0},{"$f":"IF(G693='1 Données d''entrée'!$C$333+'1 Données d''entrée'!$C$334+$B699,$D695,0)","v":0},{"$f":"IF(H693='1 Données d''entrée'!$C$333+'1 Données d''entrée'!$C$334+$B699,$D695,0)","v":0},{"$f":"IF(I693='1 Données d''entrée'!$C$333+'1 Données d''entrée'!$C$334+$B699,$D695,0)","v":0},{"$f":"IF(J693='1 Données d''entrée'!$C$333+'1 Données d''entrée'!$C$334+$B699,$D695,0)","v":0},{"$f":"IF(K693='1 Données d''entrée'!$C$333+'1 Données d''entrée'!$C$334+$B699,$D695,0)","v":0},{"$f":"IF(L693='1 Données d''entrée'!$C$333+'1 Données d''entrée'!$C$334+$B699,$D695,0)","v":0},{"$f":"IF(M693='1 Données d''entrée'!$C$333+'1 Données d''entrée'!$C$334+$B699,$D695,0)","v":0},{"$f":"IF(N693='1 Données d''entrée'!$C$333+'1 Données d''entrée'!$C$334+$B699,$D695,0)","v":0},{"$f":"IF(O693='1 Données d''entrée'!$C$333+'1 Données d''entrée'!$C$334+$B699,$D695,0)","v":0},{"$f":"IF(P693='1 Données d''entrée'!$C$333+'1 Données d''entrée'!$C$334+$B699,$D695,0)","v":0},{"$f":"IF(Q693='1 Données d''entrée'!$C$333+'1 Données d''entrée'!$C$334+$B699,$D695,0)","v":0},{"$f":"IF(R693='1 Données d''entrée'!$C$333+'1 Données d''entrée'!$C$334+$B699,$D695,0)","v":0},{"$f":"IF(S693='1 Données d''entrée'!$C$333+'1 Données d''entrée'!$C$334+$B699,$D695,0)","v":0},{"$f":"IF(T693='1 Données d''entrée'!$C$333+'1 Données d''entrée'!$C$334+$B699,$D695,0)","v":0},{"$f":"IF(U693='1 Données d''entrée'!$C$333+'1 Données d''entrée'!$C$334+$B699,$D695,0)","v":0},{"$f":"IF(V693='1 Données d''entrée'!$C$333+'1 Données d''entrée'!$C$334+$B699,$D695,0)","v":0}]
[null,3,{"$f":"IF(C693='1 Données d''entrée'!$C$333+'1 Données d''entrée'!$C$334+$B700,$E695,0)","v":0},{"$f":"IF(D693='1 Données d''entrée'!$C$333+'1 Données d''entrée'!$C$334+$B700,$E695,0)","v":0},{"$f":"IF(E693='1 Données d''entrée'!$C$333+'1 Données d''entrée'!$C$334+$B700,$E695,0)","v":{"$error":"#DIV/0!"}},{"$f":"IF(F693='1 Données d''entrée'!$C$333+'1 Données d''entrée'!$C$334+$B700,$E695,0)","v":0},{"$f":"IF(G693='1 Données d''entrée'!$C$333+'1 Données d''entrée'!$C$334+$B700,$E695,0)","v":0},{"$f":"IF(H693='1 Données d''entrée'!$C$333+'1 Données d''entrée'!$C$334+$B700,$E695,0)","v":0},{"$f":"IF(I693='1 Données d''entrée'!$C$333+'1 Données d''entrée'!$C$334+$B700,$E695,0)","v":0},{"$f":"IF(J693='1 Données d''entrée'!$C$333+'1 Données d''entrée'!$C$334+$B700,$E695,0)","v":0},{"$f":"IF(K693='1 Données d''entrée'!$C$333+'1 Données d''entrée'!$C$334+$B700,$E695,0)","v":0},{"$f":"IF(L693='1 Données d''entrée'!$C$333+'1 Données d''entrée'!$C$334+$B700,$E695,0)","v":0},{"$f":"IF(M693='1 Données d''entrée'!$C$333+'1 Données d''entrée'!$C$334+$B700,$E695,0)","v":0},{"$f":"IF(N693='1 Données d''entrée'!$C$333+'1 Données d''entrée'!$C$334+$B700,$E695,0)","v":0},{"$f":"IF(O693='1 Données d''entrée'!$C$333+'1 Données d''entrée'!$C$334+$B700,$E695,0)","v":0},{"$f":"IF(P693='1 Données d''entrée'!$C$333+'1 Données d''entrée'!$C$334+$B700,$E695,0)","v":0},{"$f":"IF(Q693='1 Données d''entrée'!$C$333+'1 Données d''entrée'!$C$334+$B700,$E695,0)","v":0},{"$f":"IF(R693='1 Données d''entrée'!$C$333+'1 Données d''entrée'!$C$334+$B700,$E695,0)","v":0},{"$f":"IF(S693='1 Données d''entrée'!$C$333+'1 Données d''entrée'!$C$334+$B700,$E695,0)","v":0},{"$f":"IF(T693='1 Données d''entrée'!$C$333+'1 Données d''entrée'!$C$334+$B700,$E695,0)","v":0},{"$f":"IF(U693='1 Données d''entrée'!$C$333+'1 Données d''entrée'!$C$334+$B700,$E695,0)","v":0},{"$f":"IF(V693='1 Données d''entrée'!$C$333+'1 Données d''entrée'!$C$334+$B700,$E695,0)","v":0}]
[null,4,{"$f":"IF(C693='1 Données d''entrée'!$C$333+'1 Données d''entrée'!$C$334+$B701,$F695,0)","v":0},{"$f":"IF(D693='1 Données d''entrée'!$C$333+'1 Données d''entrée'!$C$334+$B701,$F695,0)","v":0},{"$f":"IF(E693='1 Données d''entrée'!$C$333+'1 Données d''entrée'!$C$334+$B701,$F695,0)","v":0},{"$f":"IF(F693='1 Données d''entrée'!$C$333+'1 Données d''entrée'!$C$334+$B701,$F695,0)","v":{"$error":"#DIV/0!"}},{"$f":"IF(G693='1 Données d''entrée'!$C$333+'1 Données d''entrée'!$C$334+$B701,$F695,0)","v":0},{"$f":"IF(H693='1 Données d''entrée'!$C$333+'1 Données d''entrée'!$C$334+$B701,$F695,0)","v":0},{"$f":"IF(I693='1 Données d''entrée'!$C$333+'1 Données d''entrée'!$C$334+$B701,$F695,0)","v":0},{"$f":"IF(J693='1 Données d''entrée'!$C$333+'1 Données d''entrée'!$C$334+$B701,$F695,0)","v":0},{"$f":"IF(K693='1 Données d''entrée'!$C$333+'1 Données d''entrée'!$C$334+$B701,$F695,0)","v":0},{"$f":"IF(L693='1 Données d''entrée'!$C$333+'1 Données d''entrée'!$C$334+$B701,$F695,0)","v":0},{"$f":"IF(M693='1 Données d''entrée'!$C$333+'1 Données d''entrée'!$C$334+$B701,$F695,0)","v":0},{"$f":"IF(N693='1 Données d''entrée'!$C$333+'1 Données d''entrée'!$C$334+$B701,$F695,0)","v":0},{"$f":"IF(O693='1 Données d''entrée'!$C$333+'1 Données d''entrée'!$C$334+$B701,$F695,0)","v":0},{"$f":"IF(P693='1 Données d''entrée'!$C$333+'1 Données d''entrée'!$C$334+$B701,$F695,0)","v":0},{"$f":"IF(Q693='1 Données d''entrée'!$C$333+'1 Données d''entrée'!$C$334+$B701,$F695,0)","v":0},{"$f":"IF(R693='1 Données d''entrée'!$C$333+'1 Données d''entrée'!$C$334+$B701,$F695,0)","v":0},{"$f":"IF(S693='1 Données d''entrée'!$C$333+'1 Données d''entrée'!$C$334+$B701,$F695,0)","v":0},{"$f":"IF(T693='1 Données d''entrée'!$C$333+'1 Données d''entrée'!$C$334+$B701,$F695,0)","v":0},{"$f":"IF(U693='1 Données d''entrée'!$C$333+'1 Données d''entrée'!$C$334+$B701,$F695,0)","v":0},{"$f":"IF(V693='1 Données d''entrée'!$C$333+'1 Données d''entrée'!$C$334+$B701,$F695,0)","v":0}]
[null,5,{"$f":"IF(C693='1 Données d''entrée'!$C$333+'1 Données d''entrée'!$C$334+$B702,$G695,0)","v":0},{"$f":"IF(D693='1 Données d''entrée'!$C$333+'1 Données d''entrée'!$C$334+$B702,$G695,0)","v":0},{"$f":"IF(E693='1 Données d''entrée'!$C$333+'1 Données d''entrée'!$C$334+$B702,$G695,0)","v":0},{"$f":"IF(F693='1 Données d''entrée'!$C$333+'1 Données d''entrée'!$C$334+$B702,$G695,0)","v":0},{"$f":"IF(G693='1 Données d''entrée'!$C$333+'1 Données d''entrée'!$C$334+$B702,$G695,0)","v":{"$error":"#DIV/0!"}},{"$f":"IF(H693='1 Données d''entrée'!$C$333+'1 Données d''entrée'!$C$334+$B702,$G695,0)","v":0},{"$f":"IF(I693='1 Données d''entrée'!$C$333+'1 Données d''entrée'!$C$334+$B702,$G695,0)","v":0},{"$f":"IF(J693='1 Données d''entrée'!$C$333+'1 Données d''entrée'!$C$334+$B702,$G695,0)","v":0},{"$f":"IF(K693='1 Données d''entrée'!$C$333+'1 Données d''entrée'!$C$334+$B702,$G695,0)","v":0},{"$f":"IF(L693='1 Données d''entrée'!$C$333+'1 Données d''entrée'!$C$334+$B702,$G695,0)","v":0},{"$f":"IF(M693='1 Données d''entrée'!$C$333+'1 Données d''entrée'!$C$334+$B702,$G695,0)","v":0},{"$f":"IF(N693='1 Données d''entrée'!$C$333+'1 Données d''entrée'!$C$334+$B702,$G695,0)","v":0},{"$f":"IF(O693='1 Données d''entrée'!$C$333+'1 Données d''entrée'!$C$334+$B702,$G695,0)","v":0},{"$f":"IF(P693='1 Données d''entrée'!$C$333+'1 Données d''entrée'!$C$334+$B702,$G695,0)","v":0},{"$f":"IF(Q693='1 Données d''entrée'!$C$333+'1 Données d''entrée'!$C$334+$B702,$G695,0)","v":0},{"$f":"IF(R693='1 Données d''entrée'!$C$333+'1 Données d''entrée'!$C$334+$B702,$G695,0)","v":0},{"$f":"IF(S693='1 Données d''entrée'!$C$333+'1 Données d''entrée'!$C$334+$B702,$G695,0)","v":0},{"$f":"IF(T693='1 Données d''entrée'!$C$333+'1 Données d''entrée'!$C$334+$B702,$G695,0)","v":0},{"$f":"IF(U693='1 Données d''entrée'!$C$333+'1 Données d''entrée'!$C$334+$B702,$G695,0)","v":0},{"$f":"IF(V693='1 Données d''entrée'!$C$333+'1 Données d''entrée'!$C$334+$B702,$G695,0)","v":0}]
[null,6,{"$f":"IF(C693='1 Données d''entrée'!$C$333+'1 Données d''entrée'!$C$334+$B703,$H695,0)","v":0},{"$f":"IF(D693='1 Données d''entrée'!$C$333+'1 Données d''entrée'!$C$334+$B703,$H695,0)","v":0},{"$f":"IF(E693='1 Données d''entrée'!$C$333+'1 Données d''entrée'!$C$334+$B703,$H695,0)","v":0},{"$f":"IF(F693='1 Données d''entrée'!$C$333+'1 Données d''entrée'!$C$334+$B703,$H695,0)","v":0},{"$f":"IF(G693='1 Données d''entrée'!$C$333+'1 Données d''entrée'!$C$334+$B703,$H695,0)","v":0},{"$f":"IF(H693='1 Données d''entrée'!$C$333+'1 Données d''entrée'!$C$334+$B703,$H695,0)","v":{"$error":"#DIV/0!"}},{"$f":"IF(I693='1 Données d''entrée'!$C$333+'1 Données d''entrée'!$C$334+$B703,$H695,0)","v":0},{"$f":"IF(J693='1 Données d''entrée'!$C$333+'1 Données d''entrée'!$C$334+$B703,$H695,0)","v":0},{"$f":"IF(K693='1 Données d''entrée'!$C$333+'1 Données d''entrée'!$C$334+$B703,$H695,0)","v":0},{"$f":"IF(L693='1 Données d''entrée'!$C$333+'1 Données d''entrée'!$C$334+$B703,$H695,0)","v":0},{"$f":"IF(M693='1 Données d''entrée'!$C$333+'1 Données d''entrée'!$C$334+$B703,$H695,0)","v":0},{"$f":"IF(N693='1 Données d''entrée'!$C$333+'1 Données d''entrée'!$C$334+$B703,$H695,0)","v":0},{"$f":"IF(O693='1 Données d''entrée'!$C$333+'1 Données d''entrée'!$C$334+$B703,$H695,0)","v":0},{"$f":"IF(P693='1 Données d''entrée'!$C$333+'1 Données d''entrée'!$C$334+$B703,$H695,0)","v":0},{"$f":"IF(Q693='1 Données d''entrée'!$C$333+'1 Données d''entrée'!$C$334+$B703,$H695,0)","v":0},{"$f":"IF(R693='1 Données d''entrée'!$C$333+'1 Données d''entrée'!$C$334+$B703,$H695,0)","v":0},{"$f":"IF(S693='1 Données d''entrée'!$C$333+'1 Données d''entrée'!$C$334+$B703,$H695,0)","v":0},{"$f":"IF(T693='1 Données d''entrée'!$C$333+'1 Données d''entrée'!$C$334+$B703,$H695,0)","v":0},{"$f":"IF(U693='1 Données d''entrée'!$C$333+'1 Données d''entrée'!$C$334+$B703,$H695,0)","v":0},{"$f":"IF(V693='1 Données d''entrée'!$C$333+'1 Données d''entrée'!$C$334+$B703,$H695,0)","v":0}]
[null,7,{"$f":"IF(C693='1 Données d''entrée'!$C$333+'1 Données d''entrée'!$C$334+$B704,$I695,0)","v":0},{"$f":"IF(D693='1 Données d''entrée'!$C$333+'1 Données d''entrée'!$C$334+$B704,$I695,0)","v":0},{"$f":"IF(E693='1 Données d''entrée'!$C$333+'1 Données d''entrée'!$C$334+$B704,$I695,0)","v":0},{"$f":"IF(F693='1 Données d''entrée'!$C$333+'1 Données d''entrée'!$C$334+$B704,$I695,0)","v":0},{"$f":"IF(G693='1 Données d''entrée'!$C$333+'1 Données d''entrée'!$C$334+$B704,$I695,0)","v":0},{"$f":"IF(H693='1 Données d''entrée'!$C$333+'1 Données d''entrée'!$C$334+$B704,$I695,0)","v":0},{"$f":"IF(I693='1 Données d''entrée'!$C$333+'1 Données d''entrée'!$C$334+$B704,$I695,0)","v":{"$error":"#DIV/0!"}},{"$f":"IF(J693='1 Données d''entrée'!$C$333+'1 Données d''entrée'!$C$334+$B704,$I695,0)","v":0},{"$f":"IF(K693='1 Données d''entrée'!$C$333+'1 Données d''entrée'!$C$334+$B704,$I695,0)","v":0},{"$f":"IF(L693='1 Données d''entrée'!$C$333+'1 Données d''entrée'!$C$334+$B704,$I695,0)","v":0},{"$f":"IF(M693='1 Données d''entrée'!$C$333+'1 Données d''entrée'!$C$334+$B704,$I695,0)","v":0},{"$f":"IF(N693='1 Données d''entrée'!$C$333+'1 Données d''entrée'!$C$334+$B704,$I695,0)","v":0},{"$f":"IF(O693='1 Données d''entrée'!$C$333+'1 Données d''entrée'!$C$334+$B704,$I695,0)","v":0},{"$f":"IF(P693='1 Données d''entrée'!$C$333+'1 Données d''entrée'!$C$334+$B704,$I695,0)","v":0},{"$f":"IF(Q693='1 Données d''entrée'!$C$333+'1 Données d''entrée'!$C$334+$B704,$I695,0)","v":0},{"$f":"IF(R693='1 Données d''entrée'!$C$333+'1 Données d''entrée'!$C$334+$B704,$I695,0)","v":0},{"$f":"IF(S693='1 Données d''entrée'!$C$333+'1 Données d''entrée'!$C$334+$B704,$I695,0)","v":0},{"$f":"IF(T693='1 Données d''entrée'!$C$333+'1 Données d''entrée'!$C$334+$B704,$I695,0)","v":0},{"$f":"IF(U693='1 Données d''entrée'!$C$333+'1 Données d''entrée'!$C$334+$B704,$I695,0)","v":0},{"$f":"IF(V693='1 Données d''entrée'!$C$333+'1 Données d''entrée'!$C$334+$B704,$I695,0)","v":0}]
[null,8,{"$f":"IF(C693='1 Données d''entrée'!$C$333+'1 Données d''entrée'!$C$334+$B705,$J695,0)","v":0},{"$f":"IF(D693='1 Données d''entrée'!$C$333+'1 Données d''entrée'!$C$334+$B705,$J695,0)","v":0},{"$f":"IF(E693='1 Données d''entrée'!$C$333+'1 Données d''entrée'!$C$334+$B705,$J695,0)","v":0},{"$f":"IF(F693='1 Données d''entrée'!$C$333+'1 Données d''entrée'!$C$334+$B705,$J695,0)","v":0},{"$f":"IF(G693='1 Données d''entrée'!$C$333+'1 Données d''entrée'!$C$334+$B705,$J695,0)","v":0},{"$f":"IF(H693='1 Données d''entrée'!$C$333+'1 Données d''entrée'!$C$334+$B705,$J695,0)","v":0},{"$f":"IF(I693='1 Données d''entrée'!$C$333+'1 Données d''entrée'!$C$334+$B705,$J695,0)","v":0},{"$f":"IF(J693='1 Données d''entrée'!$C$333+'1 Données d''entrée'!$C$334+$B705,$J695,0)","v":{"$error":"#DIV/0!"}},{"$f":"IF(K693='1 Données d''entrée'!$C$333+'1 Données d''entrée'!$C$334+$B705,$J695,0)","v":0},{"$f":"IF(L693='1 Données d''entrée'!$C$333+'1 Données d''entrée'!$C$334+$B705,$J695,0)","v":0},{"$f":"IF(M693='1 Données d''entrée'!$C$333+'1 Données d''entrée'!$C$334+$B705,$J695,0)","v":0},{"$f":"IF(N693='1 Données d''entrée'!$C$333+'1 Données d''entrée'!$C$334+$B705,$J695,0)","v":0},{"$f":"IF(O693='1 Données d''entrée'!$C$333+'1 Données d''entrée'!$C$334+$B705,$J695,0)","v":0},{"$f":"IF(P693='1 Données d''entrée'!$C$333+'1 Données d''entrée'!$C$334+$B705,$J695,0)","v":0},{"$f":"IF(Q693='1 Données d''entrée'!$C$333+'1 Données d''entrée'!$C$334+$B705,$J695,0)","v":0},{"$f":"IF(R693='1 Données d''entrée'!$C$333+'1 Données d''entrée'!$C$334+$B705,$J695,0)","v":0},{"$f":"IF(S693='1 Données d''entrée'!$C$333+'1 Données d''entrée'!$C$334+$B705,$J695,0)","v":0},{"$f":"IF(T693='1 Données d''entrée'!$C$333+'1 Données d''entrée'!$C$334+$B705,$J695,0)","v":0},{"$f":"IF(U693='1 Données d''entrée'!$C$333+'1 Données d''entrée'!$C$334+$B705,$J695,0)","v":0},{"$f":"IF(V693='1 Données d''entrée'!$C$333+'1 Données d''entrée'!$C$334+$B705,$J695,0)","v":0}]
[null,9,{"$f":"IF(C693='1 Données d''entrée'!$C$333+'1 Données d''entrée'!$C$334+$B706,$K695,0)","v":0},{"$f":"IF(D693='1 Données d''entrée'!$C$333+'1 Données d''entrée'!$C$334+$B706,$K695,0)","v":0},{"$f":"IF(E693='1 Données d''entrée'!$C$333+'1 Données d''entrée'!$C$334+$B706,$K695,0)","v":0},{"$f":"IF(F693='1 Données d''entrée'!$C$333+'1 Données d''entrée'!$C$334+$B706,$K695,0)","v":0},{"$f":"IF(G693='1 Données d''entrée'!$C$333+'1 Données d''entrée'!$C$334+$B706,$K695,0)","v":0},{"$f":"IF(H693='1 Données d''entrée'!$C$333+'1 Données d''entrée'!$C$334+$B706,$K695,0)","v":0},{"$f":"IF(I693='1 Données d''entrée'!$C$333+'1 Données d''entrée'!$C$334+$B706,$K695,0)","v":0},{"$f":"IF(J693='1 Données d''entrée'!$C$333+'1 Données d''entrée'!$C$334+$B706,$K695,0)","v":0},{"$f":"IF(K693='1 Données d''entrée'!$C$333+'1 Données d''entrée'!$C$334+$B706,$K695,0)","v":{"$error":"#DIV/0!"}},{"$f":"IF(L693='1 Données d''entrée'!$C$333+'1 Données d''entrée'!$C$334+$B706,$K695,0)","v":0},{"$f":"IF(M693='1 Données d''entrée'!$C$333+'1 Données d''entrée'!$C$334+$B706,$K695,0)","v":0},{"$f":"IF(N693='1 Données d''entrée'!$C$333+'1 Données d''entrée'!$C$334+$B706,$K695,0)","v":0},{"$f":"IF(O693='1 Données d''entrée'!$C$333+'1 Données d''entrée'!$C$334+$B706,$K695,0)","v":0},{"$f":"IF(P693='1 Données d''entrée'!$C$333+'1 Données d''entrée'!$C$334+$B706,$K695,0)","v":0},{"$f":"IF(Q693='1 Données d''entrée'!$C$333+'1 Données d''entrée'!$C$334+$B706,$K695,0)","v":0},{"$f":"IF(R693='1 Données d''entrée'!$C$333+'1 Données d''entrée'!$C$334+$B706,$K695,0)","v":0},{"$f":"IF(S693='1 Données d''entrée'!$C$333+'1 Données d''entrée'!$C$334+$B706,$K695,0)","v":0},{"$f":"IF(T693='1 Données d''entrée'!$C$333+'1 Données d''entrée'!$C$334+$B706,$K695,0)","v":0},{"$f":"IF(U693='1 Données d''entrée'!$C$333+'1 Données d''entrée'!$C$334+$B706,$K695,0)","v":0},{"$f":"IF(V693='1 Données d''entrée'!$C$333+'1 Données d''entrée'!$C$334+$B706,$K695,0)","v":0}]
[null,10,{"$f":"IF(C693='1 Données d''entrée'!$C$333+'1 Données d''entrée'!$C$334+$B707,$L695,0)","v":0},{"$f":"IF(D693='1 Données d''entrée'!$C$333+'1 Données d''entrée'!$C$334+$B707,$L695,0)","v":0},{"$f":"IF(E693='1 Données d''entrée'!$C$333+'1 Données d''entrée'!$C$334+$B707,$L695,0)","v":0},{"$f":"IF(F693='1 Données d''entrée'!$C$333+'1 Données d''entrée'!$C$334+$B707,$L695,0)","v":0},{"$f":"IF(G693='1 Données d''entrée'!$C$333+'1 Données d''entrée'!$C$334+$B707,$L695,0)","v":0},{"$f":"IF(H693='1 Données d''entrée'!$C$333+'1 Données d''entrée'!$C$334+$B707,$L695,0)","v":0},{"$f":"IF(I693='1 Données d''entrée'!$C$333+'1 Données d''entrée'!$C$334+$B707,$L695,0)","v":0},{"$f":"IF(J693='1 Données d''entrée'!$C$333+'1 Données d''entrée'!$C$334+$B707,$L695,0)","v":0},{"$f":"IF(K693='1 Données d''entrée'!$C$333+'1 Données d''entrée'!$C$334+$B707,$L695,0)","v":0},{"$f":"IF(L693='1 Données d''entrée'!$C$333+'1 Données d''entrée'!$C$334+$B707,$L695,0)","v":{"$error":"#DIV/0!"}},{"$f":"IF(M693='1 Données d''entrée'!$C$333+'1 Données d''entrée'!$C$334+$B707,$L695,0)","v":0},{"$f":"IF(N693='1 Données d''entrée'!$C$333+'1 Données d''entrée'!$C$334+$B707,$L695,0)","v":0},{"$f":"IF(O693='1 Données d''entrée'!$C$333+'1 Données d''entrée'!$C$334+$B707,$L695,0)","v":0},{"$f":"IF(P693='1 Données d''entrée'!$C$333+'1 Données d''entrée'!$C$334+$B707,$L695,0)","v":0},{"$f":"IF(Q693='1 Données d''entrée'!$C$333+'1 Données d''entrée'!$C$334+$B707,$L695,0)","v":0},{"$f":"IF(R693='1 Données d''entrée'!$C$333+'1 Données d''entrée'!$C$334+$B707,$L695,0)","v":0},{"$f":"IF(S693='1 Données d''entrée'!$C$333+'1 Données d''entrée'!$C$334+$B707,$L695,0)","v":0},{"$f":"IF(T693='1 Données d''entrée'!$C$333+'1 Données d''entrée'!$C$334+$B707,$L695,0)","v":0},{"$f":"IF(U693='1 Données d''entrée'!$C$333+'1 Données d''entrée'!$C$334+$B707,$L695,0)","v":0},{"$f":"IF(V693='1 Données d''entrée'!$C$333+'1 Données d''entrée'!$C$334+$B707,$L695,0)","v":0}]
[null,"Période de prêt nouveau"]
["Paiement d'intérêts",0,0,0,0,0,0,0,0,0,0,0,0,0,0,0,0,0,0,0,0,0]
["Paiement d'intêrets",1,0,{"$f":"IF(C617<1+$B697,0,IF(C617<'1 Données d''entrée'!$C$334+'1 Données d''entrée'!$C$333+1+$B697,'1 Données d''entrée'!$C$332*($C695-SUM($C698:C698)),0))","v":0},{"$f":"IF(D617<1+$B697,0,IF(D617<'1 Données d''entrée'!$C$334+'1 Données d''entrée'!$C$333+1+$B697,'1 Données d''entrée'!$C$332*($C695-SUM($C698:D698)),0))","v":0},{"$f":"IF(E617<1+$B697,0,IF(E617<'1 Données d''entrée'!$C$334+'1 Données d''entrée'!$C$333+1+$B697,'1 Données d''entrée'!$C$332*($C695-SUM($C698:E698)),0))","v":0},{"$f":"IF(F617<1+$B697,0,IF(F617<'1 Données d''entrée'!$C$334+'1 Données d''entrée'!$C$333+1+$B697,'1 Données d''entrée'!$C$332*($C695-SUM($C698:F698)),0))","v":0},{"$f":"IF(G617<1+$B697,0,IF(G617<'1 Données d''entrée'!$C$334+'1 Données d''entrée'!$C$333+1+$B697,'1 Données d''entrée'!$C$332*($C695-SUM($C698:G698)),0))","v":0},{"$f":"IF(H617<1+$B697,0,IF(H617<'1 Données d''entrée'!$C$334+'1 Données d''entrée'!$C$333+1+$B697,'1 Données d''entrée'!$C$332*($C695-SUM($C698:H698)),0))","v":0},{"$f":"IF(I617<1+$B697,0,IF(I617<'1 Données d''entrée'!$C$334+'1 Données d''entrée'!$C$333+1+$B697,'1 Données d''entrée'!$C$332*($C695-SUM($C698:I698)),0))","v":0},{"$f":"IF(J617<1+$B697,0,IF(J617<'1 Données d''entrée'!$C$334+'1 Données d''entrée'!$C$333+1+$B697,'1 Données d''entrée'!$C$332*($C695-SUM($C698:J698)),0))","v":0},{"$f":"IF(K617<1+$B697,0,IF(K617<'1 Données d''entrée'!$C$334+'1 Données d''entrée'!$C$333+1+$B697,'1 Données d''entrée'!$C$332*($C695-SUM($C698:K698)),0))","v":0},{"$f":"IF(L617<1+$B697,0,IF(L617<'1 Données d''entrée'!$C$334+'1 Données d''entrée'!$C$333+1+$B697,'1 Données d''entrée'!$C$332*($C695-SUM($C698:L698)),0))","v":0},{"$f":"IF(M617<1+$B697,0,IF(M617<'1 Données d''entrée'!$C$334+'1 Données d''entrée'!$C$333+1+$B697,'1 Données d''entrée'!$C$332*($C695-SUM($C698:M698)),0))","v":0},{"$f":"IF(N617<1+$B697,0,IF(N617<'1 Données d''entrée'!$C$334+'1 Données d''entrée'!$C$333+1+$B697,'1 Données d''entrée'!$C$332*($C695-SUM($C698:N698)),0))","v":0},{"$f":"IF(O617<1+$B697,0,IF(O617<'1 Données d''entrée'!$C$334+'1 Données d''entrée'!$C$333+1+$B697,'1 Données d''entrée'!$C$332*($C695-SUM($C698:O698)),0))","v":0},{"$f":"IF(P617<1+$B697,0,IF(P617<'1 Données d''entrée'!$C$334+'1 Données d''entrée'!$C$333+1+$B697,'1 Données d''entrée'!$C$332*($C695-SUM($C698:P698)),0))","v":0},{"$f":"IF(Q617<1+$B697,0,IF(Q617<'1 Données d''entrée'!$C$334+'1 Données d''entrée'!$C$333+1+$B697,'1 Données d''entrée'!$C$332*($C695-SUM($C698:Q698)),0))","v":0},{"$f":"IF(R617<1+$B697,0,IF(R617<'1 Données d''entrée'!$C$334+'1 Données d''entrée'!$C$333+1+$B697,'1 Données d''entrée'!$C$332*($C695-SUM($C698:R698)),0))","v":0},{"$f":"IF(S617<1+$B697,0,IF(S617<'1 Données d''entrée'!$C$334+'1 Données d''entrée'!$C$333+1+$B697,'1 Données d''entrée'!$C$332*($C695-SUM($C698:S698)),0))","v":0},{"$f":"IF(T617<1+$B697,0,IF(T617<'1 Données d''entrée'!$C$334+'1 Données d''entrée'!$C$333+1+$B697,'1 Données d''entrée'!$C$332*($C695-SUM($C698:T698)),0))","v":0},{"$f":"IF(U617<1+$B697,0,IF(U617<'1 Données d''entrée'!$C$334+'1 Données d''entrée'!$C$333+1+$B697,'1 Données d''entrée'!$C$332*($C695-SUM($C698:U698)),0))","v":0}]
["Paiement d'intêrets",2,0,{"$f":"IF(C617<1+$B698,0,IF(C617<'1 Données d''entrée'!$C$334+'1 Données d''entrée'!$C$333+1+$B698,'1 Données d''entrée'!$C$332*($D695-SUM($C699:C699)),0))","v":0},{"$f":"IF(D617<1+$B698,0,IF(D617<'1 Données d''entrée'!$C$334+'1 Données d''entrée'!$C$333+1+$B698,'1 Données d''entrée'!$C$332*($D695-SUM($C699:D699)),0))","v":0},{"$f":"IF(E617<1+$B698,0,IF(E617<'1 Données d''entrée'!$C$334+'1 Données d''entrée'!$C$333+1+$B698,'1 Données d''entrée'!$C$332*($D695-SUM($C699:E699)),0))","v":0},{"$f":"IF(F617<1+$B698,0,IF(F617<'1 Données d''entrée'!$C$334+'1 Données d''entrée'!$C$333+1+$B698,'1 Données d''entrée'!$C$332*($D695-SUM($C699:F699)),0))","v":0},{"$f":"IF(G617<1+$B698,0,IF(G617<'1 Données d''entrée'!$C$334+'1 Données d''entrée'!$C$333+1+$B698,'1 Données d''entrée'!$C$332*($D695-SUM($C699:G699)),0))","v":0},{"$f":"IF(H617<1+$B698,0,IF(H617<'1 Données d''entrée'!$C$334+'1 Données d''entrée'!$C$333+1+$B698,'1 Données d''entrée'!$C$332*($D695-SUM($C699:H699)),0))","v":0},{"$f":"IF(I617<1+$B698,0,IF(I617<'1 Données d''entrée'!$C$334+'1 Données d''entrée'!$C$333+1+$B698,'1 Données d''entrée'!$C$332*($D695-SUM($C699:I699)),0))","v":0},{"$f":"IF(J617<1+$B698,0,IF(J617<'1 Données d''entrée'!$C$334+'1 Données d''entrée'!$C$333+1+$B698,'1 Données d''entrée'!$C$332*($D695-SUM($C699:J699)),0))","v":0},{"$f":"IF(K617<1+$B698,0,IF(K617<'1 Données d''entrée'!$C$334+'1 Données d''entrée'!$C$333+1+$B698,'1 Données d''entrée'!$C$332*($D695-SUM($C699:K699)),0))","v":0},{"$f":"IF(L617<1+$B698,0,IF(L617<'1 Données d''entrée'!$C$334+'1 Données d''entrée'!$C$333+1+$B698,'1 Données d''entrée'!$C$332*($D695-SUM($C699:L699)),0))","v":0},{"$f":"IF(M617<1+$B698,0,IF(M617<'1 Données d''entrée'!$C$334+'1 Données d''entrée'!$C$333+1+$B698,'1 Données d''entrée'!$C$332*($D695-SUM($C699:M699)),0))","v":0},{"$f":"IF(N617<1+$B698,0,IF(N617<'1 Données d''entrée'!$C$334+'1 Données d''entrée'!$C$333+1+$B698,'1 Données d''entrée'!$C$332*($D695-SUM($C699:N699)),0))","v":0},{"$f":"IF(O617<1+$B698,0,IF(O617<'1 Données d''entrée'!$C$334+'1 Données d''entrée'!$C$333+1+$B698,'1 Données d''entrée'!$C$332*($D695-SUM($C699:O699)),0))","v":0},{"$f":"IF(P617<1+$B698,0,IF(P617<'1 Données d''entrée'!$C$334+'1 Données d''entrée'!$C$333+1+$B698,'1 Données d''entrée'!$C$332*($D695-SUM($C699:P699)),0))","v":0},{"$f":"IF(Q617<1+$B698,0,IF(Q617<'1 Données d''entrée'!$C$334+'1 Données d''entrée'!$C$333+1+$B698,'1 Données d''entrée'!$C$332*($D695-SUM($C699:Q699)),0))","v":0},{"$f":"IF(R617<1+$B698,0,IF(R617<'1 Données d''entrée'!$C$334+'1 Données d''entrée'!$C$333+1+$B698,'1 Données d''entrée'!$C$332*($D695-SUM($C699:R699)),0))","v":0},{"$f":"IF(S617<1+$B698,0,IF(S617<'1 Données d''entrée'!$C$334+'1 Données d''entrée'!$C$333+1+$B698,'1 Données d''entrée'!$C$332*($D695-SUM($C699:S699)),0))","v":0},{"$f":"IF(T617<1+$B698,0,IF(T617<'1 Données d''entrée'!$C$334+'1 Données d''entrée'!$C$333+1+$B698,'1 Données d''entrée'!$C$332*($D695-SUM($C699:T699)),0))","v":0},{"$f":"IF(U617<1+$B698,0,IF(U617<'1 Données d''entrée'!$C$334+'1 Données d''entrée'!$C$333+1+$B698,'1 Données d''entrée'!$C$332*($D695-SUM($C699:U699)),0))","v":0}]
["Paiement d'intêrets",3,0,{"$f":"IF(C617<1+$B699,0,IF(C617<'1 Données d''entrée'!$C$334+'1 Données d''entrée'!$C$333+1+$B699,'1 Données d''entrée'!$C$332*($E695-SUM($C700:C700)),0))","v":0},{"$f":"IF(D617<1+$B699,0,IF(D617<'1 Données d''entrée'!$C$334+'1 Données d''entrée'!$C$333+1+$B699,'1 Données d''entrée'!$C$332*($E695-SUM($C700:D700)),0))","v":0},{"$f":"IF(E617<1+$B699,0,IF(E617<'1 Données d''entrée'!$C$334+'1 Données d''entrée'!$C$333+1+$B699,'1 Données d''entrée'!$C$332*($E695-SUM($C700:E700)),0))","v":0},{"$f":"IF(F617<1+$B699,0,IF(F617<'1 Données d''entrée'!$C$334+'1 Données d''entrée'!$C$333+1+$B699,'1 Données d''entrée'!$C$332*($E695-SUM($C700:F700)),0))","v":0},{"$f":"IF(G617<1+$B699,0,IF(G617<'1 Données d''entrée'!$C$334+'1 Données d''entrée'!$C$333+1+$B699,'1 Données d''entrée'!$C$332*($E695-SUM($C700:G700)),0))","v":0},{"$f":"IF(H617<1+$B699,0,IF(H617<'1 Données d''entrée'!$C$334+'1 Données d''entrée'!$C$333+1+$B699,'1 Données d''entrée'!$C$332*($E695-SUM($C700:H700)),0))","v":0},{"$f":"IF(I617<1+$B699,0,IF(I617<'1 Données d''entrée'!$C$334+'1 Données d''entrée'!$C$333+1+$B699,'1 Données d''entrée'!$C$332*($E695-SUM($C700:I700)),0))","v":0},{"$f":"IF(J617<1+$B699,0,IF(J617<'1 Données d''entrée'!$C$334+'1 Données d''entrée'!$C$333+1+$B699,'1 Données d''entrée'!$C$332*($E695-SUM($C700:J700)),0))","v":0},{"$f":"IF(K617<1+$B699,0,IF(K617<'1 Données d''entrée'!$C$334+'1 Données d''entrée'!$C$333+1+$B699,'1 Données d''entrée'!$C$332*($E695-SUM($C700:K700)),0))","v":0},{"$f":"IF(L617<1+$B699,0,IF(L617<'1 Données d''entrée'!$C$334+'1 Données d''entrée'!$C$333+1+$B699,'1 Données d''entrée'!$C$332*($E695-SUM($C700:L700)),0))","v":0},{"$f":"IF(M617<1+$B699,0,IF(M617<'1 Données d''entrée'!$C$334+'1 Données d''entrée'!$C$333+1+$B699,'1 Données d''entrée'!$C$332*($E695-SUM($C700:M700)),0))","v":0},{"$f":"IF(N617<1+$B699,0,IF(N617<'1 Données d''entrée'!$C$334+'1 Données d''entrée'!$C$333+1+$B699,'1 Données d''entrée'!$C$332*($E695-SUM($C700:N700)),0))","v":0},{"$f":"IF(O617<1+$B699,0,IF(O617<'1 Données d''entrée'!$C$334+'1 Données d''entrée'!$C$333+1+$B699,'1 Données d''entrée'!$C$332*($E695-SUM($C700:O700)),0))","v":0},{"$f":"IF(P617<1+$B699,0,IF(P617<'1 Données d''entrée'!$C$334+'1 Données d''entrée'!$C$333+1+$B699,'1 Données d''entrée'!$C$332*($E695-SUM($C700:P700)),0))","v":0},{"$f":"IF(Q617<1+$B699,0,IF(Q617<'1 Données d''entrée'!$C$334+'1 Données d''entrée'!$C$333+1+$B699,'1 Données d''entrée'!$C$332*($E695-SUM($C700:Q700)),0))","v":0},{"$f":"IF(R617<1+$B699,0,IF(R617<'1 Données d''entrée'!$C$334+'1 Données d''entrée'!$C$333+1+$B699,'1 Données d''entrée'!$C$332*($E695-SUM($C700:R700)),0))","v":0},{"$f":"IF(S617<1+$B699,0,IF(S617<'1 Données d''entrée'!$C$334+'1 Données d''entrée'!$C$333+1+$B699,'1 Données d''entrée'!$C$332*($E695-SUM($C700:S700)),0))","v":0},{"$f":"IF(T617<1+$B699,0,IF(T617<'1 Données d''entrée'!$C$334+'1 Données d''entrée'!$C$333+1+$B699,'1 Données d''entrée'!$C$332*($E695-SUM($C700:T700)),0))","v":0},{"$f":"IF(U617<1+$B699,0,IF(U617<'1 Données d''entrée'!$C$334+'1 Données d''entrée'!$C$333+1+$B699,'1 Données d''entrée'!$C$332*($E695-SUM($C700:U700)),0))","v":0}]
["Paiement d'intêrets",4,0,{"$f":"IF(C617<1+$B700,0,IF(C617<'1 Données d''entrée'!$C$334+'1 Données d''entrée'!$C$333+1+$B700,'1 Données d''entrée'!$C$332*($F695-SUM($C701:C701)),0))","v":0},{"$f":"IF(D617<1+$B700,0,IF(D617<'1 Données d''entrée'!$C$334+'1 Données d''entrée'!$C$333+1+$B700,'1 Données d''entrée'!$C$332*($F695-SUM($C701:D701)),0))","v":0},{"$f":"IF(E617<1+$B700,0,IF(E617<'1 Données d''entrée'!$C$334+'1 Données d''entrée'!$C$333+1+$B700,'1 Données d''entrée'!$C$332*($F695-SUM($C701:E701)),0))","v":0},{"$f":"IF(F617<1+$B700,0,IF(F617<'1 Données d''entrée'!$C$334+'1 Données d''entrée'!$C$333+1+$B700,'1 Données d''entrée'!$C$332*($F695-SUM($C701:F701)),0))","v":0},{"$f":"IF(G617<1+$B700,0,IF(G617<'1 Données d''entrée'!$C$334+'1 Données d''entrée'!$C$333+1+$B700,'1 Données d''entrée'!$C$332*($F695-SUM($C701:G701)),0))","v":0},{"$f":"IF(H617<1+$B700,0,IF(H617<'1 Données d''entrée'!$C$334+'1 Données d''entrée'!$C$333+1+$B700,'1 Données d''entrée'!$C$332*($F695-SUM($C701:H701)),0))","v":0},{"$f":"IF(I617<1+$B700,0,IF(I617<'1 Données d''entrée'!$C$334+'1 Données d''entrée'!$C$333+1+$B700,'1 Données d''entrée'!$C$332*($F695-SUM($C701:I701)),0))","v":0},{"$f":"IF(J617<1+$B700,0,IF(J617<'1 Données d''entrée'!$C$334+'1 Données d''entrée'!$C$333+1+$B700,'1 Données d''entrée'!$C$332*($F695-SUM($C701:J701)),0))","v":0},{"$f":"IF(K617<1+$B700,0,IF(K617<'1 Données d''entrée'!$C$334+'1 Données d''entrée'!$C$333+1+$B700,'1 Données d''entrée'!$C$332*($F695-SUM($C701:K701)),0))","v":0},{"$f":"IF(L617<1+$B700,0,IF(L617<'1 Données d''entrée'!$C$334+'1 Données d''entrée'!$C$333+1+$B700,'1 Données d''entrée'!$C$332*($F695-SUM($C701:L701)),0))","v":0},{"$f":"IF(M617<1+$B700,0,IF(M617<'1 Données d''entrée'!$C$334+'1 Données d''entrée'!$C$333+1+$B700,'1 Données d''entrée'!$C$332*($F695-SUM($C701:M701)),0))","v":0},{"$f":"IF(N617<1+$B700,0,IF(N617<'1 Données d''entrée'!$C$334+'1 Données d''entrée'!$C$333+1+$B700,'1 Données d''entrée'!$C$332*($F695-SUM($C701:N701)),0))","v":0},{"$f":"IF(O617<1+$B700,0,IF(O617<'1 Données d''entrée'!$C$334+'1 Données d''entrée'!$C$333+1+$B700,'1 Données d''entrée'!$C$332*($F695-SUM($C701:O701)),0))","v":0},{"$f":"IF(P617<1+$B700,0,IF(P617<'1 Données d''entrée'!$C$334+'1 Données d''entrée'!$C$333+1+$B700,'1 Données d''entrée'!$C$332*($F695-SUM($C701:P701)),0))","v":0},{"$f":"IF(Q617<1+$B700,0,IF(Q617<'1 Données d''entrée'!$C$334+'1 Données d''entrée'!$C$333+1+$B700,'1 Données d''entrée'!$C$332*($F695-SUM($C701:Q701)),0))","v":0},{"$f":"IF(R617<1+$B700,0,IF(R617<'1 Données d''entrée'!$C$334+'1 Données d''entrée'!$C$333+1+$B700,'1 Données d''entrée'!$C$332*($F695-SUM($C701:R701)),0))","v":0},{"$f":"IF(S617<1+$B700,0,IF(S617<'1 Données d''entrée'!$C$334+'1 Données d''entrée'!$C$333+1+$B700,'1 Données d''entrée'!$C$332*($F695-SUM($C701:S701)),0))","v":0},{"$f":"IF(T617<1+$B700,0,IF(T617<'1 Données d''entrée'!$C$334+'1 Données d''entrée'!$C$333+1+$B700,'1 Données d''entrée'!$C$332*($F695-SUM($C701:T701)),0))","v":0},{"$f":"IF(U617<1+$B700,0,IF(U617<'1 Données d''entrée'!$C$334+'1 Données d''entrée'!$C$333+1+$B700,'1 Données d''entrée'!$C$332*($F695-SUM($C701:U701)),0))","v":0}]
["Paiement d'intêrets",5,0,{"$f":"IF(C617<1+$B701,0,IF(C617<'1 Données d''entrée'!$C$334+'1 Données d''entrée'!$C$333+1+$B701,'1 Données d''entrée'!$C$332*($G695-SUM($C702:C702)),0))","v":0},{"$f":"IF(D617<1+$B701,0,IF(D617<'1 Données d''entrée'!$C$334+'1 Données d''entrée'!$C$333+1+$B701,'1 Données d''entrée'!$C$332*($G695-SUM($C702:D702)),0))","v":0},{"$f":"IF(E617<1+$B701,0,IF(E617<'1 Données d''entrée'!$C$334+'1 Données d''entrée'!$C$333+1+$B701,'1 Données d''entrée'!$C$332*($G695-SUM($C702:E702)),0))","v":0},{"$f":"IF(F617<1+$B701,0,IF(F617<'1 Données d''entrée'!$C$334+'1 Données d''entrée'!$C$333+1+$B701,'1 Données d''entrée'!$C$332*($G695-SUM($C702:F702)),0))","v":0},{"$f":"IF(G617<1+$B701,0,IF(G617<'1 Données d''entrée'!$C$334+'1 Données d''entrée'!$C$333+1+$B701,'1 Données d''entrée'!$C$332*($G695-SUM($C702:G702)),0))","v":0},{"$f":"IF(H617<1+$B701,0,IF(H617<'1 Données d''entrée'!$C$334+'1 Données d''entrée'!$C$333+1+$B701,'1 Données d''entrée'!$C$332*($G695-SUM($C702:H702)),0))","v":0},{"$f":"IF(I617<1+$B701,0,IF(I617<'1 Données d''entrée'!$C$334+'1 Données d''entrée'!$C$333+1+$B701,'1 Données d''entrée'!$C$332*($G695-SUM($C702:I702)),0))","v":0},{"$f":"IF(J617<1+$B701,0,IF(J617<'1 Données d''entrée'!$C$334+'1 Données d''entrée'!$C$333+1+$B701,'1 Données d''entrée'!$C$332*($G695-SUM($C702:J702)),0))","v":0},{"$f":"IF(K617<1+$B701,0,IF(K617<'1 Données d''entrée'!$C$334+'1 Données d''entrée'!$C$333+1+$B701,'1 Données d''entrée'!$C$332*($G695-SUM($C702:K702)),0))","v":0},{"$f":"IF(L617<1+$B701,0,IF(L617<'1 Données d''entrée'!$C$334+'1 Données d''entrée'!$C$333+1+$B701,'1 Données d''entrée'!$C$332*($G695-SUM($C702:L702)),0))","v":0},{"$f":"IF(M617<1+$B701,0,IF(M617<'1 Données d''entrée'!$C$334+'1 Données d''entrée'!$C$333+1+$B701,'1 Données d''entrée'!$C$332*($G695-SUM($C702:M702)),0))","v":0},{"$f":"IF(N617<1+$B701,0,IF(N617<'1 Données d''entrée'!$C$334+'1 Données d''entrée'!$C$333+1+$B701,'1 Données d''entrée'!$C$332*($G695-SUM($C702:N702)),0))","v":0},{"$f":"IF(O617<1+$B701,0,IF(O617<'1 Données d''entrée'!$C$334+'1 Données d''entrée'!$C$333+1+$B701,'1 Données d''entrée'!$C$332*($G695-SUM($C702:O702)),0))","v":0},{"$f":"IF(P617<1+$B701,0,IF(P617<'1 Données d''entrée'!$C$334+'1 Données d''entrée'!$C$333+1+$B701,'1 Données d''entrée'!$C$332*($G695-SUM($C702:P702)),0))","v":0},{"$f":"IF(Q617<1+$B701,0,IF(Q617<'1 Données d''entrée'!$C$334+'1 Données d''entrée'!$C$333+1+$B701,'1 Données d''entrée'!$C$332*($G695-SUM($C702:Q702)),0))","v":0},{"$f":"IF(R617<1+$B701,0,IF(R617<'1 Données d''entrée'!$C$334+'1 Données d''entrée'!$C$333+1+$B701,'1 Données d''entrée'!$C$332*($G695-SUM($C702:R702)),0))","v":0},{"$f":"IF(S617<1+$B701,0,IF(S617<'1 Données d''entrée'!$C$334+'1 Données d''entrée'!$C$333+1+$B701,'1 Données d''entrée'!$C$332*($G695-SUM($C702:S702)),0))","v":0},{"$f":"IF(T617<1+$B701,0,IF(T617<'1 Données d''entrée'!$C$334+'1 Données d''entrée'!$C$333+1+$B701,'1 Données d''entrée'!$C$332*($G695-SUM($C702:T702)),0))","v":0},{"$f":"IF(U617<1+$B701,0,IF(U617<'1 Données d''entrée'!$C$334+'1 Données d''entrée'!$C$333+1+$B701,'1 Données d''entrée'!$C$332*($G695-SUM($C702:U702)),0))","v":0}]
["Paiement d'intêrets",6,0,{"$f":"IF(C617<1+$B702,0,IF(C617<'1 Données d''entrée'!$C$334+'1 Données d''entrée'!$C$333+1+$B702,'1 Données d''entrée'!$C$332*($H695-SUM($C703:C703)),0))","v":0},{"$f":"IF(D617<1+$B702,0,IF(D617<'1 Données d''entrée'!$C$334+'1 Données d''entrée'!$C$333+1+$B702,'1 Données d''entrée'!$C$332*($H695-SUM($C703:D703)),0))","v":0},{"$f":"IF(E617<1+$B702,0,IF(E617<'1 Données d''entrée'!$C$334+'1 Données d''entrée'!$C$333+1+$B702,'1 Données d''entrée'!$C$332*($H695-SUM($C703:E703)),0))","v":0},{"$f":"IF(F617<1+$B702,0,IF(F617<'1 Données d''entrée'!$C$334+'1 Données d''entrée'!$C$333+1+$B702,'1 Données d''entrée'!$C$332*($H695-SUM($C703:F703)),0))","v":0},{"$f":"IF(G617<1+$B702,0,IF(G617<'1 Données d''entrée'!$C$334+'1 Données d''entrée'!$C$333+1+$B702,'1 Données d''entrée'!$C$332*($H695-SUM($C703:G703)),0))","v":0},{"$f":"IF(H617<1+$B702,0,IF(H617<'1 Données d''entrée'!$C$334+'1 Données d''entrée'!$C$333+1+$B702,'1 Données d''entrée'!$C$332*($H695-SUM($C703:H703)),0))","v":0},{"$f":"IF(I617<1+$B702,0,IF(I617<'1 Données d''entrée'!$C$334+'1 Données d''entrée'!$C$333+1+$B702,'1 Données d''entrée'!$C$332*($H695-SUM($C703:I703)),0))","v":0},{"$f":"IF(J617<1+$B702,0,IF(J617<'1 Données d''entrée'!$C$334+'1 Données d''entrée'!$C$333+1+$B702,'1 Données d''entrée'!$C$332*($H695-SUM($C703:J703)),0))","v":0},{"$f":"IF(K617<1+$B702,0,IF(K617<'1 Données d''entrée'!$C$334+'1 Données d''entrée'!$C$333+1+$B702,'1 Données d''entrée'!$C$332*($H695-SUM($C703:K703)),0))","v":0},{"$f":"IF(L617<1+$B702,0,IF(L617<'1 Données d''entrée'!$C$334+'1 Données d''entrée'!$C$333+1+$B702,'1 Données d''entrée'!$C$332*($H695-SUM($C703:L703)),0))","v":0},{"$f":"IF(M617<1+$B702,0,IF(M617<'1 Données d''entrée'!$C$334+'1 Données d''entrée'!$C$333+1+$B702,'1 Données d''entrée'!$C$332*($H695-SUM($C703:M703)),0))","v":0},{"$f":"IF(N617<1+$B702,0,IF(N617<'1 Données d''entrée'!$C$334+'1 Données d''entrée'!$C$333+1+$B702,'1 Données d''entrée'!$C$332*($H695-SUM($C703:N703)),0))","v":0},{"$f":"IF(O617<1+$B702,0,IF(O617<'1 Données d''entrée'!$C$334+'1 Données d''entrée'!$C$333+1+$B702,'1 Données d''entrée'!$C$332*($H695-SUM($C703:O703)),0))","v":0},{"$f":"IF(P617<1+$B702,0,IF(P617<'1 Données d''entrée'!$C$334+'1 Données d''entrée'!$C$333+1+$B702,'1 Données d''entrée'!$C$332*($H695-SUM($C703:P703)),0))","v":0},{"$f":"IF(Q617<1+$B702,0,IF(Q617<'1 Données d''entrée'!$C$334+'1 Données d''entrée'!$C$333+1+$B702,'1 Données d''entrée'!$C$332*($H695-SUM($C703:Q703)),0))","v":0},{"$f":"IF(R617<1+$B702,0,IF(R617<'1 Données d''entrée'!$C$334+'1 Données d''entrée'!$C$333+1+$B702,'1 Données d''entrée'!$C$332*($H695-SUM($C703:R703)),0))","v":0},{"$f":"IF(S617<1+$B702,0,IF(S617<'1 Données d''entrée'!$C$334+'1 Données d''entrée'!$C$333+1+$B702,'1 Données d''entrée'!$C$332*($H695-SUM($C703:S703)),0))","v":0},{"$f":"IF(T617<1+$B702,0,IF(T617<'1 Données d''entrée'!$C$334+'1 Données d''entrée'!$C$333+1+$B702,'1 Données d''entrée'!$C$332*($H695-SUM($C703:T703)),0))","v":0},{"$f":"IF(U617<1+$B702,0,IF(U617<'1 Données d''entrée'!$C$334+'1 Données d''entrée'!$C$333+1+$B702,'1 Données d''entrée'!$C$332*($H695-SUM($C703:U703)),0))","v":0}]
["Paiement d'intêrets",7,0,{"$f":"IF(C617<1+$B703,0,IF(C617<'1 Données d''entrée'!$C$334+'1 Données d''entrée'!$C$333+1+$B703,'1 Données d''entrée'!$C$332*($I695-SUM($C704:C704)),0))","v":0},{"$f":"IF(D617<1+$B703,0,IF(D617<'1 Données d''entrée'!$C$334+'1 Données d''entrée'!$C$333+1+$B703,'1 Données d''entrée'!$C$332*($I695-SUM($C704:D704)),0))","v":0},{"$f":"IF(E617<1+$B703,0,IF(E617<'1 Données d''entrée'!$C$334+'1 Données d''entrée'!$C$333+1+$B703,'1 Données d''entrée'!$C$332*($I695-SUM($C704:E704)),0))","v":0},{"$f":"IF(F617<1+$B703,0,IF(F617<'1 Données d''entrée'!$C$334+'1 Données d''entrée'!$C$333+1+$B703,'1 Données d''entrée'!$C$332*($I695-SUM($C704:F704)),0))","v":0},{"$f":"IF(G617<1+$B703,0,IF(G617<'1 Données d''entrée'!$C$334+'1 Données d''entrée'!$C$333+1+$B703,'1 Données d''entrée'!$C$332*($I695-SUM($C704:G704)),0))","v":0},{"$f":"IF(H617<1+$B703,0,IF(H617<'1 Données d''entrée'!$C$334+'1 Données d''entrée'!$C$333+1+$B703,'1 Données d''entrée'!$C$332*($I695-SUM($C704:H704)),0))","v":0},{"$f":"IF(I617<1+$B703,0,IF(I617<'1 Données d''entrée'!$C$334+'1 Données d''entrée'!$C$333+1+$B703,'1 Données d''entrée'!$C$332*($I695-SUM($C704:I704)),0))","v":0},{"$f":"IF(J617<1+$B703,0,IF(J617<'1 Données d''entrée'!$C$334+'1 Données d''entrée'!$C$333+1+$B703,'1 Données d''entrée'!$C$332*($I695-SUM($C704:J704)),0))","v":0},{"$f":"IF(K617<1+$B703,0,IF(K617<'1 Données d''entrée'!$C$334+'1 Données d''entrée'!$C$333+1+$B703,'1 Données d''entrée'!$C$332*($I695-SUM($C704:K704)),0))","v":0},{"$f":"IF(L617<1+$B703,0,IF(L617<'1 Données d''entrée'!$C$334+'1 Données d''entrée'!$C$333+1+$B703,'1 Données d''entrée'!$C$332*($I695-SUM($C704:L704)),0))","v":0},{"$f":"IF(M617<1+$B703,0,IF(M617<'1 Données d''entrée'!$C$334+'1 Données d''entrée'!$C$333+1+$B703,'1 Données d''entrée'!$C$332*($I695-SUM($C704:M704)),0))","v":0},{"$f":"IF(N617<1+$B703,0,IF(N617<'1 Données d''entrée'!$C$334+'1 Données d''entrée'!$C$333+1+$B703,'1 Données d''entrée'!$C$332*($I695-SUM($C704:N704)),0))","v":0},{"$f":"IF(O617<1+$B703,0,IF(O617<'1 Données d''entrée'!$C$334+'1 Données d''entrée'!$C$333+1+$B703,'1 Données d''entrée'!$C$332*($I695-SUM($C704:O704)),0))","v":0},{"$f":"IF(P617<1+$B703,0,IF(P617<'1 Données d''entrée'!$C$334+'1 Données d''entrée'!$C$333+1+$B703,'1 Données d''entrée'!$C$332*($I695-SUM($C704:P704)),0))","v":0},{"$f":"IF(Q617<1+$B703,0,IF(Q617<'1 Données d''entrée'!$C$334+'1 Données d''entrée'!$C$333+1+$B703,'1 Données d''entrée'!$C$332*($I695-SUM($C704:Q704)),0))","v":0},{"$f":"IF(R617<1+$B703,0,IF(R617<'1 Données d''entrée'!$C$334+'1 Données d''entrée'!$C$333+1+$B703,'1 Données d''entrée'!$C$332*($I695-SUM($C704:R704)),0))","v":0},{"$f":"IF(S617<1+$B703,0,IF(S617<'1 Données d''entrée'!$C$334+'1 Données d''entrée'!$C$333+1+$B703,'1 Données d''entrée'!$C$332*($I695-SUM($C704:S704)),0))","v":0},{"$f":"IF(T617<1+$B703,0,IF(T617<'1 Données d''entrée'!$C$334+'1 Données d''entrée'!$C$333+1+$B703,'1 Données d''entrée'!$C$332*($I695-SUM($C704:T704)),0))","v":0},{"$f":"IF(U617<1+$B703,0,IF(U617<'1 Données d''entrée'!$C$334+'1 Données d''entrée'!$C$333+1+$B703,'1 Données d''entrée'!$C$332*($I695-SUM($C704:U704)),0))","v":0}]
["Paiement d'intêrets",8,0,{"$f":"IF(C617<1+$B704,0,IF(C617<'1 Données d''entrée'!$C$334+'1 Données d''entrée'!$C$333+1+$B704,'1 Données d''entrée'!$C$332*($J695-SUM($C705:C705)),0))","v":0},{"$f":"IF(D617<1+$B704,0,IF(D617<'1 Données d''entrée'!$C$334+'1 Données d''entrée'!$C$333+1+$B704,'1 Données d''entrée'!$C$332*($J695-SUM($C705:D705)),0))","v":0},{"$f":"IF(E617<1+$B704,0,IF(E617<'1 Données d''entrée'!$C$334+'1 Données d''entrée'!$C$333+1+$B704,'1 Données d''entrée'!$C$332*($J695-SUM($C705:E705)),0))","v":0},{"$f":"IF(F617<1+$B704,0,IF(F617<'1 Données d''entrée'!$C$334+'1 Données d''entrée'!$C$333+1+$B704,'1 Données d''entrée'!$C$332*($J695-SUM($C705:F705)),0))","v":0},{"$f":"IF(G617<1+$B704,0,IF(G617<'1 Données d''entrée'!$C$334+'1 Données d''entrée'!$C$333+1+$B704,'1 Données d''entrée'!$C$332*($J695-SUM($C705:G705)),0))","v":0},{"$f":"IF(H617<1+$B704,0,IF(H617<'1 Données d''entrée'!$C$334+'1 Données d''entrée'!$C$333+1+$B704,'1 Données d''entrée'!$C$332*($J695-SUM($C705:H705)),0))","v":0},{"$f":"IF(I617<1+$B704,0,IF(I617<'1 Données d''entrée'!$C$334+'1 Données d''entrée'!$C$333+1+$B704,'1 Données d''entrée'!$C$332*($J695-SUM($C705:I705)),0))","v":0},{"$f":"IF(J617<1+$B704,0,IF(J617<'1 Données d''entrée'!$C$334+'1 Données d''entrée'!$C$333+1+$B704,'1 Données d''entrée'!$C$332*($J695-SUM($C705:J705)),0))","v":0},{"$f":"IF(K617<1+$B704,0,IF(K617<'1 Données d''entrée'!$C$334+'1 Données d''entrée'!$C$333+1+$B704,'1 Données d''entrée'!$C$332*($J695-SUM($C705:K705)),0))","v":0},{"$f":"IF(L617<1+$B704,0,IF(L617<'1 Données d''entrée'!$C$334+'1 Données d''entrée'!$C$333+1+$B704,'1 Données d''entrée'!$C$332*($J695-SUM($C705:L705)),0))","v":0},{"$f":"IF(M617<1+$B704,0,IF(M617<'1 Données d''entrée'!$C$334+'1 Données d''entrée'!$C$333+1+$B704,'1 Données d''entrée'!$C$332*($J695-SUM($C705:M705)),0))","v":0},{"$f":"IF(N617<1+$B704,0,IF(N617<'1 Données d''entrée'!$C$334+'1 Données d''entrée'!$C$333+1+$B704,'1 Données d''entrée'!$C$332*($J695-SUM($C705:N705)),0))","v":0},{"$f":"IF(O617<1+$B704,0,IF(O617<'1 Données d''entrée'!$C$334+'1 Données d''entrée'!$C$333+1+$B704,'1 Données d''entrée'!$C$332*($J695-SUM($C705:O705)),0))","v":0},{"$f":"IF(P617<1+$B704,0,IF(P617<'1 Données d''entrée'!$C$334+'1 Données d''entrée'!$C$333+1+$B704,'1 Données d''entrée'!$C$332*($J695-SUM($C705:P705)),0))","v":0},{"$f":"IF(Q617<1+$B704,0,IF(Q617<'1 Données d''entrée'!$C$334+'1 Données d''entrée'!$C$333+1+$B704,'1 Données d''entrée'!$C$332*($J695-SUM($C705:Q705)),0))","v":0},{"$f":"IF(R617<1+$B704,0,IF(R617<'1 Données d''entrée'!$C$334+'1 Données d''entrée'!$C$333+1+$B704,'1 Données d''entrée'!$C$332*($J695-SUM($C705:R705)),0))","v":0},{"$f":"IF(S617<1+$B704,0,IF(S617<'1 Données d''entrée'!$C$334+'1 Données d''entrée'!$C$333+1+$B704,'1 Données d''entrée'!$C$332*($J695-SUM($C705:S705)),0))","v":0},{"$f":"IF(T617<1+$B704,0,IF(T617<'1 Données d''entrée'!$C$334+'1 Données d''entrée'!$C$333+1+$B704,'1 Données d''entrée'!$C$332*($J695-SUM($C705:T705)),0))","v":0},{"$f":"IF(U617<1+$B704,0,IF(U617<'1 Données d''entrée'!$C$334+'1 Données d''entrée'!$C$333+1+$B704,'1 Données d''entrée'!$C$332*($J695-SUM($C705:U705)),0))","v":0}]
["Paiement d'intêrets",9,0,{"$f":"IF(C617<1+$B705,0,IF(C617<'1 Données d''entrée'!$C$334+'1 Données d''entrée'!$C$333+1+$B705,'1 Données d''entrée'!$C$332*($K695-SUM($C706:C706)),0))","v":0},{"$f":"IF(D617<1+$B705,0,IF(D617<'1 Données d''entrée'!$C$334+'1 Données d''entrée'!$C$333+1+$B705,'1 Données d''entrée'!$C$332*($K695-SUM($C706:D706)),0))","v":0},{"$f":"IF(E617<1+$B705,0,IF(E617<'1 Données d''entrée'!$C$334+'1 Données d''entrée'!$C$333+1+$B705,'1 Données d''entrée'!$C$332*($K695-SUM($C706:E706)),0))","v":0},{"$f":"IF(F617<1+$B705,0,IF(F617<'1 Données d''entrée'!$C$334+'1 Données d''entrée'!$C$333+1+$B705,'1 Données d''entrée'!$C$332*($K695-SUM($C706:F706)),0))","v":0},{"$f":"IF(G617<1+$B705,0,IF(G617<'1 Données d''entrée'!$C$334+'1 Données d''entrée'!$C$333+1+$B705,'1 Données d''entrée'!$C$332*($K695-SUM($C706:G706)),0))","v":0},{"$f":"IF(H617<1+$B705,0,IF(H617<'1 Données d''entrée'!$C$334+'1 Données d''entrée'!$C$333+1+$B705,'1 Données d''entrée'!$C$332*($K695-SUM($C706:H706)),0))","v":0},{"$f":"IF(I617<1+$B705,0,IF(I617<'1 Données d''entrée'!$C$334+'1 Données d''entrée'!$C$333+1+$B705,'1 Données d''entrée'!$C$332*($K695-SUM($C706:I706)),0))","v":0},{"$f":"IF(J617<1+$B705,0,IF(J617<'1 Données d''entrée'!$C$334+'1 Données d''entrée'!$C$333+1+$B705,'1 Données d''entrée'!$C$332*($K695-SUM($C706:J706)),0))","v":0},{"$f":"IF(K617<1+$B705,0,IF(K617<'1 Données d''entrée'!$C$334+'1 Données d''entrée'!$C$333+1+$B705,'1 Données d''entrée'!$C$332*($K695-SUM($C706:K706)),0))","v":0},{"$f":"IF(L617<1+$B705,0,IF(L617<'1 Données d''entrée'!$C$334+'1 Données d''entrée'!$C$333+1+$B705,'1 Données d''entrée'!$C$332*($K695-SUM($C706:L706)),0))","v":0},{"$f":"IF(M617<1+$B705,0,IF(M617<'1 Données d''entrée'!$C$334+'1 Données d''entrée'!$C$333+1+$B705,'1 Données d''entrée'!$C$332*($K695-SUM($C706:M706)),0))","v":0},{"$f":"IF(N617<1+$B705,0,IF(N617<'1 Données d''entrée'!$C$334+'1 Données d''entrée'!$C$333+1+$B705,'1 Données d''entrée'!$C$332*($K695-SUM($C706:N706)),0))","v":0},{"$f":"IF(O617<1+$B705,0,IF(O617<'1 Données d''entrée'!$C$334+'1 Données d''entrée'!$C$333+1+$B705,'1 Données d''entrée'!$C$332*($K695-SUM($C706:O706)),0))","v":0},{"$f":"IF(P617<1+$B705,0,IF(P617<'1 Données d''entrée'!$C$334+'1 Données d''entrée'!$C$333+1+$B705,'1 Données d''entrée'!$C$332*($K695-SUM($C706:P706)),0))","v":0},{"$f":"IF(Q617<1+$B705,0,IF(Q617<'1 Données d''entrée'!$C$334+'1 Données d''entrée'!$C$333+1+$B705,'1 Données d''entrée'!$C$332*($K695-SUM($C706:Q706)),0))","v":0},{"$f":"IF(R617<1+$B705,0,IF(R617<'1 Données d''entrée'!$C$334+'1 Données d''entrée'!$C$333+1+$B705,'1 Données d''entrée'!$C$332*($K695-SUM($C706:R706)),0))","v":0},{"$f":"IF(S617<1+$B705,0,IF(S617<'1 Données d''entrée'!$C$334+'1 Données d''entrée'!$C$333+1+$B705,'1 Données d''entrée'!$C$332*($K695-SUM($C706:S706)),0))","v":0},{"$f":"IF(T617<1+$B705,0,IF(T617<'1 Données d''entrée'!$C$334+'1 Données d''entrée'!$C$333+1+$B705,'1 Données d''entrée'!$C$332*($K695-SUM($C706:T706)),0))","v":0},{"$f":"IF(U617<1+$B705,0,IF(U617<'1 Données d''entrée'!$C$334+'1 Données d''entrée'!$C$333+1+$B705,'1 Données d''entrée'!$C$332*($K695-SUM($C706:U706)),0))","v":0}]
["Paiement d'intêrets",10,0,{"$f":"IF(C617<1+$B706,0,IF(C617<'1 Données d''entrée'!$C$334+'1 Données d''entrée'!$C$333+1+$B706,'1 Données d''entrée'!$C$332*($L695-SUM($C707:C707)),0))","v":0},{"$f":"IF(D617<1+$B706,0,IF(D617<'1 Données d''entrée'!$C$334+'1 Données d''entrée'!$C$333+1+$B706,'1 Données d''entrée'!$C$332*($L695-SUM($C707:D707)),0))","v":0},{"$f":"IF(E617<1+$B706,0,IF(E617<'1 Données d''entrée'!$C$334+'1 Données d''entrée'!$C$333+1+$B706,'1 Données d''entrée'!$C$332*($L695-SUM($C707:E707)),0))","v":0},{"$f":"IF(F617<1+$B706,0,IF(F617<'1 Données d''entrée'!$C$334+'1 Données d''entrée'!$C$333+1+$B706,'1 Données d''entrée'!$C$332*($L695-SUM($C707:F707)),0))","v":0},{"$f":"IF(G617<1+$B706,0,IF(G617<'1 Données d''entrée'!$C$334+'1 Données d''entrée'!$C$333+1+$B706,'1 Données d''entrée'!$C$332*($L695-SUM($C707:G707)),0))","v":0},{"$f":"IF(H617<1+$B706,0,IF(H617<'1 Données d''entrée'!$C$334+'1 Données d''entrée'!$C$333+1+$B706,'1 Données d''entrée'!$C$332*($L695-SUM($C707:H707)),0))","v":0},{"$f":"IF(I617<1+$B706,0,IF(I617<'1 Données d''entrée'!$C$334+'1 Données d''entrée'!$C$333+1+$B706,'1 Données d''entrée'!$C$332*($L695-SUM($C707:I707)),0))","v":0},{"$f":"IF(J617<1+$B706,0,IF(J617<'1 Données d''entrée'!$C$334+'1 Données d''entrée'!$C$333+1+$B706,'1 Données d''entrée'!$C$332*($L695-SUM($C707:J707)),0))","v":0},{"$f":"IF(K617<1+$B706,0,IF(K617<'1 Données d''entrée'!$C$334+'1 Données d''entrée'!$C$333+1+$B706,'1 Données d''entrée'!$C$332*($L695-SUM($C707:K707)),0))","v":0},{"$f":"IF(L617<1+$B706,0,IF(L617<'1 Données d''entrée'!$C$334+'1 Données d''entrée'!$C$333+1+$B706,'1 Données d''entrée'!$C$332*($L695-SUM($C707:L707)),0))","v":0},{"$f":"IF(M617<1+$B706,0,IF(M617<'1 Données d''entrée'!$C$334+'1 Données d''entrée'!$C$333+1+$B706,'1 Données d''entrée'!$C$332*($L695-SUM($C707:M707)),0))","v":0},{"$f":"IF(N617<1+$B706,0,IF(N617<'1 Données d''entrée'!$C$334+'1 Données d''entrée'!$C$333+1+$B706,'1 Données d''entrée'!$C$332*($L695-SUM($C707:N707)),0))","v":0},{"$f":"IF(O617<1+$B706,0,IF(O617<'1 Données d''entrée'!$C$334+'1 Données d''entrée'!$C$333+1+$B706,'1 Données d''entrée'!$C$332*($L695-SUM($C707:O707)),0))","v":0},{"$f":"IF(P617<1+$B706,0,IF(P617<'1 Données d''entrée'!$C$334+'1 Données d''entrée'!$C$333+1+$B706,'1 Données d''entrée'!$C$332*($L695-SUM($C707:P707)),0))","v":0},{"$f":"IF(Q617<1+$B706,0,IF(Q617<'1 Données d''entrée'!$C$334+'1 Données d''entrée'!$C$333+1+$B706,'1 Données d''entrée'!$C$332*($L695-SUM($C707:Q707)),0))","v":0},{"$f":"IF(R617<1+$B706,0,IF(R617<'1 Données d''entrée'!$C$334+'1 Données d''entrée'!$C$333+1+$B706,'1 Données d''entrée'!$C$332*($L695-SUM($C707:R707)),0))","v":0},{"$f":"IF(S617<1+$B706,0,IF(S617<'1 Données d''entrée'!$C$334+'1 Données d''entrée'!$C$333+1+$B706,'1 Données d''entrée'!$C$332*($L695-SUM($C707:S707)),0))","v":0},{"$f":"IF(T617<1+$B706,0,IF(T617<'1 Données d''entrée'!$C$334+'1 Données d''entrée'!$C$333+1+$B706,'1 Données d''entrée'!$C$332*($L695-SUM($C707:T707)),0))","v":0},{"$f":"IF(U617<1+$B706,0,IF(U617<'1 Données d''entrée'!$C$334+'1 Données d''entrée'!$C$333+1+$B706,'1 Données d''entrée'!$C$332*($L695-SUM($C707:U707)),0))","v":0}]
[]
[null,"Période",1,2,3,4,5,6,7,8,9,10,11,12,13,14,15,16,17,18,19,20]
["Prêt bancaire - Option 3: Remboursement vers l'annuité constante",{"$f":"'1 Données d''entrée'!$B$344","v":0}]
["Prêt(s) nouveau(x)",null,{"$f":"IF(C660<0,C660*(-1)*$B722+C660*(-1)*$B722*'1 Données d''entrée'!$C$338,0)","v":{"$error":"#DIV/0!"}},{"$f":"IF(D660<0,D660*(-1)*$B722+D660*(-1)*$B722*'1 Données d''entrée'!$C$338,0)","v":{"$error":"#DIV/0!"}},{"$f":"IF(E660<0,E660*(-1)*$B722+E660*(-1)*$B722*'1 Données d''entrée'!$C$338,0)","v":{"$error":"#DIV/0!"}},{"$f":"IF(F660<0,F660*(-1)*$B722+F660*(-1)*$B722*'1 Données d''entrée'!$C$338,0)","v":{"$error":"#DIV/0!"}},{"$f":"IF(G660<0,G660*(-1)*$B722+G660*(-1)*$B722*'1 Données d''entrée'!$C$338,0)","v":{"$error":"#DIV/0!"}},{"$f":"IF(H660<0,H660*(-1)*$B722+H660*(-1)*$B722*'1 Données d''entrée'!$C$338,0)","v":{"$error":"#DIV/0!"}},{"$f":"IF(I660<0,I660*(-1)*$B722+I660*(-1)*$B722*'1 Données d''entrée'!$C$338,0)","v":{"$error":"#DIV/0!"}},{"$f":"IF(J660<0,J660*(-1)*$B722+J660*(-1)*$B722*'1 Données d''entrée'!$C$338,0)","v":{"$error":"#DIV/0!"}},{"$f":"IF(K660<0,K660*(-1)*$B722+K660*(-1)*$B722*'1 Données d''entrée'!$C$338,0)","v":{"$error":"#DIV/0!"}},{"$f":"IF(L660<0,L660*(-1)*$B722+L660*(-1)*$B722*'1 Données d''entrée'!$C$338,0)","v":{"$error":"#DIV/0!"}},{"$f":"IF(M660<0,M660*(-1)*$B722+M660*(-1)*$B722*'1 Données d''entrée'!$C$338,0)","v":{"$error":"#DIV/0!"}},{"$f":"IF(N660<0,N660*(-1)*$B722+N660*(-1)*$B722*'1 Données d''entrée'!$C$338,0)","v":{"$error":"#DIV/0!"}},{"$f":"IF(O660<0,O660*(-1)*$B722+O660*(-1)*$B722*'1 Données d''entrée'!$C$338,0)","v":{"$error":"#DIV/0!"}},{"$f":"IF(P660<0,P660*(-1)*$B722+P660*(-1)*$B722*'1 Données d''entrée'!$C$338,0)","v":{"$error":"#DIV/0!"}},{"$f":"IF(Q660<0,Q660*(-1)*$B722+Q660*(-1)*$B722*'1 Données d''entrée'!$C$338,0)","v":{"$error":"#DIV/0!"}},{"$f":"IF(R660<0,R660*(-1)*$B722+R660*(-1)*$B722*'1 Données d''entrée'!$C$338,0)","v":{"$error":"#DIV/0!"}},{"$f":"IF(S660<0,S660*(-1)*$B722+S660*(-1)*$B722*'1 Données d''entrée'!$C$338,0)","v":{"$error":"#DIV/0!"}},{"$f":"IF(T660<0,T660*(-1)*$B722+T660*(-1)*$B722*'1 Données d''entrée'!$C$338,0)","v":{"$error":"#DIV/0!"}},{"$f":"IF(U660<0,U660*(-1)*$B722+U660*(-1)*$B722*'1 Données d''entrée'!$C$338,0)","v":{"$error":"#DIV/0!"}},{"$f":"IF(V660<0,V660*(-1)*$B722+V660*(-1)*$B722*'1 Données d''entrée'!$C$338,0)","v":{"$error":"#DIV/0!"}}]
[null,"Période de prêt nouveau"]
["Remboursement vers l'annuité constante",0,0,0,0,0,0,0,0,0,0,0,0,0,0,0,0,0,0,0,0,0]
[null,1,{"$f":"IF(C$54<'1 Données d''entrée'!$C$334+1+$B726,0,IF(C$54<'1 Données d''entrée'!$C$333+'1 Données d''entrée'!$C$334+1+$B726,$C$160*('1 Données d''entrée'!$C$332*(1+'1 Données d''entrée'!$C$332)^'1 Données d''entrée'!$C$333)/((1+'1 Données d''entrée'!$C$332)^'1 Données d''entrée'!$C$333-1),0))","v":0},{"$f":"IF(D617<'1 Données d''entrée'!$C$334+1+$B726,0,IF(D617<'1 Données d''entrée'!$C$333+'1 Données d''entrée'!$C$334+1+$B726,$C723*('1 Données d''entrée'!$C$332*(1+'1 Données d''entrée'!$C$332)^'1 Données d''entrée'!$C$333)/((1+'1 Données d''entrée'!$C$332)^'1 Données d''entrée'!$C$333-1),0))","v":0},{"$f":"IF(E617<'1 Données d''entrée'!$C$334+1+$B726,0,IF(E617<'1 Données d''entrée'!$C$333+'1 Données d''entrée'!$C$334+1+$B726,$C723*('1 Données d''entrée'!$C$332*(1+'1 Données d''entrée'!$C$332)^'1 Données d''entrée'!$C$333)/((1+'1 Données d''entrée'!$C$332)^'1 Données d''entrée'!$C$333-1),0))","v":0},{"$f":"IF(F617<'1 Données d''entrée'!$C$334+1+$B726,0,IF(F617<'1 Données d''entrée'!$C$333+'1 Données d''entrée'!$C$334+1+$B726,$C723*('1 Données d''entrée'!$C$332*(1+'1 Données d''entrée'!$C$332)^'1 Données d''entrée'!$C$333)/((1+'1 Données d''entrée'!$C$332)^'1 Données d''entrée'!$C$333-1),0))","v":0},{"$f":"IF(G617<'1 Données d''entrée'!$C$334+1+$B726,0,IF(G617<'1 Données d''entrée'!$C$333+'1 Données d''entrée'!$C$334+1+$B726,$C723*('1 Données d''entrée'!$C$332*(1+'1 Données d''entrée'!$C$332)^'1 Données d''entrée'!$C$333)/((1+'1 Données d''entrée'!$C$332)^'1 Données d''entrée'!$C$333-1),0))","v":0},{"$f":"IF(H617<'1 Données d''entrée'!$C$334+1+$B726,0,IF(H617<'1 Données d''entrée'!$C$333+'1 Données d''entrée'!$C$334+1+$B726,$C723*('1 Données d''entrée'!$C$332*(1+'1 Données d''entrée'!$C$332)^'1 Données d''entrée'!$C$333)/((1+'1 Données d''entrée'!$C$332)^'1 Données d''entrée'!$C$333-1),0))","v":0},{"$f":"IF(I617<'1 Données d''entrée'!$C$334+1+$B726,0,IF(I617<'1 Données d''entrée'!$C$333+'1 Données d''entrée'!$C$334+1+$B726,$C723*('1 Données d''entrée'!$C$332*(1+'1 Données d''entrée'!$C$332)^'1 Données d''entrée'!$C$333)/((1+'1 Données d''entrée'!$C$332)^'1 Données d''entrée'!$C$333-1),0))","v":0},{"$f":"IF(J617<'1 Données d''entrée'!$C$334+1+$B726,0,IF(J617<'1 Données d''entrée'!$C$333+'1 Données d''entrée'!$C$334+1+$B726,$C723*('1 Données d''entrée'!$C$332*(1+'1 Données d''entrée'!$C$332)^'1 Données d''entrée'!$C$333)/((1+'1 Données d''entrée'!$C$332)^'1 Données d''entrée'!$C$333-1),0))","v":0},{"$f":"IF(K617<'1 Données d''entrée'!$C$334+1+$B726,0,IF(K617<'1 Données d''entrée'!$C$333+'1 Données d''entrée'!$C$334+1+$B726,$C723*('1 Données d''entrée'!$C$332*(1+'1 Données d''entrée'!$C$332)^'1 Données d''entrée'!$C$333)/((1+'1 Données d''entrée'!$C$332)^'1 Données d''entrée'!$C$333-1),0))","v":0},{"$f":"IF(L617<'1 Données d''entrée'!$C$334+1+$B726,0,IF(L617<'1 Données d''entrée'!$C$333+'1 Données d''entrée'!$C$334+1+$B726,$C723*('1 Données d''entrée'!$C$332*(1+'1 Données d''entrée'!$C$332)^'1 Données d''entrée'!$C$333)/((1+'1 Données d''entrée'!$C$332)^'1 Données d''entrée'!$C$333-1),0))","v":0},{"$f":"IF(M617<'1 Données d''entrée'!$C$334+1+$B726,0,IF(M617<'1 Données d''entrée'!$C$333+'1 Données d''entrée'!$C$334+1+$B726,$C723*('1 Données d''entrée'!$C$332*(1+'1 Données d''entrée'!$C$332)^'1 Données d''entrée'!$C$333)/((1+'1 Données d''entrée'!$C$332)^'1 Données d''entrée'!$C$333-1),0))","v":0},{"$f":"IF(N617<'1 Données d''entrée'!$C$334+1+$B726,0,IF(N617<'1 Données d''entrée'!$C$333+'1 Données d''entrée'!$C$334+1+$B726,$C723*('1 Données d''entrée'!$C$332*(1+'1 Données d''entrée'!$C$332)^'1 Données d''entrée'!$C$333)/((1+'1 Données d''entrée'!$C$332)^'1 Données d''entrée'!$C$333-1),0))","v":0},{"$f":"IF(O617<'1 Données d''entrée'!$C$334+1+$B726,0,IF(O617<'1 Données d''entrée'!$C$333+'1 Données d''entrée'!$C$334+1+$B726,$C723*('1 Données d''entrée'!$C$332*(1+'1 Données d''entrée'!$C$332)^'1 Données d''entrée'!$C$333)/((1+'1 Données d''entrée'!$C$332)^'1 Données d''entrée'!$C$333-1),0))","v":0},{"$f":"IF(P617<'1 Données d''entrée'!$C$334+1+$B726,0,IF(P617<'1 Données d''entrée'!$C$333+'1 Données d''entrée'!$C$334+1+$B726,$C723*('1 Données d''entrée'!$C$332*(1+'1 Données d''entrée'!$C$332)^'1 Données d''entrée'!$C$333)/((1+'1 Données d''entrée'!$C$332)^'1 Données d''entrée'!$C$333-1),0))","v":0},{"$f":"IF(Q617<'1 Données d''entrée'!$C$334+1+$B726,0,IF(Q617<'1 Données d''entrée'!$C$333+'1 Données d''entrée'!$C$334+1+$B726,$C723*('1 Données d''entrée'!$C$332*(1+'1 Données d''entrée'!$C$332)^'1 Données d''entrée'!$C$333)/((1+'1 Données d''entrée'!$C$332)^'1 Données d''entrée'!$C$333-1),0))","v":0},{"$f":"IF(R617<'1 Données d''entrée'!$C$334+1+$B726,0,IF(R617<'1 Données d''entrée'!$C$333+'1 Données d''entrée'!$C$334+1+$B726,$C723*('1 Données d''entrée'!$C$332*(1+'1 Données d''entrée'!$C$332)^'1 Données d''entrée'!$C$333)/((1+'1 Données d''entrée'!$C$332)^'1 Données d''entrée'!$C$333-1),0))","v":0},{"$f":"IF(S617<'1 Données d''entrée'!$C$334+1+$B726,0,IF(S617<'1 Données d''entrée'!$C$333+'1 Données d''entrée'!$C$334+1+$B726,$C723*('1 Données d''entrée'!$C$332*(1+'1 Données d''entrée'!$C$332)^'1 Données d''entrée'!$C$333)/((1+'1 Données d''entrée'!$C$332)^'1 Données d''entrée'!$C$333-1),0))","v":0},{"$f":"IF(T617<'1 Données d''entrée'!$C$334+1+$B726,0,IF(T617<'1 Données d''entrée'!$C$333+'1 Données d''entrée'!$C$334+1+$B726,$C723*('1 Données d''entrée'!$C$332*(1+'1 Données d''entrée'!$C$332)^'1 Données d''entrée'!$C$333)/((1+'1 Données d''entrée'!$C$332)^'1 Données d''entrée'!$C$333-1),0))","v":0},{"$f":"IF(U617<'1 Données d''entrée'!$C$334+1+$B726,0,IF(U617<'1 Données d''entrée'!$C$333+'1 Données d''entrée'!$C$334+1+$B726,$C723*('1 Données d''entrée'!$C$332*(1+'1 Données d''entrée'!$C$332)^'1 Données d''entrée'!$C$333)/((1+'1 Données d''entrée'!$C$332)^'1 Données d''entrée'!$C$333-1),0))","v":0},{"$f":"IF(V617<'1 Données d''entrée'!$C$334+1+$B726,0,IF(V617<'1 Données d''entrée'!$C$333+'1 Données d''entrée'!$C$334+1+$B726,$C723*('1 Données d''entrée'!$C$332*(1+'1 Données d''entrée'!$C$332)^'1 Données d''entrée'!$C$333)/((1+'1 Données d''entrée'!$C$332)^'1 Données d''entrée'!$C$333-1),0))","v":0}]
[null,2,{"$f":"IF(C$54<'1 Données d''entrée'!$C$334+1+$B727,0,IF(C$54<'1 Données d''entrée'!$C$333+'1 Données d''entrée'!$C$334+1+$B727,$D$160*('1 Données d''entrée'!$C$332*(1+'1 Données d''entrée'!$C$332)^'1 Données d''entrée'!$C$333)/((1+'1 Données d''entrée'!$C$332)^'1 Données d''entrée'!$C$333-1),0))","v":0},{"$f":"IF(D617<'1 Données d''entrée'!$C$334+1+$B727,0,IF(D617<'1 Données d''entrée'!$C$333+'1 Données d''entrée'!$C$334+1+$B727,$D723*('1 Données d''entrée'!$C$332*(1+'1 Données d''entrée'!$C$332)^'1 Données d''entrée'!$C$333)/((1+'1 Données d''entrée'!$C$332)^'1 Données d''entrée'!$C$333-1),0))","v":0},{"$f":"IF(E617<'1 Données d''entrée'!$C$334+1+$B727,0,IF(E617<'1 Données d''entrée'!$C$333+'1 Données d''entrée'!$C$334+1+$B727,$D723*('1 Données d''entrée'!$C$332*(1+'1 Données d''entrée'!$C$332)^'1 Données d''entrée'!$C$333)/((1+'1 Données d''entrée'!$C$332)^'1 Données d''entrée'!$C$333-1),0))","v":0},{"$f":"IF(F617<'1 Données d''entrée'!$C$334+1+$B727,0,IF(F617<'1 Données d''entrée'!$C$333+'1 Données d''entrée'!$C$334+1+$B727,$D723*('1 Données d''entrée'!$C$332*(1+'1 Données d''entrée'!$C$332)^'1 Données d''entrée'!$C$333)/((1+'1 Données d''entrée'!$C$332)^'1 Données d''entrée'!$C$333-1),0))","v":0},{"$f":"IF(G617<'1 Données d''entrée'!$C$334+1+$B727,0,IF(G617<'1 Données d''entrée'!$C$333+'1 Données d''entrée'!$C$334+1+$B727,$D723*('1 Données d''entrée'!$C$332*(1+'1 Données d''entrée'!$C$332)^'1 Données d''entrée'!$C$333)/((1+'1 Données d''entrée'!$C$332)^'1 Données d''entrée'!$C$333-1),0))","v":0},{"$f":"IF(H617<'1 Données d''entrée'!$C$334+1+$B727,0,IF(H617<'1 Données d''entrée'!$C$333+'1 Données d''entrée'!$C$334+1+$B727,$D723*('1 Données d''entrée'!$C$332*(1+'1 Données d''entrée'!$C$332)^'1 Données d''entrée'!$C$333)/((1+'1 Données d''entrée'!$C$332)^'1 Données d''entrée'!$C$333-1),0))","v":0},{"$f":"IF(I617<'1 Données d''entrée'!$C$334+1+$B727,0,IF(I617<'1 Données d''entrée'!$C$333+'1 Données d''entrée'!$C$334+1+$B727,$D723*('1 Données d''entrée'!$C$332*(1+'1 Données d''entrée'!$C$332)^'1 Données d''entrée'!$C$333)/((1+'1 Données d''entrée'!$C$332)^'1 Données d''entrée'!$C$333-1),0))","v":0},{"$f":"IF(J617<'1 Données d''entrée'!$C$334+1+$B727,0,IF(J617<'1 Données d''entrée'!$C$333+'1 Données d''entrée'!$C$334+1+$B727,$D723*('1 Données d''entrée'!$C$332*(1+'1 Données d''entrée'!$C$332)^'1 Données d''entrée'!$C$333)/((1+'1 Données d''entrée'!$C$332)^'1 Données d''entrée'!$C$333-1),0))","v":0},{"$f":"IF(K617<'1 Données d''entrée'!$C$334+1+$B727,0,IF(K617<'1 Données d''entrée'!$C$333+'1 Données d''entrée'!$C$334+1+$B727,$D723*('1 Données d''entrée'!$C$332*(1+'1 Données d''entrée'!$C$332)^'1 Données d''entrée'!$C$333)/((1+'1 Données d''entrée'!$C$332)^'1 Données d''entrée'!$C$333-1),0))","v":0},{"$f":"IF(L617<'1 Données d''entrée'!$C$334+1+$B727,0,IF(L617<'1 Données d''entrée'!$C$333+'1 Données d''entrée'!$C$334+1+$B727,$D723*('1 Données d''entrée'!$C$332*(1+'1 Données d''entrée'!$C$332)^'1 Données d''entrée'!$C$333)/((1+'1 Données d''entrée'!$C$332)^'1 Données d''entrée'!$C$333-1),0))","v":0},{"$f":"IF(M617<'1 Données d''entrée'!$C$334+1+$B727,0,IF(M617<'1 Données d''entrée'!$C$333+'1 Données d''entrée'!$C$334+1+$B727,$D723*('1 Données d''entrée'!$C$332*(1+'1 Données d''entrée'!$C$332)^'1 Données d''entrée'!$C$333)/((1+'1 Données d''entrée'!$C$332)^'1 Données d''entrée'!$C$333-1),0))","v":0},{"$f":"IF(N617<'1 Données d''entrée'!$C$334+1+$B727,0,IF(N617<'1 Données d''entrée'!$C$333+'1 Données d''entrée'!$C$334+1+$B727,$D723*('1 Données d''entrée'!$C$332*(1+'1 Données d''entrée'!$C$332)^'1 Données d''entrée'!$C$333)/((1+'1 Données d''entrée'!$C$332)^'1 Données d''entrée'!$C$333-1),0))","v":0},{"$f":"IF(O617<'1 Données d''entrée'!$C$334+1+$B727,0,IF(O617<'1 Données d''entrée'!$C$333+'1 Données d''entrée'!$C$334+1+$B727,$D723*('1 Données d''entrée'!$C$332*(1+'1 Données d''entrée'!$C$332)^'1 Données d''entrée'!$C$333)/((1+'1 Données d''entrée'!$C$332)^'1 Données d''entrée'!$C$333-1),0))","v":0},{"$f":"IF(P617<'1 Données d''entrée'!$C$334+1+$B727,0,IF(P617<'1 Données d''entrée'!$C$333+'1 Données d''entrée'!$C$334+1+$B727,$D723*('1 Données d''entrée'!$C$332*(1+'1 Données d''entrée'!$C$332)^'1 Données d''entrée'!$C$333)/((1+'1 Données d''entrée'!$C$332)^'1 Données d''entrée'!$C$333-1),0))","v":0},{"$f":"IF(Q617<'1 Données d''entrée'!$C$334+1+$B727,0,IF(Q617<'1 Données d''entrée'!$C$333+'1 Données d''entrée'!$C$334+1+$B727,$D723*('1 Données d''entrée'!$C$332*(1+'1 Données d''entrée'!$C$332)^'1 Données d''entrée'!$C$333)/((1+'1 Données d''entrée'!$C$332)^'1 Données d''entrée'!$C$333-1),0))","v":0},{"$f":"IF(R617<'1 Données d''entrée'!$C$334+1+$B727,0,IF(R617<'1 Données d''entrée'!$C$333+'1 Données d''entrée'!$C$334+1+$B727,$D723*('1 Données d''entrée'!$C$332*(1+'1 Données d''entrée'!$C$332)^'1 Données d''entrée'!$C$333)/((1+'1 Données d''entrée'!$C$332)^'1 Données d''entrée'!$C$333-1),0))","v":0},{"$f":"IF(S617<'1 Données d''entrée'!$C$334+1+$B727,0,IF(S617<'1 Données d''entrée'!$C$333+'1 Données d''entrée'!$C$334+1+$B727,$D723*('1 Données d''entrée'!$C$332*(1+'1 Données d''entrée'!$C$332)^'1 Données d''entrée'!$C$333)/((1+'1 Données d''entrée'!$C$332)^'1 Données d''entrée'!$C$333-1),0))","v":0},{"$f":"IF(T617<'1 Données d''entrée'!$C$334+1+$B727,0,IF(T617<'1 Données d''entrée'!$C$333+'1 Données d''entrée'!$C$334+1+$B727,$D723*('1 Données d''entrée'!$C$332*(1+'1 Données d''entrée'!$C$332)^'1 Données d''entrée'!$C$333)/((1+'1 Données d''entrée'!$C$332)^'1 Données d''entrée'!$C$333-1),0))","v":0},{"$f":"IF(U617<'1 Données d''entrée'!$C$334+1+$B727,0,IF(U617<'1 Données d''entrée'!$C$333+'1 Données d''entrée'!$C$334+1+$B727,$D723*('1 Données d''entrée'!$C$332*(1+'1 Données d''entrée'!$C$332)^'1 Données d''entrée'!$C$333)/((1+'1 Données d''entrée'!$C$332)^'1 Données d''entrée'!$C$333-1),0))","v":0},{"$f":"IF(V617<'1 Données d''entrée'!$C$334+1+$B727,0,IF(V617<'1 Données d''entrée'!$C$333+'1 Données d''entrée'!$C$334+1+$B727,$D723*('1 Données d''entrée'!$C$332*(1+'1 Données d''entrée'!$C$332)^'1 Données d''entrée'!$C$333)/((1+'1 Données d''entrée'!$C$332)^'1 Données d''entrée'!$C$333-1),0))","v":0}]
[null,3,{"$f":"IF(C$54<'1 Données d''entrée'!$C$334+1+$B728,0,IF(C$54<'1 Données d''entrée'!$C$333+'1 Données d''entrée'!$C$334+1+$B728,$E$160*('1 Données d''entrée'!$C$332*(1+'1 Données d''entrée'!$C$332)^'1 Données d''entrée'!$C$333)/((1+'1 Données d''entrée'!$C$332)^'1 Données d''entrée'!$C$333-1),0))","v":0},{"$f":"IF(D617<'1 Données d''entrée'!$C$334+1+$B728,0,IF(D617<'1 Données d''entrée'!$C$333+'1 Données d''entrée'!$C$334+1+$B728,$E723*('1 Données d''entrée'!$C$332*(1+'1 Données d''entrée'!$C$332)^'1 Données d''entrée'!$C$333)/((1+'1 Données d''entrée'!$C$332)^'1 Données d''entrée'!$C$333-1),0))","v":0},{"$f":"IF(E617<'1 Données d''entrée'!$C$334+1+$B728,0,IF(E617<'1 Données d''entrée'!$C$333+'1 Données d''entrée'!$C$334+1+$B728,$E723*('1 Données d''entrée'!$C$332*(1+'1 Données d''entrée'!$C$332)^'1 Données d''entrée'!$C$333)/((1+'1 Données d''entrée'!$C$332)^'1 Données d''entrée'!$C$333-1),0))","v":0},{"$f":"IF(F617<'1 Données d''entrée'!$C$334+1+$B728,0,IF(F617<'1 Données d''entrée'!$C$333+'1 Données d''entrée'!$C$334+1+$B728,$E723*('1 Données d''entrée'!$C$332*(1+'1 Données d''entrée'!$C$332)^'1 Données d''entrée'!$C$333)/((1+'1 Données d''entrée'!$C$332)^'1 Données d''entrée'!$C$333-1),0))","v":0},{"$f":"IF(G617<'1 Données d''entrée'!$C$334+1+$B728,0,IF(G617<'1 Données d''entrée'!$C$333+'1 Données d''entrée'!$C$334+1+$B728,$E723*('1 Données d''entrée'!$C$332*(1+'1 Données d''entrée'!$C$332)^'1 Données d''entrée'!$C$333)/((1+'1 Données d''entrée'!$C$332)^'1 Données d''entrée'!$C$333-1),0))","v":0},{"$f":"IF(H617<'1 Données d''entrée'!$C$334+1+$B728,0,IF(H617<'1 Données d''entrée'!$C$333+'1 Données d''entrée'!$C$334+1+$B728,$E723*('1 Données d''entrée'!$C$332*(1+'1 Données d''entrée'!$C$332)^'1 Données d''entrée'!$C$333)/((1+'1 Données d''entrée'!$C$332)^'1 Données d''entrée'!$C$333-1),0))","v":0},{"$f":"IF(I617<'1 Données d''entrée'!$C$334+1+$B728,0,IF(I617<'1 Données d''entrée'!$C$333+'1 Données d''entrée'!$C$334+1+$B728,$E723*('1 Données d''entrée'!$C$332*(1+'1 Données d''entrée'!$C$332)^'1 Données d''entrée'!$C$333)/((1+'1 Données d''entrée'!$C$332)^'1 Données d''entrée'!$C$333-1),0))","v":0},{"$f":"IF(J617<'1 Données d''entrée'!$C$334+1+$B728,0,IF(J617<'1 Données d''entrée'!$C$333+'1 Données d''entrée'!$C$334+1+$B728,$E723*('1 Données d''entrée'!$C$332*(1+'1 Données d''entrée'!$C$332)^'1 Données d''entrée'!$C$333)/((1+'1 Données d''entrée'!$C$332)^'1 Données d''entrée'!$C$333-1),0))","v":0},{"$f":"IF(K617<'1 Données d''entrée'!$C$334+1+$B728,0,IF(K617<'1 Données d''entrée'!$C$333+'1 Données d''entrée'!$C$334+1+$B728,$E723*('1 Données d''entrée'!$C$332*(1+'1 Données d''entrée'!$C$332)^'1 Données d''entrée'!$C$333)/((1+'1 Données d''entrée'!$C$332)^'1 Données d''entrée'!$C$333-1),0))","v":0},{"$f":"IF(L617<'1 Données d''entrée'!$C$334+1+$B728,0,IF(L617<'1 Données d''entrée'!$C$333+'1 Données d''entrée'!$C$334+1+$B728,$E723*('1 Données d''entrée'!$C$332*(1+'1 Données d''entrée'!$C$332)^'1 Données d''entrée'!$C$333)/((1+'1 Données d''entrée'!$C$332)^'1 Données d''entrée'!$C$333-1),0))","v":0},{"$f":"IF(M617<'1 Données d''entrée'!$C$334+1+$B728,0,IF(M617<'1 Données d''entrée'!$C$333+'1 Données d''entrée'!$C$334+1+$B728,$E723*('1 Données d''entrée'!$C$332*(1+'1 Données d''entrée'!$C$332)^'1 Données d''entrée'!$C$333)/((1+'1 Données d''entrée'!$C$332)^'1 Données d''entrée'!$C$333-1),0))","v":0},{"$f":"IF(N617<'1 Données d''entrée'!$C$334+1+$B728,0,IF(N617<'1 Données d''entrée'!$C$333+'1 Données d''entrée'!$C$334+1+$B728,$E723*('1 Données d''entrée'!$C$332*(1+'1 Données d''entrée'!$C$332)^'1 Données d''entrée'!$C$333)/((1+'1 Données d''entrée'!$C$332)^'1 Données d''entrée'!$C$333-1),0))","v":0},{"$f":"IF(O617<'1 Données d''entrée'!$C$334+1+$B728,0,IF(O617<'1 Données d''entrée'!$C$333+'1 Données d''entrée'!$C$334+1+$B728,$E723*('1 Données d''entrée'!$C$332*(1+'1 Données d''entrée'!$C$332)^'1 Données d''entrée'!$C$333)/((1+'1 Données d''entrée'!$C$332)^'1 Données d''entrée'!$C$333-1),0))","v":0},{"$f":"IF(P617<'1 Données d''entrée'!$C$334+1+$B728,0,IF(P617<'1 Données d''entrée'!$C$333+'1 Données d''entrée'!$C$334+1+$B728,$E723*('1 Données d''entrée'!$C$332*(1+'1 Données d''entrée'!$C$332)^'1 Données d''entrée'!$C$333)/((1+'1 Données d''entrée'!$C$332)^'1 Données d''entrée'!$C$333-1),0))","v":0},{"$f":"IF(Q617<'1 Données d''entrée'!$C$334+1+$B728,0,IF(Q617<'1 Données d''entrée'!$C$333+'1 Données d''entrée'!$C$334+1+$B728,$E723*('1 Données d''entrée'!$C$332*(1+'1 Données d''entrée'!$C$332)^'1 Données d''entrée'!$C$333)/((1+'1 Données d''entrée'!$C$332)^'1 Données d''entrée'!$C$333-1),0))","v":0},{"$f":"IF(R617<'1 Données d''entrée'!$C$334+1+$B728,0,IF(R617<'1 Données d''entrée'!$C$333+'1 Données d''entrée'!$C$334+1+$B728,$E723*('1 Données d''entrée'!$C$332*(1+'1 Données d''entrée'!$C$332)^'1 Données d''entrée'!$C$333)/((1+'1 Données d''entrée'!$C$332)^'1 Données d''entrée'!$C$333-1),0))","v":0},{"$f":"IF(S617<'1 Données d''entrée'!$C$334+1+$B728,0,IF(S617<'1 Données d''entrée'!$C$333+'1 Données d''entrée'!$C$334+1+$B728,$E723*('1 Données d''entrée'!$C$332*(1+'1 Données d''entrée'!$C$332)^'1 Données d''entrée'!$C$333)/((1+'1 Données d''entrée'!$C$332)^'1 Données d''entrée'!$C$333-1),0))","v":0},{"$f":"IF(T617<'1 Données d''entrée'!$C$334+1+$B728,0,IF(T617<'1 Données d''entrée'!$C$333+'1 Données d''entrée'!$C$334+1+$B728,$E723*('1 Données d''entrée'!$C$332*(1+'1 Données d''entrée'!$C$332)^'1 Données d''entrée'!$C$333)/((1+'1 Données d''entrée'!$C$332)^'1 Données d''entrée'!$C$333-1),0))","v":0},{"$f":"IF(U617<'1 Données d''entrée'!$C$334+1+$B728,0,IF(U617<'1 Données d''entrée'!$C$333+'1 Données d''entrée'!$C$334+1+$B728,$E723*('1 Données d''entrée'!$C$332*(1+'1 Données d''entrée'!$C$332)^'1 Données d''entrée'!$C$333)/((1+'1 Données d''entrée'!$C$332)^'1 Données d''entrée'!$C$333-1),0))","v":0},{"$f":"IF(V617<'1 Données d''entrée'!$C$334+1+$B728,0,IF(V617<'1 Données d''entrée'!$C$333+'1 Données d''entrée'!$C$334+1+$B728,$E723*('1 Données d''entrée'!$C$332*(1+'1 Données d''entrée'!$C$332)^'1 Données d''entrée'!$C$333)/((1+'1 Données d''entrée'!$C$332)^'1 Données d''entrée'!$C$333-1),0))","v":0}]
[null,4,{"$f":"IF(C$54<'1 Données d''entrée'!$C$334+1+$B729,0,IF(C$54<'1 Données d''entrée'!$C$333+'1 Données d''entrée'!$C$334+1+$B729,$F$160*('1 Données d''entrée'!$C$332*(1+'1 Données d''entrée'!$C$332)^'1 Données d''entrée'!$C$333)/((1+'1 Données d''entrée'!$C$332)^'1 Données d''entrée'!$C$333-1),0))","v":0},{"$f":"IF(D617<'1 Données d''entrée'!$C$334+1+$B729,0,IF(D617<'1 Données d''entrée'!$C$333+'1 Données d''entrée'!$C$334+1+$B729,$F723*('1 Données d''entrée'!$C$332*(1+'1 Données d''entrée'!$C$332)^'1 Données d''entrée'!$C$333)/((1+'1 Données d''entrée'!$C$332)^'1 Données d''entrée'!$C$333-1),0))","v":0},{"$f":"IF(E617<'1 Données d''entrée'!$C$334+1+$B729,0,IF(E617<'1 Données d''entrée'!$C$333+'1 Données d''entrée'!$C$334+1+$B729,$F723*('1 Données d''entrée'!$C$332*(1+'1 Données d''entrée'!$C$332)^'1 Données d''entrée'!$C$333)/((1+'1 Données d''entrée'!$C$332)^'1 Données d''entrée'!$C$333-1),0))","v":0},{"$f":"IF(F617<'1 Données d''entrée'!$C$334+1+$B729,0,IF(F617<'1 Données d''entrée'!$C$333+'1 Données d''entrée'!$C$334+1+$B729,$F723*('1 Données d''entrée'!$C$332*(1+'1 Données d''entrée'!$C$332)^'1 Données d''entrée'!$C$333)/((1+'1 Données d''entrée'!$C$332)^'1 Données d''entrée'!$C$333-1),0))","v":0},{"$f":"IF(G617<'1 Données d''entrée'!$C$334+1+$B729,0,IF(G617<'1 Données d''entrée'!$C$333+'1 Données d''entrée'!$C$334+1+$B729,$F723*('1 Données d''entrée'!$C$332*(1+'1 Données d''entrée'!$C$332)^'1 Données d''entrée'!$C$333)/((1+'1 Données d''entrée'!$C$332)^'1 Données d''entrée'!$C$333-1),0))","v":0},{"$f":"IF(H617<'1 Données d''entrée'!$C$334+1+$B729,0,IF(H617<'1 Données d''entrée'!$C$333+'1 Données d''entrée'!$C$334+1+$B729,$F723*('1 Données d''entrée'!$C$332*(1+'1 Données d''entrée'!$C$332)^'1 Données d''entrée'!$C$333)/((1+'1 Données d''entrée'!$C$332)^'1 Données d''entrée'!$C$333-1),0))","v":0},{"$f":"IF(I617<'1 Données d''entrée'!$C$334+1+$B729,0,IF(I617<'1 Données d''entrée'!$C$333+'1 Données d''entrée'!$C$334+1+$B729,$F723*('1 Données d''entrée'!$C$332*(1+'1 Données d''entrée'!$C$332)^'1 Données d''entrée'!$C$333)/((1+'1 Données d''entrée'!$C$332)^'1 Données d''entrée'!$C$333-1),0))","v":0},{"$f":"IF(J617<'1 Données d''entrée'!$C$334+1+$B729,0,IF(J617<'1 Données d''entrée'!$C$333+'1 Données d''entrée'!$C$334+1+$B729,$F723*('1 Données d''entrée'!$C$332*(1+'1 Données d''entrée'!$C$332)^'1 Données d''entrée'!$C$333)/((1+'1 Données d''entrée'!$C$332)^'1 Données d''entrée'!$C$333-1),0))","v":0},{"$f":"IF(K617<'1 Données d''entrée'!$C$334+1+$B729,0,IF(K617<'1 Données d''entrée'!$C$333+'1 Données d''entrée'!$C$334+1+$B729,$F723*('1 Données d''entrée'!$C$332*(1+'1 Données d''entrée'!$C$332)^'1 Données d''entrée'!$C$333)/((1+'1 Données d''entrée'!$C$332)^'1 Données d''entrée'!$C$333-1),0))","v":0},{"$f":"IF(L617<'1 Données d''entrée'!$C$334+1+$B729,0,IF(L617<'1 Données d''entrée'!$C$333+'1 Données d''entrée'!$C$334+1+$B729,$F723*('1 Données d''entrée'!$C$332*(1+'1 Données d''entrée'!$C$332)^'1 Données d''entrée'!$C$333)/((1+'1 Données d''entrée'!$C$332)^'1 Données d''entrée'!$C$333-1),0))","v":0},{"$f":"IF(M617<'1 Données d''entrée'!$C$334+1+$B729,0,IF(M617<'1 Données d''entrée'!$C$333+'1 Données d''entrée'!$C$334+1+$B729,$F723*('1 Données d''entrée'!$C$332*(1+'1 Données d''entrée'!$C$332)^'1 Données d''entrée'!$C$333)/((1+'1 Données d''entrée'!$C$332)^'1 Données d''entrée'!$C$333-1),0))","v":0},{"$f":"IF(N617<'1 Données d''entrée'!$C$334+1+$B729,0,IF(N617<'1 Données d''entrée'!$C$333+'1 Données d''entrée'!$C$334+1+$B729,$F723*('1 Données d''entrée'!$C$332*(1+'1 Données d''entrée'!$C$332)^'1 Données d''entrée'!$C$333)/((1+'1 Données d''entrée'!$C$332)^'1 Données d''entrée'!$C$333-1),0))","v":0},{"$f":"IF(O617<'1 Données d''entrée'!$C$334+1+$B729,0,IF(O617<'1 Données d''entrée'!$C$333+'1 Données d''entrée'!$C$334+1+$B729,$F723*('1 Données d''entrée'!$C$332*(1+'1 Données d''entrée'!$C$332)^'1 Données d''entrée'!$C$333)/((1+'1 Données d''entrée'!$C$332)^'1 Données d''entrée'!$C$333-1),0))","v":0},{"$f":"IF(P617<'1 Données d''entrée'!$C$334+1+$B729,0,IF(P617<'1 Données d''entrée'!$C$333+'1 Données d''entrée'!$C$334+1+$B729,$F723*('1 Données d''entrée'!$C$332*(1+'1 Données d''entrée'!$C$332)^'1 Données d''entrée'!$C$333)/((1+'1 Données d''entrée'!$C$332)^'1 Données d''entrée'!$C$333-1),0))","v":0},{"$f":"IF(Q617<'1 Données d''entrée'!$C$334+1+$B729,0,IF(Q617<'1 Données d''entrée'!$C$333+'1 Données d''entrée'!$C$334+1+$B729,$F723*('1 Données d''entrée'!$C$332*(1+'1 Données d''entrée'!$C$332)^'1 Données d''entrée'!$C$333)/((1+'1 Données d''entrée'!$C$332)^'1 Données d''entrée'!$C$333-1),0))","v":0},{"$f":"IF(R617<'1 Données d''entrée'!$C$334+1+$B729,0,IF(R617<'1 Données d''entrée'!$C$333+'1 Données d''entrée'!$C$334+1+$B729,$F723*('1 Données d''entrée'!$C$332*(1+'1 Données d''entrée'!$C$332)^'1 Données d''entrée'!$C$333)/((1+'1 Données d''entrée'!$C$332)^'1 Données d''entrée'!$C$333-1),0))","v":0},{"$f":"IF(S617<'1 Données d''entrée'!$C$334+1+$B729,0,IF(S617<'1 Données d''entrée'!$C$333+'1 Données d''entrée'!$C$334+1+$B729,$F723*('1 Données d''entrée'!$C$332*(1+'1 Données d''entrée'!$C$332)^'1 Données d''entrée'!$C$333)/((1+'1 Données d''entrée'!$C$332)^'1 Données d''entrée'!$C$333-1),0))","v":0},{"$f":"IF(T617<'1 Données d''entrée'!$C$334+1+$B729,0,IF(T617<'1 Données d''entrée'!$C$333+'1 Données d''entrée'!$C$334+1+$B729,$F723*('1 Données d''entrée'!$C$332*(1+'1 Données d''entrée'!$C$332)^'1 Données d''entrée'!$C$333)/((1+'1 Données d''entrée'!$C$332)^'1 Données d''entrée'!$C$333-1),0))","v":0},{"$f":"IF(U617<'1 Données d''entrée'!$C$334+1+$B729,0,IF(U617<'1 Données d''entrée'!$C$333+'1 Données d''entrée'!$C$334+1+$B729,$F723*('1 Données d''entrée'!$C$332*(1+'1 Données d''entrée'!$C$332)^'1 Données d''entrée'!$C$333)/((1+'1 Données d''entrée'!$C$332)^'1 Données d''entrée'!$C$333-1),0))","v":0},{"$f":"IF(V617<'1 Données d''entrée'!$C$334+1+$B729,0,IF(V617<'1 Données d''entrée'!$C$333+'1 Données d''entrée'!$C$334+1+$B729,$F723*('1 Données d''entrée'!$C$332*(1+'1 Données d''entrée'!$C$332)^'1 Données d''entrée'!$C$333)/((1+'1 Données d''entrée'!$C$332)^'1 Données d''entrée'!$C$333-1),0))","v":0}]
[null,5,{"$f":"IF(C$54<'1 Données d''entrée'!$C$334+1+$B730,0,IF(C$54<'1 Données d''entrée'!$C$333+'1 Données d''entrée'!$C$334+1+$B730,$G$160*('1 Données d''entrée'!$C$332*(1+'1 Données d''entrée'!$C$332)^'1 Données d''entrée'!$C$333)/((1+'1 Données d''entrée'!$C$332)^'1 Données d''entrée'!$C$333-1),0))","v":0},{"$f":"IF(D617<'1 Données d''entrée'!$C$334+1+$B730,0,IF(D617<'1 Données d''entrée'!$C$333+'1 Données d''entrée'!$C$334+1+$B730,$G723*('1 Données d''entrée'!$C$332*(1+'1 Données d''entrée'!$C$332)^'1 Données d''entrée'!$C$333)/((1+'1 Données d''entrée'!$C$332)^'1 Données d''entrée'!$C$333-1),0))","v":0},{"$f":"IF(E617<'1 Données d''entrée'!$C$334+1+$B730,0,IF(E617<'1 Données d''entrée'!$C$333+'1 Données d''entrée'!$C$334+1+$B730,$G723*('1 Données d''entrée'!$C$332*(1+'1 Données d''entrée'!$C$332)^'1 Données d''entrée'!$C$333)/((1+'1 Données d''entrée'!$C$332)^'1 Données d''entrée'!$C$333-1),0))","v":0},{"$f":"IF(F617<'1 Données d''entrée'!$C$334+1+$B730,0,IF(F617<'1 Données d''entrée'!$C$333+'1 Données d''entrée'!$C$334+1+$B730,$G723*('1 Données d''entrée'!$C$332*(1+'1 Données d''entrée'!$C$332)^'1 Données d''entrée'!$C$333)/((1+'1 Données d''entrée'!$C$332)^'1 Données d''entrée'!$C$333-1),0))","v":0},{"$f":"IF(G617<'1 Données d''entrée'!$C$334+1+$B730,0,IF(G617<'1 Données d''entrée'!$C$333+'1 Données d''entrée'!$C$334+1+$B730,$G723*('1 Données d''entrée'!$C$332*(1+'1 Données d''entrée'!$C$332)^'1 Données d''entrée'!$C$333)/((1+'1 Données d''entrée'!$C$332)^'1 Données d''entrée'!$C$333-1),0))","v":0},{"$f":"IF(H617<'1 Données d''entrée'!$C$334+1+$B730,0,IF(H617<'1 Données d''entrée'!$C$333+'1 Données d''entrée'!$C$334+1+$B730,$G723*('1 Données d''entrée'!$C$332*(1+'1 Données d''entrée'!$C$332)^'1 Données d''entrée'!$C$333)/((1+'1 Données d''entrée'!$C$332)^'1 Données d''entrée'!$C$333-1),0))","v":0},{"$f":"IF(I617<'1 Données d''entrée'!$C$334+1+$B730,0,IF(I617<'1 Données d''entrée'!$C$333+'1 Données d''entrée'!$C$334+1+$B730,$G723*('1 Données d''entrée'!$C$332*(1+'1 Données d''entrée'!$C$332)^'1 Données d''entrée'!$C$333)/((1+'1 Données d''entrée'!$C$332)^'1 Données d''entrée'!$C$333-1),0))","v":0},{"$f":"IF(J617<'1 Données d''entrée'!$C$334+1+$B730,0,IF(J617<'1 Données d''entrée'!$C$333+'1 Données d''entrée'!$C$334+1+$B730,$G723*('1 Données d''entrée'!$C$332*(1+'1 Données d''entrée'!$C$332)^'1 Données d''entrée'!$C$333)/((1+'1 Données d''entrée'!$C$332)^'1 Données d''entrée'!$C$333-1),0))","v":0},{"$f":"IF(K617<'1 Données d''entrée'!$C$334+1+$B730,0,IF(K617<'1 Données d''entrée'!$C$333+'1 Données d''entrée'!$C$334+1+$B730,$G723*('1 Données d''entrée'!$C$332*(1+'1 Données d''entrée'!$C$332)^'1 Données d''entrée'!$C$333)/((1+'1 Données d''entrée'!$C$332)^'1 Données d''entrée'!$C$333-1),0))","v":0},{"$f":"IF(L617<'1 Données d''entrée'!$C$334+1+$B730,0,IF(L617<'1 Données d''entrée'!$C$333+'1 Données d''entrée'!$C$334+1+$B730,$G723*('1 Données d''entrée'!$C$332*(1+'1 Données d''entrée'!$C$332)^'1 Données d''entrée'!$C$333)/((1+'1 Données d''entrée'!$C$332)^'1 Données d''entrée'!$C$333-1),0))","v":0},{"$f":"IF(M617<'1 Données d''entrée'!$C$334+1+$B730,0,IF(M617<'1 Données d''entrée'!$C$333+'1 Données d''entrée'!$C$334+1+$B730,$G723*('1 Données d''entrée'!$C$332*(1+'1 Données d''entrée'!$C$332)^'1 Données d''entrée'!$C$333)/((1+'1 Données d''entrée'!$C$332)^'1 Données d''entrée'!$C$333-1),0))","v":0},{"$f":"IF(N617<'1 Données d''entrée'!$C$334+1+$B730,0,IF(N617<'1 Données d''entrée'!$C$333+'1 Données d''entrée'!$C$334+1+$B730,$G723*('1 Données d''entrée'!$C$332*(1+'1 Données d''entrée'!$C$332)^'1 Données d''entrée'!$C$333)/((1+'1 Données d''entrée'!$C$332)^'1 Données d''entrée'!$C$333-1),0))","v":0},{"$f":"IF(O617<'1 Données d''entrée'!$C$334+1+$B730,0,IF(O617<'1 Données d''entrée'!$C$333+'1 Données d''entrée'!$C$334+1+$B730,$G723*('1 Données d''entrée'!$C$332*(1+'1 Données d''entrée'!$C$332)^'1 Données d''entrée'!$C$333)/((1+'1 Données d''entrée'!$C$332)^'1 Données d''entrée'!$C$333-1),0))","v":0},{"$f":"IF(P617<'1 Données d''entrée'!$C$334+1+$B730,0,IF(P617<'1 Données d''entrée'!$C$333+'1 Données d''entrée'!$C$334+1+$B730,$G723*('1 Données d''entrée'!$C$332*(1+'1 Données d''entrée'!$C$332)^'1 Données d''entrée'!$C$333)/((1+'1 Données d''entrée'!$C$332)^'1 Données d''entrée'!$C$333-1),0))","v":0},{"$f":"IF(Q617<'1 Données d''entrée'!$C$334+1+$B730,0,IF(Q617<'1 Données d''entrée'!$C$333+'1 Données d''entrée'!$C$334+1+$B730,$G723*('1 Données d''entrée'!$C$332*(1+'1 Données d''entrée'!$C$332)^'1 Données d''entrée'!$C$333)/((1+'1 Données d''entrée'!$C$332)^'1 Données d''entrée'!$C$333-1),0))","v":0},{"$f":"IF(R617<'1 Données d''entrée'!$C$334+1+$B730,0,IF(R617<'1 Données d''entrée'!$C$333+'1 Données d''entrée'!$C$334+1+$B730,$G723*('1 Données d''entrée'!$C$332*(1+'1 Données d''entrée'!$C$332)^'1 Données d''entrée'!$C$333)/((1+'1 Données d''entrée'!$C$332)^'1 Données d''entrée'!$C$333-1),0))","v":0},{"$f":"IF(S617<'1 Données d''entrée'!$C$334+1+$B730,0,IF(S617<'1 Données d''entrée'!$C$333+'1 Données d''entrée'!$C$334+1+$B730,$G723*('1 Données d''entrée'!$C$332*(1+'1 Données d''entrée'!$C$332)^'1 Données d''entrée'!$C$333)/((1+'1 Données d''entrée'!$C$332)^'1 Données d''entrée'!$C$333-1),0))","v":0},{"$f":"IF(T617<'1 Données d''entrée'!$C$334+1+$B730,0,IF(T617<'1 Données d''entrée'!$C$333+'1 Données d''entrée'!$C$334+1+$B730,$G723*('1 Données d''entrée'!$C$332*(1+'1 Données d''entrée'!$C$332)^'1 Données d''entrée'!$C$333)/((1+'1 Données d''entrée'!$C$332)^'1 Données d''entrée'!$C$333-1),0))","v":0},{"$f":"IF(U617<'1 Données d''entrée'!$C$334+1+$B730,0,IF(U617<'1 Données d''entrée'!$C$333+'1 Données d''entrée'!$C$334+1+$B730,$G723*('1 Données d''entrée'!$C$332*(1+'1 Données d''entrée'!$C$332)^'1 Données d''entrée'!$C$333)/((1+'1 Données d''entrée'!$C$332)^'1 Données d''entrée'!$C$333-1),0))","v":0},{"$f":"IF(V617<'1 Données d''entrée'!$C$334+1+$B730,0,IF(V617<'1 Données d''entrée'!$C$333+'1 Données d''entrée'!$C$334+1+$B730,$G723*('1 Données d''entrée'!$C$332*(1+'1 Données d''entrée'!$C$332)^'1 Données d''entrée'!$C$333)/((1+'1 Données d''entrée'!$C$332)^'1 Données d''entrée'!$C$333-1),0))","v":0}]
[null,6,{"$f":"IF(C$54<'1 Données d''entrée'!$C$334+1+$B731,0,IF(C$54<'1 Données d''entrée'!$C$333+'1 Données d''entrée'!$C$334+1+$B731,$H$160*('1 Données d''entrée'!$C$332*(1+'1 Données d''entrée'!$C$332)^'1 Données d''entrée'!$C$333)/((1+'1 Données d''entrée'!$C$332)^'1 Données d''entrée'!$C$333-1),0))","v":0},{"$f":"IF(D617<'1 Données d''entrée'!$C$334+1+$B731,0,IF(D617<'1 Données d''entrée'!$C$333+'1 Données d''entrée'!$C$334+1+$B731,$H723*('1 Données d''entrée'!$C$332*(1+'1 Données d''entrée'!$C$332)^'1 Données d''entrée'!$C$333)/((1+'1 Données d''entrée'!$C$332)^'1 Données d''entrée'!$C$333-1),0))","v":0},{"$f":"IF(E617<'1 Données d''entrée'!$C$334+1+$B731,0,IF(E617<'1 Données d''entrée'!$C$333+'1 Données d''entrée'!$C$334+1+$B731,$H723*('1 Données d''entrée'!$C$332*(1+'1 Données d''entrée'!$C$332)^'1 Données d''entrée'!$C$333)/((1+'1 Données d''entrée'!$C$332)^'1 Données d''entrée'!$C$333-1),0))","v":0},{"$f":"IF(F617<'1 Données d''entrée'!$C$334+1+$B731,0,IF(F617<'1 Données d''entrée'!$C$333+'1 Données d''entrée'!$C$334+1+$B731,$H723*('1 Données d''entrée'!$C$332*(1+'1 Données d''entrée'!$C$332)^'1 Données d''entrée'!$C$333)/((1+'1 Données d''entrée'!$C$332)^'1 Données d''entrée'!$C$333-1),0))","v":0},{"$f":"IF(G617<'1 Données d''entrée'!$C$334+1+$B731,0,IF(G617<'1 Données d''entrée'!$C$333+'1 Données d''entrée'!$C$334+1+$B731,$H723*('1 Données d''entrée'!$C$332*(1+'1 Données d''entrée'!$C$332)^'1 Données d''entrée'!$C$333)/((1+'1 Données d''entrée'!$C$332)^'1 Données d''entrée'!$C$333-1),0))","v":0},{"$f":"IF(H617<'1 Données d''entrée'!$C$334+1+$B731,0,IF(H617<'1 Données d''entrée'!$C$333+'1 Données d''entrée'!$C$334+1+$B731,$H723*('1 Données d''entrée'!$C$332*(1+'1 Données d''entrée'!$C$332)^'1 Données d''entrée'!$C$333)/((1+'1 Données d''entrée'!$C$332)^'1 Données d''entrée'!$C$333-1),0))","v":0},{"$f":"IF(I617<'1 Données d''entrée'!$C$334+1+$B731,0,IF(I617<'1 Données d''entrée'!$C$333+'1 Données d''entrée'!$C$334+1+$B731,$H723*('1 Données d''entrée'!$C$332*(1+'1 Données d''entrée'!$C$332)^'1 Données d''entrée'!$C$333)/((1+'1 Données d''entrée'!$C$332)^'1 Données d''entrée'!$C$333-1),0))","v":0},{"$f":"IF(J617<'1 Données d''entrée'!$C$334+1+$B731,0,IF(J617<'1 Données d''entrée'!$C$333+'1 Données d''entrée'!$C$334+1+$B731,$H723*('1 Données d''entrée'!$C$332*(1+'1 Données d''entrée'!$C$332)^'1 Données d''entrée'!$C$333)/((1+'1 Données d''entrée'!$C$332)^'1 Données d''entrée'!$C$333-1),0))","v":0},{"$f":"IF(K617<'1 Données d''entrée'!$C$334+1+$B731,0,IF(K617<'1 Données d''entrée'!$C$333+'1 Données d''entrée'!$C$334+1+$B731,$H723*('1 Données d''entrée'!$C$332*(1+'1 Données d''entrée'!$C$332)^'1 Données d''entrée'!$C$333)/((1+'1 Données d''entrée'!$C$332)^'1 Données d''entrée'!$C$333-1),0))","v":0},{"$f":"IF(L617<'1 Données d''entrée'!$C$334+1+$B731,0,IF(L617<'1 Données d''entrée'!$C$333+'1 Données d''entrée'!$C$334+1+$B731,$H723*('1 Données d''entrée'!$C$332*(1+'1 Données d''entrée'!$C$332)^'1 Données d''entrée'!$C$333)/((1+'1 Données d''entrée'!$C$332)^'1 Données d''entrée'!$C$333-1),0))","v":0},{"$f":"IF(M617<'1 Données d''entrée'!$C$334+1+$B731,0,IF(M617<'1 Données d''entrée'!$C$333+'1 Données d''entrée'!$C$334+1+$B731,$H723*('1 Données d''entrée'!$C$332*(1+'1 Données d''entrée'!$C$332)^'1 Données d''entrée'!$C$333)/((1+'1 Données d''entrée'!$C$332)^'1 Données d''entrée'!$C$333-1),0))","v":0},{"$f":"IF(N617<'1 Données d''entrée'!$C$334+1+$B731,0,IF(N617<'1 Données d''entrée'!$C$333+'1 Données d''entrée'!$C$334+1+$B731,$H723*('1 Données d''entrée'!$C$332*(1+'1 Données d''entrée'!$C$332)^'1 Données d''entrée'!$C$333)/((1+'1 Données d''entrée'!$C$332)^'1 Données d''entrée'!$C$333-1),0))","v":0},{"$f":"IF(O617<'1 Données d''entrée'!$C$334+1+$B731,0,IF(O617<'1 Données d''entrée'!$C$333+'1 Données d''entrée'!$C$334+1+$B731,$H723*('1 Données d''entrée'!$C$332*(1+'1 Données d''entrée'!$C$332)^'1 Données d''entrée'!$C$333)/((1+'1 Données d''entrée'!$C$332)^'1 Données d''entrée'!$C$333-1),0))","v":0},{"$f":"IF(P617<'1 Données d''entrée'!$C$334+1+$B731,0,IF(P617<'1 Données d''entrée'!$C$333+'1 Données d''entrée'!$C$334+1+$B731,$H723*('1 Données d''entrée'!$C$332*(1+'1 Données d''entrée'!$C$332)^'1 Données d''entrée'!$C$333)/((1+'1 Données d''entrée'!$C$332)^'1 Données d''entrée'!$C$333-1),0))","v":0},{"$f":"IF(Q617<'1 Données d''entrée'!$C$334+1+$B731,0,IF(Q617<'1 Données d''entrée'!$C$333+'1 Données d''entrée'!$C$334+1+$B731,$H723*('1 Données d''entrée'!$C$332*(1+'1 Données d''entrée'!$C$332)^'1 Données d''entrée'!$C$333)/((1+'1 Données d''entrée'!$C$332)^'1 Données d''entrée'!$C$333-1),0))","v":0},{"$f":"IF(R617<'1 Données d''entrée'!$C$334+1+$B731,0,IF(R617<'1 Données d''entrée'!$C$333+'1 Données d''entrée'!$C$334+1+$B731,$H723*('1 Données d''entrée'!$C$332*(1+'1 Données d''entrée'!$C$332)^'1 Données d''entrée'!$C$333)/((1+'1 Données d''entrée'!$C$332)^'1 Données d''entrée'!$C$333-1),0))","v":0},{"$f":"IF(S617<'1 Données d''entrée'!$C$334+1+$B731,0,IF(S617<'1 Données d''entrée'!$C$333+'1 Données d''entrée'!$C$334+1+$B731,$H723*('1 Données d''entrée'!$C$332*(1+'1 Données d''entrée'!$C$332)^'1 Données d''entrée'!$C$333)/((1+'1 Données d''entrée'!$C$332)^'1 Données d''entrée'!$C$333-1),0))","v":0},{"$f":"IF(T617<'1 Données d''entrée'!$C$334+1+$B731,0,IF(T617<'1 Données d''entrée'!$C$333+'1 Données d''entrée'!$C$334+1+$B731,$H723*('1 Données d''entrée'!$C$332*(1+'1 Données d''entrée'!$C$332)^'1 Données d''entrée'!$C$333)/((1+'1 Données d''entrée'!$C$332)^'1 Données d''entrée'!$C$333-1),0))","v":0},{"$f":"IF(U617<'1 Données d''entrée'!$C$334+1+$B731,0,IF(U617<'1 Données d''entrée'!$C$333+'1 Données d''entrée'!$C$334+1+$B731,$H723*('1 Données d''entrée'!$C$332*(1+'1 Données d''entrée'!$C$332)^'1 Données d''entrée'!$C$333)/((1+'1 Données d''entrée'!$C$332)^'1 Données d''entrée'!$C$333-1),0))","v":0},{"$f":"IF(V617<'1 Données d''entrée'!$C$334+1+$B731,0,IF(V617<'1 Données d''entrée'!$C$333+'1 Données d''entrée'!$C$334+1+$B731,$H723*('1 Données d''entrée'!$C$332*(1+'1 Données d''entrée'!$C$332)^'1 Données d''entrée'!$C$333)/((1+'1 Données d''entrée'!$C$332)^'1 Données d''entrée'!$C$333-1),0))","v":0}]
[null,7,{"$f":"IF(C$54<'1 Données d''entrée'!$C$334+1+$B732,0,IF(C$54<'1 Données d''entrée'!$C$333+'1 Données d''entrée'!$C$334+1+$B732,$I$160*('1 Données d''entrée'!$C$332*(1+'1 Données d''entrée'!$C$332)^'1 Données d''entrée'!$C$333)/((1+'1 Données d''entrée'!$C$332)^'1 Données d''entrée'!$C$333-1),0))","v":0},{"$f":"IF(D617<'1 Données d''entrée'!$C$334+1+$B732,0,IF(D617<'1 Données d''entrée'!$C$333+'1 Données d''entrée'!$C$334+1+$B732,$I723*('1 Données d''entrée'!$C$332*(1+'1 Données d''entrée'!$C$332)^'1 Données d''entrée'!$C$333)/((1+'1 Données d''entrée'!$C$332)^'1 Données d''entrée'!$C$333-1),0))","v":0},{"$f":"IF(E617<'1 Données d''entrée'!$C$334+1+$B732,0,IF(E617<'1 Données d''entrée'!$C$333+'1 Données d''entrée'!$C$334+1+$B732,$I723*('1 Données d''entrée'!$C$332*(1+'1 Données d''entrée'!$C$332)^'1 Données d''entrée'!$C$333)/((1+'1 Données d''entrée'!$C$332)^'1 Données d''entrée'!$C$333-1),0))","v":0},{"$f":"IF(F617<'1 Données d''entrée'!$C$334+1+$B732,0,IF(F617<'1 Données d''entrée'!$C$333+'1 Données d''entrée'!$C$334+1+$B732,$I723*('1 Données d''entrée'!$C$332*(1+'1 Données d''entrée'!$C$332)^'1 Données d''entrée'!$C$333)/((1+'1 Données d''entrée'!$C$332)^'1 Données d''entrée'!$C$333-1),0))","v":0},{"$f":"IF(G617<'1 Données d''entrée'!$C$334+1+$B732,0,IF(G617<'1 Données d''entrée'!$C$333+'1 Données d''entrée'!$C$334+1+$B732,$I723*('1 Données d''entrée'!$C$332*(1+'1 Données d''entrée'!$C$332)^'1 Données d''entrée'!$C$333)/((1+'1 Données d''entrée'!$C$332)^'1 Données d''entrée'!$C$333-1),0))","v":0},{"$f":"IF(H617<'1 Données d''entrée'!$C$334+1+$B732,0,IF(H617<'1 Données d''entrée'!$C$333+'1 Données d''entrée'!$C$334+1+$B732,$I723*('1 Données d''entrée'!$C$332*(1+'1 Données d''entrée'!$C$332)^'1 Données d''entrée'!$C$333)/((1+'1 Données d''entrée'!$C$332)^'1 Données d''entrée'!$C$333-1),0))","v":0},{"$f":"IF(I617<'1 Données d''entrée'!$C$334+1+$B732,0,IF(I617<'1 Données d''entrée'!$C$333+'1 Données d''entrée'!$C$334+1+$B732,$I723*('1 Données d''entrée'!$C$332*(1+'1 Données d''entrée'!$C$332)^'1 Données d''entrée'!$C$333)/((1+'1 Données d''entrée'!$C$332)^'1 Données d''entrée'!$C$333-1),0))","v":0},{"$f":"IF(J617<'1 Données d''entrée'!$C$334+1+$B732,0,IF(J617<'1 Données d''entrée'!$C$333+'1 Données d''entrée'!$C$334+1+$B732,$I723*('1 Données d''entrée'!$C$332*(1+'1 Données d''entrée'!$C$332)^'1 Données d''entrée'!$C$333)/((1+'1 Données d''entrée'!$C$332)^'1 Données d''entrée'!$C$333-1),0))","v":0},{"$f":"IF(K617<'1 Données d''entrée'!$C$334+1+$B732,0,IF(K617<'1 Données d''entrée'!$C$333+'1 Données d''entrée'!$C$334+1+$B732,$I723*('1 Données d''entrée'!$C$332*(1+'1 Données d''entrée'!$C$332)^'1 Données d''entrée'!$C$333)/((1+'1 Données d''entrée'!$C$332)^'1 Données d''entrée'!$C$333-1),0))","v":0},{"$f":"IF(L617<'1 Données d''entrée'!$C$334+1+$B732,0,IF(L617<'1 Données d''entrée'!$C$333+'1 Données d''entrée'!$C$334+1+$B732,$I723*('1 Données d''entrée'!$C$332*(1+'1 Données d''entrée'!$C$332)^'1 Données d''entrée'!$C$333)/((1+'1 Données d''entrée'!$C$332)^'1 Données d''entrée'!$C$333-1),0))","v":0},{"$f":"IF(M617<'1 Données d''entrée'!$C$334+1+$B732,0,IF(M617<'1 Données d''entrée'!$C$333+'1 Données d''entrée'!$C$334+1+$B732,$I723*('1 Données d''entrée'!$C$332*(1+'1 Données d''entrée'!$C$332)^'1 Données d''entrée'!$C$333)/((1+'1 Données d''entrée'!$C$332)^'1 Données d''entrée'!$C$333-1),0))","v":0},{"$f":"IF(N617<'1 Données d''entrée'!$C$334+1+$B732,0,IF(N617<'1 Données d''entrée'!$C$333+'1 Données d''entrée'!$C$334+1+$B732,$I723*('1 Données d''entrée'!$C$332*(1+'1 Données d''entrée'!$C$332)^'1 Données d''entrée'!$C$333)/((1+'1 Données d''entrée'!$C$332)^'1 Données d''entrée'!$C$333-1),0))","v":0},{"$f":"IF(O617<'1 Données d''entrée'!$C$334+1+$B732,0,IF(O617<'1 Données d''entrée'!$C$333+'1 Données d''entrée'!$C$334+1+$B732,$I723*('1 Données d''entrée'!$C$332*(1+'1 Données d''entrée'!$C$332)^'1 Données d''entrée'!$C$333)/((1+'1 Données d''entrée'!$C$332)^'1 Données d''entrée'!$C$333-1),0))","v":0},{"$f":"IF(P617<'1 Données d''entrée'!$C$334+1+$B732,0,IF(P617<'1 Données d''entrée'!$C$333+'1 Données d''entrée'!$C$334+1+$B732,$I723*('1 Données d''entrée'!$C$332*(1+'1 Données d''entrée'!$C$332)^'1 Données d''entrée'!$C$333)/((1+'1 Données d''entrée'!$C$332)^'1 Données d''entrée'!$C$333-1),0))","v":0},{"$f":"IF(Q617<'1 Données d''entrée'!$C$334+1+$B732,0,IF(Q617<'1 Données d''entrée'!$C$333+'1 Données d''entrée'!$C$334+1+$B732,$I723*('1 Données d''entrée'!$C$332*(1+'1 Données d''entrée'!$C$332)^'1 Données d''entrée'!$C$333)/((1+'1 Données d''entrée'!$C$332)^'1 Données d''entrée'!$C$333-1),0))","v":0},{"$f":"IF(R617<'1 Données d''entrée'!$C$334+1+$B732,0,IF(R617<'1 Données d''entrée'!$C$333+'1 Données d''entrée'!$C$334+1+$B732,$I723*('1 Données d''entrée'!$C$332*(1+'1 Données d''entrée'!$C$332)^'1 Données d''entrée'!$C$333)/((1+'1 Données d''entrée'!$C$332)^'1 Données d''entrée'!$C$333-1),0))","v":0},{"$f":"IF(S617<'1 Données d''entrée'!$C$334+1+$B732,0,IF(S617<'1 Données d''entrée'!$C$333+'1 Données d''entrée'!$C$334+1+$B732,$I723*('1 Données d''entrée'!$C$332*(1+'1 Données d''entrée'!$C$332)^'1 Données d''entrée'!$C$333)/((1+'1 Données d''entrée'!$C$332)^'1 Données d''entrée'!$C$333-1),0))","v":0},{"$f":"IF(T617<'1 Données d''entrée'!$C$334+1+$B732,0,IF(T617<'1 Données d''entrée'!$C$333+'1 Données d''entrée'!$C$334+1+$B732,$I723*('1 Données d''entrée'!$C$332*(1+'1 Données d''entrée'!$C$332)^'1 Données d''entrée'!$C$333)/((1+'1 Données d''entrée'!$C$332)^'1 Données d''entrée'!$C$333-1),0))","v":0},{"$f":"IF(U617<'1 Données d''entrée'!$C$334+1+$B732,0,IF(U617<'1 Données d''entrée'!$C$333+'1 Données d''entrée'!$C$334+1+$B732,$I723*('1 Données d''entrée'!$C$332*(1+'1 Données d''entrée'!$C$332)^'1 Données d''entrée'!$C$333)/((1+'1 Données d''entrée'!$C$332)^'1 Données d''entrée'!$C$333-1),0))","v":0},{"$f":"IF(V617<'1 Données d''entrée'!$C$334+1+$B732,0,IF(V617<'1 Données d''entrée'!$C$333+'1 Données d''entrée'!$C$334+1+$B732,$I723*('1 Données d''entrée'!$C$332*(1+'1 Données d''entrée'!$C$332)^'1 Données d''entrée'!$C$333)/((1+'1 Données d''entrée'!$C$332)^'1 Données d''entrée'!$C$333-1),0))","v":0}]
[null,8,{"$f":"IF(C$54<'1 Données d''entrée'!$C$334+1+$B733,0,IF(C$54<'1 Données d''entrée'!$C$333+'1 Données d''entrée'!$C$334+1+$B733,$J$160*('1 Données d''entrée'!$C$332*(1+'1 Données d''entrée'!$C$332)^'1 Données d''entrée'!$C$333)/((1+'1 Données d''entrée'!$C$332)^'1 Données d''entrée'!$C$333-1),0))","v":0},{"$f":"IF(D617<'1 Données d''entrée'!$C$334+1+$B733,0,IF(D617<'1 Données d''entrée'!$C$333+'1 Données d''entrée'!$C$334+1+$B733,$J723*('1 Données d''entrée'!$C$332*(1+'1 Données d''entrée'!$C$332)^'1 Données d''entrée'!$C$333)/((1+'1 Données d''entrée'!$C$332)^'1 Données d''entrée'!$C$333-1),0))","v":0},{"$f":"IF(E617<'1 Données d''entrée'!$C$334+1+$B733,0,IF(E617<'1 Données d''entrée'!$C$333+'1 Données d''entrée'!$C$334+1+$B733,$J723*('1 Données d''entrée'!$C$332*(1+'1 Données d''entrée'!$C$332)^'1 Données d''entrée'!$C$333)/((1+'1 Données d''entrée'!$C$332)^'1 Données d''entrée'!$C$333-1),0))","v":0},{"$f":"IF(F617<'1 Données d''entrée'!$C$334+1+$B733,0,IF(F617<'1 Données d''entrée'!$C$333+'1 Données d''entrée'!$C$334+1+$B733,$J723*('1 Données d''entrée'!$C$332*(1+'1 Données d''entrée'!$C$332)^'1 Données d''entrée'!$C$333)/((1+'1 Données d''entrée'!$C$332)^'1 Données d''entrée'!$C$333-1),0))","v":0},{"$f":"IF(G617<'1 Données d''entrée'!$C$334+1+$B733,0,IF(G617<'1 Données d''entrée'!$C$333+'1 Données d''entrée'!$C$334+1+$B733,$J723*('1 Données d''entrée'!$C$332*(1+'1 Données d''entrée'!$C$332)^'1 Données d''entrée'!$C$333)/((1+'1 Données d''entrée'!$C$332)^'1 Données d''entrée'!$C$333-1),0))","v":0},{"$f":"IF(H617<'1 Données d''entrée'!$C$334+1+$B733,0,IF(H617<'1 Données d''entrée'!$C$333+'1 Données d''entrée'!$C$334+1+$B733,$J723*('1 Données d''entrée'!$C$332*(1+'1 Données d''entrée'!$C$332)^'1 Données d''entrée'!$C$333)/((1+'1 Données d''entrée'!$C$332)^'1 Données d''entrée'!$C$333-1),0))","v":0},{"$f":"IF(I617<'1 Données d''entrée'!$C$334+1+$B733,0,IF(I617<'1 Données d''entrée'!$C$333+'1 Données d''entrée'!$C$334+1+$B733,$J723*('1 Données d''entrée'!$C$332*(1+'1 Données d''entrée'!$C$332)^'1 Données d''entrée'!$C$333)/((1+'1 Données d''entrée'!$C$332)^'1 Données d''entrée'!$C$333-1),0))","v":0},{"$f":"IF(J617<'1 Données d''entrée'!$C$334+1+$B733,0,IF(J617<'1 Données d''entrée'!$C$333+'1 Données d''entrée'!$C$334+1+$B733,$J723*('1 Données d''entrée'!$C$332*(1+'1 Données d''entrée'!$C$332)^'1 Données d''entrée'!$C$333)/((1+'1 Données d''entrée'!$C$332)^'1 Données d''entrée'!$C$333-1),0))","v":0},{"$f":"IF(K617<'1 Données d''entrée'!$C$334+1+$B733,0,IF(K617<'1 Données d''entrée'!$C$333+'1 Données d''entrée'!$C$334+1+$B733,$J723*('1 Données d''entrée'!$C$332*(1+'1 Données d''entrée'!$C$332)^'1 Données d''entrée'!$C$333)/((1+'1 Données d''entrée'!$C$332)^'1 Données d''entrée'!$C$333-1),0))","v":0},{"$f":"IF(L617<'1 Données d''entrée'!$C$334+1+$B733,0,IF(L617<'1 Données d''entrée'!$C$333+'1 Données d''entrée'!$C$334+1+$B733,$J723*('1 Données d''entrée'!$C$332*(1+'1 Données d''entrée'!$C$332)^'1 Données d''entrée'!$C$333)/((1+'1 Données d''entrée'!$C$332)^'1 Données d''entrée'!$C$333-1),0))","v":0},{"$f":"IF(M617<'1 Données d''entrée'!$C$334+1+$B733,0,IF(M617<'1 Données d''entrée'!$C$333+'1 Données d''entrée'!$C$334+1+$B733,$J723*('1 Données d''entrée'!$C$332*(1+'1 Données d''entrée'!$C$332)^'1 Données d''entrée'!$C$333)/((1+'1 Données d''entrée'!$C$332)^'1 Données d''entrée'!$C$333-1),0))","v":0},{"$f":"IF(N617<'1 Données d''entrée'!$C$334+1+$B733,0,IF(N617<'1 Données d''entrée'!$C$333+'1 Données d''entrée'!$C$334+1+$B733,$J723*('1 Données d''entrée'!$C$332*(1+'1 Données d''entrée'!$C$332)^'1 Données d''entrée'!$C$333)/((1+'1 Données d''entrée'!$C$332)^'1 Données d''entrée'!$C$333-1),0))","v":0},{"$f":"IF(O617<'1 Données d''entrée'!$C$334+1+$B733,0,IF(O617<'1 Données d''entrée'!$C$333+'1 Données d''entrée'!$C$334+1+$B733,$J723*('1 Données d''entrée'!$C$332*(1+'1 Données d''entrée'!$C$332)^'1 Données d''entrée'!$C$333)/((1+'1 Données d''entrée'!$C$332)^'1 Données d''entrée'!$C$333-1),0))","v":0},{"$f":"IF(P617<'1 Données d''entrée'!$C$334+1+$B733,0,IF(P617<'1 Données d''entrée'!$C$333+'1 Données d''entrée'!$C$334+1+$B733,$J723*('1 Données d''entrée'!$C$332*(1+'1 Données d''entrée'!$C$332)^'1 Données d''entrée'!$C$333)/((1+'1 Données d''entrée'!$C$332)^'1 Données d''entrée'!$C$333-1),0))","v":0},{"$f":"IF(Q617<'1 Données d''entrée'!$C$334+1+$B733,0,IF(Q617<'1 Données d''entrée'!$C$333+'1 Données d''entrée'!$C$334+1+$B733,$J723*('1 Données d''entrée'!$C$332*(1+'1 Données d''entrée'!$C$332)^'1 Données d''entrée'!$C$333)/((1+'1 Données d''entrée'!$C$332)^'1 Données d''entrée'!$C$333-1),0))","v":0},{"$f":"IF(R617<'1 Données d''entrée'!$C$334+1+$B733,0,IF(R617<'1 Données d''entrée'!$C$333+'1 Données d''entrée'!$C$334+1+$B733,$J723*('1 Données d''entrée'!$C$332*(1+'1 Données d''entrée'!$C$332)^'1 Données d''entrée'!$C$333)/((1+'1 Données d''entrée'!$C$332)^'1 Données d''entrée'!$C$333-1),0))","v":0},{"$f":"IF(S617<'1 Données d''entrée'!$C$334+1+$B733,0,IF(S617<'1 Données d''entrée'!$C$333+'1 Données d''entrée'!$C$334+1+$B733,$J723*('1 Données d''entrée'!$C$332*(1+'1 Données d''entrée'!$C$332)^'1 Données d''entrée'!$C$333)/((1+'1 Données d''entrée'!$C$332)^'1 Données d''entrée'!$C$333-1),0))","v":0},{"$f":"IF(T617<'1 Données d''entrée'!$C$334+1+$B733,0,IF(T617<'1 Données d''entrée'!$C$333+'1 Données d''entrée'!$C$334+1+$B733,$J723*('1 Données d''entrée'!$C$332*(1+'1 Données d''entrée'!$C$332)^'1 Données d''entrée'!$C$333)/((1+'1 Données d''entrée'!$C$332)^'1 Données d''entrée'!$C$333-1),0))","v":0},{"$f":"IF(U617<'1 Données d''entrée'!$C$334+1+$B733,0,IF(U617<'1 Données d''entrée'!$C$333+'1 Données d''entrée'!$C$334+1+$B733,$J723*('1 Données d''entrée'!$C$332*(1+'1 Données d''entrée'!$C$332)^'1 Données d''entrée'!$C$333)/((1+'1 Données d''entrée'!$C$332)^'1 Données d''entrée'!$C$333-1),0))","v":0},{"$f":"IF(V617<'1 Données d''entrée'!$C$334+1+$B733,0,IF(V617<'1 Données d''entrée'!$C$333+'1 Données d''entrée'!$C$334+1+$B733,$J723*('1 Données d''entrée'!$C$332*(1+'1 Données d''entrée'!$C$332)^'1 Données d''entrée'!$C$333)/((1+'1 Données d''entrée'!$C$332)^'1 Données d''entrée'!$C$333-1),0))","v":0}]
[null,9,{"$f":"IF(C$54<'1 Données d''entrée'!$C$334+1+$B734,0,IF(C$54<'1 Données d''entrée'!$C$333+'1 Données d''entrée'!$C$334+1+$B734,$K$160*('1 Données d''entrée'!$C$332*(1+'1 Données d''entrée'!$C$332)^'1 Données d''entrée'!$C$333)/((1+'1 Données d''entrée'!$C$332)^'1 Données d''entrée'!$C$333-1),0))","v":0},{"$f":"IF(D617<'1 Données d''entrée'!$C$334+1+$B734,0,IF(D617<'1 Données d''entrée'!$C$333+'1 Données d''entrée'!$C$334+1+$B734,$K723*('1 Données d''entrée'!$C$332*(1+'1 Données d''entrée'!$C$332)^'1 Données d''entrée'!$C$333)/((1+'1 Données d''entrée'!$C$332)^'1 Données d''entrée'!$C$333-1),0))","v":0},{"$f":"IF(E617<'1 Données d''entrée'!$C$334+1+$B734,0,IF(E617<'1 Données d''entrée'!$C$333+'1 Données d''entrée'!$C$334+1+$B734,$K723*('1 Données d''entrée'!$C$332*(1+'1 Données d''entrée'!$C$332)^'1 Données d''entrée'!$C$333)/((1+'1 Données d''entrée'!$C$332)^'1 Données d''entrée'!$C$333-1),0))","v":0},{"$f":"IF(F617<'1 Données d''entrée'!$C$334+1+$B734,0,IF(F617<'1 Données d''entrée'!$C$333+'1 Données d''entrée'!$C$334+1+$B734,$K723*('1 Données d''entrée'!$C$332*(1+'1 Données d''entrée'!$C$332)^'1 Données d''entrée'!$C$333)/((1+'1 Données d''entrée'!$C$332)^'1 Données d''entrée'!$C$333-1),0))","v":0},{"$f":"IF(G617<'1 Données d''entrée'!$C$334+1+$B734,0,IF(G617<'1 Données d''entrée'!$C$333+'1 Données d''entrée'!$C$334+1+$B734,$K723*('1 Données d''entrée'!$C$332*(1+'1 Données d''entrée'!$C$332)^'1 Données d''entrée'!$C$333)/((1+'1 Données d''entrée'!$C$332)^'1 Données d''entrée'!$C$333-1),0))","v":0},{"$f":"IF(H617<'1 Données d''entrée'!$C$334+1+$B734,0,IF(H617<'1 Données d''entrée'!$C$333+'1 Données d''entrée'!$C$334+1+$B734,$K723*('1 Données d''entrée'!$C$332*(1+'1 Données d''entrée'!$C$332)^'1 Données d''entrée'!$C$333)/((1+'1 Données d''entrée'!$C$332)^'1 Données d''entrée'!$C$333-1),0))","v":0},{"$f":"IF(I617<'1 Données d''entrée'!$C$334+1+$B734,0,IF(I617<'1 Données d''entrée'!$C$333+'1 Données d''entrée'!$C$334+1+$B734,$K723*('1 Données d''entrée'!$C$332*(1+'1 Données d''entrée'!$C$332)^'1 Données d''entrée'!$C$333)/((1+'1 Données d''entrée'!$C$332)^'1 Données d''entrée'!$C$333-1),0))","v":0},{"$f":"IF(J617<'1 Données d''entrée'!$C$334+1+$B734,0,IF(J617<'1 Données d''entrée'!$C$333+'1 Données d''entrée'!$C$334+1+$B734,$K723*('1 Données d''entrée'!$C$332*(1+'1 Données d''entrée'!$C$332)^'1 Données d''entrée'!$C$333)/((1+'1 Données d''entrée'!$C$332)^'1 Données d''entrée'!$C$333-1),0))","v":0},{"$f":"IF(K617<'1 Données d''entrée'!$C$334+1+$B734,0,IF(K617<'1 Données d''entrée'!$C$333+'1 Données d''entrée'!$C$334+1+$B734,$K723*('1 Données d''entrée'!$C$332*(1+'1 Données d''entrée'!$C$332)^'1 Données d''entrée'!$C$333)/((1+'1 Données d''entrée'!$C$332)^'1 Données d''entrée'!$C$333-1),0))","v":0},{"$f":"IF(L617<'1 Données d''entrée'!$C$334+1+$B734,0,IF(L617<'1 Données d''entrée'!$C$333+'1 Données d''entrée'!$C$334+1+$B734,$K723*('1 Données d''entrée'!$C$332*(1+'1 Données d''entrée'!$C$332)^'1 Données d''entrée'!$C$333)/((1+'1 Données d''entrée'!$C$332)^'1 Données d''entrée'!$C$333-1),0))","v":0},{"$f":"IF(M617<'1 Données d''entrée'!$C$334+1+$B734,0,IF(M617<'1 Données d''entrée'!$C$333+'1 Données d''entrée'!$C$334+1+$B734,$K723*('1 Données d''entrée'!$C$332*(1+'1 Données d''entrée'!$C$332)^'1 Données d''entrée'!$C$333)/((1+'1 Données d''entrée'!$C$332)^'1 Données d''entrée'!$C$333-1),0))","v":0},{"$f":"IF(N617<'1 Données d''entrée'!$C$334+1+$B734,0,IF(N617<'1 Données d''entrée'!$C$333+'1 Données d''entrée'!$C$334+1+$B734,$K723*('1 Données d''entrée'!$C$332*(1+'1 Données d''entrée'!$C$332)^'1 Données d''entrée'!$C$333)/((1+'1 Données d''entrée'!$C$332)^'1 Données d''entrée'!$C$333-1),0))","v":0},{"$f":"IF(O617<'1 Données d''entrée'!$C$334+1+$B734,0,IF(O617<'1 Données d''entrée'!$C$333+'1 Données d''entrée'!$C$334+1+$B734,$K723*('1 Données d''entrée'!$C$332*(1+'1 Données d''entrée'!$C$332)^'1 Données d''entrée'!$C$333)/((1+'1 Données d''entrée'!$C$332)^'1 Données d''entrée'!$C$333-1),0))","v":0},{"$f":"IF(P617<'1 Données d''entrée'!$C$334+1+$B734,0,IF(P617<'1 Données d''entrée'!$C$333+'1 Données d''entrée'!$C$334+1+$B734,$K723*('1 Données d''entrée'!$C$332*(1+'1 Données d''entrée'!$C$332)^'1 Données d''entrée'!$C$333)/((1+'1 Données d''entrée'!$C$332)^'1 Données d''entrée'!$C$333-1),0))","v":0},{"$f":"IF(Q617<'1 Données d''entrée'!$C$334+1+$B734,0,IF(Q617<'1 Données d''entrée'!$C$333+'1 Données d''entrée'!$C$334+1+$B734,$K723*('1 Données d''entrée'!$C$332*(1+'1 Données d''entrée'!$C$332)^'1 Données d''entrée'!$C$333)/((1+'1 Données d''entrée'!$C$332)^'1 Données d''entrée'!$C$333-1),0))","v":0},{"$f":"IF(R617<'1 Données d''entrée'!$C$334+1+$B734,0,IF(R617<'1 Données d''entrée'!$C$333+'1 Données d''entrée'!$C$334+1+$B734,$K723*('1 Données d''entrée'!$C$332*(1+'1 Données d''entrée'!$C$332)^'1 Données d''entrée'!$C$333)/((1+'1 Données d''entrée'!$C$332)^'1 Données d''entrée'!$C$333-1),0))","v":0},{"$f":"IF(S617<'1 Données d''entrée'!$C$334+1+$B734,0,IF(S617<'1 Données d''entrée'!$C$333+'1 Données d''entrée'!$C$334+1+$B734,$K723*('1 Données d''entrée'!$C$332*(1+'1 Données d''entrée'!$C$332)^'1 Données d''entrée'!$C$333)/((1+'1 Données d''entrée'!$C$332)^'1 Données d''entrée'!$C$333-1),0))","v":0},{"$f":"IF(T617<'1 Données d''entrée'!$C$334+1+$B734,0,IF(T617<'1 Données d''entrée'!$C$333+'1 Données d''entrée'!$C$334+1+$B734,$K723*('1 Données d''entrée'!$C$332*(1+'1 Données d''entrée'!$C$332)^'1 Données d''entrée'!$C$333)/((1+'1 Données d''entrée'!$C$332)^'1 Données d''entrée'!$C$333-1),0))","v":0},{"$f":"IF(U617<'1 Données d''entrée'!$C$334+1+$B734,0,IF(U617<'1 Données d''entrée'!$C$333+'1 Données d''entrée'!$C$334+1+$B734,$K723*('1 Données d''entrée'!$C$332*(1+'1 Données d''entrée'!$C$332)^'1 Données d''entrée'!$C$333)/((1+'1 Données d''entrée'!$C$332)^'1 Données d''entrée'!$C$333-1),0))","v":0},{"$f":"IF(V617<'1 Données d''entrée'!$C$334+1+$B734,0,IF(V617<'1 Données d''entrée'!$C$333+'1 Données d''entrée'!$C$334+1+$B734,$K723*('1 Données d''entrée'!$C$332*(1+'1 Données d''entrée'!$C$332)^'1 Données d''entrée'!$C$333)/((1+'1 Données d''entrée'!$C$332)^'1 Données d''entrée'!$C$333-1),0))","v":0}]
[null,10,{"$f":"IF(C$54<'1 Données d''entrée'!$C$334+1+$B735,0,IF(C$54<'1 Données d''entrée'!$C$333+'1 Données d''entrée'!$C$334+1+$B735,$L$160*('1 Données d''entrée'!$C$332*(1+'1 Données d''entrée'!$C$332)^'1 Données d''entrée'!$C$333)/((1+'1 Données d''entrée'!$C$332)^'1 Données d''entrée'!$C$333-1),0))","v":0},{"$f":"IF(D617<'1 Données d''entrée'!$C$334+1+$B735,0,IF(D617<'1 Données d''entrée'!$C$333+'1 Données d''entrée'!$C$334+1+$B735,$L723*('1 Données d''entrée'!$C$332*(1+'1 Données d''entrée'!$C$332)^'1 Données d''entrée'!$C$333)/((1+'1 Données d''entrée'!$C$332)^'1 Données d''entrée'!$C$333-1),0))","v":0},{"$f":"IF(E617<'1 Données d''entrée'!$C$334+1+$B735,0,IF(E617<'1 Données d''entrée'!$C$333+'1 Données d''entrée'!$C$334+1+$B735,$L723*('1 Données d''entrée'!$C$332*(1+'1 Données d''entrée'!$C$332)^'1 Données d''entrée'!$C$333)/((1+'1 Données d''entrée'!$C$332)^'1 Données d''entrée'!$C$333-1),0))","v":0},{"$f":"IF(F617<'1 Données d''entrée'!$C$334+1+$B735,0,IF(F617<'1 Données d''entrée'!$C$333+'1 Données d''entrée'!$C$334+1+$B735,$L723*('1 Données d''entrée'!$C$332*(1+'1 Données d''entrée'!$C$332)^'1 Données d''entrée'!$C$333)/((1+'1 Données d''entrée'!$C$332)^'1 Données d''entrée'!$C$333-1),0))","v":0},{"$f":"IF(G617<'1 Données d''entrée'!$C$334+1+$B735,0,IF(G617<'1 Données d''entrée'!$C$333+'1 Données d''entrée'!$C$334+1+$B735,$L723*('1 Données d''entrée'!$C$332*(1+'1 Données d''entrée'!$C$332)^'1 Données d''entrée'!$C$333)/((1+'1 Données d''entrée'!$C$332)^'1 Données d''entrée'!$C$333-1),0))","v":0},{"$f":"IF(H617<'1 Données d''entrée'!$C$334+1+$B735,0,IF(H617<'1 Données d''entrée'!$C$333+'1 Données d''entrée'!$C$334+1+$B735,$L723*('1 Données d''entrée'!$C$332*(1+'1 Données d''entrée'!$C$332)^'1 Données d''entrée'!$C$333)/((1+'1 Données d''entrée'!$C$332)^'1 Données d''entrée'!$C$333-1),0))","v":0},{"$f":"IF(I617<'1 Données d''entrée'!$C$334+1+$B735,0,IF(I617<'1 Données d''entrée'!$C$333+'1 Données d''entrée'!$C$334+1+$B735,$L723*('1 Données d''entrée'!$C$332*(1+'1 Données d''entrée'!$C$332)^'1 Données d''entrée'!$C$333)/((1+'1 Données d''entrée'!$C$332)^'1 Données d''entrée'!$C$333-1),0))","v":0},{"$f":"IF(J617<'1 Données d''entrée'!$C$334+1+$B735,0,IF(J617<'1 Données d''entrée'!$C$333+'1 Données d''entrée'!$C$334+1+$B735,$L723*('1 Données d''entrée'!$C$332*(1+'1 Données d''entrée'!$C$332)^'1 Données d''entrée'!$C$333)/((1+'1 Données d''entrée'!$C$332)^'1 Données d''entrée'!$C$333-1),0))","v":0},{"$f":"IF(K617<'1 Données d''entrée'!$C$334+1+$B735,0,IF(K617<'1 Données d''entrée'!$C$333+'1 Données d''entrée'!$C$334+1+$B735,$L723*('1 Données d''entrée'!$C$332*(1+'1 Données d''entrée'!$C$332)^'1 Données d''entrée'!$C$333)/((1+'1 Données d''entrée'!$C$332)^'1 Données d''entrée'!$C$333-1),0))","v":0},{"$f":"IF(L617<'1 Données d''entrée'!$C$334+1+$B735,0,IF(L617<'1 Données d''entrée'!$C$333+'1 Données d''entrée'!$C$334+1+$B735,$L723*('1 Données d''entrée'!$C$332*(1+'1 Données d''entrée'!$C$332)^'1 Données d''entrée'!$C$333)/((1+'1 Données d''entrée'!$C$332)^'1 Données d''entrée'!$C$333-1),0))","v":0},{"$f":"IF(M617<'1 Données d''entrée'!$C$334+1+$B735,0,IF(M617<'1 Données d''entrée'!$C$333+'1 Données d''entrée'!$C$334+1+$B735,$L723*('1 Données d''entrée'!$C$332*(1+'1 Données d''entrée'!$C$332)^'1 Données d''entrée'!$C$333)/((1+'1 Données d''entrée'!$C$332)^'1 Données d''entrée'!$C$333-1),0))","v":0},{"$f":"IF(N617<'1 Données d''entrée'!$C$334+1+$B735,0,IF(N617<'1 Données d''entrée'!$C$333+'1 Données d''entrée'!$C$334+1+$B735,$L723*('1 Données d''entrée'!$C$332*(1+'1 Données d''entrée'!$C$332)^'1 Données d''entrée'!$C$333)/((1+'1 Données d''entrée'!$C$332)^'1 Données d''entrée'!$C$333-1),0))","v":0},{"$f":"IF(O617<'1 Données d''entrée'!$C$334+1+$B735,0,IF(O617<'1 Données d''entrée'!$C$333+'1 Données d''entrée'!$C$334+1+$B735,$L723*('1 Données d''entrée'!$C$332*(1+'1 Données d''entrée'!$C$332)^'1 Données d''entrée'!$C$333)/((1+'1 Données d''entrée'!$C$332)^'1 Données d''entrée'!$C$333-1),0))","v":0},{"$f":"IF(P617<'1 Données d''entrée'!$C$334+1+$B735,0,IF(P617<'1 Données d''entrée'!$C$333+'1 Données d''entrée'!$C$334+1+$B735,$L723*('1 Données d''entrée'!$C$332*(1+'1 Données d''entrée'!$C$332)^'1 Données d''entrée'!$C$333)/((1+'1 Données d''entrée'!$C$332)^'1 Données d''entrée'!$C$333-1),0))","v":0},{"$f":"IF(Q617<'1 Données d''entrée'!$C$334+1+$B735,0,IF(Q617<'1 Données d''entrée'!$C$333+'1 Données d''entrée'!$C$334+1+$B735,$L723*('1 Données d''entrée'!$C$332*(1+'1 Données d''entrée'!$C$332)^'1 Données d''entrée'!$C$333)/((1+'1 Données d''entrée'!$C$332)^'1 Données d''entrée'!$C$333-1),0))","v":0},{"$f":"IF(R617<'1 Données d''entrée'!$C$334+1+$B735,0,IF(R617<'1 Données d''entrée'!$C$333+'1 Données d''entrée'!$C$334+1+$B735,$L723*('1 Données d''entrée'!$C$332*(1+'1 Données d''entrée'!$C$332)^'1 Données d''entrée'!$C$333)/((1+'1 Données d''entrée'!$C$332)^'1 Données d''entrée'!$C$333-1),0))","v":0},{"$f":"IF(S617<'1 Données d''entrée'!$C$334+1+$B735,0,IF(S617<'1 Données d''entrée'!$C$333+'1 Données d''entrée'!$C$334+1+$B735,$L723*('1 Données d''entrée'!$C$332*(1+'1 Données d''entrée'!$C$332)^'1 Données d''entrée'!$C$333)/((1+'1 Données d''entrée'!$C$332)^'1 Données d''entrée'!$C$333-1),0))","v":0},{"$f":"IF(T617<'1 Données d''entrée'!$C$334+1+$B735,0,IF(T617<'1 Données d''entrée'!$C$333+'1 Données d''entrée'!$C$334+1+$B735,$L723*('1 Données d''entrée'!$C$332*(1+'1 Données d''entrée'!$C$332)^'1 Données d''entrée'!$C$333)/((1+'1 Données d''entrée'!$C$332)^'1 Données d''entrée'!$C$333-1),0))","v":0},{"$f":"IF(U617<'1 Données d''entrée'!$C$334+1+$B735,0,IF(U617<'1 Données d''entrée'!$C$333+'1 Données d''entrée'!$C$334+1+$B735,$L723*('1 Données d''entrée'!$C$332*(1+'1 Données d''entrée'!$C$332)^'1 Données d''entrée'!$C$333)/((1+'1 Données d''entrée'!$C$332)^'1 Données d''entrée'!$C$333-1),0))","v":0},{"$f":"IF(V617<'1 Données d''entrée'!$C$334+1+$B735,0,IF(V617<'1 Données d''entrée'!$C$333+'1 Données d''entrée'!$C$334+1+$B735,$L723*('1 Données d''entrée'!$C$332*(1+'1 Données d''entrée'!$C$332)^'1 Données d''entrée'!$C$333)/((1+'1 Données d''entrée'!$C$332)^'1 Données d''entrée'!$C$333-1),0))","v":0}]
[null,"Période de prêt nouveau"]
["Paiement d'intérêt décroissant inclu dans l'annuité constante",0,0,0,0,0,0,0,0,0,0,0,0,0,0,0,0,0,0,0,0,0]
["Paiement d'intêrets",1,0,{"$f":"IF(D726>0,$C723*((('1 Données d''entrée'!$C$332+1)^'1 Données d''entrée'!$C$333)-(1+'1 Données d''entrée'!$C$332)^('6 Financement'!C$54-1-'1 Données d''entrée'!$C$334-$B737))/((1+'1 Données d''entrée'!$C$332)^'1 Données d''entrée'!$C$333-1)*'1 Données d''entrée'!$C$332,0)","v":0},{"$f":"IF(E726>0,$C723*((('1 Données d''entrée'!$C$332+1)^'1 Données d''entrée'!$C$333)-(1+'1 Données d''entrée'!$C$332)^('6 Financement'!D$54-1-'1 Données d''entrée'!$C$334-$B737))/((1+'1 Données d''entrée'!$C$332)^'1 Données d''entrée'!$C$333-1)*'1 Données d''entrée'!$C$332,0)","v":0},{"$f":"IF(F726>0,$C723*((('1 Données d''entrée'!$C$332+1)^'1 Données d''entrée'!$C$333)-(1+'1 Données d''entrée'!$C$332)^('6 Financement'!E$54-1-'1 Données d''entrée'!$C$334-$B737))/((1+'1 Données d''entrée'!$C$332)^'1 Données d''entrée'!$C$333-1)*'1 Données d''entrée'!$C$332,0)","v":0},{"$f":"IF(G726>0,$C723*((('1 Données d''entrée'!$C$332+1)^'1 Données d''entrée'!$C$333)-(1+'1 Données d''entrée'!$C$332)^('6 Financement'!F$54-1-'1 Données d''entrée'!$C$334-$B737))/((1+'1 Données d''entrée'!$C$332)^'1 Données d''entrée'!$C$333-1)*'1 Données d''entrée'!$C$332,0)","v":0},{"$f":"IF(H726>0,$C723*((('1 Données d''entrée'!$C$332+1)^'1 Données d''entrée'!$C$333)-(1+'1 Données d''entrée'!$C$332)^('6 Financement'!G$54-1-'1 Données d''entrée'!$C$334-$B737))/((1+'1 Données d''entrée'!$C$332)^'1 Données d''entrée'!$C$333-1)*'1 Données d''entrée'!$C$332,0)","v":0},{"$f":"IF(I726>0,$C723*((('1 Données d''entrée'!$C$332+1)^'1 Données d''entrée'!$C$333)-(1+'1 Données d''entrée'!$C$332)^('6 Financement'!H$54-1-'1 Données d''entrée'!$C$334-$B737))/((1+'1 Données d''entrée'!$C$332)^'1 Données d''entrée'!$C$333-1)*'1 Données d''entrée'!$C$332,0)","v":0},{"$f":"IF(J726>0,$C723*((('1 Données d''entrée'!$C$332+1)^'1 Données d''entrée'!$C$333)-(1+'1 Données d''entrée'!$C$332)^('6 Financement'!I$54-1-'1 Données d''entrée'!$C$334-$B737))/((1+'1 Données d''entrée'!$C$332)^'1 Données d''entrée'!$C$333-1)*'1 Données d''entrée'!$C$332,0)","v":0},{"$f":"IF(K726>0,$C723*((('1 Données d''entrée'!$C$332+1)^'1 Données d''entrée'!$C$333)-(1+'1 Données d''entrée'!$C$332)^('6 Financement'!J$54-1-'1 Données d''entrée'!$C$334-$B737))/((1+'1 Données d''entrée'!$C$332)^'1 Données d''entrée'!$C$333-1)*'1 Données d''entrée'!$C$332,0)","v":0},{"$f":"IF(L726>0,$C723*((('1 Données d''entrée'!$C$332+1)^'1 Données d''entrée'!$C$333)-(1+'1 Données d''entrée'!$C$332)^('6 Financement'!K$54-1-'1 Données d''entrée'!$C$334-$B737))/((1+'1 Données d''entrée'!$C$332)^'1 Données d''entrée'!$C$333-1)*'1 Données d''entrée'!$C$332,0)","v":0},{"$f":"IF(M726>0,$C723*((('1 Données d''entrée'!$C$332+1)^'1 Données d''entrée'!$C$333)-(1+'1 Données d''entrée'!$C$332)^('6 Financement'!L$54-1-'1 Données d''entrée'!$C$334-$B737))/((1+'1 Données d''entrée'!$C$332)^'1 Données d''entrée'!$C$333-1)*'1 Données d''entrée'!$C$332,0)","v":0},{"$f":"IF(N726>0,$C723*((('1 Données d''entrée'!$C$332+1)^'1 Données d''entrée'!$C$333)-(1+'1 Données d''entrée'!$C$332)^('6 Financement'!M$54-1-'1 Données d''entrée'!$C$334-$B737))/((1+'1 Données d''entrée'!$C$332)^'1 Données d''entrée'!$C$333-1)*'1 Données d''entrée'!$C$332,0)","v":0},{"$f":"IF(O726>0,$C723*((('1 Données d''entrée'!$C$332+1)^'1 Données d''entrée'!$C$333)-(1+'1 Données d''entrée'!$C$332)^('6 Financement'!N$54-1-'1 Données d''entrée'!$C$334-$B737))/((1+'1 Données d''entrée'!$C$332)^'1 Données d''entrée'!$C$333-1)*'1 Données d''entrée'!$C$332,0)","v":0},{"$f":"IF(P726>0,$C723*((('1 Données d''entrée'!$C$332+1)^'1 Données d''entrée'!$C$333)-(1+'1 Données d''entrée'!$C$332)^('6 Financement'!O$54-1-'1 Données d''entrée'!$C$334-$B737))/((1+'1 Données d''entrée'!$C$332)^'1 Données d''entrée'!$C$333-1)*'1 Données d''entrée'!$C$332,0)","v":0},{"$f":"IF(Q726>0,$C723*((('1 Données d''entrée'!$C$332+1)^'1 Données d''entrée'!$C$333)-(1+'1 Données d''entrée'!$C$332)^('6 Financement'!P$54-1-'1 Données d''entrée'!$C$334-$B737))/((1+'1 Données d''entrée'!$C$332)^'1 Données d''entrée'!$C$333-1)*'1 Données d''entrée'!$C$332,0)","v":0},{"$f":"IF(R726>0,$C723*((('1 Données d''entrée'!$C$332+1)^'1 Données d''entrée'!$C$333)-(1+'1 Données d''entrée'!$C$332)^('6 Financement'!Q$54-1-'1 Données d''entrée'!$C$334-$B737))/((1+'1 Données d''entrée'!$C$332)^'1 Données d''entrée'!$C$333-1)*'1 Données d''entrée'!$C$332,0)","v":0},{"$f":"IF(S726>0,$C723*((('1 Données d''entrée'!$C$332+1)^'1 Données d''entrée'!$C$333)-(1+'1 Données d''entrée'!$C$332)^('6 Financement'!R$54-1-'1 Données d''entrée'!$C$334-$B737))/((1+'1 Données d''entrée'!$C$332)^'1 Données d''entrée'!$C$333-1)*'1 Données d''entrée'!$C$332,0)","v":0},{"$f":"IF(T726>0,$C723*((('1 Données d''entrée'!$C$332+1)^'1 Données d''entrée'!$C$333)-(1+'1 Données d''entrée'!$C$332)^('6 Financement'!S$54-1-'1 Données d''entrée'!$C$334-$B737))/((1+'1 Données d''entrée'!$C$332)^'1 Données d''entrée'!$C$333-1)*'1 Données d''entrée'!$C$332,0)","v":0},{"$f":"IF(U726>0,$C723*((('1 Données d''entrée'!$C$332+1)^'1 Données d''entrée'!$C$333)-(1+'1 Données d''entrée'!$C$332)^('6 Financement'!T$54-1-'1 Données d''entrée'!$C$334-$B737))/((1+'1 Données d''entrée'!$C$332)^'1 Données d''entrée'!$C$333-1)*'1 Données d''entrée'!$C$332,0)","v":0},{"$f":"IF(V726>0,$C723*((('1 Données d''entrée'!$C$332+1)^'1 Données d''entrée'!$C$333)-(1+'1 Données d''entrée'!$C$332)^('6 Financement'!U$54-1-'1 Données d''entrée'!$C$334-$B737))/((1+'1 Données d''entrée'!$C$332)^'1 Données d''entrée'!$C$333-1)*'1 Données d''entrée'!$C$332,0)","v":0}]
["Paiement d'intêrets",2,0,{"$f":"IF(D727>0,$D723*((('1 Données d''entrée'!$C$332+1)^'1 Données d''entrée'!$C$333)-(1+'1 Données d''entrée'!$C$332)^('6 Financement'!C$54-1-'1 Données d''entrée'!$C$334-$B738))/((1+'1 Données d''entrée'!$C$332)^'1 Données d''entrée'!$C$333-1)*'1 Données d''entrée'!$C$332,0)","v":0},{"$f":"IF(E727>0,$D723*((('1 Données d''entrée'!$C$332+1)^'1 Données d''entrée'!$C$333)-(1+'1 Données d''entrée'!$C$332)^('6 Financement'!D$54-1-'1 Données d''entrée'!$C$334-$B738))/((1+'1 Données d''entrée'!$C$332)^'1 Données d''entrée'!$C$333-1)*'1 Données d''entrée'!$C$332,0)","v":0},{"$f":"IF(F727>0,$D723*((('1 Données d''entrée'!$C$332+1)^'1 Données d''entrée'!$C$333)-(1+'1 Données d''entrée'!$C$332)^('6 Financement'!E$54-1-'1 Données d''entrée'!$C$334-$B738))/((1+'1 Données d''entrée'!$C$332)^'1 Données d''entrée'!$C$333-1)*'1 Données d''entrée'!$C$332,0)","v":0},{"$f":"IF(G727>0,$D723*((('1 Données d''entrée'!$C$332+1)^'1 Données d''entrée'!$C$333)-(1+'1 Données d''entrée'!$C$332)^('6 Financement'!F$54-1-'1 Données d''entrée'!$C$334-$B738))/((1+'1 Données d''entrée'!$C$332)^'1 Données d''entrée'!$C$333-1)*'1 Données d''entrée'!$C$332,0)","v":0},{"$f":"IF(H727>0,$D723*((('1 Données d''entrée'!$C$332+1)^'1 Données d''entrée'!$C$333)-(1+'1 Données d''entrée'!$C$332)^('6 Financement'!G$54-1-'1 Données d''entrée'!$C$334-$B738))/((1+'1 Données d''entrée'!$C$332)^'1 Données d''entrée'!$C$333-1)*'1 Données d''entrée'!$C$332,0)","v":0},{"$f":"IF(I727>0,$D723*((('1 Données d''entrée'!$C$332+1)^'1 Données d''entrée'!$C$333)-(1+'1 Données d''entrée'!$C$332)^('6 Financement'!H$54-1-'1 Données d''entrée'!$C$334-$B738))/((1+'1 Données d''entrée'!$C$332)^'1 Données d''entrée'!$C$333-1)*'1 Données d''entrée'!$C$332,0)","v":0},{"$f":"IF(J727>0,$D723*((('1 Données d''entrée'!$C$332+1)^'1 Données d''entrée'!$C$333)-(1+'1 Données d''entrée'!$C$332)^('6 Financement'!I$54-1-'1 Données d''entrée'!$C$334-$B738))/((1+'1 Données d''entrée'!$C$332)^'1 Données d''entrée'!$C$333-1)*'1 Données d''entrée'!$C$332,0)","v":0},{"$f":"IF(K727>0,$D723*((('1 Données d''entrée'!$C$332+1)^'1 Données d''entrée'!$C$333)-(1+'1 Données d''entrée'!$C$332)^('6 Financement'!J$54-1-'1 Données d''entrée'!$C$334-$B738))/((1+'1 Données d''entrée'!$C$332)^'1 Données d''entrée'!$C$333-1)*'1 Données d''entrée'!$C$332,0)","v":0},{"$f":"IF(L727>0,$D723*((('1 Données d''entrée'!$C$332+1)^'1 Données d''entrée'!$C$333)-(1+'1 Données d''entrée'!$C$332)^('6 Financement'!K$54-1-'1 Données d''entrée'!$C$334-$B738))/((1+'1 Données d''entrée'!$C$332)^'1 Données d''entrée'!$C$333-1)*'1 Données d''entrée'!$C$332,0)","v":0},{"$f":"IF(M727>0,$D723*((('1 Données d''entrée'!$C$332+1)^'1 Données d''entrée'!$C$333)-(1+'1 Données d''entrée'!$C$332)^('6 Financement'!L$54-1-'1 Données d''entrée'!$C$334-$B738))/((1+'1 Données d''entrée'!$C$332)^'1 Données d''entrée'!$C$333-1)*'1 Données d''entrée'!$C$332,0)","v":0},{"$f":"IF(N727>0,$D723*((('1 Données d''entrée'!$C$332+1)^'1 Données d''entrée'!$C$333)-(1+'1 Données d''entrée'!$C$332)^('6 Financement'!M$54-1-'1 Données d''entrée'!$C$334-$B738))/((1+'1 Données d''entrée'!$C$332)^'1 Données d''entrée'!$C$333-1)*'1 Données d''entrée'!$C$332,0)","v":0},{"$f":"IF(O727>0,$D723*((('1 Données d''entrée'!$C$332+1)^'1 Données d''entrée'!$C$333)-(1+'1 Données d''entrée'!$C$332)^('6 Financement'!N$54-1-'1 Données d''entrée'!$C$334-$B738))/((1+'1 Données d''entrée'!$C$332)^'1 Données d''entrée'!$C$333-1)*'1 Données d''entrée'!$C$332,0)","v":0},{"$f":"IF(P727>0,$D723*((('1 Données d''entrée'!$C$332+1)^'1 Données d''entrée'!$C$333)-(1+'1 Données d''entrée'!$C$332)^('6 Financement'!O$54-1-'1 Données d''entrée'!$C$334-$B738))/((1+'1 Données d''entrée'!$C$332)^'1 Données d''entrée'!$C$333-1)*'1 Données d''entrée'!$C$332,0)","v":0},{"$f":"IF(Q727>0,$D723*((('1 Données d''entrée'!$C$332+1)^'1 Données d''entrée'!$C$333)-(1+'1 Données d''entrée'!$C$332)^('6 Financement'!P$54-1-'1 Données d''entrée'!$C$334-$B738))/((1+'1 Données d''entrée'!$C$332)^'1 Données d''entrée'!$C$333-1)*'1 Données d''entrée'!$C$332,0)","v":0},{"$f":"IF(R727>0,$D723*((('1 Données d''entrée'!$C$332+1)^'1 Données d''entrée'!$C$333)-(1+'1 Données d''entrée'!$C$332)^('6 Financement'!Q$54-1-'1 Données d''entrée'!$C$334-$B738))/((1+'1 Données d''entrée'!$C$332)^'1 Données d''entrée'!$C$333-1)*'1 Données d''entrée'!$C$332,0)","v":0},{"$f":"IF(S727>0,$D723*((('1 Données d''entrée'!$C$332+1)^'1 Données d''entrée'!$C$333)-(1+'1 Données d''entrée'!$C$332)^('6 Financement'!R$54-1-'1 Données d''entrée'!$C$334-$B738))/((1+'1 Données d''entrée'!$C$332)^'1 Données d''entrée'!$C$333-1)*'1 Données d''entrée'!$C$332,0)","v":0},{"$f":"IF(T727>0,$D723*((('1 Données d''entrée'!$C$332+1)^'1 Données d''entrée'!$C$333)-(1+'1 Données d''entrée'!$C$332)^('6 Financement'!S$54-1-'1 Données d''entrée'!$C$334-$B738))/((1+'1 Données d''entrée'!$C$332)^'1 Données d''entrée'!$C$333-1)*'1 Données d''entrée'!$C$332,0)","v":0},{"$f":"IF(U727>0,$D723*((('1 Données d''entrée'!$C$332+1)^'1 Données d''entrée'!$C$333)-(1+'1 Données d''entrée'!$C$332)^('6 Financement'!T$54-1-'1 Données d''entrée'!$C$334-$B738))/((1+'1 Données d''entrée'!$C$332)^'1 Données d''entrée'!$C$333-1)*'1 Données d''entrée'!$C$332,0)","v":0},{"$f":"IF(V727>0,$D723*((('1 Données d''entrée'!$C$332+1)^'1 Données d''entrée'!$C$333)-(1+'1 Données d''entrée'!$C$332)^('6 Financement'!U$54-1-'1 Données d''entrée'!$C$334-$B738))/((1+'1 Données d''entrée'!$C$332)^'1 Données d''entrée'!$C$333-1)*'1 Données d''entrée'!$C$332,0)","v":0}]
["Paiement d'intêrets",3,0,{"$f":"IF(D728>0,$E723*((('1 Données d''entrée'!$C$332+1)^'1 Données d''entrée'!$C$333)-(1+'1 Données d''entrée'!$C$332)^('6 Financement'!C$54-1-'1 Données d''entrée'!$C$334-$B739))/((1+'1 Données d''entrée'!$C$332)^'1 Données d''entrée'!$C$333-1)*'1 Données d''entrée'!$C$332,0)","v":0},{"$f":"IF(E728>0,$E723*((('1 Données d''entrée'!$C$332+1)^'1 Données d''entrée'!$C$333)-(1+'1 Données d''entrée'!$C$332)^('6 Financement'!D$54-1-'1 Données d''entrée'!$C$334-$B739))/((1+'1 Données d''entrée'!$C$332)^'1 Données d''entrée'!$C$333-1)*'1 Données d''entrée'!$C$332,0)","v":0},{"$f":"IF(F728>0,$E723*((('1 Données d''entrée'!$C$332+1)^'1 Données d''entrée'!$C$333)-(1+'1 Données d''entrée'!$C$332)^('6 Financement'!E$54-1-'1 Données d''entrée'!$C$334-$B739))/((1+'1 Données d''entrée'!$C$332)^'1 Données d''entrée'!$C$333-1)*'1 Données d''entrée'!$C$332,0)","v":0},{"$f":"IF(G728>0,$E723*((('1 Données d''entrée'!$C$332+1)^'1 Données d''entrée'!$C$333)-(1+'1 Données d''entrée'!$C$332)^('6 Financement'!F$54-1-'1 Données d''entrée'!$C$334-$B739))/((1+'1 Données d''entrée'!$C$332)^'1 Données d''entrée'!$C$333-1)*'1 Données d''entrée'!$C$332,0)","v":0},{"$f":"IF(H728>0,$E723*((('1 Données d''entrée'!$C$332+1)^'1 Données d''entrée'!$C$333)-(1+'1 Données d''entrée'!$C$332)^('6 Financement'!G$54-1-'1 Données d''entrée'!$C$334-$B739))/((1+'1 Données d''entrée'!$C$332)^'1 Données d''entrée'!$C$333-1)*'1 Données d''entrée'!$C$332,0)","v":0},{"$f":"IF(I728>0,$E723*((('1 Données d''entrée'!$C$332+1)^'1 Données d''entrée'!$C$333)-(1+'1 Données d''entrée'!$C$332)^('6 Financement'!H$54-1-'1 Données d''entrée'!$C$334-$B739))/((1+'1 Données d''entrée'!$C$332)^'1 Données d''entrée'!$C$333-1)*'1 Données d''entrée'!$C$332,0)","v":0},{"$f":"IF(J728>0,$E723*((('1 Données d''entrée'!$C$332+1)^'1 Données d''entrée'!$C$333)-(1+'1 Données d''entrée'!$C$332)^('6 Financement'!I$54-1-'1 Données d''entrée'!$C$334-$B739))/((1+'1 Données d''entrée'!$C$332)^'1 Données d''entrée'!$C$333-1)*'1 Données d''entrée'!$C$332,0)","v":0},{"$f":"IF(K728>0,$E723*((('1 Données d''entrée'!$C$332+1)^'1 Données d''entrée'!$C$333)-(1+'1 Données d''entrée'!$C$332)^('6 Financement'!J$54-1-'1 Données d''entrée'!$C$334-$B739))/((1+'1 Données d''entrée'!$C$332)^'1 Données d''entrée'!$C$333-1)*'1 Données d''entrée'!$C$332,0)","v":0},{"$f":"IF(L728>0,$E723*((('1 Données d''entrée'!$C$332+1)^'1 Données d''entrée'!$C$333)-(1+'1 Données d''entrée'!$C$332)^('6 Financement'!K$54-1-'1 Données d''entrée'!$C$334-$B739))/((1+'1 Données d''entrée'!$C$332)^'1 Données d''entrée'!$C$333-1)*'1 Données d''entrée'!$C$332,0)","v":0},{"$f":"IF(M728>0,$E723*((('1 Données d''entrée'!$C$332+1)^'1 Données d''entrée'!$C$333)-(1+'1 Données d''entrée'!$C$332)^('6 Financement'!L$54-1-'1 Données d''entrée'!$C$334-$B739))/((1+'1 Données d''entrée'!$C$332)^'1 Données d''entrée'!$C$333-1)*'1 Données d''entrée'!$C$332,0)","v":0},{"$f":"IF(N728>0,$E723*((('1 Données d''entrée'!$C$332+1)^'1 Données d''entrée'!$C$333)-(1+'1 Données d''entrée'!$C$332)^('6 Financement'!M$54-1-'1 Données d''entrée'!$C$334-$B739))/((1+'1 Données d''entrée'!$C$332)^'1 Données d''entrée'!$C$333-1)*'1 Données d''entrée'!$C$332,0)","v":0},{"$f":"IF(O728>0,$E723*((('1 Données d''entrée'!$C$332+1)^'1 Données d''entrée'!$C$333)-(1+'1 Données d''entrée'!$C$332)^('6 Financement'!N$54-1-'1 Données d''entrée'!$C$334-$B739))/((1+'1 Données d''entrée'!$C$332)^'1 Données d''entrée'!$C$333-1)*'1 Données d''entrée'!$C$332,0)","v":0},{"$f":"IF(P728>0,$E723*((('1 Données d''entrée'!$C$332+1)^'1 Données d''entrée'!$C$333)-(1+'1 Données d''entrée'!$C$332)^('6 Financement'!O$54-1-'1 Données d''entrée'!$C$334-$B739))/((1+'1 Données d''entrée'!$C$332)^'1 Données d''entrée'!$C$333-1)*'1 Données d''entrée'!$C$332,0)","v":0},{"$f":"IF(Q728>0,$E723*((('1 Données d''entrée'!$C$332+1)^'1 Données d''entrée'!$C$333)-(1+'1 Données d''entrée'!$C$332)^('6 Financement'!P$54-1-'1 Données d''entrée'!$C$334-$B739))/((1+'1 Données d''entrée'!$C$332)^'1 Données d''entrée'!$C$333-1)*'1 Données d''entrée'!$C$332,0)","v":0},{"$f":"IF(R728>0,$E723*((('1 Données d''entrée'!$C$332+1)^'1 Données d''entrée'!$C$333)-(1+'1 Données d''entrée'!$C$332)^('6 Financement'!Q$54-1-'1 Données d''entrée'!$C$334-$B739))/((1+'1 Données d''entrée'!$C$332)^'1 Données d''entrée'!$C$333-1)*'1 Données d''entrée'!$C$332,0)","v":0},{"$f":"IF(S728>0,$E723*((('1 Données d''entrée'!$C$332+1)^'1 Données d''entrée'!$C$333)-(1+'1 Données d''entrée'!$C$332)^('6 Financement'!R$54-1-'1 Données d''entrée'!$C$334-$B739))/((1+'1 Données d''entrée'!$C$332)^'1 Données d''entrée'!$C$333-1)*'1 Données d''entrée'!$C$332,0)","v":0},{"$f":"IF(T728>0,$E723*((('1 Données d''entrée'!$C$332+1)^'1 Données d''entrée'!$C$333)-(1+'1 Données d''entrée'!$C$332)^('6 Financement'!S$54-1-'1 Données d''entrée'!$C$334-$B739))/((1+'1 Données d''entrée'!$C$332)^'1 Données d''entrée'!$C$333-1)*'1 Données d''entrée'!$C$332,0)","v":0},{"$f":"IF(U728>0,$E723*((('1 Données d''entrée'!$C$332+1)^'1 Données d''entrée'!$C$333)-(1+'1 Données d''entrée'!$C$332)^('6 Financement'!T$54-1-'1 Données d''entrée'!$C$334-$B739))/((1+'1 Données d''entrée'!$C$332)^'1 Données d''entrée'!$C$333-1)*'1 Données d''entrée'!$C$332,0)","v":0},{"$f":"IF(V728>0,$E723*((('1 Données d''entrée'!$C$332+1)^'1 Données d''entrée'!$C$333)-(1+'1 Données d''entrée'!$C$332)^('6 Financement'!U$54-1-'1 Données d''entrée'!$C$334-$B739))/((1+'1 Données d''entrée'!$C$332)^'1 Données d''entrée'!$C$333-1)*'1 Données d''entrée'!$C$332,0)","v":0}]
["Paiement d'intêrets",4,0,{"$f":"IF(D729>0,$F723*((('1 Données d''entrée'!$C$332+1)^'1 Données d''entrée'!$C$333)-(1+'1 Données d''entrée'!$C$332)^('6 Financement'!C$54-1-'1 Données d''entrée'!$C$334-$B740))/((1+'1 Données d''entrée'!$C$332)^'1 Données d''entrée'!$C$333-1)*'1 Données d''entrée'!$C$332,0)","v":0},{"$f":"IF(E729>0,$F723*((('1 Données d''entrée'!$C$332+1)^'1 Données d''entrée'!$C$333)-(1+'1 Données d''entrée'!$C$332)^('6 Financement'!D$54-1-'1 Données d''entrée'!$C$334-$B740))/((1+'1 Données d''entrée'!$C$332)^'1 Données d''entrée'!$C$333-1)*'1 Données d''entrée'!$C$332,0)","v":0},{"$f":"IF(F729>0,$F723*((('1 Données d''entrée'!$C$332+1)^'1 Données d''entrée'!$C$333)-(1+'1 Données d''entrée'!$C$332)^('6 Financement'!E$54-1-'1 Données d''entrée'!$C$334-$B740))/((1+'1 Données d''entrée'!$C$332)^'1 Données d''entrée'!$C$333-1)*'1 Données d''entrée'!$C$332,0)","v":0},{"$f":"IF(G729>0,$F723*((('1 Données d''entrée'!$C$332+1)^'1 Données d''entrée'!$C$333)-(1+'1 Données d''entrée'!$C$332)^('6 Financement'!F$54-1-'1 Données d''entrée'!$C$334-$B740))/((1+'1 Données d''entrée'!$C$332)^'1 Données d''entrée'!$C$333-1)*'1 Données d''entrée'!$C$332,0)","v":0},{"$f":"IF(H729>0,$F723*((('1 Données d''entrée'!$C$332+1)^'1 Données d''entrée'!$C$333)-(1+'1 Données d''entrée'!$C$332)^('6 Financement'!G$54-1-'1 Données d''entrée'!$C$334-$B740))/((1+'1 Données d''entrée'!$C$332)^'1 Données d''entrée'!$C$333-1)*'1 Données d''entrée'!$C$332,0)","v":0},{"$f":"IF(I729>0,$F723*((('1 Données d''entrée'!$C$332+1)^'1 Données d''entrée'!$C$333)-(1+'1 Données d''entrée'!$C$332)^('6 Financement'!H$54-1-'1 Données d''entrée'!$C$334-$B740))/((1+'1 Données d''entrée'!$C$332)^'1 Données d''entrée'!$C$333-1)*'1 Données d''entrée'!$C$332,0)","v":0},{"$f":"IF(J729>0,$F723*((('1 Données d''entrée'!$C$332+1)^'1 Données d''entrée'!$C$333)-(1+'1 Données d''entrée'!$C$332)^('6 Financement'!I$54-1-'1 Données d''entrée'!$C$334-$B740))/((1+'1 Données d''entrée'!$C$332)^'1 Données d''entrée'!$C$333-1)*'1 Données d''entrée'!$C$332,0)","v":0},{"$f":"IF(K729>0,$F723*((('1 Données d''entrée'!$C$332+1)^'1 Données d''entrée'!$C$333)-(1+'1 Données d''entrée'!$C$332)^('6 Financement'!J$54-1-'1 Données d''entrée'!$C$334-$B740))/((1+'1 Données d''entrée'!$C$332)^'1 Données d''entrée'!$C$333-1)*'1 Données d''entrée'!$C$332,0)","v":0},{"$f":"IF(L729>0,$F723*((('1 Données d''entrée'!$C$332+1)^'1 Données d''entrée'!$C$333)-(1+'1 Données d''entrée'!$C$332)^('6 Financement'!K$54-1-'1 Données d''entrée'!$C$334-$B740))/((1+'1 Données d''entrée'!$C$332)^'1 Données d''entrée'!$C$333-1)*'1 Données d''entrée'!$C$332,0)","v":0},{"$f":"IF(M729>0,$F723*((('1 Données d''entrée'!$C$332+1)^'1 Données d''entrée'!$C$333)-(1+'1 Données d''entrée'!$C$332)^('6 Financement'!L$54-1-'1 Données d''entrée'!$C$334-$B740))/((1+'1 Données d''entrée'!$C$332)^'1 Données d''entrée'!$C$333-1)*'1 Données d''entrée'!$C$332,0)","v":0},{"$f":"IF(N729>0,$F723*((('1 Données d''entrée'!$C$332+1)^'1 Données d''entrée'!$C$333)-(1+'1 Données d''entrée'!$C$332)^('6 Financement'!M$54-1-'1 Données d''entrée'!$C$334-$B740))/((1+'1 Données d''entrée'!$C$332)^'1 Données d''entrée'!$C$333-1)*'1 Données d''entrée'!$C$332,0)","v":0},{"$f":"IF(O729>0,$F723*((('1 Données d''entrée'!$C$332+1)^'1 Données d''entrée'!$C$333)-(1+'1 Données d''entrée'!$C$332)^('6 Financement'!N$54-1-'1 Données d''entrée'!$C$334-$B740))/((1+'1 Données d''entrée'!$C$332)^'1 Données d''entrée'!$C$333-1)*'1 Données d''entrée'!$C$332,0)","v":0},{"$f":"IF(P729>0,$F723*((('1 Données d''entrée'!$C$332+1)^'1 Données d''entrée'!$C$333)-(1+'1 Données d''entrée'!$C$332)^('6 Financement'!O$54-1-'1 Données d''entrée'!$C$334-$B740))/((1+'1 Données d''entrée'!$C$332)^'1 Données d''entrée'!$C$333-1)*'1 Données d''entrée'!$C$332,0)","v":0},{"$f":"IF(Q729>0,$F723*((('1 Données d''entrée'!$C$332+1)^'1 Données d''entrée'!$C$333)-(1+'1 Données d''entrée'!$C$332)^('6 Financement'!P$54-1-'1 Données d''entrée'!$C$334-$B740))/((1+'1 Données d''entrée'!$C$332)^'1 Données d''entrée'!$C$333-1)*'1 Données d''entrée'!$C$332,0)","v":0},{"$f":"IF(R729>0,$F723*((('1 Données d''entrée'!$C$332+1)^'1 Données d''entrée'!$C$333)-(1+'1 Données d''entrée'!$C$332)^('6 Financement'!Q$54-1-'1 Données d''entrée'!$C$334-$B740))/((1+'1 Données d''entrée'!$C$332)^'1 Données d''entrée'!$C$333-1)*'1 Données d''entrée'!$C$332,0)","v":0},{"$f":"IF(S729>0,$F723*((('1 Données d''entrée'!$C$332+1)^'1 Données d''entrée'!$C$333)-(1+'1 Données d''entrée'!$C$332)^('6 Financement'!R$54-1-'1 Données d''entrée'!$C$334-$B740))/((1+'1 Données d''entrée'!$C$332)^'1 Données d''entrée'!$C$333-1)*'1 Données d''entrée'!$C$332,0)","v":0},{"$f":"IF(T729>0,$F723*((('1 Données d''entrée'!$C$332+1)^'1 Données d''entrée'!$C$333)-(1+'1 Données d''entrée'!$C$332)^('6 Financement'!S$54-1-'1 Données d''entrée'!$C$334-$B740))/((1+'1 Données d''entrée'!$C$332)^'1 Données d''entrée'!$C$333-1)*'1 Données d''entrée'!$C$332,0)","v":0},{"$f":"IF(U729>0,$F723*((('1 Données d''entrée'!$C$332+1)^'1 Données d''entrée'!$C$333)-(1+'1 Données d''entrée'!$C$332)^('6 Financement'!T$54-1-'1 Données d''entrée'!$C$334-$B740))/((1+'1 Données d''entrée'!$C$332)^'1 Données d''entrée'!$C$333-1)*'1 Données d''entrée'!$C$332,0)","v":0},{"$f":"IF(V729>0,$F723*((('1 Données d''entrée'!$C$332+1)^'1 Données d''entrée'!$C$333)-(1+'1 Données d''entrée'!$C$332)^('6 Financement'!U$54-1-'1 Données d''entrée'!$C$334-$B740))/((1+'1 Données d''entrée'!$C$332)^'1 Données d''entrée'!$C$333-1)*'1 Données d''entrée'!$C$332,0)","v":0}]
["Paiement d'intêrets",5,0,{"$f":"IF(D730>0,$G723*((('1 Données d''entrée'!$C$332+1)^'1 Données d''entrée'!$C$333)-(1+'1 Données d''entrée'!$C$332)^('6 Financement'!C$54-1-'1 Données d''entrée'!$C$334-$B741))/((1+'1 Données d''entrée'!$C$332)^'1 Données d''entrée'!$C$333-1)*'1 Données d''entrée'!$C$332,0)","v":0},{"$f":"IF(E730>0,$G723*((('1 Données d''entrée'!$C$332+1)^'1 Données d''entrée'!$C$333)-(1+'1 Données d''entrée'!$C$332)^('6 Financement'!D$54-1-'1 Données d''entrée'!$C$334-$B741))/((1+'1 Données d''entrée'!$C$332)^'1 Données d''entrée'!$C$333-1)*'1 Données d''entrée'!$C$332,0)","v":0},{"$f":"IF(F730>0,$G723*((('1 Données d''entrée'!$C$332+1)^'1 Données d''entrée'!$C$333)-(1+'1 Données d''entrée'!$C$332)^('6 Financement'!E$54-1-'1 Données d''entrée'!$C$334-$B741))/((1+'1 Données d''entrée'!$C$332)^'1 Données d''entrée'!$C$333-1)*'1 Données d''entrée'!$C$332,0)","v":0},{"$f":"IF(G730>0,$G723*((('1 Données d''entrée'!$C$332+1)^'1 Données d''entrée'!$C$333)-(1+'1 Données d''entrée'!$C$332)^('6 Financement'!F$54-1-'1 Données d''entrée'!$C$334-$B741))/((1+'1 Données d''entrée'!$C$332)^'1 Données d''entrée'!$C$333-1)*'1 Données d''entrée'!$C$332,0)","v":0},{"$f":"IF(H730>0,$G723*((('1 Données d''entrée'!$C$332+1)^'1 Données d''entrée'!$C$333)-(1+'1 Données d''entrée'!$C$332)^('6 Financement'!G$54-1-'1 Données d''entrée'!$C$334-$B741))/((1+'1 Données d''entrée'!$C$332)^'1 Données d''entrée'!$C$333-1)*'1 Données d''entrée'!$C$332,0)","v":0},{"$f":"IF(I730>0,$G723*((('1 Données d''entrée'!$C$332+1)^'1 Données d''entrée'!$C$333)-(1+'1 Données d''entrée'!$C$332)^('6 Financement'!H$54-1-'1 Données d''entrée'!$C$334-$B741))/((1+'1 Données d''entrée'!$C$332)^'1 Données d''entrée'!$C$333-1)*'1 Données d''entrée'!$C$332,0)","v":0},{"$f":"IF(J730>0,$G723*((('1 Données d''entrée'!$C$332+1)^'1 Données d''entrée'!$C$333)-(1+'1 Données d''entrée'!$C$332)^('6 Financement'!I$54-1-'1 Données d''entrée'!$C$334-$B741))/((1+'1 Données d''entrée'!$C$332)^'1 Données d''entrée'!$C$333-1)*'1 Données d''entrée'!$C$332,0)","v":0},{"$f":"IF(K730>0,$G723*((('1 Données d''entrée'!$C$332+1)^'1 Données d''entrée'!$C$333)-(1+'1 Données d''entrée'!$C$332)^('6 Financement'!J$54-1-'1 Données d''entrée'!$C$334-$B741))/((1+'1 Données d''entrée'!$C$332)^'1 Données d''entrée'!$C$333-1)*'1 Données d''entrée'!$C$332,0)","v":0},{"$f":"IF(L730>0,$G723*((('1 Données d''entrée'!$C$332+1)^'1 Données d''entrée'!$C$333)-(1+'1 Données d''entrée'!$C$332)^('6 Financement'!K$54-1-'1 Données d''entrée'!$C$334-$B741))/((1+'1 Données d''entrée'!$C$332)^'1 Données d''entrée'!$C$333-1)*'1 Données d''entrée'!$C$332,0)","v":0},{"$f":"IF(M730>0,$G723*((('1 Données d''entrée'!$C$332+1)^'1 Données d''entrée'!$C$333)-(1+'1 Données d''entrée'!$C$332)^('6 Financement'!L$54-1-'1 Données d''entrée'!$C$334-$B741))/((1+'1 Données d''entrée'!$C$332)^'1 Données d''entrée'!$C$333-1)*'1 Données d''entrée'!$C$332,0)","v":0},{"$f":"IF(N730>0,$G723*((('1 Données d''entrée'!$C$332+1)^'1 Données d''entrée'!$C$333)-(1+'1 Données d''entrée'!$C$332)^('6 Financement'!M$54-1-'1 Données d''entrée'!$C$334-$B741))/((1+'1 Données d''entrée'!$C$332)^'1 Données d''entrée'!$C$333-1)*'1 Données d''entrée'!$C$332,0)","v":0},{"$f":"IF(O730>0,$G723*((('1 Données d''entrée'!$C$332+1)^'1 Données d''entrée'!$C$333)-(1+'1 Données d''entrée'!$C$332)^('6 Financement'!N$54-1-'1 Données d''entrée'!$C$334-$B741))/((1+'1 Données d''entrée'!$C$332)^'1 Données d''entrée'!$C$333-1)*'1 Données d''entrée'!$C$332,0)","v":0},{"$f":"IF(P730>0,$G723*((('1 Données d''entrée'!$C$332+1)^'1 Données d''entrée'!$C$333)-(1+'1 Données d''entrée'!$C$332)^('6 Financement'!O$54-1-'1 Données d''entrée'!$C$334-$B741))/((1+'1 Données d''entrée'!$C$332)^'1 Données d''entrée'!$C$333-1)*'1 Données d''entrée'!$C$332,0)","v":0},{"$f":"IF(Q730>0,$G723*((('1 Données d''entrée'!$C$332+1)^'1 Données d''entrée'!$C$333)-(1+'1 Données d''entrée'!$C$332)^('6 Financement'!P$54-1-'1 Données d''entrée'!$C$334-$B741))/((1+'1 Données d''entrée'!$C$332)^'1 Données d''entrée'!$C$333-1)*'1 Données d''entrée'!$C$332,0)","v":0},{"$f":"IF(R730>0,$G723*((('1 Données d''entrée'!$C$332+1)^'1 Données d''entrée'!$C$333)-(1+'1 Données d''entrée'!$C$332)^('6 Financement'!Q$54-1-'1 Données d''entrée'!$C$334-$B741))/((1+'1 Données d''entrée'!$C$332)^'1 Données d''entrée'!$C$333-1)*'1 Données d''entrée'!$C$332,0)","v":0},{"$f":"IF(S730>0,$G723*((('1 Données d''entrée'!$C$332+1)^'1 Données d''entrée'!$C$333)-(1+'1 Données d''entrée'!$C$332)^('6 Financement'!R$54-1-'1 Données d''entrée'!$C$334-$B741))/((1+'1 Données d''entrée'!$C$332)^'1 Données d''entrée'!$C$333-1)*'1 Données d''entrée'!$C$332,0)","v":0},{"$f":"IF(T730>0,$G723*((('1 Données d''entrée'!$C$332+1)^'1 Données d''entrée'!$C$333)-(1+'1 Données d''entrée'!$C$332)^('6 Financement'!S$54-1-'1 Données d''entrée'!$C$334-$B741))/((1+'1 Données d''entrée'!$C$332)^'1 Données d''entrée'!$C$333-1)*'1 Données d''entrée'!$C$332,0)","v":0},{"$f":"IF(U730>0,$G723*((('1 Données d''entrée'!$C$332+1)^'1 Données d''entrée'!$C$333)-(1+'1 Données d''entrée'!$C$332)^('6 Financement'!T$54-1-'1 Données d''entrée'!$C$334-$B741))/((1+'1 Données d''entrée'!$C$332)^'1 Données d''entrée'!$C$333-1)*'1 Données d''entrée'!$C$332,0)","v":0},{"$f":"IF(V730>0,$G723*((('1 Données d''entrée'!$C$332+1)^'1 Données d''entrée'!$C$333)-(1+'1 Données d''entrée'!$C$332)^('6 Financement'!U$54-1-'1 Données d''entrée'!$C$334-$B741))/((1+'1 Données d''entrée'!$C$332)^'1 Données d''entrée'!$C$333-1)*'1 Données d''entrée'!$C$332,0)","v":0}]
["Paiement d'intêrets",6,0,{"$f":"IF(D731>0,$H723*((('1 Données d''entrée'!$C$332+1)^'1 Données d''entrée'!$C$333)-(1+'1 Données d''entrée'!$C$332)^('6 Financement'!C$54-1-'1 Données d''entrée'!$C$334-$B742))/((1+'1 Données d''entrée'!$C$332)^'1 Données d''entrée'!$C$333-1)*'1 Données d''entrée'!$C$332,0)","v":0},{"$f":"IF(E731>0,$H723*((('1 Données d''entrée'!$C$332+1)^'1 Données d''entrée'!$C$333)-(1+'1 Données d''entrée'!$C$332)^('6 Financement'!D$54-1-'1 Données d''entrée'!$C$334-$B742))/((1+'1 Données d''entrée'!$C$332)^'1 Données d''entrée'!$C$333-1)*'1 Données d''entrée'!$C$332,0)","v":0},{"$f":"IF(F731>0,$H723*((('1 Données d''entrée'!$C$332+1)^'1 Données d''entrée'!$C$333)-(1+'1 Données d''entrée'!$C$332)^('6 Financement'!E$54-1-'1 Données d''entrée'!$C$334-$B742))/((1+'1 Données d''entrée'!$C$332)^'1 Données d''entrée'!$C$333-1)*'1 Données d''entrée'!$C$332,0)","v":0},{"$f":"IF(G731>0,$H723*((('1 Données d''entrée'!$C$332+1)^'1 Données d''entrée'!$C$333)-(1+'1 Données d''entrée'!$C$332)^('6 Financement'!F$54-1-'1 Données d''entrée'!$C$334-$B742))/((1+'1 Données d''entrée'!$C$332)^'1 Données d''entrée'!$C$333-1)*'1 Données d''entrée'!$C$332,0)","v":0},{"$f":"IF(H731>0,$H723*((('1 Données d''entrée'!$C$332+1)^'1 Données d''entrée'!$C$333)-(1+'1 Données d''entrée'!$C$332)^('6 Financement'!G$54-1-'1 Données d''entrée'!$C$334-$B742))/((1+'1 Données d''entrée'!$C$332)^'1 Données d''entrée'!$C$333-1)*'1 Données d''entrée'!$C$332,0)","v":0},{"$f":"IF(I731>0,$H723*((('1 Données d''entrée'!$C$332+1)^'1 Données d''entrée'!$C$333)-(1+'1 Données d''entrée'!$C$332)^('6 Financement'!H$54-1-'1 Données d''entrée'!$C$334-$B742))/((1+'1 Données d''entrée'!$C$332)^'1 Données d''entrée'!$C$333-1)*'1 Données d''entrée'!$C$332,0)","v":0},{"$f":"IF(J731>0,$H723*((('1 Données d''entrée'!$C$332+1)^'1 Données d''entrée'!$C$333)-(1+'1 Données d''entrée'!$C$332)^('6 Financement'!I$54-1-'1 Données d''entrée'!$C$334-$B742))/((1+'1 Données d''entrée'!$C$332)^'1 Données d''entrée'!$C$333-1)*'1 Données d''entrée'!$C$332,0)","v":0},{"$f":"IF(K731>0,$H723*((('1 Données d''entrée'!$C$332+1)^'1 Données d''entrée'!$C$333)-(1+'1 Données d''entrée'!$C$332)^('6 Financement'!J$54-1-'1 Données d''entrée'!$C$334-$B742))/((1+'1 Données d''entrée'!$C$332)^'1 Données d''entrée'!$C$333-1)*'1 Données d''entrée'!$C$332,0)","v":0},{"$f":"IF(L731>0,$H723*((('1 Données d''entrée'!$C$332+1)^'1 Données d''entrée'!$C$333)-(1+'1 Données d''entrée'!$C$332)^('6 Financement'!K$54-1-'1 Données d''entrée'!$C$334-$B742))/((1+'1 Données d''entrée'!$C$332)^'1 Données d''entrée'!$C$333-1)*'1 Données d''entrée'!$C$332,0)","v":0},{"$f":"IF(M731>0,$H723*((('1 Données d''entrée'!$C$332+1)^'1 Données d''entrée'!$C$333)-(1+'1 Données d''entrée'!$C$332)^('6 Financement'!L$54-1-'1 Données d''entrée'!$C$334-$B742))/((1+'1 Données d''entrée'!$C$332)^'1 Données d''entrée'!$C$333-1)*'1 Données d''entrée'!$C$332,0)","v":0},{"$f":"IF(N731>0,$H723*((('1 Données d''entrée'!$C$332+1)^'1 Données d''entrée'!$C$333)-(1+'1 Données d''entrée'!$C$332)^('6 Financement'!M$54-1-'1 Données d''entrée'!$C$334-$B742))/((1+'1 Données d''entrée'!$C$332)^'1 Données d''entrée'!$C$333-1)*'1 Données d''entrée'!$C$332,0)","v":0},{"$f":"IF(O731>0,$H723*((('1 Données d''entrée'!$C$332+1)^'1 Données d''entrée'!$C$333)-(1+'1 Données d''entrée'!$C$332)^('6 Financement'!N$54-1-'1 Données d''entrée'!$C$334-$B742))/((1+'1 Données d''entrée'!$C$332)^'1 Données d''entrée'!$C$333-1)*'1 Données d''entrée'!$C$332,0)","v":0},{"$f":"IF(P731>0,$H723*((('1 Données d''entrée'!$C$332+1)^'1 Données d''entrée'!$C$333)-(1+'1 Données d''entrée'!$C$332)^('6 Financement'!O$54-1-'1 Données d''entrée'!$C$334-$B742))/((1+'1 Données d''entrée'!$C$332)^'1 Données d''entrée'!$C$333-1)*'1 Données d''entrée'!$C$332,0)","v":0},{"$f":"IF(Q731>0,$H723*((('1 Données d''entrée'!$C$332+1)^'1 Données d''entrée'!$C$333)-(1+'1 Données d''entrée'!$C$332)^('6 Financement'!P$54-1-'1 Données d''entrée'!$C$334-$B742))/((1+'1 Données d''entrée'!$C$332)^'1 Données d''entrée'!$C$333-1)*'1 Données d''entrée'!$C$332,0)","v":0},{"$f":"IF(R731>0,$H723*((('1 Données d''entrée'!$C$332+1)^'1 Données d''entrée'!$C$333)-(1+'1 Données d''entrée'!$C$332)^('6 Financement'!Q$54-1-'1 Données d''entrée'!$C$334-$B742))/((1+'1 Données d''entrée'!$C$332)^'1 Données d''entrée'!$C$333-1)*'1 Données d''entrée'!$C$332,0)","v":0},{"$f":"IF(S731>0,$H723*((('1 Données d''entrée'!$C$332+1)^'1 Données d''entrée'!$C$333)-(1+'1 Données d''entrée'!$C$332)^('6 Financement'!R$54-1-'1 Données d''entrée'!$C$334-$B742))/((1+'1 Données d''entrée'!$C$332)^'1 Données d''entrée'!$C$333-1)*'1 Données d''entrée'!$C$332,0)","v":0},{"$f":"IF(T731>0,$H723*((('1 Données d''entrée'!$C$332+1)^'1 Données d''entrée'!$C$333)-(1+'1 Données d''entrée'!$C$332)^('6 Financement'!S$54-1-'1 Données d''entrée'!$C$334-$B742))/((1+'1 Données d''entrée'!$C$332)^'1 Données d''entrée'!$C$333-1)*'1 Données d''entrée'!$C$332,0)","v":0},{"$f":"IF(U731>0,$H723*((('1 Données d''entrée'!$C$332+1)^'1 Données d''entrée'!$C$333)-(1+'1 Données d''entrée'!$C$332)^('6 Financement'!T$54-1-'1 Données d''entrée'!$C$334-$B742))/((1+'1 Données d''entrée'!$C$332)^'1 Données d''entrée'!$C$333-1)*'1 Données d''entrée'!$C$332,0)","v":0},{"$f":"IF(V731>0,$H723*((('1 Données d''entrée'!$C$332+1)^'1 Données d''entrée'!$C$333)-(1+'1 Données d''entrée'!$C$332)^('6 Financement'!U$54-1-'1 Données d''entrée'!$C$334-$B742))/((1+'1 Données d''entrée'!$C$332)^'1 Données d''entrée'!$C$333-1)*'1 Données d''entrée'!$C$332,0)","v":0}]
["Paiement d'intêrets",7,0,{"$f":"IF(D732>0,$I723*((('1 Données d''entrée'!$C$332+1)^'1 Données d''entrée'!$C$333)-(1+'1 Données d''entrée'!$C$332)^('6 Financement'!C$54-1-'1 Données d''entrée'!$C$334-$B743))/((1+'1 Données d''entrée'!$C$332)^'1 Données d''entrée'!$C$333-1)*'1 Données d''entrée'!$C$332,0)","v":0},{"$f":"IF(E732>0,$I723*((('1 Données d''entrée'!$C$332+1)^'1 Données d''entrée'!$C$333)-(1+'1 Données d''entrée'!$C$332)^('6 Financement'!D$54-1-'1 Données d''entrée'!$C$334-$B743))/((1+'1 Données d''entrée'!$C$332)^'1 Données d''entrée'!$C$333-1)*'1 Données d''entrée'!$C$332,0)","v":0},{"$f":"IF(F732>0,$I723*((('1 Données d''entrée'!$C$332+1)^'1 Données d''entrée'!$C$333)-(1+'1 Données d''entrée'!$C$332)^('6 Financement'!E$54-1-'1 Données d''entrée'!$C$334-$B743))/((1+'1 Données d''entrée'!$C$332)^'1 Données d''entrée'!$C$333-1)*'1 Données d''entrée'!$C$332,0)","v":0},{"$f":"IF(G732>0,$I723*((('1 Données d''entrée'!$C$332+1)^'1 Données d''entrée'!$C$333)-(1+'1 Données d''entrée'!$C$332)^('6 Financement'!F$54-1-'1 Données d''entrée'!$C$334-$B743))/((1+'1 Données d''entrée'!$C$332)^'1 Données d''entrée'!$C$333-1)*'1 Données d''entrée'!$C$332,0)","v":0},{"$f":"IF(H732>0,$I723*((('1 Données d''entrée'!$C$332+1)^'1 Données d''entrée'!$C$333)-(1+'1 Données d''entrée'!$C$332)^('6 Financement'!G$54-1-'1 Données d''entrée'!$C$334-$B743))/((1+'1 Données d''entrée'!$C$332)^'1 Données d''entrée'!$C$333-1)*'1 Données d''entrée'!$C$332,0)","v":0},{"$f":"IF(I732>0,$I723*((('1 Données d''entrée'!$C$332+1)^'1 Données d''entrée'!$C$333)-(1+'1 Données d''entrée'!$C$332)^('6 Financement'!H$54-1-'1 Données d''entrée'!$C$334-$B743))/((1+'1 Données d''entrée'!$C$332)^'1 Données d''entrée'!$C$333-1)*'1 Données d''entrée'!$C$332,0)","v":0},{"$f":"IF(J732>0,$I723*((('1 Données d''entrée'!$C$332+1)^'1 Données d''entrée'!$C$333)-(1+'1 Données d''entrée'!$C$332)^('6 Financement'!I$54-1-'1 Données d''entrée'!$C$334-$B743))/((1+'1 Données d''entrée'!$C$332)^'1 Données d''entrée'!$C$333-1)*'1 Données d''entrée'!$C$332,0)","v":0},{"$f":"IF(K732>0,$I723*((('1 Données d''entrée'!$C$332+1)^'1 Données d''entrée'!$C$333)-(1+'1 Données d''entrée'!$C$332)^('6 Financement'!J$54-1-'1 Données d''entrée'!$C$334-$B743))/((1+'1 Données d''entrée'!$C$332)^'1 Données d''entrée'!$C$333-1)*'1 Données d''entrée'!$C$332,0)","v":0},{"$f":"IF(L732>0,$I723*((('1 Données d''entrée'!$C$332+1)^'1 Données d''entrée'!$C$333)-(1+'1 Données d''entrée'!$C$332)^('6 Financement'!K$54-1-'1 Données d''entrée'!$C$334-$B743))/((1+'1 Données d''entrée'!$C$332)^'1 Données d''entrée'!$C$333-1)*'1 Données d''entrée'!$C$332,0)","v":0},{"$f":"IF(M732>0,$I723*((('1 Données d''entrée'!$C$332+1)^'1 Données d''entrée'!$C$333)-(1+'1 Données d''entrée'!$C$332)^('6 Financement'!L$54-1-'1 Données d''entrée'!$C$334-$B743))/((1+'1 Données d''entrée'!$C$332)^'1 Données d''entrée'!$C$333-1)*'1 Données d''entrée'!$C$332,0)","v":0},{"$f":"IF(N732>0,$I723*((('1 Données d''entrée'!$C$332+1)^'1 Données d''entrée'!$C$333)-(1+'1 Données d''entrée'!$C$332)^('6 Financement'!M$54-1-'1 Données d''entrée'!$C$334-$B743))/((1+'1 Données d''entrée'!$C$332)^'1 Données d''entrée'!$C$333-1)*'1 Données d''entrée'!$C$332,0)","v":0},{"$f":"IF(O732>0,$I723*((('1 Données d''entrée'!$C$332+1)^'1 Données d''entrée'!$C$333)-(1+'1 Données d''entrée'!$C$332)^('6 Financement'!N$54-1-'1 Données d''entrée'!$C$334-$B743))/((1+'1 Données d''entrée'!$C$332)^'1 Données d''entrée'!$C$333-1)*'1 Données d''entrée'!$C$332,0)","v":0},{"$f":"IF(P732>0,$I723*((('1 Données d''entrée'!$C$332+1)^'1 Données d''entrée'!$C$333)-(1+'1 Données d''entrée'!$C$332)^('6 Financement'!O$54-1-'1 Données d''entrée'!$C$334-$B743))/((1+'1 Données d''entrée'!$C$332)^'1 Données d''entrée'!$C$333-1)*'1 Données d''entrée'!$C$332,0)","v":0},{"$f":"IF(Q732>0,$I723*((('1 Données d''entrée'!$C$332+1)^'1 Données d''entrée'!$C$333)-(1+'1 Données d''entrée'!$C$332)^('6 Financement'!P$54-1-'1 Données d''entrée'!$C$334-$B743))/((1+'1 Données d''entrée'!$C$332)^'1 Données d''entrée'!$C$333-1)*'1 Données d''entrée'!$C$332,0)","v":0},{"$f":"IF(R732>0,$I723*((('1 Données d''entrée'!$C$332+1)^'1 Données d''entrée'!$C$333)-(1+'1 Données d''entrée'!$C$332)^('6 Financement'!Q$54-1-'1 Données d''entrée'!$C$334-$B743))/((1+'1 Données d''entrée'!$C$332)^'1 Données d''entrée'!$C$333-1)*'1 Données d''entrée'!$C$332,0)","v":0},{"$f":"IF(S732>0,$I723*((('1 Données d''entrée'!$C$332+1)^'1 Données d''entrée'!$C$333)-(1+'1 Données d''entrée'!$C$332)^('6 Financement'!R$54-1-'1 Données d''entrée'!$C$334-$B743))/((1+'1 Données d''entrée'!$C$332)^'1 Données d''entrée'!$C$333-1)*'1 Données d''entrée'!$C$332,0)","v":0},{"$f":"IF(T732>0,$I723*((('1 Données d''entrée'!$C$332+1)^'1 Données d''entrée'!$C$333)-(1+'1 Données d''entrée'!$C$332)^('6 Financement'!S$54-1-'1 Données d''entrée'!$C$334-$B743))/((1+'1 Données d''entrée'!$C$332)^'1 Données d''entrée'!$C$333-1)*'1 Données d''entrée'!$C$332,0)","v":0},{"$f":"IF(U732>0,$I723*((('1 Données d''entrée'!$C$332+1)^'1 Données d''entrée'!$C$333)-(1+'1 Données d''entrée'!$C$332)^('6 Financement'!T$54-1-'1 Données d''entrée'!$C$334-$B743))/((1+'1 Données d''entrée'!$C$332)^'1 Données d''entrée'!$C$333-1)*'1 Données d''entrée'!$C$332,0)","v":0},{"$f":"IF(V732>0,$I723*((('1 Données d''entrée'!$C$332+1)^'1 Données d''entrée'!$C$333)-(1+'1 Données d''entrée'!$C$332)^('6 Financement'!U$54-1-'1 Données d''entrée'!$C$334-$B743))/((1+'1 Données d''entrée'!$C$332)^'1 Données d''entrée'!$C$333-1)*'1 Données d''entrée'!$C$332,0)","v":0}]
["Paiement d'intêrets",8,0,{"$f":"IF(D733>0,$J723*((('1 Données d''entrée'!$C$332+1)^'1 Données d''entrée'!$C$333)-(1+'1 Données d''entrée'!$C$332)^('6 Financement'!C$54-1-'1 Données d''entrée'!$C$334-$B744))/((1+'1 Données d''entrée'!$C$332)^'1 Données d''entrée'!$C$333-1)*'1 Données d''entrée'!$C$332,0)","v":0},{"$f":"IF(E733>0,$J723*((('1 Données d''entrée'!$C$332+1)^'1 Données d''entrée'!$C$333)-(1+'1 Données d''entrée'!$C$332)^('6 Financement'!D$54-1-'1 Données d''entrée'!$C$334-$B744))/((1+'1 Données d''entrée'!$C$332)^'1 Données d''entrée'!$C$333-1)*'1 Données d''entrée'!$C$332,0)","v":0},{"$f":"IF(F733>0,$J723*((('1 Données d''entrée'!$C$332+1)^'1 Données d''entrée'!$C$333)-(1+'1 Données d''entrée'!$C$332)^('6 Financement'!E$54-1-'1 Données d''entrée'!$C$334-$B744))/((1+'1 Données d''entrée'!$C$332)^'1 Données d''entrée'!$C$333-1)*'1 Données d''entrée'!$C$332,0)","v":0},{"$f":"IF(G733>0,$J723*((('1 Données d''entrée'!$C$332+1)^'1 Données d''entrée'!$C$333)-(1+'1 Données d''entrée'!$C$332)^('6 Financement'!F$54-1-'1 Données d''entrée'!$C$334-$B744))/((1+'1 Données d''entrée'!$C$332)^'1 Données d''entrée'!$C$333-1)*'1 Données d''entrée'!$C$332,0)","v":0},{"$f":"IF(H733>0,$J723*((('1 Données d''entrée'!$C$332+1)^'1 Données d''entrée'!$C$333)-(1+'1 Données d''entrée'!$C$332)^('6 Financement'!G$54-1-'1 Données d''entrée'!$C$334-$B744))/((1+'1 Données d''entrée'!$C$332)^'1 Données d''entrée'!$C$333-1)*'1 Données d''entrée'!$C$332,0)","v":0},{"$f":"IF(I733>0,$J723*((('1 Données d''entrée'!$C$332+1)^'1 Données d''entrée'!$C$333)-(1+'1 Données d''entrée'!$C$332)^('6 Financement'!H$54-1-'1 Données d''entrée'!$C$334-$B744))/((1+'1 Données d''entrée'!$C$332)^'1 Données d''entrée'!$C$333-1)*'1 Données d''entrée'!$C$332,0)","v":0},{"$f":"IF(J733>0,$J723*((('1 Données d''entrée'!$C$332+1)^'1 Données d''entrée'!$C$333)-(1+'1 Données d''entrée'!$C$332)^('6 Financement'!I$54-1-'1 Données d''entrée'!$C$334-$B744))/((1+'1 Données d''entrée'!$C$332)^'1 Données d''entrée'!$C$333-1)*'1 Données d''entrée'!$C$332,0)","v":0},{"$f":"IF(K733>0,$J723*((('1 Données d''entrée'!$C$332+1)^'1 Données d''entrée'!$C$333)-(1+'1 Données d''entrée'!$C$332)^('6 Financement'!J$54-1-'1 Données d''entrée'!$C$334-$B744))/((1+'1 Données d''entrée'!$C$332)^'1 Données d''entrée'!$C$333-1)*'1 Données d''entrée'!$C$332,0)","v":0},{"$f":"IF(L733>0,$J723*((('1 Données d''entrée'!$C$332+1)^'1 Données d''entrée'!$C$333)-(1+'1 Données d''entrée'!$C$332)^('6 Financement'!K$54-1-'1 Données d''entrée'!$C$334-$B744))/((1+'1 Données d''entrée'!$C$332)^'1 Données d''entrée'!$C$333-1)*'1 Données d''entrée'!$C$332,0)","v":0},{"$f":"IF(M733>0,$J723*((('1 Données d''entrée'!$C$332+1)^'1 Données d''entrée'!$C$333)-(1+'1 Données d''entrée'!$C$332)^('6 Financement'!L$54-1-'1 Données d''entrée'!$C$334-$B744))/((1+'1 Données d''entrée'!$C$332)^'1 Données d''entrée'!$C$333-1)*'1 Données d''entrée'!$C$332,0)","v":0},{"$f":"IF(N733>0,$J723*((('1 Données d''entrée'!$C$332+1)^'1 Données d''entrée'!$C$333)-(1+'1 Données d''entrée'!$C$332)^('6 Financement'!M$54-1-'1 Données d''entrée'!$C$334-$B744))/((1+'1 Données d''entrée'!$C$332)^'1 Données d''entrée'!$C$333-1)*'1 Données d''entrée'!$C$332,0)","v":0},{"$f":"IF(O733>0,$J723*((('1 Données d''entrée'!$C$332+1)^'1 Données d''entrée'!$C$333)-(1+'1 Données d''entrée'!$C$332)^('6 Financement'!N$54-1-'1 Données d''entrée'!$C$334-$B744))/((1+'1 Données d''entrée'!$C$332)^'1 Données d''entrée'!$C$333-1)*'1 Données d''entrée'!$C$332,0)","v":0},{"$f":"IF(P733>0,$J723*((('1 Données d''entrée'!$C$332+1)^'1 Données d''entrée'!$C$333)-(1+'1 Données d''entrée'!$C$332)^('6 Financement'!O$54-1-'1 Données d''entrée'!$C$334-$B744))/((1+'1 Données d''entrée'!$C$332)^'1 Données d''entrée'!$C$333-1)*'1 Données d''entrée'!$C$332,0)","v":0},{"$f":"IF(Q733>0,$J723*((('1 Données d''entrée'!$C$332+1)^'1 Données d''entrée'!$C$333)-(1+'1 Données d''entrée'!$C$332)^('6 Financement'!P$54-1-'1 Données d''entrée'!$C$334-$B744))/((1+'1 Données d''entrée'!$C$332)^'1 Données d''entrée'!$C$333-1)*'1 Données d''entrée'!$C$332,0)","v":0},{"$f":"IF(R733>0,$J723*((('1 Données d''entrée'!$C$332+1)^'1 Données d''entrée'!$C$333)-(1+'1 Données d''entrée'!$C$332)^('6 Financement'!Q$54-1-'1 Données d''entrée'!$C$334-$B744))/((1+'1 Données d''entrée'!$C$332)^'1 Données d''entrée'!$C$333-1)*'1 Données d''entrée'!$C$332,0)","v":0},{"$f":"IF(S733>0,$J723*((('1 Données d''entrée'!$C$332+1)^'1 Données d''entrée'!$C$333)-(1+'1 Données d''entrée'!$C$332)^('6 Financement'!R$54-1-'1 Données d''entrée'!$C$334-$B744))/((1+'1 Données d''entrée'!$C$332)^'1 Données d''entrée'!$C$333-1)*'1 Données d''entrée'!$C$332,0)","v":0},{"$f":"IF(T733>0,$J723*((('1 Données d''entrée'!$C$332+1)^'1 Données d''entrée'!$C$333)-(1+'1 Données d''entrée'!$C$332)^('6 Financement'!S$54-1-'1 Données d''entrée'!$C$334-$B744))/((1+'1 Données d''entrée'!$C$332)^'1 Données d''entrée'!$C$333-1)*'1 Données d''entrée'!$C$332,0)","v":0},{"$f":"IF(U733>0,$J723*((('1 Données d''entrée'!$C$332+1)^'1 Données d''entrée'!$C$333)-(1+'1 Données d''entrée'!$C$332)^('6 Financement'!T$54-1-'1 Données d''entrée'!$C$334-$B744))/((1+'1 Données d''entrée'!$C$332)^'1 Données d''entrée'!$C$333-1)*'1 Données d''entrée'!$C$332,0)","v":0},{"$f":"IF(V733>0,$J723*((('1 Données d''entrée'!$C$332+1)^'1 Données d''entrée'!$C$333)-(1+'1 Données d''entrée'!$C$332)^('6 Financement'!U$54-1-'1 Données d''entrée'!$C$334-$B744))/((1+'1 Données d''entrée'!$C$332)^'1 Données d''entrée'!$C$333-1)*'1 Données d''entrée'!$C$332,0)","v":0}]
["Paiement d'intêrets",9,0,{"$f":"IF(D734>0,$K723*((('1 Données d''entrée'!$C$332+1)^'1 Données d''entrée'!$C$333)-(1+'1 Données d''entrée'!$C$332)^('6 Financement'!C$54-1-'1 Données d''entrée'!$C$334-$B745))/((1+'1 Données d''entrée'!$C$332)^'1 Données d''entrée'!$C$333-1)*'1 Données d''entrée'!$C$332,0)","v":0},{"$f":"IF(E734>0,$K723*((('1 Données d''entrée'!$C$332+1)^'1 Données d''entrée'!$C$333)-(1+'1 Données d''entrée'!$C$332)^('6 Financement'!D$54-1-'1 Données d''entrée'!$C$334-$B745))/((1+'1 Données d''entrée'!$C$332)^'1 Données d''entrée'!$C$333-1)*'1 Données d''entrée'!$C$332,0)","v":0},{"$f":"IF(F734>0,$K723*((('1 Données d''entrée'!$C$332+1)^'1 Données d''entrée'!$C$333)-(1+'1 Données d''entrée'!$C$332)^('6 Financement'!E$54-1-'1 Données d''entrée'!$C$334-$B745))/((1+'1 Données d''entrée'!$C$332)^'1 Données d''entrée'!$C$333-1)*'1 Données d''entrée'!$C$332,0)","v":0},{"$f":"IF(G734>0,$K723*((('1 Données d''entrée'!$C$332+1)^'1 Données d''entrée'!$C$333)-(1+'1 Données d''entrée'!$C$332)^('6 Financement'!F$54-1-'1 Données d''entrée'!$C$334-$B745))/((1+'1 Données d''entrée'!$C$332)^'1 Données d''entrée'!$C$333-1)*'1 Données d''entrée'!$C$332,0)","v":0},{"$f":"IF(H734>0,$K723*((('1 Données d''entrée'!$C$332+1)^'1 Données d''entrée'!$C$333)-(1+'1 Données d''entrée'!$C$332)^('6 Financement'!G$54-1-'1 Données d''entrée'!$C$334-$B745))/((1+'1 Données d''entrée'!$C$332)^'1 Données d''entrée'!$C$333-1)*'1 Données d''entrée'!$C$332,0)","v":0},{"$f":"IF(I734>0,$K723*((('1 Données d''entrée'!$C$332+1)^'1 Données d''entrée'!$C$333)-(1+'1 Données d''entrée'!$C$332)^('6 Financement'!H$54-1-'1 Données d''entrée'!$C$334-$B745))/((1+'1 Données d''entrée'!$C$332)^'1 Données d''entrée'!$C$333-1)*'1 Données d''entrée'!$C$332,0)","v":0},{"$f":"IF(J734>0,$K723*((('1 Données d''entrée'!$C$332+1)^'1 Données d''entrée'!$C$333)-(1+'1 Données d''entrée'!$C$332)^('6 Financement'!I$54-1-'1 Données d''entrée'!$C$334-$B745))/((1+'1 Données d''entrée'!$C$332)^'1 Données d''entrée'!$C$333-1)*'1 Données d''entrée'!$C$332,0)","v":0},{"$f":"IF(K734>0,$K723*((('1 Données d''entrée'!$C$332+1)^'1 Données d''entrée'!$C$333)-(1+'1 Données d''entrée'!$C$332)^('6 Financement'!J$54-1-'1 Données d''entrée'!$C$334-$B745))/((1+'1 Données d''entrée'!$C$332)^'1 Données d''entrée'!$C$333-1)*'1 Données d''entrée'!$C$332,0)","v":0},{"$f":"IF(L734>0,$K723*((('1 Données d''entrée'!$C$332+1)^'1 Données d''entrée'!$C$333)-(1+'1 Données d''entrée'!$C$332)^('6 Financement'!K$54-1-'1 Données d''entrée'!$C$334-$B745))/((1+'1 Données d''entrée'!$C$332)^'1 Données d''entrée'!$C$333-1)*'1 Données d''entrée'!$C$332,0)","v":0},{"$f":"IF(M734>0,$K723*((('1 Données d''entrée'!$C$332+1)^'1 Données d''entrée'!$C$333)-(1+'1 Données d''entrée'!$C$332)^('6 Financement'!L$54-1-'1 Données d''entrée'!$C$334-$B745))/((1+'1 Données d''entrée'!$C$332)^'1 Données d''entrée'!$C$333-1)*'1 Données d''entrée'!$C$332,0)","v":0},{"$f":"IF(N734>0,$K723*((('1 Données d''entrée'!$C$332+1)^'1 Données d''entrée'!$C$333)-(1+'1 Données d''entrée'!$C$332)^('6 Financement'!M$54-1-'1 Données d''entrée'!$C$334-$B745))/((1+'1 Données d''entrée'!$C$332)^'1 Données d''entrée'!$C$333-1)*'1 Données d''entrée'!$C$332,0)","v":0},{"$f":"IF(O734>0,$K723*((('1 Données d''entrée'!$C$332+1)^'1 Données d''entrée'!$C$333)-(1+'1 Données d''entrée'!$C$332)^('6 Financement'!N$54-1-'1 Données d''entrée'!$C$334-$B745))/((1+'1 Données d''entrée'!$C$332)^'1 Données d''entrée'!$C$333-1)*'1 Données d''entrée'!$C$332,0)","v":0},{"$f":"IF(P734>0,$K723*((('1 Données d''entrée'!$C$332+1)^'1 Données d''entrée'!$C$333)-(1+'1 Données d''entrée'!$C$332)^('6 Financement'!O$54-1-'1 Données d''entrée'!$C$334-$B745))/((1+'1 Données d''entrée'!$C$332)^'1 Données d''entrée'!$C$333-1)*'1 Données d''entrée'!$C$332,0)","v":0},{"$f":"IF(Q734>0,$K723*((('1 Données d''entrée'!$C$332+1)^'1 Données d''entrée'!$C$333)-(1+'1 Données d''entrée'!$C$332)^('6 Financement'!P$54-1-'1 Données d''entrée'!$C$334-$B745))/((1+'1 Données d''entrée'!$C$332)^'1 Données d''entrée'!$C$333-1)*'1 Données d''entrée'!$C$332,0)","v":0},{"$f":"IF(R734>0,$K723*((('1 Données d''entrée'!$C$332+1)^'1 Données d''entrée'!$C$333)-(1+'1 Données d''entrée'!$C$332)^('6 Financement'!Q$54-1-'1 Données d''entrée'!$C$334-$B745))/((1+'1 Données d''entrée'!$C$332)^'1 Données d''entrée'!$C$333-1)*'1 Données d''entrée'!$C$332,0)","v":0},{"$f":"IF(S734>0,$K723*((('1 Données d''entrée'!$C$332+1)^'1 Données d''entrée'!$C$333)-(1+'1 Données d''entrée'!$C$332)^('6 Financement'!R$54-1-'1 Données d''entrée'!$C$334-$B745))/((1+'1 Données d''entrée'!$C$332)^'1 Données d''entrée'!$C$333-1)*'1 Données d''entrée'!$C$332,0)","v":0},{"$f":"IF(T734>0,$K723*((('1 Données d''entrée'!$C$332+1)^'1 Données d''entrée'!$C$333)-(1+'1 Données d''entrée'!$C$332)^('6 Financement'!S$54-1-'1 Données d''entrée'!$C$334-$B745))/((1+'1 Données d''entrée'!$C$332)^'1 Données d''entrée'!$C$333-1)*'1 Données d''entrée'!$C$332,0)","v":0},{"$f":"IF(U734>0,$K723*((('1 Données d''entrée'!$C$332+1)^'1 Données d''entrée'!$C$333)-(1+'1 Données d''entrée'!$C$332)^('6 Financement'!T$54-1-'1 Données d''entrée'!$C$334-$B745))/((1+'1 Données d''entrée'!$C$332)^'1 Données d''entrée'!$C$333-1)*'1 Données d''entrée'!$C$332,0)","v":0},{"$f":"IF(V734>0,$K723*((('1 Données d''entrée'!$C$332+1)^'1 Données d''entrée'!$C$333)-(1+'1 Données d''entrée'!$C$332)^('6 Financement'!U$54-1-'1 Données d''entrée'!$C$334-$B745))/((1+'1 Données d''entrée'!$C$332)^'1 Données d''entrée'!$C$333-1)*'1 Données d''entrée'!$C$332,0)","v":0}]
["Paiement d'intêrets",10,0,{"$f":"IF(D735>0,$L723*((('1 Données d''entrée'!$C$332+1)^'1 Données d''entrée'!$C$333)-(1+'1 Données d''entrée'!$C$332)^('6 Financement'!C$54-1-'1 Données d''entrée'!$C$334-$B746))/((1+'1 Données d''entrée'!$C$332)^'1 Données d''entrée'!$C$333-1)*'1 Données d''entrée'!$C$332,0)","v":0},{"$f":"IF(E735>0,$L723*((('1 Données d''entrée'!$C$332+1)^'1 Données d''entrée'!$C$333)-(1+'1 Données d''entrée'!$C$332)^('6 Financement'!D$54-1-'1 Données d''entrée'!$C$334-$B746))/((1+'1 Données d''entrée'!$C$332)^'1 Données d''entrée'!$C$333-1)*'1 Données d''entrée'!$C$332,0)","v":0},{"$f":"IF(F735>0,$L723*((('1 Données d''entrée'!$C$332+1)^'1 Données d''entrée'!$C$333)-(1+'1 Données d''entrée'!$C$332)^('6 Financement'!E$54-1-'1 Données d''entrée'!$C$334-$B746))/((1+'1 Données d''entrée'!$C$332)^'1 Données d''entrée'!$C$333-1)*'1 Données d''entrée'!$C$332,0)","v":0},{"$f":"IF(G735>0,$L723*((('1 Données d''entrée'!$C$332+1)^'1 Données d''entrée'!$C$333)-(1+'1 Données d''entrée'!$C$332)^('6 Financement'!F$54-1-'1 Données d''entrée'!$C$334-$B746))/((1+'1 Données d''entrée'!$C$332)^'1 Données d''entrée'!$C$333-1)*'1 Données d''entrée'!$C$332,0)","v":0},{"$f":"IF(H735>0,$L723*((('1 Données d''entrée'!$C$332+1)^'1 Données d''entrée'!$C$333)-(1+'1 Données d''entrée'!$C$332)^('6 Financement'!G$54-1-'1 Données d''entrée'!$C$334-$B746))/((1+'1 Données d''entrée'!$C$332)^'1 Données d''entrée'!$C$333-1)*'1 Données d''entrée'!$C$332,0)","v":0},{"$f":"IF(I735>0,$L723*((('1 Données d''entrée'!$C$332+1)^'1 Données d''entrée'!$C$333)-(1+'1 Données d''entrée'!$C$332)^('6 Financement'!H$54-1-'1 Données d''entrée'!$C$334-$B746))/((1+'1 Données d''entrée'!$C$332)^'1 Données d''entrée'!$C$333-1)*'1 Données d''entrée'!$C$332,0)","v":0},{"$f":"IF(J735>0,$L723*((('1 Données d''entrée'!$C$332+1)^'1 Données d''entrée'!$C$333)-(1+'1 Données d''entrée'!$C$332)^('6 Financement'!I$54-1-'1 Données d''entrée'!$C$334-$B746))/((1+'1 Données d''entrée'!$C$332)^'1 Données d''entrée'!$C$333-1)*'1 Données d''entrée'!$C$332,0)","v":0},{"$f":"IF(K735>0,$L723*((('1 Données d''entrée'!$C$332+1)^'1 Données d''entrée'!$C$333)-(1+'1 Données d''entrée'!$C$332)^('6 Financement'!J$54-1-'1 Données d''entrée'!$C$334-$B746))/((1+'1 Données d''entrée'!$C$332)^'1 Données d''entrée'!$C$333-1)*'1 Données d''entrée'!$C$332,0)","v":0},{"$f":"IF(L735>0,$L723*((('1 Données d''entrée'!$C$332+1)^'1 Données d''entrée'!$C$333)-(1+'1 Données d''entrée'!$C$332)^('6 Financement'!K$54-1-'1 Données d''entrée'!$C$334-$B746))/((1+'1 Données d''entrée'!$C$332)^'1 Données d''entrée'!$C$333-1)*'1 Données d''entrée'!$C$332,0)","v":0},{"$f":"IF(M735>0,$L723*((('1 Données d''entrée'!$C$332+1)^'1 Données d''entrée'!$C$333)-(1+'1 Données d''entrée'!$C$332)^('6 Financement'!L$54-1-'1 Données d''entrée'!$C$334-$B746))/((1+'1 Données d''entrée'!$C$332)^'1 Données d''entrée'!$C$333-1)*'1 Données d''entrée'!$C$332,0)","v":0},{"$f":"IF(N735>0,$L723*((('1 Données d''entrée'!$C$332+1)^'1 Données d''entrée'!$C$333)-(1+'1 Données d''entrée'!$C$332)^('6 Financement'!M$54-1-'1 Données d''entrée'!$C$334-$B746))/((1+'1 Données d''entrée'!$C$332)^'1 Données d''entrée'!$C$333-1)*'1 Données d''entrée'!$C$332,0)","v":0},{"$f":"IF(O735>0,$L723*((('1 Données d''entrée'!$C$332+1)^'1 Données d''entrée'!$C$333)-(1+'1 Données d''entrée'!$C$332)^('6 Financement'!N$54-1-'1 Données d''entrée'!$C$334-$B746))/((1+'1 Données d''entrée'!$C$332)^'1 Données d''entrée'!$C$333-1)*'1 Données d''entrée'!$C$332,0)","v":0},{"$f":"IF(P735>0,$L723*((('1 Données d''entrée'!$C$332+1)^'1 Données d''entrée'!$C$333)-(1+'1 Données d''entrée'!$C$332)^('6 Financement'!O$54-1-'1 Données d''entrée'!$C$334-$B746))/((1+'1 Données d''entrée'!$C$332)^'1 Données d''entrée'!$C$333-1)*'1 Données d''entrée'!$C$332,0)","v":0},{"$f":"IF(Q735>0,$L723*((('1 Données d''entrée'!$C$332+1)^'1 Données d''entrée'!$C$333)-(1+'1 Données d''entrée'!$C$332)^('6 Financement'!P$54-1-'1 Données d''entrée'!$C$334-$B746))/((1+'1 Données d''entrée'!$C$332)^'1 Données d''entrée'!$C$333-1)*'1 Données d''entrée'!$C$332,0)","v":0},{"$f":"IF(R735>0,$L723*((('1 Données d''entrée'!$C$332+1)^'1 Données d''entrée'!$C$333)-(1+'1 Données d''entrée'!$C$332)^('6 Financement'!Q$54-1-'1 Données d''entrée'!$C$334-$B746))/((1+'1 Données d''entrée'!$C$332)^'1 Données d''entrée'!$C$333-1)*'1 Données d''entrée'!$C$332,0)","v":0},{"$f":"IF(S735>0,$L723*((('1 Données d''entrée'!$C$332+1)^'1 Données d''entrée'!$C$333)-(1+'1 Données d''entrée'!$C$332)^('6 Financement'!R$54-1-'1 Données d''entrée'!$C$334-$B746))/((1+'1 Données d''entrée'!$C$332)^'1 Données d''entrée'!$C$333-1)*'1 Données d''entrée'!$C$332,0)","v":0},{"$f":"IF(T735>0,$L723*((('1 Données d''entrée'!$C$332+1)^'1 Données d''entrée'!$C$333)-(1+'1 Données d''entrée'!$C$332)^('6 Financement'!S$54-1-'1 Données d''entrée'!$C$334-$B746))/((1+'1 Données d''entrée'!$C$332)^'1 Données d''entrée'!$C$333-1)*'1 Données d''entrée'!$C$332,0)","v":0},{"$f":"IF(U735>0,$L723*((('1 Données d''entrée'!$C$332+1)^'1 Données d''entrée'!$C$333)-(1+'1 Données d''entrée'!$C$332)^('6 Financement'!T$54-1-'1 Données d''entrée'!$C$334-$B746))/((1+'1 Données d''entrée'!$C$332)^'1 Données d''entrée'!$C$333-1)*'1 Données d''entrée'!$C$332,0)","v":0},{"$f":"IF(V735>0,$L723*((('1 Données d''entrée'!$C$332+1)^'1 Données d''entrée'!$C$333)-(1+'1 Données d''entrée'!$C$332)^('6 Financement'!U$54-1-'1 Données d''entrée'!$C$334-$B746))/((1+'1 Données d''entrée'!$C$332)^'1 Données d''entrée'!$C$333-1)*'1 Données d''entrée'!$C$332,0)","v":0}]
[]
["Solde du comte (par période)",null,{"$f":"C659+IF($B$103>0,C667-SUM(C669:C679)-SUM(C681:C691),0)+IF($B$131>0,C695-SUM(C697:C707)-SUM(C709:C719),0)+IF($B$159>0,C723-SUM(C725:C735),0)","v":{"$error":"#DIV/0!"}},{"$f":"D659+IF($B$103>0,D667-SUM(D669:D679)-SUM(D681:D691),0)+IF($B$131>0,D695-SUM(D697:D707)-SUM(D709:D719),0)+IF($B$159>0,D723-SUM(D725:D735),0)","v":{"$error":"#DIV/0!"}},{"$error":"#DIV/0!"},{"$error":"#DIV/0!"},{"$error":"#DIV/0!"},{"$error":"#DIV/0!"},{"$error":"#DIV/0!"},{"$error":"#DIV/0!"},{"$error":"#DIV/0!"},{"$error":"#DIV/0!"},{"$error":"#DIV/0!"},{"$error":"#DIV/0!"},{"$error":"#DIV/0!"},{"$error":"#DIV/0!"},{"$error":"#DIV/0!"},{"$error":"#DIV/0!"},{"$error":"#DIV/0!"},{"$error":"#DIV/0!"},{"$error":"#DIV/0!"},{"$error":"#DIV/0!"}]
["Solde du compte (cumulé)",null,{"$f":"C749+B660","v":{"$error":"#DIV/0!"}},{"$f":"C750+D749","v":{"$error":"#DIV/0!"}},{"$error":"#DIV/0!"},{"$error":"#DIV/0!"},{"$error":"#DIV/0!"},{"$error":"#DIV/0!"},{"$error":"#DIV/0!"},{"$error":"#DIV/0!"},{"$error":"#DIV/0!"},{"$error":"#DIV/0!"},{"$error":"#DIV/0!"},{"$error":"#DIV/0!"},{"$error":"#DIV/0!"},{"$error":"#DIV/0!"},{"$error":"#DIV/0!"},{"$error":"#DIV/0!"},{"$error":"#DIV/0!"},{"$error":"#DIV/0!"},{"$error":"#DIV/0!"},{"$error":"#DIV/0!"}]
[]
[]
["Coût du financement","Période",1,2,3,4,5,6,7,8,9,10,11,12,13,14,15,16,17,18,19,20]
["Paiement d'intérêt par période",null,{"$f":"IF($B625>0,(C628+C629),0)+IF($B630>0,(C633+C634),0)+IF($B635>0,C638+C639,0)+IF($B642>0,(C645+C646),0)+IF($B647>0,(C650+C651),0)+IF($B652>0,C655+C656,0)+IF($B664>0,SUM(C681:C691),0)+IF($B694>0,SUM(C709:C719),0)+IF($B722>0,SUM(C737:C747),0)","v":0},{"$f":"IF($B625>0,(D628+D629),0)+IF($B630>0,(D633+D634),0)+IF($B635>0,D638+D639,0)+IF($B642>0,(D645+D646),0)+IF($B647>0,(D650+D651),0)+IF($B652>0,D655+D656,0)+IF($B664>0,SUM(D681:D691),0)+IF($B694>0,SUM(D709:D719),0)+IF($B722>0,SUM(D737:D747),0)","v":0},0,0,0,0,0,0,0,0,0,0,0,0,0,0,0,0,0,0]
["Remboursement du principal par période",null,{"$f":"IF($B625>0,(C627),0)+IF($B630>0,(C632),0)+IF($B635>0,IF(C637>0,C637-C638,0),0)+IF($B642>0,(C644),0)+IF($B647>0,(C649),0)+IF($B652>0,IF(C654>0,C654-C655,0),0)+IF($B666>0,SUM(C669:C679),0)+IF($B694>0,SUM(C697:C707),0)+IF($B722>0,SUM(C725:C735)-SUM(C737:C747),0)","v":0},{"$f":"IF($B625>0,(D627),0)+IF($B630>0,(D632),0)+IF($B635>0,IF(D637>0,D637-D638,0),0)+IF($B642>0,(D644),0)+IF($B647>0,(D649),0)+IF($B652>0,IF(D654>0,D654-D655,0),0)+IF($B666>0,SUM(D669:D679),0)+IF($B694>0,SUM(D697:D707),0)+IF($B722>0,SUM(D725:D735)-SUM(D737:D747),0)","v":0},0,0,0,0,0,0,0,0,0,0,0,0,0,0,0,0,0,0]
[]
[]
["Flux de trésorerie net       "]
["Période (t)","Flux de trésorerie       brut","Coût de financement ","Subventions","Flux de trésorerie       intermédiaires (avec coût fin. et Subventions)","Flux de trésorerie      , taxe contenue","Flux de trésorerie       cumulé, taxe contenue","Période de remboursement"]
[0,{"$f":"'5 Flux de trésorerie brut'!$D$7","v":{"$error":"#DIV/0!"}},0,{"$f":"B623+B641","v":0},{"$f":"D760-C760+B760","v":{"$error":"#DIV/0!"}},{"$f":"IF(E760>0,(E760-E760*'1 Données d''entrée'!$C$353-IF('5 Flux de trésorerie brut'!$D$7>0,'1 Données d''entrée'!$C$357*'5 Flux de trésorerie brut'!$D$7,0)),E760)","v":{"$error":"#DIV/0!"}},{"$f":"F760","v":{"$error":"#DIV/0!"}},{"$f":"IF(G760<0,\" \",A760)","v":{"$error":"#DIV/0!"}}]
[1,{"$f":"'5 Flux de trésorerie brut'!$D$8","v":{"$error":"#DIV/0!"}},{"$f":"C754+C755","v":0},0,{"$f":"D761-C761+B761","v":{"$error":"#DIV/0!"}},{"$f":"IF(E761>0,(E761-E761*'1 Données d''entrée'!$C$353-IF('5 Flux de trésorerie brut'!$D$8>0,'1 Données d''entrée'!$C$357*'5 Flux de trésorerie brut'!$D$8,0)),E761)","v":{"$error":"#DIV/0!"}},{"$f":"G760+F761","v":{"$error":"#DIV/0!"}},{"$f":"IF(G761<0,\" \",IF(SUM(H760:H760)>0,\" \",IF(H760=0,\" \",A761)))","v":{"$error":"#DIV/0!"}}]
[2,{"$f":"'5 Flux de trésorerie brut'!$D$9","v":{"$error":"#DIV/0!"}},{"$f":"D754+D755","v":0},0,{"$error":"#DIV/0!"},{"$f":"IF(E762>0,(E762-E762*'1 Données d''entrée'!$C$353-IF('5 Flux de trésorerie brut'!$D$9>0,'1 Données d''entrée'!$C$357*'5 Flux de trésorerie brut'!$D$9,0)),E762)","v":{"$error":"#DIV/0!"}},{"$error":"#DIV/0!"},{"$f":"IF(G762<0,\" \",IF(SUM(H760:H761)>0,\" \",IF(H760=0,\" \",A762)))","v":{"$error":"#DIV/0!"}}]
[3,{"$f":"'5 Flux de trésorerie brut'!$D$10","v":{"$error":"#DIV/0!"}},{"$f":"E754+E755","v":0},0,{"$error":"#DIV/0!"},{"$f":"IF(E763>0,(E763-E763*'1 Données d''entrée'!$C$353-IF('5 Flux de trésorerie brut'!$D$10>0,'1 Données d''entrée'!$C$357*'5 Flux de trésorerie brut'!$D$10,0)),E763)","v":{"$error":"#DIV/0!"}},{"$error":"#DIV/0!"},{"$f":"IF(G763<0,\" \",IF(SUM(H760:H762)>0,\" \",IF(H760=0,\" \",A763)))","v":{"$error":"#DIV/0!"}}]
[4,{"$f":"'5 Flux de trésorerie brut'!$D$11","v":{"$error":"#DIV/0!"}},{"$f":"F754+F755","v":0},0,{"$error":"#DIV/0!"},{"$f":"IF(E764>0,(E764-E764*'1 Données d''entrée'!$C$353-IF('5 Flux de trésorerie brut'!$D$11>0,'1 Données d''entrée'!$C$357*'5 Flux de trésorerie brut'!$D$11,0)),E764)","v":{"$error":"#DIV/0!"}},{"$error":"#DIV/0!"},{"$f":"IF(G764<0,\" \",IF(SUM(H760:H763)>0,\" \",IF(H760=0,\" \",A764)))","v":{"$error":"#DIV/0!"}}]
[5,{"$f":"'5 Flux de trésorerie brut'!$D$12","v":{"$error":"#DIV/0!"}},{"$f":"G754+G755","v":0},0,{"$error":"#DIV/0!"},{"$f":"IF(E765>0,(E765-E765*'1 Données d''entrée'!$C$353-IF('5 Flux de trésorerie brut'!$D$12>0,'1 Données d''entrée'!$C$357*'5 Flux de trésorerie brut'!$D$12,0)),E765)","v":{"$error":"#DIV/0!"}},{"$error":"#DIV/0!"},{"$f":"IF(G765<0,\" \",IF(SUM(H760:H764)>0,\" \",IF(H760=0,\" \",A765)))","v":{"$error":"#DIV/0!"}}]
[6,{"$f":"'5 Flux de trésorerie brut'!$D$13","v":{"$error":"#DIV/0!"}},{"$f":"H754+H755","v":0},0,{"$error":"#DIV/0!"},{"$f":"IF(E766>0,(E766-E766*'1 Données d''entrée'!$C$353-IF('5 Flux de trésorerie brut'!$D$13>0,'1 Données d''entrée'!$C$357*'5 Flux de trésorerie brut'!$D$13,0)),E766)","v":{"$error":"#DIV/0!"}},{"$error":"#DIV/0!"},{"$f":"IF(G766<0,\" \",IF(SUM(H760:H765)>0,\" \",IF(H760=0,\" \",A766)))","v":{"$error":"#DIV/0!"}}]
[7,{"$f":"'5 Flux de trésorerie brut'!$D$14","v":{"$error":"#DIV/0!"}},{"$f":"I754+I755","v":0},0,{"$error":"#DIV/0!"},{"$f":"IF(E767>0,(E767-E767*'1 Données d''entrée'!$C$353-IF('5 Flux de trésorerie brut'!$D$14>0,'1 Données d''entrée'!$C$357*'5 Flux de trésorerie brut'!$D$14,0)),E767)","v":{"$error":"#DIV/0!"}},{"$error":"#DIV/0!"},{"$f":"IF(G767<0,\" \",IF(SUM(H760:H766)>0,\" \",IF(H760=0,\" \",A767)))","v":{"$error":"#DIV/0!"}}]
[8,{"$f":"'5 Flux de trésorerie brut'!$D$15","v":{"$error":"#DIV/0!"}},{"$f":"J754+J755","v":0},0,{"$error":"#DIV/0!"},{"$f":"IF(E768>0,(E768-E768*'1 Données d''entrée'!$C$353-IF('5 Flux de trésorerie brut'!$D$15>0,'1 Données d''entrée'!$C$357*'5 Flux de trésorerie brut'!$D$15,0)),E768)","v":{"$error":"#DIV/0!"}},{"$error":"#DIV/0!"},{"$f":"IF(G768<0,\" \",IF(SUM(H760:H767)>0,\" \",IF(H760=0,\" \",A768)))","v":{"$error":"#DIV/0!"}}]
[9,{"$f":"'5 Flux de trésorerie brut'!$D$16","v":{"$error":"#DIV/0!"}},{"$f":"K754+K755","v":0},0,{"$error":"#DIV/0!"},{"$f":"IF(E769>0,(E769-E769*'1 Données d''entrée'!$C$353-IF('5 Flux de trésorerie brut'!$D$16>0,'1 Données d''entrée'!$C$357*'5 Flux de trésorerie brut'!$D$16,0)),E769)","v":{"$error":"#DIV/0!"}},{"$error":"#DIV/0!"},{"$f":"IF(G769<0,\" \",IF(SUM(H760:H768)>0,\" \",IF(H760=0,\" \",A769)))","v":{"$error":"#DIV/0!"}}]
[10,{"$f":"'5 Flux de trésorerie brut'!$D$17","v":{"$error":"#DIV/0!"}},{"$f":"L754+L755","v":0},0,{"$error":"#DIV/0!"},{"$f":"IF(E770>0,(E770-E770*'1 Données d''entrée'!$C$353-IF('5 Flux de trésorerie brut'!$D$17>0,'1 Données d''entrée'!$C$357*'5 Flux de trésorerie brut'!$D$17,0)),E770)","v":{"$error":"#DIV/0!"}},{"$error":"#DIV/0!"},{"$f":"IF(G770<0,\" \",IF(SUM(H760:H769)>0,\" \",IF(H760=0,\" \",A770)))","v":{"$error":"#DIV/0!"}}]
[11,{"$f":"'5 Flux de trésorerie brut'!$D$18","v":{"$error":"#DIV/0!"}},{"$f":"M754+M755","v":0},0,{"$error":"#DIV/0!"},{"$f":"IF(E771>0,(E771-E771*'1 Données d''entrée'!$C$353-IF('5 Flux de trésorerie brut'!$D$18>0,'1 Données d''entrée'!$C$357*'5 Flux de trésorerie brut'!$D$18,0)),E771)","v":{"$error":"#DIV/0!"}},{"$error":"#DIV/0!"},{"$f":"IF(G771<0,\" \",IF(SUM(H760:H770)>0,\" \",IF(H760=0,\" \",A771)))","v":{"$error":"#DIV/0!"}}]
[12,{"$f":"'5 Flux de trésorerie brut'!$D$19","v":{"$error":"#DIV/0!"}},{"$f":"N754+N755","v":0},0,{"$error":"#DIV/0!"},{"$f":"IF(E772>0,(E772-E772*'1 Données d''entrée'!$C$353-IF('5 Flux de trésorerie brut'!$D$19>0,'1 Données d''entrée'!$C$357*'5 Flux de trésorerie brut'!$D$19,0)),E772)","v":{"$error":"#DIV/0!"}},{"$error":"#DIV/0!"},{"$f":"IF(G772<0,\" \",IF(SUM(H760:H771)>0,\" \",IF(H760=0,\" \",A772)))","v":{"$error":"#DIV/0!"}}]
[13,{"$f":"'5 Flux de trésorerie brut'!$D$20","v":{"$error":"#DIV/0!"}},{"$f":"O754+O755","v":0},0,{"$error":"#DIV/0!"},{"$f":"IF(E773>0,(E773-E773*'1 Données d''entrée'!$C$353-IF('5 Flux de trésorerie brut'!$D$20>0,'1 Données d''entrée'!$C$357*'5 Flux de trésorerie brut'!$D$20,0)),E773)","v":{"$error":"#DIV/0!"}},{"$error":"#DIV/0!"},{"$f":"IF(G773<0,\" \",IF(SUM(H760:H772)>0,\" \",IF(H760=0,\" \",A773)))","v":{"$error":"#DIV/0!"}}]
[14,{"$f":"'5 Flux de trésorerie brut'!$D$21","v":{"$error":"#DIV/0!"}},{"$f":"P754+P755","v":0},0,{"$error":"#DIV/0!"},{"$f":"IF(E774>0,(E774-E774*'1 Données d''entrée'!$C$353-IF('5 Flux de trésorerie brut'!$D$21>0,'1 Données d''entrée'!$C$357*'5 Flux de trésorerie brut'!$D$21,0)),E774)","v":{"$error":"#DIV/0!"}},{"$error":"#DIV/0!"},{"$f":"IF(G774<0,\" \",IF(SUM(H760:H773)>0,\" \",IF(H760=0,\" \",A774)))","v":{"$error":"#DIV/0!"}}]
[15,{"$f":"'5 Flux de trésorerie brut'!$D$22","v":{"$error":"#DIV/0!"}},{"$f":"Q754+Q755","v":0},0,{"$error":"#DIV/0!"},{"$f":"IF(E775>0,(E775-E775*'1 Données d''entrée'!$C$353-IF('5 Flux de trésorerie brut'!$D$22>0,'1 Données d''entrée'!$C$357*'5 Flux de trésorerie brut'!$D$22,0)),E775)","v":{"$error":"#DIV/0!"}},{"$error":"#DIV/0!"},{"$f":"IF(G775<0,\" \",IF(SUM(H760:H774)>0,\" \",IF(H760=0,\" \",A775)))","v":{"$error":"#DIV/0!"}}]
[16,{"$f":"'5 Flux de trésorerie brut'!$D$23","v":{"$error":"#DIV/0!"}},{"$f":"R754+R755","v":0},0,{"$error":"#DIV/0!"},{"$f":"IF(E776>0,(E776-E776*'1 Données d''entrée'!$C$353-IF('5 Flux de trésorerie brut'!$D$23>0,'1 Données d''entrée'!$C$357*'5 Flux de trésorerie brut'!$D$23,0)),E776)","v":{"$error":"#DIV/0!"}},{"$error":"#DIV/0!"},{"$f":"IF(G776<0,\" \",IF(SUM(H760:H775)>0,\" \",IF(H760=0,\" \",A776)))","v":{"$error":"#DIV/0!"}}]
[17,{"$f":"'5 Flux de trésorerie brut'!$D$24","v":{"$error":"#DIV/0!"}},{"$f":"S754+S755","v":0},0,{"$error":"#DIV/0!"},{"$f":"IF(E777>0,(E777-E777*'1 Données d''entrée'!$C$353-IF('5 Flux de trésorerie brut'!$D$24>0,'1 Données d''entrée'!$C$357*'5 Flux de trésorerie brut'!$D$24,0)),E777)","v":{"$error":"#DIV/0!"}},{"$error":"#DIV/0!"},{"$f":"IF(G777<0,\" \",IF(SUM(H760:H776)>0,\" \",IF(H760=0,\" \",A777)))","v":{"$error":"#DIV/0!"}}]
[18,{"$f":"'5 Flux de trésorerie brut'!$D$25","v":{"$error":"#DIV/0!"}},{"$f":"T754+T755","v":0},0,{"$error":"#DIV/0!"},{"$f":"IF(E778>0,(E778-E778*'1 Données d''entrée'!$C$353-IF('5 Flux de trésorerie brut'!$D$25>0,'1 Données d''entrée'!$C$357*'5 Flux de trésorerie brut'!$D$25,0)),E778)","v":{"$error":"#DIV/0!"}},{"$error":"#DIV/0!"},{"$f":"IF(G778<0,\" \",IF(SUM(H760:H777)>0,\" \",IF(H760=0,\" \",A778)))","v":{"$error":"#DIV/0!"}}]
[19,{"$f":"'5 Flux de trésorerie brut'!$D$26","v":{"$error":"#DIV/0!"}},{"$f":"U754+U755","v":0},0,{"$error":"#DIV/0!"},{"$f":"IF(E779>0,(E779-E779*'1 Données d''entrée'!$C$353-IF('5 Flux de trésorerie brut'!$D$26>0,'1 Données d''entrée'!$C$357*'5 Flux de trésorerie brut'!$D$26,0)),E779)","v":{"$error":"#DIV/0!"}},{"$error":"#DIV/0!"},{"$f":"IF(G779<0,\" \",IF(SUM(H760:H778)>0,\" \",IF(H760=0,\" \",A779)))","v":{"$error":"#DIV/0!"}}]
[20,{"$f":"'5 Flux de trésorerie brut'!$D$27","v":{"$error":"#DIV/0!"}},{"$f":"V754+V755","v":0},0,{"$error":"#DIV/0!"},{"$f":"IF(E780>0,(E780-E780*'1 Données d''entrée'!$C$353-IF('5 Flux de trésorerie brut'!$D$27>0,'1 Données d''entrée'!$C$357*'5 Flux de trésorerie brut'!$D$27,0)),E780)","v":{"$error":"#DIV/0!"}},{"$error":"#DIV/0!"},{"$f":"IF(G780<0,\" \",IF(SUM(H760:H779)>0,\" \",IF(H760=0,\" \",A780)))","v":{"$error":"#DIV/0!"}}]
[]
[]
[null,null,"Valeur actuelle nette",{"$f":"NPV('1 Données d''entrée'!$H$28,'10 Subvention d''ADER'!F761:F780)+'10 Subvention d''ADER'!F760","v":{"$error":"#DIV/0!"}}]
[null,null,"Taux de rentabilité interne",{"$f":"IRR(F760:F780)","v":{"$error":"#VALUE!"}}]
[]
[]
[]
[]
[]
[]
["Tableau de calcul avec un taux de subvention de",null,null,0.4]
[]
["Bailleur de fonds","Investissement total par bailleur de fonds (AR)","Quote-part du coût d'investissement initial"]
["Subvention d'ADER",{"$f":"('3 Coût total'!$B$7-'3 Coût total'!$B$42)*C794","v":0},{"$f":"D791","v":0.4}]
["Capitaux propres",{"$f":"'1 Données d''entrée'!$B$294","v":0},{"$f":"'1 Données d''entrée'!$B$294/'3 Coût total'!$B$7","v":{"$error":"#DIV/0!"}}]
["Fonds d'autres donneurs / investisseurs",{"$f":"'1 Données d''entrée'!$B$306+'1 Données d''entrée'!$B$307","v":0},{"$f":"B796/'3 Coût total'!$B$7","v":{"$error":"#DIV/0!"}}]
["Prêt bancaire (effective)",{"$f":"IF(B794+'1 Données d''entrée'!$B$294=0,0,(-1)*'5 Flux de trésorerie brut'!$D$7-(SUM(B794:B796)))","v":0},{"$f":"(1-(C794+C795+C796))","v":{"$error":"#DIV/0!"}}]
[]
["Prêt bancaire avec des frais de gestion",{"$f":"B797+B797*'1 Données d''entrée'!$C$338","v":0},{"$f":"(1-(C794+C795+C796))+(1-(C794+C795+C796))*'1 Données d''entrée'!$C$338","v":{"$error":"#DIV/0!"}}]
[]
["Tableaux de calcul"]
[]
[]
["Scénario financier"]
["Période",0,1,2,3,4,5,6,7,8,9,10,11,12,13,14,15,16,17,18,19,20]
[]
["Flux de trésorerie (brut)",{"$f":"'5 Flux de trésorerie brut'!$D$7","v":{"$error":"#DIV/0!"}},{"$f":"'5 Flux de trésorerie brut'!$D$8","v":{"$error":"#DIV/0!"}},{"$f":"'5 Flux de trésorerie brut'!$D$9","v":{"$error":"#DIV/0!"}},{"$f":"'5 Flux de trésorerie brut'!$D$10","v":{"$error":"#DIV/0!"}},{"$f":"'5 Flux de trésorerie brut'!$D$11","v":{"$error":"#DIV/0!"}},{"$f":"'5 Flux de trésorerie brut'!$D$12","v":{"$error":"#DIV/0!"}},{"$f":"'5 Flux de trésorerie brut'!$D$13","v":{"$error":"#DIV/0!"}},{"$f":"'5 Flux de trésorerie brut'!$D$14","v":{"$error":"#DIV/0!"}},{"$f":"'5 Flux de trésorerie brut'!$D$15","v":{"$error":"#DIV/0!"}},{"$f":"'5 Flux de trésorerie brut'!$D$16","v":{"$error":"#DIV/0!"}},{"$f":"'5 Flux de trésorerie brut'!$D$17","v":{"$error":"#DIV/0!"}},{"$f":"'5 Flux de trésorerie brut'!$D$18","v":{"$error":"#DIV/0!"}},{"$f":"'5 Flux de trésorerie brut'!$D$19","v":{"$error":"#DIV/0!"}},{"$f":"'5 Flux de trésorerie brut'!$D$20","v":{"$error":"#DIV/0!"}},{"$f":"'5 Flux de trésorerie brut'!$D$21","v":{"$error":"#DIV/0!"}},{"$f":"'5 Flux de trésorerie brut'!$D$22","v":{"$error":"#DIV/0!"}},{"$f":"'5 Flux de trésorerie brut'!$D$23","v":{"$error":"#DIV/0!"}},{"$f":"'5 Flux de trésorerie brut'!$D$24","v":{"$error":"#DIV/0!"}},{"$f":"'5 Flux de trésorerie brut'!$D$25","v":{"$error":"#DIV/0!"}},{"$f":"'5 Flux de trésorerie brut'!$D$26","v":{"$error":"#DIV/0!"}},{"$f":"'5 Flux de trésorerie brut'!$D$27","v":{"$error":"#DIV/0!"}}]
[]
["Capitaux propres",{"$f":"'1 Données d''entrée'!$B$294","v":0}]
[]
["Subvention ADER",{"$f":"'3 Coût total'!$B$7*C794","v":0}]
[]
["Prêt bancaire - Option 1: Remboursement du principal fractionné",{"$f":"'1 Données d''entrée'!$B$342","v":0},"% de prêt total"]
["Réception et montant restant",{"$f":"B799*B813","v":0},{"$f":"B814-C815","v":0},0,0,0,0,0,0,0,0,0,0,0,0,0,0,0,0,0,0,0]
["Remboursement du principal",0,{"$f":"IF(C805<'1 Données d''entrée'!$C$334+1,0,IF(C805<'1 Données d''entrée'!$C$333+'1 Données d''entrée'!$C$334+1,($B814/'1 Données d''entrée'!$C$333),0))","v":0},{"$f":"IF(D805<'1 Données d''entrée'!$C$334+1,0,IF(D805<'1 Données d''entrée'!$C$333+'1 Données d''entrée'!$C$334+1,($B814/'1 Données d''entrée'!$C$333),0))","v":0},{"$f":"IF(E805<'1 Données d''entrée'!$C$334+1,0,IF(E805<'1 Données d''entrée'!$C$333+'1 Données d''entrée'!$C$334+1,($B814/'1 Données d''entrée'!$C$333),0))","v":0},{"$f":"IF(F805<'1 Données d''entrée'!$C$334+1,0,IF(F805<'1 Données d''entrée'!$C$333+'1 Données d''entrée'!$C$334+1,($B814/'1 Données d''entrée'!$C$333),0))","v":0},{"$f":"IF(G805<'1 Données d''entrée'!$C$334+1,0,IF(G805<'1 Données d''entrée'!$C$333+'1 Données d''entrée'!$C$334+1,($B814/'1 Données d''entrée'!$C$333),0))","v":0},{"$f":"IF(H805<'1 Données d''entrée'!$C$334+1,0,IF(H805<'1 Données d''entrée'!$C$333+'1 Données d''entrée'!$C$334+1,($B814/'1 Données d''entrée'!$C$333),0))","v":0},{"$f":"IF(I805<'1 Données d''entrée'!$C$334+1,0,IF(I805<'1 Données d''entrée'!$C$333+'1 Données d''entrée'!$C$334+1,($B814/'1 Données d''entrée'!$C$333),0))","v":0},{"$f":"IF(J805<'1 Données d''entrée'!$C$334+1,0,IF(J805<'1 Données d''entrée'!$C$333+'1 Données d''entrée'!$C$334+1,($B814/'1 Données d''entrée'!$C$333),0))","v":0},{"$f":"IF(K805<'1 Données d''entrée'!$C$334+1,0,IF(K805<'1 Données d''entrée'!$C$333+'1 Données d''entrée'!$C$334+1,($B814/'1 Données d''entrée'!$C$333),0))","v":0},{"$f":"IF(L805<'1 Données d''entrée'!$C$334+1,0,IF(L805<'1 Données d''entrée'!$C$333+'1 Données d''entrée'!$C$334+1,($B814/'1 Données d''entrée'!$C$333),0))","v":0},{"$f":"IF(M805<'1 Données d''entrée'!$C$334+1,0,IF(M805<'1 Données d''entrée'!$C$333+'1 Données d''entrée'!$C$334+1,($B814/'1 Données d''entrée'!$C$333),0))","v":0},{"$f":"IF(N805<'1 Données d''entrée'!$C$334+1,0,IF(N805<'1 Données d''entrée'!$C$333+'1 Données d''entrée'!$C$334+1,($B814/'1 Données d''entrée'!$C$333),0))","v":0},{"$f":"IF(O805<'1 Données d''entrée'!$C$334+1,0,IF(O805<'1 Données d''entrée'!$C$333+'1 Données d''entrée'!$C$334+1,($B814/'1 Données d''entrée'!$C$333),0))","v":0},{"$f":"IF(P805<'1 Données d''entrée'!$C$334+1,0,IF(P805<'1 Données d''entrée'!$C$333+'1 Données d''entrée'!$C$334+1,($B814/'1 Données d''entrée'!$C$333),0))","v":0},{"$f":"IF(Q805<'1 Données d''entrée'!$C$334+1,0,IF(Q805<'1 Données d''entrée'!$C$333+'1 Données d''entrée'!$C$334+1,($B814/'1 Données d''entrée'!$C$333),0))","v":0},{"$f":"IF(R805<'1 Données d''entrée'!$C$334+1,0,IF(R805<'1 Données d''entrée'!$C$333+'1 Données d''entrée'!$C$334+1,($B814/'1 Données d''entrée'!$C$333),0))","v":0},{"$f":"IF(S805<'1 Données d''entrée'!$C$334+1,0,IF(S805<'1 Données d''entrée'!$C$333+'1 Données d''entrée'!$C$334+1,($B814/'1 Données d''entrée'!$C$333),0))","v":0},{"$f":"IF(T805<'1 Données d''entrée'!$C$334+1,0,IF(T805<'1 Données d''entrée'!$C$333+'1 Données d''entrée'!$C$334+1,($B814/'1 Données d''entrée'!$C$333),0))","v":0},{"$f":"IF(U805<'1 Données d''entrée'!$C$334+1,0,IF(U805<'1 Données d''entrée'!$C$333+'1 Données d''entrée'!$C$334+1,($B814/'1 Données d''entrée'!$C$333),0))","v":0},{"$f":"IF(V805<'1 Données d''entrée'!$C$334+1,0,IF(V805<'1 Données d''entrée'!$C$333+'1 Données d''entrée'!$C$334+1,($B814/'1 Données d''entrée'!$C$333),0))","v":0}]
["Paiement d'intérêts",0,{"$f":"IF('1 Données d''entrée'!$C$336=\"(=NON)\",IF(C805<'1 Données d''entrée'!$C$334+1,0,B814*'1 Données d''entrée'!$C$332),B814*'1 Données d''entrée'!$C$332)","v":0},{"$f":"IF('1 Données d''entrée'!$C$336=\"(=NON)\",IF(D805<'1 Données d''entrée'!$C$334+1,0,C814*'1 Données d''entrée'!$C$332),C814*'1 Données d''entrée'!$C$332)","v":0},{"$f":"IF('1 Données d''entrée'!$C$336=\"(=NON)\",IF(E805<'1 Données d''entrée'!$C$334+1,0,D814*'1 Données d''entrée'!$C$332),D814*'1 Données d''entrée'!$C$332)","v":0},{"$f":"IF('1 Données d''entrée'!$C$336=\"(=NON)\",IF(F805<'1 Données d''entrée'!$C$334+1,0,E814*'1 Données d''entrée'!$C$332),E814*'1 Données d''entrée'!$C$332)","v":0},{"$f":"IF('1 Données d''entrée'!$C$336=\"(=NON)\",IF(G805<'1 Données d''entrée'!$C$334+1,0,F814*'1 Données d''entrée'!$C$332),F814*'1 Données d''entrée'!$C$332)","v":0},{"$f":"IF('1 Données d''entrée'!$C$336=\"(=NON)\",IF(H805<'1 Données d''entrée'!$C$334+1,0,G814*'1 Données d''entrée'!$C$332),G814*'1 Données d''entrée'!$C$332)","v":0},{"$f":"IF('1 Données d''entrée'!$C$336=\"(=NON)\",IF(I805<'1 Données d''entrée'!$C$334+1,0,H814*'1 Données d''entrée'!$C$332),H814*'1 Données d''entrée'!$C$332)","v":0},{"$f":"IF('1 Données d''entrée'!$C$336=\"(=NON)\",IF(J805<'1 Données d''entrée'!$C$334+1,0,I814*'1 Données d''entrée'!$C$332),I814*'1 Données d''entrée'!$C$332)","v":0},{"$f":"IF('1 Données d''entrée'!$C$336=\"(=NON)\",IF(K805<'1 Données d''entrée'!$C$334+1,0,J814*'1 Données d''entrée'!$C$332),J814*'1 Données d''entrée'!$C$332)","v":0},{"$f":"IF('1 Données d''entrée'!$C$336=\"(=NON)\",IF(L805<'1 Données d''entrée'!$C$334+1,0,K814*'1 Données d''entrée'!$C$332),K814*'1 Données d''entrée'!$C$332)","v":0},{"$f":"IF('1 Données d''entrée'!$C$336=\"(=NON)\",IF(M805<'1 Données d''entrée'!$C$334+1,0,L814*'1 Données d''entrée'!$C$332),L814*'1 Données d''entrée'!$C$332)","v":0},{"$f":"IF('1 Données d''entrée'!$C$336=\"(=NON)\",IF(N805<'1 Données d''entrée'!$C$334+1,0,M814*'1 Données d''entrée'!$C$332),M814*'1 Données d''entrée'!$C$332)","v":0},{"$f":"IF('1 Données d''entrée'!$C$336=\"(=NON)\",IF(O805<'1 Données d''entrée'!$C$334+1,0,N814*'1 Données d''entrée'!$C$332),N814*'1 Données d''entrée'!$C$332)","v":0},{"$f":"IF('1 Données d''entrée'!$C$336=\"(=NON)\",IF(P805<'1 Données d''entrée'!$C$334+1,0,O814*'1 Données d''entrée'!$C$332),O814*'1 Données d''entrée'!$C$332)","v":0},{"$f":"IF('1 Données d''entrée'!$C$336=\"(=NON)\",IF(Q805<'1 Données d''entrée'!$C$334+1,0,P814*'1 Données d''entrée'!$C$332),P814*'1 Données d''entrée'!$C$332)","v":0},{"$f":"IF('1 Données d''entrée'!$C$336=\"(=NON)\",IF(R805<'1 Données d''entrée'!$C$334+1,0,Q814*'1 Données d''entrée'!$C$332),Q814*'1 Données d''entrée'!$C$332)","v":0},{"$f":"IF('1 Données d''entrée'!$C$336=\"(=NON)\",IF(S805<'1 Données d''entrée'!$C$334+1,0,R814*'1 Données d''entrée'!$C$332),R814*'1 Données d''entrée'!$C$332)","v":0},{"$f":"IF('1 Données d''entrée'!$C$336=\"(=NON)\",IF(T805<'1 Données d''entrée'!$C$334+1,0,S814*'1 Données d''entrée'!$C$332),S814*'1 Données d''entrée'!$C$332)","v":0},{"$f":"IF('1 Données d''entrée'!$C$336=\"(=NON)\",IF(U805<'1 Données d''entrée'!$C$334+1,0,T814*'1 Données d''entrée'!$C$332),T814*'1 Données d''entrée'!$C$332)","v":0},{"$f":"IF('1 Données d''entrée'!$C$336=\"(=NON)\",IF(V805<'1 Données d''entrée'!$C$334+1,0,U814*'1 Données d''entrée'!$C$332),U814*'1 Données d''entrée'!$C$332)","v":0}]
["Paiements d'intérêt avec des intérêts composés en cas d'absence des paiements dans la période de grâce",0,0,{"$f":"IF(D805='1 Données d''entrée'!$C$334+1,IF('1 Données d''entrée'!$C$336=\"(=NON)\",($B814*'1 Données d''entrée'!$C$332)*((('1 Données d''entrée'!$C$332+1)^'1 Données d''entrée'!$C$334-1)/('1 Données d''entrée'!$C$332))*(1+'1 Données d''entrée'!$C$332),0),0)","v":0},{"$f":"IF(E805='1 Données d''entrée'!$C$334+1,IF('1 Données d''entrée'!$C$336=\"(=NON)\",($B814*'1 Données d''entrée'!$C$332)*((('1 Données d''entrée'!$C$332+1)^'1 Données d''entrée'!$C$334-1)/('1 Données d''entrée'!$C$332))*(1+'1 Données d''entrée'!$C$332),0),0)","v":0},{"$f":"IF(F805='1 Données d''entrée'!$C$334+1,IF('1 Données d''entrée'!$C$336=\"(=NON)\",($B814*'1 Données d''entrée'!$C$332)*((('1 Données d''entrée'!$C$332+1)^'1 Données d''entrée'!$C$334-1)/('1 Données d''entrée'!$C$332))*(1+'1 Données d''entrée'!$C$332),0),0)","v":0},{"$f":"IF(G805='1 Données d''entrée'!$C$334+1,IF('1 Données d''entrée'!$C$336=\"(=NON)\",($B814*'1 Données d''entrée'!$C$332)*((('1 Données d''entrée'!$C$332+1)^'1 Données d''entrée'!$C$334-1)/('1 Données d''entrée'!$C$332))*(1+'1 Données d''entrée'!$C$332),0),0)","v":0},{"$f":"IF(H805='1 Données d''entrée'!$C$334+1,IF('1 Données d''entrée'!$C$336=\"(=NON)\",($B814*'1 Données d''entrée'!$C$332)*((('1 Données d''entrée'!$C$332+1)^'1 Données d''entrée'!$C$334-1)/('1 Données d''entrée'!$C$332))*(1+'1 Données d''entrée'!$C$332),0),0)","v":0},{"$f":"IF(I805='1 Données d''entrée'!$C$334+1,IF('1 Données d''entrée'!$C$336=\"(=NON)\",($B814*'1 Données d''entrée'!$C$332)*((('1 Données d''entrée'!$C$332+1)^'1 Données d''entrée'!$C$334-1)/('1 Données d''entrée'!$C$332))*(1+'1 Données d''entrée'!$C$332),0),0)","v":0},{"$f":"IF(J805='1 Données d''entrée'!$C$334+1,IF('1 Données d''entrée'!$C$336=\"(=NON)\",($B814*'1 Données d''entrée'!$C$332)*((('1 Données d''entrée'!$C$332+1)^'1 Données d''entrée'!$C$334-1)/('1 Données d''entrée'!$C$332))*(1+'1 Données d''entrée'!$C$332),0),0)","v":0},{"$f":"IF(K805='1 Données d''entrée'!$C$334+1,IF('1 Données d''entrée'!$C$336=\"(=NON)\",($B814*'1 Données d''entrée'!$C$332)*((('1 Données d''entrée'!$C$332+1)^'1 Données d''entrée'!$C$334-1)/('1 Données d''entrée'!$C$332))*(1+'1 Données d''entrée'!$C$332),0),0)","v":0},{"$f":"IF(L805='1 Données d''entrée'!$C$334+1,IF('1 Données d''entrée'!$C$336=\"(=NON)\",($B814*'1 Données d''entrée'!$C$332)*((('1 Données d''entrée'!$C$332+1)^'1 Données d''entrée'!$C$334-1)/('1 Données d''entrée'!$C$332))*(1+'1 Données d''entrée'!$C$332),0),0)","v":0},{"$f":"IF(M805='1 Données d''entrée'!$C$334+1,IF('1 Données d''entrée'!$C$336=\"(=NON)\",($B814*'1 Données d''entrée'!$C$332)*((('1 Données d''entrée'!$C$332+1)^'1 Données d''entrée'!$C$334-1)/('1 Données d''entrée'!$C$332))*(1+'1 Données d''entrée'!$C$332),0),0)","v":0},{"$f":"IF(N805='1 Données d''entrée'!$C$334+1,IF('1 Données d''entrée'!$C$336=\"(=NON)\",($B814*'1 Données d''entrée'!$C$332)*((('1 Données d''entrée'!$C$332+1)^'1 Données d''entrée'!$C$334-1)/('1 Données d''entrée'!$C$332))*(1+'1 Données d''entrée'!$C$332),0),0)","v":0},{"$f":"IF(O805='1 Données d''entrée'!$C$334+1,IF('1 Données d''entrée'!$C$336=\"(=NON)\",($B814*'1 Données d''entrée'!$C$332)*((('1 Données d''entrée'!$C$332+1)^'1 Données d''entrée'!$C$334-1)/('1 Données d''entrée'!$C$332))*(1+'1 Données d''entrée'!$C$332),0),0)","v":0},{"$f":"IF(P805='1 Données d''entrée'!$C$334+1,IF('1 Données d''entrée'!$C$336=\"(=NON)\",($B814*'1 Données d''entrée'!$C$332)*((('1 Données d''entrée'!$C$332+1)^'1 Données d''entrée'!$C$334-1)/('1 Données d''entrée'!$C$332))*(1+'1 Données d''entrée'!$C$332),0),0)","v":0},{"$f":"IF(Q805='1 Données d''entrée'!$C$334+1,IF('1 Données d''entrée'!$C$336=\"(=NON)\",($B814*'1 Données d''entrée'!$C$332)*((('1 Données d''entrée'!$C$332+1)^'1 Données d''entrée'!$C$334-1)/('1 Données d''entrée'!$C$332))*(1+'1 Données d''entrée'!$C$332),0),0)","v":0},{"$f":"IF(R805='1 Données d''entrée'!$C$334+1,IF('1 Données d''entrée'!$C$336=\"(=NON)\",($B814*'1 Données d''entrée'!$C$332)*((('1 Données d''entrée'!$C$332+1)^'1 Données d''entrée'!$C$334-1)/('1 Données d''entrée'!$C$332))*(1+'1 Données d''entrée'!$C$332),0),0)","v":0},{"$f":"IF(S805='1 Données d''entrée'!$C$334+1,IF('1 Données d''entrée'!$C$336=\"(=NON)\",($B814*'1 Données d''entrée'!$C$332)*((('1 Données d''entrée'!$C$332+1)^'1 Données d''entrée'!$C$334-1)/('1 Données d''entrée'!$C$332))*(1+'1 Données d''entrée'!$C$332),0),0)","v":0},{"$f":"IF(T805='1 Données d''entrée'!$C$334+1,IF('1 Données d''entrée'!$C$336=\"(=NON)\",($B814*'1 Données d''entrée'!$C$332)*((('1 Données d''entrée'!$C$332+1)^'1 Données d''entrée'!$C$334-1)/('1 Données d''entrée'!$C$332))*(1+'1 Données d''entrée'!$C$332),0),0)","v":0},{"$f":"IF(U805='1 Données d''entrée'!$C$334+1,IF('1 Données d''entrée'!$C$336=\"(=NON)\",($B814*'1 Données d''entrée'!$C$332)*((('1 Données d''entrée'!$C$332+1)^'1 Données d''entrée'!$C$334-1)/('1 Données d''entrée'!$C$332))*(1+'1 Données d''entrée'!$C$332),0),0)","v":0},{"$f":"IF(V805='1 Données d''entrée'!$C$334+1,IF('1 Données d''entrée'!$C$336=\"(=NON)\",($B814*'1 Données d''entrée'!$C$332)*((('1 Données d''entrée'!$C$332+1)^'1 Données d''entrée'!$C$334-1)/('1 Données d''entrée'!$C$332))*(1+'1 Données d''entrée'!$C$332),0),0)","v":0}]
["Prêt bancaire - Option 2: Remboursement du principal final",{"$f":"'1 Données d''entrée'!$B$343","v":0},"% de prêt total"]
["Réception et montant restant",{"$f":"B799*B818","v":0},{"$f":"B819-C820","v":0},0,0,0,0,0,0,0,0,0,0,0,0,0,0,0,0,0,0,0]
["Remboursement du principal",0,{"$f":"IF('1 Données d''entrée'!$C$333+'1 Données d''entrée'!$C$334=C805,$B819,0)","v":0},{"$f":"IF('1 Données d''entrée'!$C$333+'1 Données d''entrée'!$C$334=D805,$B819,0)","v":0},{"$f":"IF('1 Données d''entrée'!$C$333+'1 Données d''entrée'!$C$334=E805,$B819,0)","v":0},{"$f":"IF('1 Données d''entrée'!$C$333+'1 Données d''entrée'!$C$334=F805,$B819,0)","v":0},{"$f":"IF('1 Données d''entrée'!$C$333+'1 Données d''entrée'!$C$334=G805,$B819,0)","v":0},{"$f":"IF('1 Données d''entrée'!$C$333+'1 Données d''entrée'!$C$334=H805,$B819,0)","v":0},{"$f":"IF('1 Données d''entrée'!$C$333+'1 Données d''entrée'!$C$334=I805,$B819,0)","v":0},{"$f":"IF('1 Données d''entrée'!$C$333+'1 Données d''entrée'!$C$334=J805,$B819,0)","v":0},{"$f":"IF('1 Données d''entrée'!$C$333+'1 Données d''entrée'!$C$334=K805,$B819,0)","v":0},{"$f":"IF('1 Données d''entrée'!$C$333+'1 Données d''entrée'!$C$334=L805,$B819,0)","v":0},{"$f":"IF('1 Données d''entrée'!$C$333+'1 Données d''entrée'!$C$334=M805,$B819,0)","v":0},{"$f":"IF('1 Données d''entrée'!$C$333+'1 Données d''entrée'!$C$334=N805,$B819,0)","v":0},{"$f":"IF('1 Données d''entrée'!$C$333+'1 Données d''entrée'!$C$334=O805,$B819,0)","v":0},{"$f":"IF('1 Données d''entrée'!$C$333+'1 Données d''entrée'!$C$334=P805,$B819,0)","v":0},{"$f":"IF('1 Données d''entrée'!$C$333+'1 Données d''entrée'!$C$334=Q805,$B819,0)","v":0},{"$f":"IF('1 Données d''entrée'!$C$333+'1 Données d''entrée'!$C$334=R805,$B819,0)","v":0},{"$f":"IF('1 Données d''entrée'!$C$333+'1 Données d''entrée'!$C$334=S805,$B819,0)","v":0},{"$f":"IF('1 Données d''entrée'!$C$333+'1 Données d''entrée'!$C$334=T805,$B819,0)","v":0},{"$f":"IF('1 Données d''entrée'!$C$333+'1 Données d''entrée'!$C$334=U805,$B819,0)","v":0},{"$f":"IF('1 Données d''entrée'!$C$333+'1 Données d''entrée'!$C$334=V805,$B819,0)","v":0}]
["Paiement d'intérêts",0,{"$f":"IF('1 Données d''entrée'!$C$336=\"(=NON)\",IF(C805<'1 Données d''entrée'!$C$334+1,0,B819*'1 Données d''entrée'!$C$332),B819*'1 Données d''entrée'!$C$332)","v":0},{"$f":"IF('1 Données d''entrée'!$C$336=\"(=NON)\",IF(D805<'1 Données d''entrée'!$C$334+1,0,C819*'1 Données d''entrée'!$C$332),C819*'1 Données d''entrée'!$C$332)","v":0},{"$f":"IF('1 Données d''entrée'!$C$336=\"(=NON)\",IF(E805<'1 Données d''entrée'!$C$334+1,0,D819*'1 Données d''entrée'!$C$332),D819*'1 Données d''entrée'!$C$332)","v":0},{"$f":"IF('1 Données d''entrée'!$C$336=\"(=NON)\",IF(F805<'1 Données d''entrée'!$C$334+1,0,E819*'1 Données d''entrée'!$C$332),E819*'1 Données d''entrée'!$C$332)","v":0},{"$f":"IF('1 Données d''entrée'!$C$336=\"(=NON)\",IF(G805<'1 Données d''entrée'!$C$334+1,0,F819*'1 Données d''entrée'!$C$332),F819*'1 Données d''entrée'!$C$332)","v":0},{"$f":"IF('1 Données d''entrée'!$C$336=\"(=NON)\",IF(H805<'1 Données d''entrée'!$C$334+1,0,G819*'1 Données d''entrée'!$C$332),G819*'1 Données d''entrée'!$C$332)","v":0},{"$f":"IF('1 Données d''entrée'!$C$336=\"(=NON)\",IF(I805<'1 Données d''entrée'!$C$334+1,0,H819*'1 Données d''entrée'!$C$332),H819*'1 Données d''entrée'!$C$332)","v":0},{"$f":"IF('1 Données d''entrée'!$C$336=\"(=NON)\",IF(J805<'1 Données d''entrée'!$C$334+1,0,I819*'1 Données d''entrée'!$C$332),I819*'1 Données d''entrée'!$C$332)","v":0},{"$f":"IF('1 Données d''entrée'!$C$336=\"(=NON)\",IF(K805<'1 Données d''entrée'!$C$334+1,0,J819*'1 Données d''entrée'!$C$332),J819*'1 Données d''entrée'!$C$332)","v":0},{"$f":"IF('1 Données d''entrée'!$C$336=\"(=NON)\",IF(L805<'1 Données d''entrée'!$C$334+1,0,K819*'1 Données d''entrée'!$C$332),K819*'1 Données d''entrée'!$C$332)","v":0},{"$f":"IF('1 Données d''entrée'!$C$336=\"(=NON)\",IF(M805<'1 Données d''entrée'!$C$334+1,0,L819*'1 Données d''entrée'!$C$332),L819*'1 Données d''entrée'!$C$332)","v":0},{"$f":"IF('1 Données d''entrée'!$C$336=\"(=NON)\",IF(N805<'1 Données d''entrée'!$C$334+1,0,M819*'1 Données d''entrée'!$C$332),M819*'1 Données d''entrée'!$C$332)","v":0},{"$f":"IF('1 Données d''entrée'!$C$336=\"(=NON)\",IF(O805<'1 Données d''entrée'!$C$334+1,0,N819*'1 Données d''entrée'!$C$332),N819*'1 Données d''entrée'!$C$332)","v":0},{"$f":"IF('1 Données d''entrée'!$C$336=\"(=NON)\",IF(P805<'1 Données d''entrée'!$C$334+1,0,O819*'1 Données d''entrée'!$C$332),O819*'1 Données d''entrée'!$C$332)","v":0},{"$f":"IF('1 Données d''entrée'!$C$336=\"(=NON)\",IF(Q805<'1 Données d''entrée'!$C$334+1,0,P819*'1 Données d''entrée'!$C$332),P819*'1 Données d''entrée'!$C$332)","v":0},{"$f":"IF('1 Données d''entrée'!$C$336=\"(=NON)\",IF(R805<'1 Données d''entrée'!$C$334+1,0,Q819*'1 Données d''entrée'!$C$332),Q819*'1 Données d''entrée'!$C$332)","v":0},{"$f":"IF('1 Données d''entrée'!$C$336=\"(=NON)\",IF(S805<'1 Données d''entrée'!$C$334+1,0,R819*'1 Données d''entrée'!$C$332),R819*'1 Données d''entrée'!$C$332)","v":0},{"$f":"IF('1 Données d''entrée'!$C$336=\"(=NON)\",IF(T805<'1 Données d''entrée'!$C$334+1,0,S819*'1 Données d''entrée'!$C$332),S819*'1 Données d''entrée'!$C$332)","v":0},{"$f":"IF('1 Données d''entrée'!$C$336=\"(=NON)\",IF(U805<'1 Données d''entrée'!$C$334+1,0,T819*'1 Données d''entrée'!$C$332),T819*'1 Données d''entrée'!$C$332)","v":0},{"$f":"IF('1 Données d''entrée'!$C$336=\"(=NON)\",IF(V805<'1 Données d''entrée'!$C$334+1,0,U819*'1 Données d''entrée'!$C$332),U819*'1 Données d''entrée'!$C$332)","v":0}]
["Paiements d'intérêt avec des intérêts composés en cas d'absence des paiements dans la période de grâce",0,0,{"$f":"IF(D805='1 Données d''entrée'!$C$334+1,IF('1 Données d''entrée'!$C$336=\"(=NON)\",($B819*'1 Données d''entrée'!$C$332)*((('1 Données d''entrée'!$C$332+1)^'1 Données d''entrée'!$C$334-1)/('1 Données d''entrée'!$C$332))*(1+'1 Données d''entrée'!$C$332),0),0)","v":0},{"$f":"IF(E805='1 Données d''entrée'!$C$334+1,IF('1 Données d''entrée'!$C$336=\"(=NON)\",($B819*'1 Données d''entrée'!$C$332)*((('1 Données d''entrée'!$C$332+1)^'1 Données d''entrée'!$C$334-1)/('1 Données d''entrée'!$C$332))*(1+'1 Données d''entrée'!$C$332),0),0)","v":0},{"$f":"IF(F805='1 Données d''entrée'!$C$334+1,IF('1 Données d''entrée'!$C$336=\"(=NON)\",($B819*'1 Données d''entrée'!$C$332)*((('1 Données d''entrée'!$C$332+1)^'1 Données d''entrée'!$C$334-1)/('1 Données d''entrée'!$C$332))*(1+'1 Données d''entrée'!$C$332),0),0)","v":0},{"$f":"IF(G805='1 Données d''entrée'!$C$334+1,IF('1 Données d''entrée'!$C$336=\"(=NON)\",($B819*'1 Données d''entrée'!$C$332)*((('1 Données d''entrée'!$C$332+1)^'1 Données d''entrée'!$C$334-1)/('1 Données d''entrée'!$C$332))*(1+'1 Données d''entrée'!$C$332),0),0)","v":0},{"$f":"IF(H805='1 Données d''entrée'!$C$334+1,IF('1 Données d''entrée'!$C$336=\"(=NON)\",($B819*'1 Données d''entrée'!$C$332)*((('1 Données d''entrée'!$C$332+1)^'1 Données d''entrée'!$C$334-1)/('1 Données d''entrée'!$C$332))*(1+'1 Données d''entrée'!$C$332),0),0)","v":0},{"$f":"IF(I805='1 Données d''entrée'!$C$334+1,IF('1 Données d''entrée'!$C$336=\"(=NON)\",($B819*'1 Données d''entrée'!$C$332)*((('1 Données d''entrée'!$C$332+1)^'1 Données d''entrée'!$C$334-1)/('1 Données d''entrée'!$C$332))*(1+'1 Données d''entrée'!$C$332),0),0)","v":0},{"$f":"IF(J805='1 Données d''entrée'!$C$334+1,IF('1 Données d''entrée'!$C$336=\"(=NON)\",($B819*'1 Données d''entrée'!$C$332)*((('1 Données d''entrée'!$C$332+1)^'1 Données d''entrée'!$C$334-1)/('1 Données d''entrée'!$C$332))*(1+'1 Données d''entrée'!$C$332),0),0)","v":0},{"$f":"IF(K805='1 Données d''entrée'!$C$334+1,IF('1 Données d''entrée'!$C$336=\"(=NON)\",($B819*'1 Données d''entrée'!$C$332)*((('1 Données d''entrée'!$C$332+1)^'1 Données d''entrée'!$C$334-1)/('1 Données d''entrée'!$C$332))*(1+'1 Données d''entrée'!$C$332),0),0)","v":0},{"$f":"IF(L805='1 Données d''entrée'!$C$334+1,IF('1 Données d''entrée'!$C$336=\"(=NON)\",($B819*'1 Données d''entrée'!$C$332)*((('1 Données d''entrée'!$C$332+1)^'1 Données d''entrée'!$C$334-1)/('1 Données d''entrée'!$C$332))*(1+'1 Données d''entrée'!$C$332),0),0)","v":0},{"$f":"IF(M805='1 Données d''entrée'!$C$334+1,IF('1 Données d''entrée'!$C$336=\"(=NON)\",($B819*'1 Données d''entrée'!$C$332)*((('1 Données d''entrée'!$C$332+1)^'1 Données d''entrée'!$C$334-1)/('1 Données d''entrée'!$C$332))*(1+'1 Données d''entrée'!$C$332),0),0)","v":0},{"$f":"IF(N805='1 Données d''entrée'!$C$334+1,IF('1 Données d''entrée'!$C$336=\"(=NON)\",($B819*'1 Données d''entrée'!$C$332)*((('1 Données d''entrée'!$C$332+1)^'1 Données d''entrée'!$C$334-1)/('1 Données d''entrée'!$C$332))*(1+'1 Données d''entrée'!$C$332),0),0)","v":0},{"$f":"IF(O805='1 Données d''entrée'!$C$334+1,IF('1 Données d''entrée'!$C$336=\"(=NON)\",($B819*'1 Données d''entrée'!$C$332)*((('1 Données d''entrée'!$C$332+1)^'1 Données d''entrée'!$C$334-1)/('1 Données d''entrée'!$C$332))*(1+'1 Données d''entrée'!$C$332),0),0)","v":0},{"$f":"IF(P805='1 Données d''entrée'!$C$334+1,IF('1 Données d''entrée'!$C$336=\"(=NON)\",($B819*'1 Données d''entrée'!$C$332)*((('1 Données d''entrée'!$C$332+1)^'1 Données d''entrée'!$C$334-1)/('1 Données d''entrée'!$C$332))*(1+'1 Données d''entrée'!$C$332),0),0)","v":0},{"$f":"IF(Q805='1 Données d''entrée'!$C$334+1,IF('1 Données d''entrée'!$C$336=\"(=NON)\",($B819*'1 Données d''entrée'!$C$332)*((('1 Données d''entrée'!$C$332+1)^'1 Données d''entrée'!$C$334-1)/('1 Données d''entrée'!$C$332))*(1+'1 Données d''entrée'!$C$332),0),0)","v":0},{"$f":"IF(R805='1 Données d''entrée'!$C$334+1,IF('1 Données d''entrée'!$C$336=\"(=NON)\",($B819*'1 Données d''entrée'!$C$332)*((('1 Données d''entrée'!$C$332+1)^'1 Données d''entrée'!$C$334-1)/('1 Données d''entrée'!$C$332))*(1+'1 Données d''entrée'!$C$332),0),0)","v":0},{"$f":"IF(S805='1 Données d''entrée'!$C$334+1,IF('1 Données d''entrée'!$C$336=\"(=NON)\",($B819*'1 Données d''entrée'!$C$332)*((('1 Données d''entrée'!$C$332+1)^'1 Données d''entrée'!$C$334-1)/('1 Données d''entrée'!$C$332))*(1+'1 Données d''entrée'!$C$332),0),0)","v":0},{"$f":"IF(T805='1 Données d''entrée'!$C$334+1,IF('1 Données d''entrée'!$C$336=\"(=NON)\",($B819*'1 Données d''entrée'!$C$332)*((('1 Données d''entrée'!$C$332+1)^'1 Données d''entrée'!$C$334-1)/('1 Données d''entrée'!$C$332))*(1+'1 Données d''entrée'!$C$332),0),0)","v":0},{"$f":"IF(U805='1 Données d''entrée'!$C$334+1,IF('1 Données d''entrée'!$C$336=\"(=NON)\",($B819*'1 Données d''entrée'!$C$332)*((('1 Données d''entrée'!$C$332+1)^'1 Données d''entrée'!$C$334-1)/('1 Données d''entrée'!$C$332))*(1+'1 Données d''entrée'!$C$332),0),0)","v":0},{"$f":"IF(V805='1 Données d''entrée'!$C$334+1,IF('1 Données d''entrée'!$C$336=\"(=NON)\",($B819*'1 Données d''entrée'!$C$332)*((('1 Données d''entrée'!$C$332+1)^'1 Données d''entrée'!$C$334-1)/('1 Données d''entrée'!$C$332))*(1+'1 Données d''entrée'!$C$332),0),0)","v":0}]
["Prêt bancaire - Option 3: Remboursement vers l'annuité constante",{"$f":"'1 Données d''entrée'!$B$344","v":0},"% de prêt total"]
["Réception ",{"$f":"B799*B823","v":0},0,0,0,0,0,0,0,0,0,0,0,0,0,0,0,0,0,0,0,0]
["Remboursement vers l'annuité constante",{"$f":"IF(B805<'1 Données d''entrée'!$C$334+1,0,IF(B805<'1 Données d''entrée'!$C$333+'1 Données d''entrée'!$C$334+1,$B824*('1 Données d''entrée'!$C$332*(1+'1 Données d''entrée'!$C$332)^'1 Données d''entrée'!$C$333)/((1+'1 Données d''entrée'!$C$332)^'1 Données d''entrée'!$C$333-1),0))","v":0},{"$f":"IF(C805<'1 Données d''entrée'!$C$334+1,0,IF(C805<'1 Données d''entrée'!$C$333+'1 Données d''entrée'!$C$334+1,$B824*('1 Données d''entrée'!$C$332*(1+'1 Données d''entrée'!$C$332)^'1 Données d''entrée'!$C$333)/((1+'1 Données d''entrée'!$C$332)^'1 Données d''entrée'!$C$333-1),0))","v":0},{"$f":"IF(D805<'1 Données d''entrée'!$C$334+1,0,IF(D805<'1 Données d''entrée'!$C$333+'1 Données d''entrée'!$C$334+1,$B824*('1 Données d''entrée'!$C$332*(1+'1 Données d''entrée'!$C$332)^'1 Données d''entrée'!$C$333)/((1+'1 Données d''entrée'!$C$332)^'1 Données d''entrée'!$C$333-1),0))","v":0},{"$f":"IF(E805<'1 Données d''entrée'!$C$334+1,0,IF(E805<'1 Données d''entrée'!$C$333+'1 Données d''entrée'!$C$334+1,$B824*('1 Données d''entrée'!$C$332*(1+'1 Données d''entrée'!$C$332)^'1 Données d''entrée'!$C$333)/((1+'1 Données d''entrée'!$C$332)^'1 Données d''entrée'!$C$333-1),0))","v":0},{"$f":"IF(F805<'1 Données d''entrée'!$C$334+1,0,IF(F805<'1 Données d''entrée'!$C$333+'1 Données d''entrée'!$C$334+1,$B824*('1 Données d''entrée'!$C$332*(1+'1 Données d''entrée'!$C$332)^'1 Données d''entrée'!$C$333)/((1+'1 Données d''entrée'!$C$332)^'1 Données d''entrée'!$C$333-1),0))","v":0},{"$f":"IF(G805<'1 Données d''entrée'!$C$334+1,0,IF(G805<'1 Données d''entrée'!$C$333+'1 Données d''entrée'!$C$334+1,$B824*('1 Données d''entrée'!$C$332*(1+'1 Données d''entrée'!$C$332)^'1 Données d''entrée'!$C$333)/((1+'1 Données d''entrée'!$C$332)^'1 Données d''entrée'!$C$333-1),0))","v":0},{"$f":"IF(H805<'1 Données d''entrée'!$C$334+1,0,IF(H805<'1 Données d''entrée'!$C$333+'1 Données d''entrée'!$C$334+1,$B824*('1 Données d''entrée'!$C$332*(1+'1 Données d''entrée'!$C$332)^'1 Données d''entrée'!$C$333)/((1+'1 Données d''entrée'!$C$332)^'1 Données d''entrée'!$C$333-1),0))","v":0},{"$f":"IF(I805<'1 Données d''entrée'!$C$334+1,0,IF(I805<'1 Données d''entrée'!$C$333+'1 Données d''entrée'!$C$334+1,$B824*('1 Données d''entrée'!$C$332*(1+'1 Données d''entrée'!$C$332)^'1 Données d''entrée'!$C$333)/((1+'1 Données d''entrée'!$C$332)^'1 Données d''entrée'!$C$333-1),0))","v":0},{"$f":"IF(J805<'1 Données d''entrée'!$C$334+1,0,IF(J805<'1 Données d''entrée'!$C$333+'1 Données d''entrée'!$C$334+1,$B824*('1 Données d''entrée'!$C$332*(1+'1 Données d''entrée'!$C$332)^'1 Données d''entrée'!$C$333)/((1+'1 Données d''entrée'!$C$332)^'1 Données d''entrée'!$C$333-1),0))","v":0},{"$f":"IF(K805<'1 Données d''entrée'!$C$334+1,0,IF(K805<'1 Données d''entrée'!$C$333+'1 Données d''entrée'!$C$334+1,$B824*('1 Données d''entrée'!$C$332*(1+'1 Données d''entrée'!$C$332)^'1 Données d''entrée'!$C$333)/((1+'1 Données d''entrée'!$C$332)^'1 Données d''entrée'!$C$333-1),0))","v":0},{"$f":"IF(L805<'1 Données d''entrée'!$C$334+1,0,IF(L805<'1 Données d''entrée'!$C$333+'1 Données d''entrée'!$C$334+1,$B824*('1 Données d''entrée'!$C$332*(1+'1 Données d''entrée'!$C$332)^'1 Données d''entrée'!$C$333)/((1+'1 Données d''entrée'!$C$332)^'1 Données d''entrée'!$C$333-1),0))","v":0},{"$f":"IF(M805<'1 Données d''entrée'!$C$334+1,0,IF(M805<'1 Données d''entrée'!$C$333+'1 Données d''entrée'!$C$334+1,$B824*('1 Données d''entrée'!$C$332*(1+'1 Données d''entrée'!$C$332)^'1 Données d''entrée'!$C$333)/((1+'1 Données d''entrée'!$C$332)^'1 Données d''entrée'!$C$333-1),0))","v":0},{"$f":"IF(N805<'1 Données d''entrée'!$C$334+1,0,IF(N805<'1 Données d''entrée'!$C$333+'1 Données d''entrée'!$C$334+1,$B824*('1 Données d''entrée'!$C$332*(1+'1 Données d''entrée'!$C$332)^'1 Données d''entrée'!$C$333)/((1+'1 Données d''entrée'!$C$332)^'1 Données d''entrée'!$C$333-1),0))","v":0},{"$f":"IF(O805<'1 Données d''entrée'!$C$334+1,0,IF(O805<'1 Données d''entrée'!$C$333+'1 Données d''entrée'!$C$334+1,$B824*('1 Données d''entrée'!$C$332*(1+'1 Données d''entrée'!$C$332)^'1 Données d''entrée'!$C$333)/((1+'1 Données d''entrée'!$C$332)^'1 Données d''entrée'!$C$333-1),0))","v":0},{"$f":"IF(P805<'1 Données d''entrée'!$C$334+1,0,IF(P805<'1 Données d''entrée'!$C$333+'1 Données d''entrée'!$C$334+1,$B824*('1 Données d''entrée'!$C$332*(1+'1 Données d''entrée'!$C$332)^'1 Données d''entrée'!$C$333)/((1+'1 Données d''entrée'!$C$332)^'1 Données d''entrée'!$C$333-1),0))","v":0},{"$f":"IF(Q805<'1 Données d''entrée'!$C$334+1,0,IF(Q805<'1 Données d''entrée'!$C$333+'1 Données d''entrée'!$C$334+1,$B824*('1 Données d''entrée'!$C$332*(1+'1 Données d''entrée'!$C$332)^'1 Données d''entrée'!$C$333)/((1+'1 Données d''entrée'!$C$332)^'1 Données d''entrée'!$C$333-1),0))","v":0},{"$f":"IF(R805<'1 Données d''entrée'!$C$334+1,0,IF(R805<'1 Données d''entrée'!$C$333+'1 Données d''entrée'!$C$334+1,$B824*('1 Données d''entrée'!$C$332*(1+'1 Données d''entrée'!$C$332)^'1 Données d''entrée'!$C$333)/((1+'1 Données d''entrée'!$C$332)^'1 Données d''entrée'!$C$333-1),0))","v":0},{"$f":"IF(S805<'1 Données d''entrée'!$C$334+1,0,IF(S805<'1 Données d''entrée'!$C$333+'1 Données d''entrée'!$C$334+1,$B824*('1 Données d''entrée'!$C$332*(1+'1 Données d''entrée'!$C$332)^'1 Données d''entrée'!$C$333)/((1+'1 Données d''entrée'!$C$332)^'1 Données d''entrée'!$C$333-1),0))","v":0},{"$f":"IF(T805<'1 Données d''entrée'!$C$334+1,0,IF(T805<'1 Données d''entrée'!$C$333+'1 Données d''entrée'!$C$334+1,$B824*('1 Données d''entrée'!$C$332*(1+'1 Données d''entrée'!$C$332)^'1 Données d''entrée'!$C$333)/((1+'1 Données d''entrée'!$C$332)^'1 Données d''entrée'!$C$333-1),0))","v":0},{"$f":"IF(U805<'1 Données d''entrée'!$C$334+1,0,IF(U805<'1 Données d''entrée'!$C$333+'1 Données d''entrée'!$C$334+1,$B824*('1 Données d''entrée'!$C$332*(1+'1 Données d''entrée'!$C$332)^'1 Données d''entrée'!$C$333)/((1+'1 Données d''entrée'!$C$332)^'1 Données d''entrée'!$C$333-1),0))","v":0},{"$f":"IF(V805<'1 Données d''entrée'!$C$334+1,0,IF(V805<'1 Données d''entrée'!$C$333+'1 Données d''entrée'!$C$334+1,$B824*('1 Données d''entrée'!$C$332*(1+'1 Données d''entrée'!$C$332)^'1 Données d''entrée'!$C$333)/((1+'1 Données d''entrée'!$C$332)^'1 Données d''entrée'!$C$333-1),0))","v":0}]
["Paiement d'intérêt décroissant inclu dans l'annuité constante",0,{"$f":"IF('1 Données d''entrée'!$C$336=\"(=NON)\",IF(C825>0,$B824*((('1 Données d''entrée'!$C$332+1)^'1 Données d''entrée'!$C$333)-(1+'1 Données d''entrée'!$C$332)^('6 Financement'!C$54-1-'1 Données d''entrée'!$C$334))/((1+'1 Données d''entrée'!$C$332)^'1 Données d''entrée'!$C$333-1)*'1 Données d''entrée'!$C$332,0),IF(C805<'1 Données d''entrée'!$C$334+1,'1 Données d''entrée'!$C$332*'6 Financement'!$B824,IF(C825>0,$B$73*((('1 Données d''entrée'!$C$332+1)^'1 Données d''entrée'!$C$333)-(1+'1 Données d''entrée'!$C$332)^('6 Financement'!C$54-1-'1 Données d''entrée'!$C$334))/((1+'1 Données d''entrée'!$C$332)^'1 Données d''entrée'!$C$333-1)*'1 Données d''entrée'!$C$332,0)))","v":0},{"$f":"IF('1 Données d''entrée'!$C$336=\"(=NON)\",IF(D825>0,$B824*((('1 Données d''entrée'!$C$332+1)^'1 Données d''entrée'!$C$333)-(1+'1 Données d''entrée'!$C$332)^('6 Financement'!D$54-1-'1 Données d''entrée'!$C$334))/((1+'1 Données d''entrée'!$C$332)^'1 Données d''entrée'!$C$333-1)*'1 Données d''entrée'!$C$332,0),IF(D805<'1 Données d''entrée'!$C$334+1,'1 Données d''entrée'!$C$332*'6 Financement'!$B824,IF(D825>0,$B$73*((('1 Données d''entrée'!$C$332+1)^'1 Données d''entrée'!$C$333)-(1+'1 Données d''entrée'!$C$332)^('6 Financement'!D$54-1-'1 Données d''entrée'!$C$334))/((1+'1 Données d''entrée'!$C$332)^'1 Données d''entrée'!$C$333-1)*'1 Données d''entrée'!$C$332,0)))","v":0},{"$f":"IF('1 Données d''entrée'!$C$336=\"(=NON)\",IF(E825>0,$B824*((('1 Données d''entrée'!$C$332+1)^'1 Données d''entrée'!$C$333)-(1+'1 Données d''entrée'!$C$332)^('6 Financement'!E$54-1-'1 Données d''entrée'!$C$334))/((1+'1 Données d''entrée'!$C$332)^'1 Données d''entrée'!$C$333-1)*'1 Données d''entrée'!$C$332,0),IF(E805<'1 Données d''entrée'!$C$334+1,'1 Données d''entrée'!$C$332*'6 Financement'!$B824,IF(E825>0,$B$73*((('1 Données d''entrée'!$C$332+1)^'1 Données d''entrée'!$C$333)-(1+'1 Données d''entrée'!$C$332)^('6 Financement'!E$54-1-'1 Données d''entrée'!$C$334))/((1+'1 Données d''entrée'!$C$332)^'1 Données d''entrée'!$C$333-1)*'1 Données d''entrée'!$C$332,0)))","v":0},{"$f":"IF('1 Données d''entrée'!$C$336=\"(=NON)\",IF(F825>0,$B824*((('1 Données d''entrée'!$C$332+1)^'1 Données d''entrée'!$C$333)-(1+'1 Données d''entrée'!$C$332)^('6 Financement'!F$54-1-'1 Données d''entrée'!$C$334))/((1+'1 Données d''entrée'!$C$332)^'1 Données d''entrée'!$C$333-1)*'1 Données d''entrée'!$C$332,0),IF(F805<'1 Données d''entrée'!$C$334+1,'1 Données d''entrée'!$C$332*'6 Financement'!$B824,IF(F825>0,$B$73*((('1 Données d''entrée'!$C$332+1)^'1 Données d''entrée'!$C$333)-(1+'1 Données d''entrée'!$C$332)^('6 Financement'!F$54-1-'1 Données d''entrée'!$C$334))/((1+'1 Données d''entrée'!$C$332)^'1 Données d''entrée'!$C$333-1)*'1 Données d''entrée'!$C$332,0)))","v":0},{"$f":"IF('1 Données d''entrée'!$C$336=\"(=NON)\",IF(G825>0,$B824*((('1 Données d''entrée'!$C$332+1)^'1 Données d''entrée'!$C$333)-(1+'1 Données d''entrée'!$C$332)^('6 Financement'!G$54-1-'1 Données d''entrée'!$C$334))/((1+'1 Données d''entrée'!$C$332)^'1 Données d''entrée'!$C$333-1)*'1 Données d''entrée'!$C$332,0),IF(G805<'1 Données d''entrée'!$C$334+1,'1 Données d''entrée'!$C$332*'6 Financement'!$B824,IF(G825>0,$B$73*((('1 Données d''entrée'!$C$332+1)^'1 Données d''entrée'!$C$333)-(1+'1 Données d''entrée'!$C$332)^('6 Financement'!G$54-1-'1 Données d''entrée'!$C$334))/((1+'1 Données d''entrée'!$C$332)^'1 Données d''entrée'!$C$333-1)*'1 Données d''entrée'!$C$332,0)))","v":0},{"$f":"IF('1 Données d''entrée'!$C$336=\"(=NON)\",IF(H825>0,$B824*((('1 Données d''entrée'!$C$332+1)^'1 Données d''entrée'!$C$333)-(1+'1 Données d''entrée'!$C$332)^('6 Financement'!H$54-1-'1 Données d''entrée'!$C$334))/((1+'1 Données d''entrée'!$C$332)^'1 Données d''entrée'!$C$333-1)*'1 Données d''entrée'!$C$332,0),IF(H805<'1 Données d''entrée'!$C$334+1,'1 Données d''entrée'!$C$332*'6 Financement'!$B824,IF(H825>0,$B$73*((('1 Données d''entrée'!$C$332+1)^'1 Données d''entrée'!$C$333)-(1+'1 Données d''entrée'!$C$332)^('6 Financement'!H$54-1-'1 Données d''entrée'!$C$334))/((1+'1 Données d''entrée'!$C$332)^'1 Données d''entrée'!$C$333-1)*'1 Données d''entrée'!$C$332,0)))","v":0},{"$f":"IF('1 Données d''entrée'!$C$336=\"(=NON)\",IF(I825>0,$B824*((('1 Données d''entrée'!$C$332+1)^'1 Données d''entrée'!$C$333)-(1+'1 Données d''entrée'!$C$332)^('6 Financement'!I$54-1-'1 Données d''entrée'!$C$334))/((1+'1 Données d''entrée'!$C$332)^'1 Données d''entrée'!$C$333-1)*'1 Données d''entrée'!$C$332,0),IF(I805<'1 Données d''entrée'!$C$334+1,'1 Données d''entrée'!$C$332*'6 Financement'!$B824,IF(I825>0,$B$73*((('1 Données d''entrée'!$C$332+1)^'1 Données d''entrée'!$C$333)-(1+'1 Données d''entrée'!$C$332)^('6 Financement'!I$54-1-'1 Données d''entrée'!$C$334))/((1+'1 Données d''entrée'!$C$332)^'1 Données d''entrée'!$C$333-1)*'1 Données d''entrée'!$C$332,0)))","v":0},{"$f":"IF('1 Données d''entrée'!$C$336=\"(=NON)\",IF(J825>0,$B824*((('1 Données d''entrée'!$C$332+1)^'1 Données d''entrée'!$C$333)-(1+'1 Données d''entrée'!$C$332)^('6 Financement'!J$54-1-'1 Données d''entrée'!$C$334))/((1+'1 Données d''entrée'!$C$332)^'1 Données d''entrée'!$C$333-1)*'1 Données d''entrée'!$C$332,0),IF(J805<'1 Données d''entrée'!$C$334+1,'1 Données d''entrée'!$C$332*'6 Financement'!$B824,IF(J825>0,$B$73*((('1 Données d''entrée'!$C$332+1)^'1 Données d''entrée'!$C$333)-(1+'1 Données d''entrée'!$C$332)^('6 Financement'!J$54-1-'1 Données d''entrée'!$C$334))/((1+'1 Données d''entrée'!$C$332)^'1 Données d''entrée'!$C$333-1)*'1 Données d''entrée'!$C$332,0)))","v":0},{"$f":"IF('1 Données d''entrée'!$C$336=\"(=NON)\",IF(K825>0,$B824*((('1 Données d''entrée'!$C$332+1)^'1 Données d''entrée'!$C$333)-(1+'1 Données d''entrée'!$C$332)^('6 Financement'!K$54-1-'1 Données d''entrée'!$C$334))/((1+'1 Données d''entrée'!$C$332)^'1 Données d''entrée'!$C$333-1)*'1 Données d''entrée'!$C$332,0),IF(K805<'1 Données d''entrée'!$C$334+1,'1 Données d''entrée'!$C$332*'6 Financement'!$B824,IF(K825>0,$B$73*((('1 Données d''entrée'!$C$332+1)^'1 Données d''entrée'!$C$333)-(1+'1 Données d''entrée'!$C$332)^('6 Financement'!K$54-1-'1 Données d''entrée'!$C$334))/((1+'1 Données d''entrée'!$C$332)^'1 Données d''entrée'!$C$333-1)*'1 Données d''entrée'!$C$332,0)))","v":0},{"$f":"IF('1 Données d''entrée'!$C$336=\"(=NON)\",IF(L825>0,$B824*((('1 Données d''entrée'!$C$332+1)^'1 Données d''entrée'!$C$333)-(1+'1 Données d''entrée'!$C$332)^('6 Financement'!L$54-1-'1 Données d''entrée'!$C$334))/((1+'1 Données d''entrée'!$C$332)^'1 Données d''entrée'!$C$333-1)*'1 Données d''entrée'!$C$332,0),IF(L805<'1 Données d''entrée'!$C$334+1,'1 Données d''entrée'!$C$332*'6 Financement'!$B824,IF(L825>0,$B$73*((('1 Données d''entrée'!$C$332+1)^'1 Données d''entrée'!$C$333)-(1+'1 Données d''entrée'!$C$332)^('6 Financement'!L$54-1-'1 Données d''entrée'!$C$334))/((1+'1 Données d''entrée'!$C$332)^'1 Données d''entrée'!$C$333-1)*'1 Données d''entrée'!$C$332,0)))","v":0},{"$f":"IF('1 Données d''entrée'!$C$336=\"(=NON)\",IF(M825>0,$B824*((('1 Données d''entrée'!$C$332+1)^'1 Données d''entrée'!$C$333)-(1+'1 Données d''entrée'!$C$332)^('6 Financement'!M$54-1-'1 Données d''entrée'!$C$334))/((1+'1 Données d''entrée'!$C$332)^'1 Données d''entrée'!$C$333-1)*'1 Données d''entrée'!$C$332,0),IF(M805<'1 Données d''entrée'!$C$334+1,'1 Données d''entrée'!$C$332*'6 Financement'!$B824,IF(M825>0,$B$73*((('1 Données d''entrée'!$C$332+1)^'1 Données d''entrée'!$C$333)-(1+'1 Données d''entrée'!$C$332)^('6 Financement'!M$54-1-'1 Données d''entrée'!$C$334))/((1+'1 Données d''entrée'!$C$332)^'1 Données d''entrée'!$C$333-1)*'1 Données d''entrée'!$C$332,0)))","v":0},{"$f":"IF('1 Données d''entrée'!$C$336=\"(=NON)\",IF(N825>0,$B824*((('1 Données d''entrée'!$C$332+1)^'1 Données d''entrée'!$C$333)-(1+'1 Données d''entrée'!$C$332)^('6 Financement'!N$54-1-'1 Données d''entrée'!$C$334))/((1+'1 Données d''entrée'!$C$332)^'1 Données d''entrée'!$C$333-1)*'1 Données d''entrée'!$C$332,0),IF(N805<'1 Données d''entrée'!$C$334+1,'1 Données d''entrée'!$C$332*'6 Financement'!$B824,IF(N825>0,$B$73*((('1 Données d''entrée'!$C$332+1)^'1 Données d''entrée'!$C$333)-(1+'1 Données d''entrée'!$C$332)^('6 Financement'!N$54-1-'1 Données d''entrée'!$C$334))/((1+'1 Données d''entrée'!$C$332)^'1 Données d''entrée'!$C$333-1)*'1 Données d''entrée'!$C$332,0)))","v":0},{"$f":"IF('1 Données d''entrée'!$C$336=\"(=NON)\",IF(O825>0,$B824*((('1 Données d''entrée'!$C$332+1)^'1 Données d''entrée'!$C$333)-(1+'1 Données d''entrée'!$C$332)^('6 Financement'!O$54-1-'1 Données d''entrée'!$C$334))/((1+'1 Données d''entrée'!$C$332)^'1 Données d''entrée'!$C$333-1)*'1 Données d''entrée'!$C$332,0),IF(O805<'1 Données d''entrée'!$C$334+1,'1 Données d''entrée'!$C$332*'6 Financement'!$B824,IF(O825>0,$B$73*((('1 Données d''entrée'!$C$332+1)^'1 Données d''entrée'!$C$333)-(1+'1 Données d''entrée'!$C$332)^('6 Financement'!O$54-1-'1 Données d''entrée'!$C$334))/((1+'1 Données d''entrée'!$C$332)^'1 Données d''entrée'!$C$333-1)*'1 Données d''entrée'!$C$332,0)))","v":0},{"$f":"IF('1 Données d''entrée'!$C$336=\"(=NON)\",IF(P825>0,$B824*((('1 Données d''entrée'!$C$332+1)^'1 Données d''entrée'!$C$333)-(1+'1 Données d''entrée'!$C$332)^('6 Financement'!P$54-1-'1 Données d''entrée'!$C$334))/((1+'1 Données d''entrée'!$C$332)^'1 Données d''entrée'!$C$333-1)*'1 Données d''entrée'!$C$332,0),IF(P805<'1 Données d''entrée'!$C$334+1,'1 Données d''entrée'!$C$332*'6 Financement'!$B824,IF(P825>0,$B$73*((('1 Données d''entrée'!$C$332+1)^'1 Données d''entrée'!$C$333)-(1+'1 Données d''entrée'!$C$332)^('6 Financement'!P$54-1-'1 Données d''entrée'!$C$334))/((1+'1 Données d''entrée'!$C$332)^'1 Données d''entrée'!$C$333-1)*'1 Données d''entrée'!$C$332,0)))","v":0},{"$f":"IF('1 Données d''entrée'!$C$336=\"(=NON)\",IF(Q825>0,$B824*((('1 Données d''entrée'!$C$332+1)^'1 Données d''entrée'!$C$333)-(1+'1 Données d''entrée'!$C$332)^('6 Financement'!Q$54-1-'1 Données d''entrée'!$C$334))/((1+'1 Données d''entrée'!$C$332)^'1 Données d''entrée'!$C$333-1)*'1 Données d''entrée'!$C$332,0),IF(Q805<'1 Données d''entrée'!$C$334+1,'1 Données d''entrée'!$C$332*'6 Financement'!$B824,IF(Q825>0,$B$73*((('1 Données d''entrée'!$C$332+1)^'1 Données d''entrée'!$C$333)-(1+'1 Données d''entrée'!$C$332)^('6 Financement'!Q$54-1-'1 Données d''entrée'!$C$334))/((1+'1 Données d''entrée'!$C$332)^'1 Données d''entrée'!$C$333-1)*'1 Données d''entrée'!$C$332,0)))","v":0},{"$f":"IF('1 Données d''entrée'!$C$336=\"(=NON)\",IF(R825>0,$B824*((('1 Données d''entrée'!$C$332+1)^'1 Données d''entrée'!$C$333)-(1+'1 Données d''entrée'!$C$332)^('6 Financement'!R$54-1-'1 Données d''entrée'!$C$334))/((1+'1 Données d''entrée'!$C$332)^'1 Données d''entrée'!$C$333-1)*'1 Données d''entrée'!$C$332,0),IF(R805<'1 Données d''entrée'!$C$334+1,'1 Données d''entrée'!$C$332*'6 Financement'!$B824,IF(R825>0,$B$73*((('1 Données d''entrée'!$C$332+1)^'1 Données d''entrée'!$C$333)-(1+'1 Données d''entrée'!$C$332)^('6 Financement'!R$54-1-'1 Données d''entrée'!$C$334))/((1+'1 Données d''entrée'!$C$332)^'1 Données d''entrée'!$C$333-1)*'1 Données d''entrée'!$C$332,0)))","v":0},{"$f":"IF('1 Données d''entrée'!$C$336=\"(=NON)\",IF(S825>0,$B824*((('1 Données d''entrée'!$C$332+1)^'1 Données d''entrée'!$C$333)-(1+'1 Données d''entrée'!$C$332)^('6 Financement'!S$54-1-'1 Données d''entrée'!$C$334))/((1+'1 Données d''entrée'!$C$332)^'1 Données d''entrée'!$C$333-1)*'1 Données d''entrée'!$C$332,0),IF(S805<'1 Données d''entrée'!$C$334+1,'1 Données d''entrée'!$C$332*'6 Financement'!$B824,IF(S825>0,$B$73*((('1 Données d''entrée'!$C$332+1)^'1 Données d''entrée'!$C$333)-(1+'1 Données d''entrée'!$C$332)^('6 Financement'!S$54-1-'1 Données d''entrée'!$C$334))/((1+'1 Données d''entrée'!$C$332)^'1 Données d''entrée'!$C$333-1)*'1 Données d''entrée'!$C$332,0)))","v":0},{"$f":"IF('1 Données d''entrée'!$C$336=\"(=NON)\",IF(T825>0,$B824*((('1 Données d''entrée'!$C$332+1)^'1 Données d''entrée'!$C$333)-(1+'1 Données d''entrée'!$C$332)^('6 Financement'!T$54-1-'1 Données d''entrée'!$C$334))/((1+'1 Données d''entrée'!$C$332)^'1 Données d''entrée'!$C$333-1)*'1 Données d''entrée'!$C$332,0),IF(T805<'1 Données d''entrée'!$C$334+1,'1 Données d''entrée'!$C$332*'6 Financement'!$B824,IF(T825>0,$B$73*((('1 Données d''entrée'!$C$332+1)^'1 Données d''entrée'!$C$333)-(1+'1 Données d''entrée'!$C$332)^('6 Financement'!T$54-1-'1 Données d''entrée'!$C$334))/((1+'1 Données d''entrée'!$C$332)^'1 Données d''entrée'!$C$333-1)*'1 Données d''entrée'!$C$332,0)))","v":0},{"$f":"IF('1 Données d''entrée'!$C$336=\"(=NON)\",IF(U825>0,$B824*((('1 Données d''entrée'!$C$332+1)^'1 Données d''entrée'!$C$333)-(1+'1 Données d''entrée'!$C$332)^('6 Financement'!U$54-1-'1 Données d''entrée'!$C$334))/((1+'1 Données d''entrée'!$C$332)^'1 Données d''entrée'!$C$333-1)*'1 Données d''entrée'!$C$332,0),IF(U805<'1 Données d''entrée'!$C$334+1,'1 Données d''entrée'!$C$332*'6 Financement'!$B824,IF(U825>0,$B$73*((('1 Données d''entrée'!$C$332+1)^'1 Données d''entrée'!$C$333)-(1+'1 Données d''entrée'!$C$332)^('6 Financement'!U$54-1-'1 Données d''entrée'!$C$334))/((1+'1 Données d''entrée'!$C$332)^'1 Données d''entrée'!$C$333-1)*'1 Données d''entrée'!$C$332,0)))","v":0},{"$f":"IF('1 Données d''entrée'!$C$336=\"(=NON)\",IF(V825>0,$B824*((('1 Données d''entrée'!$C$332+1)^'1 Données d''entrée'!$C$333)-(1+'1 Données d''entrée'!$C$332)^('6 Financement'!V$54-1-'1 Données d''entrée'!$C$334))/((1+'1 Données d''entrée'!$C$332)^'1 Données d''entrée'!$C$333-1)*'1 Données d''entrée'!$C$332,0),IF(V805<'1 Données d''entrée'!$C$334+1,'1 Données d''entrée'!$C$332*'6 Financement'!$B824,IF(V825>0,$B$73*((('1 Données d''entrée'!$C$332+1)^'1 Données d''entrée'!$C$333)-(1+'1 Données d''entrée'!$C$332)^('6 Financement'!V$54-1-'1 Données d''entrée'!$C$334))/((1+'1 Données d''entrée'!$C$332)^'1 Données d''entrée'!$C$333-1)*'1 Données d''entrée'!$C$332,0)))","v":0}]
["Paiements d'intérêt avec des intérêts composés en cas d'absence des paiements dans la période de grâce",0,0,{"$f":"IF(D805='1 Données d''entrée'!$C$334+1,IF('1 Données d''entrée'!$C$336=\"(=NON)\",($B824*'1 Données d''entrée'!$C$332)*((('1 Données d''entrée'!$C$332+1)^'1 Données d''entrée'!$C$334-1)/('1 Données d''entrée'!$C$332))*(1+'1 Données d''entrée'!$C$332),0),0)","v":0},{"$f":"IF(E805='1 Données d''entrée'!$C$334+1,IF('1 Données d''entrée'!$C$336=\"(=NON)\",($B824*'1 Données d''entrée'!$C$332)*((('1 Données d''entrée'!$C$332+1)^'1 Données d''entrée'!$C$334-1)/('1 Données d''entrée'!$C$332))*(1+'1 Données d''entrée'!$C$332),0),0)","v":0},{"$f":"IF(F805='1 Données d''entrée'!$C$334+1,IF('1 Données d''entrée'!$C$336=\"(=NON)\",($B824*'1 Données d''entrée'!$C$332)*((('1 Données d''entrée'!$C$332+1)^'1 Données d''entrée'!$C$334-1)/('1 Données d''entrée'!$C$332))*(1+'1 Données d''entrée'!$C$332),0),0)","v":0},{"$f":"IF(G805='1 Données d''entrée'!$C$334+1,IF('1 Données d''entrée'!$C$336=\"(=NON)\",($B824*'1 Données d''entrée'!$C$332)*((('1 Données d''entrée'!$C$332+1)^'1 Données d''entrée'!$C$334-1)/('1 Données d''entrée'!$C$332))*(1+'1 Données d''entrée'!$C$332),0),0)","v":0},{"$f":"IF(H805='1 Données d''entrée'!$C$334+1,IF('1 Données d''entrée'!$C$336=\"(=NON)\",($B824*'1 Données d''entrée'!$C$332)*((('1 Données d''entrée'!$C$332+1)^'1 Données d''entrée'!$C$334-1)/('1 Données d''entrée'!$C$332))*(1+'1 Données d''entrée'!$C$332),0),0)","v":0},{"$f":"IF(I805='1 Données d''entrée'!$C$334+1,IF('1 Données d''entrée'!$C$336=\"(=NON)\",($B824*'1 Données d''entrée'!$C$332)*((('1 Données d''entrée'!$C$332+1)^'1 Données d''entrée'!$C$334-1)/('1 Données d''entrée'!$C$332))*(1+'1 Données d''entrée'!$C$332),0),0)","v":0},{"$f":"IF(J805='1 Données d''entrée'!$C$334+1,IF('1 Données d''entrée'!$C$336=\"(=NON)\",($B824*'1 Données d''entrée'!$C$332)*((('1 Données d''entrée'!$C$332+1)^'1 Données d''entrée'!$C$334-1)/('1 Données d''entrée'!$C$332))*(1+'1 Données d''entrée'!$C$332),0),0)","v":0},{"$f":"IF(K805='1 Données d''entrée'!$C$334+1,IF('1 Données d''entrée'!$C$336=\"(=NON)\",($B824*'1 Données d''entrée'!$C$332)*((('1 Données d''entrée'!$C$332+1)^'1 Données d''entrée'!$C$334-1)/('1 Données d''entrée'!$C$332))*(1+'1 Données d''entrée'!$C$332),0),0)","v":0},{"$f":"IF(L805='1 Données d''entrée'!$C$334+1,IF('1 Données d''entrée'!$C$336=\"(=NON)\",($B824*'1 Données d''entrée'!$C$332)*((('1 Données d''entrée'!$C$332+1)^'1 Données d''entrée'!$C$334-1)/('1 Données d''entrée'!$C$332))*(1+'1 Données d''entrée'!$C$332),0),0)","v":0},{"$f":"IF(M805='1 Données d''entrée'!$C$334+1,IF('1 Données d''entrée'!$C$336=\"(=NON)\",($B824*'1 Données d''entrée'!$C$332)*((('1 Données d''entrée'!$C$332+1)^'1 Données d''entrée'!$C$334-1)/('1 Données d''entrée'!$C$332))*(1+'1 Données d''entrée'!$C$332),0),0)","v":0},{"$f":"IF(N805='1 Données d''entrée'!$C$334+1,IF('1 Données d''entrée'!$C$336=\"(=NON)\",($B824*'1 Données d''entrée'!$C$332)*((('1 Données d''entrée'!$C$332+1)^'1 Données d''entrée'!$C$334-1)/('1 Données d''entrée'!$C$332))*(1+'1 Données d''entrée'!$C$332),0),0)","v":0},{"$f":"IF(O805='1 Données d''entrée'!$C$334+1,IF('1 Données d''entrée'!$C$336=\"(=NON)\",($B824*'1 Données d''entrée'!$C$332)*((('1 Données d''entrée'!$C$332+1)^'1 Données d''entrée'!$C$334-1)/('1 Données d''entrée'!$C$332))*(1+'1 Données d''entrée'!$C$332),0),0)","v":0},{"$f":"IF(P805='1 Données d''entrée'!$C$334+1,IF('1 Données d''entrée'!$C$336=\"(=NON)\",($B824*'1 Données d''entrée'!$C$332)*((('1 Données d''entrée'!$C$332+1)^'1 Données d''entrée'!$C$334-1)/('1 Données d''entrée'!$C$332))*(1+'1 Données d''entrée'!$C$332),0),0)","v":0},{"$f":"IF(Q805='1 Données d''entrée'!$C$334+1,IF('1 Données d''entrée'!$C$336=\"(=NON)\",($B824*'1 Données d''entrée'!$C$332)*((('1 Données d''entrée'!$C$332+1)^'1 Données d''entrée'!$C$334-1)/('1 Données d''entrée'!$C$332))*(1+'1 Données d''entrée'!$C$332),0),0)","v":0},{"$f":"IF(R805='1 Données d''entrée'!$C$334+1,IF('1 Données d''entrée'!$C$336=\"(=NON)\",($B824*'1 Données d''entrée'!$C$332)*((('1 Données d''entrée'!$C$332+1)^'1 Données d''entrée'!$C$334-1)/('1 Données d''entrée'!$C$332))*(1+'1 Données d''entrée'!$C$332),0),0)","v":0},{"$f":"IF(S805='1 Données d''entrée'!$C$334+1,IF('1 Données d''entrée'!$C$336=\"(=NON)\",($B824*'1 Données d''entrée'!$C$332)*((('1 Données d''entrée'!$C$332+1)^'1 Données d''entrée'!$C$334-1)/('1 Données d''entrée'!$C$332))*(1+'1 Données d''entrée'!$C$332),0),0)","v":0},{"$f":"IF(T805='1 Données d''entrée'!$C$334+1,IF('1 Données d''entrée'!$C$336=\"(=NON)\",($B824*'1 Données d''entrée'!$C$332)*((('1 Données d''entrée'!$C$332+1)^'1 Données d''entrée'!$C$334-1)/('1 Données d''entrée'!$C$332))*(1+'1 Données d''entrée'!$C$332),0),0)","v":0},{"$f":"IF(U805='1 Données d''entrée'!$C$334+1,IF('1 Données d''entrée'!$C$336=\"(=NON)\",($B824*'1 Données d''entrée'!$C$332)*((('1 Données d''entrée'!$C$332+1)^'1 Données d''entrée'!$C$334-1)/('1 Données d''entrée'!$C$332))*(1+'1 Données d''entrée'!$C$332),0),0)","v":0},{"$f":"IF(V805='1 Données d''entrée'!$C$334+1,IF('1 Données d''entrée'!$C$336=\"(=NON)\",($B824*'1 Données d''entrée'!$C$332)*((('1 Données d''entrée'!$C$332+1)^'1 Données d''entrée'!$C$334-1)/('1 Données d''entrée'!$C$332))*(1+'1 Données d''entrée'!$C$332),0),0)","v":0}]
[]
["Fonds d'autres donneurs / investisseurs - Subvention",{"$f":"'1 Données d''entrée'!$B$307","v":0}]
["Fonds d'autre donneurs / investisseurs - Prêt; Option 1: Remboursement du principal fractionné",{"$f":"'1 Données d''entrée'!$B$319","v":0},"% de prêt total"]
["Réception et montant restant",{"$f":"'1 Données d''entrée'!$B$306*'1 Données d''entrée'!$B$319+'1 Données d''entrée'!$B$306*'1 Données d''entrée'!$C$316","v":0},{"$f":"B831-C832","v":0},{"$f":"C831-D832","v":0},0,0,0,0,0,0,0,0,0,0,0,0,0,0,0,0,0,0]
["Remboursement du principal",0,{"$f":"IF(C805<'1 Données d''entrée'!$C$312+1,0,IF(C805<'1 Données d''entrée'!$C$312+'1 Données d''entrée'!$C$311+1,($B831/'1 Données d''entrée'!$C$311),0))","v":0},{"$f":"IF(D805<'1 Données d''entrée'!$C$312+1,0,IF(D805<'1 Données d''entrée'!$C$312+'1 Données d''entrée'!$C$311+1,($B831/'1 Données d''entrée'!$C$311),0))","v":0},{"$f":"IF(E805<'1 Données d''entrée'!$C$312+1,0,IF(E805<'1 Données d''entrée'!$C$312+'1 Données d''entrée'!$C$311+1,($B831/'1 Données d''entrée'!$C$311),0))","v":0},{"$f":"IF(F805<'1 Données d''entrée'!$C$312+1,0,IF(F805<'1 Données d''entrée'!$C$312+'1 Données d''entrée'!$C$311+1,($B831/'1 Données d''entrée'!$C$311),0))","v":0},{"$f":"IF(G805<'1 Données d''entrée'!$C$312+1,0,IF(G805<'1 Données d''entrée'!$C$312+'1 Données d''entrée'!$C$311+1,($B831/'1 Données d''entrée'!$C$311),0))","v":0},{"$f":"IF(H805<'1 Données d''entrée'!$C$312+1,0,IF(H805<'1 Données d''entrée'!$C$312+'1 Données d''entrée'!$C$311+1,($B831/'1 Données d''entrée'!$C$311),0))","v":0},{"$f":"IF(I805<'1 Données d''entrée'!$C$312+1,0,IF(I805<'1 Données d''entrée'!$C$312+'1 Données d''entrée'!$C$311+1,($B831/'1 Données d''entrée'!$C$311),0))","v":0},{"$f":"IF(J805<'1 Données d''entrée'!$C$312+1,0,IF(J805<'1 Données d''entrée'!$C$312+'1 Données d''entrée'!$C$311+1,($B831/'1 Données d''entrée'!$C$311),0))","v":0},{"$f":"IF(K805<'1 Données d''entrée'!$C$312+1,0,IF(K805<'1 Données d''entrée'!$C$312+'1 Données d''entrée'!$C$311+1,($B831/'1 Données d''entrée'!$C$311),0))","v":0},{"$f":"IF(L805<'1 Données d''entrée'!$C$312+1,0,IF(L805<'1 Données d''entrée'!$C$312+'1 Données d''entrée'!$C$311+1,($B831/'1 Données d''entrée'!$C$311),0))","v":0},{"$f":"IF(M805<'1 Données d''entrée'!$C$312+1,0,IF(M805<'1 Données d''entrée'!$C$312+'1 Données d''entrée'!$C$311+1,($B831/'1 Données d''entrée'!$C$311),0))","v":0},{"$f":"IF(N805<'1 Données d''entrée'!$C$312+1,0,IF(N805<'1 Données d''entrée'!$C$312+'1 Données d''entrée'!$C$311+1,($B831/'1 Données d''entrée'!$C$311),0))","v":0},{"$f":"IF(O805<'1 Données d''entrée'!$C$312+1,0,IF(O805<'1 Données d''entrée'!$C$312+'1 Données d''entrée'!$C$311+1,($B831/'1 Données d''entrée'!$C$311),0))","v":0},{"$f":"IF(P805<'1 Données d''entrée'!$C$312+1,0,IF(P805<'1 Données d''entrée'!$C$312+'1 Données d''entrée'!$C$311+1,($B831/'1 Données d''entrée'!$C$311),0))","v":0},{"$f":"IF(Q805<'1 Données d''entrée'!$C$312+1,0,IF(Q805<'1 Données d''entrée'!$C$312+'1 Données d''entrée'!$C$311+1,($B831/'1 Données d''entrée'!$C$311),0))","v":0},{"$f":"IF(R805<'1 Données d''entrée'!$C$312+1,0,IF(R805<'1 Données d''entrée'!$C$312+'1 Données d''entrée'!$C$311+1,($B831/'1 Données d''entrée'!$C$311),0))","v":0},{"$f":"IF(S805<'1 Données d''entrée'!$C$312+1,0,IF(S805<'1 Données d''entrée'!$C$312+'1 Données d''entrée'!$C$311+1,($B831/'1 Données d''entrée'!$C$311),0))","v":0},{"$f":"IF(T805<'1 Données d''entrée'!$C$312+1,0,IF(T805<'1 Données d''entrée'!$C$312+'1 Données d''entrée'!$C$311+1,($B831/'1 Données d''entrée'!$C$311),0))","v":0},{"$f":"IF(U805<'1 Données d''entrée'!$C$312+1,0,IF(U805<'1 Données d''entrée'!$C$312+'1 Données d''entrée'!$C$311+1,($B831/'1 Données d''entrée'!$C$311),0))","v":0},{"$f":"IF(V805<'1 Données d''entrée'!$C$312+1,0,IF(V805<'1 Données d''entrée'!$C$312+'1 Données d''entrée'!$C$311+1,($B831/'1 Données d''entrée'!$C$311),0))","v":0}]
["Paiement d'intérêts",0,{"$f":"IF('1 Données d''entrée'!$C$314=\"(=NON)\",IF(C805<'1 Données d''entrée'!$C$312+1,0,B831*'1 Données d''entrée'!$C$310),B831*'1 Données d''entrée'!$C$310)","v":0},{"$f":"IF('1 Données d''entrée'!$C$314=\"(=NON)\",IF(D805<'1 Données d''entrée'!$C$312+1,0,C831*'1 Données d''entrée'!$C$310),C831*'1 Données d''entrée'!$C$310)","v":0},{"$f":"IF('1 Données d''entrée'!$C$314=\"(=NON)\",IF(E805<'1 Données d''entrée'!$C$312+1,0,D831*'1 Données d''entrée'!$C$310),D831*'1 Données d''entrée'!$C$310)","v":0},{"$f":"IF('1 Données d''entrée'!$C$314=\"(=NON)\",IF(F805<'1 Données d''entrée'!$C$312+1,0,E831*'1 Données d''entrée'!$C$310),E831*'1 Données d''entrée'!$C$310)","v":0},{"$f":"IF('1 Données d''entrée'!$C$314=\"(=NON)\",IF(G805<'1 Données d''entrée'!$C$312+1,0,F831*'1 Données d''entrée'!$C$310),F831*'1 Données d''entrée'!$C$310)","v":0},{"$f":"IF('1 Données d''entrée'!$C$314=\"(=NON)\",IF(H805<'1 Données d''entrée'!$C$312+1,0,G831*'1 Données d''entrée'!$C$310),G831*'1 Données d''entrée'!$C$310)","v":0},{"$f":"IF('1 Données d''entrée'!$C$314=\"(=NON)\",IF(I805<'1 Données d''entrée'!$C$312+1,0,H831*'1 Données d''entrée'!$C$310),H831*'1 Données d''entrée'!$C$310)","v":0},{"$f":"IF('1 Données d''entrée'!$C$314=\"(=NON)\",IF(J805<'1 Données d''entrée'!$C$312+1,0,I831*'1 Données d''entrée'!$C$310),I831*'1 Données d''entrée'!$C$310)","v":0},{"$f":"IF('1 Données d''entrée'!$C$314=\"(=NON)\",IF(K805<'1 Données d''entrée'!$C$312+1,0,J831*'1 Données d''entrée'!$C$310),J831*'1 Données d''entrée'!$C$310)","v":0},{"$f":"IF('1 Données d''entrée'!$C$314=\"(=NON)\",IF(L805<'1 Données d''entrée'!$C$312+1,0,K831*'1 Données d''entrée'!$C$310),K831*'1 Données d''entrée'!$C$310)","v":0},{"$f":"IF('1 Données d''entrée'!$C$314=\"(=NON)\",IF(M805<'1 Données d''entrée'!$C$312+1,0,L831*'1 Données d''entrée'!$C$310),L831*'1 Données d''entrée'!$C$310)","v":0},{"$f":"IF('1 Données d''entrée'!$C$314=\"(=NON)\",IF(N805<'1 Données d''entrée'!$C$312+1,0,M831*'1 Données d''entrée'!$C$310),M831*'1 Données d''entrée'!$C$310)","v":0},{"$f":"IF('1 Données d''entrée'!$C$314=\"(=NON)\",IF(O805<'1 Données d''entrée'!$C$312+1,0,N831*'1 Données d''entrée'!$C$310),N831*'1 Données d''entrée'!$C$310)","v":0},{"$f":"IF('1 Données d''entrée'!$C$314=\"(=NON)\",IF(P805<'1 Données d''entrée'!$C$312+1,0,O831*'1 Données d''entrée'!$C$310),O831*'1 Données d''entrée'!$C$310)","v":0},{"$f":"IF('1 Données d''entrée'!$C$314=\"(=NON)\",IF(Q805<'1 Données d''entrée'!$C$312+1,0,P831*'1 Données d''entrée'!$C$310),P831*'1 Données d''entrée'!$C$310)","v":0},{"$f":"IF('1 Données d''entrée'!$C$314=\"(=NON)\",IF(R805<'1 Données d''entrée'!$C$312+1,0,Q831*'1 Données d''entrée'!$C$310),Q831*'1 Données d''entrée'!$C$310)","v":0},{"$f":"IF('1 Données d''entrée'!$C$314=\"(=NON)\",IF(S805<'1 Données d''entrée'!$C$312+1,0,R831*'1 Données d''entrée'!$C$310),R831*'1 Données d''entrée'!$C$310)","v":0},{"$f":"IF('1 Données d''entrée'!$C$314=\"(=NON)\",IF(T805<'1 Données d''entrée'!$C$312+1,0,S831*'1 Données d''entrée'!$C$310),S831*'1 Données d''entrée'!$C$310)","v":0},{"$f":"IF('1 Données d''entrée'!$C$314=\"(=NON)\",IF(U805<'1 Données d''entrée'!$C$312+1,0,T831*'1 Données d''entrée'!$C$310),T831*'1 Données d''entrée'!$C$310)","v":0},{"$f":"IF('1 Données d''entrée'!$C$314=\"(=NON)\",IF(V805<'1 Données d''entrée'!$C$312+1,0,U831*'1 Données d''entrée'!$C$310),U831*'1 Données d''entrée'!$C$310)","v":0}]
["Paiements d'intérêt avec des intérêts composés en cas d'absence des paiements dans la période de grâce",0,0,{"$f":"IF(D805='1 Données d''entrée'!$C$312+1,IF('1 Données d''entrée'!$C$314=\"(=NON)\",($B831*'1 Données d''entrée'!$C$310)*((('1 Données d''entrée'!$C$310+1)^'1 Données d''entrée'!$C$312-1)/('1 Données d''entrée'!$C$310))*(1+'1 Données d''entrée'!$C$310),0),0)","v":0},{"$f":"IF(E805='1 Données d''entrée'!$C$312+1,IF('1 Données d''entrée'!$C$314=\"(=NON)\",($B831*'1 Données d''entrée'!$C$310)*((('1 Données d''entrée'!$C$310+1)^'1 Données d''entrée'!$C$312-1)/('1 Données d''entrée'!$C$310))*(1+'1 Données d''entrée'!$C$310),0),0)","v":0},{"$f":"IF(F805='1 Données d''entrée'!$C$312+1,IF('1 Données d''entrée'!$C$314=\"(=NON)\",($B831*'1 Données d''entrée'!$C$310)*((('1 Données d''entrée'!$C$310+1)^'1 Données d''entrée'!$C$312-1)/('1 Données d''entrée'!$C$310))*(1+'1 Données d''entrée'!$C$310),0),0)","v":0},{"$f":"IF(G805='1 Données d''entrée'!$C$312+1,IF('1 Données d''entrée'!$C$314=\"(=NON)\",($B831*'1 Données d''entrée'!$C$310)*((('1 Données d''entrée'!$C$310+1)^'1 Données d''entrée'!$C$312-1)/('1 Données d''entrée'!$C$310))*(1+'1 Données d''entrée'!$C$310),0),0)","v":0},{"$f":"IF(H805='1 Données d''entrée'!$C$312+1,IF('1 Données d''entrée'!$C$314=\"(=NON)\",($B831*'1 Données d''entrée'!$C$310)*((('1 Données d''entrée'!$C$310+1)^'1 Données d''entrée'!$C$312-1)/('1 Données d''entrée'!$C$310))*(1+'1 Données d''entrée'!$C$310),0),0)","v":0},{"$f":"IF(I805='1 Données d''entrée'!$C$312+1,IF('1 Données d''entrée'!$C$314=\"(=NON)\",($B831*'1 Données d''entrée'!$C$310)*((('1 Données d''entrée'!$C$310+1)^'1 Données d''entrée'!$C$312-1)/('1 Données d''entrée'!$C$310))*(1+'1 Données d''entrée'!$C$310),0),0)","v":0},{"$f":"IF(J805='1 Données d''entrée'!$C$312+1,IF('1 Données d''entrée'!$C$314=\"(=NON)\",($B831*'1 Données d''entrée'!$C$310)*((('1 Données d''entrée'!$C$310+1)^'1 Données d''entrée'!$C$312-1)/('1 Données d''entrée'!$C$310))*(1+'1 Données d''entrée'!$C$310),0),0)","v":0},{"$f":"IF(K805='1 Données d''entrée'!$C$312+1,IF('1 Données d''entrée'!$C$314=\"(=NON)\",($B831*'1 Données d''entrée'!$C$310)*((('1 Données d''entrée'!$C$310+1)^'1 Données d''entrée'!$C$312-1)/('1 Données d''entrée'!$C$310))*(1+'1 Données d''entrée'!$C$310),0),0)","v":0},{"$f":"IF(L805='1 Données d''entrée'!$C$312+1,IF('1 Données d''entrée'!$C$314=\"(=NON)\",($B831*'1 Données d''entrée'!$C$310)*((('1 Données d''entrée'!$C$310+1)^'1 Données d''entrée'!$C$312-1)/('1 Données d''entrée'!$C$310))*(1+'1 Données d''entrée'!$C$310),0),0)","v":0},{"$f":"IF(M805='1 Données d''entrée'!$C$312+1,IF('1 Données d''entrée'!$C$314=\"(=NON)\",($B831*'1 Données d''entrée'!$C$310)*((('1 Données d''entrée'!$C$310+1)^'1 Données d''entrée'!$C$312-1)/('1 Données d''entrée'!$C$310))*(1+'1 Données d''entrée'!$C$310),0),0)","v":0},{"$f":"IF(N805='1 Données d''entrée'!$C$312+1,IF('1 Données d''entrée'!$C$314=\"(=NON)\",($B831*'1 Données d''entrée'!$C$310)*((('1 Données d''entrée'!$C$310+1)^'1 Données d''entrée'!$C$312-1)/('1 Données d''entrée'!$C$310))*(1+'1 Données d''entrée'!$C$310),0),0)","v":0},{"$f":"IF(O805='1 Données d''entrée'!$C$312+1,IF('1 Données d''entrée'!$C$314=\"(=NON)\",($B831*'1 Données d''entrée'!$C$310)*((('1 Données d''entrée'!$C$310+1)^'1 Données d''entrée'!$C$312-1)/('1 Données d''entrée'!$C$310))*(1+'1 Données d''entrée'!$C$310),0),0)","v":0},{"$f":"IF(P805='1 Données d''entrée'!$C$312+1,IF('1 Données d''entrée'!$C$314=\"(=NON)\",($B831*'1 Données d''entrée'!$C$310)*((('1 Données d''entrée'!$C$310+1)^'1 Données d''entrée'!$C$312-1)/('1 Données d''entrée'!$C$310))*(1+'1 Données d''entrée'!$C$310),0),0)","v":0},{"$f":"IF(Q805='1 Données d''entrée'!$C$312+1,IF('1 Données d''entrée'!$C$314=\"(=NON)\",($B831*'1 Données d''entrée'!$C$310)*((('1 Données d''entrée'!$C$310+1)^'1 Données d''entrée'!$C$312-1)/('1 Données d''entrée'!$C$310))*(1+'1 Données d''entrée'!$C$310),0),0)","v":0},{"$f":"IF(R805='1 Données d''entrée'!$C$312+1,IF('1 Données d''entrée'!$C$314=\"(=NON)\",($B831*'1 Données d''entrée'!$C$310)*((('1 Données d''entrée'!$C$310+1)^'1 Données d''entrée'!$C$312-1)/('1 Données d''entrée'!$C$310))*(1+'1 Données d''entrée'!$C$310),0),0)","v":0},{"$f":"IF(S805='1 Données d''entrée'!$C$312+1,IF('1 Données d''entrée'!$C$314=\"(=NON)\",($B831*'1 Données d''entrée'!$C$310)*((('1 Données d''entrée'!$C$310+1)^'1 Données d''entrée'!$C$312-1)/('1 Données d''entrée'!$C$310))*(1+'1 Données d''entrée'!$C$310),0),0)","v":0},{"$f":"IF(T805='1 Données d''entrée'!$C$312+1,IF('1 Données d''entrée'!$C$314=\"(=NON)\",($B831*'1 Données d''entrée'!$C$310)*((('1 Données d''entrée'!$C$310+1)^'1 Données d''entrée'!$C$312-1)/('1 Données d''entrée'!$C$310))*(1+'1 Données d''entrée'!$C$310),0),0)","v":0},{"$f":"IF(U805='1 Données d''entrée'!$C$312+1,IF('1 Données d''entrée'!$C$314=\"(=NON)\",($B831*'1 Données d''entrée'!$C$310)*((('1 Données d''entrée'!$C$310+1)^'1 Données d''entrée'!$C$312-1)/('1 Données d''entrée'!$C$310))*(1+'1 Données d''entrée'!$C$310),0),0)","v":0},{"$f":"IF(V805='1 Données d''entrée'!$C$312+1,IF('1 Données d''entrée'!$C$314=\"(=NON)\",($B831*'1 Données d''entrée'!$C$310)*((('1 Données d''entrée'!$C$310+1)^'1 Données d''entrée'!$C$312-1)/('1 Données d''entrée'!$C$310))*(1+'1 Données d''entrée'!$C$310),0),0)","v":0}]
["Fonds d'autre donneurs / investisseurs - Prêt; Option 2: Remboursement du principal final",{"$f":"'1 Données d''entrée'!$B$320","v":0},"% de prêt total"]
["Réception et montant restant",{"$f":"'1 Données d''entrée'!$B$306*'1 Données d''entrée'!$B$320+'1 Données d''entrée'!$B$306*'1 Données d''entrée'!$C$316","v":0},{"$f":"B836-C837","v":0},{"$f":"C836-D837","v":0},0,0,0,0,0,0,0,0,0,0,0,0,0,0,0,0,0,0]
["Remboursement du principal",0,{"$f":"IF('1 Données d''entrée'!$C$311+'1 Données d''entrée'!$C$312=C805,'6 Financement'!$B$85,0)","v":0},{"$f":"IF('1 Données d''entrée'!$C$311+'1 Données d''entrée'!$C$312=D805,'6 Financement'!$B$85,0)","v":0},{"$f":"IF('1 Données d''entrée'!$C$311+'1 Données d''entrée'!$C$312=E805,'6 Financement'!$B$85,0)","v":0},{"$f":"IF('1 Données d''entrée'!$C$311+'1 Données d''entrée'!$C$312=F805,'6 Financement'!$B$85,0)","v":0},{"$f":"IF('1 Données d''entrée'!$C$311+'1 Données d''entrée'!$C$312=G805,'6 Financement'!$B$85,0)","v":0},{"$f":"IF('1 Données d''entrée'!$C$311+'1 Données d''entrée'!$C$312=H805,'6 Financement'!$B$85,0)","v":0},{"$f":"IF('1 Données d''entrée'!$C$311+'1 Données d''entrée'!$C$312=I805,'6 Financement'!$B$85,0)","v":0},{"$f":"IF('1 Données d''entrée'!$C$311+'1 Données d''entrée'!$C$312=J805,'6 Financement'!$B$85,0)","v":0},{"$f":"IF('1 Données d''entrée'!$C$311+'1 Données d''entrée'!$C$312=K805,'6 Financement'!$B$85,0)","v":0},{"$f":"IF('1 Données d''entrée'!$C$311+'1 Données d''entrée'!$C$312=L805,'6 Financement'!$B$85,0)","v":0},{"$f":"IF('1 Données d''entrée'!$C$311+'1 Données d''entrée'!$C$312=M805,'6 Financement'!$B$85,0)","v":0},{"$f":"IF('1 Données d''entrée'!$C$311+'1 Données d''entrée'!$C$312=N805,'6 Financement'!$B$85,0)","v":0},{"$f":"IF('1 Données d''entrée'!$C$311+'1 Données d''entrée'!$C$312=O805,'6 Financement'!$B$85,0)","v":0},{"$f":"IF('1 Données d''entrée'!$C$311+'1 Données d''entrée'!$C$312=P805,'6 Financement'!$B$85,0)","v":0},{"$f":"IF('1 Données d''entrée'!$C$311+'1 Données d''entrée'!$C$312=Q805,'6 Financement'!$B$85,0)","v":0},{"$f":"IF('1 Données d''entrée'!$C$311+'1 Données d''entrée'!$C$312=R805,'6 Financement'!$B$85,0)","v":0},{"$f":"IF('1 Données d''entrée'!$C$311+'1 Données d''entrée'!$C$312=S805,'6 Financement'!$B$85,0)","v":0},{"$f":"IF('1 Données d''entrée'!$C$311+'1 Données d''entrée'!$C$312=T805,'6 Financement'!$B$85,0)","v":0},{"$f":"IF('1 Données d''entrée'!$C$311+'1 Données d''entrée'!$C$312=U805,'6 Financement'!$B$85,0)","v":0},{"$f":"IF('1 Données d''entrée'!$C$311+'1 Données d''entrée'!$C$312=V805,'6 Financement'!$B$85,0)","v":0}]
["Paiement d'intérêts",0,{"$f":"IF('1 Données d''entrée'!$C$314=\"(=NON)\",IF(C805<'1 Données d''entrée'!$C$312+1,0,B836*'1 Données d''entrée'!$C$310),B836*'1 Données d''entrée'!$C$310)","v":0},{"$f":"IF('1 Données d''entrée'!$C$314=\"(=NON)\",IF(D805<'1 Données d''entrée'!$C$312+1,0,C836*'1 Données d''entrée'!$C$310),C836*'1 Données d''entrée'!$C$310)","v":0},{"$f":"IF('1 Données d''entrée'!$C$314=\"(=NON)\",IF(E805<'1 Données d''entrée'!$C$312+1,0,D836*'1 Données d''entrée'!$C$310),D836*'1 Données d''entrée'!$C$310)","v":0},{"$f":"IF('1 Données d''entrée'!$C$314=\"(=NON)\",IF(F805<'1 Données d''entrée'!$C$312+1,0,E836*'1 Données d''entrée'!$C$310),E836*'1 Données d''entrée'!$C$310)","v":0},{"$f":"IF('1 Données d''entrée'!$C$314=\"(=NON)\",IF(G805<'1 Données d''entrée'!$C$312+1,0,F836*'1 Données d''entrée'!$C$310),F836*'1 Données d''entrée'!$C$310)","v":0},{"$f":"IF('1 Données d''entrée'!$C$314=\"(=NON)\",IF(H805<'1 Données d''entrée'!$C$312+1,0,G836*'1 Données d''entrée'!$C$310),G836*'1 Données d''entrée'!$C$310)","v":0},{"$f":"IF('1 Données d''entrée'!$C$314=\"(=NON)\",IF(I805<'1 Données d''entrée'!$C$312+1,0,H836*'1 Données d''entrée'!$C$310),H836*'1 Données d''entrée'!$C$310)","v":0},{"$f":"IF('1 Données d''entrée'!$C$314=\"(=NON)\",IF(J805<'1 Données d''entrée'!$C$312+1,0,I836*'1 Données d''entrée'!$C$310),I836*'1 Données d''entrée'!$C$310)","v":0},{"$f":"IF('1 Données d''entrée'!$C$314=\"(=NON)\",IF(K805<'1 Données d''entrée'!$C$312+1,0,J836*'1 Données d''entrée'!$C$310),J836*'1 Données d''entrée'!$C$310)","v":0},{"$f":"IF('1 Données d''entrée'!$C$314=\"(=NON)\",IF(L805<'1 Données d''entrée'!$C$312+1,0,K836*'1 Données d''entrée'!$C$310),K836*'1 Données d''entrée'!$C$310)","v":0},{"$f":"IF('1 Données d''entrée'!$C$314=\"(=NON)\",IF(M805<'1 Données d''entrée'!$C$312+1,0,L836*'1 Données d''entrée'!$C$310),L836*'1 Données d''entrée'!$C$310)","v":0},{"$f":"IF('1 Données d''entrée'!$C$314=\"(=NON)\",IF(N805<'1 Données d''entrée'!$C$312+1,0,M836*'1 Données d''entrée'!$C$310),M836*'1 Données d''entrée'!$C$310)","v":0},{"$f":"IF('1 Données d''entrée'!$C$314=\"(=NON)\",IF(O805<'1 Données d''entrée'!$C$312+1,0,N836*'1 Données d''entrée'!$C$310),N836*'1 Données d''entrée'!$C$310)","v":0},{"$f":"IF('1 Données d''entrée'!$C$314=\"(=NON)\",IF(P805<'1 Données d''entrée'!$C$312+1,0,O836*'1 Données d''entrée'!$C$310),O836*'1 Données d''entrée'!$C$310)","v":0},{"$f":"IF('1 Données d''entrée'!$C$314=\"(=NON)\",IF(Q805<'1 Données d''entrée'!$C$312+1,0,P836*'1 Données d''entrée'!$C$310),P836*'1 Données d''entrée'!$C$310)","v":0},{"$f":"IF('1 Données d''entrée'!$C$314=\"(=NON)\",IF(R805<'1 Données d''entrée'!$C$312+1,0,Q836*'1 Données d''entrée'!$C$310),Q836*'1 Données d''entrée'!$C$310)","v":0},{"$f":"IF('1 Données d''entrée'!$C$314=\"(=NON)\",IF(S805<'1 Données d''entrée'!$C$312+1,0,R836*'1 Données d''entrée'!$C$310),R836*'1 Données d''entrée'!$C$310)","v":0},{"$f":"IF('1 Données d''entrée'!$C$314=\"(=NON)\",IF(T805<'1 Données d''entrée'!$C$312+1,0,S836*'1 Données d''entrée'!$C$310),S836*'1 Données d''entrée'!$C$310)","v":0},{"$f":"IF('1 Données d''entrée'!$C$314=\"(=NON)\",IF(U805<'1 Données d''entrée'!$C$312+1,0,T836*'1 Données d''entrée'!$C$310),T836*'1 Données d''entrée'!$C$310)","v":0},{"$f":"IF('1 Données d''entrée'!$C$314=\"(=NON)\",IF(V805<'1 Données d''entrée'!$C$312+1,0,U836*'1 Données d''entrée'!$C$310),U836*'1 Données d''entrée'!$C$310)","v":0}]
["Paiements d'intérêt avec des intérêts composés en cas d'absence des paiements dans la période de grâce",0,0,{"$f":"IF(D805='1 Données d''entrée'!$C$312+1,IF('1 Données d''entrée'!$C$314=\"(=NON)\",($B836*'1 Données d''entrée'!$C$310)*((('1 Données d''entrée'!$C$310+1)^'1 Données d''entrée'!$C$312-1)/('1 Données d''entrée'!$C$310))*(1+'1 Données d''entrée'!$C$310),0),0)","v":0},{"$f":"IF(E805='1 Données d''entrée'!$C$312+1,IF('1 Données d''entrée'!$C$314=\"(=NON)\",($B836*'1 Données d''entrée'!$C$310)*((('1 Données d''entrée'!$C$310+1)^'1 Données d''entrée'!$C$312-1)/('1 Données d''entrée'!$C$310))*(1+'1 Données d''entrée'!$C$310),0),0)","v":0},{"$f":"IF(F805='1 Données d''entrée'!$C$312+1,IF('1 Données d''entrée'!$C$314=\"(=NON)\",($B836*'1 Données d''entrée'!$C$310)*((('1 Données d''entrée'!$C$310+1)^'1 Données d''entrée'!$C$312-1)/('1 Données d''entrée'!$C$310))*(1+'1 Données d''entrée'!$C$310),0),0)","v":0},{"$f":"IF(G805='1 Données d''entrée'!$C$312+1,IF('1 Données d''entrée'!$C$314=\"(=NON)\",($B836*'1 Données d''entrée'!$C$310)*((('1 Données d''entrée'!$C$310+1)^'1 Données d''entrée'!$C$312-1)/('1 Données d''entrée'!$C$310))*(1+'1 Données d''entrée'!$C$310),0),0)","v":0},{"$f":"IF(H805='1 Données d''entrée'!$C$312+1,IF('1 Données d''entrée'!$C$314=\"(=NON)\",($B836*'1 Données d''entrée'!$C$310)*((('1 Données d''entrée'!$C$310+1)^'1 Données d''entrée'!$C$312-1)/('1 Données d''entrée'!$C$310))*(1+'1 Données d''entrée'!$C$310),0),0)","v":0},{"$f":"IF(I805='1 Données d''entrée'!$C$312+1,IF('1 Données d''entrée'!$C$314=\"(=NON)\",($B836*'1 Données d''entrée'!$C$310)*((('1 Données d''entrée'!$C$310+1)^'1 Données d''entrée'!$C$312-1)/('1 Données d''entrée'!$C$310))*(1+'1 Données d''entrée'!$C$310),0),0)","v":0},{"$f":"IF(J805='1 Données d''entrée'!$C$312+1,IF('1 Données d''entrée'!$C$314=\"(=NON)\",($B836*'1 Données d''entrée'!$C$310)*((('1 Données d''entrée'!$C$310+1)^'1 Données d''entrée'!$C$312-1)/('1 Données d''entrée'!$C$310))*(1+'1 Données d''entrée'!$C$310),0),0)","v":0},{"$f":"IF(K805='1 Données d''entrée'!$C$312+1,IF('1 Données d''entrée'!$C$314=\"(=NON)\",($B836*'1 Données d''entrée'!$C$310)*((('1 Données d''entrée'!$C$310+1)^'1 Données d''entrée'!$C$312-1)/('1 Données d''entrée'!$C$310))*(1+'1 Données d''entrée'!$C$310),0),0)","v":0},{"$f":"IF(L805='1 Données d''entrée'!$C$312+1,IF('1 Données d''entrée'!$C$314=\"(=NON)\",($B836*'1 Données d''entrée'!$C$310)*((('1 Données d''entrée'!$C$310+1)^'1 Données d''entrée'!$C$312-1)/('1 Données d''entrée'!$C$310))*(1+'1 Données d''entrée'!$C$310),0),0)","v":0},{"$f":"IF(M805='1 Données d''entrée'!$C$312+1,IF('1 Données d''entrée'!$C$314=\"(=NON)\",($B836*'1 Données d''entrée'!$C$310)*((('1 Données d''entrée'!$C$310+1)^'1 Données d''entrée'!$C$312-1)/('1 Données d''entrée'!$C$310))*(1+'1 Données d''entrée'!$C$310),0),0)","v":0},{"$f":"IF(N805='1 Données d''entrée'!$C$312+1,IF('1 Données d''entrée'!$C$314=\"(=NON)\",($B836*'1 Données d''entrée'!$C$310)*((('1 Données d''entrée'!$C$310+1)^'1 Données d''entrée'!$C$312-1)/('1 Données d''entrée'!$C$310))*(1+'1 Données d''entrée'!$C$310),0),0)","v":0},{"$f":"IF(O805='1 Données d''entrée'!$C$312+1,IF('1 Données d''entrée'!$C$314=\"(=NON)\",($B836*'1 Données d''entrée'!$C$310)*((('1 Données d''entrée'!$C$310+1)^'1 Données d''entrée'!$C$312-1)/('1 Données d''entrée'!$C$310))*(1+'1 Données d''entrée'!$C$310),0),0)","v":0},{"$f":"IF(P805='1 Données d''entrée'!$C$312+1,IF('1 Données d''entrée'!$C$314=\"(=NON)\",($B836*'1 Données d''entrée'!$C$310)*((('1 Données d''entrée'!$C$310+1)^'1 Données d''entrée'!$C$312-1)/('1 Données d''entrée'!$C$310))*(1+'1 Données d''entrée'!$C$310),0),0)","v":0},{"$f":"IF(Q805='1 Données d''entrée'!$C$312+1,IF('1 Données d''entrée'!$C$314=\"(=NON)\",($B836*'1 Données d''entrée'!$C$310)*((('1 Données d''entrée'!$C$310+1)^'1 Données d''entrée'!$C$312-1)/('1 Données d''entrée'!$C$310))*(1+'1 Données d''entrée'!$C$310),0),0)","v":0},{"$f":"IF(R805='1 Données d''entrée'!$C$312+1,IF('1 Données d''entrée'!$C$314=\"(=NON)\",($B836*'1 Données d''entrée'!$C$310)*((('1 Données d''entrée'!$C$310+1)^'1 Données d''entrée'!$C$312-1)/('1 Données d''entrée'!$C$310))*(1+'1 Données d''entrée'!$C$310),0),0)","v":0},{"$f":"IF(S805='1 Données d''entrée'!$C$312+1,IF('1 Données d''entrée'!$C$314=\"(=NON)\",($B836*'1 Données d''entrée'!$C$310)*((('1 Données d''entrée'!$C$310+1)^'1 Données d''entrée'!$C$312-1)/('1 Données d''entrée'!$C$310))*(1+'1 Données d''entrée'!$C$310),0),0)","v":0},{"$f":"IF(T805='1 Données d''entrée'!$C$312+1,IF('1 Données d''entrée'!$C$314=\"(=NON)\",($B836*'1 Données d''entrée'!$C$310)*((('1 Données d''entrée'!$C$310+1)^'1 Données d''entrée'!$C$312-1)/('1 Données d''entrée'!$C$310))*(1+'1 Données d''entrée'!$C$310),0),0)","v":0},{"$f":"IF(U805='1 Données d''entrée'!$C$312+1,IF('1 Données d''entrée'!$C$314=\"(=NON)\",($B836*'1 Données d''entrée'!$C$310)*((('1 Données d''entrée'!$C$310+1)^'1 Données d''entrée'!$C$312-1)/('1 Données d''entrée'!$C$310))*(1+'1 Données d''entrée'!$C$310),0),0)","v":0},{"$f":"IF(V805='1 Données d''entrée'!$C$312+1,IF('1 Données d''entrée'!$C$314=\"(=NON)\",($B836*'1 Données d''entrée'!$C$310)*((('1 Données d''entrée'!$C$310+1)^'1 Données d''entrée'!$C$312-1)/('1 Données d''entrée'!$C$310))*(1+'1 Données d''entrée'!$C$310),0),0)","v":0}]
["Fonds d'autre donneurs / investisseurs - Prêt; Option 3: Remboursement vers l'annuité constante",{"$f":"'1 Données d''entrée'!$B$321","v":0},"% de prêt total"]
["Réception ",{"$f":"B840*'1 Données d''entrée'!$B$306+'1 Données d''entrée'!$B$306*'1 Données d''entrée'!$C$316","v":0},0,0,0,0,0,0,0,0,0,0,0,0,0,0,0,0,0,0,0,0]
["Remboursement vers l'annuité constante",{"$f":"IF(B805<'1 Données d''entrée'!$C$312+1,0,IF(B805<'1 Données d''entrée'!$C$311+'1 Données d''entrée'!$C$312+1,$B841*('1 Données d''entrée'!$C$310*(1+'1 Données d''entrée'!$C$310)^'1 Données d''entrée'!$C$311)/((1+'1 Données d''entrée'!$C$310)^'1 Données d''entrée'!$C$311-1),0))","v":0},{"$f":"IF(C805<'1 Données d''entrée'!$C$312+1,0,IF(C805<'1 Données d''entrée'!$C$311+'1 Données d''entrée'!$C$312+1,$B841*('1 Données d''entrée'!$C$310*(1+'1 Données d''entrée'!$C$310)^'1 Données d''entrée'!$C$311)/((1+'1 Données d''entrée'!$C$310)^'1 Données d''entrée'!$C$311-1),0))","v":0},{"$f":"IF(D805<'1 Données d''entrée'!$C$312+1,0,IF(D805<'1 Données d''entrée'!$C$311+'1 Données d''entrée'!$C$312+1,$B841*('1 Données d''entrée'!$C$310*(1+'1 Données d''entrée'!$C$310)^'1 Données d''entrée'!$C$311)/((1+'1 Données d''entrée'!$C$310)^'1 Données d''entrée'!$C$311-1),0))","v":0},{"$f":"IF(E805<'1 Données d''entrée'!$C$312+1,0,IF(E805<'1 Données d''entrée'!$C$311+'1 Données d''entrée'!$C$312+1,$B841*('1 Données d''entrée'!$C$310*(1+'1 Données d''entrée'!$C$310)^'1 Données d''entrée'!$C$311)/((1+'1 Données d''entrée'!$C$310)^'1 Données d''entrée'!$C$311-1),0))","v":0},{"$f":"IF(F805<'1 Données d''entrée'!$C$312+1,0,IF(F805<'1 Données d''entrée'!$C$311+'1 Données d''entrée'!$C$312+1,$B841*('1 Données d''entrée'!$C$310*(1+'1 Données d''entrée'!$C$310)^'1 Données d''entrée'!$C$311)/((1+'1 Données d''entrée'!$C$310)^'1 Données d''entrée'!$C$311-1),0))","v":0},{"$f":"IF(G805<'1 Données d''entrée'!$C$312+1,0,IF(G805<'1 Données d''entrée'!$C$311+'1 Données d''entrée'!$C$312+1,$B841*('1 Données d''entrée'!$C$310*(1+'1 Données d''entrée'!$C$310)^'1 Données d''entrée'!$C$311)/((1+'1 Données d''entrée'!$C$310)^'1 Données d''entrée'!$C$311-1),0))","v":0},{"$f":"IF(H805<'1 Données d''entrée'!$C$312+1,0,IF(H805<'1 Données d''entrée'!$C$311+'1 Données d''entrée'!$C$312+1,$B841*('1 Données d''entrée'!$C$310*(1+'1 Données d''entrée'!$C$310)^'1 Données d''entrée'!$C$311)/((1+'1 Données d''entrée'!$C$310)^'1 Données d''entrée'!$C$311-1),0))","v":0},{"$f":"IF(I805<'1 Données d''entrée'!$C$312+1,0,IF(I805<'1 Données d''entrée'!$C$311+'1 Données d''entrée'!$C$312+1,$B841*('1 Données d''entrée'!$C$310*(1+'1 Données d''entrée'!$C$310)^'1 Données d''entrée'!$C$311)/((1+'1 Données d''entrée'!$C$310)^'1 Données d''entrée'!$C$311-1),0))","v":0},{"$f":"IF(J805<'1 Données d''entrée'!$C$312+1,0,IF(J805<'1 Données d''entrée'!$C$311+'1 Données d''entrée'!$C$312+1,$B841*('1 Données d''entrée'!$C$310*(1+'1 Données d''entrée'!$C$310)^'1 Données d''entrée'!$C$311)/((1+'1 Données d''entrée'!$C$310)^'1 Données d''entrée'!$C$311-1),0))","v":0},{"$f":"IF(K805<'1 Données d''entrée'!$C$312+1,0,IF(K805<'1 Données d''entrée'!$C$311+'1 Données d''entrée'!$C$312+1,$B841*('1 Données d''entrée'!$C$310*(1+'1 Données d''entrée'!$C$310)^'1 Données d''entrée'!$C$311)/((1+'1 Données d''entrée'!$C$310)^'1 Données d''entrée'!$C$311-1),0))","v":0},{"$f":"IF(L805<'1 Données d''entrée'!$C$312+1,0,IF(L805<'1 Données d''entrée'!$C$311+'1 Données d''entrée'!$C$312+1,$B841*('1 Données d''entrée'!$C$310*(1+'1 Données d''entrée'!$C$310)^'1 Données d''entrée'!$C$311)/((1+'1 Données d''entrée'!$C$310)^'1 Données d''entrée'!$C$311-1),0))","v":0},{"$f":"IF(M805<'1 Données d''entrée'!$C$312+1,0,IF(M805<'1 Données d''entrée'!$C$311+'1 Données d''entrée'!$C$312+1,$B841*('1 Données d''entrée'!$C$310*(1+'1 Données d''entrée'!$C$310)^'1 Données d''entrée'!$C$311)/((1+'1 Données d''entrée'!$C$310)^'1 Données d''entrée'!$C$311-1),0))","v":0},{"$f":"IF(N805<'1 Données d''entrée'!$C$312+1,0,IF(N805<'1 Données d''entrée'!$C$311+'1 Données d''entrée'!$C$312+1,$B841*('1 Données d''entrée'!$C$310*(1+'1 Données d''entrée'!$C$310)^'1 Données d''entrée'!$C$311)/((1+'1 Données d''entrée'!$C$310)^'1 Données d''entrée'!$C$311-1),0))","v":0},{"$f":"IF(O805<'1 Données d''entrée'!$C$312+1,0,IF(O805<'1 Données d''entrée'!$C$311+'1 Données d''entrée'!$C$312+1,$B841*('1 Données d''entrée'!$C$310*(1+'1 Données d''entrée'!$C$310)^'1 Données d''entrée'!$C$311)/((1+'1 Données d''entrée'!$C$310)^'1 Données d''entrée'!$C$311-1),0))","v":0},{"$f":"IF(P805<'1 Données d''entrée'!$C$312+1,0,IF(P805<'1 Données d''entrée'!$C$311+'1 Données d''entrée'!$C$312+1,$B841*('1 Données d''entrée'!$C$310*(1+'1 Données d''entrée'!$C$310)^'1 Données d''entrée'!$C$311)/((1+'1 Données d''entrée'!$C$310)^'1 Données d''entrée'!$C$311-1),0))","v":0},{"$f":"IF(Q805<'1 Données d''entrée'!$C$312+1,0,IF(Q805<'1 Données d''entrée'!$C$311+'1 Données d''entrée'!$C$312+1,$B841*('1 Données d''entrée'!$C$310*(1+'1 Données d''entrée'!$C$310)^'1 Données d''entrée'!$C$311)/((1+'1 Données d''entrée'!$C$310)^'1 Données d''entrée'!$C$311-1),0))","v":0},{"$f":"IF(R805<'1 Données d''entrée'!$C$312+1,0,IF(R805<'1 Données d''entrée'!$C$311+'1 Données d''entrée'!$C$312+1,$B841*('1 Données d''entrée'!$C$310*(1+'1 Données d''entrée'!$C$310)^'1 Données d''entrée'!$C$311)/((1+'1 Données d''entrée'!$C$310)^'1 Données d''entrée'!$C$311-1),0))","v":0},{"$f":"IF(S805<'1 Données d''entrée'!$C$312+1,0,IF(S805<'1 Données d''entrée'!$C$311+'1 Données d''entrée'!$C$312+1,$B841*('1 Données d''entrée'!$C$310*(1+'1 Données d''entrée'!$C$310)^'1 Données d''entrée'!$C$311)/((1+'1 Données d''entrée'!$C$310)^'1 Données d''entrée'!$C$311-1),0))","v":0},{"$f":"IF(T805<'1 Données d''entrée'!$C$312+1,0,IF(T805<'1 Données d''entrée'!$C$311+'1 Données d''entrée'!$C$312+1,$B841*('1 Données d''entrée'!$C$310*(1+'1 Données d''entrée'!$C$310)^'1 Données d''entrée'!$C$311)/((1+'1 Données d''entrée'!$C$310)^'1 Données d''entrée'!$C$311-1),0))","v":0},{"$f":"IF(U805<'1 Données d''entrée'!$C$312+1,0,IF(U805<'1 Données d''entrée'!$C$311+'1 Données d''entrée'!$C$312+1,$B841*('1 Données d''entrée'!$C$310*(1+'1 Données d''entrée'!$C$310)^'1 Données d''entrée'!$C$311)/((1+'1 Données d''entrée'!$C$310)^'1 Données d''entrée'!$C$311-1),0))","v":0},{"$f":"IF(V805<'1 Données d''entrée'!$C$312+1,0,IF(V805<'1 Données d''entrée'!$C$311+'1 Données d''entrée'!$C$312+1,$B841*('1 Données d''entrée'!$C$310*(1+'1 Données d''entrée'!$C$310)^'1 Données d''entrée'!$C$311)/((1+'1 Données d''entrée'!$C$310)^'1 Données d''entrée'!$C$311-1),0))","v":0}]
["Paiement d'intérêt décroissant inclu dans l'annuité constante",0,{"$f":"IF('1 Données d''entrée'!$C$314=\"(=NON)\",IF(C842>0,$B841*((('1 Données d''entrée'!$C$310+1)^'1 Données d''entrée'!$C$311)-(1+'1 Données d''entrée'!$C$310)^('6 Financement'!C$54-1-'1 Données d''entrée'!$C$312))/((1+'1 Données d''entrée'!$C$310)^'1 Données d''entrée'!$C$311-1)*'1 Données d''entrée'!$C$310,0),IF(C805<'1 Données d''entrée'!$C$312+1,'1 Données d''entrée'!$C$310*'6 Financement'!$B841,IF(C842>0,$B$90*((('1 Données d''entrée'!$C$310+1)^'1 Données d''entrée'!$C$311)-(1+'1 Données d''entrée'!$C$310)^('6 Financement'!C$54-1-'1 Données d''entrée'!$C$312))/((1+'1 Données d''entrée'!$C$310)^'1 Données d''entrée'!$C$311-1)*'1 Données d''entrée'!$C$310,0)))","v":0},{"$f":"IF('1 Données d''entrée'!$C$314=\"(=NON)\",IF(D842>0,$B841*((('1 Données d''entrée'!$C$310+1)^'1 Données d''entrée'!$C$311)-(1+'1 Données d''entrée'!$C$310)^('6 Financement'!D$54-1-'1 Données d''entrée'!$C$312))/((1+'1 Données d''entrée'!$C$310)^'1 Données d''entrée'!$C$311-1)*'1 Données d''entrée'!$C$310,0),IF(D805<'1 Données d''entrée'!$C$312+1,'1 Données d''entrée'!$C$310*'6 Financement'!$B841,IF(D842>0,$B$90*((('1 Données d''entrée'!$C$310+1)^'1 Données d''entrée'!$C$311)-(1+'1 Données d''entrée'!$C$310)^('6 Financement'!D$54-1-'1 Données d''entrée'!$C$312))/((1+'1 Données d''entrée'!$C$310)^'1 Données d''entrée'!$C$311-1)*'1 Données d''entrée'!$C$310,0)))","v":0},{"$f":"IF('1 Données d''entrée'!$C$314=\"(=NON)\",IF(E842>0,$B841*((('1 Données d''entrée'!$C$310+1)^'1 Données d''entrée'!$C$311)-(1+'1 Données d''entrée'!$C$310)^('6 Financement'!E$54-1-'1 Données d''entrée'!$C$312))/((1+'1 Données d''entrée'!$C$310)^'1 Données d''entrée'!$C$311-1)*'1 Données d''entrée'!$C$310,0),IF(E805<'1 Données d''entrée'!$C$312+1,'1 Données d''entrée'!$C$310*'6 Financement'!$B841,IF(E842>0,$B$90*((('1 Données d''entrée'!$C$310+1)^'1 Données d''entrée'!$C$311)-(1+'1 Données d''entrée'!$C$310)^('6 Financement'!E$54-1-'1 Données d''entrée'!$C$312))/((1+'1 Données d''entrée'!$C$310)^'1 Données d''entrée'!$C$311-1)*'1 Données d''entrée'!$C$310,0)))","v":0},{"$f":"IF('1 Données d''entrée'!$C$314=\"(=NON)\",IF(F842>0,$B841*((('1 Données d''entrée'!$C$310+1)^'1 Données d''entrée'!$C$311)-(1+'1 Données d''entrée'!$C$310)^('6 Financement'!F$54-1-'1 Données d''entrée'!$C$312))/((1+'1 Données d''entrée'!$C$310)^'1 Données d''entrée'!$C$311-1)*'1 Données d''entrée'!$C$310,0),IF(F805<'1 Données d''entrée'!$C$312+1,'1 Données d''entrée'!$C$310*'6 Financement'!$B841,IF(F842>0,$B$90*((('1 Données d''entrée'!$C$310+1)^'1 Données d''entrée'!$C$311)-(1+'1 Données d''entrée'!$C$310)^('6 Financement'!F$54-1-'1 Données d''entrée'!$C$312))/((1+'1 Données d''entrée'!$C$310)^'1 Données d''entrée'!$C$311-1)*'1 Données d''entrée'!$C$310,0)))","v":0},{"$f":"IF('1 Données d''entrée'!$C$314=\"(=NON)\",IF(G842>0,$B841*((('1 Données d''entrée'!$C$310+1)^'1 Données d''entrée'!$C$311)-(1+'1 Données d''entrée'!$C$310)^('6 Financement'!G$54-1-'1 Données d''entrée'!$C$312))/((1+'1 Données d''entrée'!$C$310)^'1 Données d''entrée'!$C$311-1)*'1 Données d''entrée'!$C$310,0),IF(G805<'1 Données d''entrée'!$C$312+1,'1 Données d''entrée'!$C$310*'6 Financement'!$B841,IF(G842>0,$B$90*((('1 Données d''entrée'!$C$310+1)^'1 Données d''entrée'!$C$311)-(1+'1 Données d''entrée'!$C$310)^('6 Financement'!G$54-1-'1 Données d''entrée'!$C$312))/((1+'1 Données d''entrée'!$C$310)^'1 Données d''entrée'!$C$311-1)*'1 Données d''entrée'!$C$310,0)))","v":0},{"$f":"IF('1 Données d''entrée'!$C$314=\"(=NON)\",IF(H842>0,$B841*((('1 Données d''entrée'!$C$310+1)^'1 Données d''entrée'!$C$311)-(1+'1 Données d''entrée'!$C$310)^('6 Financement'!H$54-1-'1 Données d''entrée'!$C$312))/((1+'1 Données d''entrée'!$C$310)^'1 Données d''entrée'!$C$311-1)*'1 Données d''entrée'!$C$310,0),IF(H805<'1 Données d''entrée'!$C$312+1,'1 Données d''entrée'!$C$310*'6 Financement'!$B841,IF(H842>0,$B$90*((('1 Données d''entrée'!$C$310+1)^'1 Données d''entrée'!$C$311)-(1+'1 Données d''entrée'!$C$310)^('6 Financement'!H$54-1-'1 Données d''entrée'!$C$312))/((1+'1 Données d''entrée'!$C$310)^'1 Données d''entrée'!$C$311-1)*'1 Données d''entrée'!$C$310,0)))","v":0},{"$f":"IF('1 Données d''entrée'!$C$314=\"(=NON)\",IF(I842>0,$B841*((('1 Données d''entrée'!$C$310+1)^'1 Données d''entrée'!$C$311)-(1+'1 Données d''entrée'!$C$310)^('6 Financement'!I$54-1-'1 Données d''entrée'!$C$312))/((1+'1 Données d''entrée'!$C$310)^'1 Données d''entrée'!$C$311-1)*'1 Données d''entrée'!$C$310,0),IF(I805<'1 Données d''entrée'!$C$312+1,'1 Données d''entrée'!$C$310*'6 Financement'!$B841,IF(I842>0,$B$90*((('1 Données d''entrée'!$C$310+1)^'1 Données d''entrée'!$C$311)-(1+'1 Données d''entrée'!$C$310)^('6 Financement'!I$54-1-'1 Données d''entrée'!$C$312))/((1+'1 Données d''entrée'!$C$310)^'1 Données d''entrée'!$C$311-1)*'1 Données d''entrée'!$C$310,0)))","v":0},{"$f":"IF('1 Données d''entrée'!$C$314=\"(=NON)\",IF(J842>0,$B841*((('1 Données d''entrée'!$C$310+1)^'1 Données d''entrée'!$C$311)-(1+'1 Données d''entrée'!$C$310)^('6 Financement'!J$54-1-'1 Données d''entrée'!$C$312))/((1+'1 Données d''entrée'!$C$310)^'1 Données d''entrée'!$C$311-1)*'1 Données d''entrée'!$C$310,0),IF(J805<'1 Données d''entrée'!$C$312+1,'1 Données d''entrée'!$C$310*'6 Financement'!$B841,IF(J842>0,$B$90*((('1 Données d''entrée'!$C$310+1)^'1 Données d''entrée'!$C$311)-(1+'1 Données d''entrée'!$C$310)^('6 Financement'!J$54-1-'1 Données d''entrée'!$C$312))/((1+'1 Données d''entrée'!$C$310)^'1 Données d''entrée'!$C$311-1)*'1 Données d''entrée'!$C$310,0)))","v":0},{"$f":"IF('1 Données d''entrée'!$C$314=\"(=NON)\",IF(K842>0,$B841*((('1 Données d''entrée'!$C$310+1)^'1 Données d''entrée'!$C$311)-(1+'1 Données d''entrée'!$C$310)^('6 Financement'!K$54-1-'1 Données d''entrée'!$C$312))/((1+'1 Données d''entrée'!$C$310)^'1 Données d''entrée'!$C$311-1)*'1 Données d''entrée'!$C$310,0),IF(K805<'1 Données d''entrée'!$C$312+1,'1 Données d''entrée'!$C$310*'6 Financement'!$B841,IF(K842>0,$B$90*((('1 Données d''entrée'!$C$310+1)^'1 Données d''entrée'!$C$311)-(1+'1 Données d''entrée'!$C$310)^('6 Financement'!K$54-1-'1 Données d''entrée'!$C$312))/((1+'1 Données d''entrée'!$C$310)^'1 Données d''entrée'!$C$311-1)*'1 Données d''entrée'!$C$310,0)))","v":0},{"$f":"IF('1 Données d''entrée'!$C$314=\"(=NON)\",IF(L842>0,$B841*((('1 Données d''entrée'!$C$310+1)^'1 Données d''entrée'!$C$311)-(1+'1 Données d''entrée'!$C$310)^('6 Financement'!L$54-1-'1 Données d''entrée'!$C$312))/((1+'1 Données d''entrée'!$C$310)^'1 Données d''entrée'!$C$311-1)*'1 Données d''entrée'!$C$310,0),IF(L805<'1 Données d''entrée'!$C$312+1,'1 Données d''entrée'!$C$310*'6 Financement'!$B841,IF(L842>0,$B$90*((('1 Données d''entrée'!$C$310+1)^'1 Données d''entrée'!$C$311)-(1+'1 Données d''entrée'!$C$310)^('6 Financement'!L$54-1-'1 Données d''entrée'!$C$312))/((1+'1 Données d''entrée'!$C$310)^'1 Données d''entrée'!$C$311-1)*'1 Données d''entrée'!$C$310,0)))","v":0},{"$f":"IF('1 Données d''entrée'!$C$314=\"(=NON)\",IF(M842>0,$B841*((('1 Données d''entrée'!$C$310+1)^'1 Données d''entrée'!$C$311)-(1+'1 Données d''entrée'!$C$310)^('6 Financement'!M$54-1-'1 Données d''entrée'!$C$312))/((1+'1 Données d''entrée'!$C$310)^'1 Données d''entrée'!$C$311-1)*'1 Données d''entrée'!$C$310,0),IF(M805<'1 Données d''entrée'!$C$312+1,'1 Données d''entrée'!$C$310*'6 Financement'!$B841,IF(M842>0,$B$90*((('1 Données d''entrée'!$C$310+1)^'1 Données d''entrée'!$C$311)-(1+'1 Données d''entrée'!$C$310)^('6 Financement'!M$54-1-'1 Données d''entrée'!$C$312))/((1+'1 Données d''entrée'!$C$310)^'1 Données d''entrée'!$C$311-1)*'1 Données d''entrée'!$C$310,0)))","v":0},{"$f":"IF('1 Données d''entrée'!$C$314=\"(=NON)\",IF(N842>0,$B841*((('1 Données d''entrée'!$C$310+1)^'1 Données d''entrée'!$C$311)-(1+'1 Données d''entrée'!$C$310)^('6 Financement'!N$54-1-'1 Données d''entrée'!$C$312))/((1+'1 Données d''entrée'!$C$310)^'1 Données d''entrée'!$C$311-1)*'1 Données d''entrée'!$C$310,0),IF(N805<'1 Données d''entrée'!$C$312+1,'1 Données d''entrée'!$C$310*'6 Financement'!$B841,IF(N842>0,$B$90*((('1 Données d''entrée'!$C$310+1)^'1 Données d''entrée'!$C$311)-(1+'1 Données d''entrée'!$C$310)^('6 Financement'!N$54-1-'1 Données d''entrée'!$C$312))/((1+'1 Données d''entrée'!$C$310)^'1 Données d''entrée'!$C$311-1)*'1 Données d''entrée'!$C$310,0)))","v":0},{"$f":"IF('1 Données d''entrée'!$C$314=\"(=NON)\",IF(O842>0,$B841*((('1 Données d''entrée'!$C$310+1)^'1 Données d''entrée'!$C$311)-(1+'1 Données d''entrée'!$C$310)^('6 Financement'!O$54-1-'1 Données d''entrée'!$C$312))/((1+'1 Données d''entrée'!$C$310)^'1 Données d''entrée'!$C$311-1)*'1 Données d''entrée'!$C$310,0),IF(O805<'1 Données d''entrée'!$C$312+1,'1 Données d''entrée'!$C$310*'6 Financement'!$B841,IF(O842>0,$B$90*((('1 Données d''entrée'!$C$310+1)^'1 Données d''entrée'!$C$311)-(1+'1 Données d''entrée'!$C$310)^('6 Financement'!O$54-1-'1 Données d''entrée'!$C$312))/((1+'1 Données d''entrée'!$C$310)^'1 Données d''entrée'!$C$311-1)*'1 Données d''entrée'!$C$310,0)))","v":0},{"$f":"IF('1 Données d''entrée'!$C$314=\"(=NON)\",IF(P842>0,$B841*((('1 Données d''entrée'!$C$310+1)^'1 Données d''entrée'!$C$311)-(1+'1 Données d''entrée'!$C$310)^('6 Financement'!P$54-1-'1 Données d''entrée'!$C$312))/((1+'1 Données d''entrée'!$C$310)^'1 Données d''entrée'!$C$311-1)*'1 Données d''entrée'!$C$310,0),IF(P805<'1 Données d''entrée'!$C$312+1,'1 Données d''entrée'!$C$310*'6 Financement'!$B841,IF(P842>0,$B$90*((('1 Données d''entrée'!$C$310+1)^'1 Données d''entrée'!$C$311)-(1+'1 Données d''entrée'!$C$310)^('6 Financement'!P$54-1-'1 Données d''entrée'!$C$312))/((1+'1 Données d''entrée'!$C$310)^'1 Données d''entrée'!$C$311-1)*'1 Données d''entrée'!$C$310,0)))","v":0},{"$f":"IF('1 Données d''entrée'!$C$314=\"(=NON)\",IF(Q842>0,$B841*((('1 Données d''entrée'!$C$310+1)^'1 Données d''entrée'!$C$311)-(1+'1 Données d''entrée'!$C$310)^('6 Financement'!Q$54-1-'1 Données d''entrée'!$C$312))/((1+'1 Données d''entrée'!$C$310)^'1 Données d''entrée'!$C$311-1)*'1 Données d''entrée'!$C$310,0),IF(Q805<'1 Données d''entrée'!$C$312+1,'1 Données d''entrée'!$C$310*'6 Financement'!$B841,IF(Q842>0,$B$90*((('1 Données d''entrée'!$C$310+1)^'1 Données d''entrée'!$C$311)-(1+'1 Données d''entrée'!$C$310)^('6 Financement'!Q$54-1-'1 Données d''entrée'!$C$312))/((1+'1 Données d''entrée'!$C$310)^'1 Données d''entrée'!$C$311-1)*'1 Données d''entrée'!$C$310,0)))","v":0},{"$f":"IF('1 Données d''entrée'!$C$314=\"(=NON)\",IF(R842>0,$B841*((('1 Données d''entrée'!$C$310+1)^'1 Données d''entrée'!$C$311)-(1+'1 Données d''entrée'!$C$310)^('6 Financement'!R$54-1-'1 Données d''entrée'!$C$312))/((1+'1 Données d''entrée'!$C$310)^'1 Données d''entrée'!$C$311-1)*'1 Données d''entrée'!$C$310,0),IF(R805<'1 Données d''entrée'!$C$312+1,'1 Données d''entrée'!$C$310*'6 Financement'!$B841,IF(R842>0,$B$90*((('1 Données d''entrée'!$C$310+1)^'1 Données d''entrée'!$C$311)-(1+'1 Données d''entrée'!$C$310)^('6 Financement'!R$54-1-'1 Données d''entrée'!$C$312))/((1+'1 Données d''entrée'!$C$310)^'1 Données d''entrée'!$C$311-1)*'1 Données d''entrée'!$C$310,0)))","v":0},{"$f":"IF('1 Données d''entrée'!$C$314=\"(=NON)\",IF(S842>0,$B841*((('1 Données d''entrée'!$C$310+1)^'1 Données d''entrée'!$C$311)-(1+'1 Données d''entrée'!$C$310)^('6 Financement'!S$54-1-'1 Données d''entrée'!$C$312))/((1+'1 Données d''entrée'!$C$310)^'1 Données d''entrée'!$C$311-1)*'1 Données d''entrée'!$C$310,0),IF(S805<'1 Données d''entrée'!$C$312+1,'1 Données d''entrée'!$C$310*'6 Financement'!$B841,IF(S842>0,$B$90*((('1 Données d''entrée'!$C$310+1)^'1 Données d''entrée'!$C$311)-(1+'1 Données d''entrée'!$C$310)^('6 Financement'!S$54-1-'1 Données d''entrée'!$C$312))/((1+'1 Données d''entrée'!$C$310)^'1 Données d''entrée'!$C$311-1)*'1 Données d''entrée'!$C$310,0)))","v":0},{"$f":"IF('1 Données d''entrée'!$C$314=\"(=NON)\",IF(T842>0,$B841*((('1 Données d''entrée'!$C$310+1)^'1 Données d''entrée'!$C$311)-(1+'1 Données d''entrée'!$C$310)^('6 Financement'!T$54-1-'1 Données d''entrée'!$C$312))/((1+'1 Données d''entrée'!$C$310)^'1 Données d''entrée'!$C$311-1)*'1 Données d''entrée'!$C$310,0),IF(T805<'1 Données d''entrée'!$C$312+1,'1 Données d''entrée'!$C$310*'6 Financement'!$B841,IF(T842>0,$B$90*((('1 Données d''entrée'!$C$310+1)^'1 Données d''entrée'!$C$311)-(1+'1 Données d''entrée'!$C$310)^('6 Financement'!T$54-1-'1 Données d''entrée'!$C$312))/((1+'1 Données d''entrée'!$C$310)^'1 Données d''entrée'!$C$311-1)*'1 Données d''entrée'!$C$310,0)))","v":0},{"$f":"IF('1 Données d''entrée'!$C$314=\"(=NON)\",IF(U842>0,$B841*((('1 Données d''entrée'!$C$310+1)^'1 Données d''entrée'!$C$311)-(1+'1 Données d''entrée'!$C$310)^('6 Financement'!U$54-1-'1 Données d''entrée'!$C$312))/((1+'1 Données d''entrée'!$C$310)^'1 Données d''entrée'!$C$311-1)*'1 Données d''entrée'!$C$310,0),IF(U805<'1 Données d''entrée'!$C$312+1,'1 Données d''entrée'!$C$310*'6 Financement'!$B841,IF(U842>0,$B$90*((('1 Données d''entrée'!$C$310+1)^'1 Données d''entrée'!$C$311)-(1+'1 Données d''entrée'!$C$310)^('6 Financement'!U$54-1-'1 Données d''entrée'!$C$312))/((1+'1 Données d''entrée'!$C$310)^'1 Données d''entrée'!$C$311-1)*'1 Données d''entrée'!$C$310,0)))","v":0},{"$f":"IF('1 Données d''entrée'!$C$314=\"(=NON)\",IF(V842>0,$B841*((('1 Données d''entrée'!$C$310+1)^'1 Données d''entrée'!$C$311)-(1+'1 Données d''entrée'!$C$310)^('6 Financement'!V$54-1-'1 Données d''entrée'!$C$312))/((1+'1 Données d''entrée'!$C$310)^'1 Données d''entrée'!$C$311-1)*'1 Données d''entrée'!$C$310,0),IF(V805<'1 Données d''entrée'!$C$312+1,'1 Données d''entrée'!$C$310*'6 Financement'!$B841,IF(V842>0,$B$90*((('1 Données d''entrée'!$C$310+1)^'1 Données d''entrée'!$C$311)-(1+'1 Données d''entrée'!$C$310)^('6 Financement'!V$54-1-'1 Données d''entrée'!$C$312))/((1+'1 Données d''entrée'!$C$310)^'1 Données d''entrée'!$C$311-1)*'1 Données d''entrée'!$C$310,0)))","v":0}]
["Paiements d'intérêt avec des intérêts composés en cas d'absence des paiements dans la période de grâce",0,0,{"$f":"IF(D805='1 Données d''entrée'!$C$312+1,IF('1 Données d''entrée'!$C$314=\"(=NON)\",($B841*'1 Données d''entrée'!$C$310)*((('1 Données d''entrée'!$C$310+1)^'1 Données d''entrée'!$C$312-1)/('1 Données d''entrée'!$C$310))*(1+'1 Données d''entrée'!$C$310),0),0)","v":0},{"$f":"IF(E805='1 Données d''entrée'!$C$312+1,IF('1 Données d''entrée'!$C$314=\"(=NON)\",($B841*'1 Données d''entrée'!$C$310)*((('1 Données d''entrée'!$C$310+1)^'1 Données d''entrée'!$C$312-1)/('1 Données d''entrée'!$C$310))*(1+'1 Données d''entrée'!$C$310),0),0)","v":0},{"$f":"IF(F805='1 Données d''entrée'!$C$312+1,IF('1 Données d''entrée'!$C$314=\"(=NON)\",($B841*'1 Données d''entrée'!$C$310)*((('1 Données d''entrée'!$C$310+1)^'1 Données d''entrée'!$C$312-1)/('1 Données d''entrée'!$C$310))*(1+'1 Données d''entrée'!$C$310),0),0)","v":0},{"$f":"IF(G805='1 Données d''entrée'!$C$312+1,IF('1 Données d''entrée'!$C$314=\"(=NON)\",($B841*'1 Données d''entrée'!$C$310)*((('1 Données d''entrée'!$C$310+1)^'1 Données d''entrée'!$C$312-1)/('1 Données d''entrée'!$C$310))*(1+'1 Données d''entrée'!$C$310),0),0)","v":0},{"$f":"IF(H805='1 Données d''entrée'!$C$312+1,IF('1 Données d''entrée'!$C$314=\"(=NON)\",($B841*'1 Données d''entrée'!$C$310)*((('1 Données d''entrée'!$C$310+1)^'1 Données d''entrée'!$C$312-1)/('1 Données d''entrée'!$C$310))*(1+'1 Données d''entrée'!$C$310),0),0)","v":0},{"$f":"IF(I805='1 Données d''entrée'!$C$312+1,IF('1 Données d''entrée'!$C$314=\"(=NON)\",($B841*'1 Données d''entrée'!$C$310)*((('1 Données d''entrée'!$C$310+1)^'1 Données d''entrée'!$C$312-1)/('1 Données d''entrée'!$C$310))*(1+'1 Données d''entrée'!$C$310),0),0)","v":0},{"$f":"IF(J805='1 Données d''entrée'!$C$312+1,IF('1 Données d''entrée'!$C$314=\"(=NON)\",($B841*'1 Données d''entrée'!$C$310)*((('1 Données d''entrée'!$C$310+1)^'1 Données d''entrée'!$C$312-1)/('1 Données d''entrée'!$C$310))*(1+'1 Données d''entrée'!$C$310),0),0)","v":0},{"$f":"IF(K805='1 Données d''entrée'!$C$312+1,IF('1 Données d''entrée'!$C$314=\"(=NON)\",($B841*'1 Données d''entrée'!$C$310)*((('1 Données d''entrée'!$C$310+1)^'1 Données d''entrée'!$C$312-1)/('1 Données d''entrée'!$C$310))*(1+'1 Données d''entrée'!$C$310),0),0)","v":0},{"$f":"IF(L805='1 Données d''entrée'!$C$312+1,IF('1 Données d''entrée'!$C$314=\"(=NON)\",($B841*'1 Données d''entrée'!$C$310)*((('1 Données d''entrée'!$C$310+1)^'1 Données d''entrée'!$C$312-1)/('1 Données d''entrée'!$C$310))*(1+'1 Données d''entrée'!$C$310),0),0)","v":0},{"$f":"IF(M805='1 Données d''entrée'!$C$312+1,IF('1 Données d''entrée'!$C$314=\"(=NON)\",($B841*'1 Données d''entrée'!$C$310)*((('1 Données d''entrée'!$C$310+1)^'1 Données d''entrée'!$C$312-1)/('1 Données d''entrée'!$C$310))*(1+'1 Données d''entrée'!$C$310),0),0)","v":0},{"$f":"IF(N805='1 Données d''entrée'!$C$312+1,IF('1 Données d''entrée'!$C$314=\"(=NON)\",($B841*'1 Données d''entrée'!$C$310)*((('1 Données d''entrée'!$C$310+1)^'1 Données d''entrée'!$C$312-1)/('1 Données d''entrée'!$C$310))*(1+'1 Données d''entrée'!$C$310),0),0)","v":0},{"$f":"IF(O805='1 Données d''entrée'!$C$312+1,IF('1 Données d''entrée'!$C$314=\"(=NON)\",($B841*'1 Données d''entrée'!$C$310)*((('1 Données d''entrée'!$C$310+1)^'1 Données d''entrée'!$C$312-1)/('1 Données d''entrée'!$C$310))*(1+'1 Données d''entrée'!$C$310),0),0)","v":0},{"$f":"IF(P805='1 Données d''entrée'!$C$312+1,IF('1 Données d''entrée'!$C$314=\"(=NON)\",($B841*'1 Données d''entrée'!$C$310)*((('1 Données d''entrée'!$C$310+1)^'1 Données d''entrée'!$C$312-1)/('1 Données d''entrée'!$C$310))*(1+'1 Données d''entrée'!$C$310),0),0)","v":0},{"$f":"IF(Q805='1 Données d''entrée'!$C$312+1,IF('1 Données d''entrée'!$C$314=\"(=NON)\",($B841*'1 Données d''entrée'!$C$310)*((('1 Données d''entrée'!$C$310+1)^'1 Données d''entrée'!$C$312-1)/('1 Données d''entrée'!$C$310))*(1+'1 Données d''entrée'!$C$310),0),0)","v":0},{"$f":"IF(R805='1 Données d''entrée'!$C$312+1,IF('1 Données d''entrée'!$C$314=\"(=NON)\",($B841*'1 Données d''entrée'!$C$310)*((('1 Données d''entrée'!$C$310+1)^'1 Données d''entrée'!$C$312-1)/('1 Données d''entrée'!$C$310))*(1+'1 Données d''entrée'!$C$310),0),0)","v":0},{"$f":"IF(S805='1 Données d''entrée'!$C$312+1,IF('1 Données d''entrée'!$C$314=\"(=NON)\",($B841*'1 Données d''entrée'!$C$310)*((('1 Données d''entrée'!$C$310+1)^'1 Données d''entrée'!$C$312-1)/('1 Données d''entrée'!$C$310))*(1+'1 Données d''entrée'!$C$310),0),0)","v":0},{"$f":"IF(T805='1 Données d''entrée'!$C$312+1,IF('1 Données d''entrée'!$C$314=\"(=NON)\",($B841*'1 Données d''entrée'!$C$310)*((('1 Données d''entrée'!$C$310+1)^'1 Données d''entrée'!$C$312-1)/('1 Données d''entrée'!$C$310))*(1+'1 Données d''entrée'!$C$310),0),0)","v":0},{"$f":"IF(U805='1 Données d''entrée'!$C$312+1,IF('1 Données d''entrée'!$C$314=\"(=NON)\",($B841*'1 Données d''entrée'!$C$310)*((('1 Données d''entrée'!$C$310+1)^'1 Données d''entrée'!$C$312-1)/('1 Données d''entrée'!$C$310))*(1+'1 Données d''entrée'!$C$310),0),0)","v":0},{"$f":"IF(V805='1 Données d''entrée'!$C$312+1,IF('1 Données d''entrée'!$C$314=\"(=NON)\",($B841*'1 Données d''entrée'!$C$310)*((('1 Données d''entrée'!$C$310+1)^'1 Données d''entrée'!$C$312-1)/('1 Données d''entrée'!$C$310))*(1+'1 Données d''entrée'!$C$310),0),0)","v":0}]
[]
["Solde du compte intermédiaire"]
["Solde du comte (par période)",{"$f":"B807+B809+B811+IF($B813>0,(B814-B815-B816-B817),0)+IF($B818>0,(B819-B820-B821-B822),0)+IF($B823>0,(B824-B825-IF(B825>0,0,B826)-B827),0)+B829+IF($B830>0,(B831-B832-B833-B834),0)+IF($B835>0,(B836-B837-B838-B839),0)+IF($B840>0,B841-IF(B842>0,0,B843)-B844,0)","v":{"$error":"#DIV/0!"}},{"$f":"C807+C809+C811+IF($B813>0,(-C815-C816-C817),0)+IF($B818>0,(-C820-C821-C822),0)+C829+IF($B823>0,(-C825-IF(C825>0,0,C826)-C827),0)+IF($B830>0,(-C832-C833-C834),0)+IF($B835>0,(-C837-C838-C839),0)+IF($B840>0,(-C842-IF(C842>0,0,C843)-C844),0)","v":{"$error":"#DIV/0!"}},{"$f":"D807+D809+D811+IF($B813>0,(-D815-D816-D817),0)+IF($B818>0,(-D820-D821-D822),0)+D829+IF($B823>0,(-D825-IF(D825>0,0,D826)-D827),0)+IF($B830>0,(-D832-D833-D834),0)+IF($B835>0,(-D837-D838-D839),0)+IF($B840>0,(-D842-IF(D842>0,0,D843)-D844),0)","v":{"$error":"#DIV/0!"}},{"$error":"#DIV/0!"},{"$error":"#DIV/0!"},{"$error":"#DIV/0!"},{"$error":"#DIV/0!"},{"$error":"#DIV/0!"},{"$error":"#DIV/0!"},{"$error":"#DIV/0!"},{"$error":"#DIV/0!"},{"$error":"#DIV/0!"},{"$error":"#DIV/0!"},{"$error":"#DIV/0!"},{"$error":"#DIV/0!"},{"$error":"#DIV/0!"},{"$error":"#DIV/0!"},{"$error":"#DIV/0!"},{"$error":"#DIV/0!"},{"$error":"#DIV/0!"},{"$error":"#DIV/0!"}]
["Solde du compte (cumulé)",{"$f":"B847","v":{"$error":"#DIV/0!"}},{"$f":"B848+C847","v":{"$error":"#DIV/0!"}},{"$error":"#DIV/0!"},{"$error":"#DIV/0!"},{"$error":"#DIV/0!"},{"$error":"#DIV/0!"},{"$error":"#DIV/0!"},{"$error":"#DIV/0!"},{"$error":"#DIV/0!"},{"$error":"#DIV/0!"},{"$error":"#DIV/0!"},{"$error":"#DIV/0!"},{"$error":"#DIV/0!"},{"$error":"#DIV/0!"},{"$error":"#DIV/0!"},{"$error":"#DIV/0!"},{"$error":"#DIV/0!"},{"$error":"#DIV/0!"},{"$error":"#DIV/0!"},{"$error":"#DIV/0!"},{"$error":"#DIV/0!"}]
[]
[]
[]
["Prêt bancaire additionnel"]
[null,"Période",1,2,3,4,5,6,7,8,9,10,11,12,13,14,15,16,17,18,19,20]
["Prêt bancaire additionnel - Option 1: Remboursement du principal fractionné",{"$f":"'1 Données d''entrée'!$B$342","v":0}]
["Prêt(s) nouveau(x)",null,{"$f":"IF(C848<0,C848*(-1)*$B854+C848*(-1)*$B854*'1 Données d''entrée'!$C$338,0)","v":{"$error":"#DIV/0!"}},{"$f":"IF(D848<0,D848*(-1)*$B854+D848*(-1)*$B854*'1 Données d''entrée'!$C$338,0)","v":{"$error":"#DIV/0!"}},{"$f":"IF(E848<0,E848*(-1)*$B854+E848*(-1)*$B854*'1 Données d''entrée'!$C$338,0)","v":{"$error":"#DIV/0!"}},{"$f":"IF(F848<0,F848*(-1)*$B854+F848*(-1)*$B854*'1 Données d''entrée'!$C$338,0)","v":{"$error":"#DIV/0!"}},{"$f":"IF(G848<0,G848*(-1)*$B854+G848*(-1)*$B854*'1 Données d''entrée'!$C$338,0)","v":{"$error":"#DIV/0!"}},{"$f":"IF(H848<0,H848*(-1)*$B854+H848*(-1)*$B854*'1 Données d''entrée'!$C$338,0)","v":{"$error":"#DIV/0!"}},{"$f":"IF(I848<0,I848*(-1)*$B854+I848*(-1)*$B854*'1 Données d''entrée'!$C$338,0)","v":{"$error":"#DIV/0!"}},{"$f":"IF(J848<0,J848*(-1)*$B854+J848*(-1)*$B854*'1 Données d''entrée'!$C$338,0)","v":{"$error":"#DIV/0!"}},{"$f":"IF(K848<0,K848*(-1)*$B854+K848*(-1)*$B854*'1 Données d''entrée'!$C$338,0)","v":{"$error":"#DIV/0!"}},{"$f":"IF(L848<0,L848*(-1)*$B854+L848*(-1)*$B854*'1 Données d''entrée'!$C$338,0)","v":{"$error":"#DIV/0!"}},{"$f":"IF(M848<0,M848*(-1)*$B854+M848*(-1)*$B854*'1 Données d''entrée'!$C$338,0)","v":{"$error":"#DIV/0!"}},{"$f":"IF(N848<0,N848*(-1)*$B854+N848*(-1)*$B854*'1 Données d''entrée'!$C$338,0)","v":{"$error":"#DIV/0!"}},{"$f":"IF(O848<0,O848*(-1)*$B854+O848*(-1)*$B854*'1 Données d''entrée'!$C$338,0)","v":{"$error":"#DIV/0!"}},{"$f":"IF(P848<0,P848*(-1)*$B854+P848*(-1)*$B854*'1 Données d''entrée'!$C$338,0)","v":{"$error":"#DIV/0!"}},{"$f":"IF(Q848<0,Q848*(-1)*$B854+Q848*(-1)*$B854*'1 Données d''entrée'!$C$338,0)","v":{"$error":"#DIV/0!"}},{"$f":"IF(R848<0,R848*(-1)*$B854+R848*(-1)*$B854*'1 Données d''entrée'!$C$338,0)","v":{"$error":"#DIV/0!"}},{"$f":"IF(S848<0,S848*(-1)*$B854+S848*(-1)*$B854*'1 Données d''entrée'!$C$338,0)","v":{"$error":"#DIV/0!"}},{"$f":"IF(T848<0,T848*(-1)*$B854+T848*(-1)*$B854*'1 Données d''entrée'!$C$338,0)","v":{"$error":"#DIV/0!"}},{"$f":"IF(U848<0,U848*(-1)*$B854+U848*(-1)*$B854*'1 Données d''entrée'!$C$338,0)","v":{"$error":"#DIV/0!"}},{"$f":"IF(V848<0,V848*(-1)*$B854+V848*(-1)*$B854*'1 Données d''entrée'!$C$338,0)","v":{"$error":"#DIV/0!"}}]
[null,"Période de prêt nouveau"]
["Remboursement du principal",0,0,0,0,0,0,0,0,0,0,0,0,0,0,0,0,0,0,0,0,0]
[null,1,{"$f":"IF(C805<'1 Données d''entrée'!$C$334+1+$B858,0,IF(C805<'1 Données d''entrée'!$C$333+'1 Données d''entrée'!$C$334+1+$B858,($C855/'1 Données d''entrée'!$C$333),0))","v":0},{"$f":"IF(D805<'1 Données d''entrée'!$C$334+1+$B858,0,IF(D805<'1 Données d''entrée'!$C$333+'1 Données d''entrée'!$C$334+1+$B858,($C855/'1 Données d''entrée'!$C$333),0))","v":0},{"$f":"IF(E805<'1 Données d''entrée'!$C$334+1+$B858,0,IF(E805<'1 Données d''entrée'!$C$333+'1 Données d''entrée'!$C$334+1+$B858,($C855/'1 Données d''entrée'!$C$333),0))","v":0},{"$f":"IF(F805<'1 Données d''entrée'!$C$334+1+$B858,0,IF(F805<'1 Données d''entrée'!$C$333+'1 Données d''entrée'!$C$334+1+$B858,($C855/'1 Données d''entrée'!$C$333),0))","v":0},{"$f":"IF(G805<'1 Données d''entrée'!$C$334+1+$B858,0,IF(G805<'1 Données d''entrée'!$C$333+'1 Données d''entrée'!$C$334+1+$B858,($C855/'1 Données d''entrée'!$C$333),0))","v":0},{"$f":"IF(H805<'1 Données d''entrée'!$C$334+1+$B858,0,IF(H805<'1 Données d''entrée'!$C$333+'1 Données d''entrée'!$C$334+1+$B858,($C855/'1 Données d''entrée'!$C$333),0))","v":0},{"$f":"IF(I805<'1 Données d''entrée'!$C$334+1+$B858,0,IF(I805<'1 Données d''entrée'!$C$333+'1 Données d''entrée'!$C$334+1+$B858,($C855/'1 Données d''entrée'!$C$333),0))","v":0},{"$f":"IF(J805<'1 Données d''entrée'!$C$334+1+$B858,0,IF(J805<'1 Données d''entrée'!$C$333+'1 Données d''entrée'!$C$334+1+$B858,($C855/'1 Données d''entrée'!$C$333),0))","v":0},{"$f":"IF(K805<'1 Données d''entrée'!$C$334+1+$B858,0,IF(K805<'1 Données d''entrée'!$C$333+'1 Données d''entrée'!$C$334+1+$B858,($C855/'1 Données d''entrée'!$C$333),0))","v":0},{"$f":"IF(L805<'1 Données d''entrée'!$C$334+1+$B858,0,IF(L805<'1 Données d''entrée'!$C$333+'1 Données d''entrée'!$C$334+1+$B858,($C855/'1 Données d''entrée'!$C$333),0))","v":0},{"$f":"IF(M805<'1 Données d''entrée'!$C$334+1+$B858,0,IF(M805<'1 Données d''entrée'!$C$333+'1 Données d''entrée'!$C$334+1+$B858,($C855/'1 Données d''entrée'!$C$333),0))","v":0},{"$f":"IF(N805<'1 Données d''entrée'!$C$334+1+$B858,0,IF(N805<'1 Données d''entrée'!$C$333+'1 Données d''entrée'!$C$334+1+$B858,($C855/'1 Données d''entrée'!$C$333),0))","v":0},{"$f":"IF(O805<'1 Données d''entrée'!$C$334+1+$B858,0,IF(O805<'1 Données d''entrée'!$C$333+'1 Données d''entrée'!$C$334+1+$B858,($C855/'1 Données d''entrée'!$C$333),0))","v":0},{"$f":"IF(P805<'1 Données d''entrée'!$C$334+1+$B858,0,IF(P805<'1 Données d''entrée'!$C$333+'1 Données d''entrée'!$C$334+1+$B858,($C855/'1 Données d''entrée'!$C$333),0))","v":0},{"$f":"IF(Q805<'1 Données d''entrée'!$C$334+1+$B858,0,IF(Q805<'1 Données d''entrée'!$C$333+'1 Données d''entrée'!$C$334+1+$B858,($C855/'1 Données d''entrée'!$C$333),0))","v":0},{"$f":"IF(R805<'1 Données d''entrée'!$C$334+1+$B858,0,IF(R805<'1 Données d''entrée'!$C$333+'1 Données d''entrée'!$C$334+1+$B858,($C855/'1 Données d''entrée'!$C$333),0))","v":0},{"$f":"IF(S805<'1 Données d''entrée'!$C$334+1+$B858,0,IF(S805<'1 Données d''entrée'!$C$333+'1 Données d''entrée'!$C$334+1+$B858,($C855/'1 Données d''entrée'!$C$333),0))","v":0},{"$f":"IF(T805<'1 Données d''entrée'!$C$334+1+$B858,0,IF(T805<'1 Données d''entrée'!$C$333+'1 Données d''entrée'!$C$334+1+$B858,($C855/'1 Données d''entrée'!$C$333),0))","v":0},{"$f":"IF(U805<'1 Données d''entrée'!$C$334+1+$B858,0,IF(U805<'1 Données d''entrée'!$C$333+'1 Données d''entrée'!$C$334+1+$B858,($C855/'1 Données d''entrée'!$C$333),0))","v":0},{"$f":"IF(V805<'1 Données d''entrée'!$C$334+1+$B858,0,IF(V805<'1 Données d''entrée'!$C$333+'1 Données d''entrée'!$C$334+1+$B858,($C855/'1 Données d''entrée'!$C$333),0))","v":0}]
[null,2,{"$f":"IF(C805<'1 Données d''entrée'!$C$334+1+$B859,0,IF(C805<'1 Données d''entrée'!$C$333+'1 Données d''entrée'!$C$334+1+$B859,($D855/'1 Données d''entrée'!$C$333),0))","v":0},{"$f":"IF(D805<'1 Données d''entrée'!$C$334+1+$B859,0,IF(D805<'1 Données d''entrée'!$C$333+'1 Données d''entrée'!$C$334+1+$B859,($D855/'1 Données d''entrée'!$C$333),0))","v":0},{"$f":"IF(E805<'1 Données d''entrée'!$C$334+1+$B859,0,IF(E805<'1 Données d''entrée'!$C$333+'1 Données d''entrée'!$C$334+1+$B859,($D855/'1 Données d''entrée'!$C$333),0))","v":0},{"$f":"IF(F805<'1 Données d''entrée'!$C$334+1+$B859,0,IF(F805<'1 Données d''entrée'!$C$333+'1 Données d''entrée'!$C$334+1+$B859,($D855/'1 Données d''entrée'!$C$333),0))","v":0},{"$f":"IF(G805<'1 Données d''entrée'!$C$334+1+$B859,0,IF(G805<'1 Données d''entrée'!$C$333+'1 Données d''entrée'!$C$334+1+$B859,($D855/'1 Données d''entrée'!$C$333),0))","v":0},{"$f":"IF(H805<'1 Données d''entrée'!$C$334+1+$B859,0,IF(H805<'1 Données d''entrée'!$C$333+'1 Données d''entrée'!$C$334+1+$B859,($D855/'1 Données d''entrée'!$C$333),0))","v":0},{"$f":"IF(I805<'1 Données d''entrée'!$C$334+1+$B859,0,IF(I805<'1 Données d''entrée'!$C$333+'1 Données d''entrée'!$C$334+1+$B859,($D855/'1 Données d''entrée'!$C$333),0))","v":0},{"$f":"IF(J805<'1 Données d''entrée'!$C$334+1+$B859,0,IF(J805<'1 Données d''entrée'!$C$333+'1 Données d''entrée'!$C$334+1+$B859,($D855/'1 Données d''entrée'!$C$333),0))","v":0},{"$f":"IF(K805<'1 Données d''entrée'!$C$334+1+$B859,0,IF(K805<'1 Données d''entrée'!$C$333+'1 Données d''entrée'!$C$334+1+$B859,($D855/'1 Données d''entrée'!$C$333),0))","v":0},{"$f":"IF(L805<'1 Données d''entrée'!$C$334+1+$B859,0,IF(L805<'1 Données d''entrée'!$C$333+'1 Données d''entrée'!$C$334+1+$B859,($D855/'1 Données d''entrée'!$C$333),0))","v":0},{"$f":"IF(M805<'1 Données d''entrée'!$C$334+1+$B859,0,IF(M805<'1 Données d''entrée'!$C$333+'1 Données d''entrée'!$C$334+1+$B859,($D855/'1 Données d''entrée'!$C$333),0))","v":0},{"$f":"IF(N805<'1 Données d''entrée'!$C$334+1+$B859,0,IF(N805<'1 Données d''entrée'!$C$333+'1 Données d''entrée'!$C$334+1+$B859,($D855/'1 Données d''entrée'!$C$333),0))","v":0},{"$f":"IF(O805<'1 Données d''entrée'!$C$334+1+$B859,0,IF(O805<'1 Données d''entrée'!$C$333+'1 Données d''entrée'!$C$334+1+$B859,($D855/'1 Données d''entrée'!$C$333),0))","v":0},{"$f":"IF(P805<'1 Données d''entrée'!$C$334+1+$B859,0,IF(P805<'1 Données d''entrée'!$C$333+'1 Données d''entrée'!$C$334+1+$B859,($D855/'1 Données d''entrée'!$C$333),0))","v":0},{"$f":"IF(Q805<'1 Données d''entrée'!$C$334+1+$B859,0,IF(Q805<'1 Données d''entrée'!$C$333+'1 Données d''entrée'!$C$334+1+$B859,($D855/'1 Données d''entrée'!$C$333),0))","v":0},{"$f":"IF(R805<'1 Données d''entrée'!$C$334+1+$B859,0,IF(R805<'1 Données d''entrée'!$C$333+'1 Données d''entrée'!$C$334+1+$B859,($D855/'1 Données d''entrée'!$C$333),0))","v":0},{"$f":"IF(S805<'1 Données d''entrée'!$C$334+1+$B859,0,IF(S805<'1 Données d''entrée'!$C$333+'1 Données d''entrée'!$C$334+1+$B859,($D855/'1 Données d''entrée'!$C$333),0))","v":0},{"$f":"IF(T805<'1 Données d''entrée'!$C$334+1+$B859,0,IF(T805<'1 Données d''entrée'!$C$333+'1 Données d''entrée'!$C$334+1+$B859,($D855/'1 Données d''entrée'!$C$333),0))","v":0},{"$f":"IF(U805<'1 Données d''entrée'!$C$334+1+$B859,0,IF(U805<'1 Données d''entrée'!$C$333+'1 Données d''entrée'!$C$334+1+$B859,($D855/'1 Données d''entrée'!$C$333),0))","v":0},{"$f":"IF(V805<'1 Données d''entrée'!$C$334+1+$B859,0,IF(V805<'1 Données d''entrée'!$C$333+'1 Données d''entrée'!$C$334+1+$B859,($D855/'1 Données d''entrée'!$C$333),0))","v":0}]
[null,3,{"$f":"IF(C805<'1 Données d''entrée'!$C$334+1+$B860,0,IF(C805<'1 Données d''entrée'!$C$333+'1 Données d''entrée'!$C$334+1+$B860,($E855/'1 Données d''entrée'!$C$333),0))","v":0},{"$f":"IF(D805<'1 Données d''entrée'!$C$334+1+$B860,0,IF(D805<'1 Données d''entrée'!$C$333+'1 Données d''entrée'!$C$334+1+$B860,($E855/'1 Données d''entrée'!$C$333),0))","v":0},{"$f":"IF(E805<'1 Données d''entrée'!$C$334+1+$B860,0,IF(E805<'1 Données d''entrée'!$C$333+'1 Données d''entrée'!$C$334+1+$B860,($E855/'1 Données d''entrée'!$C$333),0))","v":0},{"$f":"IF(F805<'1 Données d''entrée'!$C$334+1+$B860,0,IF(F805<'1 Données d''entrée'!$C$333+'1 Données d''entrée'!$C$334+1+$B860,($E855/'1 Données d''entrée'!$C$333),0))","v":0},{"$f":"IF(G805<'1 Données d''entrée'!$C$334+1+$B860,0,IF(G805<'1 Données d''entrée'!$C$333+'1 Données d''entrée'!$C$334+1+$B860,($E855/'1 Données d''entrée'!$C$333),0))","v":0},{"$f":"IF(H805<'1 Données d''entrée'!$C$334+1+$B860,0,IF(H805<'1 Données d''entrée'!$C$333+'1 Données d''entrée'!$C$334+1+$B860,($E855/'1 Données d''entrée'!$C$333),0))","v":0},{"$f":"IF(I805<'1 Données d''entrée'!$C$334+1+$B860,0,IF(I805<'1 Données d''entrée'!$C$333+'1 Données d''entrée'!$C$334+1+$B860,($E855/'1 Données d''entrée'!$C$333),0))","v":0},{"$f":"IF(J805<'1 Données d''entrée'!$C$334+1+$B860,0,IF(J805<'1 Données d''entrée'!$C$333+'1 Données d''entrée'!$C$334+1+$B860,($E855/'1 Données d''entrée'!$C$333),0))","v":0},{"$f":"IF(K805<'1 Données d''entrée'!$C$334+1+$B860,0,IF(K805<'1 Données d''entrée'!$C$333+'1 Données d''entrée'!$C$334+1+$B860,($E855/'1 Données d''entrée'!$C$333),0))","v":0},{"$f":"IF(L805<'1 Données d''entrée'!$C$334+1+$B860,0,IF(L805<'1 Données d''entrée'!$C$333+'1 Données d''entrée'!$C$334+1+$B860,($E855/'1 Données d''entrée'!$C$333),0))","v":0},{"$f":"IF(M805<'1 Données d''entrée'!$C$334+1+$B860,0,IF(M805<'1 Données d''entrée'!$C$333+'1 Données d''entrée'!$C$334+1+$B860,($E855/'1 Données d''entrée'!$C$333),0))","v":0},{"$f":"IF(N805<'1 Données d''entrée'!$C$334+1+$B860,0,IF(N805<'1 Données d''entrée'!$C$333+'1 Données d''entrée'!$C$334+1+$B860,($E855/'1 Données d''entrée'!$C$333),0))","v":0},{"$f":"IF(O805<'1 Données d''entrée'!$C$334+1+$B860,0,IF(O805<'1 Données d''entrée'!$C$333+'1 Données d''entrée'!$C$334+1+$B860,($E855/'1 Données d''entrée'!$C$333),0))","v":0},{"$f":"IF(P805<'1 Données d''entrée'!$C$334+1+$B860,0,IF(P805<'1 Données d''entrée'!$C$333+'1 Données d''entrée'!$C$334+1+$B860,($E855/'1 Données d''entrée'!$C$333),0))","v":0},{"$f":"IF(Q805<'1 Données d''entrée'!$C$334+1+$B860,0,IF(Q805<'1 Données d''entrée'!$C$333+'1 Données d''entrée'!$C$334+1+$B860,($E855/'1 Données d''entrée'!$C$333),0))","v":0},{"$f":"IF(R805<'1 Données d''entrée'!$C$334+1+$B860,0,IF(R805<'1 Données d''entrée'!$C$333+'1 Données d''entrée'!$C$334+1+$B860,($E855/'1 Données d''entrée'!$C$333),0))","v":0},{"$f":"IF(S805<'1 Données d''entrée'!$C$334+1+$B860,0,IF(S805<'1 Données d''entrée'!$C$333+'1 Données d''entrée'!$C$334+1+$B860,($E855/'1 Données d''entrée'!$C$333),0))","v":0},{"$f":"IF(T805<'1 Données d''entrée'!$C$334+1+$B860,0,IF(T805<'1 Données d''entrée'!$C$333+'1 Données d''entrée'!$C$334+1+$B860,($E855/'1 Données d''entrée'!$C$333),0))","v":0},{"$f":"IF(U805<'1 Données d''entrée'!$C$334+1+$B860,0,IF(U805<'1 Données d''entrée'!$C$333+'1 Données d''entrée'!$C$334+1+$B860,($E855/'1 Données d''entrée'!$C$333),0))","v":0},{"$f":"IF(V805<'1 Données d''entrée'!$C$334+1+$B860,0,IF(V805<'1 Données d''entrée'!$C$333+'1 Données d''entrée'!$C$334+1+$B860,($E855/'1 Données d''entrée'!$C$333),0))","v":0}]
[null,4,{"$f":"IF(C805<'1 Données d''entrée'!$C$334+1+$B861,0,IF(C805<'1 Données d''entrée'!$C$333+'1 Données d''entrée'!$C$334+1+$B861,($F855/'1 Données d''entrée'!$C$333),0))","v":0},{"$f":"IF(D805<'1 Données d''entrée'!$C$334+1+$B861,0,IF(D805<'1 Données d''entrée'!$C$333+'1 Données d''entrée'!$C$334+1+$B861,($F855/'1 Données d''entrée'!$C$333),0))","v":0},{"$f":"IF(E805<'1 Données d''entrée'!$C$334+1+$B861,0,IF(E805<'1 Données d''entrée'!$C$333+'1 Données d''entrée'!$C$334+1+$B861,($F855/'1 Données d''entrée'!$C$333),0))","v":0},{"$f":"IF(F805<'1 Données d''entrée'!$C$334+1+$B861,0,IF(F805<'1 Données d''entrée'!$C$333+'1 Données d''entrée'!$C$334+1+$B861,($F855/'1 Données d''entrée'!$C$333),0))","v":0},{"$f":"IF(G805<'1 Données d''entrée'!$C$334+1+$B861,0,IF(G805<'1 Données d''entrée'!$C$333+'1 Données d''entrée'!$C$334+1+$B861,($F855/'1 Données d''entrée'!$C$333),0))","v":0},{"$f":"IF(H805<'1 Données d''entrée'!$C$334+1+$B861,0,IF(H805<'1 Données d''entrée'!$C$333+'1 Données d''entrée'!$C$334+1+$B861,($F855/'1 Données d''entrée'!$C$333),0))","v":0},{"$f":"IF(I805<'1 Données d''entrée'!$C$334+1+$B861,0,IF(I805<'1 Données d''entrée'!$C$333+'1 Données d''entrée'!$C$334+1+$B861,($F855/'1 Données d''entrée'!$C$333),0))","v":0},{"$f":"IF(J805<'1 Données d''entrée'!$C$334+1+$B861,0,IF(J805<'1 Données d''entrée'!$C$333+'1 Données d''entrée'!$C$334+1+$B861,($F855/'1 Données d''entrée'!$C$333),0))","v":0},{"$f":"IF(K805<'1 Données d''entrée'!$C$334+1+$B861,0,IF(K805<'1 Données d''entrée'!$C$333+'1 Données d''entrée'!$C$334+1+$B861,($F855/'1 Données d''entrée'!$C$333),0))","v":0},{"$f":"IF(L805<'1 Données d''entrée'!$C$334+1+$B861,0,IF(L805<'1 Données d''entrée'!$C$333+'1 Données d''entrée'!$C$334+1+$B861,($F855/'1 Données d''entrée'!$C$333),0))","v":0},{"$f":"IF(M805<'1 Données d''entrée'!$C$334+1+$B861,0,IF(M805<'1 Données d''entrée'!$C$333+'1 Données d''entrée'!$C$334+1+$B861,($F855/'1 Données d''entrée'!$C$333),0))","v":0},{"$f":"IF(N805<'1 Données d''entrée'!$C$334+1+$B861,0,IF(N805<'1 Données d''entrée'!$C$333+'1 Données d''entrée'!$C$334+1+$B861,($F855/'1 Données d''entrée'!$C$333),0))","v":0},{"$f":"IF(O805<'1 Données d''entrée'!$C$334+1+$B861,0,IF(O805<'1 Données d''entrée'!$C$333+'1 Données d''entrée'!$C$334+1+$B861,($F855/'1 Données d''entrée'!$C$333),0))","v":0},{"$f":"IF(P805<'1 Données d''entrée'!$C$334+1+$B861,0,IF(P805<'1 Données d''entrée'!$C$333+'1 Données d''entrée'!$C$334+1+$B861,($F855/'1 Données d''entrée'!$C$333),0))","v":0},{"$f":"IF(Q805<'1 Données d''entrée'!$C$334+1+$B861,0,IF(Q805<'1 Données d''entrée'!$C$333+'1 Données d''entrée'!$C$334+1+$B861,($F855/'1 Données d''entrée'!$C$333),0))","v":0},{"$f":"IF(R805<'1 Données d''entrée'!$C$334+1+$B861,0,IF(R805<'1 Données d''entrée'!$C$333+'1 Données d''entrée'!$C$334+1+$B861,($F855/'1 Données d''entrée'!$C$333),0))","v":0},{"$f":"IF(S805<'1 Données d''entrée'!$C$334+1+$B861,0,IF(S805<'1 Données d''entrée'!$C$333+'1 Données d''entrée'!$C$334+1+$B861,($F855/'1 Données d''entrée'!$C$333),0))","v":0},{"$f":"IF(T805<'1 Données d''entrée'!$C$334+1+$B861,0,IF(T805<'1 Données d''entrée'!$C$333+'1 Données d''entrée'!$C$334+1+$B861,($F855/'1 Données d''entrée'!$C$333),0))","v":0},{"$f":"IF(U805<'1 Données d''entrée'!$C$334+1+$B861,0,IF(U805<'1 Données d''entrée'!$C$333+'1 Données d''entrée'!$C$334+1+$B861,($F855/'1 Données d''entrée'!$C$333),0))","v":0},{"$f":"IF(V805<'1 Données d''entrée'!$C$334+1+$B861,0,IF(V805<'1 Données d''entrée'!$C$333+'1 Données d''entrée'!$C$334+1+$B861,($F855/'1 Données d''entrée'!$C$333),0))","v":0}]
[null,5,{"$f":"IF(C805<'1 Données d''entrée'!$C$334+1+$B862,0,IF(C805<'1 Données d''entrée'!$C$333+'1 Données d''entrée'!$C$334+1+$B862,($G855/'1 Données d''entrée'!$C$333),0))","v":0},{"$f":"IF(D805<'1 Données d''entrée'!$C$334+1+$B862,0,IF(D805<'1 Données d''entrée'!$C$333+'1 Données d''entrée'!$C$334+1+$B862,($G855/'1 Données d''entrée'!$C$333),0))","v":0},{"$f":"IF(E805<'1 Données d''entrée'!$C$334+1+$B862,0,IF(E805<'1 Données d''entrée'!$C$333+'1 Données d''entrée'!$C$334+1+$B862,($G855/'1 Données d''entrée'!$C$333),0))","v":0},{"$f":"IF(F805<'1 Données d''entrée'!$C$334+1+$B862,0,IF(F805<'1 Données d''entrée'!$C$333+'1 Données d''entrée'!$C$334+1+$B862,($G855/'1 Données d''entrée'!$C$333),0))","v":0},{"$f":"IF(G805<'1 Données d''entrée'!$C$334+1+$B862,0,IF(G805<'1 Données d''entrée'!$C$333+'1 Données d''entrée'!$C$334+1+$B862,($G855/'1 Données d''entrée'!$C$333),0))","v":0},{"$f":"IF(H805<'1 Données d''entrée'!$C$334+1+$B862,0,IF(H805<'1 Données d''entrée'!$C$333+'1 Données d''entrée'!$C$334+1+$B862,($G855/'1 Données d''entrée'!$C$333),0))","v":0},{"$f":"IF(I805<'1 Données d''entrée'!$C$334+1+$B862,0,IF(I805<'1 Données d''entrée'!$C$333+'1 Données d''entrée'!$C$334+1+$B862,($G855/'1 Données d''entrée'!$C$333),0))","v":0},{"$f":"IF(J805<'1 Données d''entrée'!$C$334+1+$B862,0,IF(J805<'1 Données d''entrée'!$C$333+'1 Données d''entrée'!$C$334+1+$B862,($G855/'1 Données d''entrée'!$C$333),0))","v":0},{"$f":"IF(K805<'1 Données d''entrée'!$C$334+1+$B862,0,IF(K805<'1 Données d''entrée'!$C$333+'1 Données d''entrée'!$C$334+1+$B862,($G855/'1 Données d''entrée'!$C$333),0))","v":0},{"$f":"IF(L805<'1 Données d''entrée'!$C$334+1+$B862,0,IF(L805<'1 Données d''entrée'!$C$333+'1 Données d''entrée'!$C$334+1+$B862,($G855/'1 Données d''entrée'!$C$333),0))","v":0},{"$f":"IF(M805<'1 Données d''entrée'!$C$334+1+$B862,0,IF(M805<'1 Données d''entrée'!$C$333+'1 Données d''entrée'!$C$334+1+$B862,($G855/'1 Données d''entrée'!$C$333),0))","v":0},{"$f":"IF(N805<'1 Données d''entrée'!$C$334+1+$B862,0,IF(N805<'1 Données d''entrée'!$C$333+'1 Données d''entrée'!$C$334+1+$B862,($G855/'1 Données d''entrée'!$C$333),0))","v":0},{"$f":"IF(O805<'1 Données d''entrée'!$C$334+1+$B862,0,IF(O805<'1 Données d''entrée'!$C$333+'1 Données d''entrée'!$C$334+1+$B862,($G855/'1 Données d''entrée'!$C$333),0))","v":0},{"$f":"IF(P805<'1 Données d''entrée'!$C$334+1+$B862,0,IF(P805<'1 Données d''entrée'!$C$333+'1 Données d''entrée'!$C$334+1+$B862,($G855/'1 Données d''entrée'!$C$333),0))","v":0},{"$f":"IF(Q805<'1 Données d''entrée'!$C$334+1+$B862,0,IF(Q805<'1 Données d''entrée'!$C$333+'1 Données d''entrée'!$C$334+1+$B862,($G855/'1 Données d''entrée'!$C$333),0))","v":0},{"$f":"IF(R805<'1 Données d''entrée'!$C$334+1+$B862,0,IF(R805<'1 Données d''entrée'!$C$333+'1 Données d''entrée'!$C$334+1+$B862,($G855/'1 Données d''entrée'!$C$333),0))","v":0},{"$f":"IF(S805<'1 Données d''entrée'!$C$334+1+$B862,0,IF(S805<'1 Données d''entrée'!$C$333+'1 Données d''entrée'!$C$334+1+$B862,($G855/'1 Données d''entrée'!$C$333),0))","v":0},{"$f":"IF(T805<'1 Données d''entrée'!$C$334+1+$B862,0,IF(T805<'1 Données d''entrée'!$C$333+'1 Données d''entrée'!$C$334+1+$B862,($G855/'1 Données d''entrée'!$C$333),0))","v":0},{"$f":"IF(U805<'1 Données d''entrée'!$C$334+1+$B862,0,IF(U805<'1 Données d''entrée'!$C$333+'1 Données d''entrée'!$C$334+1+$B862,($G855/'1 Données d''entrée'!$C$333),0))","v":0},{"$f":"IF(V805<'1 Données d''entrée'!$C$334+1+$B862,0,IF(V805<'1 Données d''entrée'!$C$333+'1 Données d''entrée'!$C$334+1+$B862,($G855/'1 Données d''entrée'!$C$333),0))","v":0}]
[null,6,{"$f":"IF(C805<'1 Données d''entrée'!$C$334+1+$B863,0,IF(C805<'1 Données d''entrée'!$C$333+'1 Données d''entrée'!$C$334+1+$B863,($H855/'1 Données d''entrée'!$C$333),0))","v":0},{"$f":"IF(D805<'1 Données d''entrée'!$C$334+1+$B863,0,IF(D805<'1 Données d''entrée'!$C$333+'1 Données d''entrée'!$C$334+1+$B863,($H855/'1 Données d''entrée'!$C$333),0))","v":0},{"$f":"IF(E805<'1 Données d''entrée'!$C$334+1+$B863,0,IF(E805<'1 Données d''entrée'!$C$333+'1 Données d''entrée'!$C$334+1+$B863,($H855/'1 Données d''entrée'!$C$333),0))","v":0},{"$f":"IF(F805<'1 Données d''entrée'!$C$334+1+$B863,0,IF(F805<'1 Données d''entrée'!$C$333+'1 Données d''entrée'!$C$334+1+$B863,($H855/'1 Données d''entrée'!$C$333),0))","v":0},{"$f":"IF(G805<'1 Données d''entrée'!$C$334+1+$B863,0,IF(G805<'1 Données d''entrée'!$C$333+'1 Données d''entrée'!$C$334+1+$B863,($H855/'1 Données d''entrée'!$C$333),0))","v":0},{"$f":"IF(H805<'1 Données d''entrée'!$C$334+1+$B863,0,IF(H805<'1 Données d''entrée'!$C$333+'1 Données d''entrée'!$C$334+1+$B863,($H855/'1 Données d''entrée'!$C$333),0))","v":0},{"$f":"IF(I805<'1 Données d''entrée'!$C$334+1+$B863,0,IF(I805<'1 Données d''entrée'!$C$333+'1 Données d''entrée'!$C$334+1+$B863,($H855/'1 Données d''entrée'!$C$333),0))","v":0},{"$f":"IF(J805<'1 Données d''entrée'!$C$334+1+$B863,0,IF(J805<'1 Données d''entrée'!$C$333+'1 Données d''entrée'!$C$334+1+$B863,($H855/'1 Données d''entrée'!$C$333),0))","v":0},{"$f":"IF(K805<'1 Données d''entrée'!$C$334+1+$B863,0,IF(K805<'1 Données d''entrée'!$C$333+'1 Données d''entrée'!$C$334+1+$B863,($H855/'1 Données d''entrée'!$C$333),0))","v":0},{"$f":"IF(L805<'1 Données d''entrée'!$C$334+1+$B863,0,IF(L805<'1 Données d''entrée'!$C$333+'1 Données d''entrée'!$C$334+1+$B863,($H855/'1 Données d''entrée'!$C$333),0))","v":0},{"$f":"IF(M805<'1 Données d''entrée'!$C$334+1+$B863,0,IF(M805<'1 Données d''entrée'!$C$333+'1 Données d''entrée'!$C$334+1+$B863,($H855/'1 Données d''entrée'!$C$333),0))","v":0},{"$f":"IF(N805<'1 Données d''entrée'!$C$334+1+$B863,0,IF(N805<'1 Données d''entrée'!$C$333+'1 Données d''entrée'!$C$334+1+$B863,($H855/'1 Données d''entrée'!$C$333),0))","v":0},{"$f":"IF(O805<'1 Données d''entrée'!$C$334+1+$B863,0,IF(O805<'1 Données d''entrée'!$C$333+'1 Données d''entrée'!$C$334+1+$B863,($H855/'1 Données d''entrée'!$C$333),0))","v":0},{"$f":"IF(P805<'1 Données d''entrée'!$C$334+1+$B863,0,IF(P805<'1 Données d''entrée'!$C$333+'1 Données d''entrée'!$C$334+1+$B863,($H855/'1 Données d''entrée'!$C$333),0))","v":0},{"$f":"IF(Q805<'1 Données d''entrée'!$C$334+1+$B863,0,IF(Q805<'1 Données d''entrée'!$C$333+'1 Données d''entrée'!$C$334+1+$B863,($H855/'1 Données d''entrée'!$C$333),0))","v":0},{"$f":"IF(R805<'1 Données d''entrée'!$C$334+1+$B863,0,IF(R805<'1 Données d''entrée'!$C$333+'1 Données d''entrée'!$C$334+1+$B863,($H855/'1 Données d''entrée'!$C$333),0))","v":0},{"$f":"IF(S805<'1 Données d''entrée'!$C$334+1+$B863,0,IF(S805<'1 Données d''entrée'!$C$333+'1 Données d''entrée'!$C$334+1+$B863,($H855/'1 Données d''entrée'!$C$333),0))","v":0},{"$f":"IF(T805<'1 Données d''entrée'!$C$334+1+$B863,0,IF(T805<'1 Données d''entrée'!$C$333+'1 Données d''entrée'!$C$334+1+$B863,($H855/'1 Données d''entrée'!$C$333),0))","v":0},{"$f":"IF(U805<'1 Données d''entrée'!$C$334+1+$B863,0,IF(U805<'1 Données d''entrée'!$C$333+'1 Données d''entrée'!$C$334+1+$B863,($H855/'1 Données d''entrée'!$C$333),0))","v":0},{"$f":"IF(V805<'1 Données d''entrée'!$C$334+1+$B863,0,IF(V805<'1 Données d''entrée'!$C$333+'1 Données d''entrée'!$C$334+1+$B863,($H855/'1 Données d''entrée'!$C$333),0))","v":0}]
[null,7,{"$f":"IF(C805<'1 Données d''entrée'!$C$334+1+$B864,0,IF(C805<'1 Données d''entrée'!$C$333+'1 Données d''entrée'!$C$334+1+$B864,($I855/'1 Données d''entrée'!$C$333),0))","v":0},{"$f":"IF(D805<'1 Données d''entrée'!$C$334+1+$B864,0,IF(D805<'1 Données d''entrée'!$C$333+'1 Données d''entrée'!$C$334+1+$B864,($I855/'1 Données d''entrée'!$C$333),0))","v":0},{"$f":"IF(E805<'1 Données d''entrée'!$C$334+1+$B864,0,IF(E805<'1 Données d''entrée'!$C$333+'1 Données d''entrée'!$C$334+1+$B864,($I855/'1 Données d''entrée'!$C$333),0))","v":0},{"$f":"IF(F805<'1 Données d''entrée'!$C$334+1+$B864,0,IF(F805<'1 Données d''entrée'!$C$333+'1 Données d''entrée'!$C$334+1+$B864,($I855/'1 Données d''entrée'!$C$333),0))","v":0},{"$f":"IF(G805<'1 Données d''entrée'!$C$334+1+$B864,0,IF(G805<'1 Données d''entrée'!$C$333+'1 Données d''entrée'!$C$334+1+$B864,($I855/'1 Données d''entrée'!$C$333),0))","v":0},{"$f":"IF(H805<'1 Données d''entrée'!$C$334+1+$B864,0,IF(H805<'1 Données d''entrée'!$C$333+'1 Données d''entrée'!$C$334+1+$B864,($I855/'1 Données d''entrée'!$C$333),0))","v":0},{"$f":"IF(I805<'1 Données d''entrée'!$C$334+1+$B864,0,IF(I805<'1 Données d''entrée'!$C$333+'1 Données d''entrée'!$C$334+1+$B864,($I855/'1 Données d''entrée'!$C$333),0))","v":0},{"$f":"IF(J805<'1 Données d''entrée'!$C$334+1+$B864,0,IF(J805<'1 Données d''entrée'!$C$333+'1 Données d''entrée'!$C$334+1+$B864,($I855/'1 Données d''entrée'!$C$333),0))","v":0},{"$f":"IF(K805<'1 Données d''entrée'!$C$334+1+$B864,0,IF(K805<'1 Données d''entrée'!$C$333+'1 Données d''entrée'!$C$334+1+$B864,($I855/'1 Données d''entrée'!$C$333),0))","v":0},{"$f":"IF(L805<'1 Données d''entrée'!$C$334+1+$B864,0,IF(L805<'1 Données d''entrée'!$C$333+'1 Données d''entrée'!$C$334+1+$B864,($I855/'1 Données d''entrée'!$C$333),0))","v":0},{"$f":"IF(M805<'1 Données d''entrée'!$C$334+1+$B864,0,IF(M805<'1 Données d''entrée'!$C$333+'1 Données d''entrée'!$C$334+1+$B864,($I855/'1 Données d''entrée'!$C$333),0))","v":0},{"$f":"IF(N805<'1 Données d''entrée'!$C$334+1+$B864,0,IF(N805<'1 Données d''entrée'!$C$333+'1 Données d''entrée'!$C$334+1+$B864,($I855/'1 Données d''entrée'!$C$333),0))","v":0},{"$f":"IF(O805<'1 Données d''entrée'!$C$334+1+$B864,0,IF(O805<'1 Données d''entrée'!$C$333+'1 Données d''entrée'!$C$334+1+$B864,($I855/'1 Données d''entrée'!$C$333),0))","v":0},{"$f":"IF(P805<'1 Données d''entrée'!$C$334+1+$B864,0,IF(P805<'1 Données d''entrée'!$C$333+'1 Données d''entrée'!$C$334+1+$B864,($I855/'1 Données d''entrée'!$C$333),0))","v":0},{"$f":"IF(Q805<'1 Données d''entrée'!$C$334+1+$B864,0,IF(Q805<'1 Données d''entrée'!$C$333+'1 Données d''entrée'!$C$334+1+$B864,($I855/'1 Données d''entrée'!$C$333),0))","v":0},{"$f":"IF(R805<'1 Données d''entrée'!$C$334+1+$B864,0,IF(R805<'1 Données d''entrée'!$C$333+'1 Données d''entrée'!$C$334+1+$B864,($I855/'1 Données d''entrée'!$C$333),0))","v":0},{"$f":"IF(S805<'1 Données d''entrée'!$C$334+1+$B864,0,IF(S805<'1 Données d''entrée'!$C$333+'1 Données d''entrée'!$C$334+1+$B864,($I855/'1 Données d''entrée'!$C$333),0))","v":0},{"$f":"IF(T805<'1 Données d''entrée'!$C$334+1+$B864,0,IF(T805<'1 Données d''entrée'!$C$333+'1 Données d''entrée'!$C$334+1+$B864,($I855/'1 Données d''entrée'!$C$333),0))","v":0},{"$f":"IF(U805<'1 Données d''entrée'!$C$334+1+$B864,0,IF(U805<'1 Données d''entrée'!$C$333+'1 Données d''entrée'!$C$334+1+$B864,($I855/'1 Données d''entrée'!$C$333),0))","v":0},{"$f":"IF(V805<'1 Données d''entrée'!$C$334+1+$B864,0,IF(V805<'1 Données d''entrée'!$C$333+'1 Données d''entrée'!$C$334+1+$B864,($I855/'1 Données d''entrée'!$C$333),0))","v":0}]
[null,8,{"$f":"IF(C805<'1 Données d''entrée'!$C$334+1+$B865,0,IF(C805<'1 Données d''entrée'!$C$333+'1 Données d''entrée'!$C$334+1+$B865,($J855/'1 Données d''entrée'!$C$333),0))","v":0},{"$f":"IF(D805<'1 Données d''entrée'!$C$334+1+$B865,0,IF(D805<'1 Données d''entrée'!$C$333+'1 Données d''entrée'!$C$334+1+$B865,($J855/'1 Données d''entrée'!$C$333),0))","v":0},{"$f":"IF(E805<'1 Données d''entrée'!$C$334+1+$B865,0,IF(E805<'1 Données d''entrée'!$C$333+'1 Données d''entrée'!$C$334+1+$B865,($J855/'1 Données d''entrée'!$C$333),0))","v":0},{"$f":"IF(F805<'1 Données d''entrée'!$C$334+1+$B865,0,IF(F805<'1 Données d''entrée'!$C$333+'1 Données d''entrée'!$C$334+1+$B865,($J855/'1 Données d''entrée'!$C$333),0))","v":0},{"$f":"IF(G805<'1 Données d''entrée'!$C$334+1+$B865,0,IF(G805<'1 Données d''entrée'!$C$333+'1 Données d''entrée'!$C$334+1+$B865,($J855/'1 Données d''entrée'!$C$333),0))","v":0},{"$f":"IF(H805<'1 Données d''entrée'!$C$334+1+$B865,0,IF(H805<'1 Données d''entrée'!$C$333+'1 Données d''entrée'!$C$334+1+$B865,($J855/'1 Données d''entrée'!$C$333),0))","v":0},{"$f":"IF(I805<'1 Données d''entrée'!$C$334+1+$B865,0,IF(I805<'1 Données d''entrée'!$C$333+'1 Données d''entrée'!$C$334+1+$B865,($J855/'1 Données d''entrée'!$C$333),0))","v":0},{"$f":"IF(J805<'1 Données d''entrée'!$C$334+1+$B865,0,IF(J805<'1 Données d''entrée'!$C$333+'1 Données d''entrée'!$C$334+1+$B865,($J855/'1 Données d''entrée'!$C$333),0))","v":0},{"$f":"IF(K805<'1 Données d''entrée'!$C$334+1+$B865,0,IF(K805<'1 Données d''entrée'!$C$333+'1 Données d''entrée'!$C$334+1+$B865,($J855/'1 Données d''entrée'!$C$333),0))","v":0},{"$f":"IF(L805<'1 Données d''entrée'!$C$334+1+$B865,0,IF(L805<'1 Données d''entrée'!$C$333+'1 Données d''entrée'!$C$334+1+$B865,($J855/'1 Données d''entrée'!$C$333),0))","v":0},{"$f":"IF(M805<'1 Données d''entrée'!$C$334+1+$B865,0,IF(M805<'1 Données d''entrée'!$C$333+'1 Données d''entrée'!$C$334+1+$B865,($J855/'1 Données d''entrée'!$C$333),0))","v":0},{"$f":"IF(N805<'1 Données d''entrée'!$C$334+1+$B865,0,IF(N805<'1 Données d''entrée'!$C$333+'1 Données d''entrée'!$C$334+1+$B865,($J855/'1 Données d''entrée'!$C$333),0))","v":0},{"$f":"IF(O805<'1 Données d''entrée'!$C$334+1+$B865,0,IF(O805<'1 Données d''entrée'!$C$333+'1 Données d''entrée'!$C$334+1+$B865,($J855/'1 Données d''entrée'!$C$333),0))","v":0},{"$f":"IF(P805<'1 Données d''entrée'!$C$334+1+$B865,0,IF(P805<'1 Données d''entrée'!$C$333+'1 Données d''entrée'!$C$334+1+$B865,($J855/'1 Données d''entrée'!$C$333),0))","v":0},{"$f":"IF(Q805<'1 Données d''entrée'!$C$334+1+$B865,0,IF(Q805<'1 Données d''entrée'!$C$333+'1 Données d''entrée'!$C$334+1+$B865,($J855/'1 Données d''entrée'!$C$333),0))","v":0},{"$f":"IF(R805<'1 Données d''entrée'!$C$334+1+$B865,0,IF(R805<'1 Données d''entrée'!$C$333+'1 Données d''entrée'!$C$334+1+$B865,($J855/'1 Données d''entrée'!$C$333),0))","v":0},{"$f":"IF(S805<'1 Données d''entrée'!$C$334+1+$B865,0,IF(S805<'1 Données d''entrée'!$C$333+'1 Données d''entrée'!$C$334+1+$B865,($J855/'1 Données d''entrée'!$C$333),0))","v":0},{"$f":"IF(T805<'1 Données d''entrée'!$C$334+1+$B865,0,IF(T805<'1 Données d''entrée'!$C$333+'1 Données d''entrée'!$C$334+1+$B865,($J855/'1 Données d''entrée'!$C$333),0))","v":0},{"$f":"IF(U805<'1 Données d''entrée'!$C$334+1+$B865,0,IF(U805<'1 Données d''entrée'!$C$333+'1 Données d''entrée'!$C$334+1+$B865,($J855/'1 Données d''entrée'!$C$333),0))","v":0},{"$f":"IF(V805<'1 Données d''entrée'!$C$334+1+$B865,0,IF(V805<'1 Données d''entrée'!$C$333+'1 Données d''entrée'!$C$334+1+$B865,($J855/'1 Données d''entrée'!$C$333),0))","v":0}]
[null,9,{"$f":"IF(C805<'1 Données d''entrée'!$C$334+1+$B866,0,IF(C805<'1 Données d''entrée'!$C$333+'1 Données d''entrée'!$C$334+1+$B866,($K855/'1 Données d''entrée'!$C$333),0))","v":0},{"$f":"IF(D805<'1 Données d''entrée'!$C$334+1+$B866,0,IF(D805<'1 Données d''entrée'!$C$333+'1 Données d''entrée'!$C$334+1+$B866,($K855/'1 Données d''entrée'!$C$333),0))","v":0},{"$f":"IF(E805<'1 Données d''entrée'!$C$334+1+$B866,0,IF(E805<'1 Données d''entrée'!$C$333+'1 Données d''entrée'!$C$334+1+$B866,($K855/'1 Données d''entrée'!$C$333),0))","v":0},{"$f":"IF(F805<'1 Données d''entrée'!$C$334+1+$B866,0,IF(F805<'1 Données d''entrée'!$C$333+'1 Données d''entrée'!$C$334+1+$B866,($K855/'1 Données d''entrée'!$C$333),0))","v":0},{"$f":"IF(G805<'1 Données d''entrée'!$C$334+1+$B866,0,IF(G805<'1 Données d''entrée'!$C$333+'1 Données d''entrée'!$C$334+1+$B866,($K855/'1 Données d''entrée'!$C$333),0))","v":0},{"$f":"IF(H805<'1 Données d''entrée'!$C$334+1+$B866,0,IF(H805<'1 Données d''entrée'!$C$333+'1 Données d''entrée'!$C$334+1+$B866,($K855/'1 Données d''entrée'!$C$333),0))","v":0},{"$f":"IF(I805<'1 Données d''entrée'!$C$334+1+$B866,0,IF(I805<'1 Données d''entrée'!$C$333+'1 Données d''entrée'!$C$334+1+$B866,($K855/'1 Données d''entrée'!$C$333),0))","v":0},{"$f":"IF(J805<'1 Données d''entrée'!$C$334+1+$B866,0,IF(J805<'1 Données d''entrée'!$C$333+'1 Données d''entrée'!$C$334+1+$B866,($K855/'1 Données d''entrée'!$C$333),0))","v":0},{"$f":"IF(K805<'1 Données d''entrée'!$C$334+1+$B866,0,IF(K805<'1 Données d''entrée'!$C$333+'1 Données d''entrée'!$C$334+1+$B866,($K855/'1 Données d''entrée'!$C$333),0))","v":0},{"$f":"IF(L805<'1 Données d''entrée'!$C$334+1+$B866,0,IF(L805<'1 Données d''entrée'!$C$333+'1 Données d''entrée'!$C$334+1+$B866,($K855/'1 Données d''entrée'!$C$333),0))","v":0},{"$f":"IF(M805<'1 Données d''entrée'!$C$334+1+$B866,0,IF(M805<'1 Données d''entrée'!$C$333+'1 Données d''entrée'!$C$334+1+$B866,($K855/'1 Données d''entrée'!$C$333),0))","v":0},{"$f":"IF(N805<'1 Données d''entrée'!$C$334+1+$B866,0,IF(N805<'1 Données d''entrée'!$C$333+'1 Données d''entrée'!$C$334+1+$B866,($K855/'1 Données d''entrée'!$C$333),0))","v":0},{"$f":"IF(O805<'1 Données d''entrée'!$C$334+1+$B866,0,IF(O805<'1 Données d''entrée'!$C$333+'1 Données d''entrée'!$C$334+1+$B866,($K855/'1 Données d''entrée'!$C$333),0))","v":0},{"$f":"IF(P805<'1 Données d''entrée'!$C$334+1+$B866,0,IF(P805<'1 Données d''entrée'!$C$333+'1 Données d''entrée'!$C$334+1+$B866,($K855/'1 Données d''entrée'!$C$333),0))","v":0},{"$f":"IF(Q805<'1 Données d''entrée'!$C$334+1+$B866,0,IF(Q805<'1 Données d''entrée'!$C$333+'1 Données d''entrée'!$C$334+1+$B866,($K855/'1 Données d''entrée'!$C$333),0))","v":0},{"$f":"IF(R805<'1 Données d''entrée'!$C$334+1+$B866,0,IF(R805<'1 Données d''entrée'!$C$333+'1 Données d''entrée'!$C$334+1+$B866,($K855/'1 Données d''entrée'!$C$333),0))","v":0},{"$f":"IF(S805<'1 Données d''entrée'!$C$334+1+$B866,0,IF(S805<'1 Données d''entrée'!$C$333+'1 Données d''entrée'!$C$334+1+$B866,($K855/'1 Données d''entrée'!$C$333),0))","v":0},{"$f":"IF(T805<'1 Données d''entrée'!$C$334+1+$B866,0,IF(T805<'1 Données d''entrée'!$C$333+'1 Données d''entrée'!$C$334+1+$B866,($K855/'1 Données d''entrée'!$C$333),0))","v":0},{"$f":"IF(U805<'1 Données d''entrée'!$C$334+1+$B866,0,IF(U805<'1 Données d''entrée'!$C$333+'1 Données d''entrée'!$C$334+1+$B866,($K855/'1 Données d''entrée'!$C$333),0))","v":0},{"$f":"IF(V805<'1 Données d''entrée'!$C$334+1+$B866,0,IF(V805<'1 Données d''entrée'!$C$333+'1 Données d''entrée'!$C$334+1+$B866,($K855/'1 Données d''entrée'!$C$333),0))","v":0}]
[null,10,{"$f":"IF(C805<'1 Données d''entrée'!$C$334+1+$B867,0,IF(C805<'1 Données d''entrée'!$C$333+'1 Données d''entrée'!$C$334+1+$B867,($L855/'1 Données d''entrée'!$C$333),0))","v":0},{"$f":"IF(D805<'1 Données d''entrée'!$C$334+1+$B867,0,IF(D805<'1 Données d''entrée'!$C$333+'1 Données d''entrée'!$C$334+1+$B867,($L855/'1 Données d''entrée'!$C$333),0))","v":0},{"$f":"IF(E805<'1 Données d''entrée'!$C$334+1+$B867,0,IF(E805<'1 Données d''entrée'!$C$333+'1 Données d''entrée'!$C$334+1+$B867,($L855/'1 Données d''entrée'!$C$333),0))","v":0},{"$f":"IF(F805<'1 Données d''entrée'!$C$334+1+$B867,0,IF(F805<'1 Données d''entrée'!$C$333+'1 Données d''entrée'!$C$334+1+$B867,($L855/'1 Données d''entrée'!$C$333),0))","v":0},{"$f":"IF(G805<'1 Données d''entrée'!$C$334+1+$B867,0,IF(G805<'1 Données d''entrée'!$C$333+'1 Données d''entrée'!$C$334+1+$B867,($L855/'1 Données d''entrée'!$C$333),0))","v":0},{"$f":"IF(H805<'1 Données d''entrée'!$C$334+1+$B867,0,IF(H805<'1 Données d''entrée'!$C$333+'1 Données d''entrée'!$C$334+1+$B867,($L855/'1 Données d''entrée'!$C$333),0))","v":0},{"$f":"IF(I805<'1 Données d''entrée'!$C$334+1+$B867,0,IF(I805<'1 Données d''entrée'!$C$333+'1 Données d''entrée'!$C$334+1+$B867,($L855/'1 Données d''entrée'!$C$333),0))","v":0},{"$f":"IF(J805<'1 Données d''entrée'!$C$334+1+$B867,0,IF(J805<'1 Données d''entrée'!$C$333+'1 Données d''entrée'!$C$334+1+$B867,($L855/'1 Données d''entrée'!$C$333),0))","v":0},{"$f":"IF(K805<'1 Données d''entrée'!$C$334+1+$B867,0,IF(K805<'1 Données d''entrée'!$C$333+'1 Données d''entrée'!$C$334+1+$B867,($L855/'1 Données d''entrée'!$C$333),0))","v":0},{"$f":"IF(L805<'1 Données d''entrée'!$C$334+1+$B867,0,IF(L805<'1 Données d''entrée'!$C$333+'1 Données d''entrée'!$C$334+1+$B867,($L855/'1 Données d''entrée'!$C$333),0))","v":0},{"$f":"IF(M805<'1 Données d''entrée'!$C$334+1+$B867,0,IF(M805<'1 Données d''entrée'!$C$333+'1 Données d''entrée'!$C$334+1+$B867,($L855/'1 Données d''entrée'!$C$333),0))","v":0},{"$f":"IF(N805<'1 Données d''entrée'!$C$334+1+$B867,0,IF(N805<'1 Données d''entrée'!$C$333+'1 Données d''entrée'!$C$334+1+$B867,($L855/'1 Données d''entrée'!$C$333),0))","v":0},{"$f":"IF(O805<'1 Données d''entrée'!$C$334+1+$B867,0,IF(O805<'1 Données d''entrée'!$C$333+'1 Données d''entrée'!$C$334+1+$B867,($L855/'1 Données d''entrée'!$C$333),0))","v":0},{"$f":"IF(P805<'1 Données d''entrée'!$C$334+1+$B867,0,IF(P805<'1 Données d''entrée'!$C$333+'1 Données d''entrée'!$C$334+1+$B867,($L855/'1 Données d''entrée'!$C$333),0))","v":0},{"$f":"IF(Q805<'1 Données d''entrée'!$C$334+1+$B867,0,IF(Q805<'1 Données d''entrée'!$C$333+'1 Données d''entrée'!$C$334+1+$B867,($L855/'1 Données d''entrée'!$C$333),0))","v":0},{"$f":"IF(R805<'1 Données d''entrée'!$C$334+1+$B867,0,IF(R805<'1 Données d''entrée'!$C$333+'1 Données d''entrée'!$C$334+1+$B867,($L855/'1 Données d''entrée'!$C$333),0))","v":0},{"$f":"IF(S805<'1 Données d''entrée'!$C$334+1+$B867,0,IF(S805<'1 Données d''entrée'!$C$333+'1 Données d''entrée'!$C$334+1+$B867,($L855/'1 Données d''entrée'!$C$333),0))","v":0},{"$f":"IF(T805<'1 Données d''entrée'!$C$334+1+$B867,0,IF(T805<'1 Données d''entrée'!$C$333+'1 Données d''entrée'!$C$334+1+$B867,($L855/'1 Données d''entrée'!$C$333),0))","v":0},{"$f":"IF(U805<'1 Données d''entrée'!$C$334+1+$B867,0,IF(U805<'1 Données d''entrée'!$C$333+'1 Données d''entrée'!$C$334+1+$B867,($L855/'1 Données d''entrée'!$C$333),0))","v":0},{"$f":"IF(V805<'1 Données d''entrée'!$C$334+1+$B867,0,IF(V805<'1 Données d''entrée'!$C$333+'1 Données d''entrée'!$C$334+1+$B867,($L855/'1 Données d''entrée'!$C$333),0))","v":0}]
[null,"Période de prêt nouveau"]
["Paiement d'intérêts",0,0,0,0,0,0,0,0,0,0,0,0,0,0,0,0,0,0,0,0,0]
["Paiement d'intêrets",1,0,{"$f":"IF(C805<1+$B857,0,IF(C805<'1 Données d''entrée'!$C$334+'1 Données d''entrée'!$C$333+1+$B857,'1 Données d''entrée'!$C$332*($C855-SUM($C858:C858)),0))","v":0},{"$f":"IF(D805<1+$B857,0,IF(D805<'1 Données d''entrée'!$C$334+'1 Données d''entrée'!$C$333+1+$B857,'1 Données d''entrée'!$C$332*($C855-SUM($C858:D858)),0))","v":0},{"$f":"IF(E805<1+$B857,0,IF(E805<'1 Données d''entrée'!$C$334+'1 Données d''entrée'!$C$333+1+$B857,'1 Données d''entrée'!$C$332*($C855-SUM($C858:E858)),0))","v":0},{"$f":"IF(F805<1+$B857,0,IF(F805<'1 Données d''entrée'!$C$334+'1 Données d''entrée'!$C$333+1+$B857,'1 Données d''entrée'!$C$332*($C855-SUM($C858:F858)),0))","v":0},{"$f":"IF(G805<1+$B857,0,IF(G805<'1 Données d''entrée'!$C$334+'1 Données d''entrée'!$C$333+1+$B857,'1 Données d''entrée'!$C$332*($C855-SUM($C858:G858)),0))","v":0},{"$f":"IF(H805<1+$B857,0,IF(H805<'1 Données d''entrée'!$C$334+'1 Données d''entrée'!$C$333+1+$B857,'1 Données d''entrée'!$C$332*($C855-SUM($C858:H858)),0))","v":0},{"$f":"IF(I805<1+$B857,0,IF(I805<'1 Données d''entrée'!$C$334+'1 Données d''entrée'!$C$333+1+$B857,'1 Données d''entrée'!$C$332*($C855-SUM($C858:I858)),0))","v":0},{"$f":"IF(J805<1+$B857,0,IF(J805<'1 Données d''entrée'!$C$334+'1 Données d''entrée'!$C$333+1+$B857,'1 Données d''entrée'!$C$332*($C855-SUM($C858:J858)),0))","v":0},{"$f":"IF(K805<1+$B857,0,IF(K805<'1 Données d''entrée'!$C$334+'1 Données d''entrée'!$C$333+1+$B857,'1 Données d''entrée'!$C$332*($C855-SUM($C858:K858)),0))","v":0},{"$f":"IF(L805<1+$B857,0,IF(L805<'1 Données d''entrée'!$C$334+'1 Données d''entrée'!$C$333+1+$B857,'1 Données d''entrée'!$C$332*($C855-SUM($C858:L858)),0))","v":0},{"$f":"IF(M805<1+$B857,0,IF(M805<'1 Données d''entrée'!$C$334+'1 Données d''entrée'!$C$333+1+$B857,'1 Données d''entrée'!$C$332*($C855-SUM($C858:M858)),0))","v":0},{"$f":"IF(N805<1+$B857,0,IF(N805<'1 Données d''entrée'!$C$334+'1 Données d''entrée'!$C$333+1+$B857,'1 Données d''entrée'!$C$332*($C855-SUM($C858:N858)),0))","v":0},{"$f":"IF(O805<1+$B857,0,IF(O805<'1 Données d''entrée'!$C$334+'1 Données d''entrée'!$C$333+1+$B857,'1 Données d''entrée'!$C$332*($C855-SUM($C858:O858)),0))","v":0},{"$f":"IF(P805<1+$B857,0,IF(P805<'1 Données d''entrée'!$C$334+'1 Données d''entrée'!$C$333+1+$B857,'1 Données d''entrée'!$C$332*($C855-SUM($C858:P858)),0))","v":0},{"$f":"IF(Q805<1+$B857,0,IF(Q805<'1 Données d''entrée'!$C$334+'1 Données d''entrée'!$C$333+1+$B857,'1 Données d''entrée'!$C$332*($C855-SUM($C858:Q858)),0))","v":0},{"$f":"IF(R805<1+$B857,0,IF(R805<'1 Données d''entrée'!$C$334+'1 Données d''entrée'!$C$333+1+$B857,'1 Données d''entrée'!$C$332*($C855-SUM($C858:R858)),0))","v":0},{"$f":"IF(S805<1+$B857,0,IF(S805<'1 Données d''entrée'!$C$334+'1 Données d''entrée'!$C$333+1+$B857,'1 Données d''entrée'!$C$332*($C855-SUM($C858:S858)),0))","v":0},{"$f":"IF(T805<1+$B857,0,IF(T805<'1 Données d''entrée'!$C$334+'1 Données d''entrée'!$C$333+1+$B857,'1 Données d''entrée'!$C$332*($C855-SUM($C858:T858)),0))","v":0},{"$f":"IF(U805<1+$B857,0,IF(U805<'1 Données d''entrée'!$C$334+'1 Données d''entrée'!$C$333+1+$B857,'1 Données d''entrée'!$C$332*($C855-SUM($C858:U858)),0))","v":0}]
["Paiement d'intêrets",2,0,{"$f":"IF(C805<1+$B858,0,IF(C805<'1 Données d''entrée'!$C$334+'1 Données d''entrée'!$C$333+1+$B858,'1 Données d''entrée'!$C$332*($D855-SUM($C859:C859)),0))","v":0},{"$f":"IF(D805<1+$B858,0,IF(D805<'1 Données d''entrée'!$C$334+'1 Données d''entrée'!$C$333+1+$B858,'1 Données d''entrée'!$C$332*($D855-SUM($C859:D859)),0))","v":0},{"$f":"IF(E805<1+$B858,0,IF(E805<'1 Données d''entrée'!$C$334+'1 Données d''entrée'!$C$333+1+$B858,'1 Données d''entrée'!$C$332*($D855-SUM($C859:E859)),0))","v":0},{"$f":"IF(F805<1+$B858,0,IF(F805<'1 Données d''entrée'!$C$334+'1 Données d''entrée'!$C$333+1+$B858,'1 Données d''entrée'!$C$332*($D855-SUM($C859:F859)),0))","v":0},{"$f":"IF(G805<1+$B858,0,IF(G805<'1 Données d''entrée'!$C$334+'1 Données d''entrée'!$C$333+1+$B858,'1 Données d''entrée'!$C$332*($D855-SUM($C859:G859)),0))","v":0},{"$f":"IF(H805<1+$B858,0,IF(H805<'1 Données d''entrée'!$C$334+'1 Données d''entrée'!$C$333+1+$B858,'1 Données d''entrée'!$C$332*($D855-SUM($C859:H859)),0))","v":0},{"$f":"IF(I805<1+$B858,0,IF(I805<'1 Données d''entrée'!$C$334+'1 Données d''entrée'!$C$333+1+$B858,'1 Données d''entrée'!$C$332*($D855-SUM($C859:I859)),0))","v":0},{"$f":"IF(J805<1+$B858,0,IF(J805<'1 Données d''entrée'!$C$334+'1 Données d''entrée'!$C$333+1+$B858,'1 Données d''entrée'!$C$332*($D855-SUM($C859:J859)),0))","v":0},{"$f":"IF(K805<1+$B858,0,IF(K805<'1 Données d''entrée'!$C$334+'1 Données d''entrée'!$C$333+1+$B858,'1 Données d''entrée'!$C$332*($D855-SUM($C859:K859)),0))","v":0},{"$f":"IF(L805<1+$B858,0,IF(L805<'1 Données d''entrée'!$C$334+'1 Données d''entrée'!$C$333+1+$B858,'1 Données d''entrée'!$C$332*($D855-SUM($C859:L859)),0))","v":0},{"$f":"IF(M805<1+$B858,0,IF(M805<'1 Données d''entrée'!$C$334+'1 Données d''entrée'!$C$333+1+$B858,'1 Données d''entrée'!$C$332*($D855-SUM($C859:M859)),0))","v":0},{"$f":"IF(N805<1+$B858,0,IF(N805<'1 Données d''entrée'!$C$334+'1 Données d''entrée'!$C$333+1+$B858,'1 Données d''entrée'!$C$332*($D855-SUM($C859:N859)),0))","v":0},{"$f":"IF(O805<1+$B858,0,IF(O805<'1 Données d''entrée'!$C$334+'1 Données d''entrée'!$C$333+1+$B858,'1 Données d''entrée'!$C$332*($D855-SUM($C859:O859)),0))","v":0},{"$f":"IF(P805<1+$B858,0,IF(P805<'1 Données d''entrée'!$C$334+'1 Données d''entrée'!$C$333+1+$B858,'1 Données d''entrée'!$C$332*($D855-SUM($C859:P859)),0))","v":0},{"$f":"IF(Q805<1+$B858,0,IF(Q805<'1 Données d''entrée'!$C$334+'1 Données d''entrée'!$C$333+1+$B858,'1 Données d''entrée'!$C$332*($D855-SUM($C859:Q859)),0))","v":0},{"$f":"IF(R805<1+$B858,0,IF(R805<'1 Données d''entrée'!$C$334+'1 Données d''entrée'!$C$333+1+$B858,'1 Données d''entrée'!$C$332*($D855-SUM($C859:R859)),0))","v":0},{"$f":"IF(S805<1+$B858,0,IF(S805<'1 Données d''entrée'!$C$334+'1 Données d''entrée'!$C$333+1+$B858,'1 Données d''entrée'!$C$332*($D855-SUM($C859:S859)),0))","v":0},{"$f":"IF(T805<1+$B858,0,IF(T805<'1 Données d''entrée'!$C$334+'1 Données d''entrée'!$C$333+1+$B858,'1 Données d''entrée'!$C$332*($D855-SUM($C859:T859)),0))","v":0},{"$f":"IF(U805<1+$B858,0,IF(U805<'1 Données d''entrée'!$C$334+'1 Données d''entrée'!$C$333+1+$B858,'1 Données d''entrée'!$C$332*($D855-SUM($C859:U859)),0))","v":0}]
["Paiement d'intêrets",3,0,{"$f":"IF(C805<1+$B859,0,IF(C805<'1 Données d''entrée'!$C$334+'1 Données d''entrée'!$C$333+1+$B859,'1 Données d''entrée'!$C$332*($E855-SUM($C860:C860)),0))","v":0},{"$f":"IF(D805<1+$B859,0,IF(D805<'1 Données d''entrée'!$C$334+'1 Données d''entrée'!$C$333+1+$B859,'1 Données d''entrée'!$C$332*($E855-SUM($C860:D860)),0))","v":0},{"$f":"IF(E805<1+$B859,0,IF(E805<'1 Données d''entrée'!$C$334+'1 Données d''entrée'!$C$333+1+$B859,'1 Données d''entrée'!$C$332*($E855-SUM($C860:E860)),0))","v":0},{"$f":"IF(F805<1+$B859,0,IF(F805<'1 Données d''entrée'!$C$334+'1 Données d''entrée'!$C$333+1+$B859,'1 Données d''entrée'!$C$332*($E855-SUM($C860:F860)),0))","v":0},{"$f":"IF(G805<1+$B859,0,IF(G805<'1 Données d''entrée'!$C$334+'1 Données d''entrée'!$C$333+1+$B859,'1 Données d''entrée'!$C$332*($E855-SUM($C860:G860)),0))","v":0},{"$f":"IF(H805<1+$B859,0,IF(H805<'1 Données d''entrée'!$C$334+'1 Données d''entrée'!$C$333+1+$B859,'1 Données d''entrée'!$C$332*($E855-SUM($C860:H860)),0))","v":0},{"$f":"IF(I805<1+$B859,0,IF(I805<'1 Données d''entrée'!$C$334+'1 Données d''entrée'!$C$333+1+$B859,'1 Données d''entrée'!$C$332*($E855-SUM($C860:I860)),0))","v":0},{"$f":"IF(J805<1+$B859,0,IF(J805<'1 Données d''entrée'!$C$334+'1 Données d''entrée'!$C$333+1+$B859,'1 Données d''entrée'!$C$332*($E855-SUM($C860:J860)),0))","v":0},{"$f":"IF(K805<1+$B859,0,IF(K805<'1 Données d''entrée'!$C$334+'1 Données d''entrée'!$C$333+1+$B859,'1 Données d''entrée'!$C$332*($E855-SUM($C860:K860)),0))","v":0},{"$f":"IF(L805<1+$B859,0,IF(L805<'1 Données d''entrée'!$C$334+'1 Données d''entrée'!$C$333+1+$B859,'1 Données d''entrée'!$C$332*($E855-SUM($C860:L860)),0))","v":0},{"$f":"IF(M805<1+$B859,0,IF(M805<'1 Données d''entrée'!$C$334+'1 Données d''entrée'!$C$333+1+$B859,'1 Données d''entrée'!$C$332*($E855-SUM($C860:M860)),0))","v":0},{"$f":"IF(N805<1+$B859,0,IF(N805<'1 Données d''entrée'!$C$334+'1 Données d''entrée'!$C$333+1+$B859,'1 Données d''entrée'!$C$332*($E855-SUM($C860:N860)),0))","v":0},{"$f":"IF(O805<1+$B859,0,IF(O805<'1 Données d''entrée'!$C$334+'1 Données d''entrée'!$C$333+1+$B859,'1 Données d''entrée'!$C$332*($E855-SUM($C860:O860)),0))","v":0},{"$f":"IF(P805<1+$B859,0,IF(P805<'1 Données d''entrée'!$C$334+'1 Données d''entrée'!$C$333+1+$B859,'1 Données d''entrée'!$C$332*($E855-SUM($C860:P860)),0))","v":0},{"$f":"IF(Q805<1+$B859,0,IF(Q805<'1 Données d''entrée'!$C$334+'1 Données d''entrée'!$C$333+1+$B859,'1 Données d''entrée'!$C$332*($E855-SUM($C860:Q860)),0))","v":0},{"$f":"IF(R805<1+$B859,0,IF(R805<'1 Données d''entrée'!$C$334+'1 Données d''entrée'!$C$333+1+$B859,'1 Données d''entrée'!$C$332*($E855-SUM($C860:R860)),0))","v":0},{"$f":"IF(S805<1+$B859,0,IF(S805<'1 Données d''entrée'!$C$334+'1 Données d''entrée'!$C$333+1+$B859,'1 Données d''entrée'!$C$332*($E855-SUM($C860:S860)),0))","v":0},{"$f":"IF(T805<1+$B859,0,IF(T805<'1 Données d''entrée'!$C$334+'1 Données d''entrée'!$C$333+1+$B859,'1 Données d''entrée'!$C$332*($E855-SUM($C860:T860)),0))","v":0},{"$f":"IF(U805<1+$B859,0,IF(U805<'1 Données d''entrée'!$C$334+'1 Données d''entrée'!$C$333+1+$B859,'1 Données d''entrée'!$C$332*($E855-SUM($C860:U860)),0))","v":0}]
["Paiement d'intêrets",4,0,{"$f":"IF(C805<1+$B860,0,IF(C805<'1 Données d''entrée'!$C$334+'1 Données d''entrée'!$C$333+1+$B860,'1 Données d''entrée'!$C$332*($F855-SUM($C861:C861)),0))","v":0},{"$f":"IF(D805<1+$B860,0,IF(D805<'1 Données d''entrée'!$C$334+'1 Données d''entrée'!$C$333+1+$B860,'1 Données d''entrée'!$C$332*($F855-SUM($C861:D861)),0))","v":0},{"$f":"IF(E805<1+$B860,0,IF(E805<'1 Données d''entrée'!$C$334+'1 Données d''entrée'!$C$333+1+$B860,'1 Données d''entrée'!$C$332*($F855-SUM($C861:E861)),0))","v":0},{"$f":"IF(F805<1+$B860,0,IF(F805<'1 Données d''entrée'!$C$334+'1 Données d''entrée'!$C$333+1+$B860,'1 Données d''entrée'!$C$332*($F855-SUM($C861:F861)),0))","v":0},{"$f":"IF(G805<1+$B860,0,IF(G805<'1 Données d''entrée'!$C$334+'1 Données d''entrée'!$C$333+1+$B860,'1 Données d''entrée'!$C$332*($F855-SUM($C861:G861)),0))","v":0},{"$f":"IF(H805<1+$B860,0,IF(H805<'1 Données d''entrée'!$C$334+'1 Données d''entrée'!$C$333+1+$B860,'1 Données d''entrée'!$C$332*($F855-SUM($C861:H861)),0))","v":0},{"$f":"IF(I805<1+$B860,0,IF(I805<'1 Données d''entrée'!$C$334+'1 Données d''entrée'!$C$333+1+$B860,'1 Données d''entrée'!$C$332*($F855-SUM($C861:I861)),0))","v":0},{"$f":"IF(J805<1+$B860,0,IF(J805<'1 Données d''entrée'!$C$334+'1 Données d''entrée'!$C$333+1+$B860,'1 Données d''entrée'!$C$332*($F855-SUM($C861:J861)),0))","v":0},{"$f":"IF(K805<1+$B860,0,IF(K805<'1 Données d''entrée'!$C$334+'1 Données d''entrée'!$C$333+1+$B860,'1 Données d''entrée'!$C$332*($F855-SUM($C861:K861)),0))","v":0},{"$f":"IF(L805<1+$B860,0,IF(L805<'1 Données d''entrée'!$C$334+'1 Données d''entrée'!$C$333+1+$B860,'1 Données d''entrée'!$C$332*($F855-SUM($C861:L861)),0))","v":0},{"$f":"IF(M805<1+$B860,0,IF(M805<'1 Données d''entrée'!$C$334+'1 Données d''entrée'!$C$333+1+$B860,'1 Données d''entrée'!$C$332*($F855-SUM($C861:M861)),0))","v":0},{"$f":"IF(N805<1+$B860,0,IF(N805<'1 Données d''entrée'!$C$334+'1 Données d''entrée'!$C$333+1+$B860,'1 Données d''entrée'!$C$332*($F855-SUM($C861:N861)),0))","v":0},{"$f":"IF(O805<1+$B860,0,IF(O805<'1 Données d''entrée'!$C$334+'1 Données d''entrée'!$C$333+1+$B860,'1 Données d''entrée'!$C$332*($F855-SUM($C861:O861)),0))","v":0},{"$f":"IF(P805<1+$B860,0,IF(P805<'1 Données d''entrée'!$C$334+'1 Données d''entrée'!$C$333+1+$B860,'1 Données d''entrée'!$C$332*($F855-SUM($C861:P861)),0))","v":0},{"$f":"IF(Q805<1+$B860,0,IF(Q805<'1 Données d''entrée'!$C$334+'1 Données d''entrée'!$C$333+1+$B860,'1 Données d''entrée'!$C$332*($F855-SUM($C861:Q861)),0))","v":0},{"$f":"IF(R805<1+$B860,0,IF(R805<'1 Données d''entrée'!$C$334+'1 Données d''entrée'!$C$333+1+$B860,'1 Données d''entrée'!$C$332*($F855-SUM($C861:R861)),0))","v":0},{"$f":"IF(S805<1+$B860,0,IF(S805<'1 Données d''entrée'!$C$334+'1 Données d''entrée'!$C$333+1+$B860,'1 Données d''entrée'!$C$332*($F855-SUM($C861:S861)),0))","v":0},{"$f":"IF(T805<1+$B860,0,IF(T805<'1 Données d''entrée'!$C$334+'1 Données d''entrée'!$C$333+1+$B860,'1 Données d''entrée'!$C$332*($F855-SUM($C861:T861)),0))","v":0},{"$f":"IF(U805<1+$B860,0,IF(U805<'1 Données d''entrée'!$C$334+'1 Données d''entrée'!$C$333+1+$B860,'1 Données d''entrée'!$C$332*($F855-SUM($C861:U861)),0))","v":0}]
["Paiement d'intêrets",5,0,{"$f":"IF(C805<1+$B861,0,IF(C805<'1 Données d''entrée'!$C$334+'1 Données d''entrée'!$C$333+1+$B861,'1 Données d''entrée'!$C$332*($G855-SUM($C862:C862)),0))","v":0},{"$f":"IF(D805<1+$B861,0,IF(D805<'1 Données d''entrée'!$C$334+'1 Données d''entrée'!$C$333+1+$B861,'1 Données d''entrée'!$C$332*($G855-SUM($C862:D862)),0))","v":0},{"$f":"IF(E805<1+$B861,0,IF(E805<'1 Données d''entrée'!$C$334+'1 Données d''entrée'!$C$333+1+$B861,'1 Données d''entrée'!$C$332*($G855-SUM($C862:E862)),0))","v":0},{"$f":"IF(F805<1+$B861,0,IF(F805<'1 Données d''entrée'!$C$334+'1 Données d''entrée'!$C$333+1+$B861,'1 Données d''entrée'!$C$332*($G855-SUM($C862:F862)),0))","v":0},{"$f":"IF(G805<1+$B861,0,IF(G805<'1 Données d''entrée'!$C$334+'1 Données d''entrée'!$C$333+1+$B861,'1 Données d''entrée'!$C$332*($G855-SUM($C862:G862)),0))","v":0},{"$f":"IF(H805<1+$B861,0,IF(H805<'1 Données d''entrée'!$C$334+'1 Données d''entrée'!$C$333+1+$B861,'1 Données d''entrée'!$C$332*($G855-SUM($C862:H862)),0))","v":0},{"$f":"IF(I805<1+$B861,0,IF(I805<'1 Données d''entrée'!$C$334+'1 Données d''entrée'!$C$333+1+$B861,'1 Données d''entrée'!$C$332*($G855-SUM($C862:I862)),0))","v":0},{"$f":"IF(J805<1+$B861,0,IF(J805<'1 Données d''entrée'!$C$334+'1 Données d''entrée'!$C$333+1+$B861,'1 Données d''entrée'!$C$332*($G855-SUM($C862:J862)),0))","v":0},{"$f":"IF(K805<1+$B861,0,IF(K805<'1 Données d''entrée'!$C$334+'1 Données d''entrée'!$C$333+1+$B861,'1 Données d''entrée'!$C$332*($G855-SUM($C862:K862)),0))","v":0},{"$f":"IF(L805<1+$B861,0,IF(L805<'1 Données d''entrée'!$C$334+'1 Données d''entrée'!$C$333+1+$B861,'1 Données d''entrée'!$C$332*($G855-SUM($C862:L862)),0))","v":0},{"$f":"IF(M805<1+$B861,0,IF(M805<'1 Données d''entrée'!$C$334+'1 Données d''entrée'!$C$333+1+$B861,'1 Données d''entrée'!$C$332*($G855-SUM($C862:M862)),0))","v":0},{"$f":"IF(N805<1+$B861,0,IF(N805<'1 Données d''entrée'!$C$334+'1 Données d''entrée'!$C$333+1+$B861,'1 Données d''entrée'!$C$332*($G855-SUM($C862:N862)),0))","v":0},{"$f":"IF(O805<1+$B861,0,IF(O805<'1 Données d''entrée'!$C$334+'1 Données d''entrée'!$C$333+1+$B861,'1 Données d''entrée'!$C$332*($G855-SUM($C862:O862)),0))","v":0},{"$f":"IF(P805<1+$B861,0,IF(P805<'1 Données d''entrée'!$C$334+'1 Données d''entrée'!$C$333+1+$B861,'1 Données d''entrée'!$C$332*($G855-SUM($C862:P862)),0))","v":0},{"$f":"IF(Q805<1+$B861,0,IF(Q805<'1 Données d''entrée'!$C$334+'1 Données d''entrée'!$C$333+1+$B861,'1 Données d''entrée'!$C$332*($G855-SUM($C862:Q862)),0))","v":0},{"$f":"IF(R805<1+$B861,0,IF(R805<'1 Données d''entrée'!$C$334+'1 Données d''entrée'!$C$333+1+$B861,'1 Données d''entrée'!$C$332*($G855-SUM($C862:R862)),0))","v":0},{"$f":"IF(S805<1+$B861,0,IF(S805<'1 Données d''entrée'!$C$334+'1 Données d''entrée'!$C$333+1+$B861,'1 Données d''entrée'!$C$332*($G855-SUM($C862:S862)),0))","v":0},{"$f":"IF(T805<1+$B861,0,IF(T805<'1 Données d''entrée'!$C$334+'1 Données d''entrée'!$C$333+1+$B861,'1 Données d''entrée'!$C$332*($G855-SUM($C862:T862)),0))","v":0},{"$f":"IF(U805<1+$B861,0,IF(U805<'1 Données d''entrée'!$C$334+'1 Données d''entrée'!$C$333+1+$B861,'1 Données d''entrée'!$C$332*($G855-SUM($C862:U862)),0))","v":0}]
["Paiement d'intêrets",6,0,{"$f":"IF(C805<1+$B862,0,IF(C805<'1 Données d''entrée'!$C$334+'1 Données d''entrée'!$C$333+1+$B862,'1 Données d''entrée'!$C$332*($H855-SUM($C863:C863)),0))","v":0},{"$f":"IF(D805<1+$B862,0,IF(D805<'1 Données d''entrée'!$C$334+'1 Données d''entrée'!$C$333+1+$B862,'1 Données d''entrée'!$C$332*($H855-SUM($C863:D863)),0))","v":0},{"$f":"IF(E805<1+$B862,0,IF(E805<'1 Données d''entrée'!$C$334+'1 Données d''entrée'!$C$333+1+$B862,'1 Données d''entrée'!$C$332*($H855-SUM($C863:E863)),0))","v":0},{"$f":"IF(F805<1+$B862,0,IF(F805<'1 Données d''entrée'!$C$334+'1 Données d''entrée'!$C$333+1+$B862,'1 Données d''entrée'!$C$332*($H855-SUM($C863:F863)),0))","v":0},{"$f":"IF(G805<1+$B862,0,IF(G805<'1 Données d''entrée'!$C$334+'1 Données d''entrée'!$C$333+1+$B862,'1 Données d''entrée'!$C$332*($H855-SUM($C863:G863)),0))","v":0},{"$f":"IF(H805<1+$B862,0,IF(H805<'1 Données d''entrée'!$C$334+'1 Données d''entrée'!$C$333+1+$B862,'1 Données d''entrée'!$C$332*($H855-SUM($C863:H863)),0))","v":0},{"$f":"IF(I805<1+$B862,0,IF(I805<'1 Données d''entrée'!$C$334+'1 Données d''entrée'!$C$333+1+$B862,'1 Données d''entrée'!$C$332*($H855-SUM($C863:I863)),0))","v":0},{"$f":"IF(J805<1+$B862,0,IF(J805<'1 Données d''entrée'!$C$334+'1 Données d''entrée'!$C$333+1+$B862,'1 Données d''entrée'!$C$332*($H855-SUM($C863:J863)),0))","v":0},{"$f":"IF(K805<1+$B862,0,IF(K805<'1 Données d''entrée'!$C$334+'1 Données d''entrée'!$C$333+1+$B862,'1 Données d''entrée'!$C$332*($H855-SUM($C863:K863)),0))","v":0},{"$f":"IF(L805<1+$B862,0,IF(L805<'1 Données d''entrée'!$C$334+'1 Données d''entrée'!$C$333+1+$B862,'1 Données d''entrée'!$C$332*($H855-SUM($C863:L863)),0))","v":0},{"$f":"IF(M805<1+$B862,0,IF(M805<'1 Données d''entrée'!$C$334+'1 Données d''entrée'!$C$333+1+$B862,'1 Données d''entrée'!$C$332*($H855-SUM($C863:M863)),0))","v":0},{"$f":"IF(N805<1+$B862,0,IF(N805<'1 Données d''entrée'!$C$334+'1 Données d''entrée'!$C$333+1+$B862,'1 Données d''entrée'!$C$332*($H855-SUM($C863:N863)),0))","v":0},{"$f":"IF(O805<1+$B862,0,IF(O805<'1 Données d''entrée'!$C$334+'1 Données d''entrée'!$C$333+1+$B862,'1 Données d''entrée'!$C$332*($H855-SUM($C863:O863)),0))","v":0},{"$f":"IF(P805<1+$B862,0,IF(P805<'1 Données d''entrée'!$C$334+'1 Données d''entrée'!$C$333+1+$B862,'1 Données d''entrée'!$C$332*($H855-SUM($C863:P863)),0))","v":0},{"$f":"IF(Q805<1+$B862,0,IF(Q805<'1 Données d''entrée'!$C$334+'1 Données d''entrée'!$C$333+1+$B862,'1 Données d''entrée'!$C$332*($H855-SUM($C863:Q863)),0))","v":0},{"$f":"IF(R805<1+$B862,0,IF(R805<'1 Données d''entrée'!$C$334+'1 Données d''entrée'!$C$333+1+$B862,'1 Données d''entrée'!$C$332*($H855-SUM($C863:R863)),0))","v":0},{"$f":"IF(S805<1+$B862,0,IF(S805<'1 Données d''entrée'!$C$334+'1 Données d''entrée'!$C$333+1+$B862,'1 Données d''entrée'!$C$332*($H855-SUM($C863:S863)),0))","v":0},{"$f":"IF(T805<1+$B862,0,IF(T805<'1 Données d''entrée'!$C$334+'1 Données d''entrée'!$C$333+1+$B862,'1 Données d''entrée'!$C$332*($H855-SUM($C863:T863)),0))","v":0},{"$f":"IF(U805<1+$B862,0,IF(U805<'1 Données d''entrée'!$C$334+'1 Données d''entrée'!$C$333+1+$B862,'1 Données d''entrée'!$C$332*($H855-SUM($C863:U863)),0))","v":0}]
["Paiement d'intêrets",7,0,{"$f":"IF(C805<1+$B863,0,IF(C805<'1 Données d''entrée'!$C$334+'1 Données d''entrée'!$C$333+1+$B863,'1 Données d''entrée'!$C$332*($I855-SUM($C864:C864)),0))","v":0},{"$f":"IF(D805<1+$B863,0,IF(D805<'1 Données d''entrée'!$C$334+'1 Données d''entrée'!$C$333+1+$B863,'1 Données d''entrée'!$C$332*($I855-SUM($C864:D864)),0))","v":0},{"$f":"IF(E805<1+$B863,0,IF(E805<'1 Données d''entrée'!$C$334+'1 Données d''entrée'!$C$333+1+$B863,'1 Données d''entrée'!$C$332*($I855-SUM($C864:E864)),0))","v":0},{"$f":"IF(F805<1+$B863,0,IF(F805<'1 Données d''entrée'!$C$334+'1 Données d''entrée'!$C$333+1+$B863,'1 Données d''entrée'!$C$332*($I855-SUM($C864:F864)),0))","v":0},{"$f":"IF(G805<1+$B863,0,IF(G805<'1 Données d''entrée'!$C$334+'1 Données d''entrée'!$C$333+1+$B863,'1 Données d''entrée'!$C$332*($I855-SUM($C864:G864)),0))","v":0},{"$f":"IF(H805<1+$B863,0,IF(H805<'1 Données d''entrée'!$C$334+'1 Données d''entrée'!$C$333+1+$B863,'1 Données d''entrée'!$C$332*($I855-SUM($C864:H864)),0))","v":0},{"$f":"IF(I805<1+$B863,0,IF(I805<'1 Données d''entrée'!$C$334+'1 Données d''entrée'!$C$333+1+$B863,'1 Données d''entrée'!$C$332*($I855-SUM($C864:I864)),0))","v":0},{"$f":"IF(J805<1+$B863,0,IF(J805<'1 Données d''entrée'!$C$334+'1 Données d''entrée'!$C$333+1+$B863,'1 Données d''entrée'!$C$332*($I855-SUM($C864:J864)),0))","v":0},{"$f":"IF(K805<1+$B863,0,IF(K805<'1 Données d''entrée'!$C$334+'1 Données d''entrée'!$C$333+1+$B863,'1 Données d''entrée'!$C$332*($I855-SUM($C864:K864)),0))","v":0},{"$f":"IF(L805<1+$B863,0,IF(L805<'1 Données d''entrée'!$C$334+'1 Données d''entrée'!$C$333+1+$B863,'1 Données d''entrée'!$C$332*($I855-SUM($C864:L864)),0))","v":0},{"$f":"IF(M805<1+$B863,0,IF(M805<'1 Données d''entrée'!$C$334+'1 Données d''entrée'!$C$333+1+$B863,'1 Données d''entrée'!$C$332*($I855-SUM($C864:M864)),0))","v":0},{"$f":"IF(N805<1+$B863,0,IF(N805<'1 Données d''entrée'!$C$334+'1 Données d''entrée'!$C$333+1+$B863,'1 Données d''entrée'!$C$332*($I855-SUM($C864:N864)),0))","v":0},{"$f":"IF(O805<1+$B863,0,IF(O805<'1 Données d''entrée'!$C$334+'1 Données d''entrée'!$C$333+1+$B863,'1 Données d''entrée'!$C$332*($I855-SUM($C864:O864)),0))","v":0},{"$f":"IF(P805<1+$B863,0,IF(P805<'1 Données d''entrée'!$C$334+'1 Données d''entrée'!$C$333+1+$B863,'1 Données d''entrée'!$C$332*($I855-SUM($C864:P864)),0))","v":0},{"$f":"IF(Q805<1+$B863,0,IF(Q805<'1 Données d''entrée'!$C$334+'1 Données d''entrée'!$C$333+1+$B863,'1 Données d''entrée'!$C$332*($I855-SUM($C864:Q864)),0))","v":0},{"$f":"IF(R805<1+$B863,0,IF(R805<'1 Données d''entrée'!$C$334+'1 Données d''entrée'!$C$333+1+$B863,'1 Données d''entrée'!$C$332*($I855-SUM($C864:R864)),0))","v":0},{"$f":"IF(S805<1+$B863,0,IF(S805<'1 Données d''entrée'!$C$334+'1 Données d''entrée'!$C$333+1+$B863,'1 Données d''entrée'!$C$332*($I855-SUM($C864:S864)),0))","v":0},{"$f":"IF(T805<1+$B863,0,IF(T805<'1 Données d''entrée'!$C$334+'1 Données d''entrée'!$C$333+1+$B863,'1 Données d''entrée'!$C$332*($I855-SUM($C864:T864)),0))","v":0},{"$f":"IF(U805<1+$B863,0,IF(U805<'1 Données d''entrée'!$C$334+'1 Données d''entrée'!$C$333+1+$B863,'1 Données d''entrée'!$C$332*($I855-SUM($C864:U864)),0))","v":0}]
["Paiement d'intêrets",8,0,{"$f":"IF(C805<1+$B864,0,IF(C805<'1 Données d''entrée'!$C$334+'1 Données d''entrée'!$C$333+1+$B864,'1 Données d''entrée'!$C$332*($J855-SUM($C865:C865)),0))","v":0},{"$f":"IF(D805<1+$B864,0,IF(D805<'1 Données d''entrée'!$C$334+'1 Données d''entrée'!$C$333+1+$B864,'1 Données d''entrée'!$C$332*($J855-SUM($C865:D865)),0))","v":0},{"$f":"IF(E805<1+$B864,0,IF(E805<'1 Données d''entrée'!$C$334+'1 Données d''entrée'!$C$333+1+$B864,'1 Données d''entrée'!$C$332*($J855-SUM($C865:E865)),0))","v":0},{"$f":"IF(F805<1+$B864,0,IF(F805<'1 Données d''entrée'!$C$334+'1 Données d''entrée'!$C$333+1+$B864,'1 Données d''entrée'!$C$332*($J855-SUM($C865:F865)),0))","v":0},{"$f":"IF(G805<1+$B864,0,IF(G805<'1 Données d''entrée'!$C$334+'1 Données d''entrée'!$C$333+1+$B864,'1 Données d''entrée'!$C$332*($J855-SUM($C865:G865)),0))","v":0},{"$f":"IF(H805<1+$B864,0,IF(H805<'1 Données d''entrée'!$C$334+'1 Données d''entrée'!$C$333+1+$B864,'1 Données d''entrée'!$C$332*($J855-SUM($C865:H865)),0))","v":0},{"$f":"IF(I805<1+$B864,0,IF(I805<'1 Données d''entrée'!$C$334+'1 Données d''entrée'!$C$333+1+$B864,'1 Données d''entrée'!$C$332*($J855-SUM($C865:I865)),0))","v":0},{"$f":"IF(J805<1+$B864,0,IF(J805<'1 Données d''entrée'!$C$334+'1 Données d''entrée'!$C$333+1+$B864,'1 Données d''entrée'!$C$332*($J855-SUM($C865:J865)),0))","v":0},{"$f":"IF(K805<1+$B864,0,IF(K805<'1 Données d''entrée'!$C$334+'1 Données d''entrée'!$C$333+1+$B864,'1 Données d''entrée'!$C$332*($J855-SUM($C865:K865)),0))","v":0},{"$f":"IF(L805<1+$B864,0,IF(L805<'1 Données d''entrée'!$C$334+'1 Données d''entrée'!$C$333+1+$B864,'1 Données d''entrée'!$C$332*($J855-SUM($C865:L865)),0))","v":0},{"$f":"IF(M805<1+$B864,0,IF(M805<'1 Données d''entrée'!$C$334+'1 Données d''entrée'!$C$333+1+$B864,'1 Données d''entrée'!$C$332*($J855-SUM($C865:M865)),0))","v":0},{"$f":"IF(N805<1+$B864,0,IF(N805<'1 Données d''entrée'!$C$334+'1 Données d''entrée'!$C$333+1+$B864,'1 Données d''entrée'!$C$332*($J855-SUM($C865:N865)),0))","v":0},{"$f":"IF(O805<1+$B864,0,IF(O805<'1 Données d''entrée'!$C$334+'1 Données d''entrée'!$C$333+1+$B864,'1 Données d''entrée'!$C$332*($J855-SUM($C865:O865)),0))","v":0},{"$f":"IF(P805<1+$B864,0,IF(P805<'1 Données d''entrée'!$C$334+'1 Données d''entrée'!$C$333+1+$B864,'1 Données d''entrée'!$C$332*($J855-SUM($C865:P865)),0))","v":0},{"$f":"IF(Q805<1+$B864,0,IF(Q805<'1 Données d''entrée'!$C$334+'1 Données d''entrée'!$C$333+1+$B864,'1 Données d''entrée'!$C$332*($J855-SUM($C865:Q865)),0))","v":0},{"$f":"IF(R805<1+$B864,0,IF(R805<'1 Données d''entrée'!$C$334+'1 Données d''entrée'!$C$333+1+$B864,'1 Données d''entrée'!$C$332*($J855-SUM($C865:R865)),0))","v":0},{"$f":"IF(S805<1+$B864,0,IF(S805<'1 Données d''entrée'!$C$334+'1 Données d''entrée'!$C$333+1+$B864,'1 Données d''entrée'!$C$332*($J855-SUM($C865:S865)),0))","v":0},{"$f":"IF(T805<1+$B864,0,IF(T805<'1 Données d''entrée'!$C$334+'1 Données d''entrée'!$C$333+1+$B864,'1 Données d''entrée'!$C$332*($J855-SUM($C865:T865)),0))","v":0},{"$f":"IF(U805<1+$B864,0,IF(U805<'1 Données d''entrée'!$C$334+'1 Données d''entrée'!$C$333+1+$B864,'1 Données d''entrée'!$C$332*($J855-SUM($C865:U865)),0))","v":0}]
["Paiement d'intêrets",9,0,{"$f":"IF(C805<1+$B865,0,IF(C805<'1 Données d''entrée'!$C$334+'1 Données d''entrée'!$C$333+1+$B865,'1 Données d''entrée'!$C$332*($K855-SUM($C866:C866)),0))","v":0},{"$f":"IF(D805<1+$B865,0,IF(D805<'1 Données d''entrée'!$C$334+'1 Données d''entrée'!$C$333+1+$B865,'1 Données d''entrée'!$C$332*($K855-SUM($C866:D866)),0))","v":0},{"$f":"IF(E805<1+$B865,0,IF(E805<'1 Données d''entrée'!$C$334+'1 Données d''entrée'!$C$333+1+$B865,'1 Données d''entrée'!$C$332*($K855-SUM($C866:E866)),0))","v":0},{"$f":"IF(F805<1+$B865,0,IF(F805<'1 Données d''entrée'!$C$334+'1 Données d''entrée'!$C$333+1+$B865,'1 Données d''entrée'!$C$332*($K855-SUM($C866:F866)),0))","v":0},{"$f":"IF(G805<1+$B865,0,IF(G805<'1 Données d''entrée'!$C$334+'1 Données d''entrée'!$C$333+1+$B865,'1 Données d''entrée'!$C$332*($K855-SUM($C866:G866)),0))","v":0},{"$f":"IF(H805<1+$B865,0,IF(H805<'1 Données d''entrée'!$C$334+'1 Données d''entrée'!$C$333+1+$B865,'1 Données d''entrée'!$C$332*($K855-SUM($C866:H866)),0))","v":0},{"$f":"IF(I805<1+$B865,0,IF(I805<'1 Données d''entrée'!$C$334+'1 Données d''entrée'!$C$333+1+$B865,'1 Données d''entrée'!$C$332*($K855-SUM($C866:I866)),0))","v":0},{"$f":"IF(J805<1+$B865,0,IF(J805<'1 Données d''entrée'!$C$334+'1 Données d''entrée'!$C$333+1+$B865,'1 Données d''entrée'!$C$332*($K855-SUM($C866:J866)),0))","v":0},{"$f":"IF(K805<1+$B865,0,IF(K805<'1 Données d''entrée'!$C$334+'1 Données d''entrée'!$C$333+1+$B865,'1 Données d''entrée'!$C$332*($K855-SUM($C866:K866)),0))","v":0},{"$f":"IF(L805<1+$B865,0,IF(L805<'1 Données d''entrée'!$C$334+'1 Données d''entrée'!$C$333+1+$B865,'1 Données d''entrée'!$C$332*($K855-SUM($C866:L866)),0))","v":0},{"$f":"IF(M805<1+$B865,0,IF(M805<'1 Données d''entrée'!$C$334+'1 Données d''entrée'!$C$333+1+$B865,'1 Données d''entrée'!$C$332*($K855-SUM($C866:M866)),0))","v":0},{"$f":"IF(N805<1+$B865,0,IF(N805<'1 Données d''entrée'!$C$334+'1 Données d''entrée'!$C$333+1+$B865,'1 Données d''entrée'!$C$332*($K855-SUM($C866:N866)),0))","v":0},{"$f":"IF(O805<1+$B865,0,IF(O805<'1 Données d''entrée'!$C$334+'1 Données d''entrée'!$C$333+1+$B865,'1 Données d''entrée'!$C$332*($K855-SUM($C866:O866)),0))","v":0},{"$f":"IF(P805<1+$B865,0,IF(P805<'1 Données d''entrée'!$C$334+'1 Données d''entrée'!$C$333+1+$B865,'1 Données d''entrée'!$C$332*($K855-SUM($C866:P866)),0))","v":0},{"$f":"IF(Q805<1+$B865,0,IF(Q805<'1 Données d''entrée'!$C$334+'1 Données d''entrée'!$C$333+1+$B865,'1 Données d''entrée'!$C$332*($K855-SUM($C866:Q866)),0))","v":0},{"$f":"IF(R805<1+$B865,0,IF(R805<'1 Données d''entrée'!$C$334+'1 Données d''entrée'!$C$333+1+$B865,'1 Données d''entrée'!$C$332*($K855-SUM($C866:R866)),0))","v":0},{"$f":"IF(S805<1+$B865,0,IF(S805<'1 Données d''entrée'!$C$334+'1 Données d''entrée'!$C$333+1+$B865,'1 Données d''entrée'!$C$332*($K855-SUM($C866:S866)),0))","v":0},{"$f":"IF(T805<1+$B865,0,IF(T805<'1 Données d''entrée'!$C$334+'1 Données d''entrée'!$C$333+1+$B865,'1 Données d''entrée'!$C$332*($K855-SUM($C866:T866)),0))","v":0},{"$f":"IF(U805<1+$B865,0,IF(U805<'1 Données d''entrée'!$C$334+'1 Données d''entrée'!$C$333+1+$B865,'1 Données d''entrée'!$C$332*($K855-SUM($C866:U866)),0))","v":0}]
["Paiement d'intêrets",10,0,{"$f":"IF(C805<1+$B866,0,IF(C805<'1 Données d''entrée'!$C$334+'1 Données d''entrée'!$C$333+1+$B866,'1 Données d''entrée'!$C$332*($L855-SUM($C867:C867)),0))","v":0},{"$f":"IF(D805<1+$B866,0,IF(D805<'1 Données d''entrée'!$C$334+'1 Données d''entrée'!$C$333+1+$B866,'1 Données d''entrée'!$C$332*($L855-SUM($C867:D867)),0))","v":0},{"$f":"IF(E805<1+$B866,0,IF(E805<'1 Données d''entrée'!$C$334+'1 Données d''entrée'!$C$333+1+$B866,'1 Données d''entrée'!$C$332*($L855-SUM($C867:E867)),0))","v":0},{"$f":"IF(F805<1+$B866,0,IF(F805<'1 Données d''entrée'!$C$334+'1 Données d''entrée'!$C$333+1+$B866,'1 Données d''entrée'!$C$332*($L855-SUM($C867:F867)),0))","v":0},{"$f":"IF(G805<1+$B866,0,IF(G805<'1 Données d''entrée'!$C$334+'1 Données d''entrée'!$C$333+1+$B866,'1 Données d''entrée'!$C$332*($L855-SUM($C867:G867)),0))","v":0},{"$f":"IF(H805<1+$B866,0,IF(H805<'1 Données d''entrée'!$C$334+'1 Données d''entrée'!$C$333+1+$B866,'1 Données d''entrée'!$C$332*($L855-SUM($C867:H867)),0))","v":0},{"$f":"IF(I805<1+$B866,0,IF(I805<'1 Données d''entrée'!$C$334+'1 Données d''entrée'!$C$333+1+$B866,'1 Données d''entrée'!$C$332*($L855-SUM($C867:I867)),0))","v":0},{"$f":"IF(J805<1+$B866,0,IF(J805<'1 Données d''entrée'!$C$334+'1 Données d''entrée'!$C$333+1+$B866,'1 Données d''entrée'!$C$332*($L855-SUM($C867:J867)),0))","v":0},{"$f":"IF(K805<1+$B866,0,IF(K805<'1 Données d''entrée'!$C$334+'1 Données d''entrée'!$C$333+1+$B866,'1 Données d''entrée'!$C$332*($L855-SUM($C867:K867)),0))","v":0},{"$f":"IF(L805<1+$B866,0,IF(L805<'1 Données d''entrée'!$C$334+'1 Données d''entrée'!$C$333+1+$B866,'1 Données d''entrée'!$C$332*($L855-SUM($C867:L867)),0))","v":0},{"$f":"IF(M805<1+$B866,0,IF(M805<'1 Données d''entrée'!$C$334+'1 Données d''entrée'!$C$333+1+$B866,'1 Données d''entrée'!$C$332*($L855-SUM($C867:M867)),0))","v":0},{"$f":"IF(N805<1+$B866,0,IF(N805<'1 Données d''entrée'!$C$334+'1 Données d''entrée'!$C$333+1+$B866,'1 Données d''entrée'!$C$332*($L855-SUM($C867:N867)),0))","v":0},{"$f":"IF(O805<1+$B866,0,IF(O805<'1 Données d''entrée'!$C$334+'1 Données d''entrée'!$C$333+1+$B866,'1 Données d''entrée'!$C$332*($L855-SUM($C867:O867)),0))","v":0},{"$f":"IF(P805<1+$B866,0,IF(P805<'1 Données d''entrée'!$C$334+'1 Données d''entrée'!$C$333+1+$B866,'1 Données d''entrée'!$C$332*($L855-SUM($C867:P867)),0))","v":0},{"$f":"IF(Q805<1+$B866,0,IF(Q805<'1 Données d''entrée'!$C$334+'1 Données d''entrée'!$C$333+1+$B866,'1 Données d''entrée'!$C$332*($L855-SUM($C867:Q867)),0))","v":0},{"$f":"IF(R805<1+$B866,0,IF(R805<'1 Données d''entrée'!$C$334+'1 Données d''entrée'!$C$333+1+$B866,'1 Données d''entrée'!$C$332*($L855-SUM($C867:R867)),0))","v":0},{"$f":"IF(S805<1+$B866,0,IF(S805<'1 Données d''entrée'!$C$334+'1 Données d''entrée'!$C$333+1+$B866,'1 Données d''entrée'!$C$332*($L855-SUM($C867:S867)),0))","v":0},{"$f":"IF(T805<1+$B866,0,IF(T805<'1 Données d''entrée'!$C$334+'1 Données d''entrée'!$C$333+1+$B866,'1 Données d''entrée'!$C$332*($L855-SUM($C867:T867)),0))","v":0},{"$f":"IF(U805<1+$B866,0,IF(U805<'1 Données d''entrée'!$C$334+'1 Données d''entrée'!$C$333+1+$B866,'1 Données d''entrée'!$C$332*($L855-SUM($C867:U867)),0))","v":0}]
[]
[null,"Période",1,2,3,4,5,6,7,8,9,10,11,12,13,14,15,16,17,18,19,20]
["Prêt bancaire additionnel- Option 2: Remboursement du principal final",{"$f":"'1 Données d''entrée'!$B$343","v":0}]
["Prêt(s) nouveau(x)",null,{"$f":"IF(C848<0,C848*(-1)*$B882+C848*(-1)*$B882*'1 Données d''entrée'!$C$338,0)","v":{"$error":"#DIV/0!"}},{"$f":"IF(D848<0,D848*(-1)*$B882+D848*(-1)*$B882*'1 Données d''entrée'!$C$338,0)","v":{"$error":"#DIV/0!"}},{"$f":"IF(E848<0,E848*(-1)*$B882+E848*(-1)*$B882*'1 Données d''entrée'!$C$338,0)","v":{"$error":"#DIV/0!"}},{"$f":"IF(F848<0,F848*(-1)*$B882+F848*(-1)*$B882*'1 Données d''entrée'!$C$338,0)","v":{"$error":"#DIV/0!"}},{"$f":"IF(G848<0,G848*(-1)*$B882+G848*(-1)*$B882*'1 Données d''entrée'!$C$338,0)","v":{"$error":"#DIV/0!"}},{"$f":"IF(H848<0,H848*(-1)*$B882+H848*(-1)*$B882*'1 Données d''entrée'!$C$338,0)","v":{"$error":"#DIV/0!"}},{"$f":"IF(I848<0,I848*(-1)*$B882+I848*(-1)*$B882*'1 Données d''entrée'!$C$338,0)","v":{"$error":"#DIV/0!"}},{"$f":"IF(J848<0,J848*(-1)*$B882+J848*(-1)*$B882*'1 Données d''entrée'!$C$338,0)","v":{"$error":"#DIV/0!"}},{"$f":"IF(K848<0,K848*(-1)*$B882+K848*(-1)*$B882*'1 Données d''entrée'!$C$338,0)","v":{"$error":"#DIV/0!"}},{"$f":"IF(L848<0,L848*(-1)*$B882+L848*(-1)*$B882*'1 Données d''entrée'!$C$338,0)","v":{"$error":"#DIV/0!"}},{"$f":"IF(M848<0,M848*(-1)*$B882+M848*(-1)*$B882*'1 Données d''entrée'!$C$338,0)","v":{"$error":"#DIV/0!"}},{"$f":"IF(N848<0,N848*(-1)*$B882+N848*(-1)*$B882*'1 Données d''entrée'!$C$338,0)","v":{"$error":"#DIV/0!"}},{"$f":"IF(O848<0,O848*(-1)*$B882+O848*(-1)*$B882*'1 Données d''entrée'!$C$338,0)","v":{"$error":"#DIV/0!"}},{"$f":"IF(P848<0,P848*(-1)*$B882+P848*(-1)*$B882*'1 Données d''entrée'!$C$338,0)","v":{"$error":"#DIV/0!"}},{"$f":"IF(Q848<0,Q848*(-1)*$B882+Q848*(-1)*$B882*'1 Données d''entrée'!$C$338,0)","v":{"$error":"#DIV/0!"}},{"$f":"IF(R848<0,R848*(-1)*$B882+R848*(-1)*$B882*'1 Données d''entrée'!$C$338,0)","v":{"$error":"#DIV/0!"}},{"$f":"IF(S848<0,S848*(-1)*$B882+S848*(-1)*$B882*'1 Données d''entrée'!$C$338,0)","v":{"$error":"#DIV/0!"}},{"$f":"IF(T848<0,T848*(-1)*$B882+T848*(-1)*$B882*'1 Données d''entrée'!$C$338,0)","v":{"$error":"#DIV/0!"}},{"$f":"IF(U848<0,U848*(-1)*$B882+U848*(-1)*$B882*'1 Données d''entrée'!$C$338,0)","v":{"$error":"#DIV/0!"}},{"$f":"IF(V848<0,V848*(-1)*$B882+V848*(-1)*$B882*'1 Données d''entrée'!$C$338,0)","v":{"$error":"#DIV/0!"}}]
[null,"Période de prêt nouveau"]
["Remboursement du principal",0,0,0,0,0,0,0,0,0,0,0,0,0,0,0,0,0,0,0,0,0]
[null,1,{"$f":"IF(C881='1 Données d''entrée'!$C$333+'1 Données d''entrée'!$C$334+$B886,$C883,0)","v":{"$error":"#DIV/0!"}},{"$f":"IF(D881='1 Données d''entrée'!$C$333+'1 Données d''entrée'!$C$334+$B886,$C883,0)","v":0},{"$f":"IF(E881='1 Données d''entrée'!$C$333+'1 Données d''entrée'!$C$334+$B886,$C883,0)","v":0},{"$f":"IF(F881='1 Données d''entrée'!$C$333+'1 Données d''entrée'!$C$334+$B886,$C883,0)","v":0},{"$f":"IF(G881='1 Données d''entrée'!$C$333+'1 Données d''entrée'!$C$334+$B886,$C883,0)","v":0},{"$f":"IF(H881='1 Données d''entrée'!$C$333+'1 Données d''entrée'!$C$334+$B886,$C883,0)","v":0},{"$f":"IF(I881='1 Données d''entrée'!$C$333+'1 Données d''entrée'!$C$334+$B886,$C883,0)","v":0},{"$f":"IF(J881='1 Données d''entrée'!$C$333+'1 Données d''entrée'!$C$334+$B886,$C883,0)","v":0},{"$f":"IF(K881='1 Données d''entrée'!$C$333+'1 Données d''entrée'!$C$334+$B886,$C883,0)","v":0},{"$f":"IF(L881='1 Données d''entrée'!$C$333+'1 Données d''entrée'!$C$334+$B886,$C883,0)","v":0},{"$f":"IF(M881='1 Données d''entrée'!$C$333+'1 Données d''entrée'!$C$334+$B886,$C883,0)","v":0},{"$f":"IF(N881='1 Données d''entrée'!$C$333+'1 Données d''entrée'!$C$334+$B886,$C883,0)","v":0},{"$f":"IF(O881='1 Données d''entrée'!$C$333+'1 Données d''entrée'!$C$334+$B886,$C883,0)","v":0},{"$f":"IF(P881='1 Données d''entrée'!$C$333+'1 Données d''entrée'!$C$334+$B886,$C883,0)","v":0},{"$f":"IF(Q881='1 Données d''entrée'!$C$333+'1 Données d''entrée'!$C$334+$B886,$C883,0)","v":0},{"$f":"IF(R881='1 Données d''entrée'!$C$333+'1 Données d''entrée'!$C$334+$B886,$C883,0)","v":0},{"$f":"IF(S881='1 Données d''entrée'!$C$333+'1 Données d''entrée'!$C$334+$B886,$C883,0)","v":0},{"$f":"IF(T881='1 Données d''entrée'!$C$333+'1 Données d''entrée'!$C$334+$B886,$C883,0)","v":0},{"$f":"IF(U881='1 Données d''entrée'!$C$333+'1 Données d''entrée'!$C$334+$B886,$C883,0)","v":0},{"$f":"IF(V881='1 Données d''entrée'!$C$333+'1 Données d''entrée'!$C$334+$B886,$C883,0)","v":0}]
[null,2,{"$f":"IF(C881='1 Données d''entrée'!$C$333+'1 Données d''entrée'!$C$334+$B887,$D883,0)","v":0},{"$f":"IF(D881='1 Données d''entrée'!$C$333+'1 Données d''entrée'!$C$334+$B887,$D883,0)","v":{"$error":"#DIV/0!"}},{"$f":"IF(E881='1 Données d''entrée'!$C$333+'1 Données d''entrée'!$C$334+$B887,$D883,0)","v":0},{"$f":"IF(F881='1 Données d''entrée'!$C$333+'1 Données d''entrée'!$C$334+$B887,$D883,0)","v":0},{"$f":"IF(G881='1 Données d''entrée'!$C$333+'1 Données d''entrée'!$C$334+$B887,$D883,0)","v":0},{"$f":"IF(H881='1 Données d''entrée'!$C$333+'1 Données d''entrée'!$C$334+$B887,$D883,0)","v":0},{"$f":"IF(I881='1 Données d''entrée'!$C$333+'1 Données d''entrée'!$C$334+$B887,$D883,0)","v":0},{"$f":"IF(J881='1 Données d''entrée'!$C$333+'1 Données d''entrée'!$C$334+$B887,$D883,0)","v":0},{"$f":"IF(K881='1 Données d''entrée'!$C$333+'1 Données d''entrée'!$C$334+$B887,$D883,0)","v":0},{"$f":"IF(L881='1 Données d''entrée'!$C$333+'1 Données d''entrée'!$C$334+$B887,$D883,0)","v":0},{"$f":"IF(M881='1 Données d''entrée'!$C$333+'1 Données d''entrée'!$C$334+$B887,$D883,0)","v":0},{"$f":"IF(N881='1 Données d''entrée'!$C$333+'1 Données d''entrée'!$C$334+$B887,$D883,0)","v":0},{"$f":"IF(O881='1 Données d''entrée'!$C$333+'1 Données d''entrée'!$C$334+$B887,$D883,0)","v":0},{"$f":"IF(P881='1 Données d''entrée'!$C$333+'1 Données d''entrée'!$C$334+$B887,$D883,0)","v":0},{"$f":"IF(Q881='1 Données d''entrée'!$C$333+'1 Données d''entrée'!$C$334+$B887,$D883,0)","v":0},{"$f":"IF(R881='1 Données d''entrée'!$C$333+'1 Données d''entrée'!$C$334+$B887,$D883,0)","v":0},{"$f":"IF(S881='1 Données d''entrée'!$C$333+'1 Données d''entrée'!$C$334+$B887,$D883,0)","v":0},{"$f":"IF(T881='1 Données d''entrée'!$C$333+'1 Données d''entrée'!$C$334+$B887,$D883,0)","v":0},{"$f":"IF(U881='1 Données d''entrée'!$C$333+'1 Données d''entrée'!$C$334+$B887,$D883,0)","v":0},{"$f":"IF(V881='1 Données d''entrée'!$C$333+'1 Données d''entrée'!$C$334+$B887,$D883,0)","v":0}]
[null,3,{"$f":"IF(C881='1 Données d''entrée'!$C$333+'1 Données d''entrée'!$C$334+$B888,$E883,0)","v":0},{"$f":"IF(D881='1 Données d''entrée'!$C$333+'1 Données d''entrée'!$C$334+$B888,$E883,0)","v":0},{"$f":"IF(E881='1 Données d''entrée'!$C$333+'1 Données d''entrée'!$C$334+$B888,$E883,0)","v":{"$error":"#DIV/0!"}},{"$f":"IF(F881='1 Données d''entrée'!$C$333+'1 Données d''entrée'!$C$334+$B888,$E883,0)","v":0},{"$f":"IF(G881='1 Données d''entrée'!$C$333+'1 Données d''entrée'!$C$334+$B888,$E883,0)","v":0},{"$f":"IF(H881='1 Données d''entrée'!$C$333+'1 Données d''entrée'!$C$334+$B888,$E883,0)","v":0},{"$f":"IF(I881='1 Données d''entrée'!$C$333+'1 Données d''entrée'!$C$334+$B888,$E883,0)","v":0},{"$f":"IF(J881='1 Données d''entrée'!$C$333+'1 Données d''entrée'!$C$334+$B888,$E883,0)","v":0},{"$f":"IF(K881='1 Données d''entrée'!$C$333+'1 Données d''entrée'!$C$334+$B888,$E883,0)","v":0},{"$f":"IF(L881='1 Données d''entrée'!$C$333+'1 Données d''entrée'!$C$334+$B888,$E883,0)","v":0},{"$f":"IF(M881='1 Données d''entrée'!$C$333+'1 Données d''entrée'!$C$334+$B888,$E883,0)","v":0},{"$f":"IF(N881='1 Données d''entrée'!$C$333+'1 Données d''entrée'!$C$334+$B888,$E883,0)","v":0},{"$f":"IF(O881='1 Données d''entrée'!$C$333+'1 Données d''entrée'!$C$334+$B888,$E883,0)","v":0},{"$f":"IF(P881='1 Données d''entrée'!$C$333+'1 Données d''entrée'!$C$334+$B888,$E883,0)","v":0},{"$f":"IF(Q881='1 Données d''entrée'!$C$333+'1 Données d''entrée'!$C$334+$B888,$E883,0)","v":0},{"$f":"IF(R881='1 Données d''entrée'!$C$333+'1 Données d''entrée'!$C$334+$B888,$E883,0)","v":0},{"$f":"IF(S881='1 Données d''entrée'!$C$333+'1 Données d''entrée'!$C$334+$B888,$E883,0)","v":0},{"$f":"IF(T881='1 Données d''entrée'!$C$333+'1 Données d''entrée'!$C$334+$B888,$E883,0)","v":0},{"$f":"IF(U881='1 Données d''entrée'!$C$333+'1 Données d''entrée'!$C$334+$B888,$E883,0)","v":0},{"$f":"IF(V881='1 Données d''entrée'!$C$333+'1 Données d''entrée'!$C$334+$B888,$E883,0)","v":0}]
[null,4,{"$f":"IF(C881='1 Données d''entrée'!$C$333+'1 Données d''entrée'!$C$334+$B889,$F883,0)","v":0},{"$f":"IF(D881='1 Données d''entrée'!$C$333+'1 Données d''entrée'!$C$334+$B889,$F883,0)","v":0},{"$f":"IF(E881='1 Données d''entrée'!$C$333+'1 Données d''entrée'!$C$334+$B889,$F883,0)","v":0},{"$f":"IF(F881='1 Données d''entrée'!$C$333+'1 Données d''entrée'!$C$334+$B889,$F883,0)","v":{"$error":"#DIV/0!"}},{"$f":"IF(G881='1 Données d''entrée'!$C$333+'1 Données d''entrée'!$C$334+$B889,$F883,0)","v":0},{"$f":"IF(H881='1 Données d''entrée'!$C$333+'1 Données d''entrée'!$C$334+$B889,$F883,0)","v":0},{"$f":"IF(I881='1 Données d''entrée'!$C$333+'1 Données d''entrée'!$C$334+$B889,$F883,0)","v":0},{"$f":"IF(J881='1 Données d''entrée'!$C$333+'1 Données d''entrée'!$C$334+$B889,$F883,0)","v":0},{"$f":"IF(K881='1 Données d''entrée'!$C$333+'1 Données d''entrée'!$C$334+$B889,$F883,0)","v":0},{"$f":"IF(L881='1 Données d''entrée'!$C$333+'1 Données d''entrée'!$C$334+$B889,$F883,0)","v":0},{"$f":"IF(M881='1 Données d''entrée'!$C$333+'1 Données d''entrée'!$C$334+$B889,$F883,0)","v":0},{"$f":"IF(N881='1 Données d''entrée'!$C$333+'1 Données d''entrée'!$C$334+$B889,$F883,0)","v":0},{"$f":"IF(O881='1 Données d''entrée'!$C$333+'1 Données d''entrée'!$C$334+$B889,$F883,0)","v":0},{"$f":"IF(P881='1 Données d''entrée'!$C$333+'1 Données d''entrée'!$C$334+$B889,$F883,0)","v":0},{"$f":"IF(Q881='1 Données d''entrée'!$C$333+'1 Données d''entrée'!$C$334+$B889,$F883,0)","v":0},{"$f":"IF(R881='1 Données d''entrée'!$C$333+'1 Données d''entrée'!$C$334+$B889,$F883,0)","v":0},{"$f":"IF(S881='1 Données d''entrée'!$C$333+'1 Données d''entrée'!$C$334+$B889,$F883,0)","v":0},{"$f":"IF(T881='1 Données d''entrée'!$C$333+'1 Données d''entrée'!$C$334+$B889,$F883,0)","v":0},{"$f":"IF(U881='1 Données d''entrée'!$C$333+'1 Données d''entrée'!$C$334+$B889,$F883,0)","v":0},{"$f":"IF(V881='1 Données d''entrée'!$C$333+'1 Données d''entrée'!$C$334+$B889,$F883,0)","v":0}]
[null,5,{"$f":"IF(C881='1 Données d''entrée'!$C$333+'1 Données d''entrée'!$C$334+$B890,$G883,0)","v":0},{"$f":"IF(D881='1 Données d''entrée'!$C$333+'1 Données d''entrée'!$C$334+$B890,$G883,0)","v":0},{"$f":"IF(E881='1 Données d''entrée'!$C$333+'1 Données d''entrée'!$C$334+$B890,$G883,0)","v":0},{"$f":"IF(F881='1 Données d''entrée'!$C$333+'1 Données d''entrée'!$C$334+$B890,$G883,0)","v":0},{"$f":"IF(G881='1 Données d''entrée'!$C$333+'1 Données d''entrée'!$C$334+$B890,$G883,0)","v":{"$error":"#DIV/0!"}},{"$f":"IF(H881='1 Données d''entrée'!$C$333+'1 Données d''entrée'!$C$334+$B890,$G883,0)","v":0},{"$f":"IF(I881='1 Données d''entrée'!$C$333+'1 Données d''entrée'!$C$334+$B890,$G883,0)","v":0},{"$f":"IF(J881='1 Données d''entrée'!$C$333+'1 Données d''entrée'!$C$334+$B890,$G883,0)","v":0},{"$f":"IF(K881='1 Données d''entrée'!$C$333+'1 Données d''entrée'!$C$334+$B890,$G883,0)","v":0},{"$f":"IF(L881='1 Données d''entrée'!$C$333+'1 Données d''entrée'!$C$334+$B890,$G883,0)","v":0},{"$f":"IF(M881='1 Données d''entrée'!$C$333+'1 Données d''entrée'!$C$334+$B890,$G883,0)","v":0},{"$f":"IF(N881='1 Données d''entrée'!$C$333+'1 Données d''entrée'!$C$334+$B890,$G883,0)","v":0},{"$f":"IF(O881='1 Données d''entrée'!$C$333+'1 Données d''entrée'!$C$334+$B890,$G883,0)","v":0},{"$f":"IF(P881='1 Données d''entrée'!$C$333+'1 Données d''entrée'!$C$334+$B890,$G883,0)","v":0},{"$f":"IF(Q881='1 Données d''entrée'!$C$333+'1 Données d''entrée'!$C$334+$B890,$G883,0)","v":0},{"$f":"IF(R881='1 Données d''entrée'!$C$333+'1 Données d''entrée'!$C$334+$B890,$G883,0)","v":0},{"$f":"IF(S881='1 Données d''entrée'!$C$333+'1 Données d''entrée'!$C$334+$B890,$G883,0)","v":0},{"$f":"IF(T881='1 Données d''entrée'!$C$333+'1 Données d''entrée'!$C$334+$B890,$G883,0)","v":0},{"$f":"IF(U881='1 Données d''entrée'!$C$333+'1 Données d''entrée'!$C$334+$B890,$G883,0)","v":0},{"$f":"IF(V881='1 Données d''entrée'!$C$333+'1 Données d''entrée'!$C$334+$B890,$G883,0)","v":0}]
[null,6,{"$f":"IF(C881='1 Données d''entrée'!$C$333+'1 Données d''entrée'!$C$334+$B891,$H883,0)","v":0},{"$f":"IF(D881='1 Données d''entrée'!$C$333+'1 Données d''entrée'!$C$334+$B891,$H883,0)","v":0},{"$f":"IF(E881='1 Données d''entrée'!$C$333+'1 Données d''entrée'!$C$334+$B891,$H883,0)","v":0},{"$f":"IF(F881='1 Données d''entrée'!$C$333+'1 Données d''entrée'!$C$334+$B891,$H883,0)","v":0},{"$f":"IF(G881='1 Données d''entrée'!$C$333+'1 Données d''entrée'!$C$334+$B891,$H883,0)","v":0},{"$f":"IF(H881='1 Données d''entrée'!$C$333+'1 Données d''entrée'!$C$334+$B891,$H883,0)","v":{"$error":"#DIV/0!"}},{"$f":"IF(I881='1 Données d''entrée'!$C$333+'1 Données d''entrée'!$C$334+$B891,$H883,0)","v":0},{"$f":"IF(J881='1 Données d''entrée'!$C$333+'1 Données d''entrée'!$C$334+$B891,$H883,0)","v":0},{"$f":"IF(K881='1 Données d''entrée'!$C$333+'1 Données d''entrée'!$C$334+$B891,$H883,0)","v":0},{"$f":"IF(L881='1 Données d''entrée'!$C$333+'1 Données d''entrée'!$C$334+$B891,$H883,0)","v":0},{"$f":"IF(M881='1 Données d''entrée'!$C$333+'1 Données d''entrée'!$C$334+$B891,$H883,0)","v":0},{"$f":"IF(N881='1 Données d''entrée'!$C$333+'1 Données d''entrée'!$C$334+$B891,$H883,0)","v":0},{"$f":"IF(O881='1 Données d''entrée'!$C$333+'1 Données d''entrée'!$C$334+$B891,$H883,0)","v":0},{"$f":"IF(P881='1 Données d''entrée'!$C$333+'1 Données d''entrée'!$C$334+$B891,$H883,0)","v":0},{"$f":"IF(Q881='1 Données d''entrée'!$C$333+'1 Données d''entrée'!$C$334+$B891,$H883,0)","v":0},{"$f":"IF(R881='1 Données d''entrée'!$C$333+'1 Données d''entrée'!$C$334+$B891,$H883,0)","v":0},{"$f":"IF(S881='1 Données d''entrée'!$C$333+'1 Données d''entrée'!$C$334+$B891,$H883,0)","v":0},{"$f":"IF(T881='1 Données d''entrée'!$C$333+'1 Données d''entrée'!$C$334+$B891,$H883,0)","v":0},{"$f":"IF(U881='1 Données d''entrée'!$C$333+'1 Données d''entrée'!$C$334+$B891,$H883,0)","v":0},{"$f":"IF(V881='1 Données d''entrée'!$C$333+'1 Données d''entrée'!$C$334+$B891,$H883,0)","v":0}]
[null,7,{"$f":"IF(C881='1 Données d''entrée'!$C$333+'1 Données d''entrée'!$C$334+$B892,$I883,0)","v":0},{"$f":"IF(D881='1 Données d''entrée'!$C$333+'1 Données d''entrée'!$C$334+$B892,$I883,0)","v":0},{"$f":"IF(E881='1 Données d''entrée'!$C$333+'1 Données d''entrée'!$C$334+$B892,$I883,0)","v":0},{"$f":"IF(F881='1 Données d''entrée'!$C$333+'1 Données d''entrée'!$C$334+$B892,$I883,0)","v":0},{"$f":"IF(G881='1 Données d''entrée'!$C$333+'1 Données d''entrée'!$C$334+$B892,$I883,0)","v":0},{"$f":"IF(H881='1 Données d''entrée'!$C$333+'1 Données d''entrée'!$C$334+$B892,$I883,0)","v":0},{"$f":"IF(I881='1 Données d''entrée'!$C$333+'1 Données d''entrée'!$C$334+$B892,$I883,0)","v":{"$error":"#DIV/0!"}},{"$f":"IF(J881='1 Données d''entrée'!$C$333+'1 Données d''entrée'!$C$334+$B892,$I883,0)","v":0},{"$f":"IF(K881='1 Données d''entrée'!$C$333+'1 Données d''entrée'!$C$334+$B892,$I883,0)","v":0},{"$f":"IF(L881='1 Données d''entrée'!$C$333+'1 Données d''entrée'!$C$334+$B892,$I883,0)","v":0},{"$f":"IF(M881='1 Données d''entrée'!$C$333+'1 Données d''entrée'!$C$334+$B892,$I883,0)","v":0},{"$f":"IF(N881='1 Données d''entrée'!$C$333+'1 Données d''entrée'!$C$334+$B892,$I883,0)","v":0},{"$f":"IF(O881='1 Données d''entrée'!$C$333+'1 Données d''entrée'!$C$334+$B892,$I883,0)","v":0},{"$f":"IF(P881='1 Données d''entrée'!$C$333+'1 Données d''entrée'!$C$334+$B892,$I883,0)","v":0},{"$f":"IF(Q881='1 Données d''entrée'!$C$333+'1 Données d''entrée'!$C$334+$B892,$I883,0)","v":0},{"$f":"IF(R881='1 Données d''entrée'!$C$333+'1 Données d''entrée'!$C$334+$B892,$I883,0)","v":0},{"$f":"IF(S881='1 Données d''entrée'!$C$333+'1 Données d''entrée'!$C$334+$B892,$I883,0)","v":0},{"$f":"IF(T881='1 Données d''entrée'!$C$333+'1 Données d''entrée'!$C$334+$B892,$I883,0)","v":0},{"$f":"IF(U881='1 Données d''entrée'!$C$333+'1 Données d''entrée'!$C$334+$B892,$I883,0)","v":0},{"$f":"IF(V881='1 Données d''entrée'!$C$333+'1 Données d''entrée'!$C$334+$B892,$I883,0)","v":0}]
[null,8,{"$f":"IF(C881='1 Données d''entrée'!$C$333+'1 Données d''entrée'!$C$334+$B893,$J883,0)","v":0},{"$f":"IF(D881='1 Données d''entrée'!$C$333+'1 Données d''entrée'!$C$334+$B893,$J883,0)","v":0},{"$f":"IF(E881='1 Données d''entrée'!$C$333+'1 Données d''entrée'!$C$334+$B893,$J883,0)","v":0},{"$f":"IF(F881='1 Données d''entrée'!$C$333+'1 Données d''entrée'!$C$334+$B893,$J883,0)","v":0},{"$f":"IF(G881='1 Données d''entrée'!$C$333+'1 Données d''entrée'!$C$334+$B893,$J883,0)","v":0},{"$f":"IF(H881='1 Données d''entrée'!$C$333+'1 Données d''entrée'!$C$334+$B893,$J883,0)","v":0},{"$f":"IF(I881='1 Données d''entrée'!$C$333+'1 Données d''entrée'!$C$334+$B893,$J883,0)","v":0},{"$f":"IF(J881='1 Données d''entrée'!$C$333+'1 Données d''entrée'!$C$334+$B893,$J883,0)","v":{"$error":"#DIV/0!"}},{"$f":"IF(K881='1 Données d''entrée'!$C$333+'1 Données d''entrée'!$C$334+$B893,$J883,0)","v":0},{"$f":"IF(L881='1 Données d''entrée'!$C$333+'1 Données d''entrée'!$C$334+$B893,$J883,0)","v":0},{"$f":"IF(M881='1 Données d''entrée'!$C$333+'1 Données d''entrée'!$C$334+$B893,$J883,0)","v":0},{"$f":"IF(N881='1 Données d''entrée'!$C$333+'1 Données d''entrée'!$C$334+$B893,$J883,0)","v":0},{"$f":"IF(O881='1 Données d''entrée'!$C$333+'1 Données d''entrée'!$C$334+$B893,$J883,0)","v":0},{"$f":"IF(P881='1 Données d''entrée'!$C$333+'1 Données d''entrée'!$C$334+$B893,$J883,0)","v":0},{"$f":"IF(Q881='1 Données d''entrée'!$C$333+'1 Données d''entrée'!$C$334+$B893,$J883,0)","v":0},{"$f":"IF(R881='1 Données d''entrée'!$C$333+'1 Données d''entrée'!$C$334+$B893,$J883,0)","v":0},{"$f":"IF(S881='1 Données d''entrée'!$C$333+'1 Données d''entrée'!$C$334+$B893,$J883,0)","v":0},{"$f":"IF(T881='1 Données d''entrée'!$C$333+'1 Données d''entrée'!$C$334+$B893,$J883,0)","v":0},{"$f":"IF(U881='1 Données d''entrée'!$C$333+'1 Données d''entrée'!$C$334+$B893,$J883,0)","v":0},{"$f":"IF(V881='1 Données d''entrée'!$C$333+'1 Données d''entrée'!$C$334+$B893,$J883,0)","v":0}]
[null,9,{"$f":"IF(C881='1 Données d''entrée'!$C$333+'1 Données d''entrée'!$C$334+$B894,$K883,0)","v":0},{"$f":"IF(D881='1 Données d''entrée'!$C$333+'1 Données d''entrée'!$C$334+$B894,$K883,0)","v":0},{"$f":"IF(E881='1 Données d''entrée'!$C$333+'1 Données d''entrée'!$C$334+$B894,$K883,0)","v":0},{"$f":"IF(F881='1 Données d''entrée'!$C$333+'1 Données d''entrée'!$C$334+$B894,$K883,0)","v":0},{"$f":"IF(G881='1 Données d''entrée'!$C$333+'1 Données d''entrée'!$C$334+$B894,$K883,0)","v":0},{"$f":"IF(H881='1 Données d''entrée'!$C$333+'1 Données d''entrée'!$C$334+$B894,$K883,0)","v":0},{"$f":"IF(I881='1 Données d''entrée'!$C$333+'1 Données d''entrée'!$C$334+$B894,$K883,0)","v":0},{"$f":"IF(J881='1 Données d''entrée'!$C$333+'1 Données d''entrée'!$C$334+$B894,$K883,0)","v":0},{"$f":"IF(K881='1 Données d''entrée'!$C$333+'1 Données d''entrée'!$C$334+$B894,$K883,0)","v":{"$error":"#DIV/0!"}},{"$f":"IF(L881='1 Données d''entrée'!$C$333+'1 Données d''entrée'!$C$334+$B894,$K883,0)","v":0},{"$f":"IF(M881='1 Données d''entrée'!$C$333+'1 Données d''entrée'!$C$334+$B894,$K883,0)","v":0},{"$f":"IF(N881='1 Données d''entrée'!$C$333+'1 Données d''entrée'!$C$334+$B894,$K883,0)","v":0},{"$f":"IF(O881='1 Données d''entrée'!$C$333+'1 Données d''entrée'!$C$334+$B894,$K883,0)","v":0},{"$f":"IF(P881='1 Données d''entrée'!$C$333+'1 Données d''entrée'!$C$334+$B894,$K883,0)","v":0},{"$f":"IF(Q881='1 Données d''entrée'!$C$333+'1 Données d''entrée'!$C$334+$B894,$K883,0)","v":0},{"$f":"IF(R881='1 Données d''entrée'!$C$333+'1 Données d''entrée'!$C$334+$B894,$K883,0)","v":0},{"$f":"IF(S881='1 Données d''entrée'!$C$333+'1 Données d''entrée'!$C$334+$B894,$K883,0)","v":0},{"$f":"IF(T881='1 Données d''entrée'!$C$333+'1 Données d''entrée'!$C$334+$B894,$K883,0)","v":0},{"$f":"IF(U881='1 Données d''entrée'!$C$333+'1 Données d''entrée'!$C$334+$B894,$K883,0)","v":0},{"$f":"IF(V881='1 Données d''entrée'!$C$333+'1 Données d''entrée'!$C$334+$B894,$K883,0)","v":0}]
[null,10,{"$f":"IF(C881='1 Données d''entrée'!$C$333+'1 Données d''entrée'!$C$334+$B895,$L883,0)","v":0},{"$f":"IF(D881='1 Données d''entrée'!$C$333+'1 Données d''entrée'!$C$334+$B895,$L883,0)","v":0},{"$f":"IF(E881='1 Données d''entrée'!$C$333+'1 Données d''entrée'!$C$334+$B895,$L883,0)","v":0},{"$f":"IF(F881='1 Données d''entrée'!$C$333+'1 Données d''entrée'!$C$334+$B895,$L883,0)","v":0},{"$f":"IF(G881='1 Données d''entrée'!$C$333+'1 Données d''entrée'!$C$334+$B895,$L883,0)","v":0},{"$f":"IF(H881='1 Données d''entrée'!$C$333+'1 Données d''entrée'!$C$334+$B895,$L883,0)","v":0},{"$f":"IF(I881='1 Données d''entrée'!$C$333+'1 Données d''entrée'!$C$334+$B895,$L883,0)","v":0},{"$f":"IF(J881='1 Données d''entrée'!$C$333+'1 Données d''entrée'!$C$334+$B895,$L883,0)","v":0},{"$f":"IF(K881='1 Données d''entrée'!$C$333+'1 Données d''entrée'!$C$334+$B895,$L883,0)","v":0},{"$f":"IF(L881='1 Données d''entrée'!$C$333+'1 Données d''entrée'!$C$334+$B895,$L883,0)","v":{"$error":"#DIV/0!"}},{"$f":"IF(M881='1 Données d''entrée'!$C$333+'1 Données d''entrée'!$C$334+$B895,$L883,0)","v":0},{"$f":"IF(N881='1 Données d''entrée'!$C$333+'1 Données d''entrée'!$C$334+$B895,$L883,0)","v":0},{"$f":"IF(O881='1 Données d''entrée'!$C$333+'1 Données d''entrée'!$C$334+$B895,$L883,0)","v":0},{"$f":"IF(P881='1 Données d''entrée'!$C$333+'1 Données d''entrée'!$C$334+$B895,$L883,0)","v":0},{"$f":"IF(Q881='1 Données d''entrée'!$C$333+'1 Données d''entrée'!$C$334+$B895,$L883,0)","v":0},{"$f":"IF(R881='1 Données d''entrée'!$C$333+'1 Données d''entrée'!$C$334+$B895,$L883,0)","v":0},{"$f":"IF(S881='1 Données d''entrée'!$C$333+'1 Données d''entrée'!$C$334+$B895,$L883,0)","v":0},{"$f":"IF(T881='1 Données d''entrée'!$C$333+'1 Données d''entrée'!$C$334+$B895,$L883,0)","v":0},{"$f":"IF(U881='1 Données d''entrée'!$C$333+'1 Données d''entrée'!$C$334+$B895,$L883,0)","v":0},{"$f":"IF(V881='1 Données d''entrée'!$C$333+'1 Données d''entrée'!$C$334+$B895,$L883,0)","v":0}]
[null,"Période de prêt nouveau"]
["Paiement d'intérêts",0,0,0,0,0,0,0,0,0,0,0,0,0,0,0,0,0,0,0,0,0]
["Paiement d'intêrets",1,0,{"$f":"IF(C805<1+$B885,0,IF(C805<'1 Données d''entrée'!$C$334+'1 Données d''entrée'!$C$333+1+$B885,'1 Données d''entrée'!$C$332*($C883-SUM($C886:C886)),0))","v":0},{"$f":"IF(D805<1+$B885,0,IF(D805<'1 Données d''entrée'!$C$334+'1 Données d''entrée'!$C$333+1+$B885,'1 Données d''entrée'!$C$332*($C883-SUM($C886:D886)),0))","v":0},{"$f":"IF(E805<1+$B885,0,IF(E805<'1 Données d''entrée'!$C$334+'1 Données d''entrée'!$C$333+1+$B885,'1 Données d''entrée'!$C$332*($C883-SUM($C886:E886)),0))","v":0},{"$f":"IF(F805<1+$B885,0,IF(F805<'1 Données d''entrée'!$C$334+'1 Données d''entrée'!$C$333+1+$B885,'1 Données d''entrée'!$C$332*($C883-SUM($C886:F886)),0))","v":0},{"$f":"IF(G805<1+$B885,0,IF(G805<'1 Données d''entrée'!$C$334+'1 Données d''entrée'!$C$333+1+$B885,'1 Données d''entrée'!$C$332*($C883-SUM($C886:G886)),0))","v":0},{"$f":"IF(H805<1+$B885,0,IF(H805<'1 Données d''entrée'!$C$334+'1 Données d''entrée'!$C$333+1+$B885,'1 Données d''entrée'!$C$332*($C883-SUM($C886:H886)),0))","v":0},{"$f":"IF(I805<1+$B885,0,IF(I805<'1 Données d''entrée'!$C$334+'1 Données d''entrée'!$C$333+1+$B885,'1 Données d''entrée'!$C$332*($C883-SUM($C886:I886)),0))","v":0},{"$f":"IF(J805<1+$B885,0,IF(J805<'1 Données d''entrée'!$C$334+'1 Données d''entrée'!$C$333+1+$B885,'1 Données d''entrée'!$C$332*($C883-SUM($C886:J886)),0))","v":0},{"$f":"IF(K805<1+$B885,0,IF(K805<'1 Données d''entrée'!$C$334+'1 Données d''entrée'!$C$333+1+$B885,'1 Données d''entrée'!$C$332*($C883-SUM($C886:K886)),0))","v":0},{"$f":"IF(L805<1+$B885,0,IF(L805<'1 Données d''entrée'!$C$334+'1 Données d''entrée'!$C$333+1+$B885,'1 Données d''entrée'!$C$332*($C883-SUM($C886:L886)),0))","v":0},{"$f":"IF(M805<1+$B885,0,IF(M805<'1 Données d''entrée'!$C$334+'1 Données d''entrée'!$C$333+1+$B885,'1 Données d''entrée'!$C$332*($C883-SUM($C886:M886)),0))","v":0},{"$f":"IF(N805<1+$B885,0,IF(N805<'1 Données d''entrée'!$C$334+'1 Données d''entrée'!$C$333+1+$B885,'1 Données d''entrée'!$C$332*($C883-SUM($C886:N886)),0))","v":0},{"$f":"IF(O805<1+$B885,0,IF(O805<'1 Données d''entrée'!$C$334+'1 Données d''entrée'!$C$333+1+$B885,'1 Données d''entrée'!$C$332*($C883-SUM($C886:O886)),0))","v":0},{"$f":"IF(P805<1+$B885,0,IF(P805<'1 Données d''entrée'!$C$334+'1 Données d''entrée'!$C$333+1+$B885,'1 Données d''entrée'!$C$332*($C883-SUM($C886:P886)),0))","v":0},{"$f":"IF(Q805<1+$B885,0,IF(Q805<'1 Données d''entrée'!$C$334+'1 Données d''entrée'!$C$333+1+$B885,'1 Données d''entrée'!$C$332*($C883-SUM($C886:Q886)),0))","v":0},{"$f":"IF(R805<1+$B885,0,IF(R805<'1 Données d''entrée'!$C$334+'1 Données d''entrée'!$C$333+1+$B885,'1 Données d''entrée'!$C$332*($C883-SUM($C886:R886)),0))","v":0},{"$f":"IF(S805<1+$B885,0,IF(S805<'1 Données d''entrée'!$C$334+'1 Données d''entrée'!$C$333+1+$B885,'1 Données d''entrée'!$C$332*($C883-SUM($C886:S886)),0))","v":0},{"$f":"IF(T805<1+$B885,0,IF(T805<'1 Données d''entrée'!$C$334+'1 Données d''entrée'!$C$333+1+$B885,'1 Données d''entrée'!$C$332*($C883-SUM($C886:T886)),0))","v":0},{"$f":"IF(U805<1+$B885,0,IF(U805<'1 Données d''entrée'!$C$334+'1 Données d''entrée'!$C$333+1+$B885,'1 Données d''entrée'!$C$332*($C883-SUM($C886:U886)),0))","v":0}]
["Paiement d'intêrets",2,0,{"$f":"IF(C805<1+$B886,0,IF(C805<'1 Données d''entrée'!$C$334+'1 Données d''entrée'!$C$333+1+$B886,'1 Données d''entrée'!$C$332*($D883-SUM($C887:C887)),0))","v":0},{"$f":"IF(D805<1+$B886,0,IF(D805<'1 Données d''entrée'!$C$334+'1 Données d''entrée'!$C$333+1+$B886,'1 Données d''entrée'!$C$332*($D883-SUM($C887:D887)),0))","v":0},{"$f":"IF(E805<1+$B886,0,IF(E805<'1 Données d''entrée'!$C$334+'1 Données d''entrée'!$C$333+1+$B886,'1 Données d''entrée'!$C$332*($D883-SUM($C887:E887)),0))","v":0},{"$f":"IF(F805<1+$B886,0,IF(F805<'1 Données d''entrée'!$C$334+'1 Données d''entrée'!$C$333+1+$B886,'1 Données d''entrée'!$C$332*($D883-SUM($C887:F887)),0))","v":0},{"$f":"IF(G805<1+$B886,0,IF(G805<'1 Données d''entrée'!$C$334+'1 Données d''entrée'!$C$333+1+$B886,'1 Données d''entrée'!$C$332*($D883-SUM($C887:G887)),0))","v":0},{"$f":"IF(H805<1+$B886,0,IF(H805<'1 Données d''entrée'!$C$334+'1 Données d''entrée'!$C$333+1+$B886,'1 Données d''entrée'!$C$332*($D883-SUM($C887:H887)),0))","v":0},{"$f":"IF(I805<1+$B886,0,IF(I805<'1 Données d''entrée'!$C$334+'1 Données d''entrée'!$C$333+1+$B886,'1 Données d''entrée'!$C$332*($D883-SUM($C887:I887)),0))","v":0},{"$f":"IF(J805<1+$B886,0,IF(J805<'1 Données d''entrée'!$C$334+'1 Données d''entrée'!$C$333+1+$B886,'1 Données d''entrée'!$C$332*($D883-SUM($C887:J887)),0))","v":0},{"$f":"IF(K805<1+$B886,0,IF(K805<'1 Données d''entrée'!$C$334+'1 Données d''entrée'!$C$333+1+$B886,'1 Données d''entrée'!$C$332*($D883-SUM($C887:K887)),0))","v":0},{"$f":"IF(L805<1+$B886,0,IF(L805<'1 Données d''entrée'!$C$334+'1 Données d''entrée'!$C$333+1+$B886,'1 Données d''entrée'!$C$332*($D883-SUM($C887:L887)),0))","v":0},{"$f":"IF(M805<1+$B886,0,IF(M805<'1 Données d''entrée'!$C$334+'1 Données d''entrée'!$C$333+1+$B886,'1 Données d''entrée'!$C$332*($D883-SUM($C887:M887)),0))","v":0},{"$f":"IF(N805<1+$B886,0,IF(N805<'1 Données d''entrée'!$C$334+'1 Données d''entrée'!$C$333+1+$B886,'1 Données d''entrée'!$C$332*($D883-SUM($C887:N887)),0))","v":0},{"$f":"IF(O805<1+$B886,0,IF(O805<'1 Données d''entrée'!$C$334+'1 Données d''entrée'!$C$333+1+$B886,'1 Données d''entrée'!$C$332*($D883-SUM($C887:O887)),0))","v":0},{"$f":"IF(P805<1+$B886,0,IF(P805<'1 Données d''entrée'!$C$334+'1 Données d''entrée'!$C$333+1+$B886,'1 Données d''entrée'!$C$332*($D883-SUM($C887:P887)),0))","v":0},{"$f":"IF(Q805<1+$B886,0,IF(Q805<'1 Données d''entrée'!$C$334+'1 Données d''entrée'!$C$333+1+$B886,'1 Données d''entrée'!$C$332*($D883-SUM($C887:Q887)),0))","v":0},{"$f":"IF(R805<1+$B886,0,IF(R805<'1 Données d''entrée'!$C$334+'1 Données d''entrée'!$C$333+1+$B886,'1 Données d''entrée'!$C$332*($D883-SUM($C887:R887)),0))","v":0},{"$f":"IF(S805<1+$B886,0,IF(S805<'1 Données d''entrée'!$C$334+'1 Données d''entrée'!$C$333+1+$B886,'1 Données d''entrée'!$C$332*($D883-SUM($C887:S887)),0))","v":0},{"$f":"IF(T805<1+$B886,0,IF(T805<'1 Données d''entrée'!$C$334+'1 Données d''entrée'!$C$333+1+$B886,'1 Données d''entrée'!$C$332*($D883-SUM($C887:T887)),0))","v":0},{"$f":"IF(U805<1+$B886,0,IF(U805<'1 Données d''entrée'!$C$334+'1 Données d''entrée'!$C$333+1+$B886,'1 Données d''entrée'!$C$332*($D883-SUM($C887:U887)),0))","v":0}]
["Paiement d'intêrets",3,0,{"$f":"IF(C805<1+$B887,0,IF(C805<'1 Données d''entrée'!$C$334+'1 Données d''entrée'!$C$333+1+$B887,'1 Données d''entrée'!$C$332*($E883-SUM($C888:C888)),0))","v":0},{"$f":"IF(D805<1+$B887,0,IF(D805<'1 Données d''entrée'!$C$334+'1 Données d''entrée'!$C$333+1+$B887,'1 Données d''entrée'!$C$332*($E883-SUM($C888:D888)),0))","v":0},{"$f":"IF(E805<1+$B887,0,IF(E805<'1 Données d''entrée'!$C$334+'1 Données d''entrée'!$C$333+1+$B887,'1 Données d''entrée'!$C$332*($E883-SUM($C888:E888)),0))","v":0},{"$f":"IF(F805<1+$B887,0,IF(F805<'1 Données d''entrée'!$C$334+'1 Données d''entrée'!$C$333+1+$B887,'1 Données d''entrée'!$C$332*($E883-SUM($C888:F888)),0))","v":0},{"$f":"IF(G805<1+$B887,0,IF(G805<'1 Données d''entrée'!$C$334+'1 Données d''entrée'!$C$333+1+$B887,'1 Données d''entrée'!$C$332*($E883-SUM($C888:G888)),0))","v":0},{"$f":"IF(H805<1+$B887,0,IF(H805<'1 Données d''entrée'!$C$334+'1 Données d''entrée'!$C$333+1+$B887,'1 Données d''entrée'!$C$332*($E883-SUM($C888:H888)),0))","v":0},{"$f":"IF(I805<1+$B887,0,IF(I805<'1 Données d''entrée'!$C$334+'1 Données d''entrée'!$C$333+1+$B887,'1 Données d''entrée'!$C$332*($E883-SUM($C888:I888)),0))","v":0},{"$f":"IF(J805<1+$B887,0,IF(J805<'1 Données d''entrée'!$C$334+'1 Données d''entrée'!$C$333+1+$B887,'1 Données d''entrée'!$C$332*($E883-SUM($C888:J888)),0))","v":0},{"$f":"IF(K805<1+$B887,0,IF(K805<'1 Données d''entrée'!$C$334+'1 Données d''entrée'!$C$333+1+$B887,'1 Données d''entrée'!$C$332*($E883-SUM($C888:K888)),0))","v":0},{"$f":"IF(L805<1+$B887,0,IF(L805<'1 Données d''entrée'!$C$334+'1 Données d''entrée'!$C$333+1+$B887,'1 Données d''entrée'!$C$332*($E883-SUM($C888:L888)),0))","v":0},{"$f":"IF(M805<1+$B887,0,IF(M805<'1 Données d''entrée'!$C$334+'1 Données d''entrée'!$C$333+1+$B887,'1 Données d''entrée'!$C$332*($E883-SUM($C888:M888)),0))","v":0},{"$f":"IF(N805<1+$B887,0,IF(N805<'1 Données d''entrée'!$C$334+'1 Données d''entrée'!$C$333+1+$B887,'1 Données d''entrée'!$C$332*($E883-SUM($C888:N888)),0))","v":0},{"$f":"IF(O805<1+$B887,0,IF(O805<'1 Données d''entrée'!$C$334+'1 Données d''entrée'!$C$333+1+$B887,'1 Données d''entrée'!$C$332*($E883-SUM($C888:O888)),0))","v":0},{"$f":"IF(P805<1+$B887,0,IF(P805<'1 Données d''entrée'!$C$334+'1 Données d''entrée'!$C$333+1+$B887,'1 Données d''entrée'!$C$332*($E883-SUM($C888:P888)),0))","v":0},{"$f":"IF(Q805<1+$B887,0,IF(Q805<'1 Données d''entrée'!$C$334+'1 Données d''entrée'!$C$333+1+$B887,'1 Données d''entrée'!$C$332*($E883-SUM($C888:Q888)),0))","v":0},{"$f":"IF(R805<1+$B887,0,IF(R805<'1 Données d''entrée'!$C$334+'1 Données d''entrée'!$C$333+1+$B887,'1 Données d''entrée'!$C$332*($E883-SUM($C888:R888)),0))","v":0},{"$f":"IF(S805<1+$B887,0,IF(S805<'1 Données d''entrée'!$C$334+'1 Données d''entrée'!$C$333+1+$B887,'1 Données d''entrée'!$C$332*($E883-SUM($C888:S888)),0))","v":0},{"$f":"IF(T805<1+$B887,0,IF(T805<'1 Données d''entrée'!$C$334+'1 Données d''entrée'!$C$333+1+$B887,'1 Données d''entrée'!$C$332*($E883-SUM($C888:T888)),0))","v":0},{"$f":"IF(U805<1+$B887,0,IF(U805<'1 Données d''entrée'!$C$334+'1 Données d''entrée'!$C$333+1+$B887,'1 Données d''entrée'!$C$332*($E883-SUM($C888:U888)),0))","v":0}]
["Paiement d'intêrets",4,0,{"$f":"IF(C805<1+$B888,0,IF(C805<'1 Données d''entrée'!$C$334+'1 Données d''entrée'!$C$333+1+$B888,'1 Données d''entrée'!$C$332*($F883-SUM($C889:C889)),0))","v":0},{"$f":"IF(D805<1+$B888,0,IF(D805<'1 Données d''entrée'!$C$334+'1 Données d''entrée'!$C$333+1+$B888,'1 Données d''entrée'!$C$332*($F883-SUM($C889:D889)),0))","v":0},{"$f":"IF(E805<1+$B888,0,IF(E805<'1 Données d''entrée'!$C$334+'1 Données d''entrée'!$C$333+1+$B888,'1 Données d''entrée'!$C$332*($F883-SUM($C889:E889)),0))","v":0},{"$f":"IF(F805<1+$B888,0,IF(F805<'1 Données d''entrée'!$C$334+'1 Données d''entrée'!$C$333+1+$B888,'1 Données d''entrée'!$C$332*($F883-SUM($C889:F889)),0))","v":0},{"$f":"IF(G805<1+$B888,0,IF(G805<'1 Données d''entrée'!$C$334+'1 Données d''entrée'!$C$333+1+$B888,'1 Données d''entrée'!$C$332*($F883-SUM($C889:G889)),0))","v":0},{"$f":"IF(H805<1+$B888,0,IF(H805<'1 Données d''entrée'!$C$334+'1 Données d''entrée'!$C$333+1+$B888,'1 Données d''entrée'!$C$332*($F883-SUM($C889:H889)),0))","v":0},{"$f":"IF(I805<1+$B888,0,IF(I805<'1 Données d''entrée'!$C$334+'1 Données d''entrée'!$C$333+1+$B888,'1 Données d''entrée'!$C$332*($F883-SUM($C889:I889)),0))","v":0},{"$f":"IF(J805<1+$B888,0,IF(J805<'1 Données d''entrée'!$C$334+'1 Données d''entrée'!$C$333+1+$B888,'1 Données d''entrée'!$C$332*($F883-SUM($C889:J889)),0))","v":0},{"$f":"IF(K805<1+$B888,0,IF(K805<'1 Données d''entrée'!$C$334+'1 Données d''entrée'!$C$333+1+$B888,'1 Données d''entrée'!$C$332*($F883-SUM($C889:K889)),0))","v":0},{"$f":"IF(L805<1+$B888,0,IF(L805<'1 Données d''entrée'!$C$334+'1 Données d''entrée'!$C$333+1+$B888,'1 Données d''entrée'!$C$332*($F883-SUM($C889:L889)),0))","v":0},{"$f":"IF(M805<1+$B888,0,IF(M805<'1 Données d''entrée'!$C$334+'1 Données d''entrée'!$C$333+1+$B888,'1 Données d''entrée'!$C$332*($F883-SUM($C889:M889)),0))","v":0},{"$f":"IF(N805<1+$B888,0,IF(N805<'1 Données d''entrée'!$C$334+'1 Données d''entrée'!$C$333+1+$B888,'1 Données d''entrée'!$C$332*($F883-SUM($C889:N889)),0))","v":0},{"$f":"IF(O805<1+$B888,0,IF(O805<'1 Données d''entrée'!$C$334+'1 Données d''entrée'!$C$333+1+$B888,'1 Données d''entrée'!$C$332*($F883-SUM($C889:O889)),0))","v":0},{"$f":"IF(P805<1+$B888,0,IF(P805<'1 Données d''entrée'!$C$334+'1 Données d''entrée'!$C$333+1+$B888,'1 Données d''entrée'!$C$332*($F883-SUM($C889:P889)),0))","v":0},{"$f":"IF(Q805<1+$B888,0,IF(Q805<'1 Données d''entrée'!$C$334+'1 Données d''entrée'!$C$333+1+$B888,'1 Données d''entrée'!$C$332*($F883-SUM($C889:Q889)),0))","v":0},{"$f":"IF(R805<1+$B888,0,IF(R805<'1 Données d''entrée'!$C$334+'1 Données d''entrée'!$C$333+1+$B888,'1 Données d''entrée'!$C$332*($F883-SUM($C889:R889)),0))","v":0},{"$f":"IF(S805<1+$B888,0,IF(S805<'1 Données d''entrée'!$C$334+'1 Données d''entrée'!$C$333+1+$B888,'1 Données d''entrée'!$C$332*($F883-SUM($C889:S889)),0))","v":0},{"$f":"IF(T805<1+$B888,0,IF(T805<'1 Données d''entrée'!$C$334+'1 Données d''entrée'!$C$333+1+$B888,'1 Données d''entrée'!$C$332*($F883-SUM($C889:T889)),0))","v":0},{"$f":"IF(U805<1+$B888,0,IF(U805<'1 Données d''entrée'!$C$334+'1 Données d''entrée'!$C$333+1+$B888,'1 Données d''entrée'!$C$332*($F883-SUM($C889:U889)),0))","v":0}]
["Paiement d'intêrets",5,0,{"$f":"IF(C805<1+$B889,0,IF(C805<'1 Données d''entrée'!$C$334+'1 Données d''entrée'!$C$333+1+$B889,'1 Données d''entrée'!$C$332*($G883-SUM($C890:C890)),0))","v":0},{"$f":"IF(D805<1+$B889,0,IF(D805<'1 Données d''entrée'!$C$334+'1 Données d''entrée'!$C$333+1+$B889,'1 Données d''entrée'!$C$332*($G883-SUM($C890:D890)),0))","v":0},{"$f":"IF(E805<1+$B889,0,IF(E805<'1 Données d''entrée'!$C$334+'1 Données d''entrée'!$C$333+1+$B889,'1 Données d''entrée'!$C$332*($G883-SUM($C890:E890)),0))","v":0},{"$f":"IF(F805<1+$B889,0,IF(F805<'1 Données d''entrée'!$C$334+'1 Données d''entrée'!$C$333+1+$B889,'1 Données d''entrée'!$C$332*($G883-SUM($C890:F890)),0))","v":0},{"$f":"IF(G805<1+$B889,0,IF(G805<'1 Données d''entrée'!$C$334+'1 Données d''entrée'!$C$333+1+$B889,'1 Données d''entrée'!$C$332*($G883-SUM($C890:G890)),0))","v":0},{"$f":"IF(H805<1+$B889,0,IF(H805<'1 Données d''entrée'!$C$334+'1 Données d''entrée'!$C$333+1+$B889,'1 Données d''entrée'!$C$332*($G883-SUM($C890:H890)),0))","v":0},{"$f":"IF(I805<1+$B889,0,IF(I805<'1 Données d''entrée'!$C$334+'1 Données d''entrée'!$C$333+1+$B889,'1 Données d''entrée'!$C$332*($G883-SUM($C890:I890)),0))","v":0},{"$f":"IF(J805<1+$B889,0,IF(J805<'1 Données d''entrée'!$C$334+'1 Données d''entrée'!$C$333+1+$B889,'1 Données d''entrée'!$C$332*($G883-SUM($C890:J890)),0))","v":0},{"$f":"IF(K805<1+$B889,0,IF(K805<'1 Données d''entrée'!$C$334+'1 Données d''entrée'!$C$333+1+$B889,'1 Données d''entrée'!$C$332*($G883-SUM($C890:K890)),0))","v":0},{"$f":"IF(L805<1+$B889,0,IF(L805<'1 Données d''entrée'!$C$334+'1 Données d''entrée'!$C$333+1+$B889,'1 Données d''entrée'!$C$332*($G883-SUM($C890:L890)),0))","v":0},{"$f":"IF(M805<1+$B889,0,IF(M805<'1 Données d''entrée'!$C$334+'1 Données d''entrée'!$C$333+1+$B889,'1 Données d''entrée'!$C$332*($G883-SUM($C890:M890)),0))","v":0},{"$f":"IF(N805<1+$B889,0,IF(N805<'1 Données d''entrée'!$C$334+'1 Données d''entrée'!$C$333+1+$B889,'1 Données d''entrée'!$C$332*($G883-SUM($C890:N890)),0))","v":0},{"$f":"IF(O805<1+$B889,0,IF(O805<'1 Données d''entrée'!$C$334+'1 Données d''entrée'!$C$333+1+$B889,'1 Données d''entrée'!$C$332*($G883-SUM($C890:O890)),0))","v":0},{"$f":"IF(P805<1+$B889,0,IF(P805<'1 Données d''entrée'!$C$334+'1 Données d''entrée'!$C$333+1+$B889,'1 Données d''entrée'!$C$332*($G883-SUM($C890:P890)),0))","v":0},{"$f":"IF(Q805<1+$B889,0,IF(Q805<'1 Données d''entrée'!$C$334+'1 Données d''entrée'!$C$333+1+$B889,'1 Données d''entrée'!$C$332*($G883-SUM($C890:Q890)),0))","v":0},{"$f":"IF(R805<1+$B889,0,IF(R805<'1 Données d''entrée'!$C$334+'1 Données d''entrée'!$C$333+1+$B889,'1 Données d''entrée'!$C$332*($G883-SUM($C890:R890)),0))","v":0},{"$f":"IF(S805<1+$B889,0,IF(S805<'1 Données d''entrée'!$C$334+'1 Données d''entrée'!$C$333+1+$B889,'1 Données d''entrée'!$C$332*($G883-SUM($C890:S890)),0))","v":0},{"$f":"IF(T805<1+$B889,0,IF(T805<'1 Données d''entrée'!$C$334+'1 Données d''entrée'!$C$333+1+$B889,'1 Données d''entrée'!$C$332*($G883-SUM($C890:T890)),0))","v":0},{"$f":"IF(U805<1+$B889,0,IF(U805<'1 Données d''entrée'!$C$334+'1 Données d''entrée'!$C$333+1+$B889,'1 Données d''entrée'!$C$332*($G883-SUM($C890:U890)),0))","v":0}]
["Paiement d'intêrets",6,0,{"$f":"IF(C805<1+$B890,0,IF(C805<'1 Données d''entrée'!$C$334+'1 Données d''entrée'!$C$333+1+$B890,'1 Données d''entrée'!$C$332*($H883-SUM($C891:C891)),0))","v":0},{"$f":"IF(D805<1+$B890,0,IF(D805<'1 Données d''entrée'!$C$334+'1 Données d''entrée'!$C$333+1+$B890,'1 Données d''entrée'!$C$332*($H883-SUM($C891:D891)),0))","v":0},{"$f":"IF(E805<1+$B890,0,IF(E805<'1 Données d''entrée'!$C$334+'1 Données d''entrée'!$C$333+1+$B890,'1 Données d''entrée'!$C$332*($H883-SUM($C891:E891)),0))","v":0},{"$f":"IF(F805<1+$B890,0,IF(F805<'1 Données d''entrée'!$C$334+'1 Données d''entrée'!$C$333+1+$B890,'1 Données d''entrée'!$C$332*($H883-SUM($C891:F891)),0))","v":0},{"$f":"IF(G805<1+$B890,0,IF(G805<'1 Données d''entrée'!$C$334+'1 Données d''entrée'!$C$333+1+$B890,'1 Données d''entrée'!$C$332*($H883-SUM($C891:G891)),0))","v":0},{"$f":"IF(H805<1+$B890,0,IF(H805<'1 Données d''entrée'!$C$334+'1 Données d''entrée'!$C$333+1+$B890,'1 Données d''entrée'!$C$332*($H883-SUM($C891:H891)),0))","v":0},{"$f":"IF(I805<1+$B890,0,IF(I805<'1 Données d''entrée'!$C$334+'1 Données d''entrée'!$C$333+1+$B890,'1 Données d''entrée'!$C$332*($H883-SUM($C891:I891)),0))","v":0},{"$f":"IF(J805<1+$B890,0,IF(J805<'1 Données d''entrée'!$C$334+'1 Données d''entrée'!$C$333+1+$B890,'1 Données d''entrée'!$C$332*($H883-SUM($C891:J891)),0))","v":0},{"$f":"IF(K805<1+$B890,0,IF(K805<'1 Données d''entrée'!$C$334+'1 Données d''entrée'!$C$333+1+$B890,'1 Données d''entrée'!$C$332*($H883-SUM($C891:K891)),0))","v":0},{"$f":"IF(L805<1+$B890,0,IF(L805<'1 Données d''entrée'!$C$334+'1 Données d''entrée'!$C$333+1+$B890,'1 Données d''entrée'!$C$332*($H883-SUM($C891:L891)),0))","v":0},{"$f":"IF(M805<1+$B890,0,IF(M805<'1 Données d''entrée'!$C$334+'1 Données d''entrée'!$C$333+1+$B890,'1 Données d''entrée'!$C$332*($H883-SUM($C891:M891)),0))","v":0},{"$f":"IF(N805<1+$B890,0,IF(N805<'1 Données d''entrée'!$C$334+'1 Données d''entrée'!$C$333+1+$B890,'1 Données d''entrée'!$C$332*($H883-SUM($C891:N891)),0))","v":0},{"$f":"IF(O805<1+$B890,0,IF(O805<'1 Données d''entrée'!$C$334+'1 Données d''entrée'!$C$333+1+$B890,'1 Données d''entrée'!$C$332*($H883-SUM($C891:O891)),0))","v":0},{"$f":"IF(P805<1+$B890,0,IF(P805<'1 Données d''entrée'!$C$334+'1 Données d''entrée'!$C$333+1+$B890,'1 Données d''entrée'!$C$332*($H883-SUM($C891:P891)),0))","v":0},{"$f":"IF(Q805<1+$B890,0,IF(Q805<'1 Données d''entrée'!$C$334+'1 Données d''entrée'!$C$333+1+$B890,'1 Données d''entrée'!$C$332*($H883-SUM($C891:Q891)),0))","v":0},{"$f":"IF(R805<1+$B890,0,IF(R805<'1 Données d''entrée'!$C$334+'1 Données d''entrée'!$C$333+1+$B890,'1 Données d''entrée'!$C$332*($H883-SUM($C891:R891)),0))","v":0},{"$f":"IF(S805<1+$B890,0,IF(S805<'1 Données d''entrée'!$C$334+'1 Données d''entrée'!$C$333+1+$B890,'1 Données d''entrée'!$C$332*($H883-SUM($C891:S891)),0))","v":0},{"$f":"IF(T805<1+$B890,0,IF(T805<'1 Données d''entrée'!$C$334+'1 Données d''entrée'!$C$333+1+$B890,'1 Données d''entrée'!$C$332*($H883-SUM($C891:T891)),0))","v":0},{"$f":"IF(U805<1+$B890,0,IF(U805<'1 Données d''entrée'!$C$334+'1 Données d''entrée'!$C$333+1+$B890,'1 Données d''entrée'!$C$332*($H883-SUM($C891:U891)),0))","v":0}]
["Paiement d'intêrets",7,0,{"$f":"IF(C805<1+$B891,0,IF(C805<'1 Données d''entrée'!$C$334+'1 Données d''entrée'!$C$333+1+$B891,'1 Données d''entrée'!$C$332*($I883-SUM($C892:C892)),0))","v":0},{"$f":"IF(D805<1+$B891,0,IF(D805<'1 Données d''entrée'!$C$334+'1 Données d''entrée'!$C$333+1+$B891,'1 Données d''entrée'!$C$332*($I883-SUM($C892:D892)),0))","v":0},{"$f":"IF(E805<1+$B891,0,IF(E805<'1 Données d''entrée'!$C$334+'1 Données d''entrée'!$C$333+1+$B891,'1 Données d''entrée'!$C$332*($I883-SUM($C892:E892)),0))","v":0},{"$f":"IF(F805<1+$B891,0,IF(F805<'1 Données d''entrée'!$C$334+'1 Données d''entrée'!$C$333+1+$B891,'1 Données d''entrée'!$C$332*($I883-SUM($C892:F892)),0))","v":0},{"$f":"IF(G805<1+$B891,0,IF(G805<'1 Données d''entrée'!$C$334+'1 Données d''entrée'!$C$333+1+$B891,'1 Données d''entrée'!$C$332*($I883-SUM($C892:G892)),0))","v":0},{"$f":"IF(H805<1+$B891,0,IF(H805<'1 Données d''entrée'!$C$334+'1 Données d''entrée'!$C$333+1+$B891,'1 Données d''entrée'!$C$332*($I883-SUM($C892:H892)),0))","v":0},{"$f":"IF(I805<1+$B891,0,IF(I805<'1 Données d''entrée'!$C$334+'1 Données d''entrée'!$C$333+1+$B891,'1 Données d''entrée'!$C$332*($I883-SUM($C892:I892)),0))","v":0},{"$f":"IF(J805<1+$B891,0,IF(J805<'1 Données d''entrée'!$C$334+'1 Données d''entrée'!$C$333+1+$B891,'1 Données d''entrée'!$C$332*($I883-SUM($C892:J892)),0))","v":0},{"$f":"IF(K805<1+$B891,0,IF(K805<'1 Données d''entrée'!$C$334+'1 Données d''entrée'!$C$333+1+$B891,'1 Données d''entrée'!$C$332*($I883-SUM($C892:K892)),0))","v":0},{"$f":"IF(L805<1+$B891,0,IF(L805<'1 Données d''entrée'!$C$334+'1 Données d''entrée'!$C$333+1+$B891,'1 Données d''entrée'!$C$332*($I883-SUM($C892:L892)),0))","v":0},{"$f":"IF(M805<1+$B891,0,IF(M805<'1 Données d''entrée'!$C$334+'1 Données d''entrée'!$C$333+1+$B891,'1 Données d''entrée'!$C$332*($I883-SUM($C892:M892)),0))","v":0},{"$f":"IF(N805<1+$B891,0,IF(N805<'1 Données d''entrée'!$C$334+'1 Données d''entrée'!$C$333+1+$B891,'1 Données d''entrée'!$C$332*($I883-SUM($C892:N892)),0))","v":0},{"$f":"IF(O805<1+$B891,0,IF(O805<'1 Données d''entrée'!$C$334+'1 Données d''entrée'!$C$333+1+$B891,'1 Données d''entrée'!$C$332*($I883-SUM($C892:O892)),0))","v":0},{"$f":"IF(P805<1+$B891,0,IF(P805<'1 Données d''entrée'!$C$334+'1 Données d''entrée'!$C$333+1+$B891,'1 Données d''entrée'!$C$332*($I883-SUM($C892:P892)),0))","v":0},{"$f":"IF(Q805<1+$B891,0,IF(Q805<'1 Données d''entrée'!$C$334+'1 Données d''entrée'!$C$333+1+$B891,'1 Données d''entrée'!$C$332*($I883-SUM($C892:Q892)),0))","v":0},{"$f":"IF(R805<1+$B891,0,IF(R805<'1 Données d''entrée'!$C$334+'1 Données d''entrée'!$C$333+1+$B891,'1 Données d''entrée'!$C$332*($I883-SUM($C892:R892)),0))","v":0},{"$f":"IF(S805<1+$B891,0,IF(S805<'1 Données d''entrée'!$C$334+'1 Données d''entrée'!$C$333+1+$B891,'1 Données d''entrée'!$C$332*($I883-SUM($C892:S892)),0))","v":0},{"$f":"IF(T805<1+$B891,0,IF(T805<'1 Données d''entrée'!$C$334+'1 Données d''entrée'!$C$333+1+$B891,'1 Données d''entrée'!$C$332*($I883-SUM($C892:T892)),0))","v":0},{"$f":"IF(U805<1+$B891,0,IF(U805<'1 Données d''entrée'!$C$334+'1 Données d''entrée'!$C$333+1+$B891,'1 Données d''entrée'!$C$332*($I883-SUM($C892:U892)),0))","v":0}]
["Paiement d'intêrets",8,0,{"$f":"IF(C805<1+$B892,0,IF(C805<'1 Données d''entrée'!$C$334+'1 Données d''entrée'!$C$333+1+$B892,'1 Données d''entrée'!$C$332*($J883-SUM($C893:C893)),0))","v":0},{"$f":"IF(D805<1+$B892,0,IF(D805<'1 Données d''entrée'!$C$334+'1 Données d''entrée'!$C$333+1+$B892,'1 Données d''entrée'!$C$332*($J883-SUM($C893:D893)),0))","v":0},{"$f":"IF(E805<1+$B892,0,IF(E805<'1 Données d''entrée'!$C$334+'1 Données d''entrée'!$C$333+1+$B892,'1 Données d''entrée'!$C$332*($J883-SUM($C893:E893)),0))","v":0},{"$f":"IF(F805<1+$B892,0,IF(F805<'1 Données d''entrée'!$C$334+'1 Données d''entrée'!$C$333+1+$B892,'1 Données d''entrée'!$C$332*($J883-SUM($C893:F893)),0))","v":0},{"$f":"IF(G805<1+$B892,0,IF(G805<'1 Données d''entrée'!$C$334+'1 Données d''entrée'!$C$333+1+$B892,'1 Données d''entrée'!$C$332*($J883-SUM($C893:G893)),0))","v":0},{"$f":"IF(H805<1+$B892,0,IF(H805<'1 Données d''entrée'!$C$334+'1 Données d''entrée'!$C$333+1+$B892,'1 Données d''entrée'!$C$332*($J883-SUM($C893:H893)),0))","v":0},{"$f":"IF(I805<1+$B892,0,IF(I805<'1 Données d''entrée'!$C$334+'1 Données d''entrée'!$C$333+1+$B892,'1 Données d''entrée'!$C$332*($J883-SUM($C893:I893)),0))","v":0},{"$f":"IF(J805<1+$B892,0,IF(J805<'1 Données d''entrée'!$C$334+'1 Données d''entrée'!$C$333+1+$B892,'1 Données d''entrée'!$C$332*($J883-SUM($C893:J893)),0))","v":0},{"$f":"IF(K805<1+$B892,0,IF(K805<'1 Données d''entrée'!$C$334+'1 Données d''entrée'!$C$333+1+$B892,'1 Données d''entrée'!$C$332*($J883-SUM($C893:K893)),0))","v":0},{"$f":"IF(L805<1+$B892,0,IF(L805<'1 Données d''entrée'!$C$334+'1 Données d''entrée'!$C$333+1+$B892,'1 Données d''entrée'!$C$332*($J883-SUM($C893:L893)),0))","v":0},{"$f":"IF(M805<1+$B892,0,IF(M805<'1 Données d''entrée'!$C$334+'1 Données d''entrée'!$C$333+1+$B892,'1 Données d''entrée'!$C$332*($J883-SUM($C893:M893)),0))","v":0},{"$f":"IF(N805<1+$B892,0,IF(N805<'1 Données d''entrée'!$C$334+'1 Données d''entrée'!$C$333+1+$B892,'1 Données d''entrée'!$C$332*($J883-SUM($C893:N893)),0))","v":0},{"$f":"IF(O805<1+$B892,0,IF(O805<'1 Données d''entrée'!$C$334+'1 Données d''entrée'!$C$333+1+$B892,'1 Données d''entrée'!$C$332*($J883-SUM($C893:O893)),0))","v":0},{"$f":"IF(P805<1+$B892,0,IF(P805<'1 Données d''entrée'!$C$334+'1 Données d''entrée'!$C$333+1+$B892,'1 Données d''entrée'!$C$332*($J883-SUM($C893:P893)),0))","v":0},{"$f":"IF(Q805<1+$B892,0,IF(Q805<'1 Données d''entrée'!$C$334+'1 Données d''entrée'!$C$333+1+$B892,'1 Données d''entrée'!$C$332*($J883-SUM($C893:Q893)),0))","v":0},{"$f":"IF(R805<1+$B892,0,IF(R805<'1 Données d''entrée'!$C$334+'1 Données d''entrée'!$C$333+1+$B892,'1 Données d''entrée'!$C$332*($J883-SUM($C893:R893)),0))","v":0},{"$f":"IF(S805<1+$B892,0,IF(S805<'1 Données d''entrée'!$C$334+'1 Données d''entrée'!$C$333+1+$B892,'1 Données d''entrée'!$C$332*($J883-SUM($C893:S893)),0))","v":0},{"$f":"IF(T805<1+$B892,0,IF(T805<'1 Données d''entrée'!$C$334+'1 Données d''entrée'!$C$333+1+$B892,'1 Données d''entrée'!$C$332*($J883-SUM($C893:T893)),0))","v":0},{"$f":"IF(U805<1+$B892,0,IF(U805<'1 Données d''entrée'!$C$334+'1 Données d''entrée'!$C$333+1+$B892,'1 Données d''entrée'!$C$332*($J883-SUM($C893:U893)),0))","v":0}]
["Paiement d'intêrets",9,0,{"$f":"IF(C805<1+$B893,0,IF(C805<'1 Données d''entrée'!$C$334+'1 Données d''entrée'!$C$333+1+$B893,'1 Données d''entrée'!$C$332*($K883-SUM($C894:C894)),0))","v":0},{"$f":"IF(D805<1+$B893,0,IF(D805<'1 Données d''entrée'!$C$334+'1 Données d''entrée'!$C$333+1+$B893,'1 Données d''entrée'!$C$332*($K883-SUM($C894:D894)),0))","v":0},{"$f":"IF(E805<1+$B893,0,IF(E805<'1 Données d''entrée'!$C$334+'1 Données d''entrée'!$C$333+1+$B893,'1 Données d''entrée'!$C$332*($K883-SUM($C894:E894)),0))","v":0},{"$f":"IF(F805<1+$B893,0,IF(F805<'1 Données d''entrée'!$C$334+'1 Données d''entrée'!$C$333+1+$B893,'1 Données d''entrée'!$C$332*($K883-SUM($C894:F894)),0))","v":0},{"$f":"IF(G805<1+$B893,0,IF(G805<'1 Données d''entrée'!$C$334+'1 Données d''entrée'!$C$333+1+$B893,'1 Données d''entrée'!$C$332*($K883-SUM($C894:G894)),0))","v":0},{"$f":"IF(H805<1+$B893,0,IF(H805<'1 Données d''entrée'!$C$334+'1 Données d''entrée'!$C$333+1+$B893,'1 Données d''entrée'!$C$332*($K883-SUM($C894:H894)),0))","v":0},{"$f":"IF(I805<1+$B893,0,IF(I805<'1 Données d''entrée'!$C$334+'1 Données d''entrée'!$C$333+1+$B893,'1 Données d''entrée'!$C$332*($K883-SUM($C894:I894)),0))","v":0},{"$f":"IF(J805<1+$B893,0,IF(J805<'1 Données d''entrée'!$C$334+'1 Données d''entrée'!$C$333+1+$B893,'1 Données d''entrée'!$C$332*($K883-SUM($C894:J894)),0))","v":0},{"$f":"IF(K805<1+$B893,0,IF(K805<'1 Données d''entrée'!$C$334+'1 Données d''entrée'!$C$333+1+$B893,'1 Données d''entrée'!$C$332*($K883-SUM($C894:K894)),0))","v":0},{"$f":"IF(L805<1+$B893,0,IF(L805<'1 Données d''entrée'!$C$334+'1 Données d''entrée'!$C$333+1+$B893,'1 Données d''entrée'!$C$332*($K883-SUM($C894:L894)),0))","v":0},{"$f":"IF(M805<1+$B893,0,IF(M805<'1 Données d''entrée'!$C$334+'1 Données d''entrée'!$C$333+1+$B893,'1 Données d''entrée'!$C$332*($K883-SUM($C894:M894)),0))","v":0},{"$f":"IF(N805<1+$B893,0,IF(N805<'1 Données d''entrée'!$C$334+'1 Données d''entrée'!$C$333+1+$B893,'1 Données d''entrée'!$C$332*($K883-SUM($C894:N894)),0))","v":0},{"$f":"IF(O805<1+$B893,0,IF(O805<'1 Données d''entrée'!$C$334+'1 Données d''entrée'!$C$333+1+$B893,'1 Données d''entrée'!$C$332*($K883-SUM($C894:O894)),0))","v":0},{"$f":"IF(P805<1+$B893,0,IF(P805<'1 Données d''entrée'!$C$334+'1 Données d''entrée'!$C$333+1+$B893,'1 Données d''entrée'!$C$332*($K883-SUM($C894:P894)),0))","v":0},{"$f":"IF(Q805<1+$B893,0,IF(Q805<'1 Données d''entrée'!$C$334+'1 Données d''entrée'!$C$333+1+$B893,'1 Données d''entrée'!$C$332*($K883-SUM($C894:Q894)),0))","v":0},{"$f":"IF(R805<1+$B893,0,IF(R805<'1 Données d''entrée'!$C$334+'1 Données d''entrée'!$C$333+1+$B893,'1 Données d''entrée'!$C$332*($K883-SUM($C894:R894)),0))","v":0},{"$f":"IF(S805<1+$B893,0,IF(S805<'1 Données d''entrée'!$C$334+'1 Données d''entrée'!$C$333+1+$B893,'1 Données d''entrée'!$C$332*($K883-SUM($C894:S894)),0))","v":0},{"$f":"IF(T805<1+$B893,0,IF(T805<'1 Données d''entrée'!$C$334+'1 Données d''entrée'!$C$333+1+$B893,'1 Données d''entrée'!$C$332*($K883-SUM($C894:T894)),0))","v":0},{"$f":"IF(U805<1+$B893,0,IF(U805<'1 Données d''entrée'!$C$334+'1 Données d''entrée'!$C$333+1+$B893,'1 Données d''entrée'!$C$332*($K883-SUM($C894:U894)),0))","v":0}]
["Paiement d'intêrets",10,0,{"$f":"IF(C805<1+$B894,0,IF(C805<'1 Données d''entrée'!$C$334+'1 Données d''entrée'!$C$333+1+$B894,'1 Données d''entrée'!$C$332*($L883-SUM($C895:C895)),0))","v":0},{"$f":"IF(D805<1+$B894,0,IF(D805<'1 Données d''entrée'!$C$334+'1 Données d''entrée'!$C$333+1+$B894,'1 Données d''entrée'!$C$332*($L883-SUM($C895:D895)),0))","v":0},{"$f":"IF(E805<1+$B894,0,IF(E805<'1 Données d''entrée'!$C$334+'1 Données d''entrée'!$C$333+1+$B894,'1 Données d''entrée'!$C$332*($L883-SUM($C895:E895)),0))","v":0},{"$f":"IF(F805<1+$B894,0,IF(F805<'1 Données d''entrée'!$C$334+'1 Données d''entrée'!$C$333+1+$B894,'1 Données d''entrée'!$C$332*($L883-SUM($C895:F895)),0))","v":0},{"$f":"IF(G805<1+$B894,0,IF(G805<'1 Données d''entrée'!$C$334+'1 Données d''entrée'!$C$333+1+$B894,'1 Données d''entrée'!$C$332*($L883-SUM($C895:G895)),0))","v":0},{"$f":"IF(H805<1+$B894,0,IF(H805<'1 Données d''entrée'!$C$334+'1 Données d''entrée'!$C$333+1+$B894,'1 Données d''entrée'!$C$332*($L883-SUM($C895:H895)),0))","v":0},{"$f":"IF(I805<1+$B894,0,IF(I805<'1 Données d''entrée'!$C$334+'1 Données d''entrée'!$C$333+1+$B894,'1 Données d''entrée'!$C$332*($L883-SUM($C895:I895)),0))","v":0},{"$f":"IF(J805<1+$B894,0,IF(J805<'1 Données d''entrée'!$C$334+'1 Données d''entrée'!$C$333+1+$B894,'1 Données d''entrée'!$C$332*($L883-SUM($C895:J895)),0))","v":0},{"$f":"IF(K805<1+$B894,0,IF(K805<'1 Données d''entrée'!$C$334+'1 Données d''entrée'!$C$333+1+$B894,'1 Données d''entrée'!$C$332*($L883-SUM($C895:K895)),0))","v":0},{"$f":"IF(L805<1+$B894,0,IF(L805<'1 Données d''entrée'!$C$334+'1 Données d''entrée'!$C$333+1+$B894,'1 Données d''entrée'!$C$332*($L883-SUM($C895:L895)),0))","v":0},{"$f":"IF(M805<1+$B894,0,IF(M805<'1 Données d''entrée'!$C$334+'1 Données d''entrée'!$C$333+1+$B894,'1 Données d''entrée'!$C$332*($L883-SUM($C895:M895)),0))","v":0},{"$f":"IF(N805<1+$B894,0,IF(N805<'1 Données d''entrée'!$C$334+'1 Données d''entrée'!$C$333+1+$B894,'1 Données d''entrée'!$C$332*($L883-SUM($C895:N895)),0))","v":0},{"$f":"IF(O805<1+$B894,0,IF(O805<'1 Données d''entrée'!$C$334+'1 Données d''entrée'!$C$333+1+$B894,'1 Données d''entrée'!$C$332*($L883-SUM($C895:O895)),0))","v":0},{"$f":"IF(P805<1+$B894,0,IF(P805<'1 Données d''entrée'!$C$334+'1 Données d''entrée'!$C$333+1+$B894,'1 Données d''entrée'!$C$332*($L883-SUM($C895:P895)),0))","v":0},{"$f":"IF(Q805<1+$B894,0,IF(Q805<'1 Données d''entrée'!$C$334+'1 Données d''entrée'!$C$333+1+$B894,'1 Données d''entrée'!$C$332*($L883-SUM($C895:Q895)),0))","v":0},{"$f":"IF(R805<1+$B894,0,IF(R805<'1 Données d''entrée'!$C$334+'1 Données d''entrée'!$C$333+1+$B894,'1 Données d''entrée'!$C$332*($L883-SUM($C895:R895)),0))","v":0},{"$f":"IF(S805<1+$B894,0,IF(S805<'1 Données d''entrée'!$C$334+'1 Données d''entrée'!$C$333+1+$B894,'1 Données d''entrée'!$C$332*($L883-SUM($C895:S895)),0))","v":0},{"$f":"IF(T805<1+$B894,0,IF(T805<'1 Données d''entrée'!$C$334+'1 Données d''entrée'!$C$333+1+$B894,'1 Données d''entrée'!$C$332*($L883-SUM($C895:T895)),0))","v":0},{"$f":"IF(U805<1+$B894,0,IF(U805<'1 Données d''entrée'!$C$334+'1 Données d''entrée'!$C$333+1+$B894,'1 Données d''entrée'!$C$332*($L883-SUM($C895:U895)),0))","v":0}]
[]
[null,"Période",1,2,3,4,5,6,7,8,9,10,11,12,13,14,15,16,17,18,19,20]
["Prêt bancaire - Option 3: Remboursement vers l'annuité constante",{"$f":"'1 Données d''entrée'!$B$344","v":0}]
["Prêt(s) nouveau(x)",null,{"$f":"IF(C848<0,C848*(-1)*$B910+C848*(-1)*$B910*'1 Données d''entrée'!$C$338,0)","v":{"$error":"#DIV/0!"}},{"$f":"IF(D848<0,D848*(-1)*$B910+D848*(-1)*$B910*'1 Données d''entrée'!$C$338,0)","v":{"$error":"#DIV/0!"}},{"$f":"IF(E848<0,E848*(-1)*$B910+E848*(-1)*$B910*'1 Données d''entrée'!$C$338,0)","v":{"$error":"#DIV/0!"}},{"$f":"IF(F848<0,F848*(-1)*$B910+F848*(-1)*$B910*'1 Données d''entrée'!$C$338,0)","v":{"$error":"#DIV/0!"}},{"$f":"IF(G848<0,G848*(-1)*$B910+G848*(-1)*$B910*'1 Données d''entrée'!$C$338,0)","v":{"$error":"#DIV/0!"}},{"$f":"IF(H848<0,H848*(-1)*$B910+H848*(-1)*$B910*'1 Données d''entrée'!$C$338,0)","v":{"$error":"#DIV/0!"}},{"$f":"IF(I848<0,I848*(-1)*$B910+I848*(-1)*$B910*'1 Données d''entrée'!$C$338,0)","v":{"$error":"#DIV/0!"}},{"$f":"IF(J848<0,J848*(-1)*$B910+J848*(-1)*$B910*'1 Données d''entrée'!$C$338,0)","v":{"$error":"#DIV/0!"}},{"$f":"IF(K848<0,K848*(-1)*$B910+K848*(-1)*$B910*'1 Données d''entrée'!$C$338,0)","v":{"$error":"#DIV/0!"}},{"$f":"IF(L848<0,L848*(-1)*$B910+L848*(-1)*$B910*'1 Données d''entrée'!$C$338,0)","v":{"$error":"#DIV/0!"}},{"$f":"IF(M848<0,M848*(-1)*$B910+M848*(-1)*$B910*'1 Données d''entrée'!$C$338,0)","v":{"$error":"#DIV/0!"}},{"$f":"IF(N848<0,N848*(-1)*$B910+N848*(-1)*$B910*'1 Données d''entrée'!$C$338,0)","v":{"$error":"#DIV/0!"}},{"$f":"IF(O848<0,O848*(-1)*$B910+O848*(-1)*$B910*'1 Données d''entrée'!$C$338,0)","v":{"$error":"#DIV/0!"}},{"$f":"IF(P848<0,P848*(-1)*$B910+P848*(-1)*$B910*'1 Données d''entrée'!$C$338,0)","v":{"$error":"#DIV/0!"}},{"$f":"IF(Q848<0,Q848*(-1)*$B910+Q848*(-1)*$B910*'1 Données d''entrée'!$C$338,0)","v":{"$error":"#DIV/0!"}},{"$f":"IF(R848<0,R848*(-1)*$B910+R848*(-1)*$B910*'1 Données d''entrée'!$C$338,0)","v":{"$error":"#DIV/0!"}},{"$f":"IF(S848<0,S848*(-1)*$B910+S848*(-1)*$B910*'1 Données d''entrée'!$C$338,0)","v":{"$error":"#DIV/0!"}},{"$f":"IF(T848<0,T848*(-1)*$B910+T848*(-1)*$B910*'1 Données d''entrée'!$C$338,0)","v":{"$error":"#DIV/0!"}},{"$f":"IF(U848<0,U848*(-1)*$B910+U848*(-1)*$B910*'1 Données d''entrée'!$C$338,0)","v":{"$error":"#DIV/0!"}},{"$f":"IF(V848<0,V848*(-1)*$B910+V848*(-1)*$B910*'1 Données d''entrée'!$C$338,0)","v":{"$error":"#DIV/0!"}}]
[null,"Période de prêt nouveau"]
["Remboursement vers l'annuité constante",0,0,0,0,0,0,0,0,0,0,0,0,0,0,0,0,0,0,0,0,0]
[null,1,{"$f":"IF(C$54<'1 Données d''entrée'!$C$334+1+$B914,0,IF(C$54<'1 Données d''entrée'!$C$333+'1 Données d''entrée'!$C$334+1+$B914,$C$160*('1 Données d''entrée'!$C$332*(1+'1 Données d''entrée'!$C$332)^'1 Données d''entrée'!$C$333)/((1+'1 Données d''entrée'!$C$332)^'1 Données d''entrée'!$C$333-1),0))","v":0},{"$f":"IF(D805<'1 Données d''entrée'!$C$334+1+$B914,0,IF(D805<'1 Données d''entrée'!$C$333+'1 Données d''entrée'!$C$334+1+$B914,$C911*('1 Données d''entrée'!$C$332*(1+'1 Données d''entrée'!$C$332)^'1 Données d''entrée'!$C$333)/((1+'1 Données d''entrée'!$C$332)^'1 Données d''entrée'!$C$333-1),0))","v":0},{"$f":"IF(E805<'1 Données d''entrée'!$C$334+1+$B914,0,IF(E805<'1 Données d''entrée'!$C$333+'1 Données d''entrée'!$C$334+1+$B914,$C911*('1 Données d''entrée'!$C$332*(1+'1 Données d''entrée'!$C$332)^'1 Données d''entrée'!$C$333)/((1+'1 Données d''entrée'!$C$332)^'1 Données d''entrée'!$C$333-1),0))","v":0},{"$f":"IF(F805<'1 Données d''entrée'!$C$334+1+$B914,0,IF(F805<'1 Données d''entrée'!$C$333+'1 Données d''entrée'!$C$334+1+$B914,$C911*('1 Données d''entrée'!$C$332*(1+'1 Données d''entrée'!$C$332)^'1 Données d''entrée'!$C$333)/((1+'1 Données d''entrée'!$C$332)^'1 Données d''entrée'!$C$333-1),0))","v":0},{"$f":"IF(G805<'1 Données d''entrée'!$C$334+1+$B914,0,IF(G805<'1 Données d''entrée'!$C$333+'1 Données d''entrée'!$C$334+1+$B914,$C911*('1 Données d''entrée'!$C$332*(1+'1 Données d''entrée'!$C$332)^'1 Données d''entrée'!$C$333)/((1+'1 Données d''entrée'!$C$332)^'1 Données d''entrée'!$C$333-1),0))","v":0},{"$f":"IF(H805<'1 Données d''entrée'!$C$334+1+$B914,0,IF(H805<'1 Données d''entrée'!$C$333+'1 Données d''entrée'!$C$334+1+$B914,$C911*('1 Données d''entrée'!$C$332*(1+'1 Données d''entrée'!$C$332)^'1 Données d''entrée'!$C$333)/((1+'1 Données d''entrée'!$C$332)^'1 Données d''entrée'!$C$333-1),0))","v":0},{"$f":"IF(I805<'1 Données d''entrée'!$C$334+1+$B914,0,IF(I805<'1 Données d''entrée'!$C$333+'1 Données d''entrée'!$C$334+1+$B914,$C911*('1 Données d''entrée'!$C$332*(1+'1 Données d''entrée'!$C$332)^'1 Données d''entrée'!$C$333)/((1+'1 Données d''entrée'!$C$332)^'1 Données d''entrée'!$C$333-1),0))","v":0},{"$f":"IF(J805<'1 Données d''entrée'!$C$334+1+$B914,0,IF(J805<'1 Données d''entrée'!$C$333+'1 Données d''entrée'!$C$334+1+$B914,$C911*('1 Données d''entrée'!$C$332*(1+'1 Données d''entrée'!$C$332)^'1 Données d''entrée'!$C$333)/((1+'1 Données d''entrée'!$C$332)^'1 Données d''entrée'!$C$333-1),0))","v":0},{"$f":"IF(K805<'1 Données d''entrée'!$C$334+1+$B914,0,IF(K805<'1 Données d''entrée'!$C$333+'1 Données d''entrée'!$C$334+1+$B914,$C911*('1 Données d''entrée'!$C$332*(1+'1 Données d''entrée'!$C$332)^'1 Données d''entrée'!$C$333)/((1+'1 Données d''entrée'!$C$332)^'1 Données d''entrée'!$C$333-1),0))","v":0},{"$f":"IF(L805<'1 Données d''entrée'!$C$334+1+$B914,0,IF(L805<'1 Données d''entrée'!$C$333+'1 Données d''entrée'!$C$334+1+$B914,$C911*('1 Données d''entrée'!$C$332*(1+'1 Données d''entrée'!$C$332)^'1 Données d''entrée'!$C$333)/((1+'1 Données d''entrée'!$C$332)^'1 Données d''entrée'!$C$333-1),0))","v":0},{"$f":"IF(M805<'1 Données d''entrée'!$C$334+1+$B914,0,IF(M805<'1 Données d''entrée'!$C$333+'1 Données d''entrée'!$C$334+1+$B914,$C911*('1 Données d''entrée'!$C$332*(1+'1 Données d''entrée'!$C$332)^'1 Données d''entrée'!$C$333)/((1+'1 Données d''entrée'!$C$332)^'1 Données d''entrée'!$C$333-1),0))","v":0},{"$f":"IF(N805<'1 Données d''entrée'!$C$334+1+$B914,0,IF(N805<'1 Données d''entrée'!$C$333+'1 Données d''entrée'!$C$334+1+$B914,$C911*('1 Données d''entrée'!$C$332*(1+'1 Données d''entrée'!$C$332)^'1 Données d''entrée'!$C$333)/((1+'1 Données d''entrée'!$C$332)^'1 Données d''entrée'!$C$333-1),0))","v":0},{"$f":"IF(O805<'1 Données d''entrée'!$C$334+1+$B914,0,IF(O805<'1 Données d''entrée'!$C$333+'1 Données d''entrée'!$C$334+1+$B914,$C911*('1 Données d''entrée'!$C$332*(1+'1 Données d''entrée'!$C$332)^'1 Données d''entrée'!$C$333)/((1+'1 Données d''entrée'!$C$332)^'1 Données d''entrée'!$C$333-1),0))","v":0},{"$f":"IF(P805<'1 Données d''entrée'!$C$334+1+$B914,0,IF(P805<'1 Données d''entrée'!$C$333+'1 Données d''entrée'!$C$334+1+$B914,$C911*('1 Données d''entrée'!$C$332*(1+'1 Données d''entrée'!$C$332)^'1 Données d''entrée'!$C$333)/((1+'1 Données d''entrée'!$C$332)^'1 Données d''entrée'!$C$333-1),0))","v":0},{"$f":"IF(Q805<'1 Données d''entrée'!$C$334+1+$B914,0,IF(Q805<'1 Données d''entrée'!$C$333+'1 Données d''entrée'!$C$334+1+$B914,$C911*('1 Données d''entrée'!$C$332*(1+'1 Données d''entrée'!$C$332)^'1 Données d''entrée'!$C$333)/((1+'1 Données d''entrée'!$C$332)^'1 Données d''entrée'!$C$333-1),0))","v":0},{"$f":"IF(R805<'1 Données d''entrée'!$C$334+1+$B914,0,IF(R805<'1 Données d''entrée'!$C$333+'1 Données d''entrée'!$C$334+1+$B914,$C911*('1 Données d''entrée'!$C$332*(1+'1 Données d''entrée'!$C$332)^'1 Données d''entrée'!$C$333)/((1+'1 Données d''entrée'!$C$332)^'1 Données d''entrée'!$C$333-1),0))","v":0},{"$f":"IF(S805<'1 Données d''entrée'!$C$334+1+$B914,0,IF(S805<'1 Données d''entrée'!$C$333+'1 Données d''entrée'!$C$334+1+$B914,$C911*('1 Données d''entrée'!$C$332*(1+'1 Données d''entrée'!$C$332)^'1 Données d''entrée'!$C$333)/((1+'1 Données d''entrée'!$C$332)^'1 Données d''entrée'!$C$333-1),0))","v":0},{"$f":"IF(T805<'1 Données d''entrée'!$C$334+1+$B914,0,IF(T805<'1 Données d''entrée'!$C$333+'1 Données d''entrée'!$C$334+1+$B914,$C911*('1 Données d''entrée'!$C$332*(1+'1 Données d''entrée'!$C$332)^'1 Données d''entrée'!$C$333)/((1+'1 Données d''entrée'!$C$332)^'1 Données d''entrée'!$C$333-1),0))","v":0},{"$f":"IF(U805<'1 Données d''entrée'!$C$334+1+$B914,0,IF(U805<'1 Données d''entrée'!$C$333+'1 Données d''entrée'!$C$334+1+$B914,$C911*('1 Données d''entrée'!$C$332*(1+'1 Données d''entrée'!$C$332)^'1 Données d''entrée'!$C$333)/((1+'1 Données d''entrée'!$C$332)^'1 Données d''entrée'!$C$333-1),0))","v":0},{"$f":"IF(V805<'1 Données d''entrée'!$C$334+1+$B914,0,IF(V805<'1 Données d''entrée'!$C$333+'1 Données d''entrée'!$C$334+1+$B914,$C911*('1 Données d''entrée'!$C$332*(1+'1 Données d''entrée'!$C$332)^'1 Données d''entrée'!$C$333)/((1+'1 Données d''entrée'!$C$332)^'1 Données d''entrée'!$C$333-1),0))","v":0}]
[null,2,{"$f":"IF(C$54<'1 Données d''entrée'!$C$334+1+$B915,0,IF(C$54<'1 Données d''entrée'!$C$333+'1 Données d''entrée'!$C$334+1+$B915,$D$160*('1 Données d''entrée'!$C$332*(1+'1 Données d''entrée'!$C$332)^'1 Données d''entrée'!$C$333)/((1+'1 Données d''entrée'!$C$332)^'1 Données d''entrée'!$C$333-1),0))","v":0},{"$f":"IF(D805<'1 Données d''entrée'!$C$334+1+$B915,0,IF(D805<'1 Données d''entrée'!$C$333+'1 Données d''entrée'!$C$334+1+$B915,$D911*('1 Données d''entrée'!$C$332*(1+'1 Données d''entrée'!$C$332)^'1 Données d''entrée'!$C$333)/((1+'1 Données d''entrée'!$C$332)^'1 Données d''entrée'!$C$333-1),0))","v":0},{"$f":"IF(E805<'1 Données d''entrée'!$C$334+1+$B915,0,IF(E805<'1 Données d''entrée'!$C$333+'1 Données d''entrée'!$C$334+1+$B915,$D911*('1 Données d''entrée'!$C$332*(1+'1 Données d''entrée'!$C$332)^'1 Données d''entrée'!$C$333)/((1+'1 Données d''entrée'!$C$332)^'1 Données d''entrée'!$C$333-1),0))","v":0},{"$f":"IF(F805<'1 Données d''entrée'!$C$334+1+$B915,0,IF(F805<'1 Données d''entrée'!$C$333+'1 Données d''entrée'!$C$334+1+$B915,$D911*('1 Données d''entrée'!$C$332*(1+'1 Données d''entrée'!$C$332)^'1 Données d''entrée'!$C$333)/((1+'1 Données d''entrée'!$C$332)^'1 Données d''entrée'!$C$333-1),0))","v":0},{"$f":"IF(G805<'1 Données d''entrée'!$C$334+1+$B915,0,IF(G805<'1 Données d''entrée'!$C$333+'1 Données d''entrée'!$C$334+1+$B915,$D911*('1 Données d''entrée'!$C$332*(1+'1 Données d''entrée'!$C$332)^'1 Données d''entrée'!$C$333)/((1+'1 Données d''entrée'!$C$332)^'1 Données d''entrée'!$C$333-1),0))","v":0},{"$f":"IF(H805<'1 Données d''entrée'!$C$334+1+$B915,0,IF(H805<'1 Données d''entrée'!$C$333+'1 Données d''entrée'!$C$334+1+$B915,$D911*('1 Données d''entrée'!$C$332*(1+'1 Données d''entrée'!$C$332)^'1 Données d''entrée'!$C$333)/((1+'1 Données d''entrée'!$C$332)^'1 Données d''entrée'!$C$333-1),0))","v":0},{"$f":"IF(I805<'1 Données d''entrée'!$C$334+1+$B915,0,IF(I805<'1 Données d''entrée'!$C$333+'1 Données d''entrée'!$C$334+1+$B915,$D911*('1 Données d''entrée'!$C$332*(1+'1 Données d''entrée'!$C$332)^'1 Données d''entrée'!$C$333)/((1+'1 Données d''entrée'!$C$332)^'1 Données d''entrée'!$C$333-1),0))","v":0},{"$f":"IF(J805<'1 Données d''entrée'!$C$334+1+$B915,0,IF(J805<'1 Données d''entrée'!$C$333+'1 Données d''entrée'!$C$334+1+$B915,$D911*('1 Données d''entrée'!$C$332*(1+'1 Données d''entrée'!$C$332)^'1 Données d''entrée'!$C$333)/((1+'1 Données d''entrée'!$C$332)^'1 Données d''entrée'!$C$333-1),0))","v":0},{"$f":"IF(K805<'1 Données d''entrée'!$C$334+1+$B915,0,IF(K805<'1 Données d''entrée'!$C$333+'1 Données d''entrée'!$C$334+1+$B915,$D911*('1 Données d''entrée'!$C$332*(1+'1 Données d''entrée'!$C$332)^'1 Données d''entrée'!$C$333)/((1+'1 Données d''entrée'!$C$332)^'1 Données d''entrée'!$C$333-1),0))","v":0},{"$f":"IF(L805<'1 Données d''entrée'!$C$334+1+$B915,0,IF(L805<'1 Données d''entrée'!$C$333+'1 Données d''entrée'!$C$334+1+$B915,$D911*('1 Données d''entrée'!$C$332*(1+'1 Données d''entrée'!$C$332)^'1 Données d''entrée'!$C$333)/((1+'1 Données d''entrée'!$C$332)^'1 Données d''entrée'!$C$333-1),0))","v":0},{"$f":"IF(M805<'1 Données d''entrée'!$C$334+1+$B915,0,IF(M805<'1 Données d''entrée'!$C$333+'1 Données d''entrée'!$C$334+1+$B915,$D911*('1 Données d''entrée'!$C$332*(1+'1 Données d''entrée'!$C$332)^'1 Données d''entrée'!$C$333)/((1+'1 Données d''entrée'!$C$332)^'1 Données d''entrée'!$C$333-1),0))","v":0},{"$f":"IF(N805<'1 Données d''entrée'!$C$334+1+$B915,0,IF(N805<'1 Données d''entrée'!$C$333+'1 Données d''entrée'!$C$334+1+$B915,$D911*('1 Données d''entrée'!$C$332*(1+'1 Données d''entrée'!$C$332)^'1 Données d''entrée'!$C$333)/((1+'1 Données d''entrée'!$C$332)^'1 Données d''entrée'!$C$333-1),0))","v":0},{"$f":"IF(O805<'1 Données d''entrée'!$C$334+1+$B915,0,IF(O805<'1 Données d''entrée'!$C$333+'1 Données d''entrée'!$C$334+1+$B915,$D911*('1 Données d''entrée'!$C$332*(1+'1 Données d''entrée'!$C$332)^'1 Données d''entrée'!$C$333)/((1+'1 Données d''entrée'!$C$332)^'1 Données d''entrée'!$C$333-1),0))","v":0},{"$f":"IF(P805<'1 Données d''entrée'!$C$334+1+$B915,0,IF(P805<'1 Données d''entrée'!$C$333+'1 Données d''entrée'!$C$334+1+$B915,$D911*('1 Données d''entrée'!$C$332*(1+'1 Données d''entrée'!$C$332)^'1 Données d''entrée'!$C$333)/((1+'1 Données d''entrée'!$C$332)^'1 Données d''entrée'!$C$333-1),0))","v":0},{"$f":"IF(Q805<'1 Données d''entrée'!$C$334+1+$B915,0,IF(Q805<'1 Données d''entrée'!$C$333+'1 Données d''entrée'!$C$334+1+$B915,$D911*('1 Données d''entrée'!$C$332*(1+'1 Données d''entrée'!$C$332)^'1 Données d''entrée'!$C$333)/((1+'1 Données d''entrée'!$C$332)^'1 Données d''entrée'!$C$333-1),0))","v":0},{"$f":"IF(R805<'1 Données d''entrée'!$C$334+1+$B915,0,IF(R805<'1 Données d''entrée'!$C$333+'1 Données d''entrée'!$C$334+1+$B915,$D911*('1 Données d''entrée'!$C$332*(1+'1 Données d''entrée'!$C$332)^'1 Données d''entrée'!$C$333)/((1+'1 Données d''entrée'!$C$332)^'1 Données d''entrée'!$C$333-1),0))","v":0},{"$f":"IF(S805<'1 Données d''entrée'!$C$334+1+$B915,0,IF(S805<'1 Données d''entrée'!$C$333+'1 Données d''entrée'!$C$334+1+$B915,$D911*('1 Données d''entrée'!$C$332*(1+'1 Données d''entrée'!$C$332)^'1 Données d''entrée'!$C$333)/((1+'1 Données d''entrée'!$C$332)^'1 Données d''entrée'!$C$333-1),0))","v":0},{"$f":"IF(T805<'1 Données d''entrée'!$C$334+1+$B915,0,IF(T805<'1 Données d''entrée'!$C$333+'1 Données d''entrée'!$C$334+1+$B915,$D911*('1 Données d''entrée'!$C$332*(1+'1 Données d''entrée'!$C$332)^'1 Données d''entrée'!$C$333)/((1+'1 Données d''entrée'!$C$332)^'1 Données d''entrée'!$C$333-1),0))","v":0},{"$f":"IF(U805<'1 Données d''entrée'!$C$334+1+$B915,0,IF(U805<'1 Données d''entrée'!$C$333+'1 Données d''entrée'!$C$334+1+$B915,$D911*('1 Données d''entrée'!$C$332*(1+'1 Données d''entrée'!$C$332)^'1 Données d''entrée'!$C$333)/((1+'1 Données d''entrée'!$C$332)^'1 Données d''entrée'!$C$333-1),0))","v":0},{"$f":"IF(V805<'1 Données d''entrée'!$C$334+1+$B915,0,IF(V805<'1 Données d''entrée'!$C$333+'1 Données d''entrée'!$C$334+1+$B915,$D911*('1 Données d''entrée'!$C$332*(1+'1 Données d''entrée'!$C$332)^'1 Données d''entrée'!$C$333)/((1+'1 Données d''entrée'!$C$332)^'1 Données d''entrée'!$C$333-1),0))","v":0}]
[null,3,{"$f":"IF(C$54<'1 Données d''entrée'!$C$334+1+$B916,0,IF(C$54<'1 Données d''entrée'!$C$333+'1 Données d''entrée'!$C$334+1+$B916,$E$160*('1 Données d''entrée'!$C$332*(1+'1 Données d''entrée'!$C$332)^'1 Données d''entrée'!$C$333)/((1+'1 Données d''entrée'!$C$332)^'1 Données d''entrée'!$C$333-1),0))","v":0},{"$f":"IF(D805<'1 Données d''entrée'!$C$334+1+$B916,0,IF(D805<'1 Données d''entrée'!$C$333+'1 Données d''entrée'!$C$334+1+$B916,$E911*('1 Données d''entrée'!$C$332*(1+'1 Données d''entrée'!$C$332)^'1 Données d''entrée'!$C$333)/((1+'1 Données d''entrée'!$C$332)^'1 Données d''entrée'!$C$333-1),0))","v":0},{"$f":"IF(E805<'1 Données d''entrée'!$C$334+1+$B916,0,IF(E805<'1 Données d''entrée'!$C$333+'1 Données d''entrée'!$C$334+1+$B916,$E911*('1 Données d''entrée'!$C$332*(1+'1 Données d''entrée'!$C$332)^'1 Données d''entrée'!$C$333)/((1+'1 Données d''entrée'!$C$332)^'1 Données d''entrée'!$C$333-1),0))","v":0},{"$f":"IF(F805<'1 Données d''entrée'!$C$334+1+$B916,0,IF(F805<'1 Données d''entrée'!$C$333+'1 Données d''entrée'!$C$334+1+$B916,$E911*('1 Données d''entrée'!$C$332*(1+'1 Données d''entrée'!$C$332)^'1 Données d''entrée'!$C$333)/((1+'1 Données d''entrée'!$C$332)^'1 Données d''entrée'!$C$333-1),0))","v":0},{"$f":"IF(G805<'1 Données d''entrée'!$C$334+1+$B916,0,IF(G805<'1 Données d''entrée'!$C$333+'1 Données d''entrée'!$C$334+1+$B916,$E911*('1 Données d''entrée'!$C$332*(1+'1 Données d''entrée'!$C$332)^'1 Données d''entrée'!$C$333)/((1+'1 Données d''entrée'!$C$332)^'1 Données d''entrée'!$C$333-1),0))","v":0},{"$f":"IF(H805<'1 Données d''entrée'!$C$334+1+$B916,0,IF(H805<'1 Données d''entrée'!$C$333+'1 Données d''entrée'!$C$334+1+$B916,$E911*('1 Données d''entrée'!$C$332*(1+'1 Données d''entrée'!$C$332)^'1 Données d''entrée'!$C$333)/((1+'1 Données d''entrée'!$C$332)^'1 Données d''entrée'!$C$333-1),0))","v":0},{"$f":"IF(I805<'1 Données d''entrée'!$C$334+1+$B916,0,IF(I805<'1 Données d''entrée'!$C$333+'1 Données d''entrée'!$C$334+1+$B916,$E911*('1 Données d''entrée'!$C$332*(1+'1 Données d''entrée'!$C$332)^'1 Données d''entrée'!$C$333)/((1+'1 Données d''entrée'!$C$332)^'1 Données d''entrée'!$C$333-1),0))","v":0},{"$f":"IF(J805<'1 Données d''entrée'!$C$334+1+$B916,0,IF(J805<'1 Données d''entrée'!$C$333+'1 Données d''entrée'!$C$334+1+$B916,$E911*('1 Données d''entrée'!$C$332*(1+'1 Données d''entrée'!$C$332)^'1 Données d''entrée'!$C$333)/((1+'1 Données d''entrée'!$C$332)^'1 Données d''entrée'!$C$333-1),0))","v":0},{"$f":"IF(K805<'1 Données d''entrée'!$C$334+1+$B916,0,IF(K805<'1 Données d''entrée'!$C$333+'1 Données d''entrée'!$C$334+1+$B916,$E911*('1 Données d''entrée'!$C$332*(1+'1 Données d''entrée'!$C$332)^'1 Données d''entrée'!$C$333)/((1+'1 Données d''entrée'!$C$332)^'1 Données d''entrée'!$C$333-1),0))","v":0},{"$f":"IF(L805<'1 Données d''entrée'!$C$334+1+$B916,0,IF(L805<'1 Données d''entrée'!$C$333+'1 Données d''entrée'!$C$334+1+$B916,$E911*('1 Données d''entrée'!$C$332*(1+'1 Données d''entrée'!$C$332)^'1 Données d''entrée'!$C$333)/((1+'1 Données d''entrée'!$C$332)^'1 Données d''entrée'!$C$333-1),0))","v":0},{"$f":"IF(M805<'1 Données d''entrée'!$C$334+1+$B916,0,IF(M805<'1 Données d''entrée'!$C$333+'1 Données d''entrée'!$C$334+1+$B916,$E911*('1 Données d''entrée'!$C$332*(1+'1 Données d''entrée'!$C$332)^'1 Données d''entrée'!$C$333)/((1+'1 Données d''entrée'!$C$332)^'1 Données d''entrée'!$C$333-1),0))","v":0},{"$f":"IF(N805<'1 Données d''entrée'!$C$334+1+$B916,0,IF(N805<'1 Données d''entrée'!$C$333+'1 Données d''entrée'!$C$334+1+$B916,$E911*('1 Données d''entrée'!$C$332*(1+'1 Données d''entrée'!$C$332)^'1 Données d''entrée'!$C$333)/((1+'1 Données d''entrée'!$C$332)^'1 Données d''entrée'!$C$333-1),0))","v":0},{"$f":"IF(O805<'1 Données d''entrée'!$C$334+1+$B916,0,IF(O805<'1 Données d''entrée'!$C$333+'1 Données d''entrée'!$C$334+1+$B916,$E911*('1 Données d''entrée'!$C$332*(1+'1 Données d''entrée'!$C$332)^'1 Données d''entrée'!$C$333)/((1+'1 Données d''entrée'!$C$332)^'1 Données d''entrée'!$C$333-1),0))","v":0},{"$f":"IF(P805<'1 Données d''entrée'!$C$334+1+$B916,0,IF(P805<'1 Données d''entrée'!$C$333+'1 Données d''entrée'!$C$334+1+$B916,$E911*('1 Données d''entrée'!$C$332*(1+'1 Données d''entrée'!$C$332)^'1 Données d''entrée'!$C$333)/((1+'1 Données d''entrée'!$C$332)^'1 Données d''entrée'!$C$333-1),0))","v":0},{"$f":"IF(Q805<'1 Données d''entrée'!$C$334+1+$B916,0,IF(Q805<'1 Données d''entrée'!$C$333+'1 Données d''entrée'!$C$334+1+$B916,$E911*('1 Données d''entrée'!$C$332*(1+'1 Données d''entrée'!$C$332)^'1 Données d''entrée'!$C$333)/((1+'1 Données d''entrée'!$C$332)^'1 Données d''entrée'!$C$333-1),0))","v":0},{"$f":"IF(R805<'1 Données d''entrée'!$C$334+1+$B916,0,IF(R805<'1 Données d''entrée'!$C$333+'1 Données d''entrée'!$C$334+1+$B916,$E911*('1 Données d''entrée'!$C$332*(1+'1 Données d''entrée'!$C$332)^'1 Données d''entrée'!$C$333)/((1+'1 Données d''entrée'!$C$332)^'1 Données d''entrée'!$C$333-1),0))","v":0},{"$f":"IF(S805<'1 Données d''entrée'!$C$334+1+$B916,0,IF(S805<'1 Données d''entrée'!$C$333+'1 Données d''entrée'!$C$334+1+$B916,$E911*('1 Données d''entrée'!$C$332*(1+'1 Données d''entrée'!$C$332)^'1 Données d''entrée'!$C$333)/((1+'1 Données d''entrée'!$C$332)^'1 Données d''entrée'!$C$333-1),0))","v":0},{"$f":"IF(T805<'1 Données d''entrée'!$C$334+1+$B916,0,IF(T805<'1 Données d''entrée'!$C$333+'1 Données d''entrée'!$C$334+1+$B916,$E911*('1 Données d''entrée'!$C$332*(1+'1 Données d''entrée'!$C$332)^'1 Données d''entrée'!$C$333)/((1+'1 Données d''entrée'!$C$332)^'1 Données d''entrée'!$C$333-1),0))","v":0},{"$f":"IF(U805<'1 Données d''entrée'!$C$334+1+$B916,0,IF(U805<'1 Données d''entrée'!$C$333+'1 Données d''entrée'!$C$334+1+$B916,$E911*('1 Données d''entrée'!$C$332*(1+'1 Données d''entrée'!$C$332)^'1 Données d''entrée'!$C$333)/((1+'1 Données d''entrée'!$C$332)^'1 Données d''entrée'!$C$333-1),0))","v":0},{"$f":"IF(V805<'1 Données d''entrée'!$C$334+1+$B916,0,IF(V805<'1 Données d''entrée'!$C$333+'1 Données d''entrée'!$C$334+1+$B916,$E911*('1 Données d''entrée'!$C$332*(1+'1 Données d''entrée'!$C$332)^'1 Données d''entrée'!$C$333)/((1+'1 Données d''entrée'!$C$332)^'1 Données d''entrée'!$C$333-1),0))","v":0}]
[null,4,{"$f":"IF(C$54<'1 Données d''entrée'!$C$334+1+$B917,0,IF(C$54<'1 Données d''entrée'!$C$333+'1 Données d''entrée'!$C$334+1+$B917,$F$160*('1 Données d''entrée'!$C$332*(1+'1 Données d''entrée'!$C$332)^'1 Données d''entrée'!$C$333)/((1+'1 Données d''entrée'!$C$332)^'1 Données d''entrée'!$C$333-1),0))","v":0},{"$f":"IF(D805<'1 Données d''entrée'!$C$334+1+$B917,0,IF(D805<'1 Données d''entrée'!$C$333+'1 Données d''entrée'!$C$334+1+$B917,$F911*('1 Données d''entrée'!$C$332*(1+'1 Données d''entrée'!$C$332)^'1 Données d''entrée'!$C$333)/((1+'1 Données d''entrée'!$C$332)^'1 Données d''entrée'!$C$333-1),0))","v":0},{"$f":"IF(E805<'1 Données d''entrée'!$C$334+1+$B917,0,IF(E805<'1 Données d''entrée'!$C$333+'1 Données d''entrée'!$C$334+1+$B917,$F911*('1 Données d''entrée'!$C$332*(1+'1 Données d''entrée'!$C$332)^'1 Données d''entrée'!$C$333)/((1+'1 Données d''entrée'!$C$332)^'1 Données d''entrée'!$C$333-1),0))","v":0},{"$f":"IF(F805<'1 Données d''entrée'!$C$334+1+$B917,0,IF(F805<'1 Données d''entrée'!$C$333+'1 Données d''entrée'!$C$334+1+$B917,$F911*('1 Données d''entrée'!$C$332*(1+'1 Données d''entrée'!$C$332)^'1 Données d''entrée'!$C$333)/((1+'1 Données d''entrée'!$C$332)^'1 Données d''entrée'!$C$333-1),0))","v":0},{"$f":"IF(G805<'1 Données d''entrée'!$C$334+1+$B917,0,IF(G805<'1 Données d''entrée'!$C$333+'1 Données d''entrée'!$C$334+1+$B917,$F911*('1 Données d''entrée'!$C$332*(1+'1 Données d''entrée'!$C$332)^'1 Données d''entrée'!$C$333)/((1+'1 Données d''entrée'!$C$332)^'1 Données d''entrée'!$C$333-1),0))","v":0},{"$f":"IF(H805<'1 Données d''entrée'!$C$334+1+$B917,0,IF(H805<'1 Données d''entrée'!$C$333+'1 Données d''entrée'!$C$334+1+$B917,$F911*('1 Données d''entrée'!$C$332*(1+'1 Données d''entrée'!$C$332)^'1 Données d''entrée'!$C$333)/((1+'1 Données d''entrée'!$C$332)^'1 Données d''entrée'!$C$333-1),0))","v":0},{"$f":"IF(I805<'1 Données d''entrée'!$C$334+1+$B917,0,IF(I805<'1 Données d''entrée'!$C$333+'1 Données d''entrée'!$C$334+1+$B917,$F911*('1 Données d''entrée'!$C$332*(1+'1 Données d''entrée'!$C$332)^'1 Données d''entrée'!$C$333)/((1+'1 Données d''entrée'!$C$332)^'1 Données d''entrée'!$C$333-1),0))","v":0},{"$f":"IF(J805<'1 Données d''entrée'!$C$334+1+$B917,0,IF(J805<'1 Données d''entrée'!$C$333+'1 Données d''entrée'!$C$334+1+$B917,$F911*('1 Données d''entrée'!$C$332*(1+'1 Données d''entrée'!$C$332)^'1 Données d''entrée'!$C$333)/((1+'1 Données d''entrée'!$C$332)^'1 Données d''entrée'!$C$333-1),0))","v":0},{"$f":"IF(K805<'1 Données d''entrée'!$C$334+1+$B917,0,IF(K805<'1 Données d''entrée'!$C$333+'1 Données d''entrée'!$C$334+1+$B917,$F911*('1 Données d''entrée'!$C$332*(1+'1 Données d''entrée'!$C$332)^'1 Données d''entrée'!$C$333)/((1+'1 Données d''entrée'!$C$332)^'1 Données d''entrée'!$C$333-1),0))","v":0},{"$f":"IF(L805<'1 Données d''entrée'!$C$334+1+$B917,0,IF(L805<'1 Données d''entrée'!$C$333+'1 Données d''entrée'!$C$334+1+$B917,$F911*('1 Données d''entrée'!$C$332*(1+'1 Données d''entrée'!$C$332)^'1 Données d''entrée'!$C$333)/((1+'1 Données d''entrée'!$C$332)^'1 Données d''entrée'!$C$333-1),0))","v":0},{"$f":"IF(M805<'1 Données d''entrée'!$C$334+1+$B917,0,IF(M805<'1 Données d''entrée'!$C$333+'1 Données d''entrée'!$C$334+1+$B917,$F911*('1 Données d''entrée'!$C$332*(1+'1 Données d''entrée'!$C$332)^'1 Données d''entrée'!$C$333)/((1+'1 Données d''entrée'!$C$332)^'1 Données d''entrée'!$C$333-1),0))","v":0},{"$f":"IF(N805<'1 Données d''entrée'!$C$334+1+$B917,0,IF(N805<'1 Données d''entrée'!$C$333+'1 Données d''entrée'!$C$334+1+$B917,$F911*('1 Données d''entrée'!$C$332*(1+'1 Données d''entrée'!$C$332)^'1 Données d''entrée'!$C$333)/((1+'1 Données d''entrée'!$C$332)^'1 Données d''entrée'!$C$333-1),0))","v":0},{"$f":"IF(O805<'1 Données d''entrée'!$C$334+1+$B917,0,IF(O805<'1 Données d''entrée'!$C$333+'1 Données d''entrée'!$C$334+1+$B917,$F911*('1 Données d''entrée'!$C$332*(1+'1 Données d''entrée'!$C$332)^'1 Données d''entrée'!$C$333)/((1+'1 Données d''entrée'!$C$332)^'1 Données d''entrée'!$C$333-1),0))","v":0},{"$f":"IF(P805<'1 Données d''entrée'!$C$334+1+$B917,0,IF(P805<'1 Données d''entrée'!$C$333+'1 Données d''entrée'!$C$334+1+$B917,$F911*('1 Données d''entrée'!$C$332*(1+'1 Données d''entrée'!$C$332)^'1 Données d''entrée'!$C$333)/((1+'1 Données d''entrée'!$C$332)^'1 Données d''entrée'!$C$333-1),0))","v":0},{"$f":"IF(Q805<'1 Données d''entrée'!$C$334+1+$B917,0,IF(Q805<'1 Données d''entrée'!$C$333+'1 Données d''entrée'!$C$334+1+$B917,$F911*('1 Données d''entrée'!$C$332*(1+'1 Données d''entrée'!$C$332)^'1 Données d''entrée'!$C$333)/((1+'1 Données d''entrée'!$C$332)^'1 Données d''entrée'!$C$333-1),0))","v":0},{"$f":"IF(R805<'1 Données d''entrée'!$C$334+1+$B917,0,IF(R805<'1 Données d''entrée'!$C$333+'1 Données d''entrée'!$C$334+1+$B917,$F911*('1 Données d''entrée'!$C$332*(1+'1 Données d''entrée'!$C$332)^'1 Données d''entrée'!$C$333)/((1+'1 Données d''entrée'!$C$332)^'1 Données d''entrée'!$C$333-1),0))","v":0},{"$f":"IF(S805<'1 Données d''entrée'!$C$334+1+$B917,0,IF(S805<'1 Données d''entrée'!$C$333+'1 Données d''entrée'!$C$334+1+$B917,$F911*('1 Données d''entrée'!$C$332*(1+'1 Données d''entrée'!$C$332)^'1 Données d''entrée'!$C$333)/((1+'1 Données d''entrée'!$C$332)^'1 Données d''entrée'!$C$333-1),0))","v":0},{"$f":"IF(T805<'1 Données d''entrée'!$C$334+1+$B917,0,IF(T805<'1 Données d''entrée'!$C$333+'1 Données d''entrée'!$C$334+1+$B917,$F911*('1 Données d''entrée'!$C$332*(1+'1 Données d''entrée'!$C$332)^'1 Données d''entrée'!$C$333)/((1+'1 Données d''entrée'!$C$332)^'1 Données d''entrée'!$C$333-1),0))","v":0},{"$f":"IF(U805<'1 Données d''entrée'!$C$334+1+$B917,0,IF(U805<'1 Données d''entrée'!$C$333+'1 Données d''entrée'!$C$334+1+$B917,$F911*('1 Données d''entrée'!$C$332*(1+'1 Données d''entrée'!$C$332)^'1 Données d''entrée'!$C$333)/((1+'1 Données d''entrée'!$C$332)^'1 Données d''entrée'!$C$333-1),0))","v":0},{"$f":"IF(V805<'1 Données d''entrée'!$C$334+1+$B917,0,IF(V805<'1 Données d''entrée'!$C$333+'1 Données d''entrée'!$C$334+1+$B917,$F911*('1 Données d''entrée'!$C$332*(1+'1 Données d''entrée'!$C$332)^'1 Données d''entrée'!$C$333)/((1+'1 Données d''entrée'!$C$332)^'1 Données d''entrée'!$C$333-1),0))","v":0}]
[null,5,{"$f":"IF(C$54<'1 Données d''entrée'!$C$334+1+$B918,0,IF(C$54<'1 Données d''entrée'!$C$333+'1 Données d''entrée'!$C$334+1+$B918,$G$160*('1 Données d''entrée'!$C$332*(1+'1 Données d''entrée'!$C$332)^'1 Données d''entrée'!$C$333)/((1+'1 Données d''entrée'!$C$332)^'1 Données d''entrée'!$C$333-1),0))","v":0},{"$f":"IF(D805<'1 Données d''entrée'!$C$334+1+$B918,0,IF(D805<'1 Données d''entrée'!$C$333+'1 Données d''entrée'!$C$334+1+$B918,$G911*('1 Données d''entrée'!$C$332*(1+'1 Données d''entrée'!$C$332)^'1 Données d''entrée'!$C$333)/((1+'1 Données d''entrée'!$C$332)^'1 Données d''entrée'!$C$333-1),0))","v":0},{"$f":"IF(E805<'1 Données d''entrée'!$C$334+1+$B918,0,IF(E805<'1 Données d''entrée'!$C$333+'1 Données d''entrée'!$C$334+1+$B918,$G911*('1 Données d''entrée'!$C$332*(1+'1 Données d''entrée'!$C$332)^'1 Données d''entrée'!$C$333)/((1+'1 Données d''entrée'!$C$332)^'1 Données d''entrée'!$C$333-1),0))","v":0},{"$f":"IF(F805<'1 Données d''entrée'!$C$334+1+$B918,0,IF(F805<'1 Données d''entrée'!$C$333+'1 Données d''entrée'!$C$334+1+$B918,$G911*('1 Données d''entrée'!$C$332*(1+'1 Données d''entrée'!$C$332)^'1 Données d''entrée'!$C$333)/((1+'1 Données d''entrée'!$C$332)^'1 Données d''entrée'!$C$333-1),0))","v":0},{"$f":"IF(G805<'1 Données d''entrée'!$C$334+1+$B918,0,IF(G805<'1 Données d''entrée'!$C$333+'1 Données d''entrée'!$C$334+1+$B918,$G911*('1 Données d''entrée'!$C$332*(1+'1 Données d''entrée'!$C$332)^'1 Données d''entrée'!$C$333)/((1+'1 Données d''entrée'!$C$332)^'1 Données d''entrée'!$C$333-1),0))","v":0},{"$f":"IF(H805<'1 Données d''entrée'!$C$334+1+$B918,0,IF(H805<'1 Données d''entrée'!$C$333+'1 Données d''entrée'!$C$334+1+$B918,$G911*('1 Données d''entrée'!$C$332*(1+'1 Données d''entrée'!$C$332)^'1 Données d''entrée'!$C$333)/((1+'1 Données d''entrée'!$C$332)^'1 Données d''entrée'!$C$333-1),0))","v":0},{"$f":"IF(I805<'1 Données d''entrée'!$C$334+1+$B918,0,IF(I805<'1 Données d''entrée'!$C$333+'1 Données d''entrée'!$C$334+1+$B918,$G911*('1 Données d''entrée'!$C$332*(1+'1 Données d''entrée'!$C$332)^'1 Données d''entrée'!$C$333)/((1+'1 Données d''entrée'!$C$332)^'1 Données d''entrée'!$C$333-1),0))","v":0},{"$f":"IF(J805<'1 Données d''entrée'!$C$334+1+$B918,0,IF(J805<'1 Données d''entrée'!$C$333+'1 Données d''entrée'!$C$334+1+$B918,$G911*('1 Données d''entrée'!$C$332*(1+'1 Données d''entrée'!$C$332)^'1 Données d''entrée'!$C$333)/((1+'1 Données d''entrée'!$C$332)^'1 Données d''entrée'!$C$333-1),0))","v":0},{"$f":"IF(K805<'1 Données d''entrée'!$C$334+1+$B918,0,IF(K805<'1 Données d''entrée'!$C$333+'1 Données d''entrée'!$C$334+1+$B918,$G911*('1 Données d''entrée'!$C$332*(1+'1 Données d''entrée'!$C$332)^'1 Données d''entrée'!$C$333)/((1+'1 Données d''entrée'!$C$332)^'1 Données d''entrée'!$C$333-1),0))","v":0},{"$f":"IF(L805<'1 Données d''entrée'!$C$334+1+$B918,0,IF(L805<'1 Données d''entrée'!$C$333+'1 Données d''entrée'!$C$334+1+$B918,$G911*('1 Données d''entrée'!$C$332*(1+'1 Données d''entrée'!$C$332)^'1 Données d''entrée'!$C$333)/((1+'1 Données d''entrée'!$C$332)^'1 Données d''entrée'!$C$333-1),0))","v":0},{"$f":"IF(M805<'1 Données d''entrée'!$C$334+1+$B918,0,IF(M805<'1 Données d''entrée'!$C$333+'1 Données d''entrée'!$C$334+1+$B918,$G911*('1 Données d''entrée'!$C$332*(1+'1 Données d''entrée'!$C$332)^'1 Données d''entrée'!$C$333)/((1+'1 Données d''entrée'!$C$332)^'1 Données d''entrée'!$C$333-1),0))","v":0},{"$f":"IF(N805<'1 Données d''entrée'!$C$334+1+$B918,0,IF(N805<'1 Données d''entrée'!$C$333+'1 Données d''entrée'!$C$334+1+$B918,$G911*('1 Données d''entrée'!$C$332*(1+'1 Données d''entrée'!$C$332)^'1 Données d''entrée'!$C$333)/((1+'1 Données d''entrée'!$C$332)^'1 Données d''entrée'!$C$333-1),0))","v":0},{"$f":"IF(O805<'1 Données d''entrée'!$C$334+1+$B918,0,IF(O805<'1 Données d''entrée'!$C$333+'1 Données d''entrée'!$C$334+1+$B918,$G911*('1 Données d''entrée'!$C$332*(1+'1 Données d''entrée'!$C$332)^'1 Données d''entrée'!$C$333)/((1+'1 Données d''entrée'!$C$332)^'1 Données d''entrée'!$C$333-1),0))","v":0},{"$f":"IF(P805<'1 Données d''entrée'!$C$334+1+$B918,0,IF(P805<'1 Données d''entrée'!$C$333+'1 Données d''entrée'!$C$334+1+$B918,$G911*('1 Données d''entrée'!$C$332*(1+'1 Données d''entrée'!$C$332)^'1 Données d''entrée'!$C$333)/((1+'1 Données d''entrée'!$C$332)^'1 Données d''entrée'!$C$333-1),0))","v":0},{"$f":"IF(Q805<'1 Données d''entrée'!$C$334+1+$B918,0,IF(Q805<'1 Données d''entrée'!$C$333+'1 Données d''entrée'!$C$334+1+$B918,$G911*('1 Données d''entrée'!$C$332*(1+'1 Données d''entrée'!$C$332)^'1 Données d''entrée'!$C$333)/((1+'1 Données d''entrée'!$C$332)^'1 Données d''entrée'!$C$333-1),0))","v":0},{"$f":"IF(R805<'1 Données d''entrée'!$C$334+1+$B918,0,IF(R805<'1 Données d''entrée'!$C$333+'1 Données d''entrée'!$C$334+1+$B918,$G911*('1 Données d''entrée'!$C$332*(1+'1 Données d''entrée'!$C$332)^'1 Données d''entrée'!$C$333)/((1+'1 Données d''entrée'!$C$332)^'1 Données d''entrée'!$C$333-1),0))","v":0},{"$f":"IF(S805<'1 Données d''entrée'!$C$334+1+$B918,0,IF(S805<'1 Données d''entrée'!$C$333+'1 Données d''entrée'!$C$334+1+$B918,$G911*('1 Données d''entrée'!$C$332*(1+'1 Données d''entrée'!$C$332)^'1 Données d''entrée'!$C$333)/((1+'1 Données d''entrée'!$C$332)^'1 Données d''entrée'!$C$333-1),0))","v":0},{"$f":"IF(T805<'1 Données d''entrée'!$C$334+1+$B918,0,IF(T805<'1 Données d''entrée'!$C$333+'1 Données d''entrée'!$C$334+1+$B918,$G911*('1 Données d''entrée'!$C$332*(1+'1 Données d''entrée'!$C$332)^'1 Données d''entrée'!$C$333)/((1+'1 Données d''entrée'!$C$332)^'1 Données d''entrée'!$C$333-1),0))","v":0},{"$f":"IF(U805<'1 Données d''entrée'!$C$334+1+$B918,0,IF(U805<'1 Données d''entrée'!$C$333+'1 Données d''entrée'!$C$334+1+$B918,$G911*('1 Données d''entrée'!$C$332*(1+'1 Données d''entrée'!$C$332)^'1 Données d''entrée'!$C$333)/((1+'1 Données d''entrée'!$C$332)^'1 Données d''entrée'!$C$333-1),0))","v":0},{"$f":"IF(V805<'1 Données d''entrée'!$C$334+1+$B918,0,IF(V805<'1 Données d''entrée'!$C$333+'1 Données d''entrée'!$C$334+1+$B918,$G911*('1 Données d''entrée'!$C$332*(1+'1 Données d''entrée'!$C$332)^'1 Données d''entrée'!$C$333)/((1+'1 Données d''entrée'!$C$332)^'1 Données d''entrée'!$C$333-1),0))","v":0}]
[null,6,{"$f":"IF(C$54<'1 Données d''entrée'!$C$334+1+$B919,0,IF(C$54<'1 Données d''entrée'!$C$333+'1 Données d''entrée'!$C$334+1+$B919,$H$160*('1 Données d''entrée'!$C$332*(1+'1 Données d''entrée'!$C$332)^'1 Données d''entrée'!$C$333)/((1+'1 Données d''entrée'!$C$332)^'1 Données d''entrée'!$C$333-1),0))","v":0},{"$f":"IF(D805<'1 Données d''entrée'!$C$334+1+$B919,0,IF(D805<'1 Données d''entrée'!$C$333+'1 Données d''entrée'!$C$334+1+$B919,$H911*('1 Données d''entrée'!$C$332*(1+'1 Données d''entrée'!$C$332)^'1 Données d''entrée'!$C$333)/((1+'1 Données d''entrée'!$C$332)^'1 Données d''entrée'!$C$333-1),0))","v":0},{"$f":"IF(E805<'1 Données d''entrée'!$C$334+1+$B919,0,IF(E805<'1 Données d''entrée'!$C$333+'1 Données d''entrée'!$C$334+1+$B919,$H911*('1 Données d''entrée'!$C$332*(1+'1 Données d''entrée'!$C$332)^'1 Données d''entrée'!$C$333)/((1+'1 Données d''entrée'!$C$332)^'1 Données d''entrée'!$C$333-1),0))","v":0},{"$f":"IF(F805<'1 Données d''entrée'!$C$334+1+$B919,0,IF(F805<'1 Données d''entrée'!$C$333+'1 Données d''entrée'!$C$334+1+$B919,$H911*('1 Données d''entrée'!$C$332*(1+'1 Données d''entrée'!$C$332)^'1 Données d''entrée'!$C$333)/((1+'1 Données d''entrée'!$C$332)^'1 Données d''entrée'!$C$333-1),0))","v":0},{"$f":"IF(G805<'1 Données d''entrée'!$C$334+1+$B919,0,IF(G805<'1 Données d''entrée'!$C$333+'1 Données d''entrée'!$C$334+1+$B919,$H911*('1 Données d''entrée'!$C$332*(1+'1 Données d''entrée'!$C$332)^'1 Données d''entrée'!$C$333)/((1+'1 Données d''entrée'!$C$332)^'1 Données d''entrée'!$C$333-1),0))","v":0},{"$f":"IF(H805<'1 Données d''entrée'!$C$334+1+$B919,0,IF(H805<'1 Données d''entrée'!$C$333+'1 Données d''entrée'!$C$334+1+$B919,$H911*('1 Données d''entrée'!$C$332*(1+'1 Données d''entrée'!$C$332)^'1 Données d''entrée'!$C$333)/((1+'1 Données d''entrée'!$C$332)^'1 Données d''entrée'!$C$333-1),0))","v":0},{"$f":"IF(I805<'1 Données d''entrée'!$C$334+1+$B919,0,IF(I805<'1 Données d''entrée'!$C$333+'1 Données d''entrée'!$C$334+1+$B919,$H911*('1 Données d''entrée'!$C$332*(1+'1 Données d''entrée'!$C$332)^'1 Données d''entrée'!$C$333)/((1+'1 Données d''entrée'!$C$332)^'1 Données d''entrée'!$C$333-1),0))","v":0},{"$f":"IF(J805<'1 Données d''entrée'!$C$334+1+$B919,0,IF(J805<'1 Données d''entrée'!$C$333+'1 Données d''entrée'!$C$334+1+$B919,$H911*('1 Données d''entrée'!$C$332*(1+'1 Données d''entrée'!$C$332)^'1 Données d''entrée'!$C$333)/((1+'1 Données d''entrée'!$C$332)^'1 Données d''entrée'!$C$333-1),0))","v":0},{"$f":"IF(K805<'1 Données d''entrée'!$C$334+1+$B919,0,IF(K805<'1 Données d''entrée'!$C$333+'1 Données d''entrée'!$C$334+1+$B919,$H911*('1 Données d''entrée'!$C$332*(1+'1 Données d''entrée'!$C$332)^'1 Données d''entrée'!$C$333)/((1+'1 Données d''entrée'!$C$332)^'1 Données d''entrée'!$C$333-1),0))","v":0},{"$f":"IF(L805<'1 Données d''entrée'!$C$334+1+$B919,0,IF(L805<'1 Données d''entrée'!$C$333+'1 Données d''entrée'!$C$334+1+$B919,$H911*('1 Données d''entrée'!$C$332*(1+'1 Données d''entrée'!$C$332)^'1 Données d''entrée'!$C$333)/((1+'1 Données d''entrée'!$C$332)^'1 Données d''entrée'!$C$333-1),0))","v":0},{"$f":"IF(M805<'1 Données d''entrée'!$C$334+1+$B919,0,IF(M805<'1 Données d''entrée'!$C$333+'1 Données d''entrée'!$C$334+1+$B919,$H911*('1 Données d''entrée'!$C$332*(1+'1 Données d''entrée'!$C$332)^'1 Données d''entrée'!$C$333)/((1+'1 Données d''entrée'!$C$332)^'1 Données d''entrée'!$C$333-1),0))","v":0},{"$f":"IF(N805<'1 Données d''entrée'!$C$334+1+$B919,0,IF(N805<'1 Données d''entrée'!$C$333+'1 Données d''entrée'!$C$334+1+$B919,$H911*('1 Données d''entrée'!$C$332*(1+'1 Données d''entrée'!$C$332)^'1 Données d''entrée'!$C$333)/((1+'1 Données d''entrée'!$C$332)^'1 Données d''entrée'!$C$333-1),0))","v":0},{"$f":"IF(O805<'1 Données d''entrée'!$C$334+1+$B919,0,IF(O805<'1 Données d''entrée'!$C$333+'1 Données d''entrée'!$C$334+1+$B919,$H911*('1 Données d''entrée'!$C$332*(1+'1 Données d''entrée'!$C$332)^'1 Données d''entrée'!$C$333)/((1+'1 Données d''entrée'!$C$332)^'1 Données d''entrée'!$C$333-1),0))","v":0},{"$f":"IF(P805<'1 Données d''entrée'!$C$334+1+$B919,0,IF(P805<'1 Données d''entrée'!$C$333+'1 Données d''entrée'!$C$334+1+$B919,$H911*('1 Données d''entrée'!$C$332*(1+'1 Données d''entrée'!$C$332)^'1 Données d''entrée'!$C$333)/((1+'1 Données d''entrée'!$C$332)^'1 Données d''entrée'!$C$333-1),0))","v":0},{"$f":"IF(Q805<'1 Données d''entrée'!$C$334+1+$B919,0,IF(Q805<'1 Données d''entrée'!$C$333+'1 Données d''entrée'!$C$334+1+$B919,$H911*('1 Données d''entrée'!$C$332*(1+'1 Données d''entrée'!$C$332)^'1 Données d''entrée'!$C$333)/((1+'1 Données d''entrée'!$C$332)^'1 Données d''entrée'!$C$333-1),0))","v":0},{"$f":"IF(R805<'1 Données d''entrée'!$C$334+1+$B919,0,IF(R805<'1 Données d''entrée'!$C$333+'1 Données d''entrée'!$C$334+1+$B919,$H911*('1 Données d''entrée'!$C$332*(1+'1 Données d''entrée'!$C$332)^'1 Données d''entrée'!$C$333)/((1+'1 Données d''entrée'!$C$332)^'1 Données d''entrée'!$C$333-1),0))","v":0},{"$f":"IF(S805<'1 Données d''entrée'!$C$334+1+$B919,0,IF(S805<'1 Données d''entrée'!$C$333+'1 Données d''entrée'!$C$334+1+$B919,$H911*('1 Données d''entrée'!$C$332*(1+'1 Données d''entrée'!$C$332)^'1 Données d''entrée'!$C$333)/((1+'1 Données d''entrée'!$C$332)^'1 Données d''entrée'!$C$333-1),0))","v":0},{"$f":"IF(T805<'1 Données d''entrée'!$C$334+1+$B919,0,IF(T805<'1 Données d''entrée'!$C$333+'1 Données d''entrée'!$C$334+1+$B919,$H911*('1 Données d''entrée'!$C$332*(1+'1 Données d''entrée'!$C$332)^'1 Données d''entrée'!$C$333)/((1+'1 Données d''entrée'!$C$332)^'1 Données d''entrée'!$C$333-1),0))","v":0},{"$f":"IF(U805<'1 Données d''entrée'!$C$334+1+$B919,0,IF(U805<'1 Données d''entrée'!$C$333+'1 Données d''entrée'!$C$334+1+$B919,$H911*('1 Données d''entrée'!$C$332*(1+'1 Données d''entrée'!$C$332)^'1 Données d''entrée'!$C$333)/((1+'1 Données d''entrée'!$C$332)^'1 Données d''entrée'!$C$333-1),0))","v":0},{"$f":"IF(V805<'1 Données d''entrée'!$C$334+1+$B919,0,IF(V805<'1 Données d''entrée'!$C$333+'1 Données d''entrée'!$C$334+1+$B919,$H911*('1 Données d''entrée'!$C$332*(1+'1 Données d''entrée'!$C$332)^'1 Données d''entrée'!$C$333)/((1+'1 Données d''entrée'!$C$332)^'1 Données d''entrée'!$C$333-1),0))","v":0}]
[null,7,{"$f":"IF(C$54<'1 Données d''entrée'!$C$334+1+$B920,0,IF(C$54<'1 Données d''entrée'!$C$333+'1 Données d''entrée'!$C$334+1+$B920,$I$160*('1 Données d''entrée'!$C$332*(1+'1 Données d''entrée'!$C$332)^'1 Données d''entrée'!$C$333)/((1+'1 Données d''entrée'!$C$332)^'1 Données d''entrée'!$C$333-1),0))","v":0},{"$f":"IF(D805<'1 Données d''entrée'!$C$334+1+$B920,0,IF(D805<'1 Données d''entrée'!$C$333+'1 Données d''entrée'!$C$334+1+$B920,$I911*('1 Données d''entrée'!$C$332*(1+'1 Données d''entrée'!$C$332)^'1 Données d''entrée'!$C$333)/((1+'1 Données d''entrée'!$C$332)^'1 Données d''entrée'!$C$333-1),0))","v":0},{"$f":"IF(E805<'1 Données d''entrée'!$C$334+1+$B920,0,IF(E805<'1 Données d''entrée'!$C$333+'1 Données d''entrée'!$C$334+1+$B920,$I911*('1 Données d''entrée'!$C$332*(1+'1 Données d''entrée'!$C$332)^'1 Données d''entrée'!$C$333)/((1+'1 Données d''entrée'!$C$332)^'1 Données d''entrée'!$C$333-1),0))","v":0},{"$f":"IF(F805<'1 Données d''entrée'!$C$334+1+$B920,0,IF(F805<'1 Données d''entrée'!$C$333+'1 Données d''entrée'!$C$334+1+$B920,$I911*('1 Données d''entrée'!$C$332*(1+'1 Données d''entrée'!$C$332)^'1 Données d''entrée'!$C$333)/((1+'1 Données d''entrée'!$C$332)^'1 Données d''entrée'!$C$333-1),0))","v":0},{"$f":"IF(G805<'1 Données d''entrée'!$C$334+1+$B920,0,IF(G805<'1 Données d''entrée'!$C$333+'1 Données d''entrée'!$C$334+1+$B920,$I911*('1 Données d''entrée'!$C$332*(1+'1 Données d''entrée'!$C$332)^'1 Données d''entrée'!$C$333)/((1+'1 Données d''entrée'!$C$332)^'1 Données d''entrée'!$C$333-1),0))","v":0},{"$f":"IF(H805<'1 Données d''entrée'!$C$334+1+$B920,0,IF(H805<'1 Données d''entrée'!$C$333+'1 Données d''entrée'!$C$334+1+$B920,$I911*('1 Données d''entrée'!$C$332*(1+'1 Données d''entrée'!$C$332)^'1 Données d''entrée'!$C$333)/((1+'1 Données d''entrée'!$C$332)^'1 Données d''entrée'!$C$333-1),0))","v":0},{"$f":"IF(I805<'1 Données d''entrée'!$C$334+1+$B920,0,IF(I805<'1 Données d''entrée'!$C$333+'1 Données d''entrée'!$C$334+1+$B920,$I911*('1 Données d''entrée'!$C$332*(1+'1 Données d''entrée'!$C$332)^'1 Données d''entrée'!$C$333)/((1+'1 Données d''entrée'!$C$332)^'1 Données d''entrée'!$C$333-1),0))","v":0},{"$f":"IF(J805<'1 Données d''entrée'!$C$334+1+$B920,0,IF(J805<'1 Données d''entrée'!$C$333+'1 Données d''entrée'!$C$334+1+$B920,$I911*('1 Données d''entrée'!$C$332*(1+'1 Données d''entrée'!$C$332)^'1 Données d''entrée'!$C$333)/((1+'1 Données d''entrée'!$C$332)^'1 Données d''entrée'!$C$333-1),0))","v":0},{"$f":"IF(K805<'1 Données d''entrée'!$C$334+1+$B920,0,IF(K805<'1 Données d''entrée'!$C$333+'1 Données d''entrée'!$C$334+1+$B920,$I911*('1 Données d''entrée'!$C$332*(1+'1 Données d''entrée'!$C$332)^'1 Données d''entrée'!$C$333)/((1+'1 Données d''entrée'!$C$332)^'1 Données d''entrée'!$C$333-1),0))","v":0},{"$f":"IF(L805<'1 Données d''entrée'!$C$334+1+$B920,0,IF(L805<'1 Données d''entrée'!$C$333+'1 Données d''entrée'!$C$334+1+$B920,$I911*('1 Données d''entrée'!$C$332*(1+'1 Données d''entrée'!$C$332)^'1 Données d''entrée'!$C$333)/((1+'1 Données d''entrée'!$C$332)^'1 Données d''entrée'!$C$333-1),0))","v":0},{"$f":"IF(M805<'1 Données d''entrée'!$C$334+1+$B920,0,IF(M805<'1 Données d''entrée'!$C$333+'1 Données d''entrée'!$C$334+1+$B920,$I911*('1 Données d''entrée'!$C$332*(1+'1 Données d''entrée'!$C$332)^'1 Données d''entrée'!$C$333)/((1+'1 Données d''entrée'!$C$332)^'1 Données d''entrée'!$C$333-1),0))","v":0},{"$f":"IF(N805<'1 Données d''entrée'!$C$334+1+$B920,0,IF(N805<'1 Données d''entrée'!$C$333+'1 Données d''entrée'!$C$334+1+$B920,$I911*('1 Données d''entrée'!$C$332*(1+'1 Données d''entrée'!$C$332)^'1 Données d''entrée'!$C$333)/((1+'1 Données d''entrée'!$C$332)^'1 Données d''entrée'!$C$333-1),0))","v":0},{"$f":"IF(O805<'1 Données d''entrée'!$C$334+1+$B920,0,IF(O805<'1 Données d''entrée'!$C$333+'1 Données d''entrée'!$C$334+1+$B920,$I911*('1 Données d''entrée'!$C$332*(1+'1 Données d''entrée'!$C$332)^'1 Données d''entrée'!$C$333)/((1+'1 Données d''entrée'!$C$332)^'1 Données d''entrée'!$C$333-1),0))","v":0},{"$f":"IF(P805<'1 Données d''entrée'!$C$334+1+$B920,0,IF(P805<'1 Données d''entrée'!$C$333+'1 Données d''entrée'!$C$334+1+$B920,$I911*('1 Données d''entrée'!$C$332*(1+'1 Données d''entrée'!$C$332)^'1 Données d''entrée'!$C$333)/((1+'1 Données d''entrée'!$C$332)^'1 Données d''entrée'!$C$333-1),0))","v":0},{"$f":"IF(Q805<'1 Données d''entrée'!$C$334+1+$B920,0,IF(Q805<'1 Données d''entrée'!$C$333+'1 Données d''entrée'!$C$334+1+$B920,$I911*('1 Données d''entrée'!$C$332*(1+'1 Données d''entrée'!$C$332)^'1 Données d''entrée'!$C$333)/((1+'1 Données d''entrée'!$C$332)^'1 Données d''entrée'!$C$333-1),0))","v":0},{"$f":"IF(R805<'1 Données d''entrée'!$C$334+1+$B920,0,IF(R805<'1 Données d''entrée'!$C$333+'1 Données d''entrée'!$C$334+1+$B920,$I911*('1 Données d''entrée'!$C$332*(1+'1 Données d''entrée'!$C$332)^'1 Données d''entrée'!$C$333)/((1+'1 Données d''entrée'!$C$332)^'1 Données d''entrée'!$C$333-1),0))","v":0},{"$f":"IF(S805<'1 Données d''entrée'!$C$334+1+$B920,0,IF(S805<'1 Données d''entrée'!$C$333+'1 Données d''entrée'!$C$334+1+$B920,$I911*('1 Données d''entrée'!$C$332*(1+'1 Données d''entrée'!$C$332)^'1 Données d''entrée'!$C$333)/((1+'1 Données d''entrée'!$C$332)^'1 Données d''entrée'!$C$333-1),0))","v":0},{"$f":"IF(T805<'1 Données d''entrée'!$C$334+1+$B920,0,IF(T805<'1 Données d''entrée'!$C$333+'1 Données d''entrée'!$C$334+1+$B920,$I911*('1 Données d''entrée'!$C$332*(1+'1 Données d''entrée'!$C$332)^'1 Données d''entrée'!$C$333)/((1+'1 Données d''entrée'!$C$332)^'1 Données d''entrée'!$C$333-1),0))","v":0},{"$f":"IF(U805<'1 Données d''entrée'!$C$334+1+$B920,0,IF(U805<'1 Données d''entrée'!$C$333+'1 Données d''entrée'!$C$334+1+$B920,$I911*('1 Données d''entrée'!$C$332*(1+'1 Données d''entrée'!$C$332)^'1 Données d''entrée'!$C$333)/((1+'1 Données d''entrée'!$C$332)^'1 Données d''entrée'!$C$333-1),0))","v":0},{"$f":"IF(V805<'1 Données d''entrée'!$C$334+1+$B920,0,IF(V805<'1 Données d''entrée'!$C$333+'1 Données d''entrée'!$C$334+1+$B920,$I911*('1 Données d''entrée'!$C$332*(1+'1 Données d''entrée'!$C$332)^'1 Données d''entrée'!$C$333)/((1+'1 Données d''entrée'!$C$332)^'1 Données d''entrée'!$C$333-1),0))","v":0}]
[null,8,{"$f":"IF(C$54<'1 Données d''entrée'!$C$334+1+$B921,0,IF(C$54<'1 Données d''entrée'!$C$333+'1 Données d''entrée'!$C$334+1+$B921,$J$160*('1 Données d''entrée'!$C$332*(1+'1 Données d''entrée'!$C$332)^'1 Données d''entrée'!$C$333)/((1+'1 Données d''entrée'!$C$332)^'1 Données d''entrée'!$C$333-1),0))","v":0},{"$f":"IF(D805<'1 Données d''entrée'!$C$334+1+$B921,0,IF(D805<'1 Données d''entrée'!$C$333+'1 Données d''entrée'!$C$334+1+$B921,$J911*('1 Données d''entrée'!$C$332*(1+'1 Données d''entrée'!$C$332)^'1 Données d''entrée'!$C$333)/((1+'1 Données d''entrée'!$C$332)^'1 Données d''entrée'!$C$333-1),0))","v":0},{"$f":"IF(E805<'1 Données d''entrée'!$C$334+1+$B921,0,IF(E805<'1 Données d''entrée'!$C$333+'1 Données d''entrée'!$C$334+1+$B921,$J911*('1 Données d''entrée'!$C$332*(1+'1 Données d''entrée'!$C$332)^'1 Données d''entrée'!$C$333)/((1+'1 Données d''entrée'!$C$332)^'1 Données d''entrée'!$C$333-1),0))","v":0},{"$f":"IF(F805<'1 Données d''entrée'!$C$334+1+$B921,0,IF(F805<'1 Données d''entrée'!$C$333+'1 Données d''entrée'!$C$334+1+$B921,$J911*('1 Données d''entrée'!$C$332*(1+'1 Données d''entrée'!$C$332)^'1 Données d''entrée'!$C$333)/((1+'1 Données d''entrée'!$C$332)^'1 Données d''entrée'!$C$333-1),0))","v":0},{"$f":"IF(G805<'1 Données d''entrée'!$C$334+1+$B921,0,IF(G805<'1 Données d''entrée'!$C$333+'1 Données d''entrée'!$C$334+1+$B921,$J911*('1 Données d''entrée'!$C$332*(1+'1 Données d''entrée'!$C$332)^'1 Données d''entrée'!$C$333)/((1+'1 Données d''entrée'!$C$332)^'1 Données d''entrée'!$C$333-1),0))","v":0},{"$f":"IF(H805<'1 Données d''entrée'!$C$334+1+$B921,0,IF(H805<'1 Données d''entrée'!$C$333+'1 Données d''entrée'!$C$334+1+$B921,$J911*('1 Données d''entrée'!$C$332*(1+'1 Données d''entrée'!$C$332)^'1 Données d''entrée'!$C$333)/((1+'1 Données d''entrée'!$C$332)^'1 Données d''entrée'!$C$333-1),0))","v":0},{"$f":"IF(I805<'1 Données d''entrée'!$C$334+1+$B921,0,IF(I805<'1 Données d''entrée'!$C$333+'1 Données d''entrée'!$C$334+1+$B921,$J911*('1 Données d''entrée'!$C$332*(1+'1 Données d''entrée'!$C$332)^'1 Données d''entrée'!$C$333)/((1+'1 Données d''entrée'!$C$332)^'1 Données d''entrée'!$C$333-1),0))","v":0},{"$f":"IF(J805<'1 Données d''entrée'!$C$334+1+$B921,0,IF(J805<'1 Données d''entrée'!$C$333+'1 Données d''entrée'!$C$334+1+$B921,$J911*('1 Données d''entrée'!$C$332*(1+'1 Données d''entrée'!$C$332)^'1 Données d''entrée'!$C$333)/((1+'1 Données d''entrée'!$C$332)^'1 Données d''entrée'!$C$333-1),0))","v":0},{"$f":"IF(K805<'1 Données d''entrée'!$C$334+1+$B921,0,IF(K805<'1 Données d''entrée'!$C$333+'1 Données d''entrée'!$C$334+1+$B921,$J911*('1 Données d''entrée'!$C$332*(1+'1 Données d''entrée'!$C$332)^'1 Données d''entrée'!$C$333)/((1+'1 Données d''entrée'!$C$332)^'1 Données d''entrée'!$C$333-1),0))","v":0},{"$f":"IF(L805<'1 Données d''entrée'!$C$334+1+$B921,0,IF(L805<'1 Données d''entrée'!$C$333+'1 Données d''entrée'!$C$334+1+$B921,$J911*('1 Données d''entrée'!$C$332*(1+'1 Données d''entrée'!$C$332)^'1 Données d''entrée'!$C$333)/((1+'1 Données d''entrée'!$C$332)^'1 Données d''entrée'!$C$333-1),0))","v":0},{"$f":"IF(M805<'1 Données d''entrée'!$C$334+1+$B921,0,IF(M805<'1 Données d''entrée'!$C$333+'1 Données d''entrée'!$C$334+1+$B921,$J911*('1 Données d''entrée'!$C$332*(1+'1 Données d''entrée'!$C$332)^'1 Données d''entrée'!$C$333)/((1+'1 Données d''entrée'!$C$332)^'1 Données d''entrée'!$C$333-1),0))","v":0},{"$f":"IF(N805<'1 Données d''entrée'!$C$334+1+$B921,0,IF(N805<'1 Données d''entrée'!$C$333+'1 Données d''entrée'!$C$334+1+$B921,$J911*('1 Données d''entrée'!$C$332*(1+'1 Données d''entrée'!$C$332)^'1 Données d''entrée'!$C$333)/((1+'1 Données d''entrée'!$C$332)^'1 Données d''entrée'!$C$333-1),0))","v":0},{"$f":"IF(O805<'1 Données d''entrée'!$C$334+1+$B921,0,IF(O805<'1 Données d''entrée'!$C$333+'1 Données d''entrée'!$C$334+1+$B921,$J911*('1 Données d''entrée'!$C$332*(1+'1 Données d''entrée'!$C$332)^'1 Données d''entrée'!$C$333)/((1+'1 Données d''entrée'!$C$332)^'1 Données d''entrée'!$C$333-1),0))","v":0},{"$f":"IF(P805<'1 Données d''entrée'!$C$334+1+$B921,0,IF(P805<'1 Données d''entrée'!$C$333+'1 Données d''entrée'!$C$334+1+$B921,$J911*('1 Données d''entrée'!$C$332*(1+'1 Données d''entrée'!$C$332)^'1 Données d''entrée'!$C$333)/((1+'1 Données d''entrée'!$C$332)^'1 Données d''entrée'!$C$333-1),0))","v":0},{"$f":"IF(Q805<'1 Données d''entrée'!$C$334+1+$B921,0,IF(Q805<'1 Données d''entrée'!$C$333+'1 Données d''entrée'!$C$334+1+$B921,$J911*('1 Données d''entrée'!$C$332*(1+'1 Données d''entrée'!$C$332)^'1 Données d''entrée'!$C$333)/((1+'1 Données d''entrée'!$C$332)^'1 Données d''entrée'!$C$333-1),0))","v":0},{"$f":"IF(R805<'1 Données d''entrée'!$C$334+1+$B921,0,IF(R805<'1 Données d''entrée'!$C$333+'1 Données d''entrée'!$C$334+1+$B921,$J911*('1 Données d''entrée'!$C$332*(1+'1 Données d''entrée'!$C$332)^'1 Données d''entrée'!$C$333)/((1+'1 Données d''entrée'!$C$332)^'1 Données d''entrée'!$C$333-1),0))","v":0},{"$f":"IF(S805<'1 Données d''entrée'!$C$334+1+$B921,0,IF(S805<'1 Données d''entrée'!$C$333+'1 Données d''entrée'!$C$334+1+$B921,$J911*('1 Données d''entrée'!$C$332*(1+'1 Données d''entrée'!$C$332)^'1 Données d''entrée'!$C$333)/((1+'1 Données d''entrée'!$C$332)^'1 Données d''entrée'!$C$333-1),0))","v":0},{"$f":"IF(T805<'1 Données d''entrée'!$C$334+1+$B921,0,IF(T805<'1 Données d''entrée'!$C$333+'1 Données d''entrée'!$C$334+1+$B921,$J911*('1 Données d''entrée'!$C$332*(1+'1 Données d''entrée'!$C$332)^'1 Données d''entrée'!$C$333)/((1+'1 Données d''entrée'!$C$332)^'1 Données d''entrée'!$C$333-1),0))","v":0},{"$f":"IF(U805<'1 Données d''entrée'!$C$334+1+$B921,0,IF(U805<'1 Données d''entrée'!$C$333+'1 Données d''entrée'!$C$334+1+$B921,$J911*('1 Données d''entrée'!$C$332*(1+'1 Données d''entrée'!$C$332)^'1 Données d''entrée'!$C$333)/((1+'1 Données d''entrée'!$C$332)^'1 Données d''entrée'!$C$333-1),0))","v":0},{"$f":"IF(V805<'1 Données d''entrée'!$C$334+1+$B921,0,IF(V805<'1 Données d''entrée'!$C$333+'1 Données d''entrée'!$C$334+1+$B921,$J911*('1 Données d''entrée'!$C$332*(1+'1 Données d''entrée'!$C$332)^'1 Données d''entrée'!$C$333)/((1+'1 Données d''entrée'!$C$332)^'1 Données d''entrée'!$C$333-1),0))","v":0}]
[null,9,{"$f":"IF(C$54<'1 Données d''entrée'!$C$334+1+$B922,0,IF(C$54<'1 Données d''entrée'!$C$333+'1 Données d''entrée'!$C$334+1+$B922,$K$160*('1 Données d''entrée'!$C$332*(1+'1 Données d''entrée'!$C$332)^'1 Données d''entrée'!$C$333)/((1+'1 Données d''entrée'!$C$332)^'1 Données d''entrée'!$C$333-1),0))","v":0},{"$f":"IF(D805<'1 Données d''entrée'!$C$334+1+$B922,0,IF(D805<'1 Données d''entrée'!$C$333+'1 Données d''entrée'!$C$334+1+$B922,$K911*('1 Données d''entrée'!$C$332*(1+'1 Données d''entrée'!$C$332)^'1 Données d''entrée'!$C$333)/((1+'1 Données d''entrée'!$C$332)^'1 Données d''entrée'!$C$333-1),0))","v":0},{"$f":"IF(E805<'1 Données d''entrée'!$C$334+1+$B922,0,IF(E805<'1 Données d''entrée'!$C$333+'1 Données d''entrée'!$C$334+1+$B922,$K911*('1 Données d''entrée'!$C$332*(1+'1 Données d''entrée'!$C$332)^'1 Données d''entrée'!$C$333)/((1+'1 Données d''entrée'!$C$332)^'1 Données d''entrée'!$C$333-1),0))","v":0},{"$f":"IF(F805<'1 Données d''entrée'!$C$334+1+$B922,0,IF(F805<'1 Données d''entrée'!$C$333+'1 Données d''entrée'!$C$334+1+$B922,$K911*('1 Données d''entrée'!$C$332*(1+'1 Données d''entrée'!$C$332)^'1 Données d''entrée'!$C$333)/((1+'1 Données d''entrée'!$C$332)^'1 Données d''entrée'!$C$333-1),0))","v":0},{"$f":"IF(G805<'1 Données d''entrée'!$C$334+1+$B922,0,IF(G805<'1 Données d''entrée'!$C$333+'1 Données d''entrée'!$C$334+1+$B922,$K911*('1 Données d''entrée'!$C$332*(1+'1 Données d''entrée'!$C$332)^'1 Données d''entrée'!$C$333)/((1+'1 Données d''entrée'!$C$332)^'1 Données d''entrée'!$C$333-1),0))","v":0},{"$f":"IF(H805<'1 Données d''entrée'!$C$334+1+$B922,0,IF(H805<'1 Données d''entrée'!$C$333+'1 Données d''entrée'!$C$334+1+$B922,$K911*('1 Données d''entrée'!$C$332*(1+'1 Données d''entrée'!$C$332)^'1 Données d''entrée'!$C$333)/((1+'1 Données d''entrée'!$C$332)^'1 Données d''entrée'!$C$333-1),0))","v":0},{"$f":"IF(I805<'1 Données d''entrée'!$C$334+1+$B922,0,IF(I805<'1 Données d''entrée'!$C$333+'1 Données d''entrée'!$C$334+1+$B922,$K911*('1 Données d''entrée'!$C$332*(1+'1 Données d''entrée'!$C$332)^'1 Données d''entrée'!$C$333)/((1+'1 Données d''entrée'!$C$332)^'1 Données d''entrée'!$C$333-1),0))","v":0},{"$f":"IF(J805<'1 Données d''entrée'!$C$334+1+$B922,0,IF(J805<'1 Données d''entrée'!$C$333+'1 Données d''entrée'!$C$334+1+$B922,$K911*('1 Données d''entrée'!$C$332*(1+'1 Données d''entrée'!$C$332)^'1 Données d''entrée'!$C$333)/((1+'1 Données d''entrée'!$C$332)^'1 Données d''entrée'!$C$333-1),0))","v":0},{"$f":"IF(K805<'1 Données d''entrée'!$C$334+1+$B922,0,IF(K805<'1 Données d''entrée'!$C$333+'1 Données d''entrée'!$C$334+1+$B922,$K911*('1 Données d''entrée'!$C$332*(1+'1 Données d''entrée'!$C$332)^'1 Données d''entrée'!$C$333)/((1+'1 Données d''entrée'!$C$332)^'1 Données d''entrée'!$C$333-1),0))","v":0},{"$f":"IF(L805<'1 Données d''entrée'!$C$334+1+$B922,0,IF(L805<'1 Données d''entrée'!$C$333+'1 Données d''entrée'!$C$334+1+$B922,$K911*('1 Données d''entrée'!$C$332*(1+'1 Données d''entrée'!$C$332)^'1 Données d''entrée'!$C$333)/((1+'1 Données d''entrée'!$C$332)^'1 Données d''entrée'!$C$333-1),0))","v":0},{"$f":"IF(M805<'1 Données d''entrée'!$C$334+1+$B922,0,IF(M805<'1 Données d''entrée'!$C$333+'1 Données d''entrée'!$C$334+1+$B922,$K911*('1 Données d''entrée'!$C$332*(1+'1 Données d''entrée'!$C$332)^'1 Données d''entrée'!$C$333)/((1+'1 Données d''entrée'!$C$332)^'1 Données d''entrée'!$C$333-1),0))","v":0},{"$f":"IF(N805<'1 Données d''entrée'!$C$334+1+$B922,0,IF(N805<'1 Données d''entrée'!$C$333+'1 Données d''entrée'!$C$334+1+$B922,$K911*('1 Données d''entrée'!$C$332*(1+'1 Données d''entrée'!$C$332)^'1 Données d''entrée'!$C$333)/((1+'1 Données d''entrée'!$C$332)^'1 Données d''entrée'!$C$333-1),0))","v":0},{"$f":"IF(O805<'1 Données d''entrée'!$C$334+1+$B922,0,IF(O805<'1 Données d''entrée'!$C$333+'1 Données d''entrée'!$C$334+1+$B922,$K911*('1 Données d''entrée'!$C$332*(1+'1 Données d''entrée'!$C$332)^'1 Données d''entrée'!$C$333)/((1+'1 Données d''entrée'!$C$332)^'1 Données d''entrée'!$C$333-1),0))","v":0},{"$f":"IF(P805<'1 Données d''entrée'!$C$334+1+$B922,0,IF(P805<'1 Données d''entrée'!$C$333+'1 Données d''entrée'!$C$334+1+$B922,$K911*('1 Données d''entrée'!$C$332*(1+'1 Données d''entrée'!$C$332)^'1 Données d''entrée'!$C$333)/((1+'1 Données d''entrée'!$C$332)^'1 Données d''entrée'!$C$333-1),0))","v":0},{"$f":"IF(Q805<'1 Données d''entrée'!$C$334+1+$B922,0,IF(Q805<'1 Données d''entrée'!$C$333+'1 Données d''entrée'!$C$334+1+$B922,$K911*('1 Données d''entrée'!$C$332*(1+'1 Données d''entrée'!$C$332)^'1 Données d''entrée'!$C$333)/((1+'1 Données d''entrée'!$C$332)^'1 Données d''entrée'!$C$333-1),0))","v":0},{"$f":"IF(R805<'1 Données d''entrée'!$C$334+1+$B922,0,IF(R805<'1 Données d''entrée'!$C$333+'1 Données d''entrée'!$C$334+1+$B922,$K911*('1 Données d''entrée'!$C$332*(1+'1 Données d''entrée'!$C$332)^'1 Données d''entrée'!$C$333)/((1+'1 Données d''entrée'!$C$332)^'1 Données d''entrée'!$C$333-1),0))","v":0},{"$f":"IF(S805<'1 Données d''entrée'!$C$334+1+$B922,0,IF(S805<'1 Données d''entrée'!$C$333+'1 Données d''entrée'!$C$334+1+$B922,$K911*('1 Données d''entrée'!$C$332*(1+'1 Données d''entrée'!$C$332)^'1 Données d''entrée'!$C$333)/((1+'1 Données d''entrée'!$C$332)^'1 Données d''entrée'!$C$333-1),0))","v":0},{"$f":"IF(T805<'1 Données d''entrée'!$C$334+1+$B922,0,IF(T805<'1 Données d''entrée'!$C$333+'1 Données d''entrée'!$C$334+1+$B922,$K911*('1 Données d''entrée'!$C$332*(1+'1 Données d''entrée'!$C$332)^'1 Données d''entrée'!$C$333)/((1+'1 Données d''entrée'!$C$332)^'1 Données d''entrée'!$C$333-1),0))","v":0},{"$f":"IF(U805<'1 Données d''entrée'!$C$334+1+$B922,0,IF(U805<'1 Données d''entrée'!$C$333+'1 Données d''entrée'!$C$334+1+$B922,$K911*('1 Données d''entrée'!$C$332*(1+'1 Données d''entrée'!$C$332)^'1 Données d''entrée'!$C$333)/((1+'1 Données d''entrée'!$C$332)^'1 Données d''entrée'!$C$333-1),0))","v":0},{"$f":"IF(V805<'1 Données d''entrée'!$C$334+1+$B922,0,IF(V805<'1 Données d''entrée'!$C$333+'1 Données d''entrée'!$C$334+1+$B922,$K911*('1 Données d''entrée'!$C$332*(1+'1 Données d''entrée'!$C$332)^'1 Données d''entrée'!$C$333)/((1+'1 Données d''entrée'!$C$332)^'1 Données d''entrée'!$C$333-1),0))","v":0}]
[null,10,{"$f":"IF(C$54<'1 Données d''entrée'!$C$334+1+$B923,0,IF(C$54<'1 Données d''entrée'!$C$333+'1 Données d''entrée'!$C$334+1+$B923,$L$160*('1 Données d''entrée'!$C$332*(1+'1 Données d''entrée'!$C$332)^'1 Données d''entrée'!$C$333)/((1+'1 Données d''entrée'!$C$332)^'1 Données d''entrée'!$C$333-1),0))","v":0},{"$f":"IF(D805<'1 Données d''entrée'!$C$334+1+$B923,0,IF(D805<'1 Données d''entrée'!$C$333+'1 Données d''entrée'!$C$334+1+$B923,$L911*('1 Données d''entrée'!$C$332*(1+'1 Données d''entrée'!$C$332)^'1 Données d''entrée'!$C$333)/((1+'1 Données d''entrée'!$C$332)^'1 Données d''entrée'!$C$333-1),0))","v":0},{"$f":"IF(E805<'1 Données d''entrée'!$C$334+1+$B923,0,IF(E805<'1 Données d''entrée'!$C$333+'1 Données d''entrée'!$C$334+1+$B923,$L911*('1 Données d''entrée'!$C$332*(1+'1 Données d''entrée'!$C$332)^'1 Données d''entrée'!$C$333)/((1+'1 Données d''entrée'!$C$332)^'1 Données d''entrée'!$C$333-1),0))","v":0},{"$f":"IF(F805<'1 Données d''entrée'!$C$334+1+$B923,0,IF(F805<'1 Données d''entrée'!$C$333+'1 Données d''entrée'!$C$334+1+$B923,$L911*('1 Données d''entrée'!$C$332*(1+'1 Données d''entrée'!$C$332)^'1 Données d''entrée'!$C$333)/((1+'1 Données d''entrée'!$C$332)^'1 Données d''entrée'!$C$333-1),0))","v":0},{"$f":"IF(G805<'1 Données d''entrée'!$C$334+1+$B923,0,IF(G805<'1 Données d''entrée'!$C$333+'1 Données d''entrée'!$C$334+1+$B923,$L911*('1 Données d''entrée'!$C$332*(1+'1 Données d''entrée'!$C$332)^'1 Données d''entrée'!$C$333)/((1+'1 Données d''entrée'!$C$332)^'1 Données d''entrée'!$C$333-1),0))","v":0},{"$f":"IF(H805<'1 Données d''entrée'!$C$334+1+$B923,0,IF(H805<'1 Données d''entrée'!$C$333+'1 Données d''entrée'!$C$334+1+$B923,$L911*('1 Données d''entrée'!$C$332*(1+'1 Données d''entrée'!$C$332)^'1 Données d''entrée'!$C$333)/((1+'1 Données d''entrée'!$C$332)^'1 Données d''entrée'!$C$333-1),0))","v":0},{"$f":"IF(I805<'1 Données d''entrée'!$C$334+1+$B923,0,IF(I805<'1 Données d''entrée'!$C$333+'1 Données d''entrée'!$C$334+1+$B923,$L911*('1 Données d''entrée'!$C$332*(1+'1 Données d''entrée'!$C$332)^'1 Données d''entrée'!$C$333)/((1+'1 Données d''entrée'!$C$332)^'1 Données d''entrée'!$C$333-1),0))","v":0},{"$f":"IF(J805<'1 Données d''entrée'!$C$334+1+$B923,0,IF(J805<'1 Données d''entrée'!$C$333+'1 Données d''entrée'!$C$334+1+$B923,$L911*('1 Données d''entrée'!$C$332*(1+'1 Données d''entrée'!$C$332)^'1 Données d''entrée'!$C$333)/((1+'1 Données d''entrée'!$C$332)^'1 Données d''entrée'!$C$333-1),0))","v":0},{"$f":"IF(K805<'1 Données d''entrée'!$C$334+1+$B923,0,IF(K805<'1 Données d''entrée'!$C$333+'1 Données d''entrée'!$C$334+1+$B923,$L911*('1 Données d''entrée'!$C$332*(1+'1 Données d''entrée'!$C$332)^'1 Données d''entrée'!$C$333)/((1+'1 Données d''entrée'!$C$332)^'1 Données d''entrée'!$C$333-1),0))","v":0},{"$f":"IF(L805<'1 Données d''entrée'!$C$334+1+$B923,0,IF(L805<'1 Données d''entrée'!$C$333+'1 Données d''entrée'!$C$334+1+$B923,$L911*('1 Données d''entrée'!$C$332*(1+'1 Données d''entrée'!$C$332)^'1 Données d''entrée'!$C$333)/((1+'1 Données d''entrée'!$C$332)^'1 Données d''entrée'!$C$333-1),0))","v":0},{"$f":"IF(M805<'1 Données d''entrée'!$C$334+1+$B923,0,IF(M805<'1 Données d''entrée'!$C$333+'1 Données d''entrée'!$C$334+1+$B923,$L911*('1 Données d''entrée'!$C$332*(1+'1 Données d''entrée'!$C$332)^'1 Données d''entrée'!$C$333)/((1+'1 Données d''entrée'!$C$332)^'1 Données d''entrée'!$C$333-1),0))","v":0},{"$f":"IF(N805<'1 Données d''entrée'!$C$334+1+$B923,0,IF(N805<'1 Données d''entrée'!$C$333+'1 Données d''entrée'!$C$334+1+$B923,$L911*('1 Données d''entrée'!$C$332*(1+'1 Données d''entrée'!$C$332)^'1 Données d''entrée'!$C$333)/((1+'1 Données d''entrée'!$C$332)^'1 Données d''entrée'!$C$333-1),0))","v":0},{"$f":"IF(O805<'1 Données d''entrée'!$C$334+1+$B923,0,IF(O805<'1 Données d''entrée'!$C$333+'1 Données d''entrée'!$C$334+1+$B923,$L911*('1 Données d''entrée'!$C$332*(1+'1 Données d''entrée'!$C$332)^'1 Données d''entrée'!$C$333)/((1+'1 Données d''entrée'!$C$332)^'1 Données d''entrée'!$C$333-1),0))","v":0},{"$f":"IF(P805<'1 Données d''entrée'!$C$334+1+$B923,0,IF(P805<'1 Données d''entrée'!$C$333+'1 Données d''entrée'!$C$334+1+$B923,$L911*('1 Données d''entrée'!$C$332*(1+'1 Données d''entrée'!$C$332)^'1 Données d''entrée'!$C$333)/((1+'1 Données d''entrée'!$C$332)^'1 Données d''entrée'!$C$333-1),0))","v":0},{"$f":"IF(Q805<'1 Données d''entrée'!$C$334+1+$B923,0,IF(Q805<'1 Données d''entrée'!$C$333+'1 Données d''entrée'!$C$334+1+$B923,$L911*('1 Données d''entrée'!$C$332*(1+'1 Données d''entrée'!$C$332)^'1 Données d''entrée'!$C$333)/((1+'1 Données d''entrée'!$C$332)^'1 Données d''entrée'!$C$333-1),0))","v":0},{"$f":"IF(R805<'1 Données d''entrée'!$C$334+1+$B923,0,IF(R805<'1 Données d''entrée'!$C$333+'1 Données d''entrée'!$C$334+1+$B923,$L911*('1 Données d''entrée'!$C$332*(1+'1 Données d''entrée'!$C$332)^'1 Données d''entrée'!$C$333)/((1+'1 Données d''entrée'!$C$332)^'1 Données d''entrée'!$C$333-1),0))","v":0},{"$f":"IF(S805<'1 Données d''entrée'!$C$334+1+$B923,0,IF(S805<'1 Données d''entrée'!$C$333+'1 Données d''entrée'!$C$334+1+$B923,$L911*('1 Données d''entrée'!$C$332*(1+'1 Données d''entrée'!$C$332)^'1 Données d''entrée'!$C$333)/((1+'1 Données d''entrée'!$C$332)^'1 Données d''entrée'!$C$333-1),0))","v":0},{"$f":"IF(T805<'1 Données d''entrée'!$C$334+1+$B923,0,IF(T805<'1 Données d''entrée'!$C$333+'1 Données d''entrée'!$C$334+1+$B923,$L911*('1 Données d''entrée'!$C$332*(1+'1 Données d''entrée'!$C$332)^'1 Données d''entrée'!$C$333)/((1+'1 Données d''entrée'!$C$332)^'1 Données d''entrée'!$C$333-1),0))","v":0},{"$f":"IF(U805<'1 Données d''entrée'!$C$334+1+$B923,0,IF(U805<'1 Données d''entrée'!$C$333+'1 Données d''entrée'!$C$334+1+$B923,$L911*('1 Données d''entrée'!$C$332*(1+'1 Données d''entrée'!$C$332)^'1 Données d''entrée'!$C$333)/((1+'1 Données d''entrée'!$C$332)^'1 Données d''entrée'!$C$333-1),0))","v":0},{"$f":"IF(V805<'1 Données d''entrée'!$C$334+1+$B923,0,IF(V805<'1 Données d''entrée'!$C$333+'1 Données d''entrée'!$C$334+1+$B923,$L911*('1 Données d''entrée'!$C$332*(1+'1 Données d''entrée'!$C$332)^'1 Données d''entrée'!$C$333)/((1+'1 Données d''entrée'!$C$332)^'1 Données d''entrée'!$C$333-1),0))","v":0}]
[null,"Période de prêt nouveau"]
["Paiement d'intérêt décroissant inclu dans l'annuité constante",0,0,0,0,0,0,0,0,0,0,0,0,0,0,0,0,0,0,0,0,0]
["Paiement d'intêrets",1,0,{"$f":"IF(D914>0,$C911*((('1 Données d''entrée'!$C$332+1)^'1 Données d''entrée'!$C$333)-(1+'1 Données d''entrée'!$C$332)^('6 Financement'!C$54-1-'1 Données d''entrée'!$C$334-$B925))/((1+'1 Données d''entrée'!$C$332)^'1 Données d''entrée'!$C$333-1)*'1 Données d''entrée'!$C$332,0)","v":0},{"$f":"IF(E914>0,$C911*((('1 Données d''entrée'!$C$332+1)^'1 Données d''entrée'!$C$333)-(1+'1 Données d''entrée'!$C$332)^('6 Financement'!D$54-1-'1 Données d''entrée'!$C$334-$B925))/((1+'1 Données d''entrée'!$C$332)^'1 Données d''entrée'!$C$333-1)*'1 Données d''entrée'!$C$332,0)","v":0},{"$f":"IF(F914>0,$C911*((('1 Données d''entrée'!$C$332+1)^'1 Données d''entrée'!$C$333)-(1+'1 Données d''entrée'!$C$332)^('6 Financement'!E$54-1-'1 Données d''entrée'!$C$334-$B925))/((1+'1 Données d''entrée'!$C$332)^'1 Données d''entrée'!$C$333-1)*'1 Données d''entrée'!$C$332,0)","v":0},{"$f":"IF(G914>0,$C911*((('1 Données d''entrée'!$C$332+1)^'1 Données d''entrée'!$C$333)-(1+'1 Données d''entrée'!$C$332)^('6 Financement'!F$54-1-'1 Données d''entrée'!$C$334-$B925))/((1+'1 Données d''entrée'!$C$332)^'1 Données d''entrée'!$C$333-1)*'1 Données d''entrée'!$C$332,0)","v":0},{"$f":"IF(H914>0,$C911*((('1 Données d''entrée'!$C$332+1)^'1 Données d''entrée'!$C$333)-(1+'1 Données d''entrée'!$C$332)^('6 Financement'!G$54-1-'1 Données d''entrée'!$C$334-$B925))/((1+'1 Données d''entrée'!$C$332)^'1 Données d''entrée'!$C$333-1)*'1 Données d''entrée'!$C$332,0)","v":0},{"$f":"IF(I914>0,$C911*((('1 Données d''entrée'!$C$332+1)^'1 Données d''entrée'!$C$333)-(1+'1 Données d''entrée'!$C$332)^('6 Financement'!H$54-1-'1 Données d''entrée'!$C$334-$B925))/((1+'1 Données d''entrée'!$C$332)^'1 Données d''entrée'!$C$333-1)*'1 Données d''entrée'!$C$332,0)","v":0},{"$f":"IF(J914>0,$C911*((('1 Données d''entrée'!$C$332+1)^'1 Données d''entrée'!$C$333)-(1+'1 Données d''entrée'!$C$332)^('6 Financement'!I$54-1-'1 Données d''entrée'!$C$334-$B925))/((1+'1 Données d''entrée'!$C$332)^'1 Données d''entrée'!$C$333-1)*'1 Données d''entrée'!$C$332,0)","v":0},{"$f":"IF(K914>0,$C911*((('1 Données d''entrée'!$C$332+1)^'1 Données d''entrée'!$C$333)-(1+'1 Données d''entrée'!$C$332)^('6 Financement'!J$54-1-'1 Données d''entrée'!$C$334-$B925))/((1+'1 Données d''entrée'!$C$332)^'1 Données d''entrée'!$C$333-1)*'1 Données d''entrée'!$C$332,0)","v":0},{"$f":"IF(L914>0,$C911*((('1 Données d''entrée'!$C$332+1)^'1 Données d''entrée'!$C$333)-(1+'1 Données d''entrée'!$C$332)^('6 Financement'!K$54-1-'1 Données d''entrée'!$C$334-$B925))/((1+'1 Données d''entrée'!$C$332)^'1 Données d''entrée'!$C$333-1)*'1 Données d''entrée'!$C$332,0)","v":0},{"$f":"IF(M914>0,$C911*((('1 Données d''entrée'!$C$332+1)^'1 Données d''entrée'!$C$333)-(1+'1 Données d''entrée'!$C$332)^('6 Financement'!L$54-1-'1 Données d''entrée'!$C$334-$B925))/((1+'1 Données d''entrée'!$C$332)^'1 Données d''entrée'!$C$333-1)*'1 Données d''entrée'!$C$332,0)","v":0},{"$f":"IF(N914>0,$C911*((('1 Données d''entrée'!$C$332+1)^'1 Données d''entrée'!$C$333)-(1+'1 Données d''entrée'!$C$332)^('6 Financement'!M$54-1-'1 Données d''entrée'!$C$334-$B925))/((1+'1 Données d''entrée'!$C$332)^'1 Données d''entrée'!$C$333-1)*'1 Données d''entrée'!$C$332,0)","v":0},{"$f":"IF(O914>0,$C911*((('1 Données d''entrée'!$C$332+1)^'1 Données d''entrée'!$C$333)-(1+'1 Données d''entrée'!$C$332)^('6 Financement'!N$54-1-'1 Données d''entrée'!$C$334-$B925))/((1+'1 Données d''entrée'!$C$332)^'1 Données d''entrée'!$C$333-1)*'1 Données d''entrée'!$C$332,0)","v":0},{"$f":"IF(P914>0,$C911*((('1 Données d''entrée'!$C$332+1)^'1 Données d''entrée'!$C$333)-(1+'1 Données d''entrée'!$C$332)^('6 Financement'!O$54-1-'1 Données d''entrée'!$C$334-$B925))/((1+'1 Données d''entrée'!$C$332)^'1 Données d''entrée'!$C$333-1)*'1 Données d''entrée'!$C$332,0)","v":0},{"$f":"IF(Q914>0,$C911*((('1 Données d''entrée'!$C$332+1)^'1 Données d''entrée'!$C$333)-(1+'1 Données d''entrée'!$C$332)^('6 Financement'!P$54-1-'1 Données d''entrée'!$C$334-$B925))/((1+'1 Données d''entrée'!$C$332)^'1 Données d''entrée'!$C$333-1)*'1 Données d''entrée'!$C$332,0)","v":0},{"$f":"IF(R914>0,$C911*((('1 Données d''entrée'!$C$332+1)^'1 Données d''entrée'!$C$333)-(1+'1 Données d''entrée'!$C$332)^('6 Financement'!Q$54-1-'1 Données d''entrée'!$C$334-$B925))/((1+'1 Données d''entrée'!$C$332)^'1 Données d''entrée'!$C$333-1)*'1 Données d''entrée'!$C$332,0)","v":0},{"$f":"IF(S914>0,$C911*((('1 Données d''entrée'!$C$332+1)^'1 Données d''entrée'!$C$333)-(1+'1 Données d''entrée'!$C$332)^('6 Financement'!R$54-1-'1 Données d''entrée'!$C$334-$B925))/((1+'1 Données d''entrée'!$C$332)^'1 Données d''entrée'!$C$333-1)*'1 Données d''entrée'!$C$332,0)","v":0},{"$f":"IF(T914>0,$C911*((('1 Données d''entrée'!$C$332+1)^'1 Données d''entrée'!$C$333)-(1+'1 Données d''entrée'!$C$332)^('6 Financement'!S$54-1-'1 Données d''entrée'!$C$334-$B925))/((1+'1 Données d''entrée'!$C$332)^'1 Données d''entrée'!$C$333-1)*'1 Données d''entrée'!$C$332,0)","v":0},{"$f":"IF(U914>0,$C911*((('1 Données d''entrée'!$C$332+1)^'1 Données d''entrée'!$C$333)-(1+'1 Données d''entrée'!$C$332)^('6 Financement'!T$54-1-'1 Données d''entrée'!$C$334-$B925))/((1+'1 Données d''entrée'!$C$332)^'1 Données d''entrée'!$C$333-1)*'1 Données d''entrée'!$C$332,0)","v":0},{"$f":"IF(V914>0,$C911*((('1 Données d''entrée'!$C$332+1)^'1 Données d''entrée'!$C$333)-(1+'1 Données d''entrée'!$C$332)^('6 Financement'!U$54-1-'1 Données d''entrée'!$C$334-$B925))/((1+'1 Données d''entrée'!$C$332)^'1 Données d''entrée'!$C$333-1)*'1 Données d''entrée'!$C$332,0)","v":0}]
["Paiement d'intêrets",2,0,{"$f":"IF(D915>0,$D911*((('1 Données d''entrée'!$C$332+1)^'1 Données d''entrée'!$C$333)-(1+'1 Données d''entrée'!$C$332)^('6 Financement'!C$54-1-'1 Données d''entrée'!$C$334-$B926))/((1+'1 Données d''entrée'!$C$332)^'1 Données d''entrée'!$C$333-1)*'1 Données d''entrée'!$C$332,0)","v":0},{"$f":"IF(E915>0,$D911*((('1 Données d''entrée'!$C$332+1)^'1 Données d''entrée'!$C$333)-(1+'1 Données d''entrée'!$C$332)^('6 Financement'!D$54-1-'1 Données d''entrée'!$C$334-$B926))/((1+'1 Données d''entrée'!$C$332)^'1 Données d''entrée'!$C$333-1)*'1 Données d''entrée'!$C$332,0)","v":0},{"$f":"IF(F915>0,$D911*((('1 Données d''entrée'!$C$332+1)^'1 Données d''entrée'!$C$333)-(1+'1 Données d''entrée'!$C$332)^('6 Financement'!E$54-1-'1 Données d''entrée'!$C$334-$B926))/((1+'1 Données d''entrée'!$C$332)^'1 Données d''entrée'!$C$333-1)*'1 Données d''entrée'!$C$332,0)","v":0},{"$f":"IF(G915>0,$D911*((('1 Données d''entrée'!$C$332+1)^'1 Données d''entrée'!$C$333)-(1+'1 Données d''entrée'!$C$332)^('6 Financement'!F$54-1-'1 Données d''entrée'!$C$334-$B926))/((1+'1 Données d''entrée'!$C$332)^'1 Données d''entrée'!$C$333-1)*'1 Données d''entrée'!$C$332,0)","v":0},{"$f":"IF(H915>0,$D911*((('1 Données d''entrée'!$C$332+1)^'1 Données d''entrée'!$C$333)-(1+'1 Données d''entrée'!$C$332)^('6 Financement'!G$54-1-'1 Données d''entrée'!$C$334-$B926))/((1+'1 Données d''entrée'!$C$332)^'1 Données d''entrée'!$C$333-1)*'1 Données d''entrée'!$C$332,0)","v":0},{"$f":"IF(I915>0,$D911*((('1 Données d''entrée'!$C$332+1)^'1 Données d''entrée'!$C$333)-(1+'1 Données d''entrée'!$C$332)^('6 Financement'!H$54-1-'1 Données d''entrée'!$C$334-$B926))/((1+'1 Données d''entrée'!$C$332)^'1 Données d''entrée'!$C$333-1)*'1 Données d''entrée'!$C$332,0)","v":0},{"$f":"IF(J915>0,$D911*((('1 Données d''entrée'!$C$332+1)^'1 Données d''entrée'!$C$333)-(1+'1 Données d''entrée'!$C$332)^('6 Financement'!I$54-1-'1 Données d''entrée'!$C$334-$B926))/((1+'1 Données d''entrée'!$C$332)^'1 Données d''entrée'!$C$333-1)*'1 Données d''entrée'!$C$332,0)","v":0},{"$f":"IF(K915>0,$D911*((('1 Données d''entrée'!$C$332+1)^'1 Données d''entrée'!$C$333)-(1+'1 Données d''entrée'!$C$332)^('6 Financement'!J$54-1-'1 Données d''entrée'!$C$334-$B926))/((1+'1 Données d''entrée'!$C$332)^'1 Données d''entrée'!$C$333-1)*'1 Données d''entrée'!$C$332,0)","v":0},{"$f":"IF(L915>0,$D911*((('1 Données d''entrée'!$C$332+1)^'1 Données d''entrée'!$C$333)-(1+'1 Données d''entrée'!$C$332)^('6 Financement'!K$54-1-'1 Données d''entrée'!$C$334-$B926))/((1+'1 Données d''entrée'!$C$332)^'1 Données d''entrée'!$C$333-1)*'1 Données d''entrée'!$C$332,0)","v":0},{"$f":"IF(M915>0,$D911*((('1 Données d''entrée'!$C$332+1)^'1 Données d''entrée'!$C$333)-(1+'1 Données d''entrée'!$C$332)^('6 Financement'!L$54-1-'1 Données d''entrée'!$C$334-$B926))/((1+'1 Données d''entrée'!$C$332)^'1 Données d''entrée'!$C$333-1)*'1 Données d''entrée'!$C$332,0)","v":0},{"$f":"IF(N915>0,$D911*((('1 Données d''entrée'!$C$332+1)^'1 Données d''entrée'!$C$333)-(1+'1 Données d''entrée'!$C$332)^('6 Financement'!M$54-1-'1 Données d''entrée'!$C$334-$B926))/((1+'1 Données d''entrée'!$C$332)^'1 Données d''entrée'!$C$333-1)*'1 Données d''entrée'!$C$332,0)","v":0},{"$f":"IF(O915>0,$D911*((('1 Données d''entrée'!$C$332+1)^'1 Données d''entrée'!$C$333)-(1+'1 Données d''entrée'!$C$332)^('6 Financement'!N$54-1-'1 Données d''entrée'!$C$334-$B926))/((1+'1 Données d''entrée'!$C$332)^'1 Données d''entrée'!$C$333-1)*'1 Données d''entrée'!$C$332,0)","v":0},{"$f":"IF(P915>0,$D911*((('1 Données d''entrée'!$C$332+1)^'1 Données d''entrée'!$C$333)-(1+'1 Données d''entrée'!$C$332)^('6 Financement'!O$54-1-'1 Données d''entrée'!$C$334-$B926))/((1+'1 Données d''entrée'!$C$332)^'1 Données d''entrée'!$C$333-1)*'1 Données d''entrée'!$C$332,0)","v":0},{"$f":"IF(Q915>0,$D911*((('1 Données d''entrée'!$C$332+1)^'1 Données d''entrée'!$C$333)-(1+'1 Données d''entrée'!$C$332)^('6 Financement'!P$54-1-'1 Données d''entrée'!$C$334-$B926))/((1+'1 Données d''entrée'!$C$332)^'1 Données d''entrée'!$C$333-1)*'1 Données d''entrée'!$C$332,0)","v":0},{"$f":"IF(R915>0,$D911*((('1 Données d''entrée'!$C$332+1)^'1 Données d''entrée'!$C$333)-(1+'1 Données d''entrée'!$C$332)^('6 Financement'!Q$54-1-'1 Données d''entrée'!$C$334-$B926))/((1+'1 Données d''entrée'!$C$332)^'1 Données d''entrée'!$C$333-1)*'1 Données d''entrée'!$C$332,0)","v":0},{"$f":"IF(S915>0,$D911*((('1 Données d''entrée'!$C$332+1)^'1 Données d''entrée'!$C$333)-(1+'1 Données d''entrée'!$C$332)^('6 Financement'!R$54-1-'1 Données d''entrée'!$C$334-$B926))/((1+'1 Données d''entrée'!$C$332)^'1 Données d''entrée'!$C$333-1)*'1 Données d''entrée'!$C$332,0)","v":0},{"$f":"IF(T915>0,$D911*((('1 Données d''entrée'!$C$332+1)^'1 Données d''entrée'!$C$333)-(1+'1 Données d''entrée'!$C$332)^('6 Financement'!S$54-1-'1 Données d''entrée'!$C$334-$B926))/((1+'1 Données d''entrée'!$C$332)^'1 Données d''entrée'!$C$333-1)*'1 Données d''entrée'!$C$332,0)","v":0},{"$f":"IF(U915>0,$D911*((('1 Données d''entrée'!$C$332+1)^'1 Données d''entrée'!$C$333)-(1+'1 Données d''entrée'!$C$332)^('6 Financement'!T$54-1-'1 Données d''entrée'!$C$334-$B926))/((1+'1 Données d''entrée'!$C$332)^'1 Données d''entrée'!$C$333-1)*'1 Données d''entrée'!$C$332,0)","v":0},{"$f":"IF(V915>0,$D911*((('1 Données d''entrée'!$C$332+1)^'1 Données d''entrée'!$C$333)-(1+'1 Données d''entrée'!$C$332)^('6 Financement'!U$54-1-'1 Données d''entrée'!$C$334-$B926))/((1+'1 Données d''entrée'!$C$332)^'1 Données d''entrée'!$C$333-1)*'1 Données d''entrée'!$C$332,0)","v":0}]
["Paiement d'intêrets",3,0,{"$f":"IF(D916>0,$E911*((('1 Données d''entrée'!$C$332+1)^'1 Données d''entrée'!$C$333)-(1+'1 Données d''entrée'!$C$332)^('6 Financement'!C$54-1-'1 Données d''entrée'!$C$334-$B927))/((1+'1 Données d''entrée'!$C$332)^'1 Données d''entrée'!$C$333-1)*'1 Données d''entrée'!$C$332,0)","v":0},{"$f":"IF(E916>0,$E911*((('1 Données d''entrée'!$C$332+1)^'1 Données d''entrée'!$C$333)-(1+'1 Données d''entrée'!$C$332)^('6 Financement'!D$54-1-'1 Données d''entrée'!$C$334-$B927))/((1+'1 Données d''entrée'!$C$332)^'1 Données d''entrée'!$C$333-1)*'1 Données d''entrée'!$C$332,0)","v":0},{"$f":"IF(F916>0,$E911*((('1 Données d''entrée'!$C$332+1)^'1 Données d''entrée'!$C$333)-(1+'1 Données d''entrée'!$C$332)^('6 Financement'!E$54-1-'1 Données d''entrée'!$C$334-$B927))/((1+'1 Données d''entrée'!$C$332)^'1 Données d''entrée'!$C$333-1)*'1 Données d''entrée'!$C$332,0)","v":0},{"$f":"IF(G916>0,$E911*((('1 Données d''entrée'!$C$332+1)^'1 Données d''entrée'!$C$333)-(1+'1 Données d''entrée'!$C$332)^('6 Financement'!F$54-1-'1 Données d''entrée'!$C$334-$B927))/((1+'1 Données d''entrée'!$C$332)^'1 Données d''entrée'!$C$333-1)*'1 Données d''entrée'!$C$332,0)","v":0},{"$f":"IF(H916>0,$E911*((('1 Données d''entrée'!$C$332+1)^'1 Données d''entrée'!$C$333)-(1+'1 Données d''entrée'!$C$332)^('6 Financement'!G$54-1-'1 Données d''entrée'!$C$334-$B927))/((1+'1 Données d''entrée'!$C$332)^'1 Données d''entrée'!$C$333-1)*'1 Données d''entrée'!$C$332,0)","v":0},{"$f":"IF(I916>0,$E911*((('1 Données d''entrée'!$C$332+1)^'1 Données d''entrée'!$C$333)-(1+'1 Données d''entrée'!$C$332)^('6 Financement'!H$54-1-'1 Données d''entrée'!$C$334-$B927))/((1+'1 Données d''entrée'!$C$332)^'1 Données d''entrée'!$C$333-1)*'1 Données d''entrée'!$C$332,0)","v":0},{"$f":"IF(J916>0,$E911*((('1 Données d''entrée'!$C$332+1)^'1 Données d''entrée'!$C$333)-(1+'1 Données d''entrée'!$C$332)^('6 Financement'!I$54-1-'1 Données d''entrée'!$C$334-$B927))/((1+'1 Données d''entrée'!$C$332)^'1 Données d''entrée'!$C$333-1)*'1 Données d''entrée'!$C$332,0)","v":0},{"$f":"IF(K916>0,$E911*((('1 Données d''entrée'!$C$332+1)^'1 Données d''entrée'!$C$333)-(1+'1 Données d''entrée'!$C$332)^('6 Financement'!J$54-1-'1 Données d''entrée'!$C$334-$B927))/((1+'1 Données d''entrée'!$C$332)^'1 Données d''entrée'!$C$333-1)*'1 Données d''entrée'!$C$332,0)","v":0},{"$f":"IF(L916>0,$E911*((('1 Données d''entrée'!$C$332+1)^'1 Données d''entrée'!$C$333)-(1+'1 Données d''entrée'!$C$332)^('6 Financement'!K$54-1-'1 Données d''entrée'!$C$334-$B927))/((1+'1 Données d''entrée'!$C$332)^'1 Données d''entrée'!$C$333-1)*'1 Données d''entrée'!$C$332,0)","v":0},{"$f":"IF(M916>0,$E911*((('1 Données d''entrée'!$C$332+1)^'1 Données d''entrée'!$C$333)-(1+'1 Données d''entrée'!$C$332)^('6 Financement'!L$54-1-'1 Données d''entrée'!$C$334-$B927))/((1+'1 Données d''entrée'!$C$332)^'1 Données d''entrée'!$C$333-1)*'1 Données d''entrée'!$C$332,0)","v":0},{"$f":"IF(N916>0,$E911*((('1 Données d''entrée'!$C$332+1)^'1 Données d''entrée'!$C$333)-(1+'1 Données d''entrée'!$C$332)^('6 Financement'!M$54-1-'1 Données d''entrée'!$C$334-$B927))/((1+'1 Données d''entrée'!$C$332)^'1 Données d''entrée'!$C$333-1)*'1 Données d''entrée'!$C$332,0)","v":0},{"$f":"IF(O916>0,$E911*((('1 Données d''entrée'!$C$332+1)^'1 Données d''entrée'!$C$333)-(1+'1 Données d''entrée'!$C$332)^('6 Financement'!N$54-1-'1 Données d''entrée'!$C$334-$B927))/((1+'1 Données d''entrée'!$C$332)^'1 Données d''entrée'!$C$333-1)*'1 Données d''entrée'!$C$332,0)","v":0},{"$f":"IF(P916>0,$E911*((('1 Données d''entrée'!$C$332+1)^'1 Données d''entrée'!$C$333)-(1+'1 Données d''entrée'!$C$332)^('6 Financement'!O$54-1-'1 Données d''entrée'!$C$334-$B927))/((1+'1 Données d''entrée'!$C$332)^'1 Données d''entrée'!$C$333-1)*'1 Données d''entrée'!$C$332,0)","v":0},{"$f":"IF(Q916>0,$E911*((('1 Données d''entrée'!$C$332+1)^'1 Données d''entrée'!$C$333)-(1+'1 Données d''entrée'!$C$332)^('6 Financement'!P$54-1-'1 Données d''entrée'!$C$334-$B927))/((1+'1 Données d''entrée'!$C$332)^'1 Données d''entrée'!$C$333-1)*'1 Données d''entrée'!$C$332,0)","v":0},{"$f":"IF(R916>0,$E911*((('1 Données d''entrée'!$C$332+1)^'1 Données d''entrée'!$C$333)-(1+'1 Données d''entrée'!$C$332)^('6 Financement'!Q$54-1-'1 Données d''entrée'!$C$334-$B927))/((1+'1 Données d''entrée'!$C$332)^'1 Données d''entrée'!$C$333-1)*'1 Données d''entrée'!$C$332,0)","v":0},{"$f":"IF(S916>0,$E911*((('1 Données d''entrée'!$C$332+1)^'1 Données d''entrée'!$C$333)-(1+'1 Données d''entrée'!$C$332)^('6 Financement'!R$54-1-'1 Données d''entrée'!$C$334-$B927))/((1+'1 Données d''entrée'!$C$332)^'1 Données d''entrée'!$C$333-1)*'1 Données d''entrée'!$C$332,0)","v":0},{"$f":"IF(T916>0,$E911*((('1 Données d''entrée'!$C$332+1)^'1 Données d''entrée'!$C$333)-(1+'1 Données d''entrée'!$C$332)^('6 Financement'!S$54-1-'1 Données d''entrée'!$C$334-$B927))/((1+'1 Données d''entrée'!$C$332)^'1 Données d''entrée'!$C$333-1)*'1 Données d''entrée'!$C$332,0)","v":0},{"$f":"IF(U916>0,$E911*((('1 Données d''entrée'!$C$332+1)^'1 Données d''entrée'!$C$333)-(1+'1 Données d''entrée'!$C$332)^('6 Financement'!T$54-1-'1 Données d''entrée'!$C$334-$B927))/((1+'1 Données d''entrée'!$C$332)^'1 Données d''entrée'!$C$333-1)*'1 Données d''entrée'!$C$332,0)","v":0},{"$f":"IF(V916>0,$E911*((('1 Données d''entrée'!$C$332+1)^'1 Données d''entrée'!$C$333)-(1+'1 Données d''entrée'!$C$332)^('6 Financement'!U$54-1-'1 Données d''entrée'!$C$334-$B927))/((1+'1 Données d''entrée'!$C$332)^'1 Données d''entrée'!$C$333-1)*'1 Données d''entrée'!$C$332,0)","v":0}]
["Paiement d'intêrets",4,0,{"$f":"IF(D917>0,$F911*((('1 Données d''entrée'!$C$332+1)^'1 Données d''entrée'!$C$333)-(1+'1 Données d''entrée'!$C$332)^('6 Financement'!C$54-1-'1 Données d''entrée'!$C$334-$B928))/((1+'1 Données d''entrée'!$C$332)^'1 Données d''entrée'!$C$333-1)*'1 Données d''entrée'!$C$332,0)","v":0},{"$f":"IF(E917>0,$F911*((('1 Données d''entrée'!$C$332+1)^'1 Données d''entrée'!$C$333)-(1+'1 Données d''entrée'!$C$332)^('6 Financement'!D$54-1-'1 Données d''entrée'!$C$334-$B928))/((1+'1 Données d''entrée'!$C$332)^'1 Données d''entrée'!$C$333-1)*'1 Données d''entrée'!$C$332,0)","v":0},{"$f":"IF(F917>0,$F911*((('1 Données d''entrée'!$C$332+1)^'1 Données d''entrée'!$C$333)-(1+'1 Données d''entrée'!$C$332)^('6 Financement'!E$54-1-'1 Données d''entrée'!$C$334-$B928))/((1+'1 Données d''entrée'!$C$332)^'1 Données d''entrée'!$C$333-1)*'1 Données d''entrée'!$C$332,0)","v":0},{"$f":"IF(G917>0,$F911*((('1 Données d''entrée'!$C$332+1)^'1 Données d''entrée'!$C$333)-(1+'1 Données d''entrée'!$C$332)^('6 Financement'!F$54-1-'1 Données d''entrée'!$C$334-$B928))/((1+'1 Données d''entrée'!$C$332)^'1 Données d''entrée'!$C$333-1)*'1 Données d''entrée'!$C$332,0)","v":0},{"$f":"IF(H917>0,$F911*((('1 Données d''entrée'!$C$332+1)^'1 Données d''entrée'!$C$333)-(1+'1 Données d''entrée'!$C$332)^('6 Financement'!G$54-1-'1 Données d''entrée'!$C$334-$B928))/((1+'1 Données d''entrée'!$C$332)^'1 Données d''entrée'!$C$333-1)*'1 Données d''entrée'!$C$332,0)","v":0},{"$f":"IF(I917>0,$F911*((('1 Données d''entrée'!$C$332+1)^'1 Données d''entrée'!$C$333)-(1+'1 Données d''entrée'!$C$332)^('6 Financement'!H$54-1-'1 Données d''entrée'!$C$334-$B928))/((1+'1 Données d''entrée'!$C$332)^'1 Données d''entrée'!$C$333-1)*'1 Données d''entrée'!$C$332,0)","v":0},{"$f":"IF(J917>0,$F911*((('1 Données d''entrée'!$C$332+1)^'1 Données d''entrée'!$C$333)-(1+'1 Données d''entrée'!$C$332)^('6 Financement'!I$54-1-'1 Données d''entrée'!$C$334-$B928))/((1+'1 Données d''entrée'!$C$332)^'1 Données d''entrée'!$C$333-1)*'1 Données d''entrée'!$C$332,0)","v":0},{"$f":"IF(K917>0,$F911*((('1 Données d''entrée'!$C$332+1)^'1 Données d''entrée'!$C$333)-(1+'1 Données d''entrée'!$C$332)^('6 Financement'!J$54-1-'1 Données d''entrée'!$C$334-$B928))/((1+'1 Données d''entrée'!$C$332)^'1 Données d''entrée'!$C$333-1)*'1 Données d''entrée'!$C$332,0)","v":0},{"$f":"IF(L917>0,$F911*((('1 Données d''entrée'!$C$332+1)^'1 Données d''entrée'!$C$333)-(1+'1 Données d''entrée'!$C$332)^('6 Financement'!K$54-1-'1 Données d''entrée'!$C$334-$B928))/((1+'1 Données d''entrée'!$C$332)^'1 Données d''entrée'!$C$333-1)*'1 Données d''entrée'!$C$332,0)","v":0},{"$f":"IF(M917>0,$F911*((('1 Données d''entrée'!$C$332+1)^'1 Données d''entrée'!$C$333)-(1+'1 Données d''entrée'!$C$332)^('6 Financement'!L$54-1-'1 Données d''entrée'!$C$334-$B928))/((1+'1 Données d''entrée'!$C$332)^'1 Données d''entrée'!$C$333-1)*'1 Données d''entrée'!$C$332,0)","v":0},{"$f":"IF(N917>0,$F911*((('1 Données d''entrée'!$C$332+1)^'1 Données d''entrée'!$C$333)-(1+'1 Données d''entrée'!$C$332)^('6 Financement'!M$54-1-'1 Données d''entrée'!$C$334-$B928))/((1+'1 Données d''entrée'!$C$332)^'1 Données d''entrée'!$C$333-1)*'1 Données d''entrée'!$C$332,0)","v":0},{"$f":"IF(O917>0,$F911*((('1 Données d''entrée'!$C$332+1)^'1 Données d''entrée'!$C$333)-(1+'1 Données d''entrée'!$C$332)^('6 Financement'!N$54-1-'1 Données d''entrée'!$C$334-$B928))/((1+'1 Données d''entrée'!$C$332)^'1 Données d''entrée'!$C$333-1)*'1 Données d''entrée'!$C$332,0)","v":0},{"$f":"IF(P917>0,$F911*((('1 Données d''entrée'!$C$332+1)^'1 Données d''entrée'!$C$333)-(1+'1 Données d''entrée'!$C$332)^('6 Financement'!O$54-1-'1 Données d''entrée'!$C$334-$B928))/((1+'1 Données d''entrée'!$C$332)^'1 Données d''entrée'!$C$333-1)*'1 Données d''entrée'!$C$332,0)","v":0},{"$f":"IF(Q917>0,$F911*((('1 Données d''entrée'!$C$332+1)^'1 Données d''entrée'!$C$333)-(1+'1 Données d''entrée'!$C$332)^('6 Financement'!P$54-1-'1 Données d''entrée'!$C$334-$B928))/((1+'1 Données d''entrée'!$C$332)^'1 Données d''entrée'!$C$333-1)*'1 Données d''entrée'!$C$332,0)","v":0},{"$f":"IF(R917>0,$F911*((('1 Données d''entrée'!$C$332+1)^'1 Données d''entrée'!$C$333)-(1+'1 Données d''entrée'!$C$332)^('6 Financement'!Q$54-1-'1 Données d''entrée'!$C$334-$B928))/((1+'1 Données d''entrée'!$C$332)^'1 Données d''entrée'!$C$333-1)*'1 Données d''entrée'!$C$332,0)","v":0},{"$f":"IF(S917>0,$F911*((('1 Données d''entrée'!$C$332+1)^'1 Données d''entrée'!$C$333)-(1+'1 Données d''entrée'!$C$332)^('6 Financement'!R$54-1-'1 Données d''entrée'!$C$334-$B928))/((1+'1 Données d''entrée'!$C$332)^'1 Données d''entrée'!$C$333-1)*'1 Données d''entrée'!$C$332,0)","v":0},{"$f":"IF(T917>0,$F911*((('1 Données d''entrée'!$C$332+1)^'1 Données d''entrée'!$C$333)-(1+'1 Données d''entrée'!$C$332)^('6 Financement'!S$54-1-'1 Données d''entrée'!$C$334-$B928))/((1+'1 Données d''entrée'!$C$332)^'1 Données d''entrée'!$C$333-1)*'1 Données d''entrée'!$C$332,0)","v":0},{"$f":"IF(U917>0,$F911*((('1 Données d''entrée'!$C$332+1)^'1 Données d''entrée'!$C$333)-(1+'1 Données d''entrée'!$C$332)^('6 Financement'!T$54-1-'1 Données d''entrée'!$C$334-$B928))/((1+'1 Données d''entrée'!$C$332)^'1 Données d''entrée'!$C$333-1)*'1 Données d''entrée'!$C$332,0)","v":0},{"$f":"IF(V917>0,$F911*((('1 Données d''entrée'!$C$332+1)^'1 Données d''entrée'!$C$333)-(1+'1 Données d''entrée'!$C$332)^('6 Financement'!U$54-1-'1 Données d''entrée'!$C$334-$B928))/((1+'1 Données d''entrée'!$C$332)^'1 Données d''entrée'!$C$333-1)*'1 Données d''entrée'!$C$332,0)","v":0}]
["Paiement d'intêrets",5,0,{"$f":"IF(D918>0,$G911*((('1 Données d''entrée'!$C$332+1)^'1 Données d''entrée'!$C$333)-(1+'1 Données d''entrée'!$C$332)^('6 Financement'!C$54-1-'1 Données d''entrée'!$C$334-$B929))/((1+'1 Données d''entrée'!$C$332)^'1 Données d''entrée'!$C$333-1)*'1 Données d''entrée'!$C$332,0)","v":0},{"$f":"IF(E918>0,$G911*((('1 Données d''entrée'!$C$332+1)^'1 Données d''entrée'!$C$333)-(1+'1 Données d''entrée'!$C$332)^('6 Financement'!D$54-1-'1 Données d''entrée'!$C$334-$B929))/((1+'1 Données d''entrée'!$C$332)^'1 Données d''entrée'!$C$333-1)*'1 Données d''entrée'!$C$332,0)","v":0},{"$f":"IF(F918>0,$G911*((('1 Données d''entrée'!$C$332+1)^'1 Données d''entrée'!$C$333)-(1+'1 Données d''entrée'!$C$332)^('6 Financement'!E$54-1-'1 Données d''entrée'!$C$334-$B929))/((1+'1 Données d''entrée'!$C$332)^'1 Données d''entrée'!$C$333-1)*'1 Données d''entrée'!$C$332,0)","v":0},{"$f":"IF(G918>0,$G911*((('1 Données d''entrée'!$C$332+1)^'1 Données d''entrée'!$C$333)-(1+'1 Données d''entrée'!$C$332)^('6 Financement'!F$54-1-'1 Données d''entrée'!$C$334-$B929))/((1+'1 Données d''entrée'!$C$332)^'1 Données d''entrée'!$C$333-1)*'1 Données d''entrée'!$C$332,0)","v":0},{"$f":"IF(H918>0,$G911*((('1 Données d''entrée'!$C$332+1)^'1 Données d''entrée'!$C$333)-(1+'1 Données d''entrée'!$C$332)^('6 Financement'!G$54-1-'1 Données d''entrée'!$C$334-$B929))/((1+'1 Données d''entrée'!$C$332)^'1 Données d''entrée'!$C$333-1)*'1 Données d''entrée'!$C$332,0)","v":0},{"$f":"IF(I918>0,$G911*((('1 Données d''entrée'!$C$332+1)^'1 Données d''entrée'!$C$333)-(1+'1 Données d''entrée'!$C$332)^('6 Financement'!H$54-1-'1 Données d''entrée'!$C$334-$B929))/((1+'1 Données d''entrée'!$C$332)^'1 Données d''entrée'!$C$333-1)*'1 Données d''entrée'!$C$332,0)","v":0},{"$f":"IF(J918>0,$G911*((('1 Données d''entrée'!$C$332+1)^'1 Données d''entrée'!$C$333)-(1+'1 Données d''entrée'!$C$332)^('6 Financement'!I$54-1-'1 Données d''entrée'!$C$334-$B929))/((1+'1 Données d''entrée'!$C$332)^'1 Données d''entrée'!$C$333-1)*'1 Données d''entrée'!$C$332,0)","v":0},{"$f":"IF(K918>0,$G911*((('1 Données d''entrée'!$C$332+1)^'1 Données d''entrée'!$C$333)-(1+'1 Données d''entrée'!$C$332)^('6 Financement'!J$54-1-'1 Données d''entrée'!$C$334-$B929))/((1+'1 Données d''entrée'!$C$332)^'1 Données d''entrée'!$C$333-1)*'1 Données d''entrée'!$C$332,0)","v":0},{"$f":"IF(L918>0,$G911*((('1 Données d''entrée'!$C$332+1)^'1 Données d''entrée'!$C$333)-(1+'1 Données d''entrée'!$C$332)^('6 Financement'!K$54-1-'1 Données d''entrée'!$C$334-$B929))/((1+'1 Données d''entrée'!$C$332)^'1 Données d''entrée'!$C$333-1)*'1 Données d''entrée'!$C$332,0)","v":0},{"$f":"IF(M918>0,$G911*((('1 Données d''entrée'!$C$332+1)^'1 Données d''entrée'!$C$333)-(1+'1 Données d''entrée'!$C$332)^('6 Financement'!L$54-1-'1 Données d''entrée'!$C$334-$B929))/((1+'1 Données d''entrée'!$C$332)^'1 Données d''entrée'!$C$333-1)*'1 Données d''entrée'!$C$332,0)","v":0},{"$f":"IF(N918>0,$G911*((('1 Données d''entrée'!$C$332+1)^'1 Données d''entrée'!$C$333)-(1+'1 Données d''entrée'!$C$332)^('6 Financement'!M$54-1-'1 Données d''entrée'!$C$334-$B929))/((1+'1 Données d''entrée'!$C$332)^'1 Données d''entrée'!$C$333-1)*'1 Données d''entrée'!$C$332,0)","v":0},{"$f":"IF(O918>0,$G911*((('1 Données d''entrée'!$C$332+1)^'1 Données d''entrée'!$C$333)-(1+'1 Données d''entrée'!$C$332)^('6 Financement'!N$54-1-'1 Données d''entrée'!$C$334-$B929))/((1+'1 Données d''entrée'!$C$332)^'1 Données d''entrée'!$C$333-1)*'1 Données d''entrée'!$C$332,0)","v":0},{"$f":"IF(P918>0,$G911*((('1 Données d''entrée'!$C$332+1)^'1 Données d''entrée'!$C$333)-(1+'1 Données d''entrée'!$C$332)^('6 Financement'!O$54-1-'1 Données d''entrée'!$C$334-$B929))/((1+'1 Données d''entrée'!$C$332)^'1 Données d''entrée'!$C$333-1)*'1 Données d''entrée'!$C$332,0)","v":0},{"$f":"IF(Q918>0,$G911*((('1 Données d''entrée'!$C$332+1)^'1 Données d''entrée'!$C$333)-(1+'1 Données d''entrée'!$C$332)^('6 Financement'!P$54-1-'1 Données d''entrée'!$C$334-$B929))/((1+'1 Données d''entrée'!$C$332)^'1 Données d''entrée'!$C$333-1)*'1 Données d''entrée'!$C$332,0)","v":0},{"$f":"IF(R918>0,$G911*((('1 Données d''entrée'!$C$332+1)^'1 Données d''entrée'!$C$333)-(1+'1 Données d''entrée'!$C$332)^('6 Financement'!Q$54-1-'1 Données d''entrée'!$C$334-$B929))/((1+'1 Données d''entrée'!$C$332)^'1 Données d''entrée'!$C$333-1)*'1 Données d''entrée'!$C$332,0)","v":0},{"$f":"IF(S918>0,$G911*((('1 Données d''entrée'!$C$332+1)^'1 Données d''entrée'!$C$333)-(1+'1 Données d''entrée'!$C$332)^('6 Financement'!R$54-1-'1 Données d''entrée'!$C$334-$B929))/((1+'1 Données d''entrée'!$C$332)^'1 Données d''entrée'!$C$333-1)*'1 Données d''entrée'!$C$332,0)","v":0},{"$f":"IF(T918>0,$G911*((('1 Données d''entrée'!$C$332+1)^'1 Données d''entrée'!$C$333)-(1+'1 Données d''entrée'!$C$332)^('6 Financement'!S$54-1-'1 Données d''entrée'!$C$334-$B929))/((1+'1 Données d''entrée'!$C$332)^'1 Données d''entrée'!$C$333-1)*'1 Données d''entrée'!$C$332,0)","v":0},{"$f":"IF(U918>0,$G911*((('1 Données d''entrée'!$C$332+1)^'1 Données d''entrée'!$C$333)-(1+'1 Données d''entrée'!$C$332)^('6 Financement'!T$54-1-'1 Données d''entrée'!$C$334-$B929))/((1+'1 Données d''entrée'!$C$332)^'1 Données d''entrée'!$C$333-1)*'1 Données d''entrée'!$C$332,0)","v":0},{"$f":"IF(V918>0,$G911*((('1 Données d''entrée'!$C$332+1)^'1 Données d''entrée'!$C$333)-(1+'1 Données d''entrée'!$C$332)^('6 Financement'!U$54-1-'1 Données d''entrée'!$C$334-$B929))/((1+'1 Données d''entrée'!$C$332)^'1 Données d''entrée'!$C$333-1)*'1 Données d''entrée'!$C$332,0)","v":0}]
["Paiement d'intêrets",6,0,{"$f":"IF(D919>0,$H911*((('1 Données d''entrée'!$C$332+1)^'1 Données d''entrée'!$C$333)-(1+'1 Données d''entrée'!$C$332)^('6 Financement'!C$54-1-'1 Données d''entrée'!$C$334-$B930))/((1+'1 Données d''entrée'!$C$332)^'1 Données d''entrée'!$C$333-1)*'1 Données d''entrée'!$C$332,0)","v":0},{"$f":"IF(E919>0,$H911*((('1 Données d''entrée'!$C$332+1)^'1 Données d''entrée'!$C$333)-(1+'1 Données d''entrée'!$C$332)^('6 Financement'!D$54-1-'1 Données d''entrée'!$C$334-$B930))/((1+'1 Données d''entrée'!$C$332)^'1 Données d''entrée'!$C$333-1)*'1 Données d''entrée'!$C$332,0)","v":0},{"$f":"IF(F919>0,$H911*((('1 Données d''entrée'!$C$332+1)^'1 Données d''entrée'!$C$333)-(1+'1 Données d''entrée'!$C$332)^('6 Financement'!E$54-1-'1 Données d''entrée'!$C$334-$B930))/((1+'1 Données d''entrée'!$C$332)^'1 Données d''entrée'!$C$333-1)*'1 Données d''entrée'!$C$332,0)","v":0},{"$f":"IF(G919>0,$H911*((('1 Données d''entrée'!$C$332+1)^'1 Données d''entrée'!$C$333)-(1+'1 Données d''entrée'!$C$332)^('6 Financement'!F$54-1-'1 Données d''entrée'!$C$334-$B930))/((1+'1 Données d''entrée'!$C$332)^'1 Données d''entrée'!$C$333-1)*'1 Données d''entrée'!$C$332,0)","v":0},{"$f":"IF(H919>0,$H911*((('1 Données d''entrée'!$C$332+1)^'1 Données d''entrée'!$C$333)-(1+'1 Données d''entrée'!$C$332)^('6 Financement'!G$54-1-'1 Données d''entrée'!$C$334-$B930))/((1+'1 Données d''entrée'!$C$332)^'1 Données d''entrée'!$C$333-1)*'1 Données d''entrée'!$C$332,0)","v":0},{"$f":"IF(I919>0,$H911*((('1 Données d''entrée'!$C$332+1)^'1 Données d''entrée'!$C$333)-(1+'1 Données d''entrée'!$C$332)^('6 Financement'!H$54-1-'1 Données d''entrée'!$C$334-$B930))/((1+'1 Données d''entrée'!$C$332)^'1 Données d''entrée'!$C$333-1)*'1 Données d''entrée'!$C$332,0)","v":0},{"$f":"IF(J919>0,$H911*((('1 Données d''entrée'!$C$332+1)^'1 Données d''entrée'!$C$333)-(1+'1 Données d''entrée'!$C$332)^('6 Financement'!I$54-1-'1 Données d''entrée'!$C$334-$B930))/((1+'1 Données d''entrée'!$C$332)^'1 Données d''entrée'!$C$333-1)*'1 Données d''entrée'!$C$332,0)","v":0},{"$f":"IF(K919>0,$H911*((('1 Données d''entrée'!$C$332+1)^'1 Données d''entrée'!$C$333)-(1+'1 Données d''entrée'!$C$332)^('6 Financement'!J$54-1-'1 Données d''entrée'!$C$334-$B930))/((1+'1 Données d''entrée'!$C$332)^'1 Données d''entrée'!$C$333-1)*'1 Données d''entrée'!$C$332,0)","v":0},{"$f":"IF(L919>0,$H911*((('1 Données d''entrée'!$C$332+1)^'1 Données d''entrée'!$C$333)-(1+'1 Données d''entrée'!$C$332)^('6 Financement'!K$54-1-'1 Données d''entrée'!$C$334-$B930))/((1+'1 Données d''entrée'!$C$332)^'1 Données d''entrée'!$C$333-1)*'1 Données d''entrée'!$C$332,0)","v":0},{"$f":"IF(M919>0,$H911*((('1 Données d''entrée'!$C$332+1)^'1 Données d''entrée'!$C$333)-(1+'1 Données d''entrée'!$C$332)^('6 Financement'!L$54-1-'1 Données d''entrée'!$C$334-$B930))/((1+'1 Données d''entrée'!$C$332)^'1 Données d''entrée'!$C$333-1)*'1 Données d''entrée'!$C$332,0)","v":0},{"$f":"IF(N919>0,$H911*((('1 Données d''entrée'!$C$332+1)^'1 Données d''entrée'!$C$333)-(1+'1 Données d''entrée'!$C$332)^('6 Financement'!M$54-1-'1 Données d''entrée'!$C$334-$B930))/((1+'1 Données d''entrée'!$C$332)^'1 Données d''entrée'!$C$333-1)*'1 Données d''entrée'!$C$332,0)","v":0},{"$f":"IF(O919>0,$H911*((('1 Données d''entrée'!$C$332+1)^'1 Données d''entrée'!$C$333)-(1+'1 Données d''entrée'!$C$332)^('6 Financement'!N$54-1-'1 Données d''entrée'!$C$334-$B930))/((1+'1 Données d''entrée'!$C$332)^'1 Données d''entrée'!$C$333-1)*'1 Données d''entrée'!$C$332,0)","v":0},{"$f":"IF(P919>0,$H911*((('1 Données d''entrée'!$C$332+1)^'1 Données d''entrée'!$C$333)-(1+'1 Données d''entrée'!$C$332)^('6 Financement'!O$54-1-'1 Données d''entrée'!$C$334-$B930))/((1+'1 Données d''entrée'!$C$332)^'1 Données d''entrée'!$C$333-1)*'1 Données d''entrée'!$C$332,0)","v":0},{"$f":"IF(Q919>0,$H911*((('1 Données d''entrée'!$C$332+1)^'1 Données d''entrée'!$C$333)-(1+'1 Données d''entrée'!$C$332)^('6 Financement'!P$54-1-'1 Données d''entrée'!$C$334-$B930))/((1+'1 Données d''entrée'!$C$332)^'1 Données d''entrée'!$C$333-1)*'1 Données d''entrée'!$C$332,0)","v":0},{"$f":"IF(R919>0,$H911*((('1 Données d''entrée'!$C$332+1)^'1 Données d''entrée'!$C$333)-(1+'1 Données d''entrée'!$C$332)^('6 Financement'!Q$54-1-'1 Données d''entrée'!$C$334-$B930))/((1+'1 Données d''entrée'!$C$332)^'1 Données d''entrée'!$C$333-1)*'1 Données d''entrée'!$C$332,0)","v":0},{"$f":"IF(S919>0,$H911*((('1 Données d''entrée'!$C$332+1)^'1 Données d''entrée'!$C$333)-(1+'1 Données d''entrée'!$C$332)^('6 Financement'!R$54-1-'1 Données d''entrée'!$C$334-$B930))/((1+'1 Données d''entrée'!$C$332)^'1 Données d''entrée'!$C$333-1)*'1 Données d''entrée'!$C$332,0)","v":0},{"$f":"IF(T919>0,$H911*((('1 Données d''entrée'!$C$332+1)^'1 Données d''entrée'!$C$333)-(1+'1 Données d''entrée'!$C$332)^('6 Financement'!S$54-1-'1 Données d''entrée'!$C$334-$B930))/((1+'1 Données d''entrée'!$C$332)^'1 Données d''entrée'!$C$333-1)*'1 Données d''entrée'!$C$332,0)","v":0},{"$f":"IF(U919>0,$H911*((('1 Données d''entrée'!$C$332+1)^'1 Données d''entrée'!$C$333)-(1+'1 Données d''entrée'!$C$332)^('6 Financement'!T$54-1-'1 Données d''entrée'!$C$334-$B930))/((1+'1 Données d''entrée'!$C$332)^'1 Données d''entrée'!$C$333-1)*'1 Données d''entrée'!$C$332,0)","v":0},{"$f":"IF(V919>0,$H911*((('1 Données d''entrée'!$C$332+1)^'1 Données d''entrée'!$C$333)-(1+'1 Données d''entrée'!$C$332)^('6 Financement'!U$54-1-'1 Données d''entrée'!$C$334-$B930))/((1+'1 Données d''entrée'!$C$332)^'1 Données d''entrée'!$C$333-1)*'1 Données d''entrée'!$C$332,0)","v":0}]
["Paiement d'intêrets",7,0,{"$f":"IF(D920>0,$I911*((('1 Données d''entrée'!$C$332+1)^'1 Données d''entrée'!$C$333)-(1+'1 Données d''entrée'!$C$332)^('6 Financement'!C$54-1-'1 Données d''entrée'!$C$334-$B931))/((1+'1 Données d''entrée'!$C$332)^'1 Données d''entrée'!$C$333-1)*'1 Données d''entrée'!$C$332,0)","v":0},{"$f":"IF(E920>0,$I911*((('1 Données d''entrée'!$C$332+1)^'1 Données d''entrée'!$C$333)-(1+'1 Données d''entrée'!$C$332)^('6 Financement'!D$54-1-'1 Données d''entrée'!$C$334-$B931))/((1+'1 Données d''entrée'!$C$332)^'1 Données d''entrée'!$C$333-1)*'1 Données d''entrée'!$C$332,0)","v":0},{"$f":"IF(F920>0,$I911*((('1 Données d''entrée'!$C$332+1)^'1 Données d''entrée'!$C$333)-(1+'1 Données d''entrée'!$C$332)^('6 Financement'!E$54-1-'1 Données d''entrée'!$C$334-$B931))/((1+'1 Données d''entrée'!$C$332)^'1 Données d''entrée'!$C$333-1)*'1 Données d''entrée'!$C$332,0)","v":0},{"$f":"IF(G920>0,$I911*((('1 Données d''entrée'!$C$332+1)^'1 Données d''entrée'!$C$333)-(1+'1 Données d''entrée'!$C$332)^('6 Financement'!F$54-1-'1 Données d''entrée'!$C$334-$B931))/((1+'1 Données d''entrée'!$C$332)^'1 Données d''entrée'!$C$333-1)*'1 Données d''entrée'!$C$332,0)","v":0},{"$f":"IF(H920>0,$I911*((('1 Données d''entrée'!$C$332+1)^'1 Données d''entrée'!$C$333)-(1+'1 Données d''entrée'!$C$332)^('6 Financement'!G$54-1-'1 Données d''entrée'!$C$334-$B931))/((1+'1 Données d''entrée'!$C$332)^'1 Données d''entrée'!$C$333-1)*'1 Données d''entrée'!$C$332,0)","v":0},{"$f":"IF(I920>0,$I911*((('1 Données d''entrée'!$C$332+1)^'1 Données d''entrée'!$C$333)-(1+'1 Données d''entrée'!$C$332)^('6 Financement'!H$54-1-'1 Données d''entrée'!$C$334-$B931))/((1+'1 Données d''entrée'!$C$332)^'1 Données d''entrée'!$C$333-1)*'1 Données d''entrée'!$C$332,0)","v":0},{"$f":"IF(J920>0,$I911*((('1 Données d''entrée'!$C$332+1)^'1 Données d''entrée'!$C$333)-(1+'1 Données d''entrée'!$C$332)^('6 Financement'!I$54-1-'1 Données d''entrée'!$C$334-$B931))/((1+'1 Données d''entrée'!$C$332)^'1 Données d''entrée'!$C$333-1)*'1 Données d''entrée'!$C$332,0)","v":0},{"$f":"IF(K920>0,$I911*((('1 Données d''entrée'!$C$332+1)^'1 Données d''entrée'!$C$333)-(1+'1 Données d''entrée'!$C$332)^('6 Financement'!J$54-1-'1 Données d''entrée'!$C$334-$B931))/((1+'1 Données d''entrée'!$C$332)^'1 Données d''entrée'!$C$333-1)*'1 Données d''entrée'!$C$332,0)","v":0},{"$f":"IF(L920>0,$I911*((('1 Données d''entrée'!$C$332+1)^'1 Données d''entrée'!$C$333)-(1+'1 Données d''entrée'!$C$332)^('6 Financement'!K$54-1-'1 Données d''entrée'!$C$334-$B931))/((1+'1 Données d''entrée'!$C$332)^'1 Données d''entrée'!$C$333-1)*'1 Données d''entrée'!$C$332,0)","v":0},{"$f":"IF(M920>0,$I911*((('1 Données d''entrée'!$C$332+1)^'1 Données d''entrée'!$C$333)-(1+'1 Données d''entrée'!$C$332)^('6 Financement'!L$54-1-'1 Données d''entrée'!$C$334-$B931))/((1+'1 Données d''entrée'!$C$332)^'1 Données d''entrée'!$C$333-1)*'1 Données d''entrée'!$C$332,0)","v":0},{"$f":"IF(N920>0,$I911*((('1 Données d''entrée'!$C$332+1)^'1 Données d''entrée'!$C$333)-(1+'1 Données d''entrée'!$C$332)^('6 Financement'!M$54-1-'1 Données d''entrée'!$C$334-$B931))/((1+'1 Données d''entrée'!$C$332)^'1 Données d''entrée'!$C$333-1)*'1 Données d''entrée'!$C$332,0)","v":0},{"$f":"IF(O920>0,$I911*((('1 Données d''entrée'!$C$332+1)^'1 Données d''entrée'!$C$333)-(1+'1 Données d''entrée'!$C$332)^('6 Financement'!N$54-1-'1 Données d''entrée'!$C$334-$B931))/((1+'1 Données d''entrée'!$C$332)^'1 Données d''entrée'!$C$333-1)*'1 Données d''entrée'!$C$332,0)","v":0},{"$f":"IF(P920>0,$I911*((('1 Données d''entrée'!$C$332+1)^'1 Données d''entrée'!$C$333)-(1+'1 Données d''entrée'!$C$332)^('6 Financement'!O$54-1-'1 Données d''entrée'!$C$334-$B931))/((1+'1 Données d''entrée'!$C$332)^'1 Données d''entrée'!$C$333-1)*'1 Données d''entrée'!$C$332,0)","v":0},{"$f":"IF(Q920>0,$I911*((('1 Données d''entrée'!$C$332+1)^'1 Données d''entrée'!$C$333)-(1+'1 Données d''entrée'!$C$332)^('6 Financement'!P$54-1-'1 Données d''entrée'!$C$334-$B931))/((1+'1 Données d''entrée'!$C$332)^'1 Données d''entrée'!$C$333-1)*'1 Données d''entrée'!$C$332,0)","v":0},{"$f":"IF(R920>0,$I911*((('1 Données d''entrée'!$C$332+1)^'1 Données d''entrée'!$C$333)-(1+'1 Données d''entrée'!$C$332)^('6 Financement'!Q$54-1-'1 Données d''entrée'!$C$334-$B931))/((1+'1 Données d''entrée'!$C$332)^'1 Données d''entrée'!$C$333-1)*'1 Données d''entrée'!$C$332,0)","v":0},{"$f":"IF(S920>0,$I911*((('1 Données d''entrée'!$C$332+1)^'1 Données d''entrée'!$C$333)-(1+'1 Données d''entrée'!$C$332)^('6 Financement'!R$54-1-'1 Données d''entrée'!$C$334-$B931))/((1+'1 Données d''entrée'!$C$332)^'1 Données d''entrée'!$C$333-1)*'1 Données d''entrée'!$C$332,0)","v":0},{"$f":"IF(T920>0,$I911*((('1 Données d''entrée'!$C$332+1)^'1 Données d''entrée'!$C$333)-(1+'1 Données d''entrée'!$C$332)^('6 Financement'!S$54-1-'1 Données d''entrée'!$C$334-$B931))/((1+'1 Données d''entrée'!$C$332)^'1 Données d''entrée'!$C$333-1)*'1 Données d''entrée'!$C$332,0)","v":0},{"$f":"IF(U920>0,$I911*((('1 Données d''entrée'!$C$332+1)^'1 Données d''entrée'!$C$333)-(1+'1 Données d''entrée'!$C$332)^('6 Financement'!T$54-1-'1 Données d''entrée'!$C$334-$B931))/((1+'1 Données d''entrée'!$C$332)^'1 Données d''entrée'!$C$333-1)*'1 Données d''entrée'!$C$332,0)","v":0},{"$f":"IF(V920>0,$I911*((('1 Données d''entrée'!$C$332+1)^'1 Données d''entrée'!$C$333)-(1+'1 Données d''entrée'!$C$332)^('6 Financement'!U$54-1-'1 Données d''entrée'!$C$334-$B931))/((1+'1 Données d''entrée'!$C$332)^'1 Données d''entrée'!$C$333-1)*'1 Données d''entrée'!$C$332,0)","v":0}]
["Paiement d'intêrets",8,0,{"$f":"IF(D921>0,$J911*((('1 Données d''entrée'!$C$332+1)^'1 Données d''entrée'!$C$333)-(1+'1 Données d''entrée'!$C$332)^('6 Financement'!C$54-1-'1 Données d''entrée'!$C$334-$B932))/((1+'1 Données d''entrée'!$C$332)^'1 Données d''entrée'!$C$333-1)*'1 Données d''entrée'!$C$332,0)","v":0},{"$f":"IF(E921>0,$J911*((('1 Données d''entrée'!$C$332+1)^'1 Données d''entrée'!$C$333)-(1+'1 Données d''entrée'!$C$332)^('6 Financement'!D$54-1-'1 Données d''entrée'!$C$334-$B932))/((1+'1 Données d''entrée'!$C$332)^'1 Données d''entrée'!$C$333-1)*'1 Données d''entrée'!$C$332,0)","v":0},{"$f":"IF(F921>0,$J911*((('1 Données d''entrée'!$C$332+1)^'1 Données d''entrée'!$C$333)-(1+'1 Données d''entrée'!$C$332)^('6 Financement'!E$54-1-'1 Données d''entrée'!$C$334-$B932))/((1+'1 Données d''entrée'!$C$332)^'1 Données d''entrée'!$C$333-1)*'1 Données d''entrée'!$C$332,0)","v":0},{"$f":"IF(G921>0,$J911*((('1 Données d''entrée'!$C$332+1)^'1 Données d''entrée'!$C$333)-(1+'1 Données d''entrée'!$C$332)^('6 Financement'!F$54-1-'1 Données d''entrée'!$C$334-$B932))/((1+'1 Données d''entrée'!$C$332)^'1 Données d''entrée'!$C$333-1)*'1 Données d''entrée'!$C$332,0)","v":0},{"$f":"IF(H921>0,$J911*((('1 Données d''entrée'!$C$332+1)^'1 Données d''entrée'!$C$333)-(1+'1 Données d''entrée'!$C$332)^('6 Financement'!G$54-1-'1 Données d''entrée'!$C$334-$B932))/((1+'1 Données d''entrée'!$C$332)^'1 Données d''entrée'!$C$333-1)*'1 Données d''entrée'!$C$332,0)","v":0},{"$f":"IF(I921>0,$J911*((('1 Données d''entrée'!$C$332+1)^'1 Données d''entrée'!$C$333)-(1+'1 Données d''entrée'!$C$332)^('6 Financement'!H$54-1-'1 Données d''entrée'!$C$334-$B932))/((1+'1 Données d''entrée'!$C$332)^'1 Données d''entrée'!$C$333-1)*'1 Données d''entrée'!$C$332,0)","v":0},{"$f":"IF(J921>0,$J911*((('1 Données d''entrée'!$C$332+1)^'1 Données d''entrée'!$C$333)-(1+'1 Données d''entrée'!$C$332)^('6 Financement'!I$54-1-'1 Données d''entrée'!$C$334-$B932))/((1+'1 Données d''entrée'!$C$332)^'1 Données d''entrée'!$C$333-1)*'1 Données d''entrée'!$C$332,0)","v":0},{"$f":"IF(K921>0,$J911*((('1 Données d''entrée'!$C$332+1)^'1 Données d''entrée'!$C$333)-(1+'1 Données d''entrée'!$C$332)^('6 Financement'!J$54-1-'1 Données d''entrée'!$C$334-$B932))/((1+'1 Données d''entrée'!$C$332)^'1 Données d''entrée'!$C$333-1)*'1 Données d''entrée'!$C$332,0)","v":0},{"$f":"IF(L921>0,$J911*((('1 Données d''entrée'!$C$332+1)^'1 Données d''entrée'!$C$333)-(1+'1 Données d''entrée'!$C$332)^('6 Financement'!K$54-1-'1 Données d''entrée'!$C$334-$B932))/((1+'1 Données d''entrée'!$C$332)^'1 Données d''entrée'!$C$333-1)*'1 Données d''entrée'!$C$332,0)","v":0},{"$f":"IF(M921>0,$J911*((('1 Données d''entrée'!$C$332+1)^'1 Données d''entrée'!$C$333)-(1+'1 Données d''entrée'!$C$332)^('6 Financement'!L$54-1-'1 Données d''entrée'!$C$334-$B932))/((1+'1 Données d''entrée'!$C$332)^'1 Données d''entrée'!$C$333-1)*'1 Données d''entrée'!$C$332,0)","v":0},{"$f":"IF(N921>0,$J911*((('1 Données d''entrée'!$C$332+1)^'1 Données d''entrée'!$C$333)-(1+'1 Données d''entrée'!$C$332)^('6 Financement'!M$54-1-'1 Données d''entrée'!$C$334-$B932))/((1+'1 Données d''entrée'!$C$332)^'1 Données d''entrée'!$C$333-1)*'1 Données d''entrée'!$C$332,0)","v":0},{"$f":"IF(O921>0,$J911*((('1 Données d''entrée'!$C$332+1)^'1 Données d''entrée'!$C$333)-(1+'1 Données d''entrée'!$C$332)^('6 Financement'!N$54-1-'1 Données d''entrée'!$C$334-$B932))/((1+'1 Données d''entrée'!$C$332)^'1 Données d''entrée'!$C$333-1)*'1 Données d''entrée'!$C$332,0)","v":0},{"$f":"IF(P921>0,$J911*((('1 Données d''entrée'!$C$332+1)^'1 Données d''entrée'!$C$333)-(1+'1 Données d''entrée'!$C$332)^('6 Financement'!O$54-1-'1 Données d''entrée'!$C$334-$B932))/((1+'1 Données d''entrée'!$C$332)^'1 Données d''entrée'!$C$333-1)*'1 Données d''entrée'!$C$332,0)","v":0},{"$f":"IF(Q921>0,$J911*((('1 Données d''entrée'!$C$332+1)^'1 Données d''entrée'!$C$333)-(1+'1 Données d''entrée'!$C$332)^('6 Financement'!P$54-1-'1 Données d''entrée'!$C$334-$B932))/((1+'1 Données d''entrée'!$C$332)^'1 Données d''entrée'!$C$333-1)*'1 Données d''entrée'!$C$332,0)","v":0},{"$f":"IF(R921>0,$J911*((('1 Données d''entrée'!$C$332+1)^'1 Données d''entrée'!$C$333)-(1+'1 Données d''entrée'!$C$332)^('6 Financement'!Q$54-1-'1 Données d''entrée'!$C$334-$B932))/((1+'1 Données d''entrée'!$C$332)^'1 Données d''entrée'!$C$333-1)*'1 Données d''entrée'!$C$332,0)","v":0},{"$f":"IF(S921>0,$J911*((('1 Données d''entrée'!$C$332+1)^'1 Données d''entrée'!$C$333)-(1+'1 Données d''entrée'!$C$332)^('6 Financement'!R$54-1-'1 Données d''entrée'!$C$334-$B932))/((1+'1 Données d''entrée'!$C$332)^'1 Données d''entrée'!$C$333-1)*'1 Données d''entrée'!$C$332,0)","v":0},{"$f":"IF(T921>0,$J911*((('1 Données d''entrée'!$C$332+1)^'1 Données d''entrée'!$C$333)-(1+'1 Données d''entrée'!$C$332)^('6 Financement'!S$54-1-'1 Données d''entrée'!$C$334-$B932))/((1+'1 Données d''entrée'!$C$332)^'1 Données d''entrée'!$C$333-1)*'1 Données d''entrée'!$C$332,0)","v":0},{"$f":"IF(U921>0,$J911*((('1 Données d''entrée'!$C$332+1)^'1 Données d''entrée'!$C$333)-(1+'1 Données d''entrée'!$C$332)^('6 Financement'!T$54-1-'1 Données d''entrée'!$C$334-$B932))/((1+'1 Données d''entrée'!$C$332)^'1 Données d''entrée'!$C$333-1)*'1 Données d''entrée'!$C$332,0)","v":0},{"$f":"IF(V921>0,$J911*((('1 Données d''entrée'!$C$332+1)^'1 Données d''entrée'!$C$333)-(1+'1 Données d''entrée'!$C$332)^('6 Financement'!U$54-1-'1 Données d''entrée'!$C$334-$B932))/((1+'1 Données d''entrée'!$C$332)^'1 Données d''entrée'!$C$333-1)*'1 Données d''entrée'!$C$332,0)","v":0}]
["Paiement d'intêrets",9,0,{"$f":"IF(D922>0,$K911*((('1 Données d''entrée'!$C$332+1)^'1 Données d''entrée'!$C$333)-(1+'1 Données d''entrée'!$C$332)^('6 Financement'!C$54-1-'1 Données d''entrée'!$C$334-$B933))/((1+'1 Données d''entrée'!$C$332)^'1 Données d''entrée'!$C$333-1)*'1 Données d''entrée'!$C$332,0)","v":0},{"$f":"IF(E922>0,$K911*((('1 Données d''entrée'!$C$332+1)^'1 Données d''entrée'!$C$333)-(1+'1 Données d''entrée'!$C$332)^('6 Financement'!D$54-1-'1 Données d''entrée'!$C$334-$B933))/((1+'1 Données d''entrée'!$C$332)^'1 Données d''entrée'!$C$333-1)*'1 Données d''entrée'!$C$332,0)","v":0},{"$f":"IF(F922>0,$K911*((('1 Données d''entrée'!$C$332+1)^'1 Données d''entrée'!$C$333)-(1+'1 Données d''entrée'!$C$332)^('6 Financement'!E$54-1-'1 Données d''entrée'!$C$334-$B933))/((1+'1 Données d''entrée'!$C$332)^'1 Données d''entrée'!$C$333-1)*'1 Données d''entrée'!$C$332,0)","v":0},{"$f":"IF(G922>0,$K911*((('1 Données d''entrée'!$C$332+1)^'1 Données d''entrée'!$C$333)-(1+'1 Données d''entrée'!$C$332)^('6 Financement'!F$54-1-'1 Données d''entrée'!$C$334-$B933))/((1+'1 Données d''entrée'!$C$332)^'1 Données d''entrée'!$C$333-1)*'1 Données d''entrée'!$C$332,0)","v":0},{"$f":"IF(H922>0,$K911*((('1 Données d''entrée'!$C$332+1)^'1 Données d''entrée'!$C$333)-(1+'1 Données d''entrée'!$C$332)^('6 Financement'!G$54-1-'1 Données d''entrée'!$C$334-$B933))/((1+'1 Données d''entrée'!$C$332)^'1 Données d''entrée'!$C$333-1)*'1 Données d''entrée'!$C$332,0)","v":0},{"$f":"IF(I922>0,$K911*((('1 Données d''entrée'!$C$332+1)^'1 Données d''entrée'!$C$333)-(1+'1 Données d''entrée'!$C$332)^('6 Financement'!H$54-1-'1 Données d''entrée'!$C$334-$B933))/((1+'1 Données d''entrée'!$C$332)^'1 Données d''entrée'!$C$333-1)*'1 Données d''entrée'!$C$332,0)","v":0},{"$f":"IF(J922>0,$K911*((('1 Données d''entrée'!$C$332+1)^'1 Données d''entrée'!$C$333)-(1+'1 Données d''entrée'!$C$332)^('6 Financement'!I$54-1-'1 Données d''entrée'!$C$334-$B933))/((1+'1 Données d''entrée'!$C$332)^'1 Données d''entrée'!$C$333-1)*'1 Données d''entrée'!$C$332,0)","v":0},{"$f":"IF(K922>0,$K911*((('1 Données d''entrée'!$C$332+1)^'1 Données d''entrée'!$C$333)-(1+'1 Données d''entrée'!$C$332)^('6 Financement'!J$54-1-'1 Données d''entrée'!$C$334-$B933))/((1+'1 Données d''entrée'!$C$332)^'1 Données d''entrée'!$C$333-1)*'1 Données d''entrée'!$C$332,0)","v":0},{"$f":"IF(L922>0,$K911*((('1 Données d''entrée'!$C$332+1)^'1 Données d''entrée'!$C$333)-(1+'1 Données d''entrée'!$C$332)^('6 Financement'!K$54-1-'1 Données d''entrée'!$C$334-$B933))/((1+'1 Données d''entrée'!$C$332)^'1 Données d''entrée'!$C$333-1)*'1 Données d''entrée'!$C$332,0)","v":0},{"$f":"IF(M922>0,$K911*((('1 Données d''entrée'!$C$332+1)^'1 Données d''entrée'!$C$333)-(1+'1 Données d''entrée'!$C$332)^('6 Financement'!L$54-1-'1 Données d''entrée'!$C$334-$B933))/((1+'1 Données d''entrée'!$C$332)^'1 Données d''entrée'!$C$333-1)*'1 Données d''entrée'!$C$332,0)","v":0},{"$f":"IF(N922>0,$K911*((('1 Données d''entrée'!$C$332+1)^'1 Données d''entrée'!$C$333)-(1+'1 Données d''entrée'!$C$332)^('6 Financement'!M$54-1-'1 Données d''entrée'!$C$334-$B933))/((1+'1 Données d''entrée'!$C$332)^'1 Données d''entrée'!$C$333-1)*'1 Données d''entrée'!$C$332,0)","v":0},{"$f":"IF(O922>0,$K911*((('1 Données d''entrée'!$C$332+1)^'1 Données d''entrée'!$C$333)-(1+'1 Données d''entrée'!$C$332)^('6 Financement'!N$54-1-'1 Données d''entrée'!$C$334-$B933))/((1+'1 Données d''entrée'!$C$332)^'1 Données d''entrée'!$C$333-1)*'1 Données d''entrée'!$C$332,0)","v":0},{"$f":"IF(P922>0,$K911*((('1 Données d''entrée'!$C$332+1)^'1 Données d''entrée'!$C$333)-(1+'1 Données d''entrée'!$C$332)^('6 Financement'!O$54-1-'1 Données d''entrée'!$C$334-$B933))/((1+'1 Données d''entrée'!$C$332)^'1 Données d''entrée'!$C$333-1)*'1 Données d''entrée'!$C$332,0)","v":0},{"$f":"IF(Q922>0,$K911*((('1 Données d''entrée'!$C$332+1)^'1 Données d''entrée'!$C$333)-(1+'1 Données d''entrée'!$C$332)^('6 Financement'!P$54-1-'1 Données d''entrée'!$C$334-$B933))/((1+'1 Données d''entrée'!$C$332)^'1 Données d''entrée'!$C$333-1)*'1 Données d''entrée'!$C$332,0)","v":0},{"$f":"IF(R922>0,$K911*((('1 Données d''entrée'!$C$332+1)^'1 Données d''entrée'!$C$333)-(1+'1 Données d''entrée'!$C$332)^('6 Financement'!Q$54-1-'1 Données d''entrée'!$C$334-$B933))/((1+'1 Données d''entrée'!$C$332)^'1 Données d''entrée'!$C$333-1)*'1 Données d''entrée'!$C$332,0)","v":0},{"$f":"IF(S922>0,$K911*((('1 Données d''entrée'!$C$332+1)^'1 Données d''entrée'!$C$333)-(1+'1 Données d''entrée'!$C$332)^('6 Financement'!R$54-1-'1 Données d''entrée'!$C$334-$B933))/((1+'1 Données d''entrée'!$C$332)^'1 Données d''entrée'!$C$333-1)*'1 Données d''entrée'!$C$332,0)","v":0},{"$f":"IF(T922>0,$K911*((('1 Données d''entrée'!$C$332+1)^'1 Données d''entrée'!$C$333)-(1+'1 Données d''entrée'!$C$332)^('6 Financement'!S$54-1-'1 Données d''entrée'!$C$334-$B933))/((1+'1 Données d''entrée'!$C$332)^'1 Données d''entrée'!$C$333-1)*'1 Données d''entrée'!$C$332,0)","v":0},{"$f":"IF(U922>0,$K911*((('1 Données d''entrée'!$C$332+1)^'1 Données d''entrée'!$C$333)-(1+'1 Données d''entrée'!$C$332)^('6 Financement'!T$54-1-'1 Données d''entrée'!$C$334-$B933))/((1+'1 Données d''entrée'!$C$332)^'1 Données d''entrée'!$C$333-1)*'1 Données d''entrée'!$C$332,0)","v":0},{"$f":"IF(V922>0,$K911*((('1 Données d''entrée'!$C$332+1)^'1 Données d''entrée'!$C$333)-(1+'1 Données d''entrée'!$C$332)^('6 Financement'!U$54-1-'1 Données d''entrée'!$C$334-$B933))/((1+'1 Données d''entrée'!$C$332)^'1 Données d''entrée'!$C$333-1)*'1 Données d''entrée'!$C$332,0)","v":0}]
["Paiement d'intêrets",10,0,{"$f":"IF(D923>0,$L911*((('1 Données d''entrée'!$C$332+1)^'1 Données d''entrée'!$C$333)-(1+'1 Données d''entrée'!$C$332)^('6 Financement'!C$54-1-'1 Données d''entrée'!$C$334-$B934))/((1+'1 Données d''entrée'!$C$332)^'1 Données d''entrée'!$C$333-1)*'1 Données d''entrée'!$C$332,0)","v":0},{"$f":"IF(E923>0,$L911*((('1 Données d''entrée'!$C$332+1)^'1 Données d''entrée'!$C$333)-(1+'1 Données d''entrée'!$C$332)^('6 Financement'!D$54-1-'1 Données d''entrée'!$C$334-$B934))/((1+'1 Données d''entrée'!$C$332)^'1 Données d''entrée'!$C$333-1)*'1 Données d''entrée'!$C$332,0)","v":0},{"$f":"IF(F923>0,$L911*((('1 Données d''entrée'!$C$332+1)^'1 Données d''entrée'!$C$333)-(1+'1 Données d''entrée'!$C$332)^('6 Financement'!E$54-1-'1 Données d''entrée'!$C$334-$B934))/((1+'1 Données d''entrée'!$C$332)^'1 Données d''entrée'!$C$333-1)*'1 Données d''entrée'!$C$332,0)","v":0},{"$f":"IF(G923>0,$L911*((('1 Données d''entrée'!$C$332+1)^'1 Données d''entrée'!$C$333)-(1+'1 Données d''entrée'!$C$332)^('6 Financement'!F$54-1-'1 Données d''entrée'!$C$334-$B934))/((1+'1 Données d''entrée'!$C$332)^'1 Données d''entrée'!$C$333-1)*'1 Données d''entrée'!$C$332,0)","v":0},{"$f":"IF(H923>0,$L911*((('1 Données d''entrée'!$C$332+1)^'1 Données d''entrée'!$C$333)-(1+'1 Données d''entrée'!$C$332)^('6 Financement'!G$54-1-'1 Données d''entrée'!$C$334-$B934))/((1+'1 Données d''entrée'!$C$332)^'1 Données d''entrée'!$C$333-1)*'1 Données d''entrée'!$C$332,0)","v":0},{"$f":"IF(I923>0,$L911*((('1 Données d''entrée'!$C$332+1)^'1 Données d''entrée'!$C$333)-(1+'1 Données d''entrée'!$C$332)^('6 Financement'!H$54-1-'1 Données d''entrée'!$C$334-$B934))/((1+'1 Données d''entrée'!$C$332)^'1 Données d''entrée'!$C$333-1)*'1 Données d''entrée'!$C$332,0)","v":0},{"$f":"IF(J923>0,$L911*((('1 Données d''entrée'!$C$332+1)^'1 Données d''entrée'!$C$333)-(1+'1 Données d''entrée'!$C$332)^('6 Financement'!I$54-1-'1 Données d''entrée'!$C$334-$B934))/((1+'1 Données d''entrée'!$C$332)^'1 Données d''entrée'!$C$333-1)*'1 Données d''entrée'!$C$332,0)","v":0},{"$f":"IF(K923>0,$L911*((('1 Données d''entrée'!$C$332+1)^'1 Données d''entrée'!$C$333)-(1+'1 Données d''entrée'!$C$332)^('6 Financement'!J$54-1-'1 Données d''entrée'!$C$334-$B934))/((1+'1 Données d''entrée'!$C$332)^'1 Données d''entrée'!$C$333-1)*'1 Données d''entrée'!$C$332,0)","v":0},{"$f":"IF(L923>0,$L911*((('1 Données d''entrée'!$C$332+1)^'1 Données d''entrée'!$C$333)-(1+'1 Données d''entrée'!$C$332)^('6 Financement'!K$54-1-'1 Données d''entrée'!$C$334-$B934))/((1+'1 Données d''entrée'!$C$332)^'1 Données d''entrée'!$C$333-1)*'1 Données d''entrée'!$C$332,0)","v":0},{"$f":"IF(M923>0,$L911*((('1 Données d''entrée'!$C$332+1)^'1 Données d''entrée'!$C$333)-(1+'1 Données d''entrée'!$C$332)^('6 Financement'!L$54-1-'1 Données d''entrée'!$C$334-$B934))/((1+'1 Données d''entrée'!$C$332)^'1 Données d''entrée'!$C$333-1)*'1 Données d''entrée'!$C$332,0)","v":0},{"$f":"IF(N923>0,$L911*((('1 Données d''entrée'!$C$332+1)^'1 Données d''entrée'!$C$333)-(1+'1 Données d''entrée'!$C$332)^('6 Financement'!M$54-1-'1 Données d''entrée'!$C$334-$B934))/((1+'1 Données d''entrée'!$C$332)^'1 Données d''entrée'!$C$333-1)*'1 Données d''entrée'!$C$332,0)","v":0},{"$f":"IF(O923>0,$L911*((('1 Données d''entrée'!$C$332+1)^'1 Données d''entrée'!$C$333)-(1+'1 Données d''entrée'!$C$332)^('6 Financement'!N$54-1-'1 Données d''entrée'!$C$334-$B934))/((1+'1 Données d''entrée'!$C$332)^'1 Données d''entrée'!$C$333-1)*'1 Données d''entrée'!$C$332,0)","v":0},{"$f":"IF(P923>0,$L911*((('1 Données d''entrée'!$C$332+1)^'1 Données d''entrée'!$C$333)-(1+'1 Données d''entrée'!$C$332)^('6 Financement'!O$54-1-'1 Données d''entrée'!$C$334-$B934))/((1+'1 Données d''entrée'!$C$332)^'1 Données d''entrée'!$C$333-1)*'1 Données d''entrée'!$C$332,0)","v":0},{"$f":"IF(Q923>0,$L911*((('1 Données d''entrée'!$C$332+1)^'1 Données d''entrée'!$C$333)-(1+'1 Données d''entrée'!$C$332)^('6 Financement'!P$54-1-'1 Données d''entrée'!$C$334-$B934))/((1+'1 Données d''entrée'!$C$332)^'1 Données d''entrée'!$C$333-1)*'1 Données d''entrée'!$C$332,0)","v":0},{"$f":"IF(R923>0,$L911*((('1 Données d''entrée'!$C$332+1)^'1 Données d''entrée'!$C$333)-(1+'1 Données d''entrée'!$C$332)^('6 Financement'!Q$54-1-'1 Données d''entrée'!$C$334-$B934))/((1+'1 Données d''entrée'!$C$332)^'1 Données d''entrée'!$C$333-1)*'1 Données d''entrée'!$C$332,0)","v":0},{"$f":"IF(S923>0,$L911*((('1 Données d''entrée'!$C$332+1)^'1 Données d''entrée'!$C$333)-(1+'1 Données d''entrée'!$C$332)^('6 Financement'!R$54-1-'1 Données d''entrée'!$C$334-$B934))/((1+'1 Données d''entrée'!$C$332)^'1 Données d''entrée'!$C$333-1)*'1 Données d''entrée'!$C$332,0)","v":0},{"$f":"IF(T923>0,$L911*((('1 Données d''entrée'!$C$332+1)^'1 Données d''entrée'!$C$333)-(1+'1 Données d''entrée'!$C$332)^('6 Financement'!S$54-1-'1 Données d''entrée'!$C$334-$B934))/((1+'1 Données d''entrée'!$C$332)^'1 Données d''entrée'!$C$333-1)*'1 Données d''entrée'!$C$332,0)","v":0},{"$f":"IF(U923>0,$L911*((('1 Données d''entrée'!$C$332+1)^'1 Données d''entrée'!$C$333)-(1+'1 Données d''entrée'!$C$332)^('6 Financement'!T$54-1-'1 Données d''entrée'!$C$334-$B934))/((1+'1 Données d''entrée'!$C$332)^'1 Données d''entrée'!$C$333-1)*'1 Données d''entrée'!$C$332,0)","v":0},{"$f":"IF(V923>0,$L911*((('1 Données d''entrée'!$C$332+1)^'1 Données d''entrée'!$C$333)-(1+'1 Données d''entrée'!$C$332)^('6 Financement'!U$54-1-'1 Données d''entrée'!$C$334-$B934))/((1+'1 Données d''entrée'!$C$332)^'1 Données d''entrée'!$C$333-1)*'1 Données d''entrée'!$C$332,0)","v":0}]
[]
["Solde du comte (par période)",null,{"$f":"C847+IF($B$103>0,C855-SUM(C857:C867)-SUM(C869:C879),0)+IF($B$131>0,C883-SUM(C885:C895)-SUM(C897:C907),0)+IF($B$159>0,C911-SUM(C913:C923),0)","v":{"$error":"#DIV/0!"}},{"$f":"D847+IF($B$103>0,D855-SUM(D857:D867)-SUM(D869:D879),0)+IF($B$131>0,D883-SUM(D885:D895)-SUM(D897:D907),0)+IF($B$159>0,D911-SUM(D913:D923),0)","v":{"$error":"#DIV/0!"}},{"$error":"#DIV/0!"},{"$error":"#DIV/0!"},{"$error":"#DIV/0!"},{"$error":"#DIV/0!"},{"$error":"#DIV/0!"},{"$error":"#DIV/0!"},{"$error":"#DIV/0!"},{"$error":"#DIV/0!"},{"$error":"#DIV/0!"},{"$error":"#DIV/0!"},{"$error":"#DIV/0!"},{"$error":"#DIV/0!"},{"$error":"#DIV/0!"},{"$error":"#DIV/0!"},{"$error":"#DIV/0!"},{"$error":"#DIV/0!"},{"$error":"#DIV/0!"},{"$error":"#DIV/0!"}]
["Solde du compte (cumulé)",null,{"$f":"C937+B848","v":{"$error":"#DIV/0!"}},{"$f":"C938+D937","v":{"$error":"#DIV/0!"}},{"$error":"#DIV/0!"},{"$error":"#DIV/0!"},{"$error":"#DIV/0!"},{"$error":"#DIV/0!"},{"$error":"#DIV/0!"},{"$error":"#DIV/0!"},{"$error":"#DIV/0!"},{"$error":"#DIV/0!"},{"$error":"#DIV/0!"},{"$error":"#DIV/0!"},{"$error":"#DIV/0!"},{"$error":"#DIV/0!"},{"$error":"#DIV/0!"},{"$error":"#DIV/0!"},{"$error":"#DIV/0!"},{"$error":"#DIV/0!"},{"$error":"#DIV/0!"},{"$error":"#DIV/0!"}]
[]
[]
["Coût du financement","Période",1,2,3,4,5,6,7,8,9,10,11,12,13,14,15,16,17,18,19,20]
["Paiement d'intérêt par période",null,{"$f":"IF($B813>0,(C816+C817),0)+IF($B818>0,(C821+C822),0)+IF($B823>0,C826+C827,0)+IF($B830>0,(C833+C834),0)+IF($B835>0,(C838+C839),0)+IF($B840>0,C843+C844,0)+IF($B852>0,SUM(C869:C879),0)+IF($B882>0,SUM(C897:C907),0)+IF($B910>0,SUM(C925:C935),0)","v":0},{"$f":"IF($B813>0,(D816+D817),0)+IF($B818>0,(D821+D822),0)+IF($B823>0,D826+D827,0)+IF($B830>0,(D833+D834),0)+IF($B835>0,(D838+D839),0)+IF($B840>0,D843+D844,0)+IF($B852>0,SUM(D869:D879),0)+IF($B882>0,SUM(D897:D907),0)+IF($B910>0,SUM(D925:D935),0)","v":0},0,0,0,0,0,0,0,0,0,0,0,0,0,0,0,0,0,0]
["Remboursement du principal par période",null,{"$f":"IF($B813>0,(C815),0)+IF($B818>0,(C820),0)+IF($B823>0,IF(C825>0,C825-C826,0),0)+IF($B830>0,(C832),0)+IF($B835>0,(C837),0)+IF($B840>0,IF(C842>0,C842-C843,0),0)+IF($B854>0,SUM(C857:C867),0)+IF($B882>0,SUM(C885:C895),0)+IF($B910>0,SUM(C913:C923)-SUM(C925:C935),0)","v":0},{"$f":"IF($B813>0,(D815),0)+IF($B818>0,(D820),0)+IF($B823>0,IF(D825>0,D825-D826,0),0)+IF($B830>0,(D832),0)+IF($B835>0,(D837),0)+IF($B840>0,IF(D842>0,D842-D843,0),0)+IF($B854>0,SUM(D857:D867),0)+IF($B882>0,SUM(D885:D895),0)+IF($B910>0,SUM(D913:D923)-SUM(D925:D935),0)","v":0},0,0,0,0,0,0,0,0,0,0,0,0,0,0,0,0,0,0]
[]
[]
["Flux de trésorerie net       "]
["Période (t)","Flux de trésorerie       brut","Coût de financement ","Subventions","Flux de trésorerie       intermédiaires (avec coût fin. et Subventions)","Flux de trésorerie      , taxe contenue","Flux de trésorerie       cumulé, taxe contenue","Période de remboursement"]
[0,{"$f":"'5 Flux de trésorerie brut'!$D$7","v":{"$error":"#DIV/0!"}},0,{"$f":"B811+B829","v":0},{"$f":"D948-C948+B948","v":{"$error":"#DIV/0!"}},{"$f":"IF(E948>0,(E948-E948*'1 Données d''entrée'!$C$353-IF('5 Flux de trésorerie brut'!$D$7>0,'1 Données d''entrée'!$C$357*'5 Flux de trésorerie brut'!$D$7,0)),E948)","v":{"$error":"#DIV/0!"}},{"$f":"F948","v":{"$error":"#DIV/0!"}},{"$f":"IF(G948<0,\" \",A948)","v":{"$error":"#DIV/0!"}}]
[1,{"$f":"'5 Flux de trésorerie brut'!$D$8","v":{"$error":"#DIV/0!"}},{"$f":"C942+C943","v":0},0,{"$f":"D949-C949+B949","v":{"$error":"#DIV/0!"}},{"$f":"IF(E949>0,(E949-E949*'1 Données d''entrée'!$C$353-IF('5 Flux de trésorerie brut'!$D$8>0,'1 Données d''entrée'!$C$357*'5 Flux de trésorerie brut'!$D$8,0)),E949)","v":{"$error":"#DIV/0!"}},{"$f":"G948+F949","v":{"$error":"#DIV/0!"}},{"$f":"IF(G949<0,\" \",IF(SUM(H948:H948)>0,\" \",IF(H948=0,\" \",A949)))","v":{"$error":"#DIV/0!"}}]
[2,{"$f":"'5 Flux de trésorerie brut'!$D$9","v":{"$error":"#DIV/0!"}},{"$f":"D942+D943","v":0},0,{"$error":"#DIV/0!"},{"$f":"IF(E950>0,(E950-E950*'1 Données d''entrée'!$C$353-IF('5 Flux de trésorerie brut'!$D$9>0,'1 Données d''entrée'!$C$357*'5 Flux de trésorerie brut'!$D$9,0)),E950)","v":{"$error":"#DIV/0!"}},{"$error":"#DIV/0!"},{"$f":"IF(G950<0,\" \",IF(SUM(H948:H949)>0,\" \",IF(H948=0,\" \",A950)))","v":{"$error":"#DIV/0!"}}]
[3,{"$f":"'5 Flux de trésorerie brut'!$D$10","v":{"$error":"#DIV/0!"}},{"$f":"E942+E943","v":0},0,{"$error":"#DIV/0!"},{"$f":"IF(E951>0,(E951-E951*'1 Données d''entrée'!$C$353-IF('5 Flux de trésorerie brut'!$D$10>0,'1 Données d''entrée'!$C$357*'5 Flux de trésorerie brut'!$D$10,0)),E951)","v":{"$error":"#DIV/0!"}},{"$error":"#DIV/0!"},{"$f":"IF(G951<0,\" \",IF(SUM(H948:H950)>0,\" \",IF(H948=0,\" \",A951)))","v":{"$error":"#DIV/0!"}}]
[4,{"$f":"'5 Flux de trésorerie brut'!$D$11","v":{"$error":"#DIV/0!"}},{"$f":"F942+F943","v":0},0,{"$error":"#DIV/0!"},{"$f":"IF(E952>0,(E952-E952*'1 Données d''entrée'!$C$353-IF('5 Flux de trésorerie brut'!$D$11>0,'1 Données d''entrée'!$C$357*'5 Flux de trésorerie brut'!$D$11,0)),E952)","v":{"$error":"#DIV/0!"}},{"$error":"#DIV/0!"},{"$f":"IF(G952<0,\" \",IF(SUM(H948:H951)>0,\" \",IF(H948=0,\" \",A952)))","v":{"$error":"#DIV/0!"}}]
[5,{"$f":"'5 Flux de trésorerie brut'!$D$12","v":{"$error":"#DIV/0!"}},{"$f":"G942+G943","v":0},0,{"$error":"#DIV/0!"},{"$f":"IF(E953>0,(E953-E953*'1 Données d''entrée'!$C$353-IF('5 Flux de trésorerie brut'!$D$12>0,'1 Données d''entrée'!$C$357*'5 Flux de trésorerie brut'!$D$12,0)),E953)","v":{"$error":"#DIV/0!"}},{"$error":"#DIV/0!"},{"$f":"IF(G953<0,\" \",IF(SUM(H948:H952)>0,\" \",IF(H948=0,\" \",A953)))","v":{"$error":"#DIV/0!"}}]
[6,{"$f":"'5 Flux de trésorerie brut'!$D$13","v":{"$error":"#DIV/0!"}},{"$f":"H942+H943","v":0},0,{"$error":"#DIV/0!"},{"$f":"IF(E954>0,(E954-E954*'1 Données d''entrée'!$C$353-IF('5 Flux de trésorerie brut'!$D$13>0,'1 Données d''entrée'!$C$357*'5 Flux de trésorerie brut'!$D$13,0)),E954)","v":{"$error":"#DIV/0!"}},{"$error":"#DIV/0!"},{"$f":"IF(G954<0,\" \",IF(SUM(H948:H953)>0,\" \",IF(H948=0,\" \",A954)))","v":{"$error":"#DIV/0!"}}]
[7,{"$f":"'5 Flux de trésorerie brut'!$D$14","v":{"$error":"#DIV/0!"}},{"$f":"I942+I943","v":0},0,{"$error":"#DIV/0!"},{"$f":"IF(E955>0,(E955-E955*'1 Données d''entrée'!$C$353-IF('5 Flux de trésorerie brut'!$D$14>0,'1 Données d''entrée'!$C$357*'5 Flux de trésorerie brut'!$D$14,0)),E955)","v":{"$error":"#DIV/0!"}},{"$error":"#DIV/0!"},{"$f":"IF(G955<0,\" \",IF(SUM(H948:H954)>0,\" \",IF(H948=0,\" \",A955)))","v":{"$error":"#DIV/0!"}}]
[8,{"$f":"'5 Flux de trésorerie brut'!$D$15","v":{"$error":"#DIV/0!"}},{"$f":"J942+J943","v":0},0,{"$error":"#DIV/0!"},{"$f":"IF(E956>0,(E956-E956*'1 Données d''entrée'!$C$353-IF('5 Flux de trésorerie brut'!$D$15>0,'1 Données d''entrée'!$C$357*'5 Flux de trésorerie brut'!$D$15,0)),E956)","v":{"$error":"#DIV/0!"}},{"$error":"#DIV/0!"},{"$f":"IF(G956<0,\" \",IF(SUM(H948:H955)>0,\" \",IF(H948=0,\" \",A956)))","v":{"$error":"#DIV/0!"}}]
[9,{"$f":"'5 Flux de trésorerie brut'!$D$16","v":{"$error":"#DIV/0!"}},{"$f":"K942+K943","v":0},0,{"$error":"#DIV/0!"},{"$f":"IF(E957>0,(E957-E957*'1 Données d''entrée'!$C$353-IF('5 Flux de trésorerie brut'!$D$16>0,'1 Données d''entrée'!$C$357*'5 Flux de trésorerie brut'!$D$16,0)),E957)","v":{"$error":"#DIV/0!"}},{"$error":"#DIV/0!"},{"$f":"IF(G957<0,\" \",IF(SUM(H948:H956)>0,\" \",IF(H948=0,\" \",A957)))","v":{"$error":"#DIV/0!"}}]
[10,{"$f":"'5 Flux de trésorerie brut'!$D$17","v":{"$error":"#DIV/0!"}},{"$f":"L942+L943","v":0},0,{"$error":"#DIV/0!"},{"$f":"IF(E958>0,(E958-E958*'1 Données d''entrée'!$C$353-IF('5 Flux de trésorerie brut'!$D$17>0,'1 Données d''entrée'!$C$357*'5 Flux de trésorerie brut'!$D$17,0)),E958)","v":{"$error":"#DIV/0!"}},{"$error":"#DIV/0!"},{"$f":"IF(G958<0,\" \",IF(SUM(H948:H957)>0,\" \",IF(H948=0,\" \",A958)))","v":{"$error":"#DIV/0!"}}]
[11,{"$f":"'5 Flux de trésorerie brut'!$D$18","v":{"$error":"#DIV/0!"}},{"$f":"M942+M943","v":0},0,{"$error":"#DIV/0!"},{"$f":"IF(E959>0,(E959-E959*'1 Données d''entrée'!$C$353-IF('5 Flux de trésorerie brut'!$D$18>0,'1 Données d''entrée'!$C$357*'5 Flux de trésorerie brut'!$D$18,0)),E959)","v":{"$error":"#DIV/0!"}},{"$error":"#DIV/0!"},{"$f":"IF(G959<0,\" \",IF(SUM(H948:H958)>0,\" \",IF(H948=0,\" \",A959)))","v":{"$error":"#DIV/0!"}}]
[12,{"$f":"'5 Flux de trésorerie brut'!$D$19","v":{"$error":"#DIV/0!"}},{"$f":"N942+N943","v":0},0,{"$error":"#DIV/0!"},{"$f":"IF(E960>0,(E960-E960*'1 Données d''entrée'!$C$353-IF('5 Flux de trésorerie brut'!$D$19>0,'1 Données d''entrée'!$C$357*'5 Flux de trésorerie brut'!$D$19,0)),E960)","v":{"$error":"#DIV/0!"}},{"$error":"#DIV/0!"},{"$f":"IF(G960<0,\" \",IF(SUM(H948:H959)>0,\" \",IF(H948=0,\" \",A960)))","v":{"$error":"#DIV/0!"}}]
[13,{"$f":"'5 Flux de trésorerie brut'!$D$20","v":{"$error":"#DIV/0!"}},{"$f":"O942+O943","v":0},0,{"$error":"#DIV/0!"},{"$f":"IF(E961>0,(E961-E961*'1 Données d''entrée'!$C$353-IF('5 Flux de trésorerie brut'!$D$20>0,'1 Données d''entrée'!$C$357*'5 Flux de trésorerie brut'!$D$20,0)),E961)","v":{"$error":"#DIV/0!"}},{"$error":"#DIV/0!"},{"$f":"IF(G961<0,\" \",IF(SUM(H948:H960)>0,\" \",IF(H948=0,\" \",A961)))","v":{"$error":"#DIV/0!"}}]
[14,{"$f":"'5 Flux de trésorerie brut'!$D$21","v":{"$error":"#DIV/0!"}},{"$f":"P942+P943","v":0},0,{"$error":"#DIV/0!"},{"$f":"IF(E962>0,(E962-E962*'1 Données d''entrée'!$C$353-IF('5 Flux de trésorerie brut'!$D$21>0,'1 Données d''entrée'!$C$357*'5 Flux de trésorerie brut'!$D$21,0)),E962)","v":{"$error":"#DIV/0!"}},{"$error":"#DIV/0!"},{"$f":"IF(G962<0,\" \",IF(SUM(H948:H961)>0,\" \",IF(H948=0,\" \",A962)))","v":{"$error":"#DIV/0!"}}]
[15,{"$f":"'5 Flux de trésorerie brut'!$D$22","v":{"$error":"#DIV/0!"}},{"$f":"Q942+Q943","v":0},0,{"$error":"#DIV/0!"},{"$f":"IF(E963>0,(E963-E963*'1 Données d''entrée'!$C$353-IF('5 Flux de trésorerie brut'!$D$22>0,'1 Données d''entrée'!$C$357*'5 Flux de trésorerie brut'!$D$22,0)),E963)","v":{"$error":"#DIV/0!"}},{"$error":"#DIV/0!"},{"$f":"IF(G963<0,\" \",IF(SUM(H948:H962)>0,\" \",IF(H948=0,\" \",A963)))","v":{"$error":"#DIV/0!"}}]
[16,{"$f":"'5 Flux de trésorerie brut'!$D$23","v":{"$error":"#DIV/0!"}},{"$f":"R942+R943","v":0},0,{"$error":"#DIV/0!"},{"$f":"IF(E964>0,(E964-E964*'1 Données d''entrée'!$C$353-IF('5 Flux de trésorerie brut'!$D$23>0,'1 Données d''entrée'!$C$357*'5 Flux de trésorerie brut'!$D$23,0)),E964)","v":{"$error":"#DIV/0!"}},{"$error":"#DIV/0!"},{"$f":"IF(G964<0,\" \",IF(SUM(H948:H963)>0,\" \",IF(H948=0,\" \",A964)))","v":{"$error":"#DIV/0!"}}]
[17,{"$f":"'5 Flux de trésorerie brut'!$D$24","v":{"$error":"#DIV/0!"}},{"$f":"S942+S943","v":0},0,{"$error":"#DIV/0!"},{"$f":"IF(E965>0,(E965-E965*'1 Données d''entrée'!$C$353-IF('5 Flux de trésorerie brut'!$D$24>0,'1 Données d''entrée'!$C$357*'5 Flux de trésorerie brut'!$D$24,0)),E965)","v":{"$error":"#DIV/0!"}},{"$error":"#DIV/0!"},{"$f":"IF(G965<0,\" \",IF(SUM(H948:H964)>0,\" \",IF(H948=0,\" \",A965)))","v":{"$error":"#DIV/0!"}}]
[18,{"$f":"'5 Flux de trésorerie brut'!$D$25","v":{"$error":"#DIV/0!"}},{"$f":"T942+T943","v":0},0,{"$error":"#DIV/0!"},{"$f":"IF(E966>0,(E966-E966*'1 Données d''entrée'!$C$353-IF('5 Flux de trésorerie brut'!$D$25>0,'1 Données d''entrée'!$C$357*'5 Flux de trésorerie brut'!$D$25,0)),E966)","v":{"$error":"#DIV/0!"}},{"$error":"#DIV/0!"},{"$f":"IF(G966<0,\" \",IF(SUM(H948:H965)>0,\" \",IF(H948=0,\" \",A966)))","v":{"$error":"#DIV/0!"}}]
[19,{"$f":"'5 Flux de trésorerie brut'!$D$26","v":{"$error":"#DIV/0!"}},{"$f":"U942+U943","v":0},0,{"$error":"#DIV/0!"},{"$f":"IF(E967>0,(E967-E967*'1 Données d''entrée'!$C$353-IF('5 Flux de trésorerie brut'!$D$26>0,'1 Données d''entrée'!$C$357*'5 Flux de trésorerie brut'!$D$26,0)),E967)","v":{"$error":"#DIV/0!"}},{"$error":"#DIV/0!"},{"$f":"IF(G967<0,\" \",IF(SUM(H948:H966)>0,\" \",IF(H948=0,\" \",A967)))","v":{"$error":"#DIV/0!"}}]
[20,{"$f":"'5 Flux de trésorerie brut'!$D$27","v":{"$error":"#DIV/0!"}},{"$f":"V942+V943","v":0},0,{"$error":"#DIV/0!"},{"$f":"IF(E968>0,(E968-E968*'1 Données d''entrée'!$C$353-IF('5 Flux de trésorerie brut'!$D$27>0,'1 Données d''entrée'!$C$357*'5 Flux de trésorerie brut'!$D$27,0)),E968)","v":{"$error":"#DIV/0!"}},{"$error":"#DIV/0!"},{"$f":"IF(G968<0,\" \",IF(SUM(H948:H967)>0,\" \",IF(H948=0,\" \",A968)))","v":{"$error":"#DIV/0!"}}]
[]
[]
[null,null,"Valeur actuelle nette",{"$f":"NPV('1 Données d''entrée'!$H$28,'10 Subvention d''ADER'!F949:F968)+'10 Subvention d''ADER'!F948","v":{"$error":"#DIV/0!"}}]
[null,null,"Taux de rentabilité interne",{"$f":"IRR(F948:F968)","v":{"$error":"#VALUE!"}}]
[]
[]
[]
[]
[]
["Tableau de calcul avec un taux de subvention de",null,null,0.5]
[]
["Bailleur de fonds","Investissement total par bailleur de fonds (AR)","Quote-part du coût d'investissement initial"]
["Subvention d'ADER",{"$f":"('3 Coût total'!$B$7-'3 Coût total'!$B$42)*C981","v":0},{"$f":"D978","v":0.5}]
["Capitaux propres",{"$f":"'1 Données d''entrée'!$B$294","v":0},{"$f":"'1 Données d''entrée'!$B$294/'3 Coût total'!$B$7","v":{"$error":"#DIV/0!"}}]
["Fonds d'autres donneurs / investisseurs",{"$f":"'1 Données d''entrée'!$B$306+'1 Données d''entrée'!$B$307","v":0},{"$f":"B983/'3 Coût total'!$B$7","v":{"$error":"#DIV/0!"}}]
["Prêt bancaire (effective)",{"$f":"IF(B981+'1 Données d''entrée'!$B$294=0,0,(-1)*'5 Flux de trésorerie brut'!$D$7-(SUM(B981:B983)))","v":0},{"$f":"(1-(C981+C982+C983))","v":{"$error":"#DIV/0!"}}]
[]
["Prêt bancaire avec des frais de gestion",{"$f":"B984+B984*'1 Données d''entrée'!$C$338","v":0},{"$f":"(1-(C981+C982+C983))+(1-(C981+C982+C983))*'1 Données d''entrée'!$C$338","v":{"$error":"#DIV/0!"}}]
[]
["Tableaux de calcul"]
[]
[]
["Scénario financier"]
["Période",0,1,2,3,4,5,6,7,8,9,10,11,12,13,14,15,16,17,18,19,20]
[]
["Flux de trésorerie (brut)",{"$f":"'5 Flux de trésorerie brut'!$D$7","v":{"$error":"#DIV/0!"}},{"$f":"'5 Flux de trésorerie brut'!$D$8","v":{"$error":"#DIV/0!"}},{"$f":"'5 Flux de trésorerie brut'!$D$9","v":{"$error":"#DIV/0!"}},{"$f":"'5 Flux de trésorerie brut'!$D$10","v":{"$error":"#DIV/0!"}},{"$f":"'5 Flux de trésorerie brut'!$D$11","v":{"$error":"#DIV/0!"}},{"$f":"'5 Flux de trésorerie brut'!$D$12","v":{"$error":"#DIV/0!"}},{"$f":"'5 Flux de trésorerie brut'!$D$13","v":{"$error":"#DIV/0!"}},{"$f":"'5 Flux de trésorerie brut'!$D$14","v":{"$error":"#DIV/0!"}},{"$f":"'5 Flux de trésorerie brut'!$D$15","v":{"$error":"#DIV/0!"}},{"$f":"'5 Flux de trésorerie brut'!$D$16","v":{"$error":"#DIV/0!"}},{"$f":"'5 Flux de trésorerie brut'!$D$17","v":{"$error":"#DIV/0!"}},{"$f":"'5 Flux de trésorerie brut'!$D$18","v":{"$error":"#DIV/0!"}},{"$f":"'5 Flux de trésorerie brut'!$D$19","v":{"$error":"#DIV/0!"}},{"$f":"'5 Flux de trésorerie brut'!$D$20","v":{"$error":"#DIV/0!"}},{"$f":"'5 Flux de trésorerie brut'!$D$21","v":{"$error":"#DIV/0!"}},{"$f":"'5 Flux de trésorerie brut'!$D$22","v":{"$error":"#DIV/0!"}},{"$f":"'5 Flux de trésorerie brut'!$D$23","v":{"$error":"#DIV/0!"}},{"$f":"'5 Flux de trésorerie brut'!$D$24","v":{"$error":"#DIV/0!"}},{"$f":"'5 Flux de trésorerie brut'!$D$25","v":{"$error":"#DIV/0!"}},{"$f":"'5 Flux de trésorerie brut'!$D$26","v":{"$error":"#DIV/0!"}},{"$f":"'5 Flux de trésorerie brut'!$D$27","v":{"$error":"#DIV/0!"}}]
[]
["Capitaux propres",{"$f":"'1 Données d''entrée'!$B$294","v":0}]
[]
["Subvention ADER",{"$f":"'3 Coût total'!$B$7*C981","v":0}]
[]
["Prêt bancaire - Option 1: Remboursement du principal fractionné",{"$f":"'1 Données d''entrée'!$B$342","v":0},"% de prêt total"]
["Réception et montant restant",{"$f":"B986*B1000","v":0},{"$f":"B1001-C1002","v":0},0,0,0,0,0,0,0,0,0,0,0,0,0,0,0,0,0,0,0]
["Remboursement du principal",0,{"$f":"IF(C992<'1 Données d''entrée'!$C$334+1,0,IF(C992<'1 Données d''entrée'!$C$333+'1 Données d''entrée'!$C$334+1,($B1001/'1 Données d''entrée'!$C$333),0))","v":0},{"$f":"IF(D992<'1 Données d''entrée'!$C$334+1,0,IF(D992<'1 Données d''entrée'!$C$333+'1 Données d''entrée'!$C$334+1,($B1001/'1 Données d''entrée'!$C$333),0))","v":0},{"$f":"IF(E992<'1 Données d''entrée'!$C$334+1,0,IF(E992<'1 Données d''entrée'!$C$333+'1 Données d''entrée'!$C$334+1,($B1001/'1 Données d''entrée'!$C$333),0))","v":0},{"$f":"IF(F992<'1 Données d''entrée'!$C$334+1,0,IF(F992<'1 Données d''entrée'!$C$333+'1 Données d''entrée'!$C$334+1,($B1001/'1 Données d''entrée'!$C$333),0))","v":0},{"$f":"IF(G992<'1 Données d''entrée'!$C$334+1,0,IF(G992<'1 Données d''entrée'!$C$333+'1 Données d''entrée'!$C$334+1,($B1001/'1 Données d''entrée'!$C$333),0))","v":0},{"$f":"IF(H992<'1 Données d''entrée'!$C$334+1,0,IF(H992<'1 Données d''entrée'!$C$333+'1 Données d''entrée'!$C$334+1,($B1001/'1 Données d''entrée'!$C$333),0))","v":0},{"$f":"IF(I992<'1 Données d''entrée'!$C$334+1,0,IF(I992<'1 Données d''entrée'!$C$333+'1 Données d''entrée'!$C$334+1,($B1001/'1 Données d''entrée'!$C$333),0))","v":0},{"$f":"IF(J992<'1 Données d''entrée'!$C$334+1,0,IF(J992<'1 Données d''entrée'!$C$333+'1 Données d''entrée'!$C$334+1,($B1001/'1 Données d''entrée'!$C$333),0))","v":0},{"$f":"IF(K992<'1 Données d''entrée'!$C$334+1,0,IF(K992<'1 Données d''entrée'!$C$333+'1 Données d''entrée'!$C$334+1,($B1001/'1 Données d''entrée'!$C$333),0))","v":0},{"$f":"IF(L992<'1 Données d''entrée'!$C$334+1,0,IF(L992<'1 Données d''entrée'!$C$333+'1 Données d''entrée'!$C$334+1,($B1001/'1 Données d''entrée'!$C$333),0))","v":0},{"$f":"IF(M992<'1 Données d''entrée'!$C$334+1,0,IF(M992<'1 Données d''entrée'!$C$333+'1 Données d''entrée'!$C$334+1,($B1001/'1 Données d''entrée'!$C$333),0))","v":0},{"$f":"IF(N992<'1 Données d''entrée'!$C$334+1,0,IF(N992<'1 Données d''entrée'!$C$333+'1 Données d''entrée'!$C$334+1,($B1001/'1 Données d''entrée'!$C$333),0))","v":0},{"$f":"IF(O992<'1 Données d''entrée'!$C$334+1,0,IF(O992<'1 Données d''entrée'!$C$333+'1 Données d''entrée'!$C$334+1,($B1001/'1 Données d''entrée'!$C$333),0))","v":0},{"$f":"IF(P992<'1 Données d''entrée'!$C$334+1,0,IF(P992<'1 Données d''entrée'!$C$333+'1 Données d''entrée'!$C$334+1,($B1001/'1 Données d''entrée'!$C$333),0))","v":0},{"$f":"IF(Q992<'1 Données d''entrée'!$C$334+1,0,IF(Q992<'1 Données d''entrée'!$C$333+'1 Données d''entrée'!$C$334+1,($B1001/'1 Données d''entrée'!$C$333),0))","v":0},{"$f":"IF(R992<'1 Données d''entrée'!$C$334+1,0,IF(R992<'1 Données d''entrée'!$C$333+'1 Données d''entrée'!$C$334+1,($B1001/'1 Données d''entrée'!$C$333),0))","v":0},{"$f":"IF(S992<'1 Données d''entrée'!$C$334+1,0,IF(S992<'1 Données d''entrée'!$C$333+'1 Données d''entrée'!$C$334+1,($B1001/'1 Données d''entrée'!$C$333),0))","v":0},{"$f":"IF(T992<'1 Données d''entrée'!$C$334+1,0,IF(T992<'1 Données d''entrée'!$C$333+'1 Données d''entrée'!$C$334+1,($B1001/'1 Données d''entrée'!$C$333),0))","v":0},{"$f":"IF(U992<'1 Données d''entrée'!$C$334+1,0,IF(U992<'1 Données d''entrée'!$C$333+'1 Données d''entrée'!$C$334+1,($B1001/'1 Données d''entrée'!$C$333),0))","v":0},{"$f":"IF(V992<'1 Données d''entrée'!$C$334+1,0,IF(V992<'1 Données d''entrée'!$C$333+'1 Données d''entrée'!$C$334+1,($B1001/'1 Données d''entrée'!$C$333),0))","v":0}]
["Paiement d'intérêts",0,{"$f":"IF('1 Données d''entrée'!$C$336=\"(=NON)\",IF(C992<'1 Données d''entrée'!$C$334+1,0,B1001*'1 Données d''entrée'!$C$332),B1001*'1 Données d''entrée'!$C$332)","v":0},{"$f":"IF('1 Données d''entrée'!$C$336=\"(=NON)\",IF(D992<'1 Données d''entrée'!$C$334+1,0,C1001*'1 Données d''entrée'!$C$332),C1001*'1 Données d''entrée'!$C$332)","v":0},{"$f":"IF('1 Données d''entrée'!$C$336=\"(=NON)\",IF(E992<'1 Données d''entrée'!$C$334+1,0,D1001*'1 Données d''entrée'!$C$332),D1001*'1 Données d''entrée'!$C$332)","v":0},{"$f":"IF('1 Données d''entrée'!$C$336=\"(=NON)\",IF(F992<'1 Données d''entrée'!$C$334+1,0,E1001*'1 Données d''entrée'!$C$332),E1001*'1 Données d''entrée'!$C$332)","v":0},{"$f":"IF('1 Données d''entrée'!$C$336=\"(=NON)\",IF(G992<'1 Données d''entrée'!$C$334+1,0,F1001*'1 Données d''entrée'!$C$332),F1001*'1 Données d''entrée'!$C$332)","v":0},{"$f":"IF('1 Données d''entrée'!$C$336=\"(=NON)\",IF(H992<'1 Données d''entrée'!$C$334+1,0,G1001*'1 Données d''entrée'!$C$332),G1001*'1 Données d''entrée'!$C$332)","v":0},{"$f":"IF('1 Données d''entrée'!$C$336=\"(=NON)\",IF(I992<'1 Données d''entrée'!$C$334+1,0,H1001*'1 Données d''entrée'!$C$332),H1001*'1 Données d''entrée'!$C$332)","v":0},{"$f":"IF('1 Données d''entrée'!$C$336=\"(=NON)\",IF(J992<'1 Données d''entrée'!$C$334+1,0,I1001*'1 Données d''entrée'!$C$332),I1001*'1 Données d''entrée'!$C$332)","v":0},{"$f":"IF('1 Données d''entrée'!$C$336=\"(=NON)\",IF(K992<'1 Données d''entrée'!$C$334+1,0,J1001*'1 Données d''entrée'!$C$332),J1001*'1 Données d''entrée'!$C$332)","v":0},{"$f":"IF('1 Données d''entrée'!$C$336=\"(=NON)\",IF(L992<'1 Données d''entrée'!$C$334+1,0,K1001*'1 Données d''entrée'!$C$332),K1001*'1 Données d''entrée'!$C$332)","v":0},{"$f":"IF('1 Données d''entrée'!$C$336=\"(=NON)\",IF(M992<'1 Données d''entrée'!$C$334+1,0,L1001*'1 Données d''entrée'!$C$332),L1001*'1 Données d''entrée'!$C$332)","v":0},{"$f":"IF('1 Données d''entrée'!$C$336=\"(=NON)\",IF(N992<'1 Données d''entrée'!$C$334+1,0,M1001*'1 Données d''entrée'!$C$332),M1001*'1 Données d''entrée'!$C$332)","v":0},{"$f":"IF('1 Données d''entrée'!$C$336=\"(=NON)\",IF(O992<'1 Données d''entrée'!$C$334+1,0,N1001*'1 Données d''entrée'!$C$332),N1001*'1 Données d''entrée'!$C$332)","v":0},{"$f":"IF('1 Données d''entrée'!$C$336=\"(=NON)\",IF(P992<'1 Données d''entrée'!$C$334+1,0,O1001*'1 Données d''entrée'!$C$332),O1001*'1 Données d''entrée'!$C$332)","v":0},{"$f":"IF('1 Données d''entrée'!$C$336=\"(=NON)\",IF(Q992<'1 Données d''entrée'!$C$334+1,0,P1001*'1 Données d''entrée'!$C$332),P1001*'1 Données d''entrée'!$C$332)","v":0},{"$f":"IF('1 Données d''entrée'!$C$336=\"(=NON)\",IF(R992<'1 Données d''entrée'!$C$334+1,0,Q1001*'1 Données d''entrée'!$C$332),Q1001*'1 Données d''entrée'!$C$332)","v":0},{"$f":"IF('1 Données d''entrée'!$C$336=\"(=NON)\",IF(S992<'1 Données d''entrée'!$C$334+1,0,R1001*'1 Données d''entrée'!$C$332),R1001*'1 Données d''entrée'!$C$332)","v":0},{"$f":"IF('1 Données d''entrée'!$C$336=\"(=NON)\",IF(T992<'1 Données d''entrée'!$C$334+1,0,S1001*'1 Données d''entrée'!$C$332),S1001*'1 Données d''entrée'!$C$332)","v":0},{"$f":"IF('1 Données d''entrée'!$C$336=\"(=NON)\",IF(U992<'1 Données d''entrée'!$C$334+1,0,T1001*'1 Données d''entrée'!$C$332),T1001*'1 Données d''entrée'!$C$332)","v":0},{"$f":"IF('1 Données d''entrée'!$C$336=\"(=NON)\",IF(V992<'1 Données d''entrée'!$C$334+1,0,U1001*'1 Données d''entrée'!$C$332),U1001*'1 Données d''entrée'!$C$332)","v":0}]
["Paiements d'intérêt avec des intérêts composés en cas d'absence des paiements dans la période de grâce",0,0,{"$f":"IF(D992='1 Données d''entrée'!$C$334+1,IF('1 Données d''entrée'!$C$336=\"(=NON)\",($B1001*'1 Données d''entrée'!$C$332)*((('1 Données d''entrée'!$C$332+1)^'1 Données d''entrée'!$C$334-1)/('1 Données d''entrée'!$C$332))*(1+'1 Données d''entrée'!$C$332),0),0)","v":0},{"$f":"IF(E992='1 Données d''entrée'!$C$334+1,IF('1 Données d''entrée'!$C$336=\"(=NON)\",($B1001*'1 Données d''entrée'!$C$332)*((('1 Données d''entrée'!$C$332+1)^'1 Données d''entrée'!$C$334-1)/('1 Données d''entrée'!$C$332))*(1+'1 Données d''entrée'!$C$332),0),0)","v":0},{"$f":"IF(F992='1 Données d''entrée'!$C$334+1,IF('1 Données d''entrée'!$C$336=\"(=NON)\",($B1001*'1 Données d''entrée'!$C$332)*((('1 Données d''entrée'!$C$332+1)^'1 Données d''entrée'!$C$334-1)/('1 Données d''entrée'!$C$332))*(1+'1 Données d''entrée'!$C$332),0),0)","v":0},{"$f":"IF(G992='1 Données d''entrée'!$C$334+1,IF('1 Données d''entrée'!$C$336=\"(=NON)\",($B1001*'1 Données d''entrée'!$C$332)*((('1 Données d''entrée'!$C$332+1)^'1 Données d''entrée'!$C$334-1)/('1 Données d''entrée'!$C$332))*(1+'1 Données d''entrée'!$C$332),0),0)","v":0},{"$f":"IF(H992='1 Données d''entrée'!$C$334+1,IF('1 Données d''entrée'!$C$336=\"(=NON)\",($B1001*'1 Données d''entrée'!$C$332)*((('1 Données d''entrée'!$C$332+1)^'1 Données d''entrée'!$C$334-1)/('1 Données d''entrée'!$C$332))*(1+'1 Données d''entrée'!$C$332),0),0)","v":0},{"$f":"IF(I992='1 Données d''entrée'!$C$334+1,IF('1 Données d''entrée'!$C$336=\"(=NON)\",($B1001*'1 Données d''entrée'!$C$332)*((('1 Données d''entrée'!$C$332+1)^'1 Données d''entrée'!$C$334-1)/('1 Données d''entrée'!$C$332))*(1+'1 Données d''entrée'!$C$332),0),0)","v":0},{"$f":"IF(J992='1 Données d''entrée'!$C$334+1,IF('1 Données d''entrée'!$C$336=\"(=NON)\",($B1001*'1 Données d''entrée'!$C$332)*((('1 Données d''entrée'!$C$332+1)^'1 Données d''entrée'!$C$334-1)/('1 Données d''entrée'!$C$332))*(1+'1 Données d''entrée'!$C$332),0),0)","v":0},{"$f":"IF(K992='1 Données d''entrée'!$C$334+1,IF('1 Données d''entrée'!$C$336=\"(=NON)\",($B1001*'1 Données d''entrée'!$C$332)*((('1 Données d''entrée'!$C$332+1)^'1 Données d''entrée'!$C$334-1)/('1 Données d''entrée'!$C$332))*(1+'1 Données d''entrée'!$C$332),0),0)","v":0},{"$f":"IF(L992='1 Données d''entrée'!$C$334+1,IF('1 Données d''entrée'!$C$336=\"(=NON)\",($B1001*'1 Données d''entrée'!$C$332)*((('1 Données d''entrée'!$C$332+1)^'1 Données d''entrée'!$C$334-1)/('1 Données d''entrée'!$C$332))*(1+'1 Données d''entrée'!$C$332),0),0)","v":0},{"$f":"IF(M992='1 Données d''entrée'!$C$334+1,IF('1 Données d''entrée'!$C$336=\"(=NON)\",($B1001*'1 Données d''entrée'!$C$332)*((('1 Données d''entrée'!$C$332+1)^'1 Données d''entrée'!$C$334-1)/('1 Données d''entrée'!$C$332))*(1+'1 Données d''entrée'!$C$332),0),0)","v":0},{"$f":"IF(N992='1 Données d''entrée'!$C$334+1,IF('1 Données d''entrée'!$C$336=\"(=NON)\",($B1001*'1 Données d''entrée'!$C$332)*((('1 Données d''entrée'!$C$332+1)^'1 Données d''entrée'!$C$334-1)/('1 Données d''entrée'!$C$332))*(1+'1 Données d''entrée'!$C$332),0),0)","v":0},{"$f":"IF(O992='1 Données d''entrée'!$C$334+1,IF('1 Données d''entrée'!$C$336=\"(=NON)\",($B1001*'1 Données d''entrée'!$C$332)*((('1 Données d''entrée'!$C$332+1)^'1 Données d''entrée'!$C$334-1)/('1 Données d''entrée'!$C$332))*(1+'1 Données d''entrée'!$C$332),0),0)","v":0},{"$f":"IF(P992='1 Données d''entrée'!$C$334+1,IF('1 Données d''entrée'!$C$336=\"(=NON)\",($B1001*'1 Données d''entrée'!$C$332)*((('1 Données d''entrée'!$C$332+1)^'1 Données d''entrée'!$C$334-1)/('1 Données d''entrée'!$C$332))*(1+'1 Données d''entrée'!$C$332),0),0)","v":0},{"$f":"IF(Q992='1 Données d''entrée'!$C$334+1,IF('1 Données d''entrée'!$C$336=\"(=NON)\",($B1001*'1 Données d''entrée'!$C$332)*((('1 Données d''entrée'!$C$332+1)^'1 Données d''entrée'!$C$334-1)/('1 Données d''entrée'!$C$332))*(1+'1 Données d''entrée'!$C$332),0),0)","v":0},{"$f":"IF(R992='1 Données d''entrée'!$C$334+1,IF('1 Données d''entrée'!$C$336=\"(=NON)\",($B1001*'1 Données d''entrée'!$C$332)*((('1 Données d''entrée'!$C$332+1)^'1 Données d''entrée'!$C$334-1)/('1 Données d''entrée'!$C$332))*(1+'1 Données d''entrée'!$C$332),0),0)","v":0},{"$f":"IF(S992='1 Données d''entrée'!$C$334+1,IF('1 Données d''entrée'!$C$336=\"(=NON)\",($B1001*'1 Données d''entrée'!$C$332)*((('1 Données d''entrée'!$C$332+1)^'1 Données d''entrée'!$C$334-1)/('1 Données d''entrée'!$C$332))*(1+'1 Données d''entrée'!$C$332),0),0)","v":0},{"$f":"IF(T992='1 Données d''entrée'!$C$334+1,IF('1 Données d''entrée'!$C$336=\"(=NON)\",($B1001*'1 Données d''entrée'!$C$332)*((('1 Données d''entrée'!$C$332+1)^'1 Données d''entrée'!$C$334-1)/('1 Données d''entrée'!$C$332))*(1+'1 Données d''entrée'!$C$332),0),0)","v":0},{"$f":"IF(U992='1 Données d''entrée'!$C$334+1,IF('1 Données d''entrée'!$C$336=\"(=NON)\",($B1001*'1 Données d''entrée'!$C$332)*((('1 Données d''entrée'!$C$332+1)^'1 Données d''entrée'!$C$334-1)/('1 Données d''entrée'!$C$332))*(1+'1 Données d''entrée'!$C$332),0),0)","v":0},{"$f":"IF(V992='1 Données d''entrée'!$C$334+1,IF('1 Données d''entrée'!$C$336=\"(=NON)\",($B1001*'1 Données d''entrée'!$C$332)*((('1 Données d''entrée'!$C$332+1)^'1 Données d''entrée'!$C$334-1)/('1 Données d''entrée'!$C$332))*(1+'1 Données d''entrée'!$C$332),0),0)","v":0}]
["Prêt bancaire - Option 2: Remboursement du principal final",{"$f":"'1 Données d''entrée'!$B$343","v":0},"% de prêt total"]
["Réception et montant restant",{"$f":"B986*B1005","v":0},{"$f":"B1006-C1007","v":0},0,0,0,0,0,0,0,0,0,0,0,0,0,0,0,0,0,0,0]
["Remboursement du principal",0,{"$f":"IF('1 Données d''entrée'!$C$333+'1 Données d''entrée'!$C$334=C992,$B1006,0)","v":0},{"$f":"IF('1 Données d''entrée'!$C$333+'1 Données d''entrée'!$C$334=D992,$B1006,0)","v":0},{"$f":"IF('1 Données d''entrée'!$C$333+'1 Données d''entrée'!$C$334=E992,$B1006,0)","v":0},{"$f":"IF('1 Données d''entrée'!$C$333+'1 Données d''entrée'!$C$334=F992,$B1006,0)","v":0},{"$f":"IF('1 Données d''entrée'!$C$333+'1 Données d''entrée'!$C$334=G992,$B1006,0)","v":0},{"$f":"IF('1 Données d''entrée'!$C$333+'1 Données d''entrée'!$C$334=H992,$B1006,0)","v":0},{"$f":"IF('1 Données d''entrée'!$C$333+'1 Données d''entrée'!$C$334=I992,$B1006,0)","v":0},{"$f":"IF('1 Données d''entrée'!$C$333+'1 Données d''entrée'!$C$334=J992,$B1006,0)","v":0},{"$f":"IF('1 Données d''entrée'!$C$333+'1 Données d''entrée'!$C$334=K992,$B1006,0)","v":0},{"$f":"IF('1 Données d''entrée'!$C$333+'1 Données d''entrée'!$C$334=L992,$B1006,0)","v":0},{"$f":"IF('1 Données d''entrée'!$C$333+'1 Données d''entrée'!$C$334=M992,$B1006,0)","v":0},{"$f":"IF('1 Données d''entrée'!$C$333+'1 Données d''entrée'!$C$334=N992,$B1006,0)","v":0},{"$f":"IF('1 Données d''entrée'!$C$333+'1 Données d''entrée'!$C$334=O992,$B1006,0)","v":0},{"$f":"IF('1 Données d''entrée'!$C$333+'1 Données d''entrée'!$C$334=P992,$B1006,0)","v":0},{"$f":"IF('1 Données d''entrée'!$C$333+'1 Données d''entrée'!$C$334=Q992,$B1006,0)","v":0},{"$f":"IF('1 Données d''entrée'!$C$333+'1 Données d''entrée'!$C$334=R992,$B1006,0)","v":0},{"$f":"IF('1 Données d''entrée'!$C$333+'1 Données d''entrée'!$C$334=S992,$B1006,0)","v":0},{"$f":"IF('1 Données d''entrée'!$C$333+'1 Données d''entrée'!$C$334=T992,$B1006,0)","v":0},{"$f":"IF('1 Données d''entrée'!$C$333+'1 Données d''entrée'!$C$334=U992,$B1006,0)","v":0},{"$f":"IF('1 Données d''entrée'!$C$333+'1 Données d''entrée'!$C$334=V992,$B1006,0)","v":0}]
["Paiement d'intérêts",0,{"$f":"IF('1 Données d''entrée'!$C$336=\"(=NON)\",IF(C992<'1 Données d''entrée'!$C$334+1,0,B1006*'1 Données d''entrée'!$C$332),B1006*'1 Données d''entrée'!$C$332)","v":0},{"$f":"IF('1 Données d''entrée'!$C$336=\"(=NON)\",IF(D992<'1 Données d''entrée'!$C$334+1,0,C1006*'1 Données d''entrée'!$C$332),C1006*'1 Données d''entrée'!$C$332)","v":0},{"$f":"IF('1 Données d''entrée'!$C$336=\"(=NON)\",IF(E992<'1 Données d''entrée'!$C$334+1,0,D1006*'1 Données d''entrée'!$C$332),D1006*'1 Données d''entrée'!$C$332)","v":0},{"$f":"IF('1 Données d''entrée'!$C$336=\"(=NON)\",IF(F992<'1 Données d''entrée'!$C$334+1,0,E1006*'1 Données d''entrée'!$C$332),E1006*'1 Données d''entrée'!$C$332)","v":0},{"$f":"IF('1 Données d''entrée'!$C$336=\"(=NON)\",IF(G992<'1 Données d''entrée'!$C$334+1,0,F1006*'1 Données d''entrée'!$C$332),F1006*'1 Données d''entrée'!$C$332)","v":0},{"$f":"IF('1 Données d''entrée'!$C$336=\"(=NON)\",IF(H992<'1 Données d''entrée'!$C$334+1,0,G1006*'1 Données d''entrée'!$C$332),G1006*'1 Données d''entrée'!$C$332)","v":0},{"$f":"IF('1 Données d''entrée'!$C$336=\"(=NON)\",IF(I992<'1 Données d''entrée'!$C$334+1,0,H1006*'1 Données d''entrée'!$C$332),H1006*'1 Données d''entrée'!$C$332)","v":0},{"$f":"IF('1 Données d''entrée'!$C$336=\"(=NON)\",IF(J992<'1 Données d''entrée'!$C$334+1,0,I1006*'1 Données d''entrée'!$C$332),I1006*'1 Données d''entrée'!$C$332)","v":0},{"$f":"IF('1 Données d''entrée'!$C$336=\"(=NON)\",IF(K992<'1 Données d''entrée'!$C$334+1,0,J1006*'1 Données d''entrée'!$C$332),J1006*'1 Données d''entrée'!$C$332)","v":0},{"$f":"IF('1 Données d''entrée'!$C$336=\"(=NON)\",IF(L992<'1 Données d''entrée'!$C$334+1,0,K1006*'1 Données d''entrée'!$C$332),K1006*'1 Données d''entrée'!$C$332)","v":0},{"$f":"IF('1 Données d''entrée'!$C$336=\"(=NON)\",IF(M992<'1 Données d''entrée'!$C$334+1,0,L1006*'1 Données d''entrée'!$C$332),L1006*'1 Données d''entrée'!$C$332)","v":0},{"$f":"IF('1 Données d''entrée'!$C$336=\"(=NON)\",IF(N992<'1 Données d''entrée'!$C$334+1,0,M1006*'1 Données d''entrée'!$C$332),M1006*'1 Données d''entrée'!$C$332)","v":0},{"$f":"IF('1 Données d''entrée'!$C$336=\"(=NON)\",IF(O992<'1 Données d''entrée'!$C$334+1,0,N1006*'1 Données d''entrée'!$C$332),N1006*'1 Données d''entrée'!$C$332)","v":0},{"$f":"IF('1 Données d''entrée'!$C$336=\"(=NON)\",IF(P992<'1 Données d''entrée'!$C$334+1,0,O1006*'1 Données d''entrée'!$C$332),O1006*'1 Données d''entrée'!$C$332)","v":0},{"$f":"IF('1 Données d''entrée'!$C$336=\"(=NON)\",IF(Q992<'1 Données d''entrée'!$C$334+1,0,P1006*'1 Données d''entrée'!$C$332),P1006*'1 Données d''entrée'!$C$332)","v":0},{"$f":"IF('1 Données d''entrée'!$C$336=\"(=NON)\",IF(R992<'1 Données d''entrée'!$C$334+1,0,Q1006*'1 Données d''entrée'!$C$332),Q1006*'1 Données d''entrée'!$C$332)","v":0},{"$f":"IF('1 Données d''entrée'!$C$336=\"(=NON)\",IF(S992<'1 Données d''entrée'!$C$334+1,0,R1006*'1 Données d''entrée'!$C$332),R1006*'1 Données d''entrée'!$C$332)","v":0},{"$f":"IF('1 Données d''entrée'!$C$336=\"(=NON)\",IF(T992<'1 Données d''entrée'!$C$334+1,0,S1006*'1 Données d''entrée'!$C$332),S1006*'1 Données d''entrée'!$C$332)","v":0},{"$f":"IF('1 Données d''entrée'!$C$336=\"(=NON)\",IF(U992<'1 Données d''entrée'!$C$334+1,0,T1006*'1 Données d''entrée'!$C$332),T1006*'1 Données d''entrée'!$C$332)","v":0},{"$f":"IF('1 Données d''entrée'!$C$336=\"(=NON)\",IF(V992<'1 Données d''entrée'!$C$334+1,0,U1006*'1 Données d''entrée'!$C$332),U1006*'1 Données d''entrée'!$C$332)","v":0}]
["Paiements d'intérêt avec des intérêts composés en cas d'absence des paiements dans la période de grâce",0,0,{"$f":"IF(D992='1 Données d''entrée'!$C$334+1,IF('1 Données d''entrée'!$C$336=\"(=NON)\",($B1006*'1 Données d''entrée'!$C$332)*((('1 Données d''entrée'!$C$332+1)^'1 Données d''entrée'!$C$334-1)/('1 Données d''entrée'!$C$332))*(1+'1 Données d''entrée'!$C$332),0),0)","v":0},{"$f":"IF(E992='1 Données d''entrée'!$C$334+1,IF('1 Données d''entrée'!$C$336=\"(=NON)\",($B1006*'1 Données d''entrée'!$C$332)*((('1 Données d''entrée'!$C$332+1)^'1 Données d''entrée'!$C$334-1)/('1 Données d''entrée'!$C$332))*(1+'1 Données d''entrée'!$C$332),0),0)","v":0},{"$f":"IF(F992='1 Données d''entrée'!$C$334+1,IF('1 Données d''entrée'!$C$336=\"(=NON)\",($B1006*'1 Données d''entrée'!$C$332)*((('1 Données d''entrée'!$C$332+1)^'1 Données d''entrée'!$C$334-1)/('1 Données d''entrée'!$C$332))*(1+'1 Données d''entrée'!$C$332),0),0)","v":0},{"$f":"IF(G992='1 Données d''entrée'!$C$334+1,IF('1 Données d''entrée'!$C$336=\"(=NON)\",($B1006*'1 Données d''entrée'!$C$332)*((('1 Données d''entrée'!$C$332+1)^'1 Données d''entrée'!$C$334-1)/('1 Données d''entrée'!$C$332))*(1+'1 Données d''entrée'!$C$332),0),0)","v":0},{"$f":"IF(H992='1 Données d''entrée'!$C$334+1,IF('1 Données d''entrée'!$C$336=\"(=NON)\",($B1006*'1 Données d''entrée'!$C$332)*((('1 Données d''entrée'!$C$332+1)^'1 Données d''entrée'!$C$334-1)/('1 Données d''entrée'!$C$332))*(1+'1 Données d''entrée'!$C$332),0),0)","v":0},{"$f":"IF(I992='1 Données d''entrée'!$C$334+1,IF('1 Données d''entrée'!$C$336=\"(=NON)\",($B1006*'1 Données d''entrée'!$C$332)*((('1 Données d''entrée'!$C$332+1)^'1 Données d''entrée'!$C$334-1)/('1 Données d''entrée'!$C$332))*(1+'1 Données d''entrée'!$C$332),0),0)","v":0},{"$f":"IF(J992='1 Données d''entrée'!$C$334+1,IF('1 Données d''entrée'!$C$336=\"(=NON)\",($B1006*'1 Données d''entrée'!$C$332)*((('1 Données d''entrée'!$C$332+1)^'1 Données d''entrée'!$C$334-1)/('1 Données d''entrée'!$C$332))*(1+'1 Données d''entrée'!$C$332),0),0)","v":0},{"$f":"IF(K992='1 Données d''entrée'!$C$334+1,IF('1 Données d''entrée'!$C$336=\"(=NON)\",($B1006*'1 Données d''entrée'!$C$332)*((('1 Données d''entrée'!$C$332+1)^'1 Données d''entrée'!$C$334-1)/('1 Données d''entrée'!$C$332))*(1+'1 Données d''entrée'!$C$332),0),0)","v":0},{"$f":"IF(L992='1 Données d''entrée'!$C$334+1,IF('1 Données d''entrée'!$C$336=\"(=NON)\",($B1006*'1 Données d''entrée'!$C$332)*((('1 Données d''entrée'!$C$332+1)^'1 Données d''entrée'!$C$334-1)/('1 Données d''entrée'!$C$332))*(1+'1 Données d''entrée'!$C$332),0),0)","v":0},{"$f":"IF(M992='1 Données d''entrée'!$C$334+1,IF('1 Données d''entrée'!$C$336=\"(=NON)\",($B1006*'1 Données d''entrée'!$C$332)*((('1 Données d''entrée'!$C$332+1)^'1 Données d''entrée'!$C$334-1)/('1 Données d''entrée'!$C$332))*(1+'1 Données d''entrée'!$C$332),0),0)","v":0},{"$f":"IF(N992='1 Données d''entrée'!$C$334+1,IF('1 Données d''entrée'!$C$336=\"(=NON)\",($B1006*'1 Données d''entrée'!$C$332)*((('1 Données d''entrée'!$C$332+1)^'1 Données d''entrée'!$C$334-1)/('1 Données d''entrée'!$C$332))*(1+'1 Données d''entrée'!$C$332),0),0)","v":0},{"$f":"IF(O992='1 Données d''entrée'!$C$334+1,IF('1 Données d''entrée'!$C$336=\"(=NON)\",($B1006*'1 Données d''entrée'!$C$332)*((('1 Données d''entrée'!$C$332+1)^'1 Données d''entrée'!$C$334-1)/('1 Données d''entrée'!$C$332))*(1+'1 Données d''entrée'!$C$332),0),0)","v":0},{"$f":"IF(P992='1 Données d''entrée'!$C$334+1,IF('1 Données d''entrée'!$C$336=\"(=NON)\",($B1006*'1 Données d''entrée'!$C$332)*((('1 Données d''entrée'!$C$332+1)^'1 Données d''entrée'!$C$334-1)/('1 Données d''entrée'!$C$332))*(1+'1 Données d''entrée'!$C$332),0),0)","v":0},{"$f":"IF(Q992='1 Données d''entrée'!$C$334+1,IF('1 Données d''entrée'!$C$336=\"(=NON)\",($B1006*'1 Données d''entrée'!$C$332)*((('1 Données d''entrée'!$C$332+1)^'1 Données d''entrée'!$C$334-1)/('1 Données d''entrée'!$C$332))*(1+'1 Données d''entrée'!$C$332),0),0)","v":0},{"$f":"IF(R992='1 Données d''entrée'!$C$334+1,IF('1 Données d''entrée'!$C$336=\"(=NON)\",($B1006*'1 Données d''entrée'!$C$332)*((('1 Données d''entrée'!$C$332+1)^'1 Données d''entrée'!$C$334-1)/('1 Données d''entrée'!$C$332))*(1+'1 Données d''entrée'!$C$332),0),0)","v":0},{"$f":"IF(S992='1 Données d''entrée'!$C$334+1,IF('1 Données d''entrée'!$C$336=\"(=NON)\",($B1006*'1 Données d''entrée'!$C$332)*((('1 Données d''entrée'!$C$332+1)^'1 Données d''entrée'!$C$334-1)/('1 Données d''entrée'!$C$332))*(1+'1 Données d''entrée'!$C$332),0),0)","v":0},{"$f":"IF(T992='1 Données d''entrée'!$C$334+1,IF('1 Données d''entrée'!$C$336=\"(=NON)\",($B1006*'1 Données d''entrée'!$C$332)*((('1 Données d''entrée'!$C$332+1)^'1 Données d''entrée'!$C$334-1)/('1 Données d''entrée'!$C$332))*(1+'1 Données d''entrée'!$C$332),0),0)","v":0},{"$f":"IF(U992='1 Données d''entrée'!$C$334+1,IF('1 Données d''entrée'!$C$336=\"(=NON)\",($B1006*'1 Données d''entrée'!$C$332)*((('1 Données d''entrée'!$C$332+1)^'1 Données d''entrée'!$C$334-1)/('1 Données d''entrée'!$C$332))*(1+'1 Données d''entrée'!$C$332),0),0)","v":0},{"$f":"IF(V992='1 Données d''entrée'!$C$334+1,IF('1 Données d''entrée'!$C$336=\"(=NON)\",($B1006*'1 Données d''entrée'!$C$332)*((('1 Données d''entrée'!$C$332+1)^'1 Données d''entrée'!$C$334-1)/('1 Données d''entrée'!$C$332))*(1+'1 Données d''entrée'!$C$332),0),0)","v":0}]
["Prêt bancaire - Option 3: Remboursement vers l'annuité constante",{"$f":"'1 Données d''entrée'!$B$344","v":0},"% de prêt total"]
["Réception ",{"$f":"B986*B1010","v":0},0,0,0,0,0,0,0,0,0,0,0,0,0,0,0,0,0,0,0,0]
["Remboursement vers l'annuité constante",{"$f":"IF(B992<'1 Données d''entrée'!$C$334+1,0,IF(B992<'1 Données d''entrée'!$C$333+'1 Données d''entrée'!$C$334+1,$B1011*('1 Données d''entrée'!$C$332*(1+'1 Données d''entrée'!$C$332)^'1 Données d''entrée'!$C$333)/((1+'1 Données d''entrée'!$C$332)^'1 Données d''entrée'!$C$333-1),0))","v":0},{"$f":"IF(C992<'1 Données d''entrée'!$C$334+1,0,IF(C992<'1 Données d''entrée'!$C$333+'1 Données d''entrée'!$C$334+1,$B1011*('1 Données d''entrée'!$C$332*(1+'1 Données d''entrée'!$C$332)^'1 Données d''entrée'!$C$333)/((1+'1 Données d''entrée'!$C$332)^'1 Données d''entrée'!$C$333-1),0))","v":0},{"$f":"IF(D992<'1 Données d''entrée'!$C$334+1,0,IF(D992<'1 Données d''entrée'!$C$333+'1 Données d''entrée'!$C$334+1,$B1011*('1 Données d''entrée'!$C$332*(1+'1 Données d''entrée'!$C$332)^'1 Données d''entrée'!$C$333)/((1+'1 Données d''entrée'!$C$332)^'1 Données d''entrée'!$C$333-1),0))","v":0},{"$f":"IF(E992<'1 Données d''entrée'!$C$334+1,0,IF(E992<'1 Données d''entrée'!$C$333+'1 Données d''entrée'!$C$334+1,$B1011*('1 Données d''entrée'!$C$332*(1+'1 Données d''entrée'!$C$332)^'1 Données d''entrée'!$C$333)/((1+'1 Données d''entrée'!$C$332)^'1 Données d''entrée'!$C$333-1),0))","v":0},{"$f":"IF(F992<'1 Données d''entrée'!$C$334+1,0,IF(F992<'1 Données d''entrée'!$C$333+'1 Données d''entrée'!$C$334+1,$B1011*('1 Données d''entrée'!$C$332*(1+'1 Données d''entrée'!$C$332)^'1 Données d''entrée'!$C$333)/((1+'1 Données d''entrée'!$C$332)^'1 Données d''entrée'!$C$333-1),0))","v":0},{"$f":"IF(G992<'1 Données d''entrée'!$C$334+1,0,IF(G992<'1 Données d''entrée'!$C$333+'1 Données d''entrée'!$C$334+1,$B1011*('1 Données d''entrée'!$C$332*(1+'1 Données d''entrée'!$C$332)^'1 Données d''entrée'!$C$333)/((1+'1 Données d''entrée'!$C$332)^'1 Données d''entrée'!$C$333-1),0))","v":0},{"$f":"IF(H992<'1 Données d''entrée'!$C$334+1,0,IF(H992<'1 Données d''entrée'!$C$333+'1 Données d''entrée'!$C$334+1,$B1011*('1 Données d''entrée'!$C$332*(1+'1 Données d''entrée'!$C$332)^'1 Données d''entrée'!$C$333)/((1+'1 Données d''entrée'!$C$332)^'1 Données d''entrée'!$C$333-1),0))","v":0},{"$f":"IF(I992<'1 Données d''entrée'!$C$334+1,0,IF(I992<'1 Données d''entrée'!$C$333+'1 Données d''entrée'!$C$334+1,$B1011*('1 Données d''entrée'!$C$332*(1+'1 Données d''entrée'!$C$332)^'1 Données d''entrée'!$C$333)/((1+'1 Données d''entrée'!$C$332)^'1 Données d''entrée'!$C$333-1),0))","v":0},{"$f":"IF(J992<'1 Données d''entrée'!$C$334+1,0,IF(J992<'1 Données d''entrée'!$C$333+'1 Données d''entrée'!$C$334+1,$B1011*('1 Données d''entrée'!$C$332*(1+'1 Données d''entrée'!$C$332)^'1 Données d''entrée'!$C$333)/((1+'1 Données d''entrée'!$C$332)^'1 Données d''entrée'!$C$333-1),0))","v":0},{"$f":"IF(K992<'1 Données d''entrée'!$C$334+1,0,IF(K992<'1 Données d''entrée'!$C$333+'1 Données d''entrée'!$C$334+1,$B1011*('1 Données d''entrée'!$C$332*(1+'1 Données d''entrée'!$C$332)^'1 Données d''entrée'!$C$333)/((1+'1 Données d''entrée'!$C$332)^'1 Données d''entrée'!$C$333-1),0))","v":0},{"$f":"IF(L992<'1 Données d''entrée'!$C$334+1,0,IF(L992<'1 Données d''entrée'!$C$333+'1 Données d''entrée'!$C$334+1,$B1011*('1 Données d''entrée'!$C$332*(1+'1 Données d''entrée'!$C$332)^'1 Données d''entrée'!$C$333)/((1+'1 Données d''entrée'!$C$332)^'1 Données d''entrée'!$C$333-1),0))","v":0},{"$f":"IF(M992<'1 Données d''entrée'!$C$334+1,0,IF(M992<'1 Données d''entrée'!$C$333+'1 Données d''entrée'!$C$334+1,$B1011*('1 Données d''entrée'!$C$332*(1+'1 Données d''entrée'!$C$332)^'1 Données d''entrée'!$C$333)/((1+'1 Données d''entrée'!$C$332)^'1 Données d''entrée'!$C$333-1),0))","v":0},{"$f":"IF(N992<'1 Données d''entrée'!$C$334+1,0,IF(N992<'1 Données d''entrée'!$C$333+'1 Données d''entrée'!$C$334+1,$B1011*('1 Données d''entrée'!$C$332*(1+'1 Données d''entrée'!$C$332)^'1 Données d''entrée'!$C$333)/((1+'1 Données d''entrée'!$C$332)^'1 Données d''entrée'!$C$333-1),0))","v":0},{"$f":"IF(O992<'1 Données d''entrée'!$C$334+1,0,IF(O992<'1 Données d''entrée'!$C$333+'1 Données d''entrée'!$C$334+1,$B1011*('1 Données d''entrée'!$C$332*(1+'1 Données d''entrée'!$C$332)^'1 Données d''entrée'!$C$333)/((1+'1 Données d''entrée'!$C$332)^'1 Données d''entrée'!$C$333-1),0))","v":0},{"$f":"IF(P992<'1 Données d''entrée'!$C$334+1,0,IF(P992<'1 Données d''entrée'!$C$333+'1 Données d''entrée'!$C$334+1,$B1011*('1 Données d''entrée'!$C$332*(1+'1 Données d''entrée'!$C$332)^'1 Données d''entrée'!$C$333)/((1+'1 Données d''entrée'!$C$332)^'1 Données d''entrée'!$C$333-1),0))","v":0},{"$f":"IF(Q992<'1 Données d''entrée'!$C$334+1,0,IF(Q992<'1 Données d''entrée'!$C$333+'1 Données d''entrée'!$C$334+1,$B1011*('1 Données d''entrée'!$C$332*(1+'1 Données d''entrée'!$C$332)^'1 Données d''entrée'!$C$333)/((1+'1 Données d''entrée'!$C$332)^'1 Données d''entrée'!$C$333-1),0))","v":0},{"$f":"IF(R992<'1 Données d''entrée'!$C$334+1,0,IF(R992<'1 Données d''entrée'!$C$333+'1 Données d''entrée'!$C$334+1,$B1011*('1 Données d''entrée'!$C$332*(1+'1 Données d''entrée'!$C$332)^'1 Données d''entrée'!$C$333)/((1+'1 Données d''entrée'!$C$332)^'1 Données d''entrée'!$C$333-1),0))","v":0},{"$f":"IF(S992<'1 Données d''entrée'!$C$334+1,0,IF(S992<'1 Données d''entrée'!$C$333+'1 Données d''entrée'!$C$334+1,$B1011*('1 Données d''entrée'!$C$332*(1+'1 Données d''entrée'!$C$332)^'1 Données d''entrée'!$C$333)/((1+'1 Données d''entrée'!$C$332)^'1 Données d''entrée'!$C$333-1),0))","v":0},{"$f":"IF(T992<'1 Données d''entrée'!$C$334+1,0,IF(T992<'1 Données d''entrée'!$C$333+'1 Données d''entrée'!$C$334+1,$B1011*('1 Données d''entrée'!$C$332*(1+'1 Données d''entrée'!$C$332)^'1 Données d''entrée'!$C$333)/((1+'1 Données d''entrée'!$C$332)^'1 Données d''entrée'!$C$333-1),0))","v":0},{"$f":"IF(U992<'1 Données d''entrée'!$C$334+1,0,IF(U992<'1 Données d''entrée'!$C$333+'1 Données d''entrée'!$C$334+1,$B1011*('1 Données d''entrée'!$C$332*(1+'1 Données d''entrée'!$C$332)^'1 Données d''entrée'!$C$333)/((1+'1 Données d''entrée'!$C$332)^'1 Données d''entrée'!$C$333-1),0))","v":0},{"$f":"IF(V992<'1 Données d''entrée'!$C$334+1,0,IF(V992<'1 Données d''entrée'!$C$333+'1 Données d''entrée'!$C$334+1,$B1011*('1 Données d''entrée'!$C$332*(1+'1 Données d''entrée'!$C$332)^'1 Données d''entrée'!$C$333)/((1+'1 Données d''entrée'!$C$332)^'1 Données d''entrée'!$C$333-1),0))","v":0}]
["Paiement d'intérêt décroissant inclu dans l'annuité constante",0,{"$f":"IF('1 Données d''entrée'!$C$336=\"(=NON)\",IF(C1012>0,$B1011*((('1 Données d''entrée'!$C$332+1)^'1 Données d''entrée'!$C$333)-(1+'1 Données d''entrée'!$C$332)^('6 Financement'!C$54-1-'1 Données d''entrée'!$C$334))/((1+'1 Données d''entrée'!$C$332)^'1 Données d''entrée'!$C$333-1)*'1 Données d''entrée'!$C$332,0),IF(C992<'1 Données d''entrée'!$C$334+1,'1 Données d''entrée'!$C$332*'6 Financement'!$B1011,IF(C1012>0,$B$73*((('1 Données d''entrée'!$C$332+1)^'1 Données d''entrée'!$C$333)-(1+'1 Données d''entrée'!$C$332)^('6 Financement'!C$54-1-'1 Données d''entrée'!$C$334))/((1+'1 Données d''entrée'!$C$332)^'1 Données d''entrée'!$C$333-1)*'1 Données d''entrée'!$C$332,0)))","v":0},{"$f":"IF('1 Données d''entrée'!$C$336=\"(=NON)\",IF(D1012>0,$B1011*((('1 Données d''entrée'!$C$332+1)^'1 Données d''entrée'!$C$333)-(1+'1 Données d''entrée'!$C$332)^('6 Financement'!D$54-1-'1 Données d''entrée'!$C$334))/((1+'1 Données d''entrée'!$C$332)^'1 Données d''entrée'!$C$333-1)*'1 Données d''entrée'!$C$332,0),IF(D992<'1 Données d''entrée'!$C$334+1,'1 Données d''entrée'!$C$332*'6 Financement'!$B1011,IF(D1012>0,$B$73*((('1 Données d''entrée'!$C$332+1)^'1 Données d''entrée'!$C$333)-(1+'1 Données d''entrée'!$C$332)^('6 Financement'!D$54-1-'1 Données d''entrée'!$C$334))/((1+'1 Données d''entrée'!$C$332)^'1 Données d''entrée'!$C$333-1)*'1 Données d''entrée'!$C$332,0)))","v":0},{"$f":"IF('1 Données d''entrée'!$C$336=\"(=NON)\",IF(E1012>0,$B1011*((('1 Données d''entrée'!$C$332+1)^'1 Données d''entrée'!$C$333)-(1+'1 Données d''entrée'!$C$332)^('6 Financement'!E$54-1-'1 Données d''entrée'!$C$334))/((1+'1 Données d''entrée'!$C$332)^'1 Données d''entrée'!$C$333-1)*'1 Données d''entrée'!$C$332,0),IF(E992<'1 Données d''entrée'!$C$334+1,'1 Données d''entrée'!$C$332*'6 Financement'!$B1011,IF(E1012>0,$B$73*((('1 Données d''entrée'!$C$332+1)^'1 Données d''entrée'!$C$333)-(1+'1 Données d''entrée'!$C$332)^('6 Financement'!E$54-1-'1 Données d''entrée'!$C$334))/((1+'1 Données d''entrée'!$C$332)^'1 Données d''entrée'!$C$333-1)*'1 Données d''entrée'!$C$332,0)))","v":0},{"$f":"IF('1 Données d''entrée'!$C$336=\"(=NON)\",IF(F1012>0,$B1011*((('1 Données d''entrée'!$C$332+1)^'1 Données d''entrée'!$C$333)-(1+'1 Données d''entrée'!$C$332)^('6 Financement'!F$54-1-'1 Données d''entrée'!$C$334))/((1+'1 Données d''entrée'!$C$332)^'1 Données d''entrée'!$C$333-1)*'1 Données d''entrée'!$C$332,0),IF(F992<'1 Données d''entrée'!$C$334+1,'1 Données d''entrée'!$C$332*'6 Financement'!$B1011,IF(F1012>0,$B$73*((('1 Données d''entrée'!$C$332+1)^'1 Données d''entrée'!$C$333)-(1+'1 Données d''entrée'!$C$332)^('6 Financement'!F$54-1-'1 Données d''entrée'!$C$334))/((1+'1 Données d''entrée'!$C$332)^'1 Données d''entrée'!$C$333-1)*'1 Données d''entrée'!$C$332,0)))","v":0},{"$f":"IF('1 Données d''entrée'!$C$336=\"(=NON)\",IF(G1012>0,$B1011*((('1 Données d''entrée'!$C$332+1)^'1 Données d''entrée'!$C$333)-(1+'1 Données d''entrée'!$C$332)^('6 Financement'!G$54-1-'1 Données d''entrée'!$C$334))/((1+'1 Données d''entrée'!$C$332)^'1 Données d''entrée'!$C$333-1)*'1 Données d''entrée'!$C$332,0),IF(G992<'1 Données d''entrée'!$C$334+1,'1 Données d''entrée'!$C$332*'6 Financement'!$B1011,IF(G1012>0,$B$73*((('1 Données d''entrée'!$C$332+1)^'1 Données d''entrée'!$C$333)-(1+'1 Données d''entrée'!$C$332)^('6 Financement'!G$54-1-'1 Données d''entrée'!$C$334))/((1+'1 Données d''entrée'!$C$332)^'1 Données d''entrée'!$C$333-1)*'1 Données d''entrée'!$C$332,0)))","v":0},{"$f":"IF('1 Données d''entrée'!$C$336=\"(=NON)\",IF(H1012>0,$B1011*((('1 Données d''entrée'!$C$332+1)^'1 Données d''entrée'!$C$333)-(1+'1 Données d''entrée'!$C$332)^('6 Financement'!H$54-1-'1 Données d''entrée'!$C$334))/((1+'1 Données d''entrée'!$C$332)^'1 Données d''entrée'!$C$333-1)*'1 Données d''entrée'!$C$332,0),IF(H992<'1 Données d''entrée'!$C$334+1,'1 Données d''entrée'!$C$332*'6 Financement'!$B1011,IF(H1012>0,$B$73*((('1 Données d''entrée'!$C$332+1)^'1 Données d''entrée'!$C$333)-(1+'1 Données d''entrée'!$C$332)^('6 Financement'!H$54-1-'1 Données d''entrée'!$C$334))/((1+'1 Données d''entrée'!$C$332)^'1 Données d''entrée'!$C$333-1)*'1 Données d''entrée'!$C$332,0)))","v":0},{"$f":"IF('1 Données d''entrée'!$C$336=\"(=NON)\",IF(I1012>0,$B1011*((('1 Données d''entrée'!$C$332+1)^'1 Données d''entrée'!$C$333)-(1+'1 Données d''entrée'!$C$332)^('6 Financement'!I$54-1-'1 Données d''entrée'!$C$334))/((1+'1 Données d''entrée'!$C$332)^'1 Données d''entrée'!$C$333-1)*'1 Données d''entrée'!$C$332,0),IF(I992<'1 Données d''entrée'!$C$334+1,'1 Données d''entrée'!$C$332*'6 Financement'!$B1011,IF(I1012>0,$B$73*((('1 Données d''entrée'!$C$332+1)^'1 Données d''entrée'!$C$333)-(1+'1 Données d''entrée'!$C$332)^('6 Financement'!I$54-1-'1 Données d''entrée'!$C$334))/((1+'1 Données d''entrée'!$C$332)^'1 Données d''entrée'!$C$333-1)*'1 Données d''entrée'!$C$332,0)))","v":0},{"$f":"IF('1 Données d''entrée'!$C$336=\"(=NON)\",IF(J1012>0,$B1011*((('1 Données d''entrée'!$C$332+1)^'1 Données d''entrée'!$C$333)-(1+'1 Données d''entrée'!$C$332)^('6 Financement'!J$54-1-'1 Données d''entrée'!$C$334))/((1+'1 Données d''entrée'!$C$332)^'1 Données d''entrée'!$C$333-1)*'1 Données d''entrée'!$C$332,0),IF(J992<'1 Données d''entrée'!$C$334+1,'1 Données d''entrée'!$C$332*'6 Financement'!$B1011,IF(J1012>0,$B$73*((('1 Données d''entrée'!$C$332+1)^'1 Données d''entrée'!$C$333)-(1+'1 Données d''entrée'!$C$332)^('6 Financement'!J$54-1-'1 Données d''entrée'!$C$334))/((1+'1 Données d''entrée'!$C$332)^'1 Données d''entrée'!$C$333-1)*'1 Données d''entrée'!$C$332,0)))","v":0},{"$f":"IF('1 Données d''entrée'!$C$336=\"(=NON)\",IF(K1012>0,$B1011*((('1 Données d''entrée'!$C$332+1)^'1 Données d''entrée'!$C$333)-(1+'1 Données d''entrée'!$C$332)^('6 Financement'!K$54-1-'1 Données d''entrée'!$C$334))/((1+'1 Données d''entrée'!$C$332)^'1 Données d''entrée'!$C$333-1)*'1 Données d''entrée'!$C$332,0),IF(K992<'1 Données d''entrée'!$C$334+1,'1 Données d''entrée'!$C$332*'6 Financement'!$B1011,IF(K1012>0,$B$73*((('1 Données d''entrée'!$C$332+1)^'1 Données d''entrée'!$C$333)-(1+'1 Données d''entrée'!$C$332)^('6 Financement'!K$54-1-'1 Données d''entrée'!$C$334))/((1+'1 Données d''entrée'!$C$332)^'1 Données d''entrée'!$C$333-1)*'1 Données d''entrée'!$C$332,0)))","v":0},{"$f":"IF('1 Données d''entrée'!$C$336=\"(=NON)\",IF(L1012>0,$B1011*((('1 Données d''entrée'!$C$332+1)^'1 Données d''entrée'!$C$333)-(1+'1 Données d''entrée'!$C$332)^('6 Financement'!L$54-1-'1 Données d''entrée'!$C$334))/((1+'1 Données d''entrée'!$C$332)^'1 Données d''entrée'!$C$333-1)*'1 Données d''entrée'!$C$332,0),IF(L992<'1 Données d''entrée'!$C$334+1,'1 Données d''entrée'!$C$332*'6 Financement'!$B1011,IF(L1012>0,$B$73*((('1 Données d''entrée'!$C$332+1)^'1 Données d''entrée'!$C$333)-(1+'1 Données d''entrée'!$C$332)^('6 Financement'!L$54-1-'1 Données d''entrée'!$C$334))/((1+'1 Données d''entrée'!$C$332)^'1 Données d''entrée'!$C$333-1)*'1 Données d''entrée'!$C$332,0)))","v":0},{"$f":"IF('1 Données d''entrée'!$C$336=\"(=NON)\",IF(M1012>0,$B1011*((('1 Données d''entrée'!$C$332+1)^'1 Données d''entrée'!$C$333)-(1+'1 Données d''entrée'!$C$332)^('6 Financement'!M$54-1-'1 Données d''entrée'!$C$334))/((1+'1 Données d''entrée'!$C$332)^'1 Données d''entrée'!$C$333-1)*'1 Données d''entrée'!$C$332,0),IF(M992<'1 Données d''entrée'!$C$334+1,'1 Données d''entrée'!$C$332*'6 Financement'!$B1011,IF(M1012>0,$B$73*((('1 Données d''entrée'!$C$332+1)^'1 Données d''entrée'!$C$333)-(1+'1 Données d''entrée'!$C$332)^('6 Financement'!M$54-1-'1 Données d''entrée'!$C$334))/((1+'1 Données d''entrée'!$C$332)^'1 Données d''entrée'!$C$333-1)*'1 Données d''entrée'!$C$332,0)))","v":0},{"$f":"IF('1 Données d''entrée'!$C$336=\"(=NON)\",IF(N1012>0,$B1011*((('1 Données d''entrée'!$C$332+1)^'1 Données d''entrée'!$C$333)-(1+'1 Données d''entrée'!$C$332)^('6 Financement'!N$54-1-'1 Données d''entrée'!$C$334))/((1+'1 Données d''entrée'!$C$332)^'1 Données d''entrée'!$C$333-1)*'1 Données d''entrée'!$C$332,0),IF(N992<'1 Données d''entrée'!$C$334+1,'1 Données d''entrée'!$C$332*'6 Financement'!$B1011,IF(N1012>0,$B$73*((('1 Données d''entrée'!$C$332+1)^'1 Données d''entrée'!$C$333)-(1+'1 Données d''entrée'!$C$332)^('6 Financement'!N$54-1-'1 Données d''entrée'!$C$334))/((1+'1 Données d''entrée'!$C$332)^'1 Données d''entrée'!$C$333-1)*'1 Données d''entrée'!$C$332,0)))","v":0},{"$f":"IF('1 Données d''entrée'!$C$336=\"(=NON)\",IF(O1012>0,$B1011*((('1 Données d''entrée'!$C$332+1)^'1 Données d''entrée'!$C$333)-(1+'1 Données d''entrée'!$C$332)^('6 Financement'!O$54-1-'1 Données d''entrée'!$C$334))/((1+'1 Données d''entrée'!$C$332)^'1 Données d''entrée'!$C$333-1)*'1 Données d''entrée'!$C$332,0),IF(O992<'1 Données d''entrée'!$C$334+1,'1 Données d''entrée'!$C$332*'6 Financement'!$B1011,IF(O1012>0,$B$73*((('1 Données d''entrée'!$C$332+1)^'1 Données d''entrée'!$C$333)-(1+'1 Données d''entrée'!$C$332)^('6 Financement'!O$54-1-'1 Données d''entrée'!$C$334))/((1+'1 Données d''entrée'!$C$332)^'1 Données d''entrée'!$C$333-1)*'1 Données d''entrée'!$C$332,0)))","v":0},{"$f":"IF('1 Données d''entrée'!$C$336=\"(=NON)\",IF(P1012>0,$B1011*((('1 Données d''entrée'!$C$332+1)^'1 Données d''entrée'!$C$333)-(1+'1 Données d''entrée'!$C$332)^('6 Financement'!P$54-1-'1 Données d''entrée'!$C$334))/((1+'1 Données d''entrée'!$C$332)^'1 Données d''entrée'!$C$333-1)*'1 Données d''entrée'!$C$332,0),IF(P992<'1 Données d''entrée'!$C$334+1,'1 Données d''entrée'!$C$332*'6 Financement'!$B1011,IF(P1012>0,$B$73*((('1 Données d''entrée'!$C$332+1)^'1 Données d''entrée'!$C$333)-(1+'1 Données d''entrée'!$C$332)^('6 Financement'!P$54-1-'1 Données d''entrée'!$C$334))/((1+'1 Données d''entrée'!$C$332)^'1 Données d''entrée'!$C$333-1)*'1 Données d''entrée'!$C$332,0)))","v":0},{"$f":"IF('1 Données d''entrée'!$C$336=\"(=NON)\",IF(Q1012>0,$B1011*((('1 Données d''entrée'!$C$332+1)^'1 Données d''entrée'!$C$333)-(1+'1 Données d''entrée'!$C$332)^('6 Financement'!Q$54-1-'1 Données d''entrée'!$C$334))/((1+'1 Données d''entrée'!$C$332)^'1 Données d''entrée'!$C$333-1)*'1 Données d''entrée'!$C$332,0),IF(Q992<'1 Données d''entrée'!$C$334+1,'1 Données d''entrée'!$C$332*'6 Financement'!$B1011,IF(Q1012>0,$B$73*((('1 Données d''entrée'!$C$332+1)^'1 Données d''entrée'!$C$333)-(1+'1 Données d''entrée'!$C$332)^('6 Financement'!Q$54-1-'1 Données d''entrée'!$C$334))/((1+'1 Données d''entrée'!$C$332)^'1 Données d''entrée'!$C$333-1)*'1 Données d''entrée'!$C$332,0)))","v":0},{"$f":"IF('1 Données d''entrée'!$C$336=\"(=NON)\",IF(R1012>0,$B1011*((('1 Données d''entrée'!$C$332+1)^'1 Données d''entrée'!$C$333)-(1+'1 Données d''entrée'!$C$332)^('6 Financement'!R$54-1-'1 Données d''entrée'!$C$334))/((1+'1 Données d''entrée'!$C$332)^'1 Données d''entrée'!$C$333-1)*'1 Données d''entrée'!$C$332,0),IF(R992<'1 Données d''entrée'!$C$334+1,'1 Données d''entrée'!$C$332*'6 Financement'!$B1011,IF(R1012>0,$B$73*((('1 Données d''entrée'!$C$332+1)^'1 Données d''entrée'!$C$333)-(1+'1 Données d''entrée'!$C$332)^('6 Financement'!R$54-1-'1 Données d''entrée'!$C$334))/((1+'1 Données d''entrée'!$C$332)^'1 Données d''entrée'!$C$333-1)*'1 Données d''entrée'!$C$332,0)))","v":0},{"$f":"IF('1 Données d''entrée'!$C$336=\"(=NON)\",IF(S1012>0,$B1011*((('1 Données d''entrée'!$C$332+1)^'1 Données d''entrée'!$C$333)-(1+'1 Données d''entrée'!$C$332)^('6 Financement'!S$54-1-'1 Données d''entrée'!$C$334))/((1+'1 Données d''entrée'!$C$332)^'1 Données d''entrée'!$C$333-1)*'1 Données d''entrée'!$C$332,0),IF(S992<'1 Données d''entrée'!$C$334+1,'1 Données d''entrée'!$C$332*'6 Financement'!$B1011,IF(S1012>0,$B$73*((('1 Données d''entrée'!$C$332+1)^'1 Données d''entrée'!$C$333)-(1+'1 Données d''entrée'!$C$332)^('6 Financement'!S$54-1-'1 Données d''entrée'!$C$334))/((1+'1 Données d''entrée'!$C$332)^'1 Données d''entrée'!$C$333-1)*'1 Données d''entrée'!$C$332,0)))","v":0},{"$f":"IF('1 Données d''entrée'!$C$336=\"(=NON)\",IF(T1012>0,$B1011*((('1 Données d''entrée'!$C$332+1)^'1 Données d''entrée'!$C$333)-(1+'1 Données d''entrée'!$C$332)^('6 Financement'!T$54-1-'1 Données d''entrée'!$C$334))/((1+'1 Données d''entrée'!$C$332)^'1 Données d''entrée'!$C$333-1)*'1 Données d''entrée'!$C$332,0),IF(T992<'1 Données d''entrée'!$C$334+1,'1 Données d''entrée'!$C$332*'6 Financement'!$B1011,IF(T1012>0,$B$73*((('1 Données d''entrée'!$C$332+1)^'1 Données d''entrée'!$C$333)-(1+'1 Données d''entrée'!$C$332)^('6 Financement'!T$54-1-'1 Données d''entrée'!$C$334))/((1+'1 Données d''entrée'!$C$332)^'1 Données d''entrée'!$C$333-1)*'1 Données d''entrée'!$C$332,0)))","v":0},{"$f":"IF('1 Données d''entrée'!$C$336=\"(=NON)\",IF(U1012>0,$B1011*((('1 Données d''entrée'!$C$332+1)^'1 Données d''entrée'!$C$333)-(1+'1 Données d''entrée'!$C$332)^('6 Financement'!U$54-1-'1 Données d''entrée'!$C$334))/((1+'1 Données d''entrée'!$C$332)^'1 Données d''entrée'!$C$333-1)*'1 Données d''entrée'!$C$332,0),IF(U992<'1 Données d''entrée'!$C$334+1,'1 Données d''entrée'!$C$332*'6 Financement'!$B1011,IF(U1012>0,$B$73*((('1 Données d''entrée'!$C$332+1)^'1 Données d''entrée'!$C$333)-(1+'1 Données d''entrée'!$C$332)^('6 Financement'!U$54-1-'1 Données d''entrée'!$C$334))/((1+'1 Données d''entrée'!$C$332)^'1 Données d''entrée'!$C$333-1)*'1 Données d''entrée'!$C$332,0)))","v":0},{"$f":"IF('1 Données d''entrée'!$C$336=\"(=NON)\",IF(V1012>0,$B1011*((('1 Données d''entrée'!$C$332+1)^'1 Données d''entrée'!$C$333)-(1+'1 Données d''entrée'!$C$332)^('6 Financement'!V$54-1-'1 Données d''entrée'!$C$334))/((1+'1 Données d''entrée'!$C$332)^'1 Données d''entrée'!$C$333-1)*'1 Données d''entrée'!$C$332,0),IF(V992<'1 Données d''entrée'!$C$334+1,'1 Données d''entrée'!$C$332*'6 Financement'!$B1011,IF(V1012>0,$B$73*((('1 Données d''entrée'!$C$332+1)^'1 Données d''entrée'!$C$333)-(1+'1 Données d''entrée'!$C$332)^('6 Financement'!V$54-1-'1 Données d''entrée'!$C$334))/((1+'1 Données d''entrée'!$C$332)^'1 Données d''entrée'!$C$333-1)*'1 Données d''entrée'!$C$332,0)))","v":0}]
["Paiements d'intérêt avec des intérêts composés en cas d'absence des paiements dans la période de grâce",0,0,{"$f":"IF(D992='1 Données d''entrée'!$C$334+1,IF('1 Données d''entrée'!$C$336=\"(=NON)\",($B1011*'1 Données d''entrée'!$C$332)*((('1 Données d''entrée'!$C$332+1)^'1 Données d''entrée'!$C$334-1)/('1 Données d''entrée'!$C$332))*(1+'1 Données d''entrée'!$C$332),0),0)","v":0},{"$f":"IF(E992='1 Données d''entrée'!$C$334+1,IF('1 Données d''entrée'!$C$336=\"(=NON)\",($B1011*'1 Données d''entrée'!$C$332)*((('1 Données d''entrée'!$C$332+1)^'1 Données d''entrée'!$C$334-1)/('1 Données d''entrée'!$C$332))*(1+'1 Données d''entrée'!$C$332),0),0)","v":0},{"$f":"IF(F992='1 Données d''entrée'!$C$334+1,IF('1 Données d''entrée'!$C$336=\"(=NON)\",($B1011*'1 Données d''entrée'!$C$332)*((('1 Données d''entrée'!$C$332+1)^'1 Données d''entrée'!$C$334-1)/('1 Données d''entrée'!$C$332))*(1+'1 Données d''entrée'!$C$332),0),0)","v":0},{"$f":"IF(G992='1 Données d''entrée'!$C$334+1,IF('1 Données d''entrée'!$C$336=\"(=NON)\",($B1011*'1 Données d''entrée'!$C$332)*((('1 Données d''entrée'!$C$332+1)^'1 Données d''entrée'!$C$334-1)/('1 Données d''entrée'!$C$332))*(1+'1 Données d''entrée'!$C$332),0),0)","v":0},{"$f":"IF(H992='1 Données d''entrée'!$C$334+1,IF('1 Données d''entrée'!$C$336=\"(=NON)\",($B1011*'1 Données d''entrée'!$C$332)*((('1 Données d''entrée'!$C$332+1)^'1 Données d''entrée'!$C$334-1)/('1 Données d''entrée'!$C$332))*(1+'1 Données d''entrée'!$C$332),0),0)","v":0},{"$f":"IF(I992='1 Données d''entrée'!$C$334+1,IF('1 Données d''entrée'!$C$336=\"(=NON)\",($B1011*'1 Données d''entrée'!$C$332)*((('1 Données d''entrée'!$C$332+1)^'1 Données d''entrée'!$C$334-1)/('1 Données d''entrée'!$C$332))*(1+'1 Données d''entrée'!$C$332),0),0)","v":0},{"$f":"IF(J992='1 Données d''entrée'!$C$334+1,IF('1 Données d''entrée'!$C$336=\"(=NON)\",($B1011*'1 Données d''entrée'!$C$332)*((('1 Données d''entrée'!$C$332+1)^'1 Données d''entrée'!$C$334-1)/('1 Données d''entrée'!$C$332))*(1+'1 Données d''entrée'!$C$332),0),0)","v":0},{"$f":"IF(K992='1 Données d''entrée'!$C$334+1,IF('1 Données d''entrée'!$C$336=\"(=NON)\",($B1011*'1 Données d''entrée'!$C$332)*((('1 Données d''entrée'!$C$332+1)^'1 Données d''entrée'!$C$334-1)/('1 Données d''entrée'!$C$332))*(1+'1 Données d''entrée'!$C$332),0),0)","v":0},{"$f":"IF(L992='1 Données d''entrée'!$C$334+1,IF('1 Données d''entrée'!$C$336=\"(=NON)\",($B1011*'1 Données d''entrée'!$C$332)*((('1 Données d''entrée'!$C$332+1)^'1 Données d''entrée'!$C$334-1)/('1 Données d''entrée'!$C$332))*(1+'1 Données d''entrée'!$C$332),0),0)","v":0},{"$f":"IF(M992='1 Données d''entrée'!$C$334+1,IF('1 Données d''entrée'!$C$336=\"(=NON)\",($B1011*'1 Données d''entrée'!$C$332)*((('1 Données d''entrée'!$C$332+1)^'1 Données d''entrée'!$C$334-1)/('1 Données d''entrée'!$C$332))*(1+'1 Données d''entrée'!$C$332),0),0)","v":0},{"$f":"IF(N992='1 Données d''entrée'!$C$334+1,IF('1 Données d''entrée'!$C$336=\"(=NON)\",($B1011*'1 Données d''entrée'!$C$332)*((('1 Données d''entrée'!$C$332+1)^'1 Données d''entrée'!$C$334-1)/('1 Données d''entrée'!$C$332))*(1+'1 Données d''entrée'!$C$332),0),0)","v":0},{"$f":"IF(O992='1 Données d''entrée'!$C$334+1,IF('1 Données d''entrée'!$C$336=\"(=NON)\",($B1011*'1 Données d''entrée'!$C$332)*((('1 Données d''entrée'!$C$332+1)^'1 Données d''entrée'!$C$334-1)/('1 Données d''entrée'!$C$332))*(1+'1 Données d''entrée'!$C$332),0),0)","v":0},{"$f":"IF(P992='1 Données d''entrée'!$C$334+1,IF('1 Données d''entrée'!$C$336=\"(=NON)\",($B1011*'1 Données d''entrée'!$C$332)*((('1 Données d''entrée'!$C$332+1)^'1 Données d''entrée'!$C$334-1)/('1 Données d''entrée'!$C$332))*(1+'1 Données d''entrée'!$C$332),0),0)","v":0},{"$f":"IF(Q992='1 Données d''entrée'!$C$334+1,IF('1 Données d''entrée'!$C$336=\"(=NON)\",($B1011*'1 Données d''entrée'!$C$332)*((('1 Données d''entrée'!$C$332+1)^'1 Données d''entrée'!$C$334-1)/('1 Données d''entrée'!$C$332))*(1+'1 Données d''entrée'!$C$332),0),0)","v":0},{"$f":"IF(R992='1 Données d''entrée'!$C$334+1,IF('1 Données d''entrée'!$C$336=\"(=NON)\",($B1011*'1 Données d''entrée'!$C$332)*((('1 Données d''entrée'!$C$332+1)^'1 Données d''entrée'!$C$334-1)/('1 Données d''entrée'!$C$332))*(1+'1 Données d''entrée'!$C$332),0),0)","v":0},{"$f":"IF(S992='1 Données d''entrée'!$C$334+1,IF('1 Données d''entrée'!$C$336=\"(=NON)\",($B1011*'1 Données d''entrée'!$C$332)*((('1 Données d''entrée'!$C$332+1)^'1 Données d''entrée'!$C$334-1)/('1 Données d''entrée'!$C$332))*(1+'1 Données d''entrée'!$C$332),0),0)","v":0},{"$f":"IF(T992='1 Données d''entrée'!$C$334+1,IF('1 Données d''entrée'!$C$336=\"(=NON)\",($B1011*'1 Données d''entrée'!$C$332)*((('1 Données d''entrée'!$C$332+1)^'1 Données d''entrée'!$C$334-1)/('1 Données d''entrée'!$C$332))*(1+'1 Données d''entrée'!$C$332),0),0)","v":0},{"$f":"IF(U992='1 Données d''entrée'!$C$334+1,IF('1 Données d''entrée'!$C$336=\"(=NON)\",($B1011*'1 Données d''entrée'!$C$332)*((('1 Données d''entrée'!$C$332+1)^'1 Données d''entrée'!$C$334-1)/('1 Données d''entrée'!$C$332))*(1+'1 Données d''entrée'!$C$332),0),0)","v":0},{"$f":"IF(V992='1 Données d''entrée'!$C$334+1,IF('1 Données d''entrée'!$C$336=\"(=NON)\",($B1011*'1 Données d''entrée'!$C$332)*((('1 Données d''entrée'!$C$332+1)^'1 Données d''entrée'!$C$334-1)/('1 Données d''entrée'!$C$332))*(1+'1 Données d''entrée'!$C$332),0),0)","v":0}]
[]
["Fonds d'autres donneurs / investisseurs - Subvention",{"$f":"'1 Données d''entrée'!$B$307","v":0}]
["Fonds d'autre donneurs / investisseurs - Prêt; Option 1: Remboursement du principal fractionné",{"$f":"'1 Données d''entrée'!$B$319","v":0},"% de prêt total"]
["Réception et montant restant",{"$f":"'1 Données d''entrée'!$B$306*'1 Données d''entrée'!$B$319+'1 Données d''entrée'!$B$306*'1 Données d''entrée'!$C$316","v":0},{"$f":"B1018-C1019","v":0},{"$f":"C1018-D1019","v":0},0,0,0,0,0,0,0,0,0,0,0,0,0,0,0,0,0,0]
["Remboursement du principal",0,{"$f":"IF(C992<'1 Données d''entrée'!$C$312+1,0,IF(C992<'1 Données d''entrée'!$C$312+'1 Données d''entrée'!$C$311+1,($B1018/'1 Données d''entrée'!$C$311),0))","v":0},{"$f":"IF(D992<'1 Données d''entrée'!$C$312+1,0,IF(D992<'1 Données d''entrée'!$C$312+'1 Données d''entrée'!$C$311+1,($B1018/'1 Données d''entrée'!$C$311),0))","v":0},{"$f":"IF(E992<'1 Données d''entrée'!$C$312+1,0,IF(E992<'1 Données d''entrée'!$C$312+'1 Données d''entrée'!$C$311+1,($B1018/'1 Données d''entrée'!$C$311),0))","v":0},{"$f":"IF(F992<'1 Données d''entrée'!$C$312+1,0,IF(F992<'1 Données d''entrée'!$C$312+'1 Données d''entrée'!$C$311+1,($B1018/'1 Données d''entrée'!$C$311),0))","v":0},{"$f":"IF(G992<'1 Données d''entrée'!$C$312+1,0,IF(G992<'1 Données d''entrée'!$C$312+'1 Données d''entrée'!$C$311+1,($B1018/'1 Données d''entrée'!$C$311),0))","v":0},{"$f":"IF(H992<'1 Données d''entrée'!$C$312+1,0,IF(H992<'1 Données d''entrée'!$C$312+'1 Données d''entrée'!$C$311+1,($B1018/'1 Données d''entrée'!$C$311),0))","v":0},{"$f":"IF(I992<'1 Données d''entrée'!$C$312+1,0,IF(I992<'1 Données d''entrée'!$C$312+'1 Données d''entrée'!$C$311+1,($B1018/'1 Données d''entrée'!$C$311),0))","v":0},{"$f":"IF(J992<'1 Données d''entrée'!$C$312+1,0,IF(J992<'1 Données d''entrée'!$C$312+'1 Données d''entrée'!$C$311+1,($B1018/'1 Données d''entrée'!$C$311),0))","v":0},{"$f":"IF(K992<'1 Données d''entrée'!$C$312+1,0,IF(K992<'1 Données d''entrée'!$C$312+'1 Données d''entrée'!$C$311+1,($B1018/'1 Données d''entrée'!$C$311),0))","v":0},{"$f":"IF(L992<'1 Données d''entrée'!$C$312+1,0,IF(L992<'1 Données d''entrée'!$C$312+'1 Données d''entrée'!$C$311+1,($B1018/'1 Données d''entrée'!$C$311),0))","v":0},{"$f":"IF(M992<'1 Données d''entrée'!$C$312+1,0,IF(M992<'1 Données d''entrée'!$C$312+'1 Données d''entrée'!$C$311+1,($B1018/'1 Données d''entrée'!$C$311),0))","v":0},{"$f":"IF(N992<'1 Données d''entrée'!$C$312+1,0,IF(N992<'1 Données d''entrée'!$C$312+'1 Données d''entrée'!$C$311+1,($B1018/'1 Données d''entrée'!$C$311),0))","v":0},{"$f":"IF(O992<'1 Données d''entrée'!$C$312+1,0,IF(O992<'1 Données d''entrée'!$C$312+'1 Données d''entrée'!$C$311+1,($B1018/'1 Données d''entrée'!$C$311),0))","v":0},{"$f":"IF(P992<'1 Données d''entrée'!$C$312+1,0,IF(P992<'1 Données d''entrée'!$C$312+'1 Données d''entrée'!$C$311+1,($B1018/'1 Données d''entrée'!$C$311),0))","v":0},{"$f":"IF(Q992<'1 Données d''entrée'!$C$312+1,0,IF(Q992<'1 Données d''entrée'!$C$312+'1 Données d''entrée'!$C$311+1,($B1018/'1 Données d''entrée'!$C$311),0))","v":0},{"$f":"IF(R992<'1 Données d''entrée'!$C$312+1,0,IF(R992<'1 Données d''entrée'!$C$312+'1 Données d''entrée'!$C$311+1,($B1018/'1 Données d''entrée'!$C$311),0))","v":0},{"$f":"IF(S992<'1 Données d''entrée'!$C$312+1,0,IF(S992<'1 Données d''entrée'!$C$312+'1 Données d''entrée'!$C$311+1,($B1018/'1 Données d''entrée'!$C$311),0))","v":0},{"$f":"IF(T992<'1 Données d''entrée'!$C$312+1,0,IF(T992<'1 Données d''entrée'!$C$312+'1 Données d''entrée'!$C$311+1,($B1018/'1 Données d''entrée'!$C$311),0))","v":0},{"$f":"IF(U992<'1 Données d''entrée'!$C$312+1,0,IF(U992<'1 Données d''entrée'!$C$312+'1 Données d''entrée'!$C$311+1,($B1018/'1 Données d''entrée'!$C$311),0))","v":0},{"$f":"IF(V992<'1 Données d''entrée'!$C$312+1,0,IF(V992<'1 Données d''entrée'!$C$312+'1 Données d''entrée'!$C$311+1,($B1018/'1 Données d''entrée'!$C$311),0))","v":0}]
["Paiement d'intérêts",0,{"$f":"IF('1 Données d''entrée'!$C$314=\"(=NON)\",IF(C992<'1 Données d''entrée'!$C$312+1,0,B1018*'1 Données d''entrée'!$C$310),B1018*'1 Données d''entrée'!$C$310)","v":0},{"$f":"IF('1 Données d''entrée'!$C$314=\"(=NON)\",IF(D992<'1 Données d''entrée'!$C$312+1,0,C1018*'1 Données d''entrée'!$C$310),C1018*'1 Données d''entrée'!$C$310)","v":0},{"$f":"IF('1 Données d''entrée'!$C$314=\"(=NON)\",IF(E992<'1 Données d''entrée'!$C$312+1,0,D1018*'1 Données d''entrée'!$C$310),D1018*'1 Données d''entrée'!$C$310)","v":0},{"$f":"IF('1 Données d''entrée'!$C$314=\"(=NON)\",IF(F992<'1 Données d''entrée'!$C$312+1,0,E1018*'1 Données d''entrée'!$C$310),E1018*'1 Données d''entrée'!$C$310)","v":0},{"$f":"IF('1 Données d''entrée'!$C$314=\"(=NON)\",IF(G992<'1 Données d''entrée'!$C$312+1,0,F1018*'1 Données d''entrée'!$C$310),F1018*'1 Données d''entrée'!$C$310)","v":0},{"$f":"IF('1 Données d''entrée'!$C$314=\"(=NON)\",IF(H992<'1 Données d''entrée'!$C$312+1,0,G1018*'1 Données d''entrée'!$C$310),G1018*'1 Données d''entrée'!$C$310)","v":0},{"$f":"IF('1 Données d''entrée'!$C$314=\"(=NON)\",IF(I992<'1 Données d''entrée'!$C$312+1,0,H1018*'1 Données d''entrée'!$C$310),H1018*'1 Données d''entrée'!$C$310)","v":0},{"$f":"IF('1 Données d''entrée'!$C$314=\"(=NON)\",IF(J992<'1 Données d''entrée'!$C$312+1,0,I1018*'1 Données d''entrée'!$C$310),I1018*'1 Données d''entrée'!$C$310)","v":0},{"$f":"IF('1 Données d''entrée'!$C$314=\"(=NON)\",IF(K992<'1 Données d''entrée'!$C$312+1,0,J1018*'1 Données d''entrée'!$C$310),J1018*'1 Données d''entrée'!$C$310)","v":0},{"$f":"IF('1 Données d''entrée'!$C$314=\"(=NON)\",IF(L992<'1 Données d''entrée'!$C$312+1,0,K1018*'1 Données d''entrée'!$C$310),K1018*'1 Données d''entrée'!$C$310)","v":0},{"$f":"IF('1 Données d''entrée'!$C$314=\"(=NON)\",IF(M992<'1 Données d''entrée'!$C$312+1,0,L1018*'1 Données d''entrée'!$C$310),L1018*'1 Données d''entrée'!$C$310)","v":0},{"$f":"IF('1 Données d''entrée'!$C$314=\"(=NON)\",IF(N992<'1 Données d''entrée'!$C$312+1,0,M1018*'1 Données d''entrée'!$C$310),M1018*'1 Données d''entrée'!$C$310)","v":0},{"$f":"IF('1 Données d''entrée'!$C$314=\"(=NON)\",IF(O992<'1 Données d''entrée'!$C$312+1,0,N1018*'1 Données d''entrée'!$C$310),N1018*'1 Données d''entrée'!$C$310)","v":0},{"$f":"IF('1 Données d''entrée'!$C$314=\"(=NON)\",IF(P992<'1 Données d''entrée'!$C$312+1,0,O1018*'1 Données d''entrée'!$C$310),O1018*'1 Données d''entrée'!$C$310)","v":0},{"$f":"IF('1 Données d''entrée'!$C$314=\"(=NON)\",IF(Q992<'1 Données d''entrée'!$C$312+1,0,P1018*'1 Données d''entrée'!$C$310),P1018*'1 Données d''entrée'!$C$310)","v":0},{"$f":"IF('1 Données d''entrée'!$C$314=\"(=NON)\",IF(R992<'1 Données d''entrée'!$C$312+1,0,Q1018*'1 Données d''entrée'!$C$310),Q1018*'1 Données d''entrée'!$C$310)","v":0},{"$f":"IF('1 Données d''entrée'!$C$314=\"(=NON)\",IF(S992<'1 Données d''entrée'!$C$312+1,0,R1018*'1 Données d''entrée'!$C$310),R1018*'1 Données d''entrée'!$C$310)","v":0},{"$f":"IF('1 Données d''entrée'!$C$314=\"(=NON)\",IF(T992<'1 Données d''entrée'!$C$312+1,0,S1018*'1 Données d''entrée'!$C$310),S1018*'1 Données d''entrée'!$C$310)","v":0},{"$f":"IF('1 Données d''entrée'!$C$314=\"(=NON)\",IF(U992<'1 Données d''entrée'!$C$312+1,0,T1018*'1 Données d''entrée'!$C$310),T1018*'1 Données d''entrée'!$C$310)","v":0},{"$f":"IF('1 Données d''entrée'!$C$314=\"(=NON)\",IF(V992<'1 Données d''entrée'!$C$312+1,0,U1018*'1 Données d''entrée'!$C$310),U1018*'1 Données d''entrée'!$C$310)","v":0}]
["Paiements d'intérêt avec des intérêts composés en cas d'absence des paiements dans la période de grâce",0,0,{"$f":"IF(D992='1 Données d''entrée'!$C$312+1,IF('1 Données d''entrée'!$C$314=\"(=NON)\",($B1018*'1 Données d''entrée'!$C$310)*((('1 Données d''entrée'!$C$310+1)^'1 Données d''entrée'!$C$312-1)/('1 Données d''entrée'!$C$310))*(1+'1 Données d''entrée'!$C$310),0),0)","v":0},{"$f":"IF(E992='1 Données d''entrée'!$C$312+1,IF('1 Données d''entrée'!$C$314=\"(=NON)\",($B1018*'1 Données d''entrée'!$C$310)*((('1 Données d''entrée'!$C$310+1)^'1 Données d''entrée'!$C$312-1)/('1 Données d''entrée'!$C$310))*(1+'1 Données d''entrée'!$C$310),0),0)","v":0},{"$f":"IF(F992='1 Données d''entrée'!$C$312+1,IF('1 Données d''entrée'!$C$314=\"(=NON)\",($B1018*'1 Données d''entrée'!$C$310)*((('1 Données d''entrée'!$C$310+1)^'1 Données d''entrée'!$C$312-1)/('1 Données d''entrée'!$C$310))*(1+'1 Données d''entrée'!$C$310),0),0)","v":0},{"$f":"IF(G992='1 Données d''entrée'!$C$312+1,IF('1 Données d''entrée'!$C$314=\"(=NON)\",($B1018*'1 Données d''entrée'!$C$310)*((('1 Données d''entrée'!$C$310+1)^'1 Données d''entrée'!$C$312-1)/('1 Données d''entrée'!$C$310))*(1+'1 Données d''entrée'!$C$310),0),0)","v":0},{"$f":"IF(H992='1 Données d''entrée'!$C$312+1,IF('1 Données d''entrée'!$C$314=\"(=NON)\",($B1018*'1 Données d''entrée'!$C$310)*((('1 Données d''entrée'!$C$310+1)^'1 Données d''entrée'!$C$312-1)/('1 Données d''entrée'!$C$310))*(1+'1 Données d''entrée'!$C$310),0),0)","v":0},{"$f":"IF(I992='1 Données d''entrée'!$C$312+1,IF('1 Données d''entrée'!$C$314=\"(=NON)\",($B1018*'1 Données d''entrée'!$C$310)*((('1 Données d''entrée'!$C$310+1)^'1 Données d''entrée'!$C$312-1)/('1 Données d''entrée'!$C$310))*(1+'1 Données d''entrée'!$C$310),0),0)","v":0},{"$f":"IF(J992='1 Données d''entrée'!$C$312+1,IF('1 Données d''entrée'!$C$314=\"(=NON)\",($B1018*'1 Données d''entrée'!$C$310)*((('1 Données d''entrée'!$C$310+1)^'1 Données d''entrée'!$C$312-1)/('1 Données d''entrée'!$C$310))*(1+'1 Données d''entrée'!$C$310),0),0)","v":0},{"$f":"IF(K992='1 Données d''entrée'!$C$312+1,IF('1 Données d''entrée'!$C$314=\"(=NON)\",($B1018*'1 Données d''entrée'!$C$310)*((('1 Données d''entrée'!$C$310+1)^'1 Données d''entrée'!$C$312-1)/('1 Données d''entrée'!$C$310))*(1+'1 Données d''entrée'!$C$310),0),0)","v":0},{"$f":"IF(L992='1 Données d''entrée'!$C$312+1,IF('1 Données d''entrée'!$C$314=\"(=NON)\",($B1018*'1 Données d''entrée'!$C$310)*((('1 Données d''entrée'!$C$310+1)^'1 Données d''entrée'!$C$312-1)/('1 Données d''entrée'!$C$310))*(1+'1 Données d''entrée'!$C$310),0),0)","v":0},{"$f":"IF(M992='1 Données d''entrée'!$C$312+1,IF('1 Données d''entrée'!$C$314=\"(=NON)\",($B1018*'1 Données d''entrée'!$C$310)*((('1 Données d''entrée'!$C$310+1)^'1 Données d''entrée'!$C$312-1)/('1 Données d''entrée'!$C$310))*(1+'1 Données d''entrée'!$C$310),0),0)","v":0},{"$f":"IF(N992='1 Données d''entrée'!$C$312+1,IF('1 Données d''entrée'!$C$314=\"(=NON)\",($B1018*'1 Données d''entrée'!$C$310)*((('1 Données d''entrée'!$C$310+1)^'1 Données d''entrée'!$C$312-1)/('1 Données d''entrée'!$C$310))*(1+'1 Données d''entrée'!$C$310),0),0)","v":0},{"$f":"IF(O992='1 Données d''entrée'!$C$312+1,IF('1 Données d''entrée'!$C$314=\"(=NON)\",($B1018*'1 Données d''entrée'!$C$310)*((('1 Données d''entrée'!$C$310+1)^'1 Données d''entrée'!$C$312-1)/('1 Données d''entrée'!$C$310))*(1+'1 Données d''entrée'!$C$310),0),0)","v":0},{"$f":"IF(P992='1 Données d''entrée'!$C$312+1,IF('1 Données d''entrée'!$C$314=\"(=NON)\",($B1018*'1 Données d''entrée'!$C$310)*((('1 Données d''entrée'!$C$310+1)^'1 Données d''entrée'!$C$312-1)/('1 Données d''entrée'!$C$310))*(1+'1 Données d''entrée'!$C$310),0),0)","v":0},{"$f":"IF(Q992='1 Données d''entrée'!$C$312+1,IF('1 Données d''entrée'!$C$314=\"(=NON)\",($B1018*'1 Données d''entrée'!$C$310)*((('1 Données d''entrée'!$C$310+1)^'1 Données d''entrée'!$C$312-1)/('1 Données d''entrée'!$C$310))*(1+'1 Données d''entrée'!$C$310),0),0)","v":0},{"$f":"IF(R992='1 Données d''entrée'!$C$312+1,IF('1 Données d''entrée'!$C$314=\"(=NON)\",($B1018*'1 Données d''entrée'!$C$310)*((('1 Données d''entrée'!$C$310+1)^'1 Données d''entrée'!$C$312-1)/('1 Données d''entrée'!$C$310))*(1+'1 Données d''entrée'!$C$310),0),0)","v":0},{"$f":"IF(S992='1 Données d''entrée'!$C$312+1,IF('1 Données d''entrée'!$C$314=\"(=NON)\",($B1018*'1 Données d''entrée'!$C$310)*((('1 Données d''entrée'!$C$310+1)^'1 Données d''entrée'!$C$312-1)/('1 Données d''entrée'!$C$310))*(1+'1 Données d''entrée'!$C$310),0),0)","v":0},{"$f":"IF(T992='1 Données d''entrée'!$C$312+1,IF('1 Données d''entrée'!$C$314=\"(=NON)\",($B1018*'1 Données d''entrée'!$C$310)*((('1 Données d''entrée'!$C$310+1)^'1 Données d''entrée'!$C$312-1)/('1 Données d''entrée'!$C$310))*(1+'1 Données d''entrée'!$C$310),0),0)","v":0},{"$f":"IF(U992='1 Données d''entrée'!$C$312+1,IF('1 Données d''entrée'!$C$314=\"(=NON)\",($B1018*'1 Données d''entrée'!$C$310)*((('1 Données d''entrée'!$C$310+1)^'1 Données d''entrée'!$C$312-1)/('1 Données d''entrée'!$C$310))*(1+'1 Données d''entrée'!$C$310),0),0)","v":0},{"$f":"IF(V992='1 Données d''entrée'!$C$312+1,IF('1 Données d''entrée'!$C$314=\"(=NON)\",($B1018*'1 Données d''entrée'!$C$310)*((('1 Données d''entrée'!$C$310+1)^'1 Données d''entrée'!$C$312-1)/('1 Données d''entrée'!$C$310))*(1+'1 Données d''entrée'!$C$310),0),0)","v":0}]
["Fonds d'autre donneurs / investisseurs - Prêt; Option 2: Remboursement du principal final",{"$f":"'1 Données d''entrée'!$B$320","v":0},"% de prêt total"]
["Réception et montant restant",{"$f":"'1 Données d''entrée'!$B$306*'1 Données d''entrée'!$B$320+'1 Données d''entrée'!$B$306*'1 Données d''entrée'!$C$316","v":0},{"$f":"B1023-C1024","v":0},{"$f":"C1023-D1024","v":0},0,0,0,0,0,0,0,0,0,0,0,0,0,0,0,0,0,0]
["Remboursement du principal",0,{"$f":"IF('1 Données d''entrée'!$C$311+'1 Données d''entrée'!$C$312=C992,'6 Financement'!$B$85,0)","v":0},{"$f":"IF('1 Données d''entrée'!$C$311+'1 Données d''entrée'!$C$312=D992,'6 Financement'!$B$85,0)","v":0},{"$f":"IF('1 Données d''entrée'!$C$311+'1 Données d''entrée'!$C$312=E992,'6 Financement'!$B$85,0)","v":0},{"$f":"IF('1 Données d''entrée'!$C$311+'1 Données d''entrée'!$C$312=F992,'6 Financement'!$B$85,0)","v":0},{"$f":"IF('1 Données d''entrée'!$C$311+'1 Données d''entrée'!$C$312=G992,'6 Financement'!$B$85,0)","v":0},{"$f":"IF('1 Données d''entrée'!$C$311+'1 Données d''entrée'!$C$312=H992,'6 Financement'!$B$85,0)","v":0},{"$f":"IF('1 Données d''entrée'!$C$311+'1 Données d''entrée'!$C$312=I992,'6 Financement'!$B$85,0)","v":0},{"$f":"IF('1 Données d''entrée'!$C$311+'1 Données d''entrée'!$C$312=J992,'6 Financement'!$B$85,0)","v":0},{"$f":"IF('1 Données d''entrée'!$C$311+'1 Données d''entrée'!$C$312=K992,'6 Financement'!$B$85,0)","v":0},{"$f":"IF('1 Données d''entrée'!$C$311+'1 Données d''entrée'!$C$312=L992,'6 Financement'!$B$85,0)","v":0},{"$f":"IF('1 Données d''entrée'!$C$311+'1 Données d''entrée'!$C$312=M992,'6 Financement'!$B$85,0)","v":0},{"$f":"IF('1 Données d''entrée'!$C$311+'1 Données d''entrée'!$C$312=N992,'6 Financement'!$B$85,0)","v":0},{"$f":"IF('1 Données d''entrée'!$C$311+'1 Données d''entrée'!$C$312=O992,'6 Financement'!$B$85,0)","v":0},{"$f":"IF('1 Données d''entrée'!$C$311+'1 Données d''entrée'!$C$312=P992,'6 Financement'!$B$85,0)","v":0},{"$f":"IF('1 Données d''entrée'!$C$311+'1 Données d''entrée'!$C$312=Q992,'6 Financement'!$B$85,0)","v":0},{"$f":"IF('1 Données d''entrée'!$C$311+'1 Données d''entrée'!$C$312=R992,'6 Financement'!$B$85,0)","v":0},{"$f":"IF('1 Données d''entrée'!$C$311+'1 Données d''entrée'!$C$312=S992,'6 Financement'!$B$85,0)","v":0},{"$f":"IF('1 Données d''entrée'!$C$311+'1 Données d''entrée'!$C$312=T992,'6 Financement'!$B$85,0)","v":0},{"$f":"IF('1 Données d''entrée'!$C$311+'1 Données d''entrée'!$C$312=U992,'6 Financement'!$B$85,0)","v":0},{"$f":"IF('1 Données d''entrée'!$C$311+'1 Données d''entrée'!$C$312=V992,'6 Financement'!$B$85,0)","v":0}]
["Paiement d'intérêts",0,{"$f":"IF('1 Données d''entrée'!$C$314=\"(=NON)\",IF(C992<'1 Données d''entrée'!$C$312+1,0,B1023*'1 Données d''entrée'!$C$310),B1023*'1 Données d''entrée'!$C$310)","v":0},{"$f":"IF('1 Données d''entrée'!$C$314=\"(=NON)\",IF(D992<'1 Données d''entrée'!$C$312+1,0,C1023*'1 Données d''entrée'!$C$310),C1023*'1 Données d''entrée'!$C$310)","v":0},{"$f":"IF('1 Données d''entrée'!$C$314=\"(=NON)\",IF(E992<'1 Données d''entrée'!$C$312+1,0,D1023*'1 Données d''entrée'!$C$310),D1023*'1 Données d''entrée'!$C$310)","v":0},{"$f":"IF('1 Données d''entrée'!$C$314=\"(=NON)\",IF(F992<'1 Données d''entrée'!$C$312+1,0,E1023*'1 Données d''entrée'!$C$310),E1023*'1 Données d''entrée'!$C$310)","v":0},{"$f":"IF('1 Données d''entrée'!$C$314=\"(=NON)\",IF(G992<'1 Données d''entrée'!$C$312+1,0,F1023*'1 Données d''entrée'!$C$310),F1023*'1 Données d''entrée'!$C$310)","v":0},{"$f":"IF('1 Données d''entrée'!$C$314=\"(=NON)\",IF(H992<'1 Données d''entrée'!$C$312+1,0,G1023*'1 Données d''entrée'!$C$310),G1023*'1 Données d''entrée'!$C$310)","v":0},{"$f":"IF('1 Données d''entrée'!$C$314=\"(=NON)\",IF(I992<'1 Données d''entrée'!$C$312+1,0,H1023*'1 Données d''entrée'!$C$310),H1023*'1 Données d''entrée'!$C$310)","v":0},{"$f":"IF('1 Données d''entrée'!$C$314=\"(=NON)\",IF(J992<'1 Données d''entrée'!$C$312+1,0,I1023*'1 Données d''entrée'!$C$310),I1023*'1 Données d''entrée'!$C$310)","v":0},{"$f":"IF('1 Données d''entrée'!$C$314=\"(=NON)\",IF(K992<'1 Données d''entrée'!$C$312+1,0,J1023*'1 Données d''entrée'!$C$310),J1023*'1 Données d''entrée'!$C$310)","v":0},{"$f":"IF('1 Données d''entrée'!$C$314=\"(=NON)\",IF(L992<'1 Données d''entrée'!$C$312+1,0,K1023*'1 Données d''entrée'!$C$310),K1023*'1 Données d''entrée'!$C$310)","v":0},{"$f":"IF('1 Données d''entrée'!$C$314=\"(=NON)\",IF(M992<'1 Données d''entrée'!$C$312+1,0,L1023*'1 Données d''entrée'!$C$310),L1023*'1 Données d''entrée'!$C$310)","v":0},{"$f":"IF('1 Données d''entrée'!$C$314=\"(=NON)\",IF(N992<'1 Données d''entrée'!$C$312+1,0,M1023*'1 Données d''entrée'!$C$310),M1023*'1 Données d''entrée'!$C$310)","v":0},{"$f":"IF('1 Données d''entrée'!$C$314=\"(=NON)\",IF(O992<'1 Données d''entrée'!$C$312+1,0,N1023*'1 Données d''entrée'!$C$310),N1023*'1 Données d''entrée'!$C$310)","v":0},{"$f":"IF('1 Données d''entrée'!$C$314=\"(=NON)\",IF(P992<'1 Données d''entrée'!$C$312+1,0,O1023*'1 Données d''entrée'!$C$310),O1023*'1 Données d''entrée'!$C$310)","v":0},{"$f":"IF('1 Données d''entrée'!$C$314=\"(=NON)\",IF(Q992<'1 Données d''entrée'!$C$312+1,0,P1023*'1 Données d''entrée'!$C$310),P1023*'1 Données d''entrée'!$C$310)","v":0},{"$f":"IF('1 Données d''entrée'!$C$314=\"(=NON)\",IF(R992<'1 Données d''entrée'!$C$312+1,0,Q1023*'1 Données d''entrée'!$C$310),Q1023*'1 Données d''entrée'!$C$310)","v":0},{"$f":"IF('1 Données d''entrée'!$C$314=\"(=NON)\",IF(S992<'1 Données d''entrée'!$C$312+1,0,R1023*'1 Données d''entrée'!$C$310),R1023*'1 Données d''entrée'!$C$310)","v":0},{"$f":"IF('1 Données d''entrée'!$C$314=\"(=NON)\",IF(T992<'1 Données d''entrée'!$C$312+1,0,S1023*'1 Données d''entrée'!$C$310),S1023*'1 Données d''entrée'!$C$310)","v":0},{"$f":"IF('1 Données d''entrée'!$C$314=\"(=NON)\",IF(U992<'1 Données d''entrée'!$C$312+1,0,T1023*'1 Données d''entrée'!$C$310),T1023*'1 Données d''entrée'!$C$310)","v":0},{"$f":"IF('1 Données d''entrée'!$C$314=\"(=NON)\",IF(V992<'1 Données d''entrée'!$C$312+1,0,U1023*'1 Données d''entrée'!$C$310),U1023*'1 Données d''entrée'!$C$310)","v":0}]
["Paiements d'intérêt avec des intérêts composés en cas d'absence des paiements dans la période de grâce",0,0,{"$f":"IF(D992='1 Données d''entrée'!$C$312+1,IF('1 Données d''entrée'!$C$314=\"(=NON)\",($B1023*'1 Données d''entrée'!$C$310)*((('1 Données d''entrée'!$C$310+1)^'1 Données d''entrée'!$C$312-1)/('1 Données d''entrée'!$C$310))*(1+'1 Données d''entrée'!$C$310),0),0)","v":0},{"$f":"IF(E992='1 Données d''entrée'!$C$312+1,IF('1 Données d''entrée'!$C$314=\"(=NON)\",($B1023*'1 Données d''entrée'!$C$310)*((('1 Données d''entrée'!$C$310+1)^'1 Données d''entrée'!$C$312-1)/('1 Données d''entrée'!$C$310))*(1+'1 Données d''entrée'!$C$310),0),0)","v":0},{"$f":"IF(F992='1 Données d''entrée'!$C$312+1,IF('1 Données d''entrée'!$C$314=\"(=NON)\",($B1023*'1 Données d''entrée'!$C$310)*((('1 Données d''entrée'!$C$310+1)^'1 Données d''entrée'!$C$312-1)/('1 Données d''entrée'!$C$310))*(1+'1 Données d''entrée'!$C$310),0),0)","v":0},{"$f":"IF(G992='1 Données d''entrée'!$C$312+1,IF('1 Données d''entrée'!$C$314=\"(=NON)\",($B1023*'1 Données d''entrée'!$C$310)*((('1 Données d''entrée'!$C$310+1)^'1 Données d''entrée'!$C$312-1)/('1 Données d''entrée'!$C$310))*(1+'1 Données d''entrée'!$C$310),0),0)","v":0},{"$f":"IF(H992='1 Données d''entrée'!$C$312+1,IF('1 Données d''entrée'!$C$314=\"(=NON)\",($B1023*'1 Données d''entrée'!$C$310)*((('1 Données d''entrée'!$C$310+1)^'1 Données d''entrée'!$C$312-1)/('1 Données d''entrée'!$C$310))*(1+'1 Données d''entrée'!$C$310),0),0)","v":0},{"$f":"IF(I992='1 Données d''entrée'!$C$312+1,IF('1 Données d''entrée'!$C$314=\"(=NON)\",($B1023*'1 Données d''entrée'!$C$310)*((('1 Données d''entrée'!$C$310+1)^'1 Données d''entrée'!$C$312-1)/('1 Données d''entrée'!$C$310))*(1+'1 Données d''entrée'!$C$310),0),0)","v":0},{"$f":"IF(J992='1 Données d''entrée'!$C$312+1,IF('1 Données d''entrée'!$C$314=\"(=NON)\",($B1023*'1 Données d''entrée'!$C$310)*((('1 Données d''entrée'!$C$310+1)^'1 Données d''entrée'!$C$312-1)/('1 Données d''entrée'!$C$310))*(1+'1 Données d''entrée'!$C$310),0),0)","v":0},{"$f":"IF(K992='1 Données d''entrée'!$C$312+1,IF('1 Données d''entrée'!$C$314=\"(=NON)\",($B1023*'1 Données d''entrée'!$C$310)*((('1 Données d''entrée'!$C$310+1)^'1 Données d''entrée'!$C$312-1)/('1 Données d''entrée'!$C$310))*(1+'1 Données d''entrée'!$C$310),0),0)","v":0},{"$f":"IF(L992='1 Données d''entrée'!$C$312+1,IF('1 Données d''entrée'!$C$314=\"(=NON)\",($B1023*'1 Données d''entrée'!$C$310)*((('1 Données d''entrée'!$C$310+1)^'1 Données d''entrée'!$C$312-1)/('1 Données d''entrée'!$C$310))*(1+'1 Données d''entrée'!$C$310),0),0)","v":0},{"$f":"IF(M992='1 Données d''entrée'!$C$312+1,IF('1 Données d''entrée'!$C$314=\"(=NON)\",($B1023*'1 Données d''entrée'!$C$310)*((('1 Données d''entrée'!$C$310+1)^'1 Données d''entrée'!$C$312-1)/('1 Données d''entrée'!$C$310))*(1+'1 Données d''entrée'!$C$310),0),0)","v":0},{"$f":"IF(N992='1 Données d''entrée'!$C$312+1,IF('1 Données d''entrée'!$C$314=\"(=NON)\",($B1023*'1 Données d''entrée'!$C$310)*((('1 Données d''entrée'!$C$310+1)^'1 Données d''entrée'!$C$312-1)/('1 Données d''entrée'!$C$310))*(1+'1 Données d''entrée'!$C$310),0),0)","v":0},{"$f":"IF(O992='1 Données d''entrée'!$C$312+1,IF('1 Données d''entrée'!$C$314=\"(=NON)\",($B1023*'1 Données d''entrée'!$C$310)*((('1 Données d''entrée'!$C$310+1)^'1 Données d''entrée'!$C$312-1)/('1 Données d''entrée'!$C$310))*(1+'1 Données d''entrée'!$C$310),0),0)","v":0},{"$f":"IF(P992='1 Données d''entrée'!$C$312+1,IF('1 Données d''entrée'!$C$314=\"(=NON)\",($B1023*'1 Données d''entrée'!$C$310)*((('1 Données d''entrée'!$C$310+1)^'1 Données d''entrée'!$C$312-1)/('1 Données d''entrée'!$C$310))*(1+'1 Données d''entrée'!$C$310),0),0)","v":0},{"$f":"IF(Q992='1 Données d''entrée'!$C$312+1,IF('1 Données d''entrée'!$C$314=\"(=NON)\",($B1023*'1 Données d''entrée'!$C$310)*((('1 Données d''entrée'!$C$310+1)^'1 Données d''entrée'!$C$312-1)/('1 Données d''entrée'!$C$310))*(1+'1 Données d''entrée'!$C$310),0),0)","v":0},{"$f":"IF(R992='1 Données d''entrée'!$C$312+1,IF('1 Données d''entrée'!$C$314=\"(=NON)\",($B1023*'1 Données d''entrée'!$C$310)*((('1 Données d''entrée'!$C$310+1)^'1 Données d''entrée'!$C$312-1)/('1 Données d''entrée'!$C$310))*(1+'1 Données d''entrée'!$C$310),0),0)","v":0},{"$f":"IF(S992='1 Données d''entrée'!$C$312+1,IF('1 Données d''entrée'!$C$314=\"(=NON)\",($B1023*'1 Données d''entrée'!$C$310)*((('1 Données d''entrée'!$C$310+1)^'1 Données d''entrée'!$C$312-1)/('1 Données d''entrée'!$C$310))*(1+'1 Données d''entrée'!$C$310),0),0)","v":0},{"$f":"IF(T992='1 Données d''entrée'!$C$312+1,IF('1 Données d''entrée'!$C$314=\"(=NON)\",($B1023*'1 Données d''entrée'!$C$310)*((('1 Données d''entrée'!$C$310+1)^'1 Données d''entrée'!$C$312-1)/('1 Données d''entrée'!$C$310))*(1+'1 Données d''entrée'!$C$310),0),0)","v":0},{"$f":"IF(U992='1 Données d''entrée'!$C$312+1,IF('1 Données d''entrée'!$C$314=\"(=NON)\",($B1023*'1 Données d''entrée'!$C$310)*((('1 Données d''entrée'!$C$310+1)^'1 Données d''entrée'!$C$312-1)/('1 Données d''entrée'!$C$310))*(1+'1 Données d''entrée'!$C$310),0),0)","v":0},{"$f":"IF(V992='1 Données d''entrée'!$C$312+1,IF('1 Données d''entrée'!$C$314=\"(=NON)\",($B1023*'1 Données d''entrée'!$C$310)*((('1 Données d''entrée'!$C$310+1)^'1 Données d''entrée'!$C$312-1)/('1 Données d''entrée'!$C$310))*(1+'1 Données d''entrée'!$C$310),0),0)","v":0}]
["Fonds d'autre donneurs / investisseurs - Prêt; Option 3: Remboursement vers l'annuité constante",{"$f":"'1 Données d''entrée'!$B$321","v":0},"% de prêt total"]
["Réception ",{"$f":"B1027*'1 Données d''entrée'!$B$306+'1 Données d''entrée'!$B$306*'1 Données d''entrée'!$C$316","v":0},0,0,0,0,0,0,0,0,0,0,0,0,0,0,0,0,0,0,0,0]
["Remboursement vers l'annuité constante",{"$f":"IF(B992<'1 Données d''entrée'!$C$312+1,0,IF(B992<'1 Données d''entrée'!$C$311+'1 Données d''entrée'!$C$312+1,$B1028*('1 Données d''entrée'!$C$310*(1+'1 Données d''entrée'!$C$310)^'1 Données d''entrée'!$C$311)/((1+'1 Données d''entrée'!$C$310)^'1 Données d''entrée'!$C$311-1),0))","v":0},{"$f":"IF(C992<'1 Données d''entrée'!$C$312+1,0,IF(C992<'1 Données d''entrée'!$C$311+'1 Données d''entrée'!$C$312+1,$B1028*('1 Données d''entrée'!$C$310*(1+'1 Données d''entrée'!$C$310)^'1 Données d''entrée'!$C$311)/((1+'1 Données d''entrée'!$C$310)^'1 Données d''entrée'!$C$311-1),0))","v":0},{"$f":"IF(D992<'1 Données d''entrée'!$C$312+1,0,IF(D992<'1 Données d''entrée'!$C$311+'1 Données d''entrée'!$C$312+1,$B1028*('1 Données d''entrée'!$C$310*(1+'1 Données d''entrée'!$C$310)^'1 Données d''entrée'!$C$311)/((1+'1 Données d''entrée'!$C$310)^'1 Données d''entrée'!$C$311-1),0))","v":0},{"$f":"IF(E992<'1 Données d''entrée'!$C$312+1,0,IF(E992<'1 Données d''entrée'!$C$311+'1 Données d''entrée'!$C$312+1,$B1028*('1 Données d''entrée'!$C$310*(1+'1 Données d''entrée'!$C$310)^'1 Données d''entrée'!$C$311)/((1+'1 Données d''entrée'!$C$310)^'1 Données d''entrée'!$C$311-1),0))","v":0},{"$f":"IF(F992<'1 Données d''entrée'!$C$312+1,0,IF(F992<'1 Données d''entrée'!$C$311+'1 Données d''entrée'!$C$312+1,$B1028*('1 Données d''entrée'!$C$310*(1+'1 Données d''entrée'!$C$310)^'1 Données d''entrée'!$C$311)/((1+'1 Données d''entrée'!$C$310)^'1 Données d''entrée'!$C$311-1),0))","v":0},{"$f":"IF(G992<'1 Données d''entrée'!$C$312+1,0,IF(G992<'1 Données d''entrée'!$C$311+'1 Données d''entrée'!$C$312+1,$B1028*('1 Données d''entrée'!$C$310*(1+'1 Données d''entrée'!$C$310)^'1 Données d''entrée'!$C$311)/((1+'1 Données d''entrée'!$C$310)^'1 Données d''entrée'!$C$311-1),0))","v":0},{"$f":"IF(H992<'1 Données d''entrée'!$C$312+1,0,IF(H992<'1 Données d''entrée'!$C$311+'1 Données d''entrée'!$C$312+1,$B1028*('1 Données d''entrée'!$C$310*(1+'1 Données d''entrée'!$C$310)^'1 Données d''entrée'!$C$311)/((1+'1 Données d''entrée'!$C$310)^'1 Données d''entrée'!$C$311-1),0))","v":0},{"$f":"IF(I992<'1 Données d''entrée'!$C$312+1,0,IF(I992<'1 Données d''entrée'!$C$311+'1 Données d''entrée'!$C$312+1,$B1028*('1 Données d''entrée'!$C$310*(1+'1 Données d''entrée'!$C$310)^'1 Données d''entrée'!$C$311)/((1+'1 Données d''entrée'!$C$310)^'1 Données d''entrée'!$C$311-1),0))","v":0},{"$f":"IF(J992<'1 Données d''entrée'!$C$312+1,0,IF(J992<'1 Données d''entrée'!$C$311+'1 Données d''entrée'!$C$312+1,$B1028*('1 Données d''entrée'!$C$310*(1+'1 Données d''entrée'!$C$310)^'1 Données d''entrée'!$C$311)/((1+'1 Données d''entrée'!$C$310)^'1 Données d''entrée'!$C$311-1),0))","v":0},{"$f":"IF(K992<'1 Données d''entrée'!$C$312+1,0,IF(K992<'1 Données d''entrée'!$C$311+'1 Données d''entrée'!$C$312+1,$B1028*('1 Données d''entrée'!$C$310*(1+'1 Données d''entrée'!$C$310)^'1 Données d''entrée'!$C$311)/((1+'1 Données d''entrée'!$C$310)^'1 Données d''entrée'!$C$311-1),0))","v":0},{"$f":"IF(L992<'1 Données d''entrée'!$C$312+1,0,IF(L992<'1 Données d''entrée'!$C$311+'1 Données d''entrée'!$C$312+1,$B1028*('1 Données d''entrée'!$C$310*(1+'1 Données d''entrée'!$C$310)^'1 Données d''entrée'!$C$311)/((1+'1 Données d''entrée'!$C$310)^'1 Données d''entrée'!$C$311-1),0))","v":0},{"$f":"IF(M992<'1 Données d''entrée'!$C$312+1,0,IF(M992<'1 Données d''entrée'!$C$311+'1 Données d''entrée'!$C$312+1,$B1028*('1 Données d''entrée'!$C$310*(1+'1 Données d''entrée'!$C$310)^'1 Données d''entrée'!$C$311)/((1+'1 Données d''entrée'!$C$310)^'1 Données d''entrée'!$C$311-1),0))","v":0},{"$f":"IF(N992<'1 Données d''entrée'!$C$312+1,0,IF(N992<'1 Données d''entrée'!$C$311+'1 Données d''entrée'!$C$312+1,$B1028*('1 Données d''entrée'!$C$310*(1+'1 Données d''entrée'!$C$310)^'1 Données d''entrée'!$C$311)/((1+'1 Données d''entrée'!$C$310)^'1 Données d''entrée'!$C$311-1),0))","v":0},{"$f":"IF(O992<'1 Données d''entrée'!$C$312+1,0,IF(O992<'1 Données d''entrée'!$C$311+'1 Données d''entrée'!$C$312+1,$B1028*('1 Données d''entrée'!$C$310*(1+'1 Données d''entrée'!$C$310)^'1 Données d''entrée'!$C$311)/((1+'1 Données d''entrée'!$C$310)^'1 Données d''entrée'!$C$311-1),0))","v":0},{"$f":"IF(P992<'1 Données d''entrée'!$C$312+1,0,IF(P992<'1 Données d''entrée'!$C$311+'1 Données d''entrée'!$C$312+1,$B1028*('1 Données d''entrée'!$C$310*(1+'1 Données d''entrée'!$C$310)^'1 Données d''entrée'!$C$311)/((1+'1 Données d''entrée'!$C$310)^'1 Données d''entrée'!$C$311-1),0))","v":0},{"$f":"IF(Q992<'1 Données d''entrée'!$C$312+1,0,IF(Q992<'1 Données d''entrée'!$C$311+'1 Données d''entrée'!$C$312+1,$B1028*('1 Données d''entrée'!$C$310*(1+'1 Données d''entrée'!$C$310)^'1 Données d''entrée'!$C$311)/((1+'1 Données d''entrée'!$C$310)^'1 Données d''entrée'!$C$311-1),0))","v":0},{"$f":"IF(R992<'1 Données d''entrée'!$C$312+1,0,IF(R992<'1 Données d''entrée'!$C$311+'1 Données d''entrée'!$C$312+1,$B1028*('1 Données d''entrée'!$C$310*(1+'1 Données d''entrée'!$C$310)^'1 Données d''entrée'!$C$311)/((1+'1 Données d''entrée'!$C$310)^'1 Données d''entrée'!$C$311-1),0))","v":0},{"$f":"IF(S992<'1 Données d''entrée'!$C$312+1,0,IF(S992<'1 Données d''entrée'!$C$311+'1 Données d''entrée'!$C$312+1,$B1028*('1 Données d''entrée'!$C$310*(1+'1 Données d''entrée'!$C$310)^'1 Données d''entrée'!$C$311)/((1+'1 Données d''entrée'!$C$310)^'1 Données d''entrée'!$C$311-1),0))","v":0},{"$f":"IF(T992<'1 Données d''entrée'!$C$312+1,0,IF(T992<'1 Données d''entrée'!$C$311+'1 Données d''entrée'!$C$312+1,$B1028*('1 Données d''entrée'!$C$310*(1+'1 Données d''entrée'!$C$310)^'1 Données d''entrée'!$C$311)/((1+'1 Données d''entrée'!$C$310)^'1 Données d''entrée'!$C$311-1),0))","v":0},{"$f":"IF(U992<'1 Données d''entrée'!$C$312+1,0,IF(U992<'1 Données d''entrée'!$C$311+'1 Données d''entrée'!$C$312+1,$B1028*('1 Données d''entrée'!$C$310*(1+'1 Données d''entrée'!$C$310)^'1 Données d''entrée'!$C$311)/((1+'1 Données d''entrée'!$C$310)^'1 Données d''entrée'!$C$311-1),0))","v":0},{"$f":"IF(V992<'1 Données d''entrée'!$C$312+1,0,IF(V992<'1 Données d''entrée'!$C$311+'1 Données d''entrée'!$C$312+1,$B1028*('1 Données d''entrée'!$C$310*(1+'1 Données d''entrée'!$C$310)^'1 Données d''entrée'!$C$311)/((1+'1 Données d''entrée'!$C$310)^'1 Données d''entrée'!$C$311-1),0))","v":0}]
["Paiement d'intérêt décroissant inclu dans l'annuité constante",0,{"$f":"IF('1 Données d''entrée'!$C$314=\"(=NON)\",IF(C1029>0,$B1028*((('1 Données d''entrée'!$C$310+1)^'1 Données d''entrée'!$C$311)-(1+'1 Données d''entrée'!$C$310)^('6 Financement'!C$54-1-'1 Données d''entrée'!$C$312))/((1+'1 Données d''entrée'!$C$310)^'1 Données d''entrée'!$C$311-1)*'1 Données d''entrée'!$C$310,0),IF(C992<'1 Données d''entrée'!$C$312+1,'1 Données d''entrée'!$C$310*'6 Financement'!$B1028,IF(C1029>0,$B$90*((('1 Données d''entrée'!$C$310+1)^'1 Données d''entrée'!$C$311)-(1+'1 Données d''entrée'!$C$310)^('6 Financement'!C$54-1-'1 Données d''entrée'!$C$312))/((1+'1 Données d''entrée'!$C$310)^'1 Données d''entrée'!$C$311-1)*'1 Données d''entrée'!$C$310,0)))","v":0},{"$f":"IF('1 Données d''entrée'!$C$314=\"(=NON)\",IF(D1029>0,$B1028*((('1 Données d''entrée'!$C$310+1)^'1 Données d''entrée'!$C$311)-(1+'1 Données d''entrée'!$C$310)^('6 Financement'!D$54-1-'1 Données d''entrée'!$C$312))/((1+'1 Données d''entrée'!$C$310)^'1 Données d''entrée'!$C$311-1)*'1 Données d''entrée'!$C$310,0),IF(D992<'1 Données d''entrée'!$C$312+1,'1 Données d''entrée'!$C$310*'6 Financement'!$B1028,IF(D1029>0,$B$90*((('1 Données d''entrée'!$C$310+1)^'1 Données d''entrée'!$C$311)-(1+'1 Données d''entrée'!$C$310)^('6 Financement'!D$54-1-'1 Données d''entrée'!$C$312))/((1+'1 Données d''entrée'!$C$310)^'1 Données d''entrée'!$C$311-1)*'1 Données d''entrée'!$C$310,0)))","v":0},{"$f":"IF('1 Données d''entrée'!$C$314=\"(=NON)\",IF(E1029>0,$B1028*((('1 Données d''entrée'!$C$310+1)^'1 Données d''entrée'!$C$311)-(1+'1 Données d''entrée'!$C$310)^('6 Financement'!E$54-1-'1 Données d''entrée'!$C$312))/((1+'1 Données d''entrée'!$C$310)^'1 Données d''entrée'!$C$311-1)*'1 Données d''entrée'!$C$310,0),IF(E992<'1 Données d''entrée'!$C$312+1,'1 Données d''entrée'!$C$310*'6 Financement'!$B1028,IF(E1029>0,$B$90*((('1 Données d''entrée'!$C$310+1)^'1 Données d''entrée'!$C$311)-(1+'1 Données d''entrée'!$C$310)^('6 Financement'!E$54-1-'1 Données d''entrée'!$C$312))/((1+'1 Données d''entrée'!$C$310)^'1 Données d''entrée'!$C$311-1)*'1 Données d''entrée'!$C$310,0)))","v":0},{"$f":"IF('1 Données d''entrée'!$C$314=\"(=NON)\",IF(F1029>0,$B1028*((('1 Données d''entrée'!$C$310+1)^'1 Données d''entrée'!$C$311)-(1+'1 Données d''entrée'!$C$310)^('6 Financement'!F$54-1-'1 Données d''entrée'!$C$312))/((1+'1 Données d''entrée'!$C$310)^'1 Données d''entrée'!$C$311-1)*'1 Données d''entrée'!$C$310,0),IF(F992<'1 Données d''entrée'!$C$312+1,'1 Données d''entrée'!$C$310*'6 Financement'!$B1028,IF(F1029>0,$B$90*((('1 Données d''entrée'!$C$310+1)^'1 Données d''entrée'!$C$311)-(1+'1 Données d''entrée'!$C$310)^('6 Financement'!F$54-1-'1 Données d''entrée'!$C$312))/((1+'1 Données d''entrée'!$C$310)^'1 Données d''entrée'!$C$311-1)*'1 Données d''entrée'!$C$310,0)))","v":0},{"$f":"IF('1 Données d''entrée'!$C$314=\"(=NON)\",IF(G1029>0,$B1028*((('1 Données d''entrée'!$C$310+1)^'1 Données d''entrée'!$C$311)-(1+'1 Données d''entrée'!$C$310)^('6 Financement'!G$54-1-'1 Données d''entrée'!$C$312))/((1+'1 Données d''entrée'!$C$310)^'1 Données d''entrée'!$C$311-1)*'1 Données d''entrée'!$C$310,0),IF(G992<'1 Données d''entrée'!$C$312+1,'1 Données d''entrée'!$C$310*'6 Financement'!$B1028,IF(G1029>0,$B$90*((('1 Données d''entrée'!$C$310+1)^'1 Données d''entrée'!$C$311)-(1+'1 Données d''entrée'!$C$310)^('6 Financement'!G$54-1-'1 Données d''entrée'!$C$312))/((1+'1 Données d''entrée'!$C$310)^'1 Données d''entrée'!$C$311-1)*'1 Données d''entrée'!$C$310,0)))","v":0},{"$f":"IF('1 Données d''entrée'!$C$314=\"(=NON)\",IF(H1029>0,$B1028*((('1 Données d''entrée'!$C$310+1)^'1 Données d''entrée'!$C$311)-(1+'1 Données d''entrée'!$C$310)^('6 Financement'!H$54-1-'1 Données d''entrée'!$C$312))/((1+'1 Données d''entrée'!$C$310)^'1 Données d''entrée'!$C$311-1)*'1 Données d''entrée'!$C$310,0),IF(H992<'1 Données d''entrée'!$C$312+1,'1 Données d''entrée'!$C$310*'6 Financement'!$B1028,IF(H1029>0,$B$90*((('1 Données d''entrée'!$C$310+1)^'1 Données d''entrée'!$C$311)-(1+'1 Données d''entrée'!$C$310)^('6 Financement'!H$54-1-'1 Données d''entrée'!$C$312))/((1+'1 Données d''entrée'!$C$310)^'1 Données d''entrée'!$C$311-1)*'1 Données d''entrée'!$C$310,0)))","v":0},{"$f":"IF('1 Données d''entrée'!$C$314=\"(=NON)\",IF(I1029>0,$B1028*((('1 Données d''entrée'!$C$310+1)^'1 Données d''entrée'!$C$311)-(1+'1 Données d''entrée'!$C$310)^('6 Financement'!I$54-1-'1 Données d''entrée'!$C$312))/((1+'1 Données d''entrée'!$C$310)^'1 Données d''entrée'!$C$311-1)*'1 Données d''entrée'!$C$310,0),IF(I992<'1 Données d''entrée'!$C$312+1,'1 Données d''entrée'!$C$310*'6 Financement'!$B1028,IF(I1029>0,$B$90*((('1 Données d''entrée'!$C$310+1)^'1 Données d''entrée'!$C$311)-(1+'1 Données d''entrée'!$C$310)^('6 Financement'!I$54-1-'1 Données d''entrée'!$C$312))/((1+'1 Données d''entrée'!$C$310)^'1 Données d''entrée'!$C$311-1)*'1 Données d''entrée'!$C$310,0)))","v":0},{"$f":"IF('1 Données d''entrée'!$C$314=\"(=NON)\",IF(J1029>0,$B1028*((('1 Données d''entrée'!$C$310+1)^'1 Données d''entrée'!$C$311)-(1+'1 Données d''entrée'!$C$310)^('6 Financement'!J$54-1-'1 Données d''entrée'!$C$312))/((1+'1 Données d''entrée'!$C$310)^'1 Données d''entrée'!$C$311-1)*'1 Données d''entrée'!$C$310,0),IF(J992<'1 Données d''entrée'!$C$312+1,'1 Données d''entrée'!$C$310*'6 Financement'!$B1028,IF(J1029>0,$B$90*((('1 Données d''entrée'!$C$310+1)^'1 Données d''entrée'!$C$311)-(1+'1 Données d''entrée'!$C$310)^('6 Financement'!J$54-1-'1 Données d''entrée'!$C$312))/((1+'1 Données d''entrée'!$C$310)^'1 Données d''entrée'!$C$311-1)*'1 Données d''entrée'!$C$310,0)))","v":0},{"$f":"IF('1 Données d''entrée'!$C$314=\"(=NON)\",IF(K1029>0,$B1028*((('1 Données d''entrée'!$C$310+1)^'1 Données d''entrée'!$C$311)-(1+'1 Données d''entrée'!$C$310)^('6 Financement'!K$54-1-'1 Données d''entrée'!$C$312))/((1+'1 Données d''entrée'!$C$310)^'1 Données d''entrée'!$C$311-1)*'1 Données d''entrée'!$C$310,0),IF(K992<'1 Données d''entrée'!$C$312+1,'1 Données d''entrée'!$C$310*'6 Financement'!$B1028,IF(K1029>0,$B$90*((('1 Données d''entrée'!$C$310+1)^'1 Données d''entrée'!$C$311)-(1+'1 Données d''entrée'!$C$310)^('6 Financement'!K$54-1-'1 Données d''entrée'!$C$312))/((1+'1 Données d''entrée'!$C$310)^'1 Données d''entrée'!$C$311-1)*'1 Données d''entrée'!$C$310,0)))","v":0},{"$f":"IF('1 Données d''entrée'!$C$314=\"(=NON)\",IF(L1029>0,$B1028*((('1 Données d''entrée'!$C$310+1)^'1 Données d''entrée'!$C$311)-(1+'1 Données d''entrée'!$C$310)^('6 Financement'!L$54-1-'1 Données d''entrée'!$C$312))/((1+'1 Données d''entrée'!$C$310)^'1 Données d''entrée'!$C$311-1)*'1 Données d''entrée'!$C$310,0),IF(L992<'1 Données d''entrée'!$C$312+1,'1 Données d''entrée'!$C$310*'6 Financement'!$B1028,IF(L1029>0,$B$90*((('1 Données d''entrée'!$C$310+1)^'1 Données d''entrée'!$C$311)-(1+'1 Données d''entrée'!$C$310)^('6 Financement'!L$54-1-'1 Données d''entrée'!$C$312))/((1+'1 Données d''entrée'!$C$310)^'1 Données d''entrée'!$C$311-1)*'1 Données d''entrée'!$C$310,0)))","v":0},{"$f":"IF('1 Données d''entrée'!$C$314=\"(=NON)\",IF(M1029>0,$B1028*((('1 Données d''entrée'!$C$310+1)^'1 Données d''entrée'!$C$311)-(1+'1 Données d''entrée'!$C$310)^('6 Financement'!M$54-1-'1 Données d''entrée'!$C$312))/((1+'1 Données d''entrée'!$C$310)^'1 Données d''entrée'!$C$311-1)*'1 Données d''entrée'!$C$310,0),IF(M992<'1 Données d''entrée'!$C$312+1,'1 Données d''entrée'!$C$310*'6 Financement'!$B1028,IF(M1029>0,$B$90*((('1 Données d''entrée'!$C$310+1)^'1 Données d''entrée'!$C$311)-(1+'1 Données d''entrée'!$C$310)^('6 Financement'!M$54-1-'1 Données d''entrée'!$C$312))/((1+'1 Données d''entrée'!$C$310)^'1 Données d''entrée'!$C$311-1)*'1 Données d''entrée'!$C$310,0)))","v":0},{"$f":"IF('1 Données d''entrée'!$C$314=\"(=NON)\",IF(N1029>0,$B1028*((('1 Données d''entrée'!$C$310+1)^'1 Données d''entrée'!$C$311)-(1+'1 Données d''entrée'!$C$310)^('6 Financement'!N$54-1-'1 Données d''entrée'!$C$312))/((1+'1 Données d''entrée'!$C$310)^'1 Données d''entrée'!$C$311-1)*'1 Données d''entrée'!$C$310,0),IF(N992<'1 Données d''entrée'!$C$312+1,'1 Données d''entrée'!$C$310*'6 Financement'!$B1028,IF(N1029>0,$B$90*((('1 Données d''entrée'!$C$310+1)^'1 Données d''entrée'!$C$311)-(1+'1 Données d''entrée'!$C$310)^('6 Financement'!N$54-1-'1 Données d''entrée'!$C$312))/((1+'1 Données d''entrée'!$C$310)^'1 Données d''entrée'!$C$311-1)*'1 Données d''entrée'!$C$310,0)))","v":0},{"$f":"IF('1 Données d''entrée'!$C$314=\"(=NON)\",IF(O1029>0,$B1028*((('1 Données d''entrée'!$C$310+1)^'1 Données d''entrée'!$C$311)-(1+'1 Données d''entrée'!$C$310)^('6 Financement'!O$54-1-'1 Données d''entrée'!$C$312))/((1+'1 Données d''entrée'!$C$310)^'1 Données d''entrée'!$C$311-1)*'1 Données d''entrée'!$C$310,0),IF(O992<'1 Données d''entrée'!$C$312+1,'1 Données d''entrée'!$C$310*'6 Financement'!$B1028,IF(O1029>0,$B$90*((('1 Données d''entrée'!$C$310+1)^'1 Données d''entrée'!$C$311)-(1+'1 Données d''entrée'!$C$310)^('6 Financement'!O$54-1-'1 Données d''entrée'!$C$312))/((1+'1 Données d''entrée'!$C$310)^'1 Données d''entrée'!$C$311-1)*'1 Données d''entrée'!$C$310,0)))","v":0},{"$f":"IF('1 Données d''entrée'!$C$314=\"(=NON)\",IF(P1029>0,$B1028*((('1 Données d''entrée'!$C$310+1)^'1 Données d''entrée'!$C$311)-(1+'1 Données d''entrée'!$C$310)^('6 Financement'!P$54-1-'1 Données d''entrée'!$C$312))/((1+'1 Données d''entrée'!$C$310)^'1 Données d''entrée'!$C$311-1)*'1 Données d''entrée'!$C$310,0),IF(P992<'1 Données d''entrée'!$C$312+1,'1 Données d''entrée'!$C$310*'6 Financement'!$B1028,IF(P1029>0,$B$90*((('1 Données d''entrée'!$C$310+1)^'1 Données d''entrée'!$C$311)-(1+'1 Données d''entrée'!$C$310)^('6 Financement'!P$54-1-'1 Données d''entrée'!$C$312))/((1+'1 Données d''entrée'!$C$310)^'1 Données d''entrée'!$C$311-1)*'1 Données d''entrée'!$C$310,0)))","v":0},{"$f":"IF('1 Données d''entrée'!$C$314=\"(=NON)\",IF(Q1029>0,$B1028*((('1 Données d''entrée'!$C$310+1)^'1 Données d''entrée'!$C$311)-(1+'1 Données d''entrée'!$C$310)^('6 Financement'!Q$54-1-'1 Données d''entrée'!$C$312))/((1+'1 Données d''entrée'!$C$310)^'1 Données d''entrée'!$C$311-1)*'1 Données d''entrée'!$C$310,0),IF(Q992<'1 Données d''entrée'!$C$312+1,'1 Données d''entrée'!$C$310*'6 Financement'!$B1028,IF(Q1029>0,$B$90*((('1 Données d''entrée'!$C$310+1)^'1 Données d''entrée'!$C$311)-(1+'1 Données d''entrée'!$C$310)^('6 Financement'!Q$54-1-'1 Données d''entrée'!$C$312))/((1+'1 Données d''entrée'!$C$310)^'1 Données d''entrée'!$C$311-1)*'1 Données d''entrée'!$C$310,0)))","v":0},{"$f":"IF('1 Données d''entrée'!$C$314=\"(=NON)\",IF(R1029>0,$B1028*((('1 Données d''entrée'!$C$310+1)^'1 Données d''entrée'!$C$311)-(1+'1 Données d''entrée'!$C$310)^('6 Financement'!R$54-1-'1 Données d''entrée'!$C$312))/((1+'1 Données d''entrée'!$C$310)^'1 Données d''entrée'!$C$311-1)*'1 Données d''entrée'!$C$310,0),IF(R992<'1 Données d''entrée'!$C$312+1,'1 Données d''entrée'!$C$310*'6 Financement'!$B1028,IF(R1029>0,$B$90*((('1 Données d''entrée'!$C$310+1)^'1 Données d''entrée'!$C$311)-(1+'1 Données d''entrée'!$C$310)^('6 Financement'!R$54-1-'1 Données d''entrée'!$C$312))/((1+'1 Données d''entrée'!$C$310)^'1 Données d''entrée'!$C$311-1)*'1 Données d''entrée'!$C$310,0)))","v":0},{"$f":"IF('1 Données d''entrée'!$C$314=\"(=NON)\",IF(S1029>0,$B1028*((('1 Données d''entrée'!$C$310+1)^'1 Données d''entrée'!$C$311)-(1+'1 Données d''entrée'!$C$310)^('6 Financement'!S$54-1-'1 Données d''entrée'!$C$312))/((1+'1 Données d''entrée'!$C$310)^'1 Données d''entrée'!$C$311-1)*'1 Données d''entrée'!$C$310,0),IF(S992<'1 Données d''entrée'!$C$312+1,'1 Données d''entrée'!$C$310*'6 Financement'!$B1028,IF(S1029>0,$B$90*((('1 Données d''entrée'!$C$310+1)^'1 Données d''entrée'!$C$311)-(1+'1 Données d''entrée'!$C$310)^('6 Financement'!S$54-1-'1 Données d''entrée'!$C$312))/((1+'1 Données d''entrée'!$C$310)^'1 Données d''entrée'!$C$311-1)*'1 Données d''entrée'!$C$310,0)))","v":0},{"$f":"IF('1 Données d''entrée'!$C$314=\"(=NON)\",IF(T1029>0,$B1028*((('1 Données d''entrée'!$C$310+1)^'1 Données d''entrée'!$C$311)-(1+'1 Données d''entrée'!$C$310)^('6 Financement'!T$54-1-'1 Données d''entrée'!$C$312))/((1+'1 Données d''entrée'!$C$310)^'1 Données d''entrée'!$C$311-1)*'1 Données d''entrée'!$C$310,0),IF(T992<'1 Données d''entrée'!$C$312+1,'1 Données d''entrée'!$C$310*'6 Financement'!$B1028,IF(T1029>0,$B$90*((('1 Données d''entrée'!$C$310+1)^'1 Données d''entrée'!$C$311)-(1+'1 Données d''entrée'!$C$310)^('6 Financement'!T$54-1-'1 Données d''entrée'!$C$312))/((1+'1 Données d''entrée'!$C$310)^'1 Données d''entrée'!$C$311-1)*'1 Données d''entrée'!$C$310,0)))","v":0},{"$f":"IF('1 Données d''entrée'!$C$314=\"(=NON)\",IF(U1029>0,$B1028*((('1 Données d''entrée'!$C$310+1)^'1 Données d''entrée'!$C$311)-(1+'1 Données d''entrée'!$C$310)^('6 Financement'!U$54-1-'1 Données d''entrée'!$C$312))/((1+'1 Données d''entrée'!$C$310)^'1 Données d''entrée'!$C$311-1)*'1 Données d''entrée'!$C$310,0),IF(U992<'1 Données d''entrée'!$C$312+1,'1 Données d''entrée'!$C$310*'6 Financement'!$B1028,IF(U1029>0,$B$90*((('1 Données d''entrée'!$C$310+1)^'1 Données d''entrée'!$C$311)-(1+'1 Données d''entrée'!$C$310)^('6 Financement'!U$54-1-'1 Données d''entrée'!$C$312))/((1+'1 Données d''entrée'!$C$310)^'1 Données d''entrée'!$C$311-1)*'1 Données d''entrée'!$C$310,0)))","v":0},{"$f":"IF('1 Données d''entrée'!$C$314=\"(=NON)\",IF(V1029>0,$B1028*((('1 Données d''entrée'!$C$310+1)^'1 Données d''entrée'!$C$311)-(1+'1 Données d''entrée'!$C$310)^('6 Financement'!V$54-1-'1 Données d''entrée'!$C$312))/((1+'1 Données d''entrée'!$C$310)^'1 Données d''entrée'!$C$311-1)*'1 Données d''entrée'!$C$310,0),IF(V992<'1 Données d''entrée'!$C$312+1,'1 Données d''entrée'!$C$310*'6 Financement'!$B1028,IF(V1029>0,$B$90*((('1 Données d''entrée'!$C$310+1)^'1 Données d''entrée'!$C$311)-(1+'1 Données d''entrée'!$C$310)^('6 Financement'!V$54-1-'1 Données d''entrée'!$C$312))/((1+'1 Données d''entrée'!$C$310)^'1 Données d''entrée'!$C$311-1)*'1 Données d''entrée'!$C$310,0)))","v":0}]
["Paiements d'intérêt avec des intérêts composés en cas d'absence des paiements dans la période de grâce",0,0,{"$f":"IF(D992='1 Données d''entrée'!$C$312+1,IF('1 Données d''entrée'!$C$314=\"(=NON)\",($B1028*'1 Données d''entrée'!$C$310)*((('1 Données d''entrée'!$C$310+1)^'1 Données d''entrée'!$C$312-1)/('1 Données d''entrée'!$C$310))*(1+'1 Données d''entrée'!$C$310),0),0)","v":0},{"$f":"IF(E992='1 Données d''entrée'!$C$312+1,IF('1 Données d''entrée'!$C$314=\"(=NON)\",($B1028*'1 Données d''entrée'!$C$310)*((('1 Données d''entrée'!$C$310+1)^'1 Données d''entrée'!$C$312-1)/('1 Données d''entrée'!$C$310))*(1+'1 Données d''entrée'!$C$310),0),0)","v":0},{"$f":"IF(F992='1 Données d''entrée'!$C$312+1,IF('1 Données d''entrée'!$C$314=\"(=NON)\",($B1028*'1 Données d''entrée'!$C$310)*((('1 Données d''entrée'!$C$310+1)^'1 Données d''entrée'!$C$312-1)/('1 Données d''entrée'!$C$310))*(1+'1 Données d''entrée'!$C$310),0),0)","v":0},{"$f":"IF(G992='1 Données d''entrée'!$C$312+1,IF('1 Données d''entrée'!$C$314=\"(=NON)\",($B1028*'1 Données d''entrée'!$C$310)*((('1 Données d''entrée'!$C$310+1)^'1 Données d''entrée'!$C$312-1)/('1 Données d''entrée'!$C$310))*(1+'1 Données d''entrée'!$C$310),0),0)","v":0},{"$f":"IF(H992='1 Données d''entrée'!$C$312+1,IF('1 Données d''entrée'!$C$314=\"(=NON)\",($B1028*'1 Données d''entrée'!$C$310)*((('1 Données d''entrée'!$C$310+1)^'1 Données d''entrée'!$C$312-1)/('1 Données d''entrée'!$C$310))*(1+'1 Données d''entrée'!$C$310),0),0)","v":0},{"$f":"IF(I992='1 Données d''entrée'!$C$312+1,IF('1 Données d''entrée'!$C$314=\"(=NON)\",($B1028*'1 Données d''entrée'!$C$310)*((('1 Données d''entrée'!$C$310+1)^'1 Données d''entrée'!$C$312-1)/('1 Données d''entrée'!$C$310))*(1+'1 Données d''entrée'!$C$310),0),0)","v":0},{"$f":"IF(J992='1 Données d''entrée'!$C$312+1,IF('1 Données d''entrée'!$C$314=\"(=NON)\",($B1028*'1 Données d''entrée'!$C$310)*((('1 Données d''entrée'!$C$310+1)^'1 Données d''entrée'!$C$312-1)/('1 Données d''entrée'!$C$310))*(1+'1 Données d''entrée'!$C$310),0),0)","v":0},{"$f":"IF(K992='1 Données d''entrée'!$C$312+1,IF('1 Données d''entrée'!$C$314=\"(=NON)\",($B1028*'1 Données d''entrée'!$C$310)*((('1 Données d''entrée'!$C$310+1)^'1 Données d''entrée'!$C$312-1)/('1 Données d''entrée'!$C$310))*(1+'1 Données d''entrée'!$C$310),0),0)","v":0},{"$f":"IF(L992='1 Données d''entrée'!$C$312+1,IF('1 Données d''entrée'!$C$314=\"(=NON)\",($B1028*'1 Données d''entrée'!$C$310)*((('1 Données d''entrée'!$C$310+1)^'1 Données d''entrée'!$C$312-1)/('1 Données d''entrée'!$C$310))*(1+'1 Données d''entrée'!$C$310),0),0)","v":0},{"$f":"IF(M992='1 Données d''entrée'!$C$312+1,IF('1 Données d''entrée'!$C$314=\"(=NON)\",($B1028*'1 Données d''entrée'!$C$310)*((('1 Données d''entrée'!$C$310+1)^'1 Données d''entrée'!$C$312-1)/('1 Données d''entrée'!$C$310))*(1+'1 Données d''entrée'!$C$310),0),0)","v":0},{"$f":"IF(N992='1 Données d''entrée'!$C$312+1,IF('1 Données d''entrée'!$C$314=\"(=NON)\",($B1028*'1 Données d''entrée'!$C$310)*((('1 Données d''entrée'!$C$310+1)^'1 Données d''entrée'!$C$312-1)/('1 Données d''entrée'!$C$310))*(1+'1 Données d''entrée'!$C$310),0),0)","v":0},{"$f":"IF(O992='1 Données d''entrée'!$C$312+1,IF('1 Données d''entrée'!$C$314=\"(=NON)\",($B1028*'1 Données d''entrée'!$C$310)*((('1 Données d''entrée'!$C$310+1)^'1 Données d''entrée'!$C$312-1)/('1 Données d''entrée'!$C$310))*(1+'1 Données d''entrée'!$C$310),0),0)","v":0},{"$f":"IF(P992='1 Données d''entrée'!$C$312+1,IF('1 Données d''entrée'!$C$314=\"(=NON)\",($B1028*'1 Données d''entrée'!$C$310)*((('1 Données d''entrée'!$C$310+1)^'1 Données d''entrée'!$C$312-1)/('1 Données d''entrée'!$C$310))*(1+'1 Données d''entrée'!$C$310),0),0)","v":0},{"$f":"IF(Q992='1 Données d''entrée'!$C$312+1,IF('1 Données d''entrée'!$C$314=\"(=NON)\",($B1028*'1 Données d''entrée'!$C$310)*((('1 Données d''entrée'!$C$310+1)^'1 Données d''entrée'!$C$312-1)/('1 Données d''entrée'!$C$310))*(1+'1 Données d''entrée'!$C$310),0),0)","v":0},{"$f":"IF(R992='1 Données d''entrée'!$C$312+1,IF('1 Données d''entrée'!$C$314=\"(=NON)\",($B1028*'1 Données d''entrée'!$C$310)*((('1 Données d''entrée'!$C$310+1)^'1 Données d''entrée'!$C$312-1)/('1 Données d''entrée'!$C$310))*(1+'1 Données d''entrée'!$C$310),0),0)","v":0},{"$f":"IF(S992='1 Données d''entrée'!$C$312+1,IF('1 Données d''entrée'!$C$314=\"(=NON)\",($B1028*'1 Données d''entrée'!$C$310)*((('1 Données d''entrée'!$C$310+1)^'1 Données d''entrée'!$C$312-1)/('1 Données d''entrée'!$C$310))*(1+'1 Données d''entrée'!$C$310),0),0)","v":0},{"$f":"IF(T992='1 Données d''entrée'!$C$312+1,IF('1 Données d''entrée'!$C$314=\"(=NON)\",($B1028*'1 Données d''entrée'!$C$310)*((('1 Données d''entrée'!$C$310+1)^'1 Données d''entrée'!$C$312-1)/('1 Données d''entrée'!$C$310))*(1+'1 Données d''entrée'!$C$310),0),0)","v":0},{"$f":"IF(U992='1 Données d''entrée'!$C$312+1,IF('1 Données d''entrée'!$C$314=\"(=NON)\",($B1028*'1 Données d''entrée'!$C$310)*((('1 Données d''entrée'!$C$310+1)^'1 Données d''entrée'!$C$312-1)/('1 Données d''entrée'!$C$310))*(1+'1 Données d''entrée'!$C$310),0),0)","v":0},{"$f":"IF(V992='1 Données d''entrée'!$C$312+1,IF('1 Données d''entrée'!$C$314=\"(=NON)\",($B1028*'1 Données d''entrée'!$C$310)*((('1 Données d''entrée'!$C$310+1)^'1 Données d''entrée'!$C$312-1)/('1 Données d''entrée'!$C$310))*(1+'1 Données d''entrée'!$C$310),0),0)","v":0}]
[]
["Solde du compte intermédiaire"]
["Solde du comte (par période)",{"$f":"B994+B996+B998+IF($B1000>0,(B1001-B1002-B1003-B1004),0)+IF($B1005>0,(B1006-B1007-B1008-B1009),0)+IF($B1010>0,(B1011-B1012-IF(B1012>0,0,B1013)-B1014),0)+B1016+IF($B1017>0,(B1018-B1019-B1020-B1021),0)+IF($B1022>0,(B1023-B1024-B1025-B1026),0)+IF($B1027>0,B1028-IF(B1029>0,0,B1030)-B1031,0)","v":{"$error":"#DIV/0!"}},{"$f":"C994+C996+C998+IF($B1000>0,(-C1002-C1003-C1004),0)+IF($B1005>0,(-C1007-C1008-C1009),0)+C1016+IF($B1010>0,(-C1012-IF(C1012>0,0,C1013)-C1014),0)+IF($B1017>0,(-C1019-C1020-C1021),0)+IF($B1022>0,(-C1024-C1025-C1026),0)+IF($B1027>0,(-C1029-IF(C1029>0,0,C1030)-C1031),0)","v":{"$error":"#DIV/0!"}},{"$f":"D994+D996+D998+IF($B1000>0,(-D1002-D1003-D1004),0)+IF($B1005>0,(-D1007-D1008-D1009),0)+D1016+IF($B1010>0,(-D1012-IF(D1012>0,0,D1013)-D1014),0)+IF($B1017>0,(-D1019-D1020-D1021),0)+IF($B1022>0,(-D1024-D1025-D1026),0)+IF($B1027>0,(-D1029-IF(D1029>0,0,D1030)-D1031),0)","v":{"$error":"#DIV/0!"}},{"$error":"#DIV/0!"},{"$error":"#DIV/0!"},{"$error":"#DIV/0!"},{"$error":"#DIV/0!"},{"$error":"#DIV/0!"},{"$error":"#DIV/0!"},{"$error":"#DIV/0!"},{"$error":"#DIV/0!"},{"$error":"#DIV/0!"},{"$error":"#DIV/0!"},{"$error":"#DIV/0!"},{"$error":"#DIV/0!"},{"$error":"#DIV/0!"},{"$error":"#DIV/0!"},{"$error":"#DIV/0!"},{"$error":"#DIV/0!"},{"$error":"#DIV/0!"},{"$error":"#DIV/0!"}]
["Solde du compte (cumulé)",{"$f":"B1034","v":{"$error":"#DIV/0!"}},{"$f":"B1035+C1034","v":{"$error":"#DIV/0!"}},{"$error":"#DIV/0!"},{"$error":"#DIV/0!"},{"$error":"#DIV/0!"},{"$error":"#DIV/0!"},{"$error":"#DIV/0!"},{"$error":"#DIV/0!"},{"$error":"#DIV/0!"},{"$error":"#DIV/0!"},{"$error":"#DIV/0!"},{"$error":"#DIV/0!"},{"$error":"#DIV/0!"},{"$error":"#DIV/0!"},{"$error":"#DIV/0!"},{"$error":"#DIV/0!"},{"$error":"#DIV/0!"},{"$error":"#DIV/0!"},{"$error":"#DIV/0!"},{"$error":"#DIV/0!"},{"$error":"#DIV/0!"}]
[]
[]
[]
["Prêt bancaire additionnel"]
[null,"Période",1,2,3,4,5,6,7,8,9,10,11,12,13,14,15,16,17,18,19,20]
["Prêt bancaire additionnel - Option 1: Remboursement du principal fractionné",{"$f":"'1 Données d''entrée'!$B$342","v":0}]
["Prêt(s) nouveau(x)",null,{"$f":"IF(C1035<0,C1035*(-1)*$B1041+C1035*(-1)*$B1041*'1 Données d''entrée'!$C$338,0)","v":{"$error":"#DIV/0!"}},{"$f":"IF(D1035<0,D1035*(-1)*$B1041+D1035*(-1)*$B1041*'1 Données d''entrée'!$C$338,0)","v":{"$error":"#DIV/0!"}},{"$f":"IF(E1035<0,E1035*(-1)*$B1041+E1035*(-1)*$B1041*'1 Données d''entrée'!$C$338,0)","v":{"$error":"#DIV/0!"}},{"$f":"IF(F1035<0,F1035*(-1)*$B1041+F1035*(-1)*$B1041*'1 Données d''entrée'!$C$338,0)","v":{"$error":"#DIV/0!"}},{"$f":"IF(G1035<0,G1035*(-1)*$B1041+G1035*(-1)*$B1041*'1 Données d''entrée'!$C$338,0)","v":{"$error":"#DIV/0!"}},{"$f":"IF(H1035<0,H1035*(-1)*$B1041+H1035*(-1)*$B1041*'1 Données d''entrée'!$C$338,0)","v":{"$error":"#DIV/0!"}},{"$f":"IF(I1035<0,I1035*(-1)*$B1041+I1035*(-1)*$B1041*'1 Données d''entrée'!$C$338,0)","v":{"$error":"#DIV/0!"}},{"$f":"IF(J1035<0,J1035*(-1)*$B1041+J1035*(-1)*$B1041*'1 Données d''entrée'!$C$338,0)","v":{"$error":"#DIV/0!"}},{"$f":"IF(K1035<0,K1035*(-1)*$B1041+K1035*(-1)*$B1041*'1 Données d''entrée'!$C$338,0)","v":{"$error":"#DIV/0!"}},{"$f":"IF(L1035<0,L1035*(-1)*$B1041+L1035*(-1)*$B1041*'1 Données d''entrée'!$C$338,0)","v":{"$error":"#DIV/0!"}},{"$f":"IF(M1035<0,M1035*(-1)*$B1041+M1035*(-1)*$B1041*'1 Données d''entrée'!$C$338,0)","v":{"$error":"#DIV/0!"}},{"$f":"IF(N1035<0,N1035*(-1)*$B1041+N1035*(-1)*$B1041*'1 Données d''entrée'!$C$338,0)","v":{"$error":"#DIV/0!"}},{"$f":"IF(O1035<0,O1035*(-1)*$B1041+O1035*(-1)*$B1041*'1 Données d''entrée'!$C$338,0)","v":{"$error":"#DIV/0!"}},{"$f":"IF(P1035<0,P1035*(-1)*$B1041+P1035*(-1)*$B1041*'1 Données d''entrée'!$C$338,0)","v":{"$error":"#DIV/0!"}},{"$f":"IF(Q1035<0,Q1035*(-1)*$B1041+Q1035*(-1)*$B1041*'1 Données d''entrée'!$C$338,0)","v":{"$error":"#DIV/0!"}},{"$f":"IF(R1035<0,R1035*(-1)*$B1041+R1035*(-1)*$B1041*'1 Données d''entrée'!$C$338,0)","v":{"$error":"#DIV/0!"}},{"$f":"IF(S1035<0,S1035*(-1)*$B1041+S1035*(-1)*$B1041*'1 Données d''entrée'!$C$338,0)","v":{"$error":"#DIV/0!"}},{"$f":"IF(T1035<0,T1035*(-1)*$B1041+T1035*(-1)*$B1041*'1 Données d''entrée'!$C$338,0)","v":{"$error":"#DIV/0!"}},{"$f":"IF(U1035<0,U1035*(-1)*$B1041+U1035*(-1)*$B1041*'1 Données d''entrée'!$C$338,0)","v":{"$error":"#DIV/0!"}},{"$f":"IF(V1035<0,V1035*(-1)*$B1041+V1035*(-1)*$B1041*'1 Données d''entrée'!$C$338,0)","v":{"$error":"#DIV/0!"}}]
[null,"Période de prêt nouveau"]
["Remboursement du principal",0,0,0,0,0,0,0,0,0,0,0,0,0,0,0,0,0,0,0,0,0]
[null,1,{"$f":"IF(C992<'1 Données d''entrée'!$C$334+1+$B1045,0,IF(C992<'1 Données d''entrée'!$C$333+'1 Données d''entrée'!$C$334+1+$B1045,($C1042/'1 Données d''entrée'!$C$333),0))","v":0},{"$f":"IF(D992<'1 Données d''entrée'!$C$334+1+$B1045,0,IF(D992<'1 Données d''entrée'!$C$333+'1 Données d''entrée'!$C$334+1+$B1045,($C1042/'1 Données d''entrée'!$C$333),0))","v":0},{"$f":"IF(E992<'1 Données d''entrée'!$C$334+1+$B1045,0,IF(E992<'1 Données d''entrée'!$C$333+'1 Données d''entrée'!$C$334+1+$B1045,($C1042/'1 Données d''entrée'!$C$333),0))","v":0},{"$f":"IF(F992<'1 Données d''entrée'!$C$334+1+$B1045,0,IF(F992<'1 Données d''entrée'!$C$333+'1 Données d''entrée'!$C$334+1+$B1045,($C1042/'1 Données d''entrée'!$C$333),0))","v":0},{"$f":"IF(G992<'1 Données d''entrée'!$C$334+1+$B1045,0,IF(G992<'1 Données d''entrée'!$C$333+'1 Données d''entrée'!$C$334+1+$B1045,($C1042/'1 Données d''entrée'!$C$333),0))","v":0},{"$f":"IF(H992<'1 Données d''entrée'!$C$334+1+$B1045,0,IF(H992<'1 Données d''entrée'!$C$333+'1 Données d''entrée'!$C$334+1+$B1045,($C1042/'1 Données d''entrée'!$C$333),0))","v":0},{"$f":"IF(I992<'1 Données d''entrée'!$C$334+1+$B1045,0,IF(I992<'1 Données d''entrée'!$C$333+'1 Données d''entrée'!$C$334+1+$B1045,($C1042/'1 Données d''entrée'!$C$333),0))","v":0},{"$f":"IF(J992<'1 Données d''entrée'!$C$334+1+$B1045,0,IF(J992<'1 Données d''entrée'!$C$333+'1 Données d''entrée'!$C$334+1+$B1045,($C1042/'1 Données d''entrée'!$C$333),0))","v":0},{"$f":"IF(K992<'1 Données d''entrée'!$C$334+1+$B1045,0,IF(K992<'1 Données d''entrée'!$C$333+'1 Données d''entrée'!$C$334+1+$B1045,($C1042/'1 Données d''entrée'!$C$333),0))","v":0},{"$f":"IF(L992<'1 Données d''entrée'!$C$334+1+$B1045,0,IF(L992<'1 Données d''entrée'!$C$333+'1 Données d''entrée'!$C$334+1+$B1045,($C1042/'1 Données d''entrée'!$C$333),0))","v":0},{"$f":"IF(M992<'1 Données d''entrée'!$C$334+1+$B1045,0,IF(M992<'1 Données d''entrée'!$C$333+'1 Données d''entrée'!$C$334+1+$B1045,($C1042/'1 Données d''entrée'!$C$333),0))","v":0},{"$f":"IF(N992<'1 Données d''entrée'!$C$334+1+$B1045,0,IF(N992<'1 Données d''entrée'!$C$333+'1 Données d''entrée'!$C$334+1+$B1045,($C1042/'1 Données d''entrée'!$C$333),0))","v":0},{"$f":"IF(O992<'1 Données d''entrée'!$C$334+1+$B1045,0,IF(O992<'1 Données d''entrée'!$C$333+'1 Données d''entrée'!$C$334+1+$B1045,($C1042/'1 Données d''entrée'!$C$333),0))","v":0},{"$f":"IF(P992<'1 Données d''entrée'!$C$334+1+$B1045,0,IF(P992<'1 Données d''entrée'!$C$333+'1 Données d''entrée'!$C$334+1+$B1045,($C1042/'1 Données d''entrée'!$C$333),0))","v":0},{"$f":"IF(Q992<'1 Données d''entrée'!$C$334+1+$B1045,0,IF(Q992<'1 Données d''entrée'!$C$333+'1 Données d''entrée'!$C$334+1+$B1045,($C1042/'1 Données d''entrée'!$C$333),0))","v":0},{"$f":"IF(R992<'1 Données d''entrée'!$C$334+1+$B1045,0,IF(R992<'1 Données d''entrée'!$C$333+'1 Données d''entrée'!$C$334+1+$B1045,($C1042/'1 Données d''entrée'!$C$333),0))","v":0},{"$f":"IF(S992<'1 Données d''entrée'!$C$334+1+$B1045,0,IF(S992<'1 Données d''entrée'!$C$333+'1 Données d''entrée'!$C$334+1+$B1045,($C1042/'1 Données d''entrée'!$C$333),0))","v":0},{"$f":"IF(T992<'1 Données d''entrée'!$C$334+1+$B1045,0,IF(T992<'1 Données d''entrée'!$C$333+'1 Données d''entrée'!$C$334+1+$B1045,($C1042/'1 Données d''entrée'!$C$333),0))","v":0},{"$f":"IF(U992<'1 Données d''entrée'!$C$334+1+$B1045,0,IF(U992<'1 Données d''entrée'!$C$333+'1 Données d''entrée'!$C$334+1+$B1045,($C1042/'1 Données d''entrée'!$C$333),0))","v":0},{"$f":"IF(V992<'1 Données d''entrée'!$C$334+1+$B1045,0,IF(V992<'1 Données d''entrée'!$C$333+'1 Données d''entrée'!$C$334+1+$B1045,($C1042/'1 Données d''entrée'!$C$333),0))","v":0}]
[null,2,{"$f":"IF(C992<'1 Données d''entrée'!$C$334+1+$B1046,0,IF(C992<'1 Données d''entrée'!$C$333+'1 Données d''entrée'!$C$334+1+$B1046,($D1042/'1 Données d''entrée'!$C$333),0))","v":0},{"$f":"IF(D992<'1 Données d''entrée'!$C$334+1+$B1046,0,IF(D992<'1 Données d''entrée'!$C$333+'1 Données d''entrée'!$C$334+1+$B1046,($D1042/'1 Données d''entrée'!$C$333),0))","v":0},{"$f":"IF(E992<'1 Données d''entrée'!$C$334+1+$B1046,0,IF(E992<'1 Données d''entrée'!$C$333+'1 Données d''entrée'!$C$334+1+$B1046,($D1042/'1 Données d''entrée'!$C$333),0))","v":0},{"$f":"IF(F992<'1 Données d''entrée'!$C$334+1+$B1046,0,IF(F992<'1 Données d''entrée'!$C$333+'1 Données d''entrée'!$C$334+1+$B1046,($D1042/'1 Données d''entrée'!$C$333),0))","v":0},{"$f":"IF(G992<'1 Données d''entrée'!$C$334+1+$B1046,0,IF(G992<'1 Données d''entrée'!$C$333+'1 Données d''entrée'!$C$334+1+$B1046,($D1042/'1 Données d''entrée'!$C$333),0))","v":0},{"$f":"IF(H992<'1 Données d''entrée'!$C$334+1+$B1046,0,IF(H992<'1 Données d''entrée'!$C$333+'1 Données d''entrée'!$C$334+1+$B1046,($D1042/'1 Données d''entrée'!$C$333),0))","v":0},{"$f":"IF(I992<'1 Données d''entrée'!$C$334+1+$B1046,0,IF(I992<'1 Données d''entrée'!$C$333+'1 Données d''entrée'!$C$334+1+$B1046,($D1042/'1 Données d''entrée'!$C$333),0))","v":0},{"$f":"IF(J992<'1 Données d''entrée'!$C$334+1+$B1046,0,IF(J992<'1 Données d''entrée'!$C$333+'1 Données d''entrée'!$C$334+1+$B1046,($D1042/'1 Données d''entrée'!$C$333),0))","v":0},{"$f":"IF(K992<'1 Données d''entrée'!$C$334+1+$B1046,0,IF(K992<'1 Données d''entrée'!$C$333+'1 Données d''entrée'!$C$334+1+$B1046,($D1042/'1 Données d''entrée'!$C$333),0))","v":0},{"$f":"IF(L992<'1 Données d''entrée'!$C$334+1+$B1046,0,IF(L992<'1 Données d''entrée'!$C$333+'1 Données d''entrée'!$C$334+1+$B1046,($D1042/'1 Données d''entrée'!$C$333),0))","v":0},{"$f":"IF(M992<'1 Données d''entrée'!$C$334+1+$B1046,0,IF(M992<'1 Données d''entrée'!$C$333+'1 Données d''entrée'!$C$334+1+$B1046,($D1042/'1 Données d''entrée'!$C$333),0))","v":0},{"$f":"IF(N992<'1 Données d''entrée'!$C$334+1+$B1046,0,IF(N992<'1 Données d''entrée'!$C$333+'1 Données d''entrée'!$C$334+1+$B1046,($D1042/'1 Données d''entrée'!$C$333),0))","v":0},{"$f":"IF(O992<'1 Données d''entrée'!$C$334+1+$B1046,0,IF(O992<'1 Données d''entrée'!$C$333+'1 Données d''entrée'!$C$334+1+$B1046,($D1042/'1 Données d''entrée'!$C$333),0))","v":0},{"$f":"IF(P992<'1 Données d''entrée'!$C$334+1+$B1046,0,IF(P992<'1 Données d''entrée'!$C$333+'1 Données d''entrée'!$C$334+1+$B1046,($D1042/'1 Données d''entrée'!$C$333),0))","v":0},{"$f":"IF(Q992<'1 Données d''entrée'!$C$334+1+$B1046,0,IF(Q992<'1 Données d''entrée'!$C$333+'1 Données d''entrée'!$C$334+1+$B1046,($D1042/'1 Données d''entrée'!$C$333),0))","v":0},{"$f":"IF(R992<'1 Données d''entrée'!$C$334+1+$B1046,0,IF(R992<'1 Données d''entrée'!$C$333+'1 Données d''entrée'!$C$334+1+$B1046,($D1042/'1 Données d''entrée'!$C$333),0))","v":0},{"$f":"IF(S992<'1 Données d''entrée'!$C$334+1+$B1046,0,IF(S992<'1 Données d''entrée'!$C$333+'1 Données d''entrée'!$C$334+1+$B1046,($D1042/'1 Données d''entrée'!$C$333),0))","v":0},{"$f":"IF(T992<'1 Données d''entrée'!$C$334+1+$B1046,0,IF(T992<'1 Données d''entrée'!$C$333+'1 Données d''entrée'!$C$334+1+$B1046,($D1042/'1 Données d''entrée'!$C$333),0))","v":0},{"$f":"IF(U992<'1 Données d''entrée'!$C$334+1+$B1046,0,IF(U992<'1 Données d''entrée'!$C$333+'1 Données d''entrée'!$C$334+1+$B1046,($D1042/'1 Données d''entrée'!$C$333),0))","v":0},{"$f":"IF(V992<'1 Données d''entrée'!$C$334+1+$B1046,0,IF(V992<'1 Données d''entrée'!$C$333+'1 Données d''entrée'!$C$334+1+$B1046,($D1042/'1 Données d''entrée'!$C$333),0))","v":0}]
[null,3,{"$f":"IF(C992<'1 Données d''entrée'!$C$334+1+$B1047,0,IF(C992<'1 Données d''entrée'!$C$333+'1 Données d''entrée'!$C$334+1+$B1047,($E1042/'1 Données d''entrée'!$C$333),0))","v":0},{"$f":"IF(D992<'1 Données d''entrée'!$C$334+1+$B1047,0,IF(D992<'1 Données d''entrée'!$C$333+'1 Données d''entrée'!$C$334+1+$B1047,($E1042/'1 Données d''entrée'!$C$333),0))","v":0},{"$f":"IF(E992<'1 Données d''entrée'!$C$334+1+$B1047,0,IF(E992<'1 Données d''entrée'!$C$333+'1 Données d''entrée'!$C$334+1+$B1047,($E1042/'1 Données d''entrée'!$C$333),0))","v":0},{"$f":"IF(F992<'1 Données d''entrée'!$C$334+1+$B1047,0,IF(F992<'1 Données d''entrée'!$C$333+'1 Données d''entrée'!$C$334+1+$B1047,($E1042/'1 Données d''entrée'!$C$333),0))","v":0},{"$f":"IF(G992<'1 Données d''entrée'!$C$334+1+$B1047,0,IF(G992<'1 Données d''entrée'!$C$333+'1 Données d''entrée'!$C$334+1+$B1047,($E1042/'1 Données d''entrée'!$C$333),0))","v":0},{"$f":"IF(H992<'1 Données d''entrée'!$C$334+1+$B1047,0,IF(H992<'1 Données d''entrée'!$C$333+'1 Données d''entrée'!$C$334+1+$B1047,($E1042/'1 Données d''entrée'!$C$333),0))","v":0},{"$f":"IF(I992<'1 Données d''entrée'!$C$334+1+$B1047,0,IF(I992<'1 Données d''entrée'!$C$333+'1 Données d''entrée'!$C$334+1+$B1047,($E1042/'1 Données d''entrée'!$C$333),0))","v":0},{"$f":"IF(J992<'1 Données d''entrée'!$C$334+1+$B1047,0,IF(J992<'1 Données d''entrée'!$C$333+'1 Données d''entrée'!$C$334+1+$B1047,($E1042/'1 Données d''entrée'!$C$333),0))","v":0},{"$f":"IF(K992<'1 Données d''entrée'!$C$334+1+$B1047,0,IF(K992<'1 Données d''entrée'!$C$333+'1 Données d''entrée'!$C$334+1+$B1047,($E1042/'1 Données d''entrée'!$C$333),0))","v":0},{"$f":"IF(L992<'1 Données d''entrée'!$C$334+1+$B1047,0,IF(L992<'1 Données d''entrée'!$C$333+'1 Données d''entrée'!$C$334+1+$B1047,($E1042/'1 Données d''entrée'!$C$333),0))","v":0},{"$f":"IF(M992<'1 Données d''entrée'!$C$334+1+$B1047,0,IF(M992<'1 Données d''entrée'!$C$333+'1 Données d''entrée'!$C$334+1+$B1047,($E1042/'1 Données d''entrée'!$C$333),0))","v":0},{"$f":"IF(N992<'1 Données d''entrée'!$C$334+1+$B1047,0,IF(N992<'1 Données d''entrée'!$C$333+'1 Données d''entrée'!$C$334+1+$B1047,($E1042/'1 Données d''entrée'!$C$333),0))","v":0},{"$f":"IF(O992<'1 Données d''entrée'!$C$334+1+$B1047,0,IF(O992<'1 Données d''entrée'!$C$333+'1 Données d''entrée'!$C$334+1+$B1047,($E1042/'1 Données d''entrée'!$C$333),0))","v":0},{"$f":"IF(P992<'1 Données d''entrée'!$C$334+1+$B1047,0,IF(P992<'1 Données d''entrée'!$C$333+'1 Données d''entrée'!$C$334+1+$B1047,($E1042/'1 Données d''entrée'!$C$333),0))","v":0},{"$f":"IF(Q992<'1 Données d''entrée'!$C$334+1+$B1047,0,IF(Q992<'1 Données d''entrée'!$C$333+'1 Données d''entrée'!$C$334+1+$B1047,($E1042/'1 Données d''entrée'!$C$333),0))","v":0},{"$f":"IF(R992<'1 Données d''entrée'!$C$334+1+$B1047,0,IF(R992<'1 Données d''entrée'!$C$333+'1 Données d''entrée'!$C$334+1+$B1047,($E1042/'1 Données d''entrée'!$C$333),0))","v":0},{"$f":"IF(S992<'1 Données d''entrée'!$C$334+1+$B1047,0,IF(S992<'1 Données d''entrée'!$C$333+'1 Données d''entrée'!$C$334+1+$B1047,($E1042/'1 Données d''entrée'!$C$333),0))","v":0},{"$f":"IF(T992<'1 Données d''entrée'!$C$334+1+$B1047,0,IF(T992<'1 Données d''entrée'!$C$333+'1 Données d''entrée'!$C$334+1+$B1047,($E1042/'1 Données d''entrée'!$C$333),0))","v":0},{"$f":"IF(U992<'1 Données d''entrée'!$C$334+1+$B1047,0,IF(U992<'1 Données d''entrée'!$C$333+'1 Données d''entrée'!$C$334+1+$B1047,($E1042/'1 Données d''entrée'!$C$333),0))","v":0},{"$f":"IF(V992<'1 Données d''entrée'!$C$334+1+$B1047,0,IF(V992<'1 Données d''entrée'!$C$333+'1 Données d''entrée'!$C$334+1+$B1047,($E1042/'1 Données d''entrée'!$C$333),0))","v":0}]
[null,4,{"$f":"IF(C992<'1 Données d''entrée'!$C$334+1+$B1048,0,IF(C992<'1 Données d''entrée'!$C$333+'1 Données d''entrée'!$C$334+1+$B1048,($F1042/'1 Données d''entrée'!$C$333),0))","v":0},{"$f":"IF(D992<'1 Données d''entrée'!$C$334+1+$B1048,0,IF(D992<'1 Données d''entrée'!$C$333+'1 Données d''entrée'!$C$334+1+$B1048,($F1042/'1 Données d''entrée'!$C$333),0))","v":0},{"$f":"IF(E992<'1 Données d''entrée'!$C$334+1+$B1048,0,IF(E992<'1 Données d''entrée'!$C$333+'1 Données d''entrée'!$C$334+1+$B1048,($F1042/'1 Données d''entrée'!$C$333),0))","v":0},{"$f":"IF(F992<'1 Données d''entrée'!$C$334+1+$B1048,0,IF(F992<'1 Données d''entrée'!$C$333+'1 Données d''entrée'!$C$334+1+$B1048,($F1042/'1 Données d''entrée'!$C$333),0))","v":0},{"$f":"IF(G992<'1 Données d''entrée'!$C$334+1+$B1048,0,IF(G992<'1 Données d''entrée'!$C$333+'1 Données d''entrée'!$C$334+1+$B1048,($F1042/'1 Données d''entrée'!$C$333),0))","v":0},{"$f":"IF(H992<'1 Données d''entrée'!$C$334+1+$B1048,0,IF(H992<'1 Données d''entrée'!$C$333+'1 Données d''entrée'!$C$334+1+$B1048,($F1042/'1 Données d''entrée'!$C$333),0))","v":0},{"$f":"IF(I992<'1 Données d''entrée'!$C$334+1+$B1048,0,IF(I992<'1 Données d''entrée'!$C$333+'1 Données d''entrée'!$C$334+1+$B1048,($F1042/'1 Données d''entrée'!$C$333),0))","v":0},{"$f":"IF(J992<'1 Données d''entrée'!$C$334+1+$B1048,0,IF(J992<'1 Données d''entrée'!$C$333+'1 Données d''entrée'!$C$334+1+$B1048,($F1042/'1 Données d''entrée'!$C$333),0))","v":0},{"$f":"IF(K992<'1 Données d''entrée'!$C$334+1+$B1048,0,IF(K992<'1 Données d''entrée'!$C$333+'1 Données d''entrée'!$C$334+1+$B1048,($F1042/'1 Données d''entrée'!$C$333),0))","v":0},{"$f":"IF(L992<'1 Données d''entrée'!$C$334+1+$B1048,0,IF(L992<'1 Données d''entrée'!$C$333+'1 Données d''entrée'!$C$334+1+$B1048,($F1042/'1 Données d''entrée'!$C$333),0))","v":0},{"$f":"IF(M992<'1 Données d''entrée'!$C$334+1+$B1048,0,IF(M992<'1 Données d''entrée'!$C$333+'1 Données d''entrée'!$C$334+1+$B1048,($F1042/'1 Données d''entrée'!$C$333),0))","v":0},{"$f":"IF(N992<'1 Données d''entrée'!$C$334+1+$B1048,0,IF(N992<'1 Données d''entrée'!$C$333+'1 Données d''entrée'!$C$334+1+$B1048,($F1042/'1 Données d''entrée'!$C$333),0))","v":0},{"$f":"IF(O992<'1 Données d''entrée'!$C$334+1+$B1048,0,IF(O992<'1 Données d''entrée'!$C$333+'1 Données d''entrée'!$C$334+1+$B1048,($F1042/'1 Données d''entrée'!$C$333),0))","v":0},{"$f":"IF(P992<'1 Données d''entrée'!$C$334+1+$B1048,0,IF(P992<'1 Données d''entrée'!$C$333+'1 Données d''entrée'!$C$334+1+$B1048,($F1042/'1 Données d''entrée'!$C$333),0))","v":0},{"$f":"IF(Q992<'1 Données d''entrée'!$C$334+1+$B1048,0,IF(Q992<'1 Données d''entrée'!$C$333+'1 Données d''entrée'!$C$334+1+$B1048,($F1042/'1 Données d''entrée'!$C$333),0))","v":0},{"$f":"IF(R992<'1 Données d''entrée'!$C$334+1+$B1048,0,IF(R992<'1 Données d''entrée'!$C$333+'1 Données d''entrée'!$C$334+1+$B1048,($F1042/'1 Données d''entrée'!$C$333),0))","v":0},{"$f":"IF(S992<'1 Données d''entrée'!$C$334+1+$B1048,0,IF(S992<'1 Données d''entrée'!$C$333+'1 Données d''entrée'!$C$334+1+$B1048,($F1042/'1 Données d''entrée'!$C$333),0))","v":0},{"$f":"IF(T992<'1 Données d''entrée'!$C$334+1+$B1048,0,IF(T992<'1 Données d''entrée'!$C$333+'1 Données d''entrée'!$C$334+1+$B1048,($F1042/'1 Données d''entrée'!$C$333),0))","v":0},{"$f":"IF(U992<'1 Données d''entrée'!$C$334+1+$B1048,0,IF(U992<'1 Données d''entrée'!$C$333+'1 Données d''entrée'!$C$334+1+$B1048,($F1042/'1 Données d''entrée'!$C$333),0))","v":0},{"$f":"IF(V992<'1 Données d''entrée'!$C$334+1+$B1048,0,IF(V992<'1 Données d''entrée'!$C$333+'1 Données d''entrée'!$C$334+1+$B1048,($F1042/'1 Données d''entrée'!$C$333),0))","v":0}]
[null,5,{"$f":"IF(C992<'1 Données d''entrée'!$C$334+1+$B1049,0,IF(C992<'1 Données d''entrée'!$C$333+'1 Données d''entrée'!$C$334+1+$B1049,($G1042/'1 Données d''entrée'!$C$333),0))","v":0},{"$f":"IF(D992<'1 Données d''entrée'!$C$334+1+$B1049,0,IF(D992<'1 Données d''entrée'!$C$333+'1 Données d''entrée'!$C$334+1+$B1049,($G1042/'1 Données d''entrée'!$C$333),0))","v":0},{"$f":"IF(E992<'1 Données d''entrée'!$C$334+1+$B1049,0,IF(E992<'1 Données d''entrée'!$C$333+'1 Données d''entrée'!$C$334+1+$B1049,($G1042/'1 Données d''entrée'!$C$333),0))","v":0},{"$f":"IF(F992<'1 Données d''entrée'!$C$334+1+$B1049,0,IF(F992<'1 Données d''entrée'!$C$333+'1 Données d''entrée'!$C$334+1+$B1049,($G1042/'1 Données d''entrée'!$C$333),0))","v":0},{"$f":"IF(G992<'1 Données d''entrée'!$C$334+1+$B1049,0,IF(G992<'1 Données d''entrée'!$C$333+'1 Données d''entrée'!$C$334+1+$B1049,($G1042/'1 Données d''entrée'!$C$333),0))","v":0},{"$f":"IF(H992<'1 Données d''entrée'!$C$334+1+$B1049,0,IF(H992<'1 Données d''entrée'!$C$333+'1 Données d''entrée'!$C$334+1+$B1049,($G1042/'1 Données d''entrée'!$C$333),0))","v":0},{"$f":"IF(I992<'1 Données d''entrée'!$C$334+1+$B1049,0,IF(I992<'1 Données d''entrée'!$C$333+'1 Données d''entrée'!$C$334+1+$B1049,($G1042/'1 Données d''entrée'!$C$333),0))","v":0},{"$f":"IF(J992<'1 Données d''entrée'!$C$334+1+$B1049,0,IF(J992<'1 Données d''entrée'!$C$333+'1 Données d''entrée'!$C$334+1+$B1049,($G1042/'1 Données d''entrée'!$C$333),0))","v":0},{"$f":"IF(K992<'1 Données d''entrée'!$C$334+1+$B1049,0,IF(K992<'1 Données d''entrée'!$C$333+'1 Données d''entrée'!$C$334+1+$B1049,($G1042/'1 Données d''entrée'!$C$333),0))","v":0},{"$f":"IF(L992<'1 Données d''entrée'!$C$334+1+$B1049,0,IF(L992<'1 Données d''entrée'!$C$333+'1 Données d''entrée'!$C$334+1+$B1049,($G1042/'1 Données d''entrée'!$C$333),0))","v":0},{"$f":"IF(M992<'1 Données d''entrée'!$C$334+1+$B1049,0,IF(M992<'1 Données d''entrée'!$C$333+'1 Données d''entrée'!$C$334+1+$B1049,($G1042/'1 Données d''entrée'!$C$333),0))","v":0},{"$f":"IF(N992<'1 Données d''entrée'!$C$334+1+$B1049,0,IF(N992<'1 Données d''entrée'!$C$333+'1 Données d''entrée'!$C$334+1+$B1049,($G1042/'1 Données d''entrée'!$C$333),0))","v":0},{"$f":"IF(O992<'1 Données d''entrée'!$C$334+1+$B1049,0,IF(O992<'1 Données d''entrée'!$C$333+'1 Données d''entrée'!$C$334+1+$B1049,($G1042/'1 Données d''entrée'!$C$333),0))","v":0},{"$f":"IF(P992<'1 Données d''entrée'!$C$334+1+$B1049,0,IF(P992<'1 Données d''entrée'!$C$333+'1 Données d''entrée'!$C$334+1+$B1049,($G1042/'1 Données d''entrée'!$C$333),0))","v":0},{"$f":"IF(Q992<'1 Données d''entrée'!$C$334+1+$B1049,0,IF(Q992<'1 Données d''entrée'!$C$333+'1 Données d''entrée'!$C$334+1+$B1049,($G1042/'1 Données d''entrée'!$C$333),0))","v":0},{"$f":"IF(R992<'1 Données d''entrée'!$C$334+1+$B1049,0,IF(R992<'1 Données d''entrée'!$C$333+'1 Données d''entrée'!$C$334+1+$B1049,($G1042/'1 Données d''entrée'!$C$333),0))","v":0},{"$f":"IF(S992<'1 Données d''entrée'!$C$334+1+$B1049,0,IF(S992<'1 Données d''entrée'!$C$333+'1 Données d''entrée'!$C$334+1+$B1049,($G1042/'1 Données d''entrée'!$C$333),0))","v":0},{"$f":"IF(T992<'1 Données d''entrée'!$C$334+1+$B1049,0,IF(T992<'1 Données d''entrée'!$C$333+'1 Données d''entrée'!$C$334+1+$B1049,($G1042/'1 Données d''entrée'!$C$333),0))","v":0},{"$f":"IF(U992<'1 Données d''entrée'!$C$334+1+$B1049,0,IF(U992<'1 Données d''entrée'!$C$333+'1 Données d''entrée'!$C$334+1+$B1049,($G1042/'1 Données d''entrée'!$C$333),0))","v":0},{"$f":"IF(V992<'1 Données d''entrée'!$C$334+1+$B1049,0,IF(V992<'1 Données d''entrée'!$C$333+'1 Données d''entrée'!$C$334+1+$B1049,($G1042/'1 Données d''entrée'!$C$333),0))","v":0}]
[null,6,{"$f":"IF(C992<'1 Données d''entrée'!$C$334+1+$B1050,0,IF(C992<'1 Données d''entrée'!$C$333+'1 Données d''entrée'!$C$334+1+$B1050,($H1042/'1 Données d''entrée'!$C$333),0))","v":0},{"$f":"IF(D992<'1 Données d''entrée'!$C$334+1+$B1050,0,IF(D992<'1 Données d''entrée'!$C$333+'1 Données d''entrée'!$C$334+1+$B1050,($H1042/'1 Données d''entrée'!$C$333),0))","v":0},{"$f":"IF(E992<'1 Données d''entrée'!$C$334+1+$B1050,0,IF(E992<'1 Données d''entrée'!$C$333+'1 Données d''entrée'!$C$334+1+$B1050,($H1042/'1 Données d''entrée'!$C$333),0))","v":0},{"$f":"IF(F992<'1 Données d''entrée'!$C$334+1+$B1050,0,IF(F992<'1 Données d''entrée'!$C$333+'1 Données d''entrée'!$C$334+1+$B1050,($H1042/'1 Données d''entrée'!$C$333),0))","v":0},{"$f":"IF(G992<'1 Données d''entrée'!$C$334+1+$B1050,0,IF(G992<'1 Données d''entrée'!$C$333+'1 Données d''entrée'!$C$334+1+$B1050,($H1042/'1 Données d''entrée'!$C$333),0))","v":0},{"$f":"IF(H992<'1 Données d''entrée'!$C$334+1+$B1050,0,IF(H992<'1 Données d''entrée'!$C$333+'1 Données d''entrée'!$C$334+1+$B1050,($H1042/'1 Données d''entrée'!$C$333),0))","v":0},{"$f":"IF(I992<'1 Données d''entrée'!$C$334+1+$B1050,0,IF(I992<'1 Données d''entrée'!$C$333+'1 Données d''entrée'!$C$334+1+$B1050,($H1042/'1 Données d''entrée'!$C$333),0))","v":0},{"$f":"IF(J992<'1 Données d''entrée'!$C$334+1+$B1050,0,IF(J992<'1 Données d''entrée'!$C$333+'1 Données d''entrée'!$C$334+1+$B1050,($H1042/'1 Données d''entrée'!$C$333),0))","v":0},{"$f":"IF(K992<'1 Données d''entrée'!$C$334+1+$B1050,0,IF(K992<'1 Données d''entrée'!$C$333+'1 Données d''entrée'!$C$334+1+$B1050,($H1042/'1 Données d''entrée'!$C$333),0))","v":0},{"$f":"IF(L992<'1 Données d''entrée'!$C$334+1+$B1050,0,IF(L992<'1 Données d''entrée'!$C$333+'1 Données d''entrée'!$C$334+1+$B1050,($H1042/'1 Données d''entrée'!$C$333),0))","v":0},{"$f":"IF(M992<'1 Données d''entrée'!$C$334+1+$B1050,0,IF(M992<'1 Données d''entrée'!$C$333+'1 Données d''entrée'!$C$334+1+$B1050,($H1042/'1 Données d''entrée'!$C$333),0))","v":0},{"$f":"IF(N992<'1 Données d''entrée'!$C$334+1+$B1050,0,IF(N992<'1 Données d''entrée'!$C$333+'1 Données d''entrée'!$C$334+1+$B1050,($H1042/'1 Données d''entrée'!$C$333),0))","v":0},{"$f":"IF(O992<'1 Données d''entrée'!$C$334+1+$B1050,0,IF(O992<'1 Données d''entrée'!$C$333+'1 Données d''entrée'!$C$334+1+$B1050,($H1042/'1 Données d''entrée'!$C$333),0))","v":0},{"$f":"IF(P992<'1 Données d''entrée'!$C$334+1+$B1050,0,IF(P992<'1 Données d''entrée'!$C$333+'1 Données d''entrée'!$C$334+1+$B1050,($H1042/'1 Données d''entrée'!$C$333),0))","v":0},{"$f":"IF(Q992<'1 Données d''entrée'!$C$334+1+$B1050,0,IF(Q992<'1 Données d''entrée'!$C$333+'1 Données d''entrée'!$C$334+1+$B1050,($H1042/'1 Données d''entrée'!$C$333),0))","v":0},{"$f":"IF(R992<'1 Données d''entrée'!$C$334+1+$B1050,0,IF(R992<'1 Données d''entrée'!$C$333+'1 Données d''entrée'!$C$334+1+$B1050,($H1042/'1 Données d''entrée'!$C$333),0))","v":0},{"$f":"IF(S992<'1 Données d''entrée'!$C$334+1+$B1050,0,IF(S992<'1 Données d''entrée'!$C$333+'1 Données d''entrée'!$C$334+1+$B1050,($H1042/'1 Données d''entrée'!$C$333),0))","v":0},{"$f":"IF(T992<'1 Données d''entrée'!$C$334+1+$B1050,0,IF(T992<'1 Données d''entrée'!$C$333+'1 Données d''entrée'!$C$334+1+$B1050,($H1042/'1 Données d''entrée'!$C$333),0))","v":0},{"$f":"IF(U992<'1 Données d''entrée'!$C$334+1+$B1050,0,IF(U992<'1 Données d''entrée'!$C$333+'1 Données d''entrée'!$C$334+1+$B1050,($H1042/'1 Données d''entrée'!$C$333),0))","v":0},{"$f":"IF(V992<'1 Données d''entrée'!$C$334+1+$B1050,0,IF(V992<'1 Données d''entrée'!$C$333+'1 Données d''entrée'!$C$334+1+$B1050,($H1042/'1 Données d''entrée'!$C$333),0))","v":0}]
[null,7,{"$f":"IF(C992<'1 Données d''entrée'!$C$334+1+$B1051,0,IF(C992<'1 Données d''entrée'!$C$333+'1 Données d''entrée'!$C$334+1+$B1051,($I1042/'1 Données d''entrée'!$C$333),0))","v":0},{"$f":"IF(D992<'1 Données d''entrée'!$C$334+1+$B1051,0,IF(D992<'1 Données d''entrée'!$C$333+'1 Données d''entrée'!$C$334+1+$B1051,($I1042/'1 Données d''entrée'!$C$333),0))","v":0},{"$f":"IF(E992<'1 Données d''entrée'!$C$334+1+$B1051,0,IF(E992<'1 Données d''entrée'!$C$333+'1 Données d''entrée'!$C$334+1+$B1051,($I1042/'1 Données d''entrée'!$C$333),0))","v":0},{"$f":"IF(F992<'1 Données d''entrée'!$C$334+1+$B1051,0,IF(F992<'1 Données d''entrée'!$C$333+'1 Données d''entrée'!$C$334+1+$B1051,($I1042/'1 Données d''entrée'!$C$333),0))","v":0},{"$f":"IF(G992<'1 Données d''entrée'!$C$334+1+$B1051,0,IF(G992<'1 Données d''entrée'!$C$333+'1 Données d''entrée'!$C$334+1+$B1051,($I1042/'1 Données d''entrée'!$C$333),0))","v":0},{"$f":"IF(H992<'1 Données d''entrée'!$C$334+1+$B1051,0,IF(H992<'1 Données d''entrée'!$C$333+'1 Données d''entrée'!$C$334+1+$B1051,($I1042/'1 Données d''entrée'!$C$333),0))","v":0},{"$f":"IF(I992<'1 Données d''entrée'!$C$334+1+$B1051,0,IF(I992<'1 Données d''entrée'!$C$333+'1 Données d''entrée'!$C$334+1+$B1051,($I1042/'1 Données d''entrée'!$C$333),0))","v":0},{"$f":"IF(J992<'1 Données d''entrée'!$C$334+1+$B1051,0,IF(J992<'1 Données d''entrée'!$C$333+'1 Données d''entrée'!$C$334+1+$B1051,($I1042/'1 Données d''entrée'!$C$333),0))","v":0},{"$f":"IF(K992<'1 Données d''entrée'!$C$334+1+$B1051,0,IF(K992<'1 Données d''entrée'!$C$333+'1 Données d''entrée'!$C$334+1+$B1051,($I1042/'1 Données d''entrée'!$C$333),0))","v":0},{"$f":"IF(L992<'1 Données d''entrée'!$C$334+1+$B1051,0,IF(L992<'1 Données d''entrée'!$C$333+'1 Données d''entrée'!$C$334+1+$B1051,($I1042/'1 Données d''entrée'!$C$333),0))","v":0},{"$f":"IF(M992<'1 Données d''entrée'!$C$334+1+$B1051,0,IF(M992<'1 Données d''entrée'!$C$333+'1 Données d''entrée'!$C$334+1+$B1051,($I1042/'1 Données d''entrée'!$C$333),0))","v":0},{"$f":"IF(N992<'1 Données d''entrée'!$C$334+1+$B1051,0,IF(N992<'1 Données d''entrée'!$C$333+'1 Données d''entrée'!$C$334+1+$B1051,($I1042/'1 Données d''entrée'!$C$333),0))","v":0},{"$f":"IF(O992<'1 Données d''entrée'!$C$334+1+$B1051,0,IF(O992<'1 Données d''entrée'!$C$333+'1 Données d''entrée'!$C$334+1+$B1051,($I1042/'1 Données d''entrée'!$C$333),0))","v":0},{"$f":"IF(P992<'1 Données d''entrée'!$C$334+1+$B1051,0,IF(P992<'1 Données d''entrée'!$C$333+'1 Données d''entrée'!$C$334+1+$B1051,($I1042/'1 Données d''entrée'!$C$333),0))","v":0},{"$f":"IF(Q992<'1 Données d''entrée'!$C$334+1+$B1051,0,IF(Q992<'1 Données d''entrée'!$C$333+'1 Données d''entrée'!$C$334+1+$B1051,($I1042/'1 Données d''entrée'!$C$333),0))","v":0},{"$f":"IF(R992<'1 Données d''entrée'!$C$334+1+$B1051,0,IF(R992<'1 Données d''entrée'!$C$333+'1 Données d''entrée'!$C$334+1+$B1051,($I1042/'1 Données d''entrée'!$C$333),0))","v":0},{"$f":"IF(S992<'1 Données d''entrée'!$C$334+1+$B1051,0,IF(S992<'1 Données d''entrée'!$C$333+'1 Données d''entrée'!$C$334+1+$B1051,($I1042/'1 Données d''entrée'!$C$333),0))","v":0},{"$f":"IF(T992<'1 Données d''entrée'!$C$334+1+$B1051,0,IF(T992<'1 Données d''entrée'!$C$333+'1 Données d''entrée'!$C$334+1+$B1051,($I1042/'1 Données d''entrée'!$C$333),0))","v":0},{"$f":"IF(U992<'1 Données d''entrée'!$C$334+1+$B1051,0,IF(U992<'1 Données d''entrée'!$C$333+'1 Données d''entrée'!$C$334+1+$B1051,($I1042/'1 Données d''entrée'!$C$333),0))","v":0},{"$f":"IF(V992<'1 Données d''entrée'!$C$334+1+$B1051,0,IF(V992<'1 Données d''entrée'!$C$333+'1 Données d''entrée'!$C$334+1+$B1051,($I1042/'1 Données d''entrée'!$C$333),0))","v":0}]
[null,8,{"$f":"IF(C992<'1 Données d''entrée'!$C$334+1+$B1052,0,IF(C992<'1 Données d''entrée'!$C$333+'1 Données d''entrée'!$C$334+1+$B1052,($J1042/'1 Données d''entrée'!$C$333),0))","v":0},{"$f":"IF(D992<'1 Données d''entrée'!$C$334+1+$B1052,0,IF(D992<'1 Données d''entrée'!$C$333+'1 Données d''entrée'!$C$334+1+$B1052,($J1042/'1 Données d''entrée'!$C$333),0))","v":0},{"$f":"IF(E992<'1 Données d''entrée'!$C$334+1+$B1052,0,IF(E992<'1 Données d''entrée'!$C$333+'1 Données d''entrée'!$C$334+1+$B1052,($J1042/'1 Données d''entrée'!$C$333),0))","v":0},{"$f":"IF(F992<'1 Données d''entrée'!$C$334+1+$B1052,0,IF(F992<'1 Données d''entrée'!$C$333+'1 Données d''entrée'!$C$334+1+$B1052,($J1042/'1 Données d''entrée'!$C$333),0))","v":0},{"$f":"IF(G992<'1 Données d''entrée'!$C$334+1+$B1052,0,IF(G992<'1 Données d''entrée'!$C$333+'1 Données d''entrée'!$C$334+1+$B1052,($J1042/'1 Données d''entrée'!$C$333),0))","v":0},{"$f":"IF(H992<'1 Données d''entrée'!$C$334+1+$B1052,0,IF(H992<'1 Données d''entrée'!$C$333+'1 Données d''entrée'!$C$334+1+$B1052,($J1042/'1 Données d''entrée'!$C$333),0))","v":0},{"$f":"IF(I992<'1 Données d''entrée'!$C$334+1+$B1052,0,IF(I992<'1 Données d''entrée'!$C$333+'1 Données d''entrée'!$C$334+1+$B1052,($J1042/'1 Données d''entrée'!$C$333),0))","v":0},{"$f":"IF(J992<'1 Données d''entrée'!$C$334+1+$B1052,0,IF(J992<'1 Données d''entrée'!$C$333+'1 Données d''entrée'!$C$334+1+$B1052,($J1042/'1 Données d''entrée'!$C$333),0))","v":0},{"$f":"IF(K992<'1 Données d''entrée'!$C$334+1+$B1052,0,IF(K992<'1 Données d''entrée'!$C$333+'1 Données d''entrée'!$C$334+1+$B1052,($J1042/'1 Données d''entrée'!$C$333),0))","v":0},{"$f":"IF(L992<'1 Données d''entrée'!$C$334+1+$B1052,0,IF(L992<'1 Données d''entrée'!$C$333+'1 Données d''entrée'!$C$334+1+$B1052,($J1042/'1 Données d''entrée'!$C$333),0))","v":0},{"$f":"IF(M992<'1 Données d''entrée'!$C$334+1+$B1052,0,IF(M992<'1 Données d''entrée'!$C$333+'1 Données d''entrée'!$C$334+1+$B1052,($J1042/'1 Données d''entrée'!$C$333),0))","v":0},{"$f":"IF(N992<'1 Données d''entrée'!$C$334+1+$B1052,0,IF(N992<'1 Données d''entrée'!$C$333+'1 Données d''entrée'!$C$334+1+$B1052,($J1042/'1 Données d''entrée'!$C$333),0))","v":0},{"$f":"IF(O992<'1 Données d''entrée'!$C$334+1+$B1052,0,IF(O992<'1 Données d''entrée'!$C$333+'1 Données d''entrée'!$C$334+1+$B1052,($J1042/'1 Données d''entrée'!$C$333),0))","v":0},{"$f":"IF(P992<'1 Données d''entrée'!$C$334+1+$B1052,0,IF(P992<'1 Données d''entrée'!$C$333+'1 Données d''entrée'!$C$334+1+$B1052,($J1042/'1 Données d''entrée'!$C$333),0))","v":0},{"$f":"IF(Q992<'1 Données d''entrée'!$C$334+1+$B1052,0,IF(Q992<'1 Données d''entrée'!$C$333+'1 Données d''entrée'!$C$334+1+$B1052,($J1042/'1 Données d''entrée'!$C$333),0))","v":0},{"$f":"IF(R992<'1 Données d''entrée'!$C$334+1+$B1052,0,IF(R992<'1 Données d''entrée'!$C$333+'1 Données d''entrée'!$C$334+1+$B1052,($J1042/'1 Données d''entrée'!$C$333),0))","v":0},{"$f":"IF(S992<'1 Données d''entrée'!$C$334+1+$B1052,0,IF(S992<'1 Données d''entrée'!$C$333+'1 Données d''entrée'!$C$334+1+$B1052,($J1042/'1 Données d''entrée'!$C$333),0))","v":0},{"$f":"IF(T992<'1 Données d''entrée'!$C$334+1+$B1052,0,IF(T992<'1 Données d''entrée'!$C$333+'1 Données d''entrée'!$C$334+1+$B1052,($J1042/'1 Données d''entrée'!$C$333),0))","v":0},{"$f":"IF(U992<'1 Données d''entrée'!$C$334+1+$B1052,0,IF(U992<'1 Données d''entrée'!$C$333+'1 Données d''entrée'!$C$334+1+$B1052,($J1042/'1 Données d''entrée'!$C$333),0))","v":0},{"$f":"IF(V992<'1 Données d''entrée'!$C$334+1+$B1052,0,IF(V992<'1 Données d''entrée'!$C$333+'1 Données d''entrée'!$C$334+1+$B1052,($J1042/'1 Données d''entrée'!$C$333),0))","v":0}]
[null,9,{"$f":"IF(C992<'1 Données d''entrée'!$C$334+1+$B1053,0,IF(C992<'1 Données d''entrée'!$C$333+'1 Données d''entrée'!$C$334+1+$B1053,($K1042/'1 Données d''entrée'!$C$333),0))","v":0},{"$f":"IF(D992<'1 Données d''entrée'!$C$334+1+$B1053,0,IF(D992<'1 Données d''entrée'!$C$333+'1 Données d''entrée'!$C$334+1+$B1053,($K1042/'1 Données d''entrée'!$C$333),0))","v":0},{"$f":"IF(E992<'1 Données d''entrée'!$C$334+1+$B1053,0,IF(E992<'1 Données d''entrée'!$C$333+'1 Données d''entrée'!$C$334+1+$B1053,($K1042/'1 Données d''entrée'!$C$333),0))","v":0},{"$f":"IF(F992<'1 Données d''entrée'!$C$334+1+$B1053,0,IF(F992<'1 Données d''entrée'!$C$333+'1 Données d''entrée'!$C$334+1+$B1053,($K1042/'1 Données d''entrée'!$C$333),0))","v":0},{"$f":"IF(G992<'1 Données d''entrée'!$C$334+1+$B1053,0,IF(G992<'1 Données d''entrée'!$C$333+'1 Données d''entrée'!$C$334+1+$B1053,($K1042/'1 Données d''entrée'!$C$333),0))","v":0},{"$f":"IF(H992<'1 Données d''entrée'!$C$334+1+$B1053,0,IF(H992<'1 Données d''entrée'!$C$333+'1 Données d''entrée'!$C$334+1+$B1053,($K1042/'1 Données d''entrée'!$C$333),0))","v":0},{"$f":"IF(I992<'1 Données d''entrée'!$C$334+1+$B1053,0,IF(I992<'1 Données d''entrée'!$C$333+'1 Données d''entrée'!$C$334+1+$B1053,($K1042/'1 Données d''entrée'!$C$333),0))","v":0},{"$f":"IF(J992<'1 Données d''entrée'!$C$334+1+$B1053,0,IF(J992<'1 Données d''entrée'!$C$333+'1 Données d''entrée'!$C$334+1+$B1053,($K1042/'1 Données d''entrée'!$C$333),0))","v":0},{"$f":"IF(K992<'1 Données d''entrée'!$C$334+1+$B1053,0,IF(K992<'1 Données d''entrée'!$C$333+'1 Données d''entrée'!$C$334+1+$B1053,($K1042/'1 Données d''entrée'!$C$333),0))","v":0},{"$f":"IF(L992<'1 Données d''entrée'!$C$334+1+$B1053,0,IF(L992<'1 Données d''entrée'!$C$333+'1 Données d''entrée'!$C$334+1+$B1053,($K1042/'1 Données d''entrée'!$C$333),0))","v":0},{"$f":"IF(M992<'1 Données d''entrée'!$C$334+1+$B1053,0,IF(M992<'1 Données d''entrée'!$C$333+'1 Données d''entrée'!$C$334+1+$B1053,($K1042/'1 Données d''entrée'!$C$333),0))","v":0},{"$f":"IF(N992<'1 Données d''entrée'!$C$334+1+$B1053,0,IF(N992<'1 Données d''entrée'!$C$333+'1 Données d''entrée'!$C$334+1+$B1053,($K1042/'1 Données d''entrée'!$C$333),0))","v":0},{"$f":"IF(O992<'1 Données d''entrée'!$C$334+1+$B1053,0,IF(O992<'1 Données d''entrée'!$C$333+'1 Données d''entrée'!$C$334+1+$B1053,($K1042/'1 Données d''entrée'!$C$333),0))","v":0},{"$f":"IF(P992<'1 Données d''entrée'!$C$334+1+$B1053,0,IF(P992<'1 Données d''entrée'!$C$333+'1 Données d''entrée'!$C$334+1+$B1053,($K1042/'1 Données d''entrée'!$C$333),0))","v":0},{"$f":"IF(Q992<'1 Données d''entrée'!$C$334+1+$B1053,0,IF(Q992<'1 Données d''entrée'!$C$333+'1 Données d''entrée'!$C$334+1+$B1053,($K1042/'1 Données d''entrée'!$C$333),0))","v":0},{"$f":"IF(R992<'1 Données d''entrée'!$C$334+1+$B1053,0,IF(R992<'1 Données d''entrée'!$C$333+'1 Données d''entrée'!$C$334+1+$B1053,($K1042/'1 Données d''entrée'!$C$333),0))","v":0},{"$f":"IF(S992<'1 Données d''entrée'!$C$334+1+$B1053,0,IF(S992<'1 Données d''entrée'!$C$333+'1 Données d''entrée'!$C$334+1+$B1053,($K1042/'1 Données d''entrée'!$C$333),0))","v":0},{"$f":"IF(T992<'1 Données d''entrée'!$C$334+1+$B1053,0,IF(T992<'1 Données d''entrée'!$C$333+'1 Données d''entrée'!$C$334+1+$B1053,($K1042/'1 Données d''entrée'!$C$333),0))","v":0},{"$f":"IF(U992<'1 Données d''entrée'!$C$334+1+$B1053,0,IF(U992<'1 Données d''entrée'!$C$333+'1 Données d''entrée'!$C$334+1+$B1053,($K1042/'1 Données d''entrée'!$C$333),0))","v":0},{"$f":"IF(V992<'1 Données d''entrée'!$C$334+1+$B1053,0,IF(V992<'1 Données d''entrée'!$C$333+'1 Données d''entrée'!$C$334+1+$B1053,($K1042/'1 Données d''entrée'!$C$333),0))","v":0}]
[null,10,{"$f":"IF(C992<'1 Données d''entrée'!$C$334+1+$B1054,0,IF(C992<'1 Données d''entrée'!$C$333+'1 Données d''entrée'!$C$334+1+$B1054,($L1042/'1 Données d''entrée'!$C$333),0))","v":0},{"$f":"IF(D992<'1 Données d''entrée'!$C$334+1+$B1054,0,IF(D992<'1 Données d''entrée'!$C$333+'1 Données d''entrée'!$C$334+1+$B1054,($L1042/'1 Données d''entrée'!$C$333),0))","v":0},{"$f":"IF(E992<'1 Données d''entrée'!$C$334+1+$B1054,0,IF(E992<'1 Données d''entrée'!$C$333+'1 Données d''entrée'!$C$334+1+$B1054,($L1042/'1 Données d''entrée'!$C$333),0))","v":0},{"$f":"IF(F992<'1 Données d''entrée'!$C$334+1+$B1054,0,IF(F992<'1 Données d''entrée'!$C$333+'1 Données d''entrée'!$C$334+1+$B1054,($L1042/'1 Données d''entrée'!$C$333),0))","v":0},{"$f":"IF(G992<'1 Données d''entrée'!$C$334+1+$B1054,0,IF(G992<'1 Données d''entrée'!$C$333+'1 Données d''entrée'!$C$334+1+$B1054,($L1042/'1 Données d''entrée'!$C$333),0))","v":0},{"$f":"IF(H992<'1 Données d''entrée'!$C$334+1+$B1054,0,IF(H992<'1 Données d''entrée'!$C$333+'1 Données d''entrée'!$C$334+1+$B1054,($L1042/'1 Données d''entrée'!$C$333),0))","v":0},{"$f":"IF(I992<'1 Données d''entrée'!$C$334+1+$B1054,0,IF(I992<'1 Données d''entrée'!$C$333+'1 Données d''entrée'!$C$334+1+$B1054,($L1042/'1 Données d''entrée'!$C$333),0))","v":0},{"$f":"IF(J992<'1 Données d''entrée'!$C$334+1+$B1054,0,IF(J992<'1 Données d''entrée'!$C$333+'1 Données d''entrée'!$C$334+1+$B1054,($L1042/'1 Données d''entrée'!$C$333),0))","v":0},{"$f":"IF(K992<'1 Données d''entrée'!$C$334+1+$B1054,0,IF(K992<'1 Données d''entrée'!$C$333+'1 Données d''entrée'!$C$334+1+$B1054,($L1042/'1 Données d''entrée'!$C$333),0))","v":0},{"$f":"IF(L992<'1 Données d''entrée'!$C$334+1+$B1054,0,IF(L992<'1 Données d''entrée'!$C$333+'1 Données d''entrée'!$C$334+1+$B1054,($L1042/'1 Données d''entrée'!$C$333),0))","v":0},{"$f":"IF(M992<'1 Données d''entrée'!$C$334+1+$B1054,0,IF(M992<'1 Données d''entrée'!$C$333+'1 Données d''entrée'!$C$334+1+$B1054,($L1042/'1 Données d''entrée'!$C$333),0))","v":0},{"$f":"IF(N992<'1 Données d''entrée'!$C$334+1+$B1054,0,IF(N992<'1 Données d''entrée'!$C$333+'1 Données d''entrée'!$C$334+1+$B1054,($L1042/'1 Données d''entrée'!$C$333),0))","v":0},{"$f":"IF(O992<'1 Données d''entrée'!$C$334+1+$B1054,0,IF(O992<'1 Données d''entrée'!$C$333+'1 Données d''entrée'!$C$334+1+$B1054,($L1042/'1 Données d''entrée'!$C$333),0))","v":0},{"$f":"IF(P992<'1 Données d''entrée'!$C$334+1+$B1054,0,IF(P992<'1 Données d''entrée'!$C$333+'1 Données d''entrée'!$C$334+1+$B1054,($L1042/'1 Données d''entrée'!$C$333),0))","v":0},{"$f":"IF(Q992<'1 Données d''entrée'!$C$334+1+$B1054,0,IF(Q992<'1 Données d''entrée'!$C$333+'1 Données d''entrée'!$C$334+1+$B1054,($L1042/'1 Données d''entrée'!$C$333),0))","v":0},{"$f":"IF(R992<'1 Données d''entrée'!$C$334+1+$B1054,0,IF(R992<'1 Données d''entrée'!$C$333+'1 Données d''entrée'!$C$334+1+$B1054,($L1042/'1 Données d''entrée'!$C$333),0))","v":0},{"$f":"IF(S992<'1 Données d''entrée'!$C$334+1+$B1054,0,IF(S992<'1 Données d''entrée'!$C$333+'1 Données d''entrée'!$C$334+1+$B1054,($L1042/'1 Données d''entrée'!$C$333),0))","v":0},{"$f":"IF(T992<'1 Données d''entrée'!$C$334+1+$B1054,0,IF(T992<'1 Données d''entrée'!$C$333+'1 Données d''entrée'!$C$334+1+$B1054,($L1042/'1 Données d''entrée'!$C$333),0))","v":0},{"$f":"IF(U992<'1 Données d''entrée'!$C$334+1+$B1054,0,IF(U992<'1 Données d''entrée'!$C$333+'1 Données d''entrée'!$C$334+1+$B1054,($L1042/'1 Données d''entrée'!$C$333),0))","v":0},{"$f":"IF(V992<'1 Données d''entrée'!$C$334+1+$B1054,0,IF(V992<'1 Données d''entrée'!$C$333+'1 Données d''entrée'!$C$334+1+$B1054,($L1042/'1 Données d''entrée'!$C$333),0))","v":0}]
[null,"Période de prêt nouveau"]
["Paiement d'intérêts",0,0,0,0,0,0,0,0,0,0,0,0,0,0,0,0,0,0,0,0,0]
["Paiement d'intêrets",1,0,{"$f":"IF(C992<1+$B1044,0,IF(C992<'1 Données d''entrée'!$C$334+'1 Données d''entrée'!$C$333+1+$B1044,'1 Données d''entrée'!$C$332*($C1042-SUM($C1045:C1045)),0))","v":0},{"$f":"IF(D992<1+$B1044,0,IF(D992<'1 Données d''entrée'!$C$334+'1 Données d''entrée'!$C$333+1+$B1044,'1 Données d''entrée'!$C$332*($C1042-SUM($C1045:D1045)),0))","v":0},{"$f":"IF(E992<1+$B1044,0,IF(E992<'1 Données d''entrée'!$C$334+'1 Données d''entrée'!$C$333+1+$B1044,'1 Données d''entrée'!$C$332*($C1042-SUM($C1045:E1045)),0))","v":0},{"$f":"IF(F992<1+$B1044,0,IF(F992<'1 Données d''entrée'!$C$334+'1 Données d''entrée'!$C$333+1+$B1044,'1 Données d''entrée'!$C$332*($C1042-SUM($C1045:F1045)),0))","v":0},{"$f":"IF(G992<1+$B1044,0,IF(G992<'1 Données d''entrée'!$C$334+'1 Données d''entrée'!$C$333+1+$B1044,'1 Données d''entrée'!$C$332*($C1042-SUM($C1045:G1045)),0))","v":0},{"$f":"IF(H992<1+$B1044,0,IF(H992<'1 Données d''entrée'!$C$334+'1 Données d''entrée'!$C$333+1+$B1044,'1 Données d''entrée'!$C$332*($C1042-SUM($C1045:H1045)),0))","v":0},{"$f":"IF(I992<1+$B1044,0,IF(I992<'1 Données d''entrée'!$C$334+'1 Données d''entrée'!$C$333+1+$B1044,'1 Données d''entrée'!$C$332*($C1042-SUM($C1045:I1045)),0))","v":0},{"$f":"IF(J992<1+$B1044,0,IF(J992<'1 Données d''entrée'!$C$334+'1 Données d''entrée'!$C$333+1+$B1044,'1 Données d''entrée'!$C$332*($C1042-SUM($C1045:J1045)),0))","v":0},{"$f":"IF(K992<1+$B1044,0,IF(K992<'1 Données d''entrée'!$C$334+'1 Données d''entrée'!$C$333+1+$B1044,'1 Données d''entrée'!$C$332*($C1042-SUM($C1045:K1045)),0))","v":0},{"$f":"IF(L992<1+$B1044,0,IF(L992<'1 Données d''entrée'!$C$334+'1 Données d''entrée'!$C$333+1+$B1044,'1 Données d''entrée'!$C$332*($C1042-SUM($C1045:L1045)),0))","v":0},{"$f":"IF(M992<1+$B1044,0,IF(M992<'1 Données d''entrée'!$C$334+'1 Données d''entrée'!$C$333+1+$B1044,'1 Données d''entrée'!$C$332*($C1042-SUM($C1045:M1045)),0))","v":0},{"$f":"IF(N992<1+$B1044,0,IF(N992<'1 Données d''entrée'!$C$334+'1 Données d''entrée'!$C$333+1+$B1044,'1 Données d''entrée'!$C$332*($C1042-SUM($C1045:N1045)),0))","v":0},{"$f":"IF(O992<1+$B1044,0,IF(O992<'1 Données d''entrée'!$C$334+'1 Données d''entrée'!$C$333+1+$B1044,'1 Données d''entrée'!$C$332*($C1042-SUM($C1045:O1045)),0))","v":0},{"$f":"IF(P992<1+$B1044,0,IF(P992<'1 Données d''entrée'!$C$334+'1 Données d''entrée'!$C$333+1+$B1044,'1 Données d''entrée'!$C$332*($C1042-SUM($C1045:P1045)),0))","v":0},{"$f":"IF(Q992<1+$B1044,0,IF(Q992<'1 Données d''entrée'!$C$334+'1 Données d''entrée'!$C$333+1+$B1044,'1 Données d''entrée'!$C$332*($C1042-SUM($C1045:Q1045)),0))","v":0},{"$f":"IF(R992<1+$B1044,0,IF(R992<'1 Données d''entrée'!$C$334+'1 Données d''entrée'!$C$333+1+$B1044,'1 Données d''entrée'!$C$332*($C1042-SUM($C1045:R1045)),0))","v":0},{"$f":"IF(S992<1+$B1044,0,IF(S992<'1 Données d''entrée'!$C$334+'1 Données d''entrée'!$C$333+1+$B1044,'1 Données d''entrée'!$C$332*($C1042-SUM($C1045:S1045)),0))","v":0},{"$f":"IF(T992<1+$B1044,0,IF(T992<'1 Données d''entrée'!$C$334+'1 Données d''entrée'!$C$333+1+$B1044,'1 Données d''entrée'!$C$332*($C1042-SUM($C1045:T1045)),0))","v":0},{"$f":"IF(U992<1+$B1044,0,IF(U992<'1 Données d''entrée'!$C$334+'1 Données d''entrée'!$C$333+1+$B1044,'1 Données d''entrée'!$C$332*($C1042-SUM($C1045:U1045)),0))","v":0}]
["Paiement d'intêrets",2,0,{"$f":"IF(C992<1+$B1045,0,IF(C992<'1 Données d''entrée'!$C$334+'1 Données d''entrée'!$C$333+1+$B1045,'1 Données d''entrée'!$C$332*($D1042-SUM($C1046:C1046)),0))","v":0},{"$f":"IF(D992<1+$B1045,0,IF(D992<'1 Données d''entrée'!$C$334+'1 Données d''entrée'!$C$333+1+$B1045,'1 Données d''entrée'!$C$332*($D1042-SUM($C1046:D1046)),0))","v":0},{"$f":"IF(E992<1+$B1045,0,IF(E992<'1 Données d''entrée'!$C$334+'1 Données d''entrée'!$C$333+1+$B1045,'1 Données d''entrée'!$C$332*($D1042-SUM($C1046:E1046)),0))","v":0},{"$f":"IF(F992<1+$B1045,0,IF(F992<'1 Données d''entrée'!$C$334+'1 Données d''entrée'!$C$333+1+$B1045,'1 Données d''entrée'!$C$332*($D1042-SUM($C1046:F1046)),0))","v":0},{"$f":"IF(G992<1+$B1045,0,IF(G992<'1 Données d''entrée'!$C$334+'1 Données d''entrée'!$C$333+1+$B1045,'1 Données d''entrée'!$C$332*($D1042-SUM($C1046:G1046)),0))","v":0},{"$f":"IF(H992<1+$B1045,0,IF(H992<'1 Données d''entrée'!$C$334+'1 Données d''entrée'!$C$333+1+$B1045,'1 Données d''entrée'!$C$332*($D1042-SUM($C1046:H1046)),0))","v":0},{"$f":"IF(I992<1+$B1045,0,IF(I992<'1 Données d''entrée'!$C$334+'1 Données d''entrée'!$C$333+1+$B1045,'1 Données d''entrée'!$C$332*($D1042-SUM($C1046:I1046)),0))","v":0},{"$f":"IF(J992<1+$B1045,0,IF(J992<'1 Données d''entrée'!$C$334+'1 Données d''entrée'!$C$333+1+$B1045,'1 Données d''entrée'!$C$332*($D1042-SUM($C1046:J1046)),0))","v":0},{"$f":"IF(K992<1+$B1045,0,IF(K992<'1 Données d''entrée'!$C$334+'1 Données d''entrée'!$C$333+1+$B1045,'1 Données d''entrée'!$C$332*($D1042-SUM($C1046:K1046)),0))","v":0},{"$f":"IF(L992<1+$B1045,0,IF(L992<'1 Données d''entrée'!$C$334+'1 Données d''entrée'!$C$333+1+$B1045,'1 Données d''entrée'!$C$332*($D1042-SUM($C1046:L1046)),0))","v":0},{"$f":"IF(M992<1+$B1045,0,IF(M992<'1 Données d''entrée'!$C$334+'1 Données d''entrée'!$C$333+1+$B1045,'1 Données d''entrée'!$C$332*($D1042-SUM($C1046:M1046)),0))","v":0},{"$f":"IF(N992<1+$B1045,0,IF(N992<'1 Données d''entrée'!$C$334+'1 Données d''entrée'!$C$333+1+$B1045,'1 Données d''entrée'!$C$332*($D1042-SUM($C1046:N1046)),0))","v":0},{"$f":"IF(O992<1+$B1045,0,IF(O992<'1 Données d''entrée'!$C$334+'1 Données d''entrée'!$C$333+1+$B1045,'1 Données d''entrée'!$C$332*($D1042-SUM($C1046:O1046)),0))","v":0},{"$f":"IF(P992<1+$B1045,0,IF(P992<'1 Données d''entrée'!$C$334+'1 Données d''entrée'!$C$333+1+$B1045,'1 Données d''entrée'!$C$332*($D1042-SUM($C1046:P1046)),0))","v":0},{"$f":"IF(Q992<1+$B1045,0,IF(Q992<'1 Données d''entrée'!$C$334+'1 Données d''entrée'!$C$333+1+$B1045,'1 Données d''entrée'!$C$332*($D1042-SUM($C1046:Q1046)),0))","v":0},{"$f":"IF(R992<1+$B1045,0,IF(R992<'1 Données d''entrée'!$C$334+'1 Données d''entrée'!$C$333+1+$B1045,'1 Données d''entrée'!$C$332*($D1042-SUM($C1046:R1046)),0))","v":0},{"$f":"IF(S992<1+$B1045,0,IF(S992<'1 Données d''entrée'!$C$334+'1 Données d''entrée'!$C$333+1+$B1045,'1 Données d''entrée'!$C$332*($D1042-SUM($C1046:S1046)),0))","v":0},{"$f":"IF(T992<1+$B1045,0,IF(T992<'1 Données d''entrée'!$C$334+'1 Données d''entrée'!$C$333+1+$B1045,'1 Données d''entrée'!$C$332*($D1042-SUM($C1046:T1046)),0))","v":0},{"$f":"IF(U992<1+$B1045,0,IF(U992<'1 Données d''entrée'!$C$334+'1 Données d''entrée'!$C$333+1+$B1045,'1 Données d''entrée'!$C$332*($D1042-SUM($C1046:U1046)),0))","v":0}]
["Paiement d'intêrets",3,0,{"$f":"IF(C992<1+$B1046,0,IF(C992<'1 Données d''entrée'!$C$334+'1 Données d''entrée'!$C$333+1+$B1046,'1 Données d''entrée'!$C$332*($E1042-SUM($C1047:C1047)),0))","v":0},{"$f":"IF(D992<1+$B1046,0,IF(D992<'1 Données d''entrée'!$C$334+'1 Données d''entrée'!$C$333+1+$B1046,'1 Données d''entrée'!$C$332*($E1042-SUM($C1047:D1047)),0))","v":0},{"$f":"IF(E992<1+$B1046,0,IF(E992<'1 Données d''entrée'!$C$334+'1 Données d''entrée'!$C$333+1+$B1046,'1 Données d''entrée'!$C$332*($E1042-SUM($C1047:E1047)),0))","v":0},{"$f":"IF(F992<1+$B1046,0,IF(F992<'1 Données d''entrée'!$C$334+'1 Données d''entrée'!$C$333+1+$B1046,'1 Données d''entrée'!$C$332*($E1042-SUM($C1047:F1047)),0))","v":0},{"$f":"IF(G992<1+$B1046,0,IF(G992<'1 Données d''entrée'!$C$334+'1 Données d''entrée'!$C$333+1+$B1046,'1 Données d''entrée'!$C$332*($E1042-SUM($C1047:G1047)),0))","v":0},{"$f":"IF(H992<1+$B1046,0,IF(H992<'1 Données d''entrée'!$C$334+'1 Données d''entrée'!$C$333+1+$B1046,'1 Données d''entrée'!$C$332*($E1042-SUM($C1047:H1047)),0))","v":0},{"$f":"IF(I992<1+$B1046,0,IF(I992<'1 Données d''entrée'!$C$334+'1 Données d''entrée'!$C$333+1+$B1046,'1 Données d''entrée'!$C$332*($E1042-SUM($C1047:I1047)),0))","v":0},{"$f":"IF(J992<1+$B1046,0,IF(J992<'1 Données d''entrée'!$C$334+'1 Données d''entrée'!$C$333+1+$B1046,'1 Données d''entrée'!$C$332*($E1042-SUM($C1047:J1047)),0))","v":0},{"$f":"IF(K992<1+$B1046,0,IF(K992<'1 Données d''entrée'!$C$334+'1 Données d''entrée'!$C$333+1+$B1046,'1 Données d''entrée'!$C$332*($E1042-SUM($C1047:K1047)),0))","v":0},{"$f":"IF(L992<1+$B1046,0,IF(L992<'1 Données d''entrée'!$C$334+'1 Données d''entrée'!$C$333+1+$B1046,'1 Données d''entrée'!$C$332*($E1042-SUM($C1047:L1047)),0))","v":0},{"$f":"IF(M992<1+$B1046,0,IF(M992<'1 Données d''entrée'!$C$334+'1 Données d''entrée'!$C$333+1+$B1046,'1 Données d''entrée'!$C$332*($E1042-SUM($C1047:M1047)),0))","v":0},{"$f":"IF(N992<1+$B1046,0,IF(N992<'1 Données d''entrée'!$C$334+'1 Données d''entrée'!$C$333+1+$B1046,'1 Données d''entrée'!$C$332*($E1042-SUM($C1047:N1047)),0))","v":0},{"$f":"IF(O992<1+$B1046,0,IF(O992<'1 Données d''entrée'!$C$334+'1 Données d''entrée'!$C$333+1+$B1046,'1 Données d''entrée'!$C$332*($E1042-SUM($C1047:O1047)),0))","v":0},{"$f":"IF(P992<1+$B1046,0,IF(P992<'1 Données d''entrée'!$C$334+'1 Données d''entrée'!$C$333+1+$B1046,'1 Données d''entrée'!$C$332*($E1042-SUM($C1047:P1047)),0))","v":0},{"$f":"IF(Q992<1+$B1046,0,IF(Q992<'1 Données d''entrée'!$C$334+'1 Données d''entrée'!$C$333+1+$B1046,'1 Données d''entrée'!$C$332*($E1042-SUM($C1047:Q1047)),0))","v":0},{"$f":"IF(R992<1+$B1046,0,IF(R992<'1 Données d''entrée'!$C$334+'1 Données d''entrée'!$C$333+1+$B1046,'1 Données d''entrée'!$C$332*($E1042-SUM($C1047:R1047)),0))","v":0},{"$f":"IF(S992<1+$B1046,0,IF(S992<'1 Données d''entrée'!$C$334+'1 Données d''entrée'!$C$333+1+$B1046,'1 Données d''entrée'!$C$332*($E1042-SUM($C1047:S1047)),0))","v":0},{"$f":"IF(T992<1+$B1046,0,IF(T992<'1 Données d''entrée'!$C$334+'1 Données d''entrée'!$C$333+1+$B1046,'1 Données d''entrée'!$C$332*($E1042-SUM($C1047:T1047)),0))","v":0},{"$f":"IF(U992<1+$B1046,0,IF(U992<'1 Données d''entrée'!$C$334+'1 Données d''entrée'!$C$333+1+$B1046,'1 Données d''entrée'!$C$332*($E1042-SUM($C1047:U1047)),0))","v":0}]
["Paiement d'intêrets",4,0,{"$f":"IF(C992<1+$B1047,0,IF(C992<'1 Données d''entrée'!$C$334+'1 Données d''entrée'!$C$333+1+$B1047,'1 Données d''entrée'!$C$332*($F1042-SUM($C1048:C1048)),0))","v":0},{"$f":"IF(D992<1+$B1047,0,IF(D992<'1 Données d''entrée'!$C$334+'1 Données d''entrée'!$C$333+1+$B1047,'1 Données d''entrée'!$C$332*($F1042-SUM($C1048:D1048)),0))","v":0},{"$f":"IF(E992<1+$B1047,0,IF(E992<'1 Données d''entrée'!$C$334+'1 Données d''entrée'!$C$333+1+$B1047,'1 Données d''entrée'!$C$332*($F1042-SUM($C1048:E1048)),0))","v":0},{"$f":"IF(F992<1+$B1047,0,IF(F992<'1 Données d''entrée'!$C$334+'1 Données d''entrée'!$C$333+1+$B1047,'1 Données d''entrée'!$C$332*($F1042-SUM($C1048:F1048)),0))","v":0},{"$f":"IF(G992<1+$B1047,0,IF(G992<'1 Données d''entrée'!$C$334+'1 Données d''entrée'!$C$333+1+$B1047,'1 Données d''entrée'!$C$332*($F1042-SUM($C1048:G1048)),0))","v":0},{"$f":"IF(H992<1+$B1047,0,IF(H992<'1 Données d''entrée'!$C$334+'1 Données d''entrée'!$C$333+1+$B1047,'1 Données d''entrée'!$C$332*($F1042-SUM($C1048:H1048)),0))","v":0},{"$f":"IF(I992<1+$B1047,0,IF(I992<'1 Données d''entrée'!$C$334+'1 Données d''entrée'!$C$333+1+$B1047,'1 Données d''entrée'!$C$332*($F1042-SUM($C1048:I1048)),0))","v":0},{"$f":"IF(J992<1+$B1047,0,IF(J992<'1 Données d''entrée'!$C$334+'1 Données d''entrée'!$C$333+1+$B1047,'1 Données d''entrée'!$C$332*($F1042-SUM($C1048:J1048)),0))","v":0},{"$f":"IF(K992<1+$B1047,0,IF(K992<'1 Données d''entrée'!$C$334+'1 Données d''entrée'!$C$333+1+$B1047,'1 Données d''entrée'!$C$332*($F1042-SUM($C1048:K1048)),0))","v":0},{"$f":"IF(L992<1+$B1047,0,IF(L992<'1 Données d''entrée'!$C$334+'1 Données d''entrée'!$C$333+1+$B1047,'1 Données d''entrée'!$C$332*($F1042-SUM($C1048:L1048)),0))","v":0},{"$f":"IF(M992<1+$B1047,0,IF(M992<'1 Données d''entrée'!$C$334+'1 Données d''entrée'!$C$333+1+$B1047,'1 Données d''entrée'!$C$332*($F1042-SUM($C1048:M1048)),0))","v":0},{"$f":"IF(N992<1+$B1047,0,IF(N992<'1 Données d''entrée'!$C$334+'1 Données d''entrée'!$C$333+1+$B1047,'1 Données d''entrée'!$C$332*($F1042-SUM($C1048:N1048)),0))","v":0},{"$f":"IF(O992<1+$B1047,0,IF(O992<'1 Données d''entrée'!$C$334+'1 Données d''entrée'!$C$333+1+$B1047,'1 Données d''entrée'!$C$332*($F1042-SUM($C1048:O1048)),0))","v":0},{"$f":"IF(P992<1+$B1047,0,IF(P992<'1 Données d''entrée'!$C$334+'1 Données d''entrée'!$C$333+1+$B1047,'1 Données d''entrée'!$C$332*($F1042-SUM($C1048:P1048)),0))","v":0},{"$f":"IF(Q992<1+$B1047,0,IF(Q992<'1 Données d''entrée'!$C$334+'1 Données d''entrée'!$C$333+1+$B1047,'1 Données d''entrée'!$C$332*($F1042-SUM($C1048:Q1048)),0))","v":0},{"$f":"IF(R992<1+$B1047,0,IF(R992<'1 Données d''entrée'!$C$334+'1 Données d''entrée'!$C$333+1+$B1047,'1 Données d''entrée'!$C$332*($F1042-SUM($C1048:R1048)),0))","v":0},{"$f":"IF(S992<1+$B1047,0,IF(S992<'1 Données d''entrée'!$C$334+'1 Données d''entrée'!$C$333+1+$B1047,'1 Données d''entrée'!$C$332*($F1042-SUM($C1048:S1048)),0))","v":0},{"$f":"IF(T992<1+$B1047,0,IF(T992<'1 Données d''entrée'!$C$334+'1 Données d''entrée'!$C$333+1+$B1047,'1 Données d''entrée'!$C$332*($F1042-SUM($C1048:T1048)),0))","v":0},{"$f":"IF(U992<1+$B1047,0,IF(U992<'1 Données d''entrée'!$C$334+'1 Données d''entrée'!$C$333+1+$B1047,'1 Données d''entrée'!$C$332*($F1042-SUM($C1048:U1048)),0))","v":0}]
["Paiement d'intêrets",5,0,{"$f":"IF(C992<1+$B1048,0,IF(C992<'1 Données d''entrée'!$C$334+'1 Données d''entrée'!$C$333+1+$B1048,'1 Données d''entrée'!$C$332*($G1042-SUM($C1049:C1049)),0))","v":0},{"$f":"IF(D992<1+$B1048,0,IF(D992<'1 Données d''entrée'!$C$334+'1 Données d''entrée'!$C$333+1+$B1048,'1 Données d''entrée'!$C$332*($G1042-SUM($C1049:D1049)),0))","v":0},{"$f":"IF(E992<1+$B1048,0,IF(E992<'1 Données d''entrée'!$C$334+'1 Données d''entrée'!$C$333+1+$B1048,'1 Données d''entrée'!$C$332*($G1042-SUM($C1049:E1049)),0))","v":0},{"$f":"IF(F992<1+$B1048,0,IF(F992<'1 Données d''entrée'!$C$334+'1 Données d''entrée'!$C$333+1+$B1048,'1 Données d''entrée'!$C$332*($G1042-SUM($C1049:F1049)),0))","v":0},{"$f":"IF(G992<1+$B1048,0,IF(G992<'1 Données d''entrée'!$C$334+'1 Données d''entrée'!$C$333+1+$B1048,'1 Données d''entrée'!$C$332*($G1042-SUM($C1049:G1049)),0))","v":0},{"$f":"IF(H992<1+$B1048,0,IF(H992<'1 Données d''entrée'!$C$334+'1 Données d''entrée'!$C$333+1+$B1048,'1 Données d''entrée'!$C$332*($G1042-SUM($C1049:H1049)),0))","v":0},{"$f":"IF(I992<1+$B1048,0,IF(I992<'1 Données d''entrée'!$C$334+'1 Données d''entrée'!$C$333+1+$B1048,'1 Données d''entrée'!$C$332*($G1042-SUM($C1049:I1049)),0))","v":0},{"$f":"IF(J992<1+$B1048,0,IF(J992<'1 Données d''entrée'!$C$334+'1 Données d''entrée'!$C$333+1+$B1048,'1 Données d''entrée'!$C$332*($G1042-SUM($C1049:J1049)),0))","v":0},{"$f":"IF(K992<1+$B1048,0,IF(K992<'1 Données d''entrée'!$C$334+'1 Données d''entrée'!$C$333+1+$B1048,'1 Données d''entrée'!$C$332*($G1042-SUM($C1049:K1049)),0))","v":0},{"$f":"IF(L992<1+$B1048,0,IF(L992<'1 Données d''entrée'!$C$334+'1 Données d''entrée'!$C$333+1+$B1048,'1 Données d''entrée'!$C$332*($G1042-SUM($C1049:L1049)),0))","v":0},{"$f":"IF(M992<1+$B1048,0,IF(M992<'1 Données d''entrée'!$C$334+'1 Données d''entrée'!$C$333+1+$B1048,'1 Données d''entrée'!$C$332*($G1042-SUM($C1049:M1049)),0))","v":0},{"$f":"IF(N992<1+$B1048,0,IF(N992<'1 Données d''entrée'!$C$334+'1 Données d''entrée'!$C$333+1+$B1048,'1 Données d''entrée'!$C$332*($G1042-SUM($C1049:N1049)),0))","v":0},{"$f":"IF(O992<1+$B1048,0,IF(O992<'1 Données d''entrée'!$C$334+'1 Données d''entrée'!$C$333+1+$B1048,'1 Données d''entrée'!$C$332*($G1042-SUM($C1049:O1049)),0))","v":0},{"$f":"IF(P992<1+$B1048,0,IF(P992<'1 Données d''entrée'!$C$334+'1 Données d''entrée'!$C$333+1+$B1048,'1 Données d''entrée'!$C$332*($G1042-SUM($C1049:P1049)),0))","v":0},{"$f":"IF(Q992<1+$B1048,0,IF(Q992<'1 Données d''entrée'!$C$334+'1 Données d''entrée'!$C$333+1+$B1048,'1 Données d''entrée'!$C$332*($G1042-SUM($C1049:Q1049)),0))","v":0},{"$f":"IF(R992<1+$B1048,0,IF(R992<'1 Données d''entrée'!$C$334+'1 Données d''entrée'!$C$333+1+$B1048,'1 Données d''entrée'!$C$332*($G1042-SUM($C1049:R1049)),0))","v":0},{"$f":"IF(S992<1+$B1048,0,IF(S992<'1 Données d''entrée'!$C$334+'1 Données d''entrée'!$C$333+1+$B1048,'1 Données d''entrée'!$C$332*($G1042-SUM($C1049:S1049)),0))","v":0},{"$f":"IF(T992<1+$B1048,0,IF(T992<'1 Données d''entrée'!$C$334+'1 Données d''entrée'!$C$333+1+$B1048,'1 Données d''entrée'!$C$332*($G1042-SUM($C1049:T1049)),0))","v":0},{"$f":"IF(U992<1+$B1048,0,IF(U992<'1 Données d''entrée'!$C$334+'1 Données d''entrée'!$C$333+1+$B1048,'1 Données d''entrée'!$C$332*($G1042-SUM($C1049:U1049)),0))","v":0}]
["Paiement d'intêrets",6,0,{"$f":"IF(C992<1+$B1049,0,IF(C992<'1 Données d''entrée'!$C$334+'1 Données d''entrée'!$C$333+1+$B1049,'1 Données d''entrée'!$C$332*($H1042-SUM($C1050:C1050)),0))","v":0},{"$f":"IF(D992<1+$B1049,0,IF(D992<'1 Données d''entrée'!$C$334+'1 Données d''entrée'!$C$333+1+$B1049,'1 Données d''entrée'!$C$332*($H1042-SUM($C1050:D1050)),0))","v":0},{"$f":"IF(E992<1+$B1049,0,IF(E992<'1 Données d''entrée'!$C$334+'1 Données d''entrée'!$C$333+1+$B1049,'1 Données d''entrée'!$C$332*($H1042-SUM($C1050:E1050)),0))","v":0},{"$f":"IF(F992<1+$B1049,0,IF(F992<'1 Données d''entrée'!$C$334+'1 Données d''entrée'!$C$333+1+$B1049,'1 Données d''entrée'!$C$332*($H1042-SUM($C1050:F1050)),0))","v":0},{"$f":"IF(G992<1+$B1049,0,IF(G992<'1 Données d''entrée'!$C$334+'1 Données d''entrée'!$C$333+1+$B1049,'1 Données d''entrée'!$C$332*($H1042-SUM($C1050:G1050)),0))","v":0},{"$f":"IF(H992<1+$B1049,0,IF(H992<'1 Données d''entrée'!$C$334+'1 Données d''entrée'!$C$333+1+$B1049,'1 Données d''entrée'!$C$332*($H1042-SUM($C1050:H1050)),0))","v":0},{"$f":"IF(I992<1+$B1049,0,IF(I992<'1 Données d''entrée'!$C$334+'1 Données d''entrée'!$C$333+1+$B1049,'1 Données d''entrée'!$C$332*($H1042-SUM($C1050:I1050)),0))","v":0},{"$f":"IF(J992<1+$B1049,0,IF(J992<'1 Données d''entrée'!$C$334+'1 Données d''entrée'!$C$333+1+$B1049,'1 Données d''entrée'!$C$332*($H1042-SUM($C1050:J1050)),0))","v":0},{"$f":"IF(K992<1+$B1049,0,IF(K992<'1 Données d''entrée'!$C$334+'1 Données d''entrée'!$C$333+1+$B1049,'1 Données d''entrée'!$C$332*($H1042-SUM($C1050:K1050)),0))","v":0},{"$f":"IF(L992<1+$B1049,0,IF(L992<'1 Données d''entrée'!$C$334+'1 Données d''entrée'!$C$333+1+$B1049,'1 Données d''entrée'!$C$332*($H1042-SUM($C1050:L1050)),0))","v":0},{"$f":"IF(M992<1+$B1049,0,IF(M992<'1 Données d''entrée'!$C$334+'1 Données d''entrée'!$C$333+1+$B1049,'1 Données d''entrée'!$C$332*($H1042-SUM($C1050:M1050)),0))","v":0},{"$f":"IF(N992<1+$B1049,0,IF(N992<'1 Données d''entrée'!$C$334+'1 Données d''entrée'!$C$333+1+$B1049,'1 Données d''entrée'!$C$332*($H1042-SUM($C1050:N1050)),0))","v":0},{"$f":"IF(O992<1+$B1049,0,IF(O992<'1 Données d''entrée'!$C$334+'1 Données d''entrée'!$C$333+1+$B1049,'1 Données d''entrée'!$C$332*($H1042-SUM($C1050:O1050)),0))","v":0},{"$f":"IF(P992<1+$B1049,0,IF(P992<'1 Données d''entrée'!$C$334+'1 Données d''entrée'!$C$333+1+$B1049,'1 Données d''entrée'!$C$332*($H1042-SUM($C1050:P1050)),0))","v":0},{"$f":"IF(Q992<1+$B1049,0,IF(Q992<'1 Données d''entrée'!$C$334+'1 Données d''entrée'!$C$333+1+$B1049,'1 Données d''entrée'!$C$332*($H1042-SUM($C1050:Q1050)),0))","v":0},{"$f":"IF(R992<1+$B1049,0,IF(R992<'1 Données d''entrée'!$C$334+'1 Données d''entrée'!$C$333+1+$B1049,'1 Données d''entrée'!$C$332*($H1042-SUM($C1050:R1050)),0))","v":0},{"$f":"IF(S992<1+$B1049,0,IF(S992<'1 Données d''entrée'!$C$334+'1 Données d''entrée'!$C$333+1+$B1049,'1 Données d''entrée'!$C$332*($H1042-SUM($C1050:S1050)),0))","v":0},{"$f":"IF(T992<1+$B1049,0,IF(T992<'1 Données d''entrée'!$C$334+'1 Données d''entrée'!$C$333+1+$B1049,'1 Données d''entrée'!$C$332*($H1042-SUM($C1050:T1050)),0))","v":0},{"$f":"IF(U992<1+$B1049,0,IF(U992<'1 Données d''entrée'!$C$334+'1 Données d''entrée'!$C$333+1+$B1049,'1 Données d''entrée'!$C$332*($H1042-SUM($C1050:U1050)),0))","v":0}]
["Paiement d'intêrets",7,0,{"$f":"IF(C992<1+$B1050,0,IF(C992<'1 Données d''entrée'!$C$334+'1 Données d''entrée'!$C$333+1+$B1050,'1 Données d''entrée'!$C$332*($I1042-SUM($C1051:C1051)),0))","v":0},{"$f":"IF(D992<1+$B1050,0,IF(D992<'1 Données d''entrée'!$C$334+'1 Données d''entrée'!$C$333+1+$B1050,'1 Données d''entrée'!$C$332*($I1042-SUM($C1051:D1051)),0))","v":0},{"$f":"IF(E992<1+$B1050,0,IF(E992<'1 Données d''entrée'!$C$334+'1 Données d''entrée'!$C$333+1+$B1050,'1 Données d''entrée'!$C$332*($I1042-SUM($C1051:E1051)),0))","v":0},{"$f":"IF(F992<1+$B1050,0,IF(F992<'1 Données d''entrée'!$C$334+'1 Données d''entrée'!$C$333+1+$B1050,'1 Données d''entrée'!$C$332*($I1042-SUM($C1051:F1051)),0))","v":0},{"$f":"IF(G992<1+$B1050,0,IF(G992<'1 Données d''entrée'!$C$334+'1 Données d''entrée'!$C$333+1+$B1050,'1 Données d''entrée'!$C$332*($I1042-SUM($C1051:G1051)),0))","v":0},{"$f":"IF(H992<1+$B1050,0,IF(H992<'1 Données d''entrée'!$C$334+'1 Données d''entrée'!$C$333+1+$B1050,'1 Données d''entrée'!$C$332*($I1042-SUM($C1051:H1051)),0))","v":0},{"$f":"IF(I992<1+$B1050,0,IF(I992<'1 Données d''entrée'!$C$334+'1 Données d''entrée'!$C$333+1+$B1050,'1 Données d''entrée'!$C$332*($I1042-SUM($C1051:I1051)),0))","v":0},{"$f":"IF(J992<1+$B1050,0,IF(J992<'1 Données d''entrée'!$C$334+'1 Données d''entrée'!$C$333+1+$B1050,'1 Données d''entrée'!$C$332*($I1042-SUM($C1051:J1051)),0))","v":0},{"$f":"IF(K992<1+$B1050,0,IF(K992<'1 Données d''entrée'!$C$334+'1 Données d''entrée'!$C$333+1+$B1050,'1 Données d''entrée'!$C$332*($I1042-SUM($C1051:K1051)),0))","v":0},{"$f":"IF(L992<1+$B1050,0,IF(L992<'1 Données d''entrée'!$C$334+'1 Données d''entrée'!$C$333+1+$B1050,'1 Données d''entrée'!$C$332*($I1042-SUM($C1051:L1051)),0))","v":0},{"$f":"IF(M992<1+$B1050,0,IF(M992<'1 Données d''entrée'!$C$334+'1 Données d''entrée'!$C$333+1+$B1050,'1 Données d''entrée'!$C$332*($I1042-SUM($C1051:M1051)),0))","v":0},{"$f":"IF(N992<1+$B1050,0,IF(N992<'1 Données d''entrée'!$C$334+'1 Données d''entrée'!$C$333+1+$B1050,'1 Données d''entrée'!$C$332*($I1042-SUM($C1051:N1051)),0))","v":0},{"$f":"IF(O992<1+$B1050,0,IF(O992<'1 Données d''entrée'!$C$334+'1 Données d''entrée'!$C$333+1+$B1050,'1 Données d''entrée'!$C$332*($I1042-SUM($C1051:O1051)),0))","v":0},{"$f":"IF(P992<1+$B1050,0,IF(P992<'1 Données d''entrée'!$C$334+'1 Données d''entrée'!$C$333+1+$B1050,'1 Données d''entrée'!$C$332*($I1042-SUM($C1051:P1051)),0))","v":0},{"$f":"IF(Q992<1+$B1050,0,IF(Q992<'1 Données d''entrée'!$C$334+'1 Données d''entrée'!$C$333+1+$B1050,'1 Données d''entrée'!$C$332*($I1042-SUM($C1051:Q1051)),0))","v":0},{"$f":"IF(R992<1+$B1050,0,IF(R992<'1 Données d''entrée'!$C$334+'1 Données d''entrée'!$C$333+1+$B1050,'1 Données d''entrée'!$C$332*($I1042-SUM($C1051:R1051)),0))","v":0},{"$f":"IF(S992<1+$B1050,0,IF(S992<'1 Données d''entrée'!$C$334+'1 Données d''entrée'!$C$333+1+$B1050,'1 Données d''entrée'!$C$332*($I1042-SUM($C1051:S1051)),0))","v":0},{"$f":"IF(T992<1+$B1050,0,IF(T992<'1 Données d''entrée'!$C$334+'1 Données d''entrée'!$C$333+1+$B1050,'1 Données d''entrée'!$C$332*($I1042-SUM($C1051:T1051)),0))","v":0},{"$f":"IF(U992<1+$B1050,0,IF(U992<'1 Données d''entrée'!$C$334+'1 Données d''entrée'!$C$333+1+$B1050,'1 Données d''entrée'!$C$332*($I1042-SUM($C1051:U1051)),0))","v":0}]
["Paiement d'intêrets",8,0,{"$f":"IF(C992<1+$B1051,0,IF(C992<'1 Données d''entrée'!$C$334+'1 Données d''entrée'!$C$333+1+$B1051,'1 Données d''entrée'!$C$332*($J1042-SUM($C1052:C1052)),0))","v":0},{"$f":"IF(D992<1+$B1051,0,IF(D992<'1 Données d''entrée'!$C$334+'1 Données d''entrée'!$C$333+1+$B1051,'1 Données d''entrée'!$C$332*($J1042-SUM($C1052:D1052)),0))","v":0},{"$f":"IF(E992<1+$B1051,0,IF(E992<'1 Données d''entrée'!$C$334+'1 Données d''entrée'!$C$333+1+$B1051,'1 Données d''entrée'!$C$332*($J1042-SUM($C1052:E1052)),0))","v":0},{"$f":"IF(F992<1+$B1051,0,IF(F992<'1 Données d''entrée'!$C$334+'1 Données d''entrée'!$C$333+1+$B1051,'1 Données d''entrée'!$C$332*($J1042-SUM($C1052:F1052)),0))","v":0},{"$f":"IF(G992<1+$B1051,0,IF(G992<'1 Données d''entrée'!$C$334+'1 Données d''entrée'!$C$333+1+$B1051,'1 Données d''entrée'!$C$332*($J1042-SUM($C1052:G1052)),0))","v":0},{"$f":"IF(H992<1+$B1051,0,IF(H992<'1 Données d''entrée'!$C$334+'1 Données d''entrée'!$C$333+1+$B1051,'1 Données d''entrée'!$C$332*($J1042-SUM($C1052:H1052)),0))","v":0},{"$f":"IF(I992<1+$B1051,0,IF(I992<'1 Données d''entrée'!$C$334+'1 Données d''entrée'!$C$333+1+$B1051,'1 Données d''entrée'!$C$332*($J1042-SUM($C1052:I1052)),0))","v":0},{"$f":"IF(J992<1+$B1051,0,IF(J992<'1 Données d''entrée'!$C$334+'1 Données d''entrée'!$C$333+1+$B1051,'1 Données d''entrée'!$C$332*($J1042-SUM($C1052:J1052)),0))","v":0},{"$f":"IF(K992<1+$B1051,0,IF(K992<'1 Données d''entrée'!$C$334+'1 Données d''entrée'!$C$333+1+$B1051,'1 Données d''entrée'!$C$332*($J1042-SUM($C1052:K1052)),0))","v":0},{"$f":"IF(L992<1+$B1051,0,IF(L992<'1 Données d''entrée'!$C$334+'1 Données d''entrée'!$C$333+1+$B1051,'1 Données d''entrée'!$C$332*($J1042-SUM($C1052:L1052)),0))","v":0},{"$f":"IF(M992<1+$B1051,0,IF(M992<'1 Données d''entrée'!$C$334+'1 Données d''entrée'!$C$333+1+$B1051,'1 Données d''entrée'!$C$332*($J1042-SUM($C1052:M1052)),0))","v":0},{"$f":"IF(N992<1+$B1051,0,IF(N992<'1 Données d''entrée'!$C$334+'1 Données d''entrée'!$C$333+1+$B1051,'1 Données d''entrée'!$C$332*($J1042-SUM($C1052:N1052)),0))","v":0},{"$f":"IF(O992<1+$B1051,0,IF(O992<'1 Données d''entrée'!$C$334+'1 Données d''entrée'!$C$333+1+$B1051,'1 Données d''entrée'!$C$332*($J1042-SUM($C1052:O1052)),0))","v":0},{"$f":"IF(P992<1+$B1051,0,IF(P992<'1 Données d''entrée'!$C$334+'1 Données d''entrée'!$C$333+1+$B1051,'1 Données d''entrée'!$C$332*($J1042-SUM($C1052:P1052)),0))","v":0},{"$f":"IF(Q992<1+$B1051,0,IF(Q992<'1 Données d''entrée'!$C$334+'1 Données d''entrée'!$C$333+1+$B1051,'1 Données d''entrée'!$C$332*($J1042-SUM($C1052:Q1052)),0))","v":0},{"$f":"IF(R992<1+$B1051,0,IF(R992<'1 Données d''entrée'!$C$334+'1 Données d''entrée'!$C$333+1+$B1051,'1 Données d''entrée'!$C$332*($J1042-SUM($C1052:R1052)),0))","v":0},{"$f":"IF(S992<1+$B1051,0,IF(S992<'1 Données d''entrée'!$C$334+'1 Données d''entrée'!$C$333+1+$B1051,'1 Données d''entrée'!$C$332*($J1042-SUM($C1052:S1052)),0))","v":0},{"$f":"IF(T992<1+$B1051,0,IF(T992<'1 Données d''entrée'!$C$334+'1 Données d''entrée'!$C$333+1+$B1051,'1 Données d''entrée'!$C$332*($J1042-SUM($C1052:T1052)),0))","v":0},{"$f":"IF(U992<1+$B1051,0,IF(U992<'1 Données d''entrée'!$C$334+'1 Données d''entrée'!$C$333+1+$B1051,'1 Données d''entrée'!$C$332*($J1042-SUM($C1052:U1052)),0))","v":0}]
["Paiement d'intêrets",9,0,{"$f":"IF(C992<1+$B1052,0,IF(C992<'1 Données d''entrée'!$C$334+'1 Données d''entrée'!$C$333+1+$B1052,'1 Données d''entrée'!$C$332*($K1042-SUM($C1053:C1053)),0))","v":0},{"$f":"IF(D992<1+$B1052,0,IF(D992<'1 Données d''entrée'!$C$334+'1 Données d''entrée'!$C$333+1+$B1052,'1 Données d''entrée'!$C$332*($K1042-SUM($C1053:D1053)),0))","v":0},{"$f":"IF(E992<1+$B1052,0,IF(E992<'1 Données d''entrée'!$C$334+'1 Données d''entrée'!$C$333+1+$B1052,'1 Données d''entrée'!$C$332*($K1042-SUM($C1053:E1053)),0))","v":0},{"$f":"IF(F992<1+$B1052,0,IF(F992<'1 Données d''entrée'!$C$334+'1 Données d''entrée'!$C$333+1+$B1052,'1 Données d''entrée'!$C$332*($K1042-SUM($C1053:F1053)),0))","v":0},{"$f":"IF(G992<1+$B1052,0,IF(G992<'1 Données d''entrée'!$C$334+'1 Données d''entrée'!$C$333+1+$B1052,'1 Données d''entrée'!$C$332*($K1042-SUM($C1053:G1053)),0))","v":0},{"$f":"IF(H992<1+$B1052,0,IF(H992<'1 Données d''entrée'!$C$334+'1 Données d''entrée'!$C$333+1+$B1052,'1 Données d''entrée'!$C$332*($K1042-SUM($C1053:H1053)),0))","v":0},{"$f":"IF(I992<1+$B1052,0,IF(I992<'1 Données d''entrée'!$C$334+'1 Données d''entrée'!$C$333+1+$B1052,'1 Données d''entrée'!$C$332*($K1042-SUM($C1053:I1053)),0))","v":0},{"$f":"IF(J992<1+$B1052,0,IF(J992<'1 Données d''entrée'!$C$334+'1 Données d''entrée'!$C$333+1+$B1052,'1 Données d''entrée'!$C$332*($K1042-SUM($C1053:J1053)),0))","v":0},{"$f":"IF(K992<1+$B1052,0,IF(K992<'1 Données d''entrée'!$C$334+'1 Données d''entrée'!$C$333+1+$B1052,'1 Données d''entrée'!$C$332*($K1042-SUM($C1053:K1053)),0))","v":0},{"$f":"IF(L992<1+$B1052,0,IF(L992<'1 Données d''entrée'!$C$334+'1 Données d''entrée'!$C$333+1+$B1052,'1 Données d''entrée'!$C$332*($K1042-SUM($C1053:L1053)),0))","v":0},{"$f":"IF(M992<1+$B1052,0,IF(M992<'1 Données d''entrée'!$C$334+'1 Données d''entrée'!$C$333+1+$B1052,'1 Données d''entrée'!$C$332*($K1042-SUM($C1053:M1053)),0))","v":0},{"$f":"IF(N992<1+$B1052,0,IF(N992<'1 Données d''entrée'!$C$334+'1 Données d''entrée'!$C$333+1+$B1052,'1 Données d''entrée'!$C$332*($K1042-SUM($C1053:N1053)),0))","v":0},{"$f":"IF(O992<1+$B1052,0,IF(O992<'1 Données d''entrée'!$C$334+'1 Données d''entrée'!$C$333+1+$B1052,'1 Données d''entrée'!$C$332*($K1042-SUM($C1053:O1053)),0))","v":0},{"$f":"IF(P992<1+$B1052,0,IF(P992<'1 Données d''entrée'!$C$334+'1 Données d''entrée'!$C$333+1+$B1052,'1 Données d''entrée'!$C$332*($K1042-SUM($C1053:P1053)),0))","v":0},{"$f":"IF(Q992<1+$B1052,0,IF(Q992<'1 Données d''entrée'!$C$334+'1 Données d''entrée'!$C$333+1+$B1052,'1 Données d''entrée'!$C$332*($K1042-SUM($C1053:Q1053)),0))","v":0},{"$f":"IF(R992<1+$B1052,0,IF(R992<'1 Données d''entrée'!$C$334+'1 Données d''entrée'!$C$333+1+$B1052,'1 Données d''entrée'!$C$332*($K1042-SUM($C1053:R1053)),0))","v":0},{"$f":"IF(S992<1+$B1052,0,IF(S992<'1 Données d''entrée'!$C$334+'1 Données d''entrée'!$C$333+1+$B1052,'1 Données d''entrée'!$C$332*($K1042-SUM($C1053:S1053)),0))","v":0},{"$f":"IF(T992<1+$B1052,0,IF(T992<'1 Données d''entrée'!$C$334+'1 Données d''entrée'!$C$333+1+$B1052,'1 Données d''entrée'!$C$332*($K1042-SUM($C1053:T1053)),0))","v":0},{"$f":"IF(U992<1+$B1052,0,IF(U992<'1 Données d''entrée'!$C$334+'1 Données d''entrée'!$C$333+1+$B1052,'1 Données d''entrée'!$C$332*($K1042-SUM($C1053:U1053)),0))","v":0}]
["Paiement d'intêrets",10,0,{"$f":"IF(C992<1+$B1053,0,IF(C992<'1 Données d''entrée'!$C$334+'1 Données d''entrée'!$C$333+1+$B1053,'1 Données d''entrée'!$C$332*($L1042-SUM($C1054:C1054)),0))","v":0},{"$f":"IF(D992<1+$B1053,0,IF(D992<'1 Données d''entrée'!$C$334+'1 Données d''entrée'!$C$333+1+$B1053,'1 Données d''entrée'!$C$332*($L1042-SUM($C1054:D1054)),0))","v":0},{"$f":"IF(E992<1+$B1053,0,IF(E992<'1 Données d''entrée'!$C$334+'1 Données d''entrée'!$C$333+1+$B1053,'1 Données d''entrée'!$C$332*($L1042-SUM($C1054:E1054)),0))","v":0},{"$f":"IF(F992<1+$B1053,0,IF(F992<'1 Données d''entrée'!$C$334+'1 Données d''entrée'!$C$333+1+$B1053,'1 Données d''entrée'!$C$332*($L1042-SUM($C1054:F1054)),0))","v":0},{"$f":"IF(G992<1+$B1053,0,IF(G992<'1 Données d''entrée'!$C$334+'1 Données d''entrée'!$C$333+1+$B1053,'1 Données d''entrée'!$C$332*($L1042-SUM($C1054:G1054)),0))","v":0},{"$f":"IF(H992<1+$B1053,0,IF(H992<'1 Données d''entrée'!$C$334+'1 Données d''entrée'!$C$333+1+$B1053,'1 Données d''entrée'!$C$332*($L1042-SUM($C1054:H1054)),0))","v":0},{"$f":"IF(I992<1+$B1053,0,IF(I992<'1 Données d''entrée'!$C$334+'1 Données d''entrée'!$C$333+1+$B1053,'1 Données d''entrée'!$C$332*($L1042-SUM($C1054:I1054)),0))","v":0},{"$f":"IF(J992<1+$B1053,0,IF(J992<'1 Données d''entrée'!$C$334+'1 Données d''entrée'!$C$333+1+$B1053,'1 Données d''entrée'!$C$332*($L1042-SUM($C1054:J1054)),0))","v":0},{"$f":"IF(K992<1+$B1053,0,IF(K992<'1 Données d''entrée'!$C$334+'1 Données d''entrée'!$C$333+1+$B1053,'1 Données d''entrée'!$C$332*($L1042-SUM($C1054:K1054)),0))","v":0},{"$f":"IF(L992<1+$B1053,0,IF(L992<'1 Données d''entrée'!$C$334+'1 Données d''entrée'!$C$333+1+$B1053,'1 Données d''entrée'!$C$332*($L1042-SUM($C1054:L1054)),0))","v":0},{"$f":"IF(M992<1+$B1053,0,IF(M992<'1 Données d''entrée'!$C$334+'1 Données d''entrée'!$C$333+1+$B1053,'1 Données d''entrée'!$C$332*($L1042-SUM($C1054:M1054)),0))","v":0},{"$f":"IF(N992<1+$B1053,0,IF(N992<'1 Données d''entrée'!$C$334+'1 Données d''entrée'!$C$333+1+$B1053,'1 Données d''entrée'!$C$332*($L1042-SUM($C1054:N1054)),0))","v":0},{"$f":"IF(O992<1+$B1053,0,IF(O992<'1 Données d''entrée'!$C$334+'1 Données d''entrée'!$C$333+1+$B1053,'1 Données d''entrée'!$C$332*($L1042-SUM($C1054:O1054)),0))","v":0},{"$f":"IF(P992<1+$B1053,0,IF(P992<'1 Données d''entrée'!$C$334+'1 Données d''entrée'!$C$333+1+$B1053,'1 Données d''entrée'!$C$332*($L1042-SUM($C1054:P1054)),0))","v":0},{"$f":"IF(Q992<1+$B1053,0,IF(Q992<'1 Données d''entrée'!$C$334+'1 Données d''entrée'!$C$333+1+$B1053,'1 Données d''entrée'!$C$332*($L1042-SUM($C1054:Q1054)),0))","v":0},{"$f":"IF(R992<1+$B1053,0,IF(R992<'1 Données d''entrée'!$C$334+'1 Données d''entrée'!$C$333+1+$B1053,'1 Données d''entrée'!$C$332*($L1042-SUM($C1054:R1054)),0))","v":0},{"$f":"IF(S992<1+$B1053,0,IF(S992<'1 Données d''entrée'!$C$334+'1 Données d''entrée'!$C$333+1+$B1053,'1 Données d''entrée'!$C$332*($L1042-SUM($C1054:S1054)),0))","v":0},{"$f":"IF(T992<1+$B1053,0,IF(T992<'1 Données d''entrée'!$C$334+'1 Données d''entrée'!$C$333+1+$B1053,'1 Données d''entrée'!$C$332*($L1042-SUM($C1054:T1054)),0))","v":0},{"$f":"IF(U992<1+$B1053,0,IF(U992<'1 Données d''entrée'!$C$334+'1 Données d''entrée'!$C$333+1+$B1053,'1 Données d''entrée'!$C$332*($L1042-SUM($C1054:U1054)),0))","v":0}]
[]
[null,"Période",1,2,3,4,5,6,7,8,9,10,11,12,13,14,15,16,17,18,19,20]
["Prêt bancaire additionnel- Option 2: Remboursement du principal final",{"$f":"'1 Données d''entrée'!$B$343","v":0}]
["Prêt(s) nouveau(x)",null,{"$f":"IF(C1035<0,C1035*(-1)*$B1069+C1035*(-1)*$B1069*'1 Données d''entrée'!$C$338,0)","v":{"$error":"#DIV/0!"}},{"$f":"IF(D1035<0,D1035*(-1)*$B1069+D1035*(-1)*$B1069*'1 Données d''entrée'!$C$338,0)","v":{"$error":"#DIV/0!"}},{"$f":"IF(E1035<0,E1035*(-1)*$B1069+E1035*(-1)*$B1069*'1 Données d''entrée'!$C$338,0)","v":{"$error":"#DIV/0!"}},{"$f":"IF(F1035<0,F1035*(-1)*$B1069+F1035*(-1)*$B1069*'1 Données d''entrée'!$C$338,0)","v":{"$error":"#DIV/0!"}},{"$f":"IF(G1035<0,G1035*(-1)*$B1069+G1035*(-1)*$B1069*'1 Données d''entrée'!$C$338,0)","v":{"$error":"#DIV/0!"}},{"$f":"IF(H1035<0,H1035*(-1)*$B1069+H1035*(-1)*$B1069*'1 Données d''entrée'!$C$338,0)","v":{"$error":"#DIV/0!"}},{"$f":"IF(I1035<0,I1035*(-1)*$B1069+I1035*(-1)*$B1069*'1 Données d''entrée'!$C$338,0)","v":{"$error":"#DIV/0!"}},{"$f":"IF(J1035<0,J1035*(-1)*$B1069+J1035*(-1)*$B1069*'1 Données d''entrée'!$C$338,0)","v":{"$error":"#DIV/0!"}},{"$f":"IF(K1035<0,K1035*(-1)*$B1069+K1035*(-1)*$B1069*'1 Données d''entrée'!$C$338,0)","v":{"$error":"#DIV/0!"}},{"$f":"IF(L1035<0,L1035*(-1)*$B1069+L1035*(-1)*$B1069*'1 Données d''entrée'!$C$338,0)","v":{"$error":"#DIV/0!"}},{"$f":"IF(M1035<0,M1035*(-1)*$B1069+M1035*(-1)*$B1069*'1 Données d''entrée'!$C$338,0)","v":{"$error":"#DIV/0!"}},{"$f":"IF(N1035<0,N1035*(-1)*$B1069+N1035*(-1)*$B1069*'1 Données d''entrée'!$C$338,0)","v":{"$error":"#DIV/0!"}},{"$f":"IF(O1035<0,O1035*(-1)*$B1069+O1035*(-1)*$B1069*'1 Données d''entrée'!$C$338,0)","v":{"$error":"#DIV/0!"}},{"$f":"IF(P1035<0,P1035*(-1)*$B1069+P1035*(-1)*$B1069*'1 Données d''entrée'!$C$338,0)","v":{"$error":"#DIV/0!"}},{"$f":"IF(Q1035<0,Q1035*(-1)*$B1069+Q1035*(-1)*$B1069*'1 Données d''entrée'!$C$338,0)","v":{"$error":"#DIV/0!"}},{"$f":"IF(R1035<0,R1035*(-1)*$B1069+R1035*(-1)*$B1069*'1 Données d''entrée'!$C$338,0)","v":{"$error":"#DIV/0!"}},{"$f":"IF(S1035<0,S1035*(-1)*$B1069+S1035*(-1)*$B1069*'1 Données d''entrée'!$C$338,0)","v":{"$error":"#DIV/0!"}},{"$f":"IF(T1035<0,T1035*(-1)*$B1069+T1035*(-1)*$B1069*'1 Données d''entrée'!$C$338,0)","v":{"$error":"#DIV/0!"}},{"$f":"IF(U1035<0,U1035*(-1)*$B1069+U1035*(-1)*$B1069*'1 Données d''entrée'!$C$338,0)","v":{"$error":"#DIV/0!"}},{"$f":"IF(V1035<0,V1035*(-1)*$B1069+V1035*(-1)*$B1069*'1 Données d''entrée'!$C$338,0)","v":{"$error":"#DIV/0!"}}]
[null,"Période de prêt nouveau"]
["Remboursement du principal",0,0,0,0,0,0,0,0,0,0,0,0,0,0,0,0,0,0,0,0,0]
[null,1,{"$f":"IF(C1068='1 Données d''entrée'!$C$333+'1 Données d''entrée'!$C$334+$B1073,$C1070,0)","v":{"$error":"#DIV/0!"}},{"$f":"IF(D1068='1 Données d''entrée'!$C$333+'1 Données d''entrée'!$C$334+$B1073,$C1070,0)","v":0},{"$f":"IF(E1068='1 Données d''entrée'!$C$333+'1 Données d''entrée'!$C$334+$B1073,$C1070,0)","v":0},{"$f":"IF(F1068='1 Données d''entrée'!$C$333+'1 Données d''entrée'!$C$334+$B1073,$C1070,0)","v":0},{"$f":"IF(G1068='1 Données d''entrée'!$C$333+'1 Données d''entrée'!$C$334+$B1073,$C1070,0)","v":0},{"$f":"IF(H1068='1 Données d''entrée'!$C$333+'1 Données d''entrée'!$C$334+$B1073,$C1070,0)","v":0},{"$f":"IF(I1068='1 Données d''entrée'!$C$333+'1 Données d''entrée'!$C$334+$B1073,$C1070,0)","v":0},{"$f":"IF(J1068='1 Données d''entrée'!$C$333+'1 Données d''entrée'!$C$334+$B1073,$C1070,0)","v":0},{"$f":"IF(K1068='1 Données d''entrée'!$C$333+'1 Données d''entrée'!$C$334+$B1073,$C1070,0)","v":0},{"$f":"IF(L1068='1 Données d''entrée'!$C$333+'1 Données d''entrée'!$C$334+$B1073,$C1070,0)","v":0},{"$f":"IF(M1068='1 Données d''entrée'!$C$333+'1 Données d''entrée'!$C$334+$B1073,$C1070,0)","v":0},{"$f":"IF(N1068='1 Données d''entrée'!$C$333+'1 Données d''entrée'!$C$334+$B1073,$C1070,0)","v":0},{"$f":"IF(O1068='1 Données d''entrée'!$C$333+'1 Données d''entrée'!$C$334+$B1073,$C1070,0)","v":0},{"$f":"IF(P1068='1 Données d''entrée'!$C$333+'1 Données d''entrée'!$C$334+$B1073,$C1070,0)","v":0},{"$f":"IF(Q1068='1 Données d''entrée'!$C$333+'1 Données d''entrée'!$C$334+$B1073,$C1070,0)","v":0},{"$f":"IF(R1068='1 Données d''entrée'!$C$333+'1 Données d''entrée'!$C$334+$B1073,$C1070,0)","v":0},{"$f":"IF(S1068='1 Données d''entrée'!$C$333+'1 Données d''entrée'!$C$334+$B1073,$C1070,0)","v":0},{"$f":"IF(T1068='1 Données d''entrée'!$C$333+'1 Données d''entrée'!$C$334+$B1073,$C1070,0)","v":0},{"$f":"IF(U1068='1 Données d''entrée'!$C$333+'1 Données d''entrée'!$C$334+$B1073,$C1070,0)","v":0},{"$f":"IF(V1068='1 Données d''entrée'!$C$333+'1 Données d''entrée'!$C$334+$B1073,$C1070,0)","v":0}]
[null,2,{"$f":"IF(C1068='1 Données d''entrée'!$C$333+'1 Données d''entrée'!$C$334+$B1074,$D1070,0)","v":0},{"$f":"IF(D1068='1 Données d''entrée'!$C$333+'1 Données d''entrée'!$C$334+$B1074,$D1070,0)","v":{"$error":"#DIV/0!"}},{"$f":"IF(E1068='1 Données d''entrée'!$C$333+'1 Données d''entrée'!$C$334+$B1074,$D1070,0)","v":0},{"$f":"IF(F1068='1 Données d''entrée'!$C$333+'1 Données d''entrée'!$C$334+$B1074,$D1070,0)","v":0},{"$f":"IF(G1068='1 Données d''entrée'!$C$333+'1 Données d''entrée'!$C$334+$B1074,$D1070,0)","v":0},{"$f":"IF(H1068='1 Données d''entrée'!$C$333+'1 Données d''entrée'!$C$334+$B1074,$D1070,0)","v":0},{"$f":"IF(I1068='1 Données d''entrée'!$C$333+'1 Données d''entrée'!$C$334+$B1074,$D1070,0)","v":0},{"$f":"IF(J1068='1 Données d''entrée'!$C$333+'1 Données d''entrée'!$C$334+$B1074,$D1070,0)","v":0},{"$f":"IF(K1068='1 Données d''entrée'!$C$333+'1 Données d''entrée'!$C$334+$B1074,$D1070,0)","v":0},{"$f":"IF(L1068='1 Données d''entrée'!$C$333+'1 Données d''entrée'!$C$334+$B1074,$D1070,0)","v":0},{"$f":"IF(M1068='1 Données d''entrée'!$C$333+'1 Données d''entrée'!$C$334+$B1074,$D1070,0)","v":0},{"$f":"IF(N1068='1 Données d''entrée'!$C$333+'1 Données d''entrée'!$C$334+$B1074,$D1070,0)","v":0},{"$f":"IF(O1068='1 Données d''entrée'!$C$333+'1 Données d''entrée'!$C$334+$B1074,$D1070,0)","v":0},{"$f":"IF(P1068='1 Données d''entrée'!$C$333+'1 Données d''entrée'!$C$334+$B1074,$D1070,0)","v":0},{"$f":"IF(Q1068='1 Données d''entrée'!$C$333+'1 Données d''entrée'!$C$334+$B1074,$D1070,0)","v":0},{"$f":"IF(R1068='1 Données d''entrée'!$C$333+'1 Données d''entrée'!$C$334+$B1074,$D1070,0)","v":0},{"$f":"IF(S1068='1 Données d''entrée'!$C$333+'1 Données d''entrée'!$C$334+$B1074,$D1070,0)","v":0},{"$f":"IF(T1068='1 Données d''entrée'!$C$333+'1 Données d''entrée'!$C$334+$B1074,$D1070,0)","v":0},{"$f":"IF(U1068='1 Données d''entrée'!$C$333+'1 Données d''entrée'!$C$334+$B1074,$D1070,0)","v":0},{"$f":"IF(V1068='1 Données d''entrée'!$C$333+'1 Données d''entrée'!$C$334+$B1074,$D1070,0)","v":0}]
[null,3,{"$f":"IF(C1068='1 Données d''entrée'!$C$333+'1 Données d''entrée'!$C$334+$B1075,$E1070,0)","v":0},{"$f":"IF(D1068='1 Données d''entrée'!$C$333+'1 Données d''entrée'!$C$334+$B1075,$E1070,0)","v":0},{"$f":"IF(E1068='1 Données d''entrée'!$C$333+'1 Données d''entrée'!$C$334+$B1075,$E1070,0)","v":{"$error":"#DIV/0!"}},{"$f":"IF(F1068='1 Données d''entrée'!$C$333+'1 Données d''entrée'!$C$334+$B1075,$E1070,0)","v":0},{"$f":"IF(G1068='1 Données d''entrée'!$C$333+'1 Données d''entrée'!$C$334+$B1075,$E1070,0)","v":0},{"$f":"IF(H1068='1 Données d''entrée'!$C$333+'1 Données d''entrée'!$C$334+$B1075,$E1070,0)","v":0},{"$f":"IF(I1068='1 Données d''entrée'!$C$333+'1 Données d''entrée'!$C$334+$B1075,$E1070,0)","v":0},{"$f":"IF(J1068='1 Données d''entrée'!$C$333+'1 Données d''entrée'!$C$334+$B1075,$E1070,0)","v":0},{"$f":"IF(K1068='1 Données d''entrée'!$C$333+'1 Données d''entrée'!$C$334+$B1075,$E1070,0)","v":0},{"$f":"IF(L1068='1 Données d''entrée'!$C$333+'1 Données d''entrée'!$C$334+$B1075,$E1070,0)","v":0},{"$f":"IF(M1068='1 Données d''entrée'!$C$333+'1 Données d''entrée'!$C$334+$B1075,$E1070,0)","v":0},{"$f":"IF(N1068='1 Données d''entrée'!$C$333+'1 Données d''entrée'!$C$334+$B1075,$E1070,0)","v":0},{"$f":"IF(O1068='1 Données d''entrée'!$C$333+'1 Données d''entrée'!$C$334+$B1075,$E1070,0)","v":0},{"$f":"IF(P1068='1 Données d''entrée'!$C$333+'1 Données d''entrée'!$C$334+$B1075,$E1070,0)","v":0},{"$f":"IF(Q1068='1 Données d''entrée'!$C$333+'1 Données d''entrée'!$C$334+$B1075,$E1070,0)","v":0},{"$f":"IF(R1068='1 Données d''entrée'!$C$333+'1 Données d''entrée'!$C$334+$B1075,$E1070,0)","v":0},{"$f":"IF(S1068='1 Données d''entrée'!$C$333+'1 Données d''entrée'!$C$334+$B1075,$E1070,0)","v":0},{"$f":"IF(T1068='1 Données d''entrée'!$C$333+'1 Données d''entrée'!$C$334+$B1075,$E1070,0)","v":0},{"$f":"IF(U1068='1 Données d''entrée'!$C$333+'1 Données d''entrée'!$C$334+$B1075,$E1070,0)","v":0},{"$f":"IF(V1068='1 Données d''entrée'!$C$333+'1 Données d''entrée'!$C$334+$B1075,$E1070,0)","v":0}]
[null,4,{"$f":"IF(C1068='1 Données d''entrée'!$C$333+'1 Données d''entrée'!$C$334+$B1076,$F1070,0)","v":0},{"$f":"IF(D1068='1 Données d''entrée'!$C$333+'1 Données d''entrée'!$C$334+$B1076,$F1070,0)","v":0},{"$f":"IF(E1068='1 Données d''entrée'!$C$333+'1 Données d''entrée'!$C$334+$B1076,$F1070,0)","v":0},{"$f":"IF(F1068='1 Données d''entrée'!$C$333+'1 Données d''entrée'!$C$334+$B1076,$F1070,0)","v":{"$error":"#DIV/0!"}},{"$f":"IF(G1068='1 Données d''entrée'!$C$333+'1 Données d''entrée'!$C$334+$B1076,$F1070,0)","v":0},{"$f":"IF(H1068='1 Données d''entrée'!$C$333+'1 Données d''entrée'!$C$334+$B1076,$F1070,0)","v":0},{"$f":"IF(I1068='1 Données d''entrée'!$C$333+'1 Données d''entrée'!$C$334+$B1076,$F1070,0)","v":0},{"$f":"IF(J1068='1 Données d''entrée'!$C$333+'1 Données d''entrée'!$C$334+$B1076,$F1070,0)","v":0},{"$f":"IF(K1068='1 Données d''entrée'!$C$333+'1 Données d''entrée'!$C$334+$B1076,$F1070,0)","v":0},{"$f":"IF(L1068='1 Données d''entrée'!$C$333+'1 Données d''entrée'!$C$334+$B1076,$F1070,0)","v":0},{"$f":"IF(M1068='1 Données d''entrée'!$C$333+'1 Données d''entrée'!$C$334+$B1076,$F1070,0)","v":0},{"$f":"IF(N1068='1 Données d''entrée'!$C$333+'1 Données d''entrée'!$C$334+$B1076,$F1070,0)","v":0},{"$f":"IF(O1068='1 Données d''entrée'!$C$333+'1 Données d''entrée'!$C$334+$B1076,$F1070,0)","v":0},{"$f":"IF(P1068='1 Données d''entrée'!$C$333+'1 Données d''entrée'!$C$334+$B1076,$F1070,0)","v":0},{"$f":"IF(Q1068='1 Données d''entrée'!$C$333+'1 Données d''entrée'!$C$334+$B1076,$F1070,0)","v":0},{"$f":"IF(R1068='1 Données d''entrée'!$C$333+'1 Données d''entrée'!$C$334+$B1076,$F1070,0)","v":0},{"$f":"IF(S1068='1 Données d''entrée'!$C$333+'1 Données d''entrée'!$C$334+$B1076,$F1070,0)","v":0},{"$f":"IF(T1068='1 Données d''entrée'!$C$333+'1 Données d''entrée'!$C$334+$B1076,$F1070,0)","v":0},{"$f":"IF(U1068='1 Données d''entrée'!$C$333+'1 Données d''entrée'!$C$334+$B1076,$F1070,0)","v":0},{"$f":"IF(V1068='1 Données d''entrée'!$C$333+'1 Données d''entrée'!$C$334+$B1076,$F1070,0)","v":0}]
[null,5,{"$f":"IF(C1068='1 Données d''entrée'!$C$333+'1 Données d''entrée'!$C$334+$B1077,$G1070,0)","v":0},{"$f":"IF(D1068='1 Données d''entrée'!$C$333+'1 Données d''entrée'!$C$334+$B1077,$G1070,0)","v":0},{"$f":"IF(E1068='1 Données d''entrée'!$C$333+'1 Données d''entrée'!$C$334+$B1077,$G1070,0)","v":0},{"$f":"IF(F1068='1 Données d''entrée'!$C$333+'1 Données d''entrée'!$C$334+$B1077,$G1070,0)","v":0},{"$f":"IF(G1068='1 Données d''entrée'!$C$333+'1 Données d''entrée'!$C$334+$B1077,$G1070,0)","v":{"$error":"#DIV/0!"}},{"$f":"IF(H1068='1 Données d''entrée'!$C$333+'1 Données d''entrée'!$C$334+$B1077,$G1070,0)","v":0},{"$f":"IF(I1068='1 Données d''entrée'!$C$333+'1 Données d''entrée'!$C$334+$B1077,$G1070,0)","v":0},{"$f":"IF(J1068='1 Données d''entrée'!$C$333+'1 Données d''entrée'!$C$334+$B1077,$G1070,0)","v":0},{"$f":"IF(K1068='1 Données d''entrée'!$C$333+'1 Données d''entrée'!$C$334+$B1077,$G1070,0)","v":0},{"$f":"IF(L1068='1 Données d''entrée'!$C$333+'1 Données d''entrée'!$C$334+$B1077,$G1070,0)","v":0},{"$f":"IF(M1068='1 Données d''entrée'!$C$333+'1 Données d''entrée'!$C$334+$B1077,$G1070,0)","v":0},{"$f":"IF(N1068='1 Données d''entrée'!$C$333+'1 Données d''entrée'!$C$334+$B1077,$G1070,0)","v":0},{"$f":"IF(O1068='1 Données d''entrée'!$C$333+'1 Données d''entrée'!$C$334+$B1077,$G1070,0)","v":0},{"$f":"IF(P1068='1 Données d''entrée'!$C$333+'1 Données d''entrée'!$C$334+$B1077,$G1070,0)","v":0},{"$f":"IF(Q1068='1 Données d''entrée'!$C$333+'1 Données d''entrée'!$C$334+$B1077,$G1070,0)","v":0},{"$f":"IF(R1068='1 Données d''entrée'!$C$333+'1 Données d''entrée'!$C$334+$B1077,$G1070,0)","v":0},{"$f":"IF(S1068='1 Données d''entrée'!$C$333+'1 Données d''entrée'!$C$334+$B1077,$G1070,0)","v":0},{"$f":"IF(T1068='1 Données d''entrée'!$C$333+'1 Données d''entrée'!$C$334+$B1077,$G1070,0)","v":0},{"$f":"IF(U1068='1 Données d''entrée'!$C$333+'1 Données d''entrée'!$C$334+$B1077,$G1070,0)","v":0},{"$f":"IF(V1068='1 Données d''entrée'!$C$333+'1 Données d''entrée'!$C$334+$B1077,$G1070,0)","v":0}]
[null,6,{"$f":"IF(C1068='1 Données d''entrée'!$C$333+'1 Données d''entrée'!$C$334+$B1078,$H1070,0)","v":0},{"$f":"IF(D1068='1 Données d''entrée'!$C$333+'1 Données d''entrée'!$C$334+$B1078,$H1070,0)","v":0},{"$f":"IF(E1068='1 Données d''entrée'!$C$333+'1 Données d''entrée'!$C$334+$B1078,$H1070,0)","v":0},{"$f":"IF(F1068='1 Données d''entrée'!$C$333+'1 Données d''entrée'!$C$334+$B1078,$H1070,0)","v":0},{"$f":"IF(G1068='1 Données d''entrée'!$C$333+'1 Données d''entrée'!$C$334+$B1078,$H1070,0)","v":0},{"$f":"IF(H1068='1 Données d''entrée'!$C$333+'1 Données d''entrée'!$C$334+$B1078,$H1070,0)","v":{"$error":"#DIV/0!"}},{"$f":"IF(I1068='1 Données d''entrée'!$C$333+'1 Données d''entrée'!$C$334+$B1078,$H1070,0)","v":0},{"$f":"IF(J1068='1 Données d''entrée'!$C$333+'1 Données d''entrée'!$C$334+$B1078,$H1070,0)","v":0},{"$f":"IF(K1068='1 Données d''entrée'!$C$333+'1 Données d''entrée'!$C$334+$B1078,$H1070,0)","v":0},{"$f":"IF(L1068='1 Données d''entrée'!$C$333+'1 Données d''entrée'!$C$334+$B1078,$H1070,0)","v":0},{"$f":"IF(M1068='1 Données d''entrée'!$C$333+'1 Données d''entrée'!$C$334+$B1078,$H1070,0)","v":0},{"$f":"IF(N1068='1 Données d''entrée'!$C$333+'1 Données d''entrée'!$C$334+$B1078,$H1070,0)","v":0},{"$f":"IF(O1068='1 Données d''entrée'!$C$333+'1 Données d''entrée'!$C$334+$B1078,$H1070,0)","v":0},{"$f":"IF(P1068='1 Données d''entrée'!$C$333+'1 Données d''entrée'!$C$334+$B1078,$H1070,0)","v":0},{"$f":"IF(Q1068='1 Données d''entrée'!$C$333+'1 Données d''entrée'!$C$334+$B1078,$H1070,0)","v":0},{"$f":"IF(R1068='1 Données d''entrée'!$C$333+'1 Données d''entrée'!$C$334+$B1078,$H1070,0)","v":0},{"$f":"IF(S1068='1 Données d''entrée'!$C$333+'1 Données d''entrée'!$C$334+$B1078,$H1070,0)","v":0},{"$f":"IF(T1068='1 Données d''entrée'!$C$333+'1 Données d''entrée'!$C$334+$B1078,$H1070,0)","v":0},{"$f":"IF(U1068='1 Données d''entrée'!$C$333+'1 Données d''entrée'!$C$334+$B1078,$H1070,0)","v":0},{"$f":"IF(V1068='1 Données d''entrée'!$C$333+'1 Données d''entrée'!$C$334+$B1078,$H1070,0)","v":0}]
[null,7,{"$f":"IF(C1068='1 Données d''entrée'!$C$333+'1 Données d''entrée'!$C$334+$B1079,$I1070,0)","v":0},{"$f":"IF(D1068='1 Données d''entrée'!$C$333+'1 Données d''entrée'!$C$334+$B1079,$I1070,0)","v":0},{"$f":"IF(E1068='1 Données d''entrée'!$C$333+'1 Données d''entrée'!$C$334+$B1079,$I1070,0)","v":0},{"$f":"IF(F1068='1 Données d''entrée'!$C$333+'1 Données d''entrée'!$C$334+$B1079,$I1070,0)","v":0},{"$f":"IF(G1068='1 Données d''entrée'!$C$333+'1 Données d''entrée'!$C$334+$B1079,$I1070,0)","v":0},{"$f":"IF(H1068='1 Données d''entrée'!$C$333+'1 Données d''entrée'!$C$334+$B1079,$I1070,0)","v":0},{"$f":"IF(I1068='1 Données d''entrée'!$C$333+'1 Données d''entrée'!$C$334+$B1079,$I1070,0)","v":{"$error":"#DIV/0!"}},{"$f":"IF(J1068='1 Données d''entrée'!$C$333+'1 Données d''entrée'!$C$334+$B1079,$I1070,0)","v":0},{"$f":"IF(K1068='1 Données d''entrée'!$C$333+'1 Données d''entrée'!$C$334+$B1079,$I1070,0)","v":0},{"$f":"IF(L1068='1 Données d''entrée'!$C$333+'1 Données d''entrée'!$C$334+$B1079,$I1070,0)","v":0},{"$f":"IF(M1068='1 Données d''entrée'!$C$333+'1 Données d''entrée'!$C$334+$B1079,$I1070,0)","v":0},{"$f":"IF(N1068='1 Données d''entrée'!$C$333+'1 Données d''entrée'!$C$334+$B1079,$I1070,0)","v":0},{"$f":"IF(O1068='1 Données d''entrée'!$C$333+'1 Données d''entrée'!$C$334+$B1079,$I1070,0)","v":0},{"$f":"IF(P1068='1 Données d''entrée'!$C$333+'1 Données d''entrée'!$C$334+$B1079,$I1070,0)","v":0},{"$f":"IF(Q1068='1 Données d''entrée'!$C$333+'1 Données d''entrée'!$C$334+$B1079,$I1070,0)","v":0},{"$f":"IF(R1068='1 Données d''entrée'!$C$333+'1 Données d''entrée'!$C$334+$B1079,$I1070,0)","v":0},{"$f":"IF(S1068='1 Données d''entrée'!$C$333+'1 Données d''entrée'!$C$334+$B1079,$I1070,0)","v":0},{"$f":"IF(T1068='1 Données d''entrée'!$C$333+'1 Données d''entrée'!$C$334+$B1079,$I1070,0)","v":0},{"$f":"IF(U1068='1 Données d''entrée'!$C$333+'1 Données d''entrée'!$C$334+$B1079,$I1070,0)","v":0},{"$f":"IF(V1068='1 Données d''entrée'!$C$333+'1 Données d''entrée'!$C$334+$B1079,$I1070,0)","v":0}]
[null,8,{"$f":"IF(C1068='1 Données d''entrée'!$C$333+'1 Données d''entrée'!$C$334+$B1080,$J1070,0)","v":0},{"$f":"IF(D1068='1 Données d''entrée'!$C$333+'1 Données d''entrée'!$C$334+$B1080,$J1070,0)","v":0},{"$f":"IF(E1068='1 Données d''entrée'!$C$333+'1 Données d''entrée'!$C$334+$B1080,$J1070,0)","v":0},{"$f":"IF(F1068='1 Données d''entrée'!$C$333+'1 Données d''entrée'!$C$334+$B1080,$J1070,0)","v":0},{"$f":"IF(G1068='1 Données d''entrée'!$C$333+'1 Données d''entrée'!$C$334+$B1080,$J1070,0)","v":0},{"$f":"IF(H1068='1 Données d''entrée'!$C$333+'1 Données d''entrée'!$C$334+$B1080,$J1070,0)","v":0},{"$f":"IF(I1068='1 Données d''entrée'!$C$333+'1 Données d''entrée'!$C$334+$B1080,$J1070,0)","v":0},{"$f":"IF(J1068='1 Données d''entrée'!$C$333+'1 Données d''entrée'!$C$334+$B1080,$J1070,0)","v":{"$error":"#DIV/0!"}},{"$f":"IF(K1068='1 Données d''entrée'!$C$333+'1 Données d''entrée'!$C$334+$B1080,$J1070,0)","v":0},{"$f":"IF(L1068='1 Données d''entrée'!$C$333+'1 Données d''entrée'!$C$334+$B1080,$J1070,0)","v":0},{"$f":"IF(M1068='1 Données d''entrée'!$C$333+'1 Données d''entrée'!$C$334+$B1080,$J1070,0)","v":0},{"$f":"IF(N1068='1 Données d''entrée'!$C$333+'1 Données d''entrée'!$C$334+$B1080,$J1070,0)","v":0},{"$f":"IF(O1068='1 Données d''entrée'!$C$333+'1 Données d''entrée'!$C$334+$B1080,$J1070,0)","v":0},{"$f":"IF(P1068='1 Données d''entrée'!$C$333+'1 Données d''entrée'!$C$334+$B1080,$J1070,0)","v":0},{"$f":"IF(Q1068='1 Données d''entrée'!$C$333+'1 Données d''entrée'!$C$334+$B1080,$J1070,0)","v":0},{"$f":"IF(R1068='1 Données d''entrée'!$C$333+'1 Données d''entrée'!$C$334+$B1080,$J1070,0)","v":0},{"$f":"IF(S1068='1 Données d''entrée'!$C$333+'1 Données d''entrée'!$C$334+$B1080,$J1070,0)","v":0},{"$f":"IF(T1068='1 Données d''entrée'!$C$333+'1 Données d''entrée'!$C$334+$B1080,$J1070,0)","v":0},{"$f":"IF(U1068='1 Données d''entrée'!$C$333+'1 Données d''entrée'!$C$334+$B1080,$J1070,0)","v":0},{"$f":"IF(V1068='1 Données d''entrée'!$C$333+'1 Données d''entrée'!$C$334+$B1080,$J1070,0)","v":0}]
[null,9,{"$f":"IF(C1068='1 Données d''entrée'!$C$333+'1 Données d''entrée'!$C$334+$B1081,$K1070,0)","v":0},{"$f":"IF(D1068='1 Données d''entrée'!$C$333+'1 Données d''entrée'!$C$334+$B1081,$K1070,0)","v":0},{"$f":"IF(E1068='1 Données d''entrée'!$C$333+'1 Données d''entrée'!$C$334+$B1081,$K1070,0)","v":0},{"$f":"IF(F1068='1 Données d''entrée'!$C$333+'1 Données d''entrée'!$C$334+$B1081,$K1070,0)","v":0},{"$f":"IF(G1068='1 Données d''entrée'!$C$333+'1 Données d''entrée'!$C$334+$B1081,$K1070,0)","v":0},{"$f":"IF(H1068='1 Données d''entrée'!$C$333+'1 Données d''entrée'!$C$334+$B1081,$K1070,0)","v":0},{"$f":"IF(I1068='1 Données d''entrée'!$C$333+'1 Données d''entrée'!$C$334+$B1081,$K1070,0)","v":0},{"$f":"IF(J1068='1 Données d''entrée'!$C$333+'1 Données d''entrée'!$C$334+$B1081,$K1070,0)","v":0},{"$f":"IF(K1068='1 Données d''entrée'!$C$333+'1 Données d''entrée'!$C$334+$B1081,$K1070,0)","v":{"$error":"#DIV/0!"}},{"$f":"IF(L1068='1 Données d''entrée'!$C$333+'1 Données d''entrée'!$C$334+$B1081,$K1070,0)","v":0},{"$f":"IF(M1068='1 Données d''entrée'!$C$333+'1 Données d''entrée'!$C$334+$B1081,$K1070,0)","v":0},{"$f":"IF(N1068='1 Données d''entrée'!$C$333+'1 Données d''entrée'!$C$334+$B1081,$K1070,0)","v":0},{"$f":"IF(O1068='1 Données d''entrée'!$C$333+'1 Données d''entrée'!$C$334+$B1081,$K1070,0)","v":0},{"$f":"IF(P1068='1 Données d''entrée'!$C$333+'1 Données d''entrée'!$C$334+$B1081,$K1070,0)","v":0},{"$f":"IF(Q1068='1 Données d''entrée'!$C$333+'1 Données d''entrée'!$C$334+$B1081,$K1070,0)","v":0},{"$f":"IF(R1068='1 Données d''entrée'!$C$333+'1 Données d''entrée'!$C$334+$B1081,$K1070,0)","v":0},{"$f":"IF(S1068='1 Données d''entrée'!$C$333+'1 Données d''entrée'!$C$334+$B1081,$K1070,0)","v":0},{"$f":"IF(T1068='1 Données d''entrée'!$C$333+'1 Données d''entrée'!$C$334+$B1081,$K1070,0)","v":0},{"$f":"IF(U1068='1 Données d''entrée'!$C$333+'1 Données d''entrée'!$C$334+$B1081,$K1070,0)","v":0},{"$f":"IF(V1068='1 Données d''entrée'!$C$333+'1 Données d''entrée'!$C$334+$B1081,$K1070,0)","v":0}]
[null,10,{"$f":"IF(C1068='1 Données d''entrée'!$C$333+'1 Données d''entrée'!$C$334+$B1082,$L1070,0)","v":0},{"$f":"IF(D1068='1 Données d''entrée'!$C$333+'1 Données d''entrée'!$C$334+$B1082,$L1070,0)","v":0},{"$f":"IF(E1068='1 Données d''entrée'!$C$333+'1 Données d''entrée'!$C$334+$B1082,$L1070,0)","v":0},{"$f":"IF(F1068='1 Données d''entrée'!$C$333+'1 Données d''entrée'!$C$334+$B1082,$L1070,0)","v":0},{"$f":"IF(G1068='1 Données d''entrée'!$C$333+'1 Données d''entrée'!$C$334+$B1082,$L1070,0)","v":0},{"$f":"IF(H1068='1 Données d''entrée'!$C$333+'1 Données d''entrée'!$C$334+$B1082,$L1070,0)","v":0},{"$f":"IF(I1068='1 Données d''entrée'!$C$333+'1 Données d''entrée'!$C$334+$B1082,$L1070,0)","v":0},{"$f":"IF(J1068='1 Données d''entrée'!$C$333+'1 Données d''entrée'!$C$334+$B1082,$L1070,0)","v":0},{"$f":"IF(K1068='1 Données d''entrée'!$C$333+'1 Données d''entrée'!$C$334+$B1082,$L1070,0)","v":0},{"$f":"IF(L1068='1 Données d''entrée'!$C$333+'1 Données d''entrée'!$C$334+$B1082,$L1070,0)","v":{"$error":"#DIV/0!"}},{"$f":"IF(M1068='1 Données d''entrée'!$C$333+'1 Données d''entrée'!$C$334+$B1082,$L1070,0)","v":0},{"$f":"IF(N1068='1 Données d''entrée'!$C$333+'1 Données d''entrée'!$C$334+$B1082,$L1070,0)","v":0},{"$f":"IF(O1068='1 Données d''entrée'!$C$333+'1 Données d''entrée'!$C$334+$B1082,$L1070,0)","v":0},{"$f":"IF(P1068='1 Données d''entrée'!$C$333+'1 Données d''entrée'!$C$334+$B1082,$L1070,0)","v":0},{"$f":"IF(Q1068='1 Données d''entrée'!$C$333+'1 Données d''entrée'!$C$334+$B1082,$L1070,0)","v":0},{"$f":"IF(R1068='1 Données d''entrée'!$C$333+'1 Données d''entrée'!$C$334+$B1082,$L1070,0)","v":0},{"$f":"IF(S1068='1 Données d''entrée'!$C$333+'1 Données d''entrée'!$C$334+$B1082,$L1070,0)","v":0},{"$f":"IF(T1068='1 Données d''entrée'!$C$333+'1 Données d''entrée'!$C$334+$B1082,$L1070,0)","v":0},{"$f":"IF(U1068='1 Données d''entrée'!$C$333+'1 Données d''entrée'!$C$334+$B1082,$L1070,0)","v":0},{"$f":"IF(V1068='1 Données d''entrée'!$C$333+'1 Données d''entrée'!$C$334+$B1082,$L1070,0)","v":0}]
[null,"Période de prêt nouveau"]
["Paiement d'intérêts",0,0,0,0,0,0,0,0,0,0,0,0,0,0,0,0,0,0,0,0,0]
["Paiement d'intêrets",1,0,{"$f":"IF(C992<1+$B1072,0,IF(C992<'1 Données d''entrée'!$C$334+'1 Données d''entrée'!$C$333+1+$B1072,'1 Données d''entrée'!$C$332*($C1070-SUM($C1073:C1073)),0))","v":0},{"$f":"IF(D992<1+$B1072,0,IF(D992<'1 Données d''entrée'!$C$334+'1 Données d''entrée'!$C$333+1+$B1072,'1 Données d''entrée'!$C$332*($C1070-SUM($C1073:D1073)),0))","v":0},{"$f":"IF(E992<1+$B1072,0,IF(E992<'1 Données d''entrée'!$C$334+'1 Données d''entrée'!$C$333+1+$B1072,'1 Données d''entrée'!$C$332*($C1070-SUM($C1073:E1073)),0))","v":0},{"$f":"IF(F992<1+$B1072,0,IF(F992<'1 Données d''entrée'!$C$334+'1 Données d''entrée'!$C$333+1+$B1072,'1 Données d''entrée'!$C$332*($C1070-SUM($C1073:F1073)),0))","v":0},{"$f":"IF(G992<1+$B1072,0,IF(G992<'1 Données d''entrée'!$C$334+'1 Données d''entrée'!$C$333+1+$B1072,'1 Données d''entrée'!$C$332*($C1070-SUM($C1073:G1073)),0))","v":0},{"$f":"IF(H992<1+$B1072,0,IF(H992<'1 Données d''entrée'!$C$334+'1 Données d''entrée'!$C$333+1+$B1072,'1 Données d''entrée'!$C$332*($C1070-SUM($C1073:H1073)),0))","v":0},{"$f":"IF(I992<1+$B1072,0,IF(I992<'1 Données d''entrée'!$C$334+'1 Données d''entrée'!$C$333+1+$B1072,'1 Données d''entrée'!$C$332*($C1070-SUM($C1073:I1073)),0))","v":0},{"$f":"IF(J992<1+$B1072,0,IF(J992<'1 Données d''entrée'!$C$334+'1 Données d''entrée'!$C$333+1+$B1072,'1 Données d''entrée'!$C$332*($C1070-SUM($C1073:J1073)),0))","v":0},{"$f":"IF(K992<1+$B1072,0,IF(K992<'1 Données d''entrée'!$C$334+'1 Données d''entrée'!$C$333+1+$B1072,'1 Données d''entrée'!$C$332*($C1070-SUM($C1073:K1073)),0))","v":0},{"$f":"IF(L992<1+$B1072,0,IF(L992<'1 Données d''entrée'!$C$334+'1 Données d''entrée'!$C$333+1+$B1072,'1 Données d''entrée'!$C$332*($C1070-SUM($C1073:L1073)),0))","v":0},{"$f":"IF(M992<1+$B1072,0,IF(M992<'1 Données d''entrée'!$C$334+'1 Données d''entrée'!$C$333+1+$B1072,'1 Données d''entrée'!$C$332*($C1070-SUM($C1073:M1073)),0))","v":0},{"$f":"IF(N992<1+$B1072,0,IF(N992<'1 Données d''entrée'!$C$334+'1 Données d''entrée'!$C$333+1+$B1072,'1 Données d''entrée'!$C$332*($C1070-SUM($C1073:N1073)),0))","v":0},{"$f":"IF(O992<1+$B1072,0,IF(O992<'1 Données d''entrée'!$C$334+'1 Données d''entrée'!$C$333+1+$B1072,'1 Données d''entrée'!$C$332*($C1070-SUM($C1073:O1073)),0))","v":0},{"$f":"IF(P992<1+$B1072,0,IF(P992<'1 Données d''entrée'!$C$334+'1 Données d''entrée'!$C$333+1+$B1072,'1 Données d''entrée'!$C$332*($C1070-SUM($C1073:P1073)),0))","v":0},{"$f":"IF(Q992<1+$B1072,0,IF(Q992<'1 Données d''entrée'!$C$334+'1 Données d''entrée'!$C$333+1+$B1072,'1 Données d''entrée'!$C$332*($C1070-SUM($C1073:Q1073)),0))","v":0},{"$f":"IF(R992<1+$B1072,0,IF(R992<'1 Données d''entrée'!$C$334+'1 Données d''entrée'!$C$333+1+$B1072,'1 Données d''entrée'!$C$332*($C1070-SUM($C1073:R1073)),0))","v":0},{"$f":"IF(S992<1+$B1072,0,IF(S992<'1 Données d''entrée'!$C$334+'1 Données d''entrée'!$C$333+1+$B1072,'1 Données d''entrée'!$C$332*($C1070-SUM($C1073:S1073)),0))","v":0},{"$f":"IF(T992<1+$B1072,0,IF(T992<'1 Données d''entrée'!$C$334+'1 Données d''entrée'!$C$333+1+$B1072,'1 Données d''entrée'!$C$332*($C1070-SUM($C1073:T1073)),0))","v":0},{"$f":"IF(U992<1+$B1072,0,IF(U992<'1 Données d''entrée'!$C$334+'1 Données d''entrée'!$C$333+1+$B1072,'1 Données d''entrée'!$C$332*($C1070-SUM($C1073:U1073)),0))","v":0}]
["Paiement d'intêrets",2,0,{"$f":"IF(C992<1+$B1073,0,IF(C992<'1 Données d''entrée'!$C$334+'1 Données d''entrée'!$C$333+1+$B1073,'1 Données d''entrée'!$C$332*($D1070-SUM($C1074:C1074)),0))","v":0},{"$f":"IF(D992<1+$B1073,0,IF(D992<'1 Données d''entrée'!$C$334+'1 Données d''entrée'!$C$333+1+$B1073,'1 Données d''entrée'!$C$332*($D1070-SUM($C1074:D1074)),0))","v":0},{"$f":"IF(E992<1+$B1073,0,IF(E992<'1 Données d''entrée'!$C$334+'1 Données d''entrée'!$C$333+1+$B1073,'1 Données d''entrée'!$C$332*($D1070-SUM($C1074:E1074)),0))","v":0},{"$f":"IF(F992<1+$B1073,0,IF(F992<'1 Données d''entrée'!$C$334+'1 Données d''entrée'!$C$333+1+$B1073,'1 Données d''entrée'!$C$332*($D1070-SUM($C1074:F1074)),0))","v":0},{"$f":"IF(G992<1+$B1073,0,IF(G992<'1 Données d''entrée'!$C$334+'1 Données d''entrée'!$C$333+1+$B1073,'1 Données d''entrée'!$C$332*($D1070-SUM($C1074:G1074)),0))","v":0},{"$f":"IF(H992<1+$B1073,0,IF(H992<'1 Données d''entrée'!$C$334+'1 Données d''entrée'!$C$333+1+$B1073,'1 Données d''entrée'!$C$332*($D1070-SUM($C1074:H1074)),0))","v":0},{"$f":"IF(I992<1+$B1073,0,IF(I992<'1 Données d''entrée'!$C$334+'1 Données d''entrée'!$C$333+1+$B1073,'1 Données d''entrée'!$C$332*($D1070-SUM($C1074:I1074)),0))","v":0},{"$f":"IF(J992<1+$B1073,0,IF(J992<'1 Données d''entrée'!$C$334+'1 Données d''entrée'!$C$333+1+$B1073,'1 Données d''entrée'!$C$332*($D1070-SUM($C1074:J1074)),0))","v":0},{"$f":"IF(K992<1+$B1073,0,IF(K992<'1 Données d''entrée'!$C$334+'1 Données d''entrée'!$C$333+1+$B1073,'1 Données d''entrée'!$C$332*($D1070-SUM($C1074:K1074)),0))","v":0},{"$f":"IF(L992<1+$B1073,0,IF(L992<'1 Données d''entrée'!$C$334+'1 Données d''entrée'!$C$333+1+$B1073,'1 Données d''entrée'!$C$332*($D1070-SUM($C1074:L1074)),0))","v":0},{"$f":"IF(M992<1+$B1073,0,IF(M992<'1 Données d''entrée'!$C$334+'1 Données d''entrée'!$C$333+1+$B1073,'1 Données d''entrée'!$C$332*($D1070-SUM($C1074:M1074)),0))","v":0},{"$f":"IF(N992<1+$B1073,0,IF(N992<'1 Données d''entrée'!$C$334+'1 Données d''entrée'!$C$333+1+$B1073,'1 Données d''entrée'!$C$332*($D1070-SUM($C1074:N1074)),0))","v":0},{"$f":"IF(O992<1+$B1073,0,IF(O992<'1 Données d''entrée'!$C$334+'1 Données d''entrée'!$C$333+1+$B1073,'1 Données d''entrée'!$C$332*($D1070-SUM($C1074:O1074)),0))","v":0},{"$f":"IF(P992<1+$B1073,0,IF(P992<'1 Données d''entrée'!$C$334+'1 Données d''entrée'!$C$333+1+$B1073,'1 Données d''entrée'!$C$332*($D1070-SUM($C1074:P1074)),0))","v":0},{"$f":"IF(Q992<1+$B1073,0,IF(Q992<'1 Données d''entrée'!$C$334+'1 Données d''entrée'!$C$333+1+$B1073,'1 Données d''entrée'!$C$332*($D1070-SUM($C1074:Q1074)),0))","v":0},{"$f":"IF(R992<1+$B1073,0,IF(R992<'1 Données d''entrée'!$C$334+'1 Données d''entrée'!$C$333+1+$B1073,'1 Données d''entrée'!$C$332*($D1070-SUM($C1074:R1074)),0))","v":0},{"$f":"IF(S992<1+$B1073,0,IF(S992<'1 Données d''entrée'!$C$334+'1 Données d''entrée'!$C$333+1+$B1073,'1 Données d''entrée'!$C$332*($D1070-SUM($C1074:S1074)),0))","v":0},{"$f":"IF(T992<1+$B1073,0,IF(T992<'1 Données d''entrée'!$C$334+'1 Données d''entrée'!$C$333+1+$B1073,'1 Données d''entrée'!$C$332*($D1070-SUM($C1074:T1074)),0))","v":0},{"$f":"IF(U992<1+$B1073,0,IF(U992<'1 Données d''entrée'!$C$334+'1 Données d''entrée'!$C$333+1+$B1073,'1 Données d''entrée'!$C$332*($D1070-SUM($C1074:U1074)),0))","v":0}]
["Paiement d'intêrets",3,0,{"$f":"IF(C992<1+$B1074,0,IF(C992<'1 Données d''entrée'!$C$334+'1 Données d''entrée'!$C$333+1+$B1074,'1 Données d''entrée'!$C$332*($E1070-SUM($C1075:C1075)),0))","v":0},{"$f":"IF(D992<1+$B1074,0,IF(D992<'1 Données d''entrée'!$C$334+'1 Données d''entrée'!$C$333+1+$B1074,'1 Données d''entrée'!$C$332*($E1070-SUM($C1075:D1075)),0))","v":0},{"$f":"IF(E992<1+$B1074,0,IF(E992<'1 Données d''entrée'!$C$334+'1 Données d''entrée'!$C$333+1+$B1074,'1 Données d''entrée'!$C$332*($E1070-SUM($C1075:E1075)),0))","v":0},{"$f":"IF(F992<1+$B1074,0,IF(F992<'1 Données d''entrée'!$C$334+'1 Données d''entrée'!$C$333+1+$B1074,'1 Données d''entrée'!$C$332*($E1070-SUM($C1075:F1075)),0))","v":0},{"$f":"IF(G992<1+$B1074,0,IF(G992<'1 Données d''entrée'!$C$334+'1 Données d''entrée'!$C$333+1+$B1074,'1 Données d''entrée'!$C$332*($E1070-SUM($C1075:G1075)),0))","v":0},{"$f":"IF(H992<1+$B1074,0,IF(H992<'1 Données d''entrée'!$C$334+'1 Données d''entrée'!$C$333+1+$B1074,'1 Données d''entrée'!$C$332*($E1070-SUM($C1075:H1075)),0))","v":0},{"$f":"IF(I992<1+$B1074,0,IF(I992<'1 Données d''entrée'!$C$334+'1 Données d''entrée'!$C$333+1+$B1074,'1 Données d''entrée'!$C$332*($E1070-SUM($C1075:I1075)),0))","v":0},{"$f":"IF(J992<1+$B1074,0,IF(J992<'1 Données d''entrée'!$C$334+'1 Données d''entrée'!$C$333+1+$B1074,'1 Données d''entrée'!$C$332*($E1070-SUM($C1075:J1075)),0))","v":0},{"$f":"IF(K992<1+$B1074,0,IF(K992<'1 Données d''entrée'!$C$334+'1 Données d''entrée'!$C$333+1+$B1074,'1 Données d''entrée'!$C$332*($E1070-SUM($C1075:K1075)),0))","v":0},{"$f":"IF(L992<1+$B1074,0,IF(L992<'1 Données d''entrée'!$C$334+'1 Données d''entrée'!$C$333+1+$B1074,'1 Données d''entrée'!$C$332*($E1070-SUM($C1075:L1075)),0))","v":0},{"$f":"IF(M992<1+$B1074,0,IF(M992<'1 Données d''entrée'!$C$334+'1 Données d''entrée'!$C$333+1+$B1074,'1 Données d''entrée'!$C$332*($E1070-SUM($C1075:M1075)),0))","v":0},{"$f":"IF(N992<1+$B1074,0,IF(N992<'1 Données d''entrée'!$C$334+'1 Données d''entrée'!$C$333+1+$B1074,'1 Données d''entrée'!$C$332*($E1070-SUM($C1075:N1075)),0))","v":0},{"$f":"IF(O992<1+$B1074,0,IF(O992<'1 Données d''entrée'!$C$334+'1 Données d''entrée'!$C$333+1+$B1074,'1 Données d''entrée'!$C$332*($E1070-SUM($C1075:O1075)),0))","v":0},{"$f":"IF(P992<1+$B1074,0,IF(P992<'1 Données d''entrée'!$C$334+'1 Données d''entrée'!$C$333+1+$B1074,'1 Données d''entrée'!$C$332*($E1070-SUM($C1075:P1075)),0))","v":0},{"$f":"IF(Q992<1+$B1074,0,IF(Q992<'1 Données d''entrée'!$C$334+'1 Données d''entrée'!$C$333+1+$B1074,'1 Données d''entrée'!$C$332*($E1070-SUM($C1075:Q1075)),0))","v":0},{"$f":"IF(R992<1+$B1074,0,IF(R992<'1 Données d''entrée'!$C$334+'1 Données d''entrée'!$C$333+1+$B1074,'1 Données d''entrée'!$C$332*($E1070-SUM($C1075:R1075)),0))","v":0},{"$f":"IF(S992<1+$B1074,0,IF(S992<'1 Données d''entrée'!$C$334+'1 Données d''entrée'!$C$333+1+$B1074,'1 Données d''entrée'!$C$332*($E1070-SUM($C1075:S1075)),0))","v":0},{"$f":"IF(T992<1+$B1074,0,IF(T992<'1 Données d''entrée'!$C$334+'1 Données d''entrée'!$C$333+1+$B1074,'1 Données d''entrée'!$C$332*($E1070-SUM($C1075:T1075)),0))","v":0},{"$f":"IF(U992<1+$B1074,0,IF(U992<'1 Données d''entrée'!$C$334+'1 Données d''entrée'!$C$333+1+$B1074,'1 Données d''entrée'!$C$332*($E1070-SUM($C1075:U1075)),0))","v":0}]
["Paiement d'intêrets",4,0,{"$f":"IF(C992<1+$B1075,0,IF(C992<'1 Données d''entrée'!$C$334+'1 Données d''entrée'!$C$333+1+$B1075,'1 Données d''entrée'!$C$332*($F1070-SUM($C1076:C1076)),0))","v":0},{"$f":"IF(D992<1+$B1075,0,IF(D992<'1 Données d''entrée'!$C$334+'1 Données d''entrée'!$C$333+1+$B1075,'1 Données d''entrée'!$C$332*($F1070-SUM($C1076:D1076)),0))","v":0},{"$f":"IF(E992<1+$B1075,0,IF(E992<'1 Données d''entrée'!$C$334+'1 Données d''entrée'!$C$333+1+$B1075,'1 Données d''entrée'!$C$332*($F1070-SUM($C1076:E1076)),0))","v":0},{"$f":"IF(F992<1+$B1075,0,IF(F992<'1 Données d''entrée'!$C$334+'1 Données d''entrée'!$C$333+1+$B1075,'1 Données d''entrée'!$C$332*($F1070-SUM($C1076:F1076)),0))","v":0},{"$f":"IF(G992<1+$B1075,0,IF(G992<'1 Données d''entrée'!$C$334+'1 Données d''entrée'!$C$333+1+$B1075,'1 Données d''entrée'!$C$332*($F1070-SUM($C1076:G1076)),0))","v":0},{"$f":"IF(H992<1+$B1075,0,IF(H992<'1 Données d''entrée'!$C$334+'1 Données d''entrée'!$C$333+1+$B1075,'1 Données d''entrée'!$C$332*($F1070-SUM($C1076:H1076)),0))","v":0},{"$f":"IF(I992<1+$B1075,0,IF(I992<'1 Données d''entrée'!$C$334+'1 Données d''entrée'!$C$333+1+$B1075,'1 Données d''entrée'!$C$332*($F1070-SUM($C1076:I1076)),0))","v":0},{"$f":"IF(J992<1+$B1075,0,IF(J992<'1 Données d''entrée'!$C$334+'1 Données d''entrée'!$C$333+1+$B1075,'1 Données d''entrée'!$C$332*($F1070-SUM($C1076:J1076)),0))","v":0},{"$f":"IF(K992<1+$B1075,0,IF(K992<'1 Données d''entrée'!$C$334+'1 Données d''entrée'!$C$333+1+$B1075,'1 Données d''entrée'!$C$332*($F1070-SUM($C1076:K1076)),0))","v":0},{"$f":"IF(L992<1+$B1075,0,IF(L992<'1 Données d''entrée'!$C$334+'1 Données d''entrée'!$C$333+1+$B1075,'1 Données d''entrée'!$C$332*($F1070-SUM($C1076:L1076)),0))","v":0},{"$f":"IF(M992<1+$B1075,0,IF(M992<'1 Données d''entrée'!$C$334+'1 Données d''entrée'!$C$333+1+$B1075,'1 Données d''entrée'!$C$332*($F1070-SUM($C1076:M1076)),0))","v":0},{"$f":"IF(N992<1+$B1075,0,IF(N992<'1 Données d''entrée'!$C$334+'1 Données d''entrée'!$C$333+1+$B1075,'1 Données d''entrée'!$C$332*($F1070-SUM($C1076:N1076)),0))","v":0},{"$f":"IF(O992<1+$B1075,0,IF(O992<'1 Données d''entrée'!$C$334+'1 Données d''entrée'!$C$333+1+$B1075,'1 Données d''entrée'!$C$332*($F1070-SUM($C1076:O1076)),0))","v":0},{"$f":"IF(P992<1+$B1075,0,IF(P992<'1 Données d''entrée'!$C$334+'1 Données d''entrée'!$C$333+1+$B1075,'1 Données d''entrée'!$C$332*($F1070-SUM($C1076:P1076)),0))","v":0},{"$f":"IF(Q992<1+$B1075,0,IF(Q992<'1 Données d''entrée'!$C$334+'1 Données d''entrée'!$C$333+1+$B1075,'1 Données d''entrée'!$C$332*($F1070-SUM($C1076:Q1076)),0))","v":0},{"$f":"IF(R992<1+$B1075,0,IF(R992<'1 Données d''entrée'!$C$334+'1 Données d''entrée'!$C$333+1+$B1075,'1 Données d''entrée'!$C$332*($F1070-SUM($C1076:R1076)),0))","v":0},{"$f":"IF(S992<1+$B1075,0,IF(S992<'1 Données d''entrée'!$C$334+'1 Données d''entrée'!$C$333+1+$B1075,'1 Données d''entrée'!$C$332*($F1070-SUM($C1076:S1076)),0))","v":0},{"$f":"IF(T992<1+$B1075,0,IF(T992<'1 Données d''entrée'!$C$334+'1 Données d''entrée'!$C$333+1+$B1075,'1 Données d''entrée'!$C$332*($F1070-SUM($C1076:T1076)),0))","v":0},{"$f":"IF(U992<1+$B1075,0,IF(U992<'1 Données d''entrée'!$C$334+'1 Données d''entrée'!$C$333+1+$B1075,'1 Données d''entrée'!$C$332*($F1070-SUM($C1076:U1076)),0))","v":0}]
["Paiement d'intêrets",5,0,{"$f":"IF(C992<1+$B1076,0,IF(C992<'1 Données d''entrée'!$C$334+'1 Données d''entrée'!$C$333+1+$B1076,'1 Données d''entrée'!$C$332*($G1070-SUM($C1077:C1077)),0))","v":0},{"$f":"IF(D992<1+$B1076,0,IF(D992<'1 Données d''entrée'!$C$334+'1 Données d''entrée'!$C$333+1+$B1076,'1 Données d''entrée'!$C$332*($G1070-SUM($C1077:D1077)),0))","v":0},{"$f":"IF(E992<1+$B1076,0,IF(E992<'1 Données d''entrée'!$C$334+'1 Données d''entrée'!$C$333+1+$B1076,'1 Données d''entrée'!$C$332*($G1070-SUM($C1077:E1077)),0))","v":0},{"$f":"IF(F992<1+$B1076,0,IF(F992<'1 Données d''entrée'!$C$334+'1 Données d''entrée'!$C$333+1+$B1076,'1 Données d''entrée'!$C$332*($G1070-SUM($C1077:F1077)),0))","v":0},{"$f":"IF(G992<1+$B1076,0,IF(G992<'1 Données d''entrée'!$C$334+'1 Données d''entrée'!$C$333+1+$B1076,'1 Données d''entrée'!$C$332*($G1070-SUM($C1077:G1077)),0))","v":0},{"$f":"IF(H992<1+$B1076,0,IF(H992<'1 Données d''entrée'!$C$334+'1 Données d''entrée'!$C$333+1+$B1076,'1 Données d''entrée'!$C$332*($G1070-SUM($C1077:H1077)),0))","v":0},{"$f":"IF(I992<1+$B1076,0,IF(I992<'1 Données d''entrée'!$C$334+'1 Données d''entrée'!$C$333+1+$B1076,'1 Données d''entrée'!$C$332*($G1070-SUM($C1077:I1077)),0))","v":0},{"$f":"IF(J992<1+$B1076,0,IF(J992<'1 Données d''entrée'!$C$334+'1 Données d''entrée'!$C$333+1+$B1076,'1 Données d''entrée'!$C$332*($G1070-SUM($C1077:J1077)),0))","v":0},{"$f":"IF(K992<1+$B1076,0,IF(K992<'1 Données d''entrée'!$C$334+'1 Données d''entrée'!$C$333+1+$B1076,'1 Données d''entrée'!$C$332*($G1070-SUM($C1077:K1077)),0))","v":0},{"$f":"IF(L992<1+$B1076,0,IF(L992<'1 Données d''entrée'!$C$334+'1 Données d''entrée'!$C$333+1+$B1076,'1 Données d''entrée'!$C$332*($G1070-SUM($C1077:L1077)),0))","v":0},{"$f":"IF(M992<1+$B1076,0,IF(M992<'1 Données d''entrée'!$C$334+'1 Données d''entrée'!$C$333+1+$B1076,'1 Données d''entrée'!$C$332*($G1070-SUM($C1077:M1077)),0))","v":0},{"$f":"IF(N992<1+$B1076,0,IF(N992<'1 Données d''entrée'!$C$334+'1 Données d''entrée'!$C$333+1+$B1076,'1 Données d''entrée'!$C$332*($G1070-SUM($C1077:N1077)),0))","v":0},{"$f":"IF(O992<1+$B1076,0,IF(O992<'1 Données d''entrée'!$C$334+'1 Données d''entrée'!$C$333+1+$B1076,'1 Données d''entrée'!$C$332*($G1070-SUM($C1077:O1077)),0))","v":0},{"$f":"IF(P992<1+$B1076,0,IF(P992<'1 Données d''entrée'!$C$334+'1 Données d''entrée'!$C$333+1+$B1076,'1 Données d''entrée'!$C$332*($G1070-SUM($C1077:P1077)),0))","v":0},{"$f":"IF(Q992<1+$B1076,0,IF(Q992<'1 Données d''entrée'!$C$334+'1 Données d''entrée'!$C$333+1+$B1076,'1 Données d''entrée'!$C$332*($G1070-SUM($C1077:Q1077)),0))","v":0},{"$f":"IF(R992<1+$B1076,0,IF(R992<'1 Données d''entrée'!$C$334+'1 Données d''entrée'!$C$333+1+$B1076,'1 Données d''entrée'!$C$332*($G1070-SUM($C1077:R1077)),0))","v":0},{"$f":"IF(S992<1+$B1076,0,IF(S992<'1 Données d''entrée'!$C$334+'1 Données d''entrée'!$C$333+1+$B1076,'1 Données d''entrée'!$C$332*($G1070-SUM($C1077:S1077)),0))","v":0},{"$f":"IF(T992<1+$B1076,0,IF(T992<'1 Données d''entrée'!$C$334+'1 Données d''entrée'!$C$333+1+$B1076,'1 Données d''entrée'!$C$332*($G1070-SUM($C1077:T1077)),0))","v":0},{"$f":"IF(U992<1+$B1076,0,IF(U992<'1 Données d''entrée'!$C$334+'1 Données d''entrée'!$C$333+1+$B1076,'1 Données d''entrée'!$C$332*($G1070-SUM($C1077:U1077)),0))","v":0}]
["Paiement d'intêrets",6,0,{"$f":"IF(C992<1+$B1077,0,IF(C992<'1 Données d''entrée'!$C$334+'1 Données d''entrée'!$C$333+1+$B1077,'1 Données d''entrée'!$C$332*($H1070-SUM($C1078:C1078)),0))","v":0},{"$f":"IF(D992<1+$B1077,0,IF(D992<'1 Données d''entrée'!$C$334+'1 Données d''entrée'!$C$333+1+$B1077,'1 Données d''entrée'!$C$332*($H1070-SUM($C1078:D1078)),0))","v":0},{"$f":"IF(E992<1+$B1077,0,IF(E992<'1 Données d''entrée'!$C$334+'1 Données d''entrée'!$C$333+1+$B1077,'1 Données d''entrée'!$C$332*($H1070-SUM($C1078:E1078)),0))","v":0},{"$f":"IF(F992<1+$B1077,0,IF(F992<'1 Données d''entrée'!$C$334+'1 Données d''entrée'!$C$333+1+$B1077,'1 Données d''entrée'!$C$332*($H1070-SUM($C1078:F1078)),0))","v":0},{"$f":"IF(G992<1+$B1077,0,IF(G992<'1 Données d''entrée'!$C$334+'1 Données d''entrée'!$C$333+1+$B1077,'1 Données d''entrée'!$C$332*($H1070-SUM($C1078:G1078)),0))","v":0},{"$f":"IF(H992<1+$B1077,0,IF(H992<'1 Données d''entrée'!$C$334+'1 Données d''entrée'!$C$333+1+$B1077,'1 Données d''entrée'!$C$332*($H1070-SUM($C1078:H1078)),0))","v":0},{"$f":"IF(I992<1+$B1077,0,IF(I992<'1 Données d''entrée'!$C$334+'1 Données d''entrée'!$C$333+1+$B1077,'1 Données d''entrée'!$C$332*($H1070-SUM($C1078:I1078)),0))","v":0},{"$f":"IF(J992<1+$B1077,0,IF(J992<'1 Données d''entrée'!$C$334+'1 Données d''entrée'!$C$333+1+$B1077,'1 Données d''entrée'!$C$332*($H1070-SUM($C1078:J1078)),0))","v":0},{"$f":"IF(K992<1+$B1077,0,IF(K992<'1 Données d''entrée'!$C$334+'1 Données d''entrée'!$C$333+1+$B1077,'1 Données d''entrée'!$C$332*($H1070-SUM($C1078:K1078)),0))","v":0},{"$f":"IF(L992<1+$B1077,0,IF(L992<'1 Données d''entrée'!$C$334+'1 Données d''entrée'!$C$333+1+$B1077,'1 Données d''entrée'!$C$332*($H1070-SUM($C1078:L1078)),0))","v":0},{"$f":"IF(M992<1+$B1077,0,IF(M992<'1 Données d''entrée'!$C$334+'1 Données d''entrée'!$C$333+1+$B1077,'1 Données d''entrée'!$C$332*($H1070-SUM($C1078:M1078)),0))","v":0},{"$f":"IF(N992<1+$B1077,0,IF(N992<'1 Données d''entrée'!$C$334+'1 Données d''entrée'!$C$333+1+$B1077,'1 Données d''entrée'!$C$332*($H1070-SUM($C1078:N1078)),0))","v":0},{"$f":"IF(O992<1+$B1077,0,IF(O992<'1 Données d''entrée'!$C$334+'1 Données d''entrée'!$C$333+1+$B1077,'1 Données d''entrée'!$C$332*($H1070-SUM($C1078:O1078)),0))","v":0},{"$f":"IF(P992<1+$B1077,0,IF(P992<'1 Données d''entrée'!$C$334+'1 Données d''entrée'!$C$333+1+$B1077,'1 Données d''entrée'!$C$332*($H1070-SUM($C1078:P1078)),0))","v":0},{"$f":"IF(Q992<1+$B1077,0,IF(Q992<'1 Données d''entrée'!$C$334+'1 Données d''entrée'!$C$333+1+$B1077,'1 Données d''entrée'!$C$332*($H1070-SUM($C1078:Q1078)),0))","v":0},{"$f":"IF(R992<1+$B1077,0,IF(R992<'1 Données d''entrée'!$C$334+'1 Données d''entrée'!$C$333+1+$B1077,'1 Données d''entrée'!$C$332*($H1070-SUM($C1078:R1078)),0))","v":0},{"$f":"IF(S992<1+$B1077,0,IF(S992<'1 Données d''entrée'!$C$334+'1 Données d''entrée'!$C$333+1+$B1077,'1 Données d''entrée'!$C$332*($H1070-SUM($C1078:S1078)),0))","v":0},{"$f":"IF(T992<1+$B1077,0,IF(T992<'1 Données d''entrée'!$C$334+'1 Données d''entrée'!$C$333+1+$B1077,'1 Données d''entrée'!$C$332*($H1070-SUM($C1078:T1078)),0))","v":0},{"$f":"IF(U992<1+$B1077,0,IF(U992<'1 Données d''entrée'!$C$334+'1 Données d''entrée'!$C$333+1+$B1077,'1 Données d''entrée'!$C$332*($H1070-SUM($C1078:U1078)),0))","v":0}]
["Paiement d'intêrets",7,0,{"$f":"IF(C992<1+$B1078,0,IF(C992<'1 Données d''entrée'!$C$334+'1 Données d''entrée'!$C$333+1+$B1078,'1 Données d''entrée'!$C$332*($I1070-SUM($C1079:C1079)),0))","v":0},{"$f":"IF(D992<1+$B1078,0,IF(D992<'1 Données d''entrée'!$C$334+'1 Données d''entrée'!$C$333+1+$B1078,'1 Données d''entrée'!$C$332*($I1070-SUM($C1079:D1079)),0))","v":0},{"$f":"IF(E992<1+$B1078,0,IF(E992<'1 Données d''entrée'!$C$334+'1 Données d''entrée'!$C$333+1+$B1078,'1 Données d''entrée'!$C$332*($I1070-SUM($C1079:E1079)),0))","v":0},{"$f":"IF(F992<1+$B1078,0,IF(F992<'1 Données d''entrée'!$C$334+'1 Données d''entrée'!$C$333+1+$B1078,'1 Données d''entrée'!$C$332*($I1070-SUM($C1079:F1079)),0))","v":0},{"$f":"IF(G992<1+$B1078,0,IF(G992<'1 Données d''entrée'!$C$334+'1 Données d''entrée'!$C$333+1+$B1078,'1 Données d''entrée'!$C$332*($I1070-SUM($C1079:G1079)),0))","v":0},{"$f":"IF(H992<1+$B1078,0,IF(H992<'1 Données d''entrée'!$C$334+'1 Données d''entrée'!$C$333+1+$B1078,'1 Données d''entrée'!$C$332*($I1070-SUM($C1079:H1079)),0))","v":0},{"$f":"IF(I992<1+$B1078,0,IF(I992<'1 Données d''entrée'!$C$334+'1 Données d''entrée'!$C$333+1+$B1078,'1 Données d''entrée'!$C$332*($I1070-SUM($C1079:I1079)),0))","v":0},{"$f":"IF(J992<1+$B1078,0,IF(J992<'1 Données d''entrée'!$C$334+'1 Données d''entrée'!$C$333+1+$B1078,'1 Données d''entrée'!$C$332*($I1070-SUM($C1079:J1079)),0))","v":0},{"$f":"IF(K992<1+$B1078,0,IF(K992<'1 Données d''entrée'!$C$334+'1 Données d''entrée'!$C$333+1+$B1078,'1 Données d''entrée'!$C$332*($I1070-SUM($C1079:K1079)),0))","v":0},{"$f":"IF(L992<1+$B1078,0,IF(L992<'1 Données d''entrée'!$C$334+'1 Données d''entrée'!$C$333+1+$B1078,'1 Données d''entrée'!$C$332*($I1070-SUM($C1079:L1079)),0))","v":0},{"$f":"IF(M992<1+$B1078,0,IF(M992<'1 Données d''entrée'!$C$334+'1 Données d''entrée'!$C$333+1+$B1078,'1 Données d''entrée'!$C$332*($I1070-SUM($C1079:M1079)),0))","v":0},{"$f":"IF(N992<1+$B1078,0,IF(N992<'1 Données d''entrée'!$C$334+'1 Données d''entrée'!$C$333+1+$B1078,'1 Données d''entrée'!$C$332*($I1070-SUM($C1079:N1079)),0))","v":0},{"$f":"IF(O992<1+$B1078,0,IF(O992<'1 Données d''entrée'!$C$334+'1 Données d''entrée'!$C$333+1+$B1078,'1 Données d''entrée'!$C$332*($I1070-SUM($C1079:O1079)),0))","v":0},{"$f":"IF(P992<1+$B1078,0,IF(P992<'1 Données d''entrée'!$C$334+'1 Données d''entrée'!$C$333+1+$B1078,'1 Données d''entrée'!$C$332*($I1070-SUM($C1079:P1079)),0))","v":0},{"$f":"IF(Q992<1+$B1078,0,IF(Q992<'1 Données d''entrée'!$C$334+'1 Données d''entrée'!$C$333+1+$B1078,'1 Données d''entrée'!$C$332*($I1070-SUM($C1079:Q1079)),0))","v":0},{"$f":"IF(R992<1+$B1078,0,IF(R992<'1 Données d''entrée'!$C$334+'1 Données d''entrée'!$C$333+1+$B1078,'1 Données d''entrée'!$C$332*($I1070-SUM($C1079:R1079)),0))","v":0},{"$f":"IF(S992<1+$B1078,0,IF(S992<'1 Données d''entrée'!$C$334+'1 Données d''entrée'!$C$333+1+$B1078,'1 Données d''entrée'!$C$332*($I1070-SUM($C1079:S1079)),0))","v":0},{"$f":"IF(T992<1+$B1078,0,IF(T992<'1 Données d''entrée'!$C$334+'1 Données d''entrée'!$C$333+1+$B1078,'1 Données d''entrée'!$C$332*($I1070-SUM($C1079:T1079)),0))","v":0},{"$f":"IF(U992<1+$B1078,0,IF(U992<'1 Données d''entrée'!$C$334+'1 Données d''entrée'!$C$333+1+$B1078,'1 Données d''entrée'!$C$332*($I1070-SUM($C1079:U1079)),0))","v":0}]
["Paiement d'intêrets",8,0,{"$f":"IF(C992<1+$B1079,0,IF(C992<'1 Données d''entrée'!$C$334+'1 Données d''entrée'!$C$333+1+$B1079,'1 Données d''entrée'!$C$332*($J1070-SUM($C1080:C1080)),0))","v":0},{"$f":"IF(D992<1+$B1079,0,IF(D992<'1 Données d''entrée'!$C$334+'1 Données d''entrée'!$C$333+1+$B1079,'1 Données d''entrée'!$C$332*($J1070-SUM($C1080:D1080)),0))","v":0},{"$f":"IF(E992<1+$B1079,0,IF(E992<'1 Données d''entrée'!$C$334+'1 Données d''entrée'!$C$333+1+$B1079,'1 Données d''entrée'!$C$332*($J1070-SUM($C1080:E1080)),0))","v":0},{"$f":"IF(F992<1+$B1079,0,IF(F992<'1 Données d''entrée'!$C$334+'1 Données d''entrée'!$C$333+1+$B1079,'1 Données d''entrée'!$C$332*($J1070-SUM($C1080:F1080)),0))","v":0},{"$f":"IF(G992<1+$B1079,0,IF(G992<'1 Données d''entrée'!$C$334+'1 Données d''entrée'!$C$333+1+$B1079,'1 Données d''entrée'!$C$332*($J1070-SUM($C1080:G1080)),0))","v":0},{"$f":"IF(H992<1+$B1079,0,IF(H992<'1 Données d''entrée'!$C$334+'1 Données d''entrée'!$C$333+1+$B1079,'1 Données d''entrée'!$C$332*($J1070-SUM($C1080:H1080)),0))","v":0},{"$f":"IF(I992<1+$B1079,0,IF(I992<'1 Données d''entrée'!$C$334+'1 Données d''entrée'!$C$333+1+$B1079,'1 Données d''entrée'!$C$332*($J1070-SUM($C1080:I1080)),0))","v":0},{"$f":"IF(J992<1+$B1079,0,IF(J992<'1 Données d''entrée'!$C$334+'1 Données d''entrée'!$C$333+1+$B1079,'1 Données d''entrée'!$C$332*($J1070-SUM($C1080:J1080)),0))","v":0},{"$f":"IF(K992<1+$B1079,0,IF(K992<'1 Données d''entrée'!$C$334+'1 Données d''entrée'!$C$333+1+$B1079,'1 Données d''entrée'!$C$332*($J1070-SUM($C1080:K1080)),0))","v":0},{"$f":"IF(L992<1+$B1079,0,IF(L992<'1 Données d''entrée'!$C$334+'1 Données d''entrée'!$C$333+1+$B1079,'1 Données d''entrée'!$C$332*($J1070-SUM($C1080:L1080)),0))","v":0},{"$f":"IF(M992<1+$B1079,0,IF(M992<'1 Données d''entrée'!$C$334+'1 Données d''entrée'!$C$333+1+$B1079,'1 Données d''entrée'!$C$332*($J1070-SUM($C1080:M1080)),0))","v":0},{"$f":"IF(N992<1+$B1079,0,IF(N992<'1 Données d''entrée'!$C$334+'1 Données d''entrée'!$C$333+1+$B1079,'1 Données d''entrée'!$C$332*($J1070-SUM($C1080:N1080)),0))","v":0},{"$f":"IF(O992<1+$B1079,0,IF(O992<'1 Données d''entrée'!$C$334+'1 Données d''entrée'!$C$333+1+$B1079,'1 Données d''entrée'!$C$332*($J1070-SUM($C1080:O1080)),0))","v":0},{"$f":"IF(P992<1+$B1079,0,IF(P992<'1 Données d''entrée'!$C$334+'1 Données d''entrée'!$C$333+1+$B1079,'1 Données d''entrée'!$C$332*($J1070-SUM($C1080:P1080)),0))","v":0},{"$f":"IF(Q992<1+$B1079,0,IF(Q992<'1 Données d''entrée'!$C$334+'1 Données d''entrée'!$C$333+1+$B1079,'1 Données d''entrée'!$C$332*($J1070-SUM($C1080:Q1080)),0))","v":0},{"$f":"IF(R992<1+$B1079,0,IF(R992<'1 Données d''entrée'!$C$334+'1 Données d''entrée'!$C$333+1+$B1079,'1 Données d''entrée'!$C$332*($J1070-SUM($C1080:R1080)),0))","v":0},{"$f":"IF(S992<1+$B1079,0,IF(S992<'1 Données d''entrée'!$C$334+'1 Données d''entrée'!$C$333+1+$B1079,'1 Données d''entrée'!$C$332*($J1070-SUM($C1080:S1080)),0))","v":0},{"$f":"IF(T992<1+$B1079,0,IF(T992<'1 Données d''entrée'!$C$334+'1 Données d''entrée'!$C$333+1+$B1079,'1 Données d''entrée'!$C$332*($J1070-SUM($C1080:T1080)),0))","v":0},{"$f":"IF(U992<1+$B1079,0,IF(U992<'1 Données d''entrée'!$C$334+'1 Données d''entrée'!$C$333+1+$B1079,'1 Données d''entrée'!$C$332*($J1070-SUM($C1080:U1080)),0))","v":0}]
["Paiement d'intêrets",9,0,{"$f":"IF(C992<1+$B1080,0,IF(C992<'1 Données d''entrée'!$C$334+'1 Données d''entrée'!$C$333+1+$B1080,'1 Données d''entrée'!$C$332*($K1070-SUM($C1081:C1081)),0))","v":0},{"$f":"IF(D992<1+$B1080,0,IF(D992<'1 Données d''entrée'!$C$334+'1 Données d''entrée'!$C$333+1+$B1080,'1 Données d''entrée'!$C$332*($K1070-SUM($C1081:D1081)),0))","v":0},{"$f":"IF(E992<1+$B1080,0,IF(E992<'1 Données d''entrée'!$C$334+'1 Données d''entrée'!$C$333+1+$B1080,'1 Données d''entrée'!$C$332*($K1070-SUM($C1081:E1081)),0))","v":0},{"$f":"IF(F992<1+$B1080,0,IF(F992<'1 Données d''entrée'!$C$334+'1 Données d''entrée'!$C$333+1+$B1080,'1 Données d''entrée'!$C$332*($K1070-SUM($C1081:F1081)),0))","v":0},{"$f":"IF(G992<1+$B1080,0,IF(G992<'1 Données d''entrée'!$C$334+'1 Données d''entrée'!$C$333+1+$B1080,'1 Données d''entrée'!$C$332*($K1070-SUM($C1081:G1081)),0))","v":0},{"$f":"IF(H992<1+$B1080,0,IF(H992<'1 Données d''entrée'!$C$334+'1 Données d''entrée'!$C$333+1+$B1080,'1 Données d''entrée'!$C$332*($K1070-SUM($C1081:H1081)),0))","v":0},{"$f":"IF(I992<1+$B1080,0,IF(I992<'1 Données d''entrée'!$C$334+'1 Données d''entrée'!$C$333+1+$B1080,'1 Données d''entrée'!$C$332*($K1070-SUM($C1081:I1081)),0))","v":0},{"$f":"IF(J992<1+$B1080,0,IF(J992<'1 Données d''entrée'!$C$334+'1 Données d''entrée'!$C$333+1+$B1080,'1 Données d''entrée'!$C$332*($K1070-SUM($C1081:J1081)),0))","v":0},{"$f":"IF(K992<1+$B1080,0,IF(K992<'1 Données d''entrée'!$C$334+'1 Données d''entrée'!$C$333+1+$B1080,'1 Données d''entrée'!$C$332*($K1070-SUM($C1081:K1081)),0))","v":0},{"$f":"IF(L992<1+$B1080,0,IF(L992<'1 Données d''entrée'!$C$334+'1 Données d''entrée'!$C$333+1+$B1080,'1 Données d''entrée'!$C$332*($K1070-SUM($C1081:L1081)),0))","v":0},{"$f":"IF(M992<1+$B1080,0,IF(M992<'1 Données d''entrée'!$C$334+'1 Données d''entrée'!$C$333+1+$B1080,'1 Données d''entrée'!$C$332*($K1070-SUM($C1081:M1081)),0))","v":0},{"$f":"IF(N992<1+$B1080,0,IF(N992<'1 Données d''entrée'!$C$334+'1 Données d''entrée'!$C$333+1+$B1080,'1 Données d''entrée'!$C$332*($K1070-SUM($C1081:N1081)),0))","v":0},{"$f":"IF(O992<1+$B1080,0,IF(O992<'1 Données d''entrée'!$C$334+'1 Données d''entrée'!$C$333+1+$B1080,'1 Données d''entrée'!$C$332*($K1070-SUM($C1081:O1081)),0))","v":0},{"$f":"IF(P992<1+$B1080,0,IF(P992<'1 Données d''entrée'!$C$334+'1 Données d''entrée'!$C$333+1+$B1080,'1 Données d''entrée'!$C$332*($K1070-SUM($C1081:P1081)),0))","v":0},{"$f":"IF(Q992<1+$B1080,0,IF(Q992<'1 Données d''entrée'!$C$334+'1 Données d''entrée'!$C$333+1+$B1080,'1 Données d''entrée'!$C$332*($K1070-SUM($C1081:Q1081)),0))","v":0},{"$f":"IF(R992<1+$B1080,0,IF(R992<'1 Données d''entrée'!$C$334+'1 Données d''entrée'!$C$333+1+$B1080,'1 Données d''entrée'!$C$332*($K1070-SUM($C1081:R1081)),0))","v":0},{"$f":"IF(S992<1+$B1080,0,IF(S992<'1 Données d''entrée'!$C$334+'1 Données d''entrée'!$C$333+1+$B1080,'1 Données d''entrée'!$C$332*($K1070-SUM($C1081:S1081)),0))","v":0},{"$f":"IF(T992<1+$B1080,0,IF(T992<'1 Données d''entrée'!$C$334+'1 Données d''entrée'!$C$333+1+$B1080,'1 Données d''entrée'!$C$332*($K1070-SUM($C1081:T1081)),0))","v":0},{"$f":"IF(U992<1+$B1080,0,IF(U992<'1 Données d''entrée'!$C$334+'1 Données d''entrée'!$C$333+1+$B1080,'1 Données d''entrée'!$C$332*($K1070-SUM($C1081:U1081)),0))","v":0}]
["Paiement d'intêrets",10,0,{"$f":"IF(C992<1+$B1081,0,IF(C992<'1 Données d''entrée'!$C$334+'1 Données d''entrée'!$C$333+1+$B1081,'1 Données d''entrée'!$C$332*($L1070-SUM($C1082:C1082)),0))","v":0},{"$f":"IF(D992<1+$B1081,0,IF(D992<'1 Données d''entrée'!$C$334+'1 Données d''entrée'!$C$333+1+$B1081,'1 Données d''entrée'!$C$332*($L1070-SUM($C1082:D1082)),0))","v":0},{"$f":"IF(E992<1+$B1081,0,IF(E992<'1 Données d''entrée'!$C$334+'1 Données d''entrée'!$C$333+1+$B1081,'1 Données d''entrée'!$C$332*($L1070-SUM($C1082:E1082)),0))","v":0},{"$f":"IF(F992<1+$B1081,0,IF(F992<'1 Données d''entrée'!$C$334+'1 Données d''entrée'!$C$333+1+$B1081,'1 Données d''entrée'!$C$332*($L1070-SUM($C1082:F1082)),0))","v":0},{"$f":"IF(G992<1+$B1081,0,IF(G992<'1 Données d''entrée'!$C$334+'1 Données d''entrée'!$C$333+1+$B1081,'1 Données d''entrée'!$C$332*($L1070-SUM($C1082:G1082)),0))","v":0},{"$f":"IF(H992<1+$B1081,0,IF(H992<'1 Données d''entrée'!$C$334+'1 Données d''entrée'!$C$333+1+$B1081,'1 Données d''entrée'!$C$332*($L1070-SUM($C1082:H1082)),0))","v":0},{"$f":"IF(I992<1+$B1081,0,IF(I992<'1 Données d''entrée'!$C$334+'1 Données d''entrée'!$C$333+1+$B1081,'1 Données d''entrée'!$C$332*($L1070-SUM($C1082:I1082)),0))","v":0},{"$f":"IF(J992<1+$B1081,0,IF(J992<'1 Données d''entrée'!$C$334+'1 Données d''entrée'!$C$333+1+$B1081,'1 Données d''entrée'!$C$332*($L1070-SUM($C1082:J1082)),0))","v":0},{"$f":"IF(K992<1+$B1081,0,IF(K992<'1 Données d''entrée'!$C$334+'1 Données d''entrée'!$C$333+1+$B1081,'1 Données d''entrée'!$C$332*($L1070-SUM($C1082:K1082)),0))","v":0},{"$f":"IF(L992<1+$B1081,0,IF(L992<'1 Données d''entrée'!$C$334+'1 Données d''entrée'!$C$333+1+$B1081,'1 Données d''entrée'!$C$332*($L1070-SUM($C1082:L1082)),0))","v":0},{"$f":"IF(M992<1+$B1081,0,IF(M992<'1 Données d''entrée'!$C$334+'1 Données d''entrée'!$C$333+1+$B1081,'1 Données d''entrée'!$C$332*($L1070-SUM($C1082:M1082)),0))","v":0},{"$f":"IF(N992<1+$B1081,0,IF(N992<'1 Données d''entrée'!$C$334+'1 Données d''entrée'!$C$333+1+$B1081,'1 Données d''entrée'!$C$332*($L1070-SUM($C1082:N1082)),0))","v":0},{"$f":"IF(O992<1+$B1081,0,IF(O992<'1 Données d''entrée'!$C$334+'1 Données d''entrée'!$C$333+1+$B1081,'1 Données d''entrée'!$C$332*($L1070-SUM($C1082:O1082)),0))","v":0},{"$f":"IF(P992<1+$B1081,0,IF(P992<'1 Données d''entrée'!$C$334+'1 Données d''entrée'!$C$333+1+$B1081,'1 Données d''entrée'!$C$332*($L1070-SUM($C1082:P1082)),0))","v":0},{"$f":"IF(Q992<1+$B1081,0,IF(Q992<'1 Données d''entrée'!$C$334+'1 Données d''entrée'!$C$333+1+$B1081,'1 Données d''entrée'!$C$332*($L1070-SUM($C1082:Q1082)),0))","v":0},{"$f":"IF(R992<1+$B1081,0,IF(R992<'1 Données d''entrée'!$C$334+'1 Données d''entrée'!$C$333+1+$B1081,'1 Données d''entrée'!$C$332*($L1070-SUM($C1082:R1082)),0))","v":0},{"$f":"IF(S992<1+$B1081,0,IF(S992<'1 Données d''entrée'!$C$334+'1 Données d''entrée'!$C$333+1+$B1081,'1 Données d''entrée'!$C$332*($L1070-SUM($C1082:S1082)),0))","v":0},{"$f":"IF(T992<1+$B1081,0,IF(T992<'1 Données d''entrée'!$C$334+'1 Données d''entrée'!$C$333+1+$B1081,'1 Données d''entrée'!$C$332*($L1070-SUM($C1082:T1082)),0))","v":0},{"$f":"IF(U992<1+$B1081,0,IF(U992<'1 Données d''entrée'!$C$334+'1 Données d''entrée'!$C$333+1+$B1081,'1 Données d''entrée'!$C$332*($L1070-SUM($C1082:U1082)),0))","v":0}]
[]
[null,"Période",1,2,3,4,5,6,7,8,9,10,11,12,13,14,15,16,17,18,19,20]
["Prêt bancaire - Option 3: Remboursement vers l'annuité constante",{"$f":"'1 Données d''entrée'!$B$344","v":0}]
["Prêt(s) nouveau(x)",null,{"$f":"IF(C1035<0,C1035*(-1)*$B1097+C1035*(-1)*$B1097*'1 Données d''entrée'!$C$338,0)","v":{"$error":"#DIV/0!"}},{"$f":"IF(D1035<0,D1035*(-1)*$B1097+D1035*(-1)*$B1097*'1 Données d''entrée'!$C$338,0)","v":{"$error":"#DIV/0!"}},{"$f":"IF(E1035<0,E1035*(-1)*$B1097+E1035*(-1)*$B1097*'1 Données d''entrée'!$C$338,0)","v":{"$error":"#DIV/0!"}},{"$f":"IF(F1035<0,F1035*(-1)*$B1097+F1035*(-1)*$B1097*'1 Données d''entrée'!$C$338,0)","v":{"$error":"#DIV/0!"}},{"$f":"IF(G1035<0,G1035*(-1)*$B1097+G1035*(-1)*$B1097*'1 Données d''entrée'!$C$338,0)","v":{"$error":"#DIV/0!"}},{"$f":"IF(H1035<0,H1035*(-1)*$B1097+H1035*(-1)*$B1097*'1 Données d''entrée'!$C$338,0)","v":{"$error":"#DIV/0!"}},{"$f":"IF(I1035<0,I1035*(-1)*$B1097+I1035*(-1)*$B1097*'1 Données d''entrée'!$C$338,0)","v":{"$error":"#DIV/0!"}},{"$f":"IF(J1035<0,J1035*(-1)*$B1097+J1035*(-1)*$B1097*'1 Données d''entrée'!$C$338,0)","v":{"$error":"#DIV/0!"}},{"$f":"IF(K1035<0,K1035*(-1)*$B1097+K1035*(-1)*$B1097*'1 Données d''entrée'!$C$338,0)","v":{"$error":"#DIV/0!"}},{"$f":"IF(L1035<0,L1035*(-1)*$B1097+L1035*(-1)*$B1097*'1 Données d''entrée'!$C$338,0)","v":{"$error":"#DIV/0!"}},{"$f":"IF(M1035<0,M1035*(-1)*$B1097+M1035*(-1)*$B1097*'1 Données d''entrée'!$C$338,0)","v":{"$error":"#DIV/0!"}},{"$f":"IF(N1035<0,N1035*(-1)*$B1097+N1035*(-1)*$B1097*'1 Données d''entrée'!$C$338,0)","v":{"$error":"#DIV/0!"}},{"$f":"IF(O1035<0,O1035*(-1)*$B1097+O1035*(-1)*$B1097*'1 Données d''entrée'!$C$338,0)","v":{"$error":"#DIV/0!"}},{"$f":"IF(P1035<0,P1035*(-1)*$B1097+P1035*(-1)*$B1097*'1 Données d''entrée'!$C$338,0)","v":{"$error":"#DIV/0!"}},{"$f":"IF(Q1035<0,Q1035*(-1)*$B1097+Q1035*(-1)*$B1097*'1 Données d''entrée'!$C$338,0)","v":{"$error":"#DIV/0!"}},{"$f":"IF(R1035<0,R1035*(-1)*$B1097+R1035*(-1)*$B1097*'1 Données d''entrée'!$C$338,0)","v":{"$error":"#DIV/0!"}},{"$f":"IF(S1035<0,S1035*(-1)*$B1097+S1035*(-1)*$B1097*'1 Données d''entrée'!$C$338,0)","v":{"$error":"#DIV/0!"}},{"$f":"IF(T1035<0,T1035*(-1)*$B1097+T1035*(-1)*$B1097*'1 Données d''entrée'!$C$338,0)","v":{"$error":"#DIV/0!"}},{"$f":"IF(U1035<0,U1035*(-1)*$B1097+U1035*(-1)*$B1097*'1 Données d''entrée'!$C$338,0)","v":{"$error":"#DIV/0!"}},{"$f":"IF(V1035<0,V1035*(-1)*$B1097+V1035*(-1)*$B1097*'1 Données d''entrée'!$C$338,0)","v":{"$error":"#DIV/0!"}}]
[null,"Période de prêt nouveau"]
["Remboursement vers l'annuité constante",0,0,0,0,0,0,0,0,0,0,0,0,0,0,0,0,0,0,0,0,0]
[null,1,{"$f":"IF(C$54<'1 Données d''entrée'!$C$334+1+$B1101,0,IF(C$54<'1 Données d''entrée'!$C$333+'1 Données d''entrée'!$C$334+1+$B1101,$C$160*('1 Données d''entrée'!$C$332*(1+'1 Données d''entrée'!$C$332)^'1 Données d''entrée'!$C$333)/((1+'1 Données d''entrée'!$C$332)^'1 Données d''entrée'!$C$333-1),0))","v":0},{"$f":"IF(D992<'1 Données d''entrée'!$C$334+1+$B1101,0,IF(D992<'1 Données d''entrée'!$C$333+'1 Données d''entrée'!$C$334+1+$B1101,$C1098*('1 Données d''entrée'!$C$332*(1+'1 Données d''entrée'!$C$332)^'1 Données d''entrée'!$C$333)/((1+'1 Données d''entrée'!$C$332)^'1 Données d''entrée'!$C$333-1),0))","v":0},{"$f":"IF(E992<'1 Données d''entrée'!$C$334+1+$B1101,0,IF(E992<'1 Données d''entrée'!$C$333+'1 Données d''entrée'!$C$334+1+$B1101,$C1098*('1 Données d''entrée'!$C$332*(1+'1 Données d''entrée'!$C$332)^'1 Données d''entrée'!$C$333)/((1+'1 Données d''entrée'!$C$332)^'1 Données d''entrée'!$C$333-1),0))","v":0},{"$f":"IF(F992<'1 Données d''entrée'!$C$334+1+$B1101,0,IF(F992<'1 Données d''entrée'!$C$333+'1 Données d''entrée'!$C$334+1+$B1101,$C1098*('1 Données d''entrée'!$C$332*(1+'1 Données d''entrée'!$C$332)^'1 Données d''entrée'!$C$333)/((1+'1 Données d''entrée'!$C$332)^'1 Données d''entrée'!$C$333-1),0))","v":0},{"$f":"IF(G992<'1 Données d''entrée'!$C$334+1+$B1101,0,IF(G992<'1 Données d''entrée'!$C$333+'1 Données d''entrée'!$C$334+1+$B1101,$C1098*('1 Données d''entrée'!$C$332*(1+'1 Données d''entrée'!$C$332)^'1 Données d''entrée'!$C$333)/((1+'1 Données d''entrée'!$C$332)^'1 Données d''entrée'!$C$333-1),0))","v":0},{"$f":"IF(H992<'1 Données d''entrée'!$C$334+1+$B1101,0,IF(H992<'1 Données d''entrée'!$C$333+'1 Données d''entrée'!$C$334+1+$B1101,$C1098*('1 Données d''entrée'!$C$332*(1+'1 Données d''entrée'!$C$332)^'1 Données d''entrée'!$C$333)/((1+'1 Données d''entrée'!$C$332)^'1 Données d''entrée'!$C$333-1),0))","v":0},{"$f":"IF(I992<'1 Données d''entrée'!$C$334+1+$B1101,0,IF(I992<'1 Données d''entrée'!$C$333+'1 Données d''entrée'!$C$334+1+$B1101,$C1098*('1 Données d''entrée'!$C$332*(1+'1 Données d''entrée'!$C$332)^'1 Données d''entrée'!$C$333)/((1+'1 Données d''entrée'!$C$332)^'1 Données d''entrée'!$C$333-1),0))","v":0},{"$f":"IF(J992<'1 Données d''entrée'!$C$334+1+$B1101,0,IF(J992<'1 Données d''entrée'!$C$333+'1 Données d''entrée'!$C$334+1+$B1101,$C1098*('1 Données d''entrée'!$C$332*(1+'1 Données d''entrée'!$C$332)^'1 Données d''entrée'!$C$333)/((1+'1 Données d''entrée'!$C$332)^'1 Données d''entrée'!$C$333-1),0))","v":0},{"$f":"IF(K992<'1 Données d''entrée'!$C$334+1+$B1101,0,IF(K992<'1 Données d''entrée'!$C$333+'1 Données d''entrée'!$C$334+1+$B1101,$C1098*('1 Données d''entrée'!$C$332*(1+'1 Données d''entrée'!$C$332)^'1 Données d''entrée'!$C$333)/((1+'1 Données d''entrée'!$C$332)^'1 Données d''entrée'!$C$333-1),0))","v":0},{"$f":"IF(L992<'1 Données d''entrée'!$C$334+1+$B1101,0,IF(L992<'1 Données d''entrée'!$C$333+'1 Données d''entrée'!$C$334+1+$B1101,$C1098*('1 Données d''entrée'!$C$332*(1+'1 Données d''entrée'!$C$332)^'1 Données d''entrée'!$C$333)/((1+'1 Données d''entrée'!$C$332)^'1 Données d''entrée'!$C$333-1),0))","v":0},{"$f":"IF(M992<'1 Données d''entrée'!$C$334+1+$B1101,0,IF(M992<'1 Données d''entrée'!$C$333+'1 Données d''entrée'!$C$334+1+$B1101,$C1098*('1 Données d''entrée'!$C$332*(1+'1 Données d''entrée'!$C$332)^'1 Données d''entrée'!$C$333)/((1+'1 Données d''entrée'!$C$332)^'1 Données d''entrée'!$C$333-1),0))","v":0},{"$f":"IF(N992<'1 Données d''entrée'!$C$334+1+$B1101,0,IF(N992<'1 Données d''entrée'!$C$333+'1 Données d''entrée'!$C$334+1+$B1101,$C1098*('1 Données d''entrée'!$C$332*(1+'1 Données d''entrée'!$C$332)^'1 Données d''entrée'!$C$333)/((1+'1 Données d''entrée'!$C$332)^'1 Données d''entrée'!$C$333-1),0))","v":0},{"$f":"IF(O992<'1 Données d''entrée'!$C$334+1+$B1101,0,IF(O992<'1 Données d''entrée'!$C$333+'1 Données d''entrée'!$C$334+1+$B1101,$C1098*('1 Données d''entrée'!$C$332*(1+'1 Données d''entrée'!$C$332)^'1 Données d''entrée'!$C$333)/((1+'1 Données d''entrée'!$C$332)^'1 Données d''entrée'!$C$333-1),0))","v":0},{"$f":"IF(P992<'1 Données d''entrée'!$C$334+1+$B1101,0,IF(P992<'1 Données d''entrée'!$C$333+'1 Données d''entrée'!$C$334+1+$B1101,$C1098*('1 Données d''entrée'!$C$332*(1+'1 Données d''entrée'!$C$332)^'1 Données d''entrée'!$C$333)/((1+'1 Données d''entrée'!$C$332)^'1 Données d''entrée'!$C$333-1),0))","v":0},{"$f":"IF(Q992<'1 Données d''entrée'!$C$334+1+$B1101,0,IF(Q992<'1 Données d''entrée'!$C$333+'1 Données d''entrée'!$C$334+1+$B1101,$C1098*('1 Données d''entrée'!$C$332*(1+'1 Données d''entrée'!$C$332)^'1 Données d''entrée'!$C$333)/((1+'1 Données d''entrée'!$C$332)^'1 Données d''entrée'!$C$333-1),0))","v":0},{"$f":"IF(R992<'1 Données d''entrée'!$C$334+1+$B1101,0,IF(R992<'1 Données d''entrée'!$C$333+'1 Données d''entrée'!$C$334+1+$B1101,$C1098*('1 Données d''entrée'!$C$332*(1+'1 Données d''entrée'!$C$332)^'1 Données d''entrée'!$C$333)/((1+'1 Données d''entrée'!$C$332)^'1 Données d''entrée'!$C$333-1),0))","v":0},{"$f":"IF(S992<'1 Données d''entrée'!$C$334+1+$B1101,0,IF(S992<'1 Données d''entrée'!$C$333+'1 Données d''entrée'!$C$334+1+$B1101,$C1098*('1 Données d''entrée'!$C$332*(1+'1 Données d''entrée'!$C$332)^'1 Données d''entrée'!$C$333)/((1+'1 Données d''entrée'!$C$332)^'1 Données d''entrée'!$C$333-1),0))","v":0},{"$f":"IF(T992<'1 Données d''entrée'!$C$334+1+$B1101,0,IF(T992<'1 Données d''entrée'!$C$333+'1 Données d''entrée'!$C$334+1+$B1101,$C1098*('1 Données d''entrée'!$C$332*(1+'1 Données d''entrée'!$C$332)^'1 Données d''entrée'!$C$333)/((1+'1 Données d''entrée'!$C$332)^'1 Données d''entrée'!$C$333-1),0))","v":0},{"$f":"IF(U992<'1 Données d''entrée'!$C$334+1+$B1101,0,IF(U992<'1 Données d''entrée'!$C$333+'1 Données d''entrée'!$C$334+1+$B1101,$C1098*('1 Données d''entrée'!$C$332*(1+'1 Données d''entrée'!$C$332)^'1 Données d''entrée'!$C$333)/((1+'1 Données d''entrée'!$C$332)^'1 Données d''entrée'!$C$333-1),0))","v":0},{"$f":"IF(V992<'1 Données d''entrée'!$C$334+1+$B1101,0,IF(V992<'1 Données d''entrée'!$C$333+'1 Données d''entrée'!$C$334+1+$B1101,$C1098*('1 Données d''entrée'!$C$332*(1+'1 Données d''entrée'!$C$332)^'1 Données d''entrée'!$C$333)/((1+'1 Données d''entrée'!$C$332)^'1 Données d''entrée'!$C$333-1),0))","v":0}]
[null,2,{"$f":"IF(C$54<'1 Données d''entrée'!$C$334+1+$B1102,0,IF(C$54<'1 Données d''entrée'!$C$333+'1 Données d''entrée'!$C$334+1+$B1102,$D$160*('1 Données d''entrée'!$C$332*(1+'1 Données d''entrée'!$C$332)^'1 Données d''entrée'!$C$333)/((1+'1 Données d''entrée'!$C$332)^'1 Données d''entrée'!$C$333-1),0))","v":0},{"$f":"IF(D992<'1 Données d''entrée'!$C$334+1+$B1102,0,IF(D992<'1 Données d''entrée'!$C$333+'1 Données d''entrée'!$C$334+1+$B1102,$D1098*('1 Données d''entrée'!$C$332*(1+'1 Données d''entrée'!$C$332)^'1 Données d''entrée'!$C$333)/((1+'1 Données d''entrée'!$C$332)^'1 Données d''entrée'!$C$333-1),0))","v":0},{"$f":"IF(E992<'1 Données d''entrée'!$C$334+1+$B1102,0,IF(E992<'1 Données d''entrée'!$C$333+'1 Données d''entrée'!$C$334+1+$B1102,$D1098*('1 Données d''entrée'!$C$332*(1+'1 Données d''entrée'!$C$332)^'1 Données d''entrée'!$C$333)/((1+'1 Données d''entrée'!$C$332)^'1 Données d''entrée'!$C$333-1),0))","v":0},{"$f":"IF(F992<'1 Données d''entrée'!$C$334+1+$B1102,0,IF(F992<'1 Données d''entrée'!$C$333+'1 Données d''entrée'!$C$334+1+$B1102,$D1098*('1 Données d''entrée'!$C$332*(1+'1 Données d''entrée'!$C$332)^'1 Données d''entrée'!$C$333)/((1+'1 Données d''entrée'!$C$332)^'1 Données d''entrée'!$C$333-1),0))","v":0},{"$f":"IF(G992<'1 Données d''entrée'!$C$334+1+$B1102,0,IF(G992<'1 Données d''entrée'!$C$333+'1 Données d''entrée'!$C$334+1+$B1102,$D1098*('1 Données d''entrée'!$C$332*(1+'1 Données d''entrée'!$C$332)^'1 Données d''entrée'!$C$333)/((1+'1 Données d''entrée'!$C$332)^'1 Données d''entrée'!$C$333-1),0))","v":0},{"$f":"IF(H992<'1 Données d''entrée'!$C$334+1+$B1102,0,IF(H992<'1 Données d''entrée'!$C$333+'1 Données d''entrée'!$C$334+1+$B1102,$D1098*('1 Données d''entrée'!$C$332*(1+'1 Données d''entrée'!$C$332)^'1 Données d''entrée'!$C$333)/((1+'1 Données d''entrée'!$C$332)^'1 Données d''entrée'!$C$333-1),0))","v":0},{"$f":"IF(I992<'1 Données d''entrée'!$C$334+1+$B1102,0,IF(I992<'1 Données d''entrée'!$C$333+'1 Données d''entrée'!$C$334+1+$B1102,$D1098*('1 Données d''entrée'!$C$332*(1+'1 Données d''entrée'!$C$332)^'1 Données d''entrée'!$C$333)/((1+'1 Données d''entrée'!$C$332)^'1 Données d''entrée'!$C$333-1),0))","v":0},{"$f":"IF(J992<'1 Données d''entrée'!$C$334+1+$B1102,0,IF(J992<'1 Données d''entrée'!$C$333+'1 Données d''entrée'!$C$334+1+$B1102,$D1098*('1 Données d''entrée'!$C$332*(1+'1 Données d''entrée'!$C$332)^'1 Données d''entrée'!$C$333)/((1+'1 Données d''entrée'!$C$332)^'1 Données d''entrée'!$C$333-1),0))","v":0},{"$f":"IF(K992<'1 Données d''entrée'!$C$334+1+$B1102,0,IF(K992<'1 Données d''entrée'!$C$333+'1 Données d''entrée'!$C$334+1+$B1102,$D1098*('1 Données d''entrée'!$C$332*(1+'1 Données d''entrée'!$C$332)^'1 Données d''entrée'!$C$333)/((1+'1 Données d''entrée'!$C$332)^'1 Données d''entrée'!$C$333-1),0))","v":0},{"$f":"IF(L992<'1 Données d''entrée'!$C$334+1+$B1102,0,IF(L992<'1 Données d''entrée'!$C$333+'1 Données d''entrée'!$C$334+1+$B1102,$D1098*('1 Données d''entrée'!$C$332*(1+'1 Données d''entrée'!$C$332)^'1 Données d''entrée'!$C$333)/((1+'1 Données d''entrée'!$C$332)^'1 Données d''entrée'!$C$333-1),0))","v":0},{"$f":"IF(M992<'1 Données d''entrée'!$C$334+1+$B1102,0,IF(M992<'1 Données d''entrée'!$C$333+'1 Données d''entrée'!$C$334+1+$B1102,$D1098*('1 Données d''entrée'!$C$332*(1+'1 Données d''entrée'!$C$332)^'1 Données d''entrée'!$C$333)/((1+'1 Données d''entrée'!$C$332)^'1 Données d''entrée'!$C$333-1),0))","v":0},{"$f":"IF(N992<'1 Données d''entrée'!$C$334+1+$B1102,0,IF(N992<'1 Données d''entrée'!$C$333+'1 Données d''entrée'!$C$334+1+$B1102,$D1098*('1 Données d''entrée'!$C$332*(1+'1 Données d''entrée'!$C$332)^'1 Données d''entrée'!$C$333)/((1+'1 Données d''entrée'!$C$332)^'1 Données d''entrée'!$C$333-1),0))","v":0},{"$f":"IF(O992<'1 Données d''entrée'!$C$334+1+$B1102,0,IF(O992<'1 Données d''entrée'!$C$333+'1 Données d''entrée'!$C$334+1+$B1102,$D1098*('1 Données d''entrée'!$C$332*(1+'1 Données d''entrée'!$C$332)^'1 Données d''entrée'!$C$333)/((1+'1 Données d''entrée'!$C$332)^'1 Données d''entrée'!$C$333-1),0))","v":0},{"$f":"IF(P992<'1 Données d''entrée'!$C$334+1+$B1102,0,IF(P992<'1 Données d''entrée'!$C$333+'1 Données d''entrée'!$C$334+1+$B1102,$D1098*('1 Données d''entrée'!$C$332*(1+'1 Données d''entrée'!$C$332)^'1 Données d''entrée'!$C$333)/((1+'1 Données d''entrée'!$C$332)^'1 Données d''entrée'!$C$333-1),0))","v":0},{"$f":"IF(Q992<'1 Données d''entrée'!$C$334+1+$B1102,0,IF(Q992<'1 Données d''entrée'!$C$333+'1 Données d''entrée'!$C$334+1+$B1102,$D1098*('1 Données d''entrée'!$C$332*(1+'1 Données d''entrée'!$C$332)^'1 Données d''entrée'!$C$333)/((1+'1 Données d''entrée'!$C$332)^'1 Données d''entrée'!$C$333-1),0))","v":0},{"$f":"IF(R992<'1 Données d''entrée'!$C$334+1+$B1102,0,IF(R992<'1 Données d''entrée'!$C$333+'1 Données d''entrée'!$C$334+1+$B1102,$D1098*('1 Données d''entrée'!$C$332*(1+'1 Données d''entrée'!$C$332)^'1 Données d''entrée'!$C$333)/((1+'1 Données d''entrée'!$C$332)^'1 Données d''entrée'!$C$333-1),0))","v":0},{"$f":"IF(S992<'1 Données d''entrée'!$C$334+1+$B1102,0,IF(S992<'1 Données d''entrée'!$C$333+'1 Données d''entrée'!$C$334+1+$B1102,$D1098*('1 Données d''entrée'!$C$332*(1+'1 Données d''entrée'!$C$332)^'1 Données d''entrée'!$C$333)/((1+'1 Données d''entrée'!$C$332)^'1 Données d''entrée'!$C$333-1),0))","v":0},{"$f":"IF(T992<'1 Données d''entrée'!$C$334+1+$B1102,0,IF(T992<'1 Données d''entrée'!$C$333+'1 Données d''entrée'!$C$334+1+$B1102,$D1098*('1 Données d''entrée'!$C$332*(1+'1 Données d''entrée'!$C$332)^'1 Données d''entrée'!$C$333)/((1+'1 Données d''entrée'!$C$332)^'1 Données d''entrée'!$C$333-1),0))","v":0},{"$f":"IF(U992<'1 Données d''entrée'!$C$334+1+$B1102,0,IF(U992<'1 Données d''entrée'!$C$333+'1 Données d''entrée'!$C$334+1+$B1102,$D1098*('1 Données d''entrée'!$C$332*(1+'1 Données d''entrée'!$C$332)^'1 Données d''entrée'!$C$333)/((1+'1 Données d''entrée'!$C$332)^'1 Données d''entrée'!$C$333-1),0))","v":0},{"$f":"IF(V992<'1 Données d''entrée'!$C$334+1+$B1102,0,IF(V992<'1 Données d''entrée'!$C$333+'1 Données d''entrée'!$C$334+1+$B1102,$D1098*('1 Données d''entrée'!$C$332*(1+'1 Données d''entrée'!$C$332)^'1 Données d''entrée'!$C$333)/((1+'1 Données d''entrée'!$C$332)^'1 Données d''entrée'!$C$333-1),0))","v":0}]
[null,3,{"$f":"IF(C$54<'1 Données d''entrée'!$C$334+1+$B1103,0,IF(C$54<'1 Données d''entrée'!$C$333+'1 Données d''entrée'!$C$334+1+$B1103,$E$160*('1 Données d''entrée'!$C$332*(1+'1 Données d''entrée'!$C$332)^'1 Données d''entrée'!$C$333)/((1+'1 Données d''entrée'!$C$332)^'1 Données d''entrée'!$C$333-1),0))","v":0},{"$f":"IF(D992<'1 Données d''entrée'!$C$334+1+$B1103,0,IF(D992<'1 Données d''entrée'!$C$333+'1 Données d''entrée'!$C$334+1+$B1103,$E1098*('1 Données d''entrée'!$C$332*(1+'1 Données d''entrée'!$C$332)^'1 Données d''entrée'!$C$333)/((1+'1 Données d''entrée'!$C$332)^'1 Données d''entrée'!$C$333-1),0))","v":0},{"$f":"IF(E992<'1 Données d''entrée'!$C$334+1+$B1103,0,IF(E992<'1 Données d''entrée'!$C$333+'1 Données d''entrée'!$C$334+1+$B1103,$E1098*('1 Données d''entrée'!$C$332*(1+'1 Données d''entrée'!$C$332)^'1 Données d''entrée'!$C$333)/((1+'1 Données d''entrée'!$C$332)^'1 Données d''entrée'!$C$333-1),0))","v":0},{"$f":"IF(F992<'1 Données d''entrée'!$C$334+1+$B1103,0,IF(F992<'1 Données d''entrée'!$C$333+'1 Données d''entrée'!$C$334+1+$B1103,$E1098*('1 Données d''entrée'!$C$332*(1+'1 Données d''entrée'!$C$332)^'1 Données d''entrée'!$C$333)/((1+'1 Données d''entrée'!$C$332)^'1 Données d''entrée'!$C$333-1),0))","v":0},{"$f":"IF(G992<'1 Données d''entrée'!$C$334+1+$B1103,0,IF(G992<'1 Données d''entrée'!$C$333+'1 Données d''entrée'!$C$334+1+$B1103,$E1098*('1 Données d''entrée'!$C$332*(1+'1 Données d''entrée'!$C$332)^'1 Données d''entrée'!$C$333)/((1+'1 Données d''entrée'!$C$332)^'1 Données d''entrée'!$C$333-1),0))","v":0},{"$f":"IF(H992<'1 Données d''entrée'!$C$334+1+$B1103,0,IF(H992<'1 Données d''entrée'!$C$333+'1 Données d''entrée'!$C$334+1+$B1103,$E1098*('1 Données d''entrée'!$C$332*(1+'1 Données d''entrée'!$C$332)^'1 Données d''entrée'!$C$333)/((1+'1 Données d''entrée'!$C$332)^'1 Données d''entrée'!$C$333-1),0))","v":0},{"$f":"IF(I992<'1 Données d''entrée'!$C$334+1+$B1103,0,IF(I992<'1 Données d''entrée'!$C$333+'1 Données d''entrée'!$C$334+1+$B1103,$E1098*('1 Données d''entrée'!$C$332*(1+'1 Données d''entrée'!$C$332)^'1 Données d''entrée'!$C$333)/((1+'1 Données d''entrée'!$C$332)^'1 Données d''entrée'!$C$333-1),0))","v":0},{"$f":"IF(J992<'1 Données d''entrée'!$C$334+1+$B1103,0,IF(J992<'1 Données d''entrée'!$C$333+'1 Données d''entrée'!$C$334+1+$B1103,$E1098*('1 Données d''entrée'!$C$332*(1+'1 Données d''entrée'!$C$332)^'1 Données d''entrée'!$C$333)/((1+'1 Données d''entrée'!$C$332)^'1 Données d''entrée'!$C$333-1),0))","v":0},{"$f":"IF(K992<'1 Données d''entrée'!$C$334+1+$B1103,0,IF(K992<'1 Données d''entrée'!$C$333+'1 Données d''entrée'!$C$334+1+$B1103,$E1098*('1 Données d''entrée'!$C$332*(1+'1 Données d''entrée'!$C$332)^'1 Données d''entrée'!$C$333)/((1+'1 Données d''entrée'!$C$332)^'1 Données d''entrée'!$C$333-1),0))","v":0},{"$f":"IF(L992<'1 Données d''entrée'!$C$334+1+$B1103,0,IF(L992<'1 Données d''entrée'!$C$333+'1 Données d''entrée'!$C$334+1+$B1103,$E1098*('1 Données d''entrée'!$C$332*(1+'1 Données d''entrée'!$C$332)^'1 Données d''entrée'!$C$333)/((1+'1 Données d''entrée'!$C$332)^'1 Données d''entrée'!$C$333-1),0))","v":0},{"$f":"IF(M992<'1 Données d''entrée'!$C$334+1+$B1103,0,IF(M992<'1 Données d''entrée'!$C$333+'1 Données d''entrée'!$C$334+1+$B1103,$E1098*('1 Données d''entrée'!$C$332*(1+'1 Données d''entrée'!$C$332)^'1 Données d''entrée'!$C$333)/((1+'1 Données d''entrée'!$C$332)^'1 Données d''entrée'!$C$333-1),0))","v":0},{"$f":"IF(N992<'1 Données d''entrée'!$C$334+1+$B1103,0,IF(N992<'1 Données d''entrée'!$C$333+'1 Données d''entrée'!$C$334+1+$B1103,$E1098*('1 Données d''entrée'!$C$332*(1+'1 Données d''entrée'!$C$332)^'1 Données d''entrée'!$C$333)/((1+'1 Données d''entrée'!$C$332)^'1 Données d''entrée'!$C$333-1),0))","v":0},{"$f":"IF(O992<'1 Données d''entrée'!$C$334+1+$B1103,0,IF(O992<'1 Données d''entrée'!$C$333+'1 Données d''entrée'!$C$334+1+$B1103,$E1098*('1 Données d''entrée'!$C$332*(1+'1 Données d''entrée'!$C$332)^'1 Données d''entrée'!$C$333)/((1+'1 Données d''entrée'!$C$332)^'1 Données d''entrée'!$C$333-1),0))","v":0},{"$f":"IF(P992<'1 Données d''entrée'!$C$334+1+$B1103,0,IF(P992<'1 Données d''entrée'!$C$333+'1 Données d''entrée'!$C$334+1+$B1103,$E1098*('1 Données d''entrée'!$C$332*(1+'1 Données d''entrée'!$C$332)^'1 Données d''entrée'!$C$333)/((1+'1 Données d''entrée'!$C$332)^'1 Données d''entrée'!$C$333-1),0))","v":0},{"$f":"IF(Q992<'1 Données d''entrée'!$C$334+1+$B1103,0,IF(Q992<'1 Données d''entrée'!$C$333+'1 Données d''entrée'!$C$334+1+$B1103,$E1098*('1 Données d''entrée'!$C$332*(1+'1 Données d''entrée'!$C$332)^'1 Données d''entrée'!$C$333)/((1+'1 Données d''entrée'!$C$332)^'1 Données d''entrée'!$C$333-1),0))","v":0},{"$f":"IF(R992<'1 Données d''entrée'!$C$334+1+$B1103,0,IF(R992<'1 Données d''entrée'!$C$333+'1 Données d''entrée'!$C$334+1+$B1103,$E1098*('1 Données d''entrée'!$C$332*(1+'1 Données d''entrée'!$C$332)^'1 Données d''entrée'!$C$333)/((1+'1 Données d''entrée'!$C$332)^'1 Données d''entrée'!$C$333-1),0))","v":0},{"$f":"IF(S992<'1 Données d''entrée'!$C$334+1+$B1103,0,IF(S992<'1 Données d''entrée'!$C$333+'1 Données d''entrée'!$C$334+1+$B1103,$E1098*('1 Données d''entrée'!$C$332*(1+'1 Données d''entrée'!$C$332)^'1 Données d''entrée'!$C$333)/((1+'1 Données d''entrée'!$C$332)^'1 Données d''entrée'!$C$333-1),0))","v":0},{"$f":"IF(T992<'1 Données d''entrée'!$C$334+1+$B1103,0,IF(T992<'1 Données d''entrée'!$C$333+'1 Données d''entrée'!$C$334+1+$B1103,$E1098*('1 Données d''entrée'!$C$332*(1+'1 Données d''entrée'!$C$332)^'1 Données d''entrée'!$C$333)/((1+'1 Données d''entrée'!$C$332)^'1 Données d''entrée'!$C$333-1),0))","v":0},{"$f":"IF(U992<'1 Données d''entrée'!$C$334+1+$B1103,0,IF(U992<'1 Données d''entrée'!$C$333+'1 Données d''entrée'!$C$334+1+$B1103,$E1098*('1 Données d''entrée'!$C$332*(1+'1 Données d''entrée'!$C$332)^'1 Données d''entrée'!$C$333)/((1+'1 Données d''entrée'!$C$332)^'1 Données d''entrée'!$C$333-1),0))","v":0},{"$f":"IF(V992<'1 Données d''entrée'!$C$334+1+$B1103,0,IF(V992<'1 Données d''entrée'!$C$333+'1 Données d''entrée'!$C$334+1+$B1103,$E1098*('1 Données d''entrée'!$C$332*(1+'1 Données d''entrée'!$C$332)^'1 Données d''entrée'!$C$333)/((1+'1 Données d''entrée'!$C$332)^'1 Données d''entrée'!$C$333-1),0))","v":0}]
[null,4,{"$f":"IF(C$54<'1 Données d''entrée'!$C$334+1+$B1104,0,IF(C$54<'1 Données d''entrée'!$C$333+'1 Données d''entrée'!$C$334+1+$B1104,$F$160*('1 Données d''entrée'!$C$332*(1+'1 Données d''entrée'!$C$332)^'1 Données d''entrée'!$C$333)/((1+'1 Données d''entrée'!$C$332)^'1 Données d''entrée'!$C$333-1),0))","v":0},{"$f":"IF(D992<'1 Données d''entrée'!$C$334+1+$B1104,0,IF(D992<'1 Données d''entrée'!$C$333+'1 Données d''entrée'!$C$334+1+$B1104,$F1098*('1 Données d''entrée'!$C$332*(1+'1 Données d''entrée'!$C$332)^'1 Données d''entrée'!$C$333)/((1+'1 Données d''entrée'!$C$332)^'1 Données d''entrée'!$C$333-1),0))","v":0},{"$f":"IF(E992<'1 Données d''entrée'!$C$334+1+$B1104,0,IF(E992<'1 Données d''entrée'!$C$333+'1 Données d''entrée'!$C$334+1+$B1104,$F1098*('1 Données d''entrée'!$C$332*(1+'1 Données d''entrée'!$C$332)^'1 Données d''entrée'!$C$333)/((1+'1 Données d''entrée'!$C$332)^'1 Données d''entrée'!$C$333-1),0))","v":0},{"$f":"IF(F992<'1 Données d''entrée'!$C$334+1+$B1104,0,IF(F992<'1 Données d''entrée'!$C$333+'1 Données d''entrée'!$C$334+1+$B1104,$F1098*('1 Données d''entrée'!$C$332*(1+'1 Données d''entrée'!$C$332)^'1 Données d''entrée'!$C$333)/((1+'1 Données d''entrée'!$C$332)^'1 Données d''entrée'!$C$333-1),0))","v":0},{"$f":"IF(G992<'1 Données d''entrée'!$C$334+1+$B1104,0,IF(G992<'1 Données d''entrée'!$C$333+'1 Données d''entrée'!$C$334+1+$B1104,$F1098*('1 Données d''entrée'!$C$332*(1+'1 Données d''entrée'!$C$332)^'1 Données d''entrée'!$C$333)/((1+'1 Données d''entrée'!$C$332)^'1 Données d''entrée'!$C$333-1),0))","v":0},{"$f":"IF(H992<'1 Données d''entrée'!$C$334+1+$B1104,0,IF(H992<'1 Données d''entrée'!$C$333+'1 Données d''entrée'!$C$334+1+$B1104,$F1098*('1 Données d''entrée'!$C$332*(1+'1 Données d''entrée'!$C$332)^'1 Données d''entrée'!$C$333)/((1+'1 Données d''entrée'!$C$332)^'1 Données d''entrée'!$C$333-1),0))","v":0},{"$f":"IF(I992<'1 Données d''entrée'!$C$334+1+$B1104,0,IF(I992<'1 Données d''entrée'!$C$333+'1 Données d''entrée'!$C$334+1+$B1104,$F1098*('1 Données d''entrée'!$C$332*(1+'1 Données d''entrée'!$C$332)^'1 Données d''entrée'!$C$333)/((1+'1 Données d''entrée'!$C$332)^'1 Données d''entrée'!$C$333-1),0))","v":0},{"$f":"IF(J992<'1 Données d''entrée'!$C$334+1+$B1104,0,IF(J992<'1 Données d''entrée'!$C$333+'1 Données d''entrée'!$C$334+1+$B1104,$F1098*('1 Données d''entrée'!$C$332*(1+'1 Données d''entrée'!$C$332)^'1 Données d''entrée'!$C$333)/((1+'1 Données d''entrée'!$C$332)^'1 Données d''entrée'!$C$333-1),0))","v":0},{"$f":"IF(K992<'1 Données d''entrée'!$C$334+1+$B1104,0,IF(K992<'1 Données d''entrée'!$C$333+'1 Données d''entrée'!$C$334+1+$B1104,$F1098*('1 Données d''entrée'!$C$332*(1+'1 Données d''entrée'!$C$332)^'1 Données d''entrée'!$C$333)/((1+'1 Données d''entrée'!$C$332)^'1 Données d''entrée'!$C$333-1),0))","v":0},{"$f":"IF(L992<'1 Données d''entrée'!$C$334+1+$B1104,0,IF(L992<'1 Données d''entrée'!$C$333+'1 Données d''entrée'!$C$334+1+$B1104,$F1098*('1 Données d''entrée'!$C$332*(1+'1 Données d''entrée'!$C$332)^'1 Données d''entrée'!$C$333)/((1+'1 Données d''entrée'!$C$332)^'1 Données d''entrée'!$C$333-1),0))","v":0},{"$f":"IF(M992<'1 Données d''entrée'!$C$334+1+$B1104,0,IF(M992<'1 Données d''entrée'!$C$333+'1 Données d''entrée'!$C$334+1+$B1104,$F1098*('1 Données d''entrée'!$C$332*(1+'1 Données d''entrée'!$C$332)^'1 Données d''entrée'!$C$333)/((1+'1 Données d''entrée'!$C$332)^'1 Données d''entrée'!$C$333-1),0))","v":0},{"$f":"IF(N992<'1 Données d''entrée'!$C$334+1+$B1104,0,IF(N992<'1 Données d''entrée'!$C$333+'1 Données d''entrée'!$C$334+1+$B1104,$F1098*('1 Données d''entrée'!$C$332*(1+'1 Données d''entrée'!$C$332)^'1 Données d''entrée'!$C$333)/((1+'1 Données d''entrée'!$C$332)^'1 Données d''entrée'!$C$333-1),0))","v":0},{"$f":"IF(O992<'1 Données d''entrée'!$C$334+1+$B1104,0,IF(O992<'1 Données d''entrée'!$C$333+'1 Données d''entrée'!$C$334+1+$B1104,$F1098*('1 Données d''entrée'!$C$332*(1+'1 Données d''entrée'!$C$332)^'1 Données d''entrée'!$C$333)/((1+'1 Données d''entrée'!$C$332)^'1 Données d''entrée'!$C$333-1),0))","v":0},{"$f":"IF(P992<'1 Données d''entrée'!$C$334+1+$B1104,0,IF(P992<'1 Données d''entrée'!$C$333+'1 Données d''entrée'!$C$334+1+$B1104,$F1098*('1 Données d''entrée'!$C$332*(1+'1 Données d''entrée'!$C$332)^'1 Données d''entrée'!$C$333)/((1+'1 Données d''entrée'!$C$332)^'1 Données d''entrée'!$C$333-1),0))","v":0},{"$f":"IF(Q992<'1 Données d''entrée'!$C$334+1+$B1104,0,IF(Q992<'1 Données d''entrée'!$C$333+'1 Données d''entrée'!$C$334+1+$B1104,$F1098*('1 Données d''entrée'!$C$332*(1+'1 Données d''entrée'!$C$332)^'1 Données d''entrée'!$C$333)/((1+'1 Données d''entrée'!$C$332)^'1 Données d''entrée'!$C$333-1),0))","v":0},{"$f":"IF(R992<'1 Données d''entrée'!$C$334+1+$B1104,0,IF(R992<'1 Données d''entrée'!$C$333+'1 Données d''entrée'!$C$334+1+$B1104,$F1098*('1 Données d''entrée'!$C$332*(1+'1 Données d''entrée'!$C$332)^'1 Données d''entrée'!$C$333)/((1+'1 Données d''entrée'!$C$332)^'1 Données d''entrée'!$C$333-1),0))","v":0},{"$f":"IF(S992<'1 Données d''entrée'!$C$334+1+$B1104,0,IF(S992<'1 Données d''entrée'!$C$333+'1 Données d''entrée'!$C$334+1+$B1104,$F1098*('1 Données d''entrée'!$C$332*(1+'1 Données d''entrée'!$C$332)^'1 Données d''entrée'!$C$333)/((1+'1 Données d''entrée'!$C$332)^'1 Données d''entrée'!$C$333-1),0))","v":0},{"$f":"IF(T992<'1 Données d''entrée'!$C$334+1+$B1104,0,IF(T992<'1 Données d''entrée'!$C$333+'1 Données d''entrée'!$C$334+1+$B1104,$F1098*('1 Données d''entrée'!$C$332*(1+'1 Données d''entrée'!$C$332)^'1 Données d''entrée'!$C$333)/((1+'1 Données d''entrée'!$C$332)^'1 Données d''entrée'!$C$333-1),0))","v":0},{"$f":"IF(U992<'1 Données d''entrée'!$C$334+1+$B1104,0,IF(U992<'1 Données d''entrée'!$C$333+'1 Données d''entrée'!$C$334+1+$B1104,$F1098*('1 Données d''entrée'!$C$332*(1+'1 Données d''entrée'!$C$332)^'1 Données d''entrée'!$C$333)/((1+'1 Données d''entrée'!$C$332)^'1 Données d''entrée'!$C$333-1),0))","v":0},{"$f":"IF(V992<'1 Données d''entrée'!$C$334+1+$B1104,0,IF(V992<'1 Données d''entrée'!$C$333+'1 Données d''entrée'!$C$334+1+$B1104,$F1098*('1 Données d''entrée'!$C$332*(1+'1 Données d''entrée'!$C$332)^'1 Données d''entrée'!$C$333)/((1+'1 Données d''entrée'!$C$332)^'1 Données d''entrée'!$C$333-1),0))","v":0}]
[null,5,{"$f":"IF(C$54<'1 Données d''entrée'!$C$334+1+$B1105,0,IF(C$54<'1 Données d''entrée'!$C$333+'1 Données d''entrée'!$C$334+1+$B1105,$G$160*('1 Données d''entrée'!$C$332*(1+'1 Données d''entrée'!$C$332)^'1 Données d''entrée'!$C$333)/((1+'1 Données d''entrée'!$C$332)^'1 Données d''entrée'!$C$333-1),0))","v":0},{"$f":"IF(D992<'1 Données d''entrée'!$C$334+1+$B1105,0,IF(D992<'1 Données d''entrée'!$C$333+'1 Données d''entrée'!$C$334+1+$B1105,$G1098*('1 Données d''entrée'!$C$332*(1+'1 Données d''entrée'!$C$332)^'1 Données d''entrée'!$C$333)/((1+'1 Données d''entrée'!$C$332)^'1 Données d''entrée'!$C$333-1),0))","v":0},{"$f":"IF(E992<'1 Données d''entrée'!$C$334+1+$B1105,0,IF(E992<'1 Données d''entrée'!$C$333+'1 Données d''entrée'!$C$334+1+$B1105,$G1098*('1 Données d''entrée'!$C$332*(1+'1 Données d''entrée'!$C$332)^'1 Données d''entrée'!$C$333)/((1+'1 Données d''entrée'!$C$332)^'1 Données d''entrée'!$C$333-1),0))","v":0},{"$f":"IF(F992<'1 Données d''entrée'!$C$334+1+$B1105,0,IF(F992<'1 Données d''entrée'!$C$333+'1 Données d''entrée'!$C$334+1+$B1105,$G1098*('1 Données d''entrée'!$C$332*(1+'1 Données d''entrée'!$C$332)^'1 Données d''entrée'!$C$333)/((1+'1 Données d''entrée'!$C$332)^'1 Données d''entrée'!$C$333-1),0))","v":0},{"$f":"IF(G992<'1 Données d''entrée'!$C$334+1+$B1105,0,IF(G992<'1 Données d''entrée'!$C$333+'1 Données d''entrée'!$C$334+1+$B1105,$G1098*('1 Données d''entrée'!$C$332*(1+'1 Données d''entrée'!$C$332)^'1 Données d''entrée'!$C$333)/((1+'1 Données d''entrée'!$C$332)^'1 Données d''entrée'!$C$333-1),0))","v":0},{"$f":"IF(H992<'1 Données d''entrée'!$C$334+1+$B1105,0,IF(H992<'1 Données d''entrée'!$C$333+'1 Données d''entrée'!$C$334+1+$B1105,$G1098*('1 Données d''entrée'!$C$332*(1+'1 Données d''entrée'!$C$332)^'1 Données d''entrée'!$C$333)/((1+'1 Données d''entrée'!$C$332)^'1 Données d''entrée'!$C$333-1),0))","v":0},{"$f":"IF(I992<'1 Données d''entrée'!$C$334+1+$B1105,0,IF(I992<'1 Données d''entrée'!$C$333+'1 Données d''entrée'!$C$334+1+$B1105,$G1098*('1 Données d''entrée'!$C$332*(1+'1 Données d''entrée'!$C$332)^'1 Données d''entrée'!$C$333)/((1+'1 Données d''entrée'!$C$332)^'1 Données d''entrée'!$C$333-1),0))","v":0},{"$f":"IF(J992<'1 Données d''entrée'!$C$334+1+$B1105,0,IF(J992<'1 Données d''entrée'!$C$333+'1 Données d''entrée'!$C$334+1+$B1105,$G1098*('1 Données d''entrée'!$C$332*(1+'1 Données d''entrée'!$C$332)^'1 Données d''entrée'!$C$333)/((1+'1 Données d''entrée'!$C$332)^'1 Données d''entrée'!$C$333-1),0))","v":0},{"$f":"IF(K992<'1 Données d''entrée'!$C$334+1+$B1105,0,IF(K992<'1 Données d''entrée'!$C$333+'1 Données d''entrée'!$C$334+1+$B1105,$G1098*('1 Données d''entrée'!$C$332*(1+'1 Données d''entrée'!$C$332)^'1 Données d''entrée'!$C$333)/((1+'1 Données d''entrée'!$C$332)^'1 Données d''entrée'!$C$333-1),0))","v":0},{"$f":"IF(L992<'1 Données d''entrée'!$C$334+1+$B1105,0,IF(L992<'1 Données d''entrée'!$C$333+'1 Données d''entrée'!$C$334+1+$B1105,$G1098*('1 Données d''entrée'!$C$332*(1+'1 Données d''entrée'!$C$332)^'1 Données d''entrée'!$C$333)/((1+'1 Données d''entrée'!$C$332)^'1 Données d''entrée'!$C$333-1),0))","v":0},{"$f":"IF(M992<'1 Données d''entrée'!$C$334+1+$B1105,0,IF(M992<'1 Données d''entrée'!$C$333+'1 Données d''entrée'!$C$334+1+$B1105,$G1098*('1 Données d''entrée'!$C$332*(1+'1 Données d''entrée'!$C$332)^'1 Données d''entrée'!$C$333)/((1+'1 Données d''entrée'!$C$332)^'1 Données d''entrée'!$C$333-1),0))","v":0},{"$f":"IF(N992<'1 Données d''entrée'!$C$334+1+$B1105,0,IF(N992<'1 Données d''entrée'!$C$333+'1 Données d''entrée'!$C$334+1+$B1105,$G1098*('1 Données d''entrée'!$C$332*(1+'1 Données d''entrée'!$C$332)^'1 Données d''entrée'!$C$333)/((1+'1 Données d''entrée'!$C$332)^'1 Données d''entrée'!$C$333-1),0))","v":0},{"$f":"IF(O992<'1 Données d''entrée'!$C$334+1+$B1105,0,IF(O992<'1 Données d''entrée'!$C$333+'1 Données d''entrée'!$C$334+1+$B1105,$G1098*('1 Données d''entrée'!$C$332*(1+'1 Données d''entrée'!$C$332)^'1 Données d''entrée'!$C$333)/((1+'1 Données d''entrée'!$C$332)^'1 Données d''entrée'!$C$333-1),0))","v":0},{"$f":"IF(P992<'1 Données d''entrée'!$C$334+1+$B1105,0,IF(P992<'1 Données d''entrée'!$C$333+'1 Données d''entrée'!$C$334+1+$B1105,$G1098*('1 Données d''entrée'!$C$332*(1+'1 Données d''entrée'!$C$332)^'1 Données d''entrée'!$C$333)/((1+'1 Données d''entrée'!$C$332)^'1 Données d''entrée'!$C$333-1),0))","v":0},{"$f":"IF(Q992<'1 Données d''entrée'!$C$334+1+$B1105,0,IF(Q992<'1 Données d''entrée'!$C$333+'1 Données d''entrée'!$C$334+1+$B1105,$G1098*('1 Données d''entrée'!$C$332*(1+'1 Données d''entrée'!$C$332)^'1 Données d''entrée'!$C$333)/((1+'1 Données d''entrée'!$C$332)^'1 Données d''entrée'!$C$333-1),0))","v":0},{"$f":"IF(R992<'1 Données d''entrée'!$C$334+1+$B1105,0,IF(R992<'1 Données d''entrée'!$C$333+'1 Données d''entrée'!$C$334+1+$B1105,$G1098*('1 Données d''entrée'!$C$332*(1+'1 Données d''entrée'!$C$332)^'1 Données d''entrée'!$C$333)/((1+'1 Données d''entrée'!$C$332)^'1 Données d''entrée'!$C$333-1),0))","v":0},{"$f":"IF(S992<'1 Données d''entrée'!$C$334+1+$B1105,0,IF(S992<'1 Données d''entrée'!$C$333+'1 Données d''entrée'!$C$334+1+$B1105,$G1098*('1 Données d''entrée'!$C$332*(1+'1 Données d''entrée'!$C$332)^'1 Données d''entrée'!$C$333)/((1+'1 Données d''entrée'!$C$332)^'1 Données d''entrée'!$C$333-1),0))","v":0},{"$f":"IF(T992<'1 Données d''entrée'!$C$334+1+$B1105,0,IF(T992<'1 Données d''entrée'!$C$333+'1 Données d''entrée'!$C$334+1+$B1105,$G1098*('1 Données d''entrée'!$C$332*(1+'1 Données d''entrée'!$C$332)^'1 Données d''entrée'!$C$333)/((1+'1 Données d''entrée'!$C$332)^'1 Données d''entrée'!$C$333-1),0))","v":0},{"$f":"IF(U992<'1 Données d''entrée'!$C$334+1+$B1105,0,IF(U992<'1 Données d''entrée'!$C$333+'1 Données d''entrée'!$C$334+1+$B1105,$G1098*('1 Données d''entrée'!$C$332*(1+'1 Données d''entrée'!$C$332)^'1 Données d''entrée'!$C$333)/((1+'1 Données d''entrée'!$C$332)^'1 Données d''entrée'!$C$333-1),0))","v":0},{"$f":"IF(V992<'1 Données d''entrée'!$C$334+1+$B1105,0,IF(V992<'1 Données d''entrée'!$C$333+'1 Données d''entrée'!$C$334+1+$B1105,$G1098*('1 Données d''entrée'!$C$332*(1+'1 Données d''entrée'!$C$332)^'1 Données d''entrée'!$C$333)/((1+'1 Données d''entrée'!$C$332)^'1 Données d''entrée'!$C$333-1),0))","v":0}]
[null,6,{"$f":"IF(C$54<'1 Données d''entrée'!$C$334+1+$B1106,0,IF(C$54<'1 Données d''entrée'!$C$333+'1 Données d''entrée'!$C$334+1+$B1106,$H$160*('1 Données d''entrée'!$C$332*(1+'1 Données d''entrée'!$C$332)^'1 Données d''entrée'!$C$333)/((1+'1 Données d''entrée'!$C$332)^'1 Données d''entrée'!$C$333-1),0))","v":0},{"$f":"IF(D992<'1 Données d''entrée'!$C$334+1+$B1106,0,IF(D992<'1 Données d''entrée'!$C$333+'1 Données d''entrée'!$C$334+1+$B1106,$H1098*('1 Données d''entrée'!$C$332*(1+'1 Données d''entrée'!$C$332)^'1 Données d''entrée'!$C$333)/((1+'1 Données d''entrée'!$C$332)^'1 Données d''entrée'!$C$333-1),0))","v":0},{"$f":"IF(E992<'1 Données d''entrée'!$C$334+1+$B1106,0,IF(E992<'1 Données d''entrée'!$C$333+'1 Données d''entrée'!$C$334+1+$B1106,$H1098*('1 Données d''entrée'!$C$332*(1+'1 Données d''entrée'!$C$332)^'1 Données d''entrée'!$C$333)/((1+'1 Données d''entrée'!$C$332)^'1 Données d''entrée'!$C$333-1),0))","v":0},{"$f":"IF(F992<'1 Données d''entrée'!$C$334+1+$B1106,0,IF(F992<'1 Données d''entrée'!$C$333+'1 Données d''entrée'!$C$334+1+$B1106,$H1098*('1 Données d''entrée'!$C$332*(1+'1 Données d''entrée'!$C$332)^'1 Données d''entrée'!$C$333)/((1+'1 Données d''entrée'!$C$332)^'1 Données d''entrée'!$C$333-1),0))","v":0},{"$f":"IF(G992<'1 Données d''entrée'!$C$334+1+$B1106,0,IF(G992<'1 Données d''entrée'!$C$333+'1 Données d''entrée'!$C$334+1+$B1106,$H1098*('1 Données d''entrée'!$C$332*(1+'1 Données d''entrée'!$C$332)^'1 Données d''entrée'!$C$333)/((1+'1 Données d''entrée'!$C$332)^'1 Données d''entrée'!$C$333-1),0))","v":0},{"$f":"IF(H992<'1 Données d''entrée'!$C$334+1+$B1106,0,IF(H992<'1 Données d''entrée'!$C$333+'1 Données d''entrée'!$C$334+1+$B1106,$H1098*('1 Données d''entrée'!$C$332*(1+'1 Données d''entrée'!$C$332)^'1 Données d''entrée'!$C$333)/((1+'1 Données d''entrée'!$C$332)^'1 Données d''entrée'!$C$333-1),0))","v":0},{"$f":"IF(I992<'1 Données d''entrée'!$C$334+1+$B1106,0,IF(I992<'1 Données d''entrée'!$C$333+'1 Données d''entrée'!$C$334+1+$B1106,$H1098*('1 Données d''entrée'!$C$332*(1+'1 Données d''entrée'!$C$332)^'1 Données d''entrée'!$C$333)/((1+'1 Données d''entrée'!$C$332)^'1 Données d''entrée'!$C$333-1),0))","v":0},{"$f":"IF(J992<'1 Données d''entrée'!$C$334+1+$B1106,0,IF(J992<'1 Données d''entrée'!$C$333+'1 Données d''entrée'!$C$334+1+$B1106,$H1098*('1 Données d''entrée'!$C$332*(1+'1 Données d''entrée'!$C$332)^'1 Données d''entrée'!$C$333)/((1+'1 Données d''entrée'!$C$332)^'1 Données d''entrée'!$C$333-1),0))","v":0},{"$f":"IF(K992<'1 Données d''entrée'!$C$334+1+$B1106,0,IF(K992<'1 Données d''entrée'!$C$333+'1 Données d''entrée'!$C$334+1+$B1106,$H1098*('1 Données d''entrée'!$C$332*(1+'1 Données d''entrée'!$C$332)^'1 Données d''entrée'!$C$333)/((1+'1 Données d''entrée'!$C$332)^'1 Données d''entrée'!$C$333-1),0))","v":0},{"$f":"IF(L992<'1 Données d''entrée'!$C$334+1+$B1106,0,IF(L992<'1 Données d''entrée'!$C$333+'1 Données d''entrée'!$C$334+1+$B1106,$H1098*('1 Données d''entrée'!$C$332*(1+'1 Données d''entrée'!$C$332)^'1 Données d''entrée'!$C$333)/((1+'1 Données d''entrée'!$C$332)^'1 Données d''entrée'!$C$333-1),0))","v":0},{"$f":"IF(M992<'1 Données d''entrée'!$C$334+1+$B1106,0,IF(M992<'1 Données d''entrée'!$C$333+'1 Données d''entrée'!$C$334+1+$B1106,$H1098*('1 Données d''entrée'!$C$332*(1+'1 Données d''entrée'!$C$332)^'1 Données d''entrée'!$C$333)/((1+'1 Données d''entrée'!$C$332)^'1 Données d''entrée'!$C$333-1),0))","v":0},{"$f":"IF(N992<'1 Données d''entrée'!$C$334+1+$B1106,0,IF(N992<'1 Données d''entrée'!$C$333+'1 Données d''entrée'!$C$334+1+$B1106,$H1098*('1 Données d''entrée'!$C$332*(1+'1 Données d''entrée'!$C$332)^'1 Données d''entrée'!$C$333)/((1+'1 Données d''entrée'!$C$332)^'1 Données d''entrée'!$C$333-1),0))","v":0},{"$f":"IF(O992<'1 Données d''entrée'!$C$334+1+$B1106,0,IF(O992<'1 Données d''entrée'!$C$333+'1 Données d''entrée'!$C$334+1+$B1106,$H1098*('1 Données d''entrée'!$C$332*(1+'1 Données d''entrée'!$C$332)^'1 Données d''entrée'!$C$333)/((1+'1 Données d''entrée'!$C$332)^'1 Données d''entrée'!$C$333-1),0))","v":0},{"$f":"IF(P992<'1 Données d''entrée'!$C$334+1+$B1106,0,IF(P992<'1 Données d''entrée'!$C$333+'1 Données d''entrée'!$C$334+1+$B1106,$H1098*('1 Données d''entrée'!$C$332*(1+'1 Données d''entrée'!$C$332)^'1 Données d''entrée'!$C$333)/((1+'1 Données d''entrée'!$C$332)^'1 Données d''entrée'!$C$333-1),0))","v":0},{"$f":"IF(Q992<'1 Données d''entrée'!$C$334+1+$B1106,0,IF(Q992<'1 Données d''entrée'!$C$333+'1 Données d''entrée'!$C$334+1+$B1106,$H1098*('1 Données d''entrée'!$C$332*(1+'1 Données d''entrée'!$C$332)^'1 Données d''entrée'!$C$333)/((1+'1 Données d''entrée'!$C$332)^'1 Données d''entrée'!$C$333-1),0))","v":0},{"$f":"IF(R992<'1 Données d''entrée'!$C$334+1+$B1106,0,IF(R992<'1 Données d''entrée'!$C$333+'1 Données d''entrée'!$C$334+1+$B1106,$H1098*('1 Données d''entrée'!$C$332*(1+'1 Données d''entrée'!$C$332)^'1 Données d''entrée'!$C$333)/((1+'1 Données d''entrée'!$C$332)^'1 Données d''entrée'!$C$333-1),0))","v":0},{"$f":"IF(S992<'1 Données d''entrée'!$C$334+1+$B1106,0,IF(S992<'1 Données d''entrée'!$C$333+'1 Données d''entrée'!$C$334+1+$B1106,$H1098*('1 Données d''entrée'!$C$332*(1+'1 Données d''entrée'!$C$332)^'1 Données d''entrée'!$C$333)/((1+'1 Données d''entrée'!$C$332)^'1 Données d''entrée'!$C$333-1),0))","v":0},{"$f":"IF(T992<'1 Données d''entrée'!$C$334+1+$B1106,0,IF(T992<'1 Données d''entrée'!$C$333+'1 Données d''entrée'!$C$334+1+$B1106,$H1098*('1 Données d''entrée'!$C$332*(1+'1 Données d''entrée'!$C$332)^'1 Données d''entrée'!$C$333)/((1+'1 Données d''entrée'!$C$332)^'1 Données d''entrée'!$C$333-1),0))","v":0},{"$f":"IF(U992<'1 Données d''entrée'!$C$334+1+$B1106,0,IF(U992<'1 Données d''entrée'!$C$333+'1 Données d''entrée'!$C$334+1+$B1106,$H1098*('1 Données d''entrée'!$C$332*(1+'1 Données d''entrée'!$C$332)^'1 Données d''entrée'!$C$333)/((1+'1 Données d''entrée'!$C$332)^'1 Données d''entrée'!$C$333-1),0))","v":0},{"$f":"IF(V992<'1 Données d''entrée'!$C$334+1+$B1106,0,IF(V992<'1 Données d''entrée'!$C$333+'1 Données d''entrée'!$C$334+1+$B1106,$H1098*('1 Données d''entrée'!$C$332*(1+'1 Données d''entrée'!$C$332)^'1 Données d''entrée'!$C$333)/((1+'1 Données d''entrée'!$C$332)^'1 Données d''entrée'!$C$333-1),0))","v":0}]
[null,7,{"$f":"IF(C$54<'1 Données d''entrée'!$C$334+1+$B1107,0,IF(C$54<'1 Données d''entrée'!$C$333+'1 Données d''entrée'!$C$334+1+$B1107,$I$160*('1 Données d''entrée'!$C$332*(1+'1 Données d''entrée'!$C$332)^'1 Données d''entrée'!$C$333)/((1+'1 Données d''entrée'!$C$332)^'1 Données d''entrée'!$C$333-1),0))","v":0},{"$f":"IF(D992<'1 Données d''entrée'!$C$334+1+$B1107,0,IF(D992<'1 Données d''entrée'!$C$333+'1 Données d''entrée'!$C$334+1+$B1107,$I1098*('1 Données d''entrée'!$C$332*(1+'1 Données d''entrée'!$C$332)^'1 Données d''entrée'!$C$333)/((1+'1 Données d''entrée'!$C$332)^'1 Données d''entrée'!$C$333-1),0))","v":0},{"$f":"IF(E992<'1 Données d''entrée'!$C$334+1+$B1107,0,IF(E992<'1 Données d''entrée'!$C$333+'1 Données d''entrée'!$C$334+1+$B1107,$I1098*('1 Données d''entrée'!$C$332*(1+'1 Données d''entrée'!$C$332)^'1 Données d''entrée'!$C$333)/((1+'1 Données d''entrée'!$C$332)^'1 Données d''entrée'!$C$333-1),0))","v":0},{"$f":"IF(F992<'1 Données d''entrée'!$C$334+1+$B1107,0,IF(F992<'1 Données d''entrée'!$C$333+'1 Données d''entrée'!$C$334+1+$B1107,$I1098*('1 Données d''entrée'!$C$332*(1+'1 Données d''entrée'!$C$332)^'1 Données d''entrée'!$C$333)/((1+'1 Données d''entrée'!$C$332)^'1 Données d''entrée'!$C$333-1),0))","v":0},{"$f":"IF(G992<'1 Données d''entrée'!$C$334+1+$B1107,0,IF(G992<'1 Données d''entrée'!$C$333+'1 Données d''entrée'!$C$334+1+$B1107,$I1098*('1 Données d''entrée'!$C$332*(1+'1 Données d''entrée'!$C$332)^'1 Données d''entrée'!$C$333)/((1+'1 Données d''entrée'!$C$332)^'1 Données d''entrée'!$C$333-1),0))","v":0},{"$f":"IF(H992<'1 Données d''entrée'!$C$334+1+$B1107,0,IF(H992<'1 Données d''entrée'!$C$333+'1 Données d''entrée'!$C$334+1+$B1107,$I1098*('1 Données d''entrée'!$C$332*(1+'1 Données d''entrée'!$C$332)^'1 Données d''entrée'!$C$333)/((1+'1 Données d''entrée'!$C$332)^'1 Données d''entrée'!$C$333-1),0))","v":0},{"$f":"IF(I992<'1 Données d''entrée'!$C$334+1+$B1107,0,IF(I992<'1 Données d''entrée'!$C$333+'1 Données d''entrée'!$C$334+1+$B1107,$I1098*('1 Données d''entrée'!$C$332*(1+'1 Données d''entrée'!$C$332)^'1 Données d''entrée'!$C$333)/((1+'1 Données d''entrée'!$C$332)^'1 Données d''entrée'!$C$333-1),0))","v":0},{"$f":"IF(J992<'1 Données d''entrée'!$C$334+1+$B1107,0,IF(J992<'1 Données d''entrée'!$C$333+'1 Données d''entrée'!$C$334+1+$B1107,$I1098*('1 Données d''entrée'!$C$332*(1+'1 Données d''entrée'!$C$332)^'1 Données d''entrée'!$C$333)/((1+'1 Données d''entrée'!$C$332)^'1 Données d''entrée'!$C$333-1),0))","v":0},{"$f":"IF(K992<'1 Données d''entrée'!$C$334+1+$B1107,0,IF(K992<'1 Données d''entrée'!$C$333+'1 Données d''entrée'!$C$334+1+$B1107,$I1098*('1 Données d''entrée'!$C$332*(1+'1 Données d''entrée'!$C$332)^'1 Données d''entrée'!$C$333)/((1+'1 Données d''entrée'!$C$332)^'1 Données d''entrée'!$C$333-1),0))","v":0},{"$f":"IF(L992<'1 Données d''entrée'!$C$334+1+$B1107,0,IF(L992<'1 Données d''entrée'!$C$333+'1 Données d''entrée'!$C$334+1+$B1107,$I1098*('1 Données d''entrée'!$C$332*(1+'1 Données d''entrée'!$C$332)^'1 Données d''entrée'!$C$333)/((1+'1 Données d''entrée'!$C$332)^'1 Données d''entrée'!$C$333-1),0))","v":0},{"$f":"IF(M992<'1 Données d''entrée'!$C$334+1+$B1107,0,IF(M992<'1 Données d''entrée'!$C$333+'1 Données d''entrée'!$C$334+1+$B1107,$I1098*('1 Données d''entrée'!$C$332*(1+'1 Données d''entrée'!$C$332)^'1 Données d''entrée'!$C$333)/((1+'1 Données d''entrée'!$C$332)^'1 Données d''entrée'!$C$333-1),0))","v":0},{"$f":"IF(N992<'1 Données d''entrée'!$C$334+1+$B1107,0,IF(N992<'1 Données d''entrée'!$C$333+'1 Données d''entrée'!$C$334+1+$B1107,$I1098*('1 Données d''entrée'!$C$332*(1+'1 Données d''entrée'!$C$332)^'1 Données d''entrée'!$C$333)/((1+'1 Données d''entrée'!$C$332)^'1 Données d''entrée'!$C$333-1),0))","v":0},{"$f":"IF(O992<'1 Données d''entrée'!$C$334+1+$B1107,0,IF(O992<'1 Données d''entrée'!$C$333+'1 Données d''entrée'!$C$334+1+$B1107,$I1098*('1 Données d''entrée'!$C$332*(1+'1 Données d''entrée'!$C$332)^'1 Données d''entrée'!$C$333)/((1+'1 Données d''entrée'!$C$332)^'1 Données d''entrée'!$C$333-1),0))","v":0},{"$f":"IF(P992<'1 Données d''entrée'!$C$334+1+$B1107,0,IF(P992<'1 Données d''entrée'!$C$333+'1 Données d''entrée'!$C$334+1+$B1107,$I1098*('1 Données d''entrée'!$C$332*(1+'1 Données d''entrée'!$C$332)^'1 Données d''entrée'!$C$333)/((1+'1 Données d''entrée'!$C$332)^'1 Données d''entrée'!$C$333-1),0))","v":0},{"$f":"IF(Q992<'1 Données d''entrée'!$C$334+1+$B1107,0,IF(Q992<'1 Données d''entrée'!$C$333+'1 Données d''entrée'!$C$334+1+$B1107,$I1098*('1 Données d''entrée'!$C$332*(1+'1 Données d''entrée'!$C$332)^'1 Données d''entrée'!$C$333)/((1+'1 Données d''entrée'!$C$332)^'1 Données d''entrée'!$C$333-1),0))","v":0},{"$f":"IF(R992<'1 Données d''entrée'!$C$334+1+$B1107,0,IF(R992<'1 Données d''entrée'!$C$333+'1 Données d''entrée'!$C$334+1+$B1107,$I1098*('1 Données d''entrée'!$C$332*(1+'1 Données d''entrée'!$C$332)^'1 Données d''entrée'!$C$333)/((1+'1 Données d''entrée'!$C$332)^'1 Données d''entrée'!$C$333-1),0))","v":0},{"$f":"IF(S992<'1 Données d''entrée'!$C$334+1+$B1107,0,IF(S992<'1 Données d''entrée'!$C$333+'1 Données d''entrée'!$C$334+1+$B1107,$I1098*('1 Données d''entrée'!$C$332*(1+'1 Données d''entrée'!$C$332)^'1 Données d''entrée'!$C$333)/((1+'1 Données d''entrée'!$C$332)^'1 Données d''entrée'!$C$333-1),0))","v":0},{"$f":"IF(T992<'1 Données d''entrée'!$C$334+1+$B1107,0,IF(T992<'1 Données d''entrée'!$C$333+'1 Données d''entrée'!$C$334+1+$B1107,$I1098*('1 Données d''entrée'!$C$332*(1+'1 Données d''entrée'!$C$332)^'1 Données d''entrée'!$C$333)/((1+'1 Données d''entrée'!$C$332)^'1 Données d''entrée'!$C$333-1),0))","v":0},{"$f":"IF(U992<'1 Données d''entrée'!$C$334+1+$B1107,0,IF(U992<'1 Données d''entrée'!$C$333+'1 Données d''entrée'!$C$334+1+$B1107,$I1098*('1 Données d''entrée'!$C$332*(1+'1 Données d''entrée'!$C$332)^'1 Données d''entrée'!$C$333)/((1+'1 Données d''entrée'!$C$332)^'1 Données d''entrée'!$C$333-1),0))","v":0},{"$f":"IF(V992<'1 Données d''entrée'!$C$334+1+$B1107,0,IF(V992<'1 Données d''entrée'!$C$333+'1 Données d''entrée'!$C$334+1+$B1107,$I1098*('1 Données d''entrée'!$C$332*(1+'1 Données d''entrée'!$C$332)^'1 Données d''entrée'!$C$333)/((1+'1 Données d''entrée'!$C$332)^'1 Données d''entrée'!$C$333-1),0))","v":0}]
[null,8,{"$f":"IF(C$54<'1 Données d''entrée'!$C$334+1+$B1108,0,IF(C$54<'1 Données d''entrée'!$C$333+'1 Données d''entrée'!$C$334+1+$B1108,$J$160*('1 Données d''entrée'!$C$332*(1+'1 Données d''entrée'!$C$332)^'1 Données d''entrée'!$C$333)/((1+'1 Données d''entrée'!$C$332)^'1 Données d''entrée'!$C$333-1),0))","v":0},{"$f":"IF(D992<'1 Données d''entrée'!$C$334+1+$B1108,0,IF(D992<'1 Données d''entrée'!$C$333+'1 Données d''entrée'!$C$334+1+$B1108,$J1098*('1 Données d''entrée'!$C$332*(1+'1 Données d''entrée'!$C$332)^'1 Données d''entrée'!$C$333)/((1+'1 Données d''entrée'!$C$332)^'1 Données d''entrée'!$C$333-1),0))","v":0},{"$f":"IF(E992<'1 Données d''entrée'!$C$334+1+$B1108,0,IF(E992<'1 Données d''entrée'!$C$333+'1 Données d''entrée'!$C$334+1+$B1108,$J1098*('1 Données d''entrée'!$C$332*(1+'1 Données d''entrée'!$C$332)^'1 Données d''entrée'!$C$333)/((1+'1 Données d''entrée'!$C$332)^'1 Données d''entrée'!$C$333-1),0))","v":0},{"$f":"IF(F992<'1 Données d''entrée'!$C$334+1+$B1108,0,IF(F992<'1 Données d''entrée'!$C$333+'1 Données d''entrée'!$C$334+1+$B1108,$J1098*('1 Données d''entrée'!$C$332*(1+'1 Données d''entrée'!$C$332)^'1 Données d''entrée'!$C$333)/((1+'1 Données d''entrée'!$C$332)^'1 Données d''entrée'!$C$333-1),0))","v":0},{"$f":"IF(G992<'1 Données d''entrée'!$C$334+1+$B1108,0,IF(G992<'1 Données d''entrée'!$C$333+'1 Données d''entrée'!$C$334+1+$B1108,$J1098*('1 Données d''entrée'!$C$332*(1+'1 Données d''entrée'!$C$332)^'1 Données d''entrée'!$C$333)/((1+'1 Données d''entrée'!$C$332)^'1 Données d''entrée'!$C$333-1),0))","v":0},{"$f":"IF(H992<'1 Données d''entrée'!$C$334+1+$B1108,0,IF(H992<'1 Données d''entrée'!$C$333+'1 Données d''entrée'!$C$334+1+$B1108,$J1098*('1 Données d''entrée'!$C$332*(1+'1 Données d''entrée'!$C$332)^'1 Données d''entrée'!$C$333)/((1+'1 Données d''entrée'!$C$332)^'1 Données d''entrée'!$C$333-1),0))","v":0},{"$f":"IF(I992<'1 Données d''entrée'!$C$334+1+$B1108,0,IF(I992<'1 Données d''entrée'!$C$333+'1 Données d''entrée'!$C$334+1+$B1108,$J1098*('1 Données d''entrée'!$C$332*(1+'1 Données d''entrée'!$C$332)^'1 Données d''entrée'!$C$333)/((1+'1 Données d''entrée'!$C$332)^'1 Données d''entrée'!$C$333-1),0))","v":0},{"$f":"IF(J992<'1 Données d''entrée'!$C$334+1+$B1108,0,IF(J992<'1 Données d''entrée'!$C$333+'1 Données d''entrée'!$C$334+1+$B1108,$J1098*('1 Données d''entrée'!$C$332*(1+'1 Données d''entrée'!$C$332)^'1 Données d''entrée'!$C$333)/((1+'1 Données d''entrée'!$C$332)^'1 Données d''entrée'!$C$333-1),0))","v":0},{"$f":"IF(K992<'1 Données d''entrée'!$C$334+1+$B1108,0,IF(K992<'1 Données d''entrée'!$C$333+'1 Données d''entrée'!$C$334+1+$B1108,$J1098*('1 Données d''entrée'!$C$332*(1+'1 Données d''entrée'!$C$332)^'1 Données d''entrée'!$C$333)/((1+'1 Données d''entrée'!$C$332)^'1 Données d''entrée'!$C$333-1),0))","v":0},{"$f":"IF(L992<'1 Données d''entrée'!$C$334+1+$B1108,0,IF(L992<'1 Données d''entrée'!$C$333+'1 Données d''entrée'!$C$334+1+$B1108,$J1098*('1 Données d''entrée'!$C$332*(1+'1 Données d''entrée'!$C$332)^'1 Données d''entrée'!$C$333)/((1+'1 Données d''entrée'!$C$332)^'1 Données d''entrée'!$C$333-1),0))","v":0},{"$f":"IF(M992<'1 Données d''entrée'!$C$334+1+$B1108,0,IF(M992<'1 Données d''entrée'!$C$333+'1 Données d''entrée'!$C$334+1+$B1108,$J1098*('1 Données d''entrée'!$C$332*(1+'1 Données d''entrée'!$C$332)^'1 Données d''entrée'!$C$333)/((1+'1 Données d''entrée'!$C$332)^'1 Données d''entrée'!$C$333-1),0))","v":0},{"$f":"IF(N992<'1 Données d''entrée'!$C$334+1+$B1108,0,IF(N992<'1 Données d''entrée'!$C$333+'1 Données d''entrée'!$C$334+1+$B1108,$J1098*('1 Données d''entrée'!$C$332*(1+'1 Données d''entrée'!$C$332)^'1 Données d''entrée'!$C$333)/((1+'1 Données d''entrée'!$C$332)^'1 Données d''entrée'!$C$333-1),0))","v":0},{"$f":"IF(O992<'1 Données d''entrée'!$C$334+1+$B1108,0,IF(O992<'1 Données d''entrée'!$C$333+'1 Données d''entrée'!$C$334+1+$B1108,$J1098*('1 Données d''entrée'!$C$332*(1+'1 Données d''entrée'!$C$332)^'1 Données d''entrée'!$C$333)/((1+'1 Données d''entrée'!$C$332)^'1 Données d''entrée'!$C$333-1),0))","v":0},{"$f":"IF(P992<'1 Données d''entrée'!$C$334+1+$B1108,0,IF(P992<'1 Données d''entrée'!$C$333+'1 Données d''entrée'!$C$334+1+$B1108,$J1098*('1 Données d''entrée'!$C$332*(1+'1 Données d''entrée'!$C$332)^'1 Données d''entrée'!$C$333)/((1+'1 Données d''entrée'!$C$332)^'1 Données d''entrée'!$C$333-1),0))","v":0},{"$f":"IF(Q992<'1 Données d''entrée'!$C$334+1+$B1108,0,IF(Q992<'1 Données d''entrée'!$C$333+'1 Données d''entrée'!$C$334+1+$B1108,$J1098*('1 Données d''entrée'!$C$332*(1+'1 Données d''entrée'!$C$332)^'1 Données d''entrée'!$C$333)/((1+'1 Données d''entrée'!$C$332)^'1 Données d''entrée'!$C$333-1),0))","v":0},{"$f":"IF(R992<'1 Données d''entrée'!$C$334+1+$B1108,0,IF(R992<'1 Données d''entrée'!$C$333+'1 Données d''entrée'!$C$334+1+$B1108,$J1098*('1 Données d''entrée'!$C$332*(1+'1 Données d''entrée'!$C$332)^'1 Données d''entrée'!$C$333)/((1+'1 Données d''entrée'!$C$332)^'1 Données d''entrée'!$C$333-1),0))","v":0},{"$f":"IF(S992<'1 Données d''entrée'!$C$334+1+$B1108,0,IF(S992<'1 Données d''entrée'!$C$333+'1 Données d''entrée'!$C$334+1+$B1108,$J1098*('1 Données d''entrée'!$C$332*(1+'1 Données d''entrée'!$C$332)^'1 Données d''entrée'!$C$333)/((1+'1 Données d''entrée'!$C$332)^'1 Données d''entrée'!$C$333-1),0))","v":0},{"$f":"IF(T992<'1 Données d''entrée'!$C$334+1+$B1108,0,IF(T992<'1 Données d''entrée'!$C$333+'1 Données d''entrée'!$C$334+1+$B1108,$J1098*('1 Données d''entrée'!$C$332*(1+'1 Données d''entrée'!$C$332)^'1 Données d''entrée'!$C$333)/((1+'1 Données d''entrée'!$C$332)^'1 Données d''entrée'!$C$333-1),0))","v":0},{"$f":"IF(U992<'1 Données d''entrée'!$C$334+1+$B1108,0,IF(U992<'1 Données d''entrée'!$C$333+'1 Données d''entrée'!$C$334+1+$B1108,$J1098*('1 Données d''entrée'!$C$332*(1+'1 Données d''entrée'!$C$332)^'1 Données d''entrée'!$C$333)/((1+'1 Données d''entrée'!$C$332)^'1 Données d''entrée'!$C$333-1),0))","v":0},{"$f":"IF(V992<'1 Données d''entrée'!$C$334+1+$B1108,0,IF(V992<'1 Données d''entrée'!$C$333+'1 Données d''entrée'!$C$334+1+$B1108,$J1098*('1 Données d''entrée'!$C$332*(1+'1 Données d''entrée'!$C$332)^'1 Données d''entrée'!$C$333)/((1+'1 Données d''entrée'!$C$332)^'1 Données d''entrée'!$C$333-1),0))","v":0}]
[null,9,{"$f":"IF(C$54<'1 Données d''entrée'!$C$334+1+$B1109,0,IF(C$54<'1 Données d''entrée'!$C$333+'1 Données d''entrée'!$C$334+1+$B1109,$K$160*('1 Données d''entrée'!$C$332*(1+'1 Données d''entrée'!$C$332)^'1 Données d''entrée'!$C$333)/((1+'1 Données d''entrée'!$C$332)^'1 Données d''entrée'!$C$333-1),0))","v":0},{"$f":"IF(D992<'1 Données d''entrée'!$C$334+1+$B1109,0,IF(D992<'1 Données d''entrée'!$C$333+'1 Données d''entrée'!$C$334+1+$B1109,$K1098*('1 Données d''entrée'!$C$332*(1+'1 Données d''entrée'!$C$332)^'1 Données d''entrée'!$C$333)/((1+'1 Données d''entrée'!$C$332)^'1 Données d''entrée'!$C$333-1),0))","v":0},{"$f":"IF(E992<'1 Données d''entrée'!$C$334+1+$B1109,0,IF(E992<'1 Données d''entrée'!$C$333+'1 Données d''entrée'!$C$334+1+$B1109,$K1098*('1 Données d''entrée'!$C$332*(1+'1 Données d''entrée'!$C$332)^'1 Données d''entrée'!$C$333)/((1+'1 Données d''entrée'!$C$332)^'1 Données d''entrée'!$C$333-1),0))","v":0},{"$f":"IF(F992<'1 Données d''entrée'!$C$334+1+$B1109,0,IF(F992<'1 Données d''entrée'!$C$333+'1 Données d''entrée'!$C$334+1+$B1109,$K1098*('1 Données d''entrée'!$C$332*(1+'1 Données d''entrée'!$C$332)^'1 Données d''entrée'!$C$333)/((1+'1 Données d''entrée'!$C$332)^'1 Données d''entrée'!$C$333-1),0))","v":0},{"$f":"IF(G992<'1 Données d''entrée'!$C$334+1+$B1109,0,IF(G992<'1 Données d''entrée'!$C$333+'1 Données d''entrée'!$C$334+1+$B1109,$K1098*('1 Données d''entrée'!$C$332*(1+'1 Données d''entrée'!$C$332)^'1 Données d''entrée'!$C$333)/((1+'1 Données d''entrée'!$C$332)^'1 Données d''entrée'!$C$333-1),0))","v":0},{"$f":"IF(H992<'1 Données d''entrée'!$C$334+1+$B1109,0,IF(H992<'1 Données d''entrée'!$C$333+'1 Données d''entrée'!$C$334+1+$B1109,$K1098*('1 Données d''entrée'!$C$332*(1+'1 Données d''entrée'!$C$332)^'1 Données d''entrée'!$C$333)/((1+'1 Données d''entrée'!$C$332)^'1 Données d''entrée'!$C$333-1),0))","v":0},{"$f":"IF(I992<'1 Données d''entrée'!$C$334+1+$B1109,0,IF(I992<'1 Données d''entrée'!$C$333+'1 Données d''entrée'!$C$334+1+$B1109,$K1098*('1 Données d''entrée'!$C$332*(1+'1 Données d''entrée'!$C$332)^'1 Données d''entrée'!$C$333)/((1+'1 Données d''entrée'!$C$332)^'1 Données d''entrée'!$C$333-1),0))","v":0},{"$f":"IF(J992<'1 Données d''entrée'!$C$334+1+$B1109,0,IF(J992<'1 Données d''entrée'!$C$333+'1 Données d''entrée'!$C$334+1+$B1109,$K1098*('1 Données d''entrée'!$C$332*(1+'1 Données d''entrée'!$C$332)^'1 Données d''entrée'!$C$333)/((1+'1 Données d''entrée'!$C$332)^'1 Données d''entrée'!$C$333-1),0))","v":0},{"$f":"IF(K992<'1 Données d''entrée'!$C$334+1+$B1109,0,IF(K992<'1 Données d''entrée'!$C$333+'1 Données d''entrée'!$C$334+1+$B1109,$K1098*('1 Données d''entrée'!$C$332*(1+'1 Données d''entrée'!$C$332)^'1 Données d''entrée'!$C$333)/((1+'1 Données d''entrée'!$C$332)^'1 Données d''entrée'!$C$333-1),0))","v":0},{"$f":"IF(L992<'1 Données d''entrée'!$C$334+1+$B1109,0,IF(L992<'1 Données d''entrée'!$C$333+'1 Données d''entrée'!$C$334+1+$B1109,$K1098*('1 Données d''entrée'!$C$332*(1+'1 Données d''entrée'!$C$332)^'1 Données d''entrée'!$C$333)/((1+'1 Données d''entrée'!$C$332)^'1 Données d''entrée'!$C$333-1),0))","v":0},{"$f":"IF(M992<'1 Données d''entrée'!$C$334+1+$B1109,0,IF(M992<'1 Données d''entrée'!$C$333+'1 Données d''entrée'!$C$334+1+$B1109,$K1098*('1 Données d''entrée'!$C$332*(1+'1 Données d''entrée'!$C$332)^'1 Données d''entrée'!$C$333)/((1+'1 Données d''entrée'!$C$332)^'1 Données d''entrée'!$C$333-1),0))","v":0},{"$f":"IF(N992<'1 Données d''entrée'!$C$334+1+$B1109,0,IF(N992<'1 Données d''entrée'!$C$333+'1 Données d''entrée'!$C$334+1+$B1109,$K1098*('1 Données d''entrée'!$C$332*(1+'1 Données d''entrée'!$C$332)^'1 Données d''entrée'!$C$333)/((1+'1 Données d''entrée'!$C$332)^'1 Données d''entrée'!$C$333-1),0))","v":0},{"$f":"IF(O992<'1 Données d''entrée'!$C$334+1+$B1109,0,IF(O992<'1 Données d''entrée'!$C$333+'1 Données d''entrée'!$C$334+1+$B1109,$K1098*('1 Données d''entrée'!$C$332*(1+'1 Données d''entrée'!$C$332)^'1 Données d''entrée'!$C$333)/((1+'1 Données d''entrée'!$C$332)^'1 Données d''entrée'!$C$333-1),0))","v":0},{"$f":"IF(P992<'1 Données d''entrée'!$C$334+1+$B1109,0,IF(P992<'1 Données d''entrée'!$C$333+'1 Données d''entrée'!$C$334+1+$B1109,$K1098*('1 Données d''entrée'!$C$332*(1+'1 Données d''entrée'!$C$332)^'1 Données d''entrée'!$C$333)/((1+'1 Données d''entrée'!$C$332)^'1 Données d''entrée'!$C$333-1),0))","v":0},{"$f":"IF(Q992<'1 Données d''entrée'!$C$334+1+$B1109,0,IF(Q992<'1 Données d''entrée'!$C$333+'1 Données d''entrée'!$C$334+1+$B1109,$K1098*('1 Données d''entrée'!$C$332*(1+'1 Données d''entrée'!$C$332)^'1 Données d''entrée'!$C$333)/((1+'1 Données d''entrée'!$C$332)^'1 Données d''entrée'!$C$333-1),0))","v":0},{"$f":"IF(R992<'1 Données d''entrée'!$C$334+1+$B1109,0,IF(R992<'1 Données d''entrée'!$C$333+'1 Données d''entrée'!$C$334+1+$B1109,$K1098*('1 Données d''entrée'!$C$332*(1+'1 Données d''entrée'!$C$332)^'1 Données d''entrée'!$C$333)/((1+'1 Données d''entrée'!$C$332)^'1 Données d''entrée'!$C$333-1),0))","v":0},{"$f":"IF(S992<'1 Données d''entrée'!$C$334+1+$B1109,0,IF(S992<'1 Données d''entrée'!$C$333+'1 Données d''entrée'!$C$334+1+$B1109,$K1098*('1 Données d''entrée'!$C$332*(1+'1 Données d''entrée'!$C$332)^'1 Données d''entrée'!$C$333)/((1+'1 Données d''entrée'!$C$332)^'1 Données d''entrée'!$C$333-1),0))","v":0},{"$f":"IF(T992<'1 Données d''entrée'!$C$334+1+$B1109,0,IF(T992<'1 Données d''entrée'!$C$333+'1 Données d''entrée'!$C$334+1+$B1109,$K1098*('1 Données d''entrée'!$C$332*(1+'1 Données d''entrée'!$C$332)^'1 Données d''entrée'!$C$333)/((1+'1 Données d''entrée'!$C$332)^'1 Données d''entrée'!$C$333-1),0))","v":0},{"$f":"IF(U992<'1 Données d''entrée'!$C$334+1+$B1109,0,IF(U992<'1 Données d''entrée'!$C$333+'1 Données d''entrée'!$C$334+1+$B1109,$K1098*('1 Données d''entrée'!$C$332*(1+'1 Données d''entrée'!$C$332)^'1 Données d''entrée'!$C$333)/((1+'1 Données d''entrée'!$C$332)^'1 Données d''entrée'!$C$333-1),0))","v":0},{"$f":"IF(V992<'1 Données d''entrée'!$C$334+1+$B1109,0,IF(V992<'1 Données d''entrée'!$C$333+'1 Données d''entrée'!$C$334+1+$B1109,$K1098*('1 Données d''entrée'!$C$332*(1+'1 Données d''entrée'!$C$332)^'1 Données d''entrée'!$C$333)/((1+'1 Données d''entrée'!$C$332)^'1 Données d''entrée'!$C$333-1),0))","v":0}]
[null,10,{"$f":"IF(C$54<'1 Données d''entrée'!$C$334+1+$B1110,0,IF(C$54<'1 Données d''entrée'!$C$333+'1 Données d''entrée'!$C$334+1+$B1110,$L$160*('1 Données d''entrée'!$C$332*(1+'1 Données d''entrée'!$C$332)^'1 Données d''entrée'!$C$333)/((1+'1 Données d''entrée'!$C$332)^'1 Données d''entrée'!$C$333-1),0))","v":0},{"$f":"IF(D992<'1 Données d''entrée'!$C$334+1+$B1110,0,IF(D992<'1 Données d''entrée'!$C$333+'1 Données d''entrée'!$C$334+1+$B1110,$L1098*('1 Données d''entrée'!$C$332*(1+'1 Données d''entrée'!$C$332)^'1 Données d''entrée'!$C$333)/((1+'1 Données d''entrée'!$C$332)^'1 Données d''entrée'!$C$333-1),0))","v":0},{"$f":"IF(E992<'1 Données d''entrée'!$C$334+1+$B1110,0,IF(E992<'1 Données d''entrée'!$C$333+'1 Données d''entrée'!$C$334+1+$B1110,$L1098*('1 Données d''entrée'!$C$332*(1+'1 Données d''entrée'!$C$332)^'1 Données d''entrée'!$C$333)/((1+'1 Données d''entrée'!$C$332)^'1 Données d''entrée'!$C$333-1),0))","v":0},{"$f":"IF(F992<'1 Données d''entrée'!$C$334+1+$B1110,0,IF(F992<'1 Données d''entrée'!$C$333+'1 Données d''entrée'!$C$334+1+$B1110,$L1098*('1 Données d''entrée'!$C$332*(1+'1 Données d''entrée'!$C$332)^'1 Données d''entrée'!$C$333)/((1+'1 Données d''entrée'!$C$332)^'1 Données d''entrée'!$C$333-1),0))","v":0},{"$f":"IF(G992<'1 Données d''entrée'!$C$334+1+$B1110,0,IF(G992<'1 Données d''entrée'!$C$333+'1 Données d''entrée'!$C$334+1+$B1110,$L1098*('1 Données d''entrée'!$C$332*(1+'1 Données d''entrée'!$C$332)^'1 Données d''entrée'!$C$333)/((1+'1 Données d''entrée'!$C$332)^'1 Données d''entrée'!$C$333-1),0))","v":0},{"$f":"IF(H992<'1 Données d''entrée'!$C$334+1+$B1110,0,IF(H992<'1 Données d''entrée'!$C$333+'1 Données d''entrée'!$C$334+1+$B1110,$L1098*('1 Données d''entrée'!$C$332*(1+'1 Données d''entrée'!$C$332)^'1 Données d''entrée'!$C$333)/((1+'1 Données d''entrée'!$C$332)^'1 Données d''entrée'!$C$333-1),0))","v":0},{"$f":"IF(I992<'1 Données d''entrée'!$C$334+1+$B1110,0,IF(I992<'1 Données d''entrée'!$C$333+'1 Données d''entrée'!$C$334+1+$B1110,$L1098*('1 Données d''entrée'!$C$332*(1+'1 Données d''entrée'!$C$332)^'1 Données d''entrée'!$C$333)/((1+'1 Données d''entrée'!$C$332)^'1 Données d''entrée'!$C$333-1),0))","v":0},{"$f":"IF(J992<'1 Données d''entrée'!$C$334+1+$B1110,0,IF(J992<'1 Données d''entrée'!$C$333+'1 Données d''entrée'!$C$334+1+$B1110,$L1098*('1 Données d''entrée'!$C$332*(1+'1 Données d''entrée'!$C$332)^'1 Données d''entrée'!$C$333)/((1+'1 Données d''entrée'!$C$332)^'1 Données d''entrée'!$C$333-1),0))","v":0},{"$f":"IF(K992<'1 Données d''entrée'!$C$334+1+$B1110,0,IF(K992<'1 Données d''entrée'!$C$333+'1 Données d''entrée'!$C$334+1+$B1110,$L1098*('1 Données d''entrée'!$C$332*(1+'1 Données d''entrée'!$C$332)^'1 Données d''entrée'!$C$333)/((1+'1 Données d''entrée'!$C$332)^'1 Données d''entrée'!$C$333-1),0))","v":0},{"$f":"IF(L992<'1 Données d''entrée'!$C$334+1+$B1110,0,IF(L992<'1 Données d''entrée'!$C$333+'1 Données d''entrée'!$C$334+1+$B1110,$L1098*('1 Données d''entrée'!$C$332*(1+'1 Données d''entrée'!$C$332)^'1 Données d''entrée'!$C$333)/((1+'1 Données d''entrée'!$C$332)^'1 Données d''entrée'!$C$333-1),0))","v":0},{"$f":"IF(M992<'1 Données d''entrée'!$C$334+1+$B1110,0,IF(M992<'1 Données d''entrée'!$C$333+'1 Données d''entrée'!$C$334+1+$B1110,$L1098*('1 Données d''entrée'!$C$332*(1+'1 Données d''entrée'!$C$332)^'1 Données d''entrée'!$C$333)/((1+'1 Données d''entrée'!$C$332)^'1 Données d''entrée'!$C$333-1),0))","v":0},{"$f":"IF(N992<'1 Données d''entrée'!$C$334+1+$B1110,0,IF(N992<'1 Données d''entrée'!$C$333+'1 Données d''entrée'!$C$334+1+$B1110,$L1098*('1 Données d''entrée'!$C$332*(1+'1 Données d''entrée'!$C$332)^'1 Données d''entrée'!$C$333)/((1+'1 Données d''entrée'!$C$332)^'1 Données d''entrée'!$C$333-1),0))","v":0},{"$f":"IF(O992<'1 Données d''entrée'!$C$334+1+$B1110,0,IF(O992<'1 Données d''entrée'!$C$333+'1 Données d''entrée'!$C$334+1+$B1110,$L1098*('1 Données d''entrée'!$C$332*(1+'1 Données d''entrée'!$C$332)^'1 Données d''entrée'!$C$333)/((1+'1 Données d''entrée'!$C$332)^'1 Données d''entrée'!$C$333-1),0))","v":0},{"$f":"IF(P992<'1 Données d''entrée'!$C$334+1+$B1110,0,IF(P992<'1 Données d''entrée'!$C$333+'1 Données d''entrée'!$C$334+1+$B1110,$L1098*('1 Données d''entrée'!$C$332*(1+'1 Données d''entrée'!$C$332)^'1 Données d''entrée'!$C$333)/((1+'1 Données d''entrée'!$C$332)^'1 Données d''entrée'!$C$333-1),0))","v":0},{"$f":"IF(Q992<'1 Données d''entrée'!$C$334+1+$B1110,0,IF(Q992<'1 Données d''entrée'!$C$333+'1 Données d''entrée'!$C$334+1+$B1110,$L1098*('1 Données d''entrée'!$C$332*(1+'1 Données d''entrée'!$C$332)^'1 Données d''entrée'!$C$333)/((1+'1 Données d''entrée'!$C$332)^'1 Données d''entrée'!$C$333-1),0))","v":0},{"$f":"IF(R992<'1 Données d''entrée'!$C$334+1+$B1110,0,IF(R992<'1 Données d''entrée'!$C$333+'1 Données d''entrée'!$C$334+1+$B1110,$L1098*('1 Données d''entrée'!$C$332*(1+'1 Données d''entrée'!$C$332)^'1 Données d''entrée'!$C$333)/((1+'1 Données d''entrée'!$C$332)^'1 Données d''entrée'!$C$333-1),0))","v":0},{"$f":"IF(S992<'1 Données d''entrée'!$C$334+1+$B1110,0,IF(S992<'1 Données d''entrée'!$C$333+'1 Données d''entrée'!$C$334+1+$B1110,$L1098*('1 Données d''entrée'!$C$332*(1+'1 Données d''entrée'!$C$332)^'1 Données d''entrée'!$C$333)/((1+'1 Données d''entrée'!$C$332)^'1 Données d''entrée'!$C$333-1),0))","v":0},{"$f":"IF(T992<'1 Données d''entrée'!$C$334+1+$B1110,0,IF(T992<'1 Données d''entrée'!$C$333+'1 Données d''entrée'!$C$334+1+$B1110,$L1098*('1 Données d''entrée'!$C$332*(1+'1 Données d''entrée'!$C$332)^'1 Données d''entrée'!$C$333)/((1+'1 Données d''entrée'!$C$332)^'1 Données d''entrée'!$C$333-1),0))","v":0},{"$f":"IF(U992<'1 Données d''entrée'!$C$334+1+$B1110,0,IF(U992<'1 Données d''entrée'!$C$333+'1 Données d''entrée'!$C$334+1+$B1110,$L1098*('1 Données d''entrée'!$C$332*(1+'1 Données d''entrée'!$C$332)^'1 Données d''entrée'!$C$333)/((1+'1 Données d''entrée'!$C$332)^'1 Données d''entrée'!$C$333-1),0))","v":0},{"$f":"IF(V992<'1 Données d''entrée'!$C$334+1+$B1110,0,IF(V992<'1 Données d''entrée'!$C$333+'1 Données d''entrée'!$C$334+1+$B1110,$L1098*('1 Données d''entrée'!$C$332*(1+'1 Données d''entrée'!$C$332)^'1 Données d''entrée'!$C$333)/((1+'1 Données d''entrée'!$C$332)^'1 Données d''entrée'!$C$333-1),0))","v":0}]
[null,"Période de prêt nouveau"]
["Paiement d'intérêt décroissant inclu dans l'annuité constante",0,0,0,0,0,0,0,0,0,0,0,0,0,0,0,0,0,0,0,0,0]
["Paiement d'intêrets",1,0,{"$f":"IF(D1101>0,$C1098*((('1 Données d''entrée'!$C$332+1)^'1 Données d''entrée'!$C$333)-(1+'1 Données d''entrée'!$C$332)^('6 Financement'!C$54-1-'1 Données d''entrée'!$C$334-$B1112))/((1+'1 Données d''entrée'!$C$332)^'1 Données d''entrée'!$C$333-1)*'1 Données d''entrée'!$C$332,0)","v":0},{"$f":"IF(E1101>0,$C1098*((('1 Données d''entrée'!$C$332+1)^'1 Données d''entrée'!$C$333)-(1+'1 Données d''entrée'!$C$332)^('6 Financement'!D$54-1-'1 Données d''entrée'!$C$334-$B1112))/((1+'1 Données d''entrée'!$C$332)^'1 Données d''entrée'!$C$333-1)*'1 Données d''entrée'!$C$332,0)","v":0},{"$f":"IF(F1101>0,$C1098*((('1 Données d''entrée'!$C$332+1)^'1 Données d''entrée'!$C$333)-(1+'1 Données d''entrée'!$C$332)^('6 Financement'!E$54-1-'1 Données d''entrée'!$C$334-$B1112))/((1+'1 Données d''entrée'!$C$332)^'1 Données d''entrée'!$C$333-1)*'1 Données d''entrée'!$C$332,0)","v":0},{"$f":"IF(G1101>0,$C1098*((('1 Données d''entrée'!$C$332+1)^'1 Données d''entrée'!$C$333)-(1+'1 Données d''entrée'!$C$332)^('6 Financement'!F$54-1-'1 Données d''entrée'!$C$334-$B1112))/((1+'1 Données d''entrée'!$C$332)^'1 Données d''entrée'!$C$333-1)*'1 Données d''entrée'!$C$332,0)","v":0},{"$f":"IF(H1101>0,$C1098*((('1 Données d''entrée'!$C$332+1)^'1 Données d''entrée'!$C$333)-(1+'1 Données d''entrée'!$C$332)^('6 Financement'!G$54-1-'1 Données d''entrée'!$C$334-$B1112))/((1+'1 Données d''entrée'!$C$332)^'1 Données d''entrée'!$C$333-1)*'1 Données d''entrée'!$C$332,0)","v":0},{"$f":"IF(I1101>0,$C1098*((('1 Données d''entrée'!$C$332+1)^'1 Données d''entrée'!$C$333)-(1+'1 Données d''entrée'!$C$332)^('6 Financement'!H$54-1-'1 Données d''entrée'!$C$334-$B1112))/((1+'1 Données d''entrée'!$C$332)^'1 Données d''entrée'!$C$333-1)*'1 Données d''entrée'!$C$332,0)","v":0},{"$f":"IF(J1101>0,$C1098*((('1 Données d''entrée'!$C$332+1)^'1 Données d''entrée'!$C$333)-(1+'1 Données d''entrée'!$C$332)^('6 Financement'!I$54-1-'1 Données d''entrée'!$C$334-$B1112))/((1+'1 Données d''entrée'!$C$332)^'1 Données d''entrée'!$C$333-1)*'1 Données d''entrée'!$C$332,0)","v":0},{"$f":"IF(K1101>0,$C1098*((('1 Données d''entrée'!$C$332+1)^'1 Données d''entrée'!$C$333)-(1+'1 Données d''entrée'!$C$332)^('6 Financement'!J$54-1-'1 Données d''entrée'!$C$334-$B1112))/((1+'1 Données d''entrée'!$C$332)^'1 Données d''entrée'!$C$333-1)*'1 Données d''entrée'!$C$332,0)","v":0},{"$f":"IF(L1101>0,$C1098*((('1 Données d''entrée'!$C$332+1)^'1 Données d''entrée'!$C$333)-(1+'1 Données d''entrée'!$C$332)^('6 Financement'!K$54-1-'1 Données d''entrée'!$C$334-$B1112))/((1+'1 Données d''entrée'!$C$332)^'1 Données d''entrée'!$C$333-1)*'1 Données d''entrée'!$C$332,0)","v":0},{"$f":"IF(M1101>0,$C1098*((('1 Données d''entrée'!$C$332+1)^'1 Données d''entrée'!$C$333)-(1+'1 Données d''entrée'!$C$332)^('6 Financement'!L$54-1-'1 Données d''entrée'!$C$334-$B1112))/((1+'1 Données d''entrée'!$C$332)^'1 Données d''entrée'!$C$333-1)*'1 Données d''entrée'!$C$332,0)","v":0},{"$f":"IF(N1101>0,$C1098*((('1 Données d''entrée'!$C$332+1)^'1 Données d''entrée'!$C$333)-(1+'1 Données d''entrée'!$C$332)^('6 Financement'!M$54-1-'1 Données d''entrée'!$C$334-$B1112))/((1+'1 Données d''entrée'!$C$332)^'1 Données d''entrée'!$C$333-1)*'1 Données d''entrée'!$C$332,0)","v":0},{"$f":"IF(O1101>0,$C1098*((('1 Données d''entrée'!$C$332+1)^'1 Données d''entrée'!$C$333)-(1+'1 Données d''entrée'!$C$332)^('6 Financement'!N$54-1-'1 Données d''entrée'!$C$334-$B1112))/((1+'1 Données d''entrée'!$C$332)^'1 Données d''entrée'!$C$333-1)*'1 Données d''entrée'!$C$332,0)","v":0},{"$f":"IF(P1101>0,$C1098*((('1 Données d''entrée'!$C$332+1)^'1 Données d''entrée'!$C$333)-(1+'1 Données d''entrée'!$C$332)^('6 Financement'!O$54-1-'1 Données d''entrée'!$C$334-$B1112))/((1+'1 Données d''entrée'!$C$332)^'1 Données d''entrée'!$C$333-1)*'1 Données d''entrée'!$C$332,0)","v":0},{"$f":"IF(Q1101>0,$C1098*((('1 Données d''entrée'!$C$332+1)^'1 Données d''entrée'!$C$333)-(1+'1 Données d''entrée'!$C$332)^('6 Financement'!P$54-1-'1 Données d''entrée'!$C$334-$B1112))/((1+'1 Données d''entrée'!$C$332)^'1 Données d''entrée'!$C$333-1)*'1 Données d''entrée'!$C$332,0)","v":0},{"$f":"IF(R1101>0,$C1098*((('1 Données d''entrée'!$C$332+1)^'1 Données d''entrée'!$C$333)-(1+'1 Données d''entrée'!$C$332)^('6 Financement'!Q$54-1-'1 Données d''entrée'!$C$334-$B1112))/((1+'1 Données d''entrée'!$C$332)^'1 Données d''entrée'!$C$333-1)*'1 Données d''entrée'!$C$332,0)","v":0},{"$f":"IF(S1101>0,$C1098*((('1 Données d''entrée'!$C$332+1)^'1 Données d''entrée'!$C$333)-(1+'1 Données d''entrée'!$C$332)^('6 Financement'!R$54-1-'1 Données d''entrée'!$C$334-$B1112))/((1+'1 Données d''entrée'!$C$332)^'1 Données d''entrée'!$C$333-1)*'1 Données d''entrée'!$C$332,0)","v":0},{"$f":"IF(T1101>0,$C1098*((('1 Données d''entrée'!$C$332+1)^'1 Données d''entrée'!$C$333)-(1+'1 Données d''entrée'!$C$332)^('6 Financement'!S$54-1-'1 Données d''entrée'!$C$334-$B1112))/((1+'1 Données d''entrée'!$C$332)^'1 Données d''entrée'!$C$333-1)*'1 Données d''entrée'!$C$332,0)","v":0},{"$f":"IF(U1101>0,$C1098*((('1 Données d''entrée'!$C$332+1)^'1 Données d''entrée'!$C$333)-(1+'1 Données d''entrée'!$C$332)^('6 Financement'!T$54-1-'1 Données d''entrée'!$C$334-$B1112))/((1+'1 Données d''entrée'!$C$332)^'1 Données d''entrée'!$C$333-1)*'1 Données d''entrée'!$C$332,0)","v":0},{"$f":"IF(V1101>0,$C1098*((('1 Données d''entrée'!$C$332+1)^'1 Données d''entrée'!$C$333)-(1+'1 Données d''entrée'!$C$332)^('6 Financement'!U$54-1-'1 Données d''entrée'!$C$334-$B1112))/((1+'1 Données d''entrée'!$C$332)^'1 Données d''entrée'!$C$333-1)*'1 Données d''entrée'!$C$332,0)","v":0}]
["Paiement d'intêrets",2,0,{"$f":"IF(D1102>0,$D1098*((('1 Données d''entrée'!$C$332+1)^'1 Données d''entrée'!$C$333)-(1+'1 Données d''entrée'!$C$332)^('6 Financement'!C$54-1-'1 Données d''entrée'!$C$334-$B1113))/((1+'1 Données d''entrée'!$C$332)^'1 Données d''entrée'!$C$333-1)*'1 Données d''entrée'!$C$332,0)","v":0},{"$f":"IF(E1102>0,$D1098*((('1 Données d''entrée'!$C$332+1)^'1 Données d''entrée'!$C$333)-(1+'1 Données d''entrée'!$C$332)^('6 Financement'!D$54-1-'1 Données d''entrée'!$C$334-$B1113))/((1+'1 Données d''entrée'!$C$332)^'1 Données d''entrée'!$C$333-1)*'1 Données d''entrée'!$C$332,0)","v":0},{"$f":"IF(F1102>0,$D1098*((('1 Données d''entrée'!$C$332+1)^'1 Données d''entrée'!$C$333)-(1+'1 Données d''entrée'!$C$332)^('6 Financement'!E$54-1-'1 Données d''entrée'!$C$334-$B1113))/((1+'1 Données d''entrée'!$C$332)^'1 Données d''entrée'!$C$333-1)*'1 Données d''entrée'!$C$332,0)","v":0},{"$f":"IF(G1102>0,$D1098*((('1 Données d''entrée'!$C$332+1)^'1 Données d''entrée'!$C$333)-(1+'1 Données d''entrée'!$C$332)^('6 Financement'!F$54-1-'1 Données d''entrée'!$C$334-$B1113))/((1+'1 Données d''entrée'!$C$332)^'1 Données d''entrée'!$C$333-1)*'1 Données d''entrée'!$C$332,0)","v":0},{"$f":"IF(H1102>0,$D1098*((('1 Données d''entrée'!$C$332+1)^'1 Données d''entrée'!$C$333)-(1+'1 Données d''entrée'!$C$332)^('6 Financement'!G$54-1-'1 Données d''entrée'!$C$334-$B1113))/((1+'1 Données d''entrée'!$C$332)^'1 Données d''entrée'!$C$333-1)*'1 Données d''entrée'!$C$332,0)","v":0},{"$f":"IF(I1102>0,$D1098*((('1 Données d''entrée'!$C$332+1)^'1 Données d''entrée'!$C$333)-(1+'1 Données d''entrée'!$C$332)^('6 Financement'!H$54-1-'1 Données d''entrée'!$C$334-$B1113))/((1+'1 Données d''entrée'!$C$332)^'1 Données d''entrée'!$C$333-1)*'1 Données d''entrée'!$C$332,0)","v":0},{"$f":"IF(J1102>0,$D1098*((('1 Données d''entrée'!$C$332+1)^'1 Données d''entrée'!$C$333)-(1+'1 Données d''entrée'!$C$332)^('6 Financement'!I$54-1-'1 Données d''entrée'!$C$334-$B1113))/((1+'1 Données d''entrée'!$C$332)^'1 Données d''entrée'!$C$333-1)*'1 Données d''entrée'!$C$332,0)","v":0},{"$f":"IF(K1102>0,$D1098*((('1 Données d''entrée'!$C$332+1)^'1 Données d''entrée'!$C$333)-(1+'1 Données d''entrée'!$C$332)^('6 Financement'!J$54-1-'1 Données d''entrée'!$C$334-$B1113))/((1+'1 Données d''entrée'!$C$332)^'1 Données d''entrée'!$C$333-1)*'1 Données d''entrée'!$C$332,0)","v":0},{"$f":"IF(L1102>0,$D1098*((('1 Données d''entrée'!$C$332+1)^'1 Données d''entrée'!$C$333)-(1+'1 Données d''entrée'!$C$332)^('6 Financement'!K$54-1-'1 Données d''entrée'!$C$334-$B1113))/((1+'1 Données d''entrée'!$C$332)^'1 Données d''entrée'!$C$333-1)*'1 Données d''entrée'!$C$332,0)","v":0},{"$f":"IF(M1102>0,$D1098*((('1 Données d''entrée'!$C$332+1)^'1 Données d''entrée'!$C$333)-(1+'1 Données d''entrée'!$C$332)^('6 Financement'!L$54-1-'1 Données d''entrée'!$C$334-$B1113))/((1+'1 Données d''entrée'!$C$332)^'1 Données d''entrée'!$C$333-1)*'1 Données d''entrée'!$C$332,0)","v":0},{"$f":"IF(N1102>0,$D1098*((('1 Données d''entrée'!$C$332+1)^'1 Données d''entrée'!$C$333)-(1+'1 Données d''entrée'!$C$332)^('6 Financement'!M$54-1-'1 Données d''entrée'!$C$334-$B1113))/((1+'1 Données d''entrée'!$C$332)^'1 Données d''entrée'!$C$333-1)*'1 Données d''entrée'!$C$332,0)","v":0},{"$f":"IF(O1102>0,$D1098*((('1 Données d''entrée'!$C$332+1)^'1 Données d''entrée'!$C$333)-(1+'1 Données d''entrée'!$C$332)^('6 Financement'!N$54-1-'1 Données d''entrée'!$C$334-$B1113))/((1+'1 Données d''entrée'!$C$332)^'1 Données d''entrée'!$C$333-1)*'1 Données d''entrée'!$C$332,0)","v":0},{"$f":"IF(P1102>0,$D1098*((('1 Données d''entrée'!$C$332+1)^'1 Données d''entrée'!$C$333)-(1+'1 Données d''entrée'!$C$332)^('6 Financement'!O$54-1-'1 Données d''entrée'!$C$334-$B1113))/((1+'1 Données d''entrée'!$C$332)^'1 Données d''entrée'!$C$333-1)*'1 Données d''entrée'!$C$332,0)","v":0},{"$f":"IF(Q1102>0,$D1098*((('1 Données d''entrée'!$C$332+1)^'1 Données d''entrée'!$C$333)-(1+'1 Données d''entrée'!$C$332)^('6 Financement'!P$54-1-'1 Données d''entrée'!$C$334-$B1113))/((1+'1 Données d''entrée'!$C$332)^'1 Données d''entrée'!$C$333-1)*'1 Données d''entrée'!$C$332,0)","v":0},{"$f":"IF(R1102>0,$D1098*((('1 Données d''entrée'!$C$332+1)^'1 Données d''entrée'!$C$333)-(1+'1 Données d''entrée'!$C$332)^('6 Financement'!Q$54-1-'1 Données d''entrée'!$C$334-$B1113))/((1+'1 Données d''entrée'!$C$332)^'1 Données d''entrée'!$C$333-1)*'1 Données d''entrée'!$C$332,0)","v":0},{"$f":"IF(S1102>0,$D1098*((('1 Données d''entrée'!$C$332+1)^'1 Données d''entrée'!$C$333)-(1+'1 Données d''entrée'!$C$332)^('6 Financement'!R$54-1-'1 Données d''entrée'!$C$334-$B1113))/((1+'1 Données d''entrée'!$C$332)^'1 Données d''entrée'!$C$333-1)*'1 Données d''entrée'!$C$332,0)","v":0},{"$f":"IF(T1102>0,$D1098*((('1 Données d''entrée'!$C$332+1)^'1 Données d''entrée'!$C$333)-(1+'1 Données d''entrée'!$C$332)^('6 Financement'!S$54-1-'1 Données d''entrée'!$C$334-$B1113))/((1+'1 Données d''entrée'!$C$332)^'1 Données d''entrée'!$C$333-1)*'1 Données d''entrée'!$C$332,0)","v":0},{"$f":"IF(U1102>0,$D1098*((('1 Données d''entrée'!$C$332+1)^'1 Données d''entrée'!$C$333)-(1+'1 Données d''entrée'!$C$332)^('6 Financement'!T$54-1-'1 Données d''entrée'!$C$334-$B1113))/((1+'1 Données d''entrée'!$C$332)^'1 Données d''entrée'!$C$333-1)*'1 Données d''entrée'!$C$332,0)","v":0},{"$f":"IF(V1102>0,$D1098*((('1 Données d''entrée'!$C$332+1)^'1 Données d''entrée'!$C$333)-(1+'1 Données d''entrée'!$C$332)^('6 Financement'!U$54-1-'1 Données d''entrée'!$C$334-$B1113))/((1+'1 Données d''entrée'!$C$332)^'1 Données d''entrée'!$C$333-1)*'1 Données d''entrée'!$C$332,0)","v":0}]
["Paiement d'intêrets",3,0,{"$f":"IF(D1103>0,$E1098*((('1 Données d''entrée'!$C$332+1)^'1 Données d''entrée'!$C$333)-(1+'1 Données d''entrée'!$C$332)^('6 Financement'!C$54-1-'1 Données d''entrée'!$C$334-$B1114))/((1+'1 Données d''entrée'!$C$332)^'1 Données d''entrée'!$C$333-1)*'1 Données d''entrée'!$C$332,0)","v":0},{"$f":"IF(E1103>0,$E1098*((('1 Données d''entrée'!$C$332+1)^'1 Données d''entrée'!$C$333)-(1+'1 Données d''entrée'!$C$332)^('6 Financement'!D$54-1-'1 Données d''entrée'!$C$334-$B1114))/((1+'1 Données d''entrée'!$C$332)^'1 Données d''entrée'!$C$333-1)*'1 Données d''entrée'!$C$332,0)","v":0},{"$f":"IF(F1103>0,$E1098*((('1 Données d''entrée'!$C$332+1)^'1 Données d''entrée'!$C$333)-(1+'1 Données d''entrée'!$C$332)^('6 Financement'!E$54-1-'1 Données d''entrée'!$C$334-$B1114))/((1+'1 Données d''entrée'!$C$332)^'1 Données d''entrée'!$C$333-1)*'1 Données d''entrée'!$C$332,0)","v":0},{"$f":"IF(G1103>0,$E1098*((('1 Données d''entrée'!$C$332+1)^'1 Données d''entrée'!$C$333)-(1+'1 Données d''entrée'!$C$332)^('6 Financement'!F$54-1-'1 Données d''entrée'!$C$334-$B1114))/((1+'1 Données d''entrée'!$C$332)^'1 Données d''entrée'!$C$333-1)*'1 Données d''entrée'!$C$332,0)","v":0},{"$f":"IF(H1103>0,$E1098*((('1 Données d''entrée'!$C$332+1)^'1 Données d''entrée'!$C$333)-(1+'1 Données d''entrée'!$C$332)^('6 Financement'!G$54-1-'1 Données d''entrée'!$C$334-$B1114))/((1+'1 Données d''entrée'!$C$332)^'1 Données d''entrée'!$C$333-1)*'1 Données d''entrée'!$C$332,0)","v":0},{"$f":"IF(I1103>0,$E1098*((('1 Données d''entrée'!$C$332+1)^'1 Données d''entrée'!$C$333)-(1+'1 Données d''entrée'!$C$332)^('6 Financement'!H$54-1-'1 Données d''entrée'!$C$334-$B1114))/((1+'1 Données d''entrée'!$C$332)^'1 Données d''entrée'!$C$333-1)*'1 Données d''entrée'!$C$332,0)","v":0},{"$f":"IF(J1103>0,$E1098*((('1 Données d''entrée'!$C$332+1)^'1 Données d''entrée'!$C$333)-(1+'1 Données d''entrée'!$C$332)^('6 Financement'!I$54-1-'1 Données d''entrée'!$C$334-$B1114))/((1+'1 Données d''entrée'!$C$332)^'1 Données d''entrée'!$C$333-1)*'1 Données d''entrée'!$C$332,0)","v":0},{"$f":"IF(K1103>0,$E1098*((('1 Données d''entrée'!$C$332+1)^'1 Données d''entrée'!$C$333)-(1+'1 Données d''entrée'!$C$332)^('6 Financement'!J$54-1-'1 Données d''entrée'!$C$334-$B1114))/((1+'1 Données d''entrée'!$C$332)^'1 Données d''entrée'!$C$333-1)*'1 Données d''entrée'!$C$332,0)","v":0},{"$f":"IF(L1103>0,$E1098*((('1 Données d''entrée'!$C$332+1)^'1 Données d''entrée'!$C$333)-(1+'1 Données d''entrée'!$C$332)^('6 Financement'!K$54-1-'1 Données d''entrée'!$C$334-$B1114))/((1+'1 Données d''entrée'!$C$332)^'1 Données d''entrée'!$C$333-1)*'1 Données d''entrée'!$C$332,0)","v":0},{"$f":"IF(M1103>0,$E1098*((('1 Données d''entrée'!$C$332+1)^'1 Données d''entrée'!$C$333)-(1+'1 Données d''entrée'!$C$332)^('6 Financement'!L$54-1-'1 Données d''entrée'!$C$334-$B1114))/((1+'1 Données d''entrée'!$C$332)^'1 Données d''entrée'!$C$333-1)*'1 Données d''entrée'!$C$332,0)","v":0},{"$f":"IF(N1103>0,$E1098*((('1 Données d''entrée'!$C$332+1)^'1 Données d''entrée'!$C$333)-(1+'1 Données d''entrée'!$C$332)^('6 Financement'!M$54-1-'1 Données d''entrée'!$C$334-$B1114))/((1+'1 Données d''entrée'!$C$332)^'1 Données d''entrée'!$C$333-1)*'1 Données d''entrée'!$C$332,0)","v":0},{"$f":"IF(O1103>0,$E1098*((('1 Données d''entrée'!$C$332+1)^'1 Données d''entrée'!$C$333)-(1+'1 Données d''entrée'!$C$332)^('6 Financement'!N$54-1-'1 Données d''entrée'!$C$334-$B1114))/((1+'1 Données d''entrée'!$C$332)^'1 Données d''entrée'!$C$333-1)*'1 Données d''entrée'!$C$332,0)","v":0},{"$f":"IF(P1103>0,$E1098*((('1 Données d''entrée'!$C$332+1)^'1 Données d''entrée'!$C$333)-(1+'1 Données d''entrée'!$C$332)^('6 Financement'!O$54-1-'1 Données d''entrée'!$C$334-$B1114))/((1+'1 Données d''entrée'!$C$332)^'1 Données d''entrée'!$C$333-1)*'1 Données d''entrée'!$C$332,0)","v":0},{"$f":"IF(Q1103>0,$E1098*((('1 Données d''entrée'!$C$332+1)^'1 Données d''entrée'!$C$333)-(1+'1 Données d''entrée'!$C$332)^('6 Financement'!P$54-1-'1 Données d''entrée'!$C$334-$B1114))/((1+'1 Données d''entrée'!$C$332)^'1 Données d''entrée'!$C$333-1)*'1 Données d''entrée'!$C$332,0)","v":0},{"$f":"IF(R1103>0,$E1098*((('1 Données d''entrée'!$C$332+1)^'1 Données d''entrée'!$C$333)-(1+'1 Données d''entrée'!$C$332)^('6 Financement'!Q$54-1-'1 Données d''entrée'!$C$334-$B1114))/((1+'1 Données d''entrée'!$C$332)^'1 Données d''entrée'!$C$333-1)*'1 Données d''entrée'!$C$332,0)","v":0},{"$f":"IF(S1103>0,$E1098*((('1 Données d''entrée'!$C$332+1)^'1 Données d''entrée'!$C$333)-(1+'1 Données d''entrée'!$C$332)^('6 Financement'!R$54-1-'1 Données d''entrée'!$C$334-$B1114))/((1+'1 Données d''entrée'!$C$332)^'1 Données d''entrée'!$C$333-1)*'1 Données d''entrée'!$C$332,0)","v":0},{"$f":"IF(T1103>0,$E1098*((('1 Données d''entrée'!$C$332+1)^'1 Données d''entrée'!$C$333)-(1+'1 Données d''entrée'!$C$332)^('6 Financement'!S$54-1-'1 Données d''entrée'!$C$334-$B1114))/((1+'1 Données d''entrée'!$C$332)^'1 Données d''entrée'!$C$333-1)*'1 Données d''entrée'!$C$332,0)","v":0},{"$f":"IF(U1103>0,$E1098*((('1 Données d''entrée'!$C$332+1)^'1 Données d''entrée'!$C$333)-(1+'1 Données d''entrée'!$C$332)^('6 Financement'!T$54-1-'1 Données d''entrée'!$C$334-$B1114))/((1+'1 Données d''entrée'!$C$332)^'1 Données d''entrée'!$C$333-1)*'1 Données d''entrée'!$C$332,0)","v":0},{"$f":"IF(V1103>0,$E1098*((('1 Données d''entrée'!$C$332+1)^'1 Données d''entrée'!$C$333)-(1+'1 Données d''entrée'!$C$332)^('6 Financement'!U$54-1-'1 Données d''entrée'!$C$334-$B1114))/((1+'1 Données d''entrée'!$C$332)^'1 Données d''entrée'!$C$333-1)*'1 Données d''entrée'!$C$332,0)","v":0}]
["Paiement d'intêrets",4,0,{"$f":"IF(D1104>0,$F1098*((('1 Données d''entrée'!$C$332+1)^'1 Données d''entrée'!$C$333)-(1+'1 Données d''entrée'!$C$332)^('6 Financement'!C$54-1-'1 Données d''entrée'!$C$334-$B1115))/((1+'1 Données d''entrée'!$C$332)^'1 Données d''entrée'!$C$333-1)*'1 Données d''entrée'!$C$332,0)","v":0},{"$f":"IF(E1104>0,$F1098*((('1 Données d''entrée'!$C$332+1)^'1 Données d''entrée'!$C$333)-(1+'1 Données d''entrée'!$C$332)^('6 Financement'!D$54-1-'1 Données d''entrée'!$C$334-$B1115))/((1+'1 Données d''entrée'!$C$332)^'1 Données d''entrée'!$C$333-1)*'1 Données d''entrée'!$C$332,0)","v":0},{"$f":"IF(F1104>0,$F1098*((('1 Données d''entrée'!$C$332+1)^'1 Données d''entrée'!$C$333)-(1+'1 Données d''entrée'!$C$332)^('6 Financement'!E$54-1-'1 Données d''entrée'!$C$334-$B1115))/((1+'1 Données d''entrée'!$C$332)^'1 Données d''entrée'!$C$333-1)*'1 Données d''entrée'!$C$332,0)","v":0},{"$f":"IF(G1104>0,$F1098*((('1 Données d''entrée'!$C$332+1)^'1 Données d''entrée'!$C$333)-(1+'1 Données d''entrée'!$C$332)^('6 Financement'!F$54-1-'1 Données d''entrée'!$C$334-$B1115))/((1+'1 Données d''entrée'!$C$332)^'1 Données d''entrée'!$C$333-1)*'1 Données d''entrée'!$C$332,0)","v":0},{"$f":"IF(H1104>0,$F1098*((('1 Données d''entrée'!$C$332+1)^'1 Données d''entrée'!$C$333)-(1+'1 Données d''entrée'!$C$332)^('6 Financement'!G$54-1-'1 Données d''entrée'!$C$334-$B1115))/((1+'1 Données d''entrée'!$C$332)^'1 Données d''entrée'!$C$333-1)*'1 Données d''entrée'!$C$332,0)","v":0},{"$f":"IF(I1104>0,$F1098*((('1 Données d''entrée'!$C$332+1)^'1 Données d''entrée'!$C$333)-(1+'1 Données d''entrée'!$C$332)^('6 Financement'!H$54-1-'1 Données d''entrée'!$C$334-$B1115))/((1+'1 Données d''entrée'!$C$332)^'1 Données d''entrée'!$C$333-1)*'1 Données d''entrée'!$C$332,0)","v":0},{"$f":"IF(J1104>0,$F1098*((('1 Données d''entrée'!$C$332+1)^'1 Données d''entrée'!$C$333)-(1+'1 Données d''entrée'!$C$332)^('6 Financement'!I$54-1-'1 Données d''entrée'!$C$334-$B1115))/((1+'1 Données d''entrée'!$C$332)^'1 Données d''entrée'!$C$333-1)*'1 Données d''entrée'!$C$332,0)","v":0},{"$f":"IF(K1104>0,$F1098*((('1 Données d''entrée'!$C$332+1)^'1 Données d''entrée'!$C$333)-(1+'1 Données d''entrée'!$C$332)^('6 Financement'!J$54-1-'1 Données d''entrée'!$C$334-$B1115))/((1+'1 Données d''entrée'!$C$332)^'1 Données d''entrée'!$C$333-1)*'1 Données d''entrée'!$C$332,0)","v":0},{"$f":"IF(L1104>0,$F1098*((('1 Données d''entrée'!$C$332+1)^'1 Données d''entrée'!$C$333)-(1+'1 Données d''entrée'!$C$332)^('6 Financement'!K$54-1-'1 Données d''entrée'!$C$334-$B1115))/((1+'1 Données d''entrée'!$C$332)^'1 Données d''entrée'!$C$333-1)*'1 Données d''entrée'!$C$332,0)","v":0},{"$f":"IF(M1104>0,$F1098*((('1 Données d''entrée'!$C$332+1)^'1 Données d''entrée'!$C$333)-(1+'1 Données d''entrée'!$C$332)^('6 Financement'!L$54-1-'1 Données d''entrée'!$C$334-$B1115))/((1+'1 Données d''entrée'!$C$332)^'1 Données d''entrée'!$C$333-1)*'1 Données d''entrée'!$C$332,0)","v":0},{"$f":"IF(N1104>0,$F1098*((('1 Données d''entrée'!$C$332+1)^'1 Données d''entrée'!$C$333)-(1+'1 Données d''entrée'!$C$332)^('6 Financement'!M$54-1-'1 Données d''entrée'!$C$334-$B1115))/((1+'1 Données d''entrée'!$C$332)^'1 Données d''entrée'!$C$333-1)*'1 Données d''entrée'!$C$332,0)","v":0},{"$f":"IF(O1104>0,$F1098*((('1 Données d''entrée'!$C$332+1)^'1 Données d''entrée'!$C$333)-(1+'1 Données d''entrée'!$C$332)^('6 Financement'!N$54-1-'1 Données d''entrée'!$C$334-$B1115))/((1+'1 Données d''entrée'!$C$332)^'1 Données d''entrée'!$C$333-1)*'1 Données d''entrée'!$C$332,0)","v":0},{"$f":"IF(P1104>0,$F1098*((('1 Données d''entrée'!$C$332+1)^'1 Données d''entrée'!$C$333)-(1+'1 Données d''entrée'!$C$332)^('6 Financement'!O$54-1-'1 Données d''entrée'!$C$334-$B1115))/((1+'1 Données d''entrée'!$C$332)^'1 Données d''entrée'!$C$333-1)*'1 Données d''entrée'!$C$332,0)","v":0},{"$f":"IF(Q1104>0,$F1098*((('1 Données d''entrée'!$C$332+1)^'1 Données d''entrée'!$C$333)-(1+'1 Données d''entrée'!$C$332)^('6 Financement'!P$54-1-'1 Données d''entrée'!$C$334-$B1115))/((1+'1 Données d''entrée'!$C$332)^'1 Données d''entrée'!$C$333-1)*'1 Données d''entrée'!$C$332,0)","v":0},{"$f":"IF(R1104>0,$F1098*((('1 Données d''entrée'!$C$332+1)^'1 Données d''entrée'!$C$333)-(1+'1 Données d''entrée'!$C$332)^('6 Financement'!Q$54-1-'1 Données d''entrée'!$C$334-$B1115))/((1+'1 Données d''entrée'!$C$332)^'1 Données d''entrée'!$C$333-1)*'1 Données d''entrée'!$C$332,0)","v":0},{"$f":"IF(S1104>0,$F1098*((('1 Données d''entrée'!$C$332+1)^'1 Données d''entrée'!$C$333)-(1+'1 Données d''entrée'!$C$332)^('6 Financement'!R$54-1-'1 Données d''entrée'!$C$334-$B1115))/((1+'1 Données d''entrée'!$C$332)^'1 Données d''entrée'!$C$333-1)*'1 Données d''entrée'!$C$332,0)","v":0},{"$f":"IF(T1104>0,$F1098*((('1 Données d''entrée'!$C$332+1)^'1 Données d''entrée'!$C$333)-(1+'1 Données d''entrée'!$C$332)^('6 Financement'!S$54-1-'1 Données d''entrée'!$C$334-$B1115))/((1+'1 Données d''entrée'!$C$332)^'1 Données d''entrée'!$C$333-1)*'1 Données d''entrée'!$C$332,0)","v":0},{"$f":"IF(U1104>0,$F1098*((('1 Données d''entrée'!$C$332+1)^'1 Données d''entrée'!$C$333)-(1+'1 Données d''entrée'!$C$332)^('6 Financement'!T$54-1-'1 Données d''entrée'!$C$334-$B1115))/((1+'1 Données d''entrée'!$C$332)^'1 Données d''entrée'!$C$333-1)*'1 Données d''entrée'!$C$332,0)","v":0},{"$f":"IF(V1104>0,$F1098*((('1 Données d''entrée'!$C$332+1)^'1 Données d''entrée'!$C$333)-(1+'1 Données d''entrée'!$C$332)^('6 Financement'!U$54-1-'1 Données d''entrée'!$C$334-$B1115))/((1+'1 Données d''entrée'!$C$332)^'1 Données d''entrée'!$C$333-1)*'1 Données d''entrée'!$C$332,0)","v":0}]
["Paiement d'intêrets",5,0,{"$f":"IF(D1105>0,$G1098*((('1 Données d''entrée'!$C$332+1)^'1 Données d''entrée'!$C$333)-(1+'1 Données d''entrée'!$C$332)^('6 Financement'!C$54-1-'1 Données d''entrée'!$C$334-$B1116))/((1+'1 Données d''entrée'!$C$332)^'1 Données d''entrée'!$C$333-1)*'1 Données d''entrée'!$C$332,0)","v":0},{"$f":"IF(E1105>0,$G1098*((('1 Données d''entrée'!$C$332+1)^'1 Données d''entrée'!$C$333)-(1+'1 Données d''entrée'!$C$332)^('6 Financement'!D$54-1-'1 Données d''entrée'!$C$334-$B1116))/((1+'1 Données d''entrée'!$C$332)^'1 Données d''entrée'!$C$333-1)*'1 Données d''entrée'!$C$332,0)","v":0},{"$f":"IF(F1105>0,$G1098*((('1 Données d''entrée'!$C$332+1)^'1 Données d''entrée'!$C$333)-(1+'1 Données d''entrée'!$C$332)^('6 Financement'!E$54-1-'1 Données d''entrée'!$C$334-$B1116))/((1+'1 Données d''entrée'!$C$332)^'1 Données d''entrée'!$C$333-1)*'1 Données d''entrée'!$C$332,0)","v":0},{"$f":"IF(G1105>0,$G1098*((('1 Données d''entrée'!$C$332+1)^'1 Données d''entrée'!$C$333)-(1+'1 Données d''entrée'!$C$332)^('6 Financement'!F$54-1-'1 Données d''entrée'!$C$334-$B1116))/((1+'1 Données d''entrée'!$C$332)^'1 Données d''entrée'!$C$333-1)*'1 Données d''entrée'!$C$332,0)","v":0},{"$f":"IF(H1105>0,$G1098*((('1 Données d''entrée'!$C$332+1)^'1 Données d''entrée'!$C$333)-(1+'1 Données d''entrée'!$C$332)^('6 Financement'!G$54-1-'1 Données d''entrée'!$C$334-$B1116))/((1+'1 Données d''entrée'!$C$332)^'1 Données d''entrée'!$C$333-1)*'1 Données d''entrée'!$C$332,0)","v":0},{"$f":"IF(I1105>0,$G1098*((('1 Données d''entrée'!$C$332+1)^'1 Données d''entrée'!$C$333)-(1+'1 Données d''entrée'!$C$332)^('6 Financement'!H$54-1-'1 Données d''entrée'!$C$334-$B1116))/((1+'1 Données d''entrée'!$C$332)^'1 Données d''entrée'!$C$333-1)*'1 Données d''entrée'!$C$332,0)","v":0},{"$f":"IF(J1105>0,$G1098*((('1 Données d''entrée'!$C$332+1)^'1 Données d''entrée'!$C$333)-(1+'1 Données d''entrée'!$C$332)^('6 Financement'!I$54-1-'1 Données d''entrée'!$C$334-$B1116))/((1+'1 Données d''entrée'!$C$332)^'1 Données d''entrée'!$C$333-1)*'1 Données d''entrée'!$C$332,0)","v":0},{"$f":"IF(K1105>0,$G1098*((('1 Données d''entrée'!$C$332+1)^'1 Données d''entrée'!$C$333)-(1+'1 Données d''entrée'!$C$332)^('6 Financement'!J$54-1-'1 Données d''entrée'!$C$334-$B1116))/((1+'1 Données d''entrée'!$C$332)^'1 Données d''entrée'!$C$333-1)*'1 Données d''entrée'!$C$332,0)","v":0},{"$f":"IF(L1105>0,$G1098*((('1 Données d''entrée'!$C$332+1)^'1 Données d''entrée'!$C$333)-(1+'1 Données d''entrée'!$C$332)^('6 Financement'!K$54-1-'1 Données d''entrée'!$C$334-$B1116))/((1+'1 Données d''entrée'!$C$332)^'1 Données d''entrée'!$C$333-1)*'1 Données d''entrée'!$C$332,0)","v":0},{"$f":"IF(M1105>0,$G1098*((('1 Données d''entrée'!$C$332+1)^'1 Données d''entrée'!$C$333)-(1+'1 Données d''entrée'!$C$332)^('6 Financement'!L$54-1-'1 Données d''entrée'!$C$334-$B1116))/((1+'1 Données d''entrée'!$C$332)^'1 Données d''entrée'!$C$333-1)*'1 Données d''entrée'!$C$332,0)","v":0},{"$f":"IF(N1105>0,$G1098*((('1 Données d''entrée'!$C$332+1)^'1 Données d''entrée'!$C$333)-(1+'1 Données d''entrée'!$C$332)^('6 Financement'!M$54-1-'1 Données d''entrée'!$C$334-$B1116))/((1+'1 Données d''entrée'!$C$332)^'1 Données d''entrée'!$C$333-1)*'1 Données d''entrée'!$C$332,0)","v":0},{"$f":"IF(O1105>0,$G1098*((('1 Données d''entrée'!$C$332+1)^'1 Données d''entrée'!$C$333)-(1+'1 Données d''entrée'!$C$332)^('6 Financement'!N$54-1-'1 Données d''entrée'!$C$334-$B1116))/((1+'1 Données d''entrée'!$C$332)^'1 Données d''entrée'!$C$333-1)*'1 Données d''entrée'!$C$332,0)","v":0},{"$f":"IF(P1105>0,$G1098*((('1 Données d''entrée'!$C$332+1)^'1 Données d''entrée'!$C$333)-(1+'1 Données d''entrée'!$C$332)^('6 Financement'!O$54-1-'1 Données d''entrée'!$C$334-$B1116))/((1+'1 Données d''entrée'!$C$332)^'1 Données d''entrée'!$C$333-1)*'1 Données d''entrée'!$C$332,0)","v":0},{"$f":"IF(Q1105>0,$G1098*((('1 Données d''entrée'!$C$332+1)^'1 Données d''entrée'!$C$333)-(1+'1 Données d''entrée'!$C$332)^('6 Financement'!P$54-1-'1 Données d''entrée'!$C$334-$B1116))/((1+'1 Données d''entrée'!$C$332)^'1 Données d''entrée'!$C$333-1)*'1 Données d''entrée'!$C$332,0)","v":0},{"$f":"IF(R1105>0,$G1098*((('1 Données d''entrée'!$C$332+1)^'1 Données d''entrée'!$C$333)-(1+'1 Données d''entrée'!$C$332)^('6 Financement'!Q$54-1-'1 Données d''entrée'!$C$334-$B1116))/((1+'1 Données d''entrée'!$C$332)^'1 Données d''entrée'!$C$333-1)*'1 Données d''entrée'!$C$332,0)","v":0},{"$f":"IF(S1105>0,$G1098*((('1 Données d''entrée'!$C$332+1)^'1 Données d''entrée'!$C$333)-(1+'1 Données d''entrée'!$C$332)^('6 Financement'!R$54-1-'1 Données d''entrée'!$C$334-$B1116))/((1+'1 Données d''entrée'!$C$332)^'1 Données d''entrée'!$C$333-1)*'1 Données d''entrée'!$C$332,0)","v":0},{"$f":"IF(T1105>0,$G1098*((('1 Données d''entrée'!$C$332+1)^'1 Données d''entrée'!$C$333)-(1+'1 Données d''entrée'!$C$332)^('6 Financement'!S$54-1-'1 Données d''entrée'!$C$334-$B1116))/((1+'1 Données d''entrée'!$C$332)^'1 Données d''entrée'!$C$333-1)*'1 Données d''entrée'!$C$332,0)","v":0},{"$f":"IF(U1105>0,$G1098*((('1 Données d''entrée'!$C$332+1)^'1 Données d''entrée'!$C$333)-(1+'1 Données d''entrée'!$C$332)^('6 Financement'!T$54-1-'1 Données d''entrée'!$C$334-$B1116))/((1+'1 Données d''entrée'!$C$332)^'1 Données d''entrée'!$C$333-1)*'1 Données d''entrée'!$C$332,0)","v":0},{"$f":"IF(V1105>0,$G1098*((('1 Données d''entrée'!$C$332+1)^'1 Données d''entrée'!$C$333)-(1+'1 Données d''entrée'!$C$332)^('6 Financement'!U$54-1-'1 Données d''entrée'!$C$334-$B1116))/((1+'1 Données d''entrée'!$C$332)^'1 Données d''entrée'!$C$333-1)*'1 Données d''entrée'!$C$332,0)","v":0}]
["Paiement d'intêrets",6,0,{"$f":"IF(D1106>0,$H1098*((('1 Données d''entrée'!$C$332+1)^'1 Données d''entrée'!$C$333)-(1+'1 Données d''entrée'!$C$332)^('6 Financement'!C$54-1-'1 Données d''entrée'!$C$334-$B1117))/((1+'1 Données d''entrée'!$C$332)^'1 Données d''entrée'!$C$333-1)*'1 Données d''entrée'!$C$332,0)","v":0},{"$f":"IF(E1106>0,$H1098*((('1 Données d''entrée'!$C$332+1)^'1 Données d''entrée'!$C$333)-(1+'1 Données d''entrée'!$C$332)^('6 Financement'!D$54-1-'1 Données d''entrée'!$C$334-$B1117))/((1+'1 Données d''entrée'!$C$332)^'1 Données d''entrée'!$C$333-1)*'1 Données d''entrée'!$C$332,0)","v":0},{"$f":"IF(F1106>0,$H1098*((('1 Données d''entrée'!$C$332+1)^'1 Données d''entrée'!$C$333)-(1+'1 Données d''entrée'!$C$332)^('6 Financement'!E$54-1-'1 Données d''entrée'!$C$334-$B1117))/((1+'1 Données d''entrée'!$C$332)^'1 Données d''entrée'!$C$333-1)*'1 Données d''entrée'!$C$332,0)","v":0},{"$f":"IF(G1106>0,$H1098*((('1 Données d''entrée'!$C$332+1)^'1 Données d''entrée'!$C$333)-(1+'1 Données d''entrée'!$C$332)^('6 Financement'!F$54-1-'1 Données d''entrée'!$C$334-$B1117))/((1+'1 Données d''entrée'!$C$332)^'1 Données d''entrée'!$C$333-1)*'1 Données d''entrée'!$C$332,0)","v":0},{"$f":"IF(H1106>0,$H1098*((('1 Données d''entrée'!$C$332+1)^'1 Données d''entrée'!$C$333)-(1+'1 Données d''entrée'!$C$332)^('6 Financement'!G$54-1-'1 Données d''entrée'!$C$334-$B1117))/((1+'1 Données d''entrée'!$C$332)^'1 Données d''entrée'!$C$333-1)*'1 Données d''entrée'!$C$332,0)","v":0},{"$f":"IF(I1106>0,$H1098*((('1 Données d''entrée'!$C$332+1)^'1 Données d''entrée'!$C$333)-(1+'1 Données d''entrée'!$C$332)^('6 Financement'!H$54-1-'1 Données d''entrée'!$C$334-$B1117))/((1+'1 Données d''entrée'!$C$332)^'1 Données d''entrée'!$C$333-1)*'1 Données d''entrée'!$C$332,0)","v":0},{"$f":"IF(J1106>0,$H1098*((('1 Données d''entrée'!$C$332+1)^'1 Données d''entrée'!$C$333)-(1+'1 Données d''entrée'!$C$332)^('6 Financement'!I$54-1-'1 Données d''entrée'!$C$334-$B1117))/((1+'1 Données d''entrée'!$C$332)^'1 Données d''entrée'!$C$333-1)*'1 Données d''entrée'!$C$332,0)","v":0},{"$f":"IF(K1106>0,$H1098*((('1 Données d''entrée'!$C$332+1)^'1 Données d''entrée'!$C$333)-(1+'1 Données d''entrée'!$C$332)^('6 Financement'!J$54-1-'1 Données d''entrée'!$C$334-$B1117))/((1+'1 Données d''entrée'!$C$332)^'1 Données d''entrée'!$C$333-1)*'1 Données d''entrée'!$C$332,0)","v":0},{"$f":"IF(L1106>0,$H1098*((('1 Données d''entrée'!$C$332+1)^'1 Données d''entrée'!$C$333)-(1+'1 Données d''entrée'!$C$332)^('6 Financement'!K$54-1-'1 Données d''entrée'!$C$334-$B1117))/((1+'1 Données d''entrée'!$C$332)^'1 Données d''entrée'!$C$333-1)*'1 Données d''entrée'!$C$332,0)","v":0},{"$f":"IF(M1106>0,$H1098*((('1 Données d''entrée'!$C$332+1)^'1 Données d''entrée'!$C$333)-(1+'1 Données d''entrée'!$C$332)^('6 Financement'!L$54-1-'1 Données d''entrée'!$C$334-$B1117))/((1+'1 Données d''entrée'!$C$332)^'1 Données d''entrée'!$C$333-1)*'1 Données d''entrée'!$C$332,0)","v":0},{"$f":"IF(N1106>0,$H1098*((('1 Données d''entrée'!$C$332+1)^'1 Données d''entrée'!$C$333)-(1+'1 Données d''entrée'!$C$332)^('6 Financement'!M$54-1-'1 Données d''entrée'!$C$334-$B1117))/((1+'1 Données d''entrée'!$C$332)^'1 Données d''entrée'!$C$333-1)*'1 Données d''entrée'!$C$332,0)","v":0},{"$f":"IF(O1106>0,$H1098*((('1 Données d''entrée'!$C$332+1)^'1 Données d''entrée'!$C$333)-(1+'1 Données d''entrée'!$C$332)^('6 Financement'!N$54-1-'1 Données d''entrée'!$C$334-$B1117))/((1+'1 Données d''entrée'!$C$332)^'1 Données d''entrée'!$C$333-1)*'1 Données d''entrée'!$C$332,0)","v":0},{"$f":"IF(P1106>0,$H1098*((('1 Données d''entrée'!$C$332+1)^'1 Données d''entrée'!$C$333)-(1+'1 Données d''entrée'!$C$332)^('6 Financement'!O$54-1-'1 Données d''entrée'!$C$334-$B1117))/((1+'1 Données d''entrée'!$C$332)^'1 Données d''entrée'!$C$333-1)*'1 Données d''entrée'!$C$332,0)","v":0},{"$f":"IF(Q1106>0,$H1098*((('1 Données d''entrée'!$C$332+1)^'1 Données d''entrée'!$C$333)-(1+'1 Données d''entrée'!$C$332)^('6 Financement'!P$54-1-'1 Données d''entrée'!$C$334-$B1117))/((1+'1 Données d''entrée'!$C$332)^'1 Données d''entrée'!$C$333-1)*'1 Données d''entrée'!$C$332,0)","v":0},{"$f":"IF(R1106>0,$H1098*((('1 Données d''entrée'!$C$332+1)^'1 Données d''entrée'!$C$333)-(1+'1 Données d''entrée'!$C$332)^('6 Financement'!Q$54-1-'1 Données d''entrée'!$C$334-$B1117))/((1+'1 Données d''entrée'!$C$332)^'1 Données d''entrée'!$C$333-1)*'1 Données d''entrée'!$C$332,0)","v":0},{"$f":"IF(S1106>0,$H1098*((('1 Données d''entrée'!$C$332+1)^'1 Données d''entrée'!$C$333)-(1+'1 Données d''entrée'!$C$332)^('6 Financement'!R$54-1-'1 Données d''entrée'!$C$334-$B1117))/((1+'1 Données d''entrée'!$C$332)^'1 Données d''entrée'!$C$333-1)*'1 Données d''entrée'!$C$332,0)","v":0},{"$f":"IF(T1106>0,$H1098*((('1 Données d''entrée'!$C$332+1)^'1 Données d''entrée'!$C$333)-(1+'1 Données d''entrée'!$C$332)^('6 Financement'!S$54-1-'1 Données d''entrée'!$C$334-$B1117))/((1+'1 Données d''entrée'!$C$332)^'1 Données d''entrée'!$C$333-1)*'1 Données d''entrée'!$C$332,0)","v":0},{"$f":"IF(U1106>0,$H1098*((('1 Données d''entrée'!$C$332+1)^'1 Données d''entrée'!$C$333)-(1+'1 Données d''entrée'!$C$332)^('6 Financement'!T$54-1-'1 Données d''entrée'!$C$334-$B1117))/((1+'1 Données d''entrée'!$C$332)^'1 Données d''entrée'!$C$333-1)*'1 Données d''entrée'!$C$332,0)","v":0},{"$f":"IF(V1106>0,$H1098*((('1 Données d''entrée'!$C$332+1)^'1 Données d''entrée'!$C$333)-(1+'1 Données d''entrée'!$C$332)^('6 Financement'!U$54-1-'1 Données d''entrée'!$C$334-$B1117))/((1+'1 Données d''entrée'!$C$332)^'1 Données d''entrée'!$C$333-1)*'1 Données d''entrée'!$C$332,0)","v":0}]
["Paiement d'intêrets",7,0,{"$f":"IF(D1107>0,$I1098*((('1 Données d''entrée'!$C$332+1)^'1 Données d''entrée'!$C$333)-(1+'1 Données d''entrée'!$C$332)^('6 Financement'!C$54-1-'1 Données d''entrée'!$C$334-$B1118))/((1+'1 Données d''entrée'!$C$332)^'1 Données d''entrée'!$C$333-1)*'1 Données d''entrée'!$C$332,0)","v":0},{"$f":"IF(E1107>0,$I1098*((('1 Données d''entrée'!$C$332+1)^'1 Données d''entrée'!$C$333)-(1+'1 Données d''entrée'!$C$332)^('6 Financement'!D$54-1-'1 Données d''entrée'!$C$334-$B1118))/((1+'1 Données d''entrée'!$C$332)^'1 Données d''entrée'!$C$333-1)*'1 Données d''entrée'!$C$332,0)","v":0},{"$f":"IF(F1107>0,$I1098*((('1 Données d''entrée'!$C$332+1)^'1 Données d''entrée'!$C$333)-(1+'1 Données d''entrée'!$C$332)^('6 Financement'!E$54-1-'1 Données d''entrée'!$C$334-$B1118))/((1+'1 Données d''entrée'!$C$332)^'1 Données d''entrée'!$C$333-1)*'1 Données d''entrée'!$C$332,0)","v":0},{"$f":"IF(G1107>0,$I1098*((('1 Données d''entrée'!$C$332+1)^'1 Données d''entrée'!$C$333)-(1+'1 Données d''entrée'!$C$332)^('6 Financement'!F$54-1-'1 Données d''entrée'!$C$334-$B1118))/((1+'1 Données d''entrée'!$C$332)^'1 Données d''entrée'!$C$333-1)*'1 Données d''entrée'!$C$332,0)","v":0},{"$f":"IF(H1107>0,$I1098*((('1 Données d''entrée'!$C$332+1)^'1 Données d''entrée'!$C$333)-(1+'1 Données d''entrée'!$C$332)^('6 Financement'!G$54-1-'1 Données d''entrée'!$C$334-$B1118))/((1+'1 Données d''entrée'!$C$332)^'1 Données d''entrée'!$C$333-1)*'1 Données d''entrée'!$C$332,0)","v":0},{"$f":"IF(I1107>0,$I1098*((('1 Données d''entrée'!$C$332+1)^'1 Données d''entrée'!$C$333)-(1+'1 Données d''entrée'!$C$332)^('6 Financement'!H$54-1-'1 Données d''entrée'!$C$334-$B1118))/((1+'1 Données d''entrée'!$C$332)^'1 Données d''entrée'!$C$333-1)*'1 Données d''entrée'!$C$332,0)","v":0},{"$f":"IF(J1107>0,$I1098*((('1 Données d''entrée'!$C$332+1)^'1 Données d''entrée'!$C$333)-(1+'1 Données d''entrée'!$C$332)^('6 Financement'!I$54-1-'1 Données d''entrée'!$C$334-$B1118))/((1+'1 Données d''entrée'!$C$332)^'1 Données d''entrée'!$C$333-1)*'1 Données d''entrée'!$C$332,0)","v":0},{"$f":"IF(K1107>0,$I1098*((('1 Données d''entrée'!$C$332+1)^'1 Données d''entrée'!$C$333)-(1+'1 Données d''entrée'!$C$332)^('6 Financement'!J$54-1-'1 Données d''entrée'!$C$334-$B1118))/((1+'1 Données d''entrée'!$C$332)^'1 Données d''entrée'!$C$333-1)*'1 Données d''entrée'!$C$332,0)","v":0},{"$f":"IF(L1107>0,$I1098*((('1 Données d''entrée'!$C$332+1)^'1 Données d''entrée'!$C$333)-(1+'1 Données d''entrée'!$C$332)^('6 Financement'!K$54-1-'1 Données d''entrée'!$C$334-$B1118))/((1+'1 Données d''entrée'!$C$332)^'1 Données d''entrée'!$C$333-1)*'1 Données d''entrée'!$C$332,0)","v":0},{"$f":"IF(M1107>0,$I1098*((('1 Données d''entrée'!$C$332+1)^'1 Données d''entrée'!$C$333)-(1+'1 Données d''entrée'!$C$332)^('6 Financement'!L$54-1-'1 Données d''entrée'!$C$334-$B1118))/((1+'1 Données d''entrée'!$C$332)^'1 Données d''entrée'!$C$333-1)*'1 Données d''entrée'!$C$332,0)","v":0},{"$f":"IF(N1107>0,$I1098*((('1 Données d''entrée'!$C$332+1)^'1 Données d''entrée'!$C$333)-(1+'1 Données d''entrée'!$C$332)^('6 Financement'!M$54-1-'1 Données d''entrée'!$C$334-$B1118))/((1+'1 Données d''entrée'!$C$332)^'1 Données d''entrée'!$C$333-1)*'1 Données d''entrée'!$C$332,0)","v":0},{"$f":"IF(O1107>0,$I1098*((('1 Données d''entrée'!$C$332+1)^'1 Données d''entrée'!$C$333)-(1+'1 Données d''entrée'!$C$332)^('6 Financement'!N$54-1-'1 Données d''entrée'!$C$334-$B1118))/((1+'1 Données d''entrée'!$C$332)^'1 Données d''entrée'!$C$333-1)*'1 Données d''entrée'!$C$332,0)","v":0},{"$f":"IF(P1107>0,$I1098*((('1 Données d''entrée'!$C$332+1)^'1 Données d''entrée'!$C$333)-(1+'1 Données d''entrée'!$C$332)^('6 Financement'!O$54-1-'1 Données d''entrée'!$C$334-$B1118))/((1+'1 Données d''entrée'!$C$332)^'1 Données d''entrée'!$C$333-1)*'1 Données d''entrée'!$C$332,0)","v":0},{"$f":"IF(Q1107>0,$I1098*((('1 Données d''entrée'!$C$332+1)^'1 Données d''entrée'!$C$333)-(1+'1 Données d''entrée'!$C$332)^('6 Financement'!P$54-1-'1 Données d''entrée'!$C$334-$B1118))/((1+'1 Données d''entrée'!$C$332)^'1 Données d''entrée'!$C$333-1)*'1 Données d''entrée'!$C$332,0)","v":0},{"$f":"IF(R1107>0,$I1098*((('1 Données d''entrée'!$C$332+1)^'1 Données d''entrée'!$C$333)-(1+'1 Données d''entrée'!$C$332)^('6 Financement'!Q$54-1-'1 Données d''entrée'!$C$334-$B1118))/((1+'1 Données d''entrée'!$C$332)^'1 Données d''entrée'!$C$333-1)*'1 Données d''entrée'!$C$332,0)","v":0},{"$f":"IF(S1107>0,$I1098*((('1 Données d''entrée'!$C$332+1)^'1 Données d''entrée'!$C$333)-(1+'1 Données d''entrée'!$C$332)^('6 Financement'!R$54-1-'1 Données d''entrée'!$C$334-$B1118))/((1+'1 Données d''entrée'!$C$332)^'1 Données d''entrée'!$C$333-1)*'1 Données d''entrée'!$C$332,0)","v":0},{"$f":"IF(T1107>0,$I1098*((('1 Données d''entrée'!$C$332+1)^'1 Données d''entrée'!$C$333)-(1+'1 Données d''entrée'!$C$332)^('6 Financement'!S$54-1-'1 Données d''entrée'!$C$334-$B1118))/((1+'1 Données d''entrée'!$C$332)^'1 Données d''entrée'!$C$333-1)*'1 Données d''entrée'!$C$332,0)","v":0},{"$f":"IF(U1107>0,$I1098*((('1 Données d''entrée'!$C$332+1)^'1 Données d''entrée'!$C$333)-(1+'1 Données d''entrée'!$C$332)^('6 Financement'!T$54-1-'1 Données d''entrée'!$C$334-$B1118))/((1+'1 Données d''entrée'!$C$332)^'1 Données d''entrée'!$C$333-1)*'1 Données d''entrée'!$C$332,0)","v":0},{"$f":"IF(V1107>0,$I1098*((('1 Données d''entrée'!$C$332+1)^'1 Données d''entrée'!$C$333)-(1+'1 Données d''entrée'!$C$332)^('6 Financement'!U$54-1-'1 Données d''entrée'!$C$334-$B1118))/((1+'1 Données d''entrée'!$C$332)^'1 Données d''entrée'!$C$333-1)*'1 Données d''entrée'!$C$332,0)","v":0}]
["Paiement d'intêrets",8,0,{"$f":"IF(D1108>0,$J1098*((('1 Données d''entrée'!$C$332+1)^'1 Données d''entrée'!$C$333)-(1+'1 Données d''entrée'!$C$332)^('6 Financement'!C$54-1-'1 Données d''entrée'!$C$334-$B1119))/((1+'1 Données d''entrée'!$C$332)^'1 Données d''entrée'!$C$333-1)*'1 Données d''entrée'!$C$332,0)","v":0},{"$f":"IF(E1108>0,$J1098*((('1 Données d''entrée'!$C$332+1)^'1 Données d''entrée'!$C$333)-(1+'1 Données d''entrée'!$C$332)^('6 Financement'!D$54-1-'1 Données d''entrée'!$C$334-$B1119))/((1+'1 Données d''entrée'!$C$332)^'1 Données d''entrée'!$C$333-1)*'1 Données d''entrée'!$C$332,0)","v":0},{"$f":"IF(F1108>0,$J1098*((('1 Données d''entrée'!$C$332+1)^'1 Données d''entrée'!$C$333)-(1+'1 Données d''entrée'!$C$332)^('6 Financement'!E$54-1-'1 Données d''entrée'!$C$334-$B1119))/((1+'1 Données d''entrée'!$C$332)^'1 Données d''entrée'!$C$333-1)*'1 Données d''entrée'!$C$332,0)","v":0},{"$f":"IF(G1108>0,$J1098*((('1 Données d''entrée'!$C$332+1)^'1 Données d''entrée'!$C$333)-(1+'1 Données d''entrée'!$C$332)^('6 Financement'!F$54-1-'1 Données d''entrée'!$C$334-$B1119))/((1+'1 Données d''entrée'!$C$332)^'1 Données d''entrée'!$C$333-1)*'1 Données d''entrée'!$C$332,0)","v":0},{"$f":"IF(H1108>0,$J1098*((('1 Données d''entrée'!$C$332+1)^'1 Données d''entrée'!$C$333)-(1+'1 Données d''entrée'!$C$332)^('6 Financement'!G$54-1-'1 Données d''entrée'!$C$334-$B1119))/((1+'1 Données d''entrée'!$C$332)^'1 Données d''entrée'!$C$333-1)*'1 Données d''entrée'!$C$332,0)","v":0},{"$f":"IF(I1108>0,$J1098*((('1 Données d''entrée'!$C$332+1)^'1 Données d''entrée'!$C$333)-(1+'1 Données d''entrée'!$C$332)^('6 Financement'!H$54-1-'1 Données d''entrée'!$C$334-$B1119))/((1+'1 Données d''entrée'!$C$332)^'1 Données d''entrée'!$C$333-1)*'1 Données d''entrée'!$C$332,0)","v":0},{"$f":"IF(J1108>0,$J1098*((('1 Données d''entrée'!$C$332+1)^'1 Données d''entrée'!$C$333)-(1+'1 Données d''entrée'!$C$332)^('6 Financement'!I$54-1-'1 Données d''entrée'!$C$334-$B1119))/((1+'1 Données d''entrée'!$C$332)^'1 Données d''entrée'!$C$333-1)*'1 Données d''entrée'!$C$332,0)","v":0},{"$f":"IF(K1108>0,$J1098*((('1 Données d''entrée'!$C$332+1)^'1 Données d''entrée'!$C$333)-(1+'1 Données d''entrée'!$C$332)^('6 Financement'!J$54-1-'1 Données d''entrée'!$C$334-$B1119))/((1+'1 Données d''entrée'!$C$332)^'1 Données d''entrée'!$C$333-1)*'1 Données d''entrée'!$C$332,0)","v":0},{"$f":"IF(L1108>0,$J1098*((('1 Données d''entrée'!$C$332+1)^'1 Données d''entrée'!$C$333)-(1+'1 Données d''entrée'!$C$332)^('6 Financement'!K$54-1-'1 Données d''entrée'!$C$334-$B1119))/((1+'1 Données d''entrée'!$C$332)^'1 Données d''entrée'!$C$333-1)*'1 Données d''entrée'!$C$332,0)","v":0},{"$f":"IF(M1108>0,$J1098*((('1 Données d''entrée'!$C$332+1)^'1 Données d''entrée'!$C$333)-(1+'1 Données d''entrée'!$C$332)^('6 Financement'!L$54-1-'1 Données d''entrée'!$C$334-$B1119))/((1+'1 Données d''entrée'!$C$332)^'1 Données d''entrée'!$C$333-1)*'1 Données d''entrée'!$C$332,0)","v":0},{"$f":"IF(N1108>0,$J1098*((('1 Données d''entrée'!$C$332+1)^'1 Données d''entrée'!$C$333)-(1+'1 Données d''entrée'!$C$332)^('6 Financement'!M$54-1-'1 Données d''entrée'!$C$334-$B1119))/((1+'1 Données d''entrée'!$C$332)^'1 Données d''entrée'!$C$333-1)*'1 Données d''entrée'!$C$332,0)","v":0},{"$f":"IF(O1108>0,$J1098*((('1 Données d''entrée'!$C$332+1)^'1 Données d''entrée'!$C$333)-(1+'1 Données d''entrée'!$C$332)^('6 Financement'!N$54-1-'1 Données d''entrée'!$C$334-$B1119))/((1+'1 Données d''entrée'!$C$332)^'1 Données d''entrée'!$C$333-1)*'1 Données d''entrée'!$C$332,0)","v":0},{"$f":"IF(P1108>0,$J1098*((('1 Données d''entrée'!$C$332+1)^'1 Données d''entrée'!$C$333)-(1+'1 Données d''entrée'!$C$332)^('6 Financement'!O$54-1-'1 Données d''entrée'!$C$334-$B1119))/((1+'1 Données d''entrée'!$C$332)^'1 Données d''entrée'!$C$333-1)*'1 Données d''entrée'!$C$332,0)","v":0},{"$f":"IF(Q1108>0,$J1098*((('1 Données d''entrée'!$C$332+1)^'1 Données d''entrée'!$C$333)-(1+'1 Données d''entrée'!$C$332)^('6 Financement'!P$54-1-'1 Données d''entrée'!$C$334-$B1119))/((1+'1 Données d''entrée'!$C$332)^'1 Données d''entrée'!$C$333-1)*'1 Données d''entrée'!$C$332,0)","v":0},{"$f":"IF(R1108>0,$J1098*((('1 Données d''entrée'!$C$332+1)^'1 Données d''entrée'!$C$333)-(1+'1 Données d''entrée'!$C$332)^('6 Financement'!Q$54-1-'1 Données d''entrée'!$C$334-$B1119))/((1+'1 Données d''entrée'!$C$332)^'1 Données d''entrée'!$C$333-1)*'1 Données d''entrée'!$C$332,0)","v":0},{"$f":"IF(S1108>0,$J1098*((('1 Données d''entrée'!$C$332+1)^'1 Données d''entrée'!$C$333)-(1+'1 Données d''entrée'!$C$332)^('6 Financement'!R$54-1-'1 Données d''entrée'!$C$334-$B1119))/((1+'1 Données d''entrée'!$C$332)^'1 Données d''entrée'!$C$333-1)*'1 Données d''entrée'!$C$332,0)","v":0},{"$f":"IF(T1108>0,$J1098*((('1 Données d''entrée'!$C$332+1)^'1 Données d''entrée'!$C$333)-(1+'1 Données d''entrée'!$C$332)^('6 Financement'!S$54-1-'1 Données d''entrée'!$C$334-$B1119))/((1+'1 Données d''entrée'!$C$332)^'1 Données d''entrée'!$C$333-1)*'1 Données d''entrée'!$C$332,0)","v":0},{"$f":"IF(U1108>0,$J1098*((('1 Données d''entrée'!$C$332+1)^'1 Données d''entrée'!$C$333)-(1+'1 Données d''entrée'!$C$332)^('6 Financement'!T$54-1-'1 Données d''entrée'!$C$334-$B1119))/((1+'1 Données d''entrée'!$C$332)^'1 Données d''entrée'!$C$333-1)*'1 Données d''entrée'!$C$332,0)","v":0},{"$f":"IF(V1108>0,$J1098*((('1 Données d''entrée'!$C$332+1)^'1 Données d''entrée'!$C$333)-(1+'1 Données d''entrée'!$C$332)^('6 Financement'!U$54-1-'1 Données d''entrée'!$C$334-$B1119))/((1+'1 Données d''entrée'!$C$332)^'1 Données d''entrée'!$C$333-1)*'1 Données d''entrée'!$C$332,0)","v":0}]
["Paiement d'intêrets",9,0,{"$f":"IF(D1109>0,$K1098*((('1 Données d''entrée'!$C$332+1)^'1 Données d''entrée'!$C$333)-(1+'1 Données d''entrée'!$C$332)^('6 Financement'!C$54-1-'1 Données d''entrée'!$C$334-$B1120))/((1+'1 Données d''entrée'!$C$332)^'1 Données d''entrée'!$C$333-1)*'1 Données d''entrée'!$C$332,0)","v":0},{"$f":"IF(E1109>0,$K1098*((('1 Données d''entrée'!$C$332+1)^'1 Données d''entrée'!$C$333)-(1+'1 Données d''entrée'!$C$332)^('6 Financement'!D$54-1-'1 Données d''entrée'!$C$334-$B1120))/((1+'1 Données d''entrée'!$C$332)^'1 Données d''entrée'!$C$333-1)*'1 Données d''entrée'!$C$332,0)","v":0},{"$f":"IF(F1109>0,$K1098*((('1 Données d''entrée'!$C$332+1)^'1 Données d''entrée'!$C$333)-(1+'1 Données d''entrée'!$C$332)^('6 Financement'!E$54-1-'1 Données d''entrée'!$C$334-$B1120))/((1+'1 Données d''entrée'!$C$332)^'1 Données d''entrée'!$C$333-1)*'1 Données d''entrée'!$C$332,0)","v":0},{"$f":"IF(G1109>0,$K1098*((('1 Données d''entrée'!$C$332+1)^'1 Données d''entrée'!$C$333)-(1+'1 Données d''entrée'!$C$332)^('6 Financement'!F$54-1-'1 Données d''entrée'!$C$334-$B1120))/((1+'1 Données d''entrée'!$C$332)^'1 Données d''entrée'!$C$333-1)*'1 Données d''entrée'!$C$332,0)","v":0},{"$f":"IF(H1109>0,$K1098*((('1 Données d''entrée'!$C$332+1)^'1 Données d''entrée'!$C$333)-(1+'1 Données d''entrée'!$C$332)^('6 Financement'!G$54-1-'1 Données d''entrée'!$C$334-$B1120))/((1+'1 Données d''entrée'!$C$332)^'1 Données d''entrée'!$C$333-1)*'1 Données d''entrée'!$C$332,0)","v":0},{"$f":"IF(I1109>0,$K1098*((('1 Données d''entrée'!$C$332+1)^'1 Données d''entrée'!$C$333)-(1+'1 Données d''entrée'!$C$332)^('6 Financement'!H$54-1-'1 Données d''entrée'!$C$334-$B1120))/((1+'1 Données d''entrée'!$C$332)^'1 Données d''entrée'!$C$333-1)*'1 Données d''entrée'!$C$332,0)","v":0},{"$f":"IF(J1109>0,$K1098*((('1 Données d''entrée'!$C$332+1)^'1 Données d''entrée'!$C$333)-(1+'1 Données d''entrée'!$C$332)^('6 Financement'!I$54-1-'1 Données d''entrée'!$C$334-$B1120))/((1+'1 Données d''entrée'!$C$332)^'1 Données d''entrée'!$C$333-1)*'1 Données d''entrée'!$C$332,0)","v":0},{"$f":"IF(K1109>0,$K1098*((('1 Données d''entrée'!$C$332+1)^'1 Données d''entrée'!$C$333)-(1+'1 Données d''entrée'!$C$332)^('6 Financement'!J$54-1-'1 Données d''entrée'!$C$334-$B1120))/((1+'1 Données d''entrée'!$C$332)^'1 Données d''entrée'!$C$333-1)*'1 Données d''entrée'!$C$332,0)","v":0},{"$f":"IF(L1109>0,$K1098*((('1 Données d''entrée'!$C$332+1)^'1 Données d''entrée'!$C$333)-(1+'1 Données d''entrée'!$C$332)^('6 Financement'!K$54-1-'1 Données d''entrée'!$C$334-$B1120))/((1+'1 Données d''entrée'!$C$332)^'1 Données d''entrée'!$C$333-1)*'1 Données d''entrée'!$C$332,0)","v":0},{"$f":"IF(M1109>0,$K1098*((('1 Données d''entrée'!$C$332+1)^'1 Données d''entrée'!$C$333)-(1+'1 Données d''entrée'!$C$332)^('6 Financement'!L$54-1-'1 Données d''entrée'!$C$334-$B1120))/((1+'1 Données d''entrée'!$C$332)^'1 Données d''entrée'!$C$333-1)*'1 Données d''entrée'!$C$332,0)","v":0},{"$f":"IF(N1109>0,$K1098*((('1 Données d''entrée'!$C$332+1)^'1 Données d''entrée'!$C$333)-(1+'1 Données d''entrée'!$C$332)^('6 Financement'!M$54-1-'1 Données d''entrée'!$C$334-$B1120))/((1+'1 Données d''entrée'!$C$332)^'1 Données d''entrée'!$C$333-1)*'1 Données d''entrée'!$C$332,0)","v":0},{"$f":"IF(O1109>0,$K1098*((('1 Données d''entrée'!$C$332+1)^'1 Données d''entrée'!$C$333)-(1+'1 Données d''entrée'!$C$332)^('6 Financement'!N$54-1-'1 Données d''entrée'!$C$334-$B1120))/((1+'1 Données d''entrée'!$C$332)^'1 Données d''entrée'!$C$333-1)*'1 Données d''entrée'!$C$332,0)","v":0},{"$f":"IF(P1109>0,$K1098*((('1 Données d''entrée'!$C$332+1)^'1 Données d''entrée'!$C$333)-(1+'1 Données d''entrée'!$C$332)^('6 Financement'!O$54-1-'1 Données d''entrée'!$C$334-$B1120))/((1+'1 Données d''entrée'!$C$332)^'1 Données d''entrée'!$C$333-1)*'1 Données d''entrée'!$C$332,0)","v":0},{"$f":"IF(Q1109>0,$K1098*((('1 Données d''entrée'!$C$332+1)^'1 Données d''entrée'!$C$333)-(1+'1 Données d''entrée'!$C$332)^('6 Financement'!P$54-1-'1 Données d''entrée'!$C$334-$B1120))/((1+'1 Données d''entrée'!$C$332)^'1 Données d''entrée'!$C$333-1)*'1 Données d''entrée'!$C$332,0)","v":0},{"$f":"IF(R1109>0,$K1098*((('1 Données d''entrée'!$C$332+1)^'1 Données d''entrée'!$C$333)-(1+'1 Données d''entrée'!$C$332)^('6 Financement'!Q$54-1-'1 Données d''entrée'!$C$334-$B1120))/((1+'1 Données d''entrée'!$C$332)^'1 Données d''entrée'!$C$333-1)*'1 Données d''entrée'!$C$332,0)","v":0},{"$f":"IF(S1109>0,$K1098*((('1 Données d''entrée'!$C$332+1)^'1 Données d''entrée'!$C$333)-(1+'1 Données d''entrée'!$C$332)^('6 Financement'!R$54-1-'1 Données d''entrée'!$C$334-$B1120))/((1+'1 Données d''entrée'!$C$332)^'1 Données d''entrée'!$C$333-1)*'1 Données d''entrée'!$C$332,0)","v":0},{"$f":"IF(T1109>0,$K1098*((('1 Données d''entrée'!$C$332+1)^'1 Données d''entrée'!$C$333)-(1+'1 Données d''entrée'!$C$332)^('6 Financement'!S$54-1-'1 Données d''entrée'!$C$334-$B1120))/((1+'1 Données d''entrée'!$C$332)^'1 Données d''entrée'!$C$333-1)*'1 Données d''entrée'!$C$332,0)","v":0},{"$f":"IF(U1109>0,$K1098*((('1 Données d''entrée'!$C$332+1)^'1 Données d''entrée'!$C$333)-(1+'1 Données d''entrée'!$C$332)^('6 Financement'!T$54-1-'1 Données d''entrée'!$C$334-$B1120))/((1+'1 Données d''entrée'!$C$332)^'1 Données d''entrée'!$C$333-1)*'1 Données d''entrée'!$C$332,0)","v":0},{"$f":"IF(V1109>0,$K1098*((('1 Données d''entrée'!$C$332+1)^'1 Données d''entrée'!$C$333)-(1+'1 Données d''entrée'!$C$332)^('6 Financement'!U$54-1-'1 Données d''entrée'!$C$334-$B1120))/((1+'1 Données d''entrée'!$C$332)^'1 Données d''entrée'!$C$333-1)*'1 Données d''entrée'!$C$332,0)","v":0}]
["Paiement d'intêrets",10,0,{"$f":"IF(D1110>0,$L1098*((('1 Données d''entrée'!$C$332+1)^'1 Données d''entrée'!$C$333)-(1+'1 Données d''entrée'!$C$332)^('6 Financement'!C$54-1-'1 Données d''entrée'!$C$334-$B1121))/((1+'1 Données d''entrée'!$C$332)^'1 Données d''entrée'!$C$333-1)*'1 Données d''entrée'!$C$332,0)","v":0},{"$f":"IF(E1110>0,$L1098*((('1 Données d''entrée'!$C$332+1)^'1 Données d''entrée'!$C$333)-(1+'1 Données d''entrée'!$C$332)^('6 Financement'!D$54-1-'1 Données d''entrée'!$C$334-$B1121))/((1+'1 Données d''entrée'!$C$332)^'1 Données d''entrée'!$C$333-1)*'1 Données d''entrée'!$C$332,0)","v":0},{"$f":"IF(F1110>0,$L1098*((('1 Données d''entrée'!$C$332+1)^'1 Données d''entrée'!$C$333)-(1+'1 Données d''entrée'!$C$332)^('6 Financement'!E$54-1-'1 Données d''entrée'!$C$334-$B1121))/((1+'1 Données d''entrée'!$C$332)^'1 Données d''entrée'!$C$333-1)*'1 Données d''entrée'!$C$332,0)","v":0},{"$f":"IF(G1110>0,$L1098*((('1 Données d''entrée'!$C$332+1)^'1 Données d''entrée'!$C$333)-(1+'1 Données d''entrée'!$C$332)^('6 Financement'!F$54-1-'1 Données d''entrée'!$C$334-$B1121))/((1+'1 Données d''entrée'!$C$332)^'1 Données d''entrée'!$C$333-1)*'1 Données d''entrée'!$C$332,0)","v":0},{"$f":"IF(H1110>0,$L1098*((('1 Données d''entrée'!$C$332+1)^'1 Données d''entrée'!$C$333)-(1+'1 Données d''entrée'!$C$332)^('6 Financement'!G$54-1-'1 Données d''entrée'!$C$334-$B1121))/((1+'1 Données d''entrée'!$C$332)^'1 Données d''entrée'!$C$333-1)*'1 Données d''entrée'!$C$332,0)","v":0},{"$f":"IF(I1110>0,$L1098*((('1 Données d''entrée'!$C$332+1)^'1 Données d''entrée'!$C$333)-(1+'1 Données d''entrée'!$C$332)^('6 Financement'!H$54-1-'1 Données d''entrée'!$C$334-$B1121))/((1+'1 Données d''entrée'!$C$332)^'1 Données d''entrée'!$C$333-1)*'1 Données d''entrée'!$C$332,0)","v":0},{"$f":"IF(J1110>0,$L1098*((('1 Données d''entrée'!$C$332+1)^'1 Données d''entrée'!$C$333)-(1+'1 Données d''entrée'!$C$332)^('6 Financement'!I$54-1-'1 Données d''entrée'!$C$334-$B1121))/((1+'1 Données d''entrée'!$C$332)^'1 Données d''entrée'!$C$333-1)*'1 Données d''entrée'!$C$332,0)","v":0},{"$f":"IF(K1110>0,$L1098*((('1 Données d''entrée'!$C$332+1)^'1 Données d''entrée'!$C$333)-(1+'1 Données d''entrée'!$C$332)^('6 Financement'!J$54-1-'1 Données d''entrée'!$C$334-$B1121))/((1+'1 Données d''entrée'!$C$332)^'1 Données d''entrée'!$C$333-1)*'1 Données d''entrée'!$C$332,0)","v":0},{"$f":"IF(L1110>0,$L1098*((('1 Données d''entrée'!$C$332+1)^'1 Données d''entrée'!$C$333)-(1+'1 Données d''entrée'!$C$332)^('6 Financement'!K$54-1-'1 Données d''entrée'!$C$334-$B1121))/((1+'1 Données d''entrée'!$C$332)^'1 Données d''entrée'!$C$333-1)*'1 Données d''entrée'!$C$332,0)","v":0},{"$f":"IF(M1110>0,$L1098*((('1 Données d''entrée'!$C$332+1)^'1 Données d''entrée'!$C$333)-(1+'1 Données d''entrée'!$C$332)^('6 Financement'!L$54-1-'1 Données d''entrée'!$C$334-$B1121))/((1+'1 Données d''entrée'!$C$332)^'1 Données d''entrée'!$C$333-1)*'1 Données d''entrée'!$C$332,0)","v":0},{"$f":"IF(N1110>0,$L1098*((('1 Données d''entrée'!$C$332+1)^'1 Données d''entrée'!$C$333)-(1+'1 Données d''entrée'!$C$332)^('6 Financement'!M$54-1-'1 Données d''entrée'!$C$334-$B1121))/((1+'1 Données d''entrée'!$C$332)^'1 Données d''entrée'!$C$333-1)*'1 Données d''entrée'!$C$332,0)","v":0},{"$f":"IF(O1110>0,$L1098*((('1 Données d''entrée'!$C$332+1)^'1 Données d''entrée'!$C$333)-(1+'1 Données d''entrée'!$C$332)^('6 Financement'!N$54-1-'1 Données d''entrée'!$C$334-$B1121))/((1+'1 Données d''entrée'!$C$332)^'1 Données d''entrée'!$C$333-1)*'1 Données d''entrée'!$C$332,0)","v":0},{"$f":"IF(P1110>0,$L1098*((('1 Données d''entrée'!$C$332+1)^'1 Données d''entrée'!$C$333)-(1+'1 Données d''entrée'!$C$332)^('6 Financement'!O$54-1-'1 Données d''entrée'!$C$334-$B1121))/((1+'1 Données d''entrée'!$C$332)^'1 Données d''entrée'!$C$333-1)*'1 Données d''entrée'!$C$332,0)","v":0},{"$f":"IF(Q1110>0,$L1098*((('1 Données d''entrée'!$C$332+1)^'1 Données d''entrée'!$C$333)-(1+'1 Données d''entrée'!$C$332)^('6 Financement'!P$54-1-'1 Données d''entrée'!$C$334-$B1121))/((1+'1 Données d''entrée'!$C$332)^'1 Données d''entrée'!$C$333-1)*'1 Données d''entrée'!$C$332,0)","v":0},{"$f":"IF(R1110>0,$L1098*((('1 Données d''entrée'!$C$332+1)^'1 Données d''entrée'!$C$333)-(1+'1 Données d''entrée'!$C$332)^('6 Financement'!Q$54-1-'1 Données d''entrée'!$C$334-$B1121))/((1+'1 Données d''entrée'!$C$332)^'1 Données d''entrée'!$C$333-1)*'1 Données d''entrée'!$C$332,0)","v":0},{"$f":"IF(S1110>0,$L1098*((('1 Données d''entrée'!$C$332+1)^'1 Données d''entrée'!$C$333)-(1+'1 Données d''entrée'!$C$332)^('6 Financement'!R$54-1-'1 Données d''entrée'!$C$334-$B1121))/((1+'1 Données d''entrée'!$C$332)^'1 Données d''entrée'!$C$333-1)*'1 Données d''entrée'!$C$332,0)","v":0},{"$f":"IF(T1110>0,$L1098*((('1 Données d''entrée'!$C$332+1)^'1 Données d''entrée'!$C$333)-(1+'1 Données d''entrée'!$C$332)^('6 Financement'!S$54-1-'1 Données d''entrée'!$C$334-$B1121))/((1+'1 Données d''entrée'!$C$332)^'1 Données d''entrée'!$C$333-1)*'1 Données d''entrée'!$C$332,0)","v":0},{"$f":"IF(U1110>0,$L1098*((('1 Données d''entrée'!$C$332+1)^'1 Données d''entrée'!$C$333)-(1+'1 Données d''entrée'!$C$332)^('6 Financement'!T$54-1-'1 Données d''entrée'!$C$334-$B1121))/((1+'1 Données d''entrée'!$C$332)^'1 Données d''entrée'!$C$333-1)*'1 Données d''entrée'!$C$332,0)","v":0},{"$f":"IF(V1110>0,$L1098*((('1 Données d''entrée'!$C$332+1)^'1 Données d''entrée'!$C$333)-(1+'1 Données d''entrée'!$C$332)^('6 Financement'!U$54-1-'1 Données d''entrée'!$C$334-$B1121))/((1+'1 Données d''entrée'!$C$332)^'1 Données d''entrée'!$C$333-1)*'1 Données d''entrée'!$C$332,0)","v":0}]
[]
["Solde du comte (par période)",null,{"$f":"C1034+IF($B$103>0,C1042-SUM(C1044:C1054)-SUM(C1056:C1066),0)+IF($B$131>0,C1070-SUM(C1072:C1082)-SUM(C1084:C1094),0)+IF($B$159>0,C1098-SUM(C1100:C1110),0)","v":{"$error":"#DIV/0!"}},{"$f":"D1034+IF($B$103>0,D1042-SUM(D1044:D1054)-SUM(D1056:D1066),0)+IF($B$131>0,D1070-SUM(D1072:D1082)-SUM(D1084:D1094),0)+IF($B$159>0,D1098-SUM(D1100:D1110),0)","v":{"$error":"#DIV/0!"}},{"$error":"#DIV/0!"},{"$error":"#DIV/0!"},{"$error":"#DIV/0!"},{"$error":"#DIV/0!"},{"$error":"#DIV/0!"},{"$error":"#DIV/0!"},{"$error":"#DIV/0!"},{"$error":"#DIV/0!"},{"$error":"#DIV/0!"},{"$error":"#DIV/0!"},{"$error":"#DIV/0!"},{"$error":"#DIV/0!"},{"$error":"#DIV/0!"},{"$error":"#DIV/0!"},{"$error":"#DIV/0!"},{"$error":"#DIV/0!"},{"$error":"#DIV/0!"},{"$error":"#DIV/0!"}]
["Solde du compte (cumulé)",null,{"$f":"C1124+B1035","v":{"$error":"#DIV/0!"}},{"$f":"C1125+D1124","v":{"$error":"#DIV/0!"}},{"$error":"#DIV/0!"},{"$error":"#DIV/0!"},{"$error":"#DIV/0!"},{"$error":"#DIV/0!"},{"$error":"#DIV/0!"},{"$error":"#DIV/0!"},{"$error":"#DIV/0!"},{"$error":"#DIV/0!"},{"$error":"#DIV/0!"},{"$error":"#DIV/0!"},{"$error":"#DIV/0!"},{"$error":"#DIV/0!"},{"$error":"#DIV/0!"},{"$error":"#DIV/0!"},{"$error":"#DIV/0!"},{"$error":"#DIV/0!"},{"$error":"#DIV/0!"},{"$error":"#DIV/0!"}]
[]
[]
["Coût du financement","Période",1,2,3,4,5,6,7,8,9,10,11,12,13,14,15,16,17,18,19,20]
["Paiement d'intérêt par période",null,{"$f":"IF($B1000>0,(C1003+C1004),0)+IF($B1005>0,(C1008+C1009),0)+IF($B1010>0,C1013+C1014,0)+IF($B1017>0,(C1020+C1021),0)+IF($B1022>0,(C1025+C1026),0)+IF($B1027>0,C1030+C1031,0)+IF($B1039>0,SUM(C1056:C1066),0)+IF($B1069>0,SUM(C1084:C1094),0)+IF($B1097>0,SUM(C1112:C1122),0)","v":0},{"$f":"IF($B1000>0,(D1003+D1004),0)+IF($B1005>0,(D1008+D1009),0)+IF($B1010>0,D1013+D1014,0)+IF($B1017>0,(D1020+D1021),0)+IF($B1022>0,(D1025+D1026),0)+IF($B1027>0,D1030+D1031,0)+IF($B1039>0,SUM(D1056:D1066),0)+IF($B1069>0,SUM(D1084:D1094),0)+IF($B1097>0,SUM(D1112:D1122),0)","v":0},0,0,0,0,0,0,0,0,0,0,0,0,0,0,0,0,0,0]
["Remboursement du principal par période",null,{"$f":"IF($B1000>0,(C1002),0)+IF($B1005>0,(C1007),0)+IF($B1010>0,IF(C1012>0,C1012-C1013,0),0)+IF($B1017>0,(C1019),0)+IF($B1022>0,(C1024),0)+IF($B1027>0,IF(C1029>0,C1029-C1030,0),0)+IF($B1041>0,SUM(C1044:C1054),0)+IF($B1069>0,SUM(C1072:C1082),0)+IF($B1097>0,SUM(C1100:C1110)-SUM(C1112:C1122),0)","v":0},{"$f":"IF($B1000>0,(D1002),0)+IF($B1005>0,(D1007),0)+IF($B1010>0,IF(D1012>0,D1012-D1013,0),0)+IF($B1017>0,(D1019),0)+IF($B1022>0,(D1024),0)+IF($B1027>0,IF(D1029>0,D1029-D1030,0),0)+IF($B1041>0,SUM(D1044:D1054),0)+IF($B1069>0,SUM(D1072:D1082),0)+IF($B1097>0,SUM(D1100:D1110)-SUM(D1112:D1122),0)","v":0},0,0,0,0,0,0,0,0,0,0,0,0,0,0,0,0,0,0]
[]
[]
["Flux de trésorerie net       "]
["Période (t)","Flux de trésorerie       brut","Coût de financement ","Subventions","Flux de trésorerie       intermédiaires (avec coût fin. et Subventions)","Flux de trésorerie      , taxe contenue","Flux de trésorerie       cumulé, taxe contenue","Période de remboursement"]
[0,{"$f":"'5 Flux de trésorerie brut'!$D$7","v":{"$error":"#DIV/0!"}},0,{"$f":"B998+B1016","v":0},{"$f":"D1135-C1135+B1135","v":{"$error":"#DIV/0!"}},{"$f":"IF(E1135>0,(E1135-E1135*'1 Données d''entrée'!$C$353-IF('5 Flux de trésorerie brut'!$D$7>0,'1 Données d''entrée'!$C$357*'5 Flux de trésorerie brut'!$D$7,0)),E1135)","v":{"$error":"#DIV/0!"}},{"$f":"F1135","v":{"$error":"#DIV/0!"}},{"$f":"IF(G1135<0,\" \",A1135)","v":{"$error":"#DIV/0!"}}]
[1,{"$f":"'5 Flux de trésorerie brut'!$D$8","v":{"$error":"#DIV/0!"}},{"$f":"C1129+C1130","v":0},0,{"$f":"D1136-C1136+B1136","v":{"$error":"#DIV/0!"}},{"$f":"IF(E1136>0,(E1136-E1136*'1 Données d''entrée'!$C$353-IF('5 Flux de trésorerie brut'!$D$8>0,'1 Données d''entrée'!$C$357*'5 Flux de trésorerie brut'!$D$8,0)),E1136)","v":{"$error":"#DIV/0!"}},{"$f":"G1135+F1136","v":{"$error":"#DIV/0!"}},{"$f":"IF(G1136<0,\" \",IF(SUM(H1135:H1135)>0,\" \",IF(H1135=0,\" \",A1136)))","v":{"$error":"#DIV/0!"}}]
[2,{"$f":"'5 Flux de trésorerie brut'!$D$9","v":{"$error":"#DIV/0!"}},{"$f":"D1129+D1130","v":0},0,{"$error":"#DIV/0!"},{"$f":"IF(E1137>0,(E1137-E1137*'1 Données d''entrée'!$C$353-IF('5 Flux de trésorerie brut'!$D$9>0,'1 Données d''entrée'!$C$357*'5 Flux de trésorerie brut'!$D$9,0)),E1137)","v":{"$error":"#DIV/0!"}},{"$error":"#DIV/0!"},{"$f":"IF(G1137<0,\" \",IF(SUM(H1135:H1136)>0,\" \",IF(H1135=0,\" \",A1137)))","v":{"$error":"#DIV/0!"}}]
[3,{"$f":"'5 Flux de trésorerie brut'!$D$10","v":{"$error":"#DIV/0!"}},{"$f":"E1129+E1130","v":0},0,{"$error":"#DIV/0!"},{"$f":"IF(E1138>0,(E1138-E1138*'1 Données d''entrée'!$C$353-IF('5 Flux de trésorerie brut'!$D$10>0,'1 Données d''entrée'!$C$357*'5 Flux de trésorerie brut'!$D$10,0)),E1138)","v":{"$error":"#DIV/0!"}},{"$error":"#DIV/0!"},{"$f":"IF(G1138<0,\" \",IF(SUM(H1135:H1137)>0,\" \",IF(H1135=0,\" \",A1138)))","v":{"$error":"#DIV/0!"}}]
[4,{"$f":"'5 Flux de trésorerie brut'!$D$11","v":{"$error":"#DIV/0!"}},{"$f":"F1129+F1130","v":0},0,{"$error":"#DIV/0!"},{"$f":"IF(E1139>0,(E1139-E1139*'1 Données d''entrée'!$C$353-IF('5 Flux de trésorerie brut'!$D$11>0,'1 Données d''entrée'!$C$357*'5 Flux de trésorerie brut'!$D$11,0)),E1139)","v":{"$error":"#DIV/0!"}},{"$error":"#DIV/0!"},{"$f":"IF(G1139<0,\" \",IF(SUM(H1135:H1138)>0,\" \",IF(H1135=0,\" \",A1139)))","v":{"$error":"#DIV/0!"}}]
[5,{"$f":"'5 Flux de trésorerie brut'!$D$12","v":{"$error":"#DIV/0!"}},{"$f":"G1129+G1130","v":0},0,{"$error":"#DIV/0!"},{"$f":"IF(E1140>0,(E1140-E1140*'1 Données d''entrée'!$C$353-IF('5 Flux de trésorerie brut'!$D$12>0,'1 Données d''entrée'!$C$357*'5 Flux de trésorerie brut'!$D$12,0)),E1140)","v":{"$error":"#DIV/0!"}},{"$error":"#DIV/0!"},{"$f":"IF(G1140<0,\" \",IF(SUM(H1135:H1139)>0,\" \",IF(H1135=0,\" \",A1140)))","v":{"$error":"#DIV/0!"}}]
[6,{"$f":"'5 Flux de trésorerie brut'!$D$13","v":{"$error":"#DIV/0!"}},{"$f":"H1129+H1130","v":0},0,{"$error":"#DIV/0!"},{"$f":"IF(E1141>0,(E1141-E1141*'1 Données d''entrée'!$C$353-IF('5 Flux de trésorerie brut'!$D$13>0,'1 Données d''entrée'!$C$357*'5 Flux de trésorerie brut'!$D$13,0)),E1141)","v":{"$error":"#DIV/0!"}},{"$error":"#DIV/0!"},{"$f":"IF(G1141<0,\" \",IF(SUM(H1135:H1140)>0,\" \",IF(H1135=0,\" \",A1141)))","v":{"$error":"#DIV/0!"}}]
[7,{"$f":"'5 Flux de trésorerie brut'!$D$14","v":{"$error":"#DIV/0!"}},{"$f":"I1129+I1130","v":0},0,{"$error":"#DIV/0!"},{"$f":"IF(E1142>0,(E1142-E1142*'1 Données d''entrée'!$C$353-IF('5 Flux de trésorerie brut'!$D$14>0,'1 Données d''entrée'!$C$357*'5 Flux de trésorerie brut'!$D$14,0)),E1142)","v":{"$error":"#DIV/0!"}},{"$error":"#DIV/0!"},{"$f":"IF(G1142<0,\" \",IF(SUM(H1135:H1141)>0,\" \",IF(H1135=0,\" \",A1142)))","v":{"$error":"#DIV/0!"}}]
[8,{"$f":"'5 Flux de trésorerie brut'!$D$15","v":{"$error":"#DIV/0!"}},{"$f":"J1129+J1130","v":0},0,{"$error":"#DIV/0!"},{"$f":"IF(E1143>0,(E1143-E1143*'1 Données d''entrée'!$C$353-IF('5 Flux de trésorerie brut'!$D$15>0,'1 Données d''entrée'!$C$357*'5 Flux de trésorerie brut'!$D$15,0)),E1143)","v":{"$error":"#DIV/0!"}},{"$error":"#DIV/0!"},{"$f":"IF(G1143<0,\" \",IF(SUM(H1135:H1142)>0,\" \",IF(H1135=0,\" \",A1143)))","v":{"$error":"#DIV/0!"}}]
[9,{"$f":"'5 Flux de trésorerie brut'!$D$16","v":{"$error":"#DIV/0!"}},{"$f":"K1129+K1130","v":0},0,{"$error":"#DIV/0!"},{"$f":"IF(E1144>0,(E1144-E1144*'1 Données d''entrée'!$C$353-IF('5 Flux de trésorerie brut'!$D$16>0,'1 Données d''entrée'!$C$357*'5 Flux de trésorerie brut'!$D$16,0)),E1144)","v":{"$error":"#DIV/0!"}},{"$error":"#DIV/0!"},{"$f":"IF(G1144<0,\" \",IF(SUM(H1135:H1143)>0,\" \",IF(H1135=0,\" \",A1144)))","v":{"$error":"#DIV/0!"}}]
[10,{"$f":"'5 Flux de trésorerie brut'!$D$17","v":{"$error":"#DIV/0!"}},{"$f":"L1129+L1130","v":0},0,{"$error":"#DIV/0!"},{"$f":"IF(E1145>0,(E1145-E1145*'1 Données d''entrée'!$C$353-IF('5 Flux de trésorerie brut'!$D$17>0,'1 Données d''entrée'!$C$357*'5 Flux de trésorerie brut'!$D$17,0)),E1145)","v":{"$error":"#DIV/0!"}},{"$error":"#DIV/0!"},{"$f":"IF(G1145<0,\" \",IF(SUM(H1135:H1144)>0,\" \",IF(H1135=0,\" \",A1145)))","v":{"$error":"#DIV/0!"}}]
[11,{"$f":"'5 Flux de trésorerie brut'!$D$18","v":{"$error":"#DIV/0!"}},{"$f":"M1129+M1130","v":0},0,{"$error":"#DIV/0!"},{"$f":"IF(E1146>0,(E1146-E1146*'1 Données d''entrée'!$C$353-IF('5 Flux de trésorerie brut'!$D$18>0,'1 Données d''entrée'!$C$357*'5 Flux de trésorerie brut'!$D$18,0)),E1146)","v":{"$error":"#DIV/0!"}},{"$error":"#DIV/0!"},{"$f":"IF(G1146<0,\" \",IF(SUM(H1135:H1145)>0,\" \",IF(H1135=0,\" \",A1146)))","v":{"$error":"#DIV/0!"}}]
[12,{"$f":"'5 Flux de trésorerie brut'!$D$19","v":{"$error":"#DIV/0!"}},{"$f":"N1129+N1130","v":0},0,{"$error":"#DIV/0!"},{"$f":"IF(E1147>0,(E1147-E1147*'1 Données d''entrée'!$C$353-IF('5 Flux de trésorerie brut'!$D$19>0,'1 Données d''entrée'!$C$357*'5 Flux de trésorerie brut'!$D$19,0)),E1147)","v":{"$error":"#DIV/0!"}},{"$error":"#DIV/0!"},{"$f":"IF(G1147<0,\" \",IF(SUM(H1135:H1146)>0,\" \",IF(H1135=0,\" \",A1147)))","v":{"$error":"#DIV/0!"}}]
[13,{"$f":"'5 Flux de trésorerie brut'!$D$20","v":{"$error":"#DIV/0!"}},{"$f":"O1129+O1130","v":0},0,{"$error":"#DIV/0!"},{"$f":"IF(E1148>0,(E1148-E1148*'1 Données d''entrée'!$C$353-IF('5 Flux de trésorerie brut'!$D$20>0,'1 Données d''entrée'!$C$357*'5 Flux de trésorerie brut'!$D$20,0)),E1148)","v":{"$error":"#DIV/0!"}},{"$error":"#DIV/0!"},{"$f":"IF(G1148<0,\" \",IF(SUM(H1135:H1147)>0,\" \",IF(H1135=0,\" \",A1148)))","v":{"$error":"#DIV/0!"}}]
[14,{"$f":"'5 Flux de trésorerie brut'!$D$21","v":{"$error":"#DIV/0!"}},{"$f":"P1129+P1130","v":0},0,{"$error":"#DIV/0!"},{"$f":"IF(E1149>0,(E1149-E1149*'1 Données d''entrée'!$C$353-IF('5 Flux de trésorerie brut'!$D$21>0,'1 Données d''entrée'!$C$357*'5 Flux de trésorerie brut'!$D$21,0)),E1149)","v":{"$error":"#DIV/0!"}},{"$error":"#DIV/0!"},{"$f":"IF(G1149<0,\" \",IF(SUM(H1135:H1148)>0,\" \",IF(H1135=0,\" \",A1149)))","v":{"$error":"#DIV/0!"}}]
[15,{"$f":"'5 Flux de trésorerie brut'!$D$22","v":{"$error":"#DIV/0!"}},{"$f":"Q1129+Q1130","v":0},0,{"$error":"#DIV/0!"},{"$f":"IF(E1150>0,(E1150-E1150*'1 Données d''entrée'!$C$353-IF('5 Flux de trésorerie brut'!$D$22>0,'1 Données d''entrée'!$C$357*'5 Flux de trésorerie brut'!$D$22,0)),E1150)","v":{"$error":"#DIV/0!"}},{"$error":"#DIV/0!"},{"$f":"IF(G1150<0,\" \",IF(SUM(H1135:H1149)>0,\" \",IF(H1135=0,\" \",A1150)))","v":{"$error":"#DIV/0!"}}]
[16,{"$f":"'5 Flux de trésorerie brut'!$D$23","v":{"$error":"#DIV/0!"}},{"$f":"R1129+R1130","v":0},0,{"$error":"#DIV/0!"},{"$f":"IF(E1151>0,(E1151-E1151*'1 Données d''entrée'!$C$353-IF('5 Flux de trésorerie brut'!$D$23>0,'1 Données d''entrée'!$C$357*'5 Flux de trésorerie brut'!$D$23,0)),E1151)","v":{"$error":"#DIV/0!"}},{"$error":"#DIV/0!"},{"$f":"IF(G1151<0,\" \",IF(SUM(H1135:H1150)>0,\" \",IF(H1135=0,\" \",A1151)))","v":{"$error":"#DIV/0!"}}]
[17,{"$f":"'5 Flux de trésorerie brut'!$D$24","v":{"$error":"#DIV/0!"}},{"$f":"S1129+S1130","v":0},0,{"$error":"#DIV/0!"},{"$f":"IF(E1152>0,(E1152-E1152*'1 Données d''entrée'!$C$353-IF('5 Flux de trésorerie brut'!$D$24>0,'1 Données d''entrée'!$C$357*'5 Flux de trésorerie brut'!$D$24,0)),E1152)","v":{"$error":"#DIV/0!"}},{"$error":"#DIV/0!"},{"$f":"IF(G1152<0,\" \",IF(SUM(H1135:H1151)>0,\" \",IF(H1135=0,\" \",A1152)))","v":{"$error":"#DIV/0!"}}]
[18,{"$f":"'5 Flux de trésorerie brut'!$D$25","v":{"$error":"#DIV/0!"}},{"$f":"T1129+T1130","v":0},0,{"$error":"#DIV/0!"},{"$f":"IF(E1153>0,(E1153-E1153*'1 Données d''entrée'!$C$353-IF('5 Flux de trésorerie brut'!$D$25>0,'1 Données d''entrée'!$C$357*'5 Flux de trésorerie brut'!$D$25,0)),E1153)","v":{"$error":"#DIV/0!"}},{"$error":"#DIV/0!"},{"$f":"IF(G1153<0,\" \",IF(SUM(H1135:H1152)>0,\" \",IF(H1135=0,\" \",A1153)))","v":{"$error":"#DIV/0!"}}]
[19,{"$f":"'5 Flux de trésorerie brut'!$D$26","v":{"$error":"#DIV/0!"}},{"$f":"U1129+U1130","v":0},0,{"$error":"#DIV/0!"},{"$f":"IF(E1154>0,(E1154-E1154*'1 Données d''entrée'!$C$353-IF('5 Flux de trésorerie brut'!$D$26>0,'1 Données d''entrée'!$C$357*'5 Flux de trésorerie brut'!$D$26,0)),E1154)","v":{"$error":"#DIV/0!"}},{"$error":"#DIV/0!"},{"$f":"IF(G1154<0,\" \",IF(SUM(H1135:H1153)>0,\" \",IF(H1135=0,\" \",A1154)))","v":{"$error":"#DIV/0!"}}]
[20,{"$f":"'5 Flux de trésorerie brut'!$D$27","v":{"$error":"#DIV/0!"}},{"$f":"V1129+V1130","v":0},0,{"$error":"#DIV/0!"},{"$f":"IF(E1155>0,(E1155-E1155*'1 Données d''entrée'!$C$353-IF('5 Flux de trésorerie brut'!$D$27>0,'1 Données d''entrée'!$C$357*'5 Flux de trésorerie brut'!$D$27,0)),E1155)","v":{"$error":"#DIV/0!"}},{"$error":"#DIV/0!"},{"$f":"IF(G1155<0,\" \",IF(SUM(H1135:H1154)>0,\" \",IF(H1135=0,\" \",A1155)))","v":{"$error":"#DIV/0!"}}]
[]
[]
[null,null,"Valeur actuelle nette",{"$f":"NPV('1 Données d''entrée'!$H$28,'10 Subvention d''ADER'!F1136:F1155)+'10 Subvention d''ADER'!F1135","v":{"$error":"#DIV/0!"}}]
[null,null,"Taux de rentabilité interne",{"$f":"IRR(F1135:F1155)","v":{"$error":"#VALUE!"}}]
[]
[]
[]
[]
[]
[]
["Tableau de calcul avec un taux de subvention de",null,null,0.6]
[]
["Bailleur de fonds","Investissement total par bailleur de fonds (AR)","Quote-part du coût d'investissement initial"]
["Subvention d'ADER",{"$f":"('3 Coût total'!$B$7-'3 Coût total'!$B$42)*C1169","v":0},{"$f":"D1166","v":0.6}]
["Capitaux propres",{"$f":"'1 Données d''entrée'!$B$294","v":0},{"$f":"'1 Données d''entrée'!$B$294/'3 Coût total'!$B$7","v":{"$error":"#DIV/0!"}}]
["Fonds d'autres donneurs / investisseurs",{"$f":"'1 Données d''entrée'!$B$306+'1 Données d''entrée'!$B$307","v":0},{"$f":"B1171/'3 Coût total'!$B$7","v":{"$error":"#DIV/0!"}}]
["Prêt bancaire (effective)",{"$f":"IF(B1169+'1 Données d''entrée'!$B$294=0,0,(-1)*'5 Flux de trésorerie brut'!$D$7-(SUM(B1169:B1171)))","v":0},{"$f":"(1-(C1169+C1170+C1171))","v":{"$error":"#DIV/0!"}}]
[]
["Prêt bancaire avec des frais de gestion",{"$f":"B1172+B1172*'1 Données d''entrée'!$C$338","v":0},{"$f":"(1-(C1169+C1170+C1171))+(1-(C1169+C1170+C1171))*'1 Données d''entrée'!$C$338","v":{"$error":"#DIV/0!"}}]
[]
["Tableaux de calcul"]
[]
[]
["Scénario financier"]
["Période",0,1,2,3,4,5,6,7,8,9,10,11,12,13,14,15,16,17,18,19,20]
[]
["Flux de trésorerie (brut)",{"$f":"'5 Flux de trésorerie brut'!$D$7","v":{"$error":"#DIV/0!"}},{"$f":"'5 Flux de trésorerie brut'!$D$8","v":{"$error":"#DIV/0!"}},{"$f":"'5 Flux de trésorerie brut'!$D$9","v":{"$error":"#DIV/0!"}},{"$f":"'5 Flux de trésorerie brut'!$D$10","v":{"$error":"#DIV/0!"}},{"$f":"'5 Flux de trésorerie brut'!$D$11","v":{"$error":"#DIV/0!"}},{"$f":"'5 Flux de trésorerie brut'!$D$12","v":{"$error":"#DIV/0!"}},{"$f":"'5 Flux de trésorerie brut'!$D$13","v":{"$error":"#DIV/0!"}},{"$f":"'5 Flux de trésorerie brut'!$D$14","v":{"$error":"#DIV/0!"}},{"$f":"'5 Flux de trésorerie brut'!$D$15","v":{"$error":"#DIV/0!"}},{"$f":"'5 Flux de trésorerie brut'!$D$16","v":{"$error":"#DIV/0!"}},{"$f":"'5 Flux de trésorerie brut'!$D$17","v":{"$error":"#DIV/0!"}},{"$f":"'5 Flux de trésorerie brut'!$D$18","v":{"$error":"#DIV/0!"}},{"$f":"'5 Flux de trésorerie brut'!$D$19","v":{"$error":"#DIV/0!"}},{"$f":"'5 Flux de trésorerie brut'!$D$20","v":{"$error":"#DIV/0!"}},{"$f":"'5 Flux de trésorerie brut'!$D$21","v":{"$error":"#DIV/0!"}},{"$f":"'5 Flux de trésorerie brut'!$D$22","v":{"$error":"#DIV/0!"}},{"$f":"'5 Flux de trésorerie brut'!$D$23","v":{"$error":"#DIV/0!"}},{"$f":"'5 Flux de trésorerie brut'!$D$24","v":{"$error":"#DIV/0!"}},{"$f":"'5 Flux de trésorerie brut'!$D$25","v":{"$error":"#DIV/0!"}},{"$f":"'5 Flux de trésorerie brut'!$D$26","v":{"$error":"#DIV/0!"}},{"$f":"'5 Flux de trésorerie brut'!$D$27","v":{"$error":"#DIV/0!"}}]
[]
["Capitaux propres",{"$f":"'1 Données d''entrée'!$B$294","v":0}]
[]
["Subvention ADER",{"$f":"'3 Coût total'!$B$7*C1169","v":0}]
[]
["Prêt bancaire - Option 1: Remboursement du principal fractionné",{"$f":"'1 Données d''entrée'!$B$342","v":0},"% de prêt total"]
["Réception et montant restant",{"$f":"B1174*B1188","v":0},{"$f":"B1189-C1190","v":0},0,0,0,0,0,0,0,0,0,0,0,0,0,0,0,0,0,0,0]
["Remboursement du principal",0,{"$f":"IF(C1180<'1 Données d''entrée'!$C$334+1,0,IF(C1180<'1 Données d''entrée'!$C$333+'1 Données d''entrée'!$C$334+1,($B1189/'1 Données d''entrée'!$C$333),0))","v":0},{"$f":"IF(D1180<'1 Données d''entrée'!$C$334+1,0,IF(D1180<'1 Données d''entrée'!$C$333+'1 Données d''entrée'!$C$334+1,($B1189/'1 Données d''entrée'!$C$333),0))","v":0},{"$f":"IF(E1180<'1 Données d''entrée'!$C$334+1,0,IF(E1180<'1 Données d''entrée'!$C$333+'1 Données d''entrée'!$C$334+1,($B1189/'1 Données d''entrée'!$C$333),0))","v":0},{"$f":"IF(F1180<'1 Données d''entrée'!$C$334+1,0,IF(F1180<'1 Données d''entrée'!$C$333+'1 Données d''entrée'!$C$334+1,($B1189/'1 Données d''entrée'!$C$333),0))","v":0},{"$f":"IF(G1180<'1 Données d''entrée'!$C$334+1,0,IF(G1180<'1 Données d''entrée'!$C$333+'1 Données d''entrée'!$C$334+1,($B1189/'1 Données d''entrée'!$C$333),0))","v":0},{"$f":"IF(H1180<'1 Données d''entrée'!$C$334+1,0,IF(H1180<'1 Données d''entrée'!$C$333+'1 Données d''entrée'!$C$334+1,($B1189/'1 Données d''entrée'!$C$333),0))","v":0},{"$f":"IF(I1180<'1 Données d''entrée'!$C$334+1,0,IF(I1180<'1 Données d''entrée'!$C$333+'1 Données d''entrée'!$C$334+1,($B1189/'1 Données d''entrée'!$C$333),0))","v":0},{"$f":"IF(J1180<'1 Données d''entrée'!$C$334+1,0,IF(J1180<'1 Données d''entrée'!$C$333+'1 Données d''entrée'!$C$334+1,($B1189/'1 Données d''entrée'!$C$333),0))","v":0},{"$f":"IF(K1180<'1 Données d''entrée'!$C$334+1,0,IF(K1180<'1 Données d''entrée'!$C$333+'1 Données d''entrée'!$C$334+1,($B1189/'1 Données d''entrée'!$C$333),0))","v":0},{"$f":"IF(L1180<'1 Données d''entrée'!$C$334+1,0,IF(L1180<'1 Données d''entrée'!$C$333+'1 Données d''entrée'!$C$334+1,($B1189/'1 Données d''entrée'!$C$333),0))","v":0},{"$f":"IF(M1180<'1 Données d''entrée'!$C$334+1,0,IF(M1180<'1 Données d''entrée'!$C$333+'1 Données d''entrée'!$C$334+1,($B1189/'1 Données d''entrée'!$C$333),0))","v":0},{"$f":"IF(N1180<'1 Données d''entrée'!$C$334+1,0,IF(N1180<'1 Données d''entrée'!$C$333+'1 Données d''entrée'!$C$334+1,($B1189/'1 Données d''entrée'!$C$333),0))","v":0},{"$f":"IF(O1180<'1 Données d''entrée'!$C$334+1,0,IF(O1180<'1 Données d''entrée'!$C$333+'1 Données d''entrée'!$C$334+1,($B1189/'1 Données d''entrée'!$C$333),0))","v":0},{"$f":"IF(P1180<'1 Données d''entrée'!$C$334+1,0,IF(P1180<'1 Données d''entrée'!$C$333+'1 Données d''entrée'!$C$334+1,($B1189/'1 Données d''entrée'!$C$333),0))","v":0},{"$f":"IF(Q1180<'1 Données d''entrée'!$C$334+1,0,IF(Q1180<'1 Données d''entrée'!$C$333+'1 Données d''entrée'!$C$334+1,($B1189/'1 Données d''entrée'!$C$333),0))","v":0},{"$f":"IF(R1180<'1 Données d''entrée'!$C$334+1,0,IF(R1180<'1 Données d''entrée'!$C$333+'1 Données d''entrée'!$C$334+1,($B1189/'1 Données d''entrée'!$C$333),0))","v":0},{"$f":"IF(S1180<'1 Données d''entrée'!$C$334+1,0,IF(S1180<'1 Données d''entrée'!$C$333+'1 Données d''entrée'!$C$334+1,($B1189/'1 Données d''entrée'!$C$333),0))","v":0},{"$f":"IF(T1180<'1 Données d''entrée'!$C$334+1,0,IF(T1180<'1 Données d''entrée'!$C$333+'1 Données d''entrée'!$C$334+1,($B1189/'1 Données d''entrée'!$C$333),0))","v":0},{"$f":"IF(U1180<'1 Données d''entrée'!$C$334+1,0,IF(U1180<'1 Données d''entrée'!$C$333+'1 Données d''entrée'!$C$334+1,($B1189/'1 Données d''entrée'!$C$333),0))","v":0},{"$f":"IF(V1180<'1 Données d''entrée'!$C$334+1,0,IF(V1180<'1 Données d''entrée'!$C$333+'1 Données d''entrée'!$C$334+1,($B1189/'1 Données d''entrée'!$C$333),0))","v":0}]
["Paiement d'intérêts",0,{"$f":"IF('1 Données d''entrée'!$C$336=\"(=NON)\",IF(C1180<'1 Données d''entrée'!$C$334+1,0,B1189*'1 Données d''entrée'!$C$332),B1189*'1 Données d''entrée'!$C$332)","v":0},{"$f":"IF('1 Données d''entrée'!$C$336=\"(=NON)\",IF(D1180<'1 Données d''entrée'!$C$334+1,0,C1189*'1 Données d''entrée'!$C$332),C1189*'1 Données d''entrée'!$C$332)","v":0},{"$f":"IF('1 Données d''entrée'!$C$336=\"(=NON)\",IF(E1180<'1 Données d''entrée'!$C$334+1,0,D1189*'1 Données d''entrée'!$C$332),D1189*'1 Données d''entrée'!$C$332)","v":0},{"$f":"IF('1 Données d''entrée'!$C$336=\"(=NON)\",IF(F1180<'1 Données d''entrée'!$C$334+1,0,E1189*'1 Données d''entrée'!$C$332),E1189*'1 Données d''entrée'!$C$332)","v":0},{"$f":"IF('1 Données d''entrée'!$C$336=\"(=NON)\",IF(G1180<'1 Données d''entrée'!$C$334+1,0,F1189*'1 Données d''entrée'!$C$332),F1189*'1 Données d''entrée'!$C$332)","v":0},{"$f":"IF('1 Données d''entrée'!$C$336=\"(=NON)\",IF(H1180<'1 Données d''entrée'!$C$334+1,0,G1189*'1 Données d''entrée'!$C$332),G1189*'1 Données d''entrée'!$C$332)","v":0},{"$f":"IF('1 Données d''entrée'!$C$336=\"(=NON)\",IF(I1180<'1 Données d''entrée'!$C$334+1,0,H1189*'1 Données d''entrée'!$C$332),H1189*'1 Données d''entrée'!$C$332)","v":0},{"$f":"IF('1 Données d''entrée'!$C$336=\"(=NON)\",IF(J1180<'1 Données d''entrée'!$C$334+1,0,I1189*'1 Données d''entrée'!$C$332),I1189*'1 Données d''entrée'!$C$332)","v":0},{"$f":"IF('1 Données d''entrée'!$C$336=\"(=NON)\",IF(K1180<'1 Données d''entrée'!$C$334+1,0,J1189*'1 Données d''entrée'!$C$332),J1189*'1 Données d''entrée'!$C$332)","v":0},{"$f":"IF('1 Données d''entrée'!$C$336=\"(=NON)\",IF(L1180<'1 Données d''entrée'!$C$334+1,0,K1189*'1 Données d''entrée'!$C$332),K1189*'1 Données d''entrée'!$C$332)","v":0},{"$f":"IF('1 Données d''entrée'!$C$336=\"(=NON)\",IF(M1180<'1 Données d''entrée'!$C$334+1,0,L1189*'1 Données d''entrée'!$C$332),L1189*'1 Données d''entrée'!$C$332)","v":0},{"$f":"IF('1 Données d''entrée'!$C$336=\"(=NON)\",IF(N1180<'1 Données d''entrée'!$C$334+1,0,M1189*'1 Données d''entrée'!$C$332),M1189*'1 Données d''entrée'!$C$332)","v":0},{"$f":"IF('1 Données d''entrée'!$C$336=\"(=NON)\",IF(O1180<'1 Données d''entrée'!$C$334+1,0,N1189*'1 Données d''entrée'!$C$332),N1189*'1 Données d''entrée'!$C$332)","v":0},{"$f":"IF('1 Données d''entrée'!$C$336=\"(=NON)\",IF(P1180<'1 Données d''entrée'!$C$334+1,0,O1189*'1 Données d''entrée'!$C$332),O1189*'1 Données d''entrée'!$C$332)","v":0},{"$f":"IF('1 Données d''entrée'!$C$336=\"(=NON)\",IF(Q1180<'1 Données d''entrée'!$C$334+1,0,P1189*'1 Données d''entrée'!$C$332),P1189*'1 Données d''entrée'!$C$332)","v":0},{"$f":"IF('1 Données d''entrée'!$C$336=\"(=NON)\",IF(R1180<'1 Données d''entrée'!$C$334+1,0,Q1189*'1 Données d''entrée'!$C$332),Q1189*'1 Données d''entrée'!$C$332)","v":0},{"$f":"IF('1 Données d''entrée'!$C$336=\"(=NON)\",IF(S1180<'1 Données d''entrée'!$C$334+1,0,R1189*'1 Données d''entrée'!$C$332),R1189*'1 Données d''entrée'!$C$332)","v":0},{"$f":"IF('1 Données d''entrée'!$C$336=\"(=NON)\",IF(T1180<'1 Données d''entrée'!$C$334+1,0,S1189*'1 Données d''entrée'!$C$332),S1189*'1 Données d''entrée'!$C$332)","v":0},{"$f":"IF('1 Données d''entrée'!$C$336=\"(=NON)\",IF(U1180<'1 Données d''entrée'!$C$334+1,0,T1189*'1 Données d''entrée'!$C$332),T1189*'1 Données d''entrée'!$C$332)","v":0},{"$f":"IF('1 Données d''entrée'!$C$336=\"(=NON)\",IF(V1180<'1 Données d''entrée'!$C$334+1,0,U1189*'1 Données d''entrée'!$C$332),U1189*'1 Données d''entrée'!$C$332)","v":0}]
["Paiements d'intérêt avec des intérêts composés en cas d'absence des paiements dans la période de grâce",0,0,{"$f":"IF(D1180='1 Données d''entrée'!$C$334+1,IF('1 Données d''entrée'!$C$336=\"(=NON)\",($B1189*'1 Données d''entrée'!$C$332)*((('1 Données d''entrée'!$C$332+1)^'1 Données d''entrée'!$C$334-1)/('1 Données d''entrée'!$C$332))*(1+'1 Données d''entrée'!$C$332),0),0)","v":0},{"$f":"IF(E1180='1 Données d''entrée'!$C$334+1,IF('1 Données d''entrée'!$C$336=\"(=NON)\",($B1189*'1 Données d''entrée'!$C$332)*((('1 Données d''entrée'!$C$332+1)^'1 Données d''entrée'!$C$334-1)/('1 Données d''entrée'!$C$332))*(1+'1 Données d''entrée'!$C$332),0),0)","v":0},{"$f":"IF(F1180='1 Données d''entrée'!$C$334+1,IF('1 Données d''entrée'!$C$336=\"(=NON)\",($B1189*'1 Données d''entrée'!$C$332)*((('1 Données d''entrée'!$C$332+1)^'1 Données d''entrée'!$C$334-1)/('1 Données d''entrée'!$C$332))*(1+'1 Données d''entrée'!$C$332),0),0)","v":0},{"$f":"IF(G1180='1 Données d''entrée'!$C$334+1,IF('1 Données d''entrée'!$C$336=\"(=NON)\",($B1189*'1 Données d''entrée'!$C$332)*((('1 Données d''entrée'!$C$332+1)^'1 Données d''entrée'!$C$334-1)/('1 Données d''entrée'!$C$332))*(1+'1 Données d''entrée'!$C$332),0),0)","v":0},{"$f":"IF(H1180='1 Données d''entrée'!$C$334+1,IF('1 Données d''entrée'!$C$336=\"(=NON)\",($B1189*'1 Données d''entrée'!$C$332)*((('1 Données d''entrée'!$C$332+1)^'1 Données d''entrée'!$C$334-1)/('1 Données d''entrée'!$C$332))*(1+'1 Données d''entrée'!$C$332),0),0)","v":0},{"$f":"IF(I1180='1 Données d''entrée'!$C$334+1,IF('1 Données d''entrée'!$C$336=\"(=NON)\",($B1189*'1 Données d''entrée'!$C$332)*((('1 Données d''entrée'!$C$332+1)^'1 Données d''entrée'!$C$334-1)/('1 Données d''entrée'!$C$332))*(1+'1 Données d''entrée'!$C$332),0),0)","v":0},{"$f":"IF(J1180='1 Données d''entrée'!$C$334+1,IF('1 Données d''entrée'!$C$336=\"(=NON)\",($B1189*'1 Données d''entrée'!$C$332)*((('1 Données d''entrée'!$C$332+1)^'1 Données d''entrée'!$C$334-1)/('1 Données d''entrée'!$C$332))*(1+'1 Données d''entrée'!$C$332),0),0)","v":0},{"$f":"IF(K1180='1 Données d''entrée'!$C$334+1,IF('1 Données d''entrée'!$C$336=\"(=NON)\",($B1189*'1 Données d''entrée'!$C$332)*((('1 Données d''entrée'!$C$332+1)^'1 Données d''entrée'!$C$334-1)/('1 Données d''entrée'!$C$332))*(1+'1 Données d''entrée'!$C$332),0),0)","v":0},{"$f":"IF(L1180='1 Données d''entrée'!$C$334+1,IF('1 Données d''entrée'!$C$336=\"(=NON)\",($B1189*'1 Données d''entrée'!$C$332)*((('1 Données d''entrée'!$C$332+1)^'1 Données d''entrée'!$C$334-1)/('1 Données d''entrée'!$C$332))*(1+'1 Données d''entrée'!$C$332),0),0)","v":0},{"$f":"IF(M1180='1 Données d''entrée'!$C$334+1,IF('1 Données d''entrée'!$C$336=\"(=NON)\",($B1189*'1 Données d''entrée'!$C$332)*((('1 Données d''entrée'!$C$332+1)^'1 Données d''entrée'!$C$334-1)/('1 Données d''entrée'!$C$332))*(1+'1 Données d''entrée'!$C$332),0),0)","v":0},{"$f":"IF(N1180='1 Données d''entrée'!$C$334+1,IF('1 Données d''entrée'!$C$336=\"(=NON)\",($B1189*'1 Données d''entrée'!$C$332)*((('1 Données d''entrée'!$C$332+1)^'1 Données d''entrée'!$C$334-1)/('1 Données d''entrée'!$C$332))*(1+'1 Données d''entrée'!$C$332),0),0)","v":0},{"$f":"IF(O1180='1 Données d''entrée'!$C$334+1,IF('1 Données d''entrée'!$C$336=\"(=NON)\",($B1189*'1 Données d''entrée'!$C$332)*((('1 Données d''entrée'!$C$332+1)^'1 Données d''entrée'!$C$334-1)/('1 Données d''entrée'!$C$332))*(1+'1 Données d''entrée'!$C$332),0),0)","v":0},{"$f":"IF(P1180='1 Données d''entrée'!$C$334+1,IF('1 Données d''entrée'!$C$336=\"(=NON)\",($B1189*'1 Données d''entrée'!$C$332)*((('1 Données d''entrée'!$C$332+1)^'1 Données d''entrée'!$C$334-1)/('1 Données d''entrée'!$C$332))*(1+'1 Données d''entrée'!$C$332),0),0)","v":0},{"$f":"IF(Q1180='1 Données d''entrée'!$C$334+1,IF('1 Données d''entrée'!$C$336=\"(=NON)\",($B1189*'1 Données d''entrée'!$C$332)*((('1 Données d''entrée'!$C$332+1)^'1 Données d''entrée'!$C$334-1)/('1 Données d''entrée'!$C$332))*(1+'1 Données d''entrée'!$C$332),0),0)","v":0},{"$f":"IF(R1180='1 Données d''entrée'!$C$334+1,IF('1 Données d''entrée'!$C$336=\"(=NON)\",($B1189*'1 Données d''entrée'!$C$332)*((('1 Données d''entrée'!$C$332+1)^'1 Données d''entrée'!$C$334-1)/('1 Données d''entrée'!$C$332))*(1+'1 Données d''entrée'!$C$332),0),0)","v":0},{"$f":"IF(S1180='1 Données d''entrée'!$C$334+1,IF('1 Données d''entrée'!$C$336=\"(=NON)\",($B1189*'1 Données d''entrée'!$C$332)*((('1 Données d''entrée'!$C$332+1)^'1 Données d''entrée'!$C$334-1)/('1 Données d''entrée'!$C$332))*(1+'1 Données d''entrée'!$C$332),0),0)","v":0},{"$f":"IF(T1180='1 Données d''entrée'!$C$334+1,IF('1 Données d''entrée'!$C$336=\"(=NON)\",($B1189*'1 Données d''entrée'!$C$332)*((('1 Données d''entrée'!$C$332+1)^'1 Données d''entrée'!$C$334-1)/('1 Données d''entrée'!$C$332))*(1+'1 Données d''entrée'!$C$332),0),0)","v":0},{"$f":"IF(U1180='1 Données d''entrée'!$C$334+1,IF('1 Données d''entrée'!$C$336=\"(=NON)\",($B1189*'1 Données d''entrée'!$C$332)*((('1 Données d''entrée'!$C$332+1)^'1 Données d''entrée'!$C$334-1)/('1 Données d''entrée'!$C$332))*(1+'1 Données d''entrée'!$C$332),0),0)","v":0},{"$f":"IF(V1180='1 Données d''entrée'!$C$334+1,IF('1 Données d''entrée'!$C$336=\"(=NON)\",($B1189*'1 Données d''entrée'!$C$332)*((('1 Données d''entrée'!$C$332+1)^'1 Données d''entrée'!$C$334-1)/('1 Données d''entrée'!$C$332))*(1+'1 Données d''entrée'!$C$332),0),0)","v":0}]
["Prêt bancaire - Option 2: Remboursement du principal final",{"$f":"'1 Données d''entrée'!$B$343","v":0},"% de prêt total"]
["Réception et montant restant",{"$f":"B1174*B1193","v":0},{"$f":"B1194-C1195","v":0},0,0,0,0,0,0,0,0,0,0,0,0,0,0,0,0,0,0,0]
["Remboursement du principal",0,{"$f":"IF('1 Données d''entrée'!$C$333+'1 Données d''entrée'!$C$334=C1180,$B1194,0)","v":0},{"$f":"IF('1 Données d''entrée'!$C$333+'1 Données d''entrée'!$C$334=D1180,$B1194,0)","v":0},{"$f":"IF('1 Données d''entrée'!$C$333+'1 Données d''entrée'!$C$334=E1180,$B1194,0)","v":0},{"$f":"IF('1 Données d''entrée'!$C$333+'1 Données d''entrée'!$C$334=F1180,$B1194,0)","v":0},{"$f":"IF('1 Données d''entrée'!$C$333+'1 Données d''entrée'!$C$334=G1180,$B1194,0)","v":0},{"$f":"IF('1 Données d''entrée'!$C$333+'1 Données d''entrée'!$C$334=H1180,$B1194,0)","v":0},{"$f":"IF('1 Données d''entrée'!$C$333+'1 Données d''entrée'!$C$334=I1180,$B1194,0)","v":0},{"$f":"IF('1 Données d''entrée'!$C$333+'1 Données d''entrée'!$C$334=J1180,$B1194,0)","v":0},{"$f":"IF('1 Données d''entrée'!$C$333+'1 Données d''entrée'!$C$334=K1180,$B1194,0)","v":0},{"$f":"IF('1 Données d''entrée'!$C$333+'1 Données d''entrée'!$C$334=L1180,$B1194,0)","v":0},{"$f":"IF('1 Données d''entrée'!$C$333+'1 Données d''entrée'!$C$334=M1180,$B1194,0)","v":0},{"$f":"IF('1 Données d''entrée'!$C$333+'1 Données d''entrée'!$C$334=N1180,$B1194,0)","v":0},{"$f":"IF('1 Données d''entrée'!$C$333+'1 Données d''entrée'!$C$334=O1180,$B1194,0)","v":0},{"$f":"IF('1 Données d''entrée'!$C$333+'1 Données d''entrée'!$C$334=P1180,$B1194,0)","v":0},{"$f":"IF('1 Données d''entrée'!$C$333+'1 Données d''entrée'!$C$334=Q1180,$B1194,0)","v":0},{"$f":"IF('1 Données d''entrée'!$C$333+'1 Données d''entrée'!$C$334=R1180,$B1194,0)","v":0},{"$f":"IF('1 Données d''entrée'!$C$333+'1 Données d''entrée'!$C$334=S1180,$B1194,0)","v":0},{"$f":"IF('1 Données d''entrée'!$C$333+'1 Données d''entrée'!$C$334=T1180,$B1194,0)","v":0},{"$f":"IF('1 Données d''entrée'!$C$333+'1 Données d''entrée'!$C$334=U1180,$B1194,0)","v":0},{"$f":"IF('1 Données d''entrée'!$C$333+'1 Données d''entrée'!$C$334=V1180,$B1194,0)","v":0}]
["Paiement d'intérêts",0,{"$f":"IF('1 Données d''entrée'!$C$336=\"(=NON)\",IF(C1180<'1 Données d''entrée'!$C$334+1,0,B1194*'1 Données d''entrée'!$C$332),B1194*'1 Données d''entrée'!$C$332)","v":0},{"$f":"IF('1 Données d''entrée'!$C$336=\"(=NON)\",IF(D1180<'1 Données d''entrée'!$C$334+1,0,C1194*'1 Données d''entrée'!$C$332),C1194*'1 Données d''entrée'!$C$332)","v":0},{"$f":"IF('1 Données d''entrée'!$C$336=\"(=NON)\",IF(E1180<'1 Données d''entrée'!$C$334+1,0,D1194*'1 Données d''entrée'!$C$332),D1194*'1 Données d''entrée'!$C$332)","v":0},{"$f":"IF('1 Données d''entrée'!$C$336=\"(=NON)\",IF(F1180<'1 Données d''entrée'!$C$334+1,0,E1194*'1 Données d''entrée'!$C$332),E1194*'1 Données d''entrée'!$C$332)","v":0},{"$f":"IF('1 Données d''entrée'!$C$336=\"(=NON)\",IF(G1180<'1 Données d''entrée'!$C$334+1,0,F1194*'1 Données d''entrée'!$C$332),F1194*'1 Données d''entrée'!$C$332)","v":0},{"$f":"IF('1 Données d''entrée'!$C$336=\"(=NON)\",IF(H1180<'1 Données d''entrée'!$C$334+1,0,G1194*'1 Données d''entrée'!$C$332),G1194*'1 Données d''entrée'!$C$332)","v":0},{"$f":"IF('1 Données d''entrée'!$C$336=\"(=NON)\",IF(I1180<'1 Données d''entrée'!$C$334+1,0,H1194*'1 Données d''entrée'!$C$332),H1194*'1 Données d''entrée'!$C$332)","v":0},{"$f":"IF('1 Données d''entrée'!$C$336=\"(=NON)\",IF(J1180<'1 Données d''entrée'!$C$334+1,0,I1194*'1 Données d''entrée'!$C$332),I1194*'1 Données d''entrée'!$C$332)","v":0},{"$f":"IF('1 Données d''entrée'!$C$336=\"(=NON)\",IF(K1180<'1 Données d''entrée'!$C$334+1,0,J1194*'1 Données d''entrée'!$C$332),J1194*'1 Données d''entrée'!$C$332)","v":0},{"$f":"IF('1 Données d''entrée'!$C$336=\"(=NON)\",IF(L1180<'1 Données d''entrée'!$C$334+1,0,K1194*'1 Données d''entrée'!$C$332),K1194*'1 Données d''entrée'!$C$332)","v":0},{"$f":"IF('1 Données d''entrée'!$C$336=\"(=NON)\",IF(M1180<'1 Données d''entrée'!$C$334+1,0,L1194*'1 Données d''entrée'!$C$332),L1194*'1 Données d''entrée'!$C$332)","v":0},{"$f":"IF('1 Données d''entrée'!$C$336=\"(=NON)\",IF(N1180<'1 Données d''entrée'!$C$334+1,0,M1194*'1 Données d''entrée'!$C$332),M1194*'1 Données d''entrée'!$C$332)","v":0},{"$f":"IF('1 Données d''entrée'!$C$336=\"(=NON)\",IF(O1180<'1 Données d''entrée'!$C$334+1,0,N1194*'1 Données d''entrée'!$C$332),N1194*'1 Données d''entrée'!$C$332)","v":0},{"$f":"IF('1 Données d''entrée'!$C$336=\"(=NON)\",IF(P1180<'1 Données d''entrée'!$C$334+1,0,O1194*'1 Données d''entrée'!$C$332),O1194*'1 Données d''entrée'!$C$332)","v":0},{"$f":"IF('1 Données d''entrée'!$C$336=\"(=NON)\",IF(Q1180<'1 Données d''entrée'!$C$334+1,0,P1194*'1 Données d''entrée'!$C$332),P1194*'1 Données d''entrée'!$C$332)","v":0},{"$f":"IF('1 Données d''entrée'!$C$336=\"(=NON)\",IF(R1180<'1 Données d''entrée'!$C$334+1,0,Q1194*'1 Données d''entrée'!$C$332),Q1194*'1 Données d''entrée'!$C$332)","v":0},{"$f":"IF('1 Données d''entrée'!$C$336=\"(=NON)\",IF(S1180<'1 Données d''entrée'!$C$334+1,0,R1194*'1 Données d''entrée'!$C$332),R1194*'1 Données d''entrée'!$C$332)","v":0},{"$f":"IF('1 Données d''entrée'!$C$336=\"(=NON)\",IF(T1180<'1 Données d''entrée'!$C$334+1,0,S1194*'1 Données d''entrée'!$C$332),S1194*'1 Données d''entrée'!$C$332)","v":0},{"$f":"IF('1 Données d''entrée'!$C$336=\"(=NON)\",IF(U1180<'1 Données d''entrée'!$C$334+1,0,T1194*'1 Données d''entrée'!$C$332),T1194*'1 Données d''entrée'!$C$332)","v":0},{"$f":"IF('1 Données d''entrée'!$C$336=\"(=NON)\",IF(V1180<'1 Données d''entrée'!$C$334+1,0,U1194*'1 Données d''entrée'!$C$332),U1194*'1 Données d''entrée'!$C$332)","v":0}]
["Paiements d'intérêt avec des intérêts composés en cas d'absence des paiements dans la période de grâce",0,0,{"$f":"IF(D1180='1 Données d''entrée'!$C$334+1,IF('1 Données d''entrée'!$C$336=\"(=NON)\",($B1194*'1 Données d''entrée'!$C$332)*((('1 Données d''entrée'!$C$332+1)^'1 Données d''entrée'!$C$334-1)/('1 Données d''entrée'!$C$332))*(1+'1 Données d''entrée'!$C$332),0),0)","v":0},{"$f":"IF(E1180='1 Données d''entrée'!$C$334+1,IF('1 Données d''entrée'!$C$336=\"(=NON)\",($B1194*'1 Données d''entrée'!$C$332)*((('1 Données d''entrée'!$C$332+1)^'1 Données d''entrée'!$C$334-1)/('1 Données d''entrée'!$C$332))*(1+'1 Données d''entrée'!$C$332),0),0)","v":0},{"$f":"IF(F1180='1 Données d''entrée'!$C$334+1,IF('1 Données d''entrée'!$C$336=\"(=NON)\",($B1194*'1 Données d''entrée'!$C$332)*((('1 Données d''entrée'!$C$332+1)^'1 Données d''entrée'!$C$334-1)/('1 Données d''entrée'!$C$332))*(1+'1 Données d''entrée'!$C$332),0),0)","v":0},{"$f":"IF(G1180='1 Données d''entrée'!$C$334+1,IF('1 Données d''entrée'!$C$336=\"(=NON)\",($B1194*'1 Données d''entrée'!$C$332)*((('1 Données d''entrée'!$C$332+1)^'1 Données d''entrée'!$C$334-1)/('1 Données d''entrée'!$C$332))*(1+'1 Données d''entrée'!$C$332),0),0)","v":0},{"$f":"IF(H1180='1 Données d''entrée'!$C$334+1,IF('1 Données d''entrée'!$C$336=\"(=NON)\",($B1194*'1 Données d''entrée'!$C$332)*((('1 Données d''entrée'!$C$332+1)^'1 Données d''entrée'!$C$334-1)/('1 Données d''entrée'!$C$332))*(1+'1 Données d''entrée'!$C$332),0),0)","v":0},{"$f":"IF(I1180='1 Données d''entrée'!$C$334+1,IF('1 Données d''entrée'!$C$336=\"(=NON)\",($B1194*'1 Données d''entrée'!$C$332)*((('1 Données d''entrée'!$C$332+1)^'1 Données d''entrée'!$C$334-1)/('1 Données d''entrée'!$C$332))*(1+'1 Données d''entrée'!$C$332),0),0)","v":0},{"$f":"IF(J1180='1 Données d''entrée'!$C$334+1,IF('1 Données d''entrée'!$C$336=\"(=NON)\",($B1194*'1 Données d''entrée'!$C$332)*((('1 Données d''entrée'!$C$332+1)^'1 Données d''entrée'!$C$334-1)/('1 Données d''entrée'!$C$332))*(1+'1 Données d''entrée'!$C$332),0),0)","v":0},{"$f":"IF(K1180='1 Données d''entrée'!$C$334+1,IF('1 Données d''entrée'!$C$336=\"(=NON)\",($B1194*'1 Données d''entrée'!$C$332)*((('1 Données d''entrée'!$C$332+1)^'1 Données d''entrée'!$C$334-1)/('1 Données d''entrée'!$C$332))*(1+'1 Données d''entrée'!$C$332),0),0)","v":0},{"$f":"IF(L1180='1 Données d''entrée'!$C$334+1,IF('1 Données d''entrée'!$C$336=\"(=NON)\",($B1194*'1 Données d''entrée'!$C$332)*((('1 Données d''entrée'!$C$332+1)^'1 Données d''entrée'!$C$334-1)/('1 Données d''entrée'!$C$332))*(1+'1 Données d''entrée'!$C$332),0),0)","v":0},{"$f":"IF(M1180='1 Données d''entrée'!$C$334+1,IF('1 Données d''entrée'!$C$336=\"(=NON)\",($B1194*'1 Données d''entrée'!$C$332)*((('1 Données d''entrée'!$C$332+1)^'1 Données d''entrée'!$C$334-1)/('1 Données d''entrée'!$C$332))*(1+'1 Données d''entrée'!$C$332),0),0)","v":0},{"$f":"IF(N1180='1 Données d''entrée'!$C$334+1,IF('1 Données d''entrée'!$C$336=\"(=NON)\",($B1194*'1 Données d''entrée'!$C$332)*((('1 Données d''entrée'!$C$332+1)^'1 Données d''entrée'!$C$334-1)/('1 Données d''entrée'!$C$332))*(1+'1 Données d''entrée'!$C$332),0),0)","v":0},{"$f":"IF(O1180='1 Données d''entrée'!$C$334+1,IF('1 Données d''entrée'!$C$336=\"(=NON)\",($B1194*'1 Données d''entrée'!$C$332)*((('1 Données d''entrée'!$C$332+1)^'1 Données d''entrée'!$C$334-1)/('1 Données d''entrée'!$C$332))*(1+'1 Données d''entrée'!$C$332),0),0)","v":0},{"$f":"IF(P1180='1 Données d''entrée'!$C$334+1,IF('1 Données d''entrée'!$C$336=\"(=NON)\",($B1194*'1 Données d''entrée'!$C$332)*((('1 Données d''entrée'!$C$332+1)^'1 Données d''entrée'!$C$334-1)/('1 Données d''entrée'!$C$332))*(1+'1 Données d''entrée'!$C$332),0),0)","v":0},{"$f":"IF(Q1180='1 Données d''entrée'!$C$334+1,IF('1 Données d''entrée'!$C$336=\"(=NON)\",($B1194*'1 Données d''entrée'!$C$332)*((('1 Données d''entrée'!$C$332+1)^'1 Données d''entrée'!$C$334-1)/('1 Données d''entrée'!$C$332))*(1+'1 Données d''entrée'!$C$332),0),0)","v":0},{"$f":"IF(R1180='1 Données d''entrée'!$C$334+1,IF('1 Données d''entrée'!$C$336=\"(=NON)\",($B1194*'1 Données d''entrée'!$C$332)*((('1 Données d''entrée'!$C$332+1)^'1 Données d''entrée'!$C$334-1)/('1 Données d''entrée'!$C$332))*(1+'1 Données d''entrée'!$C$332),0),0)","v":0},{"$f":"IF(S1180='1 Données d''entrée'!$C$334+1,IF('1 Données d''entrée'!$C$336=\"(=NON)\",($B1194*'1 Données d''entrée'!$C$332)*((('1 Données d''entrée'!$C$332+1)^'1 Données d''entrée'!$C$334-1)/('1 Données d''entrée'!$C$332))*(1+'1 Données d''entrée'!$C$332),0),0)","v":0},{"$f":"IF(T1180='1 Données d''entrée'!$C$334+1,IF('1 Données d''entrée'!$C$336=\"(=NON)\",($B1194*'1 Données d''entrée'!$C$332)*((('1 Données d''entrée'!$C$332+1)^'1 Données d''entrée'!$C$334-1)/('1 Données d''entrée'!$C$332))*(1+'1 Données d''entrée'!$C$332),0),0)","v":0},{"$f":"IF(U1180='1 Données d''entrée'!$C$334+1,IF('1 Données d''entrée'!$C$336=\"(=NON)\",($B1194*'1 Données d''entrée'!$C$332)*((('1 Données d''entrée'!$C$332+1)^'1 Données d''entrée'!$C$334-1)/('1 Données d''entrée'!$C$332))*(1+'1 Données d''entrée'!$C$332),0),0)","v":0},{"$f":"IF(V1180='1 Données d''entrée'!$C$334+1,IF('1 Données d''entrée'!$C$336=\"(=NON)\",($B1194*'1 Données d''entrée'!$C$332)*((('1 Données d''entrée'!$C$332+1)^'1 Données d''entrée'!$C$334-1)/('1 Données d''entrée'!$C$332))*(1+'1 Données d''entrée'!$C$332),0),0)","v":0}]
["Prêt bancaire - Option 3: Remboursement vers l'annuité constante",{"$f":"'1 Données d''entrée'!$B$344","v":0},"% de prêt total"]
["Réception ",{"$f":"B1174*B1198","v":0},0,0,0,0,0,0,0,0,0,0,0,0,0,0,0,0,0,0,0,0]
["Remboursement vers l'annuité constante",{"$f":"IF(B1180<'1 Données d''entrée'!$C$334+1,0,IF(B1180<'1 Données d''entrée'!$C$333+'1 Données d''entrée'!$C$334+1,$B1199*('1 Données d''entrée'!$C$332*(1+'1 Données d''entrée'!$C$332)^'1 Données d''entrée'!$C$333)/((1+'1 Données d''entrée'!$C$332)^'1 Données d''entrée'!$C$333-1),0))","v":0},{"$f":"IF(C1180<'1 Données d''entrée'!$C$334+1,0,IF(C1180<'1 Données d''entrée'!$C$333+'1 Données d''entrée'!$C$334+1,$B1199*('1 Données d''entrée'!$C$332*(1+'1 Données d''entrée'!$C$332)^'1 Données d''entrée'!$C$333)/((1+'1 Données d''entrée'!$C$332)^'1 Données d''entrée'!$C$333-1),0))","v":0},{"$f":"IF(D1180<'1 Données d''entrée'!$C$334+1,0,IF(D1180<'1 Données d''entrée'!$C$333+'1 Données d''entrée'!$C$334+1,$B1199*('1 Données d''entrée'!$C$332*(1+'1 Données d''entrée'!$C$332)^'1 Données d''entrée'!$C$333)/((1+'1 Données d''entrée'!$C$332)^'1 Données d''entrée'!$C$333-1),0))","v":0},{"$f":"IF(E1180<'1 Données d''entrée'!$C$334+1,0,IF(E1180<'1 Données d''entrée'!$C$333+'1 Données d''entrée'!$C$334+1,$B1199*('1 Données d''entrée'!$C$332*(1+'1 Données d''entrée'!$C$332)^'1 Données d''entrée'!$C$333)/((1+'1 Données d''entrée'!$C$332)^'1 Données d''entrée'!$C$333-1),0))","v":0},{"$f":"IF(F1180<'1 Données d''entrée'!$C$334+1,0,IF(F1180<'1 Données d''entrée'!$C$333+'1 Données d''entrée'!$C$334+1,$B1199*('1 Données d''entrée'!$C$332*(1+'1 Données d''entrée'!$C$332)^'1 Données d''entrée'!$C$333)/((1+'1 Données d''entrée'!$C$332)^'1 Données d''entrée'!$C$333-1),0))","v":0},{"$f":"IF(G1180<'1 Données d''entrée'!$C$334+1,0,IF(G1180<'1 Données d''entrée'!$C$333+'1 Données d''entrée'!$C$334+1,$B1199*('1 Données d''entrée'!$C$332*(1+'1 Données d''entrée'!$C$332)^'1 Données d''entrée'!$C$333)/((1+'1 Données d''entrée'!$C$332)^'1 Données d''entrée'!$C$333-1),0))","v":0},{"$f":"IF(H1180<'1 Données d''entrée'!$C$334+1,0,IF(H1180<'1 Données d''entrée'!$C$333+'1 Données d''entrée'!$C$334+1,$B1199*('1 Données d''entrée'!$C$332*(1+'1 Données d''entrée'!$C$332)^'1 Données d''entrée'!$C$333)/((1+'1 Données d''entrée'!$C$332)^'1 Données d''entrée'!$C$333-1),0))","v":0},{"$f":"IF(I1180<'1 Données d''entrée'!$C$334+1,0,IF(I1180<'1 Données d''entrée'!$C$333+'1 Données d''entrée'!$C$334+1,$B1199*('1 Données d''entrée'!$C$332*(1+'1 Données d''entrée'!$C$332)^'1 Données d''entrée'!$C$333)/((1+'1 Données d''entrée'!$C$332)^'1 Données d''entrée'!$C$333-1),0))","v":0},{"$f":"IF(J1180<'1 Données d''entrée'!$C$334+1,0,IF(J1180<'1 Données d''entrée'!$C$333+'1 Données d''entrée'!$C$334+1,$B1199*('1 Données d''entrée'!$C$332*(1+'1 Données d''entrée'!$C$332)^'1 Données d''entrée'!$C$333)/((1+'1 Données d''entrée'!$C$332)^'1 Données d''entrée'!$C$333-1),0))","v":0},{"$f":"IF(K1180<'1 Données d''entrée'!$C$334+1,0,IF(K1180<'1 Données d''entrée'!$C$333+'1 Données d''entrée'!$C$334+1,$B1199*('1 Données d''entrée'!$C$332*(1+'1 Données d''entrée'!$C$332)^'1 Données d''entrée'!$C$333)/((1+'1 Données d''entrée'!$C$332)^'1 Données d''entrée'!$C$333-1),0))","v":0},{"$f":"IF(L1180<'1 Données d''entrée'!$C$334+1,0,IF(L1180<'1 Données d''entrée'!$C$333+'1 Données d''entrée'!$C$334+1,$B1199*('1 Données d''entrée'!$C$332*(1+'1 Données d''entrée'!$C$332)^'1 Données d''entrée'!$C$333)/((1+'1 Données d''entrée'!$C$332)^'1 Données d''entrée'!$C$333-1),0))","v":0},{"$f":"IF(M1180<'1 Données d''entrée'!$C$334+1,0,IF(M1180<'1 Données d''entrée'!$C$333+'1 Données d''entrée'!$C$334+1,$B1199*('1 Données d''entrée'!$C$332*(1+'1 Données d''entrée'!$C$332)^'1 Données d''entrée'!$C$333)/((1+'1 Données d''entrée'!$C$332)^'1 Données d''entrée'!$C$333-1),0))","v":0},{"$f":"IF(N1180<'1 Données d''entrée'!$C$334+1,0,IF(N1180<'1 Données d''entrée'!$C$333+'1 Données d''entrée'!$C$334+1,$B1199*('1 Données d''entrée'!$C$332*(1+'1 Données d''entrée'!$C$332)^'1 Données d''entrée'!$C$333)/((1+'1 Données d''entrée'!$C$332)^'1 Données d''entrée'!$C$333-1),0))","v":0},{"$f":"IF(O1180<'1 Données d''entrée'!$C$334+1,0,IF(O1180<'1 Données d''entrée'!$C$333+'1 Données d''entrée'!$C$334+1,$B1199*('1 Données d''entrée'!$C$332*(1+'1 Données d''entrée'!$C$332)^'1 Données d''entrée'!$C$333)/((1+'1 Données d''entrée'!$C$332)^'1 Données d''entrée'!$C$333-1),0))","v":0},{"$f":"IF(P1180<'1 Données d''entrée'!$C$334+1,0,IF(P1180<'1 Données d''entrée'!$C$333+'1 Données d''entrée'!$C$334+1,$B1199*('1 Données d''entrée'!$C$332*(1+'1 Données d''entrée'!$C$332)^'1 Données d''entrée'!$C$333)/((1+'1 Données d''entrée'!$C$332)^'1 Données d''entrée'!$C$333-1),0))","v":0},{"$f":"IF(Q1180<'1 Données d''entrée'!$C$334+1,0,IF(Q1180<'1 Données d''entrée'!$C$333+'1 Données d''entrée'!$C$334+1,$B1199*('1 Données d''entrée'!$C$332*(1+'1 Données d''entrée'!$C$332)^'1 Données d''entrée'!$C$333)/((1+'1 Données d''entrée'!$C$332)^'1 Données d''entrée'!$C$333-1),0))","v":0},{"$f":"IF(R1180<'1 Données d''entrée'!$C$334+1,0,IF(R1180<'1 Données d''entrée'!$C$333+'1 Données d''entrée'!$C$334+1,$B1199*('1 Données d''entrée'!$C$332*(1+'1 Données d''entrée'!$C$332)^'1 Données d''entrée'!$C$333)/((1+'1 Données d''entrée'!$C$332)^'1 Données d''entrée'!$C$333-1),0))","v":0},{"$f":"IF(S1180<'1 Données d''entrée'!$C$334+1,0,IF(S1180<'1 Données d''entrée'!$C$333+'1 Données d''entrée'!$C$334+1,$B1199*('1 Données d''entrée'!$C$332*(1+'1 Données d''entrée'!$C$332)^'1 Données d''entrée'!$C$333)/((1+'1 Données d''entrée'!$C$332)^'1 Données d''entrée'!$C$333-1),0))","v":0},{"$f":"IF(T1180<'1 Données d''entrée'!$C$334+1,0,IF(T1180<'1 Données d''entrée'!$C$333+'1 Données d''entrée'!$C$334+1,$B1199*('1 Données d''entrée'!$C$332*(1+'1 Données d''entrée'!$C$332)^'1 Données d''entrée'!$C$333)/((1+'1 Données d''entrée'!$C$332)^'1 Données d''entrée'!$C$333-1),0))","v":0},{"$f":"IF(U1180<'1 Données d''entrée'!$C$334+1,0,IF(U1180<'1 Données d''entrée'!$C$333+'1 Données d''entrée'!$C$334+1,$B1199*('1 Données d''entrée'!$C$332*(1+'1 Données d''entrée'!$C$332)^'1 Données d''entrée'!$C$333)/((1+'1 Données d''entrée'!$C$332)^'1 Données d''entrée'!$C$333-1),0))","v":0},{"$f":"IF(V1180<'1 Données d''entrée'!$C$334+1,0,IF(V1180<'1 Données d''entrée'!$C$333+'1 Données d''entrée'!$C$334+1,$B1199*('1 Données d''entrée'!$C$332*(1+'1 Données d''entrée'!$C$332)^'1 Données d''entrée'!$C$333)/((1+'1 Données d''entrée'!$C$332)^'1 Données d''entrée'!$C$333-1),0))","v":0}]
["Paiement d'intérêt décroissant inclu dans l'annuité constante",0,{"$f":"IF('1 Données d''entrée'!$C$336=\"(=NON)\",IF(C1200>0,$B1199*((('1 Données d''entrée'!$C$332+1)^'1 Données d''entrée'!$C$333)-(1+'1 Données d''entrée'!$C$332)^('6 Financement'!C$54-1-'1 Données d''entrée'!$C$334))/((1+'1 Données d''entrée'!$C$332)^'1 Données d''entrée'!$C$333-1)*'1 Données d''entrée'!$C$332,0),IF(C1180<'1 Données d''entrée'!$C$334+1,'1 Données d''entrée'!$C$332*'6 Financement'!$B1199,IF(C1200>0,$B$73*((('1 Données d''entrée'!$C$332+1)^'1 Données d''entrée'!$C$333)-(1+'1 Données d''entrée'!$C$332)^('6 Financement'!C$54-1-'1 Données d''entrée'!$C$334))/((1+'1 Données d''entrée'!$C$332)^'1 Données d''entrée'!$C$333-1)*'1 Données d''entrée'!$C$332,0)))","v":0},{"$f":"IF('1 Données d''entrée'!$C$336=\"(=NON)\",IF(D1200>0,$B1199*((('1 Données d''entrée'!$C$332+1)^'1 Données d''entrée'!$C$333)-(1+'1 Données d''entrée'!$C$332)^('6 Financement'!D$54-1-'1 Données d''entrée'!$C$334))/((1+'1 Données d''entrée'!$C$332)^'1 Données d''entrée'!$C$333-1)*'1 Données d''entrée'!$C$332,0),IF(D1180<'1 Données d''entrée'!$C$334+1,'1 Données d''entrée'!$C$332*'6 Financement'!$B1199,IF(D1200>0,$B$73*((('1 Données d''entrée'!$C$332+1)^'1 Données d''entrée'!$C$333)-(1+'1 Données d''entrée'!$C$332)^('6 Financement'!D$54-1-'1 Données d''entrée'!$C$334))/((1+'1 Données d''entrée'!$C$332)^'1 Données d''entrée'!$C$333-1)*'1 Données d''entrée'!$C$332,0)))","v":0},{"$f":"IF('1 Données d''entrée'!$C$336=\"(=NON)\",IF(E1200>0,$B1199*((('1 Données d''entrée'!$C$332+1)^'1 Données d''entrée'!$C$333)-(1+'1 Données d''entrée'!$C$332)^('6 Financement'!E$54-1-'1 Données d''entrée'!$C$334))/((1+'1 Données d''entrée'!$C$332)^'1 Données d''entrée'!$C$333-1)*'1 Données d''entrée'!$C$332,0),IF(E1180<'1 Données d''entrée'!$C$334+1,'1 Données d''entrée'!$C$332*'6 Financement'!$B1199,IF(E1200>0,$B$73*((('1 Données d''entrée'!$C$332+1)^'1 Données d''entrée'!$C$333)-(1+'1 Données d''entrée'!$C$332)^('6 Financement'!E$54-1-'1 Données d''entrée'!$C$334))/((1+'1 Données d''entrée'!$C$332)^'1 Données d''entrée'!$C$333-1)*'1 Données d''entrée'!$C$332,0)))","v":0},{"$f":"IF('1 Données d''entrée'!$C$336=\"(=NON)\",IF(F1200>0,$B1199*((('1 Données d''entrée'!$C$332+1)^'1 Données d''entrée'!$C$333)-(1+'1 Données d''entrée'!$C$332)^('6 Financement'!F$54-1-'1 Données d''entrée'!$C$334))/((1+'1 Données d''entrée'!$C$332)^'1 Données d''entrée'!$C$333-1)*'1 Données d''entrée'!$C$332,0),IF(F1180<'1 Données d''entrée'!$C$334+1,'1 Données d''entrée'!$C$332*'6 Financement'!$B1199,IF(F1200>0,$B$73*((('1 Données d''entrée'!$C$332+1)^'1 Données d''entrée'!$C$333)-(1+'1 Données d''entrée'!$C$332)^('6 Financement'!F$54-1-'1 Données d''entrée'!$C$334))/((1+'1 Données d''entrée'!$C$332)^'1 Données d''entrée'!$C$333-1)*'1 Données d''entrée'!$C$332,0)))","v":0},{"$f":"IF('1 Données d''entrée'!$C$336=\"(=NON)\",IF(G1200>0,$B1199*((('1 Données d''entrée'!$C$332+1)^'1 Données d''entrée'!$C$333)-(1+'1 Données d''entrée'!$C$332)^('6 Financement'!G$54-1-'1 Données d''entrée'!$C$334))/((1+'1 Données d''entrée'!$C$332)^'1 Données d''entrée'!$C$333-1)*'1 Données d''entrée'!$C$332,0),IF(G1180<'1 Données d''entrée'!$C$334+1,'1 Données d''entrée'!$C$332*'6 Financement'!$B1199,IF(G1200>0,$B$73*((('1 Données d''entrée'!$C$332+1)^'1 Données d''entrée'!$C$333)-(1+'1 Données d''entrée'!$C$332)^('6 Financement'!G$54-1-'1 Données d''entrée'!$C$334))/((1+'1 Données d''entrée'!$C$332)^'1 Données d''entrée'!$C$333-1)*'1 Données d''entrée'!$C$332,0)))","v":0},{"$f":"IF('1 Données d''entrée'!$C$336=\"(=NON)\",IF(H1200>0,$B1199*((('1 Données d''entrée'!$C$332+1)^'1 Données d''entrée'!$C$333)-(1+'1 Données d''entrée'!$C$332)^('6 Financement'!H$54-1-'1 Données d''entrée'!$C$334))/((1+'1 Données d''entrée'!$C$332)^'1 Données d''entrée'!$C$333-1)*'1 Données d''entrée'!$C$332,0),IF(H1180<'1 Données d''entrée'!$C$334+1,'1 Données d''entrée'!$C$332*'6 Financement'!$B1199,IF(H1200>0,$B$73*((('1 Données d''entrée'!$C$332+1)^'1 Données d''entrée'!$C$333)-(1+'1 Données d''entrée'!$C$332)^('6 Financement'!H$54-1-'1 Données d''entrée'!$C$334))/((1+'1 Données d''entrée'!$C$332)^'1 Données d''entrée'!$C$333-1)*'1 Données d''entrée'!$C$332,0)))","v":0},{"$f":"IF('1 Données d''entrée'!$C$336=\"(=NON)\",IF(I1200>0,$B1199*((('1 Données d''entrée'!$C$332+1)^'1 Données d''entrée'!$C$333)-(1+'1 Données d''entrée'!$C$332)^('6 Financement'!I$54-1-'1 Données d''entrée'!$C$334))/((1+'1 Données d''entrée'!$C$332)^'1 Données d''entrée'!$C$333-1)*'1 Données d''entrée'!$C$332,0),IF(I1180<'1 Données d''entrée'!$C$334+1,'1 Données d''entrée'!$C$332*'6 Financement'!$B1199,IF(I1200>0,$B$73*((('1 Données d''entrée'!$C$332+1)^'1 Données d''entrée'!$C$333)-(1+'1 Données d''entrée'!$C$332)^('6 Financement'!I$54-1-'1 Données d''entrée'!$C$334))/((1+'1 Données d''entrée'!$C$332)^'1 Données d''entrée'!$C$333-1)*'1 Données d''entrée'!$C$332,0)))","v":0},{"$f":"IF('1 Données d''entrée'!$C$336=\"(=NON)\",IF(J1200>0,$B1199*((('1 Données d''entrée'!$C$332+1)^'1 Données d''entrée'!$C$333)-(1+'1 Données d''entrée'!$C$332)^('6 Financement'!J$54-1-'1 Données d''entrée'!$C$334))/((1+'1 Données d''entrée'!$C$332)^'1 Données d''entrée'!$C$333-1)*'1 Données d''entrée'!$C$332,0),IF(J1180<'1 Données d''entrée'!$C$334+1,'1 Données d''entrée'!$C$332*'6 Financement'!$B1199,IF(J1200>0,$B$73*((('1 Données d''entrée'!$C$332+1)^'1 Données d''entrée'!$C$333)-(1+'1 Données d''entrée'!$C$332)^('6 Financement'!J$54-1-'1 Données d''entrée'!$C$334))/((1+'1 Données d''entrée'!$C$332)^'1 Données d''entrée'!$C$333-1)*'1 Données d''entrée'!$C$332,0)))","v":0},{"$f":"IF('1 Données d''entrée'!$C$336=\"(=NON)\",IF(K1200>0,$B1199*((('1 Données d''entrée'!$C$332+1)^'1 Données d''entrée'!$C$333)-(1+'1 Données d''entrée'!$C$332)^('6 Financement'!K$54-1-'1 Données d''entrée'!$C$334))/((1+'1 Données d''entrée'!$C$332)^'1 Données d''entrée'!$C$333-1)*'1 Données d''entrée'!$C$332,0),IF(K1180<'1 Données d''entrée'!$C$334+1,'1 Données d''entrée'!$C$332*'6 Financement'!$B1199,IF(K1200>0,$B$73*((('1 Données d''entrée'!$C$332+1)^'1 Données d''entrée'!$C$333)-(1+'1 Données d''entrée'!$C$332)^('6 Financement'!K$54-1-'1 Données d''entrée'!$C$334))/((1+'1 Données d''entrée'!$C$332)^'1 Données d''entrée'!$C$333-1)*'1 Données d''entrée'!$C$332,0)))","v":0},{"$f":"IF('1 Données d''entrée'!$C$336=\"(=NON)\",IF(L1200>0,$B1199*((('1 Données d''entrée'!$C$332+1)^'1 Données d''entrée'!$C$333)-(1+'1 Données d''entrée'!$C$332)^('6 Financement'!L$54-1-'1 Données d''entrée'!$C$334))/((1+'1 Données d''entrée'!$C$332)^'1 Données d''entrée'!$C$333-1)*'1 Données d''entrée'!$C$332,0),IF(L1180<'1 Données d''entrée'!$C$334+1,'1 Données d''entrée'!$C$332*'6 Financement'!$B1199,IF(L1200>0,$B$73*((('1 Données d''entrée'!$C$332+1)^'1 Données d''entrée'!$C$333)-(1+'1 Données d''entrée'!$C$332)^('6 Financement'!L$54-1-'1 Données d''entrée'!$C$334))/((1+'1 Données d''entrée'!$C$332)^'1 Données d''entrée'!$C$333-1)*'1 Données d''entrée'!$C$332,0)))","v":0},{"$f":"IF('1 Données d''entrée'!$C$336=\"(=NON)\",IF(M1200>0,$B1199*((('1 Données d''entrée'!$C$332+1)^'1 Données d''entrée'!$C$333)-(1+'1 Données d''entrée'!$C$332)^('6 Financement'!M$54-1-'1 Données d''entrée'!$C$334))/((1+'1 Données d''entrée'!$C$332)^'1 Données d''entrée'!$C$333-1)*'1 Données d''entrée'!$C$332,0),IF(M1180<'1 Données d''entrée'!$C$334+1,'1 Données d''entrée'!$C$332*'6 Financement'!$B1199,IF(M1200>0,$B$73*((('1 Données d''entrée'!$C$332+1)^'1 Données d''entrée'!$C$333)-(1+'1 Données d''entrée'!$C$332)^('6 Financement'!M$54-1-'1 Données d''entrée'!$C$334))/((1+'1 Données d''entrée'!$C$332)^'1 Données d''entrée'!$C$333-1)*'1 Données d''entrée'!$C$332,0)))","v":0},{"$f":"IF('1 Données d''entrée'!$C$336=\"(=NON)\",IF(N1200>0,$B1199*((('1 Données d''entrée'!$C$332+1)^'1 Données d''entrée'!$C$333)-(1+'1 Données d''entrée'!$C$332)^('6 Financement'!N$54-1-'1 Données d''entrée'!$C$334))/((1+'1 Données d''entrée'!$C$332)^'1 Données d''entrée'!$C$333-1)*'1 Données d''entrée'!$C$332,0),IF(N1180<'1 Données d''entrée'!$C$334+1,'1 Données d''entrée'!$C$332*'6 Financement'!$B1199,IF(N1200>0,$B$73*((('1 Données d''entrée'!$C$332+1)^'1 Données d''entrée'!$C$333)-(1+'1 Données d''entrée'!$C$332)^('6 Financement'!N$54-1-'1 Données d''entrée'!$C$334))/((1+'1 Données d''entrée'!$C$332)^'1 Données d''entrée'!$C$333-1)*'1 Données d''entrée'!$C$332,0)))","v":0},{"$f":"IF('1 Données d''entrée'!$C$336=\"(=NON)\",IF(O1200>0,$B1199*((('1 Données d''entrée'!$C$332+1)^'1 Données d''entrée'!$C$333)-(1+'1 Données d''entrée'!$C$332)^('6 Financement'!O$54-1-'1 Données d''entrée'!$C$334))/((1+'1 Données d''entrée'!$C$332)^'1 Données d''entrée'!$C$333-1)*'1 Données d''entrée'!$C$332,0),IF(O1180<'1 Données d''entrée'!$C$334+1,'1 Données d''entrée'!$C$332*'6 Financement'!$B1199,IF(O1200>0,$B$73*((('1 Données d''entrée'!$C$332+1)^'1 Données d''entrée'!$C$333)-(1+'1 Données d''entrée'!$C$332)^('6 Financement'!O$54-1-'1 Données d''entrée'!$C$334))/((1+'1 Données d''entrée'!$C$332)^'1 Données d''entrée'!$C$333-1)*'1 Données d''entrée'!$C$332,0)))","v":0},{"$f":"IF('1 Données d''entrée'!$C$336=\"(=NON)\",IF(P1200>0,$B1199*((('1 Données d''entrée'!$C$332+1)^'1 Données d''entrée'!$C$333)-(1+'1 Données d''entrée'!$C$332)^('6 Financement'!P$54-1-'1 Données d''entrée'!$C$334))/((1+'1 Données d''entrée'!$C$332)^'1 Données d''entrée'!$C$333-1)*'1 Données d''entrée'!$C$332,0),IF(P1180<'1 Données d''entrée'!$C$334+1,'1 Données d''entrée'!$C$332*'6 Financement'!$B1199,IF(P1200>0,$B$73*((('1 Données d''entrée'!$C$332+1)^'1 Données d''entrée'!$C$333)-(1+'1 Données d''entrée'!$C$332)^('6 Financement'!P$54-1-'1 Données d''entrée'!$C$334))/((1+'1 Données d''entrée'!$C$332)^'1 Données d''entrée'!$C$333-1)*'1 Données d''entrée'!$C$332,0)))","v":0},{"$f":"IF('1 Données d''entrée'!$C$336=\"(=NON)\",IF(Q1200>0,$B1199*((('1 Données d''entrée'!$C$332+1)^'1 Données d''entrée'!$C$333)-(1+'1 Données d''entrée'!$C$332)^('6 Financement'!Q$54-1-'1 Données d''entrée'!$C$334))/((1+'1 Données d''entrée'!$C$332)^'1 Données d''entrée'!$C$333-1)*'1 Données d''entrée'!$C$332,0),IF(Q1180<'1 Données d''entrée'!$C$334+1,'1 Données d''entrée'!$C$332*'6 Financement'!$B1199,IF(Q1200>0,$B$73*((('1 Données d''entrée'!$C$332+1)^'1 Données d''entrée'!$C$333)-(1+'1 Données d''entrée'!$C$332)^('6 Financement'!Q$54-1-'1 Données d''entrée'!$C$334))/((1+'1 Données d''entrée'!$C$332)^'1 Données d''entrée'!$C$333-1)*'1 Données d''entrée'!$C$332,0)))","v":0},{"$f":"IF('1 Données d''entrée'!$C$336=\"(=NON)\",IF(R1200>0,$B1199*((('1 Données d''entrée'!$C$332+1)^'1 Données d''entrée'!$C$333)-(1+'1 Données d''entrée'!$C$332)^('6 Financement'!R$54-1-'1 Données d''entrée'!$C$334))/((1+'1 Données d''entrée'!$C$332)^'1 Données d''entrée'!$C$333-1)*'1 Données d''entrée'!$C$332,0),IF(R1180<'1 Données d''entrée'!$C$334+1,'1 Données d''entrée'!$C$332*'6 Financement'!$B1199,IF(R1200>0,$B$73*((('1 Données d''entrée'!$C$332+1)^'1 Données d''entrée'!$C$333)-(1+'1 Données d''entrée'!$C$332)^('6 Financement'!R$54-1-'1 Données d''entrée'!$C$334))/((1+'1 Données d''entrée'!$C$332)^'1 Données d''entrée'!$C$333-1)*'1 Données d''entrée'!$C$332,0)))","v":0},{"$f":"IF('1 Données d''entrée'!$C$336=\"(=NON)\",IF(S1200>0,$B1199*((('1 Données d''entrée'!$C$332+1)^'1 Données d''entrée'!$C$333)-(1+'1 Données d''entrée'!$C$332)^('6 Financement'!S$54-1-'1 Données d''entrée'!$C$334))/((1+'1 Données d''entrée'!$C$332)^'1 Données d''entrée'!$C$333-1)*'1 Données d''entrée'!$C$332,0),IF(S1180<'1 Données d''entrée'!$C$334+1,'1 Données d''entrée'!$C$332*'6 Financement'!$B1199,IF(S1200>0,$B$73*((('1 Données d''entrée'!$C$332+1)^'1 Données d''entrée'!$C$333)-(1+'1 Données d''entrée'!$C$332)^('6 Financement'!S$54-1-'1 Données d''entrée'!$C$334))/((1+'1 Données d''entrée'!$C$332)^'1 Données d''entrée'!$C$333-1)*'1 Données d''entrée'!$C$332,0)))","v":0},{"$f":"IF('1 Données d''entrée'!$C$336=\"(=NON)\",IF(T1200>0,$B1199*((('1 Données d''entrée'!$C$332+1)^'1 Données d''entrée'!$C$333)-(1+'1 Données d''entrée'!$C$332)^('6 Financement'!T$54-1-'1 Données d''entrée'!$C$334))/((1+'1 Données d''entrée'!$C$332)^'1 Données d''entrée'!$C$333-1)*'1 Données d''entrée'!$C$332,0),IF(T1180<'1 Données d''entrée'!$C$334+1,'1 Données d''entrée'!$C$332*'6 Financement'!$B1199,IF(T1200>0,$B$73*((('1 Données d''entrée'!$C$332+1)^'1 Données d''entrée'!$C$333)-(1+'1 Données d''entrée'!$C$332)^('6 Financement'!T$54-1-'1 Données d''entrée'!$C$334))/((1+'1 Données d''entrée'!$C$332)^'1 Données d''entrée'!$C$333-1)*'1 Données d''entrée'!$C$332,0)))","v":0},{"$f":"IF('1 Données d''entrée'!$C$336=\"(=NON)\",IF(U1200>0,$B1199*((('1 Données d''entrée'!$C$332+1)^'1 Données d''entrée'!$C$333)-(1+'1 Données d''entrée'!$C$332)^('6 Financement'!U$54-1-'1 Données d''entrée'!$C$334))/((1+'1 Données d''entrée'!$C$332)^'1 Données d''entrée'!$C$333-1)*'1 Données d''entrée'!$C$332,0),IF(U1180<'1 Données d''entrée'!$C$334+1,'1 Données d''entrée'!$C$332*'6 Financement'!$B1199,IF(U1200>0,$B$73*((('1 Données d''entrée'!$C$332+1)^'1 Données d''entrée'!$C$333)-(1+'1 Données d''entrée'!$C$332)^('6 Financement'!U$54-1-'1 Données d''entrée'!$C$334))/((1+'1 Données d''entrée'!$C$332)^'1 Données d''entrée'!$C$333-1)*'1 Données d''entrée'!$C$332,0)))","v":0},{"$f":"IF('1 Données d''entrée'!$C$336=\"(=NON)\",IF(V1200>0,$B1199*((('1 Données d''entrée'!$C$332+1)^'1 Données d''entrée'!$C$333)-(1+'1 Données d''entrée'!$C$332)^('6 Financement'!V$54-1-'1 Données d''entrée'!$C$334))/((1+'1 Données d''entrée'!$C$332)^'1 Données d''entrée'!$C$333-1)*'1 Données d''entrée'!$C$332,0),IF(V1180<'1 Données d''entrée'!$C$334+1,'1 Données d''entrée'!$C$332*'6 Financement'!$B1199,IF(V1200>0,$B$73*((('1 Données d''entrée'!$C$332+1)^'1 Données d''entrée'!$C$333)-(1+'1 Données d''entrée'!$C$332)^('6 Financement'!V$54-1-'1 Données d''entrée'!$C$334))/((1+'1 Données d''entrée'!$C$332)^'1 Données d''entrée'!$C$333-1)*'1 Données d''entrée'!$C$332,0)))","v":0}]
["Paiements d'intérêt avec des intérêts composés en cas d'absence des paiements dans la période de grâce",0,0,{"$f":"IF(D1180='1 Données d''entrée'!$C$334+1,IF('1 Données d''entrée'!$C$336=\"(=NON)\",($B1199*'1 Données d''entrée'!$C$332)*((('1 Données d''entrée'!$C$332+1)^'1 Données d''entrée'!$C$334-1)/('1 Données d''entrée'!$C$332))*(1+'1 Données d''entrée'!$C$332),0),0)","v":0},{"$f":"IF(E1180='1 Données d''entrée'!$C$334+1,IF('1 Données d''entrée'!$C$336=\"(=NON)\",($B1199*'1 Données d''entrée'!$C$332)*((('1 Données d''entrée'!$C$332+1)^'1 Données d''entrée'!$C$334-1)/('1 Données d''entrée'!$C$332))*(1+'1 Données d''entrée'!$C$332),0),0)","v":0},{"$f":"IF(F1180='1 Données d''entrée'!$C$334+1,IF('1 Données d''entrée'!$C$336=\"(=NON)\",($B1199*'1 Données d''entrée'!$C$332)*((('1 Données d''entrée'!$C$332+1)^'1 Données d''entrée'!$C$334-1)/('1 Données d''entrée'!$C$332))*(1+'1 Données d''entrée'!$C$332),0),0)","v":0},{"$f":"IF(G1180='1 Données d''entrée'!$C$334+1,IF('1 Données d''entrée'!$C$336=\"(=NON)\",($B1199*'1 Données d''entrée'!$C$332)*((('1 Données d''entrée'!$C$332+1)^'1 Données d''entrée'!$C$334-1)/('1 Données d''entrée'!$C$332))*(1+'1 Données d''entrée'!$C$332),0),0)","v":0},{"$f":"IF(H1180='1 Données d''entrée'!$C$334+1,IF('1 Données d''entrée'!$C$336=\"(=NON)\",($B1199*'1 Données d''entrée'!$C$332)*((('1 Données d''entrée'!$C$332+1)^'1 Données d''entrée'!$C$334-1)/('1 Données d''entrée'!$C$332))*(1+'1 Données d''entrée'!$C$332),0),0)","v":0},{"$f":"IF(I1180='1 Données d''entrée'!$C$334+1,IF('1 Données d''entrée'!$C$336=\"(=NON)\",($B1199*'1 Données d''entrée'!$C$332)*((('1 Données d''entrée'!$C$332+1)^'1 Données d''entrée'!$C$334-1)/('1 Données d''entrée'!$C$332))*(1+'1 Données d''entrée'!$C$332),0),0)","v":0},{"$f":"IF(J1180='1 Données d''entrée'!$C$334+1,IF('1 Données d''entrée'!$C$336=\"(=NON)\",($B1199*'1 Données d''entrée'!$C$332)*((('1 Données d''entrée'!$C$332+1)^'1 Données d''entrée'!$C$334-1)/('1 Données d''entrée'!$C$332))*(1+'1 Données d''entrée'!$C$332),0),0)","v":0},{"$f":"IF(K1180='1 Données d''entrée'!$C$334+1,IF('1 Données d''entrée'!$C$336=\"(=NON)\",($B1199*'1 Données d''entrée'!$C$332)*((('1 Données d''entrée'!$C$332+1)^'1 Données d''entrée'!$C$334-1)/('1 Données d''entrée'!$C$332))*(1+'1 Données d''entrée'!$C$332),0),0)","v":0},{"$f":"IF(L1180='1 Données d''entrée'!$C$334+1,IF('1 Données d''entrée'!$C$336=\"(=NON)\",($B1199*'1 Données d''entrée'!$C$332)*((('1 Données d''entrée'!$C$332+1)^'1 Données d''entrée'!$C$334-1)/('1 Données d''entrée'!$C$332))*(1+'1 Données d''entrée'!$C$332),0),0)","v":0},{"$f":"IF(M1180='1 Données d''entrée'!$C$334+1,IF('1 Données d''entrée'!$C$336=\"(=NON)\",($B1199*'1 Données d''entrée'!$C$332)*((('1 Données d''entrée'!$C$332+1)^'1 Données d''entrée'!$C$334-1)/('1 Données d''entrée'!$C$332))*(1+'1 Données d''entrée'!$C$332),0),0)","v":0},{"$f":"IF(N1180='1 Données d''entrée'!$C$334+1,IF('1 Données d''entrée'!$C$336=\"(=NON)\",($B1199*'1 Données d''entrée'!$C$332)*((('1 Données d''entrée'!$C$332+1)^'1 Données d''entrée'!$C$334-1)/('1 Données d''entrée'!$C$332))*(1+'1 Données d''entrée'!$C$332),0),0)","v":0},{"$f":"IF(O1180='1 Données d''entrée'!$C$334+1,IF('1 Données d''entrée'!$C$336=\"(=NON)\",($B1199*'1 Données d''entrée'!$C$332)*((('1 Données d''entrée'!$C$332+1)^'1 Données d''entrée'!$C$334-1)/('1 Données d''entrée'!$C$332))*(1+'1 Données d''entrée'!$C$332),0),0)","v":0},{"$f":"IF(P1180='1 Données d''entrée'!$C$334+1,IF('1 Données d''entrée'!$C$336=\"(=NON)\",($B1199*'1 Données d''entrée'!$C$332)*((('1 Données d''entrée'!$C$332+1)^'1 Données d''entrée'!$C$334-1)/('1 Données d''entrée'!$C$332))*(1+'1 Données d''entrée'!$C$332),0),0)","v":0},{"$f":"IF(Q1180='1 Données d''entrée'!$C$334+1,IF('1 Données d''entrée'!$C$336=\"(=NON)\",($B1199*'1 Données d''entrée'!$C$332)*((('1 Données d''entrée'!$C$332+1)^'1 Données d''entrée'!$C$334-1)/('1 Données d''entrée'!$C$332))*(1+'1 Données d''entrée'!$C$332),0),0)","v":0},{"$f":"IF(R1180='1 Données d''entrée'!$C$334+1,IF('1 Données d''entrée'!$C$336=\"(=NON)\",($B1199*'1 Données d''entrée'!$C$332)*((('1 Données d''entrée'!$C$332+1)^'1 Données d''entrée'!$C$334-1)/('1 Données d''entrée'!$C$332))*(1+'1 Données d''entrée'!$C$332),0),0)","v":0},{"$f":"IF(S1180='1 Données d''entrée'!$C$334+1,IF('1 Données d''entrée'!$C$336=\"(=NON)\",($B1199*'1 Données d''entrée'!$C$332)*((('1 Données d''entrée'!$C$332+1)^'1 Données d''entrée'!$C$334-1)/('1 Données d''entrée'!$C$332))*(1+'1 Données d''entrée'!$C$332),0),0)","v":0},{"$f":"IF(T1180='1 Données d''entrée'!$C$334+1,IF('1 Données d''entrée'!$C$336=\"(=NON)\",($B1199*'1 Données d''entrée'!$C$332)*((('1 Données d''entrée'!$C$332+1)^'1 Données d''entrée'!$C$334-1)/('1 Données d''entrée'!$C$332))*(1+'1 Données d''entrée'!$C$332),0),0)","v":0},{"$f":"IF(U1180='1 Données d''entrée'!$C$334+1,IF('1 Données d''entrée'!$C$336=\"(=NON)\",($B1199*'1 Données d''entrée'!$C$332)*((('1 Données d''entrée'!$C$332+1)^'1 Données d''entrée'!$C$334-1)/('1 Données d''entrée'!$C$332))*(1+'1 Données d''entrée'!$C$332),0),0)","v":0},{"$f":"IF(V1180='1 Données d''entrée'!$C$334+1,IF('1 Données d''entrée'!$C$336=\"(=NON)\",($B1199*'1 Données d''entrée'!$C$332)*((('1 Données d''entrée'!$C$332+1)^'1 Données d''entrée'!$C$334-1)/('1 Données d''entrée'!$C$332))*(1+'1 Données d''entrée'!$C$332),0),0)","v":0}]
[]
["Fonds d'autres donneurs / investisseurs - Subvention",{"$f":"'1 Données d''entrée'!$B$307","v":0}]
["Fonds d'autre donneurs / investisseurs - Prêt; Option 1: Remboursement du principal fractionné",{"$f":"'1 Données d''entrée'!$B$319","v":0},"% de prêt total"]
["Réception et montant restant",{"$f":"'1 Données d''entrée'!$B$306*'1 Données d''entrée'!$B$319+'1 Données d''entrée'!$B$306*'1 Données d''entrée'!$C$316","v":0},{"$f":"B1206-C1207","v":0},{"$f":"C1206-D1207","v":0},0,0,0,0,0,0,0,0,0,0,0,0,0,0,0,0,0,0]
["Remboursement du principal",0,{"$f":"IF(C1180<'1 Données d''entrée'!$C$312+1,0,IF(C1180<'1 Données d''entrée'!$C$312+'1 Données d''entrée'!$C$311+1,($B1206/'1 Données d''entrée'!$C$311),0))","v":0},{"$f":"IF(D1180<'1 Données d''entrée'!$C$312+1,0,IF(D1180<'1 Données d''entrée'!$C$312+'1 Données d''entrée'!$C$311+1,($B1206/'1 Données d''entrée'!$C$311),0))","v":0},{"$f":"IF(E1180<'1 Données d''entrée'!$C$312+1,0,IF(E1180<'1 Données d''entrée'!$C$312+'1 Données d''entrée'!$C$311+1,($B1206/'1 Données d''entrée'!$C$311),0))","v":0},{"$f":"IF(F1180<'1 Données d''entrée'!$C$312+1,0,IF(F1180<'1 Données d''entrée'!$C$312+'1 Données d''entrée'!$C$311+1,($B1206/'1 Données d''entrée'!$C$311),0))","v":0},{"$f":"IF(G1180<'1 Données d''entrée'!$C$312+1,0,IF(G1180<'1 Données d''entrée'!$C$312+'1 Données d''entrée'!$C$311+1,($B1206/'1 Données d''entrée'!$C$311),0))","v":0},{"$f":"IF(H1180<'1 Données d''entrée'!$C$312+1,0,IF(H1180<'1 Données d''entrée'!$C$312+'1 Données d''entrée'!$C$311+1,($B1206/'1 Données d''entrée'!$C$311),0))","v":0},{"$f":"IF(I1180<'1 Données d''entrée'!$C$312+1,0,IF(I1180<'1 Données d''entrée'!$C$312+'1 Données d''entrée'!$C$311+1,($B1206/'1 Données d''entrée'!$C$311),0))","v":0},{"$f":"IF(J1180<'1 Données d''entrée'!$C$312+1,0,IF(J1180<'1 Données d''entrée'!$C$312+'1 Données d''entrée'!$C$311+1,($B1206/'1 Données d''entrée'!$C$311),0))","v":0},{"$f":"IF(K1180<'1 Données d''entrée'!$C$312+1,0,IF(K1180<'1 Données d''entrée'!$C$312+'1 Données d''entrée'!$C$311+1,($B1206/'1 Données d''entrée'!$C$311),0))","v":0},{"$f":"IF(L1180<'1 Données d''entrée'!$C$312+1,0,IF(L1180<'1 Données d''entrée'!$C$312+'1 Données d''entrée'!$C$311+1,($B1206/'1 Données d''entrée'!$C$311),0))","v":0},{"$f":"IF(M1180<'1 Données d''entrée'!$C$312+1,0,IF(M1180<'1 Données d''entrée'!$C$312+'1 Données d''entrée'!$C$311+1,($B1206/'1 Données d''entrée'!$C$311),0))","v":0},{"$f":"IF(N1180<'1 Données d''entrée'!$C$312+1,0,IF(N1180<'1 Données d''entrée'!$C$312+'1 Données d''entrée'!$C$311+1,($B1206/'1 Données d''entrée'!$C$311),0))","v":0},{"$f":"IF(O1180<'1 Données d''entrée'!$C$312+1,0,IF(O1180<'1 Données d''entrée'!$C$312+'1 Données d''entrée'!$C$311+1,($B1206/'1 Données d''entrée'!$C$311),0))","v":0},{"$f":"IF(P1180<'1 Données d''entrée'!$C$312+1,0,IF(P1180<'1 Données d''entrée'!$C$312+'1 Données d''entrée'!$C$311+1,($B1206/'1 Données d''entrée'!$C$311),0))","v":0},{"$f":"IF(Q1180<'1 Données d''entrée'!$C$312+1,0,IF(Q1180<'1 Données d''entrée'!$C$312+'1 Données d''entrée'!$C$311+1,($B1206/'1 Données d''entrée'!$C$311),0))","v":0},{"$f":"IF(R1180<'1 Données d''entrée'!$C$312+1,0,IF(R1180<'1 Données d''entrée'!$C$312+'1 Données d''entrée'!$C$311+1,($B1206/'1 Données d''entrée'!$C$311),0))","v":0},{"$f":"IF(S1180<'1 Données d''entrée'!$C$312+1,0,IF(S1180<'1 Données d''entrée'!$C$312+'1 Données d''entrée'!$C$311+1,($B1206/'1 Données d''entrée'!$C$311),0))","v":0},{"$f":"IF(T1180<'1 Données d''entrée'!$C$312+1,0,IF(T1180<'1 Données d''entrée'!$C$312+'1 Données d''entrée'!$C$311+1,($B1206/'1 Données d''entrée'!$C$311),0))","v":0},{"$f":"IF(U1180<'1 Données d''entrée'!$C$312+1,0,IF(U1180<'1 Données d''entrée'!$C$312+'1 Données d''entrée'!$C$311+1,($B1206/'1 Données d''entrée'!$C$311),0))","v":0},{"$f":"IF(V1180<'1 Données d''entrée'!$C$312+1,0,IF(V1180<'1 Données d''entrée'!$C$312+'1 Données d''entrée'!$C$311+1,($B1206/'1 Données d''entrée'!$C$311),0))","v":0}]
["Paiement d'intérêts",0,{"$f":"IF('1 Données d''entrée'!$C$314=\"(=NON)\",IF(C1180<'1 Données d''entrée'!$C$312+1,0,B1206*'1 Données d''entrée'!$C$310),B1206*'1 Données d''entrée'!$C$310)","v":0},{"$f":"IF('1 Données d''entrée'!$C$314=\"(=NON)\",IF(D1180<'1 Données d''entrée'!$C$312+1,0,C1206*'1 Données d''entrée'!$C$310),C1206*'1 Données d''entrée'!$C$310)","v":0},{"$f":"IF('1 Données d''entrée'!$C$314=\"(=NON)\",IF(E1180<'1 Données d''entrée'!$C$312+1,0,D1206*'1 Données d''entrée'!$C$310),D1206*'1 Données d''entrée'!$C$310)","v":0},{"$f":"IF('1 Données d''entrée'!$C$314=\"(=NON)\",IF(F1180<'1 Données d''entrée'!$C$312+1,0,E1206*'1 Données d''entrée'!$C$310),E1206*'1 Données d''entrée'!$C$310)","v":0},{"$f":"IF('1 Données d''entrée'!$C$314=\"(=NON)\",IF(G1180<'1 Données d''entrée'!$C$312+1,0,F1206*'1 Données d''entrée'!$C$310),F1206*'1 Données d''entrée'!$C$310)","v":0},{"$f":"IF('1 Données d''entrée'!$C$314=\"(=NON)\",IF(H1180<'1 Données d''entrée'!$C$312+1,0,G1206*'1 Données d''entrée'!$C$310),G1206*'1 Données d''entrée'!$C$310)","v":0},{"$f":"IF('1 Données d''entrée'!$C$314=\"(=NON)\",IF(I1180<'1 Données d''entrée'!$C$312+1,0,H1206*'1 Données d''entrée'!$C$310),H1206*'1 Données d''entrée'!$C$310)","v":0},{"$f":"IF('1 Données d''entrée'!$C$314=\"(=NON)\",IF(J1180<'1 Données d''entrée'!$C$312+1,0,I1206*'1 Données d''entrée'!$C$310),I1206*'1 Données d''entrée'!$C$310)","v":0},{"$f":"IF('1 Données d''entrée'!$C$314=\"(=NON)\",IF(K1180<'1 Données d''entrée'!$C$312+1,0,J1206*'1 Données d''entrée'!$C$310),J1206*'1 Données d''entrée'!$C$310)","v":0},{"$f":"IF('1 Données d''entrée'!$C$314=\"(=NON)\",IF(L1180<'1 Données d''entrée'!$C$312+1,0,K1206*'1 Données d''entrée'!$C$310),K1206*'1 Données d''entrée'!$C$310)","v":0},{"$f":"IF('1 Données d''entrée'!$C$314=\"(=NON)\",IF(M1180<'1 Données d''entrée'!$C$312+1,0,L1206*'1 Données d''entrée'!$C$310),L1206*'1 Données d''entrée'!$C$310)","v":0},{"$f":"IF('1 Données d''entrée'!$C$314=\"(=NON)\",IF(N1180<'1 Données d''entrée'!$C$312+1,0,M1206*'1 Données d''entrée'!$C$310),M1206*'1 Données d''entrée'!$C$310)","v":0},{"$f":"IF('1 Données d''entrée'!$C$314=\"(=NON)\",IF(O1180<'1 Données d''entrée'!$C$312+1,0,N1206*'1 Données d''entrée'!$C$310),N1206*'1 Données d''entrée'!$C$310)","v":0},{"$f":"IF('1 Données d''entrée'!$C$314=\"(=NON)\",IF(P1180<'1 Données d''entrée'!$C$312+1,0,O1206*'1 Données d''entrée'!$C$310),O1206*'1 Données d''entrée'!$C$310)","v":0},{"$f":"IF('1 Données d''entrée'!$C$314=\"(=NON)\",IF(Q1180<'1 Données d''entrée'!$C$312+1,0,P1206*'1 Données d''entrée'!$C$310),P1206*'1 Données d''entrée'!$C$310)","v":0},{"$f":"IF('1 Données d''entrée'!$C$314=\"(=NON)\",IF(R1180<'1 Données d''entrée'!$C$312+1,0,Q1206*'1 Données d''entrée'!$C$310),Q1206*'1 Données d''entrée'!$C$310)","v":0},{"$f":"IF('1 Données d''entrée'!$C$314=\"(=NON)\",IF(S1180<'1 Données d''entrée'!$C$312+1,0,R1206*'1 Données d''entrée'!$C$310),R1206*'1 Données d''entrée'!$C$310)","v":0},{"$f":"IF('1 Données d''entrée'!$C$314=\"(=NON)\",IF(T1180<'1 Données d''entrée'!$C$312+1,0,S1206*'1 Données d''entrée'!$C$310),S1206*'1 Données d''entrée'!$C$310)","v":0},{"$f":"IF('1 Données d''entrée'!$C$314=\"(=NON)\",IF(U1180<'1 Données d''entrée'!$C$312+1,0,T1206*'1 Données d''entrée'!$C$310),T1206*'1 Données d''entrée'!$C$310)","v":0},{"$f":"IF('1 Données d''entrée'!$C$314=\"(=NON)\",IF(V1180<'1 Données d''entrée'!$C$312+1,0,U1206*'1 Données d''entrée'!$C$310),U1206*'1 Données d''entrée'!$C$310)","v":0}]
["Paiements d'intérêt avec des intérêts composés en cas d'absence des paiements dans la période de grâce",0,0,{"$f":"IF(D1180='1 Données d''entrée'!$C$312+1,IF('1 Données d''entrée'!$C$314=\"(=NON)\",($B1206*'1 Données d''entrée'!$C$310)*((('1 Données d''entrée'!$C$310+1)^'1 Données d''entrée'!$C$312-1)/('1 Données d''entrée'!$C$310))*(1+'1 Données d''entrée'!$C$310),0),0)","v":0},{"$f":"IF(E1180='1 Données d''entrée'!$C$312+1,IF('1 Données d''entrée'!$C$314=\"(=NON)\",($B1206*'1 Données d''entrée'!$C$310)*((('1 Données d''entrée'!$C$310+1)^'1 Données d''entrée'!$C$312-1)/('1 Données d''entrée'!$C$310))*(1+'1 Données d''entrée'!$C$310),0),0)","v":0},{"$f":"IF(F1180='1 Données d''entrée'!$C$312+1,IF('1 Données d''entrée'!$C$314=\"(=NON)\",($B1206*'1 Données d''entrée'!$C$310)*((('1 Données d''entrée'!$C$310+1)^'1 Données d''entrée'!$C$312-1)/('1 Données d''entrée'!$C$310))*(1+'1 Données d''entrée'!$C$310),0),0)","v":0},{"$f":"IF(G1180='1 Données d''entrée'!$C$312+1,IF('1 Données d''entrée'!$C$314=\"(=NON)\",($B1206*'1 Données d''entrée'!$C$310)*((('1 Données d''entrée'!$C$310+1)^'1 Données d''entrée'!$C$312-1)/('1 Données d''entrée'!$C$310))*(1+'1 Données d''entrée'!$C$310),0),0)","v":0},{"$f":"IF(H1180='1 Données d''entrée'!$C$312+1,IF('1 Données d''entrée'!$C$314=\"(=NON)\",($B1206*'1 Données d''entrée'!$C$310)*((('1 Données d''entrée'!$C$310+1)^'1 Données d''entrée'!$C$312-1)/('1 Données d''entrée'!$C$310))*(1+'1 Données d''entrée'!$C$310),0),0)","v":0},{"$f":"IF(I1180='1 Données d''entrée'!$C$312+1,IF('1 Données d''entrée'!$C$314=\"(=NON)\",($B1206*'1 Données d''entrée'!$C$310)*((('1 Données d''entrée'!$C$310+1)^'1 Données d''entrée'!$C$312-1)/('1 Données d''entrée'!$C$310))*(1+'1 Données d''entrée'!$C$310),0),0)","v":0},{"$f":"IF(J1180='1 Données d''entrée'!$C$312+1,IF('1 Données d''entrée'!$C$314=\"(=NON)\",($B1206*'1 Données d''entrée'!$C$310)*((('1 Données d''entrée'!$C$310+1)^'1 Données d''entrée'!$C$312-1)/('1 Données d''entrée'!$C$310))*(1+'1 Données d''entrée'!$C$310),0),0)","v":0},{"$f":"IF(K1180='1 Données d''entrée'!$C$312+1,IF('1 Données d''entrée'!$C$314=\"(=NON)\",($B1206*'1 Données d''entrée'!$C$310)*((('1 Données d''entrée'!$C$310+1)^'1 Données d''entrée'!$C$312-1)/('1 Données d''entrée'!$C$310))*(1+'1 Données d''entrée'!$C$310),0),0)","v":0},{"$f":"IF(L1180='1 Données d''entrée'!$C$312+1,IF('1 Données d''entrée'!$C$314=\"(=NON)\",($B1206*'1 Données d''entrée'!$C$310)*((('1 Données d''entrée'!$C$310+1)^'1 Données d''entrée'!$C$312-1)/('1 Données d''entrée'!$C$310))*(1+'1 Données d''entrée'!$C$310),0),0)","v":0},{"$f":"IF(M1180='1 Données d''entrée'!$C$312+1,IF('1 Données d''entrée'!$C$314=\"(=NON)\",($B1206*'1 Données d''entrée'!$C$310)*((('1 Données d''entrée'!$C$310+1)^'1 Données d''entrée'!$C$312-1)/('1 Données d''entrée'!$C$310))*(1+'1 Données d''entrée'!$C$310),0),0)","v":0},{"$f":"IF(N1180='1 Données d''entrée'!$C$312+1,IF('1 Données d''entrée'!$C$314=\"(=NON)\",($B1206*'1 Données d''entrée'!$C$310)*((('1 Données d''entrée'!$C$310+1)^'1 Données d''entrée'!$C$312-1)/('1 Données d''entrée'!$C$310))*(1+'1 Données d''entrée'!$C$310),0),0)","v":0},{"$f":"IF(O1180='1 Données d''entrée'!$C$312+1,IF('1 Données d''entrée'!$C$314=\"(=NON)\",($B1206*'1 Données d''entrée'!$C$310)*((('1 Données d''entrée'!$C$310+1)^'1 Données d''entrée'!$C$312-1)/('1 Données d''entrée'!$C$310))*(1+'1 Données d''entrée'!$C$310),0),0)","v":0},{"$f":"IF(P1180='1 Données d''entrée'!$C$312+1,IF('1 Données d''entrée'!$C$314=\"(=NON)\",($B1206*'1 Données d''entrée'!$C$310)*((('1 Données d''entrée'!$C$310+1)^'1 Données d''entrée'!$C$312-1)/('1 Données d''entrée'!$C$310))*(1+'1 Données d''entrée'!$C$310),0),0)","v":0},{"$f":"IF(Q1180='1 Données d''entrée'!$C$312+1,IF('1 Données d''entrée'!$C$314=\"(=NON)\",($B1206*'1 Données d''entrée'!$C$310)*((('1 Données d''entrée'!$C$310+1)^'1 Données d''entrée'!$C$312-1)/('1 Données d''entrée'!$C$310))*(1+'1 Données d''entrée'!$C$310),0),0)","v":0},{"$f":"IF(R1180='1 Données d''entrée'!$C$312+1,IF('1 Données d''entrée'!$C$314=\"(=NON)\",($B1206*'1 Données d''entrée'!$C$310)*((('1 Données d''entrée'!$C$310+1)^'1 Données d''entrée'!$C$312-1)/('1 Données d''entrée'!$C$310))*(1+'1 Données d''entrée'!$C$310),0),0)","v":0},{"$f":"IF(S1180='1 Données d''entrée'!$C$312+1,IF('1 Données d''entrée'!$C$314=\"(=NON)\",($B1206*'1 Données d''entrée'!$C$310)*((('1 Données d''entrée'!$C$310+1)^'1 Données d''entrée'!$C$312-1)/('1 Données d''entrée'!$C$310))*(1+'1 Données d''entrée'!$C$310),0),0)","v":0},{"$f":"IF(T1180='1 Données d''entrée'!$C$312+1,IF('1 Données d''entrée'!$C$314=\"(=NON)\",($B1206*'1 Données d''entrée'!$C$310)*((('1 Données d''entrée'!$C$310+1)^'1 Données d''entrée'!$C$312-1)/('1 Données d''entrée'!$C$310))*(1+'1 Données d''entrée'!$C$310),0),0)","v":0},{"$f":"IF(U1180='1 Données d''entrée'!$C$312+1,IF('1 Données d''entrée'!$C$314=\"(=NON)\",($B1206*'1 Données d''entrée'!$C$310)*((('1 Données d''entrée'!$C$310+1)^'1 Données d''entrée'!$C$312-1)/('1 Données d''entrée'!$C$310))*(1+'1 Données d''entrée'!$C$310),0),0)","v":0},{"$f":"IF(V1180='1 Données d''entrée'!$C$312+1,IF('1 Données d''entrée'!$C$314=\"(=NON)\",($B1206*'1 Données d''entrée'!$C$310)*((('1 Données d''entrée'!$C$310+1)^'1 Données d''entrée'!$C$312-1)/('1 Données d''entrée'!$C$310))*(1+'1 Données d''entrée'!$C$310),0),0)","v":0}]
["Fonds d'autre donneurs / investisseurs - Prêt; Option 2: Remboursement du principal final",{"$f":"'1 Données d''entrée'!$B$320","v":0},"% de prêt total"]
["Réception et montant restant",{"$f":"'1 Données d''entrée'!$B$306*'1 Données d''entrée'!$B$320+'1 Données d''entrée'!$B$306*'1 Données d''entrée'!$C$316","v":0},{"$f":"B1211-C1212","v":0},{"$f":"C1211-D1212","v":0},0,0,0,0,0,0,0,0,0,0,0,0,0,0,0,0,0,0]
["Remboursement du principal",0,{"$f":"IF('1 Données d''entrée'!$C$311+'1 Données d''entrée'!$C$312=C1180,'6 Financement'!$B$85,0)","v":0},{"$f":"IF('1 Données d''entrée'!$C$311+'1 Données d''entrée'!$C$312=D1180,'6 Financement'!$B$85,0)","v":0},{"$f":"IF('1 Données d''entrée'!$C$311+'1 Données d''entrée'!$C$312=E1180,'6 Financement'!$B$85,0)","v":0},{"$f":"IF('1 Données d''entrée'!$C$311+'1 Données d''entrée'!$C$312=F1180,'6 Financement'!$B$85,0)","v":0},{"$f":"IF('1 Données d''entrée'!$C$311+'1 Données d''entrée'!$C$312=G1180,'6 Financement'!$B$85,0)","v":0},{"$f":"IF('1 Données d''entrée'!$C$311+'1 Données d''entrée'!$C$312=H1180,'6 Financement'!$B$85,0)","v":0},{"$f":"IF('1 Données d''entrée'!$C$311+'1 Données d''entrée'!$C$312=I1180,'6 Financement'!$B$85,0)","v":0},{"$f":"IF('1 Données d''entrée'!$C$311+'1 Données d''entrée'!$C$312=J1180,'6 Financement'!$B$85,0)","v":0},{"$f":"IF('1 Données d''entrée'!$C$311+'1 Données d''entrée'!$C$312=K1180,'6 Financement'!$B$85,0)","v":0},{"$f":"IF('1 Données d''entrée'!$C$311+'1 Données d''entrée'!$C$312=L1180,'6 Financement'!$B$85,0)","v":0},{"$f":"IF('1 Données d''entrée'!$C$311+'1 Données d''entrée'!$C$312=M1180,'6 Financement'!$B$85,0)","v":0},{"$f":"IF('1 Données d''entrée'!$C$311+'1 Données d''entrée'!$C$312=N1180,'6 Financement'!$B$85,0)","v":0},{"$f":"IF('1 Données d''entrée'!$C$311+'1 Données d''entrée'!$C$312=O1180,'6 Financement'!$B$85,0)","v":0},{"$f":"IF('1 Données d''entrée'!$C$311+'1 Données d''entrée'!$C$312=P1180,'6 Financement'!$B$85,0)","v":0},{"$f":"IF('1 Données d''entrée'!$C$311+'1 Données d''entrée'!$C$312=Q1180,'6 Financement'!$B$85,0)","v":0},{"$f":"IF('1 Données d''entrée'!$C$311+'1 Données d''entrée'!$C$312=R1180,'6 Financement'!$B$85,0)","v":0},{"$f":"IF('1 Données d''entrée'!$C$311+'1 Données d''entrée'!$C$312=S1180,'6 Financement'!$B$85,0)","v":0},{"$f":"IF('1 Données d''entrée'!$C$311+'1 Données d''entrée'!$C$312=T1180,'6 Financement'!$B$85,0)","v":0},{"$f":"IF('1 Données d''entrée'!$C$311+'1 Données d''entrée'!$C$312=U1180,'6 Financement'!$B$85,0)","v":0},{"$f":"IF('1 Données d''entrée'!$C$311+'1 Données d''entrée'!$C$312=V1180,'6 Financement'!$B$85,0)","v":0}]
["Paiement d'intérêts",0,{"$f":"IF('1 Données d''entrée'!$C$314=\"(=NON)\",IF(C1180<'1 Données d''entrée'!$C$312+1,0,B1211*'1 Données d''entrée'!$C$310),B1211*'1 Données d''entrée'!$C$310)","v":0},{"$f":"IF('1 Données d''entrée'!$C$314=\"(=NON)\",IF(D1180<'1 Données d''entrée'!$C$312+1,0,C1211*'1 Données d''entrée'!$C$310),C1211*'1 Données d''entrée'!$C$310)","v":0},{"$f":"IF('1 Données d''entrée'!$C$314=\"(=NON)\",IF(E1180<'1 Données d''entrée'!$C$312+1,0,D1211*'1 Données d''entrée'!$C$310),D1211*'1 Données d''entrée'!$C$310)","v":0},{"$f":"IF('1 Données d''entrée'!$C$314=\"(=NON)\",IF(F1180<'1 Données d''entrée'!$C$312+1,0,E1211*'1 Données d''entrée'!$C$310),E1211*'1 Données d''entrée'!$C$310)","v":0},{"$f":"IF('1 Données d''entrée'!$C$314=\"(=NON)\",IF(G1180<'1 Données d''entrée'!$C$312+1,0,F1211*'1 Données d''entrée'!$C$310),F1211*'1 Données d''entrée'!$C$310)","v":0},{"$f":"IF('1 Données d''entrée'!$C$314=\"(=NON)\",IF(H1180<'1 Données d''entrée'!$C$312+1,0,G1211*'1 Données d''entrée'!$C$310),G1211*'1 Données d''entrée'!$C$310)","v":0},{"$f":"IF('1 Données d''entrée'!$C$314=\"(=NON)\",IF(I1180<'1 Données d''entrée'!$C$312+1,0,H1211*'1 Données d''entrée'!$C$310),H1211*'1 Données d''entrée'!$C$310)","v":0},{"$f":"IF('1 Données d''entrée'!$C$314=\"(=NON)\",IF(J1180<'1 Données d''entrée'!$C$312+1,0,I1211*'1 Données d''entrée'!$C$310),I1211*'1 Données d''entrée'!$C$310)","v":0},{"$f":"IF('1 Données d''entrée'!$C$314=\"(=NON)\",IF(K1180<'1 Données d''entrée'!$C$312+1,0,J1211*'1 Données d''entrée'!$C$310),J1211*'1 Données d''entrée'!$C$310)","v":0},{"$f":"IF('1 Données d''entrée'!$C$314=\"(=NON)\",IF(L1180<'1 Données d''entrée'!$C$312+1,0,K1211*'1 Données d''entrée'!$C$310),K1211*'1 Données d''entrée'!$C$310)","v":0},{"$f":"IF('1 Données d''entrée'!$C$314=\"(=NON)\",IF(M1180<'1 Données d''entrée'!$C$312+1,0,L1211*'1 Données d''entrée'!$C$310),L1211*'1 Données d''entrée'!$C$310)","v":0},{"$f":"IF('1 Données d''entrée'!$C$314=\"(=NON)\",IF(N1180<'1 Données d''entrée'!$C$312+1,0,M1211*'1 Données d''entrée'!$C$310),M1211*'1 Données d''entrée'!$C$310)","v":0},{"$f":"IF('1 Données d''entrée'!$C$314=\"(=NON)\",IF(O1180<'1 Données d''entrée'!$C$312+1,0,N1211*'1 Données d''entrée'!$C$310),N1211*'1 Données d''entrée'!$C$310)","v":0},{"$f":"IF('1 Données d''entrée'!$C$314=\"(=NON)\",IF(P1180<'1 Données d''entrée'!$C$312+1,0,O1211*'1 Données d''entrée'!$C$310),O1211*'1 Données d''entrée'!$C$310)","v":0},{"$f":"IF('1 Données d''entrée'!$C$314=\"(=NON)\",IF(Q1180<'1 Données d''entrée'!$C$312+1,0,P1211*'1 Données d''entrée'!$C$310),P1211*'1 Données d''entrée'!$C$310)","v":0},{"$f":"IF('1 Données d''entrée'!$C$314=\"(=NON)\",IF(R1180<'1 Données d''entrée'!$C$312+1,0,Q1211*'1 Données d''entrée'!$C$310),Q1211*'1 Données d''entrée'!$C$310)","v":0},{"$f":"IF('1 Données d''entrée'!$C$314=\"(=NON)\",IF(S1180<'1 Données d''entrée'!$C$312+1,0,R1211*'1 Données d''entrée'!$C$310),R1211*'1 Données d''entrée'!$C$310)","v":0},{"$f":"IF('1 Données d''entrée'!$C$314=\"(=NON)\",IF(T1180<'1 Données d''entrée'!$C$312+1,0,S1211*'1 Données d''entrée'!$C$310),S1211*'1 Données d''entrée'!$C$310)","v":0},{"$f":"IF('1 Données d''entrée'!$C$314=\"(=NON)\",IF(U1180<'1 Données d''entrée'!$C$312+1,0,T1211*'1 Données d''entrée'!$C$310),T1211*'1 Données d''entrée'!$C$310)","v":0},{"$f":"IF('1 Données d''entrée'!$C$314=\"(=NON)\",IF(V1180<'1 Données d''entrée'!$C$312+1,0,U1211*'1 Données d''entrée'!$C$310),U1211*'1 Données d''entrée'!$C$310)","v":0}]
["Paiements d'intérêt avec des intérêts composés en cas d'absence des paiements dans la période de grâce",0,0,{"$f":"IF(D1180='1 Données d''entrée'!$C$312+1,IF('1 Données d''entrée'!$C$314=\"(=NON)\",($B1211*'1 Données d''entrée'!$C$310)*((('1 Données d''entrée'!$C$310+1)^'1 Données d''entrée'!$C$312-1)/('1 Données d''entrée'!$C$310))*(1+'1 Données d''entrée'!$C$310),0),0)","v":0},{"$f":"IF(E1180='1 Données d''entrée'!$C$312+1,IF('1 Données d''entrée'!$C$314=\"(=NON)\",($B1211*'1 Données d''entrée'!$C$310)*((('1 Données d''entrée'!$C$310+1)^'1 Données d''entrée'!$C$312-1)/('1 Données d''entrée'!$C$310))*(1+'1 Données d''entrée'!$C$310),0),0)","v":0},{"$f":"IF(F1180='1 Données d''entrée'!$C$312+1,IF('1 Données d''entrée'!$C$314=\"(=NON)\",($B1211*'1 Données d''entrée'!$C$310)*((('1 Données d''entrée'!$C$310+1)^'1 Données d''entrée'!$C$312-1)/('1 Données d''entrée'!$C$310))*(1+'1 Données d''entrée'!$C$310),0),0)","v":0},{"$f":"IF(G1180='1 Données d''entrée'!$C$312+1,IF('1 Données d''entrée'!$C$314=\"(=NON)\",($B1211*'1 Données d''entrée'!$C$310)*((('1 Données d''entrée'!$C$310+1)^'1 Données d''entrée'!$C$312-1)/('1 Données d''entrée'!$C$310))*(1+'1 Données d''entrée'!$C$310),0),0)","v":0},{"$f":"IF(H1180='1 Données d''entrée'!$C$312+1,IF('1 Données d''entrée'!$C$314=\"(=NON)\",($B1211*'1 Données d''entrée'!$C$310)*((('1 Données d''entrée'!$C$310+1)^'1 Données d''entrée'!$C$312-1)/('1 Données d''entrée'!$C$310))*(1+'1 Données d''entrée'!$C$310),0),0)","v":0},{"$f":"IF(I1180='1 Données d''entrée'!$C$312+1,IF('1 Données d''entrée'!$C$314=\"(=NON)\",($B1211*'1 Données d''entrée'!$C$310)*((('1 Données d''entrée'!$C$310+1)^'1 Données d''entrée'!$C$312-1)/('1 Données d''entrée'!$C$310))*(1+'1 Données d''entrée'!$C$310),0),0)","v":0},{"$f":"IF(J1180='1 Données d''entrée'!$C$312+1,IF('1 Données d''entrée'!$C$314=\"(=NON)\",($B1211*'1 Données d''entrée'!$C$310)*((('1 Données d''entrée'!$C$310+1)^'1 Données d''entrée'!$C$312-1)/('1 Données d''entrée'!$C$310))*(1+'1 Données d''entrée'!$C$310),0),0)","v":0},{"$f":"IF(K1180='1 Données d''entrée'!$C$312+1,IF('1 Données d''entrée'!$C$314=\"(=NON)\",($B1211*'1 Données d''entrée'!$C$310)*((('1 Données d''entrée'!$C$310+1)^'1 Données d''entrée'!$C$312-1)/('1 Données d''entrée'!$C$310))*(1+'1 Données d''entrée'!$C$310),0),0)","v":0},{"$f":"IF(L1180='1 Données d''entrée'!$C$312+1,IF('1 Données d''entrée'!$C$314=\"(=NON)\",($B1211*'1 Données d''entrée'!$C$310)*((('1 Données d''entrée'!$C$310+1)^'1 Données d''entrée'!$C$312-1)/('1 Données d''entrée'!$C$310))*(1+'1 Données d''entrée'!$C$310),0),0)","v":0},{"$f":"IF(M1180='1 Données d''entrée'!$C$312+1,IF('1 Données d''entrée'!$C$314=\"(=NON)\",($B1211*'1 Données d''entrée'!$C$310)*((('1 Données d''entrée'!$C$310+1)^'1 Données d''entrée'!$C$312-1)/('1 Données d''entrée'!$C$310))*(1+'1 Données d''entrée'!$C$310),0),0)","v":0},{"$f":"IF(N1180='1 Données d''entrée'!$C$312+1,IF('1 Données d''entrée'!$C$314=\"(=NON)\",($B1211*'1 Données d''entrée'!$C$310)*((('1 Données d''entrée'!$C$310+1)^'1 Données d''entrée'!$C$312-1)/('1 Données d''entrée'!$C$310))*(1+'1 Données d''entrée'!$C$310),0),0)","v":0},{"$f":"IF(O1180='1 Données d''entrée'!$C$312+1,IF('1 Données d''entrée'!$C$314=\"(=NON)\",($B1211*'1 Données d''entrée'!$C$310)*((('1 Données d''entrée'!$C$310+1)^'1 Données d''entrée'!$C$312-1)/('1 Données d''entrée'!$C$310))*(1+'1 Données d''entrée'!$C$310),0),0)","v":0},{"$f":"IF(P1180='1 Données d''entrée'!$C$312+1,IF('1 Données d''entrée'!$C$314=\"(=NON)\",($B1211*'1 Données d''entrée'!$C$310)*((('1 Données d''entrée'!$C$310+1)^'1 Données d''entrée'!$C$312-1)/('1 Données d''entrée'!$C$310))*(1+'1 Données d''entrée'!$C$310),0),0)","v":0},{"$f":"IF(Q1180='1 Données d''entrée'!$C$312+1,IF('1 Données d''entrée'!$C$314=\"(=NON)\",($B1211*'1 Données d''entrée'!$C$310)*((('1 Données d''entrée'!$C$310+1)^'1 Données d''entrée'!$C$312-1)/('1 Données d''entrée'!$C$310))*(1+'1 Données d''entrée'!$C$310),0),0)","v":0},{"$f":"IF(R1180='1 Données d''entrée'!$C$312+1,IF('1 Données d''entrée'!$C$314=\"(=NON)\",($B1211*'1 Données d''entrée'!$C$310)*((('1 Données d''entrée'!$C$310+1)^'1 Données d''entrée'!$C$312-1)/('1 Données d''entrée'!$C$310))*(1+'1 Données d''entrée'!$C$310),0),0)","v":0},{"$f":"IF(S1180='1 Données d''entrée'!$C$312+1,IF('1 Données d''entrée'!$C$314=\"(=NON)\",($B1211*'1 Données d''entrée'!$C$310)*((('1 Données d''entrée'!$C$310+1)^'1 Données d''entrée'!$C$312-1)/('1 Données d''entrée'!$C$310))*(1+'1 Données d''entrée'!$C$310),0),0)","v":0},{"$f":"IF(T1180='1 Données d''entrée'!$C$312+1,IF('1 Données d''entrée'!$C$314=\"(=NON)\",($B1211*'1 Données d''entrée'!$C$310)*((('1 Données d''entrée'!$C$310+1)^'1 Données d''entrée'!$C$312-1)/('1 Données d''entrée'!$C$310))*(1+'1 Données d''entrée'!$C$310),0),0)","v":0},{"$f":"IF(U1180='1 Données d''entrée'!$C$312+1,IF('1 Données d''entrée'!$C$314=\"(=NON)\",($B1211*'1 Données d''entrée'!$C$310)*((('1 Données d''entrée'!$C$310+1)^'1 Données d''entrée'!$C$312-1)/('1 Données d''entrée'!$C$310))*(1+'1 Données d''entrée'!$C$310),0),0)","v":0},{"$f":"IF(V1180='1 Données d''entrée'!$C$312+1,IF('1 Données d''entrée'!$C$314=\"(=NON)\",($B1211*'1 Données d''entrée'!$C$310)*((('1 Données d''entrée'!$C$310+1)^'1 Données d''entrée'!$C$312-1)/('1 Données d''entrée'!$C$310))*(1+'1 Données d''entrée'!$C$310),0),0)","v":0}]
["Fonds d'autre donneurs / investisseurs - Prêt; Option 3: Remboursement vers l'annuité constante",{"$f":"'1 Données d''entrée'!$B$321","v":0},"% de prêt total"]
["Réception ",{"$f":"B1215*'1 Données d''entrée'!$B$306+'1 Données d''entrée'!$B$306*'1 Données d''entrée'!$C$316","v":0},0,0,0,0,0,0,0,0,0,0,0,0,0,0,0,0,0,0,0,0]
["Remboursement vers l'annuité constante",{"$f":"IF(B1180<'1 Données d''entrée'!$C$312+1,0,IF(B1180<'1 Données d''entrée'!$C$311+'1 Données d''entrée'!$C$312+1,$B1216*('1 Données d''entrée'!$C$310*(1+'1 Données d''entrée'!$C$310)^'1 Données d''entrée'!$C$311)/((1+'1 Données d''entrée'!$C$310)^'1 Données d''entrée'!$C$311-1),0))","v":0},{"$f":"IF(C1180<'1 Données d''entrée'!$C$312+1,0,IF(C1180<'1 Données d''entrée'!$C$311+'1 Données d''entrée'!$C$312+1,$B1216*('1 Données d''entrée'!$C$310*(1+'1 Données d''entrée'!$C$310)^'1 Données d''entrée'!$C$311)/((1+'1 Données d''entrée'!$C$310)^'1 Données d''entrée'!$C$311-1),0))","v":0},{"$f":"IF(D1180<'1 Données d''entrée'!$C$312+1,0,IF(D1180<'1 Données d''entrée'!$C$311+'1 Données d''entrée'!$C$312+1,$B1216*('1 Données d''entrée'!$C$310*(1+'1 Données d''entrée'!$C$310)^'1 Données d''entrée'!$C$311)/((1+'1 Données d''entrée'!$C$310)^'1 Données d''entrée'!$C$311-1),0))","v":0},{"$f":"IF(E1180<'1 Données d''entrée'!$C$312+1,0,IF(E1180<'1 Données d''entrée'!$C$311+'1 Données d''entrée'!$C$312+1,$B1216*('1 Données d''entrée'!$C$310*(1+'1 Données d''entrée'!$C$310)^'1 Données d''entrée'!$C$311)/((1+'1 Données d''entrée'!$C$310)^'1 Données d''entrée'!$C$311-1),0))","v":0},{"$f":"IF(F1180<'1 Données d''entrée'!$C$312+1,0,IF(F1180<'1 Données d''entrée'!$C$311+'1 Données d''entrée'!$C$312+1,$B1216*('1 Données d''entrée'!$C$310*(1+'1 Données d''entrée'!$C$310)^'1 Données d''entrée'!$C$311)/((1+'1 Données d''entrée'!$C$310)^'1 Données d''entrée'!$C$311-1),0))","v":0},{"$f":"IF(G1180<'1 Données d''entrée'!$C$312+1,0,IF(G1180<'1 Données d''entrée'!$C$311+'1 Données d''entrée'!$C$312+1,$B1216*('1 Données d''entrée'!$C$310*(1+'1 Données d''entrée'!$C$310)^'1 Données d''entrée'!$C$311)/((1+'1 Données d''entrée'!$C$310)^'1 Données d''entrée'!$C$311-1),0))","v":0},{"$f":"IF(H1180<'1 Données d''entrée'!$C$312+1,0,IF(H1180<'1 Données d''entrée'!$C$311+'1 Données d''entrée'!$C$312+1,$B1216*('1 Données d''entrée'!$C$310*(1+'1 Données d''entrée'!$C$310)^'1 Données d''entrée'!$C$311)/((1+'1 Données d''entrée'!$C$310)^'1 Données d''entrée'!$C$311-1),0))","v":0},{"$f":"IF(I1180<'1 Données d''entrée'!$C$312+1,0,IF(I1180<'1 Données d''entrée'!$C$311+'1 Données d''entrée'!$C$312+1,$B1216*('1 Données d''entrée'!$C$310*(1+'1 Données d''entrée'!$C$310)^'1 Données d''entrée'!$C$311)/((1+'1 Données d''entrée'!$C$310)^'1 Données d''entrée'!$C$311-1),0))","v":0},{"$f":"IF(J1180<'1 Données d''entrée'!$C$312+1,0,IF(J1180<'1 Données d''entrée'!$C$311+'1 Données d''entrée'!$C$312+1,$B1216*('1 Données d''entrée'!$C$310*(1+'1 Données d''entrée'!$C$310)^'1 Données d''entrée'!$C$311)/((1+'1 Données d''entrée'!$C$310)^'1 Données d''entrée'!$C$311-1),0))","v":0},{"$f":"IF(K1180<'1 Données d''entrée'!$C$312+1,0,IF(K1180<'1 Données d''entrée'!$C$311+'1 Données d''entrée'!$C$312+1,$B1216*('1 Données d''entrée'!$C$310*(1+'1 Données d''entrée'!$C$310)^'1 Données d''entrée'!$C$311)/((1+'1 Données d''entrée'!$C$310)^'1 Données d''entrée'!$C$311-1),0))","v":0},{"$f":"IF(L1180<'1 Données d''entrée'!$C$312+1,0,IF(L1180<'1 Données d''entrée'!$C$311+'1 Données d''entrée'!$C$312+1,$B1216*('1 Données d''entrée'!$C$310*(1+'1 Données d''entrée'!$C$310)^'1 Données d''entrée'!$C$311)/((1+'1 Données d''entrée'!$C$310)^'1 Données d''entrée'!$C$311-1),0))","v":0},{"$f":"IF(M1180<'1 Données d''entrée'!$C$312+1,0,IF(M1180<'1 Données d''entrée'!$C$311+'1 Données d''entrée'!$C$312+1,$B1216*('1 Données d''entrée'!$C$310*(1+'1 Données d''entrée'!$C$310)^'1 Données d''entrée'!$C$311)/((1+'1 Données d''entrée'!$C$310)^'1 Données d''entrée'!$C$311-1),0))","v":0},{"$f":"IF(N1180<'1 Données d''entrée'!$C$312+1,0,IF(N1180<'1 Données d''entrée'!$C$311+'1 Données d''entrée'!$C$312+1,$B1216*('1 Données d''entrée'!$C$310*(1+'1 Données d''entrée'!$C$310)^'1 Données d''entrée'!$C$311)/((1+'1 Données d''entrée'!$C$310)^'1 Données d''entrée'!$C$311-1),0))","v":0},{"$f":"IF(O1180<'1 Données d''entrée'!$C$312+1,0,IF(O1180<'1 Données d''entrée'!$C$311+'1 Données d''entrée'!$C$312+1,$B1216*('1 Données d''entrée'!$C$310*(1+'1 Données d''entrée'!$C$310)^'1 Données d''entrée'!$C$311)/((1+'1 Données d''entrée'!$C$310)^'1 Données d''entrée'!$C$311-1),0))","v":0},{"$f":"IF(P1180<'1 Données d''entrée'!$C$312+1,0,IF(P1180<'1 Données d''entrée'!$C$311+'1 Données d''entrée'!$C$312+1,$B1216*('1 Données d''entrée'!$C$310*(1+'1 Données d''entrée'!$C$310)^'1 Données d''entrée'!$C$311)/((1+'1 Données d''entrée'!$C$310)^'1 Données d''entrée'!$C$311-1),0))","v":0},{"$f":"IF(Q1180<'1 Données d''entrée'!$C$312+1,0,IF(Q1180<'1 Données d''entrée'!$C$311+'1 Données d''entrée'!$C$312+1,$B1216*('1 Données d''entrée'!$C$310*(1+'1 Données d''entrée'!$C$310)^'1 Données d''entrée'!$C$311)/((1+'1 Données d''entrée'!$C$310)^'1 Données d''entrée'!$C$311-1),0))","v":0},{"$f":"IF(R1180<'1 Données d''entrée'!$C$312+1,0,IF(R1180<'1 Données d''entrée'!$C$311+'1 Données d''entrée'!$C$312+1,$B1216*('1 Données d''entrée'!$C$310*(1+'1 Données d''entrée'!$C$310)^'1 Données d''entrée'!$C$311)/((1+'1 Données d''entrée'!$C$310)^'1 Données d''entrée'!$C$311-1),0))","v":0},{"$f":"IF(S1180<'1 Données d''entrée'!$C$312+1,0,IF(S1180<'1 Données d''entrée'!$C$311+'1 Données d''entrée'!$C$312+1,$B1216*('1 Données d''entrée'!$C$310*(1+'1 Données d''entrée'!$C$310)^'1 Données d''entrée'!$C$311)/((1+'1 Données d''entrée'!$C$310)^'1 Données d''entrée'!$C$311-1),0))","v":0},{"$f":"IF(T1180<'1 Données d''entrée'!$C$312+1,0,IF(T1180<'1 Données d''entrée'!$C$311+'1 Données d''entrée'!$C$312+1,$B1216*('1 Données d''entrée'!$C$310*(1+'1 Données d''entrée'!$C$310)^'1 Données d''entrée'!$C$311)/((1+'1 Données d''entrée'!$C$310)^'1 Données d''entrée'!$C$311-1),0))","v":0},{"$f":"IF(U1180<'1 Données d''entrée'!$C$312+1,0,IF(U1180<'1 Données d''entrée'!$C$311+'1 Données d''entrée'!$C$312+1,$B1216*('1 Données d''entrée'!$C$310*(1+'1 Données d''entrée'!$C$310)^'1 Données d''entrée'!$C$311)/((1+'1 Données d''entrée'!$C$310)^'1 Données d''entrée'!$C$311-1),0))","v":0},{"$f":"IF(V1180<'1 Données d''entrée'!$C$312+1,0,IF(V1180<'1 Données d''entrée'!$C$311+'1 Données d''entrée'!$C$312+1,$B1216*('1 Données d''entrée'!$C$310*(1+'1 Données d''entrée'!$C$310)^'1 Données d''entrée'!$C$311)/((1+'1 Données d''entrée'!$C$310)^'1 Données d''entrée'!$C$311-1),0))","v":0}]
["Paiement d'intérêt décroissant inclu dans l'annuité constante",0,{"$f":"IF('1 Données d''entrée'!$C$314=\"(=NON)\",IF(C1217>0,$B1216*((('1 Données d''entrée'!$C$310+1)^'1 Données d''entrée'!$C$311)-(1+'1 Données d''entrée'!$C$310)^('6 Financement'!C$54-1-'1 Données d''entrée'!$C$312))/((1+'1 Données d''entrée'!$C$310)^'1 Données d''entrée'!$C$311-1)*'1 Données d''entrée'!$C$310,0),IF(C1180<'1 Données d''entrée'!$C$312+1,'1 Données d''entrée'!$C$310*'6 Financement'!$B1216,IF(C1217>0,$B$90*((('1 Données d''entrée'!$C$310+1)^'1 Données d''entrée'!$C$311)-(1+'1 Données d''entrée'!$C$310)^('6 Financement'!C$54-1-'1 Données d''entrée'!$C$312))/((1+'1 Données d''entrée'!$C$310)^'1 Données d''entrée'!$C$311-1)*'1 Données d''entrée'!$C$310,0)))","v":0},{"$f":"IF('1 Données d''entrée'!$C$314=\"(=NON)\",IF(D1217>0,$B1216*((('1 Données d''entrée'!$C$310+1)^'1 Données d''entrée'!$C$311)-(1+'1 Données d''entrée'!$C$310)^('6 Financement'!D$54-1-'1 Données d''entrée'!$C$312))/((1+'1 Données d''entrée'!$C$310)^'1 Données d''entrée'!$C$311-1)*'1 Données d''entrée'!$C$310,0),IF(D1180<'1 Données d''entrée'!$C$312+1,'1 Données d''entrée'!$C$310*'6 Financement'!$B1216,IF(D1217>0,$B$90*((('1 Données d''entrée'!$C$310+1)^'1 Données d''entrée'!$C$311)-(1+'1 Données d''entrée'!$C$310)^('6 Financement'!D$54-1-'1 Données d''entrée'!$C$312))/((1+'1 Données d''entrée'!$C$310)^'1 Données d''entrée'!$C$311-1)*'1 Données d''entrée'!$C$310,0)))","v":0},{"$f":"IF('1 Données d''entrée'!$C$314=\"(=NON)\",IF(E1217>0,$B1216*((('1 Données d''entrée'!$C$310+1)^'1 Données d''entrée'!$C$311)-(1+'1 Données d''entrée'!$C$310)^('6 Financement'!E$54-1-'1 Données d''entrée'!$C$312))/((1+'1 Données d''entrée'!$C$310)^'1 Données d''entrée'!$C$311-1)*'1 Données d''entrée'!$C$310,0),IF(E1180<'1 Données d''entrée'!$C$312+1,'1 Données d''entrée'!$C$310*'6 Financement'!$B1216,IF(E1217>0,$B$90*((('1 Données d''entrée'!$C$310+1)^'1 Données d''entrée'!$C$311)-(1+'1 Données d''entrée'!$C$310)^('6 Financement'!E$54-1-'1 Données d''entrée'!$C$312))/((1+'1 Données d''entrée'!$C$310)^'1 Données d''entrée'!$C$311-1)*'1 Données d''entrée'!$C$310,0)))","v":0},{"$f":"IF('1 Données d''entrée'!$C$314=\"(=NON)\",IF(F1217>0,$B1216*((('1 Données d''entrée'!$C$310+1)^'1 Données d''entrée'!$C$311)-(1+'1 Données d''entrée'!$C$310)^('6 Financement'!F$54-1-'1 Données d''entrée'!$C$312))/((1+'1 Données d''entrée'!$C$310)^'1 Données d''entrée'!$C$311-1)*'1 Données d''entrée'!$C$310,0),IF(F1180<'1 Données d''entrée'!$C$312+1,'1 Données d''entrée'!$C$310*'6 Financement'!$B1216,IF(F1217>0,$B$90*((('1 Données d''entrée'!$C$310+1)^'1 Données d''entrée'!$C$311)-(1+'1 Données d''entrée'!$C$310)^('6 Financement'!F$54-1-'1 Données d''entrée'!$C$312))/((1+'1 Données d''entrée'!$C$310)^'1 Données d''entrée'!$C$311-1)*'1 Données d''entrée'!$C$310,0)))","v":0},{"$f":"IF('1 Données d''entrée'!$C$314=\"(=NON)\",IF(G1217>0,$B1216*((('1 Données d''entrée'!$C$310+1)^'1 Données d''entrée'!$C$311)-(1+'1 Données d''entrée'!$C$310)^('6 Financement'!G$54-1-'1 Données d''entrée'!$C$312))/((1+'1 Données d''entrée'!$C$310)^'1 Données d''entrée'!$C$311-1)*'1 Données d''entrée'!$C$310,0),IF(G1180<'1 Données d''entrée'!$C$312+1,'1 Données d''entrée'!$C$310*'6 Financement'!$B1216,IF(G1217>0,$B$90*((('1 Données d''entrée'!$C$310+1)^'1 Données d''entrée'!$C$311)-(1+'1 Données d''entrée'!$C$310)^('6 Financement'!G$54-1-'1 Données d''entrée'!$C$312))/((1+'1 Données d''entrée'!$C$310)^'1 Données d''entrée'!$C$311-1)*'1 Données d''entrée'!$C$310,0)))","v":0},{"$f":"IF('1 Données d''entrée'!$C$314=\"(=NON)\",IF(H1217>0,$B1216*((('1 Données d''entrée'!$C$310+1)^'1 Données d''entrée'!$C$311)-(1+'1 Données d''entrée'!$C$310)^('6 Financement'!H$54-1-'1 Données d''entrée'!$C$312))/((1+'1 Données d''entrée'!$C$310)^'1 Données d''entrée'!$C$311-1)*'1 Données d''entrée'!$C$310,0),IF(H1180<'1 Données d''entrée'!$C$312+1,'1 Données d''entrée'!$C$310*'6 Financement'!$B1216,IF(H1217>0,$B$90*((('1 Données d''entrée'!$C$310+1)^'1 Données d''entrée'!$C$311)-(1+'1 Données d''entrée'!$C$310)^('6 Financement'!H$54-1-'1 Données d''entrée'!$C$312))/((1+'1 Données d''entrée'!$C$310)^'1 Données d''entrée'!$C$311-1)*'1 Données d''entrée'!$C$310,0)))","v":0},{"$f":"IF('1 Données d''entrée'!$C$314=\"(=NON)\",IF(I1217>0,$B1216*((('1 Données d''entrée'!$C$310+1)^'1 Données d''entrée'!$C$311)-(1+'1 Données d''entrée'!$C$310)^('6 Financement'!I$54-1-'1 Données d''entrée'!$C$312))/((1+'1 Données d''entrée'!$C$310)^'1 Données d''entrée'!$C$311-1)*'1 Données d''entrée'!$C$310,0),IF(I1180<'1 Données d''entrée'!$C$312+1,'1 Données d''entrée'!$C$310*'6 Financement'!$B1216,IF(I1217>0,$B$90*((('1 Données d''entrée'!$C$310+1)^'1 Données d''entrée'!$C$311)-(1+'1 Données d''entrée'!$C$310)^('6 Financement'!I$54-1-'1 Données d''entrée'!$C$312))/((1+'1 Données d''entrée'!$C$310)^'1 Données d''entrée'!$C$311-1)*'1 Données d''entrée'!$C$310,0)))","v":0},{"$f":"IF('1 Données d''entrée'!$C$314=\"(=NON)\",IF(J1217>0,$B1216*((('1 Données d''entrée'!$C$310+1)^'1 Données d''entrée'!$C$311)-(1+'1 Données d''entrée'!$C$310)^('6 Financement'!J$54-1-'1 Données d''entrée'!$C$312))/((1+'1 Données d''entrée'!$C$310)^'1 Données d''entrée'!$C$311-1)*'1 Données d''entrée'!$C$310,0),IF(J1180<'1 Données d''entrée'!$C$312+1,'1 Données d''entrée'!$C$310*'6 Financement'!$B1216,IF(J1217>0,$B$90*((('1 Données d''entrée'!$C$310+1)^'1 Données d''entrée'!$C$311)-(1+'1 Données d''entrée'!$C$310)^('6 Financement'!J$54-1-'1 Données d''entrée'!$C$312))/((1+'1 Données d''entrée'!$C$310)^'1 Données d''entrée'!$C$311-1)*'1 Données d''entrée'!$C$310,0)))","v":0},{"$f":"IF('1 Données d''entrée'!$C$314=\"(=NON)\",IF(K1217>0,$B1216*((('1 Données d''entrée'!$C$310+1)^'1 Données d''entrée'!$C$311)-(1+'1 Données d''entrée'!$C$310)^('6 Financement'!K$54-1-'1 Données d''entrée'!$C$312))/((1+'1 Données d''entrée'!$C$310)^'1 Données d''entrée'!$C$311-1)*'1 Données d''entrée'!$C$310,0),IF(K1180<'1 Données d''entrée'!$C$312+1,'1 Données d''entrée'!$C$310*'6 Financement'!$B1216,IF(K1217>0,$B$90*((('1 Données d''entrée'!$C$310+1)^'1 Données d''entrée'!$C$311)-(1+'1 Données d''entrée'!$C$310)^('6 Financement'!K$54-1-'1 Données d''entrée'!$C$312))/((1+'1 Données d''entrée'!$C$310)^'1 Données d''entrée'!$C$311-1)*'1 Données d''entrée'!$C$310,0)))","v":0},{"$f":"IF('1 Données d''entrée'!$C$314=\"(=NON)\",IF(L1217>0,$B1216*((('1 Données d''entrée'!$C$310+1)^'1 Données d''entrée'!$C$311)-(1+'1 Données d''entrée'!$C$310)^('6 Financement'!L$54-1-'1 Données d''entrée'!$C$312))/((1+'1 Données d''entrée'!$C$310)^'1 Données d''entrée'!$C$311-1)*'1 Données d''entrée'!$C$310,0),IF(L1180<'1 Données d''entrée'!$C$312+1,'1 Données d''entrée'!$C$310*'6 Financement'!$B1216,IF(L1217>0,$B$90*((('1 Données d''entrée'!$C$310+1)^'1 Données d''entrée'!$C$311)-(1+'1 Données d''entrée'!$C$310)^('6 Financement'!L$54-1-'1 Données d''entrée'!$C$312))/((1+'1 Données d''entrée'!$C$310)^'1 Données d''entrée'!$C$311-1)*'1 Données d''entrée'!$C$310,0)))","v":0},{"$f":"IF('1 Données d''entrée'!$C$314=\"(=NON)\",IF(M1217>0,$B1216*((('1 Données d''entrée'!$C$310+1)^'1 Données d''entrée'!$C$311)-(1+'1 Données d''entrée'!$C$310)^('6 Financement'!M$54-1-'1 Données d''entrée'!$C$312))/((1+'1 Données d''entrée'!$C$310)^'1 Données d''entrée'!$C$311-1)*'1 Données d''entrée'!$C$310,0),IF(M1180<'1 Données d''entrée'!$C$312+1,'1 Données d''entrée'!$C$310*'6 Financement'!$B1216,IF(M1217>0,$B$90*((('1 Données d''entrée'!$C$310+1)^'1 Données d''entrée'!$C$311)-(1+'1 Données d''entrée'!$C$310)^('6 Financement'!M$54-1-'1 Données d''entrée'!$C$312))/((1+'1 Données d''entrée'!$C$310)^'1 Données d''entrée'!$C$311-1)*'1 Données d''entrée'!$C$310,0)))","v":0},{"$f":"IF('1 Données d''entrée'!$C$314=\"(=NON)\",IF(N1217>0,$B1216*((('1 Données d''entrée'!$C$310+1)^'1 Données d''entrée'!$C$311)-(1+'1 Données d''entrée'!$C$310)^('6 Financement'!N$54-1-'1 Données d''entrée'!$C$312))/((1+'1 Données d''entrée'!$C$310)^'1 Données d''entrée'!$C$311-1)*'1 Données d''entrée'!$C$310,0),IF(N1180<'1 Données d''entrée'!$C$312+1,'1 Données d''entrée'!$C$310*'6 Financement'!$B1216,IF(N1217>0,$B$90*((('1 Données d''entrée'!$C$310+1)^'1 Données d''entrée'!$C$311)-(1+'1 Données d''entrée'!$C$310)^('6 Financement'!N$54-1-'1 Données d''entrée'!$C$312))/((1+'1 Données d''entrée'!$C$310)^'1 Données d''entrée'!$C$311-1)*'1 Données d''entrée'!$C$310,0)))","v":0},{"$f":"IF('1 Données d''entrée'!$C$314=\"(=NON)\",IF(O1217>0,$B1216*((('1 Données d''entrée'!$C$310+1)^'1 Données d''entrée'!$C$311)-(1+'1 Données d''entrée'!$C$310)^('6 Financement'!O$54-1-'1 Données d''entrée'!$C$312))/((1+'1 Données d''entrée'!$C$310)^'1 Données d''entrée'!$C$311-1)*'1 Données d''entrée'!$C$310,0),IF(O1180<'1 Données d''entrée'!$C$312+1,'1 Données d''entrée'!$C$310*'6 Financement'!$B1216,IF(O1217>0,$B$90*((('1 Données d''entrée'!$C$310+1)^'1 Données d''entrée'!$C$311)-(1+'1 Données d''entrée'!$C$310)^('6 Financement'!O$54-1-'1 Données d''entrée'!$C$312))/((1+'1 Données d''entrée'!$C$310)^'1 Données d''entrée'!$C$311-1)*'1 Données d''entrée'!$C$310,0)))","v":0},{"$f":"IF('1 Données d''entrée'!$C$314=\"(=NON)\",IF(P1217>0,$B1216*((('1 Données d''entrée'!$C$310+1)^'1 Données d''entrée'!$C$311)-(1+'1 Données d''entrée'!$C$310)^('6 Financement'!P$54-1-'1 Données d''entrée'!$C$312))/((1+'1 Données d''entrée'!$C$310)^'1 Données d''entrée'!$C$311-1)*'1 Données d''entrée'!$C$310,0),IF(P1180<'1 Données d''entrée'!$C$312+1,'1 Données d''entrée'!$C$310*'6 Financement'!$B1216,IF(P1217>0,$B$90*((('1 Données d''entrée'!$C$310+1)^'1 Données d''entrée'!$C$311)-(1+'1 Données d''entrée'!$C$310)^('6 Financement'!P$54-1-'1 Données d''entrée'!$C$312))/((1+'1 Données d''entrée'!$C$310)^'1 Données d''entrée'!$C$311-1)*'1 Données d''entrée'!$C$310,0)))","v":0},{"$f":"IF('1 Données d''entrée'!$C$314=\"(=NON)\",IF(Q1217>0,$B1216*((('1 Données d''entrée'!$C$310+1)^'1 Données d''entrée'!$C$311)-(1+'1 Données d''entrée'!$C$310)^('6 Financement'!Q$54-1-'1 Données d''entrée'!$C$312))/((1+'1 Données d''entrée'!$C$310)^'1 Données d''entrée'!$C$311-1)*'1 Données d''entrée'!$C$310,0),IF(Q1180<'1 Données d''entrée'!$C$312+1,'1 Données d''entrée'!$C$310*'6 Financement'!$B1216,IF(Q1217>0,$B$90*((('1 Données d''entrée'!$C$310+1)^'1 Données d''entrée'!$C$311)-(1+'1 Données d''entrée'!$C$310)^('6 Financement'!Q$54-1-'1 Données d''entrée'!$C$312))/((1+'1 Données d''entrée'!$C$310)^'1 Données d''entrée'!$C$311-1)*'1 Données d''entrée'!$C$310,0)))","v":0},{"$f":"IF('1 Données d''entrée'!$C$314=\"(=NON)\",IF(R1217>0,$B1216*((('1 Données d''entrée'!$C$310+1)^'1 Données d''entrée'!$C$311)-(1+'1 Données d''entrée'!$C$310)^('6 Financement'!R$54-1-'1 Données d''entrée'!$C$312))/((1+'1 Données d''entrée'!$C$310)^'1 Données d''entrée'!$C$311-1)*'1 Données d''entrée'!$C$310,0),IF(R1180<'1 Données d''entrée'!$C$312+1,'1 Données d''entrée'!$C$310*'6 Financement'!$B1216,IF(R1217>0,$B$90*((('1 Données d''entrée'!$C$310+1)^'1 Données d''entrée'!$C$311)-(1+'1 Données d''entrée'!$C$310)^('6 Financement'!R$54-1-'1 Données d''entrée'!$C$312))/((1+'1 Données d''entrée'!$C$310)^'1 Données d''entrée'!$C$311-1)*'1 Données d''entrée'!$C$310,0)))","v":0},{"$f":"IF('1 Données d''entrée'!$C$314=\"(=NON)\",IF(S1217>0,$B1216*((('1 Données d''entrée'!$C$310+1)^'1 Données d''entrée'!$C$311)-(1+'1 Données d''entrée'!$C$310)^('6 Financement'!S$54-1-'1 Données d''entrée'!$C$312))/((1+'1 Données d''entrée'!$C$310)^'1 Données d''entrée'!$C$311-1)*'1 Données d''entrée'!$C$310,0),IF(S1180<'1 Données d''entrée'!$C$312+1,'1 Données d''entrée'!$C$310*'6 Financement'!$B1216,IF(S1217>0,$B$90*((('1 Données d''entrée'!$C$310+1)^'1 Données d''entrée'!$C$311)-(1+'1 Données d''entrée'!$C$310)^('6 Financement'!S$54-1-'1 Données d''entrée'!$C$312))/((1+'1 Données d''entrée'!$C$310)^'1 Données d''entrée'!$C$311-1)*'1 Données d''entrée'!$C$310,0)))","v":0},{"$f":"IF('1 Données d''entrée'!$C$314=\"(=NON)\",IF(T1217>0,$B1216*((('1 Données d''entrée'!$C$310+1)^'1 Données d''entrée'!$C$311)-(1+'1 Données d''entrée'!$C$310)^('6 Financement'!T$54-1-'1 Données d''entrée'!$C$312))/((1+'1 Données d''entrée'!$C$310)^'1 Données d''entrée'!$C$311-1)*'1 Données d''entrée'!$C$310,0),IF(T1180<'1 Données d''entrée'!$C$312+1,'1 Données d''entrée'!$C$310*'6 Financement'!$B1216,IF(T1217>0,$B$90*((('1 Données d''entrée'!$C$310+1)^'1 Données d''entrée'!$C$311)-(1+'1 Données d''entrée'!$C$310)^('6 Financement'!T$54-1-'1 Données d''entrée'!$C$312))/((1+'1 Données d''entrée'!$C$310)^'1 Données d''entrée'!$C$311-1)*'1 Données d''entrée'!$C$310,0)))","v":0},{"$f":"IF('1 Données d''entrée'!$C$314=\"(=NON)\",IF(U1217>0,$B1216*((('1 Données d''entrée'!$C$310+1)^'1 Données d''entrée'!$C$311)-(1+'1 Données d''entrée'!$C$310)^('6 Financement'!U$54-1-'1 Données d''entrée'!$C$312))/((1+'1 Données d''entrée'!$C$310)^'1 Données d''entrée'!$C$311-1)*'1 Données d''entrée'!$C$310,0),IF(U1180<'1 Données d''entrée'!$C$312+1,'1 Données d''entrée'!$C$310*'6 Financement'!$B1216,IF(U1217>0,$B$90*((('1 Données d''entrée'!$C$310+1)^'1 Données d''entrée'!$C$311)-(1+'1 Données d''entrée'!$C$310)^('6 Financement'!U$54-1-'1 Données d''entrée'!$C$312))/((1+'1 Données d''entrée'!$C$310)^'1 Données d''entrée'!$C$311-1)*'1 Données d''entrée'!$C$310,0)))","v":0},{"$f":"IF('1 Données d''entrée'!$C$314=\"(=NON)\",IF(V1217>0,$B1216*((('1 Données d''entrée'!$C$310+1)^'1 Données d''entrée'!$C$311)-(1+'1 Données d''entrée'!$C$310)^('6 Financement'!V$54-1-'1 Données d''entrée'!$C$312))/((1+'1 Données d''entrée'!$C$310)^'1 Données d''entrée'!$C$311-1)*'1 Données d''entrée'!$C$310,0),IF(V1180<'1 Données d''entrée'!$C$312+1,'1 Données d''entrée'!$C$310*'6 Financement'!$B1216,IF(V1217>0,$B$90*((('1 Données d''entrée'!$C$310+1)^'1 Données d''entrée'!$C$311)-(1+'1 Données d''entrée'!$C$310)^('6 Financement'!V$54-1-'1 Données d''entrée'!$C$312))/((1+'1 Données d''entrée'!$C$310)^'1 Données d''entrée'!$C$311-1)*'1 Données d''entrée'!$C$310,0)))","v":0}]
["Paiements d'intérêt avec des intérêts composés en cas d'absence des paiements dans la période de grâce",0,0,{"$f":"IF(D1180='1 Données d''entrée'!$C$312+1,IF('1 Données d''entrée'!$C$314=\"(=NON)\",($B1216*'1 Données d''entrée'!$C$310)*((('1 Données d''entrée'!$C$310+1)^'1 Données d''entrée'!$C$312-1)/('1 Données d''entrée'!$C$310))*(1+'1 Données d''entrée'!$C$310),0),0)","v":0},{"$f":"IF(E1180='1 Données d''entrée'!$C$312+1,IF('1 Données d''entrée'!$C$314=\"(=NON)\",($B1216*'1 Données d''entrée'!$C$310)*((('1 Données d''entrée'!$C$310+1)^'1 Données d''entrée'!$C$312-1)/('1 Données d''entrée'!$C$310))*(1+'1 Données d''entrée'!$C$310),0),0)","v":0},{"$f":"IF(F1180='1 Données d''entrée'!$C$312+1,IF('1 Données d''entrée'!$C$314=\"(=NON)\",($B1216*'1 Données d''entrée'!$C$310)*((('1 Données d''entrée'!$C$310+1)^'1 Données d''entrée'!$C$312-1)/('1 Données d''entrée'!$C$310))*(1+'1 Données d''entrée'!$C$310),0),0)","v":0},{"$f":"IF(G1180='1 Données d''entrée'!$C$312+1,IF('1 Données d''entrée'!$C$314=\"(=NON)\",($B1216*'1 Données d''entrée'!$C$310)*((('1 Données d''entrée'!$C$310+1)^'1 Données d''entrée'!$C$312-1)/('1 Données d''entrée'!$C$310))*(1+'1 Données d''entrée'!$C$310),0),0)","v":0},{"$f":"IF(H1180='1 Données d''entrée'!$C$312+1,IF('1 Données d''entrée'!$C$314=\"(=NON)\",($B1216*'1 Données d''entrée'!$C$310)*((('1 Données d''entrée'!$C$310+1)^'1 Données d''entrée'!$C$312-1)/('1 Données d''entrée'!$C$310))*(1+'1 Données d''entrée'!$C$310),0),0)","v":0},{"$f":"IF(I1180='1 Données d''entrée'!$C$312+1,IF('1 Données d''entrée'!$C$314=\"(=NON)\",($B1216*'1 Données d''entrée'!$C$310)*((('1 Données d''entrée'!$C$310+1)^'1 Données d''entrée'!$C$312-1)/('1 Données d''entrée'!$C$310))*(1+'1 Données d''entrée'!$C$310),0),0)","v":0},{"$f":"IF(J1180='1 Données d''entrée'!$C$312+1,IF('1 Données d''entrée'!$C$314=\"(=NON)\",($B1216*'1 Données d''entrée'!$C$310)*((('1 Données d''entrée'!$C$310+1)^'1 Données d''entrée'!$C$312-1)/('1 Données d''entrée'!$C$310))*(1+'1 Données d''entrée'!$C$310),0),0)","v":0},{"$f":"IF(K1180='1 Données d''entrée'!$C$312+1,IF('1 Données d''entrée'!$C$314=\"(=NON)\",($B1216*'1 Données d''entrée'!$C$310)*((('1 Données d''entrée'!$C$310+1)^'1 Données d''entrée'!$C$312-1)/('1 Données d''entrée'!$C$310))*(1+'1 Données d''entrée'!$C$310),0),0)","v":0},{"$f":"IF(L1180='1 Données d''entrée'!$C$312+1,IF('1 Données d''entrée'!$C$314=\"(=NON)\",($B1216*'1 Données d''entrée'!$C$310)*((('1 Données d''entrée'!$C$310+1)^'1 Données d''entrée'!$C$312-1)/('1 Données d''entrée'!$C$310))*(1+'1 Données d''entrée'!$C$310),0),0)","v":0},{"$f":"IF(M1180='1 Données d''entrée'!$C$312+1,IF('1 Données d''entrée'!$C$314=\"(=NON)\",($B1216*'1 Données d''entrée'!$C$310)*((('1 Données d''entrée'!$C$310+1)^'1 Données d''entrée'!$C$312-1)/('1 Données d''entrée'!$C$310))*(1+'1 Données d''entrée'!$C$310),0),0)","v":0},{"$f":"IF(N1180='1 Données d''entrée'!$C$312+1,IF('1 Données d''entrée'!$C$314=\"(=NON)\",($B1216*'1 Données d''entrée'!$C$310)*((('1 Données d''entrée'!$C$310+1)^'1 Données d''entrée'!$C$312-1)/('1 Données d''entrée'!$C$310))*(1+'1 Données d''entrée'!$C$310),0),0)","v":0},{"$f":"IF(O1180='1 Données d''entrée'!$C$312+1,IF('1 Données d''entrée'!$C$314=\"(=NON)\",($B1216*'1 Données d''entrée'!$C$310)*((('1 Données d''entrée'!$C$310+1)^'1 Données d''entrée'!$C$312-1)/('1 Données d''entrée'!$C$310))*(1+'1 Données d''entrée'!$C$310),0),0)","v":0},{"$f":"IF(P1180='1 Données d''entrée'!$C$312+1,IF('1 Données d''entrée'!$C$314=\"(=NON)\",($B1216*'1 Données d''entrée'!$C$310)*((('1 Données d''entrée'!$C$310+1)^'1 Données d''entrée'!$C$312-1)/('1 Données d''entrée'!$C$310))*(1+'1 Données d''entrée'!$C$310),0),0)","v":0},{"$f":"IF(Q1180='1 Données d''entrée'!$C$312+1,IF('1 Données d''entrée'!$C$314=\"(=NON)\",($B1216*'1 Données d''entrée'!$C$310)*((('1 Données d''entrée'!$C$310+1)^'1 Données d''entrée'!$C$312-1)/('1 Données d''entrée'!$C$310))*(1+'1 Données d''entrée'!$C$310),0),0)","v":0},{"$f":"IF(R1180='1 Données d''entrée'!$C$312+1,IF('1 Données d''entrée'!$C$314=\"(=NON)\",($B1216*'1 Données d''entrée'!$C$310)*((('1 Données d''entrée'!$C$310+1)^'1 Données d''entrée'!$C$312-1)/('1 Données d''entrée'!$C$310))*(1+'1 Données d''entrée'!$C$310),0),0)","v":0},{"$f":"IF(S1180='1 Données d''entrée'!$C$312+1,IF('1 Données d''entrée'!$C$314=\"(=NON)\",($B1216*'1 Données d''entrée'!$C$310)*((('1 Données d''entrée'!$C$310+1)^'1 Données d''entrée'!$C$312-1)/('1 Données d''entrée'!$C$310))*(1+'1 Données d''entrée'!$C$310),0),0)","v":0},{"$f":"IF(T1180='1 Données d''entrée'!$C$312+1,IF('1 Données d''entrée'!$C$314=\"(=NON)\",($B1216*'1 Données d''entrée'!$C$310)*((('1 Données d''entrée'!$C$310+1)^'1 Données d''entrée'!$C$312-1)/('1 Données d''entrée'!$C$310))*(1+'1 Données d''entrée'!$C$310),0),0)","v":0},{"$f":"IF(U1180='1 Données d''entrée'!$C$312+1,IF('1 Données d''entrée'!$C$314=\"(=NON)\",($B1216*'1 Données d''entrée'!$C$310)*((('1 Données d''entrée'!$C$310+1)^'1 Données d''entrée'!$C$312-1)/('1 Données d''entrée'!$C$310))*(1+'1 Données d''entrée'!$C$310),0),0)","v":0},{"$f":"IF(V1180='1 Données d''entrée'!$C$312+1,IF('1 Données d''entrée'!$C$314=\"(=NON)\",($B1216*'1 Données d''entrée'!$C$310)*((('1 Données d''entrée'!$C$310+1)^'1 Données d''entrée'!$C$312-1)/('1 Données d''entrée'!$C$310))*(1+'1 Données d''entrée'!$C$310),0),0)","v":0}]
[]
["Solde du compte intermédiaire"]
["Solde du comte (par période)",{"$f":"B1182+B1184+B1186+IF($B1188>0,(B1189-B1190-B1191-B1192),0)+IF($B1193>0,(B1194-B1195-B1196-B1197),0)+IF($B1198>0,(B1199-B1200-IF(B1200>0,0,B1201)-B1202),0)+B1204+IF($B1205>0,(B1206-B1207-B1208-B1209),0)+IF($B1210>0,(B1211-B1212-B1213-B1214),0)+IF($B1215>0,B1216-IF(B1217>0,0,B1218)-B1219,0)","v":{"$error":"#DIV/0!"}},{"$f":"C1182+C1184+C1186+IF($B1188>0,(-C1190-C1191-C1192),0)+IF($B1193>0,(-C1195-C1196-C1197),0)+C1204+IF($B1198>0,(-C1200-IF(C1200>0,0,C1201)-C1202),0)+IF($B1205>0,(-C1207-C1208-C1209),0)+IF($B1210>0,(-C1212-C1213-C1214),0)+IF($B1215>0,(-C1217-IF(C1217>0,0,C1218)-C1219),0)","v":{"$error":"#DIV/0!"}},{"$f":"D1182+D1184+D1186+IF($B1188>0,(-D1190-D1191-D1192),0)+IF($B1193>0,(-D1195-D1196-D1197),0)+D1204+IF($B1198>0,(-D1200-IF(D1200>0,0,D1201)-D1202),0)+IF($B1205>0,(-D1207-D1208-D1209),0)+IF($B1210>0,(-D1212-D1213-D1214),0)+IF($B1215>0,(-D1217-IF(D1217>0,0,D1218)-D1219),0)","v":{"$error":"#DIV/0!"}},{"$error":"#DIV/0!"},{"$error":"#DIV/0!"},{"$error":"#DIV/0!"},{"$error":"#DIV/0!"},{"$error":"#DIV/0!"},{"$error":"#DIV/0!"},{"$error":"#DIV/0!"},{"$error":"#DIV/0!"},{"$error":"#DIV/0!"},{"$error":"#DIV/0!"},{"$error":"#DIV/0!"},{"$error":"#DIV/0!"},{"$error":"#DIV/0!"},{"$error":"#DIV/0!"},{"$error":"#DIV/0!"},{"$error":"#DIV/0!"},{"$error":"#DIV/0!"},{"$error":"#DIV/0!"}]
["Solde du compte (cumulé)",{"$f":"B1222","v":{"$error":"#DIV/0!"}},{"$f":"B1223+C1222","v":{"$error":"#DIV/0!"}},{"$error":"#DIV/0!"},{"$error":"#DIV/0!"},{"$error":"#DIV/0!"},{"$error":"#DIV/0!"},{"$error":"#DIV/0!"},{"$error":"#DIV/0!"},{"$error":"#DIV/0!"},{"$error":"#DIV/0!"},{"$error":"#DIV/0!"},{"$error":"#DIV/0!"},{"$error":"#DIV/0!"},{"$error":"#DIV/0!"},{"$error":"#DIV/0!"},{"$error":"#DIV/0!"},{"$error":"#DIV/0!"},{"$error":"#DIV/0!"},{"$error":"#DIV/0!"},{"$error":"#DIV/0!"},{"$error":"#DIV/0!"}]
[]
[]
[]
["Prêt bancaire additionnel"]
[null,"Période",1,2,3,4,5,6,7,8,9,10,11,12,13,14,15,16,17,18,19,20]
["Prêt bancaire additionnel - Option 1: Remboursement du principal fractionné",{"$f":"'1 Données d''entrée'!$B$342","v":0}]
["Prêt(s) nouveau(x)",null,{"$f":"IF(C1223<0,C1223*(-1)*$B1229+C1223*(-1)*$B1229*'1 Données d''entrée'!$C$338,0)","v":{"$error":"#DIV/0!"}},{"$f":"IF(D1223<0,D1223*(-1)*$B1229+D1223*(-1)*$B1229*'1 Données d''entrée'!$C$338,0)","v":{"$error":"#DIV/0!"}},{"$f":"IF(E1223<0,E1223*(-1)*$B1229+E1223*(-1)*$B1229*'1 Données d''entrée'!$C$338,0)","v":{"$error":"#DIV/0!"}},{"$f":"IF(F1223<0,F1223*(-1)*$B1229+F1223*(-1)*$B1229*'1 Données d''entrée'!$C$338,0)","v":{"$error":"#DIV/0!"}},{"$f":"IF(G1223<0,G1223*(-1)*$B1229+G1223*(-1)*$B1229*'1 Données d''entrée'!$C$338,0)","v":{"$error":"#DIV/0!"}},{"$f":"IF(H1223<0,H1223*(-1)*$B1229+H1223*(-1)*$B1229*'1 Données d''entrée'!$C$338,0)","v":{"$error":"#DIV/0!"}},{"$f":"IF(I1223<0,I1223*(-1)*$B1229+I1223*(-1)*$B1229*'1 Données d''entrée'!$C$338,0)","v":{"$error":"#DIV/0!"}},{"$f":"IF(J1223<0,J1223*(-1)*$B1229+J1223*(-1)*$B1229*'1 Données d''entrée'!$C$338,0)","v":{"$error":"#DIV/0!"}},{"$f":"IF(K1223<0,K1223*(-1)*$B1229+K1223*(-1)*$B1229*'1 Données d''entrée'!$C$338,0)","v":{"$error":"#DIV/0!"}},{"$f":"IF(L1223<0,L1223*(-1)*$B1229+L1223*(-1)*$B1229*'1 Données d''entrée'!$C$338,0)","v":{"$error":"#DIV/0!"}},{"$f":"IF(M1223<0,M1223*(-1)*$B1229+M1223*(-1)*$B1229*'1 Données d''entrée'!$C$338,0)","v":{"$error":"#DIV/0!"}},{"$f":"IF(N1223<0,N1223*(-1)*$B1229+N1223*(-1)*$B1229*'1 Données d''entrée'!$C$338,0)","v":{"$error":"#DIV/0!"}},{"$f":"IF(O1223<0,O1223*(-1)*$B1229+O1223*(-1)*$B1229*'1 Données d''entrée'!$C$338,0)","v":{"$error":"#DIV/0!"}},{"$f":"IF(P1223<0,P1223*(-1)*$B1229+P1223*(-1)*$B1229*'1 Données d''entrée'!$C$338,0)","v":{"$error":"#DIV/0!"}},{"$f":"IF(Q1223<0,Q1223*(-1)*$B1229+Q1223*(-1)*$B1229*'1 Données d''entrée'!$C$338,0)","v":{"$error":"#DIV/0!"}},{"$f":"IF(R1223<0,R1223*(-1)*$B1229+R1223*(-1)*$B1229*'1 Données d''entrée'!$C$338,0)","v":{"$error":"#DIV/0!"}},{"$f":"IF(S1223<0,S1223*(-1)*$B1229+S1223*(-1)*$B1229*'1 Données d''entrée'!$C$338,0)","v":{"$error":"#DIV/0!"}},{"$f":"IF(T1223<0,T1223*(-1)*$B1229+T1223*(-1)*$B1229*'1 Données d''entrée'!$C$338,0)","v":{"$error":"#DIV/0!"}},{"$f":"IF(U1223<0,U1223*(-1)*$B1229+U1223*(-1)*$B1229*'1 Données d''entrée'!$C$338,0)","v":{"$error":"#DIV/0!"}},{"$f":"IF(V1223<0,V1223*(-1)*$B1229+V1223*(-1)*$B1229*'1 Données d''entrée'!$C$338,0)","v":{"$error":"#DIV/0!"}}]
[null,"Période de prêt nouveau"]
["Remboursement du principal",0,0,0,0,0,0,0,0,0,0,0,0,0,0,0,0,0,0,0,0,0]
[null,1,{"$f":"IF(C1180<'1 Données d''entrée'!$C$334+1+$B1233,0,IF(C1180<'1 Données d''entrée'!$C$333+'1 Données d''entrée'!$C$334+1+$B1233,($C1230/'1 Données d''entrée'!$C$333),0))","v":0},{"$f":"IF(D1180<'1 Données d''entrée'!$C$334+1+$B1233,0,IF(D1180<'1 Données d''entrée'!$C$333+'1 Données d''entrée'!$C$334+1+$B1233,($C1230/'1 Données d''entrée'!$C$333),0))","v":0},{"$f":"IF(E1180<'1 Données d''entrée'!$C$334+1+$B1233,0,IF(E1180<'1 Données d''entrée'!$C$333+'1 Données d''entrée'!$C$334+1+$B1233,($C1230/'1 Données d''entrée'!$C$333),0))","v":0},{"$f":"IF(F1180<'1 Données d''entrée'!$C$334+1+$B1233,0,IF(F1180<'1 Données d''entrée'!$C$333+'1 Données d''entrée'!$C$334+1+$B1233,($C1230/'1 Données d''entrée'!$C$333),0))","v":0},{"$f":"IF(G1180<'1 Données d''entrée'!$C$334+1+$B1233,0,IF(G1180<'1 Données d''entrée'!$C$333+'1 Données d''entrée'!$C$334+1+$B1233,($C1230/'1 Données d''entrée'!$C$333),0))","v":0},{"$f":"IF(H1180<'1 Données d''entrée'!$C$334+1+$B1233,0,IF(H1180<'1 Données d''entrée'!$C$333+'1 Données d''entrée'!$C$334+1+$B1233,($C1230/'1 Données d''entrée'!$C$333),0))","v":0},{"$f":"IF(I1180<'1 Données d''entrée'!$C$334+1+$B1233,0,IF(I1180<'1 Données d''entrée'!$C$333+'1 Données d''entrée'!$C$334+1+$B1233,($C1230/'1 Données d''entrée'!$C$333),0))","v":0},{"$f":"IF(J1180<'1 Données d''entrée'!$C$334+1+$B1233,0,IF(J1180<'1 Données d''entrée'!$C$333+'1 Données d''entrée'!$C$334+1+$B1233,($C1230/'1 Données d''entrée'!$C$333),0))","v":0},{"$f":"IF(K1180<'1 Données d''entrée'!$C$334+1+$B1233,0,IF(K1180<'1 Données d''entrée'!$C$333+'1 Données d''entrée'!$C$334+1+$B1233,($C1230/'1 Données d''entrée'!$C$333),0))","v":0},{"$f":"IF(L1180<'1 Données d''entrée'!$C$334+1+$B1233,0,IF(L1180<'1 Données d''entrée'!$C$333+'1 Données d''entrée'!$C$334+1+$B1233,($C1230/'1 Données d''entrée'!$C$333),0))","v":0},{"$f":"IF(M1180<'1 Données d''entrée'!$C$334+1+$B1233,0,IF(M1180<'1 Données d''entrée'!$C$333+'1 Données d''entrée'!$C$334+1+$B1233,($C1230/'1 Données d''entrée'!$C$333),0))","v":0},{"$f":"IF(N1180<'1 Données d''entrée'!$C$334+1+$B1233,0,IF(N1180<'1 Données d''entrée'!$C$333+'1 Données d''entrée'!$C$334+1+$B1233,($C1230/'1 Données d''entrée'!$C$333),0))","v":0},{"$f":"IF(O1180<'1 Données d''entrée'!$C$334+1+$B1233,0,IF(O1180<'1 Données d''entrée'!$C$333+'1 Données d''entrée'!$C$334+1+$B1233,($C1230/'1 Données d''entrée'!$C$333),0))","v":0},{"$f":"IF(P1180<'1 Données d''entrée'!$C$334+1+$B1233,0,IF(P1180<'1 Données d''entrée'!$C$333+'1 Données d''entrée'!$C$334+1+$B1233,($C1230/'1 Données d''entrée'!$C$333),0))","v":0},{"$f":"IF(Q1180<'1 Données d''entrée'!$C$334+1+$B1233,0,IF(Q1180<'1 Données d''entrée'!$C$333+'1 Données d''entrée'!$C$334+1+$B1233,($C1230/'1 Données d''entrée'!$C$333),0))","v":0},{"$f":"IF(R1180<'1 Données d''entrée'!$C$334+1+$B1233,0,IF(R1180<'1 Données d''entrée'!$C$333+'1 Données d''entrée'!$C$334+1+$B1233,($C1230/'1 Données d''entrée'!$C$333),0))","v":0},{"$f":"IF(S1180<'1 Données d''entrée'!$C$334+1+$B1233,0,IF(S1180<'1 Données d''entrée'!$C$333+'1 Données d''entrée'!$C$334+1+$B1233,($C1230/'1 Données d''entrée'!$C$333),0))","v":0},{"$f":"IF(T1180<'1 Données d''entrée'!$C$334+1+$B1233,0,IF(T1180<'1 Données d''entrée'!$C$333+'1 Données d''entrée'!$C$334+1+$B1233,($C1230/'1 Données d''entrée'!$C$333),0))","v":0},{"$f":"IF(U1180<'1 Données d''entrée'!$C$334+1+$B1233,0,IF(U1180<'1 Données d''entrée'!$C$333+'1 Données d''entrée'!$C$334+1+$B1233,($C1230/'1 Données d''entrée'!$C$333),0))","v":0},{"$f":"IF(V1180<'1 Données d''entrée'!$C$334+1+$B1233,0,IF(V1180<'1 Données d''entrée'!$C$333+'1 Données d''entrée'!$C$334+1+$B1233,($C1230/'1 Données d''entrée'!$C$333),0))","v":0}]
[null,2,{"$f":"IF(C1180<'1 Données d''entrée'!$C$334+1+$B1234,0,IF(C1180<'1 Données d''entrée'!$C$333+'1 Données d''entrée'!$C$334+1+$B1234,($D1230/'1 Données d''entrée'!$C$333),0))","v":0},{"$f":"IF(D1180<'1 Données d''entrée'!$C$334+1+$B1234,0,IF(D1180<'1 Données d''entrée'!$C$333+'1 Données d''entrée'!$C$334+1+$B1234,($D1230/'1 Données d''entrée'!$C$333),0))","v":0},{"$f":"IF(E1180<'1 Données d''entrée'!$C$334+1+$B1234,0,IF(E1180<'1 Données d''entrée'!$C$333+'1 Données d''entrée'!$C$334+1+$B1234,($D1230/'1 Données d''entrée'!$C$333),0))","v":0},{"$f":"IF(F1180<'1 Données d''entrée'!$C$334+1+$B1234,0,IF(F1180<'1 Données d''entrée'!$C$333+'1 Données d''entrée'!$C$334+1+$B1234,($D1230/'1 Données d''entrée'!$C$333),0))","v":0},{"$f":"IF(G1180<'1 Données d''entrée'!$C$334+1+$B1234,0,IF(G1180<'1 Données d''entrée'!$C$333+'1 Données d''entrée'!$C$334+1+$B1234,($D1230/'1 Données d''entrée'!$C$333),0))","v":0},{"$f":"IF(H1180<'1 Données d''entrée'!$C$334+1+$B1234,0,IF(H1180<'1 Données d''entrée'!$C$333+'1 Données d''entrée'!$C$334+1+$B1234,($D1230/'1 Données d''entrée'!$C$333),0))","v":0},{"$f":"IF(I1180<'1 Données d''entrée'!$C$334+1+$B1234,0,IF(I1180<'1 Données d''entrée'!$C$333+'1 Données d''entrée'!$C$334+1+$B1234,($D1230/'1 Données d''entrée'!$C$333),0))","v":0},{"$f":"IF(J1180<'1 Données d''entrée'!$C$334+1+$B1234,0,IF(J1180<'1 Données d''entrée'!$C$333+'1 Données d''entrée'!$C$334+1+$B1234,($D1230/'1 Données d''entrée'!$C$333),0))","v":0},{"$f":"IF(K1180<'1 Données d''entrée'!$C$334+1+$B1234,0,IF(K1180<'1 Données d''entrée'!$C$333+'1 Données d''entrée'!$C$334+1+$B1234,($D1230/'1 Données d''entrée'!$C$333),0))","v":0},{"$f":"IF(L1180<'1 Données d''entrée'!$C$334+1+$B1234,0,IF(L1180<'1 Données d''entrée'!$C$333+'1 Données d''entrée'!$C$334+1+$B1234,($D1230/'1 Données d''entrée'!$C$333),0))","v":0},{"$f":"IF(M1180<'1 Données d''entrée'!$C$334+1+$B1234,0,IF(M1180<'1 Données d''entrée'!$C$333+'1 Données d''entrée'!$C$334+1+$B1234,($D1230/'1 Données d''entrée'!$C$333),0))","v":0},{"$f":"IF(N1180<'1 Données d''entrée'!$C$334+1+$B1234,0,IF(N1180<'1 Données d''entrée'!$C$333+'1 Données d''entrée'!$C$334+1+$B1234,($D1230/'1 Données d''entrée'!$C$333),0))","v":0},{"$f":"IF(O1180<'1 Données d''entrée'!$C$334+1+$B1234,0,IF(O1180<'1 Données d''entrée'!$C$333+'1 Données d''entrée'!$C$334+1+$B1234,($D1230/'1 Données d''entrée'!$C$333),0))","v":0},{"$f":"IF(P1180<'1 Données d''entrée'!$C$334+1+$B1234,0,IF(P1180<'1 Données d''entrée'!$C$333+'1 Données d''entrée'!$C$334+1+$B1234,($D1230/'1 Données d''entrée'!$C$333),0))","v":0},{"$f":"IF(Q1180<'1 Données d''entrée'!$C$334+1+$B1234,0,IF(Q1180<'1 Données d''entrée'!$C$333+'1 Données d''entrée'!$C$334+1+$B1234,($D1230/'1 Données d''entrée'!$C$333),0))","v":0},{"$f":"IF(R1180<'1 Données d''entrée'!$C$334+1+$B1234,0,IF(R1180<'1 Données d''entrée'!$C$333+'1 Données d''entrée'!$C$334+1+$B1234,($D1230/'1 Données d''entrée'!$C$333),0))","v":0},{"$f":"IF(S1180<'1 Données d''entrée'!$C$334+1+$B1234,0,IF(S1180<'1 Données d''entrée'!$C$333+'1 Données d''entrée'!$C$334+1+$B1234,($D1230/'1 Données d''entrée'!$C$333),0))","v":0},{"$f":"IF(T1180<'1 Données d''entrée'!$C$334+1+$B1234,0,IF(T1180<'1 Données d''entrée'!$C$333+'1 Données d''entrée'!$C$334+1+$B1234,($D1230/'1 Données d''entrée'!$C$333),0))","v":0},{"$f":"IF(U1180<'1 Données d''entrée'!$C$334+1+$B1234,0,IF(U1180<'1 Données d''entrée'!$C$333+'1 Données d''entrée'!$C$334+1+$B1234,($D1230/'1 Données d''entrée'!$C$333),0))","v":0},{"$f":"IF(V1180<'1 Données d''entrée'!$C$334+1+$B1234,0,IF(V1180<'1 Données d''entrée'!$C$333+'1 Données d''entrée'!$C$334+1+$B1234,($D1230/'1 Données d''entrée'!$C$333),0))","v":0}]
[null,3,{"$f":"IF(C1180<'1 Données d''entrée'!$C$334+1+$B1235,0,IF(C1180<'1 Données d''entrée'!$C$333+'1 Données d''entrée'!$C$334+1+$B1235,($E1230/'1 Données d''entrée'!$C$333),0))","v":0},{"$f":"IF(D1180<'1 Données d''entrée'!$C$334+1+$B1235,0,IF(D1180<'1 Données d''entrée'!$C$333+'1 Données d''entrée'!$C$334+1+$B1235,($E1230/'1 Données d''entrée'!$C$333),0))","v":0},{"$f":"IF(E1180<'1 Données d''entrée'!$C$334+1+$B1235,0,IF(E1180<'1 Données d''entrée'!$C$333+'1 Données d''entrée'!$C$334+1+$B1235,($E1230/'1 Données d''entrée'!$C$333),0))","v":0},{"$f":"IF(F1180<'1 Données d''entrée'!$C$334+1+$B1235,0,IF(F1180<'1 Données d''entrée'!$C$333+'1 Données d''entrée'!$C$334+1+$B1235,($E1230/'1 Données d''entrée'!$C$333),0))","v":0},{"$f":"IF(G1180<'1 Données d''entrée'!$C$334+1+$B1235,0,IF(G1180<'1 Données d''entrée'!$C$333+'1 Données d''entrée'!$C$334+1+$B1235,($E1230/'1 Données d''entrée'!$C$333),0))","v":0},{"$f":"IF(H1180<'1 Données d''entrée'!$C$334+1+$B1235,0,IF(H1180<'1 Données d''entrée'!$C$333+'1 Données d''entrée'!$C$334+1+$B1235,($E1230/'1 Données d''entrée'!$C$333),0))","v":0},{"$f":"IF(I1180<'1 Données d''entrée'!$C$334+1+$B1235,0,IF(I1180<'1 Données d''entrée'!$C$333+'1 Données d''entrée'!$C$334+1+$B1235,($E1230/'1 Données d''entrée'!$C$333),0))","v":0},{"$f":"IF(J1180<'1 Données d''entrée'!$C$334+1+$B1235,0,IF(J1180<'1 Données d''entrée'!$C$333+'1 Données d''entrée'!$C$334+1+$B1235,($E1230/'1 Données d''entrée'!$C$333),0))","v":0},{"$f":"IF(K1180<'1 Données d''entrée'!$C$334+1+$B1235,0,IF(K1180<'1 Données d''entrée'!$C$333+'1 Données d''entrée'!$C$334+1+$B1235,($E1230/'1 Données d''entrée'!$C$333),0))","v":0},{"$f":"IF(L1180<'1 Données d''entrée'!$C$334+1+$B1235,0,IF(L1180<'1 Données d''entrée'!$C$333+'1 Données d''entrée'!$C$334+1+$B1235,($E1230/'1 Données d''entrée'!$C$333),0))","v":0},{"$f":"IF(M1180<'1 Données d''entrée'!$C$334+1+$B1235,0,IF(M1180<'1 Données d''entrée'!$C$333+'1 Données d''entrée'!$C$334+1+$B1235,($E1230/'1 Données d''entrée'!$C$333),0))","v":0},{"$f":"IF(N1180<'1 Données d''entrée'!$C$334+1+$B1235,0,IF(N1180<'1 Données d''entrée'!$C$333+'1 Données d''entrée'!$C$334+1+$B1235,($E1230/'1 Données d''entrée'!$C$333),0))","v":0},{"$f":"IF(O1180<'1 Données d''entrée'!$C$334+1+$B1235,0,IF(O1180<'1 Données d''entrée'!$C$333+'1 Données d''entrée'!$C$334+1+$B1235,($E1230/'1 Données d''entrée'!$C$333),0))","v":0},{"$f":"IF(P1180<'1 Données d''entrée'!$C$334+1+$B1235,0,IF(P1180<'1 Données d''entrée'!$C$333+'1 Données d''entrée'!$C$334+1+$B1235,($E1230/'1 Données d''entrée'!$C$333),0))","v":0},{"$f":"IF(Q1180<'1 Données d''entrée'!$C$334+1+$B1235,0,IF(Q1180<'1 Données d''entrée'!$C$333+'1 Données d''entrée'!$C$334+1+$B1235,($E1230/'1 Données d''entrée'!$C$333),0))","v":0},{"$f":"IF(R1180<'1 Données d''entrée'!$C$334+1+$B1235,0,IF(R1180<'1 Données d''entrée'!$C$333+'1 Données d''entrée'!$C$334+1+$B1235,($E1230/'1 Données d''entrée'!$C$333),0))","v":0},{"$f":"IF(S1180<'1 Données d''entrée'!$C$334+1+$B1235,0,IF(S1180<'1 Données d''entrée'!$C$333+'1 Données d''entrée'!$C$334+1+$B1235,($E1230/'1 Données d''entrée'!$C$333),0))","v":0},{"$f":"IF(T1180<'1 Données d''entrée'!$C$334+1+$B1235,0,IF(T1180<'1 Données d''entrée'!$C$333+'1 Données d''entrée'!$C$334+1+$B1235,($E1230/'1 Données d''entrée'!$C$333),0))","v":0},{"$f":"IF(U1180<'1 Données d''entrée'!$C$334+1+$B1235,0,IF(U1180<'1 Données d''entrée'!$C$333+'1 Données d''entrée'!$C$334+1+$B1235,($E1230/'1 Données d''entrée'!$C$333),0))","v":0},{"$f":"IF(V1180<'1 Données d''entrée'!$C$334+1+$B1235,0,IF(V1180<'1 Données d''entrée'!$C$333+'1 Données d''entrée'!$C$334+1+$B1235,($E1230/'1 Données d''entrée'!$C$333),0))","v":0}]
[null,4,{"$f":"IF(C1180<'1 Données d''entrée'!$C$334+1+$B1236,0,IF(C1180<'1 Données d''entrée'!$C$333+'1 Données d''entrée'!$C$334+1+$B1236,($F1230/'1 Données d''entrée'!$C$333),0))","v":0},{"$f":"IF(D1180<'1 Données d''entrée'!$C$334+1+$B1236,0,IF(D1180<'1 Données d''entrée'!$C$333+'1 Données d''entrée'!$C$334+1+$B1236,($F1230/'1 Données d''entrée'!$C$333),0))","v":0},{"$f":"IF(E1180<'1 Données d''entrée'!$C$334+1+$B1236,0,IF(E1180<'1 Données d''entrée'!$C$333+'1 Données d''entrée'!$C$334+1+$B1236,($F1230/'1 Données d''entrée'!$C$333),0))","v":0},{"$f":"IF(F1180<'1 Données d''entrée'!$C$334+1+$B1236,0,IF(F1180<'1 Données d''entrée'!$C$333+'1 Données d''entrée'!$C$334+1+$B1236,($F1230/'1 Données d''entrée'!$C$333),0))","v":0},{"$f":"IF(G1180<'1 Données d''entrée'!$C$334+1+$B1236,0,IF(G1180<'1 Données d''entrée'!$C$333+'1 Données d''entrée'!$C$334+1+$B1236,($F1230/'1 Données d''entrée'!$C$333),0))","v":0},{"$f":"IF(H1180<'1 Données d''entrée'!$C$334+1+$B1236,0,IF(H1180<'1 Données d''entrée'!$C$333+'1 Données d''entrée'!$C$334+1+$B1236,($F1230/'1 Données d''entrée'!$C$333),0))","v":0},{"$f":"IF(I1180<'1 Données d''entrée'!$C$334+1+$B1236,0,IF(I1180<'1 Données d''entrée'!$C$333+'1 Données d''entrée'!$C$334+1+$B1236,($F1230/'1 Données d''entrée'!$C$333),0))","v":0},{"$f":"IF(J1180<'1 Données d''entrée'!$C$334+1+$B1236,0,IF(J1180<'1 Données d''entrée'!$C$333+'1 Données d''entrée'!$C$334+1+$B1236,($F1230/'1 Données d''entrée'!$C$333),0))","v":0},{"$f":"IF(K1180<'1 Données d''entrée'!$C$334+1+$B1236,0,IF(K1180<'1 Données d''entrée'!$C$333+'1 Données d''entrée'!$C$334+1+$B1236,($F1230/'1 Données d''entrée'!$C$333),0))","v":0},{"$f":"IF(L1180<'1 Données d''entrée'!$C$334+1+$B1236,0,IF(L1180<'1 Données d''entrée'!$C$333+'1 Données d''entrée'!$C$334+1+$B1236,($F1230/'1 Données d''entrée'!$C$333),0))","v":0},{"$f":"IF(M1180<'1 Données d''entrée'!$C$334+1+$B1236,0,IF(M1180<'1 Données d''entrée'!$C$333+'1 Données d''entrée'!$C$334+1+$B1236,($F1230/'1 Données d''entrée'!$C$333),0))","v":0},{"$f":"IF(N1180<'1 Données d''entrée'!$C$334+1+$B1236,0,IF(N1180<'1 Données d''entrée'!$C$333+'1 Données d''entrée'!$C$334+1+$B1236,($F1230/'1 Données d''entrée'!$C$333),0))","v":0},{"$f":"IF(O1180<'1 Données d''entrée'!$C$334+1+$B1236,0,IF(O1180<'1 Données d''entrée'!$C$333+'1 Données d''entrée'!$C$334+1+$B1236,($F1230/'1 Données d''entrée'!$C$333),0))","v":0},{"$f":"IF(P1180<'1 Données d''entrée'!$C$334+1+$B1236,0,IF(P1180<'1 Données d''entrée'!$C$333+'1 Données d''entrée'!$C$334+1+$B1236,($F1230/'1 Données d''entrée'!$C$333),0))","v":0},{"$f":"IF(Q1180<'1 Données d''entrée'!$C$334+1+$B1236,0,IF(Q1180<'1 Données d''entrée'!$C$333+'1 Données d''entrée'!$C$334+1+$B1236,($F1230/'1 Données d''entrée'!$C$333),0))","v":0},{"$f":"IF(R1180<'1 Données d''entrée'!$C$334+1+$B1236,0,IF(R1180<'1 Données d''entrée'!$C$333+'1 Données d''entrée'!$C$334+1+$B1236,($F1230/'1 Données d''entrée'!$C$333),0))","v":0},{"$f":"IF(S1180<'1 Données d''entrée'!$C$334+1+$B1236,0,IF(S1180<'1 Données d''entrée'!$C$333+'1 Données d''entrée'!$C$334+1+$B1236,($F1230/'1 Données d''entrée'!$C$333),0))","v":0},{"$f":"IF(T1180<'1 Données d''entrée'!$C$334+1+$B1236,0,IF(T1180<'1 Données d''entrée'!$C$333+'1 Données d''entrée'!$C$334+1+$B1236,($F1230/'1 Données d''entrée'!$C$333),0))","v":0},{"$f":"IF(U1180<'1 Données d''entrée'!$C$334+1+$B1236,0,IF(U1180<'1 Données d''entrée'!$C$333+'1 Données d''entrée'!$C$334+1+$B1236,($F1230/'1 Données d''entrée'!$C$333),0))","v":0},{"$f":"IF(V1180<'1 Données d''entrée'!$C$334+1+$B1236,0,IF(V1180<'1 Données d''entrée'!$C$333+'1 Données d''entrée'!$C$334+1+$B1236,($F1230/'1 Données d''entrée'!$C$333),0))","v":0}]
[null,5,{"$f":"IF(C1180<'1 Données d''entrée'!$C$334+1+$B1237,0,IF(C1180<'1 Données d''entrée'!$C$333+'1 Données d''entrée'!$C$334+1+$B1237,($G1230/'1 Données d''entrée'!$C$333),0))","v":0},{"$f":"IF(D1180<'1 Données d''entrée'!$C$334+1+$B1237,0,IF(D1180<'1 Données d''entrée'!$C$333+'1 Données d''entrée'!$C$334+1+$B1237,($G1230/'1 Données d''entrée'!$C$333),0))","v":0},{"$f":"IF(E1180<'1 Données d''entrée'!$C$334+1+$B1237,0,IF(E1180<'1 Données d''entrée'!$C$333+'1 Données d''entrée'!$C$334+1+$B1237,($G1230/'1 Données d''entrée'!$C$333),0))","v":0},{"$f":"IF(F1180<'1 Données d''entrée'!$C$334+1+$B1237,0,IF(F1180<'1 Données d''entrée'!$C$333+'1 Données d''entrée'!$C$334+1+$B1237,($G1230/'1 Données d''entrée'!$C$333),0))","v":0},{"$f":"IF(G1180<'1 Données d''entrée'!$C$334+1+$B1237,0,IF(G1180<'1 Données d''entrée'!$C$333+'1 Données d''entrée'!$C$334+1+$B1237,($G1230/'1 Données d''entrée'!$C$333),0))","v":0},{"$f":"IF(H1180<'1 Données d''entrée'!$C$334+1+$B1237,0,IF(H1180<'1 Données d''entrée'!$C$333+'1 Données d''entrée'!$C$334+1+$B1237,($G1230/'1 Données d''entrée'!$C$333),0))","v":0},{"$f":"IF(I1180<'1 Données d''entrée'!$C$334+1+$B1237,0,IF(I1180<'1 Données d''entrée'!$C$333+'1 Données d''entrée'!$C$334+1+$B1237,($G1230/'1 Données d''entrée'!$C$333),0))","v":0},{"$f":"IF(J1180<'1 Données d''entrée'!$C$334+1+$B1237,0,IF(J1180<'1 Données d''entrée'!$C$333+'1 Données d''entrée'!$C$334+1+$B1237,($G1230/'1 Données d''entrée'!$C$333),0))","v":0},{"$f":"IF(K1180<'1 Données d''entrée'!$C$334+1+$B1237,0,IF(K1180<'1 Données d''entrée'!$C$333+'1 Données d''entrée'!$C$334+1+$B1237,($G1230/'1 Données d''entrée'!$C$333),0))","v":0},{"$f":"IF(L1180<'1 Données d''entrée'!$C$334+1+$B1237,0,IF(L1180<'1 Données d''entrée'!$C$333+'1 Données d''entrée'!$C$334+1+$B1237,($G1230/'1 Données d''entrée'!$C$333),0))","v":0},{"$f":"IF(M1180<'1 Données d''entrée'!$C$334+1+$B1237,0,IF(M1180<'1 Données d''entrée'!$C$333+'1 Données d''entrée'!$C$334+1+$B1237,($G1230/'1 Données d''entrée'!$C$333),0))","v":0},{"$f":"IF(N1180<'1 Données d''entrée'!$C$334+1+$B1237,0,IF(N1180<'1 Données d''entrée'!$C$333+'1 Données d''entrée'!$C$334+1+$B1237,($G1230/'1 Données d''entrée'!$C$333),0))","v":0},{"$f":"IF(O1180<'1 Données d''entrée'!$C$334+1+$B1237,0,IF(O1180<'1 Données d''entrée'!$C$333+'1 Données d''entrée'!$C$334+1+$B1237,($G1230/'1 Données d''entrée'!$C$333),0))","v":0},{"$f":"IF(P1180<'1 Données d''entrée'!$C$334+1+$B1237,0,IF(P1180<'1 Données d''entrée'!$C$333+'1 Données d''entrée'!$C$334+1+$B1237,($G1230/'1 Données d''entrée'!$C$333),0))","v":0},{"$f":"IF(Q1180<'1 Données d''entrée'!$C$334+1+$B1237,0,IF(Q1180<'1 Données d''entrée'!$C$333+'1 Données d''entrée'!$C$334+1+$B1237,($G1230/'1 Données d''entrée'!$C$333),0))","v":0},{"$f":"IF(R1180<'1 Données d''entrée'!$C$334+1+$B1237,0,IF(R1180<'1 Données d''entrée'!$C$333+'1 Données d''entrée'!$C$334+1+$B1237,($G1230/'1 Données d''entrée'!$C$333),0))","v":0},{"$f":"IF(S1180<'1 Données d''entrée'!$C$334+1+$B1237,0,IF(S1180<'1 Données d''entrée'!$C$333+'1 Données d''entrée'!$C$334+1+$B1237,($G1230/'1 Données d''entrée'!$C$333),0))","v":0},{"$f":"IF(T1180<'1 Données d''entrée'!$C$334+1+$B1237,0,IF(T1180<'1 Données d''entrée'!$C$333+'1 Données d''entrée'!$C$334+1+$B1237,($G1230/'1 Données d''entrée'!$C$333),0))","v":0},{"$f":"IF(U1180<'1 Données d''entrée'!$C$334+1+$B1237,0,IF(U1180<'1 Données d''entrée'!$C$333+'1 Données d''entrée'!$C$334+1+$B1237,($G1230/'1 Données d''entrée'!$C$333),0))","v":0},{"$f":"IF(V1180<'1 Données d''entrée'!$C$334+1+$B1237,0,IF(V1180<'1 Données d''entrée'!$C$333+'1 Données d''entrée'!$C$334+1+$B1237,($G1230/'1 Données d''entrée'!$C$333),0))","v":0}]
[null,6,{"$f":"IF(C1180<'1 Données d''entrée'!$C$334+1+$B1238,0,IF(C1180<'1 Données d''entrée'!$C$333+'1 Données d''entrée'!$C$334+1+$B1238,($H1230/'1 Données d''entrée'!$C$333),0))","v":0},{"$f":"IF(D1180<'1 Données d''entrée'!$C$334+1+$B1238,0,IF(D1180<'1 Données d''entrée'!$C$333+'1 Données d''entrée'!$C$334+1+$B1238,($H1230/'1 Données d''entrée'!$C$333),0))","v":0},{"$f":"IF(E1180<'1 Données d''entrée'!$C$334+1+$B1238,0,IF(E1180<'1 Données d''entrée'!$C$333+'1 Données d''entrée'!$C$334+1+$B1238,($H1230/'1 Données d''entrée'!$C$333),0))","v":0},{"$f":"IF(F1180<'1 Données d''entrée'!$C$334+1+$B1238,0,IF(F1180<'1 Données d''entrée'!$C$333+'1 Données d''entrée'!$C$334+1+$B1238,($H1230/'1 Données d''entrée'!$C$333),0))","v":0},{"$f":"IF(G1180<'1 Données d''entrée'!$C$334+1+$B1238,0,IF(G1180<'1 Données d''entrée'!$C$333+'1 Données d''entrée'!$C$334+1+$B1238,($H1230/'1 Données d''entrée'!$C$333),0))","v":0},{"$f":"IF(H1180<'1 Données d''entrée'!$C$334+1+$B1238,0,IF(H1180<'1 Données d''entrée'!$C$333+'1 Données d''entrée'!$C$334+1+$B1238,($H1230/'1 Données d''entrée'!$C$333),0))","v":0},{"$f":"IF(I1180<'1 Données d''entrée'!$C$334+1+$B1238,0,IF(I1180<'1 Données d''entrée'!$C$333+'1 Données d''entrée'!$C$334+1+$B1238,($H1230/'1 Données d''entrée'!$C$333),0))","v":0},{"$f":"IF(J1180<'1 Données d''entrée'!$C$334+1+$B1238,0,IF(J1180<'1 Données d''entrée'!$C$333+'1 Données d''entrée'!$C$334+1+$B1238,($H1230/'1 Données d''entrée'!$C$333),0))","v":0},{"$f":"IF(K1180<'1 Données d''entrée'!$C$334+1+$B1238,0,IF(K1180<'1 Données d''entrée'!$C$333+'1 Données d''entrée'!$C$334+1+$B1238,($H1230/'1 Données d''entrée'!$C$333),0))","v":0},{"$f":"IF(L1180<'1 Données d''entrée'!$C$334+1+$B1238,0,IF(L1180<'1 Données d''entrée'!$C$333+'1 Données d''entrée'!$C$334+1+$B1238,($H1230/'1 Données d''entrée'!$C$333),0))","v":0},{"$f":"IF(M1180<'1 Données d''entrée'!$C$334+1+$B1238,0,IF(M1180<'1 Données d''entrée'!$C$333+'1 Données d''entrée'!$C$334+1+$B1238,($H1230/'1 Données d''entrée'!$C$333),0))","v":0},{"$f":"IF(N1180<'1 Données d''entrée'!$C$334+1+$B1238,0,IF(N1180<'1 Données d''entrée'!$C$333+'1 Données d''entrée'!$C$334+1+$B1238,($H1230/'1 Données d''entrée'!$C$333),0))","v":0},{"$f":"IF(O1180<'1 Données d''entrée'!$C$334+1+$B1238,0,IF(O1180<'1 Données d''entrée'!$C$333+'1 Données d''entrée'!$C$334+1+$B1238,($H1230/'1 Données d''entrée'!$C$333),0))","v":0},{"$f":"IF(P1180<'1 Données d''entrée'!$C$334+1+$B1238,0,IF(P1180<'1 Données d''entrée'!$C$333+'1 Données d''entrée'!$C$334+1+$B1238,($H1230/'1 Données d''entrée'!$C$333),0))","v":0},{"$f":"IF(Q1180<'1 Données d''entrée'!$C$334+1+$B1238,0,IF(Q1180<'1 Données d''entrée'!$C$333+'1 Données d''entrée'!$C$334+1+$B1238,($H1230/'1 Données d''entrée'!$C$333),0))","v":0},{"$f":"IF(R1180<'1 Données d''entrée'!$C$334+1+$B1238,0,IF(R1180<'1 Données d''entrée'!$C$333+'1 Données d''entrée'!$C$334+1+$B1238,($H1230/'1 Données d''entrée'!$C$333),0))","v":0},{"$f":"IF(S1180<'1 Données d''entrée'!$C$334+1+$B1238,0,IF(S1180<'1 Données d''entrée'!$C$333+'1 Données d''entrée'!$C$334+1+$B1238,($H1230/'1 Données d''entrée'!$C$333),0))","v":0},{"$f":"IF(T1180<'1 Données d''entrée'!$C$334+1+$B1238,0,IF(T1180<'1 Données d''entrée'!$C$333+'1 Données d''entrée'!$C$334+1+$B1238,($H1230/'1 Données d''entrée'!$C$333),0))","v":0},{"$f":"IF(U1180<'1 Données d''entrée'!$C$334+1+$B1238,0,IF(U1180<'1 Données d''entrée'!$C$333+'1 Données d''entrée'!$C$334+1+$B1238,($H1230/'1 Données d''entrée'!$C$333),0))","v":0},{"$f":"IF(V1180<'1 Données d''entrée'!$C$334+1+$B1238,0,IF(V1180<'1 Données d''entrée'!$C$333+'1 Données d''entrée'!$C$334+1+$B1238,($H1230/'1 Données d''entrée'!$C$333),0))","v":0}]
[null,7,{"$f":"IF(C1180<'1 Données d''entrée'!$C$334+1+$B1239,0,IF(C1180<'1 Données d''entrée'!$C$333+'1 Données d''entrée'!$C$334+1+$B1239,($I1230/'1 Données d''entrée'!$C$333),0))","v":0},{"$f":"IF(D1180<'1 Données d''entrée'!$C$334+1+$B1239,0,IF(D1180<'1 Données d''entrée'!$C$333+'1 Données d''entrée'!$C$334+1+$B1239,($I1230/'1 Données d''entrée'!$C$333),0))","v":0},{"$f":"IF(E1180<'1 Données d''entrée'!$C$334+1+$B1239,0,IF(E1180<'1 Données d''entrée'!$C$333+'1 Données d''entrée'!$C$334+1+$B1239,($I1230/'1 Données d''entrée'!$C$333),0))","v":0},{"$f":"IF(F1180<'1 Données d''entrée'!$C$334+1+$B1239,0,IF(F1180<'1 Données d''entrée'!$C$333+'1 Données d''entrée'!$C$334+1+$B1239,($I1230/'1 Données d''entrée'!$C$333),0))","v":0},{"$f":"IF(G1180<'1 Données d''entrée'!$C$334+1+$B1239,0,IF(G1180<'1 Données d''entrée'!$C$333+'1 Données d''entrée'!$C$334+1+$B1239,($I1230/'1 Données d''entrée'!$C$333),0))","v":0},{"$f":"IF(H1180<'1 Données d''entrée'!$C$334+1+$B1239,0,IF(H1180<'1 Données d''entrée'!$C$333+'1 Données d''entrée'!$C$334+1+$B1239,($I1230/'1 Données d''entrée'!$C$333),0))","v":0},{"$f":"IF(I1180<'1 Données d''entrée'!$C$334+1+$B1239,0,IF(I1180<'1 Données d''entrée'!$C$333+'1 Données d''entrée'!$C$334+1+$B1239,($I1230/'1 Données d''entrée'!$C$333),0))","v":0},{"$f":"IF(J1180<'1 Données d''entrée'!$C$334+1+$B1239,0,IF(J1180<'1 Données d''entrée'!$C$333+'1 Données d''entrée'!$C$334+1+$B1239,($I1230/'1 Données d''entrée'!$C$333),0))","v":0},{"$f":"IF(K1180<'1 Données d''entrée'!$C$334+1+$B1239,0,IF(K1180<'1 Données d''entrée'!$C$333+'1 Données d''entrée'!$C$334+1+$B1239,($I1230/'1 Données d''entrée'!$C$333),0))","v":0},{"$f":"IF(L1180<'1 Données d''entrée'!$C$334+1+$B1239,0,IF(L1180<'1 Données d''entrée'!$C$333+'1 Données d''entrée'!$C$334+1+$B1239,($I1230/'1 Données d''entrée'!$C$333),0))","v":0},{"$f":"IF(M1180<'1 Données d''entrée'!$C$334+1+$B1239,0,IF(M1180<'1 Données d''entrée'!$C$333+'1 Données d''entrée'!$C$334+1+$B1239,($I1230/'1 Données d''entrée'!$C$333),0))","v":0},{"$f":"IF(N1180<'1 Données d''entrée'!$C$334+1+$B1239,0,IF(N1180<'1 Données d''entrée'!$C$333+'1 Données d''entrée'!$C$334+1+$B1239,($I1230/'1 Données d''entrée'!$C$333),0))","v":0},{"$f":"IF(O1180<'1 Données d''entrée'!$C$334+1+$B1239,0,IF(O1180<'1 Données d''entrée'!$C$333+'1 Données d''entrée'!$C$334+1+$B1239,($I1230/'1 Données d''entrée'!$C$333),0))","v":0},{"$f":"IF(P1180<'1 Données d''entrée'!$C$334+1+$B1239,0,IF(P1180<'1 Données d''entrée'!$C$333+'1 Données d''entrée'!$C$334+1+$B1239,($I1230/'1 Données d''entrée'!$C$333),0))","v":0},{"$f":"IF(Q1180<'1 Données d''entrée'!$C$334+1+$B1239,0,IF(Q1180<'1 Données d''entrée'!$C$333+'1 Données d''entrée'!$C$334+1+$B1239,($I1230/'1 Données d''entrée'!$C$333),0))","v":0},{"$f":"IF(R1180<'1 Données d''entrée'!$C$334+1+$B1239,0,IF(R1180<'1 Données d''entrée'!$C$333+'1 Données d''entrée'!$C$334+1+$B1239,($I1230/'1 Données d''entrée'!$C$333),0))","v":0},{"$f":"IF(S1180<'1 Données d''entrée'!$C$334+1+$B1239,0,IF(S1180<'1 Données d''entrée'!$C$333+'1 Données d''entrée'!$C$334+1+$B1239,($I1230/'1 Données d''entrée'!$C$333),0))","v":0},{"$f":"IF(T1180<'1 Données d''entrée'!$C$334+1+$B1239,0,IF(T1180<'1 Données d''entrée'!$C$333+'1 Données d''entrée'!$C$334+1+$B1239,($I1230/'1 Données d''entrée'!$C$333),0))","v":0},{"$f":"IF(U1180<'1 Données d''entrée'!$C$334+1+$B1239,0,IF(U1180<'1 Données d''entrée'!$C$333+'1 Données d''entrée'!$C$334+1+$B1239,($I1230/'1 Données d''entrée'!$C$333),0))","v":0},{"$f":"IF(V1180<'1 Données d''entrée'!$C$334+1+$B1239,0,IF(V1180<'1 Données d''entrée'!$C$333+'1 Données d''entrée'!$C$334+1+$B1239,($I1230/'1 Données d''entrée'!$C$333),0))","v":0}]
[null,8,{"$f":"IF(C1180<'1 Données d''entrée'!$C$334+1+$B1240,0,IF(C1180<'1 Données d''entrée'!$C$333+'1 Données d''entrée'!$C$334+1+$B1240,($J1230/'1 Données d''entrée'!$C$333),0))","v":0},{"$f":"IF(D1180<'1 Données d''entrée'!$C$334+1+$B1240,0,IF(D1180<'1 Données d''entrée'!$C$333+'1 Données d''entrée'!$C$334+1+$B1240,($J1230/'1 Données d''entrée'!$C$333),0))","v":0},{"$f":"IF(E1180<'1 Données d''entrée'!$C$334+1+$B1240,0,IF(E1180<'1 Données d''entrée'!$C$333+'1 Données d''entrée'!$C$334+1+$B1240,($J1230/'1 Données d''entrée'!$C$333),0))","v":0},{"$f":"IF(F1180<'1 Données d''entrée'!$C$334+1+$B1240,0,IF(F1180<'1 Données d''entrée'!$C$333+'1 Données d''entrée'!$C$334+1+$B1240,($J1230/'1 Données d''entrée'!$C$333),0))","v":0},{"$f":"IF(G1180<'1 Données d''entrée'!$C$334+1+$B1240,0,IF(G1180<'1 Données d''entrée'!$C$333+'1 Données d''entrée'!$C$334+1+$B1240,($J1230/'1 Données d''entrée'!$C$333),0))","v":0},{"$f":"IF(H1180<'1 Données d''entrée'!$C$334+1+$B1240,0,IF(H1180<'1 Données d''entrée'!$C$333+'1 Données d''entrée'!$C$334+1+$B1240,($J1230/'1 Données d''entrée'!$C$333),0))","v":0},{"$f":"IF(I1180<'1 Données d''entrée'!$C$334+1+$B1240,0,IF(I1180<'1 Données d''entrée'!$C$333+'1 Données d''entrée'!$C$334+1+$B1240,($J1230/'1 Données d''entrée'!$C$333),0))","v":0},{"$f":"IF(J1180<'1 Données d''entrée'!$C$334+1+$B1240,0,IF(J1180<'1 Données d''entrée'!$C$333+'1 Données d''entrée'!$C$334+1+$B1240,($J1230/'1 Données d''entrée'!$C$333),0))","v":0},{"$f":"IF(K1180<'1 Données d''entrée'!$C$334+1+$B1240,0,IF(K1180<'1 Données d''entrée'!$C$333+'1 Données d''entrée'!$C$334+1+$B1240,($J1230/'1 Données d''entrée'!$C$333),0))","v":0},{"$f":"IF(L1180<'1 Données d''entrée'!$C$334+1+$B1240,0,IF(L1180<'1 Données d''entrée'!$C$333+'1 Données d''entrée'!$C$334+1+$B1240,($J1230/'1 Données d''entrée'!$C$333),0))","v":0},{"$f":"IF(M1180<'1 Données d''entrée'!$C$334+1+$B1240,0,IF(M1180<'1 Données d''entrée'!$C$333+'1 Données d''entrée'!$C$334+1+$B1240,($J1230/'1 Données d''entrée'!$C$333),0))","v":0},{"$f":"IF(N1180<'1 Données d''entrée'!$C$334+1+$B1240,0,IF(N1180<'1 Données d''entrée'!$C$333+'1 Données d''entrée'!$C$334+1+$B1240,($J1230/'1 Données d''entrée'!$C$333),0))","v":0},{"$f":"IF(O1180<'1 Données d''entrée'!$C$334+1+$B1240,0,IF(O1180<'1 Données d''entrée'!$C$333+'1 Données d''entrée'!$C$334+1+$B1240,($J1230/'1 Données d''entrée'!$C$333),0))","v":0},{"$f":"IF(P1180<'1 Données d''entrée'!$C$334+1+$B1240,0,IF(P1180<'1 Données d''entrée'!$C$333+'1 Données d''entrée'!$C$334+1+$B1240,($J1230/'1 Données d''entrée'!$C$333),0))","v":0},{"$f":"IF(Q1180<'1 Données d''entrée'!$C$334+1+$B1240,0,IF(Q1180<'1 Données d''entrée'!$C$333+'1 Données d''entrée'!$C$334+1+$B1240,($J1230/'1 Données d''entrée'!$C$333),0))","v":0},{"$f":"IF(R1180<'1 Données d''entrée'!$C$334+1+$B1240,0,IF(R1180<'1 Données d''entrée'!$C$333+'1 Données d''entrée'!$C$334+1+$B1240,($J1230/'1 Données d''entrée'!$C$333),0))","v":0},{"$f":"IF(S1180<'1 Données d''entrée'!$C$334+1+$B1240,0,IF(S1180<'1 Données d''entrée'!$C$333+'1 Données d''entrée'!$C$334+1+$B1240,($J1230/'1 Données d''entrée'!$C$333),0))","v":0},{"$f":"IF(T1180<'1 Données d''entrée'!$C$334+1+$B1240,0,IF(T1180<'1 Données d''entrée'!$C$333+'1 Données d''entrée'!$C$334+1+$B1240,($J1230/'1 Données d''entrée'!$C$333),0))","v":0},{"$f":"IF(U1180<'1 Données d''entrée'!$C$334+1+$B1240,0,IF(U1180<'1 Données d''entrée'!$C$333+'1 Données d''entrée'!$C$334+1+$B1240,($J1230/'1 Données d''entrée'!$C$333),0))","v":0},{"$f":"IF(V1180<'1 Données d''entrée'!$C$334+1+$B1240,0,IF(V1180<'1 Données d''entrée'!$C$333+'1 Données d''entrée'!$C$334+1+$B1240,($J1230/'1 Données d''entrée'!$C$333),0))","v":0}]
[null,9,{"$f":"IF(C1180<'1 Données d''entrée'!$C$334+1+$B1241,0,IF(C1180<'1 Données d''entrée'!$C$333+'1 Données d''entrée'!$C$334+1+$B1241,($K1230/'1 Données d''entrée'!$C$333),0))","v":0},{"$f":"IF(D1180<'1 Données d''entrée'!$C$334+1+$B1241,0,IF(D1180<'1 Données d''entrée'!$C$333+'1 Données d''entrée'!$C$334+1+$B1241,($K1230/'1 Données d''entrée'!$C$333),0))","v":0},{"$f":"IF(E1180<'1 Données d''entrée'!$C$334+1+$B1241,0,IF(E1180<'1 Données d''entrée'!$C$333+'1 Données d''entrée'!$C$334+1+$B1241,($K1230/'1 Données d''entrée'!$C$333),0))","v":0},{"$f":"IF(F1180<'1 Données d''entrée'!$C$334+1+$B1241,0,IF(F1180<'1 Données d''entrée'!$C$333+'1 Données d''entrée'!$C$334+1+$B1241,($K1230/'1 Données d''entrée'!$C$333),0))","v":0},{"$f":"IF(G1180<'1 Données d''entrée'!$C$334+1+$B1241,0,IF(G1180<'1 Données d''entrée'!$C$333+'1 Données d''entrée'!$C$334+1+$B1241,($K1230/'1 Données d''entrée'!$C$333),0))","v":0},{"$f":"IF(H1180<'1 Données d''entrée'!$C$334+1+$B1241,0,IF(H1180<'1 Données d''entrée'!$C$333+'1 Données d''entrée'!$C$334+1+$B1241,($K1230/'1 Données d''entrée'!$C$333),0))","v":0},{"$f":"IF(I1180<'1 Données d''entrée'!$C$334+1+$B1241,0,IF(I1180<'1 Données d''entrée'!$C$333+'1 Données d''entrée'!$C$334+1+$B1241,($K1230/'1 Données d''entrée'!$C$333),0))","v":0},{"$f":"IF(J1180<'1 Données d''entrée'!$C$334+1+$B1241,0,IF(J1180<'1 Données d''entrée'!$C$333+'1 Données d''entrée'!$C$334+1+$B1241,($K1230/'1 Données d''entrée'!$C$333),0))","v":0},{"$f":"IF(K1180<'1 Données d''entrée'!$C$334+1+$B1241,0,IF(K1180<'1 Données d''entrée'!$C$333+'1 Données d''entrée'!$C$334+1+$B1241,($K1230/'1 Données d''entrée'!$C$333),0))","v":0},{"$f":"IF(L1180<'1 Données d''entrée'!$C$334+1+$B1241,0,IF(L1180<'1 Données d''entrée'!$C$333+'1 Données d''entrée'!$C$334+1+$B1241,($K1230/'1 Données d''entrée'!$C$333),0))","v":0},{"$f":"IF(M1180<'1 Données d''entrée'!$C$334+1+$B1241,0,IF(M1180<'1 Données d''entrée'!$C$333+'1 Données d''entrée'!$C$334+1+$B1241,($K1230/'1 Données d''entrée'!$C$333),0))","v":0},{"$f":"IF(N1180<'1 Données d''entrée'!$C$334+1+$B1241,0,IF(N1180<'1 Données d''entrée'!$C$333+'1 Données d''entrée'!$C$334+1+$B1241,($K1230/'1 Données d''entrée'!$C$333),0))","v":0},{"$f":"IF(O1180<'1 Données d''entrée'!$C$334+1+$B1241,0,IF(O1180<'1 Données d''entrée'!$C$333+'1 Données d''entrée'!$C$334+1+$B1241,($K1230/'1 Données d''entrée'!$C$333),0))","v":0},{"$f":"IF(P1180<'1 Données d''entrée'!$C$334+1+$B1241,0,IF(P1180<'1 Données d''entrée'!$C$333+'1 Données d''entrée'!$C$334+1+$B1241,($K1230/'1 Données d''entrée'!$C$333),0))","v":0},{"$f":"IF(Q1180<'1 Données d''entrée'!$C$334+1+$B1241,0,IF(Q1180<'1 Données d''entrée'!$C$333+'1 Données d''entrée'!$C$334+1+$B1241,($K1230/'1 Données d''entrée'!$C$333),0))","v":0},{"$f":"IF(R1180<'1 Données d''entrée'!$C$334+1+$B1241,0,IF(R1180<'1 Données d''entrée'!$C$333+'1 Données d''entrée'!$C$334+1+$B1241,($K1230/'1 Données d''entrée'!$C$333),0))","v":0},{"$f":"IF(S1180<'1 Données d''entrée'!$C$334+1+$B1241,0,IF(S1180<'1 Données d''entrée'!$C$333+'1 Données d''entrée'!$C$334+1+$B1241,($K1230/'1 Données d''entrée'!$C$333),0))","v":0},{"$f":"IF(T1180<'1 Données d''entrée'!$C$334+1+$B1241,0,IF(T1180<'1 Données d''entrée'!$C$333+'1 Données d''entrée'!$C$334+1+$B1241,($K1230/'1 Données d''entrée'!$C$333),0))","v":0},{"$f":"IF(U1180<'1 Données d''entrée'!$C$334+1+$B1241,0,IF(U1180<'1 Données d''entrée'!$C$333+'1 Données d''entrée'!$C$334+1+$B1241,($K1230/'1 Données d''entrée'!$C$333),0))","v":0},{"$f":"IF(V1180<'1 Données d''entrée'!$C$334+1+$B1241,0,IF(V1180<'1 Données d''entrée'!$C$333+'1 Données d''entrée'!$C$334+1+$B1241,($K1230/'1 Données d''entrée'!$C$333),0))","v":0}]
[null,10,{"$f":"IF(C1180<'1 Données d''entrée'!$C$334+1+$B1242,0,IF(C1180<'1 Données d''entrée'!$C$333+'1 Données d''entrée'!$C$334+1+$B1242,($L1230/'1 Données d''entrée'!$C$333),0))","v":0},{"$f":"IF(D1180<'1 Données d''entrée'!$C$334+1+$B1242,0,IF(D1180<'1 Données d''entrée'!$C$333+'1 Données d''entrée'!$C$334+1+$B1242,($L1230/'1 Données d''entrée'!$C$333),0))","v":0},{"$f":"IF(E1180<'1 Données d''entrée'!$C$334+1+$B1242,0,IF(E1180<'1 Données d''entrée'!$C$333+'1 Données d''entrée'!$C$334+1+$B1242,($L1230/'1 Données d''entrée'!$C$333),0))","v":0},{"$f":"IF(F1180<'1 Données d''entrée'!$C$334+1+$B1242,0,IF(F1180<'1 Données d''entrée'!$C$333+'1 Données d''entrée'!$C$334+1+$B1242,($L1230/'1 Données d''entrée'!$C$333),0))","v":0},{"$f":"IF(G1180<'1 Données d''entrée'!$C$334+1+$B1242,0,IF(G1180<'1 Données d''entrée'!$C$333+'1 Données d''entrée'!$C$334+1+$B1242,($L1230/'1 Données d''entrée'!$C$333),0))","v":0},{"$f":"IF(H1180<'1 Données d''entrée'!$C$334+1+$B1242,0,IF(H1180<'1 Données d''entrée'!$C$333+'1 Données d''entrée'!$C$334+1+$B1242,($L1230/'1 Données d''entrée'!$C$333),0))","v":0},{"$f":"IF(I1180<'1 Données d''entrée'!$C$334+1+$B1242,0,IF(I1180<'1 Données d''entrée'!$C$333+'1 Données d''entrée'!$C$334+1+$B1242,($L1230/'1 Données d''entrée'!$C$333),0))","v":0},{"$f":"IF(J1180<'1 Données d''entrée'!$C$334+1+$B1242,0,IF(J1180<'1 Données d''entrée'!$C$333+'1 Données d''entrée'!$C$334+1+$B1242,($L1230/'1 Données d''entrée'!$C$333),0))","v":0},{"$f":"IF(K1180<'1 Données d''entrée'!$C$334+1+$B1242,0,IF(K1180<'1 Données d''entrée'!$C$333+'1 Données d''entrée'!$C$334+1+$B1242,($L1230/'1 Données d''entrée'!$C$333),0))","v":0},{"$f":"IF(L1180<'1 Données d''entrée'!$C$334+1+$B1242,0,IF(L1180<'1 Données d''entrée'!$C$333+'1 Données d''entrée'!$C$334+1+$B1242,($L1230/'1 Données d''entrée'!$C$333),0))","v":0},{"$f":"IF(M1180<'1 Données d''entrée'!$C$334+1+$B1242,0,IF(M1180<'1 Données d''entrée'!$C$333+'1 Données d''entrée'!$C$334+1+$B1242,($L1230/'1 Données d''entrée'!$C$333),0))","v":0},{"$f":"IF(N1180<'1 Données d''entrée'!$C$334+1+$B1242,0,IF(N1180<'1 Données d''entrée'!$C$333+'1 Données d''entrée'!$C$334+1+$B1242,($L1230/'1 Données d''entrée'!$C$333),0))","v":0},{"$f":"IF(O1180<'1 Données d''entrée'!$C$334+1+$B1242,0,IF(O1180<'1 Données d''entrée'!$C$333+'1 Données d''entrée'!$C$334+1+$B1242,($L1230/'1 Données d''entrée'!$C$333),0))","v":0},{"$f":"IF(P1180<'1 Données d''entrée'!$C$334+1+$B1242,0,IF(P1180<'1 Données d''entrée'!$C$333+'1 Données d''entrée'!$C$334+1+$B1242,($L1230/'1 Données d''entrée'!$C$333),0))","v":0},{"$f":"IF(Q1180<'1 Données d''entrée'!$C$334+1+$B1242,0,IF(Q1180<'1 Données d''entrée'!$C$333+'1 Données d''entrée'!$C$334+1+$B1242,($L1230/'1 Données d''entrée'!$C$333),0))","v":0},{"$f":"IF(R1180<'1 Données d''entrée'!$C$334+1+$B1242,0,IF(R1180<'1 Données d''entrée'!$C$333+'1 Données d''entrée'!$C$334+1+$B1242,($L1230/'1 Données d''entrée'!$C$333),0))","v":0},{"$f":"IF(S1180<'1 Données d''entrée'!$C$334+1+$B1242,0,IF(S1180<'1 Données d''entrée'!$C$333+'1 Données d''entrée'!$C$334+1+$B1242,($L1230/'1 Données d''entrée'!$C$333),0))","v":0},{"$f":"IF(T1180<'1 Données d''entrée'!$C$334+1+$B1242,0,IF(T1180<'1 Données d''entrée'!$C$333+'1 Données d''entrée'!$C$334+1+$B1242,($L1230/'1 Données d''entrée'!$C$333),0))","v":0},{"$f":"IF(U1180<'1 Données d''entrée'!$C$334+1+$B1242,0,IF(U1180<'1 Données d''entrée'!$C$333+'1 Données d''entrée'!$C$334+1+$B1242,($L1230/'1 Données d''entrée'!$C$333),0))","v":0},{"$f":"IF(V1180<'1 Données d''entrée'!$C$334+1+$B1242,0,IF(V1180<'1 Données d''entrée'!$C$333+'1 Données d''entrée'!$C$334+1+$B1242,($L1230/'1 Données d''entrée'!$C$333),0))","v":0}]
[null,"Période de prêt nouveau"]
["Paiement d'intérêts",0,0,0,0,0,0,0,0,0,0,0,0,0,0,0,0,0,0,0,0,0]
["Paiement d'intêrets",1,0,{"$f":"IF(C1180<1+$B1232,0,IF(C1180<'1 Données d''entrée'!$C$334+'1 Données d''entrée'!$C$333+1+$B1232,'1 Données d''entrée'!$C$332*($C1230-SUM($C1233:C1233)),0))","v":0},{"$f":"IF(D1180<1+$B1232,0,IF(D1180<'1 Données d''entrée'!$C$334+'1 Données d''entrée'!$C$333+1+$B1232,'1 Données d''entrée'!$C$332*($C1230-SUM($C1233:D1233)),0))","v":0},{"$f":"IF(E1180<1+$B1232,0,IF(E1180<'1 Données d''entrée'!$C$334+'1 Données d''entrée'!$C$333+1+$B1232,'1 Données d''entrée'!$C$332*($C1230-SUM($C1233:E1233)),0))","v":0},{"$f":"IF(F1180<1+$B1232,0,IF(F1180<'1 Données d''entrée'!$C$334+'1 Données d''entrée'!$C$333+1+$B1232,'1 Données d''entrée'!$C$332*($C1230-SUM($C1233:F1233)),0))","v":0},{"$f":"IF(G1180<1+$B1232,0,IF(G1180<'1 Données d''entrée'!$C$334+'1 Données d''entrée'!$C$333+1+$B1232,'1 Données d''entrée'!$C$332*($C1230-SUM($C1233:G1233)),0))","v":0},{"$f":"IF(H1180<1+$B1232,0,IF(H1180<'1 Données d''entrée'!$C$334+'1 Données d''entrée'!$C$333+1+$B1232,'1 Données d''entrée'!$C$332*($C1230-SUM($C1233:H1233)),0))","v":0},{"$f":"IF(I1180<1+$B1232,0,IF(I1180<'1 Données d''entrée'!$C$334+'1 Données d''entrée'!$C$333+1+$B1232,'1 Données d''entrée'!$C$332*($C1230-SUM($C1233:I1233)),0))","v":0},{"$f":"IF(J1180<1+$B1232,0,IF(J1180<'1 Données d''entrée'!$C$334+'1 Données d''entrée'!$C$333+1+$B1232,'1 Données d''entrée'!$C$332*($C1230-SUM($C1233:J1233)),0))","v":0},{"$f":"IF(K1180<1+$B1232,0,IF(K1180<'1 Données d''entrée'!$C$334+'1 Données d''entrée'!$C$333+1+$B1232,'1 Données d''entrée'!$C$332*($C1230-SUM($C1233:K1233)),0))","v":0},{"$f":"IF(L1180<1+$B1232,0,IF(L1180<'1 Données d''entrée'!$C$334+'1 Données d''entrée'!$C$333+1+$B1232,'1 Données d''entrée'!$C$332*($C1230-SUM($C1233:L1233)),0))","v":0},{"$f":"IF(M1180<1+$B1232,0,IF(M1180<'1 Données d''entrée'!$C$334+'1 Données d''entrée'!$C$333+1+$B1232,'1 Données d''entrée'!$C$332*($C1230-SUM($C1233:M1233)),0))","v":0},{"$f":"IF(N1180<1+$B1232,0,IF(N1180<'1 Données d''entrée'!$C$334+'1 Données d''entrée'!$C$333+1+$B1232,'1 Données d''entrée'!$C$332*($C1230-SUM($C1233:N1233)),0))","v":0},{"$f":"IF(O1180<1+$B1232,0,IF(O1180<'1 Données d''entrée'!$C$334+'1 Données d''entrée'!$C$333+1+$B1232,'1 Données d''entrée'!$C$332*($C1230-SUM($C1233:O1233)),0))","v":0},{"$f":"IF(P1180<1+$B1232,0,IF(P1180<'1 Données d''entrée'!$C$334+'1 Données d''entrée'!$C$333+1+$B1232,'1 Données d''entrée'!$C$332*($C1230-SUM($C1233:P1233)),0))","v":0},{"$f":"IF(Q1180<1+$B1232,0,IF(Q1180<'1 Données d''entrée'!$C$334+'1 Données d''entrée'!$C$333+1+$B1232,'1 Données d''entrée'!$C$332*($C1230-SUM($C1233:Q1233)),0))","v":0},{"$f":"IF(R1180<1+$B1232,0,IF(R1180<'1 Données d''entrée'!$C$334+'1 Données d''entrée'!$C$333+1+$B1232,'1 Données d''entrée'!$C$332*($C1230-SUM($C1233:R1233)),0))","v":0},{"$f":"IF(S1180<1+$B1232,0,IF(S1180<'1 Données d''entrée'!$C$334+'1 Données d''entrée'!$C$333+1+$B1232,'1 Données d''entrée'!$C$332*($C1230-SUM($C1233:S1233)),0))","v":0},{"$f":"IF(T1180<1+$B1232,0,IF(T1180<'1 Données d''entrée'!$C$334+'1 Données d''entrée'!$C$333+1+$B1232,'1 Données d''entrée'!$C$332*($C1230-SUM($C1233:T1233)),0))","v":0},{"$f":"IF(U1180<1+$B1232,0,IF(U1180<'1 Données d''entrée'!$C$334+'1 Données d''entrée'!$C$333+1+$B1232,'1 Données d''entrée'!$C$332*($C1230-SUM($C1233:U1233)),0))","v":0}]
["Paiement d'intêrets",2,0,{"$f":"IF(C1180<1+$B1233,0,IF(C1180<'1 Données d''entrée'!$C$334+'1 Données d''entrée'!$C$333+1+$B1233,'1 Données d''entrée'!$C$332*($D1230-SUM($C1234:C1234)),0))","v":0},{"$f":"IF(D1180<1+$B1233,0,IF(D1180<'1 Données d''entrée'!$C$334+'1 Données d''entrée'!$C$333+1+$B1233,'1 Données d''entrée'!$C$332*($D1230-SUM($C1234:D1234)),0))","v":0},{"$f":"IF(E1180<1+$B1233,0,IF(E1180<'1 Données d''entrée'!$C$334+'1 Données d''entrée'!$C$333+1+$B1233,'1 Données d''entrée'!$C$332*($D1230-SUM($C1234:E1234)),0))","v":0},{"$f":"IF(F1180<1+$B1233,0,IF(F1180<'1 Données d''entrée'!$C$334+'1 Données d''entrée'!$C$333+1+$B1233,'1 Données d''entrée'!$C$332*($D1230-SUM($C1234:F1234)),0))","v":0},{"$f":"IF(G1180<1+$B1233,0,IF(G1180<'1 Données d''entrée'!$C$334+'1 Données d''entrée'!$C$333+1+$B1233,'1 Données d''entrée'!$C$332*($D1230-SUM($C1234:G1234)),0))","v":0},{"$f":"IF(H1180<1+$B1233,0,IF(H1180<'1 Données d''entrée'!$C$334+'1 Données d''entrée'!$C$333+1+$B1233,'1 Données d''entrée'!$C$332*($D1230-SUM($C1234:H1234)),0))","v":0},{"$f":"IF(I1180<1+$B1233,0,IF(I1180<'1 Données d''entrée'!$C$334+'1 Données d''entrée'!$C$333+1+$B1233,'1 Données d''entrée'!$C$332*($D1230-SUM($C1234:I1234)),0))","v":0},{"$f":"IF(J1180<1+$B1233,0,IF(J1180<'1 Données d''entrée'!$C$334+'1 Données d''entrée'!$C$333+1+$B1233,'1 Données d''entrée'!$C$332*($D1230-SUM($C1234:J1234)),0))","v":0},{"$f":"IF(K1180<1+$B1233,0,IF(K1180<'1 Données d''entrée'!$C$334+'1 Données d''entrée'!$C$333+1+$B1233,'1 Données d''entrée'!$C$332*($D1230-SUM($C1234:K1234)),0))","v":0},{"$f":"IF(L1180<1+$B1233,0,IF(L1180<'1 Données d''entrée'!$C$334+'1 Données d''entrée'!$C$333+1+$B1233,'1 Données d''entrée'!$C$332*($D1230-SUM($C1234:L1234)),0))","v":0},{"$f":"IF(M1180<1+$B1233,0,IF(M1180<'1 Données d''entrée'!$C$334+'1 Données d''entrée'!$C$333+1+$B1233,'1 Données d''entrée'!$C$332*($D1230-SUM($C1234:M1234)),0))","v":0},{"$f":"IF(N1180<1+$B1233,0,IF(N1180<'1 Données d''entrée'!$C$334+'1 Données d''entrée'!$C$333+1+$B1233,'1 Données d''entrée'!$C$332*($D1230-SUM($C1234:N1234)),0))","v":0},{"$f":"IF(O1180<1+$B1233,0,IF(O1180<'1 Données d''entrée'!$C$334+'1 Données d''entrée'!$C$333+1+$B1233,'1 Données d''entrée'!$C$332*($D1230-SUM($C1234:O1234)),0))","v":0},{"$f":"IF(P1180<1+$B1233,0,IF(P1180<'1 Données d''entrée'!$C$334+'1 Données d''entrée'!$C$333+1+$B1233,'1 Données d''entrée'!$C$332*($D1230-SUM($C1234:P1234)),0))","v":0},{"$f":"IF(Q1180<1+$B1233,0,IF(Q1180<'1 Données d''entrée'!$C$334+'1 Données d''entrée'!$C$333+1+$B1233,'1 Données d''entrée'!$C$332*($D1230-SUM($C1234:Q1234)),0))","v":0},{"$f":"IF(R1180<1+$B1233,0,IF(R1180<'1 Données d''entrée'!$C$334+'1 Données d''entrée'!$C$333+1+$B1233,'1 Données d''entrée'!$C$332*($D1230-SUM($C1234:R1234)),0))","v":0},{"$f":"IF(S1180<1+$B1233,0,IF(S1180<'1 Données d''entrée'!$C$334+'1 Données d''entrée'!$C$333+1+$B1233,'1 Données d''entrée'!$C$332*($D1230-SUM($C1234:S1234)),0))","v":0},{"$f":"IF(T1180<1+$B1233,0,IF(T1180<'1 Données d''entrée'!$C$334+'1 Données d''entrée'!$C$333+1+$B1233,'1 Données d''entrée'!$C$332*($D1230-SUM($C1234:T1234)),0))","v":0},{"$f":"IF(U1180<1+$B1233,0,IF(U1180<'1 Données d''entrée'!$C$334+'1 Données d''entrée'!$C$333+1+$B1233,'1 Données d''entrée'!$C$332*($D1230-SUM($C1234:U1234)),0))","v":0}]
["Paiement d'intêrets",3,0,{"$f":"IF(C1180<1+$B1234,0,IF(C1180<'1 Données d''entrée'!$C$334+'1 Données d''entrée'!$C$333+1+$B1234,'1 Données d''entrée'!$C$332*($E1230-SUM($C1235:C1235)),0))","v":0},{"$f":"IF(D1180<1+$B1234,0,IF(D1180<'1 Données d''entrée'!$C$334+'1 Données d''entrée'!$C$333+1+$B1234,'1 Données d''entrée'!$C$332*($E1230-SUM($C1235:D1235)),0))","v":0},{"$f":"IF(E1180<1+$B1234,0,IF(E1180<'1 Données d''entrée'!$C$334+'1 Données d''entrée'!$C$333+1+$B1234,'1 Données d''entrée'!$C$332*($E1230-SUM($C1235:E1235)),0))","v":0},{"$f":"IF(F1180<1+$B1234,0,IF(F1180<'1 Données d''entrée'!$C$334+'1 Données d''entrée'!$C$333+1+$B1234,'1 Données d''entrée'!$C$332*($E1230-SUM($C1235:F1235)),0))","v":0},{"$f":"IF(G1180<1+$B1234,0,IF(G1180<'1 Données d''entrée'!$C$334+'1 Données d''entrée'!$C$333+1+$B1234,'1 Données d''entrée'!$C$332*($E1230-SUM($C1235:G1235)),0))","v":0},{"$f":"IF(H1180<1+$B1234,0,IF(H1180<'1 Données d''entrée'!$C$334+'1 Données d''entrée'!$C$333+1+$B1234,'1 Données d''entrée'!$C$332*($E1230-SUM($C1235:H1235)),0))","v":0},{"$f":"IF(I1180<1+$B1234,0,IF(I1180<'1 Données d''entrée'!$C$334+'1 Données d''entrée'!$C$333+1+$B1234,'1 Données d''entrée'!$C$332*($E1230-SUM($C1235:I1235)),0))","v":0},{"$f":"IF(J1180<1+$B1234,0,IF(J1180<'1 Données d''entrée'!$C$334+'1 Données d''entrée'!$C$333+1+$B1234,'1 Données d''entrée'!$C$332*($E1230-SUM($C1235:J1235)),0))","v":0},{"$f":"IF(K1180<1+$B1234,0,IF(K1180<'1 Données d''entrée'!$C$334+'1 Données d''entrée'!$C$333+1+$B1234,'1 Données d''entrée'!$C$332*($E1230-SUM($C1235:K1235)),0))","v":0},{"$f":"IF(L1180<1+$B1234,0,IF(L1180<'1 Données d''entrée'!$C$334+'1 Données d''entrée'!$C$333+1+$B1234,'1 Données d''entrée'!$C$332*($E1230-SUM($C1235:L1235)),0))","v":0},{"$f":"IF(M1180<1+$B1234,0,IF(M1180<'1 Données d''entrée'!$C$334+'1 Données d''entrée'!$C$333+1+$B1234,'1 Données d''entrée'!$C$332*($E1230-SUM($C1235:M1235)),0))","v":0},{"$f":"IF(N1180<1+$B1234,0,IF(N1180<'1 Données d''entrée'!$C$334+'1 Données d''entrée'!$C$333+1+$B1234,'1 Données d''entrée'!$C$332*($E1230-SUM($C1235:N1235)),0))","v":0},{"$f":"IF(O1180<1+$B1234,0,IF(O1180<'1 Données d''entrée'!$C$334+'1 Données d''entrée'!$C$333+1+$B1234,'1 Données d''entrée'!$C$332*($E1230-SUM($C1235:O1235)),0))","v":0},{"$f":"IF(P1180<1+$B1234,0,IF(P1180<'1 Données d''entrée'!$C$334+'1 Données d''entrée'!$C$333+1+$B1234,'1 Données d''entrée'!$C$332*($E1230-SUM($C1235:P1235)),0))","v":0},{"$f":"IF(Q1180<1+$B1234,0,IF(Q1180<'1 Données d''entrée'!$C$334+'1 Données d''entrée'!$C$333+1+$B1234,'1 Données d''entrée'!$C$332*($E1230-SUM($C1235:Q1235)),0))","v":0},{"$f":"IF(R1180<1+$B1234,0,IF(R1180<'1 Données d''entrée'!$C$334+'1 Données d''entrée'!$C$333+1+$B1234,'1 Données d''entrée'!$C$332*($E1230-SUM($C1235:R1235)),0))","v":0},{"$f":"IF(S1180<1+$B1234,0,IF(S1180<'1 Données d''entrée'!$C$334+'1 Données d''entrée'!$C$333+1+$B1234,'1 Données d''entrée'!$C$332*($E1230-SUM($C1235:S1235)),0))","v":0},{"$f":"IF(T1180<1+$B1234,0,IF(T1180<'1 Données d''entrée'!$C$334+'1 Données d''entrée'!$C$333+1+$B1234,'1 Données d''entrée'!$C$332*($E1230-SUM($C1235:T1235)),0))","v":0},{"$f":"IF(U1180<1+$B1234,0,IF(U1180<'1 Données d''entrée'!$C$334+'1 Données d''entrée'!$C$333+1+$B1234,'1 Données d''entrée'!$C$332*($E1230-SUM($C1235:U1235)),0))","v":0}]
["Paiement d'intêrets",4,0,{"$f":"IF(C1180<1+$B1235,0,IF(C1180<'1 Données d''entrée'!$C$334+'1 Données d''entrée'!$C$333+1+$B1235,'1 Données d''entrée'!$C$332*($F1230-SUM($C1236:C1236)),0))","v":0},{"$f":"IF(D1180<1+$B1235,0,IF(D1180<'1 Données d''entrée'!$C$334+'1 Données d''entrée'!$C$333+1+$B1235,'1 Données d''entrée'!$C$332*($F1230-SUM($C1236:D1236)),0))","v":0},{"$f":"IF(E1180<1+$B1235,0,IF(E1180<'1 Données d''entrée'!$C$334+'1 Données d''entrée'!$C$333+1+$B1235,'1 Données d''entrée'!$C$332*($F1230-SUM($C1236:E1236)),0))","v":0},{"$f":"IF(F1180<1+$B1235,0,IF(F1180<'1 Données d''entrée'!$C$334+'1 Données d''entrée'!$C$333+1+$B1235,'1 Données d''entrée'!$C$332*($F1230-SUM($C1236:F1236)),0))","v":0},{"$f":"IF(G1180<1+$B1235,0,IF(G1180<'1 Données d''entrée'!$C$334+'1 Données d''entrée'!$C$333+1+$B1235,'1 Données d''entrée'!$C$332*($F1230-SUM($C1236:G1236)),0))","v":0},{"$f":"IF(H1180<1+$B1235,0,IF(H1180<'1 Données d''entrée'!$C$334+'1 Données d''entrée'!$C$333+1+$B1235,'1 Données d''entrée'!$C$332*($F1230-SUM($C1236:H1236)),0))","v":0},{"$f":"IF(I1180<1+$B1235,0,IF(I1180<'1 Données d''entrée'!$C$334+'1 Données d''entrée'!$C$333+1+$B1235,'1 Données d''entrée'!$C$332*($F1230-SUM($C1236:I1236)),0))","v":0},{"$f":"IF(J1180<1+$B1235,0,IF(J1180<'1 Données d''entrée'!$C$334+'1 Données d''entrée'!$C$333+1+$B1235,'1 Données d''entrée'!$C$332*($F1230-SUM($C1236:J1236)),0))","v":0},{"$f":"IF(K1180<1+$B1235,0,IF(K1180<'1 Données d''entrée'!$C$334+'1 Données d''entrée'!$C$333+1+$B1235,'1 Données d''entrée'!$C$332*($F1230-SUM($C1236:K1236)),0))","v":0},{"$f":"IF(L1180<1+$B1235,0,IF(L1180<'1 Données d''entrée'!$C$334+'1 Données d''entrée'!$C$333+1+$B1235,'1 Données d''entrée'!$C$332*($F1230-SUM($C1236:L1236)),0))","v":0},{"$f":"IF(M1180<1+$B1235,0,IF(M1180<'1 Données d''entrée'!$C$334+'1 Données d''entrée'!$C$333+1+$B1235,'1 Données d''entrée'!$C$332*($F1230-SUM($C1236:M1236)),0))","v":0},{"$f":"IF(N1180<1+$B1235,0,IF(N1180<'1 Données d''entrée'!$C$334+'1 Données d''entrée'!$C$333+1+$B1235,'1 Données d''entrée'!$C$332*($F1230-SUM($C1236:N1236)),0))","v":0},{"$f":"IF(O1180<1+$B1235,0,IF(O1180<'1 Données d''entrée'!$C$334+'1 Données d''entrée'!$C$333+1+$B1235,'1 Données d''entrée'!$C$332*($F1230-SUM($C1236:O1236)),0))","v":0},{"$f":"IF(P1180<1+$B1235,0,IF(P1180<'1 Données d''entrée'!$C$334+'1 Données d''entrée'!$C$333+1+$B1235,'1 Données d''entrée'!$C$332*($F1230-SUM($C1236:P1236)),0))","v":0},{"$f":"IF(Q1180<1+$B1235,0,IF(Q1180<'1 Données d''entrée'!$C$334+'1 Données d''entrée'!$C$333+1+$B1235,'1 Données d''entrée'!$C$332*($F1230-SUM($C1236:Q1236)),0))","v":0},{"$f":"IF(R1180<1+$B1235,0,IF(R1180<'1 Données d''entrée'!$C$334+'1 Données d''entrée'!$C$333+1+$B1235,'1 Données d''entrée'!$C$332*($F1230-SUM($C1236:R1236)),0))","v":0},{"$f":"IF(S1180<1+$B1235,0,IF(S1180<'1 Données d''entrée'!$C$334+'1 Données d''entrée'!$C$333+1+$B1235,'1 Données d''entrée'!$C$332*($F1230-SUM($C1236:S1236)),0))","v":0},{"$f":"IF(T1180<1+$B1235,0,IF(T1180<'1 Données d''entrée'!$C$334+'1 Données d''entrée'!$C$333+1+$B1235,'1 Données d''entrée'!$C$332*($F1230-SUM($C1236:T1236)),0))","v":0},{"$f":"IF(U1180<1+$B1235,0,IF(U1180<'1 Données d''entrée'!$C$334+'1 Données d''entrée'!$C$333+1+$B1235,'1 Données d''entrée'!$C$332*($F1230-SUM($C1236:U1236)),0))","v":0}]
["Paiement d'intêrets",5,0,{"$f":"IF(C1180<1+$B1236,0,IF(C1180<'1 Données d''entrée'!$C$334+'1 Données d''entrée'!$C$333+1+$B1236,'1 Données d''entrée'!$C$332*($G1230-SUM($C1237:C1237)),0))","v":0},{"$f":"IF(D1180<1+$B1236,0,IF(D1180<'1 Données d''entrée'!$C$334+'1 Données d''entrée'!$C$333+1+$B1236,'1 Données d''entrée'!$C$332*($G1230-SUM($C1237:D1237)),0))","v":0},{"$f":"IF(E1180<1+$B1236,0,IF(E1180<'1 Données d''entrée'!$C$334+'1 Données d''entrée'!$C$333+1+$B1236,'1 Données d''entrée'!$C$332*($G1230-SUM($C1237:E1237)),0))","v":0},{"$f":"IF(F1180<1+$B1236,0,IF(F1180<'1 Données d''entrée'!$C$334+'1 Données d''entrée'!$C$333+1+$B1236,'1 Données d''entrée'!$C$332*($G1230-SUM($C1237:F1237)),0))","v":0},{"$f":"IF(G1180<1+$B1236,0,IF(G1180<'1 Données d''entrée'!$C$334+'1 Données d''entrée'!$C$333+1+$B1236,'1 Données d''entrée'!$C$332*($G1230-SUM($C1237:G1237)),0))","v":0},{"$f":"IF(H1180<1+$B1236,0,IF(H1180<'1 Données d''entrée'!$C$334+'1 Données d''entrée'!$C$333+1+$B1236,'1 Données d''entrée'!$C$332*($G1230-SUM($C1237:H1237)),0))","v":0},{"$f":"IF(I1180<1+$B1236,0,IF(I1180<'1 Données d''entrée'!$C$334+'1 Données d''entrée'!$C$333+1+$B1236,'1 Données d''entrée'!$C$332*($G1230-SUM($C1237:I1237)),0))","v":0},{"$f":"IF(J1180<1+$B1236,0,IF(J1180<'1 Données d''entrée'!$C$334+'1 Données d''entrée'!$C$333+1+$B1236,'1 Données d''entrée'!$C$332*($G1230-SUM($C1237:J1237)),0))","v":0},{"$f":"IF(K1180<1+$B1236,0,IF(K1180<'1 Données d''entrée'!$C$334+'1 Données d''entrée'!$C$333+1+$B1236,'1 Données d''entrée'!$C$332*($G1230-SUM($C1237:K1237)),0))","v":0},{"$f":"IF(L1180<1+$B1236,0,IF(L1180<'1 Données d''entrée'!$C$334+'1 Données d''entrée'!$C$333+1+$B1236,'1 Données d''entrée'!$C$332*($G1230-SUM($C1237:L1237)),0))","v":0},{"$f":"IF(M1180<1+$B1236,0,IF(M1180<'1 Données d''entrée'!$C$334+'1 Données d''entrée'!$C$333+1+$B1236,'1 Données d''entrée'!$C$332*($G1230-SUM($C1237:M1237)),0))","v":0},{"$f":"IF(N1180<1+$B1236,0,IF(N1180<'1 Données d''entrée'!$C$334+'1 Données d''entrée'!$C$333+1+$B1236,'1 Données d''entrée'!$C$332*($G1230-SUM($C1237:N1237)),0))","v":0},{"$f":"IF(O1180<1+$B1236,0,IF(O1180<'1 Données d''entrée'!$C$334+'1 Données d''entrée'!$C$333+1+$B1236,'1 Données d''entrée'!$C$332*($G1230-SUM($C1237:O1237)),0))","v":0},{"$f":"IF(P1180<1+$B1236,0,IF(P1180<'1 Données d''entrée'!$C$334+'1 Données d''entrée'!$C$333+1+$B1236,'1 Données d''entrée'!$C$332*($G1230-SUM($C1237:P1237)),0))","v":0},{"$f":"IF(Q1180<1+$B1236,0,IF(Q1180<'1 Données d''entrée'!$C$334+'1 Données d''entrée'!$C$333+1+$B1236,'1 Données d''entrée'!$C$332*($G1230-SUM($C1237:Q1237)),0))","v":0},{"$f":"IF(R1180<1+$B1236,0,IF(R1180<'1 Données d''entrée'!$C$334+'1 Données d''entrée'!$C$333+1+$B1236,'1 Données d''entrée'!$C$332*($G1230-SUM($C1237:R1237)),0))","v":0},{"$f":"IF(S1180<1+$B1236,0,IF(S1180<'1 Données d''entrée'!$C$334+'1 Données d''entrée'!$C$333+1+$B1236,'1 Données d''entrée'!$C$332*($G1230-SUM($C1237:S1237)),0))","v":0},{"$f":"IF(T1180<1+$B1236,0,IF(T1180<'1 Données d''entrée'!$C$334+'1 Données d''entrée'!$C$333+1+$B1236,'1 Données d''entrée'!$C$332*($G1230-SUM($C1237:T1237)),0))","v":0},{"$f":"IF(U1180<1+$B1236,0,IF(U1180<'1 Données d''entrée'!$C$334+'1 Données d''entrée'!$C$333+1+$B1236,'1 Données d''entrée'!$C$332*($G1230-SUM($C1237:U1237)),0))","v":0}]
["Paiement d'intêrets",6,0,{"$f":"IF(C1180<1+$B1237,0,IF(C1180<'1 Données d''entrée'!$C$334+'1 Données d''entrée'!$C$333+1+$B1237,'1 Données d''entrée'!$C$332*($H1230-SUM($C1238:C1238)),0))","v":0},{"$f":"IF(D1180<1+$B1237,0,IF(D1180<'1 Données d''entrée'!$C$334+'1 Données d''entrée'!$C$333+1+$B1237,'1 Données d''entrée'!$C$332*($H1230-SUM($C1238:D1238)),0))","v":0},{"$f":"IF(E1180<1+$B1237,0,IF(E1180<'1 Données d''entrée'!$C$334+'1 Données d''entrée'!$C$333+1+$B1237,'1 Données d''entrée'!$C$332*($H1230-SUM($C1238:E1238)),0))","v":0},{"$f":"IF(F1180<1+$B1237,0,IF(F1180<'1 Données d''entrée'!$C$334+'1 Données d''entrée'!$C$333+1+$B1237,'1 Données d''entrée'!$C$332*($H1230-SUM($C1238:F1238)),0))","v":0},{"$f":"IF(G1180<1+$B1237,0,IF(G1180<'1 Données d''entrée'!$C$334+'1 Données d''entrée'!$C$333+1+$B1237,'1 Données d''entrée'!$C$332*($H1230-SUM($C1238:G1238)),0))","v":0},{"$f":"IF(H1180<1+$B1237,0,IF(H1180<'1 Données d''entrée'!$C$334+'1 Données d''entrée'!$C$333+1+$B1237,'1 Données d''entrée'!$C$332*($H1230-SUM($C1238:H1238)),0))","v":0},{"$f":"IF(I1180<1+$B1237,0,IF(I1180<'1 Données d''entrée'!$C$334+'1 Données d''entrée'!$C$333+1+$B1237,'1 Données d''entrée'!$C$332*($H1230-SUM($C1238:I1238)),0))","v":0},{"$f":"IF(J1180<1+$B1237,0,IF(J1180<'1 Données d''entrée'!$C$334+'1 Données d''entrée'!$C$333+1+$B1237,'1 Données d''entrée'!$C$332*($H1230-SUM($C1238:J1238)),0))","v":0},{"$f":"IF(K1180<1+$B1237,0,IF(K1180<'1 Données d''entrée'!$C$334+'1 Données d''entrée'!$C$333+1+$B1237,'1 Données d''entrée'!$C$332*($H1230-SUM($C1238:K1238)),0))","v":0},{"$f":"IF(L1180<1+$B1237,0,IF(L1180<'1 Données d''entrée'!$C$334+'1 Données d''entrée'!$C$333+1+$B1237,'1 Données d''entrée'!$C$332*($H1230-SUM($C1238:L1238)),0))","v":0},{"$f":"IF(M1180<1+$B1237,0,IF(M1180<'1 Données d''entrée'!$C$334+'1 Données d''entrée'!$C$333+1+$B1237,'1 Données d''entrée'!$C$332*($H1230-SUM($C1238:M1238)),0))","v":0},{"$f":"IF(N1180<1+$B1237,0,IF(N1180<'1 Données d''entrée'!$C$334+'1 Données d''entrée'!$C$333+1+$B1237,'1 Données d''entrée'!$C$332*($H1230-SUM($C1238:N1238)),0))","v":0},{"$f":"IF(O1180<1+$B1237,0,IF(O1180<'1 Données d''entrée'!$C$334+'1 Données d''entrée'!$C$333+1+$B1237,'1 Données d''entrée'!$C$332*($H1230-SUM($C1238:O1238)),0))","v":0},{"$f":"IF(P1180<1+$B1237,0,IF(P1180<'1 Données d''entrée'!$C$334+'1 Données d''entrée'!$C$333+1+$B1237,'1 Données d''entrée'!$C$332*($H1230-SUM($C1238:P1238)),0))","v":0},{"$f":"IF(Q1180<1+$B1237,0,IF(Q1180<'1 Données d''entrée'!$C$334+'1 Données d''entrée'!$C$333+1+$B1237,'1 Données d''entrée'!$C$332*($H1230-SUM($C1238:Q1238)),0))","v":0},{"$f":"IF(R1180<1+$B1237,0,IF(R1180<'1 Données d''entrée'!$C$334+'1 Données d''entrée'!$C$333+1+$B1237,'1 Données d''entrée'!$C$332*($H1230-SUM($C1238:R1238)),0))","v":0},{"$f":"IF(S1180<1+$B1237,0,IF(S1180<'1 Données d''entrée'!$C$334+'1 Données d''entrée'!$C$333+1+$B1237,'1 Données d''entrée'!$C$332*($H1230-SUM($C1238:S1238)),0))","v":0},{"$f":"IF(T1180<1+$B1237,0,IF(T1180<'1 Données d''entrée'!$C$334+'1 Données d''entrée'!$C$333+1+$B1237,'1 Données d''entrée'!$C$332*($H1230-SUM($C1238:T1238)),0))","v":0},{"$f":"IF(U1180<1+$B1237,0,IF(U1180<'1 Données d''entrée'!$C$334+'1 Données d''entrée'!$C$333+1+$B1237,'1 Données d''entrée'!$C$332*($H1230-SUM($C1238:U1238)),0))","v":0}]
["Paiement d'intêrets",7,0,{"$f":"IF(C1180<1+$B1238,0,IF(C1180<'1 Données d''entrée'!$C$334+'1 Données d''entrée'!$C$333+1+$B1238,'1 Données d''entrée'!$C$332*($I1230-SUM($C1239:C1239)),0))","v":0},{"$f":"IF(D1180<1+$B1238,0,IF(D1180<'1 Données d''entrée'!$C$334+'1 Données d''entrée'!$C$333+1+$B1238,'1 Données d''entrée'!$C$332*($I1230-SUM($C1239:D1239)),0))","v":0},{"$f":"IF(E1180<1+$B1238,0,IF(E1180<'1 Données d''entrée'!$C$334+'1 Données d''entrée'!$C$333+1+$B1238,'1 Données d''entrée'!$C$332*($I1230-SUM($C1239:E1239)),0))","v":0},{"$f":"IF(F1180<1+$B1238,0,IF(F1180<'1 Données d''entrée'!$C$334+'1 Données d''entrée'!$C$333+1+$B1238,'1 Données d''entrée'!$C$332*($I1230-SUM($C1239:F1239)),0))","v":0},{"$f":"IF(G1180<1+$B1238,0,IF(G1180<'1 Données d''entrée'!$C$334+'1 Données d''entrée'!$C$333+1+$B1238,'1 Données d''entrée'!$C$332*($I1230-SUM($C1239:G1239)),0))","v":0},{"$f":"IF(H1180<1+$B1238,0,IF(H1180<'1 Données d''entrée'!$C$334+'1 Données d''entrée'!$C$333+1+$B1238,'1 Données d''entrée'!$C$332*($I1230-SUM($C1239:H1239)),0))","v":0},{"$f":"IF(I1180<1+$B1238,0,IF(I1180<'1 Données d''entrée'!$C$334+'1 Données d''entrée'!$C$333+1+$B1238,'1 Données d''entrée'!$C$332*($I1230-SUM($C1239:I1239)),0))","v":0},{"$f":"IF(J1180<1+$B1238,0,IF(J1180<'1 Données d''entrée'!$C$334+'1 Données d''entrée'!$C$333+1+$B1238,'1 Données d''entrée'!$C$332*($I1230-SUM($C1239:J1239)),0))","v":0},{"$f":"IF(K1180<1+$B1238,0,IF(K1180<'1 Données d''entrée'!$C$334+'1 Données d''entrée'!$C$333+1+$B1238,'1 Données d''entrée'!$C$332*($I1230-SUM($C1239:K1239)),0))","v":0},{"$f":"IF(L1180<1+$B1238,0,IF(L1180<'1 Données d''entrée'!$C$334+'1 Données d''entrée'!$C$333+1+$B1238,'1 Données d''entrée'!$C$332*($I1230-SUM($C1239:L1239)),0))","v":0},{"$f":"IF(M1180<1+$B1238,0,IF(M1180<'1 Données d''entrée'!$C$334+'1 Données d''entrée'!$C$333+1+$B1238,'1 Données d''entrée'!$C$332*($I1230-SUM($C1239:M1239)),0))","v":0},{"$f":"IF(N1180<1+$B1238,0,IF(N1180<'1 Données d''entrée'!$C$334+'1 Données d''entrée'!$C$333+1+$B1238,'1 Données d''entrée'!$C$332*($I1230-SUM($C1239:N1239)),0))","v":0},{"$f":"IF(O1180<1+$B1238,0,IF(O1180<'1 Données d''entrée'!$C$334+'1 Données d''entrée'!$C$333+1+$B1238,'1 Données d''entrée'!$C$332*($I1230-SUM($C1239:O1239)),0))","v":0},{"$f":"IF(P1180<1+$B1238,0,IF(P1180<'1 Données d''entrée'!$C$334+'1 Données d''entrée'!$C$333+1+$B1238,'1 Données d''entrée'!$C$332*($I1230-SUM($C1239:P1239)),0))","v":0},{"$f":"IF(Q1180<1+$B1238,0,IF(Q1180<'1 Données d''entrée'!$C$334+'1 Données d''entrée'!$C$333+1+$B1238,'1 Données d''entrée'!$C$332*($I1230-SUM($C1239:Q1239)),0))","v":0},{"$f":"IF(R1180<1+$B1238,0,IF(R1180<'1 Données d''entrée'!$C$334+'1 Données d''entrée'!$C$333+1+$B1238,'1 Données d''entrée'!$C$332*($I1230-SUM($C1239:R1239)),0))","v":0},{"$f":"IF(S1180<1+$B1238,0,IF(S1180<'1 Données d''entrée'!$C$334+'1 Données d''entrée'!$C$333+1+$B1238,'1 Données d''entrée'!$C$332*($I1230-SUM($C1239:S1239)),0))","v":0},{"$f":"IF(T1180<1+$B1238,0,IF(T1180<'1 Données d''entrée'!$C$334+'1 Données d''entrée'!$C$333+1+$B1238,'1 Données d''entrée'!$C$332*($I1230-SUM($C1239:T1239)),0))","v":0},{"$f":"IF(U1180<1+$B1238,0,IF(U1180<'1 Données d''entrée'!$C$334+'1 Données d''entrée'!$C$333+1+$B1238,'1 Données d''entrée'!$C$332*($I1230-SUM($C1239:U1239)),0))","v":0}]
["Paiement d'intêrets",8,0,{"$f":"IF(C1180<1+$B1239,0,IF(C1180<'1 Données d''entrée'!$C$334+'1 Données d''entrée'!$C$333+1+$B1239,'1 Données d''entrée'!$C$332*($J1230-SUM($C1240:C1240)),0))","v":0},{"$f":"IF(D1180<1+$B1239,0,IF(D1180<'1 Données d''entrée'!$C$334+'1 Données d''entrée'!$C$333+1+$B1239,'1 Données d''entrée'!$C$332*($J1230-SUM($C1240:D1240)),0))","v":0},{"$f":"IF(E1180<1+$B1239,0,IF(E1180<'1 Données d''entrée'!$C$334+'1 Données d''entrée'!$C$333+1+$B1239,'1 Données d''entrée'!$C$332*($J1230-SUM($C1240:E1240)),0))","v":0},{"$f":"IF(F1180<1+$B1239,0,IF(F1180<'1 Données d''entrée'!$C$334+'1 Données d''entrée'!$C$333+1+$B1239,'1 Données d''entrée'!$C$332*($J1230-SUM($C1240:F1240)),0))","v":0},{"$f":"IF(G1180<1+$B1239,0,IF(G1180<'1 Données d''entrée'!$C$334+'1 Données d''entrée'!$C$333+1+$B1239,'1 Données d''entrée'!$C$332*($J1230-SUM($C1240:G1240)),0))","v":0},{"$f":"IF(H1180<1+$B1239,0,IF(H1180<'1 Données d''entrée'!$C$334+'1 Données d''entrée'!$C$333+1+$B1239,'1 Données d''entrée'!$C$332*($J1230-SUM($C1240:H1240)),0))","v":0},{"$f":"IF(I1180<1+$B1239,0,IF(I1180<'1 Données d''entrée'!$C$334+'1 Données d''entrée'!$C$333+1+$B1239,'1 Données d''entrée'!$C$332*($J1230-SUM($C1240:I1240)),0))","v":0},{"$f":"IF(J1180<1+$B1239,0,IF(J1180<'1 Données d''entrée'!$C$334+'1 Données d''entrée'!$C$333+1+$B1239,'1 Données d''entrée'!$C$332*($J1230-SUM($C1240:J1240)),0))","v":0},{"$f":"IF(K1180<1+$B1239,0,IF(K1180<'1 Données d''entrée'!$C$334+'1 Données d''entrée'!$C$333+1+$B1239,'1 Données d''entrée'!$C$332*($J1230-SUM($C1240:K1240)),0))","v":0},{"$f":"IF(L1180<1+$B1239,0,IF(L1180<'1 Données d''entrée'!$C$334+'1 Données d''entrée'!$C$333+1+$B1239,'1 Données d''entrée'!$C$332*($J1230-SUM($C1240:L1240)),0))","v":0},{"$f":"IF(M1180<1+$B1239,0,IF(M1180<'1 Données d''entrée'!$C$334+'1 Données d''entrée'!$C$333+1+$B1239,'1 Données d''entrée'!$C$332*($J1230-SUM($C1240:M1240)),0))","v":0},{"$f":"IF(N1180<1+$B1239,0,IF(N1180<'1 Données d''entrée'!$C$334+'1 Données d''entrée'!$C$333+1+$B1239,'1 Données d''entrée'!$C$332*($J1230-SUM($C1240:N1240)),0))","v":0},{"$f":"IF(O1180<1+$B1239,0,IF(O1180<'1 Données d''entrée'!$C$334+'1 Données d''entrée'!$C$333+1+$B1239,'1 Données d''entrée'!$C$332*($J1230-SUM($C1240:O1240)),0))","v":0},{"$f":"IF(P1180<1+$B1239,0,IF(P1180<'1 Données d''entrée'!$C$334+'1 Données d''entrée'!$C$333+1+$B1239,'1 Données d''entrée'!$C$332*($J1230-SUM($C1240:P1240)),0))","v":0},{"$f":"IF(Q1180<1+$B1239,0,IF(Q1180<'1 Données d''entrée'!$C$334+'1 Données d''entrée'!$C$333+1+$B1239,'1 Données d''entrée'!$C$332*($J1230-SUM($C1240:Q1240)),0))","v":0},{"$f":"IF(R1180<1+$B1239,0,IF(R1180<'1 Données d''entrée'!$C$334+'1 Données d''entrée'!$C$333+1+$B1239,'1 Données d''entrée'!$C$332*($J1230-SUM($C1240:R1240)),0))","v":0},{"$f":"IF(S1180<1+$B1239,0,IF(S1180<'1 Données d''entrée'!$C$334+'1 Données d''entrée'!$C$333+1+$B1239,'1 Données d''entrée'!$C$332*($J1230-SUM($C1240:S1240)),0))","v":0},{"$f":"IF(T1180<1+$B1239,0,IF(T1180<'1 Données d''entrée'!$C$334+'1 Données d''entrée'!$C$333+1+$B1239,'1 Données d''entrée'!$C$332*($J1230-SUM($C1240:T1240)),0))","v":0},{"$f":"IF(U1180<1+$B1239,0,IF(U1180<'1 Données d''entrée'!$C$334+'1 Données d''entrée'!$C$333+1+$B1239,'1 Données d''entrée'!$C$332*($J1230-SUM($C1240:U1240)),0))","v":0}]
["Paiement d'intêrets",9,0,{"$f":"IF(C1180<1+$B1240,0,IF(C1180<'1 Données d''entrée'!$C$334+'1 Données d''entrée'!$C$333+1+$B1240,'1 Données d''entrée'!$C$332*($K1230-SUM($C1241:C1241)),0))","v":0},{"$f":"IF(D1180<1+$B1240,0,IF(D1180<'1 Données d''entrée'!$C$334+'1 Données d''entrée'!$C$333+1+$B1240,'1 Données d''entrée'!$C$332*($K1230-SUM($C1241:D1241)),0))","v":0},{"$f":"IF(E1180<1+$B1240,0,IF(E1180<'1 Données d''entrée'!$C$334+'1 Données d''entrée'!$C$333+1+$B1240,'1 Données d''entrée'!$C$332*($K1230-SUM($C1241:E1241)),0))","v":0},{"$f":"IF(F1180<1+$B1240,0,IF(F1180<'1 Données d''entrée'!$C$334+'1 Données d''entrée'!$C$333+1+$B1240,'1 Données d''entrée'!$C$332*($K1230-SUM($C1241:F1241)),0))","v":0},{"$f":"IF(G1180<1+$B1240,0,IF(G1180<'1 Données d''entrée'!$C$334+'1 Données d''entrée'!$C$333+1+$B1240,'1 Données d''entrée'!$C$332*($K1230-SUM($C1241:G1241)),0))","v":0},{"$f":"IF(H1180<1+$B1240,0,IF(H1180<'1 Données d''entrée'!$C$334+'1 Données d''entrée'!$C$333+1+$B1240,'1 Données d''entrée'!$C$332*($K1230-SUM($C1241:H1241)),0))","v":0},{"$f":"IF(I1180<1+$B1240,0,IF(I1180<'1 Données d''entrée'!$C$334+'1 Données d''entrée'!$C$333+1+$B1240,'1 Données d''entrée'!$C$332*($K1230-SUM($C1241:I1241)),0))","v":0},{"$f":"IF(J1180<1+$B1240,0,IF(J1180<'1 Données d''entrée'!$C$334+'1 Données d''entrée'!$C$333+1+$B1240,'1 Données d''entrée'!$C$332*($K1230-SUM($C1241:J1241)),0))","v":0},{"$f":"IF(K1180<1+$B1240,0,IF(K1180<'1 Données d''entrée'!$C$334+'1 Données d''entrée'!$C$333+1+$B1240,'1 Données d''entrée'!$C$332*($K1230-SUM($C1241:K1241)),0))","v":0},{"$f":"IF(L1180<1+$B1240,0,IF(L1180<'1 Données d''entrée'!$C$334+'1 Données d''entrée'!$C$333+1+$B1240,'1 Données d''entrée'!$C$332*($K1230-SUM($C1241:L1241)),0))","v":0},{"$f":"IF(M1180<1+$B1240,0,IF(M1180<'1 Données d''entrée'!$C$334+'1 Données d''entrée'!$C$333+1+$B1240,'1 Données d''entrée'!$C$332*($K1230-SUM($C1241:M1241)),0))","v":0},{"$f":"IF(N1180<1+$B1240,0,IF(N1180<'1 Données d''entrée'!$C$334+'1 Données d''entrée'!$C$333+1+$B1240,'1 Données d''entrée'!$C$332*($K1230-SUM($C1241:N1241)),0))","v":0},{"$f":"IF(O1180<1+$B1240,0,IF(O1180<'1 Données d''entrée'!$C$334+'1 Données d''entrée'!$C$333+1+$B1240,'1 Données d''entrée'!$C$332*($K1230-SUM($C1241:O1241)),0))","v":0},{"$f":"IF(P1180<1+$B1240,0,IF(P1180<'1 Données d''entrée'!$C$334+'1 Données d''entrée'!$C$333+1+$B1240,'1 Données d''entrée'!$C$332*($K1230-SUM($C1241:P1241)),0))","v":0},{"$f":"IF(Q1180<1+$B1240,0,IF(Q1180<'1 Données d''entrée'!$C$334+'1 Données d''entrée'!$C$333+1+$B1240,'1 Données d''entrée'!$C$332*($K1230-SUM($C1241:Q1241)),0))","v":0},{"$f":"IF(R1180<1+$B1240,0,IF(R1180<'1 Données d''entrée'!$C$334+'1 Données d''entrée'!$C$333+1+$B1240,'1 Données d''entrée'!$C$332*($K1230-SUM($C1241:R1241)),0))","v":0},{"$f":"IF(S1180<1+$B1240,0,IF(S1180<'1 Données d''entrée'!$C$334+'1 Données d''entrée'!$C$333+1+$B1240,'1 Données d''entrée'!$C$332*($K1230-SUM($C1241:S1241)),0))","v":0},{"$f":"IF(T1180<1+$B1240,0,IF(T1180<'1 Données d''entrée'!$C$334+'1 Données d''entrée'!$C$333+1+$B1240,'1 Données d''entrée'!$C$332*($K1230-SUM($C1241:T1241)),0))","v":0},{"$f":"IF(U1180<1+$B1240,0,IF(U1180<'1 Données d''entrée'!$C$334+'1 Données d''entrée'!$C$333+1+$B1240,'1 Données d''entrée'!$C$332*($K1230-SUM($C1241:U1241)),0))","v":0}]
["Paiement d'intêrets",10,0,{"$f":"IF(C1180<1+$B1241,0,IF(C1180<'1 Données d''entrée'!$C$334+'1 Données d''entrée'!$C$333+1+$B1241,'1 Données d''entrée'!$C$332*($L1230-SUM($C1242:C1242)),0))","v":0},{"$f":"IF(D1180<1+$B1241,0,IF(D1180<'1 Données d''entrée'!$C$334+'1 Données d''entrée'!$C$333+1+$B1241,'1 Données d''entrée'!$C$332*($L1230-SUM($C1242:D1242)),0))","v":0},{"$f":"IF(E1180<1+$B1241,0,IF(E1180<'1 Données d''entrée'!$C$334+'1 Données d''entrée'!$C$333+1+$B1241,'1 Données d''entrée'!$C$332*($L1230-SUM($C1242:E1242)),0))","v":0},{"$f":"IF(F1180<1+$B1241,0,IF(F1180<'1 Données d''entrée'!$C$334+'1 Données d''entrée'!$C$333+1+$B1241,'1 Données d''entrée'!$C$332*($L1230-SUM($C1242:F1242)),0))","v":0},{"$f":"IF(G1180<1+$B1241,0,IF(G1180<'1 Données d''entrée'!$C$334+'1 Données d''entrée'!$C$333+1+$B1241,'1 Données d''entrée'!$C$332*($L1230-SUM($C1242:G1242)),0))","v":0},{"$f":"IF(H1180<1+$B1241,0,IF(H1180<'1 Données d''entrée'!$C$334+'1 Données d''entrée'!$C$333+1+$B1241,'1 Données d''entrée'!$C$332*($L1230-SUM($C1242:H1242)),0))","v":0},{"$f":"IF(I1180<1+$B1241,0,IF(I1180<'1 Données d''entrée'!$C$334+'1 Données d''entrée'!$C$333+1+$B1241,'1 Données d''entrée'!$C$332*($L1230-SUM($C1242:I1242)),0))","v":0},{"$f":"IF(J1180<1+$B1241,0,IF(J1180<'1 Données d''entrée'!$C$334+'1 Données d''entrée'!$C$333+1+$B1241,'1 Données d''entrée'!$C$332*($L1230-SUM($C1242:J1242)),0))","v":0},{"$f":"IF(K1180<1+$B1241,0,IF(K1180<'1 Données d''entrée'!$C$334+'1 Données d''entrée'!$C$333+1+$B1241,'1 Données d''entrée'!$C$332*($L1230-SUM($C1242:K1242)),0))","v":0},{"$f":"IF(L1180<1+$B1241,0,IF(L1180<'1 Données d''entrée'!$C$334+'1 Données d''entrée'!$C$333+1+$B1241,'1 Données d''entrée'!$C$332*($L1230-SUM($C1242:L1242)),0))","v":0},{"$f":"IF(M1180<1+$B1241,0,IF(M1180<'1 Données d''entrée'!$C$334+'1 Données d''entrée'!$C$333+1+$B1241,'1 Données d''entrée'!$C$332*($L1230-SUM($C1242:M1242)),0))","v":0},{"$f":"IF(N1180<1+$B1241,0,IF(N1180<'1 Données d''entrée'!$C$334+'1 Données d''entrée'!$C$333+1+$B1241,'1 Données d''entrée'!$C$332*($L1230-SUM($C1242:N1242)),0))","v":0},{"$f":"IF(O1180<1+$B1241,0,IF(O1180<'1 Données d''entrée'!$C$334+'1 Données d''entrée'!$C$333+1+$B1241,'1 Données d''entrée'!$C$332*($L1230-SUM($C1242:O1242)),0))","v":0},{"$f":"IF(P1180<1+$B1241,0,IF(P1180<'1 Données d''entrée'!$C$334+'1 Données d''entrée'!$C$333+1+$B1241,'1 Données d''entrée'!$C$332*($L1230-SUM($C1242:P1242)),0))","v":0},{"$f":"IF(Q1180<1+$B1241,0,IF(Q1180<'1 Données d''entrée'!$C$334+'1 Données d''entrée'!$C$333+1+$B1241,'1 Données d''entrée'!$C$332*($L1230-SUM($C1242:Q1242)),0))","v":0},{"$f":"IF(R1180<1+$B1241,0,IF(R1180<'1 Données d''entrée'!$C$334+'1 Données d''entrée'!$C$333+1+$B1241,'1 Données d''entrée'!$C$332*($L1230-SUM($C1242:R1242)),0))","v":0},{"$f":"IF(S1180<1+$B1241,0,IF(S1180<'1 Données d''entrée'!$C$334+'1 Données d''entrée'!$C$333+1+$B1241,'1 Données d''entrée'!$C$332*($L1230-SUM($C1242:S1242)),0))","v":0},{"$f":"IF(T1180<1+$B1241,0,IF(T1180<'1 Données d''entrée'!$C$334+'1 Données d''entrée'!$C$333+1+$B1241,'1 Données d''entrée'!$C$332*($L1230-SUM($C1242:T1242)),0))","v":0},{"$f":"IF(U1180<1+$B1241,0,IF(U1180<'1 Données d''entrée'!$C$334+'1 Données d''entrée'!$C$333+1+$B1241,'1 Données d''entrée'!$C$332*($L1230-SUM($C1242:U1242)),0))","v":0}]
[]
[null,"Période",1,2,3,4,5,6,7,8,9,10,11,12,13,14,15,16,17,18,19,20]
["Prêt bancaire additionnel- Option 2: Remboursement du principal final",{"$f":"'1 Données d''entrée'!$B$343","v":0}]
["Prêt(s) nouveau(x)",null,{"$f":"IF(C1223<0,C1223*(-1)*$B1257+C1223*(-1)*$B1257*'1 Données d''entrée'!$C$338,0)","v":{"$error":"#DIV/0!"}},{"$f":"IF(D1223<0,D1223*(-1)*$B1257+D1223*(-1)*$B1257*'1 Données d''entrée'!$C$338,0)","v":{"$error":"#DIV/0!"}},{"$f":"IF(E1223<0,E1223*(-1)*$B1257+E1223*(-1)*$B1257*'1 Données d''entrée'!$C$338,0)","v":{"$error":"#DIV/0!"}},{"$f":"IF(F1223<0,F1223*(-1)*$B1257+F1223*(-1)*$B1257*'1 Données d''entrée'!$C$338,0)","v":{"$error":"#DIV/0!"}},{"$f":"IF(G1223<0,G1223*(-1)*$B1257+G1223*(-1)*$B1257*'1 Données d''entrée'!$C$338,0)","v":{"$error":"#DIV/0!"}},{"$f":"IF(H1223<0,H1223*(-1)*$B1257+H1223*(-1)*$B1257*'1 Données d''entrée'!$C$338,0)","v":{"$error":"#DIV/0!"}},{"$f":"IF(I1223<0,I1223*(-1)*$B1257+I1223*(-1)*$B1257*'1 Données d''entrée'!$C$338,0)","v":{"$error":"#DIV/0!"}},{"$f":"IF(J1223<0,J1223*(-1)*$B1257+J1223*(-1)*$B1257*'1 Données d''entrée'!$C$338,0)","v":{"$error":"#DIV/0!"}},{"$f":"IF(K1223<0,K1223*(-1)*$B1257+K1223*(-1)*$B1257*'1 Données d''entrée'!$C$338,0)","v":{"$error":"#DIV/0!"}},{"$f":"IF(L1223<0,L1223*(-1)*$B1257+L1223*(-1)*$B1257*'1 Données d''entrée'!$C$338,0)","v":{"$error":"#DIV/0!"}},{"$f":"IF(M1223<0,M1223*(-1)*$B1257+M1223*(-1)*$B1257*'1 Données d''entrée'!$C$338,0)","v":{"$error":"#DIV/0!"}},{"$f":"IF(N1223<0,N1223*(-1)*$B1257+N1223*(-1)*$B1257*'1 Données d''entrée'!$C$338,0)","v":{"$error":"#DIV/0!"}},{"$f":"IF(O1223<0,O1223*(-1)*$B1257+O1223*(-1)*$B1257*'1 Données d''entrée'!$C$338,0)","v":{"$error":"#DIV/0!"}},{"$f":"IF(P1223<0,P1223*(-1)*$B1257+P1223*(-1)*$B1257*'1 Données d''entrée'!$C$338,0)","v":{"$error":"#DIV/0!"}},{"$f":"IF(Q1223<0,Q1223*(-1)*$B1257+Q1223*(-1)*$B1257*'1 Données d''entrée'!$C$338,0)","v":{"$error":"#DIV/0!"}},{"$f":"IF(R1223<0,R1223*(-1)*$B1257+R1223*(-1)*$B1257*'1 Données d''entrée'!$C$338,0)","v":{"$error":"#DIV/0!"}},{"$f":"IF(S1223<0,S1223*(-1)*$B1257+S1223*(-1)*$B1257*'1 Données d''entrée'!$C$338,0)","v":{"$error":"#DIV/0!"}},{"$f":"IF(T1223<0,T1223*(-1)*$B1257+T1223*(-1)*$B1257*'1 Données d''entrée'!$C$338,0)","v":{"$error":"#DIV/0!"}},{"$f":"IF(U1223<0,U1223*(-1)*$B1257+U1223*(-1)*$B1257*'1 Données d''entrée'!$C$338,0)","v":{"$error":"#DIV/0!"}},{"$f":"IF(V1223<0,V1223*(-1)*$B1257+V1223*(-1)*$B1257*'1 Données d''entrée'!$C$338,0)","v":{"$error":"#DIV/0!"}}]
[null,"Période de prêt nouveau"]
["Remboursement du principal",0,0,0,0,0,0,0,0,0,0,0,0,0,0,0,0,0,0,0,0,0]
[null,1,{"$f":"IF(C1256='1 Données d''entrée'!$C$333+'1 Données d''entrée'!$C$334+$B1261,$C1258,0)","v":{"$error":"#DIV/0!"}},{"$f":"IF(D1256='1 Données d''entrée'!$C$333+'1 Données d''entrée'!$C$334+$B1261,$C1258,0)","v":0},{"$f":"IF(E1256='1 Données d''entrée'!$C$333+'1 Données d''entrée'!$C$334+$B1261,$C1258,0)","v":0},{"$f":"IF(F1256='1 Données d''entrée'!$C$333+'1 Données d''entrée'!$C$334+$B1261,$C1258,0)","v":0},{"$f":"IF(G1256='1 Données d''entrée'!$C$333+'1 Données d''entrée'!$C$334+$B1261,$C1258,0)","v":0},{"$f":"IF(H1256='1 Données d''entrée'!$C$333+'1 Données d''entrée'!$C$334+$B1261,$C1258,0)","v":0},{"$f":"IF(I1256='1 Données d''entrée'!$C$333+'1 Données d''entrée'!$C$334+$B1261,$C1258,0)","v":0},{"$f":"IF(J1256='1 Données d''entrée'!$C$333+'1 Données d''entrée'!$C$334+$B1261,$C1258,0)","v":0},{"$f":"IF(K1256='1 Données d''entrée'!$C$333+'1 Données d''entrée'!$C$334+$B1261,$C1258,0)","v":0},{"$f":"IF(L1256='1 Données d''entrée'!$C$333+'1 Données d''entrée'!$C$334+$B1261,$C1258,0)","v":0},{"$f":"IF(M1256='1 Données d''entrée'!$C$333+'1 Données d''entrée'!$C$334+$B1261,$C1258,0)","v":0},{"$f":"IF(N1256='1 Données d''entrée'!$C$333+'1 Données d''entrée'!$C$334+$B1261,$C1258,0)","v":0},{"$f":"IF(O1256='1 Données d''entrée'!$C$333+'1 Données d''entrée'!$C$334+$B1261,$C1258,0)","v":0},{"$f":"IF(P1256='1 Données d''entrée'!$C$333+'1 Données d''entrée'!$C$334+$B1261,$C1258,0)","v":0},{"$f":"IF(Q1256='1 Données d''entrée'!$C$333+'1 Données d''entrée'!$C$334+$B1261,$C1258,0)","v":0},{"$f":"IF(R1256='1 Données d''entrée'!$C$333+'1 Données d''entrée'!$C$334+$B1261,$C1258,0)","v":0},{"$f":"IF(S1256='1 Données d''entrée'!$C$333+'1 Données d''entrée'!$C$334+$B1261,$C1258,0)","v":0},{"$f":"IF(T1256='1 Données d''entrée'!$C$333+'1 Données d''entrée'!$C$334+$B1261,$C1258,0)","v":0},{"$f":"IF(U1256='1 Données d''entrée'!$C$333+'1 Données d''entrée'!$C$334+$B1261,$C1258,0)","v":0},{"$f":"IF(V1256='1 Données d''entrée'!$C$333+'1 Données d''entrée'!$C$334+$B1261,$C1258,0)","v":0}]
[null,2,{"$f":"IF(C1256='1 Données d''entrée'!$C$333+'1 Données d''entrée'!$C$334+$B1262,$D1258,0)","v":0},{"$f":"IF(D1256='1 Données d''entrée'!$C$333+'1 Données d''entrée'!$C$334+$B1262,$D1258,0)","v":{"$error":"#DIV/0!"}},{"$f":"IF(E1256='1 Données d''entrée'!$C$333+'1 Données d''entrée'!$C$334+$B1262,$D1258,0)","v":0},{"$f":"IF(F1256='1 Données d''entrée'!$C$333+'1 Données d''entrée'!$C$334+$B1262,$D1258,0)","v":0},{"$f":"IF(G1256='1 Données d''entrée'!$C$333+'1 Données d''entrée'!$C$334+$B1262,$D1258,0)","v":0},{"$f":"IF(H1256='1 Données d''entrée'!$C$333+'1 Données d''entrée'!$C$334+$B1262,$D1258,0)","v":0},{"$f":"IF(I1256='1 Données d''entrée'!$C$333+'1 Données d''entrée'!$C$334+$B1262,$D1258,0)","v":0},{"$f":"IF(J1256='1 Données d''entrée'!$C$333+'1 Données d''entrée'!$C$334+$B1262,$D1258,0)","v":0},{"$f":"IF(K1256='1 Données d''entrée'!$C$333+'1 Données d''entrée'!$C$334+$B1262,$D1258,0)","v":0},{"$f":"IF(L1256='1 Données d''entrée'!$C$333+'1 Données d''entrée'!$C$334+$B1262,$D1258,0)","v":0},{"$f":"IF(M1256='1 Données d''entrée'!$C$333+'1 Données d''entrée'!$C$334+$B1262,$D1258,0)","v":0},{"$f":"IF(N1256='1 Données d''entrée'!$C$333+'1 Données d''entrée'!$C$334+$B1262,$D1258,0)","v":0},{"$f":"IF(O1256='1 Données d''entrée'!$C$333+'1 Données d''entrée'!$C$334+$B1262,$D1258,0)","v":0},{"$f":"IF(P1256='1 Données d''entrée'!$C$333+'1 Données d''entrée'!$C$334+$B1262,$D1258,0)","v":0},{"$f":"IF(Q1256='1 Données d''entrée'!$C$333+'1 Données d''entrée'!$C$334+$B1262,$D1258,0)","v":0},{"$f":"IF(R1256='1 Données d''entrée'!$C$333+'1 Données d''entrée'!$C$334+$B1262,$D1258,0)","v":0},{"$f":"IF(S1256='1 Données d''entrée'!$C$333+'1 Données d''entrée'!$C$334+$B1262,$D1258,0)","v":0},{"$f":"IF(T1256='1 Données d''entrée'!$C$333+'1 Données d''entrée'!$C$334+$B1262,$D1258,0)","v":0},{"$f":"IF(U1256='1 Données d''entrée'!$C$333+'1 Données d''entrée'!$C$334+$B1262,$D1258,0)","v":0},{"$f":"IF(V1256='1 Données d''entrée'!$C$333+'1 Données d''entrée'!$C$334+$B1262,$D1258,0)","v":0}]
[null,3,{"$f":"IF(C1256='1 Données d''entrée'!$C$333+'1 Données d''entrée'!$C$334+$B1263,$E1258,0)","v":0},{"$f":"IF(D1256='1 Données d''entrée'!$C$333+'1 Données d''entrée'!$C$334+$B1263,$E1258,0)","v":0},{"$f":"IF(E1256='1 Données d''entrée'!$C$333+'1 Données d''entrée'!$C$334+$B1263,$E1258,0)","v":{"$error":"#DIV/0!"}},{"$f":"IF(F1256='1 Données d''entrée'!$C$333+'1 Données d''entrée'!$C$334+$B1263,$E1258,0)","v":0},{"$f":"IF(G1256='1 Données d''entrée'!$C$333+'1 Données d''entrée'!$C$334+$B1263,$E1258,0)","v":0},{"$f":"IF(H1256='1 Données d''entrée'!$C$333+'1 Données d''entrée'!$C$334+$B1263,$E1258,0)","v":0},{"$f":"IF(I1256='1 Données d''entrée'!$C$333+'1 Données d''entrée'!$C$334+$B1263,$E1258,0)","v":0},{"$f":"IF(J1256='1 Données d''entrée'!$C$333+'1 Données d''entrée'!$C$334+$B1263,$E1258,0)","v":0},{"$f":"IF(K1256='1 Données d''entrée'!$C$333+'1 Données d''entrée'!$C$334+$B1263,$E1258,0)","v":0},{"$f":"IF(L1256='1 Données d''entrée'!$C$333+'1 Données d''entrée'!$C$334+$B1263,$E1258,0)","v":0},{"$f":"IF(M1256='1 Données d''entrée'!$C$333+'1 Données d''entrée'!$C$334+$B1263,$E1258,0)","v":0},{"$f":"IF(N1256='1 Données d''entrée'!$C$333+'1 Données d''entrée'!$C$334+$B1263,$E1258,0)","v":0},{"$f":"IF(O1256='1 Données d''entrée'!$C$333+'1 Données d''entrée'!$C$334+$B1263,$E1258,0)","v":0},{"$f":"IF(P1256='1 Données d''entrée'!$C$333+'1 Données d''entrée'!$C$334+$B1263,$E1258,0)","v":0},{"$f":"IF(Q1256='1 Données d''entrée'!$C$333+'1 Données d''entrée'!$C$334+$B1263,$E1258,0)","v":0},{"$f":"IF(R1256='1 Données d''entrée'!$C$333+'1 Données d''entrée'!$C$334+$B1263,$E1258,0)","v":0},{"$f":"IF(S1256='1 Données d''entrée'!$C$333+'1 Données d''entrée'!$C$334+$B1263,$E1258,0)","v":0},{"$f":"IF(T1256='1 Données d''entrée'!$C$333+'1 Données d''entrée'!$C$334+$B1263,$E1258,0)","v":0},{"$f":"IF(U1256='1 Données d''entrée'!$C$333+'1 Données d''entrée'!$C$334+$B1263,$E1258,0)","v":0},{"$f":"IF(V1256='1 Données d''entrée'!$C$333+'1 Données d''entrée'!$C$334+$B1263,$E1258,0)","v":0}]
[null,4,{"$f":"IF(C1256='1 Données d''entrée'!$C$333+'1 Données d''entrée'!$C$334+$B1264,$F1258,0)","v":0},{"$f":"IF(D1256='1 Données d''entrée'!$C$333+'1 Données d''entrée'!$C$334+$B1264,$F1258,0)","v":0},{"$f":"IF(E1256='1 Données d''entrée'!$C$333+'1 Données d''entrée'!$C$334+$B1264,$F1258,0)","v":0},{"$f":"IF(F1256='1 Données d''entrée'!$C$333+'1 Données d''entrée'!$C$334+$B1264,$F1258,0)","v":{"$error":"#DIV/0!"}},{"$f":"IF(G1256='1 Données d''entrée'!$C$333+'1 Données d''entrée'!$C$334+$B1264,$F1258,0)","v":0},{"$f":"IF(H1256='1 Données d''entrée'!$C$333+'1 Données d''entrée'!$C$334+$B1264,$F1258,0)","v":0},{"$f":"IF(I1256='1 Données d''entrée'!$C$333+'1 Données d''entrée'!$C$334+$B1264,$F1258,0)","v":0},{"$f":"IF(J1256='1 Données d''entrée'!$C$333+'1 Données d''entrée'!$C$334+$B1264,$F1258,0)","v":0},{"$f":"IF(K1256='1 Données d''entrée'!$C$333+'1 Données d''entrée'!$C$334+$B1264,$F1258,0)","v":0},{"$f":"IF(L1256='1 Données d''entrée'!$C$333+'1 Données d''entrée'!$C$334+$B1264,$F1258,0)","v":0},{"$f":"IF(M1256='1 Données d''entrée'!$C$333+'1 Données d''entrée'!$C$334+$B1264,$F1258,0)","v":0},{"$f":"IF(N1256='1 Données d''entrée'!$C$333+'1 Données d''entrée'!$C$334+$B1264,$F1258,0)","v":0},{"$f":"IF(O1256='1 Données d''entrée'!$C$333+'1 Données d''entrée'!$C$334+$B1264,$F1258,0)","v":0},{"$f":"IF(P1256='1 Données d''entrée'!$C$333+'1 Données d''entrée'!$C$334+$B1264,$F1258,0)","v":0},{"$f":"IF(Q1256='1 Données d''entrée'!$C$333+'1 Données d''entrée'!$C$334+$B1264,$F1258,0)","v":0},{"$f":"IF(R1256='1 Données d''entrée'!$C$333+'1 Données d''entrée'!$C$334+$B1264,$F1258,0)","v":0},{"$f":"IF(S1256='1 Données d''entrée'!$C$333+'1 Données d''entrée'!$C$334+$B1264,$F1258,0)","v":0},{"$f":"IF(T1256='1 Données d''entrée'!$C$333+'1 Données d''entrée'!$C$334+$B1264,$F1258,0)","v":0},{"$f":"IF(U1256='1 Données d''entrée'!$C$333+'1 Données d''entrée'!$C$334+$B1264,$F1258,0)","v":0},{"$f":"IF(V1256='1 Données d''entrée'!$C$333+'1 Données d''entrée'!$C$334+$B1264,$F1258,0)","v":0}]
[null,5,{"$f":"IF(C1256='1 Données d''entrée'!$C$333+'1 Données d''entrée'!$C$334+$B1265,$G1258,0)","v":0},{"$f":"IF(D1256='1 Données d''entrée'!$C$333+'1 Données d''entrée'!$C$334+$B1265,$G1258,0)","v":0},{"$f":"IF(E1256='1 Données d''entrée'!$C$333+'1 Données d''entrée'!$C$334+$B1265,$G1258,0)","v":0},{"$f":"IF(F1256='1 Données d''entrée'!$C$333+'1 Données d''entrée'!$C$334+$B1265,$G1258,0)","v":0},{"$f":"IF(G1256='1 Données d''entrée'!$C$333+'1 Données d''entrée'!$C$334+$B1265,$G1258,0)","v":{"$error":"#DIV/0!"}},{"$f":"IF(H1256='1 Données d''entrée'!$C$333+'1 Données d''entrée'!$C$334+$B1265,$G1258,0)","v":0},{"$f":"IF(I1256='1 Données d''entrée'!$C$333+'1 Données d''entrée'!$C$334+$B1265,$G1258,0)","v":0},{"$f":"IF(J1256='1 Données d''entrée'!$C$333+'1 Données d''entrée'!$C$334+$B1265,$G1258,0)","v":0},{"$f":"IF(K1256='1 Données d''entrée'!$C$333+'1 Données d''entrée'!$C$334+$B1265,$G1258,0)","v":0},{"$f":"IF(L1256='1 Données d''entrée'!$C$333+'1 Données d''entrée'!$C$334+$B1265,$G1258,0)","v":0},{"$f":"IF(M1256='1 Données d''entrée'!$C$333+'1 Données d''entrée'!$C$334+$B1265,$G1258,0)","v":0},{"$f":"IF(N1256='1 Données d''entrée'!$C$333+'1 Données d''entrée'!$C$334+$B1265,$G1258,0)","v":0},{"$f":"IF(O1256='1 Données d''entrée'!$C$333+'1 Données d''entrée'!$C$334+$B1265,$G1258,0)","v":0},{"$f":"IF(P1256='1 Données d''entrée'!$C$333+'1 Données d''entrée'!$C$334+$B1265,$G1258,0)","v":0},{"$f":"IF(Q1256='1 Données d''entrée'!$C$333+'1 Données d''entrée'!$C$334+$B1265,$G1258,0)","v":0},{"$f":"IF(R1256='1 Données d''entrée'!$C$333+'1 Données d''entrée'!$C$334+$B1265,$G1258,0)","v":0},{"$f":"IF(S1256='1 Données d''entrée'!$C$333+'1 Données d''entrée'!$C$334+$B1265,$G1258,0)","v":0},{"$f":"IF(T1256='1 Données d''entrée'!$C$333+'1 Données d''entrée'!$C$334+$B1265,$G1258,0)","v":0},{"$f":"IF(U1256='1 Données d''entrée'!$C$333+'1 Données d''entrée'!$C$334+$B1265,$G1258,0)","v":0},{"$f":"IF(V1256='1 Données d''entrée'!$C$333+'1 Données d''entrée'!$C$334+$B1265,$G1258,0)","v":0}]
[null,6,{"$f":"IF(C1256='1 Données d''entrée'!$C$333+'1 Données d''entrée'!$C$334+$B1266,$H1258,0)","v":0},{"$f":"IF(D1256='1 Données d''entrée'!$C$333+'1 Données d''entrée'!$C$334+$B1266,$H1258,0)","v":0},{"$f":"IF(E1256='1 Données d''entrée'!$C$333+'1 Données d''entrée'!$C$334+$B1266,$H1258,0)","v":0},{"$f":"IF(F1256='1 Données d''entrée'!$C$333+'1 Données d''entrée'!$C$334+$B1266,$H1258,0)","v":0},{"$f":"IF(G1256='1 Données d''entrée'!$C$333+'1 Données d''entrée'!$C$334+$B1266,$H1258,0)","v":0},{"$f":"IF(H1256='1 Données d''entrée'!$C$333+'1 Données d''entrée'!$C$334+$B1266,$H1258,0)","v":{"$error":"#DIV/0!"}},{"$f":"IF(I1256='1 Données d''entrée'!$C$333+'1 Données d''entrée'!$C$334+$B1266,$H1258,0)","v":0},{"$f":"IF(J1256='1 Données d''entrée'!$C$333+'1 Données d''entrée'!$C$334+$B1266,$H1258,0)","v":0},{"$f":"IF(K1256='1 Données d''entrée'!$C$333+'1 Données d''entrée'!$C$334+$B1266,$H1258,0)","v":0},{"$f":"IF(L1256='1 Données d''entrée'!$C$333+'1 Données d''entrée'!$C$334+$B1266,$H1258,0)","v":0},{"$f":"IF(M1256='1 Données d''entrée'!$C$333+'1 Données d''entrée'!$C$334+$B1266,$H1258,0)","v":0},{"$f":"IF(N1256='1 Données d''entrée'!$C$333+'1 Données d''entrée'!$C$334+$B1266,$H1258,0)","v":0},{"$f":"IF(O1256='1 Données d''entrée'!$C$333+'1 Données d''entrée'!$C$334+$B1266,$H1258,0)","v":0},{"$f":"IF(P1256='1 Données d''entrée'!$C$333+'1 Données d''entrée'!$C$334+$B1266,$H1258,0)","v":0},{"$f":"IF(Q1256='1 Données d''entrée'!$C$333+'1 Données d''entrée'!$C$334+$B1266,$H1258,0)","v":0},{"$f":"IF(R1256='1 Données d''entrée'!$C$333+'1 Données d''entrée'!$C$334+$B1266,$H1258,0)","v":0},{"$f":"IF(S1256='1 Données d''entrée'!$C$333+'1 Données d''entrée'!$C$334+$B1266,$H1258,0)","v":0},{"$f":"IF(T1256='1 Données d''entrée'!$C$333+'1 Données d''entrée'!$C$334+$B1266,$H1258,0)","v":0},{"$f":"IF(U1256='1 Données d''entrée'!$C$333+'1 Données d''entrée'!$C$334+$B1266,$H1258,0)","v":0},{"$f":"IF(V1256='1 Données d''entrée'!$C$333+'1 Données d''entrée'!$C$334+$B1266,$H1258,0)","v":0}]
[null,7,{"$f":"IF(C1256='1 Données d''entrée'!$C$333+'1 Données d''entrée'!$C$334+$B1267,$I1258,0)","v":0},{"$f":"IF(D1256='1 Données d''entrée'!$C$333+'1 Données d''entrée'!$C$334+$B1267,$I1258,0)","v":0},{"$f":"IF(E1256='1 Données d''entrée'!$C$333+'1 Données d''entrée'!$C$334+$B1267,$I1258,0)","v":0},{"$f":"IF(F1256='1 Données d''entrée'!$C$333+'1 Données d''entrée'!$C$334+$B1267,$I1258,0)","v":0},{"$f":"IF(G1256='1 Données d''entrée'!$C$333+'1 Données d''entrée'!$C$334+$B1267,$I1258,0)","v":0},{"$f":"IF(H1256='1 Données d''entrée'!$C$333+'1 Données d''entrée'!$C$334+$B1267,$I1258,0)","v":0},{"$f":"IF(I1256='1 Données d''entrée'!$C$333+'1 Données d''entrée'!$C$334+$B1267,$I1258,0)","v":{"$error":"#DIV/0!"}},{"$f":"IF(J1256='1 Données d''entrée'!$C$333+'1 Données d''entrée'!$C$334+$B1267,$I1258,0)","v":0},{"$f":"IF(K1256='1 Données d''entrée'!$C$333+'1 Données d''entrée'!$C$334+$B1267,$I1258,0)","v":0},{"$f":"IF(L1256='1 Données d''entrée'!$C$333+'1 Données d''entrée'!$C$334+$B1267,$I1258,0)","v":0},{"$f":"IF(M1256='1 Données d''entrée'!$C$333+'1 Données d''entrée'!$C$334+$B1267,$I1258,0)","v":0},{"$f":"IF(N1256='1 Données d''entrée'!$C$333+'1 Données d''entrée'!$C$334+$B1267,$I1258,0)","v":0},{"$f":"IF(O1256='1 Données d''entrée'!$C$333+'1 Données d''entrée'!$C$334+$B1267,$I1258,0)","v":0},{"$f":"IF(P1256='1 Données d''entrée'!$C$333+'1 Données d''entrée'!$C$334+$B1267,$I1258,0)","v":0},{"$f":"IF(Q1256='1 Données d''entrée'!$C$333+'1 Données d''entrée'!$C$334+$B1267,$I1258,0)","v":0},{"$f":"IF(R1256='1 Données d''entrée'!$C$333+'1 Données d''entrée'!$C$334+$B1267,$I1258,0)","v":0},{"$f":"IF(S1256='1 Données d''entrée'!$C$333+'1 Données d''entrée'!$C$334+$B1267,$I1258,0)","v":0},{"$f":"IF(T1256='1 Données d''entrée'!$C$333+'1 Données d''entrée'!$C$334+$B1267,$I1258,0)","v":0},{"$f":"IF(U1256='1 Données d''entrée'!$C$333+'1 Données d''entrée'!$C$334+$B1267,$I1258,0)","v":0},{"$f":"IF(V1256='1 Données d''entrée'!$C$333+'1 Données d''entrée'!$C$334+$B1267,$I1258,0)","v":0}]
[null,8,{"$f":"IF(C1256='1 Données d''entrée'!$C$333+'1 Données d''entrée'!$C$334+$B1268,$J1258,0)","v":0},{"$f":"IF(D1256='1 Données d''entrée'!$C$333+'1 Données d''entrée'!$C$334+$B1268,$J1258,0)","v":0},{"$f":"IF(E1256='1 Données d''entrée'!$C$333+'1 Données d''entrée'!$C$334+$B1268,$J1258,0)","v":0},{"$f":"IF(F1256='1 Données d''entrée'!$C$333+'1 Données d''entrée'!$C$334+$B1268,$J1258,0)","v":0},{"$f":"IF(G1256='1 Données d''entrée'!$C$333+'1 Données d''entrée'!$C$334+$B1268,$J1258,0)","v":0},{"$f":"IF(H1256='1 Données d''entrée'!$C$333+'1 Données d''entrée'!$C$334+$B1268,$J1258,0)","v":0},{"$f":"IF(I1256='1 Données d''entrée'!$C$333+'1 Données d''entrée'!$C$334+$B1268,$J1258,0)","v":0},{"$f":"IF(J1256='1 Données d''entrée'!$C$333+'1 Données d''entrée'!$C$334+$B1268,$J1258,0)","v":{"$error":"#DIV/0!"}},{"$f":"IF(K1256='1 Données d''entrée'!$C$333+'1 Données d''entrée'!$C$334+$B1268,$J1258,0)","v":0},{"$f":"IF(L1256='1 Données d''entrée'!$C$333+'1 Données d''entrée'!$C$334+$B1268,$J1258,0)","v":0},{"$f":"IF(M1256='1 Données d''entrée'!$C$333+'1 Données d''entrée'!$C$334+$B1268,$J1258,0)","v":0},{"$f":"IF(N1256='1 Données d''entrée'!$C$333+'1 Données d''entrée'!$C$334+$B1268,$J1258,0)","v":0},{"$f":"IF(O1256='1 Données d''entrée'!$C$333+'1 Données d''entrée'!$C$334+$B1268,$J1258,0)","v":0},{"$f":"IF(P1256='1 Données d''entrée'!$C$333+'1 Données d''entrée'!$C$334+$B1268,$J1258,0)","v":0},{"$f":"IF(Q1256='1 Données d''entrée'!$C$333+'1 Données d''entrée'!$C$334+$B1268,$J1258,0)","v":0},{"$f":"IF(R1256='1 Données d''entrée'!$C$333+'1 Données d''entrée'!$C$334+$B1268,$J1258,0)","v":0},{"$f":"IF(S1256='1 Données d''entrée'!$C$333+'1 Données d''entrée'!$C$334+$B1268,$J1258,0)","v":0},{"$f":"IF(T1256='1 Données d''entrée'!$C$333+'1 Données d''entrée'!$C$334+$B1268,$J1258,0)","v":0},{"$f":"IF(U1256='1 Données d''entrée'!$C$333+'1 Données d''entrée'!$C$334+$B1268,$J1258,0)","v":0},{"$f":"IF(V1256='1 Données d''entrée'!$C$333+'1 Données d''entrée'!$C$334+$B1268,$J1258,0)","v":0}]
[null,9,{"$f":"IF(C1256='1 Données d''entrée'!$C$333+'1 Données d''entrée'!$C$334+$B1269,$K1258,0)","v":0},{"$f":"IF(D1256='1 Données d''entrée'!$C$333+'1 Données d''entrée'!$C$334+$B1269,$K1258,0)","v":0},{"$f":"IF(E1256='1 Données d''entrée'!$C$333+'1 Données d''entrée'!$C$334+$B1269,$K1258,0)","v":0},{"$f":"IF(F1256='1 Données d''entrée'!$C$333+'1 Données d''entrée'!$C$334+$B1269,$K1258,0)","v":0},{"$f":"IF(G1256='1 Données d''entrée'!$C$333+'1 Données d''entrée'!$C$334+$B1269,$K1258,0)","v":0},{"$f":"IF(H1256='1 Données d''entrée'!$C$333+'1 Données d''entrée'!$C$334+$B1269,$K1258,0)","v":0},{"$f":"IF(I1256='1 Données d''entrée'!$C$333+'1 Données d''entrée'!$C$334+$B1269,$K1258,0)","v":0},{"$f":"IF(J1256='1 Données d''entrée'!$C$333+'1 Données d''entrée'!$C$334+$B1269,$K1258,0)","v":0},{"$f":"IF(K1256='1 Données d''entrée'!$C$333+'1 Données d''entrée'!$C$334+$B1269,$K1258,0)","v":{"$error":"#DIV/0!"}},{"$f":"IF(L1256='1 Données d''entrée'!$C$333+'1 Données d''entrée'!$C$334+$B1269,$K1258,0)","v":0},{"$f":"IF(M1256='1 Données d''entrée'!$C$333+'1 Données d''entrée'!$C$334+$B1269,$K1258,0)","v":0},{"$f":"IF(N1256='1 Données d''entrée'!$C$333+'1 Données d''entrée'!$C$334+$B1269,$K1258,0)","v":0},{"$f":"IF(O1256='1 Données d''entrée'!$C$333+'1 Données d''entrée'!$C$334+$B1269,$K1258,0)","v":0},{"$f":"IF(P1256='1 Données d''entrée'!$C$333+'1 Données d''entrée'!$C$334+$B1269,$K1258,0)","v":0},{"$f":"IF(Q1256='1 Données d''entrée'!$C$333+'1 Données d''entrée'!$C$334+$B1269,$K1258,0)","v":0},{"$f":"IF(R1256='1 Données d''entrée'!$C$333+'1 Données d''entrée'!$C$334+$B1269,$K1258,0)","v":0},{"$f":"IF(S1256='1 Données d''entrée'!$C$333+'1 Données d''entrée'!$C$334+$B1269,$K1258,0)","v":0},{"$f":"IF(T1256='1 Données d''entrée'!$C$333+'1 Données d''entrée'!$C$334+$B1269,$K1258,0)","v":0},{"$f":"IF(U1256='1 Données d''entrée'!$C$333+'1 Données d''entrée'!$C$334+$B1269,$K1258,0)","v":0},{"$f":"IF(V1256='1 Données d''entrée'!$C$333+'1 Données d''entrée'!$C$334+$B1269,$K1258,0)","v":0}]
[null,10,{"$f":"IF(C1256='1 Données d''entrée'!$C$333+'1 Données d''entrée'!$C$334+$B1270,$L1258,0)","v":0},{"$f":"IF(D1256='1 Données d''entrée'!$C$333+'1 Données d''entrée'!$C$334+$B1270,$L1258,0)","v":0},{"$f":"IF(E1256='1 Données d''entrée'!$C$333+'1 Données d''entrée'!$C$334+$B1270,$L1258,0)","v":0},{"$f":"IF(F1256='1 Données d''entrée'!$C$333+'1 Données d''entrée'!$C$334+$B1270,$L1258,0)","v":0},{"$f":"IF(G1256='1 Données d''entrée'!$C$333+'1 Données d''entrée'!$C$334+$B1270,$L1258,0)","v":0},{"$f":"IF(H1256='1 Données d''entrée'!$C$333+'1 Données d''entrée'!$C$334+$B1270,$L1258,0)","v":0},{"$f":"IF(I1256='1 Données d''entrée'!$C$333+'1 Données d''entrée'!$C$334+$B1270,$L1258,0)","v":0},{"$f":"IF(J1256='1 Données d''entrée'!$C$333+'1 Données d''entrée'!$C$334+$B1270,$L1258,0)","v":0},{"$f":"IF(K1256='1 Données d''entrée'!$C$333+'1 Données d''entrée'!$C$334+$B1270,$L1258,0)","v":0},{"$f":"IF(L1256='1 Données d''entrée'!$C$333+'1 Données d''entrée'!$C$334+$B1270,$L1258,0)","v":{"$error":"#DIV/0!"}},{"$f":"IF(M1256='1 Données d''entrée'!$C$333+'1 Données d''entrée'!$C$334+$B1270,$L1258,0)","v":0},{"$f":"IF(N1256='1 Données d''entrée'!$C$333+'1 Données d''entrée'!$C$334+$B1270,$L1258,0)","v":0},{"$f":"IF(O1256='1 Données d''entrée'!$C$333+'1 Données d''entrée'!$C$334+$B1270,$L1258,0)","v":0},{"$f":"IF(P1256='1 Données d''entrée'!$C$333+'1 Données d''entrée'!$C$334+$B1270,$L1258,0)","v":0},{"$f":"IF(Q1256='1 Données d''entrée'!$C$333+'1 Données d''entrée'!$C$334+$B1270,$L1258,0)","v":0},{"$f":"IF(R1256='1 Données d''entrée'!$C$333+'1 Données d''entrée'!$C$334+$B1270,$L1258,0)","v":0},{"$f":"IF(S1256='1 Données d''entrée'!$C$333+'1 Données d''entrée'!$C$334+$B1270,$L1258,0)","v":0},{"$f":"IF(T1256='1 Données d''entrée'!$C$333+'1 Données d''entrée'!$C$334+$B1270,$L1258,0)","v":0},{"$f":"IF(U1256='1 Données d''entrée'!$C$333+'1 Données d''entrée'!$C$334+$B1270,$L1258,0)","v":0},{"$f":"IF(V1256='1 Données d''entrée'!$C$333+'1 Données d''entrée'!$C$334+$B1270,$L1258,0)","v":0}]
[null,"Période de prêt nouveau"]
["Paiement d'intérêts",0,0,0,0,0,0,0,0,0,0,0,0,0,0,0,0,0,0,0,0,0]
["Paiement d'intêrets",1,0,{"$f":"IF(C1180<1+$B1260,0,IF(C1180<'1 Données d''entrée'!$C$334+'1 Données d''entrée'!$C$333+1+$B1260,'1 Données d''entrée'!$C$332*($C1258-SUM($C1261:C1261)),0))","v":0},{"$f":"IF(D1180<1+$B1260,0,IF(D1180<'1 Données d''entrée'!$C$334+'1 Données d''entrée'!$C$333+1+$B1260,'1 Données d''entrée'!$C$332*($C1258-SUM($C1261:D1261)),0))","v":0},{"$f":"IF(E1180<1+$B1260,0,IF(E1180<'1 Données d''entrée'!$C$334+'1 Données d''entrée'!$C$333+1+$B1260,'1 Données d''entrée'!$C$332*($C1258-SUM($C1261:E1261)),0))","v":0},{"$f":"IF(F1180<1+$B1260,0,IF(F1180<'1 Données d''entrée'!$C$334+'1 Données d''entrée'!$C$333+1+$B1260,'1 Données d''entrée'!$C$332*($C1258-SUM($C1261:F1261)),0))","v":0},{"$f":"IF(G1180<1+$B1260,0,IF(G1180<'1 Données d''entrée'!$C$334+'1 Données d''entrée'!$C$333+1+$B1260,'1 Données d''entrée'!$C$332*($C1258-SUM($C1261:G1261)),0))","v":0},{"$f":"IF(H1180<1+$B1260,0,IF(H1180<'1 Données d''entrée'!$C$334+'1 Données d''entrée'!$C$333+1+$B1260,'1 Données d''entrée'!$C$332*($C1258-SUM($C1261:H1261)),0))","v":0},{"$f":"IF(I1180<1+$B1260,0,IF(I1180<'1 Données d''entrée'!$C$334+'1 Données d''entrée'!$C$333+1+$B1260,'1 Données d''entrée'!$C$332*($C1258-SUM($C1261:I1261)),0))","v":0},{"$f":"IF(J1180<1+$B1260,0,IF(J1180<'1 Données d''entrée'!$C$334+'1 Données d''entrée'!$C$333+1+$B1260,'1 Données d''entrée'!$C$332*($C1258-SUM($C1261:J1261)),0))","v":0},{"$f":"IF(K1180<1+$B1260,0,IF(K1180<'1 Données d''entrée'!$C$334+'1 Données d''entrée'!$C$333+1+$B1260,'1 Données d''entrée'!$C$332*($C1258-SUM($C1261:K1261)),0))","v":0},{"$f":"IF(L1180<1+$B1260,0,IF(L1180<'1 Données d''entrée'!$C$334+'1 Données d''entrée'!$C$333+1+$B1260,'1 Données d''entrée'!$C$332*($C1258-SUM($C1261:L1261)),0))","v":0},{"$f":"IF(M1180<1+$B1260,0,IF(M1180<'1 Données d''entrée'!$C$334+'1 Données d''entrée'!$C$333+1+$B1260,'1 Données d''entrée'!$C$332*($C1258-SUM($C1261:M1261)),0))","v":0},{"$f":"IF(N1180<1+$B1260,0,IF(N1180<'1 Données d''entrée'!$C$334+'1 Données d''entrée'!$C$333+1+$B1260,'1 Données d''entrée'!$C$332*($C1258-SUM($C1261:N1261)),0))","v":0},{"$f":"IF(O1180<1+$B1260,0,IF(O1180<'1 Données d''entrée'!$C$334+'1 Données d''entrée'!$C$333+1+$B1260,'1 Données d''entrée'!$C$332*($C1258-SUM($C1261:O1261)),0))","v":0},{"$f":"IF(P1180<1+$B1260,0,IF(P1180<'1 Données d''entrée'!$C$334+'1 Données d''entrée'!$C$333+1+$B1260,'1 Données d''entrée'!$C$332*($C1258-SUM($C1261:P1261)),0))","v":0},{"$f":"IF(Q1180<1+$B1260,0,IF(Q1180<'1 Données d''entrée'!$C$334+'1 Données d''entrée'!$C$333+1+$B1260,'1 Données d''entrée'!$C$332*($C1258-SUM($C1261:Q1261)),0))","v":0},{"$f":"IF(R1180<1+$B1260,0,IF(R1180<'1 Données d''entrée'!$C$334+'1 Données d''entrée'!$C$333+1+$B1260,'1 Données d''entrée'!$C$332*($C1258-SUM($C1261:R1261)),0))","v":0},{"$f":"IF(S1180<1+$B1260,0,IF(S1180<'1 Données d''entrée'!$C$334+'1 Données d''entrée'!$C$333+1+$B1260,'1 Données d''entrée'!$C$332*($C1258-SUM($C1261:S1261)),0))","v":0},{"$f":"IF(T1180<1+$B1260,0,IF(T1180<'1 Données d''entrée'!$C$334+'1 Données d''entrée'!$C$333+1+$B1260,'1 Données d''entrée'!$C$332*($C1258-SUM($C1261:T1261)),0))","v":0},{"$f":"IF(U1180<1+$B1260,0,IF(U1180<'1 Données d''entrée'!$C$334+'1 Données d''entrée'!$C$333+1+$B1260,'1 Données d''entrée'!$C$332*($C1258-SUM($C1261:U1261)),0))","v":0}]
["Paiement d'intêrets",2,0,{"$f":"IF(C1180<1+$B1261,0,IF(C1180<'1 Données d''entrée'!$C$334+'1 Données d''entrée'!$C$333+1+$B1261,'1 Données d''entrée'!$C$332*($D1258-SUM($C1262:C1262)),0))","v":0},{"$f":"IF(D1180<1+$B1261,0,IF(D1180<'1 Données d''entrée'!$C$334+'1 Données d''entrée'!$C$333+1+$B1261,'1 Données d''entrée'!$C$332*($D1258-SUM($C1262:D1262)),0))","v":0},{"$f":"IF(E1180<1+$B1261,0,IF(E1180<'1 Données d''entrée'!$C$334+'1 Données d''entrée'!$C$333+1+$B1261,'1 Données d''entrée'!$C$332*($D1258-SUM($C1262:E1262)),0))","v":0},{"$f":"IF(F1180<1+$B1261,0,IF(F1180<'1 Données d''entrée'!$C$334+'1 Données d''entrée'!$C$333+1+$B1261,'1 Données d''entrée'!$C$332*($D1258-SUM($C1262:F1262)),0))","v":0},{"$f":"IF(G1180<1+$B1261,0,IF(G1180<'1 Données d''entrée'!$C$334+'1 Données d''entrée'!$C$333+1+$B1261,'1 Données d''entrée'!$C$332*($D1258-SUM($C1262:G1262)),0))","v":0},{"$f":"IF(H1180<1+$B1261,0,IF(H1180<'1 Données d''entrée'!$C$334+'1 Données d''entrée'!$C$333+1+$B1261,'1 Données d''entrée'!$C$332*($D1258-SUM($C1262:H1262)),0))","v":0},{"$f":"IF(I1180<1+$B1261,0,IF(I1180<'1 Données d''entrée'!$C$334+'1 Données d''entrée'!$C$333+1+$B1261,'1 Données d''entrée'!$C$332*($D1258-SUM($C1262:I1262)),0))","v":0},{"$f":"IF(J1180<1+$B1261,0,IF(J1180<'1 Données d''entrée'!$C$334+'1 Données d''entrée'!$C$333+1+$B1261,'1 Données d''entrée'!$C$332*($D1258-SUM($C1262:J1262)),0))","v":0},{"$f":"IF(K1180<1+$B1261,0,IF(K1180<'1 Données d''entrée'!$C$334+'1 Données d''entrée'!$C$333+1+$B1261,'1 Données d''entrée'!$C$332*($D1258-SUM($C1262:K1262)),0))","v":0},{"$f":"IF(L1180<1+$B1261,0,IF(L1180<'1 Données d''entrée'!$C$334+'1 Données d''entrée'!$C$333+1+$B1261,'1 Données d''entrée'!$C$332*($D1258-SUM($C1262:L1262)),0))","v":0},{"$f":"IF(M1180<1+$B1261,0,IF(M1180<'1 Données d''entrée'!$C$334+'1 Données d''entrée'!$C$333+1+$B1261,'1 Données d''entrée'!$C$332*($D1258-SUM($C1262:M1262)),0))","v":0},{"$f":"IF(N1180<1+$B1261,0,IF(N1180<'1 Données d''entrée'!$C$334+'1 Données d''entrée'!$C$333+1+$B1261,'1 Données d''entrée'!$C$332*($D1258-SUM($C1262:N1262)),0))","v":0},{"$f":"IF(O1180<1+$B1261,0,IF(O1180<'1 Données d''entrée'!$C$334+'1 Données d''entrée'!$C$333+1+$B1261,'1 Données d''entrée'!$C$332*($D1258-SUM($C1262:O1262)),0))","v":0},{"$f":"IF(P1180<1+$B1261,0,IF(P1180<'1 Données d''entrée'!$C$334+'1 Données d''entrée'!$C$333+1+$B1261,'1 Données d''entrée'!$C$332*($D1258-SUM($C1262:P1262)),0))","v":0},{"$f":"IF(Q1180<1+$B1261,0,IF(Q1180<'1 Données d''entrée'!$C$334+'1 Données d''entrée'!$C$333+1+$B1261,'1 Données d''entrée'!$C$332*($D1258-SUM($C1262:Q1262)),0))","v":0},{"$f":"IF(R1180<1+$B1261,0,IF(R1180<'1 Données d''entrée'!$C$334+'1 Données d''entrée'!$C$333+1+$B1261,'1 Données d''entrée'!$C$332*($D1258-SUM($C1262:R1262)),0))","v":0},{"$f":"IF(S1180<1+$B1261,0,IF(S1180<'1 Données d''entrée'!$C$334+'1 Données d''entrée'!$C$333+1+$B1261,'1 Données d''entrée'!$C$332*($D1258-SUM($C1262:S1262)),0))","v":0},{"$f":"IF(T1180<1+$B1261,0,IF(T1180<'1 Données d''entrée'!$C$334+'1 Données d''entrée'!$C$333+1+$B1261,'1 Données d''entrée'!$C$332*($D1258-SUM($C1262:T1262)),0))","v":0},{"$f":"IF(U1180<1+$B1261,0,IF(U1180<'1 Données d''entrée'!$C$334+'1 Données d''entrée'!$C$333+1+$B1261,'1 Données d''entrée'!$C$332*($D1258-SUM($C1262:U1262)),0))","v":0}]
["Paiement d'intêrets",3,0,{"$f":"IF(C1180<1+$B1262,0,IF(C1180<'1 Données d''entrée'!$C$334+'1 Données d''entrée'!$C$333+1+$B1262,'1 Données d''entrée'!$C$332*($E1258-SUM($C1263:C1263)),0))","v":0},{"$f":"IF(D1180<1+$B1262,0,IF(D1180<'1 Données d''entrée'!$C$334+'1 Données d''entrée'!$C$333+1+$B1262,'1 Données d''entrée'!$C$332*($E1258-SUM($C1263:D1263)),0))","v":0},{"$f":"IF(E1180<1+$B1262,0,IF(E1180<'1 Données d''entrée'!$C$334+'1 Données d''entrée'!$C$333+1+$B1262,'1 Données d''entrée'!$C$332*($E1258-SUM($C1263:E1263)),0))","v":0},{"$f":"IF(F1180<1+$B1262,0,IF(F1180<'1 Données d''entrée'!$C$334+'1 Données d''entrée'!$C$333+1+$B1262,'1 Données d''entrée'!$C$332*($E1258-SUM($C1263:F1263)),0))","v":0},{"$f":"IF(G1180<1+$B1262,0,IF(G1180<'1 Données d''entrée'!$C$334+'1 Données d''entrée'!$C$333+1+$B1262,'1 Données d''entrée'!$C$332*($E1258-SUM($C1263:G1263)),0))","v":0},{"$f":"IF(H1180<1+$B1262,0,IF(H1180<'1 Données d''entrée'!$C$334+'1 Données d''entrée'!$C$333+1+$B1262,'1 Données d''entrée'!$C$332*($E1258-SUM($C1263:H1263)),0))","v":0},{"$f":"IF(I1180<1+$B1262,0,IF(I1180<'1 Données d''entrée'!$C$334+'1 Données d''entrée'!$C$333+1+$B1262,'1 Données d''entrée'!$C$332*($E1258-SUM($C1263:I1263)),0))","v":0},{"$f":"IF(J1180<1+$B1262,0,IF(J1180<'1 Données d''entrée'!$C$334+'1 Données d''entrée'!$C$333+1+$B1262,'1 Données d''entrée'!$C$332*($E1258-SUM($C1263:J1263)),0))","v":0},{"$f":"IF(K1180<1+$B1262,0,IF(K1180<'1 Données d''entrée'!$C$334+'1 Données d''entrée'!$C$333+1+$B1262,'1 Données d''entrée'!$C$332*($E1258-SUM($C1263:K1263)),0))","v":0},{"$f":"IF(L1180<1+$B1262,0,IF(L1180<'1 Données d''entrée'!$C$334+'1 Données d''entrée'!$C$333+1+$B1262,'1 Données d''entrée'!$C$332*($E1258-SUM($C1263:L1263)),0))","v":0},{"$f":"IF(M1180<1+$B1262,0,IF(M1180<'1 Données d''entrée'!$C$334+'1 Données d''entrée'!$C$333+1+$B1262,'1 Données d''entrée'!$C$332*($E1258-SUM($C1263:M1263)),0))","v":0},{"$f":"IF(N1180<1+$B1262,0,IF(N1180<'1 Données d''entrée'!$C$334+'1 Données d''entrée'!$C$333+1+$B1262,'1 Données d''entrée'!$C$332*($E1258-SUM($C1263:N1263)),0))","v":0},{"$f":"IF(O1180<1+$B1262,0,IF(O1180<'1 Données d''entrée'!$C$334+'1 Données d''entrée'!$C$333+1+$B1262,'1 Données d''entrée'!$C$332*($E1258-SUM($C1263:O1263)),0))","v":0},{"$f":"IF(P1180<1+$B1262,0,IF(P1180<'1 Données d''entrée'!$C$334+'1 Données d''entrée'!$C$333+1+$B1262,'1 Données d''entrée'!$C$332*($E1258-SUM($C1263:P1263)),0))","v":0},{"$f":"IF(Q1180<1+$B1262,0,IF(Q1180<'1 Données d''entrée'!$C$334+'1 Données d''entrée'!$C$333+1+$B1262,'1 Données d''entrée'!$C$332*($E1258-SUM($C1263:Q1263)),0))","v":0},{"$f":"IF(R1180<1+$B1262,0,IF(R1180<'1 Données d''entrée'!$C$334+'1 Données d''entrée'!$C$333+1+$B1262,'1 Données d''entrée'!$C$332*($E1258-SUM($C1263:R1263)),0))","v":0},{"$f":"IF(S1180<1+$B1262,0,IF(S1180<'1 Données d''entrée'!$C$334+'1 Données d''entrée'!$C$333+1+$B1262,'1 Données d''entrée'!$C$332*($E1258-SUM($C1263:S1263)),0))","v":0},{"$f":"IF(T1180<1+$B1262,0,IF(T1180<'1 Données d''entrée'!$C$334+'1 Données d''entrée'!$C$333+1+$B1262,'1 Données d''entrée'!$C$332*($E1258-SUM($C1263:T1263)),0))","v":0},{"$f":"IF(U1180<1+$B1262,0,IF(U1180<'1 Données d''entrée'!$C$334+'1 Données d''entrée'!$C$333+1+$B1262,'1 Données d''entrée'!$C$332*($E1258-SUM($C1263:U1263)),0))","v":0}]
["Paiement d'intêrets",4,0,{"$f":"IF(C1180<1+$B1263,0,IF(C1180<'1 Données d''entrée'!$C$334+'1 Données d''entrée'!$C$333+1+$B1263,'1 Données d''entrée'!$C$332*($F1258-SUM($C1264:C1264)),0))","v":0},{"$f":"IF(D1180<1+$B1263,0,IF(D1180<'1 Données d''entrée'!$C$334+'1 Données d''entrée'!$C$333+1+$B1263,'1 Données d''entrée'!$C$332*($F1258-SUM($C1264:D1264)),0))","v":0},{"$f":"IF(E1180<1+$B1263,0,IF(E1180<'1 Données d''entrée'!$C$334+'1 Données d''entrée'!$C$333+1+$B1263,'1 Données d''entrée'!$C$332*($F1258-SUM($C1264:E1264)),0))","v":0},{"$f":"IF(F1180<1+$B1263,0,IF(F1180<'1 Données d''entrée'!$C$334+'1 Données d''entrée'!$C$333+1+$B1263,'1 Données d''entrée'!$C$332*($F1258-SUM($C1264:F1264)),0))","v":0},{"$f":"IF(G1180<1+$B1263,0,IF(G1180<'1 Données d''entrée'!$C$334+'1 Données d''entrée'!$C$333+1+$B1263,'1 Données d''entrée'!$C$332*($F1258-SUM($C1264:G1264)),0))","v":0},{"$f":"IF(H1180<1+$B1263,0,IF(H1180<'1 Données d''entrée'!$C$334+'1 Données d''entrée'!$C$333+1+$B1263,'1 Données d''entrée'!$C$332*($F1258-SUM($C1264:H1264)),0))","v":0},{"$f":"IF(I1180<1+$B1263,0,IF(I1180<'1 Données d''entrée'!$C$334+'1 Données d''entrée'!$C$333+1+$B1263,'1 Données d''entrée'!$C$332*($F1258-SUM($C1264:I1264)),0))","v":0},{"$f":"IF(J1180<1+$B1263,0,IF(J1180<'1 Données d''entrée'!$C$334+'1 Données d''entrée'!$C$333+1+$B1263,'1 Données d''entrée'!$C$332*($F1258-SUM($C1264:J1264)),0))","v":0},{"$f":"IF(K1180<1+$B1263,0,IF(K1180<'1 Données d''entrée'!$C$334+'1 Données d''entrée'!$C$333+1+$B1263,'1 Données d''entrée'!$C$332*($F1258-SUM($C1264:K1264)),0))","v":0},{"$f":"IF(L1180<1+$B1263,0,IF(L1180<'1 Données d''entrée'!$C$334+'1 Données d''entrée'!$C$333+1+$B1263,'1 Données d''entrée'!$C$332*($F1258-SUM($C1264:L1264)),0))","v":0},{"$f":"IF(M1180<1+$B1263,0,IF(M1180<'1 Données d''entrée'!$C$334+'1 Données d''entrée'!$C$333+1+$B1263,'1 Données d''entrée'!$C$332*($F1258-SUM($C1264:M1264)),0))","v":0},{"$f":"IF(N1180<1+$B1263,0,IF(N1180<'1 Données d''entrée'!$C$334+'1 Données d''entrée'!$C$333+1+$B1263,'1 Données d''entrée'!$C$332*($F1258-SUM($C1264:N1264)),0))","v":0},{"$f":"IF(O1180<1+$B1263,0,IF(O1180<'1 Données d''entrée'!$C$334+'1 Données d''entrée'!$C$333+1+$B1263,'1 Données d''entrée'!$C$332*($F1258-SUM($C1264:O1264)),0))","v":0},{"$f":"IF(P1180<1+$B1263,0,IF(P1180<'1 Données d''entrée'!$C$334+'1 Données d''entrée'!$C$333+1+$B1263,'1 Données d''entrée'!$C$332*($F1258-SUM($C1264:P1264)),0))","v":0},{"$f":"IF(Q1180<1+$B1263,0,IF(Q1180<'1 Données d''entrée'!$C$334+'1 Données d''entrée'!$C$333+1+$B1263,'1 Données d''entrée'!$C$332*($F1258-SUM($C1264:Q1264)),0))","v":0},{"$f":"IF(R1180<1+$B1263,0,IF(R1180<'1 Données d''entrée'!$C$334+'1 Données d''entrée'!$C$333+1+$B1263,'1 Données d''entrée'!$C$332*($F1258-SUM($C1264:R1264)),0))","v":0},{"$f":"IF(S1180<1+$B1263,0,IF(S1180<'1 Données d''entrée'!$C$334+'1 Données d''entrée'!$C$333+1+$B1263,'1 Données d''entrée'!$C$332*($F1258-SUM($C1264:S1264)),0))","v":0},{"$f":"IF(T1180<1+$B1263,0,IF(T1180<'1 Données d''entrée'!$C$334+'1 Données d''entrée'!$C$333+1+$B1263,'1 Données d''entrée'!$C$332*($F1258-SUM($C1264:T1264)),0))","v":0},{"$f":"IF(U1180<1+$B1263,0,IF(U1180<'1 Données d''entrée'!$C$334+'1 Données d''entrée'!$C$333+1+$B1263,'1 Données d''entrée'!$C$332*($F1258-SUM($C1264:U1264)),0))","v":0}]
["Paiement d'intêrets",5,0,{"$f":"IF(C1180<1+$B1264,0,IF(C1180<'1 Données d''entrée'!$C$334+'1 Données d''entrée'!$C$333+1+$B1264,'1 Données d''entrée'!$C$332*($G1258-SUM($C1265:C1265)),0))","v":0},{"$f":"IF(D1180<1+$B1264,0,IF(D1180<'1 Données d''entrée'!$C$334+'1 Données d''entrée'!$C$333+1+$B1264,'1 Données d''entrée'!$C$332*($G1258-SUM($C1265:D1265)),0))","v":0},{"$f":"IF(E1180<1+$B1264,0,IF(E1180<'1 Données d''entrée'!$C$334+'1 Données d''entrée'!$C$333+1+$B1264,'1 Données d''entrée'!$C$332*($G1258-SUM($C1265:E1265)),0))","v":0},{"$f":"IF(F1180<1+$B1264,0,IF(F1180<'1 Données d''entrée'!$C$334+'1 Données d''entrée'!$C$333+1+$B1264,'1 Données d''entrée'!$C$332*($G1258-SUM($C1265:F1265)),0))","v":0},{"$f":"IF(G1180<1+$B1264,0,IF(G1180<'1 Données d''entrée'!$C$334+'1 Données d''entrée'!$C$333+1+$B1264,'1 Données d''entrée'!$C$332*($G1258-SUM($C1265:G1265)),0))","v":0},{"$f":"IF(H1180<1+$B1264,0,IF(H1180<'1 Données d''entrée'!$C$334+'1 Données d''entrée'!$C$333+1+$B1264,'1 Données d''entrée'!$C$332*($G1258-SUM($C1265:H1265)),0))","v":0},{"$f":"IF(I1180<1+$B1264,0,IF(I1180<'1 Données d''entrée'!$C$334+'1 Données d''entrée'!$C$333+1+$B1264,'1 Données d''entrée'!$C$332*($G1258-SUM($C1265:I1265)),0))","v":0},{"$f":"IF(J1180<1+$B1264,0,IF(J1180<'1 Données d''entrée'!$C$334+'1 Données d''entrée'!$C$333+1+$B1264,'1 Données d''entrée'!$C$332*($G1258-SUM($C1265:J1265)),0))","v":0},{"$f":"IF(K1180<1+$B1264,0,IF(K1180<'1 Données d''entrée'!$C$334+'1 Données d''entrée'!$C$333+1+$B1264,'1 Données d''entrée'!$C$332*($G1258-SUM($C1265:K1265)),0))","v":0},{"$f":"IF(L1180<1+$B1264,0,IF(L1180<'1 Données d''entrée'!$C$334+'1 Données d''entrée'!$C$333+1+$B1264,'1 Données d''entrée'!$C$332*($G1258-SUM($C1265:L1265)),0))","v":0},{"$f":"IF(M1180<1+$B1264,0,IF(M1180<'1 Données d''entrée'!$C$334+'1 Données d''entrée'!$C$333+1+$B1264,'1 Données d''entrée'!$C$332*($G1258-SUM($C1265:M1265)),0))","v":0},{"$f":"IF(N1180<1+$B1264,0,IF(N1180<'1 Données d''entrée'!$C$334+'1 Données d''entrée'!$C$333+1+$B1264,'1 Données d''entrée'!$C$332*($G1258-SUM($C1265:N1265)),0))","v":0},{"$f":"IF(O1180<1+$B1264,0,IF(O1180<'1 Données d''entrée'!$C$334+'1 Données d''entrée'!$C$333+1+$B1264,'1 Données d''entrée'!$C$332*($G1258-SUM($C1265:O1265)),0))","v":0},{"$f":"IF(P1180<1+$B1264,0,IF(P1180<'1 Données d''entrée'!$C$334+'1 Données d''entrée'!$C$333+1+$B1264,'1 Données d''entrée'!$C$332*($G1258-SUM($C1265:P1265)),0))","v":0},{"$f":"IF(Q1180<1+$B1264,0,IF(Q1180<'1 Données d''entrée'!$C$334+'1 Données d''entrée'!$C$333+1+$B1264,'1 Données d''entrée'!$C$332*($G1258-SUM($C1265:Q1265)),0))","v":0},{"$f":"IF(R1180<1+$B1264,0,IF(R1180<'1 Données d''entrée'!$C$334+'1 Données d''entrée'!$C$333+1+$B1264,'1 Données d''entrée'!$C$332*($G1258-SUM($C1265:R1265)),0))","v":0},{"$f":"IF(S1180<1+$B1264,0,IF(S1180<'1 Données d''entrée'!$C$334+'1 Données d''entrée'!$C$333+1+$B1264,'1 Données d''entrée'!$C$332*($G1258-SUM($C1265:S1265)),0))","v":0},{"$f":"IF(T1180<1+$B1264,0,IF(T1180<'1 Données d''entrée'!$C$334+'1 Données d''entrée'!$C$333+1+$B1264,'1 Données d''entrée'!$C$332*($G1258-SUM($C1265:T1265)),0))","v":0},{"$f":"IF(U1180<1+$B1264,0,IF(U1180<'1 Données d''entrée'!$C$334+'1 Données d''entrée'!$C$333+1+$B1264,'1 Données d''entrée'!$C$332*($G1258-SUM($C1265:U1265)),0))","v":0}]
["Paiement d'intêrets",6,0,{"$f":"IF(C1180<1+$B1265,0,IF(C1180<'1 Données d''entrée'!$C$334+'1 Données d''entrée'!$C$333+1+$B1265,'1 Données d''entrée'!$C$332*($H1258-SUM($C1266:C1266)),0))","v":0},{"$f":"IF(D1180<1+$B1265,0,IF(D1180<'1 Données d''entrée'!$C$334+'1 Données d''entrée'!$C$333+1+$B1265,'1 Données d''entrée'!$C$332*($H1258-SUM($C1266:D1266)),0))","v":0},{"$f":"IF(E1180<1+$B1265,0,IF(E1180<'1 Données d''entrée'!$C$334+'1 Données d''entrée'!$C$333+1+$B1265,'1 Données d''entrée'!$C$332*($H1258-SUM($C1266:E1266)),0))","v":0},{"$f":"IF(F1180<1+$B1265,0,IF(F1180<'1 Données d''entrée'!$C$334+'1 Données d''entrée'!$C$333+1+$B1265,'1 Données d''entrée'!$C$332*($H1258-SUM($C1266:F1266)),0))","v":0},{"$f":"IF(G1180<1+$B1265,0,IF(G1180<'1 Données d''entrée'!$C$334+'1 Données d''entrée'!$C$333+1+$B1265,'1 Données d''entrée'!$C$332*($H1258-SUM($C1266:G1266)),0))","v":0},{"$f":"IF(H1180<1+$B1265,0,IF(H1180<'1 Données d''entrée'!$C$334+'1 Données d''entrée'!$C$333+1+$B1265,'1 Données d''entrée'!$C$332*($H1258-SUM($C1266:H1266)),0))","v":0},{"$f":"IF(I1180<1+$B1265,0,IF(I1180<'1 Données d''entrée'!$C$334+'1 Données d''entrée'!$C$333+1+$B1265,'1 Données d''entrée'!$C$332*($H1258-SUM($C1266:I1266)),0))","v":0},{"$f":"IF(J1180<1+$B1265,0,IF(J1180<'1 Données d''entrée'!$C$334+'1 Données d''entrée'!$C$333+1+$B1265,'1 Données d''entrée'!$C$332*($H1258-SUM($C1266:J1266)),0))","v":0},{"$f":"IF(K1180<1+$B1265,0,IF(K1180<'1 Données d''entrée'!$C$334+'1 Données d''entrée'!$C$333+1+$B1265,'1 Données d''entrée'!$C$332*($H1258-SUM($C1266:K1266)),0))","v":0},{"$f":"IF(L1180<1+$B1265,0,IF(L1180<'1 Données d''entrée'!$C$334+'1 Données d''entrée'!$C$333+1+$B1265,'1 Données d''entrée'!$C$332*($H1258-SUM($C1266:L1266)),0))","v":0},{"$f":"IF(M1180<1+$B1265,0,IF(M1180<'1 Données d''entrée'!$C$334+'1 Données d''entrée'!$C$333+1+$B1265,'1 Données d''entrée'!$C$332*($H1258-SUM($C1266:M1266)),0))","v":0},{"$f":"IF(N1180<1+$B1265,0,IF(N1180<'1 Données d''entrée'!$C$334+'1 Données d''entrée'!$C$333+1+$B1265,'1 Données d''entrée'!$C$332*($H1258-SUM($C1266:N1266)),0))","v":0},{"$f":"IF(O1180<1+$B1265,0,IF(O1180<'1 Données d''entrée'!$C$334+'1 Données d''entrée'!$C$333+1+$B1265,'1 Données d''entrée'!$C$332*($H1258-SUM($C1266:O1266)),0))","v":0},{"$f":"IF(P1180<1+$B1265,0,IF(P1180<'1 Données d''entrée'!$C$334+'1 Données d''entrée'!$C$333+1+$B1265,'1 Données d''entrée'!$C$332*($H1258-SUM($C1266:P1266)),0))","v":0},{"$f":"IF(Q1180<1+$B1265,0,IF(Q1180<'1 Données d''entrée'!$C$334+'1 Données d''entrée'!$C$333+1+$B1265,'1 Données d''entrée'!$C$332*($H1258-SUM($C1266:Q1266)),0))","v":0},{"$f":"IF(R1180<1+$B1265,0,IF(R1180<'1 Données d''entrée'!$C$334+'1 Données d''entrée'!$C$333+1+$B1265,'1 Données d''entrée'!$C$332*($H1258-SUM($C1266:R1266)),0))","v":0},{"$f":"IF(S1180<1+$B1265,0,IF(S1180<'1 Données d''entrée'!$C$334+'1 Données d''entrée'!$C$333+1+$B1265,'1 Données d''entrée'!$C$332*($H1258-SUM($C1266:S1266)),0))","v":0},{"$f":"IF(T1180<1+$B1265,0,IF(T1180<'1 Données d''entrée'!$C$334+'1 Données d''entrée'!$C$333+1+$B1265,'1 Données d''entrée'!$C$332*($H1258-SUM($C1266:T1266)),0))","v":0},{"$f":"IF(U1180<1+$B1265,0,IF(U1180<'1 Données d''entrée'!$C$334+'1 Données d''entrée'!$C$333+1+$B1265,'1 Données d''entrée'!$C$332*($H1258-SUM($C1266:U1266)),0))","v":0}]
["Paiement d'intêrets",7,0,{"$f":"IF(C1180<1+$B1266,0,IF(C1180<'1 Données d''entrée'!$C$334+'1 Données d''entrée'!$C$333+1+$B1266,'1 Données d''entrée'!$C$332*($I1258-SUM($C1267:C1267)),0))","v":0},{"$f":"IF(D1180<1+$B1266,0,IF(D1180<'1 Données d''entrée'!$C$334+'1 Données d''entrée'!$C$333+1+$B1266,'1 Données d''entrée'!$C$332*($I1258-SUM($C1267:D1267)),0))","v":0},{"$f":"IF(E1180<1+$B1266,0,IF(E1180<'1 Données d''entrée'!$C$334+'1 Données d''entrée'!$C$333+1+$B1266,'1 Données d''entrée'!$C$332*($I1258-SUM($C1267:E1267)),0))","v":0},{"$f":"IF(F1180<1+$B1266,0,IF(F1180<'1 Données d''entrée'!$C$334+'1 Données d''entrée'!$C$333+1+$B1266,'1 Données d''entrée'!$C$332*($I1258-SUM($C1267:F1267)),0))","v":0},{"$f":"IF(G1180<1+$B1266,0,IF(G1180<'1 Données d''entrée'!$C$334+'1 Données d''entrée'!$C$333+1+$B1266,'1 Données d''entrée'!$C$332*($I1258-SUM($C1267:G1267)),0))","v":0},{"$f":"IF(H1180<1+$B1266,0,IF(H1180<'1 Données d''entrée'!$C$334+'1 Données d''entrée'!$C$333+1+$B1266,'1 Données d''entrée'!$C$332*($I1258-SUM($C1267:H1267)),0))","v":0},{"$f":"IF(I1180<1+$B1266,0,IF(I1180<'1 Données d''entrée'!$C$334+'1 Données d''entrée'!$C$333+1+$B1266,'1 Données d''entrée'!$C$332*($I1258-SUM($C1267:I1267)),0))","v":0},{"$f":"IF(J1180<1+$B1266,0,IF(J1180<'1 Données d''entrée'!$C$334+'1 Données d''entrée'!$C$333+1+$B1266,'1 Données d''entrée'!$C$332*($I1258-SUM($C1267:J1267)),0))","v":0},{"$f":"IF(K1180<1+$B1266,0,IF(K1180<'1 Données d''entrée'!$C$334+'1 Données d''entrée'!$C$333+1+$B1266,'1 Données d''entrée'!$C$332*($I1258-SUM($C1267:K1267)),0))","v":0},{"$f":"IF(L1180<1+$B1266,0,IF(L1180<'1 Données d''entrée'!$C$334+'1 Données d''entrée'!$C$333+1+$B1266,'1 Données d''entrée'!$C$332*($I1258-SUM($C1267:L1267)),0))","v":0},{"$f":"IF(M1180<1+$B1266,0,IF(M1180<'1 Données d''entrée'!$C$334+'1 Données d''entrée'!$C$333+1+$B1266,'1 Données d''entrée'!$C$332*($I1258-SUM($C1267:M1267)),0))","v":0},{"$f":"IF(N1180<1+$B1266,0,IF(N1180<'1 Données d''entrée'!$C$334+'1 Données d''entrée'!$C$333+1+$B1266,'1 Données d''entrée'!$C$332*($I1258-SUM($C1267:N1267)),0))","v":0},{"$f":"IF(O1180<1+$B1266,0,IF(O1180<'1 Données d''entrée'!$C$334+'1 Données d''entrée'!$C$333+1+$B1266,'1 Données d''entrée'!$C$332*($I1258-SUM($C1267:O1267)),0))","v":0},{"$f":"IF(P1180<1+$B1266,0,IF(P1180<'1 Données d''entrée'!$C$334+'1 Données d''entrée'!$C$333+1+$B1266,'1 Données d''entrée'!$C$332*($I1258-SUM($C1267:P1267)),0))","v":0},{"$f":"IF(Q1180<1+$B1266,0,IF(Q1180<'1 Données d''entrée'!$C$334+'1 Données d''entrée'!$C$333+1+$B1266,'1 Données d''entrée'!$C$332*($I1258-SUM($C1267:Q1267)),0))","v":0},{"$f":"IF(R1180<1+$B1266,0,IF(R1180<'1 Données d''entrée'!$C$334+'1 Données d''entrée'!$C$333+1+$B1266,'1 Données d''entrée'!$C$332*($I1258-SUM($C1267:R1267)),0))","v":0},{"$f":"IF(S1180<1+$B1266,0,IF(S1180<'1 Données d''entrée'!$C$334+'1 Données d''entrée'!$C$333+1+$B1266,'1 Données d''entrée'!$C$332*($I1258-SUM($C1267:S1267)),0))","v":0},{"$f":"IF(T1180<1+$B1266,0,IF(T1180<'1 Données d''entrée'!$C$334+'1 Données d''entrée'!$C$333+1+$B1266,'1 Données d''entrée'!$C$332*($I1258-SUM($C1267:T1267)),0))","v":0},{"$f":"IF(U1180<1+$B1266,0,IF(U1180<'1 Données d''entrée'!$C$334+'1 Données d''entrée'!$C$333+1+$B1266,'1 Données d''entrée'!$C$332*($I1258-SUM($C1267:U1267)),0))","v":0}]
["Paiement d'intêrets",8,0,{"$f":"IF(C1180<1+$B1267,0,IF(C1180<'1 Données d''entrée'!$C$334+'1 Données d''entrée'!$C$333+1+$B1267,'1 Données d''entrée'!$C$332*($J1258-SUM($C1268:C1268)),0))","v":0},{"$f":"IF(D1180<1+$B1267,0,IF(D1180<'1 Données d''entrée'!$C$334+'1 Données d''entrée'!$C$333+1+$B1267,'1 Données d''entrée'!$C$332*($J1258-SUM($C1268:D1268)),0))","v":0},{"$f":"IF(E1180<1+$B1267,0,IF(E1180<'1 Données d''entrée'!$C$334+'1 Données d''entrée'!$C$333+1+$B1267,'1 Données d''entrée'!$C$332*($J1258-SUM($C1268:E1268)),0))","v":0},{"$f":"IF(F1180<1+$B1267,0,IF(F1180<'1 Données d''entrée'!$C$334+'1 Données d''entrée'!$C$333+1+$B1267,'1 Données d''entrée'!$C$332*($J1258-SUM($C1268:F1268)),0))","v":0},{"$f":"IF(G1180<1+$B1267,0,IF(G1180<'1 Données d''entrée'!$C$334+'1 Données d''entrée'!$C$333+1+$B1267,'1 Données d''entrée'!$C$332*($J1258-SUM($C1268:G1268)),0))","v":0},{"$f":"IF(H1180<1+$B1267,0,IF(H1180<'1 Données d''entrée'!$C$334+'1 Données d''entrée'!$C$333+1+$B1267,'1 Données d''entrée'!$C$332*($J1258-SUM($C1268:H1268)),0))","v":0},{"$f":"IF(I1180<1+$B1267,0,IF(I1180<'1 Données d''entrée'!$C$334+'1 Données d''entrée'!$C$333+1+$B1267,'1 Données d''entrée'!$C$332*($J1258-SUM($C1268:I1268)),0))","v":0},{"$f":"IF(J1180<1+$B1267,0,IF(J1180<'1 Données d''entrée'!$C$334+'1 Données d''entrée'!$C$333+1+$B1267,'1 Données d''entrée'!$C$332*($J1258-SUM($C1268:J1268)),0))","v":0},{"$f":"IF(K1180<1+$B1267,0,IF(K1180<'1 Données d''entrée'!$C$334+'1 Données d''entrée'!$C$333+1+$B1267,'1 Données d''entrée'!$C$332*($J1258-SUM($C1268:K1268)),0))","v":0},{"$f":"IF(L1180<1+$B1267,0,IF(L1180<'1 Données d''entrée'!$C$334+'1 Données d''entrée'!$C$333+1+$B1267,'1 Données d''entrée'!$C$332*($J1258-SUM($C1268:L1268)),0))","v":0},{"$f":"IF(M1180<1+$B1267,0,IF(M1180<'1 Données d''entrée'!$C$334+'1 Données d''entrée'!$C$333+1+$B1267,'1 Données d''entrée'!$C$332*($J1258-SUM($C1268:M1268)),0))","v":0},{"$f":"IF(N1180<1+$B1267,0,IF(N1180<'1 Données d''entrée'!$C$334+'1 Données d''entrée'!$C$333+1+$B1267,'1 Données d''entrée'!$C$332*($J1258-SUM($C1268:N1268)),0))","v":0},{"$f":"IF(O1180<1+$B1267,0,IF(O1180<'1 Données d''entrée'!$C$334+'1 Données d''entrée'!$C$333+1+$B1267,'1 Données d''entrée'!$C$332*($J1258-SUM($C1268:O1268)),0))","v":0},{"$f":"IF(P1180<1+$B1267,0,IF(P1180<'1 Données d''entrée'!$C$334+'1 Données d''entrée'!$C$333+1+$B1267,'1 Données d''entrée'!$C$332*($J1258-SUM($C1268:P1268)),0))","v":0},{"$f":"IF(Q1180<1+$B1267,0,IF(Q1180<'1 Données d''entrée'!$C$334+'1 Données d''entrée'!$C$333+1+$B1267,'1 Données d''entrée'!$C$332*($J1258-SUM($C1268:Q1268)),0))","v":0},{"$f":"IF(R1180<1+$B1267,0,IF(R1180<'1 Données d''entrée'!$C$334+'1 Données d''entrée'!$C$333+1+$B1267,'1 Données d''entrée'!$C$332*($J1258-SUM($C1268:R1268)),0))","v":0},{"$f":"IF(S1180<1+$B1267,0,IF(S1180<'1 Données d''entrée'!$C$334+'1 Données d''entrée'!$C$333+1+$B1267,'1 Données d''entrée'!$C$332*($J1258-SUM($C1268:S1268)),0))","v":0},{"$f":"IF(T1180<1+$B1267,0,IF(T1180<'1 Données d''entrée'!$C$334+'1 Données d''entrée'!$C$333+1+$B1267,'1 Données d''entrée'!$C$332*($J1258-SUM($C1268:T1268)),0))","v":0},{"$f":"IF(U1180<1+$B1267,0,IF(U1180<'1 Données d''entrée'!$C$334+'1 Données d''entrée'!$C$333+1+$B1267,'1 Données d''entrée'!$C$332*($J1258-SUM($C1268:U1268)),0))","v":0}]
["Paiement d'intêrets",9,0,{"$f":"IF(C1180<1+$B1268,0,IF(C1180<'1 Données d''entrée'!$C$334+'1 Données d''entrée'!$C$333+1+$B1268,'1 Données d''entrée'!$C$332*($K1258-SUM($C1269:C1269)),0))","v":0},{"$f":"IF(D1180<1+$B1268,0,IF(D1180<'1 Données d''entrée'!$C$334+'1 Données d''entrée'!$C$333+1+$B1268,'1 Données d''entrée'!$C$332*($K1258-SUM($C1269:D1269)),0))","v":0},{"$f":"IF(E1180<1+$B1268,0,IF(E1180<'1 Données d''entrée'!$C$334+'1 Données d''entrée'!$C$333+1+$B1268,'1 Données d''entrée'!$C$332*($K1258-SUM($C1269:E1269)),0))","v":0},{"$f":"IF(F1180<1+$B1268,0,IF(F1180<'1 Données d''entrée'!$C$334+'1 Données d''entrée'!$C$333+1+$B1268,'1 Données d''entrée'!$C$332*($K1258-SUM($C1269:F1269)),0))","v":0},{"$f":"IF(G1180<1+$B1268,0,IF(G1180<'1 Données d''entrée'!$C$334+'1 Données d''entrée'!$C$333+1+$B1268,'1 Données d''entrée'!$C$332*($K1258-SUM($C1269:G1269)),0))","v":0},{"$f":"IF(H1180<1+$B1268,0,IF(H1180<'1 Données d''entrée'!$C$334+'1 Données d''entrée'!$C$333+1+$B1268,'1 Données d''entrée'!$C$332*($K1258-SUM($C1269:H1269)),0))","v":0},{"$f":"IF(I1180<1+$B1268,0,IF(I1180<'1 Données d''entrée'!$C$334+'1 Données d''entrée'!$C$333+1+$B1268,'1 Données d''entrée'!$C$332*($K1258-SUM($C1269:I1269)),0))","v":0},{"$f":"IF(J1180<1+$B1268,0,IF(J1180<'1 Données d''entrée'!$C$334+'1 Données d''entrée'!$C$333+1+$B1268,'1 Données d''entrée'!$C$332*($K1258-SUM($C1269:J1269)),0))","v":0},{"$f":"IF(K1180<1+$B1268,0,IF(K1180<'1 Données d''entrée'!$C$334+'1 Données d''entrée'!$C$333+1+$B1268,'1 Données d''entrée'!$C$332*($K1258-SUM($C1269:K1269)),0))","v":0},{"$f":"IF(L1180<1+$B1268,0,IF(L1180<'1 Données d''entrée'!$C$334+'1 Données d''entrée'!$C$333+1+$B1268,'1 Données d''entrée'!$C$332*($K1258-SUM($C1269:L1269)),0))","v":0},{"$f":"IF(M1180<1+$B1268,0,IF(M1180<'1 Données d''entrée'!$C$334+'1 Données d''entrée'!$C$333+1+$B1268,'1 Données d''entrée'!$C$332*($K1258-SUM($C1269:M1269)),0))","v":0},{"$f":"IF(N1180<1+$B1268,0,IF(N1180<'1 Données d''entrée'!$C$334+'1 Données d''entrée'!$C$333+1+$B1268,'1 Données d''entrée'!$C$332*($K1258-SUM($C1269:N1269)),0))","v":0},{"$f":"IF(O1180<1+$B1268,0,IF(O1180<'1 Données d''entrée'!$C$334+'1 Données d''entrée'!$C$333+1+$B1268,'1 Données d''entrée'!$C$332*($K1258-SUM($C1269:O1269)),0))","v":0},{"$f":"IF(P1180<1+$B1268,0,IF(P1180<'1 Données d''entrée'!$C$334+'1 Données d''entrée'!$C$333+1+$B1268,'1 Données d''entrée'!$C$332*($K1258-SUM($C1269:P1269)),0))","v":0},{"$f":"IF(Q1180<1+$B1268,0,IF(Q1180<'1 Données d''entrée'!$C$334+'1 Données d''entrée'!$C$333+1+$B1268,'1 Données d''entrée'!$C$332*($K1258-SUM($C1269:Q1269)),0))","v":0},{"$f":"IF(R1180<1+$B1268,0,IF(R1180<'1 Données d''entrée'!$C$334+'1 Données d''entrée'!$C$333+1+$B1268,'1 Données d''entrée'!$C$332*($K1258-SUM($C1269:R1269)),0))","v":0},{"$f":"IF(S1180<1+$B1268,0,IF(S1180<'1 Données d''entrée'!$C$334+'1 Données d''entrée'!$C$333+1+$B1268,'1 Données d''entrée'!$C$332*($K1258-SUM($C1269:S1269)),0))","v":0},{"$f":"IF(T1180<1+$B1268,0,IF(T1180<'1 Données d''entrée'!$C$334+'1 Données d''entrée'!$C$333+1+$B1268,'1 Données d''entrée'!$C$332*($K1258-SUM($C1269:T1269)),0))","v":0},{"$f":"IF(U1180<1+$B1268,0,IF(U1180<'1 Données d''entrée'!$C$334+'1 Données d''entrée'!$C$333+1+$B1268,'1 Données d''entrée'!$C$332*($K1258-SUM($C1269:U1269)),0))","v":0}]
["Paiement d'intêrets",10,0,{"$f":"IF(C1180<1+$B1269,0,IF(C1180<'1 Données d''entrée'!$C$334+'1 Données d''entrée'!$C$333+1+$B1269,'1 Données d''entrée'!$C$332*($L1258-SUM($C1270:C1270)),0))","v":0},{"$f":"IF(D1180<1+$B1269,0,IF(D1180<'1 Données d''entrée'!$C$334+'1 Données d''entrée'!$C$333+1+$B1269,'1 Données d''entrée'!$C$332*($L1258-SUM($C1270:D1270)),0))","v":0},{"$f":"IF(E1180<1+$B1269,0,IF(E1180<'1 Données d''entrée'!$C$334+'1 Données d''entrée'!$C$333+1+$B1269,'1 Données d''entrée'!$C$332*($L1258-SUM($C1270:E1270)),0))","v":0},{"$f":"IF(F1180<1+$B1269,0,IF(F1180<'1 Données d''entrée'!$C$334+'1 Données d''entrée'!$C$333+1+$B1269,'1 Données d''entrée'!$C$332*($L1258-SUM($C1270:F1270)),0))","v":0},{"$f":"IF(G1180<1+$B1269,0,IF(G1180<'1 Données d''entrée'!$C$334+'1 Données d''entrée'!$C$333+1+$B1269,'1 Données d''entrée'!$C$332*($L1258-SUM($C1270:G1270)),0))","v":0},{"$f":"IF(H1180<1+$B1269,0,IF(H1180<'1 Données d''entrée'!$C$334+'1 Données d''entrée'!$C$333+1+$B1269,'1 Données d''entrée'!$C$332*($L1258-SUM($C1270:H1270)),0))","v":0},{"$f":"IF(I1180<1+$B1269,0,IF(I1180<'1 Données d''entrée'!$C$334+'1 Données d''entrée'!$C$333+1+$B1269,'1 Données d''entrée'!$C$332*($L1258-SUM($C1270:I1270)),0))","v":0},{"$f":"IF(J1180<1+$B1269,0,IF(J1180<'1 Données d''entrée'!$C$334+'1 Données d''entrée'!$C$333+1+$B1269,'1 Données d''entrée'!$C$332*($L1258-SUM($C1270:J1270)),0))","v":0},{"$f":"IF(K1180<1+$B1269,0,IF(K1180<'1 Données d''entrée'!$C$334+'1 Données d''entrée'!$C$333+1+$B1269,'1 Données d''entrée'!$C$332*($L1258-SUM($C1270:K1270)),0))","v":0},{"$f":"IF(L1180<1+$B1269,0,IF(L1180<'1 Données d''entrée'!$C$334+'1 Données d''entrée'!$C$333+1+$B1269,'1 Données d''entrée'!$C$332*($L1258-SUM($C1270:L1270)),0))","v":0},{"$f":"IF(M1180<1+$B1269,0,IF(M1180<'1 Données d''entrée'!$C$334+'1 Données d''entrée'!$C$333+1+$B1269,'1 Données d''entrée'!$C$332*($L1258-SUM($C1270:M1270)),0))","v":0},{"$f":"IF(N1180<1+$B1269,0,IF(N1180<'1 Données d''entrée'!$C$334+'1 Données d''entrée'!$C$333+1+$B1269,'1 Données d''entrée'!$C$332*($L1258-SUM($C1270:N1270)),0))","v":0},{"$f":"IF(O1180<1+$B1269,0,IF(O1180<'1 Données d''entrée'!$C$334+'1 Données d''entrée'!$C$333+1+$B1269,'1 Données d''entrée'!$C$332*($L1258-SUM($C1270:O1270)),0))","v":0},{"$f":"IF(P1180<1+$B1269,0,IF(P1180<'1 Données d''entrée'!$C$334+'1 Données d''entrée'!$C$333+1+$B1269,'1 Données d''entrée'!$C$332*($L1258-SUM($C1270:P1270)),0))","v":0},{"$f":"IF(Q1180<1+$B1269,0,IF(Q1180<'1 Données d''entrée'!$C$334+'1 Données d''entrée'!$C$333+1+$B1269,'1 Données d''entrée'!$C$332*($L1258-SUM($C1270:Q1270)),0))","v":0},{"$f":"IF(R1180<1+$B1269,0,IF(R1180<'1 Données d''entrée'!$C$334+'1 Données d''entrée'!$C$333+1+$B1269,'1 Données d''entrée'!$C$332*($L1258-SUM($C1270:R1270)),0))","v":0},{"$f":"IF(S1180<1+$B1269,0,IF(S1180<'1 Données d''entrée'!$C$334+'1 Données d''entrée'!$C$333+1+$B1269,'1 Données d''entrée'!$C$332*($L1258-SUM($C1270:S1270)),0))","v":0},{"$f":"IF(T1180<1+$B1269,0,IF(T1180<'1 Données d''entrée'!$C$334+'1 Données d''entrée'!$C$333+1+$B1269,'1 Données d''entrée'!$C$332*($L1258-SUM($C1270:T1270)),0))","v":0},{"$f":"IF(U1180<1+$B1269,0,IF(U1180<'1 Données d''entrée'!$C$334+'1 Données d''entrée'!$C$333+1+$B1269,'1 Données d''entrée'!$C$332*($L1258-SUM($C1270:U1270)),0))","v":0}]
[]
[null,"Période",1,2,3,4,5,6,7,8,9,10,11,12,13,14,15,16,17,18,19,20]
["Prêt bancaire - Option 3: Remboursement vers l'annuité constante",{"$f":"'1 Données d''entrée'!$B$344","v":0}]
["Prêt(s) nouveau(x)",null,{"$f":"IF(C1223<0,C1223*(-1)*$B1285+C1223*(-1)*$B1285*'1 Données d''entrée'!$C$338,0)","v":{"$error":"#DIV/0!"}},{"$f":"IF(D1223<0,D1223*(-1)*$B1285+D1223*(-1)*$B1285*'1 Données d''entrée'!$C$338,0)","v":{"$error":"#DIV/0!"}},{"$f":"IF(E1223<0,E1223*(-1)*$B1285+E1223*(-1)*$B1285*'1 Données d''entrée'!$C$338,0)","v":{"$error":"#DIV/0!"}},{"$f":"IF(F1223<0,F1223*(-1)*$B1285+F1223*(-1)*$B1285*'1 Données d''entrée'!$C$338,0)","v":{"$error":"#DIV/0!"}},{"$f":"IF(G1223<0,G1223*(-1)*$B1285+G1223*(-1)*$B1285*'1 Données d''entrée'!$C$338,0)","v":{"$error":"#DIV/0!"}},{"$f":"IF(H1223<0,H1223*(-1)*$B1285+H1223*(-1)*$B1285*'1 Données d''entrée'!$C$338,0)","v":{"$error":"#DIV/0!"}},{"$f":"IF(I1223<0,I1223*(-1)*$B1285+I1223*(-1)*$B1285*'1 Données d''entrée'!$C$338,0)","v":{"$error":"#DIV/0!"}},{"$f":"IF(J1223<0,J1223*(-1)*$B1285+J1223*(-1)*$B1285*'1 Données d''entrée'!$C$338,0)","v":{"$error":"#DIV/0!"}},{"$f":"IF(K1223<0,K1223*(-1)*$B1285+K1223*(-1)*$B1285*'1 Données d''entrée'!$C$338,0)","v":{"$error":"#DIV/0!"}},{"$f":"IF(L1223<0,L1223*(-1)*$B1285+L1223*(-1)*$B1285*'1 Données d''entrée'!$C$338,0)","v":{"$error":"#DIV/0!"}},{"$f":"IF(M1223<0,M1223*(-1)*$B1285+M1223*(-1)*$B1285*'1 Données d''entrée'!$C$338,0)","v":{"$error":"#DIV/0!"}},{"$f":"IF(N1223<0,N1223*(-1)*$B1285+N1223*(-1)*$B1285*'1 Données d''entrée'!$C$338,0)","v":{"$error":"#DIV/0!"}},{"$f":"IF(O1223<0,O1223*(-1)*$B1285+O1223*(-1)*$B1285*'1 Données d''entrée'!$C$338,0)","v":{"$error":"#DIV/0!"}},{"$f":"IF(P1223<0,P1223*(-1)*$B1285+P1223*(-1)*$B1285*'1 Données d''entrée'!$C$338,0)","v":{"$error":"#DIV/0!"}},{"$f":"IF(Q1223<0,Q1223*(-1)*$B1285+Q1223*(-1)*$B1285*'1 Données d''entrée'!$C$338,0)","v":{"$error":"#DIV/0!"}},{"$f":"IF(R1223<0,R1223*(-1)*$B1285+R1223*(-1)*$B1285*'1 Données d''entrée'!$C$338,0)","v":{"$error":"#DIV/0!"}},{"$f":"IF(S1223<0,S1223*(-1)*$B1285+S1223*(-1)*$B1285*'1 Données d''entrée'!$C$338,0)","v":{"$error":"#DIV/0!"}},{"$f":"IF(T1223<0,T1223*(-1)*$B1285+T1223*(-1)*$B1285*'1 Données d''entrée'!$C$338,0)","v":{"$error":"#DIV/0!"}},{"$f":"IF(U1223<0,U1223*(-1)*$B1285+U1223*(-1)*$B1285*'1 Données d''entrée'!$C$338,0)","v":{"$error":"#DIV/0!"}},{"$f":"IF(V1223<0,V1223*(-1)*$B1285+V1223*(-1)*$B1285*'1 Données d''entrée'!$C$338,0)","v":{"$error":"#DIV/0!"}}]
[null,"Période de prêt nouveau"]
["Remboursement vers l'annuité constante",0,0,0,0,0,0,0,0,0,0,0,0,0,0,0,0,0,0,0,0,0]
[null,1,{"$f":"IF(C$54<'1 Données d''entrée'!$C$334+1+$B1289,0,IF(C$54<'1 Données d''entrée'!$C$333+'1 Données d''entrée'!$C$334+1+$B1289,$C$160*('1 Données d''entrée'!$C$332*(1+'1 Données d''entrée'!$C$332)^'1 Données d''entrée'!$C$333)/((1+'1 Données d''entrée'!$C$332)^'1 Données d''entrée'!$C$333-1),0))","v":0},{"$f":"IF(D1180<'1 Données d''entrée'!$C$334+1+$B1289,0,IF(D1180<'1 Données d''entrée'!$C$333+'1 Données d''entrée'!$C$334+1+$B1289,$C1286*('1 Données d''entrée'!$C$332*(1+'1 Données d''entrée'!$C$332)^'1 Données d''entrée'!$C$333)/((1+'1 Données d''entrée'!$C$332)^'1 Données d''entrée'!$C$333-1),0))","v":0},{"$f":"IF(E1180<'1 Données d''entrée'!$C$334+1+$B1289,0,IF(E1180<'1 Données d''entrée'!$C$333+'1 Données d''entrée'!$C$334+1+$B1289,$C1286*('1 Données d''entrée'!$C$332*(1+'1 Données d''entrée'!$C$332)^'1 Données d''entrée'!$C$333)/((1+'1 Données d''entrée'!$C$332)^'1 Données d''entrée'!$C$333-1),0))","v":0},{"$f":"IF(F1180<'1 Données d''entrée'!$C$334+1+$B1289,0,IF(F1180<'1 Données d''entrée'!$C$333+'1 Données d''entrée'!$C$334+1+$B1289,$C1286*('1 Données d''entrée'!$C$332*(1+'1 Données d''entrée'!$C$332)^'1 Données d''entrée'!$C$333)/((1+'1 Données d''entrée'!$C$332)^'1 Données d''entrée'!$C$333-1),0))","v":0},{"$f":"IF(G1180<'1 Données d''entrée'!$C$334+1+$B1289,0,IF(G1180<'1 Données d''entrée'!$C$333+'1 Données d''entrée'!$C$334+1+$B1289,$C1286*('1 Données d''entrée'!$C$332*(1+'1 Données d''entrée'!$C$332)^'1 Données d''entrée'!$C$333)/((1+'1 Données d''entrée'!$C$332)^'1 Données d''entrée'!$C$333-1),0))","v":0},{"$f":"IF(H1180<'1 Données d''entrée'!$C$334+1+$B1289,0,IF(H1180<'1 Données d''entrée'!$C$333+'1 Données d''entrée'!$C$334+1+$B1289,$C1286*('1 Données d''entrée'!$C$332*(1+'1 Données d''entrée'!$C$332)^'1 Données d''entrée'!$C$333)/((1+'1 Données d''entrée'!$C$332)^'1 Données d''entrée'!$C$333-1),0))","v":0},{"$f":"IF(I1180<'1 Données d''entrée'!$C$334+1+$B1289,0,IF(I1180<'1 Données d''entrée'!$C$333+'1 Données d''entrée'!$C$334+1+$B1289,$C1286*('1 Données d''entrée'!$C$332*(1+'1 Données d''entrée'!$C$332)^'1 Données d''entrée'!$C$333)/((1+'1 Données d''entrée'!$C$332)^'1 Données d''entrée'!$C$333-1),0))","v":0},{"$f":"IF(J1180<'1 Données d''entrée'!$C$334+1+$B1289,0,IF(J1180<'1 Données d''entrée'!$C$333+'1 Données d''entrée'!$C$334+1+$B1289,$C1286*('1 Données d''entrée'!$C$332*(1+'1 Données d''entrée'!$C$332)^'1 Données d''entrée'!$C$333)/((1+'1 Données d''entrée'!$C$332)^'1 Données d''entrée'!$C$333-1),0))","v":0},{"$f":"IF(K1180<'1 Données d''entrée'!$C$334+1+$B1289,0,IF(K1180<'1 Données d''entrée'!$C$333+'1 Données d''entrée'!$C$334+1+$B1289,$C1286*('1 Données d''entrée'!$C$332*(1+'1 Données d''entrée'!$C$332)^'1 Données d''entrée'!$C$333)/((1+'1 Données d''entrée'!$C$332)^'1 Données d''entrée'!$C$333-1),0))","v":0},{"$f":"IF(L1180<'1 Données d''entrée'!$C$334+1+$B1289,0,IF(L1180<'1 Données d''entrée'!$C$333+'1 Données d''entrée'!$C$334+1+$B1289,$C1286*('1 Données d''entrée'!$C$332*(1+'1 Données d''entrée'!$C$332)^'1 Données d''entrée'!$C$333)/((1+'1 Données d''entrée'!$C$332)^'1 Données d''entrée'!$C$333-1),0))","v":0},{"$f":"IF(M1180<'1 Données d''entrée'!$C$334+1+$B1289,0,IF(M1180<'1 Données d''entrée'!$C$333+'1 Données d''entrée'!$C$334+1+$B1289,$C1286*('1 Données d''entrée'!$C$332*(1+'1 Données d''entrée'!$C$332)^'1 Données d''entrée'!$C$333)/((1+'1 Données d''entrée'!$C$332)^'1 Données d''entrée'!$C$333-1),0))","v":0},{"$f":"IF(N1180<'1 Données d''entrée'!$C$334+1+$B1289,0,IF(N1180<'1 Données d''entrée'!$C$333+'1 Données d''entrée'!$C$334+1+$B1289,$C1286*('1 Données d''entrée'!$C$332*(1+'1 Données d''entrée'!$C$332)^'1 Données d''entrée'!$C$333)/((1+'1 Données d''entrée'!$C$332)^'1 Données d''entrée'!$C$333-1),0))","v":0},{"$f":"IF(O1180<'1 Données d''entrée'!$C$334+1+$B1289,0,IF(O1180<'1 Données d''entrée'!$C$333+'1 Données d''entrée'!$C$334+1+$B1289,$C1286*('1 Données d''entrée'!$C$332*(1+'1 Données d''entrée'!$C$332)^'1 Données d''entrée'!$C$333)/((1+'1 Données d''entrée'!$C$332)^'1 Données d''entrée'!$C$333-1),0))","v":0},{"$f":"IF(P1180<'1 Données d''entrée'!$C$334+1+$B1289,0,IF(P1180<'1 Données d''entrée'!$C$333+'1 Données d''entrée'!$C$334+1+$B1289,$C1286*('1 Données d''entrée'!$C$332*(1+'1 Données d''entrée'!$C$332)^'1 Données d''entrée'!$C$333)/((1+'1 Données d''entrée'!$C$332)^'1 Données d''entrée'!$C$333-1),0))","v":0},{"$f":"IF(Q1180<'1 Données d''entrée'!$C$334+1+$B1289,0,IF(Q1180<'1 Données d''entrée'!$C$333+'1 Données d''entrée'!$C$334+1+$B1289,$C1286*('1 Données d''entrée'!$C$332*(1+'1 Données d''entrée'!$C$332)^'1 Données d''entrée'!$C$333)/((1+'1 Données d''entrée'!$C$332)^'1 Données d''entrée'!$C$333-1),0))","v":0},{"$f":"IF(R1180<'1 Données d''entrée'!$C$334+1+$B1289,0,IF(R1180<'1 Données d''entrée'!$C$333+'1 Données d''entrée'!$C$334+1+$B1289,$C1286*('1 Données d''entrée'!$C$332*(1+'1 Données d''entrée'!$C$332)^'1 Données d''entrée'!$C$333)/((1+'1 Données d''entrée'!$C$332)^'1 Données d''entrée'!$C$333-1),0))","v":0},{"$f":"IF(S1180<'1 Données d''entrée'!$C$334+1+$B1289,0,IF(S1180<'1 Données d''entrée'!$C$333+'1 Données d''entrée'!$C$334+1+$B1289,$C1286*('1 Données d''entrée'!$C$332*(1+'1 Données d''entrée'!$C$332)^'1 Données d''entrée'!$C$333)/((1+'1 Données d''entrée'!$C$332)^'1 Données d''entrée'!$C$333-1),0))","v":0},{"$f":"IF(T1180<'1 Données d''entrée'!$C$334+1+$B1289,0,IF(T1180<'1 Données d''entrée'!$C$333+'1 Données d''entrée'!$C$334+1+$B1289,$C1286*('1 Données d''entrée'!$C$332*(1+'1 Données d''entrée'!$C$332)^'1 Données d''entrée'!$C$333)/((1+'1 Données d''entrée'!$C$332)^'1 Données d''entrée'!$C$333-1),0))","v":0},{"$f":"IF(U1180<'1 Données d''entrée'!$C$334+1+$B1289,0,IF(U1180<'1 Données d''entrée'!$C$333+'1 Données d''entrée'!$C$334+1+$B1289,$C1286*('1 Données d''entrée'!$C$332*(1+'1 Données d''entrée'!$C$332)^'1 Données d''entrée'!$C$333)/((1+'1 Données d''entrée'!$C$332)^'1 Données d''entrée'!$C$333-1),0))","v":0},{"$f":"IF(V1180<'1 Données d''entrée'!$C$334+1+$B1289,0,IF(V1180<'1 Données d''entrée'!$C$333+'1 Données d''entrée'!$C$334+1+$B1289,$C1286*('1 Données d''entrée'!$C$332*(1+'1 Données d''entrée'!$C$332)^'1 Données d''entrée'!$C$333)/((1+'1 Données d''entrée'!$C$332)^'1 Données d''entrée'!$C$333-1),0))","v":0}]
[null,2,{"$f":"IF(C$54<'1 Données d''entrée'!$C$334+1+$B1290,0,IF(C$54<'1 Données d''entrée'!$C$333+'1 Données d''entrée'!$C$334+1+$B1290,$D$160*('1 Données d''entrée'!$C$332*(1+'1 Données d''entrée'!$C$332)^'1 Données d''entrée'!$C$333)/((1+'1 Données d''entrée'!$C$332)^'1 Données d''entrée'!$C$333-1),0))","v":0},{"$f":"IF(D1180<'1 Données d''entrée'!$C$334+1+$B1290,0,IF(D1180<'1 Données d''entrée'!$C$333+'1 Données d''entrée'!$C$334+1+$B1290,$D1286*('1 Données d''entrée'!$C$332*(1+'1 Données d''entrée'!$C$332)^'1 Données d''entrée'!$C$333)/((1+'1 Données d''entrée'!$C$332)^'1 Données d''entrée'!$C$333-1),0))","v":0},{"$f":"IF(E1180<'1 Données d''entrée'!$C$334+1+$B1290,0,IF(E1180<'1 Données d''entrée'!$C$333+'1 Données d''entrée'!$C$334+1+$B1290,$D1286*('1 Données d''entrée'!$C$332*(1+'1 Données d''entrée'!$C$332)^'1 Données d''entrée'!$C$333)/((1+'1 Données d''entrée'!$C$332)^'1 Données d''entrée'!$C$333-1),0))","v":0},{"$f":"IF(F1180<'1 Données d''entrée'!$C$334+1+$B1290,0,IF(F1180<'1 Données d''entrée'!$C$333+'1 Données d''entrée'!$C$334+1+$B1290,$D1286*('1 Données d''entrée'!$C$332*(1+'1 Données d''entrée'!$C$332)^'1 Données d''entrée'!$C$333)/((1+'1 Données d''entrée'!$C$332)^'1 Données d''entrée'!$C$333-1),0))","v":0},{"$f":"IF(G1180<'1 Données d''entrée'!$C$334+1+$B1290,0,IF(G1180<'1 Données d''entrée'!$C$333+'1 Données d''entrée'!$C$334+1+$B1290,$D1286*('1 Données d''entrée'!$C$332*(1+'1 Données d''entrée'!$C$332)^'1 Données d''entrée'!$C$333)/((1+'1 Données d''entrée'!$C$332)^'1 Données d''entrée'!$C$333-1),0))","v":0},{"$f":"IF(H1180<'1 Données d''entrée'!$C$334+1+$B1290,0,IF(H1180<'1 Données d''entrée'!$C$333+'1 Données d''entrée'!$C$334+1+$B1290,$D1286*('1 Données d''entrée'!$C$332*(1+'1 Données d''entrée'!$C$332)^'1 Données d''entrée'!$C$333)/((1+'1 Données d''entrée'!$C$332)^'1 Données d''entrée'!$C$333-1),0))","v":0},{"$f":"IF(I1180<'1 Données d''entrée'!$C$334+1+$B1290,0,IF(I1180<'1 Données d''entrée'!$C$333+'1 Données d''entrée'!$C$334+1+$B1290,$D1286*('1 Données d''entrée'!$C$332*(1+'1 Données d''entrée'!$C$332)^'1 Données d''entrée'!$C$333)/((1+'1 Données d''entrée'!$C$332)^'1 Données d''entrée'!$C$333-1),0))","v":0},{"$f":"IF(J1180<'1 Données d''entrée'!$C$334+1+$B1290,0,IF(J1180<'1 Données d''entrée'!$C$333+'1 Données d''entrée'!$C$334+1+$B1290,$D1286*('1 Données d''entrée'!$C$332*(1+'1 Données d''entrée'!$C$332)^'1 Données d''entrée'!$C$333)/((1+'1 Données d''entrée'!$C$332)^'1 Données d''entrée'!$C$333-1),0))","v":0},{"$f":"IF(K1180<'1 Données d''entrée'!$C$334+1+$B1290,0,IF(K1180<'1 Données d''entrée'!$C$333+'1 Données d''entrée'!$C$334+1+$B1290,$D1286*('1 Données d''entrée'!$C$332*(1+'1 Données d''entrée'!$C$332)^'1 Données d''entrée'!$C$333)/((1+'1 Données d''entrée'!$C$332)^'1 Données d''entrée'!$C$333-1),0))","v":0},{"$f":"IF(L1180<'1 Données d''entrée'!$C$334+1+$B1290,0,IF(L1180<'1 Données d''entrée'!$C$333+'1 Données d''entrée'!$C$334+1+$B1290,$D1286*('1 Données d''entrée'!$C$332*(1+'1 Données d''entrée'!$C$332)^'1 Données d''entrée'!$C$333)/((1+'1 Données d''entrée'!$C$332)^'1 Données d''entrée'!$C$333-1),0))","v":0},{"$f":"IF(M1180<'1 Données d''entrée'!$C$334+1+$B1290,0,IF(M1180<'1 Données d''entrée'!$C$333+'1 Données d''entrée'!$C$334+1+$B1290,$D1286*('1 Données d''entrée'!$C$332*(1+'1 Données d''entrée'!$C$332)^'1 Données d''entrée'!$C$333)/((1+'1 Données d''entrée'!$C$332)^'1 Données d''entrée'!$C$333-1),0))","v":0},{"$f":"IF(N1180<'1 Données d''entrée'!$C$334+1+$B1290,0,IF(N1180<'1 Données d''entrée'!$C$333+'1 Données d''entrée'!$C$334+1+$B1290,$D1286*('1 Données d''entrée'!$C$332*(1+'1 Données d''entrée'!$C$332)^'1 Données d''entrée'!$C$333)/((1+'1 Données d''entrée'!$C$332)^'1 Données d''entrée'!$C$333-1),0))","v":0},{"$f":"IF(O1180<'1 Données d''entrée'!$C$334+1+$B1290,0,IF(O1180<'1 Données d''entrée'!$C$333+'1 Données d''entrée'!$C$334+1+$B1290,$D1286*('1 Données d''entrée'!$C$332*(1+'1 Données d''entrée'!$C$332)^'1 Données d''entrée'!$C$333)/((1+'1 Données d''entrée'!$C$332)^'1 Données d''entrée'!$C$333-1),0))","v":0},{"$f":"IF(P1180<'1 Données d''entrée'!$C$334+1+$B1290,0,IF(P1180<'1 Données d''entrée'!$C$333+'1 Données d''entrée'!$C$334+1+$B1290,$D1286*('1 Données d''entrée'!$C$332*(1+'1 Données d''entrée'!$C$332)^'1 Données d''entrée'!$C$333)/((1+'1 Données d''entrée'!$C$332)^'1 Données d''entrée'!$C$333-1),0))","v":0},{"$f":"IF(Q1180<'1 Données d''entrée'!$C$334+1+$B1290,0,IF(Q1180<'1 Données d''entrée'!$C$333+'1 Données d''entrée'!$C$334+1+$B1290,$D1286*('1 Données d''entrée'!$C$332*(1+'1 Données d''entrée'!$C$332)^'1 Données d''entrée'!$C$333)/((1+'1 Données d''entrée'!$C$332)^'1 Données d''entrée'!$C$333-1),0))","v":0},{"$f":"IF(R1180<'1 Données d''entrée'!$C$334+1+$B1290,0,IF(R1180<'1 Données d''entrée'!$C$333+'1 Données d''entrée'!$C$334+1+$B1290,$D1286*('1 Données d''entrée'!$C$332*(1+'1 Données d''entrée'!$C$332)^'1 Données d''entrée'!$C$333)/((1+'1 Données d''entrée'!$C$332)^'1 Données d''entrée'!$C$333-1),0))","v":0},{"$f":"IF(S1180<'1 Données d''entrée'!$C$334+1+$B1290,0,IF(S1180<'1 Données d''entrée'!$C$333+'1 Données d''entrée'!$C$334+1+$B1290,$D1286*('1 Données d''entrée'!$C$332*(1+'1 Données d''entrée'!$C$332)^'1 Données d''entrée'!$C$333)/((1+'1 Données d''entrée'!$C$332)^'1 Données d''entrée'!$C$333-1),0))","v":0},{"$f":"IF(T1180<'1 Données d''entrée'!$C$334+1+$B1290,0,IF(T1180<'1 Données d''entrée'!$C$333+'1 Données d''entrée'!$C$334+1+$B1290,$D1286*('1 Données d''entrée'!$C$332*(1+'1 Données d''entrée'!$C$332)^'1 Données d''entrée'!$C$333)/((1+'1 Données d''entrée'!$C$332)^'1 Données d''entrée'!$C$333-1),0))","v":0},{"$f":"IF(U1180<'1 Données d''entrée'!$C$334+1+$B1290,0,IF(U1180<'1 Données d''entrée'!$C$333+'1 Données d''entrée'!$C$334+1+$B1290,$D1286*('1 Données d''entrée'!$C$332*(1+'1 Données d''entrée'!$C$332)^'1 Données d''entrée'!$C$333)/((1+'1 Données d''entrée'!$C$332)^'1 Données d''entrée'!$C$333-1),0))","v":0},{"$f":"IF(V1180<'1 Données d''entrée'!$C$334+1+$B1290,0,IF(V1180<'1 Données d''entrée'!$C$333+'1 Données d''entrée'!$C$334+1+$B1290,$D1286*('1 Données d''entrée'!$C$332*(1+'1 Données d''entrée'!$C$332)^'1 Données d''entrée'!$C$333)/((1+'1 Données d''entrée'!$C$332)^'1 Données d''entrée'!$C$333-1),0))","v":0}]
[null,3,{"$f":"IF(C$54<'1 Données d''entrée'!$C$334+1+$B1291,0,IF(C$54<'1 Données d''entrée'!$C$333+'1 Données d''entrée'!$C$334+1+$B1291,$E$160*('1 Données d''entrée'!$C$332*(1+'1 Données d''entrée'!$C$332)^'1 Données d''entrée'!$C$333)/((1+'1 Données d''entrée'!$C$332)^'1 Données d''entrée'!$C$333-1),0))","v":0},{"$f":"IF(D1180<'1 Données d''entrée'!$C$334+1+$B1291,0,IF(D1180<'1 Données d''entrée'!$C$333+'1 Données d''entrée'!$C$334+1+$B1291,$E1286*('1 Données d''entrée'!$C$332*(1+'1 Données d''entrée'!$C$332)^'1 Données d''entrée'!$C$333)/((1+'1 Données d''entrée'!$C$332)^'1 Données d''entrée'!$C$333-1),0))","v":0},{"$f":"IF(E1180<'1 Données d''entrée'!$C$334+1+$B1291,0,IF(E1180<'1 Données d''entrée'!$C$333+'1 Données d''entrée'!$C$334+1+$B1291,$E1286*('1 Données d''entrée'!$C$332*(1+'1 Données d''entrée'!$C$332)^'1 Données d''entrée'!$C$333)/((1+'1 Données d''entrée'!$C$332)^'1 Données d''entrée'!$C$333-1),0))","v":0},{"$f":"IF(F1180<'1 Données d''entrée'!$C$334+1+$B1291,0,IF(F1180<'1 Données d''entrée'!$C$333+'1 Données d''entrée'!$C$334+1+$B1291,$E1286*('1 Données d''entrée'!$C$332*(1+'1 Données d''entrée'!$C$332)^'1 Données d''entrée'!$C$333)/((1+'1 Données d''entrée'!$C$332)^'1 Données d''entrée'!$C$333-1),0))","v":0},{"$f":"IF(G1180<'1 Données d''entrée'!$C$334+1+$B1291,0,IF(G1180<'1 Données d''entrée'!$C$333+'1 Données d''entrée'!$C$334+1+$B1291,$E1286*('1 Données d''entrée'!$C$332*(1+'1 Données d''entrée'!$C$332)^'1 Données d''entrée'!$C$333)/((1+'1 Données d''entrée'!$C$332)^'1 Données d''entrée'!$C$333-1),0))","v":0},{"$f":"IF(H1180<'1 Données d''entrée'!$C$334+1+$B1291,0,IF(H1180<'1 Données d''entrée'!$C$333+'1 Données d''entrée'!$C$334+1+$B1291,$E1286*('1 Données d''entrée'!$C$332*(1+'1 Données d''entrée'!$C$332)^'1 Données d''entrée'!$C$333)/((1+'1 Données d''entrée'!$C$332)^'1 Données d''entrée'!$C$333-1),0))","v":0},{"$f":"IF(I1180<'1 Données d''entrée'!$C$334+1+$B1291,0,IF(I1180<'1 Données d''entrée'!$C$333+'1 Données d''entrée'!$C$334+1+$B1291,$E1286*('1 Données d''entrée'!$C$332*(1+'1 Données d''entrée'!$C$332)^'1 Données d''entrée'!$C$333)/((1+'1 Données d''entrée'!$C$332)^'1 Données d''entrée'!$C$333-1),0))","v":0},{"$f":"IF(J1180<'1 Données d''entrée'!$C$334+1+$B1291,0,IF(J1180<'1 Données d''entrée'!$C$333+'1 Données d''entrée'!$C$334+1+$B1291,$E1286*('1 Données d''entrée'!$C$332*(1+'1 Données d''entrée'!$C$332)^'1 Données d''entrée'!$C$333)/((1+'1 Données d''entrée'!$C$332)^'1 Données d''entrée'!$C$333-1),0))","v":0},{"$f":"IF(K1180<'1 Données d''entrée'!$C$334+1+$B1291,0,IF(K1180<'1 Données d''entrée'!$C$333+'1 Données d''entrée'!$C$334+1+$B1291,$E1286*('1 Données d''entrée'!$C$332*(1+'1 Données d''entrée'!$C$332)^'1 Données d''entrée'!$C$333)/((1+'1 Données d''entrée'!$C$332)^'1 Données d''entrée'!$C$333-1),0))","v":0},{"$f":"IF(L1180<'1 Données d''entrée'!$C$334+1+$B1291,0,IF(L1180<'1 Données d''entrée'!$C$333+'1 Données d''entrée'!$C$334+1+$B1291,$E1286*('1 Données d''entrée'!$C$332*(1+'1 Données d''entrée'!$C$332)^'1 Données d''entrée'!$C$333)/((1+'1 Données d''entrée'!$C$332)^'1 Données d''entrée'!$C$333-1),0))","v":0},{"$f":"IF(M1180<'1 Données d''entrée'!$C$334+1+$B1291,0,IF(M1180<'1 Données d''entrée'!$C$333+'1 Données d''entrée'!$C$334+1+$B1291,$E1286*('1 Données d''entrée'!$C$332*(1+'1 Données d''entrée'!$C$332)^'1 Données d''entrée'!$C$333)/((1+'1 Données d''entrée'!$C$332)^'1 Données d''entrée'!$C$333-1),0))","v":0},{"$f":"IF(N1180<'1 Données d''entrée'!$C$334+1+$B1291,0,IF(N1180<'1 Données d''entrée'!$C$333+'1 Données d''entrée'!$C$334+1+$B1291,$E1286*('1 Données d''entrée'!$C$332*(1+'1 Données d''entrée'!$C$332)^'1 Données d''entrée'!$C$333)/((1+'1 Données d''entrée'!$C$332)^'1 Données d''entrée'!$C$333-1),0))","v":0},{"$f":"IF(O1180<'1 Données d''entrée'!$C$334+1+$B1291,0,IF(O1180<'1 Données d''entrée'!$C$333+'1 Données d''entrée'!$C$334+1+$B1291,$E1286*('1 Données d''entrée'!$C$332*(1+'1 Données d''entrée'!$C$332)^'1 Données d''entrée'!$C$333)/((1+'1 Données d''entrée'!$C$332)^'1 Données d''entrée'!$C$333-1),0))","v":0},{"$f":"IF(P1180<'1 Données d''entrée'!$C$334+1+$B1291,0,IF(P1180<'1 Données d''entrée'!$C$333+'1 Données d''entrée'!$C$334+1+$B1291,$E1286*('1 Données d''entrée'!$C$332*(1+'1 Données d''entrée'!$C$332)^'1 Données d''entrée'!$C$333)/((1+'1 Données d''entrée'!$C$332)^'1 Données d''entrée'!$C$333-1),0))","v":0},{"$f":"IF(Q1180<'1 Données d''entrée'!$C$334+1+$B1291,0,IF(Q1180<'1 Données d''entrée'!$C$333+'1 Données d''entrée'!$C$334+1+$B1291,$E1286*('1 Données d''entrée'!$C$332*(1+'1 Données d''entrée'!$C$332)^'1 Données d''entrée'!$C$333)/((1+'1 Données d''entrée'!$C$332)^'1 Données d''entrée'!$C$333-1),0))","v":0},{"$f":"IF(R1180<'1 Données d''entrée'!$C$334+1+$B1291,0,IF(R1180<'1 Données d''entrée'!$C$333+'1 Données d''entrée'!$C$334+1+$B1291,$E1286*('1 Données d''entrée'!$C$332*(1+'1 Données d''entrée'!$C$332)^'1 Données d''entrée'!$C$333)/((1+'1 Données d''entrée'!$C$332)^'1 Données d''entrée'!$C$333-1),0))","v":0},{"$f":"IF(S1180<'1 Données d''entrée'!$C$334+1+$B1291,0,IF(S1180<'1 Données d''entrée'!$C$333+'1 Données d''entrée'!$C$334+1+$B1291,$E1286*('1 Données d''entrée'!$C$332*(1+'1 Données d''entrée'!$C$332)^'1 Données d''entrée'!$C$333)/((1+'1 Données d''entrée'!$C$332)^'1 Données d''entrée'!$C$333-1),0))","v":0},{"$f":"IF(T1180<'1 Données d''entrée'!$C$334+1+$B1291,0,IF(T1180<'1 Données d''entrée'!$C$333+'1 Données d''entrée'!$C$334+1+$B1291,$E1286*('1 Données d''entrée'!$C$332*(1+'1 Données d''entrée'!$C$332)^'1 Données d''entrée'!$C$333)/((1+'1 Données d''entrée'!$C$332)^'1 Données d''entrée'!$C$333-1),0))","v":0},{"$f":"IF(U1180<'1 Données d''entrée'!$C$334+1+$B1291,0,IF(U1180<'1 Données d''entrée'!$C$333+'1 Données d''entrée'!$C$334+1+$B1291,$E1286*('1 Données d''entrée'!$C$332*(1+'1 Données d''entrée'!$C$332)^'1 Données d''entrée'!$C$333)/((1+'1 Données d''entrée'!$C$332)^'1 Données d''entrée'!$C$333-1),0))","v":0},{"$f":"IF(V1180<'1 Données d''entrée'!$C$334+1+$B1291,0,IF(V1180<'1 Données d''entrée'!$C$333+'1 Données d''entrée'!$C$334+1+$B1291,$E1286*('1 Données d''entrée'!$C$332*(1+'1 Données d''entrée'!$C$332)^'1 Données d''entrée'!$C$333)/((1+'1 Données d''entrée'!$C$332)^'1 Données d''entrée'!$C$333-1),0))","v":0}]
[null,4,{"$f":"IF(C$54<'1 Données d''entrée'!$C$334+1+$B1292,0,IF(C$54<'1 Données d''entrée'!$C$333+'1 Données d''entrée'!$C$334+1+$B1292,$F$160*('1 Données d''entrée'!$C$332*(1+'1 Données d''entrée'!$C$332)^'1 Données d''entrée'!$C$333)/((1+'1 Données d''entrée'!$C$332)^'1 Données d''entrée'!$C$333-1),0))","v":0},{"$f":"IF(D1180<'1 Données d''entrée'!$C$334+1+$B1292,0,IF(D1180<'1 Données d''entrée'!$C$333+'1 Données d''entrée'!$C$334+1+$B1292,$F1286*('1 Données d''entrée'!$C$332*(1+'1 Données d''entrée'!$C$332)^'1 Données d''entrée'!$C$333)/((1+'1 Données d''entrée'!$C$332)^'1 Données d''entrée'!$C$333-1),0))","v":0},{"$f":"IF(E1180<'1 Données d''entrée'!$C$334+1+$B1292,0,IF(E1180<'1 Données d''entrée'!$C$333+'1 Données d''entrée'!$C$334+1+$B1292,$F1286*('1 Données d''entrée'!$C$332*(1+'1 Données d''entrée'!$C$332)^'1 Données d''entrée'!$C$333)/((1+'1 Données d''entrée'!$C$332)^'1 Données d''entrée'!$C$333-1),0))","v":0},{"$f":"IF(F1180<'1 Données d''entrée'!$C$334+1+$B1292,0,IF(F1180<'1 Données d''entrée'!$C$333+'1 Données d''entrée'!$C$334+1+$B1292,$F1286*('1 Données d''entrée'!$C$332*(1+'1 Données d''entrée'!$C$332)^'1 Données d''entrée'!$C$333)/((1+'1 Données d''entrée'!$C$332)^'1 Données d''entrée'!$C$333-1),0))","v":0},{"$f":"IF(G1180<'1 Données d''entrée'!$C$334+1+$B1292,0,IF(G1180<'1 Données d''entrée'!$C$333+'1 Données d''entrée'!$C$334+1+$B1292,$F1286*('1 Données d''entrée'!$C$332*(1+'1 Données d''entrée'!$C$332)^'1 Données d''entrée'!$C$333)/((1+'1 Données d''entrée'!$C$332)^'1 Données d''entrée'!$C$333-1),0))","v":0},{"$f":"IF(H1180<'1 Données d''entrée'!$C$334+1+$B1292,0,IF(H1180<'1 Données d''entrée'!$C$333+'1 Données d''entrée'!$C$334+1+$B1292,$F1286*('1 Données d''entrée'!$C$332*(1+'1 Données d''entrée'!$C$332)^'1 Données d''entrée'!$C$333)/((1+'1 Données d''entrée'!$C$332)^'1 Données d''entrée'!$C$333-1),0))","v":0},{"$f":"IF(I1180<'1 Données d''entrée'!$C$334+1+$B1292,0,IF(I1180<'1 Données d''entrée'!$C$333+'1 Données d''entrée'!$C$334+1+$B1292,$F1286*('1 Données d''entrée'!$C$332*(1+'1 Données d''entrée'!$C$332)^'1 Données d''entrée'!$C$333)/((1+'1 Données d''entrée'!$C$332)^'1 Données d''entrée'!$C$333-1),0))","v":0},{"$f":"IF(J1180<'1 Données d''entrée'!$C$334+1+$B1292,0,IF(J1180<'1 Données d''entrée'!$C$333+'1 Données d''entrée'!$C$334+1+$B1292,$F1286*('1 Données d''entrée'!$C$332*(1+'1 Données d''entrée'!$C$332)^'1 Données d''entrée'!$C$333)/((1+'1 Données d''entrée'!$C$332)^'1 Données d''entrée'!$C$333-1),0))","v":0},{"$f":"IF(K1180<'1 Données d''entrée'!$C$334+1+$B1292,0,IF(K1180<'1 Données d''entrée'!$C$333+'1 Données d''entrée'!$C$334+1+$B1292,$F1286*('1 Données d''entrée'!$C$332*(1+'1 Données d''entrée'!$C$332)^'1 Données d''entrée'!$C$333)/((1+'1 Données d''entrée'!$C$332)^'1 Données d''entrée'!$C$333-1),0))","v":0},{"$f":"IF(L1180<'1 Données d''entrée'!$C$334+1+$B1292,0,IF(L1180<'1 Données d''entrée'!$C$333+'1 Données d''entrée'!$C$334+1+$B1292,$F1286*('1 Données d''entrée'!$C$332*(1+'1 Données d''entrée'!$C$332)^'1 Données d''entrée'!$C$333)/((1+'1 Données d''entrée'!$C$332)^'1 Données d''entrée'!$C$333-1),0))","v":0},{"$f":"IF(M1180<'1 Données d''entrée'!$C$334+1+$B1292,0,IF(M1180<'1 Données d''entrée'!$C$333+'1 Données d''entrée'!$C$334+1+$B1292,$F1286*('1 Données d''entrée'!$C$332*(1+'1 Données d''entrée'!$C$332)^'1 Données d''entrée'!$C$333)/((1+'1 Données d''entrée'!$C$332)^'1 Données d''entrée'!$C$333-1),0))","v":0},{"$f":"IF(N1180<'1 Données d''entrée'!$C$334+1+$B1292,0,IF(N1180<'1 Données d''entrée'!$C$333+'1 Données d''entrée'!$C$334+1+$B1292,$F1286*('1 Données d''entrée'!$C$332*(1+'1 Données d''entrée'!$C$332)^'1 Données d''entrée'!$C$333)/((1+'1 Données d''entrée'!$C$332)^'1 Données d''entrée'!$C$333-1),0))","v":0},{"$f":"IF(O1180<'1 Données d''entrée'!$C$334+1+$B1292,0,IF(O1180<'1 Données d''entrée'!$C$333+'1 Données d''entrée'!$C$334+1+$B1292,$F1286*('1 Données d''entrée'!$C$332*(1+'1 Données d''entrée'!$C$332)^'1 Données d''entrée'!$C$333)/((1+'1 Données d''entrée'!$C$332)^'1 Données d''entrée'!$C$333-1),0))","v":0},{"$f":"IF(P1180<'1 Données d''entrée'!$C$334+1+$B1292,0,IF(P1180<'1 Données d''entrée'!$C$333+'1 Données d''entrée'!$C$334+1+$B1292,$F1286*('1 Données d''entrée'!$C$332*(1+'1 Données d''entrée'!$C$332)^'1 Données d''entrée'!$C$333)/((1+'1 Données d''entrée'!$C$332)^'1 Données d''entrée'!$C$333-1),0))","v":0},{"$f":"IF(Q1180<'1 Données d''entrée'!$C$334+1+$B1292,0,IF(Q1180<'1 Données d''entrée'!$C$333+'1 Données d''entrée'!$C$334+1+$B1292,$F1286*('1 Données d''entrée'!$C$332*(1+'1 Données d''entrée'!$C$332)^'1 Données d''entrée'!$C$333)/((1+'1 Données d''entrée'!$C$332)^'1 Données d''entrée'!$C$333-1),0))","v":0},{"$f":"IF(R1180<'1 Données d''entrée'!$C$334+1+$B1292,0,IF(R1180<'1 Données d''entrée'!$C$333+'1 Données d''entrée'!$C$334+1+$B1292,$F1286*('1 Données d''entrée'!$C$332*(1+'1 Données d''entrée'!$C$332)^'1 Données d''entrée'!$C$333)/((1+'1 Données d''entrée'!$C$332)^'1 Données d''entrée'!$C$333-1),0))","v":0},{"$f":"IF(S1180<'1 Données d''entrée'!$C$334+1+$B1292,0,IF(S1180<'1 Données d''entrée'!$C$333+'1 Données d''entrée'!$C$334+1+$B1292,$F1286*('1 Données d''entrée'!$C$332*(1+'1 Données d''entrée'!$C$332)^'1 Données d''entrée'!$C$333)/((1+'1 Données d''entrée'!$C$332)^'1 Données d''entrée'!$C$333-1),0))","v":0},{"$f":"IF(T1180<'1 Données d''entrée'!$C$334+1+$B1292,0,IF(T1180<'1 Données d''entrée'!$C$333+'1 Données d''entrée'!$C$334+1+$B1292,$F1286*('1 Données d''entrée'!$C$332*(1+'1 Données d''entrée'!$C$332)^'1 Données d''entrée'!$C$333)/((1+'1 Données d''entrée'!$C$332)^'1 Données d''entrée'!$C$333-1),0))","v":0},{"$f":"IF(U1180<'1 Données d''entrée'!$C$334+1+$B1292,0,IF(U1180<'1 Données d''entrée'!$C$333+'1 Données d''entrée'!$C$334+1+$B1292,$F1286*('1 Données d''entrée'!$C$332*(1+'1 Données d''entrée'!$C$332)^'1 Données d''entrée'!$C$333)/((1+'1 Données d''entrée'!$C$332)^'1 Données d''entrée'!$C$333-1),0))","v":0},{"$f":"IF(V1180<'1 Données d''entrée'!$C$334+1+$B1292,0,IF(V1180<'1 Données d''entrée'!$C$333+'1 Données d''entrée'!$C$334+1+$B1292,$F1286*('1 Données d''entrée'!$C$332*(1+'1 Données d''entrée'!$C$332)^'1 Données d''entrée'!$C$333)/((1+'1 Données d''entrée'!$C$332)^'1 Données d''entrée'!$C$333-1),0))","v":0}]
[null,5,{"$f":"IF(C$54<'1 Données d''entrée'!$C$334+1+$B1293,0,IF(C$54<'1 Données d''entrée'!$C$333+'1 Données d''entrée'!$C$334+1+$B1293,$G$160*('1 Données d''entrée'!$C$332*(1+'1 Données d''entrée'!$C$332)^'1 Données d''entrée'!$C$333)/((1+'1 Données d''entrée'!$C$332)^'1 Données d''entrée'!$C$333-1),0))","v":0},{"$f":"IF(D1180<'1 Données d''entrée'!$C$334+1+$B1293,0,IF(D1180<'1 Données d''entrée'!$C$333+'1 Données d''entrée'!$C$334+1+$B1293,$G1286*('1 Données d''entrée'!$C$332*(1+'1 Données d''entrée'!$C$332)^'1 Données d''entrée'!$C$333)/((1+'1 Données d''entrée'!$C$332)^'1 Données d''entrée'!$C$333-1),0))","v":0},{"$f":"IF(E1180<'1 Données d''entrée'!$C$334+1+$B1293,0,IF(E1180<'1 Données d''entrée'!$C$333+'1 Données d''entrée'!$C$334+1+$B1293,$G1286*('1 Données d''entrée'!$C$332*(1+'1 Données d''entrée'!$C$332)^'1 Données d''entrée'!$C$333)/((1+'1 Données d''entrée'!$C$332)^'1 Données d''entrée'!$C$333-1),0))","v":0},{"$f":"IF(F1180<'1 Données d''entrée'!$C$334+1+$B1293,0,IF(F1180<'1 Données d''entrée'!$C$333+'1 Données d''entrée'!$C$334+1+$B1293,$G1286*('1 Données d''entrée'!$C$332*(1+'1 Données d''entrée'!$C$332)^'1 Données d''entrée'!$C$333)/((1+'1 Données d''entrée'!$C$332)^'1 Données d''entrée'!$C$333-1),0))","v":0},{"$f":"IF(G1180<'1 Données d''entrée'!$C$334+1+$B1293,0,IF(G1180<'1 Données d''entrée'!$C$333+'1 Données d''entrée'!$C$334+1+$B1293,$G1286*('1 Données d''entrée'!$C$332*(1+'1 Données d''entrée'!$C$332)^'1 Données d''entrée'!$C$333)/((1+'1 Données d''entrée'!$C$332)^'1 Données d''entrée'!$C$333-1),0))","v":0},{"$f":"IF(H1180<'1 Données d''entrée'!$C$334+1+$B1293,0,IF(H1180<'1 Données d''entrée'!$C$333+'1 Données d''entrée'!$C$334+1+$B1293,$G1286*('1 Données d''entrée'!$C$332*(1+'1 Données d''entrée'!$C$332)^'1 Données d''entrée'!$C$333)/((1+'1 Données d''entrée'!$C$332)^'1 Données d''entrée'!$C$333-1),0))","v":0},{"$f":"IF(I1180<'1 Données d''entrée'!$C$334+1+$B1293,0,IF(I1180<'1 Données d''entrée'!$C$333+'1 Données d''entrée'!$C$334+1+$B1293,$G1286*('1 Données d''entrée'!$C$332*(1+'1 Données d''entrée'!$C$332)^'1 Données d''entrée'!$C$333)/((1+'1 Données d''entrée'!$C$332)^'1 Données d''entrée'!$C$333-1),0))","v":0},{"$f":"IF(J1180<'1 Données d''entrée'!$C$334+1+$B1293,0,IF(J1180<'1 Données d''entrée'!$C$333+'1 Données d''entrée'!$C$334+1+$B1293,$G1286*('1 Données d''entrée'!$C$332*(1+'1 Données d''entrée'!$C$332)^'1 Données d''entrée'!$C$333)/((1+'1 Données d''entrée'!$C$332)^'1 Données d''entrée'!$C$333-1),0))","v":0},{"$f":"IF(K1180<'1 Données d''entrée'!$C$334+1+$B1293,0,IF(K1180<'1 Données d''entrée'!$C$333+'1 Données d''entrée'!$C$334+1+$B1293,$G1286*('1 Données d''entrée'!$C$332*(1+'1 Données d''entrée'!$C$332)^'1 Données d''entrée'!$C$333)/((1+'1 Données d''entrée'!$C$332)^'1 Données d''entrée'!$C$333-1),0))","v":0},{"$f":"IF(L1180<'1 Données d''entrée'!$C$334+1+$B1293,0,IF(L1180<'1 Données d''entrée'!$C$333+'1 Données d''entrée'!$C$334+1+$B1293,$G1286*('1 Données d''entrée'!$C$332*(1+'1 Données d''entrée'!$C$332)^'1 Données d''entrée'!$C$333)/((1+'1 Données d''entrée'!$C$332)^'1 Données d''entrée'!$C$333-1),0))","v":0},{"$f":"IF(M1180<'1 Données d''entrée'!$C$334+1+$B1293,0,IF(M1180<'1 Données d''entrée'!$C$333+'1 Données d''entrée'!$C$334+1+$B1293,$G1286*('1 Données d''entrée'!$C$332*(1+'1 Données d''entrée'!$C$332)^'1 Données d''entrée'!$C$333)/((1+'1 Données d''entrée'!$C$332)^'1 Données d''entrée'!$C$333-1),0))","v":0},{"$f":"IF(N1180<'1 Données d''entrée'!$C$334+1+$B1293,0,IF(N1180<'1 Données d''entrée'!$C$333+'1 Données d''entrée'!$C$334+1+$B1293,$G1286*('1 Données d''entrée'!$C$332*(1+'1 Données d''entrée'!$C$332)^'1 Données d''entrée'!$C$333)/((1+'1 Données d''entrée'!$C$332)^'1 Données d''entrée'!$C$333-1),0))","v":0},{"$f":"IF(O1180<'1 Données d''entrée'!$C$334+1+$B1293,0,IF(O1180<'1 Données d''entrée'!$C$333+'1 Données d''entrée'!$C$334+1+$B1293,$G1286*('1 Données d''entrée'!$C$332*(1+'1 Données d''entrée'!$C$332)^'1 Données d''entrée'!$C$333)/((1+'1 Données d''entrée'!$C$332)^'1 Données d''entrée'!$C$333-1),0))","v":0},{"$f":"IF(P1180<'1 Données d''entrée'!$C$334+1+$B1293,0,IF(P1180<'1 Données d''entrée'!$C$333+'1 Données d''entrée'!$C$334+1+$B1293,$G1286*('1 Données d''entrée'!$C$332*(1+'1 Données d''entrée'!$C$332)^'1 Données d''entrée'!$C$333)/((1+'1 Données d''entrée'!$C$332)^'1 Données d''entrée'!$C$333-1),0))","v":0},{"$f":"IF(Q1180<'1 Données d''entrée'!$C$334+1+$B1293,0,IF(Q1180<'1 Données d''entrée'!$C$333+'1 Données d''entrée'!$C$334+1+$B1293,$G1286*('1 Données d''entrée'!$C$332*(1+'1 Données d''entrée'!$C$332)^'1 Données d''entrée'!$C$333)/((1+'1 Données d''entrée'!$C$332)^'1 Données d''entrée'!$C$333-1),0))","v":0},{"$f":"IF(R1180<'1 Données d''entrée'!$C$334+1+$B1293,0,IF(R1180<'1 Données d''entrée'!$C$333+'1 Données d''entrée'!$C$334+1+$B1293,$G1286*('1 Données d''entrée'!$C$332*(1+'1 Données d''entrée'!$C$332)^'1 Données d''entrée'!$C$333)/((1+'1 Données d''entrée'!$C$332)^'1 Données d''entrée'!$C$333-1),0))","v":0},{"$f":"IF(S1180<'1 Données d''entrée'!$C$334+1+$B1293,0,IF(S1180<'1 Données d''entrée'!$C$333+'1 Données d''entrée'!$C$334+1+$B1293,$G1286*('1 Données d''entrée'!$C$332*(1+'1 Données d''entrée'!$C$332)^'1 Données d''entrée'!$C$333)/((1+'1 Données d''entrée'!$C$332)^'1 Données d''entrée'!$C$333-1),0))","v":0},{"$f":"IF(T1180<'1 Données d''entrée'!$C$334+1+$B1293,0,IF(T1180<'1 Données d''entrée'!$C$333+'1 Données d''entrée'!$C$334+1+$B1293,$G1286*('1 Données d''entrée'!$C$332*(1+'1 Données d''entrée'!$C$332)^'1 Données d''entrée'!$C$333)/((1+'1 Données d''entrée'!$C$332)^'1 Données d''entrée'!$C$333-1),0))","v":0},{"$f":"IF(U1180<'1 Données d''entrée'!$C$334+1+$B1293,0,IF(U1180<'1 Données d''entrée'!$C$333+'1 Données d''entrée'!$C$334+1+$B1293,$G1286*('1 Données d''entrée'!$C$332*(1+'1 Données d''entrée'!$C$332)^'1 Données d''entrée'!$C$333)/((1+'1 Données d''entrée'!$C$332)^'1 Données d''entrée'!$C$333-1),0))","v":0},{"$f":"IF(V1180<'1 Données d''entrée'!$C$334+1+$B1293,0,IF(V1180<'1 Données d''entrée'!$C$333+'1 Données d''entrée'!$C$334+1+$B1293,$G1286*('1 Données d''entrée'!$C$332*(1+'1 Données d''entrée'!$C$332)^'1 Données d''entrée'!$C$333)/((1+'1 Données d''entrée'!$C$332)^'1 Données d''entrée'!$C$333-1),0))","v":0}]
[null,6,{"$f":"IF(C$54<'1 Données d''entrée'!$C$334+1+$B1294,0,IF(C$54<'1 Données d''entrée'!$C$333+'1 Données d''entrée'!$C$334+1+$B1294,$H$160*('1 Données d''entrée'!$C$332*(1+'1 Données d''entrée'!$C$332)^'1 Données d''entrée'!$C$333)/((1+'1 Données d''entrée'!$C$332)^'1 Données d''entrée'!$C$333-1),0))","v":0},{"$f":"IF(D1180<'1 Données d''entrée'!$C$334+1+$B1294,0,IF(D1180<'1 Données d''entrée'!$C$333+'1 Données d''entrée'!$C$334+1+$B1294,$H1286*('1 Données d''entrée'!$C$332*(1+'1 Données d''entrée'!$C$332)^'1 Données d''entrée'!$C$333)/((1+'1 Données d''entrée'!$C$332)^'1 Données d''entrée'!$C$333-1),0))","v":0},{"$f":"IF(E1180<'1 Données d''entrée'!$C$334+1+$B1294,0,IF(E1180<'1 Données d''entrée'!$C$333+'1 Données d''entrée'!$C$334+1+$B1294,$H1286*('1 Données d''entrée'!$C$332*(1+'1 Données d''entrée'!$C$332)^'1 Données d''entrée'!$C$333)/((1+'1 Données d''entrée'!$C$332)^'1 Données d''entrée'!$C$333-1),0))","v":0},{"$f":"IF(F1180<'1 Données d''entrée'!$C$334+1+$B1294,0,IF(F1180<'1 Données d''entrée'!$C$333+'1 Données d''entrée'!$C$334+1+$B1294,$H1286*('1 Données d''entrée'!$C$332*(1+'1 Données d''entrée'!$C$332)^'1 Données d''entrée'!$C$333)/((1+'1 Données d''entrée'!$C$332)^'1 Données d''entrée'!$C$333-1),0))","v":0},{"$f":"IF(G1180<'1 Données d''entrée'!$C$334+1+$B1294,0,IF(G1180<'1 Données d''entrée'!$C$333+'1 Données d''entrée'!$C$334+1+$B1294,$H1286*('1 Données d''entrée'!$C$332*(1+'1 Données d''entrée'!$C$332)^'1 Données d''entrée'!$C$333)/((1+'1 Données d''entrée'!$C$332)^'1 Données d''entrée'!$C$333-1),0))","v":0},{"$f":"IF(H1180<'1 Données d''entrée'!$C$334+1+$B1294,0,IF(H1180<'1 Données d''entrée'!$C$333+'1 Données d''entrée'!$C$334+1+$B1294,$H1286*('1 Données d''entrée'!$C$332*(1+'1 Données d''entrée'!$C$332)^'1 Données d''entrée'!$C$333)/((1+'1 Données d''entrée'!$C$332)^'1 Données d''entrée'!$C$333-1),0))","v":0},{"$f":"IF(I1180<'1 Données d''entrée'!$C$334+1+$B1294,0,IF(I1180<'1 Données d''entrée'!$C$333+'1 Données d''entrée'!$C$334+1+$B1294,$H1286*('1 Données d''entrée'!$C$332*(1+'1 Données d''entrée'!$C$332)^'1 Données d''entrée'!$C$333)/((1+'1 Données d''entrée'!$C$332)^'1 Données d''entrée'!$C$333-1),0))","v":0},{"$f":"IF(J1180<'1 Données d''entrée'!$C$334+1+$B1294,0,IF(J1180<'1 Données d''entrée'!$C$333+'1 Données d''entrée'!$C$334+1+$B1294,$H1286*('1 Données d''entrée'!$C$332*(1+'1 Données d''entrée'!$C$332)^'1 Données d''entrée'!$C$333)/((1+'1 Données d''entrée'!$C$332)^'1 Données d''entrée'!$C$333-1),0))","v":0},{"$f":"IF(K1180<'1 Données d''entrée'!$C$334+1+$B1294,0,IF(K1180<'1 Données d''entrée'!$C$333+'1 Données d''entrée'!$C$334+1+$B1294,$H1286*('1 Données d''entrée'!$C$332*(1+'1 Données d''entrée'!$C$332)^'1 Données d''entrée'!$C$333)/((1+'1 Données d''entrée'!$C$332)^'1 Données d''entrée'!$C$333-1),0))","v":0},{"$f":"IF(L1180<'1 Données d''entrée'!$C$334+1+$B1294,0,IF(L1180<'1 Données d''entrée'!$C$333+'1 Données d''entrée'!$C$334+1+$B1294,$H1286*('1 Données d''entrée'!$C$332*(1+'1 Données d''entrée'!$C$332)^'1 Données d''entrée'!$C$333)/((1+'1 Données d''entrée'!$C$332)^'1 Données d''entrée'!$C$333-1),0))","v":0},{"$f":"IF(M1180<'1 Données d''entrée'!$C$334+1+$B1294,0,IF(M1180<'1 Données d''entrée'!$C$333+'1 Données d''entrée'!$C$334+1+$B1294,$H1286*('1 Données d''entrée'!$C$332*(1+'1 Données d''entrée'!$C$332)^'1 Données d''entrée'!$C$333)/((1+'1 Données d''entrée'!$C$332)^'1 Données d''entrée'!$C$333-1),0))","v":0},{"$f":"IF(N1180<'1 Données d''entrée'!$C$334+1+$B1294,0,IF(N1180<'1 Données d''entrée'!$C$333+'1 Données d''entrée'!$C$334+1+$B1294,$H1286*('1 Données d''entrée'!$C$332*(1+'1 Données d''entrée'!$C$332)^'1 Données d''entrée'!$C$333)/((1+'1 Données d''entrée'!$C$332)^'1 Données d''entrée'!$C$333-1),0))","v":0},{"$f":"IF(O1180<'1 Données d''entrée'!$C$334+1+$B1294,0,IF(O1180<'1 Données d''entrée'!$C$333+'1 Données d''entrée'!$C$334+1+$B1294,$H1286*('1 Données d''entrée'!$C$332*(1+'1 Données d''entrée'!$C$332)^'1 Données d''entrée'!$C$333)/((1+'1 Données d''entrée'!$C$332)^'1 Données d''entrée'!$C$333-1),0))","v":0},{"$f":"IF(P1180<'1 Données d''entrée'!$C$334+1+$B1294,0,IF(P1180<'1 Données d''entrée'!$C$333+'1 Données d''entrée'!$C$334+1+$B1294,$H1286*('1 Données d''entrée'!$C$332*(1+'1 Données d''entrée'!$C$332)^'1 Données d''entrée'!$C$333)/((1+'1 Données d''entrée'!$C$332)^'1 Données d''entrée'!$C$333-1),0))","v":0},{"$f":"IF(Q1180<'1 Données d''entrée'!$C$334+1+$B1294,0,IF(Q1180<'1 Données d''entrée'!$C$333+'1 Données d''entrée'!$C$334+1+$B1294,$H1286*('1 Données d''entrée'!$C$332*(1+'1 Données d''entrée'!$C$332)^'1 Données d''entrée'!$C$333)/((1+'1 Données d''entrée'!$C$332)^'1 Données d''entrée'!$C$333-1),0))","v":0},{"$f":"IF(R1180<'1 Données d''entrée'!$C$334+1+$B1294,0,IF(R1180<'1 Données d''entrée'!$C$333+'1 Données d''entrée'!$C$334+1+$B1294,$H1286*('1 Données d''entrée'!$C$332*(1+'1 Données d''entrée'!$C$332)^'1 Données d''entrée'!$C$333)/((1+'1 Données d''entrée'!$C$332)^'1 Données d''entrée'!$C$333-1),0))","v":0},{"$f":"IF(S1180<'1 Données d''entrée'!$C$334+1+$B1294,0,IF(S1180<'1 Données d''entrée'!$C$333+'1 Données d''entrée'!$C$334+1+$B1294,$H1286*('1 Données d''entrée'!$C$332*(1+'1 Données d''entrée'!$C$332)^'1 Données d''entrée'!$C$333)/((1+'1 Données d''entrée'!$C$332)^'1 Données d''entrée'!$C$333-1),0))","v":0},{"$f":"IF(T1180<'1 Données d''entrée'!$C$334+1+$B1294,0,IF(T1180<'1 Données d''entrée'!$C$333+'1 Données d''entrée'!$C$334+1+$B1294,$H1286*('1 Données d''entrée'!$C$332*(1+'1 Données d''entrée'!$C$332)^'1 Données d''entrée'!$C$333)/((1+'1 Données d''entrée'!$C$332)^'1 Données d''entrée'!$C$333-1),0))","v":0},{"$f":"IF(U1180<'1 Données d''entrée'!$C$334+1+$B1294,0,IF(U1180<'1 Données d''entrée'!$C$333+'1 Données d''entrée'!$C$334+1+$B1294,$H1286*('1 Données d''entrée'!$C$332*(1+'1 Données d''entrée'!$C$332)^'1 Données d''entrée'!$C$333)/((1+'1 Données d''entrée'!$C$332)^'1 Données d''entrée'!$C$333-1),0))","v":0},{"$f":"IF(V1180<'1 Données d''entrée'!$C$334+1+$B1294,0,IF(V1180<'1 Données d''entrée'!$C$333+'1 Données d''entrée'!$C$334+1+$B1294,$H1286*('1 Données d''entrée'!$C$332*(1+'1 Données d''entrée'!$C$332)^'1 Données d''entrée'!$C$333)/((1+'1 Données d''entrée'!$C$332)^'1 Données d''entrée'!$C$333-1),0))","v":0}]
[null,7,{"$f":"IF(C$54<'1 Données d''entrée'!$C$334+1+$B1295,0,IF(C$54<'1 Données d''entrée'!$C$333+'1 Données d''entrée'!$C$334+1+$B1295,$I$160*('1 Données d''entrée'!$C$332*(1+'1 Données d''entrée'!$C$332)^'1 Données d''entrée'!$C$333)/((1+'1 Données d''entrée'!$C$332)^'1 Données d''entrée'!$C$333-1),0))","v":0},{"$f":"IF(D1180<'1 Données d''entrée'!$C$334+1+$B1295,0,IF(D1180<'1 Données d''entrée'!$C$333+'1 Données d''entrée'!$C$334+1+$B1295,$I1286*('1 Données d''entrée'!$C$332*(1+'1 Données d''entrée'!$C$332)^'1 Données d''entrée'!$C$333)/((1+'1 Données d''entrée'!$C$332)^'1 Données d''entrée'!$C$333-1),0))","v":0},{"$f":"IF(E1180<'1 Données d''entrée'!$C$334+1+$B1295,0,IF(E1180<'1 Données d''entrée'!$C$333+'1 Données d''entrée'!$C$334+1+$B1295,$I1286*('1 Données d''entrée'!$C$332*(1+'1 Données d''entrée'!$C$332)^'1 Données d''entrée'!$C$333)/((1+'1 Données d''entrée'!$C$332)^'1 Données d''entrée'!$C$333-1),0))","v":0},{"$f":"IF(F1180<'1 Données d''entrée'!$C$334+1+$B1295,0,IF(F1180<'1 Données d''entrée'!$C$333+'1 Données d''entrée'!$C$334+1+$B1295,$I1286*('1 Données d''entrée'!$C$332*(1+'1 Données d''entrée'!$C$332)^'1 Données d''entrée'!$C$333)/((1+'1 Données d''entrée'!$C$332)^'1 Données d''entrée'!$C$333-1),0))","v":0},{"$f":"IF(G1180<'1 Données d''entrée'!$C$334+1+$B1295,0,IF(G1180<'1 Données d''entrée'!$C$333+'1 Données d''entrée'!$C$334+1+$B1295,$I1286*('1 Données d''entrée'!$C$332*(1+'1 Données d''entrée'!$C$332)^'1 Données d''entrée'!$C$333)/((1+'1 Données d''entrée'!$C$332)^'1 Données d''entrée'!$C$333-1),0))","v":0},{"$f":"IF(H1180<'1 Données d''entrée'!$C$334+1+$B1295,0,IF(H1180<'1 Données d''entrée'!$C$333+'1 Données d''entrée'!$C$334+1+$B1295,$I1286*('1 Données d''entrée'!$C$332*(1+'1 Données d''entrée'!$C$332)^'1 Données d''entrée'!$C$333)/((1+'1 Données d''entrée'!$C$332)^'1 Données d''entrée'!$C$333-1),0))","v":0},{"$f":"IF(I1180<'1 Données d''entrée'!$C$334+1+$B1295,0,IF(I1180<'1 Données d''entrée'!$C$333+'1 Données d''entrée'!$C$334+1+$B1295,$I1286*('1 Données d''entrée'!$C$332*(1+'1 Données d''entrée'!$C$332)^'1 Données d''entrée'!$C$333)/((1+'1 Données d''entrée'!$C$332)^'1 Données d''entrée'!$C$333-1),0))","v":0},{"$f":"IF(J1180<'1 Données d''entrée'!$C$334+1+$B1295,0,IF(J1180<'1 Données d''entrée'!$C$333+'1 Données d''entrée'!$C$334+1+$B1295,$I1286*('1 Données d''entrée'!$C$332*(1+'1 Données d''entrée'!$C$332)^'1 Données d''entrée'!$C$333)/((1+'1 Données d''entrée'!$C$332)^'1 Données d''entrée'!$C$333-1),0))","v":0},{"$f":"IF(K1180<'1 Données d''entrée'!$C$334+1+$B1295,0,IF(K1180<'1 Données d''entrée'!$C$333+'1 Données d''entrée'!$C$334+1+$B1295,$I1286*('1 Données d''entrée'!$C$332*(1+'1 Données d''entrée'!$C$332)^'1 Données d''entrée'!$C$333)/((1+'1 Données d''entrée'!$C$332)^'1 Données d''entrée'!$C$333-1),0))","v":0},{"$f":"IF(L1180<'1 Données d''entrée'!$C$334+1+$B1295,0,IF(L1180<'1 Données d''entrée'!$C$333+'1 Données d''entrée'!$C$334+1+$B1295,$I1286*('1 Données d''entrée'!$C$332*(1+'1 Données d''entrée'!$C$332)^'1 Données d''entrée'!$C$333)/((1+'1 Données d''entrée'!$C$332)^'1 Données d''entrée'!$C$333-1),0))","v":0},{"$f":"IF(M1180<'1 Données d''entrée'!$C$334+1+$B1295,0,IF(M1180<'1 Données d''entrée'!$C$333+'1 Données d''entrée'!$C$334+1+$B1295,$I1286*('1 Données d''entrée'!$C$332*(1+'1 Données d''entrée'!$C$332)^'1 Données d''entrée'!$C$333)/((1+'1 Données d''entrée'!$C$332)^'1 Données d''entrée'!$C$333-1),0))","v":0},{"$f":"IF(N1180<'1 Données d''entrée'!$C$334+1+$B1295,0,IF(N1180<'1 Données d''entrée'!$C$333+'1 Données d''entrée'!$C$334+1+$B1295,$I1286*('1 Données d''entrée'!$C$332*(1+'1 Données d''entrée'!$C$332)^'1 Données d''entrée'!$C$333)/((1+'1 Données d''entrée'!$C$332)^'1 Données d''entrée'!$C$333-1),0))","v":0},{"$f":"IF(O1180<'1 Données d''entrée'!$C$334+1+$B1295,0,IF(O1180<'1 Données d''entrée'!$C$333+'1 Données d''entrée'!$C$334+1+$B1295,$I1286*('1 Données d''entrée'!$C$332*(1+'1 Données d''entrée'!$C$332)^'1 Données d''entrée'!$C$333)/((1+'1 Données d''entrée'!$C$332)^'1 Données d''entrée'!$C$333-1),0))","v":0},{"$f":"IF(P1180<'1 Données d''entrée'!$C$334+1+$B1295,0,IF(P1180<'1 Données d''entrée'!$C$333+'1 Données d''entrée'!$C$334+1+$B1295,$I1286*('1 Données d''entrée'!$C$332*(1+'1 Données d''entrée'!$C$332)^'1 Données d''entrée'!$C$333)/((1+'1 Données d''entrée'!$C$332)^'1 Données d''entrée'!$C$333-1),0))","v":0},{"$f":"IF(Q1180<'1 Données d''entrée'!$C$334+1+$B1295,0,IF(Q1180<'1 Données d''entrée'!$C$333+'1 Données d''entrée'!$C$334+1+$B1295,$I1286*('1 Données d''entrée'!$C$332*(1+'1 Données d''entrée'!$C$332)^'1 Données d''entrée'!$C$333)/((1+'1 Données d''entrée'!$C$332)^'1 Données d''entrée'!$C$333-1),0))","v":0},{"$f":"IF(R1180<'1 Données d''entrée'!$C$334+1+$B1295,0,IF(R1180<'1 Données d''entrée'!$C$333+'1 Données d''entrée'!$C$334+1+$B1295,$I1286*('1 Données d''entrée'!$C$332*(1+'1 Données d''entrée'!$C$332)^'1 Données d''entrée'!$C$333)/((1+'1 Données d''entrée'!$C$332)^'1 Données d''entrée'!$C$333-1),0))","v":0},{"$f":"IF(S1180<'1 Données d''entrée'!$C$334+1+$B1295,0,IF(S1180<'1 Données d''entrée'!$C$333+'1 Données d''entrée'!$C$334+1+$B1295,$I1286*('1 Données d''entrée'!$C$332*(1+'1 Données d''entrée'!$C$332)^'1 Données d''entrée'!$C$333)/((1+'1 Données d''entrée'!$C$332)^'1 Données d''entrée'!$C$333-1),0))","v":0},{"$f":"IF(T1180<'1 Données d''entrée'!$C$334+1+$B1295,0,IF(T1180<'1 Données d''entrée'!$C$333+'1 Données d''entrée'!$C$334+1+$B1295,$I1286*('1 Données d''entrée'!$C$332*(1+'1 Données d''entrée'!$C$332)^'1 Données d''entrée'!$C$333)/((1+'1 Données d''entrée'!$C$332)^'1 Données d''entrée'!$C$333-1),0))","v":0},{"$f":"IF(U1180<'1 Données d''entrée'!$C$334+1+$B1295,0,IF(U1180<'1 Données d''entrée'!$C$333+'1 Données d''entrée'!$C$334+1+$B1295,$I1286*('1 Données d''entrée'!$C$332*(1+'1 Données d''entrée'!$C$332)^'1 Données d''entrée'!$C$333)/((1+'1 Données d''entrée'!$C$332)^'1 Données d''entrée'!$C$333-1),0))","v":0},{"$f":"IF(V1180<'1 Données d''entrée'!$C$334+1+$B1295,0,IF(V1180<'1 Données d''entrée'!$C$333+'1 Données d''entrée'!$C$334+1+$B1295,$I1286*('1 Données d''entrée'!$C$332*(1+'1 Données d''entrée'!$C$332)^'1 Données d''entrée'!$C$333)/((1+'1 Données d''entrée'!$C$332)^'1 Données d''entrée'!$C$333-1),0))","v":0}]
[null,8,{"$f":"IF(C$54<'1 Données d''entrée'!$C$334+1+$B1296,0,IF(C$54<'1 Données d''entrée'!$C$333+'1 Données d''entrée'!$C$334+1+$B1296,$J$160*('1 Données d''entrée'!$C$332*(1+'1 Données d''entrée'!$C$332)^'1 Données d''entrée'!$C$333)/((1+'1 Données d''entrée'!$C$332)^'1 Données d''entrée'!$C$333-1),0))","v":0},{"$f":"IF(D1180<'1 Données d''entrée'!$C$334+1+$B1296,0,IF(D1180<'1 Données d''entrée'!$C$333+'1 Données d''entrée'!$C$334+1+$B1296,$J1286*('1 Données d''entrée'!$C$332*(1+'1 Données d''entrée'!$C$332)^'1 Données d''entrée'!$C$333)/((1+'1 Données d''entrée'!$C$332)^'1 Données d''entrée'!$C$333-1),0))","v":0},{"$f":"IF(E1180<'1 Données d''entrée'!$C$334+1+$B1296,0,IF(E1180<'1 Données d''entrée'!$C$333+'1 Données d''entrée'!$C$334+1+$B1296,$J1286*('1 Données d''entrée'!$C$332*(1+'1 Données d''entrée'!$C$332)^'1 Données d''entrée'!$C$333)/((1+'1 Données d''entrée'!$C$332)^'1 Données d''entrée'!$C$333-1),0))","v":0},{"$f":"IF(F1180<'1 Données d''entrée'!$C$334+1+$B1296,0,IF(F1180<'1 Données d''entrée'!$C$333+'1 Données d''entrée'!$C$334+1+$B1296,$J1286*('1 Données d''entrée'!$C$332*(1+'1 Données d''entrée'!$C$332)^'1 Données d''entrée'!$C$333)/((1+'1 Données d''entrée'!$C$332)^'1 Données d''entrée'!$C$333-1),0))","v":0},{"$f":"IF(G1180<'1 Données d''entrée'!$C$334+1+$B1296,0,IF(G1180<'1 Données d''entrée'!$C$333+'1 Données d''entrée'!$C$334+1+$B1296,$J1286*('1 Données d''entrée'!$C$332*(1+'1 Données d''entrée'!$C$332)^'1 Données d''entrée'!$C$333)/((1+'1 Données d''entrée'!$C$332)^'1 Données d''entrée'!$C$333-1),0))","v":0},{"$f":"IF(H1180<'1 Données d''entrée'!$C$334+1+$B1296,0,IF(H1180<'1 Données d''entrée'!$C$333+'1 Données d''entrée'!$C$334+1+$B1296,$J1286*('1 Données d''entrée'!$C$332*(1+'1 Données d''entrée'!$C$332)^'1 Données d''entrée'!$C$333)/((1+'1 Données d''entrée'!$C$332)^'1 Données d''entrée'!$C$333-1),0))","v":0},{"$f":"IF(I1180<'1 Données d''entrée'!$C$334+1+$B1296,0,IF(I1180<'1 Données d''entrée'!$C$333+'1 Données d''entrée'!$C$334+1+$B1296,$J1286*('1 Données d''entrée'!$C$332*(1+'1 Données d''entrée'!$C$332)^'1 Données d''entrée'!$C$333)/((1+'1 Données d''entrée'!$C$332)^'1 Données d''entrée'!$C$333-1),0))","v":0},{"$f":"IF(J1180<'1 Données d''entrée'!$C$334+1+$B1296,0,IF(J1180<'1 Données d''entrée'!$C$333+'1 Données d''entrée'!$C$334+1+$B1296,$J1286*('1 Données d''entrée'!$C$332*(1+'1 Données d''entrée'!$C$332)^'1 Données d''entrée'!$C$333)/((1+'1 Données d''entrée'!$C$332)^'1 Données d''entrée'!$C$333-1),0))","v":0},{"$f":"IF(K1180<'1 Données d''entrée'!$C$334+1+$B1296,0,IF(K1180<'1 Données d''entrée'!$C$333+'1 Données d''entrée'!$C$334+1+$B1296,$J1286*('1 Données d''entrée'!$C$332*(1+'1 Données d''entrée'!$C$332)^'1 Données d''entrée'!$C$333)/((1+'1 Données d''entrée'!$C$332)^'1 Données d''entrée'!$C$333-1),0))","v":0},{"$f":"IF(L1180<'1 Données d''entrée'!$C$334+1+$B1296,0,IF(L1180<'1 Données d''entrée'!$C$333+'1 Données d''entrée'!$C$334+1+$B1296,$J1286*('1 Données d''entrée'!$C$332*(1+'1 Données d''entrée'!$C$332)^'1 Données d''entrée'!$C$333)/((1+'1 Données d''entrée'!$C$332)^'1 Données d''entrée'!$C$333-1),0))","v":0},{"$f":"IF(M1180<'1 Données d''entrée'!$C$334+1+$B1296,0,IF(M1180<'1 Données d''entrée'!$C$333+'1 Données d''entrée'!$C$334+1+$B1296,$J1286*('1 Données d''entrée'!$C$332*(1+'1 Données d''entrée'!$C$332)^'1 Données d''entrée'!$C$333)/((1+'1 Données d''entrée'!$C$332)^'1 Données d''entrée'!$C$333-1),0))","v":0},{"$f":"IF(N1180<'1 Données d''entrée'!$C$334+1+$B1296,0,IF(N1180<'1 Données d''entrée'!$C$333+'1 Données d''entrée'!$C$334+1+$B1296,$J1286*('1 Données d''entrée'!$C$332*(1+'1 Données d''entrée'!$C$332)^'1 Données d''entrée'!$C$333)/((1+'1 Données d''entrée'!$C$332)^'1 Données d''entrée'!$C$333-1),0))","v":0},{"$f":"IF(O1180<'1 Données d''entrée'!$C$334+1+$B1296,0,IF(O1180<'1 Données d''entrée'!$C$333+'1 Données d''entrée'!$C$334+1+$B1296,$J1286*('1 Données d''entrée'!$C$332*(1+'1 Données d''entrée'!$C$332)^'1 Données d''entrée'!$C$333)/((1+'1 Données d''entrée'!$C$332)^'1 Données d''entrée'!$C$333-1),0))","v":0},{"$f":"IF(P1180<'1 Données d''entrée'!$C$334+1+$B1296,0,IF(P1180<'1 Données d''entrée'!$C$333+'1 Données d''entrée'!$C$334+1+$B1296,$J1286*('1 Données d''entrée'!$C$332*(1+'1 Données d''entrée'!$C$332)^'1 Données d''entrée'!$C$333)/((1+'1 Données d''entrée'!$C$332)^'1 Données d''entrée'!$C$333-1),0))","v":0},{"$f":"IF(Q1180<'1 Données d''entrée'!$C$334+1+$B1296,0,IF(Q1180<'1 Données d''entrée'!$C$333+'1 Données d''entrée'!$C$334+1+$B1296,$J1286*('1 Données d''entrée'!$C$332*(1+'1 Données d''entrée'!$C$332)^'1 Données d''entrée'!$C$333)/((1+'1 Données d''entrée'!$C$332)^'1 Données d''entrée'!$C$333-1),0))","v":0},{"$f":"IF(R1180<'1 Données d''entrée'!$C$334+1+$B1296,0,IF(R1180<'1 Données d''entrée'!$C$333+'1 Données d''entrée'!$C$334+1+$B1296,$J1286*('1 Données d''entrée'!$C$332*(1+'1 Données d''entrée'!$C$332)^'1 Données d''entrée'!$C$333)/((1+'1 Données d''entrée'!$C$332)^'1 Données d''entrée'!$C$333-1),0))","v":0},{"$f":"IF(S1180<'1 Données d''entrée'!$C$334+1+$B1296,0,IF(S1180<'1 Données d''entrée'!$C$333+'1 Données d''entrée'!$C$334+1+$B1296,$J1286*('1 Données d''entrée'!$C$332*(1+'1 Données d''entrée'!$C$332)^'1 Données d''entrée'!$C$333)/((1+'1 Données d''entrée'!$C$332)^'1 Données d''entrée'!$C$333-1),0))","v":0},{"$f":"IF(T1180<'1 Données d''entrée'!$C$334+1+$B1296,0,IF(T1180<'1 Données d''entrée'!$C$333+'1 Données d''entrée'!$C$334+1+$B1296,$J1286*('1 Données d''entrée'!$C$332*(1+'1 Données d''entrée'!$C$332)^'1 Données d''entrée'!$C$333)/((1+'1 Données d''entrée'!$C$332)^'1 Données d''entrée'!$C$333-1),0))","v":0},{"$f":"IF(U1180<'1 Données d''entrée'!$C$334+1+$B1296,0,IF(U1180<'1 Données d''entrée'!$C$333+'1 Données d''entrée'!$C$334+1+$B1296,$J1286*('1 Données d''entrée'!$C$332*(1+'1 Données d''entrée'!$C$332)^'1 Données d''entrée'!$C$333)/((1+'1 Données d''entrée'!$C$332)^'1 Données d''entrée'!$C$333-1),0))","v":0},{"$f":"IF(V1180<'1 Données d''entrée'!$C$334+1+$B1296,0,IF(V1180<'1 Données d''entrée'!$C$333+'1 Données d''entrée'!$C$334+1+$B1296,$J1286*('1 Données d''entrée'!$C$332*(1+'1 Données d''entrée'!$C$332)^'1 Données d''entrée'!$C$333)/((1+'1 Données d''entrée'!$C$332)^'1 Données d''entrée'!$C$333-1),0))","v":0}]
[null,9,{"$f":"IF(C$54<'1 Données d''entrée'!$C$334+1+$B1297,0,IF(C$54<'1 Données d''entrée'!$C$333+'1 Données d''entrée'!$C$334+1+$B1297,$K$160*('1 Données d''entrée'!$C$332*(1+'1 Données d''entrée'!$C$332)^'1 Données d''entrée'!$C$333)/((1+'1 Données d''entrée'!$C$332)^'1 Données d''entrée'!$C$333-1),0))","v":0},{"$f":"IF(D1180<'1 Données d''entrée'!$C$334+1+$B1297,0,IF(D1180<'1 Données d''entrée'!$C$333+'1 Données d''entrée'!$C$334+1+$B1297,$K1286*('1 Données d''entrée'!$C$332*(1+'1 Données d''entrée'!$C$332)^'1 Données d''entrée'!$C$333)/((1+'1 Données d''entrée'!$C$332)^'1 Données d''entrée'!$C$333-1),0))","v":0},{"$f":"IF(E1180<'1 Données d''entrée'!$C$334+1+$B1297,0,IF(E1180<'1 Données d''entrée'!$C$333+'1 Données d''entrée'!$C$334+1+$B1297,$K1286*('1 Données d''entrée'!$C$332*(1+'1 Données d''entrée'!$C$332)^'1 Données d''entrée'!$C$333)/((1+'1 Données d''entrée'!$C$332)^'1 Données d''entrée'!$C$333-1),0))","v":0},{"$f":"IF(F1180<'1 Données d''entrée'!$C$334+1+$B1297,0,IF(F1180<'1 Données d''entrée'!$C$333+'1 Données d''entrée'!$C$334+1+$B1297,$K1286*('1 Données d''entrée'!$C$332*(1+'1 Données d''entrée'!$C$332)^'1 Données d''entrée'!$C$333)/((1+'1 Données d''entrée'!$C$332)^'1 Données d''entrée'!$C$333-1),0))","v":0},{"$f":"IF(G1180<'1 Données d''entrée'!$C$334+1+$B1297,0,IF(G1180<'1 Données d''entrée'!$C$333+'1 Données d''entrée'!$C$334+1+$B1297,$K1286*('1 Données d''entrée'!$C$332*(1+'1 Données d''entrée'!$C$332)^'1 Données d''entrée'!$C$333)/((1+'1 Données d''entrée'!$C$332)^'1 Données d''entrée'!$C$333-1),0))","v":0},{"$f":"IF(H1180<'1 Données d''entrée'!$C$334+1+$B1297,0,IF(H1180<'1 Données d''entrée'!$C$333+'1 Données d''entrée'!$C$334+1+$B1297,$K1286*('1 Données d''entrée'!$C$332*(1+'1 Données d''entrée'!$C$332)^'1 Données d''entrée'!$C$333)/((1+'1 Données d''entrée'!$C$332)^'1 Données d''entrée'!$C$333-1),0))","v":0},{"$f":"IF(I1180<'1 Données d''entrée'!$C$334+1+$B1297,0,IF(I1180<'1 Données d''entrée'!$C$333+'1 Données d''entrée'!$C$334+1+$B1297,$K1286*('1 Données d''entrée'!$C$332*(1+'1 Données d''entrée'!$C$332)^'1 Données d''entrée'!$C$333)/((1+'1 Données d''entrée'!$C$332)^'1 Données d''entrée'!$C$333-1),0))","v":0},{"$f":"IF(J1180<'1 Données d''entrée'!$C$334+1+$B1297,0,IF(J1180<'1 Données d''entrée'!$C$333+'1 Données d''entrée'!$C$334+1+$B1297,$K1286*('1 Données d''entrée'!$C$332*(1+'1 Données d''entrée'!$C$332)^'1 Données d''entrée'!$C$333)/((1+'1 Données d''entrée'!$C$332)^'1 Données d''entrée'!$C$333-1),0))","v":0},{"$f":"IF(K1180<'1 Données d''entrée'!$C$334+1+$B1297,0,IF(K1180<'1 Données d''entrée'!$C$333+'1 Données d''entrée'!$C$334+1+$B1297,$K1286*('1 Données d''entrée'!$C$332*(1+'1 Données d''entrée'!$C$332)^'1 Données d''entrée'!$C$333)/((1+'1 Données d''entrée'!$C$332)^'1 Données d''entrée'!$C$333-1),0))","v":0},{"$f":"IF(L1180<'1 Données d''entrée'!$C$334+1+$B1297,0,IF(L1180<'1 Données d''entrée'!$C$333+'1 Données d''entrée'!$C$334+1+$B1297,$K1286*('1 Données d''entrée'!$C$332*(1+'1 Données d''entrée'!$C$332)^'1 Données d''entrée'!$C$333)/((1+'1 Données d''entrée'!$C$332)^'1 Données d''entrée'!$C$333-1),0))","v":0},{"$f":"IF(M1180<'1 Données d''entrée'!$C$334+1+$B1297,0,IF(M1180<'1 Données d''entrée'!$C$333+'1 Données d''entrée'!$C$334+1+$B1297,$K1286*('1 Données d''entrée'!$C$332*(1+'1 Données d''entrée'!$C$332)^'1 Données d''entrée'!$C$333)/((1+'1 Données d''entrée'!$C$332)^'1 Données d''entrée'!$C$333-1),0))","v":0},{"$f":"IF(N1180<'1 Données d''entrée'!$C$334+1+$B1297,0,IF(N1180<'1 Données d''entrée'!$C$333+'1 Données d''entrée'!$C$334+1+$B1297,$K1286*('1 Données d''entrée'!$C$332*(1+'1 Données d''entrée'!$C$332)^'1 Données d''entrée'!$C$333)/((1+'1 Données d''entrée'!$C$332)^'1 Données d''entrée'!$C$333-1),0))","v":0},{"$f":"IF(O1180<'1 Données d''entrée'!$C$334+1+$B1297,0,IF(O1180<'1 Données d''entrée'!$C$333+'1 Données d''entrée'!$C$334+1+$B1297,$K1286*('1 Données d''entrée'!$C$332*(1+'1 Données d''entrée'!$C$332)^'1 Données d''entrée'!$C$333)/((1+'1 Données d''entrée'!$C$332)^'1 Données d''entrée'!$C$333-1),0))","v":0},{"$f":"IF(P1180<'1 Données d''entrée'!$C$334+1+$B1297,0,IF(P1180<'1 Données d''entrée'!$C$333+'1 Données d''entrée'!$C$334+1+$B1297,$K1286*('1 Données d''entrée'!$C$332*(1+'1 Données d''entrée'!$C$332)^'1 Données d''entrée'!$C$333)/((1+'1 Données d''entrée'!$C$332)^'1 Données d''entrée'!$C$333-1),0))","v":0},{"$f":"IF(Q1180<'1 Données d''entrée'!$C$334+1+$B1297,0,IF(Q1180<'1 Données d''entrée'!$C$333+'1 Données d''entrée'!$C$334+1+$B1297,$K1286*('1 Données d''entrée'!$C$332*(1+'1 Données d''entrée'!$C$332)^'1 Données d''entrée'!$C$333)/((1+'1 Données d''entrée'!$C$332)^'1 Données d''entrée'!$C$333-1),0))","v":0},{"$f":"IF(R1180<'1 Données d''entrée'!$C$334+1+$B1297,0,IF(R1180<'1 Données d''entrée'!$C$333+'1 Données d''entrée'!$C$334+1+$B1297,$K1286*('1 Données d''entrée'!$C$332*(1+'1 Données d''entrée'!$C$332)^'1 Données d''entrée'!$C$333)/((1+'1 Données d''entrée'!$C$332)^'1 Données d''entrée'!$C$333-1),0))","v":0},{"$f":"IF(S1180<'1 Données d''entrée'!$C$334+1+$B1297,0,IF(S1180<'1 Données d''entrée'!$C$333+'1 Données d''entrée'!$C$334+1+$B1297,$K1286*('1 Données d''entrée'!$C$332*(1+'1 Données d''entrée'!$C$332)^'1 Données d''entrée'!$C$333)/((1+'1 Données d''entrée'!$C$332)^'1 Données d''entrée'!$C$333-1),0))","v":0},{"$f":"IF(T1180<'1 Données d''entrée'!$C$334+1+$B1297,0,IF(T1180<'1 Données d''entrée'!$C$333+'1 Données d''entrée'!$C$334+1+$B1297,$K1286*('1 Données d''entrée'!$C$332*(1+'1 Données d''entrée'!$C$332)^'1 Données d''entrée'!$C$333)/((1+'1 Données d''entrée'!$C$332)^'1 Données d''entrée'!$C$333-1),0))","v":0},{"$f":"IF(U1180<'1 Données d''entrée'!$C$334+1+$B1297,0,IF(U1180<'1 Données d''entrée'!$C$333+'1 Données d''entrée'!$C$334+1+$B1297,$K1286*('1 Données d''entrée'!$C$332*(1+'1 Données d''entrée'!$C$332)^'1 Données d''entrée'!$C$333)/((1+'1 Données d''entrée'!$C$332)^'1 Données d''entrée'!$C$333-1),0))","v":0},{"$f":"IF(V1180<'1 Données d''entrée'!$C$334+1+$B1297,0,IF(V1180<'1 Données d''entrée'!$C$333+'1 Données d''entrée'!$C$334+1+$B1297,$K1286*('1 Données d''entrée'!$C$332*(1+'1 Données d''entrée'!$C$332)^'1 Données d''entrée'!$C$333)/((1+'1 Données d''entrée'!$C$332)^'1 Données d''entrée'!$C$333-1),0))","v":0}]
[null,10,{"$f":"IF(C$54<'1 Données d''entrée'!$C$334+1+$B1298,0,IF(C$54<'1 Données d''entrée'!$C$333+'1 Données d''entrée'!$C$334+1+$B1298,$L$160*('1 Données d''entrée'!$C$332*(1+'1 Données d''entrée'!$C$332)^'1 Données d''entrée'!$C$333)/((1+'1 Données d''entrée'!$C$332)^'1 Données d''entrée'!$C$333-1),0))","v":0},{"$f":"IF(D1180<'1 Données d''entrée'!$C$334+1+$B1298,0,IF(D1180<'1 Données d''entrée'!$C$333+'1 Données d''entrée'!$C$334+1+$B1298,$L1286*('1 Données d''entrée'!$C$332*(1+'1 Données d''entrée'!$C$332)^'1 Données d''entrée'!$C$333)/((1+'1 Données d''entrée'!$C$332)^'1 Données d''entrée'!$C$333-1),0))","v":0},{"$f":"IF(E1180<'1 Données d''entrée'!$C$334+1+$B1298,0,IF(E1180<'1 Données d''entrée'!$C$333+'1 Données d''entrée'!$C$334+1+$B1298,$L1286*('1 Données d''entrée'!$C$332*(1+'1 Données d''entrée'!$C$332)^'1 Données d''entrée'!$C$333)/((1+'1 Données d''entrée'!$C$332)^'1 Données d''entrée'!$C$333-1),0))","v":0},{"$f":"IF(F1180<'1 Données d''entrée'!$C$334+1+$B1298,0,IF(F1180<'1 Données d''entrée'!$C$333+'1 Données d''entrée'!$C$334+1+$B1298,$L1286*('1 Données d''entrée'!$C$332*(1+'1 Données d''entrée'!$C$332)^'1 Données d''entrée'!$C$333)/((1+'1 Données d''entrée'!$C$332)^'1 Données d''entrée'!$C$333-1),0))","v":0},{"$f":"IF(G1180<'1 Données d''entrée'!$C$334+1+$B1298,0,IF(G1180<'1 Données d''entrée'!$C$333+'1 Données d''entrée'!$C$334+1+$B1298,$L1286*('1 Données d''entrée'!$C$332*(1+'1 Données d''entrée'!$C$332)^'1 Données d''entrée'!$C$333)/((1+'1 Données d''entrée'!$C$332)^'1 Données d''entrée'!$C$333-1),0))","v":0},{"$f":"IF(H1180<'1 Données d''entrée'!$C$334+1+$B1298,0,IF(H1180<'1 Données d''entrée'!$C$333+'1 Données d''entrée'!$C$334+1+$B1298,$L1286*('1 Données d''entrée'!$C$332*(1+'1 Données d''entrée'!$C$332)^'1 Données d''entrée'!$C$333)/((1+'1 Données d''entrée'!$C$332)^'1 Données d''entrée'!$C$333-1),0))","v":0},{"$f":"IF(I1180<'1 Données d''entrée'!$C$334+1+$B1298,0,IF(I1180<'1 Données d''entrée'!$C$333+'1 Données d''entrée'!$C$334+1+$B1298,$L1286*('1 Données d''entrée'!$C$332*(1+'1 Données d''entrée'!$C$332)^'1 Données d''entrée'!$C$333)/((1+'1 Données d''entrée'!$C$332)^'1 Données d''entrée'!$C$333-1),0))","v":0},{"$f":"IF(J1180<'1 Données d''entrée'!$C$334+1+$B1298,0,IF(J1180<'1 Données d''entrée'!$C$333+'1 Données d''entrée'!$C$334+1+$B1298,$L1286*('1 Données d''entrée'!$C$332*(1+'1 Données d''entrée'!$C$332)^'1 Données d''entrée'!$C$333)/((1+'1 Données d''entrée'!$C$332)^'1 Données d''entrée'!$C$333-1),0))","v":0},{"$f":"IF(K1180<'1 Données d''entrée'!$C$334+1+$B1298,0,IF(K1180<'1 Données d''entrée'!$C$333+'1 Données d''entrée'!$C$334+1+$B1298,$L1286*('1 Données d''entrée'!$C$332*(1+'1 Données d''entrée'!$C$332)^'1 Données d''entrée'!$C$333)/((1+'1 Données d''entrée'!$C$332)^'1 Données d''entrée'!$C$333-1),0))","v":0},{"$f":"IF(L1180<'1 Données d''entrée'!$C$334+1+$B1298,0,IF(L1180<'1 Données d''entrée'!$C$333+'1 Données d''entrée'!$C$334+1+$B1298,$L1286*('1 Données d''entrée'!$C$332*(1+'1 Données d''entrée'!$C$332)^'1 Données d''entrée'!$C$333)/((1+'1 Données d''entrée'!$C$332)^'1 Données d''entrée'!$C$333-1),0))","v":0},{"$f":"IF(M1180<'1 Données d''entrée'!$C$334+1+$B1298,0,IF(M1180<'1 Données d''entrée'!$C$333+'1 Données d''entrée'!$C$334+1+$B1298,$L1286*('1 Données d''entrée'!$C$332*(1+'1 Données d''entrée'!$C$332)^'1 Données d''entrée'!$C$333)/((1+'1 Données d''entrée'!$C$332)^'1 Données d''entrée'!$C$333-1),0))","v":0},{"$f":"IF(N1180<'1 Données d''entrée'!$C$334+1+$B1298,0,IF(N1180<'1 Données d''entrée'!$C$333+'1 Données d''entrée'!$C$334+1+$B1298,$L1286*('1 Données d''entrée'!$C$332*(1+'1 Données d''entrée'!$C$332)^'1 Données d''entrée'!$C$333)/((1+'1 Données d''entrée'!$C$332)^'1 Données d''entrée'!$C$333-1),0))","v":0},{"$f":"IF(O1180<'1 Données d''entrée'!$C$334+1+$B1298,0,IF(O1180<'1 Données d''entrée'!$C$333+'1 Données d''entrée'!$C$334+1+$B1298,$L1286*('1 Données d''entrée'!$C$332*(1+'1 Données d''entrée'!$C$332)^'1 Données d''entrée'!$C$333)/((1+'1 Données d''entrée'!$C$332)^'1 Données d''entrée'!$C$333-1),0))","v":0},{"$f":"IF(P1180<'1 Données d''entrée'!$C$334+1+$B1298,0,IF(P1180<'1 Données d''entrée'!$C$333+'1 Données d''entrée'!$C$334+1+$B1298,$L1286*('1 Données d''entrée'!$C$332*(1+'1 Données d''entrée'!$C$332)^'1 Données d''entrée'!$C$333)/((1+'1 Données d''entrée'!$C$332)^'1 Données d''entrée'!$C$333-1),0))","v":0},{"$f":"IF(Q1180<'1 Données d''entrée'!$C$334+1+$B1298,0,IF(Q1180<'1 Données d''entrée'!$C$333+'1 Données d''entrée'!$C$334+1+$B1298,$L1286*('1 Données d''entrée'!$C$332*(1+'1 Données d''entrée'!$C$332)^'1 Données d''entrée'!$C$333)/((1+'1 Données d''entrée'!$C$332)^'1 Données d''entrée'!$C$333-1),0))","v":0},{"$f":"IF(R1180<'1 Données d''entrée'!$C$334+1+$B1298,0,IF(R1180<'1 Données d''entrée'!$C$333+'1 Données d''entrée'!$C$334+1+$B1298,$L1286*('1 Données d''entrée'!$C$332*(1+'1 Données d''entrée'!$C$332)^'1 Données d''entrée'!$C$333)/((1+'1 Données d''entrée'!$C$332)^'1 Données d''entrée'!$C$333-1),0))","v":0},{"$f":"IF(S1180<'1 Données d''entrée'!$C$334+1+$B1298,0,IF(S1180<'1 Données d''entrée'!$C$333+'1 Données d''entrée'!$C$334+1+$B1298,$L1286*('1 Données d''entrée'!$C$332*(1+'1 Données d''entrée'!$C$332)^'1 Données d''entrée'!$C$333)/((1+'1 Données d''entrée'!$C$332)^'1 Données d''entrée'!$C$333-1),0))","v":0},{"$f":"IF(T1180<'1 Données d''entrée'!$C$334+1+$B1298,0,IF(T1180<'1 Données d''entrée'!$C$333+'1 Données d''entrée'!$C$334+1+$B1298,$L1286*('1 Données d''entrée'!$C$332*(1+'1 Données d''entrée'!$C$332)^'1 Données d''entrée'!$C$333)/((1+'1 Données d''entrée'!$C$332)^'1 Données d''entrée'!$C$333-1),0))","v":0},{"$f":"IF(U1180<'1 Données d''entrée'!$C$334+1+$B1298,0,IF(U1180<'1 Données d''entrée'!$C$333+'1 Données d''entrée'!$C$334+1+$B1298,$L1286*('1 Données d''entrée'!$C$332*(1+'1 Données d''entrée'!$C$332)^'1 Données d''entrée'!$C$333)/((1+'1 Données d''entrée'!$C$332)^'1 Données d''entrée'!$C$333-1),0))","v":0},{"$f":"IF(V1180<'1 Données d''entrée'!$C$334+1+$B1298,0,IF(V1180<'1 Données d''entrée'!$C$333+'1 Données d''entrée'!$C$334+1+$B1298,$L1286*('1 Données d''entrée'!$C$332*(1+'1 Données d''entrée'!$C$332)^'1 Données d''entrée'!$C$333)/((1+'1 Données d''entrée'!$C$332)^'1 Données d''entrée'!$C$333-1),0))","v":0}]
[null,"Période de prêt nouveau"]
["Paiement d'intérêt décroissant inclu dans l'annuité constante",0,0,0,0,0,0,0,0,0,0,0,0,0,0,0,0,0,0,0,0,0]
["Paiement d'intêrets",1,0,{"$f":"IF(D1289>0,$C1286*((('1 Données d''entrée'!$C$332+1)^'1 Données d''entrée'!$C$333)-(1+'1 Données d''entrée'!$C$332)^('6 Financement'!C$54-1-'1 Données d''entrée'!$C$334-$B1300))/((1+'1 Données d''entrée'!$C$332)^'1 Données d''entrée'!$C$333-1)*'1 Données d''entrée'!$C$332,0)","v":0},{"$f":"IF(E1289>0,$C1286*((('1 Données d''entrée'!$C$332+1)^'1 Données d''entrée'!$C$333)-(1+'1 Données d''entrée'!$C$332)^('6 Financement'!D$54-1-'1 Données d''entrée'!$C$334-$B1300))/((1+'1 Données d''entrée'!$C$332)^'1 Données d''entrée'!$C$333-1)*'1 Données d''entrée'!$C$332,0)","v":0},{"$f":"IF(F1289>0,$C1286*((('1 Données d''entrée'!$C$332+1)^'1 Données d''entrée'!$C$333)-(1+'1 Données d''entrée'!$C$332)^('6 Financement'!E$54-1-'1 Données d''entrée'!$C$334-$B1300))/((1+'1 Données d''entrée'!$C$332)^'1 Données d''entrée'!$C$333-1)*'1 Données d''entrée'!$C$332,0)","v":0},{"$f":"IF(G1289>0,$C1286*((('1 Données d''entrée'!$C$332+1)^'1 Données d''entrée'!$C$333)-(1+'1 Données d''entrée'!$C$332)^('6 Financement'!F$54-1-'1 Données d''entrée'!$C$334-$B1300))/((1+'1 Données d''entrée'!$C$332)^'1 Données d''entrée'!$C$333-1)*'1 Données d''entrée'!$C$332,0)","v":0},{"$f":"IF(H1289>0,$C1286*((('1 Données d''entrée'!$C$332+1)^'1 Données d''entrée'!$C$333)-(1+'1 Données d''entrée'!$C$332)^('6 Financement'!G$54-1-'1 Données d''entrée'!$C$334-$B1300))/((1+'1 Données d''entrée'!$C$332)^'1 Données d''entrée'!$C$333-1)*'1 Données d''entrée'!$C$332,0)","v":0},{"$f":"IF(I1289>0,$C1286*((('1 Données d''entrée'!$C$332+1)^'1 Données d''entrée'!$C$333)-(1+'1 Données d''entrée'!$C$332)^('6 Financement'!H$54-1-'1 Données d''entrée'!$C$334-$B1300))/((1+'1 Données d''entrée'!$C$332)^'1 Données d''entrée'!$C$333-1)*'1 Données d''entrée'!$C$332,0)","v":0},{"$f":"IF(J1289>0,$C1286*((('1 Données d''entrée'!$C$332+1)^'1 Données d''entrée'!$C$333)-(1+'1 Données d''entrée'!$C$332)^('6 Financement'!I$54-1-'1 Données d''entrée'!$C$334-$B1300))/((1+'1 Données d''entrée'!$C$332)^'1 Données d''entrée'!$C$333-1)*'1 Données d''entrée'!$C$332,0)","v":0},{"$f":"IF(K1289>0,$C1286*((('1 Données d''entrée'!$C$332+1)^'1 Données d''entrée'!$C$333)-(1+'1 Données d''entrée'!$C$332)^('6 Financement'!J$54-1-'1 Données d''entrée'!$C$334-$B1300))/((1+'1 Données d''entrée'!$C$332)^'1 Données d''entrée'!$C$333-1)*'1 Données d''entrée'!$C$332,0)","v":0},{"$f":"IF(L1289>0,$C1286*((('1 Données d''entrée'!$C$332+1)^'1 Données d''entrée'!$C$333)-(1+'1 Données d''entrée'!$C$332)^('6 Financement'!K$54-1-'1 Données d''entrée'!$C$334-$B1300))/((1+'1 Données d''entrée'!$C$332)^'1 Données d''entrée'!$C$333-1)*'1 Données d''entrée'!$C$332,0)","v":0},{"$f":"IF(M1289>0,$C1286*((('1 Données d''entrée'!$C$332+1)^'1 Données d''entrée'!$C$333)-(1+'1 Données d''entrée'!$C$332)^('6 Financement'!L$54-1-'1 Données d''entrée'!$C$334-$B1300))/((1+'1 Données d''entrée'!$C$332)^'1 Données d''entrée'!$C$333-1)*'1 Données d''entrée'!$C$332,0)","v":0},{"$f":"IF(N1289>0,$C1286*((('1 Données d''entrée'!$C$332+1)^'1 Données d''entrée'!$C$333)-(1+'1 Données d''entrée'!$C$332)^('6 Financement'!M$54-1-'1 Données d''entrée'!$C$334-$B1300))/((1+'1 Données d''entrée'!$C$332)^'1 Données d''entrée'!$C$333-1)*'1 Données d''entrée'!$C$332,0)","v":0},{"$f":"IF(O1289>0,$C1286*((('1 Données d''entrée'!$C$332+1)^'1 Données d''entrée'!$C$333)-(1+'1 Données d''entrée'!$C$332)^('6 Financement'!N$54-1-'1 Données d''entrée'!$C$334-$B1300))/((1+'1 Données d''entrée'!$C$332)^'1 Données d''entrée'!$C$333-1)*'1 Données d''entrée'!$C$332,0)","v":0},{"$f":"IF(P1289>0,$C1286*((('1 Données d''entrée'!$C$332+1)^'1 Données d''entrée'!$C$333)-(1+'1 Données d''entrée'!$C$332)^('6 Financement'!O$54-1-'1 Données d''entrée'!$C$334-$B1300))/((1+'1 Données d''entrée'!$C$332)^'1 Données d''entrée'!$C$333-1)*'1 Données d''entrée'!$C$332,0)","v":0},{"$f":"IF(Q1289>0,$C1286*((('1 Données d''entrée'!$C$332+1)^'1 Données d''entrée'!$C$333)-(1+'1 Données d''entrée'!$C$332)^('6 Financement'!P$54-1-'1 Données d''entrée'!$C$334-$B1300))/((1+'1 Données d''entrée'!$C$332)^'1 Données d''entrée'!$C$333-1)*'1 Données d''entrée'!$C$332,0)","v":0},{"$f":"IF(R1289>0,$C1286*((('1 Données d''entrée'!$C$332+1)^'1 Données d''entrée'!$C$333)-(1+'1 Données d''entrée'!$C$332)^('6 Financement'!Q$54-1-'1 Données d''entrée'!$C$334-$B1300))/((1+'1 Données d''entrée'!$C$332)^'1 Données d''entrée'!$C$333-1)*'1 Données d''entrée'!$C$332,0)","v":0},{"$f":"IF(S1289>0,$C1286*((('1 Données d''entrée'!$C$332+1)^'1 Données d''entrée'!$C$333)-(1+'1 Données d''entrée'!$C$332)^('6 Financement'!R$54-1-'1 Données d''entrée'!$C$334-$B1300))/((1+'1 Données d''entrée'!$C$332)^'1 Données d''entrée'!$C$333-1)*'1 Données d''entrée'!$C$332,0)","v":0},{"$f":"IF(T1289>0,$C1286*((('1 Données d''entrée'!$C$332+1)^'1 Données d''entrée'!$C$333)-(1+'1 Données d''entrée'!$C$332)^('6 Financement'!S$54-1-'1 Données d''entrée'!$C$334-$B1300))/((1+'1 Données d''entrée'!$C$332)^'1 Données d''entrée'!$C$333-1)*'1 Données d''entrée'!$C$332,0)","v":0},{"$f":"IF(U1289>0,$C1286*((('1 Données d''entrée'!$C$332+1)^'1 Données d''entrée'!$C$333)-(1+'1 Données d''entrée'!$C$332)^('6 Financement'!T$54-1-'1 Données d''entrée'!$C$334-$B1300))/((1+'1 Données d''entrée'!$C$332)^'1 Données d''entrée'!$C$333-1)*'1 Données d''entrée'!$C$332,0)","v":0},{"$f":"IF(V1289>0,$C1286*((('1 Données d''entrée'!$C$332+1)^'1 Données d''entrée'!$C$333)-(1+'1 Données d''entrée'!$C$332)^('6 Financement'!U$54-1-'1 Données d''entrée'!$C$334-$B1300))/((1+'1 Données d''entrée'!$C$332)^'1 Données d''entrée'!$C$333-1)*'1 Données d''entrée'!$C$332,0)","v":0}]
["Paiement d'intêrets",2,0,{"$f":"IF(D1290>0,$D1286*((('1 Données d''entrée'!$C$332+1)^'1 Données d''entrée'!$C$333)-(1+'1 Données d''entrée'!$C$332)^('6 Financement'!C$54-1-'1 Données d''entrée'!$C$334-$B1301))/((1+'1 Données d''entrée'!$C$332)^'1 Données d''entrée'!$C$333-1)*'1 Données d''entrée'!$C$332,0)","v":0},{"$f":"IF(E1290>0,$D1286*((('1 Données d''entrée'!$C$332+1)^'1 Données d''entrée'!$C$333)-(1+'1 Données d''entrée'!$C$332)^('6 Financement'!D$54-1-'1 Données d''entrée'!$C$334-$B1301))/((1+'1 Données d''entrée'!$C$332)^'1 Données d''entrée'!$C$333-1)*'1 Données d''entrée'!$C$332,0)","v":0},{"$f":"IF(F1290>0,$D1286*((('1 Données d''entrée'!$C$332+1)^'1 Données d''entrée'!$C$333)-(1+'1 Données d''entrée'!$C$332)^('6 Financement'!E$54-1-'1 Données d''entrée'!$C$334-$B1301))/((1+'1 Données d''entrée'!$C$332)^'1 Données d''entrée'!$C$333-1)*'1 Données d''entrée'!$C$332,0)","v":0},{"$f":"IF(G1290>0,$D1286*((('1 Données d''entrée'!$C$332+1)^'1 Données d''entrée'!$C$333)-(1+'1 Données d''entrée'!$C$332)^('6 Financement'!F$54-1-'1 Données d''entrée'!$C$334-$B1301))/((1+'1 Données d''entrée'!$C$332)^'1 Données d''entrée'!$C$333-1)*'1 Données d''entrée'!$C$332,0)","v":0},{"$f":"IF(H1290>0,$D1286*((('1 Données d''entrée'!$C$332+1)^'1 Données d''entrée'!$C$333)-(1+'1 Données d''entrée'!$C$332)^('6 Financement'!G$54-1-'1 Données d''entrée'!$C$334-$B1301))/((1+'1 Données d''entrée'!$C$332)^'1 Données d''entrée'!$C$333-1)*'1 Données d''entrée'!$C$332,0)","v":0},{"$f":"IF(I1290>0,$D1286*((('1 Données d''entrée'!$C$332+1)^'1 Données d''entrée'!$C$333)-(1+'1 Données d''entrée'!$C$332)^('6 Financement'!H$54-1-'1 Données d''entrée'!$C$334-$B1301))/((1+'1 Données d''entrée'!$C$332)^'1 Données d''entrée'!$C$333-1)*'1 Données d''entrée'!$C$332,0)","v":0},{"$f":"IF(J1290>0,$D1286*((('1 Données d''entrée'!$C$332+1)^'1 Données d''entrée'!$C$333)-(1+'1 Données d''entrée'!$C$332)^('6 Financement'!I$54-1-'1 Données d''entrée'!$C$334-$B1301))/((1+'1 Données d''entrée'!$C$332)^'1 Données d''entrée'!$C$333-1)*'1 Données d''entrée'!$C$332,0)","v":0},{"$f":"IF(K1290>0,$D1286*((('1 Données d''entrée'!$C$332+1)^'1 Données d''entrée'!$C$333)-(1+'1 Données d''entrée'!$C$332)^('6 Financement'!J$54-1-'1 Données d''entrée'!$C$334-$B1301))/((1+'1 Données d''entrée'!$C$332)^'1 Données d''entrée'!$C$333-1)*'1 Données d''entrée'!$C$332,0)","v":0},{"$f":"IF(L1290>0,$D1286*((('1 Données d''entrée'!$C$332+1)^'1 Données d''entrée'!$C$333)-(1+'1 Données d''entrée'!$C$332)^('6 Financement'!K$54-1-'1 Données d''entrée'!$C$334-$B1301))/((1+'1 Données d''entrée'!$C$332)^'1 Données d''entrée'!$C$333-1)*'1 Données d''entrée'!$C$332,0)","v":0},{"$f":"IF(M1290>0,$D1286*((('1 Données d''entrée'!$C$332+1)^'1 Données d''entrée'!$C$333)-(1+'1 Données d''entrée'!$C$332)^('6 Financement'!L$54-1-'1 Données d''entrée'!$C$334-$B1301))/((1+'1 Données d''entrée'!$C$332)^'1 Données d''entrée'!$C$333-1)*'1 Données d''entrée'!$C$332,0)","v":0},{"$f":"IF(N1290>0,$D1286*((('1 Données d''entrée'!$C$332+1)^'1 Données d''entrée'!$C$333)-(1+'1 Données d''entrée'!$C$332)^('6 Financement'!M$54-1-'1 Données d''entrée'!$C$334-$B1301))/((1+'1 Données d''entrée'!$C$332)^'1 Données d''entrée'!$C$333-1)*'1 Données d''entrée'!$C$332,0)","v":0},{"$f":"IF(O1290>0,$D1286*((('1 Données d''entrée'!$C$332+1)^'1 Données d''entrée'!$C$333)-(1+'1 Données d''entrée'!$C$332)^('6 Financement'!N$54-1-'1 Données d''entrée'!$C$334-$B1301))/((1+'1 Données d''entrée'!$C$332)^'1 Données d''entrée'!$C$333-1)*'1 Données d''entrée'!$C$332,0)","v":0},{"$f":"IF(P1290>0,$D1286*((('1 Données d''entrée'!$C$332+1)^'1 Données d''entrée'!$C$333)-(1+'1 Données d''entrée'!$C$332)^('6 Financement'!O$54-1-'1 Données d''entrée'!$C$334-$B1301))/((1+'1 Données d''entrée'!$C$332)^'1 Données d''entrée'!$C$333-1)*'1 Données d''entrée'!$C$332,0)","v":0},{"$f":"IF(Q1290>0,$D1286*((('1 Données d''entrée'!$C$332+1)^'1 Données d''entrée'!$C$333)-(1+'1 Données d''entrée'!$C$332)^('6 Financement'!P$54-1-'1 Données d''entrée'!$C$334-$B1301))/((1+'1 Données d''entrée'!$C$332)^'1 Données d''entrée'!$C$333-1)*'1 Données d''entrée'!$C$332,0)","v":0},{"$f":"IF(R1290>0,$D1286*((('1 Données d''entrée'!$C$332+1)^'1 Données d''entrée'!$C$333)-(1+'1 Données d''entrée'!$C$332)^('6 Financement'!Q$54-1-'1 Données d''entrée'!$C$334-$B1301))/((1+'1 Données d''entrée'!$C$332)^'1 Données d''entrée'!$C$333-1)*'1 Données d''entrée'!$C$332,0)","v":0},{"$f":"IF(S1290>0,$D1286*((('1 Données d''entrée'!$C$332+1)^'1 Données d''entrée'!$C$333)-(1+'1 Données d''entrée'!$C$332)^('6 Financement'!R$54-1-'1 Données d''entrée'!$C$334-$B1301))/((1+'1 Données d''entrée'!$C$332)^'1 Données d''entrée'!$C$333-1)*'1 Données d''entrée'!$C$332,0)","v":0},{"$f":"IF(T1290>0,$D1286*((('1 Données d''entrée'!$C$332+1)^'1 Données d''entrée'!$C$333)-(1+'1 Données d''entrée'!$C$332)^('6 Financement'!S$54-1-'1 Données d''entrée'!$C$334-$B1301))/((1+'1 Données d''entrée'!$C$332)^'1 Données d''entrée'!$C$333-1)*'1 Données d''entrée'!$C$332,0)","v":0},{"$f":"IF(U1290>0,$D1286*((('1 Données d''entrée'!$C$332+1)^'1 Données d''entrée'!$C$333)-(1+'1 Données d''entrée'!$C$332)^('6 Financement'!T$54-1-'1 Données d''entrée'!$C$334-$B1301))/((1+'1 Données d''entrée'!$C$332)^'1 Données d''entrée'!$C$333-1)*'1 Données d''entrée'!$C$332,0)","v":0},{"$f":"IF(V1290>0,$D1286*((('1 Données d''entrée'!$C$332+1)^'1 Données d''entrée'!$C$333)-(1+'1 Données d''entrée'!$C$332)^('6 Financement'!U$54-1-'1 Données d''entrée'!$C$334-$B1301))/((1+'1 Données d''entrée'!$C$332)^'1 Données d''entrée'!$C$333-1)*'1 Données d''entrée'!$C$332,0)","v":0}]
["Paiement d'intêrets",3,0,{"$f":"IF(D1291>0,$E1286*((('1 Données d''entrée'!$C$332+1)^'1 Données d''entrée'!$C$333)-(1+'1 Données d''entrée'!$C$332)^('6 Financement'!C$54-1-'1 Données d''entrée'!$C$334-$B1302))/((1+'1 Données d''entrée'!$C$332)^'1 Données d''entrée'!$C$333-1)*'1 Données d''entrée'!$C$332,0)","v":0},{"$f":"IF(E1291>0,$E1286*((('1 Données d''entrée'!$C$332+1)^'1 Données d''entrée'!$C$333)-(1+'1 Données d''entrée'!$C$332)^('6 Financement'!D$54-1-'1 Données d''entrée'!$C$334-$B1302))/((1+'1 Données d''entrée'!$C$332)^'1 Données d''entrée'!$C$333-1)*'1 Données d''entrée'!$C$332,0)","v":0},{"$f":"IF(F1291>0,$E1286*((('1 Données d''entrée'!$C$332+1)^'1 Données d''entrée'!$C$333)-(1+'1 Données d''entrée'!$C$332)^('6 Financement'!E$54-1-'1 Données d''entrée'!$C$334-$B1302))/((1+'1 Données d''entrée'!$C$332)^'1 Données d''entrée'!$C$333-1)*'1 Données d''entrée'!$C$332,0)","v":0},{"$f":"IF(G1291>0,$E1286*((('1 Données d''entrée'!$C$332+1)^'1 Données d''entrée'!$C$333)-(1+'1 Données d''entrée'!$C$332)^('6 Financement'!F$54-1-'1 Données d''entrée'!$C$334-$B1302))/((1+'1 Données d''entrée'!$C$332)^'1 Données d''entrée'!$C$333-1)*'1 Données d''entrée'!$C$332,0)","v":0},{"$f":"IF(H1291>0,$E1286*((('1 Données d''entrée'!$C$332+1)^'1 Données d''entrée'!$C$333)-(1+'1 Données d''entrée'!$C$332)^('6 Financement'!G$54-1-'1 Données d''entrée'!$C$334-$B1302))/((1+'1 Données d''entrée'!$C$332)^'1 Données d''entrée'!$C$333-1)*'1 Données d''entrée'!$C$332,0)","v":0},{"$f":"IF(I1291>0,$E1286*((('1 Données d''entrée'!$C$332+1)^'1 Données d''entrée'!$C$333)-(1+'1 Données d''entrée'!$C$332)^('6 Financement'!H$54-1-'1 Données d''entrée'!$C$334-$B1302))/((1+'1 Données d''entrée'!$C$332)^'1 Données d''entrée'!$C$333-1)*'1 Données d''entrée'!$C$332,0)","v":0},{"$f":"IF(J1291>0,$E1286*((('1 Données d''entrée'!$C$332+1)^'1 Données d''entrée'!$C$333)-(1+'1 Données d''entrée'!$C$332)^('6 Financement'!I$54-1-'1 Données d''entrée'!$C$334-$B1302))/((1+'1 Données d''entrée'!$C$332)^'1 Données d''entrée'!$C$333-1)*'1 Données d''entrée'!$C$332,0)","v":0},{"$f":"IF(K1291>0,$E1286*((('1 Données d''entrée'!$C$332+1)^'1 Données d''entrée'!$C$333)-(1+'1 Données d''entrée'!$C$332)^('6 Financement'!J$54-1-'1 Données d''entrée'!$C$334-$B1302))/((1+'1 Données d''entrée'!$C$332)^'1 Données d''entrée'!$C$333-1)*'1 Données d''entrée'!$C$332,0)","v":0},{"$f":"IF(L1291>0,$E1286*((('1 Données d''entrée'!$C$332+1)^'1 Données d''entrée'!$C$333)-(1+'1 Données d''entrée'!$C$332)^('6 Financement'!K$54-1-'1 Données d''entrée'!$C$334-$B1302))/((1+'1 Données d''entrée'!$C$332)^'1 Données d''entrée'!$C$333-1)*'1 Données d''entrée'!$C$332,0)","v":0},{"$f":"IF(M1291>0,$E1286*((('1 Données d''entrée'!$C$332+1)^'1 Données d''entrée'!$C$333)-(1+'1 Données d''entrée'!$C$332)^('6 Financement'!L$54-1-'1 Données d''entrée'!$C$334-$B1302))/((1+'1 Données d''entrée'!$C$332)^'1 Données d''entrée'!$C$333-1)*'1 Données d''entrée'!$C$332,0)","v":0},{"$f":"IF(N1291>0,$E1286*((('1 Données d''entrée'!$C$332+1)^'1 Données d''entrée'!$C$333)-(1+'1 Données d''entrée'!$C$332)^('6 Financement'!M$54-1-'1 Données d''entrée'!$C$334-$B1302))/((1+'1 Données d''entrée'!$C$332)^'1 Données d''entrée'!$C$333-1)*'1 Données d''entrée'!$C$332,0)","v":0},{"$f":"IF(O1291>0,$E1286*((('1 Données d''entrée'!$C$332+1)^'1 Données d''entrée'!$C$333)-(1+'1 Données d''entrée'!$C$332)^('6 Financement'!N$54-1-'1 Données d''entrée'!$C$334-$B1302))/((1+'1 Données d''entrée'!$C$332)^'1 Données d''entrée'!$C$333-1)*'1 Données d''entrée'!$C$332,0)","v":0},{"$f":"IF(P1291>0,$E1286*((('1 Données d''entrée'!$C$332+1)^'1 Données d''entrée'!$C$333)-(1+'1 Données d''entrée'!$C$332)^('6 Financement'!O$54-1-'1 Données d''entrée'!$C$334-$B1302))/((1+'1 Données d''entrée'!$C$332)^'1 Données d''entrée'!$C$333-1)*'1 Données d''entrée'!$C$332,0)","v":0},{"$f":"IF(Q1291>0,$E1286*((('1 Données d''entrée'!$C$332+1)^'1 Données d''entrée'!$C$333)-(1+'1 Données d''entrée'!$C$332)^('6 Financement'!P$54-1-'1 Données d''entrée'!$C$334-$B1302))/((1+'1 Données d''entrée'!$C$332)^'1 Données d''entrée'!$C$333-1)*'1 Données d''entrée'!$C$332,0)","v":0},{"$f":"IF(R1291>0,$E1286*((('1 Données d''entrée'!$C$332+1)^'1 Données d''entrée'!$C$333)-(1+'1 Données d''entrée'!$C$332)^('6 Financement'!Q$54-1-'1 Données d''entrée'!$C$334-$B1302))/((1+'1 Données d''entrée'!$C$332)^'1 Données d''entrée'!$C$333-1)*'1 Données d''entrée'!$C$332,0)","v":0},{"$f":"IF(S1291>0,$E1286*((('1 Données d''entrée'!$C$332+1)^'1 Données d''entrée'!$C$333)-(1+'1 Données d''entrée'!$C$332)^('6 Financement'!R$54-1-'1 Données d''entrée'!$C$334-$B1302))/((1+'1 Données d''entrée'!$C$332)^'1 Données d''entrée'!$C$333-1)*'1 Données d''entrée'!$C$332,0)","v":0},{"$f":"IF(T1291>0,$E1286*((('1 Données d''entrée'!$C$332+1)^'1 Données d''entrée'!$C$333)-(1+'1 Données d''entrée'!$C$332)^('6 Financement'!S$54-1-'1 Données d''entrée'!$C$334-$B1302))/((1+'1 Données d''entrée'!$C$332)^'1 Données d''entrée'!$C$333-1)*'1 Données d''entrée'!$C$332,0)","v":0},{"$f":"IF(U1291>0,$E1286*((('1 Données d''entrée'!$C$332+1)^'1 Données d''entrée'!$C$333)-(1+'1 Données d''entrée'!$C$332)^('6 Financement'!T$54-1-'1 Données d''entrée'!$C$334-$B1302))/((1+'1 Données d''entrée'!$C$332)^'1 Données d''entrée'!$C$333-1)*'1 Données d''entrée'!$C$332,0)","v":0},{"$f":"IF(V1291>0,$E1286*((('1 Données d''entrée'!$C$332+1)^'1 Données d''entrée'!$C$333)-(1+'1 Données d''entrée'!$C$332)^('6 Financement'!U$54-1-'1 Données d''entrée'!$C$334-$B1302))/((1+'1 Données d''entrée'!$C$332)^'1 Données d''entrée'!$C$333-1)*'1 Données d''entrée'!$C$332,0)","v":0}]
["Paiement d'intêrets",4,0,{"$f":"IF(D1292>0,$F1286*((('1 Données d''entrée'!$C$332+1)^'1 Données d''entrée'!$C$333)-(1+'1 Données d''entrée'!$C$332)^('6 Financement'!C$54-1-'1 Données d''entrée'!$C$334-$B1303))/((1+'1 Données d''entrée'!$C$332)^'1 Données d''entrée'!$C$333-1)*'1 Données d''entrée'!$C$332,0)","v":0},{"$f":"IF(E1292>0,$F1286*((('1 Données d''entrée'!$C$332+1)^'1 Données d''entrée'!$C$333)-(1+'1 Données d''entrée'!$C$332)^('6 Financement'!D$54-1-'1 Données d''entrée'!$C$334-$B1303))/((1+'1 Données d''entrée'!$C$332)^'1 Données d''entrée'!$C$333-1)*'1 Données d''entrée'!$C$332,0)","v":0},{"$f":"IF(F1292>0,$F1286*((('1 Données d''entrée'!$C$332+1)^'1 Données d''entrée'!$C$333)-(1+'1 Données d''entrée'!$C$332)^('6 Financement'!E$54-1-'1 Données d''entrée'!$C$334-$B1303))/((1+'1 Données d''entrée'!$C$332)^'1 Données d''entrée'!$C$333-1)*'1 Données d''entrée'!$C$332,0)","v":0},{"$f":"IF(G1292>0,$F1286*((('1 Données d''entrée'!$C$332+1)^'1 Données d''entrée'!$C$333)-(1+'1 Données d''entrée'!$C$332)^('6 Financement'!F$54-1-'1 Données d''entrée'!$C$334-$B1303))/((1+'1 Données d''entrée'!$C$332)^'1 Données d''entrée'!$C$333-1)*'1 Données d''entrée'!$C$332,0)","v":0},{"$f":"IF(H1292>0,$F1286*((('1 Données d''entrée'!$C$332+1)^'1 Données d''entrée'!$C$333)-(1+'1 Données d''entrée'!$C$332)^('6 Financement'!G$54-1-'1 Données d''entrée'!$C$334-$B1303))/((1+'1 Données d''entrée'!$C$332)^'1 Données d''entrée'!$C$333-1)*'1 Données d''entrée'!$C$332,0)","v":0},{"$f":"IF(I1292>0,$F1286*((('1 Données d''entrée'!$C$332+1)^'1 Données d''entrée'!$C$333)-(1+'1 Données d''entrée'!$C$332)^('6 Financement'!H$54-1-'1 Données d''entrée'!$C$334-$B1303))/((1+'1 Données d''entrée'!$C$332)^'1 Données d''entrée'!$C$333-1)*'1 Données d''entrée'!$C$332,0)","v":0},{"$f":"IF(J1292>0,$F1286*((('1 Données d''entrée'!$C$332+1)^'1 Données d''entrée'!$C$333)-(1+'1 Données d''entrée'!$C$332)^('6 Financement'!I$54-1-'1 Données d''entrée'!$C$334-$B1303))/((1+'1 Données d''entrée'!$C$332)^'1 Données d''entrée'!$C$333-1)*'1 Données d''entrée'!$C$332,0)","v":0},{"$f":"IF(K1292>0,$F1286*((('1 Données d''entrée'!$C$332+1)^'1 Données d''entrée'!$C$333)-(1+'1 Données d''entrée'!$C$332)^('6 Financement'!J$54-1-'1 Données d''entrée'!$C$334-$B1303))/((1+'1 Données d''entrée'!$C$332)^'1 Données d''entrée'!$C$333-1)*'1 Données d''entrée'!$C$332,0)","v":0},{"$f":"IF(L1292>0,$F1286*((('1 Données d''entrée'!$C$332+1)^'1 Données d''entrée'!$C$333)-(1+'1 Données d''entrée'!$C$332)^('6 Financement'!K$54-1-'1 Données d''entrée'!$C$334-$B1303))/((1+'1 Données d''entrée'!$C$332)^'1 Données d''entrée'!$C$333-1)*'1 Données d''entrée'!$C$332,0)","v":0},{"$f":"IF(M1292>0,$F1286*((('1 Données d''entrée'!$C$332+1)^'1 Données d''entrée'!$C$333)-(1+'1 Données d''entrée'!$C$332)^('6 Financement'!L$54-1-'1 Données d''entrée'!$C$334-$B1303))/((1+'1 Données d''entrée'!$C$332)^'1 Données d''entrée'!$C$333-1)*'1 Données d''entrée'!$C$332,0)","v":0},{"$f":"IF(N1292>0,$F1286*((('1 Données d''entrée'!$C$332+1)^'1 Données d''entrée'!$C$333)-(1+'1 Données d''entrée'!$C$332)^('6 Financement'!M$54-1-'1 Données d''entrée'!$C$334-$B1303))/((1+'1 Données d''entrée'!$C$332)^'1 Données d''entrée'!$C$333-1)*'1 Données d''entrée'!$C$332,0)","v":0},{"$f":"IF(O1292>0,$F1286*((('1 Données d''entrée'!$C$332+1)^'1 Données d''entrée'!$C$333)-(1+'1 Données d''entrée'!$C$332)^('6 Financement'!N$54-1-'1 Données d''entrée'!$C$334-$B1303))/((1+'1 Données d''entrée'!$C$332)^'1 Données d''entrée'!$C$333-1)*'1 Données d''entrée'!$C$332,0)","v":0},{"$f":"IF(P1292>0,$F1286*((('1 Données d''entrée'!$C$332+1)^'1 Données d''entrée'!$C$333)-(1+'1 Données d''entrée'!$C$332)^('6 Financement'!O$54-1-'1 Données d''entrée'!$C$334-$B1303))/((1+'1 Données d''entrée'!$C$332)^'1 Données d''entrée'!$C$333-1)*'1 Données d''entrée'!$C$332,0)","v":0},{"$f":"IF(Q1292>0,$F1286*((('1 Données d''entrée'!$C$332+1)^'1 Données d''entrée'!$C$333)-(1+'1 Données d''entrée'!$C$332)^('6 Financement'!P$54-1-'1 Données d''entrée'!$C$334-$B1303))/((1+'1 Données d''entrée'!$C$332)^'1 Données d''entrée'!$C$333-1)*'1 Données d''entrée'!$C$332,0)","v":0},{"$f":"IF(R1292>0,$F1286*((('1 Données d''entrée'!$C$332+1)^'1 Données d''entrée'!$C$333)-(1+'1 Données d''entrée'!$C$332)^('6 Financement'!Q$54-1-'1 Données d''entrée'!$C$334-$B1303))/((1+'1 Données d''entrée'!$C$332)^'1 Données d''entrée'!$C$333-1)*'1 Données d''entrée'!$C$332,0)","v":0},{"$f":"IF(S1292>0,$F1286*((('1 Données d''entrée'!$C$332+1)^'1 Données d''entrée'!$C$333)-(1+'1 Données d''entrée'!$C$332)^('6 Financement'!R$54-1-'1 Données d''entrée'!$C$334-$B1303))/((1+'1 Données d''entrée'!$C$332)^'1 Données d''entrée'!$C$333-1)*'1 Données d''entrée'!$C$332,0)","v":0},{"$f":"IF(T1292>0,$F1286*((('1 Données d''entrée'!$C$332+1)^'1 Données d''entrée'!$C$333)-(1+'1 Données d''entrée'!$C$332)^('6 Financement'!S$54-1-'1 Données d''entrée'!$C$334-$B1303))/((1+'1 Données d''entrée'!$C$332)^'1 Données d''entrée'!$C$333-1)*'1 Données d''entrée'!$C$332,0)","v":0},{"$f":"IF(U1292>0,$F1286*((('1 Données d''entrée'!$C$332+1)^'1 Données d''entrée'!$C$333)-(1+'1 Données d''entrée'!$C$332)^('6 Financement'!T$54-1-'1 Données d''entrée'!$C$334-$B1303))/((1+'1 Données d''entrée'!$C$332)^'1 Données d''entrée'!$C$333-1)*'1 Données d''entrée'!$C$332,0)","v":0},{"$f":"IF(V1292>0,$F1286*((('1 Données d''entrée'!$C$332+1)^'1 Données d''entrée'!$C$333)-(1+'1 Données d''entrée'!$C$332)^('6 Financement'!U$54-1-'1 Données d''entrée'!$C$334-$B1303))/((1+'1 Données d''entrée'!$C$332)^'1 Données d''entrée'!$C$333-1)*'1 Données d''entrée'!$C$332,0)","v":0}]
["Paiement d'intêrets",5,0,{"$f":"IF(D1293>0,$G1286*((('1 Données d''entrée'!$C$332+1)^'1 Données d''entrée'!$C$333)-(1+'1 Données d''entrée'!$C$332)^('6 Financement'!C$54-1-'1 Données d''entrée'!$C$334-$B1304))/((1+'1 Données d''entrée'!$C$332)^'1 Données d''entrée'!$C$333-1)*'1 Données d''entrée'!$C$332,0)","v":0},{"$f":"IF(E1293>0,$G1286*((('1 Données d''entrée'!$C$332+1)^'1 Données d''entrée'!$C$333)-(1+'1 Données d''entrée'!$C$332)^('6 Financement'!D$54-1-'1 Données d''entrée'!$C$334-$B1304))/((1+'1 Données d''entrée'!$C$332)^'1 Données d''entrée'!$C$333-1)*'1 Données d''entrée'!$C$332,0)","v":0},{"$f":"IF(F1293>0,$G1286*((('1 Données d''entrée'!$C$332+1)^'1 Données d''entrée'!$C$333)-(1+'1 Données d''entrée'!$C$332)^('6 Financement'!E$54-1-'1 Données d''entrée'!$C$334-$B1304))/((1+'1 Données d''entrée'!$C$332)^'1 Données d''entrée'!$C$333-1)*'1 Données d''entrée'!$C$332,0)","v":0},{"$f":"IF(G1293>0,$G1286*((('1 Données d''entrée'!$C$332+1)^'1 Données d''entrée'!$C$333)-(1+'1 Données d''entrée'!$C$332)^('6 Financement'!F$54-1-'1 Données d''entrée'!$C$334-$B1304))/((1+'1 Données d''entrée'!$C$332)^'1 Données d''entrée'!$C$333-1)*'1 Données d''entrée'!$C$332,0)","v":0},{"$f":"IF(H1293>0,$G1286*((('1 Données d''entrée'!$C$332+1)^'1 Données d''entrée'!$C$333)-(1+'1 Données d''entrée'!$C$332)^('6 Financement'!G$54-1-'1 Données d''entrée'!$C$334-$B1304))/((1+'1 Données d''entrée'!$C$332)^'1 Données d''entrée'!$C$333-1)*'1 Données d''entrée'!$C$332,0)","v":0},{"$f":"IF(I1293>0,$G1286*((('1 Données d''entrée'!$C$332+1)^'1 Données d''entrée'!$C$333)-(1+'1 Données d''entrée'!$C$332)^('6 Financement'!H$54-1-'1 Données d''entrée'!$C$334-$B1304))/((1+'1 Données d''entrée'!$C$332)^'1 Données d''entrée'!$C$333-1)*'1 Données d''entrée'!$C$332,0)","v":0},{"$f":"IF(J1293>0,$G1286*((('1 Données d''entrée'!$C$332+1)^'1 Données d''entrée'!$C$333)-(1+'1 Données d''entrée'!$C$332)^('6 Financement'!I$54-1-'1 Données d''entrée'!$C$334-$B1304))/((1+'1 Données d''entrée'!$C$332)^'1 Données d''entrée'!$C$333-1)*'1 Données d''entrée'!$C$332,0)","v":0},{"$f":"IF(K1293>0,$G1286*((('1 Données d''entrée'!$C$332+1)^'1 Données d''entrée'!$C$333)-(1+'1 Données d''entrée'!$C$332)^('6 Financement'!J$54-1-'1 Données d''entrée'!$C$334-$B1304))/((1+'1 Données d''entrée'!$C$332)^'1 Données d''entrée'!$C$333-1)*'1 Données d''entrée'!$C$332,0)","v":0},{"$f":"IF(L1293>0,$G1286*((('1 Données d''entrée'!$C$332+1)^'1 Données d''entrée'!$C$333)-(1+'1 Données d''entrée'!$C$332)^('6 Financement'!K$54-1-'1 Données d''entrée'!$C$334-$B1304))/((1+'1 Données d''entrée'!$C$332)^'1 Données d''entrée'!$C$333-1)*'1 Données d''entrée'!$C$332,0)","v":0},{"$f":"IF(M1293>0,$G1286*((('1 Données d''entrée'!$C$332+1)^'1 Données d''entrée'!$C$333)-(1+'1 Données d''entrée'!$C$332)^('6 Financement'!L$54-1-'1 Données d''entrée'!$C$334-$B1304))/((1+'1 Données d''entrée'!$C$332)^'1 Données d''entrée'!$C$333-1)*'1 Données d''entrée'!$C$332,0)","v":0},{"$f":"IF(N1293>0,$G1286*((('1 Données d''entrée'!$C$332+1)^'1 Données d''entrée'!$C$333)-(1+'1 Données d''entrée'!$C$332)^('6 Financement'!M$54-1-'1 Données d''entrée'!$C$334-$B1304))/((1+'1 Données d''entrée'!$C$332)^'1 Données d''entrée'!$C$333-1)*'1 Données d''entrée'!$C$332,0)","v":0},{"$f":"IF(O1293>0,$G1286*((('1 Données d''entrée'!$C$332+1)^'1 Données d''entrée'!$C$333)-(1+'1 Données d''entrée'!$C$332)^('6 Financement'!N$54-1-'1 Données d''entrée'!$C$334-$B1304))/((1+'1 Données d''entrée'!$C$332)^'1 Données d''entrée'!$C$333-1)*'1 Données d''entrée'!$C$332,0)","v":0},{"$f":"IF(P1293>0,$G1286*((('1 Données d''entrée'!$C$332+1)^'1 Données d''entrée'!$C$333)-(1+'1 Données d''entrée'!$C$332)^('6 Financement'!O$54-1-'1 Données d''entrée'!$C$334-$B1304))/((1+'1 Données d''entrée'!$C$332)^'1 Données d''entrée'!$C$333-1)*'1 Données d''entrée'!$C$332,0)","v":0},{"$f":"IF(Q1293>0,$G1286*((('1 Données d''entrée'!$C$332+1)^'1 Données d''entrée'!$C$333)-(1+'1 Données d''entrée'!$C$332)^('6 Financement'!P$54-1-'1 Données d''entrée'!$C$334-$B1304))/((1+'1 Données d''entrée'!$C$332)^'1 Données d''entrée'!$C$333-1)*'1 Données d''entrée'!$C$332,0)","v":0},{"$f":"IF(R1293>0,$G1286*((('1 Données d''entrée'!$C$332+1)^'1 Données d''entrée'!$C$333)-(1+'1 Données d''entrée'!$C$332)^('6 Financement'!Q$54-1-'1 Données d''entrée'!$C$334-$B1304))/((1+'1 Données d''entrée'!$C$332)^'1 Données d''entrée'!$C$333-1)*'1 Données d''entrée'!$C$332,0)","v":0},{"$f":"IF(S1293>0,$G1286*((('1 Données d''entrée'!$C$332+1)^'1 Données d''entrée'!$C$333)-(1+'1 Données d''entrée'!$C$332)^('6 Financement'!R$54-1-'1 Données d''entrée'!$C$334-$B1304))/((1+'1 Données d''entrée'!$C$332)^'1 Données d''entrée'!$C$333-1)*'1 Données d''entrée'!$C$332,0)","v":0},{"$f":"IF(T1293>0,$G1286*((('1 Données d''entrée'!$C$332+1)^'1 Données d''entrée'!$C$333)-(1+'1 Données d''entrée'!$C$332)^('6 Financement'!S$54-1-'1 Données d''entrée'!$C$334-$B1304))/((1+'1 Données d''entrée'!$C$332)^'1 Données d''entrée'!$C$333-1)*'1 Données d''entrée'!$C$332,0)","v":0},{"$f":"IF(U1293>0,$G1286*((('1 Données d''entrée'!$C$332+1)^'1 Données d''entrée'!$C$333)-(1+'1 Données d''entrée'!$C$332)^('6 Financement'!T$54-1-'1 Données d''entrée'!$C$334-$B1304))/((1+'1 Données d''entrée'!$C$332)^'1 Données d''entrée'!$C$333-1)*'1 Données d''entrée'!$C$332,0)","v":0},{"$f":"IF(V1293>0,$G1286*((('1 Données d''entrée'!$C$332+1)^'1 Données d''entrée'!$C$333)-(1+'1 Données d''entrée'!$C$332)^('6 Financement'!U$54-1-'1 Données d''entrée'!$C$334-$B1304))/((1+'1 Données d''entrée'!$C$332)^'1 Données d''entrée'!$C$333-1)*'1 Données d''entrée'!$C$332,0)","v":0}]
["Paiement d'intêrets",6,0,{"$f":"IF(D1294>0,$H1286*((('1 Données d''entrée'!$C$332+1)^'1 Données d''entrée'!$C$333)-(1+'1 Données d''entrée'!$C$332)^('6 Financement'!C$54-1-'1 Données d''entrée'!$C$334-$B1305))/((1+'1 Données d''entrée'!$C$332)^'1 Données d''entrée'!$C$333-1)*'1 Données d''entrée'!$C$332,0)","v":0},{"$f":"IF(E1294>0,$H1286*((('1 Données d''entrée'!$C$332+1)^'1 Données d''entrée'!$C$333)-(1+'1 Données d''entrée'!$C$332)^('6 Financement'!D$54-1-'1 Données d''entrée'!$C$334-$B1305))/((1+'1 Données d''entrée'!$C$332)^'1 Données d''entrée'!$C$333-1)*'1 Données d''entrée'!$C$332,0)","v":0},{"$f":"IF(F1294>0,$H1286*((('1 Données d''entrée'!$C$332+1)^'1 Données d''entrée'!$C$333)-(1+'1 Données d''entrée'!$C$332)^('6 Financement'!E$54-1-'1 Données d''entrée'!$C$334-$B1305))/((1+'1 Données d''entrée'!$C$332)^'1 Données d''entrée'!$C$333-1)*'1 Données d''entrée'!$C$332,0)","v":0},{"$f":"IF(G1294>0,$H1286*((('1 Données d''entrée'!$C$332+1)^'1 Données d''entrée'!$C$333)-(1+'1 Données d''entrée'!$C$332)^('6 Financement'!F$54-1-'1 Données d''entrée'!$C$334-$B1305))/((1+'1 Données d''entrée'!$C$332)^'1 Données d''entrée'!$C$333-1)*'1 Données d''entrée'!$C$332,0)","v":0},{"$f":"IF(H1294>0,$H1286*((('1 Données d''entrée'!$C$332+1)^'1 Données d''entrée'!$C$333)-(1+'1 Données d''entrée'!$C$332)^('6 Financement'!G$54-1-'1 Données d''entrée'!$C$334-$B1305))/((1+'1 Données d''entrée'!$C$332)^'1 Données d''entrée'!$C$333-1)*'1 Données d''entrée'!$C$332,0)","v":0},{"$f":"IF(I1294>0,$H1286*((('1 Données d''entrée'!$C$332+1)^'1 Données d''entrée'!$C$333)-(1+'1 Données d''entrée'!$C$332)^('6 Financement'!H$54-1-'1 Données d''entrée'!$C$334-$B1305))/((1+'1 Données d''entrée'!$C$332)^'1 Données d''entrée'!$C$333-1)*'1 Données d''entrée'!$C$332,0)","v":0},{"$f":"IF(J1294>0,$H1286*((('1 Données d''entrée'!$C$332+1)^'1 Données d''entrée'!$C$333)-(1+'1 Données d''entrée'!$C$332)^('6 Financement'!I$54-1-'1 Données d''entrée'!$C$334-$B1305))/((1+'1 Données d''entrée'!$C$332)^'1 Données d''entrée'!$C$333-1)*'1 Données d''entrée'!$C$332,0)","v":0},{"$f":"IF(K1294>0,$H1286*((('1 Données d''entrée'!$C$332+1)^'1 Données d''entrée'!$C$333)-(1+'1 Données d''entrée'!$C$332)^('6 Financement'!J$54-1-'1 Données d''entrée'!$C$334-$B1305))/((1+'1 Données d''entrée'!$C$332)^'1 Données d''entrée'!$C$333-1)*'1 Données d''entrée'!$C$332,0)","v":0},{"$f":"IF(L1294>0,$H1286*((('1 Données d''entrée'!$C$332+1)^'1 Données d''entrée'!$C$333)-(1+'1 Données d''entrée'!$C$332)^('6 Financement'!K$54-1-'1 Données d''entrée'!$C$334-$B1305))/((1+'1 Données d''entrée'!$C$332)^'1 Données d''entrée'!$C$333-1)*'1 Données d''entrée'!$C$332,0)","v":0},{"$f":"IF(M1294>0,$H1286*((('1 Données d''entrée'!$C$332+1)^'1 Données d''entrée'!$C$333)-(1+'1 Données d''entrée'!$C$332)^('6 Financement'!L$54-1-'1 Données d''entrée'!$C$334-$B1305))/((1+'1 Données d''entrée'!$C$332)^'1 Données d''entrée'!$C$333-1)*'1 Données d''entrée'!$C$332,0)","v":0},{"$f":"IF(N1294>0,$H1286*((('1 Données d''entrée'!$C$332+1)^'1 Données d''entrée'!$C$333)-(1+'1 Données d''entrée'!$C$332)^('6 Financement'!M$54-1-'1 Données d''entrée'!$C$334-$B1305))/((1+'1 Données d''entrée'!$C$332)^'1 Données d''entrée'!$C$333-1)*'1 Données d''entrée'!$C$332,0)","v":0},{"$f":"IF(O1294>0,$H1286*((('1 Données d''entrée'!$C$332+1)^'1 Données d''entrée'!$C$333)-(1+'1 Données d''entrée'!$C$332)^('6 Financement'!N$54-1-'1 Données d''entrée'!$C$334-$B1305))/((1+'1 Données d''entrée'!$C$332)^'1 Données d''entrée'!$C$333-1)*'1 Données d''entrée'!$C$332,0)","v":0},{"$f":"IF(P1294>0,$H1286*((('1 Données d''entrée'!$C$332+1)^'1 Données d''entrée'!$C$333)-(1+'1 Données d''entrée'!$C$332)^('6 Financement'!O$54-1-'1 Données d''entrée'!$C$334-$B1305))/((1+'1 Données d''entrée'!$C$332)^'1 Données d''entrée'!$C$333-1)*'1 Données d''entrée'!$C$332,0)","v":0},{"$f":"IF(Q1294>0,$H1286*((('1 Données d''entrée'!$C$332+1)^'1 Données d''entrée'!$C$333)-(1+'1 Données d''entrée'!$C$332)^('6 Financement'!P$54-1-'1 Données d''entrée'!$C$334-$B1305))/((1+'1 Données d''entrée'!$C$332)^'1 Données d''entrée'!$C$333-1)*'1 Données d''entrée'!$C$332,0)","v":0},{"$f":"IF(R1294>0,$H1286*((('1 Données d''entrée'!$C$332+1)^'1 Données d''entrée'!$C$333)-(1+'1 Données d''entrée'!$C$332)^('6 Financement'!Q$54-1-'1 Données d''entrée'!$C$334-$B1305))/((1+'1 Données d''entrée'!$C$332)^'1 Données d''entrée'!$C$333-1)*'1 Données d''entrée'!$C$332,0)","v":0},{"$f":"IF(S1294>0,$H1286*((('1 Données d''entrée'!$C$332+1)^'1 Données d''entrée'!$C$333)-(1+'1 Données d''entrée'!$C$332)^('6 Financement'!R$54-1-'1 Données d''entrée'!$C$334-$B1305))/((1+'1 Données d''entrée'!$C$332)^'1 Données d''entrée'!$C$333-1)*'1 Données d''entrée'!$C$332,0)","v":0},{"$f":"IF(T1294>0,$H1286*((('1 Données d''entrée'!$C$332+1)^'1 Données d''entrée'!$C$333)-(1+'1 Données d''entrée'!$C$332)^('6 Financement'!S$54-1-'1 Données d''entrée'!$C$334-$B1305))/((1+'1 Données d''entrée'!$C$332)^'1 Données d''entrée'!$C$333-1)*'1 Données d''entrée'!$C$332,0)","v":0},{"$f":"IF(U1294>0,$H1286*((('1 Données d''entrée'!$C$332+1)^'1 Données d''entrée'!$C$333)-(1+'1 Données d''entrée'!$C$332)^('6 Financement'!T$54-1-'1 Données d''entrée'!$C$334-$B1305))/((1+'1 Données d''entrée'!$C$332)^'1 Données d''entrée'!$C$333-1)*'1 Données d''entrée'!$C$332,0)","v":0},{"$f":"IF(V1294>0,$H1286*((('1 Données d''entrée'!$C$332+1)^'1 Données d''entrée'!$C$333)-(1+'1 Données d''entrée'!$C$332)^('6 Financement'!U$54-1-'1 Données d''entrée'!$C$334-$B1305))/((1+'1 Données d''entrée'!$C$332)^'1 Données d''entrée'!$C$333-1)*'1 Données d''entrée'!$C$332,0)","v":0}]
["Paiement d'intêrets",7,0,{"$f":"IF(D1295>0,$I1286*((('1 Données d''entrée'!$C$332+1)^'1 Données d''entrée'!$C$333)-(1+'1 Données d''entrée'!$C$332)^('6 Financement'!C$54-1-'1 Données d''entrée'!$C$334-$B1306))/((1+'1 Données d''entrée'!$C$332)^'1 Données d''entrée'!$C$333-1)*'1 Données d''entrée'!$C$332,0)","v":0},{"$f":"IF(E1295>0,$I1286*((('1 Données d''entrée'!$C$332+1)^'1 Données d''entrée'!$C$333)-(1+'1 Données d''entrée'!$C$332)^('6 Financement'!D$54-1-'1 Données d''entrée'!$C$334-$B1306))/((1+'1 Données d''entrée'!$C$332)^'1 Données d''entrée'!$C$333-1)*'1 Données d''entrée'!$C$332,0)","v":0},{"$f":"IF(F1295>0,$I1286*((('1 Données d''entrée'!$C$332+1)^'1 Données d''entrée'!$C$333)-(1+'1 Données d''entrée'!$C$332)^('6 Financement'!E$54-1-'1 Données d''entrée'!$C$334-$B1306))/((1+'1 Données d''entrée'!$C$332)^'1 Données d''entrée'!$C$333-1)*'1 Données d''entrée'!$C$332,0)","v":0},{"$f":"IF(G1295>0,$I1286*((('1 Données d''entrée'!$C$332+1)^'1 Données d''entrée'!$C$333)-(1+'1 Données d''entrée'!$C$332)^('6 Financement'!F$54-1-'1 Données d''entrée'!$C$334-$B1306))/((1+'1 Données d''entrée'!$C$332)^'1 Données d''entrée'!$C$333-1)*'1 Données d''entrée'!$C$332,0)","v":0},{"$f":"IF(H1295>0,$I1286*((('1 Données d''entrée'!$C$332+1)^'1 Données d''entrée'!$C$333)-(1+'1 Données d''entrée'!$C$332)^('6 Financement'!G$54-1-'1 Données d''entrée'!$C$334-$B1306))/((1+'1 Données d''entrée'!$C$332)^'1 Données d''entrée'!$C$333-1)*'1 Données d''entrée'!$C$332,0)","v":0},{"$f":"IF(I1295>0,$I1286*((('1 Données d''entrée'!$C$332+1)^'1 Données d''entrée'!$C$333)-(1+'1 Données d''entrée'!$C$332)^('6 Financement'!H$54-1-'1 Données d''entrée'!$C$334-$B1306))/((1+'1 Données d''entrée'!$C$332)^'1 Données d''entrée'!$C$333-1)*'1 Données d''entrée'!$C$332,0)","v":0},{"$f":"IF(J1295>0,$I1286*((('1 Données d''entrée'!$C$332+1)^'1 Données d''entrée'!$C$333)-(1+'1 Données d''entrée'!$C$332)^('6 Financement'!I$54-1-'1 Données d''entrée'!$C$334-$B1306))/((1+'1 Données d''entrée'!$C$332)^'1 Données d''entrée'!$C$333-1)*'1 Données d''entrée'!$C$332,0)","v":0},{"$f":"IF(K1295>0,$I1286*((('1 Données d''entrée'!$C$332+1)^'1 Données d''entrée'!$C$333)-(1+'1 Données d''entrée'!$C$332)^('6 Financement'!J$54-1-'1 Données d''entrée'!$C$334-$B1306))/((1+'1 Données d''entrée'!$C$332)^'1 Données d''entrée'!$C$333-1)*'1 Données d''entrée'!$C$332,0)","v":0},{"$f":"IF(L1295>0,$I1286*((('1 Données d''entrée'!$C$332+1)^'1 Données d''entrée'!$C$333)-(1+'1 Données d''entrée'!$C$332)^('6 Financement'!K$54-1-'1 Données d''entrée'!$C$334-$B1306))/((1+'1 Données d''entrée'!$C$332)^'1 Données d''entrée'!$C$333-1)*'1 Données d''entrée'!$C$332,0)","v":0},{"$f":"IF(M1295>0,$I1286*((('1 Données d''entrée'!$C$332+1)^'1 Données d''entrée'!$C$333)-(1+'1 Données d''entrée'!$C$332)^('6 Financement'!L$54-1-'1 Données d''entrée'!$C$334-$B1306))/((1+'1 Données d''entrée'!$C$332)^'1 Données d''entrée'!$C$333-1)*'1 Données d''entrée'!$C$332,0)","v":0},{"$f":"IF(N1295>0,$I1286*((('1 Données d''entrée'!$C$332+1)^'1 Données d''entrée'!$C$333)-(1+'1 Données d''entrée'!$C$332)^('6 Financement'!M$54-1-'1 Données d''entrée'!$C$334-$B1306))/((1+'1 Données d''entrée'!$C$332)^'1 Données d''entrée'!$C$333-1)*'1 Données d''entrée'!$C$332,0)","v":0},{"$f":"IF(O1295>0,$I1286*((('1 Données d''entrée'!$C$332+1)^'1 Données d''entrée'!$C$333)-(1+'1 Données d''entrée'!$C$332)^('6 Financement'!N$54-1-'1 Données d''entrée'!$C$334-$B1306))/((1+'1 Données d''entrée'!$C$332)^'1 Données d''entrée'!$C$333-1)*'1 Données d''entrée'!$C$332,0)","v":0},{"$f":"IF(P1295>0,$I1286*((('1 Données d''entrée'!$C$332+1)^'1 Données d''entrée'!$C$333)-(1+'1 Données d''entrée'!$C$332)^('6 Financement'!O$54-1-'1 Données d''entrée'!$C$334-$B1306))/((1+'1 Données d''entrée'!$C$332)^'1 Données d''entrée'!$C$333-1)*'1 Données d''entrée'!$C$332,0)","v":0},{"$f":"IF(Q1295>0,$I1286*((('1 Données d''entrée'!$C$332+1)^'1 Données d''entrée'!$C$333)-(1+'1 Données d''entrée'!$C$332)^('6 Financement'!P$54-1-'1 Données d''entrée'!$C$334-$B1306))/((1+'1 Données d''entrée'!$C$332)^'1 Données d''entrée'!$C$333-1)*'1 Données d''entrée'!$C$332,0)","v":0},{"$f":"IF(R1295>0,$I1286*((('1 Données d''entrée'!$C$332+1)^'1 Données d''entrée'!$C$333)-(1+'1 Données d''entrée'!$C$332)^('6 Financement'!Q$54-1-'1 Données d''entrée'!$C$334-$B1306))/((1+'1 Données d''entrée'!$C$332)^'1 Données d''entrée'!$C$333-1)*'1 Données d''entrée'!$C$332,0)","v":0},{"$f":"IF(S1295>0,$I1286*((('1 Données d''entrée'!$C$332+1)^'1 Données d''entrée'!$C$333)-(1+'1 Données d''entrée'!$C$332)^('6 Financement'!R$54-1-'1 Données d''entrée'!$C$334-$B1306))/((1+'1 Données d''entrée'!$C$332)^'1 Données d''entrée'!$C$333-1)*'1 Données d''entrée'!$C$332,0)","v":0},{"$f":"IF(T1295>0,$I1286*((('1 Données d''entrée'!$C$332+1)^'1 Données d''entrée'!$C$333)-(1+'1 Données d''entrée'!$C$332)^('6 Financement'!S$54-1-'1 Données d''entrée'!$C$334-$B1306))/((1+'1 Données d''entrée'!$C$332)^'1 Données d''entrée'!$C$333-1)*'1 Données d''entrée'!$C$332,0)","v":0},{"$f":"IF(U1295>0,$I1286*((('1 Données d''entrée'!$C$332+1)^'1 Données d''entrée'!$C$333)-(1+'1 Données d''entrée'!$C$332)^('6 Financement'!T$54-1-'1 Données d''entrée'!$C$334-$B1306))/((1+'1 Données d''entrée'!$C$332)^'1 Données d''entrée'!$C$333-1)*'1 Données d''entrée'!$C$332,0)","v":0},{"$f":"IF(V1295>0,$I1286*((('1 Données d''entrée'!$C$332+1)^'1 Données d''entrée'!$C$333)-(1+'1 Données d''entrée'!$C$332)^('6 Financement'!U$54-1-'1 Données d''entrée'!$C$334-$B1306))/((1+'1 Données d''entrée'!$C$332)^'1 Données d''entrée'!$C$333-1)*'1 Données d''entrée'!$C$332,0)","v":0}]
["Paiement d'intêrets",8,0,{"$f":"IF(D1296>0,$J1286*((('1 Données d''entrée'!$C$332+1)^'1 Données d''entrée'!$C$333)-(1+'1 Données d''entrée'!$C$332)^('6 Financement'!C$54-1-'1 Données d''entrée'!$C$334-$B1307))/((1+'1 Données d''entrée'!$C$332)^'1 Données d''entrée'!$C$333-1)*'1 Données d''entrée'!$C$332,0)","v":0},{"$f":"IF(E1296>0,$J1286*((('1 Données d''entrée'!$C$332+1)^'1 Données d''entrée'!$C$333)-(1+'1 Données d''entrée'!$C$332)^('6 Financement'!D$54-1-'1 Données d''entrée'!$C$334-$B1307))/((1+'1 Données d''entrée'!$C$332)^'1 Données d''entrée'!$C$333-1)*'1 Données d''entrée'!$C$332,0)","v":0},{"$f":"IF(F1296>0,$J1286*((('1 Données d''entrée'!$C$332+1)^'1 Données d''entrée'!$C$333)-(1+'1 Données d''entrée'!$C$332)^('6 Financement'!E$54-1-'1 Données d''entrée'!$C$334-$B1307))/((1+'1 Données d''entrée'!$C$332)^'1 Données d''entrée'!$C$333-1)*'1 Données d''entrée'!$C$332,0)","v":0},{"$f":"IF(G1296>0,$J1286*((('1 Données d''entrée'!$C$332+1)^'1 Données d''entrée'!$C$333)-(1+'1 Données d''entrée'!$C$332)^('6 Financement'!F$54-1-'1 Données d''entrée'!$C$334-$B1307))/((1+'1 Données d''entrée'!$C$332)^'1 Données d''entrée'!$C$333-1)*'1 Données d''entrée'!$C$332,0)","v":0},{"$f":"IF(H1296>0,$J1286*((('1 Données d''entrée'!$C$332+1)^'1 Données d''entrée'!$C$333)-(1+'1 Données d''entrée'!$C$332)^('6 Financement'!G$54-1-'1 Données d''entrée'!$C$334-$B1307))/((1+'1 Données d''entrée'!$C$332)^'1 Données d''entrée'!$C$333-1)*'1 Données d''entrée'!$C$332,0)","v":0},{"$f":"IF(I1296>0,$J1286*((('1 Données d''entrée'!$C$332+1)^'1 Données d''entrée'!$C$333)-(1+'1 Données d''entrée'!$C$332)^('6 Financement'!H$54-1-'1 Données d''entrée'!$C$334-$B1307))/((1+'1 Données d''entrée'!$C$332)^'1 Données d''entrée'!$C$333-1)*'1 Données d''entrée'!$C$332,0)","v":0},{"$f":"IF(J1296>0,$J1286*((('1 Données d''entrée'!$C$332+1)^'1 Données d''entrée'!$C$333)-(1+'1 Données d''entrée'!$C$332)^('6 Financement'!I$54-1-'1 Données d''entrée'!$C$334-$B1307))/((1+'1 Données d''entrée'!$C$332)^'1 Données d''entrée'!$C$333-1)*'1 Données d''entrée'!$C$332,0)","v":0},{"$f":"IF(K1296>0,$J1286*((('1 Données d''entrée'!$C$332+1)^'1 Données d''entrée'!$C$333)-(1+'1 Données d''entrée'!$C$332)^('6 Financement'!J$54-1-'1 Données d''entrée'!$C$334-$B1307))/((1+'1 Données d''entrée'!$C$332)^'1 Données d''entrée'!$C$333-1)*'1 Données d''entrée'!$C$332,0)","v":0},{"$f":"IF(L1296>0,$J1286*((('1 Données d''entrée'!$C$332+1)^'1 Données d''entrée'!$C$333)-(1+'1 Données d''entrée'!$C$332)^('6 Financement'!K$54-1-'1 Données d''entrée'!$C$334-$B1307))/((1+'1 Données d''entrée'!$C$332)^'1 Données d''entrée'!$C$333-1)*'1 Données d''entrée'!$C$332,0)","v":0},{"$f":"IF(M1296>0,$J1286*((('1 Données d''entrée'!$C$332+1)^'1 Données d''entrée'!$C$333)-(1+'1 Données d''entrée'!$C$332)^('6 Financement'!L$54-1-'1 Données d''entrée'!$C$334-$B1307))/((1+'1 Données d''entrée'!$C$332)^'1 Données d''entrée'!$C$333-1)*'1 Données d''entrée'!$C$332,0)","v":0},{"$f":"IF(N1296>0,$J1286*((('1 Données d''entrée'!$C$332+1)^'1 Données d''entrée'!$C$333)-(1+'1 Données d''entrée'!$C$332)^('6 Financement'!M$54-1-'1 Données d''entrée'!$C$334-$B1307))/((1+'1 Données d''entrée'!$C$332)^'1 Données d''entrée'!$C$333-1)*'1 Données d''entrée'!$C$332,0)","v":0},{"$f":"IF(O1296>0,$J1286*((('1 Données d''entrée'!$C$332+1)^'1 Données d''entrée'!$C$333)-(1+'1 Données d''entrée'!$C$332)^('6 Financement'!N$54-1-'1 Données d''entrée'!$C$334-$B1307))/((1+'1 Données d''entrée'!$C$332)^'1 Données d''entrée'!$C$333-1)*'1 Données d''entrée'!$C$332,0)","v":0},{"$f":"IF(P1296>0,$J1286*((('1 Données d''entrée'!$C$332+1)^'1 Données d''entrée'!$C$333)-(1+'1 Données d''entrée'!$C$332)^('6 Financement'!O$54-1-'1 Données d''entrée'!$C$334-$B1307))/((1+'1 Données d''entrée'!$C$332)^'1 Données d''entrée'!$C$333-1)*'1 Données d''entrée'!$C$332,0)","v":0},{"$f":"IF(Q1296>0,$J1286*((('1 Données d''entrée'!$C$332+1)^'1 Données d''entrée'!$C$333)-(1+'1 Données d''entrée'!$C$332)^('6 Financement'!P$54-1-'1 Données d''entrée'!$C$334-$B1307))/((1+'1 Données d''entrée'!$C$332)^'1 Données d''entrée'!$C$333-1)*'1 Données d''entrée'!$C$332,0)","v":0},{"$f":"IF(R1296>0,$J1286*((('1 Données d''entrée'!$C$332+1)^'1 Données d''entrée'!$C$333)-(1+'1 Données d''entrée'!$C$332)^('6 Financement'!Q$54-1-'1 Données d''entrée'!$C$334-$B1307))/((1+'1 Données d''entrée'!$C$332)^'1 Données d''entrée'!$C$333-1)*'1 Données d''entrée'!$C$332,0)","v":0},{"$f":"IF(S1296>0,$J1286*((('1 Données d''entrée'!$C$332+1)^'1 Données d''entrée'!$C$333)-(1+'1 Données d''entrée'!$C$332)^('6 Financement'!R$54-1-'1 Données d''entrée'!$C$334-$B1307))/((1+'1 Données d''entrée'!$C$332)^'1 Données d''entrée'!$C$333-1)*'1 Données d''entrée'!$C$332,0)","v":0},{"$f":"IF(T1296>0,$J1286*((('1 Données d''entrée'!$C$332+1)^'1 Données d''entrée'!$C$333)-(1+'1 Données d''entrée'!$C$332)^('6 Financement'!S$54-1-'1 Données d''entrée'!$C$334-$B1307))/((1+'1 Données d''entrée'!$C$332)^'1 Données d''entrée'!$C$333-1)*'1 Données d''entrée'!$C$332,0)","v":0},{"$f":"IF(U1296>0,$J1286*((('1 Données d''entrée'!$C$332+1)^'1 Données d''entrée'!$C$333)-(1+'1 Données d''entrée'!$C$332)^('6 Financement'!T$54-1-'1 Données d''entrée'!$C$334-$B1307))/((1+'1 Données d''entrée'!$C$332)^'1 Données d''entrée'!$C$333-1)*'1 Données d''entrée'!$C$332,0)","v":0},{"$f":"IF(V1296>0,$J1286*((('1 Données d''entrée'!$C$332+1)^'1 Données d''entrée'!$C$333)-(1+'1 Données d''entrée'!$C$332)^('6 Financement'!U$54-1-'1 Données d''entrée'!$C$334-$B1307))/((1+'1 Données d''entrée'!$C$332)^'1 Données d''entrée'!$C$333-1)*'1 Données d''entrée'!$C$332,0)","v":0}]
["Paiement d'intêrets",9,0,{"$f":"IF(D1297>0,$K1286*((('1 Données d''entrée'!$C$332+1)^'1 Données d''entrée'!$C$333)-(1+'1 Données d''entrée'!$C$332)^('6 Financement'!C$54-1-'1 Données d''entrée'!$C$334-$B1308))/((1+'1 Données d''entrée'!$C$332)^'1 Données d''entrée'!$C$333-1)*'1 Données d''entrée'!$C$332,0)","v":0},{"$f":"IF(E1297>0,$K1286*((('1 Données d''entrée'!$C$332+1)^'1 Données d''entrée'!$C$333)-(1+'1 Données d''entrée'!$C$332)^('6 Financement'!D$54-1-'1 Données d''entrée'!$C$334-$B1308))/((1+'1 Données d''entrée'!$C$332)^'1 Données d''entrée'!$C$333-1)*'1 Données d''entrée'!$C$332,0)","v":0},{"$f":"IF(F1297>0,$K1286*((('1 Données d''entrée'!$C$332+1)^'1 Données d''entrée'!$C$333)-(1+'1 Données d''entrée'!$C$332)^('6 Financement'!E$54-1-'1 Données d''entrée'!$C$334-$B1308))/((1+'1 Données d''entrée'!$C$332)^'1 Données d''entrée'!$C$333-1)*'1 Données d''entrée'!$C$332,0)","v":0},{"$f":"IF(G1297>0,$K1286*((('1 Données d''entrée'!$C$332+1)^'1 Données d''entrée'!$C$333)-(1+'1 Données d''entrée'!$C$332)^('6 Financement'!F$54-1-'1 Données d''entrée'!$C$334-$B1308))/((1+'1 Données d''entrée'!$C$332)^'1 Données d''entrée'!$C$333-1)*'1 Données d''entrée'!$C$332,0)","v":0},{"$f":"IF(H1297>0,$K1286*((('1 Données d''entrée'!$C$332+1)^'1 Données d''entrée'!$C$333)-(1+'1 Données d''entrée'!$C$332)^('6 Financement'!G$54-1-'1 Données d''entrée'!$C$334-$B1308))/((1+'1 Données d''entrée'!$C$332)^'1 Données d''entrée'!$C$333-1)*'1 Données d''entrée'!$C$332,0)","v":0},{"$f":"IF(I1297>0,$K1286*((('1 Données d''entrée'!$C$332+1)^'1 Données d''entrée'!$C$333)-(1+'1 Données d''entrée'!$C$332)^('6 Financement'!H$54-1-'1 Données d''entrée'!$C$334-$B1308))/((1+'1 Données d''entrée'!$C$332)^'1 Données d''entrée'!$C$333-1)*'1 Données d''entrée'!$C$332,0)","v":0},{"$f":"IF(J1297>0,$K1286*((('1 Données d''entrée'!$C$332+1)^'1 Données d''entrée'!$C$333)-(1+'1 Données d''entrée'!$C$332)^('6 Financement'!I$54-1-'1 Données d''entrée'!$C$334-$B1308))/((1+'1 Données d''entrée'!$C$332)^'1 Données d''entrée'!$C$333-1)*'1 Données d''entrée'!$C$332,0)","v":0},{"$f":"IF(K1297>0,$K1286*((('1 Données d''entrée'!$C$332+1)^'1 Données d''entrée'!$C$333)-(1+'1 Données d''entrée'!$C$332)^('6 Financement'!J$54-1-'1 Données d''entrée'!$C$334-$B1308))/((1+'1 Données d''entrée'!$C$332)^'1 Données d''entrée'!$C$333-1)*'1 Données d''entrée'!$C$332,0)","v":0},{"$f":"IF(L1297>0,$K1286*((('1 Données d''entrée'!$C$332+1)^'1 Données d''entrée'!$C$333)-(1+'1 Données d''entrée'!$C$332)^('6 Financement'!K$54-1-'1 Données d''entrée'!$C$334-$B1308))/((1+'1 Données d''entrée'!$C$332)^'1 Données d''entrée'!$C$333-1)*'1 Données d''entrée'!$C$332,0)","v":0},{"$f":"IF(M1297>0,$K1286*((('1 Données d''entrée'!$C$332+1)^'1 Données d''entrée'!$C$333)-(1+'1 Données d''entrée'!$C$332)^('6 Financement'!L$54-1-'1 Données d''entrée'!$C$334-$B1308))/((1+'1 Données d''entrée'!$C$332)^'1 Données d''entrée'!$C$333-1)*'1 Données d''entrée'!$C$332,0)","v":0},{"$f":"IF(N1297>0,$K1286*((('1 Données d''entrée'!$C$332+1)^'1 Données d''entrée'!$C$333)-(1+'1 Données d''entrée'!$C$332)^('6 Financement'!M$54-1-'1 Données d''entrée'!$C$334-$B1308))/((1+'1 Données d''entrée'!$C$332)^'1 Données d''entrée'!$C$333-1)*'1 Données d''entrée'!$C$332,0)","v":0},{"$f":"IF(O1297>0,$K1286*((('1 Données d''entrée'!$C$332+1)^'1 Données d''entrée'!$C$333)-(1+'1 Données d''entrée'!$C$332)^('6 Financement'!N$54-1-'1 Données d''entrée'!$C$334-$B1308))/((1+'1 Données d''entrée'!$C$332)^'1 Données d''entrée'!$C$333-1)*'1 Données d''entrée'!$C$332,0)","v":0},{"$f":"IF(P1297>0,$K1286*((('1 Données d''entrée'!$C$332+1)^'1 Données d''entrée'!$C$333)-(1+'1 Données d''entrée'!$C$332)^('6 Financement'!O$54-1-'1 Données d''entrée'!$C$334-$B1308))/((1+'1 Données d''entrée'!$C$332)^'1 Données d''entrée'!$C$333-1)*'1 Données d''entrée'!$C$332,0)","v":0},{"$f":"IF(Q1297>0,$K1286*((('1 Données d''entrée'!$C$332+1)^'1 Données d''entrée'!$C$333)-(1+'1 Données d''entrée'!$C$332)^('6 Financement'!P$54-1-'1 Données d''entrée'!$C$334-$B1308))/((1+'1 Données d''entrée'!$C$332)^'1 Données d''entrée'!$C$333-1)*'1 Données d''entrée'!$C$332,0)","v":0},{"$f":"IF(R1297>0,$K1286*((('1 Données d''entrée'!$C$332+1)^'1 Données d''entrée'!$C$333)-(1+'1 Données d''entrée'!$C$332)^('6 Financement'!Q$54-1-'1 Données d''entrée'!$C$334-$B1308))/((1+'1 Données d''entrée'!$C$332)^'1 Données d''entrée'!$C$333-1)*'1 Données d''entrée'!$C$332,0)","v":0},{"$f":"IF(S1297>0,$K1286*((('1 Données d''entrée'!$C$332+1)^'1 Données d''entrée'!$C$333)-(1+'1 Données d''entrée'!$C$332)^('6 Financement'!R$54-1-'1 Données d''entrée'!$C$334-$B1308))/((1+'1 Données d''entrée'!$C$332)^'1 Données d''entrée'!$C$333-1)*'1 Données d''entrée'!$C$332,0)","v":0},{"$f":"IF(T1297>0,$K1286*((('1 Données d''entrée'!$C$332+1)^'1 Données d''entrée'!$C$333)-(1+'1 Données d''entrée'!$C$332)^('6 Financement'!S$54-1-'1 Données d''entrée'!$C$334-$B1308))/((1+'1 Données d''entrée'!$C$332)^'1 Données d''entrée'!$C$333-1)*'1 Données d''entrée'!$C$332,0)","v":0},{"$f":"IF(U1297>0,$K1286*((('1 Données d''entrée'!$C$332+1)^'1 Données d''entrée'!$C$333)-(1+'1 Données d''entrée'!$C$332)^('6 Financement'!T$54-1-'1 Données d''entrée'!$C$334-$B1308))/((1+'1 Données d''entrée'!$C$332)^'1 Données d''entrée'!$C$333-1)*'1 Données d''entrée'!$C$332,0)","v":0},{"$f":"IF(V1297>0,$K1286*((('1 Données d''entrée'!$C$332+1)^'1 Données d''entrée'!$C$333)-(1+'1 Données d''entrée'!$C$332)^('6 Financement'!U$54-1-'1 Données d''entrée'!$C$334-$B1308))/((1+'1 Données d''entrée'!$C$332)^'1 Données d''entrée'!$C$333-1)*'1 Données d''entrée'!$C$332,0)","v":0}]
["Paiement d'intêrets",10,0,{"$f":"IF(D1298>0,$L1286*((('1 Données d''entrée'!$C$332+1)^'1 Données d''entrée'!$C$333)-(1+'1 Données d''entrée'!$C$332)^('6 Financement'!C$54-1-'1 Données d''entrée'!$C$334-$B1309))/((1+'1 Données d''entrée'!$C$332)^'1 Données d''entrée'!$C$333-1)*'1 Données d''entrée'!$C$332,0)","v":0},{"$f":"IF(E1298>0,$L1286*((('1 Données d''entrée'!$C$332+1)^'1 Données d''entrée'!$C$333)-(1+'1 Données d''entrée'!$C$332)^('6 Financement'!D$54-1-'1 Données d''entrée'!$C$334-$B1309))/((1+'1 Données d''entrée'!$C$332)^'1 Données d''entrée'!$C$333-1)*'1 Données d''entrée'!$C$332,0)","v":0},{"$f":"IF(F1298>0,$L1286*((('1 Données d''entrée'!$C$332+1)^'1 Données d''entrée'!$C$333)-(1+'1 Données d''entrée'!$C$332)^('6 Financement'!E$54-1-'1 Données d''entrée'!$C$334-$B1309))/((1+'1 Données d''entrée'!$C$332)^'1 Données d''entrée'!$C$333-1)*'1 Données d''entrée'!$C$332,0)","v":0},{"$f":"IF(G1298>0,$L1286*((('1 Données d''entrée'!$C$332+1)^'1 Données d''entrée'!$C$333)-(1+'1 Données d''entrée'!$C$332)^('6 Financement'!F$54-1-'1 Données d''entrée'!$C$334-$B1309))/((1+'1 Données d''entrée'!$C$332)^'1 Données d''entrée'!$C$333-1)*'1 Données d''entrée'!$C$332,0)","v":0},{"$f":"IF(H1298>0,$L1286*((('1 Données d''entrée'!$C$332+1)^'1 Données d''entrée'!$C$333)-(1+'1 Données d''entrée'!$C$332)^('6 Financement'!G$54-1-'1 Données d''entrée'!$C$334-$B1309))/((1+'1 Données d''entrée'!$C$332)^'1 Données d''entrée'!$C$333-1)*'1 Données d''entrée'!$C$332,0)","v":0},{"$f":"IF(I1298>0,$L1286*((('1 Données d''entrée'!$C$332+1)^'1 Données d''entrée'!$C$333)-(1+'1 Données d''entrée'!$C$332)^('6 Financement'!H$54-1-'1 Données d''entrée'!$C$334-$B1309))/((1+'1 Données d''entrée'!$C$332)^'1 Données d''entrée'!$C$333-1)*'1 Données d''entrée'!$C$332,0)","v":0},{"$f":"IF(J1298>0,$L1286*((('1 Données d''entrée'!$C$332+1)^'1 Données d''entrée'!$C$333)-(1+'1 Données d''entrée'!$C$332)^('6 Financement'!I$54-1-'1 Données d''entrée'!$C$334-$B1309))/((1+'1 Données d''entrée'!$C$332)^'1 Données d''entrée'!$C$333-1)*'1 Données d''entrée'!$C$332,0)","v":0},{"$f":"IF(K1298>0,$L1286*((('1 Données d''entrée'!$C$332+1)^'1 Données d''entrée'!$C$333)-(1+'1 Données d''entrée'!$C$332)^('6 Financement'!J$54-1-'1 Données d''entrée'!$C$334-$B1309))/((1+'1 Données d''entrée'!$C$332)^'1 Données d''entrée'!$C$333-1)*'1 Données d''entrée'!$C$332,0)","v":0},{"$f":"IF(L1298>0,$L1286*((('1 Données d''entrée'!$C$332+1)^'1 Données d''entrée'!$C$333)-(1+'1 Données d''entrée'!$C$332)^('6 Financement'!K$54-1-'1 Données d''entrée'!$C$334-$B1309))/((1+'1 Données d''entrée'!$C$332)^'1 Données d''entrée'!$C$333-1)*'1 Données d''entrée'!$C$332,0)","v":0},{"$f":"IF(M1298>0,$L1286*((('1 Données d''entrée'!$C$332+1)^'1 Données d''entrée'!$C$333)-(1+'1 Données d''entrée'!$C$332)^('6 Financement'!L$54-1-'1 Données d''entrée'!$C$334-$B1309))/((1+'1 Données d''entrée'!$C$332)^'1 Données d''entrée'!$C$333-1)*'1 Données d''entrée'!$C$332,0)","v":0},{"$f":"IF(N1298>0,$L1286*((('1 Données d''entrée'!$C$332+1)^'1 Données d''entrée'!$C$333)-(1+'1 Données d''entrée'!$C$332)^('6 Financement'!M$54-1-'1 Données d''entrée'!$C$334-$B1309))/((1+'1 Données d''entrée'!$C$332)^'1 Données d''entrée'!$C$333-1)*'1 Données d''entrée'!$C$332,0)","v":0},{"$f":"IF(O1298>0,$L1286*((('1 Données d''entrée'!$C$332+1)^'1 Données d''entrée'!$C$333)-(1+'1 Données d''entrée'!$C$332)^('6 Financement'!N$54-1-'1 Données d''entrée'!$C$334-$B1309))/((1+'1 Données d''entrée'!$C$332)^'1 Données d''entrée'!$C$333-1)*'1 Données d''entrée'!$C$332,0)","v":0},{"$f":"IF(P1298>0,$L1286*((('1 Données d''entrée'!$C$332+1)^'1 Données d''entrée'!$C$333)-(1+'1 Données d''entrée'!$C$332)^('6 Financement'!O$54-1-'1 Données d''entrée'!$C$334-$B1309))/((1+'1 Données d''entrée'!$C$332)^'1 Données d''entrée'!$C$333-1)*'1 Données d''entrée'!$C$332,0)","v":0},{"$f":"IF(Q1298>0,$L1286*((('1 Données d''entrée'!$C$332+1)^'1 Données d''entrée'!$C$333)-(1+'1 Données d''entrée'!$C$332)^('6 Financement'!P$54-1-'1 Données d''entrée'!$C$334-$B1309))/((1+'1 Données d''entrée'!$C$332)^'1 Données d''entrée'!$C$333-1)*'1 Données d''entrée'!$C$332,0)","v":0},{"$f":"IF(R1298>0,$L1286*((('1 Données d''entrée'!$C$332+1)^'1 Données d''entrée'!$C$333)-(1+'1 Données d''entrée'!$C$332)^('6 Financement'!Q$54-1-'1 Données d''entrée'!$C$334-$B1309))/((1+'1 Données d''entrée'!$C$332)^'1 Données d''entrée'!$C$333-1)*'1 Données d''entrée'!$C$332,0)","v":0},{"$f":"IF(S1298>0,$L1286*((('1 Données d''entrée'!$C$332+1)^'1 Données d''entrée'!$C$333)-(1+'1 Données d''entrée'!$C$332)^('6 Financement'!R$54-1-'1 Données d''entrée'!$C$334-$B1309))/((1+'1 Données d''entrée'!$C$332)^'1 Données d''entrée'!$C$333-1)*'1 Données d''entrée'!$C$332,0)","v":0},{"$f":"IF(T1298>0,$L1286*((('1 Données d''entrée'!$C$332+1)^'1 Données d''entrée'!$C$333)-(1+'1 Données d''entrée'!$C$332)^('6 Financement'!S$54-1-'1 Données d''entrée'!$C$334-$B1309))/((1+'1 Données d''entrée'!$C$332)^'1 Données d''entrée'!$C$333-1)*'1 Données d''entrée'!$C$332,0)","v":0},{"$f":"IF(U1298>0,$L1286*((('1 Données d''entrée'!$C$332+1)^'1 Données d''entrée'!$C$333)-(1+'1 Données d''entrée'!$C$332)^('6 Financement'!T$54-1-'1 Données d''entrée'!$C$334-$B1309))/((1+'1 Données d''entrée'!$C$332)^'1 Données d''entrée'!$C$333-1)*'1 Données d''entrée'!$C$332,0)","v":0},{"$f":"IF(V1298>0,$L1286*((('1 Données d''entrée'!$C$332+1)^'1 Données d''entrée'!$C$333)-(1+'1 Données d''entrée'!$C$332)^('6 Financement'!U$54-1-'1 Données d''entrée'!$C$334-$B1309))/((1+'1 Données d''entrée'!$C$332)^'1 Données d''entrée'!$C$333-1)*'1 Données d''entrée'!$C$332,0)","v":0}]
[]
["Solde du comte (par période)",null,{"$f":"C1222+IF($B$103>0,C1230-SUM(C1232:C1242)-SUM(C1244:C1254),0)+IF($B$131>0,C1258-SUM(C1260:C1270)-SUM(C1272:C1282),0)+IF($B$159>0,C1286-SUM(C1288:C1298),0)","v":{"$error":"#DIV/0!"}},{"$f":"D1222+IF($B$103>0,D1230-SUM(D1232:D1242)-SUM(D1244:D1254),0)+IF($B$131>0,D1258-SUM(D1260:D1270)-SUM(D1272:D1282),0)+IF($B$159>0,D1286-SUM(D1288:D1298),0)","v":{"$error":"#DIV/0!"}},{"$error":"#DIV/0!"},{"$error":"#DIV/0!"},{"$error":"#DIV/0!"},{"$error":"#DIV/0!"},{"$error":"#DIV/0!"},{"$error":"#DIV/0!"},{"$error":"#DIV/0!"},{"$error":"#DIV/0!"},{"$error":"#DIV/0!"},{"$error":"#DIV/0!"},{"$error":"#DIV/0!"},{"$error":"#DIV/0!"},{"$error":"#DIV/0!"},{"$error":"#DIV/0!"},{"$error":"#DIV/0!"},{"$error":"#DIV/0!"},{"$error":"#DIV/0!"},{"$error":"#DIV/0!"}]
["Solde du compte (cumulé)",null,{"$f":"C1312+B1223","v":{"$error":"#DIV/0!"}},{"$f":"C1313+D1312","v":{"$error":"#DIV/0!"}},{"$error":"#DIV/0!"},{"$error":"#DIV/0!"},{"$error":"#DIV/0!"},{"$error":"#DIV/0!"},{"$error":"#DIV/0!"},{"$error":"#DIV/0!"},{"$error":"#DIV/0!"},{"$error":"#DIV/0!"},{"$error":"#DIV/0!"},{"$error":"#DIV/0!"},{"$error":"#DIV/0!"},{"$error":"#DIV/0!"},{"$error":"#DIV/0!"},{"$error":"#DIV/0!"},{"$error":"#DIV/0!"},{"$error":"#DIV/0!"},{"$error":"#DIV/0!"},{"$error":"#DIV/0!"}]
[]
[]
["Coût du financement","Période",1,2,3,4,5,6,7,8,9,10,11,12,13,14,15,16,17,18,19,20]
["Paiement d'intérêt par période",null,{"$f":"IF($B1188>0,(C1191+C1192),0)+IF($B1193>0,(C1196+C1197),0)+IF($B1198>0,C1201+C1202,0)+IF($B1205>0,(C1208+C1209),0)+IF($B1210>0,(C1213+C1214),0)+IF($B1215>0,C1218+C1219,0)+IF($B1227>0,SUM(C1244:C1254),0)+IF($B1257>0,SUM(C1272:C1282),0)+IF($B1285>0,SUM(C1300:C1310),0)","v":0},{"$f":"IF($B1188>0,(D1191+D1192),0)+IF($B1193>0,(D1196+D1197),0)+IF($B1198>0,D1201+D1202,0)+IF($B1205>0,(D1208+D1209),0)+IF($B1210>0,(D1213+D1214),0)+IF($B1215>0,D1218+D1219,0)+IF($B1227>0,SUM(D1244:D1254),0)+IF($B1257>0,SUM(D1272:D1282),0)+IF($B1285>0,SUM(D1300:D1310),0)","v":0},0,0,0,0,0,0,0,0,0,0,0,0,0,0,0,0,0,0]
["Remboursement du principal par période",null,{"$f":"IF($B1188>0,(C1190),0)+IF($B1193>0,(C1195),0)+IF($B1198>0,IF(C1200>0,C1200-C1201,0),0)+IF($B1205>0,(C1207),0)+IF($B1210>0,(C1212),0)+IF($B1215>0,IF(C1217>0,C1217-C1218,0),0)+IF($B1229>0,SUM(C1232:C1242),0)+IF($B1257>0,SUM(C1260:C1270),0)+IF($B1285>0,SUM(C1288:C1298)-SUM(C1300:C1310),0)","v":0},{"$f":"IF($B1188>0,(D1190),0)+IF($B1193>0,(D1195),0)+IF($B1198>0,IF(D1200>0,D1200-D1201,0),0)+IF($B1205>0,(D1207),0)+IF($B1210>0,(D1212),0)+IF($B1215>0,IF(D1217>0,D1217-D1218,0),0)+IF($B1229>0,SUM(D1232:D1242),0)+IF($B1257>0,SUM(D1260:D1270),0)+IF($B1285>0,SUM(D1288:D1298)-SUM(D1300:D1310),0)","v":0},0,0,0,0,0,0,0,0,0,0,0,0,0,0,0,0,0,0]
[]
[]
["Flux de trésorerie net       "]
["Période (t)","Flux de trésorerie       brut","Coût de financement ","Subventions","Flux de trésorerie       intermédiaires (avec coût fin. et Subventions)","Flux de trésorerie      , taxe contenue","Flux de trésorerie       cumulé, taxe contenue","Période de remboursement"]
[0,{"$f":"'5 Flux de trésorerie brut'!$D$7","v":{"$error":"#DIV/0!"}},0,{"$f":"B1186+B1204","v":0},{"$f":"D1323-C1323+B1323","v":{"$error":"#DIV/0!"}},{"$f":"IF(E1323>0,(E1323-E1323*'1 Données d''entrée'!$C$353-IF('5 Flux de trésorerie brut'!$D$7>0,'1 Données d''entrée'!$C$357*'5 Flux de trésorerie brut'!$D$7,0)),E1323)","v":{"$error":"#DIV/0!"}},{"$f":"F1323","v":{"$error":"#DIV/0!"}},{"$f":"IF(G1323<0,\" \",A1323)","v":{"$error":"#DIV/0!"}}]
[1,{"$f":"'5 Flux de trésorerie brut'!$D$8","v":{"$error":"#DIV/0!"}},{"$f":"C1317+C1318","v":0},0,{"$f":"D1324-C1324+B1324","v":{"$error":"#DIV/0!"}},{"$f":"IF(E1324>0,(E1324-E1324*'1 Données d''entrée'!$C$353-IF('5 Flux de trésorerie brut'!$D$8>0,'1 Données d''entrée'!$C$357*'5 Flux de trésorerie brut'!$D$8,0)),E1324)","v":{"$error":"#DIV/0!"}},{"$f":"G1323+F1324","v":{"$error":"#DIV/0!"}},{"$f":"IF(G1324<0,\" \",IF(SUM(H1323:H1323)>0,\" \",IF(H1323=0,\" \",A1324)))","v":{"$error":"#DIV/0!"}}]
[2,{"$f":"'5 Flux de trésorerie brut'!$D$9","v":{"$error":"#DIV/0!"}},{"$f":"D1317+D1318","v":0},0,{"$error":"#DIV/0!"},{"$f":"IF(E1325>0,(E1325-E1325*'1 Données d''entrée'!$C$353-IF('5 Flux de trésorerie brut'!$D$9>0,'1 Données d''entrée'!$C$357*'5 Flux de trésorerie brut'!$D$9,0)),E1325)","v":{"$error":"#DIV/0!"}},{"$error":"#DIV/0!"},{"$f":"IF(G1325<0,\" \",IF(SUM(H1323:H1324)>0,\" \",IF(H1323=0,\" \",A1325)))","v":{"$error":"#DIV/0!"}}]
[3,{"$f":"'5 Flux de trésorerie brut'!$D$10","v":{"$error":"#DIV/0!"}},{"$f":"E1317+E1318","v":0},0,{"$error":"#DIV/0!"},{"$f":"IF(E1326>0,(E1326-E1326*'1 Données d''entrée'!$C$353-IF('5 Flux de trésorerie brut'!$D$10>0,'1 Données d''entrée'!$C$357*'5 Flux de trésorerie brut'!$D$10,0)),E1326)","v":{"$error":"#DIV/0!"}},{"$error":"#DIV/0!"},{"$f":"IF(G1326<0,\" \",IF(SUM(H1323:H1325)>0,\" \",IF(H1323=0,\" \",A1326)))","v":{"$error":"#DIV/0!"}}]
[4,{"$f":"'5 Flux de trésorerie brut'!$D$11","v":{"$error":"#DIV/0!"}},{"$f":"F1317+F1318","v":0},0,{"$error":"#DIV/0!"},{"$f":"IF(E1327>0,(E1327-E1327*'1 Données d''entrée'!$C$353-IF('5 Flux de trésorerie brut'!$D$11>0,'1 Données d''entrée'!$C$357*'5 Flux de trésorerie brut'!$D$11,0)),E1327)","v":{"$error":"#DIV/0!"}},{"$error":"#DIV/0!"},{"$f":"IF(G1327<0,\" \",IF(SUM(H1323:H1326)>0,\" \",IF(H1323=0,\" \",A1327)))","v":{"$error":"#DIV/0!"}}]
[5,{"$f":"'5 Flux de trésorerie brut'!$D$12","v":{"$error":"#DIV/0!"}},{"$f":"G1317+G1318","v":0},0,{"$error":"#DIV/0!"},{"$f":"IF(E1328>0,(E1328-E1328*'1 Données d''entrée'!$C$353-IF('5 Flux de trésorerie brut'!$D$12>0,'1 Données d''entrée'!$C$357*'5 Flux de trésorerie brut'!$D$12,0)),E1328)","v":{"$error":"#DIV/0!"}},{"$error":"#DIV/0!"},{"$f":"IF(G1328<0,\" \",IF(SUM(H1323:H1327)>0,\" \",IF(H1323=0,\" \",A1328)))","v":{"$error":"#DIV/0!"}}]
[6,{"$f":"'5 Flux de trésorerie brut'!$D$13","v":{"$error":"#DIV/0!"}},{"$f":"H1317+H1318","v":0},0,{"$error":"#DIV/0!"},{"$f":"IF(E1329>0,(E1329-E1329*'1 Données d''entrée'!$C$353-IF('5 Flux de trésorerie brut'!$D$13>0,'1 Données d''entrée'!$C$357*'5 Flux de trésorerie brut'!$D$13,0)),E1329)","v":{"$error":"#DIV/0!"}},{"$error":"#DIV/0!"},{"$f":"IF(G1329<0,\" \",IF(SUM(H1323:H1328)>0,\" \",IF(H1323=0,\" \",A1329)))","v":{"$error":"#DIV/0!"}}]
[7,{"$f":"'5 Flux de trésorerie brut'!$D$14","v":{"$error":"#DIV/0!"}},{"$f":"I1317+I1318","v":0},0,{"$error":"#DIV/0!"},{"$f":"IF(E1330>0,(E1330-E1330*'1 Données d''entrée'!$C$353-IF('5 Flux de trésorerie brut'!$D$14>0,'1 Données d''entrée'!$C$357*'5 Flux de trésorerie brut'!$D$14,0)),E1330)","v":{"$error":"#DIV/0!"}},{"$error":"#DIV/0!"},{"$f":"IF(G1330<0,\" \",IF(SUM(H1323:H1329)>0,\" \",IF(H1323=0,\" \",A1330)))","v":{"$error":"#DIV/0!"}}]
[8,{"$f":"'5 Flux de trésorerie brut'!$D$15","v":{"$error":"#DIV/0!"}},{"$f":"J1317+J1318","v":0},0,{"$error":"#DIV/0!"},{"$f":"IF(E1331>0,(E1331-E1331*'1 Données d''entrée'!$C$353-IF('5 Flux de trésorerie brut'!$D$15>0,'1 Données d''entrée'!$C$357*'5 Flux de trésorerie brut'!$D$15,0)),E1331)","v":{"$error":"#DIV/0!"}},{"$error":"#DIV/0!"},{"$f":"IF(G1331<0,\" \",IF(SUM(H1323:H1330)>0,\" \",IF(H1323=0,\" \",A1331)))","v":{"$error":"#DIV/0!"}}]
[9,{"$f":"'5 Flux de trésorerie brut'!$D$16","v":{"$error":"#DIV/0!"}},{"$f":"K1317+K1318","v":0},0,{"$error":"#DIV/0!"},{"$f":"IF(E1332>0,(E1332-E1332*'1 Données d''entrée'!$C$353-IF('5 Flux de trésorerie brut'!$D$16>0,'1 Données d''entrée'!$C$357*'5 Flux de trésorerie brut'!$D$16,0)),E1332)","v":{"$error":"#DIV/0!"}},{"$error":"#DIV/0!"},{"$f":"IF(G1332<0,\" \",IF(SUM(H1323:H1331)>0,\" \",IF(H1323=0,\" \",A1332)))","v":{"$error":"#DIV/0!"}}]
[10,{"$f":"'5 Flux de trésorerie brut'!$D$17","v":{"$error":"#DIV/0!"}},{"$f":"L1317+L1318","v":0},0,{"$error":"#DIV/0!"},{"$f":"IF(E1333>0,(E1333-E1333*'1 Données d''entrée'!$C$353-IF('5 Flux de trésorerie brut'!$D$17>0,'1 Données d''entrée'!$C$357*'5 Flux de trésorerie brut'!$D$17,0)),E1333)","v":{"$error":"#DIV/0!"}},{"$error":"#DIV/0!"},{"$f":"IF(G1333<0,\" \",IF(SUM(H1323:H1332)>0,\" \",IF(H1323=0,\" \",A1333)))","v":{"$error":"#DIV/0!"}}]
[11,{"$f":"'5 Flux de trésorerie brut'!$D$18","v":{"$error":"#DIV/0!"}},{"$f":"M1317+M1318","v":0},0,{"$error":"#DIV/0!"},{"$f":"IF(E1334>0,(E1334-E1334*'1 Données d''entrée'!$C$353-IF('5 Flux de trésorerie brut'!$D$18>0,'1 Données d''entrée'!$C$357*'5 Flux de trésorerie brut'!$D$18,0)),E1334)","v":{"$error":"#DIV/0!"}},{"$error":"#DIV/0!"},{"$f":"IF(G1334<0,\" \",IF(SUM(H1323:H1333)>0,\" \",IF(H1323=0,\" \",A1334)))","v":{"$error":"#DIV/0!"}}]
[12,{"$f":"'5 Flux de trésorerie brut'!$D$19","v":{"$error":"#DIV/0!"}},{"$f":"N1317+N1318","v":0},0,{"$error":"#DIV/0!"},{"$f":"IF(E1335>0,(E1335-E1335*'1 Données d''entrée'!$C$353-IF('5 Flux de trésorerie brut'!$D$19>0,'1 Données d''entrée'!$C$357*'5 Flux de trésorerie brut'!$D$19,0)),E1335)","v":{"$error":"#DIV/0!"}},{"$error":"#DIV/0!"},{"$f":"IF(G1335<0,\" \",IF(SUM(H1323:H1334)>0,\" \",IF(H1323=0,\" \",A1335)))","v":{"$error":"#DIV/0!"}}]
[13,{"$f":"'5 Flux de trésorerie brut'!$D$20","v":{"$error":"#DIV/0!"}},{"$f":"O1317+O1318","v":0},0,{"$error":"#DIV/0!"},{"$f":"IF(E1336>0,(E1336-E1336*'1 Données d''entrée'!$C$353-IF('5 Flux de trésorerie brut'!$D$20>0,'1 Données d''entrée'!$C$357*'5 Flux de trésorerie brut'!$D$20,0)),E1336)","v":{"$error":"#DIV/0!"}},{"$error":"#DIV/0!"},{"$f":"IF(G1336<0,\" \",IF(SUM(H1323:H1335)>0,\" \",IF(H1323=0,\" \",A1336)))","v":{"$error":"#DIV/0!"}}]
[14,{"$f":"'5 Flux de trésorerie brut'!$D$21","v":{"$error":"#DIV/0!"}},{"$f":"P1317+P1318","v":0},0,{"$error":"#DIV/0!"},{"$f":"IF(E1337>0,(E1337-E1337*'1 Données d''entrée'!$C$353-IF('5 Flux de trésorerie brut'!$D$21>0,'1 Données d''entrée'!$C$357*'5 Flux de trésorerie brut'!$D$21,0)),E1337)","v":{"$error":"#DIV/0!"}},{"$error":"#DIV/0!"},{"$f":"IF(G1337<0,\" \",IF(SUM(H1323:H1336)>0,\" \",IF(H1323=0,\" \",A1337)))","v":{"$error":"#DIV/0!"}}]
[15,{"$f":"'5 Flux de trésorerie brut'!$D$22","v":{"$error":"#DIV/0!"}},{"$f":"Q1317+Q1318","v":0},0,{"$error":"#DIV/0!"},{"$f":"IF(E1338>0,(E1338-E1338*'1 Données d''entrée'!$C$353-IF('5 Flux de trésorerie brut'!$D$22>0,'1 Données d''entrée'!$C$357*'5 Flux de trésorerie brut'!$D$22,0)),E1338)","v":{"$error":"#DIV/0!"}},{"$error":"#DIV/0!"},{"$f":"IF(G1338<0,\" \",IF(SUM(H1323:H1337)>0,\" \",IF(H1323=0,\" \",A1338)))","v":{"$error":"#DIV/0!"}}]
[16,{"$f":"'5 Flux de trésorerie brut'!$D$23","v":{"$error":"#DIV/0!"}},{"$f":"R1317+R1318","v":0},0,{"$error":"#DIV/0!"},{"$f":"IF(E1339>0,(E1339-E1339*'1 Données d''entrée'!$C$353-IF('5 Flux de trésorerie brut'!$D$23>0,'1 Données d''entrée'!$C$357*'5 Flux de trésorerie brut'!$D$23,0)),E1339)","v":{"$error":"#DIV/0!"}},{"$error":"#DIV/0!"},{"$f":"IF(G1339<0,\" \",IF(SUM(H1323:H1338)>0,\" \",IF(H1323=0,\" \",A1339)))","v":{"$error":"#DIV/0!"}}]
[17,{"$f":"'5 Flux de trésorerie brut'!$D$24","v":{"$error":"#DIV/0!"}},{"$f":"S1317+S1318","v":0},0,{"$error":"#DIV/0!"},{"$f":"IF(E1340>0,(E1340-E1340*'1 Données d''entrée'!$C$353-IF('5 Flux de trésorerie brut'!$D$24>0,'1 Données d''entrée'!$C$357*'5 Flux de trésorerie brut'!$D$24,0)),E1340)","v":{"$error":"#DIV/0!"}},{"$error":"#DIV/0!"},{"$f":"IF(G1340<0,\" \",IF(SUM(H1323:H1339)>0,\" \",IF(H1323=0,\" \",A1340)))","v":{"$error":"#DIV/0!"}}]
[18,{"$f":"'5 Flux de trésorerie brut'!$D$25","v":{"$error":"#DIV/0!"}},{"$f":"T1317+T1318","v":0},0,{"$error":"#DIV/0!"},{"$f":"IF(E1341>0,(E1341-E1341*'1 Données d''entrée'!$C$353-IF('5 Flux de trésorerie brut'!$D$25>0,'1 Données d''entrée'!$C$357*'5 Flux de trésorerie brut'!$D$25,0)),E1341)","v":{"$error":"#DIV/0!"}},{"$error":"#DIV/0!"},{"$f":"IF(G1341<0,\" \",IF(SUM(H1323:H1340)>0,\" \",IF(H1323=0,\" \",A1341)))","v":{"$error":"#DIV/0!"}}]
[19,{"$f":"'5 Flux de trésorerie brut'!$D$26","v":{"$error":"#DIV/0!"}},{"$f":"U1317+U1318","v":0},0,{"$error":"#DIV/0!"},{"$f":"IF(E1342>0,(E1342-E1342*'1 Données d''entrée'!$C$353-IF('5 Flux de trésorerie brut'!$D$26>0,'1 Données d''entrée'!$C$357*'5 Flux de trésorerie brut'!$D$26,0)),E1342)","v":{"$error":"#DIV/0!"}},{"$error":"#DIV/0!"},{"$f":"IF(G1342<0,\" \",IF(SUM(H1323:H1341)>0,\" \",IF(H1323=0,\" \",A1342)))","v":{"$error":"#DIV/0!"}}]
[20,{"$f":"'5 Flux de trésorerie brut'!$D$27","v":{"$error":"#DIV/0!"}},{"$f":"V1317+V1318","v":0},0,{"$error":"#DIV/0!"},{"$f":"IF(E1343>0,(E1343-E1343*'1 Données d''entrée'!$C$353-IF('5 Flux de trésorerie brut'!$D$27>0,'1 Données d''entrée'!$C$357*'5 Flux de trésorerie brut'!$D$27,0)),E1343)","v":{"$error":"#DIV/0!"}},{"$error":"#DIV/0!"},{"$f":"IF(G1343<0,\" \",IF(SUM(H1323:H1342)>0,\" \",IF(H1323=0,\" \",A1343)))","v":{"$error":"#DIV/0!"}}]
[]
[]
[null,null,"Valeur actuelle nette",{"$f":"NPV('1 Données d''entrée'!$H$28,'10 Subvention d''ADER'!F1324:F1343)+'10 Subvention d''ADER'!F1323","v":{"$error":"#DIV/0!"}}]
[null,null,"Taux de rentabilité interne",{"$f":"IRR(F1323:F1343)","v":{"$error":"#VALUE!"}}]
[]
[]
[]
[]
[]
["Tableau de calcul avec un taux de subvention de",null,null,0.7]
[]
["Bailleur de fonds","Investissement total par bailleur de fonds (AR)","Quote-part du coût d'investissement initial"]
["Subvention d'ADER",{"$f":"('3 Coût total'!$B$7-'3 Coût total'!$B$42)*C1356","v":0},{"$f":"D1353","v":0.7}]
["Capitaux propres",{"$f":"'1 Données d''entrée'!$B$294","v":0},{"$f":"'1 Données d''entrée'!$B$294/'3 Coût total'!$B$7","v":{"$error":"#DIV/0!"}}]
["Fonds d'autres donneurs / investisseurs",{"$f":"'1 Données d''entrée'!$B$306+'1 Données d''entrée'!$B$307","v":0},{"$f":"B1358/'3 Coût total'!$B$7","v":{"$error":"#DIV/0!"}}]
["Prêt bancaire (effective)",{"$f":"IF(B1356+'1 Données d''entrée'!$B$294=0,0,(-1)*'5 Flux de trésorerie brut'!$D$7-(SUM(B1356:B1358)))","v":0},{"$f":"(1-(C1356+C1357+C1358))","v":{"$error":"#DIV/0!"}}]
[]
["Prêt bancaire avec des frais de gestion",{"$f":"B1359+B1359*'1 Données d''entrée'!$C$338","v":0},{"$f":"(1-(C1356+C1357+C1358))+(1-(C1356+C1357+C1358))*'1 Données d''entrée'!$C$338","v":{"$error":"#DIV/0!"}}]
[]
["Tableaux de calcul"]
[]
[]
["Scénario financier"]
["Période",0,1,2,3,4,5,6,7,8,9,10,11,12,13,14,15,16,17,18,19,20]
[]
["Flux de trésorerie (brut)",{"$f":"'5 Flux de trésorerie brut'!$D$7","v":{"$error":"#DIV/0!"}},{"$f":"'5 Flux de trésorerie brut'!$D$8","v":{"$error":"#DIV/0!"}},{"$f":"'5 Flux de trésorerie brut'!$D$9","v":{"$error":"#DIV/0!"}},{"$f":"'5 Flux de trésorerie brut'!$D$10","v":{"$error":"#DIV/0!"}},{"$f":"'5 Flux de trésorerie brut'!$D$11","v":{"$error":"#DIV/0!"}},{"$f":"'5 Flux de trésorerie brut'!$D$12","v":{"$error":"#DIV/0!"}},{"$f":"'5 Flux de trésorerie brut'!$D$13","v":{"$error":"#DIV/0!"}},{"$f":"'5 Flux de trésorerie brut'!$D$14","v":{"$error":"#DIV/0!"}},{"$f":"'5 Flux de trésorerie brut'!$D$15","v":{"$error":"#DIV/0!"}},{"$f":"'5 Flux de trésorerie brut'!$D$16","v":{"$error":"#DIV/0!"}},{"$f":"'5 Flux de trésorerie brut'!$D$17","v":{"$error":"#DIV/0!"}},{"$f":"'5 Flux de trésorerie brut'!$D$18","v":{"$error":"#DIV/0!"}},{"$f":"'5 Flux de trésorerie brut'!$D$19","v":{"$error":"#DIV/0!"}},{"$f":"'5 Flux de trésorerie brut'!$D$20","v":{"$error":"#DIV/0!"}},{"$f":"'5 Flux de trésorerie brut'!$D$21","v":{"$error":"#DIV/0!"}},{"$f":"'5 Flux de trésorerie brut'!$D$22","v":{"$error":"#DIV/0!"}},{"$f":"'5 Flux de trésorerie brut'!$D$23","v":{"$error":"#DIV/0!"}},{"$f":"'5 Flux de trésorerie brut'!$D$24","v":{"$error":"#DIV/0!"}},{"$f":"'5 Flux de trésorerie brut'!$D$25","v":{"$error":"#DIV/0!"}},{"$f":"'5 Flux de trésorerie brut'!$D$26","v":{"$error":"#DIV/0!"}},{"$f":"'5 Flux de trésorerie brut'!$D$27","v":{"$error":"#DIV/0!"}}]
[]
["Capitaux propres",{"$f":"'1 Données d''entrée'!$B$294","v":0}]
[]
["Subvention ADER",{"$f":"'3 Coût total'!$B$7*C1356","v":0}]
[]
["Prêt bancaire - Option 1: Remboursement du principal fractionné",{"$f":"'1 Données d''entrée'!$B$342","v":0},"% de prêt total"]
["Réception et montant restant",{"$f":"B1361*B1375","v":0},{"$f":"B1376-C1377","v":0},0,0,0,0,0,0,0,0,0,0,0,0,0,0,0,0,0,0,0]
["Remboursement du principal",0,{"$f":"IF(C1367<'1 Données d''entrée'!$C$334+1,0,IF(C1367<'1 Données d''entrée'!$C$333+'1 Données d''entrée'!$C$334+1,($B1376/'1 Données d''entrée'!$C$333),0))","v":0},{"$f":"IF(D1367<'1 Données d''entrée'!$C$334+1,0,IF(D1367<'1 Données d''entrée'!$C$333+'1 Données d''entrée'!$C$334+1,($B1376/'1 Données d''entrée'!$C$333),0))","v":0},{"$f":"IF(E1367<'1 Données d''entrée'!$C$334+1,0,IF(E1367<'1 Données d''entrée'!$C$333+'1 Données d''entrée'!$C$334+1,($B1376/'1 Données d''entrée'!$C$333),0))","v":0},{"$f":"IF(F1367<'1 Données d''entrée'!$C$334+1,0,IF(F1367<'1 Données d''entrée'!$C$333+'1 Données d''entrée'!$C$334+1,($B1376/'1 Données d''entrée'!$C$333),0))","v":0},{"$f":"IF(G1367<'1 Données d''entrée'!$C$334+1,0,IF(G1367<'1 Données d''entrée'!$C$333+'1 Données d''entrée'!$C$334+1,($B1376/'1 Données d''entrée'!$C$333),0))","v":0},{"$f":"IF(H1367<'1 Données d''entrée'!$C$334+1,0,IF(H1367<'1 Données d''entrée'!$C$333+'1 Données d''entrée'!$C$334+1,($B1376/'1 Données d''entrée'!$C$333),0))","v":0},{"$f":"IF(I1367<'1 Données d''entrée'!$C$334+1,0,IF(I1367<'1 Données d''entrée'!$C$333+'1 Données d''entrée'!$C$334+1,($B1376/'1 Données d''entrée'!$C$333),0))","v":0},{"$f":"IF(J1367<'1 Données d''entrée'!$C$334+1,0,IF(J1367<'1 Données d''entrée'!$C$333+'1 Données d''entrée'!$C$334+1,($B1376/'1 Données d''entrée'!$C$333),0))","v":0},{"$f":"IF(K1367<'1 Données d''entrée'!$C$334+1,0,IF(K1367<'1 Données d''entrée'!$C$333+'1 Données d''entrée'!$C$334+1,($B1376/'1 Données d''entrée'!$C$333),0))","v":0},{"$f":"IF(L1367<'1 Données d''entrée'!$C$334+1,0,IF(L1367<'1 Données d''entrée'!$C$333+'1 Données d''entrée'!$C$334+1,($B1376/'1 Données d''entrée'!$C$333),0))","v":0},{"$f":"IF(M1367<'1 Données d''entrée'!$C$334+1,0,IF(M1367<'1 Données d''entrée'!$C$333+'1 Données d''entrée'!$C$334+1,($B1376/'1 Données d''entrée'!$C$333),0))","v":0},{"$f":"IF(N1367<'1 Données d''entrée'!$C$334+1,0,IF(N1367<'1 Données d''entrée'!$C$333+'1 Données d''entrée'!$C$334+1,($B1376/'1 Données d''entrée'!$C$333),0))","v":0},{"$f":"IF(O1367<'1 Données d''entrée'!$C$334+1,0,IF(O1367<'1 Données d''entrée'!$C$333+'1 Données d''entrée'!$C$334+1,($B1376/'1 Données d''entrée'!$C$333),0))","v":0},{"$f":"IF(P1367<'1 Données d''entrée'!$C$334+1,0,IF(P1367<'1 Données d''entrée'!$C$333+'1 Données d''entrée'!$C$334+1,($B1376/'1 Données d''entrée'!$C$333),0))","v":0},{"$f":"IF(Q1367<'1 Données d''entrée'!$C$334+1,0,IF(Q1367<'1 Données d''entrée'!$C$333+'1 Données d''entrée'!$C$334+1,($B1376/'1 Données d''entrée'!$C$333),0))","v":0},{"$f":"IF(R1367<'1 Données d''entrée'!$C$334+1,0,IF(R1367<'1 Données d''entrée'!$C$333+'1 Données d''entrée'!$C$334+1,($B1376/'1 Données d''entrée'!$C$333),0))","v":0},{"$f":"IF(S1367<'1 Données d''entrée'!$C$334+1,0,IF(S1367<'1 Données d''entrée'!$C$333+'1 Données d''entrée'!$C$334+1,($B1376/'1 Données d''entrée'!$C$333),0))","v":0},{"$f":"IF(T1367<'1 Données d''entrée'!$C$334+1,0,IF(T1367<'1 Données d''entrée'!$C$333+'1 Données d''entrée'!$C$334+1,($B1376/'1 Données d''entrée'!$C$333),0))","v":0},{"$f":"IF(U1367<'1 Données d''entrée'!$C$334+1,0,IF(U1367<'1 Données d''entrée'!$C$333+'1 Données d''entrée'!$C$334+1,($B1376/'1 Données d''entrée'!$C$333),0))","v":0},{"$f":"IF(V1367<'1 Données d''entrée'!$C$334+1,0,IF(V1367<'1 Données d''entrée'!$C$333+'1 Données d''entrée'!$C$334+1,($B1376/'1 Données d''entrée'!$C$333),0))","v":0}]
["Paiement d'intérêts",0,{"$f":"IF('1 Données d''entrée'!$C$336=\"(=NON)\",IF(C1367<'1 Données d''entrée'!$C$334+1,0,B1376*'1 Données d''entrée'!$C$332),B1376*'1 Données d''entrée'!$C$332)","v":0},{"$f":"IF('1 Données d''entrée'!$C$336=\"(=NON)\",IF(D1367<'1 Données d''entrée'!$C$334+1,0,C1376*'1 Données d''entrée'!$C$332),C1376*'1 Données d''entrée'!$C$332)","v":0},{"$f":"IF('1 Données d''entrée'!$C$336=\"(=NON)\",IF(E1367<'1 Données d''entrée'!$C$334+1,0,D1376*'1 Données d''entrée'!$C$332),D1376*'1 Données d''entrée'!$C$332)","v":0},{"$f":"IF('1 Données d''entrée'!$C$336=\"(=NON)\",IF(F1367<'1 Données d''entrée'!$C$334+1,0,E1376*'1 Données d''entrée'!$C$332),E1376*'1 Données d''entrée'!$C$332)","v":0},{"$f":"IF('1 Données d''entrée'!$C$336=\"(=NON)\",IF(G1367<'1 Données d''entrée'!$C$334+1,0,F1376*'1 Données d''entrée'!$C$332),F1376*'1 Données d''entrée'!$C$332)","v":0},{"$f":"IF('1 Données d''entrée'!$C$336=\"(=NON)\",IF(H1367<'1 Données d''entrée'!$C$334+1,0,G1376*'1 Données d''entrée'!$C$332),G1376*'1 Données d''entrée'!$C$332)","v":0},{"$f":"IF('1 Données d''entrée'!$C$336=\"(=NON)\",IF(I1367<'1 Données d''entrée'!$C$334+1,0,H1376*'1 Données d''entrée'!$C$332),H1376*'1 Données d''entrée'!$C$332)","v":0},{"$f":"IF('1 Données d''entrée'!$C$336=\"(=NON)\",IF(J1367<'1 Données d''entrée'!$C$334+1,0,I1376*'1 Données d''entrée'!$C$332),I1376*'1 Données d''entrée'!$C$332)","v":0},{"$f":"IF('1 Données d''entrée'!$C$336=\"(=NON)\",IF(K1367<'1 Données d''entrée'!$C$334+1,0,J1376*'1 Données d''entrée'!$C$332),J1376*'1 Données d''entrée'!$C$332)","v":0},{"$f":"IF('1 Données d''entrée'!$C$336=\"(=NON)\",IF(L1367<'1 Données d''entrée'!$C$334+1,0,K1376*'1 Données d''entrée'!$C$332),K1376*'1 Données d''entrée'!$C$332)","v":0},{"$f":"IF('1 Données d''entrée'!$C$336=\"(=NON)\",IF(M1367<'1 Données d''entrée'!$C$334+1,0,L1376*'1 Données d''entrée'!$C$332),L1376*'1 Données d''entrée'!$C$332)","v":0},{"$f":"IF('1 Données d''entrée'!$C$336=\"(=NON)\",IF(N1367<'1 Données d''entrée'!$C$334+1,0,M1376*'1 Données d''entrée'!$C$332),M1376*'1 Données d''entrée'!$C$332)","v":0},{"$f":"IF('1 Données d''entrée'!$C$336=\"(=NON)\",IF(O1367<'1 Données d''entrée'!$C$334+1,0,N1376*'1 Données d''entrée'!$C$332),N1376*'1 Données d''entrée'!$C$332)","v":0},{"$f":"IF('1 Données d''entrée'!$C$336=\"(=NON)\",IF(P1367<'1 Données d''entrée'!$C$334+1,0,O1376*'1 Données d''entrée'!$C$332),O1376*'1 Données d''entrée'!$C$332)","v":0},{"$f":"IF('1 Données d''entrée'!$C$336=\"(=NON)\",IF(Q1367<'1 Données d''entrée'!$C$334+1,0,P1376*'1 Données d''entrée'!$C$332),P1376*'1 Données d''entrée'!$C$332)","v":0},{"$f":"IF('1 Données d''entrée'!$C$336=\"(=NON)\",IF(R1367<'1 Données d''entrée'!$C$334+1,0,Q1376*'1 Données d''entrée'!$C$332),Q1376*'1 Données d''entrée'!$C$332)","v":0},{"$f":"IF('1 Données d''entrée'!$C$336=\"(=NON)\",IF(S1367<'1 Données d''entrée'!$C$334+1,0,R1376*'1 Données d''entrée'!$C$332),R1376*'1 Données d''entrée'!$C$332)","v":0},{"$f":"IF('1 Données d''entrée'!$C$336=\"(=NON)\",IF(T1367<'1 Données d''entrée'!$C$334+1,0,S1376*'1 Données d''entrée'!$C$332),S1376*'1 Données d''entrée'!$C$332)","v":0},{"$f":"IF('1 Données d''entrée'!$C$336=\"(=NON)\",IF(U1367<'1 Données d''entrée'!$C$334+1,0,T1376*'1 Données d''entrée'!$C$332),T1376*'1 Données d''entrée'!$C$332)","v":0},{"$f":"IF('1 Données d''entrée'!$C$336=\"(=NON)\",IF(V1367<'1 Données d''entrée'!$C$334+1,0,U1376*'1 Données d''entrée'!$C$332),U1376*'1 Données d''entrée'!$C$332)","v":0}]
["Paiements d'intérêt avec des intérêts composés en cas d'absence des paiements dans la période de grâce",0,0,{"$f":"IF(D1367='1 Données d''entrée'!$C$334+1,IF('1 Données d''entrée'!$C$336=\"(=NON)\",($B1376*'1 Données d''entrée'!$C$332)*((('1 Données d''entrée'!$C$332+1)^'1 Données d''entrée'!$C$334-1)/('1 Données d''entrée'!$C$332))*(1+'1 Données d''entrée'!$C$332),0),0)","v":0},{"$f":"IF(E1367='1 Données d''entrée'!$C$334+1,IF('1 Données d''entrée'!$C$336=\"(=NON)\",($B1376*'1 Données d''entrée'!$C$332)*((('1 Données d''entrée'!$C$332+1)^'1 Données d''entrée'!$C$334-1)/('1 Données d''entrée'!$C$332))*(1+'1 Données d''entrée'!$C$332),0),0)","v":0},{"$f":"IF(F1367='1 Données d''entrée'!$C$334+1,IF('1 Données d''entrée'!$C$336=\"(=NON)\",($B1376*'1 Données d''entrée'!$C$332)*((('1 Données d''entrée'!$C$332+1)^'1 Données d''entrée'!$C$334-1)/('1 Données d''entrée'!$C$332))*(1+'1 Données d''entrée'!$C$332),0),0)","v":0},{"$f":"IF(G1367='1 Données d''entrée'!$C$334+1,IF('1 Données d''entrée'!$C$336=\"(=NON)\",($B1376*'1 Données d''entrée'!$C$332)*((('1 Données d''entrée'!$C$332+1)^'1 Données d''entrée'!$C$334-1)/('1 Données d''entrée'!$C$332))*(1+'1 Données d''entrée'!$C$332),0),0)","v":0},{"$f":"IF(H1367='1 Données d''entrée'!$C$334+1,IF('1 Données d''entrée'!$C$336=\"(=NON)\",($B1376*'1 Données d''entrée'!$C$332)*((('1 Données d''entrée'!$C$332+1)^'1 Données d''entrée'!$C$334-1)/('1 Données d''entrée'!$C$332))*(1+'1 Données d''entrée'!$C$332),0),0)","v":0},{"$f":"IF(I1367='1 Données d''entrée'!$C$334+1,IF('1 Données d''entrée'!$C$336=\"(=NON)\",($B1376*'1 Données d''entrée'!$C$332)*((('1 Données d''entrée'!$C$332+1)^'1 Données d''entrée'!$C$334-1)/('1 Données d''entrée'!$C$332))*(1+'1 Données d''entrée'!$C$332),0),0)","v":0},{"$f":"IF(J1367='1 Données d''entrée'!$C$334+1,IF('1 Données d''entrée'!$C$336=\"(=NON)\",($B1376*'1 Données d''entrée'!$C$332)*((('1 Données d''entrée'!$C$332+1)^'1 Données d''entrée'!$C$334-1)/('1 Données d''entrée'!$C$332))*(1+'1 Données d''entrée'!$C$332),0),0)","v":0},{"$f":"IF(K1367='1 Données d''entrée'!$C$334+1,IF('1 Données d''entrée'!$C$336=\"(=NON)\",($B1376*'1 Données d''entrée'!$C$332)*((('1 Données d''entrée'!$C$332+1)^'1 Données d''entrée'!$C$334-1)/('1 Données d''entrée'!$C$332))*(1+'1 Données d''entrée'!$C$332),0),0)","v":0},{"$f":"IF(L1367='1 Données d''entrée'!$C$334+1,IF('1 Données d''entrée'!$C$336=\"(=NON)\",($B1376*'1 Données d''entrée'!$C$332)*((('1 Données d''entrée'!$C$332+1)^'1 Données d''entrée'!$C$334-1)/('1 Données d''entrée'!$C$332))*(1+'1 Données d''entrée'!$C$332),0),0)","v":0},{"$f":"IF(M1367='1 Données d''entrée'!$C$334+1,IF('1 Données d''entrée'!$C$336=\"(=NON)\",($B1376*'1 Données d''entrée'!$C$332)*((('1 Données d''entrée'!$C$332+1)^'1 Données d''entrée'!$C$334-1)/('1 Données d''entrée'!$C$332))*(1+'1 Données d''entrée'!$C$332),0),0)","v":0},{"$f":"IF(N1367='1 Données d''entrée'!$C$334+1,IF('1 Données d''entrée'!$C$336=\"(=NON)\",($B1376*'1 Données d''entrée'!$C$332)*((('1 Données d''entrée'!$C$332+1)^'1 Données d''entrée'!$C$334-1)/('1 Données d''entrée'!$C$332))*(1+'1 Données d''entrée'!$C$332),0),0)","v":0},{"$f":"IF(O1367='1 Données d''entrée'!$C$334+1,IF('1 Données d''entrée'!$C$336=\"(=NON)\",($B1376*'1 Données d''entrée'!$C$332)*((('1 Données d''entrée'!$C$332+1)^'1 Données d''entrée'!$C$334-1)/('1 Données d''entrée'!$C$332))*(1+'1 Données d''entrée'!$C$332),0),0)","v":0},{"$f":"IF(P1367='1 Données d''entrée'!$C$334+1,IF('1 Données d''entrée'!$C$336=\"(=NON)\",($B1376*'1 Données d''entrée'!$C$332)*((('1 Données d''entrée'!$C$332+1)^'1 Données d''entrée'!$C$334-1)/('1 Données d''entrée'!$C$332))*(1+'1 Données d''entrée'!$C$332),0),0)","v":0},{"$f":"IF(Q1367='1 Données d''entrée'!$C$334+1,IF('1 Données d''entrée'!$C$336=\"(=NON)\",($B1376*'1 Données d''entrée'!$C$332)*((('1 Données d''entrée'!$C$332+1)^'1 Données d''entrée'!$C$334-1)/('1 Données d''entrée'!$C$332))*(1+'1 Données d''entrée'!$C$332),0),0)","v":0},{"$f":"IF(R1367='1 Données d''entrée'!$C$334+1,IF('1 Données d''entrée'!$C$336=\"(=NON)\",($B1376*'1 Données d''entrée'!$C$332)*((('1 Données d''entrée'!$C$332+1)^'1 Données d''entrée'!$C$334-1)/('1 Données d''entrée'!$C$332))*(1+'1 Données d''entrée'!$C$332),0),0)","v":0},{"$f":"IF(S1367='1 Données d''entrée'!$C$334+1,IF('1 Données d''entrée'!$C$336=\"(=NON)\",($B1376*'1 Données d''entrée'!$C$332)*((('1 Données d''entrée'!$C$332+1)^'1 Données d''entrée'!$C$334-1)/('1 Données d''entrée'!$C$332))*(1+'1 Données d''entrée'!$C$332),0),0)","v":0},{"$f":"IF(T1367='1 Données d''entrée'!$C$334+1,IF('1 Données d''entrée'!$C$336=\"(=NON)\",($B1376*'1 Données d''entrée'!$C$332)*((('1 Données d''entrée'!$C$332+1)^'1 Données d''entrée'!$C$334-1)/('1 Données d''entrée'!$C$332))*(1+'1 Données d''entrée'!$C$332),0),0)","v":0},{"$f":"IF(U1367='1 Données d''entrée'!$C$334+1,IF('1 Données d''entrée'!$C$336=\"(=NON)\",($B1376*'1 Données d''entrée'!$C$332)*((('1 Données d''entrée'!$C$332+1)^'1 Données d''entrée'!$C$334-1)/('1 Données d''entrée'!$C$332))*(1+'1 Données d''entrée'!$C$332),0),0)","v":0},{"$f":"IF(V1367='1 Données d''entrée'!$C$334+1,IF('1 Données d''entrée'!$C$336=\"(=NON)\",($B1376*'1 Données d''entrée'!$C$332)*((('1 Données d''entrée'!$C$332+1)^'1 Données d''entrée'!$C$334-1)/('1 Données d''entrée'!$C$332))*(1+'1 Données d''entrée'!$C$332),0),0)","v":0}]
["Prêt bancaire - Option 2: Remboursement du principal final",{"$f":"'1 Données d''entrée'!$B$343","v":0},"% de prêt total"]
["Réception et montant restant",{"$f":"B1361*B1380","v":0},{"$f":"B1381-C1382","v":0},0,0,0,0,0,0,0,0,0,0,0,0,0,0,0,0,0,0,0]
["Remboursement du principal",0,{"$f":"IF('1 Données d''entrée'!$C$333+'1 Données d''entrée'!$C$334=C1367,$B1381,0)","v":0},{"$f":"IF('1 Données d''entrée'!$C$333+'1 Données d''entrée'!$C$334=D1367,$B1381,0)","v":0},{"$f":"IF('1 Données d''entrée'!$C$333+'1 Données d''entrée'!$C$334=E1367,$B1381,0)","v":0},{"$f":"IF('1 Données d''entrée'!$C$333+'1 Données d''entrée'!$C$334=F1367,$B1381,0)","v":0},{"$f":"IF('1 Données d''entrée'!$C$333+'1 Données d''entrée'!$C$334=G1367,$B1381,0)","v":0},{"$f":"IF('1 Données d''entrée'!$C$333+'1 Données d''entrée'!$C$334=H1367,$B1381,0)","v":0},{"$f":"IF('1 Données d''entrée'!$C$333+'1 Données d''entrée'!$C$334=I1367,$B1381,0)","v":0},{"$f":"IF('1 Données d''entrée'!$C$333+'1 Données d''entrée'!$C$334=J1367,$B1381,0)","v":0},{"$f":"IF('1 Données d''entrée'!$C$333+'1 Données d''entrée'!$C$334=K1367,$B1381,0)","v":0},{"$f":"IF('1 Données d''entrée'!$C$333+'1 Données d''entrée'!$C$334=L1367,$B1381,0)","v":0},{"$f":"IF('1 Données d''entrée'!$C$333+'1 Données d''entrée'!$C$334=M1367,$B1381,0)","v":0},{"$f":"IF('1 Données d''entrée'!$C$333+'1 Données d''entrée'!$C$334=N1367,$B1381,0)","v":0},{"$f":"IF('1 Données d''entrée'!$C$333+'1 Données d''entrée'!$C$334=O1367,$B1381,0)","v":0},{"$f":"IF('1 Données d''entrée'!$C$333+'1 Données d''entrée'!$C$334=P1367,$B1381,0)","v":0},{"$f":"IF('1 Données d''entrée'!$C$333+'1 Données d''entrée'!$C$334=Q1367,$B1381,0)","v":0},{"$f":"IF('1 Données d''entrée'!$C$333+'1 Données d''entrée'!$C$334=R1367,$B1381,0)","v":0},{"$f":"IF('1 Données d''entrée'!$C$333+'1 Données d''entrée'!$C$334=S1367,$B1381,0)","v":0},{"$f":"IF('1 Données d''entrée'!$C$333+'1 Données d''entrée'!$C$334=T1367,$B1381,0)","v":0},{"$f":"IF('1 Données d''entrée'!$C$333+'1 Données d''entrée'!$C$334=U1367,$B1381,0)","v":0},{"$f":"IF('1 Données d''entrée'!$C$333+'1 Données d''entrée'!$C$334=V1367,$B1381,0)","v":0}]
["Paiement d'intérêts",0,{"$f":"IF('1 Données d''entrée'!$C$336=\"(=NON)\",IF(C1367<'1 Données d''entrée'!$C$334+1,0,B1381*'1 Données d''entrée'!$C$332),B1381*'1 Données d''entrée'!$C$332)","v":0},{"$f":"IF('1 Données d''entrée'!$C$336=\"(=NON)\",IF(D1367<'1 Données d''entrée'!$C$334+1,0,C1381*'1 Données d''entrée'!$C$332),C1381*'1 Données d''entrée'!$C$332)","v":0},{"$f":"IF('1 Données d''entrée'!$C$336=\"(=NON)\",IF(E1367<'1 Données d''entrée'!$C$334+1,0,D1381*'1 Données d''entrée'!$C$332),D1381*'1 Données d''entrée'!$C$332)","v":0},{"$f":"IF('1 Données d''entrée'!$C$336=\"(=NON)\",IF(F1367<'1 Données d''entrée'!$C$334+1,0,E1381*'1 Données d''entrée'!$C$332),E1381*'1 Données d''entrée'!$C$332)","v":0},{"$f":"IF('1 Données d''entrée'!$C$336=\"(=NON)\",IF(G1367<'1 Données d''entrée'!$C$334+1,0,F1381*'1 Données d''entrée'!$C$332),F1381*'1 Données d''entrée'!$C$332)","v":0},{"$f":"IF('1 Données d''entrée'!$C$336=\"(=NON)\",IF(H1367<'1 Données d''entrée'!$C$334+1,0,G1381*'1 Données d''entrée'!$C$332),G1381*'1 Données d''entrée'!$C$332)","v":0},{"$f":"IF('1 Données d''entrée'!$C$336=\"(=NON)\",IF(I1367<'1 Données d''entrée'!$C$334+1,0,H1381*'1 Données d''entrée'!$C$332),H1381*'1 Données d''entrée'!$C$332)","v":0},{"$f":"IF('1 Données d''entrée'!$C$336=\"(=NON)\",IF(J1367<'1 Données d''entrée'!$C$334+1,0,I1381*'1 Données d''entrée'!$C$332),I1381*'1 Données d''entrée'!$C$332)","v":0},{"$f":"IF('1 Données d''entrée'!$C$336=\"(=NON)\",IF(K1367<'1 Données d''entrée'!$C$334+1,0,J1381*'1 Données d''entrée'!$C$332),J1381*'1 Données d''entrée'!$C$332)","v":0},{"$f":"IF('1 Données d''entrée'!$C$336=\"(=NON)\",IF(L1367<'1 Données d''entrée'!$C$334+1,0,K1381*'1 Données d''entrée'!$C$332),K1381*'1 Données d''entrée'!$C$332)","v":0},{"$f":"IF('1 Données d''entrée'!$C$336=\"(=NON)\",IF(M1367<'1 Données d''entrée'!$C$334+1,0,L1381*'1 Données d''entrée'!$C$332),L1381*'1 Données d''entrée'!$C$332)","v":0},{"$f":"IF('1 Données d''entrée'!$C$336=\"(=NON)\",IF(N1367<'1 Données d''entrée'!$C$334+1,0,M1381*'1 Données d''entrée'!$C$332),M1381*'1 Données d''entrée'!$C$332)","v":0},{"$f":"IF('1 Données d''entrée'!$C$336=\"(=NON)\",IF(O1367<'1 Données d''entrée'!$C$334+1,0,N1381*'1 Données d''entrée'!$C$332),N1381*'1 Données d''entrée'!$C$332)","v":0},{"$f":"IF('1 Données d''entrée'!$C$336=\"(=NON)\",IF(P1367<'1 Données d''entrée'!$C$334+1,0,O1381*'1 Données d''entrée'!$C$332),O1381*'1 Données d''entrée'!$C$332)","v":0},{"$f":"IF('1 Données d''entrée'!$C$336=\"(=NON)\",IF(Q1367<'1 Données d''entrée'!$C$334+1,0,P1381*'1 Données d''entrée'!$C$332),P1381*'1 Données d''entrée'!$C$332)","v":0},{"$f":"IF('1 Données d''entrée'!$C$336=\"(=NON)\",IF(R1367<'1 Données d''entrée'!$C$334+1,0,Q1381*'1 Données d''entrée'!$C$332),Q1381*'1 Données d''entrée'!$C$332)","v":0},{"$f":"IF('1 Données d''entrée'!$C$336=\"(=NON)\",IF(S1367<'1 Données d''entrée'!$C$334+1,0,R1381*'1 Données d''entrée'!$C$332),R1381*'1 Données d''entrée'!$C$332)","v":0},{"$f":"IF('1 Données d''entrée'!$C$336=\"(=NON)\",IF(T1367<'1 Données d''entrée'!$C$334+1,0,S1381*'1 Données d''entrée'!$C$332),S1381*'1 Données d''entrée'!$C$332)","v":0},{"$f":"IF('1 Données d''entrée'!$C$336=\"(=NON)\",IF(U1367<'1 Données d''entrée'!$C$334+1,0,T1381*'1 Données d''entrée'!$C$332),T1381*'1 Données d''entrée'!$C$332)","v":0},{"$f":"IF('1 Données d''entrée'!$C$336=\"(=NON)\",IF(V1367<'1 Données d''entrée'!$C$334+1,0,U1381*'1 Données d''entrée'!$C$332),U1381*'1 Données d''entrée'!$C$332)","v":0}]
["Paiements d'intérêt avec des intérêts composés en cas d'absence des paiements dans la période de grâce",0,0,{"$f":"IF(D1367='1 Données d''entrée'!$C$334+1,IF('1 Données d''entrée'!$C$336=\"(=NON)\",($B1381*'1 Données d''entrée'!$C$332)*((('1 Données d''entrée'!$C$332+1)^'1 Données d''entrée'!$C$334-1)/('1 Données d''entrée'!$C$332))*(1+'1 Données d''entrée'!$C$332),0),0)","v":0},{"$f":"IF(E1367='1 Données d''entrée'!$C$334+1,IF('1 Données d''entrée'!$C$336=\"(=NON)\",($B1381*'1 Données d''entrée'!$C$332)*((('1 Données d''entrée'!$C$332+1)^'1 Données d''entrée'!$C$334-1)/('1 Données d''entrée'!$C$332))*(1+'1 Données d''entrée'!$C$332),0),0)","v":0},{"$f":"IF(F1367='1 Données d''entrée'!$C$334+1,IF('1 Données d''entrée'!$C$336=\"(=NON)\",($B1381*'1 Données d''entrée'!$C$332)*((('1 Données d''entrée'!$C$332+1)^'1 Données d''entrée'!$C$334-1)/('1 Données d''entrée'!$C$332))*(1+'1 Données d''entrée'!$C$332),0),0)","v":0},{"$f":"IF(G1367='1 Données d''entrée'!$C$334+1,IF('1 Données d''entrée'!$C$336=\"(=NON)\",($B1381*'1 Données d''entrée'!$C$332)*((('1 Données d''entrée'!$C$332+1)^'1 Données d''entrée'!$C$334-1)/('1 Données d''entrée'!$C$332))*(1+'1 Données d''entrée'!$C$332),0),0)","v":0},{"$f":"IF(H1367='1 Données d''entrée'!$C$334+1,IF('1 Données d''entrée'!$C$336=\"(=NON)\",($B1381*'1 Données d''entrée'!$C$332)*((('1 Données d''entrée'!$C$332+1)^'1 Données d''entrée'!$C$334-1)/('1 Données d''entrée'!$C$332))*(1+'1 Données d''entrée'!$C$332),0),0)","v":0},{"$f":"IF(I1367='1 Données d''entrée'!$C$334+1,IF('1 Données d''entrée'!$C$336=\"(=NON)\",($B1381*'1 Données d''entrée'!$C$332)*((('1 Données d''entrée'!$C$332+1)^'1 Données d''entrée'!$C$334-1)/('1 Données d''entrée'!$C$332))*(1+'1 Données d''entrée'!$C$332),0),0)","v":0},{"$f":"IF(J1367='1 Données d''entrée'!$C$334+1,IF('1 Données d''entrée'!$C$336=\"(=NON)\",($B1381*'1 Données d''entrée'!$C$332)*((('1 Données d''entrée'!$C$332+1)^'1 Données d''entrée'!$C$334-1)/('1 Données d''entrée'!$C$332))*(1+'1 Données d''entrée'!$C$332),0),0)","v":0},{"$f":"IF(K1367='1 Données d''entrée'!$C$334+1,IF('1 Données d''entrée'!$C$336=\"(=NON)\",($B1381*'1 Données d''entrée'!$C$332)*((('1 Données d''entrée'!$C$332+1)^'1 Données d''entrée'!$C$334-1)/('1 Données d''entrée'!$C$332))*(1+'1 Données d''entrée'!$C$332),0),0)","v":0},{"$f":"IF(L1367='1 Données d''entrée'!$C$334+1,IF('1 Données d''entrée'!$C$336=\"(=NON)\",($B1381*'1 Données d''entrée'!$C$332)*((('1 Données d''entrée'!$C$332+1)^'1 Données d''entrée'!$C$334-1)/('1 Données d''entrée'!$C$332))*(1+'1 Données d''entrée'!$C$332),0),0)","v":0},{"$f":"IF(M1367='1 Données d''entrée'!$C$334+1,IF('1 Données d''entrée'!$C$336=\"(=NON)\",($B1381*'1 Données d''entrée'!$C$332)*((('1 Données d''entrée'!$C$332+1)^'1 Données d''entrée'!$C$334-1)/('1 Données d''entrée'!$C$332))*(1+'1 Données d''entrée'!$C$332),0),0)","v":0},{"$f":"IF(N1367='1 Données d''entrée'!$C$334+1,IF('1 Données d''entrée'!$C$336=\"(=NON)\",($B1381*'1 Données d''entrée'!$C$332)*((('1 Données d''entrée'!$C$332+1)^'1 Données d''entrée'!$C$334-1)/('1 Données d''entrée'!$C$332))*(1+'1 Données d''entrée'!$C$332),0),0)","v":0},{"$f":"IF(O1367='1 Données d''entrée'!$C$334+1,IF('1 Données d''entrée'!$C$336=\"(=NON)\",($B1381*'1 Données d''entrée'!$C$332)*((('1 Données d''entrée'!$C$332+1)^'1 Données d''entrée'!$C$334-1)/('1 Données d''entrée'!$C$332))*(1+'1 Données d''entrée'!$C$332),0),0)","v":0},{"$f":"IF(P1367='1 Données d''entrée'!$C$334+1,IF('1 Données d''entrée'!$C$336=\"(=NON)\",($B1381*'1 Données d''entrée'!$C$332)*((('1 Données d''entrée'!$C$332+1)^'1 Données d''entrée'!$C$334-1)/('1 Données d''entrée'!$C$332))*(1+'1 Données d''entrée'!$C$332),0),0)","v":0},{"$f":"IF(Q1367='1 Données d''entrée'!$C$334+1,IF('1 Données d''entrée'!$C$336=\"(=NON)\",($B1381*'1 Données d''entrée'!$C$332)*((('1 Données d''entrée'!$C$332+1)^'1 Données d''entrée'!$C$334-1)/('1 Données d''entrée'!$C$332))*(1+'1 Données d''entrée'!$C$332),0),0)","v":0},{"$f":"IF(R1367='1 Données d''entrée'!$C$334+1,IF('1 Données d''entrée'!$C$336=\"(=NON)\",($B1381*'1 Données d''entrée'!$C$332)*((('1 Données d''entrée'!$C$332+1)^'1 Données d''entrée'!$C$334-1)/('1 Données d''entrée'!$C$332))*(1+'1 Données d''entrée'!$C$332),0),0)","v":0},{"$f":"IF(S1367='1 Données d''entrée'!$C$334+1,IF('1 Données d''entrée'!$C$336=\"(=NON)\",($B1381*'1 Données d''entrée'!$C$332)*((('1 Données d''entrée'!$C$332+1)^'1 Données d''entrée'!$C$334-1)/('1 Données d''entrée'!$C$332))*(1+'1 Données d''entrée'!$C$332),0),0)","v":0},{"$f":"IF(T1367='1 Données d''entrée'!$C$334+1,IF('1 Données d''entrée'!$C$336=\"(=NON)\",($B1381*'1 Données d''entrée'!$C$332)*((('1 Données d''entrée'!$C$332+1)^'1 Données d''entrée'!$C$334-1)/('1 Données d''entrée'!$C$332))*(1+'1 Données d''entrée'!$C$332),0),0)","v":0},{"$f":"IF(U1367='1 Données d''entrée'!$C$334+1,IF('1 Données d''entrée'!$C$336=\"(=NON)\",($B1381*'1 Données d''entrée'!$C$332)*((('1 Données d''entrée'!$C$332+1)^'1 Données d''entrée'!$C$334-1)/('1 Données d''entrée'!$C$332))*(1+'1 Données d''entrée'!$C$332),0),0)","v":0},{"$f":"IF(V1367='1 Données d''entrée'!$C$334+1,IF('1 Données d''entrée'!$C$336=\"(=NON)\",($B1381*'1 Données d''entrée'!$C$332)*((('1 Données d''entrée'!$C$332+1)^'1 Données d''entrée'!$C$334-1)/('1 Données d''entrée'!$C$332))*(1+'1 Données d''entrée'!$C$332),0),0)","v":0}]
["Prêt bancaire - Option 3: Remboursement vers l'annuité constante",{"$f":"'1 Données d''entrée'!$B$344","v":0},"% de prêt total"]
["Réception ",{"$f":"B1361*B1385","v":0},0,0,0,0,0,0,0,0,0,0,0,0,0,0,0,0,0,0,0,0]
["Remboursement vers l'annuité constante",{"$f":"IF(B1367<'1 Données d''entrée'!$C$334+1,0,IF(B1367<'1 Données d''entrée'!$C$333+'1 Données d''entrée'!$C$334+1,$B1386*('1 Données d''entrée'!$C$332*(1+'1 Données d''entrée'!$C$332)^'1 Données d''entrée'!$C$333)/((1+'1 Données d''entrée'!$C$332)^'1 Données d''entrée'!$C$333-1),0))","v":0},{"$f":"IF(C1367<'1 Données d''entrée'!$C$334+1,0,IF(C1367<'1 Données d''entrée'!$C$333+'1 Données d''entrée'!$C$334+1,$B1386*('1 Données d''entrée'!$C$332*(1+'1 Données d''entrée'!$C$332)^'1 Données d''entrée'!$C$333)/((1+'1 Données d''entrée'!$C$332)^'1 Données d''entrée'!$C$333-1),0))","v":0},{"$f":"IF(D1367<'1 Données d''entrée'!$C$334+1,0,IF(D1367<'1 Données d''entrée'!$C$333+'1 Données d''entrée'!$C$334+1,$B1386*('1 Données d''entrée'!$C$332*(1+'1 Données d''entrée'!$C$332)^'1 Données d''entrée'!$C$333)/((1+'1 Données d''entrée'!$C$332)^'1 Données d''entrée'!$C$333-1),0))","v":0},{"$f":"IF(E1367<'1 Données d''entrée'!$C$334+1,0,IF(E1367<'1 Données d''entrée'!$C$333+'1 Données d''entrée'!$C$334+1,$B1386*('1 Données d''entrée'!$C$332*(1+'1 Données d''entrée'!$C$332)^'1 Données d''entrée'!$C$333)/((1+'1 Données d''entrée'!$C$332)^'1 Données d''entrée'!$C$333-1),0))","v":0},{"$f":"IF(F1367<'1 Données d''entrée'!$C$334+1,0,IF(F1367<'1 Données d''entrée'!$C$333+'1 Données d''entrée'!$C$334+1,$B1386*('1 Données d''entrée'!$C$332*(1+'1 Données d''entrée'!$C$332)^'1 Données d''entrée'!$C$333)/((1+'1 Données d''entrée'!$C$332)^'1 Données d''entrée'!$C$333-1),0))","v":0},{"$f":"IF(G1367<'1 Données d''entrée'!$C$334+1,0,IF(G1367<'1 Données d''entrée'!$C$333+'1 Données d''entrée'!$C$334+1,$B1386*('1 Données d''entrée'!$C$332*(1+'1 Données d''entrée'!$C$332)^'1 Données d''entrée'!$C$333)/((1+'1 Données d''entrée'!$C$332)^'1 Données d''entrée'!$C$333-1),0))","v":0},{"$f":"IF(H1367<'1 Données d''entrée'!$C$334+1,0,IF(H1367<'1 Données d''entrée'!$C$333+'1 Données d''entrée'!$C$334+1,$B1386*('1 Données d''entrée'!$C$332*(1+'1 Données d''entrée'!$C$332)^'1 Données d''entrée'!$C$333)/((1+'1 Données d''entrée'!$C$332)^'1 Données d''entrée'!$C$333-1),0))","v":0},{"$f":"IF(I1367<'1 Données d''entrée'!$C$334+1,0,IF(I1367<'1 Données d''entrée'!$C$333+'1 Données d''entrée'!$C$334+1,$B1386*('1 Données d''entrée'!$C$332*(1+'1 Données d''entrée'!$C$332)^'1 Données d''entrée'!$C$333)/((1+'1 Données d''entrée'!$C$332)^'1 Données d''entrée'!$C$333-1),0))","v":0},{"$f":"IF(J1367<'1 Données d''entrée'!$C$334+1,0,IF(J1367<'1 Données d''entrée'!$C$333+'1 Données d''entrée'!$C$334+1,$B1386*('1 Données d''entrée'!$C$332*(1+'1 Données d''entrée'!$C$332)^'1 Données d''entrée'!$C$333)/((1+'1 Données d''entrée'!$C$332)^'1 Données d''entrée'!$C$333-1),0))","v":0},{"$f":"IF(K1367<'1 Données d''entrée'!$C$334+1,0,IF(K1367<'1 Données d''entrée'!$C$333+'1 Données d''entrée'!$C$334+1,$B1386*('1 Données d''entrée'!$C$332*(1+'1 Données d''entrée'!$C$332)^'1 Données d''entrée'!$C$333)/((1+'1 Données d''entrée'!$C$332)^'1 Données d''entrée'!$C$333-1),0))","v":0},{"$f":"IF(L1367<'1 Données d''entrée'!$C$334+1,0,IF(L1367<'1 Données d''entrée'!$C$333+'1 Données d''entrée'!$C$334+1,$B1386*('1 Données d''entrée'!$C$332*(1+'1 Données d''entrée'!$C$332)^'1 Données d''entrée'!$C$333)/((1+'1 Données d''entrée'!$C$332)^'1 Données d''entrée'!$C$333-1),0))","v":0},{"$f":"IF(M1367<'1 Données d''entrée'!$C$334+1,0,IF(M1367<'1 Données d''entrée'!$C$333+'1 Données d''entrée'!$C$334+1,$B1386*('1 Données d''entrée'!$C$332*(1+'1 Données d''entrée'!$C$332)^'1 Données d''entrée'!$C$333)/((1+'1 Données d''entrée'!$C$332)^'1 Données d''entrée'!$C$333-1),0))","v":0},{"$f":"IF(N1367<'1 Données d''entrée'!$C$334+1,0,IF(N1367<'1 Données d''entrée'!$C$333+'1 Données d''entrée'!$C$334+1,$B1386*('1 Données d''entrée'!$C$332*(1+'1 Données d''entrée'!$C$332)^'1 Données d''entrée'!$C$333)/((1+'1 Données d''entrée'!$C$332)^'1 Données d''entrée'!$C$333-1),0))","v":0},{"$f":"IF(O1367<'1 Données d''entrée'!$C$334+1,0,IF(O1367<'1 Données d''entrée'!$C$333+'1 Données d''entrée'!$C$334+1,$B1386*('1 Données d''entrée'!$C$332*(1+'1 Données d''entrée'!$C$332)^'1 Données d''entrée'!$C$333)/((1+'1 Données d''entrée'!$C$332)^'1 Données d''entrée'!$C$333-1),0))","v":0},{"$f":"IF(P1367<'1 Données d''entrée'!$C$334+1,0,IF(P1367<'1 Données d''entrée'!$C$333+'1 Données d''entrée'!$C$334+1,$B1386*('1 Données d''entrée'!$C$332*(1+'1 Données d''entrée'!$C$332)^'1 Données d''entrée'!$C$333)/((1+'1 Données d''entrée'!$C$332)^'1 Données d''entrée'!$C$333-1),0))","v":0},{"$f":"IF(Q1367<'1 Données d''entrée'!$C$334+1,0,IF(Q1367<'1 Données d''entrée'!$C$333+'1 Données d''entrée'!$C$334+1,$B1386*('1 Données d''entrée'!$C$332*(1+'1 Données d''entrée'!$C$332)^'1 Données d''entrée'!$C$333)/((1+'1 Données d''entrée'!$C$332)^'1 Données d''entrée'!$C$333-1),0))","v":0},{"$f":"IF(R1367<'1 Données d''entrée'!$C$334+1,0,IF(R1367<'1 Données d''entrée'!$C$333+'1 Données d''entrée'!$C$334+1,$B1386*('1 Données d''entrée'!$C$332*(1+'1 Données d''entrée'!$C$332)^'1 Données d''entrée'!$C$333)/((1+'1 Données d''entrée'!$C$332)^'1 Données d''entrée'!$C$333-1),0))","v":0},{"$f":"IF(S1367<'1 Données d''entrée'!$C$334+1,0,IF(S1367<'1 Données d''entrée'!$C$333+'1 Données d''entrée'!$C$334+1,$B1386*('1 Données d''entrée'!$C$332*(1+'1 Données d''entrée'!$C$332)^'1 Données d''entrée'!$C$333)/((1+'1 Données d''entrée'!$C$332)^'1 Données d''entrée'!$C$333-1),0))","v":0},{"$f":"IF(T1367<'1 Données d''entrée'!$C$334+1,0,IF(T1367<'1 Données d''entrée'!$C$333+'1 Données d''entrée'!$C$334+1,$B1386*('1 Données d''entrée'!$C$332*(1+'1 Données d''entrée'!$C$332)^'1 Données d''entrée'!$C$333)/((1+'1 Données d''entrée'!$C$332)^'1 Données d''entrée'!$C$333-1),0))","v":0},{"$f":"IF(U1367<'1 Données d''entrée'!$C$334+1,0,IF(U1367<'1 Données d''entrée'!$C$333+'1 Données d''entrée'!$C$334+1,$B1386*('1 Données d''entrée'!$C$332*(1+'1 Données d''entrée'!$C$332)^'1 Données d''entrée'!$C$333)/((1+'1 Données d''entrée'!$C$332)^'1 Données d''entrée'!$C$333-1),0))","v":0},{"$f":"IF(V1367<'1 Données d''entrée'!$C$334+1,0,IF(V1367<'1 Données d''entrée'!$C$333+'1 Données d''entrée'!$C$334+1,$B1386*('1 Données d''entrée'!$C$332*(1+'1 Données d''entrée'!$C$332)^'1 Données d''entrée'!$C$333)/((1+'1 Données d''entrée'!$C$332)^'1 Données d''entrée'!$C$333-1),0))","v":0}]
["Paiement d'intérêt décroissant inclu dans l'annuité constante",0,{"$f":"IF('1 Données d''entrée'!$C$336=\"(=NON)\",IF(C1387>0,$B1386*((('1 Données d''entrée'!$C$332+1)^'1 Données d''entrée'!$C$333)-(1+'1 Données d''entrée'!$C$332)^('6 Financement'!C$54-1-'1 Données d''entrée'!$C$334))/((1+'1 Données d''entrée'!$C$332)^'1 Données d''entrée'!$C$333-1)*'1 Données d''entrée'!$C$332,0),IF(C1367<'1 Données d''entrée'!$C$334+1,'1 Données d''entrée'!$C$332*'6 Financement'!$B1386,IF(C1387>0,$B$73*((('1 Données d''entrée'!$C$332+1)^'1 Données d''entrée'!$C$333)-(1+'1 Données d''entrée'!$C$332)^('6 Financement'!C$54-1-'1 Données d''entrée'!$C$334))/((1+'1 Données d''entrée'!$C$332)^'1 Données d''entrée'!$C$333-1)*'1 Données d''entrée'!$C$332,0)))","v":0},{"$f":"IF('1 Données d''entrée'!$C$336=\"(=NON)\",IF(D1387>0,$B1386*((('1 Données d''entrée'!$C$332+1)^'1 Données d''entrée'!$C$333)-(1+'1 Données d''entrée'!$C$332)^('6 Financement'!D$54-1-'1 Données d''entrée'!$C$334))/((1+'1 Données d''entrée'!$C$332)^'1 Données d''entrée'!$C$333-1)*'1 Données d''entrée'!$C$332,0),IF(D1367<'1 Données d''entrée'!$C$334+1,'1 Données d''entrée'!$C$332*'6 Financement'!$B1386,IF(D1387>0,$B$73*((('1 Données d''entrée'!$C$332+1)^'1 Données d''entrée'!$C$333)-(1+'1 Données d''entrée'!$C$332)^('6 Financement'!D$54-1-'1 Données d''entrée'!$C$334))/((1+'1 Données d''entrée'!$C$332)^'1 Données d''entrée'!$C$333-1)*'1 Données d''entrée'!$C$332,0)))","v":0},{"$f":"IF('1 Données d''entrée'!$C$336=\"(=NON)\",IF(E1387>0,$B1386*((('1 Données d''entrée'!$C$332+1)^'1 Données d''entrée'!$C$333)-(1+'1 Données d''entrée'!$C$332)^('6 Financement'!E$54-1-'1 Données d''entrée'!$C$334))/((1+'1 Données d''entrée'!$C$332)^'1 Données d''entrée'!$C$333-1)*'1 Données d''entrée'!$C$332,0),IF(E1367<'1 Données d''entrée'!$C$334+1,'1 Données d''entrée'!$C$332*'6 Financement'!$B1386,IF(E1387>0,$B$73*((('1 Données d''entrée'!$C$332+1)^'1 Données d''entrée'!$C$333)-(1+'1 Données d''entrée'!$C$332)^('6 Financement'!E$54-1-'1 Données d''entrée'!$C$334))/((1+'1 Données d''entrée'!$C$332)^'1 Données d''entrée'!$C$333-1)*'1 Données d''entrée'!$C$332,0)))","v":0},{"$f":"IF('1 Données d''entrée'!$C$336=\"(=NON)\",IF(F1387>0,$B1386*((('1 Données d''entrée'!$C$332+1)^'1 Données d''entrée'!$C$333)-(1+'1 Données d''entrée'!$C$332)^('6 Financement'!F$54-1-'1 Données d''entrée'!$C$334))/((1+'1 Données d''entrée'!$C$332)^'1 Données d''entrée'!$C$333-1)*'1 Données d''entrée'!$C$332,0),IF(F1367<'1 Données d''entrée'!$C$334+1,'1 Données d''entrée'!$C$332*'6 Financement'!$B1386,IF(F1387>0,$B$73*((('1 Données d''entrée'!$C$332+1)^'1 Données d''entrée'!$C$333)-(1+'1 Données d''entrée'!$C$332)^('6 Financement'!F$54-1-'1 Données d''entrée'!$C$334))/((1+'1 Données d''entrée'!$C$332)^'1 Données d''entrée'!$C$333-1)*'1 Données d''entrée'!$C$332,0)))","v":0},{"$f":"IF('1 Données d''entrée'!$C$336=\"(=NON)\",IF(G1387>0,$B1386*((('1 Données d''entrée'!$C$332+1)^'1 Données d''entrée'!$C$333)-(1+'1 Données d''entrée'!$C$332)^('6 Financement'!G$54-1-'1 Données d''entrée'!$C$334))/((1+'1 Données d''entrée'!$C$332)^'1 Données d''entrée'!$C$333-1)*'1 Données d''entrée'!$C$332,0),IF(G1367<'1 Données d''entrée'!$C$334+1,'1 Données d''entrée'!$C$332*'6 Financement'!$B1386,IF(G1387>0,$B$73*((('1 Données d''entrée'!$C$332+1)^'1 Données d''entrée'!$C$333)-(1+'1 Données d''entrée'!$C$332)^('6 Financement'!G$54-1-'1 Données d''entrée'!$C$334))/((1+'1 Données d''entrée'!$C$332)^'1 Données d''entrée'!$C$333-1)*'1 Données d''entrée'!$C$332,0)))","v":0},{"$f":"IF('1 Données d''entrée'!$C$336=\"(=NON)\",IF(H1387>0,$B1386*((('1 Données d''entrée'!$C$332+1)^'1 Données d''entrée'!$C$333)-(1+'1 Données d''entrée'!$C$332)^('6 Financement'!H$54-1-'1 Données d''entrée'!$C$334))/((1+'1 Données d''entrée'!$C$332)^'1 Données d''entrée'!$C$333-1)*'1 Données d''entrée'!$C$332,0),IF(H1367<'1 Données d''entrée'!$C$334+1,'1 Données d''entrée'!$C$332*'6 Financement'!$B1386,IF(H1387>0,$B$73*((('1 Données d''entrée'!$C$332+1)^'1 Données d''entrée'!$C$333)-(1+'1 Données d''entrée'!$C$332)^('6 Financement'!H$54-1-'1 Données d''entrée'!$C$334))/((1+'1 Données d''entrée'!$C$332)^'1 Données d''entrée'!$C$333-1)*'1 Données d''entrée'!$C$332,0)))","v":0},{"$f":"IF('1 Données d''entrée'!$C$336=\"(=NON)\",IF(I1387>0,$B1386*((('1 Données d''entrée'!$C$332+1)^'1 Données d''entrée'!$C$333)-(1+'1 Données d''entrée'!$C$332)^('6 Financement'!I$54-1-'1 Données d''entrée'!$C$334))/((1+'1 Données d''entrée'!$C$332)^'1 Données d''entrée'!$C$333-1)*'1 Données d''entrée'!$C$332,0),IF(I1367<'1 Données d''entrée'!$C$334+1,'1 Données d''entrée'!$C$332*'6 Financement'!$B1386,IF(I1387>0,$B$73*((('1 Données d''entrée'!$C$332+1)^'1 Données d''entrée'!$C$333)-(1+'1 Données d''entrée'!$C$332)^('6 Financement'!I$54-1-'1 Données d''entrée'!$C$334))/((1+'1 Données d''entrée'!$C$332)^'1 Données d''entrée'!$C$333-1)*'1 Données d''entrée'!$C$332,0)))","v":0},{"$f":"IF('1 Données d''entrée'!$C$336=\"(=NON)\",IF(J1387>0,$B1386*((('1 Données d''entrée'!$C$332+1)^'1 Données d''entrée'!$C$333)-(1+'1 Données d''entrée'!$C$332)^('6 Financement'!J$54-1-'1 Données d''entrée'!$C$334))/((1+'1 Données d''entrée'!$C$332)^'1 Données d''entrée'!$C$333-1)*'1 Données d''entrée'!$C$332,0),IF(J1367<'1 Données d''entrée'!$C$334+1,'1 Données d''entrée'!$C$332*'6 Financement'!$B1386,IF(J1387>0,$B$73*((('1 Données d''entrée'!$C$332+1)^'1 Données d''entrée'!$C$333)-(1+'1 Données d''entrée'!$C$332)^('6 Financement'!J$54-1-'1 Données d''entrée'!$C$334))/((1+'1 Données d''entrée'!$C$332)^'1 Données d''entrée'!$C$333-1)*'1 Données d''entrée'!$C$332,0)))","v":0},{"$f":"IF('1 Données d''entrée'!$C$336=\"(=NON)\",IF(K1387>0,$B1386*((('1 Données d''entrée'!$C$332+1)^'1 Données d''entrée'!$C$333)-(1+'1 Données d''entrée'!$C$332)^('6 Financement'!K$54-1-'1 Données d''entrée'!$C$334))/((1+'1 Données d''entrée'!$C$332)^'1 Données d''entrée'!$C$333-1)*'1 Données d''entrée'!$C$332,0),IF(K1367<'1 Données d''entrée'!$C$334+1,'1 Données d''entrée'!$C$332*'6 Financement'!$B1386,IF(K1387>0,$B$73*((('1 Données d''entrée'!$C$332+1)^'1 Données d''entrée'!$C$333)-(1+'1 Données d''entrée'!$C$332)^('6 Financement'!K$54-1-'1 Données d''entrée'!$C$334))/((1+'1 Données d''entrée'!$C$332)^'1 Données d''entrée'!$C$333-1)*'1 Données d''entrée'!$C$332,0)))","v":0},{"$f":"IF('1 Données d''entrée'!$C$336=\"(=NON)\",IF(L1387>0,$B1386*((('1 Données d''entrée'!$C$332+1)^'1 Données d''entrée'!$C$333)-(1+'1 Données d''entrée'!$C$332)^('6 Financement'!L$54-1-'1 Données d''entrée'!$C$334))/((1+'1 Données d''entrée'!$C$332)^'1 Données d''entrée'!$C$333-1)*'1 Données d''entrée'!$C$332,0),IF(L1367<'1 Données d''entrée'!$C$334+1,'1 Données d''entrée'!$C$332*'6 Financement'!$B1386,IF(L1387>0,$B$73*((('1 Données d''entrée'!$C$332+1)^'1 Données d''entrée'!$C$333)-(1+'1 Données d''entrée'!$C$332)^('6 Financement'!L$54-1-'1 Données d''entrée'!$C$334))/((1+'1 Données d''entrée'!$C$332)^'1 Données d''entrée'!$C$333-1)*'1 Données d''entrée'!$C$332,0)))","v":0},{"$f":"IF('1 Données d''entrée'!$C$336=\"(=NON)\",IF(M1387>0,$B1386*((('1 Données d''entrée'!$C$332+1)^'1 Données d''entrée'!$C$333)-(1+'1 Données d''entrée'!$C$332)^('6 Financement'!M$54-1-'1 Données d''entrée'!$C$334))/((1+'1 Données d''entrée'!$C$332)^'1 Données d''entrée'!$C$333-1)*'1 Données d''entrée'!$C$332,0),IF(M1367<'1 Données d''entrée'!$C$334+1,'1 Données d''entrée'!$C$332*'6 Financement'!$B1386,IF(M1387>0,$B$73*((('1 Données d''entrée'!$C$332+1)^'1 Données d''entrée'!$C$333)-(1+'1 Données d''entrée'!$C$332)^('6 Financement'!M$54-1-'1 Données d''entrée'!$C$334))/((1+'1 Données d''entrée'!$C$332)^'1 Données d''entrée'!$C$333-1)*'1 Données d''entrée'!$C$332,0)))","v":0},{"$f":"IF('1 Données d''entrée'!$C$336=\"(=NON)\",IF(N1387>0,$B1386*((('1 Données d''entrée'!$C$332+1)^'1 Données d''entrée'!$C$333)-(1+'1 Données d''entrée'!$C$332)^('6 Financement'!N$54-1-'1 Données d''entrée'!$C$334))/((1+'1 Données d''entrée'!$C$332)^'1 Données d''entrée'!$C$333-1)*'1 Données d''entrée'!$C$332,0),IF(N1367<'1 Données d''entrée'!$C$334+1,'1 Données d''entrée'!$C$332*'6 Financement'!$B1386,IF(N1387>0,$B$73*((('1 Données d''entrée'!$C$332+1)^'1 Données d''entrée'!$C$333)-(1+'1 Données d''entrée'!$C$332)^('6 Financement'!N$54-1-'1 Données d''entrée'!$C$334))/((1+'1 Données d''entrée'!$C$332)^'1 Données d''entrée'!$C$333-1)*'1 Données d''entrée'!$C$332,0)))","v":0},{"$f":"IF('1 Données d''entrée'!$C$336=\"(=NON)\",IF(O1387>0,$B1386*((('1 Données d''entrée'!$C$332+1)^'1 Données d''entrée'!$C$333)-(1+'1 Données d''entrée'!$C$332)^('6 Financement'!O$54-1-'1 Données d''entrée'!$C$334))/((1+'1 Données d''entrée'!$C$332)^'1 Données d''entrée'!$C$333-1)*'1 Données d''entrée'!$C$332,0),IF(O1367<'1 Données d''entrée'!$C$334+1,'1 Données d''entrée'!$C$332*'6 Financement'!$B1386,IF(O1387>0,$B$73*((('1 Données d''entrée'!$C$332+1)^'1 Données d''entrée'!$C$333)-(1+'1 Données d''entrée'!$C$332)^('6 Financement'!O$54-1-'1 Données d''entrée'!$C$334))/((1+'1 Données d''entrée'!$C$332)^'1 Données d''entrée'!$C$333-1)*'1 Données d''entrée'!$C$332,0)))","v":0},{"$f":"IF('1 Données d''entrée'!$C$336=\"(=NON)\",IF(P1387>0,$B1386*((('1 Données d''entrée'!$C$332+1)^'1 Données d''entrée'!$C$333)-(1+'1 Données d''entrée'!$C$332)^('6 Financement'!P$54-1-'1 Données d''entrée'!$C$334))/((1+'1 Données d''entrée'!$C$332)^'1 Données d''entrée'!$C$333-1)*'1 Données d''entrée'!$C$332,0),IF(P1367<'1 Données d''entrée'!$C$334+1,'1 Données d''entrée'!$C$332*'6 Financement'!$B1386,IF(P1387>0,$B$73*((('1 Données d''entrée'!$C$332+1)^'1 Données d''entrée'!$C$333)-(1+'1 Données d''entrée'!$C$332)^('6 Financement'!P$54-1-'1 Données d''entrée'!$C$334))/((1+'1 Données d''entrée'!$C$332)^'1 Données d''entrée'!$C$333-1)*'1 Données d''entrée'!$C$332,0)))","v":0},{"$f":"IF('1 Données d''entrée'!$C$336=\"(=NON)\",IF(Q1387>0,$B1386*((('1 Données d''entrée'!$C$332+1)^'1 Données d''entrée'!$C$333)-(1+'1 Données d''entrée'!$C$332)^('6 Financement'!Q$54-1-'1 Données d''entrée'!$C$334))/((1+'1 Données d''entrée'!$C$332)^'1 Données d''entrée'!$C$333-1)*'1 Données d''entrée'!$C$332,0),IF(Q1367<'1 Données d''entrée'!$C$334+1,'1 Données d''entrée'!$C$332*'6 Financement'!$B1386,IF(Q1387>0,$B$73*((('1 Données d''entrée'!$C$332+1)^'1 Données d''entrée'!$C$333)-(1+'1 Données d''entrée'!$C$332)^('6 Financement'!Q$54-1-'1 Données d''entrée'!$C$334))/((1+'1 Données d''entrée'!$C$332)^'1 Données d''entrée'!$C$333-1)*'1 Données d''entrée'!$C$332,0)))","v":0},{"$f":"IF('1 Données d''entrée'!$C$336=\"(=NON)\",IF(R1387>0,$B1386*((('1 Données d''entrée'!$C$332+1)^'1 Données d''entrée'!$C$333)-(1+'1 Données d''entrée'!$C$332)^('6 Financement'!R$54-1-'1 Données d''entrée'!$C$334))/((1+'1 Données d''entrée'!$C$332)^'1 Données d''entrée'!$C$333-1)*'1 Données d''entrée'!$C$332,0),IF(R1367<'1 Données d''entrée'!$C$334+1,'1 Données d''entrée'!$C$332*'6 Financement'!$B1386,IF(R1387>0,$B$73*((('1 Données d''entrée'!$C$332+1)^'1 Données d''entrée'!$C$333)-(1+'1 Données d''entrée'!$C$332)^('6 Financement'!R$54-1-'1 Données d''entrée'!$C$334))/((1+'1 Données d''entrée'!$C$332)^'1 Données d''entrée'!$C$333-1)*'1 Données d''entrée'!$C$332,0)))","v":0},{"$f":"IF('1 Données d''entrée'!$C$336=\"(=NON)\",IF(S1387>0,$B1386*((('1 Données d''entrée'!$C$332+1)^'1 Données d''entrée'!$C$333)-(1+'1 Données d''entrée'!$C$332)^('6 Financement'!S$54-1-'1 Données d''entrée'!$C$334))/((1+'1 Données d''entrée'!$C$332)^'1 Données d''entrée'!$C$333-1)*'1 Données d''entrée'!$C$332,0),IF(S1367<'1 Données d''entrée'!$C$334+1,'1 Données d''entrée'!$C$332*'6 Financement'!$B1386,IF(S1387>0,$B$73*((('1 Données d''entrée'!$C$332+1)^'1 Données d''entrée'!$C$333)-(1+'1 Données d''entrée'!$C$332)^('6 Financement'!S$54-1-'1 Données d''entrée'!$C$334))/((1+'1 Données d''entrée'!$C$332)^'1 Données d''entrée'!$C$333-1)*'1 Données d''entrée'!$C$332,0)))","v":0},{"$f":"IF('1 Données d''entrée'!$C$336=\"(=NON)\",IF(T1387>0,$B1386*((('1 Données d''entrée'!$C$332+1)^'1 Données d''entrée'!$C$333)-(1+'1 Données d''entrée'!$C$332)^('6 Financement'!T$54-1-'1 Données d''entrée'!$C$334))/((1+'1 Données d''entrée'!$C$332)^'1 Données d''entrée'!$C$333-1)*'1 Données d''entrée'!$C$332,0),IF(T1367<'1 Données d''entrée'!$C$334+1,'1 Données d''entrée'!$C$332*'6 Financement'!$B1386,IF(T1387>0,$B$73*((('1 Données d''entrée'!$C$332+1)^'1 Données d''entrée'!$C$333)-(1+'1 Données d''entrée'!$C$332)^('6 Financement'!T$54-1-'1 Données d''entrée'!$C$334))/((1+'1 Données d''entrée'!$C$332)^'1 Données d''entrée'!$C$333-1)*'1 Données d''entrée'!$C$332,0)))","v":0},{"$f":"IF('1 Données d''entrée'!$C$336=\"(=NON)\",IF(U1387>0,$B1386*((('1 Données d''entrée'!$C$332+1)^'1 Données d''entrée'!$C$333)-(1+'1 Données d''entrée'!$C$332)^('6 Financement'!U$54-1-'1 Données d''entrée'!$C$334))/((1+'1 Données d''entrée'!$C$332)^'1 Données d''entrée'!$C$333-1)*'1 Données d''entrée'!$C$332,0),IF(U1367<'1 Données d''entrée'!$C$334+1,'1 Données d''entrée'!$C$332*'6 Financement'!$B1386,IF(U1387>0,$B$73*((('1 Données d''entrée'!$C$332+1)^'1 Données d''entrée'!$C$333)-(1+'1 Données d''entrée'!$C$332)^('6 Financement'!U$54-1-'1 Données d''entrée'!$C$334))/((1+'1 Données d''entrée'!$C$332)^'1 Données d''entrée'!$C$333-1)*'1 Données d''entrée'!$C$332,0)))","v":0},{"$f":"IF('1 Données d''entrée'!$C$336=\"(=NON)\",IF(V1387>0,$B1386*((('1 Données d''entrée'!$C$332+1)^'1 Données d''entrée'!$C$333)-(1+'1 Données d''entrée'!$C$332)^('6 Financement'!V$54-1-'1 Données d''entrée'!$C$334))/((1+'1 Données d''entrée'!$C$332)^'1 Données d''entrée'!$C$333-1)*'1 Données d''entrée'!$C$332,0),IF(V1367<'1 Données d''entrée'!$C$334+1,'1 Données d''entrée'!$C$332*'6 Financement'!$B1386,IF(V1387>0,$B$73*((('1 Données d''entrée'!$C$332+1)^'1 Données d''entrée'!$C$333)-(1+'1 Données d''entrée'!$C$332)^('6 Financement'!V$54-1-'1 Données d''entrée'!$C$334))/((1+'1 Données d''entrée'!$C$332)^'1 Données d''entrée'!$C$333-1)*'1 Données d''entrée'!$C$332,0)))","v":0}]
["Paiements d'intérêt avec des intérêts composés en cas d'absence des paiements dans la période de grâce",0,0,{"$f":"IF(D1367='1 Données d''entrée'!$C$334+1,IF('1 Données d''entrée'!$C$336=\"(=NON)\",($B1386*'1 Données d''entrée'!$C$332)*((('1 Données d''entrée'!$C$332+1)^'1 Données d''entrée'!$C$334-1)/('1 Données d''entrée'!$C$332))*(1+'1 Données d''entrée'!$C$332),0),0)","v":0},{"$f":"IF(E1367='1 Données d''entrée'!$C$334+1,IF('1 Données d''entrée'!$C$336=\"(=NON)\",($B1386*'1 Données d''entrée'!$C$332)*((('1 Données d''entrée'!$C$332+1)^'1 Données d''entrée'!$C$334-1)/('1 Données d''entrée'!$C$332))*(1+'1 Données d''entrée'!$C$332),0),0)","v":0},{"$f":"IF(F1367='1 Données d''entrée'!$C$334+1,IF('1 Données d''entrée'!$C$336=\"(=NON)\",($B1386*'1 Données d''entrée'!$C$332)*((('1 Données d''entrée'!$C$332+1)^'1 Données d''entrée'!$C$334-1)/('1 Données d''entrée'!$C$332))*(1+'1 Données d''entrée'!$C$332),0),0)","v":0},{"$f":"IF(G1367='1 Données d''entrée'!$C$334+1,IF('1 Données d''entrée'!$C$336=\"(=NON)\",($B1386*'1 Données d''entrée'!$C$332)*((('1 Données d''entrée'!$C$332+1)^'1 Données d''entrée'!$C$334-1)/('1 Données d''entrée'!$C$332))*(1+'1 Données d''entrée'!$C$332),0),0)","v":0},{"$f":"IF(H1367='1 Données d''entrée'!$C$334+1,IF('1 Données d''entrée'!$C$336=\"(=NON)\",($B1386*'1 Données d''entrée'!$C$332)*((('1 Données d''entrée'!$C$332+1)^'1 Données d''entrée'!$C$334-1)/('1 Données d''entrée'!$C$332))*(1+'1 Données d''entrée'!$C$332),0),0)","v":0},{"$f":"IF(I1367='1 Données d''entrée'!$C$334+1,IF('1 Données d''entrée'!$C$336=\"(=NON)\",($B1386*'1 Données d''entrée'!$C$332)*((('1 Données d''entrée'!$C$332+1)^'1 Données d''entrée'!$C$334-1)/('1 Données d''entrée'!$C$332))*(1+'1 Données d''entrée'!$C$332),0),0)","v":0},{"$f":"IF(J1367='1 Données d''entrée'!$C$334+1,IF('1 Données d''entrée'!$C$336=\"(=NON)\",($B1386*'1 Données d''entrée'!$C$332)*((('1 Données d''entrée'!$C$332+1)^'1 Données d''entrée'!$C$334-1)/('1 Données d''entrée'!$C$332))*(1+'1 Données d''entrée'!$C$332),0),0)","v":0},{"$f":"IF(K1367='1 Données d''entrée'!$C$334+1,IF('1 Données d''entrée'!$C$336=\"(=NON)\",($B1386*'1 Données d''entrée'!$C$332)*((('1 Données d''entrée'!$C$332+1)^'1 Données d''entrée'!$C$334-1)/('1 Données d''entrée'!$C$332))*(1+'1 Données d''entrée'!$C$332),0),0)","v":0},{"$f":"IF(L1367='1 Données d''entrée'!$C$334+1,IF('1 Données d''entrée'!$C$336=\"(=NON)\",($B1386*'1 Données d''entrée'!$C$332)*((('1 Données d''entrée'!$C$332+1)^'1 Données d''entrée'!$C$334-1)/('1 Données d''entrée'!$C$332))*(1+'1 Données d''entrée'!$C$332),0),0)","v":0},{"$f":"IF(M1367='1 Données d''entrée'!$C$334+1,IF('1 Données d''entrée'!$C$336=\"(=NON)\",($B1386*'1 Données d''entrée'!$C$332)*((('1 Données d''entrée'!$C$332+1)^'1 Données d''entrée'!$C$334-1)/('1 Données d''entrée'!$C$332))*(1+'1 Données d''entrée'!$C$332),0),0)","v":0},{"$f":"IF(N1367='1 Données d''entrée'!$C$334+1,IF('1 Données d''entrée'!$C$336=\"(=NON)\",($B1386*'1 Données d''entrée'!$C$332)*((('1 Données d''entrée'!$C$332+1)^'1 Données d''entrée'!$C$334-1)/('1 Données d''entrée'!$C$332))*(1+'1 Données d''entrée'!$C$332),0),0)","v":0},{"$f":"IF(O1367='1 Données d''entrée'!$C$334+1,IF('1 Données d''entrée'!$C$336=\"(=NON)\",($B1386*'1 Données d''entrée'!$C$332)*((('1 Données d''entrée'!$C$332+1)^'1 Données d''entrée'!$C$334-1)/('1 Données d''entrée'!$C$332))*(1+'1 Données d''entrée'!$C$332),0),0)","v":0},{"$f":"IF(P1367='1 Données d''entrée'!$C$334+1,IF('1 Données d''entrée'!$C$336=\"(=NON)\",($B1386*'1 Données d''entrée'!$C$332)*((('1 Données d''entrée'!$C$332+1)^'1 Données d''entrée'!$C$334-1)/('1 Données d''entrée'!$C$332))*(1+'1 Données d''entrée'!$C$332),0),0)","v":0},{"$f":"IF(Q1367='1 Données d''entrée'!$C$334+1,IF('1 Données d''entrée'!$C$336=\"(=NON)\",($B1386*'1 Données d''entrée'!$C$332)*((('1 Données d''entrée'!$C$332+1)^'1 Données d''entrée'!$C$334-1)/('1 Données d''entrée'!$C$332))*(1+'1 Données d''entrée'!$C$332),0),0)","v":0},{"$f":"IF(R1367='1 Données d''entrée'!$C$334+1,IF('1 Données d''entrée'!$C$336=\"(=NON)\",($B1386*'1 Données d''entrée'!$C$332)*((('1 Données d''entrée'!$C$332+1)^'1 Données d''entrée'!$C$334-1)/('1 Données d''entrée'!$C$332))*(1+'1 Données d''entrée'!$C$332),0),0)","v":0},{"$f":"IF(S1367='1 Données d''entrée'!$C$334+1,IF('1 Données d''entrée'!$C$336=\"(=NON)\",($B1386*'1 Données d''entrée'!$C$332)*((('1 Données d''entrée'!$C$332+1)^'1 Données d''entrée'!$C$334-1)/('1 Données d''entrée'!$C$332))*(1+'1 Données d''entrée'!$C$332),0),0)","v":0},{"$f":"IF(T1367='1 Données d''entrée'!$C$334+1,IF('1 Données d''entrée'!$C$336=\"(=NON)\",($B1386*'1 Données d''entrée'!$C$332)*((('1 Données d''entrée'!$C$332+1)^'1 Données d''entrée'!$C$334-1)/('1 Données d''entrée'!$C$332))*(1+'1 Données d''entrée'!$C$332),0),0)","v":0},{"$f":"IF(U1367='1 Données d''entrée'!$C$334+1,IF('1 Données d''entrée'!$C$336=\"(=NON)\",($B1386*'1 Données d''entrée'!$C$332)*((('1 Données d''entrée'!$C$332+1)^'1 Données d''entrée'!$C$334-1)/('1 Données d''entrée'!$C$332))*(1+'1 Données d''entrée'!$C$332),0),0)","v":0},{"$f":"IF(V1367='1 Données d''entrée'!$C$334+1,IF('1 Données d''entrée'!$C$336=\"(=NON)\",($B1386*'1 Données d''entrée'!$C$332)*((('1 Données d''entrée'!$C$332+1)^'1 Données d''entrée'!$C$334-1)/('1 Données d''entrée'!$C$332))*(1+'1 Données d''entrée'!$C$332),0),0)","v":0}]
[]
["Fonds d'autres donneurs / investisseurs - Subvention",{"$f":"'1 Données d''entrée'!$B$307","v":0}]
["Fonds d'autre donneurs / investisseurs - Prêt; Option 1: Remboursement du principal fractionné",{"$f":"'1 Données d''entrée'!$B$319","v":0},"% de prêt total"]
["Réception et montant restant",{"$f":"'1 Données d''entrée'!$B$306*'1 Données d''entrée'!$B$319+'1 Données d''entrée'!$B$306*'1 Données d''entrée'!$C$316","v":0},{"$f":"B1393-C1394","v":0},{"$f":"C1393-D1394","v":0},0,0,0,0,0,0,0,0,0,0,0,0,0,0,0,0,0,0]
["Remboursement du principal",0,{"$f":"IF(C1367<'1 Données d''entrée'!$C$312+1,0,IF(C1367<'1 Données d''entrée'!$C$312+'1 Données d''entrée'!$C$311+1,($B1393/'1 Données d''entrée'!$C$311),0))","v":0},{"$f":"IF(D1367<'1 Données d''entrée'!$C$312+1,0,IF(D1367<'1 Données d''entrée'!$C$312+'1 Données d''entrée'!$C$311+1,($B1393/'1 Données d''entrée'!$C$311),0))","v":0},{"$f":"IF(E1367<'1 Données d''entrée'!$C$312+1,0,IF(E1367<'1 Données d''entrée'!$C$312+'1 Données d''entrée'!$C$311+1,($B1393/'1 Données d''entrée'!$C$311),0))","v":0},{"$f":"IF(F1367<'1 Données d''entrée'!$C$312+1,0,IF(F1367<'1 Données d''entrée'!$C$312+'1 Données d''entrée'!$C$311+1,($B1393/'1 Données d''entrée'!$C$311),0))","v":0},{"$f":"IF(G1367<'1 Données d''entrée'!$C$312+1,0,IF(G1367<'1 Données d''entrée'!$C$312+'1 Données d''entrée'!$C$311+1,($B1393/'1 Données d''entrée'!$C$311),0))","v":0},{"$f":"IF(H1367<'1 Données d''entrée'!$C$312+1,0,IF(H1367<'1 Données d''entrée'!$C$312+'1 Données d''entrée'!$C$311+1,($B1393/'1 Données d''entrée'!$C$311),0))","v":0},{"$f":"IF(I1367<'1 Données d''entrée'!$C$312+1,0,IF(I1367<'1 Données d''entrée'!$C$312+'1 Données d''entrée'!$C$311+1,($B1393/'1 Données d''entrée'!$C$311),0))","v":0},{"$f":"IF(J1367<'1 Données d''entrée'!$C$312+1,0,IF(J1367<'1 Données d''entrée'!$C$312+'1 Données d''entrée'!$C$311+1,($B1393/'1 Données d''entrée'!$C$311),0))","v":0},{"$f":"IF(K1367<'1 Données d''entrée'!$C$312+1,0,IF(K1367<'1 Données d''entrée'!$C$312+'1 Données d''entrée'!$C$311+1,($B1393/'1 Données d''entrée'!$C$311),0))","v":0},{"$f":"IF(L1367<'1 Données d''entrée'!$C$312+1,0,IF(L1367<'1 Données d''entrée'!$C$312+'1 Données d''entrée'!$C$311+1,($B1393/'1 Données d''entrée'!$C$311),0))","v":0},{"$f":"IF(M1367<'1 Données d''entrée'!$C$312+1,0,IF(M1367<'1 Données d''entrée'!$C$312+'1 Données d''entrée'!$C$311+1,($B1393/'1 Données d''entrée'!$C$311),0))","v":0},{"$f":"IF(N1367<'1 Données d''entrée'!$C$312+1,0,IF(N1367<'1 Données d''entrée'!$C$312+'1 Données d''entrée'!$C$311+1,($B1393/'1 Données d''entrée'!$C$311),0))","v":0},{"$f":"IF(O1367<'1 Données d''entrée'!$C$312+1,0,IF(O1367<'1 Données d''entrée'!$C$312+'1 Données d''entrée'!$C$311+1,($B1393/'1 Données d''entrée'!$C$311),0))","v":0},{"$f":"IF(P1367<'1 Données d''entrée'!$C$312+1,0,IF(P1367<'1 Données d''entrée'!$C$312+'1 Données d''entrée'!$C$311+1,($B1393/'1 Données d''entrée'!$C$311),0))","v":0},{"$f":"IF(Q1367<'1 Données d''entrée'!$C$312+1,0,IF(Q1367<'1 Données d''entrée'!$C$312+'1 Données d''entrée'!$C$311+1,($B1393/'1 Données d''entrée'!$C$311),0))","v":0},{"$f":"IF(R1367<'1 Données d''entrée'!$C$312+1,0,IF(R1367<'1 Données d''entrée'!$C$312+'1 Données d''entrée'!$C$311+1,($B1393/'1 Données d''entrée'!$C$311),0))","v":0},{"$f":"IF(S1367<'1 Données d''entrée'!$C$312+1,0,IF(S1367<'1 Données d''entrée'!$C$312+'1 Données d''entrée'!$C$311+1,($B1393/'1 Données d''entrée'!$C$311),0))","v":0},{"$f":"IF(T1367<'1 Données d''entrée'!$C$312+1,0,IF(T1367<'1 Données d''entrée'!$C$312+'1 Données d''entrée'!$C$311+1,($B1393/'1 Données d''entrée'!$C$311),0))","v":0},{"$f":"IF(U1367<'1 Données d''entrée'!$C$312+1,0,IF(U1367<'1 Données d''entrée'!$C$312+'1 Données d''entrée'!$C$311+1,($B1393/'1 Données d''entrée'!$C$311),0))","v":0},{"$f":"IF(V1367<'1 Données d''entrée'!$C$312+1,0,IF(V1367<'1 Données d''entrée'!$C$312+'1 Données d''entrée'!$C$311+1,($B1393/'1 Données d''entrée'!$C$311),0))","v":0}]
["Paiement d'intérêts",0,{"$f":"IF('1 Données d''entrée'!$C$314=\"(=NON)\",IF(C1367<'1 Données d''entrée'!$C$312+1,0,B1393*'1 Données d''entrée'!$C$310),B1393*'1 Données d''entrée'!$C$310)","v":0},{"$f":"IF('1 Données d''entrée'!$C$314=\"(=NON)\",IF(D1367<'1 Données d''entrée'!$C$312+1,0,C1393*'1 Données d''entrée'!$C$310),C1393*'1 Données d''entrée'!$C$310)","v":0},{"$f":"IF('1 Données d''entrée'!$C$314=\"(=NON)\",IF(E1367<'1 Données d''entrée'!$C$312+1,0,D1393*'1 Données d''entrée'!$C$310),D1393*'1 Données d''entrée'!$C$310)","v":0},{"$f":"IF('1 Données d''entrée'!$C$314=\"(=NON)\",IF(F1367<'1 Données d''entrée'!$C$312+1,0,E1393*'1 Données d''entrée'!$C$310),E1393*'1 Données d''entrée'!$C$310)","v":0},{"$f":"IF('1 Données d''entrée'!$C$314=\"(=NON)\",IF(G1367<'1 Données d''entrée'!$C$312+1,0,F1393*'1 Données d''entrée'!$C$310),F1393*'1 Données d''entrée'!$C$310)","v":0},{"$f":"IF('1 Données d''entrée'!$C$314=\"(=NON)\",IF(H1367<'1 Données d''entrée'!$C$312+1,0,G1393*'1 Données d''entrée'!$C$310),G1393*'1 Données d''entrée'!$C$310)","v":0},{"$f":"IF('1 Données d''entrée'!$C$314=\"(=NON)\",IF(I1367<'1 Données d''entrée'!$C$312+1,0,H1393*'1 Données d''entrée'!$C$310),H1393*'1 Données d''entrée'!$C$310)","v":0},{"$f":"IF('1 Données d''entrée'!$C$314=\"(=NON)\",IF(J1367<'1 Données d''entrée'!$C$312+1,0,I1393*'1 Données d''entrée'!$C$310),I1393*'1 Données d''entrée'!$C$310)","v":0},{"$f":"IF('1 Données d''entrée'!$C$314=\"(=NON)\",IF(K1367<'1 Données d''entrée'!$C$312+1,0,J1393*'1 Données d''entrée'!$C$310),J1393*'1 Données d''entrée'!$C$310)","v":0},{"$f":"IF('1 Données d''entrée'!$C$314=\"(=NON)\",IF(L1367<'1 Données d''entrée'!$C$312+1,0,K1393*'1 Données d''entrée'!$C$310),K1393*'1 Données d''entrée'!$C$310)","v":0},{"$f":"IF('1 Données d''entrée'!$C$314=\"(=NON)\",IF(M1367<'1 Données d''entrée'!$C$312+1,0,L1393*'1 Données d''entrée'!$C$310),L1393*'1 Données d''entrée'!$C$310)","v":0},{"$f":"IF('1 Données d''entrée'!$C$314=\"(=NON)\",IF(N1367<'1 Données d''entrée'!$C$312+1,0,M1393*'1 Données d''entrée'!$C$310),M1393*'1 Données d''entrée'!$C$310)","v":0},{"$f":"IF('1 Données d''entrée'!$C$314=\"(=NON)\",IF(O1367<'1 Données d''entrée'!$C$312+1,0,N1393*'1 Données d''entrée'!$C$310),N1393*'1 Données d''entrée'!$C$310)","v":0},{"$f":"IF('1 Données d''entrée'!$C$314=\"(=NON)\",IF(P1367<'1 Données d''entrée'!$C$312+1,0,O1393*'1 Données d''entrée'!$C$310),O1393*'1 Données d''entrée'!$C$310)","v":0},{"$f":"IF('1 Données d''entrée'!$C$314=\"(=NON)\",IF(Q1367<'1 Données d''entrée'!$C$312+1,0,P1393*'1 Données d''entrée'!$C$310),P1393*'1 Données d''entrée'!$C$310)","v":0},{"$f":"IF('1 Données d''entrée'!$C$314=\"(=NON)\",IF(R1367<'1 Données d''entrée'!$C$312+1,0,Q1393*'1 Données d''entrée'!$C$310),Q1393*'1 Données d''entrée'!$C$310)","v":0},{"$f":"IF('1 Données d''entrée'!$C$314=\"(=NON)\",IF(S1367<'1 Données d''entrée'!$C$312+1,0,R1393*'1 Données d''entrée'!$C$310),R1393*'1 Données d''entrée'!$C$310)","v":0},{"$f":"IF('1 Données d''entrée'!$C$314=\"(=NON)\",IF(T1367<'1 Données d''entrée'!$C$312+1,0,S1393*'1 Données d''entrée'!$C$310),S1393*'1 Données d''entrée'!$C$310)","v":0},{"$f":"IF('1 Données d''entrée'!$C$314=\"(=NON)\",IF(U1367<'1 Données d''entrée'!$C$312+1,0,T1393*'1 Données d''entrée'!$C$310),T1393*'1 Données d''entrée'!$C$310)","v":0},{"$f":"IF('1 Données d''entrée'!$C$314=\"(=NON)\",IF(V1367<'1 Données d''entrée'!$C$312+1,0,U1393*'1 Données d''entrée'!$C$310),U1393*'1 Données d''entrée'!$C$310)","v":0}]
["Paiements d'intérêt avec des intérêts composés en cas d'absence des paiements dans la période de grâce",0,0,{"$f":"IF(D1367='1 Données d''entrée'!$C$312+1,IF('1 Données d''entrée'!$C$314=\"(=NON)\",($B1393*'1 Données d''entrée'!$C$310)*((('1 Données d''entrée'!$C$310+1)^'1 Données d''entrée'!$C$312-1)/('1 Données d''entrée'!$C$310))*(1+'1 Données d''entrée'!$C$310),0),0)","v":0},{"$f":"IF(E1367='1 Données d''entrée'!$C$312+1,IF('1 Données d''entrée'!$C$314=\"(=NON)\",($B1393*'1 Données d''entrée'!$C$310)*((('1 Données d''entrée'!$C$310+1)^'1 Données d''entrée'!$C$312-1)/('1 Données d''entrée'!$C$310))*(1+'1 Données d''entrée'!$C$310),0),0)","v":0},{"$f":"IF(F1367='1 Données d''entrée'!$C$312+1,IF('1 Données d''entrée'!$C$314=\"(=NON)\",($B1393*'1 Données d''entrée'!$C$310)*((('1 Données d''entrée'!$C$310+1)^'1 Données d''entrée'!$C$312-1)/('1 Données d''entrée'!$C$310))*(1+'1 Données d''entrée'!$C$310),0),0)","v":0},{"$f":"IF(G1367='1 Données d''entrée'!$C$312+1,IF('1 Données d''entrée'!$C$314=\"(=NON)\",($B1393*'1 Données d''entrée'!$C$310)*((('1 Données d''entrée'!$C$310+1)^'1 Données d''entrée'!$C$312-1)/('1 Données d''entrée'!$C$310))*(1+'1 Données d''entrée'!$C$310),0),0)","v":0},{"$f":"IF(H1367='1 Données d''entrée'!$C$312+1,IF('1 Données d''entrée'!$C$314=\"(=NON)\",($B1393*'1 Données d''entrée'!$C$310)*((('1 Données d''entrée'!$C$310+1)^'1 Données d''entrée'!$C$312-1)/('1 Données d''entrée'!$C$310))*(1+'1 Données d''entrée'!$C$310),0),0)","v":0},{"$f":"IF(I1367='1 Données d''entrée'!$C$312+1,IF('1 Données d''entrée'!$C$314=\"(=NON)\",($B1393*'1 Données d''entrée'!$C$310)*((('1 Données d''entrée'!$C$310+1)^'1 Données d''entrée'!$C$312-1)/('1 Données d''entrée'!$C$310))*(1+'1 Données d''entrée'!$C$310),0),0)","v":0},{"$f":"IF(J1367='1 Données d''entrée'!$C$312+1,IF('1 Données d''entrée'!$C$314=\"(=NON)\",($B1393*'1 Données d''entrée'!$C$310)*((('1 Données d''entrée'!$C$310+1)^'1 Données d''entrée'!$C$312-1)/('1 Données d''entrée'!$C$310))*(1+'1 Données d''entrée'!$C$310),0),0)","v":0},{"$f":"IF(K1367='1 Données d''entrée'!$C$312+1,IF('1 Données d''entrée'!$C$314=\"(=NON)\",($B1393*'1 Données d''entrée'!$C$310)*((('1 Données d''entrée'!$C$310+1)^'1 Données d''entrée'!$C$312-1)/('1 Données d''entrée'!$C$310))*(1+'1 Données d''entrée'!$C$310),0),0)","v":0},{"$f":"IF(L1367='1 Données d''entrée'!$C$312+1,IF('1 Données d''entrée'!$C$314=\"(=NON)\",($B1393*'1 Données d''entrée'!$C$310)*((('1 Données d''entrée'!$C$310+1)^'1 Données d''entrée'!$C$312-1)/('1 Données d''entrée'!$C$310))*(1+'1 Données d''entrée'!$C$310),0),0)","v":0},{"$f":"IF(M1367='1 Données d''entrée'!$C$312+1,IF('1 Données d''entrée'!$C$314=\"(=NON)\",($B1393*'1 Données d''entrée'!$C$310)*((('1 Données d''entrée'!$C$310+1)^'1 Données d''entrée'!$C$312-1)/('1 Données d''entrée'!$C$310))*(1+'1 Données d''entrée'!$C$310),0),0)","v":0},{"$f":"IF(N1367='1 Données d''entrée'!$C$312+1,IF('1 Données d''entrée'!$C$314=\"(=NON)\",($B1393*'1 Données d''entrée'!$C$310)*((('1 Données d''entrée'!$C$310+1)^'1 Données d''entrée'!$C$312-1)/('1 Données d''entrée'!$C$310))*(1+'1 Données d''entrée'!$C$310),0),0)","v":0},{"$f":"IF(O1367='1 Données d''entrée'!$C$312+1,IF('1 Données d''entrée'!$C$314=\"(=NON)\",($B1393*'1 Données d''entrée'!$C$310)*((('1 Données d''entrée'!$C$310+1)^'1 Données d''entrée'!$C$312-1)/('1 Données d''entrée'!$C$310))*(1+'1 Données d''entrée'!$C$310),0),0)","v":0},{"$f":"IF(P1367='1 Données d''entrée'!$C$312+1,IF('1 Données d''entrée'!$C$314=\"(=NON)\",($B1393*'1 Données d''entrée'!$C$310)*((('1 Données d''entrée'!$C$310+1)^'1 Données d''entrée'!$C$312-1)/('1 Données d''entrée'!$C$310))*(1+'1 Données d''entrée'!$C$310),0),0)","v":0},{"$f":"IF(Q1367='1 Données d''entrée'!$C$312+1,IF('1 Données d''entrée'!$C$314=\"(=NON)\",($B1393*'1 Données d''entrée'!$C$310)*((('1 Données d''entrée'!$C$310+1)^'1 Données d''entrée'!$C$312-1)/('1 Données d''entrée'!$C$310))*(1+'1 Données d''entrée'!$C$310),0),0)","v":0},{"$f":"IF(R1367='1 Données d''entrée'!$C$312+1,IF('1 Données d''entrée'!$C$314=\"(=NON)\",($B1393*'1 Données d''entrée'!$C$310)*((('1 Données d''entrée'!$C$310+1)^'1 Données d''entrée'!$C$312-1)/('1 Données d''entrée'!$C$310))*(1+'1 Données d''entrée'!$C$310),0),0)","v":0},{"$f":"IF(S1367='1 Données d''entrée'!$C$312+1,IF('1 Données d''entrée'!$C$314=\"(=NON)\",($B1393*'1 Données d''entrée'!$C$310)*((('1 Données d''entrée'!$C$310+1)^'1 Données d''entrée'!$C$312-1)/('1 Données d''entrée'!$C$310))*(1+'1 Données d''entrée'!$C$310),0),0)","v":0},{"$f":"IF(T1367='1 Données d''entrée'!$C$312+1,IF('1 Données d''entrée'!$C$314=\"(=NON)\",($B1393*'1 Données d''entrée'!$C$310)*((('1 Données d''entrée'!$C$310+1)^'1 Données d''entrée'!$C$312-1)/('1 Données d''entrée'!$C$310))*(1+'1 Données d''entrée'!$C$310),0),0)","v":0},{"$f":"IF(U1367='1 Données d''entrée'!$C$312+1,IF('1 Données d''entrée'!$C$314=\"(=NON)\",($B1393*'1 Données d''entrée'!$C$310)*((('1 Données d''entrée'!$C$310+1)^'1 Données d''entrée'!$C$312-1)/('1 Données d''entrée'!$C$310))*(1+'1 Données d''entrée'!$C$310),0),0)","v":0},{"$f":"IF(V1367='1 Données d''entrée'!$C$312+1,IF('1 Données d''entrée'!$C$314=\"(=NON)\",($B1393*'1 Données d''entrée'!$C$310)*((('1 Données d''entrée'!$C$310+1)^'1 Données d''entrée'!$C$312-1)/('1 Données d''entrée'!$C$310))*(1+'1 Données d''entrée'!$C$310),0),0)","v":0}]
["Fonds d'autre donneurs / investisseurs - Prêt; Option 2: Remboursement du principal final",{"$f":"'1 Données d''entrée'!$B$320","v":0},"% de prêt total"]
["Réception et montant restant",{"$f":"'1 Données d''entrée'!$B$306*'1 Données d''entrée'!$B$320+'1 Données d''entrée'!$B$306*'1 Données d''entrée'!$C$316","v":0},{"$f":"B1398-C1399","v":0},{"$f":"C1398-D1399","v":0},0,0,0,0,0,0,0,0,0,0,0,0,0,0,0,0,0,0]
["Remboursement du principal",0,{"$f":"IF('1 Données d''entrée'!$C$311+'1 Données d''entrée'!$C$312=C1367,'6 Financement'!$B$85,0)","v":0},{"$f":"IF('1 Données d''entrée'!$C$311+'1 Données d''entrée'!$C$312=D1367,'6 Financement'!$B$85,0)","v":0},{"$f":"IF('1 Données d''entrée'!$C$311+'1 Données d''entrée'!$C$312=E1367,'6 Financement'!$B$85,0)","v":0},{"$f":"IF('1 Données d''entrée'!$C$311+'1 Données d''entrée'!$C$312=F1367,'6 Financement'!$B$85,0)","v":0},{"$f":"IF('1 Données d''entrée'!$C$311+'1 Données d''entrée'!$C$312=G1367,'6 Financement'!$B$85,0)","v":0},{"$f":"IF('1 Données d''entrée'!$C$311+'1 Données d''entrée'!$C$312=H1367,'6 Financement'!$B$85,0)","v":0},{"$f":"IF('1 Données d''entrée'!$C$311+'1 Données d''entrée'!$C$312=I1367,'6 Financement'!$B$85,0)","v":0},{"$f":"IF('1 Données d''entrée'!$C$311+'1 Données d''entrée'!$C$312=J1367,'6 Financement'!$B$85,0)","v":0},{"$f":"IF('1 Données d''entrée'!$C$311+'1 Données d''entrée'!$C$312=K1367,'6 Financement'!$B$85,0)","v":0},{"$f":"IF('1 Données d''entrée'!$C$311+'1 Données d''entrée'!$C$312=L1367,'6 Financement'!$B$85,0)","v":0},{"$f":"IF('1 Données d''entrée'!$C$311+'1 Données d''entrée'!$C$312=M1367,'6 Financement'!$B$85,0)","v":0},{"$f":"IF('1 Données d''entrée'!$C$311+'1 Données d''entrée'!$C$312=N1367,'6 Financement'!$B$85,0)","v":0},{"$f":"IF('1 Données d''entrée'!$C$311+'1 Données d''entrée'!$C$312=O1367,'6 Financement'!$B$85,0)","v":0},{"$f":"IF('1 Données d''entrée'!$C$311+'1 Données d''entrée'!$C$312=P1367,'6 Financement'!$B$85,0)","v":0},{"$f":"IF('1 Données d''entrée'!$C$311+'1 Données d''entrée'!$C$312=Q1367,'6 Financement'!$B$85,0)","v":0},{"$f":"IF('1 Données d''entrée'!$C$311+'1 Données d''entrée'!$C$312=R1367,'6 Financement'!$B$85,0)","v":0},{"$f":"IF('1 Données d''entrée'!$C$311+'1 Données d''entrée'!$C$312=S1367,'6 Financement'!$B$85,0)","v":0},{"$f":"IF('1 Données d''entrée'!$C$311+'1 Données d''entrée'!$C$312=T1367,'6 Financement'!$B$85,0)","v":0},{"$f":"IF('1 Données d''entrée'!$C$311+'1 Données d''entrée'!$C$312=U1367,'6 Financement'!$B$85,0)","v":0},{"$f":"IF('1 Données d''entrée'!$C$311+'1 Données d''entrée'!$C$312=V1367,'6 Financement'!$B$85,0)","v":0}]
["Paiement d'intérêts",0,{"$f":"IF('1 Données d''entrée'!$C$314=\"(=NON)\",IF(C1367<'1 Données d''entrée'!$C$312+1,0,B1398*'1 Données d''entrée'!$C$310),B1398*'1 Données d''entrée'!$C$310)","v":0},{"$f":"IF('1 Données d''entrée'!$C$314=\"(=NON)\",IF(D1367<'1 Données d''entrée'!$C$312+1,0,C1398*'1 Données d''entrée'!$C$310),C1398*'1 Données d''entrée'!$C$310)","v":0},{"$f":"IF('1 Données d''entrée'!$C$314=\"(=NON)\",IF(E1367<'1 Données d''entrée'!$C$312+1,0,D1398*'1 Données d''entrée'!$C$310),D1398*'1 Données d''entrée'!$C$310)","v":0},{"$f":"IF('1 Données d''entrée'!$C$314=\"(=NON)\",IF(F1367<'1 Données d''entrée'!$C$312+1,0,E1398*'1 Données d''entrée'!$C$310),E1398*'1 Données d''entrée'!$C$310)","v":0},{"$f":"IF('1 Données d''entrée'!$C$314=\"(=NON)\",IF(G1367<'1 Données d''entrée'!$C$312+1,0,F1398*'1 Données d''entrée'!$C$310),F1398*'1 Données d''entrée'!$C$310)","v":0},{"$f":"IF('1 Données d''entrée'!$C$314=\"(=NON)\",IF(H1367<'1 Données d''entrée'!$C$312+1,0,G1398*'1 Données d''entrée'!$C$310),G1398*'1 Données d''entrée'!$C$310)","v":0},{"$f":"IF('1 Données d''entrée'!$C$314=\"(=NON)\",IF(I1367<'1 Données d''entrée'!$C$312+1,0,H1398*'1 Données d''entrée'!$C$310),H1398*'1 Données d''entrée'!$C$310)","v":0},{"$f":"IF('1 Données d''entrée'!$C$314=\"(=NON)\",IF(J1367<'1 Données d''entrée'!$C$312+1,0,I1398*'1 Données d''entrée'!$C$310),I1398*'1 Données d''entrée'!$C$310)","v":0},{"$f":"IF('1 Données d''entrée'!$C$314=\"(=NON)\",IF(K1367<'1 Données d''entrée'!$C$312+1,0,J1398*'1 Données d''entrée'!$C$310),J1398*'1 Données d''entrée'!$C$310)","v":0},{"$f":"IF('1 Données d''entrée'!$C$314=\"(=NON)\",IF(L1367<'1 Données d''entrée'!$C$312+1,0,K1398*'1 Données d''entrée'!$C$310),K1398*'1 Données d''entrée'!$C$310)","v":0},{"$f":"IF('1 Données d''entrée'!$C$314=\"(=NON)\",IF(M1367<'1 Données d''entrée'!$C$312+1,0,L1398*'1 Données d''entrée'!$C$310),L1398*'1 Données d''entrée'!$C$310)","v":0},{"$f":"IF('1 Données d''entrée'!$C$314=\"(=NON)\",IF(N1367<'1 Données d''entrée'!$C$312+1,0,M1398*'1 Données d''entrée'!$C$310),M1398*'1 Données d''entrée'!$C$310)","v":0},{"$f":"IF('1 Données d''entrée'!$C$314=\"(=NON)\",IF(O1367<'1 Données d''entrée'!$C$312+1,0,N1398*'1 Données d''entrée'!$C$310),N1398*'1 Données d''entrée'!$C$310)","v":0},{"$f":"IF('1 Données d''entrée'!$C$314=\"(=NON)\",IF(P1367<'1 Données d''entrée'!$C$312+1,0,O1398*'1 Données d''entrée'!$C$310),O1398*'1 Données d''entrée'!$C$310)","v":0},{"$f":"IF('1 Données d''entrée'!$C$314=\"(=NON)\",IF(Q1367<'1 Données d''entrée'!$C$312+1,0,P1398*'1 Données d''entrée'!$C$310),P1398*'1 Données d''entrée'!$C$310)","v":0},{"$f":"IF('1 Données d''entrée'!$C$314=\"(=NON)\",IF(R1367<'1 Données d''entrée'!$C$312+1,0,Q1398*'1 Données d''entrée'!$C$310),Q1398*'1 Données d''entrée'!$C$310)","v":0},{"$f":"IF('1 Données d''entrée'!$C$314=\"(=NON)\",IF(S1367<'1 Données d''entrée'!$C$312+1,0,R1398*'1 Données d''entrée'!$C$310),R1398*'1 Données d''entrée'!$C$310)","v":0},{"$f":"IF('1 Données d''entrée'!$C$314=\"(=NON)\",IF(T1367<'1 Données d''entrée'!$C$312+1,0,S1398*'1 Données d''entrée'!$C$310),S1398*'1 Données d''entrée'!$C$310)","v":0},{"$f":"IF('1 Données d''entrée'!$C$314=\"(=NON)\",IF(U1367<'1 Données d''entrée'!$C$312+1,0,T1398*'1 Données d''entrée'!$C$310),T1398*'1 Données d''entrée'!$C$310)","v":0},{"$f":"IF('1 Données d''entrée'!$C$314=\"(=NON)\",IF(V1367<'1 Données d''entrée'!$C$312+1,0,U1398*'1 Données d''entrée'!$C$310),U1398*'1 Données d''entrée'!$C$310)","v":0}]
["Paiements d'intérêt avec des intérêts composés en cas d'absence des paiements dans la période de grâce",0,0,{"$f":"IF(D1367='1 Données d''entrée'!$C$312+1,IF('1 Données d''entrée'!$C$314=\"(=NON)\",($B1398*'1 Données d''entrée'!$C$310)*((('1 Données d''entrée'!$C$310+1)^'1 Données d''entrée'!$C$312-1)/('1 Données d''entrée'!$C$310))*(1+'1 Données d''entrée'!$C$310),0),0)","v":0},{"$f":"IF(E1367='1 Données d''entrée'!$C$312+1,IF('1 Données d''entrée'!$C$314=\"(=NON)\",($B1398*'1 Données d''entrée'!$C$310)*((('1 Données d''entrée'!$C$310+1)^'1 Données d''entrée'!$C$312-1)/('1 Données d''entrée'!$C$310))*(1+'1 Données d''entrée'!$C$310),0),0)","v":0},{"$f":"IF(F1367='1 Données d''entrée'!$C$312+1,IF('1 Données d''entrée'!$C$314=\"(=NON)\",($B1398*'1 Données d''entrée'!$C$310)*((('1 Données d''entrée'!$C$310+1)^'1 Données d''entrée'!$C$312-1)/('1 Données d''entrée'!$C$310))*(1+'1 Données d''entrée'!$C$310),0),0)","v":0},{"$f":"IF(G1367='1 Données d''entrée'!$C$312+1,IF('1 Données d''entrée'!$C$314=\"(=NON)\",($B1398*'1 Données d''entrée'!$C$310)*((('1 Données d''entrée'!$C$310+1)^'1 Données d''entrée'!$C$312-1)/('1 Données d''entrée'!$C$310))*(1+'1 Données d''entrée'!$C$310),0),0)","v":0},{"$f":"IF(H1367='1 Données d''entrée'!$C$312+1,IF('1 Données d''entrée'!$C$314=\"(=NON)\",($B1398*'1 Données d''entrée'!$C$310)*((('1 Données d''entrée'!$C$310+1)^'1 Données d''entrée'!$C$312-1)/('1 Données d''entrée'!$C$310))*(1+'1 Données d''entrée'!$C$310),0),0)","v":0},{"$f":"IF(I1367='1 Données d''entrée'!$C$312+1,IF('1 Données d''entrée'!$C$314=\"(=NON)\",($B1398*'1 Données d''entrée'!$C$310)*((('1 Données d''entrée'!$C$310+1)^'1 Données d''entrée'!$C$312-1)/('1 Données d''entrée'!$C$310))*(1+'1 Données d''entrée'!$C$310),0),0)","v":0},{"$f":"IF(J1367='1 Données d''entrée'!$C$312+1,IF('1 Données d''entrée'!$C$314=\"(=NON)\",($B1398*'1 Données d''entrée'!$C$310)*((('1 Données d''entrée'!$C$310+1)^'1 Données d''entrée'!$C$312-1)/('1 Données d''entrée'!$C$310))*(1+'1 Données d''entrée'!$C$310),0),0)","v":0},{"$f":"IF(K1367='1 Données d''entrée'!$C$312+1,IF('1 Données d''entrée'!$C$314=\"(=NON)\",($B1398*'1 Données d''entrée'!$C$310)*((('1 Données d''entrée'!$C$310+1)^'1 Données d''entrée'!$C$312-1)/('1 Données d''entrée'!$C$310))*(1+'1 Données d''entrée'!$C$310),0),0)","v":0},{"$f":"IF(L1367='1 Données d''entrée'!$C$312+1,IF('1 Données d''entrée'!$C$314=\"(=NON)\",($B1398*'1 Données d''entrée'!$C$310)*((('1 Données d''entrée'!$C$310+1)^'1 Données d''entrée'!$C$312-1)/('1 Données d''entrée'!$C$310))*(1+'1 Données d''entrée'!$C$310),0),0)","v":0},{"$f":"IF(M1367='1 Données d''entrée'!$C$312+1,IF('1 Données d''entrée'!$C$314=\"(=NON)\",($B1398*'1 Données d''entrée'!$C$310)*((('1 Données d''entrée'!$C$310+1)^'1 Données d''entrée'!$C$312-1)/('1 Données d''entrée'!$C$310))*(1+'1 Données d''entrée'!$C$310),0),0)","v":0},{"$f":"IF(N1367='1 Données d''entrée'!$C$312+1,IF('1 Données d''entrée'!$C$314=\"(=NON)\",($B1398*'1 Données d''entrée'!$C$310)*((('1 Données d''entrée'!$C$310+1)^'1 Données d''entrée'!$C$312-1)/('1 Données d''entrée'!$C$310))*(1+'1 Données d''entrée'!$C$310),0),0)","v":0},{"$f":"IF(O1367='1 Données d''entrée'!$C$312+1,IF('1 Données d''entrée'!$C$314=\"(=NON)\",($B1398*'1 Données d''entrée'!$C$310)*((('1 Données d''entrée'!$C$310+1)^'1 Données d''entrée'!$C$312-1)/('1 Données d''entrée'!$C$310))*(1+'1 Données d''entrée'!$C$310),0),0)","v":0},{"$f":"IF(P1367='1 Données d''entrée'!$C$312+1,IF('1 Données d''entrée'!$C$314=\"(=NON)\",($B1398*'1 Données d''entrée'!$C$310)*((('1 Données d''entrée'!$C$310+1)^'1 Données d''entrée'!$C$312-1)/('1 Données d''entrée'!$C$310))*(1+'1 Données d''entrée'!$C$310),0),0)","v":0},{"$f":"IF(Q1367='1 Données d''entrée'!$C$312+1,IF('1 Données d''entrée'!$C$314=\"(=NON)\",($B1398*'1 Données d''entrée'!$C$310)*((('1 Données d''entrée'!$C$310+1)^'1 Données d''entrée'!$C$312-1)/('1 Données d''entrée'!$C$310))*(1+'1 Données d''entrée'!$C$310),0),0)","v":0},{"$f":"IF(R1367='1 Données d''entrée'!$C$312+1,IF('1 Données d''entrée'!$C$314=\"(=NON)\",($B1398*'1 Données d''entrée'!$C$310)*((('1 Données d''entrée'!$C$310+1)^'1 Données d''entrée'!$C$312-1)/('1 Données d''entrée'!$C$310))*(1+'1 Données d''entrée'!$C$310),0),0)","v":0},{"$f":"IF(S1367='1 Données d''entrée'!$C$312+1,IF('1 Données d''entrée'!$C$314=\"(=NON)\",($B1398*'1 Données d''entrée'!$C$310)*((('1 Données d''entrée'!$C$310+1)^'1 Données d''entrée'!$C$312-1)/('1 Données d''entrée'!$C$310))*(1+'1 Données d''entrée'!$C$310),0),0)","v":0},{"$f":"IF(T1367='1 Données d''entrée'!$C$312+1,IF('1 Données d''entrée'!$C$314=\"(=NON)\",($B1398*'1 Données d''entrée'!$C$310)*((('1 Données d''entrée'!$C$310+1)^'1 Données d''entrée'!$C$312-1)/('1 Données d''entrée'!$C$310))*(1+'1 Données d''entrée'!$C$310),0),0)","v":0},{"$f":"IF(U1367='1 Données d''entrée'!$C$312+1,IF('1 Données d''entrée'!$C$314=\"(=NON)\",($B1398*'1 Données d''entrée'!$C$310)*((('1 Données d''entrée'!$C$310+1)^'1 Données d''entrée'!$C$312-1)/('1 Données d''entrée'!$C$310))*(1+'1 Données d''entrée'!$C$310),0),0)","v":0},{"$f":"IF(V1367='1 Données d''entrée'!$C$312+1,IF('1 Données d''entrée'!$C$314=\"(=NON)\",($B1398*'1 Données d''entrée'!$C$310)*((('1 Données d''entrée'!$C$310+1)^'1 Données d''entrée'!$C$312-1)/('1 Données d''entrée'!$C$310))*(1+'1 Données d''entrée'!$C$310),0),0)","v":0}]
["Fonds d'autre donneurs / investisseurs - Prêt; Option 3: Remboursement vers l'annuité constante",{"$f":"'1 Données d''entrée'!$B$321","v":0},"% de prêt total"]
["Réception ",{"$f":"B1402*'1 Données d''entrée'!$B$306+'1 Données d''entrée'!$B$306*'1 Données d''entrée'!$C$316","v":0},0,0,0,0,0,0,0,0,0,0,0,0,0,0,0,0,0,0,0,0]
["Remboursement vers l'annuité constante",{"$f":"IF(B1367<'1 Données d''entrée'!$C$312+1,0,IF(B1367<'1 Données d''entrée'!$C$311+'1 Données d''entrée'!$C$312+1,$B1403*('1 Données d''entrée'!$C$310*(1+'1 Données d''entrée'!$C$310)^'1 Données d''entrée'!$C$311)/((1+'1 Données d''entrée'!$C$310)^'1 Données d''entrée'!$C$311-1),0))","v":0},{"$f":"IF(C1367<'1 Données d''entrée'!$C$312+1,0,IF(C1367<'1 Données d''entrée'!$C$311+'1 Données d''entrée'!$C$312+1,$B1403*('1 Données d''entrée'!$C$310*(1+'1 Données d''entrée'!$C$310)^'1 Données d''entrée'!$C$311)/((1+'1 Données d''entrée'!$C$310)^'1 Données d''entrée'!$C$311-1),0))","v":0},{"$f":"IF(D1367<'1 Données d''entrée'!$C$312+1,0,IF(D1367<'1 Données d''entrée'!$C$311+'1 Données d''entrée'!$C$312+1,$B1403*('1 Données d''entrée'!$C$310*(1+'1 Données d''entrée'!$C$310)^'1 Données d''entrée'!$C$311)/((1+'1 Données d''entrée'!$C$310)^'1 Données d''entrée'!$C$311-1),0))","v":0},{"$f":"IF(E1367<'1 Données d''entrée'!$C$312+1,0,IF(E1367<'1 Données d''entrée'!$C$311+'1 Données d''entrée'!$C$312+1,$B1403*('1 Données d''entrée'!$C$310*(1+'1 Données d''entrée'!$C$310)^'1 Données d''entrée'!$C$311)/((1+'1 Données d''entrée'!$C$310)^'1 Données d''entrée'!$C$311-1),0))","v":0},{"$f":"IF(F1367<'1 Données d''entrée'!$C$312+1,0,IF(F1367<'1 Données d''entrée'!$C$311+'1 Données d''entrée'!$C$312+1,$B1403*('1 Données d''entrée'!$C$310*(1+'1 Données d''entrée'!$C$310)^'1 Données d''entrée'!$C$311)/((1+'1 Données d''entrée'!$C$310)^'1 Données d''entrée'!$C$311-1),0))","v":0},{"$f":"IF(G1367<'1 Données d''entrée'!$C$312+1,0,IF(G1367<'1 Données d''entrée'!$C$311+'1 Données d''entrée'!$C$312+1,$B1403*('1 Données d''entrée'!$C$310*(1+'1 Données d''entrée'!$C$310)^'1 Données d''entrée'!$C$311)/((1+'1 Données d''entrée'!$C$310)^'1 Données d''entrée'!$C$311-1),0))","v":0},{"$f":"IF(H1367<'1 Données d''entrée'!$C$312+1,0,IF(H1367<'1 Données d''entrée'!$C$311+'1 Données d''entrée'!$C$312+1,$B1403*('1 Données d''entrée'!$C$310*(1+'1 Données d''entrée'!$C$310)^'1 Données d''entrée'!$C$311)/((1+'1 Données d''entrée'!$C$310)^'1 Données d''entrée'!$C$311-1),0))","v":0},{"$f":"IF(I1367<'1 Données d''entrée'!$C$312+1,0,IF(I1367<'1 Données d''entrée'!$C$311+'1 Données d''entrée'!$C$312+1,$B1403*('1 Données d''entrée'!$C$310*(1+'1 Données d''entrée'!$C$310)^'1 Données d''entrée'!$C$311)/((1+'1 Données d''entrée'!$C$310)^'1 Données d''entrée'!$C$311-1),0))","v":0},{"$f":"IF(J1367<'1 Données d''entrée'!$C$312+1,0,IF(J1367<'1 Données d''entrée'!$C$311+'1 Données d''entrée'!$C$312+1,$B1403*('1 Données d''entrée'!$C$310*(1+'1 Données d''entrée'!$C$310)^'1 Données d''entrée'!$C$311)/((1+'1 Données d''entrée'!$C$310)^'1 Données d''entrée'!$C$311-1),0))","v":0},{"$f":"IF(K1367<'1 Données d''entrée'!$C$312+1,0,IF(K1367<'1 Données d''entrée'!$C$311+'1 Données d''entrée'!$C$312+1,$B1403*('1 Données d''entrée'!$C$310*(1+'1 Données d''entrée'!$C$310)^'1 Données d''entrée'!$C$311)/((1+'1 Données d''entrée'!$C$310)^'1 Données d''entrée'!$C$311-1),0))","v":0},{"$f":"IF(L1367<'1 Données d''entrée'!$C$312+1,0,IF(L1367<'1 Données d''entrée'!$C$311+'1 Données d''entrée'!$C$312+1,$B1403*('1 Données d''entrée'!$C$310*(1+'1 Données d''entrée'!$C$310)^'1 Données d''entrée'!$C$311)/((1+'1 Données d''entrée'!$C$310)^'1 Données d''entrée'!$C$311-1),0))","v":0},{"$f":"IF(M1367<'1 Données d''entrée'!$C$312+1,0,IF(M1367<'1 Données d''entrée'!$C$311+'1 Données d''entrée'!$C$312+1,$B1403*('1 Données d''entrée'!$C$310*(1+'1 Données d''entrée'!$C$310)^'1 Données d''entrée'!$C$311)/((1+'1 Données d''entrée'!$C$310)^'1 Données d''entrée'!$C$311-1),0))","v":0},{"$f":"IF(N1367<'1 Données d''entrée'!$C$312+1,0,IF(N1367<'1 Données d''entrée'!$C$311+'1 Données d''entrée'!$C$312+1,$B1403*('1 Données d''entrée'!$C$310*(1+'1 Données d''entrée'!$C$310)^'1 Données d''entrée'!$C$311)/((1+'1 Données d''entrée'!$C$310)^'1 Données d''entrée'!$C$311-1),0))","v":0},{"$f":"IF(O1367<'1 Données d''entrée'!$C$312+1,0,IF(O1367<'1 Données d''entrée'!$C$311+'1 Données d''entrée'!$C$312+1,$B1403*('1 Données d''entrée'!$C$310*(1+'1 Données d''entrée'!$C$310)^'1 Données d''entrée'!$C$311)/((1+'1 Données d''entrée'!$C$310)^'1 Données d''entrée'!$C$311-1),0))","v":0},{"$f":"IF(P1367<'1 Données d''entrée'!$C$312+1,0,IF(P1367<'1 Données d''entrée'!$C$311+'1 Données d''entrée'!$C$312+1,$B1403*('1 Données d''entrée'!$C$310*(1+'1 Données d''entrée'!$C$310)^'1 Données d''entrée'!$C$311)/((1+'1 Données d''entrée'!$C$310)^'1 Données d''entrée'!$C$311-1),0))","v":0},{"$f":"IF(Q1367<'1 Données d''entrée'!$C$312+1,0,IF(Q1367<'1 Données d''entrée'!$C$311+'1 Données d''entrée'!$C$312+1,$B1403*('1 Données d''entrée'!$C$310*(1+'1 Données d''entrée'!$C$310)^'1 Données d''entrée'!$C$311)/((1+'1 Données d''entrée'!$C$310)^'1 Données d''entrée'!$C$311-1),0))","v":0},{"$f":"IF(R1367<'1 Données d''entrée'!$C$312+1,0,IF(R1367<'1 Données d''entrée'!$C$311+'1 Données d''entrée'!$C$312+1,$B1403*('1 Données d''entrée'!$C$310*(1+'1 Données d''entrée'!$C$310)^'1 Données d''entrée'!$C$311)/((1+'1 Données d''entrée'!$C$310)^'1 Données d''entrée'!$C$311-1),0))","v":0},{"$f":"IF(S1367<'1 Données d''entrée'!$C$312+1,0,IF(S1367<'1 Données d''entrée'!$C$311+'1 Données d''entrée'!$C$312+1,$B1403*('1 Données d''entrée'!$C$310*(1+'1 Données d''entrée'!$C$310)^'1 Données d''entrée'!$C$311)/((1+'1 Données d''entrée'!$C$310)^'1 Données d''entrée'!$C$311-1),0))","v":0},{"$f":"IF(T1367<'1 Données d''entrée'!$C$312+1,0,IF(T1367<'1 Données d''entrée'!$C$311+'1 Données d''entrée'!$C$312+1,$B1403*('1 Données d''entrée'!$C$310*(1+'1 Données d''entrée'!$C$310)^'1 Données d''entrée'!$C$311)/((1+'1 Données d''entrée'!$C$310)^'1 Données d''entrée'!$C$311-1),0))","v":0},{"$f":"IF(U1367<'1 Données d''entrée'!$C$312+1,0,IF(U1367<'1 Données d''entrée'!$C$311+'1 Données d''entrée'!$C$312+1,$B1403*('1 Données d''entrée'!$C$310*(1+'1 Données d''entrée'!$C$310)^'1 Données d''entrée'!$C$311)/((1+'1 Données d''entrée'!$C$310)^'1 Données d''entrée'!$C$311-1),0))","v":0},{"$f":"IF(V1367<'1 Données d''entrée'!$C$312+1,0,IF(V1367<'1 Données d''entrée'!$C$311+'1 Données d''entrée'!$C$312+1,$B1403*('1 Données d''entrée'!$C$310*(1+'1 Données d''entrée'!$C$310)^'1 Données d''entrée'!$C$311)/((1+'1 Données d''entrée'!$C$310)^'1 Données d''entrée'!$C$311-1),0))","v":0}]
["Paiement d'intérêt décroissant inclu dans l'annuité constante",0,{"$f":"IF('1 Données d''entrée'!$C$314=\"(=NON)\",IF(C1404>0,$B1403*((('1 Données d''entrée'!$C$310+1)^'1 Données d''entrée'!$C$311)-(1+'1 Données d''entrée'!$C$310)^('6 Financement'!C$54-1-'1 Données d''entrée'!$C$312))/((1+'1 Données d''entrée'!$C$310)^'1 Données d''entrée'!$C$311-1)*'1 Données d''entrée'!$C$310,0),IF(C1367<'1 Données d''entrée'!$C$312+1,'1 Données d''entrée'!$C$310*'6 Financement'!$B1403,IF(C1404>0,$B$90*((('1 Données d''entrée'!$C$310+1)^'1 Données d''entrée'!$C$311)-(1+'1 Données d''entrée'!$C$310)^('6 Financement'!C$54-1-'1 Données d''entrée'!$C$312))/((1+'1 Données d''entrée'!$C$310)^'1 Données d''entrée'!$C$311-1)*'1 Données d''entrée'!$C$310,0)))","v":0},{"$f":"IF('1 Données d''entrée'!$C$314=\"(=NON)\",IF(D1404>0,$B1403*((('1 Données d''entrée'!$C$310+1)^'1 Données d''entrée'!$C$311)-(1+'1 Données d''entrée'!$C$310)^('6 Financement'!D$54-1-'1 Données d''entrée'!$C$312))/((1+'1 Données d''entrée'!$C$310)^'1 Données d''entrée'!$C$311-1)*'1 Données d''entrée'!$C$310,0),IF(D1367<'1 Données d''entrée'!$C$312+1,'1 Données d''entrée'!$C$310*'6 Financement'!$B1403,IF(D1404>0,$B$90*((('1 Données d''entrée'!$C$310+1)^'1 Données d''entrée'!$C$311)-(1+'1 Données d''entrée'!$C$310)^('6 Financement'!D$54-1-'1 Données d''entrée'!$C$312))/((1+'1 Données d''entrée'!$C$310)^'1 Données d''entrée'!$C$311-1)*'1 Données d''entrée'!$C$310,0)))","v":0},{"$f":"IF('1 Données d''entrée'!$C$314=\"(=NON)\",IF(E1404>0,$B1403*((('1 Données d''entrée'!$C$310+1)^'1 Données d''entrée'!$C$311)-(1+'1 Données d''entrée'!$C$310)^('6 Financement'!E$54-1-'1 Données d''entrée'!$C$312))/((1+'1 Données d''entrée'!$C$310)^'1 Données d''entrée'!$C$311-1)*'1 Données d''entrée'!$C$310,0),IF(E1367<'1 Données d''entrée'!$C$312+1,'1 Données d''entrée'!$C$310*'6 Financement'!$B1403,IF(E1404>0,$B$90*((('1 Données d''entrée'!$C$310+1)^'1 Données d''entrée'!$C$311)-(1+'1 Données d''entrée'!$C$310)^('6 Financement'!E$54-1-'1 Données d''entrée'!$C$312))/((1+'1 Données d''entrée'!$C$310)^'1 Données d''entrée'!$C$311-1)*'1 Données d''entrée'!$C$310,0)))","v":0},{"$f":"IF('1 Données d''entrée'!$C$314=\"(=NON)\",IF(F1404>0,$B1403*((('1 Données d''entrée'!$C$310+1)^'1 Données d''entrée'!$C$311)-(1+'1 Données d''entrée'!$C$310)^('6 Financement'!F$54-1-'1 Données d''entrée'!$C$312))/((1+'1 Données d''entrée'!$C$310)^'1 Données d''entrée'!$C$311-1)*'1 Données d''entrée'!$C$310,0),IF(F1367<'1 Données d''entrée'!$C$312+1,'1 Données d''entrée'!$C$310*'6 Financement'!$B1403,IF(F1404>0,$B$90*((('1 Données d''entrée'!$C$310+1)^'1 Données d''entrée'!$C$311)-(1+'1 Données d''entrée'!$C$310)^('6 Financement'!F$54-1-'1 Données d''entrée'!$C$312))/((1+'1 Données d''entrée'!$C$310)^'1 Données d''entrée'!$C$311-1)*'1 Données d''entrée'!$C$310,0)))","v":0},{"$f":"IF('1 Données d''entrée'!$C$314=\"(=NON)\",IF(G1404>0,$B1403*((('1 Données d''entrée'!$C$310+1)^'1 Données d''entrée'!$C$311)-(1+'1 Données d''entrée'!$C$310)^('6 Financement'!G$54-1-'1 Données d''entrée'!$C$312))/((1+'1 Données d''entrée'!$C$310)^'1 Données d''entrée'!$C$311-1)*'1 Données d''entrée'!$C$310,0),IF(G1367<'1 Données d''entrée'!$C$312+1,'1 Données d''entrée'!$C$310*'6 Financement'!$B1403,IF(G1404>0,$B$90*((('1 Données d''entrée'!$C$310+1)^'1 Données d''entrée'!$C$311)-(1+'1 Données d''entrée'!$C$310)^('6 Financement'!G$54-1-'1 Données d''entrée'!$C$312))/((1+'1 Données d''entrée'!$C$310)^'1 Données d''entrée'!$C$311-1)*'1 Données d''entrée'!$C$310,0)))","v":0},{"$f":"IF('1 Données d''entrée'!$C$314=\"(=NON)\",IF(H1404>0,$B1403*((('1 Données d''entrée'!$C$310+1)^'1 Données d''entrée'!$C$311)-(1+'1 Données d''entrée'!$C$310)^('6 Financement'!H$54-1-'1 Données d''entrée'!$C$312))/((1+'1 Données d''entrée'!$C$310)^'1 Données d''entrée'!$C$311-1)*'1 Données d''entrée'!$C$310,0),IF(H1367<'1 Données d''entrée'!$C$312+1,'1 Données d''entrée'!$C$310*'6 Financement'!$B1403,IF(H1404>0,$B$90*((('1 Données d''entrée'!$C$310+1)^'1 Données d''entrée'!$C$311)-(1+'1 Données d''entrée'!$C$310)^('6 Financement'!H$54-1-'1 Données d''entrée'!$C$312))/((1+'1 Données d''entrée'!$C$310)^'1 Données d''entrée'!$C$311-1)*'1 Données d''entrée'!$C$310,0)))","v":0},{"$f":"IF('1 Données d''entrée'!$C$314=\"(=NON)\",IF(I1404>0,$B1403*((('1 Données d''entrée'!$C$310+1)^'1 Données d''entrée'!$C$311)-(1+'1 Données d''entrée'!$C$310)^('6 Financement'!I$54-1-'1 Données d''entrée'!$C$312))/((1+'1 Données d''entrée'!$C$310)^'1 Données d''entrée'!$C$311-1)*'1 Données d''entrée'!$C$310,0),IF(I1367<'1 Données d''entrée'!$C$312+1,'1 Données d''entrée'!$C$310*'6 Financement'!$B1403,IF(I1404>0,$B$90*((('1 Données d''entrée'!$C$310+1)^'1 Données d''entrée'!$C$311)-(1+'1 Données d''entrée'!$C$310)^('6 Financement'!I$54-1-'1 Données d''entrée'!$C$312))/((1+'1 Données d''entrée'!$C$310)^'1 Données d''entrée'!$C$311-1)*'1 Données d''entrée'!$C$310,0)))","v":0},{"$f":"IF('1 Données d''entrée'!$C$314=\"(=NON)\",IF(J1404>0,$B1403*((('1 Données d''entrée'!$C$310+1)^'1 Données d''entrée'!$C$311)-(1+'1 Données d''entrée'!$C$310)^('6 Financement'!J$54-1-'1 Données d''entrée'!$C$312))/((1+'1 Données d''entrée'!$C$310)^'1 Données d''entrée'!$C$311-1)*'1 Données d''entrée'!$C$310,0),IF(J1367<'1 Données d''entrée'!$C$312+1,'1 Données d''entrée'!$C$310*'6 Financement'!$B1403,IF(J1404>0,$B$90*((('1 Données d''entrée'!$C$310+1)^'1 Données d''entrée'!$C$311)-(1+'1 Données d''entrée'!$C$310)^('6 Financement'!J$54-1-'1 Données d''entrée'!$C$312))/((1+'1 Données d''entrée'!$C$310)^'1 Données d''entrée'!$C$311-1)*'1 Données d''entrée'!$C$310,0)))","v":0},{"$f":"IF('1 Données d''entrée'!$C$314=\"(=NON)\",IF(K1404>0,$B1403*((('1 Données d''entrée'!$C$310+1)^'1 Données d''entrée'!$C$311)-(1+'1 Données d''entrée'!$C$310)^('6 Financement'!K$54-1-'1 Données d''entrée'!$C$312))/((1+'1 Données d''entrée'!$C$310)^'1 Données d''entrée'!$C$311-1)*'1 Données d''entrée'!$C$310,0),IF(K1367<'1 Données d''entrée'!$C$312+1,'1 Données d''entrée'!$C$310*'6 Financement'!$B1403,IF(K1404>0,$B$90*((('1 Données d''entrée'!$C$310+1)^'1 Données d''entrée'!$C$311)-(1+'1 Données d''entrée'!$C$310)^('6 Financement'!K$54-1-'1 Données d''entrée'!$C$312))/((1+'1 Données d''entrée'!$C$310)^'1 Données d''entrée'!$C$311-1)*'1 Données d''entrée'!$C$310,0)))","v":0},{"$f":"IF('1 Données d''entrée'!$C$314=\"(=NON)\",IF(L1404>0,$B1403*((('1 Données d''entrée'!$C$310+1)^'1 Données d''entrée'!$C$311)-(1+'1 Données d''entrée'!$C$310)^('6 Financement'!L$54-1-'1 Données d''entrée'!$C$312))/((1+'1 Données d''entrée'!$C$310)^'1 Données d''entrée'!$C$311-1)*'1 Données d''entrée'!$C$310,0),IF(L1367<'1 Données d''entrée'!$C$312+1,'1 Données d''entrée'!$C$310*'6 Financement'!$B1403,IF(L1404>0,$B$90*((('1 Données d''entrée'!$C$310+1)^'1 Données d''entrée'!$C$311)-(1+'1 Données d''entrée'!$C$310)^('6 Financement'!L$54-1-'1 Données d''entrée'!$C$312))/((1+'1 Données d''entrée'!$C$310)^'1 Données d''entrée'!$C$311-1)*'1 Données d''entrée'!$C$310,0)))","v":0},{"$f":"IF('1 Données d''entrée'!$C$314=\"(=NON)\",IF(M1404>0,$B1403*((('1 Données d''entrée'!$C$310+1)^'1 Données d''entrée'!$C$311)-(1+'1 Données d''entrée'!$C$310)^('6 Financement'!M$54-1-'1 Données d''entrée'!$C$312))/((1+'1 Données d''entrée'!$C$310)^'1 Données d''entrée'!$C$311-1)*'1 Données d''entrée'!$C$310,0),IF(M1367<'1 Données d''entrée'!$C$312+1,'1 Données d''entrée'!$C$310*'6 Financement'!$B1403,IF(M1404>0,$B$90*((('1 Données d''entrée'!$C$310+1)^'1 Données d''entrée'!$C$311)-(1+'1 Données d''entrée'!$C$310)^('6 Financement'!M$54-1-'1 Données d''entrée'!$C$312))/((1+'1 Données d''entrée'!$C$310)^'1 Données d''entrée'!$C$311-1)*'1 Données d''entrée'!$C$310,0)))","v":0},{"$f":"IF('1 Données d''entrée'!$C$314=\"(=NON)\",IF(N1404>0,$B1403*((('1 Données d''entrée'!$C$310+1)^'1 Données d''entrée'!$C$311)-(1+'1 Données d''entrée'!$C$310)^('6 Financement'!N$54-1-'1 Données d''entrée'!$C$312))/((1+'1 Données d''entrée'!$C$310)^'1 Données d''entrée'!$C$311-1)*'1 Données d''entrée'!$C$310,0),IF(N1367<'1 Données d''entrée'!$C$312+1,'1 Données d''entrée'!$C$310*'6 Financement'!$B1403,IF(N1404>0,$B$90*((('1 Données d''entrée'!$C$310+1)^'1 Données d''entrée'!$C$311)-(1+'1 Données d''entrée'!$C$310)^('6 Financement'!N$54-1-'1 Données d''entrée'!$C$312))/((1+'1 Données d''entrée'!$C$310)^'1 Données d''entrée'!$C$311-1)*'1 Données d''entrée'!$C$310,0)))","v":0},{"$f":"IF('1 Données d''entrée'!$C$314=\"(=NON)\",IF(O1404>0,$B1403*((('1 Données d''entrée'!$C$310+1)^'1 Données d''entrée'!$C$311)-(1+'1 Données d''entrée'!$C$310)^('6 Financement'!O$54-1-'1 Données d''entrée'!$C$312))/((1+'1 Données d''entrée'!$C$310)^'1 Données d''entrée'!$C$311-1)*'1 Données d''entrée'!$C$310,0),IF(O1367<'1 Données d''entrée'!$C$312+1,'1 Données d''entrée'!$C$310*'6 Financement'!$B1403,IF(O1404>0,$B$90*((('1 Données d''entrée'!$C$310+1)^'1 Données d''entrée'!$C$311)-(1+'1 Données d''entrée'!$C$310)^('6 Financement'!O$54-1-'1 Données d''entrée'!$C$312))/((1+'1 Données d''entrée'!$C$310)^'1 Données d''entrée'!$C$311-1)*'1 Données d''entrée'!$C$310,0)))","v":0},{"$f":"IF('1 Données d''entrée'!$C$314=\"(=NON)\",IF(P1404>0,$B1403*((('1 Données d''entrée'!$C$310+1)^'1 Données d''entrée'!$C$311)-(1+'1 Données d''entrée'!$C$310)^('6 Financement'!P$54-1-'1 Données d''entrée'!$C$312))/((1+'1 Données d''entrée'!$C$310)^'1 Données d''entrée'!$C$311-1)*'1 Données d''entrée'!$C$310,0),IF(P1367<'1 Données d''entrée'!$C$312+1,'1 Données d''entrée'!$C$310*'6 Financement'!$B1403,IF(P1404>0,$B$90*((('1 Données d''entrée'!$C$310+1)^'1 Données d''entrée'!$C$311)-(1+'1 Données d''entrée'!$C$310)^('6 Financement'!P$54-1-'1 Données d''entrée'!$C$312))/((1+'1 Données d''entrée'!$C$310)^'1 Données d''entrée'!$C$311-1)*'1 Données d''entrée'!$C$310,0)))","v":0},{"$f":"IF('1 Données d''entrée'!$C$314=\"(=NON)\",IF(Q1404>0,$B1403*((('1 Données d''entrée'!$C$310+1)^'1 Données d''entrée'!$C$311)-(1+'1 Données d''entrée'!$C$310)^('6 Financement'!Q$54-1-'1 Données d''entrée'!$C$312))/((1+'1 Données d''entrée'!$C$310)^'1 Données d''entrée'!$C$311-1)*'1 Données d''entrée'!$C$310,0),IF(Q1367<'1 Données d''entrée'!$C$312+1,'1 Données d''entrée'!$C$310*'6 Financement'!$B1403,IF(Q1404>0,$B$90*((('1 Données d''entrée'!$C$310+1)^'1 Données d''entrée'!$C$311)-(1+'1 Données d''entrée'!$C$310)^('6 Financement'!Q$54-1-'1 Données d''entrée'!$C$312))/((1+'1 Données d''entrée'!$C$310)^'1 Données d''entrée'!$C$311-1)*'1 Données d''entrée'!$C$310,0)))","v":0},{"$f":"IF('1 Données d''entrée'!$C$314=\"(=NON)\",IF(R1404>0,$B1403*((('1 Données d''entrée'!$C$310+1)^'1 Données d''entrée'!$C$311)-(1+'1 Données d''entrée'!$C$310)^('6 Financement'!R$54-1-'1 Données d''entrée'!$C$312))/((1+'1 Données d''entrée'!$C$310)^'1 Données d''entrée'!$C$311-1)*'1 Données d''entrée'!$C$310,0),IF(R1367<'1 Données d''entrée'!$C$312+1,'1 Données d''entrée'!$C$310*'6 Financement'!$B1403,IF(R1404>0,$B$90*((('1 Données d''entrée'!$C$310+1)^'1 Données d''entrée'!$C$311)-(1+'1 Données d''entrée'!$C$310)^('6 Financement'!R$54-1-'1 Données d''entrée'!$C$312))/((1+'1 Données d''entrée'!$C$310)^'1 Données d''entrée'!$C$311-1)*'1 Données d''entrée'!$C$310,0)))","v":0},{"$f":"IF('1 Données d''entrée'!$C$314=\"(=NON)\",IF(S1404>0,$B1403*((('1 Données d''entrée'!$C$310+1)^'1 Données d''entrée'!$C$311)-(1+'1 Données d''entrée'!$C$310)^('6 Financement'!S$54-1-'1 Données d''entrée'!$C$312))/((1+'1 Données d''entrée'!$C$310)^'1 Données d''entrée'!$C$311-1)*'1 Données d''entrée'!$C$310,0),IF(S1367<'1 Données d''entrée'!$C$312+1,'1 Données d''entrée'!$C$310*'6 Financement'!$B1403,IF(S1404>0,$B$90*((('1 Données d''entrée'!$C$310+1)^'1 Données d''entrée'!$C$311)-(1+'1 Données d''entrée'!$C$310)^('6 Financement'!S$54-1-'1 Données d''entrée'!$C$312))/((1+'1 Données d''entrée'!$C$310)^'1 Données d''entrée'!$C$311-1)*'1 Données d''entrée'!$C$310,0)))","v":0},{"$f":"IF('1 Données d''entrée'!$C$314=\"(=NON)\",IF(T1404>0,$B1403*((('1 Données d''entrée'!$C$310+1)^'1 Données d''entrée'!$C$311)-(1+'1 Données d''entrée'!$C$310)^('6 Financement'!T$54-1-'1 Données d''entrée'!$C$312))/((1+'1 Données d''entrée'!$C$310)^'1 Données d''entrée'!$C$311-1)*'1 Données d''entrée'!$C$310,0),IF(T1367<'1 Données d''entrée'!$C$312+1,'1 Données d''entrée'!$C$310*'6 Financement'!$B1403,IF(T1404>0,$B$90*((('1 Données d''entrée'!$C$310+1)^'1 Données d''entrée'!$C$311)-(1+'1 Données d''entrée'!$C$310)^('6 Financement'!T$54-1-'1 Données d''entrée'!$C$312))/((1+'1 Données d''entrée'!$C$310)^'1 Données d''entrée'!$C$311-1)*'1 Données d''entrée'!$C$310,0)))","v":0},{"$f":"IF('1 Données d''entrée'!$C$314=\"(=NON)\",IF(U1404>0,$B1403*((('1 Données d''entrée'!$C$310+1)^'1 Données d''entrée'!$C$311)-(1+'1 Données d''entrée'!$C$310)^('6 Financement'!U$54-1-'1 Données d''entrée'!$C$312))/((1+'1 Données d''entrée'!$C$310)^'1 Données d''entrée'!$C$311-1)*'1 Données d''entrée'!$C$310,0),IF(U1367<'1 Données d''entrée'!$C$312+1,'1 Données d''entrée'!$C$310*'6 Financement'!$B1403,IF(U1404>0,$B$90*((('1 Données d''entrée'!$C$310+1)^'1 Données d''entrée'!$C$311)-(1+'1 Données d''entrée'!$C$310)^('6 Financement'!U$54-1-'1 Données d''entrée'!$C$312))/((1+'1 Données d''entrée'!$C$310)^'1 Données d''entrée'!$C$311-1)*'1 Données d''entrée'!$C$310,0)))","v":0},{"$f":"IF('1 Données d''entrée'!$C$314=\"(=NON)\",IF(V1404>0,$B1403*((('1 Données d''entrée'!$C$310+1)^'1 Données d''entrée'!$C$311)-(1+'1 Données d''entrée'!$C$310)^('6 Financement'!V$54-1-'1 Données d''entrée'!$C$312))/((1+'1 Données d''entrée'!$C$310)^'1 Données d''entrée'!$C$311-1)*'1 Données d''entrée'!$C$310,0),IF(V1367<'1 Données d''entrée'!$C$312+1,'1 Données d''entrée'!$C$310*'6 Financement'!$B1403,IF(V1404>0,$B$90*((('1 Données d''entrée'!$C$310+1)^'1 Données d''entrée'!$C$311)-(1+'1 Données d''entrée'!$C$310)^('6 Financement'!V$54-1-'1 Données d''entrée'!$C$312))/((1+'1 Données d''entrée'!$C$310)^'1 Données d''entrée'!$C$311-1)*'1 Données d''entrée'!$C$310,0)))","v":0}]
["Paiements d'intérêt avec des intérêts composés en cas d'absence des paiements dans la période de grâce",0,0,{"$f":"IF(D1367='1 Données d''entrée'!$C$312+1,IF('1 Données d''entrée'!$C$314=\"(=NON)\",($B1403*'1 Données d''entrée'!$C$310)*((('1 Données d''entrée'!$C$310+1)^'1 Données d''entrée'!$C$312-1)/('1 Données d''entrée'!$C$310))*(1+'1 Données d''entrée'!$C$310),0),0)","v":0},{"$f":"IF(E1367='1 Données d''entrée'!$C$312+1,IF('1 Données d''entrée'!$C$314=\"(=NON)\",($B1403*'1 Données d''entrée'!$C$310)*((('1 Données d''entrée'!$C$310+1)^'1 Données d''entrée'!$C$312-1)/('1 Données d''entrée'!$C$310))*(1+'1 Données d''entrée'!$C$310),0),0)","v":0},{"$f":"IF(F1367='1 Données d''entrée'!$C$312+1,IF('1 Données d''entrée'!$C$314=\"(=NON)\",($B1403*'1 Données d''entrée'!$C$310)*((('1 Données d''entrée'!$C$310+1)^'1 Données d''entrée'!$C$312-1)/('1 Données d''entrée'!$C$310))*(1+'1 Données d''entrée'!$C$310),0),0)","v":0},{"$f":"IF(G1367='1 Données d''entrée'!$C$312+1,IF('1 Données d''entrée'!$C$314=\"(=NON)\",($B1403*'1 Données d''entrée'!$C$310)*((('1 Données d''entrée'!$C$310+1)^'1 Données d''entrée'!$C$312-1)/('1 Données d''entrée'!$C$310))*(1+'1 Données d''entrée'!$C$310),0),0)","v":0},{"$f":"IF(H1367='1 Données d''entrée'!$C$312+1,IF('1 Données d''entrée'!$C$314=\"(=NON)\",($B1403*'1 Données d''entrée'!$C$310)*((('1 Données d''entrée'!$C$310+1)^'1 Données d''entrée'!$C$312-1)/('1 Données d''entrée'!$C$310))*(1+'1 Données d''entrée'!$C$310),0),0)","v":0},{"$f":"IF(I1367='1 Données d''entrée'!$C$312+1,IF('1 Données d''entrée'!$C$314=\"(=NON)\",($B1403*'1 Données d''entrée'!$C$310)*((('1 Données d''entrée'!$C$310+1)^'1 Données d''entrée'!$C$312-1)/('1 Données d''entrée'!$C$310))*(1+'1 Données d''entrée'!$C$310),0),0)","v":0},{"$f":"IF(J1367='1 Données d''entrée'!$C$312+1,IF('1 Données d''entrée'!$C$314=\"(=NON)\",($B1403*'1 Données d''entrée'!$C$310)*((('1 Données d''entrée'!$C$310+1)^'1 Données d''entrée'!$C$312-1)/('1 Données d''entrée'!$C$310))*(1+'1 Données d''entrée'!$C$310),0),0)","v":0},{"$f":"IF(K1367='1 Données d''entrée'!$C$312+1,IF('1 Données d''entrée'!$C$314=\"(=NON)\",($B1403*'1 Données d''entrée'!$C$310)*((('1 Données d''entrée'!$C$310+1)^'1 Données d''entrée'!$C$312-1)/('1 Données d''entrée'!$C$310))*(1+'1 Données d''entrée'!$C$310),0),0)","v":0},{"$f":"IF(L1367='1 Données d''entrée'!$C$312+1,IF('1 Données d''entrée'!$C$314=\"(=NON)\",($B1403*'1 Données d''entrée'!$C$310)*((('1 Données d''entrée'!$C$310+1)^'1 Données d''entrée'!$C$312-1)/('1 Données d''entrée'!$C$310))*(1+'1 Données d''entrée'!$C$310),0),0)","v":0},{"$f":"IF(M1367='1 Données d''entrée'!$C$312+1,IF('1 Données d''entrée'!$C$314=\"(=NON)\",($B1403*'1 Données d''entrée'!$C$310)*((('1 Données d''entrée'!$C$310+1)^'1 Données d''entrée'!$C$312-1)/('1 Données d''entrée'!$C$310))*(1+'1 Données d''entrée'!$C$310),0),0)","v":0},{"$f":"IF(N1367='1 Données d''entrée'!$C$312+1,IF('1 Données d''entrée'!$C$314=\"(=NON)\",($B1403*'1 Données d''entrée'!$C$310)*((('1 Données d''entrée'!$C$310+1)^'1 Données d''entrée'!$C$312-1)/('1 Données d''entrée'!$C$310))*(1+'1 Données d''entrée'!$C$310),0),0)","v":0},{"$f":"IF(O1367='1 Données d''entrée'!$C$312+1,IF('1 Données d''entrée'!$C$314=\"(=NON)\",($B1403*'1 Données d''entrée'!$C$310)*((('1 Données d''entrée'!$C$310+1)^'1 Données d''entrée'!$C$312-1)/('1 Données d''entrée'!$C$310))*(1+'1 Données d''entrée'!$C$310),0),0)","v":0},{"$f":"IF(P1367='1 Données d''entrée'!$C$312+1,IF('1 Données d''entrée'!$C$314=\"(=NON)\",($B1403*'1 Données d''entrée'!$C$310)*((('1 Données d''entrée'!$C$310+1)^'1 Données d''entrée'!$C$312-1)/('1 Données d''entrée'!$C$310))*(1+'1 Données d''entrée'!$C$310),0),0)","v":0},{"$f":"IF(Q1367='1 Données d''entrée'!$C$312+1,IF('1 Données d''entrée'!$C$314=\"(=NON)\",($B1403*'1 Données d''entrée'!$C$310)*((('1 Données d''entrée'!$C$310+1)^'1 Données d''entrée'!$C$312-1)/('1 Données d''entrée'!$C$310))*(1+'1 Données d''entrée'!$C$310),0),0)","v":0},{"$f":"IF(R1367='1 Données d''entrée'!$C$312+1,IF('1 Données d''entrée'!$C$314=\"(=NON)\",($B1403*'1 Données d''entrée'!$C$310)*((('1 Données d''entrée'!$C$310+1)^'1 Données d''entrée'!$C$312-1)/('1 Données d''entrée'!$C$310))*(1+'1 Données d''entrée'!$C$310),0),0)","v":0},{"$f":"IF(S1367='1 Données d''entrée'!$C$312+1,IF('1 Données d''entrée'!$C$314=\"(=NON)\",($B1403*'1 Données d''entrée'!$C$310)*((('1 Données d''entrée'!$C$310+1)^'1 Données d''entrée'!$C$312-1)/('1 Données d''entrée'!$C$310))*(1+'1 Données d''entrée'!$C$310),0),0)","v":0},{"$f":"IF(T1367='1 Données d''entrée'!$C$312+1,IF('1 Données d''entrée'!$C$314=\"(=NON)\",($B1403*'1 Données d''entrée'!$C$310)*((('1 Données d''entrée'!$C$310+1)^'1 Données d''entrée'!$C$312-1)/('1 Données d''entrée'!$C$310))*(1+'1 Données d''entrée'!$C$310),0),0)","v":0},{"$f":"IF(U1367='1 Données d''entrée'!$C$312+1,IF('1 Données d''entrée'!$C$314=\"(=NON)\",($B1403*'1 Données d''entrée'!$C$310)*((('1 Données d''entrée'!$C$310+1)^'1 Données d''entrée'!$C$312-1)/('1 Données d''entrée'!$C$310))*(1+'1 Données d''entrée'!$C$310),0),0)","v":0},{"$f":"IF(V1367='1 Données d''entrée'!$C$312+1,IF('1 Données d''entrée'!$C$314=\"(=NON)\",($B1403*'1 Données d''entrée'!$C$310)*((('1 Données d''entrée'!$C$310+1)^'1 Données d''entrée'!$C$312-1)/('1 Données d''entrée'!$C$310))*(1+'1 Données d''entrée'!$C$310),0),0)","v":0}]
[]
["Solde du compte intermédiaire"]
["Solde du comte (par période)",{"$f":"B1369+B1371+B1373+IF($B1375>0,(B1376-B1377-B1378-B1379),0)+IF($B1380>0,(B1381-B1382-B1383-B1384),0)+IF($B1385>0,(B1386-B1387-IF(B1387>0,0,B1388)-B1389),0)+B1391+IF($B1392>0,(B1393-B1394-B1395-B1396),0)+IF($B1397>0,(B1398-B1399-B1400-B1401),0)+IF($B1402>0,B1403-IF(B1404>0,0,B1405)-B1406,0)","v":{"$error":"#DIV/0!"}},{"$f":"C1369+C1371+C1373+IF($B1375>0,(-C1377-C1378-C1379),0)+IF($B1380>0,(-C1382-C1383-C1384),0)+C1391+IF($B1385>0,(-C1387-IF(C1387>0,0,C1388)-C1389),0)+IF($B1392>0,(-C1394-C1395-C1396),0)+IF($B1397>0,(-C1399-C1400-C1401),0)+IF($B1402>0,(-C1404-IF(C1404>0,0,C1405)-C1406),0)","v":{"$error":"#DIV/0!"}},{"$f":"D1369+D1371+D1373+IF($B1375>0,(-D1377-D1378-D1379),0)+IF($B1380>0,(-D1382-D1383-D1384),0)+D1391+IF($B1385>0,(-D1387-IF(D1387>0,0,D1388)-D1389),0)+IF($B1392>0,(-D1394-D1395-D1396),0)+IF($B1397>0,(-D1399-D1400-D1401),0)+IF($B1402>0,(-D1404-IF(D1404>0,0,D1405)-D1406),0)","v":{"$error":"#DIV/0!"}},{"$error":"#DIV/0!"},{"$error":"#DIV/0!"},{"$error":"#DIV/0!"},{"$error":"#DIV/0!"},{"$error":"#DIV/0!"},{"$error":"#DIV/0!"},{"$error":"#DIV/0!"},{"$error":"#DIV/0!"},{"$error":"#DIV/0!"},{"$error":"#DIV/0!"},{"$error":"#DIV/0!"},{"$error":"#DIV/0!"},{"$error":"#DIV/0!"},{"$error":"#DIV/0!"},{"$error":"#DIV/0!"},{"$error":"#DIV/0!"},{"$error":"#DIV/0!"},{"$error":"#DIV/0!"}]
["Solde du compte (cumulé)",{"$f":"B1409","v":{"$error":"#DIV/0!"}},{"$f":"B1410+C1409","v":{"$error":"#DIV/0!"}},{"$error":"#DIV/0!"},{"$error":"#DIV/0!"},{"$error":"#DIV/0!"},{"$error":"#DIV/0!"},{"$error":"#DIV/0!"},{"$error":"#DIV/0!"},{"$error":"#DIV/0!"},{"$error":"#DIV/0!"},{"$error":"#DIV/0!"},{"$error":"#DIV/0!"},{"$error":"#DIV/0!"},{"$error":"#DIV/0!"},{"$error":"#DIV/0!"},{"$error":"#DIV/0!"},{"$error":"#DIV/0!"},{"$error":"#DIV/0!"},{"$error":"#DIV/0!"},{"$error":"#DIV/0!"},{"$error":"#DIV/0!"}]
[]
[]
[]
["Prêt bancaire additionnel"]
[null,"Période",1,2,3,4,5,6,7,8,9,10,11,12,13,14,15,16,17,18,19,20]
["Prêt bancaire additionnel - Option 1: Remboursement du principal fractionné",{"$f":"'1 Données d''entrée'!$B$342","v":0}]
["Prêt(s) nouveau(x)",null,{"$f":"IF(C1410<0,C1410*(-1)*$B1416+C1410*(-1)*$B1416*'1 Données d''entrée'!$C$338,0)","v":{"$error":"#DIV/0!"}},{"$f":"IF(D1410<0,D1410*(-1)*$B1416+D1410*(-1)*$B1416*'1 Données d''entrée'!$C$338,0)","v":{"$error":"#DIV/0!"}},{"$f":"IF(E1410<0,E1410*(-1)*$B1416+E1410*(-1)*$B1416*'1 Données d''entrée'!$C$338,0)","v":{"$error":"#DIV/0!"}},{"$f":"IF(F1410<0,F1410*(-1)*$B1416+F1410*(-1)*$B1416*'1 Données d''entrée'!$C$338,0)","v":{"$error":"#DIV/0!"}},{"$f":"IF(G1410<0,G1410*(-1)*$B1416+G1410*(-1)*$B1416*'1 Données d''entrée'!$C$338,0)","v":{"$error":"#DIV/0!"}},{"$f":"IF(H1410<0,H1410*(-1)*$B1416+H1410*(-1)*$B1416*'1 Données d''entrée'!$C$338,0)","v":{"$error":"#DIV/0!"}},{"$f":"IF(I1410<0,I1410*(-1)*$B1416+I1410*(-1)*$B1416*'1 Données d''entrée'!$C$338,0)","v":{"$error":"#DIV/0!"}},{"$f":"IF(J1410<0,J1410*(-1)*$B1416+J1410*(-1)*$B1416*'1 Données d''entrée'!$C$338,0)","v":{"$error":"#DIV/0!"}},{"$f":"IF(K1410<0,K1410*(-1)*$B1416+K1410*(-1)*$B1416*'1 Données d''entrée'!$C$338,0)","v":{"$error":"#DIV/0!"}},{"$f":"IF(L1410<0,L1410*(-1)*$B1416+L1410*(-1)*$B1416*'1 Données d''entrée'!$C$338,0)","v":{"$error":"#DIV/0!"}},{"$f":"IF(M1410<0,M1410*(-1)*$B1416+M1410*(-1)*$B1416*'1 Données d''entrée'!$C$338,0)","v":{"$error":"#DIV/0!"}},{"$f":"IF(N1410<0,N1410*(-1)*$B1416+N1410*(-1)*$B1416*'1 Données d''entrée'!$C$338,0)","v":{"$error":"#DIV/0!"}},{"$f":"IF(O1410<0,O1410*(-1)*$B1416+O1410*(-1)*$B1416*'1 Données d''entrée'!$C$338,0)","v":{"$error":"#DIV/0!"}},{"$f":"IF(P1410<0,P1410*(-1)*$B1416+P1410*(-1)*$B1416*'1 Données d''entrée'!$C$338,0)","v":{"$error":"#DIV/0!"}},{"$f":"IF(Q1410<0,Q1410*(-1)*$B1416+Q1410*(-1)*$B1416*'1 Données d''entrée'!$C$338,0)","v":{"$error":"#DIV/0!"}},{"$f":"IF(R1410<0,R1410*(-1)*$B1416+R1410*(-1)*$B1416*'1 Données d''entrée'!$C$338,0)","v":{"$error":"#DIV/0!"}},{"$f":"IF(S1410<0,S1410*(-1)*$B1416+S1410*(-1)*$B1416*'1 Données d''entrée'!$C$338,0)","v":{"$error":"#DIV/0!"}},{"$f":"IF(T1410<0,T1410*(-1)*$B1416+T1410*(-1)*$B1416*'1 Données d''entrée'!$C$338,0)","v":{"$error":"#DIV/0!"}},{"$f":"IF(U1410<0,U1410*(-1)*$B1416+U1410*(-1)*$B1416*'1 Données d''entrée'!$C$338,0)","v":{"$error":"#DIV/0!"}},{"$f":"IF(V1410<0,V1410*(-1)*$B1416+V1410*(-1)*$B1416*'1 Données d''entrée'!$C$338,0)","v":{"$error":"#DIV/0!"}}]
[null,"Période de prêt nouveau"]
["Remboursement du principal",0,0,0,0,0,0,0,0,0,0,0,0,0,0,0,0,0,0,0,0,0]
[null,1,{"$f":"IF(C1367<'1 Données d''entrée'!$C$334+1+$B1420,0,IF(C1367<'1 Données d''entrée'!$C$333+'1 Données d''entrée'!$C$334+1+$B1420,($C1417/'1 Données d''entrée'!$C$333),0))","v":0},{"$f":"IF(D1367<'1 Données d''entrée'!$C$334+1+$B1420,0,IF(D1367<'1 Données d''entrée'!$C$333+'1 Données d''entrée'!$C$334+1+$B1420,($C1417/'1 Données d''entrée'!$C$333),0))","v":0},{"$f":"IF(E1367<'1 Données d''entrée'!$C$334+1+$B1420,0,IF(E1367<'1 Données d''entrée'!$C$333+'1 Données d''entrée'!$C$334+1+$B1420,($C1417/'1 Données d''entrée'!$C$333),0))","v":0},{"$f":"IF(F1367<'1 Données d''entrée'!$C$334+1+$B1420,0,IF(F1367<'1 Données d''entrée'!$C$333+'1 Données d''entrée'!$C$334+1+$B1420,($C1417/'1 Données d''entrée'!$C$333),0))","v":0},{"$f":"IF(G1367<'1 Données d''entrée'!$C$334+1+$B1420,0,IF(G1367<'1 Données d''entrée'!$C$333+'1 Données d''entrée'!$C$334+1+$B1420,($C1417/'1 Données d''entrée'!$C$333),0))","v":0},{"$f":"IF(H1367<'1 Données d''entrée'!$C$334+1+$B1420,0,IF(H1367<'1 Données d''entrée'!$C$333+'1 Données d''entrée'!$C$334+1+$B1420,($C1417/'1 Données d''entrée'!$C$333),0))","v":0},{"$f":"IF(I1367<'1 Données d''entrée'!$C$334+1+$B1420,0,IF(I1367<'1 Données d''entrée'!$C$333+'1 Données d''entrée'!$C$334+1+$B1420,($C1417/'1 Données d''entrée'!$C$333),0))","v":0},{"$f":"IF(J1367<'1 Données d''entrée'!$C$334+1+$B1420,0,IF(J1367<'1 Données d''entrée'!$C$333+'1 Données d''entrée'!$C$334+1+$B1420,($C1417/'1 Données d''entrée'!$C$333),0))","v":0},{"$f":"IF(K1367<'1 Données d''entrée'!$C$334+1+$B1420,0,IF(K1367<'1 Données d''entrée'!$C$333+'1 Données d''entrée'!$C$334+1+$B1420,($C1417/'1 Données d''entrée'!$C$333),0))","v":0},{"$f":"IF(L1367<'1 Données d''entrée'!$C$334+1+$B1420,0,IF(L1367<'1 Données d''entrée'!$C$333+'1 Données d''entrée'!$C$334+1+$B1420,($C1417/'1 Données d''entrée'!$C$333),0))","v":0},{"$f":"IF(M1367<'1 Données d''entrée'!$C$334+1+$B1420,0,IF(M1367<'1 Données d''entrée'!$C$333+'1 Données d''entrée'!$C$334+1+$B1420,($C1417/'1 Données d''entrée'!$C$333),0))","v":0},{"$f":"IF(N1367<'1 Données d''entrée'!$C$334+1+$B1420,0,IF(N1367<'1 Données d''entrée'!$C$333+'1 Données d''entrée'!$C$334+1+$B1420,($C1417/'1 Données d''entrée'!$C$333),0))","v":0},{"$f":"IF(O1367<'1 Données d''entrée'!$C$334+1+$B1420,0,IF(O1367<'1 Données d''entrée'!$C$333+'1 Données d''entrée'!$C$334+1+$B1420,($C1417/'1 Données d''entrée'!$C$333),0))","v":0},{"$f":"IF(P1367<'1 Données d''entrée'!$C$334+1+$B1420,0,IF(P1367<'1 Données d''entrée'!$C$333+'1 Données d''entrée'!$C$334+1+$B1420,($C1417/'1 Données d''entrée'!$C$333),0))","v":0},{"$f":"IF(Q1367<'1 Données d''entrée'!$C$334+1+$B1420,0,IF(Q1367<'1 Données d''entrée'!$C$333+'1 Données d''entrée'!$C$334+1+$B1420,($C1417/'1 Données d''entrée'!$C$333),0))","v":0},{"$f":"IF(R1367<'1 Données d''entrée'!$C$334+1+$B1420,0,IF(R1367<'1 Données d''entrée'!$C$333+'1 Données d''entrée'!$C$334+1+$B1420,($C1417/'1 Données d''entrée'!$C$333),0))","v":0},{"$f":"IF(S1367<'1 Données d''entrée'!$C$334+1+$B1420,0,IF(S1367<'1 Données d''entrée'!$C$333+'1 Données d''entrée'!$C$334+1+$B1420,($C1417/'1 Données d''entrée'!$C$333),0))","v":0},{"$f":"IF(T1367<'1 Données d''entrée'!$C$334+1+$B1420,0,IF(T1367<'1 Données d''entrée'!$C$333+'1 Données d''entrée'!$C$334+1+$B1420,($C1417/'1 Données d''entrée'!$C$333),0))","v":0},{"$f":"IF(U1367<'1 Données d''entrée'!$C$334+1+$B1420,0,IF(U1367<'1 Données d''entrée'!$C$333+'1 Données d''entrée'!$C$334+1+$B1420,($C1417/'1 Données d''entrée'!$C$333),0))","v":0},{"$f":"IF(V1367<'1 Données d''entrée'!$C$334+1+$B1420,0,IF(V1367<'1 Données d''entrée'!$C$333+'1 Données d''entrée'!$C$334+1+$B1420,($C1417/'1 Données d''entrée'!$C$333),0))","v":0}]
[null,2,{"$f":"IF(C1367<'1 Données d''entrée'!$C$334+1+$B1421,0,IF(C1367<'1 Données d''entrée'!$C$333+'1 Données d''entrée'!$C$334+1+$B1421,($D1417/'1 Données d''entrée'!$C$333),0))","v":0},{"$f":"IF(D1367<'1 Données d''entrée'!$C$334+1+$B1421,0,IF(D1367<'1 Données d''entrée'!$C$333+'1 Données d''entrée'!$C$334+1+$B1421,($D1417/'1 Données d''entrée'!$C$333),0))","v":0},{"$f":"IF(E1367<'1 Données d''entrée'!$C$334+1+$B1421,0,IF(E1367<'1 Données d''entrée'!$C$333+'1 Données d''entrée'!$C$334+1+$B1421,($D1417/'1 Données d''entrée'!$C$333),0))","v":0},{"$f":"IF(F1367<'1 Données d''entrée'!$C$334+1+$B1421,0,IF(F1367<'1 Données d''entrée'!$C$333+'1 Données d''entrée'!$C$334+1+$B1421,($D1417/'1 Données d''entrée'!$C$333),0))","v":0},{"$f":"IF(G1367<'1 Données d''entrée'!$C$334+1+$B1421,0,IF(G1367<'1 Données d''entrée'!$C$333+'1 Données d''entrée'!$C$334+1+$B1421,($D1417/'1 Données d''entrée'!$C$333),0))","v":0},{"$f":"IF(H1367<'1 Données d''entrée'!$C$334+1+$B1421,0,IF(H1367<'1 Données d''entrée'!$C$333+'1 Données d''entrée'!$C$334+1+$B1421,($D1417/'1 Données d''entrée'!$C$333),0))","v":0},{"$f":"IF(I1367<'1 Données d''entrée'!$C$334+1+$B1421,0,IF(I1367<'1 Données d''entrée'!$C$333+'1 Données d''entrée'!$C$334+1+$B1421,($D1417/'1 Données d''entrée'!$C$333),0))","v":0},{"$f":"IF(J1367<'1 Données d''entrée'!$C$334+1+$B1421,0,IF(J1367<'1 Données d''entrée'!$C$333+'1 Données d''entrée'!$C$334+1+$B1421,($D1417/'1 Données d''entrée'!$C$333),0))","v":0},{"$f":"IF(K1367<'1 Données d''entrée'!$C$334+1+$B1421,0,IF(K1367<'1 Données d''entrée'!$C$333+'1 Données d''entrée'!$C$334+1+$B1421,($D1417/'1 Données d''entrée'!$C$333),0))","v":0},{"$f":"IF(L1367<'1 Données d''entrée'!$C$334+1+$B1421,0,IF(L1367<'1 Données d''entrée'!$C$333+'1 Données d''entrée'!$C$334+1+$B1421,($D1417/'1 Données d''entrée'!$C$333),0))","v":0},{"$f":"IF(M1367<'1 Données d''entrée'!$C$334+1+$B1421,0,IF(M1367<'1 Données d''entrée'!$C$333+'1 Données d''entrée'!$C$334+1+$B1421,($D1417/'1 Données d''entrée'!$C$333),0))","v":0},{"$f":"IF(N1367<'1 Données d''entrée'!$C$334+1+$B1421,0,IF(N1367<'1 Données d''entrée'!$C$333+'1 Données d''entrée'!$C$334+1+$B1421,($D1417/'1 Données d''entrée'!$C$333),0))","v":0},{"$f":"IF(O1367<'1 Données d''entrée'!$C$334+1+$B1421,0,IF(O1367<'1 Données d''entrée'!$C$333+'1 Données d''entrée'!$C$334+1+$B1421,($D1417/'1 Données d''entrée'!$C$333),0))","v":0},{"$f":"IF(P1367<'1 Données d''entrée'!$C$334+1+$B1421,0,IF(P1367<'1 Données d''entrée'!$C$333+'1 Données d''entrée'!$C$334+1+$B1421,($D1417/'1 Données d''entrée'!$C$333),0))","v":0},{"$f":"IF(Q1367<'1 Données d''entrée'!$C$334+1+$B1421,0,IF(Q1367<'1 Données d''entrée'!$C$333+'1 Données d''entrée'!$C$334+1+$B1421,($D1417/'1 Données d''entrée'!$C$333),0))","v":0},{"$f":"IF(R1367<'1 Données d''entrée'!$C$334+1+$B1421,0,IF(R1367<'1 Données d''entrée'!$C$333+'1 Données d''entrée'!$C$334+1+$B1421,($D1417/'1 Données d''entrée'!$C$333),0))","v":0},{"$f":"IF(S1367<'1 Données d''entrée'!$C$334+1+$B1421,0,IF(S1367<'1 Données d''entrée'!$C$333+'1 Données d''entrée'!$C$334+1+$B1421,($D1417/'1 Données d''entrée'!$C$333),0))","v":0},{"$f":"IF(T1367<'1 Données d''entrée'!$C$334+1+$B1421,0,IF(T1367<'1 Données d''entrée'!$C$333+'1 Données d''entrée'!$C$334+1+$B1421,($D1417/'1 Données d''entrée'!$C$333),0))","v":0},{"$f":"IF(U1367<'1 Données d''entrée'!$C$334+1+$B1421,0,IF(U1367<'1 Données d''entrée'!$C$333+'1 Données d''entrée'!$C$334+1+$B1421,($D1417/'1 Données d''entrée'!$C$333),0))","v":0},{"$f":"IF(V1367<'1 Données d''entrée'!$C$334+1+$B1421,0,IF(V1367<'1 Données d''entrée'!$C$333+'1 Données d''entrée'!$C$334+1+$B1421,($D1417/'1 Données d''entrée'!$C$333),0))","v":0}]
[null,3,{"$f":"IF(C1367<'1 Données d''entrée'!$C$334+1+$B1422,0,IF(C1367<'1 Données d''entrée'!$C$333+'1 Données d''entrée'!$C$334+1+$B1422,($E1417/'1 Données d''entrée'!$C$333),0))","v":0},{"$f":"IF(D1367<'1 Données d''entrée'!$C$334+1+$B1422,0,IF(D1367<'1 Données d''entrée'!$C$333+'1 Données d''entrée'!$C$334+1+$B1422,($E1417/'1 Données d''entrée'!$C$333),0))","v":0},{"$f":"IF(E1367<'1 Données d''entrée'!$C$334+1+$B1422,0,IF(E1367<'1 Données d''entrée'!$C$333+'1 Données d''entrée'!$C$334+1+$B1422,($E1417/'1 Données d''entrée'!$C$333),0))","v":0},{"$f":"IF(F1367<'1 Données d''entrée'!$C$334+1+$B1422,0,IF(F1367<'1 Données d''entrée'!$C$333+'1 Données d''entrée'!$C$334+1+$B1422,($E1417/'1 Données d''entrée'!$C$333),0))","v":0},{"$f":"IF(G1367<'1 Données d''entrée'!$C$334+1+$B1422,0,IF(G1367<'1 Données d''entrée'!$C$333+'1 Données d''entrée'!$C$334+1+$B1422,($E1417/'1 Données d''entrée'!$C$333),0))","v":0},{"$f":"IF(H1367<'1 Données d''entrée'!$C$334+1+$B1422,0,IF(H1367<'1 Données d''entrée'!$C$333+'1 Données d''entrée'!$C$334+1+$B1422,($E1417/'1 Données d''entrée'!$C$333),0))","v":0},{"$f":"IF(I1367<'1 Données d''entrée'!$C$334+1+$B1422,0,IF(I1367<'1 Données d''entrée'!$C$333+'1 Données d''entrée'!$C$334+1+$B1422,($E1417/'1 Données d''entrée'!$C$333),0))","v":0},{"$f":"IF(J1367<'1 Données d''entrée'!$C$334+1+$B1422,0,IF(J1367<'1 Données d''entrée'!$C$333+'1 Données d''entrée'!$C$334+1+$B1422,($E1417/'1 Données d''entrée'!$C$333),0))","v":0},{"$f":"IF(K1367<'1 Données d''entrée'!$C$334+1+$B1422,0,IF(K1367<'1 Données d''entrée'!$C$333+'1 Données d''entrée'!$C$334+1+$B1422,($E1417/'1 Données d''entrée'!$C$333),0))","v":0},{"$f":"IF(L1367<'1 Données d''entrée'!$C$334+1+$B1422,0,IF(L1367<'1 Données d''entrée'!$C$333+'1 Données d''entrée'!$C$334+1+$B1422,($E1417/'1 Données d''entrée'!$C$333),0))","v":0},{"$f":"IF(M1367<'1 Données d''entrée'!$C$334+1+$B1422,0,IF(M1367<'1 Données d''entrée'!$C$333+'1 Données d''entrée'!$C$334+1+$B1422,($E1417/'1 Données d''entrée'!$C$333),0))","v":0},{"$f":"IF(N1367<'1 Données d''entrée'!$C$334+1+$B1422,0,IF(N1367<'1 Données d''entrée'!$C$333+'1 Données d''entrée'!$C$334+1+$B1422,($E1417/'1 Données d''entrée'!$C$333),0))","v":0},{"$f":"IF(O1367<'1 Données d''entrée'!$C$334+1+$B1422,0,IF(O1367<'1 Données d''entrée'!$C$333+'1 Données d''entrée'!$C$334+1+$B1422,($E1417/'1 Données d''entrée'!$C$333),0))","v":0},{"$f":"IF(P1367<'1 Données d''entrée'!$C$334+1+$B1422,0,IF(P1367<'1 Données d''entrée'!$C$333+'1 Données d''entrée'!$C$334+1+$B1422,($E1417/'1 Données d''entrée'!$C$333),0))","v":0},{"$f":"IF(Q1367<'1 Données d''entrée'!$C$334+1+$B1422,0,IF(Q1367<'1 Données d''entrée'!$C$333+'1 Données d''entrée'!$C$334+1+$B1422,($E1417/'1 Données d''entrée'!$C$333),0))","v":0},{"$f":"IF(R1367<'1 Données d''entrée'!$C$334+1+$B1422,0,IF(R1367<'1 Données d''entrée'!$C$333+'1 Données d''entrée'!$C$334+1+$B1422,($E1417/'1 Données d''entrée'!$C$333),0))","v":0},{"$f":"IF(S1367<'1 Données d''entrée'!$C$334+1+$B1422,0,IF(S1367<'1 Données d''entrée'!$C$333+'1 Données d''entrée'!$C$334+1+$B1422,($E1417/'1 Données d''entrée'!$C$333),0))","v":0},{"$f":"IF(T1367<'1 Données d''entrée'!$C$334+1+$B1422,0,IF(T1367<'1 Données d''entrée'!$C$333+'1 Données d''entrée'!$C$334+1+$B1422,($E1417/'1 Données d''entrée'!$C$333),0))","v":0},{"$f":"IF(U1367<'1 Données d''entrée'!$C$334+1+$B1422,0,IF(U1367<'1 Données d''entrée'!$C$333+'1 Données d''entrée'!$C$334+1+$B1422,($E1417/'1 Données d''entrée'!$C$333),0))","v":0},{"$f":"IF(V1367<'1 Données d''entrée'!$C$334+1+$B1422,0,IF(V1367<'1 Données d''entrée'!$C$333+'1 Données d''entrée'!$C$334+1+$B1422,($E1417/'1 Données d''entrée'!$C$333),0))","v":0}]
[null,4,{"$f":"IF(C1367<'1 Données d''entrée'!$C$334+1+$B1423,0,IF(C1367<'1 Données d''entrée'!$C$333+'1 Données d''entrée'!$C$334+1+$B1423,($F1417/'1 Données d''entrée'!$C$333),0))","v":0},{"$f":"IF(D1367<'1 Données d''entrée'!$C$334+1+$B1423,0,IF(D1367<'1 Données d''entrée'!$C$333+'1 Données d''entrée'!$C$334+1+$B1423,($F1417/'1 Données d''entrée'!$C$333),0))","v":0},{"$f":"IF(E1367<'1 Données d''entrée'!$C$334+1+$B1423,0,IF(E1367<'1 Données d''entrée'!$C$333+'1 Données d''entrée'!$C$334+1+$B1423,($F1417/'1 Données d''entrée'!$C$333),0))","v":0},{"$f":"IF(F1367<'1 Données d''entrée'!$C$334+1+$B1423,0,IF(F1367<'1 Données d''entrée'!$C$333+'1 Données d''entrée'!$C$334+1+$B1423,($F1417/'1 Données d''entrée'!$C$333),0))","v":0},{"$f":"IF(G1367<'1 Données d''entrée'!$C$334+1+$B1423,0,IF(G1367<'1 Données d''entrée'!$C$333+'1 Données d''entrée'!$C$334+1+$B1423,($F1417/'1 Données d''entrée'!$C$333),0))","v":0},{"$f":"IF(H1367<'1 Données d''entrée'!$C$334+1+$B1423,0,IF(H1367<'1 Données d''entrée'!$C$333+'1 Données d''entrée'!$C$334+1+$B1423,($F1417/'1 Données d''entrée'!$C$333),0))","v":0},{"$f":"IF(I1367<'1 Données d''entrée'!$C$334+1+$B1423,0,IF(I1367<'1 Données d''entrée'!$C$333+'1 Données d''entrée'!$C$334+1+$B1423,($F1417/'1 Données d''entrée'!$C$333),0))","v":0},{"$f":"IF(J1367<'1 Données d''entrée'!$C$334+1+$B1423,0,IF(J1367<'1 Données d''entrée'!$C$333+'1 Données d''entrée'!$C$334+1+$B1423,($F1417/'1 Données d''entrée'!$C$333),0))","v":0},{"$f":"IF(K1367<'1 Données d''entrée'!$C$334+1+$B1423,0,IF(K1367<'1 Données d''entrée'!$C$333+'1 Données d''entrée'!$C$334+1+$B1423,($F1417/'1 Données d''entrée'!$C$333),0))","v":0},{"$f":"IF(L1367<'1 Données d''entrée'!$C$334+1+$B1423,0,IF(L1367<'1 Données d''entrée'!$C$333+'1 Données d''entrée'!$C$334+1+$B1423,($F1417/'1 Données d''entrée'!$C$333),0))","v":0},{"$f":"IF(M1367<'1 Données d''entrée'!$C$334+1+$B1423,0,IF(M1367<'1 Données d''entrée'!$C$333+'1 Données d''entrée'!$C$334+1+$B1423,($F1417/'1 Données d''entrée'!$C$333),0))","v":0},{"$f":"IF(N1367<'1 Données d''entrée'!$C$334+1+$B1423,0,IF(N1367<'1 Données d''entrée'!$C$333+'1 Données d''entrée'!$C$334+1+$B1423,($F1417/'1 Données d''entrée'!$C$333),0))","v":0},{"$f":"IF(O1367<'1 Données d''entrée'!$C$334+1+$B1423,0,IF(O1367<'1 Données d''entrée'!$C$333+'1 Données d''entrée'!$C$334+1+$B1423,($F1417/'1 Données d''entrée'!$C$333),0))","v":0},{"$f":"IF(P1367<'1 Données d''entrée'!$C$334+1+$B1423,0,IF(P1367<'1 Données d''entrée'!$C$333+'1 Données d''entrée'!$C$334+1+$B1423,($F1417/'1 Données d''entrée'!$C$333),0))","v":0},{"$f":"IF(Q1367<'1 Données d''entrée'!$C$334+1+$B1423,0,IF(Q1367<'1 Données d''entrée'!$C$333+'1 Données d''entrée'!$C$334+1+$B1423,($F1417/'1 Données d''entrée'!$C$333),0))","v":0},{"$f":"IF(R1367<'1 Données d''entrée'!$C$334+1+$B1423,0,IF(R1367<'1 Données d''entrée'!$C$333+'1 Données d''entrée'!$C$334+1+$B1423,($F1417/'1 Données d''entrée'!$C$333),0))","v":0},{"$f":"IF(S1367<'1 Données d''entrée'!$C$334+1+$B1423,0,IF(S1367<'1 Données d''entrée'!$C$333+'1 Données d''entrée'!$C$334+1+$B1423,($F1417/'1 Données d''entrée'!$C$333),0))","v":0},{"$f":"IF(T1367<'1 Données d''entrée'!$C$334+1+$B1423,0,IF(T1367<'1 Données d''entrée'!$C$333+'1 Données d''entrée'!$C$334+1+$B1423,($F1417/'1 Données d''entrée'!$C$333),0))","v":0},{"$f":"IF(U1367<'1 Données d''entrée'!$C$334+1+$B1423,0,IF(U1367<'1 Données d''entrée'!$C$333+'1 Données d''entrée'!$C$334+1+$B1423,($F1417/'1 Données d''entrée'!$C$333),0))","v":0},{"$f":"IF(V1367<'1 Données d''entrée'!$C$334+1+$B1423,0,IF(V1367<'1 Données d''entrée'!$C$333+'1 Données d''entrée'!$C$334+1+$B1423,($F1417/'1 Données d''entrée'!$C$333),0))","v":0}]
[null,5,{"$f":"IF(C1367<'1 Données d''entrée'!$C$334+1+$B1424,0,IF(C1367<'1 Données d''entrée'!$C$333+'1 Données d''entrée'!$C$334+1+$B1424,($G1417/'1 Données d''entrée'!$C$333),0))","v":0},{"$f":"IF(D1367<'1 Données d''entrée'!$C$334+1+$B1424,0,IF(D1367<'1 Données d''entrée'!$C$333+'1 Données d''entrée'!$C$334+1+$B1424,($G1417/'1 Données d''entrée'!$C$333),0))","v":0},{"$f":"IF(E1367<'1 Données d''entrée'!$C$334+1+$B1424,0,IF(E1367<'1 Données d''entrée'!$C$333+'1 Données d''entrée'!$C$334+1+$B1424,($G1417/'1 Données d''entrée'!$C$333),0))","v":0},{"$f":"IF(F1367<'1 Données d''entrée'!$C$334+1+$B1424,0,IF(F1367<'1 Données d''entrée'!$C$333+'1 Données d''entrée'!$C$334+1+$B1424,($G1417/'1 Données d''entrée'!$C$333),0))","v":0},{"$f":"IF(G1367<'1 Données d''entrée'!$C$334+1+$B1424,0,IF(G1367<'1 Données d''entrée'!$C$333+'1 Données d''entrée'!$C$334+1+$B1424,($G1417/'1 Données d''entrée'!$C$333),0))","v":0},{"$f":"IF(H1367<'1 Données d''entrée'!$C$334+1+$B1424,0,IF(H1367<'1 Données d''entrée'!$C$333+'1 Données d''entrée'!$C$334+1+$B1424,($G1417/'1 Données d''entrée'!$C$333),0))","v":0},{"$f":"IF(I1367<'1 Données d''entrée'!$C$334+1+$B1424,0,IF(I1367<'1 Données d''entrée'!$C$333+'1 Données d''entrée'!$C$334+1+$B1424,($G1417/'1 Données d''entrée'!$C$333),0))","v":0},{"$f":"IF(J1367<'1 Données d''entrée'!$C$334+1+$B1424,0,IF(J1367<'1 Données d''entrée'!$C$333+'1 Données d''entrée'!$C$334+1+$B1424,($G1417/'1 Données d''entrée'!$C$333),0))","v":0},{"$f":"IF(K1367<'1 Données d''entrée'!$C$334+1+$B1424,0,IF(K1367<'1 Données d''entrée'!$C$333+'1 Données d''entrée'!$C$334+1+$B1424,($G1417/'1 Données d''entrée'!$C$333),0))","v":0},{"$f":"IF(L1367<'1 Données d''entrée'!$C$334+1+$B1424,0,IF(L1367<'1 Données d''entrée'!$C$333+'1 Données d''entrée'!$C$334+1+$B1424,($G1417/'1 Données d''entrée'!$C$333),0))","v":0},{"$f":"IF(M1367<'1 Données d''entrée'!$C$334+1+$B1424,0,IF(M1367<'1 Données d''entrée'!$C$333+'1 Données d''entrée'!$C$334+1+$B1424,($G1417/'1 Données d''entrée'!$C$333),0))","v":0},{"$f":"IF(N1367<'1 Données d''entrée'!$C$334+1+$B1424,0,IF(N1367<'1 Données d''entrée'!$C$333+'1 Données d''entrée'!$C$334+1+$B1424,($G1417/'1 Données d''entrée'!$C$333),0))","v":0},{"$f":"IF(O1367<'1 Données d''entrée'!$C$334+1+$B1424,0,IF(O1367<'1 Données d''entrée'!$C$333+'1 Données d''entrée'!$C$334+1+$B1424,($G1417/'1 Données d''entrée'!$C$333),0))","v":0},{"$f":"IF(P1367<'1 Données d''entrée'!$C$334+1+$B1424,0,IF(P1367<'1 Données d''entrée'!$C$333+'1 Données d''entrée'!$C$334+1+$B1424,($G1417/'1 Données d''entrée'!$C$333),0))","v":0},{"$f":"IF(Q1367<'1 Données d''entrée'!$C$334+1+$B1424,0,IF(Q1367<'1 Données d''entrée'!$C$333+'1 Données d''entrée'!$C$334+1+$B1424,($G1417/'1 Données d''entrée'!$C$333),0))","v":0},{"$f":"IF(R1367<'1 Données d''entrée'!$C$334+1+$B1424,0,IF(R1367<'1 Données d''entrée'!$C$333+'1 Données d''entrée'!$C$334+1+$B1424,($G1417/'1 Données d''entrée'!$C$333),0))","v":0},{"$f":"IF(S1367<'1 Données d''entrée'!$C$334+1+$B1424,0,IF(S1367<'1 Données d''entrée'!$C$333+'1 Données d''entrée'!$C$334+1+$B1424,($G1417/'1 Données d''entrée'!$C$333),0))","v":0},{"$f":"IF(T1367<'1 Données d''entrée'!$C$334+1+$B1424,0,IF(T1367<'1 Données d''entrée'!$C$333+'1 Données d''entrée'!$C$334+1+$B1424,($G1417/'1 Données d''entrée'!$C$333),0))","v":0},{"$f":"IF(U1367<'1 Données d''entrée'!$C$334+1+$B1424,0,IF(U1367<'1 Données d''entrée'!$C$333+'1 Données d''entrée'!$C$334+1+$B1424,($G1417/'1 Données d''entrée'!$C$333),0))","v":0},{"$f":"IF(V1367<'1 Données d''entrée'!$C$334+1+$B1424,0,IF(V1367<'1 Données d''entrée'!$C$333+'1 Données d''entrée'!$C$334+1+$B1424,($G1417/'1 Données d''entrée'!$C$333),0))","v":0}]
[null,6,{"$f":"IF(C1367<'1 Données d''entrée'!$C$334+1+$B1425,0,IF(C1367<'1 Données d''entrée'!$C$333+'1 Données d''entrée'!$C$334+1+$B1425,($H1417/'1 Données d''entrée'!$C$333),0))","v":0},{"$f":"IF(D1367<'1 Données d''entrée'!$C$334+1+$B1425,0,IF(D1367<'1 Données d''entrée'!$C$333+'1 Données d''entrée'!$C$334+1+$B1425,($H1417/'1 Données d''entrée'!$C$333),0))","v":0},{"$f":"IF(E1367<'1 Données d''entrée'!$C$334+1+$B1425,0,IF(E1367<'1 Données d''entrée'!$C$333+'1 Données d''entrée'!$C$334+1+$B1425,($H1417/'1 Données d''entrée'!$C$333),0))","v":0},{"$f":"IF(F1367<'1 Données d''entrée'!$C$334+1+$B1425,0,IF(F1367<'1 Données d''entrée'!$C$333+'1 Données d''entrée'!$C$334+1+$B1425,($H1417/'1 Données d''entrée'!$C$333),0))","v":0},{"$f":"IF(G1367<'1 Données d''entrée'!$C$334+1+$B1425,0,IF(G1367<'1 Données d''entrée'!$C$333+'1 Données d''entrée'!$C$334+1+$B1425,($H1417/'1 Données d''entrée'!$C$333),0))","v":0},{"$f":"IF(H1367<'1 Données d''entrée'!$C$334+1+$B1425,0,IF(H1367<'1 Données d''entrée'!$C$333+'1 Données d''entrée'!$C$334+1+$B1425,($H1417/'1 Données d''entrée'!$C$333),0))","v":0},{"$f":"IF(I1367<'1 Données d''entrée'!$C$334+1+$B1425,0,IF(I1367<'1 Données d''entrée'!$C$333+'1 Données d''entrée'!$C$334+1+$B1425,($H1417/'1 Données d''entrée'!$C$333),0))","v":0},{"$f":"IF(J1367<'1 Données d''entrée'!$C$334+1+$B1425,0,IF(J1367<'1 Données d''entrée'!$C$333+'1 Données d''entrée'!$C$334+1+$B1425,($H1417/'1 Données d''entrée'!$C$333),0))","v":0},{"$f":"IF(K1367<'1 Données d''entrée'!$C$334+1+$B1425,0,IF(K1367<'1 Données d''entrée'!$C$333+'1 Données d''entrée'!$C$334+1+$B1425,($H1417/'1 Données d''entrée'!$C$333),0))","v":0},{"$f":"IF(L1367<'1 Données d''entrée'!$C$334+1+$B1425,0,IF(L1367<'1 Données d''entrée'!$C$333+'1 Données d''entrée'!$C$334+1+$B1425,($H1417/'1 Données d''entrée'!$C$333),0))","v":0},{"$f":"IF(M1367<'1 Données d''entrée'!$C$334+1+$B1425,0,IF(M1367<'1 Données d''entrée'!$C$333+'1 Données d''entrée'!$C$334+1+$B1425,($H1417/'1 Données d''entrée'!$C$333),0))","v":0},{"$f":"IF(N1367<'1 Données d''entrée'!$C$334+1+$B1425,0,IF(N1367<'1 Données d''entrée'!$C$333+'1 Données d''entrée'!$C$334+1+$B1425,($H1417/'1 Données d''entrée'!$C$333),0))","v":0},{"$f":"IF(O1367<'1 Données d''entrée'!$C$334+1+$B1425,0,IF(O1367<'1 Données d''entrée'!$C$333+'1 Données d''entrée'!$C$334+1+$B1425,($H1417/'1 Données d''entrée'!$C$333),0))","v":0},{"$f":"IF(P1367<'1 Données d''entrée'!$C$334+1+$B1425,0,IF(P1367<'1 Données d''entrée'!$C$333+'1 Données d''entrée'!$C$334+1+$B1425,($H1417/'1 Données d''entrée'!$C$333),0))","v":0},{"$f":"IF(Q1367<'1 Données d''entrée'!$C$334+1+$B1425,0,IF(Q1367<'1 Données d''entrée'!$C$333+'1 Données d''entrée'!$C$334+1+$B1425,($H1417/'1 Données d''entrée'!$C$333),0))","v":0},{"$f":"IF(R1367<'1 Données d''entrée'!$C$334+1+$B1425,0,IF(R1367<'1 Données d''entrée'!$C$333+'1 Données d''entrée'!$C$334+1+$B1425,($H1417/'1 Données d''entrée'!$C$333),0))","v":0},{"$f":"IF(S1367<'1 Données d''entrée'!$C$334+1+$B1425,0,IF(S1367<'1 Données d''entrée'!$C$333+'1 Données d''entrée'!$C$334+1+$B1425,($H1417/'1 Données d''entrée'!$C$333),0))","v":0},{"$f":"IF(T1367<'1 Données d''entrée'!$C$334+1+$B1425,0,IF(T1367<'1 Données d''entrée'!$C$333+'1 Données d''entrée'!$C$334+1+$B1425,($H1417/'1 Données d''entrée'!$C$333),0))","v":0},{"$f":"IF(U1367<'1 Données d''entrée'!$C$334+1+$B1425,0,IF(U1367<'1 Données d''entrée'!$C$333+'1 Données d''entrée'!$C$334+1+$B1425,($H1417/'1 Données d''entrée'!$C$333),0))","v":0},{"$f":"IF(V1367<'1 Données d''entrée'!$C$334+1+$B1425,0,IF(V1367<'1 Données d''entrée'!$C$333+'1 Données d''entrée'!$C$334+1+$B1425,($H1417/'1 Données d''entrée'!$C$333),0))","v":0}]
[null,7,{"$f":"IF(C1367<'1 Données d''entrée'!$C$334+1+$B1426,0,IF(C1367<'1 Données d''entrée'!$C$333+'1 Données d''entrée'!$C$334+1+$B1426,($I1417/'1 Données d''entrée'!$C$333),0))","v":0},{"$f":"IF(D1367<'1 Données d''entrée'!$C$334+1+$B1426,0,IF(D1367<'1 Données d''entrée'!$C$333+'1 Données d''entrée'!$C$334+1+$B1426,($I1417/'1 Données d''entrée'!$C$333),0))","v":0},{"$f":"IF(E1367<'1 Données d''entrée'!$C$334+1+$B1426,0,IF(E1367<'1 Données d''entrée'!$C$333+'1 Données d''entrée'!$C$334+1+$B1426,($I1417/'1 Données d''entrée'!$C$333),0))","v":0},{"$f":"IF(F1367<'1 Données d''entrée'!$C$334+1+$B1426,0,IF(F1367<'1 Données d''entrée'!$C$333+'1 Données d''entrée'!$C$334+1+$B1426,($I1417/'1 Données d''entrée'!$C$333),0))","v":0},{"$f":"IF(G1367<'1 Données d''entrée'!$C$334+1+$B1426,0,IF(G1367<'1 Données d''entrée'!$C$333+'1 Données d''entrée'!$C$334+1+$B1426,($I1417/'1 Données d''entrée'!$C$333),0))","v":0},{"$f":"IF(H1367<'1 Données d''entrée'!$C$334+1+$B1426,0,IF(H1367<'1 Données d''entrée'!$C$333+'1 Données d''entrée'!$C$334+1+$B1426,($I1417/'1 Données d''entrée'!$C$333),0))","v":0},{"$f":"IF(I1367<'1 Données d''entrée'!$C$334+1+$B1426,0,IF(I1367<'1 Données d''entrée'!$C$333+'1 Données d''entrée'!$C$334+1+$B1426,($I1417/'1 Données d''entrée'!$C$333),0))","v":0},{"$f":"IF(J1367<'1 Données d''entrée'!$C$334+1+$B1426,0,IF(J1367<'1 Données d''entrée'!$C$333+'1 Données d''entrée'!$C$334+1+$B1426,($I1417/'1 Données d''entrée'!$C$333),0))","v":0},{"$f":"IF(K1367<'1 Données d''entrée'!$C$334+1+$B1426,0,IF(K1367<'1 Données d''entrée'!$C$333+'1 Données d''entrée'!$C$334+1+$B1426,($I1417/'1 Données d''entrée'!$C$333),0))","v":0},{"$f":"IF(L1367<'1 Données d''entrée'!$C$334+1+$B1426,0,IF(L1367<'1 Données d''entrée'!$C$333+'1 Données d''entrée'!$C$334+1+$B1426,($I1417/'1 Données d''entrée'!$C$333),0))","v":0},{"$f":"IF(M1367<'1 Données d''entrée'!$C$334+1+$B1426,0,IF(M1367<'1 Données d''entrée'!$C$333+'1 Données d''entrée'!$C$334+1+$B1426,($I1417/'1 Données d''entrée'!$C$333),0))","v":0},{"$f":"IF(N1367<'1 Données d''entrée'!$C$334+1+$B1426,0,IF(N1367<'1 Données d''entrée'!$C$333+'1 Données d''entrée'!$C$334+1+$B1426,($I1417/'1 Données d''entrée'!$C$333),0))","v":0},{"$f":"IF(O1367<'1 Données d''entrée'!$C$334+1+$B1426,0,IF(O1367<'1 Données d''entrée'!$C$333+'1 Données d''entrée'!$C$334+1+$B1426,($I1417/'1 Données d''entrée'!$C$333),0))","v":0},{"$f":"IF(P1367<'1 Données d''entrée'!$C$334+1+$B1426,0,IF(P1367<'1 Données d''entrée'!$C$333+'1 Données d''entrée'!$C$334+1+$B1426,($I1417/'1 Données d''entrée'!$C$333),0))","v":0},{"$f":"IF(Q1367<'1 Données d''entrée'!$C$334+1+$B1426,0,IF(Q1367<'1 Données d''entrée'!$C$333+'1 Données d''entrée'!$C$334+1+$B1426,($I1417/'1 Données d''entrée'!$C$333),0))","v":0},{"$f":"IF(R1367<'1 Données d''entrée'!$C$334+1+$B1426,0,IF(R1367<'1 Données d''entrée'!$C$333+'1 Données d''entrée'!$C$334+1+$B1426,($I1417/'1 Données d''entrée'!$C$333),0))","v":0},{"$f":"IF(S1367<'1 Données d''entrée'!$C$334+1+$B1426,0,IF(S1367<'1 Données d''entrée'!$C$333+'1 Données d''entrée'!$C$334+1+$B1426,($I1417/'1 Données d''entrée'!$C$333),0))","v":0},{"$f":"IF(T1367<'1 Données d''entrée'!$C$334+1+$B1426,0,IF(T1367<'1 Données d''entrée'!$C$333+'1 Données d''entrée'!$C$334+1+$B1426,($I1417/'1 Données d''entrée'!$C$333),0))","v":0},{"$f":"IF(U1367<'1 Données d''entrée'!$C$334+1+$B1426,0,IF(U1367<'1 Données d''entrée'!$C$333+'1 Données d''entrée'!$C$334+1+$B1426,($I1417/'1 Données d''entrée'!$C$333),0))","v":0},{"$f":"IF(V1367<'1 Données d''entrée'!$C$334+1+$B1426,0,IF(V1367<'1 Données d''entrée'!$C$333+'1 Données d''entrée'!$C$334+1+$B1426,($I1417/'1 Données d''entrée'!$C$333),0))","v":0}]
[null,8,{"$f":"IF(C1367<'1 Données d''entrée'!$C$334+1+$B1427,0,IF(C1367<'1 Données d''entrée'!$C$333+'1 Données d''entrée'!$C$334+1+$B1427,($J1417/'1 Données d''entrée'!$C$333),0))","v":0},{"$f":"IF(D1367<'1 Données d''entrée'!$C$334+1+$B1427,0,IF(D1367<'1 Données d''entrée'!$C$333+'1 Données d''entrée'!$C$334+1+$B1427,($J1417/'1 Données d''entrée'!$C$333),0))","v":0},{"$f":"IF(E1367<'1 Données d''entrée'!$C$334+1+$B1427,0,IF(E1367<'1 Données d''entrée'!$C$333+'1 Données d''entrée'!$C$334+1+$B1427,($J1417/'1 Données d''entrée'!$C$333),0))","v":0},{"$f":"IF(F1367<'1 Données d''entrée'!$C$334+1+$B1427,0,IF(F1367<'1 Données d''entrée'!$C$333+'1 Données d''entrée'!$C$334+1+$B1427,($J1417/'1 Données d''entrée'!$C$333),0))","v":0},{"$f":"IF(G1367<'1 Données d''entrée'!$C$334+1+$B1427,0,IF(G1367<'1 Données d''entrée'!$C$333+'1 Données d''entrée'!$C$334+1+$B1427,($J1417/'1 Données d''entrée'!$C$333),0))","v":0},{"$f":"IF(H1367<'1 Données d''entrée'!$C$334+1+$B1427,0,IF(H1367<'1 Données d''entrée'!$C$333+'1 Données d''entrée'!$C$334+1+$B1427,($J1417/'1 Données d''entrée'!$C$333),0))","v":0},{"$f":"IF(I1367<'1 Données d''entrée'!$C$334+1+$B1427,0,IF(I1367<'1 Données d''entrée'!$C$333+'1 Données d''entrée'!$C$334+1+$B1427,($J1417/'1 Données d''entrée'!$C$333),0))","v":0},{"$f":"IF(J1367<'1 Données d''entrée'!$C$334+1+$B1427,0,IF(J1367<'1 Données d''entrée'!$C$333+'1 Données d''entrée'!$C$334+1+$B1427,($J1417/'1 Données d''entrée'!$C$333),0))","v":0},{"$f":"IF(K1367<'1 Données d''entrée'!$C$334+1+$B1427,0,IF(K1367<'1 Données d''entrée'!$C$333+'1 Données d''entrée'!$C$334+1+$B1427,($J1417/'1 Données d''entrée'!$C$333),0))","v":0},{"$f":"IF(L1367<'1 Données d''entrée'!$C$334+1+$B1427,0,IF(L1367<'1 Données d''entrée'!$C$333+'1 Données d''entrée'!$C$334+1+$B1427,($J1417/'1 Données d''entrée'!$C$333),0))","v":0},{"$f":"IF(M1367<'1 Données d''entrée'!$C$334+1+$B1427,0,IF(M1367<'1 Données d''entrée'!$C$333+'1 Données d''entrée'!$C$334+1+$B1427,($J1417/'1 Données d''entrée'!$C$333),0))","v":0},{"$f":"IF(N1367<'1 Données d''entrée'!$C$334+1+$B1427,0,IF(N1367<'1 Données d''entrée'!$C$333+'1 Données d''entrée'!$C$334+1+$B1427,($J1417/'1 Données d''entrée'!$C$333),0))","v":0},{"$f":"IF(O1367<'1 Données d''entrée'!$C$334+1+$B1427,0,IF(O1367<'1 Données d''entrée'!$C$333+'1 Données d''entrée'!$C$334+1+$B1427,($J1417/'1 Données d''entrée'!$C$333),0))","v":0},{"$f":"IF(P1367<'1 Données d''entrée'!$C$334+1+$B1427,0,IF(P1367<'1 Données d''entrée'!$C$333+'1 Données d''entrée'!$C$334+1+$B1427,($J1417/'1 Données d''entrée'!$C$333),0))","v":0},{"$f":"IF(Q1367<'1 Données d''entrée'!$C$334+1+$B1427,0,IF(Q1367<'1 Données d''entrée'!$C$333+'1 Données d''entrée'!$C$334+1+$B1427,($J1417/'1 Données d''entrée'!$C$333),0))","v":0},{"$f":"IF(R1367<'1 Données d''entrée'!$C$334+1+$B1427,0,IF(R1367<'1 Données d''entrée'!$C$333+'1 Données d''entrée'!$C$334+1+$B1427,($J1417/'1 Données d''entrée'!$C$333),0))","v":0},{"$f":"IF(S1367<'1 Données d''entrée'!$C$334+1+$B1427,0,IF(S1367<'1 Données d''entrée'!$C$333+'1 Données d''entrée'!$C$334+1+$B1427,($J1417/'1 Données d''entrée'!$C$333),0))","v":0},{"$f":"IF(T1367<'1 Données d''entrée'!$C$334+1+$B1427,0,IF(T1367<'1 Données d''entrée'!$C$333+'1 Données d''entrée'!$C$334+1+$B1427,($J1417/'1 Données d''entrée'!$C$333),0))","v":0},{"$f":"IF(U1367<'1 Données d''entrée'!$C$334+1+$B1427,0,IF(U1367<'1 Données d''entrée'!$C$333+'1 Données d''entrée'!$C$334+1+$B1427,($J1417/'1 Données d''entrée'!$C$333),0))","v":0},{"$f":"IF(V1367<'1 Données d''entrée'!$C$334+1+$B1427,0,IF(V1367<'1 Données d''entrée'!$C$333+'1 Données d''entrée'!$C$334+1+$B1427,($J1417/'1 Données d''entrée'!$C$333),0))","v":0}]
[null,9,{"$f":"IF(C1367<'1 Données d''entrée'!$C$334+1+$B1428,0,IF(C1367<'1 Données d''entrée'!$C$333+'1 Données d''entrée'!$C$334+1+$B1428,($K1417/'1 Données d''entrée'!$C$333),0))","v":0},{"$f":"IF(D1367<'1 Données d''entrée'!$C$334+1+$B1428,0,IF(D1367<'1 Données d''entrée'!$C$333+'1 Données d''entrée'!$C$334+1+$B1428,($K1417/'1 Données d''entrée'!$C$333),0))","v":0},{"$f":"IF(E1367<'1 Données d''entrée'!$C$334+1+$B1428,0,IF(E1367<'1 Données d''entrée'!$C$333+'1 Données d''entrée'!$C$334+1+$B1428,($K1417/'1 Données d''entrée'!$C$333),0))","v":0},{"$f":"IF(F1367<'1 Données d''entrée'!$C$334+1+$B1428,0,IF(F1367<'1 Données d''entrée'!$C$333+'1 Données d''entrée'!$C$334+1+$B1428,($K1417/'1 Données d''entrée'!$C$333),0))","v":0},{"$f":"IF(G1367<'1 Données d''entrée'!$C$334+1+$B1428,0,IF(G1367<'1 Données d''entrée'!$C$333+'1 Données d''entrée'!$C$334+1+$B1428,($K1417/'1 Données d''entrée'!$C$333),0))","v":0},{"$f":"IF(H1367<'1 Données d''entrée'!$C$334+1+$B1428,0,IF(H1367<'1 Données d''entrée'!$C$333+'1 Données d''entrée'!$C$334+1+$B1428,($K1417/'1 Données d''entrée'!$C$333),0))","v":0},{"$f":"IF(I1367<'1 Données d''entrée'!$C$334+1+$B1428,0,IF(I1367<'1 Données d''entrée'!$C$333+'1 Données d''entrée'!$C$334+1+$B1428,($K1417/'1 Données d''entrée'!$C$333),0))","v":0},{"$f":"IF(J1367<'1 Données d''entrée'!$C$334+1+$B1428,0,IF(J1367<'1 Données d''entrée'!$C$333+'1 Données d''entrée'!$C$334+1+$B1428,($K1417/'1 Données d''entrée'!$C$333),0))","v":0},{"$f":"IF(K1367<'1 Données d''entrée'!$C$334+1+$B1428,0,IF(K1367<'1 Données d''entrée'!$C$333+'1 Données d''entrée'!$C$334+1+$B1428,($K1417/'1 Données d''entrée'!$C$333),0))","v":0},{"$f":"IF(L1367<'1 Données d''entrée'!$C$334+1+$B1428,0,IF(L1367<'1 Données d''entrée'!$C$333+'1 Données d''entrée'!$C$334+1+$B1428,($K1417/'1 Données d''entrée'!$C$333),0))","v":0},{"$f":"IF(M1367<'1 Données d''entrée'!$C$334+1+$B1428,0,IF(M1367<'1 Données d''entrée'!$C$333+'1 Données d''entrée'!$C$334+1+$B1428,($K1417/'1 Données d''entrée'!$C$333),0))","v":0},{"$f":"IF(N1367<'1 Données d''entrée'!$C$334+1+$B1428,0,IF(N1367<'1 Données d''entrée'!$C$333+'1 Données d''entrée'!$C$334+1+$B1428,($K1417/'1 Données d''entrée'!$C$333),0))","v":0},{"$f":"IF(O1367<'1 Données d''entrée'!$C$334+1+$B1428,0,IF(O1367<'1 Données d''entrée'!$C$333+'1 Données d''entrée'!$C$334+1+$B1428,($K1417/'1 Données d''entrée'!$C$333),0))","v":0},{"$f":"IF(P1367<'1 Données d''entrée'!$C$334+1+$B1428,0,IF(P1367<'1 Données d''entrée'!$C$333+'1 Données d''entrée'!$C$334+1+$B1428,($K1417/'1 Données d''entrée'!$C$333),0))","v":0},{"$f":"IF(Q1367<'1 Données d''entrée'!$C$334+1+$B1428,0,IF(Q1367<'1 Données d''entrée'!$C$333+'1 Données d''entrée'!$C$334+1+$B1428,($K1417/'1 Données d''entrée'!$C$333),0))","v":0},{"$f":"IF(R1367<'1 Données d''entrée'!$C$334+1+$B1428,0,IF(R1367<'1 Données d''entrée'!$C$333+'1 Données d''entrée'!$C$334+1+$B1428,($K1417/'1 Données d''entrée'!$C$333),0))","v":0},{"$f":"IF(S1367<'1 Données d''entrée'!$C$334+1+$B1428,0,IF(S1367<'1 Données d''entrée'!$C$333+'1 Données d''entrée'!$C$334+1+$B1428,($K1417/'1 Données d''entrée'!$C$333),0))","v":0},{"$f":"IF(T1367<'1 Données d''entrée'!$C$334+1+$B1428,0,IF(T1367<'1 Données d''entrée'!$C$333+'1 Données d''entrée'!$C$334+1+$B1428,($K1417/'1 Données d''entrée'!$C$333),0))","v":0},{"$f":"IF(U1367<'1 Données d''entrée'!$C$334+1+$B1428,0,IF(U1367<'1 Données d''entrée'!$C$333+'1 Données d''entrée'!$C$334+1+$B1428,($K1417/'1 Données d''entrée'!$C$333),0))","v":0},{"$f":"IF(V1367<'1 Données d''entrée'!$C$334+1+$B1428,0,IF(V1367<'1 Données d''entrée'!$C$333+'1 Données d''entrée'!$C$334+1+$B1428,($K1417/'1 Données d''entrée'!$C$333),0))","v":0}]
[null,10,{"$f":"IF(C1367<'1 Données d''entrée'!$C$334+1+$B1429,0,IF(C1367<'1 Données d''entrée'!$C$333+'1 Données d''entrée'!$C$334+1+$B1429,($L1417/'1 Données d''entrée'!$C$333),0))","v":0},{"$f":"IF(D1367<'1 Données d''entrée'!$C$334+1+$B1429,0,IF(D1367<'1 Données d''entrée'!$C$333+'1 Données d''entrée'!$C$334+1+$B1429,($L1417/'1 Données d''entrée'!$C$333),0))","v":0},{"$f":"IF(E1367<'1 Données d''entrée'!$C$334+1+$B1429,0,IF(E1367<'1 Données d''entrée'!$C$333+'1 Données d''entrée'!$C$334+1+$B1429,($L1417/'1 Données d''entrée'!$C$333),0))","v":0},{"$f":"IF(F1367<'1 Données d''entrée'!$C$334+1+$B1429,0,IF(F1367<'1 Données d''entrée'!$C$333+'1 Données d''entrée'!$C$334+1+$B1429,($L1417/'1 Données d''entrée'!$C$333),0))","v":0},{"$f":"IF(G1367<'1 Données d''entrée'!$C$334+1+$B1429,0,IF(G1367<'1 Données d''entrée'!$C$333+'1 Données d''entrée'!$C$334+1+$B1429,($L1417/'1 Données d''entrée'!$C$333),0))","v":0},{"$f":"IF(H1367<'1 Données d''entrée'!$C$334+1+$B1429,0,IF(H1367<'1 Données d''entrée'!$C$333+'1 Données d''entrée'!$C$334+1+$B1429,($L1417/'1 Données d''entrée'!$C$333),0))","v":0},{"$f":"IF(I1367<'1 Données d''entrée'!$C$334+1+$B1429,0,IF(I1367<'1 Données d''entrée'!$C$333+'1 Données d''entrée'!$C$334+1+$B1429,($L1417/'1 Données d''entrée'!$C$333),0))","v":0},{"$f":"IF(J1367<'1 Données d''entrée'!$C$334+1+$B1429,0,IF(J1367<'1 Données d''entrée'!$C$333+'1 Données d''entrée'!$C$334+1+$B1429,($L1417/'1 Données d''entrée'!$C$333),0))","v":0},{"$f":"IF(K1367<'1 Données d''entrée'!$C$334+1+$B1429,0,IF(K1367<'1 Données d''entrée'!$C$333+'1 Données d''entrée'!$C$334+1+$B1429,($L1417/'1 Données d''entrée'!$C$333),0))","v":0},{"$f":"IF(L1367<'1 Données d''entrée'!$C$334+1+$B1429,0,IF(L1367<'1 Données d''entrée'!$C$333+'1 Données d''entrée'!$C$334+1+$B1429,($L1417/'1 Données d''entrée'!$C$333),0))","v":0},{"$f":"IF(M1367<'1 Données d''entrée'!$C$334+1+$B1429,0,IF(M1367<'1 Données d''entrée'!$C$333+'1 Données d''entrée'!$C$334+1+$B1429,($L1417/'1 Données d''entrée'!$C$333),0))","v":0},{"$f":"IF(N1367<'1 Données d''entrée'!$C$334+1+$B1429,0,IF(N1367<'1 Données d''entrée'!$C$333+'1 Données d''entrée'!$C$334+1+$B1429,($L1417/'1 Données d''entrée'!$C$333),0))","v":0},{"$f":"IF(O1367<'1 Données d''entrée'!$C$334+1+$B1429,0,IF(O1367<'1 Données d''entrée'!$C$333+'1 Données d''entrée'!$C$334+1+$B1429,($L1417/'1 Données d''entrée'!$C$333),0))","v":0},{"$f":"IF(P1367<'1 Données d''entrée'!$C$334+1+$B1429,0,IF(P1367<'1 Données d''entrée'!$C$333+'1 Données d''entrée'!$C$334+1+$B1429,($L1417/'1 Données d''entrée'!$C$333),0))","v":0},{"$f":"IF(Q1367<'1 Données d''entrée'!$C$334+1+$B1429,0,IF(Q1367<'1 Données d''entrée'!$C$333+'1 Données d''entrée'!$C$334+1+$B1429,($L1417/'1 Données d''entrée'!$C$333),0))","v":0},{"$f":"IF(R1367<'1 Données d''entrée'!$C$334+1+$B1429,0,IF(R1367<'1 Données d''entrée'!$C$333+'1 Données d''entrée'!$C$334+1+$B1429,($L1417/'1 Données d''entrée'!$C$333),0))","v":0},{"$f":"IF(S1367<'1 Données d''entrée'!$C$334+1+$B1429,0,IF(S1367<'1 Données d''entrée'!$C$333+'1 Données d''entrée'!$C$334+1+$B1429,($L1417/'1 Données d''entrée'!$C$333),0))","v":0},{"$f":"IF(T1367<'1 Données d''entrée'!$C$334+1+$B1429,0,IF(T1367<'1 Données d''entrée'!$C$333+'1 Données d''entrée'!$C$334+1+$B1429,($L1417/'1 Données d''entrée'!$C$333),0))","v":0},{"$f":"IF(U1367<'1 Données d''entrée'!$C$334+1+$B1429,0,IF(U1367<'1 Données d''entrée'!$C$333+'1 Données d''entrée'!$C$334+1+$B1429,($L1417/'1 Données d''entrée'!$C$333),0))","v":0},{"$f":"IF(V1367<'1 Données d''entrée'!$C$334+1+$B1429,0,IF(V1367<'1 Données d''entrée'!$C$333+'1 Données d''entrée'!$C$334+1+$B1429,($L1417/'1 Données d''entrée'!$C$333),0))","v":0}]
[null,"Période de prêt nouveau"]
["Paiement d'intérêts",0,0,0,0,0,0,0,0,0,0,0,0,0,0,0,0,0,0,0,0,0]
["Paiement d'intêrets",1,0,{"$f":"IF(C1367<1+$B1419,0,IF(C1367<'1 Données d''entrée'!$C$334+'1 Données d''entrée'!$C$333+1+$B1419,'1 Données d''entrée'!$C$332*($C1417-SUM($C1420:C1420)),0))","v":0},{"$f":"IF(D1367<1+$B1419,0,IF(D1367<'1 Données d''entrée'!$C$334+'1 Données d''entrée'!$C$333+1+$B1419,'1 Données d''entrée'!$C$332*($C1417-SUM($C1420:D1420)),0))","v":0},{"$f":"IF(E1367<1+$B1419,0,IF(E1367<'1 Données d''entrée'!$C$334+'1 Données d''entrée'!$C$333+1+$B1419,'1 Données d''entrée'!$C$332*($C1417-SUM($C1420:E1420)),0))","v":0},{"$f":"IF(F1367<1+$B1419,0,IF(F1367<'1 Données d''entrée'!$C$334+'1 Données d''entrée'!$C$333+1+$B1419,'1 Données d''entrée'!$C$332*($C1417-SUM($C1420:F1420)),0))","v":0},{"$f":"IF(G1367<1+$B1419,0,IF(G1367<'1 Données d''entrée'!$C$334+'1 Données d''entrée'!$C$333+1+$B1419,'1 Données d''entrée'!$C$332*($C1417-SUM($C1420:G1420)),0))","v":0},{"$f":"IF(H1367<1+$B1419,0,IF(H1367<'1 Données d''entrée'!$C$334+'1 Données d''entrée'!$C$333+1+$B1419,'1 Données d''entrée'!$C$332*($C1417-SUM($C1420:H1420)),0))","v":0},{"$f":"IF(I1367<1+$B1419,0,IF(I1367<'1 Données d''entrée'!$C$334+'1 Données d''entrée'!$C$333+1+$B1419,'1 Données d''entrée'!$C$332*($C1417-SUM($C1420:I1420)),0))","v":0},{"$f":"IF(J1367<1+$B1419,0,IF(J1367<'1 Données d''entrée'!$C$334+'1 Données d''entrée'!$C$333+1+$B1419,'1 Données d''entrée'!$C$332*($C1417-SUM($C1420:J1420)),0))","v":0},{"$f":"IF(K1367<1+$B1419,0,IF(K1367<'1 Données d''entrée'!$C$334+'1 Données d''entrée'!$C$333+1+$B1419,'1 Données d''entrée'!$C$332*($C1417-SUM($C1420:K1420)),0))","v":0},{"$f":"IF(L1367<1+$B1419,0,IF(L1367<'1 Données d''entrée'!$C$334+'1 Données d''entrée'!$C$333+1+$B1419,'1 Données d''entrée'!$C$332*($C1417-SUM($C1420:L1420)),0))","v":0},{"$f":"IF(M1367<1+$B1419,0,IF(M1367<'1 Données d''entrée'!$C$334+'1 Données d''entrée'!$C$333+1+$B1419,'1 Données d''entrée'!$C$332*($C1417-SUM($C1420:M1420)),0))","v":0},{"$f":"IF(N1367<1+$B1419,0,IF(N1367<'1 Données d''entrée'!$C$334+'1 Données d''entrée'!$C$333+1+$B1419,'1 Données d''entrée'!$C$332*($C1417-SUM($C1420:N1420)),0))","v":0},{"$f":"IF(O1367<1+$B1419,0,IF(O1367<'1 Données d''entrée'!$C$334+'1 Données d''entrée'!$C$333+1+$B1419,'1 Données d''entrée'!$C$332*($C1417-SUM($C1420:O1420)),0))","v":0},{"$f":"IF(P1367<1+$B1419,0,IF(P1367<'1 Données d''entrée'!$C$334+'1 Données d''entrée'!$C$333+1+$B1419,'1 Données d''entrée'!$C$332*($C1417-SUM($C1420:P1420)),0))","v":0},{"$f":"IF(Q1367<1+$B1419,0,IF(Q1367<'1 Données d''entrée'!$C$334+'1 Données d''entrée'!$C$333+1+$B1419,'1 Données d''entrée'!$C$332*($C1417-SUM($C1420:Q1420)),0))","v":0},{"$f":"IF(R1367<1+$B1419,0,IF(R1367<'1 Données d''entrée'!$C$334+'1 Données d''entrée'!$C$333+1+$B1419,'1 Données d''entrée'!$C$332*($C1417-SUM($C1420:R1420)),0))","v":0},{"$f":"IF(S1367<1+$B1419,0,IF(S1367<'1 Données d''entrée'!$C$334+'1 Données d''entrée'!$C$333+1+$B1419,'1 Données d''entrée'!$C$332*($C1417-SUM($C1420:S1420)),0))","v":0},{"$f":"IF(T1367<1+$B1419,0,IF(T1367<'1 Données d''entrée'!$C$334+'1 Données d''entrée'!$C$333+1+$B1419,'1 Données d''entrée'!$C$332*($C1417-SUM($C1420:T1420)),0))","v":0},{"$f":"IF(U1367<1+$B1419,0,IF(U1367<'1 Données d''entrée'!$C$334+'1 Données d''entrée'!$C$333+1+$B1419,'1 Données d''entrée'!$C$332*($C1417-SUM($C1420:U1420)),0))","v":0}]
["Paiement d'intêrets",2,0,{"$f":"IF(C1367<1+$B1420,0,IF(C1367<'1 Données d''entrée'!$C$334+'1 Données d''entrée'!$C$333+1+$B1420,'1 Données d''entrée'!$C$332*($D1417-SUM($C1421:C1421)),0))","v":0},{"$f":"IF(D1367<1+$B1420,0,IF(D1367<'1 Données d''entrée'!$C$334+'1 Données d''entrée'!$C$333+1+$B1420,'1 Données d''entrée'!$C$332*($D1417-SUM($C1421:D1421)),0))","v":0},{"$f":"IF(E1367<1+$B1420,0,IF(E1367<'1 Données d''entrée'!$C$334+'1 Données d''entrée'!$C$333+1+$B1420,'1 Données d''entrée'!$C$332*($D1417-SUM($C1421:E1421)),0))","v":0},{"$f":"IF(F1367<1+$B1420,0,IF(F1367<'1 Données d''entrée'!$C$334+'1 Données d''entrée'!$C$333+1+$B1420,'1 Données d''entrée'!$C$332*($D1417-SUM($C1421:F1421)),0))","v":0},{"$f":"IF(G1367<1+$B1420,0,IF(G1367<'1 Données d''entrée'!$C$334+'1 Données d''entrée'!$C$333+1+$B1420,'1 Données d''entrée'!$C$332*($D1417-SUM($C1421:G1421)),0))","v":0},{"$f":"IF(H1367<1+$B1420,0,IF(H1367<'1 Données d''entrée'!$C$334+'1 Données d''entrée'!$C$333+1+$B1420,'1 Données d''entrée'!$C$332*($D1417-SUM($C1421:H1421)),0))","v":0},{"$f":"IF(I1367<1+$B1420,0,IF(I1367<'1 Données d''entrée'!$C$334+'1 Données d''entrée'!$C$333+1+$B1420,'1 Données d''entrée'!$C$332*($D1417-SUM($C1421:I1421)),0))","v":0},{"$f":"IF(J1367<1+$B1420,0,IF(J1367<'1 Données d''entrée'!$C$334+'1 Données d''entrée'!$C$333+1+$B1420,'1 Données d''entrée'!$C$332*($D1417-SUM($C1421:J1421)),0))","v":0},{"$f":"IF(K1367<1+$B1420,0,IF(K1367<'1 Données d''entrée'!$C$334+'1 Données d''entrée'!$C$333+1+$B1420,'1 Données d''entrée'!$C$332*($D1417-SUM($C1421:K1421)),0))","v":0},{"$f":"IF(L1367<1+$B1420,0,IF(L1367<'1 Données d''entrée'!$C$334+'1 Données d''entrée'!$C$333+1+$B1420,'1 Données d''entrée'!$C$332*($D1417-SUM($C1421:L1421)),0))","v":0},{"$f":"IF(M1367<1+$B1420,0,IF(M1367<'1 Données d''entrée'!$C$334+'1 Données d''entrée'!$C$333+1+$B1420,'1 Données d''entrée'!$C$332*($D1417-SUM($C1421:M1421)),0))","v":0},{"$f":"IF(N1367<1+$B1420,0,IF(N1367<'1 Données d''entrée'!$C$334+'1 Données d''entrée'!$C$333+1+$B1420,'1 Données d''entrée'!$C$332*($D1417-SUM($C1421:N1421)),0))","v":0},{"$f":"IF(O1367<1+$B1420,0,IF(O1367<'1 Données d''entrée'!$C$334+'1 Données d''entrée'!$C$333+1+$B1420,'1 Données d''entrée'!$C$332*($D1417-SUM($C1421:O1421)),0))","v":0},{"$f":"IF(P1367<1+$B1420,0,IF(P1367<'1 Données d''entrée'!$C$334+'1 Données d''entrée'!$C$333+1+$B1420,'1 Données d''entrée'!$C$332*($D1417-SUM($C1421:P1421)),0))","v":0},{"$f":"IF(Q1367<1+$B1420,0,IF(Q1367<'1 Données d''entrée'!$C$334+'1 Données d''entrée'!$C$333+1+$B1420,'1 Données d''entrée'!$C$332*($D1417-SUM($C1421:Q1421)),0))","v":0},{"$f":"IF(R1367<1+$B1420,0,IF(R1367<'1 Données d''entrée'!$C$334+'1 Données d''entrée'!$C$333+1+$B1420,'1 Données d''entrée'!$C$332*($D1417-SUM($C1421:R1421)),0))","v":0},{"$f":"IF(S1367<1+$B1420,0,IF(S1367<'1 Données d''entrée'!$C$334+'1 Données d''entrée'!$C$333+1+$B1420,'1 Données d''entrée'!$C$332*($D1417-SUM($C1421:S1421)),0))","v":0},{"$f":"IF(T1367<1+$B1420,0,IF(T1367<'1 Données d''entrée'!$C$334+'1 Données d''entrée'!$C$333+1+$B1420,'1 Données d''entrée'!$C$332*($D1417-SUM($C1421:T1421)),0))","v":0},{"$f":"IF(U1367<1+$B1420,0,IF(U1367<'1 Données d''entrée'!$C$334+'1 Données d''entrée'!$C$333+1+$B1420,'1 Données d''entrée'!$C$332*($D1417-SUM($C1421:U1421)),0))","v":0}]
["Paiement d'intêrets",3,0,{"$f":"IF(C1367<1+$B1421,0,IF(C1367<'1 Données d''entrée'!$C$334+'1 Données d''entrée'!$C$333+1+$B1421,'1 Données d''entrée'!$C$332*($E1417-SUM($C1422:C1422)),0))","v":0},{"$f":"IF(D1367<1+$B1421,0,IF(D1367<'1 Données d''entrée'!$C$334+'1 Données d''entrée'!$C$333+1+$B1421,'1 Données d''entrée'!$C$332*($E1417-SUM($C1422:D1422)),0))","v":0},{"$f":"IF(E1367<1+$B1421,0,IF(E1367<'1 Données d''entrée'!$C$334+'1 Données d''entrée'!$C$333+1+$B1421,'1 Données d''entrée'!$C$332*($E1417-SUM($C1422:E1422)),0))","v":0},{"$f":"IF(F1367<1+$B1421,0,IF(F1367<'1 Données d''entrée'!$C$334+'1 Données d''entrée'!$C$333+1+$B1421,'1 Données d''entrée'!$C$332*($E1417-SUM($C1422:F1422)),0))","v":0},{"$f":"IF(G1367<1+$B1421,0,IF(G1367<'1 Données d''entrée'!$C$334+'1 Données d''entrée'!$C$333+1+$B1421,'1 Données d''entrée'!$C$332*($E1417-SUM($C1422:G1422)),0))","v":0},{"$f":"IF(H1367<1+$B1421,0,IF(H1367<'1 Données d''entrée'!$C$334+'1 Données d''entrée'!$C$333+1+$B1421,'1 Données d''entrée'!$C$332*($E1417-SUM($C1422:H1422)),0))","v":0},{"$f":"IF(I1367<1+$B1421,0,IF(I1367<'1 Données d''entrée'!$C$334+'1 Données d''entrée'!$C$333+1+$B1421,'1 Données d''entrée'!$C$332*($E1417-SUM($C1422:I1422)),0))","v":0},{"$f":"IF(J1367<1+$B1421,0,IF(J1367<'1 Données d''entrée'!$C$334+'1 Données d''entrée'!$C$333+1+$B1421,'1 Données d''entrée'!$C$332*($E1417-SUM($C1422:J1422)),0))","v":0},{"$f":"IF(K1367<1+$B1421,0,IF(K1367<'1 Données d''entrée'!$C$334+'1 Données d''entrée'!$C$333+1+$B1421,'1 Données d''entrée'!$C$332*($E1417-SUM($C1422:K1422)),0))","v":0},{"$f":"IF(L1367<1+$B1421,0,IF(L1367<'1 Données d''entrée'!$C$334+'1 Données d''entrée'!$C$333+1+$B1421,'1 Données d''entrée'!$C$332*($E1417-SUM($C1422:L1422)),0))","v":0},{"$f":"IF(M1367<1+$B1421,0,IF(M1367<'1 Données d''entrée'!$C$334+'1 Données d''entrée'!$C$333+1+$B1421,'1 Données d''entrée'!$C$332*($E1417-SUM($C1422:M1422)),0))","v":0},{"$f":"IF(N1367<1+$B1421,0,IF(N1367<'1 Données d''entrée'!$C$334+'1 Données d''entrée'!$C$333+1+$B1421,'1 Données d''entrée'!$C$332*($E1417-SUM($C1422:N1422)),0))","v":0},{"$f":"IF(O1367<1+$B1421,0,IF(O1367<'1 Données d''entrée'!$C$334+'1 Données d''entrée'!$C$333+1+$B1421,'1 Données d''entrée'!$C$332*($E1417-SUM($C1422:O1422)),0))","v":0},{"$f":"IF(P1367<1+$B1421,0,IF(P1367<'1 Données d''entrée'!$C$334+'1 Données d''entrée'!$C$333+1+$B1421,'1 Données d''entrée'!$C$332*($E1417-SUM($C1422:P1422)),0))","v":0},{"$f":"IF(Q1367<1+$B1421,0,IF(Q1367<'1 Données d''entrée'!$C$334+'1 Données d''entrée'!$C$333+1+$B1421,'1 Données d''entrée'!$C$332*($E1417-SUM($C1422:Q1422)),0))","v":0},{"$f":"IF(R1367<1+$B1421,0,IF(R1367<'1 Données d''entrée'!$C$334+'1 Données d''entrée'!$C$333+1+$B1421,'1 Données d''entrée'!$C$332*($E1417-SUM($C1422:R1422)),0))","v":0},{"$f":"IF(S1367<1+$B1421,0,IF(S1367<'1 Données d''entrée'!$C$334+'1 Données d''entrée'!$C$333+1+$B1421,'1 Données d''entrée'!$C$332*($E1417-SUM($C1422:S1422)),0))","v":0},{"$f":"IF(T1367<1+$B1421,0,IF(T1367<'1 Données d''entrée'!$C$334+'1 Données d''entrée'!$C$333+1+$B1421,'1 Données d''entrée'!$C$332*($E1417-SUM($C1422:T1422)),0))","v":0},{"$f":"IF(U1367<1+$B1421,0,IF(U1367<'1 Données d''entrée'!$C$334+'1 Données d''entrée'!$C$333+1+$B1421,'1 Données d''entrée'!$C$332*($E1417-SUM($C1422:U1422)),0))","v":0}]
["Paiement d'intêrets",4,0,{"$f":"IF(C1367<1+$B1422,0,IF(C1367<'1 Données d''entrée'!$C$334+'1 Données d''entrée'!$C$333+1+$B1422,'1 Données d''entrée'!$C$332*($F1417-SUM($C1423:C1423)),0))","v":0},{"$f":"IF(D1367<1+$B1422,0,IF(D1367<'1 Données d''entrée'!$C$334+'1 Données d''entrée'!$C$333+1+$B1422,'1 Données d''entrée'!$C$332*($F1417-SUM($C1423:D1423)),0))","v":0},{"$f":"IF(E1367<1+$B1422,0,IF(E1367<'1 Données d''entrée'!$C$334+'1 Données d''entrée'!$C$333+1+$B1422,'1 Données d''entrée'!$C$332*($F1417-SUM($C1423:E1423)),0))","v":0},{"$f":"IF(F1367<1+$B1422,0,IF(F1367<'1 Données d''entrée'!$C$334+'1 Données d''entrée'!$C$333+1+$B1422,'1 Données d''entrée'!$C$332*($F1417-SUM($C1423:F1423)),0))","v":0},{"$f":"IF(G1367<1+$B1422,0,IF(G1367<'1 Données d''entrée'!$C$334+'1 Données d''entrée'!$C$333+1+$B1422,'1 Données d''entrée'!$C$332*($F1417-SUM($C1423:G1423)),0))","v":0},{"$f":"IF(H1367<1+$B1422,0,IF(H1367<'1 Données d''entrée'!$C$334+'1 Données d''entrée'!$C$333+1+$B1422,'1 Données d''entrée'!$C$332*($F1417-SUM($C1423:H1423)),0))","v":0},{"$f":"IF(I1367<1+$B1422,0,IF(I1367<'1 Données d''entrée'!$C$334+'1 Données d''entrée'!$C$333+1+$B1422,'1 Données d''entrée'!$C$332*($F1417-SUM($C1423:I1423)),0))","v":0},{"$f":"IF(J1367<1+$B1422,0,IF(J1367<'1 Données d''entrée'!$C$334+'1 Données d''entrée'!$C$333+1+$B1422,'1 Données d''entrée'!$C$332*($F1417-SUM($C1423:J1423)),0))","v":0},{"$f":"IF(K1367<1+$B1422,0,IF(K1367<'1 Données d''entrée'!$C$334+'1 Données d''entrée'!$C$333+1+$B1422,'1 Données d''entrée'!$C$332*($F1417-SUM($C1423:K1423)),0))","v":0},{"$f":"IF(L1367<1+$B1422,0,IF(L1367<'1 Données d''entrée'!$C$334+'1 Données d''entrée'!$C$333+1+$B1422,'1 Données d''entrée'!$C$332*($F1417-SUM($C1423:L1423)),0))","v":0},{"$f":"IF(M1367<1+$B1422,0,IF(M1367<'1 Données d''entrée'!$C$334+'1 Données d''entrée'!$C$333+1+$B1422,'1 Données d''entrée'!$C$332*($F1417-SUM($C1423:M1423)),0))","v":0},{"$f":"IF(N1367<1+$B1422,0,IF(N1367<'1 Données d''entrée'!$C$334+'1 Données d''entrée'!$C$333+1+$B1422,'1 Données d''entrée'!$C$332*($F1417-SUM($C1423:N1423)),0))","v":0},{"$f":"IF(O1367<1+$B1422,0,IF(O1367<'1 Données d''entrée'!$C$334+'1 Données d''entrée'!$C$333+1+$B1422,'1 Données d''entrée'!$C$332*($F1417-SUM($C1423:O1423)),0))","v":0},{"$f":"IF(P1367<1+$B1422,0,IF(P1367<'1 Données d''entrée'!$C$334+'1 Données d''entrée'!$C$333+1+$B1422,'1 Données d''entrée'!$C$332*($F1417-SUM($C1423:P1423)),0))","v":0},{"$f":"IF(Q1367<1+$B1422,0,IF(Q1367<'1 Données d''entrée'!$C$334+'1 Données d''entrée'!$C$333+1+$B1422,'1 Données d''entrée'!$C$332*($F1417-SUM($C1423:Q1423)),0))","v":0},{"$f":"IF(R1367<1+$B1422,0,IF(R1367<'1 Données d''entrée'!$C$334+'1 Données d''entrée'!$C$333+1+$B1422,'1 Données d''entrée'!$C$332*($F1417-SUM($C1423:R1423)),0))","v":0},{"$f":"IF(S1367<1+$B1422,0,IF(S1367<'1 Données d''entrée'!$C$334+'1 Données d''entrée'!$C$333+1+$B1422,'1 Données d''entrée'!$C$332*($F1417-SUM($C1423:S1423)),0))","v":0},{"$f":"IF(T1367<1+$B1422,0,IF(T1367<'1 Données d''entrée'!$C$334+'1 Données d''entrée'!$C$333+1+$B1422,'1 Données d''entrée'!$C$332*($F1417-SUM($C1423:T1423)),0))","v":0},{"$f":"IF(U1367<1+$B1422,0,IF(U1367<'1 Données d''entrée'!$C$334+'1 Données d''entrée'!$C$333+1+$B1422,'1 Données d''entrée'!$C$332*($F1417-SUM($C1423:U1423)),0))","v":0}]
["Paiement d'intêrets",5,0,{"$f":"IF(C1367<1+$B1423,0,IF(C1367<'1 Données d''entrée'!$C$334+'1 Données d''entrée'!$C$333+1+$B1423,'1 Données d''entrée'!$C$332*($G1417-SUM($C1424:C1424)),0))","v":0},{"$f":"IF(D1367<1+$B1423,0,IF(D1367<'1 Données d''entrée'!$C$334+'1 Données d''entrée'!$C$333+1+$B1423,'1 Données d''entrée'!$C$332*($G1417-SUM($C1424:D1424)),0))","v":0},{"$f":"IF(E1367<1+$B1423,0,IF(E1367<'1 Données d''entrée'!$C$334+'1 Données d''entrée'!$C$333+1+$B1423,'1 Données d''entrée'!$C$332*($G1417-SUM($C1424:E1424)),0))","v":0},{"$f":"IF(F1367<1+$B1423,0,IF(F1367<'1 Données d''entrée'!$C$334+'1 Données d''entrée'!$C$333+1+$B1423,'1 Données d''entrée'!$C$332*($G1417-SUM($C1424:F1424)),0))","v":0},{"$f":"IF(G1367<1+$B1423,0,IF(G1367<'1 Données d''entrée'!$C$334+'1 Données d''entrée'!$C$333+1+$B1423,'1 Données d''entrée'!$C$332*($G1417-SUM($C1424:G1424)),0))","v":0},{"$f":"IF(H1367<1+$B1423,0,IF(H1367<'1 Données d''entrée'!$C$334+'1 Données d''entrée'!$C$333+1+$B1423,'1 Données d''entrée'!$C$332*($G1417-SUM($C1424:H1424)),0))","v":0},{"$f":"IF(I1367<1+$B1423,0,IF(I1367<'1 Données d''entrée'!$C$334+'1 Données d''entrée'!$C$333+1+$B1423,'1 Données d''entrée'!$C$332*($G1417-SUM($C1424:I1424)),0))","v":0},{"$f":"IF(J1367<1+$B1423,0,IF(J1367<'1 Données d''entrée'!$C$334+'1 Données d''entrée'!$C$333+1+$B1423,'1 Données d''entrée'!$C$332*($G1417-SUM($C1424:J1424)),0))","v":0},{"$f":"IF(K1367<1+$B1423,0,IF(K1367<'1 Données d''entrée'!$C$334+'1 Données d''entrée'!$C$333+1+$B1423,'1 Données d''entrée'!$C$332*($G1417-SUM($C1424:K1424)),0))","v":0},{"$f":"IF(L1367<1+$B1423,0,IF(L1367<'1 Données d''entrée'!$C$334+'1 Données d''entrée'!$C$333+1+$B1423,'1 Données d''entrée'!$C$332*($G1417-SUM($C1424:L1424)),0))","v":0},{"$f":"IF(M1367<1+$B1423,0,IF(M1367<'1 Données d''entrée'!$C$334+'1 Données d''entrée'!$C$333+1+$B1423,'1 Données d''entrée'!$C$332*($G1417-SUM($C1424:M1424)),0))","v":0},{"$f":"IF(N1367<1+$B1423,0,IF(N1367<'1 Données d''entrée'!$C$334+'1 Données d''entrée'!$C$333+1+$B1423,'1 Données d''entrée'!$C$332*($G1417-SUM($C1424:N1424)),0))","v":0},{"$f":"IF(O1367<1+$B1423,0,IF(O1367<'1 Données d''entrée'!$C$334+'1 Données d''entrée'!$C$333+1+$B1423,'1 Données d''entrée'!$C$332*($G1417-SUM($C1424:O1424)),0))","v":0},{"$f":"IF(P1367<1+$B1423,0,IF(P1367<'1 Données d''entrée'!$C$334+'1 Données d''entrée'!$C$333+1+$B1423,'1 Données d''entrée'!$C$332*($G1417-SUM($C1424:P1424)),0))","v":0},{"$f":"IF(Q1367<1+$B1423,0,IF(Q1367<'1 Données d''entrée'!$C$334+'1 Données d''entrée'!$C$333+1+$B1423,'1 Données d''entrée'!$C$332*($G1417-SUM($C1424:Q1424)),0))","v":0},{"$f":"IF(R1367<1+$B1423,0,IF(R1367<'1 Données d''entrée'!$C$334+'1 Données d''entrée'!$C$333+1+$B1423,'1 Données d''entrée'!$C$332*($G1417-SUM($C1424:R1424)),0))","v":0},{"$f":"IF(S1367<1+$B1423,0,IF(S1367<'1 Données d''entrée'!$C$334+'1 Données d''entrée'!$C$333+1+$B1423,'1 Données d''entrée'!$C$332*($G1417-SUM($C1424:S1424)),0))","v":0},{"$f":"IF(T1367<1+$B1423,0,IF(T1367<'1 Données d''entrée'!$C$334+'1 Données d''entrée'!$C$333+1+$B1423,'1 Données d''entrée'!$C$332*($G1417-SUM($C1424:T1424)),0))","v":0},{"$f":"IF(U1367<1+$B1423,0,IF(U1367<'1 Données d''entrée'!$C$334+'1 Données d''entrée'!$C$333+1+$B1423,'1 Données d''entrée'!$C$332*($G1417-SUM($C1424:U1424)),0))","v":0}]
["Paiement d'intêrets",6,0,{"$f":"IF(C1367<1+$B1424,0,IF(C1367<'1 Données d''entrée'!$C$334+'1 Données d''entrée'!$C$333+1+$B1424,'1 Données d''entrée'!$C$332*($H1417-SUM($C1425:C1425)),0))","v":0},{"$f":"IF(D1367<1+$B1424,0,IF(D1367<'1 Données d''entrée'!$C$334+'1 Données d''entrée'!$C$333+1+$B1424,'1 Données d''entrée'!$C$332*($H1417-SUM($C1425:D1425)),0))","v":0},{"$f":"IF(E1367<1+$B1424,0,IF(E1367<'1 Données d''entrée'!$C$334+'1 Données d''entrée'!$C$333+1+$B1424,'1 Données d''entrée'!$C$332*($H1417-SUM($C1425:E1425)),0))","v":0},{"$f":"IF(F1367<1+$B1424,0,IF(F1367<'1 Données d''entrée'!$C$334+'1 Données d''entrée'!$C$333+1+$B1424,'1 Données d''entrée'!$C$332*($H1417-SUM($C1425:F1425)),0))","v":0},{"$f":"IF(G1367<1+$B1424,0,IF(G1367<'1 Données d''entrée'!$C$334+'1 Données d''entrée'!$C$333+1+$B1424,'1 Données d''entrée'!$C$332*($H1417-SUM($C1425:G1425)),0))","v":0},{"$f":"IF(H1367<1+$B1424,0,IF(H1367<'1 Données d''entrée'!$C$334+'1 Données d''entrée'!$C$333+1+$B1424,'1 Données d''entrée'!$C$332*($H1417-SUM($C1425:H1425)),0))","v":0},{"$f":"IF(I1367<1+$B1424,0,IF(I1367<'1 Données d''entrée'!$C$334+'1 Données d''entrée'!$C$333+1+$B1424,'1 Données d''entrée'!$C$332*($H1417-SUM($C1425:I1425)),0))","v":0},{"$f":"IF(J1367<1+$B1424,0,IF(J1367<'1 Données d''entrée'!$C$334+'1 Données d''entrée'!$C$333+1+$B1424,'1 Données d''entrée'!$C$332*($H1417-SUM($C1425:J1425)),0))","v":0},{"$f":"IF(K1367<1+$B1424,0,IF(K1367<'1 Données d''entrée'!$C$334+'1 Données d''entrée'!$C$333+1+$B1424,'1 Données d''entrée'!$C$332*($H1417-SUM($C1425:K1425)),0))","v":0},{"$f":"IF(L1367<1+$B1424,0,IF(L1367<'1 Données d''entrée'!$C$334+'1 Données d''entrée'!$C$333+1+$B1424,'1 Données d''entrée'!$C$332*($H1417-SUM($C1425:L1425)),0))","v":0},{"$f":"IF(M1367<1+$B1424,0,IF(M1367<'1 Données d''entrée'!$C$334+'1 Données d''entrée'!$C$333+1+$B1424,'1 Données d''entrée'!$C$332*($H1417-SUM($C1425:M1425)),0))","v":0},{"$f":"IF(N1367<1+$B1424,0,IF(N1367<'1 Données d''entrée'!$C$334+'1 Données d''entrée'!$C$333+1+$B1424,'1 Données d''entrée'!$C$332*($H1417-SUM($C1425:N1425)),0))","v":0},{"$f":"IF(O1367<1+$B1424,0,IF(O1367<'1 Données d''entrée'!$C$334+'1 Données d''entrée'!$C$333+1+$B1424,'1 Données d''entrée'!$C$332*($H1417-SUM($C1425:O1425)),0))","v":0},{"$f":"IF(P1367<1+$B1424,0,IF(P1367<'1 Données d''entrée'!$C$334+'1 Données d''entrée'!$C$333+1+$B1424,'1 Données d''entrée'!$C$332*($H1417-SUM($C1425:P1425)),0))","v":0},{"$f":"IF(Q1367<1+$B1424,0,IF(Q1367<'1 Données d''entrée'!$C$334+'1 Données d''entrée'!$C$333+1+$B1424,'1 Données d''entrée'!$C$332*($H1417-SUM($C1425:Q1425)),0))","v":0},{"$f":"IF(R1367<1+$B1424,0,IF(R1367<'1 Données d''entrée'!$C$334+'1 Données d''entrée'!$C$333+1+$B1424,'1 Données d''entrée'!$C$332*($H1417-SUM($C1425:R1425)),0))","v":0},{"$f":"IF(S1367<1+$B1424,0,IF(S1367<'1 Données d''entrée'!$C$334+'1 Données d''entrée'!$C$333+1+$B1424,'1 Données d''entrée'!$C$332*($H1417-SUM($C1425:S1425)),0))","v":0},{"$f":"IF(T1367<1+$B1424,0,IF(T1367<'1 Données d''entrée'!$C$334+'1 Données d''entrée'!$C$333+1+$B1424,'1 Données d''entrée'!$C$332*($H1417-SUM($C1425:T1425)),0))","v":0},{"$f":"IF(U1367<1+$B1424,0,IF(U1367<'1 Données d''entrée'!$C$334+'1 Données d''entrée'!$C$333+1+$B1424,'1 Données d''entrée'!$C$332*($H1417-SUM($C1425:U1425)),0))","v":0}]
["Paiement d'intêrets",7,0,{"$f":"IF(C1367<1+$B1425,0,IF(C1367<'1 Données d''entrée'!$C$334+'1 Données d''entrée'!$C$333+1+$B1425,'1 Données d''entrée'!$C$332*($I1417-SUM($C1426:C1426)),0))","v":0},{"$f":"IF(D1367<1+$B1425,0,IF(D1367<'1 Données d''entrée'!$C$334+'1 Données d''entrée'!$C$333+1+$B1425,'1 Données d''entrée'!$C$332*($I1417-SUM($C1426:D1426)),0))","v":0},{"$f":"IF(E1367<1+$B1425,0,IF(E1367<'1 Données d''entrée'!$C$334+'1 Données d''entrée'!$C$333+1+$B1425,'1 Données d''entrée'!$C$332*($I1417-SUM($C1426:E1426)),0))","v":0},{"$f":"IF(F1367<1+$B1425,0,IF(F1367<'1 Données d''entrée'!$C$334+'1 Données d''entrée'!$C$333+1+$B1425,'1 Données d''entrée'!$C$332*($I1417-SUM($C1426:F1426)),0))","v":0},{"$f":"IF(G1367<1+$B1425,0,IF(G1367<'1 Données d''entrée'!$C$334+'1 Données d''entrée'!$C$333+1+$B1425,'1 Données d''entrée'!$C$332*($I1417-SUM($C1426:G1426)),0))","v":0},{"$f":"IF(H1367<1+$B1425,0,IF(H1367<'1 Données d''entrée'!$C$334+'1 Données d''entrée'!$C$333+1+$B1425,'1 Données d''entrée'!$C$332*($I1417-SUM($C1426:H1426)),0))","v":0},{"$f":"IF(I1367<1+$B1425,0,IF(I1367<'1 Données d''entrée'!$C$334+'1 Données d''entrée'!$C$333+1+$B1425,'1 Données d''entrée'!$C$332*($I1417-SUM($C1426:I1426)),0))","v":0},{"$f":"IF(J1367<1+$B1425,0,IF(J1367<'1 Données d''entrée'!$C$334+'1 Données d''entrée'!$C$333+1+$B1425,'1 Données d''entrée'!$C$332*($I1417-SUM($C1426:J1426)),0))","v":0},{"$f":"IF(K1367<1+$B1425,0,IF(K1367<'1 Données d''entrée'!$C$334+'1 Données d''entrée'!$C$333+1+$B1425,'1 Données d''entrée'!$C$332*($I1417-SUM($C1426:K1426)),0))","v":0},{"$f":"IF(L1367<1+$B1425,0,IF(L1367<'1 Données d''entrée'!$C$334+'1 Données d''entrée'!$C$333+1+$B1425,'1 Données d''entrée'!$C$332*($I1417-SUM($C1426:L1426)),0))","v":0},{"$f":"IF(M1367<1+$B1425,0,IF(M1367<'1 Données d''entrée'!$C$334+'1 Données d''entrée'!$C$333+1+$B1425,'1 Données d''entrée'!$C$332*($I1417-SUM($C1426:M1426)),0))","v":0},{"$f":"IF(N1367<1+$B1425,0,IF(N1367<'1 Données d''entrée'!$C$334+'1 Données d''entrée'!$C$333+1+$B1425,'1 Données d''entrée'!$C$332*($I1417-SUM($C1426:N1426)),0))","v":0},{"$f":"IF(O1367<1+$B1425,0,IF(O1367<'1 Données d''entrée'!$C$334+'1 Données d''entrée'!$C$333+1+$B1425,'1 Données d''entrée'!$C$332*($I1417-SUM($C1426:O1426)),0))","v":0},{"$f":"IF(P1367<1+$B1425,0,IF(P1367<'1 Données d''entrée'!$C$334+'1 Données d''entrée'!$C$333+1+$B1425,'1 Données d''entrée'!$C$332*($I1417-SUM($C1426:P1426)),0))","v":0},{"$f":"IF(Q1367<1+$B1425,0,IF(Q1367<'1 Données d''entrée'!$C$334+'1 Données d''entrée'!$C$333+1+$B1425,'1 Données d''entrée'!$C$332*($I1417-SUM($C1426:Q1426)),0))","v":0},{"$f":"IF(R1367<1+$B1425,0,IF(R1367<'1 Données d''entrée'!$C$334+'1 Données d''entrée'!$C$333+1+$B1425,'1 Données d''entrée'!$C$332*($I1417-SUM($C1426:R1426)),0))","v":0},{"$f":"IF(S1367<1+$B1425,0,IF(S1367<'1 Données d''entrée'!$C$334+'1 Données d''entrée'!$C$333+1+$B1425,'1 Données d''entrée'!$C$332*($I1417-SUM($C1426:S1426)),0))","v":0},{"$f":"IF(T1367<1+$B1425,0,IF(T1367<'1 Données d''entrée'!$C$334+'1 Données d''entrée'!$C$333+1+$B1425,'1 Données d''entrée'!$C$332*($I1417-SUM($C1426:T1426)),0))","v":0},{"$f":"IF(U1367<1+$B1425,0,IF(U1367<'1 Données d''entrée'!$C$334+'1 Données d''entrée'!$C$333+1+$B1425,'1 Données d''entrée'!$C$332*($I1417-SUM($C1426:U1426)),0))","v":0}]
["Paiement d'intêrets",8,0,{"$f":"IF(C1367<1+$B1426,0,IF(C1367<'1 Données d''entrée'!$C$334+'1 Données d''entrée'!$C$333+1+$B1426,'1 Données d''entrée'!$C$332*($J1417-SUM($C1427:C1427)),0))","v":0},{"$f":"IF(D1367<1+$B1426,0,IF(D1367<'1 Données d''entrée'!$C$334+'1 Données d''entrée'!$C$333+1+$B1426,'1 Données d''entrée'!$C$332*($J1417-SUM($C1427:D1427)),0))","v":0},{"$f":"IF(E1367<1+$B1426,0,IF(E1367<'1 Données d''entrée'!$C$334+'1 Données d''entrée'!$C$333+1+$B1426,'1 Données d''entrée'!$C$332*($J1417-SUM($C1427:E1427)),0))","v":0},{"$f":"IF(F1367<1+$B1426,0,IF(F1367<'1 Données d''entrée'!$C$334+'1 Données d''entrée'!$C$333+1+$B1426,'1 Données d''entrée'!$C$332*($J1417-SUM($C1427:F1427)),0))","v":0},{"$f":"IF(G1367<1+$B1426,0,IF(G1367<'1 Données d''entrée'!$C$334+'1 Données d''entrée'!$C$333+1+$B1426,'1 Données d''entrée'!$C$332*($J1417-SUM($C1427:G1427)),0))","v":0},{"$f":"IF(H1367<1+$B1426,0,IF(H1367<'1 Données d''entrée'!$C$334+'1 Données d''entrée'!$C$333+1+$B1426,'1 Données d''entrée'!$C$332*($J1417-SUM($C1427:H1427)),0))","v":0},{"$f":"IF(I1367<1+$B1426,0,IF(I1367<'1 Données d''entrée'!$C$334+'1 Données d''entrée'!$C$333+1+$B1426,'1 Données d''entrée'!$C$332*($J1417-SUM($C1427:I1427)),0))","v":0},{"$f":"IF(J1367<1+$B1426,0,IF(J1367<'1 Données d''entrée'!$C$334+'1 Données d''entrée'!$C$333+1+$B1426,'1 Données d''entrée'!$C$332*($J1417-SUM($C1427:J1427)),0))","v":0},{"$f":"IF(K1367<1+$B1426,0,IF(K1367<'1 Données d''entrée'!$C$334+'1 Données d''entrée'!$C$333+1+$B1426,'1 Données d''entrée'!$C$332*($J1417-SUM($C1427:K1427)),0))","v":0},{"$f":"IF(L1367<1+$B1426,0,IF(L1367<'1 Données d''entrée'!$C$334+'1 Données d''entrée'!$C$333+1+$B1426,'1 Données d''entrée'!$C$332*($J1417-SUM($C1427:L1427)),0))","v":0},{"$f":"IF(M1367<1+$B1426,0,IF(M1367<'1 Données d''entrée'!$C$334+'1 Données d''entrée'!$C$333+1+$B1426,'1 Données d''entrée'!$C$332*($J1417-SUM($C1427:M1427)),0))","v":0},{"$f":"IF(N1367<1+$B1426,0,IF(N1367<'1 Données d''entrée'!$C$334+'1 Données d''entrée'!$C$333+1+$B1426,'1 Données d''entrée'!$C$332*($J1417-SUM($C1427:N1427)),0))","v":0},{"$f":"IF(O1367<1+$B1426,0,IF(O1367<'1 Données d''entrée'!$C$334+'1 Données d''entrée'!$C$333+1+$B1426,'1 Données d''entrée'!$C$332*($J1417-SUM($C1427:O1427)),0))","v":0},{"$f":"IF(P1367<1+$B1426,0,IF(P1367<'1 Données d''entrée'!$C$334+'1 Données d''entrée'!$C$333+1+$B1426,'1 Données d''entrée'!$C$332*($J1417-SUM($C1427:P1427)),0))","v":0},{"$f":"IF(Q1367<1+$B1426,0,IF(Q1367<'1 Données d''entrée'!$C$334+'1 Données d''entrée'!$C$333+1+$B1426,'1 Données d''entrée'!$C$332*($J1417-SUM($C1427:Q1427)),0))","v":0},{"$f":"IF(R1367<1+$B1426,0,IF(R1367<'1 Données d''entrée'!$C$334+'1 Données d''entrée'!$C$333+1+$B1426,'1 Données d''entrée'!$C$332*($J1417-SUM($C1427:R1427)),0))","v":0},{"$f":"IF(S1367<1+$B1426,0,IF(S1367<'1 Données d''entrée'!$C$334+'1 Données d''entrée'!$C$333+1+$B1426,'1 Données d''entrée'!$C$332*($J1417-SUM($C1427:S1427)),0))","v":0},{"$f":"IF(T1367<1+$B1426,0,IF(T1367<'1 Données d''entrée'!$C$334+'1 Données d''entrée'!$C$333+1+$B1426,'1 Données d''entrée'!$C$332*($J1417-SUM($C1427:T1427)),0))","v":0},{"$f":"IF(U1367<1+$B1426,0,IF(U1367<'1 Données d''entrée'!$C$334+'1 Données d''entrée'!$C$333+1+$B1426,'1 Données d''entrée'!$C$332*($J1417-SUM($C1427:U1427)),0))","v":0}]
["Paiement d'intêrets",9,0,{"$f":"IF(C1367<1+$B1427,0,IF(C1367<'1 Données d''entrée'!$C$334+'1 Données d''entrée'!$C$333+1+$B1427,'1 Données d''entrée'!$C$332*($K1417-SUM($C1428:C1428)),0))","v":0},{"$f":"IF(D1367<1+$B1427,0,IF(D1367<'1 Données d''entrée'!$C$334+'1 Données d''entrée'!$C$333+1+$B1427,'1 Données d''entrée'!$C$332*($K1417-SUM($C1428:D1428)),0))","v":0},{"$f":"IF(E1367<1+$B1427,0,IF(E1367<'1 Données d''entrée'!$C$334+'1 Données d''entrée'!$C$333+1+$B1427,'1 Données d''entrée'!$C$332*($K1417-SUM($C1428:E1428)),0))","v":0},{"$f":"IF(F1367<1+$B1427,0,IF(F1367<'1 Données d''entrée'!$C$334+'1 Données d''entrée'!$C$333+1+$B1427,'1 Données d''entrée'!$C$332*($K1417-SUM($C1428:F1428)),0))","v":0},{"$f":"IF(G1367<1+$B1427,0,IF(G1367<'1 Données d''entrée'!$C$334+'1 Données d''entrée'!$C$333+1+$B1427,'1 Données d''entrée'!$C$332*($K1417-SUM($C1428:G1428)),0))","v":0},{"$f":"IF(H1367<1+$B1427,0,IF(H1367<'1 Données d''entrée'!$C$334+'1 Données d''entrée'!$C$333+1+$B1427,'1 Données d''entrée'!$C$332*($K1417-SUM($C1428:H1428)),0))","v":0},{"$f":"IF(I1367<1+$B1427,0,IF(I1367<'1 Données d''entrée'!$C$334+'1 Données d''entrée'!$C$333+1+$B1427,'1 Données d''entrée'!$C$332*($K1417-SUM($C1428:I1428)),0))","v":0},{"$f":"IF(J1367<1+$B1427,0,IF(J1367<'1 Données d''entrée'!$C$334+'1 Données d''entrée'!$C$333+1+$B1427,'1 Données d''entrée'!$C$332*($K1417-SUM($C1428:J1428)),0))","v":0},{"$f":"IF(K1367<1+$B1427,0,IF(K1367<'1 Données d''entrée'!$C$334+'1 Données d''entrée'!$C$333+1+$B1427,'1 Données d''entrée'!$C$332*($K1417-SUM($C1428:K1428)),0))","v":0},{"$f":"IF(L1367<1+$B1427,0,IF(L1367<'1 Données d''entrée'!$C$334+'1 Données d''entrée'!$C$333+1+$B1427,'1 Données d''entrée'!$C$332*($K1417-SUM($C1428:L1428)),0))","v":0},{"$f":"IF(M1367<1+$B1427,0,IF(M1367<'1 Données d''entrée'!$C$334+'1 Données d''entrée'!$C$333+1+$B1427,'1 Données d''entrée'!$C$332*($K1417-SUM($C1428:M1428)),0))","v":0},{"$f":"IF(N1367<1+$B1427,0,IF(N1367<'1 Données d''entrée'!$C$334+'1 Données d''entrée'!$C$333+1+$B1427,'1 Données d''entrée'!$C$332*($K1417-SUM($C1428:N1428)),0))","v":0},{"$f":"IF(O1367<1+$B1427,0,IF(O1367<'1 Données d''entrée'!$C$334+'1 Données d''entrée'!$C$333+1+$B1427,'1 Données d''entrée'!$C$332*($K1417-SUM($C1428:O1428)),0))","v":0},{"$f":"IF(P1367<1+$B1427,0,IF(P1367<'1 Données d''entrée'!$C$334+'1 Données d''entrée'!$C$333+1+$B1427,'1 Données d''entrée'!$C$332*($K1417-SUM($C1428:P1428)),0))","v":0},{"$f":"IF(Q1367<1+$B1427,0,IF(Q1367<'1 Données d''entrée'!$C$334+'1 Données d''entrée'!$C$333+1+$B1427,'1 Données d''entrée'!$C$332*($K1417-SUM($C1428:Q1428)),0))","v":0},{"$f":"IF(R1367<1+$B1427,0,IF(R1367<'1 Données d''entrée'!$C$334+'1 Données d''entrée'!$C$333+1+$B1427,'1 Données d''entrée'!$C$332*($K1417-SUM($C1428:R1428)),0))","v":0},{"$f":"IF(S1367<1+$B1427,0,IF(S1367<'1 Données d''entrée'!$C$334+'1 Données d''entrée'!$C$333+1+$B1427,'1 Données d''entrée'!$C$332*($K1417-SUM($C1428:S1428)),0))","v":0},{"$f":"IF(T1367<1+$B1427,0,IF(T1367<'1 Données d''entrée'!$C$334+'1 Données d''entrée'!$C$333+1+$B1427,'1 Données d''entrée'!$C$332*($K1417-SUM($C1428:T1428)),0))","v":0},{"$f":"IF(U1367<1+$B1427,0,IF(U1367<'1 Données d''entrée'!$C$334+'1 Données d''entrée'!$C$333+1+$B1427,'1 Données d''entrée'!$C$332*($K1417-SUM($C1428:U1428)),0))","v":0}]
["Paiement d'intêrets",10,0,{"$f":"IF(C1367<1+$B1428,0,IF(C1367<'1 Données d''entrée'!$C$334+'1 Données d''entrée'!$C$333+1+$B1428,'1 Données d''entrée'!$C$332*($L1417-SUM($C1429:C1429)),0))","v":0},{"$f":"IF(D1367<1+$B1428,0,IF(D1367<'1 Données d''entrée'!$C$334+'1 Données d''entrée'!$C$333+1+$B1428,'1 Données d''entrée'!$C$332*($L1417-SUM($C1429:D1429)),0))","v":0},{"$f":"IF(E1367<1+$B1428,0,IF(E1367<'1 Données d''entrée'!$C$334+'1 Données d''entrée'!$C$333+1+$B1428,'1 Données d''entrée'!$C$332*($L1417-SUM($C1429:E1429)),0))","v":0},{"$f":"IF(F1367<1+$B1428,0,IF(F1367<'1 Données d''entrée'!$C$334+'1 Données d''entrée'!$C$333+1+$B1428,'1 Données d''entrée'!$C$332*($L1417-SUM($C1429:F1429)),0))","v":0},{"$f":"IF(G1367<1+$B1428,0,IF(G1367<'1 Données d''entrée'!$C$334+'1 Données d''entrée'!$C$333+1+$B1428,'1 Données d''entrée'!$C$332*($L1417-SUM($C1429:G1429)),0))","v":0},{"$f":"IF(H1367<1+$B1428,0,IF(H1367<'1 Données d''entrée'!$C$334+'1 Données d''entrée'!$C$333+1+$B1428,'1 Données d''entrée'!$C$332*($L1417-SUM($C1429:H1429)),0))","v":0},{"$f":"IF(I1367<1+$B1428,0,IF(I1367<'1 Données d''entrée'!$C$334+'1 Données d''entrée'!$C$333+1+$B1428,'1 Données d''entrée'!$C$332*($L1417-SUM($C1429:I1429)),0))","v":0},{"$f":"IF(J1367<1+$B1428,0,IF(J1367<'1 Données d''entrée'!$C$334+'1 Données d''entrée'!$C$333+1+$B1428,'1 Données d''entrée'!$C$332*($L1417-SUM($C1429:J1429)),0))","v":0},{"$f":"IF(K1367<1+$B1428,0,IF(K1367<'1 Données d''entrée'!$C$334+'1 Données d''entrée'!$C$333+1+$B1428,'1 Données d''entrée'!$C$332*($L1417-SUM($C1429:K1429)),0))","v":0},{"$f":"IF(L1367<1+$B1428,0,IF(L1367<'1 Données d''entrée'!$C$334+'1 Données d''entrée'!$C$333+1+$B1428,'1 Données d''entrée'!$C$332*($L1417-SUM($C1429:L1429)),0))","v":0},{"$f":"IF(M1367<1+$B1428,0,IF(M1367<'1 Données d''entrée'!$C$334+'1 Données d''entrée'!$C$333+1+$B1428,'1 Données d''entrée'!$C$332*($L1417-SUM($C1429:M1429)),0))","v":0},{"$f":"IF(N1367<1+$B1428,0,IF(N1367<'1 Données d''entrée'!$C$334+'1 Données d''entrée'!$C$333+1+$B1428,'1 Données d''entrée'!$C$332*($L1417-SUM($C1429:N1429)),0))","v":0},{"$f":"IF(O1367<1+$B1428,0,IF(O1367<'1 Données d''entrée'!$C$334+'1 Données d''entrée'!$C$333+1+$B1428,'1 Données d''entrée'!$C$332*($L1417-SUM($C1429:O1429)),0))","v":0},{"$f":"IF(P1367<1+$B1428,0,IF(P1367<'1 Données d''entrée'!$C$334+'1 Données d''entrée'!$C$333+1+$B1428,'1 Données d''entrée'!$C$332*($L1417-SUM($C1429:P1429)),0))","v":0},{"$f":"IF(Q1367<1+$B1428,0,IF(Q1367<'1 Données d''entrée'!$C$334+'1 Données d''entrée'!$C$333+1+$B1428,'1 Données d''entrée'!$C$332*($L1417-SUM($C1429:Q1429)),0))","v":0},{"$f":"IF(R1367<1+$B1428,0,IF(R1367<'1 Données d''entrée'!$C$334+'1 Données d''entrée'!$C$333+1+$B1428,'1 Données d''entrée'!$C$332*($L1417-SUM($C1429:R1429)),0))","v":0},{"$f":"IF(S1367<1+$B1428,0,IF(S1367<'1 Données d''entrée'!$C$334+'1 Données d''entrée'!$C$333+1+$B1428,'1 Données d''entrée'!$C$332*($L1417-SUM($C1429:S1429)),0))","v":0},{"$f":"IF(T1367<1+$B1428,0,IF(T1367<'1 Données d''entrée'!$C$334+'1 Données d''entrée'!$C$333+1+$B1428,'1 Données d''entrée'!$C$332*($L1417-SUM($C1429:T1429)),0))","v":0},{"$f":"IF(U1367<1+$B1428,0,IF(U1367<'1 Données d''entrée'!$C$334+'1 Données d''entrée'!$C$333+1+$B1428,'1 Données d''entrée'!$C$332*($L1417-SUM($C1429:U1429)),0))","v":0}]
[]
[null,"Période",1,2,3,4,5,6,7,8,9,10,11,12,13,14,15,16,17,18,19,20]
["Prêt bancaire additionnel- Option 2: Remboursement du principal final",{"$f":"'1 Données d''entrée'!$B$343","v":0}]
["Prêt(s) nouveau(x)",null,{"$f":"IF(C1410<0,C1410*(-1)*$B1444+C1410*(-1)*$B1444*'1 Données d''entrée'!$C$338,0)","v":{"$error":"#DIV/0!"}},{"$f":"IF(D1410<0,D1410*(-1)*$B1444+D1410*(-1)*$B1444*'1 Données d''entrée'!$C$338,0)","v":{"$error":"#DIV/0!"}},{"$f":"IF(E1410<0,E1410*(-1)*$B1444+E1410*(-1)*$B1444*'1 Données d''entrée'!$C$338,0)","v":{"$error":"#DIV/0!"}},{"$f":"IF(F1410<0,F1410*(-1)*$B1444+F1410*(-1)*$B1444*'1 Données d''entrée'!$C$338,0)","v":{"$error":"#DIV/0!"}},{"$f":"IF(G1410<0,G1410*(-1)*$B1444+G1410*(-1)*$B1444*'1 Données d''entrée'!$C$338,0)","v":{"$error":"#DIV/0!"}},{"$f":"IF(H1410<0,H1410*(-1)*$B1444+H1410*(-1)*$B1444*'1 Données d''entrée'!$C$338,0)","v":{"$error":"#DIV/0!"}},{"$f":"IF(I1410<0,I1410*(-1)*$B1444+I1410*(-1)*$B1444*'1 Données d''entrée'!$C$338,0)","v":{"$error":"#DIV/0!"}},{"$f":"IF(J1410<0,J1410*(-1)*$B1444+J1410*(-1)*$B1444*'1 Données d''entrée'!$C$338,0)","v":{"$error":"#DIV/0!"}},{"$f":"IF(K1410<0,K1410*(-1)*$B1444+K1410*(-1)*$B1444*'1 Données d''entrée'!$C$338,0)","v":{"$error":"#DIV/0!"}},{"$f":"IF(L1410<0,L1410*(-1)*$B1444+L1410*(-1)*$B1444*'1 Données d''entrée'!$C$338,0)","v":{"$error":"#DIV/0!"}},{"$f":"IF(M1410<0,M1410*(-1)*$B1444+M1410*(-1)*$B1444*'1 Données d''entrée'!$C$338,0)","v":{"$error":"#DIV/0!"}},{"$f":"IF(N1410<0,N1410*(-1)*$B1444+N1410*(-1)*$B1444*'1 Données d''entrée'!$C$338,0)","v":{"$error":"#DIV/0!"}},{"$f":"IF(O1410<0,O1410*(-1)*$B1444+O1410*(-1)*$B1444*'1 Données d''entrée'!$C$338,0)","v":{"$error":"#DIV/0!"}},{"$f":"IF(P1410<0,P1410*(-1)*$B1444+P1410*(-1)*$B1444*'1 Données d''entrée'!$C$338,0)","v":{"$error":"#DIV/0!"}},{"$f":"IF(Q1410<0,Q1410*(-1)*$B1444+Q1410*(-1)*$B1444*'1 Données d''entrée'!$C$338,0)","v":{"$error":"#DIV/0!"}},{"$f":"IF(R1410<0,R1410*(-1)*$B1444+R1410*(-1)*$B1444*'1 Données d''entrée'!$C$338,0)","v":{"$error":"#DIV/0!"}},{"$f":"IF(S1410<0,S1410*(-1)*$B1444+S1410*(-1)*$B1444*'1 Données d''entrée'!$C$338,0)","v":{"$error":"#DIV/0!"}},{"$f":"IF(T1410<0,T1410*(-1)*$B1444+T1410*(-1)*$B1444*'1 Données d''entrée'!$C$338,0)","v":{"$error":"#DIV/0!"}},{"$f":"IF(U1410<0,U1410*(-1)*$B1444+U1410*(-1)*$B1444*'1 Données d''entrée'!$C$338,0)","v":{"$error":"#DIV/0!"}},{"$f":"IF(V1410<0,V1410*(-1)*$B1444+V1410*(-1)*$B1444*'1 Données d''entrée'!$C$338,0)","v":{"$error":"#DIV/0!"}}]
[null,"Période de prêt nouveau"]
["Remboursement du principal",0,0,0,0,0,0,0,0,0,0,0,0,0,0,0,0,0,0,0,0,0]
[null,1,{"$f":"IF(C1443='1 Données d''entrée'!$C$333+'1 Données d''entrée'!$C$334+$B1448,$C1445,0)","v":{"$error":"#DIV/0!"}},{"$f":"IF(D1443='1 Données d''entrée'!$C$333+'1 Données d''entrée'!$C$334+$B1448,$C1445,0)","v":0},{"$f":"IF(E1443='1 Données d''entrée'!$C$333+'1 Données d''entrée'!$C$334+$B1448,$C1445,0)","v":0},{"$f":"IF(F1443='1 Données d''entrée'!$C$333+'1 Données d''entrée'!$C$334+$B1448,$C1445,0)","v":0},{"$f":"IF(G1443='1 Données d''entrée'!$C$333+'1 Données d''entrée'!$C$334+$B1448,$C1445,0)","v":0},{"$f":"IF(H1443='1 Données d''entrée'!$C$333+'1 Données d''entrée'!$C$334+$B1448,$C1445,0)","v":0},{"$f":"IF(I1443='1 Données d''entrée'!$C$333+'1 Données d''entrée'!$C$334+$B1448,$C1445,0)","v":0},{"$f":"IF(J1443='1 Données d''entrée'!$C$333+'1 Données d''entrée'!$C$334+$B1448,$C1445,0)","v":0},{"$f":"IF(K1443='1 Données d''entrée'!$C$333+'1 Données d''entrée'!$C$334+$B1448,$C1445,0)","v":0},{"$f":"IF(L1443='1 Données d''entrée'!$C$333+'1 Données d''entrée'!$C$334+$B1448,$C1445,0)","v":0},{"$f":"IF(M1443='1 Données d''entrée'!$C$333+'1 Données d''entrée'!$C$334+$B1448,$C1445,0)","v":0},{"$f":"IF(N1443='1 Données d''entrée'!$C$333+'1 Données d''entrée'!$C$334+$B1448,$C1445,0)","v":0},{"$f":"IF(O1443='1 Données d''entrée'!$C$333+'1 Données d''entrée'!$C$334+$B1448,$C1445,0)","v":0},{"$f":"IF(P1443='1 Données d''entrée'!$C$333+'1 Données d''entrée'!$C$334+$B1448,$C1445,0)","v":0},{"$f":"IF(Q1443='1 Données d''entrée'!$C$333+'1 Données d''entrée'!$C$334+$B1448,$C1445,0)","v":0},{"$f":"IF(R1443='1 Données d''entrée'!$C$333+'1 Données d''entrée'!$C$334+$B1448,$C1445,0)","v":0},{"$f":"IF(S1443='1 Données d''entrée'!$C$333+'1 Données d''entrée'!$C$334+$B1448,$C1445,0)","v":0},{"$f":"IF(T1443='1 Données d''entrée'!$C$333+'1 Données d''entrée'!$C$334+$B1448,$C1445,0)","v":0},{"$f":"IF(U1443='1 Données d''entrée'!$C$333+'1 Données d''entrée'!$C$334+$B1448,$C1445,0)","v":0},{"$f":"IF(V1443='1 Données d''entrée'!$C$333+'1 Données d''entrée'!$C$334+$B1448,$C1445,0)","v":0}]
[null,2,{"$f":"IF(C1443='1 Données d''entrée'!$C$333+'1 Données d''entrée'!$C$334+$B1449,$D1445,0)","v":0},{"$f":"IF(D1443='1 Données d''entrée'!$C$333+'1 Données d''entrée'!$C$334+$B1449,$D1445,0)","v":{"$error":"#DIV/0!"}},{"$f":"IF(E1443='1 Données d''entrée'!$C$333+'1 Données d''entrée'!$C$334+$B1449,$D1445,0)","v":0},{"$f":"IF(F1443='1 Données d''entrée'!$C$333+'1 Données d''entrée'!$C$334+$B1449,$D1445,0)","v":0},{"$f":"IF(G1443='1 Données d''entrée'!$C$333+'1 Données d''entrée'!$C$334+$B1449,$D1445,0)","v":0},{"$f":"IF(H1443='1 Données d''entrée'!$C$333+'1 Données d''entrée'!$C$334+$B1449,$D1445,0)","v":0},{"$f":"IF(I1443='1 Données d''entrée'!$C$333+'1 Données d''entrée'!$C$334+$B1449,$D1445,0)","v":0},{"$f":"IF(J1443='1 Données d''entrée'!$C$333+'1 Données d''entrée'!$C$334+$B1449,$D1445,0)","v":0},{"$f":"IF(K1443='1 Données d''entrée'!$C$333+'1 Données d''entrée'!$C$334+$B1449,$D1445,0)","v":0},{"$f":"IF(L1443='1 Données d''entrée'!$C$333+'1 Données d''entrée'!$C$334+$B1449,$D1445,0)","v":0},{"$f":"IF(M1443='1 Données d''entrée'!$C$333+'1 Données d''entrée'!$C$334+$B1449,$D1445,0)","v":0},{"$f":"IF(N1443='1 Données d''entrée'!$C$333+'1 Données d''entrée'!$C$334+$B1449,$D1445,0)","v":0},{"$f":"IF(O1443='1 Données d''entrée'!$C$333+'1 Données d''entrée'!$C$334+$B1449,$D1445,0)","v":0},{"$f":"IF(P1443='1 Données d''entrée'!$C$333+'1 Données d''entrée'!$C$334+$B1449,$D1445,0)","v":0},{"$f":"IF(Q1443='1 Données d''entrée'!$C$333+'1 Données d''entrée'!$C$334+$B1449,$D1445,0)","v":0},{"$f":"IF(R1443='1 Données d''entrée'!$C$333+'1 Données d''entrée'!$C$334+$B1449,$D1445,0)","v":0},{"$f":"IF(S1443='1 Données d''entrée'!$C$333+'1 Données d''entrée'!$C$334+$B1449,$D1445,0)","v":0},{"$f":"IF(T1443='1 Données d''entrée'!$C$333+'1 Données d''entrée'!$C$334+$B1449,$D1445,0)","v":0},{"$f":"IF(U1443='1 Données d''entrée'!$C$333+'1 Données d''entrée'!$C$334+$B1449,$D1445,0)","v":0},{"$f":"IF(V1443='1 Données d''entrée'!$C$333+'1 Données d''entrée'!$C$334+$B1449,$D1445,0)","v":0}]
[null,3,{"$f":"IF(C1443='1 Données d''entrée'!$C$333+'1 Données d''entrée'!$C$334+$B1450,$E1445,0)","v":0},{"$f":"IF(D1443='1 Données d''entrée'!$C$333+'1 Données d''entrée'!$C$334+$B1450,$E1445,0)","v":0},{"$f":"IF(E1443='1 Données d''entrée'!$C$333+'1 Données d''entrée'!$C$334+$B1450,$E1445,0)","v":{"$error":"#DIV/0!"}},{"$f":"IF(F1443='1 Données d''entrée'!$C$333+'1 Données d''entrée'!$C$334+$B1450,$E1445,0)","v":0},{"$f":"IF(G1443='1 Données d''entrée'!$C$333+'1 Données d''entrée'!$C$334+$B1450,$E1445,0)","v":0},{"$f":"IF(H1443='1 Données d''entrée'!$C$333+'1 Données d''entrée'!$C$334+$B1450,$E1445,0)","v":0},{"$f":"IF(I1443='1 Données d''entrée'!$C$333+'1 Données d''entrée'!$C$334+$B1450,$E1445,0)","v":0},{"$f":"IF(J1443='1 Données d''entrée'!$C$333+'1 Données d''entrée'!$C$334+$B1450,$E1445,0)","v":0},{"$f":"IF(K1443='1 Données d''entrée'!$C$333+'1 Données d''entrée'!$C$334+$B1450,$E1445,0)","v":0},{"$f":"IF(L1443='1 Données d''entrée'!$C$333+'1 Données d''entrée'!$C$334+$B1450,$E1445,0)","v":0},{"$f":"IF(M1443='1 Données d''entrée'!$C$333+'1 Données d''entrée'!$C$334+$B1450,$E1445,0)","v":0},{"$f":"IF(N1443='1 Données d''entrée'!$C$333+'1 Données d''entrée'!$C$334+$B1450,$E1445,0)","v":0},{"$f":"IF(O1443='1 Données d''entrée'!$C$333+'1 Données d''entrée'!$C$334+$B1450,$E1445,0)","v":0},{"$f":"IF(P1443='1 Données d''entrée'!$C$333+'1 Données d''entrée'!$C$334+$B1450,$E1445,0)","v":0},{"$f":"IF(Q1443='1 Données d''entrée'!$C$333+'1 Données d''entrée'!$C$334+$B1450,$E1445,0)","v":0},{"$f":"IF(R1443='1 Données d''entrée'!$C$333+'1 Données d''entrée'!$C$334+$B1450,$E1445,0)","v":0},{"$f":"IF(S1443='1 Données d''entrée'!$C$333+'1 Données d''entrée'!$C$334+$B1450,$E1445,0)","v":0},{"$f":"IF(T1443='1 Données d''entrée'!$C$333+'1 Données d''entrée'!$C$334+$B1450,$E1445,0)","v":0},{"$f":"IF(U1443='1 Données d''entrée'!$C$333+'1 Données d''entrée'!$C$334+$B1450,$E1445,0)","v":0},{"$f":"IF(V1443='1 Données d''entrée'!$C$333+'1 Données d''entrée'!$C$334+$B1450,$E1445,0)","v":0}]
[null,4,{"$f":"IF(C1443='1 Données d''entrée'!$C$333+'1 Données d''entrée'!$C$334+$B1451,$F1445,0)","v":0},{"$f":"IF(D1443='1 Données d''entrée'!$C$333+'1 Données d''entrée'!$C$334+$B1451,$F1445,0)","v":0},{"$f":"IF(E1443='1 Données d''entrée'!$C$333+'1 Données d''entrée'!$C$334+$B1451,$F1445,0)","v":0},{"$f":"IF(F1443='1 Données d''entrée'!$C$333+'1 Données d''entrée'!$C$334+$B1451,$F1445,0)","v":{"$error":"#DIV/0!"}},{"$f":"IF(G1443='1 Données d''entrée'!$C$333+'1 Données d''entrée'!$C$334+$B1451,$F1445,0)","v":0},{"$f":"IF(H1443='1 Données d''entrée'!$C$333+'1 Données d''entrée'!$C$334+$B1451,$F1445,0)","v":0},{"$f":"IF(I1443='1 Données d''entrée'!$C$333+'1 Données d''entrée'!$C$334+$B1451,$F1445,0)","v":0},{"$f":"IF(J1443='1 Données d''entrée'!$C$333+'1 Données d''entrée'!$C$334+$B1451,$F1445,0)","v":0},{"$f":"IF(K1443='1 Données d''entrée'!$C$333+'1 Données d''entrée'!$C$334+$B1451,$F1445,0)","v":0},{"$f":"IF(L1443='1 Données d''entrée'!$C$333+'1 Données d''entrée'!$C$334+$B1451,$F1445,0)","v":0},{"$f":"IF(M1443='1 Données d''entrée'!$C$333+'1 Données d''entrée'!$C$334+$B1451,$F1445,0)","v":0},{"$f":"IF(N1443='1 Données d''entrée'!$C$333+'1 Données d''entrée'!$C$334+$B1451,$F1445,0)","v":0},{"$f":"IF(O1443='1 Données d''entrée'!$C$333+'1 Données d''entrée'!$C$334+$B1451,$F1445,0)","v":0},{"$f":"IF(P1443='1 Données d''entrée'!$C$333+'1 Données d''entrée'!$C$334+$B1451,$F1445,0)","v":0},{"$f":"IF(Q1443='1 Données d''entrée'!$C$333+'1 Données d''entrée'!$C$334+$B1451,$F1445,0)","v":0},{"$f":"IF(R1443='1 Données d''entrée'!$C$333+'1 Données d''entrée'!$C$334+$B1451,$F1445,0)","v":0},{"$f":"IF(S1443='1 Données d''entrée'!$C$333+'1 Données d''entrée'!$C$334+$B1451,$F1445,0)","v":0},{"$f":"IF(T1443='1 Données d''entrée'!$C$333+'1 Données d''entrée'!$C$334+$B1451,$F1445,0)","v":0},{"$f":"IF(U1443='1 Données d''entrée'!$C$333+'1 Données d''entrée'!$C$334+$B1451,$F1445,0)","v":0},{"$f":"IF(V1443='1 Données d''entrée'!$C$333+'1 Données d''entrée'!$C$334+$B1451,$F1445,0)","v":0}]
[null,5,{"$f":"IF(C1443='1 Données d''entrée'!$C$333+'1 Données d''entrée'!$C$334+$B1452,$G1445,0)","v":0},{"$f":"IF(D1443='1 Données d''entrée'!$C$333+'1 Données d''entrée'!$C$334+$B1452,$G1445,0)","v":0},{"$f":"IF(E1443='1 Données d''entrée'!$C$333+'1 Données d''entrée'!$C$334+$B1452,$G1445,0)","v":0},{"$f":"IF(F1443='1 Données d''entrée'!$C$333+'1 Données d''entrée'!$C$334+$B1452,$G1445,0)","v":0},{"$f":"IF(G1443='1 Données d''entrée'!$C$333+'1 Données d''entrée'!$C$334+$B1452,$G1445,0)","v":{"$error":"#DIV/0!"}},{"$f":"IF(H1443='1 Données d''entrée'!$C$333+'1 Données d''entrée'!$C$334+$B1452,$G1445,0)","v":0},{"$f":"IF(I1443='1 Données d''entrée'!$C$333+'1 Données d''entrée'!$C$334+$B1452,$G1445,0)","v":0},{"$f":"IF(J1443='1 Données d''entrée'!$C$333+'1 Données d''entrée'!$C$334+$B1452,$G1445,0)","v":0},{"$f":"IF(K1443='1 Données d''entrée'!$C$333+'1 Données d''entrée'!$C$334+$B1452,$G1445,0)","v":0},{"$f":"IF(L1443='1 Données d''entrée'!$C$333+'1 Données d''entrée'!$C$334+$B1452,$G1445,0)","v":0},{"$f":"IF(M1443='1 Données d''entrée'!$C$333+'1 Données d''entrée'!$C$334+$B1452,$G1445,0)","v":0},{"$f":"IF(N1443='1 Données d''entrée'!$C$333+'1 Données d''entrée'!$C$334+$B1452,$G1445,0)","v":0},{"$f":"IF(O1443='1 Données d''entrée'!$C$333+'1 Données d''entrée'!$C$334+$B1452,$G1445,0)","v":0},{"$f":"IF(P1443='1 Données d''entrée'!$C$333+'1 Données d''entrée'!$C$334+$B1452,$G1445,0)","v":0},{"$f":"IF(Q1443='1 Données d''entrée'!$C$333+'1 Données d''entrée'!$C$334+$B1452,$G1445,0)","v":0},{"$f":"IF(R1443='1 Données d''entrée'!$C$333+'1 Données d''entrée'!$C$334+$B1452,$G1445,0)","v":0},{"$f":"IF(S1443='1 Données d''entrée'!$C$333+'1 Données d''entrée'!$C$334+$B1452,$G1445,0)","v":0},{"$f":"IF(T1443='1 Données d''entrée'!$C$333+'1 Données d''entrée'!$C$334+$B1452,$G1445,0)","v":0},{"$f":"IF(U1443='1 Données d''entrée'!$C$333+'1 Données d''entrée'!$C$334+$B1452,$G1445,0)","v":0},{"$f":"IF(V1443='1 Données d''entrée'!$C$333+'1 Données d''entrée'!$C$334+$B1452,$G1445,0)","v":0}]
[null,6,{"$f":"IF(C1443='1 Données d''entrée'!$C$333+'1 Données d''entrée'!$C$334+$B1453,$H1445,0)","v":0},{"$f":"IF(D1443='1 Données d''entrée'!$C$333+'1 Données d''entrée'!$C$334+$B1453,$H1445,0)","v":0},{"$f":"IF(E1443='1 Données d''entrée'!$C$333+'1 Données d''entrée'!$C$334+$B1453,$H1445,0)","v":0},{"$f":"IF(F1443='1 Données d''entrée'!$C$333+'1 Données d''entrée'!$C$334+$B1453,$H1445,0)","v":0},{"$f":"IF(G1443='1 Données d''entrée'!$C$333+'1 Données d''entrée'!$C$334+$B1453,$H1445,0)","v":0},{"$f":"IF(H1443='1 Données d''entrée'!$C$333+'1 Données d''entrée'!$C$334+$B1453,$H1445,0)","v":{"$error":"#DIV/0!"}},{"$f":"IF(I1443='1 Données d''entrée'!$C$333+'1 Données d''entrée'!$C$334+$B1453,$H1445,0)","v":0},{"$f":"IF(J1443='1 Données d''entrée'!$C$333+'1 Données d''entrée'!$C$334+$B1453,$H1445,0)","v":0},{"$f":"IF(K1443='1 Données d''entrée'!$C$333+'1 Données d''entrée'!$C$334+$B1453,$H1445,0)","v":0},{"$f":"IF(L1443='1 Données d''entrée'!$C$333+'1 Données d''entrée'!$C$334+$B1453,$H1445,0)","v":0},{"$f":"IF(M1443='1 Données d''entrée'!$C$333+'1 Données d''entrée'!$C$334+$B1453,$H1445,0)","v":0},{"$f":"IF(N1443='1 Données d''entrée'!$C$333+'1 Données d''entrée'!$C$334+$B1453,$H1445,0)","v":0},{"$f":"IF(O1443='1 Données d''entrée'!$C$333+'1 Données d''entrée'!$C$334+$B1453,$H1445,0)","v":0},{"$f":"IF(P1443='1 Données d''entrée'!$C$333+'1 Données d''entrée'!$C$334+$B1453,$H1445,0)","v":0},{"$f":"IF(Q1443='1 Données d''entrée'!$C$333+'1 Données d''entrée'!$C$334+$B1453,$H1445,0)","v":0},{"$f":"IF(R1443='1 Données d''entrée'!$C$333+'1 Données d''entrée'!$C$334+$B1453,$H1445,0)","v":0},{"$f":"IF(S1443='1 Données d''entrée'!$C$333+'1 Données d''entrée'!$C$334+$B1453,$H1445,0)","v":0},{"$f":"IF(T1443='1 Données d''entrée'!$C$333+'1 Données d''entrée'!$C$334+$B1453,$H1445,0)","v":0},{"$f":"IF(U1443='1 Données d''entrée'!$C$333+'1 Données d''entrée'!$C$334+$B1453,$H1445,0)","v":0},{"$f":"IF(V1443='1 Données d''entrée'!$C$333+'1 Données d''entrée'!$C$334+$B1453,$H1445,0)","v":0}]
[null,7,{"$f":"IF(C1443='1 Données d''entrée'!$C$333+'1 Données d''entrée'!$C$334+$B1454,$I1445,0)","v":0},{"$f":"IF(D1443='1 Données d''entrée'!$C$333+'1 Données d''entrée'!$C$334+$B1454,$I1445,0)","v":0},{"$f":"IF(E1443='1 Données d''entrée'!$C$333+'1 Données d''entrée'!$C$334+$B1454,$I1445,0)","v":0},{"$f":"IF(F1443='1 Données d''entrée'!$C$333+'1 Données d''entrée'!$C$334+$B1454,$I1445,0)","v":0},{"$f":"IF(G1443='1 Données d''entrée'!$C$333+'1 Données d''entrée'!$C$334+$B1454,$I1445,0)","v":0},{"$f":"IF(H1443='1 Données d''entrée'!$C$333+'1 Données d''entrée'!$C$334+$B1454,$I1445,0)","v":0},{"$f":"IF(I1443='1 Données d''entrée'!$C$333+'1 Données d''entrée'!$C$334+$B1454,$I1445,0)","v":{"$error":"#DIV/0!"}},{"$f":"IF(J1443='1 Données d''entrée'!$C$333+'1 Données d''entrée'!$C$334+$B1454,$I1445,0)","v":0},{"$f":"IF(K1443='1 Données d''entrée'!$C$333+'1 Données d''entrée'!$C$334+$B1454,$I1445,0)","v":0},{"$f":"IF(L1443='1 Données d''entrée'!$C$333+'1 Données d''entrée'!$C$334+$B1454,$I1445,0)","v":0},{"$f":"IF(M1443='1 Données d''entrée'!$C$333+'1 Données d''entrée'!$C$334+$B1454,$I1445,0)","v":0},{"$f":"IF(N1443='1 Données d''entrée'!$C$333+'1 Données d''entrée'!$C$334+$B1454,$I1445,0)","v":0},{"$f":"IF(O1443='1 Données d''entrée'!$C$333+'1 Données d''entrée'!$C$334+$B1454,$I1445,0)","v":0},{"$f":"IF(P1443='1 Données d''entrée'!$C$333+'1 Données d''entrée'!$C$334+$B1454,$I1445,0)","v":0},{"$f":"IF(Q1443='1 Données d''entrée'!$C$333+'1 Données d''entrée'!$C$334+$B1454,$I1445,0)","v":0},{"$f":"IF(R1443='1 Données d''entrée'!$C$333+'1 Données d''entrée'!$C$334+$B1454,$I1445,0)","v":0},{"$f":"IF(S1443='1 Données d''entrée'!$C$333+'1 Données d''entrée'!$C$334+$B1454,$I1445,0)","v":0},{"$f":"IF(T1443='1 Données d''entrée'!$C$333+'1 Données d''entrée'!$C$334+$B1454,$I1445,0)","v":0},{"$f":"IF(U1443='1 Données d''entrée'!$C$333+'1 Données d''entrée'!$C$334+$B1454,$I1445,0)","v":0},{"$f":"IF(V1443='1 Données d''entrée'!$C$333+'1 Données d''entrée'!$C$334+$B1454,$I1445,0)","v":0}]
[null,8,{"$f":"IF(C1443='1 Données d''entrée'!$C$333+'1 Données d''entrée'!$C$334+$B1455,$J1445,0)","v":0},{"$f":"IF(D1443='1 Données d''entrée'!$C$333+'1 Données d''entrée'!$C$334+$B1455,$J1445,0)","v":0},{"$f":"IF(E1443='1 Données d''entrée'!$C$333+'1 Données d''entrée'!$C$334+$B1455,$J1445,0)","v":0},{"$f":"IF(F1443='1 Données d''entrée'!$C$333+'1 Données d''entrée'!$C$334+$B1455,$J1445,0)","v":0},{"$f":"IF(G1443='1 Données d''entrée'!$C$333+'1 Données d''entrée'!$C$334+$B1455,$J1445,0)","v":0},{"$f":"IF(H1443='1 Données d''entrée'!$C$333+'1 Données d''entrée'!$C$334+$B1455,$J1445,0)","v":0},{"$f":"IF(I1443='1 Données d''entrée'!$C$333+'1 Données d''entrée'!$C$334+$B1455,$J1445,0)","v":0},{"$f":"IF(J1443='1 Données d''entrée'!$C$333+'1 Données d''entrée'!$C$334+$B1455,$J1445,0)","v":{"$error":"#DIV/0!"}},{"$f":"IF(K1443='1 Données d''entrée'!$C$333+'1 Données d''entrée'!$C$334+$B1455,$J1445,0)","v":0},{"$f":"IF(L1443='1 Données d''entrée'!$C$333+'1 Données d''entrée'!$C$334+$B1455,$J1445,0)","v":0},{"$f":"IF(M1443='1 Données d''entrée'!$C$333+'1 Données d''entrée'!$C$334+$B1455,$J1445,0)","v":0},{"$f":"IF(N1443='1 Données d''entrée'!$C$333+'1 Données d''entrée'!$C$334+$B1455,$J1445,0)","v":0},{"$f":"IF(O1443='1 Données d''entrée'!$C$333+'1 Données d''entrée'!$C$334+$B1455,$J1445,0)","v":0},{"$f":"IF(P1443='1 Données d''entrée'!$C$333+'1 Données d''entrée'!$C$334+$B1455,$J1445,0)","v":0},{"$f":"IF(Q1443='1 Données d''entrée'!$C$333+'1 Données d''entrée'!$C$334+$B1455,$J1445,0)","v":0},{"$f":"IF(R1443='1 Données d''entrée'!$C$333+'1 Données d''entrée'!$C$334+$B1455,$J1445,0)","v":0},{"$f":"IF(S1443='1 Données d''entrée'!$C$333+'1 Données d''entrée'!$C$334+$B1455,$J1445,0)","v":0},{"$f":"IF(T1443='1 Données d''entrée'!$C$333+'1 Données d''entrée'!$C$334+$B1455,$J1445,0)","v":0},{"$f":"IF(U1443='1 Données d''entrée'!$C$333+'1 Données d''entrée'!$C$334+$B1455,$J1445,0)","v":0},{"$f":"IF(V1443='1 Données d''entrée'!$C$333+'1 Données d''entrée'!$C$334+$B1455,$J1445,0)","v":0}]
[null,9,{"$f":"IF(C1443='1 Données d''entrée'!$C$333+'1 Données d''entrée'!$C$334+$B1456,$K1445,0)","v":0},{"$f":"IF(D1443='1 Données d''entrée'!$C$333+'1 Données d''entrée'!$C$334+$B1456,$K1445,0)","v":0},{"$f":"IF(E1443='1 Données d''entrée'!$C$333+'1 Données d''entrée'!$C$334+$B1456,$K1445,0)","v":0},{"$f":"IF(F1443='1 Données d''entrée'!$C$333+'1 Données d''entrée'!$C$334+$B1456,$K1445,0)","v":0},{"$f":"IF(G1443='1 Données d''entrée'!$C$333+'1 Données d''entrée'!$C$334+$B1456,$K1445,0)","v":0},{"$f":"IF(H1443='1 Données d''entrée'!$C$333+'1 Données d''entrée'!$C$334+$B1456,$K1445,0)","v":0},{"$f":"IF(I1443='1 Données d''entrée'!$C$333+'1 Données d''entrée'!$C$334+$B1456,$K1445,0)","v":0},{"$f":"IF(J1443='1 Données d''entrée'!$C$333+'1 Données d''entrée'!$C$334+$B1456,$K1445,0)","v":0},{"$f":"IF(K1443='1 Données d''entrée'!$C$333+'1 Données d''entrée'!$C$334+$B1456,$K1445,0)","v":{"$error":"#DIV/0!"}},{"$f":"IF(L1443='1 Données d''entrée'!$C$333+'1 Données d''entrée'!$C$334+$B1456,$K1445,0)","v":0},{"$f":"IF(M1443='1 Données d''entrée'!$C$333+'1 Données d''entrée'!$C$334+$B1456,$K1445,0)","v":0},{"$f":"IF(N1443='1 Données d''entrée'!$C$333+'1 Données d''entrée'!$C$334+$B1456,$K1445,0)","v":0},{"$f":"IF(O1443='1 Données d''entrée'!$C$333+'1 Données d''entrée'!$C$334+$B1456,$K1445,0)","v":0},{"$f":"IF(P1443='1 Données d''entrée'!$C$333+'1 Données d''entrée'!$C$334+$B1456,$K1445,0)","v":0},{"$f":"IF(Q1443='1 Données d''entrée'!$C$333+'1 Données d''entrée'!$C$334+$B1456,$K1445,0)","v":0},{"$f":"IF(R1443='1 Données d''entrée'!$C$333+'1 Données d''entrée'!$C$334+$B1456,$K1445,0)","v":0},{"$f":"IF(S1443='1 Données d''entrée'!$C$333+'1 Données d''entrée'!$C$334+$B1456,$K1445,0)","v":0},{"$f":"IF(T1443='1 Données d''entrée'!$C$333+'1 Données d''entrée'!$C$334+$B1456,$K1445,0)","v":0},{"$f":"IF(U1443='1 Données d''entrée'!$C$333+'1 Données d''entrée'!$C$334+$B1456,$K1445,0)","v":0},{"$f":"IF(V1443='1 Données d''entrée'!$C$333+'1 Données d''entrée'!$C$334+$B1456,$K1445,0)","v":0}]
[null,10,{"$f":"IF(C1443='1 Données d''entrée'!$C$333+'1 Données d''entrée'!$C$334+$B1457,$L1445,0)","v":0},{"$f":"IF(D1443='1 Données d''entrée'!$C$333+'1 Données d''entrée'!$C$334+$B1457,$L1445,0)","v":0},{"$f":"IF(E1443='1 Données d''entrée'!$C$333+'1 Données d''entrée'!$C$334+$B1457,$L1445,0)","v":0},{"$f":"IF(F1443='1 Données d''entrée'!$C$333+'1 Données d''entrée'!$C$334+$B1457,$L1445,0)","v":0},{"$f":"IF(G1443='1 Données d''entrée'!$C$333+'1 Données d''entrée'!$C$334+$B1457,$L1445,0)","v":0},{"$f":"IF(H1443='1 Données d''entrée'!$C$333+'1 Données d''entrée'!$C$334+$B1457,$L1445,0)","v":0},{"$f":"IF(I1443='1 Données d''entrée'!$C$333+'1 Données d''entrée'!$C$334+$B1457,$L1445,0)","v":0},{"$f":"IF(J1443='1 Données d''entrée'!$C$333+'1 Données d''entrée'!$C$334+$B1457,$L1445,0)","v":0},{"$f":"IF(K1443='1 Données d''entrée'!$C$333+'1 Données d''entrée'!$C$334+$B1457,$L1445,0)","v":0},{"$f":"IF(L1443='1 Données d''entrée'!$C$333+'1 Données d''entrée'!$C$334+$B1457,$L1445,0)","v":{"$error":"#DIV/0!"}},{"$f":"IF(M1443='1 Données d''entrée'!$C$333+'1 Données d''entrée'!$C$334+$B1457,$L1445,0)","v":0},{"$f":"IF(N1443='1 Données d''entrée'!$C$333+'1 Données d''entrée'!$C$334+$B1457,$L1445,0)","v":0},{"$f":"IF(O1443='1 Données d''entrée'!$C$333+'1 Données d''entrée'!$C$334+$B1457,$L1445,0)","v":0},{"$f":"IF(P1443='1 Données d''entrée'!$C$333+'1 Données d''entrée'!$C$334+$B1457,$L1445,0)","v":0},{"$f":"IF(Q1443='1 Données d''entrée'!$C$333+'1 Données d''entrée'!$C$334+$B1457,$L1445,0)","v":0},{"$f":"IF(R1443='1 Données d''entrée'!$C$333+'1 Données d''entrée'!$C$334+$B1457,$L1445,0)","v":0},{"$f":"IF(S1443='1 Données d''entrée'!$C$333+'1 Données d''entrée'!$C$334+$B1457,$L1445,0)","v":0},{"$f":"IF(T1443='1 Données d''entrée'!$C$333+'1 Données d''entrée'!$C$334+$B1457,$L1445,0)","v":0},{"$f":"IF(U1443='1 Données d''entrée'!$C$333+'1 Données d''entrée'!$C$334+$B1457,$L1445,0)","v":0},{"$f":"IF(V1443='1 Données d''entrée'!$C$333+'1 Données d''entrée'!$C$334+$B1457,$L1445,0)","v":0}]
[null,"Période de prêt nouveau"]
["Paiement d'intérêts",0,0,0,0,0,0,0,0,0,0,0,0,0,0,0,0,0,0,0,0,0]
["Paiement d'intêrets",1,0,{"$f":"IF(C1367<1+$B1447,0,IF(C1367<'1 Données d''entrée'!$C$334+'1 Données d''entrée'!$C$333+1+$B1447,'1 Données d''entrée'!$C$332*($C1445-SUM($C1448:C1448)),0))","v":0},{"$f":"IF(D1367<1+$B1447,0,IF(D1367<'1 Données d''entrée'!$C$334+'1 Données d''entrée'!$C$333+1+$B1447,'1 Données d''entrée'!$C$332*($C1445-SUM($C1448:D1448)),0))","v":0},{"$f":"IF(E1367<1+$B1447,0,IF(E1367<'1 Données d''entrée'!$C$334+'1 Données d''entrée'!$C$333+1+$B1447,'1 Données d''entrée'!$C$332*($C1445-SUM($C1448:E1448)),0))","v":0},{"$f":"IF(F1367<1+$B1447,0,IF(F1367<'1 Données d''entrée'!$C$334+'1 Données d''entrée'!$C$333+1+$B1447,'1 Données d''entrée'!$C$332*($C1445-SUM($C1448:F1448)),0))","v":0},{"$f":"IF(G1367<1+$B1447,0,IF(G1367<'1 Données d''entrée'!$C$334+'1 Données d''entrée'!$C$333+1+$B1447,'1 Données d''entrée'!$C$332*($C1445-SUM($C1448:G1448)),0))","v":0},{"$f":"IF(H1367<1+$B1447,0,IF(H1367<'1 Données d''entrée'!$C$334+'1 Données d''entrée'!$C$333+1+$B1447,'1 Données d''entrée'!$C$332*($C1445-SUM($C1448:H1448)),0))","v":0},{"$f":"IF(I1367<1+$B1447,0,IF(I1367<'1 Données d''entrée'!$C$334+'1 Données d''entrée'!$C$333+1+$B1447,'1 Données d''entrée'!$C$332*($C1445-SUM($C1448:I1448)),0))","v":0},{"$f":"IF(J1367<1+$B1447,0,IF(J1367<'1 Données d''entrée'!$C$334+'1 Données d''entrée'!$C$333+1+$B1447,'1 Données d''entrée'!$C$332*($C1445-SUM($C1448:J1448)),0))","v":0},{"$f":"IF(K1367<1+$B1447,0,IF(K1367<'1 Données d''entrée'!$C$334+'1 Données d''entrée'!$C$333+1+$B1447,'1 Données d''entrée'!$C$332*($C1445-SUM($C1448:K1448)),0))","v":0},{"$f":"IF(L1367<1+$B1447,0,IF(L1367<'1 Données d''entrée'!$C$334+'1 Données d''entrée'!$C$333+1+$B1447,'1 Données d''entrée'!$C$332*($C1445-SUM($C1448:L1448)),0))","v":0},{"$f":"IF(M1367<1+$B1447,0,IF(M1367<'1 Données d''entrée'!$C$334+'1 Données d''entrée'!$C$333+1+$B1447,'1 Données d''entrée'!$C$332*($C1445-SUM($C1448:M1448)),0))","v":0},{"$f":"IF(N1367<1+$B1447,0,IF(N1367<'1 Données d''entrée'!$C$334+'1 Données d''entrée'!$C$333+1+$B1447,'1 Données d''entrée'!$C$332*($C1445-SUM($C1448:N1448)),0))","v":0},{"$f":"IF(O1367<1+$B1447,0,IF(O1367<'1 Données d''entrée'!$C$334+'1 Données d''entrée'!$C$333+1+$B1447,'1 Données d''entrée'!$C$332*($C1445-SUM($C1448:O1448)),0))","v":0},{"$f":"IF(P1367<1+$B1447,0,IF(P1367<'1 Données d''entrée'!$C$334+'1 Données d''entrée'!$C$333+1+$B1447,'1 Données d''entrée'!$C$332*($C1445-SUM($C1448:P1448)),0))","v":0},{"$f":"IF(Q1367<1+$B1447,0,IF(Q1367<'1 Données d''entrée'!$C$334+'1 Données d''entrée'!$C$333+1+$B1447,'1 Données d''entrée'!$C$332*($C1445-SUM($C1448:Q1448)),0))","v":0},{"$f":"IF(R1367<1+$B1447,0,IF(R1367<'1 Données d''entrée'!$C$334+'1 Données d''entrée'!$C$333+1+$B1447,'1 Données d''entrée'!$C$332*($C1445-SUM($C1448:R1448)),0))","v":0},{"$f":"IF(S1367<1+$B1447,0,IF(S1367<'1 Données d''entrée'!$C$334+'1 Données d''entrée'!$C$333+1+$B1447,'1 Données d''entrée'!$C$332*($C1445-SUM($C1448:S1448)),0))","v":0},{"$f":"IF(T1367<1+$B1447,0,IF(T1367<'1 Données d''entrée'!$C$334+'1 Données d''entrée'!$C$333+1+$B1447,'1 Données d''entrée'!$C$332*($C1445-SUM($C1448:T1448)),0))","v":0},{"$f":"IF(U1367<1+$B1447,0,IF(U1367<'1 Données d''entrée'!$C$334+'1 Données d''entrée'!$C$333+1+$B1447,'1 Données d''entrée'!$C$332*($C1445-SUM($C1448:U1448)),0))","v":0}]
["Paiement d'intêrets",2,0,{"$f":"IF(C1367<1+$B1448,0,IF(C1367<'1 Données d''entrée'!$C$334+'1 Données d''entrée'!$C$333+1+$B1448,'1 Données d''entrée'!$C$332*($D1445-SUM($C1449:C1449)),0))","v":0},{"$f":"IF(D1367<1+$B1448,0,IF(D1367<'1 Données d''entrée'!$C$334+'1 Données d''entrée'!$C$333+1+$B1448,'1 Données d''entrée'!$C$332*($D1445-SUM($C1449:D1449)),0))","v":0},{"$f":"IF(E1367<1+$B1448,0,IF(E1367<'1 Données d''entrée'!$C$334+'1 Données d''entrée'!$C$333+1+$B1448,'1 Données d''entrée'!$C$332*($D1445-SUM($C1449:E1449)),0))","v":0},{"$f":"IF(F1367<1+$B1448,0,IF(F1367<'1 Données d''entrée'!$C$334+'1 Données d''entrée'!$C$333+1+$B1448,'1 Données d''entrée'!$C$332*($D1445-SUM($C1449:F1449)),0))","v":0},{"$f":"IF(G1367<1+$B1448,0,IF(G1367<'1 Données d''entrée'!$C$334+'1 Données d''entrée'!$C$333+1+$B1448,'1 Données d''entrée'!$C$332*($D1445-SUM($C1449:G1449)),0))","v":0},{"$f":"IF(H1367<1+$B1448,0,IF(H1367<'1 Données d''entrée'!$C$334+'1 Données d''entrée'!$C$333+1+$B1448,'1 Données d''entrée'!$C$332*($D1445-SUM($C1449:H1449)),0))","v":0},{"$f":"IF(I1367<1+$B1448,0,IF(I1367<'1 Données d''entrée'!$C$334+'1 Données d''entrée'!$C$333+1+$B1448,'1 Données d''entrée'!$C$332*($D1445-SUM($C1449:I1449)),0))","v":0},{"$f":"IF(J1367<1+$B1448,0,IF(J1367<'1 Données d''entrée'!$C$334+'1 Données d''entrée'!$C$333+1+$B1448,'1 Données d''entrée'!$C$332*($D1445-SUM($C1449:J1449)),0))","v":0},{"$f":"IF(K1367<1+$B1448,0,IF(K1367<'1 Données d''entrée'!$C$334+'1 Données d''entrée'!$C$333+1+$B1448,'1 Données d''entrée'!$C$332*($D1445-SUM($C1449:K1449)),0))","v":0},{"$f":"IF(L1367<1+$B1448,0,IF(L1367<'1 Données d''entrée'!$C$334+'1 Données d''entrée'!$C$333+1+$B1448,'1 Données d''entrée'!$C$332*($D1445-SUM($C1449:L1449)),0))","v":0},{"$f":"IF(M1367<1+$B1448,0,IF(M1367<'1 Données d''entrée'!$C$334+'1 Données d''entrée'!$C$333+1+$B1448,'1 Données d''entrée'!$C$332*($D1445-SUM($C1449:M1449)),0))","v":0},{"$f":"IF(N1367<1+$B1448,0,IF(N1367<'1 Données d''entrée'!$C$334+'1 Données d''entrée'!$C$333+1+$B1448,'1 Données d''entrée'!$C$332*($D1445-SUM($C1449:N1449)),0))","v":0},{"$f":"IF(O1367<1+$B1448,0,IF(O1367<'1 Données d''entrée'!$C$334+'1 Données d''entrée'!$C$333+1+$B1448,'1 Données d''entrée'!$C$332*($D1445-SUM($C1449:O1449)),0))","v":0},{"$f":"IF(P1367<1+$B1448,0,IF(P1367<'1 Données d''entrée'!$C$334+'1 Données d''entrée'!$C$333+1+$B1448,'1 Données d''entrée'!$C$332*($D1445-SUM($C1449:P1449)),0))","v":0},{"$f":"IF(Q1367<1+$B1448,0,IF(Q1367<'1 Données d''entrée'!$C$334+'1 Données d''entrée'!$C$333+1+$B1448,'1 Données d''entrée'!$C$332*($D1445-SUM($C1449:Q1449)),0))","v":0},{"$f":"IF(R1367<1+$B1448,0,IF(R1367<'1 Données d''entrée'!$C$334+'1 Données d''entrée'!$C$333+1+$B1448,'1 Données d''entrée'!$C$332*($D1445-SUM($C1449:R1449)),0))","v":0},{"$f":"IF(S1367<1+$B1448,0,IF(S1367<'1 Données d''entrée'!$C$334+'1 Données d''entrée'!$C$333+1+$B1448,'1 Données d''entrée'!$C$332*($D1445-SUM($C1449:S1449)),0))","v":0},{"$f":"IF(T1367<1+$B1448,0,IF(T1367<'1 Données d''entrée'!$C$334+'1 Données d''entrée'!$C$333+1+$B1448,'1 Données d''entrée'!$C$332*($D1445-SUM($C1449:T1449)),0))","v":0},{"$f":"IF(U1367<1+$B1448,0,IF(U1367<'1 Données d''entrée'!$C$334+'1 Données d''entrée'!$C$333+1+$B1448,'1 Données d''entrée'!$C$332*($D1445-SUM($C1449:U1449)),0))","v":0}]
["Paiement d'intêrets",3,0,{"$f":"IF(C1367<1+$B1449,0,IF(C1367<'1 Données d''entrée'!$C$334+'1 Données d''entrée'!$C$333+1+$B1449,'1 Données d''entrée'!$C$332*($E1445-SUM($C1450:C1450)),0))","v":0},{"$f":"IF(D1367<1+$B1449,0,IF(D1367<'1 Données d''entrée'!$C$334+'1 Données d''entrée'!$C$333+1+$B1449,'1 Données d''entrée'!$C$332*($E1445-SUM($C1450:D1450)),0))","v":0},{"$f":"IF(E1367<1+$B1449,0,IF(E1367<'1 Données d''entrée'!$C$334+'1 Données d''entrée'!$C$333+1+$B1449,'1 Données d''entrée'!$C$332*($E1445-SUM($C1450:E1450)),0))","v":0},{"$f":"IF(F1367<1+$B1449,0,IF(F1367<'1 Données d''entrée'!$C$334+'1 Données d''entrée'!$C$333+1+$B1449,'1 Données d''entrée'!$C$332*($E1445-SUM($C1450:F1450)),0))","v":0},{"$f":"IF(G1367<1+$B1449,0,IF(G1367<'1 Données d''entrée'!$C$334+'1 Données d''entrée'!$C$333+1+$B1449,'1 Données d''entrée'!$C$332*($E1445-SUM($C1450:G1450)),0))","v":0},{"$f":"IF(H1367<1+$B1449,0,IF(H1367<'1 Données d''entrée'!$C$334+'1 Données d''entrée'!$C$333+1+$B1449,'1 Données d''entrée'!$C$332*($E1445-SUM($C1450:H1450)),0))","v":0},{"$f":"IF(I1367<1+$B1449,0,IF(I1367<'1 Données d''entrée'!$C$334+'1 Données d''entrée'!$C$333+1+$B1449,'1 Données d''entrée'!$C$332*($E1445-SUM($C1450:I1450)),0))","v":0},{"$f":"IF(J1367<1+$B1449,0,IF(J1367<'1 Données d''entrée'!$C$334+'1 Données d''entrée'!$C$333+1+$B1449,'1 Données d''entrée'!$C$332*($E1445-SUM($C1450:J1450)),0))","v":0},{"$f":"IF(K1367<1+$B1449,0,IF(K1367<'1 Données d''entrée'!$C$334+'1 Données d''entrée'!$C$333+1+$B1449,'1 Données d''entrée'!$C$332*($E1445-SUM($C1450:K1450)),0))","v":0},{"$f":"IF(L1367<1+$B1449,0,IF(L1367<'1 Données d''entrée'!$C$334+'1 Données d''entrée'!$C$333+1+$B1449,'1 Données d''entrée'!$C$332*($E1445-SUM($C1450:L1450)),0))","v":0},{"$f":"IF(M1367<1+$B1449,0,IF(M1367<'1 Données d''entrée'!$C$334+'1 Données d''entrée'!$C$333+1+$B1449,'1 Données d''entrée'!$C$332*($E1445-SUM($C1450:M1450)),0))","v":0},{"$f":"IF(N1367<1+$B1449,0,IF(N1367<'1 Données d''entrée'!$C$334+'1 Données d''entrée'!$C$333+1+$B1449,'1 Données d''entrée'!$C$332*($E1445-SUM($C1450:N1450)),0))","v":0},{"$f":"IF(O1367<1+$B1449,0,IF(O1367<'1 Données d''entrée'!$C$334+'1 Données d''entrée'!$C$333+1+$B1449,'1 Données d''entrée'!$C$332*($E1445-SUM($C1450:O1450)),0))","v":0},{"$f":"IF(P1367<1+$B1449,0,IF(P1367<'1 Données d''entrée'!$C$334+'1 Données d''entrée'!$C$333+1+$B1449,'1 Données d''entrée'!$C$332*($E1445-SUM($C1450:P1450)),0))","v":0},{"$f":"IF(Q1367<1+$B1449,0,IF(Q1367<'1 Données d''entrée'!$C$334+'1 Données d''entrée'!$C$333+1+$B1449,'1 Données d''entrée'!$C$332*($E1445-SUM($C1450:Q1450)),0))","v":0},{"$f":"IF(R1367<1+$B1449,0,IF(R1367<'1 Données d''entrée'!$C$334+'1 Données d''entrée'!$C$333+1+$B1449,'1 Données d''entrée'!$C$332*($E1445-SUM($C1450:R1450)),0))","v":0},{"$f":"IF(S1367<1+$B1449,0,IF(S1367<'1 Données d''entrée'!$C$334+'1 Données d''entrée'!$C$333+1+$B1449,'1 Données d''entrée'!$C$332*($E1445-SUM($C1450:S1450)),0))","v":0},{"$f":"IF(T1367<1+$B1449,0,IF(T1367<'1 Données d''entrée'!$C$334+'1 Données d''entrée'!$C$333+1+$B1449,'1 Données d''entrée'!$C$332*($E1445-SUM($C1450:T1450)),0))","v":0},{"$f":"IF(U1367<1+$B1449,0,IF(U1367<'1 Données d''entrée'!$C$334+'1 Données d''entrée'!$C$333+1+$B1449,'1 Données d''entrée'!$C$332*($E1445-SUM($C1450:U1450)),0))","v":0}]
["Paiement d'intêrets",4,0,{"$f":"IF(C1367<1+$B1450,0,IF(C1367<'1 Données d''entrée'!$C$334+'1 Données d''entrée'!$C$333+1+$B1450,'1 Données d''entrée'!$C$332*($F1445-SUM($C1451:C1451)),0))","v":0},{"$f":"IF(D1367<1+$B1450,0,IF(D1367<'1 Données d''entrée'!$C$334+'1 Données d''entrée'!$C$333+1+$B1450,'1 Données d''entrée'!$C$332*($F1445-SUM($C1451:D1451)),0))","v":0},{"$f":"IF(E1367<1+$B1450,0,IF(E1367<'1 Données d''entrée'!$C$334+'1 Données d''entrée'!$C$333+1+$B1450,'1 Données d''entrée'!$C$332*($F1445-SUM($C1451:E1451)),0))","v":0},{"$f":"IF(F1367<1+$B1450,0,IF(F1367<'1 Données d''entrée'!$C$334+'1 Données d''entrée'!$C$333+1+$B1450,'1 Données d''entrée'!$C$332*($F1445-SUM($C1451:F1451)),0))","v":0},{"$f":"IF(G1367<1+$B1450,0,IF(G1367<'1 Données d''entrée'!$C$334+'1 Données d''entrée'!$C$333+1+$B1450,'1 Données d''entrée'!$C$332*($F1445-SUM($C1451:G1451)),0))","v":0},{"$f":"IF(H1367<1+$B1450,0,IF(H1367<'1 Données d''entrée'!$C$334+'1 Données d''entrée'!$C$333+1+$B1450,'1 Données d''entrée'!$C$332*($F1445-SUM($C1451:H1451)),0))","v":0},{"$f":"IF(I1367<1+$B1450,0,IF(I1367<'1 Données d''entrée'!$C$334+'1 Données d''entrée'!$C$333+1+$B1450,'1 Données d''entrée'!$C$332*($F1445-SUM($C1451:I1451)),0))","v":0},{"$f":"IF(J1367<1+$B1450,0,IF(J1367<'1 Données d''entrée'!$C$334+'1 Données d''entrée'!$C$333+1+$B1450,'1 Données d''entrée'!$C$332*($F1445-SUM($C1451:J1451)),0))","v":0},{"$f":"IF(K1367<1+$B1450,0,IF(K1367<'1 Données d''entrée'!$C$334+'1 Données d''entrée'!$C$333+1+$B1450,'1 Données d''entrée'!$C$332*($F1445-SUM($C1451:K1451)),0))","v":0},{"$f":"IF(L1367<1+$B1450,0,IF(L1367<'1 Données d''entrée'!$C$334+'1 Données d''entrée'!$C$333+1+$B1450,'1 Données d''entrée'!$C$332*($F1445-SUM($C1451:L1451)),0))","v":0},{"$f":"IF(M1367<1+$B1450,0,IF(M1367<'1 Données d''entrée'!$C$334+'1 Données d''entrée'!$C$333+1+$B1450,'1 Données d''entrée'!$C$332*($F1445-SUM($C1451:M1451)),0))","v":0},{"$f":"IF(N1367<1+$B1450,0,IF(N1367<'1 Données d''entrée'!$C$334+'1 Données d''entrée'!$C$333+1+$B1450,'1 Données d''entrée'!$C$332*($F1445-SUM($C1451:N1451)),0))","v":0},{"$f":"IF(O1367<1+$B1450,0,IF(O1367<'1 Données d''entrée'!$C$334+'1 Données d''entrée'!$C$333+1+$B1450,'1 Données d''entrée'!$C$332*($F1445-SUM($C1451:O1451)),0))","v":0},{"$f":"IF(P1367<1+$B1450,0,IF(P1367<'1 Données d''entrée'!$C$334+'1 Données d''entrée'!$C$333+1+$B1450,'1 Données d''entrée'!$C$332*($F1445-SUM($C1451:P1451)),0))","v":0},{"$f":"IF(Q1367<1+$B1450,0,IF(Q1367<'1 Données d''entrée'!$C$334+'1 Données d''entrée'!$C$333+1+$B1450,'1 Données d''entrée'!$C$332*($F1445-SUM($C1451:Q1451)),0))","v":0},{"$f":"IF(R1367<1+$B1450,0,IF(R1367<'1 Données d''entrée'!$C$334+'1 Données d''entrée'!$C$333+1+$B1450,'1 Données d''entrée'!$C$332*($F1445-SUM($C1451:R1451)),0))","v":0},{"$f":"IF(S1367<1+$B1450,0,IF(S1367<'1 Données d''entrée'!$C$334+'1 Données d''entrée'!$C$333+1+$B1450,'1 Données d''entrée'!$C$332*($F1445-SUM($C1451:S1451)),0))","v":0},{"$f":"IF(T1367<1+$B1450,0,IF(T1367<'1 Données d''entrée'!$C$334+'1 Données d''entrée'!$C$333+1+$B1450,'1 Données d''entrée'!$C$332*($F1445-SUM($C1451:T1451)),0))","v":0},{"$f":"IF(U1367<1+$B1450,0,IF(U1367<'1 Données d''entrée'!$C$334+'1 Données d''entrée'!$C$333+1+$B1450,'1 Données d''entrée'!$C$332*($F1445-SUM($C1451:U1451)),0))","v":0}]
["Paiement d'intêrets",5,0,{"$f":"IF(C1367<1+$B1451,0,IF(C1367<'1 Données d''entrée'!$C$334+'1 Données d''entrée'!$C$333+1+$B1451,'1 Données d''entrée'!$C$332*($G1445-SUM($C1452:C1452)),0))","v":0},{"$f":"IF(D1367<1+$B1451,0,IF(D1367<'1 Données d''entrée'!$C$334+'1 Données d''entrée'!$C$333+1+$B1451,'1 Données d''entrée'!$C$332*($G1445-SUM($C1452:D1452)),0))","v":0},{"$f":"IF(E1367<1+$B1451,0,IF(E1367<'1 Données d''entrée'!$C$334+'1 Données d''entrée'!$C$333+1+$B1451,'1 Données d''entrée'!$C$332*($G1445-SUM($C1452:E1452)),0))","v":0},{"$f":"IF(F1367<1+$B1451,0,IF(F1367<'1 Données d''entrée'!$C$334+'1 Données d''entrée'!$C$333+1+$B1451,'1 Données d''entrée'!$C$332*($G1445-SUM($C1452:F1452)),0))","v":0},{"$f":"IF(G1367<1+$B1451,0,IF(G1367<'1 Données d''entrée'!$C$334+'1 Données d''entrée'!$C$333+1+$B1451,'1 Données d''entrée'!$C$332*($G1445-SUM($C1452:G1452)),0))","v":0},{"$f":"IF(H1367<1+$B1451,0,IF(H1367<'1 Données d''entrée'!$C$334+'1 Données d''entrée'!$C$333+1+$B1451,'1 Données d''entrée'!$C$332*($G1445-SUM($C1452:H1452)),0))","v":0},{"$f":"IF(I1367<1+$B1451,0,IF(I1367<'1 Données d''entrée'!$C$334+'1 Données d''entrée'!$C$333+1+$B1451,'1 Données d''entrée'!$C$332*($G1445-SUM($C1452:I1452)),0))","v":0},{"$f":"IF(J1367<1+$B1451,0,IF(J1367<'1 Données d''entrée'!$C$334+'1 Données d''entrée'!$C$333+1+$B1451,'1 Données d''entrée'!$C$332*($G1445-SUM($C1452:J1452)),0))","v":0},{"$f":"IF(K1367<1+$B1451,0,IF(K1367<'1 Données d''entrée'!$C$334+'1 Données d''entrée'!$C$333+1+$B1451,'1 Données d''entrée'!$C$332*($G1445-SUM($C1452:K1452)),0))","v":0},{"$f":"IF(L1367<1+$B1451,0,IF(L1367<'1 Données d''entrée'!$C$334+'1 Données d''entrée'!$C$333+1+$B1451,'1 Données d''entrée'!$C$332*($G1445-SUM($C1452:L1452)),0))","v":0},{"$f":"IF(M1367<1+$B1451,0,IF(M1367<'1 Données d''entrée'!$C$334+'1 Données d''entrée'!$C$333+1+$B1451,'1 Données d''entrée'!$C$332*($G1445-SUM($C1452:M1452)),0))","v":0},{"$f":"IF(N1367<1+$B1451,0,IF(N1367<'1 Données d''entrée'!$C$334+'1 Données d''entrée'!$C$333+1+$B1451,'1 Données d''entrée'!$C$332*($G1445-SUM($C1452:N1452)),0))","v":0},{"$f":"IF(O1367<1+$B1451,0,IF(O1367<'1 Données d''entrée'!$C$334+'1 Données d''entrée'!$C$333+1+$B1451,'1 Données d''entrée'!$C$332*($G1445-SUM($C1452:O1452)),0))","v":0},{"$f":"IF(P1367<1+$B1451,0,IF(P1367<'1 Données d''entrée'!$C$334+'1 Données d''entrée'!$C$333+1+$B1451,'1 Données d''entrée'!$C$332*($G1445-SUM($C1452:P1452)),0))","v":0},{"$f":"IF(Q1367<1+$B1451,0,IF(Q1367<'1 Données d''entrée'!$C$334+'1 Données d''entrée'!$C$333+1+$B1451,'1 Données d''entrée'!$C$332*($G1445-SUM($C1452:Q1452)),0))","v":0},{"$f":"IF(R1367<1+$B1451,0,IF(R1367<'1 Données d''entrée'!$C$334+'1 Données d''entrée'!$C$333+1+$B1451,'1 Données d''entrée'!$C$332*($G1445-SUM($C1452:R1452)),0))","v":0},{"$f":"IF(S1367<1+$B1451,0,IF(S1367<'1 Données d''entrée'!$C$334+'1 Données d''entrée'!$C$333+1+$B1451,'1 Données d''entrée'!$C$332*($G1445-SUM($C1452:S1452)),0))","v":0},{"$f":"IF(T1367<1+$B1451,0,IF(T1367<'1 Données d''entrée'!$C$334+'1 Données d''entrée'!$C$333+1+$B1451,'1 Données d''entrée'!$C$332*($G1445-SUM($C1452:T1452)),0))","v":0},{"$f":"IF(U1367<1+$B1451,0,IF(U1367<'1 Données d''entrée'!$C$334+'1 Données d''entrée'!$C$333+1+$B1451,'1 Données d''entrée'!$C$332*($G1445-SUM($C1452:U1452)),0))","v":0}]
["Paiement d'intêrets",6,0,{"$f":"IF(C1367<1+$B1452,0,IF(C1367<'1 Données d''entrée'!$C$334+'1 Données d''entrée'!$C$333+1+$B1452,'1 Données d''entrée'!$C$332*($H1445-SUM($C1453:C1453)),0))","v":0},{"$f":"IF(D1367<1+$B1452,0,IF(D1367<'1 Données d''entrée'!$C$334+'1 Données d''entrée'!$C$333+1+$B1452,'1 Données d''entrée'!$C$332*($H1445-SUM($C1453:D1453)),0))","v":0},{"$f":"IF(E1367<1+$B1452,0,IF(E1367<'1 Données d''entrée'!$C$334+'1 Données d''entrée'!$C$333+1+$B1452,'1 Données d''entrée'!$C$332*($H1445-SUM($C1453:E1453)),0))","v":0},{"$f":"IF(F1367<1+$B1452,0,IF(F1367<'1 Données d''entrée'!$C$334+'1 Données d''entrée'!$C$333+1+$B1452,'1 Données d''entrée'!$C$332*($H1445-SUM($C1453:F1453)),0))","v":0},{"$f":"IF(G1367<1+$B1452,0,IF(G1367<'1 Données d''entrée'!$C$334+'1 Données d''entrée'!$C$333+1+$B1452,'1 Données d''entrée'!$C$332*($H1445-SUM($C1453:G1453)),0))","v":0},{"$f":"IF(H1367<1+$B1452,0,IF(H1367<'1 Données d''entrée'!$C$334+'1 Données d''entrée'!$C$333+1+$B1452,'1 Données d''entrée'!$C$332*($H1445-SUM($C1453:H1453)),0))","v":0},{"$f":"IF(I1367<1+$B1452,0,IF(I1367<'1 Données d''entrée'!$C$334+'1 Données d''entrée'!$C$333+1+$B1452,'1 Données d''entrée'!$C$332*($H1445-SUM($C1453:I1453)),0))","v":0},{"$f":"IF(J1367<1+$B1452,0,IF(J1367<'1 Données d''entrée'!$C$334+'1 Données d''entrée'!$C$333+1+$B1452,'1 Données d''entrée'!$C$332*($H1445-SUM($C1453:J1453)),0))","v":0},{"$f":"IF(K1367<1+$B1452,0,IF(K1367<'1 Données d''entrée'!$C$334+'1 Données d''entrée'!$C$333+1+$B1452,'1 Données d''entrée'!$C$332*($H1445-SUM($C1453:K1453)),0))","v":0},{"$f":"IF(L1367<1+$B1452,0,IF(L1367<'1 Données d''entrée'!$C$334+'1 Données d''entrée'!$C$333+1+$B1452,'1 Données d''entrée'!$C$332*($H1445-SUM($C1453:L1453)),0))","v":0},{"$f":"IF(M1367<1+$B1452,0,IF(M1367<'1 Données d''entrée'!$C$334+'1 Données d''entrée'!$C$333+1+$B1452,'1 Données d''entrée'!$C$332*($H1445-SUM($C1453:M1453)),0))","v":0},{"$f":"IF(N1367<1+$B1452,0,IF(N1367<'1 Données d''entrée'!$C$334+'1 Données d''entrée'!$C$333+1+$B1452,'1 Données d''entrée'!$C$332*($H1445-SUM($C1453:N1453)),0))","v":0},{"$f":"IF(O1367<1+$B1452,0,IF(O1367<'1 Données d''entrée'!$C$334+'1 Données d''entrée'!$C$333+1+$B1452,'1 Données d''entrée'!$C$332*($H1445-SUM($C1453:O1453)),0))","v":0},{"$f":"IF(P1367<1+$B1452,0,IF(P1367<'1 Données d''entrée'!$C$334+'1 Données d''entrée'!$C$333+1+$B1452,'1 Données d''entrée'!$C$332*($H1445-SUM($C1453:P1453)),0))","v":0},{"$f":"IF(Q1367<1+$B1452,0,IF(Q1367<'1 Données d''entrée'!$C$334+'1 Données d''entrée'!$C$333+1+$B1452,'1 Données d''entrée'!$C$332*($H1445-SUM($C1453:Q1453)),0))","v":0},{"$f":"IF(R1367<1+$B1452,0,IF(R1367<'1 Données d''entrée'!$C$334+'1 Données d''entrée'!$C$333+1+$B1452,'1 Données d''entrée'!$C$332*($H1445-SUM($C1453:R1453)),0))","v":0},{"$f":"IF(S1367<1+$B1452,0,IF(S1367<'1 Données d''entrée'!$C$334+'1 Données d''entrée'!$C$333+1+$B1452,'1 Données d''entrée'!$C$332*($H1445-SUM($C1453:S1453)),0))","v":0},{"$f":"IF(T1367<1+$B1452,0,IF(T1367<'1 Données d''entrée'!$C$334+'1 Données d''entrée'!$C$333+1+$B1452,'1 Données d''entrée'!$C$332*($H1445-SUM($C1453:T1453)),0))","v":0},{"$f":"IF(U1367<1+$B1452,0,IF(U1367<'1 Données d''entrée'!$C$334+'1 Données d''entrée'!$C$333+1+$B1452,'1 Données d''entrée'!$C$332*($H1445-SUM($C1453:U1453)),0))","v":0}]
["Paiement d'intêrets",7,0,{"$f":"IF(C1367<1+$B1453,0,IF(C1367<'1 Données d''entrée'!$C$334+'1 Données d''entrée'!$C$333+1+$B1453,'1 Données d''entrée'!$C$332*($I1445-SUM($C1454:C1454)),0))","v":0},{"$f":"IF(D1367<1+$B1453,0,IF(D1367<'1 Données d''entrée'!$C$334+'1 Données d''entrée'!$C$333+1+$B1453,'1 Données d''entrée'!$C$332*($I1445-SUM($C1454:D1454)),0))","v":0},{"$f":"IF(E1367<1+$B1453,0,IF(E1367<'1 Données d''entrée'!$C$334+'1 Données d''entrée'!$C$333+1+$B1453,'1 Données d''entrée'!$C$332*($I1445-SUM($C1454:E1454)),0))","v":0},{"$f":"IF(F1367<1+$B1453,0,IF(F1367<'1 Données d''entrée'!$C$334+'1 Données d''entrée'!$C$333+1+$B1453,'1 Données d''entrée'!$C$332*($I1445-SUM($C1454:F1454)),0))","v":0},{"$f":"IF(G1367<1+$B1453,0,IF(G1367<'1 Données d''entrée'!$C$334+'1 Données d''entrée'!$C$333+1+$B1453,'1 Données d''entrée'!$C$332*($I1445-SUM($C1454:G1454)),0))","v":0},{"$f":"IF(H1367<1+$B1453,0,IF(H1367<'1 Données d''entrée'!$C$334+'1 Données d''entrée'!$C$333+1+$B1453,'1 Données d''entrée'!$C$332*($I1445-SUM($C1454:H1454)),0))","v":0},{"$f":"IF(I1367<1+$B1453,0,IF(I1367<'1 Données d''entrée'!$C$334+'1 Données d''entrée'!$C$333+1+$B1453,'1 Données d''entrée'!$C$332*($I1445-SUM($C1454:I1454)),0))","v":0},{"$f":"IF(J1367<1+$B1453,0,IF(J1367<'1 Données d''entrée'!$C$334+'1 Données d''entrée'!$C$333+1+$B1453,'1 Données d''entrée'!$C$332*($I1445-SUM($C1454:J1454)),0))","v":0},{"$f":"IF(K1367<1+$B1453,0,IF(K1367<'1 Données d''entrée'!$C$334+'1 Données d''entrée'!$C$333+1+$B1453,'1 Données d''entrée'!$C$332*($I1445-SUM($C1454:K1454)),0))","v":0},{"$f":"IF(L1367<1+$B1453,0,IF(L1367<'1 Données d''entrée'!$C$334+'1 Données d''entrée'!$C$333+1+$B1453,'1 Données d''entrée'!$C$332*($I1445-SUM($C1454:L1454)),0))","v":0},{"$f":"IF(M1367<1+$B1453,0,IF(M1367<'1 Données d''entrée'!$C$334+'1 Données d''entrée'!$C$333+1+$B1453,'1 Données d''entrée'!$C$332*($I1445-SUM($C1454:M1454)),0))","v":0},{"$f":"IF(N1367<1+$B1453,0,IF(N1367<'1 Données d''entrée'!$C$334+'1 Données d''entrée'!$C$333+1+$B1453,'1 Données d''entrée'!$C$332*($I1445-SUM($C1454:N1454)),0))","v":0},{"$f":"IF(O1367<1+$B1453,0,IF(O1367<'1 Données d''entrée'!$C$334+'1 Données d''entrée'!$C$333+1+$B1453,'1 Données d''entrée'!$C$332*($I1445-SUM($C1454:O1454)),0))","v":0},{"$f":"IF(P1367<1+$B1453,0,IF(P1367<'1 Données d''entrée'!$C$334+'1 Données d''entrée'!$C$333+1+$B1453,'1 Données d''entrée'!$C$332*($I1445-SUM($C1454:P1454)),0))","v":0},{"$f":"IF(Q1367<1+$B1453,0,IF(Q1367<'1 Données d''entrée'!$C$334+'1 Données d''entrée'!$C$333+1+$B1453,'1 Données d''entrée'!$C$332*($I1445-SUM($C1454:Q1454)),0))","v":0},{"$f":"IF(R1367<1+$B1453,0,IF(R1367<'1 Données d''entrée'!$C$334+'1 Données d''entrée'!$C$333+1+$B1453,'1 Données d''entrée'!$C$332*($I1445-SUM($C1454:R1454)),0))","v":0},{"$f":"IF(S1367<1+$B1453,0,IF(S1367<'1 Données d''entrée'!$C$334+'1 Données d''entrée'!$C$333+1+$B1453,'1 Données d''entrée'!$C$332*($I1445-SUM($C1454:S1454)),0))","v":0},{"$f":"IF(T1367<1+$B1453,0,IF(T1367<'1 Données d''entrée'!$C$334+'1 Données d''entrée'!$C$333+1+$B1453,'1 Données d''entrée'!$C$332*($I1445-SUM($C1454:T1454)),0))","v":0},{"$f":"IF(U1367<1+$B1453,0,IF(U1367<'1 Données d''entrée'!$C$334+'1 Données d''entrée'!$C$333+1+$B1453,'1 Données d''entrée'!$C$332*($I1445-SUM($C1454:U1454)),0))","v":0}]
["Paiement d'intêrets",8,0,{"$f":"IF(C1367<1+$B1454,0,IF(C1367<'1 Données d''entrée'!$C$334+'1 Données d''entrée'!$C$333+1+$B1454,'1 Données d''entrée'!$C$332*($J1445-SUM($C1455:C1455)),0))","v":0},{"$f":"IF(D1367<1+$B1454,0,IF(D1367<'1 Données d''entrée'!$C$334+'1 Données d''entrée'!$C$333+1+$B1454,'1 Données d''entrée'!$C$332*($J1445-SUM($C1455:D1455)),0))","v":0},{"$f":"IF(E1367<1+$B1454,0,IF(E1367<'1 Données d''entrée'!$C$334+'1 Données d''entrée'!$C$333+1+$B1454,'1 Données d''entrée'!$C$332*($J1445-SUM($C1455:E1455)),0))","v":0},{"$f":"IF(F1367<1+$B1454,0,IF(F1367<'1 Données d''entrée'!$C$334+'1 Données d''entrée'!$C$333+1+$B1454,'1 Données d''entrée'!$C$332*($J1445-SUM($C1455:F1455)),0))","v":0},{"$f":"IF(G1367<1+$B1454,0,IF(G1367<'1 Données d''entrée'!$C$334+'1 Données d''entrée'!$C$333+1+$B1454,'1 Données d''entrée'!$C$332*($J1445-SUM($C1455:G1455)),0))","v":0},{"$f":"IF(H1367<1+$B1454,0,IF(H1367<'1 Données d''entrée'!$C$334+'1 Données d''entrée'!$C$333+1+$B1454,'1 Données d''entrée'!$C$332*($J1445-SUM($C1455:H1455)),0))","v":0},{"$f":"IF(I1367<1+$B1454,0,IF(I1367<'1 Données d''entrée'!$C$334+'1 Données d''entrée'!$C$333+1+$B1454,'1 Données d''entrée'!$C$332*($J1445-SUM($C1455:I1455)),0))","v":0},{"$f":"IF(J1367<1+$B1454,0,IF(J1367<'1 Données d''entrée'!$C$334+'1 Données d''entrée'!$C$333+1+$B1454,'1 Données d''entrée'!$C$332*($J1445-SUM($C1455:J1455)),0))","v":0},{"$f":"IF(K1367<1+$B1454,0,IF(K1367<'1 Données d''entrée'!$C$334+'1 Données d''entrée'!$C$333+1+$B1454,'1 Données d''entrée'!$C$332*($J1445-SUM($C1455:K1455)),0))","v":0},{"$f":"IF(L1367<1+$B1454,0,IF(L1367<'1 Données d''entrée'!$C$334+'1 Données d''entrée'!$C$333+1+$B1454,'1 Données d''entrée'!$C$332*($J1445-SUM($C1455:L1455)),0))","v":0},{"$f":"IF(M1367<1+$B1454,0,IF(M1367<'1 Données d''entrée'!$C$334+'1 Données d''entrée'!$C$333+1+$B1454,'1 Données d''entrée'!$C$332*($J1445-SUM($C1455:M1455)),0))","v":0},{"$f":"IF(N1367<1+$B1454,0,IF(N1367<'1 Données d''entrée'!$C$334+'1 Données d''entrée'!$C$333+1+$B1454,'1 Données d''entrée'!$C$332*($J1445-SUM($C1455:N1455)),0))","v":0},{"$f":"IF(O1367<1+$B1454,0,IF(O1367<'1 Données d''entrée'!$C$334+'1 Données d''entrée'!$C$333+1+$B1454,'1 Données d''entrée'!$C$332*($J1445-SUM($C1455:O1455)),0))","v":0},{"$f":"IF(P1367<1+$B1454,0,IF(P1367<'1 Données d''entrée'!$C$334+'1 Données d''entrée'!$C$333+1+$B1454,'1 Données d''entrée'!$C$332*($J1445-SUM($C1455:P1455)),0))","v":0},{"$f":"IF(Q1367<1+$B1454,0,IF(Q1367<'1 Données d''entrée'!$C$334+'1 Données d''entrée'!$C$333+1+$B1454,'1 Données d''entrée'!$C$332*($J1445-SUM($C1455:Q1455)),0))","v":0},{"$f":"IF(R1367<1+$B1454,0,IF(R1367<'1 Données d''entrée'!$C$334+'1 Données d''entrée'!$C$333+1+$B1454,'1 Données d''entrée'!$C$332*($J1445-SUM($C1455:R1455)),0))","v":0},{"$f":"IF(S1367<1+$B1454,0,IF(S1367<'1 Données d''entrée'!$C$334+'1 Données d''entrée'!$C$333+1+$B1454,'1 Données d''entrée'!$C$332*($J1445-SUM($C1455:S1455)),0))","v":0},{"$f":"IF(T1367<1+$B1454,0,IF(T1367<'1 Données d''entrée'!$C$334+'1 Données d''entrée'!$C$333+1+$B1454,'1 Données d''entrée'!$C$332*($J1445-SUM($C1455:T1455)),0))","v":0},{"$f":"IF(U1367<1+$B1454,0,IF(U1367<'1 Données d''entrée'!$C$334+'1 Données d''entrée'!$C$333+1+$B1454,'1 Données d''entrée'!$C$332*($J1445-SUM($C1455:U1455)),0))","v":0}]
["Paiement d'intêrets",9,0,{"$f":"IF(C1367<1+$B1455,0,IF(C1367<'1 Données d''entrée'!$C$334+'1 Données d''entrée'!$C$333+1+$B1455,'1 Données d''entrée'!$C$332*($K1445-SUM($C1456:C1456)),0))","v":0},{"$f":"IF(D1367<1+$B1455,0,IF(D1367<'1 Données d''entrée'!$C$334+'1 Données d''entrée'!$C$333+1+$B1455,'1 Données d''entrée'!$C$332*($K1445-SUM($C1456:D1456)),0))","v":0},{"$f":"IF(E1367<1+$B1455,0,IF(E1367<'1 Données d''entrée'!$C$334+'1 Données d''entrée'!$C$333+1+$B1455,'1 Données d''entrée'!$C$332*($K1445-SUM($C1456:E1456)),0))","v":0},{"$f":"IF(F1367<1+$B1455,0,IF(F1367<'1 Données d''entrée'!$C$334+'1 Données d''entrée'!$C$333+1+$B1455,'1 Données d''entrée'!$C$332*($K1445-SUM($C1456:F1456)),0))","v":0},{"$f":"IF(G1367<1+$B1455,0,IF(G1367<'1 Données d''entrée'!$C$334+'1 Données d''entrée'!$C$333+1+$B1455,'1 Données d''entrée'!$C$332*($K1445-SUM($C1456:G1456)),0))","v":0},{"$f":"IF(H1367<1+$B1455,0,IF(H1367<'1 Données d''entrée'!$C$334+'1 Données d''entrée'!$C$333+1+$B1455,'1 Données d''entrée'!$C$332*($K1445-SUM($C1456:H1456)),0))","v":0},{"$f":"IF(I1367<1+$B1455,0,IF(I1367<'1 Données d''entrée'!$C$334+'1 Données d''entrée'!$C$333+1+$B1455,'1 Données d''entrée'!$C$332*($K1445-SUM($C1456:I1456)),0))","v":0},{"$f":"IF(J1367<1+$B1455,0,IF(J1367<'1 Données d''entrée'!$C$334+'1 Données d''entrée'!$C$333+1+$B1455,'1 Données d''entrée'!$C$332*($K1445-SUM($C1456:J1456)),0))","v":0},{"$f":"IF(K1367<1+$B1455,0,IF(K1367<'1 Données d''entrée'!$C$334+'1 Données d''entrée'!$C$333+1+$B1455,'1 Données d''entrée'!$C$332*($K1445-SUM($C1456:K1456)),0))","v":0},{"$f":"IF(L1367<1+$B1455,0,IF(L1367<'1 Données d''entrée'!$C$334+'1 Données d''entrée'!$C$333+1+$B1455,'1 Données d''entrée'!$C$332*($K1445-SUM($C1456:L1456)),0))","v":0},{"$f":"IF(M1367<1+$B1455,0,IF(M1367<'1 Données d''entrée'!$C$334+'1 Données d''entrée'!$C$333+1+$B1455,'1 Données d''entrée'!$C$332*($K1445-SUM($C1456:M1456)),0))","v":0},{"$f":"IF(N1367<1+$B1455,0,IF(N1367<'1 Données d''entrée'!$C$334+'1 Données d''entrée'!$C$333+1+$B1455,'1 Données d''entrée'!$C$332*($K1445-SUM($C1456:N1456)),0))","v":0},{"$f":"IF(O1367<1+$B1455,0,IF(O1367<'1 Données d''entrée'!$C$334+'1 Données d''entrée'!$C$333+1+$B1455,'1 Données d''entrée'!$C$332*($K1445-SUM($C1456:O1456)),0))","v":0},{"$f":"IF(P1367<1+$B1455,0,IF(P1367<'1 Données d''entrée'!$C$334+'1 Données d''entrée'!$C$333+1+$B1455,'1 Données d''entrée'!$C$332*($K1445-SUM($C1456:P1456)),0))","v":0},{"$f":"IF(Q1367<1+$B1455,0,IF(Q1367<'1 Données d''entrée'!$C$334+'1 Données d''entrée'!$C$333+1+$B1455,'1 Données d''entrée'!$C$332*($K1445-SUM($C1456:Q1456)),0))","v":0},{"$f":"IF(R1367<1+$B1455,0,IF(R1367<'1 Données d''entrée'!$C$334+'1 Données d''entrée'!$C$333+1+$B1455,'1 Données d''entrée'!$C$332*($K1445-SUM($C1456:R1456)),0))","v":0},{"$f":"IF(S1367<1+$B1455,0,IF(S1367<'1 Données d''entrée'!$C$334+'1 Données d''entrée'!$C$333+1+$B1455,'1 Données d''entrée'!$C$332*($K1445-SUM($C1456:S1456)),0))","v":0},{"$f":"IF(T1367<1+$B1455,0,IF(T1367<'1 Données d''entrée'!$C$334+'1 Données d''entrée'!$C$333+1+$B1455,'1 Données d''entrée'!$C$332*($K1445-SUM($C1456:T1456)),0))","v":0},{"$f":"IF(U1367<1+$B1455,0,IF(U1367<'1 Données d''entrée'!$C$334+'1 Données d''entrée'!$C$333+1+$B1455,'1 Données d''entrée'!$C$332*($K1445-SUM($C1456:U1456)),0))","v":0}]
["Paiement d'intêrets",10,0,{"$f":"IF(C1367<1+$B1456,0,IF(C1367<'1 Données d''entrée'!$C$334+'1 Données d''entrée'!$C$333+1+$B1456,'1 Données d''entrée'!$C$332*($L1445-SUM($C1457:C1457)),0))","v":0},{"$f":"IF(D1367<1+$B1456,0,IF(D1367<'1 Données d''entrée'!$C$334+'1 Données d''entrée'!$C$333+1+$B1456,'1 Données d''entrée'!$C$332*($L1445-SUM($C1457:D1457)),0))","v":0},{"$f":"IF(E1367<1+$B1456,0,IF(E1367<'1 Données d''entrée'!$C$334+'1 Données d''entrée'!$C$333+1+$B1456,'1 Données d''entrée'!$C$332*($L1445-SUM($C1457:E1457)),0))","v":0},{"$f":"IF(F1367<1+$B1456,0,IF(F1367<'1 Données d''entrée'!$C$334+'1 Données d''entrée'!$C$333+1+$B1456,'1 Données d''entrée'!$C$332*($L1445-SUM($C1457:F1457)),0))","v":0},{"$f":"IF(G1367<1+$B1456,0,IF(G1367<'1 Données d''entrée'!$C$334+'1 Données d''entrée'!$C$333+1+$B1456,'1 Données d''entrée'!$C$332*($L1445-SUM($C1457:G1457)),0))","v":0},{"$f":"IF(H1367<1+$B1456,0,IF(H1367<'1 Données d''entrée'!$C$334+'1 Données d''entrée'!$C$333+1+$B1456,'1 Données d''entrée'!$C$332*($L1445-SUM($C1457:H1457)),0))","v":0},{"$f":"IF(I1367<1+$B1456,0,IF(I1367<'1 Données d''entrée'!$C$334+'1 Données d''entrée'!$C$333+1+$B1456,'1 Données d''entrée'!$C$332*($L1445-SUM($C1457:I1457)),0))","v":0},{"$f":"IF(J1367<1+$B1456,0,IF(J1367<'1 Données d''entrée'!$C$334+'1 Données d''entrée'!$C$333+1+$B1456,'1 Données d''entrée'!$C$332*($L1445-SUM($C1457:J1457)),0))","v":0},{"$f":"IF(K1367<1+$B1456,0,IF(K1367<'1 Données d''entrée'!$C$334+'1 Données d''entrée'!$C$333+1+$B1456,'1 Données d''entrée'!$C$332*($L1445-SUM($C1457:K1457)),0))","v":0},{"$f":"IF(L1367<1+$B1456,0,IF(L1367<'1 Données d''entrée'!$C$334+'1 Données d''entrée'!$C$333+1+$B1456,'1 Données d''entrée'!$C$332*($L1445-SUM($C1457:L1457)),0))","v":0},{"$f":"IF(M1367<1+$B1456,0,IF(M1367<'1 Données d''entrée'!$C$334+'1 Données d''entrée'!$C$333+1+$B1456,'1 Données d''entrée'!$C$332*($L1445-SUM($C1457:M1457)),0))","v":0},{"$f":"IF(N1367<1+$B1456,0,IF(N1367<'1 Données d''entrée'!$C$334+'1 Données d''entrée'!$C$333+1+$B1456,'1 Données d''entrée'!$C$332*($L1445-SUM($C1457:N1457)),0))","v":0},{"$f":"IF(O1367<1+$B1456,0,IF(O1367<'1 Données d''entrée'!$C$334+'1 Données d''entrée'!$C$333+1+$B1456,'1 Données d''entrée'!$C$332*($L1445-SUM($C1457:O1457)),0))","v":0},{"$f":"IF(P1367<1+$B1456,0,IF(P1367<'1 Données d''entrée'!$C$334+'1 Données d''entrée'!$C$333+1+$B1456,'1 Données d''entrée'!$C$332*($L1445-SUM($C1457:P1457)),0))","v":0},{"$f":"IF(Q1367<1+$B1456,0,IF(Q1367<'1 Données d''entrée'!$C$334+'1 Données d''entrée'!$C$333+1+$B1456,'1 Données d''entrée'!$C$332*($L1445-SUM($C1457:Q1457)),0))","v":0},{"$f":"IF(R1367<1+$B1456,0,IF(R1367<'1 Données d''entrée'!$C$334+'1 Données d''entrée'!$C$333+1+$B1456,'1 Données d''entrée'!$C$332*($L1445-SUM($C1457:R1457)),0))","v":0},{"$f":"IF(S1367<1+$B1456,0,IF(S1367<'1 Données d''entrée'!$C$334+'1 Données d''entrée'!$C$333+1+$B1456,'1 Données d''entrée'!$C$332*($L1445-SUM($C1457:S1457)),0))","v":0},{"$f":"IF(T1367<1+$B1456,0,IF(T1367<'1 Données d''entrée'!$C$334+'1 Données d''entrée'!$C$333+1+$B1456,'1 Données d''entrée'!$C$332*($L1445-SUM($C1457:T1457)),0))","v":0},{"$f":"IF(U1367<1+$B1456,0,IF(U1367<'1 Données d''entrée'!$C$334+'1 Données d''entrée'!$C$333+1+$B1456,'1 Données d''entrée'!$C$332*($L1445-SUM($C1457:U1457)),0))","v":0}]
[]
[null,"Période",1,2,3,4,5,6,7,8,9,10,11,12,13,14,15,16,17,18,19,20]
["Prêt bancaire - Option 3: Remboursement vers l'annuité constante",{"$f":"'1 Données d''entrée'!$B$344","v":0}]
["Prêt(s) nouveau(x)",null,{"$f":"IF(C1410<0,C1410*(-1)*$B1472+C1410*(-1)*$B1472*'1 Données d''entrée'!$C$338,0)","v":{"$error":"#DIV/0!"}},{"$f":"IF(D1410<0,D1410*(-1)*$B1472+D1410*(-1)*$B1472*'1 Données d''entrée'!$C$338,0)","v":{"$error":"#DIV/0!"}},{"$f":"IF(E1410<0,E1410*(-1)*$B1472+E1410*(-1)*$B1472*'1 Données d''entrée'!$C$338,0)","v":{"$error":"#DIV/0!"}},{"$f":"IF(F1410<0,F1410*(-1)*$B1472+F1410*(-1)*$B1472*'1 Données d''entrée'!$C$338,0)","v":{"$error":"#DIV/0!"}},{"$f":"IF(G1410<0,G1410*(-1)*$B1472+G1410*(-1)*$B1472*'1 Données d''entrée'!$C$338,0)","v":{"$error":"#DIV/0!"}},{"$f":"IF(H1410<0,H1410*(-1)*$B1472+H1410*(-1)*$B1472*'1 Données d''entrée'!$C$338,0)","v":{"$error":"#DIV/0!"}},{"$f":"IF(I1410<0,I1410*(-1)*$B1472+I1410*(-1)*$B1472*'1 Données d''entrée'!$C$338,0)","v":{"$error":"#DIV/0!"}},{"$f":"IF(J1410<0,J1410*(-1)*$B1472+J1410*(-1)*$B1472*'1 Données d''entrée'!$C$338,0)","v":{"$error":"#DIV/0!"}},{"$f":"IF(K1410<0,K1410*(-1)*$B1472+K1410*(-1)*$B1472*'1 Données d''entrée'!$C$338,0)","v":{"$error":"#DIV/0!"}},{"$f":"IF(L1410<0,L1410*(-1)*$B1472+L1410*(-1)*$B1472*'1 Données d''entrée'!$C$338,0)","v":{"$error":"#DIV/0!"}},{"$f":"IF(M1410<0,M1410*(-1)*$B1472+M1410*(-1)*$B1472*'1 Données d''entrée'!$C$338,0)","v":{"$error":"#DIV/0!"}},{"$f":"IF(N1410<0,N1410*(-1)*$B1472+N1410*(-1)*$B1472*'1 Données d''entrée'!$C$338,0)","v":{"$error":"#DIV/0!"}},{"$f":"IF(O1410<0,O1410*(-1)*$B1472+O1410*(-1)*$B1472*'1 Données d''entrée'!$C$338,0)","v":{"$error":"#DIV/0!"}},{"$f":"IF(P1410<0,P1410*(-1)*$B1472+P1410*(-1)*$B1472*'1 Données d''entrée'!$C$338,0)","v":{"$error":"#DIV/0!"}},{"$f":"IF(Q1410<0,Q1410*(-1)*$B1472+Q1410*(-1)*$B1472*'1 Données d''entrée'!$C$338,0)","v":{"$error":"#DIV/0!"}},{"$f":"IF(R1410<0,R1410*(-1)*$B1472+R1410*(-1)*$B1472*'1 Données d''entrée'!$C$338,0)","v":{"$error":"#DIV/0!"}},{"$f":"IF(S1410<0,S1410*(-1)*$B1472+S1410*(-1)*$B1472*'1 Données d''entrée'!$C$338,0)","v":{"$error":"#DIV/0!"}},{"$f":"IF(T1410<0,T1410*(-1)*$B1472+T1410*(-1)*$B1472*'1 Données d''entrée'!$C$338,0)","v":{"$error":"#DIV/0!"}},{"$f":"IF(U1410<0,U1410*(-1)*$B1472+U1410*(-1)*$B1472*'1 Données d''entrée'!$C$338,0)","v":{"$error":"#DIV/0!"}},{"$f":"IF(V1410<0,V1410*(-1)*$B1472+V1410*(-1)*$B1472*'1 Données d''entrée'!$C$338,0)","v":{"$error":"#DIV/0!"}}]
[null,"Période de prêt nouveau"]
["Remboursement vers l'annuité constante",0,0,0,0,0,0,0,0,0,0,0,0,0,0,0,0,0,0,0,0,0]
[null,1,{"$f":"IF(C$54<'1 Données d''entrée'!$C$334+1+$B1476,0,IF(C$54<'1 Données d''entrée'!$C$333+'1 Données d''entrée'!$C$334+1+$B1476,$C$160*('1 Données d''entrée'!$C$332*(1+'1 Données d''entrée'!$C$332)^'1 Données d''entrée'!$C$333)/((1+'1 Données d''entrée'!$C$332)^'1 Données d''entrée'!$C$333-1),0))","v":0},{"$f":"IF(D1367<'1 Données d''entrée'!$C$334+1+$B1476,0,IF(D1367<'1 Données d''entrée'!$C$333+'1 Données d''entrée'!$C$334+1+$B1476,$C1473*('1 Données d''entrée'!$C$332*(1+'1 Données d''entrée'!$C$332)^'1 Données d''entrée'!$C$333)/((1+'1 Données d''entrée'!$C$332)^'1 Données d''entrée'!$C$333-1),0))","v":0},{"$f":"IF(E1367<'1 Données d''entrée'!$C$334+1+$B1476,0,IF(E1367<'1 Données d''entrée'!$C$333+'1 Données d''entrée'!$C$334+1+$B1476,$C1473*('1 Données d''entrée'!$C$332*(1+'1 Données d''entrée'!$C$332)^'1 Données d''entrée'!$C$333)/((1+'1 Données d''entrée'!$C$332)^'1 Données d''entrée'!$C$333-1),0))","v":0},{"$f":"IF(F1367<'1 Données d''entrée'!$C$334+1+$B1476,0,IF(F1367<'1 Données d''entrée'!$C$333+'1 Données d''entrée'!$C$334+1+$B1476,$C1473*('1 Données d''entrée'!$C$332*(1+'1 Données d''entrée'!$C$332)^'1 Données d''entrée'!$C$333)/((1+'1 Données d''entrée'!$C$332)^'1 Données d''entrée'!$C$333-1),0))","v":0},{"$f":"IF(G1367<'1 Données d''entrée'!$C$334+1+$B1476,0,IF(G1367<'1 Données d''entrée'!$C$333+'1 Données d''entrée'!$C$334+1+$B1476,$C1473*('1 Données d''entrée'!$C$332*(1+'1 Données d''entrée'!$C$332)^'1 Données d''entrée'!$C$333)/((1+'1 Données d''entrée'!$C$332)^'1 Données d''entrée'!$C$333-1),0))","v":0},{"$f":"IF(H1367<'1 Données d''entrée'!$C$334+1+$B1476,0,IF(H1367<'1 Données d''entrée'!$C$333+'1 Données d''entrée'!$C$334+1+$B1476,$C1473*('1 Données d''entrée'!$C$332*(1+'1 Données d''entrée'!$C$332)^'1 Données d''entrée'!$C$333)/((1+'1 Données d''entrée'!$C$332)^'1 Données d''entrée'!$C$333-1),0))","v":0},{"$f":"IF(I1367<'1 Données d''entrée'!$C$334+1+$B1476,0,IF(I1367<'1 Données d''entrée'!$C$333+'1 Données d''entrée'!$C$334+1+$B1476,$C1473*('1 Données d''entrée'!$C$332*(1+'1 Données d''entrée'!$C$332)^'1 Données d''entrée'!$C$333)/((1+'1 Données d''entrée'!$C$332)^'1 Données d''entrée'!$C$333-1),0))","v":0},{"$f":"IF(J1367<'1 Données d''entrée'!$C$334+1+$B1476,0,IF(J1367<'1 Données d''entrée'!$C$333+'1 Données d''entrée'!$C$334+1+$B1476,$C1473*('1 Données d''entrée'!$C$332*(1+'1 Données d''entrée'!$C$332)^'1 Données d''entrée'!$C$333)/((1+'1 Données d''entrée'!$C$332)^'1 Données d''entrée'!$C$333-1),0))","v":0},{"$f":"IF(K1367<'1 Données d''entrée'!$C$334+1+$B1476,0,IF(K1367<'1 Données d''entrée'!$C$333+'1 Données d''entrée'!$C$334+1+$B1476,$C1473*('1 Données d''entrée'!$C$332*(1+'1 Données d''entrée'!$C$332)^'1 Données d''entrée'!$C$333)/((1+'1 Données d''entrée'!$C$332)^'1 Données d''entrée'!$C$333-1),0))","v":0},{"$f":"IF(L1367<'1 Données d''entrée'!$C$334+1+$B1476,0,IF(L1367<'1 Données d''entrée'!$C$333+'1 Données d''entrée'!$C$334+1+$B1476,$C1473*('1 Données d''entrée'!$C$332*(1+'1 Données d''entrée'!$C$332)^'1 Données d''entrée'!$C$333)/((1+'1 Données d''entrée'!$C$332)^'1 Données d''entrée'!$C$333-1),0))","v":0},{"$f":"IF(M1367<'1 Données d''entrée'!$C$334+1+$B1476,0,IF(M1367<'1 Données d''entrée'!$C$333+'1 Données d''entrée'!$C$334+1+$B1476,$C1473*('1 Données d''entrée'!$C$332*(1+'1 Données d''entrée'!$C$332)^'1 Données d''entrée'!$C$333)/((1+'1 Données d''entrée'!$C$332)^'1 Données d''entrée'!$C$333-1),0))","v":0},{"$f":"IF(N1367<'1 Données d''entrée'!$C$334+1+$B1476,0,IF(N1367<'1 Données d''entrée'!$C$333+'1 Données d''entrée'!$C$334+1+$B1476,$C1473*('1 Données d''entrée'!$C$332*(1+'1 Données d''entrée'!$C$332)^'1 Données d''entrée'!$C$333)/((1+'1 Données d''entrée'!$C$332)^'1 Données d''entrée'!$C$333-1),0))","v":0},{"$f":"IF(O1367<'1 Données d''entrée'!$C$334+1+$B1476,0,IF(O1367<'1 Données d''entrée'!$C$333+'1 Données d''entrée'!$C$334+1+$B1476,$C1473*('1 Données d''entrée'!$C$332*(1+'1 Données d''entrée'!$C$332)^'1 Données d''entrée'!$C$333)/((1+'1 Données d''entrée'!$C$332)^'1 Données d''entrée'!$C$333-1),0))","v":0},{"$f":"IF(P1367<'1 Données d''entrée'!$C$334+1+$B1476,0,IF(P1367<'1 Données d''entrée'!$C$333+'1 Données d''entrée'!$C$334+1+$B1476,$C1473*('1 Données d''entrée'!$C$332*(1+'1 Données d''entrée'!$C$332)^'1 Données d''entrée'!$C$333)/((1+'1 Données d''entrée'!$C$332)^'1 Données d''entrée'!$C$333-1),0))","v":0},{"$f":"IF(Q1367<'1 Données d''entrée'!$C$334+1+$B1476,0,IF(Q1367<'1 Données d''entrée'!$C$333+'1 Données d''entrée'!$C$334+1+$B1476,$C1473*('1 Données d''entrée'!$C$332*(1+'1 Données d''entrée'!$C$332)^'1 Données d''entrée'!$C$333)/((1+'1 Données d''entrée'!$C$332)^'1 Données d''entrée'!$C$333-1),0))","v":0},{"$f":"IF(R1367<'1 Données d''entrée'!$C$334+1+$B1476,0,IF(R1367<'1 Données d''entrée'!$C$333+'1 Données d''entrée'!$C$334+1+$B1476,$C1473*('1 Données d''entrée'!$C$332*(1+'1 Données d''entrée'!$C$332)^'1 Données d''entrée'!$C$333)/((1+'1 Données d''entrée'!$C$332)^'1 Données d''entrée'!$C$333-1),0))","v":0},{"$f":"IF(S1367<'1 Données d''entrée'!$C$334+1+$B1476,0,IF(S1367<'1 Données d''entrée'!$C$333+'1 Données d''entrée'!$C$334+1+$B1476,$C1473*('1 Données d''entrée'!$C$332*(1+'1 Données d''entrée'!$C$332)^'1 Données d''entrée'!$C$333)/((1+'1 Données d''entrée'!$C$332)^'1 Données d''entrée'!$C$333-1),0))","v":0},{"$f":"IF(T1367<'1 Données d''entrée'!$C$334+1+$B1476,0,IF(T1367<'1 Données d''entrée'!$C$333+'1 Données d''entrée'!$C$334+1+$B1476,$C1473*('1 Données d''entrée'!$C$332*(1+'1 Données d''entrée'!$C$332)^'1 Données d''entrée'!$C$333)/((1+'1 Données d''entrée'!$C$332)^'1 Données d''entrée'!$C$333-1),0))","v":0},{"$f":"IF(U1367<'1 Données d''entrée'!$C$334+1+$B1476,0,IF(U1367<'1 Données d''entrée'!$C$333+'1 Données d''entrée'!$C$334+1+$B1476,$C1473*('1 Données d''entrée'!$C$332*(1+'1 Données d''entrée'!$C$332)^'1 Données d''entrée'!$C$333)/((1+'1 Données d''entrée'!$C$332)^'1 Données d''entrée'!$C$333-1),0))","v":0},{"$f":"IF(V1367<'1 Données d''entrée'!$C$334+1+$B1476,0,IF(V1367<'1 Données d''entrée'!$C$333+'1 Données d''entrée'!$C$334+1+$B1476,$C1473*('1 Données d''entrée'!$C$332*(1+'1 Données d''entrée'!$C$332)^'1 Données d''entrée'!$C$333)/((1+'1 Données d''entrée'!$C$332)^'1 Données d''entrée'!$C$333-1),0))","v":0}]
[null,2,{"$f":"IF(C$54<'1 Données d''entrée'!$C$334+1+$B1477,0,IF(C$54<'1 Données d''entrée'!$C$333+'1 Données d''entrée'!$C$334+1+$B1477,$D$160*('1 Données d''entrée'!$C$332*(1+'1 Données d''entrée'!$C$332)^'1 Données d''entrée'!$C$333)/((1+'1 Données d''entrée'!$C$332)^'1 Données d''entrée'!$C$333-1),0))","v":0},{"$f":"IF(D1367<'1 Données d''entrée'!$C$334+1+$B1477,0,IF(D1367<'1 Données d''entrée'!$C$333+'1 Données d''entrée'!$C$334+1+$B1477,$D1473*('1 Données d''entrée'!$C$332*(1+'1 Données d''entrée'!$C$332)^'1 Données d''entrée'!$C$333)/((1+'1 Données d''entrée'!$C$332)^'1 Données d''entrée'!$C$333-1),0))","v":0},{"$f":"IF(E1367<'1 Données d''entrée'!$C$334+1+$B1477,0,IF(E1367<'1 Données d''entrée'!$C$333+'1 Données d''entrée'!$C$334+1+$B1477,$D1473*('1 Données d''entrée'!$C$332*(1+'1 Données d''entrée'!$C$332)^'1 Données d''entrée'!$C$333)/((1+'1 Données d''entrée'!$C$332)^'1 Données d''entrée'!$C$333-1),0))","v":0},{"$f":"IF(F1367<'1 Données d''entrée'!$C$334+1+$B1477,0,IF(F1367<'1 Données d''entrée'!$C$333+'1 Données d''entrée'!$C$334+1+$B1477,$D1473*('1 Données d''entrée'!$C$332*(1+'1 Données d''entrée'!$C$332)^'1 Données d''entrée'!$C$333)/((1+'1 Données d''entrée'!$C$332)^'1 Données d''entrée'!$C$333-1),0))","v":0},{"$f":"IF(G1367<'1 Données d''entrée'!$C$334+1+$B1477,0,IF(G1367<'1 Données d''entrée'!$C$333+'1 Données d''entrée'!$C$334+1+$B1477,$D1473*('1 Données d''entrée'!$C$332*(1+'1 Données d''entrée'!$C$332)^'1 Données d''entrée'!$C$333)/((1+'1 Données d''entrée'!$C$332)^'1 Données d''entrée'!$C$333-1),0))","v":0},{"$f":"IF(H1367<'1 Données d''entrée'!$C$334+1+$B1477,0,IF(H1367<'1 Données d''entrée'!$C$333+'1 Données d''entrée'!$C$334+1+$B1477,$D1473*('1 Données d''entrée'!$C$332*(1+'1 Données d''entrée'!$C$332)^'1 Données d''entrée'!$C$333)/((1+'1 Données d''entrée'!$C$332)^'1 Données d''entrée'!$C$333-1),0))","v":0},{"$f":"IF(I1367<'1 Données d''entrée'!$C$334+1+$B1477,0,IF(I1367<'1 Données d''entrée'!$C$333+'1 Données d''entrée'!$C$334+1+$B1477,$D1473*('1 Données d''entrée'!$C$332*(1+'1 Données d''entrée'!$C$332)^'1 Données d''entrée'!$C$333)/((1+'1 Données d''entrée'!$C$332)^'1 Données d''entrée'!$C$333-1),0))","v":0},{"$f":"IF(J1367<'1 Données d''entrée'!$C$334+1+$B1477,0,IF(J1367<'1 Données d''entrée'!$C$333+'1 Données d''entrée'!$C$334+1+$B1477,$D1473*('1 Données d''entrée'!$C$332*(1+'1 Données d''entrée'!$C$332)^'1 Données d''entrée'!$C$333)/((1+'1 Données d''entrée'!$C$332)^'1 Données d''entrée'!$C$333-1),0))","v":0},{"$f":"IF(K1367<'1 Données d''entrée'!$C$334+1+$B1477,0,IF(K1367<'1 Données d''entrée'!$C$333+'1 Données d''entrée'!$C$334+1+$B1477,$D1473*('1 Données d''entrée'!$C$332*(1+'1 Données d''entrée'!$C$332)^'1 Données d''entrée'!$C$333)/((1+'1 Données d''entrée'!$C$332)^'1 Données d''entrée'!$C$333-1),0))","v":0},{"$f":"IF(L1367<'1 Données d''entrée'!$C$334+1+$B1477,0,IF(L1367<'1 Données d''entrée'!$C$333+'1 Données d''entrée'!$C$334+1+$B1477,$D1473*('1 Données d''entrée'!$C$332*(1+'1 Données d''entrée'!$C$332)^'1 Données d''entrée'!$C$333)/((1+'1 Données d''entrée'!$C$332)^'1 Données d''entrée'!$C$333-1),0))","v":0},{"$f":"IF(M1367<'1 Données d''entrée'!$C$334+1+$B1477,0,IF(M1367<'1 Données d''entrée'!$C$333+'1 Données d''entrée'!$C$334+1+$B1477,$D1473*('1 Données d''entrée'!$C$332*(1+'1 Données d''entrée'!$C$332)^'1 Données d''entrée'!$C$333)/((1+'1 Données d''entrée'!$C$332)^'1 Données d''entrée'!$C$333-1),0))","v":0},{"$f":"IF(N1367<'1 Données d''entrée'!$C$334+1+$B1477,0,IF(N1367<'1 Données d''entrée'!$C$333+'1 Données d''entrée'!$C$334+1+$B1477,$D1473*('1 Données d''entrée'!$C$332*(1+'1 Données d''entrée'!$C$332)^'1 Données d''entrée'!$C$333)/((1+'1 Données d''entrée'!$C$332)^'1 Données d''entrée'!$C$333-1),0))","v":0},{"$f":"IF(O1367<'1 Données d''entrée'!$C$334+1+$B1477,0,IF(O1367<'1 Données d''entrée'!$C$333+'1 Données d''entrée'!$C$334+1+$B1477,$D1473*('1 Données d''entrée'!$C$332*(1+'1 Données d''entrée'!$C$332)^'1 Données d''entrée'!$C$333)/((1+'1 Données d''entrée'!$C$332)^'1 Données d''entrée'!$C$333-1),0))","v":0},{"$f":"IF(P1367<'1 Données d''entrée'!$C$334+1+$B1477,0,IF(P1367<'1 Données d''entrée'!$C$333+'1 Données d''entrée'!$C$334+1+$B1477,$D1473*('1 Données d''entrée'!$C$332*(1+'1 Données d''entrée'!$C$332)^'1 Données d''entrée'!$C$333)/((1+'1 Données d''entrée'!$C$332)^'1 Données d''entrée'!$C$333-1),0))","v":0},{"$f":"IF(Q1367<'1 Données d''entrée'!$C$334+1+$B1477,0,IF(Q1367<'1 Données d''entrée'!$C$333+'1 Données d''entrée'!$C$334+1+$B1477,$D1473*('1 Données d''entrée'!$C$332*(1+'1 Données d''entrée'!$C$332)^'1 Données d''entrée'!$C$333)/((1+'1 Données d''entrée'!$C$332)^'1 Données d''entrée'!$C$333-1),0))","v":0},{"$f":"IF(R1367<'1 Données d''entrée'!$C$334+1+$B1477,0,IF(R1367<'1 Données d''entrée'!$C$333+'1 Données d''entrée'!$C$334+1+$B1477,$D1473*('1 Données d''entrée'!$C$332*(1+'1 Données d''entrée'!$C$332)^'1 Données d''entrée'!$C$333)/((1+'1 Données d''entrée'!$C$332)^'1 Données d''entrée'!$C$333-1),0))","v":0},{"$f":"IF(S1367<'1 Données d''entrée'!$C$334+1+$B1477,0,IF(S1367<'1 Données d''entrée'!$C$333+'1 Données d''entrée'!$C$334+1+$B1477,$D1473*('1 Données d''entrée'!$C$332*(1+'1 Données d''entrée'!$C$332)^'1 Données d''entrée'!$C$333)/((1+'1 Données d''entrée'!$C$332)^'1 Données d''entrée'!$C$333-1),0))","v":0},{"$f":"IF(T1367<'1 Données d''entrée'!$C$334+1+$B1477,0,IF(T1367<'1 Données d''entrée'!$C$333+'1 Données d''entrée'!$C$334+1+$B1477,$D1473*('1 Données d''entrée'!$C$332*(1+'1 Données d''entrée'!$C$332)^'1 Données d''entrée'!$C$333)/((1+'1 Données d''entrée'!$C$332)^'1 Données d''entrée'!$C$333-1),0))","v":0},{"$f":"IF(U1367<'1 Données d''entrée'!$C$334+1+$B1477,0,IF(U1367<'1 Données d''entrée'!$C$333+'1 Données d''entrée'!$C$334+1+$B1477,$D1473*('1 Données d''entrée'!$C$332*(1+'1 Données d''entrée'!$C$332)^'1 Données d''entrée'!$C$333)/((1+'1 Données d''entrée'!$C$332)^'1 Données d''entrée'!$C$333-1),0))","v":0},{"$f":"IF(V1367<'1 Données d''entrée'!$C$334+1+$B1477,0,IF(V1367<'1 Données d''entrée'!$C$333+'1 Données d''entrée'!$C$334+1+$B1477,$D1473*('1 Données d''entrée'!$C$332*(1+'1 Données d''entrée'!$C$332)^'1 Données d''entrée'!$C$333)/((1+'1 Données d''entrée'!$C$332)^'1 Données d''entrée'!$C$333-1),0))","v":0}]
[null,3,{"$f":"IF(C$54<'1 Données d''entrée'!$C$334+1+$B1478,0,IF(C$54<'1 Données d''entrée'!$C$333+'1 Données d''entrée'!$C$334+1+$B1478,$E$160*('1 Données d''entrée'!$C$332*(1+'1 Données d''entrée'!$C$332)^'1 Données d''entrée'!$C$333)/((1+'1 Données d''entrée'!$C$332)^'1 Données d''entrée'!$C$333-1),0))","v":0},{"$f":"IF(D1367<'1 Données d''entrée'!$C$334+1+$B1478,0,IF(D1367<'1 Données d''entrée'!$C$333+'1 Données d''entrée'!$C$334+1+$B1478,$E1473*('1 Données d''entrée'!$C$332*(1+'1 Données d''entrée'!$C$332)^'1 Données d''entrée'!$C$333)/((1+'1 Données d''entrée'!$C$332)^'1 Données d''entrée'!$C$333-1),0))","v":0},{"$f":"IF(E1367<'1 Données d''entrée'!$C$334+1+$B1478,0,IF(E1367<'1 Données d''entrée'!$C$333+'1 Données d''entrée'!$C$334+1+$B1478,$E1473*('1 Données d''entrée'!$C$332*(1+'1 Données d''entrée'!$C$332)^'1 Données d''entrée'!$C$333)/((1+'1 Données d''entrée'!$C$332)^'1 Données d''entrée'!$C$333-1),0))","v":0},{"$f":"IF(F1367<'1 Données d''entrée'!$C$334+1+$B1478,0,IF(F1367<'1 Données d''entrée'!$C$333+'1 Données d''entrée'!$C$334+1+$B1478,$E1473*('1 Données d''entrée'!$C$332*(1+'1 Données d''entrée'!$C$332)^'1 Données d''entrée'!$C$333)/((1+'1 Données d''entrée'!$C$332)^'1 Données d''entrée'!$C$333-1),0))","v":0},{"$f":"IF(G1367<'1 Données d''entrée'!$C$334+1+$B1478,0,IF(G1367<'1 Données d''entrée'!$C$333+'1 Données d''entrée'!$C$334+1+$B1478,$E1473*('1 Données d''entrée'!$C$332*(1+'1 Données d''entrée'!$C$332)^'1 Données d''entrée'!$C$333)/((1+'1 Données d''entrée'!$C$332)^'1 Données d''entrée'!$C$333-1),0))","v":0},{"$f":"IF(H1367<'1 Données d''entrée'!$C$334+1+$B1478,0,IF(H1367<'1 Données d''entrée'!$C$333+'1 Données d''entrée'!$C$334+1+$B1478,$E1473*('1 Données d''entrée'!$C$332*(1+'1 Données d''entrée'!$C$332)^'1 Données d''entrée'!$C$333)/((1+'1 Données d''entrée'!$C$332)^'1 Données d''entrée'!$C$333-1),0))","v":0},{"$f":"IF(I1367<'1 Données d''entrée'!$C$334+1+$B1478,0,IF(I1367<'1 Données d''entrée'!$C$333+'1 Données d''entrée'!$C$334+1+$B1478,$E1473*('1 Données d''entrée'!$C$332*(1+'1 Données d''entrée'!$C$332)^'1 Données d''entrée'!$C$333)/((1+'1 Données d''entrée'!$C$332)^'1 Données d''entrée'!$C$333-1),0))","v":0},{"$f":"IF(J1367<'1 Données d''entrée'!$C$334+1+$B1478,0,IF(J1367<'1 Données d''entrée'!$C$333+'1 Données d''entrée'!$C$334+1+$B1478,$E1473*('1 Données d''entrée'!$C$332*(1+'1 Données d''entrée'!$C$332)^'1 Données d''entrée'!$C$333)/((1+'1 Données d''entrée'!$C$332)^'1 Données d''entrée'!$C$333-1),0))","v":0},{"$f":"IF(K1367<'1 Données d''entrée'!$C$334+1+$B1478,0,IF(K1367<'1 Données d''entrée'!$C$333+'1 Données d''entrée'!$C$334+1+$B1478,$E1473*('1 Données d''entrée'!$C$332*(1+'1 Données d''entrée'!$C$332)^'1 Données d''entrée'!$C$333)/((1+'1 Données d''entrée'!$C$332)^'1 Données d''entrée'!$C$333-1),0))","v":0},{"$f":"IF(L1367<'1 Données d''entrée'!$C$334+1+$B1478,0,IF(L1367<'1 Données d''entrée'!$C$333+'1 Données d''entrée'!$C$334+1+$B1478,$E1473*('1 Données d''entrée'!$C$332*(1+'1 Données d''entrée'!$C$332)^'1 Données d''entrée'!$C$333)/((1+'1 Données d''entrée'!$C$332)^'1 Données d''entrée'!$C$333-1),0))","v":0},{"$f":"IF(M1367<'1 Données d''entrée'!$C$334+1+$B1478,0,IF(M1367<'1 Données d''entrée'!$C$333+'1 Données d''entrée'!$C$334+1+$B1478,$E1473*('1 Données d''entrée'!$C$332*(1+'1 Données d''entrée'!$C$332)^'1 Données d''entrée'!$C$333)/((1+'1 Données d''entrée'!$C$332)^'1 Données d''entrée'!$C$333-1),0))","v":0},{"$f":"IF(N1367<'1 Données d''entrée'!$C$334+1+$B1478,0,IF(N1367<'1 Données d''entrée'!$C$333+'1 Données d''entrée'!$C$334+1+$B1478,$E1473*('1 Données d''entrée'!$C$332*(1+'1 Données d''entrée'!$C$332)^'1 Données d''entrée'!$C$333)/((1+'1 Données d''entrée'!$C$332)^'1 Données d''entrée'!$C$333-1),0))","v":0},{"$f":"IF(O1367<'1 Données d''entrée'!$C$334+1+$B1478,0,IF(O1367<'1 Données d''entrée'!$C$333+'1 Données d''entrée'!$C$334+1+$B1478,$E1473*('1 Données d''entrée'!$C$332*(1+'1 Données d''entrée'!$C$332)^'1 Données d''entrée'!$C$333)/((1+'1 Données d''entrée'!$C$332)^'1 Données d''entrée'!$C$333-1),0))","v":0},{"$f":"IF(P1367<'1 Données d''entrée'!$C$334+1+$B1478,0,IF(P1367<'1 Données d''entrée'!$C$333+'1 Données d''entrée'!$C$334+1+$B1478,$E1473*('1 Données d''entrée'!$C$332*(1+'1 Données d''entrée'!$C$332)^'1 Données d''entrée'!$C$333)/((1+'1 Données d''entrée'!$C$332)^'1 Données d''entrée'!$C$333-1),0))","v":0},{"$f":"IF(Q1367<'1 Données d''entrée'!$C$334+1+$B1478,0,IF(Q1367<'1 Données d''entrée'!$C$333+'1 Données d''entrée'!$C$334+1+$B1478,$E1473*('1 Données d''entrée'!$C$332*(1+'1 Données d''entrée'!$C$332)^'1 Données d''entrée'!$C$333)/((1+'1 Données d''entrée'!$C$332)^'1 Données d''entrée'!$C$333-1),0))","v":0},{"$f":"IF(R1367<'1 Données d''entrée'!$C$334+1+$B1478,0,IF(R1367<'1 Données d''entrée'!$C$333+'1 Données d''entrée'!$C$334+1+$B1478,$E1473*('1 Données d''entrée'!$C$332*(1+'1 Données d''entrée'!$C$332)^'1 Données d''entrée'!$C$333)/((1+'1 Données d''entrée'!$C$332)^'1 Données d''entrée'!$C$333-1),0))","v":0},{"$f":"IF(S1367<'1 Données d''entrée'!$C$334+1+$B1478,0,IF(S1367<'1 Données d''entrée'!$C$333+'1 Données d''entrée'!$C$334+1+$B1478,$E1473*('1 Données d''entrée'!$C$332*(1+'1 Données d''entrée'!$C$332)^'1 Données d''entrée'!$C$333)/((1+'1 Données d''entrée'!$C$332)^'1 Données d''entrée'!$C$333-1),0))","v":0},{"$f":"IF(T1367<'1 Données d''entrée'!$C$334+1+$B1478,0,IF(T1367<'1 Données d''entrée'!$C$333+'1 Données d''entrée'!$C$334+1+$B1478,$E1473*('1 Données d''entrée'!$C$332*(1+'1 Données d''entrée'!$C$332)^'1 Données d''entrée'!$C$333)/((1+'1 Données d''entrée'!$C$332)^'1 Données d''entrée'!$C$333-1),0))","v":0},{"$f":"IF(U1367<'1 Données d''entrée'!$C$334+1+$B1478,0,IF(U1367<'1 Données d''entrée'!$C$333+'1 Données d''entrée'!$C$334+1+$B1478,$E1473*('1 Données d''entrée'!$C$332*(1+'1 Données d''entrée'!$C$332)^'1 Données d''entrée'!$C$333)/((1+'1 Données d''entrée'!$C$332)^'1 Données d''entrée'!$C$333-1),0))","v":0},{"$f":"IF(V1367<'1 Données d''entrée'!$C$334+1+$B1478,0,IF(V1367<'1 Données d''entrée'!$C$333+'1 Données d''entrée'!$C$334+1+$B1478,$E1473*('1 Données d''entrée'!$C$332*(1+'1 Données d''entrée'!$C$332)^'1 Données d''entrée'!$C$333)/((1+'1 Données d''entrée'!$C$332)^'1 Données d''entrée'!$C$333-1),0))","v":0}]
[null,4,{"$f":"IF(C$54<'1 Données d''entrée'!$C$334+1+$B1479,0,IF(C$54<'1 Données d''entrée'!$C$333+'1 Données d''entrée'!$C$334+1+$B1479,$F$160*('1 Données d''entrée'!$C$332*(1+'1 Données d''entrée'!$C$332)^'1 Données d''entrée'!$C$333)/((1+'1 Données d''entrée'!$C$332)^'1 Données d''entrée'!$C$333-1),0))","v":0},{"$f":"IF(D1367<'1 Données d''entrée'!$C$334+1+$B1479,0,IF(D1367<'1 Données d''entrée'!$C$333+'1 Données d''entrée'!$C$334+1+$B1479,$F1473*('1 Données d''entrée'!$C$332*(1+'1 Données d''entrée'!$C$332)^'1 Données d''entrée'!$C$333)/((1+'1 Données d''entrée'!$C$332)^'1 Données d''entrée'!$C$333-1),0))","v":0},{"$f":"IF(E1367<'1 Données d''entrée'!$C$334+1+$B1479,0,IF(E1367<'1 Données d''entrée'!$C$333+'1 Données d''entrée'!$C$334+1+$B1479,$F1473*('1 Données d''entrée'!$C$332*(1+'1 Données d''entrée'!$C$332)^'1 Données d''entrée'!$C$333)/((1+'1 Données d''entrée'!$C$332)^'1 Données d''entrée'!$C$333-1),0))","v":0},{"$f":"IF(F1367<'1 Données d''entrée'!$C$334+1+$B1479,0,IF(F1367<'1 Données d''entrée'!$C$333+'1 Données d''entrée'!$C$334+1+$B1479,$F1473*('1 Données d''entrée'!$C$332*(1+'1 Données d''entrée'!$C$332)^'1 Données d''entrée'!$C$333)/((1+'1 Données d''entrée'!$C$332)^'1 Données d''entrée'!$C$333-1),0))","v":0},{"$f":"IF(G1367<'1 Données d''entrée'!$C$334+1+$B1479,0,IF(G1367<'1 Données d''entrée'!$C$333+'1 Données d''entrée'!$C$334+1+$B1479,$F1473*('1 Données d''entrée'!$C$332*(1+'1 Données d''entrée'!$C$332)^'1 Données d''entrée'!$C$333)/((1+'1 Données d''entrée'!$C$332)^'1 Données d''entrée'!$C$333-1),0))","v":0},{"$f":"IF(H1367<'1 Données d''entrée'!$C$334+1+$B1479,0,IF(H1367<'1 Données d''entrée'!$C$333+'1 Données d''entrée'!$C$334+1+$B1479,$F1473*('1 Données d''entrée'!$C$332*(1+'1 Données d''entrée'!$C$332)^'1 Données d''entrée'!$C$333)/((1+'1 Données d''entrée'!$C$332)^'1 Données d''entrée'!$C$333-1),0))","v":0},{"$f":"IF(I1367<'1 Données d''entrée'!$C$334+1+$B1479,0,IF(I1367<'1 Données d''entrée'!$C$333+'1 Données d''entrée'!$C$334+1+$B1479,$F1473*('1 Données d''entrée'!$C$332*(1+'1 Données d''entrée'!$C$332)^'1 Données d''entrée'!$C$333)/((1+'1 Données d''entrée'!$C$332)^'1 Données d''entrée'!$C$333-1),0))","v":0},{"$f":"IF(J1367<'1 Données d''entrée'!$C$334+1+$B1479,0,IF(J1367<'1 Données d''entrée'!$C$333+'1 Données d''entrée'!$C$334+1+$B1479,$F1473*('1 Données d''entrée'!$C$332*(1+'1 Données d''entrée'!$C$332)^'1 Données d''entrée'!$C$333)/((1+'1 Données d''entrée'!$C$332)^'1 Données d''entrée'!$C$333-1),0))","v":0},{"$f":"IF(K1367<'1 Données d''entrée'!$C$334+1+$B1479,0,IF(K1367<'1 Données d''entrée'!$C$333+'1 Données d''entrée'!$C$334+1+$B1479,$F1473*('1 Données d''entrée'!$C$332*(1+'1 Données d''entrée'!$C$332)^'1 Données d''entrée'!$C$333)/((1+'1 Données d''entrée'!$C$332)^'1 Données d''entrée'!$C$333-1),0))","v":0},{"$f":"IF(L1367<'1 Données d''entrée'!$C$334+1+$B1479,0,IF(L1367<'1 Données d''entrée'!$C$333+'1 Données d''entrée'!$C$334+1+$B1479,$F1473*('1 Données d''entrée'!$C$332*(1+'1 Données d''entrée'!$C$332)^'1 Données d''entrée'!$C$333)/((1+'1 Données d''entrée'!$C$332)^'1 Données d''entrée'!$C$333-1),0))","v":0},{"$f":"IF(M1367<'1 Données d''entrée'!$C$334+1+$B1479,0,IF(M1367<'1 Données d''entrée'!$C$333+'1 Données d''entrée'!$C$334+1+$B1479,$F1473*('1 Données d''entrée'!$C$332*(1+'1 Données d''entrée'!$C$332)^'1 Données d''entrée'!$C$333)/((1+'1 Données d''entrée'!$C$332)^'1 Données d''entrée'!$C$333-1),0))","v":0},{"$f":"IF(N1367<'1 Données d''entrée'!$C$334+1+$B1479,0,IF(N1367<'1 Données d''entrée'!$C$333+'1 Données d''entrée'!$C$334+1+$B1479,$F1473*('1 Données d''entrée'!$C$332*(1+'1 Données d''entrée'!$C$332)^'1 Données d''entrée'!$C$333)/((1+'1 Données d''entrée'!$C$332)^'1 Données d''entrée'!$C$333-1),0))","v":0},{"$f":"IF(O1367<'1 Données d''entrée'!$C$334+1+$B1479,0,IF(O1367<'1 Données d''entrée'!$C$333+'1 Données d''entrée'!$C$334+1+$B1479,$F1473*('1 Données d''entrée'!$C$332*(1+'1 Données d''entrée'!$C$332)^'1 Données d''entrée'!$C$333)/((1+'1 Données d''entrée'!$C$332)^'1 Données d''entrée'!$C$333-1),0))","v":0},{"$f":"IF(P1367<'1 Données d''entrée'!$C$334+1+$B1479,0,IF(P1367<'1 Données d''entrée'!$C$333+'1 Données d''entrée'!$C$334+1+$B1479,$F1473*('1 Données d''entrée'!$C$332*(1+'1 Données d''entrée'!$C$332)^'1 Données d''entrée'!$C$333)/((1+'1 Données d''entrée'!$C$332)^'1 Données d''entrée'!$C$333-1),0))","v":0},{"$f":"IF(Q1367<'1 Données d''entrée'!$C$334+1+$B1479,0,IF(Q1367<'1 Données d''entrée'!$C$333+'1 Données d''entrée'!$C$334+1+$B1479,$F1473*('1 Données d''entrée'!$C$332*(1+'1 Données d''entrée'!$C$332)^'1 Données d''entrée'!$C$333)/((1+'1 Données d''entrée'!$C$332)^'1 Données d''entrée'!$C$333-1),0))","v":0},{"$f":"IF(R1367<'1 Données d''entrée'!$C$334+1+$B1479,0,IF(R1367<'1 Données d''entrée'!$C$333+'1 Données d''entrée'!$C$334+1+$B1479,$F1473*('1 Données d''entrée'!$C$332*(1+'1 Données d''entrée'!$C$332)^'1 Données d''entrée'!$C$333)/((1+'1 Données d''entrée'!$C$332)^'1 Données d''entrée'!$C$333-1),0))","v":0},{"$f":"IF(S1367<'1 Données d''entrée'!$C$334+1+$B1479,0,IF(S1367<'1 Données d''entrée'!$C$333+'1 Données d''entrée'!$C$334+1+$B1479,$F1473*('1 Données d''entrée'!$C$332*(1+'1 Données d''entrée'!$C$332)^'1 Données d''entrée'!$C$333)/((1+'1 Données d''entrée'!$C$332)^'1 Données d''entrée'!$C$333-1),0))","v":0},{"$f":"IF(T1367<'1 Données d''entrée'!$C$334+1+$B1479,0,IF(T1367<'1 Données d''entrée'!$C$333+'1 Données d''entrée'!$C$334+1+$B1479,$F1473*('1 Données d''entrée'!$C$332*(1+'1 Données d''entrée'!$C$332)^'1 Données d''entrée'!$C$333)/((1+'1 Données d''entrée'!$C$332)^'1 Données d''entrée'!$C$333-1),0))","v":0},{"$f":"IF(U1367<'1 Données d''entrée'!$C$334+1+$B1479,0,IF(U1367<'1 Données d''entrée'!$C$333+'1 Données d''entrée'!$C$334+1+$B1479,$F1473*('1 Données d''entrée'!$C$332*(1+'1 Données d''entrée'!$C$332)^'1 Données d''entrée'!$C$333)/((1+'1 Données d''entrée'!$C$332)^'1 Données d''entrée'!$C$333-1),0))","v":0},{"$f":"IF(V1367<'1 Données d''entrée'!$C$334+1+$B1479,0,IF(V1367<'1 Données d''entrée'!$C$333+'1 Données d''entrée'!$C$334+1+$B1479,$F1473*('1 Données d''entrée'!$C$332*(1+'1 Données d''entrée'!$C$332)^'1 Données d''entrée'!$C$333)/((1+'1 Données d''entrée'!$C$332)^'1 Données d''entrée'!$C$333-1),0))","v":0}]
[null,5,{"$f":"IF(C$54<'1 Données d''entrée'!$C$334+1+$B1480,0,IF(C$54<'1 Données d''entrée'!$C$333+'1 Données d''entrée'!$C$334+1+$B1480,$G$160*('1 Données d''entrée'!$C$332*(1+'1 Données d''entrée'!$C$332)^'1 Données d''entrée'!$C$333)/((1+'1 Données d''entrée'!$C$332)^'1 Données d''entrée'!$C$333-1),0))","v":0},{"$f":"IF(D1367<'1 Données d''entrée'!$C$334+1+$B1480,0,IF(D1367<'1 Données d''entrée'!$C$333+'1 Données d''entrée'!$C$334+1+$B1480,$G1473*('1 Données d''entrée'!$C$332*(1+'1 Données d''entrée'!$C$332)^'1 Données d''entrée'!$C$333)/((1+'1 Données d''entrée'!$C$332)^'1 Données d''entrée'!$C$333-1),0))","v":0},{"$f":"IF(E1367<'1 Données d''entrée'!$C$334+1+$B1480,0,IF(E1367<'1 Données d''entrée'!$C$333+'1 Données d''entrée'!$C$334+1+$B1480,$G1473*('1 Données d''entrée'!$C$332*(1+'1 Données d''entrée'!$C$332)^'1 Données d''entrée'!$C$333)/((1+'1 Données d''entrée'!$C$332)^'1 Données d''entrée'!$C$333-1),0))","v":0},{"$f":"IF(F1367<'1 Données d''entrée'!$C$334+1+$B1480,0,IF(F1367<'1 Données d''entrée'!$C$333+'1 Données d''entrée'!$C$334+1+$B1480,$G1473*('1 Données d''entrée'!$C$332*(1+'1 Données d''entrée'!$C$332)^'1 Données d''entrée'!$C$333)/((1+'1 Données d''entrée'!$C$332)^'1 Données d''entrée'!$C$333-1),0))","v":0},{"$f":"IF(G1367<'1 Données d''entrée'!$C$334+1+$B1480,0,IF(G1367<'1 Données d''entrée'!$C$333+'1 Données d''entrée'!$C$334+1+$B1480,$G1473*('1 Données d''entrée'!$C$332*(1+'1 Données d''entrée'!$C$332)^'1 Données d''entrée'!$C$333)/((1+'1 Données d''entrée'!$C$332)^'1 Données d''entrée'!$C$333-1),0))","v":0},{"$f":"IF(H1367<'1 Données d''entrée'!$C$334+1+$B1480,0,IF(H1367<'1 Données d''entrée'!$C$333+'1 Données d''entrée'!$C$334+1+$B1480,$G1473*('1 Données d''entrée'!$C$332*(1+'1 Données d''entrée'!$C$332)^'1 Données d''entrée'!$C$333)/((1+'1 Données d''entrée'!$C$332)^'1 Données d''entrée'!$C$333-1),0))","v":0},{"$f":"IF(I1367<'1 Données d''entrée'!$C$334+1+$B1480,0,IF(I1367<'1 Données d''entrée'!$C$333+'1 Données d''entrée'!$C$334+1+$B1480,$G1473*('1 Données d''entrée'!$C$332*(1+'1 Données d''entrée'!$C$332)^'1 Données d''entrée'!$C$333)/((1+'1 Données d''entrée'!$C$332)^'1 Données d''entrée'!$C$333-1),0))","v":0},{"$f":"IF(J1367<'1 Données d''entrée'!$C$334+1+$B1480,0,IF(J1367<'1 Données d''entrée'!$C$333+'1 Données d''entrée'!$C$334+1+$B1480,$G1473*('1 Données d''entrée'!$C$332*(1+'1 Données d''entrée'!$C$332)^'1 Données d''entrée'!$C$333)/((1+'1 Données d''entrée'!$C$332)^'1 Données d''entrée'!$C$333-1),0))","v":0},{"$f":"IF(K1367<'1 Données d''entrée'!$C$334+1+$B1480,0,IF(K1367<'1 Données d''entrée'!$C$333+'1 Données d''entrée'!$C$334+1+$B1480,$G1473*('1 Données d''entrée'!$C$332*(1+'1 Données d''entrée'!$C$332)^'1 Données d''entrée'!$C$333)/((1+'1 Données d''entrée'!$C$332)^'1 Données d''entrée'!$C$333-1),0))","v":0},{"$f":"IF(L1367<'1 Données d''entrée'!$C$334+1+$B1480,0,IF(L1367<'1 Données d''entrée'!$C$333+'1 Données d''entrée'!$C$334+1+$B1480,$G1473*('1 Données d''entrée'!$C$332*(1+'1 Données d''entrée'!$C$332)^'1 Données d''entrée'!$C$333)/((1+'1 Données d''entrée'!$C$332)^'1 Données d''entrée'!$C$333-1),0))","v":0},{"$f":"IF(M1367<'1 Données d''entrée'!$C$334+1+$B1480,0,IF(M1367<'1 Données d''entrée'!$C$333+'1 Données d''entrée'!$C$334+1+$B1480,$G1473*('1 Données d''entrée'!$C$332*(1+'1 Données d''entrée'!$C$332)^'1 Données d''entrée'!$C$333)/((1+'1 Données d''entrée'!$C$332)^'1 Données d''entrée'!$C$333-1),0))","v":0},{"$f":"IF(N1367<'1 Données d''entrée'!$C$334+1+$B1480,0,IF(N1367<'1 Données d''entrée'!$C$333+'1 Données d''entrée'!$C$334+1+$B1480,$G1473*('1 Données d''entrée'!$C$332*(1+'1 Données d''entrée'!$C$332)^'1 Données d''entrée'!$C$333)/((1+'1 Données d''entrée'!$C$332)^'1 Données d''entrée'!$C$333-1),0))","v":0},{"$f":"IF(O1367<'1 Données d''entrée'!$C$334+1+$B1480,0,IF(O1367<'1 Données d''entrée'!$C$333+'1 Données d''entrée'!$C$334+1+$B1480,$G1473*('1 Données d''entrée'!$C$332*(1+'1 Données d''entrée'!$C$332)^'1 Données d''entrée'!$C$333)/((1+'1 Données d''entrée'!$C$332)^'1 Données d''entrée'!$C$333-1),0))","v":0},{"$f":"IF(P1367<'1 Données d''entrée'!$C$334+1+$B1480,0,IF(P1367<'1 Données d''entrée'!$C$333+'1 Données d''entrée'!$C$334+1+$B1480,$G1473*('1 Données d''entrée'!$C$332*(1+'1 Données d''entrée'!$C$332)^'1 Données d''entrée'!$C$333)/((1+'1 Données d''entrée'!$C$332)^'1 Données d''entrée'!$C$333-1),0))","v":0},{"$f":"IF(Q1367<'1 Données d''entrée'!$C$334+1+$B1480,0,IF(Q1367<'1 Données d''entrée'!$C$333+'1 Données d''entrée'!$C$334+1+$B1480,$G1473*('1 Données d''entrée'!$C$332*(1+'1 Données d''entrée'!$C$332)^'1 Données d''entrée'!$C$333)/((1+'1 Données d''entrée'!$C$332)^'1 Données d''entrée'!$C$333-1),0))","v":0},{"$f":"IF(R1367<'1 Données d''entrée'!$C$334+1+$B1480,0,IF(R1367<'1 Données d''entrée'!$C$333+'1 Données d''entrée'!$C$334+1+$B1480,$G1473*('1 Données d''entrée'!$C$332*(1+'1 Données d''entrée'!$C$332)^'1 Données d''entrée'!$C$333)/((1+'1 Données d''entrée'!$C$332)^'1 Données d''entrée'!$C$333-1),0))","v":0},{"$f":"IF(S1367<'1 Données d''entrée'!$C$334+1+$B1480,0,IF(S1367<'1 Données d''entrée'!$C$333+'1 Données d''entrée'!$C$334+1+$B1480,$G1473*('1 Données d''entrée'!$C$332*(1+'1 Données d''entrée'!$C$332)^'1 Données d''entrée'!$C$333)/((1+'1 Données d''entrée'!$C$332)^'1 Données d''entrée'!$C$333-1),0))","v":0},{"$f":"IF(T1367<'1 Données d''entrée'!$C$334+1+$B1480,0,IF(T1367<'1 Données d''entrée'!$C$333+'1 Données d''entrée'!$C$334+1+$B1480,$G1473*('1 Données d''entrée'!$C$332*(1+'1 Données d''entrée'!$C$332)^'1 Données d''entrée'!$C$333)/((1+'1 Données d''entrée'!$C$332)^'1 Données d''entrée'!$C$333-1),0))","v":0},{"$f":"IF(U1367<'1 Données d''entrée'!$C$334+1+$B1480,0,IF(U1367<'1 Données d''entrée'!$C$333+'1 Données d''entrée'!$C$334+1+$B1480,$G1473*('1 Données d''entrée'!$C$332*(1+'1 Données d''entrée'!$C$332)^'1 Données d''entrée'!$C$333)/((1+'1 Données d''entrée'!$C$332)^'1 Données d''entrée'!$C$333-1),0))","v":0},{"$f":"IF(V1367<'1 Données d''entrée'!$C$334+1+$B1480,0,IF(V1367<'1 Données d''entrée'!$C$333+'1 Données d''entrée'!$C$334+1+$B1480,$G1473*('1 Données d''entrée'!$C$332*(1+'1 Données d''entrée'!$C$332)^'1 Données d''entrée'!$C$333)/((1+'1 Données d''entrée'!$C$332)^'1 Données d''entrée'!$C$333-1),0))","v":0}]
[null,6,{"$f":"IF(C$54<'1 Données d''entrée'!$C$334+1+$B1481,0,IF(C$54<'1 Données d''entrée'!$C$333+'1 Données d''entrée'!$C$334+1+$B1481,$H$160*('1 Données d''entrée'!$C$332*(1+'1 Données d''entrée'!$C$332)^'1 Données d''entrée'!$C$333)/((1+'1 Données d''entrée'!$C$332)^'1 Données d''entrée'!$C$333-1),0))","v":0},{"$f":"IF(D1367<'1 Données d''entrée'!$C$334+1+$B1481,0,IF(D1367<'1 Données d''entrée'!$C$333+'1 Données d''entrée'!$C$334+1+$B1481,$H1473*('1 Données d''entrée'!$C$332*(1+'1 Données d''entrée'!$C$332)^'1 Données d''entrée'!$C$333)/((1+'1 Données d''entrée'!$C$332)^'1 Données d''entrée'!$C$333-1),0))","v":0},{"$f":"IF(E1367<'1 Données d''entrée'!$C$334+1+$B1481,0,IF(E1367<'1 Données d''entrée'!$C$333+'1 Données d''entrée'!$C$334+1+$B1481,$H1473*('1 Données d''entrée'!$C$332*(1+'1 Données d''entrée'!$C$332)^'1 Données d''entrée'!$C$333)/((1+'1 Données d''entrée'!$C$332)^'1 Données d''entrée'!$C$333-1),0))","v":0},{"$f":"IF(F1367<'1 Données d''entrée'!$C$334+1+$B1481,0,IF(F1367<'1 Données d''entrée'!$C$333+'1 Données d''entrée'!$C$334+1+$B1481,$H1473*('1 Données d''entrée'!$C$332*(1+'1 Données d''entrée'!$C$332)^'1 Données d''entrée'!$C$333)/((1+'1 Données d''entrée'!$C$332)^'1 Données d''entrée'!$C$333-1),0))","v":0},{"$f":"IF(G1367<'1 Données d''entrée'!$C$334+1+$B1481,0,IF(G1367<'1 Données d''entrée'!$C$333+'1 Données d''entrée'!$C$334+1+$B1481,$H1473*('1 Données d''entrée'!$C$332*(1+'1 Données d''entrée'!$C$332)^'1 Données d''entrée'!$C$333)/((1+'1 Données d''entrée'!$C$332)^'1 Données d''entrée'!$C$333-1),0))","v":0},{"$f":"IF(H1367<'1 Données d''entrée'!$C$334+1+$B1481,0,IF(H1367<'1 Données d''entrée'!$C$333+'1 Données d''entrée'!$C$334+1+$B1481,$H1473*('1 Données d''entrée'!$C$332*(1+'1 Données d''entrée'!$C$332)^'1 Données d''entrée'!$C$333)/((1+'1 Données d''entrée'!$C$332)^'1 Données d''entrée'!$C$333-1),0))","v":0},{"$f":"IF(I1367<'1 Données d''entrée'!$C$334+1+$B1481,0,IF(I1367<'1 Données d''entrée'!$C$333+'1 Données d''entrée'!$C$334+1+$B1481,$H1473*('1 Données d''entrée'!$C$332*(1+'1 Données d''entrée'!$C$332)^'1 Données d''entrée'!$C$333)/((1+'1 Données d''entrée'!$C$332)^'1 Données d''entrée'!$C$333-1),0))","v":0},{"$f":"IF(J1367<'1 Données d''entrée'!$C$334+1+$B1481,0,IF(J1367<'1 Données d''entrée'!$C$333+'1 Données d''entrée'!$C$334+1+$B1481,$H1473*('1 Données d''entrée'!$C$332*(1+'1 Données d''entrée'!$C$332)^'1 Données d''entrée'!$C$333)/((1+'1 Données d''entrée'!$C$332)^'1 Données d''entrée'!$C$333-1),0))","v":0},{"$f":"IF(K1367<'1 Données d''entrée'!$C$334+1+$B1481,0,IF(K1367<'1 Données d''entrée'!$C$333+'1 Données d''entrée'!$C$334+1+$B1481,$H1473*('1 Données d''entrée'!$C$332*(1+'1 Données d''entrée'!$C$332)^'1 Données d''entrée'!$C$333)/((1+'1 Données d''entrée'!$C$332)^'1 Données d''entrée'!$C$333-1),0))","v":0},{"$f":"IF(L1367<'1 Données d''entrée'!$C$334+1+$B1481,0,IF(L1367<'1 Données d''entrée'!$C$333+'1 Données d''entrée'!$C$334+1+$B1481,$H1473*('1 Données d''entrée'!$C$332*(1+'1 Données d''entrée'!$C$332)^'1 Données d''entrée'!$C$333)/((1+'1 Données d''entrée'!$C$332)^'1 Données d''entrée'!$C$333-1),0))","v":0},{"$f":"IF(M1367<'1 Données d''entrée'!$C$334+1+$B1481,0,IF(M1367<'1 Données d''entrée'!$C$333+'1 Données d''entrée'!$C$334+1+$B1481,$H1473*('1 Données d''entrée'!$C$332*(1+'1 Données d''entrée'!$C$332)^'1 Données d''entrée'!$C$333)/((1+'1 Données d''entrée'!$C$332)^'1 Données d''entrée'!$C$333-1),0))","v":0},{"$f":"IF(N1367<'1 Données d''entrée'!$C$334+1+$B1481,0,IF(N1367<'1 Données d''entrée'!$C$333+'1 Données d''entrée'!$C$334+1+$B1481,$H1473*('1 Données d''entrée'!$C$332*(1+'1 Données d''entrée'!$C$332)^'1 Données d''entrée'!$C$333)/((1+'1 Données d''entrée'!$C$332)^'1 Données d''entrée'!$C$333-1),0))","v":0},{"$f":"IF(O1367<'1 Données d''entrée'!$C$334+1+$B1481,0,IF(O1367<'1 Données d''entrée'!$C$333+'1 Données d''entrée'!$C$334+1+$B1481,$H1473*('1 Données d''entrée'!$C$332*(1+'1 Données d''entrée'!$C$332)^'1 Données d''entrée'!$C$333)/((1+'1 Données d''entrée'!$C$332)^'1 Données d''entrée'!$C$333-1),0))","v":0},{"$f":"IF(P1367<'1 Données d''entrée'!$C$334+1+$B1481,0,IF(P1367<'1 Données d''entrée'!$C$333+'1 Données d''entrée'!$C$334+1+$B1481,$H1473*('1 Données d''entrée'!$C$332*(1+'1 Données d''entrée'!$C$332)^'1 Données d''entrée'!$C$333)/((1+'1 Données d''entrée'!$C$332)^'1 Données d''entrée'!$C$333-1),0))","v":0},{"$f":"IF(Q1367<'1 Données d''entrée'!$C$334+1+$B1481,0,IF(Q1367<'1 Données d''entrée'!$C$333+'1 Données d''entrée'!$C$334+1+$B1481,$H1473*('1 Données d''entrée'!$C$332*(1+'1 Données d''entrée'!$C$332)^'1 Données d''entrée'!$C$333)/((1+'1 Données d''entrée'!$C$332)^'1 Données d''entrée'!$C$333-1),0))","v":0},{"$f":"IF(R1367<'1 Données d''entrée'!$C$334+1+$B1481,0,IF(R1367<'1 Données d''entrée'!$C$333+'1 Données d''entrée'!$C$334+1+$B1481,$H1473*('1 Données d''entrée'!$C$332*(1+'1 Données d''entrée'!$C$332)^'1 Données d''entrée'!$C$333)/((1+'1 Données d''entrée'!$C$332)^'1 Données d''entrée'!$C$333-1),0))","v":0},{"$f":"IF(S1367<'1 Données d''entrée'!$C$334+1+$B1481,0,IF(S1367<'1 Données d''entrée'!$C$333+'1 Données d''entrée'!$C$334+1+$B1481,$H1473*('1 Données d''entrée'!$C$332*(1+'1 Données d''entrée'!$C$332)^'1 Données d''entrée'!$C$333)/((1+'1 Données d''entrée'!$C$332)^'1 Données d''entrée'!$C$333-1),0))","v":0},{"$f":"IF(T1367<'1 Données d''entrée'!$C$334+1+$B1481,0,IF(T1367<'1 Données d''entrée'!$C$333+'1 Données d''entrée'!$C$334+1+$B1481,$H1473*('1 Données d''entrée'!$C$332*(1+'1 Données d''entrée'!$C$332)^'1 Données d''entrée'!$C$333)/((1+'1 Données d''entrée'!$C$332)^'1 Données d''entrée'!$C$333-1),0))","v":0},{"$f":"IF(U1367<'1 Données d''entrée'!$C$334+1+$B1481,0,IF(U1367<'1 Données d''entrée'!$C$333+'1 Données d''entrée'!$C$334+1+$B1481,$H1473*('1 Données d''entrée'!$C$332*(1+'1 Données d''entrée'!$C$332)^'1 Données d''entrée'!$C$333)/((1+'1 Données d''entrée'!$C$332)^'1 Données d''entrée'!$C$333-1),0))","v":0},{"$f":"IF(V1367<'1 Données d''entrée'!$C$334+1+$B1481,0,IF(V1367<'1 Données d''entrée'!$C$333+'1 Données d''entrée'!$C$334+1+$B1481,$H1473*('1 Données d''entrée'!$C$332*(1+'1 Données d''entrée'!$C$332)^'1 Données d''entrée'!$C$333)/((1+'1 Données d''entrée'!$C$332)^'1 Données d''entrée'!$C$333-1),0))","v":0}]
[null,7,{"$f":"IF(C$54<'1 Données d''entrée'!$C$334+1+$B1482,0,IF(C$54<'1 Données d''entrée'!$C$333+'1 Données d''entrée'!$C$334+1+$B1482,$I$160*('1 Données d''entrée'!$C$332*(1+'1 Données d''entrée'!$C$332)^'1 Données d''entrée'!$C$333)/((1+'1 Données d''entrée'!$C$332)^'1 Données d''entrée'!$C$333-1),0))","v":0},{"$f":"IF(D1367<'1 Données d''entrée'!$C$334+1+$B1482,0,IF(D1367<'1 Données d''entrée'!$C$333+'1 Données d''entrée'!$C$334+1+$B1482,$I1473*('1 Données d''entrée'!$C$332*(1+'1 Données d''entrée'!$C$332)^'1 Données d''entrée'!$C$333)/((1+'1 Données d''entrée'!$C$332)^'1 Données d''entrée'!$C$333-1),0))","v":0},{"$f":"IF(E1367<'1 Données d''entrée'!$C$334+1+$B1482,0,IF(E1367<'1 Données d''entrée'!$C$333+'1 Données d''entrée'!$C$334+1+$B1482,$I1473*('1 Données d''entrée'!$C$332*(1+'1 Données d''entrée'!$C$332)^'1 Données d''entrée'!$C$333)/((1+'1 Données d''entrée'!$C$332)^'1 Données d''entrée'!$C$333-1),0))","v":0},{"$f":"IF(F1367<'1 Données d''entrée'!$C$334+1+$B1482,0,IF(F1367<'1 Données d''entrée'!$C$333+'1 Données d''entrée'!$C$334+1+$B1482,$I1473*('1 Données d''entrée'!$C$332*(1+'1 Données d''entrée'!$C$332)^'1 Données d''entrée'!$C$333)/((1+'1 Données d''entrée'!$C$332)^'1 Données d''entrée'!$C$333-1),0))","v":0},{"$f":"IF(G1367<'1 Données d''entrée'!$C$334+1+$B1482,0,IF(G1367<'1 Données d''entrée'!$C$333+'1 Données d''entrée'!$C$334+1+$B1482,$I1473*('1 Données d''entrée'!$C$332*(1+'1 Données d''entrée'!$C$332)^'1 Données d''entrée'!$C$333)/((1+'1 Données d''entrée'!$C$332)^'1 Données d''entrée'!$C$333-1),0))","v":0},{"$f":"IF(H1367<'1 Données d''entrée'!$C$334+1+$B1482,0,IF(H1367<'1 Données d''entrée'!$C$333+'1 Données d''entrée'!$C$334+1+$B1482,$I1473*('1 Données d''entrée'!$C$332*(1+'1 Données d''entrée'!$C$332)^'1 Données d''entrée'!$C$333)/((1+'1 Données d''entrée'!$C$332)^'1 Données d''entrée'!$C$333-1),0))","v":0},{"$f":"IF(I1367<'1 Données d''entrée'!$C$334+1+$B1482,0,IF(I1367<'1 Données d''entrée'!$C$333+'1 Données d''entrée'!$C$334+1+$B1482,$I1473*('1 Données d''entrée'!$C$332*(1+'1 Données d''entrée'!$C$332)^'1 Données d''entrée'!$C$333)/((1+'1 Données d''entrée'!$C$332)^'1 Données d''entrée'!$C$333-1),0))","v":0},{"$f":"IF(J1367<'1 Données d''entrée'!$C$334+1+$B1482,0,IF(J1367<'1 Données d''entrée'!$C$333+'1 Données d''entrée'!$C$334+1+$B1482,$I1473*('1 Données d''entrée'!$C$332*(1+'1 Données d''entrée'!$C$332)^'1 Données d''entrée'!$C$333)/((1+'1 Données d''entrée'!$C$332)^'1 Données d''entrée'!$C$333-1),0))","v":0},{"$f":"IF(K1367<'1 Données d''entrée'!$C$334+1+$B1482,0,IF(K1367<'1 Données d''entrée'!$C$333+'1 Données d''entrée'!$C$334+1+$B1482,$I1473*('1 Données d''entrée'!$C$332*(1+'1 Données d''entrée'!$C$332)^'1 Données d''entrée'!$C$333)/((1+'1 Données d''entrée'!$C$332)^'1 Données d''entrée'!$C$333-1),0))","v":0},{"$f":"IF(L1367<'1 Données d''entrée'!$C$334+1+$B1482,0,IF(L1367<'1 Données d''entrée'!$C$333+'1 Données d''entrée'!$C$334+1+$B1482,$I1473*('1 Données d''entrée'!$C$332*(1+'1 Données d''entrée'!$C$332)^'1 Données d''entrée'!$C$333)/((1+'1 Données d''entrée'!$C$332)^'1 Données d''entrée'!$C$333-1),0))","v":0},{"$f":"IF(M1367<'1 Données d''entrée'!$C$334+1+$B1482,0,IF(M1367<'1 Données d''entrée'!$C$333+'1 Données d''entrée'!$C$334+1+$B1482,$I1473*('1 Données d''entrée'!$C$332*(1+'1 Données d''entrée'!$C$332)^'1 Données d''entrée'!$C$333)/((1+'1 Données d''entrée'!$C$332)^'1 Données d''entrée'!$C$333-1),0))","v":0},{"$f":"IF(N1367<'1 Données d''entrée'!$C$334+1+$B1482,0,IF(N1367<'1 Données d''entrée'!$C$333+'1 Données d''entrée'!$C$334+1+$B1482,$I1473*('1 Données d''entrée'!$C$332*(1+'1 Données d''entrée'!$C$332)^'1 Données d''entrée'!$C$333)/((1+'1 Données d''entrée'!$C$332)^'1 Données d''entrée'!$C$333-1),0))","v":0},{"$f":"IF(O1367<'1 Données d''entrée'!$C$334+1+$B1482,0,IF(O1367<'1 Données d''entrée'!$C$333+'1 Données d''entrée'!$C$334+1+$B1482,$I1473*('1 Données d''entrée'!$C$332*(1+'1 Données d''entrée'!$C$332)^'1 Données d''entrée'!$C$333)/((1+'1 Données d''entrée'!$C$332)^'1 Données d''entrée'!$C$333-1),0))","v":0},{"$f":"IF(P1367<'1 Données d''entrée'!$C$334+1+$B1482,0,IF(P1367<'1 Données d''entrée'!$C$333+'1 Données d''entrée'!$C$334+1+$B1482,$I1473*('1 Données d''entrée'!$C$332*(1+'1 Données d''entrée'!$C$332)^'1 Données d''entrée'!$C$333)/((1+'1 Données d''entrée'!$C$332)^'1 Données d''entrée'!$C$333-1),0))","v":0},{"$f":"IF(Q1367<'1 Données d''entrée'!$C$334+1+$B1482,0,IF(Q1367<'1 Données d''entrée'!$C$333+'1 Données d''entrée'!$C$334+1+$B1482,$I1473*('1 Données d''entrée'!$C$332*(1+'1 Données d''entrée'!$C$332)^'1 Données d''entrée'!$C$333)/((1+'1 Données d''entrée'!$C$332)^'1 Données d''entrée'!$C$333-1),0))","v":0},{"$f":"IF(R1367<'1 Données d''entrée'!$C$334+1+$B1482,0,IF(R1367<'1 Données d''entrée'!$C$333+'1 Données d''entrée'!$C$334+1+$B1482,$I1473*('1 Données d''entrée'!$C$332*(1+'1 Données d''entrée'!$C$332)^'1 Données d''entrée'!$C$333)/((1+'1 Données d''entrée'!$C$332)^'1 Données d''entrée'!$C$333-1),0))","v":0},{"$f":"IF(S1367<'1 Données d''entrée'!$C$334+1+$B1482,0,IF(S1367<'1 Données d''entrée'!$C$333+'1 Données d''entrée'!$C$334+1+$B1482,$I1473*('1 Données d''entrée'!$C$332*(1+'1 Données d''entrée'!$C$332)^'1 Données d''entrée'!$C$333)/((1+'1 Données d''entrée'!$C$332)^'1 Données d''entrée'!$C$333-1),0))","v":0},{"$f":"IF(T1367<'1 Données d''entrée'!$C$334+1+$B1482,0,IF(T1367<'1 Données d''entrée'!$C$333+'1 Données d''entrée'!$C$334+1+$B1482,$I1473*('1 Données d''entrée'!$C$332*(1+'1 Données d''entrée'!$C$332)^'1 Données d''entrée'!$C$333)/((1+'1 Données d''entrée'!$C$332)^'1 Données d''entrée'!$C$333-1),0))","v":0},{"$f":"IF(U1367<'1 Données d''entrée'!$C$334+1+$B1482,0,IF(U1367<'1 Données d''entrée'!$C$333+'1 Données d''entrée'!$C$334+1+$B1482,$I1473*('1 Données d''entrée'!$C$332*(1+'1 Données d''entrée'!$C$332)^'1 Données d''entrée'!$C$333)/((1+'1 Données d''entrée'!$C$332)^'1 Données d''entrée'!$C$333-1),0))","v":0},{"$f":"IF(V1367<'1 Données d''entrée'!$C$334+1+$B1482,0,IF(V1367<'1 Données d''entrée'!$C$333+'1 Données d''entrée'!$C$334+1+$B1482,$I1473*('1 Données d''entrée'!$C$332*(1+'1 Données d''entrée'!$C$332)^'1 Données d''entrée'!$C$333)/((1+'1 Données d''entrée'!$C$332)^'1 Données d''entrée'!$C$333-1),0))","v":0}]
[null,8,{"$f":"IF(C$54<'1 Données d''entrée'!$C$334+1+$B1483,0,IF(C$54<'1 Données d''entrée'!$C$333+'1 Données d''entrée'!$C$334+1+$B1483,$J$160*('1 Données d''entrée'!$C$332*(1+'1 Données d''entrée'!$C$332)^'1 Données d''entrée'!$C$333)/((1+'1 Données d''entrée'!$C$332)^'1 Données d''entrée'!$C$333-1),0))","v":0},{"$f":"IF(D1367<'1 Données d''entrée'!$C$334+1+$B1483,0,IF(D1367<'1 Données d''entrée'!$C$333+'1 Données d''entrée'!$C$334+1+$B1483,$J1473*('1 Données d''entrée'!$C$332*(1+'1 Données d''entrée'!$C$332)^'1 Données d''entrée'!$C$333)/((1+'1 Données d''entrée'!$C$332)^'1 Données d''entrée'!$C$333-1),0))","v":0},{"$f":"IF(E1367<'1 Données d''entrée'!$C$334+1+$B1483,0,IF(E1367<'1 Données d''entrée'!$C$333+'1 Données d''entrée'!$C$334+1+$B1483,$J1473*('1 Données d''entrée'!$C$332*(1+'1 Données d''entrée'!$C$332)^'1 Données d''entrée'!$C$333)/((1+'1 Données d''entrée'!$C$332)^'1 Données d''entrée'!$C$333-1),0))","v":0},{"$f":"IF(F1367<'1 Données d''entrée'!$C$334+1+$B1483,0,IF(F1367<'1 Données d''entrée'!$C$333+'1 Données d''entrée'!$C$334+1+$B1483,$J1473*('1 Données d''entrée'!$C$332*(1+'1 Données d''entrée'!$C$332)^'1 Données d''entrée'!$C$333)/((1+'1 Données d''entrée'!$C$332)^'1 Données d''entrée'!$C$333-1),0))","v":0},{"$f":"IF(G1367<'1 Données d''entrée'!$C$334+1+$B1483,0,IF(G1367<'1 Données d''entrée'!$C$333+'1 Données d''entrée'!$C$334+1+$B1483,$J1473*('1 Données d''entrée'!$C$332*(1+'1 Données d''entrée'!$C$332)^'1 Données d''entrée'!$C$333)/((1+'1 Données d''entrée'!$C$332)^'1 Données d''entrée'!$C$333-1),0))","v":0},{"$f":"IF(H1367<'1 Données d''entrée'!$C$334+1+$B1483,0,IF(H1367<'1 Données d''entrée'!$C$333+'1 Données d''entrée'!$C$334+1+$B1483,$J1473*('1 Données d''entrée'!$C$332*(1+'1 Données d''entrée'!$C$332)^'1 Données d''entrée'!$C$333)/((1+'1 Données d''entrée'!$C$332)^'1 Données d''entrée'!$C$333-1),0))","v":0},{"$f":"IF(I1367<'1 Données d''entrée'!$C$334+1+$B1483,0,IF(I1367<'1 Données d''entrée'!$C$333+'1 Données d''entrée'!$C$334+1+$B1483,$J1473*('1 Données d''entrée'!$C$332*(1+'1 Données d''entrée'!$C$332)^'1 Données d''entrée'!$C$333)/((1+'1 Données d''entrée'!$C$332)^'1 Données d''entrée'!$C$333-1),0))","v":0},{"$f":"IF(J1367<'1 Données d''entrée'!$C$334+1+$B1483,0,IF(J1367<'1 Données d''entrée'!$C$333+'1 Données d''entrée'!$C$334+1+$B1483,$J1473*('1 Données d''entrée'!$C$332*(1+'1 Données d''entrée'!$C$332)^'1 Données d''entrée'!$C$333)/((1+'1 Données d''entrée'!$C$332)^'1 Données d''entrée'!$C$333-1),0))","v":0},{"$f":"IF(K1367<'1 Données d''entrée'!$C$334+1+$B1483,0,IF(K1367<'1 Données d''entrée'!$C$333+'1 Données d''entrée'!$C$334+1+$B1483,$J1473*('1 Données d''entrée'!$C$332*(1+'1 Données d''entrée'!$C$332)^'1 Données d''entrée'!$C$333)/((1+'1 Données d''entrée'!$C$332)^'1 Données d''entrée'!$C$333-1),0))","v":0},{"$f":"IF(L1367<'1 Données d''entrée'!$C$334+1+$B1483,0,IF(L1367<'1 Données d''entrée'!$C$333+'1 Données d''entrée'!$C$334+1+$B1483,$J1473*('1 Données d''entrée'!$C$332*(1+'1 Données d''entrée'!$C$332)^'1 Données d''entrée'!$C$333)/((1+'1 Données d''entrée'!$C$332)^'1 Données d''entrée'!$C$333-1),0))","v":0},{"$f":"IF(M1367<'1 Données d''entrée'!$C$334+1+$B1483,0,IF(M1367<'1 Données d''entrée'!$C$333+'1 Données d''entrée'!$C$334+1+$B1483,$J1473*('1 Données d''entrée'!$C$332*(1+'1 Données d''entrée'!$C$332)^'1 Données d''entrée'!$C$333)/((1+'1 Données d''entrée'!$C$332)^'1 Données d''entrée'!$C$333-1),0))","v":0},{"$f":"IF(N1367<'1 Données d''entrée'!$C$334+1+$B1483,0,IF(N1367<'1 Données d''entrée'!$C$333+'1 Données d''entrée'!$C$334+1+$B1483,$J1473*('1 Données d''entrée'!$C$332*(1+'1 Données d''entrée'!$C$332)^'1 Données d''entrée'!$C$333)/((1+'1 Données d''entrée'!$C$332)^'1 Données d''entrée'!$C$333-1),0))","v":0},{"$f":"IF(O1367<'1 Données d''entrée'!$C$334+1+$B1483,0,IF(O1367<'1 Données d''entrée'!$C$333+'1 Données d''entrée'!$C$334+1+$B1483,$J1473*('1 Données d''entrée'!$C$332*(1+'1 Données d''entrée'!$C$332)^'1 Données d''entrée'!$C$333)/((1+'1 Données d''entrée'!$C$332)^'1 Données d''entrée'!$C$333-1),0))","v":0},{"$f":"IF(P1367<'1 Données d''entrée'!$C$334+1+$B1483,0,IF(P1367<'1 Données d''entrée'!$C$333+'1 Données d''entrée'!$C$334+1+$B1483,$J1473*('1 Données d''entrée'!$C$332*(1+'1 Données d''entrée'!$C$332)^'1 Données d''entrée'!$C$333)/((1+'1 Données d''entrée'!$C$332)^'1 Données d''entrée'!$C$333-1),0))","v":0},{"$f":"IF(Q1367<'1 Données d''entrée'!$C$334+1+$B1483,0,IF(Q1367<'1 Données d''entrée'!$C$333+'1 Données d''entrée'!$C$334+1+$B1483,$J1473*('1 Données d''entrée'!$C$332*(1+'1 Données d''entrée'!$C$332)^'1 Données d''entrée'!$C$333)/((1+'1 Données d''entrée'!$C$332)^'1 Données d''entrée'!$C$333-1),0))","v":0},{"$f":"IF(R1367<'1 Données d''entrée'!$C$334+1+$B1483,0,IF(R1367<'1 Données d''entrée'!$C$333+'1 Données d''entrée'!$C$334+1+$B1483,$J1473*('1 Données d''entrée'!$C$332*(1+'1 Données d''entrée'!$C$332)^'1 Données d''entrée'!$C$333)/((1+'1 Données d''entrée'!$C$332)^'1 Données d''entrée'!$C$333-1),0))","v":0},{"$f":"IF(S1367<'1 Données d''entrée'!$C$334+1+$B1483,0,IF(S1367<'1 Données d''entrée'!$C$333+'1 Données d''entrée'!$C$334+1+$B1483,$J1473*('1 Données d''entrée'!$C$332*(1+'1 Données d''entrée'!$C$332)^'1 Données d''entrée'!$C$333)/((1+'1 Données d''entrée'!$C$332)^'1 Données d''entrée'!$C$333-1),0))","v":0},{"$f":"IF(T1367<'1 Données d''entrée'!$C$334+1+$B1483,0,IF(T1367<'1 Données d''entrée'!$C$333+'1 Données d''entrée'!$C$334+1+$B1483,$J1473*('1 Données d''entrée'!$C$332*(1+'1 Données d''entrée'!$C$332)^'1 Données d''entrée'!$C$333)/((1+'1 Données d''entrée'!$C$332)^'1 Données d''entrée'!$C$333-1),0))","v":0},{"$f":"IF(U1367<'1 Données d''entrée'!$C$334+1+$B1483,0,IF(U1367<'1 Données d''entrée'!$C$333+'1 Données d''entrée'!$C$334+1+$B1483,$J1473*('1 Données d''entrée'!$C$332*(1+'1 Données d''entrée'!$C$332)^'1 Données d''entrée'!$C$333)/((1+'1 Données d''entrée'!$C$332)^'1 Données d''entrée'!$C$333-1),0))","v":0},{"$f":"IF(V1367<'1 Données d''entrée'!$C$334+1+$B1483,0,IF(V1367<'1 Données d''entrée'!$C$333+'1 Données d''entrée'!$C$334+1+$B1483,$J1473*('1 Données d''entrée'!$C$332*(1+'1 Données d''entrée'!$C$332)^'1 Données d''entrée'!$C$333)/((1+'1 Données d''entrée'!$C$332)^'1 Données d''entrée'!$C$333-1),0))","v":0}]
[null,9,{"$f":"IF(C$54<'1 Données d''entrée'!$C$334+1+$B1484,0,IF(C$54<'1 Données d''entrée'!$C$333+'1 Données d''entrée'!$C$334+1+$B1484,$K$160*('1 Données d''entrée'!$C$332*(1+'1 Données d''entrée'!$C$332)^'1 Données d''entrée'!$C$333)/((1+'1 Données d''entrée'!$C$332)^'1 Données d''entrée'!$C$333-1),0))","v":0},{"$f":"IF(D1367<'1 Données d''entrée'!$C$334+1+$B1484,0,IF(D1367<'1 Données d''entrée'!$C$333+'1 Données d''entrée'!$C$334+1+$B1484,$K1473*('1 Données d''entrée'!$C$332*(1+'1 Données d''entrée'!$C$332)^'1 Données d''entrée'!$C$333)/((1+'1 Données d''entrée'!$C$332)^'1 Données d''entrée'!$C$333-1),0))","v":0},{"$f":"IF(E1367<'1 Données d''entrée'!$C$334+1+$B1484,0,IF(E1367<'1 Données d''entrée'!$C$333+'1 Données d''entrée'!$C$334+1+$B1484,$K1473*('1 Données d''entrée'!$C$332*(1+'1 Données d''entrée'!$C$332)^'1 Données d''entrée'!$C$333)/((1+'1 Données d''entrée'!$C$332)^'1 Données d''entrée'!$C$333-1),0))","v":0},{"$f":"IF(F1367<'1 Données d''entrée'!$C$334+1+$B1484,0,IF(F1367<'1 Données d''entrée'!$C$333+'1 Données d''entrée'!$C$334+1+$B1484,$K1473*('1 Données d''entrée'!$C$332*(1+'1 Données d''entrée'!$C$332)^'1 Données d''entrée'!$C$333)/((1+'1 Données d''entrée'!$C$332)^'1 Données d''entrée'!$C$333-1),0))","v":0},{"$f":"IF(G1367<'1 Données d''entrée'!$C$334+1+$B1484,0,IF(G1367<'1 Données d''entrée'!$C$333+'1 Données d''entrée'!$C$334+1+$B1484,$K1473*('1 Données d''entrée'!$C$332*(1+'1 Données d''entrée'!$C$332)^'1 Données d''entrée'!$C$333)/((1+'1 Données d''entrée'!$C$332)^'1 Données d''entrée'!$C$333-1),0))","v":0},{"$f":"IF(H1367<'1 Données d''entrée'!$C$334+1+$B1484,0,IF(H1367<'1 Données d''entrée'!$C$333+'1 Données d''entrée'!$C$334+1+$B1484,$K1473*('1 Données d''entrée'!$C$332*(1+'1 Données d''entrée'!$C$332)^'1 Données d''entrée'!$C$333)/((1+'1 Données d''entrée'!$C$332)^'1 Données d''entrée'!$C$333-1),0))","v":0},{"$f":"IF(I1367<'1 Données d''entrée'!$C$334+1+$B1484,0,IF(I1367<'1 Données d''entrée'!$C$333+'1 Données d''entrée'!$C$334+1+$B1484,$K1473*('1 Données d''entrée'!$C$332*(1+'1 Données d''entrée'!$C$332)^'1 Données d''entrée'!$C$333)/((1+'1 Données d''entrée'!$C$332)^'1 Données d''entrée'!$C$333-1),0))","v":0},{"$f":"IF(J1367<'1 Données d''entrée'!$C$334+1+$B1484,0,IF(J1367<'1 Données d''entrée'!$C$333+'1 Données d''entrée'!$C$334+1+$B1484,$K1473*('1 Données d''entrée'!$C$332*(1+'1 Données d''entrée'!$C$332)^'1 Données d''entrée'!$C$333)/((1+'1 Données d''entrée'!$C$332)^'1 Données d''entrée'!$C$333-1),0))","v":0},{"$f":"IF(K1367<'1 Données d''entrée'!$C$334+1+$B1484,0,IF(K1367<'1 Données d''entrée'!$C$333+'1 Données d''entrée'!$C$334+1+$B1484,$K1473*('1 Données d''entrée'!$C$332*(1+'1 Données d''entrée'!$C$332)^'1 Données d''entrée'!$C$333)/((1+'1 Données d''entrée'!$C$332)^'1 Données d''entrée'!$C$333-1),0))","v":0},{"$f":"IF(L1367<'1 Données d''entrée'!$C$334+1+$B1484,0,IF(L1367<'1 Données d''entrée'!$C$333+'1 Données d''entrée'!$C$334+1+$B1484,$K1473*('1 Données d''entrée'!$C$332*(1+'1 Données d''entrée'!$C$332)^'1 Données d''entrée'!$C$333)/((1+'1 Données d''entrée'!$C$332)^'1 Données d''entrée'!$C$333-1),0))","v":0},{"$f":"IF(M1367<'1 Données d''entrée'!$C$334+1+$B1484,0,IF(M1367<'1 Données d''entrée'!$C$333+'1 Données d''entrée'!$C$334+1+$B1484,$K1473*('1 Données d''entrée'!$C$332*(1+'1 Données d''entrée'!$C$332)^'1 Données d''entrée'!$C$333)/((1+'1 Données d''entrée'!$C$332)^'1 Données d''entrée'!$C$333-1),0))","v":0},{"$f":"IF(N1367<'1 Données d''entrée'!$C$334+1+$B1484,0,IF(N1367<'1 Données d''entrée'!$C$333+'1 Données d''entrée'!$C$334+1+$B1484,$K1473*('1 Données d''entrée'!$C$332*(1+'1 Données d''entrée'!$C$332)^'1 Données d''entrée'!$C$333)/((1+'1 Données d''entrée'!$C$332)^'1 Données d''entrée'!$C$333-1),0))","v":0},{"$f":"IF(O1367<'1 Données d''entrée'!$C$334+1+$B1484,0,IF(O1367<'1 Données d''entrée'!$C$333+'1 Données d''entrée'!$C$334+1+$B1484,$K1473*('1 Données d''entrée'!$C$332*(1+'1 Données d''entrée'!$C$332)^'1 Données d''entrée'!$C$333)/((1+'1 Données d''entrée'!$C$332)^'1 Données d''entrée'!$C$333-1),0))","v":0},{"$f":"IF(P1367<'1 Données d''entrée'!$C$334+1+$B1484,0,IF(P1367<'1 Données d''entrée'!$C$333+'1 Données d''entrée'!$C$334+1+$B1484,$K1473*('1 Données d''entrée'!$C$332*(1+'1 Données d''entrée'!$C$332)^'1 Données d''entrée'!$C$333)/((1+'1 Données d''entrée'!$C$332)^'1 Données d''entrée'!$C$333-1),0))","v":0},{"$f":"IF(Q1367<'1 Données d''entrée'!$C$334+1+$B1484,0,IF(Q1367<'1 Données d''entrée'!$C$333+'1 Données d''entrée'!$C$334+1+$B1484,$K1473*('1 Données d''entrée'!$C$332*(1+'1 Données d''entrée'!$C$332)^'1 Données d''entrée'!$C$333)/((1+'1 Données d''entrée'!$C$332)^'1 Données d''entrée'!$C$333-1),0))","v":0},{"$f":"IF(R1367<'1 Données d''entrée'!$C$334+1+$B1484,0,IF(R1367<'1 Données d''entrée'!$C$333+'1 Données d''entrée'!$C$334+1+$B1484,$K1473*('1 Données d''entrée'!$C$332*(1+'1 Données d''entrée'!$C$332)^'1 Données d''entrée'!$C$333)/((1+'1 Données d''entrée'!$C$332)^'1 Données d''entrée'!$C$333-1),0))","v":0},{"$f":"IF(S1367<'1 Données d''entrée'!$C$334+1+$B1484,0,IF(S1367<'1 Données d''entrée'!$C$333+'1 Données d''entrée'!$C$334+1+$B1484,$K1473*('1 Données d''entrée'!$C$332*(1+'1 Données d''entrée'!$C$332)^'1 Données d''entrée'!$C$333)/((1+'1 Données d''entrée'!$C$332)^'1 Données d''entrée'!$C$333-1),0))","v":0},{"$f":"IF(T1367<'1 Données d''entrée'!$C$334+1+$B1484,0,IF(T1367<'1 Données d''entrée'!$C$333+'1 Données d''entrée'!$C$334+1+$B1484,$K1473*('1 Données d''entrée'!$C$332*(1+'1 Données d''entrée'!$C$332)^'1 Données d''entrée'!$C$333)/((1+'1 Données d''entrée'!$C$332)^'1 Données d''entrée'!$C$333-1),0))","v":0},{"$f":"IF(U1367<'1 Données d''entrée'!$C$334+1+$B1484,0,IF(U1367<'1 Données d''entrée'!$C$333+'1 Données d''entrée'!$C$334+1+$B1484,$K1473*('1 Données d''entrée'!$C$332*(1+'1 Données d''entrée'!$C$332)^'1 Données d''entrée'!$C$333)/((1+'1 Données d''entrée'!$C$332)^'1 Données d''entrée'!$C$333-1),0))","v":0},{"$f":"IF(V1367<'1 Données d''entrée'!$C$334+1+$B1484,0,IF(V1367<'1 Données d''entrée'!$C$333+'1 Données d''entrée'!$C$334+1+$B1484,$K1473*('1 Données d''entrée'!$C$332*(1+'1 Données d''entrée'!$C$332)^'1 Données d''entrée'!$C$333)/((1+'1 Données d''entrée'!$C$332)^'1 Données d''entrée'!$C$333-1),0))","v":0}]
[null,10,{"$f":"IF(C$54<'1 Données d''entrée'!$C$334+1+$B1485,0,IF(C$54<'1 Données d''entrée'!$C$333+'1 Données d''entrée'!$C$334+1+$B1485,$L$160*('1 Données d''entrée'!$C$332*(1+'1 Données d''entrée'!$C$332)^'1 Données d''entrée'!$C$333)/((1+'1 Données d''entrée'!$C$332)^'1 Données d''entrée'!$C$333-1),0))","v":0},{"$f":"IF(D1367<'1 Données d''entrée'!$C$334+1+$B1485,0,IF(D1367<'1 Données d''entrée'!$C$333+'1 Données d''entrée'!$C$334+1+$B1485,$L1473*('1 Données d''entrée'!$C$332*(1+'1 Données d''entrée'!$C$332)^'1 Données d''entrée'!$C$333)/((1+'1 Données d''entrée'!$C$332)^'1 Données d''entrée'!$C$333-1),0))","v":0},{"$f":"IF(E1367<'1 Données d''entrée'!$C$334+1+$B1485,0,IF(E1367<'1 Données d''entrée'!$C$333+'1 Données d''entrée'!$C$334+1+$B1485,$L1473*('1 Données d''entrée'!$C$332*(1+'1 Données d''entrée'!$C$332)^'1 Données d''entrée'!$C$333)/((1+'1 Données d''entrée'!$C$332)^'1 Données d''entrée'!$C$333-1),0))","v":0},{"$f":"IF(F1367<'1 Données d''entrée'!$C$334+1+$B1485,0,IF(F1367<'1 Données d''entrée'!$C$333+'1 Données d''entrée'!$C$334+1+$B1485,$L1473*('1 Données d''entrée'!$C$332*(1+'1 Données d''entrée'!$C$332)^'1 Données d''entrée'!$C$333)/((1+'1 Données d''entrée'!$C$332)^'1 Données d''entrée'!$C$333-1),0))","v":0},{"$f":"IF(G1367<'1 Données d''entrée'!$C$334+1+$B1485,0,IF(G1367<'1 Données d''entrée'!$C$333+'1 Données d''entrée'!$C$334+1+$B1485,$L1473*('1 Données d''entrée'!$C$332*(1+'1 Données d''entrée'!$C$332)^'1 Données d''entrée'!$C$333)/((1+'1 Données d''entrée'!$C$332)^'1 Données d''entrée'!$C$333-1),0))","v":0},{"$f":"IF(H1367<'1 Données d''entrée'!$C$334+1+$B1485,0,IF(H1367<'1 Données d''entrée'!$C$333+'1 Données d''entrée'!$C$334+1+$B1485,$L1473*('1 Données d''entrée'!$C$332*(1+'1 Données d''entrée'!$C$332)^'1 Données d''entrée'!$C$333)/((1+'1 Données d''entrée'!$C$332)^'1 Données d''entrée'!$C$333-1),0))","v":0},{"$f":"IF(I1367<'1 Données d''entrée'!$C$334+1+$B1485,0,IF(I1367<'1 Données d''entrée'!$C$333+'1 Données d''entrée'!$C$334+1+$B1485,$L1473*('1 Données d''entrée'!$C$332*(1+'1 Données d''entrée'!$C$332)^'1 Données d''entrée'!$C$333)/((1+'1 Données d''entrée'!$C$332)^'1 Données d''entrée'!$C$333-1),0))","v":0},{"$f":"IF(J1367<'1 Données d''entrée'!$C$334+1+$B1485,0,IF(J1367<'1 Données d''entrée'!$C$333+'1 Données d''entrée'!$C$334+1+$B1485,$L1473*('1 Données d''entrée'!$C$332*(1+'1 Données d''entrée'!$C$332)^'1 Données d''entrée'!$C$333)/((1+'1 Données d''entrée'!$C$332)^'1 Données d''entrée'!$C$333-1),0))","v":0},{"$f":"IF(K1367<'1 Données d''entrée'!$C$334+1+$B1485,0,IF(K1367<'1 Données d''entrée'!$C$333+'1 Données d''entrée'!$C$334+1+$B1485,$L1473*('1 Données d''entrée'!$C$332*(1+'1 Données d''entrée'!$C$332)^'1 Données d''entrée'!$C$333)/((1+'1 Données d''entrée'!$C$332)^'1 Données d''entrée'!$C$333-1),0))","v":0},{"$f":"IF(L1367<'1 Données d''entrée'!$C$334+1+$B1485,0,IF(L1367<'1 Données d''entrée'!$C$333+'1 Données d''entrée'!$C$334+1+$B1485,$L1473*('1 Données d''entrée'!$C$332*(1+'1 Données d''entrée'!$C$332)^'1 Données d''entrée'!$C$333)/((1+'1 Données d''entrée'!$C$332)^'1 Données d''entrée'!$C$333-1),0))","v":0},{"$f":"IF(M1367<'1 Données d''entrée'!$C$334+1+$B1485,0,IF(M1367<'1 Données d''entrée'!$C$333+'1 Données d''entrée'!$C$334+1+$B1485,$L1473*('1 Données d''entrée'!$C$332*(1+'1 Données d''entrée'!$C$332)^'1 Données d''entrée'!$C$333)/((1+'1 Données d''entrée'!$C$332)^'1 Données d''entrée'!$C$333-1),0))","v":0},{"$f":"IF(N1367<'1 Données d''entrée'!$C$334+1+$B1485,0,IF(N1367<'1 Données d''entrée'!$C$333+'1 Données d''entrée'!$C$334+1+$B1485,$L1473*('1 Données d''entrée'!$C$332*(1+'1 Données d''entrée'!$C$332)^'1 Données d''entrée'!$C$333)/((1+'1 Données d''entrée'!$C$332)^'1 Données d''entrée'!$C$333-1),0))","v":0},{"$f":"IF(O1367<'1 Données d''entrée'!$C$334+1+$B1485,0,IF(O1367<'1 Données d''entrée'!$C$333+'1 Données d''entrée'!$C$334+1+$B1485,$L1473*('1 Données d''entrée'!$C$332*(1+'1 Données d''entrée'!$C$332)^'1 Données d''entrée'!$C$333)/((1+'1 Données d''entrée'!$C$332)^'1 Données d''entrée'!$C$333-1),0))","v":0},{"$f":"IF(P1367<'1 Données d''entrée'!$C$334+1+$B1485,0,IF(P1367<'1 Données d''entrée'!$C$333+'1 Données d''entrée'!$C$334+1+$B1485,$L1473*('1 Données d''entrée'!$C$332*(1+'1 Données d''entrée'!$C$332)^'1 Données d''entrée'!$C$333)/((1+'1 Données d''entrée'!$C$332)^'1 Données d''entrée'!$C$333-1),0))","v":0},{"$f":"IF(Q1367<'1 Données d''entrée'!$C$334+1+$B1485,0,IF(Q1367<'1 Données d''entrée'!$C$333+'1 Données d''entrée'!$C$334+1+$B1485,$L1473*('1 Données d''entrée'!$C$332*(1+'1 Données d''entrée'!$C$332)^'1 Données d''entrée'!$C$333)/((1+'1 Données d''entrée'!$C$332)^'1 Données d''entrée'!$C$333-1),0))","v":0},{"$f":"IF(R1367<'1 Données d''entrée'!$C$334+1+$B1485,0,IF(R1367<'1 Données d''entrée'!$C$333+'1 Données d''entrée'!$C$334+1+$B1485,$L1473*('1 Données d''entrée'!$C$332*(1+'1 Données d''entrée'!$C$332)^'1 Données d''entrée'!$C$333)/((1+'1 Données d''entrée'!$C$332)^'1 Données d''entrée'!$C$333-1),0))","v":0},{"$f":"IF(S1367<'1 Données d''entrée'!$C$334+1+$B1485,0,IF(S1367<'1 Données d''entrée'!$C$333+'1 Données d''entrée'!$C$334+1+$B1485,$L1473*('1 Données d''entrée'!$C$332*(1+'1 Données d''entrée'!$C$332)^'1 Données d''entrée'!$C$333)/((1+'1 Données d''entrée'!$C$332)^'1 Données d''entrée'!$C$333-1),0))","v":0},{"$f":"IF(T1367<'1 Données d''entrée'!$C$334+1+$B1485,0,IF(T1367<'1 Données d''entrée'!$C$333+'1 Données d''entrée'!$C$334+1+$B1485,$L1473*('1 Données d''entrée'!$C$332*(1+'1 Données d''entrée'!$C$332)^'1 Données d''entrée'!$C$333)/((1+'1 Données d''entrée'!$C$332)^'1 Données d''entrée'!$C$333-1),0))","v":0},{"$f":"IF(U1367<'1 Données d''entrée'!$C$334+1+$B1485,0,IF(U1367<'1 Données d''entrée'!$C$333+'1 Données d''entrée'!$C$334+1+$B1485,$L1473*('1 Données d''entrée'!$C$332*(1+'1 Données d''entrée'!$C$332)^'1 Données d''entrée'!$C$333)/((1+'1 Données d''entrée'!$C$332)^'1 Données d''entrée'!$C$333-1),0))","v":0},{"$f":"IF(V1367<'1 Données d''entrée'!$C$334+1+$B1485,0,IF(V1367<'1 Données d''entrée'!$C$333+'1 Données d''entrée'!$C$334+1+$B1485,$L1473*('1 Données d''entrée'!$C$332*(1+'1 Données d''entrée'!$C$332)^'1 Données d''entrée'!$C$333)/((1+'1 Données d''entrée'!$C$332)^'1 Données d''entrée'!$C$333-1),0))","v":0}]
[null,"Période de prêt nouveau"]
["Paiement d'intérêt décroissant inclu dans l'annuité constante",0,0,0,0,0,0,0,0,0,0,0,0,0,0,0,0,0,0,0,0,0]
["Paiement d'intêrets",1,0,{"$f":"IF(D1476>0,$C1473*((('1 Données d''entrée'!$C$332+1)^'1 Données d''entrée'!$C$333)-(1+'1 Données d''entrée'!$C$332)^('6 Financement'!C$54-1-'1 Données d''entrée'!$C$334-$B1487))/((1+'1 Données d''entrée'!$C$332)^'1 Données d''entrée'!$C$333-1)*'1 Données d''entrée'!$C$332,0)","v":0},{"$f":"IF(E1476>0,$C1473*((('1 Données d''entrée'!$C$332+1)^'1 Données d''entrée'!$C$333)-(1+'1 Données d''entrée'!$C$332)^('6 Financement'!D$54-1-'1 Données d''entrée'!$C$334-$B1487))/((1+'1 Données d''entrée'!$C$332)^'1 Données d''entrée'!$C$333-1)*'1 Données d''entrée'!$C$332,0)","v":0},{"$f":"IF(F1476>0,$C1473*((('1 Données d''entrée'!$C$332+1)^'1 Données d''entrée'!$C$333)-(1+'1 Données d''entrée'!$C$332)^('6 Financement'!E$54-1-'1 Données d''entrée'!$C$334-$B1487))/((1+'1 Données d''entrée'!$C$332)^'1 Données d''entrée'!$C$333-1)*'1 Données d''entrée'!$C$332,0)","v":0},{"$f":"IF(G1476>0,$C1473*((('1 Données d''entrée'!$C$332+1)^'1 Données d''entrée'!$C$333)-(1+'1 Données d''entrée'!$C$332)^('6 Financement'!F$54-1-'1 Données d''entrée'!$C$334-$B1487))/((1+'1 Données d''entrée'!$C$332)^'1 Données d''entrée'!$C$333-1)*'1 Données d''entrée'!$C$332,0)","v":0},{"$f":"IF(H1476>0,$C1473*((('1 Données d''entrée'!$C$332+1)^'1 Données d''entrée'!$C$333)-(1+'1 Données d''entrée'!$C$332)^('6 Financement'!G$54-1-'1 Données d''entrée'!$C$334-$B1487))/((1+'1 Données d''entrée'!$C$332)^'1 Données d''entrée'!$C$333-1)*'1 Données d''entrée'!$C$332,0)","v":0},{"$f":"IF(I1476>0,$C1473*((('1 Données d''entrée'!$C$332+1)^'1 Données d''entrée'!$C$333)-(1+'1 Données d''entrée'!$C$332)^('6 Financement'!H$54-1-'1 Données d''entrée'!$C$334-$B1487))/((1+'1 Données d''entrée'!$C$332)^'1 Données d''entrée'!$C$333-1)*'1 Données d''entrée'!$C$332,0)","v":0},{"$f":"IF(J1476>0,$C1473*((('1 Données d''entrée'!$C$332+1)^'1 Données d''entrée'!$C$333)-(1+'1 Données d''entrée'!$C$332)^('6 Financement'!I$54-1-'1 Données d''entrée'!$C$334-$B1487))/((1+'1 Données d''entrée'!$C$332)^'1 Données d''entrée'!$C$333-1)*'1 Données d''entrée'!$C$332,0)","v":0},{"$f":"IF(K1476>0,$C1473*((('1 Données d''entrée'!$C$332+1)^'1 Données d''entrée'!$C$333)-(1+'1 Données d''entrée'!$C$332)^('6 Financement'!J$54-1-'1 Données d''entrée'!$C$334-$B1487))/((1+'1 Données d''entrée'!$C$332)^'1 Données d''entrée'!$C$333-1)*'1 Données d''entrée'!$C$332,0)","v":0},{"$f":"IF(L1476>0,$C1473*((('1 Données d''entrée'!$C$332+1)^'1 Données d''entrée'!$C$333)-(1+'1 Données d''entrée'!$C$332)^('6 Financement'!K$54-1-'1 Données d''entrée'!$C$334-$B1487))/((1+'1 Données d''entrée'!$C$332)^'1 Données d''entrée'!$C$333-1)*'1 Données d''entrée'!$C$332,0)","v":0},{"$f":"IF(M1476>0,$C1473*((('1 Données d''entrée'!$C$332+1)^'1 Données d''entrée'!$C$333)-(1+'1 Données d''entrée'!$C$332)^('6 Financement'!L$54-1-'1 Données d''entrée'!$C$334-$B1487))/((1+'1 Données d''entrée'!$C$332)^'1 Données d''entrée'!$C$333-1)*'1 Données d''entrée'!$C$332,0)","v":0},{"$f":"IF(N1476>0,$C1473*((('1 Données d''entrée'!$C$332+1)^'1 Données d''entrée'!$C$333)-(1+'1 Données d''entrée'!$C$332)^('6 Financement'!M$54-1-'1 Données d''entrée'!$C$334-$B1487))/((1+'1 Données d''entrée'!$C$332)^'1 Données d''entrée'!$C$333-1)*'1 Données d''entrée'!$C$332,0)","v":0},{"$f":"IF(O1476>0,$C1473*((('1 Données d''entrée'!$C$332+1)^'1 Données d''entrée'!$C$333)-(1+'1 Données d''entrée'!$C$332)^('6 Financement'!N$54-1-'1 Données d''entrée'!$C$334-$B1487))/((1+'1 Données d''entrée'!$C$332)^'1 Données d''entrée'!$C$333-1)*'1 Données d''entrée'!$C$332,0)","v":0},{"$f":"IF(P1476>0,$C1473*((('1 Données d''entrée'!$C$332+1)^'1 Données d''entrée'!$C$333)-(1+'1 Données d''entrée'!$C$332)^('6 Financement'!O$54-1-'1 Données d''entrée'!$C$334-$B1487))/((1+'1 Données d''entrée'!$C$332)^'1 Données d''entrée'!$C$333-1)*'1 Données d''entrée'!$C$332,0)","v":0},{"$f":"IF(Q1476>0,$C1473*((('1 Données d''entrée'!$C$332+1)^'1 Données d''entrée'!$C$333)-(1+'1 Données d''entrée'!$C$332)^('6 Financement'!P$54-1-'1 Données d''entrée'!$C$334-$B1487))/((1+'1 Données d''entrée'!$C$332)^'1 Données d''entrée'!$C$333-1)*'1 Données d''entrée'!$C$332,0)","v":0},{"$f":"IF(R1476>0,$C1473*((('1 Données d''entrée'!$C$332+1)^'1 Données d''entrée'!$C$333)-(1+'1 Données d''entrée'!$C$332)^('6 Financement'!Q$54-1-'1 Données d''entrée'!$C$334-$B1487))/((1+'1 Données d''entrée'!$C$332)^'1 Données d''entrée'!$C$333-1)*'1 Données d''entrée'!$C$332,0)","v":0},{"$f":"IF(S1476>0,$C1473*((('1 Données d''entrée'!$C$332+1)^'1 Données d''entrée'!$C$333)-(1+'1 Données d''entrée'!$C$332)^('6 Financement'!R$54-1-'1 Données d''entrée'!$C$334-$B1487))/((1+'1 Données d''entrée'!$C$332)^'1 Données d''entrée'!$C$333-1)*'1 Données d''entrée'!$C$332,0)","v":0},{"$f":"IF(T1476>0,$C1473*((('1 Données d''entrée'!$C$332+1)^'1 Données d''entrée'!$C$333)-(1+'1 Données d''entrée'!$C$332)^('6 Financement'!S$54-1-'1 Données d''entrée'!$C$334-$B1487))/((1+'1 Données d''entrée'!$C$332)^'1 Données d''entrée'!$C$333-1)*'1 Données d''entrée'!$C$332,0)","v":0},{"$f":"IF(U1476>0,$C1473*((('1 Données d''entrée'!$C$332+1)^'1 Données d''entrée'!$C$333)-(1+'1 Données d''entrée'!$C$332)^('6 Financement'!T$54-1-'1 Données d''entrée'!$C$334-$B1487))/((1+'1 Données d''entrée'!$C$332)^'1 Données d''entrée'!$C$333-1)*'1 Données d''entrée'!$C$332,0)","v":0},{"$f":"IF(V1476>0,$C1473*((('1 Données d''entrée'!$C$332+1)^'1 Données d''entrée'!$C$333)-(1+'1 Données d''entrée'!$C$332)^('6 Financement'!U$54-1-'1 Données d''entrée'!$C$334-$B1487))/((1+'1 Données d''entrée'!$C$332)^'1 Données d''entrée'!$C$333-1)*'1 Données d''entrée'!$C$332,0)","v":0}]
["Paiement d'intêrets",2,0,{"$f":"IF(D1477>0,$D1473*((('1 Données d''entrée'!$C$332+1)^'1 Données d''entrée'!$C$333)-(1+'1 Données d''entrée'!$C$332)^('6 Financement'!C$54-1-'1 Données d''entrée'!$C$334-$B1488))/((1+'1 Données d''entrée'!$C$332)^'1 Données d''entrée'!$C$333-1)*'1 Données d''entrée'!$C$332,0)","v":0},{"$f":"IF(E1477>0,$D1473*((('1 Données d''entrée'!$C$332+1)^'1 Données d''entrée'!$C$333)-(1+'1 Données d''entrée'!$C$332)^('6 Financement'!D$54-1-'1 Données d''entrée'!$C$334-$B1488))/((1+'1 Données d''entrée'!$C$332)^'1 Données d''entrée'!$C$333-1)*'1 Données d''entrée'!$C$332,0)","v":0},{"$f":"IF(F1477>0,$D1473*((('1 Données d''entrée'!$C$332+1)^'1 Données d''entrée'!$C$333)-(1+'1 Données d''entrée'!$C$332)^('6 Financement'!E$54-1-'1 Données d''entrée'!$C$334-$B1488))/((1+'1 Données d''entrée'!$C$332)^'1 Données d''entrée'!$C$333-1)*'1 Données d''entrée'!$C$332,0)","v":0},{"$f":"IF(G1477>0,$D1473*((('1 Données d''entrée'!$C$332+1)^'1 Données d''entrée'!$C$333)-(1+'1 Données d''entrée'!$C$332)^('6 Financement'!F$54-1-'1 Données d''entrée'!$C$334-$B1488))/((1+'1 Données d''entrée'!$C$332)^'1 Données d''entrée'!$C$333-1)*'1 Données d''entrée'!$C$332,0)","v":0},{"$f":"IF(H1477>0,$D1473*((('1 Données d''entrée'!$C$332+1)^'1 Données d''entrée'!$C$333)-(1+'1 Données d''entrée'!$C$332)^('6 Financement'!G$54-1-'1 Données d''entrée'!$C$334-$B1488))/((1+'1 Données d''entrée'!$C$332)^'1 Données d''entrée'!$C$333-1)*'1 Données d''entrée'!$C$332,0)","v":0},{"$f":"IF(I1477>0,$D1473*((('1 Données d''entrée'!$C$332+1)^'1 Données d''entrée'!$C$333)-(1+'1 Données d''entrée'!$C$332)^('6 Financement'!H$54-1-'1 Données d''entrée'!$C$334-$B1488))/((1+'1 Données d''entrée'!$C$332)^'1 Données d''entrée'!$C$333-1)*'1 Données d''entrée'!$C$332,0)","v":0},{"$f":"IF(J1477>0,$D1473*((('1 Données d''entrée'!$C$332+1)^'1 Données d''entrée'!$C$333)-(1+'1 Données d''entrée'!$C$332)^('6 Financement'!I$54-1-'1 Données d''entrée'!$C$334-$B1488))/((1+'1 Données d''entrée'!$C$332)^'1 Données d''entrée'!$C$333-1)*'1 Données d''entrée'!$C$332,0)","v":0},{"$f":"IF(K1477>0,$D1473*((('1 Données d''entrée'!$C$332+1)^'1 Données d''entrée'!$C$333)-(1+'1 Données d''entrée'!$C$332)^('6 Financement'!J$54-1-'1 Données d''entrée'!$C$334-$B1488))/((1+'1 Données d''entrée'!$C$332)^'1 Données d''entrée'!$C$333-1)*'1 Données d''entrée'!$C$332,0)","v":0},{"$f":"IF(L1477>0,$D1473*((('1 Données d''entrée'!$C$332+1)^'1 Données d''entrée'!$C$333)-(1+'1 Données d''entrée'!$C$332)^('6 Financement'!K$54-1-'1 Données d''entrée'!$C$334-$B1488))/((1+'1 Données d''entrée'!$C$332)^'1 Données d''entrée'!$C$333-1)*'1 Données d''entrée'!$C$332,0)","v":0},{"$f":"IF(M1477>0,$D1473*((('1 Données d''entrée'!$C$332+1)^'1 Données d''entrée'!$C$333)-(1+'1 Données d''entrée'!$C$332)^('6 Financement'!L$54-1-'1 Données d''entrée'!$C$334-$B1488))/((1+'1 Données d''entrée'!$C$332)^'1 Données d''entrée'!$C$333-1)*'1 Données d''entrée'!$C$332,0)","v":0},{"$f":"IF(N1477>0,$D1473*((('1 Données d''entrée'!$C$332+1)^'1 Données d''entrée'!$C$333)-(1+'1 Données d''entrée'!$C$332)^('6 Financement'!M$54-1-'1 Données d''entrée'!$C$334-$B1488))/((1+'1 Données d''entrée'!$C$332)^'1 Données d''entrée'!$C$333-1)*'1 Données d''entrée'!$C$332,0)","v":0},{"$f":"IF(O1477>0,$D1473*((('1 Données d''entrée'!$C$332+1)^'1 Données d''entrée'!$C$333)-(1+'1 Données d''entrée'!$C$332)^('6 Financement'!N$54-1-'1 Données d''entrée'!$C$334-$B1488))/((1+'1 Données d''entrée'!$C$332)^'1 Données d''entrée'!$C$333-1)*'1 Données d''entrée'!$C$332,0)","v":0},{"$f":"IF(P1477>0,$D1473*((('1 Données d''entrée'!$C$332+1)^'1 Données d''entrée'!$C$333)-(1+'1 Données d''entrée'!$C$332)^('6 Financement'!O$54-1-'1 Données d''entrée'!$C$334-$B1488))/((1+'1 Données d''entrée'!$C$332)^'1 Données d''entrée'!$C$333-1)*'1 Données d''entrée'!$C$332,0)","v":0},{"$f":"IF(Q1477>0,$D1473*((('1 Données d''entrée'!$C$332+1)^'1 Données d''entrée'!$C$333)-(1+'1 Données d''entrée'!$C$332)^('6 Financement'!P$54-1-'1 Données d''entrée'!$C$334-$B1488))/((1+'1 Données d''entrée'!$C$332)^'1 Données d''entrée'!$C$333-1)*'1 Données d''entrée'!$C$332,0)","v":0},{"$f":"IF(R1477>0,$D1473*((('1 Données d''entrée'!$C$332+1)^'1 Données d''entrée'!$C$333)-(1+'1 Données d''entrée'!$C$332)^('6 Financement'!Q$54-1-'1 Données d''entrée'!$C$334-$B1488))/((1+'1 Données d''entrée'!$C$332)^'1 Données d''entrée'!$C$333-1)*'1 Données d''entrée'!$C$332,0)","v":0},{"$f":"IF(S1477>0,$D1473*((('1 Données d''entrée'!$C$332+1)^'1 Données d''entrée'!$C$333)-(1+'1 Données d''entrée'!$C$332)^('6 Financement'!R$54-1-'1 Données d''entrée'!$C$334-$B1488))/((1+'1 Données d''entrée'!$C$332)^'1 Données d''entrée'!$C$333-1)*'1 Données d''entrée'!$C$332,0)","v":0},{"$f":"IF(T1477>0,$D1473*((('1 Données d''entrée'!$C$332+1)^'1 Données d''entrée'!$C$333)-(1+'1 Données d''entrée'!$C$332)^('6 Financement'!S$54-1-'1 Données d''entrée'!$C$334-$B1488))/((1+'1 Données d''entrée'!$C$332)^'1 Données d''entrée'!$C$333-1)*'1 Données d''entrée'!$C$332,0)","v":0},{"$f":"IF(U1477>0,$D1473*((('1 Données d''entrée'!$C$332+1)^'1 Données d''entrée'!$C$333)-(1+'1 Données d''entrée'!$C$332)^('6 Financement'!T$54-1-'1 Données d''entrée'!$C$334-$B1488))/((1+'1 Données d''entrée'!$C$332)^'1 Données d''entrée'!$C$333-1)*'1 Données d''entrée'!$C$332,0)","v":0},{"$f":"IF(V1477>0,$D1473*((('1 Données d''entrée'!$C$332+1)^'1 Données d''entrée'!$C$333)-(1+'1 Données d''entrée'!$C$332)^('6 Financement'!U$54-1-'1 Données d''entrée'!$C$334-$B1488))/((1+'1 Données d''entrée'!$C$332)^'1 Données d''entrée'!$C$333-1)*'1 Données d''entrée'!$C$332,0)","v":0}]
["Paiement d'intêrets",3,0,{"$f":"IF(D1478>0,$E1473*((('1 Données d''entrée'!$C$332+1)^'1 Données d''entrée'!$C$333)-(1+'1 Données d''entrée'!$C$332)^('6 Financement'!C$54-1-'1 Données d''entrée'!$C$334-$B1489))/((1+'1 Données d''entrée'!$C$332)^'1 Données d''entrée'!$C$333-1)*'1 Données d''entrée'!$C$332,0)","v":0},{"$f":"IF(E1478>0,$E1473*((('1 Données d''entrée'!$C$332+1)^'1 Données d''entrée'!$C$333)-(1+'1 Données d''entrée'!$C$332)^('6 Financement'!D$54-1-'1 Données d''entrée'!$C$334-$B1489))/((1+'1 Données d''entrée'!$C$332)^'1 Données d''entrée'!$C$333-1)*'1 Données d''entrée'!$C$332,0)","v":0},{"$f":"IF(F1478>0,$E1473*((('1 Données d''entrée'!$C$332+1)^'1 Données d''entrée'!$C$333)-(1+'1 Données d''entrée'!$C$332)^('6 Financement'!E$54-1-'1 Données d''entrée'!$C$334-$B1489))/((1+'1 Données d''entrée'!$C$332)^'1 Données d''entrée'!$C$333-1)*'1 Données d''entrée'!$C$332,0)","v":0},{"$f":"IF(G1478>0,$E1473*((('1 Données d''entrée'!$C$332+1)^'1 Données d''entrée'!$C$333)-(1+'1 Données d''entrée'!$C$332)^('6 Financement'!F$54-1-'1 Données d''entrée'!$C$334-$B1489))/((1+'1 Données d''entrée'!$C$332)^'1 Données d''entrée'!$C$333-1)*'1 Données d''entrée'!$C$332,0)","v":0},{"$f":"IF(H1478>0,$E1473*((('1 Données d''entrée'!$C$332+1)^'1 Données d''entrée'!$C$333)-(1+'1 Données d''entrée'!$C$332)^('6 Financement'!G$54-1-'1 Données d''entrée'!$C$334-$B1489))/((1+'1 Données d''entrée'!$C$332)^'1 Données d''entrée'!$C$333-1)*'1 Données d''entrée'!$C$332,0)","v":0},{"$f":"IF(I1478>0,$E1473*((('1 Données d''entrée'!$C$332+1)^'1 Données d''entrée'!$C$333)-(1+'1 Données d''entrée'!$C$332)^('6 Financement'!H$54-1-'1 Données d''entrée'!$C$334-$B1489))/((1+'1 Données d''entrée'!$C$332)^'1 Données d''entrée'!$C$333-1)*'1 Données d''entrée'!$C$332,0)","v":0},{"$f":"IF(J1478>0,$E1473*((('1 Données d''entrée'!$C$332+1)^'1 Données d''entrée'!$C$333)-(1+'1 Données d''entrée'!$C$332)^('6 Financement'!I$54-1-'1 Données d''entrée'!$C$334-$B1489))/((1+'1 Données d''entrée'!$C$332)^'1 Données d''entrée'!$C$333-1)*'1 Données d''entrée'!$C$332,0)","v":0},{"$f":"IF(K1478>0,$E1473*((('1 Données d''entrée'!$C$332+1)^'1 Données d''entrée'!$C$333)-(1+'1 Données d''entrée'!$C$332)^('6 Financement'!J$54-1-'1 Données d''entrée'!$C$334-$B1489))/((1+'1 Données d''entrée'!$C$332)^'1 Données d''entrée'!$C$333-1)*'1 Données d''entrée'!$C$332,0)","v":0},{"$f":"IF(L1478>0,$E1473*((('1 Données d''entrée'!$C$332+1)^'1 Données d''entrée'!$C$333)-(1+'1 Données d''entrée'!$C$332)^('6 Financement'!K$54-1-'1 Données d''entrée'!$C$334-$B1489))/((1+'1 Données d''entrée'!$C$332)^'1 Données d''entrée'!$C$333-1)*'1 Données d''entrée'!$C$332,0)","v":0},{"$f":"IF(M1478>0,$E1473*((('1 Données d''entrée'!$C$332+1)^'1 Données d''entrée'!$C$333)-(1+'1 Données d''entrée'!$C$332)^('6 Financement'!L$54-1-'1 Données d''entrée'!$C$334-$B1489))/((1+'1 Données d''entrée'!$C$332)^'1 Données d''entrée'!$C$333-1)*'1 Données d''entrée'!$C$332,0)","v":0},{"$f":"IF(N1478>0,$E1473*((('1 Données d''entrée'!$C$332+1)^'1 Données d''entrée'!$C$333)-(1+'1 Données d''entrée'!$C$332)^('6 Financement'!M$54-1-'1 Données d''entrée'!$C$334-$B1489))/((1+'1 Données d''entrée'!$C$332)^'1 Données d''entrée'!$C$333-1)*'1 Données d''entrée'!$C$332,0)","v":0},{"$f":"IF(O1478>0,$E1473*((('1 Données d''entrée'!$C$332+1)^'1 Données d''entrée'!$C$333)-(1+'1 Données d''entrée'!$C$332)^('6 Financement'!N$54-1-'1 Données d''entrée'!$C$334-$B1489))/((1+'1 Données d''entrée'!$C$332)^'1 Données d''entrée'!$C$333-1)*'1 Données d''entrée'!$C$332,0)","v":0},{"$f":"IF(P1478>0,$E1473*((('1 Données d''entrée'!$C$332+1)^'1 Données d''entrée'!$C$333)-(1+'1 Données d''entrée'!$C$332)^('6 Financement'!O$54-1-'1 Données d''entrée'!$C$334-$B1489))/((1+'1 Données d''entrée'!$C$332)^'1 Données d''entrée'!$C$333-1)*'1 Données d''entrée'!$C$332,0)","v":0},{"$f":"IF(Q1478>0,$E1473*((('1 Données d''entrée'!$C$332+1)^'1 Données d''entrée'!$C$333)-(1+'1 Données d''entrée'!$C$332)^('6 Financement'!P$54-1-'1 Données d''entrée'!$C$334-$B1489))/((1+'1 Données d''entrée'!$C$332)^'1 Données d''entrée'!$C$333-1)*'1 Données d''entrée'!$C$332,0)","v":0},{"$f":"IF(R1478>0,$E1473*((('1 Données d''entrée'!$C$332+1)^'1 Données d''entrée'!$C$333)-(1+'1 Données d''entrée'!$C$332)^('6 Financement'!Q$54-1-'1 Données d''entrée'!$C$334-$B1489))/((1+'1 Données d''entrée'!$C$332)^'1 Données d''entrée'!$C$333-1)*'1 Données d''entrée'!$C$332,0)","v":0},{"$f":"IF(S1478>0,$E1473*((('1 Données d''entrée'!$C$332+1)^'1 Données d''entrée'!$C$333)-(1+'1 Données d''entrée'!$C$332)^('6 Financement'!R$54-1-'1 Données d''entrée'!$C$334-$B1489))/((1+'1 Données d''entrée'!$C$332)^'1 Données d''entrée'!$C$333-1)*'1 Données d''entrée'!$C$332,0)","v":0},{"$f":"IF(T1478>0,$E1473*((('1 Données d''entrée'!$C$332+1)^'1 Données d''entrée'!$C$333)-(1+'1 Données d''entrée'!$C$332)^('6 Financement'!S$54-1-'1 Données d''entrée'!$C$334-$B1489))/((1+'1 Données d''entrée'!$C$332)^'1 Données d''entrée'!$C$333-1)*'1 Données d''entrée'!$C$332,0)","v":0},{"$f":"IF(U1478>0,$E1473*((('1 Données d''entrée'!$C$332+1)^'1 Données d''entrée'!$C$333)-(1+'1 Données d''entrée'!$C$332)^('6 Financement'!T$54-1-'1 Données d''entrée'!$C$334-$B1489))/((1+'1 Données d''entrée'!$C$332)^'1 Données d''entrée'!$C$333-1)*'1 Données d''entrée'!$C$332,0)","v":0},{"$f":"IF(V1478>0,$E1473*((('1 Données d''entrée'!$C$332+1)^'1 Données d''entrée'!$C$333)-(1+'1 Données d''entrée'!$C$332)^('6 Financement'!U$54-1-'1 Données d''entrée'!$C$334-$B1489))/((1+'1 Données d''entrée'!$C$332)^'1 Données d''entrée'!$C$333-1)*'1 Données d''entrée'!$C$332,0)","v":0}]
["Paiement d'intêrets",4,0,{"$f":"IF(D1479>0,$F1473*((('1 Données d''entrée'!$C$332+1)^'1 Données d''entrée'!$C$333)-(1+'1 Données d''entrée'!$C$332)^('6 Financement'!C$54-1-'1 Données d''entrée'!$C$334-$B1490))/((1+'1 Données d''entrée'!$C$332)^'1 Données d''entrée'!$C$333-1)*'1 Données d''entrée'!$C$332,0)","v":0},{"$f":"IF(E1479>0,$F1473*((('1 Données d''entrée'!$C$332+1)^'1 Données d''entrée'!$C$333)-(1+'1 Données d''entrée'!$C$332)^('6 Financement'!D$54-1-'1 Données d''entrée'!$C$334-$B1490))/((1+'1 Données d''entrée'!$C$332)^'1 Données d''entrée'!$C$333-1)*'1 Données d''entrée'!$C$332,0)","v":0},{"$f":"IF(F1479>0,$F1473*((('1 Données d''entrée'!$C$332+1)^'1 Données d''entrée'!$C$333)-(1+'1 Données d''entrée'!$C$332)^('6 Financement'!E$54-1-'1 Données d''entrée'!$C$334-$B1490))/((1+'1 Données d''entrée'!$C$332)^'1 Données d''entrée'!$C$333-1)*'1 Données d''entrée'!$C$332,0)","v":0},{"$f":"IF(G1479>0,$F1473*((('1 Données d''entrée'!$C$332+1)^'1 Données d''entrée'!$C$333)-(1+'1 Données d''entrée'!$C$332)^('6 Financement'!F$54-1-'1 Données d''entrée'!$C$334-$B1490))/((1+'1 Données d''entrée'!$C$332)^'1 Données d''entrée'!$C$333-1)*'1 Données d''entrée'!$C$332,0)","v":0},{"$f":"IF(H1479>0,$F1473*((('1 Données d''entrée'!$C$332+1)^'1 Données d''entrée'!$C$333)-(1+'1 Données d''entrée'!$C$332)^('6 Financement'!G$54-1-'1 Données d''entrée'!$C$334-$B1490))/((1+'1 Données d''entrée'!$C$332)^'1 Données d''entrée'!$C$333-1)*'1 Données d''entrée'!$C$332,0)","v":0},{"$f":"IF(I1479>0,$F1473*((('1 Données d''entrée'!$C$332+1)^'1 Données d''entrée'!$C$333)-(1+'1 Données d''entrée'!$C$332)^('6 Financement'!H$54-1-'1 Données d''entrée'!$C$334-$B1490))/((1+'1 Données d''entrée'!$C$332)^'1 Données d''entrée'!$C$333-1)*'1 Données d''entrée'!$C$332,0)","v":0},{"$f":"IF(J1479>0,$F1473*((('1 Données d''entrée'!$C$332+1)^'1 Données d''entrée'!$C$333)-(1+'1 Données d''entrée'!$C$332)^('6 Financement'!I$54-1-'1 Données d''entrée'!$C$334-$B1490))/((1+'1 Données d''entrée'!$C$332)^'1 Données d''entrée'!$C$333-1)*'1 Données d''entrée'!$C$332,0)","v":0},{"$f":"IF(K1479>0,$F1473*((('1 Données d''entrée'!$C$332+1)^'1 Données d''entrée'!$C$333)-(1+'1 Données d''entrée'!$C$332)^('6 Financement'!J$54-1-'1 Données d''entrée'!$C$334-$B1490))/((1+'1 Données d''entrée'!$C$332)^'1 Données d''entrée'!$C$333-1)*'1 Données d''entrée'!$C$332,0)","v":0},{"$f":"IF(L1479>0,$F1473*((('1 Données d''entrée'!$C$332+1)^'1 Données d''entrée'!$C$333)-(1+'1 Données d''entrée'!$C$332)^('6 Financement'!K$54-1-'1 Données d''entrée'!$C$334-$B1490))/((1+'1 Données d''entrée'!$C$332)^'1 Données d''entrée'!$C$333-1)*'1 Données d''entrée'!$C$332,0)","v":0},{"$f":"IF(M1479>0,$F1473*((('1 Données d''entrée'!$C$332+1)^'1 Données d''entrée'!$C$333)-(1+'1 Données d''entrée'!$C$332)^('6 Financement'!L$54-1-'1 Données d''entrée'!$C$334-$B1490))/((1+'1 Données d''entrée'!$C$332)^'1 Données d''entrée'!$C$333-1)*'1 Données d''entrée'!$C$332,0)","v":0},{"$f":"IF(N1479>0,$F1473*((('1 Données d''entrée'!$C$332+1)^'1 Données d''entrée'!$C$333)-(1+'1 Données d''entrée'!$C$332)^('6 Financement'!M$54-1-'1 Données d''entrée'!$C$334-$B1490))/((1+'1 Données d''entrée'!$C$332)^'1 Données d''entrée'!$C$333-1)*'1 Données d''entrée'!$C$332,0)","v":0},{"$f":"IF(O1479>0,$F1473*((('1 Données d''entrée'!$C$332+1)^'1 Données d''entrée'!$C$333)-(1+'1 Données d''entrée'!$C$332)^('6 Financement'!N$54-1-'1 Données d''entrée'!$C$334-$B1490))/((1+'1 Données d''entrée'!$C$332)^'1 Données d''entrée'!$C$333-1)*'1 Données d''entrée'!$C$332,0)","v":0},{"$f":"IF(P1479>0,$F1473*((('1 Données d''entrée'!$C$332+1)^'1 Données d''entrée'!$C$333)-(1+'1 Données d''entrée'!$C$332)^('6 Financement'!O$54-1-'1 Données d''entrée'!$C$334-$B1490))/((1+'1 Données d''entrée'!$C$332)^'1 Données d''entrée'!$C$333-1)*'1 Données d''entrée'!$C$332,0)","v":0},{"$f":"IF(Q1479>0,$F1473*((('1 Données d''entrée'!$C$332+1)^'1 Données d''entrée'!$C$333)-(1+'1 Données d''entrée'!$C$332)^('6 Financement'!P$54-1-'1 Données d''entrée'!$C$334-$B1490))/((1+'1 Données d''entrée'!$C$332)^'1 Données d''entrée'!$C$333-1)*'1 Données d''entrée'!$C$332,0)","v":0},{"$f":"IF(R1479>0,$F1473*((('1 Données d''entrée'!$C$332+1)^'1 Données d''entrée'!$C$333)-(1+'1 Données d''entrée'!$C$332)^('6 Financement'!Q$54-1-'1 Données d''entrée'!$C$334-$B1490))/((1+'1 Données d''entrée'!$C$332)^'1 Données d''entrée'!$C$333-1)*'1 Données d''entrée'!$C$332,0)","v":0},{"$f":"IF(S1479>0,$F1473*((('1 Données d''entrée'!$C$332+1)^'1 Données d''entrée'!$C$333)-(1+'1 Données d''entrée'!$C$332)^('6 Financement'!R$54-1-'1 Données d''entrée'!$C$334-$B1490))/((1+'1 Données d''entrée'!$C$332)^'1 Données d''entrée'!$C$333-1)*'1 Données d''entrée'!$C$332,0)","v":0},{"$f":"IF(T1479>0,$F1473*((('1 Données d''entrée'!$C$332+1)^'1 Données d''entrée'!$C$333)-(1+'1 Données d''entrée'!$C$332)^('6 Financement'!S$54-1-'1 Données d''entrée'!$C$334-$B1490))/((1+'1 Données d''entrée'!$C$332)^'1 Données d''entrée'!$C$333-1)*'1 Données d''entrée'!$C$332,0)","v":0},{"$f":"IF(U1479>0,$F1473*((('1 Données d''entrée'!$C$332+1)^'1 Données d''entrée'!$C$333)-(1+'1 Données d''entrée'!$C$332)^('6 Financement'!T$54-1-'1 Données d''entrée'!$C$334-$B1490))/((1+'1 Données d''entrée'!$C$332)^'1 Données d''entrée'!$C$333-1)*'1 Données d''entrée'!$C$332,0)","v":0},{"$f":"IF(V1479>0,$F1473*((('1 Données d''entrée'!$C$332+1)^'1 Données d''entrée'!$C$333)-(1+'1 Données d''entrée'!$C$332)^('6 Financement'!U$54-1-'1 Données d''entrée'!$C$334-$B1490))/((1+'1 Données d''entrée'!$C$332)^'1 Données d''entrée'!$C$333-1)*'1 Données d''entrée'!$C$332,0)","v":0}]
["Paiement d'intêrets",5,0,{"$f":"IF(D1480>0,$G1473*((('1 Données d''entrée'!$C$332+1)^'1 Données d''entrée'!$C$333)-(1+'1 Données d''entrée'!$C$332)^('6 Financement'!C$54-1-'1 Données d''entrée'!$C$334-$B1491))/((1+'1 Données d''entrée'!$C$332)^'1 Données d''entrée'!$C$333-1)*'1 Données d''entrée'!$C$332,0)","v":0},{"$f":"IF(E1480>0,$G1473*((('1 Données d''entrée'!$C$332+1)^'1 Données d''entrée'!$C$333)-(1+'1 Données d''entrée'!$C$332)^('6 Financement'!D$54-1-'1 Données d''entrée'!$C$334-$B1491))/((1+'1 Données d''entrée'!$C$332)^'1 Données d''entrée'!$C$333-1)*'1 Données d''entrée'!$C$332,0)","v":0},{"$f":"IF(F1480>0,$G1473*((('1 Données d''entrée'!$C$332+1)^'1 Données d''entrée'!$C$333)-(1+'1 Données d''entrée'!$C$332)^('6 Financement'!E$54-1-'1 Données d''entrée'!$C$334-$B1491))/((1+'1 Données d''entrée'!$C$332)^'1 Données d''entrée'!$C$333-1)*'1 Données d''entrée'!$C$332,0)","v":0},{"$f":"IF(G1480>0,$G1473*((('1 Données d''entrée'!$C$332+1)^'1 Données d''entrée'!$C$333)-(1+'1 Données d''entrée'!$C$332)^('6 Financement'!F$54-1-'1 Données d''entrée'!$C$334-$B1491))/((1+'1 Données d''entrée'!$C$332)^'1 Données d''entrée'!$C$333-1)*'1 Données d''entrée'!$C$332,0)","v":0},{"$f":"IF(H1480>0,$G1473*((('1 Données d''entrée'!$C$332+1)^'1 Données d''entrée'!$C$333)-(1+'1 Données d''entrée'!$C$332)^('6 Financement'!G$54-1-'1 Données d''entrée'!$C$334-$B1491))/((1+'1 Données d''entrée'!$C$332)^'1 Données d''entrée'!$C$333-1)*'1 Données d''entrée'!$C$332,0)","v":0},{"$f":"IF(I1480>0,$G1473*((('1 Données d''entrée'!$C$332+1)^'1 Données d''entrée'!$C$333)-(1+'1 Données d''entrée'!$C$332)^('6 Financement'!H$54-1-'1 Données d''entrée'!$C$334-$B1491))/((1+'1 Données d''entrée'!$C$332)^'1 Données d''entrée'!$C$333-1)*'1 Données d''entrée'!$C$332,0)","v":0},{"$f":"IF(J1480>0,$G1473*((('1 Données d''entrée'!$C$332+1)^'1 Données d''entrée'!$C$333)-(1+'1 Données d''entrée'!$C$332)^('6 Financement'!I$54-1-'1 Données d''entrée'!$C$334-$B1491))/((1+'1 Données d''entrée'!$C$332)^'1 Données d''entrée'!$C$333-1)*'1 Données d''entrée'!$C$332,0)","v":0},{"$f":"IF(K1480>0,$G1473*((('1 Données d''entrée'!$C$332+1)^'1 Données d''entrée'!$C$333)-(1+'1 Données d''entrée'!$C$332)^('6 Financement'!J$54-1-'1 Données d''entrée'!$C$334-$B1491))/((1+'1 Données d''entrée'!$C$332)^'1 Données d''entrée'!$C$333-1)*'1 Données d''entrée'!$C$332,0)","v":0},{"$f":"IF(L1480>0,$G1473*((('1 Données d''entrée'!$C$332+1)^'1 Données d''entrée'!$C$333)-(1+'1 Données d''entrée'!$C$332)^('6 Financement'!K$54-1-'1 Données d''entrée'!$C$334-$B1491))/((1+'1 Données d''entrée'!$C$332)^'1 Données d''entrée'!$C$333-1)*'1 Données d''entrée'!$C$332,0)","v":0},{"$f":"IF(M1480>0,$G1473*((('1 Données d''entrée'!$C$332+1)^'1 Données d''entrée'!$C$333)-(1+'1 Données d''entrée'!$C$332)^('6 Financement'!L$54-1-'1 Données d''entrée'!$C$334-$B1491))/((1+'1 Données d''entrée'!$C$332)^'1 Données d''entrée'!$C$333-1)*'1 Données d''entrée'!$C$332,0)","v":0},{"$f":"IF(N1480>0,$G1473*((('1 Données d''entrée'!$C$332+1)^'1 Données d''entrée'!$C$333)-(1+'1 Données d''entrée'!$C$332)^('6 Financement'!M$54-1-'1 Données d''entrée'!$C$334-$B1491))/((1+'1 Données d''entrée'!$C$332)^'1 Données d''entrée'!$C$333-1)*'1 Données d''entrée'!$C$332,0)","v":0},{"$f":"IF(O1480>0,$G1473*((('1 Données d''entrée'!$C$332+1)^'1 Données d''entrée'!$C$333)-(1+'1 Données d''entrée'!$C$332)^('6 Financement'!N$54-1-'1 Données d''entrée'!$C$334-$B1491))/((1+'1 Données d''entrée'!$C$332)^'1 Données d''entrée'!$C$333-1)*'1 Données d''entrée'!$C$332,0)","v":0},{"$f":"IF(P1480>0,$G1473*((('1 Données d''entrée'!$C$332+1)^'1 Données d''entrée'!$C$333)-(1+'1 Données d''entrée'!$C$332)^('6 Financement'!O$54-1-'1 Données d''entrée'!$C$334-$B1491))/((1+'1 Données d''entrée'!$C$332)^'1 Données d''entrée'!$C$333-1)*'1 Données d''entrée'!$C$332,0)","v":0},{"$f":"IF(Q1480>0,$G1473*((('1 Données d''entrée'!$C$332+1)^'1 Données d''entrée'!$C$333)-(1+'1 Données d''entrée'!$C$332)^('6 Financement'!P$54-1-'1 Données d''entrée'!$C$334-$B1491))/((1+'1 Données d''entrée'!$C$332)^'1 Données d''entrée'!$C$333-1)*'1 Données d''entrée'!$C$332,0)","v":0},{"$f":"IF(R1480>0,$G1473*((('1 Données d''entrée'!$C$332+1)^'1 Données d''entrée'!$C$333)-(1+'1 Données d''entrée'!$C$332)^('6 Financement'!Q$54-1-'1 Données d''entrée'!$C$334-$B1491))/((1+'1 Données d''entrée'!$C$332)^'1 Données d''entrée'!$C$333-1)*'1 Données d''entrée'!$C$332,0)","v":0},{"$f":"IF(S1480>0,$G1473*((('1 Données d''entrée'!$C$332+1)^'1 Données d''entrée'!$C$333)-(1+'1 Données d''entrée'!$C$332)^('6 Financement'!R$54-1-'1 Données d''entrée'!$C$334-$B1491))/((1+'1 Données d''entrée'!$C$332)^'1 Données d''entrée'!$C$333-1)*'1 Données d''entrée'!$C$332,0)","v":0},{"$f":"IF(T1480>0,$G1473*((('1 Données d''entrée'!$C$332+1)^'1 Données d''entrée'!$C$333)-(1+'1 Données d''entrée'!$C$332)^('6 Financement'!S$54-1-'1 Données d''entrée'!$C$334-$B1491))/((1+'1 Données d''entrée'!$C$332)^'1 Données d''entrée'!$C$333-1)*'1 Données d''entrée'!$C$332,0)","v":0},{"$f":"IF(U1480>0,$G1473*((('1 Données d''entrée'!$C$332+1)^'1 Données d''entrée'!$C$333)-(1+'1 Données d''entrée'!$C$332)^('6 Financement'!T$54-1-'1 Données d''entrée'!$C$334-$B1491))/((1+'1 Données d''entrée'!$C$332)^'1 Données d''entrée'!$C$333-1)*'1 Données d''entrée'!$C$332,0)","v":0},{"$f":"IF(V1480>0,$G1473*((('1 Données d''entrée'!$C$332+1)^'1 Données d''entrée'!$C$333)-(1+'1 Données d''entrée'!$C$332)^('6 Financement'!U$54-1-'1 Données d''entrée'!$C$334-$B1491))/((1+'1 Données d''entrée'!$C$332)^'1 Données d''entrée'!$C$333-1)*'1 Données d''entrée'!$C$332,0)","v":0}]
["Paiement d'intêrets",6,0,{"$f":"IF(D1481>0,$H1473*((('1 Données d''entrée'!$C$332+1)^'1 Données d''entrée'!$C$333)-(1+'1 Données d''entrée'!$C$332)^('6 Financement'!C$54-1-'1 Données d''entrée'!$C$334-$B1492))/((1+'1 Données d''entrée'!$C$332)^'1 Données d''entrée'!$C$333-1)*'1 Données d''entrée'!$C$332,0)","v":0},{"$f":"IF(E1481>0,$H1473*((('1 Données d''entrée'!$C$332+1)^'1 Données d''entrée'!$C$333)-(1+'1 Données d''entrée'!$C$332)^('6 Financement'!D$54-1-'1 Données d''entrée'!$C$334-$B1492))/((1+'1 Données d''entrée'!$C$332)^'1 Données d''entrée'!$C$333-1)*'1 Données d''entrée'!$C$332,0)","v":0},{"$f":"IF(F1481>0,$H1473*((('1 Données d''entrée'!$C$332+1)^'1 Données d''entrée'!$C$333)-(1+'1 Données d''entrée'!$C$332)^('6 Financement'!E$54-1-'1 Données d''entrée'!$C$334-$B1492))/((1+'1 Données d''entrée'!$C$332)^'1 Données d''entrée'!$C$333-1)*'1 Données d''entrée'!$C$332,0)","v":0},{"$f":"IF(G1481>0,$H1473*((('1 Données d''entrée'!$C$332+1)^'1 Données d''entrée'!$C$333)-(1+'1 Données d''entrée'!$C$332)^('6 Financement'!F$54-1-'1 Données d''entrée'!$C$334-$B1492))/((1+'1 Données d''entrée'!$C$332)^'1 Données d''entrée'!$C$333-1)*'1 Données d''entrée'!$C$332,0)","v":0},{"$f":"IF(H1481>0,$H1473*((('1 Données d''entrée'!$C$332+1)^'1 Données d''entrée'!$C$333)-(1+'1 Données d''entrée'!$C$332)^('6 Financement'!G$54-1-'1 Données d''entrée'!$C$334-$B1492))/((1+'1 Données d''entrée'!$C$332)^'1 Données d''entrée'!$C$333-1)*'1 Données d''entrée'!$C$332,0)","v":0},{"$f":"IF(I1481>0,$H1473*((('1 Données d''entrée'!$C$332+1)^'1 Données d''entrée'!$C$333)-(1+'1 Données d''entrée'!$C$332)^('6 Financement'!H$54-1-'1 Données d''entrée'!$C$334-$B1492))/((1+'1 Données d''entrée'!$C$332)^'1 Données d''entrée'!$C$333-1)*'1 Données d''entrée'!$C$332,0)","v":0},{"$f":"IF(J1481>0,$H1473*((('1 Données d''entrée'!$C$332+1)^'1 Données d''entrée'!$C$333)-(1+'1 Données d''entrée'!$C$332)^('6 Financement'!I$54-1-'1 Données d''entrée'!$C$334-$B1492))/((1+'1 Données d''entrée'!$C$332)^'1 Données d''entrée'!$C$333-1)*'1 Données d''entrée'!$C$332,0)","v":0},{"$f":"IF(K1481>0,$H1473*((('1 Données d''entrée'!$C$332+1)^'1 Données d''entrée'!$C$333)-(1+'1 Données d''entrée'!$C$332)^('6 Financement'!J$54-1-'1 Données d''entrée'!$C$334-$B1492))/((1+'1 Données d''entrée'!$C$332)^'1 Données d''entrée'!$C$333-1)*'1 Données d''entrée'!$C$332,0)","v":0},{"$f":"IF(L1481>0,$H1473*((('1 Données d''entrée'!$C$332+1)^'1 Données d''entrée'!$C$333)-(1+'1 Données d''entrée'!$C$332)^('6 Financement'!K$54-1-'1 Données d''entrée'!$C$334-$B1492))/((1+'1 Données d''entrée'!$C$332)^'1 Données d''entrée'!$C$333-1)*'1 Données d''entrée'!$C$332,0)","v":0},{"$f":"IF(M1481>0,$H1473*((('1 Données d''entrée'!$C$332+1)^'1 Données d''entrée'!$C$333)-(1+'1 Données d''entrée'!$C$332)^('6 Financement'!L$54-1-'1 Données d''entrée'!$C$334-$B1492))/((1+'1 Données d''entrée'!$C$332)^'1 Données d''entrée'!$C$333-1)*'1 Données d''entrée'!$C$332,0)","v":0},{"$f":"IF(N1481>0,$H1473*((('1 Données d''entrée'!$C$332+1)^'1 Données d''entrée'!$C$333)-(1+'1 Données d''entrée'!$C$332)^('6 Financement'!M$54-1-'1 Données d''entrée'!$C$334-$B1492))/((1+'1 Données d''entrée'!$C$332)^'1 Données d''entrée'!$C$333-1)*'1 Données d''entrée'!$C$332,0)","v":0},{"$f":"IF(O1481>0,$H1473*((('1 Données d''entrée'!$C$332+1)^'1 Données d''entrée'!$C$333)-(1+'1 Données d''entrée'!$C$332)^('6 Financement'!N$54-1-'1 Données d''entrée'!$C$334-$B1492))/((1+'1 Données d''entrée'!$C$332)^'1 Données d''entrée'!$C$333-1)*'1 Données d''entrée'!$C$332,0)","v":0},{"$f":"IF(P1481>0,$H1473*((('1 Données d''entrée'!$C$332+1)^'1 Données d''entrée'!$C$333)-(1+'1 Données d''entrée'!$C$332)^('6 Financement'!O$54-1-'1 Données d''entrée'!$C$334-$B1492))/((1+'1 Données d''entrée'!$C$332)^'1 Données d''entrée'!$C$333-1)*'1 Données d''entrée'!$C$332,0)","v":0},{"$f":"IF(Q1481>0,$H1473*((('1 Données d''entrée'!$C$332+1)^'1 Données d''entrée'!$C$333)-(1+'1 Données d''entrée'!$C$332)^('6 Financement'!P$54-1-'1 Données d''entrée'!$C$334-$B1492))/((1+'1 Données d''entrée'!$C$332)^'1 Données d''entrée'!$C$333-1)*'1 Données d''entrée'!$C$332,0)","v":0},{"$f":"IF(R1481>0,$H1473*((('1 Données d''entrée'!$C$332+1)^'1 Données d''entrée'!$C$333)-(1+'1 Données d''entrée'!$C$332)^('6 Financement'!Q$54-1-'1 Données d''entrée'!$C$334-$B1492))/((1+'1 Données d''entrée'!$C$332)^'1 Données d''entrée'!$C$333-1)*'1 Données d''entrée'!$C$332,0)","v":0},{"$f":"IF(S1481>0,$H1473*((('1 Données d''entrée'!$C$332+1)^'1 Données d''entrée'!$C$333)-(1+'1 Données d''entrée'!$C$332)^('6 Financement'!R$54-1-'1 Données d''entrée'!$C$334-$B1492))/((1+'1 Données d''entrée'!$C$332)^'1 Données d''entrée'!$C$333-1)*'1 Données d''entrée'!$C$332,0)","v":0},{"$f":"IF(T1481>0,$H1473*((('1 Données d''entrée'!$C$332+1)^'1 Données d''entrée'!$C$333)-(1+'1 Données d''entrée'!$C$332)^('6 Financement'!S$54-1-'1 Données d''entrée'!$C$334-$B1492))/((1+'1 Données d''entrée'!$C$332)^'1 Données d''entrée'!$C$333-1)*'1 Données d''entrée'!$C$332,0)","v":0},{"$f":"IF(U1481>0,$H1473*((('1 Données d''entrée'!$C$332+1)^'1 Données d''entrée'!$C$333)-(1+'1 Données d''entrée'!$C$332)^('6 Financement'!T$54-1-'1 Données d''entrée'!$C$334-$B1492))/((1+'1 Données d''entrée'!$C$332)^'1 Données d''entrée'!$C$333-1)*'1 Données d''entrée'!$C$332,0)","v":0},{"$f":"IF(V1481>0,$H1473*((('1 Données d''entrée'!$C$332+1)^'1 Données d''entrée'!$C$333)-(1+'1 Données d''entrée'!$C$332)^('6 Financement'!U$54-1-'1 Données d''entrée'!$C$334-$B1492))/((1+'1 Données d''entrée'!$C$332)^'1 Données d''entrée'!$C$333-1)*'1 Données d''entrée'!$C$332,0)","v":0}]
["Paiement d'intêrets",7,0,{"$f":"IF(D1482>0,$I1473*((('1 Données d''entrée'!$C$332+1)^'1 Données d''entrée'!$C$333)-(1+'1 Données d''entrée'!$C$332)^('6 Financement'!C$54-1-'1 Données d''entrée'!$C$334-$B1493))/((1+'1 Données d''entrée'!$C$332)^'1 Données d''entrée'!$C$333-1)*'1 Données d''entrée'!$C$332,0)","v":0},{"$f":"IF(E1482>0,$I1473*((('1 Données d''entrée'!$C$332+1)^'1 Données d''entrée'!$C$333)-(1+'1 Données d''entrée'!$C$332)^('6 Financement'!D$54-1-'1 Données d''entrée'!$C$334-$B1493))/((1+'1 Données d''entrée'!$C$332)^'1 Données d''entrée'!$C$333-1)*'1 Données d''entrée'!$C$332,0)","v":0},{"$f":"IF(F1482>0,$I1473*((('1 Données d''entrée'!$C$332+1)^'1 Données d''entrée'!$C$333)-(1+'1 Données d''entrée'!$C$332)^('6 Financement'!E$54-1-'1 Données d''entrée'!$C$334-$B1493))/((1+'1 Données d''entrée'!$C$332)^'1 Données d''entrée'!$C$333-1)*'1 Données d''entrée'!$C$332,0)","v":0},{"$f":"IF(G1482>0,$I1473*((('1 Données d''entrée'!$C$332+1)^'1 Données d''entrée'!$C$333)-(1+'1 Données d''entrée'!$C$332)^('6 Financement'!F$54-1-'1 Données d''entrée'!$C$334-$B1493))/((1+'1 Données d''entrée'!$C$332)^'1 Données d''entrée'!$C$333-1)*'1 Données d''entrée'!$C$332,0)","v":0},{"$f":"IF(H1482>0,$I1473*((('1 Données d''entrée'!$C$332+1)^'1 Données d''entrée'!$C$333)-(1+'1 Données d''entrée'!$C$332)^('6 Financement'!G$54-1-'1 Données d''entrée'!$C$334-$B1493))/((1+'1 Données d''entrée'!$C$332)^'1 Données d''entrée'!$C$333-1)*'1 Données d''entrée'!$C$332,0)","v":0},{"$f":"IF(I1482>0,$I1473*((('1 Données d''entrée'!$C$332+1)^'1 Données d''entrée'!$C$333)-(1+'1 Données d''entrée'!$C$332)^('6 Financement'!H$54-1-'1 Données d''entrée'!$C$334-$B1493))/((1+'1 Données d''entrée'!$C$332)^'1 Données d''entrée'!$C$333-1)*'1 Données d''entrée'!$C$332,0)","v":0},{"$f":"IF(J1482>0,$I1473*((('1 Données d''entrée'!$C$332+1)^'1 Données d''entrée'!$C$333)-(1+'1 Données d''entrée'!$C$332)^('6 Financement'!I$54-1-'1 Données d''entrée'!$C$334-$B1493))/((1+'1 Données d''entrée'!$C$332)^'1 Données d''entrée'!$C$333-1)*'1 Données d''entrée'!$C$332,0)","v":0},{"$f":"IF(K1482>0,$I1473*((('1 Données d''entrée'!$C$332+1)^'1 Données d''entrée'!$C$333)-(1+'1 Données d''entrée'!$C$332)^('6 Financement'!J$54-1-'1 Données d''entrée'!$C$334-$B1493))/((1+'1 Données d''entrée'!$C$332)^'1 Données d''entrée'!$C$333-1)*'1 Données d''entrée'!$C$332,0)","v":0},{"$f":"IF(L1482>0,$I1473*((('1 Données d''entrée'!$C$332+1)^'1 Données d''entrée'!$C$333)-(1+'1 Données d''entrée'!$C$332)^('6 Financement'!K$54-1-'1 Données d''entrée'!$C$334-$B1493))/((1+'1 Données d''entrée'!$C$332)^'1 Données d''entrée'!$C$333-1)*'1 Données d''entrée'!$C$332,0)","v":0},{"$f":"IF(M1482>0,$I1473*((('1 Données d''entrée'!$C$332+1)^'1 Données d''entrée'!$C$333)-(1+'1 Données d''entrée'!$C$332)^('6 Financement'!L$54-1-'1 Données d''entrée'!$C$334-$B1493))/((1+'1 Données d''entrée'!$C$332)^'1 Données d''entrée'!$C$333-1)*'1 Données d''entrée'!$C$332,0)","v":0},{"$f":"IF(N1482>0,$I1473*((('1 Données d''entrée'!$C$332+1)^'1 Données d''entrée'!$C$333)-(1+'1 Données d''entrée'!$C$332)^('6 Financement'!M$54-1-'1 Données d''entrée'!$C$334-$B1493))/((1+'1 Données d''entrée'!$C$332)^'1 Données d''entrée'!$C$333-1)*'1 Données d''entrée'!$C$332,0)","v":0},{"$f":"IF(O1482>0,$I1473*((('1 Données d''entrée'!$C$332+1)^'1 Données d''entrée'!$C$333)-(1+'1 Données d''entrée'!$C$332)^('6 Financement'!N$54-1-'1 Données d''entrée'!$C$334-$B1493))/((1+'1 Données d''entrée'!$C$332)^'1 Données d''entrée'!$C$333-1)*'1 Données d''entrée'!$C$332,0)","v":0},{"$f":"IF(P1482>0,$I1473*((('1 Données d''entrée'!$C$332+1)^'1 Données d''entrée'!$C$333)-(1+'1 Données d''entrée'!$C$332)^('6 Financement'!O$54-1-'1 Données d''entrée'!$C$334-$B1493))/((1+'1 Données d''entrée'!$C$332)^'1 Données d''entrée'!$C$333-1)*'1 Données d''entrée'!$C$332,0)","v":0},{"$f":"IF(Q1482>0,$I1473*((('1 Données d''entrée'!$C$332+1)^'1 Données d''entrée'!$C$333)-(1+'1 Données d''entrée'!$C$332)^('6 Financement'!P$54-1-'1 Données d''entrée'!$C$334-$B1493))/((1+'1 Données d''entrée'!$C$332)^'1 Données d''entrée'!$C$333-1)*'1 Données d''entrée'!$C$332,0)","v":0},{"$f":"IF(R1482>0,$I1473*((('1 Données d''entrée'!$C$332+1)^'1 Données d''entrée'!$C$333)-(1+'1 Données d''entrée'!$C$332)^('6 Financement'!Q$54-1-'1 Données d''entrée'!$C$334-$B1493))/((1+'1 Données d''entrée'!$C$332)^'1 Données d''entrée'!$C$333-1)*'1 Données d''entrée'!$C$332,0)","v":0},{"$f":"IF(S1482>0,$I1473*((('1 Données d''entrée'!$C$332+1)^'1 Données d''entrée'!$C$333)-(1+'1 Données d''entrée'!$C$332)^('6 Financement'!R$54-1-'1 Données d''entrée'!$C$334-$B1493))/((1+'1 Données d''entrée'!$C$332)^'1 Données d''entrée'!$C$333-1)*'1 Données d''entrée'!$C$332,0)","v":0},{"$f":"IF(T1482>0,$I1473*((('1 Données d''entrée'!$C$332+1)^'1 Données d''entrée'!$C$333)-(1+'1 Données d''entrée'!$C$332)^('6 Financement'!S$54-1-'1 Données d''entrée'!$C$334-$B1493))/((1+'1 Données d''entrée'!$C$332)^'1 Données d''entrée'!$C$333-1)*'1 Données d''entrée'!$C$332,0)","v":0},{"$f":"IF(U1482>0,$I1473*((('1 Données d''entrée'!$C$332+1)^'1 Données d''entrée'!$C$333)-(1+'1 Données d''entrée'!$C$332)^('6 Financement'!T$54-1-'1 Données d''entrée'!$C$334-$B1493))/((1+'1 Données d''entrée'!$C$332)^'1 Données d''entrée'!$C$333-1)*'1 Données d''entrée'!$C$332,0)","v":0},{"$f":"IF(V1482>0,$I1473*((('1 Données d''entrée'!$C$332+1)^'1 Données d''entrée'!$C$333)-(1+'1 Données d''entrée'!$C$332)^('6 Financement'!U$54-1-'1 Données d''entrée'!$C$334-$B1493))/((1+'1 Données d''entrée'!$C$332)^'1 Données d''entrée'!$C$333-1)*'1 Données d''entrée'!$C$332,0)","v":0}]
["Paiement d'intêrets",8,0,{"$f":"IF(D1483>0,$J1473*((('1 Données d''entrée'!$C$332+1)^'1 Données d''entrée'!$C$333)-(1+'1 Données d''entrée'!$C$332)^('6 Financement'!C$54-1-'1 Données d''entrée'!$C$334-$B1494))/((1+'1 Données d''entrée'!$C$332)^'1 Données d''entrée'!$C$333-1)*'1 Données d''entrée'!$C$332,0)","v":0},{"$f":"IF(E1483>0,$J1473*((('1 Données d''entrée'!$C$332+1)^'1 Données d''entrée'!$C$333)-(1+'1 Données d''entrée'!$C$332)^('6 Financement'!D$54-1-'1 Données d''entrée'!$C$334-$B1494))/((1+'1 Données d''entrée'!$C$332)^'1 Données d''entrée'!$C$333-1)*'1 Données d''entrée'!$C$332,0)","v":0},{"$f":"IF(F1483>0,$J1473*((('1 Données d''entrée'!$C$332+1)^'1 Données d''entrée'!$C$333)-(1+'1 Données d''entrée'!$C$332)^('6 Financement'!E$54-1-'1 Données d''entrée'!$C$334-$B1494))/((1+'1 Données d''entrée'!$C$332)^'1 Données d''entrée'!$C$333-1)*'1 Données d''entrée'!$C$332,0)","v":0},{"$f":"IF(G1483>0,$J1473*((('1 Données d''entrée'!$C$332+1)^'1 Données d''entrée'!$C$333)-(1+'1 Données d''entrée'!$C$332)^('6 Financement'!F$54-1-'1 Données d''entrée'!$C$334-$B1494))/((1+'1 Données d''entrée'!$C$332)^'1 Données d''entrée'!$C$333-1)*'1 Données d''entrée'!$C$332,0)","v":0},{"$f":"IF(H1483>0,$J1473*((('1 Données d''entrée'!$C$332+1)^'1 Données d''entrée'!$C$333)-(1+'1 Données d''entrée'!$C$332)^('6 Financement'!G$54-1-'1 Données d''entrée'!$C$334-$B1494))/((1+'1 Données d''entrée'!$C$332)^'1 Données d''entrée'!$C$333-1)*'1 Données d''entrée'!$C$332,0)","v":0},{"$f":"IF(I1483>0,$J1473*((('1 Données d''entrée'!$C$332+1)^'1 Données d''entrée'!$C$333)-(1+'1 Données d''entrée'!$C$332)^('6 Financement'!H$54-1-'1 Données d''entrée'!$C$334-$B1494))/((1+'1 Données d''entrée'!$C$332)^'1 Données d''entrée'!$C$333-1)*'1 Données d''entrée'!$C$332,0)","v":0},{"$f":"IF(J1483>0,$J1473*((('1 Données d''entrée'!$C$332+1)^'1 Données d''entrée'!$C$333)-(1+'1 Données d''entrée'!$C$332)^('6 Financement'!I$54-1-'1 Données d''entrée'!$C$334-$B1494))/((1+'1 Données d''entrée'!$C$332)^'1 Données d''entrée'!$C$333-1)*'1 Données d''entrée'!$C$332,0)","v":0},{"$f":"IF(K1483>0,$J1473*((('1 Données d''entrée'!$C$332+1)^'1 Données d''entrée'!$C$333)-(1+'1 Données d''entrée'!$C$332)^('6 Financement'!J$54-1-'1 Données d''entrée'!$C$334-$B1494))/((1+'1 Données d''entrée'!$C$332)^'1 Données d''entrée'!$C$333-1)*'1 Données d''entrée'!$C$332,0)","v":0},{"$f":"IF(L1483>0,$J1473*((('1 Données d''entrée'!$C$332+1)^'1 Données d''entrée'!$C$333)-(1+'1 Données d''entrée'!$C$332)^('6 Financement'!K$54-1-'1 Données d''entrée'!$C$334-$B1494))/((1+'1 Données d''entrée'!$C$332)^'1 Données d''entrée'!$C$333-1)*'1 Données d''entrée'!$C$332,0)","v":0},{"$f":"IF(M1483>0,$J1473*((('1 Données d''entrée'!$C$332+1)^'1 Données d''entrée'!$C$333)-(1+'1 Données d''entrée'!$C$332)^('6 Financement'!L$54-1-'1 Données d''entrée'!$C$334-$B1494))/((1+'1 Données d''entrée'!$C$332)^'1 Données d''entrée'!$C$333-1)*'1 Données d''entrée'!$C$332,0)","v":0},{"$f":"IF(N1483>0,$J1473*((('1 Données d''entrée'!$C$332+1)^'1 Données d''entrée'!$C$333)-(1+'1 Données d''entrée'!$C$332)^('6 Financement'!M$54-1-'1 Données d''entrée'!$C$334-$B1494))/((1+'1 Données d''entrée'!$C$332)^'1 Données d''entrée'!$C$333-1)*'1 Données d''entrée'!$C$332,0)","v":0},{"$f":"IF(O1483>0,$J1473*((('1 Données d''entrée'!$C$332+1)^'1 Données d''entrée'!$C$333)-(1+'1 Données d''entrée'!$C$332)^('6 Financement'!N$54-1-'1 Données d''entrée'!$C$334-$B1494))/((1+'1 Données d''entrée'!$C$332)^'1 Données d''entrée'!$C$333-1)*'1 Données d''entrée'!$C$332,0)","v":0},{"$f":"IF(P1483>0,$J1473*((('1 Données d''entrée'!$C$332+1)^'1 Données d''entrée'!$C$333)-(1+'1 Données d''entrée'!$C$332)^('6 Financement'!O$54-1-'1 Données d''entrée'!$C$334-$B1494))/((1+'1 Données d''entrée'!$C$332)^'1 Données d''entrée'!$C$333-1)*'1 Données d''entrée'!$C$332,0)","v":0},{"$f":"IF(Q1483>0,$J1473*((('1 Données d''entrée'!$C$332+1)^'1 Données d''entrée'!$C$333)-(1+'1 Données d''entrée'!$C$332)^('6 Financement'!P$54-1-'1 Données d''entrée'!$C$334-$B1494))/((1+'1 Données d''entrée'!$C$332)^'1 Données d''entrée'!$C$333-1)*'1 Données d''entrée'!$C$332,0)","v":0},{"$f":"IF(R1483>0,$J1473*((('1 Données d''entrée'!$C$332+1)^'1 Données d''entrée'!$C$333)-(1+'1 Données d''entrée'!$C$332)^('6 Financement'!Q$54-1-'1 Données d''entrée'!$C$334-$B1494))/((1+'1 Données d''entrée'!$C$332)^'1 Données d''entrée'!$C$333-1)*'1 Données d''entrée'!$C$332,0)","v":0},{"$f":"IF(S1483>0,$J1473*((('1 Données d''entrée'!$C$332+1)^'1 Données d''entrée'!$C$333)-(1+'1 Données d''entrée'!$C$332)^('6 Financement'!R$54-1-'1 Données d''entrée'!$C$334-$B1494))/((1+'1 Données d''entrée'!$C$332)^'1 Données d''entrée'!$C$333-1)*'1 Données d''entrée'!$C$332,0)","v":0},{"$f":"IF(T1483>0,$J1473*((('1 Données d''entrée'!$C$332+1)^'1 Données d''entrée'!$C$333)-(1+'1 Données d''entrée'!$C$332)^('6 Financement'!S$54-1-'1 Données d''entrée'!$C$334-$B1494))/((1+'1 Données d''entrée'!$C$332)^'1 Données d''entrée'!$C$333-1)*'1 Données d''entrée'!$C$332,0)","v":0},{"$f":"IF(U1483>0,$J1473*((('1 Données d''entrée'!$C$332+1)^'1 Données d''entrée'!$C$333)-(1+'1 Données d''entrée'!$C$332)^('6 Financement'!T$54-1-'1 Données d''entrée'!$C$334-$B1494))/((1+'1 Données d''entrée'!$C$332)^'1 Données d''entrée'!$C$333-1)*'1 Données d''entrée'!$C$332,0)","v":0},{"$f":"IF(V1483>0,$J1473*((('1 Données d''entrée'!$C$332+1)^'1 Données d''entrée'!$C$333)-(1+'1 Données d''entrée'!$C$332)^('6 Financement'!U$54-1-'1 Données d''entrée'!$C$334-$B1494))/((1+'1 Données d''entrée'!$C$332)^'1 Données d''entrée'!$C$333-1)*'1 Données d''entrée'!$C$332,0)","v":0}]
["Paiement d'intêrets",9,0,{"$f":"IF(D1484>0,$K1473*((('1 Données d''entrée'!$C$332+1)^'1 Données d''entrée'!$C$333)-(1+'1 Données d''entrée'!$C$332)^('6 Financement'!C$54-1-'1 Données d''entrée'!$C$334-$B1495))/((1+'1 Données d''entrée'!$C$332)^'1 Données d''entrée'!$C$333-1)*'1 Données d''entrée'!$C$332,0)","v":0},{"$f":"IF(E1484>0,$K1473*((('1 Données d''entrée'!$C$332+1)^'1 Données d''entrée'!$C$333)-(1+'1 Données d''entrée'!$C$332)^('6 Financement'!D$54-1-'1 Données d''entrée'!$C$334-$B1495))/((1+'1 Données d''entrée'!$C$332)^'1 Données d''entrée'!$C$333-1)*'1 Données d''entrée'!$C$332,0)","v":0},{"$f":"IF(F1484>0,$K1473*((('1 Données d''entrée'!$C$332+1)^'1 Données d''entrée'!$C$333)-(1+'1 Données d''entrée'!$C$332)^('6 Financement'!E$54-1-'1 Données d''entrée'!$C$334-$B1495))/((1+'1 Données d''entrée'!$C$332)^'1 Données d''entrée'!$C$333-1)*'1 Données d''entrée'!$C$332,0)","v":0},{"$f":"IF(G1484>0,$K1473*((('1 Données d''entrée'!$C$332+1)^'1 Données d''entrée'!$C$333)-(1+'1 Données d''entrée'!$C$332)^('6 Financement'!F$54-1-'1 Données d''entrée'!$C$334-$B1495))/((1+'1 Données d''entrée'!$C$332)^'1 Données d''entrée'!$C$333-1)*'1 Données d''entrée'!$C$332,0)","v":0},{"$f":"IF(H1484>0,$K1473*((('1 Données d''entrée'!$C$332+1)^'1 Données d''entrée'!$C$333)-(1+'1 Données d''entrée'!$C$332)^('6 Financement'!G$54-1-'1 Données d''entrée'!$C$334-$B1495))/((1+'1 Données d''entrée'!$C$332)^'1 Données d''entrée'!$C$333-1)*'1 Données d''entrée'!$C$332,0)","v":0},{"$f":"IF(I1484>0,$K1473*((('1 Données d''entrée'!$C$332+1)^'1 Données d''entrée'!$C$333)-(1+'1 Données d''entrée'!$C$332)^('6 Financement'!H$54-1-'1 Données d''entrée'!$C$334-$B1495))/((1+'1 Données d''entrée'!$C$332)^'1 Données d''entrée'!$C$333-1)*'1 Données d''entrée'!$C$332,0)","v":0},{"$f":"IF(J1484>0,$K1473*((('1 Données d''entrée'!$C$332+1)^'1 Données d''entrée'!$C$333)-(1+'1 Données d''entrée'!$C$332)^('6 Financement'!I$54-1-'1 Données d''entrée'!$C$334-$B1495))/((1+'1 Données d''entrée'!$C$332)^'1 Données d''entrée'!$C$333-1)*'1 Données d''entrée'!$C$332,0)","v":0},{"$f":"IF(K1484>0,$K1473*((('1 Données d''entrée'!$C$332+1)^'1 Données d''entrée'!$C$333)-(1+'1 Données d''entrée'!$C$332)^('6 Financement'!J$54-1-'1 Données d''entrée'!$C$334-$B1495))/((1+'1 Données d''entrée'!$C$332)^'1 Données d''entrée'!$C$333-1)*'1 Données d''entrée'!$C$332,0)","v":0},{"$f":"IF(L1484>0,$K1473*((('1 Données d''entrée'!$C$332+1)^'1 Données d''entrée'!$C$333)-(1+'1 Données d''entrée'!$C$332)^('6 Financement'!K$54-1-'1 Données d''entrée'!$C$334-$B1495))/((1+'1 Données d''entrée'!$C$332)^'1 Données d''entrée'!$C$333-1)*'1 Données d''entrée'!$C$332,0)","v":0},{"$f":"IF(M1484>0,$K1473*((('1 Données d''entrée'!$C$332+1)^'1 Données d''entrée'!$C$333)-(1+'1 Données d''entrée'!$C$332)^('6 Financement'!L$54-1-'1 Données d''entrée'!$C$334-$B1495))/((1+'1 Données d''entrée'!$C$332)^'1 Données d''entrée'!$C$333-1)*'1 Données d''entrée'!$C$332,0)","v":0},{"$f":"IF(N1484>0,$K1473*((('1 Données d''entrée'!$C$332+1)^'1 Données d''entrée'!$C$333)-(1+'1 Données d''entrée'!$C$332)^('6 Financement'!M$54-1-'1 Données d''entrée'!$C$334-$B1495))/((1+'1 Données d''entrée'!$C$332)^'1 Données d''entrée'!$C$333-1)*'1 Données d''entrée'!$C$332,0)","v":0},{"$f":"IF(O1484>0,$K1473*((('1 Données d''entrée'!$C$332+1)^'1 Données d''entrée'!$C$333)-(1+'1 Données d''entrée'!$C$332)^('6 Financement'!N$54-1-'1 Données d''entrée'!$C$334-$B1495))/((1+'1 Données d''entrée'!$C$332)^'1 Données d''entrée'!$C$333-1)*'1 Données d''entrée'!$C$332,0)","v":0},{"$f":"IF(P1484>0,$K1473*((('1 Données d''entrée'!$C$332+1)^'1 Données d''entrée'!$C$333)-(1+'1 Données d''entrée'!$C$332)^('6 Financement'!O$54-1-'1 Données d''entrée'!$C$334-$B1495))/((1+'1 Données d''entrée'!$C$332)^'1 Données d''entrée'!$C$333-1)*'1 Données d''entrée'!$C$332,0)","v":0},{"$f":"IF(Q1484>0,$K1473*((('1 Données d''entrée'!$C$332+1)^'1 Données d''entrée'!$C$333)-(1+'1 Données d''entrée'!$C$332)^('6 Financement'!P$54-1-'1 Données d''entrée'!$C$334-$B1495))/((1+'1 Données d''entrée'!$C$332)^'1 Données d''entrée'!$C$333-1)*'1 Données d''entrée'!$C$332,0)","v":0},{"$f":"IF(R1484>0,$K1473*((('1 Données d''entrée'!$C$332+1)^'1 Données d''entrée'!$C$333)-(1+'1 Données d''entrée'!$C$332)^('6 Financement'!Q$54-1-'1 Données d''entrée'!$C$334-$B1495))/((1+'1 Données d''entrée'!$C$332)^'1 Données d''entrée'!$C$333-1)*'1 Données d''entrée'!$C$332,0)","v":0},{"$f":"IF(S1484>0,$K1473*((('1 Données d''entrée'!$C$332+1)^'1 Données d''entrée'!$C$333)-(1+'1 Données d''entrée'!$C$332)^('6 Financement'!R$54-1-'1 Données d''entrée'!$C$334-$B1495))/((1+'1 Données d''entrée'!$C$332)^'1 Données d''entrée'!$C$333-1)*'1 Données d''entrée'!$C$332,0)","v":0},{"$f":"IF(T1484>0,$K1473*((('1 Données d''entrée'!$C$332+1)^'1 Données d''entrée'!$C$333)-(1+'1 Données d''entrée'!$C$332)^('6 Financement'!S$54-1-'1 Données d''entrée'!$C$334-$B1495))/((1+'1 Données d''entrée'!$C$332)^'1 Données d''entrée'!$C$333-1)*'1 Données d''entrée'!$C$332,0)","v":0},{"$f":"IF(U1484>0,$K1473*((('1 Données d''entrée'!$C$332+1)^'1 Données d''entrée'!$C$333)-(1+'1 Données d''entrée'!$C$332)^('6 Financement'!T$54-1-'1 Données d''entrée'!$C$334-$B1495))/((1+'1 Données d''entrée'!$C$332)^'1 Données d''entrée'!$C$333-1)*'1 Données d''entrée'!$C$332,0)","v":0},{"$f":"IF(V1484>0,$K1473*((('1 Données d''entrée'!$C$332+1)^'1 Données d''entrée'!$C$333)-(1+'1 Données d''entrée'!$C$332)^('6 Financement'!U$54-1-'1 Données d''entrée'!$C$334-$B1495))/((1+'1 Données d''entrée'!$C$332)^'1 Données d''entrée'!$C$333-1)*'1 Données d''entrée'!$C$332,0)","v":0}]
["Paiement d'intêrets",10,0,{"$f":"IF(D1485>0,$L1473*((('1 Données d''entrée'!$C$332+1)^'1 Données d''entrée'!$C$333)-(1+'1 Données d''entrée'!$C$332)^('6 Financement'!C$54-1-'1 Données d''entrée'!$C$334-$B1496))/((1+'1 Données d''entrée'!$C$332)^'1 Données d''entrée'!$C$333-1)*'1 Données d''entrée'!$C$332,0)","v":0},{"$f":"IF(E1485>0,$L1473*((('1 Données d''entrée'!$C$332+1)^'1 Données d''entrée'!$C$333)-(1+'1 Données d''entrée'!$C$332)^('6 Financement'!D$54-1-'1 Données d''entrée'!$C$334-$B1496))/((1+'1 Données d''entrée'!$C$332)^'1 Données d''entrée'!$C$333-1)*'1 Données d''entrée'!$C$332,0)","v":0},{"$f":"IF(F1485>0,$L1473*((('1 Données d''entrée'!$C$332+1)^'1 Données d''entrée'!$C$333)-(1+'1 Données d''entrée'!$C$332)^('6 Financement'!E$54-1-'1 Données d''entrée'!$C$334-$B1496))/((1+'1 Données d''entrée'!$C$332)^'1 Données d''entrée'!$C$333-1)*'1 Données d''entrée'!$C$332,0)","v":0},{"$f":"IF(G1485>0,$L1473*((('1 Données d''entrée'!$C$332+1)^'1 Données d''entrée'!$C$333)-(1+'1 Données d''entrée'!$C$332)^('6 Financement'!F$54-1-'1 Données d''entrée'!$C$334-$B1496))/((1+'1 Données d''entrée'!$C$332)^'1 Données d''entrée'!$C$333-1)*'1 Données d''entrée'!$C$332,0)","v":0},{"$f":"IF(H1485>0,$L1473*((('1 Données d''entrée'!$C$332+1)^'1 Données d''entrée'!$C$333)-(1+'1 Données d''entrée'!$C$332)^('6 Financement'!G$54-1-'1 Données d''entrée'!$C$334-$B1496))/((1+'1 Données d''entrée'!$C$332)^'1 Données d''entrée'!$C$333-1)*'1 Données d''entrée'!$C$332,0)","v":0},{"$f":"IF(I1485>0,$L1473*((('1 Données d''entrée'!$C$332+1)^'1 Données d''entrée'!$C$333)-(1+'1 Données d''entrée'!$C$332)^('6 Financement'!H$54-1-'1 Données d''entrée'!$C$334-$B1496))/((1+'1 Données d''entrée'!$C$332)^'1 Données d''entrée'!$C$333-1)*'1 Données d''entrée'!$C$332,0)","v":0},{"$f":"IF(J1485>0,$L1473*((('1 Données d''entrée'!$C$332+1)^'1 Données d''entrée'!$C$333)-(1+'1 Données d''entrée'!$C$332)^('6 Financement'!I$54-1-'1 Données d''entrée'!$C$334-$B1496))/((1+'1 Données d''entrée'!$C$332)^'1 Données d''entrée'!$C$333-1)*'1 Données d''entrée'!$C$332,0)","v":0},{"$f":"IF(K1485>0,$L1473*((('1 Données d''entrée'!$C$332+1)^'1 Données d''entrée'!$C$333)-(1+'1 Données d''entrée'!$C$332)^('6 Financement'!J$54-1-'1 Données d''entrée'!$C$334-$B1496))/((1+'1 Données d''entrée'!$C$332)^'1 Données d''entrée'!$C$333-1)*'1 Données d''entrée'!$C$332,0)","v":0},{"$f":"IF(L1485>0,$L1473*((('1 Données d''entrée'!$C$332+1)^'1 Données d''entrée'!$C$333)-(1+'1 Données d''entrée'!$C$332)^('6 Financement'!K$54-1-'1 Données d''entrée'!$C$334-$B1496))/((1+'1 Données d''entrée'!$C$332)^'1 Données d''entrée'!$C$333-1)*'1 Données d''entrée'!$C$332,0)","v":0},{"$f":"IF(M1485>0,$L1473*((('1 Données d''entrée'!$C$332+1)^'1 Données d''entrée'!$C$333)-(1+'1 Données d''entrée'!$C$332)^('6 Financement'!L$54-1-'1 Données d''entrée'!$C$334-$B1496))/((1+'1 Données d''entrée'!$C$332)^'1 Données d''entrée'!$C$333-1)*'1 Données d''entrée'!$C$332,0)","v":0},{"$f":"IF(N1485>0,$L1473*((('1 Données d''entrée'!$C$332+1)^'1 Données d''entrée'!$C$333)-(1+'1 Données d''entrée'!$C$332)^('6 Financement'!M$54-1-'1 Données d''entrée'!$C$334-$B1496))/((1+'1 Données d''entrée'!$C$332)^'1 Données d''entrée'!$C$333-1)*'1 Données d''entrée'!$C$332,0)","v":0},{"$f":"IF(O1485>0,$L1473*((('1 Données d''entrée'!$C$332+1)^'1 Données d''entrée'!$C$333)-(1+'1 Données d''entrée'!$C$332)^('6 Financement'!N$54-1-'1 Données d''entrée'!$C$334-$B1496))/((1+'1 Données d''entrée'!$C$332)^'1 Données d''entrée'!$C$333-1)*'1 Données d''entrée'!$C$332,0)","v":0},{"$f":"IF(P1485>0,$L1473*((('1 Données d''entrée'!$C$332+1)^'1 Données d''entrée'!$C$333)-(1+'1 Données d''entrée'!$C$332)^('6 Financement'!O$54-1-'1 Données d''entrée'!$C$334-$B1496))/((1+'1 Données d''entrée'!$C$332)^'1 Données d''entrée'!$C$333-1)*'1 Données d''entrée'!$C$332,0)","v":0},{"$f":"IF(Q1485>0,$L1473*((('1 Données d''entrée'!$C$332+1)^'1 Données d''entrée'!$C$333)-(1+'1 Données d''entrée'!$C$332)^('6 Financement'!P$54-1-'1 Données d''entrée'!$C$334-$B1496))/((1+'1 Données d''entrée'!$C$332)^'1 Données d''entrée'!$C$333-1)*'1 Données d''entrée'!$C$332,0)","v":0},{"$f":"IF(R1485>0,$L1473*((('1 Données d''entrée'!$C$332+1)^'1 Données d''entrée'!$C$333)-(1+'1 Données d''entrée'!$C$332)^('6 Financement'!Q$54-1-'1 Données d''entrée'!$C$334-$B1496))/((1+'1 Données d''entrée'!$C$332)^'1 Données d''entrée'!$C$333-1)*'1 Données d''entrée'!$C$332,0)","v":0},{"$f":"IF(S1485>0,$L1473*((('1 Données d''entrée'!$C$332+1)^'1 Données d''entrée'!$C$333)-(1+'1 Données d''entrée'!$C$332)^('6 Financement'!R$54-1-'1 Données d''entrée'!$C$334-$B1496))/((1+'1 Données d''entrée'!$C$332)^'1 Données d''entrée'!$C$333-1)*'1 Données d''entrée'!$C$332,0)","v":0},{"$f":"IF(T1485>0,$L1473*((('1 Données d''entrée'!$C$332+1)^'1 Données d''entrée'!$C$333)-(1+'1 Données d''entrée'!$C$332)^('6 Financement'!S$54-1-'1 Données d''entrée'!$C$334-$B1496))/((1+'1 Données d''entrée'!$C$332)^'1 Données d''entrée'!$C$333-1)*'1 Données d''entrée'!$C$332,0)","v":0},{"$f":"IF(U1485>0,$L1473*((('1 Données d''entrée'!$C$332+1)^'1 Données d''entrée'!$C$333)-(1+'1 Données d''entrée'!$C$332)^('6 Financement'!T$54-1-'1 Données d''entrée'!$C$334-$B1496))/((1+'1 Données d''entrée'!$C$332)^'1 Données d''entrée'!$C$333-1)*'1 Données d''entrée'!$C$332,0)","v":0},{"$f":"IF(V1485>0,$L1473*((('1 Données d''entrée'!$C$332+1)^'1 Données d''entrée'!$C$333)-(1+'1 Données d''entrée'!$C$332)^('6 Financement'!U$54-1-'1 Données d''entrée'!$C$334-$B1496))/((1+'1 Données d''entrée'!$C$332)^'1 Données d''entrée'!$C$333-1)*'1 Données d''entrée'!$C$332,0)","v":0}]
[]
["Solde du comte (par période)",null,{"$f":"C1409+IF($B$103>0,C1417-SUM(C1419:C1429)-SUM(C1431:C1441),0)+IF($B$131>0,C1445-SUM(C1447:C1457)-SUM(C1459:C1469),0)+IF($B$159>0,C1473-SUM(C1475:C1485),0)","v":{"$error":"#DIV/0!"}},{"$f":"D1409+IF($B$103>0,D1417-SUM(D1419:D1429)-SUM(D1431:D1441),0)+IF($B$131>0,D1445-SUM(D1447:D1457)-SUM(D1459:D1469),0)+IF($B$159>0,D1473-SUM(D1475:D1485),0)","v":{"$error":"#DIV/0!"}},{"$error":"#DIV/0!"},{"$error":"#DIV/0!"},{"$error":"#DIV/0!"},{"$error":"#DIV/0!"},{"$error":"#DIV/0!"},{"$error":"#DIV/0!"},{"$error":"#DIV/0!"},{"$error":"#DIV/0!"},{"$error":"#DIV/0!"},{"$error":"#DIV/0!"},{"$error":"#DIV/0!"},{"$error":"#DIV/0!"},{"$error":"#DIV/0!"},{"$error":"#DIV/0!"},{"$error":"#DIV/0!"},{"$error":"#DIV/0!"},{"$error":"#DIV/0!"},{"$error":"#DIV/0!"}]
["Solde du compte (cumulé)",null,{"$f":"C1499+B1410","v":{"$error":"#DIV/0!"}},{"$f":"C1500+D1499","v":{"$error":"#DIV/0!"}},{"$error":"#DIV/0!"},{"$error":"#DIV/0!"},{"$error":"#DIV/0!"},{"$error":"#DIV/0!"},{"$error":"#DIV/0!"},{"$error":"#DIV/0!"},{"$error":"#DIV/0!"},{"$error":"#DIV/0!"},{"$error":"#DIV/0!"},{"$error":"#DIV/0!"},{"$error":"#DIV/0!"},{"$error":"#DIV/0!"},{"$error":"#DIV/0!"},{"$error":"#DIV/0!"},{"$error":"#DIV/0!"},{"$error":"#DIV/0!"},{"$error":"#DIV/0!"},{"$error":"#DIV/0!"}]
[]
[]
["Coût du financement","Période",1,2,3,4,5,6,7,8,9,10,11,12,13,14,15,16,17,18,19,20]
["Paiement d'intérêt par période",null,{"$f":"IF($B1375>0,(C1378+C1379),0)+IF($B1380>0,(C1383+C1384),0)+IF($B1385>0,C1388+C1389,0)+IF($B1392>0,(C1395+C1396),0)+IF($B1397>0,(C1400+C1401),0)+IF($B1402>0,C1405+C1406,0)+IF($B1414>0,SUM(C1431:C1441),0)+IF($B1444>0,SUM(C1459:C1469),0)+IF($B1472>0,SUM(C1487:C1497),0)","v":0},{"$f":"IF($B1375>0,(D1378+D1379),0)+IF($B1380>0,(D1383+D1384),0)+IF($B1385>0,D1388+D1389,0)+IF($B1392>0,(D1395+D1396),0)+IF($B1397>0,(D1400+D1401),0)+IF($B1402>0,D1405+D1406,0)+IF($B1414>0,SUM(D1431:D1441),0)+IF($B1444>0,SUM(D1459:D1469),0)+IF($B1472>0,SUM(D1487:D1497),0)","v":0},0,0,0,0,0,0,0,0,0,0,0,0,0,0,0,0,0,0]
["Remboursement du principal par période",null,{"$f":"IF($B1375>0,(C1377),0)+IF($B1380>0,(C1382),0)+IF($B1385>0,IF(C1387>0,C1387-C1388,0),0)+IF($B1392>0,(C1394),0)+IF($B1397>0,(C1399),0)+IF($B1402>0,IF(C1404>0,C1404-C1405,0),0)+IF($B1416>0,SUM(C1419:C1429),0)+IF($B1444>0,SUM(C1447:C1457),0)+IF($B1472>0,SUM(C1475:C1485)-SUM(C1487:C1497),0)","v":0},{"$f":"IF($B1375>0,(D1377),0)+IF($B1380>0,(D1382),0)+IF($B1385>0,IF(D1387>0,D1387-D1388,0),0)+IF($B1392>0,(D1394),0)+IF($B1397>0,(D1399),0)+IF($B1402>0,IF(D1404>0,D1404-D1405,0),0)+IF($B1416>0,SUM(D1419:D1429),0)+IF($B1444>0,SUM(D1447:D1457),0)+IF($B1472>0,SUM(D1475:D1485)-SUM(D1487:D1497),0)","v":0},0,0,0,0,0,0,0,0,0,0,0,0,0,0,0,0,0,0]
[]
[]
["Flux de trésorerie net       "]
["Période (t)","Flux de trésorerie       brut","Coût de financement ","Subventions","Flux de trésorerie       intermédiaires (avec coût fin. et Subventions)","Flux de trésorerie      , taxe contenue","Flux de trésorerie       cumulé, taxe contenue","Période de remboursement"]
[0,{"$f":"'5 Flux de trésorerie brut'!$D$7","v":{"$error":"#DIV/0!"}},0,{"$f":"B1373+B1391","v":0},{"$f":"D1510-C1510+B1510","v":{"$error":"#DIV/0!"}},{"$f":"IF(E1510>0,(E1510-E1510*'1 Données d''entrée'!$C$353-IF('5 Flux de trésorerie brut'!$D$7>0,'1 Données d''entrée'!$C$357*'5 Flux de trésorerie brut'!$D$7,0)),E1510)","v":{"$error":"#DIV/0!"}},{"$f":"F1510","v":{"$error":"#DIV/0!"}},{"$f":"IF(G1510<0,\" \",A1510)","v":{"$error":"#DIV/0!"}}]
[1,{"$f":"'5 Flux de trésorerie brut'!$D$8","v":{"$error":"#DIV/0!"}},{"$f":"C1504+C1505","v":0},0,{"$f":"D1511-C1511+B1511","v":{"$error":"#DIV/0!"}},{"$f":"IF(E1511>0,(E1511-E1511*'1 Données d''entrée'!$C$353-IF('5 Flux de trésorerie brut'!$D$8>0,'1 Données d''entrée'!$C$357*'5 Flux de trésorerie brut'!$D$8,0)),E1511)","v":{"$error":"#DIV/0!"}},{"$f":"G1510+F1511","v":{"$error":"#DIV/0!"}},{"$f":"IF(G1511<0,\" \",IF(SUM(H1510:H1510)>0,\" \",IF(H1510=0,\" \",A1511)))","v":{"$error":"#DIV/0!"}}]
[2,{"$f":"'5 Flux de trésorerie brut'!$D$9","v":{"$error":"#DIV/0!"}},{"$f":"D1504+D1505","v":0},0,{"$error":"#DIV/0!"},{"$f":"IF(E1512>0,(E1512-E1512*'1 Données d''entrée'!$C$353-IF('5 Flux de trésorerie brut'!$D$9>0,'1 Données d''entrée'!$C$357*'5 Flux de trésorerie brut'!$D$9,0)),E1512)","v":{"$error":"#DIV/0!"}},{"$error":"#DIV/0!"},{"$f":"IF(G1512<0,\" \",IF(SUM(H1510:H1511)>0,\" \",IF(H1510=0,\" \",A1512)))","v":{"$error":"#DIV/0!"}}]
[3,{"$f":"'5 Flux de trésorerie brut'!$D$10","v":{"$error":"#DIV/0!"}},{"$f":"E1504+E1505","v":0},0,{"$error":"#DIV/0!"},{"$f":"IF(E1513>0,(E1513-E1513*'1 Données d''entrée'!$C$353-IF('5 Flux de trésorerie brut'!$D$10>0,'1 Données d''entrée'!$C$357*'5 Flux de trésorerie brut'!$D$10,0)),E1513)","v":{"$error":"#DIV/0!"}},{"$error":"#DIV/0!"},{"$f":"IF(G1513<0,\" \",IF(SUM(H1510:H1512)>0,\" \",IF(H1510=0,\" \",A1513)))","v":{"$error":"#DIV/0!"}}]
[4,{"$f":"'5 Flux de trésorerie brut'!$D$11","v":{"$error":"#DIV/0!"}},{"$f":"F1504+F1505","v":0},0,{"$error":"#DIV/0!"},{"$f":"IF(E1514>0,(E1514-E1514*'1 Données d''entrée'!$C$353-IF('5 Flux de trésorerie brut'!$D$11>0,'1 Données d''entrée'!$C$357*'5 Flux de trésorerie brut'!$D$11,0)),E1514)","v":{"$error":"#DIV/0!"}},{"$error":"#DIV/0!"},{"$f":"IF(G1514<0,\" \",IF(SUM(H1510:H1513)>0,\" \",IF(H1510=0,\" \",A1514)))","v":{"$error":"#DIV/0!"}}]
[5,{"$f":"'5 Flux de trésorerie brut'!$D$12","v":{"$error":"#DIV/0!"}},{"$f":"G1504+G1505","v":0},0,{"$error":"#DIV/0!"},{"$f":"IF(E1515>0,(E1515-E1515*'1 Données d''entrée'!$C$353-IF('5 Flux de trésorerie brut'!$D$12>0,'1 Données d''entrée'!$C$357*'5 Flux de trésorerie brut'!$D$12,0)),E1515)","v":{"$error":"#DIV/0!"}},{"$error":"#DIV/0!"},{"$f":"IF(G1515<0,\" \",IF(SUM(H1510:H1514)>0,\" \",IF(H1510=0,\" \",A1515)))","v":{"$error":"#DIV/0!"}}]
[6,{"$f":"'5 Flux de trésorerie brut'!$D$13","v":{"$error":"#DIV/0!"}},{"$f":"H1504+H1505","v":0},0,{"$error":"#DIV/0!"},{"$f":"IF(E1516>0,(E1516-E1516*'1 Données d''entrée'!$C$353-IF('5 Flux de trésorerie brut'!$D$13>0,'1 Données d''entrée'!$C$357*'5 Flux de trésorerie brut'!$D$13,0)),E1516)","v":{"$error":"#DIV/0!"}},{"$error":"#DIV/0!"},{"$f":"IF(G1516<0,\" \",IF(SUM(H1510:H1515)>0,\" \",IF(H1510=0,\" \",A1516)))","v":{"$error":"#DIV/0!"}}]
[7,{"$f":"'5 Flux de trésorerie brut'!$D$14","v":{"$error":"#DIV/0!"}},{"$f":"I1504+I1505","v":0},0,{"$error":"#DIV/0!"},{"$f":"IF(E1517>0,(E1517-E1517*'1 Données d''entrée'!$C$353-IF('5 Flux de trésorerie brut'!$D$14>0,'1 Données d''entrée'!$C$357*'5 Flux de trésorerie brut'!$D$14,0)),E1517)","v":{"$error":"#DIV/0!"}},{"$error":"#DIV/0!"},{"$f":"IF(G1517<0,\" \",IF(SUM(H1510:H1516)>0,\" \",IF(H1510=0,\" \",A1517)))","v":{"$error":"#DIV/0!"}}]
[8,{"$f":"'5 Flux de trésorerie brut'!$D$15","v":{"$error":"#DIV/0!"}},{"$f":"J1504+J1505","v":0},0,{"$error":"#DIV/0!"},{"$f":"IF(E1518>0,(E1518-E1518*'1 Données d''entrée'!$C$353-IF('5 Flux de trésorerie brut'!$D$15>0,'1 Données d''entrée'!$C$357*'5 Flux de trésorerie brut'!$D$15,0)),E1518)","v":{"$error":"#DIV/0!"}},{"$error":"#DIV/0!"},{"$f":"IF(G1518<0,\" \",IF(SUM(H1510:H1517)>0,\" \",IF(H1510=0,\" \",A1518)))","v":{"$error":"#DIV/0!"}}]
[9,{"$f":"'5 Flux de trésorerie brut'!$D$16","v":{"$error":"#DIV/0!"}},{"$f":"K1504+K1505","v":0},0,{"$error":"#DIV/0!"},{"$f":"IF(E1519>0,(E1519-E1519*'1 Données d''entrée'!$C$353-IF('5 Flux de trésorerie brut'!$D$16>0,'1 Données d''entrée'!$C$357*'5 Flux de trésorerie brut'!$D$16,0)),E1519)","v":{"$error":"#DIV/0!"}},{"$error":"#DIV/0!"},{"$f":"IF(G1519<0,\" \",IF(SUM(H1510:H1518)>0,\" \",IF(H1510=0,\" \",A1519)))","v":{"$error":"#DIV/0!"}}]
[10,{"$f":"'5 Flux de trésorerie brut'!$D$17","v":{"$error":"#DIV/0!"}},{"$f":"L1504+L1505","v":0},0,{"$error":"#DIV/0!"},{"$f":"IF(E1520>0,(E1520-E1520*'1 Données d''entrée'!$C$353-IF('5 Flux de trésorerie brut'!$D$17>0,'1 Données d''entrée'!$C$357*'5 Flux de trésorerie brut'!$D$17,0)),E1520)","v":{"$error":"#DIV/0!"}},{"$error":"#DIV/0!"},{"$f":"IF(G1520<0,\" \",IF(SUM(H1510:H1519)>0,\" \",IF(H1510=0,\" \",A1520)))","v":{"$error":"#DIV/0!"}}]
[11,{"$f":"'5 Flux de trésorerie brut'!$D$18","v":{"$error":"#DIV/0!"}},{"$f":"M1504+M1505","v":0},0,{"$error":"#DIV/0!"},{"$f":"IF(E1521>0,(E1521-E1521*'1 Données d''entrée'!$C$353-IF('5 Flux de trésorerie brut'!$D$18>0,'1 Données d''entrée'!$C$357*'5 Flux de trésorerie brut'!$D$18,0)),E1521)","v":{"$error":"#DIV/0!"}},{"$error":"#DIV/0!"},{"$f":"IF(G1521<0,\" \",IF(SUM(H1510:H1520)>0,\" \",IF(H1510=0,\" \",A1521)))","v":{"$error":"#DIV/0!"}}]
[12,{"$f":"'5 Flux de trésorerie brut'!$D$19","v":{"$error":"#DIV/0!"}},{"$f":"N1504+N1505","v":0},0,{"$error":"#DIV/0!"},{"$f":"IF(E1522>0,(E1522-E1522*'1 Données d''entrée'!$C$353-IF('5 Flux de trésorerie brut'!$D$19>0,'1 Données d''entrée'!$C$357*'5 Flux de trésorerie brut'!$D$19,0)),E1522)","v":{"$error":"#DIV/0!"}},{"$error":"#DIV/0!"},{"$f":"IF(G1522<0,\" \",IF(SUM(H1510:H1521)>0,\" \",IF(H1510=0,\" \",A1522)))","v":{"$error":"#DIV/0!"}}]
[13,{"$f":"'5 Flux de trésorerie brut'!$D$20","v":{"$error":"#DIV/0!"}},{"$f":"O1504+O1505","v":0},0,{"$error":"#DIV/0!"},{"$f":"IF(E1523>0,(E1523-E1523*'1 Données d''entrée'!$C$353-IF('5 Flux de trésorerie brut'!$D$20>0,'1 Données d''entrée'!$C$357*'5 Flux de trésorerie brut'!$D$20,0)),E1523)","v":{"$error":"#DIV/0!"}},{"$error":"#DIV/0!"},{"$f":"IF(G1523<0,\" \",IF(SUM(H1510:H1522)>0,\" \",IF(H1510=0,\" \",A1523)))","v":{"$error":"#DIV/0!"}}]
[14,{"$f":"'5 Flux de trésorerie brut'!$D$21","v":{"$error":"#DIV/0!"}},{"$f":"P1504+P1505","v":0},0,{"$error":"#DIV/0!"},{"$f":"IF(E1524>0,(E1524-E1524*'1 Données d''entrée'!$C$353-IF('5 Flux de trésorerie brut'!$D$21>0,'1 Données d''entrée'!$C$357*'5 Flux de trésorerie brut'!$D$21,0)),E1524)","v":{"$error":"#DIV/0!"}},{"$error":"#DIV/0!"},{"$f":"IF(G1524<0,\" \",IF(SUM(H1510:H1523)>0,\" \",IF(H1510=0,\" \",A1524)))","v":{"$error":"#DIV/0!"}}]
[15,{"$f":"'5 Flux de trésorerie brut'!$D$22","v":{"$error":"#DIV/0!"}},{"$f":"Q1504+Q1505","v":0},0,{"$error":"#DIV/0!"},{"$f":"IF(E1525>0,(E1525-E1525*'1 Données d''entrée'!$C$353-IF('5 Flux de trésorerie brut'!$D$22>0,'1 Données d''entrée'!$C$357*'5 Flux de trésorerie brut'!$D$22,0)),E1525)","v":{"$error":"#DIV/0!"}},{"$error":"#DIV/0!"},{"$f":"IF(G1525<0,\" \",IF(SUM(H1510:H1524)>0,\" \",IF(H1510=0,\" \",A1525)))","v":{"$error":"#DIV/0!"}}]
[16,{"$f":"'5 Flux de trésorerie brut'!$D$23","v":{"$error":"#DIV/0!"}},{"$f":"R1504+R1505","v":0},0,{"$error":"#DIV/0!"},{"$f":"IF(E1526>0,(E1526-E1526*'1 Données d''entrée'!$C$353-IF('5 Flux de trésorerie brut'!$D$23>0,'1 Données d''entrée'!$C$357*'5 Flux de trésorerie brut'!$D$23,0)),E1526)","v":{"$error":"#DIV/0!"}},{"$error":"#DIV/0!"},{"$f":"IF(G1526<0,\" \",IF(SUM(H1510:H1525)>0,\" \",IF(H1510=0,\" \",A1526)))","v":{"$error":"#DIV/0!"}}]
[17,{"$f":"'5 Flux de trésorerie brut'!$D$24","v":{"$error":"#DIV/0!"}},{"$f":"S1504+S1505","v":0},0,{"$error":"#DIV/0!"},{"$f":"IF(E1527>0,(E1527-E1527*'1 Données d''entrée'!$C$353-IF('5 Flux de trésorerie brut'!$D$24>0,'1 Données d''entrée'!$C$357*'5 Flux de trésorerie brut'!$D$24,0)),E1527)","v":{"$error":"#DIV/0!"}},{"$error":"#DIV/0!"},{"$f":"IF(G1527<0,\" \",IF(SUM(H1510:H1526)>0,\" \",IF(H1510=0,\" \",A1527)))","v":{"$error":"#DIV/0!"}}]
[18,{"$f":"'5 Flux de trésorerie brut'!$D$25","v":{"$error":"#DIV/0!"}},{"$f":"T1504+T1505","v":0},0,{"$error":"#DIV/0!"},{"$f":"IF(E1528>0,(E1528-E1528*'1 Données d''entrée'!$C$353-IF('5 Flux de trésorerie brut'!$D$25>0,'1 Données d''entrée'!$C$357*'5 Flux de trésorerie brut'!$D$25,0)),E1528)","v":{"$error":"#DIV/0!"}},{"$error":"#DIV/0!"},{"$f":"IF(G1528<0,\" \",IF(SUM(H1510:H1527)>0,\" \",IF(H1510=0,\" \",A1528)))","v":{"$error":"#DIV/0!"}}]
[19,{"$f":"'5 Flux de trésorerie brut'!$D$26","v":{"$error":"#DIV/0!"}},{"$f":"U1504+U1505","v":0},0,{"$error":"#DIV/0!"},{"$f":"IF(E1529>0,(E1529-E1529*'1 Données d''entrée'!$C$353-IF('5 Flux de trésorerie brut'!$D$26>0,'1 Données d''entrée'!$C$357*'5 Flux de trésorerie brut'!$D$26,0)),E1529)","v":{"$error":"#DIV/0!"}},{"$error":"#DIV/0!"},{"$f":"IF(G1529<0,\" \",IF(SUM(H1510:H1528)>0,\" \",IF(H1510=0,\" \",A1529)))","v":{"$error":"#DIV/0!"}}]
[20,{"$f":"'5 Flux de trésorerie brut'!$D$27","v":{"$error":"#DIV/0!"}},{"$f":"V1504+V1505","v":0},0,{"$error":"#DIV/0!"},{"$f":"IF(E1530>0,(E1530-E1530*'1 Données d''entrée'!$C$353-IF('5 Flux de trésorerie brut'!$D$27>0,'1 Données d''entrée'!$C$357*'5 Flux de trésorerie brut'!$D$27,0)),E1530)","v":{"$error":"#DIV/0!"}},{"$error":"#DIV/0!"},{"$f":"IF(G1530<0,\" \",IF(SUM(H1510:H1529)>0,\" \",IF(H1510=0,\" \",A1530)))","v":{"$error":"#DIV/0!"}}]
[]
[]
[null,null,"Valeur actuelle nette",{"$f":"NPV('1 Données d''entrée'!$H$28,'10 Subvention d''ADER'!F1511:F1530)+'10 Subvention d''ADER'!F1510","v":{"$error":"#DIV/0!"}}]
[null,null,"Taux de rentabilité interne",{"$f":"IRR(F1510:F1530)","v":{"$error":"#VALUE!"}}]
[]
[]
[]
[]
[]
["Tableau de calcul avec un taux de subvention de",null,null,0.8]
[]
["Bailleur de fonds","Investissement total par bailleur de fonds (AR)","Quote-part du coût d'investissement initial"]
["Subvention d'ADER",{"$f":"('3 Coût total'!$B$7-'3 Coût total'!$B$42)*C1543","v":0},{"$f":"D1540","v":0.8}]
["Capitaux propres",{"$f":"'1 Données d''entrée'!$B$294","v":0},{"$f":"'1 Données d''entrée'!$B$294/'3 Coût total'!$B$7","v":{"$error":"#DIV/0!"}}]
["Fonds d'autres donneurs / investisseurs",{"$f":"'1 Données d''entrée'!$B$306+'1 Données d''entrée'!$B$307","v":0},{"$f":"B1545/'3 Coût total'!$B$7","v":{"$error":"#DIV/0!"}}]
["Prêt bancaire (effective)",{"$f":"IF(B1543+'1 Données d''entrée'!$B$294=0,0,(-1)*'5 Flux de trésorerie brut'!$D$7-(SUM(B1543:B1545)))","v":0},{"$f":"(1-(C1543+C1544+C1545))","v":{"$error":"#DIV/0!"}}]
[]
["Prêt bancaire avec des frais de gestion",{"$f":"B1546+B1546*'1 Données d''entrée'!$C$338","v":0},{"$f":"(1-(C1543+C1544+C1545))+(1-(C1543+C1544+C1545))*'1 Données d''entrée'!$C$338","v":{"$error":"#DIV/0!"}}]
[]
["Tableaux de calcul"]
[]
[]
["Scénario financier"]
["Période",0,1,2,3,4,5,6,7,8,9,10,11,12,13,14,15,16,17,18,19,20]
[]
["Flux de trésorerie (brut)",{"$f":"'5 Flux de trésorerie brut'!$D$7","v":{"$error":"#DIV/0!"}},{"$f":"'5 Flux de trésorerie brut'!$D$8","v":{"$error":"#DIV/0!"}},{"$f":"'5 Flux de trésorerie brut'!$D$9","v":{"$error":"#DIV/0!"}},{"$f":"'5 Flux de trésorerie brut'!$D$10","v":{"$error":"#DIV/0!"}},{"$f":"'5 Flux de trésorerie brut'!$D$11","v":{"$error":"#DIV/0!"}},{"$f":"'5 Flux de trésorerie brut'!$D$12","v":{"$error":"#DIV/0!"}},{"$f":"'5 Flux de trésorerie brut'!$D$13","v":{"$error":"#DIV/0!"}},{"$f":"'5 Flux de trésorerie brut'!$D$14","v":{"$error":"#DIV/0!"}},{"$f":"'5 Flux de trésorerie brut'!$D$15","v":{"$error":"#DIV/0!"}},{"$f":"'5 Flux de trésorerie brut'!$D$16","v":{"$error":"#DIV/0!"}},{"$f":"'5 Flux de trésorerie brut'!$D$17","v":{"$error":"#DIV/0!"}},{"$f":"'5 Flux de trésorerie brut'!$D$18","v":{"$error":"#DIV/0!"}},{"$f":"'5 Flux de trésorerie brut'!$D$19","v":{"$error":"#DIV/0!"}},{"$f":"'5 Flux de trésorerie brut'!$D$20","v":{"$error":"#DIV/0!"}},{"$f":"'5 Flux de trésorerie brut'!$D$21","v":{"$error":"#DIV/0!"}},{"$f":"'5 Flux de trésorerie brut'!$D$22","v":{"$error":"#DIV/0!"}},{"$f":"'5 Flux de trésorerie brut'!$D$23","v":{"$error":"#DIV/0!"}},{"$f":"'5 Flux de trésorerie brut'!$D$24","v":{"$error":"#DIV/0!"}},{"$f":"'5 Flux de trésorerie brut'!$D$25","v":{"$error":"#DIV/0!"}},{"$f":"'5 Flux de trésorerie brut'!$D$26","v":{"$error":"#DIV/0!"}},{"$f":"'5 Flux de trésorerie brut'!$D$27","v":{"$error":"#DIV/0!"}}]
[]
["Capitaux propres",{"$f":"'1 Données d''entrée'!$B$294","v":0}]
[]
["Subvention ADER",{"$f":"'3 Coût total'!$B$7*C1543","v":0}]
[]
["Prêt bancaire - Option 1: Remboursement du principal fractionné",{"$f":"'1 Données d''entrée'!$B$342","v":0},"% de prêt total"]
["Réception et montant restant",{"$f":"B1548*B1562","v":0},{"$f":"B1563-C1564","v":0},0,0,0,0,0,0,0,0,0,0,0,0,0,0,0,0,0,0,0]
["Remboursement du principal",0,{"$f":"IF(C1554<'1 Données d''entrée'!$C$334+1,0,IF(C1554<'1 Données d''entrée'!$C$333+'1 Données d''entrée'!$C$334+1,($B1563/'1 Données d''entrée'!$C$333),0))","v":0},{"$f":"IF(D1554<'1 Données d''entrée'!$C$334+1,0,IF(D1554<'1 Données d''entrée'!$C$333+'1 Données d''entrée'!$C$334+1,($B1563/'1 Données d''entrée'!$C$333),0))","v":0},{"$f":"IF(E1554<'1 Données d''entrée'!$C$334+1,0,IF(E1554<'1 Données d''entrée'!$C$333+'1 Données d''entrée'!$C$334+1,($B1563/'1 Données d''entrée'!$C$333),0))","v":0},{"$f":"IF(F1554<'1 Données d''entrée'!$C$334+1,0,IF(F1554<'1 Données d''entrée'!$C$333+'1 Données d''entrée'!$C$334+1,($B1563/'1 Données d''entrée'!$C$333),0))","v":0},{"$f":"IF(G1554<'1 Données d''entrée'!$C$334+1,0,IF(G1554<'1 Données d''entrée'!$C$333+'1 Données d''entrée'!$C$334+1,($B1563/'1 Données d''entrée'!$C$333),0))","v":0},{"$f":"IF(H1554<'1 Données d''entrée'!$C$334+1,0,IF(H1554<'1 Données d''entrée'!$C$333+'1 Données d''entrée'!$C$334+1,($B1563/'1 Données d''entrée'!$C$333),0))","v":0},{"$f":"IF(I1554<'1 Données d''entrée'!$C$334+1,0,IF(I1554<'1 Données d''entrée'!$C$333+'1 Données d''entrée'!$C$334+1,($B1563/'1 Données d''entrée'!$C$333),0))","v":0},{"$f":"IF(J1554<'1 Données d''entrée'!$C$334+1,0,IF(J1554<'1 Données d''entrée'!$C$333+'1 Données d''entrée'!$C$334+1,($B1563/'1 Données d''entrée'!$C$333),0))","v":0},{"$f":"IF(K1554<'1 Données d''entrée'!$C$334+1,0,IF(K1554<'1 Données d''entrée'!$C$333+'1 Données d''entrée'!$C$334+1,($B1563/'1 Données d''entrée'!$C$333),0))","v":0},{"$f":"IF(L1554<'1 Données d''entrée'!$C$334+1,0,IF(L1554<'1 Données d''entrée'!$C$333+'1 Données d''entrée'!$C$334+1,($B1563/'1 Données d''entrée'!$C$333),0))","v":0},{"$f":"IF(M1554<'1 Données d''entrée'!$C$334+1,0,IF(M1554<'1 Données d''entrée'!$C$333+'1 Données d''entrée'!$C$334+1,($B1563/'1 Données d''entrée'!$C$333),0))","v":0},{"$f":"IF(N1554<'1 Données d''entrée'!$C$334+1,0,IF(N1554<'1 Données d''entrée'!$C$333+'1 Données d''entrée'!$C$334+1,($B1563/'1 Données d''entrée'!$C$333),0))","v":0},{"$f":"IF(O1554<'1 Données d''entrée'!$C$334+1,0,IF(O1554<'1 Données d''entrée'!$C$333+'1 Données d''entrée'!$C$334+1,($B1563/'1 Données d''entrée'!$C$333),0))","v":0},{"$f":"IF(P1554<'1 Données d''entrée'!$C$334+1,0,IF(P1554<'1 Données d''entrée'!$C$333+'1 Données d''entrée'!$C$334+1,($B1563/'1 Données d''entrée'!$C$333),0))","v":0},{"$f":"IF(Q1554<'1 Données d''entrée'!$C$334+1,0,IF(Q1554<'1 Données d''entrée'!$C$333+'1 Données d''entrée'!$C$334+1,($B1563/'1 Données d''entrée'!$C$333),0))","v":0},{"$f":"IF(R1554<'1 Données d''entrée'!$C$334+1,0,IF(R1554<'1 Données d''entrée'!$C$333+'1 Données d''entrée'!$C$334+1,($B1563/'1 Données d''entrée'!$C$333),0))","v":0},{"$f":"IF(S1554<'1 Données d''entrée'!$C$334+1,0,IF(S1554<'1 Données d''entrée'!$C$333+'1 Données d''entrée'!$C$334+1,($B1563/'1 Données d''entrée'!$C$333),0))","v":0},{"$f":"IF(T1554<'1 Données d''entrée'!$C$334+1,0,IF(T1554<'1 Données d''entrée'!$C$333+'1 Données d''entrée'!$C$334+1,($B1563/'1 Données d''entrée'!$C$333),0))","v":0},{"$f":"IF(U1554<'1 Données d''entrée'!$C$334+1,0,IF(U1554<'1 Données d''entrée'!$C$333+'1 Données d''entrée'!$C$334+1,($B1563/'1 Données d''entrée'!$C$333),0))","v":0},{"$f":"IF(V1554<'1 Données d''entrée'!$C$334+1,0,IF(V1554<'1 Données d''entrée'!$C$333+'1 Données d''entrée'!$C$334+1,($B1563/'1 Données d''entrée'!$C$333),0))","v":0}]
["Paiement d'intérêts",0,{"$f":"IF('1 Données d''entrée'!$C$336=\"(=NON)\",IF(C1554<'1 Données d''entrée'!$C$334+1,0,B1563*'1 Données d''entrée'!$C$332),B1563*'1 Données d''entrée'!$C$332)","v":0},{"$f":"IF('1 Données d''entrée'!$C$336=\"(=NON)\",IF(D1554<'1 Données d''entrée'!$C$334+1,0,C1563*'1 Données d''entrée'!$C$332),C1563*'1 Données d''entrée'!$C$332)","v":0},{"$f":"IF('1 Données d''entrée'!$C$336=\"(=NON)\",IF(E1554<'1 Données d''entrée'!$C$334+1,0,D1563*'1 Données d''entrée'!$C$332),D1563*'1 Données d''entrée'!$C$332)","v":0},{"$f":"IF('1 Données d''entrée'!$C$336=\"(=NON)\",IF(F1554<'1 Données d''entrée'!$C$334+1,0,E1563*'1 Données d''entrée'!$C$332),E1563*'1 Données d''entrée'!$C$332)","v":0},{"$f":"IF('1 Données d''entrée'!$C$336=\"(=NON)\",IF(G1554<'1 Données d''entrée'!$C$334+1,0,F1563*'1 Données d''entrée'!$C$332),F1563*'1 Données d''entrée'!$C$332)","v":0},{"$f":"IF('1 Données d''entrée'!$C$336=\"(=NON)\",IF(H1554<'1 Données d''entrée'!$C$334+1,0,G1563*'1 Données d''entrée'!$C$332),G1563*'1 Données d''entrée'!$C$332)","v":0},{"$f":"IF('1 Données d''entrée'!$C$336=\"(=NON)\",IF(I1554<'1 Données d''entrée'!$C$334+1,0,H1563*'1 Données d''entrée'!$C$332),H1563*'1 Données d''entrée'!$C$332)","v":0},{"$f":"IF('1 Données d''entrée'!$C$336=\"(=NON)\",IF(J1554<'1 Données d''entrée'!$C$334+1,0,I1563*'1 Données d''entrée'!$C$332),I1563*'1 Données d''entrée'!$C$332)","v":0},{"$f":"IF('1 Données d''entrée'!$C$336=\"(=NON)\",IF(K1554<'1 Données d''entrée'!$C$334+1,0,J1563*'1 Données d''entrée'!$C$332),J1563*'1 Données d''entrée'!$C$332)","v":0},{"$f":"IF('1 Données d''entrée'!$C$336=\"(=NON)\",IF(L1554<'1 Données d''entrée'!$C$334+1,0,K1563*'1 Données d''entrée'!$C$332),K1563*'1 Données d''entrée'!$C$332)","v":0},{"$f":"IF('1 Données d''entrée'!$C$336=\"(=NON)\",IF(M1554<'1 Données d''entrée'!$C$334+1,0,L1563*'1 Données d''entrée'!$C$332),L1563*'1 Données d''entrée'!$C$332)","v":0},{"$f":"IF('1 Données d''entrée'!$C$336=\"(=NON)\",IF(N1554<'1 Données d''entrée'!$C$334+1,0,M1563*'1 Données d''entrée'!$C$332),M1563*'1 Données d''entrée'!$C$332)","v":0},{"$f":"IF('1 Données d''entrée'!$C$336=\"(=NON)\",IF(O1554<'1 Données d''entrée'!$C$334+1,0,N1563*'1 Données d''entrée'!$C$332),N1563*'1 Données d''entrée'!$C$332)","v":0},{"$f":"IF('1 Données d''entrée'!$C$336=\"(=NON)\",IF(P1554<'1 Données d''entrée'!$C$334+1,0,O1563*'1 Données d''entrée'!$C$332),O1563*'1 Données d''entrée'!$C$332)","v":0},{"$f":"IF('1 Données d''entrée'!$C$336=\"(=NON)\",IF(Q1554<'1 Données d''entrée'!$C$334+1,0,P1563*'1 Données d''entrée'!$C$332),P1563*'1 Données d''entrée'!$C$332)","v":0},{"$f":"IF('1 Données d''entrée'!$C$336=\"(=NON)\",IF(R1554<'1 Données d''entrée'!$C$334+1,0,Q1563*'1 Données d''entrée'!$C$332),Q1563*'1 Données d''entrée'!$C$332)","v":0},{"$f":"IF('1 Données d''entrée'!$C$336=\"(=NON)\",IF(S1554<'1 Données d''entrée'!$C$334+1,0,R1563*'1 Données d''entrée'!$C$332),R1563*'1 Données d''entrée'!$C$332)","v":0},{"$f":"IF('1 Données d''entrée'!$C$336=\"(=NON)\",IF(T1554<'1 Données d''entrée'!$C$334+1,0,S1563*'1 Données d''entrée'!$C$332),S1563*'1 Données d''entrée'!$C$332)","v":0},{"$f":"IF('1 Données d''entrée'!$C$336=\"(=NON)\",IF(U1554<'1 Données d''entrée'!$C$334+1,0,T1563*'1 Données d''entrée'!$C$332),T1563*'1 Données d''entrée'!$C$332)","v":0},{"$f":"IF('1 Données d''entrée'!$C$336=\"(=NON)\",IF(V1554<'1 Données d''entrée'!$C$334+1,0,U1563*'1 Données d''entrée'!$C$332),U1563*'1 Données d''entrée'!$C$332)","v":0}]
["Paiements d'intérêt avec des intérêts composés en cas d'absence des paiements dans la période de grâce",0,0,{"$f":"IF(D1554='1 Données d''entrée'!$C$334+1,IF('1 Données d''entrée'!$C$336=\"(=NON)\",($B1563*'1 Données d''entrée'!$C$332)*((('1 Données d''entrée'!$C$332+1)^'1 Données d''entrée'!$C$334-1)/('1 Données d''entrée'!$C$332))*(1+'1 Données d''entrée'!$C$332),0),0)","v":0},{"$f":"IF(E1554='1 Données d''entrée'!$C$334+1,IF('1 Données d''entrée'!$C$336=\"(=NON)\",($B1563*'1 Données d''entrée'!$C$332)*((('1 Données d''entrée'!$C$332+1)^'1 Données d''entrée'!$C$334-1)/('1 Données d''entrée'!$C$332))*(1+'1 Données d''entrée'!$C$332),0),0)","v":0},{"$f":"IF(F1554='1 Données d''entrée'!$C$334+1,IF('1 Données d''entrée'!$C$336=\"(=NON)\",($B1563*'1 Données d''entrée'!$C$332)*((('1 Données d''entrée'!$C$332+1)^'1 Données d''entrée'!$C$334-1)/('1 Données d''entrée'!$C$332))*(1+'1 Données d''entrée'!$C$332),0),0)","v":0},{"$f":"IF(G1554='1 Données d''entrée'!$C$334+1,IF('1 Données d''entrée'!$C$336=\"(=NON)\",($B1563*'1 Données d''entrée'!$C$332)*((('1 Données d''entrée'!$C$332+1)^'1 Données d''entrée'!$C$334-1)/('1 Données d''entrée'!$C$332))*(1+'1 Données d''entrée'!$C$332),0),0)","v":0},{"$f":"IF(H1554='1 Données d''entrée'!$C$334+1,IF('1 Données d''entrée'!$C$336=\"(=NON)\",($B1563*'1 Données d''entrée'!$C$332)*((('1 Données d''entrée'!$C$332+1)^'1 Données d''entrée'!$C$334-1)/('1 Données d''entrée'!$C$332))*(1+'1 Données d''entrée'!$C$332),0),0)","v":0},{"$f":"IF(I1554='1 Données d''entrée'!$C$334+1,IF('1 Données d''entrée'!$C$336=\"(=NON)\",($B1563*'1 Données d''entrée'!$C$332)*((('1 Données d''entrée'!$C$332+1)^'1 Données d''entrée'!$C$334-1)/('1 Données d''entrée'!$C$332))*(1+'1 Données d''entrée'!$C$332),0),0)","v":0},{"$f":"IF(J1554='1 Données d''entrée'!$C$334+1,IF('1 Données d''entrée'!$C$336=\"(=NON)\",($B1563*'1 Données d''entrée'!$C$332)*((('1 Données d''entrée'!$C$332+1)^'1 Données d''entrée'!$C$334-1)/('1 Données d''entrée'!$C$332))*(1+'1 Données d''entrée'!$C$332),0),0)","v":0},{"$f":"IF(K1554='1 Données d''entrée'!$C$334+1,IF('1 Données d''entrée'!$C$336=\"(=NON)\",($B1563*'1 Données d''entrée'!$C$332)*((('1 Données d''entrée'!$C$332+1)^'1 Données d''entrée'!$C$334-1)/('1 Données d''entrée'!$C$332))*(1+'1 Données d''entrée'!$C$332),0),0)","v":0},{"$f":"IF(L1554='1 Données d''entrée'!$C$334+1,IF('1 Données d''entrée'!$C$336=\"(=NON)\",($B1563*'1 Données d''entrée'!$C$332)*((('1 Données d''entrée'!$C$332+1)^'1 Données d''entrée'!$C$334-1)/('1 Données d''entrée'!$C$332))*(1+'1 Données d''entrée'!$C$332),0),0)","v":0},{"$f":"IF(M1554='1 Données d''entrée'!$C$334+1,IF('1 Données d''entrée'!$C$336=\"(=NON)\",($B1563*'1 Données d''entrée'!$C$332)*((('1 Données d''entrée'!$C$332+1)^'1 Données d''entrée'!$C$334-1)/('1 Données d''entrée'!$C$332))*(1+'1 Données d''entrée'!$C$332),0),0)","v":0},{"$f":"IF(N1554='1 Données d''entrée'!$C$334+1,IF('1 Données d''entrée'!$C$336=\"(=NON)\",($B1563*'1 Données d''entrée'!$C$332)*((('1 Données d''entrée'!$C$332+1)^'1 Données d''entrée'!$C$334-1)/('1 Données d''entrée'!$C$332))*(1+'1 Données d''entrée'!$C$332),0),0)","v":0},{"$f":"IF(O1554='1 Données d''entrée'!$C$334+1,IF('1 Données d''entrée'!$C$336=\"(=NON)\",($B1563*'1 Données d''entrée'!$C$332)*((('1 Données d''entrée'!$C$332+1)^'1 Données d''entrée'!$C$334-1)/('1 Données d''entrée'!$C$332))*(1+'1 Données d''entrée'!$C$332),0),0)","v":0},{"$f":"IF(P1554='1 Données d''entrée'!$C$334+1,IF('1 Données d''entrée'!$C$336=\"(=NON)\",($B1563*'1 Données d''entrée'!$C$332)*((('1 Données d''entrée'!$C$332+1)^'1 Données d''entrée'!$C$334-1)/('1 Données d''entrée'!$C$332))*(1+'1 Données d''entrée'!$C$332),0),0)","v":0},{"$f":"IF(Q1554='1 Données d''entrée'!$C$334+1,IF('1 Données d''entrée'!$C$336=\"(=NON)\",($B1563*'1 Données d''entrée'!$C$332)*((('1 Données d''entrée'!$C$332+1)^'1 Données d''entrée'!$C$334-1)/('1 Données d''entrée'!$C$332))*(1+'1 Données d''entrée'!$C$332),0),0)","v":0},{"$f":"IF(R1554='1 Données d''entrée'!$C$334+1,IF('1 Données d''entrée'!$C$336=\"(=NON)\",($B1563*'1 Données d''entrée'!$C$332)*((('1 Données d''entrée'!$C$332+1)^'1 Données d''entrée'!$C$334-1)/('1 Données d''entrée'!$C$332))*(1+'1 Données d''entrée'!$C$332),0),0)","v":0},{"$f":"IF(S1554='1 Données d''entrée'!$C$334+1,IF('1 Données d''entrée'!$C$336=\"(=NON)\",($B1563*'1 Données d''entrée'!$C$332)*((('1 Données d''entrée'!$C$332+1)^'1 Données d''entrée'!$C$334-1)/('1 Données d''entrée'!$C$332))*(1+'1 Données d''entrée'!$C$332),0),0)","v":0},{"$f":"IF(T1554='1 Données d''entrée'!$C$334+1,IF('1 Données d''entrée'!$C$336=\"(=NON)\",($B1563*'1 Données d''entrée'!$C$332)*((('1 Données d''entrée'!$C$332+1)^'1 Données d''entrée'!$C$334-1)/('1 Données d''entrée'!$C$332))*(1+'1 Données d''entrée'!$C$332),0),0)","v":0},{"$f":"IF(U1554='1 Données d''entrée'!$C$334+1,IF('1 Données d''entrée'!$C$336=\"(=NON)\",($B1563*'1 Données d''entrée'!$C$332)*((('1 Données d''entrée'!$C$332+1)^'1 Données d''entrée'!$C$334-1)/('1 Données d''entrée'!$C$332))*(1+'1 Données d''entrée'!$C$332),0),0)","v":0},{"$f":"IF(V1554='1 Données d''entrée'!$C$334+1,IF('1 Données d''entrée'!$C$336=\"(=NON)\",($B1563*'1 Données d''entrée'!$C$332)*((('1 Données d''entrée'!$C$332+1)^'1 Données d''entrée'!$C$334-1)/('1 Données d''entrée'!$C$332))*(1+'1 Données d''entrée'!$C$332),0),0)","v":0}]
["Prêt bancaire - Option 2: Remboursement du principal final",{"$f":"'1 Données d''entrée'!$B$343","v":0},"% de prêt total"]
["Réception et montant restant",{"$f":"B1548*B1567","v":0},{"$f":"B1568-C1569","v":0},0,0,0,0,0,0,0,0,0,0,0,0,0,0,0,0,0,0,0]
["Remboursement du principal",0,{"$f":"IF('1 Données d''entrée'!$C$333+'1 Données d''entrée'!$C$334=C1554,$B1568,0)","v":0},{"$f":"IF('1 Données d''entrée'!$C$333+'1 Données d''entrée'!$C$334=D1554,$B1568,0)","v":0},{"$f":"IF('1 Données d''entrée'!$C$333+'1 Données d''entrée'!$C$334=E1554,$B1568,0)","v":0},{"$f":"IF('1 Données d''entrée'!$C$333+'1 Données d''entrée'!$C$334=F1554,$B1568,0)","v":0},{"$f":"IF('1 Données d''entrée'!$C$333+'1 Données d''entrée'!$C$334=G1554,$B1568,0)","v":0},{"$f":"IF('1 Données d''entrée'!$C$333+'1 Données d''entrée'!$C$334=H1554,$B1568,0)","v":0},{"$f":"IF('1 Données d''entrée'!$C$333+'1 Données d''entrée'!$C$334=I1554,$B1568,0)","v":0},{"$f":"IF('1 Données d''entrée'!$C$333+'1 Données d''entrée'!$C$334=J1554,$B1568,0)","v":0},{"$f":"IF('1 Données d''entrée'!$C$333+'1 Données d''entrée'!$C$334=K1554,$B1568,0)","v":0},{"$f":"IF('1 Données d''entrée'!$C$333+'1 Données d''entrée'!$C$334=L1554,$B1568,0)","v":0},{"$f":"IF('1 Données d''entrée'!$C$333+'1 Données d''entrée'!$C$334=M1554,$B1568,0)","v":0},{"$f":"IF('1 Données d''entrée'!$C$333+'1 Données d''entrée'!$C$334=N1554,$B1568,0)","v":0},{"$f":"IF('1 Données d''entrée'!$C$333+'1 Données d''entrée'!$C$334=O1554,$B1568,0)","v":0},{"$f":"IF('1 Données d''entrée'!$C$333+'1 Données d''entrée'!$C$334=P1554,$B1568,0)","v":0},{"$f":"IF('1 Données d''entrée'!$C$333+'1 Données d''entrée'!$C$334=Q1554,$B1568,0)","v":0},{"$f":"IF('1 Données d''entrée'!$C$333+'1 Données d''entrée'!$C$334=R1554,$B1568,0)","v":0},{"$f":"IF('1 Données d''entrée'!$C$333+'1 Données d''entrée'!$C$334=S1554,$B1568,0)","v":0},{"$f":"IF('1 Données d''entrée'!$C$333+'1 Données d''entrée'!$C$334=T1554,$B1568,0)","v":0},{"$f":"IF('1 Données d''entrée'!$C$333+'1 Données d''entrée'!$C$334=U1554,$B1568,0)","v":0},{"$f":"IF('1 Données d''entrée'!$C$333+'1 Données d''entrée'!$C$334=V1554,$B1568,0)","v":0}]
["Paiement d'intérêts",0,{"$f":"IF('1 Données d''entrée'!$C$336=\"(=NON)\",IF(C1554<'1 Données d''entrée'!$C$334+1,0,B1568*'1 Données d''entrée'!$C$332),B1568*'1 Données d''entrée'!$C$332)","v":0},{"$f":"IF('1 Données d''entrée'!$C$336=\"(=NON)\",IF(D1554<'1 Données d''entrée'!$C$334+1,0,C1568*'1 Données d''entrée'!$C$332),C1568*'1 Données d''entrée'!$C$332)","v":0},{"$f":"IF('1 Données d''entrée'!$C$336=\"(=NON)\",IF(E1554<'1 Données d''entrée'!$C$334+1,0,D1568*'1 Données d''entrée'!$C$332),D1568*'1 Données d''entrée'!$C$332)","v":0},{"$f":"IF('1 Données d''entrée'!$C$336=\"(=NON)\",IF(F1554<'1 Données d''entrée'!$C$334+1,0,E1568*'1 Données d''entrée'!$C$332),E1568*'1 Données d''entrée'!$C$332)","v":0},{"$f":"IF('1 Données d''entrée'!$C$336=\"(=NON)\",IF(G1554<'1 Données d''entrée'!$C$334+1,0,F1568*'1 Données d''entrée'!$C$332),F1568*'1 Données d''entrée'!$C$332)","v":0},{"$f":"IF('1 Données d''entrée'!$C$336=\"(=NON)\",IF(H1554<'1 Données d''entrée'!$C$334+1,0,G1568*'1 Données d''entrée'!$C$332),G1568*'1 Données d''entrée'!$C$332)","v":0},{"$f":"IF('1 Données d''entrée'!$C$336=\"(=NON)\",IF(I1554<'1 Données d''entrée'!$C$334+1,0,H1568*'1 Données d''entrée'!$C$332),H1568*'1 Données d''entrée'!$C$332)","v":0},{"$f":"IF('1 Données d''entrée'!$C$336=\"(=NON)\",IF(J1554<'1 Données d''entrée'!$C$334+1,0,I1568*'1 Données d''entrée'!$C$332),I1568*'1 Données d''entrée'!$C$332)","v":0},{"$f":"IF('1 Données d''entrée'!$C$336=\"(=NON)\",IF(K1554<'1 Données d''entrée'!$C$334+1,0,J1568*'1 Données d''entrée'!$C$332),J1568*'1 Données d''entrée'!$C$332)","v":0},{"$f":"IF('1 Données d''entrée'!$C$336=\"(=NON)\",IF(L1554<'1 Données d''entrée'!$C$334+1,0,K1568*'1 Données d''entrée'!$C$332),K1568*'1 Données d''entrée'!$C$332)","v":0},{"$f":"IF('1 Données d''entrée'!$C$336=\"(=NON)\",IF(M1554<'1 Données d''entrée'!$C$334+1,0,L1568*'1 Données d''entrée'!$C$332),L1568*'1 Données d''entrée'!$C$332)","v":0},{"$f":"IF('1 Données d''entrée'!$C$336=\"(=NON)\",IF(N1554<'1 Données d''entrée'!$C$334+1,0,M1568*'1 Données d''entrée'!$C$332),M1568*'1 Données d''entrée'!$C$332)","v":0},{"$f":"IF('1 Données d''entrée'!$C$336=\"(=NON)\",IF(O1554<'1 Données d''entrée'!$C$334+1,0,N1568*'1 Données d''entrée'!$C$332),N1568*'1 Données d''entrée'!$C$332)","v":0},{"$f":"IF('1 Données d''entrée'!$C$336=\"(=NON)\",IF(P1554<'1 Données d''entrée'!$C$334+1,0,O1568*'1 Données d''entrée'!$C$332),O1568*'1 Données d''entrée'!$C$332)","v":0},{"$f":"IF('1 Données d''entrée'!$C$336=\"(=NON)\",IF(Q1554<'1 Données d''entrée'!$C$334+1,0,P1568*'1 Données d''entrée'!$C$332),P1568*'1 Données d''entrée'!$C$332)","v":0},{"$f":"IF('1 Données d''entrée'!$C$336=\"(=NON)\",IF(R1554<'1 Données d''entrée'!$C$334+1,0,Q1568*'1 Données d''entrée'!$C$332),Q1568*'1 Données d''entrée'!$C$332)","v":0},{"$f":"IF('1 Données d''entrée'!$C$336=\"(=NON)\",IF(S1554<'1 Données d''entrée'!$C$334+1,0,R1568*'1 Données d''entrée'!$C$332),R1568*'1 Données d''entrée'!$C$332)","v":0},{"$f":"IF('1 Données d''entrée'!$C$336=\"(=NON)\",IF(T1554<'1 Données d''entrée'!$C$334+1,0,S1568*'1 Données d''entrée'!$C$332),S1568*'1 Données d''entrée'!$C$332)","v":0},{"$f":"IF('1 Données d''entrée'!$C$336=\"(=NON)\",IF(U1554<'1 Données d''entrée'!$C$334+1,0,T1568*'1 Données d''entrée'!$C$332),T1568*'1 Données d''entrée'!$C$332)","v":0},{"$f":"IF('1 Données d''entrée'!$C$336=\"(=NON)\",IF(V1554<'1 Données d''entrée'!$C$334+1,0,U1568*'1 Données d''entrée'!$C$332),U1568*'1 Données d''entrée'!$C$332)","v":0}]
["Paiements d'intérêt avec des intérêts composés en cas d'absence des paiements dans la période de grâce",0,0,{"$f":"IF(D1554='1 Données d''entrée'!$C$334+1,IF('1 Données d''entrée'!$C$336=\"(=NON)\",($B1568*'1 Données d''entrée'!$C$332)*((('1 Données d''entrée'!$C$332+1)^'1 Données d''entrée'!$C$334-1)/('1 Données d''entrée'!$C$332))*(1+'1 Données d''entrée'!$C$332),0),0)","v":0},{"$f":"IF(E1554='1 Données d''entrée'!$C$334+1,IF('1 Données d''entrée'!$C$336=\"(=NON)\",($B1568*'1 Données d''entrée'!$C$332)*((('1 Données d''entrée'!$C$332+1)^'1 Données d''entrée'!$C$334-1)/('1 Données d''entrée'!$C$332))*(1+'1 Données d''entrée'!$C$332),0),0)","v":0},{"$f":"IF(F1554='1 Données d''entrée'!$C$334+1,IF('1 Données d''entrée'!$C$336=\"(=NON)\",($B1568*'1 Données d''entrée'!$C$332)*((('1 Données d''entrée'!$C$332+1)^'1 Données d''entrée'!$C$334-1)/('1 Données d''entrée'!$C$332))*(1+'1 Données d''entrée'!$C$332),0),0)","v":0},{"$f":"IF(G1554='1 Données d''entrée'!$C$334+1,IF('1 Données d''entrée'!$C$336=\"(=NON)\",($B1568*'1 Données d''entrée'!$C$332)*((('1 Données d''entrée'!$C$332+1)^'1 Données d''entrée'!$C$334-1)/('1 Données d''entrée'!$C$332))*(1+'1 Données d''entrée'!$C$332),0),0)","v":0},{"$f":"IF(H1554='1 Données d''entrée'!$C$334+1,IF('1 Données d''entrée'!$C$336=\"(=NON)\",($B1568*'1 Données d''entrée'!$C$332)*((('1 Données d''entrée'!$C$332+1)^'1 Données d''entrée'!$C$334-1)/('1 Données d''entrée'!$C$332))*(1+'1 Données d''entrée'!$C$332),0),0)","v":0},{"$f":"IF(I1554='1 Données d''entrée'!$C$334+1,IF('1 Données d''entrée'!$C$336=\"(=NON)\",($B1568*'1 Données d''entrée'!$C$332)*((('1 Données d''entrée'!$C$332+1)^'1 Données d''entrée'!$C$334-1)/('1 Données d''entrée'!$C$332))*(1+'1 Données d''entrée'!$C$332),0),0)","v":0},{"$f":"IF(J1554='1 Données d''entrée'!$C$334+1,IF('1 Données d''entrée'!$C$336=\"(=NON)\",($B1568*'1 Données d''entrée'!$C$332)*((('1 Données d''entrée'!$C$332+1)^'1 Données d''entrée'!$C$334-1)/('1 Données d''entrée'!$C$332))*(1+'1 Données d''entrée'!$C$332),0),0)","v":0},{"$f":"IF(K1554='1 Données d''entrée'!$C$334+1,IF('1 Données d''entrée'!$C$336=\"(=NON)\",($B1568*'1 Données d''entrée'!$C$332)*((('1 Données d''entrée'!$C$332+1)^'1 Données d''entrée'!$C$334-1)/('1 Données d''entrée'!$C$332))*(1+'1 Données d''entrée'!$C$332),0),0)","v":0},{"$f":"IF(L1554='1 Données d''entrée'!$C$334+1,IF('1 Données d''entrée'!$C$336=\"(=NON)\",($B1568*'1 Données d''entrée'!$C$332)*((('1 Données d''entrée'!$C$332+1)^'1 Données d''entrée'!$C$334-1)/('1 Données d''entrée'!$C$332))*(1+'1 Données d''entrée'!$C$332),0),0)","v":0},{"$f":"IF(M1554='1 Données d''entrée'!$C$334+1,IF('1 Données d''entrée'!$C$336=\"(=NON)\",($B1568*'1 Données d''entrée'!$C$332)*((('1 Données d''entrée'!$C$332+1)^'1 Données d''entrée'!$C$334-1)/('1 Données d''entrée'!$C$332))*(1+'1 Données d''entrée'!$C$332),0),0)","v":0},{"$f":"IF(N1554='1 Données d''entrée'!$C$334+1,IF('1 Données d''entrée'!$C$336=\"(=NON)\",($B1568*'1 Données d''entrée'!$C$332)*((('1 Données d''entrée'!$C$332+1)^'1 Données d''entrée'!$C$334-1)/('1 Données d''entrée'!$C$332))*(1+'1 Données d''entrée'!$C$332),0),0)","v":0},{"$f":"IF(O1554='1 Données d''entrée'!$C$334+1,IF('1 Données d''entrée'!$C$336=\"(=NON)\",($B1568*'1 Données d''entrée'!$C$332)*((('1 Données d''entrée'!$C$332+1)^'1 Données d''entrée'!$C$334-1)/('1 Données d''entrée'!$C$332))*(1+'1 Données d''entrée'!$C$332),0),0)","v":0},{"$f":"IF(P1554='1 Données d''entrée'!$C$334+1,IF('1 Données d''entrée'!$C$336=\"(=NON)\",($B1568*'1 Données d''entrée'!$C$332)*((('1 Données d''entrée'!$C$332+1)^'1 Données d''entrée'!$C$334-1)/('1 Données d''entrée'!$C$332))*(1+'1 Données d''entrée'!$C$332),0),0)","v":0},{"$f":"IF(Q1554='1 Données d''entrée'!$C$334+1,IF('1 Données d''entrée'!$C$336=\"(=NON)\",($B1568*'1 Données d''entrée'!$C$332)*((('1 Données d''entrée'!$C$332+1)^'1 Données d''entrée'!$C$334-1)/('1 Données d''entrée'!$C$332))*(1+'1 Données d''entrée'!$C$332),0),0)","v":0},{"$f":"IF(R1554='1 Données d''entrée'!$C$334+1,IF('1 Données d''entrée'!$C$336=\"(=NON)\",($B1568*'1 Données d''entrée'!$C$332)*((('1 Données d''entrée'!$C$332+1)^'1 Données d''entrée'!$C$334-1)/('1 Données d''entrée'!$C$332))*(1+'1 Données d''entrée'!$C$332),0),0)","v":0},{"$f":"IF(S1554='1 Données d''entrée'!$C$334+1,IF('1 Données d''entrée'!$C$336=\"(=NON)\",($B1568*'1 Données d''entrée'!$C$332)*((('1 Données d''entrée'!$C$332+1)^'1 Données d''entrée'!$C$334-1)/('1 Données d''entrée'!$C$332))*(1+'1 Données d''entrée'!$C$332),0),0)","v":0},{"$f":"IF(T1554='1 Données d''entrée'!$C$334+1,IF('1 Données d''entrée'!$C$336=\"(=NON)\",($B1568*'1 Données d''entrée'!$C$332)*((('1 Données d''entrée'!$C$332+1)^'1 Données d''entrée'!$C$334-1)/('1 Données d''entrée'!$C$332))*(1+'1 Données d''entrée'!$C$332),0),0)","v":0},{"$f":"IF(U1554='1 Données d''entrée'!$C$334+1,IF('1 Données d''entrée'!$C$336=\"(=NON)\",($B1568*'1 Données d''entrée'!$C$332)*((('1 Données d''entrée'!$C$332+1)^'1 Données d''entrée'!$C$334-1)/('1 Données d''entrée'!$C$332))*(1+'1 Données d''entrée'!$C$332),0),0)","v":0},{"$f":"IF(V1554='1 Données d''entrée'!$C$334+1,IF('1 Données d''entrée'!$C$336=\"(=NON)\",($B1568*'1 Données d''entrée'!$C$332)*((('1 Données d''entrée'!$C$332+1)^'1 Données d''entrée'!$C$334-1)/('1 Données d''entrée'!$C$332))*(1+'1 Données d''entrée'!$C$332),0),0)","v":0}]
["Prêt bancaire - Option 3: Remboursement vers l'annuité constante",{"$f":"'1 Données d''entrée'!$B$344","v":0},"% de prêt total"]
["Réception ",{"$f":"B1548*B1572","v":0},0,0,0,0,0,0,0,0,0,0,0,0,0,0,0,0,0,0,0,0]
["Remboursement vers l'annuité constante",{"$f":"IF(B1554<'1 Données d''entrée'!$C$334+1,0,IF(B1554<'1 Données d''entrée'!$C$333+'1 Données d''entrée'!$C$334+1,$B1573*('1 Données d''entrée'!$C$332*(1+'1 Données d''entrée'!$C$332)^'1 Données d''entrée'!$C$333)/((1+'1 Données d''entrée'!$C$332)^'1 Données d''entrée'!$C$333-1),0))","v":0},{"$f":"IF(C1554<'1 Données d''entrée'!$C$334+1,0,IF(C1554<'1 Données d''entrée'!$C$333+'1 Données d''entrée'!$C$334+1,$B1573*('1 Données d''entrée'!$C$332*(1+'1 Données d''entrée'!$C$332)^'1 Données d''entrée'!$C$333)/((1+'1 Données d''entrée'!$C$332)^'1 Données d''entrée'!$C$333-1),0))","v":0},{"$f":"IF(D1554<'1 Données d''entrée'!$C$334+1,0,IF(D1554<'1 Données d''entrée'!$C$333+'1 Données d''entrée'!$C$334+1,$B1573*('1 Données d''entrée'!$C$332*(1+'1 Données d''entrée'!$C$332)^'1 Données d''entrée'!$C$333)/((1+'1 Données d''entrée'!$C$332)^'1 Données d''entrée'!$C$333-1),0))","v":0},{"$f":"IF(E1554<'1 Données d''entrée'!$C$334+1,0,IF(E1554<'1 Données d''entrée'!$C$333+'1 Données d''entrée'!$C$334+1,$B1573*('1 Données d''entrée'!$C$332*(1+'1 Données d''entrée'!$C$332)^'1 Données d''entrée'!$C$333)/((1+'1 Données d''entrée'!$C$332)^'1 Données d''entrée'!$C$333-1),0))","v":0},{"$f":"IF(F1554<'1 Données d''entrée'!$C$334+1,0,IF(F1554<'1 Données d''entrée'!$C$333+'1 Données d''entrée'!$C$334+1,$B1573*('1 Données d''entrée'!$C$332*(1+'1 Données d''entrée'!$C$332)^'1 Données d''entrée'!$C$333)/((1+'1 Données d''entrée'!$C$332)^'1 Données d''entrée'!$C$333-1),0))","v":0},{"$f":"IF(G1554<'1 Données d''entrée'!$C$334+1,0,IF(G1554<'1 Données d''entrée'!$C$333+'1 Données d''entrée'!$C$334+1,$B1573*('1 Données d''entrée'!$C$332*(1+'1 Données d''entrée'!$C$332)^'1 Données d''entrée'!$C$333)/((1+'1 Données d''entrée'!$C$332)^'1 Données d''entrée'!$C$333-1),0))","v":0},{"$f":"IF(H1554<'1 Données d''entrée'!$C$334+1,0,IF(H1554<'1 Données d''entrée'!$C$333+'1 Données d''entrée'!$C$334+1,$B1573*('1 Données d''entrée'!$C$332*(1+'1 Données d''entrée'!$C$332)^'1 Données d''entrée'!$C$333)/((1+'1 Données d''entrée'!$C$332)^'1 Données d''entrée'!$C$333-1),0))","v":0},{"$f":"IF(I1554<'1 Données d''entrée'!$C$334+1,0,IF(I1554<'1 Données d''entrée'!$C$333+'1 Données d''entrée'!$C$334+1,$B1573*('1 Données d''entrée'!$C$332*(1+'1 Données d''entrée'!$C$332)^'1 Données d''entrée'!$C$333)/((1+'1 Données d''entrée'!$C$332)^'1 Données d''entrée'!$C$333-1),0))","v":0},{"$f":"IF(J1554<'1 Données d''entrée'!$C$334+1,0,IF(J1554<'1 Données d''entrée'!$C$333+'1 Données d''entrée'!$C$334+1,$B1573*('1 Données d''entrée'!$C$332*(1+'1 Données d''entrée'!$C$332)^'1 Données d''entrée'!$C$333)/((1+'1 Données d''entrée'!$C$332)^'1 Données d''entrée'!$C$333-1),0))","v":0},{"$f":"IF(K1554<'1 Données d''entrée'!$C$334+1,0,IF(K1554<'1 Données d''entrée'!$C$333+'1 Données d''entrée'!$C$334+1,$B1573*('1 Données d''entrée'!$C$332*(1+'1 Données d''entrée'!$C$332)^'1 Données d''entrée'!$C$333)/((1+'1 Données d''entrée'!$C$332)^'1 Données d''entrée'!$C$333-1),0))","v":0},{"$f":"IF(L1554<'1 Données d''entrée'!$C$334+1,0,IF(L1554<'1 Données d''entrée'!$C$333+'1 Données d''entrée'!$C$334+1,$B1573*('1 Données d''entrée'!$C$332*(1+'1 Données d''entrée'!$C$332)^'1 Données d''entrée'!$C$333)/((1+'1 Données d''entrée'!$C$332)^'1 Données d''entrée'!$C$333-1),0))","v":0},{"$f":"IF(M1554<'1 Données d''entrée'!$C$334+1,0,IF(M1554<'1 Données d''entrée'!$C$333+'1 Données d''entrée'!$C$334+1,$B1573*('1 Données d''entrée'!$C$332*(1+'1 Données d''entrée'!$C$332)^'1 Données d''entrée'!$C$333)/((1+'1 Données d''entrée'!$C$332)^'1 Données d''entrée'!$C$333-1),0))","v":0},{"$f":"IF(N1554<'1 Données d''entrée'!$C$334+1,0,IF(N1554<'1 Données d''entrée'!$C$333+'1 Données d''entrée'!$C$334+1,$B1573*('1 Données d''entrée'!$C$332*(1+'1 Données d''entrée'!$C$332)^'1 Données d''entrée'!$C$333)/((1+'1 Données d''entrée'!$C$332)^'1 Données d''entrée'!$C$333-1),0))","v":0},{"$f":"IF(O1554<'1 Données d''entrée'!$C$334+1,0,IF(O1554<'1 Données d''entrée'!$C$333+'1 Données d''entrée'!$C$334+1,$B1573*('1 Données d''entrée'!$C$332*(1+'1 Données d''entrée'!$C$332)^'1 Données d''entrée'!$C$333)/((1+'1 Données d''entrée'!$C$332)^'1 Données d''entrée'!$C$333-1),0))","v":0},{"$f":"IF(P1554<'1 Données d''entrée'!$C$334+1,0,IF(P1554<'1 Données d''entrée'!$C$333+'1 Données d''entrée'!$C$334+1,$B1573*('1 Données d''entrée'!$C$332*(1+'1 Données d''entrée'!$C$332)^'1 Données d''entrée'!$C$333)/((1+'1 Données d''entrée'!$C$332)^'1 Données d''entrée'!$C$333-1),0))","v":0},{"$f":"IF(Q1554<'1 Données d''entrée'!$C$334+1,0,IF(Q1554<'1 Données d''entrée'!$C$333+'1 Données d''entrée'!$C$334+1,$B1573*('1 Données d''entrée'!$C$332*(1+'1 Données d''entrée'!$C$332)^'1 Données d''entrée'!$C$333)/((1+'1 Données d''entrée'!$C$332)^'1 Données d''entrée'!$C$333-1),0))","v":0},{"$f":"IF(R1554<'1 Données d''entrée'!$C$334+1,0,IF(R1554<'1 Données d''entrée'!$C$333+'1 Données d''entrée'!$C$334+1,$B1573*('1 Données d''entrée'!$C$332*(1+'1 Données d''entrée'!$C$332)^'1 Données d''entrée'!$C$333)/((1+'1 Données d''entrée'!$C$332)^'1 Données d''entrée'!$C$333-1),0))","v":0},{"$f":"IF(S1554<'1 Données d''entrée'!$C$334+1,0,IF(S1554<'1 Données d''entrée'!$C$333+'1 Données d''entrée'!$C$334+1,$B1573*('1 Données d''entrée'!$C$332*(1+'1 Données d''entrée'!$C$332)^'1 Données d''entrée'!$C$333)/((1+'1 Données d''entrée'!$C$332)^'1 Données d''entrée'!$C$333-1),0))","v":0},{"$f":"IF(T1554<'1 Données d''entrée'!$C$334+1,0,IF(T1554<'1 Données d''entrée'!$C$333+'1 Données d''entrée'!$C$334+1,$B1573*('1 Données d''entrée'!$C$332*(1+'1 Données d''entrée'!$C$332)^'1 Données d''entrée'!$C$333)/((1+'1 Données d''entrée'!$C$332)^'1 Données d''entrée'!$C$333-1),0))","v":0},{"$f":"IF(U1554<'1 Données d''entrée'!$C$334+1,0,IF(U1554<'1 Données d''entrée'!$C$333+'1 Données d''entrée'!$C$334+1,$B1573*('1 Données d''entrée'!$C$332*(1+'1 Données d''entrée'!$C$332)^'1 Données d''entrée'!$C$333)/((1+'1 Données d''entrée'!$C$332)^'1 Données d''entrée'!$C$333-1),0))","v":0},{"$f":"IF(V1554<'1 Données d''entrée'!$C$334+1,0,IF(V1554<'1 Données d''entrée'!$C$333+'1 Données d''entrée'!$C$334+1,$B1573*('1 Données d''entrée'!$C$332*(1+'1 Données d''entrée'!$C$332)^'1 Données d''entrée'!$C$333)/((1+'1 Données d''entrée'!$C$332)^'1 Données d''entrée'!$C$333-1),0))","v":0}]
["Paiement d'intérêt décroissant inclu dans l'annuité constante",0,{"$f":"IF('1 Données d''entrée'!$C$336=\"(=NON)\",IF(C1574>0,$B1573*((('1 Données d''entrée'!$C$332+1)^'1 Données d''entrée'!$C$333)-(1+'1 Données d''entrée'!$C$332)^('6 Financement'!C$54-1-'1 Données d''entrée'!$C$334))/((1+'1 Données d''entrée'!$C$332)^'1 Données d''entrée'!$C$333-1)*'1 Données d''entrée'!$C$332,0),IF(C1554<'1 Données d''entrée'!$C$334+1,'1 Données d''entrée'!$C$332*'6 Financement'!$B1573,IF(C1574>0,$B$73*((('1 Données d''entrée'!$C$332+1)^'1 Données d''entrée'!$C$333)-(1+'1 Données d''entrée'!$C$332)^('6 Financement'!C$54-1-'1 Données d''entrée'!$C$334))/((1+'1 Données d''entrée'!$C$332)^'1 Données d''entrée'!$C$333-1)*'1 Données d''entrée'!$C$332,0)))","v":0},{"$f":"IF('1 Données d''entrée'!$C$336=\"(=NON)\",IF(D1574>0,$B1573*((('1 Données d''entrée'!$C$332+1)^'1 Données d''entrée'!$C$333)-(1+'1 Données d''entrée'!$C$332)^('6 Financement'!D$54-1-'1 Données d''entrée'!$C$334))/((1+'1 Données d''entrée'!$C$332)^'1 Données d''entrée'!$C$333-1)*'1 Données d''entrée'!$C$332,0),IF(D1554<'1 Données d''entrée'!$C$334+1,'1 Données d''entrée'!$C$332*'6 Financement'!$B1573,IF(D1574>0,$B$73*((('1 Données d''entrée'!$C$332+1)^'1 Données d''entrée'!$C$333)-(1+'1 Données d''entrée'!$C$332)^('6 Financement'!D$54-1-'1 Données d''entrée'!$C$334))/((1+'1 Données d''entrée'!$C$332)^'1 Données d''entrée'!$C$333-1)*'1 Données d''entrée'!$C$332,0)))","v":0},{"$f":"IF('1 Données d''entrée'!$C$336=\"(=NON)\",IF(E1574>0,$B1573*((('1 Données d''entrée'!$C$332+1)^'1 Données d''entrée'!$C$333)-(1+'1 Données d''entrée'!$C$332)^('6 Financement'!E$54-1-'1 Données d''entrée'!$C$334))/((1+'1 Données d''entrée'!$C$332)^'1 Données d''entrée'!$C$333-1)*'1 Données d''entrée'!$C$332,0),IF(E1554<'1 Données d''entrée'!$C$334+1,'1 Données d''entrée'!$C$332*'6 Financement'!$B1573,IF(E1574>0,$B$73*((('1 Données d''entrée'!$C$332+1)^'1 Données d''entrée'!$C$333)-(1+'1 Données d''entrée'!$C$332)^('6 Financement'!E$54-1-'1 Données d''entrée'!$C$334))/((1+'1 Données d''entrée'!$C$332)^'1 Données d''entrée'!$C$333-1)*'1 Données d''entrée'!$C$332,0)))","v":0},{"$f":"IF('1 Données d''entrée'!$C$336=\"(=NON)\",IF(F1574>0,$B1573*((('1 Données d''entrée'!$C$332+1)^'1 Données d''entrée'!$C$333)-(1+'1 Données d''entrée'!$C$332)^('6 Financement'!F$54-1-'1 Données d''entrée'!$C$334))/((1+'1 Données d''entrée'!$C$332)^'1 Données d''entrée'!$C$333-1)*'1 Données d''entrée'!$C$332,0),IF(F1554<'1 Données d''entrée'!$C$334+1,'1 Données d''entrée'!$C$332*'6 Financement'!$B1573,IF(F1574>0,$B$73*((('1 Données d''entrée'!$C$332+1)^'1 Données d''entrée'!$C$333)-(1+'1 Données d''entrée'!$C$332)^('6 Financement'!F$54-1-'1 Données d''entrée'!$C$334))/((1+'1 Données d''entrée'!$C$332)^'1 Données d''entrée'!$C$333-1)*'1 Données d''entrée'!$C$332,0)))","v":0},{"$f":"IF('1 Données d''entrée'!$C$336=\"(=NON)\",IF(G1574>0,$B1573*((('1 Données d''entrée'!$C$332+1)^'1 Données d''entrée'!$C$333)-(1+'1 Données d''entrée'!$C$332)^('6 Financement'!G$54-1-'1 Données d''entrée'!$C$334))/((1+'1 Données d''entrée'!$C$332)^'1 Données d''entrée'!$C$333-1)*'1 Données d''entrée'!$C$332,0),IF(G1554<'1 Données d''entrée'!$C$334+1,'1 Données d''entrée'!$C$332*'6 Financement'!$B1573,IF(G1574>0,$B$73*((('1 Données d''entrée'!$C$332+1)^'1 Données d''entrée'!$C$333)-(1+'1 Données d''entrée'!$C$332)^('6 Financement'!G$54-1-'1 Données d''entrée'!$C$334))/((1+'1 Données d''entrée'!$C$332)^'1 Données d''entrée'!$C$333-1)*'1 Données d''entrée'!$C$332,0)))","v":0},{"$f":"IF('1 Données d''entrée'!$C$336=\"(=NON)\",IF(H1574>0,$B1573*((('1 Données d''entrée'!$C$332+1)^'1 Données d''entrée'!$C$333)-(1+'1 Données d''entrée'!$C$332)^('6 Financement'!H$54-1-'1 Données d''entrée'!$C$334))/((1+'1 Données d''entrée'!$C$332)^'1 Données d''entrée'!$C$333-1)*'1 Données d''entrée'!$C$332,0),IF(H1554<'1 Données d''entrée'!$C$334+1,'1 Données d''entrée'!$C$332*'6 Financement'!$B1573,IF(H1574>0,$B$73*((('1 Données d''entrée'!$C$332+1)^'1 Données d''entrée'!$C$333)-(1+'1 Données d''entrée'!$C$332)^('6 Financement'!H$54-1-'1 Données d''entrée'!$C$334))/((1+'1 Données d''entrée'!$C$332)^'1 Données d''entrée'!$C$333-1)*'1 Données d''entrée'!$C$332,0)))","v":0},{"$f":"IF('1 Données d''entrée'!$C$336=\"(=NON)\",IF(I1574>0,$B1573*((('1 Données d''entrée'!$C$332+1)^'1 Données d''entrée'!$C$333)-(1+'1 Données d''entrée'!$C$332)^('6 Financement'!I$54-1-'1 Données d''entrée'!$C$334))/((1+'1 Données d''entrée'!$C$332)^'1 Données d''entrée'!$C$333-1)*'1 Données d''entrée'!$C$332,0),IF(I1554<'1 Données d''entrée'!$C$334+1,'1 Données d''entrée'!$C$332*'6 Financement'!$B1573,IF(I1574>0,$B$73*((('1 Données d''entrée'!$C$332+1)^'1 Données d''entrée'!$C$333)-(1+'1 Données d''entrée'!$C$332)^('6 Financement'!I$54-1-'1 Données d''entrée'!$C$334))/((1+'1 Données d''entrée'!$C$332)^'1 Données d''entrée'!$C$333-1)*'1 Données d''entrée'!$C$332,0)))","v":0},{"$f":"IF('1 Données d''entrée'!$C$336=\"(=NON)\",IF(J1574>0,$B1573*((('1 Données d''entrée'!$C$332+1)^'1 Données d''entrée'!$C$333)-(1+'1 Données d''entrée'!$C$332)^('6 Financement'!J$54-1-'1 Données d''entrée'!$C$334))/((1+'1 Données d''entrée'!$C$332)^'1 Données d''entrée'!$C$333-1)*'1 Données d''entrée'!$C$332,0),IF(J1554<'1 Données d''entrée'!$C$334+1,'1 Données d''entrée'!$C$332*'6 Financement'!$B1573,IF(J1574>0,$B$73*((('1 Données d''entrée'!$C$332+1)^'1 Données d''entrée'!$C$333)-(1+'1 Données d''entrée'!$C$332)^('6 Financement'!J$54-1-'1 Données d''entrée'!$C$334))/((1+'1 Données d''entrée'!$C$332)^'1 Données d''entrée'!$C$333-1)*'1 Données d''entrée'!$C$332,0)))","v":0},{"$f":"IF('1 Données d''entrée'!$C$336=\"(=NON)\",IF(K1574>0,$B1573*((('1 Données d''entrée'!$C$332+1)^'1 Données d''entrée'!$C$333)-(1+'1 Données d''entrée'!$C$332)^('6 Financement'!K$54-1-'1 Données d''entrée'!$C$334))/((1+'1 Données d''entrée'!$C$332)^'1 Données d''entrée'!$C$333-1)*'1 Données d''entrée'!$C$332,0),IF(K1554<'1 Données d''entrée'!$C$334+1,'1 Données d''entrée'!$C$332*'6 Financement'!$B1573,IF(K1574>0,$B$73*((('1 Données d''entrée'!$C$332+1)^'1 Données d''entrée'!$C$333)-(1+'1 Données d''entrée'!$C$332)^('6 Financement'!K$54-1-'1 Données d''entrée'!$C$334))/((1+'1 Données d''entrée'!$C$332)^'1 Données d''entrée'!$C$333-1)*'1 Données d''entrée'!$C$332,0)))","v":0},{"$f":"IF('1 Données d''entrée'!$C$336=\"(=NON)\",IF(L1574>0,$B1573*((('1 Données d''entrée'!$C$332+1)^'1 Données d''entrée'!$C$333)-(1+'1 Données d''entrée'!$C$332)^('6 Financement'!L$54-1-'1 Données d''entrée'!$C$334))/((1+'1 Données d''entrée'!$C$332)^'1 Données d''entrée'!$C$333-1)*'1 Données d''entrée'!$C$332,0),IF(L1554<'1 Données d''entrée'!$C$334+1,'1 Données d''entrée'!$C$332*'6 Financement'!$B1573,IF(L1574>0,$B$73*((('1 Données d''entrée'!$C$332+1)^'1 Données d''entrée'!$C$333)-(1+'1 Données d''entrée'!$C$332)^('6 Financement'!L$54-1-'1 Données d''entrée'!$C$334))/((1+'1 Données d''entrée'!$C$332)^'1 Données d''entrée'!$C$333-1)*'1 Données d''entrée'!$C$332,0)))","v":0},{"$f":"IF('1 Données d''entrée'!$C$336=\"(=NON)\",IF(M1574>0,$B1573*((('1 Données d''entrée'!$C$332+1)^'1 Données d''entrée'!$C$333)-(1+'1 Données d''entrée'!$C$332)^('6 Financement'!M$54-1-'1 Données d''entrée'!$C$334))/((1+'1 Données d''entrée'!$C$332)^'1 Données d''entrée'!$C$333-1)*'1 Données d''entrée'!$C$332,0),IF(M1554<'1 Données d''entrée'!$C$334+1,'1 Données d''entrée'!$C$332*'6 Financement'!$B1573,IF(M1574>0,$B$73*((('1 Données d''entrée'!$C$332+1)^'1 Données d''entrée'!$C$333)-(1+'1 Données d''entrée'!$C$332)^('6 Financement'!M$54-1-'1 Données d''entrée'!$C$334))/((1+'1 Données d''entrée'!$C$332)^'1 Données d''entrée'!$C$333-1)*'1 Données d''entrée'!$C$332,0)))","v":0},{"$f":"IF('1 Données d''entrée'!$C$336=\"(=NON)\",IF(N1574>0,$B1573*((('1 Données d''entrée'!$C$332+1)^'1 Données d''entrée'!$C$333)-(1+'1 Données d''entrée'!$C$332)^('6 Financement'!N$54-1-'1 Données d''entrée'!$C$334))/((1+'1 Données d''entrée'!$C$332)^'1 Données d''entrée'!$C$333-1)*'1 Données d''entrée'!$C$332,0),IF(N1554<'1 Données d''entrée'!$C$334+1,'1 Données d''entrée'!$C$332*'6 Financement'!$B1573,IF(N1574>0,$B$73*((('1 Données d''entrée'!$C$332+1)^'1 Données d''entrée'!$C$333)-(1+'1 Données d''entrée'!$C$332)^('6 Financement'!N$54-1-'1 Données d''entrée'!$C$334))/((1+'1 Données d''entrée'!$C$332)^'1 Données d''entrée'!$C$333-1)*'1 Données d''entrée'!$C$332,0)))","v":0},{"$f":"IF('1 Données d''entrée'!$C$336=\"(=NON)\",IF(O1574>0,$B1573*((('1 Données d''entrée'!$C$332+1)^'1 Données d''entrée'!$C$333)-(1+'1 Données d''entrée'!$C$332)^('6 Financement'!O$54-1-'1 Données d''entrée'!$C$334))/((1+'1 Données d''entrée'!$C$332)^'1 Données d''entrée'!$C$333-1)*'1 Données d''entrée'!$C$332,0),IF(O1554<'1 Données d''entrée'!$C$334+1,'1 Données d''entrée'!$C$332*'6 Financement'!$B1573,IF(O1574>0,$B$73*((('1 Données d''entrée'!$C$332+1)^'1 Données d''entrée'!$C$333)-(1+'1 Données d''entrée'!$C$332)^('6 Financement'!O$54-1-'1 Données d''entrée'!$C$334))/((1+'1 Données d''entrée'!$C$332)^'1 Données d''entrée'!$C$333-1)*'1 Données d''entrée'!$C$332,0)))","v":0},{"$f":"IF('1 Données d''entrée'!$C$336=\"(=NON)\",IF(P1574>0,$B1573*((('1 Données d''entrée'!$C$332+1)^'1 Données d''entrée'!$C$333)-(1+'1 Données d''entrée'!$C$332)^('6 Financement'!P$54-1-'1 Données d''entrée'!$C$334))/((1+'1 Données d''entrée'!$C$332)^'1 Données d''entrée'!$C$333-1)*'1 Données d''entrée'!$C$332,0),IF(P1554<'1 Données d''entrée'!$C$334+1,'1 Données d''entrée'!$C$332*'6 Financement'!$B1573,IF(P1574>0,$B$73*((('1 Données d''entrée'!$C$332+1)^'1 Données d''entrée'!$C$333)-(1+'1 Données d''entrée'!$C$332)^('6 Financement'!P$54-1-'1 Données d''entrée'!$C$334))/((1+'1 Données d''entrée'!$C$332)^'1 Données d''entrée'!$C$333-1)*'1 Données d''entrée'!$C$332,0)))","v":0},{"$f":"IF('1 Données d''entrée'!$C$336=\"(=NON)\",IF(Q1574>0,$B1573*((('1 Données d''entrée'!$C$332+1)^'1 Données d''entrée'!$C$333)-(1+'1 Données d''entrée'!$C$332)^('6 Financement'!Q$54-1-'1 Données d''entrée'!$C$334))/((1+'1 Données d''entrée'!$C$332)^'1 Données d''entrée'!$C$333-1)*'1 Données d''entrée'!$C$332,0),IF(Q1554<'1 Données d''entrée'!$C$334+1,'1 Données d''entrée'!$C$332*'6 Financement'!$B1573,IF(Q1574>0,$B$73*((('1 Données d''entrée'!$C$332+1)^'1 Données d''entrée'!$C$333)-(1+'1 Données d''entrée'!$C$332)^('6 Financement'!Q$54-1-'1 Données d''entrée'!$C$334))/((1+'1 Données d''entrée'!$C$332)^'1 Données d''entrée'!$C$333-1)*'1 Données d''entrée'!$C$332,0)))","v":0},{"$f":"IF('1 Données d''entrée'!$C$336=\"(=NON)\",IF(R1574>0,$B1573*((('1 Données d''entrée'!$C$332+1)^'1 Données d''entrée'!$C$333)-(1+'1 Données d''entrée'!$C$332)^('6 Financement'!R$54-1-'1 Données d''entrée'!$C$334))/((1+'1 Données d''entrée'!$C$332)^'1 Données d''entrée'!$C$333-1)*'1 Données d''entrée'!$C$332,0),IF(R1554<'1 Données d''entrée'!$C$334+1,'1 Données d''entrée'!$C$332*'6 Financement'!$B1573,IF(R1574>0,$B$73*((('1 Données d''entrée'!$C$332+1)^'1 Données d''entrée'!$C$333)-(1+'1 Données d''entrée'!$C$332)^('6 Financement'!R$54-1-'1 Données d''entrée'!$C$334))/((1+'1 Données d''entrée'!$C$332)^'1 Données d''entrée'!$C$333-1)*'1 Données d''entrée'!$C$332,0)))","v":0},{"$f":"IF('1 Données d''entrée'!$C$336=\"(=NON)\",IF(S1574>0,$B1573*((('1 Données d''entrée'!$C$332+1)^'1 Données d''entrée'!$C$333)-(1+'1 Données d''entrée'!$C$332)^('6 Financement'!S$54-1-'1 Données d''entrée'!$C$334))/((1+'1 Données d''entrée'!$C$332)^'1 Données d''entrée'!$C$333-1)*'1 Données d''entrée'!$C$332,0),IF(S1554<'1 Données d''entrée'!$C$334+1,'1 Données d''entrée'!$C$332*'6 Financement'!$B1573,IF(S1574>0,$B$73*((('1 Données d''entrée'!$C$332+1)^'1 Données d''entrée'!$C$333)-(1+'1 Données d''entrée'!$C$332)^('6 Financement'!S$54-1-'1 Données d''entrée'!$C$334))/((1+'1 Données d''entrée'!$C$332)^'1 Données d''entrée'!$C$333-1)*'1 Données d''entrée'!$C$332,0)))","v":0},{"$f":"IF('1 Données d''entrée'!$C$336=\"(=NON)\",IF(T1574>0,$B1573*((('1 Données d''entrée'!$C$332+1)^'1 Données d''entrée'!$C$333)-(1+'1 Données d''entrée'!$C$332)^('6 Financement'!T$54-1-'1 Données d''entrée'!$C$334))/((1+'1 Données d''entrée'!$C$332)^'1 Données d''entrée'!$C$333-1)*'1 Données d''entrée'!$C$332,0),IF(T1554<'1 Données d''entrée'!$C$334+1,'1 Données d''entrée'!$C$332*'6 Financement'!$B1573,IF(T1574>0,$B$73*((('1 Données d''entrée'!$C$332+1)^'1 Données d''entrée'!$C$333)-(1+'1 Données d''entrée'!$C$332)^('6 Financement'!T$54-1-'1 Données d''entrée'!$C$334))/((1+'1 Données d''entrée'!$C$332)^'1 Données d''entrée'!$C$333-1)*'1 Données d''entrée'!$C$332,0)))","v":0},{"$f":"IF('1 Données d''entrée'!$C$336=\"(=NON)\",IF(U1574>0,$B1573*((('1 Données d''entrée'!$C$332+1)^'1 Données d''entrée'!$C$333)-(1+'1 Données d''entrée'!$C$332)^('6 Financement'!U$54-1-'1 Données d''entrée'!$C$334))/((1+'1 Données d''entrée'!$C$332)^'1 Données d''entrée'!$C$333-1)*'1 Données d''entrée'!$C$332,0),IF(U1554<'1 Données d''entrée'!$C$334+1,'1 Données d''entrée'!$C$332*'6 Financement'!$B1573,IF(U1574>0,$B$73*((('1 Données d''entrée'!$C$332+1)^'1 Données d''entrée'!$C$333)-(1+'1 Données d''entrée'!$C$332)^('6 Financement'!U$54-1-'1 Données d''entrée'!$C$334))/((1+'1 Données d''entrée'!$C$332)^'1 Données d''entrée'!$C$333-1)*'1 Données d''entrée'!$C$332,0)))","v":0},{"$f":"IF('1 Données d''entrée'!$C$336=\"(=NON)\",IF(V1574>0,$B1573*((('1 Données d''entrée'!$C$332+1)^'1 Données d''entrée'!$C$333)-(1+'1 Données d''entrée'!$C$332)^('6 Financement'!V$54-1-'1 Données d''entrée'!$C$334))/((1+'1 Données d''entrée'!$C$332)^'1 Données d''entrée'!$C$333-1)*'1 Données d''entrée'!$C$332,0),IF(V1554<'1 Données d''entrée'!$C$334+1,'1 Données d''entrée'!$C$332*'6 Financement'!$B1573,IF(V1574>0,$B$73*((('1 Données d''entrée'!$C$332+1)^'1 Données d''entrée'!$C$333)-(1+'1 Données d''entrée'!$C$332)^('6 Financement'!V$54-1-'1 Données d''entrée'!$C$334))/((1+'1 Données d''entrée'!$C$332)^'1 Données d''entrée'!$C$333-1)*'1 Données d''entrée'!$C$332,0)))","v":0}]
["Paiements d'intérêt avec des intérêts composés en cas d'absence des paiements dans la période de grâce",0,0,{"$f":"IF(D1554='1 Données d''entrée'!$C$334+1,IF('1 Données d''entrée'!$C$336=\"(=NON)\",($B1573*'1 Données d''entrée'!$C$332)*((('1 Données d''entrée'!$C$332+1)^'1 Données d''entrée'!$C$334-1)/('1 Données d''entrée'!$C$332))*(1+'1 Données d''entrée'!$C$332),0),0)","v":0},{"$f":"IF(E1554='1 Données d''entrée'!$C$334+1,IF('1 Données d''entrée'!$C$336=\"(=NON)\",($B1573*'1 Données d''entrée'!$C$332)*((('1 Données d''entrée'!$C$332+1)^'1 Données d''entrée'!$C$334-1)/('1 Données d''entrée'!$C$332))*(1+'1 Données d''entrée'!$C$332),0),0)","v":0},{"$f":"IF(F1554='1 Données d''entrée'!$C$334+1,IF('1 Données d''entrée'!$C$336=\"(=NON)\",($B1573*'1 Données d''entrée'!$C$332)*((('1 Données d''entrée'!$C$332+1)^'1 Données d''entrée'!$C$334-1)/('1 Données d''entrée'!$C$332))*(1+'1 Données d''entrée'!$C$332),0),0)","v":0},{"$f":"IF(G1554='1 Données d''entrée'!$C$334+1,IF('1 Données d''entrée'!$C$336=\"(=NON)\",($B1573*'1 Données d''entrée'!$C$332)*((('1 Données d''entrée'!$C$332+1)^'1 Données d''entrée'!$C$334-1)/('1 Données d''entrée'!$C$332))*(1+'1 Données d''entrée'!$C$332),0),0)","v":0},{"$f":"IF(H1554='1 Données d''entrée'!$C$334+1,IF('1 Données d''entrée'!$C$336=\"(=NON)\",($B1573*'1 Données d''entrée'!$C$332)*((('1 Données d''entrée'!$C$332+1)^'1 Données d''entrée'!$C$334-1)/('1 Données d''entrée'!$C$332))*(1+'1 Données d''entrée'!$C$332),0),0)","v":0},{"$f":"IF(I1554='1 Données d''entrée'!$C$334+1,IF('1 Données d''entrée'!$C$336=\"(=NON)\",($B1573*'1 Données d''entrée'!$C$332)*((('1 Données d''entrée'!$C$332+1)^'1 Données d''entrée'!$C$334-1)/('1 Données d''entrée'!$C$332))*(1+'1 Données d''entrée'!$C$332),0),0)","v":0},{"$f":"IF(J1554='1 Données d''entrée'!$C$334+1,IF('1 Données d''entrée'!$C$336=\"(=NON)\",($B1573*'1 Données d''entrée'!$C$332)*((('1 Données d''entrée'!$C$332+1)^'1 Données d''entrée'!$C$334-1)/('1 Données d''entrée'!$C$332))*(1+'1 Données d''entrée'!$C$332),0),0)","v":0},{"$f":"IF(K1554='1 Données d''entrée'!$C$334+1,IF('1 Données d''entrée'!$C$336=\"(=NON)\",($B1573*'1 Données d''entrée'!$C$332)*((('1 Données d''entrée'!$C$332+1)^'1 Données d''entrée'!$C$334-1)/('1 Données d''entrée'!$C$332))*(1+'1 Données d''entrée'!$C$332),0),0)","v":0},{"$f":"IF(L1554='1 Données d''entrée'!$C$334+1,IF('1 Données d''entrée'!$C$336=\"(=NON)\",($B1573*'1 Données d''entrée'!$C$332)*((('1 Données d''entrée'!$C$332+1)^'1 Données d''entrée'!$C$334-1)/('1 Données d''entrée'!$C$332))*(1+'1 Données d''entrée'!$C$332),0),0)","v":0},{"$f":"IF(M1554='1 Données d''entrée'!$C$334+1,IF('1 Données d''entrée'!$C$336=\"(=NON)\",($B1573*'1 Données d''entrée'!$C$332)*((('1 Données d''entrée'!$C$332+1)^'1 Données d''entrée'!$C$334-1)/('1 Données d''entrée'!$C$332))*(1+'1 Données d''entrée'!$C$332),0),0)","v":0},{"$f":"IF(N1554='1 Données d''entrée'!$C$334+1,IF('1 Données d''entrée'!$C$336=\"(=NON)\",($B1573*'1 Données d''entrée'!$C$332)*((('1 Données d''entrée'!$C$332+1)^'1 Données d''entrée'!$C$334-1)/('1 Données d''entrée'!$C$332))*(1+'1 Données d''entrée'!$C$332),0),0)","v":0},{"$f":"IF(O1554='1 Données d''entrée'!$C$334+1,IF('1 Données d''entrée'!$C$336=\"(=NON)\",($B1573*'1 Données d''entrée'!$C$332)*((('1 Données d''entrée'!$C$332+1)^'1 Données d''entrée'!$C$334-1)/('1 Données d''entrée'!$C$332))*(1+'1 Données d''entrée'!$C$332),0),0)","v":0},{"$f":"IF(P1554='1 Données d''entrée'!$C$334+1,IF('1 Données d''entrée'!$C$336=\"(=NON)\",($B1573*'1 Données d''entrée'!$C$332)*((('1 Données d''entrée'!$C$332+1)^'1 Données d''entrée'!$C$334-1)/('1 Données d''entrée'!$C$332))*(1+'1 Données d''entrée'!$C$332),0),0)","v":0},{"$f":"IF(Q1554='1 Données d''entrée'!$C$334+1,IF('1 Données d''entrée'!$C$336=\"(=NON)\",($B1573*'1 Données d''entrée'!$C$332)*((('1 Données d''entrée'!$C$332+1)^'1 Données d''entrée'!$C$334-1)/('1 Données d''entrée'!$C$332))*(1+'1 Données d''entrée'!$C$332),0),0)","v":0},{"$f":"IF(R1554='1 Données d''entrée'!$C$334+1,IF('1 Données d''entrée'!$C$336=\"(=NON)\",($B1573*'1 Données d''entrée'!$C$332)*((('1 Données d''entrée'!$C$332+1)^'1 Données d''entrée'!$C$334-1)/('1 Données d''entrée'!$C$332))*(1+'1 Données d''entrée'!$C$332),0),0)","v":0},{"$f":"IF(S1554='1 Données d''entrée'!$C$334+1,IF('1 Données d''entrée'!$C$336=\"(=NON)\",($B1573*'1 Données d''entrée'!$C$332)*((('1 Données d''entrée'!$C$332+1)^'1 Données d''entrée'!$C$334-1)/('1 Données d''entrée'!$C$332))*(1+'1 Données d''entrée'!$C$332),0),0)","v":0},{"$f":"IF(T1554='1 Données d''entrée'!$C$334+1,IF('1 Données d''entrée'!$C$336=\"(=NON)\",($B1573*'1 Données d''entrée'!$C$332)*((('1 Données d''entrée'!$C$332+1)^'1 Données d''entrée'!$C$334-1)/('1 Données d''entrée'!$C$332))*(1+'1 Données d''entrée'!$C$332),0),0)","v":0},{"$f":"IF(U1554='1 Données d''entrée'!$C$334+1,IF('1 Données d''entrée'!$C$336=\"(=NON)\",($B1573*'1 Données d''entrée'!$C$332)*((('1 Données d''entrée'!$C$332+1)^'1 Données d''entrée'!$C$334-1)/('1 Données d''entrée'!$C$332))*(1+'1 Données d''entrée'!$C$332),0),0)","v":0},{"$f":"IF(V1554='1 Données d''entrée'!$C$334+1,IF('1 Données d''entrée'!$C$336=\"(=NON)\",($B1573*'1 Données d''entrée'!$C$332)*((('1 Données d''entrée'!$C$332+1)^'1 Données d''entrée'!$C$334-1)/('1 Données d''entrée'!$C$332))*(1+'1 Données d''entrée'!$C$332),0),0)","v":0}]
[]
["Fonds d'autres donneurs / investisseurs - Subvention",{"$f":"'1 Données d''entrée'!$B$307","v":0}]
["Fonds d'autre donneurs / investisseurs - Prêt; Option 1: Remboursement du principal fractionné",{"$f":"'1 Données d''entrée'!$B$319","v":0},"% de prêt total"]
["Réception et montant restant",{"$f":"'1 Données d''entrée'!$B$306*'1 Données d''entrée'!$B$319+'1 Données d''entrée'!$B$306*'1 Données d''entrée'!$C$316","v":0},{"$f":"B1580-C1581","v":0},{"$f":"C1580-D1581","v":0},0,0,0,0,0,0,0,0,0,0,0,0,0,0,0,0,0,0]
["Remboursement du principal",0,{"$f":"IF(C1554<'1 Données d''entrée'!$C$312+1,0,IF(C1554<'1 Données d''entrée'!$C$312+'1 Données d''entrée'!$C$311+1,($B1580/'1 Données d''entrée'!$C$311),0))","v":0},{"$f":"IF(D1554<'1 Données d''entrée'!$C$312+1,0,IF(D1554<'1 Données d''entrée'!$C$312+'1 Données d''entrée'!$C$311+1,($B1580/'1 Données d''entrée'!$C$311),0))","v":0},{"$f":"IF(E1554<'1 Données d''entrée'!$C$312+1,0,IF(E1554<'1 Données d''entrée'!$C$312+'1 Données d''entrée'!$C$311+1,($B1580/'1 Données d''entrée'!$C$311),0))","v":0},{"$f":"IF(F1554<'1 Données d''entrée'!$C$312+1,0,IF(F1554<'1 Données d''entrée'!$C$312+'1 Données d''entrée'!$C$311+1,($B1580/'1 Données d''entrée'!$C$311),0))","v":0},{"$f":"IF(G1554<'1 Données d''entrée'!$C$312+1,0,IF(G1554<'1 Données d''entrée'!$C$312+'1 Données d''entrée'!$C$311+1,($B1580/'1 Données d''entrée'!$C$311),0))","v":0},{"$f":"IF(H1554<'1 Données d''entrée'!$C$312+1,0,IF(H1554<'1 Données d''entrée'!$C$312+'1 Données d''entrée'!$C$311+1,($B1580/'1 Données d''entrée'!$C$311),0))","v":0},{"$f":"IF(I1554<'1 Données d''entrée'!$C$312+1,0,IF(I1554<'1 Données d''entrée'!$C$312+'1 Données d''entrée'!$C$311+1,($B1580/'1 Données d''entrée'!$C$311),0))","v":0},{"$f":"IF(J1554<'1 Données d''entrée'!$C$312+1,0,IF(J1554<'1 Données d''entrée'!$C$312+'1 Données d''entrée'!$C$311+1,($B1580/'1 Données d''entrée'!$C$311),0))","v":0},{"$f":"IF(K1554<'1 Données d''entrée'!$C$312+1,0,IF(K1554<'1 Données d''entrée'!$C$312+'1 Données d''entrée'!$C$311+1,($B1580/'1 Données d''entrée'!$C$311),0))","v":0},{"$f":"IF(L1554<'1 Données d''entrée'!$C$312+1,0,IF(L1554<'1 Données d''entrée'!$C$312+'1 Données d''entrée'!$C$311+1,($B1580/'1 Données d''entrée'!$C$311),0))","v":0},{"$f":"IF(M1554<'1 Données d''entrée'!$C$312+1,0,IF(M1554<'1 Données d''entrée'!$C$312+'1 Données d''entrée'!$C$311+1,($B1580/'1 Données d''entrée'!$C$311),0))","v":0},{"$f":"IF(N1554<'1 Données d''entrée'!$C$312+1,0,IF(N1554<'1 Données d''entrée'!$C$312+'1 Données d''entrée'!$C$311+1,($B1580/'1 Données d''entrée'!$C$311),0))","v":0},{"$f":"IF(O1554<'1 Données d''entrée'!$C$312+1,0,IF(O1554<'1 Données d''entrée'!$C$312+'1 Données d''entrée'!$C$311+1,($B1580/'1 Données d''entrée'!$C$311),0))","v":0},{"$f":"IF(P1554<'1 Données d''entrée'!$C$312+1,0,IF(P1554<'1 Données d''entrée'!$C$312+'1 Données d''entrée'!$C$311+1,($B1580/'1 Données d''entrée'!$C$311),0))","v":0},{"$f":"IF(Q1554<'1 Données d''entrée'!$C$312+1,0,IF(Q1554<'1 Données d''entrée'!$C$312+'1 Données d''entrée'!$C$311+1,($B1580/'1 Données d''entrée'!$C$311),0))","v":0},{"$f":"IF(R1554<'1 Données d''entrée'!$C$312+1,0,IF(R1554<'1 Données d''entrée'!$C$312+'1 Données d''entrée'!$C$311+1,($B1580/'1 Données d''entrée'!$C$311),0))","v":0},{"$f":"IF(S1554<'1 Données d''entrée'!$C$312+1,0,IF(S1554<'1 Données d''entrée'!$C$312+'1 Données d''entrée'!$C$311+1,($B1580/'1 Données d''entrée'!$C$311),0))","v":0},{"$f":"IF(T1554<'1 Données d''entrée'!$C$312+1,0,IF(T1554<'1 Données d''entrée'!$C$312+'1 Données d''entrée'!$C$311+1,($B1580/'1 Données d''entrée'!$C$311),0))","v":0},{"$f":"IF(U1554<'1 Données d''entrée'!$C$312+1,0,IF(U1554<'1 Données d''entrée'!$C$312+'1 Données d''entrée'!$C$311+1,($B1580/'1 Données d''entrée'!$C$311),0))","v":0},{"$f":"IF(V1554<'1 Données d''entrée'!$C$312+1,0,IF(V1554<'1 Données d''entrée'!$C$312+'1 Données d''entrée'!$C$311+1,($B1580/'1 Données d''entrée'!$C$311),0))","v":0}]
["Paiement d'intérêts",0,{"$f":"IF('1 Données d''entrée'!$C$314=\"(=NON)\",IF(C1554<'1 Données d''entrée'!$C$312+1,0,B1580*'1 Données d''entrée'!$C$310),B1580*'1 Données d''entrée'!$C$310)","v":0},{"$f":"IF('1 Données d''entrée'!$C$314=\"(=NON)\",IF(D1554<'1 Données d''entrée'!$C$312+1,0,C1580*'1 Données d''entrée'!$C$310),C1580*'1 Données d''entrée'!$C$310)","v":0},{"$f":"IF('1 Données d''entrée'!$C$314=\"(=NON)\",IF(E1554<'1 Données d''entrée'!$C$312+1,0,D1580*'1 Données d''entrée'!$C$310),D1580*'1 Données d''entrée'!$C$310)","v":0},{"$f":"IF('1 Données d''entrée'!$C$314=\"(=NON)\",IF(F1554<'1 Données d''entrée'!$C$312+1,0,E1580*'1 Données d''entrée'!$C$310),E1580*'1 Données d''entrée'!$C$310)","v":0},{"$f":"IF('1 Données d''entrée'!$C$314=\"(=NON)\",IF(G1554<'1 Données d''entrée'!$C$312+1,0,F1580*'1 Données d''entrée'!$C$310),F1580*'1 Données d''entrée'!$C$310)","v":0},{"$f":"IF('1 Données d''entrée'!$C$314=\"(=NON)\",IF(H1554<'1 Données d''entrée'!$C$312+1,0,G1580*'1 Données d''entrée'!$C$310),G1580*'1 Données d''entrée'!$C$310)","v":0},{"$f":"IF('1 Données d''entrée'!$C$314=\"(=NON)\",IF(I1554<'1 Données d''entrée'!$C$312+1,0,H1580*'1 Données d''entrée'!$C$310),H1580*'1 Données d''entrée'!$C$310)","v":0},{"$f":"IF('1 Données d''entrée'!$C$314=\"(=NON)\",IF(J1554<'1 Données d''entrée'!$C$312+1,0,I1580*'1 Données d''entrée'!$C$310),I1580*'1 Données d''entrée'!$C$310)","v":0},{"$f":"IF('1 Données d''entrée'!$C$314=\"(=NON)\",IF(K1554<'1 Données d''entrée'!$C$312+1,0,J1580*'1 Données d''entrée'!$C$310),J1580*'1 Données d''entrée'!$C$310)","v":0},{"$f":"IF('1 Données d''entrée'!$C$314=\"(=NON)\",IF(L1554<'1 Données d''entrée'!$C$312+1,0,K1580*'1 Données d''entrée'!$C$310),K1580*'1 Données d''entrée'!$C$310)","v":0},{"$f":"IF('1 Données d''entrée'!$C$314=\"(=NON)\",IF(M1554<'1 Données d''entrée'!$C$312+1,0,L1580*'1 Données d''entrée'!$C$310),L1580*'1 Données d''entrée'!$C$310)","v":0},{"$f":"IF('1 Données d''entrée'!$C$314=\"(=NON)\",IF(N1554<'1 Données d''entrée'!$C$312+1,0,M1580*'1 Données d''entrée'!$C$310),M1580*'1 Données d''entrée'!$C$310)","v":0},{"$f":"IF('1 Données d''entrée'!$C$314=\"(=NON)\",IF(O1554<'1 Données d''entrée'!$C$312+1,0,N1580*'1 Données d''entrée'!$C$310),N1580*'1 Données d''entrée'!$C$310)","v":0},{"$f":"IF('1 Données d''entrée'!$C$314=\"(=NON)\",IF(P1554<'1 Données d''entrée'!$C$312+1,0,O1580*'1 Données d''entrée'!$C$310),O1580*'1 Données d''entrée'!$C$310)","v":0},{"$f":"IF('1 Données d''entrée'!$C$314=\"(=NON)\",IF(Q1554<'1 Données d''entrée'!$C$312+1,0,P1580*'1 Données d''entrée'!$C$310),P1580*'1 Données d''entrée'!$C$310)","v":0},{"$f":"IF('1 Données d''entrée'!$C$314=\"(=NON)\",IF(R1554<'1 Données d''entrée'!$C$312+1,0,Q1580*'1 Données d''entrée'!$C$310),Q1580*'1 Données d''entrée'!$C$310)","v":0},{"$f":"IF('1 Données d''entrée'!$C$314=\"(=NON)\",IF(S1554<'1 Données d''entrée'!$C$312+1,0,R1580*'1 Données d''entrée'!$C$310),R1580*'1 Données d''entrée'!$C$310)","v":0},{"$f":"IF('1 Données d''entrée'!$C$314=\"(=NON)\",IF(T1554<'1 Données d''entrée'!$C$312+1,0,S1580*'1 Données d''entrée'!$C$310),S1580*'1 Données d''entrée'!$C$310)","v":0},{"$f":"IF('1 Données d''entrée'!$C$314=\"(=NON)\",IF(U1554<'1 Données d''entrée'!$C$312+1,0,T1580*'1 Données d''entrée'!$C$310),T1580*'1 Données d''entrée'!$C$310)","v":0},{"$f":"IF('1 Données d''entrée'!$C$314=\"(=NON)\",IF(V1554<'1 Données d''entrée'!$C$312+1,0,U1580*'1 Données d''entrée'!$C$310),U1580*'1 Données d''entrée'!$C$310)","v":0}]
["Paiements d'intérêt avec des intérêts composés en cas d'absence des paiements dans la période de grâce",0,0,{"$f":"IF(D1554='1 Données d''entrée'!$C$312+1,IF('1 Données d''entrée'!$C$314=\"(=NON)\",($B1580*'1 Données d''entrée'!$C$310)*((('1 Données d''entrée'!$C$310+1)^'1 Données d''entrée'!$C$312-1)/('1 Données d''entrée'!$C$310))*(1+'1 Données d''entrée'!$C$310),0),0)","v":0},{"$f":"IF(E1554='1 Données d''entrée'!$C$312+1,IF('1 Données d''entrée'!$C$314=\"(=NON)\",($B1580*'1 Données d''entrée'!$C$310)*((('1 Données d''entrée'!$C$310+1)^'1 Données d''entrée'!$C$312-1)/('1 Données d''entrée'!$C$310))*(1+'1 Données d''entrée'!$C$310),0),0)","v":0},{"$f":"IF(F1554='1 Données d''entrée'!$C$312+1,IF('1 Données d''entrée'!$C$314=\"(=NON)\",($B1580*'1 Données d''entrée'!$C$310)*((('1 Données d''entrée'!$C$310+1)^'1 Données d''entrée'!$C$312-1)/('1 Données d''entrée'!$C$310))*(1+'1 Données d''entrée'!$C$310),0),0)","v":0},{"$f":"IF(G1554='1 Données d''entrée'!$C$312+1,IF('1 Données d''entrée'!$C$314=\"(=NON)\",($B1580*'1 Données d''entrée'!$C$310)*((('1 Données d''entrée'!$C$310+1)^'1 Données d''entrée'!$C$312-1)/('1 Données d''entrée'!$C$310))*(1+'1 Données d''entrée'!$C$310),0),0)","v":0},{"$f":"IF(H1554='1 Données d''entrée'!$C$312+1,IF('1 Données d''entrée'!$C$314=\"(=NON)\",($B1580*'1 Données d''entrée'!$C$310)*((('1 Données d''entrée'!$C$310+1)^'1 Données d''entrée'!$C$312-1)/('1 Données d''entrée'!$C$310))*(1+'1 Données d''entrée'!$C$310),0),0)","v":0},{"$f":"IF(I1554='1 Données d''entrée'!$C$312+1,IF('1 Données d''entrée'!$C$314=\"(=NON)\",($B1580*'1 Données d''entrée'!$C$310)*((('1 Données d''entrée'!$C$310+1)^'1 Données d''entrée'!$C$312-1)/('1 Données d''entrée'!$C$310))*(1+'1 Données d''entrée'!$C$310),0),0)","v":0},{"$f":"IF(J1554='1 Données d''entrée'!$C$312+1,IF('1 Données d''entrée'!$C$314=\"(=NON)\",($B1580*'1 Données d''entrée'!$C$310)*((('1 Données d''entrée'!$C$310+1)^'1 Données d''entrée'!$C$312-1)/('1 Données d''entrée'!$C$310))*(1+'1 Données d''entrée'!$C$310),0),0)","v":0},{"$f":"IF(K1554='1 Données d''entrée'!$C$312+1,IF('1 Données d''entrée'!$C$314=\"(=NON)\",($B1580*'1 Données d''entrée'!$C$310)*((('1 Données d''entrée'!$C$310+1)^'1 Données d''entrée'!$C$312-1)/('1 Données d''entrée'!$C$310))*(1+'1 Données d''entrée'!$C$310),0),0)","v":0},{"$f":"IF(L1554='1 Données d''entrée'!$C$312+1,IF('1 Données d''entrée'!$C$314=\"(=NON)\",($B1580*'1 Données d''entrée'!$C$310)*((('1 Données d''entrée'!$C$310+1)^'1 Données d''entrée'!$C$312-1)/('1 Données d''entrée'!$C$310))*(1+'1 Données d''entrée'!$C$310),0),0)","v":0},{"$f":"IF(M1554='1 Données d''entrée'!$C$312+1,IF('1 Données d''entrée'!$C$314=\"(=NON)\",($B1580*'1 Données d''entrée'!$C$310)*((('1 Données d''entrée'!$C$310+1)^'1 Données d''entrée'!$C$312-1)/('1 Données d''entrée'!$C$310))*(1+'1 Données d''entrée'!$C$310),0),0)","v":0},{"$f":"IF(N1554='1 Données d''entrée'!$C$312+1,IF('1 Données d''entrée'!$C$314=\"(=NON)\",($B1580*'1 Données d''entrée'!$C$310)*((('1 Données d''entrée'!$C$310+1)^'1 Données d''entrée'!$C$312-1)/('1 Données d''entrée'!$C$310))*(1+'1 Données d''entrée'!$C$310),0),0)","v":0},{"$f":"IF(O1554='1 Données d''entrée'!$C$312+1,IF('1 Données d''entrée'!$C$314=\"(=NON)\",($B1580*'1 Données d''entrée'!$C$310)*((('1 Données d''entrée'!$C$310+1)^'1 Données d''entrée'!$C$312-1)/('1 Données d''entrée'!$C$310))*(1+'1 Données d''entrée'!$C$310),0),0)","v":0},{"$f":"IF(P1554='1 Données d''entrée'!$C$312+1,IF('1 Données d''entrée'!$C$314=\"(=NON)\",($B1580*'1 Données d''entrée'!$C$310)*((('1 Données d''entrée'!$C$310+1)^'1 Données d''entrée'!$C$312-1)/('1 Données d''entrée'!$C$310))*(1+'1 Données d''entrée'!$C$310),0),0)","v":0},{"$f":"IF(Q1554='1 Données d''entrée'!$C$312+1,IF('1 Données d''entrée'!$C$314=\"(=NON)\",($B1580*'1 Données d''entrée'!$C$310)*((('1 Données d''entrée'!$C$310+1)^'1 Données d''entrée'!$C$312-1)/('1 Données d''entrée'!$C$310))*(1+'1 Données d''entrée'!$C$310),0),0)","v":0},{"$f":"IF(R1554='1 Données d''entrée'!$C$312+1,IF('1 Données d''entrée'!$C$314=\"(=NON)\",($B1580*'1 Données d''entrée'!$C$310)*((('1 Données d''entrée'!$C$310+1)^'1 Données d''entrée'!$C$312-1)/('1 Données d''entrée'!$C$310))*(1+'1 Données d''entrée'!$C$310),0),0)","v":0},{"$f":"IF(S1554='1 Données d''entrée'!$C$312+1,IF('1 Données d''entrée'!$C$314=\"(=NON)\",($B1580*'1 Données d''entrée'!$C$310)*((('1 Données d''entrée'!$C$310+1)^'1 Données d''entrée'!$C$312-1)/('1 Données d''entrée'!$C$310))*(1+'1 Données d''entrée'!$C$310),0),0)","v":0},{"$f":"IF(T1554='1 Données d''entrée'!$C$312+1,IF('1 Données d''entrée'!$C$314=\"(=NON)\",($B1580*'1 Données d''entrée'!$C$310)*((('1 Données d''entrée'!$C$310+1)^'1 Données d''entrée'!$C$312-1)/('1 Données d''entrée'!$C$310))*(1+'1 Données d''entrée'!$C$310),0),0)","v":0},{"$f":"IF(U1554='1 Données d''entrée'!$C$312+1,IF('1 Données d''entrée'!$C$314=\"(=NON)\",($B1580*'1 Données d''entrée'!$C$310)*((('1 Données d''entrée'!$C$310+1)^'1 Données d''entrée'!$C$312-1)/('1 Données d''entrée'!$C$310))*(1+'1 Données d''entrée'!$C$310),0),0)","v":0},{"$f":"IF(V1554='1 Données d''entrée'!$C$312+1,IF('1 Données d''entrée'!$C$314=\"(=NON)\",($B1580*'1 Données d''entrée'!$C$310)*((('1 Données d''entrée'!$C$310+1)^'1 Données d''entrée'!$C$312-1)/('1 Données d''entrée'!$C$310))*(1+'1 Données d''entrée'!$C$310),0),0)","v":0}]
["Fonds d'autre donneurs / investisseurs - Prêt; Option 2: Remboursement du principal final",{"$f":"'1 Données d''entrée'!$B$320","v":0},"% de prêt total"]
["Réception et montant restant",{"$f":"'1 Données d''entrée'!$B$306*'1 Données d''entrée'!$B$320+'1 Données d''entrée'!$B$306*'1 Données d''entrée'!$C$316","v":0},{"$f":"B1585-C1586","v":0},{"$f":"C1585-D1586","v":0},0,0,0,0,0,0,0,0,0,0,0,0,0,0,0,0,0,0]
["Remboursement du principal",0,{"$f":"IF('1 Données d''entrée'!$C$311+'1 Données d''entrée'!$C$312=C1554,'6 Financement'!$B$85,0)","v":0},{"$f":"IF('1 Données d''entrée'!$C$311+'1 Données d''entrée'!$C$312=D1554,'6 Financement'!$B$85,0)","v":0},{"$f":"IF('1 Données d''entrée'!$C$311+'1 Données d''entrée'!$C$312=E1554,'6 Financement'!$B$85,0)","v":0},{"$f":"IF('1 Données d''entrée'!$C$311+'1 Données d''entrée'!$C$312=F1554,'6 Financement'!$B$85,0)","v":0},{"$f":"IF('1 Données d''entrée'!$C$311+'1 Données d''entrée'!$C$312=G1554,'6 Financement'!$B$85,0)","v":0},{"$f":"IF('1 Données d''entrée'!$C$311+'1 Données d''entrée'!$C$312=H1554,'6 Financement'!$B$85,0)","v":0},{"$f":"IF('1 Données d''entrée'!$C$311+'1 Données d''entrée'!$C$312=I1554,'6 Financement'!$B$85,0)","v":0},{"$f":"IF('1 Données d''entrée'!$C$311+'1 Données d''entrée'!$C$312=J1554,'6 Financement'!$B$85,0)","v":0},{"$f":"IF('1 Données d''entrée'!$C$311+'1 Données d''entrée'!$C$312=K1554,'6 Financement'!$B$85,0)","v":0},{"$f":"IF('1 Données d''entrée'!$C$311+'1 Données d''entrée'!$C$312=L1554,'6 Financement'!$B$85,0)","v":0},{"$f":"IF('1 Données d''entrée'!$C$311+'1 Données d''entrée'!$C$312=M1554,'6 Financement'!$B$85,0)","v":0},{"$f":"IF('1 Données d''entrée'!$C$311+'1 Données d''entrée'!$C$312=N1554,'6 Financement'!$B$85,0)","v":0},{"$f":"IF('1 Données d''entrée'!$C$311+'1 Données d''entrée'!$C$312=O1554,'6 Financement'!$B$85,0)","v":0},{"$f":"IF('1 Données d''entrée'!$C$311+'1 Données d''entrée'!$C$312=P1554,'6 Financement'!$B$85,0)","v":0},{"$f":"IF('1 Données d''entrée'!$C$311+'1 Données d''entrée'!$C$312=Q1554,'6 Financement'!$B$85,0)","v":0},{"$f":"IF('1 Données d''entrée'!$C$311+'1 Données d''entrée'!$C$312=R1554,'6 Financement'!$B$85,0)","v":0},{"$f":"IF('1 Données d''entrée'!$C$311+'1 Données d''entrée'!$C$312=S1554,'6 Financement'!$B$85,0)","v":0},{"$f":"IF('1 Données d''entrée'!$C$311+'1 Données d''entrée'!$C$312=T1554,'6 Financement'!$B$85,0)","v":0},{"$f":"IF('1 Données d''entrée'!$C$311+'1 Données d''entrée'!$C$312=U1554,'6 Financement'!$B$85,0)","v":0},{"$f":"IF('1 Données d''entrée'!$C$311+'1 Données d''entrée'!$C$312=V1554,'6 Financement'!$B$85,0)","v":0}]
["Paiement d'intérêts",0,{"$f":"IF('1 Données d''entrée'!$C$314=\"(=NON)\",IF(C1554<'1 Données d''entrée'!$C$312+1,0,B1585*'1 Données d''entrée'!$C$310),B1585*'1 Données d''entrée'!$C$310)","v":0},{"$f":"IF('1 Données d''entrée'!$C$314=\"(=NON)\",IF(D1554<'1 Données d''entrée'!$C$312+1,0,C1585*'1 Données d''entrée'!$C$310),C1585*'1 Données d''entrée'!$C$310)","v":0},{"$f":"IF('1 Données d''entrée'!$C$314=\"(=NON)\",IF(E1554<'1 Données d''entrée'!$C$312+1,0,D1585*'1 Données d''entrée'!$C$310),D1585*'1 Données d''entrée'!$C$310)","v":0},{"$f":"IF('1 Données d''entrée'!$C$314=\"(=NON)\",IF(F1554<'1 Données d''entrée'!$C$312+1,0,E1585*'1 Données d''entrée'!$C$310),E1585*'1 Données d''entrée'!$C$310)","v":0},{"$f":"IF('1 Données d''entrée'!$C$314=\"(=NON)\",IF(G1554<'1 Données d''entrée'!$C$312+1,0,F1585*'1 Données d''entrée'!$C$310),F1585*'1 Données d''entrée'!$C$310)","v":0},{"$f":"IF('1 Données d''entrée'!$C$314=\"(=NON)\",IF(H1554<'1 Données d''entrée'!$C$312+1,0,G1585*'1 Données d''entrée'!$C$310),G1585*'1 Données d''entrée'!$C$310)","v":0},{"$f":"IF('1 Données d''entrée'!$C$314=\"(=NON)\",IF(I1554<'1 Données d''entrée'!$C$312+1,0,H1585*'1 Données d''entrée'!$C$310),H1585*'1 Données d''entrée'!$C$310)","v":0},{"$f":"IF('1 Données d''entrée'!$C$314=\"(=NON)\",IF(J1554<'1 Données d''entrée'!$C$312+1,0,I1585*'1 Données d''entrée'!$C$310),I1585*'1 Données d''entrée'!$C$310)","v":0},{"$f":"IF('1 Données d''entrée'!$C$314=\"(=NON)\",IF(K1554<'1 Données d''entrée'!$C$312+1,0,J1585*'1 Données d''entrée'!$C$310),J1585*'1 Données d''entrée'!$C$310)","v":0},{"$f":"IF('1 Données d''entrée'!$C$314=\"(=NON)\",IF(L1554<'1 Données d''entrée'!$C$312+1,0,K1585*'1 Données d''entrée'!$C$310),K1585*'1 Données d''entrée'!$C$310)","v":0},{"$f":"IF('1 Données d''entrée'!$C$314=\"(=NON)\",IF(M1554<'1 Données d''entrée'!$C$312+1,0,L1585*'1 Données d''entrée'!$C$310),L1585*'1 Données d''entrée'!$C$310)","v":0},{"$f":"IF('1 Données d''entrée'!$C$314=\"(=NON)\",IF(N1554<'1 Données d''entrée'!$C$312+1,0,M1585*'1 Données d''entrée'!$C$310),M1585*'1 Données d''entrée'!$C$310)","v":0},{"$f":"IF('1 Données d''entrée'!$C$314=\"(=NON)\",IF(O1554<'1 Données d''entrée'!$C$312+1,0,N1585*'1 Données d''entrée'!$C$310),N1585*'1 Données d''entrée'!$C$310)","v":0},{"$f":"IF('1 Données d''entrée'!$C$314=\"(=NON)\",IF(P1554<'1 Données d''entrée'!$C$312+1,0,O1585*'1 Données d''entrée'!$C$310),O1585*'1 Données d''entrée'!$C$310)","v":0},{"$f":"IF('1 Données d''entrée'!$C$314=\"(=NON)\",IF(Q1554<'1 Données d''entrée'!$C$312+1,0,P1585*'1 Données d''entrée'!$C$310),P1585*'1 Données d''entrée'!$C$310)","v":0},{"$f":"IF('1 Données d''entrée'!$C$314=\"(=NON)\",IF(R1554<'1 Données d''entrée'!$C$312+1,0,Q1585*'1 Données d''entrée'!$C$310),Q1585*'1 Données d''entrée'!$C$310)","v":0},{"$f":"IF('1 Données d''entrée'!$C$314=\"(=NON)\",IF(S1554<'1 Données d''entrée'!$C$312+1,0,R1585*'1 Données d''entrée'!$C$310),R1585*'1 Données d''entrée'!$C$310)","v":0},{"$f":"IF('1 Données d''entrée'!$C$314=\"(=NON)\",IF(T1554<'1 Données d''entrée'!$C$312+1,0,S1585*'1 Données d''entrée'!$C$310),S1585*'1 Données d''entrée'!$C$310)","v":0},{"$f":"IF('1 Données d''entrée'!$C$314=\"(=NON)\",IF(U1554<'1 Données d''entrée'!$C$312+1,0,T1585*'1 Données d''entrée'!$C$310),T1585*'1 Données d''entrée'!$C$310)","v":0},{"$f":"IF('1 Données d''entrée'!$C$314=\"(=NON)\",IF(V1554<'1 Données d''entrée'!$C$312+1,0,U1585*'1 Données d''entrée'!$C$310),U1585*'1 Données d''entrée'!$C$310)","v":0}]
["Paiements d'intérêt avec des intérêts composés en cas d'absence des paiements dans la période de grâce",0,0,{"$f":"IF(D1554='1 Données d''entrée'!$C$312+1,IF('1 Données d''entrée'!$C$314=\"(=NON)\",($B1585*'1 Données d''entrée'!$C$310)*((('1 Données d''entrée'!$C$310+1)^'1 Données d''entrée'!$C$312-1)/('1 Données d''entrée'!$C$310))*(1+'1 Données d''entrée'!$C$310),0),0)","v":0},{"$f":"IF(E1554='1 Données d''entrée'!$C$312+1,IF('1 Données d''entrée'!$C$314=\"(=NON)\",($B1585*'1 Données d''entrée'!$C$310)*((('1 Données d''entrée'!$C$310+1)^'1 Données d''entrée'!$C$312-1)/('1 Données d''entrée'!$C$310))*(1+'1 Données d''entrée'!$C$310),0),0)","v":0},{"$f":"IF(F1554='1 Données d''entrée'!$C$312+1,IF('1 Données d''entrée'!$C$314=\"(=NON)\",($B1585*'1 Données d''entrée'!$C$310)*((('1 Données d''entrée'!$C$310+1)^'1 Données d''entrée'!$C$312-1)/('1 Données d''entrée'!$C$310))*(1+'1 Données d''entrée'!$C$310),0),0)","v":0},{"$f":"IF(G1554='1 Données d''entrée'!$C$312+1,IF('1 Données d''entrée'!$C$314=\"(=NON)\",($B1585*'1 Données d''entrée'!$C$310)*((('1 Données d''entrée'!$C$310+1)^'1 Données d''entrée'!$C$312-1)/('1 Données d''entrée'!$C$310))*(1+'1 Données d''entrée'!$C$310),0),0)","v":0},{"$f":"IF(H1554='1 Données d''entrée'!$C$312+1,IF('1 Données d''entrée'!$C$314=\"(=NON)\",($B1585*'1 Données d''entrée'!$C$310)*((('1 Données d''entrée'!$C$310+1)^'1 Données d''entrée'!$C$312-1)/('1 Données d''entrée'!$C$310))*(1+'1 Données d''entrée'!$C$310),0),0)","v":0},{"$f":"IF(I1554='1 Données d''entrée'!$C$312+1,IF('1 Données d''entrée'!$C$314=\"(=NON)\",($B1585*'1 Données d''entrée'!$C$310)*((('1 Données d''entrée'!$C$310+1)^'1 Données d''entrée'!$C$312-1)/('1 Données d''entrée'!$C$310))*(1+'1 Données d''entrée'!$C$310),0),0)","v":0},{"$f":"IF(J1554='1 Données d''entrée'!$C$312+1,IF('1 Données d''entrée'!$C$314=\"(=NON)\",($B1585*'1 Données d''entrée'!$C$310)*((('1 Données d''entrée'!$C$310+1)^'1 Données d''entrée'!$C$312-1)/('1 Données d''entrée'!$C$310))*(1+'1 Données d''entrée'!$C$310),0),0)","v":0},{"$f":"IF(K1554='1 Données d''entrée'!$C$312+1,IF('1 Données d''entrée'!$C$314=\"(=NON)\",($B1585*'1 Données d''entrée'!$C$310)*((('1 Données d''entrée'!$C$310+1)^'1 Données d''entrée'!$C$312-1)/('1 Données d''entrée'!$C$310))*(1+'1 Données d''entrée'!$C$310),0),0)","v":0},{"$f":"IF(L1554='1 Données d''entrée'!$C$312+1,IF('1 Données d''entrée'!$C$314=\"(=NON)\",($B1585*'1 Données d''entrée'!$C$310)*((('1 Données d''entrée'!$C$310+1)^'1 Données d''entrée'!$C$312-1)/('1 Données d''entrée'!$C$310))*(1+'1 Données d''entrée'!$C$310),0),0)","v":0},{"$f":"IF(M1554='1 Données d''entrée'!$C$312+1,IF('1 Données d''entrée'!$C$314=\"(=NON)\",($B1585*'1 Données d''entrée'!$C$310)*((('1 Données d''entrée'!$C$310+1)^'1 Données d''entrée'!$C$312-1)/('1 Données d''entrée'!$C$310))*(1+'1 Données d''entrée'!$C$310),0),0)","v":0},{"$f":"IF(N1554='1 Données d''entrée'!$C$312+1,IF('1 Données d''entrée'!$C$314=\"(=NON)\",($B1585*'1 Données d''entrée'!$C$310)*((('1 Données d''entrée'!$C$310+1)^'1 Données d''entrée'!$C$312-1)/('1 Données d''entrée'!$C$310))*(1+'1 Données d''entrée'!$C$310),0),0)","v":0},{"$f":"IF(O1554='1 Données d''entrée'!$C$312+1,IF('1 Données d''entrée'!$C$314=\"(=NON)\",($B1585*'1 Données d''entrée'!$C$310)*((('1 Données d''entrée'!$C$310+1)^'1 Données d''entrée'!$C$312-1)/('1 Données d''entrée'!$C$310))*(1+'1 Données d''entrée'!$C$310),0),0)","v":0},{"$f":"IF(P1554='1 Données d''entrée'!$C$312+1,IF('1 Données d''entrée'!$C$314=\"(=NON)\",($B1585*'1 Données d''entrée'!$C$310)*((('1 Données d''entrée'!$C$310+1)^'1 Données d''entrée'!$C$312-1)/('1 Données d''entrée'!$C$310))*(1+'1 Données d''entrée'!$C$310),0),0)","v":0},{"$f":"IF(Q1554='1 Données d''entrée'!$C$312+1,IF('1 Données d''entrée'!$C$314=\"(=NON)\",($B1585*'1 Données d''entrée'!$C$310)*((('1 Données d''entrée'!$C$310+1)^'1 Données d''entrée'!$C$312-1)/('1 Données d''entrée'!$C$310))*(1+'1 Données d''entrée'!$C$310),0),0)","v":0},{"$f":"IF(R1554='1 Données d''entrée'!$C$312+1,IF('1 Données d''entrée'!$C$314=\"(=NON)\",($B1585*'1 Données d''entrée'!$C$310)*((('1 Données d''entrée'!$C$310+1)^'1 Données d''entrée'!$C$312-1)/('1 Données d''entrée'!$C$310))*(1+'1 Données d''entrée'!$C$310),0),0)","v":0},{"$f":"IF(S1554='1 Données d''entrée'!$C$312+1,IF('1 Données d''entrée'!$C$314=\"(=NON)\",($B1585*'1 Données d''entrée'!$C$310)*((('1 Données d''entrée'!$C$310+1)^'1 Données d''entrée'!$C$312-1)/('1 Données d''entrée'!$C$310))*(1+'1 Données d''entrée'!$C$310),0),0)","v":0},{"$f":"IF(T1554='1 Données d''entrée'!$C$312+1,IF('1 Données d''entrée'!$C$314=\"(=NON)\",($B1585*'1 Données d''entrée'!$C$310)*((('1 Données d''entrée'!$C$310+1)^'1 Données d''entrée'!$C$312-1)/('1 Données d''entrée'!$C$310))*(1+'1 Données d''entrée'!$C$310),0),0)","v":0},{"$f":"IF(U1554='1 Données d''entrée'!$C$312+1,IF('1 Données d''entrée'!$C$314=\"(=NON)\",($B1585*'1 Données d''entrée'!$C$310)*((('1 Données d''entrée'!$C$310+1)^'1 Données d''entrée'!$C$312-1)/('1 Données d''entrée'!$C$310))*(1+'1 Données d''entrée'!$C$310),0),0)","v":0},{"$f":"IF(V1554='1 Données d''entrée'!$C$312+1,IF('1 Données d''entrée'!$C$314=\"(=NON)\",($B1585*'1 Données d''entrée'!$C$310)*((('1 Données d''entrée'!$C$310+1)^'1 Données d''entrée'!$C$312-1)/('1 Données d''entrée'!$C$310))*(1+'1 Données d''entrée'!$C$310),0),0)","v":0}]
["Fonds d'autre donneurs / investisseurs - Prêt; Option 3: Remboursement vers l'annuité constante",{"$f":"'1 Données d''entrée'!$B$321","v":0},"% de prêt total"]
["Réception ",{"$f":"B1589*'1 Données d''entrée'!$B$306+'1 Données d''entrée'!$B$306*'1 Données d''entrée'!$C$316","v":0},0,0,0,0,0,0,0,0,0,0,0,0,0,0,0,0,0,0,0,0]
["Remboursement vers l'annuité constante",{"$f":"IF(B1554<'1 Données d''entrée'!$C$312+1,0,IF(B1554<'1 Données d''entrée'!$C$311+'1 Données d''entrée'!$C$312+1,$B1590*('1 Données d''entrée'!$C$310*(1+'1 Données d''entrée'!$C$310)^'1 Données d''entrée'!$C$311)/((1+'1 Données d''entrée'!$C$310)^'1 Données d''entrée'!$C$311-1),0))","v":0},{"$f":"IF(C1554<'1 Données d''entrée'!$C$312+1,0,IF(C1554<'1 Données d''entrée'!$C$311+'1 Données d''entrée'!$C$312+1,$B1590*('1 Données d''entrée'!$C$310*(1+'1 Données d''entrée'!$C$310)^'1 Données d''entrée'!$C$311)/((1+'1 Données d''entrée'!$C$310)^'1 Données d''entrée'!$C$311-1),0))","v":0},{"$f":"IF(D1554<'1 Données d''entrée'!$C$312+1,0,IF(D1554<'1 Données d''entrée'!$C$311+'1 Données d''entrée'!$C$312+1,$B1590*('1 Données d''entrée'!$C$310*(1+'1 Données d''entrée'!$C$310)^'1 Données d''entrée'!$C$311)/((1+'1 Données d''entrée'!$C$310)^'1 Données d''entrée'!$C$311-1),0))","v":0},{"$f":"IF(E1554<'1 Données d''entrée'!$C$312+1,0,IF(E1554<'1 Données d''entrée'!$C$311+'1 Données d''entrée'!$C$312+1,$B1590*('1 Données d''entrée'!$C$310*(1+'1 Données d''entrée'!$C$310)^'1 Données d''entrée'!$C$311)/((1+'1 Données d''entrée'!$C$310)^'1 Données d''entrée'!$C$311-1),0))","v":0},{"$f":"IF(F1554<'1 Données d''entrée'!$C$312+1,0,IF(F1554<'1 Données d''entrée'!$C$311+'1 Données d''entrée'!$C$312+1,$B1590*('1 Données d''entrée'!$C$310*(1+'1 Données d''entrée'!$C$310)^'1 Données d''entrée'!$C$311)/((1+'1 Données d''entrée'!$C$310)^'1 Données d''entrée'!$C$311-1),0))","v":0},{"$f":"IF(G1554<'1 Données d''entrée'!$C$312+1,0,IF(G1554<'1 Données d''entrée'!$C$311+'1 Données d''entrée'!$C$312+1,$B1590*('1 Données d''entrée'!$C$310*(1+'1 Données d''entrée'!$C$310)^'1 Données d''entrée'!$C$311)/((1+'1 Données d''entrée'!$C$310)^'1 Données d''entrée'!$C$311-1),0))","v":0},{"$f":"IF(H1554<'1 Données d''entrée'!$C$312+1,0,IF(H1554<'1 Données d''entrée'!$C$311+'1 Données d''entrée'!$C$312+1,$B1590*('1 Données d''entrée'!$C$310*(1+'1 Données d''entrée'!$C$310)^'1 Données d''entrée'!$C$311)/((1+'1 Données d''entrée'!$C$310)^'1 Données d''entrée'!$C$311-1),0))","v":0},{"$f":"IF(I1554<'1 Données d''entrée'!$C$312+1,0,IF(I1554<'1 Données d''entrée'!$C$311+'1 Données d''entrée'!$C$312+1,$B1590*('1 Données d''entrée'!$C$310*(1+'1 Données d''entrée'!$C$310)^'1 Données d''entrée'!$C$311)/((1+'1 Données d''entrée'!$C$310)^'1 Données d''entrée'!$C$311-1),0))","v":0},{"$f":"IF(J1554<'1 Données d''entrée'!$C$312+1,0,IF(J1554<'1 Données d''entrée'!$C$311+'1 Données d''entrée'!$C$312+1,$B1590*('1 Données d''entrée'!$C$310*(1+'1 Données d''entrée'!$C$310)^'1 Données d''entrée'!$C$311)/((1+'1 Données d''entrée'!$C$310)^'1 Données d''entrée'!$C$311-1),0))","v":0},{"$f":"IF(K1554<'1 Données d''entrée'!$C$312+1,0,IF(K1554<'1 Données d''entrée'!$C$311+'1 Données d''entrée'!$C$312+1,$B1590*('1 Données d''entrée'!$C$310*(1+'1 Données d''entrée'!$C$310)^'1 Données d''entrée'!$C$311)/((1+'1 Données d''entrée'!$C$310)^'1 Données d''entrée'!$C$311-1),0))","v":0},{"$f":"IF(L1554<'1 Données d''entrée'!$C$312+1,0,IF(L1554<'1 Données d''entrée'!$C$311+'1 Données d''entrée'!$C$312+1,$B1590*('1 Données d''entrée'!$C$310*(1+'1 Données d''entrée'!$C$310)^'1 Données d''entrée'!$C$311)/((1+'1 Données d''entrée'!$C$310)^'1 Données d''entrée'!$C$311-1),0))","v":0},{"$f":"IF(M1554<'1 Données d''entrée'!$C$312+1,0,IF(M1554<'1 Données d''entrée'!$C$311+'1 Données d''entrée'!$C$312+1,$B1590*('1 Données d''entrée'!$C$310*(1+'1 Données d''entrée'!$C$310)^'1 Données d''entrée'!$C$311)/((1+'1 Données d''entrée'!$C$310)^'1 Données d''entrée'!$C$311-1),0))","v":0},{"$f":"IF(N1554<'1 Données d''entrée'!$C$312+1,0,IF(N1554<'1 Données d''entrée'!$C$311+'1 Données d''entrée'!$C$312+1,$B1590*('1 Données d''entrée'!$C$310*(1+'1 Données d''entrée'!$C$310)^'1 Données d''entrée'!$C$311)/((1+'1 Données d''entrée'!$C$310)^'1 Données d''entrée'!$C$311-1),0))","v":0},{"$f":"IF(O1554<'1 Données d''entrée'!$C$312+1,0,IF(O1554<'1 Données d''entrée'!$C$311+'1 Données d''entrée'!$C$312+1,$B1590*('1 Données d''entrée'!$C$310*(1+'1 Données d''entrée'!$C$310)^'1 Données d''entrée'!$C$311)/((1+'1 Données d''entrée'!$C$310)^'1 Données d''entrée'!$C$311-1),0))","v":0},{"$f":"IF(P1554<'1 Données d''entrée'!$C$312+1,0,IF(P1554<'1 Données d''entrée'!$C$311+'1 Données d''entrée'!$C$312+1,$B1590*('1 Données d''entrée'!$C$310*(1+'1 Données d''entrée'!$C$310)^'1 Données d''entrée'!$C$311)/((1+'1 Données d''entrée'!$C$310)^'1 Données d''entrée'!$C$311-1),0))","v":0},{"$f":"IF(Q1554<'1 Données d''entrée'!$C$312+1,0,IF(Q1554<'1 Données d''entrée'!$C$311+'1 Données d''entrée'!$C$312+1,$B1590*('1 Données d''entrée'!$C$310*(1+'1 Données d''entrée'!$C$310)^'1 Données d''entrée'!$C$311)/((1+'1 Données d''entrée'!$C$310)^'1 Données d''entrée'!$C$311-1),0))","v":0},{"$f":"IF(R1554<'1 Données d''entrée'!$C$312+1,0,IF(R1554<'1 Données d''entrée'!$C$311+'1 Données d''entrée'!$C$312+1,$B1590*('1 Données d''entrée'!$C$310*(1+'1 Données d''entrée'!$C$310)^'1 Données d''entrée'!$C$311)/((1+'1 Données d''entrée'!$C$310)^'1 Données d''entrée'!$C$311-1),0))","v":0},{"$f":"IF(S1554<'1 Données d''entrée'!$C$312+1,0,IF(S1554<'1 Données d''entrée'!$C$311+'1 Données d''entrée'!$C$312+1,$B1590*('1 Données d''entrée'!$C$310*(1+'1 Données d''entrée'!$C$310)^'1 Données d''entrée'!$C$311)/((1+'1 Données d''entrée'!$C$310)^'1 Données d''entrée'!$C$311-1),0))","v":0},{"$f":"IF(T1554<'1 Données d''entrée'!$C$312+1,0,IF(T1554<'1 Données d''entrée'!$C$311+'1 Données d''entrée'!$C$312+1,$B1590*('1 Données d''entrée'!$C$310*(1+'1 Données d''entrée'!$C$310)^'1 Données d''entrée'!$C$311)/((1+'1 Données d''entrée'!$C$310)^'1 Données d''entrée'!$C$311-1),0))","v":0},{"$f":"IF(U1554<'1 Données d''entrée'!$C$312+1,0,IF(U1554<'1 Données d''entrée'!$C$311+'1 Données d''entrée'!$C$312+1,$B1590*('1 Données d''entrée'!$C$310*(1+'1 Données d''entrée'!$C$310)^'1 Données d''entrée'!$C$311)/((1+'1 Données d''entrée'!$C$310)^'1 Données d''entrée'!$C$311-1),0))","v":0},{"$f":"IF(V1554<'1 Données d''entrée'!$C$312+1,0,IF(V1554<'1 Données d''entrée'!$C$311+'1 Données d''entrée'!$C$312+1,$B1590*('1 Données d''entrée'!$C$310*(1+'1 Données d''entrée'!$C$310)^'1 Données d''entrée'!$C$311)/((1+'1 Données d''entrée'!$C$310)^'1 Données d''entrée'!$C$311-1),0))","v":0}]
["Paiement d'intérêt décroissant inclu dans l'annuité constante",0,{"$f":"IF('1 Données d''entrée'!$C$314=\"(=NON)\",IF(C1591>0,$B1590*((('1 Données d''entrée'!$C$310+1)^'1 Données d''entrée'!$C$311)-(1+'1 Données d''entrée'!$C$310)^('6 Financement'!C$54-1-'1 Données d''entrée'!$C$312))/((1+'1 Données d''entrée'!$C$310)^'1 Données d''entrée'!$C$311-1)*'1 Données d''entrée'!$C$310,0),IF(C1554<'1 Données d''entrée'!$C$312+1,'1 Données d''entrée'!$C$310*'6 Financement'!$B1590,IF(C1591>0,$B$90*((('1 Données d''entrée'!$C$310+1)^'1 Données d''entrée'!$C$311)-(1+'1 Données d''entrée'!$C$310)^('6 Financement'!C$54-1-'1 Données d''entrée'!$C$312))/((1+'1 Données d''entrée'!$C$310)^'1 Données d''entrée'!$C$311-1)*'1 Données d''entrée'!$C$310,0)))","v":0},{"$f":"IF('1 Données d''entrée'!$C$314=\"(=NON)\",IF(D1591>0,$B1590*((('1 Données d''entrée'!$C$310+1)^'1 Données d''entrée'!$C$311)-(1+'1 Données d''entrée'!$C$310)^('6 Financement'!D$54-1-'1 Données d''entrée'!$C$312))/((1+'1 Données d''entrée'!$C$310)^'1 Données d''entrée'!$C$311-1)*'1 Données d''entrée'!$C$310,0),IF(D1554<'1 Données d''entrée'!$C$312+1,'1 Données d''entrée'!$C$310*'6 Financement'!$B1590,IF(D1591>0,$B$90*((('1 Données d''entrée'!$C$310+1)^'1 Données d''entrée'!$C$311)-(1+'1 Données d''entrée'!$C$310)^('6 Financement'!D$54-1-'1 Données d''entrée'!$C$312))/((1+'1 Données d''entrée'!$C$310)^'1 Données d''entrée'!$C$311-1)*'1 Données d''entrée'!$C$310,0)))","v":0},{"$f":"IF('1 Données d''entrée'!$C$314=\"(=NON)\",IF(E1591>0,$B1590*((('1 Données d''entrée'!$C$310+1)^'1 Données d''entrée'!$C$311)-(1+'1 Données d''entrée'!$C$310)^('6 Financement'!E$54-1-'1 Données d''entrée'!$C$312))/((1+'1 Données d''entrée'!$C$310)^'1 Données d''entrée'!$C$311-1)*'1 Données d''entrée'!$C$310,0),IF(E1554<'1 Données d''entrée'!$C$312+1,'1 Données d''entrée'!$C$310*'6 Financement'!$B1590,IF(E1591>0,$B$90*((('1 Données d''entrée'!$C$310+1)^'1 Données d''entrée'!$C$311)-(1+'1 Données d''entrée'!$C$310)^('6 Financement'!E$54-1-'1 Données d''entrée'!$C$312))/((1+'1 Données d''entrée'!$C$310)^'1 Données d''entrée'!$C$311-1)*'1 Données d''entrée'!$C$310,0)))","v":0},{"$f":"IF('1 Données d''entrée'!$C$314=\"(=NON)\",IF(F1591>0,$B1590*((('1 Données d''entrée'!$C$310+1)^'1 Données d''entrée'!$C$311)-(1+'1 Données d''entrée'!$C$310)^('6 Financement'!F$54-1-'1 Données d''entrée'!$C$312))/((1+'1 Données d''entrée'!$C$310)^'1 Données d''entrée'!$C$311-1)*'1 Données d''entrée'!$C$310,0),IF(F1554<'1 Données d''entrée'!$C$312+1,'1 Données d''entrée'!$C$310*'6 Financement'!$B1590,IF(F1591>0,$B$90*((('1 Données d''entrée'!$C$310+1)^'1 Données d''entrée'!$C$311)-(1+'1 Données d''entrée'!$C$310)^('6 Financement'!F$54-1-'1 Données d''entrée'!$C$312))/((1+'1 Données d''entrée'!$C$310)^'1 Données d''entrée'!$C$311-1)*'1 Données d''entrée'!$C$310,0)))","v":0},{"$f":"IF('1 Données d''entrée'!$C$314=\"(=NON)\",IF(G1591>0,$B1590*((('1 Données d''entrée'!$C$310+1)^'1 Données d''entrée'!$C$311)-(1+'1 Données d''entrée'!$C$310)^('6 Financement'!G$54-1-'1 Données d''entrée'!$C$312))/((1+'1 Données d''entrée'!$C$310)^'1 Données d''entrée'!$C$311-1)*'1 Données d''entrée'!$C$310,0),IF(G1554<'1 Données d''entrée'!$C$312+1,'1 Données d''entrée'!$C$310*'6 Financement'!$B1590,IF(G1591>0,$B$90*((('1 Données d''entrée'!$C$310+1)^'1 Données d''entrée'!$C$311)-(1+'1 Données d''entrée'!$C$310)^('6 Financement'!G$54-1-'1 Données d''entrée'!$C$312))/((1+'1 Données d''entrée'!$C$310)^'1 Données d''entrée'!$C$311-1)*'1 Données d''entrée'!$C$310,0)))","v":0},{"$f":"IF('1 Données d''entrée'!$C$314=\"(=NON)\",IF(H1591>0,$B1590*((('1 Données d''entrée'!$C$310+1)^'1 Données d''entrée'!$C$311)-(1+'1 Données d''entrée'!$C$310)^('6 Financement'!H$54-1-'1 Données d''entrée'!$C$312))/((1+'1 Données d''entrée'!$C$310)^'1 Données d''entrée'!$C$311-1)*'1 Données d''entrée'!$C$310,0),IF(H1554<'1 Données d''entrée'!$C$312+1,'1 Données d''entrée'!$C$310*'6 Financement'!$B1590,IF(H1591>0,$B$90*((('1 Données d''entrée'!$C$310+1)^'1 Données d''entrée'!$C$311)-(1+'1 Données d''entrée'!$C$310)^('6 Financement'!H$54-1-'1 Données d''entrée'!$C$312))/((1+'1 Données d''entrée'!$C$310)^'1 Données d''entrée'!$C$311-1)*'1 Données d''entrée'!$C$310,0)))","v":0},{"$f":"IF('1 Données d''entrée'!$C$314=\"(=NON)\",IF(I1591>0,$B1590*((('1 Données d''entrée'!$C$310+1)^'1 Données d''entrée'!$C$311)-(1+'1 Données d''entrée'!$C$310)^('6 Financement'!I$54-1-'1 Données d''entrée'!$C$312))/((1+'1 Données d''entrée'!$C$310)^'1 Données d''entrée'!$C$311-1)*'1 Données d''entrée'!$C$310,0),IF(I1554<'1 Données d''entrée'!$C$312+1,'1 Données d''entrée'!$C$310*'6 Financement'!$B1590,IF(I1591>0,$B$90*((('1 Données d''entrée'!$C$310+1)^'1 Données d''entrée'!$C$311)-(1+'1 Données d''entrée'!$C$310)^('6 Financement'!I$54-1-'1 Données d''entrée'!$C$312))/((1+'1 Données d''entrée'!$C$310)^'1 Données d''entrée'!$C$311-1)*'1 Données d''entrée'!$C$310,0)))","v":0},{"$f":"IF('1 Données d''entrée'!$C$314=\"(=NON)\",IF(J1591>0,$B1590*((('1 Données d''entrée'!$C$310+1)^'1 Données d''entrée'!$C$311)-(1+'1 Données d''entrée'!$C$310)^('6 Financement'!J$54-1-'1 Données d''entrée'!$C$312))/((1+'1 Données d''entrée'!$C$310)^'1 Données d''entrée'!$C$311-1)*'1 Données d''entrée'!$C$310,0),IF(J1554<'1 Données d''entrée'!$C$312+1,'1 Données d''entrée'!$C$310*'6 Financement'!$B1590,IF(J1591>0,$B$90*((('1 Données d''entrée'!$C$310+1)^'1 Données d''entrée'!$C$311)-(1+'1 Données d''entrée'!$C$310)^('6 Financement'!J$54-1-'1 Données d''entrée'!$C$312))/((1+'1 Données d''entrée'!$C$310)^'1 Données d''entrée'!$C$311-1)*'1 Données d''entrée'!$C$310,0)))","v":0},{"$f":"IF('1 Données d''entrée'!$C$314=\"(=NON)\",IF(K1591>0,$B1590*((('1 Données d''entrée'!$C$310+1)^'1 Données d''entrée'!$C$311)-(1+'1 Données d''entrée'!$C$310)^('6 Financement'!K$54-1-'1 Données d''entrée'!$C$312))/((1+'1 Données d''entrée'!$C$310)^'1 Données d''entrée'!$C$311-1)*'1 Données d''entrée'!$C$310,0),IF(K1554<'1 Données d''entrée'!$C$312+1,'1 Données d''entrée'!$C$310*'6 Financement'!$B1590,IF(K1591>0,$B$90*((('1 Données d''entrée'!$C$310+1)^'1 Données d''entrée'!$C$311)-(1+'1 Données d''entrée'!$C$310)^('6 Financement'!K$54-1-'1 Données d''entrée'!$C$312))/((1+'1 Données d''entrée'!$C$310)^'1 Données d''entrée'!$C$311-1)*'1 Données d''entrée'!$C$310,0)))","v":0},{"$f":"IF('1 Données d''entrée'!$C$314=\"(=NON)\",IF(L1591>0,$B1590*((('1 Données d''entrée'!$C$310+1)^'1 Données d''entrée'!$C$311)-(1+'1 Données d''entrée'!$C$310)^('6 Financement'!L$54-1-'1 Données d''entrée'!$C$312))/((1+'1 Données d''entrée'!$C$310)^'1 Données d''entrée'!$C$311-1)*'1 Données d''entrée'!$C$310,0),IF(L1554<'1 Données d''entrée'!$C$312+1,'1 Données d''entrée'!$C$310*'6 Financement'!$B1590,IF(L1591>0,$B$90*((('1 Données d''entrée'!$C$310+1)^'1 Données d''entrée'!$C$311)-(1+'1 Données d''entrée'!$C$310)^('6 Financement'!L$54-1-'1 Données d''entrée'!$C$312))/((1+'1 Données d''entrée'!$C$310)^'1 Données d''entrée'!$C$311-1)*'1 Données d''entrée'!$C$310,0)))","v":0},{"$f":"IF('1 Données d''entrée'!$C$314=\"(=NON)\",IF(M1591>0,$B1590*((('1 Données d''entrée'!$C$310+1)^'1 Données d''entrée'!$C$311)-(1+'1 Données d''entrée'!$C$310)^('6 Financement'!M$54-1-'1 Données d''entrée'!$C$312))/((1+'1 Données d''entrée'!$C$310)^'1 Données d''entrée'!$C$311-1)*'1 Données d''entrée'!$C$310,0),IF(M1554<'1 Données d''entrée'!$C$312+1,'1 Données d''entrée'!$C$310*'6 Financement'!$B1590,IF(M1591>0,$B$90*((('1 Données d''entrée'!$C$310+1)^'1 Données d''entrée'!$C$311)-(1+'1 Données d''entrée'!$C$310)^('6 Financement'!M$54-1-'1 Données d''entrée'!$C$312))/((1+'1 Données d''entrée'!$C$310)^'1 Données d''entrée'!$C$311-1)*'1 Données d''entrée'!$C$310,0)))","v":0},{"$f":"IF('1 Données d''entrée'!$C$314=\"(=NON)\",IF(N1591>0,$B1590*((('1 Données d''entrée'!$C$310+1)^'1 Données d''entrée'!$C$311)-(1+'1 Données d''entrée'!$C$310)^('6 Financement'!N$54-1-'1 Données d''entrée'!$C$312))/((1+'1 Données d''entrée'!$C$310)^'1 Données d''entrée'!$C$311-1)*'1 Données d''entrée'!$C$310,0),IF(N1554<'1 Données d''entrée'!$C$312+1,'1 Données d''entrée'!$C$310*'6 Financement'!$B1590,IF(N1591>0,$B$90*((('1 Données d''entrée'!$C$310+1)^'1 Données d''entrée'!$C$311)-(1+'1 Données d''entrée'!$C$310)^('6 Financement'!N$54-1-'1 Données d''entrée'!$C$312))/((1+'1 Données d''entrée'!$C$310)^'1 Données d''entrée'!$C$311-1)*'1 Données d''entrée'!$C$310,0)))","v":0},{"$f":"IF('1 Données d''entrée'!$C$314=\"(=NON)\",IF(O1591>0,$B1590*((('1 Données d''entrée'!$C$310+1)^'1 Données d''entrée'!$C$311)-(1+'1 Données d''entrée'!$C$310)^('6 Financement'!O$54-1-'1 Données d''entrée'!$C$312))/((1+'1 Données d''entrée'!$C$310)^'1 Données d''entrée'!$C$311-1)*'1 Données d''entrée'!$C$310,0),IF(O1554<'1 Données d''entrée'!$C$312+1,'1 Données d''entrée'!$C$310*'6 Financement'!$B1590,IF(O1591>0,$B$90*((('1 Données d''entrée'!$C$310+1)^'1 Données d''entrée'!$C$311)-(1+'1 Données d''entrée'!$C$310)^('6 Financement'!O$54-1-'1 Données d''entrée'!$C$312))/((1+'1 Données d''entrée'!$C$310)^'1 Données d''entrée'!$C$311-1)*'1 Données d''entrée'!$C$310,0)))","v":0},{"$f":"IF('1 Données d''entrée'!$C$314=\"(=NON)\",IF(P1591>0,$B1590*((('1 Données d''entrée'!$C$310+1)^'1 Données d''entrée'!$C$311)-(1+'1 Données d''entrée'!$C$310)^('6 Financement'!P$54-1-'1 Données d''entrée'!$C$312))/((1+'1 Données d''entrée'!$C$310)^'1 Données d''entrée'!$C$311-1)*'1 Données d''entrée'!$C$310,0),IF(P1554<'1 Données d''entrée'!$C$312+1,'1 Données d''entrée'!$C$310*'6 Financement'!$B1590,IF(P1591>0,$B$90*((('1 Données d''entrée'!$C$310+1)^'1 Données d''entrée'!$C$311)-(1+'1 Données d''entrée'!$C$310)^('6 Financement'!P$54-1-'1 Données d''entrée'!$C$312))/((1+'1 Données d''entrée'!$C$310)^'1 Données d''entrée'!$C$311-1)*'1 Données d''entrée'!$C$310,0)))","v":0},{"$f":"IF('1 Données d''entrée'!$C$314=\"(=NON)\",IF(Q1591>0,$B1590*((('1 Données d''entrée'!$C$310+1)^'1 Données d''entrée'!$C$311)-(1+'1 Données d''entrée'!$C$310)^('6 Financement'!Q$54-1-'1 Données d''entrée'!$C$312))/((1+'1 Données d''entrée'!$C$310)^'1 Données d''entrée'!$C$311-1)*'1 Données d''entrée'!$C$310,0),IF(Q1554<'1 Données d''entrée'!$C$312+1,'1 Données d''entrée'!$C$310*'6 Financement'!$B1590,IF(Q1591>0,$B$90*((('1 Données d''entrée'!$C$310+1)^'1 Données d''entrée'!$C$311)-(1+'1 Données d''entrée'!$C$310)^('6 Financement'!Q$54-1-'1 Données d''entrée'!$C$312))/((1+'1 Données d''entrée'!$C$310)^'1 Données d''entrée'!$C$311-1)*'1 Données d''entrée'!$C$310,0)))","v":0},{"$f":"IF('1 Données d''entrée'!$C$314=\"(=NON)\",IF(R1591>0,$B1590*((('1 Données d''entrée'!$C$310+1)^'1 Données d''entrée'!$C$311)-(1+'1 Données d''entrée'!$C$310)^('6 Financement'!R$54-1-'1 Données d''entrée'!$C$312))/((1+'1 Données d''entrée'!$C$310)^'1 Données d''entrée'!$C$311-1)*'1 Données d''entrée'!$C$310,0),IF(R1554<'1 Données d''entrée'!$C$312+1,'1 Données d''entrée'!$C$310*'6 Financement'!$B1590,IF(R1591>0,$B$90*((('1 Données d''entrée'!$C$310+1)^'1 Données d''entrée'!$C$311)-(1+'1 Données d''entrée'!$C$310)^('6 Financement'!R$54-1-'1 Données d''entrée'!$C$312))/((1+'1 Données d''entrée'!$C$310)^'1 Données d''entrée'!$C$311-1)*'1 Données d''entrée'!$C$310,0)))","v":0},{"$f":"IF('1 Données d''entrée'!$C$314=\"(=NON)\",IF(S1591>0,$B1590*((('1 Données d''entrée'!$C$310+1)^'1 Données d''entrée'!$C$311)-(1+'1 Données d''entrée'!$C$310)^('6 Financement'!S$54-1-'1 Données d''entrée'!$C$312))/((1+'1 Données d''entrée'!$C$310)^'1 Données d''entrée'!$C$311-1)*'1 Données d''entrée'!$C$310,0),IF(S1554<'1 Données d''entrée'!$C$312+1,'1 Données d''entrée'!$C$310*'6 Financement'!$B1590,IF(S1591>0,$B$90*((('1 Données d''entrée'!$C$310+1)^'1 Données d''entrée'!$C$311)-(1+'1 Données d''entrée'!$C$310)^('6 Financement'!S$54-1-'1 Données d''entrée'!$C$312))/((1+'1 Données d''entrée'!$C$310)^'1 Données d''entrée'!$C$311-1)*'1 Données d''entrée'!$C$310,0)))","v":0},{"$f":"IF('1 Données d''entrée'!$C$314=\"(=NON)\",IF(T1591>0,$B1590*((('1 Données d''entrée'!$C$310+1)^'1 Données d''entrée'!$C$311)-(1+'1 Données d''entrée'!$C$310)^('6 Financement'!T$54-1-'1 Données d''entrée'!$C$312))/((1+'1 Données d''entrée'!$C$310)^'1 Données d''entrée'!$C$311-1)*'1 Données d''entrée'!$C$310,0),IF(T1554<'1 Données d''entrée'!$C$312+1,'1 Données d''entrée'!$C$310*'6 Financement'!$B1590,IF(T1591>0,$B$90*((('1 Données d''entrée'!$C$310+1)^'1 Données d''entrée'!$C$311)-(1+'1 Données d''entrée'!$C$310)^('6 Financement'!T$54-1-'1 Données d''entrée'!$C$312))/((1+'1 Données d''entrée'!$C$310)^'1 Données d''entrée'!$C$311-1)*'1 Données d''entrée'!$C$310,0)))","v":0},{"$f":"IF('1 Données d''entrée'!$C$314=\"(=NON)\",IF(U1591>0,$B1590*((('1 Données d''entrée'!$C$310+1)^'1 Données d''entrée'!$C$311)-(1+'1 Données d''entrée'!$C$310)^('6 Financement'!U$54-1-'1 Données d''entrée'!$C$312))/((1+'1 Données d''entrée'!$C$310)^'1 Données d''entrée'!$C$311-1)*'1 Données d''entrée'!$C$310,0),IF(U1554<'1 Données d''entrée'!$C$312+1,'1 Données d''entrée'!$C$310*'6 Financement'!$B1590,IF(U1591>0,$B$90*((('1 Données d''entrée'!$C$310+1)^'1 Données d''entrée'!$C$311)-(1+'1 Données d''entrée'!$C$310)^('6 Financement'!U$54-1-'1 Données d''entrée'!$C$312))/((1+'1 Données d''entrée'!$C$310)^'1 Données d''entrée'!$C$311-1)*'1 Données d''entrée'!$C$310,0)))","v":0},{"$f":"IF('1 Données d''entrée'!$C$314=\"(=NON)\",IF(V1591>0,$B1590*((('1 Données d''entrée'!$C$310+1)^'1 Données d''entrée'!$C$311)-(1+'1 Données d''entrée'!$C$310)^('6 Financement'!V$54-1-'1 Données d''entrée'!$C$312))/((1+'1 Données d''entrée'!$C$310)^'1 Données d''entrée'!$C$311-1)*'1 Données d''entrée'!$C$310,0),IF(V1554<'1 Données d''entrée'!$C$312+1,'1 Données d''entrée'!$C$310*'6 Financement'!$B1590,IF(V1591>0,$B$90*((('1 Données d''entrée'!$C$310+1)^'1 Données d''entrée'!$C$311)-(1+'1 Données d''entrée'!$C$310)^('6 Financement'!V$54-1-'1 Données d''entrée'!$C$312))/((1+'1 Données d''entrée'!$C$310)^'1 Données d''entrée'!$C$311-1)*'1 Données d''entrée'!$C$310,0)))","v":0}]
["Paiements d'intérêt avec des intérêts composés en cas d'absence des paiements dans la période de grâce",0,0,{"$f":"IF(D1554='1 Données d''entrée'!$C$312+1,IF('1 Données d''entrée'!$C$314=\"(=NON)\",($B1590*'1 Données d''entrée'!$C$310)*((('1 Données d''entrée'!$C$310+1)^'1 Données d''entrée'!$C$312-1)/('1 Données d''entrée'!$C$310))*(1+'1 Données d''entrée'!$C$310),0),0)","v":0},{"$f":"IF(E1554='1 Données d''entrée'!$C$312+1,IF('1 Données d''entrée'!$C$314=\"(=NON)\",($B1590*'1 Données d''entrée'!$C$310)*((('1 Données d''entrée'!$C$310+1)^'1 Données d''entrée'!$C$312-1)/('1 Données d''entrée'!$C$310))*(1+'1 Données d''entrée'!$C$310),0),0)","v":0},{"$f":"IF(F1554='1 Données d''entrée'!$C$312+1,IF('1 Données d''entrée'!$C$314=\"(=NON)\",($B1590*'1 Données d''entrée'!$C$310)*((('1 Données d''entrée'!$C$310+1)^'1 Données d''entrée'!$C$312-1)/('1 Données d''entrée'!$C$310))*(1+'1 Données d''entrée'!$C$310),0),0)","v":0},{"$f":"IF(G1554='1 Données d''entrée'!$C$312+1,IF('1 Données d''entrée'!$C$314=\"(=NON)\",($B1590*'1 Données d''entrée'!$C$310)*((('1 Données d''entrée'!$C$310+1)^'1 Données d''entrée'!$C$312-1)/('1 Données d''entrée'!$C$310))*(1+'1 Données d''entrée'!$C$310),0),0)","v":0},{"$f":"IF(H1554='1 Données d''entrée'!$C$312+1,IF('1 Données d''entrée'!$C$314=\"(=NON)\",($B1590*'1 Données d''entrée'!$C$310)*((('1 Données d''entrée'!$C$310+1)^'1 Données d''entrée'!$C$312-1)/('1 Données d''entrée'!$C$310))*(1+'1 Données d''entrée'!$C$310),0),0)","v":0},{"$f":"IF(I1554='1 Données d''entrée'!$C$312+1,IF('1 Données d''entrée'!$C$314=\"(=NON)\",($B1590*'1 Données d''entrée'!$C$310)*((('1 Données d''entrée'!$C$310+1)^'1 Données d''entrée'!$C$312-1)/('1 Données d''entrée'!$C$310))*(1+'1 Données d''entrée'!$C$310),0),0)","v":0},{"$f":"IF(J1554='1 Données d''entrée'!$C$312+1,IF('1 Données d''entrée'!$C$314=\"(=NON)\",($B1590*'1 Données d''entrée'!$C$310)*((('1 Données d''entrée'!$C$310+1)^'1 Données d''entrée'!$C$312-1)/('1 Données d''entrée'!$C$310))*(1+'1 Données d''entrée'!$C$310),0),0)","v":0},{"$f":"IF(K1554='1 Données d''entrée'!$C$312+1,IF('1 Données d''entrée'!$C$314=\"(=NON)\",($B1590*'1 Données d''entrée'!$C$310)*((('1 Données d''entrée'!$C$310+1)^'1 Données d''entrée'!$C$312-1)/('1 Données d''entrée'!$C$310))*(1+'1 Données d''entrée'!$C$310),0),0)","v":0},{"$f":"IF(L1554='1 Données d''entrée'!$C$312+1,IF('1 Données d''entrée'!$C$314=\"(=NON)\",($B1590*'1 Données d''entrée'!$C$310)*((('1 Données d''entrée'!$C$310+1)^'1 Données d''entrée'!$C$312-1)/('1 Données d''entrée'!$C$310))*(1+'1 Données d''entrée'!$C$310),0),0)","v":0},{"$f":"IF(M1554='1 Données d''entrée'!$C$312+1,IF('1 Données d''entrée'!$C$314=\"(=NON)\",($B1590*'1 Données d''entrée'!$C$310)*((('1 Données d''entrée'!$C$310+1)^'1 Données d''entrée'!$C$312-1)/('1 Données d''entrée'!$C$310))*(1+'1 Données d''entrée'!$C$310),0),0)","v":0},{"$f":"IF(N1554='1 Données d''entrée'!$C$312+1,IF('1 Données d''entrée'!$C$314=\"(=NON)\",($B1590*'1 Données d''entrée'!$C$310)*((('1 Données d''entrée'!$C$310+1)^'1 Données d''entrée'!$C$312-1)/('1 Données d''entrée'!$C$310))*(1+'1 Données d''entrée'!$C$310),0),0)","v":0},{"$f":"IF(O1554='1 Données d''entrée'!$C$312+1,IF('1 Données d''entrée'!$C$314=\"(=NON)\",($B1590*'1 Données d''entrée'!$C$310)*((('1 Données d''entrée'!$C$310+1)^'1 Données d''entrée'!$C$312-1)/('1 Données d''entrée'!$C$310))*(1+'1 Données d''entrée'!$C$310),0),0)","v":0},{"$f":"IF(P1554='1 Données d''entrée'!$C$312+1,IF('1 Données d''entrée'!$C$314=\"(=NON)\",($B1590*'1 Données d''entrée'!$C$310)*((('1 Données d''entrée'!$C$310+1)^'1 Données d''entrée'!$C$312-1)/('1 Données d''entrée'!$C$310))*(1+'1 Données d''entrée'!$C$310),0),0)","v":0},{"$f":"IF(Q1554='1 Données d''entrée'!$C$312+1,IF('1 Données d''entrée'!$C$314=\"(=NON)\",($B1590*'1 Données d''entrée'!$C$310)*((('1 Données d''entrée'!$C$310+1)^'1 Données d''entrée'!$C$312-1)/('1 Données d''entrée'!$C$310))*(1+'1 Données d''entrée'!$C$310),0),0)","v":0},{"$f":"IF(R1554='1 Données d''entrée'!$C$312+1,IF('1 Données d''entrée'!$C$314=\"(=NON)\",($B1590*'1 Données d''entrée'!$C$310)*((('1 Données d''entrée'!$C$310+1)^'1 Données d''entrée'!$C$312-1)/('1 Données d''entrée'!$C$310))*(1+'1 Données d''entrée'!$C$310),0),0)","v":0},{"$f":"IF(S1554='1 Données d''entrée'!$C$312+1,IF('1 Données d''entrée'!$C$314=\"(=NON)\",($B1590*'1 Données d''entrée'!$C$310)*((('1 Données d''entrée'!$C$310+1)^'1 Données d''entrée'!$C$312-1)/('1 Données d''entrée'!$C$310))*(1+'1 Données d''entrée'!$C$310),0),0)","v":0},{"$f":"IF(T1554='1 Données d''entrée'!$C$312+1,IF('1 Données d''entrée'!$C$314=\"(=NON)\",($B1590*'1 Données d''entrée'!$C$310)*((('1 Données d''entrée'!$C$310+1)^'1 Données d''entrée'!$C$312-1)/('1 Données d''entrée'!$C$310))*(1+'1 Données d''entrée'!$C$310),0),0)","v":0},{"$f":"IF(U1554='1 Données d''entrée'!$C$312+1,IF('1 Données d''entrée'!$C$314=\"(=NON)\",($B1590*'1 Données d''entrée'!$C$310)*((('1 Données d''entrée'!$C$310+1)^'1 Données d''entrée'!$C$312-1)/('1 Données d''entrée'!$C$310))*(1+'1 Données d''entrée'!$C$310),0),0)","v":0},{"$f":"IF(V1554='1 Données d''entrée'!$C$312+1,IF('1 Données d''entrée'!$C$314=\"(=NON)\",($B1590*'1 Données d''entrée'!$C$310)*((('1 Données d''entrée'!$C$310+1)^'1 Données d''entrée'!$C$312-1)/('1 Données d''entrée'!$C$310))*(1+'1 Données d''entrée'!$C$310),0),0)","v":0}]
[]
["Solde du compte intermédiaire"]
["Solde du comte (par période)",{"$f":"B1556+B1558+B1560+IF($B1562>0,(B1563-B1564-B1565-B1566),0)+IF($B1567>0,(B1568-B1569-B1570-B1571),0)+IF($B1572>0,(B1573-B1574-IF(B1574>0,0,B1575)-B1576),0)+B1578+IF($B1579>0,(B1580-B1581-B1582-B1583),0)+IF($B1584>0,(B1585-B1586-B1587-B1588),0)+IF($B1589>0,B1590-IF(B1591>0,0,B1592)-B1593,0)","v":{"$error":"#DIV/0!"}},{"$f":"C1556+C1558+C1560+IF($B1562>0,(-C1564-C1565-C1566),0)+IF($B1567>0,(-C1569-C1570-C1571),0)+C1578+IF($B1572>0,(-C1574-IF(C1574>0,0,C1575)-C1576),0)+IF($B1579>0,(-C1581-C1582-C1583),0)+IF($B1584>0,(-C1586-C1587-C1588),0)+IF($B1589>0,(-C1591-IF(C1591>0,0,C1592)-C1593),0)","v":{"$error":"#DIV/0!"}},{"$f":"D1556+D1558+D1560+IF($B1562>0,(-D1564-D1565-D1566),0)+IF($B1567>0,(-D1569-D1570-D1571),0)+D1578+IF($B1572>0,(-D1574-IF(D1574>0,0,D1575)-D1576),0)+IF($B1579>0,(-D1581-D1582-D1583),0)+IF($B1584>0,(-D1586-D1587-D1588),0)+IF($B1589>0,(-D1591-IF(D1591>0,0,D1592)-D1593),0)","v":{"$error":"#DIV/0!"}},{"$error":"#DIV/0!"},{"$error":"#DIV/0!"},{"$error":"#DIV/0!"},{"$error":"#DIV/0!"},{"$error":"#DIV/0!"},{"$error":"#DIV/0!"},{"$error":"#DIV/0!"},{"$error":"#DIV/0!"},{"$error":"#DIV/0!"},{"$error":"#DIV/0!"},{"$error":"#DIV/0!"},{"$error":"#DIV/0!"},{"$error":"#DIV/0!"},{"$error":"#DIV/0!"},{"$error":"#DIV/0!"},{"$error":"#DIV/0!"},{"$error":"#DIV/0!"},{"$error":"#DIV/0!"}]
["Solde du compte (cumulé)",{"$f":"B1596","v":{"$error":"#DIV/0!"}},{"$f":"B1597+C1596","v":{"$error":"#DIV/0!"}},{"$error":"#DIV/0!"},{"$error":"#DIV/0!"},{"$error":"#DIV/0!"},{"$error":"#DIV/0!"},{"$error":"#DIV/0!"},{"$error":"#DIV/0!"},{"$error":"#DIV/0!"},{"$error":"#DIV/0!"},{"$error":"#DIV/0!"},{"$error":"#DIV/0!"},{"$error":"#DIV/0!"},{"$error":"#DIV/0!"},{"$error":"#DIV/0!"},{"$error":"#DIV/0!"},{"$error":"#DIV/0!"},{"$error":"#DIV/0!"},{"$error":"#DIV/0!"},{"$error":"#DIV/0!"},{"$error":"#DIV/0!"}]
[]
[]
[]
["Prêt bancaire additionnel"]
[null,"Période",1,2,3,4,5,6,7,8,9,10,11,12,13,14,15,16,17,18,19,20]
["Prêt bancaire additionnel - Option 1: Remboursement du principal fractionné",{"$f":"'1 Données d''entrée'!$B$342","v":0}]
["Prêt(s) nouveau(x)",null,{"$f":"IF(C1597<0,C1597*(-1)*$B1603+C1597*(-1)*$B1603*'1 Données d''entrée'!$C$338,0)","v":{"$error":"#DIV/0!"}},{"$f":"IF(D1597<0,D1597*(-1)*$B1603+D1597*(-1)*$B1603*'1 Données d''entrée'!$C$338,0)","v":{"$error":"#DIV/0!"}},{"$f":"IF(E1597<0,E1597*(-1)*$B1603+E1597*(-1)*$B1603*'1 Données d''entrée'!$C$338,0)","v":{"$error":"#DIV/0!"}},{"$f":"IF(F1597<0,F1597*(-1)*$B1603+F1597*(-1)*$B1603*'1 Données d''entrée'!$C$338,0)","v":{"$error":"#DIV/0!"}},{"$f":"IF(G1597<0,G1597*(-1)*$B1603+G1597*(-1)*$B1603*'1 Données d''entrée'!$C$338,0)","v":{"$error":"#DIV/0!"}},{"$f":"IF(H1597<0,H1597*(-1)*$B1603+H1597*(-1)*$B1603*'1 Données d''entrée'!$C$338,0)","v":{"$error":"#DIV/0!"}},{"$f":"IF(I1597<0,I1597*(-1)*$B1603+I1597*(-1)*$B1603*'1 Données d''entrée'!$C$338,0)","v":{"$error":"#DIV/0!"}},{"$f":"IF(J1597<0,J1597*(-1)*$B1603+J1597*(-1)*$B1603*'1 Données d''entrée'!$C$338,0)","v":{"$error":"#DIV/0!"}},{"$f":"IF(K1597<0,K1597*(-1)*$B1603+K1597*(-1)*$B1603*'1 Données d''entrée'!$C$338,0)","v":{"$error":"#DIV/0!"}},{"$f":"IF(L1597<0,L1597*(-1)*$B1603+L1597*(-1)*$B1603*'1 Données d''entrée'!$C$338,0)","v":{"$error":"#DIV/0!"}},{"$f":"IF(M1597<0,M1597*(-1)*$B1603+M1597*(-1)*$B1603*'1 Données d''entrée'!$C$338,0)","v":{"$error":"#DIV/0!"}},{"$f":"IF(N1597<0,N1597*(-1)*$B1603+N1597*(-1)*$B1603*'1 Données d''entrée'!$C$338,0)","v":{"$error":"#DIV/0!"}},{"$f":"IF(O1597<0,O1597*(-1)*$B1603+O1597*(-1)*$B1603*'1 Données d''entrée'!$C$338,0)","v":{"$error":"#DIV/0!"}},{"$f":"IF(P1597<0,P1597*(-1)*$B1603+P1597*(-1)*$B1603*'1 Données d''entrée'!$C$338,0)","v":{"$error":"#DIV/0!"}},{"$f":"IF(Q1597<0,Q1597*(-1)*$B1603+Q1597*(-1)*$B1603*'1 Données d''entrée'!$C$338,0)","v":{"$error":"#DIV/0!"}},{"$f":"IF(R1597<0,R1597*(-1)*$B1603+R1597*(-1)*$B1603*'1 Données d''entrée'!$C$338,0)","v":{"$error":"#DIV/0!"}},{"$f":"IF(S1597<0,S1597*(-1)*$B1603+S1597*(-1)*$B1603*'1 Données d''entrée'!$C$338,0)","v":{"$error":"#DIV/0!"}},{"$f":"IF(T1597<0,T1597*(-1)*$B1603+T1597*(-1)*$B1603*'1 Données d''entrée'!$C$338,0)","v":{"$error":"#DIV/0!"}},{"$f":"IF(U1597<0,U1597*(-1)*$B1603+U1597*(-1)*$B1603*'1 Données d''entrée'!$C$338,0)","v":{"$error":"#DIV/0!"}},{"$f":"IF(V1597<0,V1597*(-1)*$B1603+V1597*(-1)*$B1603*'1 Données d''entrée'!$C$338,0)","v":{"$error":"#DIV/0!"}}]
[null,"Période de prêt nouveau"]
["Remboursement du principal",0,0,0,0,0,0,0,0,0,0,0,0,0,0,0,0,0,0,0,0,0]
[null,1,{"$f":"IF(C1554<'1 Données d''entrée'!$C$334+1+$B1607,0,IF(C1554<'1 Données d''entrée'!$C$333+'1 Données d''entrée'!$C$334+1+$B1607,($C1604/'1 Données d''entrée'!$C$333),0))","v":0},{"$f":"IF(D1554<'1 Données d''entrée'!$C$334+1+$B1607,0,IF(D1554<'1 Données d''entrée'!$C$333+'1 Données d''entrée'!$C$334+1+$B1607,($C1604/'1 Données d''entrée'!$C$333),0))","v":0},{"$f":"IF(E1554<'1 Données d''entrée'!$C$334+1+$B1607,0,IF(E1554<'1 Données d''entrée'!$C$333+'1 Données d''entrée'!$C$334+1+$B1607,($C1604/'1 Données d''entrée'!$C$333),0))","v":0},{"$f":"IF(F1554<'1 Données d''entrée'!$C$334+1+$B1607,0,IF(F1554<'1 Données d''entrée'!$C$333+'1 Données d''entrée'!$C$334+1+$B1607,($C1604/'1 Données d''entrée'!$C$333),0))","v":0},{"$f":"IF(G1554<'1 Données d''entrée'!$C$334+1+$B1607,0,IF(G1554<'1 Données d''entrée'!$C$333+'1 Données d''entrée'!$C$334+1+$B1607,($C1604/'1 Données d''entrée'!$C$333),0))","v":0},{"$f":"IF(H1554<'1 Données d''entrée'!$C$334+1+$B1607,0,IF(H1554<'1 Données d''entrée'!$C$333+'1 Données d''entrée'!$C$334+1+$B1607,($C1604/'1 Données d''entrée'!$C$333),0))","v":0},{"$f":"IF(I1554<'1 Données d''entrée'!$C$334+1+$B1607,0,IF(I1554<'1 Données d''entrée'!$C$333+'1 Données d''entrée'!$C$334+1+$B1607,($C1604/'1 Données d''entrée'!$C$333),0))","v":0},{"$f":"IF(J1554<'1 Données d''entrée'!$C$334+1+$B1607,0,IF(J1554<'1 Données d''entrée'!$C$333+'1 Données d''entrée'!$C$334+1+$B1607,($C1604/'1 Données d''entrée'!$C$333),0))","v":0},{"$f":"IF(K1554<'1 Données d''entrée'!$C$334+1+$B1607,0,IF(K1554<'1 Données d''entrée'!$C$333+'1 Données d''entrée'!$C$334+1+$B1607,($C1604/'1 Données d''entrée'!$C$333),0))","v":0},{"$f":"IF(L1554<'1 Données d''entrée'!$C$334+1+$B1607,0,IF(L1554<'1 Données d''entrée'!$C$333+'1 Données d''entrée'!$C$334+1+$B1607,($C1604/'1 Données d''entrée'!$C$333),0))","v":0},{"$f":"IF(M1554<'1 Données d''entrée'!$C$334+1+$B1607,0,IF(M1554<'1 Données d''entrée'!$C$333+'1 Données d''entrée'!$C$334+1+$B1607,($C1604/'1 Données d''entrée'!$C$333),0))","v":0},{"$f":"IF(N1554<'1 Données d''entrée'!$C$334+1+$B1607,0,IF(N1554<'1 Données d''entrée'!$C$333+'1 Données d''entrée'!$C$334+1+$B1607,($C1604/'1 Données d''entrée'!$C$333),0))","v":0},{"$f":"IF(O1554<'1 Données d''entrée'!$C$334+1+$B1607,0,IF(O1554<'1 Données d''entrée'!$C$333+'1 Données d''entrée'!$C$334+1+$B1607,($C1604/'1 Données d''entrée'!$C$333),0))","v":0},{"$f":"IF(P1554<'1 Données d''entrée'!$C$334+1+$B1607,0,IF(P1554<'1 Données d''entrée'!$C$333+'1 Données d''entrée'!$C$334+1+$B1607,($C1604/'1 Données d''entrée'!$C$333),0))","v":0},{"$f":"IF(Q1554<'1 Données d''entrée'!$C$334+1+$B1607,0,IF(Q1554<'1 Données d''entrée'!$C$333+'1 Données d''entrée'!$C$334+1+$B1607,($C1604/'1 Données d''entrée'!$C$333),0))","v":0},{"$f":"IF(R1554<'1 Données d''entrée'!$C$334+1+$B1607,0,IF(R1554<'1 Données d''entrée'!$C$333+'1 Données d''entrée'!$C$334+1+$B1607,($C1604/'1 Données d''entrée'!$C$333),0))","v":0},{"$f":"IF(S1554<'1 Données d''entrée'!$C$334+1+$B1607,0,IF(S1554<'1 Données d''entrée'!$C$333+'1 Données d''entrée'!$C$334+1+$B1607,($C1604/'1 Données d''entrée'!$C$333),0))","v":0},{"$f":"IF(T1554<'1 Données d''entrée'!$C$334+1+$B1607,0,IF(T1554<'1 Données d''entrée'!$C$333+'1 Données d''entrée'!$C$334+1+$B1607,($C1604/'1 Données d''entrée'!$C$333),0))","v":0},{"$f":"IF(U1554<'1 Données d''entrée'!$C$334+1+$B1607,0,IF(U1554<'1 Données d''entrée'!$C$333+'1 Données d''entrée'!$C$334+1+$B1607,($C1604/'1 Données d''entrée'!$C$333),0))","v":0},{"$f":"IF(V1554<'1 Données d''entrée'!$C$334+1+$B1607,0,IF(V1554<'1 Données d''entrée'!$C$333+'1 Données d''entrée'!$C$334+1+$B1607,($C1604/'1 Données d''entrée'!$C$333),0))","v":0}]
[null,2,{"$f":"IF(C1554<'1 Données d''entrée'!$C$334+1+$B1608,0,IF(C1554<'1 Données d''entrée'!$C$333+'1 Données d''entrée'!$C$334+1+$B1608,($D1604/'1 Données d''entrée'!$C$333),0))","v":0},{"$f":"IF(D1554<'1 Données d''entrée'!$C$334+1+$B1608,0,IF(D1554<'1 Données d''entrée'!$C$333+'1 Données d''entrée'!$C$334+1+$B1608,($D1604/'1 Données d''entrée'!$C$333),0))","v":0},{"$f":"IF(E1554<'1 Données d''entrée'!$C$334+1+$B1608,0,IF(E1554<'1 Données d''entrée'!$C$333+'1 Données d''entrée'!$C$334+1+$B1608,($D1604/'1 Données d''entrée'!$C$333),0))","v":0},{"$f":"IF(F1554<'1 Données d''entrée'!$C$334+1+$B1608,0,IF(F1554<'1 Données d''entrée'!$C$333+'1 Données d''entrée'!$C$334+1+$B1608,($D1604/'1 Données d''entrée'!$C$333),0))","v":0},{"$f":"IF(G1554<'1 Données d''entrée'!$C$334+1+$B1608,0,IF(G1554<'1 Données d''entrée'!$C$333+'1 Données d''entrée'!$C$334+1+$B1608,($D1604/'1 Données d''entrée'!$C$333),0))","v":0},{"$f":"IF(H1554<'1 Données d''entrée'!$C$334+1+$B1608,0,IF(H1554<'1 Données d''entrée'!$C$333+'1 Données d''entrée'!$C$334+1+$B1608,($D1604/'1 Données d''entrée'!$C$333),0))","v":0},{"$f":"IF(I1554<'1 Données d''entrée'!$C$334+1+$B1608,0,IF(I1554<'1 Données d''entrée'!$C$333+'1 Données d''entrée'!$C$334+1+$B1608,($D1604/'1 Données d''entrée'!$C$333),0))","v":0},{"$f":"IF(J1554<'1 Données d''entrée'!$C$334+1+$B1608,0,IF(J1554<'1 Données d''entrée'!$C$333+'1 Données d''entrée'!$C$334+1+$B1608,($D1604/'1 Données d''entrée'!$C$333),0))","v":0},{"$f":"IF(K1554<'1 Données d''entrée'!$C$334+1+$B1608,0,IF(K1554<'1 Données d''entrée'!$C$333+'1 Données d''entrée'!$C$334+1+$B1608,($D1604/'1 Données d''entrée'!$C$333),0))","v":0},{"$f":"IF(L1554<'1 Données d''entrée'!$C$334+1+$B1608,0,IF(L1554<'1 Données d''entrée'!$C$333+'1 Données d''entrée'!$C$334+1+$B1608,($D1604/'1 Données d''entrée'!$C$333),0))","v":0},{"$f":"IF(M1554<'1 Données d''entrée'!$C$334+1+$B1608,0,IF(M1554<'1 Données d''entrée'!$C$333+'1 Données d''entrée'!$C$334+1+$B1608,($D1604/'1 Données d''entrée'!$C$333),0))","v":0},{"$f":"IF(N1554<'1 Données d''entrée'!$C$334+1+$B1608,0,IF(N1554<'1 Données d''entrée'!$C$333+'1 Données d''entrée'!$C$334+1+$B1608,($D1604/'1 Données d''entrée'!$C$333),0))","v":0},{"$f":"IF(O1554<'1 Données d''entrée'!$C$334+1+$B1608,0,IF(O1554<'1 Données d''entrée'!$C$333+'1 Données d''entrée'!$C$334+1+$B1608,($D1604/'1 Données d''entrée'!$C$333),0))","v":0},{"$f":"IF(P1554<'1 Données d''entrée'!$C$334+1+$B1608,0,IF(P1554<'1 Données d''entrée'!$C$333+'1 Données d''entrée'!$C$334+1+$B1608,($D1604/'1 Données d''entrée'!$C$333),0))","v":0},{"$f":"IF(Q1554<'1 Données d''entrée'!$C$334+1+$B1608,0,IF(Q1554<'1 Données d''entrée'!$C$333+'1 Données d''entrée'!$C$334+1+$B1608,($D1604/'1 Données d''entrée'!$C$333),0))","v":0},{"$f":"IF(R1554<'1 Données d''entrée'!$C$334+1+$B1608,0,IF(R1554<'1 Données d''entrée'!$C$333+'1 Données d''entrée'!$C$334+1+$B1608,($D1604/'1 Données d''entrée'!$C$333),0))","v":0},{"$f":"IF(S1554<'1 Données d''entrée'!$C$334+1+$B1608,0,IF(S1554<'1 Données d''entrée'!$C$333+'1 Données d''entrée'!$C$334+1+$B1608,($D1604/'1 Données d''entrée'!$C$333),0))","v":0},{"$f":"IF(T1554<'1 Données d''entrée'!$C$334+1+$B1608,0,IF(T1554<'1 Données d''entrée'!$C$333+'1 Données d''entrée'!$C$334+1+$B1608,($D1604/'1 Données d''entrée'!$C$333),0))","v":0},{"$f":"IF(U1554<'1 Données d''entrée'!$C$334+1+$B1608,0,IF(U1554<'1 Données d''entrée'!$C$333+'1 Données d''entrée'!$C$334+1+$B1608,($D1604/'1 Données d''entrée'!$C$333),0))","v":0},{"$f":"IF(V1554<'1 Données d''entrée'!$C$334+1+$B1608,0,IF(V1554<'1 Données d''entrée'!$C$333+'1 Données d''entrée'!$C$334+1+$B1608,($D1604/'1 Données d''entrée'!$C$333),0))","v":0}]
[null,3,{"$f":"IF(C1554<'1 Données d''entrée'!$C$334+1+$B1609,0,IF(C1554<'1 Données d''entrée'!$C$333+'1 Données d''entrée'!$C$334+1+$B1609,($E1604/'1 Données d''entrée'!$C$333),0))","v":0},{"$f":"IF(D1554<'1 Données d''entrée'!$C$334+1+$B1609,0,IF(D1554<'1 Données d''entrée'!$C$333+'1 Données d''entrée'!$C$334+1+$B1609,($E1604/'1 Données d''entrée'!$C$333),0))","v":0},{"$f":"IF(E1554<'1 Données d''entrée'!$C$334+1+$B1609,0,IF(E1554<'1 Données d''entrée'!$C$333+'1 Données d''entrée'!$C$334+1+$B1609,($E1604/'1 Données d''entrée'!$C$333),0))","v":0},{"$f":"IF(F1554<'1 Données d''entrée'!$C$334+1+$B1609,0,IF(F1554<'1 Données d''entrée'!$C$333+'1 Données d''entrée'!$C$334+1+$B1609,($E1604/'1 Données d''entrée'!$C$333),0))","v":0},{"$f":"IF(G1554<'1 Données d''entrée'!$C$334+1+$B1609,0,IF(G1554<'1 Données d''entrée'!$C$333+'1 Données d''entrée'!$C$334+1+$B1609,($E1604/'1 Données d''entrée'!$C$333),0))","v":0},{"$f":"IF(H1554<'1 Données d''entrée'!$C$334+1+$B1609,0,IF(H1554<'1 Données d''entrée'!$C$333+'1 Données d''entrée'!$C$334+1+$B1609,($E1604/'1 Données d''entrée'!$C$333),0))","v":0},{"$f":"IF(I1554<'1 Données d''entrée'!$C$334+1+$B1609,0,IF(I1554<'1 Données d''entrée'!$C$333+'1 Données d''entrée'!$C$334+1+$B1609,($E1604/'1 Données d''entrée'!$C$333),0))","v":0},{"$f":"IF(J1554<'1 Données d''entrée'!$C$334+1+$B1609,0,IF(J1554<'1 Données d''entrée'!$C$333+'1 Données d''entrée'!$C$334+1+$B1609,($E1604/'1 Données d''entrée'!$C$333),0))","v":0},{"$f":"IF(K1554<'1 Données d''entrée'!$C$334+1+$B1609,0,IF(K1554<'1 Données d''entrée'!$C$333+'1 Données d''entrée'!$C$334+1+$B1609,($E1604/'1 Données d''entrée'!$C$333),0))","v":0},{"$f":"IF(L1554<'1 Données d''entrée'!$C$334+1+$B1609,0,IF(L1554<'1 Données d''entrée'!$C$333+'1 Données d''entrée'!$C$334+1+$B1609,($E1604/'1 Données d''entrée'!$C$333),0))","v":0},{"$f":"IF(M1554<'1 Données d''entrée'!$C$334+1+$B1609,0,IF(M1554<'1 Données d''entrée'!$C$333+'1 Données d''entrée'!$C$334+1+$B1609,($E1604/'1 Données d''entrée'!$C$333),0))","v":0},{"$f":"IF(N1554<'1 Données d''entrée'!$C$334+1+$B1609,0,IF(N1554<'1 Données d''entrée'!$C$333+'1 Données d''entrée'!$C$334+1+$B1609,($E1604/'1 Données d''entrée'!$C$333),0))","v":0},{"$f":"IF(O1554<'1 Données d''entrée'!$C$334+1+$B1609,0,IF(O1554<'1 Données d''entrée'!$C$333+'1 Données d''entrée'!$C$334+1+$B1609,($E1604/'1 Données d''entrée'!$C$333),0))","v":0},{"$f":"IF(P1554<'1 Données d''entrée'!$C$334+1+$B1609,0,IF(P1554<'1 Données d''entrée'!$C$333+'1 Données d''entrée'!$C$334+1+$B1609,($E1604/'1 Données d''entrée'!$C$333),0))","v":0},{"$f":"IF(Q1554<'1 Données d''entrée'!$C$334+1+$B1609,0,IF(Q1554<'1 Données d''entrée'!$C$333+'1 Données d''entrée'!$C$334+1+$B1609,($E1604/'1 Données d''entrée'!$C$333),0))","v":0},{"$f":"IF(R1554<'1 Données d''entrée'!$C$334+1+$B1609,0,IF(R1554<'1 Données d''entrée'!$C$333+'1 Données d''entrée'!$C$334+1+$B1609,($E1604/'1 Données d''entrée'!$C$333),0))","v":0},{"$f":"IF(S1554<'1 Données d''entrée'!$C$334+1+$B1609,0,IF(S1554<'1 Données d''entrée'!$C$333+'1 Données d''entrée'!$C$334+1+$B1609,($E1604/'1 Données d''entrée'!$C$333),0))","v":0},{"$f":"IF(T1554<'1 Données d''entrée'!$C$334+1+$B1609,0,IF(T1554<'1 Données d''entrée'!$C$333+'1 Données d''entrée'!$C$334+1+$B1609,($E1604/'1 Données d''entrée'!$C$333),0))","v":0},{"$f":"IF(U1554<'1 Données d''entrée'!$C$334+1+$B1609,0,IF(U1554<'1 Données d''entrée'!$C$333+'1 Données d''entrée'!$C$334+1+$B1609,($E1604/'1 Données d''entrée'!$C$333),0))","v":0},{"$f":"IF(V1554<'1 Données d''entrée'!$C$334+1+$B1609,0,IF(V1554<'1 Données d''entrée'!$C$333+'1 Données d''entrée'!$C$334+1+$B1609,($E1604/'1 Données d''entrée'!$C$333),0))","v":0}]
[null,4,{"$f":"IF(C1554<'1 Données d''entrée'!$C$334+1+$B1610,0,IF(C1554<'1 Données d''entrée'!$C$333+'1 Données d''entrée'!$C$334+1+$B1610,($F1604/'1 Données d''entrée'!$C$333),0))","v":0},{"$f":"IF(D1554<'1 Données d''entrée'!$C$334+1+$B1610,0,IF(D1554<'1 Données d''entrée'!$C$333+'1 Données d''entrée'!$C$334+1+$B1610,($F1604/'1 Données d''entrée'!$C$333),0))","v":0},{"$f":"IF(E1554<'1 Données d''entrée'!$C$334+1+$B1610,0,IF(E1554<'1 Données d''entrée'!$C$333+'1 Données d''entrée'!$C$334+1+$B1610,($F1604/'1 Données d''entrée'!$C$333),0))","v":0},{"$f":"IF(F1554<'1 Données d''entrée'!$C$334+1+$B1610,0,IF(F1554<'1 Données d''entrée'!$C$333+'1 Données d''entrée'!$C$334+1+$B1610,($F1604/'1 Données d''entrée'!$C$333),0))","v":0},{"$f":"IF(G1554<'1 Données d''entrée'!$C$334+1+$B1610,0,IF(G1554<'1 Données d''entrée'!$C$333+'1 Données d''entrée'!$C$334+1+$B1610,($F1604/'1 Données d''entrée'!$C$333),0))","v":0},{"$f":"IF(H1554<'1 Données d''entrée'!$C$334+1+$B1610,0,IF(H1554<'1 Données d''entrée'!$C$333+'1 Données d''entrée'!$C$334+1+$B1610,($F1604/'1 Données d''entrée'!$C$333),0))","v":0},{"$f":"IF(I1554<'1 Données d''entrée'!$C$334+1+$B1610,0,IF(I1554<'1 Données d''entrée'!$C$333+'1 Données d''entrée'!$C$334+1+$B1610,($F1604/'1 Données d''entrée'!$C$333),0))","v":0},{"$f":"IF(J1554<'1 Données d''entrée'!$C$334+1+$B1610,0,IF(J1554<'1 Données d''entrée'!$C$333+'1 Données d''entrée'!$C$334+1+$B1610,($F1604/'1 Données d''entrée'!$C$333),0))","v":0},{"$f":"IF(K1554<'1 Données d''entrée'!$C$334+1+$B1610,0,IF(K1554<'1 Données d''entrée'!$C$333+'1 Données d''entrée'!$C$334+1+$B1610,($F1604/'1 Données d''entrée'!$C$333),0))","v":0},{"$f":"IF(L1554<'1 Données d''entrée'!$C$334+1+$B1610,0,IF(L1554<'1 Données d''entrée'!$C$333+'1 Données d''entrée'!$C$334+1+$B1610,($F1604/'1 Données d''entrée'!$C$333),0))","v":0},{"$f":"IF(M1554<'1 Données d''entrée'!$C$334+1+$B1610,0,IF(M1554<'1 Données d''entrée'!$C$333+'1 Données d''entrée'!$C$334+1+$B1610,($F1604/'1 Données d''entrée'!$C$333),0))","v":0},{"$f":"IF(N1554<'1 Données d''entrée'!$C$334+1+$B1610,0,IF(N1554<'1 Données d''entrée'!$C$333+'1 Données d''entrée'!$C$334+1+$B1610,($F1604/'1 Données d''entrée'!$C$333),0))","v":0},{"$f":"IF(O1554<'1 Données d''entrée'!$C$334+1+$B1610,0,IF(O1554<'1 Données d''entrée'!$C$333+'1 Données d''entrée'!$C$334+1+$B1610,($F1604/'1 Données d''entrée'!$C$333),0))","v":0},{"$f":"IF(P1554<'1 Données d''entrée'!$C$334+1+$B1610,0,IF(P1554<'1 Données d''entrée'!$C$333+'1 Données d''entrée'!$C$334+1+$B1610,($F1604/'1 Données d''entrée'!$C$333),0))","v":0},{"$f":"IF(Q1554<'1 Données d''entrée'!$C$334+1+$B1610,0,IF(Q1554<'1 Données d''entrée'!$C$333+'1 Données d''entrée'!$C$334+1+$B1610,($F1604/'1 Données d''entrée'!$C$333),0))","v":0},{"$f":"IF(R1554<'1 Données d''entrée'!$C$334+1+$B1610,0,IF(R1554<'1 Données d''entrée'!$C$333+'1 Données d''entrée'!$C$334+1+$B1610,($F1604/'1 Données d''entrée'!$C$333),0))","v":0},{"$f":"IF(S1554<'1 Données d''entrée'!$C$334+1+$B1610,0,IF(S1554<'1 Données d''entrée'!$C$333+'1 Données d''entrée'!$C$334+1+$B1610,($F1604/'1 Données d''entrée'!$C$333),0))","v":0},{"$f":"IF(T1554<'1 Données d''entrée'!$C$334+1+$B1610,0,IF(T1554<'1 Données d''entrée'!$C$333+'1 Données d''entrée'!$C$334+1+$B1610,($F1604/'1 Données d''entrée'!$C$333),0))","v":0},{"$f":"IF(U1554<'1 Données d''entrée'!$C$334+1+$B1610,0,IF(U1554<'1 Données d''entrée'!$C$333+'1 Données d''entrée'!$C$334+1+$B1610,($F1604/'1 Données d''entrée'!$C$333),0))","v":0},{"$f":"IF(V1554<'1 Données d''entrée'!$C$334+1+$B1610,0,IF(V1554<'1 Données d''entrée'!$C$333+'1 Données d''entrée'!$C$334+1+$B1610,($F1604/'1 Données d''entrée'!$C$333),0))","v":0}]
[null,5,{"$f":"IF(C1554<'1 Données d''entrée'!$C$334+1+$B1611,0,IF(C1554<'1 Données d''entrée'!$C$333+'1 Données d''entrée'!$C$334+1+$B1611,($G1604/'1 Données d''entrée'!$C$333),0))","v":0},{"$f":"IF(D1554<'1 Données d''entrée'!$C$334+1+$B1611,0,IF(D1554<'1 Données d''entrée'!$C$333+'1 Données d''entrée'!$C$334+1+$B1611,($G1604/'1 Données d''entrée'!$C$333),0))","v":0},{"$f":"IF(E1554<'1 Données d''entrée'!$C$334+1+$B1611,0,IF(E1554<'1 Données d''entrée'!$C$333+'1 Données d''entrée'!$C$334+1+$B1611,($G1604/'1 Données d''entrée'!$C$333),0))","v":0},{"$f":"IF(F1554<'1 Données d''entrée'!$C$334+1+$B1611,0,IF(F1554<'1 Données d''entrée'!$C$333+'1 Données d''entrée'!$C$334+1+$B1611,($G1604/'1 Données d''entrée'!$C$333),0))","v":0},{"$f":"IF(G1554<'1 Données d''entrée'!$C$334+1+$B1611,0,IF(G1554<'1 Données d''entrée'!$C$333+'1 Données d''entrée'!$C$334+1+$B1611,($G1604/'1 Données d''entrée'!$C$333),0))","v":0},{"$f":"IF(H1554<'1 Données d''entrée'!$C$334+1+$B1611,0,IF(H1554<'1 Données d''entrée'!$C$333+'1 Données d''entrée'!$C$334+1+$B1611,($G1604/'1 Données d''entrée'!$C$333),0))","v":0},{"$f":"IF(I1554<'1 Données d''entrée'!$C$334+1+$B1611,0,IF(I1554<'1 Données d''entrée'!$C$333+'1 Données d''entrée'!$C$334+1+$B1611,($G1604/'1 Données d''entrée'!$C$333),0))","v":0},{"$f":"IF(J1554<'1 Données d''entrée'!$C$334+1+$B1611,0,IF(J1554<'1 Données d''entrée'!$C$333+'1 Données d''entrée'!$C$334+1+$B1611,($G1604/'1 Données d''entrée'!$C$333),0))","v":0},{"$f":"IF(K1554<'1 Données d''entrée'!$C$334+1+$B1611,0,IF(K1554<'1 Données d''entrée'!$C$333+'1 Données d''entrée'!$C$334+1+$B1611,($G1604/'1 Données d''entrée'!$C$333),0))","v":0},{"$f":"IF(L1554<'1 Données d''entrée'!$C$334+1+$B1611,0,IF(L1554<'1 Données d''entrée'!$C$333+'1 Données d''entrée'!$C$334+1+$B1611,($G1604/'1 Données d''entrée'!$C$333),0))","v":0},{"$f":"IF(M1554<'1 Données d''entrée'!$C$334+1+$B1611,0,IF(M1554<'1 Données d''entrée'!$C$333+'1 Données d''entrée'!$C$334+1+$B1611,($G1604/'1 Données d''entrée'!$C$333),0))","v":0},{"$f":"IF(N1554<'1 Données d''entrée'!$C$334+1+$B1611,0,IF(N1554<'1 Données d''entrée'!$C$333+'1 Données d''entrée'!$C$334+1+$B1611,($G1604/'1 Données d''entrée'!$C$333),0))","v":0},{"$f":"IF(O1554<'1 Données d''entrée'!$C$334+1+$B1611,0,IF(O1554<'1 Données d''entrée'!$C$333+'1 Données d''entrée'!$C$334+1+$B1611,($G1604/'1 Données d''entrée'!$C$333),0))","v":0},{"$f":"IF(P1554<'1 Données d''entrée'!$C$334+1+$B1611,0,IF(P1554<'1 Données d''entrée'!$C$333+'1 Données d''entrée'!$C$334+1+$B1611,($G1604/'1 Données d''entrée'!$C$333),0))","v":0},{"$f":"IF(Q1554<'1 Données d''entrée'!$C$334+1+$B1611,0,IF(Q1554<'1 Données d''entrée'!$C$333+'1 Données d''entrée'!$C$334+1+$B1611,($G1604/'1 Données d''entrée'!$C$333),0))","v":0},{"$f":"IF(R1554<'1 Données d''entrée'!$C$334+1+$B1611,0,IF(R1554<'1 Données d''entrée'!$C$333+'1 Données d''entrée'!$C$334+1+$B1611,($G1604/'1 Données d''entrée'!$C$333),0))","v":0},{"$f":"IF(S1554<'1 Données d''entrée'!$C$334+1+$B1611,0,IF(S1554<'1 Données d''entrée'!$C$333+'1 Données d''entrée'!$C$334+1+$B1611,($G1604/'1 Données d''entrée'!$C$333),0))","v":0},{"$f":"IF(T1554<'1 Données d''entrée'!$C$334+1+$B1611,0,IF(T1554<'1 Données d''entrée'!$C$333+'1 Données d''entrée'!$C$334+1+$B1611,($G1604/'1 Données d''entrée'!$C$333),0))","v":0},{"$f":"IF(U1554<'1 Données d''entrée'!$C$334+1+$B1611,0,IF(U1554<'1 Données d''entrée'!$C$333+'1 Données d''entrée'!$C$334+1+$B1611,($G1604/'1 Données d''entrée'!$C$333),0))","v":0},{"$f":"IF(V1554<'1 Données d''entrée'!$C$334+1+$B1611,0,IF(V1554<'1 Données d''entrée'!$C$333+'1 Données d''entrée'!$C$334+1+$B1611,($G1604/'1 Données d''entrée'!$C$333),0))","v":0}]
[null,6,{"$f":"IF(C1554<'1 Données d''entrée'!$C$334+1+$B1612,0,IF(C1554<'1 Données d''entrée'!$C$333+'1 Données d''entrée'!$C$334+1+$B1612,($H1604/'1 Données d''entrée'!$C$333),0))","v":0},{"$f":"IF(D1554<'1 Données d''entrée'!$C$334+1+$B1612,0,IF(D1554<'1 Données d''entrée'!$C$333+'1 Données d''entrée'!$C$334+1+$B1612,($H1604/'1 Données d''entrée'!$C$333),0))","v":0},{"$f":"IF(E1554<'1 Données d''entrée'!$C$334+1+$B1612,0,IF(E1554<'1 Données d''entrée'!$C$333+'1 Données d''entrée'!$C$334+1+$B1612,($H1604/'1 Données d''entrée'!$C$333),0))","v":0},{"$f":"IF(F1554<'1 Données d''entrée'!$C$334+1+$B1612,0,IF(F1554<'1 Données d''entrée'!$C$333+'1 Données d''entrée'!$C$334+1+$B1612,($H1604/'1 Données d''entrée'!$C$333),0))","v":0},{"$f":"IF(G1554<'1 Données d''entrée'!$C$334+1+$B1612,0,IF(G1554<'1 Données d''entrée'!$C$333+'1 Données d''entrée'!$C$334+1+$B1612,($H1604/'1 Données d''entrée'!$C$333),0))","v":0},{"$f":"IF(H1554<'1 Données d''entrée'!$C$334+1+$B1612,0,IF(H1554<'1 Données d''entrée'!$C$333+'1 Données d''entrée'!$C$334+1+$B1612,($H1604/'1 Données d''entrée'!$C$333),0))","v":0},{"$f":"IF(I1554<'1 Données d''entrée'!$C$334+1+$B1612,0,IF(I1554<'1 Données d''entrée'!$C$333+'1 Données d''entrée'!$C$334+1+$B1612,($H1604/'1 Données d''entrée'!$C$333),0))","v":0},{"$f":"IF(J1554<'1 Données d''entrée'!$C$334+1+$B1612,0,IF(J1554<'1 Données d''entrée'!$C$333+'1 Données d''entrée'!$C$334+1+$B1612,($H1604/'1 Données d''entrée'!$C$333),0))","v":0},{"$f":"IF(K1554<'1 Données d''entrée'!$C$334+1+$B1612,0,IF(K1554<'1 Données d''entrée'!$C$333+'1 Données d''entrée'!$C$334+1+$B1612,($H1604/'1 Données d''entrée'!$C$333),0))","v":0},{"$f":"IF(L1554<'1 Données d''entrée'!$C$334+1+$B1612,0,IF(L1554<'1 Données d''entrée'!$C$333+'1 Données d''entrée'!$C$334+1+$B1612,($H1604/'1 Données d''entrée'!$C$333),0))","v":0},{"$f":"IF(M1554<'1 Données d''entrée'!$C$334+1+$B1612,0,IF(M1554<'1 Données d''entrée'!$C$333+'1 Données d''entrée'!$C$334+1+$B1612,($H1604/'1 Données d''entrée'!$C$333),0))","v":0},{"$f":"IF(N1554<'1 Données d''entrée'!$C$334+1+$B1612,0,IF(N1554<'1 Données d''entrée'!$C$333+'1 Données d''entrée'!$C$334+1+$B1612,($H1604/'1 Données d''entrée'!$C$333),0))","v":0},{"$f":"IF(O1554<'1 Données d''entrée'!$C$334+1+$B1612,0,IF(O1554<'1 Données d''entrée'!$C$333+'1 Données d''entrée'!$C$334+1+$B1612,($H1604/'1 Données d''entrée'!$C$333),0))","v":0},{"$f":"IF(P1554<'1 Données d''entrée'!$C$334+1+$B1612,0,IF(P1554<'1 Données d''entrée'!$C$333+'1 Données d''entrée'!$C$334+1+$B1612,($H1604/'1 Données d''entrée'!$C$333),0))","v":0},{"$f":"IF(Q1554<'1 Données d''entrée'!$C$334+1+$B1612,0,IF(Q1554<'1 Données d''entrée'!$C$333+'1 Données d''entrée'!$C$334+1+$B1612,($H1604/'1 Données d''entrée'!$C$333),0))","v":0},{"$f":"IF(R1554<'1 Données d''entrée'!$C$334+1+$B1612,0,IF(R1554<'1 Données d''entrée'!$C$333+'1 Données d''entrée'!$C$334+1+$B1612,($H1604/'1 Données d''entrée'!$C$333),0))","v":0},{"$f":"IF(S1554<'1 Données d''entrée'!$C$334+1+$B1612,0,IF(S1554<'1 Données d''entrée'!$C$333+'1 Données d''entrée'!$C$334+1+$B1612,($H1604/'1 Données d''entrée'!$C$333),0))","v":0},{"$f":"IF(T1554<'1 Données d''entrée'!$C$334+1+$B1612,0,IF(T1554<'1 Données d''entrée'!$C$333+'1 Données d''entrée'!$C$334+1+$B1612,($H1604/'1 Données d''entrée'!$C$333),0))","v":0},{"$f":"IF(U1554<'1 Données d''entrée'!$C$334+1+$B1612,0,IF(U1554<'1 Données d''entrée'!$C$333+'1 Données d''entrée'!$C$334+1+$B1612,($H1604/'1 Données d''entrée'!$C$333),0))","v":0},{"$f":"IF(V1554<'1 Données d''entrée'!$C$334+1+$B1612,0,IF(V1554<'1 Données d''entrée'!$C$333+'1 Données d''entrée'!$C$334+1+$B1612,($H1604/'1 Données d''entrée'!$C$333),0))","v":0}]
[null,7,{"$f":"IF(C1554<'1 Données d''entrée'!$C$334+1+$B1613,0,IF(C1554<'1 Données d''entrée'!$C$333+'1 Données d''entrée'!$C$334+1+$B1613,($I1604/'1 Données d''entrée'!$C$333),0))","v":0},{"$f":"IF(D1554<'1 Données d''entrée'!$C$334+1+$B1613,0,IF(D1554<'1 Données d''entrée'!$C$333+'1 Données d''entrée'!$C$334+1+$B1613,($I1604/'1 Données d''entrée'!$C$333),0))","v":0},{"$f":"IF(E1554<'1 Données d''entrée'!$C$334+1+$B1613,0,IF(E1554<'1 Données d''entrée'!$C$333+'1 Données d''entrée'!$C$334+1+$B1613,($I1604/'1 Données d''entrée'!$C$333),0))","v":0},{"$f":"IF(F1554<'1 Données d''entrée'!$C$334+1+$B1613,0,IF(F1554<'1 Données d''entrée'!$C$333+'1 Données d''entrée'!$C$334+1+$B1613,($I1604/'1 Données d''entrée'!$C$333),0))","v":0},{"$f":"IF(G1554<'1 Données d''entrée'!$C$334+1+$B1613,0,IF(G1554<'1 Données d''entrée'!$C$333+'1 Données d''entrée'!$C$334+1+$B1613,($I1604/'1 Données d''entrée'!$C$333),0))","v":0},{"$f":"IF(H1554<'1 Données d''entrée'!$C$334+1+$B1613,0,IF(H1554<'1 Données d''entrée'!$C$333+'1 Données d''entrée'!$C$334+1+$B1613,($I1604/'1 Données d''entrée'!$C$333),0))","v":0},{"$f":"IF(I1554<'1 Données d''entrée'!$C$334+1+$B1613,0,IF(I1554<'1 Données d''entrée'!$C$333+'1 Données d''entrée'!$C$334+1+$B1613,($I1604/'1 Données d''entrée'!$C$333),0))","v":0},{"$f":"IF(J1554<'1 Données d''entrée'!$C$334+1+$B1613,0,IF(J1554<'1 Données d''entrée'!$C$333+'1 Données d''entrée'!$C$334+1+$B1613,($I1604/'1 Données d''entrée'!$C$333),0))","v":0},{"$f":"IF(K1554<'1 Données d''entrée'!$C$334+1+$B1613,0,IF(K1554<'1 Données d''entrée'!$C$333+'1 Données d''entrée'!$C$334+1+$B1613,($I1604/'1 Données d''entrée'!$C$333),0))","v":0},{"$f":"IF(L1554<'1 Données d''entrée'!$C$334+1+$B1613,0,IF(L1554<'1 Données d''entrée'!$C$333+'1 Données d''entrée'!$C$334+1+$B1613,($I1604/'1 Données d''entrée'!$C$333),0))","v":0},{"$f":"IF(M1554<'1 Données d''entrée'!$C$334+1+$B1613,0,IF(M1554<'1 Données d''entrée'!$C$333+'1 Données d''entrée'!$C$334+1+$B1613,($I1604/'1 Données d''entrée'!$C$333),0))","v":0},{"$f":"IF(N1554<'1 Données d''entrée'!$C$334+1+$B1613,0,IF(N1554<'1 Données d''entrée'!$C$333+'1 Données d''entrée'!$C$334+1+$B1613,($I1604/'1 Données d''entrée'!$C$333),0))","v":0},{"$f":"IF(O1554<'1 Données d''entrée'!$C$334+1+$B1613,0,IF(O1554<'1 Données d''entrée'!$C$333+'1 Données d''entrée'!$C$334+1+$B1613,($I1604/'1 Données d''entrée'!$C$333),0))","v":0},{"$f":"IF(P1554<'1 Données d''entrée'!$C$334+1+$B1613,0,IF(P1554<'1 Données d''entrée'!$C$333+'1 Données d''entrée'!$C$334+1+$B1613,($I1604/'1 Données d''entrée'!$C$333),0))","v":0},{"$f":"IF(Q1554<'1 Données d''entrée'!$C$334+1+$B1613,0,IF(Q1554<'1 Données d''entrée'!$C$333+'1 Données d''entrée'!$C$334+1+$B1613,($I1604/'1 Données d''entrée'!$C$333),0))","v":0},{"$f":"IF(R1554<'1 Données d''entrée'!$C$334+1+$B1613,0,IF(R1554<'1 Données d''entrée'!$C$333+'1 Données d''entrée'!$C$334+1+$B1613,($I1604/'1 Données d''entrée'!$C$333),0))","v":0},{"$f":"IF(S1554<'1 Données d''entrée'!$C$334+1+$B1613,0,IF(S1554<'1 Données d''entrée'!$C$333+'1 Données d''entrée'!$C$334+1+$B1613,($I1604/'1 Données d''entrée'!$C$333),0))","v":0},{"$f":"IF(T1554<'1 Données d''entrée'!$C$334+1+$B1613,0,IF(T1554<'1 Données d''entrée'!$C$333+'1 Données d''entrée'!$C$334+1+$B1613,($I1604/'1 Données d''entrée'!$C$333),0))","v":0},{"$f":"IF(U1554<'1 Données d''entrée'!$C$334+1+$B1613,0,IF(U1554<'1 Données d''entrée'!$C$333+'1 Données d''entrée'!$C$334+1+$B1613,($I1604/'1 Données d''entrée'!$C$333),0))","v":0},{"$f":"IF(V1554<'1 Données d''entrée'!$C$334+1+$B1613,0,IF(V1554<'1 Données d''entrée'!$C$333+'1 Données d''entrée'!$C$334+1+$B1613,($I1604/'1 Données d''entrée'!$C$333),0))","v":0}]
[null,8,{"$f":"IF(C1554<'1 Données d''entrée'!$C$334+1+$B1614,0,IF(C1554<'1 Données d''entrée'!$C$333+'1 Données d''entrée'!$C$334+1+$B1614,($J1604/'1 Données d''entrée'!$C$333),0))","v":0},{"$f":"IF(D1554<'1 Données d''entrée'!$C$334+1+$B1614,0,IF(D1554<'1 Données d''entrée'!$C$333+'1 Données d''entrée'!$C$334+1+$B1614,($J1604/'1 Données d''entrée'!$C$333),0))","v":0},{"$f":"IF(E1554<'1 Données d''entrée'!$C$334+1+$B1614,0,IF(E1554<'1 Données d''entrée'!$C$333+'1 Données d''entrée'!$C$334+1+$B1614,($J1604/'1 Données d''entrée'!$C$333),0))","v":0},{"$f":"IF(F1554<'1 Données d''entrée'!$C$334+1+$B1614,0,IF(F1554<'1 Données d''entrée'!$C$333+'1 Données d''entrée'!$C$334+1+$B1614,($J1604/'1 Données d''entrée'!$C$333),0))","v":0},{"$f":"IF(G1554<'1 Données d''entrée'!$C$334+1+$B1614,0,IF(G1554<'1 Données d''entrée'!$C$333+'1 Données d''entrée'!$C$334+1+$B1614,($J1604/'1 Données d''entrée'!$C$333),0))","v":0},{"$f":"IF(H1554<'1 Données d''entrée'!$C$334+1+$B1614,0,IF(H1554<'1 Données d''entrée'!$C$333+'1 Données d''entrée'!$C$334+1+$B1614,($J1604/'1 Données d''entrée'!$C$333),0))","v":0},{"$f":"IF(I1554<'1 Données d''entrée'!$C$334+1+$B1614,0,IF(I1554<'1 Données d''entrée'!$C$333+'1 Données d''entrée'!$C$334+1+$B1614,($J1604/'1 Données d''entrée'!$C$333),0))","v":0},{"$f":"IF(J1554<'1 Données d''entrée'!$C$334+1+$B1614,0,IF(J1554<'1 Données d''entrée'!$C$333+'1 Données d''entrée'!$C$334+1+$B1614,($J1604/'1 Données d''entrée'!$C$333),0))","v":0},{"$f":"IF(K1554<'1 Données d''entrée'!$C$334+1+$B1614,0,IF(K1554<'1 Données d''entrée'!$C$333+'1 Données d''entrée'!$C$334+1+$B1614,($J1604/'1 Données d''entrée'!$C$333),0))","v":0},{"$f":"IF(L1554<'1 Données d''entrée'!$C$334+1+$B1614,0,IF(L1554<'1 Données d''entrée'!$C$333+'1 Données d''entrée'!$C$334+1+$B1614,($J1604/'1 Données d''entrée'!$C$333),0))","v":0},{"$f":"IF(M1554<'1 Données d''entrée'!$C$334+1+$B1614,0,IF(M1554<'1 Données d''entrée'!$C$333+'1 Données d''entrée'!$C$334+1+$B1614,($J1604/'1 Données d''entrée'!$C$333),0))","v":0},{"$f":"IF(N1554<'1 Données d''entrée'!$C$334+1+$B1614,0,IF(N1554<'1 Données d''entrée'!$C$333+'1 Données d''entrée'!$C$334+1+$B1614,($J1604/'1 Données d''entrée'!$C$333),0))","v":0},{"$f":"IF(O1554<'1 Données d''entrée'!$C$334+1+$B1614,0,IF(O1554<'1 Données d''entrée'!$C$333+'1 Données d''entrée'!$C$334+1+$B1614,($J1604/'1 Données d''entrée'!$C$333),0))","v":0},{"$f":"IF(P1554<'1 Données d''entrée'!$C$334+1+$B1614,0,IF(P1554<'1 Données d''entrée'!$C$333+'1 Données d''entrée'!$C$334+1+$B1614,($J1604/'1 Données d''entrée'!$C$333),0))","v":0},{"$f":"IF(Q1554<'1 Données d''entrée'!$C$334+1+$B1614,0,IF(Q1554<'1 Données d''entrée'!$C$333+'1 Données d''entrée'!$C$334+1+$B1614,($J1604/'1 Données d''entrée'!$C$333),0))","v":0},{"$f":"IF(R1554<'1 Données d''entrée'!$C$334+1+$B1614,0,IF(R1554<'1 Données d''entrée'!$C$333+'1 Données d''entrée'!$C$334+1+$B1614,($J1604/'1 Données d''entrée'!$C$333),0))","v":0},{"$f":"IF(S1554<'1 Données d''entrée'!$C$334+1+$B1614,0,IF(S1554<'1 Données d''entrée'!$C$333+'1 Données d''entrée'!$C$334+1+$B1614,($J1604/'1 Données d''entrée'!$C$333),0))","v":0},{"$f":"IF(T1554<'1 Données d''entrée'!$C$334+1+$B1614,0,IF(T1554<'1 Données d''entrée'!$C$333+'1 Données d''entrée'!$C$334+1+$B1614,($J1604/'1 Données d''entrée'!$C$333),0))","v":0},{"$f":"IF(U1554<'1 Données d''entrée'!$C$334+1+$B1614,0,IF(U1554<'1 Données d''entrée'!$C$333+'1 Données d''entrée'!$C$334+1+$B1614,($J1604/'1 Données d''entrée'!$C$333),0))","v":0},{"$f":"IF(V1554<'1 Données d''entrée'!$C$334+1+$B1614,0,IF(V1554<'1 Données d''entrée'!$C$333+'1 Données d''entrée'!$C$334+1+$B1614,($J1604/'1 Données d''entrée'!$C$333),0))","v":0}]
[null,9,{"$f":"IF(C1554<'1 Données d''entrée'!$C$334+1+$B1615,0,IF(C1554<'1 Données d''entrée'!$C$333+'1 Données d''entrée'!$C$334+1+$B1615,($K1604/'1 Données d''entrée'!$C$333),0))","v":0},{"$f":"IF(D1554<'1 Données d''entrée'!$C$334+1+$B1615,0,IF(D1554<'1 Données d''entrée'!$C$333+'1 Données d''entrée'!$C$334+1+$B1615,($K1604/'1 Données d''entrée'!$C$333),0))","v":0},{"$f":"IF(E1554<'1 Données d''entrée'!$C$334+1+$B1615,0,IF(E1554<'1 Données d''entrée'!$C$333+'1 Données d''entrée'!$C$334+1+$B1615,($K1604/'1 Données d''entrée'!$C$333),0))","v":0},{"$f":"IF(F1554<'1 Données d''entrée'!$C$334+1+$B1615,0,IF(F1554<'1 Données d''entrée'!$C$333+'1 Données d''entrée'!$C$334+1+$B1615,($K1604/'1 Données d''entrée'!$C$333),0))","v":0},{"$f":"IF(G1554<'1 Données d''entrée'!$C$334+1+$B1615,0,IF(G1554<'1 Données d''entrée'!$C$333+'1 Données d''entrée'!$C$334+1+$B1615,($K1604/'1 Données d''entrée'!$C$333),0))","v":0},{"$f":"IF(H1554<'1 Données d''entrée'!$C$334+1+$B1615,0,IF(H1554<'1 Données d''entrée'!$C$333+'1 Données d''entrée'!$C$334+1+$B1615,($K1604/'1 Données d''entrée'!$C$333),0))","v":0},{"$f":"IF(I1554<'1 Données d''entrée'!$C$334+1+$B1615,0,IF(I1554<'1 Données d''entrée'!$C$333+'1 Données d''entrée'!$C$334+1+$B1615,($K1604/'1 Données d''entrée'!$C$333),0))","v":0},{"$f":"IF(J1554<'1 Données d''entrée'!$C$334+1+$B1615,0,IF(J1554<'1 Données d''entrée'!$C$333+'1 Données d''entrée'!$C$334+1+$B1615,($K1604/'1 Données d''entrée'!$C$333),0))","v":0},{"$f":"IF(K1554<'1 Données d''entrée'!$C$334+1+$B1615,0,IF(K1554<'1 Données d''entrée'!$C$333+'1 Données d''entrée'!$C$334+1+$B1615,($K1604/'1 Données d''entrée'!$C$333),0))","v":0},{"$f":"IF(L1554<'1 Données d''entrée'!$C$334+1+$B1615,0,IF(L1554<'1 Données d''entrée'!$C$333+'1 Données d''entrée'!$C$334+1+$B1615,($K1604/'1 Données d''entrée'!$C$333),0))","v":0},{"$f":"IF(M1554<'1 Données d''entrée'!$C$334+1+$B1615,0,IF(M1554<'1 Données d''entrée'!$C$333+'1 Données d''entrée'!$C$334+1+$B1615,($K1604/'1 Données d''entrée'!$C$333),0))","v":0},{"$f":"IF(N1554<'1 Données d''entrée'!$C$334+1+$B1615,0,IF(N1554<'1 Données d''entrée'!$C$333+'1 Données d''entrée'!$C$334+1+$B1615,($K1604/'1 Données d''entrée'!$C$333),0))","v":0},{"$f":"IF(O1554<'1 Données d''entrée'!$C$334+1+$B1615,0,IF(O1554<'1 Données d''entrée'!$C$333+'1 Données d''entrée'!$C$334+1+$B1615,($K1604/'1 Données d''entrée'!$C$333),0))","v":0},{"$f":"IF(P1554<'1 Données d''entrée'!$C$334+1+$B1615,0,IF(P1554<'1 Données d''entrée'!$C$333+'1 Données d''entrée'!$C$334+1+$B1615,($K1604/'1 Données d''entrée'!$C$333),0))","v":0},{"$f":"IF(Q1554<'1 Données d''entrée'!$C$334+1+$B1615,0,IF(Q1554<'1 Données d''entrée'!$C$333+'1 Données d''entrée'!$C$334+1+$B1615,($K1604/'1 Données d''entrée'!$C$333),0))","v":0},{"$f":"IF(R1554<'1 Données d''entrée'!$C$334+1+$B1615,0,IF(R1554<'1 Données d''entrée'!$C$333+'1 Données d''entrée'!$C$334+1+$B1615,($K1604/'1 Données d''entrée'!$C$333),0))","v":0},{"$f":"IF(S1554<'1 Données d''entrée'!$C$334+1+$B1615,0,IF(S1554<'1 Données d''entrée'!$C$333+'1 Données d''entrée'!$C$334+1+$B1615,($K1604/'1 Données d''entrée'!$C$333),0))","v":0},{"$f":"IF(T1554<'1 Données d''entrée'!$C$334+1+$B1615,0,IF(T1554<'1 Données d''entrée'!$C$333+'1 Données d''entrée'!$C$334+1+$B1615,($K1604/'1 Données d''entrée'!$C$333),0))","v":0},{"$f":"IF(U1554<'1 Données d''entrée'!$C$334+1+$B1615,0,IF(U1554<'1 Données d''entrée'!$C$333+'1 Données d''entrée'!$C$334+1+$B1615,($K1604/'1 Données d''entrée'!$C$333),0))","v":0},{"$f":"IF(V1554<'1 Données d''entrée'!$C$334+1+$B1615,0,IF(V1554<'1 Données d''entrée'!$C$333+'1 Données d''entrée'!$C$334+1+$B1615,($K1604/'1 Données d''entrée'!$C$333),0))","v":0}]
[null,10,{"$f":"IF(C1554<'1 Données d''entrée'!$C$334+1+$B1616,0,IF(C1554<'1 Données d''entrée'!$C$333+'1 Données d''entrée'!$C$334+1+$B1616,($L1604/'1 Données d''entrée'!$C$333),0))","v":0},{"$f":"IF(D1554<'1 Données d''entrée'!$C$334+1+$B1616,0,IF(D1554<'1 Données d''entrée'!$C$333+'1 Données d''entrée'!$C$334+1+$B1616,($L1604/'1 Données d''entrée'!$C$333),0))","v":0},{"$f":"IF(E1554<'1 Données d''entrée'!$C$334+1+$B1616,0,IF(E1554<'1 Données d''entrée'!$C$333+'1 Données d''entrée'!$C$334+1+$B1616,($L1604/'1 Données d''entrée'!$C$333),0))","v":0},{"$f":"IF(F1554<'1 Données d''entrée'!$C$334+1+$B1616,0,IF(F1554<'1 Données d''entrée'!$C$333+'1 Données d''entrée'!$C$334+1+$B1616,($L1604/'1 Données d''entrée'!$C$333),0))","v":0},{"$f":"IF(G1554<'1 Données d''entrée'!$C$334+1+$B1616,0,IF(G1554<'1 Données d''entrée'!$C$333+'1 Données d''entrée'!$C$334+1+$B1616,($L1604/'1 Données d''entrée'!$C$333),0))","v":0},{"$f":"IF(H1554<'1 Données d''entrée'!$C$334+1+$B1616,0,IF(H1554<'1 Données d''entrée'!$C$333+'1 Données d''entrée'!$C$334+1+$B1616,($L1604/'1 Données d''entrée'!$C$333),0))","v":0},{"$f":"IF(I1554<'1 Données d''entrée'!$C$334+1+$B1616,0,IF(I1554<'1 Données d''entrée'!$C$333+'1 Données d''entrée'!$C$334+1+$B1616,($L1604/'1 Données d''entrée'!$C$333),0))","v":0},{"$f":"IF(J1554<'1 Données d''entrée'!$C$334+1+$B1616,0,IF(J1554<'1 Données d''entrée'!$C$333+'1 Données d''entrée'!$C$334+1+$B1616,($L1604/'1 Données d''entrée'!$C$333),0))","v":0},{"$f":"IF(K1554<'1 Données d''entrée'!$C$334+1+$B1616,0,IF(K1554<'1 Données d''entrée'!$C$333+'1 Données d''entrée'!$C$334+1+$B1616,($L1604/'1 Données d''entrée'!$C$333),0))","v":0},{"$f":"IF(L1554<'1 Données d''entrée'!$C$334+1+$B1616,0,IF(L1554<'1 Données d''entrée'!$C$333+'1 Données d''entrée'!$C$334+1+$B1616,($L1604/'1 Données d''entrée'!$C$333),0))","v":0},{"$f":"IF(M1554<'1 Données d''entrée'!$C$334+1+$B1616,0,IF(M1554<'1 Données d''entrée'!$C$333+'1 Données d''entrée'!$C$334+1+$B1616,($L1604/'1 Données d''entrée'!$C$333),0))","v":0},{"$f":"IF(N1554<'1 Données d''entrée'!$C$334+1+$B1616,0,IF(N1554<'1 Données d''entrée'!$C$333+'1 Données d''entrée'!$C$334+1+$B1616,($L1604/'1 Données d''entrée'!$C$333),0))","v":0},{"$f":"IF(O1554<'1 Données d''entrée'!$C$334+1+$B1616,0,IF(O1554<'1 Données d''entrée'!$C$333+'1 Données d''entrée'!$C$334+1+$B1616,($L1604/'1 Données d''entrée'!$C$333),0))","v":0},{"$f":"IF(P1554<'1 Données d''entrée'!$C$334+1+$B1616,0,IF(P1554<'1 Données d''entrée'!$C$333+'1 Données d''entrée'!$C$334+1+$B1616,($L1604/'1 Données d''entrée'!$C$333),0))","v":0},{"$f":"IF(Q1554<'1 Données d''entrée'!$C$334+1+$B1616,0,IF(Q1554<'1 Données d''entrée'!$C$333+'1 Données d''entrée'!$C$334+1+$B1616,($L1604/'1 Données d''entrée'!$C$333),0))","v":0},{"$f":"IF(R1554<'1 Données d''entrée'!$C$334+1+$B1616,0,IF(R1554<'1 Données d''entrée'!$C$333+'1 Données d''entrée'!$C$334+1+$B1616,($L1604/'1 Données d''entrée'!$C$333),0))","v":0},{"$f":"IF(S1554<'1 Données d''entrée'!$C$334+1+$B1616,0,IF(S1554<'1 Données d''entrée'!$C$333+'1 Données d''entrée'!$C$334+1+$B1616,($L1604/'1 Données d''entrée'!$C$333),0))","v":0},{"$f":"IF(T1554<'1 Données d''entrée'!$C$334+1+$B1616,0,IF(T1554<'1 Données d''entrée'!$C$333+'1 Données d''entrée'!$C$334+1+$B1616,($L1604/'1 Données d''entrée'!$C$333),0))","v":0},{"$f":"IF(U1554<'1 Données d''entrée'!$C$334+1+$B1616,0,IF(U1554<'1 Données d''entrée'!$C$333+'1 Données d''entrée'!$C$334+1+$B1616,($L1604/'1 Données d''entrée'!$C$333),0))","v":0},{"$f":"IF(V1554<'1 Données d''entrée'!$C$334+1+$B1616,0,IF(V1554<'1 Données d''entrée'!$C$333+'1 Données d''entrée'!$C$334+1+$B1616,($L1604/'1 Données d''entrée'!$C$333),0))","v":0}]
[null,"Période de prêt nouveau"]
["Paiement d'intérêts",0,0,0,0,0,0,0,0,0,0,0,0,0,0,0,0,0,0,0,0,0]
["Paiement d'intêrets",1,0,{"$f":"IF(C1554<1+$B1606,0,IF(C1554<'1 Données d''entrée'!$C$334+'1 Données d''entrée'!$C$333+1+$B1606,'1 Données d''entrée'!$C$332*($C1604-SUM($C1607:C1607)),0))","v":0},{"$f":"IF(D1554<1+$B1606,0,IF(D1554<'1 Données d''entrée'!$C$334+'1 Données d''entrée'!$C$333+1+$B1606,'1 Données d''entrée'!$C$332*($C1604-SUM($C1607:D1607)),0))","v":0},{"$f":"IF(E1554<1+$B1606,0,IF(E1554<'1 Données d''entrée'!$C$334+'1 Données d''entrée'!$C$333+1+$B1606,'1 Données d''entrée'!$C$332*($C1604-SUM($C1607:E1607)),0))","v":0},{"$f":"IF(F1554<1+$B1606,0,IF(F1554<'1 Données d''entrée'!$C$334+'1 Données d''entrée'!$C$333+1+$B1606,'1 Données d''entrée'!$C$332*($C1604-SUM($C1607:F1607)),0))","v":0},{"$f":"IF(G1554<1+$B1606,0,IF(G1554<'1 Données d''entrée'!$C$334+'1 Données d''entrée'!$C$333+1+$B1606,'1 Données d''entrée'!$C$332*($C1604-SUM($C1607:G1607)),0))","v":0},{"$f":"IF(H1554<1+$B1606,0,IF(H1554<'1 Données d''entrée'!$C$334+'1 Données d''entrée'!$C$333+1+$B1606,'1 Données d''entrée'!$C$332*($C1604-SUM($C1607:H1607)),0))","v":0},{"$f":"IF(I1554<1+$B1606,0,IF(I1554<'1 Données d''entrée'!$C$334+'1 Données d''entrée'!$C$333+1+$B1606,'1 Données d''entrée'!$C$332*($C1604-SUM($C1607:I1607)),0))","v":0},{"$f":"IF(J1554<1+$B1606,0,IF(J1554<'1 Données d''entrée'!$C$334+'1 Données d''entrée'!$C$333+1+$B1606,'1 Données d''entrée'!$C$332*($C1604-SUM($C1607:J1607)),0))","v":0},{"$f":"IF(K1554<1+$B1606,0,IF(K1554<'1 Données d''entrée'!$C$334+'1 Données d''entrée'!$C$333+1+$B1606,'1 Données d''entrée'!$C$332*($C1604-SUM($C1607:K1607)),0))","v":0},{"$f":"IF(L1554<1+$B1606,0,IF(L1554<'1 Données d''entrée'!$C$334+'1 Données d''entrée'!$C$333+1+$B1606,'1 Données d''entrée'!$C$332*($C1604-SUM($C1607:L1607)),0))","v":0},{"$f":"IF(M1554<1+$B1606,0,IF(M1554<'1 Données d''entrée'!$C$334+'1 Données d''entrée'!$C$333+1+$B1606,'1 Données d''entrée'!$C$332*($C1604-SUM($C1607:M1607)),0))","v":0},{"$f":"IF(N1554<1+$B1606,0,IF(N1554<'1 Données d''entrée'!$C$334+'1 Données d''entrée'!$C$333+1+$B1606,'1 Données d''entrée'!$C$332*($C1604-SUM($C1607:N1607)),0))","v":0},{"$f":"IF(O1554<1+$B1606,0,IF(O1554<'1 Données d''entrée'!$C$334+'1 Données d''entrée'!$C$333+1+$B1606,'1 Données d''entrée'!$C$332*($C1604-SUM($C1607:O1607)),0))","v":0},{"$f":"IF(P1554<1+$B1606,0,IF(P1554<'1 Données d''entrée'!$C$334+'1 Données d''entrée'!$C$333+1+$B1606,'1 Données d''entrée'!$C$332*($C1604-SUM($C1607:P1607)),0))","v":0},{"$f":"IF(Q1554<1+$B1606,0,IF(Q1554<'1 Données d''entrée'!$C$334+'1 Données d''entrée'!$C$333+1+$B1606,'1 Données d''entrée'!$C$332*($C1604-SUM($C1607:Q1607)),0))","v":0},{"$f":"IF(R1554<1+$B1606,0,IF(R1554<'1 Données d''entrée'!$C$334+'1 Données d''entrée'!$C$333+1+$B1606,'1 Données d''entrée'!$C$332*($C1604-SUM($C1607:R1607)),0))","v":0},{"$f":"IF(S1554<1+$B1606,0,IF(S1554<'1 Données d''entrée'!$C$334+'1 Données d''entrée'!$C$333+1+$B1606,'1 Données d''entrée'!$C$332*($C1604-SUM($C1607:S1607)),0))","v":0},{"$f":"IF(T1554<1+$B1606,0,IF(T1554<'1 Données d''entrée'!$C$334+'1 Données d''entrée'!$C$333+1+$B1606,'1 Données d''entrée'!$C$332*($C1604-SUM($C1607:T1607)),0))","v":0},{"$f":"IF(U1554<1+$B1606,0,IF(U1554<'1 Données d''entrée'!$C$334+'1 Données d''entrée'!$C$333+1+$B1606,'1 Données d''entrée'!$C$332*($C1604-SUM($C1607:U1607)),0))","v":0}]
["Paiement d'intêrets",2,0,{"$f":"IF(C1554<1+$B1607,0,IF(C1554<'1 Données d''entrée'!$C$334+'1 Données d''entrée'!$C$333+1+$B1607,'1 Données d''entrée'!$C$332*($D1604-SUM($C1608:C1608)),0))","v":0},{"$f":"IF(D1554<1+$B1607,0,IF(D1554<'1 Données d''entrée'!$C$334+'1 Données d''entrée'!$C$333+1+$B1607,'1 Données d''entrée'!$C$332*($D1604-SUM($C1608:D1608)),0))","v":0},{"$f":"IF(E1554<1+$B1607,0,IF(E1554<'1 Données d''entrée'!$C$334+'1 Données d''entrée'!$C$333+1+$B1607,'1 Données d''entrée'!$C$332*($D1604-SUM($C1608:E1608)),0))","v":0},{"$f":"IF(F1554<1+$B1607,0,IF(F1554<'1 Données d''entrée'!$C$334+'1 Données d''entrée'!$C$333+1+$B1607,'1 Données d''entrée'!$C$332*($D1604-SUM($C1608:F1608)),0))","v":0},{"$f":"IF(G1554<1+$B1607,0,IF(G1554<'1 Données d''entrée'!$C$334+'1 Données d''entrée'!$C$333+1+$B1607,'1 Données d''entrée'!$C$332*($D1604-SUM($C1608:G1608)),0))","v":0},{"$f":"IF(H1554<1+$B1607,0,IF(H1554<'1 Données d''entrée'!$C$334+'1 Données d''entrée'!$C$333+1+$B1607,'1 Données d''entrée'!$C$332*($D1604-SUM($C1608:H1608)),0))","v":0},{"$f":"IF(I1554<1+$B1607,0,IF(I1554<'1 Données d''entrée'!$C$334+'1 Données d''entrée'!$C$333+1+$B1607,'1 Données d''entrée'!$C$332*($D1604-SUM($C1608:I1608)),0))","v":0},{"$f":"IF(J1554<1+$B1607,0,IF(J1554<'1 Données d''entrée'!$C$334+'1 Données d''entrée'!$C$333+1+$B1607,'1 Données d''entrée'!$C$332*($D1604-SUM($C1608:J1608)),0))","v":0},{"$f":"IF(K1554<1+$B1607,0,IF(K1554<'1 Données d''entrée'!$C$334+'1 Données d''entrée'!$C$333+1+$B1607,'1 Données d''entrée'!$C$332*($D1604-SUM($C1608:K1608)),0))","v":0},{"$f":"IF(L1554<1+$B1607,0,IF(L1554<'1 Données d''entrée'!$C$334+'1 Données d''entrée'!$C$333+1+$B1607,'1 Données d''entrée'!$C$332*($D1604-SUM($C1608:L1608)),0))","v":0},{"$f":"IF(M1554<1+$B1607,0,IF(M1554<'1 Données d''entrée'!$C$334+'1 Données d''entrée'!$C$333+1+$B1607,'1 Données d''entrée'!$C$332*($D1604-SUM($C1608:M1608)),0))","v":0},{"$f":"IF(N1554<1+$B1607,0,IF(N1554<'1 Données d''entrée'!$C$334+'1 Données d''entrée'!$C$333+1+$B1607,'1 Données d''entrée'!$C$332*($D1604-SUM($C1608:N1608)),0))","v":0},{"$f":"IF(O1554<1+$B1607,0,IF(O1554<'1 Données d''entrée'!$C$334+'1 Données d''entrée'!$C$333+1+$B1607,'1 Données d''entrée'!$C$332*($D1604-SUM($C1608:O1608)),0))","v":0},{"$f":"IF(P1554<1+$B1607,0,IF(P1554<'1 Données d''entrée'!$C$334+'1 Données d''entrée'!$C$333+1+$B1607,'1 Données d''entrée'!$C$332*($D1604-SUM($C1608:P1608)),0))","v":0},{"$f":"IF(Q1554<1+$B1607,0,IF(Q1554<'1 Données d''entrée'!$C$334+'1 Données d''entrée'!$C$333+1+$B1607,'1 Données d''entrée'!$C$332*($D1604-SUM($C1608:Q1608)),0))","v":0},{"$f":"IF(R1554<1+$B1607,0,IF(R1554<'1 Données d''entrée'!$C$334+'1 Données d''entrée'!$C$333+1+$B1607,'1 Données d''entrée'!$C$332*($D1604-SUM($C1608:R1608)),0))","v":0},{"$f":"IF(S1554<1+$B1607,0,IF(S1554<'1 Données d''entrée'!$C$334+'1 Données d''entrée'!$C$333+1+$B1607,'1 Données d''entrée'!$C$332*($D1604-SUM($C1608:S1608)),0))","v":0},{"$f":"IF(T1554<1+$B1607,0,IF(T1554<'1 Données d''entrée'!$C$334+'1 Données d''entrée'!$C$333+1+$B1607,'1 Données d''entrée'!$C$332*($D1604-SUM($C1608:T1608)),0))","v":0},{"$f":"IF(U1554<1+$B1607,0,IF(U1554<'1 Données d''entrée'!$C$334+'1 Données d''entrée'!$C$333+1+$B1607,'1 Données d''entrée'!$C$332*($D1604-SUM($C1608:U1608)),0))","v":0}]
["Paiement d'intêrets",3,0,{"$f":"IF(C1554<1+$B1608,0,IF(C1554<'1 Données d''entrée'!$C$334+'1 Données d''entrée'!$C$333+1+$B1608,'1 Données d''entrée'!$C$332*($E1604-SUM($C1609:C1609)),0))","v":0},{"$f":"IF(D1554<1+$B1608,0,IF(D1554<'1 Données d''entrée'!$C$334+'1 Données d''entrée'!$C$333+1+$B1608,'1 Données d''entrée'!$C$332*($E1604-SUM($C1609:D1609)),0))","v":0},{"$f":"IF(E1554<1+$B1608,0,IF(E1554<'1 Données d''entrée'!$C$334+'1 Données d''entrée'!$C$333+1+$B1608,'1 Données d''entrée'!$C$332*($E1604-SUM($C1609:E1609)),0))","v":0},{"$f":"IF(F1554<1+$B1608,0,IF(F1554<'1 Données d''entrée'!$C$334+'1 Données d''entrée'!$C$333+1+$B1608,'1 Données d''entrée'!$C$332*($E1604-SUM($C1609:F1609)),0))","v":0},{"$f":"IF(G1554<1+$B1608,0,IF(G1554<'1 Données d''entrée'!$C$334+'1 Données d''entrée'!$C$333+1+$B1608,'1 Données d''entrée'!$C$332*($E1604-SUM($C1609:G1609)),0))","v":0},{"$f":"IF(H1554<1+$B1608,0,IF(H1554<'1 Données d''entrée'!$C$334+'1 Données d''entrée'!$C$333+1+$B1608,'1 Données d''entrée'!$C$332*($E1604-SUM($C1609:H1609)),0))","v":0},{"$f":"IF(I1554<1+$B1608,0,IF(I1554<'1 Données d''entrée'!$C$334+'1 Données d''entrée'!$C$333+1+$B1608,'1 Données d''entrée'!$C$332*($E1604-SUM($C1609:I1609)),0))","v":0},{"$f":"IF(J1554<1+$B1608,0,IF(J1554<'1 Données d''entrée'!$C$334+'1 Données d''entrée'!$C$333+1+$B1608,'1 Données d''entrée'!$C$332*($E1604-SUM($C1609:J1609)),0))","v":0},{"$f":"IF(K1554<1+$B1608,0,IF(K1554<'1 Données d''entrée'!$C$334+'1 Données d''entrée'!$C$333+1+$B1608,'1 Données d''entrée'!$C$332*($E1604-SUM($C1609:K1609)),0))","v":0},{"$f":"IF(L1554<1+$B1608,0,IF(L1554<'1 Données d''entrée'!$C$334+'1 Données d''entrée'!$C$333+1+$B1608,'1 Données d''entrée'!$C$332*($E1604-SUM($C1609:L1609)),0))","v":0},{"$f":"IF(M1554<1+$B1608,0,IF(M1554<'1 Données d''entrée'!$C$334+'1 Données d''entrée'!$C$333+1+$B1608,'1 Données d''entrée'!$C$332*($E1604-SUM($C1609:M1609)),0))","v":0},{"$f":"IF(N1554<1+$B1608,0,IF(N1554<'1 Données d''entrée'!$C$334+'1 Données d''entrée'!$C$333+1+$B1608,'1 Données d''entrée'!$C$332*($E1604-SUM($C1609:N1609)),0))","v":0},{"$f":"IF(O1554<1+$B1608,0,IF(O1554<'1 Données d''entrée'!$C$334+'1 Données d''entrée'!$C$333+1+$B1608,'1 Données d''entrée'!$C$332*($E1604-SUM($C1609:O1609)),0))","v":0},{"$f":"IF(P1554<1+$B1608,0,IF(P1554<'1 Données d''entrée'!$C$334+'1 Données d''entrée'!$C$333+1+$B1608,'1 Données d''entrée'!$C$332*($E1604-SUM($C1609:P1609)),0))","v":0},{"$f":"IF(Q1554<1+$B1608,0,IF(Q1554<'1 Données d''entrée'!$C$334+'1 Données d''entrée'!$C$333+1+$B1608,'1 Données d''entrée'!$C$332*($E1604-SUM($C1609:Q1609)),0))","v":0},{"$f":"IF(R1554<1+$B1608,0,IF(R1554<'1 Données d''entrée'!$C$334+'1 Données d''entrée'!$C$333+1+$B1608,'1 Données d''entrée'!$C$332*($E1604-SUM($C1609:R1609)),0))","v":0},{"$f":"IF(S1554<1+$B1608,0,IF(S1554<'1 Données d''entrée'!$C$334+'1 Données d''entrée'!$C$333+1+$B1608,'1 Données d''entrée'!$C$332*($E1604-SUM($C1609:S1609)),0))","v":0},{"$f":"IF(T1554<1+$B1608,0,IF(T1554<'1 Données d''entrée'!$C$334+'1 Données d''entrée'!$C$333+1+$B1608,'1 Données d''entrée'!$C$332*($E1604-SUM($C1609:T1609)),0))","v":0},{"$f":"IF(U1554<1+$B1608,0,IF(U1554<'1 Données d''entrée'!$C$334+'1 Données d''entrée'!$C$333+1+$B1608,'1 Données d''entrée'!$C$332*($E1604-SUM($C1609:U1609)),0))","v":0}]
["Paiement d'intêrets",4,0,{"$f":"IF(C1554<1+$B1609,0,IF(C1554<'1 Données d''entrée'!$C$334+'1 Données d''entrée'!$C$333+1+$B1609,'1 Données d''entrée'!$C$332*($F1604-SUM($C1610:C1610)),0))","v":0},{"$f":"IF(D1554<1+$B1609,0,IF(D1554<'1 Données d''entrée'!$C$334+'1 Données d''entrée'!$C$333+1+$B1609,'1 Données d''entrée'!$C$332*($F1604-SUM($C1610:D1610)),0))","v":0},{"$f":"IF(E1554<1+$B1609,0,IF(E1554<'1 Données d''entrée'!$C$334+'1 Données d''entrée'!$C$333+1+$B1609,'1 Données d''entrée'!$C$332*($F1604-SUM($C1610:E1610)),0))","v":0},{"$f":"IF(F1554<1+$B1609,0,IF(F1554<'1 Données d''entrée'!$C$334+'1 Données d''entrée'!$C$333+1+$B1609,'1 Données d''entrée'!$C$332*($F1604-SUM($C1610:F1610)),0))","v":0},{"$f":"IF(G1554<1+$B1609,0,IF(G1554<'1 Données d''entrée'!$C$334+'1 Données d''entrée'!$C$333+1+$B1609,'1 Données d''entrée'!$C$332*($F1604-SUM($C1610:G1610)),0))","v":0},{"$f":"IF(H1554<1+$B1609,0,IF(H1554<'1 Données d''entrée'!$C$334+'1 Données d''entrée'!$C$333+1+$B1609,'1 Données d''entrée'!$C$332*($F1604-SUM($C1610:H1610)),0))","v":0},{"$f":"IF(I1554<1+$B1609,0,IF(I1554<'1 Données d''entrée'!$C$334+'1 Données d''entrée'!$C$333+1+$B1609,'1 Données d''entrée'!$C$332*($F1604-SUM($C1610:I1610)),0))","v":0},{"$f":"IF(J1554<1+$B1609,0,IF(J1554<'1 Données d''entrée'!$C$334+'1 Données d''entrée'!$C$333+1+$B1609,'1 Données d''entrée'!$C$332*($F1604-SUM($C1610:J1610)),0))","v":0},{"$f":"IF(K1554<1+$B1609,0,IF(K1554<'1 Données d''entrée'!$C$334+'1 Données d''entrée'!$C$333+1+$B1609,'1 Données d''entrée'!$C$332*($F1604-SUM($C1610:K1610)),0))","v":0},{"$f":"IF(L1554<1+$B1609,0,IF(L1554<'1 Données d''entrée'!$C$334+'1 Données d''entrée'!$C$333+1+$B1609,'1 Données d''entrée'!$C$332*($F1604-SUM($C1610:L1610)),0))","v":0},{"$f":"IF(M1554<1+$B1609,0,IF(M1554<'1 Données d''entrée'!$C$334+'1 Données d''entrée'!$C$333+1+$B1609,'1 Données d''entrée'!$C$332*($F1604-SUM($C1610:M1610)),0))","v":0},{"$f":"IF(N1554<1+$B1609,0,IF(N1554<'1 Données d''entrée'!$C$334+'1 Données d''entrée'!$C$333+1+$B1609,'1 Données d''entrée'!$C$332*($F1604-SUM($C1610:N1610)),0))","v":0},{"$f":"IF(O1554<1+$B1609,0,IF(O1554<'1 Données d''entrée'!$C$334+'1 Données d''entrée'!$C$333+1+$B1609,'1 Données d''entrée'!$C$332*($F1604-SUM($C1610:O1610)),0))","v":0},{"$f":"IF(P1554<1+$B1609,0,IF(P1554<'1 Données d''entrée'!$C$334+'1 Données d''entrée'!$C$333+1+$B1609,'1 Données d''entrée'!$C$332*($F1604-SUM($C1610:P1610)),0))","v":0},{"$f":"IF(Q1554<1+$B1609,0,IF(Q1554<'1 Données d''entrée'!$C$334+'1 Données d''entrée'!$C$333+1+$B1609,'1 Données d''entrée'!$C$332*($F1604-SUM($C1610:Q1610)),0))","v":0},{"$f":"IF(R1554<1+$B1609,0,IF(R1554<'1 Données d''entrée'!$C$334+'1 Données d''entrée'!$C$333+1+$B1609,'1 Données d''entrée'!$C$332*($F1604-SUM($C1610:R1610)),0))","v":0},{"$f":"IF(S1554<1+$B1609,0,IF(S1554<'1 Données d''entrée'!$C$334+'1 Données d''entrée'!$C$333+1+$B1609,'1 Données d''entrée'!$C$332*($F1604-SUM($C1610:S1610)),0))","v":0},{"$f":"IF(T1554<1+$B1609,0,IF(T1554<'1 Données d''entrée'!$C$334+'1 Données d''entrée'!$C$333+1+$B1609,'1 Données d''entrée'!$C$332*($F1604-SUM($C1610:T1610)),0))","v":0},{"$f":"IF(U1554<1+$B1609,0,IF(U1554<'1 Données d''entrée'!$C$334+'1 Données d''entrée'!$C$333+1+$B1609,'1 Données d''entrée'!$C$332*($F1604-SUM($C1610:U1610)),0))","v":0}]
["Paiement d'intêrets",5,0,{"$f":"IF(C1554<1+$B1610,0,IF(C1554<'1 Données d''entrée'!$C$334+'1 Données d''entrée'!$C$333+1+$B1610,'1 Données d''entrée'!$C$332*($G1604-SUM($C1611:C1611)),0))","v":0},{"$f":"IF(D1554<1+$B1610,0,IF(D1554<'1 Données d''entrée'!$C$334+'1 Données d''entrée'!$C$333+1+$B1610,'1 Données d''entrée'!$C$332*($G1604-SUM($C1611:D1611)),0))","v":0},{"$f":"IF(E1554<1+$B1610,0,IF(E1554<'1 Données d''entrée'!$C$334+'1 Données d''entrée'!$C$333+1+$B1610,'1 Données d''entrée'!$C$332*($G1604-SUM($C1611:E1611)),0))","v":0},{"$f":"IF(F1554<1+$B1610,0,IF(F1554<'1 Données d''entrée'!$C$334+'1 Données d''entrée'!$C$333+1+$B1610,'1 Données d''entrée'!$C$332*($G1604-SUM($C1611:F1611)),0))","v":0},{"$f":"IF(G1554<1+$B1610,0,IF(G1554<'1 Données d''entrée'!$C$334+'1 Données d''entrée'!$C$333+1+$B1610,'1 Données d''entrée'!$C$332*($G1604-SUM($C1611:G1611)),0))","v":0},{"$f":"IF(H1554<1+$B1610,0,IF(H1554<'1 Données d''entrée'!$C$334+'1 Données d''entrée'!$C$333+1+$B1610,'1 Données d''entrée'!$C$332*($G1604-SUM($C1611:H1611)),0))","v":0},{"$f":"IF(I1554<1+$B1610,0,IF(I1554<'1 Données d''entrée'!$C$334+'1 Données d''entrée'!$C$333+1+$B1610,'1 Données d''entrée'!$C$332*($G1604-SUM($C1611:I1611)),0))","v":0},{"$f":"IF(J1554<1+$B1610,0,IF(J1554<'1 Données d''entrée'!$C$334+'1 Données d''entrée'!$C$333+1+$B1610,'1 Données d''entrée'!$C$332*($G1604-SUM($C1611:J1611)),0))","v":0},{"$f":"IF(K1554<1+$B1610,0,IF(K1554<'1 Données d''entrée'!$C$334+'1 Données d''entrée'!$C$333+1+$B1610,'1 Données d''entrée'!$C$332*($G1604-SUM($C1611:K1611)),0))","v":0},{"$f":"IF(L1554<1+$B1610,0,IF(L1554<'1 Données d''entrée'!$C$334+'1 Données d''entrée'!$C$333+1+$B1610,'1 Données d''entrée'!$C$332*($G1604-SUM($C1611:L1611)),0))","v":0},{"$f":"IF(M1554<1+$B1610,0,IF(M1554<'1 Données d''entrée'!$C$334+'1 Données d''entrée'!$C$333+1+$B1610,'1 Données d''entrée'!$C$332*($G1604-SUM($C1611:M1611)),0))","v":0},{"$f":"IF(N1554<1+$B1610,0,IF(N1554<'1 Données d''entrée'!$C$334+'1 Données d''entrée'!$C$333+1+$B1610,'1 Données d''entrée'!$C$332*($G1604-SUM($C1611:N1611)),0))","v":0},{"$f":"IF(O1554<1+$B1610,0,IF(O1554<'1 Données d''entrée'!$C$334+'1 Données d''entrée'!$C$333+1+$B1610,'1 Données d''entrée'!$C$332*($G1604-SUM($C1611:O1611)),0))","v":0},{"$f":"IF(P1554<1+$B1610,0,IF(P1554<'1 Données d''entrée'!$C$334+'1 Données d''entrée'!$C$333+1+$B1610,'1 Données d''entrée'!$C$332*($G1604-SUM($C1611:P1611)),0))","v":0},{"$f":"IF(Q1554<1+$B1610,0,IF(Q1554<'1 Données d''entrée'!$C$334+'1 Données d''entrée'!$C$333+1+$B1610,'1 Données d''entrée'!$C$332*($G1604-SUM($C1611:Q1611)),0))","v":0},{"$f":"IF(R1554<1+$B1610,0,IF(R1554<'1 Données d''entrée'!$C$334+'1 Données d''entrée'!$C$333+1+$B1610,'1 Données d''entrée'!$C$332*($G1604-SUM($C1611:R1611)),0))","v":0},{"$f":"IF(S1554<1+$B1610,0,IF(S1554<'1 Données d''entrée'!$C$334+'1 Données d''entrée'!$C$333+1+$B1610,'1 Données d''entrée'!$C$332*($G1604-SUM($C1611:S1611)),0))","v":0},{"$f":"IF(T1554<1+$B1610,0,IF(T1554<'1 Données d''entrée'!$C$334+'1 Données d''entrée'!$C$333+1+$B1610,'1 Données d''entrée'!$C$332*($G1604-SUM($C1611:T1611)),0))","v":0},{"$f":"IF(U1554<1+$B1610,0,IF(U1554<'1 Données d''entrée'!$C$334+'1 Données d''entrée'!$C$333+1+$B1610,'1 Données d''entrée'!$C$332*($G1604-SUM($C1611:U1611)),0))","v":0}]
["Paiement d'intêrets",6,0,{"$f":"IF(C1554<1+$B1611,0,IF(C1554<'1 Données d''entrée'!$C$334+'1 Données d''entrée'!$C$333+1+$B1611,'1 Données d''entrée'!$C$332*($H1604-SUM($C1612:C1612)),0))","v":0},{"$f":"IF(D1554<1+$B1611,0,IF(D1554<'1 Données d''entrée'!$C$334+'1 Données d''entrée'!$C$333+1+$B1611,'1 Données d''entrée'!$C$332*($H1604-SUM($C1612:D1612)),0))","v":0},{"$f":"IF(E1554<1+$B1611,0,IF(E1554<'1 Données d''entrée'!$C$334+'1 Données d''entrée'!$C$333+1+$B1611,'1 Données d''entrée'!$C$332*($H1604-SUM($C1612:E1612)),0))","v":0},{"$f":"IF(F1554<1+$B1611,0,IF(F1554<'1 Données d''entrée'!$C$334+'1 Données d''entrée'!$C$333+1+$B1611,'1 Données d''entrée'!$C$332*($H1604-SUM($C1612:F1612)),0))","v":0},{"$f":"IF(G1554<1+$B1611,0,IF(G1554<'1 Données d''entrée'!$C$334+'1 Données d''entrée'!$C$333+1+$B1611,'1 Données d''entrée'!$C$332*($H1604-SUM($C1612:G1612)),0))","v":0},{"$f":"IF(H1554<1+$B1611,0,IF(H1554<'1 Données d''entrée'!$C$334+'1 Données d''entrée'!$C$333+1+$B1611,'1 Données d''entrée'!$C$332*($H1604-SUM($C1612:H1612)),0))","v":0},{"$f":"IF(I1554<1+$B1611,0,IF(I1554<'1 Données d''entrée'!$C$334+'1 Données d''entrée'!$C$333+1+$B1611,'1 Données d''entrée'!$C$332*($H1604-SUM($C1612:I1612)),0))","v":0},{"$f":"IF(J1554<1+$B1611,0,IF(J1554<'1 Données d''entrée'!$C$334+'1 Données d''entrée'!$C$333+1+$B1611,'1 Données d''entrée'!$C$332*($H1604-SUM($C1612:J1612)),0))","v":0},{"$f":"IF(K1554<1+$B1611,0,IF(K1554<'1 Données d''entrée'!$C$334+'1 Données d''entrée'!$C$333+1+$B1611,'1 Données d''entrée'!$C$332*($H1604-SUM($C1612:K1612)),0))","v":0},{"$f":"IF(L1554<1+$B1611,0,IF(L1554<'1 Données d''entrée'!$C$334+'1 Données d''entrée'!$C$333+1+$B1611,'1 Données d''entrée'!$C$332*($H1604-SUM($C1612:L1612)),0))","v":0},{"$f":"IF(M1554<1+$B1611,0,IF(M1554<'1 Données d''entrée'!$C$334+'1 Données d''entrée'!$C$333+1+$B1611,'1 Données d''entrée'!$C$332*($H1604-SUM($C1612:M1612)),0))","v":0},{"$f":"IF(N1554<1+$B1611,0,IF(N1554<'1 Données d''entrée'!$C$334+'1 Données d''entrée'!$C$333+1+$B1611,'1 Données d''entrée'!$C$332*($H1604-SUM($C1612:N1612)),0))","v":0},{"$f":"IF(O1554<1+$B1611,0,IF(O1554<'1 Données d''entrée'!$C$334+'1 Données d''entrée'!$C$333+1+$B1611,'1 Données d''entrée'!$C$332*($H1604-SUM($C1612:O1612)),0))","v":0},{"$f":"IF(P1554<1+$B1611,0,IF(P1554<'1 Données d''entrée'!$C$334+'1 Données d''entrée'!$C$333+1+$B1611,'1 Données d''entrée'!$C$332*($H1604-SUM($C1612:P1612)),0))","v":0},{"$f":"IF(Q1554<1+$B1611,0,IF(Q1554<'1 Données d''entrée'!$C$334+'1 Données d''entrée'!$C$333+1+$B1611,'1 Données d''entrée'!$C$332*($H1604-SUM($C1612:Q1612)),0))","v":0},{"$f":"IF(R1554<1+$B1611,0,IF(R1554<'1 Données d''entrée'!$C$334+'1 Données d''entrée'!$C$333+1+$B1611,'1 Données d''entrée'!$C$332*($H1604-SUM($C1612:R1612)),0))","v":0},{"$f":"IF(S1554<1+$B1611,0,IF(S1554<'1 Données d''entrée'!$C$334+'1 Données d''entrée'!$C$333+1+$B1611,'1 Données d''entrée'!$C$332*($H1604-SUM($C1612:S1612)),0))","v":0},{"$f":"IF(T1554<1+$B1611,0,IF(T1554<'1 Données d''entrée'!$C$334+'1 Données d''entrée'!$C$333+1+$B1611,'1 Données d''entrée'!$C$332*($H1604-SUM($C1612:T1612)),0))","v":0},{"$f":"IF(U1554<1+$B1611,0,IF(U1554<'1 Données d''entrée'!$C$334+'1 Données d''entrée'!$C$333+1+$B1611,'1 Données d''entrée'!$C$332*($H1604-SUM($C1612:U1612)),0))","v":0}]
["Paiement d'intêrets",7,0,{"$f":"IF(C1554<1+$B1612,0,IF(C1554<'1 Données d''entrée'!$C$334+'1 Données d''entrée'!$C$333+1+$B1612,'1 Données d''entrée'!$C$332*($I1604-SUM($C1613:C1613)),0))","v":0},{"$f":"IF(D1554<1+$B1612,0,IF(D1554<'1 Données d''entrée'!$C$334+'1 Données d''entrée'!$C$333+1+$B1612,'1 Données d''entrée'!$C$332*($I1604-SUM($C1613:D1613)),0))","v":0},{"$f":"IF(E1554<1+$B1612,0,IF(E1554<'1 Données d''entrée'!$C$334+'1 Données d''entrée'!$C$333+1+$B1612,'1 Données d''entrée'!$C$332*($I1604-SUM($C1613:E1613)),0))","v":0},{"$f":"IF(F1554<1+$B1612,0,IF(F1554<'1 Données d''entrée'!$C$334+'1 Données d''entrée'!$C$333+1+$B1612,'1 Données d''entrée'!$C$332*($I1604-SUM($C1613:F1613)),0))","v":0},{"$f":"IF(G1554<1+$B1612,0,IF(G1554<'1 Données d''entrée'!$C$334+'1 Données d''entrée'!$C$333+1+$B1612,'1 Données d''entrée'!$C$332*($I1604-SUM($C1613:G1613)),0))","v":0},{"$f":"IF(H1554<1+$B1612,0,IF(H1554<'1 Données d''entrée'!$C$334+'1 Données d''entrée'!$C$333+1+$B1612,'1 Données d''entrée'!$C$332*($I1604-SUM($C1613:H1613)),0))","v":0},{"$f":"IF(I1554<1+$B1612,0,IF(I1554<'1 Données d''entrée'!$C$334+'1 Données d''entrée'!$C$333+1+$B1612,'1 Données d''entrée'!$C$332*($I1604-SUM($C1613:I1613)),0))","v":0},{"$f":"IF(J1554<1+$B1612,0,IF(J1554<'1 Données d''entrée'!$C$334+'1 Données d''entrée'!$C$333+1+$B1612,'1 Données d''entrée'!$C$332*($I1604-SUM($C1613:J1613)),0))","v":0},{"$f":"IF(K1554<1+$B1612,0,IF(K1554<'1 Données d''entrée'!$C$334+'1 Données d''entrée'!$C$333+1+$B1612,'1 Données d''entrée'!$C$332*($I1604-SUM($C1613:K1613)),0))","v":0},{"$f":"IF(L1554<1+$B1612,0,IF(L1554<'1 Données d''entrée'!$C$334+'1 Données d''entrée'!$C$333+1+$B1612,'1 Données d''entrée'!$C$332*($I1604-SUM($C1613:L1613)),0))","v":0},{"$f":"IF(M1554<1+$B1612,0,IF(M1554<'1 Données d''entrée'!$C$334+'1 Données d''entrée'!$C$333+1+$B1612,'1 Données d''entrée'!$C$332*($I1604-SUM($C1613:M1613)),0))","v":0},{"$f":"IF(N1554<1+$B1612,0,IF(N1554<'1 Données d''entrée'!$C$334+'1 Données d''entrée'!$C$333+1+$B1612,'1 Données d''entrée'!$C$332*($I1604-SUM($C1613:N1613)),0))","v":0},{"$f":"IF(O1554<1+$B1612,0,IF(O1554<'1 Données d''entrée'!$C$334+'1 Données d''entrée'!$C$333+1+$B1612,'1 Données d''entrée'!$C$332*($I1604-SUM($C1613:O1613)),0))","v":0},{"$f":"IF(P1554<1+$B1612,0,IF(P1554<'1 Données d''entrée'!$C$334+'1 Données d''entrée'!$C$333+1+$B1612,'1 Données d''entrée'!$C$332*($I1604-SUM($C1613:P1613)),0))","v":0},{"$f":"IF(Q1554<1+$B1612,0,IF(Q1554<'1 Données d''entrée'!$C$334+'1 Données d''entrée'!$C$333+1+$B1612,'1 Données d''entrée'!$C$332*($I1604-SUM($C1613:Q1613)),0))","v":0},{"$f":"IF(R1554<1+$B1612,0,IF(R1554<'1 Données d''entrée'!$C$334+'1 Données d''entrée'!$C$333+1+$B1612,'1 Données d''entrée'!$C$332*($I1604-SUM($C1613:R1613)),0))","v":0},{"$f":"IF(S1554<1+$B1612,0,IF(S1554<'1 Données d''entrée'!$C$334+'1 Données d''entrée'!$C$333+1+$B1612,'1 Données d''entrée'!$C$332*($I1604-SUM($C1613:S1613)),0))","v":0},{"$f":"IF(T1554<1+$B1612,0,IF(T1554<'1 Données d''entrée'!$C$334+'1 Données d''entrée'!$C$333+1+$B1612,'1 Données d''entrée'!$C$332*($I1604-SUM($C1613:T1613)),0))","v":0},{"$f":"IF(U1554<1+$B1612,0,IF(U1554<'1 Données d''entrée'!$C$334+'1 Données d''entrée'!$C$333+1+$B1612,'1 Données d''entrée'!$C$332*($I1604-SUM($C1613:U1613)),0))","v":0}]
["Paiement d'intêrets",8,0,{"$f":"IF(C1554<1+$B1613,0,IF(C1554<'1 Données d''entrée'!$C$334+'1 Données d''entrée'!$C$333+1+$B1613,'1 Données d''entrée'!$C$332*($J1604-SUM($C1614:C1614)),0))","v":0},{"$f":"IF(D1554<1+$B1613,0,IF(D1554<'1 Données d''entrée'!$C$334+'1 Données d''entrée'!$C$333+1+$B1613,'1 Données d''entrée'!$C$332*($J1604-SUM($C1614:D1614)),0))","v":0},{"$f":"IF(E1554<1+$B1613,0,IF(E1554<'1 Données d''entrée'!$C$334+'1 Données d''entrée'!$C$333+1+$B1613,'1 Données d''entrée'!$C$332*($J1604-SUM($C1614:E1614)),0))","v":0},{"$f":"IF(F1554<1+$B1613,0,IF(F1554<'1 Données d''entrée'!$C$334+'1 Données d''entrée'!$C$333+1+$B1613,'1 Données d''entrée'!$C$332*($J1604-SUM($C1614:F1614)),0))","v":0},{"$f":"IF(G1554<1+$B1613,0,IF(G1554<'1 Données d''entrée'!$C$334+'1 Données d''entrée'!$C$333+1+$B1613,'1 Données d''entrée'!$C$332*($J1604-SUM($C1614:G1614)),0))","v":0},{"$f":"IF(H1554<1+$B1613,0,IF(H1554<'1 Données d''entrée'!$C$334+'1 Données d''entrée'!$C$333+1+$B1613,'1 Données d''entrée'!$C$332*($J1604-SUM($C1614:H1614)),0))","v":0},{"$f":"IF(I1554<1+$B1613,0,IF(I1554<'1 Données d''entrée'!$C$334+'1 Données d''entrée'!$C$333+1+$B1613,'1 Données d''entrée'!$C$332*($J1604-SUM($C1614:I1614)),0))","v":0},{"$f":"IF(J1554<1+$B1613,0,IF(J1554<'1 Données d''entrée'!$C$334+'1 Données d''entrée'!$C$333+1+$B1613,'1 Données d''entrée'!$C$332*($J1604-SUM($C1614:J1614)),0))","v":0},{"$f":"IF(K1554<1+$B1613,0,IF(K1554<'1 Données d''entrée'!$C$334+'1 Données d''entrée'!$C$333+1+$B1613,'1 Données d''entrée'!$C$332*($J1604-SUM($C1614:K1614)),0))","v":0},{"$f":"IF(L1554<1+$B1613,0,IF(L1554<'1 Données d''entrée'!$C$334+'1 Données d''entrée'!$C$333+1+$B1613,'1 Données d''entrée'!$C$332*($J1604-SUM($C1614:L1614)),0))","v":0},{"$f":"IF(M1554<1+$B1613,0,IF(M1554<'1 Données d''entrée'!$C$334+'1 Données d''entrée'!$C$333+1+$B1613,'1 Données d''entrée'!$C$332*($J1604-SUM($C1614:M1614)),0))","v":0},{"$f":"IF(N1554<1+$B1613,0,IF(N1554<'1 Données d''entrée'!$C$334+'1 Données d''entrée'!$C$333+1+$B1613,'1 Données d''entrée'!$C$332*($J1604-SUM($C1614:N1614)),0))","v":0},{"$f":"IF(O1554<1+$B1613,0,IF(O1554<'1 Données d''entrée'!$C$334+'1 Données d''entrée'!$C$333+1+$B1613,'1 Données d''entrée'!$C$332*($J1604-SUM($C1614:O1614)),0))","v":0},{"$f":"IF(P1554<1+$B1613,0,IF(P1554<'1 Données d''entrée'!$C$334+'1 Données d''entrée'!$C$333+1+$B1613,'1 Données d''entrée'!$C$332*($J1604-SUM($C1614:P1614)),0))","v":0},{"$f":"IF(Q1554<1+$B1613,0,IF(Q1554<'1 Données d''entrée'!$C$334+'1 Données d''entrée'!$C$333+1+$B1613,'1 Données d''entrée'!$C$332*($J1604-SUM($C1614:Q1614)),0))","v":0},{"$f":"IF(R1554<1+$B1613,0,IF(R1554<'1 Données d''entrée'!$C$334+'1 Données d''entrée'!$C$333+1+$B1613,'1 Données d''entrée'!$C$332*($J1604-SUM($C1614:R1614)),0))","v":0},{"$f":"IF(S1554<1+$B1613,0,IF(S1554<'1 Données d''entrée'!$C$334+'1 Données d''entrée'!$C$333+1+$B1613,'1 Données d''entrée'!$C$332*($J1604-SUM($C1614:S1614)),0))","v":0},{"$f":"IF(T1554<1+$B1613,0,IF(T1554<'1 Données d''entrée'!$C$334+'1 Données d''entrée'!$C$333+1+$B1613,'1 Données d''entrée'!$C$332*($J1604-SUM($C1614:T1614)),0))","v":0},{"$f":"IF(U1554<1+$B1613,0,IF(U1554<'1 Données d''entrée'!$C$334+'1 Données d''entrée'!$C$333+1+$B1613,'1 Données d''entrée'!$C$332*($J1604-SUM($C1614:U1614)),0))","v":0}]
["Paiement d'intêrets",9,0,{"$f":"IF(C1554<1+$B1614,0,IF(C1554<'1 Données d''entrée'!$C$334+'1 Données d''entrée'!$C$333+1+$B1614,'1 Données d''entrée'!$C$332*($K1604-SUM($C1615:C1615)),0))","v":0},{"$f":"IF(D1554<1+$B1614,0,IF(D1554<'1 Données d''entrée'!$C$334+'1 Données d''entrée'!$C$333+1+$B1614,'1 Données d''entrée'!$C$332*($K1604-SUM($C1615:D1615)),0))","v":0},{"$f":"IF(E1554<1+$B1614,0,IF(E1554<'1 Données d''entrée'!$C$334+'1 Données d''entrée'!$C$333+1+$B1614,'1 Données d''entrée'!$C$332*($K1604-SUM($C1615:E1615)),0))","v":0},{"$f":"IF(F1554<1+$B1614,0,IF(F1554<'1 Données d''entrée'!$C$334+'1 Données d''entrée'!$C$333+1+$B1614,'1 Données d''entrée'!$C$332*($K1604-SUM($C1615:F1615)),0))","v":0},{"$f":"IF(G1554<1+$B1614,0,IF(G1554<'1 Données d''entrée'!$C$334+'1 Données d''entrée'!$C$333+1+$B1614,'1 Données d''entrée'!$C$332*($K1604-SUM($C1615:G1615)),0))","v":0},{"$f":"IF(H1554<1+$B1614,0,IF(H1554<'1 Données d''entrée'!$C$334+'1 Données d''entrée'!$C$333+1+$B1614,'1 Données d''entrée'!$C$332*($K1604-SUM($C1615:H1615)),0))","v":0},{"$f":"IF(I1554<1+$B1614,0,IF(I1554<'1 Données d''entrée'!$C$334+'1 Données d''entrée'!$C$333+1+$B1614,'1 Données d''entrée'!$C$332*($K1604-SUM($C1615:I1615)),0))","v":0},{"$f":"IF(J1554<1+$B1614,0,IF(J1554<'1 Données d''entrée'!$C$334+'1 Données d''entrée'!$C$333+1+$B1614,'1 Données d''entrée'!$C$332*($K1604-SUM($C1615:J1615)),0))","v":0},{"$f":"IF(K1554<1+$B1614,0,IF(K1554<'1 Données d''entrée'!$C$334+'1 Données d''entrée'!$C$333+1+$B1614,'1 Données d''entrée'!$C$332*($K1604-SUM($C1615:K1615)),0))","v":0},{"$f":"IF(L1554<1+$B1614,0,IF(L1554<'1 Données d''entrée'!$C$334+'1 Données d''entrée'!$C$333+1+$B1614,'1 Données d''entrée'!$C$332*($K1604-SUM($C1615:L1615)),0))","v":0},{"$f":"IF(M1554<1+$B1614,0,IF(M1554<'1 Données d''entrée'!$C$334+'1 Données d''entrée'!$C$333+1+$B1614,'1 Données d''entrée'!$C$332*($K1604-SUM($C1615:M1615)),0))","v":0},{"$f":"IF(N1554<1+$B1614,0,IF(N1554<'1 Données d''entrée'!$C$334+'1 Données d''entrée'!$C$333+1+$B1614,'1 Données d''entrée'!$C$332*($K1604-SUM($C1615:N1615)),0))","v":0},{"$f":"IF(O1554<1+$B1614,0,IF(O1554<'1 Données d''entrée'!$C$334+'1 Données d''entrée'!$C$333+1+$B1614,'1 Données d''entrée'!$C$332*($K1604-SUM($C1615:O1615)),0))","v":0},{"$f":"IF(P1554<1+$B1614,0,IF(P1554<'1 Données d''entrée'!$C$334+'1 Données d''entrée'!$C$333+1+$B1614,'1 Données d''entrée'!$C$332*($K1604-SUM($C1615:P1615)),0))","v":0},{"$f":"IF(Q1554<1+$B1614,0,IF(Q1554<'1 Données d''entrée'!$C$334+'1 Données d''entrée'!$C$333+1+$B1614,'1 Données d''entrée'!$C$332*($K1604-SUM($C1615:Q1615)),0))","v":0},{"$f":"IF(R1554<1+$B1614,0,IF(R1554<'1 Données d''entrée'!$C$334+'1 Données d''entrée'!$C$333+1+$B1614,'1 Données d''entrée'!$C$332*($K1604-SUM($C1615:R1615)),0))","v":0},{"$f":"IF(S1554<1+$B1614,0,IF(S1554<'1 Données d''entrée'!$C$334+'1 Données d''entrée'!$C$333+1+$B1614,'1 Données d''entrée'!$C$332*($K1604-SUM($C1615:S1615)),0))","v":0},{"$f":"IF(T1554<1+$B1614,0,IF(T1554<'1 Données d''entrée'!$C$334+'1 Données d''entrée'!$C$333+1+$B1614,'1 Données d''entrée'!$C$332*($K1604-SUM($C1615:T1615)),0))","v":0},{"$f":"IF(U1554<1+$B1614,0,IF(U1554<'1 Données d''entrée'!$C$334+'1 Données d''entrée'!$C$333+1+$B1614,'1 Données d''entrée'!$C$332*($K1604-SUM($C1615:U1615)),0))","v":0}]
["Paiement d'intêrets",10,0,{"$f":"IF(C1554<1+$B1615,0,IF(C1554<'1 Données d''entrée'!$C$334+'1 Données d''entrée'!$C$333+1+$B1615,'1 Données d''entrée'!$C$332*($L1604-SUM($C1616:C1616)),0))","v":0},{"$f":"IF(D1554<1+$B1615,0,IF(D1554<'1 Données d''entrée'!$C$334+'1 Données d''entrée'!$C$333+1+$B1615,'1 Données d''entrée'!$C$332*($L1604-SUM($C1616:D1616)),0))","v":0},{"$f":"IF(E1554<1+$B1615,0,IF(E1554<'1 Données d''entrée'!$C$334+'1 Données d''entrée'!$C$333+1+$B1615,'1 Données d''entrée'!$C$332*($L1604-SUM($C1616:E1616)),0))","v":0},{"$f":"IF(F1554<1+$B1615,0,IF(F1554<'1 Données d''entrée'!$C$334+'1 Données d''entrée'!$C$333+1+$B1615,'1 Données d''entrée'!$C$332*($L1604-SUM($C1616:F1616)),0))","v":0},{"$f":"IF(G1554<1+$B1615,0,IF(G1554<'1 Données d''entrée'!$C$334+'1 Données d''entrée'!$C$333+1+$B1615,'1 Données d''entrée'!$C$332*($L1604-SUM($C1616:G1616)),0))","v":0},{"$f":"IF(H1554<1+$B1615,0,IF(H1554<'1 Données d''entrée'!$C$334+'1 Données d''entrée'!$C$333+1+$B1615,'1 Données d''entrée'!$C$332*($L1604-SUM($C1616:H1616)),0))","v":0},{"$f":"IF(I1554<1+$B1615,0,IF(I1554<'1 Données d''entrée'!$C$334+'1 Données d''entrée'!$C$333+1+$B1615,'1 Données d''entrée'!$C$332*($L1604-SUM($C1616:I1616)),0))","v":0},{"$f":"IF(J1554<1+$B1615,0,IF(J1554<'1 Données d''entrée'!$C$334+'1 Données d''entrée'!$C$333+1+$B1615,'1 Données d''entrée'!$C$332*($L1604-SUM($C1616:J1616)),0))","v":0},{"$f":"IF(K1554<1+$B1615,0,IF(K1554<'1 Données d''entrée'!$C$334+'1 Données d''entrée'!$C$333+1+$B1615,'1 Données d''entrée'!$C$332*($L1604-SUM($C1616:K1616)),0))","v":0},{"$f":"IF(L1554<1+$B1615,0,IF(L1554<'1 Données d''entrée'!$C$334+'1 Données d''entrée'!$C$333+1+$B1615,'1 Données d''entrée'!$C$332*($L1604-SUM($C1616:L1616)),0))","v":0},{"$f":"IF(M1554<1+$B1615,0,IF(M1554<'1 Données d''entrée'!$C$334+'1 Données d''entrée'!$C$333+1+$B1615,'1 Données d''entrée'!$C$332*($L1604-SUM($C1616:M1616)),0))","v":0},{"$f":"IF(N1554<1+$B1615,0,IF(N1554<'1 Données d''entrée'!$C$334+'1 Données d''entrée'!$C$333+1+$B1615,'1 Données d''entrée'!$C$332*($L1604-SUM($C1616:N1616)),0))","v":0},{"$f":"IF(O1554<1+$B1615,0,IF(O1554<'1 Données d''entrée'!$C$334+'1 Données d''entrée'!$C$333+1+$B1615,'1 Données d''entrée'!$C$332*($L1604-SUM($C1616:O1616)),0))","v":0},{"$f":"IF(P1554<1+$B1615,0,IF(P1554<'1 Données d''entrée'!$C$334+'1 Données d''entrée'!$C$333+1+$B1615,'1 Données d''entrée'!$C$332*($L1604-SUM($C1616:P1616)),0))","v":0},{"$f":"IF(Q1554<1+$B1615,0,IF(Q1554<'1 Données d''entrée'!$C$334+'1 Données d''entrée'!$C$333+1+$B1615,'1 Données d''entrée'!$C$332*($L1604-SUM($C1616:Q1616)),0))","v":0},{"$f":"IF(R1554<1+$B1615,0,IF(R1554<'1 Données d''entrée'!$C$334+'1 Données d''entrée'!$C$333+1+$B1615,'1 Données d''entrée'!$C$332*($L1604-SUM($C1616:R1616)),0))","v":0},{"$f":"IF(S1554<1+$B1615,0,IF(S1554<'1 Données d''entrée'!$C$334+'1 Données d''entrée'!$C$333+1+$B1615,'1 Données d''entrée'!$C$332*($L1604-SUM($C1616:S1616)),0))","v":0},{"$f":"IF(T1554<1+$B1615,0,IF(T1554<'1 Données d''entrée'!$C$334+'1 Données d''entrée'!$C$333+1+$B1615,'1 Données d''entrée'!$C$332*($L1604-SUM($C1616:T1616)),0))","v":0},{"$f":"IF(U1554<1+$B1615,0,IF(U1554<'1 Données d''entrée'!$C$334+'1 Données d''entrée'!$C$333+1+$B1615,'1 Données d''entrée'!$C$332*($L1604-SUM($C1616:U1616)),0))","v":0}]
[]
[null,"Période",1,2,3,4,5,6,7,8,9,10,11,12,13,14,15,16,17,18,19,20]
["Prêt bancaire additionnel- Option 2: Remboursement du principal final",{"$f":"'1 Données d''entrée'!$B$343","v":0}]
["Prêt(s) nouveau(x)",null,{"$f":"IF(C1597<0,C1597*(-1)*$B1631+C1597*(-1)*$B1631*'1 Données d''entrée'!$C$338,0)","v":{"$error":"#DIV/0!"}},{"$f":"IF(D1597<0,D1597*(-1)*$B1631+D1597*(-1)*$B1631*'1 Données d''entrée'!$C$338,0)","v":{"$error":"#DIV/0!"}},{"$f":"IF(E1597<0,E1597*(-1)*$B1631+E1597*(-1)*$B1631*'1 Données d''entrée'!$C$338,0)","v":{"$error":"#DIV/0!"}},{"$f":"IF(F1597<0,F1597*(-1)*$B1631+F1597*(-1)*$B1631*'1 Données d''entrée'!$C$338,0)","v":{"$error":"#DIV/0!"}},{"$f":"IF(G1597<0,G1597*(-1)*$B1631+G1597*(-1)*$B1631*'1 Données d''entrée'!$C$338,0)","v":{"$error":"#DIV/0!"}},{"$f":"IF(H1597<0,H1597*(-1)*$B1631+H1597*(-1)*$B1631*'1 Données d''entrée'!$C$338,0)","v":{"$error":"#DIV/0!"}},{"$f":"IF(I1597<0,I1597*(-1)*$B1631+I1597*(-1)*$B1631*'1 Données d''entrée'!$C$338,0)","v":{"$error":"#DIV/0!"}},{"$f":"IF(J1597<0,J1597*(-1)*$B1631+J1597*(-1)*$B1631*'1 Données d''entrée'!$C$338,0)","v":{"$error":"#DIV/0!"}},{"$f":"IF(K1597<0,K1597*(-1)*$B1631+K1597*(-1)*$B1631*'1 Données d''entrée'!$C$338,0)","v":{"$error":"#DIV/0!"}},{"$f":"IF(L1597<0,L1597*(-1)*$B1631+L1597*(-1)*$B1631*'1 Données d''entrée'!$C$338,0)","v":{"$error":"#DIV/0!"}},{"$f":"IF(M1597<0,M1597*(-1)*$B1631+M1597*(-1)*$B1631*'1 Données d''entrée'!$C$338,0)","v":{"$error":"#DIV/0!"}},{"$f":"IF(N1597<0,N1597*(-1)*$B1631+N1597*(-1)*$B1631*'1 Données d''entrée'!$C$338,0)","v":{"$error":"#DIV/0!"}},{"$f":"IF(O1597<0,O1597*(-1)*$B1631+O1597*(-1)*$B1631*'1 Données d''entrée'!$C$338,0)","v":{"$error":"#DIV/0!"}},{"$f":"IF(P1597<0,P1597*(-1)*$B1631+P1597*(-1)*$B1631*'1 Données d''entrée'!$C$338,0)","v":{"$error":"#DIV/0!"}},{"$f":"IF(Q1597<0,Q1597*(-1)*$B1631+Q1597*(-1)*$B1631*'1 Données d''entrée'!$C$338,0)","v":{"$error":"#DIV/0!"}},{"$f":"IF(R1597<0,R1597*(-1)*$B1631+R1597*(-1)*$B1631*'1 Données d''entrée'!$C$338,0)","v":{"$error":"#DIV/0!"}},{"$f":"IF(S1597<0,S1597*(-1)*$B1631+S1597*(-1)*$B1631*'1 Données d''entrée'!$C$338,0)","v":{"$error":"#DIV/0!"}},{"$f":"IF(T1597<0,T1597*(-1)*$B1631+T1597*(-1)*$B1631*'1 Données d''entrée'!$C$338,0)","v":{"$error":"#DIV/0!"}},{"$f":"IF(U1597<0,U1597*(-1)*$B1631+U1597*(-1)*$B1631*'1 Données d''entrée'!$C$338,0)","v":{"$error":"#DIV/0!"}},{"$f":"IF(V1597<0,V1597*(-1)*$B1631+V1597*(-1)*$B1631*'1 Données d''entrée'!$C$338,0)","v":{"$error":"#DIV/0!"}}]
[null,"Période de prêt nouveau"]
["Remboursement du principal",0,0,0,0,0,0,0,0,0,0,0,0,0,0,0,0,0,0,0,0,0]
[null,1,{"$f":"IF(C1630='1 Données d''entrée'!$C$333+'1 Données d''entrée'!$C$334+$B1635,$C1632,0)","v":{"$error":"#DIV/0!"}},{"$f":"IF(D1630='1 Données d''entrée'!$C$333+'1 Données d''entrée'!$C$334+$B1635,$C1632,0)","v":0},{"$f":"IF(E1630='1 Données d''entrée'!$C$333+'1 Données d''entrée'!$C$334+$B1635,$C1632,0)","v":0},{"$f":"IF(F1630='1 Données d''entrée'!$C$333+'1 Données d''entrée'!$C$334+$B1635,$C1632,0)","v":0},{"$f":"IF(G1630='1 Données d''entrée'!$C$333+'1 Données d''entrée'!$C$334+$B1635,$C1632,0)","v":0},{"$f":"IF(H1630='1 Données d''entrée'!$C$333+'1 Données d''entrée'!$C$334+$B1635,$C1632,0)","v":0},{"$f":"IF(I1630='1 Données d''entrée'!$C$333+'1 Données d''entrée'!$C$334+$B1635,$C1632,0)","v":0},{"$f":"IF(J1630='1 Données d''entrée'!$C$333+'1 Données d''entrée'!$C$334+$B1635,$C1632,0)","v":0},{"$f":"IF(K1630='1 Données d''entrée'!$C$333+'1 Données d''entrée'!$C$334+$B1635,$C1632,0)","v":0},{"$f":"IF(L1630='1 Données d''entrée'!$C$333+'1 Données d''entrée'!$C$334+$B1635,$C1632,0)","v":0},{"$f":"IF(M1630='1 Données d''entrée'!$C$333+'1 Données d''entrée'!$C$334+$B1635,$C1632,0)","v":0},{"$f":"IF(N1630='1 Données d''entrée'!$C$333+'1 Données d''entrée'!$C$334+$B1635,$C1632,0)","v":0},{"$f":"IF(O1630='1 Données d''entrée'!$C$333+'1 Données d''entrée'!$C$334+$B1635,$C1632,0)","v":0},{"$f":"IF(P1630='1 Données d''entrée'!$C$333+'1 Données d''entrée'!$C$334+$B1635,$C1632,0)","v":0},{"$f":"IF(Q1630='1 Données d''entrée'!$C$333+'1 Données d''entrée'!$C$334+$B1635,$C1632,0)","v":0},{"$f":"IF(R1630='1 Données d''entrée'!$C$333+'1 Données d''entrée'!$C$334+$B1635,$C1632,0)","v":0},{"$f":"IF(S1630='1 Données d''entrée'!$C$333+'1 Données d''entrée'!$C$334+$B1635,$C1632,0)","v":0},{"$f":"IF(T1630='1 Données d''entrée'!$C$333+'1 Données d''entrée'!$C$334+$B1635,$C1632,0)","v":0},{"$f":"IF(U1630='1 Données d''entrée'!$C$333+'1 Données d''entrée'!$C$334+$B1635,$C1632,0)","v":0},{"$f":"IF(V1630='1 Données d''entrée'!$C$333+'1 Données d''entrée'!$C$334+$B1635,$C1632,0)","v":0}]
[null,2,{"$f":"IF(C1630='1 Données d''entrée'!$C$333+'1 Données d''entrée'!$C$334+$B1636,$D1632,0)","v":0},{"$f":"IF(D1630='1 Données d''entrée'!$C$333+'1 Données d''entrée'!$C$334+$B1636,$D1632,0)","v":{"$error":"#DIV/0!"}},{"$f":"IF(E1630='1 Données d''entrée'!$C$333+'1 Données d''entrée'!$C$334+$B1636,$D1632,0)","v":0},{"$f":"IF(F1630='1 Données d''entrée'!$C$333+'1 Données d''entrée'!$C$334+$B1636,$D1632,0)","v":0},{"$f":"IF(G1630='1 Données d''entrée'!$C$333+'1 Données d''entrée'!$C$334+$B1636,$D1632,0)","v":0},{"$f":"IF(H1630='1 Données d''entrée'!$C$333+'1 Données d''entrée'!$C$334+$B1636,$D1632,0)","v":0},{"$f":"IF(I1630='1 Données d''entrée'!$C$333+'1 Données d''entrée'!$C$334+$B1636,$D1632,0)","v":0},{"$f":"IF(J1630='1 Données d''entrée'!$C$333+'1 Données d''entrée'!$C$334+$B1636,$D1632,0)","v":0},{"$f":"IF(K1630='1 Données d''entrée'!$C$333+'1 Données d''entrée'!$C$334+$B1636,$D1632,0)","v":0},{"$f":"IF(L1630='1 Données d''entrée'!$C$333+'1 Données d''entrée'!$C$334+$B1636,$D1632,0)","v":0},{"$f":"IF(M1630='1 Données d''entrée'!$C$333+'1 Données d''entrée'!$C$334+$B1636,$D1632,0)","v":0},{"$f":"IF(N1630='1 Données d''entrée'!$C$333+'1 Données d''entrée'!$C$334+$B1636,$D1632,0)","v":0},{"$f":"IF(O1630='1 Données d''entrée'!$C$333+'1 Données d''entrée'!$C$334+$B1636,$D1632,0)","v":0},{"$f":"IF(P1630='1 Données d''entrée'!$C$333+'1 Données d''entrée'!$C$334+$B1636,$D1632,0)","v":0},{"$f":"IF(Q1630='1 Données d''entrée'!$C$333+'1 Données d''entrée'!$C$334+$B1636,$D1632,0)","v":0},{"$f":"IF(R1630='1 Données d''entrée'!$C$333+'1 Données d''entrée'!$C$334+$B1636,$D1632,0)","v":0},{"$f":"IF(S1630='1 Données d''entrée'!$C$333+'1 Données d''entrée'!$C$334+$B1636,$D1632,0)","v":0},{"$f":"IF(T1630='1 Données d''entrée'!$C$333+'1 Données d''entrée'!$C$334+$B1636,$D1632,0)","v":0},{"$f":"IF(U1630='1 Données d''entrée'!$C$333+'1 Données d''entrée'!$C$334+$B1636,$D1632,0)","v":0},{"$f":"IF(V1630='1 Données d''entrée'!$C$333+'1 Données d''entrée'!$C$334+$B1636,$D1632,0)","v":0}]
[null,3,{"$f":"IF(C1630='1 Données d''entrée'!$C$333+'1 Données d''entrée'!$C$334+$B1637,$E1632,0)","v":0},{"$f":"IF(D1630='1 Données d''entrée'!$C$333+'1 Données d''entrée'!$C$334+$B1637,$E1632,0)","v":0},{"$f":"IF(E1630='1 Données d''entrée'!$C$333+'1 Données d''entrée'!$C$334+$B1637,$E1632,0)","v":{"$error":"#DIV/0!"}},{"$f":"IF(F1630='1 Données d''entrée'!$C$333+'1 Données d''entrée'!$C$334+$B1637,$E1632,0)","v":0},{"$f":"IF(G1630='1 Données d''entrée'!$C$333+'1 Données d''entrée'!$C$334+$B1637,$E1632,0)","v":0},{"$f":"IF(H1630='1 Données d''entrée'!$C$333+'1 Données d''entrée'!$C$334+$B1637,$E1632,0)","v":0},{"$f":"IF(I1630='1 Données d''entrée'!$C$333+'1 Données d''entrée'!$C$334+$B1637,$E1632,0)","v":0},{"$f":"IF(J1630='1 Données d''entrée'!$C$333+'1 Données d''entrée'!$C$334+$B1637,$E1632,0)","v":0},{"$f":"IF(K1630='1 Données d''entrée'!$C$333+'1 Données d''entrée'!$C$334+$B1637,$E1632,0)","v":0},{"$f":"IF(L1630='1 Données d''entrée'!$C$333+'1 Données d''entrée'!$C$334+$B1637,$E1632,0)","v":0},{"$f":"IF(M1630='1 Données d''entrée'!$C$333+'1 Données d''entrée'!$C$334+$B1637,$E1632,0)","v":0},{"$f":"IF(N1630='1 Données d''entrée'!$C$333+'1 Données d''entrée'!$C$334+$B1637,$E1632,0)","v":0},{"$f":"IF(O1630='1 Données d''entrée'!$C$333+'1 Données d''entrée'!$C$334+$B1637,$E1632,0)","v":0},{"$f":"IF(P1630='1 Données d''entrée'!$C$333+'1 Données d''entrée'!$C$334+$B1637,$E1632,0)","v":0},{"$f":"IF(Q1630='1 Données d''entrée'!$C$333+'1 Données d''entrée'!$C$334+$B1637,$E1632,0)","v":0},{"$f":"IF(R1630='1 Données d''entrée'!$C$333+'1 Données d''entrée'!$C$334+$B1637,$E1632,0)","v":0},{"$f":"IF(S1630='1 Données d''entrée'!$C$333+'1 Données d''entrée'!$C$334+$B1637,$E1632,0)","v":0},{"$f":"IF(T1630='1 Données d''entrée'!$C$333+'1 Données d''entrée'!$C$334+$B1637,$E1632,0)","v":0},{"$f":"IF(U1630='1 Données d''entrée'!$C$333+'1 Données d''entrée'!$C$334+$B1637,$E1632,0)","v":0},{"$f":"IF(V1630='1 Données d''entrée'!$C$333+'1 Données d''entrée'!$C$334+$B1637,$E1632,0)","v":0}]
[null,4,{"$f":"IF(C1630='1 Données d''entrée'!$C$333+'1 Données d''entrée'!$C$334+$B1638,$F1632,0)","v":0},{"$f":"IF(D1630='1 Données d''entrée'!$C$333+'1 Données d''entrée'!$C$334+$B1638,$F1632,0)","v":0},{"$f":"IF(E1630='1 Données d''entrée'!$C$333+'1 Données d''entrée'!$C$334+$B1638,$F1632,0)","v":0},{"$f":"IF(F1630='1 Données d''entrée'!$C$333+'1 Données d''entrée'!$C$334+$B1638,$F1632,0)","v":{"$error":"#DIV/0!"}},{"$f":"IF(G1630='1 Données d''entrée'!$C$333+'1 Données d''entrée'!$C$334+$B1638,$F1632,0)","v":0},{"$f":"IF(H1630='1 Données d''entrée'!$C$333+'1 Données d''entrée'!$C$334+$B1638,$F1632,0)","v":0},{"$f":"IF(I1630='1 Données d''entrée'!$C$333+'1 Données d''entrée'!$C$334+$B1638,$F1632,0)","v":0},{"$f":"IF(J1630='1 Données d''entrée'!$C$333+'1 Données d''entrée'!$C$334+$B1638,$F1632,0)","v":0},{"$f":"IF(K1630='1 Données d''entrée'!$C$333+'1 Données d''entrée'!$C$334+$B1638,$F1632,0)","v":0},{"$f":"IF(L1630='1 Données d''entrée'!$C$333+'1 Données d''entrée'!$C$334+$B1638,$F1632,0)","v":0},{"$f":"IF(M1630='1 Données d''entrée'!$C$333+'1 Données d''entrée'!$C$334+$B1638,$F1632,0)","v":0},{"$f":"IF(N1630='1 Données d''entrée'!$C$333+'1 Données d''entrée'!$C$334+$B1638,$F1632,0)","v":0},{"$f":"IF(O1630='1 Données d''entrée'!$C$333+'1 Données d''entrée'!$C$334+$B1638,$F1632,0)","v":0},{"$f":"IF(P1630='1 Données d''entrée'!$C$333+'1 Données d''entrée'!$C$334+$B1638,$F1632,0)","v":0},{"$f":"IF(Q1630='1 Données d''entrée'!$C$333+'1 Données d''entrée'!$C$334+$B1638,$F1632,0)","v":0},{"$f":"IF(R1630='1 Données d''entrée'!$C$333+'1 Données d''entrée'!$C$334+$B1638,$F1632,0)","v":0},{"$f":"IF(S1630='1 Données d''entrée'!$C$333+'1 Données d''entrée'!$C$334+$B1638,$F1632,0)","v":0},{"$f":"IF(T1630='1 Données d''entrée'!$C$333+'1 Données d''entrée'!$C$334+$B1638,$F1632,0)","v":0},{"$f":"IF(U1630='1 Données d''entrée'!$C$333+'1 Données d''entrée'!$C$334+$B1638,$F1632,0)","v":0},{"$f":"IF(V1630='1 Données d''entrée'!$C$333+'1 Données d''entrée'!$C$334+$B1638,$F1632,0)","v":0}]
[null,5,{"$f":"IF(C1630='1 Données d''entrée'!$C$333+'1 Données d''entrée'!$C$334+$B1639,$G1632,0)","v":0},{"$f":"IF(D1630='1 Données d''entrée'!$C$333+'1 Données d''entrée'!$C$334+$B1639,$G1632,0)","v":0},{"$f":"IF(E1630='1 Données d''entrée'!$C$333+'1 Données d''entrée'!$C$334+$B1639,$G1632,0)","v":0},{"$f":"IF(F1630='1 Données d''entrée'!$C$333+'1 Données d''entrée'!$C$334+$B1639,$G1632,0)","v":0},{"$f":"IF(G1630='1 Données d''entrée'!$C$333+'1 Données d''entrée'!$C$334+$B1639,$G1632,0)","v":{"$error":"#DIV/0!"}},{"$f":"IF(H1630='1 Données d''entrée'!$C$333+'1 Données d''entrée'!$C$334+$B1639,$G1632,0)","v":0},{"$f":"IF(I1630='1 Données d''entrée'!$C$333+'1 Données d''entrée'!$C$334+$B1639,$G1632,0)","v":0},{"$f":"IF(J1630='1 Données d''entrée'!$C$333+'1 Données d''entrée'!$C$334+$B1639,$G1632,0)","v":0},{"$f":"IF(K1630='1 Données d''entrée'!$C$333+'1 Données d''entrée'!$C$334+$B1639,$G1632,0)","v":0},{"$f":"IF(L1630='1 Données d''entrée'!$C$333+'1 Données d''entrée'!$C$334+$B1639,$G1632,0)","v":0},{"$f":"IF(M1630='1 Données d''entrée'!$C$333+'1 Données d''entrée'!$C$334+$B1639,$G1632,0)","v":0},{"$f":"IF(N1630='1 Données d''entrée'!$C$333+'1 Données d''entrée'!$C$334+$B1639,$G1632,0)","v":0},{"$f":"IF(O1630='1 Données d''entrée'!$C$333+'1 Données d''entrée'!$C$334+$B1639,$G1632,0)","v":0},{"$f":"IF(P1630='1 Données d''entrée'!$C$333+'1 Données d''entrée'!$C$334+$B1639,$G1632,0)","v":0},{"$f":"IF(Q1630='1 Données d''entrée'!$C$333+'1 Données d''entrée'!$C$334+$B1639,$G1632,0)","v":0},{"$f":"IF(R1630='1 Données d''entrée'!$C$333+'1 Données d''entrée'!$C$334+$B1639,$G1632,0)","v":0},{"$f":"IF(S1630='1 Données d''entrée'!$C$333+'1 Données d''entrée'!$C$334+$B1639,$G1632,0)","v":0},{"$f":"IF(T1630='1 Données d''entrée'!$C$333+'1 Données d''entrée'!$C$334+$B1639,$G1632,0)","v":0},{"$f":"IF(U1630='1 Données d''entrée'!$C$333+'1 Données d''entrée'!$C$334+$B1639,$G1632,0)","v":0},{"$f":"IF(V1630='1 Données d''entrée'!$C$333+'1 Données d''entrée'!$C$334+$B1639,$G1632,0)","v":0}]
[null,6,{"$f":"IF(C1630='1 Données d''entrée'!$C$333+'1 Données d''entrée'!$C$334+$B1640,$H1632,0)","v":0},{"$f":"IF(D1630='1 Données d''entrée'!$C$333+'1 Données d''entrée'!$C$334+$B1640,$H1632,0)","v":0},{"$f":"IF(E1630='1 Données d''entrée'!$C$333+'1 Données d''entrée'!$C$334+$B1640,$H1632,0)","v":0},{"$f":"IF(F1630='1 Données d''entrée'!$C$333+'1 Données d''entrée'!$C$334+$B1640,$H1632,0)","v":0},{"$f":"IF(G1630='1 Données d''entrée'!$C$333+'1 Données d''entrée'!$C$334+$B1640,$H1632,0)","v":0},{"$f":"IF(H1630='1 Données d''entrée'!$C$333+'1 Données d''entrée'!$C$334+$B1640,$H1632,0)","v":{"$error":"#DIV/0!"}},{"$f":"IF(I1630='1 Données d''entrée'!$C$333+'1 Données d''entrée'!$C$334+$B1640,$H1632,0)","v":0},{"$f":"IF(J1630='1 Données d''entrée'!$C$333+'1 Données d''entrée'!$C$334+$B1640,$H1632,0)","v":0},{"$f":"IF(K1630='1 Données d''entrée'!$C$333+'1 Données d''entrée'!$C$334+$B1640,$H1632,0)","v":0},{"$f":"IF(L1630='1 Données d''entrée'!$C$333+'1 Données d''entrée'!$C$334+$B1640,$H1632,0)","v":0},{"$f":"IF(M1630='1 Données d''entrée'!$C$333+'1 Données d''entrée'!$C$334+$B1640,$H1632,0)","v":0},{"$f":"IF(N1630='1 Données d''entrée'!$C$333+'1 Données d''entrée'!$C$334+$B1640,$H1632,0)","v":0},{"$f":"IF(O1630='1 Données d''entrée'!$C$333+'1 Données d''entrée'!$C$334+$B1640,$H1632,0)","v":0},{"$f":"IF(P1630='1 Données d''entrée'!$C$333+'1 Données d''entrée'!$C$334+$B1640,$H1632,0)","v":0},{"$f":"IF(Q1630='1 Données d''entrée'!$C$333+'1 Données d''entrée'!$C$334+$B1640,$H1632,0)","v":0},{"$f":"IF(R1630='1 Données d''entrée'!$C$333+'1 Données d''entrée'!$C$334+$B1640,$H1632,0)","v":0},{"$f":"IF(S1630='1 Données d''entrée'!$C$333+'1 Données d''entrée'!$C$334+$B1640,$H1632,0)","v":0},{"$f":"IF(T1630='1 Données d''entrée'!$C$333+'1 Données d''entrée'!$C$334+$B1640,$H1632,0)","v":0},{"$f":"IF(U1630='1 Données d''entrée'!$C$333+'1 Données d''entrée'!$C$334+$B1640,$H1632,0)","v":0},{"$f":"IF(V1630='1 Données d''entrée'!$C$333+'1 Données d''entrée'!$C$334+$B1640,$H1632,0)","v":0}]
[null,7,{"$f":"IF(C1630='1 Données d''entrée'!$C$333+'1 Données d''entrée'!$C$334+$B1641,$I1632,0)","v":0},{"$f":"IF(D1630='1 Données d''entrée'!$C$333+'1 Données d''entrée'!$C$334+$B1641,$I1632,0)","v":0},{"$f":"IF(E1630='1 Données d''entrée'!$C$333+'1 Données d''entrée'!$C$334+$B1641,$I1632,0)","v":0},{"$f":"IF(F1630='1 Données d''entrée'!$C$333+'1 Données d''entrée'!$C$334+$B1641,$I1632,0)","v":0},{"$f":"IF(G1630='1 Données d''entrée'!$C$333+'1 Données d''entrée'!$C$334+$B1641,$I1632,0)","v":0},{"$f":"IF(H1630='1 Données d''entrée'!$C$333+'1 Données d''entrée'!$C$334+$B1641,$I1632,0)","v":0},{"$f":"IF(I1630='1 Données d''entrée'!$C$333+'1 Données d''entrée'!$C$334+$B1641,$I1632,0)","v":{"$error":"#DIV/0!"}},{"$f":"IF(J1630='1 Données d''entrée'!$C$333+'1 Données d''entrée'!$C$334+$B1641,$I1632,0)","v":0},{"$f":"IF(K1630='1 Données d''entrée'!$C$333+'1 Données d''entrée'!$C$334+$B1641,$I1632,0)","v":0},{"$f":"IF(L1630='1 Données d''entrée'!$C$333+'1 Données d''entrée'!$C$334+$B1641,$I1632,0)","v":0},{"$f":"IF(M1630='1 Données d''entrée'!$C$333+'1 Données d''entrée'!$C$334+$B1641,$I1632,0)","v":0},{"$f":"IF(N1630='1 Données d''entrée'!$C$333+'1 Données d''entrée'!$C$334+$B1641,$I1632,0)","v":0},{"$f":"IF(O1630='1 Données d''entrée'!$C$333+'1 Données d''entrée'!$C$334+$B1641,$I1632,0)","v":0},{"$f":"IF(P1630='1 Données d''entrée'!$C$333+'1 Données d''entrée'!$C$334+$B1641,$I1632,0)","v":0},{"$f":"IF(Q1630='1 Données d''entrée'!$C$333+'1 Données d''entrée'!$C$334+$B1641,$I1632,0)","v":0},{"$f":"IF(R1630='1 Données d''entrée'!$C$333+'1 Données d''entrée'!$C$334+$B1641,$I1632,0)","v":0},{"$f":"IF(S1630='1 Données d''entrée'!$C$333+'1 Données d''entrée'!$C$334+$B1641,$I1632,0)","v":0},{"$f":"IF(T1630='1 Données d''entrée'!$C$333+'1 Données d''entrée'!$C$334+$B1641,$I1632,0)","v":0},{"$f":"IF(U1630='1 Données d''entrée'!$C$333+'1 Données d''entrée'!$C$334+$B1641,$I1632,0)","v":0},{"$f":"IF(V1630='1 Données d''entrée'!$C$333+'1 Données d''entrée'!$C$334+$B1641,$I1632,0)","v":0}]
[null,8,{"$f":"IF(C1630='1 Données d''entrée'!$C$333+'1 Données d''entrée'!$C$334+$B1642,$J1632,0)","v":0},{"$f":"IF(D1630='1 Données d''entrée'!$C$333+'1 Données d''entrée'!$C$334+$B1642,$J1632,0)","v":0},{"$f":"IF(E1630='1 Données d''entrée'!$C$333+'1 Données d''entrée'!$C$334+$B1642,$J1632,0)","v":0},{"$f":"IF(F1630='1 Données d''entrée'!$C$333+'1 Données d''entrée'!$C$334+$B1642,$J1632,0)","v":0},{"$f":"IF(G1630='1 Données d''entrée'!$C$333+'1 Données d''entrée'!$C$334+$B1642,$J1632,0)","v":0},{"$f":"IF(H1630='1 Données d''entrée'!$C$333+'1 Données d''entrée'!$C$334+$B1642,$J1632,0)","v":0},{"$f":"IF(I1630='1 Données d''entrée'!$C$333+'1 Données d''entrée'!$C$334+$B1642,$J1632,0)","v":0},{"$f":"IF(J1630='1 Données d''entrée'!$C$333+'1 Données d''entrée'!$C$334+$B1642,$J1632,0)","v":{"$error":"#DIV/0!"}},{"$f":"IF(K1630='1 Données d''entrée'!$C$333+'1 Données d''entrée'!$C$334+$B1642,$J1632,0)","v":0},{"$f":"IF(L1630='1 Données d''entrée'!$C$333+'1 Données d''entrée'!$C$334+$B1642,$J1632,0)","v":0},{"$f":"IF(M1630='1 Données d''entrée'!$C$333+'1 Données d''entrée'!$C$334+$B1642,$J1632,0)","v":0},{"$f":"IF(N1630='1 Données d''entrée'!$C$333+'1 Données d''entrée'!$C$334+$B1642,$J1632,0)","v":0},{"$f":"IF(O1630='1 Données d''entrée'!$C$333+'1 Données d''entrée'!$C$334+$B1642,$J1632,0)","v":0},{"$f":"IF(P1630='1 Données d''entrée'!$C$333+'1 Données d''entrée'!$C$334+$B1642,$J1632,0)","v":0},{"$f":"IF(Q1630='1 Données d''entrée'!$C$333+'1 Données d''entrée'!$C$334+$B1642,$J1632,0)","v":0},{"$f":"IF(R1630='1 Données d''entrée'!$C$333+'1 Données d''entrée'!$C$334+$B1642,$J1632,0)","v":0},{"$f":"IF(S1630='1 Données d''entrée'!$C$333+'1 Données d''entrée'!$C$334+$B1642,$J1632,0)","v":0},{"$f":"IF(T1630='1 Données d''entrée'!$C$333+'1 Données d''entrée'!$C$334+$B1642,$J1632,0)","v":0},{"$f":"IF(U1630='1 Données d''entrée'!$C$333+'1 Données d''entrée'!$C$334+$B1642,$J1632,0)","v":0},{"$f":"IF(V1630='1 Données d''entrée'!$C$333+'1 Données d''entrée'!$C$334+$B1642,$J1632,0)","v":0}]
[null,9,{"$f":"IF(C1630='1 Données d''entrée'!$C$333+'1 Données d''entrée'!$C$334+$B1643,$K1632,0)","v":0},{"$f":"IF(D1630='1 Données d''entrée'!$C$333+'1 Données d''entrée'!$C$334+$B1643,$K1632,0)","v":0},{"$f":"IF(E1630='1 Données d''entrée'!$C$333+'1 Données d''entrée'!$C$334+$B1643,$K1632,0)","v":0},{"$f":"IF(F1630='1 Données d''entrée'!$C$333+'1 Données d''entrée'!$C$334+$B1643,$K1632,0)","v":0},{"$f":"IF(G1630='1 Données d''entrée'!$C$333+'1 Données d''entrée'!$C$334+$B1643,$K1632,0)","v":0},{"$f":"IF(H1630='1 Données d''entrée'!$C$333+'1 Données d''entrée'!$C$334+$B1643,$K1632,0)","v":0},{"$f":"IF(I1630='1 Données d''entrée'!$C$333+'1 Données d''entrée'!$C$334+$B1643,$K1632,0)","v":0},{"$f":"IF(J1630='1 Données d''entrée'!$C$333+'1 Données d''entrée'!$C$334+$B1643,$K1632,0)","v":0},{"$f":"IF(K1630='1 Données d''entrée'!$C$333+'1 Données d''entrée'!$C$334+$B1643,$K1632,0)","v":{"$error":"#DIV/0!"}},{"$f":"IF(L1630='1 Données d''entrée'!$C$333+'1 Données d''entrée'!$C$334+$B1643,$K1632,0)","v":0},{"$f":"IF(M1630='1 Données d''entrée'!$C$333+'1 Données d''entrée'!$C$334+$B1643,$K1632,0)","v":0},{"$f":"IF(N1630='1 Données d''entrée'!$C$333+'1 Données d''entrée'!$C$334+$B1643,$K1632,0)","v":0},{"$f":"IF(O1630='1 Données d''entrée'!$C$333+'1 Données d''entrée'!$C$334+$B1643,$K1632,0)","v":0},{"$f":"IF(P1630='1 Données d''entrée'!$C$333+'1 Données d''entrée'!$C$334+$B1643,$K1632,0)","v":0},{"$f":"IF(Q1630='1 Données d''entrée'!$C$333+'1 Données d''entrée'!$C$334+$B1643,$K1632,0)","v":0},{"$f":"IF(R1630='1 Données d''entrée'!$C$333+'1 Données d''entrée'!$C$334+$B1643,$K1632,0)","v":0},{"$f":"IF(S1630='1 Données d''entrée'!$C$333+'1 Données d''entrée'!$C$334+$B1643,$K1632,0)","v":0},{"$f":"IF(T1630='1 Données d''entrée'!$C$333+'1 Données d''entrée'!$C$334+$B1643,$K1632,0)","v":0},{"$f":"IF(U1630='1 Données d''entrée'!$C$333+'1 Données d''entrée'!$C$334+$B1643,$K1632,0)","v":0},{"$f":"IF(V1630='1 Données d''entrée'!$C$333+'1 Données d''entrée'!$C$334+$B1643,$K1632,0)","v":0}]
[null,10,{"$f":"IF(C1630='1 Données d''entrée'!$C$333+'1 Données d''entrée'!$C$334+$B1644,$L1632,0)","v":0},{"$f":"IF(D1630='1 Données d''entrée'!$C$333+'1 Données d''entrée'!$C$334+$B1644,$L1632,0)","v":0},{"$f":"IF(E1630='1 Données d''entrée'!$C$333+'1 Données d''entrée'!$C$334+$B1644,$L1632,0)","v":0},{"$f":"IF(F1630='1 Données d''entrée'!$C$333+'1 Données d''entrée'!$C$334+$B1644,$L1632,0)","v":0},{"$f":"IF(G1630='1 Données d''entrée'!$C$333+'1 Données d''entrée'!$C$334+$B1644,$L1632,0)","v":0},{"$f":"IF(H1630='1 Données d''entrée'!$C$333+'1 Données d''entrée'!$C$334+$B1644,$L1632,0)","v":0},{"$f":"IF(I1630='1 Données d''entrée'!$C$333+'1 Données d''entrée'!$C$334+$B1644,$L1632,0)","v":0},{"$f":"IF(J1630='1 Données d''entrée'!$C$333+'1 Données d''entrée'!$C$334+$B1644,$L1632,0)","v":0},{"$f":"IF(K1630='1 Données d''entrée'!$C$333+'1 Données d''entrée'!$C$334+$B1644,$L1632,0)","v":0},{"$f":"IF(L1630='1 Données d''entrée'!$C$333+'1 Données d''entrée'!$C$334+$B1644,$L1632,0)","v":{"$error":"#DIV/0!"}},{"$f":"IF(M1630='1 Données d''entrée'!$C$333+'1 Données d''entrée'!$C$334+$B1644,$L1632,0)","v":0},{"$f":"IF(N1630='1 Données d''entrée'!$C$333+'1 Données d''entrée'!$C$334+$B1644,$L1632,0)","v":0},{"$f":"IF(O1630='1 Données d''entrée'!$C$333+'1 Données d''entrée'!$C$334+$B1644,$L1632,0)","v":0},{"$f":"IF(P1630='1 Données d''entrée'!$C$333+'1 Données d''entrée'!$C$334+$B1644,$L1632,0)","v":0},{"$f":"IF(Q1630='1 Données d''entrée'!$C$333+'1 Données d''entrée'!$C$334+$B1644,$L1632,0)","v":0},{"$f":"IF(R1630='1 Données d''entrée'!$C$333+'1 Données d''entrée'!$C$334+$B1644,$L1632,0)","v":0},{"$f":"IF(S1630='1 Données d''entrée'!$C$333+'1 Données d''entrée'!$C$334+$B1644,$L1632,0)","v":0},{"$f":"IF(T1630='1 Données d''entrée'!$C$333+'1 Données d''entrée'!$C$334+$B1644,$L1632,0)","v":0},{"$f":"IF(U1630='1 Données d''entrée'!$C$333+'1 Données d''entrée'!$C$334+$B1644,$L1632,0)","v":0},{"$f":"IF(V1630='1 Données d''entrée'!$C$333+'1 Données d''entrée'!$C$334+$B1644,$L1632,0)","v":0}]
[null,"Période de prêt nouveau"]
["Paiement d'intérêts",0,0,0,0,0,0,0,0,0,0,0,0,0,0,0,0,0,0,0,0,0]
["Paiement d'intêrets",1,0,{"$f":"IF(C1554<1+$B1634,0,IF(C1554<'1 Données d''entrée'!$C$334+'1 Données d''entrée'!$C$333+1+$B1634,'1 Données d''entrée'!$C$332*($C1632-SUM($C1635:C1635)),0))","v":0},{"$f":"IF(D1554<1+$B1634,0,IF(D1554<'1 Données d''entrée'!$C$334+'1 Données d''entrée'!$C$333+1+$B1634,'1 Données d''entrée'!$C$332*($C1632-SUM($C1635:D1635)),0))","v":0},{"$f":"IF(E1554<1+$B1634,0,IF(E1554<'1 Données d''entrée'!$C$334+'1 Données d''entrée'!$C$333+1+$B1634,'1 Données d''entrée'!$C$332*($C1632-SUM($C1635:E1635)),0))","v":0},{"$f":"IF(F1554<1+$B1634,0,IF(F1554<'1 Données d''entrée'!$C$334+'1 Données d''entrée'!$C$333+1+$B1634,'1 Données d''entrée'!$C$332*($C1632-SUM($C1635:F1635)),0))","v":0},{"$f":"IF(G1554<1+$B1634,0,IF(G1554<'1 Données d''entrée'!$C$334+'1 Données d''entrée'!$C$333+1+$B1634,'1 Données d''entrée'!$C$332*($C1632-SUM($C1635:G1635)),0))","v":0},{"$f":"IF(H1554<1+$B1634,0,IF(H1554<'1 Données d''entrée'!$C$334+'1 Données d''entrée'!$C$333+1+$B1634,'1 Données d''entrée'!$C$332*($C1632-SUM($C1635:H1635)),0))","v":0},{"$f":"IF(I1554<1+$B1634,0,IF(I1554<'1 Données d''entrée'!$C$334+'1 Données d''entrée'!$C$333+1+$B1634,'1 Données d''entrée'!$C$332*($C1632-SUM($C1635:I1635)),0))","v":0},{"$f":"IF(J1554<1+$B1634,0,IF(J1554<'1 Données d''entrée'!$C$334+'1 Données d''entrée'!$C$333+1+$B1634,'1 Données d''entrée'!$C$332*($C1632-SUM($C1635:J1635)),0))","v":0},{"$f":"IF(K1554<1+$B1634,0,IF(K1554<'1 Données d''entrée'!$C$334+'1 Données d''entrée'!$C$333+1+$B1634,'1 Données d''entrée'!$C$332*($C1632-SUM($C1635:K1635)),0))","v":0},{"$f":"IF(L1554<1+$B1634,0,IF(L1554<'1 Données d''entrée'!$C$334+'1 Données d''entrée'!$C$333+1+$B1634,'1 Données d''entrée'!$C$332*($C1632-SUM($C1635:L1635)),0))","v":0},{"$f":"IF(M1554<1+$B1634,0,IF(M1554<'1 Données d''entrée'!$C$334+'1 Données d''entrée'!$C$333+1+$B1634,'1 Données d''entrée'!$C$332*($C1632-SUM($C1635:M1635)),0))","v":0},{"$f":"IF(N1554<1+$B1634,0,IF(N1554<'1 Données d''entrée'!$C$334+'1 Données d''entrée'!$C$333+1+$B1634,'1 Données d''entrée'!$C$332*($C1632-SUM($C1635:N1635)),0))","v":0},{"$f":"IF(O1554<1+$B1634,0,IF(O1554<'1 Données d''entrée'!$C$334+'1 Données d''entrée'!$C$333+1+$B1634,'1 Données d''entrée'!$C$332*($C1632-SUM($C1635:O1635)),0))","v":0},{"$f":"IF(P1554<1+$B1634,0,IF(P1554<'1 Données d''entrée'!$C$334+'1 Données d''entrée'!$C$333+1+$B1634,'1 Données d''entrée'!$C$332*($C1632-SUM($C1635:P1635)),0))","v":0},{"$f":"IF(Q1554<1+$B1634,0,IF(Q1554<'1 Données d''entrée'!$C$334+'1 Données d''entrée'!$C$333+1+$B1634,'1 Données d''entrée'!$C$332*($C1632-SUM($C1635:Q1635)),0))","v":0},{"$f":"IF(R1554<1+$B1634,0,IF(R1554<'1 Données d''entrée'!$C$334+'1 Données d''entrée'!$C$333+1+$B1634,'1 Données d''entrée'!$C$332*($C1632-SUM($C1635:R1635)),0))","v":0},{"$f":"IF(S1554<1+$B1634,0,IF(S1554<'1 Données d''entrée'!$C$334+'1 Données d''entrée'!$C$333+1+$B1634,'1 Données d''entrée'!$C$332*($C1632-SUM($C1635:S1635)),0))","v":0},{"$f":"IF(T1554<1+$B1634,0,IF(T1554<'1 Données d''entrée'!$C$334+'1 Données d''entrée'!$C$333+1+$B1634,'1 Données d''entrée'!$C$332*($C1632-SUM($C1635:T1635)),0))","v":0},{"$f":"IF(U1554<1+$B1634,0,IF(U1554<'1 Données d''entrée'!$C$334+'1 Données d''entrée'!$C$333+1+$B1634,'1 Données d''entrée'!$C$332*($C1632-SUM($C1635:U1635)),0))","v":0}]
["Paiement d'intêrets",2,0,{"$f":"IF(C1554<1+$B1635,0,IF(C1554<'1 Données d''entrée'!$C$334+'1 Données d''entrée'!$C$333+1+$B1635,'1 Données d''entrée'!$C$332*($D1632-SUM($C1636:C1636)),0))","v":0},{"$f":"IF(D1554<1+$B1635,0,IF(D1554<'1 Données d''entrée'!$C$334+'1 Données d''entrée'!$C$333+1+$B1635,'1 Données d''entrée'!$C$332*($D1632-SUM($C1636:D1636)),0))","v":0},{"$f":"IF(E1554<1+$B1635,0,IF(E1554<'1 Données d''entrée'!$C$334+'1 Données d''entrée'!$C$333+1+$B1635,'1 Données d''entrée'!$C$332*($D1632-SUM($C1636:E1636)),0))","v":0},{"$f":"IF(F1554<1+$B1635,0,IF(F1554<'1 Données d''entrée'!$C$334+'1 Données d''entrée'!$C$333+1+$B1635,'1 Données d''entrée'!$C$332*($D1632-SUM($C1636:F1636)),0))","v":0},{"$f":"IF(G1554<1+$B1635,0,IF(G1554<'1 Données d''entrée'!$C$334+'1 Données d''entrée'!$C$333+1+$B1635,'1 Données d''entrée'!$C$332*($D1632-SUM($C1636:G1636)),0))","v":0},{"$f":"IF(H1554<1+$B1635,0,IF(H1554<'1 Données d''entrée'!$C$334+'1 Données d''entrée'!$C$333+1+$B1635,'1 Données d''entrée'!$C$332*($D1632-SUM($C1636:H1636)),0))","v":0},{"$f":"IF(I1554<1+$B1635,0,IF(I1554<'1 Données d''entrée'!$C$334+'1 Données d''entrée'!$C$333+1+$B1635,'1 Données d''entrée'!$C$332*($D1632-SUM($C1636:I1636)),0))","v":0},{"$f":"IF(J1554<1+$B1635,0,IF(J1554<'1 Données d''entrée'!$C$334+'1 Données d''entrée'!$C$333+1+$B1635,'1 Données d''entrée'!$C$332*($D1632-SUM($C1636:J1636)),0))","v":0},{"$f":"IF(K1554<1+$B1635,0,IF(K1554<'1 Données d''entrée'!$C$334+'1 Données d''entrée'!$C$333+1+$B1635,'1 Données d''entrée'!$C$332*($D1632-SUM($C1636:K1636)),0))","v":0},{"$f":"IF(L1554<1+$B1635,0,IF(L1554<'1 Données d''entrée'!$C$334+'1 Données d''entrée'!$C$333+1+$B1635,'1 Données d''entrée'!$C$332*($D1632-SUM($C1636:L1636)),0))","v":0},{"$f":"IF(M1554<1+$B1635,0,IF(M1554<'1 Données d''entrée'!$C$334+'1 Données d''entrée'!$C$333+1+$B1635,'1 Données d''entrée'!$C$332*($D1632-SUM($C1636:M1636)),0))","v":0},{"$f":"IF(N1554<1+$B1635,0,IF(N1554<'1 Données d''entrée'!$C$334+'1 Données d''entrée'!$C$333+1+$B1635,'1 Données d''entrée'!$C$332*($D1632-SUM($C1636:N1636)),0))","v":0},{"$f":"IF(O1554<1+$B1635,0,IF(O1554<'1 Données d''entrée'!$C$334+'1 Données d''entrée'!$C$333+1+$B1635,'1 Données d''entrée'!$C$332*($D1632-SUM($C1636:O1636)),0))","v":0},{"$f":"IF(P1554<1+$B1635,0,IF(P1554<'1 Données d''entrée'!$C$334+'1 Données d''entrée'!$C$333+1+$B1635,'1 Données d''entrée'!$C$332*($D1632-SUM($C1636:P1636)),0))","v":0},{"$f":"IF(Q1554<1+$B1635,0,IF(Q1554<'1 Données d''entrée'!$C$334+'1 Données d''entrée'!$C$333+1+$B1635,'1 Données d''entrée'!$C$332*($D1632-SUM($C1636:Q1636)),0))","v":0},{"$f":"IF(R1554<1+$B1635,0,IF(R1554<'1 Données d''entrée'!$C$334+'1 Données d''entrée'!$C$333+1+$B1635,'1 Données d''entrée'!$C$332*($D1632-SUM($C1636:R1636)),0))","v":0},{"$f":"IF(S1554<1+$B1635,0,IF(S1554<'1 Données d''entrée'!$C$334+'1 Données d''entrée'!$C$333+1+$B1635,'1 Données d''entrée'!$C$332*($D1632-SUM($C1636:S1636)),0))","v":0},{"$f":"IF(T1554<1+$B1635,0,IF(T1554<'1 Données d''entrée'!$C$334+'1 Données d''entrée'!$C$333+1+$B1635,'1 Données d''entrée'!$C$332*($D1632-SUM($C1636:T1636)),0))","v":0},{"$f":"IF(U1554<1+$B1635,0,IF(U1554<'1 Données d''entrée'!$C$334+'1 Données d''entrée'!$C$333+1+$B1635,'1 Données d''entrée'!$C$332*($D1632-SUM($C1636:U1636)),0))","v":0}]
["Paiement d'intêrets",3,0,{"$f":"IF(C1554<1+$B1636,0,IF(C1554<'1 Données d''entrée'!$C$334+'1 Données d''entrée'!$C$333+1+$B1636,'1 Données d''entrée'!$C$332*($E1632-SUM($C1637:C1637)),0))","v":0},{"$f":"IF(D1554<1+$B1636,0,IF(D1554<'1 Données d''entrée'!$C$334+'1 Données d''entrée'!$C$333+1+$B1636,'1 Données d''entrée'!$C$332*($E1632-SUM($C1637:D1637)),0))","v":0},{"$f":"IF(E1554<1+$B1636,0,IF(E1554<'1 Données d''entrée'!$C$334+'1 Données d''entrée'!$C$333+1+$B1636,'1 Données d''entrée'!$C$332*($E1632-SUM($C1637:E1637)),0))","v":0},{"$f":"IF(F1554<1+$B1636,0,IF(F1554<'1 Données d''entrée'!$C$334+'1 Données d''entrée'!$C$333+1+$B1636,'1 Données d''entrée'!$C$332*($E1632-SUM($C1637:F1637)),0))","v":0},{"$f":"IF(G1554<1+$B1636,0,IF(G1554<'1 Données d''entrée'!$C$334+'1 Données d''entrée'!$C$333+1+$B1636,'1 Données d''entrée'!$C$332*($E1632-SUM($C1637:G1637)),0))","v":0},{"$f":"IF(H1554<1+$B1636,0,IF(H1554<'1 Données d''entrée'!$C$334+'1 Données d''entrée'!$C$333+1+$B1636,'1 Données d''entrée'!$C$332*($E1632-SUM($C1637:H1637)),0))","v":0},{"$f":"IF(I1554<1+$B1636,0,IF(I1554<'1 Données d''entrée'!$C$334+'1 Données d''entrée'!$C$333+1+$B1636,'1 Données d''entrée'!$C$332*($E1632-SUM($C1637:I1637)),0))","v":0},{"$f":"IF(J1554<1+$B1636,0,IF(J1554<'1 Données d''entrée'!$C$334+'1 Données d''entrée'!$C$333+1+$B1636,'1 Données d''entrée'!$C$332*($E1632-SUM($C1637:J1637)),0))","v":0},{"$f":"IF(K1554<1+$B1636,0,IF(K1554<'1 Données d''entrée'!$C$334+'1 Données d''entrée'!$C$333+1+$B1636,'1 Données d''entrée'!$C$332*($E1632-SUM($C1637:K1637)),0))","v":0},{"$f":"IF(L1554<1+$B1636,0,IF(L1554<'1 Données d''entrée'!$C$334+'1 Données d''entrée'!$C$333+1+$B1636,'1 Données d''entrée'!$C$332*($E1632-SUM($C1637:L1637)),0))","v":0},{"$f":"IF(M1554<1+$B1636,0,IF(M1554<'1 Données d''entrée'!$C$334+'1 Données d''entrée'!$C$333+1+$B1636,'1 Données d''entrée'!$C$332*($E1632-SUM($C1637:M1637)),0))","v":0},{"$f":"IF(N1554<1+$B1636,0,IF(N1554<'1 Données d''entrée'!$C$334+'1 Données d''entrée'!$C$333+1+$B1636,'1 Données d''entrée'!$C$332*($E1632-SUM($C1637:N1637)),0))","v":0},{"$f":"IF(O1554<1+$B1636,0,IF(O1554<'1 Données d''entrée'!$C$334+'1 Données d''entrée'!$C$333+1+$B1636,'1 Données d''entrée'!$C$332*($E1632-SUM($C1637:O1637)),0))","v":0},{"$f":"IF(P1554<1+$B1636,0,IF(P1554<'1 Données d''entrée'!$C$334+'1 Données d''entrée'!$C$333+1+$B1636,'1 Données d''entrée'!$C$332*($E1632-SUM($C1637:P1637)),0))","v":0},{"$f":"IF(Q1554<1+$B1636,0,IF(Q1554<'1 Données d''entrée'!$C$334+'1 Données d''entrée'!$C$333+1+$B1636,'1 Données d''entrée'!$C$332*($E1632-SUM($C1637:Q1637)),0))","v":0},{"$f":"IF(R1554<1+$B1636,0,IF(R1554<'1 Données d''entrée'!$C$334+'1 Données d''entrée'!$C$333+1+$B1636,'1 Données d''entrée'!$C$332*($E1632-SUM($C1637:R1637)),0))","v":0},{"$f":"IF(S1554<1+$B1636,0,IF(S1554<'1 Données d''entrée'!$C$334+'1 Données d''entrée'!$C$333+1+$B1636,'1 Données d''entrée'!$C$332*($E1632-SUM($C1637:S1637)),0))","v":0},{"$f":"IF(T1554<1+$B1636,0,IF(T1554<'1 Données d''entrée'!$C$334+'1 Données d''entrée'!$C$333+1+$B1636,'1 Données d''entrée'!$C$332*($E1632-SUM($C1637:T1637)),0))","v":0},{"$f":"IF(U1554<1+$B1636,0,IF(U1554<'1 Données d''entrée'!$C$334+'1 Données d''entrée'!$C$333+1+$B1636,'1 Données d''entrée'!$C$332*($E1632-SUM($C1637:U1637)),0))","v":0}]
["Paiement d'intêrets",4,0,{"$f":"IF(C1554<1+$B1637,0,IF(C1554<'1 Données d''entrée'!$C$334+'1 Données d''entrée'!$C$333+1+$B1637,'1 Données d''entrée'!$C$332*($F1632-SUM($C1638:C1638)),0))","v":0},{"$f":"IF(D1554<1+$B1637,0,IF(D1554<'1 Données d''entrée'!$C$334+'1 Données d''entrée'!$C$333+1+$B1637,'1 Données d''entrée'!$C$332*($F1632-SUM($C1638:D1638)),0))","v":0},{"$f":"IF(E1554<1+$B1637,0,IF(E1554<'1 Données d''entrée'!$C$334+'1 Données d''entrée'!$C$333+1+$B1637,'1 Données d''entrée'!$C$332*($F1632-SUM($C1638:E1638)),0))","v":0},{"$f":"IF(F1554<1+$B1637,0,IF(F1554<'1 Données d''entrée'!$C$334+'1 Données d''entrée'!$C$333+1+$B1637,'1 Données d''entrée'!$C$332*($F1632-SUM($C1638:F1638)),0))","v":0},{"$f":"IF(G1554<1+$B1637,0,IF(G1554<'1 Données d''entrée'!$C$334+'1 Données d''entrée'!$C$333+1+$B1637,'1 Données d''entrée'!$C$332*($F1632-SUM($C1638:G1638)),0))","v":0},{"$f":"IF(H1554<1+$B1637,0,IF(H1554<'1 Données d''entrée'!$C$334+'1 Données d''entrée'!$C$333+1+$B1637,'1 Données d''entrée'!$C$332*($F1632-SUM($C1638:H1638)),0))","v":0},{"$f":"IF(I1554<1+$B1637,0,IF(I1554<'1 Données d''entrée'!$C$334+'1 Données d''entrée'!$C$333+1+$B1637,'1 Données d''entrée'!$C$332*($F1632-SUM($C1638:I1638)),0))","v":0},{"$f":"IF(J1554<1+$B1637,0,IF(J1554<'1 Données d''entrée'!$C$334+'1 Données d''entrée'!$C$333+1+$B1637,'1 Données d''entrée'!$C$332*($F1632-SUM($C1638:J1638)),0))","v":0},{"$f":"IF(K1554<1+$B1637,0,IF(K1554<'1 Données d''entrée'!$C$334+'1 Données d''entrée'!$C$333+1+$B1637,'1 Données d''entrée'!$C$332*($F1632-SUM($C1638:K1638)),0))","v":0},{"$f":"IF(L1554<1+$B1637,0,IF(L1554<'1 Données d''entrée'!$C$334+'1 Données d''entrée'!$C$333+1+$B1637,'1 Données d''entrée'!$C$332*($F1632-SUM($C1638:L1638)),0))","v":0},{"$f":"IF(M1554<1+$B1637,0,IF(M1554<'1 Données d''entrée'!$C$334+'1 Données d''entrée'!$C$333+1+$B1637,'1 Données d''entrée'!$C$332*($F1632-SUM($C1638:M1638)),0))","v":0},{"$f":"IF(N1554<1+$B1637,0,IF(N1554<'1 Données d''entrée'!$C$334+'1 Données d''entrée'!$C$333+1+$B1637,'1 Données d''entrée'!$C$332*($F1632-SUM($C1638:N1638)),0))","v":0},{"$f":"IF(O1554<1+$B1637,0,IF(O1554<'1 Données d''entrée'!$C$334+'1 Données d''entrée'!$C$333+1+$B1637,'1 Données d''entrée'!$C$332*($F1632-SUM($C1638:O1638)),0))","v":0},{"$f":"IF(P1554<1+$B1637,0,IF(P1554<'1 Données d''entrée'!$C$334+'1 Données d''entrée'!$C$333+1+$B1637,'1 Données d''entrée'!$C$332*($F1632-SUM($C1638:P1638)),0))","v":0},{"$f":"IF(Q1554<1+$B1637,0,IF(Q1554<'1 Données d''entrée'!$C$334+'1 Données d''entrée'!$C$333+1+$B1637,'1 Données d''entrée'!$C$332*($F1632-SUM($C1638:Q1638)),0))","v":0},{"$f":"IF(R1554<1+$B1637,0,IF(R1554<'1 Données d''entrée'!$C$334+'1 Données d''entrée'!$C$333+1+$B1637,'1 Données d''entrée'!$C$332*($F1632-SUM($C1638:R1638)),0))","v":0},{"$f":"IF(S1554<1+$B1637,0,IF(S1554<'1 Données d''entrée'!$C$334+'1 Données d''entrée'!$C$333+1+$B1637,'1 Données d''entrée'!$C$332*($F1632-SUM($C1638:S1638)),0))","v":0},{"$f":"IF(T1554<1+$B1637,0,IF(T1554<'1 Données d''entrée'!$C$334+'1 Données d''entrée'!$C$333+1+$B1637,'1 Données d''entrée'!$C$332*($F1632-SUM($C1638:T1638)),0))","v":0},{"$f":"IF(U1554<1+$B1637,0,IF(U1554<'1 Données d''entrée'!$C$334+'1 Données d''entrée'!$C$333+1+$B1637,'1 Données d''entrée'!$C$332*($F1632-SUM($C1638:U1638)),0))","v":0}]
["Paiement d'intêrets",5,0,{"$f":"IF(C1554<1+$B1638,0,IF(C1554<'1 Données d''entrée'!$C$334+'1 Données d''entrée'!$C$333+1+$B1638,'1 Données d''entrée'!$C$332*($G1632-SUM($C1639:C1639)),0))","v":0},{"$f":"IF(D1554<1+$B1638,0,IF(D1554<'1 Données d''entrée'!$C$334+'1 Données d''entrée'!$C$333+1+$B1638,'1 Données d''entrée'!$C$332*($G1632-SUM($C1639:D1639)),0))","v":0},{"$f":"IF(E1554<1+$B1638,0,IF(E1554<'1 Données d''entrée'!$C$334+'1 Données d''entrée'!$C$333+1+$B1638,'1 Données d''entrée'!$C$332*($G1632-SUM($C1639:E1639)),0))","v":0},{"$f":"IF(F1554<1+$B1638,0,IF(F1554<'1 Données d''entrée'!$C$334+'1 Données d''entrée'!$C$333+1+$B1638,'1 Données d''entrée'!$C$332*($G1632-SUM($C1639:F1639)),0))","v":0},{"$f":"IF(G1554<1+$B1638,0,IF(G1554<'1 Données d''entrée'!$C$334+'1 Données d''entrée'!$C$333+1+$B1638,'1 Données d''entrée'!$C$332*($G1632-SUM($C1639:G1639)),0))","v":0},{"$f":"IF(H1554<1+$B1638,0,IF(H1554<'1 Données d''entrée'!$C$334+'1 Données d''entrée'!$C$333+1+$B1638,'1 Données d''entrée'!$C$332*($G1632-SUM($C1639:H1639)),0))","v":0},{"$f":"IF(I1554<1+$B1638,0,IF(I1554<'1 Données d''entrée'!$C$334+'1 Données d''entrée'!$C$333+1+$B1638,'1 Données d''entrée'!$C$332*($G1632-SUM($C1639:I1639)),0))","v":0},{"$f":"IF(J1554<1+$B1638,0,IF(J1554<'1 Données d''entrée'!$C$334+'1 Données d''entrée'!$C$333+1+$B1638,'1 Données d''entrée'!$C$332*($G1632-SUM($C1639:J1639)),0))","v":0},{"$f":"IF(K1554<1+$B1638,0,IF(K1554<'1 Données d''entrée'!$C$334+'1 Données d''entrée'!$C$333+1+$B1638,'1 Données d''entrée'!$C$332*($G1632-SUM($C1639:K1639)),0))","v":0},{"$f":"IF(L1554<1+$B1638,0,IF(L1554<'1 Données d''entrée'!$C$334+'1 Données d''entrée'!$C$333+1+$B1638,'1 Données d''entrée'!$C$332*($G1632-SUM($C1639:L1639)),0))","v":0},{"$f":"IF(M1554<1+$B1638,0,IF(M1554<'1 Données d''entrée'!$C$334+'1 Données d''entrée'!$C$333+1+$B1638,'1 Données d''entrée'!$C$332*($G1632-SUM($C1639:M1639)),0))","v":0},{"$f":"IF(N1554<1+$B1638,0,IF(N1554<'1 Données d''entrée'!$C$334+'1 Données d''entrée'!$C$333+1+$B1638,'1 Données d''entrée'!$C$332*($G1632-SUM($C1639:N1639)),0))","v":0},{"$f":"IF(O1554<1+$B1638,0,IF(O1554<'1 Données d''entrée'!$C$334+'1 Données d''entrée'!$C$333+1+$B1638,'1 Données d''entrée'!$C$332*($G1632-SUM($C1639:O1639)),0))","v":0},{"$f":"IF(P1554<1+$B1638,0,IF(P1554<'1 Données d''entrée'!$C$334+'1 Données d''entrée'!$C$333+1+$B1638,'1 Données d''entrée'!$C$332*($G1632-SUM($C1639:P1639)),0))","v":0},{"$f":"IF(Q1554<1+$B1638,0,IF(Q1554<'1 Données d''entrée'!$C$334+'1 Données d''entrée'!$C$333+1+$B1638,'1 Données d''entrée'!$C$332*($G1632-SUM($C1639:Q1639)),0))","v":0},{"$f":"IF(R1554<1+$B1638,0,IF(R1554<'1 Données d''entrée'!$C$334+'1 Données d''entrée'!$C$333+1+$B1638,'1 Données d''entrée'!$C$332*($G1632-SUM($C1639:R1639)),0))","v":0},{"$f":"IF(S1554<1+$B1638,0,IF(S1554<'1 Données d''entrée'!$C$334+'1 Données d''entrée'!$C$333+1+$B1638,'1 Données d''entrée'!$C$332*($G1632-SUM($C1639:S1639)),0))","v":0},{"$f":"IF(T1554<1+$B1638,0,IF(T1554<'1 Données d''entrée'!$C$334+'1 Données d''entrée'!$C$333+1+$B1638,'1 Données d''entrée'!$C$332*($G1632-SUM($C1639:T1639)),0))","v":0},{"$f":"IF(U1554<1+$B1638,0,IF(U1554<'1 Données d''entrée'!$C$334+'1 Données d''entrée'!$C$333+1+$B1638,'1 Données d''entrée'!$C$332*($G1632-SUM($C1639:U1639)),0))","v":0}]
["Paiement d'intêrets",6,0,{"$f":"IF(C1554<1+$B1639,0,IF(C1554<'1 Données d''entrée'!$C$334+'1 Données d''entrée'!$C$333+1+$B1639,'1 Données d''entrée'!$C$332*($H1632-SUM($C1640:C1640)),0))","v":0},{"$f":"IF(D1554<1+$B1639,0,IF(D1554<'1 Données d''entrée'!$C$334+'1 Données d''entrée'!$C$333+1+$B1639,'1 Données d''entrée'!$C$332*($H1632-SUM($C1640:D1640)),0))","v":0},{"$f":"IF(E1554<1+$B1639,0,IF(E1554<'1 Données d''entrée'!$C$334+'1 Données d''entrée'!$C$333+1+$B1639,'1 Données d''entrée'!$C$332*($H1632-SUM($C1640:E1640)),0))","v":0},{"$f":"IF(F1554<1+$B1639,0,IF(F1554<'1 Données d''entrée'!$C$334+'1 Données d''entrée'!$C$333+1+$B1639,'1 Données d''entrée'!$C$332*($H1632-SUM($C1640:F1640)),0))","v":0},{"$f":"IF(G1554<1+$B1639,0,IF(G1554<'1 Données d''entrée'!$C$334+'1 Données d''entrée'!$C$333+1+$B1639,'1 Données d''entrée'!$C$332*($H1632-SUM($C1640:G1640)),0))","v":0},{"$f":"IF(H1554<1+$B1639,0,IF(H1554<'1 Données d''entrée'!$C$334+'1 Données d''entrée'!$C$333+1+$B1639,'1 Données d''entrée'!$C$332*($H1632-SUM($C1640:H1640)),0))","v":0},{"$f":"IF(I1554<1+$B1639,0,IF(I1554<'1 Données d''entrée'!$C$334+'1 Données d''entrée'!$C$333+1+$B1639,'1 Données d''entrée'!$C$332*($H1632-SUM($C1640:I1640)),0))","v":0},{"$f":"IF(J1554<1+$B1639,0,IF(J1554<'1 Données d''entrée'!$C$334+'1 Données d''entrée'!$C$333+1+$B1639,'1 Données d''entrée'!$C$332*($H1632-SUM($C1640:J1640)),0))","v":0},{"$f":"IF(K1554<1+$B1639,0,IF(K1554<'1 Données d''entrée'!$C$334+'1 Données d''entrée'!$C$333+1+$B1639,'1 Données d''entrée'!$C$332*($H1632-SUM($C1640:K1640)),0))","v":0},{"$f":"IF(L1554<1+$B1639,0,IF(L1554<'1 Données d''entrée'!$C$334+'1 Données d''entrée'!$C$333+1+$B1639,'1 Données d''entrée'!$C$332*($H1632-SUM($C1640:L1640)),0))","v":0},{"$f":"IF(M1554<1+$B1639,0,IF(M1554<'1 Données d''entrée'!$C$334+'1 Données d''entrée'!$C$333+1+$B1639,'1 Données d''entrée'!$C$332*($H1632-SUM($C1640:M1640)),0))","v":0},{"$f":"IF(N1554<1+$B1639,0,IF(N1554<'1 Données d''entrée'!$C$334+'1 Données d''entrée'!$C$333+1+$B1639,'1 Données d''entrée'!$C$332*($H1632-SUM($C1640:N1640)),0))","v":0},{"$f":"IF(O1554<1+$B1639,0,IF(O1554<'1 Données d''entrée'!$C$334+'1 Données d''entrée'!$C$333+1+$B1639,'1 Données d''entrée'!$C$332*($H1632-SUM($C1640:O1640)),0))","v":0},{"$f":"IF(P1554<1+$B1639,0,IF(P1554<'1 Données d''entrée'!$C$334+'1 Données d''entrée'!$C$333+1+$B1639,'1 Données d''entrée'!$C$332*($H1632-SUM($C1640:P1640)),0))","v":0},{"$f":"IF(Q1554<1+$B1639,0,IF(Q1554<'1 Données d''entrée'!$C$334+'1 Données d''entrée'!$C$333+1+$B1639,'1 Données d''entrée'!$C$332*($H1632-SUM($C1640:Q1640)),0))","v":0},{"$f":"IF(R1554<1+$B1639,0,IF(R1554<'1 Données d''entrée'!$C$334+'1 Données d''entrée'!$C$333+1+$B1639,'1 Données d''entrée'!$C$332*($H1632-SUM($C1640:R1640)),0))","v":0},{"$f":"IF(S1554<1+$B1639,0,IF(S1554<'1 Données d''entrée'!$C$334+'1 Données d''entrée'!$C$333+1+$B1639,'1 Données d''entrée'!$C$332*($H1632-SUM($C1640:S1640)),0))","v":0},{"$f":"IF(T1554<1+$B1639,0,IF(T1554<'1 Données d''entrée'!$C$334+'1 Données d''entrée'!$C$333+1+$B1639,'1 Données d''entrée'!$C$332*($H1632-SUM($C1640:T1640)),0))","v":0},{"$f":"IF(U1554<1+$B1639,0,IF(U1554<'1 Données d''entrée'!$C$334+'1 Données d''entrée'!$C$333+1+$B1639,'1 Données d''entrée'!$C$332*($H1632-SUM($C1640:U1640)),0))","v":0}]
["Paiement d'intêrets",7,0,{"$f":"IF(C1554<1+$B1640,0,IF(C1554<'1 Données d''entrée'!$C$334+'1 Données d''entrée'!$C$333+1+$B1640,'1 Données d''entrée'!$C$332*($I1632-SUM($C1641:C1641)),0))","v":0},{"$f":"IF(D1554<1+$B1640,0,IF(D1554<'1 Données d''entrée'!$C$334+'1 Données d''entrée'!$C$333+1+$B1640,'1 Données d''entrée'!$C$332*($I1632-SUM($C1641:D1641)),0))","v":0},{"$f":"IF(E1554<1+$B1640,0,IF(E1554<'1 Données d''entrée'!$C$334+'1 Données d''entrée'!$C$333+1+$B1640,'1 Données d''entrée'!$C$332*($I1632-SUM($C1641:E1641)),0))","v":0},{"$f":"IF(F1554<1+$B1640,0,IF(F1554<'1 Données d''entrée'!$C$334+'1 Données d''entrée'!$C$333+1+$B1640,'1 Données d''entrée'!$C$332*($I1632-SUM($C1641:F1641)),0))","v":0},{"$f":"IF(G1554<1+$B1640,0,IF(G1554<'1 Données d''entrée'!$C$334+'1 Données d''entrée'!$C$333+1+$B1640,'1 Données d''entrée'!$C$332*($I1632-SUM($C1641:G1641)),0))","v":0},{"$f":"IF(H1554<1+$B1640,0,IF(H1554<'1 Données d''entrée'!$C$334+'1 Données d''entrée'!$C$333+1+$B1640,'1 Données d''entrée'!$C$332*($I1632-SUM($C1641:H1641)),0))","v":0},{"$f":"IF(I1554<1+$B1640,0,IF(I1554<'1 Données d''entrée'!$C$334+'1 Données d''entrée'!$C$333+1+$B1640,'1 Données d''entrée'!$C$332*($I1632-SUM($C1641:I1641)),0))","v":0},{"$f":"IF(J1554<1+$B1640,0,IF(J1554<'1 Données d''entrée'!$C$334+'1 Données d''entrée'!$C$333+1+$B1640,'1 Données d''entrée'!$C$332*($I1632-SUM($C1641:J1641)),0))","v":0},{"$f":"IF(K1554<1+$B1640,0,IF(K1554<'1 Données d''entrée'!$C$334+'1 Données d''entrée'!$C$333+1+$B1640,'1 Données d''entrée'!$C$332*($I1632-SUM($C1641:K1641)),0))","v":0},{"$f":"IF(L1554<1+$B1640,0,IF(L1554<'1 Données d''entrée'!$C$334+'1 Données d''entrée'!$C$333+1+$B1640,'1 Données d''entrée'!$C$332*($I1632-SUM($C1641:L1641)),0))","v":0},{"$f":"IF(M1554<1+$B1640,0,IF(M1554<'1 Données d''entrée'!$C$334+'1 Données d''entrée'!$C$333+1+$B1640,'1 Données d''entrée'!$C$332*($I1632-SUM($C1641:M1641)),0))","v":0},{"$f":"IF(N1554<1+$B1640,0,IF(N1554<'1 Données d''entrée'!$C$334+'1 Données d''entrée'!$C$333+1+$B1640,'1 Données d''entrée'!$C$332*($I1632-SUM($C1641:N1641)),0))","v":0},{"$f":"IF(O1554<1+$B1640,0,IF(O1554<'1 Données d''entrée'!$C$334+'1 Données d''entrée'!$C$333+1+$B1640,'1 Données d''entrée'!$C$332*($I1632-SUM($C1641:O1641)),0))","v":0},{"$f":"IF(P1554<1+$B1640,0,IF(P1554<'1 Données d''entrée'!$C$334+'1 Données d''entrée'!$C$333+1+$B1640,'1 Données d''entrée'!$C$332*($I1632-SUM($C1641:P1641)),0))","v":0},{"$f":"IF(Q1554<1+$B1640,0,IF(Q1554<'1 Données d''entrée'!$C$334+'1 Données d''entrée'!$C$333+1+$B1640,'1 Données d''entrée'!$C$332*($I1632-SUM($C1641:Q1641)),0))","v":0},{"$f":"IF(R1554<1+$B1640,0,IF(R1554<'1 Données d''entrée'!$C$334+'1 Données d''entrée'!$C$333+1+$B1640,'1 Données d''entrée'!$C$332*($I1632-SUM($C1641:R1641)),0))","v":0},{"$f":"IF(S1554<1+$B1640,0,IF(S1554<'1 Données d''entrée'!$C$334+'1 Données d''entrée'!$C$333+1+$B1640,'1 Données d''entrée'!$C$332*($I1632-SUM($C1641:S1641)),0))","v":0},{"$f":"IF(T1554<1+$B1640,0,IF(T1554<'1 Données d''entrée'!$C$334+'1 Données d''entrée'!$C$333+1+$B1640,'1 Données d''entrée'!$C$332*($I1632-SUM($C1641:T1641)),0))","v":0},{"$f":"IF(U1554<1+$B1640,0,IF(U1554<'1 Données d''entrée'!$C$334+'1 Données d''entrée'!$C$333+1+$B1640,'1 Données d''entrée'!$C$332*($I1632-SUM($C1641:U1641)),0))","v":0}]
["Paiement d'intêrets",8,0,{"$f":"IF(C1554<1+$B1641,0,IF(C1554<'1 Données d''entrée'!$C$334+'1 Données d''entrée'!$C$333+1+$B1641,'1 Données d''entrée'!$C$332*($J1632-SUM($C1642:C1642)),0))","v":0},{"$f":"IF(D1554<1+$B1641,0,IF(D1554<'1 Données d''entrée'!$C$334+'1 Données d''entrée'!$C$333+1+$B1641,'1 Données d''entrée'!$C$332*($J1632-SUM($C1642:D1642)),0))","v":0},{"$f":"IF(E1554<1+$B1641,0,IF(E1554<'1 Données d''entrée'!$C$334+'1 Données d''entrée'!$C$333+1+$B1641,'1 Données d''entrée'!$C$332*($J1632-SUM($C1642:E1642)),0))","v":0},{"$f":"IF(F1554<1+$B1641,0,IF(F1554<'1 Données d''entrée'!$C$334+'1 Données d''entrée'!$C$333+1+$B1641,'1 Données d''entrée'!$C$332*($J1632-SUM($C1642:F1642)),0))","v":0},{"$f":"IF(G1554<1+$B1641,0,IF(G1554<'1 Données d''entrée'!$C$334+'1 Données d''entrée'!$C$333+1+$B1641,'1 Données d''entrée'!$C$332*($J1632-SUM($C1642:G1642)),0))","v":0},{"$f":"IF(H1554<1+$B1641,0,IF(H1554<'1 Données d''entrée'!$C$334+'1 Données d''entrée'!$C$333+1+$B1641,'1 Données d''entrée'!$C$332*($J1632-SUM($C1642:H1642)),0))","v":0},{"$f":"IF(I1554<1+$B1641,0,IF(I1554<'1 Données d''entrée'!$C$334+'1 Données d''entrée'!$C$333+1+$B1641,'1 Données d''entrée'!$C$332*($J1632-SUM($C1642:I1642)),0))","v":0},{"$f":"IF(J1554<1+$B1641,0,IF(J1554<'1 Données d''entrée'!$C$334+'1 Données d''entrée'!$C$333+1+$B1641,'1 Données d''entrée'!$C$332*($J1632-SUM($C1642:J1642)),0))","v":0},{"$f":"IF(K1554<1+$B1641,0,IF(K1554<'1 Données d''entrée'!$C$334+'1 Données d''entrée'!$C$333+1+$B1641,'1 Données d''entrée'!$C$332*($J1632-SUM($C1642:K1642)),0))","v":0},{"$f":"IF(L1554<1+$B1641,0,IF(L1554<'1 Données d''entrée'!$C$334+'1 Données d''entrée'!$C$333+1+$B1641,'1 Données d''entrée'!$C$332*($J1632-SUM($C1642:L1642)),0))","v":0},{"$f":"IF(M1554<1+$B1641,0,IF(M1554<'1 Données d''entrée'!$C$334+'1 Données d''entrée'!$C$333+1+$B1641,'1 Données d''entrée'!$C$332*($J1632-SUM($C1642:M1642)),0))","v":0},{"$f":"IF(N1554<1+$B1641,0,IF(N1554<'1 Données d''entrée'!$C$334+'1 Données d''entrée'!$C$333+1+$B1641,'1 Données d''entrée'!$C$332*($J1632-SUM($C1642:N1642)),0))","v":0},{"$f":"IF(O1554<1+$B1641,0,IF(O1554<'1 Données d''entrée'!$C$334+'1 Données d''entrée'!$C$333+1+$B1641,'1 Données d''entrée'!$C$332*($J1632-SUM($C1642:O1642)),0))","v":0},{"$f":"IF(P1554<1+$B1641,0,IF(P1554<'1 Données d''entrée'!$C$334+'1 Données d''entrée'!$C$333+1+$B1641,'1 Données d''entrée'!$C$332*($J1632-SUM($C1642:P1642)),0))","v":0},{"$f":"IF(Q1554<1+$B1641,0,IF(Q1554<'1 Données d''entrée'!$C$334+'1 Données d''entrée'!$C$333+1+$B1641,'1 Données d''entrée'!$C$332*($J1632-SUM($C1642:Q1642)),0))","v":0},{"$f":"IF(R1554<1+$B1641,0,IF(R1554<'1 Données d''entrée'!$C$334+'1 Données d''entrée'!$C$333+1+$B1641,'1 Données d''entrée'!$C$332*($J1632-SUM($C1642:R1642)),0))","v":0},{"$f":"IF(S1554<1+$B1641,0,IF(S1554<'1 Données d''entrée'!$C$334+'1 Données d''entrée'!$C$333+1+$B1641,'1 Données d''entrée'!$C$332*($J1632-SUM($C1642:S1642)),0))","v":0},{"$f":"IF(T1554<1+$B1641,0,IF(T1554<'1 Données d''entrée'!$C$334+'1 Données d''entrée'!$C$333+1+$B1641,'1 Données d''entrée'!$C$332*($J1632-SUM($C1642:T1642)),0))","v":0},{"$f":"IF(U1554<1+$B1641,0,IF(U1554<'1 Données d''entrée'!$C$334+'1 Données d''entrée'!$C$333+1+$B1641,'1 Données d''entrée'!$C$332*($J1632-SUM($C1642:U1642)),0))","v":0}]
["Paiement d'intêrets",9,0,{"$f":"IF(C1554<1+$B1642,0,IF(C1554<'1 Données d''entrée'!$C$334+'1 Données d''entrée'!$C$333+1+$B1642,'1 Données d''entrée'!$C$332*($K1632-SUM($C1643:C1643)),0))","v":0},{"$f":"IF(D1554<1+$B1642,0,IF(D1554<'1 Données d''entrée'!$C$334+'1 Données d''entrée'!$C$333+1+$B1642,'1 Données d''entrée'!$C$332*($K1632-SUM($C1643:D1643)),0))","v":0},{"$f":"IF(E1554<1+$B1642,0,IF(E1554<'1 Données d''entrée'!$C$334+'1 Données d''entrée'!$C$333+1+$B1642,'1 Données d''entrée'!$C$332*($K1632-SUM($C1643:E1643)),0))","v":0},{"$f":"IF(F1554<1+$B1642,0,IF(F1554<'1 Données d''entrée'!$C$334+'1 Données d''entrée'!$C$333+1+$B1642,'1 Données d''entrée'!$C$332*($K1632-SUM($C1643:F1643)),0))","v":0},{"$f":"IF(G1554<1+$B1642,0,IF(G1554<'1 Données d''entrée'!$C$334+'1 Données d''entrée'!$C$333+1+$B1642,'1 Données d''entrée'!$C$332*($K1632-SUM($C1643:G1643)),0))","v":0},{"$f":"IF(H1554<1+$B1642,0,IF(H1554<'1 Données d''entrée'!$C$334+'1 Données d''entrée'!$C$333+1+$B1642,'1 Données d''entrée'!$C$332*($K1632-SUM($C1643:H1643)),0))","v":0},{"$f":"IF(I1554<1+$B1642,0,IF(I1554<'1 Données d''entrée'!$C$334+'1 Données d''entrée'!$C$333+1+$B1642,'1 Données d''entrée'!$C$332*($K1632-SUM($C1643:I1643)),0))","v":0},{"$f":"IF(J1554<1+$B1642,0,IF(J1554<'1 Données d''entrée'!$C$334+'1 Données d''entrée'!$C$333+1+$B1642,'1 Données d''entrée'!$C$332*($K1632-SUM($C1643:J1643)),0))","v":0},{"$f":"IF(K1554<1+$B1642,0,IF(K1554<'1 Données d''entrée'!$C$334+'1 Données d''entrée'!$C$333+1+$B1642,'1 Données d''entrée'!$C$332*($K1632-SUM($C1643:K1643)),0))","v":0},{"$f":"IF(L1554<1+$B1642,0,IF(L1554<'1 Données d''entrée'!$C$334+'1 Données d''entrée'!$C$333+1+$B1642,'1 Données d''entrée'!$C$332*($K1632-SUM($C1643:L1643)),0))","v":0},{"$f":"IF(M1554<1+$B1642,0,IF(M1554<'1 Données d''entrée'!$C$334+'1 Données d''entrée'!$C$333+1+$B1642,'1 Données d''entrée'!$C$332*($K1632-SUM($C1643:M1643)),0))","v":0},{"$f":"IF(N1554<1+$B1642,0,IF(N1554<'1 Données d''entrée'!$C$334+'1 Données d''entrée'!$C$333+1+$B1642,'1 Données d''entrée'!$C$332*($K1632-SUM($C1643:N1643)),0))","v":0},{"$f":"IF(O1554<1+$B1642,0,IF(O1554<'1 Données d''entrée'!$C$334+'1 Données d''entrée'!$C$333+1+$B1642,'1 Données d''entrée'!$C$332*($K1632-SUM($C1643:O1643)),0))","v":0},{"$f":"IF(P1554<1+$B1642,0,IF(P1554<'1 Données d''entrée'!$C$334+'1 Données d''entrée'!$C$333+1+$B1642,'1 Données d''entrée'!$C$332*($K1632-SUM($C1643:P1643)),0))","v":0},{"$f":"IF(Q1554<1+$B1642,0,IF(Q1554<'1 Données d''entrée'!$C$334+'1 Données d''entrée'!$C$333+1+$B1642,'1 Données d''entrée'!$C$332*($K1632-SUM($C1643:Q1643)),0))","v":0},{"$f":"IF(R1554<1+$B1642,0,IF(R1554<'1 Données d''entrée'!$C$334+'1 Données d''entrée'!$C$333+1+$B1642,'1 Données d''entrée'!$C$332*($K1632-SUM($C1643:R1643)),0))","v":0},{"$f":"IF(S1554<1+$B1642,0,IF(S1554<'1 Données d''entrée'!$C$334+'1 Données d''entrée'!$C$333+1+$B1642,'1 Données d''entrée'!$C$332*($K1632-SUM($C1643:S1643)),0))","v":0},{"$f":"IF(T1554<1+$B1642,0,IF(T1554<'1 Données d''entrée'!$C$334+'1 Données d''entrée'!$C$333+1+$B1642,'1 Données d''entrée'!$C$332*($K1632-SUM($C1643:T1643)),0))","v":0},{"$f":"IF(U1554<1+$B1642,0,IF(U1554<'1 Données d''entrée'!$C$334+'1 Données d''entrée'!$C$333+1+$B1642,'1 Données d''entrée'!$C$332*($K1632-SUM($C1643:U1643)),0))","v":0}]
["Paiement d'intêrets",10,0,{"$f":"IF(C1554<1+$B1643,0,IF(C1554<'1 Données d''entrée'!$C$334+'1 Données d''entrée'!$C$333+1+$B1643,'1 Données d''entrée'!$C$332*($L1632-SUM($C1644:C1644)),0))","v":0},{"$f":"IF(D1554<1+$B1643,0,IF(D1554<'1 Données d''entrée'!$C$334+'1 Données d''entrée'!$C$333+1+$B1643,'1 Données d''entrée'!$C$332*($L1632-SUM($C1644:D1644)),0))","v":0},{"$f":"IF(E1554<1+$B1643,0,IF(E1554<'1 Données d''entrée'!$C$334+'1 Données d''entrée'!$C$333+1+$B1643,'1 Données d''entrée'!$C$332*($L1632-SUM($C1644:E1644)),0))","v":0},{"$f":"IF(F1554<1+$B1643,0,IF(F1554<'1 Données d''entrée'!$C$334+'1 Données d''entrée'!$C$333+1+$B1643,'1 Données d''entrée'!$C$332*($L1632-SUM($C1644:F1644)),0))","v":0},{"$f":"IF(G1554<1+$B1643,0,IF(G1554<'1 Données d''entrée'!$C$334+'1 Données d''entrée'!$C$333+1+$B1643,'1 Données d''entrée'!$C$332*($L1632-SUM($C1644:G1644)),0))","v":0},{"$f":"IF(H1554<1+$B1643,0,IF(H1554<'1 Données d''entrée'!$C$334+'1 Données d''entrée'!$C$333+1+$B1643,'1 Données d''entrée'!$C$332*($L1632-SUM($C1644:H1644)),0))","v":0},{"$f":"IF(I1554<1+$B1643,0,IF(I1554<'1 Données d''entrée'!$C$334+'1 Données d''entrée'!$C$333+1+$B1643,'1 Données d''entrée'!$C$332*($L1632-SUM($C1644:I1644)),0))","v":0},{"$f":"IF(J1554<1+$B1643,0,IF(J1554<'1 Données d''entrée'!$C$334+'1 Données d''entrée'!$C$333+1+$B1643,'1 Données d''entrée'!$C$332*($L1632-SUM($C1644:J1644)),0))","v":0},{"$f":"IF(K1554<1+$B1643,0,IF(K1554<'1 Données d''entrée'!$C$334+'1 Données d''entrée'!$C$333+1+$B1643,'1 Données d''entrée'!$C$332*($L1632-SUM($C1644:K1644)),0))","v":0},{"$f":"IF(L1554<1+$B1643,0,IF(L1554<'1 Données d''entrée'!$C$334+'1 Données d''entrée'!$C$333+1+$B1643,'1 Données d''entrée'!$C$332*($L1632-SUM($C1644:L1644)),0))","v":0},{"$f":"IF(M1554<1+$B1643,0,IF(M1554<'1 Données d''entrée'!$C$334+'1 Données d''entrée'!$C$333+1+$B1643,'1 Données d''entrée'!$C$332*($L1632-SUM($C1644:M1644)),0))","v":0},{"$f":"IF(N1554<1+$B1643,0,IF(N1554<'1 Données d''entrée'!$C$334+'1 Données d''entrée'!$C$333+1+$B1643,'1 Données d''entrée'!$C$332*($L1632-SUM($C1644:N1644)),0))","v":0},{"$f":"IF(O1554<1+$B1643,0,IF(O1554<'1 Données d''entrée'!$C$334+'1 Données d''entrée'!$C$333+1+$B1643,'1 Données d''entrée'!$C$332*($L1632-SUM($C1644:O1644)),0))","v":0},{"$f":"IF(P1554<1+$B1643,0,IF(P1554<'1 Données d''entrée'!$C$334+'1 Données d''entrée'!$C$333+1+$B1643,'1 Données d''entrée'!$C$332*($L1632-SUM($C1644:P1644)),0))","v":0},{"$f":"IF(Q1554<1+$B1643,0,IF(Q1554<'1 Données d''entrée'!$C$334+'1 Données d''entrée'!$C$333+1+$B1643,'1 Données d''entrée'!$C$332*($L1632-SUM($C1644:Q1644)),0))","v":0},{"$f":"IF(R1554<1+$B1643,0,IF(R1554<'1 Données d''entrée'!$C$334+'1 Données d''entrée'!$C$333+1+$B1643,'1 Données d''entrée'!$C$332*($L1632-SUM($C1644:R1644)),0))","v":0},{"$f":"IF(S1554<1+$B1643,0,IF(S1554<'1 Données d''entrée'!$C$334+'1 Données d''entrée'!$C$333+1+$B1643,'1 Données d''entrée'!$C$332*($L1632-SUM($C1644:S1644)),0))","v":0},{"$f":"IF(T1554<1+$B1643,0,IF(T1554<'1 Données d''entrée'!$C$334+'1 Données d''entrée'!$C$333+1+$B1643,'1 Données d''entrée'!$C$332*($L1632-SUM($C1644:T1644)),0))","v":0},{"$f":"IF(U1554<1+$B1643,0,IF(U1554<'1 Données d''entrée'!$C$334+'1 Données d''entrée'!$C$333+1+$B1643,'1 Données d''entrée'!$C$332*($L1632-SUM($C1644:U1644)),0))","v":0}]
[]
[null,"Période",1,2,3,4,5,6,7,8,9,10,11,12,13,14,15,16,17,18,19,20]
["Prêt bancaire - Option 3: Remboursement vers l'annuité constante",{"$f":"'1 Données d''entrée'!$B$344","v":0}]
["Prêt(s) nouveau(x)",null,{"$f":"IF(C1597<0,C1597*(-1)*$B1659+C1597*(-1)*$B1659*'1 Données d''entrée'!$C$338,0)","v":{"$error":"#DIV/0!"}},{"$f":"IF(D1597<0,D1597*(-1)*$B1659+D1597*(-1)*$B1659*'1 Données d''entrée'!$C$338,0)","v":{"$error":"#DIV/0!"}},{"$f":"IF(E1597<0,E1597*(-1)*$B1659+E1597*(-1)*$B1659*'1 Données d''entrée'!$C$338,0)","v":{"$error":"#DIV/0!"}},{"$f":"IF(F1597<0,F1597*(-1)*$B1659+F1597*(-1)*$B1659*'1 Données d''entrée'!$C$338,0)","v":{"$error":"#DIV/0!"}},{"$f":"IF(G1597<0,G1597*(-1)*$B1659+G1597*(-1)*$B1659*'1 Données d''entrée'!$C$338,0)","v":{"$error":"#DIV/0!"}},{"$f":"IF(H1597<0,H1597*(-1)*$B1659+H1597*(-1)*$B1659*'1 Données d''entrée'!$C$338,0)","v":{"$error":"#DIV/0!"}},{"$f":"IF(I1597<0,I1597*(-1)*$B1659+I1597*(-1)*$B1659*'1 Données d''entrée'!$C$338,0)","v":{"$error":"#DIV/0!"}},{"$f":"IF(J1597<0,J1597*(-1)*$B1659+J1597*(-1)*$B1659*'1 Données d''entrée'!$C$338,0)","v":{"$error":"#DIV/0!"}},{"$f":"IF(K1597<0,K1597*(-1)*$B1659+K1597*(-1)*$B1659*'1 Données d''entrée'!$C$338,0)","v":{"$error":"#DIV/0!"}},{"$f":"IF(L1597<0,L1597*(-1)*$B1659+L1597*(-1)*$B1659*'1 Données d''entrée'!$C$338,0)","v":{"$error":"#DIV/0!"}},{"$f":"IF(M1597<0,M1597*(-1)*$B1659+M1597*(-1)*$B1659*'1 Données d''entrée'!$C$338,0)","v":{"$error":"#DIV/0!"}},{"$f":"IF(N1597<0,N1597*(-1)*$B1659+N1597*(-1)*$B1659*'1 Données d''entrée'!$C$338,0)","v":{"$error":"#DIV/0!"}},{"$f":"IF(O1597<0,O1597*(-1)*$B1659+O1597*(-1)*$B1659*'1 Données d''entrée'!$C$338,0)","v":{"$error":"#DIV/0!"}},{"$f":"IF(P1597<0,P1597*(-1)*$B1659+P1597*(-1)*$B1659*'1 Données d''entrée'!$C$338,0)","v":{"$error":"#DIV/0!"}},{"$f":"IF(Q1597<0,Q1597*(-1)*$B1659+Q1597*(-1)*$B1659*'1 Données d''entrée'!$C$338,0)","v":{"$error":"#DIV/0!"}},{"$f":"IF(R1597<0,R1597*(-1)*$B1659+R1597*(-1)*$B1659*'1 Données d''entrée'!$C$338,0)","v":{"$error":"#DIV/0!"}},{"$f":"IF(S1597<0,S1597*(-1)*$B1659+S1597*(-1)*$B1659*'1 Données d''entrée'!$C$338,0)","v":{"$error":"#DIV/0!"}},{"$f":"IF(T1597<0,T1597*(-1)*$B1659+T1597*(-1)*$B1659*'1 Données d''entrée'!$C$338,0)","v":{"$error":"#DIV/0!"}},{"$f":"IF(U1597<0,U1597*(-1)*$B1659+U1597*(-1)*$B1659*'1 Données d''entrée'!$C$338,0)","v":{"$error":"#DIV/0!"}},{"$f":"IF(V1597<0,V1597*(-1)*$B1659+V1597*(-1)*$B1659*'1 Données d''entrée'!$C$338,0)","v":{"$error":"#DIV/0!"}}]
[null,"Période de prêt nouveau"]
["Remboursement vers l'annuité constante",0,0,0,0,0,0,0,0,0,0,0,0,0,0,0,0,0,0,0,0,0]
[null,1,{"$f":"IF(C$54<'1 Données d''entrée'!$C$334+1+$B1663,0,IF(C$54<'1 Données d''entrée'!$C$333+'1 Données d''entrée'!$C$334+1+$B1663,$C$160*('1 Données d''entrée'!$C$332*(1+'1 Données d''entrée'!$C$332)^'1 Données d''entrée'!$C$333)/((1+'1 Données d''entrée'!$C$332)^'1 Données d''entrée'!$C$333-1),0))","v":0},{"$f":"IF(D1554<'1 Données d''entrée'!$C$334+1+$B1663,0,IF(D1554<'1 Données d''entrée'!$C$333+'1 Données d''entrée'!$C$334+1+$B1663,$C1660*('1 Données d''entrée'!$C$332*(1+'1 Données d''entrée'!$C$332)^'1 Données d''entrée'!$C$333)/((1+'1 Données d''entrée'!$C$332)^'1 Données d''entrée'!$C$333-1),0))","v":0},{"$f":"IF(E1554<'1 Données d''entrée'!$C$334+1+$B1663,0,IF(E1554<'1 Données d''entrée'!$C$333+'1 Données d''entrée'!$C$334+1+$B1663,$C1660*('1 Données d''entrée'!$C$332*(1+'1 Données d''entrée'!$C$332)^'1 Données d''entrée'!$C$333)/((1+'1 Données d''entrée'!$C$332)^'1 Données d''entrée'!$C$333-1),0))","v":0},{"$f":"IF(F1554<'1 Données d''entrée'!$C$334+1+$B1663,0,IF(F1554<'1 Données d''entrée'!$C$333+'1 Données d''entrée'!$C$334+1+$B1663,$C1660*('1 Données d''entrée'!$C$332*(1+'1 Données d''entrée'!$C$332)^'1 Données d''entrée'!$C$333)/((1+'1 Données d''entrée'!$C$332)^'1 Données d''entrée'!$C$333-1),0))","v":0},{"$f":"IF(G1554<'1 Données d''entrée'!$C$334+1+$B1663,0,IF(G1554<'1 Données d''entrée'!$C$333+'1 Données d''entrée'!$C$334+1+$B1663,$C1660*('1 Données d''entrée'!$C$332*(1+'1 Données d''entrée'!$C$332)^'1 Données d''entrée'!$C$333)/((1+'1 Données d''entrée'!$C$332)^'1 Données d''entrée'!$C$333-1),0))","v":0},{"$f":"IF(H1554<'1 Données d''entrée'!$C$334+1+$B1663,0,IF(H1554<'1 Données d''entrée'!$C$333+'1 Données d''entrée'!$C$334+1+$B1663,$C1660*('1 Données d''entrée'!$C$332*(1+'1 Données d''entrée'!$C$332)^'1 Données d''entrée'!$C$333)/((1+'1 Données d''entrée'!$C$332)^'1 Données d''entrée'!$C$333-1),0))","v":0},{"$f":"IF(I1554<'1 Données d''entrée'!$C$334+1+$B1663,0,IF(I1554<'1 Données d''entrée'!$C$333+'1 Données d''entrée'!$C$334+1+$B1663,$C1660*('1 Données d''entrée'!$C$332*(1+'1 Données d''entrée'!$C$332)^'1 Données d''entrée'!$C$333)/((1+'1 Données d''entrée'!$C$332)^'1 Données d''entrée'!$C$333-1),0))","v":0},{"$f":"IF(J1554<'1 Données d''entrée'!$C$334+1+$B1663,0,IF(J1554<'1 Données d''entrée'!$C$333+'1 Données d''entrée'!$C$334+1+$B1663,$C1660*('1 Données d''entrée'!$C$332*(1+'1 Données d''entrée'!$C$332)^'1 Données d''entrée'!$C$333)/((1+'1 Données d''entrée'!$C$332)^'1 Données d''entrée'!$C$333-1),0))","v":0},{"$f":"IF(K1554<'1 Données d''entrée'!$C$334+1+$B1663,0,IF(K1554<'1 Données d''entrée'!$C$333+'1 Données d''entrée'!$C$334+1+$B1663,$C1660*('1 Données d''entrée'!$C$332*(1+'1 Données d''entrée'!$C$332)^'1 Données d''entrée'!$C$333)/((1+'1 Données d''entrée'!$C$332)^'1 Données d''entrée'!$C$333-1),0))","v":0},{"$f":"IF(L1554<'1 Données d''entrée'!$C$334+1+$B1663,0,IF(L1554<'1 Données d''entrée'!$C$333+'1 Données d''entrée'!$C$334+1+$B1663,$C1660*('1 Données d''entrée'!$C$332*(1+'1 Données d''entrée'!$C$332)^'1 Données d''entrée'!$C$333)/((1+'1 Données d''entrée'!$C$332)^'1 Données d''entrée'!$C$333-1),0))","v":0},{"$f":"IF(M1554<'1 Données d''entrée'!$C$334+1+$B1663,0,IF(M1554<'1 Données d''entrée'!$C$333+'1 Données d''entrée'!$C$334+1+$B1663,$C1660*('1 Données d''entrée'!$C$332*(1+'1 Données d''entrée'!$C$332)^'1 Données d''entrée'!$C$333)/((1+'1 Données d''entrée'!$C$332)^'1 Données d''entrée'!$C$333-1),0))","v":0},{"$f":"IF(N1554<'1 Données d''entrée'!$C$334+1+$B1663,0,IF(N1554<'1 Données d''entrée'!$C$333+'1 Données d''entrée'!$C$334+1+$B1663,$C1660*('1 Données d''entrée'!$C$332*(1+'1 Données d''entrée'!$C$332)^'1 Données d''entrée'!$C$333)/((1+'1 Données d''entrée'!$C$332)^'1 Données d''entrée'!$C$333-1),0))","v":0},{"$f":"IF(O1554<'1 Données d''entrée'!$C$334+1+$B1663,0,IF(O1554<'1 Données d''entrée'!$C$333+'1 Données d''entrée'!$C$334+1+$B1663,$C1660*('1 Données d''entrée'!$C$332*(1+'1 Données d''entrée'!$C$332)^'1 Données d''entrée'!$C$333)/((1+'1 Données d''entrée'!$C$332)^'1 Données d''entrée'!$C$333-1),0))","v":0},{"$f":"IF(P1554<'1 Données d''entrée'!$C$334+1+$B1663,0,IF(P1554<'1 Données d''entrée'!$C$333+'1 Données d''entrée'!$C$334+1+$B1663,$C1660*('1 Données d''entrée'!$C$332*(1+'1 Données d''entrée'!$C$332)^'1 Données d''entrée'!$C$333)/((1+'1 Données d''entrée'!$C$332)^'1 Données d''entrée'!$C$333-1),0))","v":0},{"$f":"IF(Q1554<'1 Données d''entrée'!$C$334+1+$B1663,0,IF(Q1554<'1 Données d''entrée'!$C$333+'1 Données d''entrée'!$C$334+1+$B1663,$C1660*('1 Données d''entrée'!$C$332*(1+'1 Données d''entrée'!$C$332)^'1 Données d''entrée'!$C$333)/((1+'1 Données d''entrée'!$C$332)^'1 Données d''entrée'!$C$333-1),0))","v":0},{"$f":"IF(R1554<'1 Données d''entrée'!$C$334+1+$B1663,0,IF(R1554<'1 Données d''entrée'!$C$333+'1 Données d''entrée'!$C$334+1+$B1663,$C1660*('1 Données d''entrée'!$C$332*(1+'1 Données d''entrée'!$C$332)^'1 Données d''entrée'!$C$333)/((1+'1 Données d''entrée'!$C$332)^'1 Données d''entrée'!$C$333-1),0))","v":0},{"$f":"IF(S1554<'1 Données d''entrée'!$C$334+1+$B1663,0,IF(S1554<'1 Données d''entrée'!$C$333+'1 Données d''entrée'!$C$334+1+$B1663,$C1660*('1 Données d''entrée'!$C$332*(1+'1 Données d''entrée'!$C$332)^'1 Données d''entrée'!$C$333)/((1+'1 Données d''entrée'!$C$332)^'1 Données d''entrée'!$C$333-1),0))","v":0},{"$f":"IF(T1554<'1 Données d''entrée'!$C$334+1+$B1663,0,IF(T1554<'1 Données d''entrée'!$C$333+'1 Données d''entrée'!$C$334+1+$B1663,$C1660*('1 Données d''entrée'!$C$332*(1+'1 Données d''entrée'!$C$332)^'1 Données d''entrée'!$C$333)/((1+'1 Données d''entrée'!$C$332)^'1 Données d''entrée'!$C$333-1),0))","v":0},{"$f":"IF(U1554<'1 Données d''entrée'!$C$334+1+$B1663,0,IF(U1554<'1 Données d''entrée'!$C$333+'1 Données d''entrée'!$C$334+1+$B1663,$C1660*('1 Données d''entrée'!$C$332*(1+'1 Données d''entrée'!$C$332)^'1 Données d''entrée'!$C$333)/((1+'1 Données d''entrée'!$C$332)^'1 Données d''entrée'!$C$333-1),0))","v":0},{"$f":"IF(V1554<'1 Données d''entrée'!$C$334+1+$B1663,0,IF(V1554<'1 Données d''entrée'!$C$333+'1 Données d''entrée'!$C$334+1+$B1663,$C1660*('1 Données d''entrée'!$C$332*(1+'1 Données d''entrée'!$C$332)^'1 Données d''entrée'!$C$333)/((1+'1 Données d''entrée'!$C$332)^'1 Données d''entrée'!$C$333-1),0))","v":0}]
[null,2,{"$f":"IF(C$54<'1 Données d''entrée'!$C$334+1+$B1664,0,IF(C$54<'1 Données d''entrée'!$C$333+'1 Données d''entrée'!$C$334+1+$B1664,$D$160*('1 Données d''entrée'!$C$332*(1+'1 Données d''entrée'!$C$332)^'1 Données d''entrée'!$C$333)/((1+'1 Données d''entrée'!$C$332)^'1 Données d''entrée'!$C$333-1),0))","v":0},{"$f":"IF(D1554<'1 Données d''entrée'!$C$334+1+$B1664,0,IF(D1554<'1 Données d''entrée'!$C$333+'1 Données d''entrée'!$C$334+1+$B1664,$D1660*('1 Données d''entrée'!$C$332*(1+'1 Données d''entrée'!$C$332)^'1 Données d''entrée'!$C$333)/((1+'1 Données d''entrée'!$C$332)^'1 Données d''entrée'!$C$333-1),0))","v":0},{"$f":"IF(E1554<'1 Données d''entrée'!$C$334+1+$B1664,0,IF(E1554<'1 Données d''entrée'!$C$333+'1 Données d''entrée'!$C$334+1+$B1664,$D1660*('1 Données d''entrée'!$C$332*(1+'1 Données d''entrée'!$C$332)^'1 Données d''entrée'!$C$333)/((1+'1 Données d''entrée'!$C$332)^'1 Données d''entrée'!$C$333-1),0))","v":0},{"$f":"IF(F1554<'1 Données d''entrée'!$C$334+1+$B1664,0,IF(F1554<'1 Données d''entrée'!$C$333+'1 Données d''entrée'!$C$334+1+$B1664,$D1660*('1 Données d''entrée'!$C$332*(1+'1 Données d''entrée'!$C$332)^'1 Données d''entrée'!$C$333)/((1+'1 Données d''entrée'!$C$332)^'1 Données d''entrée'!$C$333-1),0))","v":0},{"$f":"IF(G1554<'1 Données d''entrée'!$C$334+1+$B1664,0,IF(G1554<'1 Données d''entrée'!$C$333+'1 Données d''entrée'!$C$334+1+$B1664,$D1660*('1 Données d''entrée'!$C$332*(1+'1 Données d''entrée'!$C$332)^'1 Données d''entrée'!$C$333)/((1+'1 Données d''entrée'!$C$332)^'1 Données d''entrée'!$C$333-1),0))","v":0},{"$f":"IF(H1554<'1 Données d''entrée'!$C$334+1+$B1664,0,IF(H1554<'1 Données d''entrée'!$C$333+'1 Données d''entrée'!$C$334+1+$B1664,$D1660*('1 Données d''entrée'!$C$332*(1+'1 Données d''entrée'!$C$332)^'1 Données d''entrée'!$C$333)/((1+'1 Données d''entrée'!$C$332)^'1 Données d''entrée'!$C$333-1),0))","v":0},{"$f":"IF(I1554<'1 Données d''entrée'!$C$334+1+$B1664,0,IF(I1554<'1 Données d''entrée'!$C$333+'1 Données d''entrée'!$C$334+1+$B1664,$D1660*('1 Données d''entrée'!$C$332*(1+'1 Données d''entrée'!$C$332)^'1 Données d''entrée'!$C$333)/((1+'1 Données d''entrée'!$C$332)^'1 Données d''entrée'!$C$333-1),0))","v":0},{"$f":"IF(J1554<'1 Données d''entrée'!$C$334+1+$B1664,0,IF(J1554<'1 Données d''entrée'!$C$333+'1 Données d''entrée'!$C$334+1+$B1664,$D1660*('1 Données d''entrée'!$C$332*(1+'1 Données d''entrée'!$C$332)^'1 Données d''entrée'!$C$333)/((1+'1 Données d''entrée'!$C$332)^'1 Données d''entrée'!$C$333-1),0))","v":0},{"$f":"IF(K1554<'1 Données d''entrée'!$C$334+1+$B1664,0,IF(K1554<'1 Données d''entrée'!$C$333+'1 Données d''entrée'!$C$334+1+$B1664,$D1660*('1 Données d''entrée'!$C$332*(1+'1 Données d''entrée'!$C$332)^'1 Données d''entrée'!$C$333)/((1+'1 Données d''entrée'!$C$332)^'1 Données d''entrée'!$C$333-1),0))","v":0},{"$f":"IF(L1554<'1 Données d''entrée'!$C$334+1+$B1664,0,IF(L1554<'1 Données d''entrée'!$C$333+'1 Données d''entrée'!$C$334+1+$B1664,$D1660*('1 Données d''entrée'!$C$332*(1+'1 Données d''entrée'!$C$332)^'1 Données d''entrée'!$C$333)/((1+'1 Données d''entrée'!$C$332)^'1 Données d''entrée'!$C$333-1),0))","v":0},{"$f":"IF(M1554<'1 Données d''entrée'!$C$334+1+$B1664,0,IF(M1554<'1 Données d''entrée'!$C$333+'1 Données d''entrée'!$C$334+1+$B1664,$D1660*('1 Données d''entrée'!$C$332*(1+'1 Données d''entrée'!$C$332)^'1 Données d''entrée'!$C$333)/((1+'1 Données d''entrée'!$C$332)^'1 Données d''entrée'!$C$333-1),0))","v":0},{"$f":"IF(N1554<'1 Données d''entrée'!$C$334+1+$B1664,0,IF(N1554<'1 Données d''entrée'!$C$333+'1 Données d''entrée'!$C$334+1+$B1664,$D1660*('1 Données d''entrée'!$C$332*(1+'1 Données d''entrée'!$C$332)^'1 Données d''entrée'!$C$333)/((1+'1 Données d''entrée'!$C$332)^'1 Données d''entrée'!$C$333-1),0))","v":0},{"$f":"IF(O1554<'1 Données d''entrée'!$C$334+1+$B1664,0,IF(O1554<'1 Données d''entrée'!$C$333+'1 Données d''entrée'!$C$334+1+$B1664,$D1660*('1 Données d''entrée'!$C$332*(1+'1 Données d''entrée'!$C$332)^'1 Données d''entrée'!$C$333)/((1+'1 Données d''entrée'!$C$332)^'1 Données d''entrée'!$C$333-1),0))","v":0},{"$f":"IF(P1554<'1 Données d''entrée'!$C$334+1+$B1664,0,IF(P1554<'1 Données d''entrée'!$C$333+'1 Données d''entrée'!$C$334+1+$B1664,$D1660*('1 Données d''entrée'!$C$332*(1+'1 Données d''entrée'!$C$332)^'1 Données d''entrée'!$C$333)/((1+'1 Données d''entrée'!$C$332)^'1 Données d''entrée'!$C$333-1),0))","v":0},{"$f":"IF(Q1554<'1 Données d''entrée'!$C$334+1+$B1664,0,IF(Q1554<'1 Données d''entrée'!$C$333+'1 Données d''entrée'!$C$334+1+$B1664,$D1660*('1 Données d''entrée'!$C$332*(1+'1 Données d''entrée'!$C$332)^'1 Données d''entrée'!$C$333)/((1+'1 Données d''entrée'!$C$332)^'1 Données d''entrée'!$C$333-1),0))","v":0},{"$f":"IF(R1554<'1 Données d''entrée'!$C$334+1+$B1664,0,IF(R1554<'1 Données d''entrée'!$C$333+'1 Données d''entrée'!$C$334+1+$B1664,$D1660*('1 Données d''entrée'!$C$332*(1+'1 Données d''entrée'!$C$332)^'1 Données d''entrée'!$C$333)/((1+'1 Données d''entrée'!$C$332)^'1 Données d''entrée'!$C$333-1),0))","v":0},{"$f":"IF(S1554<'1 Données d''entrée'!$C$334+1+$B1664,0,IF(S1554<'1 Données d''entrée'!$C$333+'1 Données d''entrée'!$C$334+1+$B1664,$D1660*('1 Données d''entrée'!$C$332*(1+'1 Données d''entrée'!$C$332)^'1 Données d''entrée'!$C$333)/((1+'1 Données d''entrée'!$C$332)^'1 Données d''entrée'!$C$333-1),0))","v":0},{"$f":"IF(T1554<'1 Données d''entrée'!$C$334+1+$B1664,0,IF(T1554<'1 Données d''entrée'!$C$333+'1 Données d''entrée'!$C$334+1+$B1664,$D1660*('1 Données d''entrée'!$C$332*(1+'1 Données d''entrée'!$C$332)^'1 Données d''entrée'!$C$333)/((1+'1 Données d''entrée'!$C$332)^'1 Données d''entrée'!$C$333-1),0))","v":0},{"$f":"IF(U1554<'1 Données d''entrée'!$C$334+1+$B1664,0,IF(U1554<'1 Données d''entrée'!$C$333+'1 Données d''entrée'!$C$334+1+$B1664,$D1660*('1 Données d''entrée'!$C$332*(1+'1 Données d''entrée'!$C$332)^'1 Données d''entrée'!$C$333)/((1+'1 Données d''entrée'!$C$332)^'1 Données d''entrée'!$C$333-1),0))","v":0},{"$f":"IF(V1554<'1 Données d''entrée'!$C$334+1+$B1664,0,IF(V1554<'1 Données d''entrée'!$C$333+'1 Données d''entrée'!$C$334+1+$B1664,$D1660*('1 Données d''entrée'!$C$332*(1+'1 Données d''entrée'!$C$332)^'1 Données d''entrée'!$C$333)/((1+'1 Données d''entrée'!$C$332)^'1 Données d''entrée'!$C$333-1),0))","v":0}]
[null,3,{"$f":"IF(C$54<'1 Données d''entrée'!$C$334+1+$B1665,0,IF(C$54<'1 Données d''entrée'!$C$333+'1 Données d''entrée'!$C$334+1+$B1665,$E$160*('1 Données d''entrée'!$C$332*(1+'1 Données d''entrée'!$C$332)^'1 Données d''entrée'!$C$333)/((1+'1 Données d''entrée'!$C$332)^'1 Données d''entrée'!$C$333-1),0))","v":0},{"$f":"IF(D1554<'1 Données d''entrée'!$C$334+1+$B1665,0,IF(D1554<'1 Données d''entrée'!$C$333+'1 Données d''entrée'!$C$334+1+$B1665,$E1660*('1 Données d''entrée'!$C$332*(1+'1 Données d''entrée'!$C$332)^'1 Données d''entrée'!$C$333)/((1+'1 Données d''entrée'!$C$332)^'1 Données d''entrée'!$C$333-1),0))","v":0},{"$f":"IF(E1554<'1 Données d''entrée'!$C$334+1+$B1665,0,IF(E1554<'1 Données d''entrée'!$C$333+'1 Données d''entrée'!$C$334+1+$B1665,$E1660*('1 Données d''entrée'!$C$332*(1+'1 Données d''entrée'!$C$332)^'1 Données d''entrée'!$C$333)/((1+'1 Données d''entrée'!$C$332)^'1 Données d''entrée'!$C$333-1),0))","v":0},{"$f":"IF(F1554<'1 Données d''entrée'!$C$334+1+$B1665,0,IF(F1554<'1 Données d''entrée'!$C$333+'1 Données d''entrée'!$C$334+1+$B1665,$E1660*('1 Données d''entrée'!$C$332*(1+'1 Données d''entrée'!$C$332)^'1 Données d''entrée'!$C$333)/((1+'1 Données d''entrée'!$C$332)^'1 Données d''entrée'!$C$333-1),0))","v":0},{"$f":"IF(G1554<'1 Données d''entrée'!$C$334+1+$B1665,0,IF(G1554<'1 Données d''entrée'!$C$333+'1 Données d''entrée'!$C$334+1+$B1665,$E1660*('1 Données d''entrée'!$C$332*(1+'1 Données d''entrée'!$C$332)^'1 Données d''entrée'!$C$333)/((1+'1 Données d''entrée'!$C$332)^'1 Données d''entrée'!$C$333-1),0))","v":0},{"$f":"IF(H1554<'1 Données d''entrée'!$C$334+1+$B1665,0,IF(H1554<'1 Données d''entrée'!$C$333+'1 Données d''entrée'!$C$334+1+$B1665,$E1660*('1 Données d''entrée'!$C$332*(1+'1 Données d''entrée'!$C$332)^'1 Données d''entrée'!$C$333)/((1+'1 Données d''entrée'!$C$332)^'1 Données d''entrée'!$C$333-1),0))","v":0},{"$f":"IF(I1554<'1 Données d''entrée'!$C$334+1+$B1665,0,IF(I1554<'1 Données d''entrée'!$C$333+'1 Données d''entrée'!$C$334+1+$B1665,$E1660*('1 Données d''entrée'!$C$332*(1+'1 Données d''entrée'!$C$332)^'1 Données d''entrée'!$C$333)/((1+'1 Données d''entrée'!$C$332)^'1 Données d''entrée'!$C$333-1),0))","v":0},{"$f":"IF(J1554<'1 Données d''entrée'!$C$334+1+$B1665,0,IF(J1554<'1 Données d''entrée'!$C$333+'1 Données d''entrée'!$C$334+1+$B1665,$E1660*('1 Données d''entrée'!$C$332*(1+'1 Données d''entrée'!$C$332)^'1 Données d''entrée'!$C$333)/((1+'1 Données d''entrée'!$C$332)^'1 Données d''entrée'!$C$333-1),0))","v":0},{"$f":"IF(K1554<'1 Données d''entrée'!$C$334+1+$B1665,0,IF(K1554<'1 Données d''entrée'!$C$333+'1 Données d''entrée'!$C$334+1+$B1665,$E1660*('1 Données d''entrée'!$C$332*(1+'1 Données d''entrée'!$C$332)^'1 Données d''entrée'!$C$333)/((1+'1 Données d''entrée'!$C$332)^'1 Données d''entrée'!$C$333-1),0))","v":0},{"$f":"IF(L1554<'1 Données d''entrée'!$C$334+1+$B1665,0,IF(L1554<'1 Données d''entrée'!$C$333+'1 Données d''entrée'!$C$334+1+$B1665,$E1660*('1 Données d''entrée'!$C$332*(1+'1 Données d''entrée'!$C$332)^'1 Données d''entrée'!$C$333)/((1+'1 Données d''entrée'!$C$332)^'1 Données d''entrée'!$C$333-1),0))","v":0},{"$f":"IF(M1554<'1 Données d''entrée'!$C$334+1+$B1665,0,IF(M1554<'1 Données d''entrée'!$C$333+'1 Données d''entrée'!$C$334+1+$B1665,$E1660*('1 Données d''entrée'!$C$332*(1+'1 Données d''entrée'!$C$332)^'1 Données d''entrée'!$C$333)/((1+'1 Données d''entrée'!$C$332)^'1 Données d''entrée'!$C$333-1),0))","v":0},{"$f":"IF(N1554<'1 Données d''entrée'!$C$334+1+$B1665,0,IF(N1554<'1 Données d''entrée'!$C$333+'1 Données d''entrée'!$C$334+1+$B1665,$E1660*('1 Données d''entrée'!$C$332*(1+'1 Données d''entrée'!$C$332)^'1 Données d''entrée'!$C$333)/((1+'1 Données d''entrée'!$C$332)^'1 Données d''entrée'!$C$333-1),0))","v":0},{"$f":"IF(O1554<'1 Données d''entrée'!$C$334+1+$B1665,0,IF(O1554<'1 Données d''entrée'!$C$333+'1 Données d''entrée'!$C$334+1+$B1665,$E1660*('1 Données d''entrée'!$C$332*(1+'1 Données d''entrée'!$C$332)^'1 Données d''entrée'!$C$333)/((1+'1 Données d''entrée'!$C$332)^'1 Données d''entrée'!$C$333-1),0))","v":0},{"$f":"IF(P1554<'1 Données d''entrée'!$C$334+1+$B1665,0,IF(P1554<'1 Données d''entrée'!$C$333+'1 Données d''entrée'!$C$334+1+$B1665,$E1660*('1 Données d''entrée'!$C$332*(1+'1 Données d''entrée'!$C$332)^'1 Données d''entrée'!$C$333)/((1+'1 Données d''entrée'!$C$332)^'1 Données d''entrée'!$C$333-1),0))","v":0},{"$f":"IF(Q1554<'1 Données d''entrée'!$C$334+1+$B1665,0,IF(Q1554<'1 Données d''entrée'!$C$333+'1 Données d''entrée'!$C$334+1+$B1665,$E1660*('1 Données d''entrée'!$C$332*(1+'1 Données d''entrée'!$C$332)^'1 Données d''entrée'!$C$333)/((1+'1 Données d''entrée'!$C$332)^'1 Données d''entrée'!$C$333-1),0))","v":0},{"$f":"IF(R1554<'1 Données d''entrée'!$C$334+1+$B1665,0,IF(R1554<'1 Données d''entrée'!$C$333+'1 Données d''entrée'!$C$334+1+$B1665,$E1660*('1 Données d''entrée'!$C$332*(1+'1 Données d''entrée'!$C$332)^'1 Données d''entrée'!$C$333)/((1+'1 Données d''entrée'!$C$332)^'1 Données d''entrée'!$C$333-1),0))","v":0},{"$f":"IF(S1554<'1 Données d''entrée'!$C$334+1+$B1665,0,IF(S1554<'1 Données d''entrée'!$C$333+'1 Données d''entrée'!$C$334+1+$B1665,$E1660*('1 Données d''entrée'!$C$332*(1+'1 Données d''entrée'!$C$332)^'1 Données d''entrée'!$C$333)/((1+'1 Données d''entrée'!$C$332)^'1 Données d''entrée'!$C$333-1),0))","v":0},{"$f":"IF(T1554<'1 Données d''entrée'!$C$334+1+$B1665,0,IF(T1554<'1 Données d''entrée'!$C$333+'1 Données d''entrée'!$C$334+1+$B1665,$E1660*('1 Données d''entrée'!$C$332*(1+'1 Données d''entrée'!$C$332)^'1 Données d''entrée'!$C$333)/((1+'1 Données d''entrée'!$C$332)^'1 Données d''entrée'!$C$333-1),0))","v":0},{"$f":"IF(U1554<'1 Données d''entrée'!$C$334+1+$B1665,0,IF(U1554<'1 Données d''entrée'!$C$333+'1 Données d''entrée'!$C$334+1+$B1665,$E1660*('1 Données d''entrée'!$C$332*(1+'1 Données d''entrée'!$C$332)^'1 Données d''entrée'!$C$333)/((1+'1 Données d''entrée'!$C$332)^'1 Données d''entrée'!$C$333-1),0))","v":0},{"$f":"IF(V1554<'1 Données d''entrée'!$C$334+1+$B1665,0,IF(V1554<'1 Données d''entrée'!$C$333+'1 Données d''entrée'!$C$334+1+$B1665,$E1660*('1 Données d''entrée'!$C$332*(1+'1 Données d''entrée'!$C$332)^'1 Données d''entrée'!$C$333)/((1+'1 Données d''entrée'!$C$332)^'1 Données d''entrée'!$C$333-1),0))","v":0}]
[null,4,{"$f":"IF(C$54<'1 Données d''entrée'!$C$334+1+$B1666,0,IF(C$54<'1 Données d''entrée'!$C$333+'1 Données d''entrée'!$C$334+1+$B1666,$F$160*('1 Données d''entrée'!$C$332*(1+'1 Données d''entrée'!$C$332)^'1 Données d''entrée'!$C$333)/((1+'1 Données d''entrée'!$C$332)^'1 Données d''entrée'!$C$333-1),0))","v":0},{"$f":"IF(D1554<'1 Données d''entrée'!$C$334+1+$B1666,0,IF(D1554<'1 Données d''entrée'!$C$333+'1 Données d''entrée'!$C$334+1+$B1666,$F1660*('1 Données d''entrée'!$C$332*(1+'1 Données d''entrée'!$C$332)^'1 Données d''entrée'!$C$333)/((1+'1 Données d''entrée'!$C$332)^'1 Données d''entrée'!$C$333-1),0))","v":0},{"$f":"IF(E1554<'1 Données d''entrée'!$C$334+1+$B1666,0,IF(E1554<'1 Données d''entrée'!$C$333+'1 Données d''entrée'!$C$334+1+$B1666,$F1660*('1 Données d''entrée'!$C$332*(1+'1 Données d''entrée'!$C$332)^'1 Données d''entrée'!$C$333)/((1+'1 Données d''entrée'!$C$332)^'1 Données d''entrée'!$C$333-1),0))","v":0},{"$f":"IF(F1554<'1 Données d''entrée'!$C$334+1+$B1666,0,IF(F1554<'1 Données d''entrée'!$C$333+'1 Données d''entrée'!$C$334+1+$B1666,$F1660*('1 Données d''entrée'!$C$332*(1+'1 Données d''entrée'!$C$332)^'1 Données d''entrée'!$C$333)/((1+'1 Données d''entrée'!$C$332)^'1 Données d''entrée'!$C$333-1),0))","v":0},{"$f":"IF(G1554<'1 Données d''entrée'!$C$334+1+$B1666,0,IF(G1554<'1 Données d''entrée'!$C$333+'1 Données d''entrée'!$C$334+1+$B1666,$F1660*('1 Données d''entrée'!$C$332*(1+'1 Données d''entrée'!$C$332)^'1 Données d''entrée'!$C$333)/((1+'1 Données d''entrée'!$C$332)^'1 Données d''entrée'!$C$333-1),0))","v":0},{"$f":"IF(H1554<'1 Données d''entrée'!$C$334+1+$B1666,0,IF(H1554<'1 Données d''entrée'!$C$333+'1 Données d''entrée'!$C$334+1+$B1666,$F1660*('1 Données d''entrée'!$C$332*(1+'1 Données d''entrée'!$C$332)^'1 Données d''entrée'!$C$333)/((1+'1 Données d''entrée'!$C$332)^'1 Données d''entrée'!$C$333-1),0))","v":0},{"$f":"IF(I1554<'1 Données d''entrée'!$C$334+1+$B1666,0,IF(I1554<'1 Données d''entrée'!$C$333+'1 Données d''entrée'!$C$334+1+$B1666,$F1660*('1 Données d''entrée'!$C$332*(1+'1 Données d''entrée'!$C$332)^'1 Données d''entrée'!$C$333)/((1+'1 Données d''entrée'!$C$332)^'1 Données d''entrée'!$C$333-1),0))","v":0},{"$f":"IF(J1554<'1 Données d''entrée'!$C$334+1+$B1666,0,IF(J1554<'1 Données d''entrée'!$C$333+'1 Données d''entrée'!$C$334+1+$B1666,$F1660*('1 Données d''entrée'!$C$332*(1+'1 Données d''entrée'!$C$332)^'1 Données d''entrée'!$C$333)/((1+'1 Données d''entrée'!$C$332)^'1 Données d''entrée'!$C$333-1),0))","v":0},{"$f":"IF(K1554<'1 Données d''entrée'!$C$334+1+$B1666,0,IF(K1554<'1 Données d''entrée'!$C$333+'1 Données d''entrée'!$C$334+1+$B1666,$F1660*('1 Données d''entrée'!$C$332*(1+'1 Données d''entrée'!$C$332)^'1 Données d''entrée'!$C$333)/((1+'1 Données d''entrée'!$C$332)^'1 Données d''entrée'!$C$333-1),0))","v":0},{"$f":"IF(L1554<'1 Données d''entrée'!$C$334+1+$B1666,0,IF(L1554<'1 Données d''entrée'!$C$333+'1 Données d''entrée'!$C$334+1+$B1666,$F1660*('1 Données d''entrée'!$C$332*(1+'1 Données d''entrée'!$C$332)^'1 Données d''entrée'!$C$333)/((1+'1 Données d''entrée'!$C$332)^'1 Données d''entrée'!$C$333-1),0))","v":0},{"$f":"IF(M1554<'1 Données d''entrée'!$C$334+1+$B1666,0,IF(M1554<'1 Données d''entrée'!$C$333+'1 Données d''entrée'!$C$334+1+$B1666,$F1660*('1 Données d''entrée'!$C$332*(1+'1 Données d''entrée'!$C$332)^'1 Données d''entrée'!$C$333)/((1+'1 Données d''entrée'!$C$332)^'1 Données d''entrée'!$C$333-1),0))","v":0},{"$f":"IF(N1554<'1 Données d''entrée'!$C$334+1+$B1666,0,IF(N1554<'1 Données d''entrée'!$C$333+'1 Données d''entrée'!$C$334+1+$B1666,$F1660*('1 Données d''entrée'!$C$332*(1+'1 Données d''entrée'!$C$332)^'1 Données d''entrée'!$C$333)/((1+'1 Données d''entrée'!$C$332)^'1 Données d''entrée'!$C$333-1),0))","v":0},{"$f":"IF(O1554<'1 Données d''entrée'!$C$334+1+$B1666,0,IF(O1554<'1 Données d''entrée'!$C$333+'1 Données d''entrée'!$C$334+1+$B1666,$F1660*('1 Données d''entrée'!$C$332*(1+'1 Données d''entrée'!$C$332)^'1 Données d''entrée'!$C$333)/((1+'1 Données d''entrée'!$C$332)^'1 Données d''entrée'!$C$333-1),0))","v":0},{"$f":"IF(P1554<'1 Données d''entrée'!$C$334+1+$B1666,0,IF(P1554<'1 Données d''entrée'!$C$333+'1 Données d''entrée'!$C$334+1+$B1666,$F1660*('1 Données d''entrée'!$C$332*(1+'1 Données d''entrée'!$C$332)^'1 Données d''entrée'!$C$333)/((1+'1 Données d''entrée'!$C$332)^'1 Données d''entrée'!$C$333-1),0))","v":0},{"$f":"IF(Q1554<'1 Données d''entrée'!$C$334+1+$B1666,0,IF(Q1554<'1 Données d''entrée'!$C$333+'1 Données d''entrée'!$C$334+1+$B1666,$F1660*('1 Données d''entrée'!$C$332*(1+'1 Données d''entrée'!$C$332)^'1 Données d''entrée'!$C$333)/((1+'1 Données d''entrée'!$C$332)^'1 Données d''entrée'!$C$333-1),0))","v":0},{"$f":"IF(R1554<'1 Données d''entrée'!$C$334+1+$B1666,0,IF(R1554<'1 Données d''entrée'!$C$333+'1 Données d''entrée'!$C$334+1+$B1666,$F1660*('1 Données d''entrée'!$C$332*(1+'1 Données d''entrée'!$C$332)^'1 Données d''entrée'!$C$333)/((1+'1 Données d''entrée'!$C$332)^'1 Données d''entrée'!$C$333-1),0))","v":0},{"$f":"IF(S1554<'1 Données d''entrée'!$C$334+1+$B1666,0,IF(S1554<'1 Données d''entrée'!$C$333+'1 Données d''entrée'!$C$334+1+$B1666,$F1660*('1 Données d''entrée'!$C$332*(1+'1 Données d''entrée'!$C$332)^'1 Données d''entrée'!$C$333)/((1+'1 Données d''entrée'!$C$332)^'1 Données d''entrée'!$C$333-1),0))","v":0},{"$f":"IF(T1554<'1 Données d''entrée'!$C$334+1+$B1666,0,IF(T1554<'1 Données d''entrée'!$C$333+'1 Données d''entrée'!$C$334+1+$B1666,$F1660*('1 Données d''entrée'!$C$332*(1+'1 Données d''entrée'!$C$332)^'1 Données d''entrée'!$C$333)/((1+'1 Données d''entrée'!$C$332)^'1 Données d''entrée'!$C$333-1),0))","v":0},{"$f":"IF(U1554<'1 Données d''entrée'!$C$334+1+$B1666,0,IF(U1554<'1 Données d''entrée'!$C$333+'1 Données d''entrée'!$C$334+1+$B1666,$F1660*('1 Données d''entrée'!$C$332*(1+'1 Données d''entrée'!$C$332)^'1 Données d''entrée'!$C$333)/((1+'1 Données d''entrée'!$C$332)^'1 Données d''entrée'!$C$333-1),0))","v":0},{"$f":"IF(V1554<'1 Données d''entrée'!$C$334+1+$B1666,0,IF(V1554<'1 Données d''entrée'!$C$333+'1 Données d''entrée'!$C$334+1+$B1666,$F1660*('1 Données d''entrée'!$C$332*(1+'1 Données d''entrée'!$C$332)^'1 Données d''entrée'!$C$333)/((1+'1 Données d''entrée'!$C$332)^'1 Données d''entrée'!$C$333-1),0))","v":0}]
[null,5,{"$f":"IF(C$54<'1 Données d''entrée'!$C$334+1+$B1667,0,IF(C$54<'1 Données d''entrée'!$C$333+'1 Données d''entrée'!$C$334+1+$B1667,$G$160*('1 Données d''entrée'!$C$332*(1+'1 Données d''entrée'!$C$332)^'1 Données d''entrée'!$C$333)/((1+'1 Données d''entrée'!$C$332)^'1 Données d''entrée'!$C$333-1),0))","v":0},{"$f":"IF(D1554<'1 Données d''entrée'!$C$334+1+$B1667,0,IF(D1554<'1 Données d''entrée'!$C$333+'1 Données d''entrée'!$C$334+1+$B1667,$G1660*('1 Données d''entrée'!$C$332*(1+'1 Données d''entrée'!$C$332)^'1 Données d''entrée'!$C$333)/((1+'1 Données d''entrée'!$C$332)^'1 Données d''entrée'!$C$333-1),0))","v":0},{"$f":"IF(E1554<'1 Données d''entrée'!$C$334+1+$B1667,0,IF(E1554<'1 Données d''entrée'!$C$333+'1 Données d''entrée'!$C$334+1+$B1667,$G1660*('1 Données d''entrée'!$C$332*(1+'1 Données d''entrée'!$C$332)^'1 Données d''entrée'!$C$333)/((1+'1 Données d''entrée'!$C$332)^'1 Données d''entrée'!$C$333-1),0))","v":0},{"$f":"IF(F1554<'1 Données d''entrée'!$C$334+1+$B1667,0,IF(F1554<'1 Données d''entrée'!$C$333+'1 Données d''entrée'!$C$334+1+$B1667,$G1660*('1 Données d''entrée'!$C$332*(1+'1 Données d''entrée'!$C$332)^'1 Données d''entrée'!$C$333)/((1+'1 Données d''entrée'!$C$332)^'1 Données d''entrée'!$C$333-1),0))","v":0},{"$f":"IF(G1554<'1 Données d''entrée'!$C$334+1+$B1667,0,IF(G1554<'1 Données d''entrée'!$C$333+'1 Données d''entrée'!$C$334+1+$B1667,$G1660*('1 Données d''entrée'!$C$332*(1+'1 Données d''entrée'!$C$332)^'1 Données d''entrée'!$C$333)/((1+'1 Données d''entrée'!$C$332)^'1 Données d''entrée'!$C$333-1),0))","v":0},{"$f":"IF(H1554<'1 Données d''entrée'!$C$334+1+$B1667,0,IF(H1554<'1 Données d''entrée'!$C$333+'1 Données d''entrée'!$C$334+1+$B1667,$G1660*('1 Données d''entrée'!$C$332*(1+'1 Données d''entrée'!$C$332)^'1 Données d''entrée'!$C$333)/((1+'1 Données d''entrée'!$C$332)^'1 Données d''entrée'!$C$333-1),0))","v":0},{"$f":"IF(I1554<'1 Données d''entrée'!$C$334+1+$B1667,0,IF(I1554<'1 Données d''entrée'!$C$333+'1 Données d''entrée'!$C$334+1+$B1667,$G1660*('1 Données d''entrée'!$C$332*(1+'1 Données d''entrée'!$C$332)^'1 Données d''entrée'!$C$333)/((1+'1 Données d''entrée'!$C$332)^'1 Données d''entrée'!$C$333-1),0))","v":0},{"$f":"IF(J1554<'1 Données d''entrée'!$C$334+1+$B1667,0,IF(J1554<'1 Données d''entrée'!$C$333+'1 Données d''entrée'!$C$334+1+$B1667,$G1660*('1 Données d''entrée'!$C$332*(1+'1 Données d''entrée'!$C$332)^'1 Données d''entrée'!$C$333)/((1+'1 Données d''entrée'!$C$332)^'1 Données d''entrée'!$C$333-1),0))","v":0},{"$f":"IF(K1554<'1 Données d''entrée'!$C$334+1+$B1667,0,IF(K1554<'1 Données d''entrée'!$C$333+'1 Données d''entrée'!$C$334+1+$B1667,$G1660*('1 Données d''entrée'!$C$332*(1+'1 Données d''entrée'!$C$332)^'1 Données d''entrée'!$C$333)/((1+'1 Données d''entrée'!$C$332)^'1 Données d''entrée'!$C$333-1),0))","v":0},{"$f":"IF(L1554<'1 Données d''entrée'!$C$334+1+$B1667,0,IF(L1554<'1 Données d''entrée'!$C$333+'1 Données d''entrée'!$C$334+1+$B1667,$G1660*('1 Données d''entrée'!$C$332*(1+'1 Données d''entrée'!$C$332)^'1 Données d''entrée'!$C$333)/((1+'1 Données d''entrée'!$C$332)^'1 Données d''entrée'!$C$333-1),0))","v":0},{"$f":"IF(M1554<'1 Données d''entrée'!$C$334+1+$B1667,0,IF(M1554<'1 Données d''entrée'!$C$333+'1 Données d''entrée'!$C$334+1+$B1667,$G1660*('1 Données d''entrée'!$C$332*(1+'1 Données d''entrée'!$C$332)^'1 Données d''entrée'!$C$333)/((1+'1 Données d''entrée'!$C$332)^'1 Données d''entrée'!$C$333-1),0))","v":0},{"$f":"IF(N1554<'1 Données d''entrée'!$C$334+1+$B1667,0,IF(N1554<'1 Données d''entrée'!$C$333+'1 Données d''entrée'!$C$334+1+$B1667,$G1660*('1 Données d''entrée'!$C$332*(1+'1 Données d''entrée'!$C$332)^'1 Données d''entrée'!$C$333)/((1+'1 Données d''entrée'!$C$332)^'1 Données d''entrée'!$C$333-1),0))","v":0},{"$f":"IF(O1554<'1 Données d''entrée'!$C$334+1+$B1667,0,IF(O1554<'1 Données d''entrée'!$C$333+'1 Données d''entrée'!$C$334+1+$B1667,$G1660*('1 Données d''entrée'!$C$332*(1+'1 Données d''entrée'!$C$332)^'1 Données d''entrée'!$C$333)/((1+'1 Données d''entrée'!$C$332)^'1 Données d''entrée'!$C$333-1),0))","v":0},{"$f":"IF(P1554<'1 Données d''entrée'!$C$334+1+$B1667,0,IF(P1554<'1 Données d''entrée'!$C$333+'1 Données d''entrée'!$C$334+1+$B1667,$G1660*('1 Données d''entrée'!$C$332*(1+'1 Données d''entrée'!$C$332)^'1 Données d''entrée'!$C$333)/((1+'1 Données d''entrée'!$C$332)^'1 Données d''entrée'!$C$333-1),0))","v":0},{"$f":"IF(Q1554<'1 Données d''entrée'!$C$334+1+$B1667,0,IF(Q1554<'1 Données d''entrée'!$C$333+'1 Données d''entrée'!$C$334+1+$B1667,$G1660*('1 Données d''entrée'!$C$332*(1+'1 Données d''entrée'!$C$332)^'1 Données d''entrée'!$C$333)/((1+'1 Données d''entrée'!$C$332)^'1 Données d''entrée'!$C$333-1),0))","v":0},{"$f":"IF(R1554<'1 Données d''entrée'!$C$334+1+$B1667,0,IF(R1554<'1 Données d''entrée'!$C$333+'1 Données d''entrée'!$C$334+1+$B1667,$G1660*('1 Données d''entrée'!$C$332*(1+'1 Données d''entrée'!$C$332)^'1 Données d''entrée'!$C$333)/((1+'1 Données d''entrée'!$C$332)^'1 Données d''entrée'!$C$333-1),0))","v":0},{"$f":"IF(S1554<'1 Données d''entrée'!$C$334+1+$B1667,0,IF(S1554<'1 Données d''entrée'!$C$333+'1 Données d''entrée'!$C$334+1+$B1667,$G1660*('1 Données d''entrée'!$C$332*(1+'1 Données d''entrée'!$C$332)^'1 Données d''entrée'!$C$333)/((1+'1 Données d''entrée'!$C$332)^'1 Données d''entrée'!$C$333-1),0))","v":0},{"$f":"IF(T1554<'1 Données d''entrée'!$C$334+1+$B1667,0,IF(T1554<'1 Données d''entrée'!$C$333+'1 Données d''entrée'!$C$334+1+$B1667,$G1660*('1 Données d''entrée'!$C$332*(1+'1 Données d''entrée'!$C$332)^'1 Données d''entrée'!$C$333)/((1+'1 Données d''entrée'!$C$332)^'1 Données d''entrée'!$C$333-1),0))","v":0},{"$f":"IF(U1554<'1 Données d''entrée'!$C$334+1+$B1667,0,IF(U1554<'1 Données d''entrée'!$C$333+'1 Données d''entrée'!$C$334+1+$B1667,$G1660*('1 Données d''entrée'!$C$332*(1+'1 Données d''entrée'!$C$332)^'1 Données d''entrée'!$C$333)/((1+'1 Données d''entrée'!$C$332)^'1 Données d''entrée'!$C$333-1),0))","v":0},{"$f":"IF(V1554<'1 Données d''entrée'!$C$334+1+$B1667,0,IF(V1554<'1 Données d''entrée'!$C$333+'1 Données d''entrée'!$C$334+1+$B1667,$G1660*('1 Données d''entrée'!$C$332*(1+'1 Données d''entrée'!$C$332)^'1 Données d''entrée'!$C$333)/((1+'1 Données d''entrée'!$C$332)^'1 Données d''entrée'!$C$333-1),0))","v":0}]
[null,6,{"$f":"IF(C$54<'1 Données d''entrée'!$C$334+1+$B1668,0,IF(C$54<'1 Données d''entrée'!$C$333+'1 Données d''entrée'!$C$334+1+$B1668,$H$160*('1 Données d''entrée'!$C$332*(1+'1 Données d''entrée'!$C$332)^'1 Données d''entrée'!$C$333)/((1+'1 Données d''entrée'!$C$332)^'1 Données d''entrée'!$C$333-1),0))","v":0},{"$f":"IF(D1554<'1 Données d''entrée'!$C$334+1+$B1668,0,IF(D1554<'1 Données d''entrée'!$C$333+'1 Données d''entrée'!$C$334+1+$B1668,$H1660*('1 Données d''entrée'!$C$332*(1+'1 Données d''entrée'!$C$332)^'1 Données d''entrée'!$C$333)/((1+'1 Données d''entrée'!$C$332)^'1 Données d''entrée'!$C$333-1),0))","v":0},{"$f":"IF(E1554<'1 Données d''entrée'!$C$334+1+$B1668,0,IF(E1554<'1 Données d''entrée'!$C$333+'1 Données d''entrée'!$C$334+1+$B1668,$H1660*('1 Données d''entrée'!$C$332*(1+'1 Données d''entrée'!$C$332)^'1 Données d''entrée'!$C$333)/((1+'1 Données d''entrée'!$C$332)^'1 Données d''entrée'!$C$333-1),0))","v":0},{"$f":"IF(F1554<'1 Données d''entrée'!$C$334+1+$B1668,0,IF(F1554<'1 Données d''entrée'!$C$333+'1 Données d''entrée'!$C$334+1+$B1668,$H1660*('1 Données d''entrée'!$C$332*(1+'1 Données d''entrée'!$C$332)^'1 Données d''entrée'!$C$333)/((1+'1 Données d''entrée'!$C$332)^'1 Données d''entrée'!$C$333-1),0))","v":0},{"$f":"IF(G1554<'1 Données d''entrée'!$C$334+1+$B1668,0,IF(G1554<'1 Données d''entrée'!$C$333+'1 Données d''entrée'!$C$334+1+$B1668,$H1660*('1 Données d''entrée'!$C$332*(1+'1 Données d''entrée'!$C$332)^'1 Données d''entrée'!$C$333)/((1+'1 Données d''entrée'!$C$332)^'1 Données d''entrée'!$C$333-1),0))","v":0},{"$f":"IF(H1554<'1 Données d''entrée'!$C$334+1+$B1668,0,IF(H1554<'1 Données d''entrée'!$C$333+'1 Données d''entrée'!$C$334+1+$B1668,$H1660*('1 Données d''entrée'!$C$332*(1+'1 Données d''entrée'!$C$332)^'1 Données d''entrée'!$C$333)/((1+'1 Données d''entrée'!$C$332)^'1 Données d''entrée'!$C$333-1),0))","v":0},{"$f":"IF(I1554<'1 Données d''entrée'!$C$334+1+$B1668,0,IF(I1554<'1 Données d''entrée'!$C$333+'1 Données d''entrée'!$C$334+1+$B1668,$H1660*('1 Données d''entrée'!$C$332*(1+'1 Données d''entrée'!$C$332)^'1 Données d''entrée'!$C$333)/((1+'1 Données d''entrée'!$C$332)^'1 Données d''entrée'!$C$333-1),0))","v":0},{"$f":"IF(J1554<'1 Données d''entrée'!$C$334+1+$B1668,0,IF(J1554<'1 Données d''entrée'!$C$333+'1 Données d''entrée'!$C$334+1+$B1668,$H1660*('1 Données d''entrée'!$C$332*(1+'1 Données d''entrée'!$C$332)^'1 Données d''entrée'!$C$333)/((1+'1 Données d''entrée'!$C$332)^'1 Données d''entrée'!$C$333-1),0))","v":0},{"$f":"IF(K1554<'1 Données d''entrée'!$C$334+1+$B1668,0,IF(K1554<'1 Données d''entrée'!$C$333+'1 Données d''entrée'!$C$334+1+$B1668,$H1660*('1 Données d''entrée'!$C$332*(1+'1 Données d''entrée'!$C$332)^'1 Données d''entrée'!$C$333)/((1+'1 Données d''entrée'!$C$332)^'1 Données d''entrée'!$C$333-1),0))","v":0},{"$f":"IF(L1554<'1 Données d''entrée'!$C$334+1+$B1668,0,IF(L1554<'1 Données d''entrée'!$C$333+'1 Données d''entrée'!$C$334+1+$B1668,$H1660*('1 Données d''entrée'!$C$332*(1+'1 Données d''entrée'!$C$332)^'1 Données d''entrée'!$C$333)/((1+'1 Données d''entrée'!$C$332)^'1 Données d''entrée'!$C$333-1),0))","v":0},{"$f":"IF(M1554<'1 Données d''entrée'!$C$334+1+$B1668,0,IF(M1554<'1 Données d''entrée'!$C$333+'1 Données d''entrée'!$C$334+1+$B1668,$H1660*('1 Données d''entrée'!$C$332*(1+'1 Données d''entrée'!$C$332)^'1 Données d''entrée'!$C$333)/((1+'1 Données d''entrée'!$C$332)^'1 Données d''entrée'!$C$333-1),0))","v":0},{"$f":"IF(N1554<'1 Données d''entrée'!$C$334+1+$B1668,0,IF(N1554<'1 Données d''entrée'!$C$333+'1 Données d''entrée'!$C$334+1+$B1668,$H1660*('1 Données d''entrée'!$C$332*(1+'1 Données d''entrée'!$C$332)^'1 Données d''entrée'!$C$333)/((1+'1 Données d''entrée'!$C$332)^'1 Données d''entrée'!$C$333-1),0))","v":0},{"$f":"IF(O1554<'1 Données d''entrée'!$C$334+1+$B1668,0,IF(O1554<'1 Données d''entrée'!$C$333+'1 Données d''entrée'!$C$334+1+$B1668,$H1660*('1 Données d''entrée'!$C$332*(1+'1 Données d''entrée'!$C$332)^'1 Données d''entrée'!$C$333)/((1+'1 Données d''entrée'!$C$332)^'1 Données d''entrée'!$C$333-1),0))","v":0},{"$f":"IF(P1554<'1 Données d''entrée'!$C$334+1+$B1668,0,IF(P1554<'1 Données d''entrée'!$C$333+'1 Données d''entrée'!$C$334+1+$B1668,$H1660*('1 Données d''entrée'!$C$332*(1+'1 Données d''entrée'!$C$332)^'1 Données d''entrée'!$C$333)/((1+'1 Données d''entrée'!$C$332)^'1 Données d''entrée'!$C$333-1),0))","v":0},{"$f":"IF(Q1554<'1 Données d''entrée'!$C$334+1+$B1668,0,IF(Q1554<'1 Données d''entrée'!$C$333+'1 Données d''entrée'!$C$334+1+$B1668,$H1660*('1 Données d''entrée'!$C$332*(1+'1 Données d''entrée'!$C$332)^'1 Données d''entrée'!$C$333)/((1+'1 Données d''entrée'!$C$332)^'1 Données d''entrée'!$C$333-1),0))","v":0},{"$f":"IF(R1554<'1 Données d''entrée'!$C$334+1+$B1668,0,IF(R1554<'1 Données d''entrée'!$C$333+'1 Données d''entrée'!$C$334+1+$B1668,$H1660*('1 Données d''entrée'!$C$332*(1+'1 Données d''entrée'!$C$332)^'1 Données d''entrée'!$C$333)/((1+'1 Données d''entrée'!$C$332)^'1 Données d''entrée'!$C$333-1),0))","v":0},{"$f":"IF(S1554<'1 Données d''entrée'!$C$334+1+$B1668,0,IF(S1554<'1 Données d''entrée'!$C$333+'1 Données d''entrée'!$C$334+1+$B1668,$H1660*('1 Données d''entrée'!$C$332*(1+'1 Données d''entrée'!$C$332)^'1 Données d''entrée'!$C$333)/((1+'1 Données d''entrée'!$C$332)^'1 Données d''entrée'!$C$333-1),0))","v":0},{"$f":"IF(T1554<'1 Données d''entrée'!$C$334+1+$B1668,0,IF(T1554<'1 Données d''entrée'!$C$333+'1 Données d''entrée'!$C$334+1+$B1668,$H1660*('1 Données d''entrée'!$C$332*(1+'1 Données d''entrée'!$C$332)^'1 Données d''entrée'!$C$333)/((1+'1 Données d''entrée'!$C$332)^'1 Données d''entrée'!$C$333-1),0))","v":0},{"$f":"IF(U1554<'1 Données d''entrée'!$C$334+1+$B1668,0,IF(U1554<'1 Données d''entrée'!$C$333+'1 Données d''entrée'!$C$334+1+$B1668,$H1660*('1 Données d''entrée'!$C$332*(1+'1 Données d''entrée'!$C$332)^'1 Données d''entrée'!$C$333)/((1+'1 Données d''entrée'!$C$332)^'1 Données d''entrée'!$C$333-1),0))","v":0},{"$f":"IF(V1554<'1 Données d''entrée'!$C$334+1+$B1668,0,IF(V1554<'1 Données d''entrée'!$C$333+'1 Données d''entrée'!$C$334+1+$B1668,$H1660*('1 Données d''entrée'!$C$332*(1+'1 Données d''entrée'!$C$332)^'1 Données d''entrée'!$C$333)/((1+'1 Données d''entrée'!$C$332)^'1 Données d''entrée'!$C$333-1),0))","v":0}]
[null,7,{"$f":"IF(C$54<'1 Données d''entrée'!$C$334+1+$B1669,0,IF(C$54<'1 Données d''entrée'!$C$333+'1 Données d''entrée'!$C$334+1+$B1669,$I$160*('1 Données d''entrée'!$C$332*(1+'1 Données d''entrée'!$C$332)^'1 Données d''entrée'!$C$333)/((1+'1 Données d''entrée'!$C$332)^'1 Données d''entrée'!$C$333-1),0))","v":0},{"$f":"IF(D1554<'1 Données d''entrée'!$C$334+1+$B1669,0,IF(D1554<'1 Données d''entrée'!$C$333+'1 Données d''entrée'!$C$334+1+$B1669,$I1660*('1 Données d''entrée'!$C$332*(1+'1 Données d''entrée'!$C$332)^'1 Données d''entrée'!$C$333)/((1+'1 Données d''entrée'!$C$332)^'1 Données d''entrée'!$C$333-1),0))","v":0},{"$f":"IF(E1554<'1 Données d''entrée'!$C$334+1+$B1669,0,IF(E1554<'1 Données d''entrée'!$C$333+'1 Données d''entrée'!$C$334+1+$B1669,$I1660*('1 Données d''entrée'!$C$332*(1+'1 Données d''entrée'!$C$332)^'1 Données d''entrée'!$C$333)/((1+'1 Données d''entrée'!$C$332)^'1 Données d''entrée'!$C$333-1),0))","v":0},{"$f":"IF(F1554<'1 Données d''entrée'!$C$334+1+$B1669,0,IF(F1554<'1 Données d''entrée'!$C$333+'1 Données d''entrée'!$C$334+1+$B1669,$I1660*('1 Données d''entrée'!$C$332*(1+'1 Données d''entrée'!$C$332)^'1 Données d''entrée'!$C$333)/((1+'1 Données d''entrée'!$C$332)^'1 Données d''entrée'!$C$333-1),0))","v":0},{"$f":"IF(G1554<'1 Données d''entrée'!$C$334+1+$B1669,0,IF(G1554<'1 Données d''entrée'!$C$333+'1 Données d''entrée'!$C$334+1+$B1669,$I1660*('1 Données d''entrée'!$C$332*(1+'1 Données d''entrée'!$C$332)^'1 Données d''entrée'!$C$333)/((1+'1 Données d''entrée'!$C$332)^'1 Données d''entrée'!$C$333-1),0))","v":0},{"$f":"IF(H1554<'1 Données d''entrée'!$C$334+1+$B1669,0,IF(H1554<'1 Données d''entrée'!$C$333+'1 Données d''entrée'!$C$334+1+$B1669,$I1660*('1 Données d''entrée'!$C$332*(1+'1 Données d''entrée'!$C$332)^'1 Données d''entrée'!$C$333)/((1+'1 Données d''entrée'!$C$332)^'1 Données d''entrée'!$C$333-1),0))","v":0},{"$f":"IF(I1554<'1 Données d''entrée'!$C$334+1+$B1669,0,IF(I1554<'1 Données d''entrée'!$C$333+'1 Données d''entrée'!$C$334+1+$B1669,$I1660*('1 Données d''entrée'!$C$332*(1+'1 Données d''entrée'!$C$332)^'1 Données d''entrée'!$C$333)/((1+'1 Données d''entrée'!$C$332)^'1 Données d''entrée'!$C$333-1),0))","v":0},{"$f":"IF(J1554<'1 Données d''entrée'!$C$334+1+$B1669,0,IF(J1554<'1 Données d''entrée'!$C$333+'1 Données d''entrée'!$C$334+1+$B1669,$I1660*('1 Données d''entrée'!$C$332*(1+'1 Données d''entrée'!$C$332)^'1 Données d''entrée'!$C$333)/((1+'1 Données d''entrée'!$C$332)^'1 Données d''entrée'!$C$333-1),0))","v":0},{"$f":"IF(K1554<'1 Données d''entrée'!$C$334+1+$B1669,0,IF(K1554<'1 Données d''entrée'!$C$333+'1 Données d''entrée'!$C$334+1+$B1669,$I1660*('1 Données d''entrée'!$C$332*(1+'1 Données d''entrée'!$C$332)^'1 Données d''entrée'!$C$333)/((1+'1 Données d''entrée'!$C$332)^'1 Données d''entrée'!$C$333-1),0))","v":0},{"$f":"IF(L1554<'1 Données d''entrée'!$C$334+1+$B1669,0,IF(L1554<'1 Données d''entrée'!$C$333+'1 Données d''entrée'!$C$334+1+$B1669,$I1660*('1 Données d''entrée'!$C$332*(1+'1 Données d''entrée'!$C$332)^'1 Données d''entrée'!$C$333)/((1+'1 Données d''entrée'!$C$332)^'1 Données d''entrée'!$C$333-1),0))","v":0},{"$f":"IF(M1554<'1 Données d''entrée'!$C$334+1+$B1669,0,IF(M1554<'1 Données d''entrée'!$C$333+'1 Données d''entrée'!$C$334+1+$B1669,$I1660*('1 Données d''entrée'!$C$332*(1+'1 Données d''entrée'!$C$332)^'1 Données d''entrée'!$C$333)/((1+'1 Données d''entrée'!$C$332)^'1 Données d''entrée'!$C$333-1),0))","v":0},{"$f":"IF(N1554<'1 Données d''entrée'!$C$334+1+$B1669,0,IF(N1554<'1 Données d''entrée'!$C$333+'1 Données d''entrée'!$C$334+1+$B1669,$I1660*('1 Données d''entrée'!$C$332*(1+'1 Données d''entrée'!$C$332)^'1 Données d''entrée'!$C$333)/((1+'1 Données d''entrée'!$C$332)^'1 Données d''entrée'!$C$333-1),0))","v":0},{"$f":"IF(O1554<'1 Données d''entrée'!$C$334+1+$B1669,0,IF(O1554<'1 Données d''entrée'!$C$333+'1 Données d''entrée'!$C$334+1+$B1669,$I1660*('1 Données d''entrée'!$C$332*(1+'1 Données d''entrée'!$C$332)^'1 Données d''entrée'!$C$333)/((1+'1 Données d''entrée'!$C$332)^'1 Données d''entrée'!$C$333-1),0))","v":0},{"$f":"IF(P1554<'1 Données d''entrée'!$C$334+1+$B1669,0,IF(P1554<'1 Données d''entrée'!$C$333+'1 Données d''entrée'!$C$334+1+$B1669,$I1660*('1 Données d''entrée'!$C$332*(1+'1 Données d''entrée'!$C$332)^'1 Données d''entrée'!$C$333)/((1+'1 Données d''entrée'!$C$332)^'1 Données d''entrée'!$C$333-1),0))","v":0},{"$f":"IF(Q1554<'1 Données d''entrée'!$C$334+1+$B1669,0,IF(Q1554<'1 Données d''entrée'!$C$333+'1 Données d''entrée'!$C$334+1+$B1669,$I1660*('1 Données d''entrée'!$C$332*(1+'1 Données d''entrée'!$C$332)^'1 Données d''entrée'!$C$333)/((1+'1 Données d''entrée'!$C$332)^'1 Données d''entrée'!$C$333-1),0))","v":0},{"$f":"IF(R1554<'1 Données d''entrée'!$C$334+1+$B1669,0,IF(R1554<'1 Données d''entrée'!$C$333+'1 Données d''entrée'!$C$334+1+$B1669,$I1660*('1 Données d''entrée'!$C$332*(1+'1 Données d''entrée'!$C$332)^'1 Données d''entrée'!$C$333)/((1+'1 Données d''entrée'!$C$332)^'1 Données d''entrée'!$C$333-1),0))","v":0},{"$f":"IF(S1554<'1 Données d''entrée'!$C$334+1+$B1669,0,IF(S1554<'1 Données d''entrée'!$C$333+'1 Données d''entrée'!$C$334+1+$B1669,$I1660*('1 Données d''entrée'!$C$332*(1+'1 Données d''entrée'!$C$332)^'1 Données d''entrée'!$C$333)/((1+'1 Données d''entrée'!$C$332)^'1 Données d''entrée'!$C$333-1),0))","v":0},{"$f":"IF(T1554<'1 Données d''entrée'!$C$334+1+$B1669,0,IF(T1554<'1 Données d''entrée'!$C$333+'1 Données d''entrée'!$C$334+1+$B1669,$I1660*('1 Données d''entrée'!$C$332*(1+'1 Données d''entrée'!$C$332)^'1 Données d''entrée'!$C$333)/((1+'1 Données d''entrée'!$C$332)^'1 Données d''entrée'!$C$333-1),0))","v":0},{"$f":"IF(U1554<'1 Données d''entrée'!$C$334+1+$B1669,0,IF(U1554<'1 Données d''entrée'!$C$333+'1 Données d''entrée'!$C$334+1+$B1669,$I1660*('1 Données d''entrée'!$C$332*(1+'1 Données d''entrée'!$C$332)^'1 Données d''entrée'!$C$333)/((1+'1 Données d''entrée'!$C$332)^'1 Données d''entrée'!$C$333-1),0))","v":0},{"$f":"IF(V1554<'1 Données d''entrée'!$C$334+1+$B1669,0,IF(V1554<'1 Données d''entrée'!$C$333+'1 Données d''entrée'!$C$334+1+$B1669,$I1660*('1 Données d''entrée'!$C$332*(1+'1 Données d''entrée'!$C$332)^'1 Données d''entrée'!$C$333)/((1+'1 Données d''entrée'!$C$332)^'1 Données d''entrée'!$C$333-1),0))","v":0}]
[null,8,{"$f":"IF(C$54<'1 Données d''entrée'!$C$334+1+$B1670,0,IF(C$54<'1 Données d''entrée'!$C$333+'1 Données d''entrée'!$C$334+1+$B1670,$J$160*('1 Données d''entrée'!$C$332*(1+'1 Données d''entrée'!$C$332)^'1 Données d''entrée'!$C$333)/((1+'1 Données d''entrée'!$C$332)^'1 Données d''entrée'!$C$333-1),0))","v":0},{"$f":"IF(D1554<'1 Données d''entrée'!$C$334+1+$B1670,0,IF(D1554<'1 Données d''entrée'!$C$333+'1 Données d''entrée'!$C$334+1+$B1670,$J1660*('1 Données d''entrée'!$C$332*(1+'1 Données d''entrée'!$C$332)^'1 Données d''entrée'!$C$333)/((1+'1 Données d''entrée'!$C$332)^'1 Données d''entrée'!$C$333-1),0))","v":0},{"$f":"IF(E1554<'1 Données d''entrée'!$C$334+1+$B1670,0,IF(E1554<'1 Données d''entrée'!$C$333+'1 Données d''entrée'!$C$334+1+$B1670,$J1660*('1 Données d''entrée'!$C$332*(1+'1 Données d''entrée'!$C$332)^'1 Données d''entrée'!$C$333)/((1+'1 Données d''entrée'!$C$332)^'1 Données d''entrée'!$C$333-1),0))","v":0},{"$f":"IF(F1554<'1 Données d''entrée'!$C$334+1+$B1670,0,IF(F1554<'1 Données d''entrée'!$C$333+'1 Données d''entrée'!$C$334+1+$B1670,$J1660*('1 Données d''entrée'!$C$332*(1+'1 Données d''entrée'!$C$332)^'1 Données d''entrée'!$C$333)/((1+'1 Données d''entrée'!$C$332)^'1 Données d''entrée'!$C$333-1),0))","v":0},{"$f":"IF(G1554<'1 Données d''entrée'!$C$334+1+$B1670,0,IF(G1554<'1 Données d''entrée'!$C$333+'1 Données d''entrée'!$C$334+1+$B1670,$J1660*('1 Données d''entrée'!$C$332*(1+'1 Données d''entrée'!$C$332)^'1 Données d''entrée'!$C$333)/((1+'1 Données d''entrée'!$C$332)^'1 Données d''entrée'!$C$333-1),0))","v":0},{"$f":"IF(H1554<'1 Données d''entrée'!$C$334+1+$B1670,0,IF(H1554<'1 Données d''entrée'!$C$333+'1 Données d''entrée'!$C$334+1+$B1670,$J1660*('1 Données d''entrée'!$C$332*(1+'1 Données d''entrée'!$C$332)^'1 Données d''entrée'!$C$333)/((1+'1 Données d''entrée'!$C$332)^'1 Données d''entrée'!$C$333-1),0))","v":0},{"$f":"IF(I1554<'1 Données d''entrée'!$C$334+1+$B1670,0,IF(I1554<'1 Données d''entrée'!$C$333+'1 Données d''entrée'!$C$334+1+$B1670,$J1660*('1 Données d''entrée'!$C$332*(1+'1 Données d''entrée'!$C$332)^'1 Données d''entrée'!$C$333)/((1+'1 Données d''entrée'!$C$332)^'1 Données d''entrée'!$C$333-1),0))","v":0},{"$f":"IF(J1554<'1 Données d''entrée'!$C$334+1+$B1670,0,IF(J1554<'1 Données d''entrée'!$C$333+'1 Données d''entrée'!$C$334+1+$B1670,$J1660*('1 Données d''entrée'!$C$332*(1+'1 Données d''entrée'!$C$332)^'1 Données d''entrée'!$C$333)/((1+'1 Données d''entrée'!$C$332)^'1 Données d''entrée'!$C$333-1),0))","v":0},{"$f":"IF(K1554<'1 Données d''entrée'!$C$334+1+$B1670,0,IF(K1554<'1 Données d''entrée'!$C$333+'1 Données d''entrée'!$C$334+1+$B1670,$J1660*('1 Données d''entrée'!$C$332*(1+'1 Données d''entrée'!$C$332)^'1 Données d''entrée'!$C$333)/((1+'1 Données d''entrée'!$C$332)^'1 Données d''entrée'!$C$333-1),0))","v":0},{"$f":"IF(L1554<'1 Données d''entrée'!$C$334+1+$B1670,0,IF(L1554<'1 Données d''entrée'!$C$333+'1 Données d''entrée'!$C$334+1+$B1670,$J1660*('1 Données d''entrée'!$C$332*(1+'1 Données d''entrée'!$C$332)^'1 Données d''entrée'!$C$333)/((1+'1 Données d''entrée'!$C$332)^'1 Données d''entrée'!$C$333-1),0))","v":0},{"$f":"IF(M1554<'1 Données d''entrée'!$C$334+1+$B1670,0,IF(M1554<'1 Données d''entrée'!$C$333+'1 Données d''entrée'!$C$334+1+$B1670,$J1660*('1 Données d''entrée'!$C$332*(1+'1 Données d''entrée'!$C$332)^'1 Données d''entrée'!$C$333)/((1+'1 Données d''entrée'!$C$332)^'1 Données d''entrée'!$C$333-1),0))","v":0},{"$f":"IF(N1554<'1 Données d''entrée'!$C$334+1+$B1670,0,IF(N1554<'1 Données d''entrée'!$C$333+'1 Données d''entrée'!$C$334+1+$B1670,$J1660*('1 Données d''entrée'!$C$332*(1+'1 Données d''entrée'!$C$332)^'1 Données d''entrée'!$C$333)/((1+'1 Données d''entrée'!$C$332)^'1 Données d''entrée'!$C$333-1),0))","v":0},{"$f":"IF(O1554<'1 Données d''entrée'!$C$334+1+$B1670,0,IF(O1554<'1 Données d''entrée'!$C$333+'1 Données d''entrée'!$C$334+1+$B1670,$J1660*('1 Données d''entrée'!$C$332*(1+'1 Données d''entrée'!$C$332)^'1 Données d''entrée'!$C$333)/((1+'1 Données d''entrée'!$C$332)^'1 Données d''entrée'!$C$333-1),0))","v":0},{"$f":"IF(P1554<'1 Données d''entrée'!$C$334+1+$B1670,0,IF(P1554<'1 Données d''entrée'!$C$333+'1 Données d''entrée'!$C$334+1+$B1670,$J1660*('1 Données d''entrée'!$C$332*(1+'1 Données d''entrée'!$C$332)^'1 Données d''entrée'!$C$333)/((1+'1 Données d''entrée'!$C$332)^'1 Données d''entrée'!$C$333-1),0))","v":0},{"$f":"IF(Q1554<'1 Données d''entrée'!$C$334+1+$B1670,0,IF(Q1554<'1 Données d''entrée'!$C$333+'1 Données d''entrée'!$C$334+1+$B1670,$J1660*('1 Données d''entrée'!$C$332*(1+'1 Données d''entrée'!$C$332)^'1 Données d''entrée'!$C$333)/((1+'1 Données d''entrée'!$C$332)^'1 Données d''entrée'!$C$333-1),0))","v":0},{"$f":"IF(R1554<'1 Données d''entrée'!$C$334+1+$B1670,0,IF(R1554<'1 Données d''entrée'!$C$333+'1 Données d''entrée'!$C$334+1+$B1670,$J1660*('1 Données d''entrée'!$C$332*(1+'1 Données d''entrée'!$C$332)^'1 Données d''entrée'!$C$333)/((1+'1 Données d''entrée'!$C$332)^'1 Données d''entrée'!$C$333-1),0))","v":0},{"$f":"IF(S1554<'1 Données d''entrée'!$C$334+1+$B1670,0,IF(S1554<'1 Données d''entrée'!$C$333+'1 Données d''entrée'!$C$334+1+$B1670,$J1660*('1 Données d''entrée'!$C$332*(1+'1 Données d''entrée'!$C$332)^'1 Données d''entrée'!$C$333)/((1+'1 Données d''entrée'!$C$332)^'1 Données d''entrée'!$C$333-1),0))","v":0},{"$f":"IF(T1554<'1 Données d''entrée'!$C$334+1+$B1670,0,IF(T1554<'1 Données d''entrée'!$C$333+'1 Données d''entrée'!$C$334+1+$B1670,$J1660*('1 Données d''entrée'!$C$332*(1+'1 Données d''entrée'!$C$332)^'1 Données d''entrée'!$C$333)/((1+'1 Données d''entrée'!$C$332)^'1 Données d''entrée'!$C$333-1),0))","v":0},{"$f":"IF(U1554<'1 Données d''entrée'!$C$334+1+$B1670,0,IF(U1554<'1 Données d''entrée'!$C$333+'1 Données d''entrée'!$C$334+1+$B1670,$J1660*('1 Données d''entrée'!$C$332*(1+'1 Données d''entrée'!$C$332)^'1 Données d''entrée'!$C$333)/((1+'1 Données d''entrée'!$C$332)^'1 Données d''entrée'!$C$333-1),0))","v":0},{"$f":"IF(V1554<'1 Données d''entrée'!$C$334+1+$B1670,0,IF(V1554<'1 Données d''entrée'!$C$333+'1 Données d''entrée'!$C$334+1+$B1670,$J1660*('1 Données d''entrée'!$C$332*(1+'1 Données d''entrée'!$C$332)^'1 Données d''entrée'!$C$333)/((1+'1 Données d''entrée'!$C$332)^'1 Données d''entrée'!$C$333-1),0))","v":0}]
[null,9,{"$f":"IF(C$54<'1 Données d''entrée'!$C$334+1+$B1671,0,IF(C$54<'1 Données d''entrée'!$C$333+'1 Données d''entrée'!$C$334+1+$B1671,$K$160*('1 Données d''entrée'!$C$332*(1+'1 Données d''entrée'!$C$332)^'1 Données d''entrée'!$C$333)/((1+'1 Données d''entrée'!$C$332)^'1 Données d''entrée'!$C$333-1),0))","v":0},{"$f":"IF(D1554<'1 Données d''entrée'!$C$334+1+$B1671,0,IF(D1554<'1 Données d''entrée'!$C$333+'1 Données d''entrée'!$C$334+1+$B1671,$K1660*('1 Données d''entrée'!$C$332*(1+'1 Données d''entrée'!$C$332)^'1 Données d''entrée'!$C$333)/((1+'1 Données d''entrée'!$C$332)^'1 Données d''entrée'!$C$333-1),0))","v":0},{"$f":"IF(E1554<'1 Données d''entrée'!$C$334+1+$B1671,0,IF(E1554<'1 Données d''entrée'!$C$333+'1 Données d''entrée'!$C$334+1+$B1671,$K1660*('1 Données d''entrée'!$C$332*(1+'1 Données d''entrée'!$C$332)^'1 Données d''entrée'!$C$333)/((1+'1 Données d''entrée'!$C$332)^'1 Données d''entrée'!$C$333-1),0))","v":0},{"$f":"IF(F1554<'1 Données d''entrée'!$C$334+1+$B1671,0,IF(F1554<'1 Données d''entrée'!$C$333+'1 Données d''entrée'!$C$334+1+$B1671,$K1660*('1 Données d''entrée'!$C$332*(1+'1 Données d''entrée'!$C$332)^'1 Données d''entrée'!$C$333)/((1+'1 Données d''entrée'!$C$332)^'1 Données d''entrée'!$C$333-1),0))","v":0},{"$f":"IF(G1554<'1 Données d''entrée'!$C$334+1+$B1671,0,IF(G1554<'1 Données d''entrée'!$C$333+'1 Données d''entrée'!$C$334+1+$B1671,$K1660*('1 Données d''entrée'!$C$332*(1+'1 Données d''entrée'!$C$332)^'1 Données d''entrée'!$C$333)/((1+'1 Données d''entrée'!$C$332)^'1 Données d''entrée'!$C$333-1),0))","v":0},{"$f":"IF(H1554<'1 Données d''entrée'!$C$334+1+$B1671,0,IF(H1554<'1 Données d''entrée'!$C$333+'1 Données d''entrée'!$C$334+1+$B1671,$K1660*('1 Données d''entrée'!$C$332*(1+'1 Données d''entrée'!$C$332)^'1 Données d''entrée'!$C$333)/((1+'1 Données d''entrée'!$C$332)^'1 Données d''entrée'!$C$333-1),0))","v":0},{"$f":"IF(I1554<'1 Données d''entrée'!$C$334+1+$B1671,0,IF(I1554<'1 Données d''entrée'!$C$333+'1 Données d''entrée'!$C$334+1+$B1671,$K1660*('1 Données d''entrée'!$C$332*(1+'1 Données d''entrée'!$C$332)^'1 Données d''entrée'!$C$333)/((1+'1 Données d''entrée'!$C$332)^'1 Données d''entrée'!$C$333-1),0))","v":0},{"$f":"IF(J1554<'1 Données d''entrée'!$C$334+1+$B1671,0,IF(J1554<'1 Données d''entrée'!$C$333+'1 Données d''entrée'!$C$334+1+$B1671,$K1660*('1 Données d''entrée'!$C$332*(1+'1 Données d''entrée'!$C$332)^'1 Données d''entrée'!$C$333)/((1+'1 Données d''entrée'!$C$332)^'1 Données d''entrée'!$C$333-1),0))","v":0},{"$f":"IF(K1554<'1 Données d''entrée'!$C$334+1+$B1671,0,IF(K1554<'1 Données d''entrée'!$C$333+'1 Données d''entrée'!$C$334+1+$B1671,$K1660*('1 Données d''entrée'!$C$332*(1+'1 Données d''entrée'!$C$332)^'1 Données d''entrée'!$C$333)/((1+'1 Données d''entrée'!$C$332)^'1 Données d''entrée'!$C$333-1),0))","v":0},{"$f":"IF(L1554<'1 Données d''entrée'!$C$334+1+$B1671,0,IF(L1554<'1 Données d''entrée'!$C$333+'1 Données d''entrée'!$C$334+1+$B1671,$K1660*('1 Données d''entrée'!$C$332*(1+'1 Données d''entrée'!$C$332)^'1 Données d''entrée'!$C$333)/((1+'1 Données d''entrée'!$C$332)^'1 Données d''entrée'!$C$333-1),0))","v":0},{"$f":"IF(M1554<'1 Données d''entrée'!$C$334+1+$B1671,0,IF(M1554<'1 Données d''entrée'!$C$333+'1 Données d''entrée'!$C$334+1+$B1671,$K1660*('1 Données d''entrée'!$C$332*(1+'1 Données d''entrée'!$C$332)^'1 Données d''entrée'!$C$333)/((1+'1 Données d''entrée'!$C$332)^'1 Données d''entrée'!$C$333-1),0))","v":0},{"$f":"IF(N1554<'1 Données d''entrée'!$C$334+1+$B1671,0,IF(N1554<'1 Données d''entrée'!$C$333+'1 Données d''entrée'!$C$334+1+$B1671,$K1660*('1 Données d''entrée'!$C$332*(1+'1 Données d''entrée'!$C$332)^'1 Données d''entrée'!$C$333)/((1+'1 Données d''entrée'!$C$332)^'1 Données d''entrée'!$C$333-1),0))","v":0},{"$f":"IF(O1554<'1 Données d''entrée'!$C$334+1+$B1671,0,IF(O1554<'1 Données d''entrée'!$C$333+'1 Données d''entrée'!$C$334+1+$B1671,$K1660*('1 Données d''entrée'!$C$332*(1+'1 Données d''entrée'!$C$332)^'1 Données d''entrée'!$C$333)/((1+'1 Données d''entrée'!$C$332)^'1 Données d''entrée'!$C$333-1),0))","v":0},{"$f":"IF(P1554<'1 Données d''entrée'!$C$334+1+$B1671,0,IF(P1554<'1 Données d''entrée'!$C$333+'1 Données d''entrée'!$C$334+1+$B1671,$K1660*('1 Données d''entrée'!$C$332*(1+'1 Données d''entrée'!$C$332)^'1 Données d''entrée'!$C$333)/((1+'1 Données d''entrée'!$C$332)^'1 Données d''entrée'!$C$333-1),0))","v":0},{"$f":"IF(Q1554<'1 Données d''entrée'!$C$334+1+$B1671,0,IF(Q1554<'1 Données d''entrée'!$C$333+'1 Données d''entrée'!$C$334+1+$B1671,$K1660*('1 Données d''entrée'!$C$332*(1+'1 Données d''entrée'!$C$332)^'1 Données d''entrée'!$C$333)/((1+'1 Données d''entrée'!$C$332)^'1 Données d''entrée'!$C$333-1),0))","v":0},{"$f":"IF(R1554<'1 Données d''entrée'!$C$334+1+$B1671,0,IF(R1554<'1 Données d''entrée'!$C$333+'1 Données d''entrée'!$C$334+1+$B1671,$K1660*('1 Données d''entrée'!$C$332*(1+'1 Données d''entrée'!$C$332)^'1 Données d''entrée'!$C$333)/((1+'1 Données d''entrée'!$C$332)^'1 Données d''entrée'!$C$333-1),0))","v":0},{"$f":"IF(S1554<'1 Données d''entrée'!$C$334+1+$B1671,0,IF(S1554<'1 Données d''entrée'!$C$333+'1 Données d''entrée'!$C$334+1+$B1671,$K1660*('1 Données d''entrée'!$C$332*(1+'1 Données d''entrée'!$C$332)^'1 Données d''entrée'!$C$333)/((1+'1 Données d''entrée'!$C$332)^'1 Données d''entrée'!$C$333-1),0))","v":0},{"$f":"IF(T1554<'1 Données d''entrée'!$C$334+1+$B1671,0,IF(T1554<'1 Données d''entrée'!$C$333+'1 Données d''entrée'!$C$334+1+$B1671,$K1660*('1 Données d''entrée'!$C$332*(1+'1 Données d''entrée'!$C$332)^'1 Données d''entrée'!$C$333)/((1+'1 Données d''entrée'!$C$332)^'1 Données d''entrée'!$C$333-1),0))","v":0},{"$f":"IF(U1554<'1 Données d''entrée'!$C$334+1+$B1671,0,IF(U1554<'1 Données d''entrée'!$C$333+'1 Données d''entrée'!$C$334+1+$B1671,$K1660*('1 Données d''entrée'!$C$332*(1+'1 Données d''entrée'!$C$332)^'1 Données d''entrée'!$C$333)/((1+'1 Données d''entrée'!$C$332)^'1 Données d''entrée'!$C$333-1),0))","v":0},{"$f":"IF(V1554<'1 Données d''entrée'!$C$334+1+$B1671,0,IF(V1554<'1 Données d''entrée'!$C$333+'1 Données d''entrée'!$C$334+1+$B1671,$K1660*('1 Données d''entrée'!$C$332*(1+'1 Données d''entrée'!$C$332)^'1 Données d''entrée'!$C$333)/((1+'1 Données d''entrée'!$C$332)^'1 Données d''entrée'!$C$333-1),0))","v":0}]
[null,10,{"$f":"IF(C$54<'1 Données d''entrée'!$C$334+1+$B1672,0,IF(C$54<'1 Données d''entrée'!$C$333+'1 Données d''entrée'!$C$334+1+$B1672,$L$160*('1 Données d''entrée'!$C$332*(1+'1 Données d''entrée'!$C$332)^'1 Données d''entrée'!$C$333)/((1+'1 Données d''entrée'!$C$332)^'1 Données d''entrée'!$C$333-1),0))","v":0},{"$f":"IF(D1554<'1 Données d''entrée'!$C$334+1+$B1672,0,IF(D1554<'1 Données d''entrée'!$C$333+'1 Données d''entrée'!$C$334+1+$B1672,$L1660*('1 Données d''entrée'!$C$332*(1+'1 Données d''entrée'!$C$332)^'1 Données d''entrée'!$C$333)/((1+'1 Données d''entrée'!$C$332)^'1 Données d''entrée'!$C$333-1),0))","v":0},{"$f":"IF(E1554<'1 Données d''entrée'!$C$334+1+$B1672,0,IF(E1554<'1 Données d''entrée'!$C$333+'1 Données d''entrée'!$C$334+1+$B1672,$L1660*('1 Données d''entrée'!$C$332*(1+'1 Données d''entrée'!$C$332)^'1 Données d''entrée'!$C$333)/((1+'1 Données d''entrée'!$C$332)^'1 Données d''entrée'!$C$333-1),0))","v":0},{"$f":"IF(F1554<'1 Données d''entrée'!$C$334+1+$B1672,0,IF(F1554<'1 Données d''entrée'!$C$333+'1 Données d''entrée'!$C$334+1+$B1672,$L1660*('1 Données d''entrée'!$C$332*(1+'1 Données d''entrée'!$C$332)^'1 Données d''entrée'!$C$333)/((1+'1 Données d''entrée'!$C$332)^'1 Données d''entrée'!$C$333-1),0))","v":0},{"$f":"IF(G1554<'1 Données d''entrée'!$C$334+1+$B1672,0,IF(G1554<'1 Données d''entrée'!$C$333+'1 Données d''entrée'!$C$334+1+$B1672,$L1660*('1 Données d''entrée'!$C$332*(1+'1 Données d''entrée'!$C$332)^'1 Données d''entrée'!$C$333)/((1+'1 Données d''entrée'!$C$332)^'1 Données d''entrée'!$C$333-1),0))","v":0},{"$f":"IF(H1554<'1 Données d''entrée'!$C$334+1+$B1672,0,IF(H1554<'1 Données d''entrée'!$C$333+'1 Données d''entrée'!$C$334+1+$B1672,$L1660*('1 Données d''entrée'!$C$332*(1+'1 Données d''entrée'!$C$332)^'1 Données d''entrée'!$C$333)/((1+'1 Données d''entrée'!$C$332)^'1 Données d''entrée'!$C$333-1),0))","v":0},{"$f":"IF(I1554<'1 Données d''entrée'!$C$334+1+$B1672,0,IF(I1554<'1 Données d''entrée'!$C$333+'1 Données d''entrée'!$C$334+1+$B1672,$L1660*('1 Données d''entrée'!$C$332*(1+'1 Données d''entrée'!$C$332)^'1 Données d''entrée'!$C$333)/((1+'1 Données d''entrée'!$C$332)^'1 Données d''entrée'!$C$333-1),0))","v":0},{"$f":"IF(J1554<'1 Données d''entrée'!$C$334+1+$B1672,0,IF(J1554<'1 Données d''entrée'!$C$333+'1 Données d''entrée'!$C$334+1+$B1672,$L1660*('1 Données d''entrée'!$C$332*(1+'1 Données d''entrée'!$C$332)^'1 Données d''entrée'!$C$333)/((1+'1 Données d''entrée'!$C$332)^'1 Données d''entrée'!$C$333-1),0))","v":0},{"$f":"IF(K1554<'1 Données d''entrée'!$C$334+1+$B1672,0,IF(K1554<'1 Données d''entrée'!$C$333+'1 Données d''entrée'!$C$334+1+$B1672,$L1660*('1 Données d''entrée'!$C$332*(1+'1 Données d''entrée'!$C$332)^'1 Données d''entrée'!$C$333)/((1+'1 Données d''entrée'!$C$332)^'1 Données d''entrée'!$C$333-1),0))","v":0},{"$f":"IF(L1554<'1 Données d''entrée'!$C$334+1+$B1672,0,IF(L1554<'1 Données d''entrée'!$C$333+'1 Données d''entrée'!$C$334+1+$B1672,$L1660*('1 Données d''entrée'!$C$332*(1+'1 Données d''entrée'!$C$332)^'1 Données d''entrée'!$C$333)/((1+'1 Données d''entrée'!$C$332)^'1 Données d''entrée'!$C$333-1),0))","v":0},{"$f":"IF(M1554<'1 Données d''entrée'!$C$334+1+$B1672,0,IF(M1554<'1 Données d''entrée'!$C$333+'1 Données d''entrée'!$C$334+1+$B1672,$L1660*('1 Données d''entrée'!$C$332*(1+'1 Données d''entrée'!$C$332)^'1 Données d''entrée'!$C$333)/((1+'1 Données d''entrée'!$C$332)^'1 Données d''entrée'!$C$333-1),0))","v":0},{"$f":"IF(N1554<'1 Données d''entrée'!$C$334+1+$B1672,0,IF(N1554<'1 Données d''entrée'!$C$333+'1 Données d''entrée'!$C$334+1+$B1672,$L1660*('1 Données d''entrée'!$C$332*(1+'1 Données d''entrée'!$C$332)^'1 Données d''entrée'!$C$333)/((1+'1 Données d''entrée'!$C$332)^'1 Données d''entrée'!$C$333-1),0))","v":0},{"$f":"IF(O1554<'1 Données d''entrée'!$C$334+1+$B1672,0,IF(O1554<'1 Données d''entrée'!$C$333+'1 Données d''entrée'!$C$334+1+$B1672,$L1660*('1 Données d''entrée'!$C$332*(1+'1 Données d''entrée'!$C$332)^'1 Données d''entrée'!$C$333)/((1+'1 Données d''entrée'!$C$332)^'1 Données d''entrée'!$C$333-1),0))","v":0},{"$f":"IF(P1554<'1 Données d''entrée'!$C$334+1+$B1672,0,IF(P1554<'1 Données d''entrée'!$C$333+'1 Données d''entrée'!$C$334+1+$B1672,$L1660*('1 Données d''entrée'!$C$332*(1+'1 Données d''entrée'!$C$332)^'1 Données d''entrée'!$C$333)/((1+'1 Données d''entrée'!$C$332)^'1 Données d''entrée'!$C$333-1),0))","v":0},{"$f":"IF(Q1554<'1 Données d''entrée'!$C$334+1+$B1672,0,IF(Q1554<'1 Données d''entrée'!$C$333+'1 Données d''entrée'!$C$334+1+$B1672,$L1660*('1 Données d''entrée'!$C$332*(1+'1 Données d''entrée'!$C$332)^'1 Données d''entrée'!$C$333)/((1+'1 Données d''entrée'!$C$332)^'1 Données d''entrée'!$C$333-1),0))","v":0},{"$f":"IF(R1554<'1 Données d''entrée'!$C$334+1+$B1672,0,IF(R1554<'1 Données d''entrée'!$C$333+'1 Données d''entrée'!$C$334+1+$B1672,$L1660*('1 Données d''entrée'!$C$332*(1+'1 Données d''entrée'!$C$332)^'1 Données d''entrée'!$C$333)/((1+'1 Données d''entrée'!$C$332)^'1 Données d''entrée'!$C$333-1),0))","v":0},{"$f":"IF(S1554<'1 Données d''entrée'!$C$334+1+$B1672,0,IF(S1554<'1 Données d''entrée'!$C$333+'1 Données d''entrée'!$C$334+1+$B1672,$L1660*('1 Données d''entrée'!$C$332*(1+'1 Données d''entrée'!$C$332)^'1 Données d''entrée'!$C$333)/((1+'1 Données d''entrée'!$C$332)^'1 Données d''entrée'!$C$333-1),0))","v":0},{"$f":"IF(T1554<'1 Données d''entrée'!$C$334+1+$B1672,0,IF(T1554<'1 Données d''entrée'!$C$333+'1 Données d''entrée'!$C$334+1+$B1672,$L1660*('1 Données d''entrée'!$C$332*(1+'1 Données d''entrée'!$C$332)^'1 Données d''entrée'!$C$333)/((1+'1 Données d''entrée'!$C$332)^'1 Données d''entrée'!$C$333-1),0))","v":0},{"$f":"IF(U1554<'1 Données d''entrée'!$C$334+1+$B1672,0,IF(U1554<'1 Données d''entrée'!$C$333+'1 Données d''entrée'!$C$334+1+$B1672,$L1660*('1 Données d''entrée'!$C$332*(1+'1 Données d''entrée'!$C$332)^'1 Données d''entrée'!$C$333)/((1+'1 Données d''entrée'!$C$332)^'1 Données d''entrée'!$C$333-1),0))","v":0},{"$f":"IF(V1554<'1 Données d''entrée'!$C$334+1+$B1672,0,IF(V1554<'1 Données d''entrée'!$C$333+'1 Données d''entrée'!$C$334+1+$B1672,$L1660*('1 Données d''entrée'!$C$332*(1+'1 Données d''entrée'!$C$332)^'1 Données d''entrée'!$C$333)/((1+'1 Données d''entrée'!$C$332)^'1 Données d''entrée'!$C$333-1),0))","v":0}]
[null,"Période de prêt nouveau"]
["Paiement d'intérêt décroissant inclu dans l'annuité constante",0,0,0,0,0,0,0,0,0,0,0,0,0,0,0,0,0,0,0,0,0]
["Paiement d'intêrets",1,0,{"$f":"IF(D1663>0,$C1660*((('1 Données d''entrée'!$C$332+1)^'1 Données d''entrée'!$C$333)-(1+'1 Données d''entrée'!$C$332)^('6 Financement'!C$54-1-'1 Données d''entrée'!$C$334-$B1674))/((1+'1 Données d''entrée'!$C$332)^'1 Données d''entrée'!$C$333-1)*'1 Données d''entrée'!$C$332,0)","v":0},{"$f":"IF(E1663>0,$C1660*((('1 Données d''entrée'!$C$332+1)^'1 Données d''entrée'!$C$333)-(1+'1 Données d''entrée'!$C$332)^('6 Financement'!D$54-1-'1 Données d''entrée'!$C$334-$B1674))/((1+'1 Données d''entrée'!$C$332)^'1 Données d''entrée'!$C$333-1)*'1 Données d''entrée'!$C$332,0)","v":0},{"$f":"IF(F1663>0,$C1660*((('1 Données d''entrée'!$C$332+1)^'1 Données d''entrée'!$C$333)-(1+'1 Données d''entrée'!$C$332)^('6 Financement'!E$54-1-'1 Données d''entrée'!$C$334-$B1674))/((1+'1 Données d''entrée'!$C$332)^'1 Données d''entrée'!$C$333-1)*'1 Données d''entrée'!$C$332,0)","v":0},{"$f":"IF(G1663>0,$C1660*((('1 Données d''entrée'!$C$332+1)^'1 Données d''entrée'!$C$333)-(1+'1 Données d''entrée'!$C$332)^('6 Financement'!F$54-1-'1 Données d''entrée'!$C$334-$B1674))/((1+'1 Données d''entrée'!$C$332)^'1 Données d''entrée'!$C$333-1)*'1 Données d''entrée'!$C$332,0)","v":0},{"$f":"IF(H1663>0,$C1660*((('1 Données d''entrée'!$C$332+1)^'1 Données d''entrée'!$C$333)-(1+'1 Données d''entrée'!$C$332)^('6 Financement'!G$54-1-'1 Données d''entrée'!$C$334-$B1674))/((1+'1 Données d''entrée'!$C$332)^'1 Données d''entrée'!$C$333-1)*'1 Données d''entrée'!$C$332,0)","v":0},{"$f":"IF(I1663>0,$C1660*((('1 Données d''entrée'!$C$332+1)^'1 Données d''entrée'!$C$333)-(1+'1 Données d''entrée'!$C$332)^('6 Financement'!H$54-1-'1 Données d''entrée'!$C$334-$B1674))/((1+'1 Données d''entrée'!$C$332)^'1 Données d''entrée'!$C$333-1)*'1 Données d''entrée'!$C$332,0)","v":0},{"$f":"IF(J1663>0,$C1660*((('1 Données d''entrée'!$C$332+1)^'1 Données d''entrée'!$C$333)-(1+'1 Données d''entrée'!$C$332)^('6 Financement'!I$54-1-'1 Données d''entrée'!$C$334-$B1674))/((1+'1 Données d''entrée'!$C$332)^'1 Données d''entrée'!$C$333-1)*'1 Données d''entrée'!$C$332,0)","v":0},{"$f":"IF(K1663>0,$C1660*((('1 Données d''entrée'!$C$332+1)^'1 Données d''entrée'!$C$333)-(1+'1 Données d''entrée'!$C$332)^('6 Financement'!J$54-1-'1 Données d''entrée'!$C$334-$B1674))/((1+'1 Données d''entrée'!$C$332)^'1 Données d''entrée'!$C$333-1)*'1 Données d''entrée'!$C$332,0)","v":0},{"$f":"IF(L1663>0,$C1660*((('1 Données d''entrée'!$C$332+1)^'1 Données d''entrée'!$C$333)-(1+'1 Données d''entrée'!$C$332)^('6 Financement'!K$54-1-'1 Données d''entrée'!$C$334-$B1674))/((1+'1 Données d''entrée'!$C$332)^'1 Données d''entrée'!$C$333-1)*'1 Données d''entrée'!$C$332,0)","v":0},{"$f":"IF(M1663>0,$C1660*((('1 Données d''entrée'!$C$332+1)^'1 Données d''entrée'!$C$333)-(1+'1 Données d''entrée'!$C$332)^('6 Financement'!L$54-1-'1 Données d''entrée'!$C$334-$B1674))/((1+'1 Données d''entrée'!$C$332)^'1 Données d''entrée'!$C$333-1)*'1 Données d''entrée'!$C$332,0)","v":0},{"$f":"IF(N1663>0,$C1660*((('1 Données d''entrée'!$C$332+1)^'1 Données d''entrée'!$C$333)-(1+'1 Données d''entrée'!$C$332)^('6 Financement'!M$54-1-'1 Données d''entrée'!$C$334-$B1674))/((1+'1 Données d''entrée'!$C$332)^'1 Données d''entrée'!$C$333-1)*'1 Données d''entrée'!$C$332,0)","v":0},{"$f":"IF(O1663>0,$C1660*((('1 Données d''entrée'!$C$332+1)^'1 Données d''entrée'!$C$333)-(1+'1 Données d''entrée'!$C$332)^('6 Financement'!N$54-1-'1 Données d''entrée'!$C$334-$B1674))/((1+'1 Données d''entrée'!$C$332)^'1 Données d''entrée'!$C$333-1)*'1 Données d''entrée'!$C$332,0)","v":0},{"$f":"IF(P1663>0,$C1660*((('1 Données d''entrée'!$C$332+1)^'1 Données d''entrée'!$C$333)-(1+'1 Données d''entrée'!$C$332)^('6 Financement'!O$54-1-'1 Données d''entrée'!$C$334-$B1674))/((1+'1 Données d''entrée'!$C$332)^'1 Données d''entrée'!$C$333-1)*'1 Données d''entrée'!$C$332,0)","v":0},{"$f":"IF(Q1663>0,$C1660*((('1 Données d''entrée'!$C$332+1)^'1 Données d''entrée'!$C$333)-(1+'1 Données d''entrée'!$C$332)^('6 Financement'!P$54-1-'1 Données d''entrée'!$C$334-$B1674))/((1+'1 Données d''entrée'!$C$332)^'1 Données d''entrée'!$C$333-1)*'1 Données d''entrée'!$C$332,0)","v":0},{"$f":"IF(R1663>0,$C1660*((('1 Données d''entrée'!$C$332+1)^'1 Données d''entrée'!$C$333)-(1+'1 Données d''entrée'!$C$332)^('6 Financement'!Q$54-1-'1 Données d''entrée'!$C$334-$B1674))/((1+'1 Données d''entrée'!$C$332)^'1 Données d''entrée'!$C$333-1)*'1 Données d''entrée'!$C$332,0)","v":0},{"$f":"IF(S1663>0,$C1660*((('1 Données d''entrée'!$C$332+1)^'1 Données d''entrée'!$C$333)-(1+'1 Données d''entrée'!$C$332)^('6 Financement'!R$54-1-'1 Données d''entrée'!$C$334-$B1674))/((1+'1 Données d''entrée'!$C$332)^'1 Données d''entrée'!$C$333-1)*'1 Données d''entrée'!$C$332,0)","v":0},{"$f":"IF(T1663>0,$C1660*((('1 Données d''entrée'!$C$332+1)^'1 Données d''entrée'!$C$333)-(1+'1 Données d''entrée'!$C$332)^('6 Financement'!S$54-1-'1 Données d''entrée'!$C$334-$B1674))/((1+'1 Données d''entrée'!$C$332)^'1 Données d''entrée'!$C$333-1)*'1 Données d''entrée'!$C$332,0)","v":0},{"$f":"IF(U1663>0,$C1660*((('1 Données d''entrée'!$C$332+1)^'1 Données d''entrée'!$C$333)-(1+'1 Données d''entrée'!$C$332)^('6 Financement'!T$54-1-'1 Données d''entrée'!$C$334-$B1674))/((1+'1 Données d''entrée'!$C$332)^'1 Données d''entrée'!$C$333-1)*'1 Données d''entrée'!$C$332,0)","v":0},{"$f":"IF(V1663>0,$C1660*((('1 Données d''entrée'!$C$332+1)^'1 Données d''entrée'!$C$333)-(1+'1 Données d''entrée'!$C$332)^('6 Financement'!U$54-1-'1 Données d''entrée'!$C$334-$B1674))/((1+'1 Données d''entrée'!$C$332)^'1 Données d''entrée'!$C$333-1)*'1 Données d''entrée'!$C$332,0)","v":0}]
["Paiement d'intêrets",2,0,{"$f":"IF(D1664>0,$D1660*((('1 Données d''entrée'!$C$332+1)^'1 Données d''entrée'!$C$333)-(1+'1 Données d''entrée'!$C$332)^('6 Financement'!C$54-1-'1 Données d''entrée'!$C$334-$B1675))/((1+'1 Données d''entrée'!$C$332)^'1 Données d''entrée'!$C$333-1)*'1 Données d''entrée'!$C$332,0)","v":0},{"$f":"IF(E1664>0,$D1660*((('1 Données d''entrée'!$C$332+1)^'1 Données d''entrée'!$C$333)-(1+'1 Données d''entrée'!$C$332)^('6 Financement'!D$54-1-'1 Données d''entrée'!$C$334-$B1675))/((1+'1 Données d''entrée'!$C$332)^'1 Données d''entrée'!$C$333-1)*'1 Données d''entrée'!$C$332,0)","v":0},{"$f":"IF(F1664>0,$D1660*((('1 Données d''entrée'!$C$332+1)^'1 Données d''entrée'!$C$333)-(1+'1 Données d''entrée'!$C$332)^('6 Financement'!E$54-1-'1 Données d''entrée'!$C$334-$B1675))/((1+'1 Données d''entrée'!$C$332)^'1 Données d''entrée'!$C$333-1)*'1 Données d''entrée'!$C$332,0)","v":0},{"$f":"IF(G1664>0,$D1660*((('1 Données d''entrée'!$C$332+1)^'1 Données d''entrée'!$C$333)-(1+'1 Données d''entrée'!$C$332)^('6 Financement'!F$54-1-'1 Données d''entrée'!$C$334-$B1675))/((1+'1 Données d''entrée'!$C$332)^'1 Données d''entrée'!$C$333-1)*'1 Données d''entrée'!$C$332,0)","v":0},{"$f":"IF(H1664>0,$D1660*((('1 Données d''entrée'!$C$332+1)^'1 Données d''entrée'!$C$333)-(1+'1 Données d''entrée'!$C$332)^('6 Financement'!G$54-1-'1 Données d''entrée'!$C$334-$B1675))/((1+'1 Données d''entrée'!$C$332)^'1 Données d''entrée'!$C$333-1)*'1 Données d''entrée'!$C$332,0)","v":0},{"$f":"IF(I1664>0,$D1660*((('1 Données d''entrée'!$C$332+1)^'1 Données d''entrée'!$C$333)-(1+'1 Données d''entrée'!$C$332)^('6 Financement'!H$54-1-'1 Données d''entrée'!$C$334-$B1675))/((1+'1 Données d''entrée'!$C$332)^'1 Données d''entrée'!$C$333-1)*'1 Données d''entrée'!$C$332,0)","v":0},{"$f":"IF(J1664>0,$D1660*((('1 Données d''entrée'!$C$332+1)^'1 Données d''entrée'!$C$333)-(1+'1 Données d''entrée'!$C$332)^('6 Financement'!I$54-1-'1 Données d''entrée'!$C$334-$B1675))/((1+'1 Données d''entrée'!$C$332)^'1 Données d''entrée'!$C$333-1)*'1 Données d''entrée'!$C$332,0)","v":0},{"$f":"IF(K1664>0,$D1660*((('1 Données d''entrée'!$C$332+1)^'1 Données d''entrée'!$C$333)-(1+'1 Données d''entrée'!$C$332)^('6 Financement'!J$54-1-'1 Données d''entrée'!$C$334-$B1675))/((1+'1 Données d''entrée'!$C$332)^'1 Données d''entrée'!$C$333-1)*'1 Données d''entrée'!$C$332,0)","v":0},{"$f":"IF(L1664>0,$D1660*((('1 Données d''entrée'!$C$332+1)^'1 Données d''entrée'!$C$333)-(1+'1 Données d''entrée'!$C$332)^('6 Financement'!K$54-1-'1 Données d''entrée'!$C$334-$B1675))/((1+'1 Données d''entrée'!$C$332)^'1 Données d''entrée'!$C$333-1)*'1 Données d''entrée'!$C$332,0)","v":0},{"$f":"IF(M1664>0,$D1660*((('1 Données d''entrée'!$C$332+1)^'1 Données d''entrée'!$C$333)-(1+'1 Données d''entrée'!$C$332)^('6 Financement'!L$54-1-'1 Données d''entrée'!$C$334-$B1675))/((1+'1 Données d''entrée'!$C$332)^'1 Données d''entrée'!$C$333-1)*'1 Données d''entrée'!$C$332,0)","v":0},{"$f":"IF(N1664>0,$D1660*((('1 Données d''entrée'!$C$332+1)^'1 Données d''entrée'!$C$333)-(1+'1 Données d''entrée'!$C$332)^('6 Financement'!M$54-1-'1 Données d''entrée'!$C$334-$B1675))/((1+'1 Données d''entrée'!$C$332)^'1 Données d''entrée'!$C$333-1)*'1 Données d''entrée'!$C$332,0)","v":0},{"$f":"IF(O1664>0,$D1660*((('1 Données d''entrée'!$C$332+1)^'1 Données d''entrée'!$C$333)-(1+'1 Données d''entrée'!$C$332)^('6 Financement'!N$54-1-'1 Données d''entrée'!$C$334-$B1675))/((1+'1 Données d''entrée'!$C$332)^'1 Données d''entrée'!$C$333-1)*'1 Données d''entrée'!$C$332,0)","v":0},{"$f":"IF(P1664>0,$D1660*((('1 Données d''entrée'!$C$332+1)^'1 Données d''entrée'!$C$333)-(1+'1 Données d''entrée'!$C$332)^('6 Financement'!O$54-1-'1 Données d''entrée'!$C$334-$B1675))/((1+'1 Données d''entrée'!$C$332)^'1 Données d''entrée'!$C$333-1)*'1 Données d''entrée'!$C$332,0)","v":0},{"$f":"IF(Q1664>0,$D1660*((('1 Données d''entrée'!$C$332+1)^'1 Données d''entrée'!$C$333)-(1+'1 Données d''entrée'!$C$332)^('6 Financement'!P$54-1-'1 Données d''entrée'!$C$334-$B1675))/((1+'1 Données d''entrée'!$C$332)^'1 Données d''entrée'!$C$333-1)*'1 Données d''entrée'!$C$332,0)","v":0},{"$f":"IF(R1664>0,$D1660*((('1 Données d''entrée'!$C$332+1)^'1 Données d''entrée'!$C$333)-(1+'1 Données d''entrée'!$C$332)^('6 Financement'!Q$54-1-'1 Données d''entrée'!$C$334-$B1675))/((1+'1 Données d''entrée'!$C$332)^'1 Données d''entrée'!$C$333-1)*'1 Données d''entrée'!$C$332,0)","v":0},{"$f":"IF(S1664>0,$D1660*((('1 Données d''entrée'!$C$332+1)^'1 Données d''entrée'!$C$333)-(1+'1 Données d''entrée'!$C$332)^('6 Financement'!R$54-1-'1 Données d''entrée'!$C$334-$B1675))/((1+'1 Données d''entrée'!$C$332)^'1 Données d''entrée'!$C$333-1)*'1 Données d''entrée'!$C$332,0)","v":0},{"$f":"IF(T1664>0,$D1660*((('1 Données d''entrée'!$C$332+1)^'1 Données d''entrée'!$C$333)-(1+'1 Données d''entrée'!$C$332)^('6 Financement'!S$54-1-'1 Données d''entrée'!$C$334-$B1675))/((1+'1 Données d''entrée'!$C$332)^'1 Données d''entrée'!$C$333-1)*'1 Données d''entrée'!$C$332,0)","v":0},{"$f":"IF(U1664>0,$D1660*((('1 Données d''entrée'!$C$332+1)^'1 Données d''entrée'!$C$333)-(1+'1 Données d''entrée'!$C$332)^('6 Financement'!T$54-1-'1 Données d''entrée'!$C$334-$B1675))/((1+'1 Données d''entrée'!$C$332)^'1 Données d''entrée'!$C$333-1)*'1 Données d''entrée'!$C$332,0)","v":0},{"$f":"IF(V1664>0,$D1660*((('1 Données d''entrée'!$C$332+1)^'1 Données d''entrée'!$C$333)-(1+'1 Données d''entrée'!$C$332)^('6 Financement'!U$54-1-'1 Données d''entrée'!$C$334-$B1675))/((1+'1 Données d''entrée'!$C$332)^'1 Données d''entrée'!$C$333-1)*'1 Données d''entrée'!$C$332,0)","v":0}]
["Paiement d'intêrets",3,0,{"$f":"IF(D1665>0,$E1660*((('1 Données d''entrée'!$C$332+1)^'1 Données d''entrée'!$C$333)-(1+'1 Données d''entrée'!$C$332)^('6 Financement'!C$54-1-'1 Données d''entrée'!$C$334-$B1676))/((1+'1 Données d''entrée'!$C$332)^'1 Données d''entrée'!$C$333-1)*'1 Données d''entrée'!$C$332,0)","v":0},{"$f":"IF(E1665>0,$E1660*((('1 Données d''entrée'!$C$332+1)^'1 Données d''entrée'!$C$333)-(1+'1 Données d''entrée'!$C$332)^('6 Financement'!D$54-1-'1 Données d''entrée'!$C$334-$B1676))/((1+'1 Données d''entrée'!$C$332)^'1 Données d''entrée'!$C$333-1)*'1 Données d''entrée'!$C$332,0)","v":0},{"$f":"IF(F1665>0,$E1660*((('1 Données d''entrée'!$C$332+1)^'1 Données d''entrée'!$C$333)-(1+'1 Données d''entrée'!$C$332)^('6 Financement'!E$54-1-'1 Données d''entrée'!$C$334-$B1676))/((1+'1 Données d''entrée'!$C$332)^'1 Données d''entrée'!$C$333-1)*'1 Données d''entrée'!$C$332,0)","v":0},{"$f":"IF(G1665>0,$E1660*((('1 Données d''entrée'!$C$332+1)^'1 Données d''entrée'!$C$333)-(1+'1 Données d''entrée'!$C$332)^('6 Financement'!F$54-1-'1 Données d''entrée'!$C$334-$B1676))/((1+'1 Données d''entrée'!$C$332)^'1 Données d''entrée'!$C$333-1)*'1 Données d''entrée'!$C$332,0)","v":0},{"$f":"IF(H1665>0,$E1660*((('1 Données d''entrée'!$C$332+1)^'1 Données d''entrée'!$C$333)-(1+'1 Données d''entrée'!$C$332)^('6 Financement'!G$54-1-'1 Données d''entrée'!$C$334-$B1676))/((1+'1 Données d''entrée'!$C$332)^'1 Données d''entrée'!$C$333-1)*'1 Données d''entrée'!$C$332,0)","v":0},{"$f":"IF(I1665>0,$E1660*((('1 Données d''entrée'!$C$332+1)^'1 Données d''entrée'!$C$333)-(1+'1 Données d''entrée'!$C$332)^('6 Financement'!H$54-1-'1 Données d''entrée'!$C$334-$B1676))/((1+'1 Données d''entrée'!$C$332)^'1 Données d''entrée'!$C$333-1)*'1 Données d''entrée'!$C$332,0)","v":0},{"$f":"IF(J1665>0,$E1660*((('1 Données d''entrée'!$C$332+1)^'1 Données d''entrée'!$C$333)-(1+'1 Données d''entrée'!$C$332)^('6 Financement'!I$54-1-'1 Données d''entrée'!$C$334-$B1676))/((1+'1 Données d''entrée'!$C$332)^'1 Données d''entrée'!$C$333-1)*'1 Données d''entrée'!$C$332,0)","v":0},{"$f":"IF(K1665>0,$E1660*((('1 Données d''entrée'!$C$332+1)^'1 Données d''entrée'!$C$333)-(1+'1 Données d''entrée'!$C$332)^('6 Financement'!J$54-1-'1 Données d''entrée'!$C$334-$B1676))/((1+'1 Données d''entrée'!$C$332)^'1 Données d''entrée'!$C$333-1)*'1 Données d''entrée'!$C$332,0)","v":0},{"$f":"IF(L1665>0,$E1660*((('1 Données d''entrée'!$C$332+1)^'1 Données d''entrée'!$C$333)-(1+'1 Données d''entrée'!$C$332)^('6 Financement'!K$54-1-'1 Données d''entrée'!$C$334-$B1676))/((1+'1 Données d''entrée'!$C$332)^'1 Données d''entrée'!$C$333-1)*'1 Données d''entrée'!$C$332,0)","v":0},{"$f":"IF(M1665>0,$E1660*((('1 Données d''entrée'!$C$332+1)^'1 Données d''entrée'!$C$333)-(1+'1 Données d''entrée'!$C$332)^('6 Financement'!L$54-1-'1 Données d''entrée'!$C$334-$B1676))/((1+'1 Données d''entrée'!$C$332)^'1 Données d''entrée'!$C$333-1)*'1 Données d''entrée'!$C$332,0)","v":0},{"$f":"IF(N1665>0,$E1660*((('1 Données d''entrée'!$C$332+1)^'1 Données d''entrée'!$C$333)-(1+'1 Données d''entrée'!$C$332)^('6 Financement'!M$54-1-'1 Données d''entrée'!$C$334-$B1676))/((1+'1 Données d''entrée'!$C$332)^'1 Données d''entrée'!$C$333-1)*'1 Données d''entrée'!$C$332,0)","v":0},{"$f":"IF(O1665>0,$E1660*((('1 Données d''entrée'!$C$332+1)^'1 Données d''entrée'!$C$333)-(1+'1 Données d''entrée'!$C$332)^('6 Financement'!N$54-1-'1 Données d''entrée'!$C$334-$B1676))/((1+'1 Données d''entrée'!$C$332)^'1 Données d''entrée'!$C$333-1)*'1 Données d''entrée'!$C$332,0)","v":0},{"$f":"IF(P1665>0,$E1660*((('1 Données d''entrée'!$C$332+1)^'1 Données d''entrée'!$C$333)-(1+'1 Données d''entrée'!$C$332)^('6 Financement'!O$54-1-'1 Données d''entrée'!$C$334-$B1676))/((1+'1 Données d''entrée'!$C$332)^'1 Données d''entrée'!$C$333-1)*'1 Données d''entrée'!$C$332,0)","v":0},{"$f":"IF(Q1665>0,$E1660*((('1 Données d''entrée'!$C$332+1)^'1 Données d''entrée'!$C$333)-(1+'1 Données d''entrée'!$C$332)^('6 Financement'!P$54-1-'1 Données d''entrée'!$C$334-$B1676))/((1+'1 Données d''entrée'!$C$332)^'1 Données d''entrée'!$C$333-1)*'1 Données d''entrée'!$C$332,0)","v":0},{"$f":"IF(R1665>0,$E1660*((('1 Données d''entrée'!$C$332+1)^'1 Données d''entrée'!$C$333)-(1+'1 Données d''entrée'!$C$332)^('6 Financement'!Q$54-1-'1 Données d''entrée'!$C$334-$B1676))/((1+'1 Données d''entrée'!$C$332)^'1 Données d''entrée'!$C$333-1)*'1 Données d''entrée'!$C$332,0)","v":0},{"$f":"IF(S1665>0,$E1660*((('1 Données d''entrée'!$C$332+1)^'1 Données d''entrée'!$C$333)-(1+'1 Données d''entrée'!$C$332)^('6 Financement'!R$54-1-'1 Données d''entrée'!$C$334-$B1676))/((1+'1 Données d''entrée'!$C$332)^'1 Données d''entrée'!$C$333-1)*'1 Données d''entrée'!$C$332,0)","v":0},{"$f":"IF(T1665>0,$E1660*((('1 Données d''entrée'!$C$332+1)^'1 Données d''entrée'!$C$333)-(1+'1 Données d''entrée'!$C$332)^('6 Financement'!S$54-1-'1 Données d''entrée'!$C$334-$B1676))/((1+'1 Données d''entrée'!$C$332)^'1 Données d''entrée'!$C$333-1)*'1 Données d''entrée'!$C$332,0)","v":0},{"$f":"IF(U1665>0,$E1660*((('1 Données d''entrée'!$C$332+1)^'1 Données d''entrée'!$C$333)-(1+'1 Données d''entrée'!$C$332)^('6 Financement'!T$54-1-'1 Données d''entrée'!$C$334-$B1676))/((1+'1 Données d''entrée'!$C$332)^'1 Données d''entrée'!$C$333-1)*'1 Données d''entrée'!$C$332,0)","v":0},{"$f":"IF(V1665>0,$E1660*((('1 Données d''entrée'!$C$332+1)^'1 Données d''entrée'!$C$333)-(1+'1 Données d''entrée'!$C$332)^('6 Financement'!U$54-1-'1 Données d''entrée'!$C$334-$B1676))/((1+'1 Données d''entrée'!$C$332)^'1 Données d''entrée'!$C$333-1)*'1 Données d''entrée'!$C$332,0)","v":0}]
["Paiement d'intêrets",4,0,{"$f":"IF(D1666>0,$F1660*((('1 Données d''entrée'!$C$332+1)^'1 Données d''entrée'!$C$333)-(1+'1 Données d''entrée'!$C$332)^('6 Financement'!C$54-1-'1 Données d''entrée'!$C$334-$B1677))/((1+'1 Données d''entrée'!$C$332)^'1 Données d''entrée'!$C$333-1)*'1 Données d''entrée'!$C$332,0)","v":0},{"$f":"IF(E1666>0,$F1660*((('1 Données d''entrée'!$C$332+1)^'1 Données d''entrée'!$C$333)-(1+'1 Données d''entrée'!$C$332)^('6 Financement'!D$54-1-'1 Données d''entrée'!$C$334-$B1677))/((1+'1 Données d''entrée'!$C$332)^'1 Données d''entrée'!$C$333-1)*'1 Données d''entrée'!$C$332,0)","v":0},{"$f":"IF(F1666>0,$F1660*((('1 Données d''entrée'!$C$332+1)^'1 Données d''entrée'!$C$333)-(1+'1 Données d''entrée'!$C$332)^('6 Financement'!E$54-1-'1 Données d''entrée'!$C$334-$B1677))/((1+'1 Données d''entrée'!$C$332)^'1 Données d''entrée'!$C$333-1)*'1 Données d''entrée'!$C$332,0)","v":0},{"$f":"IF(G1666>0,$F1660*((('1 Données d''entrée'!$C$332+1)^'1 Données d''entrée'!$C$333)-(1+'1 Données d''entrée'!$C$332)^('6 Financement'!F$54-1-'1 Données d''entrée'!$C$334-$B1677))/((1+'1 Données d''entrée'!$C$332)^'1 Données d''entrée'!$C$333-1)*'1 Données d''entrée'!$C$332,0)","v":0},{"$f":"IF(H1666>0,$F1660*((('1 Données d''entrée'!$C$332+1)^'1 Données d''entrée'!$C$333)-(1+'1 Données d''entrée'!$C$332)^('6 Financement'!G$54-1-'1 Données d''entrée'!$C$334-$B1677))/((1+'1 Données d''entrée'!$C$332)^'1 Données d''entrée'!$C$333-1)*'1 Données d''entrée'!$C$332,0)","v":0},{"$f":"IF(I1666>0,$F1660*((('1 Données d''entrée'!$C$332+1)^'1 Données d''entrée'!$C$333)-(1+'1 Données d''entrée'!$C$332)^('6 Financement'!H$54-1-'1 Données d''entrée'!$C$334-$B1677))/((1+'1 Données d''entrée'!$C$332)^'1 Données d''entrée'!$C$333-1)*'1 Données d''entrée'!$C$332,0)","v":0},{"$f":"IF(J1666>0,$F1660*((('1 Données d''entrée'!$C$332+1)^'1 Données d''entrée'!$C$333)-(1+'1 Données d''entrée'!$C$332)^('6 Financement'!I$54-1-'1 Données d''entrée'!$C$334-$B1677))/((1+'1 Données d''entrée'!$C$332)^'1 Données d''entrée'!$C$333-1)*'1 Données d''entrée'!$C$332,0)","v":0},{"$f":"IF(K1666>0,$F1660*((('1 Données d''entrée'!$C$332+1)^'1 Données d''entrée'!$C$333)-(1+'1 Données d''entrée'!$C$332)^('6 Financement'!J$54-1-'1 Données d''entrée'!$C$334-$B1677))/((1+'1 Données d''entrée'!$C$332)^'1 Données d''entrée'!$C$333-1)*'1 Données d''entrée'!$C$332,0)","v":0},{"$f":"IF(L1666>0,$F1660*((('1 Données d''entrée'!$C$332+1)^'1 Données d''entrée'!$C$333)-(1+'1 Données d''entrée'!$C$332)^('6 Financement'!K$54-1-'1 Données d''entrée'!$C$334-$B1677))/((1+'1 Données d''entrée'!$C$332)^'1 Données d''entrée'!$C$333-1)*'1 Données d''entrée'!$C$332,0)","v":0},{"$f":"IF(M1666>0,$F1660*((('1 Données d''entrée'!$C$332+1)^'1 Données d''entrée'!$C$333)-(1+'1 Données d''entrée'!$C$332)^('6 Financement'!L$54-1-'1 Données d''entrée'!$C$334-$B1677))/((1+'1 Données d''entrée'!$C$332)^'1 Données d''entrée'!$C$333-1)*'1 Données d''entrée'!$C$332,0)","v":0},{"$f":"IF(N1666>0,$F1660*((('1 Données d''entrée'!$C$332+1)^'1 Données d''entrée'!$C$333)-(1+'1 Données d''entrée'!$C$332)^('6 Financement'!M$54-1-'1 Données d''entrée'!$C$334-$B1677))/((1+'1 Données d''entrée'!$C$332)^'1 Données d''entrée'!$C$333-1)*'1 Données d''entrée'!$C$332,0)","v":0},{"$f":"IF(O1666>0,$F1660*((('1 Données d''entrée'!$C$332+1)^'1 Données d''entrée'!$C$333)-(1+'1 Données d''entrée'!$C$332)^('6 Financement'!N$54-1-'1 Données d''entrée'!$C$334-$B1677))/((1+'1 Données d''entrée'!$C$332)^'1 Données d''entrée'!$C$333-1)*'1 Données d''entrée'!$C$332,0)","v":0},{"$f":"IF(P1666>0,$F1660*((('1 Données d''entrée'!$C$332+1)^'1 Données d''entrée'!$C$333)-(1+'1 Données d''entrée'!$C$332)^('6 Financement'!O$54-1-'1 Données d''entrée'!$C$334-$B1677))/((1+'1 Données d''entrée'!$C$332)^'1 Données d''entrée'!$C$333-1)*'1 Données d''entrée'!$C$332,0)","v":0},{"$f":"IF(Q1666>0,$F1660*((('1 Données d''entrée'!$C$332+1)^'1 Données d''entrée'!$C$333)-(1+'1 Données d''entrée'!$C$332)^('6 Financement'!P$54-1-'1 Données d''entrée'!$C$334-$B1677))/((1+'1 Données d''entrée'!$C$332)^'1 Données d''entrée'!$C$333-1)*'1 Données d''entrée'!$C$332,0)","v":0},{"$f":"IF(R1666>0,$F1660*((('1 Données d''entrée'!$C$332+1)^'1 Données d''entrée'!$C$333)-(1+'1 Données d''entrée'!$C$332)^('6 Financement'!Q$54-1-'1 Données d''entrée'!$C$334-$B1677))/((1+'1 Données d''entrée'!$C$332)^'1 Données d''entrée'!$C$333-1)*'1 Données d''entrée'!$C$332,0)","v":0},{"$f":"IF(S1666>0,$F1660*((('1 Données d''entrée'!$C$332+1)^'1 Données d''entrée'!$C$333)-(1+'1 Données d''entrée'!$C$332)^('6 Financement'!R$54-1-'1 Données d''entrée'!$C$334-$B1677))/((1+'1 Données d''entrée'!$C$332)^'1 Données d''entrée'!$C$333-1)*'1 Données d''entrée'!$C$332,0)","v":0},{"$f":"IF(T1666>0,$F1660*((('1 Données d''entrée'!$C$332+1)^'1 Données d''entrée'!$C$333)-(1+'1 Données d''entrée'!$C$332)^('6 Financement'!S$54-1-'1 Données d''entrée'!$C$334-$B1677))/((1+'1 Données d''entrée'!$C$332)^'1 Données d''entrée'!$C$333-1)*'1 Données d''entrée'!$C$332,0)","v":0},{"$f":"IF(U1666>0,$F1660*((('1 Données d''entrée'!$C$332+1)^'1 Données d''entrée'!$C$333)-(1+'1 Données d''entrée'!$C$332)^('6 Financement'!T$54-1-'1 Données d''entrée'!$C$334-$B1677))/((1+'1 Données d''entrée'!$C$332)^'1 Données d''entrée'!$C$333-1)*'1 Données d''entrée'!$C$332,0)","v":0},{"$f":"IF(V1666>0,$F1660*((('1 Données d''entrée'!$C$332+1)^'1 Données d''entrée'!$C$333)-(1+'1 Données d''entrée'!$C$332)^('6 Financement'!U$54-1-'1 Données d''entrée'!$C$334-$B1677))/((1+'1 Données d''entrée'!$C$332)^'1 Données d''entrée'!$C$333-1)*'1 Données d''entrée'!$C$332,0)","v":0}]
["Paiement d'intêrets",5,0,{"$f":"IF(D1667>0,$G1660*((('1 Données d''entrée'!$C$332+1)^'1 Données d''entrée'!$C$333)-(1+'1 Données d''entrée'!$C$332)^('6 Financement'!C$54-1-'1 Données d''entrée'!$C$334-$B1678))/((1+'1 Données d''entrée'!$C$332)^'1 Données d''entrée'!$C$333-1)*'1 Données d''entrée'!$C$332,0)","v":0},{"$f":"IF(E1667>0,$G1660*((('1 Données d''entrée'!$C$332+1)^'1 Données d''entrée'!$C$333)-(1+'1 Données d''entrée'!$C$332)^('6 Financement'!D$54-1-'1 Données d''entrée'!$C$334-$B1678))/((1+'1 Données d''entrée'!$C$332)^'1 Données d''entrée'!$C$333-1)*'1 Données d''entrée'!$C$332,0)","v":0},{"$f":"IF(F1667>0,$G1660*((('1 Données d''entrée'!$C$332+1)^'1 Données d''entrée'!$C$333)-(1+'1 Données d''entrée'!$C$332)^('6 Financement'!E$54-1-'1 Données d''entrée'!$C$334-$B1678))/((1+'1 Données d''entrée'!$C$332)^'1 Données d''entrée'!$C$333-1)*'1 Données d''entrée'!$C$332,0)","v":0},{"$f":"IF(G1667>0,$G1660*((('1 Données d''entrée'!$C$332+1)^'1 Données d''entrée'!$C$333)-(1+'1 Données d''entrée'!$C$332)^('6 Financement'!F$54-1-'1 Données d''entrée'!$C$334-$B1678))/((1+'1 Données d''entrée'!$C$332)^'1 Données d''entrée'!$C$333-1)*'1 Données d''entrée'!$C$332,0)","v":0},{"$f":"IF(H1667>0,$G1660*((('1 Données d''entrée'!$C$332+1)^'1 Données d''entrée'!$C$333)-(1+'1 Données d''entrée'!$C$332)^('6 Financement'!G$54-1-'1 Données d''entrée'!$C$334-$B1678))/((1+'1 Données d''entrée'!$C$332)^'1 Données d''entrée'!$C$333-1)*'1 Données d''entrée'!$C$332,0)","v":0},{"$f":"IF(I1667>0,$G1660*((('1 Données d''entrée'!$C$332+1)^'1 Données d''entrée'!$C$333)-(1+'1 Données d''entrée'!$C$332)^('6 Financement'!H$54-1-'1 Données d''entrée'!$C$334-$B1678))/((1+'1 Données d''entrée'!$C$332)^'1 Données d''entrée'!$C$333-1)*'1 Données d''entrée'!$C$332,0)","v":0},{"$f":"IF(J1667>0,$G1660*((('1 Données d''entrée'!$C$332+1)^'1 Données d''entrée'!$C$333)-(1+'1 Données d''entrée'!$C$332)^('6 Financement'!I$54-1-'1 Données d''entrée'!$C$334-$B1678))/((1+'1 Données d''entrée'!$C$332)^'1 Données d''entrée'!$C$333-1)*'1 Données d''entrée'!$C$332,0)","v":0},{"$f":"IF(K1667>0,$G1660*((('1 Données d''entrée'!$C$332+1)^'1 Données d''entrée'!$C$333)-(1+'1 Données d''entrée'!$C$332)^('6 Financement'!J$54-1-'1 Données d''entrée'!$C$334-$B1678))/((1+'1 Données d''entrée'!$C$332)^'1 Données d''entrée'!$C$333-1)*'1 Données d''entrée'!$C$332,0)","v":0},{"$f":"IF(L1667>0,$G1660*((('1 Données d''entrée'!$C$332+1)^'1 Données d''entrée'!$C$333)-(1+'1 Données d''entrée'!$C$332)^('6 Financement'!K$54-1-'1 Données d''entrée'!$C$334-$B1678))/((1+'1 Données d''entrée'!$C$332)^'1 Données d''entrée'!$C$333-1)*'1 Données d''entrée'!$C$332,0)","v":0},{"$f":"IF(M1667>0,$G1660*((('1 Données d''entrée'!$C$332+1)^'1 Données d''entrée'!$C$333)-(1+'1 Données d''entrée'!$C$332)^('6 Financement'!L$54-1-'1 Données d''entrée'!$C$334-$B1678))/((1+'1 Données d''entrée'!$C$332)^'1 Données d''entrée'!$C$333-1)*'1 Données d''entrée'!$C$332,0)","v":0},{"$f":"IF(N1667>0,$G1660*((('1 Données d''entrée'!$C$332+1)^'1 Données d''entrée'!$C$333)-(1+'1 Données d''entrée'!$C$332)^('6 Financement'!M$54-1-'1 Données d''entrée'!$C$334-$B1678))/((1+'1 Données d''entrée'!$C$332)^'1 Données d''entrée'!$C$333-1)*'1 Données d''entrée'!$C$332,0)","v":0},{"$f":"IF(O1667>0,$G1660*((('1 Données d''entrée'!$C$332+1)^'1 Données d''entrée'!$C$333)-(1+'1 Données d''entrée'!$C$332)^('6 Financement'!N$54-1-'1 Données d''entrée'!$C$334-$B1678))/((1+'1 Données d''entrée'!$C$332)^'1 Données d''entrée'!$C$333-1)*'1 Données d''entrée'!$C$332,0)","v":0},{"$f":"IF(P1667>0,$G1660*((('1 Données d''entrée'!$C$332+1)^'1 Données d''entrée'!$C$333)-(1+'1 Données d''entrée'!$C$332)^('6 Financement'!O$54-1-'1 Données d''entrée'!$C$334-$B1678))/((1+'1 Données d''entrée'!$C$332)^'1 Données d''entrée'!$C$333-1)*'1 Données d''entrée'!$C$332,0)","v":0},{"$f":"IF(Q1667>0,$G1660*((('1 Données d''entrée'!$C$332+1)^'1 Données d''entrée'!$C$333)-(1+'1 Données d''entrée'!$C$332)^('6 Financement'!P$54-1-'1 Données d''entrée'!$C$334-$B1678))/((1+'1 Données d''entrée'!$C$332)^'1 Données d''entrée'!$C$333-1)*'1 Données d''entrée'!$C$332,0)","v":0},{"$f":"IF(R1667>0,$G1660*((('1 Données d''entrée'!$C$332+1)^'1 Données d''entrée'!$C$333)-(1+'1 Données d''entrée'!$C$332)^('6 Financement'!Q$54-1-'1 Données d''entrée'!$C$334-$B1678))/((1+'1 Données d''entrée'!$C$332)^'1 Données d''entrée'!$C$333-1)*'1 Données d''entrée'!$C$332,0)","v":0},{"$f":"IF(S1667>0,$G1660*((('1 Données d''entrée'!$C$332+1)^'1 Données d''entrée'!$C$333)-(1+'1 Données d''entrée'!$C$332)^('6 Financement'!R$54-1-'1 Données d''entrée'!$C$334-$B1678))/((1+'1 Données d''entrée'!$C$332)^'1 Données d''entrée'!$C$333-1)*'1 Données d''entrée'!$C$332,0)","v":0},{"$f":"IF(T1667>0,$G1660*((('1 Données d''entrée'!$C$332+1)^'1 Données d''entrée'!$C$333)-(1+'1 Données d''entrée'!$C$332)^('6 Financement'!S$54-1-'1 Données d''entrée'!$C$334-$B1678))/((1+'1 Données d''entrée'!$C$332)^'1 Données d''entrée'!$C$333-1)*'1 Données d''entrée'!$C$332,0)","v":0},{"$f":"IF(U1667>0,$G1660*((('1 Données d''entrée'!$C$332+1)^'1 Données d''entrée'!$C$333)-(1+'1 Données d''entrée'!$C$332)^('6 Financement'!T$54-1-'1 Données d''entrée'!$C$334-$B1678))/((1+'1 Données d''entrée'!$C$332)^'1 Données d''entrée'!$C$333-1)*'1 Données d''entrée'!$C$332,0)","v":0},{"$f":"IF(V1667>0,$G1660*((('1 Données d''entrée'!$C$332+1)^'1 Données d''entrée'!$C$333)-(1+'1 Données d''entrée'!$C$332)^('6 Financement'!U$54-1-'1 Données d''entrée'!$C$334-$B1678))/((1+'1 Données d''entrée'!$C$332)^'1 Données d''entrée'!$C$333-1)*'1 Données d''entrée'!$C$332,0)","v":0}]
["Paiement d'intêrets",6,0,{"$f":"IF(D1668>0,$H1660*((('1 Données d''entrée'!$C$332+1)^'1 Données d''entrée'!$C$333)-(1+'1 Données d''entrée'!$C$332)^('6 Financement'!C$54-1-'1 Données d''entrée'!$C$334-$B1679))/((1+'1 Données d''entrée'!$C$332)^'1 Données d''entrée'!$C$333-1)*'1 Données d''entrée'!$C$332,0)","v":0},{"$f":"IF(E1668>0,$H1660*((('1 Données d''entrée'!$C$332+1)^'1 Données d''entrée'!$C$333)-(1+'1 Données d''entrée'!$C$332)^('6 Financement'!D$54-1-'1 Données d''entrée'!$C$334-$B1679))/((1+'1 Données d''entrée'!$C$332)^'1 Données d''entrée'!$C$333-1)*'1 Données d''entrée'!$C$332,0)","v":0},{"$f":"IF(F1668>0,$H1660*((('1 Données d''entrée'!$C$332+1)^'1 Données d''entrée'!$C$333)-(1+'1 Données d''entrée'!$C$332)^('6 Financement'!E$54-1-'1 Données d''entrée'!$C$334-$B1679))/((1+'1 Données d''entrée'!$C$332)^'1 Données d''entrée'!$C$333-1)*'1 Données d''entrée'!$C$332,0)","v":0},{"$f":"IF(G1668>0,$H1660*((('1 Données d''entrée'!$C$332+1)^'1 Données d''entrée'!$C$333)-(1+'1 Données d''entrée'!$C$332)^('6 Financement'!F$54-1-'1 Données d''entrée'!$C$334-$B1679))/((1+'1 Données d''entrée'!$C$332)^'1 Données d''entrée'!$C$333-1)*'1 Données d''entrée'!$C$332,0)","v":0},{"$f":"IF(H1668>0,$H1660*((('1 Données d''entrée'!$C$332+1)^'1 Données d''entrée'!$C$333)-(1+'1 Données d''entrée'!$C$332)^('6 Financement'!G$54-1-'1 Données d''entrée'!$C$334-$B1679))/((1+'1 Données d''entrée'!$C$332)^'1 Données d''entrée'!$C$333-1)*'1 Données d''entrée'!$C$332,0)","v":0},{"$f":"IF(I1668>0,$H1660*((('1 Données d''entrée'!$C$332+1)^'1 Données d''entrée'!$C$333)-(1+'1 Données d''entrée'!$C$332)^('6 Financement'!H$54-1-'1 Données d''entrée'!$C$334-$B1679))/((1+'1 Données d''entrée'!$C$332)^'1 Données d''entrée'!$C$333-1)*'1 Données d''entrée'!$C$332,0)","v":0},{"$f":"IF(J1668>0,$H1660*((('1 Données d''entrée'!$C$332+1)^'1 Données d''entrée'!$C$333)-(1+'1 Données d''entrée'!$C$332)^('6 Financement'!I$54-1-'1 Données d''entrée'!$C$334-$B1679))/((1+'1 Données d''entrée'!$C$332)^'1 Données d''entrée'!$C$333-1)*'1 Données d''entrée'!$C$332,0)","v":0},{"$f":"IF(K1668>0,$H1660*((('1 Données d''entrée'!$C$332+1)^'1 Données d''entrée'!$C$333)-(1+'1 Données d''entrée'!$C$332)^('6 Financement'!J$54-1-'1 Données d''entrée'!$C$334-$B1679))/((1+'1 Données d''entrée'!$C$332)^'1 Données d''entrée'!$C$333-1)*'1 Données d''entrée'!$C$332,0)","v":0},{"$f":"IF(L1668>0,$H1660*((('1 Données d''entrée'!$C$332+1)^'1 Données d''entrée'!$C$333)-(1+'1 Données d''entrée'!$C$332)^('6 Financement'!K$54-1-'1 Données d''entrée'!$C$334-$B1679))/((1+'1 Données d''entrée'!$C$332)^'1 Données d''entrée'!$C$333-1)*'1 Données d''entrée'!$C$332,0)","v":0},{"$f":"IF(M1668>0,$H1660*((('1 Données d''entrée'!$C$332+1)^'1 Données d''entrée'!$C$333)-(1+'1 Données d''entrée'!$C$332)^('6 Financement'!L$54-1-'1 Données d''entrée'!$C$334-$B1679))/((1+'1 Données d''entrée'!$C$332)^'1 Données d''entrée'!$C$333-1)*'1 Données d''entrée'!$C$332,0)","v":0},{"$f":"IF(N1668>0,$H1660*((('1 Données d''entrée'!$C$332+1)^'1 Données d''entrée'!$C$333)-(1+'1 Données d''entrée'!$C$332)^('6 Financement'!M$54-1-'1 Données d''entrée'!$C$334-$B1679))/((1+'1 Données d''entrée'!$C$332)^'1 Données d''entrée'!$C$333-1)*'1 Données d''entrée'!$C$332,0)","v":0},{"$f":"IF(O1668>0,$H1660*((('1 Données d''entrée'!$C$332+1)^'1 Données d''entrée'!$C$333)-(1+'1 Données d''entrée'!$C$332)^('6 Financement'!N$54-1-'1 Données d''entrée'!$C$334-$B1679))/((1+'1 Données d''entrée'!$C$332)^'1 Données d''entrée'!$C$333-1)*'1 Données d''entrée'!$C$332,0)","v":0},{"$f":"IF(P1668>0,$H1660*((('1 Données d''entrée'!$C$332+1)^'1 Données d''entrée'!$C$333)-(1+'1 Données d''entrée'!$C$332)^('6 Financement'!O$54-1-'1 Données d''entrée'!$C$334-$B1679))/((1+'1 Données d''entrée'!$C$332)^'1 Données d''entrée'!$C$333-1)*'1 Données d''entrée'!$C$332,0)","v":0},{"$f":"IF(Q1668>0,$H1660*((('1 Données d''entrée'!$C$332+1)^'1 Données d''entrée'!$C$333)-(1+'1 Données d''entrée'!$C$332)^('6 Financement'!P$54-1-'1 Données d''entrée'!$C$334-$B1679))/((1+'1 Données d''entrée'!$C$332)^'1 Données d''entrée'!$C$333-1)*'1 Données d''entrée'!$C$332,0)","v":0},{"$f":"IF(R1668>0,$H1660*((('1 Données d''entrée'!$C$332+1)^'1 Données d''entrée'!$C$333)-(1+'1 Données d''entrée'!$C$332)^('6 Financement'!Q$54-1-'1 Données d''entrée'!$C$334-$B1679))/((1+'1 Données d''entrée'!$C$332)^'1 Données d''entrée'!$C$333-1)*'1 Données d''entrée'!$C$332,0)","v":0},{"$f":"IF(S1668>0,$H1660*((('1 Données d''entrée'!$C$332+1)^'1 Données d''entrée'!$C$333)-(1+'1 Données d''entrée'!$C$332)^('6 Financement'!R$54-1-'1 Données d''entrée'!$C$334-$B1679))/((1+'1 Données d''entrée'!$C$332)^'1 Données d''entrée'!$C$333-1)*'1 Données d''entrée'!$C$332,0)","v":0},{"$f":"IF(T1668>0,$H1660*((('1 Données d''entrée'!$C$332+1)^'1 Données d''entrée'!$C$333)-(1+'1 Données d''entrée'!$C$332)^('6 Financement'!S$54-1-'1 Données d''entrée'!$C$334-$B1679))/((1+'1 Données d''entrée'!$C$332)^'1 Données d''entrée'!$C$333-1)*'1 Données d''entrée'!$C$332,0)","v":0},{"$f":"IF(U1668>0,$H1660*((('1 Données d''entrée'!$C$332+1)^'1 Données d''entrée'!$C$333)-(1+'1 Données d''entrée'!$C$332)^('6 Financement'!T$54-1-'1 Données d''entrée'!$C$334-$B1679))/((1+'1 Données d''entrée'!$C$332)^'1 Données d''entrée'!$C$333-1)*'1 Données d''entrée'!$C$332,0)","v":0},{"$f":"IF(V1668>0,$H1660*((('1 Données d''entrée'!$C$332+1)^'1 Données d''entrée'!$C$333)-(1+'1 Données d''entrée'!$C$332)^('6 Financement'!U$54-1-'1 Données d''entrée'!$C$334-$B1679))/((1+'1 Données d''entrée'!$C$332)^'1 Données d''entrée'!$C$333-1)*'1 Données d''entrée'!$C$332,0)","v":0}]
["Paiement d'intêrets",7,0,{"$f":"IF(D1669>0,$I1660*((('1 Données d''entrée'!$C$332+1)^'1 Données d''entrée'!$C$333)-(1+'1 Données d''entrée'!$C$332)^('6 Financement'!C$54-1-'1 Données d''entrée'!$C$334-$B1680))/((1+'1 Données d''entrée'!$C$332)^'1 Données d''entrée'!$C$333-1)*'1 Données d''entrée'!$C$332,0)","v":0},{"$f":"IF(E1669>0,$I1660*((('1 Données d''entrée'!$C$332+1)^'1 Données d''entrée'!$C$333)-(1+'1 Données d''entrée'!$C$332)^('6 Financement'!D$54-1-'1 Données d''entrée'!$C$334-$B1680))/((1+'1 Données d''entrée'!$C$332)^'1 Données d''entrée'!$C$333-1)*'1 Données d''entrée'!$C$332,0)","v":0},{"$f":"IF(F1669>0,$I1660*((('1 Données d''entrée'!$C$332+1)^'1 Données d''entrée'!$C$333)-(1+'1 Données d''entrée'!$C$332)^('6 Financement'!E$54-1-'1 Données d''entrée'!$C$334-$B1680))/((1+'1 Données d''entrée'!$C$332)^'1 Données d''entrée'!$C$333-1)*'1 Données d''entrée'!$C$332,0)","v":0},{"$f":"IF(G1669>0,$I1660*((('1 Données d''entrée'!$C$332+1)^'1 Données d''entrée'!$C$333)-(1+'1 Données d''entrée'!$C$332)^('6 Financement'!F$54-1-'1 Données d''entrée'!$C$334-$B1680))/((1+'1 Données d''entrée'!$C$332)^'1 Données d''entrée'!$C$333-1)*'1 Données d''entrée'!$C$332,0)","v":0},{"$f":"IF(H1669>0,$I1660*((('1 Données d''entrée'!$C$332+1)^'1 Données d''entrée'!$C$333)-(1+'1 Données d''entrée'!$C$332)^('6 Financement'!G$54-1-'1 Données d''entrée'!$C$334-$B1680))/((1+'1 Données d''entrée'!$C$332)^'1 Données d''entrée'!$C$333-1)*'1 Données d''entrée'!$C$332,0)","v":0},{"$f":"IF(I1669>0,$I1660*((('1 Données d''entrée'!$C$332+1)^'1 Données d''entrée'!$C$333)-(1+'1 Données d''entrée'!$C$332)^('6 Financement'!H$54-1-'1 Données d''entrée'!$C$334-$B1680))/((1+'1 Données d''entrée'!$C$332)^'1 Données d''entrée'!$C$333-1)*'1 Données d''entrée'!$C$332,0)","v":0},{"$f":"IF(J1669>0,$I1660*((('1 Données d''entrée'!$C$332+1)^'1 Données d''entrée'!$C$333)-(1+'1 Données d''entrée'!$C$332)^('6 Financement'!I$54-1-'1 Données d''entrée'!$C$334-$B1680))/((1+'1 Données d''entrée'!$C$332)^'1 Données d''entrée'!$C$333-1)*'1 Données d''entrée'!$C$332,0)","v":0},{"$f":"IF(K1669>0,$I1660*((('1 Données d''entrée'!$C$332+1)^'1 Données d''entrée'!$C$333)-(1+'1 Données d''entrée'!$C$332)^('6 Financement'!J$54-1-'1 Données d''entrée'!$C$334-$B1680))/((1+'1 Données d''entrée'!$C$332)^'1 Données d''entrée'!$C$333-1)*'1 Données d''entrée'!$C$332,0)","v":0},{"$f":"IF(L1669>0,$I1660*((('1 Données d''entrée'!$C$332+1)^'1 Données d''entrée'!$C$333)-(1+'1 Données d''entrée'!$C$332)^('6 Financement'!K$54-1-'1 Données d''entrée'!$C$334-$B1680))/((1+'1 Données d''entrée'!$C$332)^'1 Données d''entrée'!$C$333-1)*'1 Données d''entrée'!$C$332,0)","v":0},{"$f":"IF(M1669>0,$I1660*((('1 Données d''entrée'!$C$332+1)^'1 Données d''entrée'!$C$333)-(1+'1 Données d''entrée'!$C$332)^('6 Financement'!L$54-1-'1 Données d''entrée'!$C$334-$B1680))/((1+'1 Données d''entrée'!$C$332)^'1 Données d''entrée'!$C$333-1)*'1 Données d''entrée'!$C$332,0)","v":0},{"$f":"IF(N1669>0,$I1660*((('1 Données d''entrée'!$C$332+1)^'1 Données d''entrée'!$C$333)-(1+'1 Données d''entrée'!$C$332)^('6 Financement'!M$54-1-'1 Données d''entrée'!$C$334-$B1680))/((1+'1 Données d''entrée'!$C$332)^'1 Données d''entrée'!$C$333-1)*'1 Données d''entrée'!$C$332,0)","v":0},{"$f":"IF(O1669>0,$I1660*((('1 Données d''entrée'!$C$332+1)^'1 Données d''entrée'!$C$333)-(1+'1 Données d''entrée'!$C$332)^('6 Financement'!N$54-1-'1 Données d''entrée'!$C$334-$B1680))/((1+'1 Données d''entrée'!$C$332)^'1 Données d''entrée'!$C$333-1)*'1 Données d''entrée'!$C$332,0)","v":0},{"$f":"IF(P1669>0,$I1660*((('1 Données d''entrée'!$C$332+1)^'1 Données d''entrée'!$C$333)-(1+'1 Données d''entrée'!$C$332)^('6 Financement'!O$54-1-'1 Données d''entrée'!$C$334-$B1680))/((1+'1 Données d''entrée'!$C$332)^'1 Données d''entrée'!$C$333-1)*'1 Données d''entrée'!$C$332,0)","v":0},{"$f":"IF(Q1669>0,$I1660*((('1 Données d''entrée'!$C$332+1)^'1 Données d''entrée'!$C$333)-(1+'1 Données d''entrée'!$C$332)^('6 Financement'!P$54-1-'1 Données d''entrée'!$C$334-$B1680))/((1+'1 Données d''entrée'!$C$332)^'1 Données d''entrée'!$C$333-1)*'1 Données d''entrée'!$C$332,0)","v":0},{"$f":"IF(R1669>0,$I1660*((('1 Données d''entrée'!$C$332+1)^'1 Données d''entrée'!$C$333)-(1+'1 Données d''entrée'!$C$332)^('6 Financement'!Q$54-1-'1 Données d''entrée'!$C$334-$B1680))/((1+'1 Données d''entrée'!$C$332)^'1 Données d''entrée'!$C$333-1)*'1 Données d''entrée'!$C$332,0)","v":0},{"$f":"IF(S1669>0,$I1660*((('1 Données d''entrée'!$C$332+1)^'1 Données d''entrée'!$C$333)-(1+'1 Données d''entrée'!$C$332)^('6 Financement'!R$54-1-'1 Données d''entrée'!$C$334-$B1680))/((1+'1 Données d''entrée'!$C$332)^'1 Données d''entrée'!$C$333-1)*'1 Données d''entrée'!$C$332,0)","v":0},{"$f":"IF(T1669>0,$I1660*((('1 Données d''entrée'!$C$332+1)^'1 Données d''entrée'!$C$333)-(1+'1 Données d''entrée'!$C$332)^('6 Financement'!S$54-1-'1 Données d''entrée'!$C$334-$B1680))/((1+'1 Données d''entrée'!$C$332)^'1 Données d''entrée'!$C$333-1)*'1 Données d''entrée'!$C$332,0)","v":0},{"$f":"IF(U1669>0,$I1660*((('1 Données d''entrée'!$C$332+1)^'1 Données d''entrée'!$C$333)-(1+'1 Données d''entrée'!$C$332)^('6 Financement'!T$54-1-'1 Données d''entrée'!$C$334-$B1680))/((1+'1 Données d''entrée'!$C$332)^'1 Données d''entrée'!$C$333-1)*'1 Données d''entrée'!$C$332,0)","v":0},{"$f":"IF(V1669>0,$I1660*((('1 Données d''entrée'!$C$332+1)^'1 Données d''entrée'!$C$333)-(1+'1 Données d''entrée'!$C$332)^('6 Financement'!U$54-1-'1 Données d''entrée'!$C$334-$B1680))/((1+'1 Données d''entrée'!$C$332)^'1 Données d''entrée'!$C$333-1)*'1 Données d''entrée'!$C$332,0)","v":0}]
["Paiement d'intêrets",8,0,{"$f":"IF(D1670>0,$J1660*((('1 Données d''entrée'!$C$332+1)^'1 Données d''entrée'!$C$333)-(1+'1 Données d''entrée'!$C$332)^('6 Financement'!C$54-1-'1 Données d''entrée'!$C$334-$B1681))/((1+'1 Données d''entrée'!$C$332)^'1 Données d''entrée'!$C$333-1)*'1 Données d''entrée'!$C$332,0)","v":0},{"$f":"IF(E1670>0,$J1660*((('1 Données d''entrée'!$C$332+1)^'1 Données d''entrée'!$C$333)-(1+'1 Données d''entrée'!$C$332)^('6 Financement'!D$54-1-'1 Données d''entrée'!$C$334-$B1681))/((1+'1 Données d''entrée'!$C$332)^'1 Données d''entrée'!$C$333-1)*'1 Données d''entrée'!$C$332,0)","v":0},{"$f":"IF(F1670>0,$J1660*((('1 Données d''entrée'!$C$332+1)^'1 Données d''entrée'!$C$333)-(1+'1 Données d''entrée'!$C$332)^('6 Financement'!E$54-1-'1 Données d''entrée'!$C$334-$B1681))/((1+'1 Données d''entrée'!$C$332)^'1 Données d''entrée'!$C$333-1)*'1 Données d''entrée'!$C$332,0)","v":0},{"$f":"IF(G1670>0,$J1660*((('1 Données d''entrée'!$C$332+1)^'1 Données d''entrée'!$C$333)-(1+'1 Données d''entrée'!$C$332)^('6 Financement'!F$54-1-'1 Données d''entrée'!$C$334-$B1681))/((1+'1 Données d''entrée'!$C$332)^'1 Données d''entrée'!$C$333-1)*'1 Données d''entrée'!$C$332,0)","v":0},{"$f":"IF(H1670>0,$J1660*((('1 Données d''entrée'!$C$332+1)^'1 Données d''entrée'!$C$333)-(1+'1 Données d''entrée'!$C$332)^('6 Financement'!G$54-1-'1 Données d''entrée'!$C$334-$B1681))/((1+'1 Données d''entrée'!$C$332)^'1 Données d''entrée'!$C$333-1)*'1 Données d''entrée'!$C$332,0)","v":0},{"$f":"IF(I1670>0,$J1660*((('1 Données d''entrée'!$C$332+1)^'1 Données d''entrée'!$C$333)-(1+'1 Données d''entrée'!$C$332)^('6 Financement'!H$54-1-'1 Données d''entrée'!$C$334-$B1681))/((1+'1 Données d''entrée'!$C$332)^'1 Données d''entrée'!$C$333-1)*'1 Données d''entrée'!$C$332,0)","v":0},{"$f":"IF(J1670>0,$J1660*((('1 Données d''entrée'!$C$332+1)^'1 Données d''entrée'!$C$333)-(1+'1 Données d''entrée'!$C$332)^('6 Financement'!I$54-1-'1 Données d''entrée'!$C$334-$B1681))/((1+'1 Données d''entrée'!$C$332)^'1 Données d''entrée'!$C$333-1)*'1 Données d''entrée'!$C$332,0)","v":0},{"$f":"IF(K1670>0,$J1660*((('1 Données d''entrée'!$C$332+1)^'1 Données d''entrée'!$C$333)-(1+'1 Données d''entrée'!$C$332)^('6 Financement'!J$54-1-'1 Données d''entrée'!$C$334-$B1681))/((1+'1 Données d''entrée'!$C$332)^'1 Données d''entrée'!$C$333-1)*'1 Données d''entrée'!$C$332,0)","v":0},{"$f":"IF(L1670>0,$J1660*((('1 Données d''entrée'!$C$332+1)^'1 Données d''entrée'!$C$333)-(1+'1 Données d''entrée'!$C$332)^('6 Financement'!K$54-1-'1 Données d''entrée'!$C$334-$B1681))/((1+'1 Données d''entrée'!$C$332)^'1 Données d''entrée'!$C$333-1)*'1 Données d''entrée'!$C$332,0)","v":0},{"$f":"IF(M1670>0,$J1660*((('1 Données d''entrée'!$C$332+1)^'1 Données d''entrée'!$C$333)-(1+'1 Données d''entrée'!$C$332)^('6 Financement'!L$54-1-'1 Données d''entrée'!$C$334-$B1681))/((1+'1 Données d''entrée'!$C$332)^'1 Données d''entrée'!$C$333-1)*'1 Données d''entrée'!$C$332,0)","v":0},{"$f":"IF(N1670>0,$J1660*((('1 Données d''entrée'!$C$332+1)^'1 Données d''entrée'!$C$333)-(1+'1 Données d''entrée'!$C$332)^('6 Financement'!M$54-1-'1 Données d''entrée'!$C$334-$B1681))/((1+'1 Données d''entrée'!$C$332)^'1 Données d''entrée'!$C$333-1)*'1 Données d''entrée'!$C$332,0)","v":0},{"$f":"IF(O1670>0,$J1660*((('1 Données d''entrée'!$C$332+1)^'1 Données d''entrée'!$C$333)-(1+'1 Données d''entrée'!$C$332)^('6 Financement'!N$54-1-'1 Données d''entrée'!$C$334-$B1681))/((1+'1 Données d''entrée'!$C$332)^'1 Données d''entrée'!$C$333-1)*'1 Données d''entrée'!$C$332,0)","v":0},{"$f":"IF(P1670>0,$J1660*((('1 Données d''entrée'!$C$332+1)^'1 Données d''entrée'!$C$333)-(1+'1 Données d''entrée'!$C$332)^('6 Financement'!O$54-1-'1 Données d''entrée'!$C$334-$B1681))/((1+'1 Données d''entrée'!$C$332)^'1 Données d''entrée'!$C$333-1)*'1 Données d''entrée'!$C$332,0)","v":0},{"$f":"IF(Q1670>0,$J1660*((('1 Données d''entrée'!$C$332+1)^'1 Données d''entrée'!$C$333)-(1+'1 Données d''entrée'!$C$332)^('6 Financement'!P$54-1-'1 Données d''entrée'!$C$334-$B1681))/((1+'1 Données d''entrée'!$C$332)^'1 Données d''entrée'!$C$333-1)*'1 Données d''entrée'!$C$332,0)","v":0},{"$f":"IF(R1670>0,$J1660*((('1 Données d''entrée'!$C$332+1)^'1 Données d''entrée'!$C$333)-(1+'1 Données d''entrée'!$C$332)^('6 Financement'!Q$54-1-'1 Données d''entrée'!$C$334-$B1681))/((1+'1 Données d''entrée'!$C$332)^'1 Données d''entrée'!$C$333-1)*'1 Données d''entrée'!$C$332,0)","v":0},{"$f":"IF(S1670>0,$J1660*((('1 Données d''entrée'!$C$332+1)^'1 Données d''entrée'!$C$333)-(1+'1 Données d''entrée'!$C$332)^('6 Financement'!R$54-1-'1 Données d''entrée'!$C$334-$B1681))/((1+'1 Données d''entrée'!$C$332)^'1 Données d''entrée'!$C$333-1)*'1 Données d''entrée'!$C$332,0)","v":0},{"$f":"IF(T1670>0,$J1660*((('1 Données d''entrée'!$C$332+1)^'1 Données d''entrée'!$C$333)-(1+'1 Données d''entrée'!$C$332)^('6 Financement'!S$54-1-'1 Données d''entrée'!$C$334-$B1681))/((1+'1 Données d''entrée'!$C$332)^'1 Données d''entrée'!$C$333-1)*'1 Données d''entrée'!$C$332,0)","v":0},{"$f":"IF(U1670>0,$J1660*((('1 Données d''entrée'!$C$332+1)^'1 Données d''entrée'!$C$333)-(1+'1 Données d''entrée'!$C$332)^('6 Financement'!T$54-1-'1 Données d''entrée'!$C$334-$B1681))/((1+'1 Données d''entrée'!$C$332)^'1 Données d''entrée'!$C$333-1)*'1 Données d''entrée'!$C$332,0)","v":0},{"$f":"IF(V1670>0,$J1660*((('1 Données d''entrée'!$C$332+1)^'1 Données d''entrée'!$C$333)-(1+'1 Données d''entrée'!$C$332)^('6 Financement'!U$54-1-'1 Données d''entrée'!$C$334-$B1681))/((1+'1 Données d''entrée'!$C$332)^'1 Données d''entrée'!$C$333-1)*'1 Données d''entrée'!$C$332,0)","v":0}]
["Paiement d'intêrets",9,0,{"$f":"IF(D1671>0,$K1660*((('1 Données d''entrée'!$C$332+1)^'1 Données d''entrée'!$C$333)-(1+'1 Données d''entrée'!$C$332)^('6 Financement'!C$54-1-'1 Données d''entrée'!$C$334-$B1682))/((1+'1 Données d''entrée'!$C$332)^'1 Données d''entrée'!$C$333-1)*'1 Données d''entrée'!$C$332,0)","v":0},{"$f":"IF(E1671>0,$K1660*((('1 Données d''entrée'!$C$332+1)^'1 Données d''entrée'!$C$333)-(1+'1 Données d''entrée'!$C$332)^('6 Financement'!D$54-1-'1 Données d''entrée'!$C$334-$B1682))/((1+'1 Données d''entrée'!$C$332)^'1 Données d''entrée'!$C$333-1)*'1 Données d''entrée'!$C$332,0)","v":0},{"$f":"IF(F1671>0,$K1660*((('1 Données d''entrée'!$C$332+1)^'1 Données d''entrée'!$C$333)-(1+'1 Données d''entrée'!$C$332)^('6 Financement'!E$54-1-'1 Données d''entrée'!$C$334-$B1682))/((1+'1 Données d''entrée'!$C$332)^'1 Données d''entrée'!$C$333-1)*'1 Données d''entrée'!$C$332,0)","v":0},{"$f":"IF(G1671>0,$K1660*((('1 Données d''entrée'!$C$332+1)^'1 Données d''entrée'!$C$333)-(1+'1 Données d''entrée'!$C$332)^('6 Financement'!F$54-1-'1 Données d''entrée'!$C$334-$B1682))/((1+'1 Données d''entrée'!$C$332)^'1 Données d''entrée'!$C$333-1)*'1 Données d''entrée'!$C$332,0)","v":0},{"$f":"IF(H1671>0,$K1660*((('1 Données d''entrée'!$C$332+1)^'1 Données d''entrée'!$C$333)-(1+'1 Données d''entrée'!$C$332)^('6 Financement'!G$54-1-'1 Données d''entrée'!$C$334-$B1682))/((1+'1 Données d''entrée'!$C$332)^'1 Données d''entrée'!$C$333-1)*'1 Données d''entrée'!$C$332,0)","v":0},{"$f":"IF(I1671>0,$K1660*((('1 Données d''entrée'!$C$332+1)^'1 Données d''entrée'!$C$333)-(1+'1 Données d''entrée'!$C$332)^('6 Financement'!H$54-1-'1 Données d''entrée'!$C$334-$B1682))/((1+'1 Données d''entrée'!$C$332)^'1 Données d''entrée'!$C$333-1)*'1 Données d''entrée'!$C$332,0)","v":0},{"$f":"IF(J1671>0,$K1660*((('1 Données d''entrée'!$C$332+1)^'1 Données d''entrée'!$C$333)-(1+'1 Données d''entrée'!$C$332)^('6 Financement'!I$54-1-'1 Données d''entrée'!$C$334-$B1682))/((1+'1 Données d''entrée'!$C$332)^'1 Données d''entrée'!$C$333-1)*'1 Données d''entrée'!$C$332,0)","v":0},{"$f":"IF(K1671>0,$K1660*((('1 Données d''entrée'!$C$332+1)^'1 Données d''entrée'!$C$333)-(1+'1 Données d''entrée'!$C$332)^('6 Financement'!J$54-1-'1 Données d''entrée'!$C$334-$B1682))/((1+'1 Données d''entrée'!$C$332)^'1 Données d''entrée'!$C$333-1)*'1 Données d''entrée'!$C$332,0)","v":0},{"$f":"IF(L1671>0,$K1660*((('1 Données d''entrée'!$C$332+1)^'1 Données d''entrée'!$C$333)-(1+'1 Données d''entrée'!$C$332)^('6 Financement'!K$54-1-'1 Données d''entrée'!$C$334-$B1682))/((1+'1 Données d''entrée'!$C$332)^'1 Données d''entrée'!$C$333-1)*'1 Données d''entrée'!$C$332,0)","v":0},{"$f":"IF(M1671>0,$K1660*((('1 Données d''entrée'!$C$332+1)^'1 Données d''entrée'!$C$333)-(1+'1 Données d''entrée'!$C$332)^('6 Financement'!L$54-1-'1 Données d''entrée'!$C$334-$B1682))/((1+'1 Données d''entrée'!$C$332)^'1 Données d''entrée'!$C$333-1)*'1 Données d''entrée'!$C$332,0)","v":0},{"$f":"IF(N1671>0,$K1660*((('1 Données d''entrée'!$C$332+1)^'1 Données d''entrée'!$C$333)-(1+'1 Données d''entrée'!$C$332)^('6 Financement'!M$54-1-'1 Données d''entrée'!$C$334-$B1682))/((1+'1 Données d''entrée'!$C$332)^'1 Données d''entrée'!$C$333-1)*'1 Données d''entrée'!$C$332,0)","v":0},{"$f":"IF(O1671>0,$K1660*((('1 Données d''entrée'!$C$332+1)^'1 Données d''entrée'!$C$333)-(1+'1 Données d''entrée'!$C$332)^('6 Financement'!N$54-1-'1 Données d''entrée'!$C$334-$B1682))/((1+'1 Données d''entrée'!$C$332)^'1 Données d''entrée'!$C$333-1)*'1 Données d''entrée'!$C$332,0)","v":0},{"$f":"IF(P1671>0,$K1660*((('1 Données d''entrée'!$C$332+1)^'1 Données d''entrée'!$C$333)-(1+'1 Données d''entrée'!$C$332)^('6 Financement'!O$54-1-'1 Données d''entrée'!$C$334-$B1682))/((1+'1 Données d''entrée'!$C$332)^'1 Données d''entrée'!$C$333-1)*'1 Données d''entrée'!$C$332,0)","v":0},{"$f":"IF(Q1671>0,$K1660*((('1 Données d''entrée'!$C$332+1)^'1 Données d''entrée'!$C$333)-(1+'1 Données d''entrée'!$C$332)^('6 Financement'!P$54-1-'1 Données d''entrée'!$C$334-$B1682))/((1+'1 Données d''entrée'!$C$332)^'1 Données d''entrée'!$C$333-1)*'1 Données d''entrée'!$C$332,0)","v":0},{"$f":"IF(R1671>0,$K1660*((('1 Données d''entrée'!$C$332+1)^'1 Données d''entrée'!$C$333)-(1+'1 Données d''entrée'!$C$332)^('6 Financement'!Q$54-1-'1 Données d''entrée'!$C$334-$B1682))/((1+'1 Données d''entrée'!$C$332)^'1 Données d''entrée'!$C$333-1)*'1 Données d''entrée'!$C$332,0)","v":0},{"$f":"IF(S1671>0,$K1660*((('1 Données d''entrée'!$C$332+1)^'1 Données d''entrée'!$C$333)-(1+'1 Données d''entrée'!$C$332)^('6 Financement'!R$54-1-'1 Données d''entrée'!$C$334-$B1682))/((1+'1 Données d''entrée'!$C$332)^'1 Données d''entrée'!$C$333-1)*'1 Données d''entrée'!$C$332,0)","v":0},{"$f":"IF(T1671>0,$K1660*((('1 Données d''entrée'!$C$332+1)^'1 Données d''entrée'!$C$333)-(1+'1 Données d''entrée'!$C$332)^('6 Financement'!S$54-1-'1 Données d''entrée'!$C$334-$B1682))/((1+'1 Données d''entrée'!$C$332)^'1 Données d''entrée'!$C$333-1)*'1 Données d''entrée'!$C$332,0)","v":0},{"$f":"IF(U1671>0,$K1660*((('1 Données d''entrée'!$C$332+1)^'1 Données d''entrée'!$C$333)-(1+'1 Données d''entrée'!$C$332)^('6 Financement'!T$54-1-'1 Données d''entrée'!$C$334-$B1682))/((1+'1 Données d''entrée'!$C$332)^'1 Données d''entrée'!$C$333-1)*'1 Données d''entrée'!$C$332,0)","v":0},{"$f":"IF(V1671>0,$K1660*((('1 Données d''entrée'!$C$332+1)^'1 Données d''entrée'!$C$333)-(1+'1 Données d''entrée'!$C$332)^('6 Financement'!U$54-1-'1 Données d''entrée'!$C$334-$B1682))/((1+'1 Données d''entrée'!$C$332)^'1 Données d''entrée'!$C$333-1)*'1 Données d''entrée'!$C$332,0)","v":0}]
["Paiement d'intêrets",10,0,{"$f":"IF(D1672>0,$L1660*((('1 Données d''entrée'!$C$332+1)^'1 Données d''entrée'!$C$333)-(1+'1 Données d''entrée'!$C$332)^('6 Financement'!C$54-1-'1 Données d''entrée'!$C$334-$B1683))/((1+'1 Données d''entrée'!$C$332)^'1 Données d''entrée'!$C$333-1)*'1 Données d''entrée'!$C$332,0)","v":0},{"$f":"IF(E1672>0,$L1660*((('1 Données d''entrée'!$C$332+1)^'1 Données d''entrée'!$C$333)-(1+'1 Données d''entrée'!$C$332)^('6 Financement'!D$54-1-'1 Données d''entrée'!$C$334-$B1683))/((1+'1 Données d''entrée'!$C$332)^'1 Données d''entrée'!$C$333-1)*'1 Données d''entrée'!$C$332,0)","v":0},{"$f":"IF(F1672>0,$L1660*((('1 Données d''entrée'!$C$332+1)^'1 Données d''entrée'!$C$333)-(1+'1 Données d''entrée'!$C$332)^('6 Financement'!E$54-1-'1 Données d''entrée'!$C$334-$B1683))/((1+'1 Données d''entrée'!$C$332)^'1 Données d''entrée'!$C$333-1)*'1 Données d''entrée'!$C$332,0)","v":0},{"$f":"IF(G1672>0,$L1660*((('1 Données d''entrée'!$C$332+1)^'1 Données d''entrée'!$C$333)-(1+'1 Données d''entrée'!$C$332)^('6 Financement'!F$54-1-'1 Données d''entrée'!$C$334-$B1683))/((1+'1 Données d''entrée'!$C$332)^'1 Données d''entrée'!$C$333-1)*'1 Données d''entrée'!$C$332,0)","v":0},{"$f":"IF(H1672>0,$L1660*((('1 Données d''entrée'!$C$332+1)^'1 Données d''entrée'!$C$333)-(1+'1 Données d''entrée'!$C$332)^('6 Financement'!G$54-1-'1 Données d''entrée'!$C$334-$B1683))/((1+'1 Données d''entrée'!$C$332)^'1 Données d''entrée'!$C$333-1)*'1 Données d''entrée'!$C$332,0)","v":0},{"$f":"IF(I1672>0,$L1660*((('1 Données d''entrée'!$C$332+1)^'1 Données d''entrée'!$C$333)-(1+'1 Données d''entrée'!$C$332)^('6 Financement'!H$54-1-'1 Données d''entrée'!$C$334-$B1683))/((1+'1 Données d''entrée'!$C$332)^'1 Données d''entrée'!$C$333-1)*'1 Données d''entrée'!$C$332,0)","v":0},{"$f":"IF(J1672>0,$L1660*((('1 Données d''entrée'!$C$332+1)^'1 Données d''entrée'!$C$333)-(1+'1 Données d''entrée'!$C$332)^('6 Financement'!I$54-1-'1 Données d''entrée'!$C$334-$B1683))/((1+'1 Données d''entrée'!$C$332)^'1 Données d''entrée'!$C$333-1)*'1 Données d''entrée'!$C$332,0)","v":0},{"$f":"IF(K1672>0,$L1660*((('1 Données d''entrée'!$C$332+1)^'1 Données d''entrée'!$C$333)-(1+'1 Données d''entrée'!$C$332)^('6 Financement'!J$54-1-'1 Données d''entrée'!$C$334-$B1683))/((1+'1 Données d''entrée'!$C$332)^'1 Données d''entrée'!$C$333-1)*'1 Données d''entrée'!$C$332,0)","v":0},{"$f":"IF(L1672>0,$L1660*((('1 Données d''entrée'!$C$332+1)^'1 Données d''entrée'!$C$333)-(1+'1 Données d''entrée'!$C$332)^('6 Financement'!K$54-1-'1 Données d''entrée'!$C$334-$B1683))/((1+'1 Données d''entrée'!$C$332)^'1 Données d''entrée'!$C$333-1)*'1 Données d''entrée'!$C$332,0)","v":0},{"$f":"IF(M1672>0,$L1660*((('1 Données d''entrée'!$C$332+1)^'1 Données d''entrée'!$C$333)-(1+'1 Données d''entrée'!$C$332)^('6 Financement'!L$54-1-'1 Données d''entrée'!$C$334-$B1683))/((1+'1 Données d''entrée'!$C$332)^'1 Données d''entrée'!$C$333-1)*'1 Données d''entrée'!$C$332,0)","v":0},{"$f":"IF(N1672>0,$L1660*((('1 Données d''entrée'!$C$332+1)^'1 Données d''entrée'!$C$333)-(1+'1 Données d''entrée'!$C$332)^('6 Financement'!M$54-1-'1 Données d''entrée'!$C$334-$B1683))/((1+'1 Données d''entrée'!$C$332)^'1 Données d''entrée'!$C$333-1)*'1 Données d''entrée'!$C$332,0)","v":0},{"$f":"IF(O1672>0,$L1660*((('1 Données d''entrée'!$C$332+1)^'1 Données d''entrée'!$C$333)-(1+'1 Données d''entrée'!$C$332)^('6 Financement'!N$54-1-'1 Données d''entrée'!$C$334-$B1683))/((1+'1 Données d''entrée'!$C$332)^'1 Données d''entrée'!$C$333-1)*'1 Données d''entrée'!$C$332,0)","v":0},{"$f":"IF(P1672>0,$L1660*((('1 Données d''entrée'!$C$332+1)^'1 Données d''entrée'!$C$333)-(1+'1 Données d''entrée'!$C$332)^('6 Financement'!O$54-1-'1 Données d''entrée'!$C$334-$B1683))/((1+'1 Données d''entrée'!$C$332)^'1 Données d''entrée'!$C$333-1)*'1 Données d''entrée'!$C$332,0)","v":0},{"$f":"IF(Q1672>0,$L1660*((('1 Données d''entrée'!$C$332+1)^'1 Données d''entrée'!$C$333)-(1+'1 Données d''entrée'!$C$332)^('6 Financement'!P$54-1-'1 Données d''entrée'!$C$334-$B1683))/((1+'1 Données d''entrée'!$C$332)^'1 Données d''entrée'!$C$333-1)*'1 Données d''entrée'!$C$332,0)","v":0},{"$f":"IF(R1672>0,$L1660*((('1 Données d''entrée'!$C$332+1)^'1 Données d''entrée'!$C$333)-(1+'1 Données d''entrée'!$C$332)^('6 Financement'!Q$54-1-'1 Données d''entrée'!$C$334-$B1683))/((1+'1 Données d''entrée'!$C$332)^'1 Données d''entrée'!$C$333-1)*'1 Données d''entrée'!$C$332,0)","v":0},{"$f":"IF(S1672>0,$L1660*((('1 Données d''entrée'!$C$332+1)^'1 Données d''entrée'!$C$333)-(1+'1 Données d''entrée'!$C$332)^('6 Financement'!R$54-1-'1 Données d''entrée'!$C$334-$B1683))/((1+'1 Données d''entrée'!$C$332)^'1 Données d''entrée'!$C$333-1)*'1 Données d''entrée'!$C$332,0)","v":0},{"$f":"IF(T1672>0,$L1660*((('1 Données d''entrée'!$C$332+1)^'1 Données d''entrée'!$C$333)-(1+'1 Données d''entrée'!$C$332)^('6 Financement'!S$54-1-'1 Données d''entrée'!$C$334-$B1683))/((1+'1 Données d''entrée'!$C$332)^'1 Données d''entrée'!$C$333-1)*'1 Données d''entrée'!$C$332,0)","v":0},{"$f":"IF(U1672>0,$L1660*((('1 Données d''entrée'!$C$332+1)^'1 Données d''entrée'!$C$333)-(1+'1 Données d''entrée'!$C$332)^('6 Financement'!T$54-1-'1 Données d''entrée'!$C$334-$B1683))/((1+'1 Données d''entrée'!$C$332)^'1 Données d''entrée'!$C$333-1)*'1 Données d''entrée'!$C$332,0)","v":0},{"$f":"IF(V1672>0,$L1660*((('1 Données d''entrée'!$C$332+1)^'1 Données d''entrée'!$C$333)-(1+'1 Données d''entrée'!$C$332)^('6 Financement'!U$54-1-'1 Données d''entrée'!$C$334-$B1683))/((1+'1 Données d''entrée'!$C$332)^'1 Données d''entrée'!$C$333-1)*'1 Données d''entrée'!$C$332,0)","v":0}]
[]
["Solde du comte (par période)",null,{"$f":"C1596+IF($B$103>0,C1604-SUM(C1606:C1616)-SUM(C1618:C1628),0)+IF($B$131>0,C1632-SUM(C1634:C1644)-SUM(C1646:C1656),0)+IF($B$159>0,C1660-SUM(C1662:C1672),0)","v":{"$error":"#DIV/0!"}},{"$f":"D1596+IF($B$103>0,D1604-SUM(D1606:D1616)-SUM(D1618:D1628),0)+IF($B$131>0,D1632-SUM(D1634:D1644)-SUM(D1646:D1656),0)+IF($B$159>0,D1660-SUM(D1662:D1672),0)","v":{"$error":"#DIV/0!"}},{"$error":"#DIV/0!"},{"$error":"#DIV/0!"},{"$error":"#DIV/0!"},{"$error":"#DIV/0!"},{"$error":"#DIV/0!"},{"$error":"#DIV/0!"},{"$error":"#DIV/0!"},{"$error":"#DIV/0!"},{"$error":"#DIV/0!"},{"$error":"#DIV/0!"},{"$error":"#DIV/0!"},{"$error":"#DIV/0!"},{"$error":"#DIV/0!"},{"$error":"#DIV/0!"},{"$error":"#DIV/0!"},{"$error":"#DIV/0!"},{"$error":"#DIV/0!"},{"$error":"#DIV/0!"}]
["Solde du compte (cumulé)",null,{"$f":"C1686+B1597","v":{"$error":"#DIV/0!"}},{"$f":"C1687+D1686","v":{"$error":"#DIV/0!"}},{"$error":"#DIV/0!"},{"$error":"#DIV/0!"},{"$error":"#DIV/0!"},{"$error":"#DIV/0!"},{"$error":"#DIV/0!"},{"$error":"#DIV/0!"},{"$error":"#DIV/0!"},{"$error":"#DIV/0!"},{"$error":"#DIV/0!"},{"$error":"#DIV/0!"},{"$error":"#DIV/0!"},{"$error":"#DIV/0!"},{"$error":"#DIV/0!"},{"$error":"#DIV/0!"},{"$error":"#DIV/0!"},{"$error":"#DIV/0!"},{"$error":"#DIV/0!"},{"$error":"#DIV/0!"}]
[]
[]
["Coût du financement","Période",1,2,3,4,5,6,7,8,9,10,11,12,13,14,15,16,17,18,19,20]
["Paiement d'intérêt par période",null,{"$f":"IF($B1562>0,(C1565+C1566),0)+IF($B1567>0,(C1570+C1571),0)+IF($B1572>0,C1575+C1576,0)+IF($B1579>0,(C1582+C1583),0)+IF($B1584>0,(C1587+C1588),0)+IF($B1589>0,C1592+C1593,0)+IF($B1601>0,SUM(C1618:C1628),0)+IF($B1631>0,SUM(C1646:C1656),0)+IF($B1659>0,SUM(C1674:C1684),0)","v":0},{"$f":"IF($B1562>0,(D1565+D1566),0)+IF($B1567>0,(D1570+D1571),0)+IF($B1572>0,D1575+D1576,0)+IF($B1579>0,(D1582+D1583),0)+IF($B1584>0,(D1587+D1588),0)+IF($B1589>0,D1592+D1593,0)+IF($B1601>0,SUM(D1618:D1628),0)+IF($B1631>0,SUM(D1646:D1656),0)+IF($B1659>0,SUM(D1674:D1684),0)","v":0},0,0,0,0,0,0,0,0,0,0,0,0,0,0,0,0,0,0]
["Remboursement du principal par période",null,{"$f":"IF($B1562>0,(C1564),0)+IF($B1567>0,(C1569),0)+IF($B1572>0,IF(C1574>0,C1574-C1575,0),0)+IF($B1579>0,(C1581),0)+IF($B1584>0,(C1586),0)+IF($B1589>0,IF(C1591>0,C1591-C1592,0),0)+IF($B1603>0,SUM(C1606:C1616),0)+IF($B1631>0,SUM(C1634:C1644),0)+IF($B1659>0,SUM(C1662:C1672)-SUM(C1674:C1684),0)","v":0},{"$f":"IF($B1562>0,(D1564),0)+IF($B1567>0,(D1569),0)+IF($B1572>0,IF(D1574>0,D1574-D1575,0),0)+IF($B1579>0,(D1581),0)+IF($B1584>0,(D1586),0)+IF($B1589>0,IF(D1591>0,D1591-D1592,0),0)+IF($B1603>0,SUM(D1606:D1616),0)+IF($B1631>0,SUM(D1634:D1644),0)+IF($B1659>0,SUM(D1662:D1672)-SUM(D1674:D1684),0)","v":0},0,0,0,0,0,0,0,0,0,0,0,0,0,0,0,0,0,0]
[]
[]
["Flux de trésorerie net       "]
["Période (t)","Flux de trésorerie       brut","Coût de financement ","Subventions","Flux de trésorerie       intermédiaires (avec coût fin. et Subventions)","Flux de trésorerie      , taxe contenue","Flux de trésorerie       cumulé, taxe contenue","Période de remboursement"]
[0,{"$f":"'5 Flux de trésorerie brut'!$D$7","v":{"$error":"#DIV/0!"}},0,{"$f":"B1560+B1578","v":0},{"$f":"D1697-C1697+B1697","v":{"$error":"#DIV/0!"}},{"$f":"IF(E1697>0,(E1697-E1697*'1 Données d''entrée'!$C$353-IF('5 Flux de trésorerie brut'!$D$7>0,'1 Données d''entrée'!$C$357*'5 Flux de trésorerie brut'!$D$7,0)),E1697)","v":{"$error":"#DIV/0!"}},{"$f":"F1697","v":{"$error":"#DIV/0!"}},{"$f":"IF(G1697<0,\" \",A1697)","v":{"$error":"#DIV/0!"}}]
[1,{"$f":"'5 Flux de trésorerie brut'!$D$8","v":{"$error":"#DIV/0!"}},{"$f":"C1691+C1692","v":0},0,{"$f":"D1698-C1698+B1698","v":{"$error":"#DIV/0!"}},{"$f":"IF(E1698>0,(E1698-E1698*'1 Données d''entrée'!$C$353-IF('5 Flux de trésorerie brut'!$D$8>0,'1 Données d''entrée'!$C$357*'5 Flux de trésorerie brut'!$D$8,0)),E1698)","v":{"$error":"#DIV/0!"}},{"$f":"G1697+F1698","v":{"$error":"#DIV/0!"}},{"$f":"IF(G1698<0,\" \",IF(SUM(H1697:H1697)>0,\" \",IF(H1697=0,\" \",A1698)))","v":{"$error":"#DIV/0!"}}]
[2,{"$f":"'5 Flux de trésorerie brut'!$D$9","v":{"$error":"#DIV/0!"}},{"$f":"D1691+D1692","v":0},0,{"$error":"#DIV/0!"},{"$f":"IF(E1699>0,(E1699-E1699*'1 Données d''entrée'!$C$353-IF('5 Flux de trésorerie brut'!$D$9>0,'1 Données d''entrée'!$C$357*'5 Flux de trésorerie brut'!$D$9,0)),E1699)","v":{"$error":"#DIV/0!"}},{"$error":"#DIV/0!"},{"$f":"IF(G1699<0,\" \",IF(SUM(H1697:H1698)>0,\" \",IF(H1697=0,\" \",A1699)))","v":{"$error":"#DIV/0!"}}]
[3,{"$f":"'5 Flux de trésorerie brut'!$D$10","v":{"$error":"#DIV/0!"}},{"$f":"E1691+E1692","v":0},0,{"$error":"#DIV/0!"},{"$f":"IF(E1700>0,(E1700-E1700*'1 Données d''entrée'!$C$353-IF('5 Flux de trésorerie brut'!$D$10>0,'1 Données d''entrée'!$C$357*'5 Flux de trésorerie brut'!$D$10,0)),E1700)","v":{"$error":"#DIV/0!"}},{"$error":"#DIV/0!"},{"$f":"IF(G1700<0,\" \",IF(SUM(H1697:H1699)>0,\" \",IF(H1697=0,\" \",A1700)))","v":{"$error":"#DIV/0!"}}]
[4,{"$f":"'5 Flux de trésorerie brut'!$D$11","v":{"$error":"#DIV/0!"}},{"$f":"F1691+F1692","v":0},0,{"$error":"#DIV/0!"},{"$f":"IF(E1701>0,(E1701-E1701*'1 Données d''entrée'!$C$353-IF('5 Flux de trésorerie brut'!$D$11>0,'1 Données d''entrée'!$C$357*'5 Flux de trésorerie brut'!$D$11,0)),E1701)","v":{"$error":"#DIV/0!"}},{"$error":"#DIV/0!"},{"$f":"IF(G1701<0,\" \",IF(SUM(H1697:H1700)>0,\" \",IF(H1697=0,\" \",A1701)))","v":{"$error":"#DIV/0!"}}]
[5,{"$f":"'5 Flux de trésorerie brut'!$D$12","v":{"$error":"#DIV/0!"}},{"$f":"G1691+G1692","v":0},0,{"$error":"#DIV/0!"},{"$f":"IF(E1702>0,(E1702-E1702*'1 Données d''entrée'!$C$353-IF('5 Flux de trésorerie brut'!$D$12>0,'1 Données d''entrée'!$C$357*'5 Flux de trésorerie brut'!$D$12,0)),E1702)","v":{"$error":"#DIV/0!"}},{"$error":"#DIV/0!"},{"$f":"IF(G1702<0,\" \",IF(SUM(H1697:H1701)>0,\" \",IF(H1697=0,\" \",A1702)))","v":{"$error":"#DIV/0!"}}]
[6,{"$f":"'5 Flux de trésorerie brut'!$D$13","v":{"$error":"#DIV/0!"}},{"$f":"H1691+H1692","v":0},0,{"$error":"#DIV/0!"},{"$f":"IF(E1703>0,(E1703-E1703*'1 Données d''entrée'!$C$353-IF('5 Flux de trésorerie brut'!$D$13>0,'1 Données d''entrée'!$C$357*'5 Flux de trésorerie brut'!$D$13,0)),E1703)","v":{"$error":"#DIV/0!"}},{"$error":"#DIV/0!"},{"$f":"IF(G1703<0,\" \",IF(SUM(H1697:H1702)>0,\" \",IF(H1697=0,\" \",A1703)))","v":{"$error":"#DIV/0!"}}]
[7,{"$f":"'5 Flux de trésorerie brut'!$D$14","v":{"$error":"#DIV/0!"}},{"$f":"I1691+I1692","v":0},0,{"$error":"#DIV/0!"},{"$f":"IF(E1704>0,(E1704-E1704*'1 Données d''entrée'!$C$353-IF('5 Flux de trésorerie brut'!$D$14>0,'1 Données d''entrée'!$C$357*'5 Flux de trésorerie brut'!$D$14,0)),E1704)","v":{"$error":"#DIV/0!"}},{"$error":"#DIV/0!"},{"$f":"IF(G1704<0,\" \",IF(SUM(H1697:H1703)>0,\" \",IF(H1697=0,\" \",A1704)))","v":{"$error":"#DIV/0!"}}]
[8,{"$f":"'5 Flux de trésorerie brut'!$D$15","v":{"$error":"#DIV/0!"}},{"$f":"J1691+J1692","v":0},0,{"$error":"#DIV/0!"},{"$f":"IF(E1705>0,(E1705-E1705*'1 Données d''entrée'!$C$353-IF('5 Flux de trésorerie brut'!$D$15>0,'1 Données d''entrée'!$C$357*'5 Flux de trésorerie brut'!$D$15,0)),E1705)","v":{"$error":"#DIV/0!"}},{"$error":"#DIV/0!"},{"$f":"IF(G1705<0,\" \",IF(SUM(H1697:H1704)>0,\" \",IF(H1697=0,\" \",A1705)))","v":{"$error":"#DIV/0!"}}]
[9,{"$f":"'5 Flux de trésorerie brut'!$D$16","v":{"$error":"#DIV/0!"}},{"$f":"K1691+K1692","v":0},0,{"$error":"#DIV/0!"},{"$f":"IF(E1706>0,(E1706-E1706*'1 Données d''entrée'!$C$353-IF('5 Flux de trésorerie brut'!$D$16>0,'1 Données d''entrée'!$C$357*'5 Flux de trésorerie brut'!$D$16,0)),E1706)","v":{"$error":"#DIV/0!"}},{"$error":"#DIV/0!"},{"$f":"IF(G1706<0,\" \",IF(SUM(H1697:H1705)>0,\" \",IF(H1697=0,\" \",A1706)))","v":{"$error":"#DIV/0!"}}]
[10,{"$f":"'5 Flux de trésorerie brut'!$D$17","v":{"$error":"#DIV/0!"}},{"$f":"L1691+L1692","v":0},0,{"$error":"#DIV/0!"},{"$f":"IF(E1707>0,(E1707-E1707*'1 Données d''entrée'!$C$353-IF('5 Flux de trésorerie brut'!$D$17>0,'1 Données d''entrée'!$C$357*'5 Flux de trésorerie brut'!$D$17,0)),E1707)","v":{"$error":"#DIV/0!"}},{"$error":"#DIV/0!"},{"$f":"IF(G1707<0,\" \",IF(SUM(H1697:H1706)>0,\" \",IF(H1697=0,\" \",A1707)))","v":{"$error":"#DIV/0!"}}]
[11,{"$f":"'5 Flux de trésorerie brut'!$D$18","v":{"$error":"#DIV/0!"}},{"$f":"M1691+M1692","v":0},0,{"$error":"#DIV/0!"},{"$f":"IF(E1708>0,(E1708-E1708*'1 Données d''entrée'!$C$353-IF('5 Flux de trésorerie brut'!$D$18>0,'1 Données d''entrée'!$C$357*'5 Flux de trésorerie brut'!$D$18,0)),E1708)","v":{"$error":"#DIV/0!"}},{"$error":"#DIV/0!"},{"$f":"IF(G1708<0,\" \",IF(SUM(H1697:H1707)>0,\" \",IF(H1697=0,\" \",A1708)))","v":{"$error":"#DIV/0!"}}]
[12,{"$f":"'5 Flux de trésorerie brut'!$D$19","v":{"$error":"#DIV/0!"}},{"$f":"N1691+N1692","v":0},0,{"$error":"#DIV/0!"},{"$f":"IF(E1709>0,(E1709-E1709*'1 Données d''entrée'!$C$353-IF('5 Flux de trésorerie brut'!$D$19>0,'1 Données d''entrée'!$C$357*'5 Flux de trésorerie brut'!$D$19,0)),E1709)","v":{"$error":"#DIV/0!"}},{"$error":"#DIV/0!"},{"$f":"IF(G1709<0,\" \",IF(SUM(H1697:H1708)>0,\" \",IF(H1697=0,\" \",A1709)))","v":{"$error":"#DIV/0!"}}]
[13,{"$f":"'5 Flux de trésorerie brut'!$D$20","v":{"$error":"#DIV/0!"}},{"$f":"O1691+O1692","v":0},0,{"$error":"#DIV/0!"},{"$f":"IF(E1710>0,(E1710-E1710*'1 Données d''entrée'!$C$353-IF('5 Flux de trésorerie brut'!$D$20>0,'1 Données d''entrée'!$C$357*'5 Flux de trésorerie brut'!$D$20,0)),E1710)","v":{"$error":"#DIV/0!"}},{"$error":"#DIV/0!"},{"$f":"IF(G1710<0,\" \",IF(SUM(H1697:H1709)>0,\" \",IF(H1697=0,\" \",A1710)))","v":{"$error":"#DIV/0!"}}]
[14,{"$f":"'5 Flux de trésorerie brut'!$D$21","v":{"$error":"#DIV/0!"}},{"$f":"P1691+P1692","v":0},0,{"$error":"#DIV/0!"},{"$f":"IF(E1711>0,(E1711-E1711*'1 Données d''entrée'!$C$353-IF('5 Flux de trésorerie brut'!$D$21>0,'1 Données d''entrée'!$C$357*'5 Flux de trésorerie brut'!$D$21,0)),E1711)","v":{"$error":"#DIV/0!"}},{"$error":"#DIV/0!"},{"$f":"IF(G1711<0,\" \",IF(SUM(H1697:H1710)>0,\" \",IF(H1697=0,\" \",A1711)))","v":{"$error":"#DIV/0!"}}]
[15,{"$f":"'5 Flux de trésorerie brut'!$D$22","v":{"$error":"#DIV/0!"}},{"$f":"Q1691+Q1692","v":0},0,{"$error":"#DIV/0!"},{"$f":"IF(E1712>0,(E1712-E1712*'1 Données d''entrée'!$C$353-IF('5 Flux de trésorerie brut'!$D$22>0,'1 Données d''entrée'!$C$357*'5 Flux de trésorerie brut'!$D$22,0)),E1712)","v":{"$error":"#DIV/0!"}},{"$error":"#DIV/0!"},{"$f":"IF(G1712<0,\" \",IF(SUM(H1697:H1711)>0,\" \",IF(H1697=0,\" \",A1712)))","v":{"$error":"#DIV/0!"}}]
[16,{"$f":"'5 Flux de trésorerie brut'!$D$23","v":{"$error":"#DIV/0!"}},{"$f":"R1691+R1692","v":0},0,{"$error":"#DIV/0!"},{"$f":"IF(E1713>0,(E1713-E1713*'1 Données d''entrée'!$C$353-IF('5 Flux de trésorerie brut'!$D$23>0,'1 Données d''entrée'!$C$357*'5 Flux de trésorerie brut'!$D$23,0)),E1713)","v":{"$error":"#DIV/0!"}},{"$error":"#DIV/0!"},{"$f":"IF(G1713<0,\" \",IF(SUM(H1697:H1712)>0,\" \",IF(H1697=0,\" \",A1713)))","v":{"$error":"#DIV/0!"}}]
[17,{"$f":"'5 Flux de trésorerie brut'!$D$24","v":{"$error":"#DIV/0!"}},{"$f":"S1691+S1692","v":0},0,{"$error":"#DIV/0!"},{"$f":"IF(E1714>0,(E1714-E1714*'1 Données d''entrée'!$C$353-IF('5 Flux de trésorerie brut'!$D$24>0,'1 Données d''entrée'!$C$357*'5 Flux de trésorerie brut'!$D$24,0)),E1714)","v":{"$error":"#DIV/0!"}},{"$error":"#DIV/0!"},{"$f":"IF(G1714<0,\" \",IF(SUM(H1697:H1713)>0,\" \",IF(H1697=0,\" \",A1714)))","v":{"$error":"#DIV/0!"}}]
[18,{"$f":"'5 Flux de trésorerie brut'!$D$25","v":{"$error":"#DIV/0!"}},{"$f":"T1691+T1692","v":0},0,{"$error":"#DIV/0!"},{"$f":"IF(E1715>0,(E1715-E1715*'1 Données d''entrée'!$C$353-IF('5 Flux de trésorerie brut'!$D$25>0,'1 Données d''entrée'!$C$357*'5 Flux de trésorerie brut'!$D$25,0)),E1715)","v":{"$error":"#DIV/0!"}},{"$error":"#DIV/0!"},{"$f":"IF(G1715<0,\" \",IF(SUM(H1697:H1714)>0,\" \",IF(H1697=0,\" \",A1715)))","v":{"$error":"#DIV/0!"}}]
[19,{"$f":"'5 Flux de trésorerie brut'!$D$26","v":{"$error":"#DIV/0!"}},{"$f":"U1691+U1692","v":0},0,{"$error":"#DIV/0!"},{"$f":"IF(E1716>0,(E1716-E1716*'1 Données d''entrée'!$C$353-IF('5 Flux de trésorerie brut'!$D$26>0,'1 Données d''entrée'!$C$357*'5 Flux de trésorerie brut'!$D$26,0)),E1716)","v":{"$error":"#DIV/0!"}},{"$error":"#DIV/0!"},{"$f":"IF(G1716<0,\" \",IF(SUM(H1697:H1715)>0,\" \",IF(H1697=0,\" \",A1716)))","v":{"$error":"#DIV/0!"}}]
[20,{"$f":"'5 Flux de trésorerie brut'!$D$27","v":{"$error":"#DIV/0!"}},{"$f":"V1691+V1692","v":0},0,{"$error":"#DIV/0!"},{"$f":"IF(E1717>0,(E1717-E1717*'1 Données d''entrée'!$C$353-IF('5 Flux de trésorerie brut'!$D$27>0,'1 Données d''entrée'!$C$357*'5 Flux de trésorerie brut'!$D$27,0)),E1717)","v":{"$error":"#DIV/0!"}},{"$error":"#DIV/0!"},{"$f":"IF(G1717<0,\" \",IF(SUM(H1697:H1716)>0,\" \",IF(H1697=0,\" \",A1717)))","v":{"$error":"#DIV/0!"}}]
[]
[]
[null,null,"Valeur actuelle nette",{"$f":"NPV('1 Données d''entrée'!$H$28,'10 Subvention d''ADER'!F1698:F1717)+'10 Subvention d''ADER'!F1697","v":{"$error":"#DIV/0!"}}]
[null,null,"Taux de rentabilité interne",{"$f":"IRR(F1697:F1717)","v":{"$error":"#VALUE!"}}]
[]
[]
[]
[]
[]
[]
["Tableau de calcul avec un taux de subvention de",null,null,0.9]
[]
["Bailleur de fonds","Investissement total par bailleur de fonds (AR)","Quote-part du coût d'investissement initial"]
["Subvention d'ADER",{"$f":"('3 Coût total'!$B$7-'3 Coût total'!$B$42)*C1731","v":0},{"$f":"D1728","v":0.9}]
["Capitaux propres",{"$f":"'1 Données d''entrée'!$B$294","v":0},{"$f":"'1 Données d''entrée'!$B$294/'3 Coût total'!$B$7","v":{"$error":"#DIV/0!"}}]
["Fonds d'autres donneurs / investisseurs",{"$f":"'1 Données d''entrée'!$B$306+'1 Données d''entrée'!$B$307","v":0},{"$f":"B1733/'3 Coût total'!$B$7","v":{"$error":"#DIV/0!"}}]
["Prêt bancaire (effective)",{"$f":"IF(B1731+'1 Données d''entrée'!$B$294=0,0,(-1)*'5 Flux de trésorerie brut'!$D$7-(SUM(B1731:B1733)))","v":0},{"$f":"(1-(C1731+C1732+C1733))","v":{"$error":"#DIV/0!"}}]
[]
["Prêt bancaire avec des frais de gestion",{"$f":"B1734+B1734*'1 Données d''entrée'!$C$338","v":0},{"$f":"(1-(C1731+C1732+C1733))+(1-(C1731+C1732+C1733))*'1 Données d''entrée'!$C$338","v":{"$error":"#DIV/0!"}}]
[]
["Tableaux de calcul"]
[]
[]
["Scénario financier"]
["Période",0,1,2,3,4,5,6,7,8,9,10,11,12,13,14,15,16,17,18,19,20]
[]
["Flux de trésorerie (brut)",{"$f":"'5 Flux de trésorerie brut'!$D$7","v":{"$error":"#DIV/0!"}},{"$f":"'5 Flux de trésorerie brut'!$D$8","v":{"$error":"#DIV/0!"}},{"$f":"'5 Flux de trésorerie brut'!$D$9","v":{"$error":"#DIV/0!"}},{"$f":"'5 Flux de trésorerie brut'!$D$10","v":{"$error":"#DIV/0!"}},{"$f":"'5 Flux de trésorerie brut'!$D$11","v":{"$error":"#DIV/0!"}},{"$f":"'5 Flux de trésorerie brut'!$D$12","v":{"$error":"#DIV/0!"}},{"$f":"'5 Flux de trésorerie brut'!$D$13","v":{"$error":"#DIV/0!"}},{"$f":"'5 Flux de trésorerie brut'!$D$14","v":{"$error":"#DIV/0!"}},{"$f":"'5 Flux de trésorerie brut'!$D$15","v":{"$error":"#DIV/0!"}},{"$f":"'5 Flux de trésorerie brut'!$D$16","v":{"$error":"#DIV/0!"}},{"$f":"'5 Flux de trésorerie brut'!$D$17","v":{"$error":"#DIV/0!"}},{"$f":"'5 Flux de trésorerie brut'!$D$18","v":{"$error":"#DIV/0!"}},{"$f":"'5 Flux de trésorerie brut'!$D$19","v":{"$error":"#DIV/0!"}},{"$f":"'5 Flux de trésorerie brut'!$D$20","v":{"$error":"#DIV/0!"}},{"$f":"'5 Flux de trésorerie brut'!$D$21","v":{"$error":"#DIV/0!"}},{"$f":"'5 Flux de trésorerie brut'!$D$22","v":{"$error":"#DIV/0!"}},{"$f":"'5 Flux de trésorerie brut'!$D$23","v":{"$error":"#DIV/0!"}},{"$f":"'5 Flux de trésorerie brut'!$D$24","v":{"$error":"#DIV/0!"}},{"$f":"'5 Flux de trésorerie brut'!$D$25","v":{"$error":"#DIV/0!"}},{"$f":"'5 Flux de trésorerie brut'!$D$26","v":{"$error":"#DIV/0!"}},{"$f":"'5 Flux de trésorerie brut'!$D$27","v":{"$error":"#DIV/0!"}}]
[]
["Capitaux propres",{"$f":"'1 Données d''entrée'!$B$294","v":0}]
[]
["Subvention ADER",{"$f":"'3 Coût total'!$B$7*C1731","v":0}]
[]
["Prêt bancaire - Option 1: Remboursement du principal fractionné",{"$f":"'1 Données d''entrée'!$B$342","v":0},"% de prêt total"]
["Réception et montant restant",{"$f":"B1736*B1750","v":0},{"$f":"B1751-C1752","v":0},0,0,0,0,0,0,0,0,0,0,0,0,0,0,0,0,0,0,0]
["Remboursement du principal",0,{"$f":"IF(C1742<'1 Données d''entrée'!$C$334+1,0,IF(C1742<'1 Données d''entrée'!$C$333+'1 Données d''entrée'!$C$334+1,($B1751/'1 Données d''entrée'!$C$333),0))","v":0},{"$f":"IF(D1742<'1 Données d''entrée'!$C$334+1,0,IF(D1742<'1 Données d''entrée'!$C$333+'1 Données d''entrée'!$C$334+1,($B1751/'1 Données d''entrée'!$C$333),0))","v":0},{"$f":"IF(E1742<'1 Données d''entrée'!$C$334+1,0,IF(E1742<'1 Données d''entrée'!$C$333+'1 Données d''entrée'!$C$334+1,($B1751/'1 Données d''entrée'!$C$333),0))","v":0},{"$f":"IF(F1742<'1 Données d''entrée'!$C$334+1,0,IF(F1742<'1 Données d''entrée'!$C$333+'1 Données d''entrée'!$C$334+1,($B1751/'1 Données d''entrée'!$C$333),0))","v":0},{"$f":"IF(G1742<'1 Données d''entrée'!$C$334+1,0,IF(G1742<'1 Données d''entrée'!$C$333+'1 Données d''entrée'!$C$334+1,($B1751/'1 Données d''entrée'!$C$333),0))","v":0},{"$f":"IF(H1742<'1 Données d''entrée'!$C$334+1,0,IF(H1742<'1 Données d''entrée'!$C$333+'1 Données d''entrée'!$C$334+1,($B1751/'1 Données d''entrée'!$C$333),0))","v":0},{"$f":"IF(I1742<'1 Données d''entrée'!$C$334+1,0,IF(I1742<'1 Données d''entrée'!$C$333+'1 Données d''entrée'!$C$334+1,($B1751/'1 Données d''entrée'!$C$333),0))","v":0},{"$f":"IF(J1742<'1 Données d''entrée'!$C$334+1,0,IF(J1742<'1 Données d''entrée'!$C$333+'1 Données d''entrée'!$C$334+1,($B1751/'1 Données d''entrée'!$C$333),0))","v":0},{"$f":"IF(K1742<'1 Données d''entrée'!$C$334+1,0,IF(K1742<'1 Données d''entrée'!$C$333+'1 Données d''entrée'!$C$334+1,($B1751/'1 Données d''entrée'!$C$333),0))","v":0},{"$f":"IF(L1742<'1 Données d''entrée'!$C$334+1,0,IF(L1742<'1 Données d''entrée'!$C$333+'1 Données d''entrée'!$C$334+1,($B1751/'1 Données d''entrée'!$C$333),0))","v":0},{"$f":"IF(M1742<'1 Données d''entrée'!$C$334+1,0,IF(M1742<'1 Données d''entrée'!$C$333+'1 Données d''entrée'!$C$334+1,($B1751/'1 Données d''entrée'!$C$333),0))","v":0},{"$f":"IF(N1742<'1 Données d''entrée'!$C$334+1,0,IF(N1742<'1 Données d''entrée'!$C$333+'1 Données d''entrée'!$C$334+1,($B1751/'1 Données d''entrée'!$C$333),0))","v":0},{"$f":"IF(O1742<'1 Données d''entrée'!$C$334+1,0,IF(O1742<'1 Données d''entrée'!$C$333+'1 Données d''entrée'!$C$334+1,($B1751/'1 Données d''entrée'!$C$333),0))","v":0},{"$f":"IF(P1742<'1 Données d''entrée'!$C$334+1,0,IF(P1742<'1 Données d''entrée'!$C$333+'1 Données d''entrée'!$C$334+1,($B1751/'1 Données d''entrée'!$C$333),0))","v":0},{"$f":"IF(Q1742<'1 Données d''entrée'!$C$334+1,0,IF(Q1742<'1 Données d''entrée'!$C$333+'1 Données d''entrée'!$C$334+1,($B1751/'1 Données d''entrée'!$C$333),0))","v":0},{"$f":"IF(R1742<'1 Données d''entrée'!$C$334+1,0,IF(R1742<'1 Données d''entrée'!$C$333+'1 Données d''entrée'!$C$334+1,($B1751/'1 Données d''entrée'!$C$333),0))","v":0},{"$f":"IF(S1742<'1 Données d''entrée'!$C$334+1,0,IF(S1742<'1 Données d''entrée'!$C$333+'1 Données d''entrée'!$C$334+1,($B1751/'1 Données d''entrée'!$C$333),0))","v":0},{"$f":"IF(T1742<'1 Données d''entrée'!$C$334+1,0,IF(T1742<'1 Données d''entrée'!$C$333+'1 Données d''entrée'!$C$334+1,($B1751/'1 Données d''entrée'!$C$333),0))","v":0},{"$f":"IF(U1742<'1 Données d''entrée'!$C$334+1,0,IF(U1742<'1 Données d''entrée'!$C$333+'1 Données d''entrée'!$C$334+1,($B1751/'1 Données d''entrée'!$C$333),0))","v":0},{"$f":"IF(V1742<'1 Données d''entrée'!$C$334+1,0,IF(V1742<'1 Données d''entrée'!$C$333+'1 Données d''entrée'!$C$334+1,($B1751/'1 Données d''entrée'!$C$333),0))","v":0}]
["Paiement d'intérêts",0,{"$f":"IF('1 Données d''entrée'!$C$336=\"(=NON)\",IF(C1742<'1 Données d''entrée'!$C$334+1,0,B1751*'1 Données d''entrée'!$C$332),B1751*'1 Données d''entrée'!$C$332)","v":0},{"$f":"IF('1 Données d''entrée'!$C$336=\"(=NON)\",IF(D1742<'1 Données d''entrée'!$C$334+1,0,C1751*'1 Données d''entrée'!$C$332),C1751*'1 Données d''entrée'!$C$332)","v":0},{"$f":"IF('1 Données d''entrée'!$C$336=\"(=NON)\",IF(E1742<'1 Données d''entrée'!$C$334+1,0,D1751*'1 Données d''entrée'!$C$332),D1751*'1 Données d''entrée'!$C$332)","v":0},{"$f":"IF('1 Données d''entrée'!$C$336=\"(=NON)\",IF(F1742<'1 Données d''entrée'!$C$334+1,0,E1751*'1 Données d''entrée'!$C$332),E1751*'1 Données d''entrée'!$C$332)","v":0},{"$f":"IF('1 Données d''entrée'!$C$336=\"(=NON)\",IF(G1742<'1 Données d''entrée'!$C$334+1,0,F1751*'1 Données d''entrée'!$C$332),F1751*'1 Données d''entrée'!$C$332)","v":0},{"$f":"IF('1 Données d''entrée'!$C$336=\"(=NON)\",IF(H1742<'1 Données d''entrée'!$C$334+1,0,G1751*'1 Données d''entrée'!$C$332),G1751*'1 Données d''entrée'!$C$332)","v":0},{"$f":"IF('1 Données d''entrée'!$C$336=\"(=NON)\",IF(I1742<'1 Données d''entrée'!$C$334+1,0,H1751*'1 Données d''entrée'!$C$332),H1751*'1 Données d''entrée'!$C$332)","v":0},{"$f":"IF('1 Données d''entrée'!$C$336=\"(=NON)\",IF(J1742<'1 Données d''entrée'!$C$334+1,0,I1751*'1 Données d''entrée'!$C$332),I1751*'1 Données d''entrée'!$C$332)","v":0},{"$f":"IF('1 Données d''entrée'!$C$336=\"(=NON)\",IF(K1742<'1 Données d''entrée'!$C$334+1,0,J1751*'1 Données d''entrée'!$C$332),J1751*'1 Données d''entrée'!$C$332)","v":0},{"$f":"IF('1 Données d''entrée'!$C$336=\"(=NON)\",IF(L1742<'1 Données d''entrée'!$C$334+1,0,K1751*'1 Données d''entrée'!$C$332),K1751*'1 Données d''entrée'!$C$332)","v":0},{"$f":"IF('1 Données d''entrée'!$C$336=\"(=NON)\",IF(M1742<'1 Données d''entrée'!$C$334+1,0,L1751*'1 Données d''entrée'!$C$332),L1751*'1 Données d''entrée'!$C$332)","v":0},{"$f":"IF('1 Données d''entrée'!$C$336=\"(=NON)\",IF(N1742<'1 Données d''entrée'!$C$334+1,0,M1751*'1 Données d''entrée'!$C$332),M1751*'1 Données d''entrée'!$C$332)","v":0},{"$f":"IF('1 Données d''entrée'!$C$336=\"(=NON)\",IF(O1742<'1 Données d''entrée'!$C$334+1,0,N1751*'1 Données d''entrée'!$C$332),N1751*'1 Données d''entrée'!$C$332)","v":0},{"$f":"IF('1 Données d''entrée'!$C$336=\"(=NON)\",IF(P1742<'1 Données d''entrée'!$C$334+1,0,O1751*'1 Données d''entrée'!$C$332),O1751*'1 Données d''entrée'!$C$332)","v":0},{"$f":"IF('1 Données d''entrée'!$C$336=\"(=NON)\",IF(Q1742<'1 Données d''entrée'!$C$334+1,0,P1751*'1 Données d''entrée'!$C$332),P1751*'1 Données d''entrée'!$C$332)","v":0},{"$f":"IF('1 Données d''entrée'!$C$336=\"(=NON)\",IF(R1742<'1 Données d''entrée'!$C$334+1,0,Q1751*'1 Données d''entrée'!$C$332),Q1751*'1 Données d''entrée'!$C$332)","v":0},{"$f":"IF('1 Données d''entrée'!$C$336=\"(=NON)\",IF(S1742<'1 Données d''entrée'!$C$334+1,0,R1751*'1 Données d''entrée'!$C$332),R1751*'1 Données d''entrée'!$C$332)","v":0},{"$f":"IF('1 Données d''entrée'!$C$336=\"(=NON)\",IF(T1742<'1 Données d''entrée'!$C$334+1,0,S1751*'1 Données d''entrée'!$C$332),S1751*'1 Données d''entrée'!$C$332)","v":0},{"$f":"IF('1 Données d''entrée'!$C$336=\"(=NON)\",IF(U1742<'1 Données d''entrée'!$C$334+1,0,T1751*'1 Données d''entrée'!$C$332),T1751*'1 Données d''entrée'!$C$332)","v":0},{"$f":"IF('1 Données d''entrée'!$C$336=\"(=NON)\",IF(V1742<'1 Données d''entrée'!$C$334+1,0,U1751*'1 Données d''entrée'!$C$332),U1751*'1 Données d''entrée'!$C$332)","v":0}]
["Paiements d'intérêt avec des intérêts composés en cas d'absence des paiements dans la période de grâce",0,0,{"$f":"IF(D1742='1 Données d''entrée'!$C$334+1,IF('1 Données d''entrée'!$C$336=\"(=NON)\",($B1751*'1 Données d''entrée'!$C$332)*((('1 Données d''entrée'!$C$332+1)^'1 Données d''entrée'!$C$334-1)/('1 Données d''entrée'!$C$332))*(1+'1 Données d''entrée'!$C$332),0),0)","v":0},{"$f":"IF(E1742='1 Données d''entrée'!$C$334+1,IF('1 Données d''entrée'!$C$336=\"(=NON)\",($B1751*'1 Données d''entrée'!$C$332)*((('1 Données d''entrée'!$C$332+1)^'1 Données d''entrée'!$C$334-1)/('1 Données d''entrée'!$C$332))*(1+'1 Données d''entrée'!$C$332),0),0)","v":0},{"$f":"IF(F1742='1 Données d''entrée'!$C$334+1,IF('1 Données d''entrée'!$C$336=\"(=NON)\",($B1751*'1 Données d''entrée'!$C$332)*((('1 Données d''entrée'!$C$332+1)^'1 Données d''entrée'!$C$334-1)/('1 Données d''entrée'!$C$332))*(1+'1 Données d''entrée'!$C$332),0),0)","v":0},{"$f":"IF(G1742='1 Données d''entrée'!$C$334+1,IF('1 Données d''entrée'!$C$336=\"(=NON)\",($B1751*'1 Données d''entrée'!$C$332)*((('1 Données d''entrée'!$C$332+1)^'1 Données d''entrée'!$C$334-1)/('1 Données d''entrée'!$C$332))*(1+'1 Données d''entrée'!$C$332),0),0)","v":0},{"$f":"IF(H1742='1 Données d''entrée'!$C$334+1,IF('1 Données d''entrée'!$C$336=\"(=NON)\",($B1751*'1 Données d''entrée'!$C$332)*((('1 Données d''entrée'!$C$332+1)^'1 Données d''entrée'!$C$334-1)/('1 Données d''entrée'!$C$332))*(1+'1 Données d''entrée'!$C$332),0),0)","v":0},{"$f":"IF(I1742='1 Données d''entrée'!$C$334+1,IF('1 Données d''entrée'!$C$336=\"(=NON)\",($B1751*'1 Données d''entrée'!$C$332)*((('1 Données d''entrée'!$C$332+1)^'1 Données d''entrée'!$C$334-1)/('1 Données d''entrée'!$C$332))*(1+'1 Données d''entrée'!$C$332),0),0)","v":0},{"$f":"IF(J1742='1 Données d''entrée'!$C$334+1,IF('1 Données d''entrée'!$C$336=\"(=NON)\",($B1751*'1 Données d''entrée'!$C$332)*((('1 Données d''entrée'!$C$332+1)^'1 Données d''entrée'!$C$334-1)/('1 Données d''entrée'!$C$332))*(1+'1 Données d''entrée'!$C$332),0),0)","v":0},{"$f":"IF(K1742='1 Données d''entrée'!$C$334+1,IF('1 Données d''entrée'!$C$336=\"(=NON)\",($B1751*'1 Données d''entrée'!$C$332)*((('1 Données d''entrée'!$C$332+1)^'1 Données d''entrée'!$C$334-1)/('1 Données d''entrée'!$C$332))*(1+'1 Données d''entrée'!$C$332),0),0)","v":0},{"$f":"IF(L1742='1 Données d''entrée'!$C$334+1,IF('1 Données d''entrée'!$C$336=\"(=NON)\",($B1751*'1 Données d''entrée'!$C$332)*((('1 Données d''entrée'!$C$332+1)^'1 Données d''entrée'!$C$334-1)/('1 Données d''entrée'!$C$332))*(1+'1 Données d''entrée'!$C$332),0),0)","v":0},{"$f":"IF(M1742='1 Données d''entrée'!$C$334+1,IF('1 Données d''entrée'!$C$336=\"(=NON)\",($B1751*'1 Données d''entrée'!$C$332)*((('1 Données d''entrée'!$C$332+1)^'1 Données d''entrée'!$C$334-1)/('1 Données d''entrée'!$C$332))*(1+'1 Données d''entrée'!$C$332),0),0)","v":0},{"$f":"IF(N1742='1 Données d''entrée'!$C$334+1,IF('1 Données d''entrée'!$C$336=\"(=NON)\",($B1751*'1 Données d''entrée'!$C$332)*((('1 Données d''entrée'!$C$332+1)^'1 Données d''entrée'!$C$334-1)/('1 Données d''entrée'!$C$332))*(1+'1 Données d''entrée'!$C$332),0),0)","v":0},{"$f":"IF(O1742='1 Données d''entrée'!$C$334+1,IF('1 Données d''entrée'!$C$336=\"(=NON)\",($B1751*'1 Données d''entrée'!$C$332)*((('1 Données d''entrée'!$C$332+1)^'1 Données d''entrée'!$C$334-1)/('1 Données d''entrée'!$C$332))*(1+'1 Données d''entrée'!$C$332),0),0)","v":0},{"$f":"IF(P1742='1 Données d''entrée'!$C$334+1,IF('1 Données d''entrée'!$C$336=\"(=NON)\",($B1751*'1 Données d''entrée'!$C$332)*((('1 Données d''entrée'!$C$332+1)^'1 Données d''entrée'!$C$334-1)/('1 Données d''entrée'!$C$332))*(1+'1 Données d''entrée'!$C$332),0),0)","v":0},{"$f":"IF(Q1742='1 Données d''entrée'!$C$334+1,IF('1 Données d''entrée'!$C$336=\"(=NON)\",($B1751*'1 Données d''entrée'!$C$332)*((('1 Données d''entrée'!$C$332+1)^'1 Données d''entrée'!$C$334-1)/('1 Données d''entrée'!$C$332))*(1+'1 Données d''entrée'!$C$332),0),0)","v":0},{"$f":"IF(R1742='1 Données d''entrée'!$C$334+1,IF('1 Données d''entrée'!$C$336=\"(=NON)\",($B1751*'1 Données d''entrée'!$C$332)*((('1 Données d''entrée'!$C$332+1)^'1 Données d''entrée'!$C$334-1)/('1 Données d''entrée'!$C$332))*(1+'1 Données d''entrée'!$C$332),0),0)","v":0},{"$f":"IF(S1742='1 Données d''entrée'!$C$334+1,IF('1 Données d''entrée'!$C$336=\"(=NON)\",($B1751*'1 Données d''entrée'!$C$332)*((('1 Données d''entrée'!$C$332+1)^'1 Données d''entrée'!$C$334-1)/('1 Données d''entrée'!$C$332))*(1+'1 Données d''entrée'!$C$332),0),0)","v":0},{"$f":"IF(T1742='1 Données d''entrée'!$C$334+1,IF('1 Données d''entrée'!$C$336=\"(=NON)\",($B1751*'1 Données d''entrée'!$C$332)*((('1 Données d''entrée'!$C$332+1)^'1 Données d''entrée'!$C$334-1)/('1 Données d''entrée'!$C$332))*(1+'1 Données d''entrée'!$C$332),0),0)","v":0},{"$f":"IF(U1742='1 Données d''entrée'!$C$334+1,IF('1 Données d''entrée'!$C$336=\"(=NON)\",($B1751*'1 Données d''entrée'!$C$332)*((('1 Données d''entrée'!$C$332+1)^'1 Données d''entrée'!$C$334-1)/('1 Données d''entrée'!$C$332))*(1+'1 Données d''entrée'!$C$332),0),0)","v":0},{"$f":"IF(V1742='1 Données d''entrée'!$C$334+1,IF('1 Données d''entrée'!$C$336=\"(=NON)\",($B1751*'1 Données d''entrée'!$C$332)*((('1 Données d''entrée'!$C$332+1)^'1 Données d''entrée'!$C$334-1)/('1 Données d''entrée'!$C$332))*(1+'1 Données d''entrée'!$C$332),0),0)","v":0}]
["Prêt bancaire - Option 2: Remboursement du principal final",{"$f":"'1 Données d''entrée'!$B$343","v":0},"% de prêt total"]
["Réception et montant restant",{"$f":"B1736*B1755","v":0},{"$f":"B1756-C1757","v":0},0,0,0,0,0,0,0,0,0,0,0,0,0,0,0,0,0,0,0]
["Remboursement du principal",0,{"$f":"IF('1 Données d''entrée'!$C$333+'1 Données d''entrée'!$C$334=C1742,$B1756,0)","v":0},{"$f":"IF('1 Données d''entrée'!$C$333+'1 Données d''entrée'!$C$334=D1742,$B1756,0)","v":0},{"$f":"IF('1 Données d''entrée'!$C$333+'1 Données d''entrée'!$C$334=E1742,$B1756,0)","v":0},{"$f":"IF('1 Données d''entrée'!$C$333+'1 Données d''entrée'!$C$334=F1742,$B1756,0)","v":0},{"$f":"IF('1 Données d''entrée'!$C$333+'1 Données d''entrée'!$C$334=G1742,$B1756,0)","v":0},{"$f":"IF('1 Données d''entrée'!$C$333+'1 Données d''entrée'!$C$334=H1742,$B1756,0)","v":0},{"$f":"IF('1 Données d''entrée'!$C$333+'1 Données d''entrée'!$C$334=I1742,$B1756,0)","v":0},{"$f":"IF('1 Données d''entrée'!$C$333+'1 Données d''entrée'!$C$334=J1742,$B1756,0)","v":0},{"$f":"IF('1 Données d''entrée'!$C$333+'1 Données d''entrée'!$C$334=K1742,$B1756,0)","v":0},{"$f":"IF('1 Données d''entrée'!$C$333+'1 Données d''entrée'!$C$334=L1742,$B1756,0)","v":0},{"$f":"IF('1 Données d''entrée'!$C$333+'1 Données d''entrée'!$C$334=M1742,$B1756,0)","v":0},{"$f":"IF('1 Données d''entrée'!$C$333+'1 Données d''entrée'!$C$334=N1742,$B1756,0)","v":0},{"$f":"IF('1 Données d''entrée'!$C$333+'1 Données d''entrée'!$C$334=O1742,$B1756,0)","v":0},{"$f":"IF('1 Données d''entrée'!$C$333+'1 Données d''entrée'!$C$334=P1742,$B1756,0)","v":0},{"$f":"IF('1 Données d''entrée'!$C$333+'1 Données d''entrée'!$C$334=Q1742,$B1756,0)","v":0},{"$f":"IF('1 Données d''entrée'!$C$333+'1 Données d''entrée'!$C$334=R1742,$B1756,0)","v":0},{"$f":"IF('1 Données d''entrée'!$C$333+'1 Données d''entrée'!$C$334=S1742,$B1756,0)","v":0},{"$f":"IF('1 Données d''entrée'!$C$333+'1 Données d''entrée'!$C$334=T1742,$B1756,0)","v":0},{"$f":"IF('1 Données d''entrée'!$C$333+'1 Données d''entrée'!$C$334=U1742,$B1756,0)","v":0},{"$f":"IF('1 Données d''entrée'!$C$333+'1 Données d''entrée'!$C$334=V1742,$B1756,0)","v":0}]
["Paiement d'intérêts",0,{"$f":"IF('1 Données d''entrée'!$C$336=\"(=NON)\",IF(C1742<'1 Données d''entrée'!$C$334+1,0,B1756*'1 Données d''entrée'!$C$332),B1756*'1 Données d''entrée'!$C$332)","v":0},{"$f":"IF('1 Données d''entrée'!$C$336=\"(=NON)\",IF(D1742<'1 Données d''entrée'!$C$334+1,0,C1756*'1 Données d''entrée'!$C$332),C1756*'1 Données d''entrée'!$C$332)","v":0},{"$f":"IF('1 Données d''entrée'!$C$336=\"(=NON)\",IF(E1742<'1 Données d''entrée'!$C$334+1,0,D1756*'1 Données d''entrée'!$C$332),D1756*'1 Données d''entrée'!$C$332)","v":0},{"$f":"IF('1 Données d''entrée'!$C$336=\"(=NON)\",IF(F1742<'1 Données d''entrée'!$C$334+1,0,E1756*'1 Données d''entrée'!$C$332),E1756*'1 Données d''entrée'!$C$332)","v":0},{"$f":"IF('1 Données d''entrée'!$C$336=\"(=NON)\",IF(G1742<'1 Données d''entrée'!$C$334+1,0,F1756*'1 Données d''entrée'!$C$332),F1756*'1 Données d''entrée'!$C$332)","v":0},{"$f":"IF('1 Données d''entrée'!$C$336=\"(=NON)\",IF(H1742<'1 Données d''entrée'!$C$334+1,0,G1756*'1 Données d''entrée'!$C$332),G1756*'1 Données d''entrée'!$C$332)","v":0},{"$f":"IF('1 Données d''entrée'!$C$336=\"(=NON)\",IF(I1742<'1 Données d''entrée'!$C$334+1,0,H1756*'1 Données d''entrée'!$C$332),H1756*'1 Données d''entrée'!$C$332)","v":0},{"$f":"IF('1 Données d''entrée'!$C$336=\"(=NON)\",IF(J1742<'1 Données d''entrée'!$C$334+1,0,I1756*'1 Données d''entrée'!$C$332),I1756*'1 Données d''entrée'!$C$332)","v":0},{"$f":"IF('1 Données d''entrée'!$C$336=\"(=NON)\",IF(K1742<'1 Données d''entrée'!$C$334+1,0,J1756*'1 Données d''entrée'!$C$332),J1756*'1 Données d''entrée'!$C$332)","v":0},{"$f":"IF('1 Données d''entrée'!$C$336=\"(=NON)\",IF(L1742<'1 Données d''entrée'!$C$334+1,0,K1756*'1 Données d''entrée'!$C$332),K1756*'1 Données d''entrée'!$C$332)","v":0},{"$f":"IF('1 Données d''entrée'!$C$336=\"(=NON)\",IF(M1742<'1 Données d''entrée'!$C$334+1,0,L1756*'1 Données d''entrée'!$C$332),L1756*'1 Données d''entrée'!$C$332)","v":0},{"$f":"IF('1 Données d''entrée'!$C$336=\"(=NON)\",IF(N1742<'1 Données d''entrée'!$C$334+1,0,M1756*'1 Données d''entrée'!$C$332),M1756*'1 Données d''entrée'!$C$332)","v":0},{"$f":"IF('1 Données d''entrée'!$C$336=\"(=NON)\",IF(O1742<'1 Données d''entrée'!$C$334+1,0,N1756*'1 Données d''entrée'!$C$332),N1756*'1 Données d''entrée'!$C$332)","v":0},{"$f":"IF('1 Données d''entrée'!$C$336=\"(=NON)\",IF(P1742<'1 Données d''entrée'!$C$334+1,0,O1756*'1 Données d''entrée'!$C$332),O1756*'1 Données d''entrée'!$C$332)","v":0},{"$f":"IF('1 Données d''entrée'!$C$336=\"(=NON)\",IF(Q1742<'1 Données d''entrée'!$C$334+1,0,P1756*'1 Données d''entrée'!$C$332),P1756*'1 Données d''entrée'!$C$332)","v":0},{"$f":"IF('1 Données d''entrée'!$C$336=\"(=NON)\",IF(R1742<'1 Données d''entrée'!$C$334+1,0,Q1756*'1 Données d''entrée'!$C$332),Q1756*'1 Données d''entrée'!$C$332)","v":0},{"$f":"IF('1 Données d''entrée'!$C$336=\"(=NON)\",IF(S1742<'1 Données d''entrée'!$C$334+1,0,R1756*'1 Données d''entrée'!$C$332),R1756*'1 Données d''entrée'!$C$332)","v":0},{"$f":"IF('1 Données d''entrée'!$C$336=\"(=NON)\",IF(T1742<'1 Données d''entrée'!$C$334+1,0,S1756*'1 Données d''entrée'!$C$332),S1756*'1 Données d''entrée'!$C$332)","v":0},{"$f":"IF('1 Données d''entrée'!$C$336=\"(=NON)\",IF(U1742<'1 Données d''entrée'!$C$334+1,0,T1756*'1 Données d''entrée'!$C$332),T1756*'1 Données d''entrée'!$C$332)","v":0},{"$f":"IF('1 Données d''entrée'!$C$336=\"(=NON)\",IF(V1742<'1 Données d''entrée'!$C$334+1,0,U1756*'1 Données d''entrée'!$C$332),U1756*'1 Données d''entrée'!$C$332)","v":0}]
["Paiements d'intérêt avec des intérêts composés en cas d'absence des paiements dans la période de grâce",0,0,{"$f":"IF(D1742='1 Données d''entrée'!$C$334+1,IF('1 Données d''entrée'!$C$336=\"(=NON)\",($B1756*'1 Données d''entrée'!$C$332)*((('1 Données d''entrée'!$C$332+1)^'1 Données d''entrée'!$C$334-1)/('1 Données d''entrée'!$C$332))*(1+'1 Données d''entrée'!$C$332),0),0)","v":0},{"$f":"IF(E1742='1 Données d''entrée'!$C$334+1,IF('1 Données d''entrée'!$C$336=\"(=NON)\",($B1756*'1 Données d''entrée'!$C$332)*((('1 Données d''entrée'!$C$332+1)^'1 Données d''entrée'!$C$334-1)/('1 Données d''entrée'!$C$332))*(1+'1 Données d''entrée'!$C$332),0),0)","v":0},{"$f":"IF(F1742='1 Données d''entrée'!$C$334+1,IF('1 Données d''entrée'!$C$336=\"(=NON)\",($B1756*'1 Données d''entrée'!$C$332)*((('1 Données d''entrée'!$C$332+1)^'1 Données d''entrée'!$C$334-1)/('1 Données d''entrée'!$C$332))*(1+'1 Données d''entrée'!$C$332),0),0)","v":0},{"$f":"IF(G1742='1 Données d''entrée'!$C$334+1,IF('1 Données d''entrée'!$C$336=\"(=NON)\",($B1756*'1 Données d''entrée'!$C$332)*((('1 Données d''entrée'!$C$332+1)^'1 Données d''entrée'!$C$334-1)/('1 Données d''entrée'!$C$332))*(1+'1 Données d''entrée'!$C$332),0),0)","v":0},{"$f":"IF(H1742='1 Données d''entrée'!$C$334+1,IF('1 Données d''entrée'!$C$336=\"(=NON)\",($B1756*'1 Données d''entrée'!$C$332)*((('1 Données d''entrée'!$C$332+1)^'1 Données d''entrée'!$C$334-1)/('1 Données d''entrée'!$C$332))*(1+'1 Données d''entrée'!$C$332),0),0)","v":0},{"$f":"IF(I1742='1 Données d''entrée'!$C$334+1,IF('1 Données d''entrée'!$C$336=\"(=NON)\",($B1756*'1 Données d''entrée'!$C$332)*((('1 Données d''entrée'!$C$332+1)^'1 Données d''entrée'!$C$334-1)/('1 Données d''entrée'!$C$332))*(1+'1 Données d''entrée'!$C$332),0),0)","v":0},{"$f":"IF(J1742='1 Données d''entrée'!$C$334+1,IF('1 Données d''entrée'!$C$336=\"(=NON)\",($B1756*'1 Données d''entrée'!$C$332)*((('1 Données d''entrée'!$C$332+1)^'1 Données d''entrée'!$C$334-1)/('1 Données d''entrée'!$C$332))*(1+'1 Données d''entrée'!$C$332),0),0)","v":0},{"$f":"IF(K1742='1 Données d''entrée'!$C$334+1,IF('1 Données d''entrée'!$C$336=\"(=NON)\",($B1756*'1 Données d''entrée'!$C$332)*((('1 Données d''entrée'!$C$332+1)^'1 Données d''entrée'!$C$334-1)/('1 Données d''entrée'!$C$332))*(1+'1 Données d''entrée'!$C$332),0),0)","v":0},{"$f":"IF(L1742='1 Données d''entrée'!$C$334+1,IF('1 Données d''entrée'!$C$336=\"(=NON)\",($B1756*'1 Données d''entrée'!$C$332)*((('1 Données d''entrée'!$C$332+1)^'1 Données d''entrée'!$C$334-1)/('1 Données d''entrée'!$C$332))*(1+'1 Données d''entrée'!$C$332),0),0)","v":0},{"$f":"IF(M1742='1 Données d''entrée'!$C$334+1,IF('1 Données d''entrée'!$C$336=\"(=NON)\",($B1756*'1 Données d''entrée'!$C$332)*((('1 Données d''entrée'!$C$332+1)^'1 Données d''entrée'!$C$334-1)/('1 Données d''entrée'!$C$332))*(1+'1 Données d''entrée'!$C$332),0),0)","v":0},{"$f":"IF(N1742='1 Données d''entrée'!$C$334+1,IF('1 Données d''entrée'!$C$336=\"(=NON)\",($B1756*'1 Données d''entrée'!$C$332)*((('1 Données d''entrée'!$C$332+1)^'1 Données d''entrée'!$C$334-1)/('1 Données d''entrée'!$C$332))*(1+'1 Données d''entrée'!$C$332),0),0)","v":0},{"$f":"IF(O1742='1 Données d''entrée'!$C$334+1,IF('1 Données d''entrée'!$C$336=\"(=NON)\",($B1756*'1 Données d''entrée'!$C$332)*((('1 Données d''entrée'!$C$332+1)^'1 Données d''entrée'!$C$334-1)/('1 Données d''entrée'!$C$332))*(1+'1 Données d''entrée'!$C$332),0),0)","v":0},{"$f":"IF(P1742='1 Données d''entrée'!$C$334+1,IF('1 Données d''entrée'!$C$336=\"(=NON)\",($B1756*'1 Données d''entrée'!$C$332)*((('1 Données d''entrée'!$C$332+1)^'1 Données d''entrée'!$C$334-1)/('1 Données d''entrée'!$C$332))*(1+'1 Données d''entrée'!$C$332),0),0)","v":0},{"$f":"IF(Q1742='1 Données d''entrée'!$C$334+1,IF('1 Données d''entrée'!$C$336=\"(=NON)\",($B1756*'1 Données d''entrée'!$C$332)*((('1 Données d''entrée'!$C$332+1)^'1 Données d''entrée'!$C$334-1)/('1 Données d''entrée'!$C$332))*(1+'1 Données d''entrée'!$C$332),0),0)","v":0},{"$f":"IF(R1742='1 Données d''entrée'!$C$334+1,IF('1 Données d''entrée'!$C$336=\"(=NON)\",($B1756*'1 Données d''entrée'!$C$332)*((('1 Données d''entrée'!$C$332+1)^'1 Données d''entrée'!$C$334-1)/('1 Données d''entrée'!$C$332))*(1+'1 Données d''entrée'!$C$332),0),0)","v":0},{"$f":"IF(S1742='1 Données d''entrée'!$C$334+1,IF('1 Données d''entrée'!$C$336=\"(=NON)\",($B1756*'1 Données d''entrée'!$C$332)*((('1 Données d''entrée'!$C$332+1)^'1 Données d''entrée'!$C$334-1)/('1 Données d''entrée'!$C$332))*(1+'1 Données d''entrée'!$C$332),0),0)","v":0},{"$f":"IF(T1742='1 Données d''entrée'!$C$334+1,IF('1 Données d''entrée'!$C$336=\"(=NON)\",($B1756*'1 Données d''entrée'!$C$332)*((('1 Données d''entrée'!$C$332+1)^'1 Données d''entrée'!$C$334-1)/('1 Données d''entrée'!$C$332))*(1+'1 Données d''entrée'!$C$332),0),0)","v":0},{"$f":"IF(U1742='1 Données d''entrée'!$C$334+1,IF('1 Données d''entrée'!$C$336=\"(=NON)\",($B1756*'1 Données d''entrée'!$C$332)*((('1 Données d''entrée'!$C$332+1)^'1 Données d''entrée'!$C$334-1)/('1 Données d''entrée'!$C$332))*(1+'1 Données d''entrée'!$C$332),0),0)","v":0},{"$f":"IF(V1742='1 Données d''entrée'!$C$334+1,IF('1 Données d''entrée'!$C$336=\"(=NON)\",($B1756*'1 Données d''entrée'!$C$332)*((('1 Données d''entrée'!$C$332+1)^'1 Données d''entrée'!$C$334-1)/('1 Données d''entrée'!$C$332))*(1+'1 Données d''entrée'!$C$332),0),0)","v":0}]
["Prêt bancaire - Option 3: Remboursement vers l'annuité constante",{"$f":"'1 Données d''entrée'!$B$344","v":0},"% de prêt total"]
["Réception ",{"$f":"B1736*B1760","v":0},0,0,0,0,0,0,0,0,0,0,0,0,0,0,0,0,0,0,0,0]
["Remboursement vers l'annuité constante",{"$f":"IF(B1742<'1 Données d''entrée'!$C$334+1,0,IF(B1742<'1 Données d''entrée'!$C$333+'1 Données d''entrée'!$C$334+1,$B1761*('1 Données d''entrée'!$C$332*(1+'1 Données d''entrée'!$C$332)^'1 Données d''entrée'!$C$333)/((1+'1 Données d''entrée'!$C$332)^'1 Données d''entrée'!$C$333-1),0))","v":0},{"$f":"IF(C1742<'1 Données d''entrée'!$C$334+1,0,IF(C1742<'1 Données d''entrée'!$C$333+'1 Données d''entrée'!$C$334+1,$B1761*('1 Données d''entrée'!$C$332*(1+'1 Données d''entrée'!$C$332)^'1 Données d''entrée'!$C$333)/((1+'1 Données d''entrée'!$C$332)^'1 Données d''entrée'!$C$333-1),0))","v":0},{"$f":"IF(D1742<'1 Données d''entrée'!$C$334+1,0,IF(D1742<'1 Données d''entrée'!$C$333+'1 Données d''entrée'!$C$334+1,$B1761*('1 Données d''entrée'!$C$332*(1+'1 Données d''entrée'!$C$332)^'1 Données d''entrée'!$C$333)/((1+'1 Données d''entrée'!$C$332)^'1 Données d''entrée'!$C$333-1),0))","v":0},{"$f":"IF(E1742<'1 Données d''entrée'!$C$334+1,0,IF(E1742<'1 Données d''entrée'!$C$333+'1 Données d''entrée'!$C$334+1,$B1761*('1 Données d''entrée'!$C$332*(1+'1 Données d''entrée'!$C$332)^'1 Données d''entrée'!$C$333)/((1+'1 Données d''entrée'!$C$332)^'1 Données d''entrée'!$C$333-1),0))","v":0},{"$f":"IF(F1742<'1 Données d''entrée'!$C$334+1,0,IF(F1742<'1 Données d''entrée'!$C$333+'1 Données d''entrée'!$C$334+1,$B1761*('1 Données d''entrée'!$C$332*(1+'1 Données d''entrée'!$C$332)^'1 Données d''entrée'!$C$333)/((1+'1 Données d''entrée'!$C$332)^'1 Données d''entrée'!$C$333-1),0))","v":0},{"$f":"IF(G1742<'1 Données d''entrée'!$C$334+1,0,IF(G1742<'1 Données d''entrée'!$C$333+'1 Données d''entrée'!$C$334+1,$B1761*('1 Données d''entrée'!$C$332*(1+'1 Données d''entrée'!$C$332)^'1 Données d''entrée'!$C$333)/((1+'1 Données d''entrée'!$C$332)^'1 Données d''entrée'!$C$333-1),0))","v":0},{"$f":"IF(H1742<'1 Données d''entrée'!$C$334+1,0,IF(H1742<'1 Données d''entrée'!$C$333+'1 Données d''entrée'!$C$334+1,$B1761*('1 Données d''entrée'!$C$332*(1+'1 Données d''entrée'!$C$332)^'1 Données d''entrée'!$C$333)/((1+'1 Données d''entrée'!$C$332)^'1 Données d''entrée'!$C$333-1),0))","v":0},{"$f":"IF(I1742<'1 Données d''entrée'!$C$334+1,0,IF(I1742<'1 Données d''entrée'!$C$333+'1 Données d''entrée'!$C$334+1,$B1761*('1 Données d''entrée'!$C$332*(1+'1 Données d''entrée'!$C$332)^'1 Données d''entrée'!$C$333)/((1+'1 Données d''entrée'!$C$332)^'1 Données d''entrée'!$C$333-1),0))","v":0},{"$f":"IF(J1742<'1 Données d''entrée'!$C$334+1,0,IF(J1742<'1 Données d''entrée'!$C$333+'1 Données d''entrée'!$C$334+1,$B1761*('1 Données d''entrée'!$C$332*(1+'1 Données d''entrée'!$C$332)^'1 Données d''entrée'!$C$333)/((1+'1 Données d''entrée'!$C$332)^'1 Données d''entrée'!$C$333-1),0))","v":0},{"$f":"IF(K1742<'1 Données d''entrée'!$C$334+1,0,IF(K1742<'1 Données d''entrée'!$C$333+'1 Données d''entrée'!$C$334+1,$B1761*('1 Données d''entrée'!$C$332*(1+'1 Données d''entrée'!$C$332)^'1 Données d''entrée'!$C$333)/((1+'1 Données d''entrée'!$C$332)^'1 Données d''entrée'!$C$333-1),0))","v":0},{"$f":"IF(L1742<'1 Données d''entrée'!$C$334+1,0,IF(L1742<'1 Données d''entrée'!$C$333+'1 Données d''entrée'!$C$334+1,$B1761*('1 Données d''entrée'!$C$332*(1+'1 Données d''entrée'!$C$332)^'1 Données d''entrée'!$C$333)/((1+'1 Données d''entrée'!$C$332)^'1 Données d''entrée'!$C$333-1),0))","v":0},{"$f":"IF(M1742<'1 Données d''entrée'!$C$334+1,0,IF(M1742<'1 Données d''entrée'!$C$333+'1 Données d''entrée'!$C$334+1,$B1761*('1 Données d''entrée'!$C$332*(1+'1 Données d''entrée'!$C$332)^'1 Données d''entrée'!$C$333)/((1+'1 Données d''entrée'!$C$332)^'1 Données d''entrée'!$C$333-1),0))","v":0},{"$f":"IF(N1742<'1 Données d''entrée'!$C$334+1,0,IF(N1742<'1 Données d''entrée'!$C$333+'1 Données d''entrée'!$C$334+1,$B1761*('1 Données d''entrée'!$C$332*(1+'1 Données d''entrée'!$C$332)^'1 Données d''entrée'!$C$333)/((1+'1 Données d''entrée'!$C$332)^'1 Données d''entrée'!$C$333-1),0))","v":0},{"$f":"IF(O1742<'1 Données d''entrée'!$C$334+1,0,IF(O1742<'1 Données d''entrée'!$C$333+'1 Données d''entrée'!$C$334+1,$B1761*('1 Données d''entrée'!$C$332*(1+'1 Données d''entrée'!$C$332)^'1 Données d''entrée'!$C$333)/((1+'1 Données d''entrée'!$C$332)^'1 Données d''entrée'!$C$333-1),0))","v":0},{"$f":"IF(P1742<'1 Données d''entrée'!$C$334+1,0,IF(P1742<'1 Données d''entrée'!$C$333+'1 Données d''entrée'!$C$334+1,$B1761*('1 Données d''entrée'!$C$332*(1+'1 Données d''entrée'!$C$332)^'1 Données d''entrée'!$C$333)/((1+'1 Données d''entrée'!$C$332)^'1 Données d''entrée'!$C$333-1),0))","v":0},{"$f":"IF(Q1742<'1 Données d''entrée'!$C$334+1,0,IF(Q1742<'1 Données d''entrée'!$C$333+'1 Données d''entrée'!$C$334+1,$B1761*('1 Données d''entrée'!$C$332*(1+'1 Données d''entrée'!$C$332)^'1 Données d''entrée'!$C$333)/((1+'1 Données d''entrée'!$C$332)^'1 Données d''entrée'!$C$333-1),0))","v":0},{"$f":"IF(R1742<'1 Données d''entrée'!$C$334+1,0,IF(R1742<'1 Données d''entrée'!$C$333+'1 Données d''entrée'!$C$334+1,$B1761*('1 Données d''entrée'!$C$332*(1+'1 Données d''entrée'!$C$332)^'1 Données d''entrée'!$C$333)/((1+'1 Données d''entrée'!$C$332)^'1 Données d''entrée'!$C$333-1),0))","v":0},{"$f":"IF(S1742<'1 Données d''entrée'!$C$334+1,0,IF(S1742<'1 Données d''entrée'!$C$333+'1 Données d''entrée'!$C$334+1,$B1761*('1 Données d''entrée'!$C$332*(1+'1 Données d''entrée'!$C$332)^'1 Données d''entrée'!$C$333)/((1+'1 Données d''entrée'!$C$332)^'1 Données d''entrée'!$C$333-1),0))","v":0},{"$f":"IF(T1742<'1 Données d''entrée'!$C$334+1,0,IF(T1742<'1 Données d''entrée'!$C$333+'1 Données d''entrée'!$C$334+1,$B1761*('1 Données d''entrée'!$C$332*(1+'1 Données d''entrée'!$C$332)^'1 Données d''entrée'!$C$333)/((1+'1 Données d''entrée'!$C$332)^'1 Données d''entrée'!$C$333-1),0))","v":0},{"$f":"IF(U1742<'1 Données d''entrée'!$C$334+1,0,IF(U1742<'1 Données d''entrée'!$C$333+'1 Données d''entrée'!$C$334+1,$B1761*('1 Données d''entrée'!$C$332*(1+'1 Données d''entrée'!$C$332)^'1 Données d''entrée'!$C$333)/((1+'1 Données d''entrée'!$C$332)^'1 Données d''entrée'!$C$333-1),0))","v":0},{"$f":"IF(V1742<'1 Données d''entrée'!$C$334+1,0,IF(V1742<'1 Données d''entrée'!$C$333+'1 Données d''entrée'!$C$334+1,$B1761*('1 Données d''entrée'!$C$332*(1+'1 Données d''entrée'!$C$332)^'1 Données d''entrée'!$C$333)/((1+'1 Données d''entrée'!$C$332)^'1 Données d''entrée'!$C$333-1),0))","v":0}]
["Paiement d'intérêt décroissant inclu dans l'annuité constante",0,{"$f":"IF('1 Données d''entrée'!$C$336=\"(=NON)\",IF(C1762>0,$B1761*((('1 Données d''entrée'!$C$332+1)^'1 Données d''entrée'!$C$333)-(1+'1 Données d''entrée'!$C$332)^('6 Financement'!C$54-1-'1 Données d''entrée'!$C$334))/((1+'1 Données d''entrée'!$C$332)^'1 Données d''entrée'!$C$333-1)*'1 Données d''entrée'!$C$332,0),IF(C1742<'1 Données d''entrée'!$C$334+1,'1 Données d''entrée'!$C$332*'6 Financement'!$B1761,IF(C1762>0,$B$73*((('1 Données d''entrée'!$C$332+1)^'1 Données d''entrée'!$C$333)-(1+'1 Données d''entrée'!$C$332)^('6 Financement'!C$54-1-'1 Données d''entrée'!$C$334))/((1+'1 Données d''entrée'!$C$332)^'1 Données d''entrée'!$C$333-1)*'1 Données d''entrée'!$C$332,0)))","v":0},{"$f":"IF('1 Données d''entrée'!$C$336=\"(=NON)\",IF(D1762>0,$B1761*((('1 Données d''entrée'!$C$332+1)^'1 Données d''entrée'!$C$333)-(1+'1 Données d''entrée'!$C$332)^('6 Financement'!D$54-1-'1 Données d''entrée'!$C$334))/((1+'1 Données d''entrée'!$C$332)^'1 Données d''entrée'!$C$333-1)*'1 Données d''entrée'!$C$332,0),IF(D1742<'1 Données d''entrée'!$C$334+1,'1 Données d''entrée'!$C$332*'6 Financement'!$B1761,IF(D1762>0,$B$73*((('1 Données d''entrée'!$C$332+1)^'1 Données d''entrée'!$C$333)-(1+'1 Données d''entrée'!$C$332)^('6 Financement'!D$54-1-'1 Données d''entrée'!$C$334))/((1+'1 Données d''entrée'!$C$332)^'1 Données d''entrée'!$C$333-1)*'1 Données d''entrée'!$C$332,0)))","v":0},{"$f":"IF('1 Données d''entrée'!$C$336=\"(=NON)\",IF(E1762>0,$B1761*((('1 Données d''entrée'!$C$332+1)^'1 Données d''entrée'!$C$333)-(1+'1 Données d''entrée'!$C$332)^('6 Financement'!E$54-1-'1 Données d''entrée'!$C$334))/((1+'1 Données d''entrée'!$C$332)^'1 Données d''entrée'!$C$333-1)*'1 Données d''entrée'!$C$332,0),IF(E1742<'1 Données d''entrée'!$C$334+1,'1 Données d''entrée'!$C$332*'6 Financement'!$B1761,IF(E1762>0,$B$73*((('1 Données d''entrée'!$C$332+1)^'1 Données d''entrée'!$C$333)-(1+'1 Données d''entrée'!$C$332)^('6 Financement'!E$54-1-'1 Données d''entrée'!$C$334))/((1+'1 Données d''entrée'!$C$332)^'1 Données d''entrée'!$C$333-1)*'1 Données d''entrée'!$C$332,0)))","v":0},{"$f":"IF('1 Données d''entrée'!$C$336=\"(=NON)\",IF(F1762>0,$B1761*((('1 Données d''entrée'!$C$332+1)^'1 Données d''entrée'!$C$333)-(1+'1 Données d''entrée'!$C$332)^('6 Financement'!F$54-1-'1 Données d''entrée'!$C$334))/((1+'1 Données d''entrée'!$C$332)^'1 Données d''entrée'!$C$333-1)*'1 Données d''entrée'!$C$332,0),IF(F1742<'1 Données d''entrée'!$C$334+1,'1 Données d''entrée'!$C$332*'6 Financement'!$B1761,IF(F1762>0,$B$73*((('1 Données d''entrée'!$C$332+1)^'1 Données d''entrée'!$C$333)-(1+'1 Données d''entrée'!$C$332)^('6 Financement'!F$54-1-'1 Données d''entrée'!$C$334))/((1+'1 Données d''entrée'!$C$332)^'1 Données d''entrée'!$C$333-1)*'1 Données d''entrée'!$C$332,0)))","v":0},{"$f":"IF('1 Données d''entrée'!$C$336=\"(=NON)\",IF(G1762>0,$B1761*((('1 Données d''entrée'!$C$332+1)^'1 Données d''entrée'!$C$333)-(1+'1 Données d''entrée'!$C$332)^('6 Financement'!G$54-1-'1 Données d''entrée'!$C$334))/((1+'1 Données d''entrée'!$C$332)^'1 Données d''entrée'!$C$333-1)*'1 Données d''entrée'!$C$332,0),IF(G1742<'1 Données d''entrée'!$C$334+1,'1 Données d''entrée'!$C$332*'6 Financement'!$B1761,IF(G1762>0,$B$73*((('1 Données d''entrée'!$C$332+1)^'1 Données d''entrée'!$C$333)-(1+'1 Données d''entrée'!$C$332)^('6 Financement'!G$54-1-'1 Données d''entrée'!$C$334))/((1+'1 Données d''entrée'!$C$332)^'1 Données d''entrée'!$C$333-1)*'1 Données d''entrée'!$C$332,0)))","v":0},{"$f":"IF('1 Données d''entrée'!$C$336=\"(=NON)\",IF(H1762>0,$B1761*((('1 Données d''entrée'!$C$332+1)^'1 Données d''entrée'!$C$333)-(1+'1 Données d''entrée'!$C$332)^('6 Financement'!H$54-1-'1 Données d''entrée'!$C$334))/((1+'1 Données d''entrée'!$C$332)^'1 Données d''entrée'!$C$333-1)*'1 Données d''entrée'!$C$332,0),IF(H1742<'1 Données d''entrée'!$C$334+1,'1 Données d''entrée'!$C$332*'6 Financement'!$B1761,IF(H1762>0,$B$73*((('1 Données d''entrée'!$C$332+1)^'1 Données d''entrée'!$C$333)-(1+'1 Données d''entrée'!$C$332)^('6 Financement'!H$54-1-'1 Données d''entrée'!$C$334))/((1+'1 Données d''entrée'!$C$332)^'1 Données d''entrée'!$C$333-1)*'1 Données d''entrée'!$C$332,0)))","v":0},{"$f":"IF('1 Données d''entrée'!$C$336=\"(=NON)\",IF(I1762>0,$B1761*((('1 Données d''entrée'!$C$332+1)^'1 Données d''entrée'!$C$333)-(1+'1 Données d''entrée'!$C$332)^('6 Financement'!I$54-1-'1 Données d''entrée'!$C$334))/((1+'1 Données d''entrée'!$C$332)^'1 Données d''entrée'!$C$333-1)*'1 Données d''entrée'!$C$332,0),IF(I1742<'1 Données d''entrée'!$C$334+1,'1 Données d''entrée'!$C$332*'6 Financement'!$B1761,IF(I1762>0,$B$73*((('1 Données d''entrée'!$C$332+1)^'1 Données d''entrée'!$C$333)-(1+'1 Données d''entrée'!$C$332)^('6 Financement'!I$54-1-'1 Données d''entrée'!$C$334))/((1+'1 Données d''entrée'!$C$332)^'1 Données d''entrée'!$C$333-1)*'1 Données d''entrée'!$C$332,0)))","v":0},{"$f":"IF('1 Données d''entrée'!$C$336=\"(=NON)\",IF(J1762>0,$B1761*((('1 Données d''entrée'!$C$332+1)^'1 Données d''entrée'!$C$333)-(1+'1 Données d''entrée'!$C$332)^('6 Financement'!J$54-1-'1 Données d''entrée'!$C$334))/((1+'1 Données d''entrée'!$C$332)^'1 Données d''entrée'!$C$333-1)*'1 Données d''entrée'!$C$332,0),IF(J1742<'1 Données d''entrée'!$C$334+1,'1 Données d''entrée'!$C$332*'6 Financement'!$B1761,IF(J1762>0,$B$73*((('1 Données d''entrée'!$C$332+1)^'1 Données d''entrée'!$C$333)-(1+'1 Données d''entrée'!$C$332)^('6 Financement'!J$54-1-'1 Données d''entrée'!$C$334))/((1+'1 Données d''entrée'!$C$332)^'1 Données d''entrée'!$C$333-1)*'1 Données d''entrée'!$C$332,0)))","v":0},{"$f":"IF('1 Données d''entrée'!$C$336=\"(=NON)\",IF(K1762>0,$B1761*((('1 Données d''entrée'!$C$332+1)^'1 Données d''entrée'!$C$333)-(1+'1 Données d''entrée'!$C$332)^('6 Financement'!K$54-1-'1 Données d''entrée'!$C$334))/((1+'1 Données d''entrée'!$C$332)^'1 Données d''entrée'!$C$333-1)*'1 Données d''entrée'!$C$332,0),IF(K1742<'1 Données d''entrée'!$C$334+1,'1 Données d''entrée'!$C$332*'6 Financement'!$B1761,IF(K1762>0,$B$73*((('1 Données d''entrée'!$C$332+1)^'1 Données d''entrée'!$C$333)-(1+'1 Données d''entrée'!$C$332)^('6 Financement'!K$54-1-'1 Données d''entrée'!$C$334))/((1+'1 Données d''entrée'!$C$332)^'1 Données d''entrée'!$C$333-1)*'1 Données d''entrée'!$C$332,0)))","v":0},{"$f":"IF('1 Données d''entrée'!$C$336=\"(=NON)\",IF(L1762>0,$B1761*((('1 Données d''entrée'!$C$332+1)^'1 Données d''entrée'!$C$333)-(1+'1 Données d''entrée'!$C$332)^('6 Financement'!L$54-1-'1 Données d''entrée'!$C$334))/((1+'1 Données d''entrée'!$C$332)^'1 Données d''entrée'!$C$333-1)*'1 Données d''entrée'!$C$332,0),IF(L1742<'1 Données d''entrée'!$C$334+1,'1 Données d''entrée'!$C$332*'6 Financement'!$B1761,IF(L1762>0,$B$73*((('1 Données d''entrée'!$C$332+1)^'1 Données d''entrée'!$C$333)-(1+'1 Données d''entrée'!$C$332)^('6 Financement'!L$54-1-'1 Données d''entrée'!$C$334))/((1+'1 Données d''entrée'!$C$332)^'1 Données d''entrée'!$C$333-1)*'1 Données d''entrée'!$C$332,0)))","v":0},{"$f":"IF('1 Données d''entrée'!$C$336=\"(=NON)\",IF(M1762>0,$B1761*((('1 Données d''entrée'!$C$332+1)^'1 Données d''entrée'!$C$333)-(1+'1 Données d''entrée'!$C$332)^('6 Financement'!M$54-1-'1 Données d''entrée'!$C$334))/((1+'1 Données d''entrée'!$C$332)^'1 Données d''entrée'!$C$333-1)*'1 Données d''entrée'!$C$332,0),IF(M1742<'1 Données d''entrée'!$C$334+1,'1 Données d''entrée'!$C$332*'6 Financement'!$B1761,IF(M1762>0,$B$73*((('1 Données d''entrée'!$C$332+1)^'1 Données d''entrée'!$C$333)-(1+'1 Données d''entrée'!$C$332)^('6 Financement'!M$54-1-'1 Données d''entrée'!$C$334))/((1+'1 Données d''entrée'!$C$332)^'1 Données d''entrée'!$C$333-1)*'1 Données d''entrée'!$C$332,0)))","v":0},{"$f":"IF('1 Données d''entrée'!$C$336=\"(=NON)\",IF(N1762>0,$B1761*((('1 Données d''entrée'!$C$332+1)^'1 Données d''entrée'!$C$333)-(1+'1 Données d''entrée'!$C$332)^('6 Financement'!N$54-1-'1 Données d''entrée'!$C$334))/((1+'1 Données d''entrée'!$C$332)^'1 Données d''entrée'!$C$333-1)*'1 Données d''entrée'!$C$332,0),IF(N1742<'1 Données d''entrée'!$C$334+1,'1 Données d''entrée'!$C$332*'6 Financement'!$B1761,IF(N1762>0,$B$73*((('1 Données d''entrée'!$C$332+1)^'1 Données d''entrée'!$C$333)-(1+'1 Données d''entrée'!$C$332)^('6 Financement'!N$54-1-'1 Données d''entrée'!$C$334))/((1+'1 Données d''entrée'!$C$332)^'1 Données d''entrée'!$C$333-1)*'1 Données d''entrée'!$C$332,0)))","v":0},{"$f":"IF('1 Données d''entrée'!$C$336=\"(=NON)\",IF(O1762>0,$B1761*((('1 Données d''entrée'!$C$332+1)^'1 Données d''entrée'!$C$333)-(1+'1 Données d''entrée'!$C$332)^('6 Financement'!O$54-1-'1 Données d''entrée'!$C$334))/((1+'1 Données d''entrée'!$C$332)^'1 Données d''entrée'!$C$333-1)*'1 Données d''entrée'!$C$332,0),IF(O1742<'1 Données d''entrée'!$C$334+1,'1 Données d''entrée'!$C$332*'6 Financement'!$B1761,IF(O1762>0,$B$73*((('1 Données d''entrée'!$C$332+1)^'1 Données d''entrée'!$C$333)-(1+'1 Données d''entrée'!$C$332)^('6 Financement'!O$54-1-'1 Données d''entrée'!$C$334))/((1+'1 Données d''entrée'!$C$332)^'1 Données d''entrée'!$C$333-1)*'1 Données d''entrée'!$C$332,0)))","v":0},{"$f":"IF('1 Données d''entrée'!$C$336=\"(=NON)\",IF(P1762>0,$B1761*((('1 Données d''entrée'!$C$332+1)^'1 Données d''entrée'!$C$333)-(1+'1 Données d''entrée'!$C$332)^('6 Financement'!P$54-1-'1 Données d''entrée'!$C$334))/((1+'1 Données d''entrée'!$C$332)^'1 Données d''entrée'!$C$333-1)*'1 Données d''entrée'!$C$332,0),IF(P1742<'1 Données d''entrée'!$C$334+1,'1 Données d''entrée'!$C$332*'6 Financement'!$B1761,IF(P1762>0,$B$73*((('1 Données d''entrée'!$C$332+1)^'1 Données d''entrée'!$C$333)-(1+'1 Données d''entrée'!$C$332)^('6 Financement'!P$54-1-'1 Données d''entrée'!$C$334))/((1+'1 Données d''entrée'!$C$332)^'1 Données d''entrée'!$C$333-1)*'1 Données d''entrée'!$C$332,0)))","v":0},{"$f":"IF('1 Données d''entrée'!$C$336=\"(=NON)\",IF(Q1762>0,$B1761*((('1 Données d''entrée'!$C$332+1)^'1 Données d''entrée'!$C$333)-(1+'1 Données d''entrée'!$C$332)^('6 Financement'!Q$54-1-'1 Données d''entrée'!$C$334))/((1+'1 Données d''entrée'!$C$332)^'1 Données d''entrée'!$C$333-1)*'1 Données d''entrée'!$C$332,0),IF(Q1742<'1 Données d''entrée'!$C$334+1,'1 Données d''entrée'!$C$332*'6 Financement'!$B1761,IF(Q1762>0,$B$73*((('1 Données d''entrée'!$C$332+1)^'1 Données d''entrée'!$C$333)-(1+'1 Données d''entrée'!$C$332)^('6 Financement'!Q$54-1-'1 Données d''entrée'!$C$334))/((1+'1 Données d''entrée'!$C$332)^'1 Données d''entrée'!$C$333-1)*'1 Données d''entrée'!$C$332,0)))","v":0},{"$f":"IF('1 Données d''entrée'!$C$336=\"(=NON)\",IF(R1762>0,$B1761*((('1 Données d''entrée'!$C$332+1)^'1 Données d''entrée'!$C$333)-(1+'1 Données d''entrée'!$C$332)^('6 Financement'!R$54-1-'1 Données d''entrée'!$C$334))/((1+'1 Données d''entrée'!$C$332)^'1 Données d''entrée'!$C$333-1)*'1 Données d''entrée'!$C$332,0),IF(R1742<'1 Données d''entrée'!$C$334+1,'1 Données d''entrée'!$C$332*'6 Financement'!$B1761,IF(R1762>0,$B$73*((('1 Données d''entrée'!$C$332+1)^'1 Données d''entrée'!$C$333)-(1+'1 Données d''entrée'!$C$332)^('6 Financement'!R$54-1-'1 Données d''entrée'!$C$334))/((1+'1 Données d''entrée'!$C$332)^'1 Données d''entrée'!$C$333-1)*'1 Données d''entrée'!$C$332,0)))","v":0},{"$f":"IF('1 Données d''entrée'!$C$336=\"(=NON)\",IF(S1762>0,$B1761*((('1 Données d''entrée'!$C$332+1)^'1 Données d''entrée'!$C$333)-(1+'1 Données d''entrée'!$C$332)^('6 Financement'!S$54-1-'1 Données d''entrée'!$C$334))/((1+'1 Données d''entrée'!$C$332)^'1 Données d''entrée'!$C$333-1)*'1 Données d''entrée'!$C$332,0),IF(S1742<'1 Données d''entrée'!$C$334+1,'1 Données d''entrée'!$C$332*'6 Financement'!$B1761,IF(S1762>0,$B$73*((('1 Données d''entrée'!$C$332+1)^'1 Données d''entrée'!$C$333)-(1+'1 Données d''entrée'!$C$332)^('6 Financement'!S$54-1-'1 Données d''entrée'!$C$334))/((1+'1 Données d''entrée'!$C$332)^'1 Données d''entrée'!$C$333-1)*'1 Données d''entrée'!$C$332,0)))","v":0},{"$f":"IF('1 Données d''entrée'!$C$336=\"(=NON)\",IF(T1762>0,$B1761*((('1 Données d''entrée'!$C$332+1)^'1 Données d''entrée'!$C$333)-(1+'1 Données d''entrée'!$C$332)^('6 Financement'!T$54-1-'1 Données d''entrée'!$C$334))/((1+'1 Données d''entrée'!$C$332)^'1 Données d''entrée'!$C$333-1)*'1 Données d''entrée'!$C$332,0),IF(T1742<'1 Données d''entrée'!$C$334+1,'1 Données d''entrée'!$C$332*'6 Financement'!$B1761,IF(T1762>0,$B$73*((('1 Données d''entrée'!$C$332+1)^'1 Données d''entrée'!$C$333)-(1+'1 Données d''entrée'!$C$332)^('6 Financement'!T$54-1-'1 Données d''entrée'!$C$334))/((1+'1 Données d''entrée'!$C$332)^'1 Données d''entrée'!$C$333-1)*'1 Données d''entrée'!$C$332,0)))","v":0},{"$f":"IF('1 Données d''entrée'!$C$336=\"(=NON)\",IF(U1762>0,$B1761*((('1 Données d''entrée'!$C$332+1)^'1 Données d''entrée'!$C$333)-(1+'1 Données d''entrée'!$C$332)^('6 Financement'!U$54-1-'1 Données d''entrée'!$C$334))/((1+'1 Données d''entrée'!$C$332)^'1 Données d''entrée'!$C$333-1)*'1 Données d''entrée'!$C$332,0),IF(U1742<'1 Données d''entrée'!$C$334+1,'1 Données d''entrée'!$C$332*'6 Financement'!$B1761,IF(U1762>0,$B$73*((('1 Données d''entrée'!$C$332+1)^'1 Données d''entrée'!$C$333)-(1+'1 Données d''entrée'!$C$332)^('6 Financement'!U$54-1-'1 Données d''entrée'!$C$334))/((1+'1 Données d''entrée'!$C$332)^'1 Données d''entrée'!$C$333-1)*'1 Données d''entrée'!$C$332,0)))","v":0},{"$f":"IF('1 Données d''entrée'!$C$336=\"(=NON)\",IF(V1762>0,$B1761*((('1 Données d''entrée'!$C$332+1)^'1 Données d''entrée'!$C$333)-(1+'1 Données d''entrée'!$C$332)^('6 Financement'!V$54-1-'1 Données d''entrée'!$C$334))/((1+'1 Données d''entrée'!$C$332)^'1 Données d''entrée'!$C$333-1)*'1 Données d''entrée'!$C$332,0),IF(V1742<'1 Données d''entrée'!$C$334+1,'1 Données d''entrée'!$C$332*'6 Financement'!$B1761,IF(V1762>0,$B$73*((('1 Données d''entrée'!$C$332+1)^'1 Données d''entrée'!$C$333)-(1+'1 Données d''entrée'!$C$332)^('6 Financement'!V$54-1-'1 Données d''entrée'!$C$334))/((1+'1 Données d''entrée'!$C$332)^'1 Données d''entrée'!$C$333-1)*'1 Données d''entrée'!$C$332,0)))","v":0}]
["Paiements d'intérêt avec des intérêts composés en cas d'absence des paiements dans la période de grâce",0,0,{"$f":"IF(D1742='1 Données d''entrée'!$C$334+1,IF('1 Données d''entrée'!$C$336=\"(=NON)\",($B1761*'1 Données d''entrée'!$C$332)*((('1 Données d''entrée'!$C$332+1)^'1 Données d''entrée'!$C$334-1)/('1 Données d''entrée'!$C$332))*(1+'1 Données d''entrée'!$C$332),0),0)","v":0},{"$f":"IF(E1742='1 Données d''entrée'!$C$334+1,IF('1 Données d''entrée'!$C$336=\"(=NON)\",($B1761*'1 Données d''entrée'!$C$332)*((('1 Données d''entrée'!$C$332+1)^'1 Données d''entrée'!$C$334-1)/('1 Données d''entrée'!$C$332))*(1+'1 Données d''entrée'!$C$332),0),0)","v":0},{"$f":"IF(F1742='1 Données d''entrée'!$C$334+1,IF('1 Données d''entrée'!$C$336=\"(=NON)\",($B1761*'1 Données d''entrée'!$C$332)*((('1 Données d''entrée'!$C$332+1)^'1 Données d''entrée'!$C$334-1)/('1 Données d''entrée'!$C$332))*(1+'1 Données d''entrée'!$C$332),0),0)","v":0},{"$f":"IF(G1742='1 Données d''entrée'!$C$334+1,IF('1 Données d''entrée'!$C$336=\"(=NON)\",($B1761*'1 Données d''entrée'!$C$332)*((('1 Données d''entrée'!$C$332+1)^'1 Données d''entrée'!$C$334-1)/('1 Données d''entrée'!$C$332))*(1+'1 Données d''entrée'!$C$332),0),0)","v":0},{"$f":"IF(H1742='1 Données d''entrée'!$C$334+1,IF('1 Données d''entrée'!$C$336=\"(=NON)\",($B1761*'1 Données d''entrée'!$C$332)*((('1 Données d''entrée'!$C$332+1)^'1 Données d''entrée'!$C$334-1)/('1 Données d''entrée'!$C$332))*(1+'1 Données d''entrée'!$C$332),0),0)","v":0},{"$f":"IF(I1742='1 Données d''entrée'!$C$334+1,IF('1 Données d''entrée'!$C$336=\"(=NON)\",($B1761*'1 Données d''entrée'!$C$332)*((('1 Données d''entrée'!$C$332+1)^'1 Données d''entrée'!$C$334-1)/('1 Données d''entrée'!$C$332))*(1+'1 Données d''entrée'!$C$332),0),0)","v":0},{"$f":"IF(J1742='1 Données d''entrée'!$C$334+1,IF('1 Données d''entrée'!$C$336=\"(=NON)\",($B1761*'1 Données d''entrée'!$C$332)*((('1 Données d''entrée'!$C$332+1)^'1 Données d''entrée'!$C$334-1)/('1 Données d''entrée'!$C$332))*(1+'1 Données d''entrée'!$C$332),0),0)","v":0},{"$f":"IF(K1742='1 Données d''entrée'!$C$334+1,IF('1 Données d''entrée'!$C$336=\"(=NON)\",($B1761*'1 Données d''entrée'!$C$332)*((('1 Données d''entrée'!$C$332+1)^'1 Données d''entrée'!$C$334-1)/('1 Données d''entrée'!$C$332))*(1+'1 Données d''entrée'!$C$332),0),0)","v":0},{"$f":"IF(L1742='1 Données d''entrée'!$C$334+1,IF('1 Données d''entrée'!$C$336=\"(=NON)\",($B1761*'1 Données d''entrée'!$C$332)*((('1 Données d''entrée'!$C$332+1)^'1 Données d''entrée'!$C$334-1)/('1 Données d''entrée'!$C$332))*(1+'1 Données d''entrée'!$C$332),0),0)","v":0},{"$f":"IF(M1742='1 Données d''entrée'!$C$334+1,IF('1 Données d''entrée'!$C$336=\"(=NON)\",($B1761*'1 Données d''entrée'!$C$332)*((('1 Données d''entrée'!$C$332+1)^'1 Données d''entrée'!$C$334-1)/('1 Données d''entrée'!$C$332))*(1+'1 Données d''entrée'!$C$332),0),0)","v":0},{"$f":"IF(N1742='1 Données d''entrée'!$C$334+1,IF('1 Données d''entrée'!$C$336=\"(=NON)\",($B1761*'1 Données d''entrée'!$C$332)*((('1 Données d''entrée'!$C$332+1)^'1 Données d''entrée'!$C$334-1)/('1 Données d''entrée'!$C$332))*(1+'1 Données d''entrée'!$C$332),0),0)","v":0},{"$f":"IF(O1742='1 Données d''entrée'!$C$334+1,IF('1 Données d''entrée'!$C$336=\"(=NON)\",($B1761*'1 Données d''entrée'!$C$332)*((('1 Données d''entrée'!$C$332+1)^'1 Données d''entrée'!$C$334-1)/('1 Données d''entrée'!$C$332))*(1+'1 Données d''entrée'!$C$332),0),0)","v":0},{"$f":"IF(P1742='1 Données d''entrée'!$C$334+1,IF('1 Données d''entrée'!$C$336=\"(=NON)\",($B1761*'1 Données d''entrée'!$C$332)*((('1 Données d''entrée'!$C$332+1)^'1 Données d''entrée'!$C$334-1)/('1 Données d''entrée'!$C$332))*(1+'1 Données d''entrée'!$C$332),0),0)","v":0},{"$f":"IF(Q1742='1 Données d''entrée'!$C$334+1,IF('1 Données d''entrée'!$C$336=\"(=NON)\",($B1761*'1 Données d''entrée'!$C$332)*((('1 Données d''entrée'!$C$332+1)^'1 Données d''entrée'!$C$334-1)/('1 Données d''entrée'!$C$332))*(1+'1 Données d''entrée'!$C$332),0),0)","v":0},{"$f":"IF(R1742='1 Données d''entrée'!$C$334+1,IF('1 Données d''entrée'!$C$336=\"(=NON)\",($B1761*'1 Données d''entrée'!$C$332)*((('1 Données d''entrée'!$C$332+1)^'1 Données d''entrée'!$C$334-1)/('1 Données d''entrée'!$C$332))*(1+'1 Données d''entrée'!$C$332),0),0)","v":0},{"$f":"IF(S1742='1 Données d''entrée'!$C$334+1,IF('1 Données d''entrée'!$C$336=\"(=NON)\",($B1761*'1 Données d''entrée'!$C$332)*((('1 Données d''entrée'!$C$332+1)^'1 Données d''entrée'!$C$334-1)/('1 Données d''entrée'!$C$332))*(1+'1 Données d''entrée'!$C$332),0),0)","v":0},{"$f":"IF(T1742='1 Données d''entrée'!$C$334+1,IF('1 Données d''entrée'!$C$336=\"(=NON)\",($B1761*'1 Données d''entrée'!$C$332)*((('1 Données d''entrée'!$C$332+1)^'1 Données d''entrée'!$C$334-1)/('1 Données d''entrée'!$C$332))*(1+'1 Données d''entrée'!$C$332),0),0)","v":0},{"$f":"IF(U1742='1 Données d''entrée'!$C$334+1,IF('1 Données d''entrée'!$C$336=\"(=NON)\",($B1761*'1 Données d''entrée'!$C$332)*((('1 Données d''entrée'!$C$332+1)^'1 Données d''entrée'!$C$334-1)/('1 Données d''entrée'!$C$332))*(1+'1 Données d''entrée'!$C$332),0),0)","v":0},{"$f":"IF(V1742='1 Données d''entrée'!$C$334+1,IF('1 Données d''entrée'!$C$336=\"(=NON)\",($B1761*'1 Données d''entrée'!$C$332)*((('1 Données d''entrée'!$C$332+1)^'1 Données d''entrée'!$C$334-1)/('1 Données d''entrée'!$C$332))*(1+'1 Données d''entrée'!$C$332),0),0)","v":0}]
[]
["Fonds d'autres donneurs / investisseurs - Subvention",{"$f":"'1 Données d''entrée'!$B$307","v":0}]
["Fonds d'autre donneurs / investisseurs - Prêt; Option 1: Remboursement du principal fractionné",{"$f":"'1 Données d''entrée'!$B$319","v":0},"% de prêt total"]
["Réception et montant restant",{"$f":"'1 Données d''entrée'!$B$306*'1 Données d''entrée'!$B$319+'1 Données d''entrée'!$B$306*'1 Données d''entrée'!$C$316","v":0},{"$f":"B1768-C1769","v":0},{"$f":"C1768-D1769","v":0},0,0,0,0,0,0,0,0,0,0,0,0,0,0,0,0,0,0]
["Remboursement du principal",0,{"$f":"IF(C1742<'1 Données d''entrée'!$C$312+1,0,IF(C1742<'1 Données d''entrée'!$C$312+'1 Données d''entrée'!$C$311+1,($B1768/'1 Données d''entrée'!$C$311),0))","v":0},{"$f":"IF(D1742<'1 Données d''entrée'!$C$312+1,0,IF(D1742<'1 Données d''entrée'!$C$312+'1 Données d''entrée'!$C$311+1,($B1768/'1 Données d''entrée'!$C$311),0))","v":0},{"$f":"IF(E1742<'1 Données d''entrée'!$C$312+1,0,IF(E1742<'1 Données d''entrée'!$C$312+'1 Données d''entrée'!$C$311+1,($B1768/'1 Données d''entrée'!$C$311),0))","v":0},{"$f":"IF(F1742<'1 Données d''entrée'!$C$312+1,0,IF(F1742<'1 Données d''entrée'!$C$312+'1 Données d''entrée'!$C$311+1,($B1768/'1 Données d''entrée'!$C$311),0))","v":0},{"$f":"IF(G1742<'1 Données d''entrée'!$C$312+1,0,IF(G1742<'1 Données d''entrée'!$C$312+'1 Données d''entrée'!$C$311+1,($B1768/'1 Données d''entrée'!$C$311),0))","v":0},{"$f":"IF(H1742<'1 Données d''entrée'!$C$312+1,0,IF(H1742<'1 Données d''entrée'!$C$312+'1 Données d''entrée'!$C$311+1,($B1768/'1 Données d''entrée'!$C$311),0))","v":0},{"$f":"IF(I1742<'1 Données d''entrée'!$C$312+1,0,IF(I1742<'1 Données d''entrée'!$C$312+'1 Données d''entrée'!$C$311+1,($B1768/'1 Données d''entrée'!$C$311),0))","v":0},{"$f":"IF(J1742<'1 Données d''entrée'!$C$312+1,0,IF(J1742<'1 Données d''entrée'!$C$312+'1 Données d''entrée'!$C$311+1,($B1768/'1 Données d''entrée'!$C$311),0))","v":0},{"$f":"IF(K1742<'1 Données d''entrée'!$C$312+1,0,IF(K1742<'1 Données d''entrée'!$C$312+'1 Données d''entrée'!$C$311+1,($B1768/'1 Données d''entrée'!$C$311),0))","v":0},{"$f":"IF(L1742<'1 Données d''entrée'!$C$312+1,0,IF(L1742<'1 Données d''entrée'!$C$312+'1 Données d''entrée'!$C$311+1,($B1768/'1 Données d''entrée'!$C$311),0))","v":0},{"$f":"IF(M1742<'1 Données d''entrée'!$C$312+1,0,IF(M1742<'1 Données d''entrée'!$C$312+'1 Données d''entrée'!$C$311+1,($B1768/'1 Données d''entrée'!$C$311),0))","v":0},{"$f":"IF(N1742<'1 Données d''entrée'!$C$312+1,0,IF(N1742<'1 Données d''entrée'!$C$312+'1 Données d''entrée'!$C$311+1,($B1768/'1 Données d''entrée'!$C$311),0))","v":0},{"$f":"IF(O1742<'1 Données d''entrée'!$C$312+1,0,IF(O1742<'1 Données d''entrée'!$C$312+'1 Données d''entrée'!$C$311+1,($B1768/'1 Données d''entrée'!$C$311),0))","v":0},{"$f":"IF(P1742<'1 Données d''entrée'!$C$312+1,0,IF(P1742<'1 Données d''entrée'!$C$312+'1 Données d''entrée'!$C$311+1,($B1768/'1 Données d''entrée'!$C$311),0))","v":0},{"$f":"IF(Q1742<'1 Données d''entrée'!$C$312+1,0,IF(Q1742<'1 Données d''entrée'!$C$312+'1 Données d''entrée'!$C$311+1,($B1768/'1 Données d''entrée'!$C$311),0))","v":0},{"$f":"IF(R1742<'1 Données d''entrée'!$C$312+1,0,IF(R1742<'1 Données d''entrée'!$C$312+'1 Données d''entrée'!$C$311+1,($B1768/'1 Données d''entrée'!$C$311),0))","v":0},{"$f":"IF(S1742<'1 Données d''entrée'!$C$312+1,0,IF(S1742<'1 Données d''entrée'!$C$312+'1 Données d''entrée'!$C$311+1,($B1768/'1 Données d''entrée'!$C$311),0))","v":0},{"$f":"IF(T1742<'1 Données d''entrée'!$C$312+1,0,IF(T1742<'1 Données d''entrée'!$C$312+'1 Données d''entrée'!$C$311+1,($B1768/'1 Données d''entrée'!$C$311),0))","v":0},{"$f":"IF(U1742<'1 Données d''entrée'!$C$312+1,0,IF(U1742<'1 Données d''entrée'!$C$312+'1 Données d''entrée'!$C$311+1,($B1768/'1 Données d''entrée'!$C$311),0))","v":0},{"$f":"IF(V1742<'1 Données d''entrée'!$C$312+1,0,IF(V1742<'1 Données d''entrée'!$C$312+'1 Données d''entrée'!$C$311+1,($B1768/'1 Données d''entrée'!$C$311),0))","v":0}]
["Paiement d'intérêts",0,{"$f":"IF('1 Données d''entrée'!$C$314=\"(=NON)\",IF(C1742<'1 Données d''entrée'!$C$312+1,0,B1768*'1 Données d''entrée'!$C$310),B1768*'1 Données d''entrée'!$C$310)","v":0},{"$f":"IF('1 Données d''entrée'!$C$314=\"(=NON)\",IF(D1742<'1 Données d''entrée'!$C$312+1,0,C1768*'1 Données d''entrée'!$C$310),C1768*'1 Données d''entrée'!$C$310)","v":0},{"$f":"IF('1 Données d''entrée'!$C$314=\"(=NON)\",IF(E1742<'1 Données d''entrée'!$C$312+1,0,D1768*'1 Données d''entrée'!$C$310),D1768*'1 Données d''entrée'!$C$310)","v":0},{"$f":"IF('1 Données d''entrée'!$C$314=\"(=NON)\",IF(F1742<'1 Données d''entrée'!$C$312+1,0,E1768*'1 Données d''entrée'!$C$310),E1768*'1 Données d''entrée'!$C$310)","v":0},{"$f":"IF('1 Données d''entrée'!$C$314=\"(=NON)\",IF(G1742<'1 Données d''entrée'!$C$312+1,0,F1768*'1 Données d''entrée'!$C$310),F1768*'1 Données d''entrée'!$C$310)","v":0},{"$f":"IF('1 Données d''entrée'!$C$314=\"(=NON)\",IF(H1742<'1 Données d''entrée'!$C$312+1,0,G1768*'1 Données d''entrée'!$C$310),G1768*'1 Données d''entrée'!$C$310)","v":0},{"$f":"IF('1 Données d''entrée'!$C$314=\"(=NON)\",IF(I1742<'1 Données d''entrée'!$C$312+1,0,H1768*'1 Données d''entrée'!$C$310),H1768*'1 Données d''entrée'!$C$310)","v":0},{"$f":"IF('1 Données d''entrée'!$C$314=\"(=NON)\",IF(J1742<'1 Données d''entrée'!$C$312+1,0,I1768*'1 Données d''entrée'!$C$310),I1768*'1 Données d''entrée'!$C$310)","v":0},{"$f":"IF('1 Données d''entrée'!$C$314=\"(=NON)\",IF(K1742<'1 Données d''entrée'!$C$312+1,0,J1768*'1 Données d''entrée'!$C$310),J1768*'1 Données d''entrée'!$C$310)","v":0},{"$f":"IF('1 Données d''entrée'!$C$314=\"(=NON)\",IF(L1742<'1 Données d''entrée'!$C$312+1,0,K1768*'1 Données d''entrée'!$C$310),K1768*'1 Données d''entrée'!$C$310)","v":0},{"$f":"IF('1 Données d''entrée'!$C$314=\"(=NON)\",IF(M1742<'1 Données d''entrée'!$C$312+1,0,L1768*'1 Données d''entrée'!$C$310),L1768*'1 Données d''entrée'!$C$310)","v":0},{"$f":"IF('1 Données d''entrée'!$C$314=\"(=NON)\",IF(N1742<'1 Données d''entrée'!$C$312+1,0,M1768*'1 Données d''entrée'!$C$310),M1768*'1 Données d''entrée'!$C$310)","v":0},{"$f":"IF('1 Données d''entrée'!$C$314=\"(=NON)\",IF(O1742<'1 Données d''entrée'!$C$312+1,0,N1768*'1 Données d''entrée'!$C$310),N1768*'1 Données d''entrée'!$C$310)","v":0},{"$f":"IF('1 Données d''entrée'!$C$314=\"(=NON)\",IF(P1742<'1 Données d''entrée'!$C$312+1,0,O1768*'1 Données d''entrée'!$C$310),O1768*'1 Données d''entrée'!$C$310)","v":0},{"$f":"IF('1 Données d''entrée'!$C$314=\"(=NON)\",IF(Q1742<'1 Données d''entrée'!$C$312+1,0,P1768*'1 Données d''entrée'!$C$310),P1768*'1 Données d''entrée'!$C$310)","v":0},{"$f":"IF('1 Données d''entrée'!$C$314=\"(=NON)\",IF(R1742<'1 Données d''entrée'!$C$312+1,0,Q1768*'1 Données d''entrée'!$C$310),Q1768*'1 Données d''entrée'!$C$310)","v":0},{"$f":"IF('1 Données d''entrée'!$C$314=\"(=NON)\",IF(S1742<'1 Données d''entrée'!$C$312+1,0,R1768*'1 Données d''entrée'!$C$310),R1768*'1 Données d''entrée'!$C$310)","v":0},{"$f":"IF('1 Données d''entrée'!$C$314=\"(=NON)\",IF(T1742<'1 Données d''entrée'!$C$312+1,0,S1768*'1 Données d''entrée'!$C$310),S1768*'1 Données d''entrée'!$C$310)","v":0},{"$f":"IF('1 Données d''entrée'!$C$314=\"(=NON)\",IF(U1742<'1 Données d''entrée'!$C$312+1,0,T1768*'1 Données d''entrée'!$C$310),T1768*'1 Données d''entrée'!$C$310)","v":0},{"$f":"IF('1 Données d''entrée'!$C$314=\"(=NON)\",IF(V1742<'1 Données d''entrée'!$C$312+1,0,U1768*'1 Données d''entrée'!$C$310),U1768*'1 Données d''entrée'!$C$310)","v":0}]
["Paiements d'intérêt avec des intérêts composés en cas d'absence des paiements dans la période de grâce",0,0,{"$f":"IF(D1742='1 Données d''entrée'!$C$312+1,IF('1 Données d''entrée'!$C$314=\"(=NON)\",($B1768*'1 Données d''entrée'!$C$310)*((('1 Données d''entrée'!$C$310+1)^'1 Données d''entrée'!$C$312-1)/('1 Données d''entrée'!$C$310))*(1+'1 Données d''entrée'!$C$310),0),0)","v":0},{"$f":"IF(E1742='1 Données d''entrée'!$C$312+1,IF('1 Données d''entrée'!$C$314=\"(=NON)\",($B1768*'1 Données d''entrée'!$C$310)*((('1 Données d''entrée'!$C$310+1)^'1 Données d''entrée'!$C$312-1)/('1 Données d''entrée'!$C$310))*(1+'1 Données d''entrée'!$C$310),0),0)","v":0},{"$f":"IF(F1742='1 Données d''entrée'!$C$312+1,IF('1 Données d''entrée'!$C$314=\"(=NON)\",($B1768*'1 Données d''entrée'!$C$310)*((('1 Données d''entrée'!$C$310+1)^'1 Données d''entrée'!$C$312-1)/('1 Données d''entrée'!$C$310))*(1+'1 Données d''entrée'!$C$310),0),0)","v":0},{"$f":"IF(G1742='1 Données d''entrée'!$C$312+1,IF('1 Données d''entrée'!$C$314=\"(=NON)\",($B1768*'1 Données d''entrée'!$C$310)*((('1 Données d''entrée'!$C$310+1)^'1 Données d''entrée'!$C$312-1)/('1 Données d''entrée'!$C$310))*(1+'1 Données d''entrée'!$C$310),0),0)","v":0},{"$f":"IF(H1742='1 Données d''entrée'!$C$312+1,IF('1 Données d''entrée'!$C$314=\"(=NON)\",($B1768*'1 Données d''entrée'!$C$310)*((('1 Données d''entrée'!$C$310+1)^'1 Données d''entrée'!$C$312-1)/('1 Données d''entrée'!$C$310))*(1+'1 Données d''entrée'!$C$310),0),0)","v":0},{"$f":"IF(I1742='1 Données d''entrée'!$C$312+1,IF('1 Données d''entrée'!$C$314=\"(=NON)\",($B1768*'1 Données d''entrée'!$C$310)*((('1 Données d''entrée'!$C$310+1)^'1 Données d''entrée'!$C$312-1)/('1 Données d''entrée'!$C$310))*(1+'1 Données d''entrée'!$C$310),0),0)","v":0},{"$f":"IF(J1742='1 Données d''entrée'!$C$312+1,IF('1 Données d''entrée'!$C$314=\"(=NON)\",($B1768*'1 Données d''entrée'!$C$310)*((('1 Données d''entrée'!$C$310+1)^'1 Données d''entrée'!$C$312-1)/('1 Données d''entrée'!$C$310))*(1+'1 Données d''entrée'!$C$310),0),0)","v":0},{"$f":"IF(K1742='1 Données d''entrée'!$C$312+1,IF('1 Données d''entrée'!$C$314=\"(=NON)\",($B1768*'1 Données d''entrée'!$C$310)*((('1 Données d''entrée'!$C$310+1)^'1 Données d''entrée'!$C$312-1)/('1 Données d''entrée'!$C$310))*(1+'1 Données d''entrée'!$C$310),0),0)","v":0},{"$f":"IF(L1742='1 Données d''entrée'!$C$312+1,IF('1 Données d''entrée'!$C$314=\"(=NON)\",($B1768*'1 Données d''entrée'!$C$310)*((('1 Données d''entrée'!$C$310+1)^'1 Données d''entrée'!$C$312-1)/('1 Données d''entrée'!$C$310))*(1+'1 Données d''entrée'!$C$310),0),0)","v":0},{"$f":"IF(M1742='1 Données d''entrée'!$C$312+1,IF('1 Données d''entrée'!$C$314=\"(=NON)\",($B1768*'1 Données d''entrée'!$C$310)*((('1 Données d''entrée'!$C$310+1)^'1 Données d''entrée'!$C$312-1)/('1 Données d''entrée'!$C$310))*(1+'1 Données d''entrée'!$C$310),0),0)","v":0},{"$f":"IF(N1742='1 Données d''entrée'!$C$312+1,IF('1 Données d''entrée'!$C$314=\"(=NON)\",($B1768*'1 Données d''entrée'!$C$310)*((('1 Données d''entrée'!$C$310+1)^'1 Données d''entrée'!$C$312-1)/('1 Données d''entrée'!$C$310))*(1+'1 Données d''entrée'!$C$310),0),0)","v":0},{"$f":"IF(O1742='1 Données d''entrée'!$C$312+1,IF('1 Données d''entrée'!$C$314=\"(=NON)\",($B1768*'1 Données d''entrée'!$C$310)*((('1 Données d''entrée'!$C$310+1)^'1 Données d''entrée'!$C$312-1)/('1 Données d''entrée'!$C$310))*(1+'1 Données d''entrée'!$C$310),0),0)","v":0},{"$f":"IF(P1742='1 Données d''entrée'!$C$312+1,IF('1 Données d''entrée'!$C$314=\"(=NON)\",($B1768*'1 Données d''entrée'!$C$310)*((('1 Données d''entrée'!$C$310+1)^'1 Données d''entrée'!$C$312-1)/('1 Données d''entrée'!$C$310))*(1+'1 Données d''entrée'!$C$310),0),0)","v":0},{"$f":"IF(Q1742='1 Données d''entrée'!$C$312+1,IF('1 Données d''entrée'!$C$314=\"(=NON)\",($B1768*'1 Données d''entrée'!$C$310)*((('1 Données d''entrée'!$C$310+1)^'1 Données d''entrée'!$C$312-1)/('1 Données d''entrée'!$C$310))*(1+'1 Données d''entrée'!$C$310),0),0)","v":0},{"$f":"IF(R1742='1 Données d''entrée'!$C$312+1,IF('1 Données d''entrée'!$C$314=\"(=NON)\",($B1768*'1 Données d''entrée'!$C$310)*((('1 Données d''entrée'!$C$310+1)^'1 Données d''entrée'!$C$312-1)/('1 Données d''entrée'!$C$310))*(1+'1 Données d''entrée'!$C$310),0),0)","v":0},{"$f":"IF(S1742='1 Données d''entrée'!$C$312+1,IF('1 Données d''entrée'!$C$314=\"(=NON)\",($B1768*'1 Données d''entrée'!$C$310)*((('1 Données d''entrée'!$C$310+1)^'1 Données d''entrée'!$C$312-1)/('1 Données d''entrée'!$C$310))*(1+'1 Données d''entrée'!$C$310),0),0)","v":0},{"$f":"IF(T1742='1 Données d''entrée'!$C$312+1,IF('1 Données d''entrée'!$C$314=\"(=NON)\",($B1768*'1 Données d''entrée'!$C$310)*((('1 Données d''entrée'!$C$310+1)^'1 Données d''entrée'!$C$312-1)/('1 Données d''entrée'!$C$310))*(1+'1 Données d''entrée'!$C$310),0),0)","v":0},{"$f":"IF(U1742='1 Données d''entrée'!$C$312+1,IF('1 Données d''entrée'!$C$314=\"(=NON)\",($B1768*'1 Données d''entrée'!$C$310)*((('1 Données d''entrée'!$C$310+1)^'1 Données d''entrée'!$C$312-1)/('1 Données d''entrée'!$C$310))*(1+'1 Données d''entrée'!$C$310),0),0)","v":0},{"$f":"IF(V1742='1 Données d''entrée'!$C$312+1,IF('1 Données d''entrée'!$C$314=\"(=NON)\",($B1768*'1 Données d''entrée'!$C$310)*((('1 Données d''entrée'!$C$310+1)^'1 Données d''entrée'!$C$312-1)/('1 Données d''entrée'!$C$310))*(1+'1 Données d''entrée'!$C$310),0),0)","v":0}]
["Fonds d'autre donneurs / investisseurs - Prêt; Option 2: Remboursement du principal final",{"$f":"'1 Données d''entrée'!$B$320","v":0},"% de prêt total"]
["Réception et montant restant",{"$f":"'1 Données d''entrée'!$B$306*'1 Données d''entrée'!$B$320+'1 Données d''entrée'!$B$306*'1 Données d''entrée'!$C$316","v":0},{"$f":"B1773-C1774","v":0},{"$f":"C1773-D1774","v":0},0,0,0,0,0,0,0,0,0,0,0,0,0,0,0,0,0,0]
["Remboursement du principal",0,{"$f":"IF('1 Données d''entrée'!$C$311+'1 Données d''entrée'!$C$312=C1742,'6 Financement'!$B$85,0)","v":0},{"$f":"IF('1 Données d''entrée'!$C$311+'1 Données d''entrée'!$C$312=D1742,'6 Financement'!$B$85,0)","v":0},{"$f":"IF('1 Données d''entrée'!$C$311+'1 Données d''entrée'!$C$312=E1742,'6 Financement'!$B$85,0)","v":0},{"$f":"IF('1 Données d''entrée'!$C$311+'1 Données d''entrée'!$C$312=F1742,'6 Financement'!$B$85,0)","v":0},{"$f":"IF('1 Données d''entrée'!$C$311+'1 Données d''entrée'!$C$312=G1742,'6 Financement'!$B$85,0)","v":0},{"$f":"IF('1 Données d''entrée'!$C$311+'1 Données d''entrée'!$C$312=H1742,'6 Financement'!$B$85,0)","v":0},{"$f":"IF('1 Données d''entrée'!$C$311+'1 Données d''entrée'!$C$312=I1742,'6 Financement'!$B$85,0)","v":0},{"$f":"IF('1 Données d''entrée'!$C$311+'1 Données d''entrée'!$C$312=J1742,'6 Financement'!$B$85,0)","v":0},{"$f":"IF('1 Données d''entrée'!$C$311+'1 Données d''entrée'!$C$312=K1742,'6 Financement'!$B$85,0)","v":0},{"$f":"IF('1 Données d''entrée'!$C$311+'1 Données d''entrée'!$C$312=L1742,'6 Financement'!$B$85,0)","v":0},{"$f":"IF('1 Données d''entrée'!$C$311+'1 Données d''entrée'!$C$312=M1742,'6 Financement'!$B$85,0)","v":0},{"$f":"IF('1 Données d''entrée'!$C$311+'1 Données d''entrée'!$C$312=N1742,'6 Financement'!$B$85,0)","v":0},{"$f":"IF('1 Données d''entrée'!$C$311+'1 Données d''entrée'!$C$312=O1742,'6 Financement'!$B$85,0)","v":0},{"$f":"IF('1 Données d''entrée'!$C$311+'1 Données d''entrée'!$C$312=P1742,'6 Financement'!$B$85,0)","v":0},{"$f":"IF('1 Données d''entrée'!$C$311+'1 Données d''entrée'!$C$312=Q1742,'6 Financement'!$B$85,0)","v":0},{"$f":"IF('1 Données d''entrée'!$C$311+'1 Données d''entrée'!$C$312=R1742,'6 Financement'!$B$85,0)","v":0},{"$f":"IF('1 Données d''entrée'!$C$311+'1 Données d''entrée'!$C$312=S1742,'6 Financement'!$B$85,0)","v":0},{"$f":"IF('1 Données d''entrée'!$C$311+'1 Données d''entrée'!$C$312=T1742,'6 Financement'!$B$85,0)","v":0},{"$f":"IF('1 Données d''entrée'!$C$311+'1 Données d''entrée'!$C$312=U1742,'6 Financement'!$B$85,0)","v":0},{"$f":"IF('1 Données d''entrée'!$C$311+'1 Données d''entrée'!$C$312=V1742,'6 Financement'!$B$85,0)","v":0}]
["Paiement d'intérêts",0,{"$f":"IF('1 Données d''entrée'!$C$314=\"(=NON)\",IF(C1742<'1 Données d''entrée'!$C$312+1,0,B1773*'1 Données d''entrée'!$C$310),B1773*'1 Données d''entrée'!$C$310)","v":0},{"$f":"IF('1 Données d''entrée'!$C$314=\"(=NON)\",IF(D1742<'1 Données d''entrée'!$C$312+1,0,C1773*'1 Données d''entrée'!$C$310),C1773*'1 Données d''entrée'!$C$310)","v":0},{"$f":"IF('1 Données d''entrée'!$C$314=\"(=NON)\",IF(E1742<'1 Données d''entrée'!$C$312+1,0,D1773*'1 Données d''entrée'!$C$310),D1773*'1 Données d''entrée'!$C$310)","v":0},{"$f":"IF('1 Données d''entrée'!$C$314=\"(=NON)\",IF(F1742<'1 Données d''entrée'!$C$312+1,0,E1773*'1 Données d''entrée'!$C$310),E1773*'1 Données d''entrée'!$C$310)","v":0},{"$f":"IF('1 Données d''entrée'!$C$314=\"(=NON)\",IF(G1742<'1 Données d''entrée'!$C$312+1,0,F1773*'1 Données d''entrée'!$C$310),F1773*'1 Données d''entrée'!$C$310)","v":0},{"$f":"IF('1 Données d''entrée'!$C$314=\"(=NON)\",IF(H1742<'1 Données d''entrée'!$C$312+1,0,G1773*'1 Données d''entrée'!$C$310),G1773*'1 Données d''entrée'!$C$310)","v":0},{"$f":"IF('1 Données d''entrée'!$C$314=\"(=NON)\",IF(I1742<'1 Données d''entrée'!$C$312+1,0,H1773*'1 Données d''entrée'!$C$310),H1773*'1 Données d''entrée'!$C$310)","v":0},{"$f":"IF('1 Données d''entrée'!$C$314=\"(=NON)\",IF(J1742<'1 Données d''entrée'!$C$312+1,0,I1773*'1 Données d''entrée'!$C$310),I1773*'1 Données d''entrée'!$C$310)","v":0},{"$f":"IF('1 Données d''entrée'!$C$314=\"(=NON)\",IF(K1742<'1 Données d''entrée'!$C$312+1,0,J1773*'1 Données d''entrée'!$C$310),J1773*'1 Données d''entrée'!$C$310)","v":0},{"$f":"IF('1 Données d''entrée'!$C$314=\"(=NON)\",IF(L1742<'1 Données d''entrée'!$C$312+1,0,K1773*'1 Données d''entrée'!$C$310),K1773*'1 Données d''entrée'!$C$310)","v":0},{"$f":"IF('1 Données d''entrée'!$C$314=\"(=NON)\",IF(M1742<'1 Données d''entrée'!$C$312+1,0,L1773*'1 Données d''entrée'!$C$310),L1773*'1 Données d''entrée'!$C$310)","v":0},{"$f":"IF('1 Données d''entrée'!$C$314=\"(=NON)\",IF(N1742<'1 Données d''entrée'!$C$312+1,0,M1773*'1 Données d''entrée'!$C$310),M1773*'1 Données d''entrée'!$C$310)","v":0},{"$f":"IF('1 Données d''entrée'!$C$314=\"(=NON)\",IF(O1742<'1 Données d''entrée'!$C$312+1,0,N1773*'1 Données d''entrée'!$C$310),N1773*'1 Données d''entrée'!$C$310)","v":0},{"$f":"IF('1 Données d''entrée'!$C$314=\"(=NON)\",IF(P1742<'1 Données d''entrée'!$C$312+1,0,O1773*'1 Données d''entrée'!$C$310),O1773*'1 Données d''entrée'!$C$310)","v":0},{"$f":"IF('1 Données d''entrée'!$C$314=\"(=NON)\",IF(Q1742<'1 Données d''entrée'!$C$312+1,0,P1773*'1 Données d''entrée'!$C$310),P1773*'1 Données d''entrée'!$C$310)","v":0},{"$f":"IF('1 Données d''entrée'!$C$314=\"(=NON)\",IF(R1742<'1 Données d''entrée'!$C$312+1,0,Q1773*'1 Données d''entrée'!$C$310),Q1773*'1 Données d''entrée'!$C$310)","v":0},{"$f":"IF('1 Données d''entrée'!$C$314=\"(=NON)\",IF(S1742<'1 Données d''entrée'!$C$312+1,0,R1773*'1 Données d''entrée'!$C$310),R1773*'1 Données d''entrée'!$C$310)","v":0},{"$f":"IF('1 Données d''entrée'!$C$314=\"(=NON)\",IF(T1742<'1 Données d''entrée'!$C$312+1,0,S1773*'1 Données d''entrée'!$C$310),S1773*'1 Données d''entrée'!$C$310)","v":0},{"$f":"IF('1 Données d''entrée'!$C$314=\"(=NON)\",IF(U1742<'1 Données d''entrée'!$C$312+1,0,T1773*'1 Données d''entrée'!$C$310),T1773*'1 Données d''entrée'!$C$310)","v":0},{"$f":"IF('1 Données d''entrée'!$C$314=\"(=NON)\",IF(V1742<'1 Données d''entrée'!$C$312+1,0,U1773*'1 Données d''entrée'!$C$310),U1773*'1 Données d''entrée'!$C$310)","v":0}]
["Paiements d'intérêt avec des intérêts composés en cas d'absence des paiements dans la période de grâce",0,0,{"$f":"IF(D1742='1 Données d''entrée'!$C$312+1,IF('1 Données d''entrée'!$C$314=\"(=NON)\",($B1773*'1 Données d''entrée'!$C$310)*((('1 Données d''entrée'!$C$310+1)^'1 Données d''entrée'!$C$312-1)/('1 Données d''entrée'!$C$310))*(1+'1 Données d''entrée'!$C$310),0),0)","v":0},{"$f":"IF(E1742='1 Données d''entrée'!$C$312+1,IF('1 Données d''entrée'!$C$314=\"(=NON)\",($B1773*'1 Données d''entrée'!$C$310)*((('1 Données d''entrée'!$C$310+1)^'1 Données d''entrée'!$C$312-1)/('1 Données d''entrée'!$C$310))*(1+'1 Données d''entrée'!$C$310),0),0)","v":0},{"$f":"IF(F1742='1 Données d''entrée'!$C$312+1,IF('1 Données d''entrée'!$C$314=\"(=NON)\",($B1773*'1 Données d''entrée'!$C$310)*((('1 Données d''entrée'!$C$310+1)^'1 Données d''entrée'!$C$312-1)/('1 Données d''entrée'!$C$310))*(1+'1 Données d''entrée'!$C$310),0),0)","v":0},{"$f":"IF(G1742='1 Données d''entrée'!$C$312+1,IF('1 Données d''entrée'!$C$314=\"(=NON)\",($B1773*'1 Données d''entrée'!$C$310)*((('1 Données d''entrée'!$C$310+1)^'1 Données d''entrée'!$C$312-1)/('1 Données d''entrée'!$C$310))*(1+'1 Données d''entrée'!$C$310),0),0)","v":0},{"$f":"IF(H1742='1 Données d''entrée'!$C$312+1,IF('1 Données d''entrée'!$C$314=\"(=NON)\",($B1773*'1 Données d''entrée'!$C$310)*((('1 Données d''entrée'!$C$310+1)^'1 Données d''entrée'!$C$312-1)/('1 Données d''entrée'!$C$310))*(1+'1 Données d''entrée'!$C$310),0),0)","v":0},{"$f":"IF(I1742='1 Données d''entrée'!$C$312+1,IF('1 Données d''entrée'!$C$314=\"(=NON)\",($B1773*'1 Données d''entrée'!$C$310)*((('1 Données d''entrée'!$C$310+1)^'1 Données d''entrée'!$C$312-1)/('1 Données d''entrée'!$C$310))*(1+'1 Données d''entrée'!$C$310),0),0)","v":0},{"$f":"IF(J1742='1 Données d''entrée'!$C$312+1,IF('1 Données d''entrée'!$C$314=\"(=NON)\",($B1773*'1 Données d''entrée'!$C$310)*((('1 Données d''entrée'!$C$310+1)^'1 Données d''entrée'!$C$312-1)/('1 Données d''entrée'!$C$310))*(1+'1 Données d''entrée'!$C$310),0),0)","v":0},{"$f":"IF(K1742='1 Données d''entrée'!$C$312+1,IF('1 Données d''entrée'!$C$314=\"(=NON)\",($B1773*'1 Données d''entrée'!$C$310)*((('1 Données d''entrée'!$C$310+1)^'1 Données d''entrée'!$C$312-1)/('1 Données d''entrée'!$C$310))*(1+'1 Données d''entrée'!$C$310),0),0)","v":0},{"$f":"IF(L1742='1 Données d''entrée'!$C$312+1,IF('1 Données d''entrée'!$C$314=\"(=NON)\",($B1773*'1 Données d''entrée'!$C$310)*((('1 Données d''entrée'!$C$310+1)^'1 Données d''entrée'!$C$312-1)/('1 Données d''entrée'!$C$310))*(1+'1 Données d''entrée'!$C$310),0),0)","v":0},{"$f":"IF(M1742='1 Données d''entrée'!$C$312+1,IF('1 Données d''entrée'!$C$314=\"(=NON)\",($B1773*'1 Données d''entrée'!$C$310)*((('1 Données d''entrée'!$C$310+1)^'1 Données d''entrée'!$C$312-1)/('1 Données d''entrée'!$C$310))*(1+'1 Données d''entrée'!$C$310),0),0)","v":0},{"$f":"IF(N1742='1 Données d''entrée'!$C$312+1,IF('1 Données d''entrée'!$C$314=\"(=NON)\",($B1773*'1 Données d''entrée'!$C$310)*((('1 Données d''entrée'!$C$310+1)^'1 Données d''entrée'!$C$312-1)/('1 Données d''entrée'!$C$310))*(1+'1 Données d''entrée'!$C$310),0),0)","v":0},{"$f":"IF(O1742='1 Données d''entrée'!$C$312+1,IF('1 Données d''entrée'!$C$314=\"(=NON)\",($B1773*'1 Données d''entrée'!$C$310)*((('1 Données d''entrée'!$C$310+1)^'1 Données d''entrée'!$C$312-1)/('1 Données d''entrée'!$C$310))*(1+'1 Données d''entrée'!$C$310),0),0)","v":0},{"$f":"IF(P1742='1 Données d''entrée'!$C$312+1,IF('1 Données d''entrée'!$C$314=\"(=NON)\",($B1773*'1 Données d''entrée'!$C$310)*((('1 Données d''entrée'!$C$310+1)^'1 Données d''entrée'!$C$312-1)/('1 Données d''entrée'!$C$310))*(1+'1 Données d''entrée'!$C$310),0),0)","v":0},{"$f":"IF(Q1742='1 Données d''entrée'!$C$312+1,IF('1 Données d''entrée'!$C$314=\"(=NON)\",($B1773*'1 Données d''entrée'!$C$310)*((('1 Données d''entrée'!$C$310+1)^'1 Données d''entrée'!$C$312-1)/('1 Données d''entrée'!$C$310))*(1+'1 Données d''entrée'!$C$310),0),0)","v":0},{"$f":"IF(R1742='1 Données d''entrée'!$C$312+1,IF('1 Données d''entrée'!$C$314=\"(=NON)\",($B1773*'1 Données d''entrée'!$C$310)*((('1 Données d''entrée'!$C$310+1)^'1 Données d''entrée'!$C$312-1)/('1 Données d''entrée'!$C$310))*(1+'1 Données d''entrée'!$C$310),0),0)","v":0},{"$f":"IF(S1742='1 Données d''entrée'!$C$312+1,IF('1 Données d''entrée'!$C$314=\"(=NON)\",($B1773*'1 Données d''entrée'!$C$310)*((('1 Données d''entrée'!$C$310+1)^'1 Données d''entrée'!$C$312-1)/('1 Données d''entrée'!$C$310))*(1+'1 Données d''entrée'!$C$310),0),0)","v":0},{"$f":"IF(T1742='1 Données d''entrée'!$C$312+1,IF('1 Données d''entrée'!$C$314=\"(=NON)\",($B1773*'1 Données d''entrée'!$C$310)*((('1 Données d''entrée'!$C$310+1)^'1 Données d''entrée'!$C$312-1)/('1 Données d''entrée'!$C$310))*(1+'1 Données d''entrée'!$C$310),0),0)","v":0},{"$f":"IF(U1742='1 Données d''entrée'!$C$312+1,IF('1 Données d''entrée'!$C$314=\"(=NON)\",($B1773*'1 Données d''entrée'!$C$310)*((('1 Données d''entrée'!$C$310+1)^'1 Données d''entrée'!$C$312-1)/('1 Données d''entrée'!$C$310))*(1+'1 Données d''entrée'!$C$310),0),0)","v":0},{"$f":"IF(V1742='1 Données d''entrée'!$C$312+1,IF('1 Données d''entrée'!$C$314=\"(=NON)\",($B1773*'1 Données d''entrée'!$C$310)*((('1 Données d''entrée'!$C$310+1)^'1 Données d''entrée'!$C$312-1)/('1 Données d''entrée'!$C$310))*(1+'1 Données d''entrée'!$C$310),0),0)","v":0}]
["Fonds d'autre donneurs / investisseurs - Prêt; Option 3: Remboursement vers l'annuité constante",{"$f":"'1 Données d''entrée'!$B$321","v":0},"% de prêt total"]
["Réception ",{"$f":"B1777*'1 Données d''entrée'!$B$306+'1 Données d''entrée'!$B$306*'1 Données d''entrée'!$C$316","v":0},0,0,0,0,0,0,0,0,0,0,0,0,0,0,0,0,0,0,0,0]
["Remboursement vers l'annuité constante",{"$f":"IF(B1742<'1 Données d''entrée'!$C$312+1,0,IF(B1742<'1 Données d''entrée'!$C$311+'1 Données d''entrée'!$C$312+1,$B1778*('1 Données d''entrée'!$C$310*(1+'1 Données d''entrée'!$C$310)^'1 Données d''entrée'!$C$311)/((1+'1 Données d''entrée'!$C$310)^'1 Données d''entrée'!$C$311-1),0))","v":0},{"$f":"IF(C1742<'1 Données d''entrée'!$C$312+1,0,IF(C1742<'1 Données d''entrée'!$C$311+'1 Données d''entrée'!$C$312+1,$B1778*('1 Données d''entrée'!$C$310*(1+'1 Données d''entrée'!$C$310)^'1 Données d''entrée'!$C$311)/((1+'1 Données d''entrée'!$C$310)^'1 Données d''entrée'!$C$311-1),0))","v":0},{"$f":"IF(D1742<'1 Données d''entrée'!$C$312+1,0,IF(D1742<'1 Données d''entrée'!$C$311+'1 Données d''entrée'!$C$312+1,$B1778*('1 Données d''entrée'!$C$310*(1+'1 Données d''entrée'!$C$310)^'1 Données d''entrée'!$C$311)/((1+'1 Données d''entrée'!$C$310)^'1 Données d''entrée'!$C$311-1),0))","v":0},{"$f":"IF(E1742<'1 Données d''entrée'!$C$312+1,0,IF(E1742<'1 Données d''entrée'!$C$311+'1 Données d''entrée'!$C$312+1,$B1778*('1 Données d''entrée'!$C$310*(1+'1 Données d''entrée'!$C$310)^'1 Données d''entrée'!$C$311)/((1+'1 Données d''entrée'!$C$310)^'1 Données d''entrée'!$C$311-1),0))","v":0},{"$f":"IF(F1742<'1 Données d''entrée'!$C$312+1,0,IF(F1742<'1 Données d''entrée'!$C$311+'1 Données d''entrée'!$C$312+1,$B1778*('1 Données d''entrée'!$C$310*(1+'1 Données d''entrée'!$C$310)^'1 Données d''entrée'!$C$311)/((1+'1 Données d''entrée'!$C$310)^'1 Données d''entrée'!$C$311-1),0))","v":0},{"$f":"IF(G1742<'1 Données d''entrée'!$C$312+1,0,IF(G1742<'1 Données d''entrée'!$C$311+'1 Données d''entrée'!$C$312+1,$B1778*('1 Données d''entrée'!$C$310*(1+'1 Données d''entrée'!$C$310)^'1 Données d''entrée'!$C$311)/((1+'1 Données d''entrée'!$C$310)^'1 Données d''entrée'!$C$311-1),0))","v":0},{"$f":"IF(H1742<'1 Données d''entrée'!$C$312+1,0,IF(H1742<'1 Données d''entrée'!$C$311+'1 Données d''entrée'!$C$312+1,$B1778*('1 Données d''entrée'!$C$310*(1+'1 Données d''entrée'!$C$310)^'1 Données d''entrée'!$C$311)/((1+'1 Données d''entrée'!$C$310)^'1 Données d''entrée'!$C$311-1),0))","v":0},{"$f":"IF(I1742<'1 Données d''entrée'!$C$312+1,0,IF(I1742<'1 Données d''entrée'!$C$311+'1 Données d''entrée'!$C$312+1,$B1778*('1 Données d''entrée'!$C$310*(1+'1 Données d''entrée'!$C$310)^'1 Données d''entrée'!$C$311)/((1+'1 Données d''entrée'!$C$310)^'1 Données d''entrée'!$C$311-1),0))","v":0},{"$f":"IF(J1742<'1 Données d''entrée'!$C$312+1,0,IF(J1742<'1 Données d''entrée'!$C$311+'1 Données d''entrée'!$C$312+1,$B1778*('1 Données d''entrée'!$C$310*(1+'1 Données d''entrée'!$C$310)^'1 Données d''entrée'!$C$311)/((1+'1 Données d''entrée'!$C$310)^'1 Données d''entrée'!$C$311-1),0))","v":0},{"$f":"IF(K1742<'1 Données d''entrée'!$C$312+1,0,IF(K1742<'1 Données d''entrée'!$C$311+'1 Données d''entrée'!$C$312+1,$B1778*('1 Données d''entrée'!$C$310*(1+'1 Données d''entrée'!$C$310)^'1 Données d''entrée'!$C$311)/((1+'1 Données d''entrée'!$C$310)^'1 Données d''entrée'!$C$311-1),0))","v":0},{"$f":"IF(L1742<'1 Données d''entrée'!$C$312+1,0,IF(L1742<'1 Données d''entrée'!$C$311+'1 Données d''entrée'!$C$312+1,$B1778*('1 Données d''entrée'!$C$310*(1+'1 Données d''entrée'!$C$310)^'1 Données d''entrée'!$C$311)/((1+'1 Données d''entrée'!$C$310)^'1 Données d''entrée'!$C$311-1),0))","v":0},{"$f":"IF(M1742<'1 Données d''entrée'!$C$312+1,0,IF(M1742<'1 Données d''entrée'!$C$311+'1 Données d''entrée'!$C$312+1,$B1778*('1 Données d''entrée'!$C$310*(1+'1 Données d''entrée'!$C$310)^'1 Données d''entrée'!$C$311)/((1+'1 Données d''entrée'!$C$310)^'1 Données d''entrée'!$C$311-1),0))","v":0},{"$f":"IF(N1742<'1 Données d''entrée'!$C$312+1,0,IF(N1742<'1 Données d''entrée'!$C$311+'1 Données d''entrée'!$C$312+1,$B1778*('1 Données d''entrée'!$C$310*(1+'1 Données d''entrée'!$C$310)^'1 Données d''entrée'!$C$311)/((1+'1 Données d''entrée'!$C$310)^'1 Données d''entrée'!$C$311-1),0))","v":0},{"$f":"IF(O1742<'1 Données d''entrée'!$C$312+1,0,IF(O1742<'1 Données d''entrée'!$C$311+'1 Données d''entrée'!$C$312+1,$B1778*('1 Données d''entrée'!$C$310*(1+'1 Données d''entrée'!$C$310)^'1 Données d''entrée'!$C$311)/((1+'1 Données d''entrée'!$C$310)^'1 Données d''entrée'!$C$311-1),0))","v":0},{"$f":"IF(P1742<'1 Données d''entrée'!$C$312+1,0,IF(P1742<'1 Données d''entrée'!$C$311+'1 Données d''entrée'!$C$312+1,$B1778*('1 Données d''entrée'!$C$310*(1+'1 Données d''entrée'!$C$310)^'1 Données d''entrée'!$C$311)/((1+'1 Données d''entrée'!$C$310)^'1 Données d''entrée'!$C$311-1),0))","v":0},{"$f":"IF(Q1742<'1 Données d''entrée'!$C$312+1,0,IF(Q1742<'1 Données d''entrée'!$C$311+'1 Données d''entrée'!$C$312+1,$B1778*('1 Données d''entrée'!$C$310*(1+'1 Données d''entrée'!$C$310)^'1 Données d''entrée'!$C$311)/((1+'1 Données d''entrée'!$C$310)^'1 Données d''entrée'!$C$311-1),0))","v":0},{"$f":"IF(R1742<'1 Données d''entrée'!$C$312+1,0,IF(R1742<'1 Données d''entrée'!$C$311+'1 Données d''entrée'!$C$312+1,$B1778*('1 Données d''entrée'!$C$310*(1+'1 Données d''entrée'!$C$310)^'1 Données d''entrée'!$C$311)/((1+'1 Données d''entrée'!$C$310)^'1 Données d''entrée'!$C$311-1),0))","v":0},{"$f":"IF(S1742<'1 Données d''entrée'!$C$312+1,0,IF(S1742<'1 Données d''entrée'!$C$311+'1 Données d''entrée'!$C$312+1,$B1778*('1 Données d''entrée'!$C$310*(1+'1 Données d''entrée'!$C$310)^'1 Données d''entrée'!$C$311)/((1+'1 Données d''entrée'!$C$310)^'1 Données d''entrée'!$C$311-1),0))","v":0},{"$f":"IF(T1742<'1 Données d''entrée'!$C$312+1,0,IF(T1742<'1 Données d''entrée'!$C$311+'1 Données d''entrée'!$C$312+1,$B1778*('1 Données d''entrée'!$C$310*(1+'1 Données d''entrée'!$C$310)^'1 Données d''entrée'!$C$311)/((1+'1 Données d''entrée'!$C$310)^'1 Données d''entrée'!$C$311-1),0))","v":0},{"$f":"IF(U1742<'1 Données d''entrée'!$C$312+1,0,IF(U1742<'1 Données d''entrée'!$C$311+'1 Données d''entrée'!$C$312+1,$B1778*('1 Données d''entrée'!$C$310*(1+'1 Données d''entrée'!$C$310)^'1 Données d''entrée'!$C$311)/((1+'1 Données d''entrée'!$C$310)^'1 Données d''entrée'!$C$311-1),0))","v":0},{"$f":"IF(V1742<'1 Données d''entrée'!$C$312+1,0,IF(V1742<'1 Données d''entrée'!$C$311+'1 Données d''entrée'!$C$312+1,$B1778*('1 Données d''entrée'!$C$310*(1+'1 Données d''entrée'!$C$310)^'1 Données d''entrée'!$C$311)/((1+'1 Données d''entrée'!$C$310)^'1 Données d''entrée'!$C$311-1),0))","v":0}]
["Paiement d'intérêt décroissant inclu dans l'annuité constante",0,{"$f":"IF('1 Données d''entrée'!$C$314=\"(=NON)\",IF(C1779>0,$B1778*((('1 Données d''entrée'!$C$310+1)^'1 Données d''entrée'!$C$311)-(1+'1 Données d''entrée'!$C$310)^('6 Financement'!C$54-1-'1 Données d''entrée'!$C$312))/((1+'1 Données d''entrée'!$C$310)^'1 Données d''entrée'!$C$311-1)*'1 Données d''entrée'!$C$310,0),IF(C1742<'1 Données d''entrée'!$C$312+1,'1 Données d''entrée'!$C$310*'6 Financement'!$B1778,IF(C1779>0,$B$90*((('1 Données d''entrée'!$C$310+1)^'1 Données d''entrée'!$C$311)-(1+'1 Données d''entrée'!$C$310)^('6 Financement'!C$54-1-'1 Données d''entrée'!$C$312))/((1+'1 Données d''entrée'!$C$310)^'1 Données d''entrée'!$C$311-1)*'1 Données d''entrée'!$C$310,0)))","v":0},{"$f":"IF('1 Données d''entrée'!$C$314=\"(=NON)\",IF(D1779>0,$B1778*((('1 Données d''entrée'!$C$310+1)^'1 Données d''entrée'!$C$311)-(1+'1 Données d''entrée'!$C$310)^('6 Financement'!D$54-1-'1 Données d''entrée'!$C$312))/((1+'1 Données d''entrée'!$C$310)^'1 Données d''entrée'!$C$311-1)*'1 Données d''entrée'!$C$310,0),IF(D1742<'1 Données d''entrée'!$C$312+1,'1 Données d''entrée'!$C$310*'6 Financement'!$B1778,IF(D1779>0,$B$90*((('1 Données d''entrée'!$C$310+1)^'1 Données d''entrée'!$C$311)-(1+'1 Données d''entrée'!$C$310)^('6 Financement'!D$54-1-'1 Données d''entrée'!$C$312))/((1+'1 Données d''entrée'!$C$310)^'1 Données d''entrée'!$C$311-1)*'1 Données d''entrée'!$C$310,0)))","v":0},{"$f":"IF('1 Données d''entrée'!$C$314=\"(=NON)\",IF(E1779>0,$B1778*((('1 Données d''entrée'!$C$310+1)^'1 Données d''entrée'!$C$311)-(1+'1 Données d''entrée'!$C$310)^('6 Financement'!E$54-1-'1 Données d''entrée'!$C$312))/((1+'1 Données d''entrée'!$C$310)^'1 Données d''entrée'!$C$311-1)*'1 Données d''entrée'!$C$310,0),IF(E1742<'1 Données d''entrée'!$C$312+1,'1 Données d''entrée'!$C$310*'6 Financement'!$B1778,IF(E1779>0,$B$90*((('1 Données d''entrée'!$C$310+1)^'1 Données d''entrée'!$C$311)-(1+'1 Données d''entrée'!$C$310)^('6 Financement'!E$54-1-'1 Données d''entrée'!$C$312))/((1+'1 Données d''entrée'!$C$310)^'1 Données d''entrée'!$C$311-1)*'1 Données d''entrée'!$C$310,0)))","v":0},{"$f":"IF('1 Données d''entrée'!$C$314=\"(=NON)\",IF(F1779>0,$B1778*((('1 Données d''entrée'!$C$310+1)^'1 Données d''entrée'!$C$311)-(1+'1 Données d''entrée'!$C$310)^('6 Financement'!F$54-1-'1 Données d''entrée'!$C$312))/((1+'1 Données d''entrée'!$C$310)^'1 Données d''entrée'!$C$311-1)*'1 Données d''entrée'!$C$310,0),IF(F1742<'1 Données d''entrée'!$C$312+1,'1 Données d''entrée'!$C$310*'6 Financement'!$B1778,IF(F1779>0,$B$90*((('1 Données d''entrée'!$C$310+1)^'1 Données d''entrée'!$C$311)-(1+'1 Données d''entrée'!$C$310)^('6 Financement'!F$54-1-'1 Données d''entrée'!$C$312))/((1+'1 Données d''entrée'!$C$310)^'1 Données d''entrée'!$C$311-1)*'1 Données d''entrée'!$C$310,0)))","v":0},{"$f":"IF('1 Données d''entrée'!$C$314=\"(=NON)\",IF(G1779>0,$B1778*((('1 Données d''entrée'!$C$310+1)^'1 Données d''entrée'!$C$311)-(1+'1 Données d''entrée'!$C$310)^('6 Financement'!G$54-1-'1 Données d''entrée'!$C$312))/((1+'1 Données d''entrée'!$C$310)^'1 Données d''entrée'!$C$311-1)*'1 Données d''entrée'!$C$310,0),IF(G1742<'1 Données d''entrée'!$C$312+1,'1 Données d''entrée'!$C$310*'6 Financement'!$B1778,IF(G1779>0,$B$90*((('1 Données d''entrée'!$C$310+1)^'1 Données d''entrée'!$C$311)-(1+'1 Données d''entrée'!$C$310)^('6 Financement'!G$54-1-'1 Données d''entrée'!$C$312))/((1+'1 Données d''entrée'!$C$310)^'1 Données d''entrée'!$C$311-1)*'1 Données d''entrée'!$C$310,0)))","v":0},{"$f":"IF('1 Données d''entrée'!$C$314=\"(=NON)\",IF(H1779>0,$B1778*((('1 Données d''entrée'!$C$310+1)^'1 Données d''entrée'!$C$311)-(1+'1 Données d''entrée'!$C$310)^('6 Financement'!H$54-1-'1 Données d''entrée'!$C$312))/((1+'1 Données d''entrée'!$C$310)^'1 Données d''entrée'!$C$311-1)*'1 Données d''entrée'!$C$310,0),IF(H1742<'1 Données d''entrée'!$C$312+1,'1 Données d''entrée'!$C$310*'6 Financement'!$B1778,IF(H1779>0,$B$90*((('1 Données d''entrée'!$C$310+1)^'1 Données d''entrée'!$C$311)-(1+'1 Données d''entrée'!$C$310)^('6 Financement'!H$54-1-'1 Données d''entrée'!$C$312))/((1+'1 Données d''entrée'!$C$310)^'1 Données d''entrée'!$C$311-1)*'1 Données d''entrée'!$C$310,0)))","v":0},{"$f":"IF('1 Données d''entrée'!$C$314=\"(=NON)\",IF(I1779>0,$B1778*((('1 Données d''entrée'!$C$310+1)^'1 Données d''entrée'!$C$311)-(1+'1 Données d''entrée'!$C$310)^('6 Financement'!I$54-1-'1 Données d''entrée'!$C$312))/((1+'1 Données d''entrée'!$C$310)^'1 Données d''entrée'!$C$311-1)*'1 Données d''entrée'!$C$310,0),IF(I1742<'1 Données d''entrée'!$C$312+1,'1 Données d''entrée'!$C$310*'6 Financement'!$B1778,IF(I1779>0,$B$90*((('1 Données d''entrée'!$C$310+1)^'1 Données d''entrée'!$C$311)-(1+'1 Données d''entrée'!$C$310)^('6 Financement'!I$54-1-'1 Données d''entrée'!$C$312))/((1+'1 Données d''entrée'!$C$310)^'1 Données d''entrée'!$C$311-1)*'1 Données d''entrée'!$C$310,0)))","v":0},{"$f":"IF('1 Données d''entrée'!$C$314=\"(=NON)\",IF(J1779>0,$B1778*((('1 Données d''entrée'!$C$310+1)^'1 Données d''entrée'!$C$311)-(1+'1 Données d''entrée'!$C$310)^('6 Financement'!J$54-1-'1 Données d''entrée'!$C$312))/((1+'1 Données d''entrée'!$C$310)^'1 Données d''entrée'!$C$311-1)*'1 Données d''entrée'!$C$310,0),IF(J1742<'1 Données d''entrée'!$C$312+1,'1 Données d''entrée'!$C$310*'6 Financement'!$B1778,IF(J1779>0,$B$90*((('1 Données d''entrée'!$C$310+1)^'1 Données d''entrée'!$C$311)-(1+'1 Données d''entrée'!$C$310)^('6 Financement'!J$54-1-'1 Données d''entrée'!$C$312))/((1+'1 Données d''entrée'!$C$310)^'1 Données d''entrée'!$C$311-1)*'1 Données d''entrée'!$C$310,0)))","v":0},{"$f":"IF('1 Données d''entrée'!$C$314=\"(=NON)\",IF(K1779>0,$B1778*((('1 Données d''entrée'!$C$310+1)^'1 Données d''entrée'!$C$311)-(1+'1 Données d''entrée'!$C$310)^('6 Financement'!K$54-1-'1 Données d''entrée'!$C$312))/((1+'1 Données d''entrée'!$C$310)^'1 Données d''entrée'!$C$311-1)*'1 Données d''entrée'!$C$310,0),IF(K1742<'1 Données d''entrée'!$C$312+1,'1 Données d''entrée'!$C$310*'6 Financement'!$B1778,IF(K1779>0,$B$90*((('1 Données d''entrée'!$C$310+1)^'1 Données d''entrée'!$C$311)-(1+'1 Données d''entrée'!$C$310)^('6 Financement'!K$54-1-'1 Données d''entrée'!$C$312))/((1+'1 Données d''entrée'!$C$310)^'1 Données d''entrée'!$C$311-1)*'1 Données d''entrée'!$C$310,0)))","v":0},{"$f":"IF('1 Données d''entrée'!$C$314=\"(=NON)\",IF(L1779>0,$B1778*((('1 Données d''entrée'!$C$310+1)^'1 Données d''entrée'!$C$311)-(1+'1 Données d''entrée'!$C$310)^('6 Financement'!L$54-1-'1 Données d''entrée'!$C$312))/((1+'1 Données d''entrée'!$C$310)^'1 Données d''entrée'!$C$311-1)*'1 Données d''entrée'!$C$310,0),IF(L1742<'1 Données d''entrée'!$C$312+1,'1 Données d''entrée'!$C$310*'6 Financement'!$B1778,IF(L1779>0,$B$90*((('1 Données d''entrée'!$C$310+1)^'1 Données d''entrée'!$C$311)-(1+'1 Données d''entrée'!$C$310)^('6 Financement'!L$54-1-'1 Données d''entrée'!$C$312))/((1+'1 Données d''entrée'!$C$310)^'1 Données d''entrée'!$C$311-1)*'1 Données d''entrée'!$C$310,0)))","v":0},{"$f":"IF('1 Données d''entrée'!$C$314=\"(=NON)\",IF(M1779>0,$B1778*((('1 Données d''entrée'!$C$310+1)^'1 Données d''entrée'!$C$311)-(1+'1 Données d''entrée'!$C$310)^('6 Financement'!M$54-1-'1 Données d''entrée'!$C$312))/((1+'1 Données d''entrée'!$C$310)^'1 Données d''entrée'!$C$311-1)*'1 Données d''entrée'!$C$310,0),IF(M1742<'1 Données d''entrée'!$C$312+1,'1 Données d''entrée'!$C$310*'6 Financement'!$B1778,IF(M1779>0,$B$90*((('1 Données d''entrée'!$C$310+1)^'1 Données d''entrée'!$C$311)-(1+'1 Données d''entrée'!$C$310)^('6 Financement'!M$54-1-'1 Données d''entrée'!$C$312))/((1+'1 Données d''entrée'!$C$310)^'1 Données d''entrée'!$C$311-1)*'1 Données d''entrée'!$C$310,0)))","v":0},{"$f":"IF('1 Données d''entrée'!$C$314=\"(=NON)\",IF(N1779>0,$B1778*((('1 Données d''entrée'!$C$310+1)^'1 Données d''entrée'!$C$311)-(1+'1 Données d''entrée'!$C$310)^('6 Financement'!N$54-1-'1 Données d''entrée'!$C$312))/((1+'1 Données d''entrée'!$C$310)^'1 Données d''entrée'!$C$311-1)*'1 Données d''entrée'!$C$310,0),IF(N1742<'1 Données d''entrée'!$C$312+1,'1 Données d''entrée'!$C$310*'6 Financement'!$B1778,IF(N1779>0,$B$90*((('1 Données d''entrée'!$C$310+1)^'1 Données d''entrée'!$C$311)-(1+'1 Données d''entrée'!$C$310)^('6 Financement'!N$54-1-'1 Données d''entrée'!$C$312))/((1+'1 Données d''entrée'!$C$310)^'1 Données d''entrée'!$C$311-1)*'1 Données d''entrée'!$C$310,0)))","v":0},{"$f":"IF('1 Données d''entrée'!$C$314=\"(=NON)\",IF(O1779>0,$B1778*((('1 Données d''entrée'!$C$310+1)^'1 Données d''entrée'!$C$311)-(1+'1 Données d''entrée'!$C$310)^('6 Financement'!O$54-1-'1 Données d''entrée'!$C$312))/((1+'1 Données d''entrée'!$C$310)^'1 Données d''entrée'!$C$311-1)*'1 Données d''entrée'!$C$310,0),IF(O1742<'1 Données d''entrée'!$C$312+1,'1 Données d''entrée'!$C$310*'6 Financement'!$B1778,IF(O1779>0,$B$90*((('1 Données d''entrée'!$C$310+1)^'1 Données d''entrée'!$C$311)-(1+'1 Données d''entrée'!$C$310)^('6 Financement'!O$54-1-'1 Données d''entrée'!$C$312))/((1+'1 Données d''entrée'!$C$310)^'1 Données d''entrée'!$C$311-1)*'1 Données d''entrée'!$C$310,0)))","v":0},{"$f":"IF('1 Données d''entrée'!$C$314=\"(=NON)\",IF(P1779>0,$B1778*((('1 Données d''entrée'!$C$310+1)^'1 Données d''entrée'!$C$311)-(1+'1 Données d''entrée'!$C$310)^('6 Financement'!P$54-1-'1 Données d''entrée'!$C$312))/((1+'1 Données d''entrée'!$C$310)^'1 Données d''entrée'!$C$311-1)*'1 Données d''entrée'!$C$310,0),IF(P1742<'1 Données d''entrée'!$C$312+1,'1 Données d''entrée'!$C$310*'6 Financement'!$B1778,IF(P1779>0,$B$90*((('1 Données d''entrée'!$C$310+1)^'1 Données d''entrée'!$C$311)-(1+'1 Données d''entrée'!$C$310)^('6 Financement'!P$54-1-'1 Données d''entrée'!$C$312))/((1+'1 Données d''entrée'!$C$310)^'1 Données d''entrée'!$C$311-1)*'1 Données d''entrée'!$C$310,0)))","v":0},{"$f":"IF('1 Données d''entrée'!$C$314=\"(=NON)\",IF(Q1779>0,$B1778*((('1 Données d''entrée'!$C$310+1)^'1 Données d''entrée'!$C$311)-(1+'1 Données d''entrée'!$C$310)^('6 Financement'!Q$54-1-'1 Données d''entrée'!$C$312))/((1+'1 Données d''entrée'!$C$310)^'1 Données d''entrée'!$C$311-1)*'1 Données d''entrée'!$C$310,0),IF(Q1742<'1 Données d''entrée'!$C$312+1,'1 Données d''entrée'!$C$310*'6 Financement'!$B1778,IF(Q1779>0,$B$90*((('1 Données d''entrée'!$C$310+1)^'1 Données d''entrée'!$C$311)-(1+'1 Données d''entrée'!$C$310)^('6 Financement'!Q$54-1-'1 Données d''entrée'!$C$312))/((1+'1 Données d''entrée'!$C$310)^'1 Données d''entrée'!$C$311-1)*'1 Données d''entrée'!$C$310,0)))","v":0},{"$f":"IF('1 Données d''entrée'!$C$314=\"(=NON)\",IF(R1779>0,$B1778*((('1 Données d''entrée'!$C$310+1)^'1 Données d''entrée'!$C$311)-(1+'1 Données d''entrée'!$C$310)^('6 Financement'!R$54-1-'1 Données d''entrée'!$C$312))/((1+'1 Données d''entrée'!$C$310)^'1 Données d''entrée'!$C$311-1)*'1 Données d''entrée'!$C$310,0),IF(R1742<'1 Données d''entrée'!$C$312+1,'1 Données d''entrée'!$C$310*'6 Financement'!$B1778,IF(R1779>0,$B$90*((('1 Données d''entrée'!$C$310+1)^'1 Données d''entrée'!$C$311)-(1+'1 Données d''entrée'!$C$310)^('6 Financement'!R$54-1-'1 Données d''entrée'!$C$312))/((1+'1 Données d''entrée'!$C$310)^'1 Données d''entrée'!$C$311-1)*'1 Données d''entrée'!$C$310,0)))","v":0},{"$f":"IF('1 Données d''entrée'!$C$314=\"(=NON)\",IF(S1779>0,$B1778*((('1 Données d''entrée'!$C$310+1)^'1 Données d''entrée'!$C$311)-(1+'1 Données d''entrée'!$C$310)^('6 Financement'!S$54-1-'1 Données d''entrée'!$C$312))/((1+'1 Données d''entrée'!$C$310)^'1 Données d''entrée'!$C$311-1)*'1 Données d''entrée'!$C$310,0),IF(S1742<'1 Données d''entrée'!$C$312+1,'1 Données d''entrée'!$C$310*'6 Financement'!$B1778,IF(S1779>0,$B$90*((('1 Données d''entrée'!$C$310+1)^'1 Données d''entrée'!$C$311)-(1+'1 Données d''entrée'!$C$310)^('6 Financement'!S$54-1-'1 Données d''entrée'!$C$312))/((1+'1 Données d''entrée'!$C$310)^'1 Données d''entrée'!$C$311-1)*'1 Données d''entrée'!$C$310,0)))","v":0},{"$f":"IF('1 Données d''entrée'!$C$314=\"(=NON)\",IF(T1779>0,$B1778*((('1 Données d''entrée'!$C$310+1)^'1 Données d''entrée'!$C$311)-(1+'1 Données d''entrée'!$C$310)^('6 Financement'!T$54-1-'1 Données d''entrée'!$C$312))/((1+'1 Données d''entrée'!$C$310)^'1 Données d''entrée'!$C$311-1)*'1 Données d''entrée'!$C$310,0),IF(T1742<'1 Données d''entrée'!$C$312+1,'1 Données d''entrée'!$C$310*'6 Financement'!$B1778,IF(T1779>0,$B$90*((('1 Données d''entrée'!$C$310+1)^'1 Données d''entrée'!$C$311)-(1+'1 Données d''entrée'!$C$310)^('6 Financement'!T$54-1-'1 Données d''entrée'!$C$312))/((1+'1 Données d''entrée'!$C$310)^'1 Données d''entrée'!$C$311-1)*'1 Données d''entrée'!$C$310,0)))","v":0},{"$f":"IF('1 Données d''entrée'!$C$314=\"(=NON)\",IF(U1779>0,$B1778*((('1 Données d''entrée'!$C$310+1)^'1 Données d''entrée'!$C$311)-(1+'1 Données d''entrée'!$C$310)^('6 Financement'!U$54-1-'1 Données d''entrée'!$C$312))/((1+'1 Données d''entrée'!$C$310)^'1 Données d''entrée'!$C$311-1)*'1 Données d''entrée'!$C$310,0),IF(U1742<'1 Données d''entrée'!$C$312+1,'1 Données d''entrée'!$C$310*'6 Financement'!$B1778,IF(U1779>0,$B$90*((('1 Données d''entrée'!$C$310+1)^'1 Données d''entrée'!$C$311)-(1+'1 Données d''entrée'!$C$310)^('6 Financement'!U$54-1-'1 Données d''entrée'!$C$312))/((1+'1 Données d''entrée'!$C$310)^'1 Données d''entrée'!$C$311-1)*'1 Données d''entrée'!$C$310,0)))","v":0},{"$f":"IF('1 Données d''entrée'!$C$314=\"(=NON)\",IF(V1779>0,$B1778*((('1 Données d''entrée'!$C$310+1)^'1 Données d''entrée'!$C$311)-(1+'1 Données d''entrée'!$C$310)^('6 Financement'!V$54-1-'1 Données d''entrée'!$C$312))/((1+'1 Données d''entrée'!$C$310)^'1 Données d''entrée'!$C$311-1)*'1 Données d''entrée'!$C$310,0),IF(V1742<'1 Données d''entrée'!$C$312+1,'1 Données d''entrée'!$C$310*'6 Financement'!$B1778,IF(V1779>0,$B$90*((('1 Données d''entrée'!$C$310+1)^'1 Données d''entrée'!$C$311)-(1+'1 Données d''entrée'!$C$310)^('6 Financement'!V$54-1-'1 Données d''entrée'!$C$312))/((1+'1 Données d''entrée'!$C$310)^'1 Données d''entrée'!$C$311-1)*'1 Données d''entrée'!$C$310,0)))","v":0}]
["Paiements d'intérêt avec des intérêts composés en cas d'absence des paiements dans la période de grâce",0,0,{"$f":"IF(D1742='1 Données d''entrée'!$C$312+1,IF('1 Données d''entrée'!$C$314=\"(=NON)\",($B1778*'1 Données d''entrée'!$C$310)*((('1 Données d''entrée'!$C$310+1)^'1 Données d''entrée'!$C$312-1)/('1 Données d''entrée'!$C$310))*(1+'1 Données d''entrée'!$C$310),0),0)","v":0},{"$f":"IF(E1742='1 Données d''entrée'!$C$312+1,IF('1 Données d''entrée'!$C$314=\"(=NON)\",($B1778*'1 Données d''entrée'!$C$310)*((('1 Données d''entrée'!$C$310+1)^'1 Données d''entrée'!$C$312-1)/('1 Données d''entrée'!$C$310))*(1+'1 Données d''entrée'!$C$310),0),0)","v":0},{"$f":"IF(F1742='1 Données d''entrée'!$C$312+1,IF('1 Données d''entrée'!$C$314=\"(=NON)\",($B1778*'1 Données d''entrée'!$C$310)*((('1 Données d''entrée'!$C$310+1)^'1 Données d''entrée'!$C$312-1)/('1 Données d''entrée'!$C$310))*(1+'1 Données d''entrée'!$C$310),0),0)","v":0},{"$f":"IF(G1742='1 Données d''entrée'!$C$312+1,IF('1 Données d''entrée'!$C$314=\"(=NON)\",($B1778*'1 Données d''entrée'!$C$310)*((('1 Données d''entrée'!$C$310+1)^'1 Données d''entrée'!$C$312-1)/('1 Données d''entrée'!$C$310))*(1+'1 Données d''entrée'!$C$310),0),0)","v":0},{"$f":"IF(H1742='1 Données d''entrée'!$C$312+1,IF('1 Données d''entrée'!$C$314=\"(=NON)\",($B1778*'1 Données d''entrée'!$C$310)*((('1 Données d''entrée'!$C$310+1)^'1 Données d''entrée'!$C$312-1)/('1 Données d''entrée'!$C$310))*(1+'1 Données d''entrée'!$C$310),0),0)","v":0},{"$f":"IF(I1742='1 Données d''entrée'!$C$312+1,IF('1 Données d''entrée'!$C$314=\"(=NON)\",($B1778*'1 Données d''entrée'!$C$310)*((('1 Données d''entrée'!$C$310+1)^'1 Données d''entrée'!$C$312-1)/('1 Données d''entrée'!$C$310))*(1+'1 Données d''entrée'!$C$310),0),0)","v":0},{"$f":"IF(J1742='1 Données d''entrée'!$C$312+1,IF('1 Données d''entrée'!$C$314=\"(=NON)\",($B1778*'1 Données d''entrée'!$C$310)*((('1 Données d''entrée'!$C$310+1)^'1 Données d''entrée'!$C$312-1)/('1 Données d''entrée'!$C$310))*(1+'1 Données d''entrée'!$C$310),0),0)","v":0},{"$f":"IF(K1742='1 Données d''entrée'!$C$312+1,IF('1 Données d''entrée'!$C$314=\"(=NON)\",($B1778*'1 Données d''entrée'!$C$310)*((('1 Données d''entrée'!$C$310+1)^'1 Données d''entrée'!$C$312-1)/('1 Données d''entrée'!$C$310))*(1+'1 Données d''entrée'!$C$310),0),0)","v":0},{"$f":"IF(L1742='1 Données d''entrée'!$C$312+1,IF('1 Données d''entrée'!$C$314=\"(=NON)\",($B1778*'1 Données d''entrée'!$C$310)*((('1 Données d''entrée'!$C$310+1)^'1 Données d''entrée'!$C$312-1)/('1 Données d''entrée'!$C$310))*(1+'1 Données d''entrée'!$C$310),0),0)","v":0},{"$f":"IF(M1742='1 Données d''entrée'!$C$312+1,IF('1 Données d''entrée'!$C$314=\"(=NON)\",($B1778*'1 Données d''entrée'!$C$310)*((('1 Données d''entrée'!$C$310+1)^'1 Données d''entrée'!$C$312-1)/('1 Données d''entrée'!$C$310))*(1+'1 Données d''entrée'!$C$310),0),0)","v":0},{"$f":"IF(N1742='1 Données d''entrée'!$C$312+1,IF('1 Données d''entrée'!$C$314=\"(=NON)\",($B1778*'1 Données d''entrée'!$C$310)*((('1 Données d''entrée'!$C$310+1)^'1 Données d''entrée'!$C$312-1)/('1 Données d''entrée'!$C$310))*(1+'1 Données d''entrée'!$C$310),0),0)","v":0},{"$f":"IF(O1742='1 Données d''entrée'!$C$312+1,IF('1 Données d''entrée'!$C$314=\"(=NON)\",($B1778*'1 Données d''entrée'!$C$310)*((('1 Données d''entrée'!$C$310+1)^'1 Données d''entrée'!$C$312-1)/('1 Données d''entrée'!$C$310))*(1+'1 Données d''entrée'!$C$310),0),0)","v":0},{"$f":"IF(P1742='1 Données d''entrée'!$C$312+1,IF('1 Données d''entrée'!$C$314=\"(=NON)\",($B1778*'1 Données d''entrée'!$C$310)*((('1 Données d''entrée'!$C$310+1)^'1 Données d''entrée'!$C$312-1)/('1 Données d''entrée'!$C$310))*(1+'1 Données d''entrée'!$C$310),0),0)","v":0},{"$f":"IF(Q1742='1 Données d''entrée'!$C$312+1,IF('1 Données d''entrée'!$C$314=\"(=NON)\",($B1778*'1 Données d''entrée'!$C$310)*((('1 Données d''entrée'!$C$310+1)^'1 Données d''entrée'!$C$312-1)/('1 Données d''entrée'!$C$310))*(1+'1 Données d''entrée'!$C$310),0),0)","v":0},{"$f":"IF(R1742='1 Données d''entrée'!$C$312+1,IF('1 Données d''entrée'!$C$314=\"(=NON)\",($B1778*'1 Données d''entrée'!$C$310)*((('1 Données d''entrée'!$C$310+1)^'1 Données d''entrée'!$C$312-1)/('1 Données d''entrée'!$C$310))*(1+'1 Données d''entrée'!$C$310),0),0)","v":0},{"$f":"IF(S1742='1 Données d''entrée'!$C$312+1,IF('1 Données d''entrée'!$C$314=\"(=NON)\",($B1778*'1 Données d''entrée'!$C$310)*((('1 Données d''entrée'!$C$310+1)^'1 Données d''entrée'!$C$312-1)/('1 Données d''entrée'!$C$310))*(1+'1 Données d''entrée'!$C$310),0),0)","v":0},{"$f":"IF(T1742='1 Données d''entrée'!$C$312+1,IF('1 Données d''entrée'!$C$314=\"(=NON)\",($B1778*'1 Données d''entrée'!$C$310)*((('1 Données d''entrée'!$C$310+1)^'1 Données d''entrée'!$C$312-1)/('1 Données d''entrée'!$C$310))*(1+'1 Données d''entrée'!$C$310),0),0)","v":0},{"$f":"IF(U1742='1 Données d''entrée'!$C$312+1,IF('1 Données d''entrée'!$C$314=\"(=NON)\",($B1778*'1 Données d''entrée'!$C$310)*((('1 Données d''entrée'!$C$310+1)^'1 Données d''entrée'!$C$312-1)/('1 Données d''entrée'!$C$310))*(1+'1 Données d''entrée'!$C$310),0),0)","v":0},{"$f":"IF(V1742='1 Données d''entrée'!$C$312+1,IF('1 Données d''entrée'!$C$314=\"(=NON)\",($B1778*'1 Données d''entrée'!$C$310)*((('1 Données d''entrée'!$C$310+1)^'1 Données d''entrée'!$C$312-1)/('1 Données d''entrée'!$C$310))*(1+'1 Données d''entrée'!$C$310),0),0)","v":0}]
[]
["Solde du compte intermédiaire"]
["Solde du comte (par période)",{"$f":"B1744+B1746+B1748+IF($B1750>0,(B1751-B1752-B1753-B1754),0)+IF($B1755>0,(B1756-B1757-B1758-B1759),0)+IF($B1760>0,(B1761-B1762-IF(B1762>0,0,B1763)-B1764),0)+B1766+IF($B1767>0,(B1768-B1769-B1770-B1771),0)+IF($B1772>0,(B1773-B1774-B1775-B1776),0)+IF($B1777>0,B1778-IF(B1779>0,0,B1780)-B1781,0)","v":{"$error":"#DIV/0!"}},{"$f":"C1744+C1746+C1748+IF($B1750>0,(-C1752-C1753-C1754),0)+IF($B1755>0,(-C1757-C1758-C1759),0)+C1766+IF($B1760>0,(-C1762-IF(C1762>0,0,C1763)-C1764),0)+IF($B1767>0,(-C1769-C1770-C1771),0)+IF($B1772>0,(-C1774-C1775-C1776),0)+IF($B1777>0,(-C1779-IF(C1779>0,0,C1780)-C1781),0)","v":{"$error":"#DIV/0!"}},{"$f":"D1744+D1746+D1748+IF($B1750>0,(-D1752-D1753-D1754),0)+IF($B1755>0,(-D1757-D1758-D1759),0)+D1766+IF($B1760>0,(-D1762-IF(D1762>0,0,D1763)-D1764),0)+IF($B1767>0,(-D1769-D1770-D1771),0)+IF($B1772>0,(-D1774-D1775-D1776),0)+IF($B1777>0,(-D1779-IF(D1779>0,0,D1780)-D1781),0)","v":{"$error":"#DIV/0!"}},{"$error":"#DIV/0!"},{"$error":"#DIV/0!"},{"$error":"#DIV/0!"},{"$error":"#DIV/0!"},{"$error":"#DIV/0!"},{"$error":"#DIV/0!"},{"$error":"#DIV/0!"},{"$error":"#DIV/0!"},{"$error":"#DIV/0!"},{"$error":"#DIV/0!"},{"$error":"#DIV/0!"},{"$error":"#DIV/0!"},{"$error":"#DIV/0!"},{"$error":"#DIV/0!"},{"$error":"#DIV/0!"},{"$error":"#DIV/0!"},{"$error":"#DIV/0!"},{"$error":"#DIV/0!"}]
["Solde du compte (cumulé)",{"$f":"B1784","v":{"$error":"#DIV/0!"}},{"$f":"B1785+C1784","v":{"$error":"#DIV/0!"}},{"$error":"#DIV/0!"},{"$error":"#DIV/0!"},{"$error":"#DIV/0!"},{"$error":"#DIV/0!"},{"$error":"#DIV/0!"},{"$error":"#DIV/0!"},{"$error":"#DIV/0!"},{"$error":"#DIV/0!"},{"$error":"#DIV/0!"},{"$error":"#DIV/0!"},{"$error":"#DIV/0!"},{"$error":"#DIV/0!"},{"$error":"#DIV/0!"},{"$error":"#DIV/0!"},{"$error":"#DIV/0!"},{"$error":"#DIV/0!"},{"$error":"#DIV/0!"},{"$error":"#DIV/0!"},{"$error":"#DIV/0!"}]
[]
[]
[]
["Prêt bancaire additionnel"]
[null,"Période",1,2,3,4,5,6,7,8,9,10,11,12,13,14,15,16,17,18,19,20]
["Prêt bancaire additionnel - Option 1: Remboursement du principal fractionné",{"$f":"'1 Données d''entrée'!$B$342","v":0}]
["Prêt(s) nouveau(x)",null,{"$f":"IF(C1785<0,C1785*(-1)*$B1791+C1785*(-1)*$B1791*'1 Données d''entrée'!$C$338,0)","v":{"$error":"#DIV/0!"}},{"$f":"IF(D1785<0,D1785*(-1)*$B1791+D1785*(-1)*$B1791*'1 Données d''entrée'!$C$338,0)","v":{"$error":"#DIV/0!"}},{"$f":"IF(E1785<0,E1785*(-1)*$B1791+E1785*(-1)*$B1791*'1 Données d''entrée'!$C$338,0)","v":{"$error":"#DIV/0!"}},{"$f":"IF(F1785<0,F1785*(-1)*$B1791+F1785*(-1)*$B1791*'1 Données d''entrée'!$C$338,0)","v":{"$error":"#DIV/0!"}},{"$f":"IF(G1785<0,G1785*(-1)*$B1791+G1785*(-1)*$B1791*'1 Données d''entrée'!$C$338,0)","v":{"$error":"#DIV/0!"}},{"$f":"IF(H1785<0,H1785*(-1)*$B1791+H1785*(-1)*$B1791*'1 Données d''entrée'!$C$338,0)","v":{"$error":"#DIV/0!"}},{"$f":"IF(I1785<0,I1785*(-1)*$B1791+I1785*(-1)*$B1791*'1 Données d''entrée'!$C$338,0)","v":{"$error":"#DIV/0!"}},{"$f":"IF(J1785<0,J1785*(-1)*$B1791+J1785*(-1)*$B1791*'1 Données d''entrée'!$C$338,0)","v":{"$error":"#DIV/0!"}},{"$f":"IF(K1785<0,K1785*(-1)*$B1791+K1785*(-1)*$B1791*'1 Données d''entrée'!$C$338,0)","v":{"$error":"#DIV/0!"}},{"$f":"IF(L1785<0,L1785*(-1)*$B1791+L1785*(-1)*$B1791*'1 Données d''entrée'!$C$338,0)","v":{"$error":"#DIV/0!"}},{"$f":"IF(M1785<0,M1785*(-1)*$B1791+M1785*(-1)*$B1791*'1 Données d''entrée'!$C$338,0)","v":{"$error":"#DIV/0!"}},{"$f":"IF(N1785<0,N1785*(-1)*$B1791+N1785*(-1)*$B1791*'1 Données d''entrée'!$C$338,0)","v":{"$error":"#DIV/0!"}},{"$f":"IF(O1785<0,O1785*(-1)*$B1791+O1785*(-1)*$B1791*'1 Données d''entrée'!$C$338,0)","v":{"$error":"#DIV/0!"}},{"$f":"IF(P1785<0,P1785*(-1)*$B1791+P1785*(-1)*$B1791*'1 Données d''entrée'!$C$338,0)","v":{"$error":"#DIV/0!"}},{"$f":"IF(Q1785<0,Q1785*(-1)*$B1791+Q1785*(-1)*$B1791*'1 Données d''entrée'!$C$338,0)","v":{"$error":"#DIV/0!"}},{"$f":"IF(R1785<0,R1785*(-1)*$B1791+R1785*(-1)*$B1791*'1 Données d''entrée'!$C$338,0)","v":{"$error":"#DIV/0!"}},{"$f":"IF(S1785<0,S1785*(-1)*$B1791+S1785*(-1)*$B1791*'1 Données d''entrée'!$C$338,0)","v":{"$error":"#DIV/0!"}},{"$f":"IF(T1785<0,T1785*(-1)*$B1791+T1785*(-1)*$B1791*'1 Données d''entrée'!$C$338,0)","v":{"$error":"#DIV/0!"}},{"$f":"IF(U1785<0,U1785*(-1)*$B1791+U1785*(-1)*$B1791*'1 Données d''entrée'!$C$338,0)","v":{"$error":"#DIV/0!"}},{"$f":"IF(V1785<0,V1785*(-1)*$B1791+V1785*(-1)*$B1791*'1 Données d''entrée'!$C$338,0)","v":{"$error":"#DIV/0!"}}]
[null,"Période de prêt nouveau"]
["Remboursement du principal",0,0,0,0,0,0,0,0,0,0,0,0,0,0,0,0,0,0,0,0,0]
[null,1,{"$f":"IF(C1742<'1 Données d''entrée'!$C$334+1+$B1795,0,IF(C1742<'1 Données d''entrée'!$C$333+'1 Données d''entrée'!$C$334+1+$B1795,($C1792/'1 Données d''entrée'!$C$333),0))","v":0},{"$f":"IF(D1742<'1 Données d''entrée'!$C$334+1+$B1795,0,IF(D1742<'1 Données d''entrée'!$C$333+'1 Données d''entrée'!$C$334+1+$B1795,($C1792/'1 Données d''entrée'!$C$333),0))","v":0},{"$f":"IF(E1742<'1 Données d''entrée'!$C$334+1+$B1795,0,IF(E1742<'1 Données d''entrée'!$C$333+'1 Données d''entrée'!$C$334+1+$B1795,($C1792/'1 Données d''entrée'!$C$333),0))","v":0},{"$f":"IF(F1742<'1 Données d''entrée'!$C$334+1+$B1795,0,IF(F1742<'1 Données d''entrée'!$C$333+'1 Données d''entrée'!$C$334+1+$B1795,($C1792/'1 Données d''entrée'!$C$333),0))","v":0},{"$f":"IF(G1742<'1 Données d''entrée'!$C$334+1+$B1795,0,IF(G1742<'1 Données d''entrée'!$C$333+'1 Données d''entrée'!$C$334+1+$B1795,($C1792/'1 Données d''entrée'!$C$333),0))","v":0},{"$f":"IF(H1742<'1 Données d''entrée'!$C$334+1+$B1795,0,IF(H1742<'1 Données d''entrée'!$C$333+'1 Données d''entrée'!$C$334+1+$B1795,($C1792/'1 Données d''entrée'!$C$333),0))","v":0},{"$f":"IF(I1742<'1 Données d''entrée'!$C$334+1+$B1795,0,IF(I1742<'1 Données d''entrée'!$C$333+'1 Données d''entrée'!$C$334+1+$B1795,($C1792/'1 Données d''entrée'!$C$333),0))","v":0},{"$f":"IF(J1742<'1 Données d''entrée'!$C$334+1+$B1795,0,IF(J1742<'1 Données d''entrée'!$C$333+'1 Données d''entrée'!$C$334+1+$B1795,($C1792/'1 Données d''entrée'!$C$333),0))","v":0},{"$f":"IF(K1742<'1 Données d''entrée'!$C$334+1+$B1795,0,IF(K1742<'1 Données d''entrée'!$C$333+'1 Données d''entrée'!$C$334+1+$B1795,($C1792/'1 Données d''entrée'!$C$333),0))","v":0},{"$f":"IF(L1742<'1 Données d''entrée'!$C$334+1+$B1795,0,IF(L1742<'1 Données d''entrée'!$C$333+'1 Données d''entrée'!$C$334+1+$B1795,($C1792/'1 Données d''entrée'!$C$333),0))","v":0},{"$f":"IF(M1742<'1 Données d''entrée'!$C$334+1+$B1795,0,IF(M1742<'1 Données d''entrée'!$C$333+'1 Données d''entrée'!$C$334+1+$B1795,($C1792/'1 Données d''entrée'!$C$333),0))","v":0},{"$f":"IF(N1742<'1 Données d''entrée'!$C$334+1+$B1795,0,IF(N1742<'1 Données d''entrée'!$C$333+'1 Données d''entrée'!$C$334+1+$B1795,($C1792/'1 Données d''entrée'!$C$333),0))","v":0},{"$f":"IF(O1742<'1 Données d''entrée'!$C$334+1+$B1795,0,IF(O1742<'1 Données d''entrée'!$C$333+'1 Données d''entrée'!$C$334+1+$B1795,($C1792/'1 Données d''entrée'!$C$333),0))","v":0},{"$f":"IF(P1742<'1 Données d''entrée'!$C$334+1+$B1795,0,IF(P1742<'1 Données d''entrée'!$C$333+'1 Données d''entrée'!$C$334+1+$B1795,($C1792/'1 Données d''entrée'!$C$333),0))","v":0},{"$f":"IF(Q1742<'1 Données d''entrée'!$C$334+1+$B1795,0,IF(Q1742<'1 Données d''entrée'!$C$333+'1 Données d''entrée'!$C$334+1+$B1795,($C1792/'1 Données d''entrée'!$C$333),0))","v":0},{"$f":"IF(R1742<'1 Données d''entrée'!$C$334+1+$B1795,0,IF(R1742<'1 Données d''entrée'!$C$333+'1 Données d''entrée'!$C$334+1+$B1795,($C1792/'1 Données d''entrée'!$C$333),0))","v":0},{"$f":"IF(S1742<'1 Données d''entrée'!$C$334+1+$B1795,0,IF(S1742<'1 Données d''entrée'!$C$333+'1 Données d''entrée'!$C$334+1+$B1795,($C1792/'1 Données d''entrée'!$C$333),0))","v":0},{"$f":"IF(T1742<'1 Données d''entrée'!$C$334+1+$B1795,0,IF(T1742<'1 Données d''entrée'!$C$333+'1 Données d''entrée'!$C$334+1+$B1795,($C1792/'1 Données d''entrée'!$C$333),0))","v":0},{"$f":"IF(U1742<'1 Données d''entrée'!$C$334+1+$B1795,0,IF(U1742<'1 Données d''entrée'!$C$333+'1 Données d''entrée'!$C$334+1+$B1795,($C1792/'1 Données d''entrée'!$C$333),0))","v":0},{"$f":"IF(V1742<'1 Données d''entrée'!$C$334+1+$B1795,0,IF(V1742<'1 Données d''entrée'!$C$333+'1 Données d''entrée'!$C$334+1+$B1795,($C1792/'1 Données d''entrée'!$C$333),0))","v":0}]
[null,2,{"$f":"IF(C1742<'1 Données d''entrée'!$C$334+1+$B1796,0,IF(C1742<'1 Données d''entrée'!$C$333+'1 Données d''entrée'!$C$334+1+$B1796,($D1792/'1 Données d''entrée'!$C$333),0))","v":0},{"$f":"IF(D1742<'1 Données d''entrée'!$C$334+1+$B1796,0,IF(D1742<'1 Données d''entrée'!$C$333+'1 Données d''entrée'!$C$334+1+$B1796,($D1792/'1 Données d''entrée'!$C$333),0))","v":0},{"$f":"IF(E1742<'1 Données d''entrée'!$C$334+1+$B1796,0,IF(E1742<'1 Données d''entrée'!$C$333+'1 Données d''entrée'!$C$334+1+$B1796,($D1792/'1 Données d''entrée'!$C$333),0))","v":0},{"$f":"IF(F1742<'1 Données d''entrée'!$C$334+1+$B1796,0,IF(F1742<'1 Données d''entrée'!$C$333+'1 Données d''entrée'!$C$334+1+$B1796,($D1792/'1 Données d''entrée'!$C$333),0))","v":0},{"$f":"IF(G1742<'1 Données d''entrée'!$C$334+1+$B1796,0,IF(G1742<'1 Données d''entrée'!$C$333+'1 Données d''entrée'!$C$334+1+$B1796,($D1792/'1 Données d''entrée'!$C$333),0))","v":0},{"$f":"IF(H1742<'1 Données d''entrée'!$C$334+1+$B1796,0,IF(H1742<'1 Données d''entrée'!$C$333+'1 Données d''entrée'!$C$334+1+$B1796,($D1792/'1 Données d''entrée'!$C$333),0))","v":0},{"$f":"IF(I1742<'1 Données d''entrée'!$C$334+1+$B1796,0,IF(I1742<'1 Données d''entrée'!$C$333+'1 Données d''entrée'!$C$334+1+$B1796,($D1792/'1 Données d''entrée'!$C$333),0))","v":0},{"$f":"IF(J1742<'1 Données d''entrée'!$C$334+1+$B1796,0,IF(J1742<'1 Données d''entrée'!$C$333+'1 Données d''entrée'!$C$334+1+$B1796,($D1792/'1 Données d''entrée'!$C$333),0))","v":0},{"$f":"IF(K1742<'1 Données d''entrée'!$C$334+1+$B1796,0,IF(K1742<'1 Données d''entrée'!$C$333+'1 Données d''entrée'!$C$334+1+$B1796,($D1792/'1 Données d''entrée'!$C$333),0))","v":0},{"$f":"IF(L1742<'1 Données d''entrée'!$C$334+1+$B1796,0,IF(L1742<'1 Données d''entrée'!$C$333+'1 Données d''entrée'!$C$334+1+$B1796,($D1792/'1 Données d''entrée'!$C$333),0))","v":0},{"$f":"IF(M1742<'1 Données d''entrée'!$C$334+1+$B1796,0,IF(M1742<'1 Données d''entrée'!$C$333+'1 Données d''entrée'!$C$334+1+$B1796,($D1792/'1 Données d''entrée'!$C$333),0))","v":0},{"$f":"IF(N1742<'1 Données d''entrée'!$C$334+1+$B1796,0,IF(N1742<'1 Données d''entrée'!$C$333+'1 Données d''entrée'!$C$334+1+$B1796,($D1792/'1 Données d''entrée'!$C$333),0))","v":0},{"$f":"IF(O1742<'1 Données d''entrée'!$C$334+1+$B1796,0,IF(O1742<'1 Données d''entrée'!$C$333+'1 Données d''entrée'!$C$334+1+$B1796,($D1792/'1 Données d''entrée'!$C$333),0))","v":0},{"$f":"IF(P1742<'1 Données d''entrée'!$C$334+1+$B1796,0,IF(P1742<'1 Données d''entrée'!$C$333+'1 Données d''entrée'!$C$334+1+$B1796,($D1792/'1 Données d''entrée'!$C$333),0))","v":0},{"$f":"IF(Q1742<'1 Données d''entrée'!$C$334+1+$B1796,0,IF(Q1742<'1 Données d''entrée'!$C$333+'1 Données d''entrée'!$C$334+1+$B1796,($D1792/'1 Données d''entrée'!$C$333),0))","v":0},{"$f":"IF(R1742<'1 Données d''entrée'!$C$334+1+$B1796,0,IF(R1742<'1 Données d''entrée'!$C$333+'1 Données d''entrée'!$C$334+1+$B1796,($D1792/'1 Données d''entrée'!$C$333),0))","v":0},{"$f":"IF(S1742<'1 Données d''entrée'!$C$334+1+$B1796,0,IF(S1742<'1 Données d''entrée'!$C$333+'1 Données d''entrée'!$C$334+1+$B1796,($D1792/'1 Données d''entrée'!$C$333),0))","v":0},{"$f":"IF(T1742<'1 Données d''entrée'!$C$334+1+$B1796,0,IF(T1742<'1 Données d''entrée'!$C$333+'1 Données d''entrée'!$C$334+1+$B1796,($D1792/'1 Données d''entrée'!$C$333),0))","v":0},{"$f":"IF(U1742<'1 Données d''entrée'!$C$334+1+$B1796,0,IF(U1742<'1 Données d''entrée'!$C$333+'1 Données d''entrée'!$C$334+1+$B1796,($D1792/'1 Données d''entrée'!$C$333),0))","v":0},{"$f":"IF(V1742<'1 Données d''entrée'!$C$334+1+$B1796,0,IF(V1742<'1 Données d''entrée'!$C$333+'1 Données d''entrée'!$C$334+1+$B1796,($D1792/'1 Données d''entrée'!$C$333),0))","v":0}]
[null,3,{"$f":"IF(C1742<'1 Données d''entrée'!$C$334+1+$B1797,0,IF(C1742<'1 Données d''entrée'!$C$333+'1 Données d''entrée'!$C$334+1+$B1797,($E1792/'1 Données d''entrée'!$C$333),0))","v":0},{"$f":"IF(D1742<'1 Données d''entrée'!$C$334+1+$B1797,0,IF(D1742<'1 Données d''entrée'!$C$333+'1 Données d''entrée'!$C$334+1+$B1797,($E1792/'1 Données d''entrée'!$C$333),0))","v":0},{"$f":"IF(E1742<'1 Données d''entrée'!$C$334+1+$B1797,0,IF(E1742<'1 Données d''entrée'!$C$333+'1 Données d''entrée'!$C$334+1+$B1797,($E1792/'1 Données d''entrée'!$C$333),0))","v":0},{"$f":"IF(F1742<'1 Données d''entrée'!$C$334+1+$B1797,0,IF(F1742<'1 Données d''entrée'!$C$333+'1 Données d''entrée'!$C$334+1+$B1797,($E1792/'1 Données d''entrée'!$C$333),0))","v":0},{"$f":"IF(G1742<'1 Données d''entrée'!$C$334+1+$B1797,0,IF(G1742<'1 Données d''entrée'!$C$333+'1 Données d''entrée'!$C$334+1+$B1797,($E1792/'1 Données d''entrée'!$C$333),0))","v":0},{"$f":"IF(H1742<'1 Données d''entrée'!$C$334+1+$B1797,0,IF(H1742<'1 Données d''entrée'!$C$333+'1 Données d''entrée'!$C$334+1+$B1797,($E1792/'1 Données d''entrée'!$C$333),0))","v":0},{"$f":"IF(I1742<'1 Données d''entrée'!$C$334+1+$B1797,0,IF(I1742<'1 Données d''entrée'!$C$333+'1 Données d''entrée'!$C$334+1+$B1797,($E1792/'1 Données d''entrée'!$C$333),0))","v":0},{"$f":"IF(J1742<'1 Données d''entrée'!$C$334+1+$B1797,0,IF(J1742<'1 Données d''entrée'!$C$333+'1 Données d''entrée'!$C$334+1+$B1797,($E1792/'1 Données d''entrée'!$C$333),0))","v":0},{"$f":"IF(K1742<'1 Données d''entrée'!$C$334+1+$B1797,0,IF(K1742<'1 Données d''entrée'!$C$333+'1 Données d''entrée'!$C$334+1+$B1797,($E1792/'1 Données d''entrée'!$C$333),0))","v":0},{"$f":"IF(L1742<'1 Données d''entrée'!$C$334+1+$B1797,0,IF(L1742<'1 Données d''entrée'!$C$333+'1 Données d''entrée'!$C$334+1+$B1797,($E1792/'1 Données d''entrée'!$C$333),0))","v":0},{"$f":"IF(M1742<'1 Données d''entrée'!$C$334+1+$B1797,0,IF(M1742<'1 Données d''entrée'!$C$333+'1 Données d''entrée'!$C$334+1+$B1797,($E1792/'1 Données d''entrée'!$C$333),0))","v":0},{"$f":"IF(N1742<'1 Données d''entrée'!$C$334+1+$B1797,0,IF(N1742<'1 Données d''entrée'!$C$333+'1 Données d''entrée'!$C$334+1+$B1797,($E1792/'1 Données d''entrée'!$C$333),0))","v":0},{"$f":"IF(O1742<'1 Données d''entrée'!$C$334+1+$B1797,0,IF(O1742<'1 Données d''entrée'!$C$333+'1 Données d''entrée'!$C$334+1+$B1797,($E1792/'1 Données d''entrée'!$C$333),0))","v":0},{"$f":"IF(P1742<'1 Données d''entrée'!$C$334+1+$B1797,0,IF(P1742<'1 Données d''entrée'!$C$333+'1 Données d''entrée'!$C$334+1+$B1797,($E1792/'1 Données d''entrée'!$C$333),0))","v":0},{"$f":"IF(Q1742<'1 Données d''entrée'!$C$334+1+$B1797,0,IF(Q1742<'1 Données d''entrée'!$C$333+'1 Données d''entrée'!$C$334+1+$B1797,($E1792/'1 Données d''entrée'!$C$333),0))","v":0},{"$f":"IF(R1742<'1 Données d''entrée'!$C$334+1+$B1797,0,IF(R1742<'1 Données d''entrée'!$C$333+'1 Données d''entrée'!$C$334+1+$B1797,($E1792/'1 Données d''entrée'!$C$333),0))","v":0},{"$f":"IF(S1742<'1 Données d''entrée'!$C$334+1+$B1797,0,IF(S1742<'1 Données d''entrée'!$C$333+'1 Données d''entrée'!$C$334+1+$B1797,($E1792/'1 Données d''entrée'!$C$333),0))","v":0},{"$f":"IF(T1742<'1 Données d''entrée'!$C$334+1+$B1797,0,IF(T1742<'1 Données d''entrée'!$C$333+'1 Données d''entrée'!$C$334+1+$B1797,($E1792/'1 Données d''entrée'!$C$333),0))","v":0},{"$f":"IF(U1742<'1 Données d''entrée'!$C$334+1+$B1797,0,IF(U1742<'1 Données d''entrée'!$C$333+'1 Données d''entrée'!$C$334+1+$B1797,($E1792/'1 Données d''entrée'!$C$333),0))","v":0},{"$f":"IF(V1742<'1 Données d''entrée'!$C$334+1+$B1797,0,IF(V1742<'1 Données d''entrée'!$C$333+'1 Données d''entrée'!$C$334+1+$B1797,($E1792/'1 Données d''entrée'!$C$333),0))","v":0}]
[null,4,{"$f":"IF(C1742<'1 Données d''entrée'!$C$334+1+$B1798,0,IF(C1742<'1 Données d''entrée'!$C$333+'1 Données d''entrée'!$C$334+1+$B1798,($F1792/'1 Données d''entrée'!$C$333),0))","v":0},{"$f":"IF(D1742<'1 Données d''entrée'!$C$334+1+$B1798,0,IF(D1742<'1 Données d''entrée'!$C$333+'1 Données d''entrée'!$C$334+1+$B1798,($F1792/'1 Données d''entrée'!$C$333),0))","v":0},{"$f":"IF(E1742<'1 Données d''entrée'!$C$334+1+$B1798,0,IF(E1742<'1 Données d''entrée'!$C$333+'1 Données d''entrée'!$C$334+1+$B1798,($F1792/'1 Données d''entrée'!$C$333),0))","v":0},{"$f":"IF(F1742<'1 Données d''entrée'!$C$334+1+$B1798,0,IF(F1742<'1 Données d''entrée'!$C$333+'1 Données d''entrée'!$C$334+1+$B1798,($F1792/'1 Données d''entrée'!$C$333),0))","v":0},{"$f":"IF(G1742<'1 Données d''entrée'!$C$334+1+$B1798,0,IF(G1742<'1 Données d''entrée'!$C$333+'1 Données d''entrée'!$C$334+1+$B1798,($F1792/'1 Données d''entrée'!$C$333),0))","v":0},{"$f":"IF(H1742<'1 Données d''entrée'!$C$334+1+$B1798,0,IF(H1742<'1 Données d''entrée'!$C$333+'1 Données d''entrée'!$C$334+1+$B1798,($F1792/'1 Données d''entrée'!$C$333),0))","v":0},{"$f":"IF(I1742<'1 Données d''entrée'!$C$334+1+$B1798,0,IF(I1742<'1 Données d''entrée'!$C$333+'1 Données d''entrée'!$C$334+1+$B1798,($F1792/'1 Données d''entrée'!$C$333),0))","v":0},{"$f":"IF(J1742<'1 Données d''entrée'!$C$334+1+$B1798,0,IF(J1742<'1 Données d''entrée'!$C$333+'1 Données d''entrée'!$C$334+1+$B1798,($F1792/'1 Données d''entrée'!$C$333),0))","v":0},{"$f":"IF(K1742<'1 Données d''entrée'!$C$334+1+$B1798,0,IF(K1742<'1 Données d''entrée'!$C$333+'1 Données d''entrée'!$C$334+1+$B1798,($F1792/'1 Données d''entrée'!$C$333),0))","v":0},{"$f":"IF(L1742<'1 Données d''entrée'!$C$334+1+$B1798,0,IF(L1742<'1 Données d''entrée'!$C$333+'1 Données d''entrée'!$C$334+1+$B1798,($F1792/'1 Données d''entrée'!$C$333),0))","v":0},{"$f":"IF(M1742<'1 Données d''entrée'!$C$334+1+$B1798,0,IF(M1742<'1 Données d''entrée'!$C$333+'1 Données d''entrée'!$C$334+1+$B1798,($F1792/'1 Données d''entrée'!$C$333),0))","v":0},{"$f":"IF(N1742<'1 Données d''entrée'!$C$334+1+$B1798,0,IF(N1742<'1 Données d''entrée'!$C$333+'1 Données d''entrée'!$C$334+1+$B1798,($F1792/'1 Données d''entrée'!$C$333),0))","v":0},{"$f":"IF(O1742<'1 Données d''entrée'!$C$334+1+$B1798,0,IF(O1742<'1 Données d''entrée'!$C$333+'1 Données d''entrée'!$C$334+1+$B1798,($F1792/'1 Données d''entrée'!$C$333),0))","v":0},{"$f":"IF(P1742<'1 Données d''entrée'!$C$334+1+$B1798,0,IF(P1742<'1 Données d''entrée'!$C$333+'1 Données d''entrée'!$C$334+1+$B1798,($F1792/'1 Données d''entrée'!$C$333),0))","v":0},{"$f":"IF(Q1742<'1 Données d''entrée'!$C$334+1+$B1798,0,IF(Q1742<'1 Données d''entrée'!$C$333+'1 Données d''entrée'!$C$334+1+$B1798,($F1792/'1 Données d''entrée'!$C$333),0))","v":0},{"$f":"IF(R1742<'1 Données d''entrée'!$C$334+1+$B1798,0,IF(R1742<'1 Données d''entrée'!$C$333+'1 Données d''entrée'!$C$334+1+$B1798,($F1792/'1 Données d''entrée'!$C$333),0))","v":0},{"$f":"IF(S1742<'1 Données d''entrée'!$C$334+1+$B1798,0,IF(S1742<'1 Données d''entrée'!$C$333+'1 Données d''entrée'!$C$334+1+$B1798,($F1792/'1 Données d''entrée'!$C$333),0))","v":0},{"$f":"IF(T1742<'1 Données d''entrée'!$C$334+1+$B1798,0,IF(T1742<'1 Données d''entrée'!$C$333+'1 Données d''entrée'!$C$334+1+$B1798,($F1792/'1 Données d''entrée'!$C$333),0))","v":0},{"$f":"IF(U1742<'1 Données d''entrée'!$C$334+1+$B1798,0,IF(U1742<'1 Données d''entrée'!$C$333+'1 Données d''entrée'!$C$334+1+$B1798,($F1792/'1 Données d''entrée'!$C$333),0))","v":0},{"$f":"IF(V1742<'1 Données d''entrée'!$C$334+1+$B1798,0,IF(V1742<'1 Données d''entrée'!$C$333+'1 Données d''entrée'!$C$334+1+$B1798,($F1792/'1 Données d''entrée'!$C$333),0))","v":0}]
[null,5,{"$f":"IF(C1742<'1 Données d''entrée'!$C$334+1+$B1799,0,IF(C1742<'1 Données d''entrée'!$C$333+'1 Données d''entrée'!$C$334+1+$B1799,($G1792/'1 Données d''entrée'!$C$333),0))","v":0},{"$f":"IF(D1742<'1 Données d''entrée'!$C$334+1+$B1799,0,IF(D1742<'1 Données d''entrée'!$C$333+'1 Données d''entrée'!$C$334+1+$B1799,($G1792/'1 Données d''entrée'!$C$333),0))","v":0},{"$f":"IF(E1742<'1 Données d''entrée'!$C$334+1+$B1799,0,IF(E1742<'1 Données d''entrée'!$C$333+'1 Données d''entrée'!$C$334+1+$B1799,($G1792/'1 Données d''entrée'!$C$333),0))","v":0},{"$f":"IF(F1742<'1 Données d''entrée'!$C$334+1+$B1799,0,IF(F1742<'1 Données d''entrée'!$C$333+'1 Données d''entrée'!$C$334+1+$B1799,($G1792/'1 Données d''entrée'!$C$333),0))","v":0},{"$f":"IF(G1742<'1 Données d''entrée'!$C$334+1+$B1799,0,IF(G1742<'1 Données d''entrée'!$C$333+'1 Données d''entrée'!$C$334+1+$B1799,($G1792/'1 Données d''entrée'!$C$333),0))","v":0},{"$f":"IF(H1742<'1 Données d''entrée'!$C$334+1+$B1799,0,IF(H1742<'1 Données d''entrée'!$C$333+'1 Données d''entrée'!$C$334+1+$B1799,($G1792/'1 Données d''entrée'!$C$333),0))","v":0},{"$f":"IF(I1742<'1 Données d''entrée'!$C$334+1+$B1799,0,IF(I1742<'1 Données d''entrée'!$C$333+'1 Données d''entrée'!$C$334+1+$B1799,($G1792/'1 Données d''entrée'!$C$333),0))","v":0},{"$f":"IF(J1742<'1 Données d''entrée'!$C$334+1+$B1799,0,IF(J1742<'1 Données d''entrée'!$C$333+'1 Données d''entrée'!$C$334+1+$B1799,($G1792/'1 Données d''entrée'!$C$333),0))","v":0},{"$f":"IF(K1742<'1 Données d''entrée'!$C$334+1+$B1799,0,IF(K1742<'1 Données d''entrée'!$C$333+'1 Données d''entrée'!$C$334+1+$B1799,($G1792/'1 Données d''entrée'!$C$333),0))","v":0},{"$f":"IF(L1742<'1 Données d''entrée'!$C$334+1+$B1799,0,IF(L1742<'1 Données d''entrée'!$C$333+'1 Données d''entrée'!$C$334+1+$B1799,($G1792/'1 Données d''entrée'!$C$333),0))","v":0},{"$f":"IF(M1742<'1 Données d''entrée'!$C$334+1+$B1799,0,IF(M1742<'1 Données d''entrée'!$C$333+'1 Données d''entrée'!$C$334+1+$B1799,($G1792/'1 Données d''entrée'!$C$333),0))","v":0},{"$f":"IF(N1742<'1 Données d''entrée'!$C$334+1+$B1799,0,IF(N1742<'1 Données d''entrée'!$C$333+'1 Données d''entrée'!$C$334+1+$B1799,($G1792/'1 Données d''entrée'!$C$333),0))","v":0},{"$f":"IF(O1742<'1 Données d''entrée'!$C$334+1+$B1799,0,IF(O1742<'1 Données d''entrée'!$C$333+'1 Données d''entrée'!$C$334+1+$B1799,($G1792/'1 Données d''entrée'!$C$333),0))","v":0},{"$f":"IF(P1742<'1 Données d''entrée'!$C$334+1+$B1799,0,IF(P1742<'1 Données d''entrée'!$C$333+'1 Données d''entrée'!$C$334+1+$B1799,($G1792/'1 Données d''entrée'!$C$333),0))","v":0},{"$f":"IF(Q1742<'1 Données d''entrée'!$C$334+1+$B1799,0,IF(Q1742<'1 Données d''entrée'!$C$333+'1 Données d''entrée'!$C$334+1+$B1799,($G1792/'1 Données d''entrée'!$C$333),0))","v":0},{"$f":"IF(R1742<'1 Données d''entrée'!$C$334+1+$B1799,0,IF(R1742<'1 Données d''entrée'!$C$333+'1 Données d''entrée'!$C$334+1+$B1799,($G1792/'1 Données d''entrée'!$C$333),0))","v":0},{"$f":"IF(S1742<'1 Données d''entrée'!$C$334+1+$B1799,0,IF(S1742<'1 Données d''entrée'!$C$333+'1 Données d''entrée'!$C$334+1+$B1799,($G1792/'1 Données d''entrée'!$C$333),0))","v":0},{"$f":"IF(T1742<'1 Données d''entrée'!$C$334+1+$B1799,0,IF(T1742<'1 Données d''entrée'!$C$333+'1 Données d''entrée'!$C$334+1+$B1799,($G1792/'1 Données d''entrée'!$C$333),0))","v":0},{"$f":"IF(U1742<'1 Données d''entrée'!$C$334+1+$B1799,0,IF(U1742<'1 Données d''entrée'!$C$333+'1 Données d''entrée'!$C$334+1+$B1799,($G1792/'1 Données d''entrée'!$C$333),0))","v":0},{"$f":"IF(V1742<'1 Données d''entrée'!$C$334+1+$B1799,0,IF(V1742<'1 Données d''entrée'!$C$333+'1 Données d''entrée'!$C$334+1+$B1799,($G1792/'1 Données d''entrée'!$C$333),0))","v":0}]
[null,6,{"$f":"IF(C1742<'1 Données d''entrée'!$C$334+1+$B1800,0,IF(C1742<'1 Données d''entrée'!$C$333+'1 Données d''entrée'!$C$334+1+$B1800,($H1792/'1 Données d''entrée'!$C$333),0))","v":0},{"$f":"IF(D1742<'1 Données d''entrée'!$C$334+1+$B1800,0,IF(D1742<'1 Données d''entrée'!$C$333+'1 Données d''entrée'!$C$334+1+$B1800,($H1792/'1 Données d''entrée'!$C$333),0))","v":0},{"$f":"IF(E1742<'1 Données d''entrée'!$C$334+1+$B1800,0,IF(E1742<'1 Données d''entrée'!$C$333+'1 Données d''entrée'!$C$334+1+$B1800,($H1792/'1 Données d''entrée'!$C$333),0))","v":0},{"$f":"IF(F1742<'1 Données d''entrée'!$C$334+1+$B1800,0,IF(F1742<'1 Données d''entrée'!$C$333+'1 Données d''entrée'!$C$334+1+$B1800,($H1792/'1 Données d''entrée'!$C$333),0))","v":0},{"$f":"IF(G1742<'1 Données d''entrée'!$C$334+1+$B1800,0,IF(G1742<'1 Données d''entrée'!$C$333+'1 Données d''entrée'!$C$334+1+$B1800,($H1792/'1 Données d''entrée'!$C$333),0))","v":0},{"$f":"IF(H1742<'1 Données d''entrée'!$C$334+1+$B1800,0,IF(H1742<'1 Données d''entrée'!$C$333+'1 Données d''entrée'!$C$334+1+$B1800,($H1792/'1 Données d''entrée'!$C$333),0))","v":0},{"$f":"IF(I1742<'1 Données d''entrée'!$C$334+1+$B1800,0,IF(I1742<'1 Données d''entrée'!$C$333+'1 Données d''entrée'!$C$334+1+$B1800,($H1792/'1 Données d''entrée'!$C$333),0))","v":0},{"$f":"IF(J1742<'1 Données d''entrée'!$C$334+1+$B1800,0,IF(J1742<'1 Données d''entrée'!$C$333+'1 Données d''entrée'!$C$334+1+$B1800,($H1792/'1 Données d''entrée'!$C$333),0))","v":0},{"$f":"IF(K1742<'1 Données d''entrée'!$C$334+1+$B1800,0,IF(K1742<'1 Données d''entrée'!$C$333+'1 Données d''entrée'!$C$334+1+$B1800,($H1792/'1 Données d''entrée'!$C$333),0))","v":0},{"$f":"IF(L1742<'1 Données d''entrée'!$C$334+1+$B1800,0,IF(L1742<'1 Données d''entrée'!$C$333+'1 Données d''entrée'!$C$334+1+$B1800,($H1792/'1 Données d''entrée'!$C$333),0))","v":0},{"$f":"IF(M1742<'1 Données d''entrée'!$C$334+1+$B1800,0,IF(M1742<'1 Données d''entrée'!$C$333+'1 Données d''entrée'!$C$334+1+$B1800,($H1792/'1 Données d''entrée'!$C$333),0))","v":0},{"$f":"IF(N1742<'1 Données d''entrée'!$C$334+1+$B1800,0,IF(N1742<'1 Données d''entrée'!$C$333+'1 Données d''entrée'!$C$334+1+$B1800,($H1792/'1 Données d''entrée'!$C$333),0))","v":0},{"$f":"IF(O1742<'1 Données d''entrée'!$C$334+1+$B1800,0,IF(O1742<'1 Données d''entrée'!$C$333+'1 Données d''entrée'!$C$334+1+$B1800,($H1792/'1 Données d''entrée'!$C$333),0))","v":0},{"$f":"IF(P1742<'1 Données d''entrée'!$C$334+1+$B1800,0,IF(P1742<'1 Données d''entrée'!$C$333+'1 Données d''entrée'!$C$334+1+$B1800,($H1792/'1 Données d''entrée'!$C$333),0))","v":0},{"$f":"IF(Q1742<'1 Données d''entrée'!$C$334+1+$B1800,0,IF(Q1742<'1 Données d''entrée'!$C$333+'1 Données d''entrée'!$C$334+1+$B1800,($H1792/'1 Données d''entrée'!$C$333),0))","v":0},{"$f":"IF(R1742<'1 Données d''entrée'!$C$334+1+$B1800,0,IF(R1742<'1 Données d''entrée'!$C$333+'1 Données d''entrée'!$C$334+1+$B1800,($H1792/'1 Données d''entrée'!$C$333),0))","v":0},{"$f":"IF(S1742<'1 Données d''entrée'!$C$334+1+$B1800,0,IF(S1742<'1 Données d''entrée'!$C$333+'1 Données d''entrée'!$C$334+1+$B1800,($H1792/'1 Données d''entrée'!$C$333),0))","v":0},{"$f":"IF(T1742<'1 Données d''entrée'!$C$334+1+$B1800,0,IF(T1742<'1 Données d''entrée'!$C$333+'1 Données d''entrée'!$C$334+1+$B1800,($H1792/'1 Données d''entrée'!$C$333),0))","v":0},{"$f":"IF(U1742<'1 Données d''entrée'!$C$334+1+$B1800,0,IF(U1742<'1 Données d''entrée'!$C$333+'1 Données d''entrée'!$C$334+1+$B1800,($H1792/'1 Données d''entrée'!$C$333),0))","v":0},{"$f":"IF(V1742<'1 Données d''entrée'!$C$334+1+$B1800,0,IF(V1742<'1 Données d''entrée'!$C$333+'1 Données d''entrée'!$C$334+1+$B1800,($H1792/'1 Données d''entrée'!$C$333),0))","v":0}]
[null,7,{"$f":"IF(C1742<'1 Données d''entrée'!$C$334+1+$B1801,0,IF(C1742<'1 Données d''entrée'!$C$333+'1 Données d''entrée'!$C$334+1+$B1801,($I1792/'1 Données d''entrée'!$C$333),0))","v":0},{"$f":"IF(D1742<'1 Données d''entrée'!$C$334+1+$B1801,0,IF(D1742<'1 Données d''entrée'!$C$333+'1 Données d''entrée'!$C$334+1+$B1801,($I1792/'1 Données d''entrée'!$C$333),0))","v":0},{"$f":"IF(E1742<'1 Données d''entrée'!$C$334+1+$B1801,0,IF(E1742<'1 Données d''entrée'!$C$333+'1 Données d''entrée'!$C$334+1+$B1801,($I1792/'1 Données d''entrée'!$C$333),0))","v":0},{"$f":"IF(F1742<'1 Données d''entrée'!$C$334+1+$B1801,0,IF(F1742<'1 Données d''entrée'!$C$333+'1 Données d''entrée'!$C$334+1+$B1801,($I1792/'1 Données d''entrée'!$C$333),0))","v":0},{"$f":"IF(G1742<'1 Données d''entrée'!$C$334+1+$B1801,0,IF(G1742<'1 Données d''entrée'!$C$333+'1 Données d''entrée'!$C$334+1+$B1801,($I1792/'1 Données d''entrée'!$C$333),0))","v":0},{"$f":"IF(H1742<'1 Données d''entrée'!$C$334+1+$B1801,0,IF(H1742<'1 Données d''entrée'!$C$333+'1 Données d''entrée'!$C$334+1+$B1801,($I1792/'1 Données d''entrée'!$C$333),0))","v":0},{"$f":"IF(I1742<'1 Données d''entrée'!$C$334+1+$B1801,0,IF(I1742<'1 Données d''entrée'!$C$333+'1 Données d''entrée'!$C$334+1+$B1801,($I1792/'1 Données d''entrée'!$C$333),0))","v":0},{"$f":"IF(J1742<'1 Données d''entrée'!$C$334+1+$B1801,0,IF(J1742<'1 Données d''entrée'!$C$333+'1 Données d''entrée'!$C$334+1+$B1801,($I1792/'1 Données d''entrée'!$C$333),0))","v":0},{"$f":"IF(K1742<'1 Données d''entrée'!$C$334+1+$B1801,0,IF(K1742<'1 Données d''entrée'!$C$333+'1 Données d''entrée'!$C$334+1+$B1801,($I1792/'1 Données d''entrée'!$C$333),0))","v":0},{"$f":"IF(L1742<'1 Données d''entrée'!$C$334+1+$B1801,0,IF(L1742<'1 Données d''entrée'!$C$333+'1 Données d''entrée'!$C$334+1+$B1801,($I1792/'1 Données d''entrée'!$C$333),0))","v":0},{"$f":"IF(M1742<'1 Données d''entrée'!$C$334+1+$B1801,0,IF(M1742<'1 Données d''entrée'!$C$333+'1 Données d''entrée'!$C$334+1+$B1801,($I1792/'1 Données d''entrée'!$C$333),0))","v":0},{"$f":"IF(N1742<'1 Données d''entrée'!$C$334+1+$B1801,0,IF(N1742<'1 Données d''entrée'!$C$333+'1 Données d''entrée'!$C$334+1+$B1801,($I1792/'1 Données d''entrée'!$C$333),0))","v":0},{"$f":"IF(O1742<'1 Données d''entrée'!$C$334+1+$B1801,0,IF(O1742<'1 Données d''entrée'!$C$333+'1 Données d''entrée'!$C$334+1+$B1801,($I1792/'1 Données d''entrée'!$C$333),0))","v":0},{"$f":"IF(P1742<'1 Données d''entrée'!$C$334+1+$B1801,0,IF(P1742<'1 Données d''entrée'!$C$333+'1 Données d''entrée'!$C$334+1+$B1801,($I1792/'1 Données d''entrée'!$C$333),0))","v":0},{"$f":"IF(Q1742<'1 Données d''entrée'!$C$334+1+$B1801,0,IF(Q1742<'1 Données d''entrée'!$C$333+'1 Données d''entrée'!$C$334+1+$B1801,($I1792/'1 Données d''entrée'!$C$333),0))","v":0},{"$f":"IF(R1742<'1 Données d''entrée'!$C$334+1+$B1801,0,IF(R1742<'1 Données d''entrée'!$C$333+'1 Données d''entrée'!$C$334+1+$B1801,($I1792/'1 Données d''entrée'!$C$333),0))","v":0},{"$f":"IF(S1742<'1 Données d''entrée'!$C$334+1+$B1801,0,IF(S1742<'1 Données d''entrée'!$C$333+'1 Données d''entrée'!$C$334+1+$B1801,($I1792/'1 Données d''entrée'!$C$333),0))","v":0},{"$f":"IF(T1742<'1 Données d''entrée'!$C$334+1+$B1801,0,IF(T1742<'1 Données d''entrée'!$C$333+'1 Données d''entrée'!$C$334+1+$B1801,($I1792/'1 Données d''entrée'!$C$333),0))","v":0},{"$f":"IF(U1742<'1 Données d''entrée'!$C$334+1+$B1801,0,IF(U1742<'1 Données d''entrée'!$C$333+'1 Données d''entrée'!$C$334+1+$B1801,($I1792/'1 Données d''entrée'!$C$333),0))","v":0},{"$f":"IF(V1742<'1 Données d''entrée'!$C$334+1+$B1801,0,IF(V1742<'1 Données d''entrée'!$C$333+'1 Données d''entrée'!$C$334+1+$B1801,($I1792/'1 Données d''entrée'!$C$333),0))","v":0}]
[null,8,{"$f":"IF(C1742<'1 Données d''entrée'!$C$334+1+$B1802,0,IF(C1742<'1 Données d''entrée'!$C$333+'1 Données d''entrée'!$C$334+1+$B1802,($J1792/'1 Données d''entrée'!$C$333),0))","v":0},{"$f":"IF(D1742<'1 Données d''entrée'!$C$334+1+$B1802,0,IF(D1742<'1 Données d''entrée'!$C$333+'1 Données d''entrée'!$C$334+1+$B1802,($J1792/'1 Données d''entrée'!$C$333),0))","v":0},{"$f":"IF(E1742<'1 Données d''entrée'!$C$334+1+$B1802,0,IF(E1742<'1 Données d''entrée'!$C$333+'1 Données d''entrée'!$C$334+1+$B1802,($J1792/'1 Données d''entrée'!$C$333),0))","v":0},{"$f":"IF(F1742<'1 Données d''entrée'!$C$334+1+$B1802,0,IF(F1742<'1 Données d''entrée'!$C$333+'1 Données d''entrée'!$C$334+1+$B1802,($J1792/'1 Données d''entrée'!$C$333),0))","v":0},{"$f":"IF(G1742<'1 Données d''entrée'!$C$334+1+$B1802,0,IF(G1742<'1 Données d''entrée'!$C$333+'1 Données d''entrée'!$C$334+1+$B1802,($J1792/'1 Données d''entrée'!$C$333),0))","v":0},{"$f":"IF(H1742<'1 Données d''entrée'!$C$334+1+$B1802,0,IF(H1742<'1 Données d''entrée'!$C$333+'1 Données d''entrée'!$C$334+1+$B1802,($J1792/'1 Données d''entrée'!$C$333),0))","v":0},{"$f":"IF(I1742<'1 Données d''entrée'!$C$334+1+$B1802,0,IF(I1742<'1 Données d''entrée'!$C$333+'1 Données d''entrée'!$C$334+1+$B1802,($J1792/'1 Données d''entrée'!$C$333),0))","v":0},{"$f":"IF(J1742<'1 Données d''entrée'!$C$334+1+$B1802,0,IF(J1742<'1 Données d''entrée'!$C$333+'1 Données d''entrée'!$C$334+1+$B1802,($J1792/'1 Données d''entrée'!$C$333),0))","v":0},{"$f":"IF(K1742<'1 Données d''entrée'!$C$334+1+$B1802,0,IF(K1742<'1 Données d''entrée'!$C$333+'1 Données d''entrée'!$C$334+1+$B1802,($J1792/'1 Données d''entrée'!$C$333),0))","v":0},{"$f":"IF(L1742<'1 Données d''entrée'!$C$334+1+$B1802,0,IF(L1742<'1 Données d''entrée'!$C$333+'1 Données d''entrée'!$C$334+1+$B1802,($J1792/'1 Données d''entrée'!$C$333),0))","v":0},{"$f":"IF(M1742<'1 Données d''entrée'!$C$334+1+$B1802,0,IF(M1742<'1 Données d''entrée'!$C$333+'1 Données d''entrée'!$C$334+1+$B1802,($J1792/'1 Données d''entrée'!$C$333),0))","v":0},{"$f":"IF(N1742<'1 Données d''entrée'!$C$334+1+$B1802,0,IF(N1742<'1 Données d''entrée'!$C$333+'1 Données d''entrée'!$C$334+1+$B1802,($J1792/'1 Données d''entrée'!$C$333),0))","v":0},{"$f":"IF(O1742<'1 Données d''entrée'!$C$334+1+$B1802,0,IF(O1742<'1 Données d''entrée'!$C$333+'1 Données d''entrée'!$C$334+1+$B1802,($J1792/'1 Données d''entrée'!$C$333),0))","v":0},{"$f":"IF(P1742<'1 Données d''entrée'!$C$334+1+$B1802,0,IF(P1742<'1 Données d''entrée'!$C$333+'1 Données d''entrée'!$C$334+1+$B1802,($J1792/'1 Données d''entrée'!$C$333),0))","v":0},{"$f":"IF(Q1742<'1 Données d''entrée'!$C$334+1+$B1802,0,IF(Q1742<'1 Données d''entrée'!$C$333+'1 Données d''entrée'!$C$334+1+$B1802,($J1792/'1 Données d''entrée'!$C$333),0))","v":0},{"$f":"IF(R1742<'1 Données d''entrée'!$C$334+1+$B1802,0,IF(R1742<'1 Données d''entrée'!$C$333+'1 Données d''entrée'!$C$334+1+$B1802,($J1792/'1 Données d''entrée'!$C$333),0))","v":0},{"$f":"IF(S1742<'1 Données d''entrée'!$C$334+1+$B1802,0,IF(S1742<'1 Données d''entrée'!$C$333+'1 Données d''entrée'!$C$334+1+$B1802,($J1792/'1 Données d''entrée'!$C$333),0))","v":0},{"$f":"IF(T1742<'1 Données d''entrée'!$C$334+1+$B1802,0,IF(T1742<'1 Données d''entrée'!$C$333+'1 Données d''entrée'!$C$334+1+$B1802,($J1792/'1 Données d''entrée'!$C$333),0))","v":0},{"$f":"IF(U1742<'1 Données d''entrée'!$C$334+1+$B1802,0,IF(U1742<'1 Données d''entrée'!$C$333+'1 Données d''entrée'!$C$334+1+$B1802,($J1792/'1 Données d''entrée'!$C$333),0))","v":0},{"$f":"IF(V1742<'1 Données d''entrée'!$C$334+1+$B1802,0,IF(V1742<'1 Données d''entrée'!$C$333+'1 Données d''entrée'!$C$334+1+$B1802,($J1792/'1 Données d''entrée'!$C$333),0))","v":0}]
[null,9,{"$f":"IF(C1742<'1 Données d''entrée'!$C$334+1+$B1803,0,IF(C1742<'1 Données d''entrée'!$C$333+'1 Données d''entrée'!$C$334+1+$B1803,($K1792/'1 Données d''entrée'!$C$333),0))","v":0},{"$f":"IF(D1742<'1 Données d''entrée'!$C$334+1+$B1803,0,IF(D1742<'1 Données d''entrée'!$C$333+'1 Données d''entrée'!$C$334+1+$B1803,($K1792/'1 Données d''entrée'!$C$333),0))","v":0},{"$f":"IF(E1742<'1 Données d''entrée'!$C$334+1+$B1803,0,IF(E1742<'1 Données d''entrée'!$C$333+'1 Données d''entrée'!$C$334+1+$B1803,($K1792/'1 Données d''entrée'!$C$333),0))","v":0},{"$f":"IF(F1742<'1 Données d''entrée'!$C$334+1+$B1803,0,IF(F1742<'1 Données d''entrée'!$C$333+'1 Données d''entrée'!$C$334+1+$B1803,($K1792/'1 Données d''entrée'!$C$333),0))","v":0},{"$f":"IF(G1742<'1 Données d''entrée'!$C$334+1+$B1803,0,IF(G1742<'1 Données d''entrée'!$C$333+'1 Données d''entrée'!$C$334+1+$B1803,($K1792/'1 Données d''entrée'!$C$333),0))","v":0},{"$f":"IF(H1742<'1 Données d''entrée'!$C$334+1+$B1803,0,IF(H1742<'1 Données d''entrée'!$C$333+'1 Données d''entrée'!$C$334+1+$B1803,($K1792/'1 Données d''entrée'!$C$333),0))","v":0},{"$f":"IF(I1742<'1 Données d''entrée'!$C$334+1+$B1803,0,IF(I1742<'1 Données d''entrée'!$C$333+'1 Données d''entrée'!$C$334+1+$B1803,($K1792/'1 Données d''entrée'!$C$333),0))","v":0},{"$f":"IF(J1742<'1 Données d''entrée'!$C$334+1+$B1803,0,IF(J1742<'1 Données d''entrée'!$C$333+'1 Données d''entrée'!$C$334+1+$B1803,($K1792/'1 Données d''entrée'!$C$333),0))","v":0},{"$f":"IF(K1742<'1 Données d''entrée'!$C$334+1+$B1803,0,IF(K1742<'1 Données d''entrée'!$C$333+'1 Données d''entrée'!$C$334+1+$B1803,($K1792/'1 Données d''entrée'!$C$333),0))","v":0},{"$f":"IF(L1742<'1 Données d''entrée'!$C$334+1+$B1803,0,IF(L1742<'1 Données d''entrée'!$C$333+'1 Données d''entrée'!$C$334+1+$B1803,($K1792/'1 Données d''entrée'!$C$333),0))","v":0},{"$f":"IF(M1742<'1 Données d''entrée'!$C$334+1+$B1803,0,IF(M1742<'1 Données d''entrée'!$C$333+'1 Données d''entrée'!$C$334+1+$B1803,($K1792/'1 Données d''entrée'!$C$333),0))","v":0},{"$f":"IF(N1742<'1 Données d''entrée'!$C$334+1+$B1803,0,IF(N1742<'1 Données d''entrée'!$C$333+'1 Données d''entrée'!$C$334+1+$B1803,($K1792/'1 Données d''entrée'!$C$333),0))","v":0},{"$f":"IF(O1742<'1 Données d''entrée'!$C$334+1+$B1803,0,IF(O1742<'1 Données d''entrée'!$C$333+'1 Données d''entrée'!$C$334+1+$B1803,($K1792/'1 Données d''entrée'!$C$333),0))","v":0},{"$f":"IF(P1742<'1 Données d''entrée'!$C$334+1+$B1803,0,IF(P1742<'1 Données d''entrée'!$C$333+'1 Données d''entrée'!$C$334+1+$B1803,($K1792/'1 Données d''entrée'!$C$333),0))","v":0},{"$f":"IF(Q1742<'1 Données d''entrée'!$C$334+1+$B1803,0,IF(Q1742<'1 Données d''entrée'!$C$333+'1 Données d''entrée'!$C$334+1+$B1803,($K1792/'1 Données d''entrée'!$C$333),0))","v":0},{"$f":"IF(R1742<'1 Données d''entrée'!$C$334+1+$B1803,0,IF(R1742<'1 Données d''entrée'!$C$333+'1 Données d''entrée'!$C$334+1+$B1803,($K1792/'1 Données d''entrée'!$C$333),0))","v":0},{"$f":"IF(S1742<'1 Données d''entrée'!$C$334+1+$B1803,0,IF(S1742<'1 Données d''entrée'!$C$333+'1 Données d''entrée'!$C$334+1+$B1803,($K1792/'1 Données d''entrée'!$C$333),0))","v":0},{"$f":"IF(T1742<'1 Données d''entrée'!$C$334+1+$B1803,0,IF(T1742<'1 Données d''entrée'!$C$333+'1 Données d''entrée'!$C$334+1+$B1803,($K1792/'1 Données d''entrée'!$C$333),0))","v":0},{"$f":"IF(U1742<'1 Données d''entrée'!$C$334+1+$B1803,0,IF(U1742<'1 Données d''entrée'!$C$333+'1 Données d''entrée'!$C$334+1+$B1803,($K1792/'1 Données d''entrée'!$C$333),0))","v":0},{"$f":"IF(V1742<'1 Données d''entrée'!$C$334+1+$B1803,0,IF(V1742<'1 Données d''entrée'!$C$333+'1 Données d''entrée'!$C$334+1+$B1803,($K1792/'1 Données d''entrée'!$C$333),0))","v":0}]
[null,10,{"$f":"IF(C1742<'1 Données d''entrée'!$C$334+1+$B1804,0,IF(C1742<'1 Données d''entrée'!$C$333+'1 Données d''entrée'!$C$334+1+$B1804,($L1792/'1 Données d''entrée'!$C$333),0))","v":0},{"$f":"IF(D1742<'1 Données d''entrée'!$C$334+1+$B1804,0,IF(D1742<'1 Données d''entrée'!$C$333+'1 Données d''entrée'!$C$334+1+$B1804,($L1792/'1 Données d''entrée'!$C$333),0))","v":0},{"$f":"IF(E1742<'1 Données d''entrée'!$C$334+1+$B1804,0,IF(E1742<'1 Données d''entrée'!$C$333+'1 Données d''entrée'!$C$334+1+$B1804,($L1792/'1 Données d''entrée'!$C$333),0))","v":0},{"$f":"IF(F1742<'1 Données d''entrée'!$C$334+1+$B1804,0,IF(F1742<'1 Données d''entrée'!$C$333+'1 Données d''entrée'!$C$334+1+$B1804,($L1792/'1 Données d''entrée'!$C$333),0))","v":0},{"$f":"IF(G1742<'1 Données d''entrée'!$C$334+1+$B1804,0,IF(G1742<'1 Données d''entrée'!$C$333+'1 Données d''entrée'!$C$334+1+$B1804,($L1792/'1 Données d''entrée'!$C$333),0))","v":0},{"$f":"IF(H1742<'1 Données d''entrée'!$C$334+1+$B1804,0,IF(H1742<'1 Données d''entrée'!$C$333+'1 Données d''entrée'!$C$334+1+$B1804,($L1792/'1 Données d''entrée'!$C$333),0))","v":0},{"$f":"IF(I1742<'1 Données d''entrée'!$C$334+1+$B1804,0,IF(I1742<'1 Données d''entrée'!$C$333+'1 Données d''entrée'!$C$334+1+$B1804,($L1792/'1 Données d''entrée'!$C$333),0))","v":0},{"$f":"IF(J1742<'1 Données d''entrée'!$C$334+1+$B1804,0,IF(J1742<'1 Données d''entrée'!$C$333+'1 Données d''entrée'!$C$334+1+$B1804,($L1792/'1 Données d''entrée'!$C$333),0))","v":0},{"$f":"IF(K1742<'1 Données d''entrée'!$C$334+1+$B1804,0,IF(K1742<'1 Données d''entrée'!$C$333+'1 Données d''entrée'!$C$334+1+$B1804,($L1792/'1 Données d''entrée'!$C$333),0))","v":0},{"$f":"IF(L1742<'1 Données d''entrée'!$C$334+1+$B1804,0,IF(L1742<'1 Données d''entrée'!$C$333+'1 Données d''entrée'!$C$334+1+$B1804,($L1792/'1 Données d''entrée'!$C$333),0))","v":0},{"$f":"IF(M1742<'1 Données d''entrée'!$C$334+1+$B1804,0,IF(M1742<'1 Données d''entrée'!$C$333+'1 Données d''entrée'!$C$334+1+$B1804,($L1792/'1 Données d''entrée'!$C$333),0))","v":0},{"$f":"IF(N1742<'1 Données d''entrée'!$C$334+1+$B1804,0,IF(N1742<'1 Données d''entrée'!$C$333+'1 Données d''entrée'!$C$334+1+$B1804,($L1792/'1 Données d''entrée'!$C$333),0))","v":0},{"$f":"IF(O1742<'1 Données d''entrée'!$C$334+1+$B1804,0,IF(O1742<'1 Données d''entrée'!$C$333+'1 Données d''entrée'!$C$334+1+$B1804,($L1792/'1 Données d''entrée'!$C$333),0))","v":0},{"$f":"IF(P1742<'1 Données d''entrée'!$C$334+1+$B1804,0,IF(P1742<'1 Données d''entrée'!$C$333+'1 Données d''entrée'!$C$334+1+$B1804,($L1792/'1 Données d''entrée'!$C$333),0))","v":0},{"$f":"IF(Q1742<'1 Données d''entrée'!$C$334+1+$B1804,0,IF(Q1742<'1 Données d''entrée'!$C$333+'1 Données d''entrée'!$C$334+1+$B1804,($L1792/'1 Données d''entrée'!$C$333),0))","v":0},{"$f":"IF(R1742<'1 Données d''entrée'!$C$334+1+$B1804,0,IF(R1742<'1 Données d''entrée'!$C$333+'1 Données d''entrée'!$C$334+1+$B1804,($L1792/'1 Données d''entrée'!$C$333),0))","v":0},{"$f":"IF(S1742<'1 Données d''entrée'!$C$334+1+$B1804,0,IF(S1742<'1 Données d''entrée'!$C$333+'1 Données d''entrée'!$C$334+1+$B1804,($L1792/'1 Données d''entrée'!$C$333),0))","v":0},{"$f":"IF(T1742<'1 Données d''entrée'!$C$334+1+$B1804,0,IF(T1742<'1 Données d''entrée'!$C$333+'1 Données d''entrée'!$C$334+1+$B1804,($L1792/'1 Données d''entrée'!$C$333),0))","v":0},{"$f":"IF(U1742<'1 Données d''entrée'!$C$334+1+$B1804,0,IF(U1742<'1 Données d''entrée'!$C$333+'1 Données d''entrée'!$C$334+1+$B1804,($L1792/'1 Données d''entrée'!$C$333),0))","v":0},{"$f":"IF(V1742<'1 Données d''entrée'!$C$334+1+$B1804,0,IF(V1742<'1 Données d''entrée'!$C$333+'1 Données d''entrée'!$C$334+1+$B1804,($L1792/'1 Données d''entrée'!$C$333),0))","v":0}]
[null,"Période de prêt nouveau"]
["Paiement d'intérêts",0,0,0,0,0,0,0,0,0,0,0,0,0,0,0,0,0,0,0,0,0]
["Paiement d'intêrets",1,0,{"$f":"IF(C1742<1+$B1794,0,IF(C1742<'1 Données d''entrée'!$C$334+'1 Données d''entrée'!$C$333+1+$B1794,'1 Données d''entrée'!$C$332*($C1792-SUM($C1795:C1795)),0))","v":0},{"$f":"IF(D1742<1+$B1794,0,IF(D1742<'1 Données d''entrée'!$C$334+'1 Données d''entrée'!$C$333+1+$B1794,'1 Données d''entrée'!$C$332*($C1792-SUM($C1795:D1795)),0))","v":0},{"$f":"IF(E1742<1+$B1794,0,IF(E1742<'1 Données d''entrée'!$C$334+'1 Données d''entrée'!$C$333+1+$B1794,'1 Données d''entrée'!$C$332*($C1792-SUM($C1795:E1795)),0))","v":0},{"$f":"IF(F1742<1+$B1794,0,IF(F1742<'1 Données d''entrée'!$C$334+'1 Données d''entrée'!$C$333+1+$B1794,'1 Données d''entrée'!$C$332*($C1792-SUM($C1795:F1795)),0))","v":0},{"$f":"IF(G1742<1+$B1794,0,IF(G1742<'1 Données d''entrée'!$C$334+'1 Données d''entrée'!$C$333+1+$B1794,'1 Données d''entrée'!$C$332*($C1792-SUM($C1795:G1795)),0))","v":0},{"$f":"IF(H1742<1+$B1794,0,IF(H1742<'1 Données d''entrée'!$C$334+'1 Données d''entrée'!$C$333+1+$B1794,'1 Données d''entrée'!$C$332*($C1792-SUM($C1795:H1795)),0))","v":0},{"$f":"IF(I1742<1+$B1794,0,IF(I1742<'1 Données d''entrée'!$C$334+'1 Données d''entrée'!$C$333+1+$B1794,'1 Données d''entrée'!$C$332*($C1792-SUM($C1795:I1795)),0))","v":0},{"$f":"IF(J1742<1+$B1794,0,IF(J1742<'1 Données d''entrée'!$C$334+'1 Données d''entrée'!$C$333+1+$B1794,'1 Données d''entrée'!$C$332*($C1792-SUM($C1795:J1795)),0))","v":0},{"$f":"IF(K1742<1+$B1794,0,IF(K1742<'1 Données d''entrée'!$C$334+'1 Données d''entrée'!$C$333+1+$B1794,'1 Données d''entrée'!$C$332*($C1792-SUM($C1795:K1795)),0))","v":0},{"$f":"IF(L1742<1+$B1794,0,IF(L1742<'1 Données d''entrée'!$C$334+'1 Données d''entrée'!$C$333+1+$B1794,'1 Données d''entrée'!$C$332*($C1792-SUM($C1795:L1795)),0))","v":0},{"$f":"IF(M1742<1+$B1794,0,IF(M1742<'1 Données d''entrée'!$C$334+'1 Données d''entrée'!$C$333+1+$B1794,'1 Données d''entrée'!$C$332*($C1792-SUM($C1795:M1795)),0))","v":0},{"$f":"IF(N1742<1+$B1794,0,IF(N1742<'1 Données d''entrée'!$C$334+'1 Données d''entrée'!$C$333+1+$B1794,'1 Données d''entrée'!$C$332*($C1792-SUM($C1795:N1795)),0))","v":0},{"$f":"IF(O1742<1+$B1794,0,IF(O1742<'1 Données d''entrée'!$C$334+'1 Données d''entrée'!$C$333+1+$B1794,'1 Données d''entrée'!$C$332*($C1792-SUM($C1795:O1795)),0))","v":0},{"$f":"IF(P1742<1+$B1794,0,IF(P1742<'1 Données d''entrée'!$C$334+'1 Données d''entrée'!$C$333+1+$B1794,'1 Données d''entrée'!$C$332*($C1792-SUM($C1795:P1795)),0))","v":0},{"$f":"IF(Q1742<1+$B1794,0,IF(Q1742<'1 Données d''entrée'!$C$334+'1 Données d''entrée'!$C$333+1+$B1794,'1 Données d''entrée'!$C$332*($C1792-SUM($C1795:Q1795)),0))","v":0},{"$f":"IF(R1742<1+$B1794,0,IF(R1742<'1 Données d''entrée'!$C$334+'1 Données d''entrée'!$C$333+1+$B1794,'1 Données d''entrée'!$C$332*($C1792-SUM($C1795:R1795)),0))","v":0},{"$f":"IF(S1742<1+$B1794,0,IF(S1742<'1 Données d''entrée'!$C$334+'1 Données d''entrée'!$C$333+1+$B1794,'1 Données d''entrée'!$C$332*($C1792-SUM($C1795:S1795)),0))","v":0},{"$f":"IF(T1742<1+$B1794,0,IF(T1742<'1 Données d''entrée'!$C$334+'1 Données d''entrée'!$C$333+1+$B1794,'1 Données d''entrée'!$C$332*($C1792-SUM($C1795:T1795)),0))","v":0},{"$f":"IF(U1742<1+$B1794,0,IF(U1742<'1 Données d''entrée'!$C$334+'1 Données d''entrée'!$C$333+1+$B1794,'1 Données d''entrée'!$C$332*($C1792-SUM($C1795:U1795)),0))","v":0}]
["Paiement d'intêrets",2,0,{"$f":"IF(C1742<1+$B1795,0,IF(C1742<'1 Données d''entrée'!$C$334+'1 Données d''entrée'!$C$333+1+$B1795,'1 Données d''entrée'!$C$332*($D1792-SUM($C1796:C1796)),0))","v":0},{"$f":"IF(D1742<1+$B1795,0,IF(D1742<'1 Données d''entrée'!$C$334+'1 Données d''entrée'!$C$333+1+$B1795,'1 Données d''entrée'!$C$332*($D1792-SUM($C1796:D1796)),0))","v":0},{"$f":"IF(E1742<1+$B1795,0,IF(E1742<'1 Données d''entrée'!$C$334+'1 Données d''entrée'!$C$333+1+$B1795,'1 Données d''entrée'!$C$332*($D1792-SUM($C1796:E1796)),0))","v":0},{"$f":"IF(F1742<1+$B1795,0,IF(F1742<'1 Données d''entrée'!$C$334+'1 Données d''entrée'!$C$333+1+$B1795,'1 Données d''entrée'!$C$332*($D1792-SUM($C1796:F1796)),0))","v":0},{"$f":"IF(G1742<1+$B1795,0,IF(G1742<'1 Données d''entrée'!$C$334+'1 Données d''entrée'!$C$333+1+$B1795,'1 Données d''entrée'!$C$332*($D1792-SUM($C1796:G1796)),0))","v":0},{"$f":"IF(H1742<1+$B1795,0,IF(H1742<'1 Données d''entrée'!$C$334+'1 Données d''entrée'!$C$333+1+$B1795,'1 Données d''entrée'!$C$332*($D1792-SUM($C1796:H1796)),0))","v":0},{"$f":"IF(I1742<1+$B1795,0,IF(I1742<'1 Données d''entrée'!$C$334+'1 Données d''entrée'!$C$333+1+$B1795,'1 Données d''entrée'!$C$332*($D1792-SUM($C1796:I1796)),0))","v":0},{"$f":"IF(J1742<1+$B1795,0,IF(J1742<'1 Données d''entrée'!$C$334+'1 Données d''entrée'!$C$333+1+$B1795,'1 Données d''entrée'!$C$332*($D1792-SUM($C1796:J1796)),0))","v":0},{"$f":"IF(K1742<1+$B1795,0,IF(K1742<'1 Données d''entrée'!$C$334+'1 Données d''entrée'!$C$333+1+$B1795,'1 Données d''entrée'!$C$332*($D1792-SUM($C1796:K1796)),0))","v":0},{"$f":"IF(L1742<1+$B1795,0,IF(L1742<'1 Données d''entrée'!$C$334+'1 Données d''entrée'!$C$333+1+$B1795,'1 Données d''entrée'!$C$332*($D1792-SUM($C1796:L1796)),0))","v":0},{"$f":"IF(M1742<1+$B1795,0,IF(M1742<'1 Données d''entrée'!$C$334+'1 Données d''entrée'!$C$333+1+$B1795,'1 Données d''entrée'!$C$332*($D1792-SUM($C1796:M1796)),0))","v":0},{"$f":"IF(N1742<1+$B1795,0,IF(N1742<'1 Données d''entrée'!$C$334+'1 Données d''entrée'!$C$333+1+$B1795,'1 Données d''entrée'!$C$332*($D1792-SUM($C1796:N1796)),0))","v":0},{"$f":"IF(O1742<1+$B1795,0,IF(O1742<'1 Données d''entrée'!$C$334+'1 Données d''entrée'!$C$333+1+$B1795,'1 Données d''entrée'!$C$332*($D1792-SUM($C1796:O1796)),0))","v":0},{"$f":"IF(P1742<1+$B1795,0,IF(P1742<'1 Données d''entrée'!$C$334+'1 Données d''entrée'!$C$333+1+$B1795,'1 Données d''entrée'!$C$332*($D1792-SUM($C1796:P1796)),0))","v":0},{"$f":"IF(Q1742<1+$B1795,0,IF(Q1742<'1 Données d''entrée'!$C$334+'1 Données d''entrée'!$C$333+1+$B1795,'1 Données d''entrée'!$C$332*($D1792-SUM($C1796:Q1796)),0))","v":0},{"$f":"IF(R1742<1+$B1795,0,IF(R1742<'1 Données d''entrée'!$C$334+'1 Données d''entrée'!$C$333+1+$B1795,'1 Données d''entrée'!$C$332*($D1792-SUM($C1796:R1796)),0))","v":0},{"$f":"IF(S1742<1+$B1795,0,IF(S1742<'1 Données d''entrée'!$C$334+'1 Données d''entrée'!$C$333+1+$B1795,'1 Données d''entrée'!$C$332*($D1792-SUM($C1796:S1796)),0))","v":0},{"$f":"IF(T1742<1+$B1795,0,IF(T1742<'1 Données d''entrée'!$C$334+'1 Données d''entrée'!$C$333+1+$B1795,'1 Données d''entrée'!$C$332*($D1792-SUM($C1796:T1796)),0))","v":0},{"$f":"IF(U1742<1+$B1795,0,IF(U1742<'1 Données d''entrée'!$C$334+'1 Données d''entrée'!$C$333+1+$B1795,'1 Données d''entrée'!$C$332*($D1792-SUM($C1796:U1796)),0))","v":0}]
["Paiement d'intêrets",3,0,{"$f":"IF(C1742<1+$B1796,0,IF(C1742<'1 Données d''entrée'!$C$334+'1 Données d''entrée'!$C$333+1+$B1796,'1 Données d''entrée'!$C$332*($E1792-SUM($C1797:C1797)),0))","v":0},{"$f":"IF(D1742<1+$B1796,0,IF(D1742<'1 Données d''entrée'!$C$334+'1 Données d''entrée'!$C$333+1+$B1796,'1 Données d''entrée'!$C$332*($E1792-SUM($C1797:D1797)),0))","v":0},{"$f":"IF(E1742<1+$B1796,0,IF(E1742<'1 Données d''entrée'!$C$334+'1 Données d''entrée'!$C$333+1+$B1796,'1 Données d''entrée'!$C$332*($E1792-SUM($C1797:E1797)),0))","v":0},{"$f":"IF(F1742<1+$B1796,0,IF(F1742<'1 Données d''entrée'!$C$334+'1 Données d''entrée'!$C$333+1+$B1796,'1 Données d''entrée'!$C$332*($E1792-SUM($C1797:F1797)),0))","v":0},{"$f":"IF(G1742<1+$B1796,0,IF(G1742<'1 Données d''entrée'!$C$334+'1 Données d''entrée'!$C$333+1+$B1796,'1 Données d''entrée'!$C$332*($E1792-SUM($C1797:G1797)),0))","v":0},{"$f":"IF(H1742<1+$B1796,0,IF(H1742<'1 Données d''entrée'!$C$334+'1 Données d''entrée'!$C$333+1+$B1796,'1 Données d''entrée'!$C$332*($E1792-SUM($C1797:H1797)),0))","v":0},{"$f":"IF(I1742<1+$B1796,0,IF(I1742<'1 Données d''entrée'!$C$334+'1 Données d''entrée'!$C$333+1+$B1796,'1 Données d''entrée'!$C$332*($E1792-SUM($C1797:I1797)),0))","v":0},{"$f":"IF(J1742<1+$B1796,0,IF(J1742<'1 Données d''entrée'!$C$334+'1 Données d''entrée'!$C$333+1+$B1796,'1 Données d''entrée'!$C$332*($E1792-SUM($C1797:J1797)),0))","v":0},{"$f":"IF(K1742<1+$B1796,0,IF(K1742<'1 Données d''entrée'!$C$334+'1 Données d''entrée'!$C$333+1+$B1796,'1 Données d''entrée'!$C$332*($E1792-SUM($C1797:K1797)),0))","v":0},{"$f":"IF(L1742<1+$B1796,0,IF(L1742<'1 Données d''entrée'!$C$334+'1 Données d''entrée'!$C$333+1+$B1796,'1 Données d''entrée'!$C$332*($E1792-SUM($C1797:L1797)),0))","v":0},{"$f":"IF(M1742<1+$B1796,0,IF(M1742<'1 Données d''entrée'!$C$334+'1 Données d''entrée'!$C$333+1+$B1796,'1 Données d''entrée'!$C$332*($E1792-SUM($C1797:M1797)),0))","v":0},{"$f":"IF(N1742<1+$B1796,0,IF(N1742<'1 Données d''entrée'!$C$334+'1 Données d''entrée'!$C$333+1+$B1796,'1 Données d''entrée'!$C$332*($E1792-SUM($C1797:N1797)),0))","v":0},{"$f":"IF(O1742<1+$B1796,0,IF(O1742<'1 Données d''entrée'!$C$334+'1 Données d''entrée'!$C$333+1+$B1796,'1 Données d''entrée'!$C$332*($E1792-SUM($C1797:O1797)),0))","v":0},{"$f":"IF(P1742<1+$B1796,0,IF(P1742<'1 Données d''entrée'!$C$334+'1 Données d''entrée'!$C$333+1+$B1796,'1 Données d''entrée'!$C$332*($E1792-SUM($C1797:P1797)),0))","v":0},{"$f":"IF(Q1742<1+$B1796,0,IF(Q1742<'1 Données d''entrée'!$C$334+'1 Données d''entrée'!$C$333+1+$B1796,'1 Données d''entrée'!$C$332*($E1792-SUM($C1797:Q1797)),0))","v":0},{"$f":"IF(R1742<1+$B1796,0,IF(R1742<'1 Données d''entrée'!$C$334+'1 Données d''entrée'!$C$333+1+$B1796,'1 Données d''entrée'!$C$332*($E1792-SUM($C1797:R1797)),0))","v":0},{"$f":"IF(S1742<1+$B1796,0,IF(S1742<'1 Données d''entrée'!$C$334+'1 Données d''entrée'!$C$333+1+$B1796,'1 Données d''entrée'!$C$332*($E1792-SUM($C1797:S1797)),0))","v":0},{"$f":"IF(T1742<1+$B1796,0,IF(T1742<'1 Données d''entrée'!$C$334+'1 Données d''entrée'!$C$333+1+$B1796,'1 Données d''entrée'!$C$332*($E1792-SUM($C1797:T1797)),0))","v":0},{"$f":"IF(U1742<1+$B1796,0,IF(U1742<'1 Données d''entrée'!$C$334+'1 Données d''entrée'!$C$333+1+$B1796,'1 Données d''entrée'!$C$332*($E1792-SUM($C1797:U1797)),0))","v":0}]
["Paiement d'intêrets",4,0,{"$f":"IF(C1742<1+$B1797,0,IF(C1742<'1 Données d''entrée'!$C$334+'1 Données d''entrée'!$C$333+1+$B1797,'1 Données d''entrée'!$C$332*($F1792-SUM($C1798:C1798)),0))","v":0},{"$f":"IF(D1742<1+$B1797,0,IF(D1742<'1 Données d''entrée'!$C$334+'1 Données d''entrée'!$C$333+1+$B1797,'1 Données d''entrée'!$C$332*($F1792-SUM($C1798:D1798)),0))","v":0},{"$f":"IF(E1742<1+$B1797,0,IF(E1742<'1 Données d''entrée'!$C$334+'1 Données d''entrée'!$C$333+1+$B1797,'1 Données d''entrée'!$C$332*($F1792-SUM($C1798:E1798)),0))","v":0},{"$f":"IF(F1742<1+$B1797,0,IF(F1742<'1 Données d''entrée'!$C$334+'1 Données d''entrée'!$C$333+1+$B1797,'1 Données d''entrée'!$C$332*($F1792-SUM($C1798:F1798)),0))","v":0},{"$f":"IF(G1742<1+$B1797,0,IF(G1742<'1 Données d''entrée'!$C$334+'1 Données d''entrée'!$C$333+1+$B1797,'1 Données d''entrée'!$C$332*($F1792-SUM($C1798:G1798)),0))","v":0},{"$f":"IF(H1742<1+$B1797,0,IF(H1742<'1 Données d''entrée'!$C$334+'1 Données d''entrée'!$C$333+1+$B1797,'1 Données d''entrée'!$C$332*($F1792-SUM($C1798:H1798)),0))","v":0},{"$f":"IF(I1742<1+$B1797,0,IF(I1742<'1 Données d''entrée'!$C$334+'1 Données d''entrée'!$C$333+1+$B1797,'1 Données d''entrée'!$C$332*($F1792-SUM($C1798:I1798)),0))","v":0},{"$f":"IF(J1742<1+$B1797,0,IF(J1742<'1 Données d''entrée'!$C$334+'1 Données d''entrée'!$C$333+1+$B1797,'1 Données d''entrée'!$C$332*($F1792-SUM($C1798:J1798)),0))","v":0},{"$f":"IF(K1742<1+$B1797,0,IF(K1742<'1 Données d''entrée'!$C$334+'1 Données d''entrée'!$C$333+1+$B1797,'1 Données d''entrée'!$C$332*($F1792-SUM($C1798:K1798)),0))","v":0},{"$f":"IF(L1742<1+$B1797,0,IF(L1742<'1 Données d''entrée'!$C$334+'1 Données d''entrée'!$C$333+1+$B1797,'1 Données d''entrée'!$C$332*($F1792-SUM($C1798:L1798)),0))","v":0},{"$f":"IF(M1742<1+$B1797,0,IF(M1742<'1 Données d''entrée'!$C$334+'1 Données d''entrée'!$C$333+1+$B1797,'1 Données d''entrée'!$C$332*($F1792-SUM($C1798:M1798)),0))","v":0},{"$f":"IF(N1742<1+$B1797,0,IF(N1742<'1 Données d''entrée'!$C$334+'1 Données d''entrée'!$C$333+1+$B1797,'1 Données d''entrée'!$C$332*($F1792-SUM($C1798:N1798)),0))","v":0},{"$f":"IF(O1742<1+$B1797,0,IF(O1742<'1 Données d''entrée'!$C$334+'1 Données d''entrée'!$C$333+1+$B1797,'1 Données d''entrée'!$C$332*($F1792-SUM($C1798:O1798)),0))","v":0},{"$f":"IF(P1742<1+$B1797,0,IF(P1742<'1 Données d''entrée'!$C$334+'1 Données d''entrée'!$C$333+1+$B1797,'1 Données d''entrée'!$C$332*($F1792-SUM($C1798:P1798)),0))","v":0},{"$f":"IF(Q1742<1+$B1797,0,IF(Q1742<'1 Données d''entrée'!$C$334+'1 Données d''entrée'!$C$333+1+$B1797,'1 Données d''entrée'!$C$332*($F1792-SUM($C1798:Q1798)),0))","v":0},{"$f":"IF(R1742<1+$B1797,0,IF(R1742<'1 Données d''entrée'!$C$334+'1 Données d''entrée'!$C$333+1+$B1797,'1 Données d''entrée'!$C$332*($F1792-SUM($C1798:R1798)),0))","v":0},{"$f":"IF(S1742<1+$B1797,0,IF(S1742<'1 Données d''entrée'!$C$334+'1 Données d''entrée'!$C$333+1+$B1797,'1 Données d''entrée'!$C$332*($F1792-SUM($C1798:S1798)),0))","v":0},{"$f":"IF(T1742<1+$B1797,0,IF(T1742<'1 Données d''entrée'!$C$334+'1 Données d''entrée'!$C$333+1+$B1797,'1 Données d''entrée'!$C$332*($F1792-SUM($C1798:T1798)),0))","v":0},{"$f":"IF(U1742<1+$B1797,0,IF(U1742<'1 Données d''entrée'!$C$334+'1 Données d''entrée'!$C$333+1+$B1797,'1 Données d''entrée'!$C$332*($F1792-SUM($C1798:U1798)),0))","v":0}]
["Paiement d'intêrets",5,0,{"$f":"IF(C1742<1+$B1798,0,IF(C1742<'1 Données d''entrée'!$C$334+'1 Données d''entrée'!$C$333+1+$B1798,'1 Données d''entrée'!$C$332*($G1792-SUM($C1799:C1799)),0))","v":0},{"$f":"IF(D1742<1+$B1798,0,IF(D1742<'1 Données d''entrée'!$C$334+'1 Données d''entrée'!$C$333+1+$B1798,'1 Données d''entrée'!$C$332*($G1792-SUM($C1799:D1799)),0))","v":0},{"$f":"IF(E1742<1+$B1798,0,IF(E1742<'1 Données d''entrée'!$C$334+'1 Données d''entrée'!$C$333+1+$B1798,'1 Données d''entrée'!$C$332*($G1792-SUM($C1799:E1799)),0))","v":0},{"$f":"IF(F1742<1+$B1798,0,IF(F1742<'1 Données d''entrée'!$C$334+'1 Données d''entrée'!$C$333+1+$B1798,'1 Données d''entrée'!$C$332*($G1792-SUM($C1799:F1799)),0))","v":0},{"$f":"IF(G1742<1+$B1798,0,IF(G1742<'1 Données d''entrée'!$C$334+'1 Données d''entrée'!$C$333+1+$B1798,'1 Données d''entrée'!$C$332*($G1792-SUM($C1799:G1799)),0))","v":0},{"$f":"IF(H1742<1+$B1798,0,IF(H1742<'1 Données d''entrée'!$C$334+'1 Données d''entrée'!$C$333+1+$B1798,'1 Données d''entrée'!$C$332*($G1792-SUM($C1799:H1799)),0))","v":0},{"$f":"IF(I1742<1+$B1798,0,IF(I1742<'1 Données d''entrée'!$C$334+'1 Données d''entrée'!$C$333+1+$B1798,'1 Données d''entrée'!$C$332*($G1792-SUM($C1799:I1799)),0))","v":0},{"$f":"IF(J1742<1+$B1798,0,IF(J1742<'1 Données d''entrée'!$C$334+'1 Données d''entrée'!$C$333+1+$B1798,'1 Données d''entrée'!$C$332*($G1792-SUM($C1799:J1799)),0))","v":0},{"$f":"IF(K1742<1+$B1798,0,IF(K1742<'1 Données d''entrée'!$C$334+'1 Données d''entrée'!$C$333+1+$B1798,'1 Données d''entrée'!$C$332*($G1792-SUM($C1799:K1799)),0))","v":0},{"$f":"IF(L1742<1+$B1798,0,IF(L1742<'1 Données d''entrée'!$C$334+'1 Données d''entrée'!$C$333+1+$B1798,'1 Données d''entrée'!$C$332*($G1792-SUM($C1799:L1799)),0))","v":0},{"$f":"IF(M1742<1+$B1798,0,IF(M1742<'1 Données d''entrée'!$C$334+'1 Données d''entrée'!$C$333+1+$B1798,'1 Données d''entrée'!$C$332*($G1792-SUM($C1799:M1799)),0))","v":0},{"$f":"IF(N1742<1+$B1798,0,IF(N1742<'1 Données d''entrée'!$C$334+'1 Données d''entrée'!$C$333+1+$B1798,'1 Données d''entrée'!$C$332*($G1792-SUM($C1799:N1799)),0))","v":0},{"$f":"IF(O1742<1+$B1798,0,IF(O1742<'1 Données d''entrée'!$C$334+'1 Données d''entrée'!$C$333+1+$B1798,'1 Données d''entrée'!$C$332*($G1792-SUM($C1799:O1799)),0))","v":0},{"$f":"IF(P1742<1+$B1798,0,IF(P1742<'1 Données d''entrée'!$C$334+'1 Données d''entrée'!$C$333+1+$B1798,'1 Données d''entrée'!$C$332*($G1792-SUM($C1799:P1799)),0))","v":0},{"$f":"IF(Q1742<1+$B1798,0,IF(Q1742<'1 Données d''entrée'!$C$334+'1 Données d''entrée'!$C$333+1+$B1798,'1 Données d''entrée'!$C$332*($G1792-SUM($C1799:Q1799)),0))","v":0},{"$f":"IF(R1742<1+$B1798,0,IF(R1742<'1 Données d''entrée'!$C$334+'1 Données d''entrée'!$C$333+1+$B1798,'1 Données d''entrée'!$C$332*($G1792-SUM($C1799:R1799)),0))","v":0},{"$f":"IF(S1742<1+$B1798,0,IF(S1742<'1 Données d''entrée'!$C$334+'1 Données d''entrée'!$C$333+1+$B1798,'1 Données d''entrée'!$C$332*($G1792-SUM($C1799:S1799)),0))","v":0},{"$f":"IF(T1742<1+$B1798,0,IF(T1742<'1 Données d''entrée'!$C$334+'1 Données d''entrée'!$C$333+1+$B1798,'1 Données d''entrée'!$C$332*($G1792-SUM($C1799:T1799)),0))","v":0},{"$f":"IF(U1742<1+$B1798,0,IF(U1742<'1 Données d''entrée'!$C$334+'1 Données d''entrée'!$C$333+1+$B1798,'1 Données d''entrée'!$C$332*($G1792-SUM($C1799:U1799)),0))","v":0}]
["Paiement d'intêrets",6,0,{"$f":"IF(C1742<1+$B1799,0,IF(C1742<'1 Données d''entrée'!$C$334+'1 Données d''entrée'!$C$333+1+$B1799,'1 Données d''entrée'!$C$332*($H1792-SUM($C1800:C1800)),0))","v":0},{"$f":"IF(D1742<1+$B1799,0,IF(D1742<'1 Données d''entrée'!$C$334+'1 Données d''entrée'!$C$333+1+$B1799,'1 Données d''entrée'!$C$332*($H1792-SUM($C1800:D1800)),0))","v":0},{"$f":"IF(E1742<1+$B1799,0,IF(E1742<'1 Données d''entrée'!$C$334+'1 Données d''entrée'!$C$333+1+$B1799,'1 Données d''entrée'!$C$332*($H1792-SUM($C1800:E1800)),0))","v":0},{"$f":"IF(F1742<1+$B1799,0,IF(F1742<'1 Données d''entrée'!$C$334+'1 Données d''entrée'!$C$333+1+$B1799,'1 Données d''entrée'!$C$332*($H1792-SUM($C1800:F1800)),0))","v":0},{"$f":"IF(G1742<1+$B1799,0,IF(G1742<'1 Données d''entrée'!$C$334+'1 Données d''entrée'!$C$333+1+$B1799,'1 Données d''entrée'!$C$332*($H1792-SUM($C1800:G1800)),0))","v":0},{"$f":"IF(H1742<1+$B1799,0,IF(H1742<'1 Données d''entrée'!$C$334+'1 Données d''entrée'!$C$333+1+$B1799,'1 Données d''entrée'!$C$332*($H1792-SUM($C1800:H1800)),0))","v":0},{"$f":"IF(I1742<1+$B1799,0,IF(I1742<'1 Données d''entrée'!$C$334+'1 Données d''entrée'!$C$333+1+$B1799,'1 Données d''entrée'!$C$332*($H1792-SUM($C1800:I1800)),0))","v":0},{"$f":"IF(J1742<1+$B1799,0,IF(J1742<'1 Données d''entrée'!$C$334+'1 Données d''entrée'!$C$333+1+$B1799,'1 Données d''entrée'!$C$332*($H1792-SUM($C1800:J1800)),0))","v":0},{"$f":"IF(K1742<1+$B1799,0,IF(K1742<'1 Données d''entrée'!$C$334+'1 Données d''entrée'!$C$333+1+$B1799,'1 Données d''entrée'!$C$332*($H1792-SUM($C1800:K1800)),0))","v":0},{"$f":"IF(L1742<1+$B1799,0,IF(L1742<'1 Données d''entrée'!$C$334+'1 Données d''entrée'!$C$333+1+$B1799,'1 Données d''entrée'!$C$332*($H1792-SUM($C1800:L1800)),0))","v":0},{"$f":"IF(M1742<1+$B1799,0,IF(M1742<'1 Données d''entrée'!$C$334+'1 Données d''entrée'!$C$333+1+$B1799,'1 Données d''entrée'!$C$332*($H1792-SUM($C1800:M1800)),0))","v":0},{"$f":"IF(N1742<1+$B1799,0,IF(N1742<'1 Données d''entrée'!$C$334+'1 Données d''entrée'!$C$333+1+$B1799,'1 Données d''entrée'!$C$332*($H1792-SUM($C1800:N1800)),0))","v":0},{"$f":"IF(O1742<1+$B1799,0,IF(O1742<'1 Données d''entrée'!$C$334+'1 Données d''entrée'!$C$333+1+$B1799,'1 Données d''entrée'!$C$332*($H1792-SUM($C1800:O1800)),0))","v":0},{"$f":"IF(P1742<1+$B1799,0,IF(P1742<'1 Données d''entrée'!$C$334+'1 Données d''entrée'!$C$333+1+$B1799,'1 Données d''entrée'!$C$332*($H1792-SUM($C1800:P1800)),0))","v":0},{"$f":"IF(Q1742<1+$B1799,0,IF(Q1742<'1 Données d''entrée'!$C$334+'1 Données d''entrée'!$C$333+1+$B1799,'1 Données d''entrée'!$C$332*($H1792-SUM($C1800:Q1800)),0))","v":0},{"$f":"IF(R1742<1+$B1799,0,IF(R1742<'1 Données d''entrée'!$C$334+'1 Données d''entrée'!$C$333+1+$B1799,'1 Données d''entrée'!$C$332*($H1792-SUM($C1800:R1800)),0))","v":0},{"$f":"IF(S1742<1+$B1799,0,IF(S1742<'1 Données d''entrée'!$C$334+'1 Données d''entrée'!$C$333+1+$B1799,'1 Données d''entrée'!$C$332*($H1792-SUM($C1800:S1800)),0))","v":0},{"$f":"IF(T1742<1+$B1799,0,IF(T1742<'1 Données d''entrée'!$C$334+'1 Données d''entrée'!$C$333+1+$B1799,'1 Données d''entrée'!$C$332*($H1792-SUM($C1800:T1800)),0))","v":0},{"$f":"IF(U1742<1+$B1799,0,IF(U1742<'1 Données d''entrée'!$C$334+'1 Données d''entrée'!$C$333+1+$B1799,'1 Données d''entrée'!$C$332*($H1792-SUM($C1800:U1800)),0))","v":0}]
["Paiement d'intêrets",7,0,{"$f":"IF(C1742<1+$B1800,0,IF(C1742<'1 Données d''entrée'!$C$334+'1 Données d''entrée'!$C$333+1+$B1800,'1 Données d''entrée'!$C$332*($I1792-SUM($C1801:C1801)),0))","v":0},{"$f":"IF(D1742<1+$B1800,0,IF(D1742<'1 Données d''entrée'!$C$334+'1 Données d''entrée'!$C$333+1+$B1800,'1 Données d''entrée'!$C$332*($I1792-SUM($C1801:D1801)),0))","v":0},{"$f":"IF(E1742<1+$B1800,0,IF(E1742<'1 Données d''entrée'!$C$334+'1 Données d''entrée'!$C$333+1+$B1800,'1 Données d''entrée'!$C$332*($I1792-SUM($C1801:E1801)),0))","v":0},{"$f":"IF(F1742<1+$B1800,0,IF(F1742<'1 Données d''entrée'!$C$334+'1 Données d''entrée'!$C$333+1+$B1800,'1 Données d''entrée'!$C$332*($I1792-SUM($C1801:F1801)),0))","v":0},{"$f":"IF(G1742<1+$B1800,0,IF(G1742<'1 Données d''entrée'!$C$334+'1 Données d''entrée'!$C$333+1+$B1800,'1 Données d''entrée'!$C$332*($I1792-SUM($C1801:G1801)),0))","v":0},{"$f":"IF(H1742<1+$B1800,0,IF(H1742<'1 Données d''entrée'!$C$334+'1 Données d''entrée'!$C$333+1+$B1800,'1 Données d''entrée'!$C$332*($I1792-SUM($C1801:H1801)),0))","v":0},{"$f":"IF(I1742<1+$B1800,0,IF(I1742<'1 Données d''entrée'!$C$334+'1 Données d''entrée'!$C$333+1+$B1800,'1 Données d''entrée'!$C$332*($I1792-SUM($C1801:I1801)),0))","v":0},{"$f":"IF(J1742<1+$B1800,0,IF(J1742<'1 Données d''entrée'!$C$334+'1 Données d''entrée'!$C$333+1+$B1800,'1 Données d''entrée'!$C$332*($I1792-SUM($C1801:J1801)),0))","v":0},{"$f":"IF(K1742<1+$B1800,0,IF(K1742<'1 Données d''entrée'!$C$334+'1 Données d''entrée'!$C$333+1+$B1800,'1 Données d''entrée'!$C$332*($I1792-SUM($C1801:K1801)),0))","v":0},{"$f":"IF(L1742<1+$B1800,0,IF(L1742<'1 Données d''entrée'!$C$334+'1 Données d''entrée'!$C$333+1+$B1800,'1 Données d''entrée'!$C$332*($I1792-SUM($C1801:L1801)),0))","v":0},{"$f":"IF(M1742<1+$B1800,0,IF(M1742<'1 Données d''entrée'!$C$334+'1 Données d''entrée'!$C$333+1+$B1800,'1 Données d''entrée'!$C$332*($I1792-SUM($C1801:M1801)),0))","v":0},{"$f":"IF(N1742<1+$B1800,0,IF(N1742<'1 Données d''entrée'!$C$334+'1 Données d''entrée'!$C$333+1+$B1800,'1 Données d''entrée'!$C$332*($I1792-SUM($C1801:N1801)),0))","v":0},{"$f":"IF(O1742<1+$B1800,0,IF(O1742<'1 Données d''entrée'!$C$334+'1 Données d''entrée'!$C$333+1+$B1800,'1 Données d''entrée'!$C$332*($I1792-SUM($C1801:O1801)),0))","v":0},{"$f":"IF(P1742<1+$B1800,0,IF(P1742<'1 Données d''entrée'!$C$334+'1 Données d''entrée'!$C$333+1+$B1800,'1 Données d''entrée'!$C$332*($I1792-SUM($C1801:P1801)),0))","v":0},{"$f":"IF(Q1742<1+$B1800,0,IF(Q1742<'1 Données d''entrée'!$C$334+'1 Données d''entrée'!$C$333+1+$B1800,'1 Données d''entrée'!$C$332*($I1792-SUM($C1801:Q1801)),0))","v":0},{"$f":"IF(R1742<1+$B1800,0,IF(R1742<'1 Données d''entrée'!$C$334+'1 Données d''entrée'!$C$333+1+$B1800,'1 Données d''entrée'!$C$332*($I1792-SUM($C1801:R1801)),0))","v":0},{"$f":"IF(S1742<1+$B1800,0,IF(S1742<'1 Données d''entrée'!$C$334+'1 Données d''entrée'!$C$333+1+$B1800,'1 Données d''entrée'!$C$332*($I1792-SUM($C1801:S1801)),0))","v":0},{"$f":"IF(T1742<1+$B1800,0,IF(T1742<'1 Données d''entrée'!$C$334+'1 Données d''entrée'!$C$333+1+$B1800,'1 Données d''entrée'!$C$332*($I1792-SUM($C1801:T1801)),0))","v":0},{"$f":"IF(U1742<1+$B1800,0,IF(U1742<'1 Données d''entrée'!$C$334+'1 Données d''entrée'!$C$333+1+$B1800,'1 Données d''entrée'!$C$332*($I1792-SUM($C1801:U1801)),0))","v":0}]
["Paiement d'intêrets",8,0,{"$f":"IF(C1742<1+$B1801,0,IF(C1742<'1 Données d''entrée'!$C$334+'1 Données d''entrée'!$C$333+1+$B1801,'1 Données d''entrée'!$C$332*($J1792-SUM($C1802:C1802)),0))","v":0},{"$f":"IF(D1742<1+$B1801,0,IF(D1742<'1 Données d''entrée'!$C$334+'1 Données d''entrée'!$C$333+1+$B1801,'1 Données d''entrée'!$C$332*($J1792-SUM($C1802:D1802)),0))","v":0},{"$f":"IF(E1742<1+$B1801,0,IF(E1742<'1 Données d''entrée'!$C$334+'1 Données d''entrée'!$C$333+1+$B1801,'1 Données d''entrée'!$C$332*($J1792-SUM($C1802:E1802)),0))","v":0},{"$f":"IF(F1742<1+$B1801,0,IF(F1742<'1 Données d''entrée'!$C$334+'1 Données d''entrée'!$C$333+1+$B1801,'1 Données d''entrée'!$C$332*($J1792-SUM($C1802:F1802)),0))","v":0},{"$f":"IF(G1742<1+$B1801,0,IF(G1742<'1 Données d''entrée'!$C$334+'1 Données d''entrée'!$C$333+1+$B1801,'1 Données d''entrée'!$C$332*($J1792-SUM($C1802:G1802)),0))","v":0},{"$f":"IF(H1742<1+$B1801,0,IF(H1742<'1 Données d''entrée'!$C$334+'1 Données d''entrée'!$C$333+1+$B1801,'1 Données d''entrée'!$C$332*($J1792-SUM($C1802:H1802)),0))","v":0},{"$f":"IF(I1742<1+$B1801,0,IF(I1742<'1 Données d''entrée'!$C$334+'1 Données d''entrée'!$C$333+1+$B1801,'1 Données d''entrée'!$C$332*($J1792-SUM($C1802:I1802)),0))","v":0},{"$f":"IF(J1742<1+$B1801,0,IF(J1742<'1 Données d''entrée'!$C$334+'1 Données d''entrée'!$C$333+1+$B1801,'1 Données d''entrée'!$C$332*($J1792-SUM($C1802:J1802)),0))","v":0},{"$f":"IF(K1742<1+$B1801,0,IF(K1742<'1 Données d''entrée'!$C$334+'1 Données d''entrée'!$C$333+1+$B1801,'1 Données d''entrée'!$C$332*($J1792-SUM($C1802:K1802)),0))","v":0},{"$f":"IF(L1742<1+$B1801,0,IF(L1742<'1 Données d''entrée'!$C$334+'1 Données d''entrée'!$C$333+1+$B1801,'1 Données d''entrée'!$C$332*($J1792-SUM($C1802:L1802)),0))","v":0},{"$f":"IF(M1742<1+$B1801,0,IF(M1742<'1 Données d''entrée'!$C$334+'1 Données d''entrée'!$C$333+1+$B1801,'1 Données d''entrée'!$C$332*($J1792-SUM($C1802:M1802)),0))","v":0},{"$f":"IF(N1742<1+$B1801,0,IF(N1742<'1 Données d''entrée'!$C$334+'1 Données d''entrée'!$C$333+1+$B1801,'1 Données d''entrée'!$C$332*($J1792-SUM($C1802:N1802)),0))","v":0},{"$f":"IF(O1742<1+$B1801,0,IF(O1742<'1 Données d''entrée'!$C$334+'1 Données d''entrée'!$C$333+1+$B1801,'1 Données d''entrée'!$C$332*($J1792-SUM($C1802:O1802)),0))","v":0},{"$f":"IF(P1742<1+$B1801,0,IF(P1742<'1 Données d''entrée'!$C$334+'1 Données d''entrée'!$C$333+1+$B1801,'1 Données d''entrée'!$C$332*($J1792-SUM($C1802:P1802)),0))","v":0},{"$f":"IF(Q1742<1+$B1801,0,IF(Q1742<'1 Données d''entrée'!$C$334+'1 Données d''entrée'!$C$333+1+$B1801,'1 Données d''entrée'!$C$332*($J1792-SUM($C1802:Q1802)),0))","v":0},{"$f":"IF(R1742<1+$B1801,0,IF(R1742<'1 Données d''entrée'!$C$334+'1 Données d''entrée'!$C$333+1+$B1801,'1 Données d''entrée'!$C$332*($J1792-SUM($C1802:R1802)),0))","v":0},{"$f":"IF(S1742<1+$B1801,0,IF(S1742<'1 Données d''entrée'!$C$334+'1 Données d''entrée'!$C$333+1+$B1801,'1 Données d''entrée'!$C$332*($J1792-SUM($C1802:S1802)),0))","v":0},{"$f":"IF(T1742<1+$B1801,0,IF(T1742<'1 Données d''entrée'!$C$334+'1 Données d''entrée'!$C$333+1+$B1801,'1 Données d''entrée'!$C$332*($J1792-SUM($C1802:T1802)),0))","v":0},{"$f":"IF(U1742<1+$B1801,0,IF(U1742<'1 Données d''entrée'!$C$334+'1 Données d''entrée'!$C$333+1+$B1801,'1 Données d''entrée'!$C$332*($J1792-SUM($C1802:U1802)),0))","v":0}]
["Paiement d'intêrets",9,0,{"$f":"IF(C1742<1+$B1802,0,IF(C1742<'1 Données d''entrée'!$C$334+'1 Données d''entrée'!$C$333+1+$B1802,'1 Données d''entrée'!$C$332*($K1792-SUM($C1803:C1803)),0))","v":0},{"$f":"IF(D1742<1+$B1802,0,IF(D1742<'1 Données d''entrée'!$C$334+'1 Données d''entrée'!$C$333+1+$B1802,'1 Données d''entrée'!$C$332*($K1792-SUM($C1803:D1803)),0))","v":0},{"$f":"IF(E1742<1+$B1802,0,IF(E1742<'1 Données d''entrée'!$C$334+'1 Données d''entrée'!$C$333+1+$B1802,'1 Données d''entrée'!$C$332*($K1792-SUM($C1803:E1803)),0))","v":0},{"$f":"IF(F1742<1+$B1802,0,IF(F1742<'1 Données d''entrée'!$C$334+'1 Données d''entrée'!$C$333+1+$B1802,'1 Données d''entrée'!$C$332*($K1792-SUM($C1803:F1803)),0))","v":0},{"$f":"IF(G1742<1+$B1802,0,IF(G1742<'1 Données d''entrée'!$C$334+'1 Données d''entrée'!$C$333+1+$B1802,'1 Données d''entrée'!$C$332*($K1792-SUM($C1803:G1803)),0))","v":0},{"$f":"IF(H1742<1+$B1802,0,IF(H1742<'1 Données d''entrée'!$C$334+'1 Données d''entrée'!$C$333+1+$B1802,'1 Données d''entrée'!$C$332*($K1792-SUM($C1803:H1803)),0))","v":0},{"$f":"IF(I1742<1+$B1802,0,IF(I1742<'1 Données d''entrée'!$C$334+'1 Données d''entrée'!$C$333+1+$B1802,'1 Données d''entrée'!$C$332*($K1792-SUM($C1803:I1803)),0))","v":0},{"$f":"IF(J1742<1+$B1802,0,IF(J1742<'1 Données d''entrée'!$C$334+'1 Données d''entrée'!$C$333+1+$B1802,'1 Données d''entrée'!$C$332*($K1792-SUM($C1803:J1803)),0))","v":0},{"$f":"IF(K1742<1+$B1802,0,IF(K1742<'1 Données d''entrée'!$C$334+'1 Données d''entrée'!$C$333+1+$B1802,'1 Données d''entrée'!$C$332*($K1792-SUM($C1803:K1803)),0))","v":0},{"$f":"IF(L1742<1+$B1802,0,IF(L1742<'1 Données d''entrée'!$C$334+'1 Données d''entrée'!$C$333+1+$B1802,'1 Données d''entrée'!$C$332*($K1792-SUM($C1803:L1803)),0))","v":0},{"$f":"IF(M1742<1+$B1802,0,IF(M1742<'1 Données d''entrée'!$C$334+'1 Données d''entrée'!$C$333+1+$B1802,'1 Données d''entrée'!$C$332*($K1792-SUM($C1803:M1803)),0))","v":0},{"$f":"IF(N1742<1+$B1802,0,IF(N1742<'1 Données d''entrée'!$C$334+'1 Données d''entrée'!$C$333+1+$B1802,'1 Données d''entrée'!$C$332*($K1792-SUM($C1803:N1803)),0))","v":0},{"$f":"IF(O1742<1+$B1802,0,IF(O1742<'1 Données d''entrée'!$C$334+'1 Données d''entrée'!$C$333+1+$B1802,'1 Données d''entrée'!$C$332*($K1792-SUM($C1803:O1803)),0))","v":0},{"$f":"IF(P1742<1+$B1802,0,IF(P1742<'1 Données d''entrée'!$C$334+'1 Données d''entrée'!$C$333+1+$B1802,'1 Données d''entrée'!$C$332*($K1792-SUM($C1803:P1803)),0))","v":0},{"$f":"IF(Q1742<1+$B1802,0,IF(Q1742<'1 Données d''entrée'!$C$334+'1 Données d''entrée'!$C$333+1+$B1802,'1 Données d''entrée'!$C$332*($K1792-SUM($C1803:Q1803)),0))","v":0},{"$f":"IF(R1742<1+$B1802,0,IF(R1742<'1 Données d''entrée'!$C$334+'1 Données d''entrée'!$C$333+1+$B1802,'1 Données d''entrée'!$C$332*($K1792-SUM($C1803:R1803)),0))","v":0},{"$f":"IF(S1742<1+$B1802,0,IF(S1742<'1 Données d''entrée'!$C$334+'1 Données d''entrée'!$C$333+1+$B1802,'1 Données d''entrée'!$C$332*($K1792-SUM($C1803:S1803)),0))","v":0},{"$f":"IF(T1742<1+$B1802,0,IF(T1742<'1 Données d''entrée'!$C$334+'1 Données d''entrée'!$C$333+1+$B1802,'1 Données d''entrée'!$C$332*($K1792-SUM($C1803:T1803)),0))","v":0},{"$f":"IF(U1742<1+$B1802,0,IF(U1742<'1 Données d''entrée'!$C$334+'1 Données d''entrée'!$C$333+1+$B1802,'1 Données d''entrée'!$C$332*($K1792-SUM($C1803:U1803)),0))","v":0}]
["Paiement d'intêrets",10,0,{"$f":"IF(C1742<1+$B1803,0,IF(C1742<'1 Données d''entrée'!$C$334+'1 Données d''entrée'!$C$333+1+$B1803,'1 Données d''entrée'!$C$332*($L1792-SUM($C1804:C1804)),0))","v":0},{"$f":"IF(D1742<1+$B1803,0,IF(D1742<'1 Données d''entrée'!$C$334+'1 Données d''entrée'!$C$333+1+$B1803,'1 Données d''entrée'!$C$332*($L1792-SUM($C1804:D1804)),0))","v":0},{"$f":"IF(E1742<1+$B1803,0,IF(E1742<'1 Données d''entrée'!$C$334+'1 Données d''entrée'!$C$333+1+$B1803,'1 Données d''entrée'!$C$332*($L1792-SUM($C1804:E1804)),0))","v":0},{"$f":"IF(F1742<1+$B1803,0,IF(F1742<'1 Données d''entrée'!$C$334+'1 Données d''entrée'!$C$333+1+$B1803,'1 Données d''entrée'!$C$332*($L1792-SUM($C1804:F1804)),0))","v":0},{"$f":"IF(G1742<1+$B1803,0,IF(G1742<'1 Données d''entrée'!$C$334+'1 Données d''entrée'!$C$333+1+$B1803,'1 Données d''entrée'!$C$332*($L1792-SUM($C1804:G1804)),0))","v":0},{"$f":"IF(H1742<1+$B1803,0,IF(H1742<'1 Données d''entrée'!$C$334+'1 Données d''entrée'!$C$333+1+$B1803,'1 Données d''entrée'!$C$332*($L1792-SUM($C1804:H1804)),0))","v":0},{"$f":"IF(I1742<1+$B1803,0,IF(I1742<'1 Données d''entrée'!$C$334+'1 Données d''entrée'!$C$333+1+$B1803,'1 Données d''entrée'!$C$332*($L1792-SUM($C1804:I1804)),0))","v":0},{"$f":"IF(J1742<1+$B1803,0,IF(J1742<'1 Données d''entrée'!$C$334+'1 Données d''entrée'!$C$333+1+$B1803,'1 Données d''entrée'!$C$332*($L1792-SUM($C1804:J1804)),0))","v":0},{"$f":"IF(K1742<1+$B1803,0,IF(K1742<'1 Données d''entrée'!$C$334+'1 Données d''entrée'!$C$333+1+$B1803,'1 Données d''entrée'!$C$332*($L1792-SUM($C1804:K1804)),0))","v":0},{"$f":"IF(L1742<1+$B1803,0,IF(L1742<'1 Données d''entrée'!$C$334+'1 Données d''entrée'!$C$333+1+$B1803,'1 Données d''entrée'!$C$332*($L1792-SUM($C1804:L1804)),0))","v":0},{"$f":"IF(M1742<1+$B1803,0,IF(M1742<'1 Données d''entrée'!$C$334+'1 Données d''entrée'!$C$333+1+$B1803,'1 Données d''entrée'!$C$332*($L1792-SUM($C1804:M1804)),0))","v":0},{"$f":"IF(N1742<1+$B1803,0,IF(N1742<'1 Données d''entrée'!$C$334+'1 Données d''entrée'!$C$333+1+$B1803,'1 Données d''entrée'!$C$332*($L1792-SUM($C1804:N1804)),0))","v":0},{"$f":"IF(O1742<1+$B1803,0,IF(O1742<'1 Données d''entrée'!$C$334+'1 Données d''entrée'!$C$333+1+$B1803,'1 Données d''entrée'!$C$332*($L1792-SUM($C1804:O1804)),0))","v":0},{"$f":"IF(P1742<1+$B1803,0,IF(P1742<'1 Données d''entrée'!$C$334+'1 Données d''entrée'!$C$333+1+$B1803,'1 Données d''entrée'!$C$332*($L1792-SUM($C1804:P1804)),0))","v":0},{"$f":"IF(Q1742<1+$B1803,0,IF(Q1742<'1 Données d''entrée'!$C$334+'1 Données d''entrée'!$C$333+1+$B1803,'1 Données d''entrée'!$C$332*($L1792-SUM($C1804:Q1804)),0))","v":0},{"$f":"IF(R1742<1+$B1803,0,IF(R1742<'1 Données d''entrée'!$C$334+'1 Données d''entrée'!$C$333+1+$B1803,'1 Données d''entrée'!$C$332*($L1792-SUM($C1804:R1804)),0))","v":0},{"$f":"IF(S1742<1+$B1803,0,IF(S1742<'1 Données d''entrée'!$C$334+'1 Données d''entrée'!$C$333+1+$B1803,'1 Données d''entrée'!$C$332*($L1792-SUM($C1804:S1804)),0))","v":0},{"$f":"IF(T1742<1+$B1803,0,IF(T1742<'1 Données d''entrée'!$C$334+'1 Données d''entrée'!$C$333+1+$B1803,'1 Données d''entrée'!$C$332*($L1792-SUM($C1804:T1804)),0))","v":0},{"$f":"IF(U1742<1+$B1803,0,IF(U1742<'1 Données d''entrée'!$C$334+'1 Données d''entrée'!$C$333+1+$B1803,'1 Données d''entrée'!$C$332*($L1792-SUM($C1804:U1804)),0))","v":0}]
[]
[null,"Période",1,2,3,4,5,6,7,8,9,10,11,12,13,14,15,16,17,18,19,20]
["Prêt bancaire additionnel- Option 2: Remboursement du principal final",{"$f":"'1 Données d''entrée'!$B$343","v":0}]
["Prêt(s) nouveau(x)",null,{"$f":"IF(C1785<0,C1785*(-1)*$B1819+C1785*(-1)*$B1819*'1 Données d''entrée'!$C$338,0)","v":{"$error":"#DIV/0!"}},{"$f":"IF(D1785<0,D1785*(-1)*$B1819+D1785*(-1)*$B1819*'1 Données d''entrée'!$C$338,0)","v":{"$error":"#DIV/0!"}},{"$f":"IF(E1785<0,E1785*(-1)*$B1819+E1785*(-1)*$B1819*'1 Données d''entrée'!$C$338,0)","v":{"$error":"#DIV/0!"}},{"$f":"IF(F1785<0,F1785*(-1)*$B1819+F1785*(-1)*$B1819*'1 Données d''entrée'!$C$338,0)","v":{"$error":"#DIV/0!"}},{"$f":"IF(G1785<0,G1785*(-1)*$B1819+G1785*(-1)*$B1819*'1 Données d''entrée'!$C$338,0)","v":{"$error":"#DIV/0!"}},{"$f":"IF(H1785<0,H1785*(-1)*$B1819+H1785*(-1)*$B1819*'1 Données d''entrée'!$C$338,0)","v":{"$error":"#DIV/0!"}},{"$f":"IF(I1785<0,I1785*(-1)*$B1819+I1785*(-1)*$B1819*'1 Données d''entrée'!$C$338,0)","v":{"$error":"#DIV/0!"}},{"$f":"IF(J1785<0,J1785*(-1)*$B1819+J1785*(-1)*$B1819*'1 Données d''entrée'!$C$338,0)","v":{"$error":"#DIV/0!"}},{"$f":"IF(K1785<0,K1785*(-1)*$B1819+K1785*(-1)*$B1819*'1 Données d''entrée'!$C$338,0)","v":{"$error":"#DIV/0!"}},{"$f":"IF(L1785<0,L1785*(-1)*$B1819+L1785*(-1)*$B1819*'1 Données d''entrée'!$C$338,0)","v":{"$error":"#DIV/0!"}},{"$f":"IF(M1785<0,M1785*(-1)*$B1819+M1785*(-1)*$B1819*'1 Données d''entrée'!$C$338,0)","v":{"$error":"#DIV/0!"}},{"$f":"IF(N1785<0,N1785*(-1)*$B1819+N1785*(-1)*$B1819*'1 Données d''entrée'!$C$338,0)","v":{"$error":"#DIV/0!"}},{"$f":"IF(O1785<0,O1785*(-1)*$B1819+O1785*(-1)*$B1819*'1 Données d''entrée'!$C$338,0)","v":{"$error":"#DIV/0!"}},{"$f":"IF(P1785<0,P1785*(-1)*$B1819+P1785*(-1)*$B1819*'1 Données d''entrée'!$C$338,0)","v":{"$error":"#DIV/0!"}},{"$f":"IF(Q1785<0,Q1785*(-1)*$B1819+Q1785*(-1)*$B1819*'1 Données d''entrée'!$C$338,0)","v":{"$error":"#DIV/0!"}},{"$f":"IF(R1785<0,R1785*(-1)*$B1819+R1785*(-1)*$B1819*'1 Données d''entrée'!$C$338,0)","v":{"$error":"#DIV/0!"}},{"$f":"IF(S1785<0,S1785*(-1)*$B1819+S1785*(-1)*$B1819*'1 Données d''entrée'!$C$338,0)","v":{"$error":"#DIV/0!"}},{"$f":"IF(T1785<0,T1785*(-1)*$B1819+T1785*(-1)*$B1819*'1 Données d''entrée'!$C$338,0)","v":{"$error":"#DIV/0!"}},{"$f":"IF(U1785<0,U1785*(-1)*$B1819+U1785*(-1)*$B1819*'1 Données d''entrée'!$C$338,0)","v":{"$error":"#DIV/0!"}},{"$f":"IF(V1785<0,V1785*(-1)*$B1819+V1785*(-1)*$B1819*'1 Données d''entrée'!$C$338,0)","v":{"$error":"#DIV/0!"}}]
[null,"Période de prêt nouveau"]
["Remboursement du principal",0,0,0,0,0,0,0,0,0,0,0,0,0,0,0,0,0,0,0,0,0]
[null,1,{"$f":"IF(C1818='1 Données d''entrée'!$C$333+'1 Données d''entrée'!$C$334+$B1823,$C1820,0)","v":{"$error":"#DIV/0!"}},{"$f":"IF(D1818='1 Données d''entrée'!$C$333+'1 Données d''entrée'!$C$334+$B1823,$C1820,0)","v":0},{"$f":"IF(E1818='1 Données d''entrée'!$C$333+'1 Données d''entrée'!$C$334+$B1823,$C1820,0)","v":0},{"$f":"IF(F1818='1 Données d''entrée'!$C$333+'1 Données d''entrée'!$C$334+$B1823,$C1820,0)","v":0},{"$f":"IF(G1818='1 Données d''entrée'!$C$333+'1 Données d''entrée'!$C$334+$B1823,$C1820,0)","v":0},{"$f":"IF(H1818='1 Données d''entrée'!$C$333+'1 Données d''entrée'!$C$334+$B1823,$C1820,0)","v":0},{"$f":"IF(I1818='1 Données d''entrée'!$C$333+'1 Données d''entrée'!$C$334+$B1823,$C1820,0)","v":0},{"$f":"IF(J1818='1 Données d''entrée'!$C$333+'1 Données d''entrée'!$C$334+$B1823,$C1820,0)","v":0},{"$f":"IF(K1818='1 Données d''entrée'!$C$333+'1 Données d''entrée'!$C$334+$B1823,$C1820,0)","v":0},{"$f":"IF(L1818='1 Données d''entrée'!$C$333+'1 Données d''entrée'!$C$334+$B1823,$C1820,0)","v":0},{"$f":"IF(M1818='1 Données d''entrée'!$C$333+'1 Données d''entrée'!$C$334+$B1823,$C1820,0)","v":0},{"$f":"IF(N1818='1 Données d''entrée'!$C$333+'1 Données d''entrée'!$C$334+$B1823,$C1820,0)","v":0},{"$f":"IF(O1818='1 Données d''entrée'!$C$333+'1 Données d''entrée'!$C$334+$B1823,$C1820,0)","v":0},{"$f":"IF(P1818='1 Données d''entrée'!$C$333+'1 Données d''entrée'!$C$334+$B1823,$C1820,0)","v":0},{"$f":"IF(Q1818='1 Données d''entrée'!$C$333+'1 Données d''entrée'!$C$334+$B1823,$C1820,0)","v":0},{"$f":"IF(R1818='1 Données d''entrée'!$C$333+'1 Données d''entrée'!$C$334+$B1823,$C1820,0)","v":0},{"$f":"IF(S1818='1 Données d''entrée'!$C$333+'1 Données d''entrée'!$C$334+$B1823,$C1820,0)","v":0},{"$f":"IF(T1818='1 Données d''entrée'!$C$333+'1 Données d''entrée'!$C$334+$B1823,$C1820,0)","v":0},{"$f":"IF(U1818='1 Données d''entrée'!$C$333+'1 Données d''entrée'!$C$334+$B1823,$C1820,0)","v":0},{"$f":"IF(V1818='1 Données d''entrée'!$C$333+'1 Données d''entrée'!$C$334+$B1823,$C1820,0)","v":0}]
[null,2,{"$f":"IF(C1818='1 Données d''entrée'!$C$333+'1 Données d''entrée'!$C$334+$B1824,$D1820,0)","v":0},{"$f":"IF(D1818='1 Données d''entrée'!$C$333+'1 Données d''entrée'!$C$334+$B1824,$D1820,0)","v":{"$error":"#DIV/0!"}},{"$f":"IF(E1818='1 Données d''entrée'!$C$333+'1 Données d''entrée'!$C$334+$B1824,$D1820,0)","v":0},{"$f":"IF(F1818='1 Données d''entrée'!$C$333+'1 Données d''entrée'!$C$334+$B1824,$D1820,0)","v":0},{"$f":"IF(G1818='1 Données d''entrée'!$C$333+'1 Données d''entrée'!$C$334+$B1824,$D1820,0)","v":0},{"$f":"IF(H1818='1 Données d''entrée'!$C$333+'1 Données d''entrée'!$C$334+$B1824,$D1820,0)","v":0},{"$f":"IF(I1818='1 Données d''entrée'!$C$333+'1 Données d''entrée'!$C$334+$B1824,$D1820,0)","v":0},{"$f":"IF(J1818='1 Données d''entrée'!$C$333+'1 Données d''entrée'!$C$334+$B1824,$D1820,0)","v":0},{"$f":"IF(K1818='1 Données d''entrée'!$C$333+'1 Données d''entrée'!$C$334+$B1824,$D1820,0)","v":0},{"$f":"IF(L1818='1 Données d''entrée'!$C$333+'1 Données d''entrée'!$C$334+$B1824,$D1820,0)","v":0},{"$f":"IF(M1818='1 Données d''entrée'!$C$333+'1 Données d''entrée'!$C$334+$B1824,$D1820,0)","v":0},{"$f":"IF(N1818='1 Données d''entrée'!$C$333+'1 Données d''entrée'!$C$334+$B1824,$D1820,0)","v":0},{"$f":"IF(O1818='1 Données d''entrée'!$C$333+'1 Données d''entrée'!$C$334+$B1824,$D1820,0)","v":0},{"$f":"IF(P1818='1 Données d''entrée'!$C$333+'1 Données d''entrée'!$C$334+$B1824,$D1820,0)","v":0},{"$f":"IF(Q1818='1 Données d''entrée'!$C$333+'1 Données d''entrée'!$C$334+$B1824,$D1820,0)","v":0},{"$f":"IF(R1818='1 Données d''entrée'!$C$333+'1 Données d''entrée'!$C$334+$B1824,$D1820,0)","v":0},{"$f":"IF(S1818='1 Données d''entrée'!$C$333+'1 Données d''entrée'!$C$334+$B1824,$D1820,0)","v":0},{"$f":"IF(T1818='1 Données d''entrée'!$C$333+'1 Données d''entrée'!$C$334+$B1824,$D1820,0)","v":0},{"$f":"IF(U1818='1 Données d''entrée'!$C$333+'1 Données d''entrée'!$C$334+$B1824,$D1820,0)","v":0},{"$f":"IF(V1818='1 Données d''entrée'!$C$333+'1 Données d''entrée'!$C$334+$B1824,$D1820,0)","v":0}]
[null,3,{"$f":"IF(C1818='1 Données d''entrée'!$C$333+'1 Données d''entrée'!$C$334+$B1825,$E1820,0)","v":0},{"$f":"IF(D1818='1 Données d''entrée'!$C$333+'1 Données d''entrée'!$C$334+$B1825,$E1820,0)","v":0},{"$f":"IF(E1818='1 Données d''entrée'!$C$333+'1 Données d''entrée'!$C$334+$B1825,$E1820,0)","v":{"$error":"#DIV/0!"}},{"$f":"IF(F1818='1 Données d''entrée'!$C$333+'1 Données d''entrée'!$C$334+$B1825,$E1820,0)","v":0},{"$f":"IF(G1818='1 Données d''entrée'!$C$333+'1 Données d''entrée'!$C$334+$B1825,$E1820,0)","v":0},{"$f":"IF(H1818='1 Données d''entrée'!$C$333+'1 Données d''entrée'!$C$334+$B1825,$E1820,0)","v":0},{"$f":"IF(I1818='1 Données d''entrée'!$C$333+'1 Données d''entrée'!$C$334+$B1825,$E1820,0)","v":0},{"$f":"IF(J1818='1 Données d''entrée'!$C$333+'1 Données d''entrée'!$C$334+$B1825,$E1820,0)","v":0},{"$f":"IF(K1818='1 Données d''entrée'!$C$333+'1 Données d''entrée'!$C$334+$B1825,$E1820,0)","v":0},{"$f":"IF(L1818='1 Données d''entrée'!$C$333+'1 Données d''entrée'!$C$334+$B1825,$E1820,0)","v":0},{"$f":"IF(M1818='1 Données d''entrée'!$C$333+'1 Données d''entrée'!$C$334+$B1825,$E1820,0)","v":0},{"$f":"IF(N1818='1 Données d''entrée'!$C$333+'1 Données d''entrée'!$C$334+$B1825,$E1820,0)","v":0},{"$f":"IF(O1818='1 Données d''entrée'!$C$333+'1 Données d''entrée'!$C$334+$B1825,$E1820,0)","v":0},{"$f":"IF(P1818='1 Données d''entrée'!$C$333+'1 Données d''entrée'!$C$334+$B1825,$E1820,0)","v":0},{"$f":"IF(Q1818='1 Données d''entrée'!$C$333+'1 Données d''entrée'!$C$334+$B1825,$E1820,0)","v":0},{"$f":"IF(R1818='1 Données d''entrée'!$C$333+'1 Données d''entrée'!$C$334+$B1825,$E1820,0)","v":0},{"$f":"IF(S1818='1 Données d''entrée'!$C$333+'1 Données d''entrée'!$C$334+$B1825,$E1820,0)","v":0},{"$f":"IF(T1818='1 Données d''entrée'!$C$333+'1 Données d''entrée'!$C$334+$B1825,$E1820,0)","v":0},{"$f":"IF(U1818='1 Données d''entrée'!$C$333+'1 Données d''entrée'!$C$334+$B1825,$E1820,0)","v":0},{"$f":"IF(V1818='1 Données d''entrée'!$C$333+'1 Données d''entrée'!$C$334+$B1825,$E1820,0)","v":0}]
[null,4,{"$f":"IF(C1818='1 Données d''entrée'!$C$333+'1 Données d''entrée'!$C$334+$B1826,$F1820,0)","v":0},{"$f":"IF(D1818='1 Données d''entrée'!$C$333+'1 Données d''entrée'!$C$334+$B1826,$F1820,0)","v":0},{"$f":"IF(E1818='1 Données d''entrée'!$C$333+'1 Données d''entrée'!$C$334+$B1826,$F1820,0)","v":0},{"$f":"IF(F1818='1 Données d''entrée'!$C$333+'1 Données d''entrée'!$C$334+$B1826,$F1820,0)","v":{"$error":"#DIV/0!"}},{"$f":"IF(G1818='1 Données d''entrée'!$C$333+'1 Données d''entrée'!$C$334+$B1826,$F1820,0)","v":0},{"$f":"IF(H1818='1 Données d''entrée'!$C$333+'1 Données d''entrée'!$C$334+$B1826,$F1820,0)","v":0},{"$f":"IF(I1818='1 Données d''entrée'!$C$333+'1 Données d''entrée'!$C$334+$B1826,$F1820,0)","v":0},{"$f":"IF(J1818='1 Données d''entrée'!$C$333+'1 Données d''entrée'!$C$334+$B1826,$F1820,0)","v":0},{"$f":"IF(K1818='1 Données d''entrée'!$C$333+'1 Données d''entrée'!$C$334+$B1826,$F1820,0)","v":0},{"$f":"IF(L1818='1 Données d''entrée'!$C$333+'1 Données d''entrée'!$C$334+$B1826,$F1820,0)","v":0},{"$f":"IF(M1818='1 Données d''entrée'!$C$333+'1 Données d''entrée'!$C$334+$B1826,$F1820,0)","v":0},{"$f":"IF(N1818='1 Données d''entrée'!$C$333+'1 Données d''entrée'!$C$334+$B1826,$F1820,0)","v":0},{"$f":"IF(O1818='1 Données d''entrée'!$C$333+'1 Données d''entrée'!$C$334+$B1826,$F1820,0)","v":0},{"$f":"IF(P1818='1 Données d''entrée'!$C$333+'1 Données d''entrée'!$C$334+$B1826,$F1820,0)","v":0},{"$f":"IF(Q1818='1 Données d''entrée'!$C$333+'1 Données d''entrée'!$C$334+$B1826,$F1820,0)","v":0},{"$f":"IF(R1818='1 Données d''entrée'!$C$333+'1 Données d''entrée'!$C$334+$B1826,$F1820,0)","v":0},{"$f":"IF(S1818='1 Données d''entrée'!$C$333+'1 Données d''entrée'!$C$334+$B1826,$F1820,0)","v":0},{"$f":"IF(T1818='1 Données d''entrée'!$C$333+'1 Données d''entrée'!$C$334+$B1826,$F1820,0)","v":0},{"$f":"IF(U1818='1 Données d''entrée'!$C$333+'1 Données d''entrée'!$C$334+$B1826,$F1820,0)","v":0},{"$f":"IF(V1818='1 Données d''entrée'!$C$333+'1 Données d''entrée'!$C$334+$B1826,$F1820,0)","v":0}]
[null,5,{"$f":"IF(C1818='1 Données d''entrée'!$C$333+'1 Données d''entrée'!$C$334+$B1827,$G1820,0)","v":0},{"$f":"IF(D1818='1 Données d''entrée'!$C$333+'1 Données d''entrée'!$C$334+$B1827,$G1820,0)","v":0},{"$f":"IF(E1818='1 Données d''entrée'!$C$333+'1 Données d''entrée'!$C$334+$B1827,$G1820,0)","v":0},{"$f":"IF(F1818='1 Données d''entrée'!$C$333+'1 Données d''entrée'!$C$334+$B1827,$G1820,0)","v":0},{"$f":"IF(G1818='1 Données d''entrée'!$C$333+'1 Données d''entrée'!$C$334+$B1827,$G1820,0)","v":{"$error":"#DIV/0!"}},{"$f":"IF(H1818='1 Données d''entrée'!$C$333+'1 Données d''entrée'!$C$334+$B1827,$G1820,0)","v":0},{"$f":"IF(I1818='1 Données d''entrée'!$C$333+'1 Données d''entrée'!$C$334+$B1827,$G1820,0)","v":0},{"$f":"IF(J1818='1 Données d''entrée'!$C$333+'1 Données d''entrée'!$C$334+$B1827,$G1820,0)","v":0},{"$f":"IF(K1818='1 Données d''entrée'!$C$333+'1 Données d''entrée'!$C$334+$B1827,$G1820,0)","v":0},{"$f":"IF(L1818='1 Données d''entrée'!$C$333+'1 Données d''entrée'!$C$334+$B1827,$G1820,0)","v":0},{"$f":"IF(M1818='1 Données d''entrée'!$C$333+'1 Données d''entrée'!$C$334+$B1827,$G1820,0)","v":0},{"$f":"IF(N1818='1 Données d''entrée'!$C$333+'1 Données d''entrée'!$C$334+$B1827,$G1820,0)","v":0},{"$f":"IF(O1818='1 Données d''entrée'!$C$333+'1 Données d''entrée'!$C$334+$B1827,$G1820,0)","v":0},{"$f":"IF(P1818='1 Données d''entrée'!$C$333+'1 Données d''entrée'!$C$334+$B1827,$G1820,0)","v":0},{"$f":"IF(Q1818='1 Données d''entrée'!$C$333+'1 Données d''entrée'!$C$334+$B1827,$G1820,0)","v":0},{"$f":"IF(R1818='1 Données d''entrée'!$C$333+'1 Données d''entrée'!$C$334+$B1827,$G1820,0)","v":0},{"$f":"IF(S1818='1 Données d''entrée'!$C$333+'1 Données d''entrée'!$C$334+$B1827,$G1820,0)","v":0},{"$f":"IF(T1818='1 Données d''entrée'!$C$333+'1 Données d''entrée'!$C$334+$B1827,$G1820,0)","v":0},{"$f":"IF(U1818='1 Données d''entrée'!$C$333+'1 Données d''entrée'!$C$334+$B1827,$G1820,0)","v":0},{"$f":"IF(V1818='1 Données d''entrée'!$C$333+'1 Données d''entrée'!$C$334+$B1827,$G1820,0)","v":0}]
[null,6,{"$f":"IF(C1818='1 Données d''entrée'!$C$333+'1 Données d''entrée'!$C$334+$B1828,$H1820,0)","v":0},{"$f":"IF(D1818='1 Données d''entrée'!$C$333+'1 Données d''entrée'!$C$334+$B1828,$H1820,0)","v":0},{"$f":"IF(E1818='1 Données d''entrée'!$C$333+'1 Données d''entrée'!$C$334+$B1828,$H1820,0)","v":0},{"$f":"IF(F1818='1 Données d''entrée'!$C$333+'1 Données d''entrée'!$C$334+$B1828,$H1820,0)","v":0},{"$f":"IF(G1818='1 Données d''entrée'!$C$333+'1 Données d''entrée'!$C$334+$B1828,$H1820,0)","v":0},{"$f":"IF(H1818='1 Données d''entrée'!$C$333+'1 Données d''entrée'!$C$334+$B1828,$H1820,0)","v":{"$error":"#DIV/0!"}},{"$f":"IF(I1818='1 Données d''entrée'!$C$333+'1 Données d''entrée'!$C$334+$B1828,$H1820,0)","v":0},{"$f":"IF(J1818='1 Données d''entrée'!$C$333+'1 Données d''entrée'!$C$334+$B1828,$H1820,0)","v":0},{"$f":"IF(K1818='1 Données d''entrée'!$C$333+'1 Données d''entrée'!$C$334+$B1828,$H1820,0)","v":0},{"$f":"IF(L1818='1 Données d''entrée'!$C$333+'1 Données d''entrée'!$C$334+$B1828,$H1820,0)","v":0},{"$f":"IF(M1818='1 Données d''entrée'!$C$333+'1 Données d''entrée'!$C$334+$B1828,$H1820,0)","v":0},{"$f":"IF(N1818='1 Données d''entrée'!$C$333+'1 Données d''entrée'!$C$334+$B1828,$H1820,0)","v":0},{"$f":"IF(O1818='1 Données d''entrée'!$C$333+'1 Données d''entrée'!$C$334+$B1828,$H1820,0)","v":0},{"$f":"IF(P1818='1 Données d''entrée'!$C$333+'1 Données d''entrée'!$C$334+$B1828,$H1820,0)","v":0},{"$f":"IF(Q1818='1 Données d''entrée'!$C$333+'1 Données d''entrée'!$C$334+$B1828,$H1820,0)","v":0},{"$f":"IF(R1818='1 Données d''entrée'!$C$333+'1 Données d''entrée'!$C$334+$B1828,$H1820,0)","v":0},{"$f":"IF(S1818='1 Données d''entrée'!$C$333+'1 Données d''entrée'!$C$334+$B1828,$H1820,0)","v":0},{"$f":"IF(T1818='1 Données d''entrée'!$C$333+'1 Données d''entrée'!$C$334+$B1828,$H1820,0)","v":0},{"$f":"IF(U1818='1 Données d''entrée'!$C$333+'1 Données d''entrée'!$C$334+$B1828,$H1820,0)","v":0},{"$f":"IF(V1818='1 Données d''entrée'!$C$333+'1 Données d''entrée'!$C$334+$B1828,$H1820,0)","v":0}]
[null,7,{"$f":"IF(C1818='1 Données d''entrée'!$C$333+'1 Données d''entrée'!$C$334+$B1829,$I1820,0)","v":0},{"$f":"IF(D1818='1 Données d''entrée'!$C$333+'1 Données d''entrée'!$C$334+$B1829,$I1820,0)","v":0},{"$f":"IF(E1818='1 Données d''entrée'!$C$333+'1 Données d''entrée'!$C$334+$B1829,$I1820,0)","v":0},{"$f":"IF(F1818='1 Données d''entrée'!$C$333+'1 Données d''entrée'!$C$334+$B1829,$I1820,0)","v":0},{"$f":"IF(G1818='1 Données d''entrée'!$C$333+'1 Données d''entrée'!$C$334+$B1829,$I1820,0)","v":0},{"$f":"IF(H1818='1 Données d''entrée'!$C$333+'1 Données d''entrée'!$C$334+$B1829,$I1820,0)","v":0},{"$f":"IF(I1818='1 Données d''entrée'!$C$333+'1 Données d''entrée'!$C$334+$B1829,$I1820,0)","v":{"$error":"#DIV/0!"}},{"$f":"IF(J1818='1 Données d''entrée'!$C$333+'1 Données d''entrée'!$C$334+$B1829,$I1820,0)","v":0},{"$f":"IF(K1818='1 Données d''entrée'!$C$333+'1 Données d''entrée'!$C$334+$B1829,$I1820,0)","v":0},{"$f":"IF(L1818='1 Données d''entrée'!$C$333+'1 Données d''entrée'!$C$334+$B1829,$I1820,0)","v":0},{"$f":"IF(M1818='1 Données d''entrée'!$C$333+'1 Données d''entrée'!$C$334+$B1829,$I1820,0)","v":0},{"$f":"IF(N1818='1 Données d''entrée'!$C$333+'1 Données d''entrée'!$C$334+$B1829,$I1820,0)","v":0},{"$f":"IF(O1818='1 Données d''entrée'!$C$333+'1 Données d''entrée'!$C$334+$B1829,$I1820,0)","v":0},{"$f":"IF(P1818='1 Données d''entrée'!$C$333+'1 Données d''entrée'!$C$334+$B1829,$I1820,0)","v":0},{"$f":"IF(Q1818='1 Données d''entrée'!$C$333+'1 Données d''entrée'!$C$334+$B1829,$I1820,0)","v":0},{"$f":"IF(R1818='1 Données d''entrée'!$C$333+'1 Données d''entrée'!$C$334+$B1829,$I1820,0)","v":0},{"$f":"IF(S1818='1 Données d''entrée'!$C$333+'1 Données d''entrée'!$C$334+$B1829,$I1820,0)","v":0},{"$f":"IF(T1818='1 Données d''entrée'!$C$333+'1 Données d''entrée'!$C$334+$B1829,$I1820,0)","v":0},{"$f":"IF(U1818='1 Données d''entrée'!$C$333+'1 Données d''entrée'!$C$334+$B1829,$I1820,0)","v":0},{"$f":"IF(V1818='1 Données d''entrée'!$C$333+'1 Données d''entrée'!$C$334+$B1829,$I1820,0)","v":0}]
[null,8,{"$f":"IF(C1818='1 Données d''entrée'!$C$333+'1 Données d''entrée'!$C$334+$B1830,$J1820,0)","v":0},{"$f":"IF(D1818='1 Données d''entrée'!$C$333+'1 Données d''entrée'!$C$334+$B1830,$J1820,0)","v":0},{"$f":"IF(E1818='1 Données d''entrée'!$C$333+'1 Données d''entrée'!$C$334+$B1830,$J1820,0)","v":0},{"$f":"IF(F1818='1 Données d''entrée'!$C$333+'1 Données d''entrée'!$C$334+$B1830,$J1820,0)","v":0},{"$f":"IF(G1818='1 Données d''entrée'!$C$333+'1 Données d''entrée'!$C$334+$B1830,$J1820,0)","v":0},{"$f":"IF(H1818='1 Données d''entrée'!$C$333+'1 Données d''entrée'!$C$334+$B1830,$J1820,0)","v":0},{"$f":"IF(I1818='1 Données d''entrée'!$C$333+'1 Données d''entrée'!$C$334+$B1830,$J1820,0)","v":0},{"$f":"IF(J1818='1 Données d''entrée'!$C$333+'1 Données d''entrée'!$C$334+$B1830,$J1820,0)","v":{"$error":"#DIV/0!"}},{"$f":"IF(K1818='1 Données d''entrée'!$C$333+'1 Données d''entrée'!$C$334+$B1830,$J1820,0)","v":0},{"$f":"IF(L1818='1 Données d''entrée'!$C$333+'1 Données d''entrée'!$C$334+$B1830,$J1820,0)","v":0},{"$f":"IF(M1818='1 Données d''entrée'!$C$333+'1 Données d''entrée'!$C$334+$B1830,$J1820,0)","v":0},{"$f":"IF(N1818='1 Données d''entrée'!$C$333+'1 Données d''entrée'!$C$334+$B1830,$J1820,0)","v":0},{"$f":"IF(O1818='1 Données d''entrée'!$C$333+'1 Données d''entrée'!$C$334+$B1830,$J1820,0)","v":0},{"$f":"IF(P1818='1 Données d''entrée'!$C$333+'1 Données d''entrée'!$C$334+$B1830,$J1820,0)","v":0},{"$f":"IF(Q1818='1 Données d''entrée'!$C$333+'1 Données d''entrée'!$C$334+$B1830,$J1820,0)","v":0},{"$f":"IF(R1818='1 Données d''entrée'!$C$333+'1 Données d''entrée'!$C$334+$B1830,$J1820,0)","v":0},{"$f":"IF(S1818='1 Données d''entrée'!$C$333+'1 Données d''entrée'!$C$334+$B1830,$J1820,0)","v":0},{"$f":"IF(T1818='1 Données d''entrée'!$C$333+'1 Données d''entrée'!$C$334+$B1830,$J1820,0)","v":0},{"$f":"IF(U1818='1 Données d''entrée'!$C$333+'1 Données d''entrée'!$C$334+$B1830,$J1820,0)","v":0},{"$f":"IF(V1818='1 Données d''entrée'!$C$333+'1 Données d''entrée'!$C$334+$B1830,$J1820,0)","v":0}]
[null,9,{"$f":"IF(C1818='1 Données d''entrée'!$C$333+'1 Données d''entrée'!$C$334+$B1831,$K1820,0)","v":0},{"$f":"IF(D1818='1 Données d''entrée'!$C$333+'1 Données d''entrée'!$C$334+$B1831,$K1820,0)","v":0},{"$f":"IF(E1818='1 Données d''entrée'!$C$333+'1 Données d''entrée'!$C$334+$B1831,$K1820,0)","v":0},{"$f":"IF(F1818='1 Données d''entrée'!$C$333+'1 Données d''entrée'!$C$334+$B1831,$K1820,0)","v":0},{"$f":"IF(G1818='1 Données d''entrée'!$C$333+'1 Données d''entrée'!$C$334+$B1831,$K1820,0)","v":0},{"$f":"IF(H1818='1 Données d''entrée'!$C$333+'1 Données d''entrée'!$C$334+$B1831,$K1820,0)","v":0},{"$f":"IF(I1818='1 Données d''entrée'!$C$333+'1 Données d''entrée'!$C$334+$B1831,$K1820,0)","v":0},{"$f":"IF(J1818='1 Données d''entrée'!$C$333+'1 Données d''entrée'!$C$334+$B1831,$K1820,0)","v":0},{"$f":"IF(K1818='1 Données d''entrée'!$C$333+'1 Données d''entrée'!$C$334+$B1831,$K1820,0)","v":{"$error":"#DIV/0!"}},{"$f":"IF(L1818='1 Données d''entrée'!$C$333+'1 Données d''entrée'!$C$334+$B1831,$K1820,0)","v":0},{"$f":"IF(M1818='1 Données d''entrée'!$C$333+'1 Données d''entrée'!$C$334+$B1831,$K1820,0)","v":0},{"$f":"IF(N1818='1 Données d''entrée'!$C$333+'1 Données d''entrée'!$C$334+$B1831,$K1820,0)","v":0},{"$f":"IF(O1818='1 Données d''entrée'!$C$333+'1 Données d''entrée'!$C$334+$B1831,$K1820,0)","v":0},{"$f":"IF(P1818='1 Données d''entrée'!$C$333+'1 Données d''entrée'!$C$334+$B1831,$K1820,0)","v":0},{"$f":"IF(Q1818='1 Données d''entrée'!$C$333+'1 Données d''entrée'!$C$334+$B1831,$K1820,0)","v":0},{"$f":"IF(R1818='1 Données d''entrée'!$C$333+'1 Données d''entrée'!$C$334+$B1831,$K1820,0)","v":0},{"$f":"IF(S1818='1 Données d''entrée'!$C$333+'1 Données d''entrée'!$C$334+$B1831,$K1820,0)","v":0},{"$f":"IF(T1818='1 Données d''entrée'!$C$333+'1 Données d''entrée'!$C$334+$B1831,$K1820,0)","v":0},{"$f":"IF(U1818='1 Données d''entrée'!$C$333+'1 Données d''entrée'!$C$334+$B1831,$K1820,0)","v":0},{"$f":"IF(V1818='1 Données d''entrée'!$C$333+'1 Données d''entrée'!$C$334+$B1831,$K1820,0)","v":0}]
[null,10,{"$f":"IF(C1818='1 Données d''entrée'!$C$333+'1 Données d''entrée'!$C$334+$B1832,$L1820,0)","v":0},{"$f":"IF(D1818='1 Données d''entrée'!$C$333+'1 Données d''entrée'!$C$334+$B1832,$L1820,0)","v":0},{"$f":"IF(E1818='1 Données d''entrée'!$C$333+'1 Données d''entrée'!$C$334+$B1832,$L1820,0)","v":0},{"$f":"IF(F1818='1 Données d''entrée'!$C$333+'1 Données d''entrée'!$C$334+$B1832,$L1820,0)","v":0},{"$f":"IF(G1818='1 Données d''entrée'!$C$333+'1 Données d''entrée'!$C$334+$B1832,$L1820,0)","v":0},{"$f":"IF(H1818='1 Données d''entrée'!$C$333+'1 Données d''entrée'!$C$334+$B1832,$L1820,0)","v":0},{"$f":"IF(I1818='1 Données d''entrée'!$C$333+'1 Données d''entrée'!$C$334+$B1832,$L1820,0)","v":0},{"$f":"IF(J1818='1 Données d''entrée'!$C$333+'1 Données d''entrée'!$C$334+$B1832,$L1820,0)","v":0},{"$f":"IF(K1818='1 Données d''entrée'!$C$333+'1 Données d''entrée'!$C$334+$B1832,$L1820,0)","v":0},{"$f":"IF(L1818='1 Données d''entrée'!$C$333+'1 Données d''entrée'!$C$334+$B1832,$L1820,0)","v":{"$error":"#DIV/0!"}},{"$f":"IF(M1818='1 Données d''entrée'!$C$333+'1 Données d''entrée'!$C$334+$B1832,$L1820,0)","v":0},{"$f":"IF(N1818='1 Données d''entrée'!$C$333+'1 Données d''entrée'!$C$334+$B1832,$L1820,0)","v":0},{"$f":"IF(O1818='1 Données d''entrée'!$C$333+'1 Données d''entrée'!$C$334+$B1832,$L1820,0)","v":0},{"$f":"IF(P1818='1 Données d''entrée'!$C$333+'1 Données d''entrée'!$C$334+$B1832,$L1820,0)","v":0},{"$f":"IF(Q1818='1 Données d''entrée'!$C$333+'1 Données d''entrée'!$C$334+$B1832,$L1820,0)","v":0},{"$f":"IF(R1818='1 Données d''entrée'!$C$333+'1 Données d''entrée'!$C$334+$B1832,$L1820,0)","v":0},{"$f":"IF(S1818='1 Données d''entrée'!$C$333+'1 Données d''entrée'!$C$334+$B1832,$L1820,0)","v":0},{"$f":"IF(T1818='1 Données d''entrée'!$C$333+'1 Données d''entrée'!$C$334+$B1832,$L1820,0)","v":0},{"$f":"IF(U1818='1 Données d''entrée'!$C$333+'1 Données d''entrée'!$C$334+$B1832,$L1820,0)","v":0},{"$f":"IF(V1818='1 Données d''entrée'!$C$333+'1 Données d''entrée'!$C$334+$B1832,$L1820,0)","v":0}]
[null,"Période de prêt nouveau"]
["Paiement d'intérêts",0,0,0,0,0,0,0,0,0,0,0,0,0,0,0,0,0,0,0,0,0]
["Paiement d'intêrets",1,0,{"$f":"IF(C1742<1+$B1822,0,IF(C1742<'1 Données d''entrée'!$C$334+'1 Données d''entrée'!$C$333+1+$B1822,'1 Données d''entrée'!$C$332*($C1820-SUM($C1823:C1823)),0))","v":0},{"$f":"IF(D1742<1+$B1822,0,IF(D1742<'1 Données d''entrée'!$C$334+'1 Données d''entrée'!$C$333+1+$B1822,'1 Données d''entrée'!$C$332*($C1820-SUM($C1823:D1823)),0))","v":0},{"$f":"IF(E1742<1+$B1822,0,IF(E1742<'1 Données d''entrée'!$C$334+'1 Données d''entrée'!$C$333+1+$B1822,'1 Données d''entrée'!$C$332*($C1820-SUM($C1823:E1823)),0))","v":0},{"$f":"IF(F1742<1+$B1822,0,IF(F1742<'1 Données d''entrée'!$C$334+'1 Données d''entrée'!$C$333+1+$B1822,'1 Données d''entrée'!$C$332*($C1820-SUM($C1823:F1823)),0))","v":0},{"$f":"IF(G1742<1+$B1822,0,IF(G1742<'1 Données d''entrée'!$C$334+'1 Données d''entrée'!$C$333+1+$B1822,'1 Données d''entrée'!$C$332*($C1820-SUM($C1823:G1823)),0))","v":0},{"$f":"IF(H1742<1+$B1822,0,IF(H1742<'1 Données d''entrée'!$C$334+'1 Données d''entrée'!$C$333+1+$B1822,'1 Données d''entrée'!$C$332*($C1820-SUM($C1823:H1823)),0))","v":0},{"$f":"IF(I1742<1+$B1822,0,IF(I1742<'1 Données d''entrée'!$C$334+'1 Données d''entrée'!$C$333+1+$B1822,'1 Données d''entrée'!$C$332*($C1820-SUM($C1823:I1823)),0))","v":0},{"$f":"IF(J1742<1+$B1822,0,IF(J1742<'1 Données d''entrée'!$C$334+'1 Données d''entrée'!$C$333+1+$B1822,'1 Données d''entrée'!$C$332*($C1820-SUM($C1823:J1823)),0))","v":0},{"$f":"IF(K1742<1+$B1822,0,IF(K1742<'1 Données d''entrée'!$C$334+'1 Données d''entrée'!$C$333+1+$B1822,'1 Données d''entrée'!$C$332*($C1820-SUM($C1823:K1823)),0))","v":0},{"$f":"IF(L1742<1+$B1822,0,IF(L1742<'1 Données d''entrée'!$C$334+'1 Données d''entrée'!$C$333+1+$B1822,'1 Données d''entrée'!$C$332*($C1820-SUM($C1823:L1823)),0))","v":0},{"$f":"IF(M1742<1+$B1822,0,IF(M1742<'1 Données d''entrée'!$C$334+'1 Données d''entrée'!$C$333+1+$B1822,'1 Données d''entrée'!$C$332*($C1820-SUM($C1823:M1823)),0))","v":0},{"$f":"IF(N1742<1+$B1822,0,IF(N1742<'1 Données d''entrée'!$C$334+'1 Données d''entrée'!$C$333+1+$B1822,'1 Données d''entrée'!$C$332*($C1820-SUM($C1823:N1823)),0))","v":0},{"$f":"IF(O1742<1+$B1822,0,IF(O1742<'1 Données d''entrée'!$C$334+'1 Données d''entrée'!$C$333+1+$B1822,'1 Données d''entrée'!$C$332*($C1820-SUM($C1823:O1823)),0))","v":0},{"$f":"IF(P1742<1+$B1822,0,IF(P1742<'1 Données d''entrée'!$C$334+'1 Données d''entrée'!$C$333+1+$B1822,'1 Données d''entrée'!$C$332*($C1820-SUM($C1823:P1823)),0))","v":0},{"$f":"IF(Q1742<1+$B1822,0,IF(Q1742<'1 Données d''entrée'!$C$334+'1 Données d''entrée'!$C$333+1+$B1822,'1 Données d''entrée'!$C$332*($C1820-SUM($C1823:Q1823)),0))","v":0},{"$f":"IF(R1742<1+$B1822,0,IF(R1742<'1 Données d''entrée'!$C$334+'1 Données d''entrée'!$C$333+1+$B1822,'1 Données d''entrée'!$C$332*($C1820-SUM($C1823:R1823)),0))","v":0},{"$f":"IF(S1742<1+$B1822,0,IF(S1742<'1 Données d''entrée'!$C$334+'1 Données d''entrée'!$C$333+1+$B1822,'1 Données d''entrée'!$C$332*($C1820-SUM($C1823:S1823)),0))","v":0},{"$f":"IF(T1742<1+$B1822,0,IF(T1742<'1 Données d''entrée'!$C$334+'1 Données d''entrée'!$C$333+1+$B1822,'1 Données d''entrée'!$C$332*($C1820-SUM($C1823:T1823)),0))","v":0},{"$f":"IF(U1742<1+$B1822,0,IF(U1742<'1 Données d''entrée'!$C$334+'1 Données d''entrée'!$C$333+1+$B1822,'1 Données d''entrée'!$C$332*($C1820-SUM($C1823:U1823)),0))","v":0}]
["Paiement d'intêrets",2,0,{"$f":"IF(C1742<1+$B1823,0,IF(C1742<'1 Données d''entrée'!$C$334+'1 Données d''entrée'!$C$333+1+$B1823,'1 Données d''entrée'!$C$332*($D1820-SUM($C1824:C1824)),0))","v":0},{"$f":"IF(D1742<1+$B1823,0,IF(D1742<'1 Données d''entrée'!$C$334+'1 Données d''entrée'!$C$333+1+$B1823,'1 Données d''entrée'!$C$332*($D1820-SUM($C1824:D1824)),0))","v":0},{"$f":"IF(E1742<1+$B1823,0,IF(E1742<'1 Données d''entrée'!$C$334+'1 Données d''entrée'!$C$333+1+$B1823,'1 Données d''entrée'!$C$332*($D1820-SUM($C1824:E1824)),0))","v":0},{"$f":"IF(F1742<1+$B1823,0,IF(F1742<'1 Données d''entrée'!$C$334+'1 Données d''entrée'!$C$333+1+$B1823,'1 Données d''entrée'!$C$332*($D1820-SUM($C1824:F1824)),0))","v":0},{"$f":"IF(G1742<1+$B1823,0,IF(G1742<'1 Données d''entrée'!$C$334+'1 Données d''entrée'!$C$333+1+$B1823,'1 Données d''entrée'!$C$332*($D1820-SUM($C1824:G1824)),0))","v":0},{"$f":"IF(H1742<1+$B1823,0,IF(H1742<'1 Données d''entrée'!$C$334+'1 Données d''entrée'!$C$333+1+$B1823,'1 Données d''entrée'!$C$332*($D1820-SUM($C1824:H1824)),0))","v":0},{"$f":"IF(I1742<1+$B1823,0,IF(I1742<'1 Données d''entrée'!$C$334+'1 Données d''entrée'!$C$333+1+$B1823,'1 Données d''entrée'!$C$332*($D1820-SUM($C1824:I1824)),0))","v":0},{"$f":"IF(J1742<1+$B1823,0,IF(J1742<'1 Données d''entrée'!$C$334+'1 Données d''entrée'!$C$333+1+$B1823,'1 Données d''entrée'!$C$332*($D1820-SUM($C1824:J1824)),0))","v":0},{"$f":"IF(K1742<1+$B1823,0,IF(K1742<'1 Données d''entrée'!$C$334+'1 Données d''entrée'!$C$333+1+$B1823,'1 Données d''entrée'!$C$332*($D1820-SUM($C1824:K1824)),0))","v":0},{"$f":"IF(L1742<1+$B1823,0,IF(L1742<'1 Données d''entrée'!$C$334+'1 Données d''entrée'!$C$333+1+$B1823,'1 Données d''entrée'!$C$332*($D1820-SUM($C1824:L1824)),0))","v":0},{"$f":"IF(M1742<1+$B1823,0,IF(M1742<'1 Données d''entrée'!$C$334+'1 Données d''entrée'!$C$333+1+$B1823,'1 Données d''entrée'!$C$332*($D1820-SUM($C1824:M1824)),0))","v":0},{"$f":"IF(N1742<1+$B1823,0,IF(N1742<'1 Données d''entrée'!$C$334+'1 Données d''entrée'!$C$333+1+$B1823,'1 Données d''entrée'!$C$332*($D1820-SUM($C1824:N1824)),0))","v":0},{"$f":"IF(O1742<1+$B1823,0,IF(O1742<'1 Données d''entrée'!$C$334+'1 Données d''entrée'!$C$333+1+$B1823,'1 Données d''entrée'!$C$332*($D1820-SUM($C1824:O1824)),0))","v":0},{"$f":"IF(P1742<1+$B1823,0,IF(P1742<'1 Données d''entrée'!$C$334+'1 Données d''entrée'!$C$333+1+$B1823,'1 Données d''entrée'!$C$332*($D1820-SUM($C1824:P1824)),0))","v":0},{"$f":"IF(Q1742<1+$B1823,0,IF(Q1742<'1 Données d''entrée'!$C$334+'1 Données d''entrée'!$C$333+1+$B1823,'1 Données d''entrée'!$C$332*($D1820-SUM($C1824:Q1824)),0))","v":0},{"$f":"IF(R1742<1+$B1823,0,IF(R1742<'1 Données d''entrée'!$C$334+'1 Données d''entrée'!$C$333+1+$B1823,'1 Données d''entrée'!$C$332*($D1820-SUM($C1824:R1824)),0))","v":0},{"$f":"IF(S1742<1+$B1823,0,IF(S1742<'1 Données d''entrée'!$C$334+'1 Données d''entrée'!$C$333+1+$B1823,'1 Données d''entrée'!$C$332*($D1820-SUM($C1824:S1824)),0))","v":0},{"$f":"IF(T1742<1+$B1823,0,IF(T1742<'1 Données d''entrée'!$C$334+'1 Données d''entrée'!$C$333+1+$B1823,'1 Données d''entrée'!$C$332*($D1820-SUM($C1824:T1824)),0))","v":0},{"$f":"IF(U1742<1+$B1823,0,IF(U1742<'1 Données d''entrée'!$C$334+'1 Données d''entrée'!$C$333+1+$B1823,'1 Données d''entrée'!$C$332*($D1820-SUM($C1824:U1824)),0))","v":0}]
["Paiement d'intêrets",3,0,{"$f":"IF(C1742<1+$B1824,0,IF(C1742<'1 Données d''entrée'!$C$334+'1 Données d''entrée'!$C$333+1+$B1824,'1 Données d''entrée'!$C$332*($E1820-SUM($C1825:C1825)),0))","v":0},{"$f":"IF(D1742<1+$B1824,0,IF(D1742<'1 Données d''entrée'!$C$334+'1 Données d''entrée'!$C$333+1+$B1824,'1 Données d''entrée'!$C$332*($E1820-SUM($C1825:D1825)),0))","v":0},{"$f":"IF(E1742<1+$B1824,0,IF(E1742<'1 Données d''entrée'!$C$334+'1 Données d''entrée'!$C$333+1+$B1824,'1 Données d''entrée'!$C$332*($E1820-SUM($C1825:E1825)),0))","v":0},{"$f":"IF(F1742<1+$B1824,0,IF(F1742<'1 Données d''entrée'!$C$334+'1 Données d''entrée'!$C$333+1+$B1824,'1 Données d''entrée'!$C$332*($E1820-SUM($C1825:F1825)),0))","v":0},{"$f":"IF(G1742<1+$B1824,0,IF(G1742<'1 Données d''entrée'!$C$334+'1 Données d''entrée'!$C$333+1+$B1824,'1 Données d''entrée'!$C$332*($E1820-SUM($C1825:G1825)),0))","v":0},{"$f":"IF(H1742<1+$B1824,0,IF(H1742<'1 Données d''entrée'!$C$334+'1 Données d''entrée'!$C$333+1+$B1824,'1 Données d''entrée'!$C$332*($E1820-SUM($C1825:H1825)),0))","v":0},{"$f":"IF(I1742<1+$B1824,0,IF(I1742<'1 Données d''entrée'!$C$334+'1 Données d''entrée'!$C$333+1+$B1824,'1 Données d''entrée'!$C$332*($E1820-SUM($C1825:I1825)),0))","v":0},{"$f":"IF(J1742<1+$B1824,0,IF(J1742<'1 Données d''entrée'!$C$334+'1 Données d''entrée'!$C$333+1+$B1824,'1 Données d''entrée'!$C$332*($E1820-SUM($C1825:J1825)),0))","v":0},{"$f":"IF(K1742<1+$B1824,0,IF(K1742<'1 Données d''entrée'!$C$334+'1 Données d''entrée'!$C$333+1+$B1824,'1 Données d''entrée'!$C$332*($E1820-SUM($C1825:K1825)),0))","v":0},{"$f":"IF(L1742<1+$B1824,0,IF(L1742<'1 Données d''entrée'!$C$334+'1 Données d''entrée'!$C$333+1+$B1824,'1 Données d''entrée'!$C$332*($E1820-SUM($C1825:L1825)),0))","v":0},{"$f":"IF(M1742<1+$B1824,0,IF(M1742<'1 Données d''entrée'!$C$334+'1 Données d''entrée'!$C$333+1+$B1824,'1 Données d''entrée'!$C$332*($E1820-SUM($C1825:M1825)),0))","v":0},{"$f":"IF(N1742<1+$B1824,0,IF(N1742<'1 Données d''entrée'!$C$334+'1 Données d''entrée'!$C$333+1+$B1824,'1 Données d''entrée'!$C$332*($E1820-SUM($C1825:N1825)),0))","v":0},{"$f":"IF(O1742<1+$B1824,0,IF(O1742<'1 Données d''entrée'!$C$334+'1 Données d''entrée'!$C$333+1+$B1824,'1 Données d''entrée'!$C$332*($E1820-SUM($C1825:O1825)),0))","v":0},{"$f":"IF(P1742<1+$B1824,0,IF(P1742<'1 Données d''entrée'!$C$334+'1 Données d''entrée'!$C$333+1+$B1824,'1 Données d''entrée'!$C$332*($E1820-SUM($C1825:P1825)),0))","v":0},{"$f":"IF(Q1742<1+$B1824,0,IF(Q1742<'1 Données d''entrée'!$C$334+'1 Données d''entrée'!$C$333+1+$B1824,'1 Données d''entrée'!$C$332*($E1820-SUM($C1825:Q1825)),0))","v":0},{"$f":"IF(R1742<1+$B1824,0,IF(R1742<'1 Données d''entrée'!$C$334+'1 Données d''entrée'!$C$333+1+$B1824,'1 Données d''entrée'!$C$332*($E1820-SUM($C1825:R1825)),0))","v":0},{"$f":"IF(S1742<1+$B1824,0,IF(S1742<'1 Données d''entrée'!$C$334+'1 Données d''entrée'!$C$333+1+$B1824,'1 Données d''entrée'!$C$332*($E1820-SUM($C1825:S1825)),0))","v":0},{"$f":"IF(T1742<1+$B1824,0,IF(T1742<'1 Données d''entrée'!$C$334+'1 Données d''entrée'!$C$333+1+$B1824,'1 Données d''entrée'!$C$332*($E1820-SUM($C1825:T1825)),0))","v":0},{"$f":"IF(U1742<1+$B1824,0,IF(U1742<'1 Données d''entrée'!$C$334+'1 Données d''entrée'!$C$333+1+$B1824,'1 Données d''entrée'!$C$332*($E1820-SUM($C1825:U1825)),0))","v":0}]
["Paiement d'intêrets",4,0,{"$f":"IF(C1742<1+$B1825,0,IF(C1742<'1 Données d''entrée'!$C$334+'1 Données d''entrée'!$C$333+1+$B1825,'1 Données d''entrée'!$C$332*($F1820-SUM($C1826:C1826)),0))","v":0},{"$f":"IF(D1742<1+$B1825,0,IF(D1742<'1 Données d''entrée'!$C$334+'1 Données d''entrée'!$C$333+1+$B1825,'1 Données d''entrée'!$C$332*($F1820-SUM($C1826:D1826)),0))","v":0},{"$f":"IF(E1742<1+$B1825,0,IF(E1742<'1 Données d''entrée'!$C$334+'1 Données d''entrée'!$C$333+1+$B1825,'1 Données d''entrée'!$C$332*($F1820-SUM($C1826:E1826)),0))","v":0},{"$f":"IF(F1742<1+$B1825,0,IF(F1742<'1 Données d''entrée'!$C$334+'1 Données d''entrée'!$C$333+1+$B1825,'1 Données d''entrée'!$C$332*($F1820-SUM($C1826:F1826)),0))","v":0},{"$f":"IF(G1742<1+$B1825,0,IF(G1742<'1 Données d''entrée'!$C$334+'1 Données d''entrée'!$C$333+1+$B1825,'1 Données d''entrée'!$C$332*($F1820-SUM($C1826:G1826)),0))","v":0},{"$f":"IF(H1742<1+$B1825,0,IF(H1742<'1 Données d''entrée'!$C$334+'1 Données d''entrée'!$C$333+1+$B1825,'1 Données d''entrée'!$C$332*($F1820-SUM($C1826:H1826)),0))","v":0},{"$f":"IF(I1742<1+$B1825,0,IF(I1742<'1 Données d''entrée'!$C$334+'1 Données d''entrée'!$C$333+1+$B1825,'1 Données d''entrée'!$C$332*($F1820-SUM($C1826:I1826)),0))","v":0},{"$f":"IF(J1742<1+$B1825,0,IF(J1742<'1 Données d''entrée'!$C$334+'1 Données d''entrée'!$C$333+1+$B1825,'1 Données d''entrée'!$C$332*($F1820-SUM($C1826:J1826)),0))","v":0},{"$f":"IF(K1742<1+$B1825,0,IF(K1742<'1 Données d''entrée'!$C$334+'1 Données d''entrée'!$C$333+1+$B1825,'1 Données d''entrée'!$C$332*($F1820-SUM($C1826:K1826)),0))","v":0},{"$f":"IF(L1742<1+$B1825,0,IF(L1742<'1 Données d''entrée'!$C$334+'1 Données d''entrée'!$C$333+1+$B1825,'1 Données d''entrée'!$C$332*($F1820-SUM($C1826:L1826)),0))","v":0},{"$f":"IF(M1742<1+$B1825,0,IF(M1742<'1 Données d''entrée'!$C$334+'1 Données d''entrée'!$C$333+1+$B1825,'1 Données d''entrée'!$C$332*($F1820-SUM($C1826:M1826)),0))","v":0},{"$f":"IF(N1742<1+$B1825,0,IF(N1742<'1 Données d''entrée'!$C$334+'1 Données d''entrée'!$C$333+1+$B1825,'1 Données d''entrée'!$C$332*($F1820-SUM($C1826:N1826)),0))","v":0},{"$f":"IF(O1742<1+$B1825,0,IF(O1742<'1 Données d''entrée'!$C$334+'1 Données d''entrée'!$C$333+1+$B1825,'1 Données d''entrée'!$C$332*($F1820-SUM($C1826:O1826)),0))","v":0},{"$f":"IF(P1742<1+$B1825,0,IF(P1742<'1 Données d''entrée'!$C$334+'1 Données d''entrée'!$C$333+1+$B1825,'1 Données d''entrée'!$C$332*($F1820-SUM($C1826:P1826)),0))","v":0},{"$f":"IF(Q1742<1+$B1825,0,IF(Q1742<'1 Données d''entrée'!$C$334+'1 Données d''entrée'!$C$333+1+$B1825,'1 Données d''entrée'!$C$332*($F1820-SUM($C1826:Q1826)),0))","v":0},{"$f":"IF(R1742<1+$B1825,0,IF(R1742<'1 Données d''entrée'!$C$334+'1 Données d''entrée'!$C$333+1+$B1825,'1 Données d''entrée'!$C$332*($F1820-SUM($C1826:R1826)),0))","v":0},{"$f":"IF(S1742<1+$B1825,0,IF(S1742<'1 Données d''entrée'!$C$334+'1 Données d''entrée'!$C$333+1+$B1825,'1 Données d''entrée'!$C$332*($F1820-SUM($C1826:S1826)),0))","v":0},{"$f":"IF(T1742<1+$B1825,0,IF(T1742<'1 Données d''entrée'!$C$334+'1 Données d''entrée'!$C$333+1+$B1825,'1 Données d''entrée'!$C$332*($F1820-SUM($C1826:T1826)),0))","v":0},{"$f":"IF(U1742<1+$B1825,0,IF(U1742<'1 Données d''entrée'!$C$334+'1 Données d''entrée'!$C$333+1+$B1825,'1 Données d''entrée'!$C$332*($F1820-SUM($C1826:U1826)),0))","v":0}]
["Paiement d'intêrets",5,0,{"$f":"IF(C1742<1+$B1826,0,IF(C1742<'1 Données d''entrée'!$C$334+'1 Données d''entrée'!$C$333+1+$B1826,'1 Données d''entrée'!$C$332*($G1820-SUM($C1827:C1827)),0))","v":0},{"$f":"IF(D1742<1+$B1826,0,IF(D1742<'1 Données d''entrée'!$C$334+'1 Données d''entrée'!$C$333+1+$B1826,'1 Données d''entrée'!$C$332*($G1820-SUM($C1827:D1827)),0))","v":0},{"$f":"IF(E1742<1+$B1826,0,IF(E1742<'1 Données d''entrée'!$C$334+'1 Données d''entrée'!$C$333+1+$B1826,'1 Données d''entrée'!$C$332*($G1820-SUM($C1827:E1827)),0))","v":0},{"$f":"IF(F1742<1+$B1826,0,IF(F1742<'1 Données d''entrée'!$C$334+'1 Données d''entrée'!$C$333+1+$B1826,'1 Données d''entrée'!$C$332*($G1820-SUM($C1827:F1827)),0))","v":0},{"$f":"IF(G1742<1+$B1826,0,IF(G1742<'1 Données d''entrée'!$C$334+'1 Données d''entrée'!$C$333+1+$B1826,'1 Données d''entrée'!$C$332*($G1820-SUM($C1827:G1827)),0))","v":0},{"$f":"IF(H1742<1+$B1826,0,IF(H1742<'1 Données d''entrée'!$C$334+'1 Données d''entrée'!$C$333+1+$B1826,'1 Données d''entrée'!$C$332*($G1820-SUM($C1827:H1827)),0))","v":0},{"$f":"IF(I1742<1+$B1826,0,IF(I1742<'1 Données d''entrée'!$C$334+'1 Données d''entrée'!$C$333+1+$B1826,'1 Données d''entrée'!$C$332*($G1820-SUM($C1827:I1827)),0))","v":0},{"$f":"IF(J1742<1+$B1826,0,IF(J1742<'1 Données d''entrée'!$C$334+'1 Données d''entrée'!$C$333+1+$B1826,'1 Données d''entrée'!$C$332*($G1820-SUM($C1827:J1827)),0))","v":0},{"$f":"IF(K1742<1+$B1826,0,IF(K1742<'1 Données d''entrée'!$C$334+'1 Données d''entrée'!$C$333+1+$B1826,'1 Données d''entrée'!$C$332*($G1820-SUM($C1827:K1827)),0))","v":0},{"$f":"IF(L1742<1+$B1826,0,IF(L1742<'1 Données d''entrée'!$C$334+'1 Données d''entrée'!$C$333+1+$B1826,'1 Données d''entrée'!$C$332*($G1820-SUM($C1827:L1827)),0))","v":0},{"$f":"IF(M1742<1+$B1826,0,IF(M1742<'1 Données d''entrée'!$C$334+'1 Données d''entrée'!$C$333+1+$B1826,'1 Données d''entrée'!$C$332*($G1820-SUM($C1827:M1827)),0))","v":0},{"$f":"IF(N1742<1+$B1826,0,IF(N1742<'1 Données d''entrée'!$C$334+'1 Données d''entrée'!$C$333+1+$B1826,'1 Données d''entrée'!$C$332*($G1820-SUM($C1827:N1827)),0))","v":0},{"$f":"IF(O1742<1+$B1826,0,IF(O1742<'1 Données d''entrée'!$C$334+'1 Données d''entrée'!$C$333+1+$B1826,'1 Données d''entrée'!$C$332*($G1820-SUM($C1827:O1827)),0))","v":0},{"$f":"IF(P1742<1+$B1826,0,IF(P1742<'1 Données d''entrée'!$C$334+'1 Données d''entrée'!$C$333+1+$B1826,'1 Données d''entrée'!$C$332*($G1820-SUM($C1827:P1827)),0))","v":0},{"$f":"IF(Q1742<1+$B1826,0,IF(Q1742<'1 Données d''entrée'!$C$334+'1 Données d''entrée'!$C$333+1+$B1826,'1 Données d''entrée'!$C$332*($G1820-SUM($C1827:Q1827)),0))","v":0},{"$f":"IF(R1742<1+$B1826,0,IF(R1742<'1 Données d''entrée'!$C$334+'1 Données d''entrée'!$C$333+1+$B1826,'1 Données d''entrée'!$C$332*($G1820-SUM($C1827:R1827)),0))","v":0},{"$f":"IF(S1742<1+$B1826,0,IF(S1742<'1 Données d''entrée'!$C$334+'1 Données d''entrée'!$C$333+1+$B1826,'1 Données d''entrée'!$C$332*($G1820-SUM($C1827:S1827)),0))","v":0},{"$f":"IF(T1742<1+$B1826,0,IF(T1742<'1 Données d''entrée'!$C$334+'1 Données d''entrée'!$C$333+1+$B1826,'1 Données d''entrée'!$C$332*($G1820-SUM($C1827:T1827)),0))","v":0},{"$f":"IF(U1742<1+$B1826,0,IF(U1742<'1 Données d''entrée'!$C$334+'1 Données d''entrée'!$C$333+1+$B1826,'1 Données d''entrée'!$C$332*($G1820-SUM($C1827:U1827)),0))","v":0}]
["Paiement d'intêrets",6,0,{"$f":"IF(C1742<1+$B1827,0,IF(C1742<'1 Données d''entrée'!$C$334+'1 Données d''entrée'!$C$333+1+$B1827,'1 Données d''entrée'!$C$332*($H1820-SUM($C1828:C1828)),0))","v":0},{"$f":"IF(D1742<1+$B1827,0,IF(D1742<'1 Données d''entrée'!$C$334+'1 Données d''entrée'!$C$333+1+$B1827,'1 Données d''entrée'!$C$332*($H1820-SUM($C1828:D1828)),0))","v":0},{"$f":"IF(E1742<1+$B1827,0,IF(E1742<'1 Données d''entrée'!$C$334+'1 Données d''entrée'!$C$333+1+$B1827,'1 Données d''entrée'!$C$332*($H1820-SUM($C1828:E1828)),0))","v":0},{"$f":"IF(F1742<1+$B1827,0,IF(F1742<'1 Données d''entrée'!$C$334+'1 Données d''entrée'!$C$333+1+$B1827,'1 Données d''entrée'!$C$332*($H1820-SUM($C1828:F1828)),0))","v":0},{"$f":"IF(G1742<1+$B1827,0,IF(G1742<'1 Données d''entrée'!$C$334+'1 Données d''entrée'!$C$333+1+$B1827,'1 Données d''entrée'!$C$332*($H1820-SUM($C1828:G1828)),0))","v":0},{"$f":"IF(H1742<1+$B1827,0,IF(H1742<'1 Données d''entrée'!$C$334+'1 Données d''entrée'!$C$333+1+$B1827,'1 Données d''entrée'!$C$332*($H1820-SUM($C1828:H1828)),0))","v":0},{"$f":"IF(I1742<1+$B1827,0,IF(I1742<'1 Données d''entrée'!$C$334+'1 Données d''entrée'!$C$333+1+$B1827,'1 Données d''entrée'!$C$332*($H1820-SUM($C1828:I1828)),0))","v":0},{"$f":"IF(J1742<1+$B1827,0,IF(J1742<'1 Données d''entrée'!$C$334+'1 Données d''entrée'!$C$333+1+$B1827,'1 Données d''entrée'!$C$332*($H1820-SUM($C1828:J1828)),0))","v":0},{"$f":"IF(K1742<1+$B1827,0,IF(K1742<'1 Données d''entrée'!$C$334+'1 Données d''entrée'!$C$333+1+$B1827,'1 Données d''entrée'!$C$332*($H1820-SUM($C1828:K1828)),0))","v":0},{"$f":"IF(L1742<1+$B1827,0,IF(L1742<'1 Données d''entrée'!$C$334+'1 Données d''entrée'!$C$333+1+$B1827,'1 Données d''entrée'!$C$332*($H1820-SUM($C1828:L1828)),0))","v":0},{"$f":"IF(M1742<1+$B1827,0,IF(M1742<'1 Données d''entrée'!$C$334+'1 Données d''entrée'!$C$333+1+$B1827,'1 Données d''entrée'!$C$332*($H1820-SUM($C1828:M1828)),0))","v":0},{"$f":"IF(N1742<1+$B1827,0,IF(N1742<'1 Données d''entrée'!$C$334+'1 Données d''entrée'!$C$333+1+$B1827,'1 Données d''entrée'!$C$332*($H1820-SUM($C1828:N1828)),0))","v":0},{"$f":"IF(O1742<1+$B1827,0,IF(O1742<'1 Données d''entrée'!$C$334+'1 Données d''entrée'!$C$333+1+$B1827,'1 Données d''entrée'!$C$332*($H1820-SUM($C1828:O1828)),0))","v":0},{"$f":"IF(P1742<1+$B1827,0,IF(P1742<'1 Données d''entrée'!$C$334+'1 Données d''entrée'!$C$333+1+$B1827,'1 Données d''entrée'!$C$332*($H1820-SUM($C1828:P1828)),0))","v":0},{"$f":"IF(Q1742<1+$B1827,0,IF(Q1742<'1 Données d''entrée'!$C$334+'1 Données d''entrée'!$C$333+1+$B1827,'1 Données d''entrée'!$C$332*($H1820-SUM($C1828:Q1828)),0))","v":0},{"$f":"IF(R1742<1+$B1827,0,IF(R1742<'1 Données d''entrée'!$C$334+'1 Données d''entrée'!$C$333+1+$B1827,'1 Données d''entrée'!$C$332*($H1820-SUM($C1828:R1828)),0))","v":0},{"$f":"IF(S1742<1+$B1827,0,IF(S1742<'1 Données d''entrée'!$C$334+'1 Données d''entrée'!$C$333+1+$B1827,'1 Données d''entrée'!$C$332*($H1820-SUM($C1828:S1828)),0))","v":0},{"$f":"IF(T1742<1+$B1827,0,IF(T1742<'1 Données d''entrée'!$C$334+'1 Données d''entrée'!$C$333+1+$B1827,'1 Données d''entrée'!$C$332*($H1820-SUM($C1828:T1828)),0))","v":0},{"$f":"IF(U1742<1+$B1827,0,IF(U1742<'1 Données d''entrée'!$C$334+'1 Données d''entrée'!$C$333+1+$B1827,'1 Données d''entrée'!$C$332*($H1820-SUM($C1828:U1828)),0))","v":0}]
["Paiement d'intêrets",7,0,{"$f":"IF(C1742<1+$B1828,0,IF(C1742<'1 Données d''entrée'!$C$334+'1 Données d''entrée'!$C$333+1+$B1828,'1 Données d''entrée'!$C$332*($I1820-SUM($C1829:C1829)),0))","v":0},{"$f":"IF(D1742<1+$B1828,0,IF(D1742<'1 Données d''entrée'!$C$334+'1 Données d''entrée'!$C$333+1+$B1828,'1 Données d''entrée'!$C$332*($I1820-SUM($C1829:D1829)),0))","v":0},{"$f":"IF(E1742<1+$B1828,0,IF(E1742<'1 Données d''entrée'!$C$334+'1 Données d''entrée'!$C$333+1+$B1828,'1 Données d''entrée'!$C$332*($I1820-SUM($C1829:E1829)),0))","v":0},{"$f":"IF(F1742<1+$B1828,0,IF(F1742<'1 Données d''entrée'!$C$334+'1 Données d''entrée'!$C$333+1+$B1828,'1 Données d''entrée'!$C$332*($I1820-SUM($C1829:F1829)),0))","v":0},{"$f":"IF(G1742<1+$B1828,0,IF(G1742<'1 Données d''entrée'!$C$334+'1 Données d''entrée'!$C$333+1+$B1828,'1 Données d''entrée'!$C$332*($I1820-SUM($C1829:G1829)),0))","v":0},{"$f":"IF(H1742<1+$B1828,0,IF(H1742<'1 Données d''entrée'!$C$334+'1 Données d''entrée'!$C$333+1+$B1828,'1 Données d''entrée'!$C$332*($I1820-SUM($C1829:H1829)),0))","v":0},{"$f":"IF(I1742<1+$B1828,0,IF(I1742<'1 Données d''entrée'!$C$334+'1 Données d''entrée'!$C$333+1+$B1828,'1 Données d''entrée'!$C$332*($I1820-SUM($C1829:I1829)),0))","v":0},{"$f":"IF(J1742<1+$B1828,0,IF(J1742<'1 Données d''entrée'!$C$334+'1 Données d''entrée'!$C$333+1+$B1828,'1 Données d''entrée'!$C$332*($I1820-SUM($C1829:J1829)),0))","v":0},{"$f":"IF(K1742<1+$B1828,0,IF(K1742<'1 Données d''entrée'!$C$334+'1 Données d''entrée'!$C$333+1+$B1828,'1 Données d''entrée'!$C$332*($I1820-SUM($C1829:K1829)),0))","v":0},{"$f":"IF(L1742<1+$B1828,0,IF(L1742<'1 Données d''entrée'!$C$334+'1 Données d''entrée'!$C$333+1+$B1828,'1 Données d''entrée'!$C$332*($I1820-SUM($C1829:L1829)),0))","v":0},{"$f":"IF(M1742<1+$B1828,0,IF(M1742<'1 Données d''entrée'!$C$334+'1 Données d''entrée'!$C$333+1+$B1828,'1 Données d''entrée'!$C$332*($I1820-SUM($C1829:M1829)),0))","v":0},{"$f":"IF(N1742<1+$B1828,0,IF(N1742<'1 Données d''entrée'!$C$334+'1 Données d''entrée'!$C$333+1+$B1828,'1 Données d''entrée'!$C$332*($I1820-SUM($C1829:N1829)),0))","v":0},{"$f":"IF(O1742<1+$B1828,0,IF(O1742<'1 Données d''entrée'!$C$334+'1 Données d''entrée'!$C$333+1+$B1828,'1 Données d''entrée'!$C$332*($I1820-SUM($C1829:O1829)),0))","v":0},{"$f":"IF(P1742<1+$B1828,0,IF(P1742<'1 Données d''entrée'!$C$334+'1 Données d''entrée'!$C$333+1+$B1828,'1 Données d''entrée'!$C$332*($I1820-SUM($C1829:P1829)),0))","v":0},{"$f":"IF(Q1742<1+$B1828,0,IF(Q1742<'1 Données d''entrée'!$C$334+'1 Données d''entrée'!$C$333+1+$B1828,'1 Données d''entrée'!$C$332*($I1820-SUM($C1829:Q1829)),0))","v":0},{"$f":"IF(R1742<1+$B1828,0,IF(R1742<'1 Données d''entrée'!$C$334+'1 Données d''entrée'!$C$333+1+$B1828,'1 Données d''entrée'!$C$332*($I1820-SUM($C1829:R1829)),0))","v":0},{"$f":"IF(S1742<1+$B1828,0,IF(S1742<'1 Données d''entrée'!$C$334+'1 Données d''entrée'!$C$333+1+$B1828,'1 Données d''entrée'!$C$332*($I1820-SUM($C1829:S1829)),0))","v":0},{"$f":"IF(T1742<1+$B1828,0,IF(T1742<'1 Données d''entrée'!$C$334+'1 Données d''entrée'!$C$333+1+$B1828,'1 Données d''entrée'!$C$332*($I1820-SUM($C1829:T1829)),0))","v":0},{"$f":"IF(U1742<1+$B1828,0,IF(U1742<'1 Données d''entrée'!$C$334+'1 Données d''entrée'!$C$333+1+$B1828,'1 Données d''entrée'!$C$332*($I1820-SUM($C1829:U1829)),0))","v":0}]
["Paiement d'intêrets",8,0,{"$f":"IF(C1742<1+$B1829,0,IF(C1742<'1 Données d''entrée'!$C$334+'1 Données d''entrée'!$C$333+1+$B1829,'1 Données d''entrée'!$C$332*($J1820-SUM($C1830:C1830)),0))","v":0},{"$f":"IF(D1742<1+$B1829,0,IF(D1742<'1 Données d''entrée'!$C$334+'1 Données d''entrée'!$C$333+1+$B1829,'1 Données d''entrée'!$C$332*($J1820-SUM($C1830:D1830)),0))","v":0},{"$f":"IF(E1742<1+$B1829,0,IF(E1742<'1 Données d''entrée'!$C$334+'1 Données d''entrée'!$C$333+1+$B1829,'1 Données d''entrée'!$C$332*($J1820-SUM($C1830:E1830)),0))","v":0},{"$f":"IF(F1742<1+$B1829,0,IF(F1742<'1 Données d''entrée'!$C$334+'1 Données d''entrée'!$C$333+1+$B1829,'1 Données d''entrée'!$C$332*($J1820-SUM($C1830:F1830)),0))","v":0},{"$f":"IF(G1742<1+$B1829,0,IF(G1742<'1 Données d''entrée'!$C$334+'1 Données d''entrée'!$C$333+1+$B1829,'1 Données d''entrée'!$C$332*($J1820-SUM($C1830:G1830)),0))","v":0},{"$f":"IF(H1742<1+$B1829,0,IF(H1742<'1 Données d''entrée'!$C$334+'1 Données d''entrée'!$C$333+1+$B1829,'1 Données d''entrée'!$C$332*($J1820-SUM($C1830:H1830)),0))","v":0},{"$f":"IF(I1742<1+$B1829,0,IF(I1742<'1 Données d''entrée'!$C$334+'1 Données d''entrée'!$C$333+1+$B1829,'1 Données d''entrée'!$C$332*($J1820-SUM($C1830:I1830)),0))","v":0},{"$f":"IF(J1742<1+$B1829,0,IF(J1742<'1 Données d''entrée'!$C$334+'1 Données d''entrée'!$C$333+1+$B1829,'1 Données d''entrée'!$C$332*($J1820-SUM($C1830:J1830)),0))","v":0},{"$f":"IF(K1742<1+$B1829,0,IF(K1742<'1 Données d''entrée'!$C$334+'1 Données d''entrée'!$C$333+1+$B1829,'1 Données d''entrée'!$C$332*($J1820-SUM($C1830:K1830)),0))","v":0},{"$f":"IF(L1742<1+$B1829,0,IF(L1742<'1 Données d''entrée'!$C$334+'1 Données d''entrée'!$C$333+1+$B1829,'1 Données d''entrée'!$C$332*($J1820-SUM($C1830:L1830)),0))","v":0},{"$f":"IF(M1742<1+$B1829,0,IF(M1742<'1 Données d''entrée'!$C$334+'1 Données d''entrée'!$C$333+1+$B1829,'1 Données d''entrée'!$C$332*($J1820-SUM($C1830:M1830)),0))","v":0},{"$f":"IF(N1742<1+$B1829,0,IF(N1742<'1 Données d''entrée'!$C$334+'1 Données d''entrée'!$C$333+1+$B1829,'1 Données d''entrée'!$C$332*($J1820-SUM($C1830:N1830)),0))","v":0},{"$f":"IF(O1742<1+$B1829,0,IF(O1742<'1 Données d''entrée'!$C$334+'1 Données d''entrée'!$C$333+1+$B1829,'1 Données d''entrée'!$C$332*($J1820-SUM($C1830:O1830)),0))","v":0},{"$f":"IF(P1742<1+$B1829,0,IF(P1742<'1 Données d''entrée'!$C$334+'1 Données d''entrée'!$C$333+1+$B1829,'1 Données d''entrée'!$C$332*($J1820-SUM($C1830:P1830)),0))","v":0},{"$f":"IF(Q1742<1+$B1829,0,IF(Q1742<'1 Données d''entrée'!$C$334+'1 Données d''entrée'!$C$333+1+$B1829,'1 Données d''entrée'!$C$332*($J1820-SUM($C1830:Q1830)),0))","v":0},{"$f":"IF(R1742<1+$B1829,0,IF(R1742<'1 Données d''entrée'!$C$334+'1 Données d''entrée'!$C$333+1+$B1829,'1 Données d''entrée'!$C$332*($J1820-SUM($C1830:R1830)),0))","v":0},{"$f":"IF(S1742<1+$B1829,0,IF(S1742<'1 Données d''entrée'!$C$334+'1 Données d''entrée'!$C$333+1+$B1829,'1 Données d''entrée'!$C$332*($J1820-SUM($C1830:S1830)),0))","v":0},{"$f":"IF(T1742<1+$B1829,0,IF(T1742<'1 Données d''entrée'!$C$334+'1 Données d''entrée'!$C$333+1+$B1829,'1 Données d''entrée'!$C$332*($J1820-SUM($C1830:T1830)),0))","v":0},{"$f":"IF(U1742<1+$B1829,0,IF(U1742<'1 Données d''entrée'!$C$334+'1 Données d''entrée'!$C$333+1+$B1829,'1 Données d''entrée'!$C$332*($J1820-SUM($C1830:U1830)),0))","v":0}]
["Paiement d'intêrets",9,0,{"$f":"IF(C1742<1+$B1830,0,IF(C1742<'1 Données d''entrée'!$C$334+'1 Données d''entrée'!$C$333+1+$B1830,'1 Données d''entrée'!$C$332*($K1820-SUM($C1831:C1831)),0))","v":0},{"$f":"IF(D1742<1+$B1830,0,IF(D1742<'1 Données d''entrée'!$C$334+'1 Données d''entrée'!$C$333+1+$B1830,'1 Données d''entrée'!$C$332*($K1820-SUM($C1831:D1831)),0))","v":0},{"$f":"IF(E1742<1+$B1830,0,IF(E1742<'1 Données d''entrée'!$C$334+'1 Données d''entrée'!$C$333+1+$B1830,'1 Données d''entrée'!$C$332*($K1820-SUM($C1831:E1831)),0))","v":0},{"$f":"IF(F1742<1+$B1830,0,IF(F1742<'1 Données d''entrée'!$C$334+'1 Données d''entrée'!$C$333+1+$B1830,'1 Données d''entrée'!$C$332*($K1820-SUM($C1831:F1831)),0))","v":0},{"$f":"IF(G1742<1+$B1830,0,IF(G1742<'1 Données d''entrée'!$C$334+'1 Données d''entrée'!$C$333+1+$B1830,'1 Données d''entrée'!$C$332*($K1820-SUM($C1831:G1831)),0))","v":0},{"$f":"IF(H1742<1+$B1830,0,IF(H1742<'1 Données d''entrée'!$C$334+'1 Données d''entrée'!$C$333+1+$B1830,'1 Données d''entrée'!$C$332*($K1820-SUM($C1831:H1831)),0))","v":0},{"$f":"IF(I1742<1+$B1830,0,IF(I1742<'1 Données d''entrée'!$C$334+'1 Données d''entrée'!$C$333+1+$B1830,'1 Données d''entrée'!$C$332*($K1820-SUM($C1831:I1831)),0))","v":0},{"$f":"IF(J1742<1+$B1830,0,IF(J1742<'1 Données d''entrée'!$C$334+'1 Données d''entrée'!$C$333+1+$B1830,'1 Données d''entrée'!$C$332*($K1820-SUM($C1831:J1831)),0))","v":0},{"$f":"IF(K1742<1+$B1830,0,IF(K1742<'1 Données d''entrée'!$C$334+'1 Données d''entrée'!$C$333+1+$B1830,'1 Données d''entrée'!$C$332*($K1820-SUM($C1831:K1831)),0))","v":0},{"$f":"IF(L1742<1+$B1830,0,IF(L1742<'1 Données d''entrée'!$C$334+'1 Données d''entrée'!$C$333+1+$B1830,'1 Données d''entrée'!$C$332*($K1820-SUM($C1831:L1831)),0))","v":0},{"$f":"IF(M1742<1+$B1830,0,IF(M1742<'1 Données d''entrée'!$C$334+'1 Données d''entrée'!$C$333+1+$B1830,'1 Données d''entrée'!$C$332*($K1820-SUM($C1831:M1831)),0))","v":0},{"$f":"IF(N1742<1+$B1830,0,IF(N1742<'1 Données d''entrée'!$C$334+'1 Données d''entrée'!$C$333+1+$B1830,'1 Données d''entrée'!$C$332*($K1820-SUM($C1831:N1831)),0))","v":0},{"$f":"IF(O1742<1+$B1830,0,IF(O1742<'1 Données d''entrée'!$C$334+'1 Données d''entrée'!$C$333+1+$B1830,'1 Données d''entrée'!$C$332*($K1820-SUM($C1831:O1831)),0))","v":0},{"$f":"IF(P1742<1+$B1830,0,IF(P1742<'1 Données d''entrée'!$C$334+'1 Données d''entrée'!$C$333+1+$B1830,'1 Données d''entrée'!$C$332*($K1820-SUM($C1831:P1831)),0))","v":0},{"$f":"IF(Q1742<1+$B1830,0,IF(Q1742<'1 Données d''entrée'!$C$334+'1 Données d''entrée'!$C$333+1+$B1830,'1 Données d''entrée'!$C$332*($K1820-SUM($C1831:Q1831)),0))","v":0},{"$f":"IF(R1742<1+$B1830,0,IF(R1742<'1 Données d''entrée'!$C$334+'1 Données d''entrée'!$C$333+1+$B1830,'1 Données d''entrée'!$C$332*($K1820-SUM($C1831:R1831)),0))","v":0},{"$f":"IF(S1742<1+$B1830,0,IF(S1742<'1 Données d''entrée'!$C$334+'1 Données d''entrée'!$C$333+1+$B1830,'1 Données d''entrée'!$C$332*($K1820-SUM($C1831:S1831)),0))","v":0},{"$f":"IF(T1742<1+$B1830,0,IF(T1742<'1 Données d''entrée'!$C$334+'1 Données d''entrée'!$C$333+1+$B1830,'1 Données d''entrée'!$C$332*($K1820-SUM($C1831:T1831)),0))","v":0},{"$f":"IF(U1742<1+$B1830,0,IF(U1742<'1 Données d''entrée'!$C$334+'1 Données d''entrée'!$C$333+1+$B1830,'1 Données d''entrée'!$C$332*($K1820-SUM($C1831:U1831)),0))","v":0}]
["Paiement d'intêrets",10,0,{"$f":"IF(C1742<1+$B1831,0,IF(C1742<'1 Données d''entrée'!$C$334+'1 Données d''entrée'!$C$333+1+$B1831,'1 Données d''entrée'!$C$332*($L1820-SUM($C1832:C1832)),0))","v":0},{"$f":"IF(D1742<1+$B1831,0,IF(D1742<'1 Données d''entrée'!$C$334+'1 Données d''entrée'!$C$333+1+$B1831,'1 Données d''entrée'!$C$332*($L1820-SUM($C1832:D1832)),0))","v":0},{"$f":"IF(E1742<1+$B1831,0,IF(E1742<'1 Données d''entrée'!$C$334+'1 Données d''entrée'!$C$333+1+$B1831,'1 Données d''entrée'!$C$332*($L1820-SUM($C1832:E1832)),0))","v":0},{"$f":"IF(F1742<1+$B1831,0,IF(F1742<'1 Données d''entrée'!$C$334+'1 Données d''entrée'!$C$333+1+$B1831,'1 Données d''entrée'!$C$332*($L1820-SUM($C1832:F1832)),0))","v":0},{"$f":"IF(G1742<1+$B1831,0,IF(G1742<'1 Données d''entrée'!$C$334+'1 Données d''entrée'!$C$333+1+$B1831,'1 Données d''entrée'!$C$332*($L1820-SUM($C1832:G1832)),0))","v":0},{"$f":"IF(H1742<1+$B1831,0,IF(H1742<'1 Données d''entrée'!$C$334+'1 Données d''entrée'!$C$333+1+$B1831,'1 Données d''entrée'!$C$332*($L1820-SUM($C1832:H1832)),0))","v":0},{"$f":"IF(I1742<1+$B1831,0,IF(I1742<'1 Données d''entrée'!$C$334+'1 Données d''entrée'!$C$333+1+$B1831,'1 Données d''entrée'!$C$332*($L1820-SUM($C1832:I1832)),0))","v":0},{"$f":"IF(J1742<1+$B1831,0,IF(J1742<'1 Données d''entrée'!$C$334+'1 Données d''entrée'!$C$333+1+$B1831,'1 Données d''entrée'!$C$332*($L1820-SUM($C1832:J1832)),0))","v":0},{"$f":"IF(K1742<1+$B1831,0,IF(K1742<'1 Données d''entrée'!$C$334+'1 Données d''entrée'!$C$333+1+$B1831,'1 Données d''entrée'!$C$332*($L1820-SUM($C1832:K1832)),0))","v":0},{"$f":"IF(L1742<1+$B1831,0,IF(L1742<'1 Données d''entrée'!$C$334+'1 Données d''entrée'!$C$333+1+$B1831,'1 Données d''entrée'!$C$332*($L1820-SUM($C1832:L1832)),0))","v":0},{"$f":"IF(M1742<1+$B1831,0,IF(M1742<'1 Données d''entrée'!$C$334+'1 Données d''entrée'!$C$333+1+$B1831,'1 Données d''entrée'!$C$332*($L1820-SUM($C1832:M1832)),0))","v":0},{"$f":"IF(N1742<1+$B1831,0,IF(N1742<'1 Données d''entrée'!$C$334+'1 Données d''entrée'!$C$333+1+$B1831,'1 Données d''entrée'!$C$332*($L1820-SUM($C1832:N1832)),0))","v":0},{"$f":"IF(O1742<1+$B1831,0,IF(O1742<'1 Données d''entrée'!$C$334+'1 Données d''entrée'!$C$333+1+$B1831,'1 Données d''entrée'!$C$332*($L1820-SUM($C1832:O1832)),0))","v":0},{"$f":"IF(P1742<1+$B1831,0,IF(P1742<'1 Données d''entrée'!$C$334+'1 Données d''entrée'!$C$333+1+$B1831,'1 Données d''entrée'!$C$332*($L1820-SUM($C1832:P1832)),0))","v":0},{"$f":"IF(Q1742<1+$B1831,0,IF(Q1742<'1 Données d''entrée'!$C$334+'1 Données d''entrée'!$C$333+1+$B1831,'1 Données d''entrée'!$C$332*($L1820-SUM($C1832:Q1832)),0))","v":0},{"$f":"IF(R1742<1+$B1831,0,IF(R1742<'1 Données d''entrée'!$C$334+'1 Données d''entrée'!$C$333+1+$B1831,'1 Données d''entrée'!$C$332*($L1820-SUM($C1832:R1832)),0))","v":0},{"$f":"IF(S1742<1+$B1831,0,IF(S1742<'1 Données d''entrée'!$C$334+'1 Données d''entrée'!$C$333+1+$B1831,'1 Données d''entrée'!$C$332*($L1820-SUM($C1832:S1832)),0))","v":0},{"$f":"IF(T1742<1+$B1831,0,IF(T1742<'1 Données d''entrée'!$C$334+'1 Données d''entrée'!$C$333+1+$B1831,'1 Données d''entrée'!$C$332*($L1820-SUM($C1832:T1832)),0))","v":0},{"$f":"IF(U1742<1+$B1831,0,IF(U1742<'1 Données d''entrée'!$C$334+'1 Données d''entrée'!$C$333+1+$B1831,'1 Données d''entrée'!$C$332*($L1820-SUM($C1832:U1832)),0))","v":0}]
[]
[null,"Période",1,2,3,4,5,6,7,8,9,10,11,12,13,14,15,16,17,18,19,20]
["Prêt bancaire - Option 3: Remboursement vers l'annuité constante",{"$f":"'1 Données d''entrée'!$B$344","v":0}]
["Prêt(s) nouveau(x)",null,{"$f":"IF(C1785<0,C1785*(-1)*$B1847+C1785*(-1)*$B1847*'1 Données d''entrée'!$C$338,0)","v":{"$error":"#DIV/0!"}},{"$f":"IF(D1785<0,D1785*(-1)*$B1847+D1785*(-1)*$B1847*'1 Données d''entrée'!$C$338,0)","v":{"$error":"#DIV/0!"}},{"$f":"IF(E1785<0,E1785*(-1)*$B1847+E1785*(-1)*$B1847*'1 Données d''entrée'!$C$338,0)","v":{"$error":"#DIV/0!"}},{"$f":"IF(F1785<0,F1785*(-1)*$B1847+F1785*(-1)*$B1847*'1 Données d''entrée'!$C$338,0)","v":{"$error":"#DIV/0!"}},{"$f":"IF(G1785<0,G1785*(-1)*$B1847+G1785*(-1)*$B1847*'1 Données d''entrée'!$C$338,0)","v":{"$error":"#DIV/0!"}},{"$f":"IF(H1785<0,H1785*(-1)*$B1847+H1785*(-1)*$B1847*'1 Données d''entrée'!$C$338,0)","v":{"$error":"#DIV/0!"}},{"$f":"IF(I1785<0,I1785*(-1)*$B1847+I1785*(-1)*$B1847*'1 Données d''entrée'!$C$338,0)","v":{"$error":"#DIV/0!"}},{"$f":"IF(J1785<0,J1785*(-1)*$B1847+J1785*(-1)*$B1847*'1 Données d''entrée'!$C$338,0)","v":{"$error":"#DIV/0!"}},{"$f":"IF(K1785<0,K1785*(-1)*$B1847+K1785*(-1)*$B1847*'1 Données d''entrée'!$C$338,0)","v":{"$error":"#DIV/0!"}},{"$f":"IF(L1785<0,L1785*(-1)*$B1847+L1785*(-1)*$B1847*'1 Données d''entrée'!$C$338,0)","v":{"$error":"#DIV/0!"}},{"$f":"IF(M1785<0,M1785*(-1)*$B1847+M1785*(-1)*$B1847*'1 Données d''entrée'!$C$338,0)","v":{"$error":"#DIV/0!"}},{"$f":"IF(N1785<0,N1785*(-1)*$B1847+N1785*(-1)*$B1847*'1 Données d''entrée'!$C$338,0)","v":{"$error":"#DIV/0!"}},{"$f":"IF(O1785<0,O1785*(-1)*$B1847+O1785*(-1)*$B1847*'1 Données d''entrée'!$C$338,0)","v":{"$error":"#DIV/0!"}},{"$f":"IF(P1785<0,P1785*(-1)*$B1847+P1785*(-1)*$B1847*'1 Données d''entrée'!$C$338,0)","v":{"$error":"#DIV/0!"}},{"$f":"IF(Q1785<0,Q1785*(-1)*$B1847+Q1785*(-1)*$B1847*'1 Données d''entrée'!$C$338,0)","v":{"$error":"#DIV/0!"}},{"$f":"IF(R1785<0,R1785*(-1)*$B1847+R1785*(-1)*$B1847*'1 Données d''entrée'!$C$338,0)","v":{"$error":"#DIV/0!"}},{"$f":"IF(S1785<0,S1785*(-1)*$B1847+S1785*(-1)*$B1847*'1 Données d''entrée'!$C$338,0)","v":{"$error":"#DIV/0!"}},{"$f":"IF(T1785<0,T1785*(-1)*$B1847+T1785*(-1)*$B1847*'1 Données d''entrée'!$C$338,0)","v":{"$error":"#DIV/0!"}},{"$f":"IF(U1785<0,U1785*(-1)*$B1847+U1785*(-1)*$B1847*'1 Données d''entrée'!$C$338,0)","v":{"$error":"#DIV/0!"}},{"$f":"IF(V1785<0,V1785*(-1)*$B1847+V1785*(-1)*$B1847*'1 Données d''entrée'!$C$338,0)","v":{"$error":"#DIV/0!"}}]
[null,"Période de prêt nouveau"]
["Remboursement vers l'annuité constante",0,0,0,0,0,0,0,0,0,0,0,0,0,0,0,0,0,0,0,0,0]
[null,1,{"$f":"IF(C$54<'1 Données d''entrée'!$C$334+1+$B1851,0,IF(C$54<'1 Données d''entrée'!$C$333+'1 Données d''entrée'!$C$334+1+$B1851,$C$160*('1 Données d''entrée'!$C$332*(1+'1 Données d''entrée'!$C$332)^'1 Données d''entrée'!$C$333)/((1+'1 Données d''entrée'!$C$332)^'1 Données d''entrée'!$C$333-1),0))","v":0},{"$f":"IF(D1742<'1 Données d''entrée'!$C$334+1+$B1851,0,IF(D1742<'1 Données d''entrée'!$C$333+'1 Données d''entrée'!$C$334+1+$B1851,$C1848*('1 Données d''entrée'!$C$332*(1+'1 Données d''entrée'!$C$332)^'1 Données d''entrée'!$C$333)/((1+'1 Données d''entrée'!$C$332)^'1 Données d''entrée'!$C$333-1),0))","v":0},{"$f":"IF(E1742<'1 Données d''entrée'!$C$334+1+$B1851,0,IF(E1742<'1 Données d''entrée'!$C$333+'1 Données d''entrée'!$C$334+1+$B1851,$C1848*('1 Données d''entrée'!$C$332*(1+'1 Données d''entrée'!$C$332)^'1 Données d''entrée'!$C$333)/((1+'1 Données d''entrée'!$C$332)^'1 Données d''entrée'!$C$333-1),0))","v":0},{"$f":"IF(F1742<'1 Données d''entrée'!$C$334+1+$B1851,0,IF(F1742<'1 Données d''entrée'!$C$333+'1 Données d''entrée'!$C$334+1+$B1851,$C1848*('1 Données d''entrée'!$C$332*(1+'1 Données d''entrée'!$C$332)^'1 Données d''entrée'!$C$333)/((1+'1 Données d''entrée'!$C$332)^'1 Données d''entrée'!$C$333-1),0))","v":0},{"$f":"IF(G1742<'1 Données d''entrée'!$C$334+1+$B1851,0,IF(G1742<'1 Données d''entrée'!$C$333+'1 Données d''entrée'!$C$334+1+$B1851,$C1848*('1 Données d''entrée'!$C$332*(1+'1 Données d''entrée'!$C$332)^'1 Données d''entrée'!$C$333)/((1+'1 Données d''entrée'!$C$332)^'1 Données d''entrée'!$C$333-1),0))","v":0},{"$f":"IF(H1742<'1 Données d''entrée'!$C$334+1+$B1851,0,IF(H1742<'1 Données d''entrée'!$C$333+'1 Données d''entrée'!$C$334+1+$B1851,$C1848*('1 Données d''entrée'!$C$332*(1+'1 Données d''entrée'!$C$332)^'1 Données d''entrée'!$C$333)/((1+'1 Données d''entrée'!$C$332)^'1 Données d''entrée'!$C$333-1),0))","v":0},{"$f":"IF(I1742<'1 Données d''entrée'!$C$334+1+$B1851,0,IF(I1742<'1 Données d''entrée'!$C$333+'1 Données d''entrée'!$C$334+1+$B1851,$C1848*('1 Données d''entrée'!$C$332*(1+'1 Données d''entrée'!$C$332)^'1 Données d''entrée'!$C$333)/((1+'1 Données d''entrée'!$C$332)^'1 Données d''entrée'!$C$333-1),0))","v":0},{"$f":"IF(J1742<'1 Données d''entrée'!$C$334+1+$B1851,0,IF(J1742<'1 Données d''entrée'!$C$333+'1 Données d''entrée'!$C$334+1+$B1851,$C1848*('1 Données d''entrée'!$C$332*(1+'1 Données d''entrée'!$C$332)^'1 Données d''entrée'!$C$333)/((1+'1 Données d''entrée'!$C$332)^'1 Données d''entrée'!$C$333-1),0))","v":0},{"$f":"IF(K1742<'1 Données d''entrée'!$C$334+1+$B1851,0,IF(K1742<'1 Données d''entrée'!$C$333+'1 Données d''entrée'!$C$334+1+$B1851,$C1848*('1 Données d''entrée'!$C$332*(1+'1 Données d''entrée'!$C$332)^'1 Données d''entrée'!$C$333)/((1+'1 Données d''entrée'!$C$332)^'1 Données d''entrée'!$C$333-1),0))","v":0},{"$f":"IF(L1742<'1 Données d''entrée'!$C$334+1+$B1851,0,IF(L1742<'1 Données d''entrée'!$C$333+'1 Données d''entrée'!$C$334+1+$B1851,$C1848*('1 Données d''entrée'!$C$332*(1+'1 Données d''entrée'!$C$332)^'1 Données d''entrée'!$C$333)/((1+'1 Données d''entrée'!$C$332)^'1 Données d''entrée'!$C$333-1),0))","v":0},{"$f":"IF(M1742<'1 Données d''entrée'!$C$334+1+$B1851,0,IF(M1742<'1 Données d''entrée'!$C$333+'1 Données d''entrée'!$C$334+1+$B1851,$C1848*('1 Données d''entrée'!$C$332*(1+'1 Données d''entrée'!$C$332)^'1 Données d''entrée'!$C$333)/((1+'1 Données d''entrée'!$C$332)^'1 Données d''entrée'!$C$333-1),0))","v":0},{"$f":"IF(N1742<'1 Données d''entrée'!$C$334+1+$B1851,0,IF(N1742<'1 Données d''entrée'!$C$333+'1 Données d''entrée'!$C$334+1+$B1851,$C1848*('1 Données d''entrée'!$C$332*(1+'1 Données d''entrée'!$C$332)^'1 Données d''entrée'!$C$333)/((1+'1 Données d''entrée'!$C$332)^'1 Données d''entrée'!$C$333-1),0))","v":0},{"$f":"IF(O1742<'1 Données d''entrée'!$C$334+1+$B1851,0,IF(O1742<'1 Données d''entrée'!$C$333+'1 Données d''entrée'!$C$334+1+$B1851,$C1848*('1 Données d''entrée'!$C$332*(1+'1 Données d''entrée'!$C$332)^'1 Données d''entrée'!$C$333)/((1+'1 Données d''entrée'!$C$332)^'1 Données d''entrée'!$C$333-1),0))","v":0},{"$f":"IF(P1742<'1 Données d''entrée'!$C$334+1+$B1851,0,IF(P1742<'1 Données d''entrée'!$C$333+'1 Données d''entrée'!$C$334+1+$B1851,$C1848*('1 Données d''entrée'!$C$332*(1+'1 Données d''entrée'!$C$332)^'1 Données d''entrée'!$C$333)/((1+'1 Données d''entrée'!$C$332)^'1 Données d''entrée'!$C$333-1),0))","v":0},{"$f":"IF(Q1742<'1 Données d''entrée'!$C$334+1+$B1851,0,IF(Q1742<'1 Données d''entrée'!$C$333+'1 Données d''entrée'!$C$334+1+$B1851,$C1848*('1 Données d''entrée'!$C$332*(1+'1 Données d''entrée'!$C$332)^'1 Données d''entrée'!$C$333)/((1+'1 Données d''entrée'!$C$332)^'1 Données d''entrée'!$C$333-1),0))","v":0},{"$f":"IF(R1742<'1 Données d''entrée'!$C$334+1+$B1851,0,IF(R1742<'1 Données d''entrée'!$C$333+'1 Données d''entrée'!$C$334+1+$B1851,$C1848*('1 Données d''entrée'!$C$332*(1+'1 Données d''entrée'!$C$332)^'1 Données d''entrée'!$C$333)/((1+'1 Données d''entrée'!$C$332)^'1 Données d''entrée'!$C$333-1),0))","v":0},{"$f":"IF(S1742<'1 Données d''entrée'!$C$334+1+$B1851,0,IF(S1742<'1 Données d''entrée'!$C$333+'1 Données d''entrée'!$C$334+1+$B1851,$C1848*('1 Données d''entrée'!$C$332*(1+'1 Données d''entrée'!$C$332)^'1 Données d''entrée'!$C$333)/((1+'1 Données d''entrée'!$C$332)^'1 Données d''entrée'!$C$333-1),0))","v":0},{"$f":"IF(T1742<'1 Données d''entrée'!$C$334+1+$B1851,0,IF(T1742<'1 Données d''entrée'!$C$333+'1 Données d''entrée'!$C$334+1+$B1851,$C1848*('1 Données d''entrée'!$C$332*(1+'1 Données d''entrée'!$C$332)^'1 Données d''entrée'!$C$333)/((1+'1 Données d''entrée'!$C$332)^'1 Données d''entrée'!$C$333-1),0))","v":0},{"$f":"IF(U1742<'1 Données d''entrée'!$C$334+1+$B1851,0,IF(U1742<'1 Données d''entrée'!$C$333+'1 Données d''entrée'!$C$334+1+$B1851,$C1848*('1 Données d''entrée'!$C$332*(1+'1 Données d''entrée'!$C$332)^'1 Données d''entrée'!$C$333)/((1+'1 Données d''entrée'!$C$332)^'1 Données d''entrée'!$C$333-1),0))","v":0},{"$f":"IF(V1742<'1 Données d''entrée'!$C$334+1+$B1851,0,IF(V1742<'1 Données d''entrée'!$C$333+'1 Données d''entrée'!$C$334+1+$B1851,$C1848*('1 Données d''entrée'!$C$332*(1+'1 Données d''entrée'!$C$332)^'1 Données d''entrée'!$C$333)/((1+'1 Données d''entrée'!$C$332)^'1 Données d''entrée'!$C$333-1),0))","v":0}]
[null,2,{"$f":"IF(C$54<'1 Données d''entrée'!$C$334+1+$B1852,0,IF(C$54<'1 Données d''entrée'!$C$333+'1 Données d''entrée'!$C$334+1+$B1852,$D$160*('1 Données d''entrée'!$C$332*(1+'1 Données d''entrée'!$C$332)^'1 Données d''entrée'!$C$333)/((1+'1 Données d''entrée'!$C$332)^'1 Données d''entrée'!$C$333-1),0))","v":0},{"$f":"IF(D1742<'1 Données d''entrée'!$C$334+1+$B1852,0,IF(D1742<'1 Données d''entrée'!$C$333+'1 Données d''entrée'!$C$334+1+$B1852,$D1848*('1 Données d''entrée'!$C$332*(1+'1 Données d''entrée'!$C$332)^'1 Données d''entrée'!$C$333)/((1+'1 Données d''entrée'!$C$332)^'1 Données d''entrée'!$C$333-1),0))","v":0},{"$f":"IF(E1742<'1 Données d''entrée'!$C$334+1+$B1852,0,IF(E1742<'1 Données d''entrée'!$C$333+'1 Données d''entrée'!$C$334+1+$B1852,$D1848*('1 Données d''entrée'!$C$332*(1+'1 Données d''entrée'!$C$332)^'1 Données d''entrée'!$C$333)/((1+'1 Données d''entrée'!$C$332)^'1 Données d''entrée'!$C$333-1),0))","v":0},{"$f":"IF(F1742<'1 Données d''entrée'!$C$334+1+$B1852,0,IF(F1742<'1 Données d''entrée'!$C$333+'1 Données d''entrée'!$C$334+1+$B1852,$D1848*('1 Données d''entrée'!$C$332*(1+'1 Données d''entrée'!$C$332)^'1 Données d''entrée'!$C$333)/((1+'1 Données d''entrée'!$C$332)^'1 Données d''entrée'!$C$333-1),0))","v":0},{"$f":"IF(G1742<'1 Données d''entrée'!$C$334+1+$B1852,0,IF(G1742<'1 Données d''entrée'!$C$333+'1 Données d''entrée'!$C$334+1+$B1852,$D1848*('1 Données d''entrée'!$C$332*(1+'1 Données d''entrée'!$C$332)^'1 Données d''entrée'!$C$333)/((1+'1 Données d''entrée'!$C$332)^'1 Données d''entrée'!$C$333-1),0))","v":0},{"$f":"IF(H1742<'1 Données d''entrée'!$C$334+1+$B1852,0,IF(H1742<'1 Données d''entrée'!$C$333+'1 Données d''entrée'!$C$334+1+$B1852,$D1848*('1 Données d''entrée'!$C$332*(1+'1 Données d''entrée'!$C$332)^'1 Données d''entrée'!$C$333)/((1+'1 Données d''entrée'!$C$332)^'1 Données d''entrée'!$C$333-1),0))","v":0},{"$f":"IF(I1742<'1 Données d''entrée'!$C$334+1+$B1852,0,IF(I1742<'1 Données d''entrée'!$C$333+'1 Données d''entrée'!$C$334+1+$B1852,$D1848*('1 Données d''entrée'!$C$332*(1+'1 Données d''entrée'!$C$332)^'1 Données d''entrée'!$C$333)/((1+'1 Données d''entrée'!$C$332)^'1 Données d''entrée'!$C$333-1),0))","v":0},{"$f":"IF(J1742<'1 Données d''entrée'!$C$334+1+$B1852,0,IF(J1742<'1 Données d''entrée'!$C$333+'1 Données d''entrée'!$C$334+1+$B1852,$D1848*('1 Données d''entrée'!$C$332*(1+'1 Données d''entrée'!$C$332)^'1 Données d''entrée'!$C$333)/((1+'1 Données d''entrée'!$C$332)^'1 Données d''entrée'!$C$333-1),0))","v":0},{"$f":"IF(K1742<'1 Données d''entrée'!$C$334+1+$B1852,0,IF(K1742<'1 Données d''entrée'!$C$333+'1 Données d''entrée'!$C$334+1+$B1852,$D1848*('1 Données d''entrée'!$C$332*(1+'1 Données d''entrée'!$C$332)^'1 Données d''entrée'!$C$333)/((1+'1 Données d''entrée'!$C$332)^'1 Données d''entrée'!$C$333-1),0))","v":0},{"$f":"IF(L1742<'1 Données d''entrée'!$C$334+1+$B1852,0,IF(L1742<'1 Données d''entrée'!$C$333+'1 Données d''entrée'!$C$334+1+$B1852,$D1848*('1 Données d''entrée'!$C$332*(1+'1 Données d''entrée'!$C$332)^'1 Données d''entrée'!$C$333)/((1+'1 Données d''entrée'!$C$332)^'1 Données d''entrée'!$C$333-1),0))","v":0},{"$f":"IF(M1742<'1 Données d''entrée'!$C$334+1+$B1852,0,IF(M1742<'1 Données d''entrée'!$C$333+'1 Données d''entrée'!$C$334+1+$B1852,$D1848*('1 Données d''entrée'!$C$332*(1+'1 Données d''entrée'!$C$332)^'1 Données d''entrée'!$C$333)/((1+'1 Données d''entrée'!$C$332)^'1 Données d''entrée'!$C$333-1),0))","v":0},{"$f":"IF(N1742<'1 Données d''entrée'!$C$334+1+$B1852,0,IF(N1742<'1 Données d''entrée'!$C$333+'1 Données d''entrée'!$C$334+1+$B1852,$D1848*('1 Données d''entrée'!$C$332*(1+'1 Données d''entrée'!$C$332)^'1 Données d''entrée'!$C$333)/((1+'1 Données d''entrée'!$C$332)^'1 Données d''entrée'!$C$333-1),0))","v":0},{"$f":"IF(O1742<'1 Données d''entrée'!$C$334+1+$B1852,0,IF(O1742<'1 Données d''entrée'!$C$333+'1 Données d''entrée'!$C$334+1+$B1852,$D1848*('1 Données d''entrée'!$C$332*(1+'1 Données d''entrée'!$C$332)^'1 Données d''entrée'!$C$333)/((1+'1 Données d''entrée'!$C$332)^'1 Données d''entrée'!$C$333-1),0))","v":0},{"$f":"IF(P1742<'1 Données d''entrée'!$C$334+1+$B1852,0,IF(P1742<'1 Données d''entrée'!$C$333+'1 Données d''entrée'!$C$334+1+$B1852,$D1848*('1 Données d''entrée'!$C$332*(1+'1 Données d''entrée'!$C$332)^'1 Données d''entrée'!$C$333)/((1+'1 Données d''entrée'!$C$332)^'1 Données d''entrée'!$C$333-1),0))","v":0},{"$f":"IF(Q1742<'1 Données d''entrée'!$C$334+1+$B1852,0,IF(Q1742<'1 Données d''entrée'!$C$333+'1 Données d''entrée'!$C$334+1+$B1852,$D1848*('1 Données d''entrée'!$C$332*(1+'1 Données d''entrée'!$C$332)^'1 Données d''entrée'!$C$333)/((1+'1 Données d''entrée'!$C$332)^'1 Données d''entrée'!$C$333-1),0))","v":0},{"$f":"IF(R1742<'1 Données d''entrée'!$C$334+1+$B1852,0,IF(R1742<'1 Données d''entrée'!$C$333+'1 Données d''entrée'!$C$334+1+$B1852,$D1848*('1 Données d''entrée'!$C$332*(1+'1 Données d''entrée'!$C$332)^'1 Données d''entrée'!$C$333)/((1+'1 Données d''entrée'!$C$332)^'1 Données d''entrée'!$C$333-1),0))","v":0},{"$f":"IF(S1742<'1 Données d''entrée'!$C$334+1+$B1852,0,IF(S1742<'1 Données d''entrée'!$C$333+'1 Données d''entrée'!$C$334+1+$B1852,$D1848*('1 Données d''entrée'!$C$332*(1+'1 Données d''entrée'!$C$332)^'1 Données d''entrée'!$C$333)/((1+'1 Données d''entrée'!$C$332)^'1 Données d''entrée'!$C$333-1),0))","v":0},{"$f":"IF(T1742<'1 Données d''entrée'!$C$334+1+$B1852,0,IF(T1742<'1 Données d''entrée'!$C$333+'1 Données d''entrée'!$C$334+1+$B1852,$D1848*('1 Données d''entrée'!$C$332*(1+'1 Données d''entrée'!$C$332)^'1 Données d''entrée'!$C$333)/((1+'1 Données d''entrée'!$C$332)^'1 Données d''entrée'!$C$333-1),0))","v":0},{"$f":"IF(U1742<'1 Données d''entrée'!$C$334+1+$B1852,0,IF(U1742<'1 Données d''entrée'!$C$333+'1 Données d''entrée'!$C$334+1+$B1852,$D1848*('1 Données d''entrée'!$C$332*(1+'1 Données d''entrée'!$C$332)^'1 Données d''entrée'!$C$333)/((1+'1 Données d''entrée'!$C$332)^'1 Données d''entrée'!$C$333-1),0))","v":0},{"$f":"IF(V1742<'1 Données d''entrée'!$C$334+1+$B1852,0,IF(V1742<'1 Données d''entrée'!$C$333+'1 Données d''entrée'!$C$334+1+$B1852,$D1848*('1 Données d''entrée'!$C$332*(1+'1 Données d''entrée'!$C$332)^'1 Données d''entrée'!$C$333)/((1+'1 Données d''entrée'!$C$332)^'1 Données d''entrée'!$C$333-1),0))","v":0}]
[null,3,{"$f":"IF(C$54<'1 Données d''entrée'!$C$334+1+$B1853,0,IF(C$54<'1 Données d''entrée'!$C$333+'1 Données d''entrée'!$C$334+1+$B1853,$E$160*('1 Données d''entrée'!$C$332*(1+'1 Données d''entrée'!$C$332)^'1 Données d''entrée'!$C$333)/((1+'1 Données d''entrée'!$C$332)^'1 Données d''entrée'!$C$333-1),0))","v":0},{"$f":"IF(D1742<'1 Données d''entrée'!$C$334+1+$B1853,0,IF(D1742<'1 Données d''entrée'!$C$333+'1 Données d''entrée'!$C$334+1+$B1853,$E1848*('1 Données d''entrée'!$C$332*(1+'1 Données d''entrée'!$C$332)^'1 Données d''entrée'!$C$333)/((1+'1 Données d''entrée'!$C$332)^'1 Données d''entrée'!$C$333-1),0))","v":0},{"$f":"IF(E1742<'1 Données d''entrée'!$C$334+1+$B1853,0,IF(E1742<'1 Données d''entrée'!$C$333+'1 Données d''entrée'!$C$334+1+$B1853,$E1848*('1 Données d''entrée'!$C$332*(1+'1 Données d''entrée'!$C$332)^'1 Données d''entrée'!$C$333)/((1+'1 Données d''entrée'!$C$332)^'1 Données d''entrée'!$C$333-1),0))","v":0},{"$f":"IF(F1742<'1 Données d''entrée'!$C$334+1+$B1853,0,IF(F1742<'1 Données d''entrée'!$C$333+'1 Données d''entrée'!$C$334+1+$B1853,$E1848*('1 Données d''entrée'!$C$332*(1+'1 Données d''entrée'!$C$332)^'1 Données d''entrée'!$C$333)/((1+'1 Données d''entrée'!$C$332)^'1 Données d''entrée'!$C$333-1),0))","v":0},{"$f":"IF(G1742<'1 Données d''entrée'!$C$334+1+$B1853,0,IF(G1742<'1 Données d''entrée'!$C$333+'1 Données d''entrée'!$C$334+1+$B1853,$E1848*('1 Données d''entrée'!$C$332*(1+'1 Données d''entrée'!$C$332)^'1 Données d''entrée'!$C$333)/((1+'1 Données d''entrée'!$C$332)^'1 Données d''entrée'!$C$333-1),0))","v":0},{"$f":"IF(H1742<'1 Données d''entrée'!$C$334+1+$B1853,0,IF(H1742<'1 Données d''entrée'!$C$333+'1 Données d''entrée'!$C$334+1+$B1853,$E1848*('1 Données d''entrée'!$C$332*(1+'1 Données d''entrée'!$C$332)^'1 Données d''entrée'!$C$333)/((1+'1 Données d''entrée'!$C$332)^'1 Données d''entrée'!$C$333-1),0))","v":0},{"$f":"IF(I1742<'1 Données d''entrée'!$C$334+1+$B1853,0,IF(I1742<'1 Données d''entrée'!$C$333+'1 Données d''entrée'!$C$334+1+$B1853,$E1848*('1 Données d''entrée'!$C$332*(1+'1 Données d''entrée'!$C$332)^'1 Données d''entrée'!$C$333)/((1+'1 Données d''entrée'!$C$332)^'1 Données d''entrée'!$C$333-1),0))","v":0},{"$f":"IF(J1742<'1 Données d''entrée'!$C$334+1+$B1853,0,IF(J1742<'1 Données d''entrée'!$C$333+'1 Données d''entrée'!$C$334+1+$B1853,$E1848*('1 Données d''entrée'!$C$332*(1+'1 Données d''entrée'!$C$332)^'1 Données d''entrée'!$C$333)/((1+'1 Données d''entrée'!$C$332)^'1 Données d''entrée'!$C$333-1),0))","v":0},{"$f":"IF(K1742<'1 Données d''entrée'!$C$334+1+$B1853,0,IF(K1742<'1 Données d''entrée'!$C$333+'1 Données d''entrée'!$C$334+1+$B1853,$E1848*('1 Données d''entrée'!$C$332*(1+'1 Données d''entrée'!$C$332)^'1 Données d''entrée'!$C$333)/((1+'1 Données d''entrée'!$C$332)^'1 Données d''entrée'!$C$333-1),0))","v":0},{"$f":"IF(L1742<'1 Données d''entrée'!$C$334+1+$B1853,0,IF(L1742<'1 Données d''entrée'!$C$333+'1 Données d''entrée'!$C$334+1+$B1853,$E1848*('1 Données d''entrée'!$C$332*(1+'1 Données d''entrée'!$C$332)^'1 Données d''entrée'!$C$333)/((1+'1 Données d''entrée'!$C$332)^'1 Données d''entrée'!$C$333-1),0))","v":0},{"$f":"IF(M1742<'1 Données d''entrée'!$C$334+1+$B1853,0,IF(M1742<'1 Données d''entrée'!$C$333+'1 Données d''entrée'!$C$334+1+$B1853,$E1848*('1 Données d''entrée'!$C$332*(1+'1 Données d''entrée'!$C$332)^'1 Données d''entrée'!$C$333)/((1+'1 Données d''entrée'!$C$332)^'1 Données d''entrée'!$C$333-1),0))","v":0},{"$f":"IF(N1742<'1 Données d''entrée'!$C$334+1+$B1853,0,IF(N1742<'1 Données d''entrée'!$C$333+'1 Données d''entrée'!$C$334+1+$B1853,$E1848*('1 Données d''entrée'!$C$332*(1+'1 Données d''entrée'!$C$332)^'1 Données d''entrée'!$C$333)/((1+'1 Données d''entrée'!$C$332)^'1 Données d''entrée'!$C$333-1),0))","v":0},{"$f":"IF(O1742<'1 Données d''entrée'!$C$334+1+$B1853,0,IF(O1742<'1 Données d''entrée'!$C$333+'1 Données d''entrée'!$C$334+1+$B1853,$E1848*('1 Données d''entrée'!$C$332*(1+'1 Données d''entrée'!$C$332)^'1 Données d''entrée'!$C$333)/((1+'1 Données d''entrée'!$C$332)^'1 Données d''entrée'!$C$333-1),0))","v":0},{"$f":"IF(P1742<'1 Données d''entrée'!$C$334+1+$B1853,0,IF(P1742<'1 Données d''entrée'!$C$333+'1 Données d''entrée'!$C$334+1+$B1853,$E1848*('1 Données d''entrée'!$C$332*(1+'1 Données d''entrée'!$C$332)^'1 Données d''entrée'!$C$333)/((1+'1 Données d''entrée'!$C$332)^'1 Données d''entrée'!$C$333-1),0))","v":0},{"$f":"IF(Q1742<'1 Données d''entrée'!$C$334+1+$B1853,0,IF(Q1742<'1 Données d''entrée'!$C$333+'1 Données d''entrée'!$C$334+1+$B1853,$E1848*('1 Données d''entrée'!$C$332*(1+'1 Données d''entrée'!$C$332)^'1 Données d''entrée'!$C$333)/((1+'1 Données d''entrée'!$C$332)^'1 Données d''entrée'!$C$333-1),0))","v":0},{"$f":"IF(R1742<'1 Données d''entrée'!$C$334+1+$B1853,0,IF(R1742<'1 Données d''entrée'!$C$333+'1 Données d''entrée'!$C$334+1+$B1853,$E1848*('1 Données d''entrée'!$C$332*(1+'1 Données d''entrée'!$C$332)^'1 Données d''entrée'!$C$333)/((1+'1 Données d''entrée'!$C$332)^'1 Données d''entrée'!$C$333-1),0))","v":0},{"$f":"IF(S1742<'1 Données d''entrée'!$C$334+1+$B1853,0,IF(S1742<'1 Données d''entrée'!$C$333+'1 Données d''entrée'!$C$334+1+$B1853,$E1848*('1 Données d''entrée'!$C$332*(1+'1 Données d''entrée'!$C$332)^'1 Données d''entrée'!$C$333)/((1+'1 Données d''entrée'!$C$332)^'1 Données d''entrée'!$C$333-1),0))","v":0},{"$f":"IF(T1742<'1 Données d''entrée'!$C$334+1+$B1853,0,IF(T1742<'1 Données d''entrée'!$C$333+'1 Données d''entrée'!$C$334+1+$B1853,$E1848*('1 Données d''entrée'!$C$332*(1+'1 Données d''entrée'!$C$332)^'1 Données d''entrée'!$C$333)/((1+'1 Données d''entrée'!$C$332)^'1 Données d''entrée'!$C$333-1),0))","v":0},{"$f":"IF(U1742<'1 Données d''entrée'!$C$334+1+$B1853,0,IF(U1742<'1 Données d''entrée'!$C$333+'1 Données d''entrée'!$C$334+1+$B1853,$E1848*('1 Données d''entrée'!$C$332*(1+'1 Données d''entrée'!$C$332)^'1 Données d''entrée'!$C$333)/((1+'1 Données d''entrée'!$C$332)^'1 Données d''entrée'!$C$333-1),0))","v":0},{"$f":"IF(V1742<'1 Données d''entrée'!$C$334+1+$B1853,0,IF(V1742<'1 Données d''entrée'!$C$333+'1 Données d''entrée'!$C$334+1+$B1853,$E1848*('1 Données d''entrée'!$C$332*(1+'1 Données d''entrée'!$C$332)^'1 Données d''entrée'!$C$333)/((1+'1 Données d''entrée'!$C$332)^'1 Données d''entrée'!$C$333-1),0))","v":0}]
[null,4,{"$f":"IF(C$54<'1 Données d''entrée'!$C$334+1+$B1854,0,IF(C$54<'1 Données d''entrée'!$C$333+'1 Données d''entrée'!$C$334+1+$B1854,$F$160*('1 Données d''entrée'!$C$332*(1+'1 Données d''entrée'!$C$332)^'1 Données d''entrée'!$C$333)/((1+'1 Données d''entrée'!$C$332)^'1 Données d''entrée'!$C$333-1),0))","v":0},{"$f":"IF(D1742<'1 Données d''entrée'!$C$334+1+$B1854,0,IF(D1742<'1 Données d''entrée'!$C$333+'1 Données d''entrée'!$C$334+1+$B1854,$F1848*('1 Données d''entrée'!$C$332*(1+'1 Données d''entrée'!$C$332)^'1 Données d''entrée'!$C$333)/((1+'1 Données d''entrée'!$C$332)^'1 Données d''entrée'!$C$333-1),0))","v":0},{"$f":"IF(E1742<'1 Données d''entrée'!$C$334+1+$B1854,0,IF(E1742<'1 Données d''entrée'!$C$333+'1 Données d''entrée'!$C$334+1+$B1854,$F1848*('1 Données d''entrée'!$C$332*(1+'1 Données d''entrée'!$C$332)^'1 Données d''entrée'!$C$333)/((1+'1 Données d''entrée'!$C$332)^'1 Données d''entrée'!$C$333-1),0))","v":0},{"$f":"IF(F1742<'1 Données d''entrée'!$C$334+1+$B1854,0,IF(F1742<'1 Données d''entrée'!$C$333+'1 Données d''entrée'!$C$334+1+$B1854,$F1848*('1 Données d''entrée'!$C$332*(1+'1 Données d''entrée'!$C$332)^'1 Données d''entrée'!$C$333)/((1+'1 Données d''entrée'!$C$332)^'1 Données d''entrée'!$C$333-1),0))","v":0},{"$f":"IF(G1742<'1 Données d''entrée'!$C$334+1+$B1854,0,IF(G1742<'1 Données d''entrée'!$C$333+'1 Données d''entrée'!$C$334+1+$B1854,$F1848*('1 Données d''entrée'!$C$332*(1+'1 Données d''entrée'!$C$332)^'1 Données d''entrée'!$C$333)/((1+'1 Données d''entrée'!$C$332)^'1 Données d''entrée'!$C$333-1),0))","v":0},{"$f":"IF(H1742<'1 Données d''entrée'!$C$334+1+$B1854,0,IF(H1742<'1 Données d''entrée'!$C$333+'1 Données d''entrée'!$C$334+1+$B1854,$F1848*('1 Données d''entrée'!$C$332*(1+'1 Données d''entrée'!$C$332)^'1 Données d''entrée'!$C$333)/((1+'1 Données d''entrée'!$C$332)^'1 Données d''entrée'!$C$333-1),0))","v":0},{"$f":"IF(I1742<'1 Données d''entrée'!$C$334+1+$B1854,0,IF(I1742<'1 Données d''entrée'!$C$333+'1 Données d''entrée'!$C$334+1+$B1854,$F1848*('1 Données d''entrée'!$C$332*(1+'1 Données d''entrée'!$C$332)^'1 Données d''entrée'!$C$333)/((1+'1 Données d''entrée'!$C$332)^'1 Données d''entrée'!$C$333-1),0))","v":0},{"$f":"IF(J1742<'1 Données d''entrée'!$C$334+1+$B1854,0,IF(J1742<'1 Données d''entrée'!$C$333+'1 Données d''entrée'!$C$334+1+$B1854,$F1848*('1 Données d''entrée'!$C$332*(1+'1 Données d''entrée'!$C$332)^'1 Données d''entrée'!$C$333)/((1+'1 Données d''entrée'!$C$332)^'1 Données d''entrée'!$C$333-1),0))","v":0},{"$f":"IF(K1742<'1 Données d''entrée'!$C$334+1+$B1854,0,IF(K1742<'1 Données d''entrée'!$C$333+'1 Données d''entrée'!$C$334+1+$B1854,$F1848*('1 Données d''entrée'!$C$332*(1+'1 Données d''entrée'!$C$332)^'1 Données d''entrée'!$C$333)/((1+'1 Données d''entrée'!$C$332)^'1 Données d''entrée'!$C$333-1),0))","v":0},{"$f":"IF(L1742<'1 Données d''entrée'!$C$334+1+$B1854,0,IF(L1742<'1 Données d''entrée'!$C$333+'1 Données d''entrée'!$C$334+1+$B1854,$F1848*('1 Données d''entrée'!$C$332*(1+'1 Données d''entrée'!$C$332)^'1 Données d''entrée'!$C$333)/((1+'1 Données d''entrée'!$C$332)^'1 Données d''entrée'!$C$333-1),0))","v":0},{"$f":"IF(M1742<'1 Données d''entrée'!$C$334+1+$B1854,0,IF(M1742<'1 Données d''entrée'!$C$333+'1 Données d''entrée'!$C$334+1+$B1854,$F1848*('1 Données d''entrée'!$C$332*(1+'1 Données d''entrée'!$C$332)^'1 Données d''entrée'!$C$333)/((1+'1 Données d''entrée'!$C$332)^'1 Données d''entrée'!$C$333-1),0))","v":0},{"$f":"IF(N1742<'1 Données d''entrée'!$C$334+1+$B1854,0,IF(N1742<'1 Données d''entrée'!$C$333+'1 Données d''entrée'!$C$334+1+$B1854,$F1848*('1 Données d''entrée'!$C$332*(1+'1 Données d''entrée'!$C$332)^'1 Données d''entrée'!$C$333)/((1+'1 Données d''entrée'!$C$332)^'1 Données d''entrée'!$C$333-1),0))","v":0},{"$f":"IF(O1742<'1 Données d''entrée'!$C$334+1+$B1854,0,IF(O1742<'1 Données d''entrée'!$C$333+'1 Données d''entrée'!$C$334+1+$B1854,$F1848*('1 Données d''entrée'!$C$332*(1+'1 Données d''entrée'!$C$332)^'1 Données d''entrée'!$C$333)/((1+'1 Données d''entrée'!$C$332)^'1 Données d''entrée'!$C$333-1),0))","v":0},{"$f":"IF(P1742<'1 Données d''entrée'!$C$334+1+$B1854,0,IF(P1742<'1 Données d''entrée'!$C$333+'1 Données d''entrée'!$C$334+1+$B1854,$F1848*('1 Données d''entrée'!$C$332*(1+'1 Données d''entrée'!$C$332)^'1 Données d''entrée'!$C$333)/((1+'1 Données d''entrée'!$C$332)^'1 Données d''entrée'!$C$333-1),0))","v":0},{"$f":"IF(Q1742<'1 Données d''entrée'!$C$334+1+$B1854,0,IF(Q1742<'1 Données d''entrée'!$C$333+'1 Données d''entrée'!$C$334+1+$B1854,$F1848*('1 Données d''entrée'!$C$332*(1+'1 Données d''entrée'!$C$332)^'1 Données d''entrée'!$C$333)/((1+'1 Données d''entrée'!$C$332)^'1 Données d''entrée'!$C$333-1),0))","v":0},{"$f":"IF(R1742<'1 Données d''entrée'!$C$334+1+$B1854,0,IF(R1742<'1 Données d''entrée'!$C$333+'1 Données d''entrée'!$C$334+1+$B1854,$F1848*('1 Données d''entrée'!$C$332*(1+'1 Données d''entrée'!$C$332)^'1 Données d''entrée'!$C$333)/((1+'1 Données d''entrée'!$C$332)^'1 Données d''entrée'!$C$333-1),0))","v":0},{"$f":"IF(S1742<'1 Données d''entrée'!$C$334+1+$B1854,0,IF(S1742<'1 Données d''entrée'!$C$333+'1 Données d''entrée'!$C$334+1+$B1854,$F1848*('1 Données d''entrée'!$C$332*(1+'1 Données d''entrée'!$C$332)^'1 Données d''entrée'!$C$333)/((1+'1 Données d''entrée'!$C$332)^'1 Données d''entrée'!$C$333-1),0))","v":0},{"$f":"IF(T1742<'1 Données d''entrée'!$C$334+1+$B1854,0,IF(T1742<'1 Données d''entrée'!$C$333+'1 Données d''entrée'!$C$334+1+$B1854,$F1848*('1 Données d''entrée'!$C$332*(1+'1 Données d''entrée'!$C$332)^'1 Données d''entrée'!$C$333)/((1+'1 Données d''entrée'!$C$332)^'1 Données d''entrée'!$C$333-1),0))","v":0},{"$f":"IF(U1742<'1 Données d''entrée'!$C$334+1+$B1854,0,IF(U1742<'1 Données d''entrée'!$C$333+'1 Données d''entrée'!$C$334+1+$B1854,$F1848*('1 Données d''entrée'!$C$332*(1+'1 Données d''entrée'!$C$332)^'1 Données d''entrée'!$C$333)/((1+'1 Données d''entrée'!$C$332)^'1 Données d''entrée'!$C$333-1),0))","v":0},{"$f":"IF(V1742<'1 Données d''entrée'!$C$334+1+$B1854,0,IF(V1742<'1 Données d''entrée'!$C$333+'1 Données d''entrée'!$C$334+1+$B1854,$F1848*('1 Données d''entrée'!$C$332*(1+'1 Données d''entrée'!$C$332)^'1 Données d''entrée'!$C$333)/((1+'1 Données d''entrée'!$C$332)^'1 Données d''entrée'!$C$333-1),0))","v":0}]
[null,5,{"$f":"IF(C$54<'1 Données d''entrée'!$C$334+1+$B1855,0,IF(C$54<'1 Données d''entrée'!$C$333+'1 Données d''entrée'!$C$334+1+$B1855,$G$160*('1 Données d''entrée'!$C$332*(1+'1 Données d''entrée'!$C$332)^'1 Données d''entrée'!$C$333)/((1+'1 Données d''entrée'!$C$332)^'1 Données d''entrée'!$C$333-1),0))","v":0},{"$f":"IF(D1742<'1 Données d''entrée'!$C$334+1+$B1855,0,IF(D1742<'1 Données d''entrée'!$C$333+'1 Données d''entrée'!$C$334+1+$B1855,$G1848*('1 Données d''entrée'!$C$332*(1+'1 Données d''entrée'!$C$332)^'1 Données d''entrée'!$C$333)/((1+'1 Données d''entrée'!$C$332)^'1 Données d''entrée'!$C$333-1),0))","v":0},{"$f":"IF(E1742<'1 Données d''entrée'!$C$334+1+$B1855,0,IF(E1742<'1 Données d''entrée'!$C$333+'1 Données d''entrée'!$C$334+1+$B1855,$G1848*('1 Données d''entrée'!$C$332*(1+'1 Données d''entrée'!$C$332)^'1 Données d''entrée'!$C$333)/((1+'1 Données d''entrée'!$C$332)^'1 Données d''entrée'!$C$333-1),0))","v":0},{"$f":"IF(F1742<'1 Données d''entrée'!$C$334+1+$B1855,0,IF(F1742<'1 Données d''entrée'!$C$333+'1 Données d''entrée'!$C$334+1+$B1855,$G1848*('1 Données d''entrée'!$C$332*(1+'1 Données d''entrée'!$C$332)^'1 Données d''entrée'!$C$333)/((1+'1 Données d''entrée'!$C$332)^'1 Données d''entrée'!$C$333-1),0))","v":0},{"$f":"IF(G1742<'1 Données d''entrée'!$C$334+1+$B1855,0,IF(G1742<'1 Données d''entrée'!$C$333+'1 Données d''entrée'!$C$334+1+$B1855,$G1848*('1 Données d''entrée'!$C$332*(1+'1 Données d''entrée'!$C$332)^'1 Données d''entrée'!$C$333)/((1+'1 Données d''entrée'!$C$332)^'1 Données d''entrée'!$C$333-1),0))","v":0},{"$f":"IF(H1742<'1 Données d''entrée'!$C$334+1+$B1855,0,IF(H1742<'1 Données d''entrée'!$C$333+'1 Données d''entrée'!$C$334+1+$B1855,$G1848*('1 Données d''entrée'!$C$332*(1+'1 Données d''entrée'!$C$332)^'1 Données d''entrée'!$C$333)/((1+'1 Données d''entrée'!$C$332)^'1 Données d''entrée'!$C$333-1),0))","v":0},{"$f":"IF(I1742<'1 Données d''entrée'!$C$334+1+$B1855,0,IF(I1742<'1 Données d''entrée'!$C$333+'1 Données d''entrée'!$C$334+1+$B1855,$G1848*('1 Données d''entrée'!$C$332*(1+'1 Données d''entrée'!$C$332)^'1 Données d''entrée'!$C$333)/((1+'1 Données d''entrée'!$C$332)^'1 Données d''entrée'!$C$333-1),0))","v":0},{"$f":"IF(J1742<'1 Données d''entrée'!$C$334+1+$B1855,0,IF(J1742<'1 Données d''entrée'!$C$333+'1 Données d''entrée'!$C$334+1+$B1855,$G1848*('1 Données d''entrée'!$C$332*(1+'1 Données d''entrée'!$C$332)^'1 Données d''entrée'!$C$333)/((1+'1 Données d''entrée'!$C$332)^'1 Données d''entrée'!$C$333-1),0))","v":0},{"$f":"IF(K1742<'1 Données d''entrée'!$C$334+1+$B1855,0,IF(K1742<'1 Données d''entrée'!$C$333+'1 Données d''entrée'!$C$334+1+$B1855,$G1848*('1 Données d''entrée'!$C$332*(1+'1 Données d''entrée'!$C$332)^'1 Données d''entrée'!$C$333)/((1+'1 Données d''entrée'!$C$332)^'1 Données d''entrée'!$C$333-1),0))","v":0},{"$f":"IF(L1742<'1 Données d''entrée'!$C$334+1+$B1855,0,IF(L1742<'1 Données d''entrée'!$C$333+'1 Données d''entrée'!$C$334+1+$B1855,$G1848*('1 Données d''entrée'!$C$332*(1+'1 Données d''entrée'!$C$332)^'1 Données d''entrée'!$C$333)/((1+'1 Données d''entrée'!$C$332)^'1 Données d''entrée'!$C$333-1),0))","v":0},{"$f":"IF(M1742<'1 Données d''entrée'!$C$334+1+$B1855,0,IF(M1742<'1 Données d''entrée'!$C$333+'1 Données d''entrée'!$C$334+1+$B1855,$G1848*('1 Données d''entrée'!$C$332*(1+'1 Données d''entrée'!$C$332)^'1 Données d''entrée'!$C$333)/((1+'1 Données d''entrée'!$C$332)^'1 Données d''entrée'!$C$333-1),0))","v":0},{"$f":"IF(N1742<'1 Données d''entrée'!$C$334+1+$B1855,0,IF(N1742<'1 Données d''entrée'!$C$333+'1 Données d''entrée'!$C$334+1+$B1855,$G1848*('1 Données d''entrée'!$C$332*(1+'1 Données d''entrée'!$C$332)^'1 Données d''entrée'!$C$333)/((1+'1 Données d''entrée'!$C$332)^'1 Données d''entrée'!$C$333-1),0))","v":0},{"$f":"IF(O1742<'1 Données d''entrée'!$C$334+1+$B1855,0,IF(O1742<'1 Données d''entrée'!$C$333+'1 Données d''entrée'!$C$334+1+$B1855,$G1848*('1 Données d''entrée'!$C$332*(1+'1 Données d''entrée'!$C$332)^'1 Données d''entrée'!$C$333)/((1+'1 Données d''entrée'!$C$332)^'1 Données d''entrée'!$C$333-1),0))","v":0},{"$f":"IF(P1742<'1 Données d''entrée'!$C$334+1+$B1855,0,IF(P1742<'1 Données d''entrée'!$C$333+'1 Données d''entrée'!$C$334+1+$B1855,$G1848*('1 Données d''entrée'!$C$332*(1+'1 Données d''entrée'!$C$332)^'1 Données d''entrée'!$C$333)/((1+'1 Données d''entrée'!$C$332)^'1 Données d''entrée'!$C$333-1),0))","v":0},{"$f":"IF(Q1742<'1 Données d''entrée'!$C$334+1+$B1855,0,IF(Q1742<'1 Données d''entrée'!$C$333+'1 Données d''entrée'!$C$334+1+$B1855,$G1848*('1 Données d''entrée'!$C$332*(1+'1 Données d''entrée'!$C$332)^'1 Données d''entrée'!$C$333)/((1+'1 Données d''entrée'!$C$332)^'1 Données d''entrée'!$C$333-1),0))","v":0},{"$f":"IF(R1742<'1 Données d''entrée'!$C$334+1+$B1855,0,IF(R1742<'1 Données d''entrée'!$C$333+'1 Données d''entrée'!$C$334+1+$B1855,$G1848*('1 Données d''entrée'!$C$332*(1+'1 Données d''entrée'!$C$332)^'1 Données d''entrée'!$C$333)/((1+'1 Données d''entrée'!$C$332)^'1 Données d''entrée'!$C$333-1),0))","v":0},{"$f":"IF(S1742<'1 Données d''entrée'!$C$334+1+$B1855,0,IF(S1742<'1 Données d''entrée'!$C$333+'1 Données d''entrée'!$C$334+1+$B1855,$G1848*('1 Données d''entrée'!$C$332*(1+'1 Données d''entrée'!$C$332)^'1 Données d''entrée'!$C$333)/((1+'1 Données d''entrée'!$C$332)^'1 Données d''entrée'!$C$333-1),0))","v":0},{"$f":"IF(T1742<'1 Données d''entrée'!$C$334+1+$B1855,0,IF(T1742<'1 Données d''entrée'!$C$333+'1 Données d''entrée'!$C$334+1+$B1855,$G1848*('1 Données d''entrée'!$C$332*(1+'1 Données d''entrée'!$C$332)^'1 Données d''entrée'!$C$333)/((1+'1 Données d''entrée'!$C$332)^'1 Données d''entrée'!$C$333-1),0))","v":0},{"$f":"IF(U1742<'1 Données d''entrée'!$C$334+1+$B1855,0,IF(U1742<'1 Données d''entrée'!$C$333+'1 Données d''entrée'!$C$334+1+$B1855,$G1848*('1 Données d''entrée'!$C$332*(1+'1 Données d''entrée'!$C$332)^'1 Données d''entrée'!$C$333)/((1+'1 Données d''entrée'!$C$332)^'1 Données d''entrée'!$C$333-1),0))","v":0},{"$f":"IF(V1742<'1 Données d''entrée'!$C$334+1+$B1855,0,IF(V1742<'1 Données d''entrée'!$C$333+'1 Données d''entrée'!$C$334+1+$B1855,$G1848*('1 Données d''entrée'!$C$332*(1+'1 Données d''entrée'!$C$332)^'1 Données d''entrée'!$C$333)/((1+'1 Données d''entrée'!$C$332)^'1 Données d''entrée'!$C$333-1),0))","v":0}]
[null,6,{"$f":"IF(C$54<'1 Données d''entrée'!$C$334+1+$B1856,0,IF(C$54<'1 Données d''entrée'!$C$333+'1 Données d''entrée'!$C$334+1+$B1856,$H$160*('1 Données d''entrée'!$C$332*(1+'1 Données d''entrée'!$C$332)^'1 Données d''entrée'!$C$333)/((1+'1 Données d''entrée'!$C$332)^'1 Données d''entrée'!$C$333-1),0))","v":0},{"$f":"IF(D1742<'1 Données d''entrée'!$C$334+1+$B1856,0,IF(D1742<'1 Données d''entrée'!$C$333+'1 Données d''entrée'!$C$334+1+$B1856,$H1848*('1 Données d''entrée'!$C$332*(1+'1 Données d''entrée'!$C$332)^'1 Données d''entrée'!$C$333)/((1+'1 Données d''entrée'!$C$332)^'1 Données d''entrée'!$C$333-1),0))","v":0},{"$f":"IF(E1742<'1 Données d''entrée'!$C$334+1+$B1856,0,IF(E1742<'1 Données d''entrée'!$C$333+'1 Données d''entrée'!$C$334+1+$B1856,$H1848*('1 Données d''entrée'!$C$332*(1+'1 Données d''entrée'!$C$332)^'1 Données d''entrée'!$C$333)/((1+'1 Données d''entrée'!$C$332)^'1 Données d''entrée'!$C$333-1),0))","v":0},{"$f":"IF(F1742<'1 Données d''entrée'!$C$334+1+$B1856,0,IF(F1742<'1 Données d''entrée'!$C$333+'1 Données d''entrée'!$C$334+1+$B1856,$H1848*('1 Données d''entrée'!$C$332*(1+'1 Données d''entrée'!$C$332)^'1 Données d''entrée'!$C$333)/((1+'1 Données d''entrée'!$C$332)^'1 Données d''entrée'!$C$333-1),0))","v":0},{"$f":"IF(G1742<'1 Données d''entrée'!$C$334+1+$B1856,0,IF(G1742<'1 Données d''entrée'!$C$333+'1 Données d''entrée'!$C$334+1+$B1856,$H1848*('1 Données d''entrée'!$C$332*(1+'1 Données d''entrée'!$C$332)^'1 Données d''entrée'!$C$333)/((1+'1 Données d''entrée'!$C$332)^'1 Données d''entrée'!$C$333-1),0))","v":0},{"$f":"IF(H1742<'1 Données d''entrée'!$C$334+1+$B1856,0,IF(H1742<'1 Données d''entrée'!$C$333+'1 Données d''entrée'!$C$334+1+$B1856,$H1848*('1 Données d''entrée'!$C$332*(1+'1 Données d''entrée'!$C$332)^'1 Données d''entrée'!$C$333)/((1+'1 Données d''entrée'!$C$332)^'1 Données d''entrée'!$C$333-1),0))","v":0},{"$f":"IF(I1742<'1 Données d''entrée'!$C$334+1+$B1856,0,IF(I1742<'1 Données d''entrée'!$C$333+'1 Données d''entrée'!$C$334+1+$B1856,$H1848*('1 Données d''entrée'!$C$332*(1+'1 Données d''entrée'!$C$332)^'1 Données d''entrée'!$C$333)/((1+'1 Données d''entrée'!$C$332)^'1 Données d''entrée'!$C$333-1),0))","v":0},{"$f":"IF(J1742<'1 Données d''entrée'!$C$334+1+$B1856,0,IF(J1742<'1 Données d''entrée'!$C$333+'1 Données d''entrée'!$C$334+1+$B1856,$H1848*('1 Données d''entrée'!$C$332*(1+'1 Données d''entrée'!$C$332)^'1 Données d''entrée'!$C$333)/((1+'1 Données d''entrée'!$C$332)^'1 Données d''entrée'!$C$333-1),0))","v":0},{"$f":"IF(K1742<'1 Données d''entrée'!$C$334+1+$B1856,0,IF(K1742<'1 Données d''entrée'!$C$333+'1 Données d''entrée'!$C$334+1+$B1856,$H1848*('1 Données d''entrée'!$C$332*(1+'1 Données d''entrée'!$C$332)^'1 Données d''entrée'!$C$333)/((1+'1 Données d''entrée'!$C$332)^'1 Données d''entrée'!$C$333-1),0))","v":0},{"$f":"IF(L1742<'1 Données d''entrée'!$C$334+1+$B1856,0,IF(L1742<'1 Données d''entrée'!$C$333+'1 Données d''entrée'!$C$334+1+$B1856,$H1848*('1 Données d''entrée'!$C$332*(1+'1 Données d''entrée'!$C$332)^'1 Données d''entrée'!$C$333)/((1+'1 Données d''entrée'!$C$332)^'1 Données d''entrée'!$C$333-1),0))","v":0},{"$f":"IF(M1742<'1 Données d''entrée'!$C$334+1+$B1856,0,IF(M1742<'1 Données d''entrée'!$C$333+'1 Données d''entrée'!$C$334+1+$B1856,$H1848*('1 Données d''entrée'!$C$332*(1+'1 Données d''entrée'!$C$332)^'1 Données d''entrée'!$C$333)/((1+'1 Données d''entrée'!$C$332)^'1 Données d''entrée'!$C$333-1),0))","v":0},{"$f":"IF(N1742<'1 Données d''entrée'!$C$334+1+$B1856,0,IF(N1742<'1 Données d''entrée'!$C$333+'1 Données d''entrée'!$C$334+1+$B1856,$H1848*('1 Données d''entrée'!$C$332*(1+'1 Données d''entrée'!$C$332)^'1 Données d''entrée'!$C$333)/((1+'1 Données d''entrée'!$C$332)^'1 Données d''entrée'!$C$333-1),0))","v":0},{"$f":"IF(O1742<'1 Données d''entrée'!$C$334+1+$B1856,0,IF(O1742<'1 Données d''entrée'!$C$333+'1 Données d''entrée'!$C$334+1+$B1856,$H1848*('1 Données d''entrée'!$C$332*(1+'1 Données d''entrée'!$C$332)^'1 Données d''entrée'!$C$333)/((1+'1 Données d''entrée'!$C$332)^'1 Données d''entrée'!$C$333-1),0))","v":0},{"$f":"IF(P1742<'1 Données d''entrée'!$C$334+1+$B1856,0,IF(P1742<'1 Données d''entrée'!$C$333+'1 Données d''entrée'!$C$334+1+$B1856,$H1848*('1 Données d''entrée'!$C$332*(1+'1 Données d''entrée'!$C$332)^'1 Données d''entrée'!$C$333)/((1+'1 Données d''entrée'!$C$332)^'1 Données d''entrée'!$C$333-1),0))","v":0},{"$f":"IF(Q1742<'1 Données d''entrée'!$C$334+1+$B1856,0,IF(Q1742<'1 Données d''entrée'!$C$333+'1 Données d''entrée'!$C$334+1+$B1856,$H1848*('1 Données d''entrée'!$C$332*(1+'1 Données d''entrée'!$C$332)^'1 Données d''entrée'!$C$333)/((1+'1 Données d''entrée'!$C$332)^'1 Données d''entrée'!$C$333-1),0))","v":0},{"$f":"IF(R1742<'1 Données d''entrée'!$C$334+1+$B1856,0,IF(R1742<'1 Données d''entrée'!$C$333+'1 Données d''entrée'!$C$334+1+$B1856,$H1848*('1 Données d''entrée'!$C$332*(1+'1 Données d''entrée'!$C$332)^'1 Données d''entrée'!$C$333)/((1+'1 Données d''entrée'!$C$332)^'1 Données d''entrée'!$C$333-1),0))","v":0},{"$f":"IF(S1742<'1 Données d''entrée'!$C$334+1+$B1856,0,IF(S1742<'1 Données d''entrée'!$C$333+'1 Données d''entrée'!$C$334+1+$B1856,$H1848*('1 Données d''entrée'!$C$332*(1+'1 Données d''entrée'!$C$332)^'1 Données d''entrée'!$C$333)/((1+'1 Données d''entrée'!$C$332)^'1 Données d''entrée'!$C$333-1),0))","v":0},{"$f":"IF(T1742<'1 Données d''entrée'!$C$334+1+$B1856,0,IF(T1742<'1 Données d''entrée'!$C$333+'1 Données d''entrée'!$C$334+1+$B1856,$H1848*('1 Données d''entrée'!$C$332*(1+'1 Données d''entrée'!$C$332)^'1 Données d''entrée'!$C$333)/((1+'1 Données d''entrée'!$C$332)^'1 Données d''entrée'!$C$333-1),0))","v":0},{"$f":"IF(U1742<'1 Données d''entrée'!$C$334+1+$B1856,0,IF(U1742<'1 Données d''entrée'!$C$333+'1 Données d''entrée'!$C$334+1+$B1856,$H1848*('1 Données d''entrée'!$C$332*(1+'1 Données d''entrée'!$C$332)^'1 Données d''entrée'!$C$333)/((1+'1 Données d''entrée'!$C$332)^'1 Données d''entrée'!$C$333-1),0))","v":0},{"$f":"IF(V1742<'1 Données d''entrée'!$C$334+1+$B1856,0,IF(V1742<'1 Données d''entrée'!$C$333+'1 Données d''entrée'!$C$334+1+$B1856,$H1848*('1 Données d''entrée'!$C$332*(1+'1 Données d''entrée'!$C$332)^'1 Données d''entrée'!$C$333)/((1+'1 Données d''entrée'!$C$332)^'1 Données d''entrée'!$C$333-1),0))","v":0}]
[null,7,{"$f":"IF(C$54<'1 Données d''entrée'!$C$334+1+$B1857,0,IF(C$54<'1 Données d''entrée'!$C$333+'1 Données d''entrée'!$C$334+1+$B1857,$I$160*('1 Données d''entrée'!$C$332*(1+'1 Données d''entrée'!$C$332)^'1 Données d''entrée'!$C$333)/((1+'1 Données d''entrée'!$C$332)^'1 Données d''entrée'!$C$333-1),0))","v":0},{"$f":"IF(D1742<'1 Données d''entrée'!$C$334+1+$B1857,0,IF(D1742<'1 Données d''entrée'!$C$333+'1 Données d''entrée'!$C$334+1+$B1857,$I1848*('1 Données d''entrée'!$C$332*(1+'1 Données d''entrée'!$C$332)^'1 Données d''entrée'!$C$333)/((1+'1 Données d''entrée'!$C$332)^'1 Données d''entrée'!$C$333-1),0))","v":0},{"$f":"IF(E1742<'1 Données d''entrée'!$C$334+1+$B1857,0,IF(E1742<'1 Données d''entrée'!$C$333+'1 Données d''entrée'!$C$334+1+$B1857,$I1848*('1 Données d''entrée'!$C$332*(1+'1 Données d''entrée'!$C$332)^'1 Données d''entrée'!$C$333)/((1+'1 Données d''entrée'!$C$332)^'1 Données d''entrée'!$C$333-1),0))","v":0},{"$f":"IF(F1742<'1 Données d''entrée'!$C$334+1+$B1857,0,IF(F1742<'1 Données d''entrée'!$C$333+'1 Données d''entrée'!$C$334+1+$B1857,$I1848*('1 Données d''entrée'!$C$332*(1+'1 Données d''entrée'!$C$332)^'1 Données d''entrée'!$C$333)/((1+'1 Données d''entrée'!$C$332)^'1 Données d''entrée'!$C$333-1),0))","v":0},{"$f":"IF(G1742<'1 Données d''entrée'!$C$334+1+$B1857,0,IF(G1742<'1 Données d''entrée'!$C$333+'1 Données d''entrée'!$C$334+1+$B1857,$I1848*('1 Données d''entrée'!$C$332*(1+'1 Données d''entrée'!$C$332)^'1 Données d''entrée'!$C$333)/((1+'1 Données d''entrée'!$C$332)^'1 Données d''entrée'!$C$333-1),0))","v":0},{"$f":"IF(H1742<'1 Données d''entrée'!$C$334+1+$B1857,0,IF(H1742<'1 Données d''entrée'!$C$333+'1 Données d''entrée'!$C$334+1+$B1857,$I1848*('1 Données d''entrée'!$C$332*(1+'1 Données d''entrée'!$C$332)^'1 Données d''entrée'!$C$333)/((1+'1 Données d''entrée'!$C$332)^'1 Données d''entrée'!$C$333-1),0))","v":0},{"$f":"IF(I1742<'1 Données d''entrée'!$C$334+1+$B1857,0,IF(I1742<'1 Données d''entrée'!$C$333+'1 Données d''entrée'!$C$334+1+$B1857,$I1848*('1 Données d''entrée'!$C$332*(1+'1 Données d''entrée'!$C$332)^'1 Données d''entrée'!$C$333)/((1+'1 Données d''entrée'!$C$332)^'1 Données d''entrée'!$C$333-1),0))","v":0},{"$f":"IF(J1742<'1 Données d''entrée'!$C$334+1+$B1857,0,IF(J1742<'1 Données d''entrée'!$C$333+'1 Données d''entrée'!$C$334+1+$B1857,$I1848*('1 Données d''entrée'!$C$332*(1+'1 Données d''entrée'!$C$332)^'1 Données d''entrée'!$C$333)/((1+'1 Données d''entrée'!$C$332)^'1 Données d''entrée'!$C$333-1),0))","v":0},{"$f":"IF(K1742<'1 Données d''entrée'!$C$334+1+$B1857,0,IF(K1742<'1 Données d''entrée'!$C$333+'1 Données d''entrée'!$C$334+1+$B1857,$I1848*('1 Données d''entrée'!$C$332*(1+'1 Données d''entrée'!$C$332)^'1 Données d''entrée'!$C$333)/((1+'1 Données d''entrée'!$C$332)^'1 Données d''entrée'!$C$333-1),0))","v":0},{"$f":"IF(L1742<'1 Données d''entrée'!$C$334+1+$B1857,0,IF(L1742<'1 Données d''entrée'!$C$333+'1 Données d''entrée'!$C$334+1+$B1857,$I1848*('1 Données d''entrée'!$C$332*(1+'1 Données d''entrée'!$C$332)^'1 Données d''entrée'!$C$333)/((1+'1 Données d''entrée'!$C$332)^'1 Données d''entrée'!$C$333-1),0))","v":0},{"$f":"IF(M1742<'1 Données d''entrée'!$C$334+1+$B1857,0,IF(M1742<'1 Données d''entrée'!$C$333+'1 Données d''entrée'!$C$334+1+$B1857,$I1848*('1 Données d''entrée'!$C$332*(1+'1 Données d''entrée'!$C$332)^'1 Données d''entrée'!$C$333)/((1+'1 Données d''entrée'!$C$332)^'1 Données d''entrée'!$C$333-1),0))","v":0},{"$f":"IF(N1742<'1 Données d''entrée'!$C$334+1+$B1857,0,IF(N1742<'1 Données d''entrée'!$C$333+'1 Données d''entrée'!$C$334+1+$B1857,$I1848*('1 Données d''entrée'!$C$332*(1+'1 Données d''entrée'!$C$332)^'1 Données d''entrée'!$C$333)/((1+'1 Données d''entrée'!$C$332)^'1 Données d''entrée'!$C$333-1),0))","v":0},{"$f":"IF(O1742<'1 Données d''entrée'!$C$334+1+$B1857,0,IF(O1742<'1 Données d''entrée'!$C$333+'1 Données d''entrée'!$C$334+1+$B1857,$I1848*('1 Données d''entrée'!$C$332*(1+'1 Données d''entrée'!$C$332)^'1 Données d''entrée'!$C$333)/((1+'1 Données d''entrée'!$C$332)^'1 Données d''entrée'!$C$333-1),0))","v":0},{"$f":"IF(P1742<'1 Données d''entrée'!$C$334+1+$B1857,0,IF(P1742<'1 Données d''entrée'!$C$333+'1 Données d''entrée'!$C$334+1+$B1857,$I1848*('1 Données d''entrée'!$C$332*(1+'1 Données d''entrée'!$C$332)^'1 Données d''entrée'!$C$333)/((1+'1 Données d''entrée'!$C$332)^'1 Données d''entrée'!$C$333-1),0))","v":0},{"$f":"IF(Q1742<'1 Données d''entrée'!$C$334+1+$B1857,0,IF(Q1742<'1 Données d''entrée'!$C$333+'1 Données d''entrée'!$C$334+1+$B1857,$I1848*('1 Données d''entrée'!$C$332*(1+'1 Données d''entrée'!$C$332)^'1 Données d''entrée'!$C$333)/((1+'1 Données d''entrée'!$C$332)^'1 Données d''entrée'!$C$333-1),0))","v":0},{"$f":"IF(R1742<'1 Données d''entrée'!$C$334+1+$B1857,0,IF(R1742<'1 Données d''entrée'!$C$333+'1 Données d''entrée'!$C$334+1+$B1857,$I1848*('1 Données d''entrée'!$C$332*(1+'1 Données d''entrée'!$C$332)^'1 Données d''entrée'!$C$333)/((1+'1 Données d''entrée'!$C$332)^'1 Données d''entrée'!$C$333-1),0))","v":0},{"$f":"IF(S1742<'1 Données d''entrée'!$C$334+1+$B1857,0,IF(S1742<'1 Données d''entrée'!$C$333+'1 Données d''entrée'!$C$334+1+$B1857,$I1848*('1 Données d''entrée'!$C$332*(1+'1 Données d''entrée'!$C$332)^'1 Données d''entrée'!$C$333)/((1+'1 Données d''entrée'!$C$332)^'1 Données d''entrée'!$C$333-1),0))","v":0},{"$f":"IF(T1742<'1 Données d''entrée'!$C$334+1+$B1857,0,IF(T1742<'1 Données d''entrée'!$C$333+'1 Données d''entrée'!$C$334+1+$B1857,$I1848*('1 Données d''entrée'!$C$332*(1+'1 Données d''entrée'!$C$332)^'1 Données d''entrée'!$C$333)/((1+'1 Données d''entrée'!$C$332)^'1 Données d''entrée'!$C$333-1),0))","v":0},{"$f":"IF(U1742<'1 Données d''entrée'!$C$334+1+$B1857,0,IF(U1742<'1 Données d''entrée'!$C$333+'1 Données d''entrée'!$C$334+1+$B1857,$I1848*('1 Données d''entrée'!$C$332*(1+'1 Données d''entrée'!$C$332)^'1 Données d''entrée'!$C$333)/((1+'1 Données d''entrée'!$C$332)^'1 Données d''entrée'!$C$333-1),0))","v":0},{"$f":"IF(V1742<'1 Données d''entrée'!$C$334+1+$B1857,0,IF(V1742<'1 Données d''entrée'!$C$333+'1 Données d''entrée'!$C$334+1+$B1857,$I1848*('1 Données d''entrée'!$C$332*(1+'1 Données d''entrée'!$C$332)^'1 Données d''entrée'!$C$333)/((1+'1 Données d''entrée'!$C$332)^'1 Données d''entrée'!$C$333-1),0))","v":0}]
[null,8,{"$f":"IF(C$54<'1 Données d''entrée'!$C$334+1+$B1858,0,IF(C$54<'1 Données d''entrée'!$C$333+'1 Données d''entrée'!$C$334+1+$B1858,$J$160*('1 Données d''entrée'!$C$332*(1+'1 Données d''entrée'!$C$332)^'1 Données d''entrée'!$C$333)/((1+'1 Données d''entrée'!$C$332)^'1 Données d''entrée'!$C$333-1),0))","v":0},{"$f":"IF(D1742<'1 Données d''entrée'!$C$334+1+$B1858,0,IF(D1742<'1 Données d''entrée'!$C$333+'1 Données d''entrée'!$C$334+1+$B1858,$J1848*('1 Données d''entrée'!$C$332*(1+'1 Données d''entrée'!$C$332)^'1 Données d''entrée'!$C$333)/((1+'1 Données d''entrée'!$C$332)^'1 Données d''entrée'!$C$333-1),0))","v":0},{"$f":"IF(E1742<'1 Données d''entrée'!$C$334+1+$B1858,0,IF(E1742<'1 Données d''entrée'!$C$333+'1 Données d''entrée'!$C$334+1+$B1858,$J1848*('1 Données d''entrée'!$C$332*(1+'1 Données d''entrée'!$C$332)^'1 Données d''entrée'!$C$333)/((1+'1 Données d''entrée'!$C$332)^'1 Données d''entrée'!$C$333-1),0))","v":0},{"$f":"IF(F1742<'1 Données d''entrée'!$C$334+1+$B1858,0,IF(F1742<'1 Données d''entrée'!$C$333+'1 Données d''entrée'!$C$334+1+$B1858,$J1848*('1 Données d''entrée'!$C$332*(1+'1 Données d''entrée'!$C$332)^'1 Données d''entrée'!$C$333)/((1+'1 Données d''entrée'!$C$332)^'1 Données d''entrée'!$C$333-1),0))","v":0},{"$f":"IF(G1742<'1 Données d''entrée'!$C$334+1+$B1858,0,IF(G1742<'1 Données d''entrée'!$C$333+'1 Données d''entrée'!$C$334+1+$B1858,$J1848*('1 Données d''entrée'!$C$332*(1+'1 Données d''entrée'!$C$332)^'1 Données d''entrée'!$C$333)/((1+'1 Données d''entrée'!$C$332)^'1 Données d''entrée'!$C$333-1),0))","v":0},{"$f":"IF(H1742<'1 Données d''entrée'!$C$334+1+$B1858,0,IF(H1742<'1 Données d''entrée'!$C$333+'1 Données d''entrée'!$C$334+1+$B1858,$J1848*('1 Données d''entrée'!$C$332*(1+'1 Données d''entrée'!$C$332)^'1 Données d''entrée'!$C$333)/((1+'1 Données d''entrée'!$C$332)^'1 Données d''entrée'!$C$333-1),0))","v":0},{"$f":"IF(I1742<'1 Données d''entrée'!$C$334+1+$B1858,0,IF(I1742<'1 Données d''entrée'!$C$333+'1 Données d''entrée'!$C$334+1+$B1858,$J1848*('1 Données d''entrée'!$C$332*(1+'1 Données d''entrée'!$C$332)^'1 Données d''entrée'!$C$333)/((1+'1 Données d''entrée'!$C$332)^'1 Données d''entrée'!$C$333-1),0))","v":0},{"$f":"IF(J1742<'1 Données d''entrée'!$C$334+1+$B1858,0,IF(J1742<'1 Données d''entrée'!$C$333+'1 Données d''entrée'!$C$334+1+$B1858,$J1848*('1 Données d''entrée'!$C$332*(1+'1 Données d''entrée'!$C$332)^'1 Données d''entrée'!$C$333)/((1+'1 Données d''entrée'!$C$332)^'1 Données d''entrée'!$C$333-1),0))","v":0},{"$f":"IF(K1742<'1 Données d''entrée'!$C$334+1+$B1858,0,IF(K1742<'1 Données d''entrée'!$C$333+'1 Données d''entrée'!$C$334+1+$B1858,$J1848*('1 Données d''entrée'!$C$332*(1+'1 Données d''entrée'!$C$332)^'1 Données d''entrée'!$C$333)/((1+'1 Données d''entrée'!$C$332)^'1 Données d''entrée'!$C$333-1),0))","v":0},{"$f":"IF(L1742<'1 Données d''entrée'!$C$334+1+$B1858,0,IF(L1742<'1 Données d''entrée'!$C$333+'1 Données d''entrée'!$C$334+1+$B1858,$J1848*('1 Données d''entrée'!$C$332*(1+'1 Données d''entrée'!$C$332)^'1 Données d''entrée'!$C$333)/((1+'1 Données d''entrée'!$C$332)^'1 Données d''entrée'!$C$333-1),0))","v":0},{"$f":"IF(M1742<'1 Données d''entrée'!$C$334+1+$B1858,0,IF(M1742<'1 Données d''entrée'!$C$333+'1 Données d''entrée'!$C$334+1+$B1858,$J1848*('1 Données d''entrée'!$C$332*(1+'1 Données d''entrée'!$C$332)^'1 Données d''entrée'!$C$333)/((1+'1 Données d''entrée'!$C$332)^'1 Données d''entrée'!$C$333-1),0))","v":0},{"$f":"IF(N1742<'1 Données d''entrée'!$C$334+1+$B1858,0,IF(N1742<'1 Données d''entrée'!$C$333+'1 Données d''entrée'!$C$334+1+$B1858,$J1848*('1 Données d''entrée'!$C$332*(1+'1 Données d''entrée'!$C$332)^'1 Données d''entrée'!$C$333)/((1+'1 Données d''entrée'!$C$332)^'1 Données d''entrée'!$C$333-1),0))","v":0},{"$f":"IF(O1742<'1 Données d''entrée'!$C$334+1+$B1858,0,IF(O1742<'1 Données d''entrée'!$C$333+'1 Données d''entrée'!$C$334+1+$B1858,$J1848*('1 Données d''entrée'!$C$332*(1+'1 Données d''entrée'!$C$332)^'1 Données d''entrée'!$C$333)/((1+'1 Données d''entrée'!$C$332)^'1 Données d''entrée'!$C$333-1),0))","v":0},{"$f":"IF(P1742<'1 Données d''entrée'!$C$334+1+$B1858,0,IF(P1742<'1 Données d''entrée'!$C$333+'1 Données d''entrée'!$C$334+1+$B1858,$J1848*('1 Données d''entrée'!$C$332*(1+'1 Données d''entrée'!$C$332)^'1 Données d''entrée'!$C$333)/((1+'1 Données d''entrée'!$C$332)^'1 Données d''entrée'!$C$333-1),0))","v":0},{"$f":"IF(Q1742<'1 Données d''entrée'!$C$334+1+$B1858,0,IF(Q1742<'1 Données d''entrée'!$C$333+'1 Données d''entrée'!$C$334+1+$B1858,$J1848*('1 Données d''entrée'!$C$332*(1+'1 Données d''entrée'!$C$332)^'1 Données d''entrée'!$C$333)/((1+'1 Données d''entrée'!$C$332)^'1 Données d''entrée'!$C$333-1),0))","v":0},{"$f":"IF(R1742<'1 Données d''entrée'!$C$334+1+$B1858,0,IF(R1742<'1 Données d''entrée'!$C$333+'1 Données d''entrée'!$C$334+1+$B1858,$J1848*('1 Données d''entrée'!$C$332*(1+'1 Données d''entrée'!$C$332)^'1 Données d''entrée'!$C$333)/((1+'1 Données d''entrée'!$C$332)^'1 Données d''entrée'!$C$333-1),0))","v":0},{"$f":"IF(S1742<'1 Données d''entrée'!$C$334+1+$B1858,0,IF(S1742<'1 Données d''entrée'!$C$333+'1 Données d''entrée'!$C$334+1+$B1858,$J1848*('1 Données d''entrée'!$C$332*(1+'1 Données d''entrée'!$C$332)^'1 Données d''entrée'!$C$333)/((1+'1 Données d''entrée'!$C$332)^'1 Données d''entrée'!$C$333-1),0))","v":0},{"$f":"IF(T1742<'1 Données d''entrée'!$C$334+1+$B1858,0,IF(T1742<'1 Données d''entrée'!$C$333+'1 Données d''entrée'!$C$334+1+$B1858,$J1848*('1 Données d''entrée'!$C$332*(1+'1 Données d''entrée'!$C$332)^'1 Données d''entrée'!$C$333)/((1+'1 Données d''entrée'!$C$332)^'1 Données d''entrée'!$C$333-1),0))","v":0},{"$f":"IF(U1742<'1 Données d''entrée'!$C$334+1+$B1858,0,IF(U1742<'1 Données d''entrée'!$C$333+'1 Données d''entrée'!$C$334+1+$B1858,$J1848*('1 Données d''entrée'!$C$332*(1+'1 Données d''entrée'!$C$332)^'1 Données d''entrée'!$C$333)/((1+'1 Données d''entrée'!$C$332)^'1 Données d''entrée'!$C$333-1),0))","v":0},{"$f":"IF(V1742<'1 Données d''entrée'!$C$334+1+$B1858,0,IF(V1742<'1 Données d''entrée'!$C$333+'1 Données d''entrée'!$C$334+1+$B1858,$J1848*('1 Données d''entrée'!$C$332*(1+'1 Données d''entrée'!$C$332)^'1 Données d''entrée'!$C$333)/((1+'1 Données d''entrée'!$C$332)^'1 Données d''entrée'!$C$333-1),0))","v":0}]
[null,9,{"$f":"IF(C$54<'1 Données d''entrée'!$C$334+1+$B1859,0,IF(C$54<'1 Données d''entrée'!$C$333+'1 Données d''entrée'!$C$334+1+$B1859,$K$160*('1 Données d''entrée'!$C$332*(1+'1 Données d''entrée'!$C$332)^'1 Données d''entrée'!$C$333)/((1+'1 Données d''entrée'!$C$332)^'1 Données d''entrée'!$C$333-1),0))","v":0},{"$f":"IF(D1742<'1 Données d''entrée'!$C$334+1+$B1859,0,IF(D1742<'1 Données d''entrée'!$C$333+'1 Données d''entrée'!$C$334+1+$B1859,$K1848*('1 Données d''entrée'!$C$332*(1+'1 Données d''entrée'!$C$332)^'1 Données d''entrée'!$C$333)/((1+'1 Données d''entrée'!$C$332)^'1 Données d''entrée'!$C$333-1),0))","v":0},{"$f":"IF(E1742<'1 Données d''entrée'!$C$334+1+$B1859,0,IF(E1742<'1 Données d''entrée'!$C$333+'1 Données d''entrée'!$C$334+1+$B1859,$K1848*('1 Données d''entrée'!$C$332*(1+'1 Données d''entrée'!$C$332)^'1 Données d''entrée'!$C$333)/((1+'1 Données d''entrée'!$C$332)^'1 Données d''entrée'!$C$333-1),0))","v":0},{"$f":"IF(F1742<'1 Données d''entrée'!$C$334+1+$B1859,0,IF(F1742<'1 Données d''entrée'!$C$333+'1 Données d''entrée'!$C$334+1+$B1859,$K1848*('1 Données d''entrée'!$C$332*(1+'1 Données d''entrée'!$C$332)^'1 Données d''entrée'!$C$333)/((1+'1 Données d''entrée'!$C$332)^'1 Données d''entrée'!$C$333-1),0))","v":0},{"$f":"IF(G1742<'1 Données d''entrée'!$C$334+1+$B1859,0,IF(G1742<'1 Données d''entrée'!$C$333+'1 Données d''entrée'!$C$334+1+$B1859,$K1848*('1 Données d''entrée'!$C$332*(1+'1 Données d''entrée'!$C$332)^'1 Données d''entrée'!$C$333)/((1+'1 Données d''entrée'!$C$332)^'1 Données d''entrée'!$C$333-1),0))","v":0},{"$f":"IF(H1742<'1 Données d''entrée'!$C$334+1+$B1859,0,IF(H1742<'1 Données d''entrée'!$C$333+'1 Données d''entrée'!$C$334+1+$B1859,$K1848*('1 Données d''entrée'!$C$332*(1+'1 Données d''entrée'!$C$332)^'1 Données d''entrée'!$C$333)/((1+'1 Données d''entrée'!$C$332)^'1 Données d''entrée'!$C$333-1),0))","v":0},{"$f":"IF(I1742<'1 Données d''entrée'!$C$334+1+$B1859,0,IF(I1742<'1 Données d''entrée'!$C$333+'1 Données d''entrée'!$C$334+1+$B1859,$K1848*('1 Données d''entrée'!$C$332*(1+'1 Données d''entrée'!$C$332)^'1 Données d''entrée'!$C$333)/((1+'1 Données d''entrée'!$C$332)^'1 Données d''entrée'!$C$333-1),0))","v":0},{"$f":"IF(J1742<'1 Données d''entrée'!$C$334+1+$B1859,0,IF(J1742<'1 Données d''entrée'!$C$333+'1 Données d''entrée'!$C$334+1+$B1859,$K1848*('1 Données d''entrée'!$C$332*(1+'1 Données d''entrée'!$C$332)^'1 Données d''entrée'!$C$333)/((1+'1 Données d''entrée'!$C$332)^'1 Données d''entrée'!$C$333-1),0))","v":0},{"$f":"IF(K1742<'1 Données d''entrée'!$C$334+1+$B1859,0,IF(K1742<'1 Données d''entrée'!$C$333+'1 Données d''entrée'!$C$334+1+$B1859,$K1848*('1 Données d''entrée'!$C$332*(1+'1 Données d''entrée'!$C$332)^'1 Données d''entrée'!$C$333)/((1+'1 Données d''entrée'!$C$332)^'1 Données d''entrée'!$C$333-1),0))","v":0},{"$f":"IF(L1742<'1 Données d''entrée'!$C$334+1+$B1859,0,IF(L1742<'1 Données d''entrée'!$C$333+'1 Données d''entrée'!$C$334+1+$B1859,$K1848*('1 Données d''entrée'!$C$332*(1+'1 Données d''entrée'!$C$332)^'1 Données d''entrée'!$C$333)/((1+'1 Données d''entrée'!$C$332)^'1 Données d''entrée'!$C$333-1),0))","v":0},{"$f":"IF(M1742<'1 Données d''entrée'!$C$334+1+$B1859,0,IF(M1742<'1 Données d''entrée'!$C$333+'1 Données d''entrée'!$C$334+1+$B1859,$K1848*('1 Données d''entrée'!$C$332*(1+'1 Données d''entrée'!$C$332)^'1 Données d''entrée'!$C$333)/((1+'1 Données d''entrée'!$C$332)^'1 Données d''entrée'!$C$333-1),0))","v":0},{"$f":"IF(N1742<'1 Données d''entrée'!$C$334+1+$B1859,0,IF(N1742<'1 Données d''entrée'!$C$333+'1 Données d''entrée'!$C$334+1+$B1859,$K1848*('1 Données d''entrée'!$C$332*(1+'1 Données d''entrée'!$C$332)^'1 Données d''entrée'!$C$333)/((1+'1 Données d''entrée'!$C$332)^'1 Données d''entrée'!$C$333-1),0))","v":0},{"$f":"IF(O1742<'1 Données d''entrée'!$C$334+1+$B1859,0,IF(O1742<'1 Données d''entrée'!$C$333+'1 Données d''entrée'!$C$334+1+$B1859,$K1848*('1 Données d''entrée'!$C$332*(1+'1 Données d''entrée'!$C$332)^'1 Données d''entrée'!$C$333)/((1+'1 Données d''entrée'!$C$332)^'1 Données d''entrée'!$C$333-1),0))","v":0},{"$f":"IF(P1742<'1 Données d''entrée'!$C$334+1+$B1859,0,IF(P1742<'1 Données d''entrée'!$C$333+'1 Données d''entrée'!$C$334+1+$B1859,$K1848*('1 Données d''entrée'!$C$332*(1+'1 Données d''entrée'!$C$332)^'1 Données d''entrée'!$C$333)/((1+'1 Données d''entrée'!$C$332)^'1 Données d''entrée'!$C$333-1),0))","v":0},{"$f":"IF(Q1742<'1 Données d''entrée'!$C$334+1+$B1859,0,IF(Q1742<'1 Données d''entrée'!$C$333+'1 Données d''entrée'!$C$334+1+$B1859,$K1848*('1 Données d''entrée'!$C$332*(1+'1 Données d''entrée'!$C$332)^'1 Données d''entrée'!$C$333)/((1+'1 Données d''entrée'!$C$332)^'1 Données d''entrée'!$C$333-1),0))","v":0},{"$f":"IF(R1742<'1 Données d''entrée'!$C$334+1+$B1859,0,IF(R1742<'1 Données d''entrée'!$C$333+'1 Données d''entrée'!$C$334+1+$B1859,$K1848*('1 Données d''entrée'!$C$332*(1+'1 Données d''entrée'!$C$332)^'1 Données d''entrée'!$C$333)/((1+'1 Données d''entrée'!$C$332)^'1 Données d''entrée'!$C$333-1),0))","v":0},{"$f":"IF(S1742<'1 Données d''entrée'!$C$334+1+$B1859,0,IF(S1742<'1 Données d''entrée'!$C$333+'1 Données d''entrée'!$C$334+1+$B1859,$K1848*('1 Données d''entrée'!$C$332*(1+'1 Données d''entrée'!$C$332)^'1 Données d''entrée'!$C$333)/((1+'1 Données d''entrée'!$C$332)^'1 Données d''entrée'!$C$333-1),0))","v":0},{"$f":"IF(T1742<'1 Données d''entrée'!$C$334+1+$B1859,0,IF(T1742<'1 Données d''entrée'!$C$333+'1 Données d''entrée'!$C$334+1+$B1859,$K1848*('1 Données d''entrée'!$C$332*(1+'1 Données d''entrée'!$C$332)^'1 Données d''entrée'!$C$333)/((1+'1 Données d''entrée'!$C$332)^'1 Données d''entrée'!$C$333-1),0))","v":0},{"$f":"IF(U1742<'1 Données d''entrée'!$C$334+1+$B1859,0,IF(U1742<'1 Données d''entrée'!$C$333+'1 Données d''entrée'!$C$334+1+$B1859,$K1848*('1 Données d''entrée'!$C$332*(1+'1 Données d''entrée'!$C$332)^'1 Données d''entrée'!$C$333)/((1+'1 Données d''entrée'!$C$332)^'1 Données d''entrée'!$C$333-1),0))","v":0},{"$f":"IF(V1742<'1 Données d''entrée'!$C$334+1+$B1859,0,IF(V1742<'1 Données d''entrée'!$C$333+'1 Données d''entrée'!$C$334+1+$B1859,$K1848*('1 Données d''entrée'!$C$332*(1+'1 Données d''entrée'!$C$332)^'1 Données d''entrée'!$C$333)/((1+'1 Données d''entrée'!$C$332)^'1 Données d''entrée'!$C$333-1),0))","v":0}]
[null,10,{"$f":"IF(C$54<'1 Données d''entrée'!$C$334+1+$B1860,0,IF(C$54<'1 Données d''entrée'!$C$333+'1 Données d''entrée'!$C$334+1+$B1860,$L$160*('1 Données d''entrée'!$C$332*(1+'1 Données d''entrée'!$C$332)^'1 Données d''entrée'!$C$333)/((1+'1 Données d''entrée'!$C$332)^'1 Données d''entrée'!$C$333-1),0))","v":0},{"$f":"IF(D1742<'1 Données d''entrée'!$C$334+1+$B1860,0,IF(D1742<'1 Données d''entrée'!$C$333+'1 Données d''entrée'!$C$334+1+$B1860,$L1848*('1 Données d''entrée'!$C$332*(1+'1 Données d''entrée'!$C$332)^'1 Données d''entrée'!$C$333)/((1+'1 Données d''entrée'!$C$332)^'1 Données d''entrée'!$C$333-1),0))","v":0},{"$f":"IF(E1742<'1 Données d''entrée'!$C$334+1+$B1860,0,IF(E1742<'1 Données d''entrée'!$C$333+'1 Données d''entrée'!$C$334+1+$B1860,$L1848*('1 Données d''entrée'!$C$332*(1+'1 Données d''entrée'!$C$332)^'1 Données d''entrée'!$C$333)/((1+'1 Données d''entrée'!$C$332)^'1 Données d''entrée'!$C$333-1),0))","v":0},{"$f":"IF(F1742<'1 Données d''entrée'!$C$334+1+$B1860,0,IF(F1742<'1 Données d''entrée'!$C$333+'1 Données d''entrée'!$C$334+1+$B1860,$L1848*('1 Données d''entrée'!$C$332*(1+'1 Données d''entrée'!$C$332)^'1 Données d''entrée'!$C$333)/((1+'1 Données d''entrée'!$C$332)^'1 Données d''entrée'!$C$333-1),0))","v":0},{"$f":"IF(G1742<'1 Données d''entrée'!$C$334+1+$B1860,0,IF(G1742<'1 Données d''entrée'!$C$333+'1 Données d''entrée'!$C$334+1+$B1860,$L1848*('1 Données d''entrée'!$C$332*(1+'1 Données d''entrée'!$C$332)^'1 Données d''entrée'!$C$333)/((1+'1 Données d''entrée'!$C$332)^'1 Données d''entrée'!$C$333-1),0))","v":0},{"$f":"IF(H1742<'1 Données d''entrée'!$C$334+1+$B1860,0,IF(H1742<'1 Données d''entrée'!$C$333+'1 Données d''entrée'!$C$334+1+$B1860,$L1848*('1 Données d''entrée'!$C$332*(1+'1 Données d''entrée'!$C$332)^'1 Données d''entrée'!$C$333)/((1+'1 Données d''entrée'!$C$332)^'1 Données d''entrée'!$C$333-1),0))","v":0},{"$f":"IF(I1742<'1 Données d''entrée'!$C$334+1+$B1860,0,IF(I1742<'1 Données d''entrée'!$C$333+'1 Données d''entrée'!$C$334+1+$B1860,$L1848*('1 Données d''entrée'!$C$332*(1+'1 Données d''entrée'!$C$332)^'1 Données d''entrée'!$C$333)/((1+'1 Données d''entrée'!$C$332)^'1 Données d''entrée'!$C$333-1),0))","v":0},{"$f":"IF(J1742<'1 Données d''entrée'!$C$334+1+$B1860,0,IF(J1742<'1 Données d''entrée'!$C$333+'1 Données d''entrée'!$C$334+1+$B1860,$L1848*('1 Données d''entrée'!$C$332*(1+'1 Données d''entrée'!$C$332)^'1 Données d''entrée'!$C$333)/((1+'1 Données d''entrée'!$C$332)^'1 Données d''entrée'!$C$333-1),0))","v":0},{"$f":"IF(K1742<'1 Données d''entrée'!$C$334+1+$B1860,0,IF(K1742<'1 Données d''entrée'!$C$333+'1 Données d''entrée'!$C$334+1+$B1860,$L1848*('1 Données d''entrée'!$C$332*(1+'1 Données d''entrée'!$C$332)^'1 Données d''entrée'!$C$333)/((1+'1 Données d''entrée'!$C$332)^'1 Données d''entrée'!$C$333-1),0))","v":0},{"$f":"IF(L1742<'1 Données d''entrée'!$C$334+1+$B1860,0,IF(L1742<'1 Données d''entrée'!$C$333+'1 Données d''entrée'!$C$334+1+$B1860,$L1848*('1 Données d''entrée'!$C$332*(1+'1 Données d''entrée'!$C$332)^'1 Données d''entrée'!$C$333)/((1+'1 Données d''entrée'!$C$332)^'1 Données d''entrée'!$C$333-1),0))","v":0},{"$f":"IF(M1742<'1 Données d''entrée'!$C$334+1+$B1860,0,IF(M1742<'1 Données d''entrée'!$C$333+'1 Données d''entrée'!$C$334+1+$B1860,$L1848*('1 Données d''entrée'!$C$332*(1+'1 Données d''entrée'!$C$332)^'1 Données d''entrée'!$C$333)/((1+'1 Données d''entrée'!$C$332)^'1 Données d''entrée'!$C$333-1),0))","v":0},{"$f":"IF(N1742<'1 Données d''entrée'!$C$334+1+$B1860,0,IF(N1742<'1 Données d''entrée'!$C$333+'1 Données d''entrée'!$C$334+1+$B1860,$L1848*('1 Données d''entrée'!$C$332*(1+'1 Données d''entrée'!$C$332)^'1 Données d''entrée'!$C$333)/((1+'1 Données d''entrée'!$C$332)^'1 Données d''entrée'!$C$333-1),0))","v":0},{"$f":"IF(O1742<'1 Données d''entrée'!$C$334+1+$B1860,0,IF(O1742<'1 Données d''entrée'!$C$333+'1 Données d''entrée'!$C$334+1+$B1860,$L1848*('1 Données d''entrée'!$C$332*(1+'1 Données d''entrée'!$C$332)^'1 Données d''entrée'!$C$333)/((1+'1 Données d''entrée'!$C$332)^'1 Données d''entrée'!$C$333-1),0))","v":0},{"$f":"IF(P1742<'1 Données d''entrée'!$C$334+1+$B1860,0,IF(P1742<'1 Données d''entrée'!$C$333+'1 Données d''entrée'!$C$334+1+$B1860,$L1848*('1 Données d''entrée'!$C$332*(1+'1 Données d''entrée'!$C$332)^'1 Données d''entrée'!$C$333)/((1+'1 Données d''entrée'!$C$332)^'1 Données d''entrée'!$C$333-1),0))","v":0},{"$f":"IF(Q1742<'1 Données d''entrée'!$C$334+1+$B1860,0,IF(Q1742<'1 Données d''entrée'!$C$333+'1 Données d''entrée'!$C$334+1+$B1860,$L1848*('1 Données d''entrée'!$C$332*(1+'1 Données d''entrée'!$C$332)^'1 Données d''entrée'!$C$333)/((1+'1 Données d''entrée'!$C$332)^'1 Données d''entrée'!$C$333-1),0))","v":0},{"$f":"IF(R1742<'1 Données d''entrée'!$C$334+1+$B1860,0,IF(R1742<'1 Données d''entrée'!$C$333+'1 Données d''entrée'!$C$334+1+$B1860,$L1848*('1 Données d''entrée'!$C$332*(1+'1 Données d''entrée'!$C$332)^'1 Données d''entrée'!$C$333)/((1+'1 Données d''entrée'!$C$332)^'1 Données d''entrée'!$C$333-1),0))","v":0},{"$f":"IF(S1742<'1 Données d''entrée'!$C$334+1+$B1860,0,IF(S1742<'1 Données d''entrée'!$C$333+'1 Données d''entrée'!$C$334+1+$B1860,$L1848*('1 Données d''entrée'!$C$332*(1+'1 Données d''entrée'!$C$332)^'1 Données d''entrée'!$C$333)/((1+'1 Données d''entrée'!$C$332)^'1 Données d''entrée'!$C$333-1),0))","v":0},{"$f":"IF(T1742<'1 Données d''entrée'!$C$334+1+$B1860,0,IF(T1742<'1 Données d''entrée'!$C$333+'1 Données d''entrée'!$C$334+1+$B1860,$L1848*('1 Données d''entrée'!$C$332*(1+'1 Données d''entrée'!$C$332)^'1 Données d''entrée'!$C$333)/((1+'1 Données d''entrée'!$C$332)^'1 Données d''entrée'!$C$333-1),0))","v":0},{"$f":"IF(U1742<'1 Données d''entrée'!$C$334+1+$B1860,0,IF(U1742<'1 Données d''entrée'!$C$333+'1 Données d''entrée'!$C$334+1+$B1860,$L1848*('1 Données d''entrée'!$C$332*(1+'1 Données d''entrée'!$C$332)^'1 Données d''entrée'!$C$333)/((1+'1 Données d''entrée'!$C$332)^'1 Données d''entrée'!$C$333-1),0))","v":0},{"$f":"IF(V1742<'1 Données d''entrée'!$C$334+1+$B1860,0,IF(V1742<'1 Données d''entrée'!$C$333+'1 Données d''entrée'!$C$334+1+$B1860,$L1848*('1 Données d''entrée'!$C$332*(1+'1 Données d''entrée'!$C$332)^'1 Données d''entrée'!$C$333)/((1+'1 Données d''entrée'!$C$332)^'1 Données d''entrée'!$C$333-1),0))","v":0}]
[null,"Période de prêt nouveau"]
["Paiement d'intérêt décroissant inclu dans l'annuité constante",0,0,0,0,0,0,0,0,0,0,0,0,0,0,0,0,0,0,0,0,0]
["Paiement d'intêrets",1,0,{"$f":"IF(D1851>0,$C1848*((('1 Données d''entrée'!$C$332+1)^'1 Données d''entrée'!$C$333)-(1+'1 Données d''entrée'!$C$332)^('6 Financement'!C$54-1-'1 Données d''entrée'!$C$334-$B1862))/((1+'1 Données d''entrée'!$C$332)^'1 Données d''entrée'!$C$333-1)*'1 Données d''entrée'!$C$332,0)","v":0},{"$f":"IF(E1851>0,$C1848*((('1 Données d''entrée'!$C$332+1)^'1 Données d''entrée'!$C$333)-(1+'1 Données d''entrée'!$C$332)^('6 Financement'!D$54-1-'1 Données d''entrée'!$C$334-$B1862))/((1+'1 Données d''entrée'!$C$332)^'1 Données d''entrée'!$C$333-1)*'1 Données d''entrée'!$C$332,0)","v":0},{"$f":"IF(F1851>0,$C1848*((('1 Données d''entrée'!$C$332+1)^'1 Données d''entrée'!$C$333)-(1+'1 Données d''entrée'!$C$332)^('6 Financement'!E$54-1-'1 Données d''entrée'!$C$334-$B1862))/((1+'1 Données d''entrée'!$C$332)^'1 Données d''entrée'!$C$333-1)*'1 Données d''entrée'!$C$332,0)","v":0},{"$f":"IF(G1851>0,$C1848*((('1 Données d''entrée'!$C$332+1)^'1 Données d''entrée'!$C$333)-(1+'1 Données d''entrée'!$C$332)^('6 Financement'!F$54-1-'1 Données d''entrée'!$C$334-$B1862))/((1+'1 Données d''entrée'!$C$332)^'1 Données d''entrée'!$C$333-1)*'1 Données d''entrée'!$C$332,0)","v":0},{"$f":"IF(H1851>0,$C1848*((('1 Données d''entrée'!$C$332+1)^'1 Données d''entrée'!$C$333)-(1+'1 Données d''entrée'!$C$332)^('6 Financement'!G$54-1-'1 Données d''entrée'!$C$334-$B1862))/((1+'1 Données d''entrée'!$C$332)^'1 Données d''entrée'!$C$333-1)*'1 Données d''entrée'!$C$332,0)","v":0},{"$f":"IF(I1851>0,$C1848*((('1 Données d''entrée'!$C$332+1)^'1 Données d''entrée'!$C$333)-(1+'1 Données d''entrée'!$C$332)^('6 Financement'!H$54-1-'1 Données d''entrée'!$C$334-$B1862))/((1+'1 Données d''entrée'!$C$332)^'1 Données d''entrée'!$C$333-1)*'1 Données d''entrée'!$C$332,0)","v":0},{"$f":"IF(J1851>0,$C1848*((('1 Données d''entrée'!$C$332+1)^'1 Données d''entrée'!$C$333)-(1+'1 Données d''entrée'!$C$332)^('6 Financement'!I$54-1-'1 Données d''entrée'!$C$334-$B1862))/((1+'1 Données d''entrée'!$C$332)^'1 Données d''entrée'!$C$333-1)*'1 Données d''entrée'!$C$332,0)","v":0},{"$f":"IF(K1851>0,$C1848*((('1 Données d''entrée'!$C$332+1)^'1 Données d''entrée'!$C$333)-(1+'1 Données d''entrée'!$C$332)^('6 Financement'!J$54-1-'1 Données d''entrée'!$C$334-$B1862))/((1+'1 Données d''entrée'!$C$332)^'1 Données d''entrée'!$C$333-1)*'1 Données d''entrée'!$C$332,0)","v":0},{"$f":"IF(L1851>0,$C1848*((('1 Données d''entrée'!$C$332+1)^'1 Données d''entrée'!$C$333)-(1+'1 Données d''entrée'!$C$332)^('6 Financement'!K$54-1-'1 Données d''entrée'!$C$334-$B1862))/((1+'1 Données d''entrée'!$C$332)^'1 Données d''entrée'!$C$333-1)*'1 Données d''entrée'!$C$332,0)","v":0},{"$f":"IF(M1851>0,$C1848*((('1 Données d''entrée'!$C$332+1)^'1 Données d''entrée'!$C$333)-(1+'1 Données d''entrée'!$C$332)^('6 Financement'!L$54-1-'1 Données d''entrée'!$C$334-$B1862))/((1+'1 Données d''entrée'!$C$332)^'1 Données d''entrée'!$C$333-1)*'1 Données d''entrée'!$C$332,0)","v":0},{"$f":"IF(N1851>0,$C1848*((('1 Données d''entrée'!$C$332+1)^'1 Données d''entrée'!$C$333)-(1+'1 Données d''entrée'!$C$332)^('6 Financement'!M$54-1-'1 Données d''entrée'!$C$334-$B1862))/((1+'1 Données d''entrée'!$C$332)^'1 Données d''entrée'!$C$333-1)*'1 Données d''entrée'!$C$332,0)","v":0},{"$f":"IF(O1851>0,$C1848*((('1 Données d''entrée'!$C$332+1)^'1 Données d''entrée'!$C$333)-(1+'1 Données d''entrée'!$C$332)^('6 Financement'!N$54-1-'1 Données d''entrée'!$C$334-$B1862))/((1+'1 Données d''entrée'!$C$332)^'1 Données d''entrée'!$C$333-1)*'1 Données d''entrée'!$C$332,0)","v":0},{"$f":"IF(P1851>0,$C1848*((('1 Données d''entrée'!$C$332+1)^'1 Données d''entrée'!$C$333)-(1+'1 Données d''entrée'!$C$332)^('6 Financement'!O$54-1-'1 Données d''entrée'!$C$334-$B1862))/((1+'1 Données d''entrée'!$C$332)^'1 Données d''entrée'!$C$333-1)*'1 Données d''entrée'!$C$332,0)","v":0},{"$f":"IF(Q1851>0,$C1848*((('1 Données d''entrée'!$C$332+1)^'1 Données d''entrée'!$C$333)-(1+'1 Données d''entrée'!$C$332)^('6 Financement'!P$54-1-'1 Données d''entrée'!$C$334-$B1862))/((1+'1 Données d''entrée'!$C$332)^'1 Données d''entrée'!$C$333-1)*'1 Données d''entrée'!$C$332,0)","v":0},{"$f":"IF(R1851>0,$C1848*((('1 Données d''entrée'!$C$332+1)^'1 Données d''entrée'!$C$333)-(1+'1 Données d''entrée'!$C$332)^('6 Financement'!Q$54-1-'1 Données d''entrée'!$C$334-$B1862))/((1+'1 Données d''entrée'!$C$332)^'1 Données d''entrée'!$C$333-1)*'1 Données d''entrée'!$C$332,0)","v":0},{"$f":"IF(S1851>0,$C1848*((('1 Données d''entrée'!$C$332+1)^'1 Données d''entrée'!$C$333)-(1+'1 Données d''entrée'!$C$332)^('6 Financement'!R$54-1-'1 Données d''entrée'!$C$334-$B1862))/((1+'1 Données d''entrée'!$C$332)^'1 Données d''entrée'!$C$333-1)*'1 Données d''entrée'!$C$332,0)","v":0},{"$f":"IF(T1851>0,$C1848*((('1 Données d''entrée'!$C$332+1)^'1 Données d''entrée'!$C$333)-(1+'1 Données d''entrée'!$C$332)^('6 Financement'!S$54-1-'1 Données d''entrée'!$C$334-$B1862))/((1+'1 Données d''entrée'!$C$332)^'1 Données d''entrée'!$C$333-1)*'1 Données d''entrée'!$C$332,0)","v":0},{"$f":"IF(U1851>0,$C1848*((('1 Données d''entrée'!$C$332+1)^'1 Données d''entrée'!$C$333)-(1+'1 Données d''entrée'!$C$332)^('6 Financement'!T$54-1-'1 Données d''entrée'!$C$334-$B1862))/((1+'1 Données d''entrée'!$C$332)^'1 Données d''entrée'!$C$333-1)*'1 Données d''entrée'!$C$332,0)","v":0},{"$f":"IF(V1851>0,$C1848*((('1 Données d''entrée'!$C$332+1)^'1 Données d''entrée'!$C$333)-(1+'1 Données d''entrée'!$C$332)^('6 Financement'!U$54-1-'1 Données d''entrée'!$C$334-$B1862))/((1+'1 Données d''entrée'!$C$332)^'1 Données d''entrée'!$C$333-1)*'1 Données d''entrée'!$C$332,0)","v":0}]
["Paiement d'intêrets",2,0,{"$f":"IF(D1852>0,$D1848*((('1 Données d''entrée'!$C$332+1)^'1 Données d''entrée'!$C$333)-(1+'1 Données d''entrée'!$C$332)^('6 Financement'!C$54-1-'1 Données d''entrée'!$C$334-$B1863))/((1+'1 Données d''entrée'!$C$332)^'1 Données d''entrée'!$C$333-1)*'1 Données d''entrée'!$C$332,0)","v":0},{"$f":"IF(E1852>0,$D1848*((('1 Données d''entrée'!$C$332+1)^'1 Données d''entrée'!$C$333)-(1+'1 Données d''entrée'!$C$332)^('6 Financement'!D$54-1-'1 Données d''entrée'!$C$334-$B1863))/((1+'1 Données d''entrée'!$C$332)^'1 Données d''entrée'!$C$333-1)*'1 Données d''entrée'!$C$332,0)","v":0},{"$f":"IF(F1852>0,$D1848*((('1 Données d''entrée'!$C$332+1)^'1 Données d''entrée'!$C$333)-(1+'1 Données d''entrée'!$C$332)^('6 Financement'!E$54-1-'1 Données d''entrée'!$C$334-$B1863))/((1+'1 Données d''entrée'!$C$332)^'1 Données d''entrée'!$C$333-1)*'1 Données d''entrée'!$C$332,0)","v":0},{"$f":"IF(G1852>0,$D1848*((('1 Données d''entrée'!$C$332+1)^'1 Données d''entrée'!$C$333)-(1+'1 Données d''entrée'!$C$332)^('6 Financement'!F$54-1-'1 Données d''entrée'!$C$334-$B1863))/((1+'1 Données d''entrée'!$C$332)^'1 Données d''entrée'!$C$333-1)*'1 Données d''entrée'!$C$332,0)","v":0},{"$f":"IF(H1852>0,$D1848*((('1 Données d''entrée'!$C$332+1)^'1 Données d''entrée'!$C$333)-(1+'1 Données d''entrée'!$C$332)^('6 Financement'!G$54-1-'1 Données d''entrée'!$C$334-$B1863))/((1+'1 Données d''entrée'!$C$332)^'1 Données d''entrée'!$C$333-1)*'1 Données d''entrée'!$C$332,0)","v":0},{"$f":"IF(I1852>0,$D1848*((('1 Données d''entrée'!$C$332+1)^'1 Données d''entrée'!$C$333)-(1+'1 Données d''entrée'!$C$332)^('6 Financement'!H$54-1-'1 Données d''entrée'!$C$334-$B1863))/((1+'1 Données d''entrée'!$C$332)^'1 Données d''entrée'!$C$333-1)*'1 Données d''entrée'!$C$332,0)","v":0},{"$f":"IF(J1852>0,$D1848*((('1 Données d''entrée'!$C$332+1)^'1 Données d''entrée'!$C$333)-(1+'1 Données d''entrée'!$C$332)^('6 Financement'!I$54-1-'1 Données d''entrée'!$C$334-$B1863))/((1+'1 Données d''entrée'!$C$332)^'1 Données d''entrée'!$C$333-1)*'1 Données d''entrée'!$C$332,0)","v":0},{"$f":"IF(K1852>0,$D1848*((('1 Données d''entrée'!$C$332+1)^'1 Données d''entrée'!$C$333)-(1+'1 Données d''entrée'!$C$332)^('6 Financement'!J$54-1-'1 Données d''entrée'!$C$334-$B1863))/((1+'1 Données d''entrée'!$C$332)^'1 Données d''entrée'!$C$333-1)*'1 Données d''entrée'!$C$332,0)","v":0},{"$f":"IF(L1852>0,$D1848*((('1 Données d''entrée'!$C$332+1)^'1 Données d''entrée'!$C$333)-(1+'1 Données d''entrée'!$C$332)^('6 Financement'!K$54-1-'1 Données d''entrée'!$C$334-$B1863))/((1+'1 Données d''entrée'!$C$332)^'1 Données d''entrée'!$C$333-1)*'1 Données d''entrée'!$C$332,0)","v":0},{"$f":"IF(M1852>0,$D1848*((('1 Données d''entrée'!$C$332+1)^'1 Données d''entrée'!$C$333)-(1+'1 Données d''entrée'!$C$332)^('6 Financement'!L$54-1-'1 Données d''entrée'!$C$334-$B1863))/((1+'1 Données d''entrée'!$C$332)^'1 Données d''entrée'!$C$333-1)*'1 Données d''entrée'!$C$332,0)","v":0},{"$f":"IF(N1852>0,$D1848*((('1 Données d''entrée'!$C$332+1)^'1 Données d''entrée'!$C$333)-(1+'1 Données d''entrée'!$C$332)^('6 Financement'!M$54-1-'1 Données d''entrée'!$C$334-$B1863))/((1+'1 Données d''entrée'!$C$332)^'1 Données d''entrée'!$C$333-1)*'1 Données d''entrée'!$C$332,0)","v":0},{"$f":"IF(O1852>0,$D1848*((('1 Données d''entrée'!$C$332+1)^'1 Données d''entrée'!$C$333)-(1+'1 Données d''entrée'!$C$332)^('6 Financement'!N$54-1-'1 Données d''entrée'!$C$334-$B1863))/((1+'1 Données d''entrée'!$C$332)^'1 Données d''entrée'!$C$333-1)*'1 Données d''entrée'!$C$332,0)","v":0},{"$f":"IF(P1852>0,$D1848*((('1 Données d''entrée'!$C$332+1)^'1 Données d''entrée'!$C$333)-(1+'1 Données d''entrée'!$C$332)^('6 Financement'!O$54-1-'1 Données d''entrée'!$C$334-$B1863))/((1+'1 Données d''entrée'!$C$332)^'1 Données d''entrée'!$C$333-1)*'1 Données d''entrée'!$C$332,0)","v":0},{"$f":"IF(Q1852>0,$D1848*((('1 Données d''entrée'!$C$332+1)^'1 Données d''entrée'!$C$333)-(1+'1 Données d''entrée'!$C$332)^('6 Financement'!P$54-1-'1 Données d''entrée'!$C$334-$B1863))/((1+'1 Données d''entrée'!$C$332)^'1 Données d''entrée'!$C$333-1)*'1 Données d''entrée'!$C$332,0)","v":0},{"$f":"IF(R1852>0,$D1848*((('1 Données d''entrée'!$C$332+1)^'1 Données d''entrée'!$C$333)-(1+'1 Données d''entrée'!$C$332)^('6 Financement'!Q$54-1-'1 Données d''entrée'!$C$334-$B1863))/((1+'1 Données d''entrée'!$C$332)^'1 Données d''entrée'!$C$333-1)*'1 Données d''entrée'!$C$332,0)","v":0},{"$f":"IF(S1852>0,$D1848*((('1 Données d''entrée'!$C$332+1)^'1 Données d''entrée'!$C$333)-(1+'1 Données d''entrée'!$C$332)^('6 Financement'!R$54-1-'1 Données d''entrée'!$C$334-$B1863))/((1+'1 Données d''entrée'!$C$332)^'1 Données d''entrée'!$C$333-1)*'1 Données d''entrée'!$C$332,0)","v":0},{"$f":"IF(T1852>0,$D1848*((('1 Données d''entrée'!$C$332+1)^'1 Données d''entrée'!$C$333)-(1+'1 Données d''entrée'!$C$332)^('6 Financement'!S$54-1-'1 Données d''entrée'!$C$334-$B1863))/((1+'1 Données d''entrée'!$C$332)^'1 Données d''entrée'!$C$333-1)*'1 Données d''entrée'!$C$332,0)","v":0},{"$f":"IF(U1852>0,$D1848*((('1 Données d''entrée'!$C$332+1)^'1 Données d''entrée'!$C$333)-(1+'1 Données d''entrée'!$C$332)^('6 Financement'!T$54-1-'1 Données d''entrée'!$C$334-$B1863))/((1+'1 Données d''entrée'!$C$332)^'1 Données d''entrée'!$C$333-1)*'1 Données d''entrée'!$C$332,0)","v":0},{"$f":"IF(V1852>0,$D1848*((('1 Données d''entrée'!$C$332+1)^'1 Données d''entrée'!$C$333)-(1+'1 Données d''entrée'!$C$332)^('6 Financement'!U$54-1-'1 Données d''entrée'!$C$334-$B1863))/((1+'1 Données d''entrée'!$C$332)^'1 Données d''entrée'!$C$333-1)*'1 Données d''entrée'!$C$332,0)","v":0}]
["Paiement d'intêrets",3,0,{"$f":"IF(D1853>0,$E1848*((('1 Données d''entrée'!$C$332+1)^'1 Données d''entrée'!$C$333)-(1+'1 Données d''entrée'!$C$332)^('6 Financement'!C$54-1-'1 Données d''entrée'!$C$334-$B1864))/((1+'1 Données d''entrée'!$C$332)^'1 Données d''entrée'!$C$333-1)*'1 Données d''entrée'!$C$332,0)","v":0},{"$f":"IF(E1853>0,$E1848*((('1 Données d''entrée'!$C$332+1)^'1 Données d''entrée'!$C$333)-(1+'1 Données d''entrée'!$C$332)^('6 Financement'!D$54-1-'1 Données d''entrée'!$C$334-$B1864))/((1+'1 Données d''entrée'!$C$332)^'1 Données d''entrée'!$C$333-1)*'1 Données d''entrée'!$C$332,0)","v":0},{"$f":"IF(F1853>0,$E1848*((('1 Données d''entrée'!$C$332+1)^'1 Données d''entrée'!$C$333)-(1+'1 Données d''entrée'!$C$332)^('6 Financement'!E$54-1-'1 Données d''entrée'!$C$334-$B1864))/((1+'1 Données d''entrée'!$C$332)^'1 Données d''entrée'!$C$333-1)*'1 Données d''entrée'!$C$332,0)","v":0},{"$f":"IF(G1853>0,$E1848*((('1 Données d''entrée'!$C$332+1)^'1 Données d''entrée'!$C$333)-(1+'1 Données d''entrée'!$C$332)^('6 Financement'!F$54-1-'1 Données d''entrée'!$C$334-$B1864))/((1+'1 Données d''entrée'!$C$332)^'1 Données d''entrée'!$C$333-1)*'1 Données d''entrée'!$C$332,0)","v":0},{"$f":"IF(H1853>0,$E1848*((('1 Données d''entrée'!$C$332+1)^'1 Données d''entrée'!$C$333)-(1+'1 Données d''entrée'!$C$332)^('6 Financement'!G$54-1-'1 Données d''entrée'!$C$334-$B1864))/((1+'1 Données d''entrée'!$C$332)^'1 Données d''entrée'!$C$333-1)*'1 Données d''entrée'!$C$332,0)","v":0},{"$f":"IF(I1853>0,$E1848*((('1 Données d''entrée'!$C$332+1)^'1 Données d''entrée'!$C$333)-(1+'1 Données d''entrée'!$C$332)^('6 Financement'!H$54-1-'1 Données d''entrée'!$C$334-$B1864))/((1+'1 Données d''entrée'!$C$332)^'1 Données d''entrée'!$C$333-1)*'1 Données d''entrée'!$C$332,0)","v":0},{"$f":"IF(J1853>0,$E1848*((('1 Données d''entrée'!$C$332+1)^'1 Données d''entrée'!$C$333)-(1+'1 Données d''entrée'!$C$332)^('6 Financement'!I$54-1-'1 Données d''entrée'!$C$334-$B1864))/((1+'1 Données d''entrée'!$C$332)^'1 Données d''entrée'!$C$333-1)*'1 Données d''entrée'!$C$332,0)","v":0},{"$f":"IF(K1853>0,$E1848*((('1 Données d''entrée'!$C$332+1)^'1 Données d''entrée'!$C$333)-(1+'1 Données d''entrée'!$C$332)^('6 Financement'!J$54-1-'1 Données d''entrée'!$C$334-$B1864))/((1+'1 Données d''entrée'!$C$332)^'1 Données d''entrée'!$C$333-1)*'1 Données d''entrée'!$C$332,0)","v":0},{"$f":"IF(L1853>0,$E1848*((('1 Données d''entrée'!$C$332+1)^'1 Données d''entrée'!$C$333)-(1+'1 Données d''entrée'!$C$332)^('6 Financement'!K$54-1-'1 Données d''entrée'!$C$334-$B1864))/((1+'1 Données d''entrée'!$C$332)^'1 Données d''entrée'!$C$333-1)*'1 Données d''entrée'!$C$332,0)","v":0},{"$f":"IF(M1853>0,$E1848*((('1 Données d''entrée'!$C$332+1)^'1 Données d''entrée'!$C$333)-(1+'1 Données d''entrée'!$C$332)^('6 Financement'!L$54-1-'1 Données d''entrée'!$C$334-$B1864))/((1+'1 Données d''entrée'!$C$332)^'1 Données d''entrée'!$C$333-1)*'1 Données d''entrée'!$C$332,0)","v":0},{"$f":"IF(N1853>0,$E1848*((('1 Données d''entrée'!$C$332+1)^'1 Données d''entrée'!$C$333)-(1+'1 Données d''entrée'!$C$332)^('6 Financement'!M$54-1-'1 Données d''entrée'!$C$334-$B1864))/((1+'1 Données d''entrée'!$C$332)^'1 Données d''entrée'!$C$333-1)*'1 Données d''entrée'!$C$332,0)","v":0},{"$f":"IF(O1853>0,$E1848*((('1 Données d''entrée'!$C$332+1)^'1 Données d''entrée'!$C$333)-(1+'1 Données d''entrée'!$C$332)^('6 Financement'!N$54-1-'1 Données d''entrée'!$C$334-$B1864))/((1+'1 Données d''entrée'!$C$332)^'1 Données d''entrée'!$C$333-1)*'1 Données d''entrée'!$C$332,0)","v":0},{"$f":"IF(P1853>0,$E1848*((('1 Données d''entrée'!$C$332+1)^'1 Données d''entrée'!$C$333)-(1+'1 Données d''entrée'!$C$332)^('6 Financement'!O$54-1-'1 Données d''entrée'!$C$334-$B1864))/((1+'1 Données d''entrée'!$C$332)^'1 Données d''entrée'!$C$333-1)*'1 Données d''entrée'!$C$332,0)","v":0},{"$f":"IF(Q1853>0,$E1848*((('1 Données d''entrée'!$C$332+1)^'1 Données d''entrée'!$C$333)-(1+'1 Données d''entrée'!$C$332)^('6 Financement'!P$54-1-'1 Données d''entrée'!$C$334-$B1864))/((1+'1 Données d''entrée'!$C$332)^'1 Données d''entrée'!$C$333-1)*'1 Données d''entrée'!$C$332,0)","v":0},{"$f":"IF(R1853>0,$E1848*((('1 Données d''entrée'!$C$332+1)^'1 Données d''entrée'!$C$333)-(1+'1 Données d''entrée'!$C$332)^('6 Financement'!Q$54-1-'1 Données d''entrée'!$C$334-$B1864))/((1+'1 Données d''entrée'!$C$332)^'1 Données d''entrée'!$C$333-1)*'1 Données d''entrée'!$C$332,0)","v":0},{"$f":"IF(S1853>0,$E1848*((('1 Données d''entrée'!$C$332+1)^'1 Données d''entrée'!$C$333)-(1+'1 Données d''entrée'!$C$332)^('6 Financement'!R$54-1-'1 Données d''entrée'!$C$334-$B1864))/((1+'1 Données d''entrée'!$C$332)^'1 Données d''entrée'!$C$333-1)*'1 Données d''entrée'!$C$332,0)","v":0},{"$f":"IF(T1853>0,$E1848*((('1 Données d''entrée'!$C$332+1)^'1 Données d''entrée'!$C$333)-(1+'1 Données d''entrée'!$C$332)^('6 Financement'!S$54-1-'1 Données d''entrée'!$C$334-$B1864))/((1+'1 Données d''entrée'!$C$332)^'1 Données d''entrée'!$C$333-1)*'1 Données d''entrée'!$C$332,0)","v":0},{"$f":"IF(U1853>0,$E1848*((('1 Données d''entrée'!$C$332+1)^'1 Données d''entrée'!$C$333)-(1+'1 Données d''entrée'!$C$332)^('6 Financement'!T$54-1-'1 Données d''entrée'!$C$334-$B1864))/((1+'1 Données d''entrée'!$C$332)^'1 Données d''entrée'!$C$333-1)*'1 Données d''entrée'!$C$332,0)","v":0},{"$f":"IF(V1853>0,$E1848*((('1 Données d''entrée'!$C$332+1)^'1 Données d''entrée'!$C$333)-(1+'1 Données d''entrée'!$C$332)^('6 Financement'!U$54-1-'1 Données d''entrée'!$C$334-$B1864))/((1+'1 Données d''entrée'!$C$332)^'1 Données d''entrée'!$C$333-1)*'1 Données d''entrée'!$C$332,0)","v":0}]
["Paiement d'intêrets",4,0,{"$f":"IF(D1854>0,$F1848*((('1 Données d''entrée'!$C$332+1)^'1 Données d''entrée'!$C$333)-(1+'1 Données d''entrée'!$C$332)^('6 Financement'!C$54-1-'1 Données d''entrée'!$C$334-$B1865))/((1+'1 Données d''entrée'!$C$332)^'1 Données d''entrée'!$C$333-1)*'1 Données d''entrée'!$C$332,0)","v":0},{"$f":"IF(E1854>0,$F1848*((('1 Données d''entrée'!$C$332+1)^'1 Données d''entrée'!$C$333)-(1+'1 Données d''entrée'!$C$332)^('6 Financement'!D$54-1-'1 Données d''entrée'!$C$334-$B1865))/((1+'1 Données d''entrée'!$C$332)^'1 Données d''entrée'!$C$333-1)*'1 Données d''entrée'!$C$332,0)","v":0},{"$f":"IF(F1854>0,$F1848*((('1 Données d''entrée'!$C$332+1)^'1 Données d''entrée'!$C$333)-(1+'1 Données d''entrée'!$C$332)^('6 Financement'!E$54-1-'1 Données d''entrée'!$C$334-$B1865))/((1+'1 Données d''entrée'!$C$332)^'1 Données d''entrée'!$C$333-1)*'1 Données d''entrée'!$C$332,0)","v":0},{"$f":"IF(G1854>0,$F1848*((('1 Données d''entrée'!$C$332+1)^'1 Données d''entrée'!$C$333)-(1+'1 Données d''entrée'!$C$332)^('6 Financement'!F$54-1-'1 Données d''entrée'!$C$334-$B1865))/((1+'1 Données d''entrée'!$C$332)^'1 Données d''entrée'!$C$333-1)*'1 Données d''entrée'!$C$332,0)","v":0},{"$f":"IF(H1854>0,$F1848*((('1 Données d''entrée'!$C$332+1)^'1 Données d''entrée'!$C$333)-(1+'1 Données d''entrée'!$C$332)^('6 Financement'!G$54-1-'1 Données d''entrée'!$C$334-$B1865))/((1+'1 Données d''entrée'!$C$332)^'1 Données d''entrée'!$C$333-1)*'1 Données d''entrée'!$C$332,0)","v":0},{"$f":"IF(I1854>0,$F1848*((('1 Données d''entrée'!$C$332+1)^'1 Données d''entrée'!$C$333)-(1+'1 Données d''entrée'!$C$332)^('6 Financement'!H$54-1-'1 Données d''entrée'!$C$334-$B1865))/((1+'1 Données d''entrée'!$C$332)^'1 Données d''entrée'!$C$333-1)*'1 Données d''entrée'!$C$332,0)","v":0},{"$f":"IF(J1854>0,$F1848*((('1 Données d''entrée'!$C$332+1)^'1 Données d''entrée'!$C$333)-(1+'1 Données d''entrée'!$C$332)^('6 Financement'!I$54-1-'1 Données d''entrée'!$C$334-$B1865))/((1+'1 Données d''entrée'!$C$332)^'1 Données d''entrée'!$C$333-1)*'1 Données d''entrée'!$C$332,0)","v":0},{"$f":"IF(K1854>0,$F1848*((('1 Données d''entrée'!$C$332+1)^'1 Données d''entrée'!$C$333)-(1+'1 Données d''entrée'!$C$332)^('6 Financement'!J$54-1-'1 Données d''entrée'!$C$334-$B1865))/((1+'1 Données d''entrée'!$C$332)^'1 Données d''entrée'!$C$333-1)*'1 Données d''entrée'!$C$332,0)","v":0},{"$f":"IF(L1854>0,$F1848*((('1 Données d''entrée'!$C$332+1)^'1 Données d''entrée'!$C$333)-(1+'1 Données d''entrée'!$C$332)^('6 Financement'!K$54-1-'1 Données d''entrée'!$C$334-$B1865))/((1+'1 Données d''entrée'!$C$332)^'1 Données d''entrée'!$C$333-1)*'1 Données d''entrée'!$C$332,0)","v":0},{"$f":"IF(M1854>0,$F1848*((('1 Données d''entrée'!$C$332+1)^'1 Données d''entrée'!$C$333)-(1+'1 Données d''entrée'!$C$332)^('6 Financement'!L$54-1-'1 Données d''entrée'!$C$334-$B1865))/((1+'1 Données d''entrée'!$C$332)^'1 Données d''entrée'!$C$333-1)*'1 Données d''entrée'!$C$332,0)","v":0},{"$f":"IF(N1854>0,$F1848*((('1 Données d''entrée'!$C$332+1)^'1 Données d''entrée'!$C$333)-(1+'1 Données d''entrée'!$C$332)^('6 Financement'!M$54-1-'1 Données d''entrée'!$C$334-$B1865))/((1+'1 Données d''entrée'!$C$332)^'1 Données d''entrée'!$C$333-1)*'1 Données d''entrée'!$C$332,0)","v":0},{"$f":"IF(O1854>0,$F1848*((('1 Données d''entrée'!$C$332+1)^'1 Données d''entrée'!$C$333)-(1+'1 Données d''entrée'!$C$332)^('6 Financement'!N$54-1-'1 Données d''entrée'!$C$334-$B1865))/((1+'1 Données d''entrée'!$C$332)^'1 Données d''entrée'!$C$333-1)*'1 Données d''entrée'!$C$332,0)","v":0},{"$f":"IF(P1854>0,$F1848*((('1 Données d''entrée'!$C$332+1)^'1 Données d''entrée'!$C$333)-(1+'1 Données d''entrée'!$C$332)^('6 Financement'!O$54-1-'1 Données d''entrée'!$C$334-$B1865))/((1+'1 Données d''entrée'!$C$332)^'1 Données d''entrée'!$C$333-1)*'1 Données d''entrée'!$C$332,0)","v":0},{"$f":"IF(Q1854>0,$F1848*((('1 Données d''entrée'!$C$332+1)^'1 Données d''entrée'!$C$333)-(1+'1 Données d''entrée'!$C$332)^('6 Financement'!P$54-1-'1 Données d''entrée'!$C$334-$B1865))/((1+'1 Données d''entrée'!$C$332)^'1 Données d''entrée'!$C$333-1)*'1 Données d''entrée'!$C$332,0)","v":0},{"$f":"IF(R1854>0,$F1848*((('1 Données d''entrée'!$C$332+1)^'1 Données d''entrée'!$C$333)-(1+'1 Données d''entrée'!$C$332)^('6 Financement'!Q$54-1-'1 Données d''entrée'!$C$334-$B1865))/((1+'1 Données d''entrée'!$C$332)^'1 Données d''entrée'!$C$333-1)*'1 Données d''entrée'!$C$332,0)","v":0},{"$f":"IF(S1854>0,$F1848*((('1 Données d''entrée'!$C$332+1)^'1 Données d''entrée'!$C$333)-(1+'1 Données d''entrée'!$C$332)^('6 Financement'!R$54-1-'1 Données d''entrée'!$C$334-$B1865))/((1+'1 Données d''entrée'!$C$332)^'1 Données d''entrée'!$C$333-1)*'1 Données d''entrée'!$C$332,0)","v":0},{"$f":"IF(T1854>0,$F1848*((('1 Données d''entrée'!$C$332+1)^'1 Données d''entrée'!$C$333)-(1+'1 Données d''entrée'!$C$332)^('6 Financement'!S$54-1-'1 Données d''entrée'!$C$334-$B1865))/((1+'1 Données d''entrée'!$C$332)^'1 Données d''entrée'!$C$333-1)*'1 Données d''entrée'!$C$332,0)","v":0},{"$f":"IF(U1854>0,$F1848*((('1 Données d''entrée'!$C$332+1)^'1 Données d''entrée'!$C$333)-(1+'1 Données d''entrée'!$C$332)^('6 Financement'!T$54-1-'1 Données d''entrée'!$C$334-$B1865))/((1+'1 Données d''entrée'!$C$332)^'1 Données d''entrée'!$C$333-1)*'1 Données d''entrée'!$C$332,0)","v":0},{"$f":"IF(V1854>0,$F1848*((('1 Données d''entrée'!$C$332+1)^'1 Données d''entrée'!$C$333)-(1+'1 Données d''entrée'!$C$332)^('6 Financement'!U$54-1-'1 Données d''entrée'!$C$334-$B1865))/((1+'1 Données d''entrée'!$C$332)^'1 Données d''entrée'!$C$333-1)*'1 Données d''entrée'!$C$332,0)","v":0}]
["Paiement d'intêrets",5,0,{"$f":"IF(D1855>0,$G1848*((('1 Données d''entrée'!$C$332+1)^'1 Données d''entrée'!$C$333)-(1+'1 Données d''entrée'!$C$332)^('6 Financement'!C$54-1-'1 Données d''entrée'!$C$334-$B1866))/((1+'1 Données d''entrée'!$C$332)^'1 Données d''entrée'!$C$333-1)*'1 Données d''entrée'!$C$332,0)","v":0},{"$f":"IF(E1855>0,$G1848*((('1 Données d''entrée'!$C$332+1)^'1 Données d''entrée'!$C$333)-(1+'1 Données d''entrée'!$C$332)^('6 Financement'!D$54-1-'1 Données d''entrée'!$C$334-$B1866))/((1+'1 Données d''entrée'!$C$332)^'1 Données d''entrée'!$C$333-1)*'1 Données d''entrée'!$C$332,0)","v":0},{"$f":"IF(F1855>0,$G1848*((('1 Données d''entrée'!$C$332+1)^'1 Données d''entrée'!$C$333)-(1+'1 Données d''entrée'!$C$332)^('6 Financement'!E$54-1-'1 Données d''entrée'!$C$334-$B1866))/((1+'1 Données d''entrée'!$C$332)^'1 Données d''entrée'!$C$333-1)*'1 Données d''entrée'!$C$332,0)","v":0},{"$f":"IF(G1855>0,$G1848*((('1 Données d''entrée'!$C$332+1)^'1 Données d''entrée'!$C$333)-(1+'1 Données d''entrée'!$C$332)^('6 Financement'!F$54-1-'1 Données d''entrée'!$C$334-$B1866))/((1+'1 Données d''entrée'!$C$332)^'1 Données d''entrée'!$C$333-1)*'1 Données d''entrée'!$C$332,0)","v":0},{"$f":"IF(H1855>0,$G1848*((('1 Données d''entrée'!$C$332+1)^'1 Données d''entrée'!$C$333)-(1+'1 Données d''entrée'!$C$332)^('6 Financement'!G$54-1-'1 Données d''entrée'!$C$334-$B1866))/((1+'1 Données d''entrée'!$C$332)^'1 Données d''entrée'!$C$333-1)*'1 Données d''entrée'!$C$332,0)","v":0},{"$f":"IF(I1855>0,$G1848*((('1 Données d''entrée'!$C$332+1)^'1 Données d''entrée'!$C$333)-(1+'1 Données d''entrée'!$C$332)^('6 Financement'!H$54-1-'1 Données d''entrée'!$C$334-$B1866))/((1+'1 Données d''entrée'!$C$332)^'1 Données d''entrée'!$C$333-1)*'1 Données d''entrée'!$C$332,0)","v":0},{"$f":"IF(J1855>0,$G1848*((('1 Données d''entrée'!$C$332+1)^'1 Données d''entrée'!$C$333)-(1+'1 Données d''entrée'!$C$332)^('6 Financement'!I$54-1-'1 Données d''entrée'!$C$334-$B1866))/((1+'1 Données d''entrée'!$C$332)^'1 Données d''entrée'!$C$333-1)*'1 Données d''entrée'!$C$332,0)","v":0},{"$f":"IF(K1855>0,$G1848*((('1 Données d''entrée'!$C$332+1)^'1 Données d''entrée'!$C$333)-(1+'1 Données d''entrée'!$C$332)^('6 Financement'!J$54-1-'1 Données d''entrée'!$C$334-$B1866))/((1+'1 Données d''entrée'!$C$332)^'1 Données d''entrée'!$C$333-1)*'1 Données d''entrée'!$C$332,0)","v":0},{"$f":"IF(L1855>0,$G1848*((('1 Données d''entrée'!$C$332+1)^'1 Données d''entrée'!$C$333)-(1+'1 Données d''entrée'!$C$332)^('6 Financement'!K$54-1-'1 Données d''entrée'!$C$334-$B1866))/((1+'1 Données d''entrée'!$C$332)^'1 Données d''entrée'!$C$333-1)*'1 Données d''entrée'!$C$332,0)","v":0},{"$f":"IF(M1855>0,$G1848*((('1 Données d''entrée'!$C$332+1)^'1 Données d''entrée'!$C$333)-(1+'1 Données d''entrée'!$C$332)^('6 Financement'!L$54-1-'1 Données d''entrée'!$C$334-$B1866))/((1+'1 Données d''entrée'!$C$332)^'1 Données d''entrée'!$C$333-1)*'1 Données d''entrée'!$C$332,0)","v":0},{"$f":"IF(N1855>0,$G1848*((('1 Données d''entrée'!$C$332+1)^'1 Données d''entrée'!$C$333)-(1+'1 Données d''entrée'!$C$332)^('6 Financement'!M$54-1-'1 Données d''entrée'!$C$334-$B1866))/((1+'1 Données d''entrée'!$C$332)^'1 Données d''entrée'!$C$333-1)*'1 Données d''entrée'!$C$332,0)","v":0},{"$f":"IF(O1855>0,$G1848*((('1 Données d''entrée'!$C$332+1)^'1 Données d''entrée'!$C$333)-(1+'1 Données d''entrée'!$C$332)^('6 Financement'!N$54-1-'1 Données d''entrée'!$C$334-$B1866))/((1+'1 Données d''entrée'!$C$332)^'1 Données d''entrée'!$C$333-1)*'1 Données d''entrée'!$C$332,0)","v":0},{"$f":"IF(P1855>0,$G1848*((('1 Données d''entrée'!$C$332+1)^'1 Données d''entrée'!$C$333)-(1+'1 Données d''entrée'!$C$332)^('6 Financement'!O$54-1-'1 Données d''entrée'!$C$334-$B1866))/((1+'1 Données d''entrée'!$C$332)^'1 Données d''entrée'!$C$333-1)*'1 Données d''entrée'!$C$332,0)","v":0},{"$f":"IF(Q1855>0,$G1848*((('1 Données d''entrée'!$C$332+1)^'1 Données d''entrée'!$C$333)-(1+'1 Données d''entrée'!$C$332)^('6 Financement'!P$54-1-'1 Données d''entrée'!$C$334-$B1866))/((1+'1 Données d''entrée'!$C$332)^'1 Données d''entrée'!$C$333-1)*'1 Données d''entrée'!$C$332,0)","v":0},{"$f":"IF(R1855>0,$G1848*((('1 Données d''entrée'!$C$332+1)^'1 Données d''entrée'!$C$333)-(1+'1 Données d''entrée'!$C$332)^('6 Financement'!Q$54-1-'1 Données d''entrée'!$C$334-$B1866))/((1+'1 Données d''entrée'!$C$332)^'1 Données d''entrée'!$C$333-1)*'1 Données d''entrée'!$C$332,0)","v":0},{"$f":"IF(S1855>0,$G1848*((('1 Données d''entrée'!$C$332+1)^'1 Données d''entrée'!$C$333)-(1+'1 Données d''entrée'!$C$332)^('6 Financement'!R$54-1-'1 Données d''entrée'!$C$334-$B1866))/((1+'1 Données d''entrée'!$C$332)^'1 Données d''entrée'!$C$333-1)*'1 Données d''entrée'!$C$332,0)","v":0},{"$f":"IF(T1855>0,$G1848*((('1 Données d''entrée'!$C$332+1)^'1 Données d''entrée'!$C$333)-(1+'1 Données d''entrée'!$C$332)^('6 Financement'!S$54-1-'1 Données d''entrée'!$C$334-$B1866))/((1+'1 Données d''entrée'!$C$332)^'1 Données d''entrée'!$C$333-1)*'1 Données d''entrée'!$C$332,0)","v":0},{"$f":"IF(U1855>0,$G1848*((('1 Données d''entrée'!$C$332+1)^'1 Données d''entrée'!$C$333)-(1+'1 Données d''entrée'!$C$332)^('6 Financement'!T$54-1-'1 Données d''entrée'!$C$334-$B1866))/((1+'1 Données d''entrée'!$C$332)^'1 Données d''entrée'!$C$333-1)*'1 Données d''entrée'!$C$332,0)","v":0},{"$f":"IF(V1855>0,$G1848*((('1 Données d''entrée'!$C$332+1)^'1 Données d''entrée'!$C$333)-(1+'1 Données d''entrée'!$C$332)^('6 Financement'!U$54-1-'1 Données d''entrée'!$C$334-$B1866))/((1+'1 Données d''entrée'!$C$332)^'1 Données d''entrée'!$C$333-1)*'1 Données d''entrée'!$C$332,0)","v":0}]
["Paiement d'intêrets",6,0,{"$f":"IF(D1856>0,$H1848*((('1 Données d''entrée'!$C$332+1)^'1 Données d''entrée'!$C$333)-(1+'1 Données d''entrée'!$C$332)^('6 Financement'!C$54-1-'1 Données d''entrée'!$C$334-$B1867))/((1+'1 Données d''entrée'!$C$332)^'1 Données d''entrée'!$C$333-1)*'1 Données d''entrée'!$C$332,0)","v":0},{"$f":"IF(E1856>0,$H1848*((('1 Données d''entrée'!$C$332+1)^'1 Données d''entrée'!$C$333)-(1+'1 Données d''entrée'!$C$332)^('6 Financement'!D$54-1-'1 Données d''entrée'!$C$334-$B1867))/((1+'1 Données d''entrée'!$C$332)^'1 Données d''entrée'!$C$333-1)*'1 Données d''entrée'!$C$332,0)","v":0},{"$f":"IF(F1856>0,$H1848*((('1 Données d''entrée'!$C$332+1)^'1 Données d''entrée'!$C$333)-(1+'1 Données d''entrée'!$C$332)^('6 Financement'!E$54-1-'1 Données d''entrée'!$C$334-$B1867))/((1+'1 Données d''entrée'!$C$332)^'1 Données d''entrée'!$C$333-1)*'1 Données d''entrée'!$C$332,0)","v":0},{"$f":"IF(G1856>0,$H1848*((('1 Données d''entrée'!$C$332+1)^'1 Données d''entrée'!$C$333)-(1+'1 Données d''entrée'!$C$332)^('6 Financement'!F$54-1-'1 Données d''entrée'!$C$334-$B1867))/((1+'1 Données d''entrée'!$C$332)^'1 Données d''entrée'!$C$333-1)*'1 Données d''entrée'!$C$332,0)","v":0},{"$f":"IF(H1856>0,$H1848*((('1 Données d''entrée'!$C$332+1)^'1 Données d''entrée'!$C$333)-(1+'1 Données d''entrée'!$C$332)^('6 Financement'!G$54-1-'1 Données d''entrée'!$C$334-$B1867))/((1+'1 Données d''entrée'!$C$332)^'1 Données d''entrée'!$C$333-1)*'1 Données d''entrée'!$C$332,0)","v":0},{"$f":"IF(I1856>0,$H1848*((('1 Données d''entrée'!$C$332+1)^'1 Données d''entrée'!$C$333)-(1+'1 Données d''entrée'!$C$332)^('6 Financement'!H$54-1-'1 Données d''entrée'!$C$334-$B1867))/((1+'1 Données d''entrée'!$C$332)^'1 Données d''entrée'!$C$333-1)*'1 Données d''entrée'!$C$332,0)","v":0},{"$f":"IF(J1856>0,$H1848*((('1 Données d''entrée'!$C$332+1)^'1 Données d''entrée'!$C$333)-(1+'1 Données d''entrée'!$C$332)^('6 Financement'!I$54-1-'1 Données d''entrée'!$C$334-$B1867))/((1+'1 Données d''entrée'!$C$332)^'1 Données d''entrée'!$C$333-1)*'1 Données d''entrée'!$C$332,0)","v":0},{"$f":"IF(K1856>0,$H1848*((('1 Données d''entrée'!$C$332+1)^'1 Données d''entrée'!$C$333)-(1+'1 Données d''entrée'!$C$332)^('6 Financement'!J$54-1-'1 Données d''entrée'!$C$334-$B1867))/((1+'1 Données d''entrée'!$C$332)^'1 Données d''entrée'!$C$333-1)*'1 Données d''entrée'!$C$332,0)","v":0},{"$f":"IF(L1856>0,$H1848*((('1 Données d''entrée'!$C$332+1)^'1 Données d''entrée'!$C$333)-(1+'1 Données d''entrée'!$C$332)^('6 Financement'!K$54-1-'1 Données d''entrée'!$C$334-$B1867))/((1+'1 Données d''entrée'!$C$332)^'1 Données d''entrée'!$C$333-1)*'1 Données d''entrée'!$C$332,0)","v":0},{"$f":"IF(M1856>0,$H1848*((('1 Données d''entrée'!$C$332+1)^'1 Données d''entrée'!$C$333)-(1+'1 Données d''entrée'!$C$332)^('6 Financement'!L$54-1-'1 Données d''entrée'!$C$334-$B1867))/((1+'1 Données d''entrée'!$C$332)^'1 Données d''entrée'!$C$333-1)*'1 Données d''entrée'!$C$332,0)","v":0},{"$f":"IF(N1856>0,$H1848*((('1 Données d''entrée'!$C$332+1)^'1 Données d''entrée'!$C$333)-(1+'1 Données d''entrée'!$C$332)^('6 Financement'!M$54-1-'1 Données d''entrée'!$C$334-$B1867))/((1+'1 Données d''entrée'!$C$332)^'1 Données d''entrée'!$C$333-1)*'1 Données d''entrée'!$C$332,0)","v":0},{"$f":"IF(O1856>0,$H1848*((('1 Données d''entrée'!$C$332+1)^'1 Données d''entrée'!$C$333)-(1+'1 Données d''entrée'!$C$332)^('6 Financement'!N$54-1-'1 Données d''entrée'!$C$334-$B1867))/((1+'1 Données d''entrée'!$C$332)^'1 Données d''entrée'!$C$333-1)*'1 Données d''entrée'!$C$332,0)","v":0},{"$f":"IF(P1856>0,$H1848*((('1 Données d''entrée'!$C$332+1)^'1 Données d''entrée'!$C$333)-(1+'1 Données d''entrée'!$C$332)^('6 Financement'!O$54-1-'1 Données d''entrée'!$C$334-$B1867))/((1+'1 Données d''entrée'!$C$332)^'1 Données d''entrée'!$C$333-1)*'1 Données d''entrée'!$C$332,0)","v":0},{"$f":"IF(Q1856>0,$H1848*((('1 Données d''entrée'!$C$332+1)^'1 Données d''entrée'!$C$333)-(1+'1 Données d''entrée'!$C$332)^('6 Financement'!P$54-1-'1 Données d''entrée'!$C$334-$B1867))/((1+'1 Données d''entrée'!$C$332)^'1 Données d''entrée'!$C$333-1)*'1 Données d''entrée'!$C$332,0)","v":0},{"$f":"IF(R1856>0,$H1848*((('1 Données d''entrée'!$C$332+1)^'1 Données d''entrée'!$C$333)-(1+'1 Données d''entrée'!$C$332)^('6 Financement'!Q$54-1-'1 Données d''entrée'!$C$334-$B1867))/((1+'1 Données d''entrée'!$C$332)^'1 Données d''entrée'!$C$333-1)*'1 Données d''entrée'!$C$332,0)","v":0},{"$f":"IF(S1856>0,$H1848*((('1 Données d''entrée'!$C$332+1)^'1 Données d''entrée'!$C$333)-(1+'1 Données d''entrée'!$C$332)^('6 Financement'!R$54-1-'1 Données d''entrée'!$C$334-$B1867))/((1+'1 Données d''entrée'!$C$332)^'1 Données d''entrée'!$C$333-1)*'1 Données d''entrée'!$C$332,0)","v":0},{"$f":"IF(T1856>0,$H1848*((('1 Données d''entrée'!$C$332+1)^'1 Données d''entrée'!$C$333)-(1+'1 Données d''entrée'!$C$332)^('6 Financement'!S$54-1-'1 Données d''entrée'!$C$334-$B1867))/((1+'1 Données d''entrée'!$C$332)^'1 Données d''entrée'!$C$333-1)*'1 Données d''entrée'!$C$332,0)","v":0},{"$f":"IF(U1856>0,$H1848*((('1 Données d''entrée'!$C$332+1)^'1 Données d''entrée'!$C$333)-(1+'1 Données d''entrée'!$C$332)^('6 Financement'!T$54-1-'1 Données d''entrée'!$C$334-$B1867))/((1+'1 Données d''entrée'!$C$332)^'1 Données d''entrée'!$C$333-1)*'1 Données d''entrée'!$C$332,0)","v":0},{"$f":"IF(V1856>0,$H1848*((('1 Données d''entrée'!$C$332+1)^'1 Données d''entrée'!$C$333)-(1+'1 Données d''entrée'!$C$332)^('6 Financement'!U$54-1-'1 Données d''entrée'!$C$334-$B1867))/((1+'1 Données d''entrée'!$C$332)^'1 Données d''entrée'!$C$333-1)*'1 Données d''entrée'!$C$332,0)","v":0}]
["Paiement d'intêrets",7,0,{"$f":"IF(D1857>0,$I1848*((('1 Données d''entrée'!$C$332+1)^'1 Données d''entrée'!$C$333)-(1+'1 Données d''entrée'!$C$332)^('6 Financement'!C$54-1-'1 Données d''entrée'!$C$334-$B1868))/((1+'1 Données d''entrée'!$C$332)^'1 Données d''entrée'!$C$333-1)*'1 Données d''entrée'!$C$332,0)","v":0},{"$f":"IF(E1857>0,$I1848*((('1 Données d''entrée'!$C$332+1)^'1 Données d''entrée'!$C$333)-(1+'1 Données d''entrée'!$C$332)^('6 Financement'!D$54-1-'1 Données d''entrée'!$C$334-$B1868))/((1+'1 Données d''entrée'!$C$332)^'1 Données d''entrée'!$C$333-1)*'1 Données d''entrée'!$C$332,0)","v":0},{"$f":"IF(F1857>0,$I1848*((('1 Données d''entrée'!$C$332+1)^'1 Données d''entrée'!$C$333)-(1+'1 Données d''entrée'!$C$332)^('6 Financement'!E$54-1-'1 Données d''entrée'!$C$334-$B1868))/((1+'1 Données d''entrée'!$C$332)^'1 Données d''entrée'!$C$333-1)*'1 Données d''entrée'!$C$332,0)","v":0},{"$f":"IF(G1857>0,$I1848*((('1 Données d''entrée'!$C$332+1)^'1 Données d''entrée'!$C$333)-(1+'1 Données d''entrée'!$C$332)^('6 Financement'!F$54-1-'1 Données d''entrée'!$C$334-$B1868))/((1+'1 Données d''entrée'!$C$332)^'1 Données d''entrée'!$C$333-1)*'1 Données d''entrée'!$C$332,0)","v":0},{"$f":"IF(H1857>0,$I1848*((('1 Données d''entrée'!$C$332+1)^'1 Données d''entrée'!$C$333)-(1+'1 Données d''entrée'!$C$332)^('6 Financement'!G$54-1-'1 Données d''entrée'!$C$334-$B1868))/((1+'1 Données d''entrée'!$C$332)^'1 Données d''entrée'!$C$333-1)*'1 Données d''entrée'!$C$332,0)","v":0},{"$f":"IF(I1857>0,$I1848*((('1 Données d''entrée'!$C$332+1)^'1 Données d''entrée'!$C$333)-(1+'1 Données d''entrée'!$C$332)^('6 Financement'!H$54-1-'1 Données d''entrée'!$C$334-$B1868))/((1+'1 Données d''entrée'!$C$332)^'1 Données d''entrée'!$C$333-1)*'1 Données d''entrée'!$C$332,0)","v":0},{"$f":"IF(J1857>0,$I1848*((('1 Données d''entrée'!$C$332+1)^'1 Données d''entrée'!$C$333)-(1+'1 Données d''entrée'!$C$332)^('6 Financement'!I$54-1-'1 Données d''entrée'!$C$334-$B1868))/((1+'1 Données d''entrée'!$C$332)^'1 Données d''entrée'!$C$333-1)*'1 Données d''entrée'!$C$332,0)","v":0},{"$f":"IF(K1857>0,$I1848*((('1 Données d''entrée'!$C$332+1)^'1 Données d''entrée'!$C$333)-(1+'1 Données d''entrée'!$C$332)^('6 Financement'!J$54-1-'1 Données d''entrée'!$C$334-$B1868))/((1+'1 Données d''entrée'!$C$332)^'1 Données d''entrée'!$C$333-1)*'1 Données d''entrée'!$C$332,0)","v":0},{"$f":"IF(L1857>0,$I1848*((('1 Données d''entrée'!$C$332+1)^'1 Données d''entrée'!$C$333)-(1+'1 Données d''entrée'!$C$332)^('6 Financement'!K$54-1-'1 Données d''entrée'!$C$334-$B1868))/((1+'1 Données d''entrée'!$C$332)^'1 Données d''entrée'!$C$333-1)*'1 Données d''entrée'!$C$332,0)","v":0},{"$f":"IF(M1857>0,$I1848*((('1 Données d''entrée'!$C$332+1)^'1 Données d''entrée'!$C$333)-(1+'1 Données d''entrée'!$C$332)^('6 Financement'!L$54-1-'1 Données d''entrée'!$C$334-$B1868))/((1+'1 Données d''entrée'!$C$332)^'1 Données d''entrée'!$C$333-1)*'1 Données d''entrée'!$C$332,0)","v":0},{"$f":"IF(N1857>0,$I1848*((('1 Données d''entrée'!$C$332+1)^'1 Données d''entrée'!$C$333)-(1+'1 Données d''entrée'!$C$332)^('6 Financement'!M$54-1-'1 Données d''entrée'!$C$334-$B1868))/((1+'1 Données d''entrée'!$C$332)^'1 Données d''entrée'!$C$333-1)*'1 Données d''entrée'!$C$332,0)","v":0},{"$f":"IF(O1857>0,$I1848*((('1 Données d''entrée'!$C$332+1)^'1 Données d''entrée'!$C$333)-(1+'1 Données d''entrée'!$C$332)^('6 Financement'!N$54-1-'1 Données d''entrée'!$C$334-$B1868))/((1+'1 Données d''entrée'!$C$332)^'1 Données d''entrée'!$C$333-1)*'1 Données d''entrée'!$C$332,0)","v":0},{"$f":"IF(P1857>0,$I1848*((('1 Données d''entrée'!$C$332+1)^'1 Données d''entrée'!$C$333)-(1+'1 Données d''entrée'!$C$332)^('6 Financement'!O$54-1-'1 Données d''entrée'!$C$334-$B1868))/((1+'1 Données d''entrée'!$C$332)^'1 Données d''entrée'!$C$333-1)*'1 Données d''entrée'!$C$332,0)","v":0},{"$f":"IF(Q1857>0,$I1848*((('1 Données d''entrée'!$C$332+1)^'1 Données d''entrée'!$C$333)-(1+'1 Données d''entrée'!$C$332)^('6 Financement'!P$54-1-'1 Données d''entrée'!$C$334-$B1868))/((1+'1 Données d''entrée'!$C$332)^'1 Données d''entrée'!$C$333-1)*'1 Données d''entrée'!$C$332,0)","v":0},{"$f":"IF(R1857>0,$I1848*((('1 Données d''entrée'!$C$332+1)^'1 Données d''entrée'!$C$333)-(1+'1 Données d''entrée'!$C$332)^('6 Financement'!Q$54-1-'1 Données d''entrée'!$C$334-$B1868))/((1+'1 Données d''entrée'!$C$332)^'1 Données d''entrée'!$C$333-1)*'1 Données d''entrée'!$C$332,0)","v":0},{"$f":"IF(S1857>0,$I1848*((('1 Données d''entrée'!$C$332+1)^'1 Données d''entrée'!$C$333)-(1+'1 Données d''entrée'!$C$332)^('6 Financement'!R$54-1-'1 Données d''entrée'!$C$334-$B1868))/((1+'1 Données d''entrée'!$C$332)^'1 Données d''entrée'!$C$333-1)*'1 Données d''entrée'!$C$332,0)","v":0},{"$f":"IF(T1857>0,$I1848*((('1 Données d''entrée'!$C$332+1)^'1 Données d''entrée'!$C$333)-(1+'1 Données d''entrée'!$C$332)^('6 Financement'!S$54-1-'1 Données d''entrée'!$C$334-$B1868))/((1+'1 Données d''entrée'!$C$332)^'1 Données d''entrée'!$C$333-1)*'1 Données d''entrée'!$C$332,0)","v":0},{"$f":"IF(U1857>0,$I1848*((('1 Données d''entrée'!$C$332+1)^'1 Données d''entrée'!$C$333)-(1+'1 Données d''entrée'!$C$332)^('6 Financement'!T$54-1-'1 Données d''entrée'!$C$334-$B1868))/((1+'1 Données d''entrée'!$C$332)^'1 Données d''entrée'!$C$333-1)*'1 Données d''entrée'!$C$332,0)","v":0},{"$f":"IF(V1857>0,$I1848*((('1 Données d''entrée'!$C$332+1)^'1 Données d''entrée'!$C$333)-(1+'1 Données d''entrée'!$C$332)^('6 Financement'!U$54-1-'1 Données d''entrée'!$C$334-$B1868))/((1+'1 Données d''entrée'!$C$332)^'1 Données d''entrée'!$C$333-1)*'1 Données d''entrée'!$C$332,0)","v":0}]
["Paiement d'intêrets",8,0,{"$f":"IF(D1858>0,$J1848*((('1 Données d''entrée'!$C$332+1)^'1 Données d''entrée'!$C$333)-(1+'1 Données d''entrée'!$C$332)^('6 Financement'!C$54-1-'1 Données d''entrée'!$C$334-$B1869))/((1+'1 Données d''entrée'!$C$332)^'1 Données d''entrée'!$C$333-1)*'1 Données d''entrée'!$C$332,0)","v":0},{"$f":"IF(E1858>0,$J1848*((('1 Données d''entrée'!$C$332+1)^'1 Données d''entrée'!$C$333)-(1+'1 Données d''entrée'!$C$332)^('6 Financement'!D$54-1-'1 Données d''entrée'!$C$334-$B1869))/((1+'1 Données d''entrée'!$C$332)^'1 Données d''entrée'!$C$333-1)*'1 Données d''entrée'!$C$332,0)","v":0},{"$f":"IF(F1858>0,$J1848*((('1 Données d''entrée'!$C$332+1)^'1 Données d''entrée'!$C$333)-(1+'1 Données d''entrée'!$C$332)^('6 Financement'!E$54-1-'1 Données d''entrée'!$C$334-$B1869))/((1+'1 Données d''entrée'!$C$332)^'1 Données d''entrée'!$C$333-1)*'1 Données d''entrée'!$C$332,0)","v":0},{"$f":"IF(G1858>0,$J1848*((('1 Données d''entrée'!$C$332+1)^'1 Données d''entrée'!$C$333)-(1+'1 Données d''entrée'!$C$332)^('6 Financement'!F$54-1-'1 Données d''entrée'!$C$334-$B1869))/((1+'1 Données d''entrée'!$C$332)^'1 Données d''entrée'!$C$333-1)*'1 Données d''entrée'!$C$332,0)","v":0},{"$f":"IF(H1858>0,$J1848*((('1 Données d''entrée'!$C$332+1)^'1 Données d''entrée'!$C$333)-(1+'1 Données d''entrée'!$C$332)^('6 Financement'!G$54-1-'1 Données d''entrée'!$C$334-$B1869))/((1+'1 Données d''entrée'!$C$332)^'1 Données d''entrée'!$C$333-1)*'1 Données d''entrée'!$C$332,0)","v":0},{"$f":"IF(I1858>0,$J1848*((('1 Données d''entrée'!$C$332+1)^'1 Données d''entrée'!$C$333)-(1+'1 Données d''entrée'!$C$332)^('6 Financement'!H$54-1-'1 Données d''entrée'!$C$334-$B1869))/((1+'1 Données d''entrée'!$C$332)^'1 Données d''entrée'!$C$333-1)*'1 Données d''entrée'!$C$332,0)","v":0},{"$f":"IF(J1858>0,$J1848*((('1 Données d''entrée'!$C$332+1)^'1 Données d''entrée'!$C$333)-(1+'1 Données d''entrée'!$C$332)^('6 Financement'!I$54-1-'1 Données d''entrée'!$C$334-$B1869))/((1+'1 Données d''entrée'!$C$332)^'1 Données d''entrée'!$C$333-1)*'1 Données d''entrée'!$C$332,0)","v":0},{"$f":"IF(K1858>0,$J1848*((('1 Données d''entrée'!$C$332+1)^'1 Données d''entrée'!$C$333)-(1+'1 Données d''entrée'!$C$332)^('6 Financement'!J$54-1-'1 Données d''entrée'!$C$334-$B1869))/((1+'1 Données d''entrée'!$C$332)^'1 Données d''entrée'!$C$333-1)*'1 Données d''entrée'!$C$332,0)","v":0},{"$f":"IF(L1858>0,$J1848*((('1 Données d''entrée'!$C$332+1)^'1 Données d''entrée'!$C$333)-(1+'1 Données d''entrée'!$C$332)^('6 Financement'!K$54-1-'1 Données d''entrée'!$C$334-$B1869))/((1+'1 Données d''entrée'!$C$332)^'1 Données d''entrée'!$C$333-1)*'1 Données d''entrée'!$C$332,0)","v":0},{"$f":"IF(M1858>0,$J1848*((('1 Données d''entrée'!$C$332+1)^'1 Données d''entrée'!$C$333)-(1+'1 Données d''entrée'!$C$332)^('6 Financement'!L$54-1-'1 Données d''entrée'!$C$334-$B1869))/((1+'1 Données d''entrée'!$C$332)^'1 Données d''entrée'!$C$333-1)*'1 Données d''entrée'!$C$332,0)","v":0},{"$f":"IF(N1858>0,$J1848*((('1 Données d''entrée'!$C$332+1)^'1 Données d''entrée'!$C$333)-(1+'1 Données d''entrée'!$C$332)^('6 Financement'!M$54-1-'1 Données d''entrée'!$C$334-$B1869))/((1+'1 Données d''entrée'!$C$332)^'1 Données d''entrée'!$C$333-1)*'1 Données d''entrée'!$C$332,0)","v":0},{"$f":"IF(O1858>0,$J1848*((('1 Données d''entrée'!$C$332+1)^'1 Données d''entrée'!$C$333)-(1+'1 Données d''entrée'!$C$332)^('6 Financement'!N$54-1-'1 Données d''entrée'!$C$334-$B1869))/((1+'1 Données d''entrée'!$C$332)^'1 Données d''entrée'!$C$333-1)*'1 Données d''entrée'!$C$332,0)","v":0},{"$f":"IF(P1858>0,$J1848*((('1 Données d''entrée'!$C$332+1)^'1 Données d''entrée'!$C$333)-(1+'1 Données d''entrée'!$C$332)^('6 Financement'!O$54-1-'1 Données d''entrée'!$C$334-$B1869))/((1+'1 Données d''entrée'!$C$332)^'1 Données d''entrée'!$C$333-1)*'1 Données d''entrée'!$C$332,0)","v":0},{"$f":"IF(Q1858>0,$J1848*((('1 Données d''entrée'!$C$332+1)^'1 Données d''entrée'!$C$333)-(1+'1 Données d''entrée'!$C$332)^('6 Financement'!P$54-1-'1 Données d''entrée'!$C$334-$B1869))/((1+'1 Données d''entrée'!$C$332)^'1 Données d''entrée'!$C$333-1)*'1 Données d''entrée'!$C$332,0)","v":0},{"$f":"IF(R1858>0,$J1848*((('1 Données d''entrée'!$C$332+1)^'1 Données d''entrée'!$C$333)-(1+'1 Données d''entrée'!$C$332)^('6 Financement'!Q$54-1-'1 Données d''entrée'!$C$334-$B1869))/((1+'1 Données d''entrée'!$C$332)^'1 Données d''entrée'!$C$333-1)*'1 Données d''entrée'!$C$332,0)","v":0},{"$f":"IF(S1858>0,$J1848*((('1 Données d''entrée'!$C$332+1)^'1 Données d''entrée'!$C$333)-(1+'1 Données d''entrée'!$C$332)^('6 Financement'!R$54-1-'1 Données d''entrée'!$C$334-$B1869))/((1+'1 Données d''entrée'!$C$332)^'1 Données d''entrée'!$C$333-1)*'1 Données d''entrée'!$C$332,0)","v":0},{"$f":"IF(T1858>0,$J1848*((('1 Données d''entrée'!$C$332+1)^'1 Données d''entrée'!$C$333)-(1+'1 Données d''entrée'!$C$332)^('6 Financement'!S$54-1-'1 Données d''entrée'!$C$334-$B1869))/((1+'1 Données d''entrée'!$C$332)^'1 Données d''entrée'!$C$333-1)*'1 Données d''entrée'!$C$332,0)","v":0},{"$f":"IF(U1858>0,$J1848*((('1 Données d''entrée'!$C$332+1)^'1 Données d''entrée'!$C$333)-(1+'1 Données d''entrée'!$C$332)^('6 Financement'!T$54-1-'1 Données d''entrée'!$C$334-$B1869))/((1+'1 Données d''entrée'!$C$332)^'1 Données d''entrée'!$C$333-1)*'1 Données d''entrée'!$C$332,0)","v":0},{"$f":"IF(V1858>0,$J1848*((('1 Données d''entrée'!$C$332+1)^'1 Données d''entrée'!$C$333)-(1+'1 Données d''entrée'!$C$332)^('6 Financement'!U$54-1-'1 Données d''entrée'!$C$334-$B1869))/((1+'1 Données d''entrée'!$C$332)^'1 Données d''entrée'!$C$333-1)*'1 Données d''entrée'!$C$332,0)","v":0}]
["Paiement d'intêrets",9,0,{"$f":"IF(D1859>0,$K1848*((('1 Données d''entrée'!$C$332+1)^'1 Données d''entrée'!$C$333)-(1+'1 Données d''entrée'!$C$332)^('6 Financement'!C$54-1-'1 Données d''entrée'!$C$334-$B1870))/((1+'1 Données d''entrée'!$C$332)^'1 Données d''entrée'!$C$333-1)*'1 Données d''entrée'!$C$332,0)","v":0},{"$f":"IF(E1859>0,$K1848*((('1 Données d''entrée'!$C$332+1)^'1 Données d''entrée'!$C$333)-(1+'1 Données d''entrée'!$C$332)^('6 Financement'!D$54-1-'1 Données d''entrée'!$C$334-$B1870))/((1+'1 Données d''entrée'!$C$332)^'1 Données d''entrée'!$C$333-1)*'1 Données d''entrée'!$C$332,0)","v":0},{"$f":"IF(F1859>0,$K1848*((('1 Données d''entrée'!$C$332+1)^'1 Données d''entrée'!$C$333)-(1+'1 Données d''entrée'!$C$332)^('6 Financement'!E$54-1-'1 Données d''entrée'!$C$334-$B1870))/((1+'1 Données d''entrée'!$C$332)^'1 Données d''entrée'!$C$333-1)*'1 Données d''entrée'!$C$332,0)","v":0},{"$f":"IF(G1859>0,$K1848*((('1 Données d''entrée'!$C$332+1)^'1 Données d''entrée'!$C$333)-(1+'1 Données d''entrée'!$C$332)^('6 Financement'!F$54-1-'1 Données d''entrée'!$C$334-$B1870))/((1+'1 Données d''entrée'!$C$332)^'1 Données d''entrée'!$C$333-1)*'1 Données d''entrée'!$C$332,0)","v":0},{"$f":"IF(H1859>0,$K1848*((('1 Données d''entrée'!$C$332+1)^'1 Données d''entrée'!$C$333)-(1+'1 Données d''entrée'!$C$332)^('6 Financement'!G$54-1-'1 Données d''entrée'!$C$334-$B1870))/((1+'1 Données d''entrée'!$C$332)^'1 Données d''entrée'!$C$333-1)*'1 Données d''entrée'!$C$332,0)","v":0},{"$f":"IF(I1859>0,$K1848*((('1 Données d''entrée'!$C$332+1)^'1 Données d''entrée'!$C$333)-(1+'1 Données d''entrée'!$C$332)^('6 Financement'!H$54-1-'1 Données d''entrée'!$C$334-$B1870))/((1+'1 Données d''entrée'!$C$332)^'1 Données d''entrée'!$C$333-1)*'1 Données d''entrée'!$C$332,0)","v":0},{"$f":"IF(J1859>0,$K1848*((('1 Données d''entrée'!$C$332+1)^'1 Données d''entrée'!$C$333)-(1+'1 Données d''entrée'!$C$332)^('6 Financement'!I$54-1-'1 Données d''entrée'!$C$334-$B1870))/((1+'1 Données d''entrée'!$C$332)^'1 Données d''entrée'!$C$333-1)*'1 Données d''entrée'!$C$332,0)","v":0},{"$f":"IF(K1859>0,$K1848*((('1 Données d''entrée'!$C$332+1)^'1 Données d''entrée'!$C$333)-(1+'1 Données d''entrée'!$C$332)^('6 Financement'!J$54-1-'1 Données d''entrée'!$C$334-$B1870))/((1+'1 Données d''entrée'!$C$332)^'1 Données d''entrée'!$C$333-1)*'1 Données d''entrée'!$C$332,0)","v":0},{"$f":"IF(L1859>0,$K1848*((('1 Données d''entrée'!$C$332+1)^'1 Données d''entrée'!$C$333)-(1+'1 Données d''entrée'!$C$332)^('6 Financement'!K$54-1-'1 Données d''entrée'!$C$334-$B1870))/((1+'1 Données d''entrée'!$C$332)^'1 Données d''entrée'!$C$333-1)*'1 Données d''entrée'!$C$332,0)","v":0},{"$f":"IF(M1859>0,$K1848*((('1 Données d''entrée'!$C$332+1)^'1 Données d''entrée'!$C$333)-(1+'1 Données d''entrée'!$C$332)^('6 Financement'!L$54-1-'1 Données d''entrée'!$C$334-$B1870))/((1+'1 Données d''entrée'!$C$332)^'1 Données d''entrée'!$C$333-1)*'1 Données d''entrée'!$C$332,0)","v":0},{"$f":"IF(N1859>0,$K1848*((('1 Données d''entrée'!$C$332+1)^'1 Données d''entrée'!$C$333)-(1+'1 Données d''entrée'!$C$332)^('6 Financement'!M$54-1-'1 Données d''entrée'!$C$334-$B1870))/((1+'1 Données d''entrée'!$C$332)^'1 Données d''entrée'!$C$333-1)*'1 Données d''entrée'!$C$332,0)","v":0},{"$f":"IF(O1859>0,$K1848*((('1 Données d''entrée'!$C$332+1)^'1 Données d''entrée'!$C$333)-(1+'1 Données d''entrée'!$C$332)^('6 Financement'!N$54-1-'1 Données d''entrée'!$C$334-$B1870))/((1+'1 Données d''entrée'!$C$332)^'1 Données d''entrée'!$C$333-1)*'1 Données d''entrée'!$C$332,0)","v":0},{"$f":"IF(P1859>0,$K1848*((('1 Données d''entrée'!$C$332+1)^'1 Données d''entrée'!$C$333)-(1+'1 Données d''entrée'!$C$332)^('6 Financement'!O$54-1-'1 Données d''entrée'!$C$334-$B1870))/((1+'1 Données d''entrée'!$C$332)^'1 Données d''entrée'!$C$333-1)*'1 Données d''entrée'!$C$332,0)","v":0},{"$f":"IF(Q1859>0,$K1848*((('1 Données d''entrée'!$C$332+1)^'1 Données d''entrée'!$C$333)-(1+'1 Données d''entrée'!$C$332)^('6 Financement'!P$54-1-'1 Données d''entrée'!$C$334-$B1870))/((1+'1 Données d''entrée'!$C$332)^'1 Données d''entrée'!$C$333-1)*'1 Données d''entrée'!$C$332,0)","v":0},{"$f":"IF(R1859>0,$K1848*((('1 Données d''entrée'!$C$332+1)^'1 Données d''entrée'!$C$333)-(1+'1 Données d''entrée'!$C$332)^('6 Financement'!Q$54-1-'1 Données d''entrée'!$C$334-$B1870))/((1+'1 Données d''entrée'!$C$332)^'1 Données d''entrée'!$C$333-1)*'1 Données d''entrée'!$C$332,0)","v":0},{"$f":"IF(S1859>0,$K1848*((('1 Données d''entrée'!$C$332+1)^'1 Données d''entrée'!$C$333)-(1+'1 Données d''entrée'!$C$332)^('6 Financement'!R$54-1-'1 Données d''entrée'!$C$334-$B1870))/((1+'1 Données d''entrée'!$C$332)^'1 Données d''entrée'!$C$333-1)*'1 Données d''entrée'!$C$332,0)","v":0},{"$f":"IF(T1859>0,$K1848*((('1 Données d''entrée'!$C$332+1)^'1 Données d''entrée'!$C$333)-(1+'1 Données d''entrée'!$C$332)^('6 Financement'!S$54-1-'1 Données d''entrée'!$C$334-$B1870))/((1+'1 Données d''entrée'!$C$332)^'1 Données d''entrée'!$C$333-1)*'1 Données d''entrée'!$C$332,0)","v":0},{"$f":"IF(U1859>0,$K1848*((('1 Données d''entrée'!$C$332+1)^'1 Données d''entrée'!$C$333)-(1+'1 Données d''entrée'!$C$332)^('6 Financement'!T$54-1-'1 Données d''entrée'!$C$334-$B1870))/((1+'1 Données d''entrée'!$C$332)^'1 Données d''entrée'!$C$333-1)*'1 Données d''entrée'!$C$332,0)","v":0},{"$f":"IF(V1859>0,$K1848*((('1 Données d''entrée'!$C$332+1)^'1 Données d''entrée'!$C$333)-(1+'1 Données d''entrée'!$C$332)^('6 Financement'!U$54-1-'1 Données d''entrée'!$C$334-$B1870))/((1+'1 Données d''entrée'!$C$332)^'1 Données d''entrée'!$C$333-1)*'1 Données d''entrée'!$C$332,0)","v":0}]
["Paiement d'intêrets",10,0,{"$f":"IF(D1860>0,$L1848*((('1 Données d''entrée'!$C$332+1)^'1 Données d''entrée'!$C$333)-(1+'1 Données d''entrée'!$C$332)^('6 Financement'!C$54-1-'1 Données d''entrée'!$C$334-$B1871))/((1+'1 Données d''entrée'!$C$332)^'1 Données d''entrée'!$C$333-1)*'1 Données d''entrée'!$C$332,0)","v":0},{"$f":"IF(E1860>0,$L1848*((('1 Données d''entrée'!$C$332+1)^'1 Données d''entrée'!$C$333)-(1+'1 Données d''entrée'!$C$332)^('6 Financement'!D$54-1-'1 Données d''entrée'!$C$334-$B1871))/((1+'1 Données d''entrée'!$C$332)^'1 Données d''entrée'!$C$333-1)*'1 Données d''entrée'!$C$332,0)","v":0},{"$f":"IF(F1860>0,$L1848*((('1 Données d''entrée'!$C$332+1)^'1 Données d''entrée'!$C$333)-(1+'1 Données d''entrée'!$C$332)^('6 Financement'!E$54-1-'1 Données d''entrée'!$C$334-$B1871))/((1+'1 Données d''entrée'!$C$332)^'1 Données d''entrée'!$C$333-1)*'1 Données d''entrée'!$C$332,0)","v":0},{"$f":"IF(G1860>0,$L1848*((('1 Données d''entrée'!$C$332+1)^'1 Données d''entrée'!$C$333)-(1+'1 Données d''entrée'!$C$332)^('6 Financement'!F$54-1-'1 Données d''entrée'!$C$334-$B1871))/((1+'1 Données d''entrée'!$C$332)^'1 Données d''entrée'!$C$333-1)*'1 Données d''entrée'!$C$332,0)","v":0},{"$f":"IF(H1860>0,$L1848*((('1 Données d''entrée'!$C$332+1)^'1 Données d''entrée'!$C$333)-(1+'1 Données d''entrée'!$C$332)^('6 Financement'!G$54-1-'1 Données d''entrée'!$C$334-$B1871))/((1+'1 Données d''entrée'!$C$332)^'1 Données d''entrée'!$C$333-1)*'1 Données d''entrée'!$C$332,0)","v":0},{"$f":"IF(I1860>0,$L1848*((('1 Données d''entrée'!$C$332+1)^'1 Données d''entrée'!$C$333)-(1+'1 Données d''entrée'!$C$332)^('6 Financement'!H$54-1-'1 Données d''entrée'!$C$334-$B1871))/((1+'1 Données d''entrée'!$C$332)^'1 Données d''entrée'!$C$333-1)*'1 Données d''entrée'!$C$332,0)","v":0},{"$f":"IF(J1860>0,$L1848*((('1 Données d''entrée'!$C$332+1)^'1 Données d''entrée'!$C$333)-(1+'1 Données d''entrée'!$C$332)^('6 Financement'!I$54-1-'1 Données d''entrée'!$C$334-$B1871))/((1+'1 Données d''entrée'!$C$332)^'1 Données d''entrée'!$C$333-1)*'1 Données d''entrée'!$C$332,0)","v":0},{"$f":"IF(K1860>0,$L1848*((('1 Données d''entrée'!$C$332+1)^'1 Données d''entrée'!$C$333)-(1+'1 Données d''entrée'!$C$332)^('6 Financement'!J$54-1-'1 Données d''entrée'!$C$334-$B1871))/((1+'1 Données d''entrée'!$C$332)^'1 Données d''entrée'!$C$333-1)*'1 Données d''entrée'!$C$332,0)","v":0},{"$f":"IF(L1860>0,$L1848*((('1 Données d''entrée'!$C$332+1)^'1 Données d''entrée'!$C$333)-(1+'1 Données d''entrée'!$C$332)^('6 Financement'!K$54-1-'1 Données d''entrée'!$C$334-$B1871))/((1+'1 Données d''entrée'!$C$332)^'1 Données d''entrée'!$C$333-1)*'1 Données d''entrée'!$C$332,0)","v":0},{"$f":"IF(M1860>0,$L1848*((('1 Données d''entrée'!$C$332+1)^'1 Données d''entrée'!$C$333)-(1+'1 Données d''entrée'!$C$332)^('6 Financement'!L$54-1-'1 Données d''entrée'!$C$334-$B1871))/((1+'1 Données d''entrée'!$C$332)^'1 Données d''entrée'!$C$333-1)*'1 Données d''entrée'!$C$332,0)","v":0},{"$f":"IF(N1860>0,$L1848*((('1 Données d''entrée'!$C$332+1)^'1 Données d''entrée'!$C$333)-(1+'1 Données d''entrée'!$C$332)^('6 Financement'!M$54-1-'1 Données d''entrée'!$C$334-$B1871))/((1+'1 Données d''entrée'!$C$332)^'1 Données d''entrée'!$C$333-1)*'1 Données d''entrée'!$C$332,0)","v":0},{"$f":"IF(O1860>0,$L1848*((('1 Données d''entrée'!$C$332+1)^'1 Données d''entrée'!$C$333)-(1+'1 Données d''entrée'!$C$332)^('6 Financement'!N$54-1-'1 Données d''entrée'!$C$334-$B1871))/((1+'1 Données d''entrée'!$C$332)^'1 Données d''entrée'!$C$333-1)*'1 Données d''entrée'!$C$332,0)","v":0},{"$f":"IF(P1860>0,$L1848*((('1 Données d''entrée'!$C$332+1)^'1 Données d''entrée'!$C$333)-(1+'1 Données d''entrée'!$C$332)^('6 Financement'!O$54-1-'1 Données d''entrée'!$C$334-$B1871))/((1+'1 Données d''entrée'!$C$332)^'1 Données d''entrée'!$C$333-1)*'1 Données d''entrée'!$C$332,0)","v":0},{"$f":"IF(Q1860>0,$L1848*((('1 Données d''entrée'!$C$332+1)^'1 Données d''entrée'!$C$333)-(1+'1 Données d''entrée'!$C$332)^('6 Financement'!P$54-1-'1 Données d''entrée'!$C$334-$B1871))/((1+'1 Données d''entrée'!$C$332)^'1 Données d''entrée'!$C$333-1)*'1 Données d''entrée'!$C$332,0)","v":0},{"$f":"IF(R1860>0,$L1848*((('1 Données d''entrée'!$C$332+1)^'1 Données d''entrée'!$C$333)-(1+'1 Données d''entrée'!$C$332)^('6 Financement'!Q$54-1-'1 Données d''entrée'!$C$334-$B1871))/((1+'1 Données d''entrée'!$C$332)^'1 Données d''entrée'!$C$333-1)*'1 Données d''entrée'!$C$332,0)","v":0},{"$f":"IF(S1860>0,$L1848*((('1 Données d''entrée'!$C$332+1)^'1 Données d''entrée'!$C$333)-(1+'1 Données d''entrée'!$C$332)^('6 Financement'!R$54-1-'1 Données d''entrée'!$C$334-$B1871))/((1+'1 Données d''entrée'!$C$332)^'1 Données d''entrée'!$C$333-1)*'1 Données d''entrée'!$C$332,0)","v":0},{"$f":"IF(T1860>0,$L1848*((('1 Données d''entrée'!$C$332+1)^'1 Données d''entrée'!$C$333)-(1+'1 Données d''entrée'!$C$332)^('6 Financement'!S$54-1-'1 Données d''entrée'!$C$334-$B1871))/((1+'1 Données d''entrée'!$C$332)^'1 Données d''entrée'!$C$333-1)*'1 Données d''entrée'!$C$332,0)","v":0},{"$f":"IF(U1860>0,$L1848*((('1 Données d''entrée'!$C$332+1)^'1 Données d''entrée'!$C$333)-(1+'1 Données d''entrée'!$C$332)^('6 Financement'!T$54-1-'1 Données d''entrée'!$C$334-$B1871))/((1+'1 Données d''entrée'!$C$332)^'1 Données d''entrée'!$C$333-1)*'1 Données d''entrée'!$C$332,0)","v":0},{"$f":"IF(V1860>0,$L1848*((('1 Données d''entrée'!$C$332+1)^'1 Données d''entrée'!$C$333)-(1+'1 Données d''entrée'!$C$332)^('6 Financement'!U$54-1-'1 Données d''entrée'!$C$334-$B1871))/((1+'1 Données d''entrée'!$C$332)^'1 Données d''entrée'!$C$333-1)*'1 Données d''entrée'!$C$332,0)","v":0}]
[]
["Solde du comte (par période)",null,{"$f":"C1784+IF($B$103>0,C1792-SUM(C1794:C1804)-SUM(C1806:C1816),0)+IF($B$131>0,C1820-SUM(C1822:C1832)-SUM(C1834:C1844),0)+IF($B$159>0,C1848-SUM(C1850:C1860),0)","v":{"$error":"#DIV/0!"}},{"$f":"D1784+IF($B$103>0,D1792-SUM(D1794:D1804)-SUM(D1806:D1816),0)+IF($B$131>0,D1820-SUM(D1822:D1832)-SUM(D1834:D1844),0)+IF($B$159>0,D1848-SUM(D1850:D1860),0)","v":{"$error":"#DIV/0!"}},{"$error":"#DIV/0!"},{"$error":"#DIV/0!"},{"$error":"#DIV/0!"},{"$error":"#DIV/0!"},{"$error":"#DIV/0!"},{"$error":"#DIV/0!"},{"$error":"#DIV/0!"},{"$error":"#DIV/0!"},{"$error":"#DIV/0!"},{"$error":"#DIV/0!"},{"$error":"#DIV/0!"},{"$error":"#DIV/0!"},{"$error":"#DIV/0!"},{"$error":"#DIV/0!"},{"$error":"#DIV/0!"},{"$error":"#DIV/0!"},{"$error":"#DIV/0!"},{"$error":"#DIV/0!"}]
["Solde du compte (cumulé)",null,{"$f":"C1874+B1785","v":{"$error":"#DIV/0!"}},{"$f":"C1875+D1874","v":{"$error":"#DIV/0!"}},{"$error":"#DIV/0!"},{"$error":"#DIV/0!"},{"$error":"#DIV/0!"},{"$error":"#DIV/0!"},{"$error":"#DIV/0!"},{"$error":"#DIV/0!"},{"$error":"#DIV/0!"},{"$error":"#DIV/0!"},{"$error":"#DIV/0!"},{"$error":"#DIV/0!"},{"$error":"#DIV/0!"},{"$error":"#DIV/0!"},{"$error":"#DIV/0!"},{"$error":"#DIV/0!"},{"$error":"#DIV/0!"},{"$error":"#DIV/0!"},{"$error":"#DIV/0!"},{"$error":"#DIV/0!"}]
[]
[]
["Coût du financement","Période",1,2,3,4,5,6,7,8,9,10,11,12,13,14,15,16,17,18,19,20]
["Paiement d'intérêt par période",null,{"$f":"IF($B1750>0,(C1753+C1754),0)+IF($B1755>0,(C1758+C1759),0)+IF($B1760>0,C1763+C1764,0)+IF($B1767>0,(C1770+C1771),0)+IF($B1772>0,(C1775+C1776),0)+IF($B1777>0,C1780+C1781,0)+IF($B1789>0,SUM(C1806:C1816),0)+IF($B1819>0,SUM(C1834:C1844),0)+IF($B1847>0,SUM(C1862:C1872),0)","v":0},{"$f":"IF($B1750>0,(D1753+D1754),0)+IF($B1755>0,(D1758+D1759),0)+IF($B1760>0,D1763+D1764,0)+IF($B1767>0,(D1770+D1771),0)+IF($B1772>0,(D1775+D1776),0)+IF($B1777>0,D1780+D1781,0)+IF($B1789>0,SUM(D1806:D1816),0)+IF($B1819>0,SUM(D1834:D1844),0)+IF($B1847>0,SUM(D1862:D1872),0)","v":0},0,0,0,0,0,0,0,0,0,0,0,0,0,0,0,0,0,0]
["Remboursement du principal par période",null,{"$f":"IF($B1750>0,(C1752),0)+IF($B1755>0,(C1757),0)+IF($B1760>0,IF(C1762>0,C1762-C1763,0),0)+IF($B1767>0,(C1769),0)+IF($B1772>0,(C1774),0)+IF($B1777>0,IF(C1779>0,C1779-C1780,0),0)+IF($B1791>0,SUM(C1794:C1804),0)+IF($B1819>0,SUM(C1822:C1832),0)+IF($B1847>0,SUM(C1850:C1860)-SUM(C1862:C1872),0)","v":0},{"$f":"IF($B1750>0,(D1752),0)+IF($B1755>0,(D1757),0)+IF($B1760>0,IF(D1762>0,D1762-D1763,0),0)+IF($B1767>0,(D1769),0)+IF($B1772>0,(D1774),0)+IF($B1777>0,IF(D1779>0,D1779-D1780,0),0)+IF($B1791>0,SUM(D1794:D1804),0)+IF($B1819>0,SUM(D1822:D1832),0)+IF($B1847>0,SUM(D1850:D1860)-SUM(D1862:D1872),0)","v":0},0,0,0,0,0,0,0,0,0,0,0,0,0,0,0,0,0,0]
[]
[]
["Flux de trésorerie net       "]
["Période (t)","Flux de trésorerie       brut","Coût de financement ","Subventions","Flux de trésorerie       intermédiaires (avec coût fin. et Subventions)","Flux de trésorerie      , taxe contenue","Flux de trésorerie       cumulé, taxe contenue","Période de remboursement"]
[0,{"$f":"'5 Flux de trésorerie brut'!$D$7","v":{"$error":"#DIV/0!"}},0,{"$f":"B1748+B1766","v":0},{"$f":"D1885-C1885+B1885","v":{"$error":"#DIV/0!"}},{"$f":"IF(E1885>0,(E1885-E1885*'1 Données d''entrée'!$C$353-IF('5 Flux de trésorerie brut'!$D$7>0,'1 Données d''entrée'!$C$357*'5 Flux de trésorerie brut'!$D$7,0)),E1885)","v":{"$error":"#DIV/0!"}},{"$f":"F1885","v":{"$error":"#DIV/0!"}},{"$f":"IF(G1885<0,\" \",A1885)","v":{"$error":"#DIV/0!"}}]
[1,{"$f":"'5 Flux de trésorerie brut'!$D$8","v":{"$error":"#DIV/0!"}},{"$f":"C1879+C1880","v":0},0,{"$f":"D1886-C1886+B1886","v":{"$error":"#DIV/0!"}},{"$f":"IF(E1886>0,(E1886-E1886*'1 Données d''entrée'!$C$353-IF('5 Flux de trésorerie brut'!$D$8>0,'1 Données d''entrée'!$C$357*'5 Flux de trésorerie brut'!$D$8,0)),E1886)","v":{"$error":"#DIV/0!"}},{"$f":"G1885+F1886","v":{"$error":"#DIV/0!"}},{"$f":"IF(G1886<0,\" \",IF(SUM(H1885:H1885)>0,\" \",IF(H1885=0,\" \",A1886)))","v":{"$error":"#DIV/0!"}}]
[2,{"$f":"'5 Flux de trésorerie brut'!$D$9","v":{"$error":"#DIV/0!"}},{"$f":"D1879+D1880","v":0},0,{"$error":"#DIV/0!"},{"$f":"IF(E1887>0,(E1887-E1887*'1 Données d''entrée'!$C$353-IF('5 Flux de trésorerie brut'!$D$9>0,'1 Données d''entrée'!$C$357*'5 Flux de trésorerie brut'!$D$9,0)),E1887)","v":{"$error":"#DIV/0!"}},{"$error":"#DIV/0!"},{"$f":"IF(G1887<0,\" \",IF(SUM(H1885:H1886)>0,\" \",IF(H1885=0,\" \",A1887)))","v":{"$error":"#DIV/0!"}}]
[3,{"$f":"'5 Flux de trésorerie brut'!$D$10","v":{"$error":"#DIV/0!"}},{"$f":"E1879+E1880","v":0},0,{"$error":"#DIV/0!"},{"$f":"IF(E1888>0,(E1888-E1888*'1 Données d''entrée'!$C$353-IF('5 Flux de trésorerie brut'!$D$10>0,'1 Données d''entrée'!$C$357*'5 Flux de trésorerie brut'!$D$10,0)),E1888)","v":{"$error":"#DIV/0!"}},{"$error":"#DIV/0!"},{"$f":"IF(G1888<0,\" \",IF(SUM(H1885:H1887)>0,\" \",IF(H1885=0,\" \",A1888)))","v":{"$error":"#DIV/0!"}}]
[4,{"$f":"'5 Flux de trésorerie brut'!$D$11","v":{"$error":"#DIV/0!"}},{"$f":"F1879+F1880","v":0},0,{"$error":"#DIV/0!"},{"$f":"IF(E1889>0,(E1889-E1889*'1 Données d''entrée'!$C$353-IF('5 Flux de trésorerie brut'!$D$11>0,'1 Données d''entrée'!$C$357*'5 Flux de trésorerie brut'!$D$11,0)),E1889)","v":{"$error":"#DIV/0!"}},{"$error":"#DIV/0!"},{"$f":"IF(G1889<0,\" \",IF(SUM(H1885:H1888)>0,\" \",IF(H1885=0,\" \",A1889)))","v":{"$error":"#DIV/0!"}}]
[5,{"$f":"'5 Flux de trésorerie brut'!$D$12","v":{"$error":"#DIV/0!"}},{"$f":"G1879+G1880","v":0},0,{"$error":"#DIV/0!"},{"$f":"IF(E1890>0,(E1890-E1890*'1 Données d''entrée'!$C$353-IF('5 Flux de trésorerie brut'!$D$12>0,'1 Données d''entrée'!$C$357*'5 Flux de trésorerie brut'!$D$12,0)),E1890)","v":{"$error":"#DIV/0!"}},{"$error":"#DIV/0!"},{"$f":"IF(G1890<0,\" \",IF(SUM(H1885:H1889)>0,\" \",IF(H1885=0,\" \",A1890)))","v":{"$error":"#DIV/0!"}}]
[6,{"$f":"'5 Flux de trésorerie brut'!$D$13","v":{"$error":"#DIV/0!"}},{"$f":"H1879+H1880","v":0},0,{"$error":"#DIV/0!"},{"$f":"IF(E1891>0,(E1891-E1891*'1 Données d''entrée'!$C$353-IF('5 Flux de trésorerie brut'!$D$13>0,'1 Données d''entrée'!$C$357*'5 Flux de trésorerie brut'!$D$13,0)),E1891)","v":{"$error":"#DIV/0!"}},{"$error":"#DIV/0!"},{"$f":"IF(G1891<0,\" \",IF(SUM(H1885:H1890)>0,\" \",IF(H1885=0,\" \",A1891)))","v":{"$error":"#DIV/0!"}}]
[7,{"$f":"'5 Flux de trésorerie brut'!$D$14","v":{"$error":"#DIV/0!"}},{"$f":"I1879+I1880","v":0},0,{"$error":"#DIV/0!"},{"$f":"IF(E1892>0,(E1892-E1892*'1 Données d''entrée'!$C$353-IF('5 Flux de trésorerie brut'!$D$14>0,'1 Données d''entrée'!$C$357*'5 Flux de trésorerie brut'!$D$14,0)),E1892)","v":{"$error":"#DIV/0!"}},{"$error":"#DIV/0!"},{"$f":"IF(G1892<0,\" \",IF(SUM(H1885:H1891)>0,\" \",IF(H1885=0,\" \",A1892)))","v":{"$error":"#DIV/0!"}}]
[8,{"$f":"'5 Flux de trésorerie brut'!$D$15","v":{"$error":"#DIV/0!"}},{"$f":"J1879+J1880","v":0},0,{"$error":"#DIV/0!"},{"$f":"IF(E1893>0,(E1893-E1893*'1 Données d''entrée'!$C$353-IF('5 Flux de trésorerie brut'!$D$15>0,'1 Données d''entrée'!$C$357*'5 Flux de trésorerie brut'!$D$15,0)),E1893)","v":{"$error":"#DIV/0!"}},{"$error":"#DIV/0!"},{"$f":"IF(G1893<0,\" \",IF(SUM(H1885:H1892)>0,\" \",IF(H1885=0,\" \",A1893)))","v":{"$error":"#DIV/0!"}}]
[9,{"$f":"'5 Flux de trésorerie brut'!$D$16","v":{"$error":"#DIV/0!"}},{"$f":"K1879+K1880","v":0},0,{"$error":"#DIV/0!"},{"$f":"IF(E1894>0,(E1894-E1894*'1 Données d''entrée'!$C$353-IF('5 Flux de trésorerie brut'!$D$16>0,'1 Données d''entrée'!$C$357*'5 Flux de trésorerie brut'!$D$16,0)),E1894)","v":{"$error":"#DIV/0!"}},{"$error":"#DIV/0!"},{"$f":"IF(G1894<0,\" \",IF(SUM(H1885:H1893)>0,\" \",IF(H1885=0,\" \",A1894)))","v":{"$error":"#DIV/0!"}}]
[10,{"$f":"'5 Flux de trésorerie brut'!$D$17","v":{"$error":"#DIV/0!"}},{"$f":"L1879+L1880","v":0},0,{"$error":"#DIV/0!"},{"$f":"IF(E1895>0,(E1895-E1895*'1 Données d''entrée'!$C$353-IF('5 Flux de trésorerie brut'!$D$17>0,'1 Données d''entrée'!$C$357*'5 Flux de trésorerie brut'!$D$17,0)),E1895)","v":{"$error":"#DIV/0!"}},{"$error":"#DIV/0!"},{"$f":"IF(G1895<0,\" \",IF(SUM(H1885:H1894)>0,\" \",IF(H1885=0,\" \",A1895)))","v":{"$error":"#DIV/0!"}}]
[11,{"$f":"'5 Flux de trésorerie brut'!$D$18","v":{"$error":"#DIV/0!"}},{"$f":"M1879+M1880","v":0},0,{"$error":"#DIV/0!"},{"$f":"IF(E1896>0,(E1896-E1896*'1 Données d''entrée'!$C$353-IF('5 Flux de trésorerie brut'!$D$18>0,'1 Données d''entrée'!$C$357*'5 Flux de trésorerie brut'!$D$18,0)),E1896)","v":{"$error":"#DIV/0!"}},{"$error":"#DIV/0!"},{"$f":"IF(G1896<0,\" \",IF(SUM(H1885:H1895)>0,\" \",IF(H1885=0,\" \",A1896)))","v":{"$error":"#DIV/0!"}}]
[12,{"$f":"'5 Flux de trésorerie brut'!$D$19","v":{"$error":"#DIV/0!"}},{"$f":"N1879+N1880","v":0},0,{"$error":"#DIV/0!"},{"$f":"IF(E1897>0,(E1897-E1897*'1 Données d''entrée'!$C$353-IF('5 Flux de trésorerie brut'!$D$19>0,'1 Données d''entrée'!$C$357*'5 Flux de trésorerie brut'!$D$19,0)),E1897)","v":{"$error":"#DIV/0!"}},{"$error":"#DIV/0!"},{"$f":"IF(G1897<0,\" \",IF(SUM(H1885:H1896)>0,\" \",IF(H1885=0,\" \",A1897)))","v":{"$error":"#DIV/0!"}}]
[13,{"$f":"'5 Flux de trésorerie brut'!$D$20","v":{"$error":"#DIV/0!"}},{"$f":"O1879+O1880","v":0},0,{"$error":"#DIV/0!"},{"$f":"IF(E1898>0,(E1898-E1898*'1 Données d''entrée'!$C$353-IF('5 Flux de trésorerie brut'!$D$20>0,'1 Données d''entrée'!$C$357*'5 Flux de trésorerie brut'!$D$20,0)),E1898)","v":{"$error":"#DIV/0!"}},{"$error":"#DIV/0!"},{"$f":"IF(G1898<0,\" \",IF(SUM(H1885:H1897)>0,\" \",IF(H1885=0,\" \",A1898)))","v":{"$error":"#DIV/0!"}}]
[14,{"$f":"'5 Flux de trésorerie brut'!$D$21","v":{"$error":"#DIV/0!"}},{"$f":"P1879+P1880","v":0},0,{"$error":"#DIV/0!"},{"$f":"IF(E1899>0,(E1899-E1899*'1 Données d''entrée'!$C$353-IF('5 Flux de trésorerie brut'!$D$21>0,'1 Données d''entrée'!$C$357*'5 Flux de trésorerie brut'!$D$21,0)),E1899)","v":{"$error":"#DIV/0!"}},{"$error":"#DIV/0!"},{"$f":"IF(G1899<0,\" \",IF(SUM(H1885:H1898)>0,\" \",IF(H1885=0,\" \",A1899)))","v":{"$error":"#DIV/0!"}}]
[15,{"$f":"'5 Flux de trésorerie brut'!$D$22","v":{"$error":"#DIV/0!"}},{"$f":"Q1879+Q1880","v":0},0,{"$error":"#DIV/0!"},{"$f":"IF(E1900>0,(E1900-E1900*'1 Données d''entrée'!$C$353-IF('5 Flux de trésorerie brut'!$D$22>0,'1 Données d''entrée'!$C$357*'5 Flux de trésorerie brut'!$D$22,0)),E1900)","v":{"$error":"#DIV/0!"}},{"$error":"#DIV/0!"},{"$f":"IF(G1900<0,\" \",IF(SUM(H1885:H1899)>0,\" \",IF(H1885=0,\" \",A1900)))","v":{"$error":"#DIV/0!"}}]
[16,{"$f":"'5 Flux de trésorerie brut'!$D$23","v":{"$error":"#DIV/0!"}},{"$f":"R1879+R1880","v":0},0,{"$error":"#DIV/0!"},{"$f":"IF(E1901>0,(E1901-E1901*'1 Données d''entrée'!$C$353-IF('5 Flux de trésorerie brut'!$D$23>0,'1 Données d''entrée'!$C$357*'5 Flux de trésorerie brut'!$D$23,0)),E1901)","v":{"$error":"#DIV/0!"}},{"$error":"#DIV/0!"},{"$f":"IF(G1901<0,\" \",IF(SUM(H1885:H1900)>0,\" \",IF(H1885=0,\" \",A1901)))","v":{"$error":"#DIV/0!"}}]
[17,{"$f":"'5 Flux de trésorerie brut'!$D$24","v":{"$error":"#DIV/0!"}},{"$f":"S1879+S1880","v":0},0,{"$error":"#DIV/0!"},{"$f":"IF(E1902>0,(E1902-E1902*'1 Données d''entrée'!$C$353-IF('5 Flux de trésorerie brut'!$D$24>0,'1 Données d''entrée'!$C$357*'5 Flux de trésorerie brut'!$D$24,0)),E1902)","v":{"$error":"#DIV/0!"}},{"$error":"#DIV/0!"},{"$f":"IF(G1902<0,\" \",IF(SUM(H1885:H1901)>0,\" \",IF(H1885=0,\" \",A1902)))","v":{"$error":"#DIV/0!"}}]
[18,{"$f":"'5 Flux de trésorerie brut'!$D$25","v":{"$error":"#DIV/0!"}},{"$f":"T1879+T1880","v":0},0,{"$error":"#DIV/0!"},{"$f":"IF(E1903>0,(E1903-E1903*'1 Données d''entrée'!$C$353-IF('5 Flux de trésorerie brut'!$D$25>0,'1 Données d''entrée'!$C$357*'5 Flux de trésorerie brut'!$D$25,0)),E1903)","v":{"$error":"#DIV/0!"}},{"$error":"#DIV/0!"},{"$f":"IF(G1903<0,\" \",IF(SUM(H1885:H1902)>0,\" \",IF(H1885=0,\" \",A1903)))","v":{"$error":"#DIV/0!"}}]
[19,{"$f":"'5 Flux de trésorerie brut'!$D$26","v":{"$error":"#DIV/0!"}},{"$f":"U1879+U1880","v":0},0,{"$error":"#DIV/0!"},{"$f":"IF(E1904>0,(E1904-E1904*'1 Données d''entrée'!$C$353-IF('5 Flux de trésorerie brut'!$D$26>0,'1 Données d''entrée'!$C$357*'5 Flux de trésorerie brut'!$D$26,0)),E1904)","v":{"$error":"#DIV/0!"}},{"$error":"#DIV/0!"},{"$f":"IF(G1904<0,\" \",IF(SUM(H1885:H1903)>0,\" \",IF(H1885=0,\" \",A1904)))","v":{"$error":"#DIV/0!"}}]
[20,{"$f":"'5 Flux de trésorerie brut'!$D$27","v":{"$error":"#DIV/0!"}},{"$f":"V1879+V1880","v":0},0,{"$error":"#DIV/0!"},{"$f":"IF(E1905>0,(E1905-E1905*'1 Données d''entrée'!$C$353-IF('5 Flux de trésorerie brut'!$D$27>0,'1 Données d''entrée'!$C$357*'5 Flux de trésorerie brut'!$D$27,0)),E1905)","v":{"$error":"#DIV/0!"}},{"$error":"#DIV/0!"},{"$f":"IF(G1905<0,\" \",IF(SUM(H1885:H1904)>0,\" \",IF(H1885=0,\" \",A1905)))","v":{"$error":"#DIV/0!"}}]
[]
[]
[null,null,"Valeur actuelle nette",{"$f":"NPV('1 Données d''entrée'!$H$28,'10 Subvention d''ADER'!F1886:F1905)+'10 Subvention d''ADER'!F1885","v":{"$error":"#DIV/0!"}}]
[null,null,"Taux de rentabilité interne",{"$f":"IRR(F1885:F1905)","v":{"$error":"#VALUE!"}}]
[]
[]
[]
[]
[]
["Tableau de calcul avec un taux de subvention de",null,null,1]
[]
["Bailleur de fonds","Investissement total par bailleur de fonds (AR)","Quote-part du coût d'investissement initial"]
["Subvention d'ADER",{"$f":"('3 Coût total'!$B$7-'3 Coût total'!$B$42)*C1918","v":0},{"$f":"D1915","v":1}]
["Capitaux propres",{"$f":"'1 Données d''entrée'!$B$294","v":0},{"$f":"'1 Données d''entrée'!$B$294/'3 Coût total'!$B$7","v":{"$error":"#DIV/0!"}}]
["Fonds d'autres donneurs / investisseurs",{"$f":"'1 Données d''entrée'!$B$306+'1 Données d''entrée'!$B$307","v":0},{"$f":"B1920/'3 Coût total'!$B$7","v":{"$error":"#DIV/0!"}}]
["Prêt bancaire (effective)",{"$f":"IF(B1918+'1 Données d''entrée'!$B$294=0,0,(-1)*'5 Flux de trésorerie brut'!$D$7-(SUM(B1918:B1920)))","v":0},{"$f":"(1-(C1918+C1919+C1920))","v":{"$error":"#DIV/0!"}}]
[]
["Prêt bancaire avec des frais de gestion",{"$f":"B1921+B1921*'1 Données d''entrée'!$C$338","v":0},{"$f":"(1-(C1918+C1919+C1920))+(1-(C1918+C1919+C1920))*'1 Données d''entrée'!$C$338","v":{"$error":"#DIV/0!"}}]
[]
["Tableaux de calcul"]
[]
[]
["Scénario financier"]
["Période",0,1,2,3,4,5,6,7,8,9,10,11,12,13,14,15,16,17,18,19,20]
[]
["Flux de trésorerie (brut)",{"$f":"'5 Flux de trésorerie brut'!$D$7","v":{"$error":"#DIV/0!"}},{"$f":"'5 Flux de trésorerie brut'!$D$8","v":{"$error":"#DIV/0!"}},{"$f":"'5 Flux de trésorerie brut'!$D$9","v":{"$error":"#DIV/0!"}},{"$f":"'5 Flux de trésorerie brut'!$D$10","v":{"$error":"#DIV/0!"}},{"$f":"'5 Flux de trésorerie brut'!$D$11","v":{"$error":"#DIV/0!"}},{"$f":"'5 Flux de trésorerie brut'!$D$12","v":{"$error":"#DIV/0!"}},{"$f":"'5 Flux de trésorerie brut'!$D$13","v":{"$error":"#DIV/0!"}},{"$f":"'5 Flux de trésorerie brut'!$D$14","v":{"$error":"#DIV/0!"}},{"$f":"'5 Flux de trésorerie brut'!$D$15","v":{"$error":"#DIV/0!"}},{"$f":"'5 Flux de trésorerie brut'!$D$16","v":{"$error":"#DIV/0!"}},{"$f":"'5 Flux de trésorerie brut'!$D$17","v":{"$error":"#DIV/0!"}},{"$f":"'5 Flux de trésorerie brut'!$D$18","v":{"$error":"#DIV/0!"}},{"$f":"'5 Flux de trésorerie brut'!$D$19","v":{"$error":"#DIV/0!"}},{"$f":"'5 Flux de trésorerie brut'!$D$20","v":{"$error":"#DIV/0!"}},{"$f":"'5 Flux de trésorerie brut'!$D$21","v":{"$error":"#DIV/0!"}},{"$f":"'5 Flux de trésorerie brut'!$D$22","v":{"$error":"#DIV/0!"}},{"$f":"'5 Flux de trésorerie brut'!$D$23","v":{"$error":"#DIV/0!"}},{"$f":"'5 Flux de trésorerie brut'!$D$24","v":{"$error":"#DIV/0!"}},{"$f":"'5 Flux de trésorerie brut'!$D$25","v":{"$error":"#DIV/0!"}},{"$f":"'5 Flux de trésorerie brut'!$D$26","v":{"$error":"#DIV/0!"}},{"$f":"'5 Flux de trésorerie brut'!$D$27","v":{"$error":"#DIV/0!"}}]
[]
["Capitaux propres",{"$f":"'1 Données d''entrée'!$B$294","v":0}]
[]
["Subvention ADER",{"$f":"'3 Coût total'!$B$7*C1918","v":0}]
[]
["Prêt bancaire - Option 1: Remboursement du principal fractionné",{"$f":"'1 Données d''entrée'!$B$342","v":0},"% de prêt total"]
["Réception et montant restant",{"$f":"B1923*B1937","v":0},{"$f":"B1938-C1939","v":0},0,0,0,0,0,0,0,0,0,0,0,0,0,0,0,0,0,0,0]
["Remboursement du principal",0,{"$f":"IF(C1929<'1 Données d''entrée'!$C$334+1,0,IF(C1929<'1 Données d''entrée'!$C$333+'1 Données d''entrée'!$C$334+1,($B1938/'1 Données d''entrée'!$C$333),0))","v":0},{"$f":"IF(D1929<'1 Données d''entrée'!$C$334+1,0,IF(D1929<'1 Données d''entrée'!$C$333+'1 Données d''entrée'!$C$334+1,($B1938/'1 Données d''entrée'!$C$333),0))","v":0},{"$f":"IF(E1929<'1 Données d''entrée'!$C$334+1,0,IF(E1929<'1 Données d''entrée'!$C$333+'1 Données d''entrée'!$C$334+1,($B1938/'1 Données d''entrée'!$C$333),0))","v":0},{"$f":"IF(F1929<'1 Données d''entrée'!$C$334+1,0,IF(F1929<'1 Données d''entrée'!$C$333+'1 Données d''entrée'!$C$334+1,($B1938/'1 Données d''entrée'!$C$333),0))","v":0},{"$f":"IF(G1929<'1 Données d''entrée'!$C$334+1,0,IF(G1929<'1 Données d''entrée'!$C$333+'1 Données d''entrée'!$C$334+1,($B1938/'1 Données d''entrée'!$C$333),0))","v":0},{"$f":"IF(H1929<'1 Données d''entrée'!$C$334+1,0,IF(H1929<'1 Données d''entrée'!$C$333+'1 Données d''entrée'!$C$334+1,($B1938/'1 Données d''entrée'!$C$333),0))","v":0},{"$f":"IF(I1929<'1 Données d''entrée'!$C$334+1,0,IF(I1929<'1 Données d''entrée'!$C$333+'1 Données d''entrée'!$C$334+1,($B1938/'1 Données d''entrée'!$C$333),0))","v":0},{"$f":"IF(J1929<'1 Données d''entrée'!$C$334+1,0,IF(J1929<'1 Données d''entrée'!$C$333+'1 Données d''entrée'!$C$334+1,($B1938/'1 Données d''entrée'!$C$333),0))","v":0},{"$f":"IF(K1929<'1 Données d''entrée'!$C$334+1,0,IF(K1929<'1 Données d''entrée'!$C$333+'1 Données d''entrée'!$C$334+1,($B1938/'1 Données d''entrée'!$C$333),0))","v":0},{"$f":"IF(L1929<'1 Données d''entrée'!$C$334+1,0,IF(L1929<'1 Données d''entrée'!$C$333+'1 Données d''entrée'!$C$334+1,($B1938/'1 Données d''entrée'!$C$333),0))","v":0},{"$f":"IF(M1929<'1 Données d''entrée'!$C$334+1,0,IF(M1929<'1 Données d''entrée'!$C$333+'1 Données d''entrée'!$C$334+1,($B1938/'1 Données d''entrée'!$C$333),0))","v":0},{"$f":"IF(N1929<'1 Données d''entrée'!$C$334+1,0,IF(N1929<'1 Données d''entrée'!$C$333+'1 Données d''entrée'!$C$334+1,($B1938/'1 Données d''entrée'!$C$333),0))","v":0},{"$f":"IF(O1929<'1 Données d''entrée'!$C$334+1,0,IF(O1929<'1 Données d''entrée'!$C$333+'1 Données d''entrée'!$C$334+1,($B1938/'1 Données d''entrée'!$C$333),0))","v":0},{"$f":"IF(P1929<'1 Données d''entrée'!$C$334+1,0,IF(P1929<'1 Données d''entrée'!$C$333+'1 Données d''entrée'!$C$334+1,($B1938/'1 Données d''entrée'!$C$333),0))","v":0},{"$f":"IF(Q1929<'1 Données d''entrée'!$C$334+1,0,IF(Q1929<'1 Données d''entrée'!$C$333+'1 Données d''entrée'!$C$334+1,($B1938/'1 Données d''entrée'!$C$333),0))","v":0},{"$f":"IF(R1929<'1 Données d''entrée'!$C$334+1,0,IF(R1929<'1 Données d''entrée'!$C$333+'1 Données d''entrée'!$C$334+1,($B1938/'1 Données d''entrée'!$C$333),0))","v":0},{"$f":"IF(S1929<'1 Données d''entrée'!$C$334+1,0,IF(S1929<'1 Données d''entrée'!$C$333+'1 Données d''entrée'!$C$334+1,($B1938/'1 Données d''entrée'!$C$333),0))","v":0},{"$f":"IF(T1929<'1 Données d''entrée'!$C$334+1,0,IF(T1929<'1 Données d''entrée'!$C$333+'1 Données d''entrée'!$C$334+1,($B1938/'1 Données d''entrée'!$C$333),0))","v":0},{"$f":"IF(U1929<'1 Données d''entrée'!$C$334+1,0,IF(U1929<'1 Données d''entrée'!$C$333+'1 Données d''entrée'!$C$334+1,($B1938/'1 Données d''entrée'!$C$333),0))","v":0},{"$f":"IF(V1929<'1 Données d''entrée'!$C$334+1,0,IF(V1929<'1 Données d''entrée'!$C$333+'1 Données d''entrée'!$C$334+1,($B1938/'1 Données d''entrée'!$C$333),0))","v":0}]
["Paiement d'intérêts",0,{"$f":"IF('1 Données d''entrée'!$C$336=\"(=NON)\",IF(C1929<'1 Données d''entrée'!$C$334+1,0,B1938*'1 Données d''entrée'!$C$332),B1938*'1 Données d''entrée'!$C$332)","v":0},{"$f":"IF('1 Données d''entrée'!$C$336=\"(=NON)\",IF(D1929<'1 Données d''entrée'!$C$334+1,0,C1938*'1 Données d''entrée'!$C$332),C1938*'1 Données d''entrée'!$C$332)","v":0},{"$f":"IF('1 Données d''entrée'!$C$336=\"(=NON)\",IF(E1929<'1 Données d''entrée'!$C$334+1,0,D1938*'1 Données d''entrée'!$C$332),D1938*'1 Données d''entrée'!$C$332)","v":0},{"$f":"IF('1 Données d''entrée'!$C$336=\"(=NON)\",IF(F1929<'1 Données d''entrée'!$C$334+1,0,E1938*'1 Données d''entrée'!$C$332),E1938*'1 Données d''entrée'!$C$332)","v":0},{"$f":"IF('1 Données d''entrée'!$C$336=\"(=NON)\",IF(G1929<'1 Données d''entrée'!$C$334+1,0,F1938*'1 Données d''entrée'!$C$332),F1938*'1 Données d''entrée'!$C$332)","v":0},{"$f":"IF('1 Données d''entrée'!$C$336=\"(=NON)\",IF(H1929<'1 Données d''entrée'!$C$334+1,0,G1938*'1 Données d''entrée'!$C$332),G1938*'1 Données d''entrée'!$C$332)","v":0},{"$f":"IF('1 Données d''entrée'!$C$336=\"(=NON)\",IF(I1929<'1 Données d''entrée'!$C$334+1,0,H1938*'1 Données d''entrée'!$C$332),H1938*'1 Données d''entrée'!$C$332)","v":0},{"$f":"IF('1 Données d''entrée'!$C$336=\"(=NON)\",IF(J1929<'1 Données d''entrée'!$C$334+1,0,I1938*'1 Données d''entrée'!$C$332),I1938*'1 Données d''entrée'!$C$332)","v":0},{"$f":"IF('1 Données d''entrée'!$C$336=\"(=NON)\",IF(K1929<'1 Données d''entrée'!$C$334+1,0,J1938*'1 Données d''entrée'!$C$332),J1938*'1 Données d''entrée'!$C$332)","v":0},{"$f":"IF('1 Données d''entrée'!$C$336=\"(=NON)\",IF(L1929<'1 Données d''entrée'!$C$334+1,0,K1938*'1 Données d''entrée'!$C$332),K1938*'1 Données d''entrée'!$C$332)","v":0},{"$f":"IF('1 Données d''entrée'!$C$336=\"(=NON)\",IF(M1929<'1 Données d''entrée'!$C$334+1,0,L1938*'1 Données d''entrée'!$C$332),L1938*'1 Données d''entrée'!$C$332)","v":0},{"$f":"IF('1 Données d''entrée'!$C$336=\"(=NON)\",IF(N1929<'1 Données d''entrée'!$C$334+1,0,M1938*'1 Données d''entrée'!$C$332),M1938*'1 Données d''entrée'!$C$332)","v":0},{"$f":"IF('1 Données d''entrée'!$C$336=\"(=NON)\",IF(O1929<'1 Données d''entrée'!$C$334+1,0,N1938*'1 Données d''entrée'!$C$332),N1938*'1 Données d''entrée'!$C$332)","v":0},{"$f":"IF('1 Données d''entrée'!$C$336=\"(=NON)\",IF(P1929<'1 Données d''entrée'!$C$334+1,0,O1938*'1 Données d''entrée'!$C$332),O1938*'1 Données d''entrée'!$C$332)","v":0},{"$f":"IF('1 Données d''entrée'!$C$336=\"(=NON)\",IF(Q1929<'1 Données d''entrée'!$C$334+1,0,P1938*'1 Données d''entrée'!$C$332),P1938*'1 Données d''entrée'!$C$332)","v":0},{"$f":"IF('1 Données d''entrée'!$C$336=\"(=NON)\",IF(R1929<'1 Données d''entrée'!$C$334+1,0,Q1938*'1 Données d''entrée'!$C$332),Q1938*'1 Données d''entrée'!$C$332)","v":0},{"$f":"IF('1 Données d''entrée'!$C$336=\"(=NON)\",IF(S1929<'1 Données d''entrée'!$C$334+1,0,R1938*'1 Données d''entrée'!$C$332),R1938*'1 Données d''entrée'!$C$332)","v":0},{"$f":"IF('1 Données d''entrée'!$C$336=\"(=NON)\",IF(T1929<'1 Données d''entrée'!$C$334+1,0,S1938*'1 Données d''entrée'!$C$332),S1938*'1 Données d''entrée'!$C$332)","v":0},{"$f":"IF('1 Données d''entrée'!$C$336=\"(=NON)\",IF(U1929<'1 Données d''entrée'!$C$334+1,0,T1938*'1 Données d''entrée'!$C$332),T1938*'1 Données d''entrée'!$C$332)","v":0},{"$f":"IF('1 Données d''entrée'!$C$336=\"(=NON)\",IF(V1929<'1 Données d''entrée'!$C$334+1,0,U1938*'1 Données d''entrée'!$C$332),U1938*'1 Données d''entrée'!$C$332)","v":0}]
["Paiements d'intérêt avec des intérêts composés en cas d'absence des paiements dans la période de grâce",0,0,{"$f":"IF(D1929='1 Données d''entrée'!$C$334+1,IF('1 Données d''entrée'!$C$336=\"(=NON)\",($B1938*'1 Données d''entrée'!$C$332)*((('1 Données d''entrée'!$C$332+1)^'1 Données d''entrée'!$C$334-1)/('1 Données d''entrée'!$C$332))*(1+'1 Données d''entrée'!$C$332),0),0)","v":0},{"$f":"IF(E1929='1 Données d''entrée'!$C$334+1,IF('1 Données d''entrée'!$C$336=\"(=NON)\",($B1938*'1 Données d''entrée'!$C$332)*((('1 Données d''entrée'!$C$332+1)^'1 Données d''entrée'!$C$334-1)/('1 Données d''entrée'!$C$332))*(1+'1 Données d''entrée'!$C$332),0),0)","v":0},{"$f":"IF(F1929='1 Données d''entrée'!$C$334+1,IF('1 Données d''entrée'!$C$336=\"(=NON)\",($B1938*'1 Données d''entrée'!$C$332)*((('1 Données d''entrée'!$C$332+1)^'1 Données d''entrée'!$C$334-1)/('1 Données d''entrée'!$C$332))*(1+'1 Données d''entrée'!$C$332),0),0)","v":0},{"$f":"IF(G1929='1 Données d''entrée'!$C$334+1,IF('1 Données d''entrée'!$C$336=\"(=NON)\",($B1938*'1 Données d''entrée'!$C$332)*((('1 Données d''entrée'!$C$332+1)^'1 Données d''entrée'!$C$334-1)/('1 Données d''entrée'!$C$332))*(1+'1 Données d''entrée'!$C$332),0),0)","v":0},{"$f":"IF(H1929='1 Données d''entrée'!$C$334+1,IF('1 Données d''entrée'!$C$336=\"(=NON)\",($B1938*'1 Données d''entrée'!$C$332)*((('1 Données d''entrée'!$C$332+1)^'1 Données d''entrée'!$C$334-1)/('1 Données d''entrée'!$C$332))*(1+'1 Données d''entrée'!$C$332),0),0)","v":0},{"$f":"IF(I1929='1 Données d''entrée'!$C$334+1,IF('1 Données d''entrée'!$C$336=\"(=NON)\",($B1938*'1 Données d''entrée'!$C$332)*((('1 Données d''entrée'!$C$332+1)^'1 Données d''entrée'!$C$334-1)/('1 Données d''entrée'!$C$332))*(1+'1 Données d''entrée'!$C$332),0),0)","v":0},{"$f":"IF(J1929='1 Données d''entrée'!$C$334+1,IF('1 Données d''entrée'!$C$336=\"(=NON)\",($B1938*'1 Données d''entrée'!$C$332)*((('1 Données d''entrée'!$C$332+1)^'1 Données d''entrée'!$C$334-1)/('1 Données d''entrée'!$C$332))*(1+'1 Données d''entrée'!$C$332),0),0)","v":0},{"$f":"IF(K1929='1 Données d''entrée'!$C$334+1,IF('1 Données d''entrée'!$C$336=\"(=NON)\",($B1938*'1 Données d''entrée'!$C$332)*((('1 Données d''entrée'!$C$332+1)^'1 Données d''entrée'!$C$334-1)/('1 Données d''entrée'!$C$332))*(1+'1 Données d''entrée'!$C$332),0),0)","v":0},{"$f":"IF(L1929='1 Données d''entrée'!$C$334+1,IF('1 Données d''entrée'!$C$336=\"(=NON)\",($B1938*'1 Données d''entrée'!$C$332)*((('1 Données d''entrée'!$C$332+1)^'1 Données d''entrée'!$C$334-1)/('1 Données d''entrée'!$C$332))*(1+'1 Données d''entrée'!$C$332),0),0)","v":0},{"$f":"IF(M1929='1 Données d''entrée'!$C$334+1,IF('1 Données d''entrée'!$C$336=\"(=NON)\",($B1938*'1 Données d''entrée'!$C$332)*((('1 Données d''entrée'!$C$332+1)^'1 Données d''entrée'!$C$334-1)/('1 Données d''entrée'!$C$332))*(1+'1 Données d''entrée'!$C$332),0),0)","v":0},{"$f":"IF(N1929='1 Données d''entrée'!$C$334+1,IF('1 Données d''entrée'!$C$336=\"(=NON)\",($B1938*'1 Données d''entrée'!$C$332)*((('1 Données d''entrée'!$C$332+1)^'1 Données d''entrée'!$C$334-1)/('1 Données d''entrée'!$C$332))*(1+'1 Données d''entrée'!$C$332),0),0)","v":0},{"$f":"IF(O1929='1 Données d''entrée'!$C$334+1,IF('1 Données d''entrée'!$C$336=\"(=NON)\",($B1938*'1 Données d''entrée'!$C$332)*((('1 Données d''entrée'!$C$332+1)^'1 Données d''entrée'!$C$334-1)/('1 Données d''entrée'!$C$332))*(1+'1 Données d''entrée'!$C$332),0),0)","v":0},{"$f":"IF(P1929='1 Données d''entrée'!$C$334+1,IF('1 Données d''entrée'!$C$336=\"(=NON)\",($B1938*'1 Données d''entrée'!$C$332)*((('1 Données d''entrée'!$C$332+1)^'1 Données d''entrée'!$C$334-1)/('1 Données d''entrée'!$C$332))*(1+'1 Données d''entrée'!$C$332),0),0)","v":0},{"$f":"IF(Q1929='1 Données d''entrée'!$C$334+1,IF('1 Données d''entrée'!$C$336=\"(=NON)\",($B1938*'1 Données d''entrée'!$C$332)*((('1 Données d''entrée'!$C$332+1)^'1 Données d''entrée'!$C$334-1)/('1 Données d''entrée'!$C$332))*(1+'1 Données d''entrée'!$C$332),0),0)","v":0},{"$f":"IF(R1929='1 Données d''entrée'!$C$334+1,IF('1 Données d''entrée'!$C$336=\"(=NON)\",($B1938*'1 Données d''entrée'!$C$332)*((('1 Données d''entrée'!$C$332+1)^'1 Données d''entrée'!$C$334-1)/('1 Données d''entrée'!$C$332))*(1+'1 Données d''entrée'!$C$332),0),0)","v":0},{"$f":"IF(S1929='1 Données d''entrée'!$C$334+1,IF('1 Données d''entrée'!$C$336=\"(=NON)\",($B1938*'1 Données d''entrée'!$C$332)*((('1 Données d''entrée'!$C$332+1)^'1 Données d''entrée'!$C$334-1)/('1 Données d''entrée'!$C$332))*(1+'1 Données d''entrée'!$C$332),0),0)","v":0},{"$f":"IF(T1929='1 Données d''entrée'!$C$334+1,IF('1 Données d''entrée'!$C$336=\"(=NON)\",($B1938*'1 Données d''entrée'!$C$332)*((('1 Données d''entrée'!$C$332+1)^'1 Données d''entrée'!$C$334-1)/('1 Données d''entrée'!$C$332))*(1+'1 Données d''entrée'!$C$332),0),0)","v":0},{"$f":"IF(U1929='1 Données d''entrée'!$C$334+1,IF('1 Données d''entrée'!$C$336=\"(=NON)\",($B1938*'1 Données d''entrée'!$C$332)*((('1 Données d''entrée'!$C$332+1)^'1 Données d''entrée'!$C$334-1)/('1 Données d''entrée'!$C$332))*(1+'1 Données d''entrée'!$C$332),0),0)","v":0},{"$f":"IF(V1929='1 Données d''entrée'!$C$334+1,IF('1 Données d''entrée'!$C$336=\"(=NON)\",($B1938*'1 Données d''entrée'!$C$332)*((('1 Données d''entrée'!$C$332+1)^'1 Données d''entrée'!$C$334-1)/('1 Données d''entrée'!$C$332))*(1+'1 Données d''entrée'!$C$332),0),0)","v":0}]
["Prêt bancaire - Option 2: Remboursement du principal final",{"$f":"'1 Données d''entrée'!$B$343","v":0},"% de prêt total"]
["Réception et montant restant",{"$f":"B1923*B1942","v":0},{"$f":"B1943-C1944","v":0},0,0,0,0,0,0,0,0,0,0,0,0,0,0,0,0,0,0,0]
["Remboursement du principal",0,{"$f":"IF('1 Données d''entrée'!$C$333+'1 Données d''entrée'!$C$334=C1929,$B1943,0)","v":0},{"$f":"IF('1 Données d''entrée'!$C$333+'1 Données d''entrée'!$C$334=D1929,$B1943,0)","v":0},{"$f":"IF('1 Données d''entrée'!$C$333+'1 Données d''entrée'!$C$334=E1929,$B1943,0)","v":0},{"$f":"IF('1 Données d''entrée'!$C$333+'1 Données d''entrée'!$C$334=F1929,$B1943,0)","v":0},{"$f":"IF('1 Données d''entrée'!$C$333+'1 Données d''entrée'!$C$334=G1929,$B1943,0)","v":0},{"$f":"IF('1 Données d''entrée'!$C$333+'1 Données d''entrée'!$C$334=H1929,$B1943,0)","v":0},{"$f":"IF('1 Données d''entrée'!$C$333+'1 Données d''entrée'!$C$334=I1929,$B1943,0)","v":0},{"$f":"IF('1 Données d''entrée'!$C$333+'1 Données d''entrée'!$C$334=J1929,$B1943,0)","v":0},{"$f":"IF('1 Données d''entrée'!$C$333+'1 Données d''entrée'!$C$334=K1929,$B1943,0)","v":0},{"$f":"IF('1 Données d''entrée'!$C$333+'1 Données d''entrée'!$C$334=L1929,$B1943,0)","v":0},{"$f":"IF('1 Données d''entrée'!$C$333+'1 Données d''entrée'!$C$334=M1929,$B1943,0)","v":0},{"$f":"IF('1 Données d''entrée'!$C$333+'1 Données d''entrée'!$C$334=N1929,$B1943,0)","v":0},{"$f":"IF('1 Données d''entrée'!$C$333+'1 Données d''entrée'!$C$334=O1929,$B1943,0)","v":0},{"$f":"IF('1 Données d''entrée'!$C$333+'1 Données d''entrée'!$C$334=P1929,$B1943,0)","v":0},{"$f":"IF('1 Données d''entrée'!$C$333+'1 Données d''entrée'!$C$334=Q1929,$B1943,0)","v":0},{"$f":"IF('1 Données d''entrée'!$C$333+'1 Données d''entrée'!$C$334=R1929,$B1943,0)","v":0},{"$f":"IF('1 Données d''entrée'!$C$333+'1 Données d''entrée'!$C$334=S1929,$B1943,0)","v":0},{"$f":"IF('1 Données d''entrée'!$C$333+'1 Données d''entrée'!$C$334=T1929,$B1943,0)","v":0},{"$f":"IF('1 Données d''entrée'!$C$333+'1 Données d''entrée'!$C$334=U1929,$B1943,0)","v":0},{"$f":"IF('1 Données d''entrée'!$C$333+'1 Données d''entrée'!$C$334=V1929,$B1943,0)","v":0}]
["Paiement d'intérêts",0,{"$f":"IF('1 Données d''entrée'!$C$336=\"(=NON)\",IF(C1929<'1 Données d''entrée'!$C$334+1,0,B1943*'1 Données d''entrée'!$C$332),B1943*'1 Données d''entrée'!$C$332)","v":0},{"$f":"IF('1 Données d''entrée'!$C$336=\"(=NON)\",IF(D1929<'1 Données d''entrée'!$C$334+1,0,C1943*'1 Données d''entrée'!$C$332),C1943*'1 Données d''entrée'!$C$332)","v":0},{"$f":"IF('1 Données d''entrée'!$C$336=\"(=NON)\",IF(E1929<'1 Données d''entrée'!$C$334+1,0,D1943*'1 Données d''entrée'!$C$332),D1943*'1 Données d''entrée'!$C$332)","v":0},{"$f":"IF('1 Données d''entrée'!$C$336=\"(=NON)\",IF(F1929<'1 Données d''entrée'!$C$334+1,0,E1943*'1 Données d''entrée'!$C$332),E1943*'1 Données d''entrée'!$C$332)","v":0},{"$f":"IF('1 Données d''entrée'!$C$336=\"(=NON)\",IF(G1929<'1 Données d''entrée'!$C$334+1,0,F1943*'1 Données d''entrée'!$C$332),F1943*'1 Données d''entrée'!$C$332)","v":0},{"$f":"IF('1 Données d''entrée'!$C$336=\"(=NON)\",IF(H1929<'1 Données d''entrée'!$C$334+1,0,G1943*'1 Données d''entrée'!$C$332),G1943*'1 Données d''entrée'!$C$332)","v":0},{"$f":"IF('1 Données d''entrée'!$C$336=\"(=NON)\",IF(I1929<'1 Données d''entrée'!$C$334+1,0,H1943*'1 Données d''entrée'!$C$332),H1943*'1 Données d''entrée'!$C$332)","v":0},{"$f":"IF('1 Données d''entrée'!$C$336=\"(=NON)\",IF(J1929<'1 Données d''entrée'!$C$334+1,0,I1943*'1 Données d''entrée'!$C$332),I1943*'1 Données d''entrée'!$C$332)","v":0},{"$f":"IF('1 Données d''entrée'!$C$336=\"(=NON)\",IF(K1929<'1 Données d''entrée'!$C$334+1,0,J1943*'1 Données d''entrée'!$C$332),J1943*'1 Données d''entrée'!$C$332)","v":0},{"$f":"IF('1 Données d''entrée'!$C$336=\"(=NON)\",IF(L1929<'1 Données d''entrée'!$C$334+1,0,K1943*'1 Données d''entrée'!$C$332),K1943*'1 Données d''entrée'!$C$332)","v":0},{"$f":"IF('1 Données d''entrée'!$C$336=\"(=NON)\",IF(M1929<'1 Données d''entrée'!$C$334+1,0,L1943*'1 Données d''entrée'!$C$332),L1943*'1 Données d''entrée'!$C$332)","v":0},{"$f":"IF('1 Données d''entrée'!$C$336=\"(=NON)\",IF(N1929<'1 Données d''entrée'!$C$334+1,0,M1943*'1 Données d''entrée'!$C$332),M1943*'1 Données d''entrée'!$C$332)","v":0},{"$f":"IF('1 Données d''entrée'!$C$336=\"(=NON)\",IF(O1929<'1 Données d''entrée'!$C$334+1,0,N1943*'1 Données d''entrée'!$C$332),N1943*'1 Données d''entrée'!$C$332)","v":0},{"$f":"IF('1 Données d''entrée'!$C$336=\"(=NON)\",IF(P1929<'1 Données d''entrée'!$C$334+1,0,O1943*'1 Données d''entrée'!$C$332),O1943*'1 Données d''entrée'!$C$332)","v":0},{"$f":"IF('1 Données d''entrée'!$C$336=\"(=NON)\",IF(Q1929<'1 Données d''entrée'!$C$334+1,0,P1943*'1 Données d''entrée'!$C$332),P1943*'1 Données d''entrée'!$C$332)","v":0},{"$f":"IF('1 Données d''entrée'!$C$336=\"(=NON)\",IF(R1929<'1 Données d''entrée'!$C$334+1,0,Q1943*'1 Données d''entrée'!$C$332),Q1943*'1 Données d''entrée'!$C$332)","v":0},{"$f":"IF('1 Données d''entrée'!$C$336=\"(=NON)\",IF(S1929<'1 Données d''entrée'!$C$334+1,0,R1943*'1 Données d''entrée'!$C$332),R1943*'1 Données d''entrée'!$C$332)","v":0},{"$f":"IF('1 Données d''entrée'!$C$336=\"(=NON)\",IF(T1929<'1 Données d''entrée'!$C$334+1,0,S1943*'1 Données d''entrée'!$C$332),S1943*'1 Données d''entrée'!$C$332)","v":0},{"$f":"IF('1 Données d''entrée'!$C$336=\"(=NON)\",IF(U1929<'1 Données d''entrée'!$C$334+1,0,T1943*'1 Données d''entrée'!$C$332),T1943*'1 Données d''entrée'!$C$332)","v":0},{"$f":"IF('1 Données d''entrée'!$C$336=\"(=NON)\",IF(V1929<'1 Données d''entrée'!$C$334+1,0,U1943*'1 Données d''entrée'!$C$332),U1943*'1 Données d''entrée'!$C$332)","v":0}]
["Paiements d'intérêt avec des intérêts composés en cas d'absence des paiements dans la période de grâce",0,0,{"$f":"IF(D1929='1 Données d''entrée'!$C$334+1,IF('1 Données d''entrée'!$C$336=\"(=NON)\",($B1943*'1 Données d''entrée'!$C$332)*((('1 Données d''entrée'!$C$332+1)^'1 Données d''entrée'!$C$334-1)/('1 Données d''entrée'!$C$332))*(1+'1 Données d''entrée'!$C$332),0),0)","v":0},{"$f":"IF(E1929='1 Données d''entrée'!$C$334+1,IF('1 Données d''entrée'!$C$336=\"(=NON)\",($B1943*'1 Données d''entrée'!$C$332)*((('1 Données d''entrée'!$C$332+1)^'1 Données d''entrée'!$C$334-1)/('1 Données d''entrée'!$C$332))*(1+'1 Données d''entrée'!$C$332),0),0)","v":0},{"$f":"IF(F1929='1 Données d''entrée'!$C$334+1,IF('1 Données d''entrée'!$C$336=\"(=NON)\",($B1943*'1 Données d''entrée'!$C$332)*((('1 Données d''entrée'!$C$332+1)^'1 Données d''entrée'!$C$334-1)/('1 Données d''entrée'!$C$332))*(1+'1 Données d''entrée'!$C$332),0),0)","v":0},{"$f":"IF(G1929='1 Données d''entrée'!$C$334+1,IF('1 Données d''entrée'!$C$336=\"(=NON)\",($B1943*'1 Données d''entrée'!$C$332)*((('1 Données d''entrée'!$C$332+1)^'1 Données d''entrée'!$C$334-1)/('1 Données d''entrée'!$C$332))*(1+'1 Données d''entrée'!$C$332),0),0)","v":0},{"$f":"IF(H1929='1 Données d''entrée'!$C$334+1,IF('1 Données d''entrée'!$C$336=\"(=NON)\",($B1943*'1 Données d''entrée'!$C$332)*((('1 Données d''entrée'!$C$332+1)^'1 Données d''entrée'!$C$334-1)/('1 Données d''entrée'!$C$332))*(1+'1 Données d''entrée'!$C$332),0),0)","v":0},{"$f":"IF(I1929='1 Données d''entrée'!$C$334+1,IF('1 Données d''entrée'!$C$336=\"(=NON)\",($B1943*'1 Données d''entrée'!$C$332)*((('1 Données d''entrée'!$C$332+1)^'1 Données d''entrée'!$C$334-1)/('1 Données d''entrée'!$C$332))*(1+'1 Données d''entrée'!$C$332),0),0)","v":0},{"$f":"IF(J1929='1 Données d''entrée'!$C$334+1,IF('1 Données d''entrée'!$C$336=\"(=NON)\",($B1943*'1 Données d''entrée'!$C$332)*((('1 Données d''entrée'!$C$332+1)^'1 Données d''entrée'!$C$334-1)/('1 Données d''entrée'!$C$332))*(1+'1 Données d''entrée'!$C$332),0),0)","v":0},{"$f":"IF(K1929='1 Données d''entrée'!$C$334+1,IF('1 Données d''entrée'!$C$336=\"(=NON)\",($B1943*'1 Données d''entrée'!$C$332)*((('1 Données d''entrée'!$C$332+1)^'1 Données d''entrée'!$C$334-1)/('1 Données d''entrée'!$C$332))*(1+'1 Données d''entrée'!$C$332),0),0)","v":0},{"$f":"IF(L1929='1 Données d''entrée'!$C$334+1,IF('1 Données d''entrée'!$C$336=\"(=NON)\",($B1943*'1 Données d''entrée'!$C$332)*((('1 Données d''entrée'!$C$332+1)^'1 Données d''entrée'!$C$334-1)/('1 Données d''entrée'!$C$332))*(1+'1 Données d''entrée'!$C$332),0),0)","v":0},{"$f":"IF(M1929='1 Données d''entrée'!$C$334+1,IF('1 Données d''entrée'!$C$336=\"(=NON)\",($B1943*'1 Données d''entrée'!$C$332)*((('1 Données d''entrée'!$C$332+1)^'1 Données d''entrée'!$C$334-1)/('1 Données d''entrée'!$C$332))*(1+'1 Données d''entrée'!$C$332),0),0)","v":0},{"$f":"IF(N1929='1 Données d''entrée'!$C$334+1,IF('1 Données d''entrée'!$C$336=\"(=NON)\",($B1943*'1 Données d''entrée'!$C$332)*((('1 Données d''entrée'!$C$332+1)^'1 Données d''entrée'!$C$334-1)/('1 Données d''entrée'!$C$332))*(1+'1 Données d''entrée'!$C$332),0),0)","v":0},{"$f":"IF(O1929='1 Données d''entrée'!$C$334+1,IF('1 Données d''entrée'!$C$336=\"(=NON)\",($B1943*'1 Données d''entrée'!$C$332)*((('1 Données d''entrée'!$C$332+1)^'1 Données d''entrée'!$C$334-1)/('1 Données d''entrée'!$C$332))*(1+'1 Données d''entrée'!$C$332),0),0)","v":0},{"$f":"IF(P1929='1 Données d''entrée'!$C$334+1,IF('1 Données d''entrée'!$C$336=\"(=NON)\",($B1943*'1 Données d''entrée'!$C$332)*((('1 Données d''entrée'!$C$332+1)^'1 Données d''entrée'!$C$334-1)/('1 Données d''entrée'!$C$332))*(1+'1 Données d''entrée'!$C$332),0),0)","v":0},{"$f":"IF(Q1929='1 Données d''entrée'!$C$334+1,IF('1 Données d''entrée'!$C$336=\"(=NON)\",($B1943*'1 Données d''entrée'!$C$332)*((('1 Données d''entrée'!$C$332+1)^'1 Données d''entrée'!$C$334-1)/('1 Données d''entrée'!$C$332))*(1+'1 Données d''entrée'!$C$332),0),0)","v":0},{"$f":"IF(R1929='1 Données d''entrée'!$C$334+1,IF('1 Données d''entrée'!$C$336=\"(=NON)\",($B1943*'1 Données d''entrée'!$C$332)*((('1 Données d''entrée'!$C$332+1)^'1 Données d''entrée'!$C$334-1)/('1 Données d''entrée'!$C$332))*(1+'1 Données d''entrée'!$C$332),0),0)","v":0},{"$f":"IF(S1929='1 Données d''entrée'!$C$334+1,IF('1 Données d''entrée'!$C$336=\"(=NON)\",($B1943*'1 Données d''entrée'!$C$332)*((('1 Données d''entrée'!$C$332+1)^'1 Données d''entrée'!$C$334-1)/('1 Données d''entrée'!$C$332))*(1+'1 Données d''entrée'!$C$332),0),0)","v":0},{"$f":"IF(T1929='1 Données d''entrée'!$C$334+1,IF('1 Données d''entrée'!$C$336=\"(=NON)\",($B1943*'1 Données d''entrée'!$C$332)*((('1 Données d''entrée'!$C$332+1)^'1 Données d''entrée'!$C$334-1)/('1 Données d''entrée'!$C$332))*(1+'1 Données d''entrée'!$C$332),0),0)","v":0},{"$f":"IF(U1929='1 Données d''entrée'!$C$334+1,IF('1 Données d''entrée'!$C$336=\"(=NON)\",($B1943*'1 Données d''entrée'!$C$332)*((('1 Données d''entrée'!$C$332+1)^'1 Données d''entrée'!$C$334-1)/('1 Données d''entrée'!$C$332))*(1+'1 Données d''entrée'!$C$332),0),0)","v":0},{"$f":"IF(V1929='1 Données d''entrée'!$C$334+1,IF('1 Données d''entrée'!$C$336=\"(=NON)\",($B1943*'1 Données d''entrée'!$C$332)*((('1 Données d''entrée'!$C$332+1)^'1 Données d''entrée'!$C$334-1)/('1 Données d''entrée'!$C$332))*(1+'1 Données d''entrée'!$C$332),0),0)","v":0}]
["Prêt bancaire - Option 3: Remboursement vers l'annuité constante",{"$f":"'1 Données d''entrée'!$B$344","v":0},"% de prêt total"]
["Réception ",{"$f":"B1923*B1947","v":0},0,0,0,0,0,0,0,0,0,0,0,0,0,0,0,0,0,0,0,0]
["Remboursement vers l'annuité constante",{"$f":"IF(B1929<'1 Données d''entrée'!$C$334+1,0,IF(B1929<'1 Données d''entrée'!$C$333+'1 Données d''entrée'!$C$334+1,$B1948*('1 Données d''entrée'!$C$332*(1+'1 Données d''entrée'!$C$332)^'1 Données d''entrée'!$C$333)/((1+'1 Données d''entrée'!$C$332)^'1 Données d''entrée'!$C$333-1),0))","v":0},{"$f":"IF(C1929<'1 Données d''entrée'!$C$334+1,0,IF(C1929<'1 Données d''entrée'!$C$333+'1 Données d''entrée'!$C$334+1,$B1948*('1 Données d''entrée'!$C$332*(1+'1 Données d''entrée'!$C$332)^'1 Données d''entrée'!$C$333)/((1+'1 Données d''entrée'!$C$332)^'1 Données d''entrée'!$C$333-1),0))","v":0},{"$f":"IF(D1929<'1 Données d''entrée'!$C$334+1,0,IF(D1929<'1 Données d''entrée'!$C$333+'1 Données d''entrée'!$C$334+1,$B1948*('1 Données d''entrée'!$C$332*(1+'1 Données d''entrée'!$C$332)^'1 Données d''entrée'!$C$333)/((1+'1 Données d''entrée'!$C$332)^'1 Données d''entrée'!$C$333-1),0))","v":0},{"$f":"IF(E1929<'1 Données d''entrée'!$C$334+1,0,IF(E1929<'1 Données d''entrée'!$C$333+'1 Données d''entrée'!$C$334+1,$B1948*('1 Données d''entrée'!$C$332*(1+'1 Données d''entrée'!$C$332)^'1 Données d''entrée'!$C$333)/((1+'1 Données d''entrée'!$C$332)^'1 Données d''entrée'!$C$333-1),0))","v":0},{"$f":"IF(F1929<'1 Données d''entrée'!$C$334+1,0,IF(F1929<'1 Données d''entrée'!$C$333+'1 Données d''entrée'!$C$334+1,$B1948*('1 Données d''entrée'!$C$332*(1+'1 Données d''entrée'!$C$332)^'1 Données d''entrée'!$C$333)/((1+'1 Données d''entrée'!$C$332)^'1 Données d''entrée'!$C$333-1),0))","v":0},{"$f":"IF(G1929<'1 Données d''entrée'!$C$334+1,0,IF(G1929<'1 Données d''entrée'!$C$333+'1 Données d''entrée'!$C$334+1,$B1948*('1 Données d''entrée'!$C$332*(1+'1 Données d''entrée'!$C$332)^'1 Données d''entrée'!$C$333)/((1+'1 Données d''entrée'!$C$332)^'1 Données d''entrée'!$C$333-1),0))","v":0},{"$f":"IF(H1929<'1 Données d''entrée'!$C$334+1,0,IF(H1929<'1 Données d''entrée'!$C$333+'1 Données d''entrée'!$C$334+1,$B1948*('1 Données d''entrée'!$C$332*(1+'1 Données d''entrée'!$C$332)^'1 Données d''entrée'!$C$333)/((1+'1 Données d''entrée'!$C$332)^'1 Données d''entrée'!$C$333-1),0))","v":0},{"$f":"IF(I1929<'1 Données d''entrée'!$C$334+1,0,IF(I1929<'1 Données d''entrée'!$C$333+'1 Données d''entrée'!$C$334+1,$B1948*('1 Données d''entrée'!$C$332*(1+'1 Données d''entrée'!$C$332)^'1 Données d''entrée'!$C$333)/((1+'1 Données d''entrée'!$C$332)^'1 Données d''entrée'!$C$333-1),0))","v":0},{"$f":"IF(J1929<'1 Données d''entrée'!$C$334+1,0,IF(J1929<'1 Données d''entrée'!$C$333+'1 Données d''entrée'!$C$334+1,$B1948*('1 Données d''entrée'!$C$332*(1+'1 Données d''entrée'!$C$332)^'1 Données d''entrée'!$C$333)/((1+'1 Données d''entrée'!$C$332)^'1 Données d''entrée'!$C$333-1),0))","v":0},{"$f":"IF(K1929<'1 Données d''entrée'!$C$334+1,0,IF(K1929<'1 Données d''entrée'!$C$333+'1 Données d''entrée'!$C$334+1,$B1948*('1 Données d''entrée'!$C$332*(1+'1 Données d''entrée'!$C$332)^'1 Données d''entrée'!$C$333)/((1+'1 Données d''entrée'!$C$332)^'1 Données d''entrée'!$C$333-1),0))","v":0},{"$f":"IF(L1929<'1 Données d''entrée'!$C$334+1,0,IF(L1929<'1 Données d''entrée'!$C$333+'1 Données d''entrée'!$C$334+1,$B1948*('1 Données d''entrée'!$C$332*(1+'1 Données d''entrée'!$C$332)^'1 Données d''entrée'!$C$333)/((1+'1 Données d''entrée'!$C$332)^'1 Données d''entrée'!$C$333-1),0))","v":0},{"$f":"IF(M1929<'1 Données d''entrée'!$C$334+1,0,IF(M1929<'1 Données d''entrée'!$C$333+'1 Données d''entrée'!$C$334+1,$B1948*('1 Données d''entrée'!$C$332*(1+'1 Données d''entrée'!$C$332)^'1 Données d''entrée'!$C$333)/((1+'1 Données d''entrée'!$C$332)^'1 Données d''entrée'!$C$333-1),0))","v":0},{"$f":"IF(N1929<'1 Données d''entrée'!$C$334+1,0,IF(N1929<'1 Données d''entrée'!$C$333+'1 Données d''entrée'!$C$334+1,$B1948*('1 Données d''entrée'!$C$332*(1+'1 Données d''entrée'!$C$332)^'1 Données d''entrée'!$C$333)/((1+'1 Données d''entrée'!$C$332)^'1 Données d''entrée'!$C$333-1),0))","v":0},{"$f":"IF(O1929<'1 Données d''entrée'!$C$334+1,0,IF(O1929<'1 Données d''entrée'!$C$333+'1 Données d''entrée'!$C$334+1,$B1948*('1 Données d''entrée'!$C$332*(1+'1 Données d''entrée'!$C$332)^'1 Données d''entrée'!$C$333)/((1+'1 Données d''entrée'!$C$332)^'1 Données d''entrée'!$C$333-1),0))","v":0},{"$f":"IF(P1929<'1 Données d''entrée'!$C$334+1,0,IF(P1929<'1 Données d''entrée'!$C$333+'1 Données d''entrée'!$C$334+1,$B1948*('1 Données d''entrée'!$C$332*(1+'1 Données d''entrée'!$C$332)^'1 Données d''entrée'!$C$333)/((1+'1 Données d''entrée'!$C$332)^'1 Données d''entrée'!$C$333-1),0))","v":0},{"$f":"IF(Q1929<'1 Données d''entrée'!$C$334+1,0,IF(Q1929<'1 Données d''entrée'!$C$333+'1 Données d''entrée'!$C$334+1,$B1948*('1 Données d''entrée'!$C$332*(1+'1 Données d''entrée'!$C$332)^'1 Données d''entrée'!$C$333)/((1+'1 Données d''entrée'!$C$332)^'1 Données d''entrée'!$C$333-1),0))","v":0},{"$f":"IF(R1929<'1 Données d''entrée'!$C$334+1,0,IF(R1929<'1 Données d''entrée'!$C$333+'1 Données d''entrée'!$C$334+1,$B1948*('1 Données d''entrée'!$C$332*(1+'1 Données d''entrée'!$C$332)^'1 Données d''entrée'!$C$333)/((1+'1 Données d''entrée'!$C$332)^'1 Données d''entrée'!$C$333-1),0))","v":0},{"$f":"IF(S1929<'1 Données d''entrée'!$C$334+1,0,IF(S1929<'1 Données d''entrée'!$C$333+'1 Données d''entrée'!$C$334+1,$B1948*('1 Données d''entrée'!$C$332*(1+'1 Données d''entrée'!$C$332)^'1 Données d''entrée'!$C$333)/((1+'1 Données d''entrée'!$C$332)^'1 Données d''entrée'!$C$333-1),0))","v":0},{"$f":"IF(T1929<'1 Données d''entrée'!$C$334+1,0,IF(T1929<'1 Données d''entrée'!$C$333+'1 Données d''entrée'!$C$334+1,$B1948*('1 Données d''entrée'!$C$332*(1+'1 Données d''entrée'!$C$332)^'1 Données d''entrée'!$C$333)/((1+'1 Données d''entrée'!$C$332)^'1 Données d''entrée'!$C$333-1),0))","v":0},{"$f":"IF(U1929<'1 Données d''entrée'!$C$334+1,0,IF(U1929<'1 Données d''entrée'!$C$333+'1 Données d''entrée'!$C$334+1,$B1948*('1 Données d''entrée'!$C$332*(1+'1 Données d''entrée'!$C$332)^'1 Données d''entrée'!$C$333)/((1+'1 Données d''entrée'!$C$332)^'1 Données d''entrée'!$C$333-1),0))","v":0},{"$f":"IF(V1929<'1 Données d''entrée'!$C$334+1,0,IF(V1929<'1 Données d''entrée'!$C$333+'1 Données d''entrée'!$C$334+1,$B1948*('1 Données d''entrée'!$C$332*(1+'1 Données d''entrée'!$C$332)^'1 Données d''entrée'!$C$333)/((1+'1 Données d''entrée'!$C$332)^'1 Données d''entrée'!$C$333-1),0))","v":0}]
["Paiement d'intérêt décroissant inclu dans l'annuité constante",0,{"$f":"IF('1 Données d''entrée'!$C$336=\"(=NON)\",IF(C1949>0,$B1948*((('1 Données d''entrée'!$C$332+1)^'1 Données d''entrée'!$C$333)-(1+'1 Données d''entrée'!$C$332)^('6 Financement'!C$54-1-'1 Données d''entrée'!$C$334))/((1+'1 Données d''entrée'!$C$332)^'1 Données d''entrée'!$C$333-1)*'1 Données d''entrée'!$C$332,0),IF(C1929<'1 Données d''entrée'!$C$334+1,'1 Données d''entrée'!$C$332*'6 Financement'!$B1948,IF(C1949>0,$B$73*((('1 Données d''entrée'!$C$332+1)^'1 Données d''entrée'!$C$333)-(1+'1 Données d''entrée'!$C$332)^('6 Financement'!C$54-1-'1 Données d''entrée'!$C$334))/((1+'1 Données d''entrée'!$C$332)^'1 Données d''entrée'!$C$333-1)*'1 Données d''entrée'!$C$332,0)))","v":0},{"$f":"IF('1 Données d''entrée'!$C$336=\"(=NON)\",IF(D1949>0,$B1948*((('1 Données d''entrée'!$C$332+1)^'1 Données d''entrée'!$C$333)-(1+'1 Données d''entrée'!$C$332)^('6 Financement'!D$54-1-'1 Données d''entrée'!$C$334))/((1+'1 Données d''entrée'!$C$332)^'1 Données d''entrée'!$C$333-1)*'1 Données d''entrée'!$C$332,0),IF(D1929<'1 Données d''entrée'!$C$334+1,'1 Données d''entrée'!$C$332*'6 Financement'!$B1948,IF(D1949>0,$B$73*((('1 Données d''entrée'!$C$332+1)^'1 Données d''entrée'!$C$333)-(1+'1 Données d''entrée'!$C$332)^('6 Financement'!D$54-1-'1 Données d''entrée'!$C$334))/((1+'1 Données d''entrée'!$C$332)^'1 Données d''entrée'!$C$333-1)*'1 Données d''entrée'!$C$332,0)))","v":0},{"$f":"IF('1 Données d''entrée'!$C$336=\"(=NON)\",IF(E1949>0,$B1948*((('1 Données d''entrée'!$C$332+1)^'1 Données d''entrée'!$C$333)-(1+'1 Données d''entrée'!$C$332)^('6 Financement'!E$54-1-'1 Données d''entrée'!$C$334))/((1+'1 Données d''entrée'!$C$332)^'1 Données d''entrée'!$C$333-1)*'1 Données d''entrée'!$C$332,0),IF(E1929<'1 Données d''entrée'!$C$334+1,'1 Données d''entrée'!$C$332*'6 Financement'!$B1948,IF(E1949>0,$B$73*((('1 Données d''entrée'!$C$332+1)^'1 Données d''entrée'!$C$333)-(1+'1 Données d''entrée'!$C$332)^('6 Financement'!E$54-1-'1 Données d''entrée'!$C$334))/((1+'1 Données d''entrée'!$C$332)^'1 Données d''entrée'!$C$333-1)*'1 Données d''entrée'!$C$332,0)))","v":0},{"$f":"IF('1 Données d''entrée'!$C$336=\"(=NON)\",IF(F1949>0,$B1948*((('1 Données d''entrée'!$C$332+1)^'1 Données d''entrée'!$C$333)-(1+'1 Données d''entrée'!$C$332)^('6 Financement'!F$54-1-'1 Données d''entrée'!$C$334))/((1+'1 Données d''entrée'!$C$332)^'1 Données d''entrée'!$C$333-1)*'1 Données d''entrée'!$C$332,0),IF(F1929<'1 Données d''entrée'!$C$334+1,'1 Données d''entrée'!$C$332*'6 Financement'!$B1948,IF(F1949>0,$B$73*((('1 Données d''entrée'!$C$332+1)^'1 Données d''entrée'!$C$333)-(1+'1 Données d''entrée'!$C$332)^('6 Financement'!F$54-1-'1 Données d''entrée'!$C$334))/((1+'1 Données d''entrée'!$C$332)^'1 Données d''entrée'!$C$333-1)*'1 Données d''entrée'!$C$332,0)))","v":0},{"$f":"IF('1 Données d''entrée'!$C$336=\"(=NON)\",IF(G1949>0,$B1948*((('1 Données d''entrée'!$C$332+1)^'1 Données d''entrée'!$C$333)-(1+'1 Données d''entrée'!$C$332)^('6 Financement'!G$54-1-'1 Données d''entrée'!$C$334))/((1+'1 Données d''entrée'!$C$332)^'1 Données d''entrée'!$C$333-1)*'1 Données d''entrée'!$C$332,0),IF(G1929<'1 Données d''entrée'!$C$334+1,'1 Données d''entrée'!$C$332*'6 Financement'!$B1948,IF(G1949>0,$B$73*((('1 Données d''entrée'!$C$332+1)^'1 Données d''entrée'!$C$333)-(1+'1 Données d''entrée'!$C$332)^('6 Financement'!G$54-1-'1 Données d''entrée'!$C$334))/((1+'1 Données d''entrée'!$C$332)^'1 Données d''entrée'!$C$333-1)*'1 Données d''entrée'!$C$332,0)))","v":0},{"$f":"IF('1 Données d''entrée'!$C$336=\"(=NON)\",IF(H1949>0,$B1948*((('1 Données d''entrée'!$C$332+1)^'1 Données d''entrée'!$C$333)-(1+'1 Données d''entrée'!$C$332)^('6 Financement'!H$54-1-'1 Données d''entrée'!$C$334))/((1+'1 Données d''entrée'!$C$332)^'1 Données d''entrée'!$C$333-1)*'1 Données d''entrée'!$C$332,0),IF(H1929<'1 Données d''entrée'!$C$334+1,'1 Données d''entrée'!$C$332*'6 Financement'!$B1948,IF(H1949>0,$B$73*((('1 Données d''entrée'!$C$332+1)^'1 Données d''entrée'!$C$333)-(1+'1 Données d''entrée'!$C$332)^('6 Financement'!H$54-1-'1 Données d''entrée'!$C$334))/((1+'1 Données d''entrée'!$C$332)^'1 Données d''entrée'!$C$333-1)*'1 Données d''entrée'!$C$332,0)))","v":0},{"$f":"IF('1 Données d''entrée'!$C$336=\"(=NON)\",IF(I1949>0,$B1948*((('1 Données d''entrée'!$C$332+1)^'1 Données d''entrée'!$C$333)-(1+'1 Données d''entrée'!$C$332)^('6 Financement'!I$54-1-'1 Données d''entrée'!$C$334))/((1+'1 Données d''entrée'!$C$332)^'1 Données d''entrée'!$C$333-1)*'1 Données d''entrée'!$C$332,0),IF(I1929<'1 Données d''entrée'!$C$334+1,'1 Données d''entrée'!$C$332*'6 Financement'!$B1948,IF(I1949>0,$B$73*((('1 Données d''entrée'!$C$332+1)^'1 Données d''entrée'!$C$333)-(1+'1 Données d''entrée'!$C$332)^('6 Financement'!I$54-1-'1 Données d''entrée'!$C$334))/((1+'1 Données d''entrée'!$C$332)^'1 Données d''entrée'!$C$333-1)*'1 Données d''entrée'!$C$332,0)))","v":0},{"$f":"IF('1 Données d''entrée'!$C$336=\"(=NON)\",IF(J1949>0,$B1948*((('1 Données d''entrée'!$C$332+1)^'1 Données d''entrée'!$C$333)-(1+'1 Données d''entrée'!$C$332)^('6 Financement'!J$54-1-'1 Données d''entrée'!$C$334))/((1+'1 Données d''entrée'!$C$332)^'1 Données d''entrée'!$C$333-1)*'1 Données d''entrée'!$C$332,0),IF(J1929<'1 Données d''entrée'!$C$334+1,'1 Données d''entrée'!$C$332*'6 Financement'!$B1948,IF(J1949>0,$B$73*((('1 Données d''entrée'!$C$332+1)^'1 Données d''entrée'!$C$333)-(1+'1 Données d''entrée'!$C$332)^('6 Financement'!J$54-1-'1 Données d''entrée'!$C$334))/((1+'1 Données d''entrée'!$C$332)^'1 Données d''entrée'!$C$333-1)*'1 Données d''entrée'!$C$332,0)))","v":0},{"$f":"IF('1 Données d''entrée'!$C$336=\"(=NON)\",IF(K1949>0,$B1948*((('1 Données d''entrée'!$C$332+1)^'1 Données d''entrée'!$C$333)-(1+'1 Données d''entrée'!$C$332)^('6 Financement'!K$54-1-'1 Données d''entrée'!$C$334))/((1+'1 Données d''entrée'!$C$332)^'1 Données d''entrée'!$C$333-1)*'1 Données d''entrée'!$C$332,0),IF(K1929<'1 Données d''entrée'!$C$334+1,'1 Données d''entrée'!$C$332*'6 Financement'!$B1948,IF(K1949>0,$B$73*((('1 Données d''entrée'!$C$332+1)^'1 Données d''entrée'!$C$333)-(1+'1 Données d''entrée'!$C$332)^('6 Financement'!K$54-1-'1 Données d''entrée'!$C$334))/((1+'1 Données d''entrée'!$C$332)^'1 Données d''entrée'!$C$333-1)*'1 Données d''entrée'!$C$332,0)))","v":0},{"$f":"IF('1 Données d''entrée'!$C$336=\"(=NON)\",IF(L1949>0,$B1948*((('1 Données d''entrée'!$C$332+1)^'1 Données d''entrée'!$C$333)-(1+'1 Données d''entrée'!$C$332)^('6 Financement'!L$54-1-'1 Données d''entrée'!$C$334))/((1+'1 Données d''entrée'!$C$332)^'1 Données d''entrée'!$C$333-1)*'1 Données d''entrée'!$C$332,0),IF(L1929<'1 Données d''entrée'!$C$334+1,'1 Données d''entrée'!$C$332*'6 Financement'!$B1948,IF(L1949>0,$B$73*((('1 Données d''entrée'!$C$332+1)^'1 Données d''entrée'!$C$333)-(1+'1 Données d''entrée'!$C$332)^('6 Financement'!L$54-1-'1 Données d''entrée'!$C$334))/((1+'1 Données d''entrée'!$C$332)^'1 Données d''entrée'!$C$333-1)*'1 Données d''entrée'!$C$332,0)))","v":0},{"$f":"IF('1 Données d''entrée'!$C$336=\"(=NON)\",IF(M1949>0,$B1948*((('1 Données d''entrée'!$C$332+1)^'1 Données d''entrée'!$C$333)-(1+'1 Données d''entrée'!$C$332)^('6 Financement'!M$54-1-'1 Données d''entrée'!$C$334))/((1+'1 Données d''entrée'!$C$332)^'1 Données d''entrée'!$C$333-1)*'1 Données d''entrée'!$C$332,0),IF(M1929<'1 Données d''entrée'!$C$334+1,'1 Données d''entrée'!$C$332*'6 Financement'!$B1948,IF(M1949>0,$B$73*((('1 Données d''entrée'!$C$332+1)^'1 Données d''entrée'!$C$333)-(1+'1 Données d''entrée'!$C$332)^('6 Financement'!M$54-1-'1 Données d''entrée'!$C$334))/((1+'1 Données d''entrée'!$C$332)^'1 Données d''entrée'!$C$333-1)*'1 Données d''entrée'!$C$332,0)))","v":0},{"$f":"IF('1 Données d''entrée'!$C$336=\"(=NON)\",IF(N1949>0,$B1948*((('1 Données d''entrée'!$C$332+1)^'1 Données d''entrée'!$C$333)-(1+'1 Données d''entrée'!$C$332)^('6 Financement'!N$54-1-'1 Données d''entrée'!$C$334))/((1+'1 Données d''entrée'!$C$332)^'1 Données d''entrée'!$C$333-1)*'1 Données d''entrée'!$C$332,0),IF(N1929<'1 Données d''entrée'!$C$334+1,'1 Données d''entrée'!$C$332*'6 Financement'!$B1948,IF(N1949>0,$B$73*((('1 Données d''entrée'!$C$332+1)^'1 Données d''entrée'!$C$333)-(1+'1 Données d''entrée'!$C$332)^('6 Financement'!N$54-1-'1 Données d''entrée'!$C$334))/((1+'1 Données d''entrée'!$C$332)^'1 Données d''entrée'!$C$333-1)*'1 Données d''entrée'!$C$332,0)))","v":0},{"$f":"IF('1 Données d''entrée'!$C$336=\"(=NON)\",IF(O1949>0,$B1948*((('1 Données d''entrée'!$C$332+1)^'1 Données d''entrée'!$C$333)-(1+'1 Données d''entrée'!$C$332)^('6 Financement'!O$54-1-'1 Données d''entrée'!$C$334))/((1+'1 Données d''entrée'!$C$332)^'1 Données d''entrée'!$C$333-1)*'1 Données d''entrée'!$C$332,0),IF(O1929<'1 Données d''entrée'!$C$334+1,'1 Données d''entrée'!$C$332*'6 Financement'!$B1948,IF(O1949>0,$B$73*((('1 Données d''entrée'!$C$332+1)^'1 Données d''entrée'!$C$333)-(1+'1 Données d''entrée'!$C$332)^('6 Financement'!O$54-1-'1 Données d''entrée'!$C$334))/((1+'1 Données d''entrée'!$C$332)^'1 Données d''entrée'!$C$333-1)*'1 Données d''entrée'!$C$332,0)))","v":0},{"$f":"IF('1 Données d''entrée'!$C$336=\"(=NON)\",IF(P1949>0,$B1948*((('1 Données d''entrée'!$C$332+1)^'1 Données d''entrée'!$C$333)-(1+'1 Données d''entrée'!$C$332)^('6 Financement'!P$54-1-'1 Données d''entrée'!$C$334))/((1+'1 Données d''entrée'!$C$332)^'1 Données d''entrée'!$C$333-1)*'1 Données d''entrée'!$C$332,0),IF(P1929<'1 Données d''entrée'!$C$334+1,'1 Données d''entrée'!$C$332*'6 Financement'!$B1948,IF(P1949>0,$B$73*((('1 Données d''entrée'!$C$332+1)^'1 Données d''entrée'!$C$333)-(1+'1 Données d''entrée'!$C$332)^('6 Financement'!P$54-1-'1 Données d''entrée'!$C$334))/((1+'1 Données d''entrée'!$C$332)^'1 Données d''entrée'!$C$333-1)*'1 Données d''entrée'!$C$332,0)))","v":0},{"$f":"IF('1 Données d''entrée'!$C$336=\"(=NON)\",IF(Q1949>0,$B1948*((('1 Données d''entrée'!$C$332+1)^'1 Données d''entrée'!$C$333)-(1+'1 Données d''entrée'!$C$332)^('6 Financement'!Q$54-1-'1 Données d''entrée'!$C$334))/((1+'1 Données d''entrée'!$C$332)^'1 Données d''entrée'!$C$333-1)*'1 Données d''entrée'!$C$332,0),IF(Q1929<'1 Données d''entrée'!$C$334+1,'1 Données d''entrée'!$C$332*'6 Financement'!$B1948,IF(Q1949>0,$B$73*((('1 Données d''entrée'!$C$332+1)^'1 Données d''entrée'!$C$333)-(1+'1 Données d''entrée'!$C$332)^('6 Financement'!Q$54-1-'1 Données d''entrée'!$C$334))/((1+'1 Données d''entrée'!$C$332)^'1 Données d''entrée'!$C$333-1)*'1 Données d''entrée'!$C$332,0)))","v":0},{"$f":"IF('1 Données d''entrée'!$C$336=\"(=NON)\",IF(R1949>0,$B1948*((('1 Données d''entrée'!$C$332+1)^'1 Données d''entrée'!$C$333)-(1+'1 Données d''entrée'!$C$332)^('6 Financement'!R$54-1-'1 Données d''entrée'!$C$334))/((1+'1 Données d''entrée'!$C$332)^'1 Données d''entrée'!$C$333-1)*'1 Données d''entrée'!$C$332,0),IF(R1929<'1 Données d''entrée'!$C$334+1,'1 Données d''entrée'!$C$332*'6 Financement'!$B1948,IF(R1949>0,$B$73*((('1 Données d''entrée'!$C$332+1)^'1 Données d''entrée'!$C$333)-(1+'1 Données d''entrée'!$C$332)^('6 Financement'!R$54-1-'1 Données d''entrée'!$C$334))/((1+'1 Données d''entrée'!$C$332)^'1 Données d''entrée'!$C$333-1)*'1 Données d''entrée'!$C$332,0)))","v":0},{"$f":"IF('1 Données d''entrée'!$C$336=\"(=NON)\",IF(S1949>0,$B1948*((('1 Données d''entrée'!$C$332+1)^'1 Données d''entrée'!$C$333)-(1+'1 Données d''entrée'!$C$332)^('6 Financement'!S$54-1-'1 Données d''entrée'!$C$334))/((1+'1 Données d''entrée'!$C$332)^'1 Données d''entrée'!$C$333-1)*'1 Données d''entrée'!$C$332,0),IF(S1929<'1 Données d''entrée'!$C$334+1,'1 Données d''entrée'!$C$332*'6 Financement'!$B1948,IF(S1949>0,$B$73*((('1 Données d''entrée'!$C$332+1)^'1 Données d''entrée'!$C$333)-(1+'1 Données d''entrée'!$C$332)^('6 Financement'!S$54-1-'1 Données d''entrée'!$C$334))/((1+'1 Données d''entrée'!$C$332)^'1 Données d''entrée'!$C$333-1)*'1 Données d''entrée'!$C$332,0)))","v":0},{"$f":"IF('1 Données d''entrée'!$C$336=\"(=NON)\",IF(T1949>0,$B1948*((('1 Données d''entrée'!$C$332+1)^'1 Données d''entrée'!$C$333)-(1+'1 Données d''entrée'!$C$332)^('6 Financement'!T$54-1-'1 Données d''entrée'!$C$334))/((1+'1 Données d''entrée'!$C$332)^'1 Données d''entrée'!$C$333-1)*'1 Données d''entrée'!$C$332,0),IF(T1929<'1 Données d''entrée'!$C$334+1,'1 Données d''entrée'!$C$332*'6 Financement'!$B1948,IF(T1949>0,$B$73*((('1 Données d''entrée'!$C$332+1)^'1 Données d''entrée'!$C$333)-(1+'1 Données d''entrée'!$C$332)^('6 Financement'!T$54-1-'1 Données d''entrée'!$C$334))/((1+'1 Données d''entrée'!$C$332)^'1 Données d''entrée'!$C$333-1)*'1 Données d''entrée'!$C$332,0)))","v":0},{"$f":"IF('1 Données d''entrée'!$C$336=\"(=NON)\",IF(U1949>0,$B1948*((('1 Données d''entrée'!$C$332+1)^'1 Données d''entrée'!$C$333)-(1+'1 Données d''entrée'!$C$332)^('6 Financement'!U$54-1-'1 Données d''entrée'!$C$334))/((1+'1 Données d''entrée'!$C$332)^'1 Données d''entrée'!$C$333-1)*'1 Données d''entrée'!$C$332,0),IF(U1929<'1 Données d''entrée'!$C$334+1,'1 Données d''entrée'!$C$332*'6 Financement'!$B1948,IF(U1949>0,$B$73*((('1 Données d''entrée'!$C$332+1)^'1 Données d''entrée'!$C$333)-(1+'1 Données d''entrée'!$C$332)^('6 Financement'!U$54-1-'1 Données d''entrée'!$C$334))/((1+'1 Données d''entrée'!$C$332)^'1 Données d''entrée'!$C$333-1)*'1 Données d''entrée'!$C$332,0)))","v":0},{"$f":"IF('1 Données d''entrée'!$C$336=\"(=NON)\",IF(V1949>0,$B1948*((('1 Données d''entrée'!$C$332+1)^'1 Données d''entrée'!$C$333)-(1+'1 Données d''entrée'!$C$332)^('6 Financement'!V$54-1-'1 Données d''entrée'!$C$334))/((1+'1 Données d''entrée'!$C$332)^'1 Données d''entrée'!$C$333-1)*'1 Données d''entrée'!$C$332,0),IF(V1929<'1 Données d''entrée'!$C$334+1,'1 Données d''entrée'!$C$332*'6 Financement'!$B1948,IF(V1949>0,$B$73*((('1 Données d''entrée'!$C$332+1)^'1 Données d''entrée'!$C$333)-(1+'1 Données d''entrée'!$C$332)^('6 Financement'!V$54-1-'1 Données d''entrée'!$C$334))/((1+'1 Données d''entrée'!$C$332)^'1 Données d''entrée'!$C$333-1)*'1 Données d''entrée'!$C$332,0)))","v":0}]
["Paiements d'intérêt avec des intérêts composés en cas d'absence des paiements dans la période de grâce",0,0,{"$f":"IF(D1929='1 Données d''entrée'!$C$334+1,IF('1 Données d''entrée'!$C$336=\"(=NON)\",($B1948*'1 Données d''entrée'!$C$332)*((('1 Données d''entrée'!$C$332+1)^'1 Données d''entrée'!$C$334-1)/('1 Données d''entrée'!$C$332))*(1+'1 Données d''entrée'!$C$332),0),0)","v":0},{"$f":"IF(E1929='1 Données d''entrée'!$C$334+1,IF('1 Données d''entrée'!$C$336=\"(=NON)\",($B1948*'1 Données d''entrée'!$C$332)*((('1 Données d''entrée'!$C$332+1)^'1 Données d''entrée'!$C$334-1)/('1 Données d''entrée'!$C$332))*(1+'1 Données d''entrée'!$C$332),0),0)","v":0},{"$f":"IF(F1929='1 Données d''entrée'!$C$334+1,IF('1 Données d''entrée'!$C$336=\"(=NON)\",($B1948*'1 Données d''entrée'!$C$332)*((('1 Données d''entrée'!$C$332+1)^'1 Données d''entrée'!$C$334-1)/('1 Données d''entrée'!$C$332))*(1+'1 Données d''entrée'!$C$332),0),0)","v":0},{"$f":"IF(G1929='1 Données d''entrée'!$C$334+1,IF('1 Données d''entrée'!$C$336=\"(=NON)\",($B1948*'1 Données d''entrée'!$C$332)*((('1 Données d''entrée'!$C$332+1)^'1 Données d''entrée'!$C$334-1)/('1 Données d''entrée'!$C$332))*(1+'1 Données d''entrée'!$C$332),0),0)","v":0},{"$f":"IF(H1929='1 Données d''entrée'!$C$334+1,IF('1 Données d''entrée'!$C$336=\"(=NON)\",($B1948*'1 Données d''entrée'!$C$332)*((('1 Données d''entrée'!$C$332+1)^'1 Données d''entrée'!$C$334-1)/('1 Données d''entrée'!$C$332))*(1+'1 Données d''entrée'!$C$332),0),0)","v":0},{"$f":"IF(I1929='1 Données d''entrée'!$C$334+1,IF('1 Données d''entrée'!$C$336=\"(=NON)\",($B1948*'1 Données d''entrée'!$C$332)*((('1 Données d''entrée'!$C$332+1)^'1 Données d''entrée'!$C$334-1)/('1 Données d''entrée'!$C$332))*(1+'1 Données d''entrée'!$C$332),0),0)","v":0},{"$f":"IF(J1929='1 Données d''entrée'!$C$334+1,IF('1 Données d''entrée'!$C$336=\"(=NON)\",($B1948*'1 Données d''entrée'!$C$332)*((('1 Données d''entrée'!$C$332+1)^'1 Données d''entrée'!$C$334-1)/('1 Données d''entrée'!$C$332))*(1+'1 Données d''entrée'!$C$332),0),0)","v":0},{"$f":"IF(K1929='1 Données d''entrée'!$C$334+1,IF('1 Données d''entrée'!$C$336=\"(=NON)\",($B1948*'1 Données d''entrée'!$C$332)*((('1 Données d''entrée'!$C$332+1)^'1 Données d''entrée'!$C$334-1)/('1 Données d''entrée'!$C$332))*(1+'1 Données d''entrée'!$C$332),0),0)","v":0},{"$f":"IF(L1929='1 Données d''entrée'!$C$334+1,IF('1 Données d''entrée'!$C$336=\"(=NON)\",($B1948*'1 Données d''entrée'!$C$332)*((('1 Données d''entrée'!$C$332+1)^'1 Données d''entrée'!$C$334-1)/('1 Données d''entrée'!$C$332))*(1+'1 Données d''entrée'!$C$332),0),0)","v":0},{"$f":"IF(M1929='1 Données d''entrée'!$C$334+1,IF('1 Données d''entrée'!$C$336=\"(=NON)\",($B1948*'1 Données d''entrée'!$C$332)*((('1 Données d''entrée'!$C$332+1)^'1 Données d''entrée'!$C$334-1)/('1 Données d''entrée'!$C$332))*(1+'1 Données d''entrée'!$C$332),0),0)","v":0},{"$f":"IF(N1929='1 Données d''entrée'!$C$334+1,IF('1 Données d''entrée'!$C$336=\"(=NON)\",($B1948*'1 Données d''entrée'!$C$332)*((('1 Données d''entrée'!$C$332+1)^'1 Données d''entrée'!$C$334-1)/('1 Données d''entrée'!$C$332))*(1+'1 Données d''entrée'!$C$332),0),0)","v":0},{"$f":"IF(O1929='1 Données d''entrée'!$C$334+1,IF('1 Données d''entrée'!$C$336=\"(=NON)\",($B1948*'1 Données d''entrée'!$C$332)*((('1 Données d''entrée'!$C$332+1)^'1 Données d''entrée'!$C$334-1)/('1 Données d''entrée'!$C$332))*(1+'1 Données d''entrée'!$C$332),0),0)","v":0},{"$f":"IF(P1929='1 Données d''entrée'!$C$334+1,IF('1 Données d''entrée'!$C$336=\"(=NON)\",($B1948*'1 Données d''entrée'!$C$332)*((('1 Données d''entrée'!$C$332+1)^'1 Données d''entrée'!$C$334-1)/('1 Données d''entrée'!$C$332))*(1+'1 Données d''entrée'!$C$332),0),0)","v":0},{"$f":"IF(Q1929='1 Données d''entrée'!$C$334+1,IF('1 Données d''entrée'!$C$336=\"(=NON)\",($B1948*'1 Données d''entrée'!$C$332)*((('1 Données d''entrée'!$C$332+1)^'1 Données d''entrée'!$C$334-1)/('1 Données d''entrée'!$C$332))*(1+'1 Données d''entrée'!$C$332),0),0)","v":0},{"$f":"IF(R1929='1 Données d''entrée'!$C$334+1,IF('1 Données d''entrée'!$C$336=\"(=NON)\",($B1948*'1 Données d''entrée'!$C$332)*((('1 Données d''entrée'!$C$332+1)^'1 Données d''entrée'!$C$334-1)/('1 Données d''entrée'!$C$332))*(1+'1 Données d''entrée'!$C$332),0),0)","v":0},{"$f":"IF(S1929='1 Données d''entrée'!$C$334+1,IF('1 Données d''entrée'!$C$336=\"(=NON)\",($B1948*'1 Données d''entrée'!$C$332)*((('1 Données d''entrée'!$C$332+1)^'1 Données d''entrée'!$C$334-1)/('1 Données d''entrée'!$C$332))*(1+'1 Données d''entrée'!$C$332),0),0)","v":0},{"$f":"IF(T1929='1 Données d''entrée'!$C$334+1,IF('1 Données d''entrée'!$C$336=\"(=NON)\",($B1948*'1 Données d''entrée'!$C$332)*((('1 Données d''entrée'!$C$332+1)^'1 Données d''entrée'!$C$334-1)/('1 Données d''entrée'!$C$332))*(1+'1 Données d''entrée'!$C$332),0),0)","v":0},{"$f":"IF(U1929='1 Données d''entrée'!$C$334+1,IF('1 Données d''entrée'!$C$336=\"(=NON)\",($B1948*'1 Données d''entrée'!$C$332)*((('1 Données d''entrée'!$C$332+1)^'1 Données d''entrée'!$C$334-1)/('1 Données d''entrée'!$C$332))*(1+'1 Données d''entrée'!$C$332),0),0)","v":0},{"$f":"IF(V1929='1 Données d''entrée'!$C$334+1,IF('1 Données d''entrée'!$C$336=\"(=NON)\",($B1948*'1 Données d''entrée'!$C$332)*((('1 Données d''entrée'!$C$332+1)^'1 Données d''entrée'!$C$334-1)/('1 Données d''entrée'!$C$332))*(1+'1 Données d''entrée'!$C$332),0),0)","v":0}]
[]
["Fonds d'autres donneurs / investisseurs - Subvention",{"$f":"'1 Données d''entrée'!$B$307","v":0}]
["Fonds d'autre donneurs / investisseurs - Prêt; Option 1: Remboursement du principal fractionné",{"$f":"'1 Données d''entrée'!$B$319","v":0},"% de prêt total"]
["Réception et montant restant",{"$f":"'1 Données d''entrée'!$B$306*'1 Données d''entrée'!$B$319+'1 Données d''entrée'!$B$306*'1 Données d''entrée'!$C$316","v":0},{"$f":"B1955-C1956","v":0},{"$f":"C1955-D1956","v":0},0,0,0,0,0,0,0,0,0,0,0,0,0,0,0,0,0,0]
["Remboursement du principal",0,{"$f":"IF(C1929<'1 Données d''entrée'!$C$312+1,0,IF(C1929<'1 Données d''entrée'!$C$312+'1 Données d''entrée'!$C$311+1,($B1955/'1 Données d''entrée'!$C$311),0))","v":0},{"$f":"IF(D1929<'1 Données d''entrée'!$C$312+1,0,IF(D1929<'1 Données d''entrée'!$C$312+'1 Données d''entrée'!$C$311+1,($B1955/'1 Données d''entrée'!$C$311),0))","v":0},{"$f":"IF(E1929<'1 Données d''entrée'!$C$312+1,0,IF(E1929<'1 Données d''entrée'!$C$312+'1 Données d''entrée'!$C$311+1,($B1955/'1 Données d''entrée'!$C$311),0))","v":0},{"$f":"IF(F1929<'1 Données d''entrée'!$C$312+1,0,IF(F1929<'1 Données d''entrée'!$C$312+'1 Données d''entrée'!$C$311+1,($B1955/'1 Données d''entrée'!$C$311),0))","v":0},{"$f":"IF(G1929<'1 Données d''entrée'!$C$312+1,0,IF(G1929<'1 Données d''entrée'!$C$312+'1 Données d''entrée'!$C$311+1,($B1955/'1 Données d''entrée'!$C$311),0))","v":0},{"$f":"IF(H1929<'1 Données d''entrée'!$C$312+1,0,IF(H1929<'1 Données d''entrée'!$C$312+'1 Données d''entrée'!$C$311+1,($B1955/'1 Données d''entrée'!$C$311),0))","v":0},{"$f":"IF(I1929<'1 Données d''entrée'!$C$312+1,0,IF(I1929<'1 Données d''entrée'!$C$312+'1 Données d''entrée'!$C$311+1,($B1955/'1 Données d''entrée'!$C$311),0))","v":0},{"$f":"IF(J1929<'1 Données d''entrée'!$C$312+1,0,IF(J1929<'1 Données d''entrée'!$C$312+'1 Données d''entrée'!$C$311+1,($B1955/'1 Données d''entrée'!$C$311),0))","v":0},{"$f":"IF(K1929<'1 Données d''entrée'!$C$312+1,0,IF(K1929<'1 Données d''entrée'!$C$312+'1 Données d''entrée'!$C$311+1,($B1955/'1 Données d''entrée'!$C$311),0))","v":0},{"$f":"IF(L1929<'1 Données d''entrée'!$C$312+1,0,IF(L1929<'1 Données d''entrée'!$C$312+'1 Données d''entrée'!$C$311+1,($B1955/'1 Données d''entrée'!$C$311),0))","v":0},{"$f":"IF(M1929<'1 Données d''entrée'!$C$312+1,0,IF(M1929<'1 Données d''entrée'!$C$312+'1 Données d''entrée'!$C$311+1,($B1955/'1 Données d''entrée'!$C$311),0))","v":0},{"$f":"IF(N1929<'1 Données d''entrée'!$C$312+1,0,IF(N1929<'1 Données d''entrée'!$C$312+'1 Données d''entrée'!$C$311+1,($B1955/'1 Données d''entrée'!$C$311),0))","v":0},{"$f":"IF(O1929<'1 Données d''entrée'!$C$312+1,0,IF(O1929<'1 Données d''entrée'!$C$312+'1 Données d''entrée'!$C$311+1,($B1955/'1 Données d''entrée'!$C$311),0))","v":0},{"$f":"IF(P1929<'1 Données d''entrée'!$C$312+1,0,IF(P1929<'1 Données d''entrée'!$C$312+'1 Données d''entrée'!$C$311+1,($B1955/'1 Données d''entrée'!$C$311),0))","v":0},{"$f":"IF(Q1929<'1 Données d''entrée'!$C$312+1,0,IF(Q1929<'1 Données d''entrée'!$C$312+'1 Données d''entrée'!$C$311+1,($B1955/'1 Données d''entrée'!$C$311),0))","v":0},{"$f":"IF(R1929<'1 Données d''entrée'!$C$312+1,0,IF(R1929<'1 Données d''entrée'!$C$312+'1 Données d''entrée'!$C$311+1,($B1955/'1 Données d''entrée'!$C$311),0))","v":0},{"$f":"IF(S1929<'1 Données d''entrée'!$C$312+1,0,IF(S1929<'1 Données d''entrée'!$C$312+'1 Données d''entrée'!$C$311+1,($B1955/'1 Données d''entrée'!$C$311),0))","v":0},{"$f":"IF(T1929<'1 Données d''entrée'!$C$312+1,0,IF(T1929<'1 Données d''entrée'!$C$312+'1 Données d''entrée'!$C$311+1,($B1955/'1 Données d''entrée'!$C$311),0))","v":0},{"$f":"IF(U1929<'1 Données d''entrée'!$C$312+1,0,IF(U1929<'1 Données d''entrée'!$C$312+'1 Données d''entrée'!$C$311+1,($B1955/'1 Données d''entrée'!$C$311),0))","v":0},{"$f":"IF(V1929<'1 Données d''entrée'!$C$312+1,0,IF(V1929<'1 Données d''entrée'!$C$312+'1 Données d''entrée'!$C$311+1,($B1955/'1 Données d''entrée'!$C$311),0))","v":0}]
["Paiement d'intérêts",0,{"$f":"IF('1 Données d''entrée'!$C$314=\"(=NON)\",IF(C1929<'1 Données d''entrée'!$C$312+1,0,B1955*'1 Données d''entrée'!$C$310),B1955*'1 Données d''entrée'!$C$310)","v":0},{"$f":"IF('1 Données d''entrée'!$C$314=\"(=NON)\",IF(D1929<'1 Données d''entrée'!$C$312+1,0,C1955*'1 Données d''entrée'!$C$310),C1955*'1 Données d''entrée'!$C$310)","v":0},{"$f":"IF('1 Données d''entrée'!$C$314=\"(=NON)\",IF(E1929<'1 Données d''entrée'!$C$312+1,0,D1955*'1 Données d''entrée'!$C$310),D1955*'1 Données d''entrée'!$C$310)","v":0},{"$f":"IF('1 Données d''entrée'!$C$314=\"(=NON)\",IF(F1929<'1 Données d''entrée'!$C$312+1,0,E1955*'1 Données d''entrée'!$C$310),E1955*'1 Données d''entrée'!$C$310)","v":0},{"$f":"IF('1 Données d''entrée'!$C$314=\"(=NON)\",IF(G1929<'1 Données d''entrée'!$C$312+1,0,F1955*'1 Données d''entrée'!$C$310),F1955*'1 Données d''entrée'!$C$310)","v":0},{"$f":"IF('1 Données d''entrée'!$C$314=\"(=NON)\",IF(H1929<'1 Données d''entrée'!$C$312+1,0,G1955*'1 Données d''entrée'!$C$310),G1955*'1 Données d''entrée'!$C$310)","v":0},{"$f":"IF('1 Données d''entrée'!$C$314=\"(=NON)\",IF(I1929<'1 Données d''entrée'!$C$312+1,0,H1955*'1 Données d''entrée'!$C$310),H1955*'1 Données d''entrée'!$C$310)","v":0},{"$f":"IF('1 Données d''entrée'!$C$314=\"(=NON)\",IF(J1929<'1 Données d''entrée'!$C$312+1,0,I1955*'1 Données d''entrée'!$C$310),I1955*'1 Données d''entrée'!$C$310)","v":0},{"$f":"IF('1 Données d''entrée'!$C$314=\"(=NON)\",IF(K1929<'1 Données d''entrée'!$C$312+1,0,J1955*'1 Données d''entrée'!$C$310),J1955*'1 Données d''entrée'!$C$310)","v":0},{"$f":"IF('1 Données d''entrée'!$C$314=\"(=NON)\",IF(L1929<'1 Données d''entrée'!$C$312+1,0,K1955*'1 Données d''entrée'!$C$310),K1955*'1 Données d''entrée'!$C$310)","v":0},{"$f":"IF('1 Données d''entrée'!$C$314=\"(=NON)\",IF(M1929<'1 Données d''entrée'!$C$312+1,0,L1955*'1 Données d''entrée'!$C$310),L1955*'1 Données d''entrée'!$C$310)","v":0},{"$f":"IF('1 Données d''entrée'!$C$314=\"(=NON)\",IF(N1929<'1 Données d''entrée'!$C$312+1,0,M1955*'1 Données d''entrée'!$C$310),M1955*'1 Données d''entrée'!$C$310)","v":0},{"$f":"IF('1 Données d''entrée'!$C$314=\"(=NON)\",IF(O1929<'1 Données d''entrée'!$C$312+1,0,N1955*'1 Données d''entrée'!$C$310),N1955*'1 Données d''entrée'!$C$310)","v":0},{"$f":"IF('1 Données d''entrée'!$C$314=\"(=NON)\",IF(P1929<'1 Données d''entrée'!$C$312+1,0,O1955*'1 Données d''entrée'!$C$310),O1955*'1 Données d''entrée'!$C$310)","v":0},{"$f":"IF('1 Données d''entrée'!$C$314=\"(=NON)\",IF(Q1929<'1 Données d''entrée'!$C$312+1,0,P1955*'1 Données d''entrée'!$C$310),P1955*'1 Données d''entrée'!$C$310)","v":0},{"$f":"IF('1 Données d''entrée'!$C$314=\"(=NON)\",IF(R1929<'1 Données d''entrée'!$C$312+1,0,Q1955*'1 Données d''entrée'!$C$310),Q1955*'1 Données d''entrée'!$C$310)","v":0},{"$f":"IF('1 Données d''entrée'!$C$314=\"(=NON)\",IF(S1929<'1 Données d''entrée'!$C$312+1,0,R1955*'1 Données d''entrée'!$C$310),R1955*'1 Données d''entrée'!$C$310)","v":0},{"$f":"IF('1 Données d''entrée'!$C$314=\"(=NON)\",IF(T1929<'1 Données d''entrée'!$C$312+1,0,S1955*'1 Données d''entrée'!$C$310),S1955*'1 Données d''entrée'!$C$310)","v":0},{"$f":"IF('1 Données d''entrée'!$C$314=\"(=NON)\",IF(U1929<'1 Données d''entrée'!$C$312+1,0,T1955*'1 Données d''entrée'!$C$310),T1955*'1 Données d''entrée'!$C$310)","v":0},{"$f":"IF('1 Données d''entrée'!$C$314=\"(=NON)\",IF(V1929<'1 Données d''entrée'!$C$312+1,0,U1955*'1 Données d''entrée'!$C$310),U1955*'1 Données d''entrée'!$C$310)","v":0}]
["Paiements d'intérêt avec des intérêts composés en cas d'absence des paiements dans la période de grâce",0,0,{"$f":"IF(D1929='1 Données d''entrée'!$C$312+1,IF('1 Données d''entrée'!$C$314=\"(=NON)\",($B1955*'1 Données d''entrée'!$C$310)*((('1 Données d''entrée'!$C$310+1)^'1 Données d''entrée'!$C$312-1)/('1 Données d''entrée'!$C$310))*(1+'1 Données d''entrée'!$C$310),0),0)","v":0},{"$f":"IF(E1929='1 Données d''entrée'!$C$312+1,IF('1 Données d''entrée'!$C$314=\"(=NON)\",($B1955*'1 Données d''entrée'!$C$310)*((('1 Données d''entrée'!$C$310+1)^'1 Données d''entrée'!$C$312-1)/('1 Données d''entrée'!$C$310))*(1+'1 Données d''entrée'!$C$310),0),0)","v":0},{"$f":"IF(F1929='1 Données d''entrée'!$C$312+1,IF('1 Données d''entrée'!$C$314=\"(=NON)\",($B1955*'1 Données d''entrée'!$C$310)*((('1 Données d''entrée'!$C$310+1)^'1 Données d''entrée'!$C$312-1)/('1 Données d''entrée'!$C$310))*(1+'1 Données d''entrée'!$C$310),0),0)","v":0},{"$f":"IF(G1929='1 Données d''entrée'!$C$312+1,IF('1 Données d''entrée'!$C$314=\"(=NON)\",($B1955*'1 Données d''entrée'!$C$310)*((('1 Données d''entrée'!$C$310+1)^'1 Données d''entrée'!$C$312-1)/('1 Données d''entrée'!$C$310))*(1+'1 Données d''entrée'!$C$310),0),0)","v":0},{"$f":"IF(H1929='1 Données d''entrée'!$C$312+1,IF('1 Données d''entrée'!$C$314=\"(=NON)\",($B1955*'1 Données d''entrée'!$C$310)*((('1 Données d''entrée'!$C$310+1)^'1 Données d''entrée'!$C$312-1)/('1 Données d''entrée'!$C$310))*(1+'1 Données d''entrée'!$C$310),0),0)","v":0},{"$f":"IF(I1929='1 Données d''entrée'!$C$312+1,IF('1 Données d''entrée'!$C$314=\"(=NON)\",($B1955*'1 Données d''entrée'!$C$310)*((('1 Données d''entrée'!$C$310+1)^'1 Données d''entrée'!$C$312-1)/('1 Données d''entrée'!$C$310))*(1+'1 Données d''entrée'!$C$310),0),0)","v":0},{"$f":"IF(J1929='1 Données d''entrée'!$C$312+1,IF('1 Données d''entrée'!$C$314=\"(=NON)\",($B1955*'1 Données d''entrée'!$C$310)*((('1 Données d''entrée'!$C$310+1)^'1 Données d''entrée'!$C$312-1)/('1 Données d''entrée'!$C$310))*(1+'1 Données d''entrée'!$C$310),0),0)","v":0},{"$f":"IF(K1929='1 Données d''entrée'!$C$312+1,IF('1 Données d''entrée'!$C$314=\"(=NON)\",($B1955*'1 Données d''entrée'!$C$310)*((('1 Données d''entrée'!$C$310+1)^'1 Données d''entrée'!$C$312-1)/('1 Données d''entrée'!$C$310))*(1+'1 Données d''entrée'!$C$310),0),0)","v":0},{"$f":"IF(L1929='1 Données d''entrée'!$C$312+1,IF('1 Données d''entrée'!$C$314=\"(=NON)\",($B1955*'1 Données d''entrée'!$C$310)*((('1 Données d''entrée'!$C$310+1)^'1 Données d''entrée'!$C$312-1)/('1 Données d''entrée'!$C$310))*(1+'1 Données d''entrée'!$C$310),0),0)","v":0},{"$f":"IF(M1929='1 Données d''entrée'!$C$312+1,IF('1 Données d''entrée'!$C$314=\"(=NON)\",($B1955*'1 Données d''entrée'!$C$310)*((('1 Données d''entrée'!$C$310+1)^'1 Données d''entrée'!$C$312-1)/('1 Données d''entrée'!$C$310))*(1+'1 Données d''entrée'!$C$310),0),0)","v":0},{"$f":"IF(N1929='1 Données d''entrée'!$C$312+1,IF('1 Données d''entrée'!$C$314=\"(=NON)\",($B1955*'1 Données d''entrée'!$C$310)*((('1 Données d''entrée'!$C$310+1)^'1 Données d''entrée'!$C$312-1)/('1 Données d''entrée'!$C$310))*(1+'1 Données d''entrée'!$C$310),0),0)","v":0},{"$f":"IF(O1929='1 Données d''entrée'!$C$312+1,IF('1 Données d''entrée'!$C$314=\"(=NON)\",($B1955*'1 Données d''entrée'!$C$310)*((('1 Données d''entrée'!$C$310+1)^'1 Données d''entrée'!$C$312-1)/('1 Données d''entrée'!$C$310))*(1+'1 Données d''entrée'!$C$310),0),0)","v":0},{"$f":"IF(P1929='1 Données d''entrée'!$C$312+1,IF('1 Données d''entrée'!$C$314=\"(=NON)\",($B1955*'1 Données d''entrée'!$C$310)*((('1 Données d''entrée'!$C$310+1)^'1 Données d''entrée'!$C$312-1)/('1 Données d''entrée'!$C$310))*(1+'1 Données d''entrée'!$C$310),0),0)","v":0},{"$f":"IF(Q1929='1 Données d''entrée'!$C$312+1,IF('1 Données d''entrée'!$C$314=\"(=NON)\",($B1955*'1 Données d''entrée'!$C$310)*((('1 Données d''entrée'!$C$310+1)^'1 Données d''entrée'!$C$312-1)/('1 Données d''entrée'!$C$310))*(1+'1 Données d''entrée'!$C$310),0),0)","v":0},{"$f":"IF(R1929='1 Données d''entrée'!$C$312+1,IF('1 Données d''entrée'!$C$314=\"(=NON)\",($B1955*'1 Données d''entrée'!$C$310)*((('1 Données d''entrée'!$C$310+1)^'1 Données d''entrée'!$C$312-1)/('1 Données d''entrée'!$C$310))*(1+'1 Données d''entrée'!$C$310),0),0)","v":0},{"$f":"IF(S1929='1 Données d''entrée'!$C$312+1,IF('1 Données d''entrée'!$C$314=\"(=NON)\",($B1955*'1 Données d''entrée'!$C$310)*((('1 Données d''entrée'!$C$310+1)^'1 Données d''entrée'!$C$312-1)/('1 Données d''entrée'!$C$310))*(1+'1 Données d''entrée'!$C$310),0),0)","v":0},{"$f":"IF(T1929='1 Données d''entrée'!$C$312+1,IF('1 Données d''entrée'!$C$314=\"(=NON)\",($B1955*'1 Données d''entrée'!$C$310)*((('1 Données d''entrée'!$C$310+1)^'1 Données d''entrée'!$C$312-1)/('1 Données d''entrée'!$C$310))*(1+'1 Données d''entrée'!$C$310),0),0)","v":0},{"$f":"IF(U1929='1 Données d''entrée'!$C$312+1,IF('1 Données d''entrée'!$C$314=\"(=NON)\",($B1955*'1 Données d''entrée'!$C$310)*((('1 Données d''entrée'!$C$310+1)^'1 Données d''entrée'!$C$312-1)/('1 Données d''entrée'!$C$310))*(1+'1 Données d''entrée'!$C$310),0),0)","v":0},{"$f":"IF(V1929='1 Données d''entrée'!$C$312+1,IF('1 Données d''entrée'!$C$314=\"(=NON)\",($B1955*'1 Données d''entrée'!$C$310)*((('1 Données d''entrée'!$C$310+1)^'1 Données d''entrée'!$C$312-1)/('1 Données d''entrée'!$C$310))*(1+'1 Données d''entrée'!$C$310),0),0)","v":0}]
["Fonds d'autre donneurs / investisseurs - Prêt; Option 2: Remboursement du principal final",{"$f":"'1 Données d''entrée'!$B$320","v":0},"% de prêt total"]
["Réception et montant restant",{"$f":"'1 Données d''entrée'!$B$306*'1 Données d''entrée'!$B$320+'1 Données d''entrée'!$B$306*'1 Données d''entrée'!$C$316","v":0},{"$f":"B1960-C1961","v":0},{"$f":"C1960-D1961","v":0},0,0,0,0,0,0,0,0,0,0,0,0,0,0,0,0,0,0]
["Remboursement du principal",0,{"$f":"IF('1 Données d''entrée'!$C$311+'1 Données d''entrée'!$C$312=C1929,'6 Financement'!$B$85,0)","v":0},{"$f":"IF('1 Données d''entrée'!$C$311+'1 Données d''entrée'!$C$312=D1929,'6 Financement'!$B$85,0)","v":0},{"$f":"IF('1 Données d''entrée'!$C$311+'1 Données d''entrée'!$C$312=E1929,'6 Financement'!$B$85,0)","v":0},{"$f":"IF('1 Données d''entrée'!$C$311+'1 Données d''entrée'!$C$312=F1929,'6 Financement'!$B$85,0)","v":0},{"$f":"IF('1 Données d''entrée'!$C$311+'1 Données d''entrée'!$C$312=G1929,'6 Financement'!$B$85,0)","v":0},{"$f":"IF('1 Données d''entrée'!$C$311+'1 Données d''entrée'!$C$312=H1929,'6 Financement'!$B$85,0)","v":0},{"$f":"IF('1 Données d''entrée'!$C$311+'1 Données d''entrée'!$C$312=I1929,'6 Financement'!$B$85,0)","v":0},{"$f":"IF('1 Données d''entrée'!$C$311+'1 Données d''entrée'!$C$312=J1929,'6 Financement'!$B$85,0)","v":0},{"$f":"IF('1 Données d''entrée'!$C$311+'1 Données d''entrée'!$C$312=K1929,'6 Financement'!$B$85,0)","v":0},{"$f":"IF('1 Données d''entrée'!$C$311+'1 Données d''entrée'!$C$312=L1929,'6 Financement'!$B$85,0)","v":0},{"$f":"IF('1 Données d''entrée'!$C$311+'1 Données d''entrée'!$C$312=M1929,'6 Financement'!$B$85,0)","v":0},{"$f":"IF('1 Données d''entrée'!$C$311+'1 Données d''entrée'!$C$312=N1929,'6 Financement'!$B$85,0)","v":0},{"$f":"IF('1 Données d''entrée'!$C$311+'1 Données d''entrée'!$C$312=O1929,'6 Financement'!$B$85,0)","v":0},{"$f":"IF('1 Données d''entrée'!$C$311+'1 Données d''entrée'!$C$312=P1929,'6 Financement'!$B$85,0)","v":0},{"$f":"IF('1 Données d''entrée'!$C$311+'1 Données d''entrée'!$C$312=Q1929,'6 Financement'!$B$85,0)","v":0},{"$f":"IF('1 Données d''entrée'!$C$311+'1 Données d''entrée'!$C$312=R1929,'6 Financement'!$B$85,0)","v":0},{"$f":"IF('1 Données d''entrée'!$C$311+'1 Données d''entrée'!$C$312=S1929,'6 Financement'!$B$85,0)","v":0},{"$f":"IF('1 Données d''entrée'!$C$311+'1 Données d''entrée'!$C$312=T1929,'6 Financement'!$B$85,0)","v":0},{"$f":"IF('1 Données d''entrée'!$C$311+'1 Données d''entrée'!$C$312=U1929,'6 Financement'!$B$85,0)","v":0},{"$f":"IF('1 Données d''entrée'!$C$311+'1 Données d''entrée'!$C$312=V1929,'6 Financement'!$B$85,0)","v":0}]
["Paiement d'intérêts",0,{"$f":"IF('1 Données d''entrée'!$C$314=\"(=NON)\",IF(C1929<'1 Données d''entrée'!$C$312+1,0,B1960*'1 Données d''entrée'!$C$310),B1960*'1 Données d''entrée'!$C$310)","v":0},{"$f":"IF('1 Données d''entrée'!$C$314=\"(=NON)\",IF(D1929<'1 Données d''entrée'!$C$312+1,0,C1960*'1 Données d''entrée'!$C$310),C1960*'1 Données d''entrée'!$C$310)","v":0},{"$f":"IF('1 Données d''entrée'!$C$314=\"(=NON)\",IF(E1929<'1 Données d''entrée'!$C$312+1,0,D1960*'1 Données d''entrée'!$C$310),D1960*'1 Données d''entrée'!$C$310)","v":0},{"$f":"IF('1 Données d''entrée'!$C$314=\"(=NON)\",IF(F1929<'1 Données d''entrée'!$C$312+1,0,E1960*'1 Données d''entrée'!$C$310),E1960*'1 Données d''entrée'!$C$310)","v":0},{"$f":"IF('1 Données d''entrée'!$C$314=\"(=NON)\",IF(G1929<'1 Données d''entrée'!$C$312+1,0,F1960*'1 Données d''entrée'!$C$310),F1960*'1 Données d''entrée'!$C$310)","v":0},{"$f":"IF('1 Données d''entrée'!$C$314=\"(=NON)\",IF(H1929<'1 Données d''entrée'!$C$312+1,0,G1960*'1 Données d''entrée'!$C$310),G1960*'1 Données d''entrée'!$C$310)","v":0},{"$f":"IF('1 Données d''entrée'!$C$314=\"(=NON)\",IF(I1929<'1 Données d''entrée'!$C$312+1,0,H1960*'1 Données d''entrée'!$C$310),H1960*'1 Données d''entrée'!$C$310)","v":0},{"$f":"IF('1 Données d''entrée'!$C$314=\"(=NON)\",IF(J1929<'1 Données d''entrée'!$C$312+1,0,I1960*'1 Données d''entrée'!$C$310),I1960*'1 Données d''entrée'!$C$310)","v":0},{"$f":"IF('1 Données d''entrée'!$C$314=\"(=NON)\",IF(K1929<'1 Données d''entrée'!$C$312+1,0,J1960*'1 Données d''entrée'!$C$310),J1960*'1 Données d''entrée'!$C$310)","v":0},{"$f":"IF('1 Données d''entrée'!$C$314=\"(=NON)\",IF(L1929<'1 Données d''entrée'!$C$312+1,0,K1960*'1 Données d''entrée'!$C$310),K1960*'1 Données d''entrée'!$C$310)","v":0},{"$f":"IF('1 Données d''entrée'!$C$314=\"(=NON)\",IF(M1929<'1 Données d''entrée'!$C$312+1,0,L1960*'1 Données d''entrée'!$C$310),L1960*'1 Données d''entrée'!$C$310)","v":0},{"$f":"IF('1 Données d''entrée'!$C$314=\"(=NON)\",IF(N1929<'1 Données d''entrée'!$C$312+1,0,M1960*'1 Données d''entrée'!$C$310),M1960*'1 Données d''entrée'!$C$310)","v":0},{"$f":"IF('1 Données d''entrée'!$C$314=\"(=NON)\",IF(O1929<'1 Données d''entrée'!$C$312+1,0,N1960*'1 Données d''entrée'!$C$310),N1960*'1 Données d''entrée'!$C$310)","v":0},{"$f":"IF('1 Données d''entrée'!$C$314=\"(=NON)\",IF(P1929<'1 Données d''entrée'!$C$312+1,0,O1960*'1 Données d''entrée'!$C$310),O1960*'1 Données d''entrée'!$C$310)","v":0},{"$f":"IF('1 Données d''entrée'!$C$314=\"(=NON)\",IF(Q1929<'1 Données d''entrée'!$C$312+1,0,P1960*'1 Données d''entrée'!$C$310),P1960*'1 Données d''entrée'!$C$310)","v":0},{"$f":"IF('1 Données d''entrée'!$C$314=\"(=NON)\",IF(R1929<'1 Données d''entrée'!$C$312+1,0,Q1960*'1 Données d''entrée'!$C$310),Q1960*'1 Données d''entrée'!$C$310)","v":0},{"$f":"IF('1 Données d''entrée'!$C$314=\"(=NON)\",IF(S1929<'1 Données d''entrée'!$C$312+1,0,R1960*'1 Données d''entrée'!$C$310),R1960*'1 Données d''entrée'!$C$310)","v":0},{"$f":"IF('1 Données d''entrée'!$C$314=\"(=NON)\",IF(T1929<'1 Données d''entrée'!$C$312+1,0,S1960*'1 Données d''entrée'!$C$310),S1960*'1 Données d''entrée'!$C$310)","v":0},{"$f":"IF('1 Données d''entrée'!$C$314=\"(=NON)\",IF(U1929<'1 Données d''entrée'!$C$312+1,0,T1960*'1 Données d''entrée'!$C$310),T1960*'1 Données d''entrée'!$C$310)","v":0},{"$f":"IF('1 Données d''entrée'!$C$314=\"(=NON)\",IF(V1929<'1 Données d''entrée'!$C$312+1,0,U1960*'1 Données d''entrée'!$C$310),U1960*'1 Données d''entrée'!$C$310)","v":0}]
["Paiements d'intérêt avec des intérêts composés en cas d'absence des paiements dans la période de grâce",0,0,{"$f":"IF(D1929='1 Données d''entrée'!$C$312+1,IF('1 Données d''entrée'!$C$314=\"(=NON)\",($B1960*'1 Données d''entrée'!$C$310)*((('1 Données d''entrée'!$C$310+1)^'1 Données d''entrée'!$C$312-1)/('1 Données d''entrée'!$C$310))*(1+'1 Données d''entrée'!$C$310),0),0)","v":0},{"$f":"IF(E1929='1 Données d''entrée'!$C$312+1,IF('1 Données d''entrée'!$C$314=\"(=NON)\",($B1960*'1 Données d''entrée'!$C$310)*((('1 Données d''entrée'!$C$310+1)^'1 Données d''entrée'!$C$312-1)/('1 Données d''entrée'!$C$310))*(1+'1 Données d''entrée'!$C$310),0),0)","v":0},{"$f":"IF(F1929='1 Données d''entrée'!$C$312+1,IF('1 Données d''entrée'!$C$314=\"(=NON)\",($B1960*'1 Données d''entrée'!$C$310)*((('1 Données d''entrée'!$C$310+1)^'1 Données d''entrée'!$C$312-1)/('1 Données d''entrée'!$C$310))*(1+'1 Données d''entrée'!$C$310),0),0)","v":0},{"$f":"IF(G1929='1 Données d''entrée'!$C$312+1,IF('1 Données d''entrée'!$C$314=\"(=NON)\",($B1960*'1 Données d''entrée'!$C$310)*((('1 Données d''entrée'!$C$310+1)^'1 Données d''entrée'!$C$312-1)/('1 Données d''entrée'!$C$310))*(1+'1 Données d''entrée'!$C$310),0),0)","v":0},{"$f":"IF(H1929='1 Données d''entrée'!$C$312+1,IF('1 Données d''entrée'!$C$314=\"(=NON)\",($B1960*'1 Données d''entrée'!$C$310)*((('1 Données d''entrée'!$C$310+1)^'1 Données d''entrée'!$C$312-1)/('1 Données d''entrée'!$C$310))*(1+'1 Données d''entrée'!$C$310),0),0)","v":0},{"$f":"IF(I1929='1 Données d''entrée'!$C$312+1,IF('1 Données d''entrée'!$C$314=\"(=NON)\",($B1960*'1 Données d''entrée'!$C$310)*((('1 Données d''entrée'!$C$310+1)^'1 Données d''entrée'!$C$312-1)/('1 Données d''entrée'!$C$310))*(1+'1 Données d''entrée'!$C$310),0),0)","v":0},{"$f":"IF(J1929='1 Données d''entrée'!$C$312+1,IF('1 Données d''entrée'!$C$314=\"(=NON)\",($B1960*'1 Données d''entrée'!$C$310)*((('1 Données d''entrée'!$C$310+1)^'1 Données d''entrée'!$C$312-1)/('1 Données d''entrée'!$C$310))*(1+'1 Données d''entrée'!$C$310),0),0)","v":0},{"$f":"IF(K1929='1 Données d''entrée'!$C$312+1,IF('1 Données d''entrée'!$C$314=\"(=NON)\",($B1960*'1 Données d''entrée'!$C$310)*((('1 Données d''entrée'!$C$310+1)^'1 Données d''entrée'!$C$312-1)/('1 Données d''entrée'!$C$310))*(1+'1 Données d''entrée'!$C$310),0),0)","v":0},{"$f":"IF(L1929='1 Données d''entrée'!$C$312+1,IF('1 Données d''entrée'!$C$314=\"(=NON)\",($B1960*'1 Données d''entrée'!$C$310)*((('1 Données d''entrée'!$C$310+1)^'1 Données d''entrée'!$C$312-1)/('1 Données d''entrée'!$C$310))*(1+'1 Données d''entrée'!$C$310),0),0)","v":0},{"$f":"IF(M1929='1 Données d''entrée'!$C$312+1,IF('1 Données d''entrée'!$C$314=\"(=NON)\",($B1960*'1 Données d''entrée'!$C$310)*((('1 Données d''entrée'!$C$310+1)^'1 Données d''entrée'!$C$312-1)/('1 Données d''entrée'!$C$310))*(1+'1 Données d''entrée'!$C$310),0),0)","v":0},{"$f":"IF(N1929='1 Données d''entrée'!$C$312+1,IF('1 Données d''entrée'!$C$314=\"(=NON)\",($B1960*'1 Données d''entrée'!$C$310)*((('1 Données d''entrée'!$C$310+1)^'1 Données d''entrée'!$C$312-1)/('1 Données d''entrée'!$C$310))*(1+'1 Données d''entrée'!$C$310),0),0)","v":0},{"$f":"IF(O1929='1 Données d''entrée'!$C$312+1,IF('1 Données d''entrée'!$C$314=\"(=NON)\",($B1960*'1 Données d''entrée'!$C$310)*((('1 Données d''entrée'!$C$310+1)^'1 Données d''entrée'!$C$312-1)/('1 Données d''entrée'!$C$310))*(1+'1 Données d''entrée'!$C$310),0),0)","v":0},{"$f":"IF(P1929='1 Données d''entrée'!$C$312+1,IF('1 Données d''entrée'!$C$314=\"(=NON)\",($B1960*'1 Données d''entrée'!$C$310)*((('1 Données d''entrée'!$C$310+1)^'1 Données d''entrée'!$C$312-1)/('1 Données d''entrée'!$C$310))*(1+'1 Données d''entrée'!$C$310),0),0)","v":0},{"$f":"IF(Q1929='1 Données d''entrée'!$C$312+1,IF('1 Données d''entrée'!$C$314=\"(=NON)\",($B1960*'1 Données d''entrée'!$C$310)*((('1 Données d''entrée'!$C$310+1)^'1 Données d''entrée'!$C$312-1)/('1 Données d''entrée'!$C$310))*(1+'1 Données d''entrée'!$C$310),0),0)","v":0},{"$f":"IF(R1929='1 Données d''entrée'!$C$312+1,IF('1 Données d''entrée'!$C$314=\"(=NON)\",($B1960*'1 Données d''entrée'!$C$310)*((('1 Données d''entrée'!$C$310+1)^'1 Données d''entrée'!$C$312-1)/('1 Données d''entrée'!$C$310))*(1+'1 Données d''entrée'!$C$310),0),0)","v":0},{"$f":"IF(S1929='1 Données d''entrée'!$C$312+1,IF('1 Données d''entrée'!$C$314=\"(=NON)\",($B1960*'1 Données d''entrée'!$C$310)*((('1 Données d''entrée'!$C$310+1)^'1 Données d''entrée'!$C$312-1)/('1 Données d''entrée'!$C$310))*(1+'1 Données d''entrée'!$C$310),0),0)","v":0},{"$f":"IF(T1929='1 Données d''entrée'!$C$312+1,IF('1 Données d''entrée'!$C$314=\"(=NON)\",($B1960*'1 Données d''entrée'!$C$310)*((('1 Données d''entrée'!$C$310+1)^'1 Données d''entrée'!$C$312-1)/('1 Données d''entrée'!$C$310))*(1+'1 Données d''entrée'!$C$310),0),0)","v":0},{"$f":"IF(U1929='1 Données d''entrée'!$C$312+1,IF('1 Données d''entrée'!$C$314=\"(=NON)\",($B1960*'1 Données d''entrée'!$C$310)*((('1 Données d''entrée'!$C$310+1)^'1 Données d''entrée'!$C$312-1)/('1 Données d''entrée'!$C$310))*(1+'1 Données d''entrée'!$C$310),0),0)","v":0},{"$f":"IF(V1929='1 Données d''entrée'!$C$312+1,IF('1 Données d''entrée'!$C$314=\"(=NON)\",($B1960*'1 Données d''entrée'!$C$310)*((('1 Données d''entrée'!$C$310+1)^'1 Données d''entrée'!$C$312-1)/('1 Données d''entrée'!$C$310))*(1+'1 Données d''entrée'!$C$310),0),0)","v":0}]
["Fonds d'autre donneurs / investisseurs - Prêt; Option 3: Remboursement vers l'annuité constante",{"$f":"'1 Données d''entrée'!$B$321","v":0},"% de prêt total"]
["Réception ",{"$f":"B1964*'1 Données d''entrée'!$B$306+'1 Données d''entrée'!$B$306*'1 Données d''entrée'!$C$316","v":0},0,0,0,0,0,0,0,0,0,0,0,0,0,0,0,0,0,0,0,0]
["Remboursement vers l'annuité constante",{"$f":"IF(B1929<'1 Données d''entrée'!$C$312+1,0,IF(B1929<'1 Données d''entrée'!$C$311+'1 Données d''entrée'!$C$312+1,$B1965*('1 Données d''entrée'!$C$310*(1+'1 Données d''entrée'!$C$310)^'1 Données d''entrée'!$C$311)/((1+'1 Données d''entrée'!$C$310)^'1 Données d''entrée'!$C$311-1),0))","v":0},{"$f":"IF(C1929<'1 Données d''entrée'!$C$312+1,0,IF(C1929<'1 Données d''entrée'!$C$311+'1 Données d''entrée'!$C$312+1,$B1965*('1 Données d''entrée'!$C$310*(1+'1 Données d''entrée'!$C$310)^'1 Données d''entrée'!$C$311)/((1+'1 Données d''entrée'!$C$310)^'1 Données d''entrée'!$C$311-1),0))","v":0},{"$f":"IF(D1929<'1 Données d''entrée'!$C$312+1,0,IF(D1929<'1 Données d''entrée'!$C$311+'1 Données d''entrée'!$C$312+1,$B1965*('1 Données d''entrée'!$C$310*(1+'1 Données d''entrée'!$C$310)^'1 Données d''entrée'!$C$311)/((1+'1 Données d''entrée'!$C$310)^'1 Données d''entrée'!$C$311-1),0))","v":0},{"$f":"IF(E1929<'1 Données d''entrée'!$C$312+1,0,IF(E1929<'1 Données d''entrée'!$C$311+'1 Données d''entrée'!$C$312+1,$B1965*('1 Données d''entrée'!$C$310*(1+'1 Données d''entrée'!$C$310)^'1 Données d''entrée'!$C$311)/((1+'1 Données d''entrée'!$C$310)^'1 Données d''entrée'!$C$311-1),0))","v":0},{"$f":"IF(F1929<'1 Données d''entrée'!$C$312+1,0,IF(F1929<'1 Données d''entrée'!$C$311+'1 Données d''entrée'!$C$312+1,$B1965*('1 Données d''entrée'!$C$310*(1+'1 Données d''entrée'!$C$310)^'1 Données d''entrée'!$C$311)/((1+'1 Données d''entrée'!$C$310)^'1 Données d''entrée'!$C$311-1),0))","v":0},{"$f":"IF(G1929<'1 Données d''entrée'!$C$312+1,0,IF(G1929<'1 Données d''entrée'!$C$311+'1 Données d''entrée'!$C$312+1,$B1965*('1 Données d''entrée'!$C$310*(1+'1 Données d''entrée'!$C$310)^'1 Données d''entrée'!$C$311)/((1+'1 Données d''entrée'!$C$310)^'1 Données d''entrée'!$C$311-1),0))","v":0},{"$f":"IF(H1929<'1 Données d''entrée'!$C$312+1,0,IF(H1929<'1 Données d''entrée'!$C$311+'1 Données d''entrée'!$C$312+1,$B1965*('1 Données d''entrée'!$C$310*(1+'1 Données d''entrée'!$C$310)^'1 Données d''entrée'!$C$311)/((1+'1 Données d''entrée'!$C$310)^'1 Données d''entrée'!$C$311-1),0))","v":0},{"$f":"IF(I1929<'1 Données d''entrée'!$C$312+1,0,IF(I1929<'1 Données d''entrée'!$C$311+'1 Données d''entrée'!$C$312+1,$B1965*('1 Données d''entrée'!$C$310*(1+'1 Données d''entrée'!$C$310)^'1 Données d''entrée'!$C$311)/((1+'1 Données d''entrée'!$C$310)^'1 Données d''entrée'!$C$311-1),0))","v":0},{"$f":"IF(J1929<'1 Données d''entrée'!$C$312+1,0,IF(J1929<'1 Données d''entrée'!$C$311+'1 Données d''entrée'!$C$312+1,$B1965*('1 Données d''entrée'!$C$310*(1+'1 Données d''entrée'!$C$310)^'1 Données d''entrée'!$C$311)/((1+'1 Données d''entrée'!$C$310)^'1 Données d''entrée'!$C$311-1),0))","v":0},{"$f":"IF(K1929<'1 Données d''entrée'!$C$312+1,0,IF(K1929<'1 Données d''entrée'!$C$311+'1 Données d''entrée'!$C$312+1,$B1965*('1 Données d''entrée'!$C$310*(1+'1 Données d''entrée'!$C$310)^'1 Données d''entrée'!$C$311)/((1+'1 Données d''entrée'!$C$310)^'1 Données d''entrée'!$C$311-1),0))","v":0},{"$f":"IF(L1929<'1 Données d''entrée'!$C$312+1,0,IF(L1929<'1 Données d''entrée'!$C$311+'1 Données d''entrée'!$C$312+1,$B1965*('1 Données d''entrée'!$C$310*(1+'1 Données d''entrée'!$C$310)^'1 Données d''entrée'!$C$311)/((1+'1 Données d''entrée'!$C$310)^'1 Données d''entrée'!$C$311-1),0))","v":0},{"$f":"IF(M1929<'1 Données d''entrée'!$C$312+1,0,IF(M1929<'1 Données d''entrée'!$C$311+'1 Données d''entrée'!$C$312+1,$B1965*('1 Données d''entrée'!$C$310*(1+'1 Données d''entrée'!$C$310)^'1 Données d''entrée'!$C$311)/((1+'1 Données d''entrée'!$C$310)^'1 Données d''entrée'!$C$311-1),0))","v":0},{"$f":"IF(N1929<'1 Données d''entrée'!$C$312+1,0,IF(N1929<'1 Données d''entrée'!$C$311+'1 Données d''entrée'!$C$312+1,$B1965*('1 Données d''entrée'!$C$310*(1+'1 Données d''entrée'!$C$310)^'1 Données d''entrée'!$C$311)/((1+'1 Données d''entrée'!$C$310)^'1 Données d''entrée'!$C$311-1),0))","v":0},{"$f":"IF(O1929<'1 Données d''entrée'!$C$312+1,0,IF(O1929<'1 Données d''entrée'!$C$311+'1 Données d''entrée'!$C$312+1,$B1965*('1 Données d''entrée'!$C$310*(1+'1 Données d''entrée'!$C$310)^'1 Données d''entrée'!$C$311)/((1+'1 Données d''entrée'!$C$310)^'1 Données d''entrée'!$C$311-1),0))","v":0},{"$f":"IF(P1929<'1 Données d''entrée'!$C$312+1,0,IF(P1929<'1 Données d''entrée'!$C$311+'1 Données d''entrée'!$C$312+1,$B1965*('1 Données d''entrée'!$C$310*(1+'1 Données d''entrée'!$C$310)^'1 Données d''entrée'!$C$311)/((1+'1 Données d''entrée'!$C$310)^'1 Données d''entrée'!$C$311-1),0))","v":0},{"$f":"IF(Q1929<'1 Données d''entrée'!$C$312+1,0,IF(Q1929<'1 Données d''entrée'!$C$311+'1 Données d''entrée'!$C$312+1,$B1965*('1 Données d''entrée'!$C$310*(1+'1 Données d''entrée'!$C$310)^'1 Données d''entrée'!$C$311)/((1+'1 Données d''entrée'!$C$310)^'1 Données d''entrée'!$C$311-1),0))","v":0},{"$f":"IF(R1929<'1 Données d''entrée'!$C$312+1,0,IF(R1929<'1 Données d''entrée'!$C$311+'1 Données d''entrée'!$C$312+1,$B1965*('1 Données d''entrée'!$C$310*(1+'1 Données d''entrée'!$C$310)^'1 Données d''entrée'!$C$311)/((1+'1 Données d''entrée'!$C$310)^'1 Données d''entrée'!$C$311-1),0))","v":0},{"$f":"IF(S1929<'1 Données d''entrée'!$C$312+1,0,IF(S1929<'1 Données d''entrée'!$C$311+'1 Données d''entrée'!$C$312+1,$B1965*('1 Données d''entrée'!$C$310*(1+'1 Données d''entrée'!$C$310)^'1 Données d''entrée'!$C$311)/((1+'1 Données d''entrée'!$C$310)^'1 Données d''entrée'!$C$311-1),0))","v":0},{"$f":"IF(T1929<'1 Données d''entrée'!$C$312+1,0,IF(T1929<'1 Données d''entrée'!$C$311+'1 Données d''entrée'!$C$312+1,$B1965*('1 Données d''entrée'!$C$310*(1+'1 Données d''entrée'!$C$310)^'1 Données d''entrée'!$C$311)/((1+'1 Données d''entrée'!$C$310)^'1 Données d''entrée'!$C$311-1),0))","v":0},{"$f":"IF(U1929<'1 Données d''entrée'!$C$312+1,0,IF(U1929<'1 Données d''entrée'!$C$311+'1 Données d''entrée'!$C$312+1,$B1965*('1 Données d''entrée'!$C$310*(1+'1 Données d''entrée'!$C$310)^'1 Données d''entrée'!$C$311)/((1+'1 Données d''entrée'!$C$310)^'1 Données d''entrée'!$C$311-1),0))","v":0},{"$f":"IF(V1929<'1 Données d''entrée'!$C$312+1,0,IF(V1929<'1 Données d''entrée'!$C$311+'1 Données d''entrée'!$C$312+1,$B1965*('1 Données d''entrée'!$C$310*(1+'1 Données d''entrée'!$C$310)^'1 Données d''entrée'!$C$311)/((1+'1 Données d''entrée'!$C$310)^'1 Données d''entrée'!$C$311-1),0))","v":0}]
["Paiement d'intérêt décroissant inclu dans l'annuité constante",0,{"$f":"IF('1 Données d''entrée'!$C$314=\"(=NON)\",IF(C1966>0,$B1965*((('1 Données d''entrée'!$C$310+1)^'1 Données d''entrée'!$C$311)-(1+'1 Données d''entrée'!$C$310)^('6 Financement'!C$54-1-'1 Données d''entrée'!$C$312))/((1+'1 Données d''entrée'!$C$310)^'1 Données d''entrée'!$C$311-1)*'1 Données d''entrée'!$C$310,0),IF(C1929<'1 Données d''entrée'!$C$312+1,'1 Données d''entrée'!$C$310*'6 Financement'!$B1965,IF(C1966>0,$B$90*((('1 Données d''entrée'!$C$310+1)^'1 Données d''entrée'!$C$311)-(1+'1 Données d''entrée'!$C$310)^('6 Financement'!C$54-1-'1 Données d''entrée'!$C$312))/((1+'1 Données d''entrée'!$C$310)^'1 Données d''entrée'!$C$311-1)*'1 Données d''entrée'!$C$310,0)))","v":0},{"$f":"IF('1 Données d''entrée'!$C$314=\"(=NON)\",IF(D1966>0,$B1965*((('1 Données d''entrée'!$C$310+1)^'1 Données d''entrée'!$C$311)-(1+'1 Données d''entrée'!$C$310)^('6 Financement'!D$54-1-'1 Données d''entrée'!$C$312))/((1+'1 Données d''entrée'!$C$310)^'1 Données d''entrée'!$C$311-1)*'1 Données d''entrée'!$C$310,0),IF(D1929<'1 Données d''entrée'!$C$312+1,'1 Données d''entrée'!$C$310*'6 Financement'!$B1965,IF(D1966>0,$B$90*((('1 Données d''entrée'!$C$310+1)^'1 Données d''entrée'!$C$311)-(1+'1 Données d''entrée'!$C$310)^('6 Financement'!D$54-1-'1 Données d''entrée'!$C$312))/((1+'1 Données d''entrée'!$C$310)^'1 Données d''entrée'!$C$311-1)*'1 Données d''entrée'!$C$310,0)))","v":0},{"$f":"IF('1 Données d''entrée'!$C$314=\"(=NON)\",IF(E1966>0,$B1965*((('1 Données d''entrée'!$C$310+1)^'1 Données d''entrée'!$C$311)-(1+'1 Données d''entrée'!$C$310)^('6 Financement'!E$54-1-'1 Données d''entrée'!$C$312))/((1+'1 Données d''entrée'!$C$310)^'1 Données d''entrée'!$C$311-1)*'1 Données d''entrée'!$C$310,0),IF(E1929<'1 Données d''entrée'!$C$312+1,'1 Données d''entrée'!$C$310*'6 Financement'!$B1965,IF(E1966>0,$B$90*((('1 Données d''entrée'!$C$310+1)^'1 Données d''entrée'!$C$311)-(1+'1 Données d''entrée'!$C$310)^('6 Financement'!E$54-1-'1 Données d''entrée'!$C$312))/((1+'1 Données d''entrée'!$C$310)^'1 Données d''entrée'!$C$311-1)*'1 Données d''entrée'!$C$310,0)))","v":0},{"$f":"IF('1 Données d''entrée'!$C$314=\"(=NON)\",IF(F1966>0,$B1965*((('1 Données d''entrée'!$C$310+1)^'1 Données d''entrée'!$C$311)-(1+'1 Données d''entrée'!$C$310)^('6 Financement'!F$54-1-'1 Données d''entrée'!$C$312))/((1+'1 Données d''entrée'!$C$310)^'1 Données d''entrée'!$C$311-1)*'1 Données d''entrée'!$C$310,0),IF(F1929<'1 Données d''entrée'!$C$312+1,'1 Données d''entrée'!$C$310*'6 Financement'!$B1965,IF(F1966>0,$B$90*((('1 Données d''entrée'!$C$310+1)^'1 Données d''entrée'!$C$311)-(1+'1 Données d''entrée'!$C$310)^('6 Financement'!F$54-1-'1 Données d''entrée'!$C$312))/((1+'1 Données d''entrée'!$C$310)^'1 Données d''entrée'!$C$311-1)*'1 Données d''entrée'!$C$310,0)))","v":0},{"$f":"IF('1 Données d''entrée'!$C$314=\"(=NON)\",IF(G1966>0,$B1965*((('1 Données d''entrée'!$C$310+1)^'1 Données d''entrée'!$C$311)-(1+'1 Données d''entrée'!$C$310)^('6 Financement'!G$54-1-'1 Données d''entrée'!$C$312))/((1+'1 Données d''entrée'!$C$310)^'1 Données d''entrée'!$C$311-1)*'1 Données d''entrée'!$C$310,0),IF(G1929<'1 Données d''entrée'!$C$312+1,'1 Données d''entrée'!$C$310*'6 Financement'!$B1965,IF(G1966>0,$B$90*((('1 Données d''entrée'!$C$310+1)^'1 Données d''entrée'!$C$311)-(1+'1 Données d''entrée'!$C$310)^('6 Financement'!G$54-1-'1 Données d''entrée'!$C$312))/((1+'1 Données d''entrée'!$C$310)^'1 Données d''entrée'!$C$311-1)*'1 Données d''entrée'!$C$310,0)))","v":0},{"$f":"IF('1 Données d''entrée'!$C$314=\"(=NON)\",IF(H1966>0,$B1965*((('1 Données d''entrée'!$C$310+1)^'1 Données d''entrée'!$C$311)-(1+'1 Données d''entrée'!$C$310)^('6 Financement'!H$54-1-'1 Données d''entrée'!$C$312))/((1+'1 Données d''entrée'!$C$310)^'1 Données d''entrée'!$C$311-1)*'1 Données d''entrée'!$C$310,0),IF(H1929<'1 Données d''entrée'!$C$312+1,'1 Données d''entrée'!$C$310*'6 Financement'!$B1965,IF(H1966>0,$B$90*((('1 Données d''entrée'!$C$310+1)^'1 Données d''entrée'!$C$311)-(1+'1 Données d''entrée'!$C$310)^('6 Financement'!H$54-1-'1 Données d''entrée'!$C$312))/((1+'1 Données d''entrée'!$C$310)^'1 Données d''entrée'!$C$311-1)*'1 Données d''entrée'!$C$310,0)))","v":0},{"$f":"IF('1 Données d''entrée'!$C$314=\"(=NON)\",IF(I1966>0,$B1965*((('1 Données d''entrée'!$C$310+1)^'1 Données d''entrée'!$C$311)-(1+'1 Données d''entrée'!$C$310)^('6 Financement'!I$54-1-'1 Données d''entrée'!$C$312))/((1+'1 Données d''entrée'!$C$310)^'1 Données d''entrée'!$C$311-1)*'1 Données d''entrée'!$C$310,0),IF(I1929<'1 Données d''entrée'!$C$312+1,'1 Données d''entrée'!$C$310*'6 Financement'!$B1965,IF(I1966>0,$B$90*((('1 Données d''entrée'!$C$310+1)^'1 Données d''entrée'!$C$311)-(1+'1 Données d''entrée'!$C$310)^('6 Financement'!I$54-1-'1 Données d''entrée'!$C$312))/((1+'1 Données d''entrée'!$C$310)^'1 Données d''entrée'!$C$311-1)*'1 Données d''entrée'!$C$310,0)))","v":0},{"$f":"IF('1 Données d''entrée'!$C$314=\"(=NON)\",IF(J1966>0,$B1965*((('1 Données d''entrée'!$C$310+1)^'1 Données d''entrée'!$C$311)-(1+'1 Données d''entrée'!$C$310)^('6 Financement'!J$54-1-'1 Données d''entrée'!$C$312))/((1+'1 Données d''entrée'!$C$310)^'1 Données d''entrée'!$C$311-1)*'1 Données d''entrée'!$C$310,0),IF(J1929<'1 Données d''entrée'!$C$312+1,'1 Données d''entrée'!$C$310*'6 Financement'!$B1965,IF(J1966>0,$B$90*((('1 Données d''entrée'!$C$310+1)^'1 Données d''entrée'!$C$311)-(1+'1 Données d''entrée'!$C$310)^('6 Financement'!J$54-1-'1 Données d''entrée'!$C$312))/((1+'1 Données d''entrée'!$C$310)^'1 Données d''entrée'!$C$311-1)*'1 Données d''entrée'!$C$310,0)))","v":0},{"$f":"IF('1 Données d''entrée'!$C$314=\"(=NON)\",IF(K1966>0,$B1965*((('1 Données d''entrée'!$C$310+1)^'1 Données d''entrée'!$C$311)-(1+'1 Données d''entrée'!$C$310)^('6 Financement'!K$54-1-'1 Données d''entrée'!$C$312))/((1+'1 Données d''entrée'!$C$310)^'1 Données d''entrée'!$C$311-1)*'1 Données d''entrée'!$C$310,0),IF(K1929<'1 Données d''entrée'!$C$312+1,'1 Données d''entrée'!$C$310*'6 Financement'!$B1965,IF(K1966>0,$B$90*((('1 Données d''entrée'!$C$310+1)^'1 Données d''entrée'!$C$311)-(1+'1 Données d''entrée'!$C$310)^('6 Financement'!K$54-1-'1 Données d''entrée'!$C$312))/((1+'1 Données d''entrée'!$C$310)^'1 Données d''entrée'!$C$311-1)*'1 Données d''entrée'!$C$310,0)))","v":0},{"$f":"IF('1 Données d''entrée'!$C$314=\"(=NON)\",IF(L1966>0,$B1965*((('1 Données d''entrée'!$C$310+1)^'1 Données d''entrée'!$C$311)-(1+'1 Données d''entrée'!$C$310)^('6 Financement'!L$54-1-'1 Données d''entrée'!$C$312))/((1+'1 Données d''entrée'!$C$310)^'1 Données d''entrée'!$C$311-1)*'1 Données d''entrée'!$C$310,0),IF(L1929<'1 Données d''entrée'!$C$312+1,'1 Données d''entrée'!$C$310*'6 Financement'!$B1965,IF(L1966>0,$B$90*((('1 Données d''entrée'!$C$310+1)^'1 Données d''entrée'!$C$311)-(1+'1 Données d''entrée'!$C$310)^('6 Financement'!L$54-1-'1 Données d''entrée'!$C$312))/((1+'1 Données d''entrée'!$C$310)^'1 Données d''entrée'!$C$311-1)*'1 Données d''entrée'!$C$310,0)))","v":0},{"$f":"IF('1 Données d''entrée'!$C$314=\"(=NON)\",IF(M1966>0,$B1965*((('1 Données d''entrée'!$C$310+1)^'1 Données d''entrée'!$C$311)-(1+'1 Données d''entrée'!$C$310)^('6 Financement'!M$54-1-'1 Données d''entrée'!$C$312))/((1+'1 Données d''entrée'!$C$310)^'1 Données d''entrée'!$C$311-1)*'1 Données d''entrée'!$C$310,0),IF(M1929<'1 Données d''entrée'!$C$312+1,'1 Données d''entrée'!$C$310*'6 Financement'!$B1965,IF(M1966>0,$B$90*((('1 Données d''entrée'!$C$310+1)^'1 Données d''entrée'!$C$311)-(1+'1 Données d''entrée'!$C$310)^('6 Financement'!M$54-1-'1 Données d''entrée'!$C$312))/((1+'1 Données d''entrée'!$C$310)^'1 Données d''entrée'!$C$311-1)*'1 Données d''entrée'!$C$310,0)))","v":0},{"$f":"IF('1 Données d''entrée'!$C$314=\"(=NON)\",IF(N1966>0,$B1965*((('1 Données d''entrée'!$C$310+1)^'1 Données d''entrée'!$C$311)-(1+'1 Données d''entrée'!$C$310)^('6 Financement'!N$54-1-'1 Données d''entrée'!$C$312))/((1+'1 Données d''entrée'!$C$310)^'1 Données d''entrée'!$C$311-1)*'1 Données d''entrée'!$C$310,0),IF(N1929<'1 Données d''entrée'!$C$312+1,'1 Données d''entrée'!$C$310*'6 Financement'!$B1965,IF(N1966>0,$B$90*((('1 Données d''entrée'!$C$310+1)^'1 Données d''entrée'!$C$311)-(1+'1 Données d''entrée'!$C$310)^('6 Financement'!N$54-1-'1 Données d''entrée'!$C$312))/((1+'1 Données d''entrée'!$C$310)^'1 Données d''entrée'!$C$311-1)*'1 Données d''entrée'!$C$310,0)))","v":0},{"$f":"IF('1 Données d''entrée'!$C$314=\"(=NON)\",IF(O1966>0,$B1965*((('1 Données d''entrée'!$C$310+1)^'1 Données d''entrée'!$C$311)-(1+'1 Données d''entrée'!$C$310)^('6 Financement'!O$54-1-'1 Données d''entrée'!$C$312))/((1+'1 Données d''entrée'!$C$310)^'1 Données d''entrée'!$C$311-1)*'1 Données d''entrée'!$C$310,0),IF(O1929<'1 Données d''entrée'!$C$312+1,'1 Données d''entrée'!$C$310*'6 Financement'!$B1965,IF(O1966>0,$B$90*((('1 Données d''entrée'!$C$310+1)^'1 Données d''entrée'!$C$311)-(1+'1 Données d''entrée'!$C$310)^('6 Financement'!O$54-1-'1 Données d''entrée'!$C$312))/((1+'1 Données d''entrée'!$C$310)^'1 Données d''entrée'!$C$311-1)*'1 Données d''entrée'!$C$310,0)))","v":0},{"$f":"IF('1 Données d''entrée'!$C$314=\"(=NON)\",IF(P1966>0,$B1965*((('1 Données d''entrée'!$C$310+1)^'1 Données d''entrée'!$C$311)-(1+'1 Données d''entrée'!$C$310)^('6 Financement'!P$54-1-'1 Données d''entrée'!$C$312))/((1+'1 Données d''entrée'!$C$310)^'1 Données d''entrée'!$C$311-1)*'1 Données d''entrée'!$C$310,0),IF(P1929<'1 Données d''entrée'!$C$312+1,'1 Données d''entrée'!$C$310*'6 Financement'!$B1965,IF(P1966>0,$B$90*((('1 Données d''entrée'!$C$310+1)^'1 Données d''entrée'!$C$311)-(1+'1 Données d''entrée'!$C$310)^('6 Financement'!P$54-1-'1 Données d''entrée'!$C$312))/((1+'1 Données d''entrée'!$C$310)^'1 Données d''entrée'!$C$311-1)*'1 Données d''entrée'!$C$310,0)))","v":0},{"$f":"IF('1 Données d''entrée'!$C$314=\"(=NON)\",IF(Q1966>0,$B1965*((('1 Données d''entrée'!$C$310+1)^'1 Données d''entrée'!$C$311)-(1+'1 Données d''entrée'!$C$310)^('6 Financement'!Q$54-1-'1 Données d''entrée'!$C$312))/((1+'1 Données d''entrée'!$C$310)^'1 Données d''entrée'!$C$311-1)*'1 Données d''entrée'!$C$310,0),IF(Q1929<'1 Données d''entrée'!$C$312+1,'1 Données d''entrée'!$C$310*'6 Financement'!$B1965,IF(Q1966>0,$B$90*((('1 Données d''entrée'!$C$310+1)^'1 Données d''entrée'!$C$311)-(1+'1 Données d''entrée'!$C$310)^('6 Financement'!Q$54-1-'1 Données d''entrée'!$C$312))/((1+'1 Données d''entrée'!$C$310)^'1 Données d''entrée'!$C$311-1)*'1 Données d''entrée'!$C$310,0)))","v":0},{"$f":"IF('1 Données d''entrée'!$C$314=\"(=NON)\",IF(R1966>0,$B1965*((('1 Données d''entrée'!$C$310+1)^'1 Données d''entrée'!$C$311)-(1+'1 Données d''entrée'!$C$310)^('6 Financement'!R$54-1-'1 Données d''entrée'!$C$312))/((1+'1 Données d''entrée'!$C$310)^'1 Données d''entrée'!$C$311-1)*'1 Données d''entrée'!$C$310,0),IF(R1929<'1 Données d''entrée'!$C$312+1,'1 Données d''entrée'!$C$310*'6 Financement'!$B1965,IF(R1966>0,$B$90*((('1 Données d''entrée'!$C$310+1)^'1 Données d''entrée'!$C$311)-(1+'1 Données d''entrée'!$C$310)^('6 Financement'!R$54-1-'1 Données d''entrée'!$C$312))/((1+'1 Données d''entrée'!$C$310)^'1 Données d''entrée'!$C$311-1)*'1 Données d''entrée'!$C$310,0)))","v":0},{"$f":"IF('1 Données d''entrée'!$C$314=\"(=NON)\",IF(S1966>0,$B1965*((('1 Données d''entrée'!$C$310+1)^'1 Données d''entrée'!$C$311)-(1+'1 Données d''entrée'!$C$310)^('6 Financement'!S$54-1-'1 Données d''entrée'!$C$312))/((1+'1 Données d''entrée'!$C$310)^'1 Données d''entrée'!$C$311-1)*'1 Données d''entrée'!$C$310,0),IF(S1929<'1 Données d''entrée'!$C$312+1,'1 Données d''entrée'!$C$310*'6 Financement'!$B1965,IF(S1966>0,$B$90*((('1 Données d''entrée'!$C$310+1)^'1 Données d''entrée'!$C$311)-(1+'1 Données d''entrée'!$C$310)^('6 Financement'!S$54-1-'1 Données d''entrée'!$C$312))/((1+'1 Données d''entrée'!$C$310)^'1 Données d''entrée'!$C$311-1)*'1 Données d''entrée'!$C$310,0)))","v":0},{"$f":"IF('1 Données d''entrée'!$C$314=\"(=NON)\",IF(T1966>0,$B1965*((('1 Données d''entrée'!$C$310+1)^'1 Données d''entrée'!$C$311)-(1+'1 Données d''entrée'!$C$310)^('6 Financement'!T$54-1-'1 Données d''entrée'!$C$312))/((1+'1 Données d''entrée'!$C$310)^'1 Données d''entrée'!$C$311-1)*'1 Données d''entrée'!$C$310,0),IF(T1929<'1 Données d''entrée'!$C$312+1,'1 Données d''entrée'!$C$310*'6 Financement'!$B1965,IF(T1966>0,$B$90*((('1 Données d''entrée'!$C$310+1)^'1 Données d''entrée'!$C$311)-(1+'1 Données d''entrée'!$C$310)^('6 Financement'!T$54-1-'1 Données d''entrée'!$C$312))/((1+'1 Données d''entrée'!$C$310)^'1 Données d''entrée'!$C$311-1)*'1 Données d''entrée'!$C$310,0)))","v":0},{"$f":"IF('1 Données d''entrée'!$C$314=\"(=NON)\",IF(U1966>0,$B1965*((('1 Données d''entrée'!$C$310+1)^'1 Données d''entrée'!$C$311)-(1+'1 Données d''entrée'!$C$310)^('6 Financement'!U$54-1-'1 Données d''entrée'!$C$312))/((1+'1 Données d''entrée'!$C$310)^'1 Données d''entrée'!$C$311-1)*'1 Données d''entrée'!$C$310,0),IF(U1929<'1 Données d''entrée'!$C$312+1,'1 Données d''entrée'!$C$310*'6 Financement'!$B1965,IF(U1966>0,$B$90*((('1 Données d''entrée'!$C$310+1)^'1 Données d''entrée'!$C$311)-(1+'1 Données d''entrée'!$C$310)^('6 Financement'!U$54-1-'1 Données d''entrée'!$C$312))/((1+'1 Données d''entrée'!$C$310)^'1 Données d''entrée'!$C$311-1)*'1 Données d''entrée'!$C$310,0)))","v":0},{"$f":"IF('1 Données d''entrée'!$C$314=\"(=NON)\",IF(V1966>0,$B1965*((('1 Données d''entrée'!$C$310+1)^'1 Données d''entrée'!$C$311)-(1+'1 Données d''entrée'!$C$310)^('6 Financement'!V$54-1-'1 Données d''entrée'!$C$312))/((1+'1 Données d''entrée'!$C$310)^'1 Données d''entrée'!$C$311-1)*'1 Données d''entrée'!$C$310,0),IF(V1929<'1 Données d''entrée'!$C$312+1,'1 Données d''entrée'!$C$310*'6 Financement'!$B1965,IF(V1966>0,$B$90*((('1 Données d''entrée'!$C$310+1)^'1 Données d''entrée'!$C$311)-(1+'1 Données d''entrée'!$C$310)^('6 Financement'!V$54-1-'1 Données d''entrée'!$C$312))/((1+'1 Données d''entrée'!$C$310)^'1 Données d''entrée'!$C$311-1)*'1 Données d''entrée'!$C$310,0)))","v":0}]
["Paiements d'intérêt avec des intérêts composés en cas d'absence des paiements dans la période de grâce",0,0,{"$f":"IF(D1929='1 Données d''entrée'!$C$312+1,IF('1 Données d''entrée'!$C$314=\"(=NON)\",($B1965*'1 Données d''entrée'!$C$310)*((('1 Données d''entrée'!$C$310+1)^'1 Données d''entrée'!$C$312-1)/('1 Données d''entrée'!$C$310))*(1+'1 Données d''entrée'!$C$310),0),0)","v":0},{"$f":"IF(E1929='1 Données d''entrée'!$C$312+1,IF('1 Données d''entrée'!$C$314=\"(=NON)\",($B1965*'1 Données d''entrée'!$C$310)*((('1 Données d''entrée'!$C$310+1)^'1 Données d''entrée'!$C$312-1)/('1 Données d''entrée'!$C$310))*(1+'1 Données d''entrée'!$C$310),0),0)","v":0},{"$f":"IF(F1929='1 Données d''entrée'!$C$312+1,IF('1 Données d''entrée'!$C$314=\"(=NON)\",($B1965*'1 Données d''entrée'!$C$310)*((('1 Données d''entrée'!$C$310+1)^'1 Données d''entrée'!$C$312-1)/('1 Données d''entrée'!$C$310))*(1+'1 Données d''entrée'!$C$310),0),0)","v":0},{"$f":"IF(G1929='1 Données d''entrée'!$C$312+1,IF('1 Données d''entrée'!$C$314=\"(=NON)\",($B1965*'1 Données d''entrée'!$C$310)*((('1 Données d''entrée'!$C$310+1)^'1 Données d''entrée'!$C$312-1)/('1 Données d''entrée'!$C$310))*(1+'1 Données d''entrée'!$C$310),0),0)","v":0},{"$f":"IF(H1929='1 Données d''entrée'!$C$312+1,IF('1 Données d''entrée'!$C$314=\"(=NON)\",($B1965*'1 Données d''entrée'!$C$310)*((('1 Données d''entrée'!$C$310+1)^'1 Données d''entrée'!$C$312-1)/('1 Données d''entrée'!$C$310))*(1+'1 Données d''entrée'!$C$310),0),0)","v":0},{"$f":"IF(I1929='1 Données d''entrée'!$C$312+1,IF('1 Données d''entrée'!$C$314=\"(=NON)\",($B1965*'1 Données d''entrée'!$C$310)*((('1 Données d''entrée'!$C$310+1)^'1 Données d''entrée'!$C$312-1)/('1 Données d''entrée'!$C$310))*(1+'1 Données d''entrée'!$C$310),0),0)","v":0},{"$f":"IF(J1929='1 Données d''entrée'!$C$312+1,IF('1 Données d''entrée'!$C$314=\"(=NON)\",($B1965*'1 Données d''entrée'!$C$310)*((('1 Données d''entrée'!$C$310+1)^'1 Données d''entrée'!$C$312-1)/('1 Données d''entrée'!$C$310))*(1+'1 Données d''entrée'!$C$310),0),0)","v":0},{"$f":"IF(K1929='1 Données d''entrée'!$C$312+1,IF('1 Données d''entrée'!$C$314=\"(=NON)\",($B1965*'1 Données d''entrée'!$C$310)*((('1 Données d''entrée'!$C$310+1)^'1 Données d''entrée'!$C$312-1)/('1 Données d''entrée'!$C$310))*(1+'1 Données d''entrée'!$C$310),0),0)","v":0},{"$f":"IF(L1929='1 Données d''entrée'!$C$312+1,IF('1 Données d''entrée'!$C$314=\"(=NON)\",($B1965*'1 Données d''entrée'!$C$310)*((('1 Données d''entrée'!$C$310+1)^'1 Données d''entrée'!$C$312-1)/('1 Données d''entrée'!$C$310))*(1+'1 Données d''entrée'!$C$310),0),0)","v":0},{"$f":"IF(M1929='1 Données d''entrée'!$C$312+1,IF('1 Données d''entrée'!$C$314=\"(=NON)\",($B1965*'1 Données d''entrée'!$C$310)*((('1 Données d''entrée'!$C$310+1)^'1 Données d''entrée'!$C$312-1)/('1 Données d''entrée'!$C$310))*(1+'1 Données d''entrée'!$C$310),0),0)","v":0},{"$f":"IF(N1929='1 Données d''entrée'!$C$312+1,IF('1 Données d''entrée'!$C$314=\"(=NON)\",($B1965*'1 Données d''entrée'!$C$310)*((('1 Données d''entrée'!$C$310+1)^'1 Données d''entrée'!$C$312-1)/('1 Données d''entrée'!$C$310))*(1+'1 Données d''entrée'!$C$310),0),0)","v":0},{"$f":"IF(O1929='1 Données d''entrée'!$C$312+1,IF('1 Données d''entrée'!$C$314=\"(=NON)\",($B1965*'1 Données d''entrée'!$C$310)*((('1 Données d''entrée'!$C$310+1)^'1 Données d''entrée'!$C$312-1)/('1 Données d''entrée'!$C$310))*(1+'1 Données d''entrée'!$C$310),0),0)","v":0},{"$f":"IF(P1929='1 Données d''entrée'!$C$312+1,IF('1 Données d''entrée'!$C$314=\"(=NON)\",($B1965*'1 Données d''entrée'!$C$310)*((('1 Données d''entrée'!$C$310+1)^'1 Données d''entrée'!$C$312-1)/('1 Données d''entrée'!$C$310))*(1+'1 Données d''entrée'!$C$310),0),0)","v":0},{"$f":"IF(Q1929='1 Données d''entrée'!$C$312+1,IF('1 Données d''entrée'!$C$314=\"(=NON)\",($B1965*'1 Données d''entrée'!$C$310)*((('1 Données d''entrée'!$C$310+1)^'1 Données d''entrée'!$C$312-1)/('1 Données d''entrée'!$C$310))*(1+'1 Données d''entrée'!$C$310),0),0)","v":0},{"$f":"IF(R1929='1 Données d''entrée'!$C$312+1,IF('1 Données d''entrée'!$C$314=\"(=NON)\",($B1965*'1 Données d''entrée'!$C$310)*((('1 Données d''entrée'!$C$310+1)^'1 Données d''entrée'!$C$312-1)/('1 Données d''entrée'!$C$310))*(1+'1 Données d''entrée'!$C$310),0),0)","v":0},{"$f":"IF(S1929='1 Données d''entrée'!$C$312+1,IF('1 Données d''entrée'!$C$314=\"(=NON)\",($B1965*'1 Données d''entrée'!$C$310)*((('1 Données d''entrée'!$C$310+1)^'1 Données d''entrée'!$C$312-1)/('1 Données d''entrée'!$C$310))*(1+'1 Données d''entrée'!$C$310),0),0)","v":0},{"$f":"IF(T1929='1 Données d''entrée'!$C$312+1,IF('1 Données d''entrée'!$C$314=\"(=NON)\",($B1965*'1 Données d''entrée'!$C$310)*((('1 Données d''entrée'!$C$310+1)^'1 Données d''entrée'!$C$312-1)/('1 Données d''entrée'!$C$310))*(1+'1 Données d''entrée'!$C$310),0),0)","v":0},{"$f":"IF(U1929='1 Données d''entrée'!$C$312+1,IF('1 Données d''entrée'!$C$314=\"(=NON)\",($B1965*'1 Données d''entrée'!$C$310)*((('1 Données d''entrée'!$C$310+1)^'1 Données d''entrée'!$C$312-1)/('1 Données d''entrée'!$C$310))*(1+'1 Données d''entrée'!$C$310),0),0)","v":0},{"$f":"IF(V1929='1 Données d''entrée'!$C$312+1,IF('1 Données d''entrée'!$C$314=\"(=NON)\",($B1965*'1 Données d''entrée'!$C$310)*((('1 Données d''entrée'!$C$310+1)^'1 Données d''entrée'!$C$312-1)/('1 Données d''entrée'!$C$310))*(1+'1 Données d''entrée'!$C$310),0),0)","v":0}]
[]
["Solde du compte intermédiaire"]
["Solde du comte (par période)",{"$f":"B1931+B1933+B1935+IF($B1937>0,(B1938-B1939-B1940-B1941),0)+IF($B1942>0,(B1943-B1944-B1945-B1946),0)+IF($B1947>0,(B1948-B1949-IF(B1949>0,0,B1950)-B1951),0)+B1953+IF($B1954>0,(B1955-B1956-B1957-B1958),0)+IF($B1959>0,(B1960-B1961-B1962-B1963),0)+IF($B1964>0,B1965-IF(B1966>0,0,B1967)-B1968,0)","v":{"$error":"#DIV/0!"}},{"$f":"C1931+C1933+C1935+IF($B1937>0,(-C1939-C1940-C1941),0)+IF($B1942>0,(-C1944-C1945-C1946),0)+C1953+IF($B1947>0,(-C1949-IF(C1949>0,0,C1950)-C1951),0)+IF($B1954>0,(-C1956-C1957-C1958),0)+IF($B1959>0,(-C1961-C1962-C1963),0)+IF($B1964>0,(-C1966-IF(C1966>0,0,C1967)-C1968),0)","v":{"$error":"#DIV/0!"}},{"$f":"D1931+D1933+D1935+IF($B1937>0,(-D1939-D1940-D1941),0)+IF($B1942>0,(-D1944-D1945-D1946),0)+D1953+IF($B1947>0,(-D1949-IF(D1949>0,0,D1950)-D1951),0)+IF($B1954>0,(-D1956-D1957-D1958),0)+IF($B1959>0,(-D1961-D1962-D1963),0)+IF($B1964>0,(-D1966-IF(D1966>0,0,D1967)-D1968),0)","v":{"$error":"#DIV/0!"}},{"$error":"#DIV/0!"},{"$error":"#DIV/0!"},{"$error":"#DIV/0!"},{"$error":"#DIV/0!"},{"$error":"#DIV/0!"},{"$error":"#DIV/0!"},{"$error":"#DIV/0!"},{"$error":"#DIV/0!"},{"$error":"#DIV/0!"},{"$error":"#DIV/0!"},{"$error":"#DIV/0!"},{"$error":"#DIV/0!"},{"$error":"#DIV/0!"},{"$error":"#DIV/0!"},{"$error":"#DIV/0!"},{"$error":"#DIV/0!"},{"$error":"#DIV/0!"},{"$error":"#DIV/0!"}]
["Solde du compte (cumulé)",{"$f":"B1971","v":{"$error":"#DIV/0!"}},{"$f":"B1972+C1971","v":{"$error":"#DIV/0!"}},{"$error":"#DIV/0!"},{"$error":"#DIV/0!"},{"$error":"#DIV/0!"},{"$error":"#DIV/0!"},{"$error":"#DIV/0!"},{"$error":"#DIV/0!"},{"$error":"#DIV/0!"},{"$error":"#DIV/0!"},{"$error":"#DIV/0!"},{"$error":"#DIV/0!"},{"$error":"#DIV/0!"},{"$error":"#DIV/0!"},{"$error":"#DIV/0!"},{"$error":"#DIV/0!"},{"$error":"#DIV/0!"},{"$error":"#DIV/0!"},{"$error":"#DIV/0!"},{"$error":"#DIV/0!"},{"$error":"#DIV/0!"}]
[]
[]
[]
["Prêt bancaire additionnel"]
[null,"Période",1,2,3,4,5,6,7,8,9,10,11,12,13,14,15,16,17,18,19,20]
["Prêt bancaire additionnel - Option 1: Remboursement du principal fractionné",{"$f":"'1 Données d''entrée'!$B$342","v":0}]
["Prêt(s) nouveau(x)",null,{"$f":"IF(C1972<0,C1972*(-1)*$B1978+C1972*(-1)*$B1978*'1 Données d''entrée'!$C$338,0)","v":{"$error":"#DIV/0!"}},{"$f":"IF(D1972<0,D1972*(-1)*$B1978+D1972*(-1)*$B1978*'1 Données d''entrée'!$C$338,0)","v":{"$error":"#DIV/0!"}},{"$f":"IF(E1972<0,E1972*(-1)*$B1978+E1972*(-1)*$B1978*'1 Données d''entrée'!$C$338,0)","v":{"$error":"#DIV/0!"}},{"$f":"IF(F1972<0,F1972*(-1)*$B1978+F1972*(-1)*$B1978*'1 Données d''entrée'!$C$338,0)","v":{"$error":"#DIV/0!"}},{"$f":"IF(G1972<0,G1972*(-1)*$B1978+G1972*(-1)*$B1978*'1 Données d''entrée'!$C$338,0)","v":{"$error":"#DIV/0!"}},{"$f":"IF(H1972<0,H1972*(-1)*$B1978+H1972*(-1)*$B1978*'1 Données d''entrée'!$C$338,0)","v":{"$error":"#DIV/0!"}},{"$f":"IF(I1972<0,I1972*(-1)*$B1978+I1972*(-1)*$B1978*'1 Données d''entrée'!$C$338,0)","v":{"$error":"#DIV/0!"}},{"$f":"IF(J1972<0,J1972*(-1)*$B1978+J1972*(-1)*$B1978*'1 Données d''entrée'!$C$338,0)","v":{"$error":"#DIV/0!"}},{"$f":"IF(K1972<0,K1972*(-1)*$B1978+K1972*(-1)*$B1978*'1 Données d''entrée'!$C$338,0)","v":{"$error":"#DIV/0!"}},{"$f":"IF(L1972<0,L1972*(-1)*$B1978+L1972*(-1)*$B1978*'1 Données d''entrée'!$C$338,0)","v":{"$error":"#DIV/0!"}},{"$f":"IF(M1972<0,M1972*(-1)*$B1978+M1972*(-1)*$B1978*'1 Données d''entrée'!$C$338,0)","v":{"$error":"#DIV/0!"}},{"$f":"IF(N1972<0,N1972*(-1)*$B1978+N1972*(-1)*$B1978*'1 Données d''entrée'!$C$338,0)","v":{"$error":"#DIV/0!"}},{"$f":"IF(O1972<0,O1972*(-1)*$B1978+O1972*(-1)*$B1978*'1 Données d''entrée'!$C$338,0)","v":{"$error":"#DIV/0!"}},{"$f":"IF(P1972<0,P1972*(-1)*$B1978+P1972*(-1)*$B1978*'1 Données d''entrée'!$C$338,0)","v":{"$error":"#DIV/0!"}},{"$f":"IF(Q1972<0,Q1972*(-1)*$B1978+Q1972*(-1)*$B1978*'1 Données d''entrée'!$C$338,0)","v":{"$error":"#DIV/0!"}},{"$f":"IF(R1972<0,R1972*(-1)*$B1978+R1972*(-1)*$B1978*'1 Données d''entrée'!$C$338,0)","v":{"$error":"#DIV/0!"}},{"$f":"IF(S1972<0,S1972*(-1)*$B1978+S1972*(-1)*$B1978*'1 Données d''entrée'!$C$338,0)","v":{"$error":"#DIV/0!"}},{"$f":"IF(T1972<0,T1972*(-1)*$B1978+T1972*(-1)*$B1978*'1 Données d''entrée'!$C$338,0)","v":{"$error":"#DIV/0!"}},{"$f":"IF(U1972<0,U1972*(-1)*$B1978+U1972*(-1)*$B1978*'1 Données d''entrée'!$C$338,0)","v":{"$error":"#DIV/0!"}},{"$f":"IF(V1972<0,V1972*(-1)*$B1978+V1972*(-1)*$B1978*'1 Données d''entrée'!$C$338,0)","v":{"$error":"#DIV/0!"}}]
[null,"Période de prêt nouveau"]
["Remboursement du principal",0,0,0,0,0,0,0,0,0,0,0,0,0,0,0,0,0,0,0,0,0]
[null,1,{"$f":"IF(C1929<'1 Données d''entrée'!$C$334+1+$B1982,0,IF(C1929<'1 Données d''entrée'!$C$333+'1 Données d''entrée'!$C$334+1+$B1982,($C1979/'1 Données d''entrée'!$C$333),0))","v":0},{"$f":"IF(D1929<'1 Données d''entrée'!$C$334+1+$B1982,0,IF(D1929<'1 Données d''entrée'!$C$333+'1 Données d''entrée'!$C$334+1+$B1982,($C1979/'1 Données d''entrée'!$C$333),0))","v":0},{"$f":"IF(E1929<'1 Données d''entrée'!$C$334+1+$B1982,0,IF(E1929<'1 Données d''entrée'!$C$333+'1 Données d''entrée'!$C$334+1+$B1982,($C1979/'1 Données d''entrée'!$C$333),0))","v":0},{"$f":"IF(F1929<'1 Données d''entrée'!$C$334+1+$B1982,0,IF(F1929<'1 Données d''entrée'!$C$333+'1 Données d''entrée'!$C$334+1+$B1982,($C1979/'1 Données d''entrée'!$C$333),0))","v":0},{"$f":"IF(G1929<'1 Données d''entrée'!$C$334+1+$B1982,0,IF(G1929<'1 Données d''entrée'!$C$333+'1 Données d''entrée'!$C$334+1+$B1982,($C1979/'1 Données d''entrée'!$C$333),0))","v":0},{"$f":"IF(H1929<'1 Données d''entrée'!$C$334+1+$B1982,0,IF(H1929<'1 Données d''entrée'!$C$333+'1 Données d''entrée'!$C$334+1+$B1982,($C1979/'1 Données d''entrée'!$C$333),0))","v":0},{"$f":"IF(I1929<'1 Données d''entrée'!$C$334+1+$B1982,0,IF(I1929<'1 Données d''entrée'!$C$333+'1 Données d''entrée'!$C$334+1+$B1982,($C1979/'1 Données d''entrée'!$C$333),0))","v":0},{"$f":"IF(J1929<'1 Données d''entrée'!$C$334+1+$B1982,0,IF(J1929<'1 Données d''entrée'!$C$333+'1 Données d''entrée'!$C$334+1+$B1982,($C1979/'1 Données d''entrée'!$C$333),0))","v":0},{"$f":"IF(K1929<'1 Données d''entrée'!$C$334+1+$B1982,0,IF(K1929<'1 Données d''entrée'!$C$333+'1 Données d''entrée'!$C$334+1+$B1982,($C1979/'1 Données d''entrée'!$C$333),0))","v":0},{"$f":"IF(L1929<'1 Données d''entrée'!$C$334+1+$B1982,0,IF(L1929<'1 Données d''entrée'!$C$333+'1 Données d''entrée'!$C$334+1+$B1982,($C1979/'1 Données d''entrée'!$C$333),0))","v":0},{"$f":"IF(M1929<'1 Données d''entrée'!$C$334+1+$B1982,0,IF(M1929<'1 Données d''entrée'!$C$333+'1 Données d''entrée'!$C$334+1+$B1982,($C1979/'1 Données d''entrée'!$C$333),0))","v":0},{"$f":"IF(N1929<'1 Données d''entrée'!$C$334+1+$B1982,0,IF(N1929<'1 Données d''entrée'!$C$333+'1 Données d''entrée'!$C$334+1+$B1982,($C1979/'1 Données d''entrée'!$C$333),0))","v":0},{"$f":"IF(O1929<'1 Données d''entrée'!$C$334+1+$B1982,0,IF(O1929<'1 Données d''entrée'!$C$333+'1 Données d''entrée'!$C$334+1+$B1982,($C1979/'1 Données d''entrée'!$C$333),0))","v":0},{"$f":"IF(P1929<'1 Données d''entrée'!$C$334+1+$B1982,0,IF(P1929<'1 Données d''entrée'!$C$333+'1 Données d''entrée'!$C$334+1+$B1982,($C1979/'1 Données d''entrée'!$C$333),0))","v":0},{"$f":"IF(Q1929<'1 Données d''entrée'!$C$334+1+$B1982,0,IF(Q1929<'1 Données d''entrée'!$C$333+'1 Données d''entrée'!$C$334+1+$B1982,($C1979/'1 Données d''entrée'!$C$333),0))","v":0},{"$f":"IF(R1929<'1 Données d''entrée'!$C$334+1+$B1982,0,IF(R1929<'1 Données d''entrée'!$C$333+'1 Données d''entrée'!$C$334+1+$B1982,($C1979/'1 Données d''entrée'!$C$333),0))","v":0},{"$f":"IF(S1929<'1 Données d''entrée'!$C$334+1+$B1982,0,IF(S1929<'1 Données d''entrée'!$C$333+'1 Données d''entrée'!$C$334+1+$B1982,($C1979/'1 Données d''entrée'!$C$333),0))","v":0},{"$f":"IF(T1929<'1 Données d''entrée'!$C$334+1+$B1982,0,IF(T1929<'1 Données d''entrée'!$C$333+'1 Données d''entrée'!$C$334+1+$B1982,($C1979/'1 Données d''entrée'!$C$333),0))","v":0},{"$f":"IF(U1929<'1 Données d''entrée'!$C$334+1+$B1982,0,IF(U1929<'1 Données d''entrée'!$C$333+'1 Données d''entrée'!$C$334+1+$B1982,($C1979/'1 Données d''entrée'!$C$333),0))","v":0},{"$f":"IF(V1929<'1 Données d''entrée'!$C$334+1+$B1982,0,IF(V1929<'1 Données d''entrée'!$C$333+'1 Données d''entrée'!$C$334+1+$B1982,($C1979/'1 Données d''entrée'!$C$333),0))","v":0}]
[null,2,{"$f":"IF(C1929<'1 Données d''entrée'!$C$334+1+$B1983,0,IF(C1929<'1 Données d''entrée'!$C$333+'1 Données d''entrée'!$C$334+1+$B1983,($D1979/'1 Données d''entrée'!$C$333),0))","v":0},{"$f":"IF(D1929<'1 Données d''entrée'!$C$334+1+$B1983,0,IF(D1929<'1 Données d''entrée'!$C$333+'1 Données d''entrée'!$C$334+1+$B1983,($D1979/'1 Données d''entrée'!$C$333),0))","v":0},{"$f":"IF(E1929<'1 Données d''entrée'!$C$334+1+$B1983,0,IF(E1929<'1 Données d''entrée'!$C$333+'1 Données d''entrée'!$C$334+1+$B1983,($D1979/'1 Données d''entrée'!$C$333),0))","v":0},{"$f":"IF(F1929<'1 Données d''entrée'!$C$334+1+$B1983,0,IF(F1929<'1 Données d''entrée'!$C$333+'1 Données d''entrée'!$C$334+1+$B1983,($D1979/'1 Données d''entrée'!$C$333),0))","v":0},{"$f":"IF(G1929<'1 Données d''entrée'!$C$334+1+$B1983,0,IF(G1929<'1 Données d''entrée'!$C$333+'1 Données d''entrée'!$C$334+1+$B1983,($D1979/'1 Données d''entrée'!$C$333),0))","v":0},{"$f":"IF(H1929<'1 Données d''entrée'!$C$334+1+$B1983,0,IF(H1929<'1 Données d''entrée'!$C$333+'1 Données d''entrée'!$C$334+1+$B1983,($D1979/'1 Données d''entrée'!$C$333),0))","v":0},{"$f":"IF(I1929<'1 Données d''entrée'!$C$334+1+$B1983,0,IF(I1929<'1 Données d''entrée'!$C$333+'1 Données d''entrée'!$C$334+1+$B1983,($D1979/'1 Données d''entrée'!$C$333),0))","v":0},{"$f":"IF(J1929<'1 Données d''entrée'!$C$334+1+$B1983,0,IF(J1929<'1 Données d''entrée'!$C$333+'1 Données d''entrée'!$C$334+1+$B1983,($D1979/'1 Données d''entrée'!$C$333),0))","v":0},{"$f":"IF(K1929<'1 Données d''entrée'!$C$334+1+$B1983,0,IF(K1929<'1 Données d''entrée'!$C$333+'1 Données d''entrée'!$C$334+1+$B1983,($D1979/'1 Données d''entrée'!$C$333),0))","v":0},{"$f":"IF(L1929<'1 Données d''entrée'!$C$334+1+$B1983,0,IF(L1929<'1 Données d''entrée'!$C$333+'1 Données d''entrée'!$C$334+1+$B1983,($D1979/'1 Données d''entrée'!$C$333),0))","v":0},{"$f":"IF(M1929<'1 Données d''entrée'!$C$334+1+$B1983,0,IF(M1929<'1 Données d''entrée'!$C$333+'1 Données d''entrée'!$C$334+1+$B1983,($D1979/'1 Données d''entrée'!$C$333),0))","v":0},{"$f":"IF(N1929<'1 Données d''entrée'!$C$334+1+$B1983,0,IF(N1929<'1 Données d''entrée'!$C$333+'1 Données d''entrée'!$C$334+1+$B1983,($D1979/'1 Données d''entrée'!$C$333),0))","v":0},{"$f":"IF(O1929<'1 Données d''entrée'!$C$334+1+$B1983,0,IF(O1929<'1 Données d''entrée'!$C$333+'1 Données d''entrée'!$C$334+1+$B1983,($D1979/'1 Données d''entrée'!$C$333),0))","v":0},{"$f":"IF(P1929<'1 Données d''entrée'!$C$334+1+$B1983,0,IF(P1929<'1 Données d''entrée'!$C$333+'1 Données d''entrée'!$C$334+1+$B1983,($D1979/'1 Données d''entrée'!$C$333),0))","v":0},{"$f":"IF(Q1929<'1 Données d''entrée'!$C$334+1+$B1983,0,IF(Q1929<'1 Données d''entrée'!$C$333+'1 Données d''entrée'!$C$334+1+$B1983,($D1979/'1 Données d''entrée'!$C$333),0))","v":0},{"$f":"IF(R1929<'1 Données d''entrée'!$C$334+1+$B1983,0,IF(R1929<'1 Données d''entrée'!$C$333+'1 Données d''entrée'!$C$334+1+$B1983,($D1979/'1 Données d''entrée'!$C$333),0))","v":0},{"$f":"IF(S1929<'1 Données d''entrée'!$C$334+1+$B1983,0,IF(S1929<'1 Données d''entrée'!$C$333+'1 Données d''entrée'!$C$334+1+$B1983,($D1979/'1 Données d''entrée'!$C$333),0))","v":0},{"$f":"IF(T1929<'1 Données d''entrée'!$C$334+1+$B1983,0,IF(T1929<'1 Données d''entrée'!$C$333+'1 Données d''entrée'!$C$334+1+$B1983,($D1979/'1 Données d''entrée'!$C$333),0))","v":0},{"$f":"IF(U1929<'1 Données d''entrée'!$C$334+1+$B1983,0,IF(U1929<'1 Données d''entrée'!$C$333+'1 Données d''entrée'!$C$334+1+$B1983,($D1979/'1 Données d''entrée'!$C$333),0))","v":0},{"$f":"IF(V1929<'1 Données d''entrée'!$C$334+1+$B1983,0,IF(V1929<'1 Données d''entrée'!$C$333+'1 Données d''entrée'!$C$334+1+$B1983,($D1979/'1 Données d''entrée'!$C$333),0))","v":0}]
[null,3,{"$f":"IF(C1929<'1 Données d''entrée'!$C$334+1+$B1984,0,IF(C1929<'1 Données d''entrée'!$C$333+'1 Données d''entrée'!$C$334+1+$B1984,($E1979/'1 Données d''entrée'!$C$333),0))","v":0},{"$f":"IF(D1929<'1 Données d''entrée'!$C$334+1+$B1984,0,IF(D1929<'1 Données d''entrée'!$C$333+'1 Données d''entrée'!$C$334+1+$B1984,($E1979/'1 Données d''entrée'!$C$333),0))","v":0},{"$f":"IF(E1929<'1 Données d''entrée'!$C$334+1+$B1984,0,IF(E1929<'1 Données d''entrée'!$C$333+'1 Données d''entrée'!$C$334+1+$B1984,($E1979/'1 Données d''entrée'!$C$333),0))","v":0},{"$f":"IF(F1929<'1 Données d''entrée'!$C$334+1+$B1984,0,IF(F1929<'1 Données d''entrée'!$C$333+'1 Données d''entrée'!$C$334+1+$B1984,($E1979/'1 Données d''entrée'!$C$333),0))","v":0},{"$f":"IF(G1929<'1 Données d''entrée'!$C$334+1+$B1984,0,IF(G1929<'1 Données d''entrée'!$C$333+'1 Données d''entrée'!$C$334+1+$B1984,($E1979/'1 Données d''entrée'!$C$333),0))","v":0},{"$f":"IF(H1929<'1 Données d''entrée'!$C$334+1+$B1984,0,IF(H1929<'1 Données d''entrée'!$C$333+'1 Données d''entrée'!$C$334+1+$B1984,($E1979/'1 Données d''entrée'!$C$333),0))","v":0},{"$f":"IF(I1929<'1 Données d''entrée'!$C$334+1+$B1984,0,IF(I1929<'1 Données d''entrée'!$C$333+'1 Données d''entrée'!$C$334+1+$B1984,($E1979/'1 Données d''entrée'!$C$333),0))","v":0},{"$f":"IF(J1929<'1 Données d''entrée'!$C$334+1+$B1984,0,IF(J1929<'1 Données d''entrée'!$C$333+'1 Données d''entrée'!$C$334+1+$B1984,($E1979/'1 Données d''entrée'!$C$333),0))","v":0},{"$f":"IF(K1929<'1 Données d''entrée'!$C$334+1+$B1984,0,IF(K1929<'1 Données d''entrée'!$C$333+'1 Données d''entrée'!$C$334+1+$B1984,($E1979/'1 Données d''entrée'!$C$333),0))","v":0},{"$f":"IF(L1929<'1 Données d''entrée'!$C$334+1+$B1984,0,IF(L1929<'1 Données d''entrée'!$C$333+'1 Données d''entrée'!$C$334+1+$B1984,($E1979/'1 Données d''entrée'!$C$333),0))","v":0},{"$f":"IF(M1929<'1 Données d''entrée'!$C$334+1+$B1984,0,IF(M1929<'1 Données d''entrée'!$C$333+'1 Données d''entrée'!$C$334+1+$B1984,($E1979/'1 Données d''entrée'!$C$333),0))","v":0},{"$f":"IF(N1929<'1 Données d''entrée'!$C$334+1+$B1984,0,IF(N1929<'1 Données d''entrée'!$C$333+'1 Données d''entrée'!$C$334+1+$B1984,($E1979/'1 Données d''entrée'!$C$333),0))","v":0},{"$f":"IF(O1929<'1 Données d''entrée'!$C$334+1+$B1984,0,IF(O1929<'1 Données d''entrée'!$C$333+'1 Données d''entrée'!$C$334+1+$B1984,($E1979/'1 Données d''entrée'!$C$333),0))","v":0},{"$f":"IF(P1929<'1 Données d''entrée'!$C$334+1+$B1984,0,IF(P1929<'1 Données d''entrée'!$C$333+'1 Données d''entrée'!$C$334+1+$B1984,($E1979/'1 Données d''entrée'!$C$333),0))","v":0},{"$f":"IF(Q1929<'1 Données d''entrée'!$C$334+1+$B1984,0,IF(Q1929<'1 Données d''entrée'!$C$333+'1 Données d''entrée'!$C$334+1+$B1984,($E1979/'1 Données d''entrée'!$C$333),0))","v":0},{"$f":"IF(R1929<'1 Données d''entrée'!$C$334+1+$B1984,0,IF(R1929<'1 Données d''entrée'!$C$333+'1 Données d''entrée'!$C$334+1+$B1984,($E1979/'1 Données d''entrée'!$C$333),0))","v":0},{"$f":"IF(S1929<'1 Données d''entrée'!$C$334+1+$B1984,0,IF(S1929<'1 Données d''entrée'!$C$333+'1 Données d''entrée'!$C$334+1+$B1984,($E1979/'1 Données d''entrée'!$C$333),0))","v":0},{"$f":"IF(T1929<'1 Données d''entrée'!$C$334+1+$B1984,0,IF(T1929<'1 Données d''entrée'!$C$333+'1 Données d''entrée'!$C$334+1+$B1984,($E1979/'1 Données d''entrée'!$C$333),0))","v":0},{"$f":"IF(U1929<'1 Données d''entrée'!$C$334+1+$B1984,0,IF(U1929<'1 Données d''entrée'!$C$333+'1 Données d''entrée'!$C$334+1+$B1984,($E1979/'1 Données d''entrée'!$C$333),0))","v":0},{"$f":"IF(V1929<'1 Données d''entrée'!$C$334+1+$B1984,0,IF(V1929<'1 Données d''entrée'!$C$333+'1 Données d''entrée'!$C$334+1+$B1984,($E1979/'1 Données d''entrée'!$C$333),0))","v":0}]
[null,4,{"$f":"IF(C1929<'1 Données d''entrée'!$C$334+1+$B1985,0,IF(C1929<'1 Données d''entrée'!$C$333+'1 Données d''entrée'!$C$334+1+$B1985,($F1979/'1 Données d''entrée'!$C$333),0))","v":0},{"$f":"IF(D1929<'1 Données d''entrée'!$C$334+1+$B1985,0,IF(D1929<'1 Données d''entrée'!$C$333+'1 Données d''entrée'!$C$334+1+$B1985,($F1979/'1 Données d''entrée'!$C$333),0))","v":0},{"$f":"IF(E1929<'1 Données d''entrée'!$C$334+1+$B1985,0,IF(E1929<'1 Données d''entrée'!$C$333+'1 Données d''entrée'!$C$334+1+$B1985,($F1979/'1 Données d''entrée'!$C$333),0))","v":0},{"$f":"IF(F1929<'1 Données d''entrée'!$C$334+1+$B1985,0,IF(F1929<'1 Données d''entrée'!$C$333+'1 Données d''entrée'!$C$334+1+$B1985,($F1979/'1 Données d''entrée'!$C$333),0))","v":0},{"$f":"IF(G1929<'1 Données d''entrée'!$C$334+1+$B1985,0,IF(G1929<'1 Données d''entrée'!$C$333+'1 Données d''entrée'!$C$334+1+$B1985,($F1979/'1 Données d''entrée'!$C$333),0))","v":0},{"$f":"IF(H1929<'1 Données d''entrée'!$C$334+1+$B1985,0,IF(H1929<'1 Données d''entrée'!$C$333+'1 Données d''entrée'!$C$334+1+$B1985,($F1979/'1 Données d''entrée'!$C$333),0))","v":0},{"$f":"IF(I1929<'1 Données d''entrée'!$C$334+1+$B1985,0,IF(I1929<'1 Données d''entrée'!$C$333+'1 Données d''entrée'!$C$334+1+$B1985,($F1979/'1 Données d''entrée'!$C$333),0))","v":0},{"$f":"IF(J1929<'1 Données d''entrée'!$C$334+1+$B1985,0,IF(J1929<'1 Données d''entrée'!$C$333+'1 Données d''entrée'!$C$334+1+$B1985,($F1979/'1 Données d''entrée'!$C$333),0))","v":0},{"$f":"IF(K1929<'1 Données d''entrée'!$C$334+1+$B1985,0,IF(K1929<'1 Données d''entrée'!$C$333+'1 Données d''entrée'!$C$334+1+$B1985,($F1979/'1 Données d''entrée'!$C$333),0))","v":0},{"$f":"IF(L1929<'1 Données d''entrée'!$C$334+1+$B1985,0,IF(L1929<'1 Données d''entrée'!$C$333+'1 Données d''entrée'!$C$334+1+$B1985,($F1979/'1 Données d''entrée'!$C$333),0))","v":0},{"$f":"IF(M1929<'1 Données d''entrée'!$C$334+1+$B1985,0,IF(M1929<'1 Données d''entrée'!$C$333+'1 Données d''entrée'!$C$334+1+$B1985,($F1979/'1 Données d''entrée'!$C$333),0))","v":0},{"$f":"IF(N1929<'1 Données d''entrée'!$C$334+1+$B1985,0,IF(N1929<'1 Données d''entrée'!$C$333+'1 Données d''entrée'!$C$334+1+$B1985,($F1979/'1 Données d''entrée'!$C$333),0))","v":0},{"$f":"IF(O1929<'1 Données d''entrée'!$C$334+1+$B1985,0,IF(O1929<'1 Données d''entrée'!$C$333+'1 Données d''entrée'!$C$334+1+$B1985,($F1979/'1 Données d''entrée'!$C$333),0))","v":0},{"$f":"IF(P1929<'1 Données d''entrée'!$C$334+1+$B1985,0,IF(P1929<'1 Données d''entrée'!$C$333+'1 Données d''entrée'!$C$334+1+$B1985,($F1979/'1 Données d''entrée'!$C$333),0))","v":0},{"$f":"IF(Q1929<'1 Données d''entrée'!$C$334+1+$B1985,0,IF(Q1929<'1 Données d''entrée'!$C$333+'1 Données d''entrée'!$C$334+1+$B1985,($F1979/'1 Données d''entrée'!$C$333),0))","v":0},{"$f":"IF(R1929<'1 Données d''entrée'!$C$334+1+$B1985,0,IF(R1929<'1 Données d''entrée'!$C$333+'1 Données d''entrée'!$C$334+1+$B1985,($F1979/'1 Données d''entrée'!$C$333),0))","v":0},{"$f":"IF(S1929<'1 Données d''entrée'!$C$334+1+$B1985,0,IF(S1929<'1 Données d''entrée'!$C$333+'1 Données d''entrée'!$C$334+1+$B1985,($F1979/'1 Données d''entrée'!$C$333),0))","v":0},{"$f":"IF(T1929<'1 Données d''entrée'!$C$334+1+$B1985,0,IF(T1929<'1 Données d''entrée'!$C$333+'1 Données d''entrée'!$C$334+1+$B1985,($F1979/'1 Données d''entrée'!$C$333),0))","v":0},{"$f":"IF(U1929<'1 Données d''entrée'!$C$334+1+$B1985,0,IF(U1929<'1 Données d''entrée'!$C$333+'1 Données d''entrée'!$C$334+1+$B1985,($F1979/'1 Données d''entrée'!$C$333),0))","v":0},{"$f":"IF(V1929<'1 Données d''entrée'!$C$334+1+$B1985,0,IF(V1929<'1 Données d''entrée'!$C$333+'1 Données d''entrée'!$C$334+1+$B1985,($F1979/'1 Données d''entrée'!$C$333),0))","v":0}]
[null,5,{"$f":"IF(C1929<'1 Données d''entrée'!$C$334+1+$B1986,0,IF(C1929<'1 Données d''entrée'!$C$333+'1 Données d''entrée'!$C$334+1+$B1986,($G1979/'1 Données d''entrée'!$C$333),0))","v":0},{"$f":"IF(D1929<'1 Données d''entrée'!$C$334+1+$B1986,0,IF(D1929<'1 Données d''entrée'!$C$333+'1 Données d''entrée'!$C$334+1+$B1986,($G1979/'1 Données d''entrée'!$C$333),0))","v":0},{"$f":"IF(E1929<'1 Données d''entrée'!$C$334+1+$B1986,0,IF(E1929<'1 Données d''entrée'!$C$333+'1 Données d''entrée'!$C$334+1+$B1986,($G1979/'1 Données d''entrée'!$C$333),0))","v":0},{"$f":"IF(F1929<'1 Données d''entrée'!$C$334+1+$B1986,0,IF(F1929<'1 Données d''entrée'!$C$333+'1 Données d''entrée'!$C$334+1+$B1986,($G1979/'1 Données d''entrée'!$C$333),0))","v":0},{"$f":"IF(G1929<'1 Données d''entrée'!$C$334+1+$B1986,0,IF(G1929<'1 Données d''entrée'!$C$333+'1 Données d''entrée'!$C$334+1+$B1986,($G1979/'1 Données d''entrée'!$C$333),0))","v":0},{"$f":"IF(H1929<'1 Données d''entrée'!$C$334+1+$B1986,0,IF(H1929<'1 Données d''entrée'!$C$333+'1 Données d''entrée'!$C$334+1+$B1986,($G1979/'1 Données d''entrée'!$C$333),0))","v":0},{"$f":"IF(I1929<'1 Données d''entrée'!$C$334+1+$B1986,0,IF(I1929<'1 Données d''entrée'!$C$333+'1 Données d''entrée'!$C$334+1+$B1986,($G1979/'1 Données d''entrée'!$C$333),0))","v":0},{"$f":"IF(J1929<'1 Données d''entrée'!$C$334+1+$B1986,0,IF(J1929<'1 Données d''entrée'!$C$333+'1 Données d''entrée'!$C$334+1+$B1986,($G1979/'1 Données d''entrée'!$C$333),0))","v":0},{"$f":"IF(K1929<'1 Données d''entrée'!$C$334+1+$B1986,0,IF(K1929<'1 Données d''entrée'!$C$333+'1 Données d''entrée'!$C$334+1+$B1986,($G1979/'1 Données d''entrée'!$C$333),0))","v":0},{"$f":"IF(L1929<'1 Données d''entrée'!$C$334+1+$B1986,0,IF(L1929<'1 Données d''entrée'!$C$333+'1 Données d''entrée'!$C$334+1+$B1986,($G1979/'1 Données d''entrée'!$C$333),0))","v":0},{"$f":"IF(M1929<'1 Données d''entrée'!$C$334+1+$B1986,0,IF(M1929<'1 Données d''entrée'!$C$333+'1 Données d''entrée'!$C$334+1+$B1986,($G1979/'1 Données d''entrée'!$C$333),0))","v":0},{"$f":"IF(N1929<'1 Données d''entrée'!$C$334+1+$B1986,0,IF(N1929<'1 Données d''entrée'!$C$333+'1 Données d''entrée'!$C$334+1+$B1986,($G1979/'1 Données d''entrée'!$C$333),0))","v":0},{"$f":"IF(O1929<'1 Données d''entrée'!$C$334+1+$B1986,0,IF(O1929<'1 Données d''entrée'!$C$333+'1 Données d''entrée'!$C$334+1+$B1986,($G1979/'1 Données d''entrée'!$C$333),0))","v":0},{"$f":"IF(P1929<'1 Données d''entrée'!$C$334+1+$B1986,0,IF(P1929<'1 Données d''entrée'!$C$333+'1 Données d''entrée'!$C$334+1+$B1986,($G1979/'1 Données d''entrée'!$C$333),0))","v":0},{"$f":"IF(Q1929<'1 Données d''entrée'!$C$334+1+$B1986,0,IF(Q1929<'1 Données d''entrée'!$C$333+'1 Données d''entrée'!$C$334+1+$B1986,($G1979/'1 Données d''entrée'!$C$333),0))","v":0},{"$f":"IF(R1929<'1 Données d''entrée'!$C$334+1+$B1986,0,IF(R1929<'1 Données d''entrée'!$C$333+'1 Données d''entrée'!$C$334+1+$B1986,($G1979/'1 Données d''entrée'!$C$333),0))","v":0},{"$f":"IF(S1929<'1 Données d''entrée'!$C$334+1+$B1986,0,IF(S1929<'1 Données d''entrée'!$C$333+'1 Données d''entrée'!$C$334+1+$B1986,($G1979/'1 Données d''entrée'!$C$333),0))","v":0},{"$f":"IF(T1929<'1 Données d''entrée'!$C$334+1+$B1986,0,IF(T1929<'1 Données d''entrée'!$C$333+'1 Données d''entrée'!$C$334+1+$B1986,($G1979/'1 Données d''entrée'!$C$333),0))","v":0},{"$f":"IF(U1929<'1 Données d''entrée'!$C$334+1+$B1986,0,IF(U1929<'1 Données d''entrée'!$C$333+'1 Données d''entrée'!$C$334+1+$B1986,($G1979/'1 Données d''entrée'!$C$333),0))","v":0},{"$f":"IF(V1929<'1 Données d''entrée'!$C$334+1+$B1986,0,IF(V1929<'1 Données d''entrée'!$C$333+'1 Données d''entrée'!$C$334+1+$B1986,($G1979/'1 Données d''entrée'!$C$333),0))","v":0}]
[null,6,{"$f":"IF(C1929<'1 Données d''entrée'!$C$334+1+$B1987,0,IF(C1929<'1 Données d''entrée'!$C$333+'1 Données d''entrée'!$C$334+1+$B1987,($H1979/'1 Données d''entrée'!$C$333),0))","v":0},{"$f":"IF(D1929<'1 Données d''entrée'!$C$334+1+$B1987,0,IF(D1929<'1 Données d''entrée'!$C$333+'1 Données d''entrée'!$C$334+1+$B1987,($H1979/'1 Données d''entrée'!$C$333),0))","v":0},{"$f":"IF(E1929<'1 Données d''entrée'!$C$334+1+$B1987,0,IF(E1929<'1 Données d''entrée'!$C$333+'1 Données d''entrée'!$C$334+1+$B1987,($H1979/'1 Données d''entrée'!$C$333),0))","v":0},{"$f":"IF(F1929<'1 Données d''entrée'!$C$334+1+$B1987,0,IF(F1929<'1 Données d''entrée'!$C$333+'1 Données d''entrée'!$C$334+1+$B1987,($H1979/'1 Données d''entrée'!$C$333),0))","v":0},{"$f":"IF(G1929<'1 Données d''entrée'!$C$334+1+$B1987,0,IF(G1929<'1 Données d''entrée'!$C$333+'1 Données d''entrée'!$C$334+1+$B1987,($H1979/'1 Données d''entrée'!$C$333),0))","v":0},{"$f":"IF(H1929<'1 Données d''entrée'!$C$334+1+$B1987,0,IF(H1929<'1 Données d''entrée'!$C$333+'1 Données d''entrée'!$C$334+1+$B1987,($H1979/'1 Données d''entrée'!$C$333),0))","v":0},{"$f":"IF(I1929<'1 Données d''entrée'!$C$334+1+$B1987,0,IF(I1929<'1 Données d''entrée'!$C$333+'1 Données d''entrée'!$C$334+1+$B1987,($H1979/'1 Données d''entrée'!$C$333),0))","v":0},{"$f":"IF(J1929<'1 Données d''entrée'!$C$334+1+$B1987,0,IF(J1929<'1 Données d''entrée'!$C$333+'1 Données d''entrée'!$C$334+1+$B1987,($H1979/'1 Données d''entrée'!$C$333),0))","v":0},{"$f":"IF(K1929<'1 Données d''entrée'!$C$334+1+$B1987,0,IF(K1929<'1 Données d''entrée'!$C$333+'1 Données d''entrée'!$C$334+1+$B1987,($H1979/'1 Données d''entrée'!$C$333),0))","v":0},{"$f":"IF(L1929<'1 Données d''entrée'!$C$334+1+$B1987,0,IF(L1929<'1 Données d''entrée'!$C$333+'1 Données d''entrée'!$C$334+1+$B1987,($H1979/'1 Données d''entrée'!$C$333),0))","v":0},{"$f":"IF(M1929<'1 Données d''entrée'!$C$334+1+$B1987,0,IF(M1929<'1 Données d''entrée'!$C$333+'1 Données d''entrée'!$C$334+1+$B1987,($H1979/'1 Données d''entrée'!$C$333),0))","v":0},{"$f":"IF(N1929<'1 Données d''entrée'!$C$334+1+$B1987,0,IF(N1929<'1 Données d''entrée'!$C$333+'1 Données d''entrée'!$C$334+1+$B1987,($H1979/'1 Données d''entrée'!$C$333),0))","v":0},{"$f":"IF(O1929<'1 Données d''entrée'!$C$334+1+$B1987,0,IF(O1929<'1 Données d''entrée'!$C$333+'1 Données d''entrée'!$C$334+1+$B1987,($H1979/'1 Données d''entrée'!$C$333),0))","v":0},{"$f":"IF(P1929<'1 Données d''entrée'!$C$334+1+$B1987,0,IF(P1929<'1 Données d''entrée'!$C$333+'1 Données d''entrée'!$C$334+1+$B1987,($H1979/'1 Données d''entrée'!$C$333),0))","v":0},{"$f":"IF(Q1929<'1 Données d''entrée'!$C$334+1+$B1987,0,IF(Q1929<'1 Données d''entrée'!$C$333+'1 Données d''entrée'!$C$334+1+$B1987,($H1979/'1 Données d''entrée'!$C$333),0))","v":0},{"$f":"IF(R1929<'1 Données d''entrée'!$C$334+1+$B1987,0,IF(R1929<'1 Données d''entrée'!$C$333+'1 Données d''entrée'!$C$334+1+$B1987,($H1979/'1 Données d''entrée'!$C$333),0))","v":0},{"$f":"IF(S1929<'1 Données d''entrée'!$C$334+1+$B1987,0,IF(S1929<'1 Données d''entrée'!$C$333+'1 Données d''entrée'!$C$334+1+$B1987,($H1979/'1 Données d''entrée'!$C$333),0))","v":0},{"$f":"IF(T1929<'1 Données d''entrée'!$C$334+1+$B1987,0,IF(T1929<'1 Données d''entrée'!$C$333+'1 Données d''entrée'!$C$334+1+$B1987,($H1979/'1 Données d''entrée'!$C$333),0))","v":0},{"$f":"IF(U1929<'1 Données d''entrée'!$C$334+1+$B1987,0,IF(U1929<'1 Données d''entrée'!$C$333+'1 Données d''entrée'!$C$334+1+$B1987,($H1979/'1 Données d''entrée'!$C$333),0))","v":0},{"$f":"IF(V1929<'1 Données d''entrée'!$C$334+1+$B1987,0,IF(V1929<'1 Données d''entrée'!$C$333+'1 Données d''entrée'!$C$334+1+$B1987,($H1979/'1 Données d''entrée'!$C$333),0))","v":0}]
[null,7,{"$f":"IF(C1929<'1 Données d''entrée'!$C$334+1+$B1988,0,IF(C1929<'1 Données d''entrée'!$C$333+'1 Données d''entrée'!$C$334+1+$B1988,($I1979/'1 Données d''entrée'!$C$333),0))","v":0},{"$f":"IF(D1929<'1 Données d''entrée'!$C$334+1+$B1988,0,IF(D1929<'1 Données d''entrée'!$C$333+'1 Données d''entrée'!$C$334+1+$B1988,($I1979/'1 Données d''entrée'!$C$333),0))","v":0},{"$f":"IF(E1929<'1 Données d''entrée'!$C$334+1+$B1988,0,IF(E1929<'1 Données d''entrée'!$C$333+'1 Données d''entrée'!$C$334+1+$B1988,($I1979/'1 Données d''entrée'!$C$333),0))","v":0},{"$f":"IF(F1929<'1 Données d''entrée'!$C$334+1+$B1988,0,IF(F1929<'1 Données d''entrée'!$C$333+'1 Données d''entrée'!$C$334+1+$B1988,($I1979/'1 Données d''entrée'!$C$333),0))","v":0},{"$f":"IF(G1929<'1 Données d''entrée'!$C$334+1+$B1988,0,IF(G1929<'1 Données d''entrée'!$C$333+'1 Données d''entrée'!$C$334+1+$B1988,($I1979/'1 Données d''entrée'!$C$333),0))","v":0},{"$f":"IF(H1929<'1 Données d''entrée'!$C$334+1+$B1988,0,IF(H1929<'1 Données d''entrée'!$C$333+'1 Données d''entrée'!$C$334+1+$B1988,($I1979/'1 Données d''entrée'!$C$333),0))","v":0},{"$f":"IF(I1929<'1 Données d''entrée'!$C$334+1+$B1988,0,IF(I1929<'1 Données d''entrée'!$C$333+'1 Données d''entrée'!$C$334+1+$B1988,($I1979/'1 Données d''entrée'!$C$333),0))","v":0},{"$f":"IF(J1929<'1 Données d''entrée'!$C$334+1+$B1988,0,IF(J1929<'1 Données d''entrée'!$C$333+'1 Données d''entrée'!$C$334+1+$B1988,($I1979/'1 Données d''entrée'!$C$333),0))","v":0},{"$f":"IF(K1929<'1 Données d''entrée'!$C$334+1+$B1988,0,IF(K1929<'1 Données d''entrée'!$C$333+'1 Données d''entrée'!$C$334+1+$B1988,($I1979/'1 Données d''entrée'!$C$333),0))","v":0},{"$f":"IF(L1929<'1 Données d''entrée'!$C$334+1+$B1988,0,IF(L1929<'1 Données d''entrée'!$C$333+'1 Données d''entrée'!$C$334+1+$B1988,($I1979/'1 Données d''entrée'!$C$333),0))","v":0},{"$f":"IF(M1929<'1 Données d''entrée'!$C$334+1+$B1988,0,IF(M1929<'1 Données d''entrée'!$C$333+'1 Données d''entrée'!$C$334+1+$B1988,($I1979/'1 Données d''entrée'!$C$333),0))","v":0},{"$f":"IF(N1929<'1 Données d''entrée'!$C$334+1+$B1988,0,IF(N1929<'1 Données d''entrée'!$C$333+'1 Données d''entrée'!$C$334+1+$B1988,($I1979/'1 Données d''entrée'!$C$333),0))","v":0},{"$f":"IF(O1929<'1 Données d''entrée'!$C$334+1+$B1988,0,IF(O1929<'1 Données d''entrée'!$C$333+'1 Données d''entrée'!$C$334+1+$B1988,($I1979/'1 Données d''entrée'!$C$333),0))","v":0},{"$f":"IF(P1929<'1 Données d''entrée'!$C$334+1+$B1988,0,IF(P1929<'1 Données d''entrée'!$C$333+'1 Données d''entrée'!$C$334+1+$B1988,($I1979/'1 Données d''entrée'!$C$333),0))","v":0},{"$f":"IF(Q1929<'1 Données d''entrée'!$C$334+1+$B1988,0,IF(Q1929<'1 Données d''entrée'!$C$333+'1 Données d''entrée'!$C$334+1+$B1988,($I1979/'1 Données d''entrée'!$C$333),0))","v":0},{"$f":"IF(R1929<'1 Données d''entrée'!$C$334+1+$B1988,0,IF(R1929<'1 Données d''entrée'!$C$333+'1 Données d''entrée'!$C$334+1+$B1988,($I1979/'1 Données d''entrée'!$C$333),0))","v":0},{"$f":"IF(S1929<'1 Données d''entrée'!$C$334+1+$B1988,0,IF(S1929<'1 Données d''entrée'!$C$333+'1 Données d''entrée'!$C$334+1+$B1988,($I1979/'1 Données d''entrée'!$C$333),0))","v":0},{"$f":"IF(T1929<'1 Données d''entrée'!$C$334+1+$B1988,0,IF(T1929<'1 Données d''entrée'!$C$333+'1 Données d''entrée'!$C$334+1+$B1988,($I1979/'1 Données d''entrée'!$C$333),0))","v":0},{"$f":"IF(U1929<'1 Données d''entrée'!$C$334+1+$B1988,0,IF(U1929<'1 Données d''entrée'!$C$333+'1 Données d''entrée'!$C$334+1+$B1988,($I1979/'1 Données d''entrée'!$C$333),0))","v":0},{"$f":"IF(V1929<'1 Données d''entrée'!$C$334+1+$B1988,0,IF(V1929<'1 Données d''entrée'!$C$333+'1 Données d''entrée'!$C$334+1+$B1988,($I1979/'1 Données d''entrée'!$C$333),0))","v":0}]
[null,8,{"$f":"IF(C1929<'1 Données d''entrée'!$C$334+1+$B1989,0,IF(C1929<'1 Données d''entrée'!$C$333+'1 Données d''entrée'!$C$334+1+$B1989,($J1979/'1 Données d''entrée'!$C$333),0))","v":0},{"$f":"IF(D1929<'1 Données d''entrée'!$C$334+1+$B1989,0,IF(D1929<'1 Données d''entrée'!$C$333+'1 Données d''entrée'!$C$334+1+$B1989,($J1979/'1 Données d''entrée'!$C$333),0))","v":0},{"$f":"IF(E1929<'1 Données d''entrée'!$C$334+1+$B1989,0,IF(E1929<'1 Données d''entrée'!$C$333+'1 Données d''entrée'!$C$334+1+$B1989,($J1979/'1 Données d''entrée'!$C$333),0))","v":0},{"$f":"IF(F1929<'1 Données d''entrée'!$C$334+1+$B1989,0,IF(F1929<'1 Données d''entrée'!$C$333+'1 Données d''entrée'!$C$334+1+$B1989,($J1979/'1 Données d''entrée'!$C$333),0))","v":0},{"$f":"IF(G1929<'1 Données d''entrée'!$C$334+1+$B1989,0,IF(G1929<'1 Données d''entrée'!$C$333+'1 Données d''entrée'!$C$334+1+$B1989,($J1979/'1 Données d''entrée'!$C$333),0))","v":0},{"$f":"IF(H1929<'1 Données d''entrée'!$C$334+1+$B1989,0,IF(H1929<'1 Données d''entrée'!$C$333+'1 Données d''entrée'!$C$334+1+$B1989,($J1979/'1 Données d''entrée'!$C$333),0))","v":0},{"$f":"IF(I1929<'1 Données d''entrée'!$C$334+1+$B1989,0,IF(I1929<'1 Données d''entrée'!$C$333+'1 Données d''entrée'!$C$334+1+$B1989,($J1979/'1 Données d''entrée'!$C$333),0))","v":0},{"$f":"IF(J1929<'1 Données d''entrée'!$C$334+1+$B1989,0,IF(J1929<'1 Données d''entrée'!$C$333+'1 Données d''entrée'!$C$334+1+$B1989,($J1979/'1 Données d''entrée'!$C$333),0))","v":0},{"$f":"IF(K1929<'1 Données d''entrée'!$C$334+1+$B1989,0,IF(K1929<'1 Données d''entrée'!$C$333+'1 Données d''entrée'!$C$334+1+$B1989,($J1979/'1 Données d''entrée'!$C$333),0))","v":0},{"$f":"IF(L1929<'1 Données d''entrée'!$C$334+1+$B1989,0,IF(L1929<'1 Données d''entrée'!$C$333+'1 Données d''entrée'!$C$334+1+$B1989,($J1979/'1 Données d''entrée'!$C$333),0))","v":0},{"$f":"IF(M1929<'1 Données d''entrée'!$C$334+1+$B1989,0,IF(M1929<'1 Données d''entrée'!$C$333+'1 Données d''entrée'!$C$334+1+$B1989,($J1979/'1 Données d''entrée'!$C$333),0))","v":0},{"$f":"IF(N1929<'1 Données d''entrée'!$C$334+1+$B1989,0,IF(N1929<'1 Données d''entrée'!$C$333+'1 Données d''entrée'!$C$334+1+$B1989,($J1979/'1 Données d''entrée'!$C$333),0))","v":0},{"$f":"IF(O1929<'1 Données d''entrée'!$C$334+1+$B1989,0,IF(O1929<'1 Données d''entrée'!$C$333+'1 Données d''entrée'!$C$334+1+$B1989,($J1979/'1 Données d''entrée'!$C$333),0))","v":0},{"$f":"IF(P1929<'1 Données d''entrée'!$C$334+1+$B1989,0,IF(P1929<'1 Données d''entrée'!$C$333+'1 Données d''entrée'!$C$334+1+$B1989,($J1979/'1 Données d''entrée'!$C$333),0))","v":0},{"$f":"IF(Q1929<'1 Données d''entrée'!$C$334+1+$B1989,0,IF(Q1929<'1 Données d''entrée'!$C$333+'1 Données d''entrée'!$C$334+1+$B1989,($J1979/'1 Données d''entrée'!$C$333),0))","v":0},{"$f":"IF(R1929<'1 Données d''entrée'!$C$334+1+$B1989,0,IF(R1929<'1 Données d''entrée'!$C$333+'1 Données d''entrée'!$C$334+1+$B1989,($J1979/'1 Données d''entrée'!$C$333),0))","v":0},{"$f":"IF(S1929<'1 Données d''entrée'!$C$334+1+$B1989,0,IF(S1929<'1 Données d''entrée'!$C$333+'1 Données d''entrée'!$C$334+1+$B1989,($J1979/'1 Données d''entrée'!$C$333),0))","v":0},{"$f":"IF(T1929<'1 Données d''entrée'!$C$334+1+$B1989,0,IF(T1929<'1 Données d''entrée'!$C$333+'1 Données d''entrée'!$C$334+1+$B1989,($J1979/'1 Données d''entrée'!$C$333),0))","v":0},{"$f":"IF(U1929<'1 Données d''entrée'!$C$334+1+$B1989,0,IF(U1929<'1 Données d''entrée'!$C$333+'1 Données d''entrée'!$C$334+1+$B1989,($J1979/'1 Données d''entrée'!$C$333),0))","v":0},{"$f":"IF(V1929<'1 Données d''entrée'!$C$334+1+$B1989,0,IF(V1929<'1 Données d''entrée'!$C$333+'1 Données d''entrée'!$C$334+1+$B1989,($J1979/'1 Données d''entrée'!$C$333),0))","v":0}]
[null,9,{"$f":"IF(C1929<'1 Données d''entrée'!$C$334+1+$B1990,0,IF(C1929<'1 Données d''entrée'!$C$333+'1 Données d''entrée'!$C$334+1+$B1990,($K1979/'1 Données d''entrée'!$C$333),0))","v":0},{"$f":"IF(D1929<'1 Données d''entrée'!$C$334+1+$B1990,0,IF(D1929<'1 Données d''entrée'!$C$333+'1 Données d''entrée'!$C$334+1+$B1990,($K1979/'1 Données d''entrée'!$C$333),0))","v":0},{"$f":"IF(E1929<'1 Données d''entrée'!$C$334+1+$B1990,0,IF(E1929<'1 Données d''entrée'!$C$333+'1 Données d''entrée'!$C$334+1+$B1990,($K1979/'1 Données d''entrée'!$C$333),0))","v":0},{"$f":"IF(F1929<'1 Données d''entrée'!$C$334+1+$B1990,0,IF(F1929<'1 Données d''entrée'!$C$333+'1 Données d''entrée'!$C$334+1+$B1990,($K1979/'1 Données d''entrée'!$C$333),0))","v":0},{"$f":"IF(G1929<'1 Données d''entrée'!$C$334+1+$B1990,0,IF(G1929<'1 Données d''entrée'!$C$333+'1 Données d''entrée'!$C$334+1+$B1990,($K1979/'1 Données d''entrée'!$C$333),0))","v":0},{"$f":"IF(H1929<'1 Données d''entrée'!$C$334+1+$B1990,0,IF(H1929<'1 Données d''entrée'!$C$333+'1 Données d''entrée'!$C$334+1+$B1990,($K1979/'1 Données d''entrée'!$C$333),0))","v":0},{"$f":"IF(I1929<'1 Données d''entrée'!$C$334+1+$B1990,0,IF(I1929<'1 Données d''entrée'!$C$333+'1 Données d''entrée'!$C$334+1+$B1990,($K1979/'1 Données d''entrée'!$C$333),0))","v":0},{"$f":"IF(J1929<'1 Données d''entrée'!$C$334+1+$B1990,0,IF(J1929<'1 Données d''entrée'!$C$333+'1 Données d''entrée'!$C$334+1+$B1990,($K1979/'1 Données d''entrée'!$C$333),0))","v":0},{"$f":"IF(K1929<'1 Données d''entrée'!$C$334+1+$B1990,0,IF(K1929<'1 Données d''entrée'!$C$333+'1 Données d''entrée'!$C$334+1+$B1990,($K1979/'1 Données d''entrée'!$C$333),0))","v":0},{"$f":"IF(L1929<'1 Données d''entrée'!$C$334+1+$B1990,0,IF(L1929<'1 Données d''entrée'!$C$333+'1 Données d''entrée'!$C$334+1+$B1990,($K1979/'1 Données d''entrée'!$C$333),0))","v":0},{"$f":"IF(M1929<'1 Données d''entrée'!$C$334+1+$B1990,0,IF(M1929<'1 Données d''entrée'!$C$333+'1 Données d''entrée'!$C$334+1+$B1990,($K1979/'1 Données d''entrée'!$C$333),0))","v":0},{"$f":"IF(N1929<'1 Données d''entrée'!$C$334+1+$B1990,0,IF(N1929<'1 Données d''entrée'!$C$333+'1 Données d''entrée'!$C$334+1+$B1990,($K1979/'1 Données d''entrée'!$C$333),0))","v":0},{"$f":"IF(O1929<'1 Données d''entrée'!$C$334+1+$B1990,0,IF(O1929<'1 Données d''entrée'!$C$333+'1 Données d''entrée'!$C$334+1+$B1990,($K1979/'1 Données d''entrée'!$C$333),0))","v":0},{"$f":"IF(P1929<'1 Données d''entrée'!$C$334+1+$B1990,0,IF(P1929<'1 Données d''entrée'!$C$333+'1 Données d''entrée'!$C$334+1+$B1990,($K1979/'1 Données d''entrée'!$C$333),0))","v":0},{"$f":"IF(Q1929<'1 Données d''entrée'!$C$334+1+$B1990,0,IF(Q1929<'1 Données d''entrée'!$C$333+'1 Données d''entrée'!$C$334+1+$B1990,($K1979/'1 Données d''entrée'!$C$333),0))","v":0},{"$f":"IF(R1929<'1 Données d''entrée'!$C$334+1+$B1990,0,IF(R1929<'1 Données d''entrée'!$C$333+'1 Données d''entrée'!$C$334+1+$B1990,($K1979/'1 Données d''entrée'!$C$333),0))","v":0},{"$f":"IF(S1929<'1 Données d''entrée'!$C$334+1+$B1990,0,IF(S1929<'1 Données d''entrée'!$C$333+'1 Données d''entrée'!$C$334+1+$B1990,($K1979/'1 Données d''entrée'!$C$333),0))","v":0},{"$f":"IF(T1929<'1 Données d''entrée'!$C$334+1+$B1990,0,IF(T1929<'1 Données d''entrée'!$C$333+'1 Données d''entrée'!$C$334+1+$B1990,($K1979/'1 Données d''entrée'!$C$333),0))","v":0},{"$f":"IF(U1929<'1 Données d''entrée'!$C$334+1+$B1990,0,IF(U1929<'1 Données d''entrée'!$C$333+'1 Données d''entrée'!$C$334+1+$B1990,($K1979/'1 Données d''entrée'!$C$333),0))","v":0},{"$f":"IF(V1929<'1 Données d''entrée'!$C$334+1+$B1990,0,IF(V1929<'1 Données d''entrée'!$C$333+'1 Données d''entrée'!$C$334+1+$B1990,($K1979/'1 Données d''entrée'!$C$333),0))","v":0}]
[null,10,{"$f":"IF(C1929<'1 Données d''entrée'!$C$334+1+$B1991,0,IF(C1929<'1 Données d''entrée'!$C$333+'1 Données d''entrée'!$C$334+1+$B1991,($L1979/'1 Données d''entrée'!$C$333),0))","v":0},{"$f":"IF(D1929<'1 Données d''entrée'!$C$334+1+$B1991,0,IF(D1929<'1 Données d''entrée'!$C$333+'1 Données d''entrée'!$C$334+1+$B1991,($L1979/'1 Données d''entrée'!$C$333),0))","v":0},{"$f":"IF(E1929<'1 Données d''entrée'!$C$334+1+$B1991,0,IF(E1929<'1 Données d''entrée'!$C$333+'1 Données d''entrée'!$C$334+1+$B1991,($L1979/'1 Données d''entrée'!$C$333),0))","v":0},{"$f":"IF(F1929<'1 Données d''entrée'!$C$334+1+$B1991,0,IF(F1929<'1 Données d''entrée'!$C$333+'1 Données d''entrée'!$C$334+1+$B1991,($L1979/'1 Données d''entrée'!$C$333),0))","v":0},{"$f":"IF(G1929<'1 Données d''entrée'!$C$334+1+$B1991,0,IF(G1929<'1 Données d''entrée'!$C$333+'1 Données d''entrée'!$C$334+1+$B1991,($L1979/'1 Données d''entrée'!$C$333),0))","v":0},{"$f":"IF(H1929<'1 Données d''entrée'!$C$334+1+$B1991,0,IF(H1929<'1 Données d''entrée'!$C$333+'1 Données d''entrée'!$C$334+1+$B1991,($L1979/'1 Données d''entrée'!$C$333),0))","v":0},{"$f":"IF(I1929<'1 Données d''entrée'!$C$334+1+$B1991,0,IF(I1929<'1 Données d''entrée'!$C$333+'1 Données d''entrée'!$C$334+1+$B1991,($L1979/'1 Données d''entrée'!$C$333),0))","v":0},{"$f":"IF(J1929<'1 Données d''entrée'!$C$334+1+$B1991,0,IF(J1929<'1 Données d''entrée'!$C$333+'1 Données d''entrée'!$C$334+1+$B1991,($L1979/'1 Données d''entrée'!$C$333),0))","v":0},{"$f":"IF(K1929<'1 Données d''entrée'!$C$334+1+$B1991,0,IF(K1929<'1 Données d''entrée'!$C$333+'1 Données d''entrée'!$C$334+1+$B1991,($L1979/'1 Données d''entrée'!$C$333),0))","v":0},{"$f":"IF(L1929<'1 Données d''entrée'!$C$334+1+$B1991,0,IF(L1929<'1 Données d''entrée'!$C$333+'1 Données d''entrée'!$C$334+1+$B1991,($L1979/'1 Données d''entrée'!$C$333),0))","v":0},{"$f":"IF(M1929<'1 Données d''entrée'!$C$334+1+$B1991,0,IF(M1929<'1 Données d''entrée'!$C$333+'1 Données d''entrée'!$C$334+1+$B1991,($L1979/'1 Données d''entrée'!$C$333),0))","v":0},{"$f":"IF(N1929<'1 Données d''entrée'!$C$334+1+$B1991,0,IF(N1929<'1 Données d''entrée'!$C$333+'1 Données d''entrée'!$C$334+1+$B1991,($L1979/'1 Données d''entrée'!$C$333),0))","v":0},{"$f":"IF(O1929<'1 Données d''entrée'!$C$334+1+$B1991,0,IF(O1929<'1 Données d''entrée'!$C$333+'1 Données d''entrée'!$C$334+1+$B1991,($L1979/'1 Données d''entrée'!$C$333),0))","v":0},{"$f":"IF(P1929<'1 Données d''entrée'!$C$334+1+$B1991,0,IF(P1929<'1 Données d''entrée'!$C$333+'1 Données d''entrée'!$C$334+1+$B1991,($L1979/'1 Données d''entrée'!$C$333),0))","v":0},{"$f":"IF(Q1929<'1 Données d''entrée'!$C$334+1+$B1991,0,IF(Q1929<'1 Données d''entrée'!$C$333+'1 Données d''entrée'!$C$334+1+$B1991,($L1979/'1 Données d''entrée'!$C$333),0))","v":0},{"$f":"IF(R1929<'1 Données d''entrée'!$C$334+1+$B1991,0,IF(R1929<'1 Données d''entrée'!$C$333+'1 Données d''entrée'!$C$334+1+$B1991,($L1979/'1 Données d''entrée'!$C$333),0))","v":0},{"$f":"IF(S1929<'1 Données d''entrée'!$C$334+1+$B1991,0,IF(S1929<'1 Données d''entrée'!$C$333+'1 Données d''entrée'!$C$334+1+$B1991,($L1979/'1 Données d''entrée'!$C$333),0))","v":0},{"$f":"IF(T1929<'1 Données d''entrée'!$C$334+1+$B1991,0,IF(T1929<'1 Données d''entrée'!$C$333+'1 Données d''entrée'!$C$334+1+$B1991,($L1979/'1 Données d''entrée'!$C$333),0))","v":0},{"$f":"IF(U1929<'1 Données d''entrée'!$C$334+1+$B1991,0,IF(U1929<'1 Données d''entrée'!$C$333+'1 Données d''entrée'!$C$334+1+$B1991,($L1979/'1 Données d''entrée'!$C$333),0))","v":0},{"$f":"IF(V1929<'1 Données d''entrée'!$C$334+1+$B1991,0,IF(V1929<'1 Données d''entrée'!$C$333+'1 Données d''entrée'!$C$334+1+$B1991,($L1979/'1 Données d''entrée'!$C$333),0))","v":0}]
[null,"Période de prêt nouveau"]
["Paiement d'intérêts",0,0,0,0,0,0,0,0,0,0,0,0,0,0,0,0,0,0,0,0,0]
["Paiement d'intêrets",1,0,{"$f":"IF(C1929<1+$B1981,0,IF(C1929<'1 Données d''entrée'!$C$334+'1 Données d''entrée'!$C$333+1+$B1981,'1 Données d''entrée'!$C$332*($C1979-SUM($C1982:C1982)),0))","v":0},{"$f":"IF(D1929<1+$B1981,0,IF(D1929<'1 Données d''entrée'!$C$334+'1 Données d''entrée'!$C$333+1+$B1981,'1 Données d''entrée'!$C$332*($C1979-SUM($C1982:D1982)),0))","v":0},{"$f":"IF(E1929<1+$B1981,0,IF(E1929<'1 Données d''entrée'!$C$334+'1 Données d''entrée'!$C$333+1+$B1981,'1 Données d''entrée'!$C$332*($C1979-SUM($C1982:E1982)),0))","v":0},{"$f":"IF(F1929<1+$B1981,0,IF(F1929<'1 Données d''entrée'!$C$334+'1 Données d''entrée'!$C$333+1+$B1981,'1 Données d''entrée'!$C$332*($C1979-SUM($C1982:F1982)),0))","v":0},{"$f":"IF(G1929<1+$B1981,0,IF(G1929<'1 Données d''entrée'!$C$334+'1 Données d''entrée'!$C$333+1+$B1981,'1 Données d''entrée'!$C$332*($C1979-SUM($C1982:G1982)),0))","v":0},{"$f":"IF(H1929<1+$B1981,0,IF(H1929<'1 Données d''entrée'!$C$334+'1 Données d''entrée'!$C$333+1+$B1981,'1 Données d''entrée'!$C$332*($C1979-SUM($C1982:H1982)),0))","v":0},{"$f":"IF(I1929<1+$B1981,0,IF(I1929<'1 Données d''entrée'!$C$334+'1 Données d''entrée'!$C$333+1+$B1981,'1 Données d''entrée'!$C$332*($C1979-SUM($C1982:I1982)),0))","v":0},{"$f":"IF(J1929<1+$B1981,0,IF(J1929<'1 Données d''entrée'!$C$334+'1 Données d''entrée'!$C$333+1+$B1981,'1 Données d''entrée'!$C$332*($C1979-SUM($C1982:J1982)),0))","v":0},{"$f":"IF(K1929<1+$B1981,0,IF(K1929<'1 Données d''entrée'!$C$334+'1 Données d''entrée'!$C$333+1+$B1981,'1 Données d''entrée'!$C$332*($C1979-SUM($C1982:K1982)),0))","v":0},{"$f":"IF(L1929<1+$B1981,0,IF(L1929<'1 Données d''entrée'!$C$334+'1 Données d''entrée'!$C$333+1+$B1981,'1 Données d''entrée'!$C$332*($C1979-SUM($C1982:L1982)),0))","v":0},{"$f":"IF(M1929<1+$B1981,0,IF(M1929<'1 Données d''entrée'!$C$334+'1 Données d''entrée'!$C$333+1+$B1981,'1 Données d''entrée'!$C$332*($C1979-SUM($C1982:M1982)),0))","v":0},{"$f":"IF(N1929<1+$B1981,0,IF(N1929<'1 Données d''entrée'!$C$334+'1 Données d''entrée'!$C$333+1+$B1981,'1 Données d''entrée'!$C$332*($C1979-SUM($C1982:N1982)),0))","v":0},{"$f":"IF(O1929<1+$B1981,0,IF(O1929<'1 Données d''entrée'!$C$334+'1 Données d''entrée'!$C$333+1+$B1981,'1 Données d''entrée'!$C$332*($C1979-SUM($C1982:O1982)),0))","v":0},{"$f":"IF(P1929<1+$B1981,0,IF(P1929<'1 Données d''entrée'!$C$334+'1 Données d''entrée'!$C$333+1+$B1981,'1 Données d''entrée'!$C$332*($C1979-SUM($C1982:P1982)),0))","v":0},{"$f":"IF(Q1929<1+$B1981,0,IF(Q1929<'1 Données d''entrée'!$C$334+'1 Données d''entrée'!$C$333+1+$B1981,'1 Données d''entrée'!$C$332*($C1979-SUM($C1982:Q1982)),0))","v":0},{"$f":"IF(R1929<1+$B1981,0,IF(R1929<'1 Données d''entrée'!$C$334+'1 Données d''entrée'!$C$333+1+$B1981,'1 Données d''entrée'!$C$332*($C1979-SUM($C1982:R1982)),0))","v":0},{"$f":"IF(S1929<1+$B1981,0,IF(S1929<'1 Données d''entrée'!$C$334+'1 Données d''entrée'!$C$333+1+$B1981,'1 Données d''entrée'!$C$332*($C1979-SUM($C1982:S1982)),0))","v":0},{"$f":"IF(T1929<1+$B1981,0,IF(T1929<'1 Données d''entrée'!$C$334+'1 Données d''entrée'!$C$333+1+$B1981,'1 Données d''entrée'!$C$332*($C1979-SUM($C1982:T1982)),0))","v":0},{"$f":"IF(U1929<1+$B1981,0,IF(U1929<'1 Données d''entrée'!$C$334+'1 Données d''entrée'!$C$333+1+$B1981,'1 Données d''entrée'!$C$332*($C1979-SUM($C1982:U1982)),0))","v":0}]
["Paiement d'intêrets",2,0,{"$f":"IF(C1929<1+$B1982,0,IF(C1929<'1 Données d''entrée'!$C$334+'1 Données d''entrée'!$C$333+1+$B1982,'1 Données d''entrée'!$C$332*($D1979-SUM($C1983:C1983)),0))","v":0},{"$f":"IF(D1929<1+$B1982,0,IF(D1929<'1 Données d''entrée'!$C$334+'1 Données d''entrée'!$C$333+1+$B1982,'1 Données d''entrée'!$C$332*($D1979-SUM($C1983:D1983)),0))","v":0},{"$f":"IF(E1929<1+$B1982,0,IF(E1929<'1 Données d''entrée'!$C$334+'1 Données d''entrée'!$C$333+1+$B1982,'1 Données d''entrée'!$C$332*($D1979-SUM($C1983:E1983)),0))","v":0},{"$f":"IF(F1929<1+$B1982,0,IF(F1929<'1 Données d''entrée'!$C$334+'1 Données d''entrée'!$C$333+1+$B1982,'1 Données d''entrée'!$C$332*($D1979-SUM($C1983:F1983)),0))","v":0},{"$f":"IF(G1929<1+$B1982,0,IF(G1929<'1 Données d''entrée'!$C$334+'1 Données d''entrée'!$C$333+1+$B1982,'1 Données d''entrée'!$C$332*($D1979-SUM($C1983:G1983)),0))","v":0},{"$f":"IF(H1929<1+$B1982,0,IF(H1929<'1 Données d''entrée'!$C$334+'1 Données d''entrée'!$C$333+1+$B1982,'1 Données d''entrée'!$C$332*($D1979-SUM($C1983:H1983)),0))","v":0},{"$f":"IF(I1929<1+$B1982,0,IF(I1929<'1 Données d''entrée'!$C$334+'1 Données d''entrée'!$C$333+1+$B1982,'1 Données d''entrée'!$C$332*($D1979-SUM($C1983:I1983)),0))","v":0},{"$f":"IF(J1929<1+$B1982,0,IF(J1929<'1 Données d''entrée'!$C$334+'1 Données d''entrée'!$C$333+1+$B1982,'1 Données d''entrée'!$C$332*($D1979-SUM($C1983:J1983)),0))","v":0},{"$f":"IF(K1929<1+$B1982,0,IF(K1929<'1 Données d''entrée'!$C$334+'1 Données d''entrée'!$C$333+1+$B1982,'1 Données d''entrée'!$C$332*($D1979-SUM($C1983:K1983)),0))","v":0},{"$f":"IF(L1929<1+$B1982,0,IF(L1929<'1 Données d''entrée'!$C$334+'1 Données d''entrée'!$C$333+1+$B1982,'1 Données d''entrée'!$C$332*($D1979-SUM($C1983:L1983)),0))","v":0},{"$f":"IF(M1929<1+$B1982,0,IF(M1929<'1 Données d''entrée'!$C$334+'1 Données d''entrée'!$C$333+1+$B1982,'1 Données d''entrée'!$C$332*($D1979-SUM($C1983:M1983)),0))","v":0},{"$f":"IF(N1929<1+$B1982,0,IF(N1929<'1 Données d''entrée'!$C$334+'1 Données d''entrée'!$C$333+1+$B1982,'1 Données d''entrée'!$C$332*($D1979-SUM($C1983:N1983)),0))","v":0},{"$f":"IF(O1929<1+$B1982,0,IF(O1929<'1 Données d''entrée'!$C$334+'1 Données d''entrée'!$C$333+1+$B1982,'1 Données d''entrée'!$C$332*($D1979-SUM($C1983:O1983)),0))","v":0},{"$f":"IF(P1929<1+$B1982,0,IF(P1929<'1 Données d''entrée'!$C$334+'1 Données d''entrée'!$C$333+1+$B1982,'1 Données d''entrée'!$C$332*($D1979-SUM($C1983:P1983)),0))","v":0},{"$f":"IF(Q1929<1+$B1982,0,IF(Q1929<'1 Données d''entrée'!$C$334+'1 Données d''entrée'!$C$333+1+$B1982,'1 Données d''entrée'!$C$332*($D1979-SUM($C1983:Q1983)),0))","v":0},{"$f":"IF(R1929<1+$B1982,0,IF(R1929<'1 Données d''entrée'!$C$334+'1 Données d''entrée'!$C$333+1+$B1982,'1 Données d''entrée'!$C$332*($D1979-SUM($C1983:R1983)),0))","v":0},{"$f":"IF(S1929<1+$B1982,0,IF(S1929<'1 Données d''entrée'!$C$334+'1 Données d''entrée'!$C$333+1+$B1982,'1 Données d''entrée'!$C$332*($D1979-SUM($C1983:S1983)),0))","v":0},{"$f":"IF(T1929<1+$B1982,0,IF(T1929<'1 Données d''entrée'!$C$334+'1 Données d''entrée'!$C$333+1+$B1982,'1 Données d''entrée'!$C$332*($D1979-SUM($C1983:T1983)),0))","v":0},{"$f":"IF(U1929<1+$B1982,0,IF(U1929<'1 Données d''entrée'!$C$334+'1 Données d''entrée'!$C$333+1+$B1982,'1 Données d''entrée'!$C$332*($D1979-SUM($C1983:U1983)),0))","v":0}]
["Paiement d'intêrets",3,0,{"$f":"IF(C1929<1+$B1983,0,IF(C1929<'1 Données d''entrée'!$C$334+'1 Données d''entrée'!$C$333+1+$B1983,'1 Données d''entrée'!$C$332*($E1979-SUM($C1984:C1984)),0))","v":0},{"$f":"IF(D1929<1+$B1983,0,IF(D1929<'1 Données d''entrée'!$C$334+'1 Données d''entrée'!$C$333+1+$B1983,'1 Données d''entrée'!$C$332*($E1979-SUM($C1984:D1984)),0))","v":0},{"$f":"IF(E1929<1+$B1983,0,IF(E1929<'1 Données d''entrée'!$C$334+'1 Données d''entrée'!$C$333+1+$B1983,'1 Données d''entrée'!$C$332*($E1979-SUM($C1984:E1984)),0))","v":0},{"$f":"IF(F1929<1+$B1983,0,IF(F1929<'1 Données d''entrée'!$C$334+'1 Données d''entrée'!$C$333+1+$B1983,'1 Données d''entrée'!$C$332*($E1979-SUM($C1984:F1984)),0))","v":0},{"$f":"IF(G1929<1+$B1983,0,IF(G1929<'1 Données d''entrée'!$C$334+'1 Données d''entrée'!$C$333+1+$B1983,'1 Données d''entrée'!$C$332*($E1979-SUM($C1984:G1984)),0))","v":0},{"$f":"IF(H1929<1+$B1983,0,IF(H1929<'1 Données d''entrée'!$C$334+'1 Données d''entrée'!$C$333+1+$B1983,'1 Données d''entrée'!$C$332*($E1979-SUM($C1984:H1984)),0))","v":0},{"$f":"IF(I1929<1+$B1983,0,IF(I1929<'1 Données d''entrée'!$C$334+'1 Données d''entrée'!$C$333+1+$B1983,'1 Données d''entrée'!$C$332*($E1979-SUM($C1984:I1984)),0))","v":0},{"$f":"IF(J1929<1+$B1983,0,IF(J1929<'1 Données d''entrée'!$C$334+'1 Données d''entrée'!$C$333+1+$B1983,'1 Données d''entrée'!$C$332*($E1979-SUM($C1984:J1984)),0))","v":0},{"$f":"IF(K1929<1+$B1983,0,IF(K1929<'1 Données d''entrée'!$C$334+'1 Données d''entrée'!$C$333+1+$B1983,'1 Données d''entrée'!$C$332*($E1979-SUM($C1984:K1984)),0))","v":0},{"$f":"IF(L1929<1+$B1983,0,IF(L1929<'1 Données d''entrée'!$C$334+'1 Données d''entrée'!$C$333+1+$B1983,'1 Données d''entrée'!$C$332*($E1979-SUM($C1984:L1984)),0))","v":0},{"$f":"IF(M1929<1+$B1983,0,IF(M1929<'1 Données d''entrée'!$C$334+'1 Données d''entrée'!$C$333+1+$B1983,'1 Données d''entrée'!$C$332*($E1979-SUM($C1984:M1984)),0))","v":0},{"$f":"IF(N1929<1+$B1983,0,IF(N1929<'1 Données d''entrée'!$C$334+'1 Données d''entrée'!$C$333+1+$B1983,'1 Données d''entrée'!$C$332*($E1979-SUM($C1984:N1984)),0))","v":0},{"$f":"IF(O1929<1+$B1983,0,IF(O1929<'1 Données d''entrée'!$C$334+'1 Données d''entrée'!$C$333+1+$B1983,'1 Données d''entrée'!$C$332*($E1979-SUM($C1984:O1984)),0))","v":0},{"$f":"IF(P1929<1+$B1983,0,IF(P1929<'1 Données d''entrée'!$C$334+'1 Données d''entrée'!$C$333+1+$B1983,'1 Données d''entrée'!$C$332*($E1979-SUM($C1984:P1984)),0))","v":0},{"$f":"IF(Q1929<1+$B1983,0,IF(Q1929<'1 Données d''entrée'!$C$334+'1 Données d''entrée'!$C$333+1+$B1983,'1 Données d''entrée'!$C$332*($E1979-SUM($C1984:Q1984)),0))","v":0},{"$f":"IF(R1929<1+$B1983,0,IF(R1929<'1 Données d''entrée'!$C$334+'1 Données d''entrée'!$C$333+1+$B1983,'1 Données d''entrée'!$C$332*($E1979-SUM($C1984:R1984)),0))","v":0},{"$f":"IF(S1929<1+$B1983,0,IF(S1929<'1 Données d''entrée'!$C$334+'1 Données d''entrée'!$C$333+1+$B1983,'1 Données d''entrée'!$C$332*($E1979-SUM($C1984:S1984)),0))","v":0},{"$f":"IF(T1929<1+$B1983,0,IF(T1929<'1 Données d''entrée'!$C$334+'1 Données d''entrée'!$C$333+1+$B1983,'1 Données d''entrée'!$C$332*($E1979-SUM($C1984:T1984)),0))","v":0},{"$f":"IF(U1929<1+$B1983,0,IF(U1929<'1 Données d''entrée'!$C$334+'1 Données d''entrée'!$C$333+1+$B1983,'1 Données d''entrée'!$C$332*($E1979-SUM($C1984:U1984)),0))","v":0}]
["Paiement d'intêrets",4,0,{"$f":"IF(C1929<1+$B1984,0,IF(C1929<'1 Données d''entrée'!$C$334+'1 Données d''entrée'!$C$333+1+$B1984,'1 Données d''entrée'!$C$332*($F1979-SUM($C1985:C1985)),0))","v":0},{"$f":"IF(D1929<1+$B1984,0,IF(D1929<'1 Données d''entrée'!$C$334+'1 Données d''entrée'!$C$333+1+$B1984,'1 Données d''entrée'!$C$332*($F1979-SUM($C1985:D1985)),0))","v":0},{"$f":"IF(E1929<1+$B1984,0,IF(E1929<'1 Données d''entrée'!$C$334+'1 Données d''entrée'!$C$333+1+$B1984,'1 Données d''entrée'!$C$332*($F1979-SUM($C1985:E1985)),0))","v":0},{"$f":"IF(F1929<1+$B1984,0,IF(F1929<'1 Données d''entrée'!$C$334+'1 Données d''entrée'!$C$333+1+$B1984,'1 Données d''entrée'!$C$332*($F1979-SUM($C1985:F1985)),0))","v":0},{"$f":"IF(G1929<1+$B1984,0,IF(G1929<'1 Données d''entrée'!$C$334+'1 Données d''entrée'!$C$333+1+$B1984,'1 Données d''entrée'!$C$332*($F1979-SUM($C1985:G1985)),0))","v":0},{"$f":"IF(H1929<1+$B1984,0,IF(H1929<'1 Données d''entrée'!$C$334+'1 Données d''entrée'!$C$333+1+$B1984,'1 Données d''entrée'!$C$332*($F1979-SUM($C1985:H1985)),0))","v":0},{"$f":"IF(I1929<1+$B1984,0,IF(I1929<'1 Données d''entrée'!$C$334+'1 Données d''entrée'!$C$333+1+$B1984,'1 Données d''entrée'!$C$332*($F1979-SUM($C1985:I1985)),0))","v":0},{"$f":"IF(J1929<1+$B1984,0,IF(J1929<'1 Données d''entrée'!$C$334+'1 Données d''entrée'!$C$333+1+$B1984,'1 Données d''entrée'!$C$332*($F1979-SUM($C1985:J1985)),0))","v":0},{"$f":"IF(K1929<1+$B1984,0,IF(K1929<'1 Données d''entrée'!$C$334+'1 Données d''entrée'!$C$333+1+$B1984,'1 Données d''entrée'!$C$332*($F1979-SUM($C1985:K1985)),0))","v":0},{"$f":"IF(L1929<1+$B1984,0,IF(L1929<'1 Données d''entrée'!$C$334+'1 Données d''entrée'!$C$333+1+$B1984,'1 Données d''entrée'!$C$332*($F1979-SUM($C1985:L1985)),0))","v":0},{"$f":"IF(M1929<1+$B1984,0,IF(M1929<'1 Données d''entrée'!$C$334+'1 Données d''entrée'!$C$333+1+$B1984,'1 Données d''entrée'!$C$332*($F1979-SUM($C1985:M1985)),0))","v":0},{"$f":"IF(N1929<1+$B1984,0,IF(N1929<'1 Données d''entrée'!$C$334+'1 Données d''entrée'!$C$333+1+$B1984,'1 Données d''entrée'!$C$332*($F1979-SUM($C1985:N1985)),0))","v":0},{"$f":"IF(O1929<1+$B1984,0,IF(O1929<'1 Données d''entrée'!$C$334+'1 Données d''entrée'!$C$333+1+$B1984,'1 Données d''entrée'!$C$332*($F1979-SUM($C1985:O1985)),0))","v":0},{"$f":"IF(P1929<1+$B1984,0,IF(P1929<'1 Données d''entrée'!$C$334+'1 Données d''entrée'!$C$333+1+$B1984,'1 Données d''entrée'!$C$332*($F1979-SUM($C1985:P1985)),0))","v":0},{"$f":"IF(Q1929<1+$B1984,0,IF(Q1929<'1 Données d''entrée'!$C$334+'1 Données d''entrée'!$C$333+1+$B1984,'1 Données d''entrée'!$C$332*($F1979-SUM($C1985:Q1985)),0))","v":0},{"$f":"IF(R1929<1+$B1984,0,IF(R1929<'1 Données d''entrée'!$C$334+'1 Données d''entrée'!$C$333+1+$B1984,'1 Données d''entrée'!$C$332*($F1979-SUM($C1985:R1985)),0))","v":0},{"$f":"IF(S1929<1+$B1984,0,IF(S1929<'1 Données d''entrée'!$C$334+'1 Données d''entrée'!$C$333+1+$B1984,'1 Données d''entrée'!$C$332*($F1979-SUM($C1985:S1985)),0))","v":0},{"$f":"IF(T1929<1+$B1984,0,IF(T1929<'1 Données d''entrée'!$C$334+'1 Données d''entrée'!$C$333+1+$B1984,'1 Données d''entrée'!$C$332*($F1979-SUM($C1985:T1985)),0))","v":0},{"$f":"IF(U1929<1+$B1984,0,IF(U1929<'1 Données d''entrée'!$C$334+'1 Données d''entrée'!$C$333+1+$B1984,'1 Données d''entrée'!$C$332*($F1979-SUM($C1985:U1985)),0))","v":0}]
["Paiement d'intêrets",5,0,{"$f":"IF(C1929<1+$B1985,0,IF(C1929<'1 Données d''entrée'!$C$334+'1 Données d''entrée'!$C$333+1+$B1985,'1 Données d''entrée'!$C$332*($G1979-SUM($C1986:C1986)),0))","v":0},{"$f":"IF(D1929<1+$B1985,0,IF(D1929<'1 Données d''entrée'!$C$334+'1 Données d''entrée'!$C$333+1+$B1985,'1 Données d''entrée'!$C$332*($G1979-SUM($C1986:D1986)),0))","v":0},{"$f":"IF(E1929<1+$B1985,0,IF(E1929<'1 Données d''entrée'!$C$334+'1 Données d''entrée'!$C$333+1+$B1985,'1 Données d''entrée'!$C$332*($G1979-SUM($C1986:E1986)),0))","v":0},{"$f":"IF(F1929<1+$B1985,0,IF(F1929<'1 Données d''entrée'!$C$334+'1 Données d''entrée'!$C$333+1+$B1985,'1 Données d''entrée'!$C$332*($G1979-SUM($C1986:F1986)),0))","v":0},{"$f":"IF(G1929<1+$B1985,0,IF(G1929<'1 Données d''entrée'!$C$334+'1 Données d''entrée'!$C$333+1+$B1985,'1 Données d''entrée'!$C$332*($G1979-SUM($C1986:G1986)),0))","v":0},{"$f":"IF(H1929<1+$B1985,0,IF(H1929<'1 Données d''entrée'!$C$334+'1 Données d''entrée'!$C$333+1+$B1985,'1 Données d''entrée'!$C$332*($G1979-SUM($C1986:H1986)),0))","v":0},{"$f":"IF(I1929<1+$B1985,0,IF(I1929<'1 Données d''entrée'!$C$334+'1 Données d''entrée'!$C$333+1+$B1985,'1 Données d''entrée'!$C$332*($G1979-SUM($C1986:I1986)),0))","v":0},{"$f":"IF(J1929<1+$B1985,0,IF(J1929<'1 Données d''entrée'!$C$334+'1 Données d''entrée'!$C$333+1+$B1985,'1 Données d''entrée'!$C$332*($G1979-SUM($C1986:J1986)),0))","v":0},{"$f":"IF(K1929<1+$B1985,0,IF(K1929<'1 Données d''entrée'!$C$334+'1 Données d''entrée'!$C$333+1+$B1985,'1 Données d''entrée'!$C$332*($G1979-SUM($C1986:K1986)),0))","v":0},{"$f":"IF(L1929<1+$B1985,0,IF(L1929<'1 Données d''entrée'!$C$334+'1 Données d''entrée'!$C$333+1+$B1985,'1 Données d''entrée'!$C$332*($G1979-SUM($C1986:L1986)),0))","v":0},{"$f":"IF(M1929<1+$B1985,0,IF(M1929<'1 Données d''entrée'!$C$334+'1 Données d''entrée'!$C$333+1+$B1985,'1 Données d''entrée'!$C$332*($G1979-SUM($C1986:M1986)),0))","v":0},{"$f":"IF(N1929<1+$B1985,0,IF(N1929<'1 Données d''entrée'!$C$334+'1 Données d''entrée'!$C$333+1+$B1985,'1 Données d''entrée'!$C$332*($G1979-SUM($C1986:N1986)),0))","v":0},{"$f":"IF(O1929<1+$B1985,0,IF(O1929<'1 Données d''entrée'!$C$334+'1 Données d''entrée'!$C$333+1+$B1985,'1 Données d''entrée'!$C$332*($G1979-SUM($C1986:O1986)),0))","v":0},{"$f":"IF(P1929<1+$B1985,0,IF(P1929<'1 Données d''entrée'!$C$334+'1 Données d''entrée'!$C$333+1+$B1985,'1 Données d''entrée'!$C$332*($G1979-SUM($C1986:P1986)),0))","v":0},{"$f":"IF(Q1929<1+$B1985,0,IF(Q1929<'1 Données d''entrée'!$C$334+'1 Données d''entrée'!$C$333+1+$B1985,'1 Données d''entrée'!$C$332*($G1979-SUM($C1986:Q1986)),0))","v":0},{"$f":"IF(R1929<1+$B1985,0,IF(R1929<'1 Données d''entrée'!$C$334+'1 Données d''entrée'!$C$333+1+$B1985,'1 Données d''entrée'!$C$332*($G1979-SUM($C1986:R1986)),0))","v":0},{"$f":"IF(S1929<1+$B1985,0,IF(S1929<'1 Données d''entrée'!$C$334+'1 Données d''entrée'!$C$333+1+$B1985,'1 Données d''entrée'!$C$332*($G1979-SUM($C1986:S1986)),0))","v":0},{"$f":"IF(T1929<1+$B1985,0,IF(T1929<'1 Données d''entrée'!$C$334+'1 Données d''entrée'!$C$333+1+$B1985,'1 Données d''entrée'!$C$332*($G1979-SUM($C1986:T1986)),0))","v":0},{"$f":"IF(U1929<1+$B1985,0,IF(U1929<'1 Données d''entrée'!$C$334+'1 Données d''entrée'!$C$333+1+$B1985,'1 Données d''entrée'!$C$332*($G1979-SUM($C1986:U1986)),0))","v":0}]
["Paiement d'intêrets",6,0,{"$f":"IF(C1929<1+$B1986,0,IF(C1929<'1 Données d''entrée'!$C$334+'1 Données d''entrée'!$C$333+1+$B1986,'1 Données d''entrée'!$C$332*($H1979-SUM($C1987:C1987)),0))","v":0},{"$f":"IF(D1929<1+$B1986,0,IF(D1929<'1 Données d''entrée'!$C$334+'1 Données d''entrée'!$C$333+1+$B1986,'1 Données d''entrée'!$C$332*($H1979-SUM($C1987:D1987)),0))","v":0},{"$f":"IF(E1929<1+$B1986,0,IF(E1929<'1 Données d''entrée'!$C$334+'1 Données d''entrée'!$C$333+1+$B1986,'1 Données d''entrée'!$C$332*($H1979-SUM($C1987:E1987)),0))","v":0},{"$f":"IF(F1929<1+$B1986,0,IF(F1929<'1 Données d''entrée'!$C$334+'1 Données d''entrée'!$C$333+1+$B1986,'1 Données d''entrée'!$C$332*($H1979-SUM($C1987:F1987)),0))","v":0},{"$f":"IF(G1929<1+$B1986,0,IF(G1929<'1 Données d''entrée'!$C$334+'1 Données d''entrée'!$C$333+1+$B1986,'1 Données d''entrée'!$C$332*($H1979-SUM($C1987:G1987)),0))","v":0},{"$f":"IF(H1929<1+$B1986,0,IF(H1929<'1 Données d''entrée'!$C$334+'1 Données d''entrée'!$C$333+1+$B1986,'1 Données d''entrée'!$C$332*($H1979-SUM($C1987:H1987)),0))","v":0},{"$f":"IF(I1929<1+$B1986,0,IF(I1929<'1 Données d''entrée'!$C$334+'1 Données d''entrée'!$C$333+1+$B1986,'1 Données d''entrée'!$C$332*($H1979-SUM($C1987:I1987)),0))","v":0},{"$f":"IF(J1929<1+$B1986,0,IF(J1929<'1 Données d''entrée'!$C$334+'1 Données d''entrée'!$C$333+1+$B1986,'1 Données d''entrée'!$C$332*($H1979-SUM($C1987:J1987)),0))","v":0},{"$f":"IF(K1929<1+$B1986,0,IF(K1929<'1 Données d''entrée'!$C$334+'1 Données d''entrée'!$C$333+1+$B1986,'1 Données d''entrée'!$C$332*($H1979-SUM($C1987:K1987)),0))","v":0},{"$f":"IF(L1929<1+$B1986,0,IF(L1929<'1 Données d''entrée'!$C$334+'1 Données d''entrée'!$C$333+1+$B1986,'1 Données d''entrée'!$C$332*($H1979-SUM($C1987:L1987)),0))","v":0},{"$f":"IF(M1929<1+$B1986,0,IF(M1929<'1 Données d''entrée'!$C$334+'1 Données d''entrée'!$C$333+1+$B1986,'1 Données d''entrée'!$C$332*($H1979-SUM($C1987:M1987)),0))","v":0},{"$f":"IF(N1929<1+$B1986,0,IF(N1929<'1 Données d''entrée'!$C$334+'1 Données d''entrée'!$C$333+1+$B1986,'1 Données d''entrée'!$C$332*($H1979-SUM($C1987:N1987)),0))","v":0},{"$f":"IF(O1929<1+$B1986,0,IF(O1929<'1 Données d''entrée'!$C$334+'1 Données d''entrée'!$C$333+1+$B1986,'1 Données d''entrée'!$C$332*($H1979-SUM($C1987:O1987)),0))","v":0},{"$f":"IF(P1929<1+$B1986,0,IF(P1929<'1 Données d''entrée'!$C$334+'1 Données d''entrée'!$C$333+1+$B1986,'1 Données d''entrée'!$C$332*($H1979-SUM($C1987:P1987)),0))","v":0},{"$f":"IF(Q1929<1+$B1986,0,IF(Q1929<'1 Données d''entrée'!$C$334+'1 Données d''entrée'!$C$333+1+$B1986,'1 Données d''entrée'!$C$332*($H1979-SUM($C1987:Q1987)),0))","v":0},{"$f":"IF(R1929<1+$B1986,0,IF(R1929<'1 Données d''entrée'!$C$334+'1 Données d''entrée'!$C$333+1+$B1986,'1 Données d''entrée'!$C$332*($H1979-SUM($C1987:R1987)),0))","v":0},{"$f":"IF(S1929<1+$B1986,0,IF(S1929<'1 Données d''entrée'!$C$334+'1 Données d''entrée'!$C$333+1+$B1986,'1 Données d''entrée'!$C$332*($H1979-SUM($C1987:S1987)),0))","v":0},{"$f":"IF(T1929<1+$B1986,0,IF(T1929<'1 Données d''entrée'!$C$334+'1 Données d''entrée'!$C$333+1+$B1986,'1 Données d''entrée'!$C$332*($H1979-SUM($C1987:T1987)),0))","v":0},{"$f":"IF(U1929<1+$B1986,0,IF(U1929<'1 Données d''entrée'!$C$334+'1 Données d''entrée'!$C$333+1+$B1986,'1 Données d''entrée'!$C$332*($H1979-SUM($C1987:U1987)),0))","v":0}]
["Paiement d'intêrets",7,0,{"$f":"IF(C1929<1+$B1987,0,IF(C1929<'1 Données d''entrée'!$C$334+'1 Données d''entrée'!$C$333+1+$B1987,'1 Données d''entrée'!$C$332*($I1979-SUM($C1988:C1988)),0))","v":0},{"$f":"IF(D1929<1+$B1987,0,IF(D1929<'1 Données d''entrée'!$C$334+'1 Données d''entrée'!$C$333+1+$B1987,'1 Données d''entrée'!$C$332*($I1979-SUM($C1988:D1988)),0))","v":0},{"$f":"IF(E1929<1+$B1987,0,IF(E1929<'1 Données d''entrée'!$C$334+'1 Données d''entrée'!$C$333+1+$B1987,'1 Données d''entrée'!$C$332*($I1979-SUM($C1988:E1988)),0))","v":0},{"$f":"IF(F1929<1+$B1987,0,IF(F1929<'1 Données d''entrée'!$C$334+'1 Données d''entrée'!$C$333+1+$B1987,'1 Données d''entrée'!$C$332*($I1979-SUM($C1988:F1988)),0))","v":0},{"$f":"IF(G1929<1+$B1987,0,IF(G1929<'1 Données d''entrée'!$C$334+'1 Données d''entrée'!$C$333+1+$B1987,'1 Données d''entrée'!$C$332*($I1979-SUM($C1988:G1988)),0))","v":0},{"$f":"IF(H1929<1+$B1987,0,IF(H1929<'1 Données d''entrée'!$C$334+'1 Données d''entrée'!$C$333+1+$B1987,'1 Données d''entrée'!$C$332*($I1979-SUM($C1988:H1988)),0))","v":0},{"$f":"IF(I1929<1+$B1987,0,IF(I1929<'1 Données d''entrée'!$C$334+'1 Données d''entrée'!$C$333+1+$B1987,'1 Données d''entrée'!$C$332*($I1979-SUM($C1988:I1988)),0))","v":0},{"$f":"IF(J1929<1+$B1987,0,IF(J1929<'1 Données d''entrée'!$C$334+'1 Données d''entrée'!$C$333+1+$B1987,'1 Données d''entrée'!$C$332*($I1979-SUM($C1988:J1988)),0))","v":0},{"$f":"IF(K1929<1+$B1987,0,IF(K1929<'1 Données d''entrée'!$C$334+'1 Données d''entrée'!$C$333+1+$B1987,'1 Données d''entrée'!$C$332*($I1979-SUM($C1988:K1988)),0))","v":0},{"$f":"IF(L1929<1+$B1987,0,IF(L1929<'1 Données d''entrée'!$C$334+'1 Données d''entrée'!$C$333+1+$B1987,'1 Données d''entrée'!$C$332*($I1979-SUM($C1988:L1988)),0))","v":0},{"$f":"IF(M1929<1+$B1987,0,IF(M1929<'1 Données d''entrée'!$C$334+'1 Données d''entrée'!$C$333+1+$B1987,'1 Données d''entrée'!$C$332*($I1979-SUM($C1988:M1988)),0))","v":0},{"$f":"IF(N1929<1+$B1987,0,IF(N1929<'1 Données d''entrée'!$C$334+'1 Données d''entrée'!$C$333+1+$B1987,'1 Données d''entrée'!$C$332*($I1979-SUM($C1988:N1988)),0))","v":0},{"$f":"IF(O1929<1+$B1987,0,IF(O1929<'1 Données d''entrée'!$C$334+'1 Données d''entrée'!$C$333+1+$B1987,'1 Données d''entrée'!$C$332*($I1979-SUM($C1988:O1988)),0))","v":0},{"$f":"IF(P1929<1+$B1987,0,IF(P1929<'1 Données d''entrée'!$C$334+'1 Données d''entrée'!$C$333+1+$B1987,'1 Données d''entrée'!$C$332*($I1979-SUM($C1988:P1988)),0))","v":0},{"$f":"IF(Q1929<1+$B1987,0,IF(Q1929<'1 Données d''entrée'!$C$334+'1 Données d''entrée'!$C$333+1+$B1987,'1 Données d''entrée'!$C$332*($I1979-SUM($C1988:Q1988)),0))","v":0},{"$f":"IF(R1929<1+$B1987,0,IF(R1929<'1 Données d''entrée'!$C$334+'1 Données d''entrée'!$C$333+1+$B1987,'1 Données d''entrée'!$C$332*($I1979-SUM($C1988:R1988)),0))","v":0},{"$f":"IF(S1929<1+$B1987,0,IF(S1929<'1 Données d''entrée'!$C$334+'1 Données d''entrée'!$C$333+1+$B1987,'1 Données d''entrée'!$C$332*($I1979-SUM($C1988:S1988)),0))","v":0},{"$f":"IF(T1929<1+$B1987,0,IF(T1929<'1 Données d''entrée'!$C$334+'1 Données d''entrée'!$C$333+1+$B1987,'1 Données d''entrée'!$C$332*($I1979-SUM($C1988:T1988)),0))","v":0},{"$f":"IF(U1929<1+$B1987,0,IF(U1929<'1 Données d''entrée'!$C$334+'1 Données d''entrée'!$C$333+1+$B1987,'1 Données d''entrée'!$C$332*($I1979-SUM($C1988:U1988)),0))","v":0}]
["Paiement d'intêrets",8,0,{"$f":"IF(C1929<1+$B1988,0,IF(C1929<'1 Données d''entrée'!$C$334+'1 Données d''entrée'!$C$333+1+$B1988,'1 Données d''entrée'!$C$332*($J1979-SUM($C1989:C1989)),0))","v":0},{"$f":"IF(D1929<1+$B1988,0,IF(D1929<'1 Données d''entrée'!$C$334+'1 Données d''entrée'!$C$333+1+$B1988,'1 Données d''entrée'!$C$332*($J1979-SUM($C1989:D1989)),0))","v":0},{"$f":"IF(E1929<1+$B1988,0,IF(E1929<'1 Données d''entrée'!$C$334+'1 Données d''entrée'!$C$333+1+$B1988,'1 Données d''entrée'!$C$332*($J1979-SUM($C1989:E1989)),0))","v":0},{"$f":"IF(F1929<1+$B1988,0,IF(F1929<'1 Données d''entrée'!$C$334+'1 Données d''entrée'!$C$333+1+$B1988,'1 Données d''entrée'!$C$332*($J1979-SUM($C1989:F1989)),0))","v":0},{"$f":"IF(G1929<1+$B1988,0,IF(G1929<'1 Données d''entrée'!$C$334+'1 Données d''entrée'!$C$333+1+$B1988,'1 Données d''entrée'!$C$332*($J1979-SUM($C1989:G1989)),0))","v":0},{"$f":"IF(H1929<1+$B1988,0,IF(H1929<'1 Données d''entrée'!$C$334+'1 Données d''entrée'!$C$333+1+$B1988,'1 Données d''entrée'!$C$332*($J1979-SUM($C1989:H1989)),0))","v":0},{"$f":"IF(I1929<1+$B1988,0,IF(I1929<'1 Données d''entrée'!$C$334+'1 Données d''entrée'!$C$333+1+$B1988,'1 Données d''entrée'!$C$332*($J1979-SUM($C1989:I1989)),0))","v":0},{"$f":"IF(J1929<1+$B1988,0,IF(J1929<'1 Données d''entrée'!$C$334+'1 Données d''entrée'!$C$333+1+$B1988,'1 Données d''entrée'!$C$332*($J1979-SUM($C1989:J1989)),0))","v":0},{"$f":"IF(K1929<1+$B1988,0,IF(K1929<'1 Données d''entrée'!$C$334+'1 Données d''entrée'!$C$333+1+$B1988,'1 Données d''entrée'!$C$332*($J1979-SUM($C1989:K1989)),0))","v":0},{"$f":"IF(L1929<1+$B1988,0,IF(L1929<'1 Données d''entrée'!$C$334+'1 Données d''entrée'!$C$333+1+$B1988,'1 Données d''entrée'!$C$332*($J1979-SUM($C1989:L1989)),0))","v":0},{"$f":"IF(M1929<1+$B1988,0,IF(M1929<'1 Données d''entrée'!$C$334+'1 Données d''entrée'!$C$333+1+$B1988,'1 Données d''entrée'!$C$332*($J1979-SUM($C1989:M1989)),0))","v":0},{"$f":"IF(N1929<1+$B1988,0,IF(N1929<'1 Données d''entrée'!$C$334+'1 Données d''entrée'!$C$333+1+$B1988,'1 Données d''entrée'!$C$332*($J1979-SUM($C1989:N1989)),0))","v":0},{"$f":"IF(O1929<1+$B1988,0,IF(O1929<'1 Données d''entrée'!$C$334+'1 Données d''entrée'!$C$333+1+$B1988,'1 Données d''entrée'!$C$332*($J1979-SUM($C1989:O1989)),0))","v":0},{"$f":"IF(P1929<1+$B1988,0,IF(P1929<'1 Données d''entrée'!$C$334+'1 Données d''entrée'!$C$333+1+$B1988,'1 Données d''entrée'!$C$332*($J1979-SUM($C1989:P1989)),0))","v":0},{"$f":"IF(Q1929<1+$B1988,0,IF(Q1929<'1 Données d''entrée'!$C$334+'1 Données d''entrée'!$C$333+1+$B1988,'1 Données d''entrée'!$C$332*($J1979-SUM($C1989:Q1989)),0))","v":0},{"$f":"IF(R1929<1+$B1988,0,IF(R1929<'1 Données d''entrée'!$C$334+'1 Données d''entrée'!$C$333+1+$B1988,'1 Données d''entrée'!$C$332*($J1979-SUM($C1989:R1989)),0))","v":0},{"$f":"IF(S1929<1+$B1988,0,IF(S1929<'1 Données d''entrée'!$C$334+'1 Données d''entrée'!$C$333+1+$B1988,'1 Données d''entrée'!$C$332*($J1979-SUM($C1989:S1989)),0))","v":0},{"$f":"IF(T1929<1+$B1988,0,IF(T1929<'1 Données d''entrée'!$C$334+'1 Données d''entrée'!$C$333+1+$B1988,'1 Données d''entrée'!$C$332*($J1979-SUM($C1989:T1989)),0))","v":0},{"$f":"IF(U1929<1+$B1988,0,IF(U1929<'1 Données d''entrée'!$C$334+'1 Données d''entrée'!$C$333+1+$B1988,'1 Données d''entrée'!$C$332*($J1979-SUM($C1989:U1989)),0))","v":0}]
["Paiement d'intêrets",9,0,{"$f":"IF(C1929<1+$B1989,0,IF(C1929<'1 Données d''entrée'!$C$334+'1 Données d''entrée'!$C$333+1+$B1989,'1 Données d''entrée'!$C$332*($K1979-SUM($C1990:C1990)),0))","v":0},{"$f":"IF(D1929<1+$B1989,0,IF(D1929<'1 Données d''entrée'!$C$334+'1 Données d''entrée'!$C$333+1+$B1989,'1 Données d''entrée'!$C$332*($K1979-SUM($C1990:D1990)),0))","v":0},{"$f":"IF(E1929<1+$B1989,0,IF(E1929<'1 Données d''entrée'!$C$334+'1 Données d''entrée'!$C$333+1+$B1989,'1 Données d''entrée'!$C$332*($K1979-SUM($C1990:E1990)),0))","v":0},{"$f":"IF(F1929<1+$B1989,0,IF(F1929<'1 Données d''entrée'!$C$334+'1 Données d''entrée'!$C$333+1+$B1989,'1 Données d''entrée'!$C$332*($K1979-SUM($C1990:F1990)),0))","v":0},{"$f":"IF(G1929<1+$B1989,0,IF(G1929<'1 Données d''entrée'!$C$334+'1 Données d''entrée'!$C$333+1+$B1989,'1 Données d''entrée'!$C$332*($K1979-SUM($C1990:G1990)),0))","v":0},{"$f":"IF(H1929<1+$B1989,0,IF(H1929<'1 Données d''entrée'!$C$334+'1 Données d''entrée'!$C$333+1+$B1989,'1 Données d''entrée'!$C$332*($K1979-SUM($C1990:H1990)),0))","v":0},{"$f":"IF(I1929<1+$B1989,0,IF(I1929<'1 Données d''entrée'!$C$334+'1 Données d''entrée'!$C$333+1+$B1989,'1 Données d''entrée'!$C$332*($K1979-SUM($C1990:I1990)),0))","v":0},{"$f":"IF(J1929<1+$B1989,0,IF(J1929<'1 Données d''entrée'!$C$334+'1 Données d''entrée'!$C$333+1+$B1989,'1 Données d''entrée'!$C$332*($K1979-SUM($C1990:J1990)),0))","v":0},{"$f":"IF(K1929<1+$B1989,0,IF(K1929<'1 Données d''entrée'!$C$334+'1 Données d''entrée'!$C$333+1+$B1989,'1 Données d''entrée'!$C$332*($K1979-SUM($C1990:K1990)),0))","v":0},{"$f":"IF(L1929<1+$B1989,0,IF(L1929<'1 Données d''entrée'!$C$334+'1 Données d''entrée'!$C$333+1+$B1989,'1 Données d''entrée'!$C$332*($K1979-SUM($C1990:L1990)),0))","v":0},{"$f":"IF(M1929<1+$B1989,0,IF(M1929<'1 Données d''entrée'!$C$334+'1 Données d''entrée'!$C$333+1+$B1989,'1 Données d''entrée'!$C$332*($K1979-SUM($C1990:M1990)),0))","v":0},{"$f":"IF(N1929<1+$B1989,0,IF(N1929<'1 Données d''entrée'!$C$334+'1 Données d''entrée'!$C$333+1+$B1989,'1 Données d''entrée'!$C$332*($K1979-SUM($C1990:N1990)),0))","v":0},{"$f":"IF(O1929<1+$B1989,0,IF(O1929<'1 Données d''entrée'!$C$334+'1 Données d''entrée'!$C$333+1+$B1989,'1 Données d''entrée'!$C$332*($K1979-SUM($C1990:O1990)),0))","v":0},{"$f":"IF(P1929<1+$B1989,0,IF(P1929<'1 Données d''entrée'!$C$334+'1 Données d''entrée'!$C$333+1+$B1989,'1 Données d''entrée'!$C$332*($K1979-SUM($C1990:P1990)),0))","v":0},{"$f":"IF(Q1929<1+$B1989,0,IF(Q1929<'1 Données d''entrée'!$C$334+'1 Données d''entrée'!$C$333+1+$B1989,'1 Données d''entrée'!$C$332*($K1979-SUM($C1990:Q1990)),0))","v":0},{"$f":"IF(R1929<1+$B1989,0,IF(R1929<'1 Données d''entrée'!$C$334+'1 Données d''entrée'!$C$333+1+$B1989,'1 Données d''entrée'!$C$332*($K1979-SUM($C1990:R1990)),0))","v":0},{"$f":"IF(S1929<1+$B1989,0,IF(S1929<'1 Données d''entrée'!$C$334+'1 Données d''entrée'!$C$333+1+$B1989,'1 Données d''entrée'!$C$332*($K1979-SUM($C1990:S1990)),0))","v":0},{"$f":"IF(T1929<1+$B1989,0,IF(T1929<'1 Données d''entrée'!$C$334+'1 Données d''entrée'!$C$333+1+$B1989,'1 Données d''entrée'!$C$332*($K1979-SUM($C1990:T1990)),0))","v":0},{"$f":"IF(U1929<1+$B1989,0,IF(U1929<'1 Données d''entrée'!$C$334+'1 Données d''entrée'!$C$333+1+$B1989,'1 Données d''entrée'!$C$332*($K1979-SUM($C1990:U1990)),0))","v":0}]
["Paiement d'intêrets",10,0,{"$f":"IF(C1929<1+$B1990,0,IF(C1929<'1 Données d''entrée'!$C$334+'1 Données d''entrée'!$C$333+1+$B1990,'1 Données d''entrée'!$C$332*($L1979-SUM($C1991:C1991)),0))","v":0},{"$f":"IF(D1929<1+$B1990,0,IF(D1929<'1 Données d''entrée'!$C$334+'1 Données d''entrée'!$C$333+1+$B1990,'1 Données d''entrée'!$C$332*($L1979-SUM($C1991:D1991)),0))","v":0},{"$f":"IF(E1929<1+$B1990,0,IF(E1929<'1 Données d''entrée'!$C$334+'1 Données d''entrée'!$C$333+1+$B1990,'1 Données d''entrée'!$C$332*($L1979-SUM($C1991:E1991)),0))","v":0},{"$f":"IF(F1929<1+$B1990,0,IF(F1929<'1 Données d''entrée'!$C$334+'1 Données d''entrée'!$C$333+1+$B1990,'1 Données d''entrée'!$C$332*($L1979-SUM($C1991:F1991)),0))","v":0},{"$f":"IF(G1929<1+$B1990,0,IF(G1929<'1 Données d''entrée'!$C$334+'1 Données d''entrée'!$C$333+1+$B1990,'1 Données d''entrée'!$C$332*($L1979-SUM($C1991:G1991)),0))","v":0},{"$f":"IF(H1929<1+$B1990,0,IF(H1929<'1 Données d''entrée'!$C$334+'1 Données d''entrée'!$C$333+1+$B1990,'1 Données d''entrée'!$C$332*($L1979-SUM($C1991:H1991)),0))","v":0},{"$f":"IF(I1929<1+$B1990,0,IF(I1929<'1 Données d''entrée'!$C$334+'1 Données d''entrée'!$C$333+1+$B1990,'1 Données d''entrée'!$C$332*($L1979-SUM($C1991:I1991)),0))","v":0},{"$f":"IF(J1929<1+$B1990,0,IF(J1929<'1 Données d''entrée'!$C$334+'1 Données d''entrée'!$C$333+1+$B1990,'1 Données d''entrée'!$C$332*($L1979-SUM($C1991:J1991)),0))","v":0},{"$f":"IF(K1929<1+$B1990,0,IF(K1929<'1 Données d''entrée'!$C$334+'1 Données d''entrée'!$C$333+1+$B1990,'1 Données d''entrée'!$C$332*($L1979-SUM($C1991:K1991)),0))","v":0},{"$f":"IF(L1929<1+$B1990,0,IF(L1929<'1 Données d''entrée'!$C$334+'1 Données d''entrée'!$C$333+1+$B1990,'1 Données d''entrée'!$C$332*($L1979-SUM($C1991:L1991)),0))","v":0},{"$f":"IF(M1929<1+$B1990,0,IF(M1929<'1 Données d''entrée'!$C$334+'1 Données d''entrée'!$C$333+1+$B1990,'1 Données d''entrée'!$C$332*($L1979-SUM($C1991:M1991)),0))","v":0},{"$f":"IF(N1929<1+$B1990,0,IF(N1929<'1 Données d''entrée'!$C$334+'1 Données d''entrée'!$C$333+1+$B1990,'1 Données d''entrée'!$C$332*($L1979-SUM($C1991:N1991)),0))","v":0},{"$f":"IF(O1929<1+$B1990,0,IF(O1929<'1 Données d''entrée'!$C$334+'1 Données d''entrée'!$C$333+1+$B1990,'1 Données d''entrée'!$C$332*($L1979-SUM($C1991:O1991)),0))","v":0},{"$f":"IF(P1929<1+$B1990,0,IF(P1929<'1 Données d''entrée'!$C$334+'1 Données d''entrée'!$C$333+1+$B1990,'1 Données d''entrée'!$C$332*($L1979-SUM($C1991:P1991)),0))","v":0},{"$f":"IF(Q1929<1+$B1990,0,IF(Q1929<'1 Données d''entrée'!$C$334+'1 Données d''entrée'!$C$333+1+$B1990,'1 Données d''entrée'!$C$332*($L1979-SUM($C1991:Q1991)),0))","v":0},{"$f":"IF(R1929<1+$B1990,0,IF(R1929<'1 Données d''entrée'!$C$334+'1 Données d''entrée'!$C$333+1+$B1990,'1 Données d''entrée'!$C$332*($L1979-SUM($C1991:R1991)),0))","v":0},{"$f":"IF(S1929<1+$B1990,0,IF(S1929<'1 Données d''entrée'!$C$334+'1 Données d''entrée'!$C$333+1+$B1990,'1 Données d''entrée'!$C$332*($L1979-SUM($C1991:S1991)),0))","v":0},{"$f":"IF(T1929<1+$B1990,0,IF(T1929<'1 Données d''entrée'!$C$334+'1 Données d''entrée'!$C$333+1+$B1990,'1 Données d''entrée'!$C$332*($L1979-SUM($C1991:T1991)),0))","v":0},{"$f":"IF(U1929<1+$B1990,0,IF(U1929<'1 Données d''entrée'!$C$334+'1 Données d''entrée'!$C$333+1+$B1990,'1 Données d''entrée'!$C$332*($L1979-SUM($C1991:U1991)),0))","v":0}]
[]
[null,"Période",1,2,3,4,5,6,7,8,9,10,11,12,13,14,15,16,17,18,19,20]
["Prêt bancaire additionnel- Option 2: Remboursement du principal final",{"$f":"'1 Données d''entrée'!$B$343","v":0}]
["Prêt(s) nouveau(x)",null,{"$f":"IF(C1972<0,C1972*(-1)*$B2006+C1972*(-1)*$B2006*'1 Données d''entrée'!$C$338,0)","v":{"$error":"#DIV/0!"}},{"$f":"IF(D1972<0,D1972*(-1)*$B2006+D1972*(-1)*$B2006*'1 Données d''entrée'!$C$338,0)","v":{"$error":"#DIV/0!"}},{"$f":"IF(E1972<0,E1972*(-1)*$B2006+E1972*(-1)*$B2006*'1 Données d''entrée'!$C$338,0)","v":{"$error":"#DIV/0!"}},{"$f":"IF(F1972<0,F1972*(-1)*$B2006+F1972*(-1)*$B2006*'1 Données d''entrée'!$C$338,0)","v":{"$error":"#DIV/0!"}},{"$f":"IF(G1972<0,G1972*(-1)*$B2006+G1972*(-1)*$B2006*'1 Données d''entrée'!$C$338,0)","v":{"$error":"#DIV/0!"}},{"$f":"IF(H1972<0,H1972*(-1)*$B2006+H1972*(-1)*$B2006*'1 Données d''entrée'!$C$338,0)","v":{"$error":"#DIV/0!"}},{"$f":"IF(I1972<0,I1972*(-1)*$B2006+I1972*(-1)*$B2006*'1 Données d''entrée'!$C$338,0)","v":{"$error":"#DIV/0!"}},{"$f":"IF(J1972<0,J1972*(-1)*$B2006+J1972*(-1)*$B2006*'1 Données d''entrée'!$C$338,0)","v":{"$error":"#DIV/0!"}},{"$f":"IF(K1972<0,K1972*(-1)*$B2006+K1972*(-1)*$B2006*'1 Données d''entrée'!$C$338,0)","v":{"$error":"#DIV/0!"}},{"$f":"IF(L1972<0,L1972*(-1)*$B2006+L1972*(-1)*$B2006*'1 Données d''entrée'!$C$338,0)","v":{"$error":"#DIV/0!"}},{"$f":"IF(M1972<0,M1972*(-1)*$B2006+M1972*(-1)*$B2006*'1 Données d''entrée'!$C$338,0)","v":{"$error":"#DIV/0!"}},{"$f":"IF(N1972<0,N1972*(-1)*$B2006+N1972*(-1)*$B2006*'1 Données d''entrée'!$C$338,0)","v":{"$error":"#DIV/0!"}},{"$f":"IF(O1972<0,O1972*(-1)*$B2006+O1972*(-1)*$B2006*'1 Données d''entrée'!$C$338,0)","v":{"$error":"#DIV/0!"}},{"$f":"IF(P1972<0,P1972*(-1)*$B2006+P1972*(-1)*$B2006*'1 Données d''entrée'!$C$338,0)","v":{"$error":"#DIV/0!"}},{"$f":"IF(Q1972<0,Q1972*(-1)*$B2006+Q1972*(-1)*$B2006*'1 Données d''entrée'!$C$338,0)","v":{"$error":"#DIV/0!"}},{"$f":"IF(R1972<0,R1972*(-1)*$B2006+R1972*(-1)*$B2006*'1 Données d''entrée'!$C$338,0)","v":{"$error":"#DIV/0!"}},{"$f":"IF(S1972<0,S1972*(-1)*$B2006+S1972*(-1)*$B2006*'1 Données d''entrée'!$C$338,0)","v":{"$error":"#DIV/0!"}},{"$f":"IF(T1972<0,T1972*(-1)*$B2006+T1972*(-1)*$B2006*'1 Données d''entrée'!$C$338,0)","v":{"$error":"#DIV/0!"}},{"$f":"IF(U1972<0,U1972*(-1)*$B2006+U1972*(-1)*$B2006*'1 Données d''entrée'!$C$338,0)","v":{"$error":"#DIV/0!"}},{"$f":"IF(V1972<0,V1972*(-1)*$B2006+V1972*(-1)*$B2006*'1 Données d''entrée'!$C$338,0)","v":{"$error":"#DIV/0!"}}]
[null,"Période de prêt nouveau"]
["Remboursement du principal",0,0,0,0,0,0,0,0,0,0,0,0,0,0,0,0,0,0,0,0,0]
[null,1,{"$f":"IF(C2005='1 Données d''entrée'!$C$333+'1 Données d''entrée'!$C$334+$B2010,$C2007,0)","v":{"$error":"#DIV/0!"}},{"$f":"IF(D2005='1 Données d''entrée'!$C$333+'1 Données d''entrée'!$C$334+$B2010,$C2007,0)","v":0},{"$f":"IF(E2005='1 Données d''entrée'!$C$333+'1 Données d''entrée'!$C$334+$B2010,$C2007,0)","v":0},{"$f":"IF(F2005='1 Données d''entrée'!$C$333+'1 Données d''entrée'!$C$334+$B2010,$C2007,0)","v":0},{"$f":"IF(G2005='1 Données d''entrée'!$C$333+'1 Données d''entrée'!$C$334+$B2010,$C2007,0)","v":0},{"$f":"IF(H2005='1 Données d''entrée'!$C$333+'1 Données d''entrée'!$C$334+$B2010,$C2007,0)","v":0},{"$f":"IF(I2005='1 Données d''entrée'!$C$333+'1 Données d''entrée'!$C$334+$B2010,$C2007,0)","v":0},{"$f":"IF(J2005='1 Données d''entrée'!$C$333+'1 Données d''entrée'!$C$334+$B2010,$C2007,0)","v":0},{"$f":"IF(K2005='1 Données d''entrée'!$C$333+'1 Données d''entrée'!$C$334+$B2010,$C2007,0)","v":0},{"$f":"IF(L2005='1 Données d''entrée'!$C$333+'1 Données d''entrée'!$C$334+$B2010,$C2007,0)","v":0},{"$f":"IF(M2005='1 Données d''entrée'!$C$333+'1 Données d''entrée'!$C$334+$B2010,$C2007,0)","v":0},{"$f":"IF(N2005='1 Données d''entrée'!$C$333+'1 Données d''entrée'!$C$334+$B2010,$C2007,0)","v":0},{"$f":"IF(O2005='1 Données d''entrée'!$C$333+'1 Données d''entrée'!$C$334+$B2010,$C2007,0)","v":0},{"$f":"IF(P2005='1 Données d''entrée'!$C$333+'1 Données d''entrée'!$C$334+$B2010,$C2007,0)","v":0},{"$f":"IF(Q2005='1 Données d''entrée'!$C$333+'1 Données d''entrée'!$C$334+$B2010,$C2007,0)","v":0},{"$f":"IF(R2005='1 Données d''entrée'!$C$333+'1 Données d''entrée'!$C$334+$B2010,$C2007,0)","v":0},{"$f":"IF(S2005='1 Données d''entrée'!$C$333+'1 Données d''entrée'!$C$334+$B2010,$C2007,0)","v":0},{"$f":"IF(T2005='1 Données d''entrée'!$C$333+'1 Données d''entrée'!$C$334+$B2010,$C2007,0)","v":0},{"$f":"IF(U2005='1 Données d''entrée'!$C$333+'1 Données d''entrée'!$C$334+$B2010,$C2007,0)","v":0},{"$f":"IF(V2005='1 Données d''entrée'!$C$333+'1 Données d''entrée'!$C$334+$B2010,$C2007,0)","v":0}]
[null,2,{"$f":"IF(C2005='1 Données d''entrée'!$C$333+'1 Données d''entrée'!$C$334+$B2011,$D2007,0)","v":0},{"$f":"IF(D2005='1 Données d''entrée'!$C$333+'1 Données d''entrée'!$C$334+$B2011,$D2007,0)","v":{"$error":"#DIV/0!"}},{"$f":"IF(E2005='1 Données d''entrée'!$C$333+'1 Données d''entrée'!$C$334+$B2011,$D2007,0)","v":0},{"$f":"IF(F2005='1 Données d''entrée'!$C$333+'1 Données d''entrée'!$C$334+$B2011,$D2007,0)","v":0},{"$f":"IF(G2005='1 Données d''entrée'!$C$333+'1 Données d''entrée'!$C$334+$B2011,$D2007,0)","v":0},{"$f":"IF(H2005='1 Données d''entrée'!$C$333+'1 Données d''entrée'!$C$334+$B2011,$D2007,0)","v":0},{"$f":"IF(I2005='1 Données d''entrée'!$C$333+'1 Données d''entrée'!$C$334+$B2011,$D2007,0)","v":0},{"$f":"IF(J2005='1 Données d''entrée'!$C$333+'1 Données d''entrée'!$C$334+$B2011,$D2007,0)","v":0},{"$f":"IF(K2005='1 Données d''entrée'!$C$333+'1 Données d''entrée'!$C$334+$B2011,$D2007,0)","v":0},{"$f":"IF(L2005='1 Données d''entrée'!$C$333+'1 Données d''entrée'!$C$334+$B2011,$D2007,0)","v":0},{"$f":"IF(M2005='1 Données d''entrée'!$C$333+'1 Données d''entrée'!$C$334+$B2011,$D2007,0)","v":0},{"$f":"IF(N2005='1 Données d''entrée'!$C$333+'1 Données d''entrée'!$C$334+$B2011,$D2007,0)","v":0},{"$f":"IF(O2005='1 Données d''entrée'!$C$333+'1 Données d''entrée'!$C$334+$B2011,$D2007,0)","v":0},{"$f":"IF(P2005='1 Données d''entrée'!$C$333+'1 Données d''entrée'!$C$334+$B2011,$D2007,0)","v":0},{"$f":"IF(Q2005='1 Données d''entrée'!$C$333+'1 Données d''entrée'!$C$334+$B2011,$D2007,0)","v":0},{"$f":"IF(R2005='1 Données d''entrée'!$C$333+'1 Données d''entrée'!$C$334+$B2011,$D2007,0)","v":0},{"$f":"IF(S2005='1 Données d''entrée'!$C$333+'1 Données d''entrée'!$C$334+$B2011,$D2007,0)","v":0},{"$f":"IF(T2005='1 Données d''entrée'!$C$333+'1 Données d''entrée'!$C$334+$B2011,$D2007,0)","v":0},{"$f":"IF(U2005='1 Données d''entrée'!$C$333+'1 Données d''entrée'!$C$334+$B2011,$D2007,0)","v":0},{"$f":"IF(V2005='1 Données d''entrée'!$C$333+'1 Données d''entrée'!$C$334+$B2011,$D2007,0)","v":0}]
[null,3,{"$f":"IF(C2005='1 Données d''entrée'!$C$333+'1 Données d''entrée'!$C$334+$B2012,$E2007,0)","v":0},{"$f":"IF(D2005='1 Données d''entrée'!$C$333+'1 Données d''entrée'!$C$334+$B2012,$E2007,0)","v":0},{"$f":"IF(E2005='1 Données d''entrée'!$C$333+'1 Données d''entrée'!$C$334+$B2012,$E2007,0)","v":{"$error":"#DIV/0!"}},{"$f":"IF(F2005='1 Données d''entrée'!$C$333+'1 Données d''entrée'!$C$334+$B2012,$E2007,0)","v":0},{"$f":"IF(G2005='1 Données d''entrée'!$C$333+'1 Données d''entrée'!$C$334+$B2012,$E2007,0)","v":0},{"$f":"IF(H2005='1 Données d''entrée'!$C$333+'1 Données d''entrée'!$C$334+$B2012,$E2007,0)","v":0},{"$f":"IF(I2005='1 Données d''entrée'!$C$333+'1 Données d''entrée'!$C$334+$B2012,$E2007,0)","v":0},{"$f":"IF(J2005='1 Données d''entrée'!$C$333+'1 Données d''entrée'!$C$334+$B2012,$E2007,0)","v":0},{"$f":"IF(K2005='1 Données d''entrée'!$C$333+'1 Données d''entrée'!$C$334+$B2012,$E2007,0)","v":0},{"$f":"IF(L2005='1 Données d''entrée'!$C$333+'1 Données d''entrée'!$C$334+$B2012,$E2007,0)","v":0},{"$f":"IF(M2005='1 Données d''entrée'!$C$333+'1 Données d''entrée'!$C$334+$B2012,$E2007,0)","v":0},{"$f":"IF(N2005='1 Données d''entrée'!$C$333+'1 Données d''entrée'!$C$334+$B2012,$E2007,0)","v":0},{"$f":"IF(O2005='1 Données d''entrée'!$C$333+'1 Données d''entrée'!$C$334+$B2012,$E2007,0)","v":0},{"$f":"IF(P2005='1 Données d''entrée'!$C$333+'1 Données d''entrée'!$C$334+$B2012,$E2007,0)","v":0},{"$f":"IF(Q2005='1 Données d''entrée'!$C$333+'1 Données d''entrée'!$C$334+$B2012,$E2007,0)","v":0},{"$f":"IF(R2005='1 Données d''entrée'!$C$333+'1 Données d''entrée'!$C$334+$B2012,$E2007,0)","v":0},{"$f":"IF(S2005='1 Données d''entrée'!$C$333+'1 Données d''entrée'!$C$334+$B2012,$E2007,0)","v":0},{"$f":"IF(T2005='1 Données d''entrée'!$C$333+'1 Données d''entrée'!$C$334+$B2012,$E2007,0)","v":0},{"$f":"IF(U2005='1 Données d''entrée'!$C$333+'1 Données d''entrée'!$C$334+$B2012,$E2007,0)","v":0},{"$f":"IF(V2005='1 Données d''entrée'!$C$333+'1 Données d''entrée'!$C$334+$B2012,$E2007,0)","v":0}]
[null,4,{"$f":"IF(C2005='1 Données d''entrée'!$C$333+'1 Données d''entrée'!$C$334+$B2013,$F2007,0)","v":0},{"$f":"IF(D2005='1 Données d''entrée'!$C$333+'1 Données d''entrée'!$C$334+$B2013,$F2007,0)","v":0},{"$f":"IF(E2005='1 Données d''entrée'!$C$333+'1 Données d''entrée'!$C$334+$B2013,$F2007,0)","v":0},{"$f":"IF(F2005='1 Données d''entrée'!$C$333+'1 Données d''entrée'!$C$334+$B2013,$F2007,0)","v":{"$error":"#DIV/0!"}},{"$f":"IF(G2005='1 Données d''entrée'!$C$333+'1 Données d''entrée'!$C$334+$B2013,$F2007,0)","v":0},{"$f":"IF(H2005='1 Données d''entrée'!$C$333+'1 Données d''entrée'!$C$334+$B2013,$F2007,0)","v":0},{"$f":"IF(I2005='1 Données d''entrée'!$C$333+'1 Données d''entrée'!$C$334+$B2013,$F2007,0)","v":0},{"$f":"IF(J2005='1 Données d''entrée'!$C$333+'1 Données d''entrée'!$C$334+$B2013,$F2007,0)","v":0},{"$f":"IF(K2005='1 Données d''entrée'!$C$333+'1 Données d''entrée'!$C$334+$B2013,$F2007,0)","v":0},{"$f":"IF(L2005='1 Données d''entrée'!$C$333+'1 Données d''entrée'!$C$334+$B2013,$F2007,0)","v":0},{"$f":"IF(M2005='1 Données d''entrée'!$C$333+'1 Données d''entrée'!$C$334+$B2013,$F2007,0)","v":0},{"$f":"IF(N2005='1 Données d''entrée'!$C$333+'1 Données d''entrée'!$C$334+$B2013,$F2007,0)","v":0},{"$f":"IF(O2005='1 Données d''entrée'!$C$333+'1 Données d''entrée'!$C$334+$B2013,$F2007,0)","v":0},{"$f":"IF(P2005='1 Données d''entrée'!$C$333+'1 Données d''entrée'!$C$334+$B2013,$F2007,0)","v":0},{"$f":"IF(Q2005='1 Données d''entrée'!$C$333+'1 Données d''entrée'!$C$334+$B2013,$F2007,0)","v":0},{"$f":"IF(R2005='1 Données d''entrée'!$C$333+'1 Données d''entrée'!$C$334+$B2013,$F2007,0)","v":0},{"$f":"IF(S2005='1 Données d''entrée'!$C$333+'1 Données d''entrée'!$C$334+$B2013,$F2007,0)","v":0},{"$f":"IF(T2005='1 Données d''entrée'!$C$333+'1 Données d''entrée'!$C$334+$B2013,$F2007,0)","v":0},{"$f":"IF(U2005='1 Données d''entrée'!$C$333+'1 Données d''entrée'!$C$334+$B2013,$F2007,0)","v":0},{"$f":"IF(V2005='1 Données d''entrée'!$C$333+'1 Données d''entrée'!$C$334+$B2013,$F2007,0)","v":0}]
[null,5,{"$f":"IF(C2005='1 Données d''entrée'!$C$333+'1 Données d''entrée'!$C$334+$B2014,$G2007,0)","v":0},{"$f":"IF(D2005='1 Données d''entrée'!$C$333+'1 Données d''entrée'!$C$334+$B2014,$G2007,0)","v":0},{"$f":"IF(E2005='1 Données d''entrée'!$C$333+'1 Données d''entrée'!$C$334+$B2014,$G2007,0)","v":0},{"$f":"IF(F2005='1 Données d''entrée'!$C$333+'1 Données d''entrée'!$C$334+$B2014,$G2007,0)","v":0},{"$f":"IF(G2005='1 Données d''entrée'!$C$333+'1 Données d''entrée'!$C$334+$B2014,$G2007,0)","v":{"$error":"#DIV/0!"}},{"$f":"IF(H2005='1 Données d''entrée'!$C$333+'1 Données d''entrée'!$C$334+$B2014,$G2007,0)","v":0},{"$f":"IF(I2005='1 Données d''entrée'!$C$333+'1 Données d''entrée'!$C$334+$B2014,$G2007,0)","v":0},{"$f":"IF(J2005='1 Données d''entrée'!$C$333+'1 Données d''entrée'!$C$334+$B2014,$G2007,0)","v":0},{"$f":"IF(K2005='1 Données d''entrée'!$C$333+'1 Données d''entrée'!$C$334+$B2014,$G2007,0)","v":0},{"$f":"IF(L2005='1 Données d''entrée'!$C$333+'1 Données d''entrée'!$C$334+$B2014,$G2007,0)","v":0},{"$f":"IF(M2005='1 Données d''entrée'!$C$333+'1 Données d''entrée'!$C$334+$B2014,$G2007,0)","v":0},{"$f":"IF(N2005='1 Données d''entrée'!$C$333+'1 Données d''entrée'!$C$334+$B2014,$G2007,0)","v":0},{"$f":"IF(O2005='1 Données d''entrée'!$C$333+'1 Données d''entrée'!$C$334+$B2014,$G2007,0)","v":0},{"$f":"IF(P2005='1 Données d''entrée'!$C$333+'1 Données d''entrée'!$C$334+$B2014,$G2007,0)","v":0},{"$f":"IF(Q2005='1 Données d''entrée'!$C$333+'1 Données d''entrée'!$C$334+$B2014,$G2007,0)","v":0},{"$f":"IF(R2005='1 Données d''entrée'!$C$333+'1 Données d''entrée'!$C$334+$B2014,$G2007,0)","v":0},{"$f":"IF(S2005='1 Données d''entrée'!$C$333+'1 Données d''entrée'!$C$334+$B2014,$G2007,0)","v":0},{"$f":"IF(T2005='1 Données d''entrée'!$C$333+'1 Données d''entrée'!$C$334+$B2014,$G2007,0)","v":0},{"$f":"IF(U2005='1 Données d''entrée'!$C$333+'1 Données d''entrée'!$C$334+$B2014,$G2007,0)","v":0},{"$f":"IF(V2005='1 Données d''entrée'!$C$333+'1 Données d''entrée'!$C$334+$B2014,$G2007,0)","v":0}]
[null,6,{"$f":"IF(C2005='1 Données d''entrée'!$C$333+'1 Données d''entrée'!$C$334+$B2015,$H2007,0)","v":0},{"$f":"IF(D2005='1 Données d''entrée'!$C$333+'1 Données d''entrée'!$C$334+$B2015,$H2007,0)","v":0},{"$f":"IF(E2005='1 Données d''entrée'!$C$333+'1 Données d''entrée'!$C$334+$B2015,$H2007,0)","v":0},{"$f":"IF(F2005='1 Données d''entrée'!$C$333+'1 Données d''entrée'!$C$334+$B2015,$H2007,0)","v":0},{"$f":"IF(G2005='1 Données d''entrée'!$C$333+'1 Données d''entrée'!$C$334+$B2015,$H2007,0)","v":0},{"$f":"IF(H2005='1 Données d''entrée'!$C$333+'1 Données d''entrée'!$C$334+$B2015,$H2007,0)","v":{"$error":"#DIV/0!"}},{"$f":"IF(I2005='1 Données d''entrée'!$C$333+'1 Données d''entrée'!$C$334+$B2015,$H2007,0)","v":0},{"$f":"IF(J2005='1 Données d''entrée'!$C$333+'1 Données d''entrée'!$C$334+$B2015,$H2007,0)","v":0},{"$f":"IF(K2005='1 Données d''entrée'!$C$333+'1 Données d''entrée'!$C$334+$B2015,$H2007,0)","v":0},{"$f":"IF(L2005='1 Données d''entrée'!$C$333+'1 Données d''entrée'!$C$334+$B2015,$H2007,0)","v":0},{"$f":"IF(M2005='1 Données d''entrée'!$C$333+'1 Données d''entrée'!$C$334+$B2015,$H2007,0)","v":0},{"$f":"IF(N2005='1 Données d''entrée'!$C$333+'1 Données d''entrée'!$C$334+$B2015,$H2007,0)","v":0},{"$f":"IF(O2005='1 Données d''entrée'!$C$333+'1 Données d''entrée'!$C$334+$B2015,$H2007,0)","v":0},{"$f":"IF(P2005='1 Données d''entrée'!$C$333+'1 Données d''entrée'!$C$334+$B2015,$H2007,0)","v":0},{"$f":"IF(Q2005='1 Données d''entrée'!$C$333+'1 Données d''entrée'!$C$334+$B2015,$H2007,0)","v":0},{"$f":"IF(R2005='1 Données d''entrée'!$C$333+'1 Données d''entrée'!$C$334+$B2015,$H2007,0)","v":0},{"$f":"IF(S2005='1 Données d''entrée'!$C$333+'1 Données d''entrée'!$C$334+$B2015,$H2007,0)","v":0},{"$f":"IF(T2005='1 Données d''entrée'!$C$333+'1 Données d''entrée'!$C$334+$B2015,$H2007,0)","v":0},{"$f":"IF(U2005='1 Données d''entrée'!$C$333+'1 Données d''entrée'!$C$334+$B2015,$H2007,0)","v":0},{"$f":"IF(V2005='1 Données d''entrée'!$C$333+'1 Données d''entrée'!$C$334+$B2015,$H2007,0)","v":0}]
[null,7,{"$f":"IF(C2005='1 Données d''entrée'!$C$333+'1 Données d''entrée'!$C$334+$B2016,$I2007,0)","v":0},{"$f":"IF(D2005='1 Données d''entrée'!$C$333+'1 Données d''entrée'!$C$334+$B2016,$I2007,0)","v":0},{"$f":"IF(E2005='1 Données d''entrée'!$C$333+'1 Données d''entrée'!$C$334+$B2016,$I2007,0)","v":0},{"$f":"IF(F2005='1 Données d''entrée'!$C$333+'1 Données d''entrée'!$C$334+$B2016,$I2007,0)","v":0},{"$f":"IF(G2005='1 Données d''entrée'!$C$333+'1 Données d''entrée'!$C$334+$B2016,$I2007,0)","v":0},{"$f":"IF(H2005='1 Données d''entrée'!$C$333+'1 Données d''entrée'!$C$334+$B2016,$I2007,0)","v":0},{"$f":"IF(I2005='1 Données d''entrée'!$C$333+'1 Données d''entrée'!$C$334+$B2016,$I2007,0)","v":{"$error":"#DIV/0!"}},{"$f":"IF(J2005='1 Données d''entrée'!$C$333+'1 Données d''entrée'!$C$334+$B2016,$I2007,0)","v":0},{"$f":"IF(K2005='1 Données d''entrée'!$C$333+'1 Données d''entrée'!$C$334+$B2016,$I2007,0)","v":0},{"$f":"IF(L2005='1 Données d''entrée'!$C$333+'1 Données d''entrée'!$C$334+$B2016,$I2007,0)","v":0},{"$f":"IF(M2005='1 Données d''entrée'!$C$333+'1 Données d''entrée'!$C$334+$B2016,$I2007,0)","v":0},{"$f":"IF(N2005='1 Données d''entrée'!$C$333+'1 Données d''entrée'!$C$334+$B2016,$I2007,0)","v":0},{"$f":"IF(O2005='1 Données d''entrée'!$C$333+'1 Données d''entrée'!$C$334+$B2016,$I2007,0)","v":0},{"$f":"IF(P2005='1 Données d''entrée'!$C$333+'1 Données d''entrée'!$C$334+$B2016,$I2007,0)","v":0},{"$f":"IF(Q2005='1 Données d''entrée'!$C$333+'1 Données d''entrée'!$C$334+$B2016,$I2007,0)","v":0},{"$f":"IF(R2005='1 Données d''entrée'!$C$333+'1 Données d''entrée'!$C$334+$B2016,$I2007,0)","v":0},{"$f":"IF(S2005='1 Données d''entrée'!$C$333+'1 Données d''entrée'!$C$334+$B2016,$I2007,0)","v":0},{"$f":"IF(T2005='1 Données d''entrée'!$C$333+'1 Données d''entrée'!$C$334+$B2016,$I2007,0)","v":0},{"$f":"IF(U2005='1 Données d''entrée'!$C$333+'1 Données d''entrée'!$C$334+$B2016,$I2007,0)","v":0},{"$f":"IF(V2005='1 Données d''entrée'!$C$333+'1 Données d''entrée'!$C$334+$B2016,$I2007,0)","v":0}]
[null,8,{"$f":"IF(C2005='1 Données d''entrée'!$C$333+'1 Données d''entrée'!$C$334+$B2017,$J2007,0)","v":0},{"$f":"IF(D2005='1 Données d''entrée'!$C$333+'1 Données d''entrée'!$C$334+$B2017,$J2007,0)","v":0},{"$f":"IF(E2005='1 Données d''entrée'!$C$333+'1 Données d''entrée'!$C$334+$B2017,$J2007,0)","v":0},{"$f":"IF(F2005='1 Données d''entrée'!$C$333+'1 Données d''entrée'!$C$334+$B2017,$J2007,0)","v":0},{"$f":"IF(G2005='1 Données d''entrée'!$C$333+'1 Données d''entrée'!$C$334+$B2017,$J2007,0)","v":0},{"$f":"IF(H2005='1 Données d''entrée'!$C$333+'1 Données d''entrée'!$C$334+$B2017,$J2007,0)","v":0},{"$f":"IF(I2005='1 Données d''entrée'!$C$333+'1 Données d''entrée'!$C$334+$B2017,$J2007,0)","v":0},{"$f":"IF(J2005='1 Données d''entrée'!$C$333+'1 Données d''entrée'!$C$334+$B2017,$J2007,0)","v":{"$error":"#DIV/0!"}},{"$f":"IF(K2005='1 Données d''entrée'!$C$333+'1 Données d''entrée'!$C$334+$B2017,$J2007,0)","v":0},{"$f":"IF(L2005='1 Données d''entrée'!$C$333+'1 Données d''entrée'!$C$334+$B2017,$J2007,0)","v":0},{"$f":"IF(M2005='1 Données d''entrée'!$C$333+'1 Données d''entrée'!$C$334+$B2017,$J2007,0)","v":0},{"$f":"IF(N2005='1 Données d''entrée'!$C$333+'1 Données d''entrée'!$C$334+$B2017,$J2007,0)","v":0},{"$f":"IF(O2005='1 Données d''entrée'!$C$333+'1 Données d''entrée'!$C$334+$B2017,$J2007,0)","v":0},{"$f":"IF(P2005='1 Données d''entrée'!$C$333+'1 Données d''entrée'!$C$334+$B2017,$J2007,0)","v":0},{"$f":"IF(Q2005='1 Données d''entrée'!$C$333+'1 Données d''entrée'!$C$334+$B2017,$J2007,0)","v":0},{"$f":"IF(R2005='1 Données d''entrée'!$C$333+'1 Données d''entrée'!$C$334+$B2017,$J2007,0)","v":0},{"$f":"IF(S2005='1 Données d''entrée'!$C$333+'1 Données d''entrée'!$C$334+$B2017,$J2007,0)","v":0},{"$f":"IF(T2005='1 Données d''entrée'!$C$333+'1 Données d''entrée'!$C$334+$B2017,$J2007,0)","v":0},{"$f":"IF(U2005='1 Données d''entrée'!$C$333+'1 Données d''entrée'!$C$334+$B2017,$J2007,0)","v":0},{"$f":"IF(V2005='1 Données d''entrée'!$C$333+'1 Données d''entrée'!$C$334+$B2017,$J2007,0)","v":0}]
[null,9,{"$f":"IF(C2005='1 Données d''entrée'!$C$333+'1 Données d''entrée'!$C$334+$B2018,$K2007,0)","v":0},{"$f":"IF(D2005='1 Données d''entrée'!$C$333+'1 Données d''entrée'!$C$334+$B2018,$K2007,0)","v":0},{"$f":"IF(E2005='1 Données d''entrée'!$C$333+'1 Données d''entrée'!$C$334+$B2018,$K2007,0)","v":0},{"$f":"IF(F2005='1 Données d''entrée'!$C$333+'1 Données d''entrée'!$C$334+$B2018,$K2007,0)","v":0},{"$f":"IF(G2005='1 Données d''entrée'!$C$333+'1 Données d''entrée'!$C$334+$B2018,$K2007,0)","v":0},{"$f":"IF(H2005='1 Données d''entrée'!$C$333+'1 Données d''entrée'!$C$334+$B2018,$K2007,0)","v":0},{"$f":"IF(I2005='1 Données d''entrée'!$C$333+'1 Données d''entrée'!$C$334+$B2018,$K2007,0)","v":0},{"$f":"IF(J2005='1 Données d''entrée'!$C$333+'1 Données d''entrée'!$C$334+$B2018,$K2007,0)","v":0},{"$f":"IF(K2005='1 Données d''entrée'!$C$333+'1 Données d''entrée'!$C$334+$B2018,$K2007,0)","v":{"$error":"#DIV/0!"}},{"$f":"IF(L2005='1 Données d''entrée'!$C$333+'1 Données d''entrée'!$C$334+$B2018,$K2007,0)","v":0},{"$f":"IF(M2005='1 Données d''entrée'!$C$333+'1 Données d''entrée'!$C$334+$B2018,$K2007,0)","v":0},{"$f":"IF(N2005='1 Données d''entrée'!$C$333+'1 Données d''entrée'!$C$334+$B2018,$K2007,0)","v":0},{"$f":"IF(O2005='1 Données d''entrée'!$C$333+'1 Données d''entrée'!$C$334+$B2018,$K2007,0)","v":0},{"$f":"IF(P2005='1 Données d''entrée'!$C$333+'1 Données d''entrée'!$C$334+$B2018,$K2007,0)","v":0},{"$f":"IF(Q2005='1 Données d''entrée'!$C$333+'1 Données d''entrée'!$C$334+$B2018,$K2007,0)","v":0},{"$f":"IF(R2005='1 Données d''entrée'!$C$333+'1 Données d''entrée'!$C$334+$B2018,$K2007,0)","v":0},{"$f":"IF(S2005='1 Données d''entrée'!$C$333+'1 Données d''entrée'!$C$334+$B2018,$K2007,0)","v":0},{"$f":"IF(T2005='1 Données d''entrée'!$C$333+'1 Données d''entrée'!$C$334+$B2018,$K2007,0)","v":0},{"$f":"IF(U2005='1 Données d''entrée'!$C$333+'1 Données d''entrée'!$C$334+$B2018,$K2007,0)","v":0},{"$f":"IF(V2005='1 Données d''entrée'!$C$333+'1 Données d''entrée'!$C$334+$B2018,$K2007,0)","v":0}]
[null,10,{"$f":"IF(C2005='1 Données d''entrée'!$C$333+'1 Données d''entrée'!$C$334+$B2019,$L2007,0)","v":0},{"$f":"IF(D2005='1 Données d''entrée'!$C$333+'1 Données d''entrée'!$C$334+$B2019,$L2007,0)","v":0},{"$f":"IF(E2005='1 Données d''entrée'!$C$333+'1 Données d''entrée'!$C$334+$B2019,$L2007,0)","v":0},{"$f":"IF(F2005='1 Données d''entrée'!$C$333+'1 Données d''entrée'!$C$334+$B2019,$L2007,0)","v":0},{"$f":"IF(G2005='1 Données d''entrée'!$C$333+'1 Données d''entrée'!$C$334+$B2019,$L2007,0)","v":0},{"$f":"IF(H2005='1 Données d''entrée'!$C$333+'1 Données d''entrée'!$C$334+$B2019,$L2007,0)","v":0},{"$f":"IF(I2005='1 Données d''entrée'!$C$333+'1 Données d''entrée'!$C$334+$B2019,$L2007,0)","v":0},{"$f":"IF(J2005='1 Données d''entrée'!$C$333+'1 Données d''entrée'!$C$334+$B2019,$L2007,0)","v":0},{"$f":"IF(K2005='1 Données d''entrée'!$C$333+'1 Données d''entrée'!$C$334+$B2019,$L2007,0)","v":0},{"$f":"IF(L2005='1 Données d''entrée'!$C$333+'1 Données d''entrée'!$C$334+$B2019,$L2007,0)","v":{"$error":"#DIV/0!"}},{"$f":"IF(M2005='1 Données d''entrée'!$C$333+'1 Données d''entrée'!$C$334+$B2019,$L2007,0)","v":0},{"$f":"IF(N2005='1 Données d''entrée'!$C$333+'1 Données d''entrée'!$C$334+$B2019,$L2007,0)","v":0},{"$f":"IF(O2005='1 Données d''entrée'!$C$333+'1 Données d''entrée'!$C$334+$B2019,$L2007,0)","v":0},{"$f":"IF(P2005='1 Données d''entrée'!$C$333+'1 Données d''entrée'!$C$334+$B2019,$L2007,0)","v":0},{"$f":"IF(Q2005='1 Données d''entrée'!$C$333+'1 Données d''entrée'!$C$334+$B2019,$L2007,0)","v":0},{"$f":"IF(R2005='1 Données d''entrée'!$C$333+'1 Données d''entrée'!$C$334+$B2019,$L2007,0)","v":0},{"$f":"IF(S2005='1 Données d''entrée'!$C$333+'1 Données d''entrée'!$C$334+$B2019,$L2007,0)","v":0},{"$f":"IF(T2005='1 Données d''entrée'!$C$333+'1 Données d''entrée'!$C$334+$B2019,$L2007,0)","v":0},{"$f":"IF(U2005='1 Données d''entrée'!$C$333+'1 Données d''entrée'!$C$334+$B2019,$L2007,0)","v":0},{"$f":"IF(V2005='1 Données d''entrée'!$C$333+'1 Données d''entrée'!$C$334+$B2019,$L2007,0)","v":0}]
[null,"Période de prêt nouveau"]
["Paiement d'intérêts",0,0,0,0,0,0,0,0,0,0,0,0,0,0,0,0,0,0,0,0,0]
["Paiement d'intêrets",1,0,{"$f":"IF(C1929<1+$B2009,0,IF(C1929<'1 Données d''entrée'!$C$334+'1 Données d''entrée'!$C$333+1+$B2009,'1 Données d''entrée'!$C$332*($C2007-SUM($C2010:C2010)),0))","v":0},{"$f":"IF(D1929<1+$B2009,0,IF(D1929<'1 Données d''entrée'!$C$334+'1 Données d''entrée'!$C$333+1+$B2009,'1 Données d''entrée'!$C$332*($C2007-SUM($C2010:D2010)),0))","v":0},{"$f":"IF(E1929<1+$B2009,0,IF(E1929<'1 Données d''entrée'!$C$334+'1 Données d''entrée'!$C$333+1+$B2009,'1 Données d''entrée'!$C$332*($C2007-SUM($C2010:E2010)),0))","v":0},{"$f":"IF(F1929<1+$B2009,0,IF(F1929<'1 Données d''entrée'!$C$334+'1 Données d''entrée'!$C$333+1+$B2009,'1 Données d''entrée'!$C$332*($C2007-SUM($C2010:F2010)),0))","v":0},{"$f":"IF(G1929<1+$B2009,0,IF(G1929<'1 Données d''entrée'!$C$334+'1 Données d''entrée'!$C$333+1+$B2009,'1 Données d''entrée'!$C$332*($C2007-SUM($C2010:G2010)),0))","v":0},{"$f":"IF(H1929<1+$B2009,0,IF(H1929<'1 Données d''entrée'!$C$334+'1 Données d''entrée'!$C$333+1+$B2009,'1 Données d''entrée'!$C$332*($C2007-SUM($C2010:H2010)),0))","v":0},{"$f":"IF(I1929<1+$B2009,0,IF(I1929<'1 Données d''entrée'!$C$334+'1 Données d''entrée'!$C$333+1+$B2009,'1 Données d''entrée'!$C$332*($C2007-SUM($C2010:I2010)),0))","v":0},{"$f":"IF(J1929<1+$B2009,0,IF(J1929<'1 Données d''entrée'!$C$334+'1 Données d''entrée'!$C$333+1+$B2009,'1 Données d''entrée'!$C$332*($C2007-SUM($C2010:J2010)),0))","v":0},{"$f":"IF(K1929<1+$B2009,0,IF(K1929<'1 Données d''entrée'!$C$334+'1 Données d''entrée'!$C$333+1+$B2009,'1 Données d''entrée'!$C$332*($C2007-SUM($C2010:K2010)),0))","v":0},{"$f":"IF(L1929<1+$B2009,0,IF(L1929<'1 Données d''entrée'!$C$334+'1 Données d''entrée'!$C$333+1+$B2009,'1 Données d''entrée'!$C$332*($C2007-SUM($C2010:L2010)),0))","v":0},{"$f":"IF(M1929<1+$B2009,0,IF(M1929<'1 Données d''entrée'!$C$334+'1 Données d''entrée'!$C$333+1+$B2009,'1 Données d''entrée'!$C$332*($C2007-SUM($C2010:M2010)),0))","v":0},{"$f":"IF(N1929<1+$B2009,0,IF(N1929<'1 Données d''entrée'!$C$334+'1 Données d''entrée'!$C$333+1+$B2009,'1 Données d''entrée'!$C$332*($C2007-SUM($C2010:N2010)),0))","v":0},{"$f":"IF(O1929<1+$B2009,0,IF(O1929<'1 Données d''entrée'!$C$334+'1 Données d''entrée'!$C$333+1+$B2009,'1 Données d''entrée'!$C$332*($C2007-SUM($C2010:O2010)),0))","v":0},{"$f":"IF(P1929<1+$B2009,0,IF(P1929<'1 Données d''entrée'!$C$334+'1 Données d''entrée'!$C$333+1+$B2009,'1 Données d''entrée'!$C$332*($C2007-SUM($C2010:P2010)),0))","v":0},{"$f":"IF(Q1929<1+$B2009,0,IF(Q1929<'1 Données d''entrée'!$C$334+'1 Données d''entrée'!$C$333+1+$B2009,'1 Données d''entrée'!$C$332*($C2007-SUM($C2010:Q2010)),0))","v":0},{"$f":"IF(R1929<1+$B2009,0,IF(R1929<'1 Données d''entrée'!$C$334+'1 Données d''entrée'!$C$333+1+$B2009,'1 Données d''entrée'!$C$332*($C2007-SUM($C2010:R2010)),0))","v":0},{"$f":"IF(S1929<1+$B2009,0,IF(S1929<'1 Données d''entrée'!$C$334+'1 Données d''entrée'!$C$333+1+$B2009,'1 Données d''entrée'!$C$332*($C2007-SUM($C2010:S2010)),0))","v":0},{"$f":"IF(T1929<1+$B2009,0,IF(T1929<'1 Données d''entrée'!$C$334+'1 Données d''entrée'!$C$333+1+$B2009,'1 Données d''entrée'!$C$332*($C2007-SUM($C2010:T2010)),0))","v":0},{"$f":"IF(U1929<1+$B2009,0,IF(U1929<'1 Données d''entrée'!$C$334+'1 Données d''entrée'!$C$333+1+$B2009,'1 Données d''entrée'!$C$332*($C2007-SUM($C2010:U2010)),0))","v":0}]
["Paiement d'intêrets",2,0,{"$f":"IF(C1929<1+$B2010,0,IF(C1929<'1 Données d''entrée'!$C$334+'1 Données d''entrée'!$C$333+1+$B2010,'1 Données d''entrée'!$C$332*($D2007-SUM($C2011:C2011)),0))","v":0},{"$f":"IF(D1929<1+$B2010,0,IF(D1929<'1 Données d''entrée'!$C$334+'1 Données d''entrée'!$C$333+1+$B2010,'1 Données d''entrée'!$C$332*($D2007-SUM($C2011:D2011)),0))","v":0},{"$f":"IF(E1929<1+$B2010,0,IF(E1929<'1 Données d''entrée'!$C$334+'1 Données d''entrée'!$C$333+1+$B2010,'1 Données d''entrée'!$C$332*($D2007-SUM($C2011:E2011)),0))","v":0},{"$f":"IF(F1929<1+$B2010,0,IF(F1929<'1 Données d''entrée'!$C$334+'1 Données d''entrée'!$C$333+1+$B2010,'1 Données d''entrée'!$C$332*($D2007-SUM($C2011:F2011)),0))","v":0},{"$f":"IF(G1929<1+$B2010,0,IF(G1929<'1 Données d''entrée'!$C$334+'1 Données d''entrée'!$C$333+1+$B2010,'1 Données d''entrée'!$C$332*($D2007-SUM($C2011:G2011)),0))","v":0},{"$f":"IF(H1929<1+$B2010,0,IF(H1929<'1 Données d''entrée'!$C$334+'1 Données d''entrée'!$C$333+1+$B2010,'1 Données d''entrée'!$C$332*($D2007-SUM($C2011:H2011)),0))","v":0},{"$f":"IF(I1929<1+$B2010,0,IF(I1929<'1 Données d''entrée'!$C$334+'1 Données d''entrée'!$C$333+1+$B2010,'1 Données d''entrée'!$C$332*($D2007-SUM($C2011:I2011)),0))","v":0},{"$f":"IF(J1929<1+$B2010,0,IF(J1929<'1 Données d''entrée'!$C$334+'1 Données d''entrée'!$C$333+1+$B2010,'1 Données d''entrée'!$C$332*($D2007-SUM($C2011:J2011)),0))","v":0},{"$f":"IF(K1929<1+$B2010,0,IF(K1929<'1 Données d''entrée'!$C$334+'1 Données d''entrée'!$C$333+1+$B2010,'1 Données d''entrée'!$C$332*($D2007-SUM($C2011:K2011)),0))","v":0},{"$f":"IF(L1929<1+$B2010,0,IF(L1929<'1 Données d''entrée'!$C$334+'1 Données d''entrée'!$C$333+1+$B2010,'1 Données d''entrée'!$C$332*($D2007-SUM($C2011:L2011)),0))","v":0},{"$f":"IF(M1929<1+$B2010,0,IF(M1929<'1 Données d''entrée'!$C$334+'1 Données d''entrée'!$C$333+1+$B2010,'1 Données d''entrée'!$C$332*($D2007-SUM($C2011:M2011)),0))","v":0},{"$f":"IF(N1929<1+$B2010,0,IF(N1929<'1 Données d''entrée'!$C$334+'1 Données d''entrée'!$C$333+1+$B2010,'1 Données d''entrée'!$C$332*($D2007-SUM($C2011:N2011)),0))","v":0},{"$f":"IF(O1929<1+$B2010,0,IF(O1929<'1 Données d''entrée'!$C$334+'1 Données d''entrée'!$C$333+1+$B2010,'1 Données d''entrée'!$C$332*($D2007-SUM($C2011:O2011)),0))","v":0},{"$f":"IF(P1929<1+$B2010,0,IF(P1929<'1 Données d''entrée'!$C$334+'1 Données d''entrée'!$C$333+1+$B2010,'1 Données d''entrée'!$C$332*($D2007-SUM($C2011:P2011)),0))","v":0},{"$f":"IF(Q1929<1+$B2010,0,IF(Q1929<'1 Données d''entrée'!$C$334+'1 Données d''entrée'!$C$333+1+$B2010,'1 Données d''entrée'!$C$332*($D2007-SUM($C2011:Q2011)),0))","v":0},{"$f":"IF(R1929<1+$B2010,0,IF(R1929<'1 Données d''entrée'!$C$334+'1 Données d''entrée'!$C$333+1+$B2010,'1 Données d''entrée'!$C$332*($D2007-SUM($C2011:R2011)),0))","v":0},{"$f":"IF(S1929<1+$B2010,0,IF(S1929<'1 Données d''entrée'!$C$334+'1 Données d''entrée'!$C$333+1+$B2010,'1 Données d''entrée'!$C$332*($D2007-SUM($C2011:S2011)),0))","v":0},{"$f":"IF(T1929<1+$B2010,0,IF(T1929<'1 Données d''entrée'!$C$334+'1 Données d''entrée'!$C$333+1+$B2010,'1 Données d''entrée'!$C$332*($D2007-SUM($C2011:T2011)),0))","v":0},{"$f":"IF(U1929<1+$B2010,0,IF(U1929<'1 Données d''entrée'!$C$334+'1 Données d''entrée'!$C$333+1+$B2010,'1 Données d''entrée'!$C$332*($D2007-SUM($C2011:U2011)),0))","v":0}]
["Paiement d'intêrets",3,0,{"$f":"IF(C1929<1+$B2011,0,IF(C1929<'1 Données d''entrée'!$C$334+'1 Données d''entrée'!$C$333+1+$B2011,'1 Données d''entrée'!$C$332*($E2007-SUM($C2012:C2012)),0))","v":0},{"$f":"IF(D1929<1+$B2011,0,IF(D1929<'1 Données d''entrée'!$C$334+'1 Données d''entrée'!$C$333+1+$B2011,'1 Données d''entrée'!$C$332*($E2007-SUM($C2012:D2012)),0))","v":0},{"$f":"IF(E1929<1+$B2011,0,IF(E1929<'1 Données d''entrée'!$C$334+'1 Données d''entrée'!$C$333+1+$B2011,'1 Données d''entrée'!$C$332*($E2007-SUM($C2012:E2012)),0))","v":0},{"$f":"IF(F1929<1+$B2011,0,IF(F1929<'1 Données d''entrée'!$C$334+'1 Données d''entrée'!$C$333+1+$B2011,'1 Données d''entrée'!$C$332*($E2007-SUM($C2012:F2012)),0))","v":0},{"$f":"IF(G1929<1+$B2011,0,IF(G1929<'1 Données d''entrée'!$C$334+'1 Données d''entrée'!$C$333+1+$B2011,'1 Données d''entrée'!$C$332*($E2007-SUM($C2012:G2012)),0))","v":0},{"$f":"IF(H1929<1+$B2011,0,IF(H1929<'1 Données d''entrée'!$C$334+'1 Données d''entrée'!$C$333+1+$B2011,'1 Données d''entrée'!$C$332*($E2007-SUM($C2012:H2012)),0))","v":0},{"$f":"IF(I1929<1+$B2011,0,IF(I1929<'1 Données d''entrée'!$C$334+'1 Données d''entrée'!$C$333+1+$B2011,'1 Données d''entrée'!$C$332*($E2007-SUM($C2012:I2012)),0))","v":0},{"$f":"IF(J1929<1+$B2011,0,IF(J1929<'1 Données d''entrée'!$C$334+'1 Données d''entrée'!$C$333+1+$B2011,'1 Données d''entrée'!$C$332*($E2007-SUM($C2012:J2012)),0))","v":0},{"$f":"IF(K1929<1+$B2011,0,IF(K1929<'1 Données d''entrée'!$C$334+'1 Données d''entrée'!$C$333+1+$B2011,'1 Données d''entrée'!$C$332*($E2007-SUM($C2012:K2012)),0))","v":0},{"$f":"IF(L1929<1+$B2011,0,IF(L1929<'1 Données d''entrée'!$C$334+'1 Données d''entrée'!$C$333+1+$B2011,'1 Données d''entrée'!$C$332*($E2007-SUM($C2012:L2012)),0))","v":0},{"$f":"IF(M1929<1+$B2011,0,IF(M1929<'1 Données d''entrée'!$C$334+'1 Données d''entrée'!$C$333+1+$B2011,'1 Données d''entrée'!$C$332*($E2007-SUM($C2012:M2012)),0))","v":0},{"$f":"IF(N1929<1+$B2011,0,IF(N1929<'1 Données d''entrée'!$C$334+'1 Données d''entrée'!$C$333+1+$B2011,'1 Données d''entrée'!$C$332*($E2007-SUM($C2012:N2012)),0))","v":0},{"$f":"IF(O1929<1+$B2011,0,IF(O1929<'1 Données d''entrée'!$C$334+'1 Données d''entrée'!$C$333+1+$B2011,'1 Données d''entrée'!$C$332*($E2007-SUM($C2012:O2012)),0))","v":0},{"$f":"IF(P1929<1+$B2011,0,IF(P1929<'1 Données d''entrée'!$C$334+'1 Données d''entrée'!$C$333+1+$B2011,'1 Données d''entrée'!$C$332*($E2007-SUM($C2012:P2012)),0))","v":0},{"$f":"IF(Q1929<1+$B2011,0,IF(Q1929<'1 Données d''entrée'!$C$334+'1 Données d''entrée'!$C$333+1+$B2011,'1 Données d''entrée'!$C$332*($E2007-SUM($C2012:Q2012)),0))","v":0},{"$f":"IF(R1929<1+$B2011,0,IF(R1929<'1 Données d''entrée'!$C$334+'1 Données d''entrée'!$C$333+1+$B2011,'1 Données d''entrée'!$C$332*($E2007-SUM($C2012:R2012)),0))","v":0},{"$f":"IF(S1929<1+$B2011,0,IF(S1929<'1 Données d''entrée'!$C$334+'1 Données d''entrée'!$C$333+1+$B2011,'1 Données d''entrée'!$C$332*($E2007-SUM($C2012:S2012)),0))","v":0},{"$f":"IF(T1929<1+$B2011,0,IF(T1929<'1 Données d''entrée'!$C$334+'1 Données d''entrée'!$C$333+1+$B2011,'1 Données d''entrée'!$C$332*($E2007-SUM($C2012:T2012)),0))","v":0},{"$f":"IF(U1929<1+$B2011,0,IF(U1929<'1 Données d''entrée'!$C$334+'1 Données d''entrée'!$C$333+1+$B2011,'1 Données d''entrée'!$C$332*($E2007-SUM($C2012:U2012)),0))","v":0}]
["Paiement d'intêrets",4,0,{"$f":"IF(C1929<1+$B2012,0,IF(C1929<'1 Données d''entrée'!$C$334+'1 Données d''entrée'!$C$333+1+$B2012,'1 Données d''entrée'!$C$332*($F2007-SUM($C2013:C2013)),0))","v":0},{"$f":"IF(D1929<1+$B2012,0,IF(D1929<'1 Données d''entrée'!$C$334+'1 Données d''entrée'!$C$333+1+$B2012,'1 Données d''entrée'!$C$332*($F2007-SUM($C2013:D2013)),0))","v":0},{"$f":"IF(E1929<1+$B2012,0,IF(E1929<'1 Données d''entrée'!$C$334+'1 Données d''entrée'!$C$333+1+$B2012,'1 Données d''entrée'!$C$332*($F2007-SUM($C2013:E2013)),0))","v":0},{"$f":"IF(F1929<1+$B2012,0,IF(F1929<'1 Données d''entrée'!$C$334+'1 Données d''entrée'!$C$333+1+$B2012,'1 Données d''entrée'!$C$332*($F2007-SUM($C2013:F2013)),0))","v":0},{"$f":"IF(G1929<1+$B2012,0,IF(G1929<'1 Données d''entrée'!$C$334+'1 Données d''entrée'!$C$333+1+$B2012,'1 Données d''entrée'!$C$332*($F2007-SUM($C2013:G2013)),0))","v":0},{"$f":"IF(H1929<1+$B2012,0,IF(H1929<'1 Données d''entrée'!$C$334+'1 Données d''entrée'!$C$333+1+$B2012,'1 Données d''entrée'!$C$332*($F2007-SUM($C2013:H2013)),0))","v":0},{"$f":"IF(I1929<1+$B2012,0,IF(I1929<'1 Données d''entrée'!$C$334+'1 Données d''entrée'!$C$333+1+$B2012,'1 Données d''entrée'!$C$332*($F2007-SUM($C2013:I2013)),0))","v":0},{"$f":"IF(J1929<1+$B2012,0,IF(J1929<'1 Données d''entrée'!$C$334+'1 Données d''entrée'!$C$333+1+$B2012,'1 Données d''entrée'!$C$332*($F2007-SUM($C2013:J2013)),0))","v":0},{"$f":"IF(K1929<1+$B2012,0,IF(K1929<'1 Données d''entrée'!$C$334+'1 Données d''entrée'!$C$333+1+$B2012,'1 Données d''entrée'!$C$332*($F2007-SUM($C2013:K2013)),0))","v":0},{"$f":"IF(L1929<1+$B2012,0,IF(L1929<'1 Données d''entrée'!$C$334+'1 Données d''entrée'!$C$333+1+$B2012,'1 Données d''entrée'!$C$332*($F2007-SUM($C2013:L2013)),0))","v":0},{"$f":"IF(M1929<1+$B2012,0,IF(M1929<'1 Données d''entrée'!$C$334+'1 Données d''entrée'!$C$333+1+$B2012,'1 Données d''entrée'!$C$332*($F2007-SUM($C2013:M2013)),0))","v":0},{"$f":"IF(N1929<1+$B2012,0,IF(N1929<'1 Données d''entrée'!$C$334+'1 Données d''entrée'!$C$333+1+$B2012,'1 Données d''entrée'!$C$332*($F2007-SUM($C2013:N2013)),0))","v":0},{"$f":"IF(O1929<1+$B2012,0,IF(O1929<'1 Données d''entrée'!$C$334+'1 Données d''entrée'!$C$333+1+$B2012,'1 Données d''entrée'!$C$332*($F2007-SUM($C2013:O2013)),0))","v":0},{"$f":"IF(P1929<1+$B2012,0,IF(P1929<'1 Données d''entrée'!$C$334+'1 Données d''entrée'!$C$333+1+$B2012,'1 Données d''entrée'!$C$332*($F2007-SUM($C2013:P2013)),0))","v":0},{"$f":"IF(Q1929<1+$B2012,0,IF(Q1929<'1 Données d''entrée'!$C$334+'1 Données d''entrée'!$C$333+1+$B2012,'1 Données d''entrée'!$C$332*($F2007-SUM($C2013:Q2013)),0))","v":0},{"$f":"IF(R1929<1+$B2012,0,IF(R1929<'1 Données d''entrée'!$C$334+'1 Données d''entrée'!$C$333+1+$B2012,'1 Données d''entrée'!$C$332*($F2007-SUM($C2013:R2013)),0))","v":0},{"$f":"IF(S1929<1+$B2012,0,IF(S1929<'1 Données d''entrée'!$C$334+'1 Données d''entrée'!$C$333+1+$B2012,'1 Données d''entrée'!$C$332*($F2007-SUM($C2013:S2013)),0))","v":0},{"$f":"IF(T1929<1+$B2012,0,IF(T1929<'1 Données d''entrée'!$C$334+'1 Données d''entrée'!$C$333+1+$B2012,'1 Données d''entrée'!$C$332*($F2007-SUM($C2013:T2013)),0))","v":0},{"$f":"IF(U1929<1+$B2012,0,IF(U1929<'1 Données d''entrée'!$C$334+'1 Données d''entrée'!$C$333+1+$B2012,'1 Données d''entrée'!$C$332*($F2007-SUM($C2013:U2013)),0))","v":0}]
["Paiement d'intêrets",5,0,{"$f":"IF(C1929<1+$B2013,0,IF(C1929<'1 Données d''entrée'!$C$334+'1 Données d''entrée'!$C$333+1+$B2013,'1 Données d''entrée'!$C$332*($G2007-SUM($C2014:C2014)),0))","v":0},{"$f":"IF(D1929<1+$B2013,0,IF(D1929<'1 Données d''entrée'!$C$334+'1 Données d''entrée'!$C$333+1+$B2013,'1 Données d''entrée'!$C$332*($G2007-SUM($C2014:D2014)),0))","v":0},{"$f":"IF(E1929<1+$B2013,0,IF(E1929<'1 Données d''entrée'!$C$334+'1 Données d''entrée'!$C$333+1+$B2013,'1 Données d''entrée'!$C$332*($G2007-SUM($C2014:E2014)),0))","v":0},{"$f":"IF(F1929<1+$B2013,0,IF(F1929<'1 Données d''entrée'!$C$334+'1 Données d''entrée'!$C$333+1+$B2013,'1 Données d''entrée'!$C$332*($G2007-SUM($C2014:F2014)),0))","v":0},{"$f":"IF(G1929<1+$B2013,0,IF(G1929<'1 Données d''entrée'!$C$334+'1 Données d''entrée'!$C$333+1+$B2013,'1 Données d''entrée'!$C$332*($G2007-SUM($C2014:G2014)),0))","v":0},{"$f":"IF(H1929<1+$B2013,0,IF(H1929<'1 Données d''entrée'!$C$334+'1 Données d''entrée'!$C$333+1+$B2013,'1 Données d''entrée'!$C$332*($G2007-SUM($C2014:H2014)),0))","v":0},{"$f":"IF(I1929<1+$B2013,0,IF(I1929<'1 Données d''entrée'!$C$334+'1 Données d''entrée'!$C$333+1+$B2013,'1 Données d''entrée'!$C$332*($G2007-SUM($C2014:I2014)),0))","v":0},{"$f":"IF(J1929<1+$B2013,0,IF(J1929<'1 Données d''entrée'!$C$334+'1 Données d''entrée'!$C$333+1+$B2013,'1 Données d''entrée'!$C$332*($G2007-SUM($C2014:J2014)),0))","v":0},{"$f":"IF(K1929<1+$B2013,0,IF(K1929<'1 Données d''entrée'!$C$334+'1 Données d''entrée'!$C$333+1+$B2013,'1 Données d''entrée'!$C$332*($G2007-SUM($C2014:K2014)),0))","v":0},{"$f":"IF(L1929<1+$B2013,0,IF(L1929<'1 Données d''entrée'!$C$334+'1 Données d''entrée'!$C$333+1+$B2013,'1 Données d''entrée'!$C$332*($G2007-SUM($C2014:L2014)),0))","v":0},{"$f":"IF(M1929<1+$B2013,0,IF(M1929<'1 Données d''entrée'!$C$334+'1 Données d''entrée'!$C$333+1+$B2013,'1 Données d''entrée'!$C$332*($G2007-SUM($C2014:M2014)),0))","v":0},{"$f":"IF(N1929<1+$B2013,0,IF(N1929<'1 Données d''entrée'!$C$334+'1 Données d''entrée'!$C$333+1+$B2013,'1 Données d''entrée'!$C$332*($G2007-SUM($C2014:N2014)),0))","v":0},{"$f":"IF(O1929<1+$B2013,0,IF(O1929<'1 Données d''entrée'!$C$334+'1 Données d''entrée'!$C$333+1+$B2013,'1 Données d''entrée'!$C$332*($G2007-SUM($C2014:O2014)),0))","v":0},{"$f":"IF(P1929<1+$B2013,0,IF(P1929<'1 Données d''entrée'!$C$334+'1 Données d''entrée'!$C$333+1+$B2013,'1 Données d''entrée'!$C$332*($G2007-SUM($C2014:P2014)),0))","v":0},{"$f":"IF(Q1929<1+$B2013,0,IF(Q1929<'1 Données d''entrée'!$C$334+'1 Données d''entrée'!$C$333+1+$B2013,'1 Données d''entrée'!$C$332*($G2007-SUM($C2014:Q2014)),0))","v":0},{"$f":"IF(R1929<1+$B2013,0,IF(R1929<'1 Données d''entrée'!$C$334+'1 Données d''entrée'!$C$333+1+$B2013,'1 Données d''entrée'!$C$332*($G2007-SUM($C2014:R2014)),0))","v":0},{"$f":"IF(S1929<1+$B2013,0,IF(S1929<'1 Données d''entrée'!$C$334+'1 Données d''entrée'!$C$333+1+$B2013,'1 Données d''entrée'!$C$332*($G2007-SUM($C2014:S2014)),0))","v":0},{"$f":"IF(T1929<1+$B2013,0,IF(T1929<'1 Données d''entrée'!$C$334+'1 Données d''entrée'!$C$333+1+$B2013,'1 Données d''entrée'!$C$332*($G2007-SUM($C2014:T2014)),0))","v":0},{"$f":"IF(U1929<1+$B2013,0,IF(U1929<'1 Données d''entrée'!$C$334+'1 Données d''entrée'!$C$333+1+$B2013,'1 Données d''entrée'!$C$332*($G2007-SUM($C2014:U2014)),0))","v":0}]
["Paiement d'intêrets",6,0,{"$f":"IF(C1929<1+$B2014,0,IF(C1929<'1 Données d''entrée'!$C$334+'1 Données d''entrée'!$C$333+1+$B2014,'1 Données d''entrée'!$C$332*($H2007-SUM($C2015:C2015)),0))","v":0},{"$f":"IF(D1929<1+$B2014,0,IF(D1929<'1 Données d''entrée'!$C$334+'1 Données d''entrée'!$C$333+1+$B2014,'1 Données d''entrée'!$C$332*($H2007-SUM($C2015:D2015)),0))","v":0},{"$f":"IF(E1929<1+$B2014,0,IF(E1929<'1 Données d''entrée'!$C$334+'1 Données d''entrée'!$C$333+1+$B2014,'1 Données d''entrée'!$C$332*($H2007-SUM($C2015:E2015)),0))","v":0},{"$f":"IF(F1929<1+$B2014,0,IF(F1929<'1 Données d''entrée'!$C$334+'1 Données d''entrée'!$C$333+1+$B2014,'1 Données d''entrée'!$C$332*($H2007-SUM($C2015:F2015)),0))","v":0},{"$f":"IF(G1929<1+$B2014,0,IF(G1929<'1 Données d''entrée'!$C$334+'1 Données d''entrée'!$C$333+1+$B2014,'1 Données d''entrée'!$C$332*($H2007-SUM($C2015:G2015)),0))","v":0},{"$f":"IF(H1929<1+$B2014,0,IF(H1929<'1 Données d''entrée'!$C$334+'1 Données d''entrée'!$C$333+1+$B2014,'1 Données d''entrée'!$C$332*($H2007-SUM($C2015:H2015)),0))","v":0},{"$f":"IF(I1929<1+$B2014,0,IF(I1929<'1 Données d''entrée'!$C$334+'1 Données d''entrée'!$C$333+1+$B2014,'1 Données d''entrée'!$C$332*($H2007-SUM($C2015:I2015)),0))","v":0},{"$f":"IF(J1929<1+$B2014,0,IF(J1929<'1 Données d''entrée'!$C$334+'1 Données d''entrée'!$C$333+1+$B2014,'1 Données d''entrée'!$C$332*($H2007-SUM($C2015:J2015)),0))","v":0},{"$f":"IF(K1929<1+$B2014,0,IF(K1929<'1 Données d''entrée'!$C$334+'1 Données d''entrée'!$C$333+1+$B2014,'1 Données d''entrée'!$C$332*($H2007-SUM($C2015:K2015)),0))","v":0},{"$f":"IF(L1929<1+$B2014,0,IF(L1929<'1 Données d''entrée'!$C$334+'1 Données d''entrée'!$C$333+1+$B2014,'1 Données d''entrée'!$C$332*($H2007-SUM($C2015:L2015)),0))","v":0},{"$f":"IF(M1929<1+$B2014,0,IF(M1929<'1 Données d''entrée'!$C$334+'1 Données d''entrée'!$C$333+1+$B2014,'1 Données d''entrée'!$C$332*($H2007-SUM($C2015:M2015)),0))","v":0},{"$f":"IF(N1929<1+$B2014,0,IF(N1929<'1 Données d''entrée'!$C$334+'1 Données d''entrée'!$C$333+1+$B2014,'1 Données d''entrée'!$C$332*($H2007-SUM($C2015:N2015)),0))","v":0},{"$f":"IF(O1929<1+$B2014,0,IF(O1929<'1 Données d''entrée'!$C$334+'1 Données d''entrée'!$C$333+1+$B2014,'1 Données d''entrée'!$C$332*($H2007-SUM($C2015:O2015)),0))","v":0},{"$f":"IF(P1929<1+$B2014,0,IF(P1929<'1 Données d''entrée'!$C$334+'1 Données d''entrée'!$C$333+1+$B2014,'1 Données d''entrée'!$C$332*($H2007-SUM($C2015:P2015)),0))","v":0},{"$f":"IF(Q1929<1+$B2014,0,IF(Q1929<'1 Données d''entrée'!$C$334+'1 Données d''entrée'!$C$333+1+$B2014,'1 Données d''entrée'!$C$332*($H2007-SUM($C2015:Q2015)),0))","v":0},{"$f":"IF(R1929<1+$B2014,0,IF(R1929<'1 Données d''entrée'!$C$334+'1 Données d''entrée'!$C$333+1+$B2014,'1 Données d''entrée'!$C$332*($H2007-SUM($C2015:R2015)),0))","v":0},{"$f":"IF(S1929<1+$B2014,0,IF(S1929<'1 Données d''entrée'!$C$334+'1 Données d''entrée'!$C$333+1+$B2014,'1 Données d''entrée'!$C$332*($H2007-SUM($C2015:S2015)),0))","v":0},{"$f":"IF(T1929<1+$B2014,0,IF(T1929<'1 Données d''entrée'!$C$334+'1 Données d''entrée'!$C$333+1+$B2014,'1 Données d''entrée'!$C$332*($H2007-SUM($C2015:T2015)),0))","v":0},{"$f":"IF(U1929<1+$B2014,0,IF(U1929<'1 Données d''entrée'!$C$334+'1 Données d''entrée'!$C$333+1+$B2014,'1 Données d''entrée'!$C$332*($H2007-SUM($C2015:U2015)),0))","v":0}]
["Paiement d'intêrets",7,0,{"$f":"IF(C1929<1+$B2015,0,IF(C1929<'1 Données d''entrée'!$C$334+'1 Données d''entrée'!$C$333+1+$B2015,'1 Données d''entrée'!$C$332*($I2007-SUM($C2016:C2016)),0))","v":0},{"$f":"IF(D1929<1+$B2015,0,IF(D1929<'1 Données d''entrée'!$C$334+'1 Données d''entrée'!$C$333+1+$B2015,'1 Données d''entrée'!$C$332*($I2007-SUM($C2016:D2016)),0))","v":0},{"$f":"IF(E1929<1+$B2015,0,IF(E1929<'1 Données d''entrée'!$C$334+'1 Données d''entrée'!$C$333+1+$B2015,'1 Données d''entrée'!$C$332*($I2007-SUM($C2016:E2016)),0))","v":0},{"$f":"IF(F1929<1+$B2015,0,IF(F1929<'1 Données d''entrée'!$C$334+'1 Données d''entrée'!$C$333+1+$B2015,'1 Données d''entrée'!$C$332*($I2007-SUM($C2016:F2016)),0))","v":0},{"$f":"IF(G1929<1+$B2015,0,IF(G1929<'1 Données d''entrée'!$C$334+'1 Données d''entrée'!$C$333+1+$B2015,'1 Données d''entrée'!$C$332*($I2007-SUM($C2016:G2016)),0))","v":0},{"$f":"IF(H1929<1+$B2015,0,IF(H1929<'1 Données d''entrée'!$C$334+'1 Données d''entrée'!$C$333+1+$B2015,'1 Données d''entrée'!$C$332*($I2007-SUM($C2016:H2016)),0))","v":0},{"$f":"IF(I1929<1+$B2015,0,IF(I1929<'1 Données d''entrée'!$C$334+'1 Données d''entrée'!$C$333+1+$B2015,'1 Données d''entrée'!$C$332*($I2007-SUM($C2016:I2016)),0))","v":0},{"$f":"IF(J1929<1+$B2015,0,IF(J1929<'1 Données d''entrée'!$C$334+'1 Données d''entrée'!$C$333+1+$B2015,'1 Données d''entrée'!$C$332*($I2007-SUM($C2016:J2016)),0))","v":0},{"$f":"IF(K1929<1+$B2015,0,IF(K1929<'1 Données d''entrée'!$C$334+'1 Données d''entrée'!$C$333+1+$B2015,'1 Données d''entrée'!$C$332*($I2007-SUM($C2016:K2016)),0))","v":0},{"$f":"IF(L1929<1+$B2015,0,IF(L1929<'1 Données d''entrée'!$C$334+'1 Données d''entrée'!$C$333+1+$B2015,'1 Données d''entrée'!$C$332*($I2007-SUM($C2016:L2016)),0))","v":0},{"$f":"IF(M1929<1+$B2015,0,IF(M1929<'1 Données d''entrée'!$C$334+'1 Données d''entrée'!$C$333+1+$B2015,'1 Données d''entrée'!$C$332*($I2007-SUM($C2016:M2016)),0))","v":0},{"$f":"IF(N1929<1+$B2015,0,IF(N1929<'1 Données d''entrée'!$C$334+'1 Données d''entrée'!$C$333+1+$B2015,'1 Données d''entrée'!$C$332*($I2007-SUM($C2016:N2016)),0))","v":0},{"$f":"IF(O1929<1+$B2015,0,IF(O1929<'1 Données d''entrée'!$C$334+'1 Données d''entrée'!$C$333+1+$B2015,'1 Données d''entrée'!$C$332*($I2007-SUM($C2016:O2016)),0))","v":0},{"$f":"IF(P1929<1+$B2015,0,IF(P1929<'1 Données d''entrée'!$C$334+'1 Données d''entrée'!$C$333+1+$B2015,'1 Données d''entrée'!$C$332*($I2007-SUM($C2016:P2016)),0))","v":0},{"$f":"IF(Q1929<1+$B2015,0,IF(Q1929<'1 Données d''entrée'!$C$334+'1 Données d''entrée'!$C$333+1+$B2015,'1 Données d''entrée'!$C$332*($I2007-SUM($C2016:Q2016)),0))","v":0},{"$f":"IF(R1929<1+$B2015,0,IF(R1929<'1 Données d''entrée'!$C$334+'1 Données d''entrée'!$C$333+1+$B2015,'1 Données d''entrée'!$C$332*($I2007-SUM($C2016:R2016)),0))","v":0},{"$f":"IF(S1929<1+$B2015,0,IF(S1929<'1 Données d''entrée'!$C$334+'1 Données d''entrée'!$C$333+1+$B2015,'1 Données d''entrée'!$C$332*($I2007-SUM($C2016:S2016)),0))","v":0},{"$f":"IF(T1929<1+$B2015,0,IF(T1929<'1 Données d''entrée'!$C$334+'1 Données d''entrée'!$C$333+1+$B2015,'1 Données d''entrée'!$C$332*($I2007-SUM($C2016:T2016)),0))","v":0},{"$f":"IF(U1929<1+$B2015,0,IF(U1929<'1 Données d''entrée'!$C$334+'1 Données d''entrée'!$C$333+1+$B2015,'1 Données d''entrée'!$C$332*($I2007-SUM($C2016:U2016)),0))","v":0}]
["Paiement d'intêrets",8,0,{"$f":"IF(C1929<1+$B2016,0,IF(C1929<'1 Données d''entrée'!$C$334+'1 Données d''entrée'!$C$333+1+$B2016,'1 Données d''entrée'!$C$332*($J2007-SUM($C2017:C2017)),0))","v":0},{"$f":"IF(D1929<1+$B2016,0,IF(D1929<'1 Données d''entrée'!$C$334+'1 Données d''entrée'!$C$333+1+$B2016,'1 Données d''entrée'!$C$332*($J2007-SUM($C2017:D2017)),0))","v":0},{"$f":"IF(E1929<1+$B2016,0,IF(E1929<'1 Données d''entrée'!$C$334+'1 Données d''entrée'!$C$333+1+$B2016,'1 Données d''entrée'!$C$332*($J2007-SUM($C2017:E2017)),0))","v":0},{"$f":"IF(F1929<1+$B2016,0,IF(F1929<'1 Données d''entrée'!$C$334+'1 Données d''entrée'!$C$333+1+$B2016,'1 Données d''entrée'!$C$332*($J2007-SUM($C2017:F2017)),0))","v":0},{"$f":"IF(G1929<1+$B2016,0,IF(G1929<'1 Données d''entrée'!$C$334+'1 Données d''entrée'!$C$333+1+$B2016,'1 Données d''entrée'!$C$332*($J2007-SUM($C2017:G2017)),0))","v":0},{"$f":"IF(H1929<1+$B2016,0,IF(H1929<'1 Données d''entrée'!$C$334+'1 Données d''entrée'!$C$333+1+$B2016,'1 Données d''entrée'!$C$332*($J2007-SUM($C2017:H2017)),0))","v":0},{"$f":"IF(I1929<1+$B2016,0,IF(I1929<'1 Données d''entrée'!$C$334+'1 Données d''entrée'!$C$333+1+$B2016,'1 Données d''entrée'!$C$332*($J2007-SUM($C2017:I2017)),0))","v":0},{"$f":"IF(J1929<1+$B2016,0,IF(J1929<'1 Données d''entrée'!$C$334+'1 Données d''entrée'!$C$333+1+$B2016,'1 Données d''entrée'!$C$332*($J2007-SUM($C2017:J2017)),0))","v":0},{"$f":"IF(K1929<1+$B2016,0,IF(K1929<'1 Données d''entrée'!$C$334+'1 Données d''entrée'!$C$333+1+$B2016,'1 Données d''entrée'!$C$332*($J2007-SUM($C2017:K2017)),0))","v":0},{"$f":"IF(L1929<1+$B2016,0,IF(L1929<'1 Données d''entrée'!$C$334+'1 Données d''entrée'!$C$333+1+$B2016,'1 Données d''entrée'!$C$332*($J2007-SUM($C2017:L2017)),0))","v":0},{"$f":"IF(M1929<1+$B2016,0,IF(M1929<'1 Données d''entrée'!$C$334+'1 Données d''entrée'!$C$333+1+$B2016,'1 Données d''entrée'!$C$332*($J2007-SUM($C2017:M2017)),0))","v":0},{"$f":"IF(N1929<1+$B2016,0,IF(N1929<'1 Données d''entrée'!$C$334+'1 Données d''entrée'!$C$333+1+$B2016,'1 Données d''entrée'!$C$332*($J2007-SUM($C2017:N2017)),0))","v":0},{"$f":"IF(O1929<1+$B2016,0,IF(O1929<'1 Données d''entrée'!$C$334+'1 Données d''entrée'!$C$333+1+$B2016,'1 Données d''entrée'!$C$332*($J2007-SUM($C2017:O2017)),0))","v":0},{"$f":"IF(P1929<1+$B2016,0,IF(P1929<'1 Données d''entrée'!$C$334+'1 Données d''entrée'!$C$333+1+$B2016,'1 Données d''entrée'!$C$332*($J2007-SUM($C2017:P2017)),0))","v":0},{"$f":"IF(Q1929<1+$B2016,0,IF(Q1929<'1 Données d''entrée'!$C$334+'1 Données d''entrée'!$C$333+1+$B2016,'1 Données d''entrée'!$C$332*($J2007-SUM($C2017:Q2017)),0))","v":0},{"$f":"IF(R1929<1+$B2016,0,IF(R1929<'1 Données d''entrée'!$C$334+'1 Données d''entrée'!$C$333+1+$B2016,'1 Données d''entrée'!$C$332*($J2007-SUM($C2017:R2017)),0))","v":0},{"$f":"IF(S1929<1+$B2016,0,IF(S1929<'1 Données d''entrée'!$C$334+'1 Données d''entrée'!$C$333+1+$B2016,'1 Données d''entrée'!$C$332*($J2007-SUM($C2017:S2017)),0))","v":0},{"$f":"IF(T1929<1+$B2016,0,IF(T1929<'1 Données d''entrée'!$C$334+'1 Données d''entrée'!$C$333+1+$B2016,'1 Données d''entrée'!$C$332*($J2007-SUM($C2017:T2017)),0))","v":0},{"$f":"IF(U1929<1+$B2016,0,IF(U1929<'1 Données d''entrée'!$C$334+'1 Données d''entrée'!$C$333+1+$B2016,'1 Données d''entrée'!$C$332*($J2007-SUM($C2017:U2017)),0))","v":0}]
["Paiement d'intêrets",9,0,{"$f":"IF(C1929<1+$B2017,0,IF(C1929<'1 Données d''entrée'!$C$334+'1 Données d''entrée'!$C$333+1+$B2017,'1 Données d''entrée'!$C$332*($K2007-SUM($C2018:C2018)),0))","v":0},{"$f":"IF(D1929<1+$B2017,0,IF(D1929<'1 Données d''entrée'!$C$334+'1 Données d''entrée'!$C$333+1+$B2017,'1 Données d''entrée'!$C$332*($K2007-SUM($C2018:D2018)),0))","v":0},{"$f":"IF(E1929<1+$B2017,0,IF(E1929<'1 Données d''entrée'!$C$334+'1 Données d''entrée'!$C$333+1+$B2017,'1 Données d''entrée'!$C$332*($K2007-SUM($C2018:E2018)),0))","v":0},{"$f":"IF(F1929<1+$B2017,0,IF(F1929<'1 Données d''entrée'!$C$334+'1 Données d''entrée'!$C$333+1+$B2017,'1 Données d''entrée'!$C$332*($K2007-SUM($C2018:F2018)),0))","v":0},{"$f":"IF(G1929<1+$B2017,0,IF(G1929<'1 Données d''entrée'!$C$334+'1 Données d''entrée'!$C$333+1+$B2017,'1 Données d''entrée'!$C$332*($K2007-SUM($C2018:G2018)),0))","v":0},{"$f":"IF(H1929<1+$B2017,0,IF(H1929<'1 Données d''entrée'!$C$334+'1 Données d''entrée'!$C$333+1+$B2017,'1 Données d''entrée'!$C$332*($K2007-SUM($C2018:H2018)),0))","v":0},{"$f":"IF(I1929<1+$B2017,0,IF(I1929<'1 Données d''entrée'!$C$334+'1 Données d''entrée'!$C$333+1+$B2017,'1 Données d''entrée'!$C$332*($K2007-SUM($C2018:I2018)),0))","v":0},{"$f":"IF(J1929<1+$B2017,0,IF(J1929<'1 Données d''entrée'!$C$334+'1 Données d''entrée'!$C$333+1+$B2017,'1 Données d''entrée'!$C$332*($K2007-SUM($C2018:J2018)),0))","v":0},{"$f":"IF(K1929<1+$B2017,0,IF(K1929<'1 Données d''entrée'!$C$334+'1 Données d''entrée'!$C$333+1+$B2017,'1 Données d''entrée'!$C$332*($K2007-SUM($C2018:K2018)),0))","v":0},{"$f":"IF(L1929<1+$B2017,0,IF(L1929<'1 Données d''entrée'!$C$334+'1 Données d''entrée'!$C$333+1+$B2017,'1 Données d''entrée'!$C$332*($K2007-SUM($C2018:L2018)),0))","v":0},{"$f":"IF(M1929<1+$B2017,0,IF(M1929<'1 Données d''entrée'!$C$334+'1 Données d''entrée'!$C$333+1+$B2017,'1 Données d''entrée'!$C$332*($K2007-SUM($C2018:M2018)),0))","v":0},{"$f":"IF(N1929<1+$B2017,0,IF(N1929<'1 Données d''entrée'!$C$334+'1 Données d''entrée'!$C$333+1+$B2017,'1 Données d''entrée'!$C$332*($K2007-SUM($C2018:N2018)),0))","v":0},{"$f":"IF(O1929<1+$B2017,0,IF(O1929<'1 Données d''entrée'!$C$334+'1 Données d''entrée'!$C$333+1+$B2017,'1 Données d''entrée'!$C$332*($K2007-SUM($C2018:O2018)),0))","v":0},{"$f":"IF(P1929<1+$B2017,0,IF(P1929<'1 Données d''entrée'!$C$334+'1 Données d''entrée'!$C$333+1+$B2017,'1 Données d''entrée'!$C$332*($K2007-SUM($C2018:P2018)),0))","v":0},{"$f":"IF(Q1929<1+$B2017,0,IF(Q1929<'1 Données d''entrée'!$C$334+'1 Données d''entrée'!$C$333+1+$B2017,'1 Données d''entrée'!$C$332*($K2007-SUM($C2018:Q2018)),0))","v":0},{"$f":"IF(R1929<1+$B2017,0,IF(R1929<'1 Données d''entrée'!$C$334+'1 Données d''entrée'!$C$333+1+$B2017,'1 Données d''entrée'!$C$332*($K2007-SUM($C2018:R2018)),0))","v":0},{"$f":"IF(S1929<1+$B2017,0,IF(S1929<'1 Données d''entrée'!$C$334+'1 Données d''entrée'!$C$333+1+$B2017,'1 Données d''entrée'!$C$332*($K2007-SUM($C2018:S2018)),0))","v":0},{"$f":"IF(T1929<1+$B2017,0,IF(T1929<'1 Données d''entrée'!$C$334+'1 Données d''entrée'!$C$333+1+$B2017,'1 Données d''entrée'!$C$332*($K2007-SUM($C2018:T2018)),0))","v":0},{"$f":"IF(U1929<1+$B2017,0,IF(U1929<'1 Données d''entrée'!$C$334+'1 Données d''entrée'!$C$333+1+$B2017,'1 Données d''entrée'!$C$332*($K2007-SUM($C2018:U2018)),0))","v":0}]
["Paiement d'intêrets",10,0,{"$f":"IF(C1929<1+$B2018,0,IF(C1929<'1 Données d''entrée'!$C$334+'1 Données d''entrée'!$C$333+1+$B2018,'1 Données d''entrée'!$C$332*($L2007-SUM($C2019:C2019)),0))","v":0},{"$f":"IF(D1929<1+$B2018,0,IF(D1929<'1 Données d''entrée'!$C$334+'1 Données d''entrée'!$C$333+1+$B2018,'1 Données d''entrée'!$C$332*($L2007-SUM($C2019:D2019)),0))","v":0},{"$f":"IF(E1929<1+$B2018,0,IF(E1929<'1 Données d''entrée'!$C$334+'1 Données d''entrée'!$C$333+1+$B2018,'1 Données d''entrée'!$C$332*($L2007-SUM($C2019:E2019)),0))","v":0},{"$f":"IF(F1929<1+$B2018,0,IF(F1929<'1 Données d''entrée'!$C$334+'1 Données d''entrée'!$C$333+1+$B2018,'1 Données d''entrée'!$C$332*($L2007-SUM($C2019:F2019)),0))","v":0},{"$f":"IF(G1929<1+$B2018,0,IF(G1929<'1 Données d''entrée'!$C$334+'1 Données d''entrée'!$C$333+1+$B2018,'1 Données d''entrée'!$C$332*($L2007-SUM($C2019:G2019)),0))","v":0},{"$f":"IF(H1929<1+$B2018,0,IF(H1929<'1 Données d''entrée'!$C$334+'1 Données d''entrée'!$C$333+1+$B2018,'1 Données d''entrée'!$C$332*($L2007-SUM($C2019:H2019)),0))","v":0},{"$f":"IF(I1929<1+$B2018,0,IF(I1929<'1 Données d''entrée'!$C$334+'1 Données d''entrée'!$C$333+1+$B2018,'1 Données d''entrée'!$C$332*($L2007-SUM($C2019:I2019)),0))","v":0},{"$f":"IF(J1929<1+$B2018,0,IF(J1929<'1 Données d''entrée'!$C$334+'1 Données d''entrée'!$C$333+1+$B2018,'1 Données d''entrée'!$C$332*($L2007-SUM($C2019:J2019)),0))","v":0},{"$f":"IF(K1929<1+$B2018,0,IF(K1929<'1 Données d''entrée'!$C$334+'1 Données d''entrée'!$C$333+1+$B2018,'1 Données d''entrée'!$C$332*($L2007-SUM($C2019:K2019)),0))","v":0},{"$f":"IF(L1929<1+$B2018,0,IF(L1929<'1 Données d''entrée'!$C$334+'1 Données d''entrée'!$C$333+1+$B2018,'1 Données d''entrée'!$C$332*($L2007-SUM($C2019:L2019)),0))","v":0},{"$f":"IF(M1929<1+$B2018,0,IF(M1929<'1 Données d''entrée'!$C$334+'1 Données d''entrée'!$C$333+1+$B2018,'1 Données d''entrée'!$C$332*($L2007-SUM($C2019:M2019)),0))","v":0},{"$f":"IF(N1929<1+$B2018,0,IF(N1929<'1 Données d''entrée'!$C$334+'1 Données d''entrée'!$C$333+1+$B2018,'1 Données d''entrée'!$C$332*($L2007-SUM($C2019:N2019)),0))","v":0},{"$f":"IF(O1929<1+$B2018,0,IF(O1929<'1 Données d''entrée'!$C$334+'1 Données d''entrée'!$C$333+1+$B2018,'1 Données d''entrée'!$C$332*($L2007-SUM($C2019:O2019)),0))","v":0},{"$f":"IF(P1929<1+$B2018,0,IF(P1929<'1 Données d''entrée'!$C$334+'1 Données d''entrée'!$C$333+1+$B2018,'1 Données d''entrée'!$C$332*($L2007-SUM($C2019:P2019)),0))","v":0},{"$f":"IF(Q1929<1+$B2018,0,IF(Q1929<'1 Données d''entrée'!$C$334+'1 Données d''entrée'!$C$333+1+$B2018,'1 Données d''entrée'!$C$332*($L2007-SUM($C2019:Q2019)),0))","v":0},{"$f":"IF(R1929<1+$B2018,0,IF(R1929<'1 Données d''entrée'!$C$334+'1 Données d''entrée'!$C$333+1+$B2018,'1 Données d''entrée'!$C$332*($L2007-SUM($C2019:R2019)),0))","v":0},{"$f":"IF(S1929<1+$B2018,0,IF(S1929<'1 Données d''entrée'!$C$334+'1 Données d''entrée'!$C$333+1+$B2018,'1 Données d''entrée'!$C$332*($L2007-SUM($C2019:S2019)),0))","v":0},{"$f":"IF(T1929<1+$B2018,0,IF(T1929<'1 Données d''entrée'!$C$334+'1 Données d''entrée'!$C$333+1+$B2018,'1 Données d''entrée'!$C$332*($L2007-SUM($C2019:T2019)),0))","v":0},{"$f":"IF(U1929<1+$B2018,0,IF(U1929<'1 Données d''entrée'!$C$334+'1 Données d''entrée'!$C$333+1+$B2018,'1 Données d''entrée'!$C$332*($L2007-SUM($C2019:U2019)),0))","v":0}]
[]
[null,"Période",1,2,3,4,5,6,7,8,9,10,11,12,13,14,15,16,17,18,19,20]
["Prêt bancaire - Option 3: Remboursement vers l'annuité constante",{"$f":"'1 Données d''entrée'!$B$344","v":0}]
["Prêt(s) nouveau(x)",null,{"$f":"IF(C1972<0,C1972*(-1)*$B2034+C1972*(-1)*$B2034*'1 Données d''entrée'!$C$338,0)","v":{"$error":"#DIV/0!"}},{"$f":"IF(D1972<0,D1972*(-1)*$B2034+D1972*(-1)*$B2034*'1 Données d''entrée'!$C$338,0)","v":{"$error":"#DIV/0!"}},{"$f":"IF(E1972<0,E1972*(-1)*$B2034+E1972*(-1)*$B2034*'1 Données d''entrée'!$C$338,0)","v":{"$error":"#DIV/0!"}},{"$f":"IF(F1972<0,F1972*(-1)*$B2034+F1972*(-1)*$B2034*'1 Données d''entrée'!$C$338,0)","v":{"$error":"#DIV/0!"}},{"$f":"IF(G1972<0,G1972*(-1)*$B2034+G1972*(-1)*$B2034*'1 Données d''entrée'!$C$338,0)","v":{"$error":"#DIV/0!"}},{"$f":"IF(H1972<0,H1972*(-1)*$B2034+H1972*(-1)*$B2034*'1 Données d''entrée'!$C$338,0)","v":{"$error":"#DIV/0!"}},{"$f":"IF(I1972<0,I1972*(-1)*$B2034+I1972*(-1)*$B2034*'1 Données d''entrée'!$C$338,0)","v":{"$error":"#DIV/0!"}},{"$f":"IF(J1972<0,J1972*(-1)*$B2034+J1972*(-1)*$B2034*'1 Données d''entrée'!$C$338,0)","v":{"$error":"#DIV/0!"}},{"$f":"IF(K1972<0,K1972*(-1)*$B2034+K1972*(-1)*$B2034*'1 Données d''entrée'!$C$338,0)","v":{"$error":"#DIV/0!"}},{"$f":"IF(L1972<0,L1972*(-1)*$B2034+L1972*(-1)*$B2034*'1 Données d''entrée'!$C$338,0)","v":{"$error":"#DIV/0!"}},{"$f":"IF(M1972<0,M1972*(-1)*$B2034+M1972*(-1)*$B2034*'1 Données d''entrée'!$C$338,0)","v":{"$error":"#DIV/0!"}},{"$f":"IF(N1972<0,N1972*(-1)*$B2034+N1972*(-1)*$B2034*'1 Données d''entrée'!$C$338,0)","v":{"$error":"#DIV/0!"}},{"$f":"IF(O1972<0,O1972*(-1)*$B2034+O1972*(-1)*$B2034*'1 Données d''entrée'!$C$338,0)","v":{"$error":"#DIV/0!"}},{"$f":"IF(P1972<0,P1972*(-1)*$B2034+P1972*(-1)*$B2034*'1 Données d''entrée'!$C$338,0)","v":{"$error":"#DIV/0!"}},{"$f":"IF(Q1972<0,Q1972*(-1)*$B2034+Q1972*(-1)*$B2034*'1 Données d''entrée'!$C$338,0)","v":{"$error":"#DIV/0!"}},{"$f":"IF(R1972<0,R1972*(-1)*$B2034+R1972*(-1)*$B2034*'1 Données d''entrée'!$C$338,0)","v":{"$error":"#DIV/0!"}},{"$f":"IF(S1972<0,S1972*(-1)*$B2034+S1972*(-1)*$B2034*'1 Données d''entrée'!$C$338,0)","v":{"$error":"#DIV/0!"}},{"$f":"IF(T1972<0,T1972*(-1)*$B2034+T1972*(-1)*$B2034*'1 Données d''entrée'!$C$338,0)","v":{"$error":"#DIV/0!"}},{"$f":"IF(U1972<0,U1972*(-1)*$B2034+U1972*(-1)*$B2034*'1 Données d''entrée'!$C$338,0)","v":{"$error":"#DIV/0!"}},{"$f":"IF(V1972<0,V1972*(-1)*$B2034+V1972*(-1)*$B2034*'1 Données d''entrée'!$C$338,0)","v":{"$error":"#DIV/0!"}}]
[null,"Période de prêt nouveau"]
["Remboursement vers l'annuité constante",0,0,0,0,0,0,0,0,0,0,0,0,0,0,0,0,0,0,0,0,0]
[null,1,{"$f":"IF(C$54<'1 Données d''entrée'!$C$334+1+$B2038,0,IF(C$54<'1 Données d''entrée'!$C$333+'1 Données d''entrée'!$C$334+1+$B2038,$C$160*('1 Données d''entrée'!$C$332*(1+'1 Données d''entrée'!$C$332)^'1 Données d''entrée'!$C$333)/((1+'1 Données d''entrée'!$C$332)^'1 Données d''entrée'!$C$333-1),0))","v":0},{"$f":"IF(D1929<'1 Données d''entrée'!$C$334+1+$B2038,0,IF(D1929<'1 Données d''entrée'!$C$333+'1 Données d''entrée'!$C$334+1+$B2038,$C2035*('1 Données d''entrée'!$C$332*(1+'1 Données d''entrée'!$C$332)^'1 Données d''entrée'!$C$333)/((1+'1 Données d''entrée'!$C$332)^'1 Données d''entrée'!$C$333-1),0))","v":0},{"$f":"IF(E1929<'1 Données d''entrée'!$C$334+1+$B2038,0,IF(E1929<'1 Données d''entrée'!$C$333+'1 Données d''entrée'!$C$334+1+$B2038,$C2035*('1 Données d''entrée'!$C$332*(1+'1 Données d''entrée'!$C$332)^'1 Données d''entrée'!$C$333)/((1+'1 Données d''entrée'!$C$332)^'1 Données d''entrée'!$C$333-1),0))","v":0},{"$f":"IF(F1929<'1 Données d''entrée'!$C$334+1+$B2038,0,IF(F1929<'1 Données d''entrée'!$C$333+'1 Données d''entrée'!$C$334+1+$B2038,$C2035*('1 Données d''entrée'!$C$332*(1+'1 Données d''entrée'!$C$332)^'1 Données d''entrée'!$C$333)/((1+'1 Données d''entrée'!$C$332)^'1 Données d''entrée'!$C$333-1),0))","v":0},{"$f":"IF(G1929<'1 Données d''entrée'!$C$334+1+$B2038,0,IF(G1929<'1 Données d''entrée'!$C$333+'1 Données d''entrée'!$C$334+1+$B2038,$C2035*('1 Données d''entrée'!$C$332*(1+'1 Données d''entrée'!$C$332)^'1 Données d''entrée'!$C$333)/((1+'1 Données d''entrée'!$C$332)^'1 Données d''entrée'!$C$333-1),0))","v":0},{"$f":"IF(H1929<'1 Données d''entrée'!$C$334+1+$B2038,0,IF(H1929<'1 Données d''entrée'!$C$333+'1 Données d''entrée'!$C$334+1+$B2038,$C2035*('1 Données d''entrée'!$C$332*(1+'1 Données d''entrée'!$C$332)^'1 Données d''entrée'!$C$333)/((1+'1 Données d''entrée'!$C$332)^'1 Données d''entrée'!$C$333-1),0))","v":0},{"$f":"IF(I1929<'1 Données d''entrée'!$C$334+1+$B2038,0,IF(I1929<'1 Données d''entrée'!$C$333+'1 Données d''entrée'!$C$334+1+$B2038,$C2035*('1 Données d''entrée'!$C$332*(1+'1 Données d''entrée'!$C$332)^'1 Données d''entrée'!$C$333)/((1+'1 Données d''entrée'!$C$332)^'1 Données d''entrée'!$C$333-1),0))","v":0},{"$f":"IF(J1929<'1 Données d''entrée'!$C$334+1+$B2038,0,IF(J1929<'1 Données d''entrée'!$C$333+'1 Données d''entrée'!$C$334+1+$B2038,$C2035*('1 Données d''entrée'!$C$332*(1+'1 Données d''entrée'!$C$332)^'1 Données d''entrée'!$C$333)/((1+'1 Données d''entrée'!$C$332)^'1 Données d''entrée'!$C$333-1),0))","v":0},{"$f":"IF(K1929<'1 Données d''entrée'!$C$334+1+$B2038,0,IF(K1929<'1 Données d''entrée'!$C$333+'1 Données d''entrée'!$C$334+1+$B2038,$C2035*('1 Données d''entrée'!$C$332*(1+'1 Données d''entrée'!$C$332)^'1 Données d''entrée'!$C$333)/((1+'1 Données d''entrée'!$C$332)^'1 Données d''entrée'!$C$333-1),0))","v":0},{"$f":"IF(L1929<'1 Données d''entrée'!$C$334+1+$B2038,0,IF(L1929<'1 Données d''entrée'!$C$333+'1 Données d''entrée'!$C$334+1+$B2038,$C2035*('1 Données d''entrée'!$C$332*(1+'1 Données d''entrée'!$C$332)^'1 Données d''entrée'!$C$333)/((1+'1 Données d''entrée'!$C$332)^'1 Données d''entrée'!$C$333-1),0))","v":0},{"$f":"IF(M1929<'1 Données d''entrée'!$C$334+1+$B2038,0,IF(M1929<'1 Données d''entrée'!$C$333+'1 Données d''entrée'!$C$334+1+$B2038,$C2035*('1 Données d''entrée'!$C$332*(1+'1 Données d''entrée'!$C$332)^'1 Données d''entrée'!$C$333)/((1+'1 Données d''entrée'!$C$332)^'1 Données d''entrée'!$C$333-1),0))","v":0},{"$f":"IF(N1929<'1 Données d''entrée'!$C$334+1+$B2038,0,IF(N1929<'1 Données d''entrée'!$C$333+'1 Données d''entrée'!$C$334+1+$B2038,$C2035*('1 Données d''entrée'!$C$332*(1+'1 Données d''entrée'!$C$332)^'1 Données d''entrée'!$C$333)/((1+'1 Données d''entrée'!$C$332)^'1 Données d''entrée'!$C$333-1),0))","v":0},{"$f":"IF(O1929<'1 Données d''entrée'!$C$334+1+$B2038,0,IF(O1929<'1 Données d''entrée'!$C$333+'1 Données d''entrée'!$C$334+1+$B2038,$C2035*('1 Données d''entrée'!$C$332*(1+'1 Données d''entrée'!$C$332)^'1 Données d''entrée'!$C$333)/((1+'1 Données d''entrée'!$C$332)^'1 Données d''entrée'!$C$333-1),0))","v":0},{"$f":"IF(P1929<'1 Données d''entrée'!$C$334+1+$B2038,0,IF(P1929<'1 Données d''entrée'!$C$333+'1 Données d''entrée'!$C$334+1+$B2038,$C2035*('1 Données d''entrée'!$C$332*(1+'1 Données d''entrée'!$C$332)^'1 Données d''entrée'!$C$333)/((1+'1 Données d''entrée'!$C$332)^'1 Données d''entrée'!$C$333-1),0))","v":0},{"$f":"IF(Q1929<'1 Données d''entrée'!$C$334+1+$B2038,0,IF(Q1929<'1 Données d''entrée'!$C$333+'1 Données d''entrée'!$C$334+1+$B2038,$C2035*('1 Données d''entrée'!$C$332*(1+'1 Données d''entrée'!$C$332)^'1 Données d''entrée'!$C$333)/((1+'1 Données d''entrée'!$C$332)^'1 Données d''entrée'!$C$333-1),0))","v":0},{"$f":"IF(R1929<'1 Données d''entrée'!$C$334+1+$B2038,0,IF(R1929<'1 Données d''entrée'!$C$333+'1 Données d''entrée'!$C$334+1+$B2038,$C2035*('1 Données d''entrée'!$C$332*(1+'1 Données d''entrée'!$C$332)^'1 Données d''entrée'!$C$333)/((1+'1 Données d''entrée'!$C$332)^'1 Données d''entrée'!$C$333-1),0))","v":0},{"$f":"IF(S1929<'1 Données d''entrée'!$C$334+1+$B2038,0,IF(S1929<'1 Données d''entrée'!$C$333+'1 Données d''entrée'!$C$334+1+$B2038,$C2035*('1 Données d''entrée'!$C$332*(1+'1 Données d''entrée'!$C$332)^'1 Données d''entrée'!$C$333)/((1+'1 Données d''entrée'!$C$332)^'1 Données d''entrée'!$C$333-1),0))","v":0},{"$f":"IF(T1929<'1 Données d''entrée'!$C$334+1+$B2038,0,IF(T1929<'1 Données d''entrée'!$C$333+'1 Données d''entrée'!$C$334+1+$B2038,$C2035*('1 Données d''entrée'!$C$332*(1+'1 Données d''entrée'!$C$332)^'1 Données d''entrée'!$C$333)/((1+'1 Données d''entrée'!$C$332)^'1 Données d''entrée'!$C$333-1),0))","v":0},{"$f":"IF(U1929<'1 Données d''entrée'!$C$334+1+$B2038,0,IF(U1929<'1 Données d''entrée'!$C$333+'1 Données d''entrée'!$C$334+1+$B2038,$C2035*('1 Données d''entrée'!$C$332*(1+'1 Données d''entrée'!$C$332)^'1 Données d''entrée'!$C$333)/((1+'1 Données d''entrée'!$C$332)^'1 Données d''entrée'!$C$333-1),0))","v":0},{"$f":"IF(V1929<'1 Données d''entrée'!$C$334+1+$B2038,0,IF(V1929<'1 Données d''entrée'!$C$333+'1 Données d''entrée'!$C$334+1+$B2038,$C2035*('1 Données d''entrée'!$C$332*(1+'1 Données d''entrée'!$C$332)^'1 Données d''entrée'!$C$333)/((1+'1 Données d''entrée'!$C$332)^'1 Données d''entrée'!$C$333-1),0))","v":0}]
[null,2,{"$f":"IF(C$54<'1 Données d''entrée'!$C$334+1+$B2039,0,IF(C$54<'1 Données d''entrée'!$C$333+'1 Données d''entrée'!$C$334+1+$B2039,$D$160*('1 Données d''entrée'!$C$332*(1+'1 Données d''entrée'!$C$332)^'1 Données d''entrée'!$C$333)/((1+'1 Données d''entrée'!$C$332)^'1 Données d''entrée'!$C$333-1),0))","v":0},{"$f":"IF(D1929<'1 Données d''entrée'!$C$334+1+$B2039,0,IF(D1929<'1 Données d''entrée'!$C$333+'1 Données d''entrée'!$C$334+1+$B2039,$D2035*('1 Données d''entrée'!$C$332*(1+'1 Données d''entrée'!$C$332)^'1 Données d''entrée'!$C$333)/((1+'1 Données d''entrée'!$C$332)^'1 Données d''entrée'!$C$333-1),0))","v":0},{"$f":"IF(E1929<'1 Données d''entrée'!$C$334+1+$B2039,0,IF(E1929<'1 Données d''entrée'!$C$333+'1 Données d''entrée'!$C$334+1+$B2039,$D2035*('1 Données d''entrée'!$C$332*(1+'1 Données d''entrée'!$C$332)^'1 Données d''entrée'!$C$333)/((1+'1 Données d''entrée'!$C$332)^'1 Données d''entrée'!$C$333-1),0))","v":0},{"$f":"IF(F1929<'1 Données d''entrée'!$C$334+1+$B2039,0,IF(F1929<'1 Données d''entrée'!$C$333+'1 Données d''entrée'!$C$334+1+$B2039,$D2035*('1 Données d''entrée'!$C$332*(1+'1 Données d''entrée'!$C$332)^'1 Données d''entrée'!$C$333)/((1+'1 Données d''entrée'!$C$332)^'1 Données d''entrée'!$C$333-1),0))","v":0},{"$f":"IF(G1929<'1 Données d''entrée'!$C$334+1+$B2039,0,IF(G1929<'1 Données d''entrée'!$C$333+'1 Données d''entrée'!$C$334+1+$B2039,$D2035*('1 Données d''entrée'!$C$332*(1+'1 Données d''entrée'!$C$332)^'1 Données d''entrée'!$C$333)/((1+'1 Données d''entrée'!$C$332)^'1 Données d''entrée'!$C$333-1),0))","v":0},{"$f":"IF(H1929<'1 Données d''entrée'!$C$334+1+$B2039,0,IF(H1929<'1 Données d''entrée'!$C$333+'1 Données d''entrée'!$C$334+1+$B2039,$D2035*('1 Données d''entrée'!$C$332*(1+'1 Données d''entrée'!$C$332)^'1 Données d''entrée'!$C$333)/((1+'1 Données d''entrée'!$C$332)^'1 Données d''entrée'!$C$333-1),0))","v":0},{"$f":"IF(I1929<'1 Données d''entrée'!$C$334+1+$B2039,0,IF(I1929<'1 Données d''entrée'!$C$333+'1 Données d''entrée'!$C$334+1+$B2039,$D2035*('1 Données d''entrée'!$C$332*(1+'1 Données d''entrée'!$C$332)^'1 Données d''entrée'!$C$333)/((1+'1 Données d''entrée'!$C$332)^'1 Données d''entrée'!$C$333-1),0))","v":0},{"$f":"IF(J1929<'1 Données d''entrée'!$C$334+1+$B2039,0,IF(J1929<'1 Données d''entrée'!$C$333+'1 Données d''entrée'!$C$334+1+$B2039,$D2035*('1 Données d''entrée'!$C$332*(1+'1 Données d''entrée'!$C$332)^'1 Données d''entrée'!$C$333)/((1+'1 Données d''entrée'!$C$332)^'1 Données d''entrée'!$C$333-1),0))","v":0},{"$f":"IF(K1929<'1 Données d''entrée'!$C$334+1+$B2039,0,IF(K1929<'1 Données d''entrée'!$C$333+'1 Données d''entrée'!$C$334+1+$B2039,$D2035*('1 Données d''entrée'!$C$332*(1+'1 Données d''entrée'!$C$332)^'1 Données d''entrée'!$C$333)/((1+'1 Données d''entrée'!$C$332)^'1 Données d''entrée'!$C$333-1),0))","v":0},{"$f":"IF(L1929<'1 Données d''entrée'!$C$334+1+$B2039,0,IF(L1929<'1 Données d''entrée'!$C$333+'1 Données d''entrée'!$C$334+1+$B2039,$D2035*('1 Données d''entrée'!$C$332*(1+'1 Données d''entrée'!$C$332)^'1 Données d''entrée'!$C$333)/((1+'1 Données d''entrée'!$C$332)^'1 Données d''entrée'!$C$333-1),0))","v":0},{"$f":"IF(M1929<'1 Données d''entrée'!$C$334+1+$B2039,0,IF(M1929<'1 Données d''entrée'!$C$333+'1 Données d''entrée'!$C$334+1+$B2039,$D2035*('1 Données d''entrée'!$C$332*(1+'1 Données d''entrée'!$C$332)^'1 Données d''entrée'!$C$333)/((1+'1 Données d''entrée'!$C$332)^'1 Données d''entrée'!$C$333-1),0))","v":0},{"$f":"IF(N1929<'1 Données d''entrée'!$C$334+1+$B2039,0,IF(N1929<'1 Données d''entrée'!$C$333+'1 Données d''entrée'!$C$334+1+$B2039,$D2035*('1 Données d''entrée'!$C$332*(1+'1 Données d''entrée'!$C$332)^'1 Données d''entrée'!$C$333)/((1+'1 Données d''entrée'!$C$332)^'1 Données d''entrée'!$C$333-1),0))","v":0},{"$f":"IF(O1929<'1 Données d''entrée'!$C$334+1+$B2039,0,IF(O1929<'1 Données d''entrée'!$C$333+'1 Données d''entrée'!$C$334+1+$B2039,$D2035*('1 Données d''entrée'!$C$332*(1+'1 Données d''entrée'!$C$332)^'1 Données d''entrée'!$C$333)/((1+'1 Données d''entrée'!$C$332)^'1 Données d''entrée'!$C$333-1),0))","v":0},{"$f":"IF(P1929<'1 Données d''entrée'!$C$334+1+$B2039,0,IF(P1929<'1 Données d''entrée'!$C$333+'1 Données d''entrée'!$C$334+1+$B2039,$D2035*('1 Données d''entrée'!$C$332*(1+'1 Données d''entrée'!$C$332)^'1 Données d''entrée'!$C$333)/((1+'1 Données d''entrée'!$C$332)^'1 Données d''entrée'!$C$333-1),0))","v":0},{"$f":"IF(Q1929<'1 Données d''entrée'!$C$334+1+$B2039,0,IF(Q1929<'1 Données d''entrée'!$C$333+'1 Données d''entrée'!$C$334+1+$B2039,$D2035*('1 Données d''entrée'!$C$332*(1+'1 Données d''entrée'!$C$332)^'1 Données d''entrée'!$C$333)/((1+'1 Données d''entrée'!$C$332)^'1 Données d''entrée'!$C$333-1),0))","v":0},{"$f":"IF(R1929<'1 Données d''entrée'!$C$334+1+$B2039,0,IF(R1929<'1 Données d''entrée'!$C$333+'1 Données d''entrée'!$C$334+1+$B2039,$D2035*('1 Données d''entrée'!$C$332*(1+'1 Données d''entrée'!$C$332)^'1 Données d''entrée'!$C$333)/((1+'1 Données d''entrée'!$C$332)^'1 Données d''entrée'!$C$333-1),0))","v":0},{"$f":"IF(S1929<'1 Données d''entrée'!$C$334+1+$B2039,0,IF(S1929<'1 Données d''entrée'!$C$333+'1 Données d''entrée'!$C$334+1+$B2039,$D2035*('1 Données d''entrée'!$C$332*(1+'1 Données d''entrée'!$C$332)^'1 Données d''entrée'!$C$333)/((1+'1 Données d''entrée'!$C$332)^'1 Données d''entrée'!$C$333-1),0))","v":0},{"$f":"IF(T1929<'1 Données d''entrée'!$C$334+1+$B2039,0,IF(T1929<'1 Données d''entrée'!$C$333+'1 Données d''entrée'!$C$334+1+$B2039,$D2035*('1 Données d''entrée'!$C$332*(1+'1 Données d''entrée'!$C$332)^'1 Données d''entrée'!$C$333)/((1+'1 Données d''entrée'!$C$332)^'1 Données d''entrée'!$C$333-1),0))","v":0},{"$f":"IF(U1929<'1 Données d''entrée'!$C$334+1+$B2039,0,IF(U1929<'1 Données d''entrée'!$C$333+'1 Données d''entrée'!$C$334+1+$B2039,$D2035*('1 Données d''entrée'!$C$332*(1+'1 Données d''entrée'!$C$332)^'1 Données d''entrée'!$C$333)/((1+'1 Données d''entrée'!$C$332)^'1 Données d''entrée'!$C$333-1),0))","v":0},{"$f":"IF(V1929<'1 Données d''entrée'!$C$334+1+$B2039,0,IF(V1929<'1 Données d''entrée'!$C$333+'1 Données d''entrée'!$C$334+1+$B2039,$D2035*('1 Données d''entrée'!$C$332*(1+'1 Données d''entrée'!$C$332)^'1 Données d''entrée'!$C$333)/((1+'1 Données d''entrée'!$C$332)^'1 Données d''entrée'!$C$333-1),0))","v":0}]
[null,3,{"$f":"IF(C$54<'1 Données d''entrée'!$C$334+1+$B2040,0,IF(C$54<'1 Données d''entrée'!$C$333+'1 Données d''entrée'!$C$334+1+$B2040,$E$160*('1 Données d''entrée'!$C$332*(1+'1 Données d''entrée'!$C$332)^'1 Données d''entrée'!$C$333)/((1+'1 Données d''entrée'!$C$332)^'1 Données d''entrée'!$C$333-1),0))","v":0},{"$f":"IF(D1929<'1 Données d''entrée'!$C$334+1+$B2040,0,IF(D1929<'1 Données d''entrée'!$C$333+'1 Données d''entrée'!$C$334+1+$B2040,$E2035*('1 Données d''entrée'!$C$332*(1+'1 Données d''entrée'!$C$332)^'1 Données d''entrée'!$C$333)/((1+'1 Données d''entrée'!$C$332)^'1 Données d''entrée'!$C$333-1),0))","v":0},{"$f":"IF(E1929<'1 Données d''entrée'!$C$334+1+$B2040,0,IF(E1929<'1 Données d''entrée'!$C$333+'1 Données d''entrée'!$C$334+1+$B2040,$E2035*('1 Données d''entrée'!$C$332*(1+'1 Données d''entrée'!$C$332)^'1 Données d''entrée'!$C$333)/((1+'1 Données d''entrée'!$C$332)^'1 Données d''entrée'!$C$333-1),0))","v":0},{"$f":"IF(F1929<'1 Données d''entrée'!$C$334+1+$B2040,0,IF(F1929<'1 Données d''entrée'!$C$333+'1 Données d''entrée'!$C$334+1+$B2040,$E2035*('1 Données d''entrée'!$C$332*(1+'1 Données d''entrée'!$C$332)^'1 Données d''entrée'!$C$333)/((1+'1 Données d''entrée'!$C$332)^'1 Données d''entrée'!$C$333-1),0))","v":0},{"$f":"IF(G1929<'1 Données d''entrée'!$C$334+1+$B2040,0,IF(G1929<'1 Données d''entrée'!$C$333+'1 Données d''entrée'!$C$334+1+$B2040,$E2035*('1 Données d''entrée'!$C$332*(1+'1 Données d''entrée'!$C$332)^'1 Données d''entrée'!$C$333)/((1+'1 Données d''entrée'!$C$332)^'1 Données d''entrée'!$C$333-1),0))","v":0},{"$f":"IF(H1929<'1 Données d''entrée'!$C$334+1+$B2040,0,IF(H1929<'1 Données d''entrée'!$C$333+'1 Données d''entrée'!$C$334+1+$B2040,$E2035*('1 Données d''entrée'!$C$332*(1+'1 Données d''entrée'!$C$332)^'1 Données d''entrée'!$C$333)/((1+'1 Données d''entrée'!$C$332)^'1 Données d''entrée'!$C$333-1),0))","v":0},{"$f":"IF(I1929<'1 Données d''entrée'!$C$334+1+$B2040,0,IF(I1929<'1 Données d''entrée'!$C$333+'1 Données d''entrée'!$C$334+1+$B2040,$E2035*('1 Données d''entrée'!$C$332*(1+'1 Données d''entrée'!$C$332)^'1 Données d''entrée'!$C$333)/((1+'1 Données d''entrée'!$C$332)^'1 Données d''entrée'!$C$333-1),0))","v":0},{"$f":"IF(J1929<'1 Données d''entrée'!$C$334+1+$B2040,0,IF(J1929<'1 Données d''entrée'!$C$333+'1 Données d''entrée'!$C$334+1+$B2040,$E2035*('1 Données d''entrée'!$C$332*(1+'1 Données d''entrée'!$C$332)^'1 Données d''entrée'!$C$333)/((1+'1 Données d''entrée'!$C$332)^'1 Données d''entrée'!$C$333-1),0))","v":0},{"$f":"IF(K1929<'1 Données d''entrée'!$C$334+1+$B2040,0,IF(K1929<'1 Données d''entrée'!$C$333+'1 Données d''entrée'!$C$334+1+$B2040,$E2035*('1 Données d''entrée'!$C$332*(1+'1 Données d''entrée'!$C$332)^'1 Données d''entrée'!$C$333)/((1+'1 Données d''entrée'!$C$332)^'1 Données d''entrée'!$C$333-1),0))","v":0},{"$f":"IF(L1929<'1 Données d''entrée'!$C$334+1+$B2040,0,IF(L1929<'1 Données d''entrée'!$C$333+'1 Données d''entrée'!$C$334+1+$B2040,$E2035*('1 Données d''entrée'!$C$332*(1+'1 Données d''entrée'!$C$332)^'1 Données d''entrée'!$C$333)/((1+'1 Données d''entrée'!$C$332)^'1 Données d''entrée'!$C$333-1),0))","v":0},{"$f":"IF(M1929<'1 Données d''entrée'!$C$334+1+$B2040,0,IF(M1929<'1 Données d''entrée'!$C$333+'1 Données d''entrée'!$C$334+1+$B2040,$E2035*('1 Données d''entrée'!$C$332*(1+'1 Données d''entrée'!$C$332)^'1 Données d''entrée'!$C$333)/((1+'1 Données d''entrée'!$C$332)^'1 Données d''entrée'!$C$333-1),0))","v":0},{"$f":"IF(N1929<'1 Données d''entrée'!$C$334+1+$B2040,0,IF(N1929<'1 Données d''entrée'!$C$333+'1 Données d''entrée'!$C$334+1+$B2040,$E2035*('1 Données d''entrée'!$C$332*(1+'1 Données d''entrée'!$C$332)^'1 Données d''entrée'!$C$333)/((1+'1 Données d''entrée'!$C$332)^'1 Données d''entrée'!$C$333-1),0))","v":0},{"$f":"IF(O1929<'1 Données d''entrée'!$C$334+1+$B2040,0,IF(O1929<'1 Données d''entrée'!$C$333+'1 Données d''entrée'!$C$334+1+$B2040,$E2035*('1 Données d''entrée'!$C$332*(1+'1 Données d''entrée'!$C$332)^'1 Données d''entrée'!$C$333)/((1+'1 Données d''entrée'!$C$332)^'1 Données d''entrée'!$C$333-1),0))","v":0},{"$f":"IF(P1929<'1 Données d''entrée'!$C$334+1+$B2040,0,IF(P1929<'1 Données d''entrée'!$C$333+'1 Données d''entrée'!$C$334+1+$B2040,$E2035*('1 Données d''entrée'!$C$332*(1+'1 Données d''entrée'!$C$332)^'1 Données d''entrée'!$C$333)/((1+'1 Données d''entrée'!$C$332)^'1 Données d''entrée'!$C$333-1),0))","v":0},{"$f":"IF(Q1929<'1 Données d''entrée'!$C$334+1+$B2040,0,IF(Q1929<'1 Données d''entrée'!$C$333+'1 Données d''entrée'!$C$334+1+$B2040,$E2035*('1 Données d''entrée'!$C$332*(1+'1 Données d''entrée'!$C$332)^'1 Données d''entrée'!$C$333)/((1+'1 Données d''entrée'!$C$332)^'1 Données d''entrée'!$C$333-1),0))","v":0},{"$f":"IF(R1929<'1 Données d''entrée'!$C$334+1+$B2040,0,IF(R1929<'1 Données d''entrée'!$C$333+'1 Données d''entrée'!$C$334+1+$B2040,$E2035*('1 Données d''entrée'!$C$332*(1+'1 Données d''entrée'!$C$332)^'1 Données d''entrée'!$C$333)/((1+'1 Données d''entrée'!$C$332)^'1 Données d''entrée'!$C$333-1),0))","v":0},{"$f":"IF(S1929<'1 Données d''entrée'!$C$334+1+$B2040,0,IF(S1929<'1 Données d''entrée'!$C$333+'1 Données d''entrée'!$C$334+1+$B2040,$E2035*('1 Données d''entrée'!$C$332*(1+'1 Données d''entrée'!$C$332)^'1 Données d''entrée'!$C$333)/((1+'1 Données d''entrée'!$C$332)^'1 Données d''entrée'!$C$333-1),0))","v":0},{"$f":"IF(T1929<'1 Données d''entrée'!$C$334+1+$B2040,0,IF(T1929<'1 Données d''entrée'!$C$333+'1 Données d''entrée'!$C$334+1+$B2040,$E2035*('1 Données d''entrée'!$C$332*(1+'1 Données d''entrée'!$C$332)^'1 Données d''entrée'!$C$333)/((1+'1 Données d''entrée'!$C$332)^'1 Données d''entrée'!$C$333-1),0))","v":0},{"$f":"IF(U1929<'1 Données d''entrée'!$C$334+1+$B2040,0,IF(U1929<'1 Données d''entrée'!$C$333+'1 Données d''entrée'!$C$334+1+$B2040,$E2035*('1 Données d''entrée'!$C$332*(1+'1 Données d''entrée'!$C$332)^'1 Données d''entrée'!$C$333)/((1+'1 Données d''entrée'!$C$332)^'1 Données d''entrée'!$C$333-1),0))","v":0},{"$f":"IF(V1929<'1 Données d''entrée'!$C$334+1+$B2040,0,IF(V1929<'1 Données d''entrée'!$C$333+'1 Données d''entrée'!$C$334+1+$B2040,$E2035*('1 Données d''entrée'!$C$332*(1+'1 Données d''entrée'!$C$332)^'1 Données d''entrée'!$C$333)/((1+'1 Données d''entrée'!$C$332)^'1 Données d''entrée'!$C$333-1),0))","v":0}]
[null,4,{"$f":"IF(C$54<'1 Données d''entrée'!$C$334+1+$B2041,0,IF(C$54<'1 Données d''entrée'!$C$333+'1 Données d''entrée'!$C$334+1+$B2041,$F$160*('1 Données d''entrée'!$C$332*(1+'1 Données d''entrée'!$C$332)^'1 Données d''entrée'!$C$333)/((1+'1 Données d''entrée'!$C$332)^'1 Données d''entrée'!$C$333-1),0))","v":0},{"$f":"IF(D1929<'1 Données d''entrée'!$C$334+1+$B2041,0,IF(D1929<'1 Données d''entrée'!$C$333+'1 Données d''entrée'!$C$334+1+$B2041,$F2035*('1 Données d''entrée'!$C$332*(1+'1 Données d''entrée'!$C$332)^'1 Données d''entrée'!$C$333)/((1+'1 Données d''entrée'!$C$332)^'1 Données d''entrée'!$C$333-1),0))","v":0},{"$f":"IF(E1929<'1 Données d''entrée'!$C$334+1+$B2041,0,IF(E1929<'1 Données d''entrée'!$C$333+'1 Données d''entrée'!$C$334+1+$B2041,$F2035*('1 Données d''entrée'!$C$332*(1+'1 Données d''entrée'!$C$332)^'1 Données d''entrée'!$C$333)/((1+'1 Données d''entrée'!$C$332)^'1 Données d''entrée'!$C$333-1),0))","v":0},{"$f":"IF(F1929<'1 Données d''entrée'!$C$334+1+$B2041,0,IF(F1929<'1 Données d''entrée'!$C$333+'1 Données d''entrée'!$C$334+1+$B2041,$F2035*('1 Données d''entrée'!$C$332*(1+'1 Données d''entrée'!$C$332)^'1 Données d''entrée'!$C$333)/((1+'1 Données d''entrée'!$C$332)^'1 Données d''entrée'!$C$333-1),0))","v":0},{"$f":"IF(G1929<'1 Données d''entrée'!$C$334+1+$B2041,0,IF(G1929<'1 Données d''entrée'!$C$333+'1 Données d''entrée'!$C$334+1+$B2041,$F2035*('1 Données d''entrée'!$C$332*(1+'1 Données d''entrée'!$C$332)^'1 Données d''entrée'!$C$333)/((1+'1 Données d''entrée'!$C$332)^'1 Données d''entrée'!$C$333-1),0))","v":0},{"$f":"IF(H1929<'1 Données d''entrée'!$C$334+1+$B2041,0,IF(H1929<'1 Données d''entrée'!$C$333+'1 Données d''entrée'!$C$334+1+$B2041,$F2035*('1 Données d''entrée'!$C$332*(1+'1 Données d''entrée'!$C$332)^'1 Données d''entrée'!$C$333)/((1+'1 Données d''entrée'!$C$332)^'1 Données d''entrée'!$C$333-1),0))","v":0},{"$f":"IF(I1929<'1 Données d''entrée'!$C$334+1+$B2041,0,IF(I1929<'1 Données d''entrée'!$C$333+'1 Données d''entrée'!$C$334+1+$B2041,$F2035*('1 Données d''entrée'!$C$332*(1+'1 Données d''entrée'!$C$332)^'1 Données d''entrée'!$C$333)/((1+'1 Données d''entrée'!$C$332)^'1 Données d''entrée'!$C$333-1),0))","v":0},{"$f":"IF(J1929<'1 Données d''entrée'!$C$334+1+$B2041,0,IF(J1929<'1 Données d''entrée'!$C$333+'1 Données d''entrée'!$C$334+1+$B2041,$F2035*('1 Données d''entrée'!$C$332*(1+'1 Données d''entrée'!$C$332)^'1 Données d''entrée'!$C$333)/((1+'1 Données d''entrée'!$C$332)^'1 Données d''entrée'!$C$333-1),0))","v":0},{"$f":"IF(K1929<'1 Données d''entrée'!$C$334+1+$B2041,0,IF(K1929<'1 Données d''entrée'!$C$333+'1 Données d''entrée'!$C$334+1+$B2041,$F2035*('1 Données d''entrée'!$C$332*(1+'1 Données d''entrée'!$C$332)^'1 Données d''entrée'!$C$333)/((1+'1 Données d''entrée'!$C$332)^'1 Données d''entrée'!$C$333-1),0))","v":0},{"$f":"IF(L1929<'1 Données d''entrée'!$C$334+1+$B2041,0,IF(L1929<'1 Données d''entrée'!$C$333+'1 Données d''entrée'!$C$334+1+$B2041,$F2035*('1 Données d''entrée'!$C$332*(1+'1 Données d''entrée'!$C$332)^'1 Données d''entrée'!$C$333)/((1+'1 Données d''entrée'!$C$332)^'1 Données d''entrée'!$C$333-1),0))","v":0},{"$f":"IF(M1929<'1 Données d''entrée'!$C$334+1+$B2041,0,IF(M1929<'1 Données d''entrée'!$C$333+'1 Données d''entrée'!$C$334+1+$B2041,$F2035*('1 Données d''entrée'!$C$332*(1+'1 Données d''entrée'!$C$332)^'1 Données d''entrée'!$C$333)/((1+'1 Données d''entrée'!$C$332)^'1 Données d''entrée'!$C$333-1),0))","v":0},{"$f":"IF(N1929<'1 Données d''entrée'!$C$334+1+$B2041,0,IF(N1929<'1 Données d''entrée'!$C$333+'1 Données d''entrée'!$C$334+1+$B2041,$F2035*('1 Données d''entrée'!$C$332*(1+'1 Données d''entrée'!$C$332)^'1 Données d''entrée'!$C$333)/((1+'1 Données d''entrée'!$C$332)^'1 Données d''entrée'!$C$333-1),0))","v":0},{"$f":"IF(O1929<'1 Données d''entrée'!$C$334+1+$B2041,0,IF(O1929<'1 Données d''entrée'!$C$333+'1 Données d''entrée'!$C$334+1+$B2041,$F2035*('1 Données d''entrée'!$C$332*(1+'1 Données d''entrée'!$C$332)^'1 Données d''entrée'!$C$333)/((1+'1 Données d''entrée'!$C$332)^'1 Données d''entrée'!$C$333-1),0))","v":0},{"$f":"IF(P1929<'1 Données d''entrée'!$C$334+1+$B2041,0,IF(P1929<'1 Données d''entrée'!$C$333+'1 Données d''entrée'!$C$334+1+$B2041,$F2035*('1 Données d''entrée'!$C$332*(1+'1 Données d''entrée'!$C$332)^'1 Données d''entrée'!$C$333)/((1+'1 Données d''entrée'!$C$332)^'1 Données d''entrée'!$C$333-1),0))","v":0},{"$f":"IF(Q1929<'1 Données d''entrée'!$C$334+1+$B2041,0,IF(Q1929<'1 Données d''entrée'!$C$333+'1 Données d''entrée'!$C$334+1+$B2041,$F2035*('1 Données d''entrée'!$C$332*(1+'1 Données d''entrée'!$C$332)^'1 Données d''entrée'!$C$333)/((1+'1 Données d''entrée'!$C$332)^'1 Données d''entrée'!$C$333-1),0))","v":0},{"$f":"IF(R1929<'1 Données d''entrée'!$C$334+1+$B2041,0,IF(R1929<'1 Données d''entrée'!$C$333+'1 Données d''entrée'!$C$334+1+$B2041,$F2035*('1 Données d''entrée'!$C$332*(1+'1 Données d''entrée'!$C$332)^'1 Données d''entrée'!$C$333)/((1+'1 Données d''entrée'!$C$332)^'1 Données d''entrée'!$C$333-1),0))","v":0},{"$f":"IF(S1929<'1 Données d''entrée'!$C$334+1+$B2041,0,IF(S1929<'1 Données d''entrée'!$C$333+'1 Données d''entrée'!$C$334+1+$B2041,$F2035*('1 Données d''entrée'!$C$332*(1+'1 Données d''entrée'!$C$332)^'1 Données d''entrée'!$C$333)/((1+'1 Données d''entrée'!$C$332)^'1 Données d''entrée'!$C$333-1),0))","v":0},{"$f":"IF(T1929<'1 Données d''entrée'!$C$334+1+$B2041,0,IF(T1929<'1 Données d''entrée'!$C$333+'1 Données d''entrée'!$C$334+1+$B2041,$F2035*('1 Données d''entrée'!$C$332*(1+'1 Données d''entrée'!$C$332)^'1 Données d''entrée'!$C$333)/((1+'1 Données d''entrée'!$C$332)^'1 Données d''entrée'!$C$333-1),0))","v":0},{"$f":"IF(U1929<'1 Données d''entrée'!$C$334+1+$B2041,0,IF(U1929<'1 Données d''entrée'!$C$333+'1 Données d''entrée'!$C$334+1+$B2041,$F2035*('1 Données d''entrée'!$C$332*(1+'1 Données d''entrée'!$C$332)^'1 Données d''entrée'!$C$333)/((1+'1 Données d''entrée'!$C$332)^'1 Données d''entrée'!$C$333-1),0))","v":0},{"$f":"IF(V1929<'1 Données d''entrée'!$C$334+1+$B2041,0,IF(V1929<'1 Données d''entrée'!$C$333+'1 Données d''entrée'!$C$334+1+$B2041,$F2035*('1 Données d''entrée'!$C$332*(1+'1 Données d''entrée'!$C$332)^'1 Données d''entrée'!$C$333)/((1+'1 Données d''entrée'!$C$332)^'1 Données d''entrée'!$C$333-1),0))","v":0}]
[null,5,{"$f":"IF(C$54<'1 Données d''entrée'!$C$334+1+$B2042,0,IF(C$54<'1 Données d''entrée'!$C$333+'1 Données d''entrée'!$C$334+1+$B2042,$G$160*('1 Données d''entrée'!$C$332*(1+'1 Données d''entrée'!$C$332)^'1 Données d''entrée'!$C$333)/((1+'1 Données d''entrée'!$C$332)^'1 Données d''entrée'!$C$333-1),0))","v":0},{"$f":"IF(D1929<'1 Données d''entrée'!$C$334+1+$B2042,0,IF(D1929<'1 Données d''entrée'!$C$333+'1 Données d''entrée'!$C$334+1+$B2042,$G2035*('1 Données d''entrée'!$C$332*(1+'1 Données d''entrée'!$C$332)^'1 Données d''entrée'!$C$333)/((1+'1 Données d''entrée'!$C$332)^'1 Données d''entrée'!$C$333-1),0))","v":0},{"$f":"IF(E1929<'1 Données d''entrée'!$C$334+1+$B2042,0,IF(E1929<'1 Données d''entrée'!$C$333+'1 Données d''entrée'!$C$334+1+$B2042,$G2035*('1 Données d''entrée'!$C$332*(1+'1 Données d''entrée'!$C$332)^'1 Données d''entrée'!$C$333)/((1+'1 Données d''entrée'!$C$332)^'1 Données d''entrée'!$C$333-1),0))","v":0},{"$f":"IF(F1929<'1 Données d''entrée'!$C$334+1+$B2042,0,IF(F1929<'1 Données d''entrée'!$C$333+'1 Données d''entrée'!$C$334+1+$B2042,$G2035*('1 Données d''entrée'!$C$332*(1+'1 Données d''entrée'!$C$332)^'1 Données d''entrée'!$C$333)/((1+'1 Données d''entrée'!$C$332)^'1 Données d''entrée'!$C$333-1),0))","v":0},{"$f":"IF(G1929<'1 Données d''entrée'!$C$334+1+$B2042,0,IF(G1929<'1 Données d''entrée'!$C$333+'1 Données d''entrée'!$C$334+1+$B2042,$G2035*('1 Données d''entrée'!$C$332*(1+'1 Données d''entrée'!$C$332)^'1 Données d''entrée'!$C$333)/((1+'1 Données d''entrée'!$C$332)^'1 Données d''entrée'!$C$333-1),0))","v":0},{"$f":"IF(H1929<'1 Données d''entrée'!$C$334+1+$B2042,0,IF(H1929<'1 Données d''entrée'!$C$333+'1 Données d''entrée'!$C$334+1+$B2042,$G2035*('1 Données d''entrée'!$C$332*(1+'1 Données d''entrée'!$C$332)^'1 Données d''entrée'!$C$333)/((1+'1 Données d''entrée'!$C$332)^'1 Données d''entrée'!$C$333-1),0))","v":0},{"$f":"IF(I1929<'1 Données d''entrée'!$C$334+1+$B2042,0,IF(I1929<'1 Données d''entrée'!$C$333+'1 Données d''entrée'!$C$334+1+$B2042,$G2035*('1 Données d''entrée'!$C$332*(1+'1 Données d''entrée'!$C$332)^'1 Données d''entrée'!$C$333)/((1+'1 Données d''entrée'!$C$332)^'1 Données d''entrée'!$C$333-1),0))","v":0},{"$f":"IF(J1929<'1 Données d''entrée'!$C$334+1+$B2042,0,IF(J1929<'1 Données d''entrée'!$C$333+'1 Données d''entrée'!$C$334+1+$B2042,$G2035*('1 Données d''entrée'!$C$332*(1+'1 Données d''entrée'!$C$332)^'1 Données d''entrée'!$C$333)/((1+'1 Données d''entrée'!$C$332)^'1 Données d''entrée'!$C$333-1),0))","v":0},{"$f":"IF(K1929<'1 Données d''entrée'!$C$334+1+$B2042,0,IF(K1929<'1 Données d''entrée'!$C$333+'1 Données d''entrée'!$C$334+1+$B2042,$G2035*('1 Données d''entrée'!$C$332*(1+'1 Données d''entrée'!$C$332)^'1 Données d''entrée'!$C$333)/((1+'1 Données d''entrée'!$C$332)^'1 Données d''entrée'!$C$333-1),0))","v":0},{"$f":"IF(L1929<'1 Données d''entrée'!$C$334+1+$B2042,0,IF(L1929<'1 Données d''entrée'!$C$333+'1 Données d''entrée'!$C$334+1+$B2042,$G2035*('1 Données d''entrée'!$C$332*(1+'1 Données d''entrée'!$C$332)^'1 Données d''entrée'!$C$333)/((1+'1 Données d''entrée'!$C$332)^'1 Données d''entrée'!$C$333-1),0))","v":0},{"$f":"IF(M1929<'1 Données d''entrée'!$C$334+1+$B2042,0,IF(M1929<'1 Données d''entrée'!$C$333+'1 Données d''entrée'!$C$334+1+$B2042,$G2035*('1 Données d''entrée'!$C$332*(1+'1 Données d''entrée'!$C$332)^'1 Données d''entrée'!$C$333)/((1+'1 Données d''entrée'!$C$332)^'1 Données d''entrée'!$C$333-1),0))","v":0},{"$f":"IF(N1929<'1 Données d''entrée'!$C$334+1+$B2042,0,IF(N1929<'1 Données d''entrée'!$C$333+'1 Données d''entrée'!$C$334+1+$B2042,$G2035*('1 Données d''entrée'!$C$332*(1+'1 Données d''entrée'!$C$332)^'1 Données d''entrée'!$C$333)/((1+'1 Données d''entrée'!$C$332)^'1 Données d''entrée'!$C$333-1),0))","v":0},{"$f":"IF(O1929<'1 Données d''entrée'!$C$334+1+$B2042,0,IF(O1929<'1 Données d''entrée'!$C$333+'1 Données d''entrée'!$C$334+1+$B2042,$G2035*('1 Données d''entrée'!$C$332*(1+'1 Données d''entrée'!$C$332)^'1 Données d''entrée'!$C$333)/((1+'1 Données d''entrée'!$C$332)^'1 Données d''entrée'!$C$333-1),0))","v":0},{"$f":"IF(P1929<'1 Données d''entrée'!$C$334+1+$B2042,0,IF(P1929<'1 Données d''entrée'!$C$333+'1 Données d''entrée'!$C$334+1+$B2042,$G2035*('1 Données d''entrée'!$C$332*(1+'1 Données d''entrée'!$C$332)^'1 Données d''entrée'!$C$333)/((1+'1 Données d''entrée'!$C$332)^'1 Données d''entrée'!$C$333-1),0))","v":0},{"$f":"IF(Q1929<'1 Données d''entrée'!$C$334+1+$B2042,0,IF(Q1929<'1 Données d''entrée'!$C$333+'1 Données d''entrée'!$C$334+1+$B2042,$G2035*('1 Données d''entrée'!$C$332*(1+'1 Données d''entrée'!$C$332)^'1 Données d''entrée'!$C$333)/((1+'1 Données d''entrée'!$C$332)^'1 Données d''entrée'!$C$333-1),0))","v":0},{"$f":"IF(R1929<'1 Données d''entrée'!$C$334+1+$B2042,0,IF(R1929<'1 Données d''entrée'!$C$333+'1 Données d''entrée'!$C$334+1+$B2042,$G2035*('1 Données d''entrée'!$C$332*(1+'1 Données d''entrée'!$C$332)^'1 Données d''entrée'!$C$333)/((1+'1 Données d''entrée'!$C$332)^'1 Données d''entrée'!$C$333-1),0))","v":0},{"$f":"IF(S1929<'1 Données d''entrée'!$C$334+1+$B2042,0,IF(S1929<'1 Données d''entrée'!$C$333+'1 Données d''entrée'!$C$334+1+$B2042,$G2035*('1 Données d''entrée'!$C$332*(1+'1 Données d''entrée'!$C$332)^'1 Données d''entrée'!$C$333)/((1+'1 Données d''entrée'!$C$332)^'1 Données d''entrée'!$C$333-1),0))","v":0},{"$f":"IF(T1929<'1 Données d''entrée'!$C$334+1+$B2042,0,IF(T1929<'1 Données d''entrée'!$C$333+'1 Données d''entrée'!$C$334+1+$B2042,$G2035*('1 Données d''entrée'!$C$332*(1+'1 Données d''entrée'!$C$332)^'1 Données d''entrée'!$C$333)/((1+'1 Données d''entrée'!$C$332)^'1 Données d''entrée'!$C$333-1),0))","v":0},{"$f":"IF(U1929<'1 Données d''entrée'!$C$334+1+$B2042,0,IF(U1929<'1 Données d''entrée'!$C$333+'1 Données d''entrée'!$C$334+1+$B2042,$G2035*('1 Données d''entrée'!$C$332*(1+'1 Données d''entrée'!$C$332)^'1 Données d''entrée'!$C$333)/((1+'1 Données d''entrée'!$C$332)^'1 Données d''entrée'!$C$333-1),0))","v":0},{"$f":"IF(V1929<'1 Données d''entrée'!$C$334+1+$B2042,0,IF(V1929<'1 Données d''entrée'!$C$333+'1 Données d''entrée'!$C$334+1+$B2042,$G2035*('1 Données d''entrée'!$C$332*(1+'1 Données d''entrée'!$C$332)^'1 Données d''entrée'!$C$333)/((1+'1 Données d''entrée'!$C$332)^'1 Données d''entrée'!$C$333-1),0))","v":0}]
[null,6,{"$f":"IF(C$54<'1 Données d''entrée'!$C$334+1+$B2043,0,IF(C$54<'1 Données d''entrée'!$C$333+'1 Données d''entrée'!$C$334+1+$B2043,$H$160*('1 Données d''entrée'!$C$332*(1+'1 Données d''entrée'!$C$332)^'1 Données d''entrée'!$C$333)/((1+'1 Données d''entrée'!$C$332)^'1 Données d''entrée'!$C$333-1),0))","v":0},{"$f":"IF(D1929<'1 Données d''entrée'!$C$334+1+$B2043,0,IF(D1929<'1 Données d''entrée'!$C$333+'1 Données d''entrée'!$C$334+1+$B2043,$H2035*('1 Données d''entrée'!$C$332*(1+'1 Données d''entrée'!$C$332)^'1 Données d''entrée'!$C$333)/((1+'1 Données d''entrée'!$C$332)^'1 Données d''entrée'!$C$333-1),0))","v":0},{"$f":"IF(E1929<'1 Données d''entrée'!$C$334+1+$B2043,0,IF(E1929<'1 Données d''entrée'!$C$333+'1 Données d''entrée'!$C$334+1+$B2043,$H2035*('1 Données d''entrée'!$C$332*(1+'1 Données d''entrée'!$C$332)^'1 Données d''entrée'!$C$333)/((1+'1 Données d''entrée'!$C$332)^'1 Données d''entrée'!$C$333-1),0))","v":0},{"$f":"IF(F1929<'1 Données d''entrée'!$C$334+1+$B2043,0,IF(F1929<'1 Données d''entrée'!$C$333+'1 Données d''entrée'!$C$334+1+$B2043,$H2035*('1 Données d''entrée'!$C$332*(1+'1 Données d''entrée'!$C$332)^'1 Données d''entrée'!$C$333)/((1+'1 Données d''entrée'!$C$332)^'1 Données d''entrée'!$C$333-1),0))","v":0},{"$f":"IF(G1929<'1 Données d''entrée'!$C$334+1+$B2043,0,IF(G1929<'1 Données d''entrée'!$C$333+'1 Données d''entrée'!$C$334+1+$B2043,$H2035*('1 Données d''entrée'!$C$332*(1+'1 Données d''entrée'!$C$332)^'1 Données d''entrée'!$C$333)/((1+'1 Données d''entrée'!$C$332)^'1 Données d''entrée'!$C$333-1),0))","v":0},{"$f":"IF(H1929<'1 Données d''entrée'!$C$334+1+$B2043,0,IF(H1929<'1 Données d''entrée'!$C$333+'1 Données d''entrée'!$C$334+1+$B2043,$H2035*('1 Données d''entrée'!$C$332*(1+'1 Données d''entrée'!$C$332)^'1 Données d''entrée'!$C$333)/((1+'1 Données d''entrée'!$C$332)^'1 Données d''entrée'!$C$333-1),0))","v":0},{"$f":"IF(I1929<'1 Données d''entrée'!$C$334+1+$B2043,0,IF(I1929<'1 Données d''entrée'!$C$333+'1 Données d''entrée'!$C$334+1+$B2043,$H2035*('1 Données d''entrée'!$C$332*(1+'1 Données d''entrée'!$C$332)^'1 Données d''entrée'!$C$333)/((1+'1 Données d''entrée'!$C$332)^'1 Données d''entrée'!$C$333-1),0))","v":0},{"$f":"IF(J1929<'1 Données d''entrée'!$C$334+1+$B2043,0,IF(J1929<'1 Données d''entrée'!$C$333+'1 Données d''entrée'!$C$334+1+$B2043,$H2035*('1 Données d''entrée'!$C$332*(1+'1 Données d''entrée'!$C$332)^'1 Données d''entrée'!$C$333)/((1+'1 Données d''entrée'!$C$332)^'1 Données d''entrée'!$C$333-1),0))","v":0},{"$f":"IF(K1929<'1 Données d''entrée'!$C$334+1+$B2043,0,IF(K1929<'1 Données d''entrée'!$C$333+'1 Données d''entrée'!$C$334+1+$B2043,$H2035*('1 Données d''entrée'!$C$332*(1+'1 Données d''entrée'!$C$332)^'1 Données d''entrée'!$C$333)/((1+'1 Données d''entrée'!$C$332)^'1 Données d''entrée'!$C$333-1),0))","v":0},{"$f":"IF(L1929<'1 Données d''entrée'!$C$334+1+$B2043,0,IF(L1929<'1 Données d''entrée'!$C$333+'1 Données d''entrée'!$C$334+1+$B2043,$H2035*('1 Données d''entrée'!$C$332*(1+'1 Données d''entrée'!$C$332)^'1 Données d''entrée'!$C$333)/((1+'1 Données d''entrée'!$C$332)^'1 Données d''entrée'!$C$333-1),0))","v":0},{"$f":"IF(M1929<'1 Données d''entrée'!$C$334+1+$B2043,0,IF(M1929<'1 Données d''entrée'!$C$333+'1 Données d''entrée'!$C$334+1+$B2043,$H2035*('1 Données d''entrée'!$C$332*(1+'1 Données d''entrée'!$C$332)^'1 Données d''entrée'!$C$333)/((1+'1 Données d''entrée'!$C$332)^'1 Données d''entrée'!$C$333-1),0))","v":0},{"$f":"IF(N1929<'1 Données d''entrée'!$C$334+1+$B2043,0,IF(N1929<'1 Données d''entrée'!$C$333+'1 Données d''entrée'!$C$334+1+$B2043,$H2035*('1 Données d''entrée'!$C$332*(1+'1 Données d''entrée'!$C$332)^'1 Données d''entrée'!$C$333)/((1+'1 Données d''entrée'!$C$332)^'1 Données d''entrée'!$C$333-1),0))","v":0},{"$f":"IF(O1929<'1 Données d''entrée'!$C$334+1+$B2043,0,IF(O1929<'1 Données d''entrée'!$C$333+'1 Données d''entrée'!$C$334+1+$B2043,$H2035*('1 Données d''entrée'!$C$332*(1+'1 Données d''entrée'!$C$332)^'1 Données d''entrée'!$C$333)/((1+'1 Données d''entrée'!$C$332)^'1 Données d''entrée'!$C$333-1),0))","v":0},{"$f":"IF(P1929<'1 Données d''entrée'!$C$334+1+$B2043,0,IF(P1929<'1 Données d''entrée'!$C$333+'1 Données d''entrée'!$C$334+1+$B2043,$H2035*('1 Données d''entrée'!$C$332*(1+'1 Données d''entrée'!$C$332)^'1 Données d''entrée'!$C$333)/((1+'1 Données d''entrée'!$C$332)^'1 Données d''entrée'!$C$333-1),0))","v":0},{"$f":"IF(Q1929<'1 Données d''entrée'!$C$334+1+$B2043,0,IF(Q1929<'1 Données d''entrée'!$C$333+'1 Données d''entrée'!$C$334+1+$B2043,$H2035*('1 Données d''entrée'!$C$332*(1+'1 Données d''entrée'!$C$332)^'1 Données d''entrée'!$C$333)/((1+'1 Données d''entrée'!$C$332)^'1 Données d''entrée'!$C$333-1),0))","v":0},{"$f":"IF(R1929<'1 Données d''entrée'!$C$334+1+$B2043,0,IF(R1929<'1 Données d''entrée'!$C$333+'1 Données d''entrée'!$C$334+1+$B2043,$H2035*('1 Données d''entrée'!$C$332*(1+'1 Données d''entrée'!$C$332)^'1 Données d''entrée'!$C$333)/((1+'1 Données d''entrée'!$C$332)^'1 Données d''entrée'!$C$333-1),0))","v":0},{"$f":"IF(S1929<'1 Données d''entrée'!$C$334+1+$B2043,0,IF(S1929<'1 Données d''entrée'!$C$333+'1 Données d''entrée'!$C$334+1+$B2043,$H2035*('1 Données d''entrée'!$C$332*(1+'1 Données d''entrée'!$C$332)^'1 Données d''entrée'!$C$333)/((1+'1 Données d''entrée'!$C$332)^'1 Données d''entrée'!$C$333-1),0))","v":0},{"$f":"IF(T1929<'1 Données d''entrée'!$C$334+1+$B2043,0,IF(T1929<'1 Données d''entrée'!$C$333+'1 Données d''entrée'!$C$334+1+$B2043,$H2035*('1 Données d''entrée'!$C$332*(1+'1 Données d''entrée'!$C$332)^'1 Données d''entrée'!$C$333)/((1+'1 Données d''entrée'!$C$332)^'1 Données d''entrée'!$C$333-1),0))","v":0},{"$f":"IF(U1929<'1 Données d''entrée'!$C$334+1+$B2043,0,IF(U1929<'1 Données d''entrée'!$C$333+'1 Données d''entrée'!$C$334+1+$B2043,$H2035*('1 Données d''entrée'!$C$332*(1+'1 Données d''entrée'!$C$332)^'1 Données d''entrée'!$C$333)/((1+'1 Données d''entrée'!$C$332)^'1 Données d''entrée'!$C$333-1),0))","v":0},{"$f":"IF(V1929<'1 Données d''entrée'!$C$334+1+$B2043,0,IF(V1929<'1 Données d''entrée'!$C$333+'1 Données d''entrée'!$C$334+1+$B2043,$H2035*('1 Données d''entrée'!$C$332*(1+'1 Données d''entrée'!$C$332)^'1 Données d''entrée'!$C$333)/((1+'1 Données d''entrée'!$C$332)^'1 Données d''entrée'!$C$333-1),0))","v":0}]
[null,7,{"$f":"IF(C$54<'1 Données d''entrée'!$C$334+1+$B2044,0,IF(C$54<'1 Données d''entrée'!$C$333+'1 Données d''entrée'!$C$334+1+$B2044,$I$160*('1 Données d''entrée'!$C$332*(1+'1 Données d''entrée'!$C$332)^'1 Données d''entrée'!$C$333)/((1+'1 Données d''entrée'!$C$332)^'1 Données d''entrée'!$C$333-1),0))","v":0},{"$f":"IF(D1929<'1 Données d''entrée'!$C$334+1+$B2044,0,IF(D1929<'1 Données d''entrée'!$C$333+'1 Données d''entrée'!$C$334+1+$B2044,$I2035*('1 Données d''entrée'!$C$332*(1+'1 Données d''entrée'!$C$332)^'1 Données d''entrée'!$C$333)/((1+'1 Données d''entrée'!$C$332)^'1 Données d''entrée'!$C$333-1),0))","v":0},{"$f":"IF(E1929<'1 Données d''entrée'!$C$334+1+$B2044,0,IF(E1929<'1 Données d''entrée'!$C$333+'1 Données d''entrée'!$C$334+1+$B2044,$I2035*('1 Données d''entrée'!$C$332*(1+'1 Données d''entrée'!$C$332)^'1 Données d''entrée'!$C$333)/((1+'1 Données d''entrée'!$C$332)^'1 Données d''entrée'!$C$333-1),0))","v":0},{"$f":"IF(F1929<'1 Données d''entrée'!$C$334+1+$B2044,0,IF(F1929<'1 Données d''entrée'!$C$333+'1 Données d''entrée'!$C$334+1+$B2044,$I2035*('1 Données d''entrée'!$C$332*(1+'1 Données d''entrée'!$C$332)^'1 Données d''entrée'!$C$333)/((1+'1 Données d''entrée'!$C$332)^'1 Données d''entrée'!$C$333-1),0))","v":0},{"$f":"IF(G1929<'1 Données d''entrée'!$C$334+1+$B2044,0,IF(G1929<'1 Données d''entrée'!$C$333+'1 Données d''entrée'!$C$334+1+$B2044,$I2035*('1 Données d''entrée'!$C$332*(1+'1 Données d''entrée'!$C$332)^'1 Données d''entrée'!$C$333)/((1+'1 Données d''entrée'!$C$332)^'1 Données d''entrée'!$C$333-1),0))","v":0},{"$f":"IF(H1929<'1 Données d''entrée'!$C$334+1+$B2044,0,IF(H1929<'1 Données d''entrée'!$C$333+'1 Données d''entrée'!$C$334+1+$B2044,$I2035*('1 Données d''entrée'!$C$332*(1+'1 Données d''entrée'!$C$332)^'1 Données d''entrée'!$C$333)/((1+'1 Données d''entrée'!$C$332)^'1 Données d''entrée'!$C$333-1),0))","v":0},{"$f":"IF(I1929<'1 Données d''entrée'!$C$334+1+$B2044,0,IF(I1929<'1 Données d''entrée'!$C$333+'1 Données d''entrée'!$C$334+1+$B2044,$I2035*('1 Données d''entrée'!$C$332*(1+'1 Données d''entrée'!$C$332)^'1 Données d''entrée'!$C$333)/((1+'1 Données d''entrée'!$C$332)^'1 Données d''entrée'!$C$333-1),0))","v":0},{"$f":"IF(J1929<'1 Données d''entrée'!$C$334+1+$B2044,0,IF(J1929<'1 Données d''entrée'!$C$333+'1 Données d''entrée'!$C$334+1+$B2044,$I2035*('1 Données d''entrée'!$C$332*(1+'1 Données d''entrée'!$C$332)^'1 Données d''entrée'!$C$333)/((1+'1 Données d''entrée'!$C$332)^'1 Données d''entrée'!$C$333-1),0))","v":0},{"$f":"IF(K1929<'1 Données d''entrée'!$C$334+1+$B2044,0,IF(K1929<'1 Données d''entrée'!$C$333+'1 Données d''entrée'!$C$334+1+$B2044,$I2035*('1 Données d''entrée'!$C$332*(1+'1 Données d''entrée'!$C$332)^'1 Données d''entrée'!$C$333)/((1+'1 Données d''entrée'!$C$332)^'1 Données d''entrée'!$C$333-1),0))","v":0},{"$f":"IF(L1929<'1 Données d''entrée'!$C$334+1+$B2044,0,IF(L1929<'1 Données d''entrée'!$C$333+'1 Données d''entrée'!$C$334+1+$B2044,$I2035*('1 Données d''entrée'!$C$332*(1+'1 Données d''entrée'!$C$332)^'1 Données d''entrée'!$C$333)/((1+'1 Données d''entrée'!$C$332)^'1 Données d''entrée'!$C$333-1),0))","v":0},{"$f":"IF(M1929<'1 Données d''entrée'!$C$334+1+$B2044,0,IF(M1929<'1 Données d''entrée'!$C$333+'1 Données d''entrée'!$C$334+1+$B2044,$I2035*('1 Données d''entrée'!$C$332*(1+'1 Données d''entrée'!$C$332)^'1 Données d''entrée'!$C$333)/((1+'1 Données d''entrée'!$C$332)^'1 Données d''entrée'!$C$333-1),0))","v":0},{"$f":"IF(N1929<'1 Données d''entrée'!$C$334+1+$B2044,0,IF(N1929<'1 Données d''entrée'!$C$333+'1 Données d''entrée'!$C$334+1+$B2044,$I2035*('1 Données d''entrée'!$C$332*(1+'1 Données d''entrée'!$C$332)^'1 Données d''entrée'!$C$333)/((1+'1 Données d''entrée'!$C$332)^'1 Données d''entrée'!$C$333-1),0))","v":0},{"$f":"IF(O1929<'1 Données d''entrée'!$C$334+1+$B2044,0,IF(O1929<'1 Données d''entrée'!$C$333+'1 Données d''entrée'!$C$334+1+$B2044,$I2035*('1 Données d''entrée'!$C$332*(1+'1 Données d''entrée'!$C$332)^'1 Données d''entrée'!$C$333)/((1+'1 Données d''entrée'!$C$332)^'1 Données d''entrée'!$C$333-1),0))","v":0},{"$f":"IF(P1929<'1 Données d''entrée'!$C$334+1+$B2044,0,IF(P1929<'1 Données d''entrée'!$C$333+'1 Données d''entrée'!$C$334+1+$B2044,$I2035*('1 Données d''entrée'!$C$332*(1+'1 Données d''entrée'!$C$332)^'1 Données d''entrée'!$C$333)/((1+'1 Données d''entrée'!$C$332)^'1 Données d''entrée'!$C$333-1),0))","v":0},{"$f":"IF(Q1929<'1 Données d''entrée'!$C$334+1+$B2044,0,IF(Q1929<'1 Données d''entrée'!$C$333+'1 Données d''entrée'!$C$334+1+$B2044,$I2035*('1 Données d''entrée'!$C$332*(1+'1 Données d''entrée'!$C$332)^'1 Données d''entrée'!$C$333)/((1+'1 Données d''entrée'!$C$332)^'1 Données d''entrée'!$C$333-1),0))","v":0},{"$f":"IF(R1929<'1 Données d''entrée'!$C$334+1+$B2044,0,IF(R1929<'1 Données d''entrée'!$C$333+'1 Données d''entrée'!$C$334+1+$B2044,$I2035*('1 Données d''entrée'!$C$332*(1+'1 Données d''entrée'!$C$332)^'1 Données d''entrée'!$C$333)/((1+'1 Données d''entrée'!$C$332)^'1 Données d''entrée'!$C$333-1),0))","v":0},{"$f":"IF(S1929<'1 Données d''entrée'!$C$334+1+$B2044,0,IF(S1929<'1 Données d''entrée'!$C$333+'1 Données d''entrée'!$C$334+1+$B2044,$I2035*('1 Données d''entrée'!$C$332*(1+'1 Données d''entrée'!$C$332)^'1 Données d''entrée'!$C$333)/((1+'1 Données d''entrée'!$C$332)^'1 Données d''entrée'!$C$333-1),0))","v":0},{"$f":"IF(T1929<'1 Données d''entrée'!$C$334+1+$B2044,0,IF(T1929<'1 Données d''entrée'!$C$333+'1 Données d''entrée'!$C$334+1+$B2044,$I2035*('1 Données d''entrée'!$C$332*(1+'1 Données d''entrée'!$C$332)^'1 Données d''entrée'!$C$333)/((1+'1 Données d''entrée'!$C$332)^'1 Données d''entrée'!$C$333-1),0))","v":0},{"$f":"IF(U1929<'1 Données d''entrée'!$C$334+1+$B2044,0,IF(U1929<'1 Données d''entrée'!$C$333+'1 Données d''entrée'!$C$334+1+$B2044,$I2035*('1 Données d''entrée'!$C$332*(1+'1 Données d''entrée'!$C$332)^'1 Données d''entrée'!$C$333)/((1+'1 Données d''entrée'!$C$332)^'1 Données d''entrée'!$C$333-1),0))","v":0},{"$f":"IF(V1929<'1 Données d''entrée'!$C$334+1+$B2044,0,IF(V1929<'1 Données d''entrée'!$C$333+'1 Données d''entrée'!$C$334+1+$B2044,$I2035*('1 Données d''entrée'!$C$332*(1+'1 Données d''entrée'!$C$332)^'1 Données d''entrée'!$C$333)/((1+'1 Données d''entrée'!$C$332)^'1 Données d''entrée'!$C$333-1),0))","v":0}]
[null,8,{"$f":"IF(C$54<'1 Données d''entrée'!$C$334+1+$B2045,0,IF(C$54<'1 Données d''entrée'!$C$333+'1 Données d''entrée'!$C$334+1+$B2045,$J$160*('1 Données d''entrée'!$C$332*(1+'1 Données d''entrée'!$C$332)^'1 Données d''entrée'!$C$333)/((1+'1 Données d''entrée'!$C$332)^'1 Données d''entrée'!$C$333-1),0))","v":0},{"$f":"IF(D1929<'1 Données d''entrée'!$C$334+1+$B2045,0,IF(D1929<'1 Données d''entrée'!$C$333+'1 Données d''entrée'!$C$334+1+$B2045,$J2035*('1 Données d''entrée'!$C$332*(1+'1 Données d''entrée'!$C$332)^'1 Données d''entrée'!$C$333)/((1+'1 Données d''entrée'!$C$332)^'1 Données d''entrée'!$C$333-1),0))","v":0},{"$f":"IF(E1929<'1 Données d''entrée'!$C$334+1+$B2045,0,IF(E1929<'1 Données d''entrée'!$C$333+'1 Données d''entrée'!$C$334+1+$B2045,$J2035*('1 Données d''entrée'!$C$332*(1+'1 Données d''entrée'!$C$332)^'1 Données d''entrée'!$C$333)/((1+'1 Données d''entrée'!$C$332)^'1 Données d''entrée'!$C$333-1),0))","v":0},{"$f":"IF(F1929<'1 Données d''entrée'!$C$334+1+$B2045,0,IF(F1929<'1 Données d''entrée'!$C$333+'1 Données d''entrée'!$C$334+1+$B2045,$J2035*('1 Données d''entrée'!$C$332*(1+'1 Données d''entrée'!$C$332)^'1 Données d''entrée'!$C$333)/((1+'1 Données d''entrée'!$C$332)^'1 Données d''entrée'!$C$333-1),0))","v":0},{"$f":"IF(G1929<'1 Données d''entrée'!$C$334+1+$B2045,0,IF(G1929<'1 Données d''entrée'!$C$333+'1 Données d''entrée'!$C$334+1+$B2045,$J2035*('1 Données d''entrée'!$C$332*(1+'1 Données d''entrée'!$C$332)^'1 Données d''entrée'!$C$333)/((1+'1 Données d''entrée'!$C$332)^'1 Données d''entrée'!$C$333-1),0))","v":0},{"$f":"IF(H1929<'1 Données d''entrée'!$C$334+1+$B2045,0,IF(H1929<'1 Données d''entrée'!$C$333+'1 Données d''entrée'!$C$334+1+$B2045,$J2035*('1 Données d''entrée'!$C$332*(1+'1 Données d''entrée'!$C$332)^'1 Données d''entrée'!$C$333)/((1+'1 Données d''entrée'!$C$332)^'1 Données d''entrée'!$C$333-1),0))","v":0},{"$f":"IF(I1929<'1 Données d''entrée'!$C$334+1+$B2045,0,IF(I1929<'1 Données d''entrée'!$C$333+'1 Données d''entrée'!$C$334+1+$B2045,$J2035*('1 Données d''entrée'!$C$332*(1+'1 Données d''entrée'!$C$332)^'1 Données d''entrée'!$C$333)/((1+'1 Données d''entrée'!$C$332)^'1 Données d''entrée'!$C$333-1),0))","v":0},{"$f":"IF(J1929<'1 Données d''entrée'!$C$334+1+$B2045,0,IF(J1929<'1 Données d''entrée'!$C$333+'1 Données d''entrée'!$C$334+1+$B2045,$J2035*('1 Données d''entrée'!$C$332*(1+'1 Données d''entrée'!$C$332)^'1 Données d''entrée'!$C$333)/((1+'1 Données d''entrée'!$C$332)^'1 Données d''entrée'!$C$333-1),0))","v":0},{"$f":"IF(K1929<'1 Données d''entrée'!$C$334+1+$B2045,0,IF(K1929<'1 Données d''entrée'!$C$333+'1 Données d''entrée'!$C$334+1+$B2045,$J2035*('1 Données d''entrée'!$C$332*(1+'1 Données d''entrée'!$C$332)^'1 Données d''entrée'!$C$333)/((1+'1 Données d''entrée'!$C$332)^'1 Données d''entrée'!$C$333-1),0))","v":0},{"$f":"IF(L1929<'1 Données d''entrée'!$C$334+1+$B2045,0,IF(L1929<'1 Données d''entrée'!$C$333+'1 Données d''entrée'!$C$334+1+$B2045,$J2035*('1 Données d''entrée'!$C$332*(1+'1 Données d''entrée'!$C$332)^'1 Données d''entrée'!$C$333)/((1+'1 Données d''entrée'!$C$332)^'1 Données d''entrée'!$C$333-1),0))","v":0},{"$f":"IF(M1929<'1 Données d''entrée'!$C$334+1+$B2045,0,IF(M1929<'1 Données d''entrée'!$C$333+'1 Données d''entrée'!$C$334+1+$B2045,$J2035*('1 Données d''entrée'!$C$332*(1+'1 Données d''entrée'!$C$332)^'1 Données d''entrée'!$C$333)/((1+'1 Données d''entrée'!$C$332)^'1 Données d''entrée'!$C$333-1),0))","v":0},{"$f":"IF(N1929<'1 Données d''entrée'!$C$334+1+$B2045,0,IF(N1929<'1 Données d''entrée'!$C$333+'1 Données d''entrée'!$C$334+1+$B2045,$J2035*('1 Données d''entrée'!$C$332*(1+'1 Données d''entrée'!$C$332)^'1 Données d''entrée'!$C$333)/((1+'1 Données d''entrée'!$C$332)^'1 Données d''entrée'!$C$333-1),0))","v":0},{"$f":"IF(O1929<'1 Données d''entrée'!$C$334+1+$B2045,0,IF(O1929<'1 Données d''entrée'!$C$333+'1 Données d''entrée'!$C$334+1+$B2045,$J2035*('1 Données d''entrée'!$C$332*(1+'1 Données d''entrée'!$C$332)^'1 Données d''entrée'!$C$333)/((1+'1 Données d''entrée'!$C$332)^'1 Données d''entrée'!$C$333-1),0))","v":0},{"$f":"IF(P1929<'1 Données d''entrée'!$C$334+1+$B2045,0,IF(P1929<'1 Données d''entrée'!$C$333+'1 Données d''entrée'!$C$334+1+$B2045,$J2035*('1 Données d''entrée'!$C$332*(1+'1 Données d''entrée'!$C$332)^'1 Données d''entrée'!$C$333)/((1+'1 Données d''entrée'!$C$332)^'1 Données d''entrée'!$C$333-1),0))","v":0},{"$f":"IF(Q1929<'1 Données d''entrée'!$C$334+1+$B2045,0,IF(Q1929<'1 Données d''entrée'!$C$333+'1 Données d''entrée'!$C$334+1+$B2045,$J2035*('1 Données d''entrée'!$C$332*(1+'1 Données d''entrée'!$C$332)^'1 Données d''entrée'!$C$333)/((1+'1 Données d''entrée'!$C$332)^'1 Données d''entrée'!$C$333-1),0))","v":0},{"$f":"IF(R1929<'1 Données d''entrée'!$C$334+1+$B2045,0,IF(R1929<'1 Données d''entrée'!$C$333+'1 Données d''entrée'!$C$334+1+$B2045,$J2035*('1 Données d''entrée'!$C$332*(1+'1 Données d''entrée'!$C$332)^'1 Données d''entrée'!$C$333)/((1+'1 Données d''entrée'!$C$332)^'1 Données d''entrée'!$C$333-1),0))","v":0},{"$f":"IF(S1929<'1 Données d''entrée'!$C$334+1+$B2045,0,IF(S1929<'1 Données d''entrée'!$C$333+'1 Données d''entrée'!$C$334+1+$B2045,$J2035*('1 Données d''entrée'!$C$332*(1+'1 Données d''entrée'!$C$332)^'1 Données d''entrée'!$C$333)/((1+'1 Données d''entrée'!$C$332)^'1 Données d''entrée'!$C$333-1),0))","v":0},{"$f":"IF(T1929<'1 Données d''entrée'!$C$334+1+$B2045,0,IF(T1929<'1 Données d''entrée'!$C$333+'1 Données d''entrée'!$C$334+1+$B2045,$J2035*('1 Données d''entrée'!$C$332*(1+'1 Données d''entrée'!$C$332)^'1 Données d''entrée'!$C$333)/((1+'1 Données d''entrée'!$C$332)^'1 Données d''entrée'!$C$333-1),0))","v":0},{"$f":"IF(U1929<'1 Données d''entrée'!$C$334+1+$B2045,0,IF(U1929<'1 Données d''entrée'!$C$333+'1 Données d''entrée'!$C$334+1+$B2045,$J2035*('1 Données d''entrée'!$C$332*(1+'1 Données d''entrée'!$C$332)^'1 Données d''entrée'!$C$333)/((1+'1 Données d''entrée'!$C$332)^'1 Données d''entrée'!$C$333-1),0))","v":0},{"$f":"IF(V1929<'1 Données d''entrée'!$C$334+1+$B2045,0,IF(V1929<'1 Données d''entrée'!$C$333+'1 Données d''entrée'!$C$334+1+$B2045,$J2035*('1 Données d''entrée'!$C$332*(1+'1 Données d''entrée'!$C$332)^'1 Données d''entrée'!$C$333)/((1+'1 Données d''entrée'!$C$332)^'1 Données d''entrée'!$C$333-1),0))","v":0}]
[null,9,{"$f":"IF(C$54<'1 Données d''entrée'!$C$334+1+$B2046,0,IF(C$54<'1 Données d''entrée'!$C$333+'1 Données d''entrée'!$C$334+1+$B2046,$K$160*('1 Données d''entrée'!$C$332*(1+'1 Données d''entrée'!$C$332)^'1 Données d''entrée'!$C$333)/((1+'1 Données d''entrée'!$C$332)^'1 Données d''entrée'!$C$333-1),0))","v":0},{"$f":"IF(D1929<'1 Données d''entrée'!$C$334+1+$B2046,0,IF(D1929<'1 Données d''entrée'!$C$333+'1 Données d''entrée'!$C$334+1+$B2046,$K2035*('1 Données d''entrée'!$C$332*(1+'1 Données d''entrée'!$C$332)^'1 Données d''entrée'!$C$333)/((1+'1 Données d''entrée'!$C$332)^'1 Données d''entrée'!$C$333-1),0))","v":0},{"$f":"IF(E1929<'1 Données d''entrée'!$C$334+1+$B2046,0,IF(E1929<'1 Données d''entrée'!$C$333+'1 Données d''entrée'!$C$334+1+$B2046,$K2035*('1 Données d''entrée'!$C$332*(1+'1 Données d''entrée'!$C$332)^'1 Données d''entrée'!$C$333)/((1+'1 Données d''entrée'!$C$332)^'1 Données d''entrée'!$C$333-1),0))","v":0},{"$f":"IF(F1929<'1 Données d''entrée'!$C$334+1+$B2046,0,IF(F1929<'1 Données d''entrée'!$C$333+'1 Données d''entrée'!$C$334+1+$B2046,$K2035*('1 Données d''entrée'!$C$332*(1+'1 Données d''entrée'!$C$332)^'1 Données d''entrée'!$C$333)/((1+'1 Données d''entrée'!$C$332)^'1 Données d''entrée'!$C$333-1),0))","v":0},{"$f":"IF(G1929<'1 Données d''entrée'!$C$334+1+$B2046,0,IF(G1929<'1 Données d''entrée'!$C$333+'1 Données d''entrée'!$C$334+1+$B2046,$K2035*('1 Données d''entrée'!$C$332*(1+'1 Données d''entrée'!$C$332)^'1 Données d''entrée'!$C$333)/((1+'1 Données d''entrée'!$C$332)^'1 Données d''entrée'!$C$333-1),0))","v":0},{"$f":"IF(H1929<'1 Données d''entrée'!$C$334+1+$B2046,0,IF(H1929<'1 Données d''entrée'!$C$333+'1 Données d''entrée'!$C$334+1+$B2046,$K2035*('1 Données d''entrée'!$C$332*(1+'1 Données d''entrée'!$C$332)^'1 Données d''entrée'!$C$333)/((1+'1 Données d''entrée'!$C$332)^'1 Données d''entrée'!$C$333-1),0))","v":0},{"$f":"IF(I1929<'1 Données d''entrée'!$C$334+1+$B2046,0,IF(I1929<'1 Données d''entrée'!$C$333+'1 Données d''entrée'!$C$334+1+$B2046,$K2035*('1 Données d''entrée'!$C$332*(1+'1 Données d''entrée'!$C$332)^'1 Données d''entrée'!$C$333)/((1+'1 Données d''entrée'!$C$332)^'1 Données d''entrée'!$C$333-1),0))","v":0},{"$f":"IF(J1929<'1 Données d''entrée'!$C$334+1+$B2046,0,IF(J1929<'1 Données d''entrée'!$C$333+'1 Données d''entrée'!$C$334+1+$B2046,$K2035*('1 Données d''entrée'!$C$332*(1+'1 Données d''entrée'!$C$332)^'1 Données d''entrée'!$C$333)/((1+'1 Données d''entrée'!$C$332)^'1 Données d''entrée'!$C$333-1),0))","v":0},{"$f":"IF(K1929<'1 Données d''entrée'!$C$334+1+$B2046,0,IF(K1929<'1 Données d''entrée'!$C$333+'1 Données d''entrée'!$C$334+1+$B2046,$K2035*('1 Données d''entrée'!$C$332*(1+'1 Données d''entrée'!$C$332)^'1 Données d''entrée'!$C$333)/((1+'1 Données d''entrée'!$C$332)^'1 Données d''entrée'!$C$333-1),0))","v":0},{"$f":"IF(L1929<'1 Données d''entrée'!$C$334+1+$B2046,0,IF(L1929<'1 Données d''entrée'!$C$333+'1 Données d''entrée'!$C$334+1+$B2046,$K2035*('1 Données d''entrée'!$C$332*(1+'1 Données d''entrée'!$C$332)^'1 Données d''entrée'!$C$333)/((1+'1 Données d''entrée'!$C$332)^'1 Données d''entrée'!$C$333-1),0))","v":0},{"$f":"IF(M1929<'1 Données d''entrée'!$C$334+1+$B2046,0,IF(M1929<'1 Données d''entrée'!$C$333+'1 Données d''entrée'!$C$334+1+$B2046,$K2035*('1 Données d''entrée'!$C$332*(1+'1 Données d''entrée'!$C$332)^'1 Données d''entrée'!$C$333)/((1+'1 Données d''entrée'!$C$332)^'1 Données d''entrée'!$C$333-1),0))","v":0},{"$f":"IF(N1929<'1 Données d''entrée'!$C$334+1+$B2046,0,IF(N1929<'1 Données d''entrée'!$C$333+'1 Données d''entrée'!$C$334+1+$B2046,$K2035*('1 Données d''entrée'!$C$332*(1+'1 Données d''entrée'!$C$332)^'1 Données d''entrée'!$C$333)/((1+'1 Données d''entrée'!$C$332)^'1 Données d''entrée'!$C$333-1),0))","v":0},{"$f":"IF(O1929<'1 Données d''entrée'!$C$334+1+$B2046,0,IF(O1929<'1 Données d''entrée'!$C$333+'1 Données d''entrée'!$C$334+1+$B2046,$K2035*('1 Données d''entrée'!$C$332*(1+'1 Données d''entrée'!$C$332)^'1 Données d''entrée'!$C$333)/((1+'1 Données d''entrée'!$C$332)^'1 Données d''entrée'!$C$333-1),0))","v":0},{"$f":"IF(P1929<'1 Données d''entrée'!$C$334+1+$B2046,0,IF(P1929<'1 Données d''entrée'!$C$333+'1 Données d''entrée'!$C$334+1+$B2046,$K2035*('1 Données d''entrée'!$C$332*(1+'1 Données d''entrée'!$C$332)^'1 Données d''entrée'!$C$333)/((1+'1 Données d''entrée'!$C$332)^'1 Données d''entrée'!$C$333-1),0))","v":0},{"$f":"IF(Q1929<'1 Données d''entrée'!$C$334+1+$B2046,0,IF(Q1929<'1 Données d''entrée'!$C$333+'1 Données d''entrée'!$C$334+1+$B2046,$K2035*('1 Données d''entrée'!$C$332*(1+'1 Données d''entrée'!$C$332)^'1 Données d''entrée'!$C$333)/((1+'1 Données d''entrée'!$C$332)^'1 Données d''entrée'!$C$333-1),0))","v":0},{"$f":"IF(R1929<'1 Données d''entrée'!$C$334+1+$B2046,0,IF(R1929<'1 Données d''entrée'!$C$333+'1 Données d''entrée'!$C$334+1+$B2046,$K2035*('1 Données d''entrée'!$C$332*(1+'1 Données d''entrée'!$C$332)^'1 Données d''entrée'!$C$333)/((1+'1 Données d''entrée'!$C$332)^'1 Données d''entrée'!$C$333-1),0))","v":0},{"$f":"IF(S1929<'1 Données d''entrée'!$C$334+1+$B2046,0,IF(S1929<'1 Données d''entrée'!$C$333+'1 Données d''entrée'!$C$334+1+$B2046,$K2035*('1 Données d''entrée'!$C$332*(1+'1 Données d''entrée'!$C$332)^'1 Données d''entrée'!$C$333)/((1+'1 Données d''entrée'!$C$332)^'1 Données d''entrée'!$C$333-1),0))","v":0},{"$f":"IF(T1929<'1 Données d''entrée'!$C$334+1+$B2046,0,IF(T1929<'1 Données d''entrée'!$C$333+'1 Données d''entrée'!$C$334+1+$B2046,$K2035*('1 Données d''entrée'!$C$332*(1+'1 Données d''entrée'!$C$332)^'1 Données d''entrée'!$C$333)/((1+'1 Données d''entrée'!$C$332)^'1 Données d''entrée'!$C$333-1),0))","v":0},{"$f":"IF(U1929<'1 Données d''entrée'!$C$334+1+$B2046,0,IF(U1929<'1 Données d''entrée'!$C$333+'1 Données d''entrée'!$C$334+1+$B2046,$K2035*('1 Données d''entrée'!$C$332*(1+'1 Données d''entrée'!$C$332)^'1 Données d''entrée'!$C$333)/((1+'1 Données d''entrée'!$C$332)^'1 Données d''entrée'!$C$333-1),0))","v":0},{"$f":"IF(V1929<'1 Données d''entrée'!$C$334+1+$B2046,0,IF(V1929<'1 Données d''entrée'!$C$333+'1 Données d''entrée'!$C$334+1+$B2046,$K2035*('1 Données d''entrée'!$C$332*(1+'1 Données d''entrée'!$C$332)^'1 Données d''entrée'!$C$333)/((1+'1 Données d''entrée'!$C$332)^'1 Données d''entrée'!$C$333-1),0))","v":0}]
[null,10,{"$f":"IF(C$54<'1 Données d''entrée'!$C$334+1+$B2047,0,IF(C$54<'1 Données d''entrée'!$C$333+'1 Données d''entrée'!$C$334+1+$B2047,$L$160*('1 Données d''entrée'!$C$332*(1+'1 Données d''entrée'!$C$332)^'1 Données d''entrée'!$C$333)/((1+'1 Données d''entrée'!$C$332)^'1 Données d''entrée'!$C$333-1),0))","v":0},{"$f":"IF(D1929<'1 Données d''entrée'!$C$334+1+$B2047,0,IF(D1929<'1 Données d''entrée'!$C$333+'1 Données d''entrée'!$C$334+1+$B2047,$L2035*('1 Données d''entrée'!$C$332*(1+'1 Données d''entrée'!$C$332)^'1 Données d''entrée'!$C$333)/((1+'1 Données d''entrée'!$C$332)^'1 Données d''entrée'!$C$333-1),0))","v":0},{"$f":"IF(E1929<'1 Données d''entrée'!$C$334+1+$B2047,0,IF(E1929<'1 Données d''entrée'!$C$333+'1 Données d''entrée'!$C$334+1+$B2047,$L2035*('1 Données d''entrée'!$C$332*(1+'1 Données d''entrée'!$C$332)^'1 Données d''entrée'!$C$333)/((1+'1 Données d''entrée'!$C$332)^'1 Données d''entrée'!$C$333-1),0))","v":0},{"$f":"IF(F1929<'1 Données d''entrée'!$C$334+1+$B2047,0,IF(F1929<'1 Données d''entrée'!$C$333+'1 Données d''entrée'!$C$334+1+$B2047,$L2035*('1 Données d''entrée'!$C$332*(1+'1 Données d''entrée'!$C$332)^'1 Données d''entrée'!$C$333)/((1+'1 Données d''entrée'!$C$332)^'1 Données d''entrée'!$C$333-1),0))","v":0},{"$f":"IF(G1929<'1 Données d''entrée'!$C$334+1+$B2047,0,IF(G1929<'1 Données d''entrée'!$C$333+'1 Données d''entrée'!$C$334+1+$B2047,$L2035*('1 Données d''entrée'!$C$332*(1+'1 Données d''entrée'!$C$332)^'1 Données d''entrée'!$C$333)/((1+'1 Données d''entrée'!$C$332)^'1 Données d''entrée'!$C$333-1),0))","v":0},{"$f":"IF(H1929<'1 Données d''entrée'!$C$334+1+$B2047,0,IF(H1929<'1 Données d''entrée'!$C$333+'1 Données d''entrée'!$C$334+1+$B2047,$L2035*('1 Données d''entrée'!$C$332*(1+'1 Données d''entrée'!$C$332)^'1 Données d''entrée'!$C$333)/((1+'1 Données d''entrée'!$C$332)^'1 Données d''entrée'!$C$333-1),0))","v":0},{"$f":"IF(I1929<'1 Données d''entrée'!$C$334+1+$B2047,0,IF(I1929<'1 Données d''entrée'!$C$333+'1 Données d''entrée'!$C$334+1+$B2047,$L2035*('1 Données d''entrée'!$C$332*(1+'1 Données d''entrée'!$C$332)^'1 Données d''entrée'!$C$333)/((1+'1 Données d''entrée'!$C$332)^'1 Données d''entrée'!$C$333-1),0))","v":0},{"$f":"IF(J1929<'1 Données d''entrée'!$C$334+1+$B2047,0,IF(J1929<'1 Données d''entrée'!$C$333+'1 Données d''entrée'!$C$334+1+$B2047,$L2035*('1 Données d''entrée'!$C$332*(1+'1 Données d''entrée'!$C$332)^'1 Données d''entrée'!$C$333)/((1+'1 Données d''entrée'!$C$332)^'1 Données d''entrée'!$C$333-1),0))","v":0},{"$f":"IF(K1929<'1 Données d''entrée'!$C$334+1+$B2047,0,IF(K1929<'1 Données d''entrée'!$C$333+'1 Données d''entrée'!$C$334+1+$B2047,$L2035*('1 Données d''entrée'!$C$332*(1+'1 Données d''entrée'!$C$332)^'1 Données d''entrée'!$C$333)/((1+'1 Données d''entrée'!$C$332)^'1 Données d''entrée'!$C$333-1),0))","v":0},{"$f":"IF(L1929<'1 Données d''entrée'!$C$334+1+$B2047,0,IF(L1929<'1 Données d''entrée'!$C$333+'1 Données d''entrée'!$C$334+1+$B2047,$L2035*('1 Données d''entrée'!$C$332*(1+'1 Données d''entrée'!$C$332)^'1 Données d''entrée'!$C$333)/((1+'1 Données d''entrée'!$C$332)^'1 Données d''entrée'!$C$333-1),0))","v":0},{"$f":"IF(M1929<'1 Données d''entrée'!$C$334+1+$B2047,0,IF(M1929<'1 Données d''entrée'!$C$333+'1 Données d''entrée'!$C$334+1+$B2047,$L2035*('1 Données d''entrée'!$C$332*(1+'1 Données d''entrée'!$C$332)^'1 Données d''entrée'!$C$333)/((1+'1 Données d''entrée'!$C$332)^'1 Données d''entrée'!$C$333-1),0))","v":0},{"$f":"IF(N1929<'1 Données d''entrée'!$C$334+1+$B2047,0,IF(N1929<'1 Données d''entrée'!$C$333+'1 Données d''entrée'!$C$334+1+$B2047,$L2035*('1 Données d''entrée'!$C$332*(1+'1 Données d''entrée'!$C$332)^'1 Données d''entrée'!$C$333)/((1+'1 Données d''entrée'!$C$332)^'1 Données d''entrée'!$C$333-1),0))","v":0},{"$f":"IF(O1929<'1 Données d''entrée'!$C$334+1+$B2047,0,IF(O1929<'1 Données d''entrée'!$C$333+'1 Données d''entrée'!$C$334+1+$B2047,$L2035*('1 Données d''entrée'!$C$332*(1+'1 Données d''entrée'!$C$332)^'1 Données d''entrée'!$C$333)/((1+'1 Données d''entrée'!$C$332)^'1 Données d''entrée'!$C$333-1),0))","v":0},{"$f":"IF(P1929<'1 Données d''entrée'!$C$334+1+$B2047,0,IF(P1929<'1 Données d''entrée'!$C$333+'1 Données d''entrée'!$C$334+1+$B2047,$L2035*('1 Données d''entrée'!$C$332*(1+'1 Données d''entrée'!$C$332)^'1 Données d''entrée'!$C$333)/((1+'1 Données d''entrée'!$C$332)^'1 Données d''entrée'!$C$333-1),0))","v":0},{"$f":"IF(Q1929<'1 Données d''entrée'!$C$334+1+$B2047,0,IF(Q1929<'1 Données d''entrée'!$C$333+'1 Données d''entrée'!$C$334+1+$B2047,$L2035*('1 Données d''entrée'!$C$332*(1+'1 Données d''entrée'!$C$332)^'1 Données d''entrée'!$C$333)/((1+'1 Données d''entrée'!$C$332)^'1 Données d''entrée'!$C$333-1),0))","v":0},{"$f":"IF(R1929<'1 Données d''entrée'!$C$334+1+$B2047,0,IF(R1929<'1 Données d''entrée'!$C$333+'1 Données d''entrée'!$C$334+1+$B2047,$L2035*('1 Données d''entrée'!$C$332*(1+'1 Données d''entrée'!$C$332)^'1 Données d''entrée'!$C$333)/((1+'1 Données d''entrée'!$C$332)^'1 Données d''entrée'!$C$333-1),0))","v":0},{"$f":"IF(S1929<'1 Données d''entrée'!$C$334+1+$B2047,0,IF(S1929<'1 Données d''entrée'!$C$333+'1 Données d''entrée'!$C$334+1+$B2047,$L2035*('1 Données d''entrée'!$C$332*(1+'1 Données d''entrée'!$C$332)^'1 Données d''entrée'!$C$333)/((1+'1 Données d''entrée'!$C$332)^'1 Données d''entrée'!$C$333-1),0))","v":0},{"$f":"IF(T1929<'1 Données d''entrée'!$C$334+1+$B2047,0,IF(T1929<'1 Données d''entrée'!$C$333+'1 Données d''entrée'!$C$334+1+$B2047,$L2035*('1 Données d''entrée'!$C$332*(1+'1 Données d''entrée'!$C$332)^'1 Données d''entrée'!$C$333)/((1+'1 Données d''entrée'!$C$332)^'1 Données d''entrée'!$C$333-1),0))","v":0},{"$f":"IF(U1929<'1 Données d''entrée'!$C$334+1+$B2047,0,IF(U1929<'1 Données d''entrée'!$C$333+'1 Données d''entrée'!$C$334+1+$B2047,$L2035*('1 Données d''entrée'!$C$332*(1+'1 Données d''entrée'!$C$332)^'1 Données d''entrée'!$C$333)/((1+'1 Données d''entrée'!$C$332)^'1 Données d''entrée'!$C$333-1),0))","v":0},{"$f":"IF(V1929<'1 Données d''entrée'!$C$334+1+$B2047,0,IF(V1929<'1 Données d''entrée'!$C$333+'1 Données d''entrée'!$C$334+1+$B2047,$L2035*('1 Données d''entrée'!$C$332*(1+'1 Données d''entrée'!$C$332)^'1 Données d''entrée'!$C$333)/((1+'1 Données d''entrée'!$C$332)^'1 Données d''entrée'!$C$333-1),0))","v":0}]
[null,"Période de prêt nouveau"]
["Paiement d'intérêt décroissant inclu dans l'annuité constante",0,0,0,0,0,0,0,0,0,0,0,0,0,0,0,0,0,0,0,0,0]
["Paiement d'intêrets",1,0,{"$f":"IF(D2038>0,$C2035*((('1 Données d''entrée'!$C$332+1)^'1 Données d''entrée'!$C$333)-(1+'1 Données d''entrée'!$C$332)^('6 Financement'!C$54-1-'1 Données d''entrée'!$C$334-$B2049))/((1+'1 Données d''entrée'!$C$332)^'1 Données d''entrée'!$C$333-1)*'1 Données d''entrée'!$C$332,0)","v":0},{"$f":"IF(E2038>0,$C2035*((('1 Données d''entrée'!$C$332+1)^'1 Données d''entrée'!$C$333)-(1+'1 Données d''entrée'!$C$332)^('6 Financement'!D$54-1-'1 Données d''entrée'!$C$334-$B2049))/((1+'1 Données d''entrée'!$C$332)^'1 Données d''entrée'!$C$333-1)*'1 Données d''entrée'!$C$332,0)","v":0},{"$f":"IF(F2038>0,$C2035*((('1 Données d''entrée'!$C$332+1)^'1 Données d''entrée'!$C$333)-(1+'1 Données d''entrée'!$C$332)^('6 Financement'!E$54-1-'1 Données d''entrée'!$C$334-$B2049))/((1+'1 Données d''entrée'!$C$332)^'1 Données d''entrée'!$C$333-1)*'1 Données d''entrée'!$C$332,0)","v":0},{"$f":"IF(G2038>0,$C2035*((('1 Données d''entrée'!$C$332+1)^'1 Données d''entrée'!$C$333)-(1+'1 Données d''entrée'!$C$332)^('6 Financement'!F$54-1-'1 Données d''entrée'!$C$334-$B2049))/((1+'1 Données d''entrée'!$C$332)^'1 Données d''entrée'!$C$333-1)*'1 Données d''entrée'!$C$332,0)","v":0},{"$f":"IF(H2038>0,$C2035*((('1 Données d''entrée'!$C$332+1)^'1 Données d''entrée'!$C$333)-(1+'1 Données d''entrée'!$C$332)^('6 Financement'!G$54-1-'1 Données d''entrée'!$C$334-$B2049))/((1+'1 Données d''entrée'!$C$332)^'1 Données d''entrée'!$C$333-1)*'1 Données d''entrée'!$C$332,0)","v":0},{"$f":"IF(I2038>0,$C2035*((('1 Données d''entrée'!$C$332+1)^'1 Données d''entrée'!$C$333)-(1+'1 Données d''entrée'!$C$332)^('6 Financement'!H$54-1-'1 Données d''entrée'!$C$334-$B2049))/((1+'1 Données d''entrée'!$C$332)^'1 Données d''entrée'!$C$333-1)*'1 Données d''entrée'!$C$332,0)","v":0},{"$f":"IF(J2038>0,$C2035*((('1 Données d''entrée'!$C$332+1)^'1 Données d''entrée'!$C$333)-(1+'1 Données d''entrée'!$C$332)^('6 Financement'!I$54-1-'1 Données d''entrée'!$C$334-$B2049))/((1+'1 Données d''entrée'!$C$332)^'1 Données d''entrée'!$C$333-1)*'1 Données d''entrée'!$C$332,0)","v":0},{"$f":"IF(K2038>0,$C2035*((('1 Données d''entrée'!$C$332+1)^'1 Données d''entrée'!$C$333)-(1+'1 Données d''entrée'!$C$332)^('6 Financement'!J$54-1-'1 Données d''entrée'!$C$334-$B2049))/((1+'1 Données d''entrée'!$C$332)^'1 Données d''entrée'!$C$333-1)*'1 Données d''entrée'!$C$332,0)","v":0},{"$f":"IF(L2038>0,$C2035*((('1 Données d''entrée'!$C$332+1)^'1 Données d''entrée'!$C$333)-(1+'1 Données d''entrée'!$C$332)^('6 Financement'!K$54-1-'1 Données d''entrée'!$C$334-$B2049))/((1+'1 Données d''entrée'!$C$332)^'1 Données d''entrée'!$C$333-1)*'1 Données d''entrée'!$C$332,0)","v":0},{"$f":"IF(M2038>0,$C2035*((('1 Données d''entrée'!$C$332+1)^'1 Données d''entrée'!$C$333)-(1+'1 Données d''entrée'!$C$332)^('6 Financement'!L$54-1-'1 Données d''entrée'!$C$334-$B2049))/((1+'1 Données d''entrée'!$C$332)^'1 Données d''entrée'!$C$333-1)*'1 Données d''entrée'!$C$332,0)","v":0},{"$f":"IF(N2038>0,$C2035*((('1 Données d''entrée'!$C$332+1)^'1 Données d''entrée'!$C$333)-(1+'1 Données d''entrée'!$C$332)^('6 Financement'!M$54-1-'1 Données d''entrée'!$C$334-$B2049))/((1+'1 Données d''entrée'!$C$332)^'1 Données d''entrée'!$C$333-1)*'1 Données d''entrée'!$C$332,0)","v":0},{"$f":"IF(O2038>0,$C2035*((('1 Données d''entrée'!$C$332+1)^'1 Données d''entrée'!$C$333)-(1+'1 Données d''entrée'!$C$332)^('6 Financement'!N$54-1-'1 Données d''entrée'!$C$334-$B2049))/((1+'1 Données d''entrée'!$C$332)^'1 Données d''entrée'!$C$333-1)*'1 Données d''entrée'!$C$332,0)","v":0},{"$f":"IF(P2038>0,$C2035*((('1 Données d''entrée'!$C$332+1)^'1 Données d''entrée'!$C$333)-(1+'1 Données d''entrée'!$C$332)^('6 Financement'!O$54-1-'1 Données d''entrée'!$C$334-$B2049))/((1+'1 Données d''entrée'!$C$332)^'1 Données d''entrée'!$C$333-1)*'1 Données d''entrée'!$C$332,0)","v":0},{"$f":"IF(Q2038>0,$C2035*((('1 Données d''entrée'!$C$332+1)^'1 Données d''entrée'!$C$333)-(1+'1 Données d''entrée'!$C$332)^('6 Financement'!P$54-1-'1 Données d''entrée'!$C$334-$B2049))/((1+'1 Données d''entrée'!$C$332)^'1 Données d''entrée'!$C$333-1)*'1 Données d''entrée'!$C$332,0)","v":0},{"$f":"IF(R2038>0,$C2035*((('1 Données d''entrée'!$C$332+1)^'1 Données d''entrée'!$C$333)-(1+'1 Données d''entrée'!$C$332)^('6 Financement'!Q$54-1-'1 Données d''entrée'!$C$334-$B2049))/((1+'1 Données d''entrée'!$C$332)^'1 Données d''entrée'!$C$333-1)*'1 Données d''entrée'!$C$332,0)","v":0},{"$f":"IF(S2038>0,$C2035*((('1 Données d''entrée'!$C$332+1)^'1 Données d''entrée'!$C$333)-(1+'1 Données d''entrée'!$C$332)^('6 Financement'!R$54-1-'1 Données d''entrée'!$C$334-$B2049))/((1+'1 Données d''entrée'!$C$332)^'1 Données d''entrée'!$C$333-1)*'1 Données d''entrée'!$C$332,0)","v":0},{"$f":"IF(T2038>0,$C2035*((('1 Données d''entrée'!$C$332+1)^'1 Données d''entrée'!$C$333)-(1+'1 Données d''entrée'!$C$332)^('6 Financement'!S$54-1-'1 Données d''entrée'!$C$334-$B2049))/((1+'1 Données d''entrée'!$C$332)^'1 Données d''entrée'!$C$333-1)*'1 Données d''entrée'!$C$332,0)","v":0},{"$f":"IF(U2038>0,$C2035*((('1 Données d''entrée'!$C$332+1)^'1 Données d''entrée'!$C$333)-(1+'1 Données d''entrée'!$C$332)^('6 Financement'!T$54-1-'1 Données d''entrée'!$C$334-$B2049))/((1+'1 Données d''entrée'!$C$332)^'1 Données d''entrée'!$C$333-1)*'1 Données d''entrée'!$C$332,0)","v":0},{"$f":"IF(V2038>0,$C2035*((('1 Données d''entrée'!$C$332+1)^'1 Données d''entrée'!$C$333)-(1+'1 Données d''entrée'!$C$332)^('6 Financement'!U$54-1-'1 Données d''entrée'!$C$334-$B2049))/((1+'1 Données d''entrée'!$C$332)^'1 Données d''entrée'!$C$333-1)*'1 Données d''entrée'!$C$332,0)","v":0}]
["Paiement d'intêrets",2,0,{"$f":"IF(D2039>0,$D2035*((('1 Données d''entrée'!$C$332+1)^'1 Données d''entrée'!$C$333)-(1+'1 Données d''entrée'!$C$332)^('6 Financement'!C$54-1-'1 Données d''entrée'!$C$334-$B2050))/((1+'1 Données d''entrée'!$C$332)^'1 Données d''entrée'!$C$333-1)*'1 Données d''entrée'!$C$332,0)","v":0},{"$f":"IF(E2039>0,$D2035*((('1 Données d''entrée'!$C$332+1)^'1 Données d''entrée'!$C$333)-(1+'1 Données d''entrée'!$C$332)^('6 Financement'!D$54-1-'1 Données d''entrée'!$C$334-$B2050))/((1+'1 Données d''entrée'!$C$332)^'1 Données d''entrée'!$C$333-1)*'1 Données d''entrée'!$C$332,0)","v":0},{"$f":"IF(F2039>0,$D2035*((('1 Données d''entrée'!$C$332+1)^'1 Données d''entrée'!$C$333)-(1+'1 Données d''entrée'!$C$332)^('6 Financement'!E$54-1-'1 Données d''entrée'!$C$334-$B2050))/((1+'1 Données d''entrée'!$C$332)^'1 Données d''entrée'!$C$333-1)*'1 Données d''entrée'!$C$332,0)","v":0},{"$f":"IF(G2039>0,$D2035*((('1 Données d''entrée'!$C$332+1)^'1 Données d''entrée'!$C$333)-(1+'1 Données d''entrée'!$C$332)^('6 Financement'!F$54-1-'1 Données d''entrée'!$C$334-$B2050))/((1+'1 Données d''entrée'!$C$332)^'1 Données d''entrée'!$C$333-1)*'1 Données d''entrée'!$C$332,0)","v":0},{"$f":"IF(H2039>0,$D2035*((('1 Données d''entrée'!$C$332+1)^'1 Données d''entrée'!$C$333)-(1+'1 Données d''entrée'!$C$332)^('6 Financement'!G$54-1-'1 Données d''entrée'!$C$334-$B2050))/((1+'1 Données d''entrée'!$C$332)^'1 Données d''entrée'!$C$333-1)*'1 Données d''entrée'!$C$332,0)","v":0},{"$f":"IF(I2039>0,$D2035*((('1 Données d''entrée'!$C$332+1)^'1 Données d''entrée'!$C$333)-(1+'1 Données d''entrée'!$C$332)^('6 Financement'!H$54-1-'1 Données d''entrée'!$C$334-$B2050))/((1+'1 Données d''entrée'!$C$332)^'1 Données d''entrée'!$C$333-1)*'1 Données d''entrée'!$C$332,0)","v":0},{"$f":"IF(J2039>0,$D2035*((('1 Données d''entrée'!$C$332+1)^'1 Données d''entrée'!$C$333)-(1+'1 Données d''entrée'!$C$332)^('6 Financement'!I$54-1-'1 Données d''entrée'!$C$334-$B2050))/((1+'1 Données d''entrée'!$C$332)^'1 Données d''entrée'!$C$333-1)*'1 Données d''entrée'!$C$332,0)","v":0},{"$f":"IF(K2039>0,$D2035*((('1 Données d''entrée'!$C$332+1)^'1 Données d''entrée'!$C$333)-(1+'1 Données d''entrée'!$C$332)^('6 Financement'!J$54-1-'1 Données d''entrée'!$C$334-$B2050))/((1+'1 Données d''entrée'!$C$332)^'1 Données d''entrée'!$C$333-1)*'1 Données d''entrée'!$C$332,0)","v":0},{"$f":"IF(L2039>0,$D2035*((('1 Données d''entrée'!$C$332+1)^'1 Données d''entrée'!$C$333)-(1+'1 Données d''entrée'!$C$332)^('6 Financement'!K$54-1-'1 Données d''entrée'!$C$334-$B2050))/((1+'1 Données d''entrée'!$C$332)^'1 Données d''entrée'!$C$333-1)*'1 Données d''entrée'!$C$332,0)","v":0},{"$f":"IF(M2039>0,$D2035*((('1 Données d''entrée'!$C$332+1)^'1 Données d''entrée'!$C$333)-(1+'1 Données d''entrée'!$C$332)^('6 Financement'!L$54-1-'1 Données d''entrée'!$C$334-$B2050))/((1+'1 Données d''entrée'!$C$332)^'1 Données d''entrée'!$C$333-1)*'1 Données d''entrée'!$C$332,0)","v":0},{"$f":"IF(N2039>0,$D2035*((('1 Données d''entrée'!$C$332+1)^'1 Données d''entrée'!$C$333)-(1+'1 Données d''entrée'!$C$332)^('6 Financement'!M$54-1-'1 Données d''entrée'!$C$334-$B2050))/((1+'1 Données d''entrée'!$C$332)^'1 Données d''entrée'!$C$333-1)*'1 Données d''entrée'!$C$332,0)","v":0},{"$f":"IF(O2039>0,$D2035*((('1 Données d''entrée'!$C$332+1)^'1 Données d''entrée'!$C$333)-(1+'1 Données d''entrée'!$C$332)^('6 Financement'!N$54-1-'1 Données d''entrée'!$C$334-$B2050))/((1+'1 Données d''entrée'!$C$332)^'1 Données d''entrée'!$C$333-1)*'1 Données d''entrée'!$C$332,0)","v":0},{"$f":"IF(P2039>0,$D2035*((('1 Données d''entrée'!$C$332+1)^'1 Données d''entrée'!$C$333)-(1+'1 Données d''entrée'!$C$332)^('6 Financement'!O$54-1-'1 Données d''entrée'!$C$334-$B2050))/((1+'1 Données d''entrée'!$C$332)^'1 Données d''entrée'!$C$333-1)*'1 Données d''entrée'!$C$332,0)","v":0},{"$f":"IF(Q2039>0,$D2035*((('1 Données d''entrée'!$C$332+1)^'1 Données d''entrée'!$C$333)-(1+'1 Données d''entrée'!$C$332)^('6 Financement'!P$54-1-'1 Données d''entrée'!$C$334-$B2050))/((1+'1 Données d''entrée'!$C$332)^'1 Données d''entrée'!$C$333-1)*'1 Données d''entrée'!$C$332,0)","v":0},{"$f":"IF(R2039>0,$D2035*((('1 Données d''entrée'!$C$332+1)^'1 Données d''entrée'!$C$333)-(1+'1 Données d''entrée'!$C$332)^('6 Financement'!Q$54-1-'1 Données d''entrée'!$C$334-$B2050))/((1+'1 Données d''entrée'!$C$332)^'1 Données d''entrée'!$C$333-1)*'1 Données d''entrée'!$C$332,0)","v":0},{"$f":"IF(S2039>0,$D2035*((('1 Données d''entrée'!$C$332+1)^'1 Données d''entrée'!$C$333)-(1+'1 Données d''entrée'!$C$332)^('6 Financement'!R$54-1-'1 Données d''entrée'!$C$334-$B2050))/((1+'1 Données d''entrée'!$C$332)^'1 Données d''entrée'!$C$333-1)*'1 Données d''entrée'!$C$332,0)","v":0},{"$f":"IF(T2039>0,$D2035*((('1 Données d''entrée'!$C$332+1)^'1 Données d''entrée'!$C$333)-(1+'1 Données d''entrée'!$C$332)^('6 Financement'!S$54-1-'1 Données d''entrée'!$C$334-$B2050))/((1+'1 Données d''entrée'!$C$332)^'1 Données d''entrée'!$C$333-1)*'1 Données d''entrée'!$C$332,0)","v":0},{"$f":"IF(U2039>0,$D2035*((('1 Données d''entrée'!$C$332+1)^'1 Données d''entrée'!$C$333)-(1+'1 Données d''entrée'!$C$332)^('6 Financement'!T$54-1-'1 Données d''entrée'!$C$334-$B2050))/((1+'1 Données d''entrée'!$C$332)^'1 Données d''entrée'!$C$333-1)*'1 Données d''entrée'!$C$332,0)","v":0},{"$f":"IF(V2039>0,$D2035*((('1 Données d''entrée'!$C$332+1)^'1 Données d''entrée'!$C$333)-(1+'1 Données d''entrée'!$C$332)^('6 Financement'!U$54-1-'1 Données d''entrée'!$C$334-$B2050))/((1+'1 Données d''entrée'!$C$332)^'1 Données d''entrée'!$C$333-1)*'1 Données d''entrée'!$C$332,0)","v":0}]
["Paiement d'intêrets",3,0,{"$f":"IF(D2040>0,$E2035*((('1 Données d''entrée'!$C$332+1)^'1 Données d''entrée'!$C$333)-(1+'1 Données d''entrée'!$C$332)^('6 Financement'!C$54-1-'1 Données d''entrée'!$C$334-$B2051))/((1+'1 Données d''entrée'!$C$332)^'1 Données d''entrée'!$C$333-1)*'1 Données d''entrée'!$C$332,0)","v":0},{"$f":"IF(E2040>0,$E2035*((('1 Données d''entrée'!$C$332+1)^'1 Données d''entrée'!$C$333)-(1+'1 Données d''entrée'!$C$332)^('6 Financement'!D$54-1-'1 Données d''entrée'!$C$334-$B2051))/((1+'1 Données d''entrée'!$C$332)^'1 Données d''entrée'!$C$333-1)*'1 Données d''entrée'!$C$332,0)","v":0},{"$f":"IF(F2040>0,$E2035*((('1 Données d''entrée'!$C$332+1)^'1 Données d''entrée'!$C$333)-(1+'1 Données d''entrée'!$C$332)^('6 Financement'!E$54-1-'1 Données d''entrée'!$C$334-$B2051))/((1+'1 Données d''entrée'!$C$332)^'1 Données d''entrée'!$C$333-1)*'1 Données d''entrée'!$C$332,0)","v":0},{"$f":"IF(G2040>0,$E2035*((('1 Données d''entrée'!$C$332+1)^'1 Données d''entrée'!$C$333)-(1+'1 Données d''entrée'!$C$332)^('6 Financement'!F$54-1-'1 Données d''entrée'!$C$334-$B2051))/((1+'1 Données d''entrée'!$C$332)^'1 Données d''entrée'!$C$333-1)*'1 Données d''entrée'!$C$332,0)","v":0},{"$f":"IF(H2040>0,$E2035*((('1 Données d''entrée'!$C$332+1)^'1 Données d''entrée'!$C$333)-(1+'1 Données d''entrée'!$C$332)^('6 Financement'!G$54-1-'1 Données d''entrée'!$C$334-$B2051))/((1+'1 Données d''entrée'!$C$332)^'1 Données d''entrée'!$C$333-1)*'1 Données d''entrée'!$C$332,0)","v":0},{"$f":"IF(I2040>0,$E2035*((('1 Données d''entrée'!$C$332+1)^'1 Données d''entrée'!$C$333)-(1+'1 Données d''entrée'!$C$332)^('6 Financement'!H$54-1-'1 Données d''entrée'!$C$334-$B2051))/((1+'1 Données d''entrée'!$C$332)^'1 Données d''entrée'!$C$333-1)*'1 Données d''entrée'!$C$332,0)","v":0},{"$f":"IF(J2040>0,$E2035*((('1 Données d''entrée'!$C$332+1)^'1 Données d''entrée'!$C$333)-(1+'1 Données d''entrée'!$C$332)^('6 Financement'!I$54-1-'1 Données d''entrée'!$C$334-$B2051))/((1+'1 Données d''entrée'!$C$332)^'1 Données d''entrée'!$C$333-1)*'1 Données d''entrée'!$C$332,0)","v":0},{"$f":"IF(K2040>0,$E2035*((('1 Données d''entrée'!$C$332+1)^'1 Données d''entrée'!$C$333)-(1+'1 Données d''entrée'!$C$332)^('6 Financement'!J$54-1-'1 Données d''entrée'!$C$334-$B2051))/((1+'1 Données d''entrée'!$C$332)^'1 Données d''entrée'!$C$333-1)*'1 Données d''entrée'!$C$332,0)","v":0},{"$f":"IF(L2040>0,$E2035*((('1 Données d''entrée'!$C$332+1)^'1 Données d''entrée'!$C$333)-(1+'1 Données d''entrée'!$C$332)^('6 Financement'!K$54-1-'1 Données d''entrée'!$C$334-$B2051))/((1+'1 Données d''entrée'!$C$332)^'1 Données d''entrée'!$C$333-1)*'1 Données d''entrée'!$C$332,0)","v":0},{"$f":"IF(M2040>0,$E2035*((('1 Données d''entrée'!$C$332+1)^'1 Données d''entrée'!$C$333)-(1+'1 Données d''entrée'!$C$332)^('6 Financement'!L$54-1-'1 Données d''entrée'!$C$334-$B2051))/((1+'1 Données d''entrée'!$C$332)^'1 Données d''entrée'!$C$333-1)*'1 Données d''entrée'!$C$332,0)","v":0},{"$f":"IF(N2040>0,$E2035*((('1 Données d''entrée'!$C$332+1)^'1 Données d''entrée'!$C$333)-(1+'1 Données d''entrée'!$C$332)^('6 Financement'!M$54-1-'1 Données d''entrée'!$C$334-$B2051))/((1+'1 Données d''entrée'!$C$332)^'1 Données d''entrée'!$C$333-1)*'1 Données d''entrée'!$C$332,0)","v":0},{"$f":"IF(O2040>0,$E2035*((('1 Données d''entrée'!$C$332+1)^'1 Données d''entrée'!$C$333)-(1+'1 Données d''entrée'!$C$332)^('6 Financement'!N$54-1-'1 Données d''entrée'!$C$334-$B2051))/((1+'1 Données d''entrée'!$C$332)^'1 Données d''entrée'!$C$333-1)*'1 Données d''entrée'!$C$332,0)","v":0},{"$f":"IF(P2040>0,$E2035*((('1 Données d''entrée'!$C$332+1)^'1 Données d''entrée'!$C$333)-(1+'1 Données d''entrée'!$C$332)^('6 Financement'!O$54-1-'1 Données d''entrée'!$C$334-$B2051))/((1+'1 Données d''entrée'!$C$332)^'1 Données d''entrée'!$C$333-1)*'1 Données d''entrée'!$C$332,0)","v":0},{"$f":"IF(Q2040>0,$E2035*((('1 Données d''entrée'!$C$332+1)^'1 Données d''entrée'!$C$333)-(1+'1 Données d''entrée'!$C$332)^('6 Financement'!P$54-1-'1 Données d''entrée'!$C$334-$B2051))/((1+'1 Données d''entrée'!$C$332)^'1 Données d''entrée'!$C$333-1)*'1 Données d''entrée'!$C$332,0)","v":0},{"$f":"IF(R2040>0,$E2035*((('1 Données d''entrée'!$C$332+1)^'1 Données d''entrée'!$C$333)-(1+'1 Données d''entrée'!$C$332)^('6 Financement'!Q$54-1-'1 Données d''entrée'!$C$334-$B2051))/((1+'1 Données d''entrée'!$C$332)^'1 Données d''entrée'!$C$333-1)*'1 Données d''entrée'!$C$332,0)","v":0},{"$f":"IF(S2040>0,$E2035*((('1 Données d''entrée'!$C$332+1)^'1 Données d''entrée'!$C$333)-(1+'1 Données d''entrée'!$C$332)^('6 Financement'!R$54-1-'1 Données d''entrée'!$C$334-$B2051))/((1+'1 Données d''entrée'!$C$332)^'1 Données d''entrée'!$C$333-1)*'1 Données d''entrée'!$C$332,0)","v":0},{"$f":"IF(T2040>0,$E2035*((('1 Données d''entrée'!$C$332+1)^'1 Données d''entrée'!$C$333)-(1+'1 Données d''entrée'!$C$332)^('6 Financement'!S$54-1-'1 Données d''entrée'!$C$334-$B2051))/((1+'1 Données d''entrée'!$C$332)^'1 Données d''entrée'!$C$333-1)*'1 Données d''entrée'!$C$332,0)","v":0},{"$f":"IF(U2040>0,$E2035*((('1 Données d''entrée'!$C$332+1)^'1 Données d''entrée'!$C$333)-(1+'1 Données d''entrée'!$C$332)^('6 Financement'!T$54-1-'1 Données d''entrée'!$C$334-$B2051))/((1+'1 Données d''entrée'!$C$332)^'1 Données d''entrée'!$C$333-1)*'1 Données d''entrée'!$C$332,0)","v":0},{"$f":"IF(V2040>0,$E2035*((('1 Données d''entrée'!$C$332+1)^'1 Données d''entrée'!$C$333)-(1+'1 Données d''entrée'!$C$332)^('6 Financement'!U$54-1-'1 Données d''entrée'!$C$334-$B2051))/((1+'1 Données d''entrée'!$C$332)^'1 Données d''entrée'!$C$333-1)*'1 Données d''entrée'!$C$332,0)","v":0}]
["Paiement d'intêrets",4,0,{"$f":"IF(D2041>0,$F2035*((('1 Données d''entrée'!$C$332+1)^'1 Données d''entrée'!$C$333)-(1+'1 Données d''entrée'!$C$332)^('6 Financement'!C$54-1-'1 Données d''entrée'!$C$334-$B2052))/((1+'1 Données d''entrée'!$C$332)^'1 Données d''entrée'!$C$333-1)*'1 Données d''entrée'!$C$332,0)","v":0},{"$f":"IF(E2041>0,$F2035*((('1 Données d''entrée'!$C$332+1)^'1 Données d''entrée'!$C$333)-(1+'1 Données d''entrée'!$C$332)^('6 Financement'!D$54-1-'1 Données d''entrée'!$C$334-$B2052))/((1+'1 Données d''entrée'!$C$332)^'1 Données d''entrée'!$C$333-1)*'1 Données d''entrée'!$C$332,0)","v":0},{"$f":"IF(F2041>0,$F2035*((('1 Données d''entrée'!$C$332+1)^'1 Données d''entrée'!$C$333)-(1+'1 Données d''entrée'!$C$332)^('6 Financement'!E$54-1-'1 Données d''entrée'!$C$334-$B2052))/((1+'1 Données d''entrée'!$C$332)^'1 Données d''entrée'!$C$333-1)*'1 Données d''entrée'!$C$332,0)","v":0},{"$f":"IF(G2041>0,$F2035*((('1 Données d''entrée'!$C$332+1)^'1 Données d''entrée'!$C$333)-(1+'1 Données d''entrée'!$C$332)^('6 Financement'!F$54-1-'1 Données d''entrée'!$C$334-$B2052))/((1+'1 Données d''entrée'!$C$332)^'1 Données d''entrée'!$C$333-1)*'1 Données d''entrée'!$C$332,0)","v":0},{"$f":"IF(H2041>0,$F2035*((('1 Données d''entrée'!$C$332+1)^'1 Données d''entrée'!$C$333)-(1+'1 Données d''entrée'!$C$332)^('6 Financement'!G$54-1-'1 Données d''entrée'!$C$334-$B2052))/((1+'1 Données d''entrée'!$C$332)^'1 Données d''entrée'!$C$333-1)*'1 Données d''entrée'!$C$332,0)","v":0},{"$f":"IF(I2041>0,$F2035*((('1 Données d''entrée'!$C$332+1)^'1 Données d''entrée'!$C$333)-(1+'1 Données d''entrée'!$C$332)^('6 Financement'!H$54-1-'1 Données d''entrée'!$C$334-$B2052))/((1+'1 Données d''entrée'!$C$332)^'1 Données d''entrée'!$C$333-1)*'1 Données d''entrée'!$C$332,0)","v":0},{"$f":"IF(J2041>0,$F2035*((('1 Données d''entrée'!$C$332+1)^'1 Données d''entrée'!$C$333)-(1+'1 Données d''entrée'!$C$332)^('6 Financement'!I$54-1-'1 Données d''entrée'!$C$334-$B2052))/((1+'1 Données d''entrée'!$C$332)^'1 Données d''entrée'!$C$333-1)*'1 Données d''entrée'!$C$332,0)","v":0},{"$f":"IF(K2041>0,$F2035*((('1 Données d''entrée'!$C$332+1)^'1 Données d''entrée'!$C$333)-(1+'1 Données d''entrée'!$C$332)^('6 Financement'!J$54-1-'1 Données d''entrée'!$C$334-$B2052))/((1+'1 Données d''entrée'!$C$332)^'1 Données d''entrée'!$C$333-1)*'1 Données d''entrée'!$C$332,0)","v":0},{"$f":"IF(L2041>0,$F2035*((('1 Données d''entrée'!$C$332+1)^'1 Données d''entrée'!$C$333)-(1+'1 Données d''entrée'!$C$332)^('6 Financement'!K$54-1-'1 Données d''entrée'!$C$334-$B2052))/((1+'1 Données d''entrée'!$C$332)^'1 Données d''entrée'!$C$333-1)*'1 Données d''entrée'!$C$332,0)","v":0},{"$f":"IF(M2041>0,$F2035*((('1 Données d''entrée'!$C$332+1)^'1 Données d''entrée'!$C$333)-(1+'1 Données d''entrée'!$C$332)^('6 Financement'!L$54-1-'1 Données d''entrée'!$C$334-$B2052))/((1+'1 Données d''entrée'!$C$332)^'1 Données d''entrée'!$C$333-1)*'1 Données d''entrée'!$C$332,0)","v":0},{"$f":"IF(N2041>0,$F2035*((('1 Données d''entrée'!$C$332+1)^'1 Données d''entrée'!$C$333)-(1+'1 Données d''entrée'!$C$332)^('6 Financement'!M$54-1-'1 Données d''entrée'!$C$334-$B2052))/((1+'1 Données d''entrée'!$C$332)^'1 Données d''entrée'!$C$333-1)*'1 Données d''entrée'!$C$332,0)","v":0},{"$f":"IF(O2041>0,$F2035*((('1 Données d''entrée'!$C$332+1)^'1 Données d''entrée'!$C$333)-(1+'1 Données d''entrée'!$C$332)^('6 Financement'!N$54-1-'1 Données d''entrée'!$C$334-$B2052))/((1+'1 Données d''entrée'!$C$332)^'1 Données d''entrée'!$C$333-1)*'1 Données d''entrée'!$C$332,0)","v":0},{"$f":"IF(P2041>0,$F2035*((('1 Données d''entrée'!$C$332+1)^'1 Données d''entrée'!$C$333)-(1+'1 Données d''entrée'!$C$332)^('6 Financement'!O$54-1-'1 Données d''entrée'!$C$334-$B2052))/((1+'1 Données d''entrée'!$C$332)^'1 Données d''entrée'!$C$333-1)*'1 Données d''entrée'!$C$332,0)","v":0},{"$f":"IF(Q2041>0,$F2035*((('1 Données d''entrée'!$C$332+1)^'1 Données d''entrée'!$C$333)-(1+'1 Données d''entrée'!$C$332)^('6 Financement'!P$54-1-'1 Données d''entrée'!$C$334-$B2052))/((1+'1 Données d''entrée'!$C$332)^'1 Données d''entrée'!$C$333-1)*'1 Données d''entrée'!$C$332,0)","v":0},{"$f":"IF(R2041>0,$F2035*((('1 Données d''entrée'!$C$332+1)^'1 Données d''entrée'!$C$333)-(1+'1 Données d''entrée'!$C$332)^('6 Financement'!Q$54-1-'1 Données d''entrée'!$C$334-$B2052))/((1+'1 Données d''entrée'!$C$332)^'1 Données d''entrée'!$C$333-1)*'1 Données d''entrée'!$C$332,0)","v":0},{"$f":"IF(S2041>0,$F2035*((('1 Données d''entrée'!$C$332+1)^'1 Données d''entrée'!$C$333)-(1+'1 Données d''entrée'!$C$332)^('6 Financement'!R$54-1-'1 Données d''entrée'!$C$334-$B2052))/((1+'1 Données d''entrée'!$C$332)^'1 Données d''entrée'!$C$333-1)*'1 Données d''entrée'!$C$332,0)","v":0},{"$f":"IF(T2041>0,$F2035*((('1 Données d''entrée'!$C$332+1)^'1 Données d''entrée'!$C$333)-(1+'1 Données d''entrée'!$C$332)^('6 Financement'!S$54-1-'1 Données d''entrée'!$C$334-$B2052))/((1+'1 Données d''entrée'!$C$332)^'1 Données d''entrée'!$C$333-1)*'1 Données d''entrée'!$C$332,0)","v":0},{"$f":"IF(U2041>0,$F2035*((('1 Données d''entrée'!$C$332+1)^'1 Données d''entrée'!$C$333)-(1+'1 Données d''entrée'!$C$332)^('6 Financement'!T$54-1-'1 Données d''entrée'!$C$334-$B2052))/((1+'1 Données d''entrée'!$C$332)^'1 Données d''entrée'!$C$333-1)*'1 Données d''entrée'!$C$332,0)","v":0},{"$f":"IF(V2041>0,$F2035*((('1 Données d''entrée'!$C$332+1)^'1 Données d''entrée'!$C$333)-(1+'1 Données d''entrée'!$C$332)^('6 Financement'!U$54-1-'1 Données d''entrée'!$C$334-$B2052))/((1+'1 Données d''entrée'!$C$332)^'1 Données d''entrée'!$C$333-1)*'1 Données d''entrée'!$C$332,0)","v":0}]
["Paiement d'intêrets",5,0,{"$f":"IF(D2042>0,$G2035*((('1 Données d''entrée'!$C$332+1)^'1 Données d''entrée'!$C$333)-(1+'1 Données d''entrée'!$C$332)^('6 Financement'!C$54-1-'1 Données d''entrée'!$C$334-$B2053))/((1+'1 Données d''entrée'!$C$332)^'1 Données d''entrée'!$C$333-1)*'1 Données d''entrée'!$C$332,0)","v":0},{"$f":"IF(E2042>0,$G2035*((('1 Données d''entrée'!$C$332+1)^'1 Données d''entrée'!$C$333)-(1+'1 Données d''entrée'!$C$332)^('6 Financement'!D$54-1-'1 Données d''entrée'!$C$334-$B2053))/((1+'1 Données d''entrée'!$C$332)^'1 Données d''entrée'!$C$333-1)*'1 Données d''entrée'!$C$332,0)","v":0},{"$f":"IF(F2042>0,$G2035*((('1 Données d''entrée'!$C$332+1)^'1 Données d''entrée'!$C$333)-(1+'1 Données d''entrée'!$C$332)^('6 Financement'!E$54-1-'1 Données d''entrée'!$C$334-$B2053))/((1+'1 Données d''entrée'!$C$332)^'1 Données d''entrée'!$C$333-1)*'1 Données d''entrée'!$C$332,0)","v":0},{"$f":"IF(G2042>0,$G2035*((('1 Données d''entrée'!$C$332+1)^'1 Données d''entrée'!$C$333)-(1+'1 Données d''entrée'!$C$332)^('6 Financement'!F$54-1-'1 Données d''entrée'!$C$334-$B2053))/((1+'1 Données d''entrée'!$C$332)^'1 Données d''entrée'!$C$333-1)*'1 Données d''entrée'!$C$332,0)","v":0},{"$f":"IF(H2042>0,$G2035*((('1 Données d''entrée'!$C$332+1)^'1 Données d''entrée'!$C$333)-(1+'1 Données d''entrée'!$C$332)^('6 Financement'!G$54-1-'1 Données d''entrée'!$C$334-$B2053))/((1+'1 Données d''entrée'!$C$332)^'1 Données d''entrée'!$C$333-1)*'1 Données d''entrée'!$C$332,0)","v":0},{"$f":"IF(I2042>0,$G2035*((('1 Données d''entrée'!$C$332+1)^'1 Données d''entrée'!$C$333)-(1+'1 Données d''entrée'!$C$332)^('6 Financement'!H$54-1-'1 Données d''entrée'!$C$334-$B2053))/((1+'1 Données d''entrée'!$C$332)^'1 Données d''entrée'!$C$333-1)*'1 Données d''entrée'!$C$332,0)","v":0},{"$f":"IF(J2042>0,$G2035*((('1 Données d''entrée'!$C$332+1)^'1 Données d''entrée'!$C$333)-(1+'1 Données d''entrée'!$C$332)^('6 Financement'!I$54-1-'1 Données d''entrée'!$C$334-$B2053))/((1+'1 Données d''entrée'!$C$332)^'1 Données d''entrée'!$C$333-1)*'1 Données d''entrée'!$C$332,0)","v":0},{"$f":"IF(K2042>0,$G2035*((('1 Données d''entrée'!$C$332+1)^'1 Données d''entrée'!$C$333)-(1+'1 Données d''entrée'!$C$332)^('6 Financement'!J$54-1-'1 Données d''entrée'!$C$334-$B2053))/((1+'1 Données d''entrée'!$C$332)^'1 Données d''entrée'!$C$333-1)*'1 Données d''entrée'!$C$332,0)","v":0},{"$f":"IF(L2042>0,$G2035*((('1 Données d''entrée'!$C$332+1)^'1 Données d''entrée'!$C$333)-(1+'1 Données d''entrée'!$C$332)^('6 Financement'!K$54-1-'1 Données d''entrée'!$C$334-$B2053))/((1+'1 Données d''entrée'!$C$332)^'1 Données d''entrée'!$C$333-1)*'1 Données d''entrée'!$C$332,0)","v":0},{"$f":"IF(M2042>0,$G2035*((('1 Données d''entrée'!$C$332+1)^'1 Données d''entrée'!$C$333)-(1+'1 Données d''entrée'!$C$332)^('6 Financement'!L$54-1-'1 Données d''entrée'!$C$334-$B2053))/((1+'1 Données d''entrée'!$C$332)^'1 Données d''entrée'!$C$333-1)*'1 Données d''entrée'!$C$332,0)","v":0},{"$f":"IF(N2042>0,$G2035*((('1 Données d''entrée'!$C$332+1)^'1 Données d''entrée'!$C$333)-(1+'1 Données d''entrée'!$C$332)^('6 Financement'!M$54-1-'1 Données d''entrée'!$C$334-$B2053))/((1+'1 Données d''entrée'!$C$332)^'1 Données d''entrée'!$C$333-1)*'1 Données d''entrée'!$C$332,0)","v":0},{"$f":"IF(O2042>0,$G2035*((('1 Données d''entrée'!$C$332+1)^'1 Données d''entrée'!$C$333)-(1+'1 Données d''entrée'!$C$332)^('6 Financement'!N$54-1-'1 Données d''entrée'!$C$334-$B2053))/((1+'1 Données d''entrée'!$C$332)^'1 Données d''entrée'!$C$333-1)*'1 Données d''entrée'!$C$332,0)","v":0},{"$f":"IF(P2042>0,$G2035*((('1 Données d''entrée'!$C$332+1)^'1 Données d''entrée'!$C$333)-(1+'1 Données d''entrée'!$C$332)^('6 Financement'!O$54-1-'1 Données d''entrée'!$C$334-$B2053))/((1+'1 Données d''entrée'!$C$332)^'1 Données d''entrée'!$C$333-1)*'1 Données d''entrée'!$C$332,0)","v":0},{"$f":"IF(Q2042>0,$G2035*((('1 Données d''entrée'!$C$332+1)^'1 Données d''entrée'!$C$333)-(1+'1 Données d''entrée'!$C$332)^('6 Financement'!P$54-1-'1 Données d''entrée'!$C$334-$B2053))/((1+'1 Données d''entrée'!$C$332)^'1 Données d''entrée'!$C$333-1)*'1 Données d''entrée'!$C$332,0)","v":0},{"$f":"IF(R2042>0,$G2035*((('1 Données d''entrée'!$C$332+1)^'1 Données d''entrée'!$C$333)-(1+'1 Données d''entrée'!$C$332)^('6 Financement'!Q$54-1-'1 Données d''entrée'!$C$334-$B2053))/((1+'1 Données d''entrée'!$C$332)^'1 Données d''entrée'!$C$333-1)*'1 Données d''entrée'!$C$332,0)","v":0},{"$f":"IF(S2042>0,$G2035*((('1 Données d''entrée'!$C$332+1)^'1 Données d''entrée'!$C$333)-(1+'1 Données d''entrée'!$C$332)^('6 Financement'!R$54-1-'1 Données d''entrée'!$C$334-$B2053))/((1+'1 Données d''entrée'!$C$332)^'1 Données d''entrée'!$C$333-1)*'1 Données d''entrée'!$C$332,0)","v":0},{"$f":"IF(T2042>0,$G2035*((('1 Données d''entrée'!$C$332+1)^'1 Données d''entrée'!$C$333)-(1+'1 Données d''entrée'!$C$332)^('6 Financement'!S$54-1-'1 Données d''entrée'!$C$334-$B2053))/((1+'1 Données d''entrée'!$C$332)^'1 Données d''entrée'!$C$333-1)*'1 Données d''entrée'!$C$332,0)","v":0},{"$f":"IF(U2042>0,$G2035*((('1 Données d''entrée'!$C$332+1)^'1 Données d''entrée'!$C$333)-(1+'1 Données d''entrée'!$C$332)^('6 Financement'!T$54-1-'1 Données d''entrée'!$C$334-$B2053))/((1+'1 Données d''entrée'!$C$332)^'1 Données d''entrée'!$C$333-1)*'1 Données d''entrée'!$C$332,0)","v":0},{"$f":"IF(V2042>0,$G2035*((('1 Données d''entrée'!$C$332+1)^'1 Données d''entrée'!$C$333)-(1+'1 Données d''entrée'!$C$332)^('6 Financement'!U$54-1-'1 Données d''entrée'!$C$334-$B2053))/((1+'1 Données d''entrée'!$C$332)^'1 Données d''entrée'!$C$333-1)*'1 Données d''entrée'!$C$332,0)","v":0}]
["Paiement d'intêrets",6,0,{"$f":"IF(D2043>0,$H2035*((('1 Données d''entrée'!$C$332+1)^'1 Données d''entrée'!$C$333)-(1+'1 Données d''entrée'!$C$332)^('6 Financement'!C$54-1-'1 Données d''entrée'!$C$334-$B2054))/((1+'1 Données d''entrée'!$C$332)^'1 Données d''entrée'!$C$333-1)*'1 Données d''entrée'!$C$332,0)","v":0},{"$f":"IF(E2043>0,$H2035*((('1 Données d''entrée'!$C$332+1)^'1 Données d''entrée'!$C$333)-(1+'1 Données d''entrée'!$C$332)^('6 Financement'!D$54-1-'1 Données d''entrée'!$C$334-$B2054))/((1+'1 Données d''entrée'!$C$332)^'1 Données d''entrée'!$C$333-1)*'1 Données d''entrée'!$C$332,0)","v":0},{"$f":"IF(F2043>0,$H2035*((('1 Données d''entrée'!$C$332+1)^'1 Données d''entrée'!$C$333)-(1+'1 Données d''entrée'!$C$332)^('6 Financement'!E$54-1-'1 Données d''entrée'!$C$334-$B2054))/((1+'1 Données d''entrée'!$C$332)^'1 Données d''entrée'!$C$333-1)*'1 Données d''entrée'!$C$332,0)","v":0},{"$f":"IF(G2043>0,$H2035*((('1 Données d''entrée'!$C$332+1)^'1 Données d''entrée'!$C$333)-(1+'1 Données d''entrée'!$C$332)^('6 Financement'!F$54-1-'1 Données d''entrée'!$C$334-$B2054))/((1+'1 Données d''entrée'!$C$332)^'1 Données d''entrée'!$C$333-1)*'1 Données d''entrée'!$C$332,0)","v":0},{"$f":"IF(H2043>0,$H2035*((('1 Données d''entrée'!$C$332+1)^'1 Données d''entrée'!$C$333)-(1+'1 Données d''entrée'!$C$332)^('6 Financement'!G$54-1-'1 Données d''entrée'!$C$334-$B2054))/((1+'1 Données d''entrée'!$C$332)^'1 Données d''entrée'!$C$333-1)*'1 Données d''entrée'!$C$332,0)","v":0},{"$f":"IF(I2043>0,$H2035*((('1 Données d''entrée'!$C$332+1)^'1 Données d''entrée'!$C$333)-(1+'1 Données d''entrée'!$C$332)^('6 Financement'!H$54-1-'1 Données d''entrée'!$C$334-$B2054))/((1+'1 Données d''entrée'!$C$332)^'1 Données d''entrée'!$C$333-1)*'1 Données d''entrée'!$C$332,0)","v":0},{"$f":"IF(J2043>0,$H2035*((('1 Données d''entrée'!$C$332+1)^'1 Données d''entrée'!$C$333)-(1+'1 Données d''entrée'!$C$332)^('6 Financement'!I$54-1-'1 Données d''entrée'!$C$334-$B2054))/((1+'1 Données d''entrée'!$C$332)^'1 Données d''entrée'!$C$333-1)*'1 Données d''entrée'!$C$332,0)","v":0},{"$f":"IF(K2043>0,$H2035*((('1 Données d''entrée'!$C$332+1)^'1 Données d''entrée'!$C$333)-(1+'1 Données d''entrée'!$C$332)^('6 Financement'!J$54-1-'1 Données d''entrée'!$C$334-$B2054))/((1+'1 Données d''entrée'!$C$332)^'1 Données d''entrée'!$C$333-1)*'1 Données d''entrée'!$C$332,0)","v":0},{"$f":"IF(L2043>0,$H2035*((('1 Données d''entrée'!$C$332+1)^'1 Données d''entrée'!$C$333)-(1+'1 Données d''entrée'!$C$332)^('6 Financement'!K$54-1-'1 Données d''entrée'!$C$334-$B2054))/((1+'1 Données d''entrée'!$C$332)^'1 Données d''entrée'!$C$333-1)*'1 Données d''entrée'!$C$332,0)","v":0},{"$f":"IF(M2043>0,$H2035*((('1 Données d''entrée'!$C$332+1)^'1 Données d''entrée'!$C$333)-(1+'1 Données d''entrée'!$C$332)^('6 Financement'!L$54-1-'1 Données d''entrée'!$C$334-$B2054))/((1+'1 Données d''entrée'!$C$332)^'1 Données d''entrée'!$C$333-1)*'1 Données d''entrée'!$C$332,0)","v":0},{"$f":"IF(N2043>0,$H2035*((('1 Données d''entrée'!$C$332+1)^'1 Données d''entrée'!$C$333)-(1+'1 Données d''entrée'!$C$332)^('6 Financement'!M$54-1-'1 Données d''entrée'!$C$334-$B2054))/((1+'1 Données d''entrée'!$C$332)^'1 Données d''entrée'!$C$333-1)*'1 Données d''entrée'!$C$332,0)","v":0},{"$f":"IF(O2043>0,$H2035*((('1 Données d''entrée'!$C$332+1)^'1 Données d''entrée'!$C$333)-(1+'1 Données d''entrée'!$C$332)^('6 Financement'!N$54-1-'1 Données d''entrée'!$C$334-$B2054))/((1+'1 Données d''entrée'!$C$332)^'1 Données d''entrée'!$C$333-1)*'1 Données d''entrée'!$C$332,0)","v":0},{"$f":"IF(P2043>0,$H2035*((('1 Données d''entrée'!$C$332+1)^'1 Données d''entrée'!$C$333)-(1+'1 Données d''entrée'!$C$332)^('6 Financement'!O$54-1-'1 Données d''entrée'!$C$334-$B2054))/((1+'1 Données d''entrée'!$C$332)^'1 Données d''entrée'!$C$333-1)*'1 Données d''entrée'!$C$332,0)","v":0},{"$f":"IF(Q2043>0,$H2035*((('1 Données d''entrée'!$C$332+1)^'1 Données d''entrée'!$C$333)-(1+'1 Données d''entrée'!$C$332)^('6 Financement'!P$54-1-'1 Données d''entrée'!$C$334-$B2054))/((1+'1 Données d''entrée'!$C$332)^'1 Données d''entrée'!$C$333-1)*'1 Données d''entrée'!$C$332,0)","v":0},{"$f":"IF(R2043>0,$H2035*((('1 Données d''entrée'!$C$332+1)^'1 Données d''entrée'!$C$333)-(1+'1 Données d''entrée'!$C$332)^('6 Financement'!Q$54-1-'1 Données d''entrée'!$C$334-$B2054))/((1+'1 Données d''entrée'!$C$332)^'1 Données d''entrée'!$C$333-1)*'1 Données d''entrée'!$C$332,0)","v":0},{"$f":"IF(S2043>0,$H2035*((('1 Données d''entrée'!$C$332+1)^'1 Données d''entrée'!$C$333)-(1+'1 Données d''entrée'!$C$332)^('6 Financement'!R$54-1-'1 Données d''entrée'!$C$334-$B2054))/((1+'1 Données d''entrée'!$C$332)^'1 Données d''entrée'!$C$333-1)*'1 Données d''entrée'!$C$332,0)","v":0},{"$f":"IF(T2043>0,$H2035*((('1 Données d''entrée'!$C$332+1)^'1 Données d''entrée'!$C$333)-(1+'1 Données d''entrée'!$C$332)^('6 Financement'!S$54-1-'1 Données d''entrée'!$C$334-$B2054))/((1+'1 Données d''entrée'!$C$332)^'1 Données d''entrée'!$C$333-1)*'1 Données d''entrée'!$C$332,0)","v":0},{"$f":"IF(U2043>0,$H2035*((('1 Données d''entrée'!$C$332+1)^'1 Données d''entrée'!$C$333)-(1+'1 Données d''entrée'!$C$332)^('6 Financement'!T$54-1-'1 Données d''entrée'!$C$334-$B2054))/((1+'1 Données d''entrée'!$C$332)^'1 Données d''entrée'!$C$333-1)*'1 Données d''entrée'!$C$332,0)","v":0},{"$f":"IF(V2043>0,$H2035*((('1 Données d''entrée'!$C$332+1)^'1 Données d''entrée'!$C$333)-(1+'1 Données d''entrée'!$C$332)^('6 Financement'!U$54-1-'1 Données d''entrée'!$C$334-$B2054))/((1+'1 Données d''entrée'!$C$332)^'1 Données d''entrée'!$C$333-1)*'1 Données d''entrée'!$C$332,0)","v":0}]
["Paiement d'intêrets",7,0,{"$f":"IF(D2044>0,$I2035*((('1 Données d''entrée'!$C$332+1)^'1 Données d''entrée'!$C$333)-(1+'1 Données d''entrée'!$C$332)^('6 Financement'!C$54-1-'1 Données d''entrée'!$C$334-$B2055))/((1+'1 Données d''entrée'!$C$332)^'1 Données d''entrée'!$C$333-1)*'1 Données d''entrée'!$C$332,0)","v":0},{"$f":"IF(E2044>0,$I2035*((('1 Données d''entrée'!$C$332+1)^'1 Données d''entrée'!$C$333)-(1+'1 Données d''entrée'!$C$332)^('6 Financement'!D$54-1-'1 Données d''entrée'!$C$334-$B2055))/((1+'1 Données d''entrée'!$C$332)^'1 Données d''entrée'!$C$333-1)*'1 Données d''entrée'!$C$332,0)","v":0},{"$f":"IF(F2044>0,$I2035*((('1 Données d''entrée'!$C$332+1)^'1 Données d''entrée'!$C$333)-(1+'1 Données d''entrée'!$C$332)^('6 Financement'!E$54-1-'1 Données d''entrée'!$C$334-$B2055))/((1+'1 Données d''entrée'!$C$332)^'1 Données d''entrée'!$C$333-1)*'1 Données d''entrée'!$C$332,0)","v":0},{"$f":"IF(G2044>0,$I2035*((('1 Données d''entrée'!$C$332+1)^'1 Données d''entrée'!$C$333)-(1+'1 Données d''entrée'!$C$332)^('6 Financement'!F$54-1-'1 Données d''entrée'!$C$334-$B2055))/((1+'1 Données d''entrée'!$C$332)^'1 Données d''entrée'!$C$333-1)*'1 Données d''entrée'!$C$332,0)","v":0},{"$f":"IF(H2044>0,$I2035*((('1 Données d''entrée'!$C$332+1)^'1 Données d''entrée'!$C$333)-(1+'1 Données d''entrée'!$C$332)^('6 Financement'!G$54-1-'1 Données d''entrée'!$C$334-$B2055))/((1+'1 Données d''entrée'!$C$332)^'1 Données d''entrée'!$C$333-1)*'1 Données d''entrée'!$C$332,0)","v":0},{"$f":"IF(I2044>0,$I2035*((('1 Données d''entrée'!$C$332+1)^'1 Données d''entrée'!$C$333)-(1+'1 Données d''entrée'!$C$332)^('6 Financement'!H$54-1-'1 Données d''entrée'!$C$334-$B2055))/((1+'1 Données d''entrée'!$C$332)^'1 Données d''entrée'!$C$333-1)*'1 Données d''entrée'!$C$332,0)","v":0},{"$f":"IF(J2044>0,$I2035*((('1 Données d''entrée'!$C$332+1)^'1 Données d''entrée'!$C$333)-(1+'1 Données d''entrée'!$C$332)^('6 Financement'!I$54-1-'1 Données d''entrée'!$C$334-$B2055))/((1+'1 Données d''entrée'!$C$332)^'1 Données d''entrée'!$C$333-1)*'1 Données d''entrée'!$C$332,0)","v":0},{"$f":"IF(K2044>0,$I2035*((('1 Données d''entrée'!$C$332+1)^'1 Données d''entrée'!$C$333)-(1+'1 Données d''entrée'!$C$332)^('6 Financement'!J$54-1-'1 Données d''entrée'!$C$334-$B2055))/((1+'1 Données d''entrée'!$C$332)^'1 Données d''entrée'!$C$333-1)*'1 Données d''entrée'!$C$332,0)","v":0},{"$f":"IF(L2044>0,$I2035*((('1 Données d''entrée'!$C$332+1)^'1 Données d''entrée'!$C$333)-(1+'1 Données d''entrée'!$C$332)^('6 Financement'!K$54-1-'1 Données d''entrée'!$C$334-$B2055))/((1+'1 Données d''entrée'!$C$332)^'1 Données d''entrée'!$C$333-1)*'1 Données d''entrée'!$C$332,0)","v":0},{"$f":"IF(M2044>0,$I2035*((('1 Données d''entrée'!$C$332+1)^'1 Données d''entrée'!$C$333)-(1+'1 Données d''entrée'!$C$332)^('6 Financement'!L$54-1-'1 Données d''entrée'!$C$334-$B2055))/((1+'1 Données d''entrée'!$C$332)^'1 Données d''entrée'!$C$333-1)*'1 Données d''entrée'!$C$332,0)","v":0},{"$f":"IF(N2044>0,$I2035*((('1 Données d''entrée'!$C$332+1)^'1 Données d''entrée'!$C$333)-(1+'1 Données d''entrée'!$C$332)^('6 Financement'!M$54-1-'1 Données d''entrée'!$C$334-$B2055))/((1+'1 Données d''entrée'!$C$332)^'1 Données d''entrée'!$C$333-1)*'1 Données d''entrée'!$C$332,0)","v":0},{"$f":"IF(O2044>0,$I2035*((('1 Données d''entrée'!$C$332+1)^'1 Données d''entrée'!$C$333)-(1+'1 Données d''entrée'!$C$332)^('6 Financement'!N$54-1-'1 Données d''entrée'!$C$334-$B2055))/((1+'1 Données d''entrée'!$C$332)^'1 Données d''entrée'!$C$333-1)*'1 Données d''entrée'!$C$332,0)","v":0},{"$f":"IF(P2044>0,$I2035*((('1 Données d''entrée'!$C$332+1)^'1 Données d''entrée'!$C$333)-(1+'1 Données d''entrée'!$C$332)^('6 Financement'!O$54-1-'1 Données d''entrée'!$C$334-$B2055))/((1+'1 Données d''entrée'!$C$332)^'1 Données d''entrée'!$C$333-1)*'1 Données d''entrée'!$C$332,0)","v":0},{"$f":"IF(Q2044>0,$I2035*((('1 Données d''entrée'!$C$332+1)^'1 Données d''entrée'!$C$333)-(1+'1 Données d''entrée'!$C$332)^('6 Financement'!P$54-1-'1 Données d''entrée'!$C$334-$B2055))/((1+'1 Données d''entrée'!$C$332)^'1 Données d''entrée'!$C$333-1)*'1 Données d''entrée'!$C$332,0)","v":0},{"$f":"IF(R2044>0,$I2035*((('1 Données d''entrée'!$C$332+1)^'1 Données d''entrée'!$C$333)-(1+'1 Données d''entrée'!$C$332)^('6 Financement'!Q$54-1-'1 Données d''entrée'!$C$334-$B2055))/((1+'1 Données d''entrée'!$C$332)^'1 Données d''entrée'!$C$333-1)*'1 Données d''entrée'!$C$332,0)","v":0},{"$f":"IF(S2044>0,$I2035*((('1 Données d''entrée'!$C$332+1)^'1 Données d''entrée'!$C$333)-(1+'1 Données d''entrée'!$C$332)^('6 Financement'!R$54-1-'1 Données d''entrée'!$C$334-$B2055))/((1+'1 Données d''entrée'!$C$332)^'1 Données d''entrée'!$C$333-1)*'1 Données d''entrée'!$C$332,0)","v":0},{"$f":"IF(T2044>0,$I2035*((('1 Données d''entrée'!$C$332+1)^'1 Données d''entrée'!$C$333)-(1+'1 Données d''entrée'!$C$332)^('6 Financement'!S$54-1-'1 Données d''entrée'!$C$334-$B2055))/((1+'1 Données d''entrée'!$C$332)^'1 Données d''entrée'!$C$333-1)*'1 Données d''entrée'!$C$332,0)","v":0},{"$f":"IF(U2044>0,$I2035*((('1 Données d''entrée'!$C$332+1)^'1 Données d''entrée'!$C$333)-(1+'1 Données d''entrée'!$C$332)^('6 Financement'!T$54-1-'1 Données d''entrée'!$C$334-$B2055))/((1+'1 Données d''entrée'!$C$332)^'1 Données d''entrée'!$C$333-1)*'1 Données d''entrée'!$C$332,0)","v":0},{"$f":"IF(V2044>0,$I2035*((('1 Données d''entrée'!$C$332+1)^'1 Données d''entrée'!$C$333)-(1+'1 Données d''entrée'!$C$332)^('6 Financement'!U$54-1-'1 Données d''entrée'!$C$334-$B2055))/((1+'1 Données d''entrée'!$C$332)^'1 Données d''entrée'!$C$333-1)*'1 Données d''entrée'!$C$332,0)","v":0}]
["Paiement d'intêrets",8,0,{"$f":"IF(D2045>0,$J2035*((('1 Données d''entrée'!$C$332+1)^'1 Données d''entrée'!$C$333)-(1+'1 Données d''entrée'!$C$332)^('6 Financement'!C$54-1-'1 Données d''entrée'!$C$334-$B2056))/((1+'1 Données d''entrée'!$C$332)^'1 Données d''entrée'!$C$333-1)*'1 Données d''entrée'!$C$332,0)","v":0},{"$f":"IF(E2045>0,$J2035*((('1 Données d''entrée'!$C$332+1)^'1 Données d''entrée'!$C$333)-(1+'1 Données d''entrée'!$C$332)^('6 Financement'!D$54-1-'1 Données d''entrée'!$C$334-$B2056))/((1+'1 Données d''entrée'!$C$332)^'1 Données d''entrée'!$C$333-1)*'1 Données d''entrée'!$C$332,0)","v":0},{"$f":"IF(F2045>0,$J2035*((('1 Données d''entrée'!$C$332+1)^'1 Données d''entrée'!$C$333)-(1+'1 Données d''entrée'!$C$332)^('6 Financement'!E$54-1-'1 Données d''entrée'!$C$334-$B2056))/((1+'1 Données d''entrée'!$C$332)^'1 Données d''entrée'!$C$333-1)*'1 Données d''entrée'!$C$332,0)","v":0},{"$f":"IF(G2045>0,$J2035*((('1 Données d''entrée'!$C$332+1)^'1 Données d''entrée'!$C$333)-(1+'1 Données d''entrée'!$C$332)^('6 Financement'!F$54-1-'1 Données d''entrée'!$C$334-$B2056))/((1+'1 Données d''entrée'!$C$332)^'1 Données d''entrée'!$C$333-1)*'1 Données d''entrée'!$C$332,0)","v":0},{"$f":"IF(H2045>0,$J2035*((('1 Données d''entrée'!$C$332+1)^'1 Données d''entrée'!$C$333)-(1+'1 Données d''entrée'!$C$332)^('6 Financement'!G$54-1-'1 Données d''entrée'!$C$334-$B2056))/((1+'1 Données d''entrée'!$C$332)^'1 Données d''entrée'!$C$333-1)*'1 Données d''entrée'!$C$332,0)","v":0},{"$f":"IF(I2045>0,$J2035*((('1 Données d''entrée'!$C$332+1)^'1 Données d''entrée'!$C$333)-(1+'1 Données d''entrée'!$C$332)^('6 Financement'!H$54-1-'1 Données d''entrée'!$C$334-$B2056))/((1+'1 Données d''entrée'!$C$332)^'1 Données d''entrée'!$C$333-1)*'1 Données d''entrée'!$C$332,0)","v":0},{"$f":"IF(J2045>0,$J2035*((('1 Données d''entrée'!$C$332+1)^'1 Données d''entrée'!$C$333)-(1+'1 Données d''entrée'!$C$332)^('6 Financement'!I$54-1-'1 Données d''entrée'!$C$334-$B2056))/((1+'1 Données d''entrée'!$C$332)^'1 Données d''entrée'!$C$333-1)*'1 Données d''entrée'!$C$332,0)","v":0},{"$f":"IF(K2045>0,$J2035*((('1 Données d''entrée'!$C$332+1)^'1 Données d''entrée'!$C$333)-(1+'1 Données d''entrée'!$C$332)^('6 Financement'!J$54-1-'1 Données d''entrée'!$C$334-$B2056))/((1+'1 Données d''entrée'!$C$332)^'1 Données d''entrée'!$C$333-1)*'1 Données d''entrée'!$C$332,0)","v":0},{"$f":"IF(L2045>0,$J2035*((('1 Données d''entrée'!$C$332+1)^'1 Données d''entrée'!$C$333)-(1+'1 Données d''entrée'!$C$332)^('6 Financement'!K$54-1-'1 Données d''entrée'!$C$334-$B2056))/((1+'1 Données d''entrée'!$C$332)^'1 Données d''entrée'!$C$333-1)*'1 Données d''entrée'!$C$332,0)","v":0},{"$f":"IF(M2045>0,$J2035*((('1 Données d''entrée'!$C$332+1)^'1 Données d''entrée'!$C$333)-(1+'1 Données d''entrée'!$C$332)^('6 Financement'!L$54-1-'1 Données d''entrée'!$C$334-$B2056))/((1+'1 Données d''entrée'!$C$332)^'1 Données d''entrée'!$C$333-1)*'1 Données d''entrée'!$C$332,0)","v":0},{"$f":"IF(N2045>0,$J2035*((('1 Données d''entrée'!$C$332+1)^'1 Données d''entrée'!$C$333)-(1+'1 Données d''entrée'!$C$332)^('6 Financement'!M$54-1-'1 Données d''entrée'!$C$334-$B2056))/((1+'1 Données d''entrée'!$C$332)^'1 Données d''entrée'!$C$333-1)*'1 Données d''entrée'!$C$332,0)","v":0},{"$f":"IF(O2045>0,$J2035*((('1 Données d''entrée'!$C$332+1)^'1 Données d''entrée'!$C$333)-(1+'1 Données d''entrée'!$C$332)^('6 Financement'!N$54-1-'1 Données d''entrée'!$C$334-$B2056))/((1+'1 Données d''entrée'!$C$332)^'1 Données d''entrée'!$C$333-1)*'1 Données d''entrée'!$C$332,0)","v":0},{"$f":"IF(P2045>0,$J2035*((('1 Données d''entrée'!$C$332+1)^'1 Données d''entrée'!$C$333)-(1+'1 Données d''entrée'!$C$332)^('6 Financement'!O$54-1-'1 Données d''entrée'!$C$334-$B2056))/((1+'1 Données d''entrée'!$C$332)^'1 Données d''entrée'!$C$333-1)*'1 Données d''entrée'!$C$332,0)","v":0},{"$f":"IF(Q2045>0,$J2035*((('1 Données d''entrée'!$C$332+1)^'1 Données d''entrée'!$C$333)-(1+'1 Données d''entrée'!$C$332)^('6 Financement'!P$54-1-'1 Données d''entrée'!$C$334-$B2056))/((1+'1 Données d''entrée'!$C$332)^'1 Données d''entrée'!$C$333-1)*'1 Données d''entrée'!$C$332,0)","v":0},{"$f":"IF(R2045>0,$J2035*((('1 Données d''entrée'!$C$332+1)^'1 Données d''entrée'!$C$333)-(1+'1 Données d''entrée'!$C$332)^('6 Financement'!Q$54-1-'1 Données d''entrée'!$C$334-$B2056))/((1+'1 Données d''entrée'!$C$332)^'1 Données d''entrée'!$C$333-1)*'1 Données d''entrée'!$C$332,0)","v":0},{"$f":"IF(S2045>0,$J2035*((('1 Données d''entrée'!$C$332+1)^'1 Données d''entrée'!$C$333)-(1+'1 Données d''entrée'!$C$332)^('6 Financement'!R$54-1-'1 Données d''entrée'!$C$334-$B2056))/((1+'1 Données d''entrée'!$C$332)^'1 Données d''entrée'!$C$333-1)*'1 Données d''entrée'!$C$332,0)","v":0},{"$f":"IF(T2045>0,$J2035*((('1 Données d''entrée'!$C$332+1)^'1 Données d''entrée'!$C$333)-(1+'1 Données d''entrée'!$C$332)^('6 Financement'!S$54-1-'1 Données d''entrée'!$C$334-$B2056))/((1+'1 Données d''entrée'!$C$332)^'1 Données d''entrée'!$C$333-1)*'1 Données d''entrée'!$C$332,0)","v":0},{"$f":"IF(U2045>0,$J2035*((('1 Données d''entrée'!$C$332+1)^'1 Données d''entrée'!$C$333)-(1+'1 Données d''entrée'!$C$332)^('6 Financement'!T$54-1-'1 Données d''entrée'!$C$334-$B2056))/((1+'1 Données d''entrée'!$C$332)^'1 Données d''entrée'!$C$333-1)*'1 Données d''entrée'!$C$332,0)","v":0},{"$f":"IF(V2045>0,$J2035*((('1 Données d''entrée'!$C$332+1)^'1 Données d''entrée'!$C$333)-(1+'1 Données d''entrée'!$C$332)^('6 Financement'!U$54-1-'1 Données d''entrée'!$C$334-$B2056))/((1+'1 Données d''entrée'!$C$332)^'1 Données d''entrée'!$C$333-1)*'1 Données d''entrée'!$C$332,0)","v":0}]
["Paiement d'intêrets",9,0,{"$f":"IF(D2046>0,$K2035*((('1 Données d''entrée'!$C$332+1)^'1 Données d''entrée'!$C$333)-(1+'1 Données d''entrée'!$C$332)^('6 Financement'!C$54-1-'1 Données d''entrée'!$C$334-$B2057))/((1+'1 Données d''entrée'!$C$332)^'1 Données d''entrée'!$C$333-1)*'1 Données d''entrée'!$C$332,0)","v":0},{"$f":"IF(E2046>0,$K2035*((('1 Données d''entrée'!$C$332+1)^'1 Données d''entrée'!$C$333)-(1+'1 Données d''entrée'!$C$332)^('6 Financement'!D$54-1-'1 Données d''entrée'!$C$334-$B2057))/((1+'1 Données d''entrée'!$C$332)^'1 Données d''entrée'!$C$333-1)*'1 Données d''entrée'!$C$332,0)","v":0},{"$f":"IF(F2046>0,$K2035*((('1 Données d''entrée'!$C$332+1)^'1 Données d''entrée'!$C$333)-(1+'1 Données d''entrée'!$C$332)^('6 Financement'!E$54-1-'1 Données d''entrée'!$C$334-$B2057))/((1+'1 Données d''entrée'!$C$332)^'1 Données d''entrée'!$C$333-1)*'1 Données d''entrée'!$C$332,0)","v":0},{"$f":"IF(G2046>0,$K2035*((('1 Données d''entrée'!$C$332+1)^'1 Données d''entrée'!$C$333)-(1+'1 Données d''entrée'!$C$332)^('6 Financement'!F$54-1-'1 Données d''entrée'!$C$334-$B2057))/((1+'1 Données d''entrée'!$C$332)^'1 Données d''entrée'!$C$333-1)*'1 Données d''entrée'!$C$332,0)","v":0},{"$f":"IF(H2046>0,$K2035*((('1 Données d''entrée'!$C$332+1)^'1 Données d''entrée'!$C$333)-(1+'1 Données d''entrée'!$C$332)^('6 Financement'!G$54-1-'1 Données d''entrée'!$C$334-$B2057))/((1+'1 Données d''entrée'!$C$332)^'1 Données d''entrée'!$C$333-1)*'1 Données d''entrée'!$C$332,0)","v":0},{"$f":"IF(I2046>0,$K2035*((('1 Données d''entrée'!$C$332+1)^'1 Données d''entrée'!$C$333)-(1+'1 Données d''entrée'!$C$332)^('6 Financement'!H$54-1-'1 Données d''entrée'!$C$334-$B2057))/((1+'1 Données d''entrée'!$C$332)^'1 Données d''entrée'!$C$333-1)*'1 Données d''entrée'!$C$332,0)","v":0},{"$f":"IF(J2046>0,$K2035*((('1 Données d''entrée'!$C$332+1)^'1 Données d''entrée'!$C$333)-(1+'1 Données d''entrée'!$C$332)^('6 Financement'!I$54-1-'1 Données d''entrée'!$C$334-$B2057))/((1+'1 Données d''entrée'!$C$332)^'1 Données d''entrée'!$C$333-1)*'1 Données d''entrée'!$C$332,0)","v":0},{"$f":"IF(K2046>0,$K2035*((('1 Données d''entrée'!$C$332+1)^'1 Données d''entrée'!$C$333)-(1+'1 Données d''entrée'!$C$332)^('6 Financement'!J$54-1-'1 Données d''entrée'!$C$334-$B2057))/((1+'1 Données d''entrée'!$C$332)^'1 Données d''entrée'!$C$333-1)*'1 Données d''entrée'!$C$332,0)","v":0},{"$f":"IF(L2046>0,$K2035*((('1 Données d''entrée'!$C$332+1)^'1 Données d''entrée'!$C$333)-(1+'1 Données d''entrée'!$C$332)^('6 Financement'!K$54-1-'1 Données d''entrée'!$C$334-$B2057))/((1+'1 Données d''entrée'!$C$332)^'1 Données d''entrée'!$C$333-1)*'1 Données d''entrée'!$C$332,0)","v":0},{"$f":"IF(M2046>0,$K2035*((('1 Données d''entrée'!$C$332+1)^'1 Données d''entrée'!$C$333)-(1+'1 Données d''entrée'!$C$332)^('6 Financement'!L$54-1-'1 Données d''entrée'!$C$334-$B2057))/((1+'1 Données d''entrée'!$C$332)^'1 Données d''entrée'!$C$333-1)*'1 Données d''entrée'!$C$332,0)","v":0},{"$f":"IF(N2046>0,$K2035*((('1 Données d''entrée'!$C$332+1)^'1 Données d''entrée'!$C$333)-(1+'1 Données d''entrée'!$C$332)^('6 Financement'!M$54-1-'1 Données d''entrée'!$C$334-$B2057))/((1+'1 Données d''entrée'!$C$332)^'1 Données d''entrée'!$C$333-1)*'1 Données d''entrée'!$C$332,0)","v":0},{"$f":"IF(O2046>0,$K2035*((('1 Données d''entrée'!$C$332+1)^'1 Données d''entrée'!$C$333)-(1+'1 Données d''entrée'!$C$332)^('6 Financement'!N$54-1-'1 Données d''entrée'!$C$334-$B2057))/((1+'1 Données d''entrée'!$C$332)^'1 Données d''entrée'!$C$333-1)*'1 Données d''entrée'!$C$332,0)","v":0},{"$f":"IF(P2046>0,$K2035*((('1 Données d''entrée'!$C$332+1)^'1 Données d''entrée'!$C$333)-(1+'1 Données d''entrée'!$C$332)^('6 Financement'!O$54-1-'1 Données d''entrée'!$C$334-$B2057))/((1+'1 Données d''entrée'!$C$332)^'1 Données d''entrée'!$C$333-1)*'1 Données d''entrée'!$C$332,0)","v":0},{"$f":"IF(Q2046>0,$K2035*((('1 Données d''entrée'!$C$332+1)^'1 Données d''entrée'!$C$333)-(1+'1 Données d''entrée'!$C$332)^('6 Financement'!P$54-1-'1 Données d''entrée'!$C$334-$B2057))/((1+'1 Données d''entrée'!$C$332)^'1 Données d''entrée'!$C$333-1)*'1 Données d''entrée'!$C$332,0)","v":0},{"$f":"IF(R2046>0,$K2035*((('1 Données d''entrée'!$C$332+1)^'1 Données d''entrée'!$C$333)-(1+'1 Données d''entrée'!$C$332)^('6 Financement'!Q$54-1-'1 Données d''entrée'!$C$334-$B2057))/((1+'1 Données d''entrée'!$C$332)^'1 Données d''entrée'!$C$333-1)*'1 Données d''entrée'!$C$332,0)","v":0},{"$f":"IF(S2046>0,$K2035*((('1 Données d''entrée'!$C$332+1)^'1 Données d''entrée'!$C$333)-(1+'1 Données d''entrée'!$C$332)^('6 Financement'!R$54-1-'1 Données d''entrée'!$C$334-$B2057))/((1+'1 Données d''entrée'!$C$332)^'1 Données d''entrée'!$C$333-1)*'1 Données d''entrée'!$C$332,0)","v":0},{"$f":"IF(T2046>0,$K2035*((('1 Données d''entrée'!$C$332+1)^'1 Données d''entrée'!$C$333)-(1+'1 Données d''entrée'!$C$332)^('6 Financement'!S$54-1-'1 Données d''entrée'!$C$334-$B2057))/((1+'1 Données d''entrée'!$C$332)^'1 Données d''entrée'!$C$333-1)*'1 Données d''entrée'!$C$332,0)","v":0},{"$f":"IF(U2046>0,$K2035*((('1 Données d''entrée'!$C$332+1)^'1 Données d''entrée'!$C$333)-(1+'1 Données d''entrée'!$C$332)^('6 Financement'!T$54-1-'1 Données d''entrée'!$C$334-$B2057))/((1+'1 Données d''entrée'!$C$332)^'1 Données d''entrée'!$C$333-1)*'1 Données d''entrée'!$C$332,0)","v":0},{"$f":"IF(V2046>0,$K2035*((('1 Données d''entrée'!$C$332+1)^'1 Données d''entrée'!$C$333)-(1+'1 Données d''entrée'!$C$332)^('6 Financement'!U$54-1-'1 Données d''entrée'!$C$334-$B2057))/((1+'1 Données d''entrée'!$C$332)^'1 Données d''entrée'!$C$333-1)*'1 Données d''entrée'!$C$332,0)","v":0}]
["Paiement d'intêrets",10,0,{"$f":"IF(D2047>0,$L2035*((('1 Données d''entrée'!$C$332+1)^'1 Données d''entrée'!$C$333)-(1+'1 Données d''entrée'!$C$332)^('6 Financement'!C$54-1-'1 Données d''entrée'!$C$334-$B2058))/((1+'1 Données d''entrée'!$C$332)^'1 Données d''entrée'!$C$333-1)*'1 Données d''entrée'!$C$332,0)","v":0},{"$f":"IF(E2047>0,$L2035*((('1 Données d''entrée'!$C$332+1)^'1 Données d''entrée'!$C$333)-(1+'1 Données d''entrée'!$C$332)^('6 Financement'!D$54-1-'1 Données d''entrée'!$C$334-$B2058))/((1+'1 Données d''entrée'!$C$332)^'1 Données d''entrée'!$C$333-1)*'1 Données d''entrée'!$C$332,0)","v":0},{"$f":"IF(F2047>0,$L2035*((('1 Données d''entrée'!$C$332+1)^'1 Données d''entrée'!$C$333)-(1+'1 Données d''entrée'!$C$332)^('6 Financement'!E$54-1-'1 Données d''entrée'!$C$334-$B2058))/((1+'1 Données d''entrée'!$C$332)^'1 Données d''entrée'!$C$333-1)*'1 Données d''entrée'!$C$332,0)","v":0},{"$f":"IF(G2047>0,$L2035*((('1 Données d''entrée'!$C$332+1)^'1 Données d''entrée'!$C$333)-(1+'1 Données d''entrée'!$C$332)^('6 Financement'!F$54-1-'1 Données d''entrée'!$C$334-$B2058))/((1+'1 Données d''entrée'!$C$332)^'1 Données d''entrée'!$C$333-1)*'1 Données d''entrée'!$C$332,0)","v":0},{"$f":"IF(H2047>0,$L2035*((('1 Données d''entrée'!$C$332+1)^'1 Données d''entrée'!$C$333)-(1+'1 Données d''entrée'!$C$332)^('6 Financement'!G$54-1-'1 Données d''entrée'!$C$334-$B2058))/((1+'1 Données d''entrée'!$C$332)^'1 Données d''entrée'!$C$333-1)*'1 Données d''entrée'!$C$332,0)","v":0},{"$f":"IF(I2047>0,$L2035*((('1 Données d''entrée'!$C$332+1)^'1 Données d''entrée'!$C$333)-(1+'1 Données d''entrée'!$C$332)^('6 Financement'!H$54-1-'1 Données d''entrée'!$C$334-$B2058))/((1+'1 Données d''entrée'!$C$332)^'1 Données d''entrée'!$C$333-1)*'1 Données d''entrée'!$C$332,0)","v":0},{"$f":"IF(J2047>0,$L2035*((('1 Données d''entrée'!$C$332+1)^'1 Données d''entrée'!$C$333)-(1+'1 Données d''entrée'!$C$332)^('6 Financement'!I$54-1-'1 Données d''entrée'!$C$334-$B2058))/((1+'1 Données d''entrée'!$C$332)^'1 Données d''entrée'!$C$333-1)*'1 Données d''entrée'!$C$332,0)","v":0},{"$f":"IF(K2047>0,$L2035*((('1 Données d''entrée'!$C$332+1)^'1 Données d''entrée'!$C$333)-(1+'1 Données d''entrée'!$C$332)^('6 Financement'!J$54-1-'1 Données d''entrée'!$C$334-$B2058))/((1+'1 Données d''entrée'!$C$332)^'1 Données d''entrée'!$C$333-1)*'1 Données d''entrée'!$C$332,0)","v":0},{"$f":"IF(L2047>0,$L2035*((('1 Données d''entrée'!$C$332+1)^'1 Données d''entrée'!$C$333)-(1+'1 Données d''entrée'!$C$332)^('6 Financement'!K$54-1-'1 Données d''entrée'!$C$334-$B2058))/((1+'1 Données d''entrée'!$C$332)^'1 Données d''entrée'!$C$333-1)*'1 Données d''entrée'!$C$332,0)","v":0},{"$f":"IF(M2047>0,$L2035*((('1 Données d''entrée'!$C$332+1)^'1 Données d''entrée'!$C$333)-(1+'1 Données d''entrée'!$C$332)^('6 Financement'!L$54-1-'1 Données d''entrée'!$C$334-$B2058))/((1+'1 Données d''entrée'!$C$332)^'1 Données d''entrée'!$C$333-1)*'1 Données d''entrée'!$C$332,0)","v":0},{"$f":"IF(N2047>0,$L2035*((('1 Données d''entrée'!$C$332+1)^'1 Données d''entrée'!$C$333)-(1+'1 Données d''entrée'!$C$332)^('6 Financement'!M$54-1-'1 Données d''entrée'!$C$334-$B2058))/((1+'1 Données d''entrée'!$C$332)^'1 Données d''entrée'!$C$333-1)*'1 Données d''entrée'!$C$332,0)","v":0},{"$f":"IF(O2047>0,$L2035*((('1 Données d''entrée'!$C$332+1)^'1 Données d''entrée'!$C$333)-(1+'1 Données d''entrée'!$C$332)^('6 Financement'!N$54-1-'1 Données d''entrée'!$C$334-$B2058))/((1+'1 Données d''entrée'!$C$332)^'1 Données d''entrée'!$C$333-1)*'1 Données d''entrée'!$C$332,0)","v":0},{"$f":"IF(P2047>0,$L2035*((('1 Données d''entrée'!$C$332+1)^'1 Données d''entrée'!$C$333)-(1+'1 Données d''entrée'!$C$332)^('6 Financement'!O$54-1-'1 Données d''entrée'!$C$334-$B2058))/((1+'1 Données d''entrée'!$C$332)^'1 Données d''entrée'!$C$333-1)*'1 Données d''entrée'!$C$332,0)","v":0},{"$f":"IF(Q2047>0,$L2035*((('1 Données d''entrée'!$C$332+1)^'1 Données d''entrée'!$C$333)-(1+'1 Données d''entrée'!$C$332)^('6 Financement'!P$54-1-'1 Données d''entrée'!$C$334-$B2058))/((1+'1 Données d''entrée'!$C$332)^'1 Données d''entrée'!$C$333-1)*'1 Données d''entrée'!$C$332,0)","v":0},{"$f":"IF(R2047>0,$L2035*((('1 Données d''entrée'!$C$332+1)^'1 Données d''entrée'!$C$333)-(1+'1 Données d''entrée'!$C$332)^('6 Financement'!Q$54-1-'1 Données d''entrée'!$C$334-$B2058))/((1+'1 Données d''entrée'!$C$332)^'1 Données d''entrée'!$C$333-1)*'1 Données d''entrée'!$C$332,0)","v":0},{"$f":"IF(S2047>0,$L2035*((('1 Données d''entrée'!$C$332+1)^'1 Données d''entrée'!$C$333)-(1+'1 Données d''entrée'!$C$332)^('6 Financement'!R$54-1-'1 Données d''entrée'!$C$334-$B2058))/((1+'1 Données d''entrée'!$C$332)^'1 Données d''entrée'!$C$333-1)*'1 Données d''entrée'!$C$332,0)","v":0},{"$f":"IF(T2047>0,$L2035*((('1 Données d''entrée'!$C$332+1)^'1 Données d''entrée'!$C$333)-(1+'1 Données d''entrée'!$C$332)^('6 Financement'!S$54-1-'1 Données d''entrée'!$C$334-$B2058))/((1+'1 Données d''entrée'!$C$332)^'1 Données d''entrée'!$C$333-1)*'1 Données d''entrée'!$C$332,0)","v":0},{"$f":"IF(U2047>0,$L2035*((('1 Données d''entrée'!$C$332+1)^'1 Données d''entrée'!$C$333)-(1+'1 Données d''entrée'!$C$332)^('6 Financement'!T$54-1-'1 Données d''entrée'!$C$334-$B2058))/((1+'1 Données d''entrée'!$C$332)^'1 Données d''entrée'!$C$333-1)*'1 Données d''entrée'!$C$332,0)","v":0},{"$f":"IF(V2047>0,$L2035*((('1 Données d''entrée'!$C$332+1)^'1 Données d''entrée'!$C$333)-(1+'1 Données d''entrée'!$C$332)^('6 Financement'!U$54-1-'1 Données d''entrée'!$C$334-$B2058))/((1+'1 Données d''entrée'!$C$332)^'1 Données d''entrée'!$C$333-1)*'1 Données d''entrée'!$C$332,0)","v":0}]
[]
["Solde du comte (par période)",null,{"$f":"C1971+IF($B$103>0,C1979-SUM(C1981:C1991)-SUM(C1993:C2003),0)+IF($B$131>0,C2007-SUM(C2009:C2019)-SUM(C2021:C2031),0)+IF($B$159>0,C2035-SUM(C2037:C2047),0)","v":{"$error":"#DIV/0!"}},{"$f":"D1971+IF($B$103>0,D1979-SUM(D1981:D1991)-SUM(D1993:D2003),0)+IF($B$131>0,D2007-SUM(D2009:D2019)-SUM(D2021:D2031),0)+IF($B$159>0,D2035-SUM(D2037:D2047),0)","v":{"$error":"#DIV/0!"}},{"$error":"#DIV/0!"},{"$error":"#DIV/0!"},{"$error":"#DIV/0!"},{"$error":"#DIV/0!"},{"$error":"#DIV/0!"},{"$error":"#DIV/0!"},{"$error":"#DIV/0!"},{"$error":"#DIV/0!"},{"$error":"#DIV/0!"},{"$error":"#DIV/0!"},{"$error":"#DIV/0!"},{"$error":"#DIV/0!"},{"$error":"#DIV/0!"},{"$error":"#DIV/0!"},{"$error":"#DIV/0!"},{"$error":"#DIV/0!"},{"$error":"#DIV/0!"},{"$error":"#DIV/0!"}]
["Solde du compte (cumulé)",null,{"$f":"C2061+B1972","v":{"$error":"#DIV/0!"}},{"$f":"C2062+D2061","v":{"$error":"#DIV/0!"}},{"$error":"#DIV/0!"},{"$error":"#DIV/0!"},{"$error":"#DIV/0!"},{"$error":"#DIV/0!"},{"$error":"#DIV/0!"},{"$error":"#DIV/0!"},{"$error":"#DIV/0!"},{"$error":"#DIV/0!"},{"$error":"#DIV/0!"},{"$error":"#DIV/0!"},{"$error":"#DIV/0!"},{"$error":"#DIV/0!"},{"$error":"#DIV/0!"},{"$error":"#DIV/0!"},{"$error":"#DIV/0!"},{"$error":"#DIV/0!"},{"$error":"#DIV/0!"},{"$error":"#DIV/0!"}]
[]
[]
["Coût du financement","Période",1,2,3,4,5,6,7,8,9,10,11,12,13,14,15,16,17,18,19,20]
["Paiement d'intérêt par période",null,{"$f":"IF($B1937>0,(C1940+C1941),0)+IF($B1942>0,(C1945+C1946),0)+IF($B1947>0,C1950+C1951,0)+IF($B1954>0,(C1957+C1958),0)+IF($B1959>0,(C1962+C1963),0)+IF($B1964>0,C1967+C1968,0)+IF($B1976>0,SUM(C1993:C2003),0)+IF($B2006>0,SUM(C2021:C2031),0)+IF($B2034>0,SUM(C2049:C2059),0)","v":0},{"$f":"IF($B1937>0,(D1940+D1941),0)+IF($B1942>0,(D1945+D1946),0)+IF($B1947>0,D1950+D1951,0)+IF($B1954>0,(D1957+D1958),0)+IF($B1959>0,(D1962+D1963),0)+IF($B1964>0,D1967+D1968,0)+IF($B1976>0,SUM(D1993:D2003),0)+IF($B2006>0,SUM(D2021:D2031),0)+IF($B2034>0,SUM(D2049:D2059),0)","v":0},0,0,0,0,0,0,0,0,0,0,0,0,0,0,0,0,0,0]
["Remboursement du principal par période",null,{"$f":"IF($B1937>0,(C1939),0)+IF($B1942>0,(C1944),0)+IF($B1947>0,IF(C1949>0,C1949-C1950,0),0)+IF($B1954>0,(C1956),0)+IF($B1959>0,(C1961),0)+IF($B1964>0,IF(C1966>0,C1966-C1967,0),0)+IF($B1978>0,SUM(C1981:C1991),0)+IF($B2006>0,SUM(C2009:C2019),0)+IF($B2034>0,SUM(C2037:C2047)-SUM(C2049:C2059),0)","v":0},{"$f":"IF($B1937>0,(D1939),0)+IF($B1942>0,(D1944),0)+IF($B1947>0,IF(D1949>0,D1949-D1950,0),0)+IF($B1954>0,(D1956),0)+IF($B1959>0,(D1961),0)+IF($B1964>0,IF(D1966>0,D1966-D1967,0),0)+IF($B1978>0,SUM(D1981:D1991),0)+IF($B2006>0,SUM(D2009:D2019),0)+IF($B2034>0,SUM(D2037:D2047)-SUM(D2049:D2059),0)","v":0},0,0,0,0,0,0,0,0,0,0,0,0,0,0,0,0,0,0]
[]
[]
["Flux de trésorerie net       "]
["Période (t)","Flux de trésorerie       brut","Coût de financement ","Subventions","Flux de trésorerie       intermédiaires (avec coût fin. et Subventions)","Flux de trésorerie      , taxe contenue","Flux de trésorerie       cumulé, taxe contenue","Période de remboursement"]
[0,{"$f":"'5 Flux de trésorerie brut'!$D$7","v":{"$error":"#DIV/0!"}},0,{"$f":"B1935+B1953","v":0},{"$f":"D2072-C2072+B2072","v":{"$error":"#DIV/0!"}},{"$f":"IF(E2072>0,(E2072-E2072*'1 Données d''entrée'!$C$353-IF('5 Flux de trésorerie brut'!$D$7>0,'1 Données d''entrée'!$C$357*'5 Flux de trésorerie brut'!$D$7,0)),E2072)","v":{"$error":"#DIV/0!"}},{"$f":"F2072","v":{"$error":"#DIV/0!"}},{"$f":"IF(G2072<0,\" \",A2072)","v":{"$error":"#DIV/0!"}}]
[1,{"$f":"'5 Flux de trésorerie brut'!$D$8","v":{"$error":"#DIV/0!"}},{"$f":"C2066+C2067","v":0},0,{"$f":"D2073-C2073+B2073","v":{"$error":"#DIV/0!"}},{"$f":"IF(E2073>0,(E2073-E2073*'1 Données d''entrée'!$C$353-IF('5 Flux de trésorerie brut'!$D$8>0,'1 Données d''entrée'!$C$357*'5 Flux de trésorerie brut'!$D$8,0)),E2073)","v":{"$error":"#DIV/0!"}},{"$f":"G2072+F2073","v":{"$error":"#DIV/0!"}},{"$f":"IF(G2073<0,\" \",IF(SUM(H2072:H2072)>0,\" \",IF(H2072=0,\" \",A2073)))","v":{"$error":"#DIV/0!"}}]
[2,{"$f":"'5 Flux de trésorerie brut'!$D$9","v":{"$error":"#DIV/0!"}},{"$f":"D2066+D2067","v":0},0,{"$error":"#DIV/0!"},{"$f":"IF(E2074>0,(E2074-E2074*'1 Données d''entrée'!$C$353-IF('5 Flux de trésorerie brut'!$D$9>0,'1 Données d''entrée'!$C$357*'5 Flux de trésorerie brut'!$D$9,0)),E2074)","v":{"$error":"#DIV/0!"}},{"$error":"#DIV/0!"},{"$f":"IF(G2074<0,\" \",IF(SUM(H2072:H2073)>0,\" \",IF(H2072=0,\" \",A2074)))","v":{"$error":"#DIV/0!"}}]
[3,{"$f":"'5 Flux de trésorerie brut'!$D$10","v":{"$error":"#DIV/0!"}},{"$f":"E2066+E2067","v":0},0,{"$error":"#DIV/0!"},{"$f":"IF(E2075>0,(E2075-E2075*'1 Données d''entrée'!$C$353-IF('5 Flux de trésorerie brut'!$D$10>0,'1 Données d''entrée'!$C$357*'5 Flux de trésorerie brut'!$D$10,0)),E2075)","v":{"$error":"#DIV/0!"}},{"$error":"#DIV/0!"},{"$f":"IF(G2075<0,\" \",IF(SUM(H2072:H2074)>0,\" \",IF(H2072=0,\" \",A2075)))","v":{"$error":"#DIV/0!"}}]
[4,{"$f":"'5 Flux de trésorerie brut'!$D$11","v":{"$error":"#DIV/0!"}},{"$f":"F2066+F2067","v":0},0,{"$error":"#DIV/0!"},{"$f":"IF(E2076>0,(E2076-E2076*'1 Données d''entrée'!$C$353-IF('5 Flux de trésorerie brut'!$D$11>0,'1 Données d''entrée'!$C$357*'5 Flux de trésorerie brut'!$D$11,0)),E2076)","v":{"$error":"#DIV/0!"}},{"$error":"#DIV/0!"},{"$f":"IF(G2076<0,\" \",IF(SUM(H2072:H2075)>0,\" \",IF(H2072=0,\" \",A2076)))","v":{"$error":"#DIV/0!"}}]
[5,{"$f":"'5 Flux de trésorerie brut'!$D$12","v":{"$error":"#DIV/0!"}},{"$f":"G2066+G2067","v":0},0,{"$error":"#DIV/0!"},{"$f":"IF(E2077>0,(E2077-E2077*'1 Données d''entrée'!$C$353-IF('5 Flux de trésorerie brut'!$D$12>0,'1 Données d''entrée'!$C$357*'5 Flux de trésorerie brut'!$D$12,0)),E2077)","v":{"$error":"#DIV/0!"}},{"$error":"#DIV/0!"},{"$f":"IF(G2077<0,\" \",IF(SUM(H2072:H2076)>0,\" \",IF(H2072=0,\" \",A2077)))","v":{"$error":"#DIV/0!"}}]
[6,{"$f":"'5 Flux de trésorerie brut'!$D$13","v":{"$error":"#DIV/0!"}},{"$f":"H2066+H2067","v":0},0,{"$error":"#DIV/0!"},{"$f":"IF(E2078>0,(E2078-E2078*'1 Données d''entrée'!$C$353-IF('5 Flux de trésorerie brut'!$D$13>0,'1 Données d''entrée'!$C$357*'5 Flux de trésorerie brut'!$D$13,0)),E2078)","v":{"$error":"#DIV/0!"}},{"$error":"#DIV/0!"},{"$f":"IF(G2078<0,\" \",IF(SUM(H2072:H2077)>0,\" \",IF(H2072=0,\" \",A2078)))","v":{"$error":"#DIV/0!"}}]
[7,{"$f":"'5 Flux de trésorerie brut'!$D$14","v":{"$error":"#DIV/0!"}},{"$f":"I2066+I2067","v":0},0,{"$error":"#DIV/0!"},{"$f":"IF(E2079>0,(E2079-E2079*'1 Données d''entrée'!$C$353-IF('5 Flux de trésorerie brut'!$D$14>0,'1 Données d''entrée'!$C$357*'5 Flux de trésorerie brut'!$D$14,0)),E2079)","v":{"$error":"#DIV/0!"}},{"$error":"#DIV/0!"},{"$f":"IF(G2079<0,\" \",IF(SUM(H2072:H2078)>0,\" \",IF(H2072=0,\" \",A2079)))","v":{"$error":"#DIV/0!"}}]
[8,{"$f":"'5 Flux de trésorerie brut'!$D$15","v":{"$error":"#DIV/0!"}},{"$f":"J2066+J2067","v":0},0,{"$error":"#DIV/0!"},{"$f":"IF(E2080>0,(E2080-E2080*'1 Données d''entrée'!$C$353-IF('5 Flux de trésorerie brut'!$D$15>0,'1 Données d''entrée'!$C$357*'5 Flux de trésorerie brut'!$D$15,0)),E2080)","v":{"$error":"#DIV/0!"}},{"$error":"#DIV/0!"},{"$f":"IF(G2080<0,\" \",IF(SUM(H2072:H2079)>0,\" \",IF(H2072=0,\" \",A2080)))","v":{"$error":"#DIV/0!"}}]
[9,{"$f":"'5 Flux de trésorerie brut'!$D$16","v":{"$error":"#DIV/0!"}},{"$f":"K2066+K2067","v":0},0,{"$error":"#DIV/0!"},{"$f":"IF(E2081>0,(E2081-E2081*'1 Données d''entrée'!$C$353-IF('5 Flux de trésorerie brut'!$D$16>0,'1 Données d''entrée'!$C$357*'5 Flux de trésorerie brut'!$D$16,0)),E2081)","v":{"$error":"#DIV/0!"}},{"$error":"#DIV/0!"},{"$f":"IF(G2081<0,\" \",IF(SUM(H2072:H2080)>0,\" \",IF(H2072=0,\" \",A2081)))","v":{"$error":"#DIV/0!"}}]
[10,{"$f":"'5 Flux de trésorerie brut'!$D$17","v":{"$error":"#DIV/0!"}},{"$f":"L2066+L2067","v":0},0,{"$error":"#DIV/0!"},{"$f":"IF(E2082>0,(E2082-E2082*'1 Données d''entrée'!$C$353-IF('5 Flux de trésorerie brut'!$D$17>0,'1 Données d''entrée'!$C$357*'5 Flux de trésorerie brut'!$D$17,0)),E2082)","v":{"$error":"#DIV/0!"}},{"$error":"#DIV/0!"},{"$f":"IF(G2082<0,\" \",IF(SUM(H2072:H2081)>0,\" \",IF(H2072=0,\" \",A2082)))","v":{"$error":"#DIV/0!"}}]
[11,{"$f":"'5 Flux de trésorerie brut'!$D$18","v":{"$error":"#DIV/0!"}},{"$f":"M2066+M2067","v":0},0,{"$error":"#DIV/0!"},{"$f":"IF(E2083>0,(E2083-E2083*'1 Données d''entrée'!$C$353-IF('5 Flux de trésorerie brut'!$D$18>0,'1 Données d''entrée'!$C$357*'5 Flux de trésorerie brut'!$D$18,0)),E2083)","v":{"$error":"#DIV/0!"}},{"$error":"#DIV/0!"},{"$f":"IF(G2083<0,\" \",IF(SUM(H2072:H2082)>0,\" \",IF(H2072=0,\" \",A2083)))","v":{"$error":"#DIV/0!"}}]
[12,{"$f":"'5 Flux de trésorerie brut'!$D$19","v":{"$error":"#DIV/0!"}},{"$f":"N2066+N2067","v":0},0,{"$error":"#DIV/0!"},{"$f":"IF(E2084>0,(E2084-E2084*'1 Données d''entrée'!$C$353-IF('5 Flux de trésorerie brut'!$D$19>0,'1 Données d''entrée'!$C$357*'5 Flux de trésorerie brut'!$D$19,0)),E2084)","v":{"$error":"#DIV/0!"}},{"$error":"#DIV/0!"},{"$f":"IF(G2084<0,\" \",IF(SUM(H2072:H2083)>0,\" \",IF(H2072=0,\" \",A2084)))","v":{"$error":"#DIV/0!"}}]
[13,{"$f":"'5 Flux de trésorerie brut'!$D$20","v":{"$error":"#DIV/0!"}},{"$f":"O2066+O2067","v":0},0,{"$error":"#DIV/0!"},{"$f":"IF(E2085>0,(E2085-E2085*'1 Données d''entrée'!$C$353-IF('5 Flux de trésorerie brut'!$D$20>0,'1 Données d''entrée'!$C$357*'5 Flux de trésorerie brut'!$D$20,0)),E2085)","v":{"$error":"#DIV/0!"}},{"$error":"#DIV/0!"},{"$f":"IF(G2085<0,\" \",IF(SUM(H2072:H2084)>0,\" \",IF(H2072=0,\" \",A2085)))","v":{"$error":"#DIV/0!"}}]
[14,{"$f":"'5 Flux de trésorerie brut'!$D$21","v":{"$error":"#DIV/0!"}},{"$f":"P2066+P2067","v":0},0,{"$error":"#DIV/0!"},{"$f":"IF(E2086>0,(E2086-E2086*'1 Données d''entrée'!$C$353-IF('5 Flux de trésorerie brut'!$D$21>0,'1 Données d''entrée'!$C$357*'5 Flux de trésorerie brut'!$D$21,0)),E2086)","v":{"$error":"#DIV/0!"}},{"$error":"#DIV/0!"},{"$f":"IF(G2086<0,\" \",IF(SUM(H2072:H2085)>0,\" \",IF(H2072=0,\" \",A2086)))","v":{"$error":"#DIV/0!"}}]
[15,{"$f":"'5 Flux de trésorerie brut'!$D$22","v":{"$error":"#DIV/0!"}},{"$f":"Q2066+Q2067","v":0},0,{"$error":"#DIV/0!"},{"$f":"IF(E2087>0,(E2087-E2087*'1 Données d''entrée'!$C$353-IF('5 Flux de trésorerie brut'!$D$22>0,'1 Données d''entrée'!$C$357*'5 Flux de trésorerie brut'!$D$22,0)),E2087)","v":{"$error":"#DIV/0!"}},{"$error":"#DIV/0!"},{"$f":"IF(G2087<0,\" \",IF(SUM(H2072:H2086)>0,\" \",IF(H2072=0,\" \",A2087)))","v":{"$error":"#DIV/0!"}}]
[16,{"$f":"'5 Flux de trésorerie brut'!$D$23","v":{"$error":"#DIV/0!"}},{"$f":"R2066+R2067","v":0},0,{"$error":"#DIV/0!"},{"$f":"IF(E2088>0,(E2088-E2088*'1 Données d''entrée'!$C$353-IF('5 Flux de trésorerie brut'!$D$23>0,'1 Données d''entrée'!$C$357*'5 Flux de trésorerie brut'!$D$23,0)),E2088)","v":{"$error":"#DIV/0!"}},{"$error":"#DIV/0!"},{"$f":"IF(G2088<0,\" \",IF(SUM(H2072:H2087)>0,\" \",IF(H2072=0,\" \",A2088)))","v":{"$error":"#DIV/0!"}}]
[17,{"$f":"'5 Flux de trésorerie brut'!$D$24","v":{"$error":"#DIV/0!"}},{"$f":"S2066+S2067","v":0},0,{"$error":"#DIV/0!"},{"$f":"IF(E2089>0,(E2089-E2089*'1 Données d''entrée'!$C$353-IF('5 Flux de trésorerie brut'!$D$24>0,'1 Données d''entrée'!$C$357*'5 Flux de trésorerie brut'!$D$24,0)),E2089)","v":{"$error":"#DIV/0!"}},{"$error":"#DIV/0!"},{"$f":"IF(G2089<0,\" \",IF(SUM(H2072:H2088)>0,\" \",IF(H2072=0,\" \",A2089)))","v":{"$error":"#DIV/0!"}}]
[18,{"$f":"'5 Flux de trésorerie brut'!$D$25","v":{"$error":"#DIV/0!"}},{"$f":"T2066+T2067","v":0},0,{"$error":"#DIV/0!"},{"$f":"IF(E2090>0,(E2090-E2090*'1 Données d''entrée'!$C$353-IF('5 Flux de trésorerie brut'!$D$25>0,'1 Données d''entrée'!$C$357*'5 Flux de trésorerie brut'!$D$25,0)),E2090)","v":{"$error":"#DIV/0!"}},{"$error":"#DIV/0!"},{"$f":"IF(G2090<0,\" \",IF(SUM(H2072:H2089)>0,\" \",IF(H2072=0,\" \",A2090)))","v":{"$error":"#DIV/0!"}}]
[19,{"$f":"'5 Flux de trésorerie brut'!$D$26","v":{"$error":"#DIV/0!"}},{"$f":"U2066+U2067","v":0},0,{"$error":"#DIV/0!"},{"$f":"IF(E2091>0,(E2091-E2091*'1 Données d''entrée'!$C$353-IF('5 Flux de trésorerie brut'!$D$26>0,'1 Données d''entrée'!$C$357*'5 Flux de trésorerie brut'!$D$26,0)),E2091)","v":{"$error":"#DIV/0!"}},{"$error":"#DIV/0!"},{"$f":"IF(G2091<0,\" \",IF(SUM(H2072:H2090)>0,\" \",IF(H2072=0,\" \",A2091)))","v":{"$error":"#DIV/0!"}}]
[20,{"$f":"'5 Flux de trésorerie brut'!$D$27","v":{"$error":"#DIV/0!"}},{"$f":"V2066+V2067","v":0},0,{"$error":"#DIV/0!"},{"$f":"IF(E2092>0,(E2092-E2092*'1 Données d''entrée'!$C$353-IF('5 Flux de trésorerie brut'!$D$27>0,'1 Données d''entrée'!$C$357*'5 Flux de trésorerie brut'!$D$27,0)),E2092)","v":{"$error":"#DIV/0!"}},{"$error":"#DIV/0!"},{"$f":"IF(G2092<0,\" \",IF(SUM(H2072:H2091)>0,\" \",IF(H2072=0,\" \",A2092)))","v":{"$error":"#DIV/0!"}}]
[]
[]
[null,null,"Valeur actuelle nette",{"$f":"NPV('1 Données d''entrée'!$H$28,'10 Subvention d''ADER'!F2073:F2092)+'10 Subvention d''ADER'!F2072","v":{"$error":"#DIV/0!"}}]
[null,null,"Taux de rentabilité interne",{"$f":"IRR(F2072:F2092)","v":{"$error":"#VALUE!"}}]